{"text_format":"1","workbook":"xlsx","n_sheets":33,"sheets":["Welcome","Notes","Pivot % growth","Pivot_T","Service delivery impact","Performance impact","Pivot Infra impact","Pivot Personnel impact","Data","Summary","IP1","IP2","IP3","IP4","IP5","IP6","IP7","IP8","IP9","IP10","IP11","IP12","IP13","IP14","IP15","IP16","IP17","IP18","IP19","IP20","Metadata","Sheet1","Tables"],"not_rendered":{"charts":21,"images":3,"macros":1,"external_links":1,"defined_names":195,"comments":1,"pivot_tables":4},"unopened":[],"bounds":{"document_bytes":16777216,"sheet_cells":100000,"rows_first":2000,"rows_last":500,"rows_between":2000,"halvings":0,"cell_chars":16384,"cell_head_chars":4096},"cells_cut":0,"cells_raw":0,"read":"whole","date_system":"1900"}

{"sheet":"Welcome","index":0,"n_rows":49,"n_cols":60,"rows_kept":49,"cut":false,"hidden":false,"merged":[[9,1,9,3],[9,5,9,6],[9,8,10,13],[6,2,6,5]]}
[null,null,null,null,null,null,null,null,null,null,null,null,null,null,null,null,null,null,null,null,null,null,null,null,null,null,36,{"$f":"INDEX(AB$4:AB$45,MATCH(MyVoteNo,$AA$4:$AA$45,0))","v":"Small Business Development"},{"$f":"INDEX(AC$4:AC$45,MATCH(MyVoteNo,$AA$4:$AA$45,0))","v":"Isaac Kurasha"},null,{"$f":"INDEX(AE$4:AE$45,MATCH(MyVoteNo,$AA$4:$AA$45,0))","v":"Isaac.Kurasha@treasury.gov.za"},{"$f":"INDEX(AF$4:AF$45,MATCH(MyVoteNo,$AA$4:$AA$45,0))","v":"Rudzani Sikhwari"},null,{"$f":"INDEX(AH$4:AH$45,MATCH(MyVoteNo,$AA$4:$AA$45,0))","v":"rudzani.sikhwari@treasury.gov.za"}]
[null,null,null,null,"MTEC Submission Workbook - 2021/22",null,null,null,null,null,null,null,null,null,null,null,null,null,null,null,null,null,null,null,null,null,null,null,null,null,null,null,null,null,"Dept Ceilings",null,null,"CoE Ceilings",null,null,null,null,null,null,"Departmental",{"$f":"SUM(AT4:AT45)","v":1724950365},1779048023,1807879862,null,null,"Compensation",{"$f":"SUM(AZ4:AZ45)","v":174066007},173531816,170160998]
[null,null,null,null,null,null,null,null,null,null,null,null,null,null,null,null,null,null,null,null,null,null,null,null,null,"Dept Index No.","Vote No.","Department","Contact Person","Tel","email","Contact Person","Tel","email","2021/22","2022/23","2023/24","2021/22","2022/23","2023/24",null,null,null,null,"Department","2021/22 Ceiling","2022/23 Ceiling","2023/24 Ceiling",null,null,"Department","2021/22 Ceiling","2022/23 Ceiling","2023/24 Ceiling",null,null,null,"Month","MonthNo.","Month Selection"]
[null,null,null,null,null,null,null,null,null,null,null,null,null,null,null,null,null,null,null,null,null,null,null,null,null,1,29,"Agriculture, Land Reform and Rural Development","Bothwell Deka","(012) 395 6784","Bothwell.Deka@treasury.gov.za","Humbelani Ramuedzisi","(012) 315 5585","Humbelani.Ramuedzisi@treasury.gov.za",{"$f":"IFERROR(INDEX((AT$4:AT$45),MATCH($AB4,$AS$4:$AS$45,0)),0)","v":16488238},{"$f":"IFERROR(INDEX((AU$4:AU$45),MATCH($AB4,$AS$4:$AS$45,0)),0)","v":16398897},{"$f":"IFERROR(INDEX((AV$4:AV$45),MATCH($AB4,$AS$4:$AS$45,0)),0)","v":16403341},{"$f":"IFERROR(INDEX((AZ$4:AZ$45),MATCH($AB4,$AY$4:$AY$45,0)),0)","v":4125542},{"$f":"IFERROR(INDEX((BA$4:BA$45),MATCH($AB4,$AY$4:$AY$45,0)),0)","v":4100208},{"$f":"IFERROR(INDEX((BB$4:BB$45),MATCH($AB4,$AY$4:$AY$45,0)),0)","v":4020368},null,null,null,null,"Agriculture, Land Reform and Rural Development",16488238,16398897,16403341,null,null,"Agriculture, Land Reform and Rural Development",4125542,4100208,4020368,null,null,null,"April",1,{"$f":"+INDEX(($BG$4:$BG$15),MATCH(Welcome!$B$7,Welcome!BF4:BF15,0))","v":{"$error":"#N/A"}}]
[null,null,null,null,null,null,null,null,null,null,null,null,null,null,null,null,null,null,null,null,null,null,null,null,null,2,16,"Basic Education","Spencer Janari","(012) 315 5436","Spencer.Janari@treasury.gov.za","Pindi Masiso","(012) 315 5722","Pindi.Masiso@treasury.gov.za",25725854,26090658,26097727,542698,541386,530853,null,null,null,null,"Basic Education",25725854,26090658,26097727,null,null,"Basic Education",542698,541386,530853,null,null,null,"May",2]
[null,null,null,null,null,null,null,null,null,null,null,null,null,null,null,null,null,null,null,null,null,null,null,null,null,3,42,"Centre for Public Service Innovation","George Tembo","(012) 315 5514","George.Tembo@treasury.gov.za","Uvadhya Singh","(012) 315 9030","Uvadhya.Singh@treasury.gov.za",0,0,0,0,0,0,null,null,null,null,"Civilian Secretariat for the Police Service",148497,148486,148526,null,null,"Civilian Secretariat for the Police Service",104161,103829,101809,null,null,null,"June",3]
[null,{"$f":"\"VOTE \" &$AA$1&\": \"","v":"VOTE 36: "},{"$f":"MyDeptName","v":"Small Business Development"},null,null,null,null,null,null,null,null,null,null,null,null,null,null,null,null,null,null,null,null,null,null,4,21,"Civilian Secretariat for the Police Service","Nompumelelo Radebe","(012) 315 5957","Nompumelelo.Radebe@treasury.gov.za","Velisubuhle Buti","(012) 395 6709","Velisubuhle.Buti@treasury.gov.za",148497,148486,148526,104161,103829,101809,null,null,null,null,"Communications and Digital Technologies",3594529,2318493,2319121,null,null,"Communications and Digital Technologies",323579,322564,316307,null,null,null,"July",4]
[null,null,null,null,null,null,null,null,null,null,null,null,null,null,null,null,null,null,null,null,null,null,null,null,null,5,30,"Communications and Digital Technologies","Rezah Atcha","(012) 315 5287","Rezah.Atcha@treasury.gov.za","Keitumetse Motshegwe","(012) 395 6750","keitumetse.motshegwe@treasury.gov.za",3594529,2318493,2319121,323579,322564,316307,null,null,null,null,"Cooperative Governance",98283946,102074704,102102361,null,null,"Cooperative Governance",367021,365953,358848,null,null,null,"August",5]
[null,null,null,null,null,null,null,null,null,null,null,null,null,null,null,null,null,null,null,null,null,null,null,null,null,6,3,"Cooperative Governance","Misaveni Ngobeni","(012) 315 5305","Misaveni.Ngobeni@treasury.gov.za","Millicent Mulaudzi","(012) 395 6576","Millicent.Mulaudzi@treasury.gov.za",98283946,102074704,102102361,367021,365953,358848,null,null,null,null,"Correctional Services",25540903,25552292,25559215,null,null,"Correctional Services",17487333,17412677,17075121,null,null,null,"September",6]
[null,"Enquiries",null,null,null,"Department Contact Details ",null,null,"PLEASE CLICK THE BUTTON BELOW TO SUBMIT AN INPUT… (Note: Input can not be submitted if ceilings on the 'Data' sheet are exceeded.)",null,null,null,null,null,null,null,null,null,null,null,null,null,null,null,null,7,22,"Correctional Services","Elvis Ramafamba","(012) 315 5204","Elvis.Ramafamba@treasury.gov.za","Keabetswe Matlwa","(012) 395 6678","Keabetswe.Matlwa@treasury.gov.za",25540903,25552292,25559215,17487333,17412677,17075121,null,null,null,null,"Defence",45424249,45502702,45515031,null,null,"Defence",28920012,28893457,28331302,null,null,null,"October",7]
[null,{"$f":"AC1","v":"Isaac Kurasha"},null,{"$f":"AE1","v":"Isaac.Kurasha@treasury.gov.za"},null,"Name:",null,null,null,null,null,null,null,null,null,null,null,null,null,null,null,null,null,null,null,8,23,"Defence","Mashudu Bidzha","(012) 315 5344","Mashudu.Bidzha@treasury.gov.za","Lesiba Ledwaba","(012) 315 6660","Lesiba.Ledwaba@treasury.gov.za",45424249,45502702,45515031,28920012,28893457,28331302,null,null,null,null,"Employment and Labour",3449994,3438896,3439828,null,null,"Employment and Labour",1391536,1382634,1355733,null,null,null,"November",8]
[null,{"$f":"AF1","v":"Rudzani Sikhwari"},null,{"$f":"AH1","v":"rudzani.sikhwari@treasury.gov.za"},null,"Email:",null,null,null,null,null,null,null,null,null,null,null,null,null,null,null,null,null,null,null,9,31,"Employment and Labour","Judy Naidoo","(012) 315 5269","Judy.Naidoo@treasury.gov.za",null,null,null,3449994,3438896,3439828,1391536,1382634,1355733,null,null,null,null,"Environment, Forestry and Fisheries",8466845,8465616,8467910,null,null,"Environment, Forestry and Fisheries",1913715,1908535,1871449,null,null,null,"December",9]
[null,null,null,null,null,"Telephone number:",null,null,null,null,null,null,null,null,null,null,null,null,null,null,null,null,null,null,null,10,32,"Environment, Forestry and Fisheries","Gcobisa Magazi","(012) 315 5320","Gcobisa.Magazi@treasury.gov.za","Ashley Ramasimu","(012) 315 5166","Ashley.Ramasimu@treasury.gov.za",8466845,8465616,8467910,1913715,1908535,1871449,null,null,null,null,"Government Communication and Information System",684970,684271,684457,null,null,"Government Communication and Information System",274381,273959,268609,null,null,null,"January",10]
[null,null,null,null,null,"Mobile (optional):",null,null,null,null,null,null,null,null,null,null,null,null,null,null,null,null,null,null,null,11,4,"Government Communication and Information System","Mokgatla Tema","(012) 315 5948","Mokgatla.Tema@treasury.gov.za","Viwe Sobudula ","(0)12 315 5015 ","Viwe.Sobudula@treasury.gov.za",684970,684271,684457,274381,273959,268609,null,null,null,null,"Health",56958002,57803100,57818761,null,null,"Health",831596,825829,810446,null,null,null,"February",11]
[null,null,null,null,null,null,null,null,null,null,null,null,null,null,null,null,null,null,null,null,null,null,null,null,null,12,18,"Health","Refiloe Thokoa","(012) 395 6559","Refiloe.thokoa@treasury.gov.za","Jonatan Daven","(012) 315 6711","Jonatan.Daven@treasury.gov.za ",56958002,57803100,57818761,831596,825829,810446,null,null,null,null,"Higher Education and Training",113801127,115288613,115319850,null,null,"Higher Education and Training",9559638,9527409,9342066,null,null,null,"March",12]
[null,null,null,null,null,null,null,null,null,null,null,null,null,null,null,null,null,null,null,null,null,null,null,null,null,13,17,"Higher Education and Training","Letsepa Pakkies","(012) 315 6656","Letsepa.Pakkies@treasury.gov.za","Barileng Sape","(012) 406 9069","barileng.sape@treasury.gov.za",113801127,115288613,115319850,9559638,9527409,9342066,null,null,null,null,"Home Affairs",8700029,8707870,8710229,null,null,"Home Affairs",3606281,3553472,3487482]
[null,null,null,null,null,null,null,null,null,null,null,null,null,null,null,null,null,null,null,null,null,null,null,null,null,14,5,"Home Affairs","Timothy Murwa","(012) 315 5002","Timothy.Murwa@treasury.gov.za","Isaac Mabena","(012) 315 5582","Isaac.Mabena@treasury.gov.za",8700029,8707870,8710229,3606281,3553472,3487482,null,null,null,null,"Human Settlements",29918137,29918485,29926591,null,null,"Human Settlements",402702,401725,393910]
[null,null,null,null,null,null,null,null,null,null,null,null,null,null,null,null,null,null,null,null,null,null,null,null,null,15,33,"Human Settlements","Ulrike Britton ","(012) 315 5578","Ulrike.Britton@treasury.gov.za","Lindiwe Ngcongwane","(012) 315 5357","Lindiwe.Ngcongwane@treasury.gov.za",29918137,29918485,29926591,402702,401725,393910,null,null,null,null,"Independent Police Investigative Directorate",337647,337814,337906,null,null,"Independent Police Investigative Directorate",225355,224789,220417]
[null,null,null,null,null,null,null,null,null,null,null,null,null,null,null,null,null,null,null,null,null,null,null,null,null,16,24,"Independent Police Investigative Directorate","Nompumelelo Radebe","(012) 315 5957","Nompumelelo.Radebe@treasury.gov.za","Velisubuhle Buti","(012) 395 6709","Velisubuhle.Buti@treasury.gov.za",337647,337814,337906,225355,224789,220417,null,null,null,null,"International Relations and Cooperation",6402455,6424213,6425954,null,null,"International Relations and Cooperation",2848739,2842004,2786701]
[null,null,null,null,null,null,null,null,null,null,null,null,null,null,null,null,null,null,null,null,null,null,null,null,null,17,6,"International Relations and Cooperation","George Tembo","(012) 315 5514","George.Tembo@treasury.gov.za","Mercy Mhlophe","(012) 315 5598","mercy.mhlope@treasury.gov.za",6402455,6424213,6425954,2848739,2842004,2786701,null,null,null,null,"Justice and Constitutional Development",21240759,21220225,21225974,null,null,"Justice and Constitutional Development",12035456,11991097,11757725]
[null,null,null,null,null,null,null,null,null,null,null,null,null,null,null,null,null,null,null,null,null,null,null,null,null,18,25,"Justice and Constitutional Development","Werner Krause","(012) 315 5211","Werner.Krause@treasury.gov.za","Maggy Mokoka","(012) 315 5468","Maggy.Mokoka@treasury.gov.za",21240759,21220225,21225974,12035456,11991097,11757725,null,null,null,null,"Military Veterans",656375,656076,656254,null,null,"Military Veterans",126953,126589,124134]
[null,null,null,null,null,null,null,null,null,null,null,null,null,null,null,null,null,null,null,null,null,null,null,null,null,19,26,"Military Veterans","Mashudu Bidzha","(012) 315 5344","Mashudu.Bidzha@treasury.gov.za","Lesiba Ledwaba","(012) 315 6660","Lesiba.Ledwaba@treasury.gov.za",656375,656076,656254,126953,126589,124134,null,null,null,null,"Mineral Resources and Energy",8736798,9334176,9336705,null,null,"Mineral Resources and Energy",1038691,1036179,1016019]
[null,null,null,null,null,null,null,null,null,null,null,null,null,null,null,null,null,null,null,null,null,null,null,null,null,20,34,"Mineral Resources and Energy","Rezah Atcha","(012) 315 5287","Rezah.Atcha@treasury.gov.za","Nomagugu Madikane","(012) 315 5312","Nomagugu.Madikane@treasury.gov.za",8736798,9334176,9336705,1038691,1036179,1016019,null,null,null,null,"National School of Government",197656,196065,196118,null,null,"National School of Government",57987,57848,56722]
[null,null,null,null,null,null,null,null,null,null,null,null,null,null,null,null,null,null,null,null,null,null,null,null,null,21,7,"National School of Government","George Tembo","(012) 315 5514","George.Tembo@treasury.gov.za","Uvadhya Singh","(012) 315 9030","Uvadhya.Singh@treasury.gov.za",197656,196065,196118,57987,57848,56722,null,null,null,null,"National Treasury",818909528,861678814,890262091,null,null,"National Treasury",862955,860874,844125]
[null,null,null,null,null,null,null,null,null,null,null,null,null,null,null,null,null,null,null,null,null,null,null,null,null,22,8,"National Treasury","Mokgatla Tema","(012) 315 5948","Mokgatla.Tema@treasury.gov.za","Rhoda Marais","(012) 315 5906","Rhoda.Marais@treasury.gov.za",818909528,861678814,890262091,862955,860874,844125,null,null,null,null,"Not defined",3773184,5489386,5490874,null,null,"Not defined",0,0,0]
[null,null,null,null,null,null,null,null,null,null,null,null,null,null,null,null,null,null,null,null,null,null,null,null,null,23,27,"Office of the Chief Justice","Elvis Ramafamba","(012) 315 5204","Elvis.Ramafamba@treasury.gov.za","Keabetswe Matlwa","(012) 395 6678","Keabetswe.Matlwa@treasury.gov.za",2313640,2315662,2316290,1737282,1734392,1700541,null,null,null,null,"Office of the Chief Justice",2313640,2315662,2316290,null,null,"Office of the Chief Justice",1737282,1734392,1700541]
[null,null,null,null,null,null,null,null,null,null,null,null,null,null,null,null,null,null,null,null,null,null,null,null,null,24,2,"Parliament","Timothy Murwa","(012) 315 5002","Timothy.Murwa@treasury.gov.za","Isaac Mabena","(012) 315 5582","Isaac.Mabena@treasury.gov.za",2595889,2600609,2601314,1398315,1394884,1367746,null,null,null,null,"Parliament",2595889,2600609,2601314,null,null,"Parliament",1398315,1394884,1367746]
[null,null,null,null,null,null,null,null,null,null,null,null,null,null,null,null,null,null,null,null,null,null,null,null,null,25,9,"Planning, Monitoring and Evaluation","Mokgatla Tema","(012) 315 5948","Mokgatla.Tema@treasury.gov.za","Viwe Sobudula ","(0)12 315 5015 ","Viwe.Sobudula@treasury.gov.za",471341,470992,471120,314999,311708,305667,null,null,null,null,"Planning, Monitoring and Evaluation",471341,470992,471120,null,null,"Planning, Monitoring and Evaluation",314999,311708,305667]
[null,null,null,null,null,null,null,null,null,null,null,null,null,null,null,null,null,null,null,null,null,null,null,null,null,26,28,"Police","Nompumelelo Radebe","(012) 315 5957","Nompumelelo.Radebe@treasury.gov.za","Velisubuhle Buti","(012) 395 6709","Velisubuhle.Buti@treasury.gov.za",95469689,95324513,95350341,75007194,74823053,73366432,null,null,null,null,"Police",95469689,95324513,95350341,null,null,"Police",75007194,74823053,73366432]
[null,null,null,null,null,null,null,null,null,null,null,null,null,null,null,null,null,null,null,null,null,null,null,null,null,27,10,"Public Enterprises","Isaac Kurasha","(012) 315 5213","Isaac.Kurasha@treasury.gov.za","Ntandokazi Makaula","(012) 395 6667","Ntandokazi.Makaula@treasury.gov.za",4361231,1921025,1921546,184824,182679,179125,null,null,null,null,"Public Enterprises",4361231,1921025,1921546,null,null,"Public Enterprises",184824,182679,179125]
[null,null,null,null,null,null,null,null,null,null,null,null,null,null,null,null,null,null,null,null,null,null,null,null,null,28,11,"Public Service and Administration","George Tembo","(012) 315 5514","George.Tembo@treasury.gov.za","Uvadhya Singh","(012) 315 9030","Uvadhya.Singh@treasury.gov.za",546634,542790,542938,314645,313091,306909,null,null,null,null,"Public Service and Administration",546634,542790,542938,null,null,"Public Service and Administration",314645,313091,306909]
[null,null,null,null,null,null,null,null,null,null,null,null,null,null,null,null,null,null,null,null,null,null,null,null,null,29,12,"Public Service Commission","George Tembo","(012) 315 5514","George.Tembo@treasury.gov.za","Uvadhya Singh","(012) 315 9030","Uvadhya.Singh@treasury.gov.za",281082,279683,279759,212616,210723,206736,null,null,null,null,"Public Service Commission",281082,279683,279759,null,null,"Public Service Commission",212616,210723,206736]
[null,null,null,null,null,null,null,null,null,null,null,null,null,null,null,null,null,null,null,null,null,null,null,null,null,30,13,"Public Works and Infrastructure","George Tembo","(012) 315 5514","George.Tembo@treasury.gov.za","Mercy Mhlophe","(012) 315 5598","mercy.mhlope@treasury.gov.za",7950067,7938000,7940151,552454,552539,541673,null,null,null,null,"Public Works and Infrastructure",7950067,7938000,7940151,null,null,"Public Works and Infrastructure",552454,552539,541673]
[null,null,null,null,null,null,null,null,null,null,null,null,null,null,null,null,null,null,null,null,null,null,null,null,null,31,35,"Science and Innovation","Gcobisa Magazi","(012) 315 5320","Gcobisa.Magazi@treasury.gov.za","Thabiso Molewa","(012) 395 6780","Thabiso.Molewa@treasury.gov.za",8489418,8425038,8427321,394253,391048,383439,null,null,null,null,"Science and Innovation",8489418,8425038,8427321,null,null,"Science and Innovation",394253,391048,383439]
[null,null,null,null,null,null,null,null,null,null,null,null,null,null,null,null,null,null,null,null,null,null,null,null,null,32,36,"Small Business Development","Isaac Kurasha","(012) 315 5213","Isaac.Kurasha@treasury.gov.za","Rudzani Sikhwari","(012) 315 5823","rudzani.sikhwari@treasury.gov.za",2482236,2450739,2451403,150789,150435,147507,null,null,null,null,"Small Business Development",2482236,2450739,2451403,null,null,"Small Business Development",150789,150435,147507]
[null,null,null,null,null,null,null,null,null,null,null,null,null,null,null,null,null,null,null,null,null,null,null,null,null,33,19,"Social Development","Pebetse Maleka","(012) 315 5566","Pebetse.Maleka@treasury.gov.za","Yusuf Mayet","(012) 315 5189","Yusuf.Mayet@treasury.gov.za",199306961,206984656,207040738,497757,498651,488931,null,null,null,null,"Social Development",199306961,206984656,207040738,null,null,"Social Development",497757,498651,488931]
[null,null,null,null,null,null,null,null,null,null,null,null,null,null,null,null,null,null,null,null,null,null,null,null,null,34,37,"Sports, Arts and Culture","Judy Naidoo","(012) 315 5269","Judy.Naidoo@treasury.gov.za","Spencer Janari","(012) 315 5436","Spencer.Janari@treasury.gov.za",5542002,5551914,5553418,374227,369542,362624,null,null,null,null,"Sports, Arts and Culture",5542002,5551914,5553418,null,null,"Sports, Arts and Culture",374227,369542,362624]
[null,null,null,null,null,null,null,null,null,null,null,null,null,null,null,null,null,null,null,null,null,null,null,null,null,35,14,"Statistics South Africa","Mokgatla Tema","(012) 315 5948","Mokgatla.Tema@treasury.gov.za","Viwe Sobudula ","(0)12 315 5015 ","Viwe.Sobudula@treasury.gov.za",4446840,2472028,2472697,1518638,1498900,1470947,null,null,null,null,"Statistics South Africa",4446840,2472028,2472697,null,null,"Statistics South Africa",1518638,1498900,1470947]
[null,null,null,null,null,null,null,null,null,null,null,null,null,null,null,null,null,null,null,null,null,null,null,null,null,36,1,"The Presidency","Timothy Murwa","(012) 315 5002","Timothy.Murwa@treasury.gov.za","Yamkela Ngewu","(012) 406 9078","Yamkela.Ngewu@treasury.gov.za",591091,590684,590844,369412,367439,360278,null,null,null,null,"The Presidency",591091,590684,590844,null,null,"The Presidency",369412,367439,360278]
[null,null,null,null,null,null,null,null,null,null,null,null,null,null,null,null,null,null,null,null,null,null,null,null,null,37,38,"Tourism","Gcobisa Magazi","(012) 315 5320","Gcobisa.Magazi@treasury.gov.za","Ashley Ramasimu","(012) 315 5166","Ashley.Ramasimu@treasury.gov.za",2369341,2374742,2375385,332682,331864,325409,null,null,null,null,"Tourism",2369341,2374742,2375385,null,null,"Tourism",332682,331864,325409]
[null,null,null,null,null,null,null,null,null,null,null,null,null,null,null,null,null,null,null,null,null,null,null,null,null,38,39,"Trade, Industry and Competition","Isaac Kurasha","(012) 315 5213","Isaac.Kurasha@treasury.gov.za","Rudzani Sikhwari","(012) 315 5823","rudzani.sikhwari@treasury.gov.za",9287504,9308700,9311222,1088218,1085604,1064481,null,null,null,null,"Trade, Industry and Competition",9287504,9308700,9311222,null,null,"Trade, Industry and Competition",1088218,1085604,1064481]
[null,null,null,null,null,null,null,null,null,null,null,null,null,null,null,null,null,null,null,null,null,null,null,null,null,39,15,"Traditional Affairs","Misaveni Ngobeni","(012) 315 5305","misaveni.ngobeni@treasury.gov.za","Millicent Mulaudzi","(012) 395 6576","Millicent.Mulaudzi@treasury.gov.za",164604,164356,164400,78883,78694,77163,null,null,null,null,"Traditional Affairs",164604,164356,164400,null,null,"Traditional Affairs",78883,78694,77163]
[null,null,null,null,null,null,null,null,null,null,null,null,null,null,null,null,null,null,null,null,null,null,null,null,null,40,40,"Transport","Dumebi Ubogu","(012) 315 5077","Dumebi.Ubogu@treasury.gov.za","Luyolo Ntlangula ","(012) 315-5571","luyolo.ntangula@treasury.gov.za",64203859,64949019,64966617,530815,529531,519229,null,null,null,null,"Transport",64203859,64949019,64966617,null,null,"Transport",530815,529531,519229]
[null,null,null,null,null,null,null,null,null,null,null,null,null,null,null,null,null,null,null,null,null,null,null,null,null,41,41,"Water and Sanitation","Misaveni Ngobeni","(012) 315 5305","Misaveni.Ngobeni@treasury.gov.za","Iqbal Mahomed Alli","(012) 315 5809","Iqbal.Mahomed-Alli@treasury.gov.za",15892768,15909361,15913672,1849275,1841602,1805805,null,null,null,null,"Water and Sanitation",15892768,15909361,15913672,null,null,"Water and Sanitation",1849275,1841602,1805805]
[null,null,null,null,null,null,null,null,null,null,null,null,null,null,null,null,null,null,null,null,null,null,null,null,null,42,20,"Women, Youth and Persons with Disabilities","Pebetse Maleka","(012) 315 5566","Pebetse.Maleka@treasury.gov.za","Lindi Mzankomo","(012) 315 5256","Lindi.Mzankomo@treasury.gov.za",744446,743660,743862,112398,112420,110210,null,null,null,null,"Women, Youth and Persons with Disabilities",744446,743660,743862,null,null,"Women, Youth and Persons with Disabilities",112398,112420,110210]
[]
[]
[null,null,null,null,null,null,null,null,null,null,null,null,null,null,null,null,null,null,null,null,null,null,null,null,null,null,null,null,null,null,null,null,null,null,{"$f":"SUM(AI4:AI45)","v":1721177181},1773558637,1802388988,174066007,173531816,170160998]
[null,null,null,null,null,null,null,null,null,null,null,null,null,null,null,null,null,null,null,null,null,null,null,null,null,null,null,null,null,null,null,null,null,null,1751895268.5821743,1789735539.6461465,null,174140115.2931878,173620506.60814115]

{"sheet":"Notes","index":1,"n_rows":43,"n_cols":2,"rows_kept":43,"cut":false,"hidden":false,"merged":[[42,1,42,15]]}
[]
[]
[]
[]
[]
[]
[]
[]
[]
[]
[]
[]
[]
[]
[]
[]
[]
[]
[]
[]
[]
[]
[]
[]
[]
[]
[]
[]
[]
[]
[]
[]
[]
[]
[]
[]
[]
[]
[]
[]
[]
[null,"Link to 2021 MTEF Guidelines"]
[null,"http://www.treasury.gov.za/publications/guidelines/2021%20MTEF%20guidelines.pdf"]

{"sheet":"Pivot % growth","index":2,"n_rows":22,"n_cols":14,"rows_kept":22,"cut":false,"hidden":false,"merged":[]}
[]
[]
[]
[]
[]
[]
[]
[]
[]
[]
[]
[]
[null,"Econ2","(All)"]
[null,"Econ3","(All)"]
[]
[null,"Row Labels"," 2021/22 Baseline"," 2021/22 \nRevised \nbaseline"," 2022/23 \nRevised \nbaseline"," 2023/24 \nRevised \nbaseline","% YoY 2021/22","% YoY 2022/23","% YoY 2023/24"," Ave Ann growth History"," Ave Ann growth MTEF","% adjust \n2021/22","% adjust \n2022/23","% adjust\n2023/24"]
[null,"(blank)",2583809,2583809,2617960,2733345,0,1.3217308245307535E-2,4.4074393802808309E-2,0.16892411774235838,5.449708876349435E-2,0,0,0]
[null,"Administration",131450,131450,136921,142952,0,4.1620387980220608E-2,4.4047297346645253E-2,2.325847180203322E-2,4.4761947757350429E-2,0,0,0]
[null,"Sector Policy and Research",27270,27270,29966,31288,0,9.8863219655298762E-2,4.4116665554294832E-2,0.17268629832474325,5.0242928500356721E-2,0,0,0]
[null,"Integrated Cooperative Development",143632,143632,148712,155270,0,3.5368163083435489E-2,4.4098660498144149E-2,0.11526432859075375,4.1058125366639997E-2,0,0,0]
[null,"Enterprise Development and Entrepreneurship",2281457,2281457,2302361,2403835,0,9.1625658515588349E-3,4.4073887631001396E-2,0.18502902244710739,5.6037853090878054E-2,0,0,0]
[null,"Grand Total",2583809,2583809,2617960,2733345,0,1.3217308245307535E-2,4.4074393802808309E-2,0.16892411774235838,5.449708876349435E-2,0,0,0]

{"sheet":"Pivot_T","index":3,"n_rows":27,"n_cols":5,"rows_kept":27,"cut":false,"hidden":false,"merged":[]}
[]
[]
[]
[]
[]
[]
[]
[]
[]
[]
[]
[]
[null,"DOR","(All)"]
[null,"Econ4","(All)"]
[]
[null," Value","Column Labels"]
[null,null,"Baseline"]
[null,"Row Labels","2021/22","2022/23","2023/24"]
[null,"Current payments",253527,261618,273150]
[null,"Compensation of employees",159472,164005,171236]
[null,"Goods and services",94055,97613,101914]
[null,"Transfers and subsidies",2325806,2351606,2455250]
[null,"Departmental agencies and accounts",838443,846126,883418]
[null,"Public corporations and private enterprises",1487363,1505480,1571832]
[null,"Payments for capital assets",4476,4736,4945]
[null,"Machinery and equipment",4476,4736,4945]
[null,"Grand Total",2583809,2617960,2733345]

{"sheet":"Service delivery impact","index":4,"n_rows":17,"n_cols":5,"rows_kept":17,"cut":false,"hidden":false,"merged":[[14,1,14,12]]}
[]
[]
[]
[]
[]
[]
[]
[]
[]
[]
[]
[]
[]
[]
[null,"Note: Data in the table below is sourced from the individual IP sheets. Any adjustments should be made on the IP sheets. Ajustments made directly on this table will be over-written when the data is refreshed!"]
[]
[null,"Impact area","IP no","IP name","Comment"]

{"sheet":"Performance impact","index":5,"n_rows":17,"n_cols":16,"rows_kept":17,"cut":false,"hidden":false,"merged":[[14,1,14,4]]}
[]
[]
[]
[]
[]
[]
[]
[]
[]
[]
[]
[]
[]
[]
[null,"Note: Data in the table below is sourced from the individual IP sheets. Any adjustments should be made on the IP sheets. Ajustments made directly on this table will be over-written when the data is refreshed!"]
[]
[null,"Impact area","IP no","IP name","Performance indicator","2021/22|Original target","2021/22 Revised target","2021/22 Change","2022/23 Original target","2022/23 Revised target","2022/23 Change","2023/24 Original target","2023/24 Revised target","2023/24 Change","Comment","Gov Priority"]

{"sheet":"Pivot Infra impact","index":6,"n_rows":16,"n_cols":3,"rows_kept":16,"cut":false,"hidden":false,"merged":[]}
[]
[]
[]
[]
[]
[]
[]
[]
[]
[]
[]
[]
[]
[null,"Impact area","(All)"]
[]
[null,"Row Labels"]

{"sheet":"Pivot Personnel impact","index":7,"n_rows":38,"n_cols":5,"rows_kept":38,"cut":false,"hidden":false,"merged":[]}
[]
[]
[]
[]
[]
[]
[]
[]
[]
[]
[]
[]
[]
[null,"IP name","(All)"]
[]
[null,"Row Labels"," 2021/22 Change"," 2022/23 Change"," 2023/24 Change"]
[null,"Level 1 - 6",0,0,0]
[null,"1",0,0,0]
[null,"2",0,0,0]
[null,"3",0,0,0]
[null,"4",0,0,0]
[null,"5",0,0,0]
[null,"6",0,0,0]
[null,"Levels 7 - 12",0,0,0]
[null,"7",0,0,0]
[null,"8",0,0,0]
[null,"9",0,0,0]
[null,"10",0,0,0]
[null,"11",0,0,0]
[null,"12",0,0,0]
[null,"Levels 13 - 16",0,0,0]
[null,"13",0,0,0]
[null,"14",0,0,0]
[null,"15",0,0,0]
[null,"16",0,0,0]
[null,"Other",0,0,0]
[null,"Other",0,0,0]
[null,"Grand Total",0,0,0]

{"sheet":"Data","index":8,"n_rows":1271,"n_cols":79,"rows_kept":1271,"cut":false,"hidden":false,"merged":[]}
[null,null,null,null,null,null,null,null,null,null,null,null,null,null,null,null,null,null,null,null,null,null,null,null,null,null,null,null,null,null,null,null,null,null,null,null,null,null,null,null,null,null,null,null,null,null,null,null,"Steps to complete…"]
[]
[]
[]
[]
[null,null,null,null,null,null,null,null,null,null,null,null,null,null,null,null,null,null,null,null,null,null,null,null,null,null,null,null,null,null,null,null,null,null,null,null,null,null,null,null,null,null,null,null,null,null,null,null,null,null,null,null,null,null,null,null,null,null,null,null,null,null,null,null,null,null,null,null,null,null,"2021/22","2022/23","2023/24"]
[]
[null,null,null,null,null,null,null,null,null,null,null,null,null,null,null,null,null,null,null,null,null,null,null,null,null,null,null,null,null,null,null,null,null,null,null,null,null,null,null,null,null,null,null,null,null,null,null,null,null,null,null,null,null,null,null,null,null,null,null,null,null,null,null,null,null,null,null,null,null,"Baseline ceiling:",{"$f":"INDEX(DeptCeiling,MATCH(MyVoteNo,VoteNoList,0),1)","v":2482236},{"$f":"INDEX(DeptCeiling,MATCH(MyVoteNo,VoteNoList,0),2)","v":2450739},{"$f":"INDEX(DeptCeiling,MATCH(MyVoteNo,VoteNoList,0),3)","v":2451403}]
[null,null,null,null,null,null,null,null,null,null,null,null,null,null,null,null,null,null,null,null,null,null,null,null,null,null,null,null,null,null,null,null,null,null,null,null,null,null,null,null,null,null,null,null,null,null,null,null,null,null,null,null,null,null,null,null,null,null,null,null,null,null,null,null,null,null,null,null,null,"(Over)/Under",{"$f":"BS8-SUM(T_DataComboFile[2021/22 Revised baseline])","v":-101573},{"$f":"BT8-SUM(T_DataComboFile[2022/23 Revised baseline])","v":-167221},{"$f":"BU8-SUM(T_DataComboFile[2023/24 Revised baseline])","v":-281942}]
[]
[null,null,null,null,null,null,null,null,null,null,null,null,null,null,null,null,null,null,null,null,null,null,null,null,null,null,null,null,null,null,null,null,null,null,null,null,null,null,null,null,null,null,null,null,null,null,null,null,null,null,null,null,null,null,null,null,null,null,null,null,null,null,null,null,null,null,null,null,null,"CoE ceiling:",{"$f":"INDEX(CoECeiling,MATCH(MyVoteNo,VoteNoList,0),1)","v":150789},{"$f":"INDEX(CoECeiling,MATCH(MyVoteNo,VoteNoList,0),2)","v":150435},{"$f":"INDEX(CoECeiling,MATCH(MyVoteNo,VoteNoList,0),3)","v":147507}]
[null,null,null,null,null,null,null,null,null,null,null,null,null,null,null,null,null,null,null,null,null,null,null,null,null,null,null,null,null,null,null,null,null,null,null,null,null,null,null,null,null,null,null,null,null,null,null,null,null,null,null,null,null,null,null,null,null,null,null,null,null,null,null,null,null,null,null,null,null,"(Over)/Under",{"$f":"BS11-SUMIF(T_DataComboFile[Econ3],\"Compensation of employees\",T_DataComboFile[2021/22 Revised baseline])","v":-8683},{"$f":"BT11-SUMIF(T_DataComboFile[Econ3],\"Compensation of employees\",T_DataComboFile[2022/23 Revised baseline])","v":-13570},{"$f":"BU11-SUMIF(T_DataComboFile[Econ3],\"Compensation of employees\",T_DataComboFile[2023/24 Revised baseline])","v":-23729}]
[]
[]
[null,null,null,null,null,null,null,null,null,null,null,null,null,null,null,null,null,null,null,null,null,null,null,null,null,null,null,null,null,null,null,null,null,null,null,null,null,null,null,null,null,null,null,null,null,null,null,null,null,"G&S reporting level",null,"2016/17","2017/18","2018/19","2019/20 Main appropriation","2019/20 Adjusted appropriation","2019/20 Revised estimate","2019/20 Preliminary outcome","2020/21 Original","2020/21 SAB","2020/21 Baseline","2021/22 Baseline","2022/23 Baseline","2023/24 Baseline","2021/22 Reduction","2022/23 Reduction","2023/24 Reduction","2021/22 Increase","2022/23 Increase","2023/24 Increase","2021/22 Revised baseline\n\n","2022/23 Revised baseline\n\n","2023/24 Revised baseline\n\n"]
[null,null,null,null,null,null,null,null,null,null,null,null,null,null,null,null,null,null,null,null,null,null,null,null,null,null,null,null,null,null,null,null,null,null,null,null,null,null,null,null,null,null,null,null,null,null,null,null,null,"Level 3","Subtotal:  ",{"$f":"SUBTOTAL(9,T_DataComboFile[2016/17])","v":1197041},{"$f":"SUBTOTAL(9,T_DataComboFile[2017/18])","v":1459484},{"$f":"SUBTOTAL(9,T_DataComboFile[2018/19])","v":1419518},{"$f":"SUBTOTAL(9,T_DataComboFile[2019/20 Main appropriation])","v":2568552},{"$f":"SUBTOTAL(9,T_DataComboFile[2019/20 Adjusted appropriation])","v":2268552},{"$f":"SUBTOTAL(9,T_DataComboFile[2019/20 Revised estimate])","v":2268552},{"$f":"SUBTOTAL(9,T_DataComboFile[2019/20 Preliminary outcome])","v":2268552},{"$f":"SUBTOTAL(9,T_DataComboFile[2020/21 Original])","v":2406783},{"$f":"SUBTOTAL(9,T_DataComboFile[2020/21 SAB])","v":2339783},{"$f":"SUBTOTAL(9,T_DataComboFile[2020/21 Revised])","v":2331086},{"$f":"SUBTOTAL(9,T_DataComboFile[2021/22 Baseline])","v":2583809},{"$f":"SUBTOTAL(9,T_DataComboFile[2022/23 Baseline])","v":2617960},{"$f":"SUBTOTAL(9,T_DataComboFile[2023/24 Baseline])","v":2733345},{"$f":"SUBTOTAL(9,T_DataComboFile[2021/22 Reduction])","v":0},{"$f":"SUBTOTAL(9,T_DataComboFile[2022/23 Reduction])","v":0},{"$f":"SUBTOTAL(9,T_DataComboFile[2023/24 Reduction])","v":0},{"$f":"SUBTOTAL(9,T_DataComboFile[2021/22 Increase])","v":0},{"$f":"SUBTOTAL(9,T_DataComboFile[2022/23 Increase])","v":0},{"$f":"SUBTOTAL(9,T_DataComboFile[2023/24 Increase])","v":0},{"$f":"SUBTOTAL(9,T_DataComboFile[2021/22 Revised baseline])","v":2583809},{"$f":"SUBTOTAL(9,T_DataComboFile[2022/23 Revised baseline])","v":2617960},{"$f":"SUBTOTAL(9,T_DataComboFile[2023/24 Revised baseline])","v":2733345}]
[null,null,null,null,null,null,null,null,null,null,null,null,null,null,null,null,null,null,null,null,null,null,null,null,null,null,null,null,null,null,null,null,null,null,null,null,null,null,null,null,null,null,null,null,null,null,null,null,null,null,null,null,null,null,null,null,null,null,null,null,null,null,null,null,null,null,null,null,null,null,"…red shaded cells below indicate negative budgets.",null,null,"Budget Tagging"]
["Combo_DoR","Combo_Econ","Budget Year","Process","Vote No. - N","Programme No. - N","Subprogramme No. - N","Index - N","Index - N2","Vote No.","Programme No.","Subprogramme No.","Index","Index2","UID","Econ1_IDn","Econ2_IDn","Econ3_IDn","Econ4_IDn","Econ5_IDn","Econ_UID","Province","Department","Programme","Subprogramme","Transfers and subsidies / Payments for financial assets detail","Econ1","Econ2","Econ3","Econ4","Econ5","Function group","Technical group","DOR","2016/17_Source","2017/18_Source","2018/19_Source","2019/20 Main appropriation_Source","2019/20 Adjusted appropriation_Source","2019/20 Revised estimate_Source","2019/20 Preliminary outcome_Source","2020/21 Original_Source","2020/21 SAB_Source","2020/21 Baseline_Source","2021/22 Baseline_Source","2022/23 Baseline_Source","2023/24 Baseline_Source","New item Indi","Implementation programme","G&S Reporting level","G&S reporting level indicator","2016/17","2017/18","2018/19","2019/20 Main appropriation","2019/20 Adjusted appropriation","2019/20 Revised estimate","2019/20 Preliminary outcome","2020/21 Original","2020/21 SAB","2020/21 Revised","2021/22 Baseline","2022/23 Baseline","2023/24 Baseline","2021/22 Reduction","2022/23 Reduction","2023/24 Reduction","2021/22 Increase","2022/23 Increase","2023/24 Increase","2021/22 Revised baseline","2022/23 Revised baseline","2023/24 Revised baseline","Gender - Women","Gender - Men","Children and Youth - Women","Children and Youth - Men","Persons with disabilities - Women","Persons with disabilities - Men"]
["NAT|Non-transfer item","36|Salaries and wages","2021_22","ENE2020",36,1,1,17175,70067,36,1,1,17175,"070067","36|01|01",1,1,1,1,1,"01|01|01|01|01","National","Small Business Development","Administration","Ministry","Non-transfer item","Current","Current payments","Compensation of employees","Salaries and wages","Salaries and wages","Economic development","Industrialisation and exports","NAT",18515,18064,19597,16253,16083,13383,13383,14187,14187,13383,13873,14492,15130,1,null,{"$f":"IF(T_DataComboFile[[#This Row],[G&S reporting level indicator]]=1,$AX$16,\"Not applicable\")","v":"Level 3"},{"$f":"IF(AND($AX$16=\"Level 3\",T_DataComboFile[[#This Row],[Econ3]] = \"Goods and services\"),IF(T_DataComboFile[[#This Row],[Econ4]] = T_DataComboFile[[#This Row],[Econ3]],1,0),IF(AND($AX$16=\"Level 4\",T_DataComboFile[[#This Row],[Econ4]] = \"Goods and services\"),0,1))","v":1},{"$f":"T_DataComboFile[[#This Row],[2016/17_Source]]*T_DataComboFile[[#This Row],[G&S reporting level indicator]]","v":18515},{"$f":"T_DataComboFile[[#This Row],[2017/18_Source]]*T_DataComboFile[[#This Row],[G&S reporting level indicator]]","v":18064},{"$f":"T_DataComboFile[[#This Row],[2018/19_Source]]*T_DataComboFile[[#This Row],[G&S reporting level indicator]]","v":19597},{"$f":"T_DataComboFile[[#This Row],[2019/20 Main appropriation_Source]]*T_DataComboFile[[#This Row],[G&S reporting level indicator]]","v":16253},{"$f":"T_DataComboFile[[#This Row],[2019/20 Adjusted appropriation_Source]]*T_DataComboFile[[#This Row],[G&S reporting level indicator]]","v":16083},{"$f":"T_DataComboFile[[#This Row],[2019/20 Revised estimate_Source]]*T_DataComboFile[[#This Row],[G&S reporting level indicator]]","v":13383},{"$f":"T_DataComboFile[[#This Row],[2019/20 Preliminary outcome_Source]]*T_DataComboFile[[#This Row],[G&S reporting level indicator]]","v":13383},{"$f":"T_DataComboFile[[#This Row],[2020/21 Original_Source]]*T_DataComboFile[[#This Row],[G&S reporting level indicator]]","v":14187},{"$f":"T_DataComboFile[[#This Row],[2020/21 SAB_Source]]*T_DataComboFile[[#This Row],[G&S reporting level indicator]]","v":14187},{"$f":"T_DataComboFile[[#This Row],[2020/21 Baseline_Source]]*T_DataComboFile[[#This Row],[G&S reporting level indicator]]","v":13383},{"$f":"T_DataComboFile[[#This Row],[2021/22 Baseline_Source]]*T_DataComboFile[[#This Row],[G&S reporting level indicator]]","v":13873},{"$f":"T_DataComboFile[[#This Row],[2022/23 Baseline_Source]]*T_DataComboFile[[#This Row],[G&S reporting level indicator]]","v":14492},{"$f":"T_DataComboFile[[#This Row],[2023/24 Baseline_Source]]*T_DataComboFile[[#This Row],[G&S reporting level indicator]]","v":15130},null,null,null,null,null,null,{"$f":"T_DataComboFile[[#This Row],[2021/22 Baseline]]+T_DataComboFile[[#This Row],[2021/22 Reduction]]+T_DataComboFile[[#This Row],[2021/22 Increase]]","v":13873},{"$f":"T_DataComboFile[[#This Row],[2022/23 Baseline]]+T_DataComboFile[[#This Row],[2022/23 Reduction]]+T_DataComboFile[[#This Row],[2022/23 Increase]]","v":14492},{"$f":"T_DataComboFile[[#This Row],[2023/24 Baseline]]+T_DataComboFile[[#This Row],[2023/24 Reduction]]+T_DataComboFile[[#This Row],[2023/24 Increase]]","v":15130}]
["NAT|Non-transfer item","36|Social contributions","2021_22","ENE2020",36,1,1,17176,70068,36,1,1,17176,"070068","36|01|01",1,1,1,2,2,"01|01|01|02|02","National","Small Business Development","Administration","Ministry","Non-transfer item","Current","Current payments","Compensation of employees","Social contributions","Social contributions","Economic development","Industrialisation and exports","NAT",1894,1807,1839,2620,2520,2520,2520,2777,2777,2620,2716,2776,2898,1,null,{"$f":"IF(T_DataComboFile[[#This Row],[G&S reporting level indicator]]=1,$AX$16,\"Not applicable\")","v":"Level 3"},{"$f":"IF(AND($AX$16=\"Level 3\",T_DataComboFile[[#This Row],[Econ3]] = \"Goods and services\"),IF(T_DataComboFile[[#This Row],[Econ4]] = T_DataComboFile[[#This Row],[Econ3]],1,0),IF(AND($AX$16=\"Level 4\",T_DataComboFile[[#This Row],[Econ4]] = \"Goods and services\"),0,1))","v":1},{"$f":"T_DataComboFile[[#This Row],[2016/17_Source]]*T_DataComboFile[[#This Row],[G&S reporting level indicator]]","v":1894},{"$f":"T_DataComboFile[[#This Row],[2017/18_Source]]*T_DataComboFile[[#This Row],[G&S reporting level indicator]]","v":1807},{"$f":"T_DataComboFile[[#This Row],[2018/19_Source]]*T_DataComboFile[[#This Row],[G&S reporting level indicator]]","v":1839},{"$f":"T_DataComboFile[[#This Row],[2019/20 Main appropriation_Source]]*T_DataComboFile[[#This Row],[G&S reporting level indicator]]","v":2620},{"$f":"T_DataComboFile[[#This Row],[2019/20 Adjusted appropriation_Source]]*T_DataComboFile[[#This Row],[G&S reporting level indicator]]","v":2520},{"$f":"T_DataComboFile[[#This Row],[2019/20 Revised estimate_Source]]*T_DataComboFile[[#This Row],[G&S reporting level indicator]]","v":2520},{"$f":"T_DataComboFile[[#This Row],[2019/20 Preliminary outcome_Source]]*T_DataComboFile[[#This Row],[G&S reporting level indicator]]","v":2520},{"$f":"T_DataComboFile[[#This Row],[2020/21 Original_Source]]*T_DataComboFile[[#This Row],[G&S reporting level indicator]]","v":2777},{"$f":"T_DataComboFile[[#This Row],[2020/21 SAB_Source]]*T_DataComboFile[[#This Row],[G&S reporting level indicator]]","v":2777},{"$f":"T_DataComboFile[[#This Row],[2020/21 Baseline_Source]]*T_DataComboFile[[#This Row],[G&S reporting level indicator]]","v":2620},{"$f":"T_DataComboFile[[#This Row],[2021/22 Baseline_Source]]*T_DataComboFile[[#This Row],[G&S reporting level indicator]]","v":2716},{"$f":"T_DataComboFile[[#This Row],[2022/23 Baseline_Source]]*T_DataComboFile[[#This Row],[G&S reporting level indicator]]","v":2776},{"$f":"T_DataComboFile[[#This Row],[2023/24 Baseline_Source]]*T_DataComboFile[[#This Row],[G&S reporting level indicator]]","v":2898},null,null,null,null,null,null,{"$f":"T_DataComboFile[[#This Row],[2021/22 Baseline]]+T_DataComboFile[[#This Row],[2021/22 Reduction]]+T_DataComboFile[[#This Row],[2021/22 Increase]]","v":2716},{"$f":"T_DataComboFile[[#This Row],[2022/23 Baseline]]+T_DataComboFile[[#This Row],[2022/23 Reduction]]+T_DataComboFile[[#This Row],[2022/23 Increase]]","v":2776},{"$f":"T_DataComboFile[[#This Row],[2023/24 Baseline]]+T_DataComboFile[[#This Row],[2023/24 Reduction]]+T_DataComboFile[[#This Row],[2023/24 Increase]]","v":2898}]
[null,null,"2021_22","ENE2020",36,1,1,null,70069,36,1,1,null,"070069","36|01|01",1,1,2,2,2,"01|01|02|02|02","National","Small Business Development","Administration","Ministry","Non-transfer item","Current","Current payments","Goods and services","Goods and services","Goods and services","Economic development","Industrialisation and exports","NAT",9132,8990,10855,7467,7857,7857,7857,8426,3426,8426,8879,9247,9654,1,null,{"$f":"IF(T_DataComboFile[[#This Row],[G&S reporting level indicator]]=1,$AX$16,\"Not applicable\")","v":"Level 3"},{"$f":"IF(AND($AX$16=\"Level 3\",T_DataComboFile[[#This Row],[Econ3]] = \"Goods and services\"),IF(T_DataComboFile[[#This Row],[Econ4]] = T_DataComboFile[[#This Row],[Econ3]],1,0),IF(AND($AX$16=\"Level 4\",T_DataComboFile[[#This Row],[Econ4]] = \"Goods and services\"),0,1))","v":1},{"$f":"T_DataComboFile[[#This Row],[2016/17_Source]]*T_DataComboFile[[#This Row],[G&S reporting level indicator]]","v":9132},{"$f":"T_DataComboFile[[#This Row],[2017/18_Source]]*T_DataComboFile[[#This Row],[G&S reporting level indicator]]","v":8990},{"$f":"T_DataComboFile[[#This Row],[2018/19_Source]]*T_DataComboFile[[#This Row],[G&S reporting level indicator]]","v":10855},{"$f":"T_DataComboFile[[#This Row],[2019/20 Main appropriation_Source]]*T_DataComboFile[[#This Row],[G&S reporting level indicator]]","v":7467},{"$f":"T_DataComboFile[[#This Row],[2019/20 Adjusted appropriation_Source]]*T_DataComboFile[[#This Row],[G&S reporting level indicator]]","v":7857},{"$f":"T_DataComboFile[[#This Row],[2019/20 Revised estimate_Source]]*T_DataComboFile[[#This Row],[G&S reporting level indicator]]","v":7857},{"$f":"T_DataComboFile[[#This Row],[2019/20 Preliminary outcome_Source]]*T_DataComboFile[[#This Row],[G&S reporting level indicator]]","v":7857},{"$f":"T_DataComboFile[[#This Row],[2020/21 Original_Source]]*T_DataComboFile[[#This Row],[G&S reporting level indicator]]","v":8426},{"$f":"T_DataComboFile[[#This Row],[2020/21 SAB_Source]]*T_DataComboFile[[#This Row],[G&S reporting level indicator]]","v":3426},{"$f":"T_DataComboFile[[#This Row],[2020/21 Baseline_Source]]*T_DataComboFile[[#This Row],[G&S reporting level indicator]]","v":8426},{"$f":"T_DataComboFile[[#This Row],[2021/22 Baseline_Source]]*T_DataComboFile[[#This Row],[G&S reporting level indicator]]","v":8879},{"$f":"T_DataComboFile[[#This Row],[2022/23 Baseline_Source]]*T_DataComboFile[[#This Row],[G&S reporting level indicator]]","v":9247},{"$f":"T_DataComboFile[[#This Row],[2023/24 Baseline_Source]]*T_DataComboFile[[#This Row],[G&S reporting level indicator]]","v":9654},null,null,null,null,null,null,{"$f":"T_DataComboFile[[#This Row],[2021/22 Baseline]]+T_DataComboFile[[#This Row],[2021/22 Reduction]]+T_DataComboFile[[#This Row],[2021/22 Increase]]","v":8879},{"$f":"T_DataComboFile[[#This Row],[2022/23 Baseline]]+T_DataComboFile[[#This Row],[2022/23 Reduction]]+T_DataComboFile[[#This Row],[2022/23 Increase]]","v":9247},{"$f":"T_DataComboFile[[#This Row],[2023/24 Baseline]]+T_DataComboFile[[#This Row],[2023/24 Reduction]]+T_DataComboFile[[#This Row],[2023/24 Increase]]","v":9654}]
["NAT|Non-transfer item","36|Administrative fees","2021_22","ENE2020",36,1,1,17177,70070,36,1,1,17177,"070070","36|01|01",1,1,2,3,3,"01|01|02|03|03","National","Small Business Development","Administration","Ministry","Non-transfer item","Current","Current payments","Goods and services","Administrative fees","Administrative fees","Economic development","Industrialisation and exports","NAT",276,294,337,246,246,246,246,368,368,368,386,406,424,1,null,{"$f":"IF(T_DataComboFile[[#This Row],[G&S reporting level indicator]]=1,$AX$16,\"Not applicable\")","v":"Not applicable"},{"$f":"IF(AND($AX$16=\"Level 3\",T_DataComboFile[[#This Row],[Econ3]] = \"Goods and services\"),IF(T_DataComboFile[[#This Row],[Econ4]] = T_DataComboFile[[#This Row],[Econ3]],1,0),IF(AND($AX$16=\"Level 4\",T_DataComboFile[[#This Row],[Econ4]] = \"Goods and services\"),0,1))","v":0},{"$f":"T_DataComboFile[[#This Row],[2016/17_Source]]*T_DataComboFile[[#This Row],[G&S reporting level indicator]]","v":0},{"$f":"T_DataComboFile[[#This Row],[2017/18_Source]]*T_DataComboFile[[#This Row],[G&S reporting level indicator]]","v":0},{"$f":"T_DataComboFile[[#This Row],[2018/19_Source]]*T_DataComboFile[[#This Row],[G&S reporting level indicator]]","v":0},{"$f":"T_DataComboFile[[#This Row],[2019/20 Main appropriation_Source]]*T_DataComboFile[[#This Row],[G&S reporting level indicator]]","v":0},{"$f":"T_DataComboFile[[#This Row],[2019/20 Adjusted appropriation_Source]]*T_DataComboFile[[#This Row],[G&S reporting level indicator]]","v":0},{"$f":"T_DataComboFile[[#This Row],[2019/20 Revised estimate_Source]]*T_DataComboFile[[#This Row],[G&S reporting level indicator]]","v":0},{"$f":"T_DataComboFile[[#This Row],[2019/20 Preliminary outcome_Source]]*T_DataComboFile[[#This Row],[G&S reporting level indicator]]","v":0},{"$f":"T_DataComboFile[[#This Row],[2020/21 Original_Source]]*T_DataComboFile[[#This Row],[G&S reporting level indicator]]","v":0},{"$f":"T_DataComboFile[[#This Row],[2020/21 SAB_Source]]*T_DataComboFile[[#This Row],[G&S reporting level indicator]]","v":0},{"$f":"T_DataComboFile[[#This Row],[2020/21 Baseline_Source]]*T_DataComboFile[[#This Row],[G&S reporting level indicator]]","v":0},{"$f":"T_DataComboFile[[#This Row],[2021/22 Baseline_Source]]*T_DataComboFile[[#This Row],[G&S reporting level indicator]]","v":0},{"$f":"T_DataComboFile[[#This Row],[2022/23 Baseline_Source]]*T_DataComboFile[[#This Row],[G&S reporting level indicator]]","v":0},{"$f":"T_DataComboFile[[#This Row],[2023/24 Baseline_Source]]*T_DataComboFile[[#This Row],[G&S reporting level indicator]]","v":0},null,null,null,null,null,null,{"$f":"T_DataComboFile[[#This Row],[2021/22 Baseline]]+T_DataComboFile[[#This Row],[2021/22 Reduction]]+T_DataComboFile[[#This Row],[2021/22 Increase]]","v":0},{"$f":"T_DataComboFile[[#This Row],[2022/23 Baseline]]+T_DataComboFile[[#This Row],[2022/23 Reduction]]+T_DataComboFile[[#This Row],[2022/23 Increase]]","v":0},{"$f":"T_DataComboFile[[#This Row],[2023/24 Baseline]]+T_DataComboFile[[#This Row],[2023/24 Reduction]]+T_DataComboFile[[#This Row],[2023/24 Increase]]","v":0}]
[null,null,"2021_22","ENE2020",36,1,1,null,70071,36,1,1,null,"070071","36|01|01",1,1,2,4,4,"01|01|02|04|04","National","Small Business Development","Administration","Ministry",null,"Current","Current payments","Goods and services","Advertising","Advertising",null,null,null,0,0,0,0,0,0,0,0,0,0,0,0,0,0,null,{"$f":"IF(T_DataComboFile[[#This Row],[G&S reporting level indicator]]=1,$AX$16,\"Not applicable\")","v":"Not applicable"},{"$f":"IF(AND($AX$16=\"Level 3\",T_DataComboFile[[#This Row],[Econ3]] = \"Goods and services\"),IF(T_DataComboFile[[#This Row],[Econ4]] = T_DataComboFile[[#This Row],[Econ3]],1,0),IF(AND($AX$16=\"Level 4\",T_DataComboFile[[#This Row],[Econ4]] = \"Goods and services\"),0,1))","v":0},{"$f":"T_DataComboFile[[#This Row],[2016/17_Source]]*T_DataComboFile[[#This Row],[G&S reporting level indicator]]","v":0},{"$f":"T_DataComboFile[[#This Row],[2017/18_Source]]*T_DataComboFile[[#This Row],[G&S reporting level indicator]]","v":0},{"$f":"T_DataComboFile[[#This Row],[2018/19_Source]]*T_DataComboFile[[#This Row],[G&S reporting level indicator]]","v":0},{"$f":"T_DataComboFile[[#This Row],[2019/20 Main appropriation_Source]]*T_DataComboFile[[#This Row],[G&S reporting level indicator]]","v":0},{"$f":"T_DataComboFile[[#This Row],[2019/20 Adjusted appropriation_Source]]*T_DataComboFile[[#This Row],[G&S reporting level indicator]]","v":0},{"$f":"T_DataComboFile[[#This Row],[2019/20 Revised estimate_Source]]*T_DataComboFile[[#This Row],[G&S reporting level indicator]]","v":0},{"$f":"T_DataComboFile[[#This Row],[2019/20 Preliminary outcome_Source]]*T_DataComboFile[[#This Row],[G&S reporting level indicator]]","v":0},{"$f":"T_DataComboFile[[#This Row],[2020/21 Original_Source]]*T_DataComboFile[[#This Row],[G&S reporting level indicator]]","v":0},{"$f":"T_DataComboFile[[#This Row],[2020/21 SAB_Source]]*T_DataComboFile[[#This Row],[G&S reporting level indicator]]","v":0},{"$f":"T_DataComboFile[[#This Row],[2020/21 Baseline_Source]]*T_DataComboFile[[#This Row],[G&S reporting level indicator]]","v":0},{"$f":"T_DataComboFile[[#This Row],[2021/22 Baseline_Source]]*T_DataComboFile[[#This Row],[G&S reporting level indicator]]","v":0},{"$f":"T_DataComboFile[[#This Row],[2022/23 Baseline_Source]]*T_DataComboFile[[#This Row],[G&S reporting level indicator]]","v":0},{"$f":"T_DataComboFile[[#This Row],[2023/24 Baseline_Source]]*T_DataComboFile[[#This Row],[G&S reporting level indicator]]","v":0},null,null,null,null,null,null,{"$f":"T_DataComboFile[[#This Row],[2021/22 Baseline]]+T_DataComboFile[[#This Row],[2021/22 Reduction]]+T_DataComboFile[[#This Row],[2021/22 Increase]]","v":0},{"$f":"T_DataComboFile[[#This Row],[2022/23 Baseline]]+T_DataComboFile[[#This Row],[2022/23 Reduction]]+T_DataComboFile[[#This Row],[2022/23 Increase]]","v":0},{"$f":"T_DataComboFile[[#This Row],[2023/24 Baseline]]+T_DataComboFile[[#This Row],[2023/24 Reduction]]+T_DataComboFile[[#This Row],[2023/24 Increase]]","v":0}]
["NAT|Non-transfer item","36|Minor assets","2021_22","ENE2020",36,1,1,17178,70072,36,1,1,17178,"070072","36|01|01",1,1,2,5,5,"01|01|02|05|05","National","Small Business Development","Administration","Ministry","Non-transfer item","Current","Current payments","Goods and services","Minor assets","Minor assets","Economic development","Industrialisation and exports","NAT",17,6,0,0,0,0,0,0,0,0,0,0,0,1,null,{"$f":"IF(T_DataComboFile[[#This Row],[G&S reporting level indicator]]=1,$AX$16,\"Not applicable\")","v":"Not applicable"},{"$f":"IF(AND($AX$16=\"Level 3\",T_DataComboFile[[#This Row],[Econ3]] = \"Goods and services\"),IF(T_DataComboFile[[#This Row],[Econ4]] = T_DataComboFile[[#This Row],[Econ3]],1,0),IF(AND($AX$16=\"Level 4\",T_DataComboFile[[#This Row],[Econ4]] = \"Goods and services\"),0,1))","v":0},{"$f":"T_DataComboFile[[#This Row],[2016/17_Source]]*T_DataComboFile[[#This Row],[G&S reporting level indicator]]","v":0},{"$f":"T_DataComboFile[[#This Row],[2017/18_Source]]*T_DataComboFile[[#This Row],[G&S reporting level indicator]]","v":0},{"$f":"T_DataComboFile[[#This Row],[2018/19_Source]]*T_DataComboFile[[#This Row],[G&S reporting level indicator]]","v":0},{"$f":"T_DataComboFile[[#This Row],[2019/20 Main appropriation_Source]]*T_DataComboFile[[#This Row],[G&S reporting level indicator]]","v":0},{"$f":"T_DataComboFile[[#This Row],[2019/20 Adjusted appropriation_Source]]*T_DataComboFile[[#This Row],[G&S reporting level indicator]]","v":0},{"$f":"T_DataComboFile[[#This Row],[2019/20 Revised estimate_Source]]*T_DataComboFile[[#This Row],[G&S reporting level indicator]]","v":0},{"$f":"T_DataComboFile[[#This Row],[2019/20 Preliminary outcome_Source]]*T_DataComboFile[[#This Row],[G&S reporting level indicator]]","v":0},{"$f":"T_DataComboFile[[#This Row],[2020/21 Original_Source]]*T_DataComboFile[[#This Row],[G&S reporting level indicator]]","v":0},{"$f":"T_DataComboFile[[#This Row],[2020/21 SAB_Source]]*T_DataComboFile[[#This Row],[G&S reporting level indicator]]","v":0},{"$f":"T_DataComboFile[[#This Row],[2020/21 Baseline_Source]]*T_DataComboFile[[#This Row],[G&S reporting level indicator]]","v":0},{"$f":"T_DataComboFile[[#This Row],[2021/22 Baseline_Source]]*T_DataComboFile[[#This Row],[G&S reporting level indicator]]","v":0},{"$f":"T_DataComboFile[[#This Row],[2022/23 Baseline_Source]]*T_DataComboFile[[#This Row],[G&S reporting level indicator]]","v":0},{"$f":"T_DataComboFile[[#This Row],[2023/24 Baseline_Source]]*T_DataComboFile[[#This Row],[G&S reporting level indicator]]","v":0},null,null,null,null,null,null,{"$f":"T_DataComboFile[[#This Row],[2021/22 Baseline]]+T_DataComboFile[[#This Row],[2021/22 Reduction]]+T_DataComboFile[[#This Row],[2021/22 Increase]]","v":0},{"$f":"T_DataComboFile[[#This Row],[2022/23 Baseline]]+T_DataComboFile[[#This Row],[2022/23 Reduction]]+T_DataComboFile[[#This Row],[2022/23 Increase]]","v":0},{"$f":"T_DataComboFile[[#This Row],[2023/24 Baseline]]+T_DataComboFile[[#This Row],[2023/24 Reduction]]+T_DataComboFile[[#This Row],[2023/24 Increase]]","v":0}]
[null,null,"2021_22","ENE2020",36,1,1,null,70073,36,1,1,null,"070073","36|01|01",1,1,2,6,6,"01|01|02|06|06","National","Small Business Development","Administration","Ministry",null,"Current","Current payments","Goods and services","Audit costs: External","Audit costs: External",null,null,null,0,0,0,0,0,0,0,0,0,0,0,0,0,0,null,{"$f":"IF(T_DataComboFile[[#This Row],[G&S reporting level indicator]]=1,$AX$16,\"Not applicable\")","v":"Not applicable"},{"$f":"IF(AND($AX$16=\"Level 3\",T_DataComboFile[[#This Row],[Econ3]] = \"Goods and services\"),IF(T_DataComboFile[[#This Row],[Econ4]] = T_DataComboFile[[#This Row],[Econ3]],1,0),IF(AND($AX$16=\"Level 4\",T_DataComboFile[[#This Row],[Econ4]] = \"Goods and services\"),0,1))","v":0},{"$f":"T_DataComboFile[[#This Row],[2016/17_Source]]*T_DataComboFile[[#This Row],[G&S reporting level indicator]]","v":0},{"$f":"T_DataComboFile[[#This Row],[2017/18_Source]]*T_DataComboFile[[#This Row],[G&S reporting level indicator]]","v":0},{"$f":"T_DataComboFile[[#This Row],[2018/19_Source]]*T_DataComboFile[[#This Row],[G&S reporting level indicator]]","v":0},{"$f":"T_DataComboFile[[#This Row],[2019/20 Main appropriation_Source]]*T_DataComboFile[[#This Row],[G&S reporting level indicator]]","v":0},{"$f":"T_DataComboFile[[#This Row],[2019/20 Adjusted appropriation_Source]]*T_DataComboFile[[#This Row],[G&S reporting level indicator]]","v":0},{"$f":"T_DataComboFile[[#This Row],[2019/20 Revised estimate_Source]]*T_DataComboFile[[#This Row],[G&S reporting level indicator]]","v":0},{"$f":"T_DataComboFile[[#This Row],[2019/20 Preliminary outcome_Source]]*T_DataComboFile[[#This Row],[G&S reporting level indicator]]","v":0},{"$f":"T_DataComboFile[[#This Row],[2020/21 Original_Source]]*T_DataComboFile[[#This Row],[G&S reporting level indicator]]","v":0},{"$f":"T_DataComboFile[[#This Row],[2020/21 SAB_Source]]*T_DataComboFile[[#This Row],[G&S reporting level indicator]]","v":0},{"$f":"T_DataComboFile[[#This Row],[2020/21 Baseline_Source]]*T_DataComboFile[[#This Row],[G&S reporting level indicator]]","v":0},{"$f":"T_DataComboFile[[#This Row],[2021/22 Baseline_Source]]*T_DataComboFile[[#This Row],[G&S reporting level indicator]]","v":0},{"$f":"T_DataComboFile[[#This Row],[2022/23 Baseline_Source]]*T_DataComboFile[[#This Row],[G&S reporting level indicator]]","v":0},{"$f":"T_DataComboFile[[#This Row],[2023/24 Baseline_Source]]*T_DataComboFile[[#This Row],[G&S reporting level indicator]]","v":0},null,null,null,null,null,null,{"$f":"T_DataComboFile[[#This Row],[2021/22 Baseline]]+T_DataComboFile[[#This Row],[2021/22 Reduction]]+T_DataComboFile[[#This Row],[2021/22 Increase]]","v":0},{"$f":"T_DataComboFile[[#This Row],[2022/23 Baseline]]+T_DataComboFile[[#This Row],[2022/23 Reduction]]+T_DataComboFile[[#This Row],[2022/23 Increase]]","v":0},{"$f":"T_DataComboFile[[#This Row],[2023/24 Baseline]]+T_DataComboFile[[#This Row],[2023/24 Reduction]]+T_DataComboFile[[#This Row],[2023/24 Increase]]","v":0}]
[null,null,"2021_22","ENE2020",36,1,1,null,70074,36,1,1,null,"070074","36|01|01",1,1,2,7,7,"01|01|02|07|07","National","Small Business Development","Administration","Ministry",null,"Current","Current payments","Goods and services","Bursaries: Employees","Bursaries: Employees",null,null,null,0,0,0,0,0,0,0,0,0,0,0,0,0,0,null,{"$f":"IF(T_DataComboFile[[#This Row],[G&S reporting level indicator]]=1,$AX$16,\"Not applicable\")","v":"Not applicable"},{"$f":"IF(AND($AX$16=\"Level 3\",T_DataComboFile[[#This Row],[Econ3]] = \"Goods and services\"),IF(T_DataComboFile[[#This Row],[Econ4]] = T_DataComboFile[[#This Row],[Econ3]],1,0),IF(AND($AX$16=\"Level 4\",T_DataComboFile[[#This Row],[Econ4]] = \"Goods and services\"),0,1))","v":0},{"$f":"T_DataComboFile[[#This Row],[2016/17_Source]]*T_DataComboFile[[#This Row],[G&S reporting level indicator]]","v":0},{"$f":"T_DataComboFile[[#This Row],[2017/18_Source]]*T_DataComboFile[[#This Row],[G&S reporting level indicator]]","v":0},{"$f":"T_DataComboFile[[#This Row],[2018/19_Source]]*T_DataComboFile[[#This Row],[G&S reporting level indicator]]","v":0},{"$f":"T_DataComboFile[[#This Row],[2019/20 Main appropriation_Source]]*T_DataComboFile[[#This Row],[G&S reporting level indicator]]","v":0},{"$f":"T_DataComboFile[[#This Row],[2019/20 Adjusted appropriation_Source]]*T_DataComboFile[[#This Row],[G&S reporting level indicator]]","v":0},{"$f":"T_DataComboFile[[#This Row],[2019/20 Revised estimate_Source]]*T_DataComboFile[[#This Row],[G&S reporting level indicator]]","v":0},{"$f":"T_DataComboFile[[#This Row],[2019/20 Preliminary outcome_Source]]*T_DataComboFile[[#This Row],[G&S reporting level indicator]]","v":0},{"$f":"T_DataComboFile[[#This Row],[2020/21 Original_Source]]*T_DataComboFile[[#This Row],[G&S reporting level indicator]]","v":0},{"$f":"T_DataComboFile[[#This Row],[2020/21 SAB_Source]]*T_DataComboFile[[#This Row],[G&S reporting level indicator]]","v":0},{"$f":"T_DataComboFile[[#This Row],[2020/21 Baseline_Source]]*T_DataComboFile[[#This Row],[G&S reporting level indicator]]","v":0},{"$f":"T_DataComboFile[[#This Row],[2021/22 Baseline_Source]]*T_DataComboFile[[#This Row],[G&S reporting level indicator]]","v":0},{"$f":"T_DataComboFile[[#This Row],[2022/23 Baseline_Source]]*T_DataComboFile[[#This Row],[G&S reporting level indicator]]","v":0},{"$f":"T_DataComboFile[[#This Row],[2023/24 Baseline_Source]]*T_DataComboFile[[#This Row],[G&S reporting level indicator]]","v":0},null,null,null,null,null,null,{"$f":"T_DataComboFile[[#This Row],[2021/22 Baseline]]+T_DataComboFile[[#This Row],[2021/22 Reduction]]+T_DataComboFile[[#This Row],[2021/22 Increase]]","v":0},{"$f":"T_DataComboFile[[#This Row],[2022/23 Baseline]]+T_DataComboFile[[#This Row],[2022/23 Reduction]]+T_DataComboFile[[#This Row],[2022/23 Increase]]","v":0},{"$f":"T_DataComboFile[[#This Row],[2023/24 Baseline]]+T_DataComboFile[[#This Row],[2023/24 Reduction]]+T_DataComboFile[[#This Row],[2023/24 Increase]]","v":0}]
["NAT|Non-transfer item","36|Catering: Departmental activities","2021_22","ENE2020",36,1,1,17179,70075,36,1,1,17179,"070075","36|01|01",1,1,2,8,8,"01|01|02|08|08","National","Small Business Development","Administration","Ministry","Non-transfer item","Current","Current payments","Goods and services","Catering: Departmental activities","Catering: Departmental activities","Economic development","Industrialisation and exports","NAT",4,175,30,77,77,77,77,54,54,54,60,68,71,1,null,{"$f":"IF(T_DataComboFile[[#This Row],[G&S reporting level indicator]]=1,$AX$16,\"Not applicable\")","v":"Not applicable"},{"$f":"IF(AND($AX$16=\"Level 3\",T_DataComboFile[[#This Row],[Econ3]] = \"Goods and services\"),IF(T_DataComboFile[[#This Row],[Econ4]] = T_DataComboFile[[#This Row],[Econ3]],1,0),IF(AND($AX$16=\"Level 4\",T_DataComboFile[[#This Row],[Econ4]] = \"Goods and services\"),0,1))","v":0},{"$f":"T_DataComboFile[[#This Row],[2016/17_Source]]*T_DataComboFile[[#This Row],[G&S reporting level indicator]]","v":0},{"$f":"T_DataComboFile[[#This Row],[2017/18_Source]]*T_DataComboFile[[#This Row],[G&S reporting level indicator]]","v":0},{"$f":"T_DataComboFile[[#This Row],[2018/19_Source]]*T_DataComboFile[[#This Row],[G&S reporting level indicator]]","v":0},{"$f":"T_DataComboFile[[#This Row],[2019/20 Main appropriation_Source]]*T_DataComboFile[[#This Row],[G&S reporting level indicator]]","v":0},{"$f":"T_DataComboFile[[#This Row],[2019/20 Adjusted appropriation_Source]]*T_DataComboFile[[#This Row],[G&S reporting level indicator]]","v":0},{"$f":"T_DataComboFile[[#This Row],[2019/20 Revised estimate_Source]]*T_DataComboFile[[#This Row],[G&S reporting level indicator]]","v":0},{"$f":"T_DataComboFile[[#This Row],[2019/20 Preliminary outcome_Source]]*T_DataComboFile[[#This Row],[G&S reporting level indicator]]","v":0},{"$f":"T_DataComboFile[[#This Row],[2020/21 Original_Source]]*T_DataComboFile[[#This Row],[G&S reporting level indicator]]","v":0},{"$f":"T_DataComboFile[[#This Row],[2020/21 SAB_Source]]*T_DataComboFile[[#This Row],[G&S reporting level indicator]]","v":0},{"$f":"T_DataComboFile[[#This Row],[2020/21 Baseline_Source]]*T_DataComboFile[[#This Row],[G&S reporting level indicator]]","v":0},{"$f":"T_DataComboFile[[#This Row],[2021/22 Baseline_Source]]*T_DataComboFile[[#This Row],[G&S reporting level indicator]]","v":0},{"$f":"T_DataComboFile[[#This Row],[2022/23 Baseline_Source]]*T_DataComboFile[[#This Row],[G&S reporting level indicator]]","v":0},{"$f":"T_DataComboFile[[#This Row],[2023/24 Baseline_Source]]*T_DataComboFile[[#This Row],[G&S reporting level indicator]]","v":0},null,null,null,null,null,null,{"$f":"T_DataComboFile[[#This Row],[2021/22 Baseline]]+T_DataComboFile[[#This Row],[2021/22 Reduction]]+T_DataComboFile[[#This Row],[2021/22 Increase]]","v":0},{"$f":"T_DataComboFile[[#This Row],[2022/23 Baseline]]+T_DataComboFile[[#This Row],[2022/23 Reduction]]+T_DataComboFile[[#This Row],[2022/23 Increase]]","v":0},{"$f":"T_DataComboFile[[#This Row],[2023/24 Baseline]]+T_DataComboFile[[#This Row],[2023/24 Reduction]]+T_DataComboFile[[#This Row],[2023/24 Increase]]","v":0}]
["NAT|Non-transfer item","36|Communication (G&S)","2021_22","ENE2020",36,1,1,17180,70076,36,1,1,17180,"070076","36|01|01",1,1,2,9,9,"01|01|02|09|09","National","Small Business Development","Administration","Ministry","Non-transfer item","Current","Current payments","Goods and services","Communication (G&S)","Communication (G&S)","Economic development","Industrialisation and exports","NAT",482,153,159,185,185,185,185,178,178,178,193,202,211,1,null,{"$f":"IF(T_DataComboFile[[#This Row],[G&S reporting level indicator]]=1,$AX$16,\"Not applicable\")","v":"Not applicable"},{"$f":"IF(AND($AX$16=\"Level 3\",T_DataComboFile[[#This Row],[Econ3]] = \"Goods and services\"),IF(T_DataComboFile[[#This Row],[Econ4]] = T_DataComboFile[[#This Row],[Econ3]],1,0),IF(AND($AX$16=\"Level 4\",T_DataComboFile[[#This Row],[Econ4]] = \"Goods and services\"),0,1))","v":0},{"$f":"T_DataComboFile[[#This Row],[2016/17_Source]]*T_DataComboFile[[#This Row],[G&S reporting level indicator]]","v":0},{"$f":"T_DataComboFile[[#This Row],[2017/18_Source]]*T_DataComboFile[[#This Row],[G&S reporting level indicator]]","v":0},{"$f":"T_DataComboFile[[#This Row],[2018/19_Source]]*T_DataComboFile[[#This Row],[G&S reporting level indicator]]","v":0},{"$f":"T_DataComboFile[[#This Row],[2019/20 Main appropriation_Source]]*T_DataComboFile[[#This Row],[G&S reporting level indicator]]","v":0},{"$f":"T_DataComboFile[[#This Row],[2019/20 Adjusted appropriation_Source]]*T_DataComboFile[[#This Row],[G&S reporting level indicator]]","v":0},{"$f":"T_DataComboFile[[#This Row],[2019/20 Revised estimate_Source]]*T_DataComboFile[[#This Row],[G&S reporting level indicator]]","v":0},{"$f":"T_DataComboFile[[#This Row],[2019/20 Preliminary outcome_Source]]*T_DataComboFile[[#This Row],[G&S reporting level indicator]]","v":0},{"$f":"T_DataComboFile[[#This Row],[2020/21 Original_Source]]*T_DataComboFile[[#This Row],[G&S reporting level indicator]]","v":0},{"$f":"T_DataComboFile[[#This Row],[2020/21 SAB_Source]]*T_DataComboFile[[#This Row],[G&S reporting level indicator]]","v":0},{"$f":"T_DataComboFile[[#This Row],[2020/21 Baseline_Source]]*T_DataComboFile[[#This Row],[G&S reporting level indicator]]","v":0},{"$f":"T_DataComboFile[[#This Row],[2021/22 Baseline_Source]]*T_DataComboFile[[#This Row],[G&S reporting level indicator]]","v":0},{"$f":"T_DataComboFile[[#This Row],[2022/23 Baseline_Source]]*T_DataComboFile[[#This Row],[G&S reporting level indicator]]","v":0},{"$f":"T_DataComboFile[[#This Row],[2023/24 Baseline_Source]]*T_DataComboFile[[#This Row],[G&S reporting level indicator]]","v":0},null,null,null,null,null,null,{"$f":"T_DataComboFile[[#This Row],[2021/22 Baseline]]+T_DataComboFile[[#This Row],[2021/22 Reduction]]+T_DataComboFile[[#This Row],[2021/22 Increase]]","v":0},{"$f":"T_DataComboFile[[#This Row],[2022/23 Baseline]]+T_DataComboFile[[#This Row],[2022/23 Reduction]]+T_DataComboFile[[#This Row],[2022/23 Increase]]","v":0},{"$f":"T_DataComboFile[[#This Row],[2023/24 Baseline]]+T_DataComboFile[[#This Row],[2023/24 Reduction]]+T_DataComboFile[[#This Row],[2023/24 Increase]]","v":0}]
[null,null,"2021_22","ENE2020",36,1,1,null,70077,36,1,1,null,"070077","36|01|01",1,1,2,10,10,"01|01|02|10|10","National","Small Business Development","Administration","Ministry",null,"Current","Current payments","Goods and services","Computer services","Computer services",null,null,null,0,0,0,0,0,0,0,0,0,0,0,0,0,0,null,{"$f":"IF(T_DataComboFile[[#This Row],[G&S reporting level indicator]]=1,$AX$16,\"Not applicable\")","v":"Not applicable"},{"$f":"IF(AND($AX$16=\"Level 3\",T_DataComboFile[[#This Row],[Econ3]] = \"Goods and services\"),IF(T_DataComboFile[[#This Row],[Econ4]] = T_DataComboFile[[#This Row],[Econ3]],1,0),IF(AND($AX$16=\"Level 4\",T_DataComboFile[[#This Row],[Econ4]] = \"Goods and services\"),0,1))","v":0},{"$f":"T_DataComboFile[[#This Row],[2016/17_Source]]*T_DataComboFile[[#This Row],[G&S reporting level indicator]]","v":0},{"$f":"T_DataComboFile[[#This Row],[2017/18_Source]]*T_DataComboFile[[#This Row],[G&S reporting level indicator]]","v":0},{"$f":"T_DataComboFile[[#This Row],[2018/19_Source]]*T_DataComboFile[[#This Row],[G&S reporting level indicator]]","v":0},{"$f":"T_DataComboFile[[#This Row],[2019/20 Main appropriation_Source]]*T_DataComboFile[[#This Row],[G&S reporting level indicator]]","v":0},{"$f":"T_DataComboFile[[#This Row],[2019/20 Adjusted appropriation_Source]]*T_DataComboFile[[#This Row],[G&S reporting level indicator]]","v":0},{"$f":"T_DataComboFile[[#This Row],[2019/20 Revised estimate_Source]]*T_DataComboFile[[#This Row],[G&S reporting level indicator]]","v":0},{"$f":"T_DataComboFile[[#This Row],[2019/20 Preliminary outcome_Source]]*T_DataComboFile[[#This Row],[G&S reporting level indicator]]","v":0},{"$f":"T_DataComboFile[[#This Row],[2020/21 Original_Source]]*T_DataComboFile[[#This Row],[G&S reporting level indicator]]","v":0},{"$f":"T_DataComboFile[[#This Row],[2020/21 SAB_Source]]*T_DataComboFile[[#This Row],[G&S reporting level indicator]]","v":0},{"$f":"T_DataComboFile[[#This Row],[2020/21 Baseline_Source]]*T_DataComboFile[[#This Row],[G&S reporting level indicator]]","v":0},{"$f":"T_DataComboFile[[#This Row],[2021/22 Baseline_Source]]*T_DataComboFile[[#This Row],[G&S reporting level indicator]]","v":0},{"$f":"T_DataComboFile[[#This Row],[2022/23 Baseline_Source]]*T_DataComboFile[[#This Row],[G&S reporting level indicator]]","v":0},{"$f":"T_DataComboFile[[#This Row],[2023/24 Baseline_Source]]*T_DataComboFile[[#This Row],[G&S reporting level indicator]]","v":0},null,null,null,null,null,null,{"$f":"T_DataComboFile[[#This Row],[2021/22 Baseline]]+T_DataComboFile[[#This Row],[2021/22 Reduction]]+T_DataComboFile[[#This Row],[2021/22 Increase]]","v":0},{"$f":"T_DataComboFile[[#This Row],[2022/23 Baseline]]+T_DataComboFile[[#This Row],[2022/23 Reduction]]+T_DataComboFile[[#This Row],[2022/23 Increase]]","v":0},{"$f":"T_DataComboFile[[#This Row],[2023/24 Baseline]]+T_DataComboFile[[#This Row],[2023/24 Reduction]]+T_DataComboFile[[#This Row],[2023/24 Increase]]","v":0}]
["NAT|Non-transfer item","36|Consultants: Business and advisory services","2021_22","ENE2020",36,1,1,17181,70078,36,1,1,17181,"070078","36|01|01",1,1,2,11,11,"01|01|02|11|11","National","Small Business Development","Administration","Ministry","Non-transfer item","Current","Current payments","Goods and services","Consultants: Business and advisory services","Consultants: Business and advisory services","Economic development","Industrialisation and exports","NAT",58,0,0,0,0,0,0,0,0,0,0,0,0,1,null,{"$f":"IF(T_DataComboFile[[#This Row],[G&S reporting level indicator]]=1,$AX$16,\"Not applicable\")","v":"Not applicable"},{"$f":"IF(AND($AX$16=\"Level 3\",T_DataComboFile[[#This Row],[Econ3]] = \"Goods and services\"),IF(T_DataComboFile[[#This Row],[Econ4]] = T_DataComboFile[[#This Row],[Econ3]],1,0),IF(AND($AX$16=\"Level 4\",T_DataComboFile[[#This Row],[Econ4]] = \"Goods and services\"),0,1))","v":0},{"$f":"T_DataComboFile[[#This Row],[2016/17_Source]]*T_DataComboFile[[#This Row],[G&S reporting level indicator]]","v":0},{"$f":"T_DataComboFile[[#This Row],[2017/18_Source]]*T_DataComboFile[[#This Row],[G&S reporting level indicator]]","v":0},{"$f":"T_DataComboFile[[#This Row],[2018/19_Source]]*T_DataComboFile[[#This Row],[G&S reporting level indicator]]","v":0},{"$f":"T_DataComboFile[[#This Row],[2019/20 Main appropriation_Source]]*T_DataComboFile[[#This Row],[G&S reporting level indicator]]","v":0},{"$f":"T_DataComboFile[[#This Row],[2019/20 Adjusted appropriation_Source]]*T_DataComboFile[[#This Row],[G&S reporting level indicator]]","v":0},{"$f":"T_DataComboFile[[#This Row],[2019/20 Revised estimate_Source]]*T_DataComboFile[[#This Row],[G&S reporting level indicator]]","v":0},{"$f":"T_DataComboFile[[#This Row],[2019/20 Preliminary outcome_Source]]*T_DataComboFile[[#This Row],[G&S reporting level indicator]]","v":0},{"$f":"T_DataComboFile[[#This Row],[2020/21 Original_Source]]*T_DataComboFile[[#This Row],[G&S reporting level indicator]]","v":0},{"$f":"T_DataComboFile[[#This Row],[2020/21 SAB_Source]]*T_DataComboFile[[#This Row],[G&S reporting level indicator]]","v":0},{"$f":"T_DataComboFile[[#This Row],[2020/21 Baseline_Source]]*T_DataComboFile[[#This Row],[G&S reporting level indicator]]","v":0},{"$f":"T_DataComboFile[[#This Row],[2021/22 Baseline_Source]]*T_DataComboFile[[#This Row],[G&S reporting level indicator]]","v":0},{"$f":"T_DataComboFile[[#This Row],[2022/23 Baseline_Source]]*T_DataComboFile[[#This Row],[G&S reporting level indicator]]","v":0},{"$f":"T_DataComboFile[[#This Row],[2023/24 Baseline_Source]]*T_DataComboFile[[#This Row],[G&S reporting level indicator]]","v":0},null,null,null,null,null,null,{"$f":"T_DataComboFile[[#This Row],[2021/22 Baseline]]+T_DataComboFile[[#This Row],[2021/22 Reduction]]+T_DataComboFile[[#This Row],[2021/22 Increase]]","v":0},{"$f":"T_DataComboFile[[#This Row],[2022/23 Baseline]]+T_DataComboFile[[#This Row],[2022/23 Reduction]]+T_DataComboFile[[#This Row],[2022/23 Increase]]","v":0},{"$f":"T_DataComboFile[[#This Row],[2023/24 Baseline]]+T_DataComboFile[[#This Row],[2023/24 Reduction]]+T_DataComboFile[[#This Row],[2023/24 Increase]]","v":0}]
[null,null,"2021_22","ENE2020",36,1,1,null,70079,36,1,1,null,"070079","36|01|01",1,1,2,12,12,"01|01|02|12|12","National","Small Business Development","Administration","Ministry",null,"Current","Current payments","Goods and services","Infrastructure and planning services","Infrastructure and planning services",null,null,null,0,0,0,0,0,0,0,0,0,0,0,0,0,0,null,{"$f":"IF(T_DataComboFile[[#This Row],[G&S reporting level indicator]]=1,$AX$16,\"Not applicable\")","v":"Not applicable"},{"$f":"IF(AND($AX$16=\"Level 3\",T_DataComboFile[[#This Row],[Econ3]] = \"Goods and services\"),IF(T_DataComboFile[[#This Row],[Econ4]] = T_DataComboFile[[#This Row],[Econ3]],1,0),IF(AND($AX$16=\"Level 4\",T_DataComboFile[[#This Row],[Econ4]] = \"Goods and services\"),0,1))","v":0},{"$f":"T_DataComboFile[[#This Row],[2016/17_Source]]*T_DataComboFile[[#This Row],[G&S reporting level indicator]]","v":0},{"$f":"T_DataComboFile[[#This Row],[2017/18_Source]]*T_DataComboFile[[#This Row],[G&S reporting level indicator]]","v":0},{"$f":"T_DataComboFile[[#This Row],[2018/19_Source]]*T_DataComboFile[[#This Row],[G&S reporting level indicator]]","v":0},{"$f":"T_DataComboFile[[#This Row],[2019/20 Main appropriation_Source]]*T_DataComboFile[[#This Row],[G&S reporting level indicator]]","v":0},{"$f":"T_DataComboFile[[#This Row],[2019/20 Adjusted appropriation_Source]]*T_DataComboFile[[#This Row],[G&S reporting level indicator]]","v":0},{"$f":"T_DataComboFile[[#This Row],[2019/20 Revised estimate_Source]]*T_DataComboFile[[#This Row],[G&S reporting level indicator]]","v":0},{"$f":"T_DataComboFile[[#This Row],[2019/20 Preliminary outcome_Source]]*T_DataComboFile[[#This Row],[G&S reporting level indicator]]","v":0},{"$f":"T_DataComboFile[[#This Row],[2020/21 Original_Source]]*T_DataComboFile[[#This Row],[G&S reporting level indicator]]","v":0},{"$f":"T_DataComboFile[[#This Row],[2020/21 SAB_Source]]*T_DataComboFile[[#This Row],[G&S reporting level indicator]]","v":0},{"$f":"T_DataComboFile[[#This Row],[2020/21 Baseline_Source]]*T_DataComboFile[[#This Row],[G&S reporting level indicator]]","v":0},{"$f":"T_DataComboFile[[#This Row],[2021/22 Baseline_Source]]*T_DataComboFile[[#This Row],[G&S reporting level indicator]]","v":0},{"$f":"T_DataComboFile[[#This Row],[2022/23 Baseline_Source]]*T_DataComboFile[[#This Row],[G&S reporting level indicator]]","v":0},{"$f":"T_DataComboFile[[#This Row],[2023/24 Baseline_Source]]*T_DataComboFile[[#This Row],[G&S reporting level indicator]]","v":0},null,null,null,null,null,null,{"$f":"T_DataComboFile[[#This Row],[2021/22 Baseline]]+T_DataComboFile[[#This Row],[2021/22 Reduction]]+T_DataComboFile[[#This Row],[2021/22 Increase]]","v":0},{"$f":"T_DataComboFile[[#This Row],[2022/23 Baseline]]+T_DataComboFile[[#This Row],[2022/23 Reduction]]+T_DataComboFile[[#This Row],[2022/23 Increase]]","v":0},{"$f":"T_DataComboFile[[#This Row],[2023/24 Baseline]]+T_DataComboFile[[#This Row],[2023/24 Reduction]]+T_DataComboFile[[#This Row],[2023/24 Increase]]","v":0}]
[null,null,"2021_22","ENE2020",36,1,1,null,70080,36,1,1,null,"070080","36|01|01",1,1,2,13,13,"01|01|02|13|13","National","Small Business Development","Administration","Ministry",null,"Current","Current payments","Goods and services","Laboratory services","Laboratory services",null,null,null,0,0,0,0,0,0,0,0,0,0,0,0,0,0,null,{"$f":"IF(T_DataComboFile[[#This Row],[G&S reporting level indicator]]=1,$AX$16,\"Not applicable\")","v":"Not applicable"},{"$f":"IF(AND($AX$16=\"Level 3\",T_DataComboFile[[#This Row],[Econ3]] = \"Goods and services\"),IF(T_DataComboFile[[#This Row],[Econ4]] = T_DataComboFile[[#This Row],[Econ3]],1,0),IF(AND($AX$16=\"Level 4\",T_DataComboFile[[#This Row],[Econ4]] = \"Goods and services\"),0,1))","v":0},{"$f":"T_DataComboFile[[#This Row],[2016/17_Source]]*T_DataComboFile[[#This Row],[G&S reporting level indicator]]","v":0},{"$f":"T_DataComboFile[[#This Row],[2017/18_Source]]*T_DataComboFile[[#This Row],[G&S reporting level indicator]]","v":0},{"$f":"T_DataComboFile[[#This Row],[2018/19_Source]]*T_DataComboFile[[#This Row],[G&S reporting level indicator]]","v":0},{"$f":"T_DataComboFile[[#This Row],[2019/20 Main appropriation_Source]]*T_DataComboFile[[#This Row],[G&S reporting level indicator]]","v":0},{"$f":"T_DataComboFile[[#This Row],[2019/20 Adjusted appropriation_Source]]*T_DataComboFile[[#This Row],[G&S reporting level indicator]]","v":0},{"$f":"T_DataComboFile[[#This Row],[2019/20 Revised estimate_Source]]*T_DataComboFile[[#This Row],[G&S reporting level indicator]]","v":0},{"$f":"T_DataComboFile[[#This Row],[2019/20 Preliminary outcome_Source]]*T_DataComboFile[[#This Row],[G&S reporting level indicator]]","v":0},{"$f":"T_DataComboFile[[#This Row],[2020/21 Original_Source]]*T_DataComboFile[[#This Row],[G&S reporting level indicator]]","v":0},{"$f":"T_DataComboFile[[#This Row],[2020/21 SAB_Source]]*T_DataComboFile[[#This Row],[G&S reporting level indicator]]","v":0},{"$f":"T_DataComboFile[[#This Row],[2020/21 Baseline_Source]]*T_DataComboFile[[#This Row],[G&S reporting level indicator]]","v":0},{"$f":"T_DataComboFile[[#This Row],[2021/22 Baseline_Source]]*T_DataComboFile[[#This Row],[G&S reporting level indicator]]","v":0},{"$f":"T_DataComboFile[[#This Row],[2022/23 Baseline_Source]]*T_DataComboFile[[#This Row],[G&S reporting level indicator]]","v":0},{"$f":"T_DataComboFile[[#This Row],[2023/24 Baseline_Source]]*T_DataComboFile[[#This Row],[G&S reporting level indicator]]","v":0},null,null,null,null,null,null,{"$f":"T_DataComboFile[[#This Row],[2021/22 Baseline]]+T_DataComboFile[[#This Row],[2021/22 Reduction]]+T_DataComboFile[[#This Row],[2021/22 Increase]]","v":0},{"$f":"T_DataComboFile[[#This Row],[2022/23 Baseline]]+T_DataComboFile[[#This Row],[2022/23 Reduction]]+T_DataComboFile[[#This Row],[2022/23 Increase]]","v":0},{"$f":"T_DataComboFile[[#This Row],[2023/24 Baseline]]+T_DataComboFile[[#This Row],[2023/24 Reduction]]+T_DataComboFile[[#This Row],[2023/24 Increase]]","v":0}]
[null,null,"2021_22","ENE2020",36,1,1,null,70081,36,1,1,null,"070081","36|01|01",1,1,2,14,14,"01|01|02|14|14","National","Small Business Development","Administration","Ministry",null,"Current","Current payments","Goods and services","Legal services (G&S)","Legal services (G&S)",null,null,null,0,0,0,0,0,0,0,0,0,0,0,0,0,0,null,{"$f":"IF(T_DataComboFile[[#This Row],[G&S reporting level indicator]]=1,$AX$16,\"Not applicable\")","v":"Not applicable"},{"$f":"IF(AND($AX$16=\"Level 3\",T_DataComboFile[[#This Row],[Econ3]] = \"Goods and services\"),IF(T_DataComboFile[[#This Row],[Econ4]] = T_DataComboFile[[#This Row],[Econ3]],1,0),IF(AND($AX$16=\"Level 4\",T_DataComboFile[[#This Row],[Econ4]] = \"Goods and services\"),0,1))","v":0},{"$f":"T_DataComboFile[[#This Row],[2016/17_Source]]*T_DataComboFile[[#This Row],[G&S reporting level indicator]]","v":0},{"$f":"T_DataComboFile[[#This Row],[2017/18_Source]]*T_DataComboFile[[#This Row],[G&S reporting level indicator]]","v":0},{"$f":"T_DataComboFile[[#This Row],[2018/19_Source]]*T_DataComboFile[[#This Row],[G&S reporting level indicator]]","v":0},{"$f":"T_DataComboFile[[#This Row],[2019/20 Main appropriation_Source]]*T_DataComboFile[[#This Row],[G&S reporting level indicator]]","v":0},{"$f":"T_DataComboFile[[#This Row],[2019/20 Adjusted appropriation_Source]]*T_DataComboFile[[#This Row],[G&S reporting level indicator]]","v":0},{"$f":"T_DataComboFile[[#This Row],[2019/20 Revised estimate_Source]]*T_DataComboFile[[#This Row],[G&S reporting level indicator]]","v":0},{"$f":"T_DataComboFile[[#This Row],[2019/20 Preliminary outcome_Source]]*T_DataComboFile[[#This Row],[G&S reporting level indicator]]","v":0},{"$f":"T_DataComboFile[[#This Row],[2020/21 Original_Source]]*T_DataComboFile[[#This Row],[G&S reporting level indicator]]","v":0},{"$f":"T_DataComboFile[[#This Row],[2020/21 SAB_Source]]*T_DataComboFile[[#This Row],[G&S reporting level indicator]]","v":0},{"$f":"T_DataComboFile[[#This Row],[2020/21 Baseline_Source]]*T_DataComboFile[[#This Row],[G&S reporting level indicator]]","v":0},{"$f":"T_DataComboFile[[#This Row],[2021/22 Baseline_Source]]*T_DataComboFile[[#This Row],[G&S reporting level indicator]]","v":0},{"$f":"T_DataComboFile[[#This Row],[2022/23 Baseline_Source]]*T_DataComboFile[[#This Row],[G&S reporting level indicator]]","v":0},{"$f":"T_DataComboFile[[#This Row],[2023/24 Baseline_Source]]*T_DataComboFile[[#This Row],[G&S reporting level indicator]]","v":0},null,null,null,null,null,null,{"$f":"T_DataComboFile[[#This Row],[2021/22 Baseline]]+T_DataComboFile[[#This Row],[2021/22 Reduction]]+T_DataComboFile[[#This Row],[2021/22 Increase]]","v":0},{"$f":"T_DataComboFile[[#This Row],[2022/23 Baseline]]+T_DataComboFile[[#This Row],[2022/23 Reduction]]+T_DataComboFile[[#This Row],[2022/23 Increase]]","v":0},{"$f":"T_DataComboFile[[#This Row],[2023/24 Baseline]]+T_DataComboFile[[#This Row],[2023/24 Reduction]]+T_DataComboFile[[#This Row],[2023/24 Increase]]","v":0}]
[null,null,"2021_22","ENE2020",36,1,1,null,70082,36,1,1,null,"070082","36|01|01",1,1,2,15,15,"01|01|02|15|15","National","Small Business Development","Administration","Ministry",null,"Current","Current payments","Goods and services","Science and technological services","Science and technological services",null,null,null,0,0,0,0,0,0,0,0,0,0,0,0,0,0,null,{"$f":"IF(T_DataComboFile[[#This Row],[G&S reporting level indicator]]=1,$AX$16,\"Not applicable\")","v":"Not applicable"},{"$f":"IF(AND($AX$16=\"Level 3\",T_DataComboFile[[#This Row],[Econ3]] = \"Goods and services\"),IF(T_DataComboFile[[#This Row],[Econ4]] = T_DataComboFile[[#This Row],[Econ3]],1,0),IF(AND($AX$16=\"Level 4\",T_DataComboFile[[#This Row],[Econ4]] = \"Goods and services\"),0,1))","v":0},{"$f":"T_DataComboFile[[#This Row],[2016/17_Source]]*T_DataComboFile[[#This Row],[G&S reporting level indicator]]","v":0},{"$f":"T_DataComboFile[[#This Row],[2017/18_Source]]*T_DataComboFile[[#This Row],[G&S reporting level indicator]]","v":0},{"$f":"T_DataComboFile[[#This Row],[2018/19_Source]]*T_DataComboFile[[#This Row],[G&S reporting level indicator]]","v":0},{"$f":"T_DataComboFile[[#This Row],[2019/20 Main appropriation_Source]]*T_DataComboFile[[#This Row],[G&S reporting level indicator]]","v":0},{"$f":"T_DataComboFile[[#This Row],[2019/20 Adjusted appropriation_Source]]*T_DataComboFile[[#This Row],[G&S reporting level indicator]]","v":0},{"$f":"T_DataComboFile[[#This Row],[2019/20 Revised estimate_Source]]*T_DataComboFile[[#This Row],[G&S reporting level indicator]]","v":0},{"$f":"T_DataComboFile[[#This Row],[2019/20 Preliminary outcome_Source]]*T_DataComboFile[[#This Row],[G&S reporting level indicator]]","v":0},{"$f":"T_DataComboFile[[#This Row],[2020/21 Original_Source]]*T_DataComboFile[[#This Row],[G&S reporting level indicator]]","v":0},{"$f":"T_DataComboFile[[#This Row],[2020/21 SAB_Source]]*T_DataComboFile[[#This Row],[G&S reporting level indicator]]","v":0},{"$f":"T_DataComboFile[[#This Row],[2020/21 Baseline_Source]]*T_DataComboFile[[#This Row],[G&S reporting level indicator]]","v":0},{"$f":"T_DataComboFile[[#This Row],[2021/22 Baseline_Source]]*T_DataComboFile[[#This Row],[G&S reporting level indicator]]","v":0},{"$f":"T_DataComboFile[[#This Row],[2022/23 Baseline_Source]]*T_DataComboFile[[#This Row],[G&S reporting level indicator]]","v":0},{"$f":"T_DataComboFile[[#This Row],[2023/24 Baseline_Source]]*T_DataComboFile[[#This Row],[G&S reporting level indicator]]","v":0},null,null,null,null,null,null,{"$f":"T_DataComboFile[[#This Row],[2021/22 Baseline]]+T_DataComboFile[[#This Row],[2021/22 Reduction]]+T_DataComboFile[[#This Row],[2021/22 Increase]]","v":0},{"$f":"T_DataComboFile[[#This Row],[2022/23 Baseline]]+T_DataComboFile[[#This Row],[2022/23 Reduction]]+T_DataComboFile[[#This Row],[2022/23 Increase]]","v":0},{"$f":"T_DataComboFile[[#This Row],[2023/24 Baseline]]+T_DataComboFile[[#This Row],[2023/24 Reduction]]+T_DataComboFile[[#This Row],[2023/24 Increase]]","v":0}]
["NAT|Non-transfer item","36|Contractors","2021_22","ENE2020",36,1,1,17182,70083,36,1,1,17182,"070083","36|01|01",1,1,2,16,16,"01|01|02|16|16","National","Small Business Development","Administration","Ministry","Non-transfer item","Current","Current payments","Goods and services","Contractors","Contractors","Economic development","Industrialisation and exports","NAT",1,15,6,0,0,0,0,0,0,0,0,0,0,1,null,{"$f":"IF(T_DataComboFile[[#This Row],[G&S reporting level indicator]]=1,$AX$16,\"Not applicable\")","v":"Not applicable"},{"$f":"IF(AND($AX$16=\"Level 3\",T_DataComboFile[[#This Row],[Econ3]] = \"Goods and services\"),IF(T_DataComboFile[[#This Row],[Econ4]] = T_DataComboFile[[#This Row],[Econ3]],1,0),IF(AND($AX$16=\"Level 4\",T_DataComboFile[[#This Row],[Econ4]] = \"Goods and services\"),0,1))","v":0},{"$f":"T_DataComboFile[[#This Row],[2016/17_Source]]*T_DataComboFile[[#This Row],[G&S reporting level indicator]]","v":0},{"$f":"T_DataComboFile[[#This Row],[2017/18_Source]]*T_DataComboFile[[#This Row],[G&S reporting level indicator]]","v":0},{"$f":"T_DataComboFile[[#This Row],[2018/19_Source]]*T_DataComboFile[[#This Row],[G&S reporting level indicator]]","v":0},{"$f":"T_DataComboFile[[#This Row],[2019/20 Main appropriation_Source]]*T_DataComboFile[[#This Row],[G&S reporting level indicator]]","v":0},{"$f":"T_DataComboFile[[#This Row],[2019/20 Adjusted appropriation_Source]]*T_DataComboFile[[#This Row],[G&S reporting level indicator]]","v":0},{"$f":"T_DataComboFile[[#This Row],[2019/20 Revised estimate_Source]]*T_DataComboFile[[#This Row],[G&S reporting level indicator]]","v":0},{"$f":"T_DataComboFile[[#This Row],[2019/20 Preliminary outcome_Source]]*T_DataComboFile[[#This Row],[G&S reporting level indicator]]","v":0},{"$f":"T_DataComboFile[[#This Row],[2020/21 Original_Source]]*T_DataComboFile[[#This Row],[G&S reporting level indicator]]","v":0},{"$f":"T_DataComboFile[[#This Row],[2020/21 SAB_Source]]*T_DataComboFile[[#This Row],[G&S reporting level indicator]]","v":0},{"$f":"T_DataComboFile[[#This Row],[2020/21 Baseline_Source]]*T_DataComboFile[[#This Row],[G&S reporting level indicator]]","v":0},{"$f":"T_DataComboFile[[#This Row],[2021/22 Baseline_Source]]*T_DataComboFile[[#This Row],[G&S reporting level indicator]]","v":0},{"$f":"T_DataComboFile[[#This Row],[2022/23 Baseline_Source]]*T_DataComboFile[[#This Row],[G&S reporting level indicator]]","v":0},{"$f":"T_DataComboFile[[#This Row],[2023/24 Baseline_Source]]*T_DataComboFile[[#This Row],[G&S reporting level indicator]]","v":0},null,null,null,null,null,null,{"$f":"T_DataComboFile[[#This Row],[2021/22 Baseline]]+T_DataComboFile[[#This Row],[2021/22 Reduction]]+T_DataComboFile[[#This Row],[2021/22 Increase]]","v":0},{"$f":"T_DataComboFile[[#This Row],[2022/23 Baseline]]+T_DataComboFile[[#This Row],[2022/23 Reduction]]+T_DataComboFile[[#This Row],[2022/23 Increase]]","v":0},{"$f":"T_DataComboFile[[#This Row],[2023/24 Baseline]]+T_DataComboFile[[#This Row],[2023/24 Reduction]]+T_DataComboFile[[#This Row],[2023/24 Increase]]","v":0}]
[null,null,"2021_22","ENE2020",36,1,1,null,70084,36,1,1,null,"070084","36|01|01",1,1,2,17,17,"01|01|02|17|17","National","Small Business Development","Administration","Ministry",null,"Current","Current payments","Goods and services","Agency and support/outsourced services","Agency and support/outsourced services",null,null,null,0,0,0,0,0,0,0,0,0,0,0,0,0,0,null,{"$f":"IF(T_DataComboFile[[#This Row],[G&S reporting level indicator]]=1,$AX$16,\"Not applicable\")","v":"Not applicable"},{"$f":"IF(AND($AX$16=\"Level 3\",T_DataComboFile[[#This Row],[Econ3]] = \"Goods and services\"),IF(T_DataComboFile[[#This Row],[Econ4]] = T_DataComboFile[[#This Row],[Econ3]],1,0),IF(AND($AX$16=\"Level 4\",T_DataComboFile[[#This Row],[Econ4]] = \"Goods and services\"),0,1))","v":0},{"$f":"T_DataComboFile[[#This Row],[2016/17_Source]]*T_DataComboFile[[#This Row],[G&S reporting level indicator]]","v":0},{"$f":"T_DataComboFile[[#This Row],[2017/18_Source]]*T_DataComboFile[[#This Row],[G&S reporting level indicator]]","v":0},{"$f":"T_DataComboFile[[#This Row],[2018/19_Source]]*T_DataComboFile[[#This Row],[G&S reporting level indicator]]","v":0},{"$f":"T_DataComboFile[[#This Row],[2019/20 Main appropriation_Source]]*T_DataComboFile[[#This Row],[G&S reporting level indicator]]","v":0},{"$f":"T_DataComboFile[[#This Row],[2019/20 Adjusted appropriation_Source]]*T_DataComboFile[[#This Row],[G&S reporting level indicator]]","v":0},{"$f":"T_DataComboFile[[#This Row],[2019/20 Revised estimate_Source]]*T_DataComboFile[[#This Row],[G&S reporting level indicator]]","v":0},{"$f":"T_DataComboFile[[#This Row],[2019/20 Preliminary outcome_Source]]*T_DataComboFile[[#This Row],[G&S reporting level indicator]]","v":0},{"$f":"T_DataComboFile[[#This Row],[2020/21 Original_Source]]*T_DataComboFile[[#This Row],[G&S reporting level indicator]]","v":0},{"$f":"T_DataComboFile[[#This Row],[2020/21 SAB_Source]]*T_DataComboFile[[#This Row],[G&S reporting level indicator]]","v":0},{"$f":"T_DataComboFile[[#This Row],[2020/21 Baseline_Source]]*T_DataComboFile[[#This Row],[G&S reporting level indicator]]","v":0},{"$f":"T_DataComboFile[[#This Row],[2021/22 Baseline_Source]]*T_DataComboFile[[#This Row],[G&S reporting level indicator]]","v":0},{"$f":"T_DataComboFile[[#This Row],[2022/23 Baseline_Source]]*T_DataComboFile[[#This Row],[G&S reporting level indicator]]","v":0},{"$f":"T_DataComboFile[[#This Row],[2023/24 Baseline_Source]]*T_DataComboFile[[#This Row],[G&S reporting level indicator]]","v":0},null,null,null,null,null,null,{"$f":"T_DataComboFile[[#This Row],[2021/22 Baseline]]+T_DataComboFile[[#This Row],[2021/22 Reduction]]+T_DataComboFile[[#This Row],[2021/22 Increase]]","v":0},{"$f":"T_DataComboFile[[#This Row],[2022/23 Baseline]]+T_DataComboFile[[#This Row],[2022/23 Reduction]]+T_DataComboFile[[#This Row],[2022/23 Increase]]","v":0},{"$f":"T_DataComboFile[[#This Row],[2023/24 Baseline]]+T_DataComboFile[[#This Row],[2023/24 Reduction]]+T_DataComboFile[[#This Row],[2023/24 Increase]]","v":0}]
["NAT|Non-transfer item","36|Entertainment","2021_22","ENE2020",36,1,1,17183,70085,36,1,1,17183,"070085","36|01|01",1,1,2,18,18,"01|01|02|18|18","National","Small Business Development","Administration","Ministry","Non-transfer item","Current","Current payments","Goods and services","Entertainment","Entertainment","Economic development","Industrialisation and exports","NAT",0,0,4,10,10,10,10,10,10,10,10,10,10,1,null,{"$f":"IF(T_DataComboFile[[#This Row],[G&S reporting level indicator]]=1,$AX$16,\"Not applicable\")","v":"Not applicable"},{"$f":"IF(AND($AX$16=\"Level 3\",T_DataComboFile[[#This Row],[Econ3]] = \"Goods and services\"),IF(T_DataComboFile[[#This Row],[Econ4]] = T_DataComboFile[[#This Row],[Econ3]],1,0),IF(AND($AX$16=\"Level 4\",T_DataComboFile[[#This Row],[Econ4]] = \"Goods and services\"),0,1))","v":0},{"$f":"T_DataComboFile[[#This Row],[2016/17_Source]]*T_DataComboFile[[#This Row],[G&S reporting level indicator]]","v":0},{"$f":"T_DataComboFile[[#This Row],[2017/18_Source]]*T_DataComboFile[[#This Row],[G&S reporting level indicator]]","v":0},{"$f":"T_DataComboFile[[#This Row],[2018/19_Source]]*T_DataComboFile[[#This Row],[G&S reporting level indicator]]","v":0},{"$f":"T_DataComboFile[[#This Row],[2019/20 Main appropriation_Source]]*T_DataComboFile[[#This Row],[G&S reporting level indicator]]","v":0},{"$f":"T_DataComboFile[[#This Row],[2019/20 Adjusted appropriation_Source]]*T_DataComboFile[[#This Row],[G&S reporting level indicator]]","v":0},{"$f":"T_DataComboFile[[#This Row],[2019/20 Revised estimate_Source]]*T_DataComboFile[[#This Row],[G&S reporting level indicator]]","v":0},{"$f":"T_DataComboFile[[#This Row],[2019/20 Preliminary outcome_Source]]*T_DataComboFile[[#This Row],[G&S reporting level indicator]]","v":0},{"$f":"T_DataComboFile[[#This Row],[2020/21 Original_Source]]*T_DataComboFile[[#This Row],[G&S reporting level indicator]]","v":0},{"$f":"T_DataComboFile[[#This Row],[2020/21 SAB_Source]]*T_DataComboFile[[#This Row],[G&S reporting level indicator]]","v":0},{"$f":"T_DataComboFile[[#This Row],[2020/21 Baseline_Source]]*T_DataComboFile[[#This Row],[G&S reporting level indicator]]","v":0},{"$f":"T_DataComboFile[[#This Row],[2021/22 Baseline_Source]]*T_DataComboFile[[#This Row],[G&S reporting level indicator]]","v":0},{"$f":"T_DataComboFile[[#This Row],[2022/23 Baseline_Source]]*T_DataComboFile[[#This Row],[G&S reporting level indicator]]","v":0},{"$f":"T_DataComboFile[[#This Row],[2023/24 Baseline_Source]]*T_DataComboFile[[#This Row],[G&S reporting level indicator]]","v":0},null,null,null,null,null,null,{"$f":"T_DataComboFile[[#This Row],[2021/22 Baseline]]+T_DataComboFile[[#This Row],[2021/22 Reduction]]+T_DataComboFile[[#This Row],[2021/22 Increase]]","v":0},{"$f":"T_DataComboFile[[#This Row],[2022/23 Baseline]]+T_DataComboFile[[#This Row],[2022/23 Reduction]]+T_DataComboFile[[#This Row],[2022/23 Increase]]","v":0},{"$f":"T_DataComboFile[[#This Row],[2023/24 Baseline]]+T_DataComboFile[[#This Row],[2023/24 Reduction]]+T_DataComboFile[[#This Row],[2023/24 Increase]]","v":0}]
["NAT|Non-transfer item","36|Fleet services (including government motor transport)","2021_22","ENE2020",36,1,1,17184,70086,36,1,1,17184,"070086","36|01|01",1,1,2,19,19,"01|01|02|19|19","National","Small Business Development","Administration","Ministry","Non-transfer item","Current","Current payments","Goods and services","Fleet services (including government motor transport)","Fleet services (including government motor transport)","Economic development","Industrialisation and exports","NAT",628,698,1002,221,393,393,393,722,722,722,782,830,867,1,null,{"$f":"IF(T_DataComboFile[[#This Row],[G&S reporting level indicator]]=1,$AX$16,\"Not applicable\")","v":"Not applicable"},{"$f":"IF(AND($AX$16=\"Level 3\",T_DataComboFile[[#This Row],[Econ3]] = \"Goods and services\"),IF(T_DataComboFile[[#This Row],[Econ4]] = T_DataComboFile[[#This Row],[Econ3]],1,0),IF(AND($AX$16=\"Level 4\",T_DataComboFile[[#This Row],[Econ4]] = \"Goods and services\"),0,1))","v":0},{"$f":"T_DataComboFile[[#This Row],[2016/17_Source]]*T_DataComboFile[[#This Row],[G&S reporting level indicator]]","v":0},{"$f":"T_DataComboFile[[#This Row],[2017/18_Source]]*T_DataComboFile[[#This Row],[G&S reporting level indicator]]","v":0},{"$f":"T_DataComboFile[[#This Row],[2018/19_Source]]*T_DataComboFile[[#This Row],[G&S reporting level indicator]]","v":0},{"$f":"T_DataComboFile[[#This Row],[2019/20 Main appropriation_Source]]*T_DataComboFile[[#This Row],[G&S reporting level indicator]]","v":0},{"$f":"T_DataComboFile[[#This Row],[2019/20 Adjusted appropriation_Source]]*T_DataComboFile[[#This Row],[G&S reporting level indicator]]","v":0},{"$f":"T_DataComboFile[[#This Row],[2019/20 Revised estimate_Source]]*T_DataComboFile[[#This Row],[G&S reporting level indicator]]","v":0},{"$f":"T_DataComboFile[[#This Row],[2019/20 Preliminary outcome_Source]]*T_DataComboFile[[#This Row],[G&S reporting level indicator]]","v":0},{"$f":"T_DataComboFile[[#This Row],[2020/21 Original_Source]]*T_DataComboFile[[#This Row],[G&S reporting level indicator]]","v":0},{"$f":"T_DataComboFile[[#This Row],[2020/21 SAB_Source]]*T_DataComboFile[[#This Row],[G&S reporting level indicator]]","v":0},{"$f":"T_DataComboFile[[#This Row],[2020/21 Baseline_Source]]*T_DataComboFile[[#This Row],[G&S reporting level indicator]]","v":0},{"$f":"T_DataComboFile[[#This Row],[2021/22 Baseline_Source]]*T_DataComboFile[[#This Row],[G&S reporting level indicator]]","v":0},{"$f":"T_DataComboFile[[#This Row],[2022/23 Baseline_Source]]*T_DataComboFile[[#This Row],[G&S reporting level indicator]]","v":0},{"$f":"T_DataComboFile[[#This Row],[2023/24 Baseline_Source]]*T_DataComboFile[[#This Row],[G&S reporting level indicator]]","v":0},null,null,null,null,null,null,{"$f":"T_DataComboFile[[#This Row],[2021/22 Baseline]]+T_DataComboFile[[#This Row],[2021/22 Reduction]]+T_DataComboFile[[#This Row],[2021/22 Increase]]","v":0},{"$f":"T_DataComboFile[[#This Row],[2022/23 Baseline]]+T_DataComboFile[[#This Row],[2022/23 Reduction]]+T_DataComboFile[[#This Row],[2022/23 Increase]]","v":0},{"$f":"T_DataComboFile[[#This Row],[2023/24 Baseline]]+T_DataComboFile[[#This Row],[2023/24 Reduction]]+T_DataComboFile[[#This Row],[2023/24 Increase]]","v":0}]
[null,null,"2021_22","ENE2020",36,1,1,null,70087,36,1,1,null,"070087","36|01|01",1,1,2,20,20,"01|01|02|20|20","National","Small Business Development","Administration","Ministry",null,"Current","Current payments","Goods and services","Housing","Housing",null,null,null,0,0,0,0,0,0,0,0,0,0,0,0,0,0,null,{"$f":"IF(T_DataComboFile[[#This Row],[G&S reporting level indicator]]=1,$AX$16,\"Not applicable\")","v":"Not applicable"},{"$f":"IF(AND($AX$16=\"Level 3\",T_DataComboFile[[#This Row],[Econ3]] = \"Goods and services\"),IF(T_DataComboFile[[#This Row],[Econ4]] = T_DataComboFile[[#This Row],[Econ3]],1,0),IF(AND($AX$16=\"Level 4\",T_DataComboFile[[#This Row],[Econ4]] = \"Goods and services\"),0,1))","v":0},{"$f":"T_DataComboFile[[#This Row],[2016/17_Source]]*T_DataComboFile[[#This Row],[G&S reporting level indicator]]","v":0},{"$f":"T_DataComboFile[[#This Row],[2017/18_Source]]*T_DataComboFile[[#This Row],[G&S reporting level indicator]]","v":0},{"$f":"T_DataComboFile[[#This Row],[2018/19_Source]]*T_DataComboFile[[#This Row],[G&S reporting level indicator]]","v":0},{"$f":"T_DataComboFile[[#This Row],[2019/20 Main appropriation_Source]]*T_DataComboFile[[#This Row],[G&S reporting level indicator]]","v":0},{"$f":"T_DataComboFile[[#This Row],[2019/20 Adjusted appropriation_Source]]*T_DataComboFile[[#This Row],[G&S reporting level indicator]]","v":0},{"$f":"T_DataComboFile[[#This Row],[2019/20 Revised estimate_Source]]*T_DataComboFile[[#This Row],[G&S reporting level indicator]]","v":0},{"$f":"T_DataComboFile[[#This Row],[2019/20 Preliminary outcome_Source]]*T_DataComboFile[[#This Row],[G&S reporting level indicator]]","v":0},{"$f":"T_DataComboFile[[#This Row],[2020/21 Original_Source]]*T_DataComboFile[[#This Row],[G&S reporting level indicator]]","v":0},{"$f":"T_DataComboFile[[#This Row],[2020/21 SAB_Source]]*T_DataComboFile[[#This Row],[G&S reporting level indicator]]","v":0},{"$f":"T_DataComboFile[[#This Row],[2020/21 Baseline_Source]]*T_DataComboFile[[#This Row],[G&S reporting level indicator]]","v":0},{"$f":"T_DataComboFile[[#This Row],[2021/22 Baseline_Source]]*T_DataComboFile[[#This Row],[G&S reporting level indicator]]","v":0},{"$f":"T_DataComboFile[[#This Row],[2022/23 Baseline_Source]]*T_DataComboFile[[#This Row],[G&S reporting level indicator]]","v":0},{"$f":"T_DataComboFile[[#This Row],[2023/24 Baseline_Source]]*T_DataComboFile[[#This Row],[G&S reporting level indicator]]","v":0},null,null,null,null,null,null,{"$f":"T_DataComboFile[[#This Row],[2021/22 Baseline]]+T_DataComboFile[[#This Row],[2021/22 Reduction]]+T_DataComboFile[[#This Row],[2021/22 Increase]]","v":0},{"$f":"T_DataComboFile[[#This Row],[2022/23 Baseline]]+T_DataComboFile[[#This Row],[2022/23 Reduction]]+T_DataComboFile[[#This Row],[2022/23 Increase]]","v":0},{"$f":"T_DataComboFile[[#This Row],[2023/24 Baseline]]+T_DataComboFile[[#This Row],[2023/24 Reduction]]+T_DataComboFile[[#This Row],[2023/24 Increase]]","v":0}]
[null,null,"2021_22","ENE2020",36,1,1,null,70088,36,1,1,null,"070088","36|01|01",1,1,2,21,21,"01|01|02|21|21","National","Small Business Development","Administration","Ministry",null,"Current","Current payments","Goods and services","Inventory: Clothing material and accessories","Inventory: Clothing material and accessories",null,null,null,0,0,0,0,0,0,0,0,0,0,0,0,0,0,null,{"$f":"IF(T_DataComboFile[[#This Row],[G&S reporting level indicator]]=1,$AX$16,\"Not applicable\")","v":"Not applicable"},{"$f":"IF(AND($AX$16=\"Level 3\",T_DataComboFile[[#This Row],[Econ3]] = \"Goods and services\"),IF(T_DataComboFile[[#This Row],[Econ4]] = T_DataComboFile[[#This Row],[Econ3]],1,0),IF(AND($AX$16=\"Level 4\",T_DataComboFile[[#This Row],[Econ4]] = \"Goods and services\"),0,1))","v":0},{"$f":"T_DataComboFile[[#This Row],[2016/17_Source]]*T_DataComboFile[[#This Row],[G&S reporting level indicator]]","v":0},{"$f":"T_DataComboFile[[#This Row],[2017/18_Source]]*T_DataComboFile[[#This Row],[G&S reporting level indicator]]","v":0},{"$f":"T_DataComboFile[[#This Row],[2018/19_Source]]*T_DataComboFile[[#This Row],[G&S reporting level indicator]]","v":0},{"$f":"T_DataComboFile[[#This Row],[2019/20 Main appropriation_Source]]*T_DataComboFile[[#This Row],[G&S reporting level indicator]]","v":0},{"$f":"T_DataComboFile[[#This Row],[2019/20 Adjusted appropriation_Source]]*T_DataComboFile[[#This Row],[G&S reporting level indicator]]","v":0},{"$f":"T_DataComboFile[[#This Row],[2019/20 Revised estimate_Source]]*T_DataComboFile[[#This Row],[G&S reporting level indicator]]","v":0},{"$f":"T_DataComboFile[[#This Row],[2019/20 Preliminary outcome_Source]]*T_DataComboFile[[#This Row],[G&S reporting level indicator]]","v":0},{"$f":"T_DataComboFile[[#This Row],[2020/21 Original_Source]]*T_DataComboFile[[#This Row],[G&S reporting level indicator]]","v":0},{"$f":"T_DataComboFile[[#This Row],[2020/21 SAB_Source]]*T_DataComboFile[[#This Row],[G&S reporting level indicator]]","v":0},{"$f":"T_DataComboFile[[#This Row],[2020/21 Baseline_Source]]*T_DataComboFile[[#This Row],[G&S reporting level indicator]]","v":0},{"$f":"T_DataComboFile[[#This Row],[2021/22 Baseline_Source]]*T_DataComboFile[[#This Row],[G&S reporting level indicator]]","v":0},{"$f":"T_DataComboFile[[#This Row],[2022/23 Baseline_Source]]*T_DataComboFile[[#This Row],[G&S reporting level indicator]]","v":0},{"$f":"T_DataComboFile[[#This Row],[2023/24 Baseline_Source]]*T_DataComboFile[[#This Row],[G&S reporting level indicator]]","v":0},null,null,null,null,null,null,{"$f":"T_DataComboFile[[#This Row],[2021/22 Baseline]]+T_DataComboFile[[#This Row],[2021/22 Reduction]]+T_DataComboFile[[#This Row],[2021/22 Increase]]","v":0},{"$f":"T_DataComboFile[[#This Row],[2022/23 Baseline]]+T_DataComboFile[[#This Row],[2022/23 Reduction]]+T_DataComboFile[[#This Row],[2022/23 Increase]]","v":0},{"$f":"T_DataComboFile[[#This Row],[2023/24 Baseline]]+T_DataComboFile[[#This Row],[2023/24 Reduction]]+T_DataComboFile[[#This Row],[2023/24 Increase]]","v":0}]
[null,null,"2021_22","ENE2020",36,1,1,null,70089,36,1,1,null,"070089","36|01|01",1,1,2,22,22,"01|01|02|22|22","National","Small Business Development","Administration","Ministry",null,"Current","Current payments","Goods and services","Inventory: Farming supplies","Inventory: Farming supplies",null,null,null,0,0,0,0,0,0,0,0,0,0,0,0,0,0,null,{"$f":"IF(T_DataComboFile[[#This Row],[G&S reporting level indicator]]=1,$AX$16,\"Not applicable\")","v":"Not applicable"},{"$f":"IF(AND($AX$16=\"Level 3\",T_DataComboFile[[#This Row],[Econ3]] = \"Goods and services\"),IF(T_DataComboFile[[#This Row],[Econ4]] = T_DataComboFile[[#This Row],[Econ3]],1,0),IF(AND($AX$16=\"Level 4\",T_DataComboFile[[#This Row],[Econ4]] = \"Goods and services\"),0,1))","v":0},{"$f":"T_DataComboFile[[#This Row],[2016/17_Source]]*T_DataComboFile[[#This Row],[G&S reporting level indicator]]","v":0},{"$f":"T_DataComboFile[[#This Row],[2017/18_Source]]*T_DataComboFile[[#This Row],[G&S reporting level indicator]]","v":0},{"$f":"T_DataComboFile[[#This Row],[2018/19_Source]]*T_DataComboFile[[#This Row],[G&S reporting level indicator]]","v":0},{"$f":"T_DataComboFile[[#This Row],[2019/20 Main appropriation_Source]]*T_DataComboFile[[#This Row],[G&S reporting level indicator]]","v":0},{"$f":"T_DataComboFile[[#This Row],[2019/20 Adjusted appropriation_Source]]*T_DataComboFile[[#This Row],[G&S reporting level indicator]]","v":0},{"$f":"T_DataComboFile[[#This Row],[2019/20 Revised estimate_Source]]*T_DataComboFile[[#This Row],[G&S reporting level indicator]]","v":0},{"$f":"T_DataComboFile[[#This Row],[2019/20 Preliminary outcome_Source]]*T_DataComboFile[[#This Row],[G&S reporting level indicator]]","v":0},{"$f":"T_DataComboFile[[#This Row],[2020/21 Original_Source]]*T_DataComboFile[[#This Row],[G&S reporting level indicator]]","v":0},{"$f":"T_DataComboFile[[#This Row],[2020/21 SAB_Source]]*T_DataComboFile[[#This Row],[G&S reporting level indicator]]","v":0},{"$f":"T_DataComboFile[[#This Row],[2020/21 Baseline_Source]]*T_DataComboFile[[#This Row],[G&S reporting level indicator]]","v":0},{"$f":"T_DataComboFile[[#This Row],[2021/22 Baseline_Source]]*T_DataComboFile[[#This Row],[G&S reporting level indicator]]","v":0},{"$f":"T_DataComboFile[[#This Row],[2022/23 Baseline_Source]]*T_DataComboFile[[#This Row],[G&S reporting level indicator]]","v":0},{"$f":"T_DataComboFile[[#This Row],[2023/24 Baseline_Source]]*T_DataComboFile[[#This Row],[G&S reporting level indicator]]","v":0},null,null,null,null,null,null,{"$f":"T_DataComboFile[[#This Row],[2021/22 Baseline]]+T_DataComboFile[[#This Row],[2021/22 Reduction]]+T_DataComboFile[[#This Row],[2021/22 Increase]]","v":0},{"$f":"T_DataComboFile[[#This Row],[2022/23 Baseline]]+T_DataComboFile[[#This Row],[2022/23 Reduction]]+T_DataComboFile[[#This Row],[2022/23 Increase]]","v":0},{"$f":"T_DataComboFile[[#This Row],[2023/24 Baseline]]+T_DataComboFile[[#This Row],[2023/24 Reduction]]+T_DataComboFile[[#This Row],[2023/24 Increase]]","v":0}]
[null,null,"2021_22","ENE2020",36,1,1,null,70090,36,1,1,null,"070090","36|01|01",1,1,2,23,23,"01|01|02|23|23","National","Small Business Development","Administration","Ministry",null,"Current","Current payments","Goods and services","Inventory: Food and food supplies","Inventory: Food and food supplies",null,null,null,0,0,0,0,0,0,0,0,0,0,0,0,0,0,null,{"$f":"IF(T_DataComboFile[[#This Row],[G&S reporting level indicator]]=1,$AX$16,\"Not applicable\")","v":"Not applicable"},{"$f":"IF(AND($AX$16=\"Level 3\",T_DataComboFile[[#This Row],[Econ3]] = \"Goods and services\"),IF(T_DataComboFile[[#This Row],[Econ4]] = T_DataComboFile[[#This Row],[Econ3]],1,0),IF(AND($AX$16=\"Level 4\",T_DataComboFile[[#This Row],[Econ4]] = \"Goods and services\"),0,1))","v":0},{"$f":"T_DataComboFile[[#This Row],[2016/17_Source]]*T_DataComboFile[[#This Row],[G&S reporting level indicator]]","v":0},{"$f":"T_DataComboFile[[#This Row],[2017/18_Source]]*T_DataComboFile[[#This Row],[G&S reporting level indicator]]","v":0},{"$f":"T_DataComboFile[[#This Row],[2018/19_Source]]*T_DataComboFile[[#This Row],[G&S reporting level indicator]]","v":0},{"$f":"T_DataComboFile[[#This Row],[2019/20 Main appropriation_Source]]*T_DataComboFile[[#This Row],[G&S reporting level indicator]]","v":0},{"$f":"T_DataComboFile[[#This Row],[2019/20 Adjusted appropriation_Source]]*T_DataComboFile[[#This Row],[G&S reporting level indicator]]","v":0},{"$f":"T_DataComboFile[[#This Row],[2019/20 Revised estimate_Source]]*T_DataComboFile[[#This Row],[G&S reporting level indicator]]","v":0},{"$f":"T_DataComboFile[[#This Row],[2019/20 Preliminary outcome_Source]]*T_DataComboFile[[#This Row],[G&S reporting level indicator]]","v":0},{"$f":"T_DataComboFile[[#This Row],[2020/21 Original_Source]]*T_DataComboFile[[#This Row],[G&S reporting level indicator]]","v":0},{"$f":"T_DataComboFile[[#This Row],[2020/21 SAB_Source]]*T_DataComboFile[[#This Row],[G&S reporting level indicator]]","v":0},{"$f":"T_DataComboFile[[#This Row],[2020/21 Baseline_Source]]*T_DataComboFile[[#This Row],[G&S reporting level indicator]]","v":0},{"$f":"T_DataComboFile[[#This Row],[2021/22 Baseline_Source]]*T_DataComboFile[[#This Row],[G&S reporting level indicator]]","v":0},{"$f":"T_DataComboFile[[#This Row],[2022/23 Baseline_Source]]*T_DataComboFile[[#This Row],[G&S reporting level indicator]]","v":0},{"$f":"T_DataComboFile[[#This Row],[2023/24 Baseline_Source]]*T_DataComboFile[[#This Row],[G&S reporting level indicator]]","v":0},null,null,null,null,null,null,{"$f":"T_DataComboFile[[#This Row],[2021/22 Baseline]]+T_DataComboFile[[#This Row],[2021/22 Reduction]]+T_DataComboFile[[#This Row],[2021/22 Increase]]","v":0},{"$f":"T_DataComboFile[[#This Row],[2022/23 Baseline]]+T_DataComboFile[[#This Row],[2022/23 Reduction]]+T_DataComboFile[[#This Row],[2022/23 Increase]]","v":0},{"$f":"T_DataComboFile[[#This Row],[2023/24 Baseline]]+T_DataComboFile[[#This Row],[2023/24 Reduction]]+T_DataComboFile[[#This Row],[2023/24 Increase]]","v":0}]
[null,null,"2021_22","ENE2020",36,1,1,null,70091,36,1,1,null,"070091","36|01|01",1,1,2,24,24,"01|01|02|24|24","National","Small Business Development","Administration","Ministry",null,"Current","Current payments","Goods and services","Inventory: Fuel, oil and gas","Inventory: Fuel, oil and gas",null,null,null,0,0,0,0,0,0,0,0,0,0,0,0,0,0,null,{"$f":"IF(T_DataComboFile[[#This Row],[G&S reporting level indicator]]=1,$AX$16,\"Not applicable\")","v":"Not applicable"},{"$f":"IF(AND($AX$16=\"Level 3\",T_DataComboFile[[#This Row],[Econ3]] = \"Goods and services\"),IF(T_DataComboFile[[#This Row],[Econ4]] = T_DataComboFile[[#This Row],[Econ3]],1,0),IF(AND($AX$16=\"Level 4\",T_DataComboFile[[#This Row],[Econ4]] = \"Goods and services\"),0,1))","v":0},{"$f":"T_DataComboFile[[#This Row],[2016/17_Source]]*T_DataComboFile[[#This Row],[G&S reporting level indicator]]","v":0},{"$f":"T_DataComboFile[[#This Row],[2017/18_Source]]*T_DataComboFile[[#This Row],[G&S reporting level indicator]]","v":0},{"$f":"T_DataComboFile[[#This Row],[2018/19_Source]]*T_DataComboFile[[#This Row],[G&S reporting level indicator]]","v":0},{"$f":"T_DataComboFile[[#This Row],[2019/20 Main appropriation_Source]]*T_DataComboFile[[#This Row],[G&S reporting level indicator]]","v":0},{"$f":"T_DataComboFile[[#This Row],[2019/20 Adjusted appropriation_Source]]*T_DataComboFile[[#This Row],[G&S reporting level indicator]]","v":0},{"$f":"T_DataComboFile[[#This Row],[2019/20 Revised estimate_Source]]*T_DataComboFile[[#This Row],[G&S reporting level indicator]]","v":0},{"$f":"T_DataComboFile[[#This Row],[2019/20 Preliminary outcome_Source]]*T_DataComboFile[[#This Row],[G&S reporting level indicator]]","v":0},{"$f":"T_DataComboFile[[#This Row],[2020/21 Original_Source]]*T_DataComboFile[[#This Row],[G&S reporting level indicator]]","v":0},{"$f":"T_DataComboFile[[#This Row],[2020/21 SAB_Source]]*T_DataComboFile[[#This Row],[G&S reporting level indicator]]","v":0},{"$f":"T_DataComboFile[[#This Row],[2020/21 Baseline_Source]]*T_DataComboFile[[#This Row],[G&S reporting level indicator]]","v":0},{"$f":"T_DataComboFile[[#This Row],[2021/22 Baseline_Source]]*T_DataComboFile[[#This Row],[G&S reporting level indicator]]","v":0},{"$f":"T_DataComboFile[[#This Row],[2022/23 Baseline_Source]]*T_DataComboFile[[#This Row],[G&S reporting level indicator]]","v":0},{"$f":"T_DataComboFile[[#This Row],[2023/24 Baseline_Source]]*T_DataComboFile[[#This Row],[G&S reporting level indicator]]","v":0},null,null,null,null,null,null,{"$f":"T_DataComboFile[[#This Row],[2021/22 Baseline]]+T_DataComboFile[[#This Row],[2021/22 Reduction]]+T_DataComboFile[[#This Row],[2021/22 Increase]]","v":0},{"$f":"T_DataComboFile[[#This Row],[2022/23 Baseline]]+T_DataComboFile[[#This Row],[2022/23 Reduction]]+T_DataComboFile[[#This Row],[2022/23 Increase]]","v":0},{"$f":"T_DataComboFile[[#This Row],[2023/24 Baseline]]+T_DataComboFile[[#This Row],[2023/24 Reduction]]+T_DataComboFile[[#This Row],[2023/24 Increase]]","v":0}]
[null,null,"2021_22","ENE2020",36,1,1,null,70092,36,1,1,null,"070092","36|01|01",1,1,2,25,25,"01|01|02|25|25","National","Small Business Development","Administration","Ministry",null,"Current","Current payments","Goods and services","Inventory: Learner and teacher support material","Inventory: Learner and teacher support material",null,null,null,0,0,0,0,0,0,0,0,0,0,0,0,0,0,null,{"$f":"IF(T_DataComboFile[[#This Row],[G&S reporting level indicator]]=1,$AX$16,\"Not applicable\")","v":"Not applicable"},{"$f":"IF(AND($AX$16=\"Level 3\",T_DataComboFile[[#This Row],[Econ3]] = \"Goods and services\"),IF(T_DataComboFile[[#This Row],[Econ4]] = T_DataComboFile[[#This Row],[Econ3]],1,0),IF(AND($AX$16=\"Level 4\",T_DataComboFile[[#This Row],[Econ4]] = \"Goods and services\"),0,1))","v":0},{"$f":"T_DataComboFile[[#This Row],[2016/17_Source]]*T_DataComboFile[[#This Row],[G&S reporting level indicator]]","v":0},{"$f":"T_DataComboFile[[#This Row],[2017/18_Source]]*T_DataComboFile[[#This Row],[G&S reporting level indicator]]","v":0},{"$f":"T_DataComboFile[[#This Row],[2018/19_Source]]*T_DataComboFile[[#This Row],[G&S reporting level indicator]]","v":0},{"$f":"T_DataComboFile[[#This Row],[2019/20 Main appropriation_Source]]*T_DataComboFile[[#This Row],[G&S reporting level indicator]]","v":0},{"$f":"T_DataComboFile[[#This Row],[2019/20 Adjusted appropriation_Source]]*T_DataComboFile[[#This Row],[G&S reporting level indicator]]","v":0},{"$f":"T_DataComboFile[[#This Row],[2019/20 Revised estimate_Source]]*T_DataComboFile[[#This Row],[G&S reporting level indicator]]","v":0},{"$f":"T_DataComboFile[[#This Row],[2019/20 Preliminary outcome_Source]]*T_DataComboFile[[#This Row],[G&S reporting level indicator]]","v":0},{"$f":"T_DataComboFile[[#This Row],[2020/21 Original_Source]]*T_DataComboFile[[#This Row],[G&S reporting level indicator]]","v":0},{"$f":"T_DataComboFile[[#This Row],[2020/21 SAB_Source]]*T_DataComboFile[[#This Row],[G&S reporting level indicator]]","v":0},{"$f":"T_DataComboFile[[#This Row],[2020/21 Baseline_Source]]*T_DataComboFile[[#This Row],[G&S reporting level indicator]]","v":0},{"$f":"T_DataComboFile[[#This Row],[2021/22 Baseline_Source]]*T_DataComboFile[[#This Row],[G&S reporting level indicator]]","v":0},{"$f":"T_DataComboFile[[#This Row],[2022/23 Baseline_Source]]*T_DataComboFile[[#This Row],[G&S reporting level indicator]]","v":0},{"$f":"T_DataComboFile[[#This Row],[2023/24 Baseline_Source]]*T_DataComboFile[[#This Row],[G&S reporting level indicator]]","v":0},null,null,null,null,null,null,{"$f":"T_DataComboFile[[#This Row],[2021/22 Baseline]]+T_DataComboFile[[#This Row],[2021/22 Reduction]]+T_DataComboFile[[#This Row],[2021/22 Increase]]","v":0},{"$f":"T_DataComboFile[[#This Row],[2022/23 Baseline]]+T_DataComboFile[[#This Row],[2022/23 Reduction]]+T_DataComboFile[[#This Row],[2022/23 Increase]]","v":0},{"$f":"T_DataComboFile[[#This Row],[2023/24 Baseline]]+T_DataComboFile[[#This Row],[2023/24 Reduction]]+T_DataComboFile[[#This Row],[2023/24 Increase]]","v":0}]
[null,null,"2021_22","ENE2020",36,1,1,null,70093,36,1,1,null,"070093","36|01|01",1,1,2,26,26,"01|01|02|26|26","National","Small Business Development","Administration","Ministry",null,"Current","Current payments","Goods and services","Inventory: Materials and supplies","Inventory: Materials and supplies",null,null,null,0,0,0,0,0,0,0,0,0,0,0,0,0,0,null,{"$f":"IF(T_DataComboFile[[#This Row],[G&S reporting level indicator]]=1,$AX$16,\"Not applicable\")","v":"Not applicable"},{"$f":"IF(AND($AX$16=\"Level 3\",T_DataComboFile[[#This Row],[Econ3]] = \"Goods and services\"),IF(T_DataComboFile[[#This Row],[Econ4]] = T_DataComboFile[[#This Row],[Econ3]],1,0),IF(AND($AX$16=\"Level 4\",T_DataComboFile[[#This Row],[Econ4]] = \"Goods and services\"),0,1))","v":0},{"$f":"T_DataComboFile[[#This Row],[2016/17_Source]]*T_DataComboFile[[#This Row],[G&S reporting level indicator]]","v":0},{"$f":"T_DataComboFile[[#This Row],[2017/18_Source]]*T_DataComboFile[[#This Row],[G&S reporting level indicator]]","v":0},{"$f":"T_DataComboFile[[#This Row],[2018/19_Source]]*T_DataComboFile[[#This Row],[G&S reporting level indicator]]","v":0},{"$f":"T_DataComboFile[[#This Row],[2019/20 Main appropriation_Source]]*T_DataComboFile[[#This Row],[G&S reporting level indicator]]","v":0},{"$f":"T_DataComboFile[[#This Row],[2019/20 Adjusted appropriation_Source]]*T_DataComboFile[[#This Row],[G&S reporting level indicator]]","v":0},{"$f":"T_DataComboFile[[#This Row],[2019/20 Revised estimate_Source]]*T_DataComboFile[[#This Row],[G&S reporting level indicator]]","v":0},{"$f":"T_DataComboFile[[#This Row],[2019/20 Preliminary outcome_Source]]*T_DataComboFile[[#This Row],[G&S reporting level indicator]]","v":0},{"$f":"T_DataComboFile[[#This Row],[2020/21 Original_Source]]*T_DataComboFile[[#This Row],[G&S reporting level indicator]]","v":0},{"$f":"T_DataComboFile[[#This Row],[2020/21 SAB_Source]]*T_DataComboFile[[#This Row],[G&S reporting level indicator]]","v":0},{"$f":"T_DataComboFile[[#This Row],[2020/21 Baseline_Source]]*T_DataComboFile[[#This Row],[G&S reporting level indicator]]","v":0},{"$f":"T_DataComboFile[[#This Row],[2021/22 Baseline_Source]]*T_DataComboFile[[#This Row],[G&S reporting level indicator]]","v":0},{"$f":"T_DataComboFile[[#This Row],[2022/23 Baseline_Source]]*T_DataComboFile[[#This Row],[G&S reporting level indicator]]","v":0},{"$f":"T_DataComboFile[[#This Row],[2023/24 Baseline_Source]]*T_DataComboFile[[#This Row],[G&S reporting level indicator]]","v":0},null,null,null,null,null,null,{"$f":"T_DataComboFile[[#This Row],[2021/22 Baseline]]+T_DataComboFile[[#This Row],[2021/22 Reduction]]+T_DataComboFile[[#This Row],[2021/22 Increase]]","v":0},{"$f":"T_DataComboFile[[#This Row],[2022/23 Baseline]]+T_DataComboFile[[#This Row],[2022/23 Reduction]]+T_DataComboFile[[#This Row],[2022/23 Increase]]","v":0},{"$f":"T_DataComboFile[[#This Row],[2023/24 Baseline]]+T_DataComboFile[[#This Row],[2023/24 Reduction]]+T_DataComboFile[[#This Row],[2023/24 Increase]]","v":0}]
[null,null,"2021_22","ENE2020",36,1,1,null,70094,36,1,1,null,"070094","36|01|01",1,1,2,27,27,"01|01|02|27|27","National","Small Business Development","Administration","Ministry",null,"Current","Current payments","Goods and services","Inventory: Medical supplies","Inventory: Medical supplies",null,null,null,0,0,0,0,0,0,0,0,0,0,0,0,0,0,null,{"$f":"IF(T_DataComboFile[[#This Row],[G&S reporting level indicator]]=1,$AX$16,\"Not applicable\")","v":"Not applicable"},{"$f":"IF(AND($AX$16=\"Level 3\",T_DataComboFile[[#This Row],[Econ3]] = \"Goods and services\"),IF(T_DataComboFile[[#This Row],[Econ4]] = T_DataComboFile[[#This Row],[Econ3]],1,0),IF(AND($AX$16=\"Level 4\",T_DataComboFile[[#This Row],[Econ4]] = \"Goods and services\"),0,1))","v":0},{"$f":"T_DataComboFile[[#This Row],[2016/17_Source]]*T_DataComboFile[[#This Row],[G&S reporting level indicator]]","v":0},{"$f":"T_DataComboFile[[#This Row],[2017/18_Source]]*T_DataComboFile[[#This Row],[G&S reporting level indicator]]","v":0},{"$f":"T_DataComboFile[[#This Row],[2018/19_Source]]*T_DataComboFile[[#This Row],[G&S reporting level indicator]]","v":0},{"$f":"T_DataComboFile[[#This Row],[2019/20 Main appropriation_Source]]*T_DataComboFile[[#This Row],[G&S reporting level indicator]]","v":0},{"$f":"T_DataComboFile[[#This Row],[2019/20 Adjusted appropriation_Source]]*T_DataComboFile[[#This Row],[G&S reporting level indicator]]","v":0},{"$f":"T_DataComboFile[[#This Row],[2019/20 Revised estimate_Source]]*T_DataComboFile[[#This Row],[G&S reporting level indicator]]","v":0},{"$f":"T_DataComboFile[[#This Row],[2019/20 Preliminary outcome_Source]]*T_DataComboFile[[#This Row],[G&S reporting level indicator]]","v":0},{"$f":"T_DataComboFile[[#This Row],[2020/21 Original_Source]]*T_DataComboFile[[#This Row],[G&S reporting level indicator]]","v":0},{"$f":"T_DataComboFile[[#This Row],[2020/21 SAB_Source]]*T_DataComboFile[[#This Row],[G&S reporting level indicator]]","v":0},{"$f":"T_DataComboFile[[#This Row],[2020/21 Baseline_Source]]*T_DataComboFile[[#This Row],[G&S reporting level indicator]]","v":0},{"$f":"T_DataComboFile[[#This Row],[2021/22 Baseline_Source]]*T_DataComboFile[[#This Row],[G&S reporting level indicator]]","v":0},{"$f":"T_DataComboFile[[#This Row],[2022/23 Baseline_Source]]*T_DataComboFile[[#This Row],[G&S reporting level indicator]]","v":0},{"$f":"T_DataComboFile[[#This Row],[2023/24 Baseline_Source]]*T_DataComboFile[[#This Row],[G&S reporting level indicator]]","v":0},null,null,null,null,null,null,{"$f":"T_DataComboFile[[#This Row],[2021/22 Baseline]]+T_DataComboFile[[#This Row],[2021/22 Reduction]]+T_DataComboFile[[#This Row],[2021/22 Increase]]","v":0},{"$f":"T_DataComboFile[[#This Row],[2022/23 Baseline]]+T_DataComboFile[[#This Row],[2022/23 Reduction]]+T_DataComboFile[[#This Row],[2022/23 Increase]]","v":0},{"$f":"T_DataComboFile[[#This Row],[2023/24 Baseline]]+T_DataComboFile[[#This Row],[2023/24 Reduction]]+T_DataComboFile[[#This Row],[2023/24 Increase]]","v":0}]
[null,null,"2021_22","ENE2020",36,1,1,null,70095,36,1,1,null,"070095","36|01|01",1,1,2,28,28,"01|01|02|28|28","National","Small Business Development","Administration","Ministry",null,"Current","Current payments","Goods and services","Inventory: Medicine","Inventory: Medicine",null,null,null,0,0,0,0,0,0,0,0,0,0,0,0,0,0,null,{"$f":"IF(T_DataComboFile[[#This Row],[G&S reporting level indicator]]=1,$AX$16,\"Not applicable\")","v":"Not applicable"},{"$f":"IF(AND($AX$16=\"Level 3\",T_DataComboFile[[#This Row],[Econ3]] = \"Goods and services\"),IF(T_DataComboFile[[#This Row],[Econ4]] = T_DataComboFile[[#This Row],[Econ3]],1,0),IF(AND($AX$16=\"Level 4\",T_DataComboFile[[#This Row],[Econ4]] = \"Goods and services\"),0,1))","v":0},{"$f":"T_DataComboFile[[#This Row],[2016/17_Source]]*T_DataComboFile[[#This Row],[G&S reporting level indicator]]","v":0},{"$f":"T_DataComboFile[[#This Row],[2017/18_Source]]*T_DataComboFile[[#This Row],[G&S reporting level indicator]]","v":0},{"$f":"T_DataComboFile[[#This Row],[2018/19_Source]]*T_DataComboFile[[#This Row],[G&S reporting level indicator]]","v":0},{"$f":"T_DataComboFile[[#This Row],[2019/20 Main appropriation_Source]]*T_DataComboFile[[#This Row],[G&S reporting level indicator]]","v":0},{"$f":"T_DataComboFile[[#This Row],[2019/20 Adjusted appropriation_Source]]*T_DataComboFile[[#This Row],[G&S reporting level indicator]]","v":0},{"$f":"T_DataComboFile[[#This Row],[2019/20 Revised estimate_Source]]*T_DataComboFile[[#This Row],[G&S reporting level indicator]]","v":0},{"$f":"T_DataComboFile[[#This Row],[2019/20 Preliminary outcome_Source]]*T_DataComboFile[[#This Row],[G&S reporting level indicator]]","v":0},{"$f":"T_DataComboFile[[#This Row],[2020/21 Original_Source]]*T_DataComboFile[[#This Row],[G&S reporting level indicator]]","v":0},{"$f":"T_DataComboFile[[#This Row],[2020/21 SAB_Source]]*T_DataComboFile[[#This Row],[G&S reporting level indicator]]","v":0},{"$f":"T_DataComboFile[[#This Row],[2020/21 Baseline_Source]]*T_DataComboFile[[#This Row],[G&S reporting level indicator]]","v":0},{"$f":"T_DataComboFile[[#This Row],[2021/22 Baseline_Source]]*T_DataComboFile[[#This Row],[G&S reporting level indicator]]","v":0},{"$f":"T_DataComboFile[[#This Row],[2022/23 Baseline_Source]]*T_DataComboFile[[#This Row],[G&S reporting level indicator]]","v":0},{"$f":"T_DataComboFile[[#This Row],[2023/24 Baseline_Source]]*T_DataComboFile[[#This Row],[G&S reporting level indicator]]","v":0},null,null,null,null,null,null,{"$f":"T_DataComboFile[[#This Row],[2021/22 Baseline]]+T_DataComboFile[[#This Row],[2021/22 Reduction]]+T_DataComboFile[[#This Row],[2021/22 Increase]]","v":0},{"$f":"T_DataComboFile[[#This Row],[2022/23 Baseline]]+T_DataComboFile[[#This Row],[2022/23 Reduction]]+T_DataComboFile[[#This Row],[2022/23 Increase]]","v":0},{"$f":"T_DataComboFile[[#This Row],[2023/24 Baseline]]+T_DataComboFile[[#This Row],[2023/24 Reduction]]+T_DataComboFile[[#This Row],[2023/24 Increase]]","v":0}]
[null,null,"2021_22","ENE2020",36,1,1,null,70096,36,1,1,null,"070096","36|01|01",1,1,2,29,29,"01|01|02|29|29","National","Small Business Development","Administration","Ministry",null,"Current","Current payments","Goods and services","Medsas inventory interface","Medsas inventory interface",null,null,null,0,0,0,0,0,0,0,0,0,0,0,0,0,0,null,{"$f":"IF(T_DataComboFile[[#This Row],[G&S reporting level indicator]]=1,$AX$16,\"Not applicable\")","v":"Not applicable"},{"$f":"IF(AND($AX$16=\"Level 3\",T_DataComboFile[[#This Row],[Econ3]] = \"Goods and services\"),IF(T_DataComboFile[[#This Row],[Econ4]] = T_DataComboFile[[#This Row],[Econ3]],1,0),IF(AND($AX$16=\"Level 4\",T_DataComboFile[[#This Row],[Econ4]] = \"Goods and services\"),0,1))","v":0},{"$f":"T_DataComboFile[[#This Row],[2016/17_Source]]*T_DataComboFile[[#This Row],[G&S reporting level indicator]]","v":0},{"$f":"T_DataComboFile[[#This Row],[2017/18_Source]]*T_DataComboFile[[#This Row],[G&S reporting level indicator]]","v":0},{"$f":"T_DataComboFile[[#This Row],[2018/19_Source]]*T_DataComboFile[[#This Row],[G&S reporting level indicator]]","v":0},{"$f":"T_DataComboFile[[#This Row],[2019/20 Main appropriation_Source]]*T_DataComboFile[[#This Row],[G&S reporting level indicator]]","v":0},{"$f":"T_DataComboFile[[#This Row],[2019/20 Adjusted appropriation_Source]]*T_DataComboFile[[#This Row],[G&S reporting level indicator]]","v":0},{"$f":"T_DataComboFile[[#This Row],[2019/20 Revised estimate_Source]]*T_DataComboFile[[#This Row],[G&S reporting level indicator]]","v":0},{"$f":"T_DataComboFile[[#This Row],[2019/20 Preliminary outcome_Source]]*T_DataComboFile[[#This Row],[G&S reporting level indicator]]","v":0},{"$f":"T_DataComboFile[[#This Row],[2020/21 Original_Source]]*T_DataComboFile[[#This Row],[G&S reporting level indicator]]","v":0},{"$f":"T_DataComboFile[[#This Row],[2020/21 SAB_Source]]*T_DataComboFile[[#This Row],[G&S reporting level indicator]]","v":0},{"$f":"T_DataComboFile[[#This Row],[2020/21 Baseline_Source]]*T_DataComboFile[[#This Row],[G&S reporting level indicator]]","v":0},{"$f":"T_DataComboFile[[#This Row],[2021/22 Baseline_Source]]*T_DataComboFile[[#This Row],[G&S reporting level indicator]]","v":0},{"$f":"T_DataComboFile[[#This Row],[2022/23 Baseline_Source]]*T_DataComboFile[[#This Row],[G&S reporting level indicator]]","v":0},{"$f":"T_DataComboFile[[#This Row],[2023/24 Baseline_Source]]*T_DataComboFile[[#This Row],[G&S reporting level indicator]]","v":0},null,null,null,null,null,null,{"$f":"T_DataComboFile[[#This Row],[2021/22 Baseline]]+T_DataComboFile[[#This Row],[2021/22 Reduction]]+T_DataComboFile[[#This Row],[2021/22 Increase]]","v":0},{"$f":"T_DataComboFile[[#This Row],[2022/23 Baseline]]+T_DataComboFile[[#This Row],[2022/23 Reduction]]+T_DataComboFile[[#This Row],[2022/23 Increase]]","v":0},{"$f":"T_DataComboFile[[#This Row],[2023/24 Baseline]]+T_DataComboFile[[#This Row],[2023/24 Reduction]]+T_DataComboFile[[#This Row],[2023/24 Increase]]","v":0}]
[null,null,"2021_22","ENE2020",36,1,1,null,70097,36,1,1,null,"070097","36|01|01",1,1,2,30,30,"01|01|02|30|30","National","Small Business Development","Administration","Ministry",null,"Current","Current payments","Goods and services","Inventory: Other supplies","Inventory: Other supplies",null,null,null,0,0,0,0,0,0,0,0,0,0,0,0,0,0,null,{"$f":"IF(T_DataComboFile[[#This Row],[G&S reporting level indicator]]=1,$AX$16,\"Not applicable\")","v":"Not applicable"},{"$f":"IF(AND($AX$16=\"Level 3\",T_DataComboFile[[#This Row],[Econ3]] = \"Goods and services\"),IF(T_DataComboFile[[#This Row],[Econ4]] = T_DataComboFile[[#This Row],[Econ3]],1,0),IF(AND($AX$16=\"Level 4\",T_DataComboFile[[#This Row],[Econ4]] = \"Goods and services\"),0,1))","v":0},{"$f":"T_DataComboFile[[#This Row],[2016/17_Source]]*T_DataComboFile[[#This Row],[G&S reporting level indicator]]","v":0},{"$f":"T_DataComboFile[[#This Row],[2017/18_Source]]*T_DataComboFile[[#This Row],[G&S reporting level indicator]]","v":0},{"$f":"T_DataComboFile[[#This Row],[2018/19_Source]]*T_DataComboFile[[#This Row],[G&S reporting level indicator]]","v":0},{"$f":"T_DataComboFile[[#This Row],[2019/20 Main appropriation_Source]]*T_DataComboFile[[#This Row],[G&S reporting level indicator]]","v":0},{"$f":"T_DataComboFile[[#This Row],[2019/20 Adjusted appropriation_Source]]*T_DataComboFile[[#This Row],[G&S reporting level indicator]]","v":0},{"$f":"T_DataComboFile[[#This Row],[2019/20 Revised estimate_Source]]*T_DataComboFile[[#This Row],[G&S reporting level indicator]]","v":0},{"$f":"T_DataComboFile[[#This Row],[2019/20 Preliminary outcome_Source]]*T_DataComboFile[[#This Row],[G&S reporting level indicator]]","v":0},{"$f":"T_DataComboFile[[#This Row],[2020/21 Original_Source]]*T_DataComboFile[[#This Row],[G&S reporting level indicator]]","v":0},{"$f":"T_DataComboFile[[#This Row],[2020/21 SAB_Source]]*T_DataComboFile[[#This Row],[G&S reporting level indicator]]","v":0},{"$f":"T_DataComboFile[[#This Row],[2020/21 Baseline_Source]]*T_DataComboFile[[#This Row],[G&S reporting level indicator]]","v":0},{"$f":"T_DataComboFile[[#This Row],[2021/22 Baseline_Source]]*T_DataComboFile[[#This Row],[G&S reporting level indicator]]","v":0},{"$f":"T_DataComboFile[[#This Row],[2022/23 Baseline_Source]]*T_DataComboFile[[#This Row],[G&S reporting level indicator]]","v":0},{"$f":"T_DataComboFile[[#This Row],[2023/24 Baseline_Source]]*T_DataComboFile[[#This Row],[G&S reporting level indicator]]","v":0},null,null,null,null,null,null,{"$f":"T_DataComboFile[[#This Row],[2021/22 Baseline]]+T_DataComboFile[[#This Row],[2021/22 Reduction]]+T_DataComboFile[[#This Row],[2021/22 Increase]]","v":0},{"$f":"T_DataComboFile[[#This Row],[2022/23 Baseline]]+T_DataComboFile[[#This Row],[2022/23 Reduction]]+T_DataComboFile[[#This Row],[2022/23 Increase]]","v":0},{"$f":"T_DataComboFile[[#This Row],[2023/24 Baseline]]+T_DataComboFile[[#This Row],[2023/24 Reduction]]+T_DataComboFile[[#This Row],[2023/24 Increase]]","v":0}]
["NAT|Non-transfer item","36|Consumable supplies","2021_22","ENE2020",36,1,1,17185,70098,36,1,1,17185,"070098","36|01|01",1,1,2,31,31,"01|01|02|31|31","National","Small Business Development","Administration","Ministry","Non-transfer item","Current","Current payments","Goods and services","Consumable supplies","Consumable supplies","Economic development","Industrialisation and exports","NAT",23,30,48,32,37,37,37,69,69,69,70,72,75,1,null,{"$f":"IF(T_DataComboFile[[#This Row],[G&S reporting level indicator]]=1,$AX$16,\"Not applicable\")","v":"Not applicable"},{"$f":"IF(AND($AX$16=\"Level 3\",T_DataComboFile[[#This Row],[Econ3]] = \"Goods and services\"),IF(T_DataComboFile[[#This Row],[Econ4]] = T_DataComboFile[[#This Row],[Econ3]],1,0),IF(AND($AX$16=\"Level 4\",T_DataComboFile[[#This Row],[Econ4]] = \"Goods and services\"),0,1))","v":0},{"$f":"T_DataComboFile[[#This Row],[2016/17_Source]]*T_DataComboFile[[#This Row],[G&S reporting level indicator]]","v":0},{"$f":"T_DataComboFile[[#This Row],[2017/18_Source]]*T_DataComboFile[[#This Row],[G&S reporting level indicator]]","v":0},{"$f":"T_DataComboFile[[#This Row],[2018/19_Source]]*T_DataComboFile[[#This Row],[G&S reporting level indicator]]","v":0},{"$f":"T_DataComboFile[[#This Row],[2019/20 Main appropriation_Source]]*T_DataComboFile[[#This Row],[G&S reporting level indicator]]","v":0},{"$f":"T_DataComboFile[[#This Row],[2019/20 Adjusted appropriation_Source]]*T_DataComboFile[[#This Row],[G&S reporting level indicator]]","v":0},{"$f":"T_DataComboFile[[#This Row],[2019/20 Revised estimate_Source]]*T_DataComboFile[[#This Row],[G&S reporting level indicator]]","v":0},{"$f":"T_DataComboFile[[#This Row],[2019/20 Preliminary outcome_Source]]*T_DataComboFile[[#This Row],[G&S reporting level indicator]]","v":0},{"$f":"T_DataComboFile[[#This Row],[2020/21 Original_Source]]*T_DataComboFile[[#This Row],[G&S reporting level indicator]]","v":0},{"$f":"T_DataComboFile[[#This Row],[2020/21 SAB_Source]]*T_DataComboFile[[#This Row],[G&S reporting level indicator]]","v":0},{"$f":"T_DataComboFile[[#This Row],[2020/21 Baseline_Source]]*T_DataComboFile[[#This Row],[G&S reporting level indicator]]","v":0},{"$f":"T_DataComboFile[[#This Row],[2021/22 Baseline_Source]]*T_DataComboFile[[#This Row],[G&S reporting level indicator]]","v":0},{"$f":"T_DataComboFile[[#This Row],[2022/23 Baseline_Source]]*T_DataComboFile[[#This Row],[G&S reporting level indicator]]","v":0},{"$f":"T_DataComboFile[[#This Row],[2023/24 Baseline_Source]]*T_DataComboFile[[#This Row],[G&S reporting level indicator]]","v":0},null,null,null,null,null,null,{"$f":"T_DataComboFile[[#This Row],[2021/22 Baseline]]+T_DataComboFile[[#This Row],[2021/22 Reduction]]+T_DataComboFile[[#This Row],[2021/22 Increase]]","v":0},{"$f":"T_DataComboFile[[#This Row],[2022/23 Baseline]]+T_DataComboFile[[#This Row],[2022/23 Reduction]]+T_DataComboFile[[#This Row],[2022/23 Increase]]","v":0},{"$f":"T_DataComboFile[[#This Row],[2023/24 Baseline]]+T_DataComboFile[[#This Row],[2023/24 Reduction]]+T_DataComboFile[[#This Row],[2023/24 Increase]]","v":0}]
["NAT|Non-transfer item","36|Consumables: Stationery, printing and office supplies","2021_22","ENE2020",36,1,1,17186,70099,36,1,1,17186,"070099","36|01|01",1,1,2,32,32,"01|01|02|32|32","National","Small Business Development","Administration","Ministry","Non-transfer item","Current","Current payments","Goods and services","Consumables: Stationery, printing and office supplies","Consumables: Stationery, printing and office supplies","Economic development","Industrialisation and exports","NAT",89,67,173,106,80,80,80,112,112,112,118,122,127,1,null,{"$f":"IF(T_DataComboFile[[#This Row],[G&S reporting level indicator]]=1,$AX$16,\"Not applicable\")","v":"Not applicable"},{"$f":"IF(AND($AX$16=\"Level 3\",T_DataComboFile[[#This Row],[Econ3]] = \"Goods and services\"),IF(T_DataComboFile[[#This Row],[Econ4]] = T_DataComboFile[[#This Row],[Econ3]],1,0),IF(AND($AX$16=\"Level 4\",T_DataComboFile[[#This Row],[Econ4]] = \"Goods and services\"),0,1))","v":0},{"$f":"T_DataComboFile[[#This Row],[2016/17_Source]]*T_DataComboFile[[#This Row],[G&S reporting level indicator]]","v":0},{"$f":"T_DataComboFile[[#This Row],[2017/18_Source]]*T_DataComboFile[[#This Row],[G&S reporting level indicator]]","v":0},{"$f":"T_DataComboFile[[#This Row],[2018/19_Source]]*T_DataComboFile[[#This Row],[G&S reporting level indicator]]","v":0},{"$f":"T_DataComboFile[[#This Row],[2019/20 Main appropriation_Source]]*T_DataComboFile[[#This Row],[G&S reporting level indicator]]","v":0},{"$f":"T_DataComboFile[[#This Row],[2019/20 Adjusted appropriation_Source]]*T_DataComboFile[[#This Row],[G&S reporting level indicator]]","v":0},{"$f":"T_DataComboFile[[#This Row],[2019/20 Revised estimate_Source]]*T_DataComboFile[[#This Row],[G&S reporting level indicator]]","v":0},{"$f":"T_DataComboFile[[#This Row],[2019/20 Preliminary outcome_Source]]*T_DataComboFile[[#This Row],[G&S reporting level indicator]]","v":0},{"$f":"T_DataComboFile[[#This Row],[2020/21 Original_Source]]*T_DataComboFile[[#This Row],[G&S reporting level indicator]]","v":0},{"$f":"T_DataComboFile[[#This Row],[2020/21 SAB_Source]]*T_DataComboFile[[#This Row],[G&S reporting level indicator]]","v":0},{"$f":"T_DataComboFile[[#This Row],[2020/21 Baseline_Source]]*T_DataComboFile[[#This Row],[G&S reporting level indicator]]","v":0},{"$f":"T_DataComboFile[[#This Row],[2021/22 Baseline_Source]]*T_DataComboFile[[#This Row],[G&S reporting level indicator]]","v":0},{"$f":"T_DataComboFile[[#This Row],[2022/23 Baseline_Source]]*T_DataComboFile[[#This Row],[G&S reporting level indicator]]","v":0},{"$f":"T_DataComboFile[[#This Row],[2023/24 Baseline_Source]]*T_DataComboFile[[#This Row],[G&S reporting level indicator]]","v":0},null,null,null,null,null,null,{"$f":"T_DataComboFile[[#This Row],[2021/22 Baseline]]+T_DataComboFile[[#This Row],[2021/22 Reduction]]+T_DataComboFile[[#This Row],[2021/22 Increase]]","v":0},{"$f":"T_DataComboFile[[#This Row],[2022/23 Baseline]]+T_DataComboFile[[#This Row],[2022/23 Reduction]]+T_DataComboFile[[#This Row],[2022/23 Increase]]","v":0},{"$f":"T_DataComboFile[[#This Row],[2023/24 Baseline]]+T_DataComboFile[[#This Row],[2023/24 Reduction]]+T_DataComboFile[[#This Row],[2023/24 Increase]]","v":0}]
["NAT|Non-transfer item","36|Operating leases","2021_22","ENE2020",36,1,1,17187,70100,36,1,1,17187,"070100","36|01|01",1,1,2,33,33,"01|01|02|33|33","National","Small Business Development","Administration","Ministry","Non-transfer item","Current","Current payments","Goods and services","Operating leases","Operating leases","Economic development","Industrialisation and exports","NAT",1063,1082,249,0,40,40,40,0,0,0,0,0,0,1,null,{"$f":"IF(T_DataComboFile[[#This Row],[G&S reporting level indicator]]=1,$AX$16,\"Not applicable\")","v":"Not applicable"},{"$f":"IF(AND($AX$16=\"Level 3\",T_DataComboFile[[#This Row],[Econ3]] = \"Goods and services\"),IF(T_DataComboFile[[#This Row],[Econ4]] = T_DataComboFile[[#This Row],[Econ3]],1,0),IF(AND($AX$16=\"Level 4\",T_DataComboFile[[#This Row],[Econ4]] = \"Goods and services\"),0,1))","v":0},{"$f":"T_DataComboFile[[#This Row],[2016/17_Source]]*T_DataComboFile[[#This Row],[G&S reporting level indicator]]","v":0},{"$f":"T_DataComboFile[[#This Row],[2017/18_Source]]*T_DataComboFile[[#This Row],[G&S reporting level indicator]]","v":0},{"$f":"T_DataComboFile[[#This Row],[2018/19_Source]]*T_DataComboFile[[#This Row],[G&S reporting level indicator]]","v":0},{"$f":"T_DataComboFile[[#This Row],[2019/20 Main appropriation_Source]]*T_DataComboFile[[#This Row],[G&S reporting level indicator]]","v":0},{"$f":"T_DataComboFile[[#This Row],[2019/20 Adjusted appropriation_Source]]*T_DataComboFile[[#This Row],[G&S reporting level indicator]]","v":0},{"$f":"T_DataComboFile[[#This Row],[2019/20 Revised estimate_Source]]*T_DataComboFile[[#This Row],[G&S reporting level indicator]]","v":0},{"$f":"T_DataComboFile[[#This Row],[2019/20 Preliminary outcome_Source]]*T_DataComboFile[[#This Row],[G&S reporting level indicator]]","v":0},{"$f":"T_DataComboFile[[#This Row],[2020/21 Original_Source]]*T_DataComboFile[[#This Row],[G&S reporting level indicator]]","v":0},{"$f":"T_DataComboFile[[#This Row],[2020/21 SAB_Source]]*T_DataComboFile[[#This Row],[G&S reporting level indicator]]","v":0},{"$f":"T_DataComboFile[[#This Row],[2020/21 Baseline_Source]]*T_DataComboFile[[#This Row],[G&S reporting level indicator]]","v":0},{"$f":"T_DataComboFile[[#This Row],[2021/22 Baseline_Source]]*T_DataComboFile[[#This Row],[G&S reporting level indicator]]","v":0},{"$f":"T_DataComboFile[[#This Row],[2022/23 Baseline_Source]]*T_DataComboFile[[#This Row],[G&S reporting level indicator]]","v":0},{"$f":"T_DataComboFile[[#This Row],[2023/24 Baseline_Source]]*T_DataComboFile[[#This Row],[G&S reporting level indicator]]","v":0},null,null,null,null,null,null,{"$f":"T_DataComboFile[[#This Row],[2021/22 Baseline]]+T_DataComboFile[[#This Row],[2021/22 Reduction]]+T_DataComboFile[[#This Row],[2021/22 Increase]]","v":0},{"$f":"T_DataComboFile[[#This Row],[2022/23 Baseline]]+T_DataComboFile[[#This Row],[2022/23 Reduction]]+T_DataComboFile[[#This Row],[2022/23 Increase]]","v":0},{"$f":"T_DataComboFile[[#This Row],[2023/24 Baseline]]+T_DataComboFile[[#This Row],[2023/24 Reduction]]+T_DataComboFile[[#This Row],[2023/24 Increase]]","v":0}]
["NAT|Non-transfer item","36|Rental and hiring","2021_22","ENE2020",36,1,1,17188,70101,36,1,1,17188,"070101","36|01|01",1,1,2,34,34,"01|01|02|34|34","National","Small Business Development","Administration","Ministry","Non-transfer item","Current","Current payments","Goods and services","Rental and hiring","Rental and hiring","Economic development","Industrialisation and exports","NAT",0,55,0,0,0,0,0,0,0,0,0,0,0,1,null,{"$f":"IF(T_DataComboFile[[#This Row],[G&S reporting level indicator]]=1,$AX$16,\"Not applicable\")","v":"Not applicable"},{"$f":"IF(AND($AX$16=\"Level 3\",T_DataComboFile[[#This Row],[Econ3]] = \"Goods and services\"),IF(T_DataComboFile[[#This Row],[Econ4]] = T_DataComboFile[[#This Row],[Econ3]],1,0),IF(AND($AX$16=\"Level 4\",T_DataComboFile[[#This Row],[Econ4]] = \"Goods and services\"),0,1))","v":0},{"$f":"T_DataComboFile[[#This Row],[2016/17_Source]]*T_DataComboFile[[#This Row],[G&S reporting level indicator]]","v":0},{"$f":"T_DataComboFile[[#This Row],[2017/18_Source]]*T_DataComboFile[[#This Row],[G&S reporting level indicator]]","v":0},{"$f":"T_DataComboFile[[#This Row],[2018/19_Source]]*T_DataComboFile[[#This Row],[G&S reporting level indicator]]","v":0},{"$f":"T_DataComboFile[[#This Row],[2019/20 Main appropriation_Source]]*T_DataComboFile[[#This Row],[G&S reporting level indicator]]","v":0},{"$f":"T_DataComboFile[[#This Row],[2019/20 Adjusted appropriation_Source]]*T_DataComboFile[[#This Row],[G&S reporting level indicator]]","v":0},{"$f":"T_DataComboFile[[#This Row],[2019/20 Revised estimate_Source]]*T_DataComboFile[[#This Row],[G&S reporting level indicator]]","v":0},{"$f":"T_DataComboFile[[#This Row],[2019/20 Preliminary outcome_Source]]*T_DataComboFile[[#This Row],[G&S reporting level indicator]]","v":0},{"$f":"T_DataComboFile[[#This Row],[2020/21 Original_Source]]*T_DataComboFile[[#This Row],[G&S reporting level indicator]]","v":0},{"$f":"T_DataComboFile[[#This Row],[2020/21 SAB_Source]]*T_DataComboFile[[#This Row],[G&S reporting level indicator]]","v":0},{"$f":"T_DataComboFile[[#This Row],[2020/21 Baseline_Source]]*T_DataComboFile[[#This Row],[G&S reporting level indicator]]","v":0},{"$f":"T_DataComboFile[[#This Row],[2021/22 Baseline_Source]]*T_DataComboFile[[#This Row],[G&S reporting level indicator]]","v":0},{"$f":"T_DataComboFile[[#This Row],[2022/23 Baseline_Source]]*T_DataComboFile[[#This Row],[G&S reporting level indicator]]","v":0},{"$f":"T_DataComboFile[[#This Row],[2023/24 Baseline_Source]]*T_DataComboFile[[#This Row],[G&S reporting level indicator]]","v":0},null,null,null,null,null,null,{"$f":"T_DataComboFile[[#This Row],[2021/22 Baseline]]+T_DataComboFile[[#This Row],[2021/22 Reduction]]+T_DataComboFile[[#This Row],[2021/22 Increase]]","v":0},{"$f":"T_DataComboFile[[#This Row],[2022/23 Baseline]]+T_DataComboFile[[#This Row],[2022/23 Reduction]]+T_DataComboFile[[#This Row],[2022/23 Increase]]","v":0},{"$f":"T_DataComboFile[[#This Row],[2023/24 Baseline]]+T_DataComboFile[[#This Row],[2023/24 Reduction]]+T_DataComboFile[[#This Row],[2023/24 Increase]]","v":0}]
[null,null,"2021_22","ENE2020",36,1,1,null,70102,36,1,1,null,"070102","36|01|01",1,1,2,35,35,"01|01|02|35|35","National","Small Business Development","Administration","Ministry",null,"Current","Current payments","Goods and services","Property payments","Property payments",null,null,null,0,0,0,0,0,0,0,0,0,0,0,0,0,0,null,{"$f":"IF(T_DataComboFile[[#This Row],[G&S reporting level indicator]]=1,$AX$16,\"Not applicable\")","v":"Not applicable"},{"$f":"IF(AND($AX$16=\"Level 3\",T_DataComboFile[[#This Row],[Econ3]] = \"Goods and services\"),IF(T_DataComboFile[[#This Row],[Econ4]] = T_DataComboFile[[#This Row],[Econ3]],1,0),IF(AND($AX$16=\"Level 4\",T_DataComboFile[[#This Row],[Econ4]] = \"Goods and services\"),0,1))","v":0},{"$f":"T_DataComboFile[[#This Row],[2016/17_Source]]*T_DataComboFile[[#This Row],[G&S reporting level indicator]]","v":0},{"$f":"T_DataComboFile[[#This Row],[2017/18_Source]]*T_DataComboFile[[#This Row],[G&S reporting level indicator]]","v":0},{"$f":"T_DataComboFile[[#This Row],[2018/19_Source]]*T_DataComboFile[[#This Row],[G&S reporting level indicator]]","v":0},{"$f":"T_DataComboFile[[#This Row],[2019/20 Main appropriation_Source]]*T_DataComboFile[[#This Row],[G&S reporting level indicator]]","v":0},{"$f":"T_DataComboFile[[#This Row],[2019/20 Adjusted appropriation_Source]]*T_DataComboFile[[#This Row],[G&S reporting level indicator]]","v":0},{"$f":"T_DataComboFile[[#This Row],[2019/20 Revised estimate_Source]]*T_DataComboFile[[#This Row],[G&S reporting level indicator]]","v":0},{"$f":"T_DataComboFile[[#This Row],[2019/20 Preliminary outcome_Source]]*T_DataComboFile[[#This Row],[G&S reporting level indicator]]","v":0},{"$f":"T_DataComboFile[[#This Row],[2020/21 Original_Source]]*T_DataComboFile[[#This Row],[G&S reporting level indicator]]","v":0},{"$f":"T_DataComboFile[[#This Row],[2020/21 SAB_Source]]*T_DataComboFile[[#This Row],[G&S reporting level indicator]]","v":0},{"$f":"T_DataComboFile[[#This Row],[2020/21 Baseline_Source]]*T_DataComboFile[[#This Row],[G&S reporting level indicator]]","v":0},{"$f":"T_DataComboFile[[#This Row],[2021/22 Baseline_Source]]*T_DataComboFile[[#This Row],[G&S reporting level indicator]]","v":0},{"$f":"T_DataComboFile[[#This Row],[2022/23 Baseline_Source]]*T_DataComboFile[[#This Row],[G&S reporting level indicator]]","v":0},{"$f":"T_DataComboFile[[#This Row],[2023/24 Baseline_Source]]*T_DataComboFile[[#This Row],[G&S reporting level indicator]]","v":0},null,null,null,null,null,null,{"$f":"T_DataComboFile[[#This Row],[2021/22 Baseline]]+T_DataComboFile[[#This Row],[2021/22 Reduction]]+T_DataComboFile[[#This Row],[2021/22 Increase]]","v":0},{"$f":"T_DataComboFile[[#This Row],[2022/23 Baseline]]+T_DataComboFile[[#This Row],[2022/23 Reduction]]+T_DataComboFile[[#This Row],[2022/23 Increase]]","v":0},{"$f":"T_DataComboFile[[#This Row],[2023/24 Baseline]]+T_DataComboFile[[#This Row],[2023/24 Reduction]]+T_DataComboFile[[#This Row],[2023/24 Increase]]","v":0}]
[null,null,"2021_22","ENE2020",36,1,1,null,70103,36,1,1,null,"070103","36|01|01",1,1,2,36,36,"01|01|02|36|36","National","Small Business Development","Administration","Ministry",null,"Current","Current payments","Goods and services","Transport provided: Departmental activity","Transport provided: Departmental activity",null,null,null,0,0,0,0,0,0,0,0,0,0,0,0,0,0,null,{"$f":"IF(T_DataComboFile[[#This Row],[G&S reporting level indicator]]=1,$AX$16,\"Not applicable\")","v":"Not applicable"},{"$f":"IF(AND($AX$16=\"Level 3\",T_DataComboFile[[#This Row],[Econ3]] = \"Goods and services\"),IF(T_DataComboFile[[#This Row],[Econ4]] = T_DataComboFile[[#This Row],[Econ3]],1,0),IF(AND($AX$16=\"Level 4\",T_DataComboFile[[#This Row],[Econ4]] = \"Goods and services\"),0,1))","v":0},{"$f":"T_DataComboFile[[#This Row],[2016/17_Source]]*T_DataComboFile[[#This Row],[G&S reporting level indicator]]","v":0},{"$f":"T_DataComboFile[[#This Row],[2017/18_Source]]*T_DataComboFile[[#This Row],[G&S reporting level indicator]]","v":0},{"$f":"T_DataComboFile[[#This Row],[2018/19_Source]]*T_DataComboFile[[#This Row],[G&S reporting level indicator]]","v":0},{"$f":"T_DataComboFile[[#This Row],[2019/20 Main appropriation_Source]]*T_DataComboFile[[#This Row],[G&S reporting level indicator]]","v":0},{"$f":"T_DataComboFile[[#This Row],[2019/20 Adjusted appropriation_Source]]*T_DataComboFile[[#This Row],[G&S reporting level indicator]]","v":0},{"$f":"T_DataComboFile[[#This Row],[2019/20 Revised estimate_Source]]*T_DataComboFile[[#This Row],[G&S reporting level indicator]]","v":0},{"$f":"T_DataComboFile[[#This Row],[2019/20 Preliminary outcome_Source]]*T_DataComboFile[[#This Row],[G&S reporting level indicator]]","v":0},{"$f":"T_DataComboFile[[#This Row],[2020/21 Original_Source]]*T_DataComboFile[[#This Row],[G&S reporting level indicator]]","v":0},{"$f":"T_DataComboFile[[#This Row],[2020/21 SAB_Source]]*T_DataComboFile[[#This Row],[G&S reporting level indicator]]","v":0},{"$f":"T_DataComboFile[[#This Row],[2020/21 Baseline_Source]]*T_DataComboFile[[#This Row],[G&S reporting level indicator]]","v":0},{"$f":"T_DataComboFile[[#This Row],[2021/22 Baseline_Source]]*T_DataComboFile[[#This Row],[G&S reporting level indicator]]","v":0},{"$f":"T_DataComboFile[[#This Row],[2022/23 Baseline_Source]]*T_DataComboFile[[#This Row],[G&S reporting level indicator]]","v":0},{"$f":"T_DataComboFile[[#This Row],[2023/24 Baseline_Source]]*T_DataComboFile[[#This Row],[G&S reporting level indicator]]","v":0},null,null,null,null,null,null,{"$f":"T_DataComboFile[[#This Row],[2021/22 Baseline]]+T_DataComboFile[[#This Row],[2021/22 Reduction]]+T_DataComboFile[[#This Row],[2021/22 Increase]]","v":0},{"$f":"T_DataComboFile[[#This Row],[2022/23 Baseline]]+T_DataComboFile[[#This Row],[2022/23 Reduction]]+T_DataComboFile[[#This Row],[2022/23 Increase]]","v":0},{"$f":"T_DataComboFile[[#This Row],[2023/24 Baseline]]+T_DataComboFile[[#This Row],[2023/24 Reduction]]+T_DataComboFile[[#This Row],[2023/24 Increase]]","v":0}]
["NAT|Non-transfer item","36|Travel and subsistence","2021_22","ENE2020",36,1,1,17189,70104,36,1,1,17189,"070104","36|01|01",1,1,2,37,37,"01|01|02|37|37","National","Small Business Development","Administration","Ministry","Non-transfer item","Current","Current payments","Goods and services","Travel and subsistence","Travel and subsistence","Economic development","Industrialisation and exports","NAT",6462,6365,8744,6530,6739,6739,6739,6855,1855,6855,7198,7469,7798,1,null,{"$f":"IF(T_DataComboFile[[#This Row],[G&S reporting level indicator]]=1,$AX$16,\"Not applicable\")","v":"Not applicable"},{"$f":"IF(AND($AX$16=\"Level 3\",T_DataComboFile[[#This Row],[Econ3]] = \"Goods and services\"),IF(T_DataComboFile[[#This Row],[Econ4]] = T_DataComboFile[[#This Row],[Econ3]],1,0),IF(AND($AX$16=\"Level 4\",T_DataComboFile[[#This Row],[Econ4]] = \"Goods and services\"),0,1))","v":0},{"$f":"T_DataComboFile[[#This Row],[2016/17_Source]]*T_DataComboFile[[#This Row],[G&S reporting level indicator]]","v":0},{"$f":"T_DataComboFile[[#This Row],[2017/18_Source]]*T_DataComboFile[[#This Row],[G&S reporting level indicator]]","v":0},{"$f":"T_DataComboFile[[#This Row],[2018/19_Source]]*T_DataComboFile[[#This Row],[G&S reporting level indicator]]","v":0},{"$f":"T_DataComboFile[[#This Row],[2019/20 Main appropriation_Source]]*T_DataComboFile[[#This Row],[G&S reporting level indicator]]","v":0},{"$f":"T_DataComboFile[[#This Row],[2019/20 Adjusted appropriation_Source]]*T_DataComboFile[[#This Row],[G&S reporting level indicator]]","v":0},{"$f":"T_DataComboFile[[#This Row],[2019/20 Revised estimate_Source]]*T_DataComboFile[[#This Row],[G&S reporting level indicator]]","v":0},{"$f":"T_DataComboFile[[#This Row],[2019/20 Preliminary outcome_Source]]*T_DataComboFile[[#This Row],[G&S reporting level indicator]]","v":0},{"$f":"T_DataComboFile[[#This Row],[2020/21 Original_Source]]*T_DataComboFile[[#This Row],[G&S reporting level indicator]]","v":0},{"$f":"T_DataComboFile[[#This Row],[2020/21 SAB_Source]]*T_DataComboFile[[#This Row],[G&S reporting level indicator]]","v":0},{"$f":"T_DataComboFile[[#This Row],[2020/21 Baseline_Source]]*T_DataComboFile[[#This Row],[G&S reporting level indicator]]","v":0},{"$f":"T_DataComboFile[[#This Row],[2021/22 Baseline_Source]]*T_DataComboFile[[#This Row],[G&S reporting level indicator]]","v":0},{"$f":"T_DataComboFile[[#This Row],[2022/23 Baseline_Source]]*T_DataComboFile[[#This Row],[G&S reporting level indicator]]","v":0},{"$f":"T_DataComboFile[[#This Row],[2023/24 Baseline_Source]]*T_DataComboFile[[#This Row],[G&S reporting level indicator]]","v":0},null,null,null,null,null,null,{"$f":"T_DataComboFile[[#This Row],[2021/22 Baseline]]+T_DataComboFile[[#This Row],[2021/22 Reduction]]+T_DataComboFile[[#This Row],[2021/22 Increase]]","v":0},{"$f":"T_DataComboFile[[#This Row],[2022/23 Baseline]]+T_DataComboFile[[#This Row],[2022/23 Reduction]]+T_DataComboFile[[#This Row],[2022/23 Increase]]","v":0},{"$f":"T_DataComboFile[[#This Row],[2023/24 Baseline]]+T_DataComboFile[[#This Row],[2023/24 Reduction]]+T_DataComboFile[[#This Row],[2023/24 Increase]]","v":0}]
[null,null,"2021_22","ENE2020",36,1,1,null,70105,36,1,1,null,"070105","36|01|01",1,1,2,38,38,"01|01|02|38|38","National","Small Business Development","Administration","Ministry",null,"Current","Current payments","Goods and services","Training and development","Training and development",null,null,null,0,0,0,0,0,0,0,0,0,0,0,0,0,0,null,{"$f":"IF(T_DataComboFile[[#This Row],[G&S reporting level indicator]]=1,$AX$16,\"Not applicable\")","v":"Not applicable"},{"$f":"IF(AND($AX$16=\"Level 3\",T_DataComboFile[[#This Row],[Econ3]] = \"Goods and services\"),IF(T_DataComboFile[[#This Row],[Econ4]] = T_DataComboFile[[#This Row],[Econ3]],1,0),IF(AND($AX$16=\"Level 4\",T_DataComboFile[[#This Row],[Econ4]] = \"Goods and services\"),0,1))","v":0},{"$f":"T_DataComboFile[[#This Row],[2016/17_Source]]*T_DataComboFile[[#This Row],[G&S reporting level indicator]]","v":0},{"$f":"T_DataComboFile[[#This Row],[2017/18_Source]]*T_DataComboFile[[#This Row],[G&S reporting level indicator]]","v":0},{"$f":"T_DataComboFile[[#This Row],[2018/19_Source]]*T_DataComboFile[[#This Row],[G&S reporting level indicator]]","v":0},{"$f":"T_DataComboFile[[#This Row],[2019/20 Main appropriation_Source]]*T_DataComboFile[[#This Row],[G&S reporting level indicator]]","v":0},{"$f":"T_DataComboFile[[#This Row],[2019/20 Adjusted appropriation_Source]]*T_DataComboFile[[#This Row],[G&S reporting level indicator]]","v":0},{"$f":"T_DataComboFile[[#This Row],[2019/20 Revised estimate_Source]]*T_DataComboFile[[#This Row],[G&S reporting level indicator]]","v":0},{"$f":"T_DataComboFile[[#This Row],[2019/20 Preliminary outcome_Source]]*T_DataComboFile[[#This Row],[G&S reporting level indicator]]","v":0},{"$f":"T_DataComboFile[[#This Row],[2020/21 Original_Source]]*T_DataComboFile[[#This Row],[G&S reporting level indicator]]","v":0},{"$f":"T_DataComboFile[[#This Row],[2020/21 SAB_Source]]*T_DataComboFile[[#This Row],[G&S reporting level indicator]]","v":0},{"$f":"T_DataComboFile[[#This Row],[2020/21 Baseline_Source]]*T_DataComboFile[[#This Row],[G&S reporting level indicator]]","v":0},{"$f":"T_DataComboFile[[#This Row],[2021/22 Baseline_Source]]*T_DataComboFile[[#This Row],[G&S reporting level indicator]]","v":0},{"$f":"T_DataComboFile[[#This Row],[2022/23 Baseline_Source]]*T_DataComboFile[[#This Row],[G&S reporting level indicator]]","v":0},{"$f":"T_DataComboFile[[#This Row],[2023/24 Baseline_Source]]*T_DataComboFile[[#This Row],[G&S reporting level indicator]]","v":0},null,null,null,null,null,null,{"$f":"T_DataComboFile[[#This Row],[2021/22 Baseline]]+T_DataComboFile[[#This Row],[2021/22 Reduction]]+T_DataComboFile[[#This Row],[2021/22 Increase]]","v":0},{"$f":"T_DataComboFile[[#This Row],[2022/23 Baseline]]+T_DataComboFile[[#This Row],[2022/23 Reduction]]+T_DataComboFile[[#This Row],[2022/23 Increase]]","v":0},{"$f":"T_DataComboFile[[#This Row],[2023/24 Baseline]]+T_DataComboFile[[#This Row],[2023/24 Reduction]]+T_DataComboFile[[#This Row],[2023/24 Increase]]","v":0}]
["NAT|Non-transfer item","36|Operating payments","2021_22","ENE2020",36,1,1,17190,70106,36,1,1,17190,"070106","36|01|01",1,1,2,39,39,"01|01|02|39|39","National","Small Business Development","Administration","Ministry","Non-transfer item","Current","Current payments","Goods and services","Operating payments","Operating payments","Economic development","Industrialisation and exports","NAT",29,50,103,60,50,50,50,58,58,58,62,68,71,1,null,{"$f":"IF(T_DataComboFile[[#This Row],[G&S reporting level indicator]]=1,$AX$16,\"Not applicable\")","v":"Not applicable"},{"$f":"IF(AND($AX$16=\"Level 3\",T_DataComboFile[[#This Row],[Econ3]] = \"Goods and services\"),IF(T_DataComboFile[[#This Row],[Econ4]] = T_DataComboFile[[#This Row],[Econ3]],1,0),IF(AND($AX$16=\"Level 4\",T_DataComboFile[[#This Row],[Econ4]] = \"Goods and services\"),0,1))","v":0},{"$f":"T_DataComboFile[[#This Row],[2016/17_Source]]*T_DataComboFile[[#This Row],[G&S reporting level indicator]]","v":0},{"$f":"T_DataComboFile[[#This Row],[2017/18_Source]]*T_DataComboFile[[#This Row],[G&S reporting level indicator]]","v":0},{"$f":"T_DataComboFile[[#This Row],[2018/19_Source]]*T_DataComboFile[[#This Row],[G&S reporting level indicator]]","v":0},{"$f":"T_DataComboFile[[#This Row],[2019/20 Main appropriation_Source]]*T_DataComboFile[[#This Row],[G&S reporting level indicator]]","v":0},{"$f":"T_DataComboFile[[#This Row],[2019/20 Adjusted appropriation_Source]]*T_DataComboFile[[#This Row],[G&S reporting level indicator]]","v":0},{"$f":"T_DataComboFile[[#This Row],[2019/20 Revised estimate_Source]]*T_DataComboFile[[#This Row],[G&S reporting level indicator]]","v":0},{"$f":"T_DataComboFile[[#This Row],[2019/20 Preliminary outcome_Source]]*T_DataComboFile[[#This Row],[G&S reporting level indicator]]","v":0},{"$f":"T_DataComboFile[[#This Row],[2020/21 Original_Source]]*T_DataComboFile[[#This Row],[G&S reporting level indicator]]","v":0},{"$f":"T_DataComboFile[[#This Row],[2020/21 SAB_Source]]*T_DataComboFile[[#This Row],[G&S reporting level indicator]]","v":0},{"$f":"T_DataComboFile[[#This Row],[2020/21 Baseline_Source]]*T_DataComboFile[[#This Row],[G&S reporting level indicator]]","v":0},{"$f":"T_DataComboFile[[#This Row],[2021/22 Baseline_Source]]*T_DataComboFile[[#This Row],[G&S reporting level indicator]]","v":0},{"$f":"T_DataComboFile[[#This Row],[2022/23 Baseline_Source]]*T_DataComboFile[[#This Row],[G&S reporting level indicator]]","v":0},{"$f":"T_DataComboFile[[#This Row],[2023/24 Baseline_Source]]*T_DataComboFile[[#This Row],[G&S reporting level indicator]]","v":0},null,null,null,null,null,null,{"$f":"T_DataComboFile[[#This Row],[2021/22 Baseline]]+T_DataComboFile[[#This Row],[2021/22 Reduction]]+T_DataComboFile[[#This Row],[2021/22 Increase]]","v":0},{"$f":"T_DataComboFile[[#This Row],[2022/23 Baseline]]+T_DataComboFile[[#This Row],[2022/23 Reduction]]+T_DataComboFile[[#This Row],[2022/23 Increase]]","v":0},{"$f":"T_DataComboFile[[#This Row],[2023/24 Baseline]]+T_DataComboFile[[#This Row],[2023/24 Reduction]]+T_DataComboFile[[#This Row],[2023/24 Increase]]","v":0}]
[null,null,"2021_22","ENE2020",36,1,1,null,70107,36,1,1,null,"070107","36|01|01",1,1,2,40,40,"01|01|02|40|40","National","Small Business Development","Administration","Ministry",null,"Current","Current payments","Goods and services","Venues and facilities","Venues and facilities",null,null,null,0,0,0,0,0,0,0,0,0,0,0,0,0,0,null,{"$f":"IF(T_DataComboFile[[#This Row],[G&S reporting level indicator]]=1,$AX$16,\"Not applicable\")","v":"Not applicable"},{"$f":"IF(AND($AX$16=\"Level 3\",T_DataComboFile[[#This Row],[Econ3]] = \"Goods and services\"),IF(T_DataComboFile[[#This Row],[Econ4]] = T_DataComboFile[[#This Row],[Econ3]],1,0),IF(AND($AX$16=\"Level 4\",T_DataComboFile[[#This Row],[Econ4]] = \"Goods and services\"),0,1))","v":0},{"$f":"T_DataComboFile[[#This Row],[2016/17_Source]]*T_DataComboFile[[#This Row],[G&S reporting level indicator]]","v":0},{"$f":"T_DataComboFile[[#This Row],[2017/18_Source]]*T_DataComboFile[[#This Row],[G&S reporting level indicator]]","v":0},{"$f":"T_DataComboFile[[#This Row],[2018/19_Source]]*T_DataComboFile[[#This Row],[G&S reporting level indicator]]","v":0},{"$f":"T_DataComboFile[[#This Row],[2019/20 Main appropriation_Source]]*T_DataComboFile[[#This Row],[G&S reporting level indicator]]","v":0},{"$f":"T_DataComboFile[[#This Row],[2019/20 Adjusted appropriation_Source]]*T_DataComboFile[[#This Row],[G&S reporting level indicator]]","v":0},{"$f":"T_DataComboFile[[#This Row],[2019/20 Revised estimate_Source]]*T_DataComboFile[[#This Row],[G&S reporting level indicator]]","v":0},{"$f":"T_DataComboFile[[#This Row],[2019/20 Preliminary outcome_Source]]*T_DataComboFile[[#This Row],[G&S reporting level indicator]]","v":0},{"$f":"T_DataComboFile[[#This Row],[2020/21 Original_Source]]*T_DataComboFile[[#This Row],[G&S reporting level indicator]]","v":0},{"$f":"T_DataComboFile[[#This Row],[2020/21 SAB_Source]]*T_DataComboFile[[#This Row],[G&S reporting level indicator]]","v":0},{"$f":"T_DataComboFile[[#This Row],[2020/21 Baseline_Source]]*T_DataComboFile[[#This Row],[G&S reporting level indicator]]","v":0},{"$f":"T_DataComboFile[[#This Row],[2021/22 Baseline_Source]]*T_DataComboFile[[#This Row],[G&S reporting level indicator]]","v":0},{"$f":"T_DataComboFile[[#This Row],[2022/23 Baseline_Source]]*T_DataComboFile[[#This Row],[G&S reporting level indicator]]","v":0},{"$f":"T_DataComboFile[[#This Row],[2023/24 Baseline_Source]]*T_DataComboFile[[#This Row],[G&S reporting level indicator]]","v":0},null,null,null,null,null,null,{"$f":"T_DataComboFile[[#This Row],[2021/22 Baseline]]+T_DataComboFile[[#This Row],[2021/22 Reduction]]+T_DataComboFile[[#This Row],[2021/22 Increase]]","v":0},{"$f":"T_DataComboFile[[#This Row],[2022/23 Baseline]]+T_DataComboFile[[#This Row],[2022/23 Reduction]]+T_DataComboFile[[#This Row],[2022/23 Increase]]","v":0},{"$f":"T_DataComboFile[[#This Row],[2023/24 Baseline]]+T_DataComboFile[[#This Row],[2023/24 Reduction]]+T_DataComboFile[[#This Row],[2023/24 Increase]]","v":0}]
[null,null,"2021_22","ENE2020",36,1,1,null,70108,36,1,1,null,"070108","36|01|01",1,1,3,41,41,"01|01|03|41|41","National","Small Business Development","Administration","Ministry",null,"Current","Current payments","Interest and rent on land","Interest (Incl. interest on unitary payments (PPP))","Interest (Incl. interest on unitary payments (PPP))",null,null,null,0,0,0,0,0,0,0,0,0,0,0,0,0,0,null,{"$f":"IF(T_DataComboFile[[#This Row],[G&S reporting level indicator]]=1,$AX$16,\"Not applicable\")","v":"Level 3"},{"$f":"IF(AND($AX$16=\"Level 3\",T_DataComboFile[[#This Row],[Econ3]] = \"Goods and services\"),IF(T_DataComboFile[[#This Row],[Econ4]] = T_DataComboFile[[#This Row],[Econ3]],1,0),IF(AND($AX$16=\"Level 4\",T_DataComboFile[[#This Row],[Econ4]] = \"Goods and services\"),0,1))","v":1},{"$f":"T_DataComboFile[[#This Row],[2016/17_Source]]*T_DataComboFile[[#This Row],[G&S reporting level indicator]]","v":0},{"$f":"T_DataComboFile[[#This Row],[2017/18_Source]]*T_DataComboFile[[#This Row],[G&S reporting level indicator]]","v":0},{"$f":"T_DataComboFile[[#This Row],[2018/19_Source]]*T_DataComboFile[[#This Row],[G&S reporting level indicator]]","v":0},{"$f":"T_DataComboFile[[#This Row],[2019/20 Main appropriation_Source]]*T_DataComboFile[[#This Row],[G&S reporting level indicator]]","v":0},{"$f":"T_DataComboFile[[#This Row],[2019/20 Adjusted appropriation_Source]]*T_DataComboFile[[#This Row],[G&S reporting level indicator]]","v":0},{"$f":"T_DataComboFile[[#This Row],[2019/20 Revised estimate_Source]]*T_DataComboFile[[#This Row],[G&S reporting level indicator]]","v":0},{"$f":"T_DataComboFile[[#This Row],[2019/20 Preliminary outcome_Source]]*T_DataComboFile[[#This Row],[G&S reporting level indicator]]","v":0},{"$f":"T_DataComboFile[[#This Row],[2020/21 Original_Source]]*T_DataComboFile[[#This Row],[G&S reporting level indicator]]","v":0},{"$f":"T_DataComboFile[[#This Row],[2020/21 SAB_Source]]*T_DataComboFile[[#This Row],[G&S reporting level indicator]]","v":0},{"$f":"T_DataComboFile[[#This Row],[2020/21 Baseline_Source]]*T_DataComboFile[[#This Row],[G&S reporting level indicator]]","v":0},{"$f":"T_DataComboFile[[#This Row],[2021/22 Baseline_Source]]*T_DataComboFile[[#This Row],[G&S reporting level indicator]]","v":0},{"$f":"T_DataComboFile[[#This Row],[2022/23 Baseline_Source]]*T_DataComboFile[[#This Row],[G&S reporting level indicator]]","v":0},{"$f":"T_DataComboFile[[#This Row],[2023/24 Baseline_Source]]*T_DataComboFile[[#This Row],[G&S reporting level indicator]]","v":0},null,null,null,null,null,null,{"$f":"T_DataComboFile[[#This Row],[2021/22 Baseline]]+T_DataComboFile[[#This Row],[2021/22 Reduction]]+T_DataComboFile[[#This Row],[2021/22 Increase]]","v":0},{"$f":"T_DataComboFile[[#This Row],[2022/23 Baseline]]+T_DataComboFile[[#This Row],[2022/23 Reduction]]+T_DataComboFile[[#This Row],[2022/23 Increase]]","v":0},{"$f":"T_DataComboFile[[#This Row],[2023/24 Baseline]]+T_DataComboFile[[#This Row],[2023/24 Reduction]]+T_DataComboFile[[#This Row],[2023/24 Increase]]","v":0}]
[null,null,"2021_22","ENE2020",36,1,1,null,70109,36,1,1,null,"070109","36|01|01",1,1,3,42,42,"01|01|03|42|42","National","Small Business Development","Administration","Ministry",null,"Current","Current payments","Interest and rent on land","Rent on land","Rent on land",null,null,null,0,0,0,0,0,0,0,0,0,0,0,0,0,0,null,{"$f":"IF(T_DataComboFile[[#This Row],[G&S reporting level indicator]]=1,$AX$16,\"Not applicable\")","v":"Level 3"},{"$f":"IF(AND($AX$16=\"Level 3\",T_DataComboFile[[#This Row],[Econ3]] = \"Goods and services\"),IF(T_DataComboFile[[#This Row],[Econ4]] = T_DataComboFile[[#This Row],[Econ3]],1,0),IF(AND($AX$16=\"Level 4\",T_DataComboFile[[#This Row],[Econ4]] = \"Goods and services\"),0,1))","v":1},{"$f":"T_DataComboFile[[#This Row],[2016/17_Source]]*T_DataComboFile[[#This Row],[G&S reporting level indicator]]","v":0},{"$f":"T_DataComboFile[[#This Row],[2017/18_Source]]*T_DataComboFile[[#This Row],[G&S reporting level indicator]]","v":0},{"$f":"T_DataComboFile[[#This Row],[2018/19_Source]]*T_DataComboFile[[#This Row],[G&S reporting level indicator]]","v":0},{"$f":"T_DataComboFile[[#This Row],[2019/20 Main appropriation_Source]]*T_DataComboFile[[#This Row],[G&S reporting level indicator]]","v":0},{"$f":"T_DataComboFile[[#This Row],[2019/20 Adjusted appropriation_Source]]*T_DataComboFile[[#This Row],[G&S reporting level indicator]]","v":0},{"$f":"T_DataComboFile[[#This Row],[2019/20 Revised estimate_Source]]*T_DataComboFile[[#This Row],[G&S reporting level indicator]]","v":0},{"$f":"T_DataComboFile[[#This Row],[2019/20 Preliminary outcome_Source]]*T_DataComboFile[[#This Row],[G&S reporting level indicator]]","v":0},{"$f":"T_DataComboFile[[#This Row],[2020/21 Original_Source]]*T_DataComboFile[[#This Row],[G&S reporting level indicator]]","v":0},{"$f":"T_DataComboFile[[#This Row],[2020/21 SAB_Source]]*T_DataComboFile[[#This Row],[G&S reporting level indicator]]","v":0},{"$f":"T_DataComboFile[[#This Row],[2020/21 Baseline_Source]]*T_DataComboFile[[#This Row],[G&S reporting level indicator]]","v":0},{"$f":"T_DataComboFile[[#This Row],[2021/22 Baseline_Source]]*T_DataComboFile[[#This Row],[G&S reporting level indicator]]","v":0},{"$f":"T_DataComboFile[[#This Row],[2022/23 Baseline_Source]]*T_DataComboFile[[#This Row],[G&S reporting level indicator]]","v":0},{"$f":"T_DataComboFile[[#This Row],[2023/24 Baseline_Source]]*T_DataComboFile[[#This Row],[G&S reporting level indicator]]","v":0},null,null,null,null,null,null,{"$f":"T_DataComboFile[[#This Row],[2021/22 Baseline]]+T_DataComboFile[[#This Row],[2021/22 Reduction]]+T_DataComboFile[[#This Row],[2021/22 Increase]]","v":0},{"$f":"T_DataComboFile[[#This Row],[2022/23 Baseline]]+T_DataComboFile[[#This Row],[2022/23 Reduction]]+T_DataComboFile[[#This Row],[2022/23 Increase]]","v":0},{"$f":"T_DataComboFile[[#This Row],[2023/24 Baseline]]+T_DataComboFile[[#This Row],[2023/24 Reduction]]+T_DataComboFile[[#This Row],[2023/24 Increase]]","v":0}]
[null,null,"2021_22","ENE2020",36,1,1,null,70110,36,1,1,null,"070110","36|01|01",1,2,4,43,43,"01|02|04|43|43","National","Small Business Development","Administration","Ministry",null,"Current","Transfers and subsidies","Provinces and municipalities","Provinces","Provincial Revenue Funds",null,null,null,0,0,0,0,0,0,0,0,0,0,0,0,0,0,null,{"$f":"IF(T_DataComboFile[[#This Row],[G&S reporting level indicator]]=1,$AX$16,\"Not applicable\")","v":"Level 3"},{"$f":"IF(AND($AX$16=\"Level 3\",T_DataComboFile[[#This Row],[Econ3]] = \"Goods and services\"),IF(T_DataComboFile[[#This Row],[Econ4]] = T_DataComboFile[[#This Row],[Econ3]],1,0),IF(AND($AX$16=\"Level 4\",T_DataComboFile[[#This Row],[Econ4]] = \"Goods and services\"),0,1))","v":1},{"$f":"T_DataComboFile[[#This Row],[2016/17_Source]]*T_DataComboFile[[#This Row],[G&S reporting level indicator]]","v":0},{"$f":"T_DataComboFile[[#This Row],[2017/18_Source]]*T_DataComboFile[[#This Row],[G&S reporting level indicator]]","v":0},{"$f":"T_DataComboFile[[#This Row],[2018/19_Source]]*T_DataComboFile[[#This Row],[G&S reporting level indicator]]","v":0},{"$f":"T_DataComboFile[[#This Row],[2019/20 Main appropriation_Source]]*T_DataComboFile[[#This Row],[G&S reporting level indicator]]","v":0},{"$f":"T_DataComboFile[[#This Row],[2019/20 Adjusted appropriation_Source]]*T_DataComboFile[[#This Row],[G&S reporting level indicator]]","v":0},{"$f":"T_DataComboFile[[#This Row],[2019/20 Revised estimate_Source]]*T_DataComboFile[[#This Row],[G&S reporting level indicator]]","v":0},{"$f":"T_DataComboFile[[#This Row],[2019/20 Preliminary outcome_Source]]*T_DataComboFile[[#This Row],[G&S reporting level indicator]]","v":0},{"$f":"T_DataComboFile[[#This Row],[2020/21 Original_Source]]*T_DataComboFile[[#This Row],[G&S reporting level indicator]]","v":0},{"$f":"T_DataComboFile[[#This Row],[2020/21 SAB_Source]]*T_DataComboFile[[#This Row],[G&S reporting level indicator]]","v":0},{"$f":"T_DataComboFile[[#This Row],[2020/21 Baseline_Source]]*T_DataComboFile[[#This Row],[G&S reporting level indicator]]","v":0},{"$f":"T_DataComboFile[[#This Row],[2021/22 Baseline_Source]]*T_DataComboFile[[#This Row],[G&S reporting level indicator]]","v":0},{"$f":"T_DataComboFile[[#This Row],[2022/23 Baseline_Source]]*T_DataComboFile[[#This Row],[G&S reporting level indicator]]","v":0},{"$f":"T_DataComboFile[[#This Row],[2023/24 Baseline_Source]]*T_DataComboFile[[#This Row],[G&S reporting level indicator]]","v":0},null,null,null,null,null,null,{"$f":"T_DataComboFile[[#This Row],[2021/22 Baseline]]+T_DataComboFile[[#This Row],[2021/22 Reduction]]+T_DataComboFile[[#This Row],[2021/22 Increase]]","v":0},{"$f":"T_DataComboFile[[#This Row],[2022/23 Baseline]]+T_DataComboFile[[#This Row],[2022/23 Reduction]]+T_DataComboFile[[#This Row],[2022/23 Increase]]","v":0},{"$f":"T_DataComboFile[[#This Row],[2023/24 Baseline]]+T_DataComboFile[[#This Row],[2023/24 Reduction]]+T_DataComboFile[[#This Row],[2023/24 Increase]]","v":0}]
[null,null,"2021_22","ENE2020",36,1,1,null,70111,36,1,1,null,"070111","36|01|01",1,2,4,43,44,"01|02|04|43|44","National","Small Business Development","Administration","Ministry",null,"Current","Transfers and subsidies","Provinces and municipalities","Provinces","Provincial agencies and funds",null,null,null,0,0,0,0,0,0,0,0,0,0,0,0,0,0,null,{"$f":"IF(T_DataComboFile[[#This Row],[G&S reporting level indicator]]=1,$AX$16,\"Not applicable\")","v":"Level 3"},{"$f":"IF(AND($AX$16=\"Level 3\",T_DataComboFile[[#This Row],[Econ3]] = \"Goods and services\"),IF(T_DataComboFile[[#This Row],[Econ4]] = T_DataComboFile[[#This Row],[Econ3]],1,0),IF(AND($AX$16=\"Level 4\",T_DataComboFile[[#This Row],[Econ4]] = \"Goods and services\"),0,1))","v":1},{"$f":"T_DataComboFile[[#This Row],[2016/17_Source]]*T_DataComboFile[[#This Row],[G&S reporting level indicator]]","v":0},{"$f":"T_DataComboFile[[#This Row],[2017/18_Source]]*T_DataComboFile[[#This Row],[G&S reporting level indicator]]","v":0},{"$f":"T_DataComboFile[[#This Row],[2018/19_Source]]*T_DataComboFile[[#This Row],[G&S reporting level indicator]]","v":0},{"$f":"T_DataComboFile[[#This Row],[2019/20 Main appropriation_Source]]*T_DataComboFile[[#This Row],[G&S reporting level indicator]]","v":0},{"$f":"T_DataComboFile[[#This Row],[2019/20 Adjusted appropriation_Source]]*T_DataComboFile[[#This Row],[G&S reporting level indicator]]","v":0},{"$f":"T_DataComboFile[[#This Row],[2019/20 Revised estimate_Source]]*T_DataComboFile[[#This Row],[G&S reporting level indicator]]","v":0},{"$f":"T_DataComboFile[[#This Row],[2019/20 Preliminary outcome_Source]]*T_DataComboFile[[#This Row],[G&S reporting level indicator]]","v":0},{"$f":"T_DataComboFile[[#This Row],[2020/21 Original_Source]]*T_DataComboFile[[#This Row],[G&S reporting level indicator]]","v":0},{"$f":"T_DataComboFile[[#This Row],[2020/21 SAB_Source]]*T_DataComboFile[[#This Row],[G&S reporting level indicator]]","v":0},{"$f":"T_DataComboFile[[#This Row],[2020/21 Baseline_Source]]*T_DataComboFile[[#This Row],[G&S reporting level indicator]]","v":0},{"$f":"T_DataComboFile[[#This Row],[2021/22 Baseline_Source]]*T_DataComboFile[[#This Row],[G&S reporting level indicator]]","v":0},{"$f":"T_DataComboFile[[#This Row],[2022/23 Baseline_Source]]*T_DataComboFile[[#This Row],[G&S reporting level indicator]]","v":0},{"$f":"T_DataComboFile[[#This Row],[2023/24 Baseline_Source]]*T_DataComboFile[[#This Row],[G&S reporting level indicator]]","v":0},null,null,null,null,null,null,{"$f":"T_DataComboFile[[#This Row],[2021/22 Baseline]]+T_DataComboFile[[#This Row],[2021/22 Reduction]]+T_DataComboFile[[#This Row],[2021/22 Increase]]","v":0},{"$f":"T_DataComboFile[[#This Row],[2022/23 Baseline]]+T_DataComboFile[[#This Row],[2022/23 Reduction]]+T_DataComboFile[[#This Row],[2022/23 Increase]]","v":0},{"$f":"T_DataComboFile[[#This Row],[2023/24 Baseline]]+T_DataComboFile[[#This Row],[2023/24 Reduction]]+T_DataComboFile[[#This Row],[2023/24 Increase]]","v":0}]
[null,null,"2021_22","ENE2020",36,1,1,null,70112,36,1,1,null,"070112","36|01|01",1,2,4,44,45,"01|02|04|44|45","National","Small Business Development","Administration","Ministry",null,"Current","Transfers and subsidies","Provinces and municipalities","Municipalities","Municipal bank accounts",null,null,null,0,0,0,0,0,0,0,0,0,0,0,0,0,0,null,{"$f":"IF(T_DataComboFile[[#This Row],[G&S reporting level indicator]]=1,$AX$16,\"Not applicable\")","v":"Level 3"},{"$f":"IF(AND($AX$16=\"Level 3\",T_DataComboFile[[#This Row],[Econ3]] = \"Goods and services\"),IF(T_DataComboFile[[#This Row],[Econ4]] = T_DataComboFile[[#This Row],[Econ3]],1,0),IF(AND($AX$16=\"Level 4\",T_DataComboFile[[#This Row],[Econ4]] = \"Goods and services\"),0,1))","v":1},{"$f":"T_DataComboFile[[#This Row],[2016/17_Source]]*T_DataComboFile[[#This Row],[G&S reporting level indicator]]","v":0},{"$f":"T_DataComboFile[[#This Row],[2017/18_Source]]*T_DataComboFile[[#This Row],[G&S reporting level indicator]]","v":0},{"$f":"T_DataComboFile[[#This Row],[2018/19_Source]]*T_DataComboFile[[#This Row],[G&S reporting level indicator]]","v":0},{"$f":"T_DataComboFile[[#This Row],[2019/20 Main appropriation_Source]]*T_DataComboFile[[#This Row],[G&S reporting level indicator]]","v":0},{"$f":"T_DataComboFile[[#This Row],[2019/20 Adjusted appropriation_Source]]*T_DataComboFile[[#This Row],[G&S reporting level indicator]]","v":0},{"$f":"T_DataComboFile[[#This Row],[2019/20 Revised estimate_Source]]*T_DataComboFile[[#This Row],[G&S reporting level indicator]]","v":0},{"$f":"T_DataComboFile[[#This Row],[2019/20 Preliminary outcome_Source]]*T_DataComboFile[[#This Row],[G&S reporting level indicator]]","v":0},{"$f":"T_DataComboFile[[#This Row],[2020/21 Original_Source]]*T_DataComboFile[[#This Row],[G&S reporting level indicator]]","v":0},{"$f":"T_DataComboFile[[#This Row],[2020/21 SAB_Source]]*T_DataComboFile[[#This Row],[G&S reporting level indicator]]","v":0},{"$f":"T_DataComboFile[[#This Row],[2020/21 Baseline_Source]]*T_DataComboFile[[#This Row],[G&S reporting level indicator]]","v":0},{"$f":"T_DataComboFile[[#This Row],[2021/22 Baseline_Source]]*T_DataComboFile[[#This Row],[G&S reporting level indicator]]","v":0},{"$f":"T_DataComboFile[[#This Row],[2022/23 Baseline_Source]]*T_DataComboFile[[#This Row],[G&S reporting level indicator]]","v":0},{"$f":"T_DataComboFile[[#This Row],[2023/24 Baseline_Source]]*T_DataComboFile[[#This Row],[G&S reporting level indicator]]","v":0},null,null,null,null,null,null,{"$f":"T_DataComboFile[[#This Row],[2021/22 Baseline]]+T_DataComboFile[[#This Row],[2021/22 Reduction]]+T_DataComboFile[[#This Row],[2021/22 Increase]]","v":0},{"$f":"T_DataComboFile[[#This Row],[2022/23 Baseline]]+T_DataComboFile[[#This Row],[2022/23 Reduction]]+T_DataComboFile[[#This Row],[2022/23 Increase]]","v":0},{"$f":"T_DataComboFile[[#This Row],[2023/24 Baseline]]+T_DataComboFile[[#This Row],[2023/24 Reduction]]+T_DataComboFile[[#This Row],[2023/24 Increase]]","v":0}]
[null,null,"2021_22","ENE2020",36,1,1,null,70113,36,1,1,null,"070113","36|01|01",1,2,4,44,46,"01|02|04|44|46","National","Small Business Development","Administration","Ministry",null,"Current","Transfers and subsidies","Provinces and municipalities","Municipalities","Municipal agencies and funds",null,null,null,0,0,0,0,0,0,0,0,0,0,0,0,0,0,null,{"$f":"IF(T_DataComboFile[[#This Row],[G&S reporting level indicator]]=1,$AX$16,\"Not applicable\")","v":"Level 3"},{"$f":"IF(AND($AX$16=\"Level 3\",T_DataComboFile[[#This Row],[Econ3]] = \"Goods and services\"),IF(T_DataComboFile[[#This Row],[Econ4]] = T_DataComboFile[[#This Row],[Econ3]],1,0),IF(AND($AX$16=\"Level 4\",T_DataComboFile[[#This Row],[Econ4]] = \"Goods and services\"),0,1))","v":1},{"$f":"T_DataComboFile[[#This Row],[2016/17_Source]]*T_DataComboFile[[#This Row],[G&S reporting level indicator]]","v":0},{"$f":"T_DataComboFile[[#This Row],[2017/18_Source]]*T_DataComboFile[[#This Row],[G&S reporting level indicator]]","v":0},{"$f":"T_DataComboFile[[#This Row],[2018/19_Source]]*T_DataComboFile[[#This Row],[G&S reporting level indicator]]","v":0},{"$f":"T_DataComboFile[[#This Row],[2019/20 Main appropriation_Source]]*T_DataComboFile[[#This Row],[G&S reporting level indicator]]","v":0},{"$f":"T_DataComboFile[[#This Row],[2019/20 Adjusted appropriation_Source]]*T_DataComboFile[[#This Row],[G&S reporting level indicator]]","v":0},{"$f":"T_DataComboFile[[#This Row],[2019/20 Revised estimate_Source]]*T_DataComboFile[[#This Row],[G&S reporting level indicator]]","v":0},{"$f":"T_DataComboFile[[#This Row],[2019/20 Preliminary outcome_Source]]*T_DataComboFile[[#This Row],[G&S reporting level indicator]]","v":0},{"$f":"T_DataComboFile[[#This Row],[2020/21 Original_Source]]*T_DataComboFile[[#This Row],[G&S reporting level indicator]]","v":0},{"$f":"T_DataComboFile[[#This Row],[2020/21 SAB_Source]]*T_DataComboFile[[#This Row],[G&S reporting level indicator]]","v":0},{"$f":"T_DataComboFile[[#This Row],[2020/21 Baseline_Source]]*T_DataComboFile[[#This Row],[G&S reporting level indicator]]","v":0},{"$f":"T_DataComboFile[[#This Row],[2021/22 Baseline_Source]]*T_DataComboFile[[#This Row],[G&S reporting level indicator]]","v":0},{"$f":"T_DataComboFile[[#This Row],[2022/23 Baseline_Source]]*T_DataComboFile[[#This Row],[G&S reporting level indicator]]","v":0},{"$f":"T_DataComboFile[[#This Row],[2023/24 Baseline_Source]]*T_DataComboFile[[#This Row],[G&S reporting level indicator]]","v":0},null,null,null,null,null,null,{"$f":"T_DataComboFile[[#This Row],[2021/22 Baseline]]+T_DataComboFile[[#This Row],[2021/22 Reduction]]+T_DataComboFile[[#This Row],[2021/22 Increase]]","v":0},{"$f":"T_DataComboFile[[#This Row],[2022/23 Baseline]]+T_DataComboFile[[#This Row],[2022/23 Reduction]]+T_DataComboFile[[#This Row],[2022/23 Increase]]","v":0},{"$f":"T_DataComboFile[[#This Row],[2023/24 Baseline]]+T_DataComboFile[[#This Row],[2023/24 Reduction]]+T_DataComboFile[[#This Row],[2023/24 Increase]]","v":0}]
[null,null,"2021_22","ENE2020",36,1,1,null,70114,36,1,1,null,"070114","36|01|01",1,2,5,45,47,"01|02|05|45|47","National","Small Business Development","Administration","Ministry",null,"Current","Transfers and subsidies","Departmental agencies and accounts","Social security funds","Social security funds",null,null,null,0,0,0,0,0,0,0,0,0,0,0,0,0,0,null,{"$f":"IF(T_DataComboFile[[#This Row],[G&S reporting level indicator]]=1,$AX$16,\"Not applicable\")","v":"Level 3"},{"$f":"IF(AND($AX$16=\"Level 3\",T_DataComboFile[[#This Row],[Econ3]] = \"Goods and services\"),IF(T_DataComboFile[[#This Row],[Econ4]] = T_DataComboFile[[#This Row],[Econ3]],1,0),IF(AND($AX$16=\"Level 4\",T_DataComboFile[[#This Row],[Econ4]] = \"Goods and services\"),0,1))","v":1},{"$f":"T_DataComboFile[[#This Row],[2016/17_Source]]*T_DataComboFile[[#This Row],[G&S reporting level indicator]]","v":0},{"$f":"T_DataComboFile[[#This Row],[2017/18_Source]]*T_DataComboFile[[#This Row],[G&S reporting level indicator]]","v":0},{"$f":"T_DataComboFile[[#This Row],[2018/19_Source]]*T_DataComboFile[[#This Row],[G&S reporting level indicator]]","v":0},{"$f":"T_DataComboFile[[#This Row],[2019/20 Main appropriation_Source]]*T_DataComboFile[[#This Row],[G&S reporting level indicator]]","v":0},{"$f":"T_DataComboFile[[#This Row],[2019/20 Adjusted appropriation_Source]]*T_DataComboFile[[#This Row],[G&S reporting level indicator]]","v":0},{"$f":"T_DataComboFile[[#This Row],[2019/20 Revised estimate_Source]]*T_DataComboFile[[#This Row],[G&S reporting level indicator]]","v":0},{"$f":"T_DataComboFile[[#This Row],[2019/20 Preliminary outcome_Source]]*T_DataComboFile[[#This Row],[G&S reporting level indicator]]","v":0},{"$f":"T_DataComboFile[[#This Row],[2020/21 Original_Source]]*T_DataComboFile[[#This Row],[G&S reporting level indicator]]","v":0},{"$f":"T_DataComboFile[[#This Row],[2020/21 SAB_Source]]*T_DataComboFile[[#This Row],[G&S reporting level indicator]]","v":0},{"$f":"T_DataComboFile[[#This Row],[2020/21 Baseline_Source]]*T_DataComboFile[[#This Row],[G&S reporting level indicator]]","v":0},{"$f":"T_DataComboFile[[#This Row],[2021/22 Baseline_Source]]*T_DataComboFile[[#This Row],[G&S reporting level indicator]]","v":0},{"$f":"T_DataComboFile[[#This Row],[2022/23 Baseline_Source]]*T_DataComboFile[[#This Row],[G&S reporting level indicator]]","v":0},{"$f":"T_DataComboFile[[#This Row],[2023/24 Baseline_Source]]*T_DataComboFile[[#This Row],[G&S reporting level indicator]]","v":0},null,null,null,null,null,null,{"$f":"T_DataComboFile[[#This Row],[2021/22 Baseline]]+T_DataComboFile[[#This Row],[2021/22 Reduction]]+T_DataComboFile[[#This Row],[2021/22 Increase]]","v":0},{"$f":"T_DataComboFile[[#This Row],[2022/23 Baseline]]+T_DataComboFile[[#This Row],[2022/23 Reduction]]+T_DataComboFile[[#This Row],[2022/23 Increase]]","v":0},{"$f":"T_DataComboFile[[#This Row],[2023/24 Baseline]]+T_DataComboFile[[#This Row],[2023/24 Reduction]]+T_DataComboFile[[#This Row],[2023/24 Increase]]","v":0}]
[null,null,"2021_22","ENE2020",36,1,1,null,70115,36,1,1,null,"070115","36|01|01",1,2,5,46,48,"01|02|05|46|48","National","Small Business Development","Administration","Ministry",null,"Current","Transfers and subsidies","Departmental agencies and accounts","Departmental agencies (non-business entities)","Departmental agencies (non-business entities)",null,null,null,0,0,0,0,0,0,0,0,0,0,0,0,0,0,null,{"$f":"IF(T_DataComboFile[[#This Row],[G&S reporting level indicator]]=1,$AX$16,\"Not applicable\")","v":"Level 3"},{"$f":"IF(AND($AX$16=\"Level 3\",T_DataComboFile[[#This Row],[Econ3]] = \"Goods and services\"),IF(T_DataComboFile[[#This Row],[Econ4]] = T_DataComboFile[[#This Row],[Econ3]],1,0),IF(AND($AX$16=\"Level 4\",T_DataComboFile[[#This Row],[Econ4]] = \"Goods and services\"),0,1))","v":1},{"$f":"T_DataComboFile[[#This Row],[2016/17_Source]]*T_DataComboFile[[#This Row],[G&S reporting level indicator]]","v":0},{"$f":"T_DataComboFile[[#This Row],[2017/18_Source]]*T_DataComboFile[[#This Row],[G&S reporting level indicator]]","v":0},{"$f":"T_DataComboFile[[#This Row],[2018/19_Source]]*T_DataComboFile[[#This Row],[G&S reporting level indicator]]","v":0},{"$f":"T_DataComboFile[[#This Row],[2019/20 Main appropriation_Source]]*T_DataComboFile[[#This Row],[G&S reporting level indicator]]","v":0},{"$f":"T_DataComboFile[[#This Row],[2019/20 Adjusted appropriation_Source]]*T_DataComboFile[[#This Row],[G&S reporting level indicator]]","v":0},{"$f":"T_DataComboFile[[#This Row],[2019/20 Revised estimate_Source]]*T_DataComboFile[[#This Row],[G&S reporting level indicator]]","v":0},{"$f":"T_DataComboFile[[#This Row],[2019/20 Preliminary outcome_Source]]*T_DataComboFile[[#This Row],[G&S reporting level indicator]]","v":0},{"$f":"T_DataComboFile[[#This Row],[2020/21 Original_Source]]*T_DataComboFile[[#This Row],[G&S reporting level indicator]]","v":0},{"$f":"T_DataComboFile[[#This Row],[2020/21 SAB_Source]]*T_DataComboFile[[#This Row],[G&S reporting level indicator]]","v":0},{"$f":"T_DataComboFile[[#This Row],[2020/21 Baseline_Source]]*T_DataComboFile[[#This Row],[G&S reporting level indicator]]","v":0},{"$f":"T_DataComboFile[[#This Row],[2021/22 Baseline_Source]]*T_DataComboFile[[#This Row],[G&S reporting level indicator]]","v":0},{"$f":"T_DataComboFile[[#This Row],[2022/23 Baseline_Source]]*T_DataComboFile[[#This Row],[G&S reporting level indicator]]","v":0},{"$f":"T_DataComboFile[[#This Row],[2023/24 Baseline_Source]]*T_DataComboFile[[#This Row],[G&S reporting level indicator]]","v":0},null,null,null,null,null,null,{"$f":"T_DataComboFile[[#This Row],[2021/22 Baseline]]+T_DataComboFile[[#This Row],[2021/22 Reduction]]+T_DataComboFile[[#This Row],[2021/22 Increase]]","v":0},{"$f":"T_DataComboFile[[#This Row],[2022/23 Baseline]]+T_DataComboFile[[#This Row],[2022/23 Reduction]]+T_DataComboFile[[#This Row],[2022/23 Increase]]","v":0},{"$f":"T_DataComboFile[[#This Row],[2023/24 Baseline]]+T_DataComboFile[[#This Row],[2023/24 Reduction]]+T_DataComboFile[[#This Row],[2023/24 Increase]]","v":0}]
[null,null,"2021_22","ENE2020",36,1,1,null,70116,36,1,1,null,"070116","36|01|01",1,2,6,47,49,"01|02|06|47|49","National","Small Business Development","Administration","Ministry",null,"Current","Transfers and subsidies","Higher education institutions","Higher education institutions","Higher education institutions",null,null,null,0,0,0,0,0,0,0,0,0,0,0,0,0,0,null,{"$f":"IF(T_DataComboFile[[#This Row],[G&S reporting level indicator]]=1,$AX$16,\"Not applicable\")","v":"Level 3"},{"$f":"IF(AND($AX$16=\"Level 3\",T_DataComboFile[[#This Row],[Econ3]] = \"Goods and services\"),IF(T_DataComboFile[[#This Row],[Econ4]] = T_DataComboFile[[#This Row],[Econ3]],1,0),IF(AND($AX$16=\"Level 4\",T_DataComboFile[[#This Row],[Econ4]] = \"Goods and services\"),0,1))","v":1},{"$f":"T_DataComboFile[[#This Row],[2016/17_Source]]*T_DataComboFile[[#This Row],[G&S reporting level indicator]]","v":0},{"$f":"T_DataComboFile[[#This Row],[2017/18_Source]]*T_DataComboFile[[#This Row],[G&S reporting level indicator]]","v":0},{"$f":"T_DataComboFile[[#This Row],[2018/19_Source]]*T_DataComboFile[[#This Row],[G&S reporting level indicator]]","v":0},{"$f":"T_DataComboFile[[#This Row],[2019/20 Main appropriation_Source]]*T_DataComboFile[[#This Row],[G&S reporting level indicator]]","v":0},{"$f":"T_DataComboFile[[#This Row],[2019/20 Adjusted appropriation_Source]]*T_DataComboFile[[#This Row],[G&S reporting level indicator]]","v":0},{"$f":"T_DataComboFile[[#This Row],[2019/20 Revised estimate_Source]]*T_DataComboFile[[#This Row],[G&S reporting level indicator]]","v":0},{"$f":"T_DataComboFile[[#This Row],[2019/20 Preliminary outcome_Source]]*T_DataComboFile[[#This Row],[G&S reporting level indicator]]","v":0},{"$f":"T_DataComboFile[[#This Row],[2020/21 Original_Source]]*T_DataComboFile[[#This Row],[G&S reporting level indicator]]","v":0},{"$f":"T_DataComboFile[[#This Row],[2020/21 SAB_Source]]*T_DataComboFile[[#This Row],[G&S reporting level indicator]]","v":0},{"$f":"T_DataComboFile[[#This Row],[2020/21 Baseline_Source]]*T_DataComboFile[[#This Row],[G&S reporting level indicator]]","v":0},{"$f":"T_DataComboFile[[#This Row],[2021/22 Baseline_Source]]*T_DataComboFile[[#This Row],[G&S reporting level indicator]]","v":0},{"$f":"T_DataComboFile[[#This Row],[2022/23 Baseline_Source]]*T_DataComboFile[[#This Row],[G&S reporting level indicator]]","v":0},{"$f":"T_DataComboFile[[#This Row],[2023/24 Baseline_Source]]*T_DataComboFile[[#This Row],[G&S reporting level indicator]]","v":0},null,null,null,null,null,null,{"$f":"T_DataComboFile[[#This Row],[2021/22 Baseline]]+T_DataComboFile[[#This Row],[2021/22 Reduction]]+T_DataComboFile[[#This Row],[2021/22 Increase]]","v":0},{"$f":"T_DataComboFile[[#This Row],[2022/23 Baseline]]+T_DataComboFile[[#This Row],[2022/23 Reduction]]+T_DataComboFile[[#This Row],[2022/23 Increase]]","v":0},{"$f":"T_DataComboFile[[#This Row],[2023/24 Baseline]]+T_DataComboFile[[#This Row],[2023/24 Reduction]]+T_DataComboFile[[#This Row],[2023/24 Increase]]","v":0}]
[null,null,"2021_22","ENE2020",36,1,1,null,70117,36,1,1,null,"070117","36|01|01",1,2,7,48,50,"01|02|07|48|50","National","Small Business Development","Administration","Ministry",null,"Current","Transfers and subsidies","Foreign governments and international organisations","Foreign governments and international organisations","Foreign governments and international organisations",null,null,null,0,0,0,0,0,0,0,0,0,0,0,0,0,0,null,{"$f":"IF(T_DataComboFile[[#This Row],[G&S reporting level indicator]]=1,$AX$16,\"Not applicable\")","v":"Level 3"},{"$f":"IF(AND($AX$16=\"Level 3\",T_DataComboFile[[#This Row],[Econ3]] = \"Goods and services\"),IF(T_DataComboFile[[#This Row],[Econ4]] = T_DataComboFile[[#This Row],[Econ3]],1,0),IF(AND($AX$16=\"Level 4\",T_DataComboFile[[#This Row],[Econ4]] = \"Goods and services\"),0,1))","v":1},{"$f":"T_DataComboFile[[#This Row],[2016/17_Source]]*T_DataComboFile[[#This Row],[G&S reporting level indicator]]","v":0},{"$f":"T_DataComboFile[[#This Row],[2017/18_Source]]*T_DataComboFile[[#This Row],[G&S reporting level indicator]]","v":0},{"$f":"T_DataComboFile[[#This Row],[2018/19_Source]]*T_DataComboFile[[#This Row],[G&S reporting level indicator]]","v":0},{"$f":"T_DataComboFile[[#This Row],[2019/20 Main appropriation_Source]]*T_DataComboFile[[#This Row],[G&S reporting level indicator]]","v":0},{"$f":"T_DataComboFile[[#This Row],[2019/20 Adjusted appropriation_Source]]*T_DataComboFile[[#This Row],[G&S reporting level indicator]]","v":0},{"$f":"T_DataComboFile[[#This Row],[2019/20 Revised estimate_Source]]*T_DataComboFile[[#This Row],[G&S reporting level indicator]]","v":0},{"$f":"T_DataComboFile[[#This Row],[2019/20 Preliminary outcome_Source]]*T_DataComboFile[[#This Row],[G&S reporting level indicator]]","v":0},{"$f":"T_DataComboFile[[#This Row],[2020/21 Original_Source]]*T_DataComboFile[[#This Row],[G&S reporting level indicator]]","v":0},{"$f":"T_DataComboFile[[#This Row],[2020/21 SAB_Source]]*T_DataComboFile[[#This Row],[G&S reporting level indicator]]","v":0},{"$f":"T_DataComboFile[[#This Row],[2020/21 Baseline_Source]]*T_DataComboFile[[#This Row],[G&S reporting level indicator]]","v":0},{"$f":"T_DataComboFile[[#This Row],[2021/22 Baseline_Source]]*T_DataComboFile[[#This Row],[G&S reporting level indicator]]","v":0},{"$f":"T_DataComboFile[[#This Row],[2022/23 Baseline_Source]]*T_DataComboFile[[#This Row],[G&S reporting level indicator]]","v":0},{"$f":"T_DataComboFile[[#This Row],[2023/24 Baseline_Source]]*T_DataComboFile[[#This Row],[G&S reporting level indicator]]","v":0},null,null,null,null,null,null,{"$f":"T_DataComboFile[[#This Row],[2021/22 Baseline]]+T_DataComboFile[[#This Row],[2021/22 Reduction]]+T_DataComboFile[[#This Row],[2021/22 Increase]]","v":0},{"$f":"T_DataComboFile[[#This Row],[2022/23 Baseline]]+T_DataComboFile[[#This Row],[2022/23 Reduction]]+T_DataComboFile[[#This Row],[2022/23 Increase]]","v":0},{"$f":"T_DataComboFile[[#This Row],[2023/24 Baseline]]+T_DataComboFile[[#This Row],[2023/24 Reduction]]+T_DataComboFile[[#This Row],[2023/24 Increase]]","v":0}]
[null,null,"2021_22","ENE2020",36,1,1,null,70118,36,1,1,null,"070118","36|01|01",1,2,8,49,51,"01|02|08|49|51","National","Small Business Development","Administration","Ministry",null,"Current","Transfers and subsidies","Public corporations and private enterprises","Public corporations","Subsidies on products and production (pc)",null,null,null,0,0,0,0,0,0,0,0,0,0,0,0,0,0,null,{"$f":"IF(T_DataComboFile[[#This Row],[G&S reporting level indicator]]=1,$AX$16,\"Not applicable\")","v":"Level 3"},{"$f":"IF(AND($AX$16=\"Level 3\",T_DataComboFile[[#This Row],[Econ3]] = \"Goods and services\"),IF(T_DataComboFile[[#This Row],[Econ4]] = T_DataComboFile[[#This Row],[Econ3]],1,0),IF(AND($AX$16=\"Level 4\",T_DataComboFile[[#This Row],[Econ4]] = \"Goods and services\"),0,1))","v":1},{"$f":"T_DataComboFile[[#This Row],[2016/17_Source]]*T_DataComboFile[[#This Row],[G&S reporting level indicator]]","v":0},{"$f":"T_DataComboFile[[#This Row],[2017/18_Source]]*T_DataComboFile[[#This Row],[G&S reporting level indicator]]","v":0},{"$f":"T_DataComboFile[[#This Row],[2018/19_Source]]*T_DataComboFile[[#This Row],[G&S reporting level indicator]]","v":0},{"$f":"T_DataComboFile[[#This Row],[2019/20 Main appropriation_Source]]*T_DataComboFile[[#This Row],[G&S reporting level indicator]]","v":0},{"$f":"T_DataComboFile[[#This Row],[2019/20 Adjusted appropriation_Source]]*T_DataComboFile[[#This Row],[G&S reporting level indicator]]","v":0},{"$f":"T_DataComboFile[[#This Row],[2019/20 Revised estimate_Source]]*T_DataComboFile[[#This Row],[G&S reporting level indicator]]","v":0},{"$f":"T_DataComboFile[[#This Row],[2019/20 Preliminary outcome_Source]]*T_DataComboFile[[#This Row],[G&S reporting level indicator]]","v":0},{"$f":"T_DataComboFile[[#This Row],[2020/21 Original_Source]]*T_DataComboFile[[#This Row],[G&S reporting level indicator]]","v":0},{"$f":"T_DataComboFile[[#This Row],[2020/21 SAB_Source]]*T_DataComboFile[[#This Row],[G&S reporting level indicator]]","v":0},{"$f":"T_DataComboFile[[#This Row],[2020/21 Baseline_Source]]*T_DataComboFile[[#This Row],[G&S reporting level indicator]]","v":0},{"$f":"T_DataComboFile[[#This Row],[2021/22 Baseline_Source]]*T_DataComboFile[[#This Row],[G&S reporting level indicator]]","v":0},{"$f":"T_DataComboFile[[#This Row],[2022/23 Baseline_Source]]*T_DataComboFile[[#This Row],[G&S reporting level indicator]]","v":0},{"$f":"T_DataComboFile[[#This Row],[2023/24 Baseline_Source]]*T_DataComboFile[[#This Row],[G&S reporting level indicator]]","v":0},null,null,null,null,null,null,{"$f":"T_DataComboFile[[#This Row],[2021/22 Baseline]]+T_DataComboFile[[#This Row],[2021/22 Reduction]]+T_DataComboFile[[#This Row],[2021/22 Increase]]","v":0},{"$f":"T_DataComboFile[[#This Row],[2022/23 Baseline]]+T_DataComboFile[[#This Row],[2022/23 Reduction]]+T_DataComboFile[[#This Row],[2022/23 Increase]]","v":0},{"$f":"T_DataComboFile[[#This Row],[2023/24 Baseline]]+T_DataComboFile[[#This Row],[2023/24 Reduction]]+T_DataComboFile[[#This Row],[2023/24 Increase]]","v":0}]
[null,null,"2021_22","ENE2020",36,1,1,null,70119,36,1,1,null,"070119","36|01|01",1,2,8,49,52,"01|02|08|49|52","National","Small Business Development","Administration","Ministry",null,"Current","Transfers and subsidies","Public corporations and private enterprises","Public corporations","Other transfers to public corporations",null,null,null,0,0,0,0,0,0,0,0,0,0,0,0,0,0,null,{"$f":"IF(T_DataComboFile[[#This Row],[G&S reporting level indicator]]=1,$AX$16,\"Not applicable\")","v":"Level 3"},{"$f":"IF(AND($AX$16=\"Level 3\",T_DataComboFile[[#This Row],[Econ3]] = \"Goods and services\"),IF(T_DataComboFile[[#This Row],[Econ4]] = T_DataComboFile[[#This Row],[Econ3]],1,0),IF(AND($AX$16=\"Level 4\",T_DataComboFile[[#This Row],[Econ4]] = \"Goods and services\"),0,1))","v":1},{"$f":"T_DataComboFile[[#This Row],[2016/17_Source]]*T_DataComboFile[[#This Row],[G&S reporting level indicator]]","v":0},{"$f":"T_DataComboFile[[#This Row],[2017/18_Source]]*T_DataComboFile[[#This Row],[G&S reporting level indicator]]","v":0},{"$f":"T_DataComboFile[[#This Row],[2018/19_Source]]*T_DataComboFile[[#This Row],[G&S reporting level indicator]]","v":0},{"$f":"T_DataComboFile[[#This Row],[2019/20 Main appropriation_Source]]*T_DataComboFile[[#This Row],[G&S reporting level indicator]]","v":0},{"$f":"T_DataComboFile[[#This Row],[2019/20 Adjusted appropriation_Source]]*T_DataComboFile[[#This Row],[G&S reporting level indicator]]","v":0},{"$f":"T_DataComboFile[[#This Row],[2019/20 Revised estimate_Source]]*T_DataComboFile[[#This Row],[G&S reporting level indicator]]","v":0},{"$f":"T_DataComboFile[[#This Row],[2019/20 Preliminary outcome_Source]]*T_DataComboFile[[#This Row],[G&S reporting level indicator]]","v":0},{"$f":"T_DataComboFile[[#This Row],[2020/21 Original_Source]]*T_DataComboFile[[#This Row],[G&S reporting level indicator]]","v":0},{"$f":"T_DataComboFile[[#This Row],[2020/21 SAB_Source]]*T_DataComboFile[[#This Row],[G&S reporting level indicator]]","v":0},{"$f":"T_DataComboFile[[#This Row],[2020/21 Baseline_Source]]*T_DataComboFile[[#This Row],[G&S reporting level indicator]]","v":0},{"$f":"T_DataComboFile[[#This Row],[2021/22 Baseline_Source]]*T_DataComboFile[[#This Row],[G&S reporting level indicator]]","v":0},{"$f":"T_DataComboFile[[#This Row],[2022/23 Baseline_Source]]*T_DataComboFile[[#This Row],[G&S reporting level indicator]]","v":0},{"$f":"T_DataComboFile[[#This Row],[2023/24 Baseline_Source]]*T_DataComboFile[[#This Row],[G&S reporting level indicator]]","v":0},null,null,null,null,null,null,{"$f":"T_DataComboFile[[#This Row],[2021/22 Baseline]]+T_DataComboFile[[#This Row],[2021/22 Reduction]]+T_DataComboFile[[#This Row],[2021/22 Increase]]","v":0},{"$f":"T_DataComboFile[[#This Row],[2022/23 Baseline]]+T_DataComboFile[[#This Row],[2022/23 Reduction]]+T_DataComboFile[[#This Row],[2022/23 Increase]]","v":0},{"$f":"T_DataComboFile[[#This Row],[2023/24 Baseline]]+T_DataComboFile[[#This Row],[2023/24 Reduction]]+T_DataComboFile[[#This Row],[2023/24 Increase]]","v":0}]
[null,null,"2021_22","ENE2020",36,1,1,null,70120,36,1,1,null,"070120","36|01|01",1,2,8,50,53,"01|02|08|50|53","National","Small Business Development","Administration","Ministry",null,"Current","Transfers and subsidies","Public corporations and private enterprises","Private enterprises","Subsidies on products and production (pe)",null,null,null,0,0,0,0,0,0,0,0,0,0,0,0,0,0,null,{"$f":"IF(T_DataComboFile[[#This Row],[G&S reporting level indicator]]=1,$AX$16,\"Not applicable\")","v":"Level 3"},{"$f":"IF(AND($AX$16=\"Level 3\",T_DataComboFile[[#This Row],[Econ3]] = \"Goods and services\"),IF(T_DataComboFile[[#This Row],[Econ4]] = T_DataComboFile[[#This Row],[Econ3]],1,0),IF(AND($AX$16=\"Level 4\",T_DataComboFile[[#This Row],[Econ4]] = \"Goods and services\"),0,1))","v":1},{"$f":"T_DataComboFile[[#This Row],[2016/17_Source]]*T_DataComboFile[[#This Row],[G&S reporting level indicator]]","v":0},{"$f":"T_DataComboFile[[#This Row],[2017/18_Source]]*T_DataComboFile[[#This Row],[G&S reporting level indicator]]","v":0},{"$f":"T_DataComboFile[[#This Row],[2018/19_Source]]*T_DataComboFile[[#This Row],[G&S reporting level indicator]]","v":0},{"$f":"T_DataComboFile[[#This Row],[2019/20 Main appropriation_Source]]*T_DataComboFile[[#This Row],[G&S reporting level indicator]]","v":0},{"$f":"T_DataComboFile[[#This Row],[2019/20 Adjusted appropriation_Source]]*T_DataComboFile[[#This Row],[G&S reporting level indicator]]","v":0},{"$f":"T_DataComboFile[[#This Row],[2019/20 Revised estimate_Source]]*T_DataComboFile[[#This Row],[G&S reporting level indicator]]","v":0},{"$f":"T_DataComboFile[[#This Row],[2019/20 Preliminary outcome_Source]]*T_DataComboFile[[#This Row],[G&S reporting level indicator]]","v":0},{"$f":"T_DataComboFile[[#This Row],[2020/21 Original_Source]]*T_DataComboFile[[#This Row],[G&S reporting level indicator]]","v":0},{"$f":"T_DataComboFile[[#This Row],[2020/21 SAB_Source]]*T_DataComboFile[[#This Row],[G&S reporting level indicator]]","v":0},{"$f":"T_DataComboFile[[#This Row],[2020/21 Baseline_Source]]*T_DataComboFile[[#This Row],[G&S reporting level indicator]]","v":0},{"$f":"T_DataComboFile[[#This Row],[2021/22 Baseline_Source]]*T_DataComboFile[[#This Row],[G&S reporting level indicator]]","v":0},{"$f":"T_DataComboFile[[#This Row],[2022/23 Baseline_Source]]*T_DataComboFile[[#This Row],[G&S reporting level indicator]]","v":0},{"$f":"T_DataComboFile[[#This Row],[2023/24 Baseline_Source]]*T_DataComboFile[[#This Row],[G&S reporting level indicator]]","v":0},null,null,null,null,null,null,{"$f":"T_DataComboFile[[#This Row],[2021/22 Baseline]]+T_DataComboFile[[#This Row],[2021/22 Reduction]]+T_DataComboFile[[#This Row],[2021/22 Increase]]","v":0},{"$f":"T_DataComboFile[[#This Row],[2022/23 Baseline]]+T_DataComboFile[[#This Row],[2022/23 Reduction]]+T_DataComboFile[[#This Row],[2022/23 Increase]]","v":0},{"$f":"T_DataComboFile[[#This Row],[2023/24 Baseline]]+T_DataComboFile[[#This Row],[2023/24 Reduction]]+T_DataComboFile[[#This Row],[2023/24 Increase]]","v":0}]
[null,null,"2021_22","ENE2020",36,1,1,null,70121,36,1,1,null,"070121","36|01|01",1,2,8,50,54,"01|02|08|50|54","National","Small Business Development","Administration","Ministry",null,"Current","Transfers and subsidies","Public corporations and private enterprises","Private enterprises","Other transfers to private enterprises",null,null,null,0,0,0,0,0,0,0,0,0,0,0,0,0,0,null,{"$f":"IF(T_DataComboFile[[#This Row],[G&S reporting level indicator]]=1,$AX$16,\"Not applicable\")","v":"Level 3"},{"$f":"IF(AND($AX$16=\"Level 3\",T_DataComboFile[[#This Row],[Econ3]] = \"Goods and services\"),IF(T_DataComboFile[[#This Row],[Econ4]] = T_DataComboFile[[#This Row],[Econ3]],1,0),IF(AND($AX$16=\"Level 4\",T_DataComboFile[[#This Row],[Econ4]] = \"Goods and services\"),0,1))","v":1},{"$f":"T_DataComboFile[[#This Row],[2016/17_Source]]*T_DataComboFile[[#This Row],[G&S reporting level indicator]]","v":0},{"$f":"T_DataComboFile[[#This Row],[2017/18_Source]]*T_DataComboFile[[#This Row],[G&S reporting level indicator]]","v":0},{"$f":"T_DataComboFile[[#This Row],[2018/19_Source]]*T_DataComboFile[[#This Row],[G&S reporting level indicator]]","v":0},{"$f":"T_DataComboFile[[#This Row],[2019/20 Main appropriation_Source]]*T_DataComboFile[[#This Row],[G&S reporting level indicator]]","v":0},{"$f":"T_DataComboFile[[#This Row],[2019/20 Adjusted appropriation_Source]]*T_DataComboFile[[#This Row],[G&S reporting level indicator]]","v":0},{"$f":"T_DataComboFile[[#This Row],[2019/20 Revised estimate_Source]]*T_DataComboFile[[#This Row],[G&S reporting level indicator]]","v":0},{"$f":"T_DataComboFile[[#This Row],[2019/20 Preliminary outcome_Source]]*T_DataComboFile[[#This Row],[G&S reporting level indicator]]","v":0},{"$f":"T_DataComboFile[[#This Row],[2020/21 Original_Source]]*T_DataComboFile[[#This Row],[G&S reporting level indicator]]","v":0},{"$f":"T_DataComboFile[[#This Row],[2020/21 SAB_Source]]*T_DataComboFile[[#This Row],[G&S reporting level indicator]]","v":0},{"$f":"T_DataComboFile[[#This Row],[2020/21 Baseline_Source]]*T_DataComboFile[[#This Row],[G&S reporting level indicator]]","v":0},{"$f":"T_DataComboFile[[#This Row],[2021/22 Baseline_Source]]*T_DataComboFile[[#This Row],[G&S reporting level indicator]]","v":0},{"$f":"T_DataComboFile[[#This Row],[2022/23 Baseline_Source]]*T_DataComboFile[[#This Row],[G&S reporting level indicator]]","v":0},{"$f":"T_DataComboFile[[#This Row],[2023/24 Baseline_Source]]*T_DataComboFile[[#This Row],[G&S reporting level indicator]]","v":0},null,null,null,null,null,null,{"$f":"T_DataComboFile[[#This Row],[2021/22 Baseline]]+T_DataComboFile[[#This Row],[2021/22 Reduction]]+T_DataComboFile[[#This Row],[2021/22 Increase]]","v":0},{"$f":"T_DataComboFile[[#This Row],[2022/23 Baseline]]+T_DataComboFile[[#This Row],[2022/23 Reduction]]+T_DataComboFile[[#This Row],[2022/23 Increase]]","v":0},{"$f":"T_DataComboFile[[#This Row],[2023/24 Baseline]]+T_DataComboFile[[#This Row],[2023/24 Reduction]]+T_DataComboFile[[#This Row],[2023/24 Increase]]","v":0}]
[null,null,"2021_22","ENE2020",36,1,1,null,70122,36,1,1,null,"070122","36|01|01",1,2,9,51,55,"01|02|09|51|55","National","Small Business Development","Administration","Ministry",null,"Current","Transfers and subsidies","Non-profit institutions","Non-profit institutions","Non-profit institutions",null,null,null,0,0,0,0,0,0,0,0,0,0,0,0,0,0,null,{"$f":"IF(T_DataComboFile[[#This Row],[G&S reporting level indicator]]=1,$AX$16,\"Not applicable\")","v":"Level 3"},{"$f":"IF(AND($AX$16=\"Level 3\",T_DataComboFile[[#This Row],[Econ3]] = \"Goods and services\"),IF(T_DataComboFile[[#This Row],[Econ4]] = T_DataComboFile[[#This Row],[Econ3]],1,0),IF(AND($AX$16=\"Level 4\",T_DataComboFile[[#This Row],[Econ4]] = \"Goods and services\"),0,1))","v":1},{"$f":"T_DataComboFile[[#This Row],[2016/17_Source]]*T_DataComboFile[[#This Row],[G&S reporting level indicator]]","v":0},{"$f":"T_DataComboFile[[#This Row],[2017/18_Source]]*T_DataComboFile[[#This Row],[G&S reporting level indicator]]","v":0},{"$f":"T_DataComboFile[[#This Row],[2018/19_Source]]*T_DataComboFile[[#This Row],[G&S reporting level indicator]]","v":0},{"$f":"T_DataComboFile[[#This Row],[2019/20 Main appropriation_Source]]*T_DataComboFile[[#This Row],[G&S reporting level indicator]]","v":0},{"$f":"T_DataComboFile[[#This Row],[2019/20 Adjusted appropriation_Source]]*T_DataComboFile[[#This Row],[G&S reporting level indicator]]","v":0},{"$f":"T_DataComboFile[[#This Row],[2019/20 Revised estimate_Source]]*T_DataComboFile[[#This Row],[G&S reporting level indicator]]","v":0},{"$f":"T_DataComboFile[[#This Row],[2019/20 Preliminary outcome_Source]]*T_DataComboFile[[#This Row],[G&S reporting level indicator]]","v":0},{"$f":"T_DataComboFile[[#This Row],[2020/21 Original_Source]]*T_DataComboFile[[#This Row],[G&S reporting level indicator]]","v":0},{"$f":"T_DataComboFile[[#This Row],[2020/21 SAB_Source]]*T_DataComboFile[[#This Row],[G&S reporting level indicator]]","v":0},{"$f":"T_DataComboFile[[#This Row],[2020/21 Baseline_Source]]*T_DataComboFile[[#This Row],[G&S reporting level indicator]]","v":0},{"$f":"T_DataComboFile[[#This Row],[2021/22 Baseline_Source]]*T_DataComboFile[[#This Row],[G&S reporting level indicator]]","v":0},{"$f":"T_DataComboFile[[#This Row],[2022/23 Baseline_Source]]*T_DataComboFile[[#This Row],[G&S reporting level indicator]]","v":0},{"$f":"T_DataComboFile[[#This Row],[2023/24 Baseline_Source]]*T_DataComboFile[[#This Row],[G&S reporting level indicator]]","v":0},null,null,null,null,null,null,{"$f":"T_DataComboFile[[#This Row],[2021/22 Baseline]]+T_DataComboFile[[#This Row],[2021/22 Reduction]]+T_DataComboFile[[#This Row],[2021/22 Increase]]","v":0},{"$f":"T_DataComboFile[[#This Row],[2022/23 Baseline]]+T_DataComboFile[[#This Row],[2022/23 Reduction]]+T_DataComboFile[[#This Row],[2022/23 Increase]]","v":0},{"$f":"T_DataComboFile[[#This Row],[2023/24 Baseline]]+T_DataComboFile[[#This Row],[2023/24 Reduction]]+T_DataComboFile[[#This Row],[2023/24 Increase]]","v":0}]
["NAT|Households","36|Social benefits","2021_22","ENE2020",36,1,1,17191,70123,36,1,1,17191,"070123","36|01|01",1,2,10,52,56,"01|02|10|52|56","National","Small Business Development","Administration","Ministry","Households","Current","Transfers and subsidies","Households","Social benefits","Social benefits","Economic development","Industrialisation and exports","NAT",0,0,110,0,270,270,270,0,0,0,0,0,0,1,null,{"$f":"IF(T_DataComboFile[[#This Row],[G&S reporting level indicator]]=1,$AX$16,\"Not applicable\")","v":"Level 3"},{"$f":"IF(AND($AX$16=\"Level 3\",T_DataComboFile[[#This Row],[Econ3]] = \"Goods and services\"),IF(T_DataComboFile[[#This Row],[Econ4]] = T_DataComboFile[[#This Row],[Econ3]],1,0),IF(AND($AX$16=\"Level 4\",T_DataComboFile[[#This Row],[Econ4]] = \"Goods and services\"),0,1))","v":1},{"$f":"T_DataComboFile[[#This Row],[2016/17_Source]]*T_DataComboFile[[#This Row],[G&S reporting level indicator]]","v":0},{"$f":"T_DataComboFile[[#This Row],[2017/18_Source]]*T_DataComboFile[[#This Row],[G&S reporting level indicator]]","v":0},{"$f":"T_DataComboFile[[#This Row],[2018/19_Source]]*T_DataComboFile[[#This Row],[G&S reporting level indicator]]","v":110},{"$f":"T_DataComboFile[[#This Row],[2019/20 Main appropriation_Source]]*T_DataComboFile[[#This Row],[G&S reporting level indicator]]","v":0},{"$f":"T_DataComboFile[[#This Row],[2019/20 Adjusted appropriation_Source]]*T_DataComboFile[[#This Row],[G&S reporting level indicator]]","v":270},{"$f":"T_DataComboFile[[#This Row],[2019/20 Revised estimate_Source]]*T_DataComboFile[[#This Row],[G&S reporting level indicator]]","v":270},{"$f":"T_DataComboFile[[#This Row],[2019/20 Preliminary outcome_Source]]*T_DataComboFile[[#This Row],[G&S reporting level indicator]]","v":270},{"$f":"T_DataComboFile[[#This Row],[2020/21 Original_Source]]*T_DataComboFile[[#This Row],[G&S reporting level indicator]]","v":0},{"$f":"T_DataComboFile[[#This Row],[2020/21 SAB_Source]]*T_DataComboFile[[#This Row],[G&S reporting level indicator]]","v":0},{"$f":"T_DataComboFile[[#This Row],[2020/21 Baseline_Source]]*T_DataComboFile[[#This Row],[G&S reporting level indicator]]","v":0},{"$f":"T_DataComboFile[[#This Row],[2021/22 Baseline_Source]]*T_DataComboFile[[#This Row],[G&S reporting level indicator]]","v":0},{"$f":"T_DataComboFile[[#This Row],[2022/23 Baseline_Source]]*T_DataComboFile[[#This Row],[G&S reporting level indicator]]","v":0},{"$f":"T_DataComboFile[[#This Row],[2023/24 Baseline_Source]]*T_DataComboFile[[#This Row],[G&S reporting level indicator]]","v":0},null,null,null,null,null,null,{"$f":"T_DataComboFile[[#This Row],[2021/22 Baseline]]+T_DataComboFile[[#This Row],[2021/22 Reduction]]+T_DataComboFile[[#This Row],[2021/22 Increase]]","v":0},{"$f":"T_DataComboFile[[#This Row],[2022/23 Baseline]]+T_DataComboFile[[#This Row],[2022/23 Reduction]]+T_DataComboFile[[#This Row],[2022/23 Increase]]","v":0},{"$f":"T_DataComboFile[[#This Row],[2023/24 Baseline]]+T_DataComboFile[[#This Row],[2023/24 Reduction]]+T_DataComboFile[[#This Row],[2023/24 Increase]]","v":0}]
[null,null,"2021_22","ENE2020",36,1,1,null,70124,36,1,1,null,"070124","36|01|01",1,2,10,53,57,"01|02|10|53|57","National","Small Business Development","Administration","Ministry",null,"Current","Transfers and subsidies","Households","Other transfers to households","Other transfers to households",null,null,null,0,0,0,0,0,0,0,0,0,0,0,0,0,0,null,{"$f":"IF(T_DataComboFile[[#This Row],[G&S reporting level indicator]]=1,$AX$16,\"Not applicable\")","v":"Level 3"},{"$f":"IF(AND($AX$16=\"Level 3\",T_DataComboFile[[#This Row],[Econ3]] = \"Goods and services\"),IF(T_DataComboFile[[#This Row],[Econ4]] = T_DataComboFile[[#This Row],[Econ3]],1,0),IF(AND($AX$16=\"Level 4\",T_DataComboFile[[#This Row],[Econ4]] = \"Goods and services\"),0,1))","v":1},{"$f":"T_DataComboFile[[#This Row],[2016/17_Source]]*T_DataComboFile[[#This Row],[G&S reporting level indicator]]","v":0},{"$f":"T_DataComboFile[[#This Row],[2017/18_Source]]*T_DataComboFile[[#This Row],[G&S reporting level indicator]]","v":0},{"$f":"T_DataComboFile[[#This Row],[2018/19_Source]]*T_DataComboFile[[#This Row],[G&S reporting level indicator]]","v":0},{"$f":"T_DataComboFile[[#This Row],[2019/20 Main appropriation_Source]]*T_DataComboFile[[#This Row],[G&S reporting level indicator]]","v":0},{"$f":"T_DataComboFile[[#This Row],[2019/20 Adjusted appropriation_Source]]*T_DataComboFile[[#This Row],[G&S reporting level indicator]]","v":0},{"$f":"T_DataComboFile[[#This Row],[2019/20 Revised estimate_Source]]*T_DataComboFile[[#This Row],[G&S reporting level indicator]]","v":0},{"$f":"T_DataComboFile[[#This Row],[2019/20 Preliminary outcome_Source]]*T_DataComboFile[[#This Row],[G&S reporting level indicator]]","v":0},{"$f":"T_DataComboFile[[#This Row],[2020/21 Original_Source]]*T_DataComboFile[[#This Row],[G&S reporting level indicator]]","v":0},{"$f":"T_DataComboFile[[#This Row],[2020/21 SAB_Source]]*T_DataComboFile[[#This Row],[G&S reporting level indicator]]","v":0},{"$f":"T_DataComboFile[[#This Row],[2020/21 Baseline_Source]]*T_DataComboFile[[#This Row],[G&S reporting level indicator]]","v":0},{"$f":"T_DataComboFile[[#This Row],[2021/22 Baseline_Source]]*T_DataComboFile[[#This Row],[G&S reporting level indicator]]","v":0},{"$f":"T_DataComboFile[[#This Row],[2022/23 Baseline_Source]]*T_DataComboFile[[#This Row],[G&S reporting level indicator]]","v":0},{"$f":"T_DataComboFile[[#This Row],[2023/24 Baseline_Source]]*T_DataComboFile[[#This Row],[G&S reporting level indicator]]","v":0},null,null,null,null,null,null,{"$f":"T_DataComboFile[[#This Row],[2021/22 Baseline]]+T_DataComboFile[[#This Row],[2021/22 Reduction]]+T_DataComboFile[[#This Row],[2021/22 Increase]]","v":0},{"$f":"T_DataComboFile[[#This Row],[2022/23 Baseline]]+T_DataComboFile[[#This Row],[2022/23 Reduction]]+T_DataComboFile[[#This Row],[2022/23 Increase]]","v":0},{"$f":"T_DataComboFile[[#This Row],[2023/24 Baseline]]+T_DataComboFile[[#This Row],[2023/24 Reduction]]+T_DataComboFile[[#This Row],[2023/24 Increase]]","v":0}]
[null,null,"2021_22","ENE2020",36,1,1,null,70125,36,1,1,null,"070125","36|01|01",2,2,4,43,43,"02|02|04|43|43","National","Small Business Development","Administration","Ministry",null,"Capital","Transfers and subsidies","Provinces and municipalities","Provinces","Provincial Revenue Funds",null,null,null,0,0,0,0,0,0,0,0,0,0,0,0,0,0,null,{"$f":"IF(T_DataComboFile[[#This Row],[G&S reporting level indicator]]=1,$AX$16,\"Not applicable\")","v":"Level 3"},{"$f":"IF(AND($AX$16=\"Level 3\",T_DataComboFile[[#This Row],[Econ3]] = \"Goods and services\"),IF(T_DataComboFile[[#This Row],[Econ4]] = T_DataComboFile[[#This Row],[Econ3]],1,0),IF(AND($AX$16=\"Level 4\",T_DataComboFile[[#This Row],[Econ4]] = \"Goods and services\"),0,1))","v":1},{"$f":"T_DataComboFile[[#This Row],[2016/17_Source]]*T_DataComboFile[[#This Row],[G&S reporting level indicator]]","v":0},{"$f":"T_DataComboFile[[#This Row],[2017/18_Source]]*T_DataComboFile[[#This Row],[G&S reporting level indicator]]","v":0},{"$f":"T_DataComboFile[[#This Row],[2018/19_Source]]*T_DataComboFile[[#This Row],[G&S reporting level indicator]]","v":0},{"$f":"T_DataComboFile[[#This Row],[2019/20 Main appropriation_Source]]*T_DataComboFile[[#This Row],[G&S reporting level indicator]]","v":0},{"$f":"T_DataComboFile[[#This Row],[2019/20 Adjusted appropriation_Source]]*T_DataComboFile[[#This Row],[G&S reporting level indicator]]","v":0},{"$f":"T_DataComboFile[[#This Row],[2019/20 Revised estimate_Source]]*T_DataComboFile[[#This Row],[G&S reporting level indicator]]","v":0},{"$f":"T_DataComboFile[[#This Row],[2019/20 Preliminary outcome_Source]]*T_DataComboFile[[#This Row],[G&S reporting level indicator]]","v":0},{"$f":"T_DataComboFile[[#This Row],[2020/21 Original_Source]]*T_DataComboFile[[#This Row],[G&S reporting level indicator]]","v":0},{"$f":"T_DataComboFile[[#This Row],[2020/21 SAB_Source]]*T_DataComboFile[[#This Row],[G&S reporting level indicator]]","v":0},{"$f":"T_DataComboFile[[#This Row],[2020/21 Baseline_Source]]*T_DataComboFile[[#This Row],[G&S reporting level indicator]]","v":0},{"$f":"T_DataComboFile[[#This Row],[2021/22 Baseline_Source]]*T_DataComboFile[[#This Row],[G&S reporting level indicator]]","v":0},{"$f":"T_DataComboFile[[#This Row],[2022/23 Baseline_Source]]*T_DataComboFile[[#This Row],[G&S reporting level indicator]]","v":0},{"$f":"T_DataComboFile[[#This Row],[2023/24 Baseline_Source]]*T_DataComboFile[[#This Row],[G&S reporting level indicator]]","v":0},null,null,null,null,null,null,{"$f":"T_DataComboFile[[#This Row],[2021/22 Baseline]]+T_DataComboFile[[#This Row],[2021/22 Reduction]]+T_DataComboFile[[#This Row],[2021/22 Increase]]","v":0},{"$f":"T_DataComboFile[[#This Row],[2022/23 Baseline]]+T_DataComboFile[[#This Row],[2022/23 Reduction]]+T_DataComboFile[[#This Row],[2022/23 Increase]]","v":0},{"$f":"T_DataComboFile[[#This Row],[2023/24 Baseline]]+T_DataComboFile[[#This Row],[2023/24 Reduction]]+T_DataComboFile[[#This Row],[2023/24 Increase]]","v":0}]
[null,null,"2021_22","ENE2020",36,1,1,null,70126,36,1,1,null,"070126","36|01|01",2,2,4,44,45,"02|02|04|44|45","National","Small Business Development","Administration","Ministry",null,"Capital","Transfers and subsidies","Provinces and municipalities","Municipalities","Municipal bank accounts",null,null,null,0,0,0,0,0,0,0,0,0,0,0,0,0,0,null,{"$f":"IF(T_DataComboFile[[#This Row],[G&S reporting level indicator]]=1,$AX$16,\"Not applicable\")","v":"Level 3"},{"$f":"IF(AND($AX$16=\"Level 3\",T_DataComboFile[[#This Row],[Econ3]] = \"Goods and services\"),IF(T_DataComboFile[[#This Row],[Econ4]] = T_DataComboFile[[#This Row],[Econ3]],1,0),IF(AND($AX$16=\"Level 4\",T_DataComboFile[[#This Row],[Econ4]] = \"Goods and services\"),0,1))","v":1},{"$f":"T_DataComboFile[[#This Row],[2016/17_Source]]*T_DataComboFile[[#This Row],[G&S reporting level indicator]]","v":0},{"$f":"T_DataComboFile[[#This Row],[2017/18_Source]]*T_DataComboFile[[#This Row],[G&S reporting level indicator]]","v":0},{"$f":"T_DataComboFile[[#This Row],[2018/19_Source]]*T_DataComboFile[[#This Row],[G&S reporting level indicator]]","v":0},{"$f":"T_DataComboFile[[#This Row],[2019/20 Main appropriation_Source]]*T_DataComboFile[[#This Row],[G&S reporting level indicator]]","v":0},{"$f":"T_DataComboFile[[#This Row],[2019/20 Adjusted appropriation_Source]]*T_DataComboFile[[#This Row],[G&S reporting level indicator]]","v":0},{"$f":"T_DataComboFile[[#This Row],[2019/20 Revised estimate_Source]]*T_DataComboFile[[#This Row],[G&S reporting level indicator]]","v":0},{"$f":"T_DataComboFile[[#This Row],[2019/20 Preliminary outcome_Source]]*T_DataComboFile[[#This Row],[G&S reporting level indicator]]","v":0},{"$f":"T_DataComboFile[[#This Row],[2020/21 Original_Source]]*T_DataComboFile[[#This Row],[G&S reporting level indicator]]","v":0},{"$f":"T_DataComboFile[[#This Row],[2020/21 SAB_Source]]*T_DataComboFile[[#This Row],[G&S reporting level indicator]]","v":0},{"$f":"T_DataComboFile[[#This Row],[2020/21 Baseline_Source]]*T_DataComboFile[[#This Row],[G&S reporting level indicator]]","v":0},{"$f":"T_DataComboFile[[#This Row],[2021/22 Baseline_Source]]*T_DataComboFile[[#This Row],[G&S reporting level indicator]]","v":0},{"$f":"T_DataComboFile[[#This Row],[2022/23 Baseline_Source]]*T_DataComboFile[[#This Row],[G&S reporting level indicator]]","v":0},{"$f":"T_DataComboFile[[#This Row],[2023/24 Baseline_Source]]*T_DataComboFile[[#This Row],[G&S reporting level indicator]]","v":0},null,null,null,null,null,null,{"$f":"T_DataComboFile[[#This Row],[2021/22 Baseline]]+T_DataComboFile[[#This Row],[2021/22 Reduction]]+T_DataComboFile[[#This Row],[2021/22 Increase]]","v":0},{"$f":"T_DataComboFile[[#This Row],[2022/23 Baseline]]+T_DataComboFile[[#This Row],[2022/23 Reduction]]+T_DataComboFile[[#This Row],[2022/23 Increase]]","v":0},{"$f":"T_DataComboFile[[#This Row],[2023/24 Baseline]]+T_DataComboFile[[#This Row],[2023/24 Reduction]]+T_DataComboFile[[#This Row],[2023/24 Increase]]","v":0}]
[null,null,"2021_22","ENE2020",36,1,1,null,70127,36,1,1,null,"070127","36|01|01",2,2,5,46,48,"02|02|05|46|48","National","Small Business Development","Administration","Ministry",null,"Capital","Transfers and subsidies","Departmental agencies and accounts","Departmental agencies (non-business entities)","Departmental agencies (non-business entities)",null,null,null,0,0,0,0,0,0,0,0,0,0,0,0,0,0,null,{"$f":"IF(T_DataComboFile[[#This Row],[G&S reporting level indicator]]=1,$AX$16,\"Not applicable\")","v":"Level 3"},{"$f":"IF(AND($AX$16=\"Level 3\",T_DataComboFile[[#This Row],[Econ3]] = \"Goods and services\"),IF(T_DataComboFile[[#This Row],[Econ4]] = T_DataComboFile[[#This Row],[Econ3]],1,0),IF(AND($AX$16=\"Level 4\",T_DataComboFile[[#This Row],[Econ4]] = \"Goods and services\"),0,1))","v":1},{"$f":"T_DataComboFile[[#This Row],[2016/17_Source]]*T_DataComboFile[[#This Row],[G&S reporting level indicator]]","v":0},{"$f":"T_DataComboFile[[#This Row],[2017/18_Source]]*T_DataComboFile[[#This Row],[G&S reporting level indicator]]","v":0},{"$f":"T_DataComboFile[[#This Row],[2018/19_Source]]*T_DataComboFile[[#This Row],[G&S reporting level indicator]]","v":0},{"$f":"T_DataComboFile[[#This Row],[2019/20 Main appropriation_Source]]*T_DataComboFile[[#This Row],[G&S reporting level indicator]]","v":0},{"$f":"T_DataComboFile[[#This Row],[2019/20 Adjusted appropriation_Source]]*T_DataComboFile[[#This Row],[G&S reporting level indicator]]","v":0},{"$f":"T_DataComboFile[[#This Row],[2019/20 Revised estimate_Source]]*T_DataComboFile[[#This Row],[G&S reporting level indicator]]","v":0},{"$f":"T_DataComboFile[[#This Row],[2019/20 Preliminary outcome_Source]]*T_DataComboFile[[#This Row],[G&S reporting level indicator]]","v":0},{"$f":"T_DataComboFile[[#This Row],[2020/21 Original_Source]]*T_DataComboFile[[#This Row],[G&S reporting level indicator]]","v":0},{"$f":"T_DataComboFile[[#This Row],[2020/21 SAB_Source]]*T_DataComboFile[[#This Row],[G&S reporting level indicator]]","v":0},{"$f":"T_DataComboFile[[#This Row],[2020/21 Baseline_Source]]*T_DataComboFile[[#This Row],[G&S reporting level indicator]]","v":0},{"$f":"T_DataComboFile[[#This Row],[2021/22 Baseline_Source]]*T_DataComboFile[[#This Row],[G&S reporting level indicator]]","v":0},{"$f":"T_DataComboFile[[#This Row],[2022/23 Baseline_Source]]*T_DataComboFile[[#This Row],[G&S reporting level indicator]]","v":0},{"$f":"T_DataComboFile[[#This Row],[2023/24 Baseline_Source]]*T_DataComboFile[[#This Row],[G&S reporting level indicator]]","v":0},null,null,null,null,null,null,{"$f":"T_DataComboFile[[#This Row],[2021/22 Baseline]]+T_DataComboFile[[#This Row],[2021/22 Reduction]]+T_DataComboFile[[#This Row],[2021/22 Increase]]","v":0},{"$f":"T_DataComboFile[[#This Row],[2022/23 Baseline]]+T_DataComboFile[[#This Row],[2022/23 Reduction]]+T_DataComboFile[[#This Row],[2022/23 Increase]]","v":0},{"$f":"T_DataComboFile[[#This Row],[2023/24 Baseline]]+T_DataComboFile[[#This Row],[2023/24 Reduction]]+T_DataComboFile[[#This Row],[2023/24 Increase]]","v":0}]
[null,null,"2021_22","ENE2020",36,1,1,null,70128,36,1,1,null,"070128","36|01|01",2,2,6,47,49,"02|02|06|47|49","National","Small Business Development","Administration","Ministry",null,"Capital","Transfers and subsidies","Higher education institutions","Higher education institutions","Higher education institutions",null,null,null,0,0,0,0,0,0,0,0,0,0,0,0,0,0,null,{"$f":"IF(T_DataComboFile[[#This Row],[G&S reporting level indicator]]=1,$AX$16,\"Not applicable\")","v":"Level 3"},{"$f":"IF(AND($AX$16=\"Level 3\",T_DataComboFile[[#This Row],[Econ3]] = \"Goods and services\"),IF(T_DataComboFile[[#This Row],[Econ4]] = T_DataComboFile[[#This Row],[Econ3]],1,0),IF(AND($AX$16=\"Level 4\",T_DataComboFile[[#This Row],[Econ4]] = \"Goods and services\"),0,1))","v":1},{"$f":"T_DataComboFile[[#This Row],[2016/17_Source]]*T_DataComboFile[[#This Row],[G&S reporting level indicator]]","v":0},{"$f":"T_DataComboFile[[#This Row],[2017/18_Source]]*T_DataComboFile[[#This Row],[G&S reporting level indicator]]","v":0},{"$f":"T_DataComboFile[[#This Row],[2018/19_Source]]*T_DataComboFile[[#This Row],[G&S reporting level indicator]]","v":0},{"$f":"T_DataComboFile[[#This Row],[2019/20 Main appropriation_Source]]*T_DataComboFile[[#This Row],[G&S reporting level indicator]]","v":0},{"$f":"T_DataComboFile[[#This Row],[2019/20 Adjusted appropriation_Source]]*T_DataComboFile[[#This Row],[G&S reporting level indicator]]","v":0},{"$f":"T_DataComboFile[[#This Row],[2019/20 Revised estimate_Source]]*T_DataComboFile[[#This Row],[G&S reporting level indicator]]","v":0},{"$f":"T_DataComboFile[[#This Row],[2019/20 Preliminary outcome_Source]]*T_DataComboFile[[#This Row],[G&S reporting level indicator]]","v":0},{"$f":"T_DataComboFile[[#This Row],[2020/21 Original_Source]]*T_DataComboFile[[#This Row],[G&S reporting level indicator]]","v":0},{"$f":"T_DataComboFile[[#This Row],[2020/21 SAB_Source]]*T_DataComboFile[[#This Row],[G&S reporting level indicator]]","v":0},{"$f":"T_DataComboFile[[#This Row],[2020/21 Baseline_Source]]*T_DataComboFile[[#This Row],[G&S reporting level indicator]]","v":0},{"$f":"T_DataComboFile[[#This Row],[2021/22 Baseline_Source]]*T_DataComboFile[[#This Row],[G&S reporting level indicator]]","v":0},{"$f":"T_DataComboFile[[#This Row],[2022/23 Baseline_Source]]*T_DataComboFile[[#This Row],[G&S reporting level indicator]]","v":0},{"$f":"T_DataComboFile[[#This Row],[2023/24 Baseline_Source]]*T_DataComboFile[[#This Row],[G&S reporting level indicator]]","v":0},null,null,null,null,null,null,{"$f":"T_DataComboFile[[#This Row],[2021/22 Baseline]]+T_DataComboFile[[#This Row],[2021/22 Reduction]]+T_DataComboFile[[#This Row],[2021/22 Increase]]","v":0},{"$f":"T_DataComboFile[[#This Row],[2022/23 Baseline]]+T_DataComboFile[[#This Row],[2022/23 Reduction]]+T_DataComboFile[[#This Row],[2022/23 Increase]]","v":0},{"$f":"T_DataComboFile[[#This Row],[2023/24 Baseline]]+T_DataComboFile[[#This Row],[2023/24 Reduction]]+T_DataComboFile[[#This Row],[2023/24 Increase]]","v":0}]
[null,null,"2021_22","ENE2020",36,1,1,null,70129,36,1,1,null,"070129","36|01|01",2,2,7,48,50,"02|02|07|48|50","National","Small Business Development","Administration","Ministry",null,"Capital","Transfers and subsidies","Foreign governments and international organisations","Foreign governments and international organisations","Foreign governments and international organisations",null,null,null,0,0,0,0,0,0,0,0,0,0,0,0,0,0,null,{"$f":"IF(T_DataComboFile[[#This Row],[G&S reporting level indicator]]=1,$AX$16,\"Not applicable\")","v":"Level 3"},{"$f":"IF(AND($AX$16=\"Level 3\",T_DataComboFile[[#This Row],[Econ3]] = \"Goods and services\"),IF(T_DataComboFile[[#This Row],[Econ4]] = T_DataComboFile[[#This Row],[Econ3]],1,0),IF(AND($AX$16=\"Level 4\",T_DataComboFile[[#This Row],[Econ4]] = \"Goods and services\"),0,1))","v":1},{"$f":"T_DataComboFile[[#This Row],[2016/17_Source]]*T_DataComboFile[[#This Row],[G&S reporting level indicator]]","v":0},{"$f":"T_DataComboFile[[#This Row],[2017/18_Source]]*T_DataComboFile[[#This Row],[G&S reporting level indicator]]","v":0},{"$f":"T_DataComboFile[[#This Row],[2018/19_Source]]*T_DataComboFile[[#This Row],[G&S reporting level indicator]]","v":0},{"$f":"T_DataComboFile[[#This Row],[2019/20 Main appropriation_Source]]*T_DataComboFile[[#This Row],[G&S reporting level indicator]]","v":0},{"$f":"T_DataComboFile[[#This Row],[2019/20 Adjusted appropriation_Source]]*T_DataComboFile[[#This Row],[G&S reporting level indicator]]","v":0},{"$f":"T_DataComboFile[[#This Row],[2019/20 Revised estimate_Source]]*T_DataComboFile[[#This Row],[G&S reporting level indicator]]","v":0},{"$f":"T_DataComboFile[[#This Row],[2019/20 Preliminary outcome_Source]]*T_DataComboFile[[#This Row],[G&S reporting level indicator]]","v":0},{"$f":"T_DataComboFile[[#This Row],[2020/21 Original_Source]]*T_DataComboFile[[#This Row],[G&S reporting level indicator]]","v":0},{"$f":"T_DataComboFile[[#This Row],[2020/21 SAB_Source]]*T_DataComboFile[[#This Row],[G&S reporting level indicator]]","v":0},{"$f":"T_DataComboFile[[#This Row],[2020/21 Baseline_Source]]*T_DataComboFile[[#This Row],[G&S reporting level indicator]]","v":0},{"$f":"T_DataComboFile[[#This Row],[2021/22 Baseline_Source]]*T_DataComboFile[[#This Row],[G&S reporting level indicator]]","v":0},{"$f":"T_DataComboFile[[#This Row],[2022/23 Baseline_Source]]*T_DataComboFile[[#This Row],[G&S reporting level indicator]]","v":0},{"$f":"T_DataComboFile[[#This Row],[2023/24 Baseline_Source]]*T_DataComboFile[[#This Row],[G&S reporting level indicator]]","v":0},null,null,null,null,null,null,{"$f":"T_DataComboFile[[#This Row],[2021/22 Baseline]]+T_DataComboFile[[#This Row],[2021/22 Reduction]]+T_DataComboFile[[#This Row],[2021/22 Increase]]","v":0},{"$f":"T_DataComboFile[[#This Row],[2022/23 Baseline]]+T_DataComboFile[[#This Row],[2022/23 Reduction]]+T_DataComboFile[[#This Row],[2022/23 Increase]]","v":0},{"$f":"T_DataComboFile[[#This Row],[2023/24 Baseline]]+T_DataComboFile[[#This Row],[2023/24 Reduction]]+T_DataComboFile[[#This Row],[2023/24 Increase]]","v":0}]
[null,null,"2021_22","ENE2020",36,1,1,null,70130,36,1,1,null,"070130","36|01|01",2,2,8,49,51,"02|02|08|49|51","National","Small Business Development","Administration","Ministry",null,"Capital","Transfers and subsidies","Public corporations and private enterprises","Public corporations","Subsidies on products and production (pc)",null,null,null,0,0,0,0,0,0,0,0,0,0,0,0,0,0,null,{"$f":"IF(T_DataComboFile[[#This Row],[G&S reporting level indicator]]=1,$AX$16,\"Not applicable\")","v":"Level 3"},{"$f":"IF(AND($AX$16=\"Level 3\",T_DataComboFile[[#This Row],[Econ3]] = \"Goods and services\"),IF(T_DataComboFile[[#This Row],[Econ4]] = T_DataComboFile[[#This Row],[Econ3]],1,0),IF(AND($AX$16=\"Level 4\",T_DataComboFile[[#This Row],[Econ4]] = \"Goods and services\"),0,1))","v":1},{"$f":"T_DataComboFile[[#This Row],[2016/17_Source]]*T_DataComboFile[[#This Row],[G&S reporting level indicator]]","v":0},{"$f":"T_DataComboFile[[#This Row],[2017/18_Source]]*T_DataComboFile[[#This Row],[G&S reporting level indicator]]","v":0},{"$f":"T_DataComboFile[[#This Row],[2018/19_Source]]*T_DataComboFile[[#This Row],[G&S reporting level indicator]]","v":0},{"$f":"T_DataComboFile[[#This Row],[2019/20 Main appropriation_Source]]*T_DataComboFile[[#This Row],[G&S reporting level indicator]]","v":0},{"$f":"T_DataComboFile[[#This Row],[2019/20 Adjusted appropriation_Source]]*T_DataComboFile[[#This Row],[G&S reporting level indicator]]","v":0},{"$f":"T_DataComboFile[[#This Row],[2019/20 Revised estimate_Source]]*T_DataComboFile[[#This Row],[G&S reporting level indicator]]","v":0},{"$f":"T_DataComboFile[[#This Row],[2019/20 Preliminary outcome_Source]]*T_DataComboFile[[#This Row],[G&S reporting level indicator]]","v":0},{"$f":"T_DataComboFile[[#This Row],[2020/21 Original_Source]]*T_DataComboFile[[#This Row],[G&S reporting level indicator]]","v":0},{"$f":"T_DataComboFile[[#This Row],[2020/21 SAB_Source]]*T_DataComboFile[[#This Row],[G&S reporting level indicator]]","v":0},{"$f":"T_DataComboFile[[#This Row],[2020/21 Baseline_Source]]*T_DataComboFile[[#This Row],[G&S reporting level indicator]]","v":0},{"$f":"T_DataComboFile[[#This Row],[2021/22 Baseline_Source]]*T_DataComboFile[[#This Row],[G&S reporting level indicator]]","v":0},{"$f":"T_DataComboFile[[#This Row],[2022/23 Baseline_Source]]*T_DataComboFile[[#This Row],[G&S reporting level indicator]]","v":0},{"$f":"T_DataComboFile[[#This Row],[2023/24 Baseline_Source]]*T_DataComboFile[[#This Row],[G&S reporting level indicator]]","v":0},null,null,null,null,null,null,{"$f":"T_DataComboFile[[#This Row],[2021/22 Baseline]]+T_DataComboFile[[#This Row],[2021/22 Reduction]]+T_DataComboFile[[#This Row],[2021/22 Increase]]","v":0},{"$f":"T_DataComboFile[[#This Row],[2022/23 Baseline]]+T_DataComboFile[[#This Row],[2022/23 Reduction]]+T_DataComboFile[[#This Row],[2022/23 Increase]]","v":0},{"$f":"T_DataComboFile[[#This Row],[2023/24 Baseline]]+T_DataComboFile[[#This Row],[2023/24 Reduction]]+T_DataComboFile[[#This Row],[2023/24 Increase]]","v":0}]
[null,null,"2021_22","ENE2020",36,1,1,null,70131,36,1,1,null,"070131","36|01|01",2,2,8,49,52,"02|02|08|49|52","National","Small Business Development","Administration","Ministry",null,"Capital","Transfers and subsidies","Public corporations and private enterprises","Public corporations","Other transfers to public corporations",null,null,null,0,0,0,0,0,0,0,0,0,0,0,0,0,0,null,{"$f":"IF(T_DataComboFile[[#This Row],[G&S reporting level indicator]]=1,$AX$16,\"Not applicable\")","v":"Level 3"},{"$f":"IF(AND($AX$16=\"Level 3\",T_DataComboFile[[#This Row],[Econ3]] = \"Goods and services\"),IF(T_DataComboFile[[#This Row],[Econ4]] = T_DataComboFile[[#This Row],[Econ3]],1,0),IF(AND($AX$16=\"Level 4\",T_DataComboFile[[#This Row],[Econ4]] = \"Goods and services\"),0,1))","v":1},{"$f":"T_DataComboFile[[#This Row],[2016/17_Source]]*T_DataComboFile[[#This Row],[G&S reporting level indicator]]","v":0},{"$f":"T_DataComboFile[[#This Row],[2017/18_Source]]*T_DataComboFile[[#This Row],[G&S reporting level indicator]]","v":0},{"$f":"T_DataComboFile[[#This Row],[2018/19_Source]]*T_DataComboFile[[#This Row],[G&S reporting level indicator]]","v":0},{"$f":"T_DataComboFile[[#This Row],[2019/20 Main appropriation_Source]]*T_DataComboFile[[#This Row],[G&S reporting level indicator]]","v":0},{"$f":"T_DataComboFile[[#This Row],[2019/20 Adjusted appropriation_Source]]*T_DataComboFile[[#This Row],[G&S reporting level indicator]]","v":0},{"$f":"T_DataComboFile[[#This Row],[2019/20 Revised estimate_Source]]*T_DataComboFile[[#This Row],[G&S reporting level indicator]]","v":0},{"$f":"T_DataComboFile[[#This Row],[2019/20 Preliminary outcome_Source]]*T_DataComboFile[[#This Row],[G&S reporting level indicator]]","v":0},{"$f":"T_DataComboFile[[#This Row],[2020/21 Original_Source]]*T_DataComboFile[[#This Row],[G&S reporting level indicator]]","v":0},{"$f":"T_DataComboFile[[#This Row],[2020/21 SAB_Source]]*T_DataComboFile[[#This Row],[G&S reporting level indicator]]","v":0},{"$f":"T_DataComboFile[[#This Row],[2020/21 Baseline_Source]]*T_DataComboFile[[#This Row],[G&S reporting level indicator]]","v":0},{"$f":"T_DataComboFile[[#This Row],[2021/22 Baseline_Source]]*T_DataComboFile[[#This Row],[G&S reporting level indicator]]","v":0},{"$f":"T_DataComboFile[[#This Row],[2022/23 Baseline_Source]]*T_DataComboFile[[#This Row],[G&S reporting level indicator]]","v":0},{"$f":"T_DataComboFile[[#This Row],[2023/24 Baseline_Source]]*T_DataComboFile[[#This Row],[G&S reporting level indicator]]","v":0},null,null,null,null,null,null,{"$f":"T_DataComboFile[[#This Row],[2021/22 Baseline]]+T_DataComboFile[[#This Row],[2021/22 Reduction]]+T_DataComboFile[[#This Row],[2021/22 Increase]]","v":0},{"$f":"T_DataComboFile[[#This Row],[2022/23 Baseline]]+T_DataComboFile[[#This Row],[2022/23 Reduction]]+T_DataComboFile[[#This Row],[2022/23 Increase]]","v":0},{"$f":"T_DataComboFile[[#This Row],[2023/24 Baseline]]+T_DataComboFile[[#This Row],[2023/24 Reduction]]+T_DataComboFile[[#This Row],[2023/24 Increase]]","v":0}]
[null,null,"2021_22","ENE2020",36,1,1,null,70132,36,1,1,null,"070132","36|01|01",2,2,8,50,54,"02|02|08|50|54","National","Small Business Development","Administration","Ministry",null,"Capital","Transfers and subsidies","Public corporations and private enterprises","Private enterprises","Other transfers to private enterprises",null,null,null,0,0,0,0,0,0,0,0,0,0,0,0,0,0,null,{"$f":"IF(T_DataComboFile[[#This Row],[G&S reporting level indicator]]=1,$AX$16,\"Not applicable\")","v":"Level 3"},{"$f":"IF(AND($AX$16=\"Level 3\",T_DataComboFile[[#This Row],[Econ3]] = \"Goods and services\"),IF(T_DataComboFile[[#This Row],[Econ4]] = T_DataComboFile[[#This Row],[Econ3]],1,0),IF(AND($AX$16=\"Level 4\",T_DataComboFile[[#This Row],[Econ4]] = \"Goods and services\"),0,1))","v":1},{"$f":"T_DataComboFile[[#This Row],[2016/17_Source]]*T_DataComboFile[[#This Row],[G&S reporting level indicator]]","v":0},{"$f":"T_DataComboFile[[#This Row],[2017/18_Source]]*T_DataComboFile[[#This Row],[G&S reporting level indicator]]","v":0},{"$f":"T_DataComboFile[[#This Row],[2018/19_Source]]*T_DataComboFile[[#This Row],[G&S reporting level indicator]]","v":0},{"$f":"T_DataComboFile[[#This Row],[2019/20 Main appropriation_Source]]*T_DataComboFile[[#This Row],[G&S reporting level indicator]]","v":0},{"$f":"T_DataComboFile[[#This Row],[2019/20 Adjusted appropriation_Source]]*T_DataComboFile[[#This Row],[G&S reporting level indicator]]","v":0},{"$f":"T_DataComboFile[[#This Row],[2019/20 Revised estimate_Source]]*T_DataComboFile[[#This Row],[G&S reporting level indicator]]","v":0},{"$f":"T_DataComboFile[[#This Row],[2019/20 Preliminary outcome_Source]]*T_DataComboFile[[#This Row],[G&S reporting level indicator]]","v":0},{"$f":"T_DataComboFile[[#This Row],[2020/21 Original_Source]]*T_DataComboFile[[#This Row],[G&S reporting level indicator]]","v":0},{"$f":"T_DataComboFile[[#This Row],[2020/21 SAB_Source]]*T_DataComboFile[[#This Row],[G&S reporting level indicator]]","v":0},{"$f":"T_DataComboFile[[#This Row],[2020/21 Baseline_Source]]*T_DataComboFile[[#This Row],[G&S reporting level indicator]]","v":0},{"$f":"T_DataComboFile[[#This Row],[2021/22 Baseline_Source]]*T_DataComboFile[[#This Row],[G&S reporting level indicator]]","v":0},{"$f":"T_DataComboFile[[#This Row],[2022/23 Baseline_Source]]*T_DataComboFile[[#This Row],[G&S reporting level indicator]]","v":0},{"$f":"T_DataComboFile[[#This Row],[2023/24 Baseline_Source]]*T_DataComboFile[[#This Row],[G&S reporting level indicator]]","v":0},null,null,null,null,null,null,{"$f":"T_DataComboFile[[#This Row],[2021/22 Baseline]]+T_DataComboFile[[#This Row],[2021/22 Reduction]]+T_DataComboFile[[#This Row],[2021/22 Increase]]","v":0},{"$f":"T_DataComboFile[[#This Row],[2022/23 Baseline]]+T_DataComboFile[[#This Row],[2022/23 Reduction]]+T_DataComboFile[[#This Row],[2022/23 Increase]]","v":0},{"$f":"T_DataComboFile[[#This Row],[2023/24 Baseline]]+T_DataComboFile[[#This Row],[2023/24 Reduction]]+T_DataComboFile[[#This Row],[2023/24 Increase]]","v":0}]
[null,null,"2021_22","ENE2020",36,1,1,null,70133,36,1,1,null,"070133","36|01|01",2,2,9,51,55,"02|02|09|51|55","National","Small Business Development","Administration","Ministry",null,"Capital","Transfers and subsidies","Non-profit institutions","Non-profit institutions","Non-profit institutions",null,null,null,0,0,0,0,0,0,0,0,0,0,0,0,0,0,null,{"$f":"IF(T_DataComboFile[[#This Row],[G&S reporting level indicator]]=1,$AX$16,\"Not applicable\")","v":"Level 3"},{"$f":"IF(AND($AX$16=\"Level 3\",T_DataComboFile[[#This Row],[Econ3]] = \"Goods and services\"),IF(T_DataComboFile[[#This Row],[Econ4]] = T_DataComboFile[[#This Row],[Econ3]],1,0),IF(AND($AX$16=\"Level 4\",T_DataComboFile[[#This Row],[Econ4]] = \"Goods and services\"),0,1))","v":1},{"$f":"T_DataComboFile[[#This Row],[2016/17_Source]]*T_DataComboFile[[#This Row],[G&S reporting level indicator]]","v":0},{"$f":"T_DataComboFile[[#This Row],[2017/18_Source]]*T_DataComboFile[[#This Row],[G&S reporting level indicator]]","v":0},{"$f":"T_DataComboFile[[#This Row],[2018/19_Source]]*T_DataComboFile[[#This Row],[G&S reporting level indicator]]","v":0},{"$f":"T_DataComboFile[[#This Row],[2019/20 Main appropriation_Source]]*T_DataComboFile[[#This Row],[G&S reporting level indicator]]","v":0},{"$f":"T_DataComboFile[[#This Row],[2019/20 Adjusted appropriation_Source]]*T_DataComboFile[[#This Row],[G&S reporting level indicator]]","v":0},{"$f":"T_DataComboFile[[#This Row],[2019/20 Revised estimate_Source]]*T_DataComboFile[[#This Row],[G&S reporting level indicator]]","v":0},{"$f":"T_DataComboFile[[#This Row],[2019/20 Preliminary outcome_Source]]*T_DataComboFile[[#This Row],[G&S reporting level indicator]]","v":0},{"$f":"T_DataComboFile[[#This Row],[2020/21 Original_Source]]*T_DataComboFile[[#This Row],[G&S reporting level indicator]]","v":0},{"$f":"T_DataComboFile[[#This Row],[2020/21 SAB_Source]]*T_DataComboFile[[#This Row],[G&S reporting level indicator]]","v":0},{"$f":"T_DataComboFile[[#This Row],[2020/21 Baseline_Source]]*T_DataComboFile[[#This Row],[G&S reporting level indicator]]","v":0},{"$f":"T_DataComboFile[[#This Row],[2021/22 Baseline_Source]]*T_DataComboFile[[#This Row],[G&S reporting level indicator]]","v":0},{"$f":"T_DataComboFile[[#This Row],[2022/23 Baseline_Source]]*T_DataComboFile[[#This Row],[G&S reporting level indicator]]","v":0},{"$f":"T_DataComboFile[[#This Row],[2023/24 Baseline_Source]]*T_DataComboFile[[#This Row],[G&S reporting level indicator]]","v":0},null,null,null,null,null,null,{"$f":"T_DataComboFile[[#This Row],[2021/22 Baseline]]+T_DataComboFile[[#This Row],[2021/22 Reduction]]+T_DataComboFile[[#This Row],[2021/22 Increase]]","v":0},{"$f":"T_DataComboFile[[#This Row],[2022/23 Baseline]]+T_DataComboFile[[#This Row],[2022/23 Reduction]]+T_DataComboFile[[#This Row],[2022/23 Increase]]","v":0},{"$f":"T_DataComboFile[[#This Row],[2023/24 Baseline]]+T_DataComboFile[[#This Row],[2023/24 Reduction]]+T_DataComboFile[[#This Row],[2023/24 Increase]]","v":0}]
[null,null,"2021_22","ENE2020",36,1,1,null,70134,36,1,1,null,"070134","36|01|01",2,2,10,53,57,"02|02|10|53|57","National","Small Business Development","Administration","Ministry",null,"Capital","Transfers and subsidies","Households","Other transfers to households","Other transfers to households",null,null,null,0,0,0,0,0,0,0,0,0,0,0,0,0,0,null,{"$f":"IF(T_DataComboFile[[#This Row],[G&S reporting level indicator]]=1,$AX$16,\"Not applicable\")","v":"Level 3"},{"$f":"IF(AND($AX$16=\"Level 3\",T_DataComboFile[[#This Row],[Econ3]] = \"Goods and services\"),IF(T_DataComboFile[[#This Row],[Econ4]] = T_DataComboFile[[#This Row],[Econ3]],1,0),IF(AND($AX$16=\"Level 4\",T_DataComboFile[[#This Row],[Econ4]] = \"Goods and services\"),0,1))","v":1},{"$f":"T_DataComboFile[[#This Row],[2016/17_Source]]*T_DataComboFile[[#This Row],[G&S reporting level indicator]]","v":0},{"$f":"T_DataComboFile[[#This Row],[2017/18_Source]]*T_DataComboFile[[#This Row],[G&S reporting level indicator]]","v":0},{"$f":"T_DataComboFile[[#This Row],[2018/19_Source]]*T_DataComboFile[[#This Row],[G&S reporting level indicator]]","v":0},{"$f":"T_DataComboFile[[#This Row],[2019/20 Main appropriation_Source]]*T_DataComboFile[[#This Row],[G&S reporting level indicator]]","v":0},{"$f":"T_DataComboFile[[#This Row],[2019/20 Adjusted appropriation_Source]]*T_DataComboFile[[#This Row],[G&S reporting level indicator]]","v":0},{"$f":"T_DataComboFile[[#This Row],[2019/20 Revised estimate_Source]]*T_DataComboFile[[#This Row],[G&S reporting level indicator]]","v":0},{"$f":"T_DataComboFile[[#This Row],[2019/20 Preliminary outcome_Source]]*T_DataComboFile[[#This Row],[G&S reporting level indicator]]","v":0},{"$f":"T_DataComboFile[[#This Row],[2020/21 Original_Source]]*T_DataComboFile[[#This Row],[G&S reporting level indicator]]","v":0},{"$f":"T_DataComboFile[[#This Row],[2020/21 SAB_Source]]*T_DataComboFile[[#This Row],[G&S reporting level indicator]]","v":0},{"$f":"T_DataComboFile[[#This Row],[2020/21 Baseline_Source]]*T_DataComboFile[[#This Row],[G&S reporting level indicator]]","v":0},{"$f":"T_DataComboFile[[#This Row],[2021/22 Baseline_Source]]*T_DataComboFile[[#This Row],[G&S reporting level indicator]]","v":0},{"$f":"T_DataComboFile[[#This Row],[2022/23 Baseline_Source]]*T_DataComboFile[[#This Row],[G&S reporting level indicator]]","v":0},{"$f":"T_DataComboFile[[#This Row],[2023/24 Baseline_Source]]*T_DataComboFile[[#This Row],[G&S reporting level indicator]]","v":0},null,null,null,null,null,null,{"$f":"T_DataComboFile[[#This Row],[2021/22 Baseline]]+T_DataComboFile[[#This Row],[2021/22 Reduction]]+T_DataComboFile[[#This Row],[2021/22 Increase]]","v":0},{"$f":"T_DataComboFile[[#This Row],[2022/23 Baseline]]+T_DataComboFile[[#This Row],[2022/23 Reduction]]+T_DataComboFile[[#This Row],[2022/23 Increase]]","v":0},{"$f":"T_DataComboFile[[#This Row],[2023/24 Baseline]]+T_DataComboFile[[#This Row],[2023/24 Reduction]]+T_DataComboFile[[#This Row],[2023/24 Increase]]","v":0}]
[null,null,"2021_22","ENE2020",36,1,1,null,70135,36,1,1,null,"070135","36|01|01",2,3,11,54,58,"02|03|11|54|58","National","Small Business Development","Administration","Ministry",null,"Capital","Payments for capital assets","Buildings and other fixed structures","Buildings","Buildings",null,null,null,0,0,0,0,0,0,0,0,0,0,0,0,0,0,null,{"$f":"IF(T_DataComboFile[[#This Row],[G&S reporting level indicator]]=1,$AX$16,\"Not applicable\")","v":"Level 3"},{"$f":"IF(AND($AX$16=\"Level 3\",T_DataComboFile[[#This Row],[Econ3]] = \"Goods and services\"),IF(T_DataComboFile[[#This Row],[Econ4]] = T_DataComboFile[[#This Row],[Econ3]],1,0),IF(AND($AX$16=\"Level 4\",T_DataComboFile[[#This Row],[Econ4]] = \"Goods and services\"),0,1))","v":1},{"$f":"T_DataComboFile[[#This Row],[2016/17_Source]]*T_DataComboFile[[#This Row],[G&S reporting level indicator]]","v":0},{"$f":"T_DataComboFile[[#This Row],[2017/18_Source]]*T_DataComboFile[[#This Row],[G&S reporting level indicator]]","v":0},{"$f":"T_DataComboFile[[#This Row],[2018/19_Source]]*T_DataComboFile[[#This Row],[G&S reporting level indicator]]","v":0},{"$f":"T_DataComboFile[[#This Row],[2019/20 Main appropriation_Source]]*T_DataComboFile[[#This Row],[G&S reporting level indicator]]","v":0},{"$f":"T_DataComboFile[[#This Row],[2019/20 Adjusted appropriation_Source]]*T_DataComboFile[[#This Row],[G&S reporting level indicator]]","v":0},{"$f":"T_DataComboFile[[#This Row],[2019/20 Revised estimate_Source]]*T_DataComboFile[[#This Row],[G&S reporting level indicator]]","v":0},{"$f":"T_DataComboFile[[#This Row],[2019/20 Preliminary outcome_Source]]*T_DataComboFile[[#This Row],[G&S reporting level indicator]]","v":0},{"$f":"T_DataComboFile[[#This Row],[2020/21 Original_Source]]*T_DataComboFile[[#This Row],[G&S reporting level indicator]]","v":0},{"$f":"T_DataComboFile[[#This Row],[2020/21 SAB_Source]]*T_DataComboFile[[#This Row],[G&S reporting level indicator]]","v":0},{"$f":"T_DataComboFile[[#This Row],[2020/21 Baseline_Source]]*T_DataComboFile[[#This Row],[G&S reporting level indicator]]","v":0},{"$f":"T_DataComboFile[[#This Row],[2021/22 Baseline_Source]]*T_DataComboFile[[#This Row],[G&S reporting level indicator]]","v":0},{"$f":"T_DataComboFile[[#This Row],[2022/23 Baseline_Source]]*T_DataComboFile[[#This Row],[G&S reporting level indicator]]","v":0},{"$f":"T_DataComboFile[[#This Row],[2023/24 Baseline_Source]]*T_DataComboFile[[#This Row],[G&S reporting level indicator]]","v":0},null,null,null,null,null,null,{"$f":"T_DataComboFile[[#This Row],[2021/22 Baseline]]+T_DataComboFile[[#This Row],[2021/22 Reduction]]+T_DataComboFile[[#This Row],[2021/22 Increase]]","v":0},{"$f":"T_DataComboFile[[#This Row],[2022/23 Baseline]]+T_DataComboFile[[#This Row],[2022/23 Reduction]]+T_DataComboFile[[#This Row],[2022/23 Increase]]","v":0},{"$f":"T_DataComboFile[[#This Row],[2023/24 Baseline]]+T_DataComboFile[[#This Row],[2023/24 Reduction]]+T_DataComboFile[[#This Row],[2023/24 Increase]]","v":0}]
[null,null,"2021_22","ENE2020",36,1,1,null,70136,36,1,1,null,"070136","36|01|01",2,3,11,55,59,"02|03|11|55|59","National","Small Business Development","Administration","Ministry",null,"Capital","Payments for capital assets","Buildings and other fixed structures","Other fixed structures","Other fixed structures",null,null,null,0,0,0,0,0,0,0,0,0,0,0,0,0,0,null,{"$f":"IF(T_DataComboFile[[#This Row],[G&S reporting level indicator]]=1,$AX$16,\"Not applicable\")","v":"Level 3"},{"$f":"IF(AND($AX$16=\"Level 3\",T_DataComboFile[[#This Row],[Econ3]] = \"Goods and services\"),IF(T_DataComboFile[[#This Row],[Econ4]] = T_DataComboFile[[#This Row],[Econ3]],1,0),IF(AND($AX$16=\"Level 4\",T_DataComboFile[[#This Row],[Econ4]] = \"Goods and services\"),0,1))","v":1},{"$f":"T_DataComboFile[[#This Row],[2016/17_Source]]*T_DataComboFile[[#This Row],[G&S reporting level indicator]]","v":0},{"$f":"T_DataComboFile[[#This Row],[2017/18_Source]]*T_DataComboFile[[#This Row],[G&S reporting level indicator]]","v":0},{"$f":"T_DataComboFile[[#This Row],[2018/19_Source]]*T_DataComboFile[[#This Row],[G&S reporting level indicator]]","v":0},{"$f":"T_DataComboFile[[#This Row],[2019/20 Main appropriation_Source]]*T_DataComboFile[[#This Row],[G&S reporting level indicator]]","v":0},{"$f":"T_DataComboFile[[#This Row],[2019/20 Adjusted appropriation_Source]]*T_DataComboFile[[#This Row],[G&S reporting level indicator]]","v":0},{"$f":"T_DataComboFile[[#This Row],[2019/20 Revised estimate_Source]]*T_DataComboFile[[#This Row],[G&S reporting level indicator]]","v":0},{"$f":"T_DataComboFile[[#This Row],[2019/20 Preliminary outcome_Source]]*T_DataComboFile[[#This Row],[G&S reporting level indicator]]","v":0},{"$f":"T_DataComboFile[[#This Row],[2020/21 Original_Source]]*T_DataComboFile[[#This Row],[G&S reporting level indicator]]","v":0},{"$f":"T_DataComboFile[[#This Row],[2020/21 SAB_Source]]*T_DataComboFile[[#This Row],[G&S reporting level indicator]]","v":0},{"$f":"T_DataComboFile[[#This Row],[2020/21 Baseline_Source]]*T_DataComboFile[[#This Row],[G&S reporting level indicator]]","v":0},{"$f":"T_DataComboFile[[#This Row],[2021/22 Baseline_Source]]*T_DataComboFile[[#This Row],[G&S reporting level indicator]]","v":0},{"$f":"T_DataComboFile[[#This Row],[2022/23 Baseline_Source]]*T_DataComboFile[[#This Row],[G&S reporting level indicator]]","v":0},{"$f":"T_DataComboFile[[#This Row],[2023/24 Baseline_Source]]*T_DataComboFile[[#This Row],[G&S reporting level indicator]]","v":0},null,null,null,null,null,null,{"$f":"T_DataComboFile[[#This Row],[2021/22 Baseline]]+T_DataComboFile[[#This Row],[2021/22 Reduction]]+T_DataComboFile[[#This Row],[2021/22 Increase]]","v":0},{"$f":"T_DataComboFile[[#This Row],[2022/23 Baseline]]+T_DataComboFile[[#This Row],[2022/23 Reduction]]+T_DataComboFile[[#This Row],[2022/23 Increase]]","v":0},{"$f":"T_DataComboFile[[#This Row],[2023/24 Baseline]]+T_DataComboFile[[#This Row],[2023/24 Reduction]]+T_DataComboFile[[#This Row],[2023/24 Increase]]","v":0}]
["NAT|Non-transfer item","36|Transport equipment","2021_22","ENE2020",36,1,1,17192,70137,36,1,1,17192,"070137","36|01|01",2,3,12,56,60,"02|03|12|56|60","National","Small Business Development","Administration","Ministry","Non-transfer item","Capital","Payments for capital assets","Machinery and equipment","Transport equipment","Transport equipment","Economic development","Industrialisation and exports","NAT",0,1819,0,0,800,800,800,0,0,0,0,0,0,1,null,{"$f":"IF(T_DataComboFile[[#This Row],[G&S reporting level indicator]]=1,$AX$16,\"Not applicable\")","v":"Level 3"},{"$f":"IF(AND($AX$16=\"Level 3\",T_DataComboFile[[#This Row],[Econ3]] = \"Goods and services\"),IF(T_DataComboFile[[#This Row],[Econ4]] = T_DataComboFile[[#This Row],[Econ3]],1,0),IF(AND($AX$16=\"Level 4\",T_DataComboFile[[#This Row],[Econ4]] = \"Goods and services\"),0,1))","v":1},{"$f":"T_DataComboFile[[#This Row],[2016/17_Source]]*T_DataComboFile[[#This Row],[G&S reporting level indicator]]","v":0},{"$f":"T_DataComboFile[[#This Row],[2017/18_Source]]*T_DataComboFile[[#This Row],[G&S reporting level indicator]]","v":1819},{"$f":"T_DataComboFile[[#This Row],[2018/19_Source]]*T_DataComboFile[[#This Row],[G&S reporting level indicator]]","v":0},{"$f":"T_DataComboFile[[#This Row],[2019/20 Main appropriation_Source]]*T_DataComboFile[[#This Row],[G&S reporting level indicator]]","v":0},{"$f":"T_DataComboFile[[#This Row],[2019/20 Adjusted appropriation_Source]]*T_DataComboFile[[#This Row],[G&S reporting level indicator]]","v":800},{"$f":"T_DataComboFile[[#This Row],[2019/20 Revised estimate_Source]]*T_DataComboFile[[#This Row],[G&S reporting level indicator]]","v":800},{"$f":"T_DataComboFile[[#This Row],[2019/20 Preliminary outcome_Source]]*T_DataComboFile[[#This Row],[G&S reporting level indicator]]","v":800},{"$f":"T_DataComboFile[[#This Row],[2020/21 Original_Source]]*T_DataComboFile[[#This Row],[G&S reporting level indicator]]","v":0},{"$f":"T_DataComboFile[[#This Row],[2020/21 SAB_Source]]*T_DataComboFile[[#This Row],[G&S reporting level indicator]]","v":0},{"$f":"T_DataComboFile[[#This Row],[2020/21 Baseline_Source]]*T_DataComboFile[[#This Row],[G&S reporting level indicator]]","v":0},{"$f":"T_DataComboFile[[#This Row],[2021/22 Baseline_Source]]*T_DataComboFile[[#This Row],[G&S reporting level indicator]]","v":0},{"$f":"T_DataComboFile[[#This Row],[2022/23 Baseline_Source]]*T_DataComboFile[[#This Row],[G&S reporting level indicator]]","v":0},{"$f":"T_DataComboFile[[#This Row],[2023/24 Baseline_Source]]*T_DataComboFile[[#This Row],[G&S reporting level indicator]]","v":0},null,null,null,null,null,null,{"$f":"T_DataComboFile[[#This Row],[2021/22 Baseline]]+T_DataComboFile[[#This Row],[2021/22 Reduction]]+T_DataComboFile[[#This Row],[2021/22 Increase]]","v":0},{"$f":"T_DataComboFile[[#This Row],[2022/23 Baseline]]+T_DataComboFile[[#This Row],[2022/23 Reduction]]+T_DataComboFile[[#This Row],[2022/23 Increase]]","v":0},{"$f":"T_DataComboFile[[#This Row],[2023/24 Baseline]]+T_DataComboFile[[#This Row],[2023/24 Reduction]]+T_DataComboFile[[#This Row],[2023/24 Increase]]","v":0}]
["NAT|Non-transfer item","36|Other machinery and equipment","2021_22","ENE2020",36,1,1,17193,70138,36,1,1,17193,"070138","36|01|01",2,3,12,57,61,"02|03|12|57|61","National","Small Business Development","Administration","Ministry","Non-transfer item","Capital","Payments for capital assets","Machinery and equipment","Other machinery and equipment","Other machinery and equipment","Economic development","Industrialisation and exports","NAT",151,229,312,132,262,262,262,412,412,412,468,504,526,1,null,{"$f":"IF(T_DataComboFile[[#This Row],[G&S reporting level indicator]]=1,$AX$16,\"Not applicable\")","v":"Level 3"},{"$f":"IF(AND($AX$16=\"Level 3\",T_DataComboFile[[#This Row],[Econ3]] = \"Goods and services\"),IF(T_DataComboFile[[#This Row],[Econ4]] = T_DataComboFile[[#This Row],[Econ3]],1,0),IF(AND($AX$16=\"Level 4\",T_DataComboFile[[#This Row],[Econ4]] = \"Goods and services\"),0,1))","v":1},{"$f":"T_DataComboFile[[#This Row],[2016/17_Source]]*T_DataComboFile[[#This Row],[G&S reporting level indicator]]","v":151},{"$f":"T_DataComboFile[[#This Row],[2017/18_Source]]*T_DataComboFile[[#This Row],[G&S reporting level indicator]]","v":229},{"$f":"T_DataComboFile[[#This Row],[2018/19_Source]]*T_DataComboFile[[#This Row],[G&S reporting level indicator]]","v":312},{"$f":"T_DataComboFile[[#This Row],[2019/20 Main appropriation_Source]]*T_DataComboFile[[#This Row],[G&S reporting level indicator]]","v":132},{"$f":"T_DataComboFile[[#This Row],[2019/20 Adjusted appropriation_Source]]*T_DataComboFile[[#This Row],[G&S reporting level indicator]]","v":262},{"$f":"T_DataComboFile[[#This Row],[2019/20 Revised estimate_Source]]*T_DataComboFile[[#This Row],[G&S reporting level indicator]]","v":262},{"$f":"T_DataComboFile[[#This Row],[2019/20 Preliminary outcome_Source]]*T_DataComboFile[[#This Row],[G&S reporting level indicator]]","v":262},{"$f":"T_DataComboFile[[#This Row],[2020/21 Original_Source]]*T_DataComboFile[[#This Row],[G&S reporting level indicator]]","v":412},{"$f":"T_DataComboFile[[#This Row],[2020/21 SAB_Source]]*T_DataComboFile[[#This Row],[G&S reporting level indicator]]","v":412},{"$f":"T_DataComboFile[[#This Row],[2020/21 Baseline_Source]]*T_DataComboFile[[#This Row],[G&S reporting level indicator]]","v":412},{"$f":"T_DataComboFile[[#This Row],[2021/22 Baseline_Source]]*T_DataComboFile[[#This Row],[G&S reporting level indicator]]","v":468},{"$f":"T_DataComboFile[[#This Row],[2022/23 Baseline_Source]]*T_DataComboFile[[#This Row],[G&S reporting level indicator]]","v":504},{"$f":"T_DataComboFile[[#This Row],[2023/24 Baseline_Source]]*T_DataComboFile[[#This Row],[G&S reporting level indicator]]","v":526},null,null,null,null,null,null,{"$f":"T_DataComboFile[[#This Row],[2021/22 Baseline]]+T_DataComboFile[[#This Row],[2021/22 Reduction]]+T_DataComboFile[[#This Row],[2021/22 Increase]]","v":468},{"$f":"T_DataComboFile[[#This Row],[2022/23 Baseline]]+T_DataComboFile[[#This Row],[2022/23 Reduction]]+T_DataComboFile[[#This Row],[2022/23 Increase]]","v":504},{"$f":"T_DataComboFile[[#This Row],[2023/24 Baseline]]+T_DataComboFile[[#This Row],[2023/24 Reduction]]+T_DataComboFile[[#This Row],[2023/24 Increase]]","v":526}]
[null,null,"2021_22","ENE2020",36,1,1,null,70139,36,1,1,null,"070139","36|01|01",2,3,13,58,62,"02|03|13|58|62","National","Small Business Development","Administration","Ministry",null,"Capital","Payments for capital assets","Heritage assets","Heritage assets","Heritage assets",null,null,null,0,0,0,0,0,0,0,0,0,0,0,0,0,0,null,{"$f":"IF(T_DataComboFile[[#This Row],[G&S reporting level indicator]]=1,$AX$16,\"Not applicable\")","v":"Level 3"},{"$f":"IF(AND($AX$16=\"Level 3\",T_DataComboFile[[#This Row],[Econ3]] = \"Goods and services\"),IF(T_DataComboFile[[#This Row],[Econ4]] = T_DataComboFile[[#This Row],[Econ3]],1,0),IF(AND($AX$16=\"Level 4\",T_DataComboFile[[#This Row],[Econ4]] = \"Goods and services\"),0,1))","v":1},{"$f":"T_DataComboFile[[#This Row],[2016/17_Source]]*T_DataComboFile[[#This Row],[G&S reporting level indicator]]","v":0},{"$f":"T_DataComboFile[[#This Row],[2017/18_Source]]*T_DataComboFile[[#This Row],[G&S reporting level indicator]]","v":0},{"$f":"T_DataComboFile[[#This Row],[2018/19_Source]]*T_DataComboFile[[#This Row],[G&S reporting level indicator]]","v":0},{"$f":"T_DataComboFile[[#This Row],[2019/20 Main appropriation_Source]]*T_DataComboFile[[#This Row],[G&S reporting level indicator]]","v":0},{"$f":"T_DataComboFile[[#This Row],[2019/20 Adjusted appropriation_Source]]*T_DataComboFile[[#This Row],[G&S reporting level indicator]]","v":0},{"$f":"T_DataComboFile[[#This Row],[2019/20 Revised estimate_Source]]*T_DataComboFile[[#This Row],[G&S reporting level indicator]]","v":0},{"$f":"T_DataComboFile[[#This Row],[2019/20 Preliminary outcome_Source]]*T_DataComboFile[[#This Row],[G&S reporting level indicator]]","v":0},{"$f":"T_DataComboFile[[#This Row],[2020/21 Original_Source]]*T_DataComboFile[[#This Row],[G&S reporting level indicator]]","v":0},{"$f":"T_DataComboFile[[#This Row],[2020/21 SAB_Source]]*T_DataComboFile[[#This Row],[G&S reporting level indicator]]","v":0},{"$f":"T_DataComboFile[[#This Row],[2020/21 Baseline_Source]]*T_DataComboFile[[#This Row],[G&S reporting level indicator]]","v":0},{"$f":"T_DataComboFile[[#This Row],[2021/22 Baseline_Source]]*T_DataComboFile[[#This Row],[G&S reporting level indicator]]","v":0},{"$f":"T_DataComboFile[[#This Row],[2022/23 Baseline_Source]]*T_DataComboFile[[#This Row],[G&S reporting level indicator]]","v":0},{"$f":"T_DataComboFile[[#This Row],[2023/24 Baseline_Source]]*T_DataComboFile[[#This Row],[G&S reporting level indicator]]","v":0},null,null,null,null,null,null,{"$f":"T_DataComboFile[[#This Row],[2021/22 Baseline]]+T_DataComboFile[[#This Row],[2021/22 Reduction]]+T_DataComboFile[[#This Row],[2021/22 Increase]]","v":0},{"$f":"T_DataComboFile[[#This Row],[2022/23 Baseline]]+T_DataComboFile[[#This Row],[2022/23 Reduction]]+T_DataComboFile[[#This Row],[2022/23 Increase]]","v":0},{"$f":"T_DataComboFile[[#This Row],[2023/24 Baseline]]+T_DataComboFile[[#This Row],[2023/24 Reduction]]+T_DataComboFile[[#This Row],[2023/24 Increase]]","v":0}]
[null,null,"2021_22","ENE2020",36,1,1,null,70140,36,1,1,null,"070140","36|01|01",2,3,14,59,63,"02|03|14|59|63","National","Small Business Development","Administration","Ministry",null,"Capital","Payments for capital assets","Specialised military assets","Specialised military assets","Specialised military assets",null,null,null,0,0,0,0,0,0,0,0,0,0,0,0,0,0,null,{"$f":"IF(T_DataComboFile[[#This Row],[G&S reporting level indicator]]=1,$AX$16,\"Not applicable\")","v":"Level 3"},{"$f":"IF(AND($AX$16=\"Level 3\",T_DataComboFile[[#This Row],[Econ3]] = \"Goods and services\"),IF(T_DataComboFile[[#This Row],[Econ4]] = T_DataComboFile[[#This Row],[Econ3]],1,0),IF(AND($AX$16=\"Level 4\",T_DataComboFile[[#This Row],[Econ4]] = \"Goods and services\"),0,1))","v":1},{"$f":"T_DataComboFile[[#This Row],[2016/17_Source]]*T_DataComboFile[[#This Row],[G&S reporting level indicator]]","v":0},{"$f":"T_DataComboFile[[#This Row],[2017/18_Source]]*T_DataComboFile[[#This Row],[G&S reporting level indicator]]","v":0},{"$f":"T_DataComboFile[[#This Row],[2018/19_Source]]*T_DataComboFile[[#This Row],[G&S reporting level indicator]]","v":0},{"$f":"T_DataComboFile[[#This Row],[2019/20 Main appropriation_Source]]*T_DataComboFile[[#This Row],[G&S reporting level indicator]]","v":0},{"$f":"T_DataComboFile[[#This Row],[2019/20 Adjusted appropriation_Source]]*T_DataComboFile[[#This Row],[G&S reporting level indicator]]","v":0},{"$f":"T_DataComboFile[[#This Row],[2019/20 Revised estimate_Source]]*T_DataComboFile[[#This Row],[G&S reporting level indicator]]","v":0},{"$f":"T_DataComboFile[[#This Row],[2019/20 Preliminary outcome_Source]]*T_DataComboFile[[#This Row],[G&S reporting level indicator]]","v":0},{"$f":"T_DataComboFile[[#This Row],[2020/21 Original_Source]]*T_DataComboFile[[#This Row],[G&S reporting level indicator]]","v":0},{"$f":"T_DataComboFile[[#This Row],[2020/21 SAB_Source]]*T_DataComboFile[[#This Row],[G&S reporting level indicator]]","v":0},{"$f":"T_DataComboFile[[#This Row],[2020/21 Baseline_Source]]*T_DataComboFile[[#This Row],[G&S reporting level indicator]]","v":0},{"$f":"T_DataComboFile[[#This Row],[2021/22 Baseline_Source]]*T_DataComboFile[[#This Row],[G&S reporting level indicator]]","v":0},{"$f":"T_DataComboFile[[#This Row],[2022/23 Baseline_Source]]*T_DataComboFile[[#This Row],[G&S reporting level indicator]]","v":0},{"$f":"T_DataComboFile[[#This Row],[2023/24 Baseline_Source]]*T_DataComboFile[[#This Row],[G&S reporting level indicator]]","v":0},null,null,null,null,null,null,{"$f":"T_DataComboFile[[#This Row],[2021/22 Baseline]]+T_DataComboFile[[#This Row],[2021/22 Reduction]]+T_DataComboFile[[#This Row],[2021/22 Increase]]","v":0},{"$f":"T_DataComboFile[[#This Row],[2022/23 Baseline]]+T_DataComboFile[[#This Row],[2022/23 Reduction]]+T_DataComboFile[[#This Row],[2022/23 Increase]]","v":0},{"$f":"T_DataComboFile[[#This Row],[2023/24 Baseline]]+T_DataComboFile[[#This Row],[2023/24 Reduction]]+T_DataComboFile[[#This Row],[2023/24 Increase]]","v":0}]
[null,null,"2021_22","ENE2020",36,1,1,null,70141,36,1,1,null,"070141","36|01|01",2,3,15,60,64,"02|03|15|60|64","National","Small Business Development","Administration","Ministry",null,"Capital","Payments for capital assets","Biological assets","Biological assets","Biological assets",null,null,null,0,0,0,0,0,0,0,0,0,0,0,0,0,0,null,{"$f":"IF(T_DataComboFile[[#This Row],[G&S reporting level indicator]]=1,$AX$16,\"Not applicable\")","v":"Level 3"},{"$f":"IF(AND($AX$16=\"Level 3\",T_DataComboFile[[#This Row],[Econ3]] = \"Goods and services\"),IF(T_DataComboFile[[#This Row],[Econ4]] = T_DataComboFile[[#This Row],[Econ3]],1,0),IF(AND($AX$16=\"Level 4\",T_DataComboFile[[#This Row],[Econ4]] = \"Goods and services\"),0,1))","v":1},{"$f":"T_DataComboFile[[#This Row],[2016/17_Source]]*T_DataComboFile[[#This Row],[G&S reporting level indicator]]","v":0},{"$f":"T_DataComboFile[[#This Row],[2017/18_Source]]*T_DataComboFile[[#This Row],[G&S reporting level indicator]]","v":0},{"$f":"T_DataComboFile[[#This Row],[2018/19_Source]]*T_DataComboFile[[#This Row],[G&S reporting level indicator]]","v":0},{"$f":"T_DataComboFile[[#This Row],[2019/20 Main appropriation_Source]]*T_DataComboFile[[#This Row],[G&S reporting level indicator]]","v":0},{"$f":"T_DataComboFile[[#This Row],[2019/20 Adjusted appropriation_Source]]*T_DataComboFile[[#This Row],[G&S reporting level indicator]]","v":0},{"$f":"T_DataComboFile[[#This Row],[2019/20 Revised estimate_Source]]*T_DataComboFile[[#This Row],[G&S reporting level indicator]]","v":0},{"$f":"T_DataComboFile[[#This Row],[2019/20 Preliminary outcome_Source]]*T_DataComboFile[[#This Row],[G&S reporting level indicator]]","v":0},{"$f":"T_DataComboFile[[#This Row],[2020/21 Original_Source]]*T_DataComboFile[[#This Row],[G&S reporting level indicator]]","v":0},{"$f":"T_DataComboFile[[#This Row],[2020/21 SAB_Source]]*T_DataComboFile[[#This Row],[G&S reporting level indicator]]","v":0},{"$f":"T_DataComboFile[[#This Row],[2020/21 Baseline_Source]]*T_DataComboFile[[#This Row],[G&S reporting level indicator]]","v":0},{"$f":"T_DataComboFile[[#This Row],[2021/22 Baseline_Source]]*T_DataComboFile[[#This Row],[G&S reporting level indicator]]","v":0},{"$f":"T_DataComboFile[[#This Row],[2022/23 Baseline_Source]]*T_DataComboFile[[#This Row],[G&S reporting level indicator]]","v":0},{"$f":"T_DataComboFile[[#This Row],[2023/24 Baseline_Source]]*T_DataComboFile[[#This Row],[G&S reporting level indicator]]","v":0},null,null,null,null,null,null,{"$f":"T_DataComboFile[[#This Row],[2021/22 Baseline]]+T_DataComboFile[[#This Row],[2021/22 Reduction]]+T_DataComboFile[[#This Row],[2021/22 Increase]]","v":0},{"$f":"T_DataComboFile[[#This Row],[2022/23 Baseline]]+T_DataComboFile[[#This Row],[2022/23 Reduction]]+T_DataComboFile[[#This Row],[2022/23 Increase]]","v":0},{"$f":"T_DataComboFile[[#This Row],[2023/24 Baseline]]+T_DataComboFile[[#This Row],[2023/24 Reduction]]+T_DataComboFile[[#This Row],[2023/24 Increase]]","v":0}]
[null,null,"2021_22","ENE2020",36,1,1,null,70142,36,1,1,null,"070142","36|01|01",2,3,16,61,65,"02|03|16|61|65","National","Small Business Development","Administration","Ministry",null,"Capital","Payments for capital assets","Land and sub-soil assets","Land and sub-soil assets","Land and sub-soil assets",null,null,null,0,0,0,0,0,0,0,0,0,0,0,0,0,0,null,{"$f":"IF(T_DataComboFile[[#This Row],[G&S reporting level indicator]]=1,$AX$16,\"Not applicable\")","v":"Level 3"},{"$f":"IF(AND($AX$16=\"Level 3\",T_DataComboFile[[#This Row],[Econ3]] = \"Goods and services\"),IF(T_DataComboFile[[#This Row],[Econ4]] = T_DataComboFile[[#This Row],[Econ3]],1,0),IF(AND($AX$16=\"Level 4\",T_DataComboFile[[#This Row],[Econ4]] = \"Goods and services\"),0,1))","v":1},{"$f":"T_DataComboFile[[#This Row],[2016/17_Source]]*T_DataComboFile[[#This Row],[G&S reporting level indicator]]","v":0},{"$f":"T_DataComboFile[[#This Row],[2017/18_Source]]*T_DataComboFile[[#This Row],[G&S reporting level indicator]]","v":0},{"$f":"T_DataComboFile[[#This Row],[2018/19_Source]]*T_DataComboFile[[#This Row],[G&S reporting level indicator]]","v":0},{"$f":"T_DataComboFile[[#This Row],[2019/20 Main appropriation_Source]]*T_DataComboFile[[#This Row],[G&S reporting level indicator]]","v":0},{"$f":"T_DataComboFile[[#This Row],[2019/20 Adjusted appropriation_Source]]*T_DataComboFile[[#This Row],[G&S reporting level indicator]]","v":0},{"$f":"T_DataComboFile[[#This Row],[2019/20 Revised estimate_Source]]*T_DataComboFile[[#This Row],[G&S reporting level indicator]]","v":0},{"$f":"T_DataComboFile[[#This Row],[2019/20 Preliminary outcome_Source]]*T_DataComboFile[[#This Row],[G&S reporting level indicator]]","v":0},{"$f":"T_DataComboFile[[#This Row],[2020/21 Original_Source]]*T_DataComboFile[[#This Row],[G&S reporting level indicator]]","v":0},{"$f":"T_DataComboFile[[#This Row],[2020/21 SAB_Source]]*T_DataComboFile[[#This Row],[G&S reporting level indicator]]","v":0},{"$f":"T_DataComboFile[[#This Row],[2020/21 Baseline_Source]]*T_DataComboFile[[#This Row],[G&S reporting level indicator]]","v":0},{"$f":"T_DataComboFile[[#This Row],[2021/22 Baseline_Source]]*T_DataComboFile[[#This Row],[G&S reporting level indicator]]","v":0},{"$f":"T_DataComboFile[[#This Row],[2022/23 Baseline_Source]]*T_DataComboFile[[#This Row],[G&S reporting level indicator]]","v":0},{"$f":"T_DataComboFile[[#This Row],[2023/24 Baseline_Source]]*T_DataComboFile[[#This Row],[G&S reporting level indicator]]","v":0},null,null,null,null,null,null,{"$f":"T_DataComboFile[[#This Row],[2021/22 Baseline]]+T_DataComboFile[[#This Row],[2021/22 Reduction]]+T_DataComboFile[[#This Row],[2021/22 Increase]]","v":0},{"$f":"T_DataComboFile[[#This Row],[2022/23 Baseline]]+T_DataComboFile[[#This Row],[2022/23 Reduction]]+T_DataComboFile[[#This Row],[2022/23 Increase]]","v":0},{"$f":"T_DataComboFile[[#This Row],[2023/24 Baseline]]+T_DataComboFile[[#This Row],[2023/24 Reduction]]+T_DataComboFile[[#This Row],[2023/24 Increase]]","v":0}]
[null,null,"2021_22","ENE2020",36,1,1,null,70143,36,1,1,null,"070143","36|01|01",2,3,17,62,66,"02|03|17|62|66","National","Small Business Development","Administration","Ministry",null,"Capital","Payments for capital assets","Software and other intangible assets","Software and other intangible assets","Software and other intangible assets",null,null,null,0,0,0,0,0,0,0,0,0,0,0,0,0,0,null,{"$f":"IF(T_DataComboFile[[#This Row],[G&S reporting level indicator]]=1,$AX$16,\"Not applicable\")","v":"Level 3"},{"$f":"IF(AND($AX$16=\"Level 3\",T_DataComboFile[[#This Row],[Econ3]] = \"Goods and services\"),IF(T_DataComboFile[[#This Row],[Econ4]] = T_DataComboFile[[#This Row],[Econ3]],1,0),IF(AND($AX$16=\"Level 4\",T_DataComboFile[[#This Row],[Econ4]] = \"Goods and services\"),0,1))","v":1},{"$f":"T_DataComboFile[[#This Row],[2016/17_Source]]*T_DataComboFile[[#This Row],[G&S reporting level indicator]]","v":0},{"$f":"T_DataComboFile[[#This Row],[2017/18_Source]]*T_DataComboFile[[#This Row],[G&S reporting level indicator]]","v":0},{"$f":"T_DataComboFile[[#This Row],[2018/19_Source]]*T_DataComboFile[[#This Row],[G&S reporting level indicator]]","v":0},{"$f":"T_DataComboFile[[#This Row],[2019/20 Main appropriation_Source]]*T_DataComboFile[[#This Row],[G&S reporting level indicator]]","v":0},{"$f":"T_DataComboFile[[#This Row],[2019/20 Adjusted appropriation_Source]]*T_DataComboFile[[#This Row],[G&S reporting level indicator]]","v":0},{"$f":"T_DataComboFile[[#This Row],[2019/20 Revised estimate_Source]]*T_DataComboFile[[#This Row],[G&S reporting level indicator]]","v":0},{"$f":"T_DataComboFile[[#This Row],[2019/20 Preliminary outcome_Source]]*T_DataComboFile[[#This Row],[G&S reporting level indicator]]","v":0},{"$f":"T_DataComboFile[[#This Row],[2020/21 Original_Source]]*T_DataComboFile[[#This Row],[G&S reporting level indicator]]","v":0},{"$f":"T_DataComboFile[[#This Row],[2020/21 SAB_Source]]*T_DataComboFile[[#This Row],[G&S reporting level indicator]]","v":0},{"$f":"T_DataComboFile[[#This Row],[2020/21 Baseline_Source]]*T_DataComboFile[[#This Row],[G&S reporting level indicator]]","v":0},{"$f":"T_DataComboFile[[#This Row],[2021/22 Baseline_Source]]*T_DataComboFile[[#This Row],[G&S reporting level indicator]]","v":0},{"$f":"T_DataComboFile[[#This Row],[2022/23 Baseline_Source]]*T_DataComboFile[[#This Row],[G&S reporting level indicator]]","v":0},{"$f":"T_DataComboFile[[#This Row],[2023/24 Baseline_Source]]*T_DataComboFile[[#This Row],[G&S reporting level indicator]]","v":0},null,null,null,null,null,null,{"$f":"T_DataComboFile[[#This Row],[2021/22 Baseline]]+T_DataComboFile[[#This Row],[2021/22 Reduction]]+T_DataComboFile[[#This Row],[2021/22 Increase]]","v":0},{"$f":"T_DataComboFile[[#This Row],[2022/23 Baseline]]+T_DataComboFile[[#This Row],[2022/23 Reduction]]+T_DataComboFile[[#This Row],[2022/23 Increase]]","v":0},{"$f":"T_DataComboFile[[#This Row],[2023/24 Baseline]]+T_DataComboFile[[#This Row],[2023/24 Reduction]]+T_DataComboFile[[#This Row],[2023/24 Increase]]","v":0}]
[null,null,"2021_22","ENE2020",36,1,1,null,70144,36,1,1,null,"070144","36|01|01",3,4,18,63,67,"03|04|18|63|67","National","Small Business Development","Administration","Ministry",null,"Payments for financial assets","Payments for financial assets","Payments for financial assets","Payments for financial assets","Payments for financial assets",null,null,null,0,0,0,0,0,0,0,0,0,0,0,0,0,0,null,{"$f":"IF(T_DataComboFile[[#This Row],[G&S reporting level indicator]]=1,$AX$16,\"Not applicable\")","v":"Level 3"},{"$f":"IF(AND($AX$16=\"Level 3\",T_DataComboFile[[#This Row],[Econ3]] = \"Goods and services\"),IF(T_DataComboFile[[#This Row],[Econ4]] = T_DataComboFile[[#This Row],[Econ3]],1,0),IF(AND($AX$16=\"Level 4\",T_DataComboFile[[#This Row],[Econ4]] = \"Goods and services\"),0,1))","v":1},{"$f":"T_DataComboFile[[#This Row],[2016/17_Source]]*T_DataComboFile[[#This Row],[G&S reporting level indicator]]","v":0},{"$f":"T_DataComboFile[[#This Row],[2017/18_Source]]*T_DataComboFile[[#This Row],[G&S reporting level indicator]]","v":0},{"$f":"T_DataComboFile[[#This Row],[2018/19_Source]]*T_DataComboFile[[#This Row],[G&S reporting level indicator]]","v":0},{"$f":"T_DataComboFile[[#This Row],[2019/20 Main appropriation_Source]]*T_DataComboFile[[#This Row],[G&S reporting level indicator]]","v":0},{"$f":"T_DataComboFile[[#This Row],[2019/20 Adjusted appropriation_Source]]*T_DataComboFile[[#This Row],[G&S reporting level indicator]]","v":0},{"$f":"T_DataComboFile[[#This Row],[2019/20 Revised estimate_Source]]*T_DataComboFile[[#This Row],[G&S reporting level indicator]]","v":0},{"$f":"T_DataComboFile[[#This Row],[2019/20 Preliminary outcome_Source]]*T_DataComboFile[[#This Row],[G&S reporting level indicator]]","v":0},{"$f":"T_DataComboFile[[#This Row],[2020/21 Original_Source]]*T_DataComboFile[[#This Row],[G&S reporting level indicator]]","v":0},{"$f":"T_DataComboFile[[#This Row],[2020/21 SAB_Source]]*T_DataComboFile[[#This Row],[G&S reporting level indicator]]","v":0},{"$f":"T_DataComboFile[[#This Row],[2020/21 Baseline_Source]]*T_DataComboFile[[#This Row],[G&S reporting level indicator]]","v":0},{"$f":"T_DataComboFile[[#This Row],[2021/22 Baseline_Source]]*T_DataComboFile[[#This Row],[G&S reporting level indicator]]","v":0},{"$f":"T_DataComboFile[[#This Row],[2022/23 Baseline_Source]]*T_DataComboFile[[#This Row],[G&S reporting level indicator]]","v":0},{"$f":"T_DataComboFile[[#This Row],[2023/24 Baseline_Source]]*T_DataComboFile[[#This Row],[G&S reporting level indicator]]","v":0},null,null,null,null,null,null,{"$f":"T_DataComboFile[[#This Row],[2021/22 Baseline]]+T_DataComboFile[[#This Row],[2021/22 Reduction]]+T_DataComboFile[[#This Row],[2021/22 Increase]]","v":0},{"$f":"T_DataComboFile[[#This Row],[2022/23 Baseline]]+T_DataComboFile[[#This Row],[2022/23 Reduction]]+T_DataComboFile[[#This Row],[2022/23 Increase]]","v":0},{"$f":"T_DataComboFile[[#This Row],[2023/24 Baseline]]+T_DataComboFile[[#This Row],[2023/24 Reduction]]+T_DataComboFile[[#This Row],[2023/24 Increase]]","v":0}]
["NAT|Non-transfer item","36|Salaries and wages","2021_22","ENE2020",36,1,2,17194,70145,36,1,2,17194,"070145","36|01|02",1,1,1,1,1,"01|01|01|01|01","National","Small Business Development","Administration","Departmental Management","Non-transfer item","Current","Current payments","Compensation of employees","Salaries and wages","Salaries and wages","Economic development","Industrialisation and exports","NAT",9393,11016,10860,10236,11516,11516,11516,11100,11100,10471,10752,11125,11615,1,null,{"$f":"IF(T_DataComboFile[[#This Row],[G&S reporting level indicator]]=1,$AX$16,\"Not applicable\")","v":"Level 3"},{"$f":"IF(AND($AX$16=\"Level 3\",T_DataComboFile[[#This Row],[Econ3]] = \"Goods and services\"),IF(T_DataComboFile[[#This Row],[Econ4]] = T_DataComboFile[[#This Row],[Econ3]],1,0),IF(AND($AX$16=\"Level 4\",T_DataComboFile[[#This Row],[Econ4]] = \"Goods and services\"),0,1))","v":1},{"$f":"T_DataComboFile[[#This Row],[2016/17_Source]]*T_DataComboFile[[#This Row],[G&S reporting level indicator]]","v":9393},{"$f":"T_DataComboFile[[#This Row],[2017/18_Source]]*T_DataComboFile[[#This Row],[G&S reporting level indicator]]","v":11016},{"$f":"T_DataComboFile[[#This Row],[2018/19_Source]]*T_DataComboFile[[#This Row],[G&S reporting level indicator]]","v":10860},{"$f":"T_DataComboFile[[#This Row],[2019/20 Main appropriation_Source]]*T_DataComboFile[[#This Row],[G&S reporting level indicator]]","v":10236},{"$f":"T_DataComboFile[[#This Row],[2019/20 Adjusted appropriation_Source]]*T_DataComboFile[[#This Row],[G&S reporting level indicator]]","v":11516},{"$f":"T_DataComboFile[[#This Row],[2019/20 Revised estimate_Source]]*T_DataComboFile[[#This Row],[G&S reporting level indicator]]","v":11516},{"$f":"T_DataComboFile[[#This Row],[2019/20 Preliminary outcome_Source]]*T_DataComboFile[[#This Row],[G&S reporting level indicator]]","v":11516},{"$f":"T_DataComboFile[[#This Row],[2020/21 Original_Source]]*T_DataComboFile[[#This Row],[G&S reporting level indicator]]","v":11100},{"$f":"T_DataComboFile[[#This Row],[2020/21 SAB_Source]]*T_DataComboFile[[#This Row],[G&S reporting level indicator]]","v":11100},{"$f":"T_DataComboFile[[#This Row],[2020/21 Baseline_Source]]*T_DataComboFile[[#This Row],[G&S reporting level indicator]]","v":10471},{"$f":"T_DataComboFile[[#This Row],[2021/22 Baseline_Source]]*T_DataComboFile[[#This Row],[G&S reporting level indicator]]","v":10752},{"$f":"T_DataComboFile[[#This Row],[2022/23 Baseline_Source]]*T_DataComboFile[[#This Row],[G&S reporting level indicator]]","v":11125},{"$f":"T_DataComboFile[[#This Row],[2023/24 Baseline_Source]]*T_DataComboFile[[#This Row],[G&S reporting level indicator]]","v":11615},null,null,null,null,null,null,{"$f":"T_DataComboFile[[#This Row],[2021/22 Baseline]]+T_DataComboFile[[#This Row],[2021/22 Reduction]]+T_DataComboFile[[#This Row],[2021/22 Increase]]","v":10752},{"$f":"T_DataComboFile[[#This Row],[2022/23 Baseline]]+T_DataComboFile[[#This Row],[2022/23 Reduction]]+T_DataComboFile[[#This Row],[2022/23 Increase]]","v":11125},{"$f":"T_DataComboFile[[#This Row],[2023/24 Baseline]]+T_DataComboFile[[#This Row],[2023/24 Reduction]]+T_DataComboFile[[#This Row],[2023/24 Increase]]","v":11615}]
["NAT|Non-transfer item","36|Social contributions","2021_22","ENE2020",36,1,2,17195,70146,36,1,2,17195,"070146","36|01|02",1,1,1,2,2,"01|01|01|02|02","National","Small Business Development","Administration","Departmental Management","Non-transfer item","Current","Current payments","Compensation of employees","Social contributions","Social contributions","Economic development","Industrialisation and exports","NAT",915,1138,1205,2667,1387,1387,1387,2688,2688,2536,2603,2694,2813,1,null,{"$f":"IF(T_DataComboFile[[#This Row],[G&S reporting level indicator]]=1,$AX$16,\"Not applicable\")","v":"Level 3"},{"$f":"IF(AND($AX$16=\"Level 3\",T_DataComboFile[[#This Row],[Econ3]] = \"Goods and services\"),IF(T_DataComboFile[[#This Row],[Econ4]] = T_DataComboFile[[#This Row],[Econ3]],1,0),IF(AND($AX$16=\"Level 4\",T_DataComboFile[[#This Row],[Econ4]] = \"Goods and services\"),0,1))","v":1},{"$f":"T_DataComboFile[[#This Row],[2016/17_Source]]*T_DataComboFile[[#This Row],[G&S reporting level indicator]]","v":915},{"$f":"T_DataComboFile[[#This Row],[2017/18_Source]]*T_DataComboFile[[#This Row],[G&S reporting level indicator]]","v":1138},{"$f":"T_DataComboFile[[#This Row],[2018/19_Source]]*T_DataComboFile[[#This Row],[G&S reporting level indicator]]","v":1205},{"$f":"T_DataComboFile[[#This Row],[2019/20 Main appropriation_Source]]*T_DataComboFile[[#This Row],[G&S reporting level indicator]]","v":2667},{"$f":"T_DataComboFile[[#This Row],[2019/20 Adjusted appropriation_Source]]*T_DataComboFile[[#This Row],[G&S reporting level indicator]]","v":1387},{"$f":"T_DataComboFile[[#This Row],[2019/20 Revised estimate_Source]]*T_DataComboFile[[#This Row],[G&S reporting level indicator]]","v":1387},{"$f":"T_DataComboFile[[#This Row],[2019/20 Preliminary outcome_Source]]*T_DataComboFile[[#This Row],[G&S reporting level indicator]]","v":1387},{"$f":"T_DataComboFile[[#This Row],[2020/21 Original_Source]]*T_DataComboFile[[#This Row],[G&S reporting level indicator]]","v":2688},{"$f":"T_DataComboFile[[#This Row],[2020/21 SAB_Source]]*T_DataComboFile[[#This Row],[G&S reporting level indicator]]","v":2688},{"$f":"T_DataComboFile[[#This Row],[2020/21 Baseline_Source]]*T_DataComboFile[[#This Row],[G&S reporting level indicator]]","v":2536},{"$f":"T_DataComboFile[[#This Row],[2021/22 Baseline_Source]]*T_DataComboFile[[#This Row],[G&S reporting level indicator]]","v":2603},{"$f":"T_DataComboFile[[#This Row],[2022/23 Baseline_Source]]*T_DataComboFile[[#This Row],[G&S reporting level indicator]]","v":2694},{"$f":"T_DataComboFile[[#This Row],[2023/24 Baseline_Source]]*T_DataComboFile[[#This Row],[G&S reporting level indicator]]","v":2813},null,null,null,null,null,null,{"$f":"T_DataComboFile[[#This Row],[2021/22 Baseline]]+T_DataComboFile[[#This Row],[2021/22 Reduction]]+T_DataComboFile[[#This Row],[2021/22 Increase]]","v":2603},{"$f":"T_DataComboFile[[#This Row],[2022/23 Baseline]]+T_DataComboFile[[#This Row],[2022/23 Reduction]]+T_DataComboFile[[#This Row],[2022/23 Increase]]","v":2694},{"$f":"T_DataComboFile[[#This Row],[2023/24 Baseline]]+T_DataComboFile[[#This Row],[2023/24 Reduction]]+T_DataComboFile[[#This Row],[2023/24 Increase]]","v":2813}]
[null,null,"2021_22","ENE2020",36,1,2,null,70147,36,1,2,null,"070147","36|01|02",1,1,2,2,2,"01|01|02|02|02","National","Small Business Development","Administration","Departmental Management","Non-transfer item","Current","Current payments","Goods and services","Goods and services","Goods and services","Economic development","Industrialisation and exports","NAT",4194,4655,4120,5516,5126,5126,5126,3928,3228,3928,4261,4605,4807,1,null,{"$f":"IF(T_DataComboFile[[#This Row],[G&S reporting level indicator]]=1,$AX$16,\"Not applicable\")","v":"Level 3"},{"$f":"IF(AND($AX$16=\"Level 3\",T_DataComboFile[[#This Row],[Econ3]] = \"Goods and services\"),IF(T_DataComboFile[[#This Row],[Econ4]] = T_DataComboFile[[#This Row],[Econ3]],1,0),IF(AND($AX$16=\"Level 4\",T_DataComboFile[[#This Row],[Econ4]] = \"Goods and services\"),0,1))","v":1},{"$f":"T_DataComboFile[[#This Row],[2016/17_Source]]*T_DataComboFile[[#This Row],[G&S reporting level indicator]]","v":4194},{"$f":"T_DataComboFile[[#This Row],[2017/18_Source]]*T_DataComboFile[[#This Row],[G&S reporting level indicator]]","v":4655},{"$f":"T_DataComboFile[[#This Row],[2018/19_Source]]*T_DataComboFile[[#This Row],[G&S reporting level indicator]]","v":4120},{"$f":"T_DataComboFile[[#This Row],[2019/20 Main appropriation_Source]]*T_DataComboFile[[#This Row],[G&S reporting level indicator]]","v":5516},{"$f":"T_DataComboFile[[#This Row],[2019/20 Adjusted appropriation_Source]]*T_DataComboFile[[#This Row],[G&S reporting level indicator]]","v":5126},{"$f":"T_DataComboFile[[#This Row],[2019/20 Revised estimate_Source]]*T_DataComboFile[[#This Row],[G&S reporting level indicator]]","v":5126},{"$f":"T_DataComboFile[[#This Row],[2019/20 Preliminary outcome_Source]]*T_DataComboFile[[#This Row],[G&S reporting level indicator]]","v":5126},{"$f":"T_DataComboFile[[#This Row],[2020/21 Original_Source]]*T_DataComboFile[[#This Row],[G&S reporting level indicator]]","v":3928},{"$f":"T_DataComboFile[[#This Row],[2020/21 SAB_Source]]*T_DataComboFile[[#This Row],[G&S reporting level indicator]]","v":3228},{"$f":"T_DataComboFile[[#This Row],[2020/21 Baseline_Source]]*T_DataComboFile[[#This Row],[G&S reporting level indicator]]","v":3928},{"$f":"T_DataComboFile[[#This Row],[2021/22 Baseline_Source]]*T_DataComboFile[[#This Row],[G&S reporting level indicator]]","v":4261},{"$f":"T_DataComboFile[[#This Row],[2022/23 Baseline_Source]]*T_DataComboFile[[#This Row],[G&S reporting level indicator]]","v":4605},{"$f":"T_DataComboFile[[#This Row],[2023/24 Baseline_Source]]*T_DataComboFile[[#This Row],[G&S reporting level indicator]]","v":4807},null,null,null,null,null,null,{"$f":"T_DataComboFile[[#This Row],[2021/22 Baseline]]+T_DataComboFile[[#This Row],[2021/22 Reduction]]+T_DataComboFile[[#This Row],[2021/22 Increase]]","v":4261},{"$f":"T_DataComboFile[[#This Row],[2022/23 Baseline]]+T_DataComboFile[[#This Row],[2022/23 Reduction]]+T_DataComboFile[[#This Row],[2022/23 Increase]]","v":4605},{"$f":"T_DataComboFile[[#This Row],[2023/24 Baseline]]+T_DataComboFile[[#This Row],[2023/24 Reduction]]+T_DataComboFile[[#This Row],[2023/24 Increase]]","v":4807}]
["NAT|Non-transfer item","36|Administrative fees","2021_22","ENE2020",36,1,2,17196,70148,36,1,2,17196,"070148","36|01|02",1,1,2,3,3,"01|01|02|03|03","National","Small Business Development","Administration","Departmental Management","Non-transfer item","Current","Current payments","Goods and services","Administrative fees","Administrative fees","Economic development","Industrialisation and exports","NAT",56,80,60,118,118,118,118,62,62,62,68,77,80,1,null,{"$f":"IF(T_DataComboFile[[#This Row],[G&S reporting level indicator]]=1,$AX$16,\"Not applicable\")","v":"Not applicable"},{"$f":"IF(AND($AX$16=\"Level 3\",T_DataComboFile[[#This Row],[Econ3]] = \"Goods and services\"),IF(T_DataComboFile[[#This Row],[Econ4]] = T_DataComboFile[[#This Row],[Econ3]],1,0),IF(AND($AX$16=\"Level 4\",T_DataComboFile[[#This Row],[Econ4]] = \"Goods and services\"),0,1))","v":0},{"$f":"T_DataComboFile[[#This Row],[2016/17_Source]]*T_DataComboFile[[#This Row],[G&S reporting level indicator]]","v":0},{"$f":"T_DataComboFile[[#This Row],[2017/18_Source]]*T_DataComboFile[[#This Row],[G&S reporting level indicator]]","v":0},{"$f":"T_DataComboFile[[#This Row],[2018/19_Source]]*T_DataComboFile[[#This Row],[G&S reporting level indicator]]","v":0},{"$f":"T_DataComboFile[[#This Row],[2019/20 Main appropriation_Source]]*T_DataComboFile[[#This Row],[G&S reporting level indicator]]","v":0},{"$f":"T_DataComboFile[[#This Row],[2019/20 Adjusted appropriation_Source]]*T_DataComboFile[[#This Row],[G&S reporting level indicator]]","v":0},{"$f":"T_DataComboFile[[#This Row],[2019/20 Revised estimate_Source]]*T_DataComboFile[[#This Row],[G&S reporting level indicator]]","v":0},{"$f":"T_DataComboFile[[#This Row],[2019/20 Preliminary outcome_Source]]*T_DataComboFile[[#This Row],[G&S reporting level indicator]]","v":0},{"$f":"T_DataComboFile[[#This Row],[2020/21 Original_Source]]*T_DataComboFile[[#This Row],[G&S reporting level indicator]]","v":0},{"$f":"T_DataComboFile[[#This Row],[2020/21 SAB_Source]]*T_DataComboFile[[#This Row],[G&S reporting level indicator]]","v":0},{"$f":"T_DataComboFile[[#This Row],[2020/21 Baseline_Source]]*T_DataComboFile[[#This Row],[G&S reporting level indicator]]","v":0},{"$f":"T_DataComboFile[[#This Row],[2021/22 Baseline_Source]]*T_DataComboFile[[#This Row],[G&S reporting level indicator]]","v":0},{"$f":"T_DataComboFile[[#This Row],[2022/23 Baseline_Source]]*T_DataComboFile[[#This Row],[G&S reporting level indicator]]","v":0},{"$f":"T_DataComboFile[[#This Row],[2023/24 Baseline_Source]]*T_DataComboFile[[#This Row],[G&S reporting level indicator]]","v":0},null,null,null,null,null,null,{"$f":"T_DataComboFile[[#This Row],[2021/22 Baseline]]+T_DataComboFile[[#This Row],[2021/22 Reduction]]+T_DataComboFile[[#This Row],[2021/22 Increase]]","v":0},{"$f":"T_DataComboFile[[#This Row],[2022/23 Baseline]]+T_DataComboFile[[#This Row],[2022/23 Reduction]]+T_DataComboFile[[#This Row],[2022/23 Increase]]","v":0},{"$f":"T_DataComboFile[[#This Row],[2023/24 Baseline]]+T_DataComboFile[[#This Row],[2023/24 Reduction]]+T_DataComboFile[[#This Row],[2023/24 Increase]]","v":0}]
["NAT|Non-transfer item","36|Advertising","2021_22","ENE2020",36,1,2,17197,70149,36,1,2,17197,"070149","36|01|02",1,1,2,4,4,"01|01|02|04|04","National","Small Business Development","Administration","Departmental Management","Non-transfer item","Current","Current payments","Goods and services","Advertising","Advertising","Economic development","Industrialisation and exports","NAT",0,0,92,0,0,0,0,0,0,0,0,0,0,1,null,{"$f":"IF(T_DataComboFile[[#This Row],[G&S reporting level indicator]]=1,$AX$16,\"Not applicable\")","v":"Not applicable"},{"$f":"IF(AND($AX$16=\"Level 3\",T_DataComboFile[[#This Row],[Econ3]] = \"Goods and services\"),IF(T_DataComboFile[[#This Row],[Econ4]] = T_DataComboFile[[#This Row],[Econ3]],1,0),IF(AND($AX$16=\"Level 4\",T_DataComboFile[[#This Row],[Econ4]] = \"Goods and services\"),0,1))","v":0},{"$f":"T_DataComboFile[[#This Row],[2016/17_Source]]*T_DataComboFile[[#This Row],[G&S reporting level indicator]]","v":0},{"$f":"T_DataComboFile[[#This Row],[2017/18_Source]]*T_DataComboFile[[#This Row],[G&S reporting level indicator]]","v":0},{"$f":"T_DataComboFile[[#This Row],[2018/19_Source]]*T_DataComboFile[[#This Row],[G&S reporting level indicator]]","v":0},{"$f":"T_DataComboFile[[#This Row],[2019/20 Main appropriation_Source]]*T_DataComboFile[[#This Row],[G&S reporting level indicator]]","v":0},{"$f":"T_DataComboFile[[#This Row],[2019/20 Adjusted appropriation_Source]]*T_DataComboFile[[#This Row],[G&S reporting level indicator]]","v":0},{"$f":"T_DataComboFile[[#This Row],[2019/20 Revised estimate_Source]]*T_DataComboFile[[#This Row],[G&S reporting level indicator]]","v":0},{"$f":"T_DataComboFile[[#This Row],[2019/20 Preliminary outcome_Source]]*T_DataComboFile[[#This Row],[G&S reporting level indicator]]","v":0},{"$f":"T_DataComboFile[[#This Row],[2020/21 Original_Source]]*T_DataComboFile[[#This Row],[G&S reporting level indicator]]","v":0},{"$f":"T_DataComboFile[[#This Row],[2020/21 SAB_Source]]*T_DataComboFile[[#This Row],[G&S reporting level indicator]]","v":0},{"$f":"T_DataComboFile[[#This Row],[2020/21 Baseline_Source]]*T_DataComboFile[[#This Row],[G&S reporting level indicator]]","v":0},{"$f":"T_DataComboFile[[#This Row],[2021/22 Baseline_Source]]*T_DataComboFile[[#This Row],[G&S reporting level indicator]]","v":0},{"$f":"T_DataComboFile[[#This Row],[2022/23 Baseline_Source]]*T_DataComboFile[[#This Row],[G&S reporting level indicator]]","v":0},{"$f":"T_DataComboFile[[#This Row],[2023/24 Baseline_Source]]*T_DataComboFile[[#This Row],[G&S reporting level indicator]]","v":0},null,null,null,null,null,null,{"$f":"T_DataComboFile[[#This Row],[2021/22 Baseline]]+T_DataComboFile[[#This Row],[2021/22 Reduction]]+T_DataComboFile[[#This Row],[2021/22 Increase]]","v":0},{"$f":"T_DataComboFile[[#This Row],[2022/23 Baseline]]+T_DataComboFile[[#This Row],[2022/23 Reduction]]+T_DataComboFile[[#This Row],[2022/23 Increase]]","v":0},{"$f":"T_DataComboFile[[#This Row],[2023/24 Baseline]]+T_DataComboFile[[#This Row],[2023/24 Reduction]]+T_DataComboFile[[#This Row],[2023/24 Increase]]","v":0}]
["NAT|Non-transfer item","36|Minor assets","2021_22","ENE2020",36,1,2,17198,70150,36,1,2,17198,"070150","36|01|02",1,1,2,5,5,"01|01|02|05|05","National","Small Business Development","Administration","Departmental Management","Non-transfer item","Current","Current payments","Goods and services","Minor assets","Minor assets","Economic development","Industrialisation and exports","NAT",17,7,6,0,0,0,0,0,0,0,0,0,0,1,null,{"$f":"IF(T_DataComboFile[[#This Row],[G&S reporting level indicator]]=1,$AX$16,\"Not applicable\")","v":"Not applicable"},{"$f":"IF(AND($AX$16=\"Level 3\",T_DataComboFile[[#This Row],[Econ3]] = \"Goods and services\"),IF(T_DataComboFile[[#This Row],[Econ4]] = T_DataComboFile[[#This Row],[Econ3]],1,0),IF(AND($AX$16=\"Level 4\",T_DataComboFile[[#This Row],[Econ4]] = \"Goods and services\"),0,1))","v":0},{"$f":"T_DataComboFile[[#This Row],[2016/17_Source]]*T_DataComboFile[[#This Row],[G&S reporting level indicator]]","v":0},{"$f":"T_DataComboFile[[#This Row],[2017/18_Source]]*T_DataComboFile[[#This Row],[G&S reporting level indicator]]","v":0},{"$f":"T_DataComboFile[[#This Row],[2018/19_Source]]*T_DataComboFile[[#This Row],[G&S reporting level indicator]]","v":0},{"$f":"T_DataComboFile[[#This Row],[2019/20 Main appropriation_Source]]*T_DataComboFile[[#This Row],[G&S reporting level indicator]]","v":0},{"$f":"T_DataComboFile[[#This Row],[2019/20 Adjusted appropriation_Source]]*T_DataComboFile[[#This Row],[G&S reporting level indicator]]","v":0},{"$f":"T_DataComboFile[[#This Row],[2019/20 Revised estimate_Source]]*T_DataComboFile[[#This Row],[G&S reporting level indicator]]","v":0},{"$f":"T_DataComboFile[[#This Row],[2019/20 Preliminary outcome_Source]]*T_DataComboFile[[#This Row],[G&S reporting level indicator]]","v":0},{"$f":"T_DataComboFile[[#This Row],[2020/21 Original_Source]]*T_DataComboFile[[#This Row],[G&S reporting level indicator]]","v":0},{"$f":"T_DataComboFile[[#This Row],[2020/21 SAB_Source]]*T_DataComboFile[[#This Row],[G&S reporting level indicator]]","v":0},{"$f":"T_DataComboFile[[#This Row],[2020/21 Baseline_Source]]*T_DataComboFile[[#This Row],[G&S reporting level indicator]]","v":0},{"$f":"T_DataComboFile[[#This Row],[2021/22 Baseline_Source]]*T_DataComboFile[[#This Row],[G&S reporting level indicator]]","v":0},{"$f":"T_DataComboFile[[#This Row],[2022/23 Baseline_Source]]*T_DataComboFile[[#This Row],[G&S reporting level indicator]]","v":0},{"$f":"T_DataComboFile[[#This Row],[2023/24 Baseline_Source]]*T_DataComboFile[[#This Row],[G&S reporting level indicator]]","v":0},null,null,null,null,null,null,{"$f":"T_DataComboFile[[#This Row],[2021/22 Baseline]]+T_DataComboFile[[#This Row],[2021/22 Reduction]]+T_DataComboFile[[#This Row],[2021/22 Increase]]","v":0},{"$f":"T_DataComboFile[[#This Row],[2022/23 Baseline]]+T_DataComboFile[[#This Row],[2022/23 Reduction]]+T_DataComboFile[[#This Row],[2022/23 Increase]]","v":0},{"$f":"T_DataComboFile[[#This Row],[2023/24 Baseline]]+T_DataComboFile[[#This Row],[2023/24 Reduction]]+T_DataComboFile[[#This Row],[2023/24 Increase]]","v":0}]
["NAT|Non-transfer item","36|Audit costs: External","2021_22","ENE2020",36,1,2,17199,70151,36,1,2,17199,"070151","36|01|02",1,1,2,6,6,"01|01|02|06|06","National","Small Business Development","Administration","Departmental Management","Non-transfer item","Current","Current payments","Goods and services","Audit costs: External","Audit costs: External","Economic development","Industrialisation and exports","NAT",0,0,1255,1400,1400,1400,1400,800,800,800,840,882,921,1,null,{"$f":"IF(T_DataComboFile[[#This Row],[G&S reporting level indicator]]=1,$AX$16,\"Not applicable\")","v":"Not applicable"},{"$f":"IF(AND($AX$16=\"Level 3\",T_DataComboFile[[#This Row],[Econ3]] = \"Goods and services\"),IF(T_DataComboFile[[#This Row],[Econ4]] = T_DataComboFile[[#This Row],[Econ3]],1,0),IF(AND($AX$16=\"Level 4\",T_DataComboFile[[#This Row],[Econ4]] = \"Goods and services\"),0,1))","v":0},{"$f":"T_DataComboFile[[#This Row],[2016/17_Source]]*T_DataComboFile[[#This Row],[G&S reporting level indicator]]","v":0},{"$f":"T_DataComboFile[[#This Row],[2017/18_Source]]*T_DataComboFile[[#This Row],[G&S reporting level indicator]]","v":0},{"$f":"T_DataComboFile[[#This Row],[2018/19_Source]]*T_DataComboFile[[#This Row],[G&S reporting level indicator]]","v":0},{"$f":"T_DataComboFile[[#This Row],[2019/20 Main appropriation_Source]]*T_DataComboFile[[#This Row],[G&S reporting level indicator]]","v":0},{"$f":"T_DataComboFile[[#This Row],[2019/20 Adjusted appropriation_Source]]*T_DataComboFile[[#This Row],[G&S reporting level indicator]]","v":0},{"$f":"T_DataComboFile[[#This Row],[2019/20 Revised estimate_Source]]*T_DataComboFile[[#This Row],[G&S reporting level indicator]]","v":0},{"$f":"T_DataComboFile[[#This Row],[2019/20 Preliminary outcome_Source]]*T_DataComboFile[[#This Row],[G&S reporting level indicator]]","v":0},{"$f":"T_DataComboFile[[#This Row],[2020/21 Original_Source]]*T_DataComboFile[[#This Row],[G&S reporting level indicator]]","v":0},{"$f":"T_DataComboFile[[#This Row],[2020/21 SAB_Source]]*T_DataComboFile[[#This Row],[G&S reporting level indicator]]","v":0},{"$f":"T_DataComboFile[[#This Row],[2020/21 Baseline_Source]]*T_DataComboFile[[#This Row],[G&S reporting level indicator]]","v":0},{"$f":"T_DataComboFile[[#This Row],[2021/22 Baseline_Source]]*T_DataComboFile[[#This Row],[G&S reporting level indicator]]","v":0},{"$f":"T_DataComboFile[[#This Row],[2022/23 Baseline_Source]]*T_DataComboFile[[#This Row],[G&S reporting level indicator]]","v":0},{"$f":"T_DataComboFile[[#This Row],[2023/24 Baseline_Source]]*T_DataComboFile[[#This Row],[G&S reporting level indicator]]","v":0},null,null,null,null,null,null,{"$f":"T_DataComboFile[[#This Row],[2021/22 Baseline]]+T_DataComboFile[[#This Row],[2021/22 Reduction]]+T_DataComboFile[[#This Row],[2021/22 Increase]]","v":0},{"$f":"T_DataComboFile[[#This Row],[2022/23 Baseline]]+T_DataComboFile[[#This Row],[2022/23 Reduction]]+T_DataComboFile[[#This Row],[2022/23 Increase]]","v":0},{"$f":"T_DataComboFile[[#This Row],[2023/24 Baseline]]+T_DataComboFile[[#This Row],[2023/24 Reduction]]+T_DataComboFile[[#This Row],[2023/24 Increase]]","v":0}]
[null,null,"2021_22","ENE2020",36,1,2,null,70152,36,1,2,null,"070152","36|01|02",1,1,2,7,7,"01|01|02|07|07","National","Small Business Development","Administration","Departmental Management",null,"Current","Current payments","Goods and services","Bursaries: Employees","Bursaries: Employees",null,null,null,0,0,0,0,0,0,0,0,0,0,0,0,0,0,null,{"$f":"IF(T_DataComboFile[[#This Row],[G&S reporting level indicator]]=1,$AX$16,\"Not applicable\")","v":"Not applicable"},{"$f":"IF(AND($AX$16=\"Level 3\",T_DataComboFile[[#This Row],[Econ3]] = \"Goods and services\"),IF(T_DataComboFile[[#This Row],[Econ4]] = T_DataComboFile[[#This Row],[Econ3]],1,0),IF(AND($AX$16=\"Level 4\",T_DataComboFile[[#This Row],[Econ4]] = \"Goods and services\"),0,1))","v":0},{"$f":"T_DataComboFile[[#This Row],[2016/17_Source]]*T_DataComboFile[[#This Row],[G&S reporting level indicator]]","v":0},{"$f":"T_DataComboFile[[#This Row],[2017/18_Source]]*T_DataComboFile[[#This Row],[G&S reporting level indicator]]","v":0},{"$f":"T_DataComboFile[[#This Row],[2018/19_Source]]*T_DataComboFile[[#This Row],[G&S reporting level indicator]]","v":0},{"$f":"T_DataComboFile[[#This Row],[2019/20 Main appropriation_Source]]*T_DataComboFile[[#This Row],[G&S reporting level indicator]]","v":0},{"$f":"T_DataComboFile[[#This Row],[2019/20 Adjusted appropriation_Source]]*T_DataComboFile[[#This Row],[G&S reporting level indicator]]","v":0},{"$f":"T_DataComboFile[[#This Row],[2019/20 Revised estimate_Source]]*T_DataComboFile[[#This Row],[G&S reporting level indicator]]","v":0},{"$f":"T_DataComboFile[[#This Row],[2019/20 Preliminary outcome_Source]]*T_DataComboFile[[#This Row],[G&S reporting level indicator]]","v":0},{"$f":"T_DataComboFile[[#This Row],[2020/21 Original_Source]]*T_DataComboFile[[#This Row],[G&S reporting level indicator]]","v":0},{"$f":"T_DataComboFile[[#This Row],[2020/21 SAB_Source]]*T_DataComboFile[[#This Row],[G&S reporting level indicator]]","v":0},{"$f":"T_DataComboFile[[#This Row],[2020/21 Baseline_Source]]*T_DataComboFile[[#This Row],[G&S reporting level indicator]]","v":0},{"$f":"T_DataComboFile[[#This Row],[2021/22 Baseline_Source]]*T_DataComboFile[[#This Row],[G&S reporting level indicator]]","v":0},{"$f":"T_DataComboFile[[#This Row],[2022/23 Baseline_Source]]*T_DataComboFile[[#This Row],[G&S reporting level indicator]]","v":0},{"$f":"T_DataComboFile[[#This Row],[2023/24 Baseline_Source]]*T_DataComboFile[[#This Row],[G&S reporting level indicator]]","v":0},null,null,null,null,null,null,{"$f":"T_DataComboFile[[#This Row],[2021/22 Baseline]]+T_DataComboFile[[#This Row],[2021/22 Reduction]]+T_DataComboFile[[#This Row],[2021/22 Increase]]","v":0},{"$f":"T_DataComboFile[[#This Row],[2022/23 Baseline]]+T_DataComboFile[[#This Row],[2022/23 Reduction]]+T_DataComboFile[[#This Row],[2022/23 Increase]]","v":0},{"$f":"T_DataComboFile[[#This Row],[2023/24 Baseline]]+T_DataComboFile[[#This Row],[2023/24 Reduction]]+T_DataComboFile[[#This Row],[2023/24 Increase]]","v":0}]
["NAT|Non-transfer item","36|Catering: Departmental activities","2021_22","ENE2020",36,1,2,17200,70153,36,1,2,17200,"070153","36|01|02",1,1,2,8,8,"01|01|02|08|08","National","Small Business Development","Administration","Departmental Management","Non-transfer item","Current","Current payments","Goods and services","Catering: Departmental activities","Catering: Departmental activities","Economic development","Industrialisation and exports","NAT",222,130,163,157,157,157,157,180,180,180,184,188,196,1,null,{"$f":"IF(T_DataComboFile[[#This Row],[G&S reporting level indicator]]=1,$AX$16,\"Not applicable\")","v":"Not applicable"},{"$f":"IF(AND($AX$16=\"Level 3\",T_DataComboFile[[#This Row],[Econ3]] = \"Goods and services\"),IF(T_DataComboFile[[#This Row],[Econ4]] = T_DataComboFile[[#This Row],[Econ3]],1,0),IF(AND($AX$16=\"Level 4\",T_DataComboFile[[#This Row],[Econ4]] = \"Goods and services\"),0,1))","v":0},{"$f":"T_DataComboFile[[#This Row],[2016/17_Source]]*T_DataComboFile[[#This Row],[G&S reporting level indicator]]","v":0},{"$f":"T_DataComboFile[[#This Row],[2017/18_Source]]*T_DataComboFile[[#This Row],[G&S reporting level indicator]]","v":0},{"$f":"T_DataComboFile[[#This Row],[2018/19_Source]]*T_DataComboFile[[#This Row],[G&S reporting level indicator]]","v":0},{"$f":"T_DataComboFile[[#This Row],[2019/20 Main appropriation_Source]]*T_DataComboFile[[#This Row],[G&S reporting level indicator]]","v":0},{"$f":"T_DataComboFile[[#This Row],[2019/20 Adjusted appropriation_Source]]*T_DataComboFile[[#This Row],[G&S reporting level indicator]]","v":0},{"$f":"T_DataComboFile[[#This Row],[2019/20 Revised estimate_Source]]*T_DataComboFile[[#This Row],[G&S reporting level indicator]]","v":0},{"$f":"T_DataComboFile[[#This Row],[2019/20 Preliminary outcome_Source]]*T_DataComboFile[[#This Row],[G&S reporting level indicator]]","v":0},{"$f":"T_DataComboFile[[#This Row],[2020/21 Original_Source]]*T_DataComboFile[[#This Row],[G&S reporting level indicator]]","v":0},{"$f":"T_DataComboFile[[#This Row],[2020/21 SAB_Source]]*T_DataComboFile[[#This Row],[G&S reporting level indicator]]","v":0},{"$f":"T_DataComboFile[[#This Row],[2020/21 Baseline_Source]]*T_DataComboFile[[#This Row],[G&S reporting level indicator]]","v":0},{"$f":"T_DataComboFile[[#This Row],[2021/22 Baseline_Source]]*T_DataComboFile[[#This Row],[G&S reporting level indicator]]","v":0},{"$f":"T_DataComboFile[[#This Row],[2022/23 Baseline_Source]]*T_DataComboFile[[#This Row],[G&S reporting level indicator]]","v":0},{"$f":"T_DataComboFile[[#This Row],[2023/24 Baseline_Source]]*T_DataComboFile[[#This Row],[G&S reporting level indicator]]","v":0},null,null,null,null,null,null,{"$f":"T_DataComboFile[[#This Row],[2021/22 Baseline]]+T_DataComboFile[[#This Row],[2021/22 Reduction]]+T_DataComboFile[[#This Row],[2021/22 Increase]]","v":0},{"$f":"T_DataComboFile[[#This Row],[2022/23 Baseline]]+T_DataComboFile[[#This Row],[2022/23 Reduction]]+T_DataComboFile[[#This Row],[2022/23 Increase]]","v":0},{"$f":"T_DataComboFile[[#This Row],[2023/24 Baseline]]+T_DataComboFile[[#This Row],[2023/24 Reduction]]+T_DataComboFile[[#This Row],[2023/24 Increase]]","v":0}]
["NAT|Non-transfer item","36|Communication (G&S)","2021_22","ENE2020",36,1,2,17201,70154,36,1,2,17201,"070154","36|01|02",1,1,2,9,9,"01|01|02|09|09","National","Small Business Development","Administration","Departmental Management","Non-transfer item","Current","Current payments","Goods and services","Communication (G&S)","Communication (G&S)","Economic development","Industrialisation and exports","NAT",161,62,101,68,68,68,68,110,110,110,115,121,126,1,null,{"$f":"IF(T_DataComboFile[[#This Row],[G&S reporting level indicator]]=1,$AX$16,\"Not applicable\")","v":"Not applicable"},{"$f":"IF(AND($AX$16=\"Level 3\",T_DataComboFile[[#This Row],[Econ3]] = \"Goods and services\"),IF(T_DataComboFile[[#This Row],[Econ4]] = T_DataComboFile[[#This Row],[Econ3]],1,0),IF(AND($AX$16=\"Level 4\",T_DataComboFile[[#This Row],[Econ4]] = \"Goods and services\"),0,1))","v":0},{"$f":"T_DataComboFile[[#This Row],[2016/17_Source]]*T_DataComboFile[[#This Row],[G&S reporting level indicator]]","v":0},{"$f":"T_DataComboFile[[#This Row],[2017/18_Source]]*T_DataComboFile[[#This Row],[G&S reporting level indicator]]","v":0},{"$f":"T_DataComboFile[[#This Row],[2018/19_Source]]*T_DataComboFile[[#This Row],[G&S reporting level indicator]]","v":0},{"$f":"T_DataComboFile[[#This Row],[2019/20 Main appropriation_Source]]*T_DataComboFile[[#This Row],[G&S reporting level indicator]]","v":0},{"$f":"T_DataComboFile[[#This Row],[2019/20 Adjusted appropriation_Source]]*T_DataComboFile[[#This Row],[G&S reporting level indicator]]","v":0},{"$f":"T_DataComboFile[[#This Row],[2019/20 Revised estimate_Source]]*T_DataComboFile[[#This Row],[G&S reporting level indicator]]","v":0},{"$f":"T_DataComboFile[[#This Row],[2019/20 Preliminary outcome_Source]]*T_DataComboFile[[#This Row],[G&S reporting level indicator]]","v":0},{"$f":"T_DataComboFile[[#This Row],[2020/21 Original_Source]]*T_DataComboFile[[#This Row],[G&S reporting level indicator]]","v":0},{"$f":"T_DataComboFile[[#This Row],[2020/21 SAB_Source]]*T_DataComboFile[[#This Row],[G&S reporting level indicator]]","v":0},{"$f":"T_DataComboFile[[#This Row],[2020/21 Baseline_Source]]*T_DataComboFile[[#This Row],[G&S reporting level indicator]]","v":0},{"$f":"T_DataComboFile[[#This Row],[2021/22 Baseline_Source]]*T_DataComboFile[[#This Row],[G&S reporting level indicator]]","v":0},{"$f":"T_DataComboFile[[#This Row],[2022/23 Baseline_Source]]*T_DataComboFile[[#This Row],[G&S reporting level indicator]]","v":0},{"$f":"T_DataComboFile[[#This Row],[2023/24 Baseline_Source]]*T_DataComboFile[[#This Row],[G&S reporting level indicator]]","v":0},null,null,null,null,null,null,{"$f":"T_DataComboFile[[#This Row],[2021/22 Baseline]]+T_DataComboFile[[#This Row],[2021/22 Reduction]]+T_DataComboFile[[#This Row],[2021/22 Increase]]","v":0},{"$f":"T_DataComboFile[[#This Row],[2022/23 Baseline]]+T_DataComboFile[[#This Row],[2022/23 Reduction]]+T_DataComboFile[[#This Row],[2022/23 Increase]]","v":0},{"$f":"T_DataComboFile[[#This Row],[2023/24 Baseline]]+T_DataComboFile[[#This Row],[2023/24 Reduction]]+T_DataComboFile[[#This Row],[2023/24 Increase]]","v":0}]
[null,null,"2021_22","ENE2020",36,1,2,null,70155,36,1,2,null,"070155","36|01|02",1,1,2,10,10,"01|01|02|10|10","National","Small Business Development","Administration","Departmental Management",null,"Current","Current payments","Goods and services","Computer services","Computer services",null,null,null,0,0,0,0,0,0,0,0,0,0,0,0,0,0,null,{"$f":"IF(T_DataComboFile[[#This Row],[G&S reporting level indicator]]=1,$AX$16,\"Not applicable\")","v":"Not applicable"},{"$f":"IF(AND($AX$16=\"Level 3\",T_DataComboFile[[#This Row],[Econ3]] = \"Goods and services\"),IF(T_DataComboFile[[#This Row],[Econ4]] = T_DataComboFile[[#This Row],[Econ3]],1,0),IF(AND($AX$16=\"Level 4\",T_DataComboFile[[#This Row],[Econ4]] = \"Goods and services\"),0,1))","v":0},{"$f":"T_DataComboFile[[#This Row],[2016/17_Source]]*T_DataComboFile[[#This Row],[G&S reporting level indicator]]","v":0},{"$f":"T_DataComboFile[[#This Row],[2017/18_Source]]*T_DataComboFile[[#This Row],[G&S reporting level indicator]]","v":0},{"$f":"T_DataComboFile[[#This Row],[2018/19_Source]]*T_DataComboFile[[#This Row],[G&S reporting level indicator]]","v":0},{"$f":"T_DataComboFile[[#This Row],[2019/20 Main appropriation_Source]]*T_DataComboFile[[#This Row],[G&S reporting level indicator]]","v":0},{"$f":"T_DataComboFile[[#This Row],[2019/20 Adjusted appropriation_Source]]*T_DataComboFile[[#This Row],[G&S reporting level indicator]]","v":0},{"$f":"T_DataComboFile[[#This Row],[2019/20 Revised estimate_Source]]*T_DataComboFile[[#This Row],[G&S reporting level indicator]]","v":0},{"$f":"T_DataComboFile[[#This Row],[2019/20 Preliminary outcome_Source]]*T_DataComboFile[[#This Row],[G&S reporting level indicator]]","v":0},{"$f":"T_DataComboFile[[#This Row],[2020/21 Original_Source]]*T_DataComboFile[[#This Row],[G&S reporting level indicator]]","v":0},{"$f":"T_DataComboFile[[#This Row],[2020/21 SAB_Source]]*T_DataComboFile[[#This Row],[G&S reporting level indicator]]","v":0},{"$f":"T_DataComboFile[[#This Row],[2020/21 Baseline_Source]]*T_DataComboFile[[#This Row],[G&S reporting level indicator]]","v":0},{"$f":"T_DataComboFile[[#This Row],[2021/22 Baseline_Source]]*T_DataComboFile[[#This Row],[G&S reporting level indicator]]","v":0},{"$f":"T_DataComboFile[[#This Row],[2022/23 Baseline_Source]]*T_DataComboFile[[#This Row],[G&S reporting level indicator]]","v":0},{"$f":"T_DataComboFile[[#This Row],[2023/24 Baseline_Source]]*T_DataComboFile[[#This Row],[G&S reporting level indicator]]","v":0},null,null,null,null,null,null,{"$f":"T_DataComboFile[[#This Row],[2021/22 Baseline]]+T_DataComboFile[[#This Row],[2021/22 Reduction]]+T_DataComboFile[[#This Row],[2021/22 Increase]]","v":0},{"$f":"T_DataComboFile[[#This Row],[2022/23 Baseline]]+T_DataComboFile[[#This Row],[2022/23 Reduction]]+T_DataComboFile[[#This Row],[2022/23 Increase]]","v":0},{"$f":"T_DataComboFile[[#This Row],[2023/24 Baseline]]+T_DataComboFile[[#This Row],[2023/24 Reduction]]+T_DataComboFile[[#This Row],[2023/24 Increase]]","v":0}]
["NAT|Non-transfer item","36|Consultants: Business and advisory services","2021_22","ENE2020",36,1,2,17202,70156,36,1,2,17202,"070156","36|01|02",1,1,2,11,11,"01|01|02|11|11","National","Small Business Development","Administration","Departmental Management","Non-transfer item","Current","Current payments","Goods and services","Consultants: Business and advisory services","Consultants: Business and advisory services","Economic development","Industrialisation and exports","NAT",902,1064,809,1164,854,854,854,850,850,850,890,932,973,1,null,{"$f":"IF(T_DataComboFile[[#This Row],[G&S reporting level indicator]]=1,$AX$16,\"Not applicable\")","v":"Not applicable"},{"$f":"IF(AND($AX$16=\"Level 3\",T_DataComboFile[[#This Row],[Econ3]] = \"Goods and services\"),IF(T_DataComboFile[[#This Row],[Econ4]] = T_DataComboFile[[#This Row],[Econ3]],1,0),IF(AND($AX$16=\"Level 4\",T_DataComboFile[[#This Row],[Econ4]] = \"Goods and services\"),0,1))","v":0},{"$f":"T_DataComboFile[[#This Row],[2016/17_Source]]*T_DataComboFile[[#This Row],[G&S reporting level indicator]]","v":0},{"$f":"T_DataComboFile[[#This Row],[2017/18_Source]]*T_DataComboFile[[#This Row],[G&S reporting level indicator]]","v":0},{"$f":"T_DataComboFile[[#This Row],[2018/19_Source]]*T_DataComboFile[[#This Row],[G&S reporting level indicator]]","v":0},{"$f":"T_DataComboFile[[#This Row],[2019/20 Main appropriation_Source]]*T_DataComboFile[[#This Row],[G&S reporting level indicator]]","v":0},{"$f":"T_DataComboFile[[#This Row],[2019/20 Adjusted appropriation_Source]]*T_DataComboFile[[#This Row],[G&S reporting level indicator]]","v":0},{"$f":"T_DataComboFile[[#This Row],[2019/20 Revised estimate_Source]]*T_DataComboFile[[#This Row],[G&S reporting level indicator]]","v":0},{"$f":"T_DataComboFile[[#This Row],[2019/20 Preliminary outcome_Source]]*T_DataComboFile[[#This Row],[G&S reporting level indicator]]","v":0},{"$f":"T_DataComboFile[[#This Row],[2020/21 Original_Source]]*T_DataComboFile[[#This Row],[G&S reporting level indicator]]","v":0},{"$f":"T_DataComboFile[[#This Row],[2020/21 SAB_Source]]*T_DataComboFile[[#This Row],[G&S reporting level indicator]]","v":0},{"$f":"T_DataComboFile[[#This Row],[2020/21 Baseline_Source]]*T_DataComboFile[[#This Row],[G&S reporting level indicator]]","v":0},{"$f":"T_DataComboFile[[#This Row],[2021/22 Baseline_Source]]*T_DataComboFile[[#This Row],[G&S reporting level indicator]]","v":0},{"$f":"T_DataComboFile[[#This Row],[2022/23 Baseline_Source]]*T_DataComboFile[[#This Row],[G&S reporting level indicator]]","v":0},{"$f":"T_DataComboFile[[#This Row],[2023/24 Baseline_Source]]*T_DataComboFile[[#This Row],[G&S reporting level indicator]]","v":0},null,null,null,null,null,null,{"$f":"T_DataComboFile[[#This Row],[2021/22 Baseline]]+T_DataComboFile[[#This Row],[2021/22 Reduction]]+T_DataComboFile[[#This Row],[2021/22 Increase]]","v":0},{"$f":"T_DataComboFile[[#This Row],[2022/23 Baseline]]+T_DataComboFile[[#This Row],[2022/23 Reduction]]+T_DataComboFile[[#This Row],[2022/23 Increase]]","v":0},{"$f":"T_DataComboFile[[#This Row],[2023/24 Baseline]]+T_DataComboFile[[#This Row],[2023/24 Reduction]]+T_DataComboFile[[#This Row],[2023/24 Increase]]","v":0}]
[null,null,"2021_22","ENE2020",36,1,2,null,70157,36,1,2,null,"070157","36|01|02",1,1,2,12,12,"01|01|02|12|12","National","Small Business Development","Administration","Departmental Management",null,"Current","Current payments","Goods and services","Infrastructure and planning services","Infrastructure and planning services",null,null,null,0,0,0,0,0,0,0,0,0,0,0,0,0,0,null,{"$f":"IF(T_DataComboFile[[#This Row],[G&S reporting level indicator]]=1,$AX$16,\"Not applicable\")","v":"Not applicable"},{"$f":"IF(AND($AX$16=\"Level 3\",T_DataComboFile[[#This Row],[Econ3]] = \"Goods and services\"),IF(T_DataComboFile[[#This Row],[Econ4]] = T_DataComboFile[[#This Row],[Econ3]],1,0),IF(AND($AX$16=\"Level 4\",T_DataComboFile[[#This Row],[Econ4]] = \"Goods and services\"),0,1))","v":0},{"$f":"T_DataComboFile[[#This Row],[2016/17_Source]]*T_DataComboFile[[#This Row],[G&S reporting level indicator]]","v":0},{"$f":"T_DataComboFile[[#This Row],[2017/18_Source]]*T_DataComboFile[[#This Row],[G&S reporting level indicator]]","v":0},{"$f":"T_DataComboFile[[#This Row],[2018/19_Source]]*T_DataComboFile[[#This Row],[G&S reporting level indicator]]","v":0},{"$f":"T_DataComboFile[[#This Row],[2019/20 Main appropriation_Source]]*T_DataComboFile[[#This Row],[G&S reporting level indicator]]","v":0},{"$f":"T_DataComboFile[[#This Row],[2019/20 Adjusted appropriation_Source]]*T_DataComboFile[[#This Row],[G&S reporting level indicator]]","v":0},{"$f":"T_DataComboFile[[#This Row],[2019/20 Revised estimate_Source]]*T_DataComboFile[[#This Row],[G&S reporting level indicator]]","v":0},{"$f":"T_DataComboFile[[#This Row],[2019/20 Preliminary outcome_Source]]*T_DataComboFile[[#This Row],[G&S reporting level indicator]]","v":0},{"$f":"T_DataComboFile[[#This Row],[2020/21 Original_Source]]*T_DataComboFile[[#This Row],[G&S reporting level indicator]]","v":0},{"$f":"T_DataComboFile[[#This Row],[2020/21 SAB_Source]]*T_DataComboFile[[#This Row],[G&S reporting level indicator]]","v":0},{"$f":"T_DataComboFile[[#This Row],[2020/21 Baseline_Source]]*T_DataComboFile[[#This Row],[G&S reporting level indicator]]","v":0},{"$f":"T_DataComboFile[[#This Row],[2021/22 Baseline_Source]]*T_DataComboFile[[#This Row],[G&S reporting level indicator]]","v":0},{"$f":"T_DataComboFile[[#This Row],[2022/23 Baseline_Source]]*T_DataComboFile[[#This Row],[G&S reporting level indicator]]","v":0},{"$f":"T_DataComboFile[[#This Row],[2023/24 Baseline_Source]]*T_DataComboFile[[#This Row],[G&S reporting level indicator]]","v":0},null,null,null,null,null,null,{"$f":"T_DataComboFile[[#This Row],[2021/22 Baseline]]+T_DataComboFile[[#This Row],[2021/22 Reduction]]+T_DataComboFile[[#This Row],[2021/22 Increase]]","v":0},{"$f":"T_DataComboFile[[#This Row],[2022/23 Baseline]]+T_DataComboFile[[#This Row],[2022/23 Reduction]]+T_DataComboFile[[#This Row],[2022/23 Increase]]","v":0},{"$f":"T_DataComboFile[[#This Row],[2023/24 Baseline]]+T_DataComboFile[[#This Row],[2023/24 Reduction]]+T_DataComboFile[[#This Row],[2023/24 Increase]]","v":0}]
[null,null,"2021_22","ENE2020",36,1,2,null,70158,36,1,2,null,"070158","36|01|02",1,1,2,13,13,"01|01|02|13|13","National","Small Business Development","Administration","Departmental Management",null,"Current","Current payments","Goods and services","Laboratory services","Laboratory services",null,null,null,0,0,0,0,0,0,0,0,0,0,0,0,0,0,null,{"$f":"IF(T_DataComboFile[[#This Row],[G&S reporting level indicator]]=1,$AX$16,\"Not applicable\")","v":"Not applicable"},{"$f":"IF(AND($AX$16=\"Level 3\",T_DataComboFile[[#This Row],[Econ3]] = \"Goods and services\"),IF(T_DataComboFile[[#This Row],[Econ4]] = T_DataComboFile[[#This Row],[Econ3]],1,0),IF(AND($AX$16=\"Level 4\",T_DataComboFile[[#This Row],[Econ4]] = \"Goods and services\"),0,1))","v":0},{"$f":"T_DataComboFile[[#This Row],[2016/17_Source]]*T_DataComboFile[[#This Row],[G&S reporting level indicator]]","v":0},{"$f":"T_DataComboFile[[#This Row],[2017/18_Source]]*T_DataComboFile[[#This Row],[G&S reporting level indicator]]","v":0},{"$f":"T_DataComboFile[[#This Row],[2018/19_Source]]*T_DataComboFile[[#This Row],[G&S reporting level indicator]]","v":0},{"$f":"T_DataComboFile[[#This Row],[2019/20 Main appropriation_Source]]*T_DataComboFile[[#This Row],[G&S reporting level indicator]]","v":0},{"$f":"T_DataComboFile[[#This Row],[2019/20 Adjusted appropriation_Source]]*T_DataComboFile[[#This Row],[G&S reporting level indicator]]","v":0},{"$f":"T_DataComboFile[[#This Row],[2019/20 Revised estimate_Source]]*T_DataComboFile[[#This Row],[G&S reporting level indicator]]","v":0},{"$f":"T_DataComboFile[[#This Row],[2019/20 Preliminary outcome_Source]]*T_DataComboFile[[#This Row],[G&S reporting level indicator]]","v":0},{"$f":"T_DataComboFile[[#This Row],[2020/21 Original_Source]]*T_DataComboFile[[#This Row],[G&S reporting level indicator]]","v":0},{"$f":"T_DataComboFile[[#This Row],[2020/21 SAB_Source]]*T_DataComboFile[[#This Row],[G&S reporting level indicator]]","v":0},{"$f":"T_DataComboFile[[#This Row],[2020/21 Baseline_Source]]*T_DataComboFile[[#This Row],[G&S reporting level indicator]]","v":0},{"$f":"T_DataComboFile[[#This Row],[2021/22 Baseline_Source]]*T_DataComboFile[[#This Row],[G&S reporting level indicator]]","v":0},{"$f":"T_DataComboFile[[#This Row],[2022/23 Baseline_Source]]*T_DataComboFile[[#This Row],[G&S reporting level indicator]]","v":0},{"$f":"T_DataComboFile[[#This Row],[2023/24 Baseline_Source]]*T_DataComboFile[[#This Row],[G&S reporting level indicator]]","v":0},null,null,null,null,null,null,{"$f":"T_DataComboFile[[#This Row],[2021/22 Baseline]]+T_DataComboFile[[#This Row],[2021/22 Reduction]]+T_DataComboFile[[#This Row],[2021/22 Increase]]","v":0},{"$f":"T_DataComboFile[[#This Row],[2022/23 Baseline]]+T_DataComboFile[[#This Row],[2022/23 Reduction]]+T_DataComboFile[[#This Row],[2022/23 Increase]]","v":0},{"$f":"T_DataComboFile[[#This Row],[2023/24 Baseline]]+T_DataComboFile[[#This Row],[2023/24 Reduction]]+T_DataComboFile[[#This Row],[2023/24 Increase]]","v":0}]
[null,null,"2021_22","ENE2020",36,1,2,null,70159,36,1,2,null,"070159","36|01|02",1,1,2,14,14,"01|01|02|14|14","National","Small Business Development","Administration","Departmental Management",null,"Current","Current payments","Goods and services","Legal services (G&S)","Legal services (G&S)",null,null,null,0,0,0,0,0,0,0,0,0,0,0,0,0,0,null,{"$f":"IF(T_DataComboFile[[#This Row],[G&S reporting level indicator]]=1,$AX$16,\"Not applicable\")","v":"Not applicable"},{"$f":"IF(AND($AX$16=\"Level 3\",T_DataComboFile[[#This Row],[Econ3]] = \"Goods and services\"),IF(T_DataComboFile[[#This Row],[Econ4]] = T_DataComboFile[[#This Row],[Econ3]],1,0),IF(AND($AX$16=\"Level 4\",T_DataComboFile[[#This Row],[Econ4]] = \"Goods and services\"),0,1))","v":0},{"$f":"T_DataComboFile[[#This Row],[2016/17_Source]]*T_DataComboFile[[#This Row],[G&S reporting level indicator]]","v":0},{"$f":"T_DataComboFile[[#This Row],[2017/18_Source]]*T_DataComboFile[[#This Row],[G&S reporting level indicator]]","v":0},{"$f":"T_DataComboFile[[#This Row],[2018/19_Source]]*T_DataComboFile[[#This Row],[G&S reporting level indicator]]","v":0},{"$f":"T_DataComboFile[[#This Row],[2019/20 Main appropriation_Source]]*T_DataComboFile[[#This Row],[G&S reporting level indicator]]","v":0},{"$f":"T_DataComboFile[[#This Row],[2019/20 Adjusted appropriation_Source]]*T_DataComboFile[[#This Row],[G&S reporting level indicator]]","v":0},{"$f":"T_DataComboFile[[#This Row],[2019/20 Revised estimate_Source]]*T_DataComboFile[[#This Row],[G&S reporting level indicator]]","v":0},{"$f":"T_DataComboFile[[#This Row],[2019/20 Preliminary outcome_Source]]*T_DataComboFile[[#This Row],[G&S reporting level indicator]]","v":0},{"$f":"T_DataComboFile[[#This Row],[2020/21 Original_Source]]*T_DataComboFile[[#This Row],[G&S reporting level indicator]]","v":0},{"$f":"T_DataComboFile[[#This Row],[2020/21 SAB_Source]]*T_DataComboFile[[#This Row],[G&S reporting level indicator]]","v":0},{"$f":"T_DataComboFile[[#This Row],[2020/21 Baseline_Source]]*T_DataComboFile[[#This Row],[G&S reporting level indicator]]","v":0},{"$f":"T_DataComboFile[[#This Row],[2021/22 Baseline_Source]]*T_DataComboFile[[#This Row],[G&S reporting level indicator]]","v":0},{"$f":"T_DataComboFile[[#This Row],[2022/23 Baseline_Source]]*T_DataComboFile[[#This Row],[G&S reporting level indicator]]","v":0},{"$f":"T_DataComboFile[[#This Row],[2023/24 Baseline_Source]]*T_DataComboFile[[#This Row],[G&S reporting level indicator]]","v":0},null,null,null,null,null,null,{"$f":"T_DataComboFile[[#This Row],[2021/22 Baseline]]+T_DataComboFile[[#This Row],[2021/22 Reduction]]+T_DataComboFile[[#This Row],[2021/22 Increase]]","v":0},{"$f":"T_DataComboFile[[#This Row],[2022/23 Baseline]]+T_DataComboFile[[#This Row],[2022/23 Reduction]]+T_DataComboFile[[#This Row],[2022/23 Increase]]","v":0},{"$f":"T_DataComboFile[[#This Row],[2023/24 Baseline]]+T_DataComboFile[[#This Row],[2023/24 Reduction]]+T_DataComboFile[[#This Row],[2023/24 Increase]]","v":0}]
[null,null,"2021_22","ENE2020",36,1,2,null,70160,36,1,2,null,"070160","36|01|02",1,1,2,15,15,"01|01|02|15|15","National","Small Business Development","Administration","Departmental Management",null,"Current","Current payments","Goods and services","Science and technological services","Science and technological services",null,null,null,0,0,0,0,0,0,0,0,0,0,0,0,0,0,null,{"$f":"IF(T_DataComboFile[[#This Row],[G&S reporting level indicator]]=1,$AX$16,\"Not applicable\")","v":"Not applicable"},{"$f":"IF(AND($AX$16=\"Level 3\",T_DataComboFile[[#This Row],[Econ3]] = \"Goods and services\"),IF(T_DataComboFile[[#This Row],[Econ4]] = T_DataComboFile[[#This Row],[Econ3]],1,0),IF(AND($AX$16=\"Level 4\",T_DataComboFile[[#This Row],[Econ4]] = \"Goods and services\"),0,1))","v":0},{"$f":"T_DataComboFile[[#This Row],[2016/17_Source]]*T_DataComboFile[[#This Row],[G&S reporting level indicator]]","v":0},{"$f":"T_DataComboFile[[#This Row],[2017/18_Source]]*T_DataComboFile[[#This Row],[G&S reporting level indicator]]","v":0},{"$f":"T_DataComboFile[[#This Row],[2018/19_Source]]*T_DataComboFile[[#This Row],[G&S reporting level indicator]]","v":0},{"$f":"T_DataComboFile[[#This Row],[2019/20 Main appropriation_Source]]*T_DataComboFile[[#This Row],[G&S reporting level indicator]]","v":0},{"$f":"T_DataComboFile[[#This Row],[2019/20 Adjusted appropriation_Source]]*T_DataComboFile[[#This Row],[G&S reporting level indicator]]","v":0},{"$f":"T_DataComboFile[[#This Row],[2019/20 Revised estimate_Source]]*T_DataComboFile[[#This Row],[G&S reporting level indicator]]","v":0},{"$f":"T_DataComboFile[[#This Row],[2019/20 Preliminary outcome_Source]]*T_DataComboFile[[#This Row],[G&S reporting level indicator]]","v":0},{"$f":"T_DataComboFile[[#This Row],[2020/21 Original_Source]]*T_DataComboFile[[#This Row],[G&S reporting level indicator]]","v":0},{"$f":"T_DataComboFile[[#This Row],[2020/21 SAB_Source]]*T_DataComboFile[[#This Row],[G&S reporting level indicator]]","v":0},{"$f":"T_DataComboFile[[#This Row],[2020/21 Baseline_Source]]*T_DataComboFile[[#This Row],[G&S reporting level indicator]]","v":0},{"$f":"T_DataComboFile[[#This Row],[2021/22 Baseline_Source]]*T_DataComboFile[[#This Row],[G&S reporting level indicator]]","v":0},{"$f":"T_DataComboFile[[#This Row],[2022/23 Baseline_Source]]*T_DataComboFile[[#This Row],[G&S reporting level indicator]]","v":0},{"$f":"T_DataComboFile[[#This Row],[2023/24 Baseline_Source]]*T_DataComboFile[[#This Row],[G&S reporting level indicator]]","v":0},null,null,null,null,null,null,{"$f":"T_DataComboFile[[#This Row],[2021/22 Baseline]]+T_DataComboFile[[#This Row],[2021/22 Reduction]]+T_DataComboFile[[#This Row],[2021/22 Increase]]","v":0},{"$f":"T_DataComboFile[[#This Row],[2022/23 Baseline]]+T_DataComboFile[[#This Row],[2022/23 Reduction]]+T_DataComboFile[[#This Row],[2022/23 Increase]]","v":0},{"$f":"T_DataComboFile[[#This Row],[2023/24 Baseline]]+T_DataComboFile[[#This Row],[2023/24 Reduction]]+T_DataComboFile[[#This Row],[2023/24 Increase]]","v":0}]
["NAT|Non-transfer item","36|Contractors","2021_22","ENE2020",36,1,2,17203,70161,36,1,2,17203,"070161","36|01|02",1,1,2,16,16,"01|01|02|16|16","National","Small Business Development","Administration","Departmental Management","Non-transfer item","Current","Current payments","Goods and services","Contractors","Contractors","Economic development","Industrialisation and exports","NAT",15,29,0,0,0,0,0,0,0,0,0,0,0,1,null,{"$f":"IF(T_DataComboFile[[#This Row],[G&S reporting level indicator]]=1,$AX$16,\"Not applicable\")","v":"Not applicable"},{"$f":"IF(AND($AX$16=\"Level 3\",T_DataComboFile[[#This Row],[Econ3]] = \"Goods and services\"),IF(T_DataComboFile[[#This Row],[Econ4]] = T_DataComboFile[[#This Row],[Econ3]],1,0),IF(AND($AX$16=\"Level 4\",T_DataComboFile[[#This Row],[Econ4]] = \"Goods and services\"),0,1))","v":0},{"$f":"T_DataComboFile[[#This Row],[2016/17_Source]]*T_DataComboFile[[#This Row],[G&S reporting level indicator]]","v":0},{"$f":"T_DataComboFile[[#This Row],[2017/18_Source]]*T_DataComboFile[[#This Row],[G&S reporting level indicator]]","v":0},{"$f":"T_DataComboFile[[#This Row],[2018/19_Source]]*T_DataComboFile[[#This Row],[G&S reporting level indicator]]","v":0},{"$f":"T_DataComboFile[[#This Row],[2019/20 Main appropriation_Source]]*T_DataComboFile[[#This Row],[G&S reporting level indicator]]","v":0},{"$f":"T_DataComboFile[[#This Row],[2019/20 Adjusted appropriation_Source]]*T_DataComboFile[[#This Row],[G&S reporting level indicator]]","v":0},{"$f":"T_DataComboFile[[#This Row],[2019/20 Revised estimate_Source]]*T_DataComboFile[[#This Row],[G&S reporting level indicator]]","v":0},{"$f":"T_DataComboFile[[#This Row],[2019/20 Preliminary outcome_Source]]*T_DataComboFile[[#This Row],[G&S reporting level indicator]]","v":0},{"$f":"T_DataComboFile[[#This Row],[2020/21 Original_Source]]*T_DataComboFile[[#This Row],[G&S reporting level indicator]]","v":0},{"$f":"T_DataComboFile[[#This Row],[2020/21 SAB_Source]]*T_DataComboFile[[#This Row],[G&S reporting level indicator]]","v":0},{"$f":"T_DataComboFile[[#This Row],[2020/21 Baseline_Source]]*T_DataComboFile[[#This Row],[G&S reporting level indicator]]","v":0},{"$f":"T_DataComboFile[[#This Row],[2021/22 Baseline_Source]]*T_DataComboFile[[#This Row],[G&S reporting level indicator]]","v":0},{"$f":"T_DataComboFile[[#This Row],[2022/23 Baseline_Source]]*T_DataComboFile[[#This Row],[G&S reporting level indicator]]","v":0},{"$f":"T_DataComboFile[[#This Row],[2023/24 Baseline_Source]]*T_DataComboFile[[#This Row],[G&S reporting level indicator]]","v":0},null,null,null,null,null,null,{"$f":"T_DataComboFile[[#This Row],[2021/22 Baseline]]+T_DataComboFile[[#This Row],[2021/22 Reduction]]+T_DataComboFile[[#This Row],[2021/22 Increase]]","v":0},{"$f":"T_DataComboFile[[#This Row],[2022/23 Baseline]]+T_DataComboFile[[#This Row],[2022/23 Reduction]]+T_DataComboFile[[#This Row],[2022/23 Increase]]","v":0},{"$f":"T_DataComboFile[[#This Row],[2023/24 Baseline]]+T_DataComboFile[[#This Row],[2023/24 Reduction]]+T_DataComboFile[[#This Row],[2023/24 Increase]]","v":0}]
["NAT|Non-transfer item","36|Agency and support/outsourced services","2021_22","ENE2020",36,1,2,17204,70162,36,1,2,17204,"070162","36|01|02",1,1,2,17,17,"01|01|02|17|17","National","Small Business Development","Administration","Departmental Management","Non-transfer item","Current","Current payments","Goods and services","Agency and support/outsourced services","Agency and support/outsourced services","Economic development","Industrialisation and exports","NAT",0,170,240,190,440,440,440,260,260,260,280,300,313,1,null,{"$f":"IF(T_DataComboFile[[#This Row],[G&S reporting level indicator]]=1,$AX$16,\"Not applicable\")","v":"Not applicable"},{"$f":"IF(AND($AX$16=\"Level 3\",T_DataComboFile[[#This Row],[Econ3]] = \"Goods and services\"),IF(T_DataComboFile[[#This Row],[Econ4]] = T_DataComboFile[[#This Row],[Econ3]],1,0),IF(AND($AX$16=\"Level 4\",T_DataComboFile[[#This Row],[Econ4]] = \"Goods and services\"),0,1))","v":0},{"$f":"T_DataComboFile[[#This Row],[2016/17_Source]]*T_DataComboFile[[#This Row],[G&S reporting level indicator]]","v":0},{"$f":"T_DataComboFile[[#This Row],[2017/18_Source]]*T_DataComboFile[[#This Row],[G&S reporting level indicator]]","v":0},{"$f":"T_DataComboFile[[#This Row],[2018/19_Source]]*T_DataComboFile[[#This Row],[G&S reporting level indicator]]","v":0},{"$f":"T_DataComboFile[[#This Row],[2019/20 Main appropriation_Source]]*T_DataComboFile[[#This Row],[G&S reporting level indicator]]","v":0},{"$f":"T_DataComboFile[[#This Row],[2019/20 Adjusted appropriation_Source]]*T_DataComboFile[[#This Row],[G&S reporting level indicator]]","v":0},{"$f":"T_DataComboFile[[#This Row],[2019/20 Revised estimate_Source]]*T_DataComboFile[[#This Row],[G&S reporting level indicator]]","v":0},{"$f":"T_DataComboFile[[#This Row],[2019/20 Preliminary outcome_Source]]*T_DataComboFile[[#This Row],[G&S reporting level indicator]]","v":0},{"$f":"T_DataComboFile[[#This Row],[2020/21 Original_Source]]*T_DataComboFile[[#This Row],[G&S reporting level indicator]]","v":0},{"$f":"T_DataComboFile[[#This Row],[2020/21 SAB_Source]]*T_DataComboFile[[#This Row],[G&S reporting level indicator]]","v":0},{"$f":"T_DataComboFile[[#This Row],[2020/21 Baseline_Source]]*T_DataComboFile[[#This Row],[G&S reporting level indicator]]","v":0},{"$f":"T_DataComboFile[[#This Row],[2021/22 Baseline_Source]]*T_DataComboFile[[#This Row],[G&S reporting level indicator]]","v":0},{"$f":"T_DataComboFile[[#This Row],[2022/23 Baseline_Source]]*T_DataComboFile[[#This Row],[G&S reporting level indicator]]","v":0},{"$f":"T_DataComboFile[[#This Row],[2023/24 Baseline_Source]]*T_DataComboFile[[#This Row],[G&S reporting level indicator]]","v":0},null,null,null,null,null,null,{"$f":"T_DataComboFile[[#This Row],[2021/22 Baseline]]+T_DataComboFile[[#This Row],[2021/22 Reduction]]+T_DataComboFile[[#This Row],[2021/22 Increase]]","v":0},{"$f":"T_DataComboFile[[#This Row],[2022/23 Baseline]]+T_DataComboFile[[#This Row],[2022/23 Reduction]]+T_DataComboFile[[#This Row],[2022/23 Increase]]","v":0},{"$f":"T_DataComboFile[[#This Row],[2023/24 Baseline]]+T_DataComboFile[[#This Row],[2023/24 Reduction]]+T_DataComboFile[[#This Row],[2023/24 Increase]]","v":0}]
[null,null,"2021_22","ENE2020",36,1,2,null,70163,36,1,2,null,"070163","36|01|02",1,1,2,18,18,"01|01|02|18|18","National","Small Business Development","Administration","Departmental Management",null,"Current","Current payments","Goods and services","Entertainment","Entertainment",null,null,null,0,0,0,0,0,0,0,0,0,0,0,0,0,0,null,{"$f":"IF(T_DataComboFile[[#This Row],[G&S reporting level indicator]]=1,$AX$16,\"Not applicable\")","v":"Not applicable"},{"$f":"IF(AND($AX$16=\"Level 3\",T_DataComboFile[[#This Row],[Econ3]] = \"Goods and services\"),IF(T_DataComboFile[[#This Row],[Econ4]] = T_DataComboFile[[#This Row],[Econ3]],1,0),IF(AND($AX$16=\"Level 4\",T_DataComboFile[[#This Row],[Econ4]] = \"Goods and services\"),0,1))","v":0},{"$f":"T_DataComboFile[[#This Row],[2016/17_Source]]*T_DataComboFile[[#This Row],[G&S reporting level indicator]]","v":0},{"$f":"T_DataComboFile[[#This Row],[2017/18_Source]]*T_DataComboFile[[#This Row],[G&S reporting level indicator]]","v":0},{"$f":"T_DataComboFile[[#This Row],[2018/19_Source]]*T_DataComboFile[[#This Row],[G&S reporting level indicator]]","v":0},{"$f":"T_DataComboFile[[#This Row],[2019/20 Main appropriation_Source]]*T_DataComboFile[[#This Row],[G&S reporting level indicator]]","v":0},{"$f":"T_DataComboFile[[#This Row],[2019/20 Adjusted appropriation_Source]]*T_DataComboFile[[#This Row],[G&S reporting level indicator]]","v":0},{"$f":"T_DataComboFile[[#This Row],[2019/20 Revised estimate_Source]]*T_DataComboFile[[#This Row],[G&S reporting level indicator]]","v":0},{"$f":"T_DataComboFile[[#This Row],[2019/20 Preliminary outcome_Source]]*T_DataComboFile[[#This Row],[G&S reporting level indicator]]","v":0},{"$f":"T_DataComboFile[[#This Row],[2020/21 Original_Source]]*T_DataComboFile[[#This Row],[G&S reporting level indicator]]","v":0},{"$f":"T_DataComboFile[[#This Row],[2020/21 SAB_Source]]*T_DataComboFile[[#This Row],[G&S reporting level indicator]]","v":0},{"$f":"T_DataComboFile[[#This Row],[2020/21 Baseline_Source]]*T_DataComboFile[[#This Row],[G&S reporting level indicator]]","v":0},{"$f":"T_DataComboFile[[#This Row],[2021/22 Baseline_Source]]*T_DataComboFile[[#This Row],[G&S reporting level indicator]]","v":0},{"$f":"T_DataComboFile[[#This Row],[2022/23 Baseline_Source]]*T_DataComboFile[[#This Row],[G&S reporting level indicator]]","v":0},{"$f":"T_DataComboFile[[#This Row],[2023/24 Baseline_Source]]*T_DataComboFile[[#This Row],[G&S reporting level indicator]]","v":0},null,null,null,null,null,null,{"$f":"T_DataComboFile[[#This Row],[2021/22 Baseline]]+T_DataComboFile[[#This Row],[2021/22 Reduction]]+T_DataComboFile[[#This Row],[2021/22 Increase]]","v":0},{"$f":"T_DataComboFile[[#This Row],[2022/23 Baseline]]+T_DataComboFile[[#This Row],[2022/23 Reduction]]+T_DataComboFile[[#This Row],[2022/23 Increase]]","v":0},{"$f":"T_DataComboFile[[#This Row],[2023/24 Baseline]]+T_DataComboFile[[#This Row],[2023/24 Reduction]]+T_DataComboFile[[#This Row],[2023/24 Increase]]","v":0}]
["NAT|Non-transfer item","36|Fleet services (including government motor transport)","2021_22","ENE2020",36,1,2,17205,70164,36,1,2,17205,"070164","36|01|02",1,1,2,19,19,"01|01|02|19|19","National","Small Business Development","Administration","Departmental Management","Non-transfer item","Current","Current payments","Goods and services","Fleet services (including government motor transport)","Fleet services (including government motor transport)","Economic development","Industrialisation and exports","NAT",1,0,4,0,12,12,12,0,0,0,0,0,0,1,null,{"$f":"IF(T_DataComboFile[[#This Row],[G&S reporting level indicator]]=1,$AX$16,\"Not applicable\")","v":"Not applicable"},{"$f":"IF(AND($AX$16=\"Level 3\",T_DataComboFile[[#This Row],[Econ3]] = \"Goods and services\"),IF(T_DataComboFile[[#This Row],[Econ4]] = T_DataComboFile[[#This Row],[Econ3]],1,0),IF(AND($AX$16=\"Level 4\",T_DataComboFile[[#This Row],[Econ4]] = \"Goods and services\"),0,1))","v":0},{"$f":"T_DataComboFile[[#This Row],[2016/17_Source]]*T_DataComboFile[[#This Row],[G&S reporting level indicator]]","v":0},{"$f":"T_DataComboFile[[#This Row],[2017/18_Source]]*T_DataComboFile[[#This Row],[G&S reporting level indicator]]","v":0},{"$f":"T_DataComboFile[[#This Row],[2018/19_Source]]*T_DataComboFile[[#This Row],[G&S reporting level indicator]]","v":0},{"$f":"T_DataComboFile[[#This Row],[2019/20 Main appropriation_Source]]*T_DataComboFile[[#This Row],[G&S reporting level indicator]]","v":0},{"$f":"T_DataComboFile[[#This Row],[2019/20 Adjusted appropriation_Source]]*T_DataComboFile[[#This Row],[G&S reporting level indicator]]","v":0},{"$f":"T_DataComboFile[[#This Row],[2019/20 Revised estimate_Source]]*T_DataComboFile[[#This Row],[G&S reporting level indicator]]","v":0},{"$f":"T_DataComboFile[[#This Row],[2019/20 Preliminary outcome_Source]]*T_DataComboFile[[#This Row],[G&S reporting level indicator]]","v":0},{"$f":"T_DataComboFile[[#This Row],[2020/21 Original_Source]]*T_DataComboFile[[#This Row],[G&S reporting level indicator]]","v":0},{"$f":"T_DataComboFile[[#This Row],[2020/21 SAB_Source]]*T_DataComboFile[[#This Row],[G&S reporting level indicator]]","v":0},{"$f":"T_DataComboFile[[#This Row],[2020/21 Baseline_Source]]*T_DataComboFile[[#This Row],[G&S reporting level indicator]]","v":0},{"$f":"T_DataComboFile[[#This Row],[2021/22 Baseline_Source]]*T_DataComboFile[[#This Row],[G&S reporting level indicator]]","v":0},{"$f":"T_DataComboFile[[#This Row],[2022/23 Baseline_Source]]*T_DataComboFile[[#This Row],[G&S reporting level indicator]]","v":0},{"$f":"T_DataComboFile[[#This Row],[2023/24 Baseline_Source]]*T_DataComboFile[[#This Row],[G&S reporting level indicator]]","v":0},null,null,null,null,null,null,{"$f":"T_DataComboFile[[#This Row],[2021/22 Baseline]]+T_DataComboFile[[#This Row],[2021/22 Reduction]]+T_DataComboFile[[#This Row],[2021/22 Increase]]","v":0},{"$f":"T_DataComboFile[[#This Row],[2022/23 Baseline]]+T_DataComboFile[[#This Row],[2022/23 Reduction]]+T_DataComboFile[[#This Row],[2022/23 Increase]]","v":0},{"$f":"T_DataComboFile[[#This Row],[2023/24 Baseline]]+T_DataComboFile[[#This Row],[2023/24 Reduction]]+T_DataComboFile[[#This Row],[2023/24 Increase]]","v":0}]
[null,null,"2021_22","ENE2020",36,1,2,null,70165,36,1,2,null,"070165","36|01|02",1,1,2,20,20,"01|01|02|20|20","National","Small Business Development","Administration","Departmental Management",null,"Current","Current payments","Goods and services","Housing","Housing",null,null,null,0,0,0,0,0,0,0,0,0,0,0,0,0,0,null,{"$f":"IF(T_DataComboFile[[#This Row],[G&S reporting level indicator]]=1,$AX$16,\"Not applicable\")","v":"Not applicable"},{"$f":"IF(AND($AX$16=\"Level 3\",T_DataComboFile[[#This Row],[Econ3]] = \"Goods and services\"),IF(T_DataComboFile[[#This Row],[Econ4]] = T_DataComboFile[[#This Row],[Econ3]],1,0),IF(AND($AX$16=\"Level 4\",T_DataComboFile[[#This Row],[Econ4]] = \"Goods and services\"),0,1))","v":0},{"$f":"T_DataComboFile[[#This Row],[2016/17_Source]]*T_DataComboFile[[#This Row],[G&S reporting level indicator]]","v":0},{"$f":"T_DataComboFile[[#This Row],[2017/18_Source]]*T_DataComboFile[[#This Row],[G&S reporting level indicator]]","v":0},{"$f":"T_DataComboFile[[#This Row],[2018/19_Source]]*T_DataComboFile[[#This Row],[G&S reporting level indicator]]","v":0},{"$f":"T_DataComboFile[[#This Row],[2019/20 Main appropriation_Source]]*T_DataComboFile[[#This Row],[G&S reporting level indicator]]","v":0},{"$f":"T_DataComboFile[[#This Row],[2019/20 Adjusted appropriation_Source]]*T_DataComboFile[[#This Row],[G&S reporting level indicator]]","v":0},{"$f":"T_DataComboFile[[#This Row],[2019/20 Revised estimate_Source]]*T_DataComboFile[[#This Row],[G&S reporting level indicator]]","v":0},{"$f":"T_DataComboFile[[#This Row],[2019/20 Preliminary outcome_Source]]*T_DataComboFile[[#This Row],[G&S reporting level indicator]]","v":0},{"$f":"T_DataComboFile[[#This Row],[2020/21 Original_Source]]*T_DataComboFile[[#This Row],[G&S reporting level indicator]]","v":0},{"$f":"T_DataComboFile[[#This Row],[2020/21 SAB_Source]]*T_DataComboFile[[#This Row],[G&S reporting level indicator]]","v":0},{"$f":"T_DataComboFile[[#This Row],[2020/21 Baseline_Source]]*T_DataComboFile[[#This Row],[G&S reporting level indicator]]","v":0},{"$f":"T_DataComboFile[[#This Row],[2021/22 Baseline_Source]]*T_DataComboFile[[#This Row],[G&S reporting level indicator]]","v":0},{"$f":"T_DataComboFile[[#This Row],[2022/23 Baseline_Source]]*T_DataComboFile[[#This Row],[G&S reporting level indicator]]","v":0},{"$f":"T_DataComboFile[[#This Row],[2023/24 Baseline_Source]]*T_DataComboFile[[#This Row],[G&S reporting level indicator]]","v":0},null,null,null,null,null,null,{"$f":"T_DataComboFile[[#This Row],[2021/22 Baseline]]+T_DataComboFile[[#This Row],[2021/22 Reduction]]+T_DataComboFile[[#This Row],[2021/22 Increase]]","v":0},{"$f":"T_DataComboFile[[#This Row],[2022/23 Baseline]]+T_DataComboFile[[#This Row],[2022/23 Reduction]]+T_DataComboFile[[#This Row],[2022/23 Increase]]","v":0},{"$f":"T_DataComboFile[[#This Row],[2023/24 Baseline]]+T_DataComboFile[[#This Row],[2023/24 Reduction]]+T_DataComboFile[[#This Row],[2023/24 Increase]]","v":0}]
[null,null,"2021_22","ENE2020",36,1,2,null,70166,36,1,2,null,"070166","36|01|02",1,1,2,21,21,"01|01|02|21|21","National","Small Business Development","Administration","Departmental Management",null,"Current","Current payments","Goods and services","Inventory: Clothing material and accessories","Inventory: Clothing material and accessories",null,null,null,0,0,0,0,0,0,0,0,0,0,0,0,0,0,null,{"$f":"IF(T_DataComboFile[[#This Row],[G&S reporting level indicator]]=1,$AX$16,\"Not applicable\")","v":"Not applicable"},{"$f":"IF(AND($AX$16=\"Level 3\",T_DataComboFile[[#This Row],[Econ3]] = \"Goods and services\"),IF(T_DataComboFile[[#This Row],[Econ4]] = T_DataComboFile[[#This Row],[Econ3]],1,0),IF(AND($AX$16=\"Level 4\",T_DataComboFile[[#This Row],[Econ4]] = \"Goods and services\"),0,1))","v":0},{"$f":"T_DataComboFile[[#This Row],[2016/17_Source]]*T_DataComboFile[[#This Row],[G&S reporting level indicator]]","v":0},{"$f":"T_DataComboFile[[#This Row],[2017/18_Source]]*T_DataComboFile[[#This Row],[G&S reporting level indicator]]","v":0},{"$f":"T_DataComboFile[[#This Row],[2018/19_Source]]*T_DataComboFile[[#This Row],[G&S reporting level indicator]]","v":0},{"$f":"T_DataComboFile[[#This Row],[2019/20 Main appropriation_Source]]*T_DataComboFile[[#This Row],[G&S reporting level indicator]]","v":0},{"$f":"T_DataComboFile[[#This Row],[2019/20 Adjusted appropriation_Source]]*T_DataComboFile[[#This Row],[G&S reporting level indicator]]","v":0},{"$f":"T_DataComboFile[[#This Row],[2019/20 Revised estimate_Source]]*T_DataComboFile[[#This Row],[G&S reporting level indicator]]","v":0},{"$f":"T_DataComboFile[[#This Row],[2019/20 Preliminary outcome_Source]]*T_DataComboFile[[#This Row],[G&S reporting level indicator]]","v":0},{"$f":"T_DataComboFile[[#This Row],[2020/21 Original_Source]]*T_DataComboFile[[#This Row],[G&S reporting level indicator]]","v":0},{"$f":"T_DataComboFile[[#This Row],[2020/21 SAB_Source]]*T_DataComboFile[[#This Row],[G&S reporting level indicator]]","v":0},{"$f":"T_DataComboFile[[#This Row],[2020/21 Baseline_Source]]*T_DataComboFile[[#This Row],[G&S reporting level indicator]]","v":0},{"$f":"T_DataComboFile[[#This Row],[2021/22 Baseline_Source]]*T_DataComboFile[[#This Row],[G&S reporting level indicator]]","v":0},{"$f":"T_DataComboFile[[#This Row],[2022/23 Baseline_Source]]*T_DataComboFile[[#This Row],[G&S reporting level indicator]]","v":0},{"$f":"T_DataComboFile[[#This Row],[2023/24 Baseline_Source]]*T_DataComboFile[[#This Row],[G&S reporting level indicator]]","v":0},null,null,null,null,null,null,{"$f":"T_DataComboFile[[#This Row],[2021/22 Baseline]]+T_DataComboFile[[#This Row],[2021/22 Reduction]]+T_DataComboFile[[#This Row],[2021/22 Increase]]","v":0},{"$f":"T_DataComboFile[[#This Row],[2022/23 Baseline]]+T_DataComboFile[[#This Row],[2022/23 Reduction]]+T_DataComboFile[[#This Row],[2022/23 Increase]]","v":0},{"$f":"T_DataComboFile[[#This Row],[2023/24 Baseline]]+T_DataComboFile[[#This Row],[2023/24 Reduction]]+T_DataComboFile[[#This Row],[2023/24 Increase]]","v":0}]
[null,null,"2021_22","ENE2020",36,1,2,null,70167,36,1,2,null,"070167","36|01|02",1,1,2,22,22,"01|01|02|22|22","National","Small Business Development","Administration","Departmental Management",null,"Current","Current payments","Goods and services","Inventory: Farming supplies","Inventory: Farming supplies",null,null,null,0,0,0,0,0,0,0,0,0,0,0,0,0,0,null,{"$f":"IF(T_DataComboFile[[#This Row],[G&S reporting level indicator]]=1,$AX$16,\"Not applicable\")","v":"Not applicable"},{"$f":"IF(AND($AX$16=\"Level 3\",T_DataComboFile[[#This Row],[Econ3]] = \"Goods and services\"),IF(T_DataComboFile[[#This Row],[Econ4]] = T_DataComboFile[[#This Row],[Econ3]],1,0),IF(AND($AX$16=\"Level 4\",T_DataComboFile[[#This Row],[Econ4]] = \"Goods and services\"),0,1))","v":0},{"$f":"T_DataComboFile[[#This Row],[2016/17_Source]]*T_DataComboFile[[#This Row],[G&S reporting level indicator]]","v":0},{"$f":"T_DataComboFile[[#This Row],[2017/18_Source]]*T_DataComboFile[[#This Row],[G&S reporting level indicator]]","v":0},{"$f":"T_DataComboFile[[#This Row],[2018/19_Source]]*T_DataComboFile[[#This Row],[G&S reporting level indicator]]","v":0},{"$f":"T_DataComboFile[[#This Row],[2019/20 Main appropriation_Source]]*T_DataComboFile[[#This Row],[G&S reporting level indicator]]","v":0},{"$f":"T_DataComboFile[[#This Row],[2019/20 Adjusted appropriation_Source]]*T_DataComboFile[[#This Row],[G&S reporting level indicator]]","v":0},{"$f":"T_DataComboFile[[#This Row],[2019/20 Revised estimate_Source]]*T_DataComboFile[[#This Row],[G&S reporting level indicator]]","v":0},{"$f":"T_DataComboFile[[#This Row],[2019/20 Preliminary outcome_Source]]*T_DataComboFile[[#This Row],[G&S reporting level indicator]]","v":0},{"$f":"T_DataComboFile[[#This Row],[2020/21 Original_Source]]*T_DataComboFile[[#This Row],[G&S reporting level indicator]]","v":0},{"$f":"T_DataComboFile[[#This Row],[2020/21 SAB_Source]]*T_DataComboFile[[#This Row],[G&S reporting level indicator]]","v":0},{"$f":"T_DataComboFile[[#This Row],[2020/21 Baseline_Source]]*T_DataComboFile[[#This Row],[G&S reporting level indicator]]","v":0},{"$f":"T_DataComboFile[[#This Row],[2021/22 Baseline_Source]]*T_DataComboFile[[#This Row],[G&S reporting level indicator]]","v":0},{"$f":"T_DataComboFile[[#This Row],[2022/23 Baseline_Source]]*T_DataComboFile[[#This Row],[G&S reporting level indicator]]","v":0},{"$f":"T_DataComboFile[[#This Row],[2023/24 Baseline_Source]]*T_DataComboFile[[#This Row],[G&S reporting level indicator]]","v":0},null,null,null,null,null,null,{"$f":"T_DataComboFile[[#This Row],[2021/22 Baseline]]+T_DataComboFile[[#This Row],[2021/22 Reduction]]+T_DataComboFile[[#This Row],[2021/22 Increase]]","v":0},{"$f":"T_DataComboFile[[#This Row],[2022/23 Baseline]]+T_DataComboFile[[#This Row],[2022/23 Reduction]]+T_DataComboFile[[#This Row],[2022/23 Increase]]","v":0},{"$f":"T_DataComboFile[[#This Row],[2023/24 Baseline]]+T_DataComboFile[[#This Row],[2023/24 Reduction]]+T_DataComboFile[[#This Row],[2023/24 Increase]]","v":0}]
[null,null,"2021_22","ENE2020",36,1,2,null,70168,36,1,2,null,"070168","36|01|02",1,1,2,23,23,"01|01|02|23|23","National","Small Business Development","Administration","Departmental Management",null,"Current","Current payments","Goods and services","Inventory: Food and food supplies","Inventory: Food and food supplies",null,null,null,0,0,0,0,0,0,0,0,0,0,0,0,0,0,null,{"$f":"IF(T_DataComboFile[[#This Row],[G&S reporting level indicator]]=1,$AX$16,\"Not applicable\")","v":"Not applicable"},{"$f":"IF(AND($AX$16=\"Level 3\",T_DataComboFile[[#This Row],[Econ3]] = \"Goods and services\"),IF(T_DataComboFile[[#This Row],[Econ4]] = T_DataComboFile[[#This Row],[Econ3]],1,0),IF(AND($AX$16=\"Level 4\",T_DataComboFile[[#This Row],[Econ4]] = \"Goods and services\"),0,1))","v":0},{"$f":"T_DataComboFile[[#This Row],[2016/17_Source]]*T_DataComboFile[[#This Row],[G&S reporting level indicator]]","v":0},{"$f":"T_DataComboFile[[#This Row],[2017/18_Source]]*T_DataComboFile[[#This Row],[G&S reporting level indicator]]","v":0},{"$f":"T_DataComboFile[[#This Row],[2018/19_Source]]*T_DataComboFile[[#This Row],[G&S reporting level indicator]]","v":0},{"$f":"T_DataComboFile[[#This Row],[2019/20 Main appropriation_Source]]*T_DataComboFile[[#This Row],[G&S reporting level indicator]]","v":0},{"$f":"T_DataComboFile[[#This Row],[2019/20 Adjusted appropriation_Source]]*T_DataComboFile[[#This Row],[G&S reporting level indicator]]","v":0},{"$f":"T_DataComboFile[[#This Row],[2019/20 Revised estimate_Source]]*T_DataComboFile[[#This Row],[G&S reporting level indicator]]","v":0},{"$f":"T_DataComboFile[[#This Row],[2019/20 Preliminary outcome_Source]]*T_DataComboFile[[#This Row],[G&S reporting level indicator]]","v":0},{"$f":"T_DataComboFile[[#This Row],[2020/21 Original_Source]]*T_DataComboFile[[#This Row],[G&S reporting level indicator]]","v":0},{"$f":"T_DataComboFile[[#This Row],[2020/21 SAB_Source]]*T_DataComboFile[[#This Row],[G&S reporting level indicator]]","v":0},{"$f":"T_DataComboFile[[#This Row],[2020/21 Baseline_Source]]*T_DataComboFile[[#This Row],[G&S reporting level indicator]]","v":0},{"$f":"T_DataComboFile[[#This Row],[2021/22 Baseline_Source]]*T_DataComboFile[[#This Row],[G&S reporting level indicator]]","v":0},{"$f":"T_DataComboFile[[#This Row],[2022/23 Baseline_Source]]*T_DataComboFile[[#This Row],[G&S reporting level indicator]]","v":0},{"$f":"T_DataComboFile[[#This Row],[2023/24 Baseline_Source]]*T_DataComboFile[[#This Row],[G&S reporting level indicator]]","v":0},null,null,null,null,null,null,{"$f":"T_DataComboFile[[#This Row],[2021/22 Baseline]]+T_DataComboFile[[#This Row],[2021/22 Reduction]]+T_DataComboFile[[#This Row],[2021/22 Increase]]","v":0},{"$f":"T_DataComboFile[[#This Row],[2022/23 Baseline]]+T_DataComboFile[[#This Row],[2022/23 Reduction]]+T_DataComboFile[[#This Row],[2022/23 Increase]]","v":0},{"$f":"T_DataComboFile[[#This Row],[2023/24 Baseline]]+T_DataComboFile[[#This Row],[2023/24 Reduction]]+T_DataComboFile[[#This Row],[2023/24 Increase]]","v":0}]
[null,null,"2021_22","ENE2020",36,1,2,null,70169,36,1,2,null,"070169","36|01|02",1,1,2,24,24,"01|01|02|24|24","National","Small Business Development","Administration","Departmental Management",null,"Current","Current payments","Goods and services","Inventory: Fuel, oil and gas","Inventory: Fuel, oil and gas",null,null,null,0,0,0,0,0,0,0,0,0,0,0,0,0,0,null,{"$f":"IF(T_DataComboFile[[#This Row],[G&S reporting level indicator]]=1,$AX$16,\"Not applicable\")","v":"Not applicable"},{"$f":"IF(AND($AX$16=\"Level 3\",T_DataComboFile[[#This Row],[Econ3]] = \"Goods and services\"),IF(T_DataComboFile[[#This Row],[Econ4]] = T_DataComboFile[[#This Row],[Econ3]],1,0),IF(AND($AX$16=\"Level 4\",T_DataComboFile[[#This Row],[Econ4]] = \"Goods and services\"),0,1))","v":0},{"$f":"T_DataComboFile[[#This Row],[2016/17_Source]]*T_DataComboFile[[#This Row],[G&S reporting level indicator]]","v":0},{"$f":"T_DataComboFile[[#This Row],[2017/18_Source]]*T_DataComboFile[[#This Row],[G&S reporting level indicator]]","v":0},{"$f":"T_DataComboFile[[#This Row],[2018/19_Source]]*T_DataComboFile[[#This Row],[G&S reporting level indicator]]","v":0},{"$f":"T_DataComboFile[[#This Row],[2019/20 Main appropriation_Source]]*T_DataComboFile[[#This Row],[G&S reporting level indicator]]","v":0},{"$f":"T_DataComboFile[[#This Row],[2019/20 Adjusted appropriation_Source]]*T_DataComboFile[[#This Row],[G&S reporting level indicator]]","v":0},{"$f":"T_DataComboFile[[#This Row],[2019/20 Revised estimate_Source]]*T_DataComboFile[[#This Row],[G&S reporting level indicator]]","v":0},{"$f":"T_DataComboFile[[#This Row],[2019/20 Preliminary outcome_Source]]*T_DataComboFile[[#This Row],[G&S reporting level indicator]]","v":0},{"$f":"T_DataComboFile[[#This Row],[2020/21 Original_Source]]*T_DataComboFile[[#This Row],[G&S reporting level indicator]]","v":0},{"$f":"T_DataComboFile[[#This Row],[2020/21 SAB_Source]]*T_DataComboFile[[#This Row],[G&S reporting level indicator]]","v":0},{"$f":"T_DataComboFile[[#This Row],[2020/21 Baseline_Source]]*T_DataComboFile[[#This Row],[G&S reporting level indicator]]","v":0},{"$f":"T_DataComboFile[[#This Row],[2021/22 Baseline_Source]]*T_DataComboFile[[#This Row],[G&S reporting level indicator]]","v":0},{"$f":"T_DataComboFile[[#This Row],[2022/23 Baseline_Source]]*T_DataComboFile[[#This Row],[G&S reporting level indicator]]","v":0},{"$f":"T_DataComboFile[[#This Row],[2023/24 Baseline_Source]]*T_DataComboFile[[#This Row],[G&S reporting level indicator]]","v":0},null,null,null,null,null,null,{"$f":"T_DataComboFile[[#This Row],[2021/22 Baseline]]+T_DataComboFile[[#This Row],[2021/22 Reduction]]+T_DataComboFile[[#This Row],[2021/22 Increase]]","v":0},{"$f":"T_DataComboFile[[#This Row],[2022/23 Baseline]]+T_DataComboFile[[#This Row],[2022/23 Reduction]]+T_DataComboFile[[#This Row],[2022/23 Increase]]","v":0},{"$f":"T_DataComboFile[[#This Row],[2023/24 Baseline]]+T_DataComboFile[[#This Row],[2023/24 Reduction]]+T_DataComboFile[[#This Row],[2023/24 Increase]]","v":0}]
[null,null,"2021_22","ENE2020",36,1,2,null,70170,36,1,2,null,"070170","36|01|02",1,1,2,25,25,"01|01|02|25|25","National","Small Business Development","Administration","Departmental Management",null,"Current","Current payments","Goods and services","Inventory: Learner and teacher support material","Inventory: Learner and teacher support material",null,null,null,0,0,0,0,0,0,0,0,0,0,0,0,0,0,null,{"$f":"IF(T_DataComboFile[[#This Row],[G&S reporting level indicator]]=1,$AX$16,\"Not applicable\")","v":"Not applicable"},{"$f":"IF(AND($AX$16=\"Level 3\",T_DataComboFile[[#This Row],[Econ3]] = \"Goods and services\"),IF(T_DataComboFile[[#This Row],[Econ4]] = T_DataComboFile[[#This Row],[Econ3]],1,0),IF(AND($AX$16=\"Level 4\",T_DataComboFile[[#This Row],[Econ4]] = \"Goods and services\"),0,1))","v":0},{"$f":"T_DataComboFile[[#This Row],[2016/17_Source]]*T_DataComboFile[[#This Row],[G&S reporting level indicator]]","v":0},{"$f":"T_DataComboFile[[#This Row],[2017/18_Source]]*T_DataComboFile[[#This Row],[G&S reporting level indicator]]","v":0},{"$f":"T_DataComboFile[[#This Row],[2018/19_Source]]*T_DataComboFile[[#This Row],[G&S reporting level indicator]]","v":0},{"$f":"T_DataComboFile[[#This Row],[2019/20 Main appropriation_Source]]*T_DataComboFile[[#This Row],[G&S reporting level indicator]]","v":0},{"$f":"T_DataComboFile[[#This Row],[2019/20 Adjusted appropriation_Source]]*T_DataComboFile[[#This Row],[G&S reporting level indicator]]","v":0},{"$f":"T_DataComboFile[[#This Row],[2019/20 Revised estimate_Source]]*T_DataComboFile[[#This Row],[G&S reporting level indicator]]","v":0},{"$f":"T_DataComboFile[[#This Row],[2019/20 Preliminary outcome_Source]]*T_DataComboFile[[#This Row],[G&S reporting level indicator]]","v":0},{"$f":"T_DataComboFile[[#This Row],[2020/21 Original_Source]]*T_DataComboFile[[#This Row],[G&S reporting level indicator]]","v":0},{"$f":"T_DataComboFile[[#This Row],[2020/21 SAB_Source]]*T_DataComboFile[[#This Row],[G&S reporting level indicator]]","v":0},{"$f":"T_DataComboFile[[#This Row],[2020/21 Baseline_Source]]*T_DataComboFile[[#This Row],[G&S reporting level indicator]]","v":0},{"$f":"T_DataComboFile[[#This Row],[2021/22 Baseline_Source]]*T_DataComboFile[[#This Row],[G&S reporting level indicator]]","v":0},{"$f":"T_DataComboFile[[#This Row],[2022/23 Baseline_Source]]*T_DataComboFile[[#This Row],[G&S reporting level indicator]]","v":0},{"$f":"T_DataComboFile[[#This Row],[2023/24 Baseline_Source]]*T_DataComboFile[[#This Row],[G&S reporting level indicator]]","v":0},null,null,null,null,null,null,{"$f":"T_DataComboFile[[#This Row],[2021/22 Baseline]]+T_DataComboFile[[#This Row],[2021/22 Reduction]]+T_DataComboFile[[#This Row],[2021/22 Increase]]","v":0},{"$f":"T_DataComboFile[[#This Row],[2022/23 Baseline]]+T_DataComboFile[[#This Row],[2022/23 Reduction]]+T_DataComboFile[[#This Row],[2022/23 Increase]]","v":0},{"$f":"T_DataComboFile[[#This Row],[2023/24 Baseline]]+T_DataComboFile[[#This Row],[2023/24 Reduction]]+T_DataComboFile[[#This Row],[2023/24 Increase]]","v":0}]
[null,null,"2021_22","ENE2020",36,1,2,null,70171,36,1,2,null,"070171","36|01|02",1,1,2,26,26,"01|01|02|26|26","National","Small Business Development","Administration","Departmental Management",null,"Current","Current payments","Goods and services","Inventory: Materials and supplies","Inventory: Materials and supplies",null,null,null,0,0,0,0,0,0,0,0,0,0,0,0,0,0,null,{"$f":"IF(T_DataComboFile[[#This Row],[G&S reporting level indicator]]=1,$AX$16,\"Not applicable\")","v":"Not applicable"},{"$f":"IF(AND($AX$16=\"Level 3\",T_DataComboFile[[#This Row],[Econ3]] = \"Goods and services\"),IF(T_DataComboFile[[#This Row],[Econ4]] = T_DataComboFile[[#This Row],[Econ3]],1,0),IF(AND($AX$16=\"Level 4\",T_DataComboFile[[#This Row],[Econ4]] = \"Goods and services\"),0,1))","v":0},{"$f":"T_DataComboFile[[#This Row],[2016/17_Source]]*T_DataComboFile[[#This Row],[G&S reporting level indicator]]","v":0},{"$f":"T_DataComboFile[[#This Row],[2017/18_Source]]*T_DataComboFile[[#This Row],[G&S reporting level indicator]]","v":0},{"$f":"T_DataComboFile[[#This Row],[2018/19_Source]]*T_DataComboFile[[#This Row],[G&S reporting level indicator]]","v":0},{"$f":"T_DataComboFile[[#This Row],[2019/20 Main appropriation_Source]]*T_DataComboFile[[#This Row],[G&S reporting level indicator]]","v":0},{"$f":"T_DataComboFile[[#This Row],[2019/20 Adjusted appropriation_Source]]*T_DataComboFile[[#This Row],[G&S reporting level indicator]]","v":0},{"$f":"T_DataComboFile[[#This Row],[2019/20 Revised estimate_Source]]*T_DataComboFile[[#This Row],[G&S reporting level indicator]]","v":0},{"$f":"T_DataComboFile[[#This Row],[2019/20 Preliminary outcome_Source]]*T_DataComboFile[[#This Row],[G&S reporting level indicator]]","v":0},{"$f":"T_DataComboFile[[#This Row],[2020/21 Original_Source]]*T_DataComboFile[[#This Row],[G&S reporting level indicator]]","v":0},{"$f":"T_DataComboFile[[#This Row],[2020/21 SAB_Source]]*T_DataComboFile[[#This Row],[G&S reporting level indicator]]","v":0},{"$f":"T_DataComboFile[[#This Row],[2020/21 Baseline_Source]]*T_DataComboFile[[#This Row],[G&S reporting level indicator]]","v":0},{"$f":"T_DataComboFile[[#This Row],[2021/22 Baseline_Source]]*T_DataComboFile[[#This Row],[G&S reporting level indicator]]","v":0},{"$f":"T_DataComboFile[[#This Row],[2022/23 Baseline_Source]]*T_DataComboFile[[#This Row],[G&S reporting level indicator]]","v":0},{"$f":"T_DataComboFile[[#This Row],[2023/24 Baseline_Source]]*T_DataComboFile[[#This Row],[G&S reporting level indicator]]","v":0},null,null,null,null,null,null,{"$f":"T_DataComboFile[[#This Row],[2021/22 Baseline]]+T_DataComboFile[[#This Row],[2021/22 Reduction]]+T_DataComboFile[[#This Row],[2021/22 Increase]]","v":0},{"$f":"T_DataComboFile[[#This Row],[2022/23 Baseline]]+T_DataComboFile[[#This Row],[2022/23 Reduction]]+T_DataComboFile[[#This Row],[2022/23 Increase]]","v":0},{"$f":"T_DataComboFile[[#This Row],[2023/24 Baseline]]+T_DataComboFile[[#This Row],[2023/24 Reduction]]+T_DataComboFile[[#This Row],[2023/24 Increase]]","v":0}]
[null,null,"2021_22","ENE2020",36,1,2,null,70172,36,1,2,null,"070172","36|01|02",1,1,2,27,27,"01|01|02|27|27","National","Small Business Development","Administration","Departmental Management",null,"Current","Current payments","Goods and services","Inventory: Medical supplies","Inventory: Medical supplies",null,null,null,0,0,0,0,0,0,0,0,0,0,0,0,0,0,null,{"$f":"IF(T_DataComboFile[[#This Row],[G&S reporting level indicator]]=1,$AX$16,\"Not applicable\")","v":"Not applicable"},{"$f":"IF(AND($AX$16=\"Level 3\",T_DataComboFile[[#This Row],[Econ3]] = \"Goods and services\"),IF(T_DataComboFile[[#This Row],[Econ4]] = T_DataComboFile[[#This Row],[Econ3]],1,0),IF(AND($AX$16=\"Level 4\",T_DataComboFile[[#This Row],[Econ4]] = \"Goods and services\"),0,1))","v":0},{"$f":"T_DataComboFile[[#This Row],[2016/17_Source]]*T_DataComboFile[[#This Row],[G&S reporting level indicator]]","v":0},{"$f":"T_DataComboFile[[#This Row],[2017/18_Source]]*T_DataComboFile[[#This Row],[G&S reporting level indicator]]","v":0},{"$f":"T_DataComboFile[[#This Row],[2018/19_Source]]*T_DataComboFile[[#This Row],[G&S reporting level indicator]]","v":0},{"$f":"T_DataComboFile[[#This Row],[2019/20 Main appropriation_Source]]*T_DataComboFile[[#This Row],[G&S reporting level indicator]]","v":0},{"$f":"T_DataComboFile[[#This Row],[2019/20 Adjusted appropriation_Source]]*T_DataComboFile[[#This Row],[G&S reporting level indicator]]","v":0},{"$f":"T_DataComboFile[[#This Row],[2019/20 Revised estimate_Source]]*T_DataComboFile[[#This Row],[G&S reporting level indicator]]","v":0},{"$f":"T_DataComboFile[[#This Row],[2019/20 Preliminary outcome_Source]]*T_DataComboFile[[#This Row],[G&S reporting level indicator]]","v":0},{"$f":"T_DataComboFile[[#This Row],[2020/21 Original_Source]]*T_DataComboFile[[#This Row],[G&S reporting level indicator]]","v":0},{"$f":"T_DataComboFile[[#This Row],[2020/21 SAB_Source]]*T_DataComboFile[[#This Row],[G&S reporting level indicator]]","v":0},{"$f":"T_DataComboFile[[#This Row],[2020/21 Baseline_Source]]*T_DataComboFile[[#This Row],[G&S reporting level indicator]]","v":0},{"$f":"T_DataComboFile[[#This Row],[2021/22 Baseline_Source]]*T_DataComboFile[[#This Row],[G&S reporting level indicator]]","v":0},{"$f":"T_DataComboFile[[#This Row],[2022/23 Baseline_Source]]*T_DataComboFile[[#This Row],[G&S reporting level indicator]]","v":0},{"$f":"T_DataComboFile[[#This Row],[2023/24 Baseline_Source]]*T_DataComboFile[[#This Row],[G&S reporting level indicator]]","v":0},null,null,null,null,null,null,{"$f":"T_DataComboFile[[#This Row],[2021/22 Baseline]]+T_DataComboFile[[#This Row],[2021/22 Reduction]]+T_DataComboFile[[#This Row],[2021/22 Increase]]","v":0},{"$f":"T_DataComboFile[[#This Row],[2022/23 Baseline]]+T_DataComboFile[[#This Row],[2022/23 Reduction]]+T_DataComboFile[[#This Row],[2022/23 Increase]]","v":0},{"$f":"T_DataComboFile[[#This Row],[2023/24 Baseline]]+T_DataComboFile[[#This Row],[2023/24 Reduction]]+T_DataComboFile[[#This Row],[2023/24 Increase]]","v":0}]
[null,null,"2021_22","ENE2020",36,1,2,null,70173,36,1,2,null,"070173","36|01|02",1,1,2,28,28,"01|01|02|28|28","National","Small Business Development","Administration","Departmental Management",null,"Current","Current payments","Goods and services","Inventory: Medicine","Inventory: Medicine",null,null,null,0,0,0,0,0,0,0,0,0,0,0,0,0,0,null,{"$f":"IF(T_DataComboFile[[#This Row],[G&S reporting level indicator]]=1,$AX$16,\"Not applicable\")","v":"Not applicable"},{"$f":"IF(AND($AX$16=\"Level 3\",T_DataComboFile[[#This Row],[Econ3]] = \"Goods and services\"),IF(T_DataComboFile[[#This Row],[Econ4]] = T_DataComboFile[[#This Row],[Econ3]],1,0),IF(AND($AX$16=\"Level 4\",T_DataComboFile[[#This Row],[Econ4]] = \"Goods and services\"),0,1))","v":0},{"$f":"T_DataComboFile[[#This Row],[2016/17_Source]]*T_DataComboFile[[#This Row],[G&S reporting level indicator]]","v":0},{"$f":"T_DataComboFile[[#This Row],[2017/18_Source]]*T_DataComboFile[[#This Row],[G&S reporting level indicator]]","v":0},{"$f":"T_DataComboFile[[#This Row],[2018/19_Source]]*T_DataComboFile[[#This Row],[G&S reporting level indicator]]","v":0},{"$f":"T_DataComboFile[[#This Row],[2019/20 Main appropriation_Source]]*T_DataComboFile[[#This Row],[G&S reporting level indicator]]","v":0},{"$f":"T_DataComboFile[[#This Row],[2019/20 Adjusted appropriation_Source]]*T_DataComboFile[[#This Row],[G&S reporting level indicator]]","v":0},{"$f":"T_DataComboFile[[#This Row],[2019/20 Revised estimate_Source]]*T_DataComboFile[[#This Row],[G&S reporting level indicator]]","v":0},{"$f":"T_DataComboFile[[#This Row],[2019/20 Preliminary outcome_Source]]*T_DataComboFile[[#This Row],[G&S reporting level indicator]]","v":0},{"$f":"T_DataComboFile[[#This Row],[2020/21 Original_Source]]*T_DataComboFile[[#This Row],[G&S reporting level indicator]]","v":0},{"$f":"T_DataComboFile[[#This Row],[2020/21 SAB_Source]]*T_DataComboFile[[#This Row],[G&S reporting level indicator]]","v":0},{"$f":"T_DataComboFile[[#This Row],[2020/21 Baseline_Source]]*T_DataComboFile[[#This Row],[G&S reporting level indicator]]","v":0},{"$f":"T_DataComboFile[[#This Row],[2021/22 Baseline_Source]]*T_DataComboFile[[#This Row],[G&S reporting level indicator]]","v":0},{"$f":"T_DataComboFile[[#This Row],[2022/23 Baseline_Source]]*T_DataComboFile[[#This Row],[G&S reporting level indicator]]","v":0},{"$f":"T_DataComboFile[[#This Row],[2023/24 Baseline_Source]]*T_DataComboFile[[#This Row],[G&S reporting level indicator]]","v":0},null,null,null,null,null,null,{"$f":"T_DataComboFile[[#This Row],[2021/22 Baseline]]+T_DataComboFile[[#This Row],[2021/22 Reduction]]+T_DataComboFile[[#This Row],[2021/22 Increase]]","v":0},{"$f":"T_DataComboFile[[#This Row],[2022/23 Baseline]]+T_DataComboFile[[#This Row],[2022/23 Reduction]]+T_DataComboFile[[#This Row],[2022/23 Increase]]","v":0},{"$f":"T_DataComboFile[[#This Row],[2023/24 Baseline]]+T_DataComboFile[[#This Row],[2023/24 Reduction]]+T_DataComboFile[[#This Row],[2023/24 Increase]]","v":0}]
[null,null,"2021_22","ENE2020",36,1,2,null,70174,36,1,2,null,"070174","36|01|02",1,1,2,29,29,"01|01|02|29|29","National","Small Business Development","Administration","Departmental Management",null,"Current","Current payments","Goods and services","Medsas inventory interface","Medsas inventory interface",null,null,null,0,0,0,0,0,0,0,0,0,0,0,0,0,0,null,{"$f":"IF(T_DataComboFile[[#This Row],[G&S reporting level indicator]]=1,$AX$16,\"Not applicable\")","v":"Not applicable"},{"$f":"IF(AND($AX$16=\"Level 3\",T_DataComboFile[[#This Row],[Econ3]] = \"Goods and services\"),IF(T_DataComboFile[[#This Row],[Econ4]] = T_DataComboFile[[#This Row],[Econ3]],1,0),IF(AND($AX$16=\"Level 4\",T_DataComboFile[[#This Row],[Econ4]] = \"Goods and services\"),0,1))","v":0},{"$f":"T_DataComboFile[[#This Row],[2016/17_Source]]*T_DataComboFile[[#This Row],[G&S reporting level indicator]]","v":0},{"$f":"T_DataComboFile[[#This Row],[2017/18_Source]]*T_DataComboFile[[#This Row],[G&S reporting level indicator]]","v":0},{"$f":"T_DataComboFile[[#This Row],[2018/19_Source]]*T_DataComboFile[[#This Row],[G&S reporting level indicator]]","v":0},{"$f":"T_DataComboFile[[#This Row],[2019/20 Main appropriation_Source]]*T_DataComboFile[[#This Row],[G&S reporting level indicator]]","v":0},{"$f":"T_DataComboFile[[#This Row],[2019/20 Adjusted appropriation_Source]]*T_DataComboFile[[#This Row],[G&S reporting level indicator]]","v":0},{"$f":"T_DataComboFile[[#This Row],[2019/20 Revised estimate_Source]]*T_DataComboFile[[#This Row],[G&S reporting level indicator]]","v":0},{"$f":"T_DataComboFile[[#This Row],[2019/20 Preliminary outcome_Source]]*T_DataComboFile[[#This Row],[G&S reporting level indicator]]","v":0},{"$f":"T_DataComboFile[[#This Row],[2020/21 Original_Source]]*T_DataComboFile[[#This Row],[G&S reporting level indicator]]","v":0},{"$f":"T_DataComboFile[[#This Row],[2020/21 SAB_Source]]*T_DataComboFile[[#This Row],[G&S reporting level indicator]]","v":0},{"$f":"T_DataComboFile[[#This Row],[2020/21 Baseline_Source]]*T_DataComboFile[[#This Row],[G&S reporting level indicator]]","v":0},{"$f":"T_DataComboFile[[#This Row],[2021/22 Baseline_Source]]*T_DataComboFile[[#This Row],[G&S reporting level indicator]]","v":0},{"$f":"T_DataComboFile[[#This Row],[2022/23 Baseline_Source]]*T_DataComboFile[[#This Row],[G&S reporting level indicator]]","v":0},{"$f":"T_DataComboFile[[#This Row],[2023/24 Baseline_Source]]*T_DataComboFile[[#This Row],[G&S reporting level indicator]]","v":0},null,null,null,null,null,null,{"$f":"T_DataComboFile[[#This Row],[2021/22 Baseline]]+T_DataComboFile[[#This Row],[2021/22 Reduction]]+T_DataComboFile[[#This Row],[2021/22 Increase]]","v":0},{"$f":"T_DataComboFile[[#This Row],[2022/23 Baseline]]+T_DataComboFile[[#This Row],[2022/23 Reduction]]+T_DataComboFile[[#This Row],[2022/23 Increase]]","v":0},{"$f":"T_DataComboFile[[#This Row],[2023/24 Baseline]]+T_DataComboFile[[#This Row],[2023/24 Reduction]]+T_DataComboFile[[#This Row],[2023/24 Increase]]","v":0}]
[null,null,"2021_22","ENE2020",36,1,2,null,70175,36,1,2,null,"070175","36|01|02",1,1,2,30,30,"01|01|02|30|30","National","Small Business Development","Administration","Departmental Management",null,"Current","Current payments","Goods and services","Inventory: Other supplies","Inventory: Other supplies",null,null,null,0,0,0,0,0,0,0,0,0,0,0,0,0,0,null,{"$f":"IF(T_DataComboFile[[#This Row],[G&S reporting level indicator]]=1,$AX$16,\"Not applicable\")","v":"Not applicable"},{"$f":"IF(AND($AX$16=\"Level 3\",T_DataComboFile[[#This Row],[Econ3]] = \"Goods and services\"),IF(T_DataComboFile[[#This Row],[Econ4]] = T_DataComboFile[[#This Row],[Econ3]],1,0),IF(AND($AX$16=\"Level 4\",T_DataComboFile[[#This Row],[Econ4]] = \"Goods and services\"),0,1))","v":0},{"$f":"T_DataComboFile[[#This Row],[2016/17_Source]]*T_DataComboFile[[#This Row],[G&S reporting level indicator]]","v":0},{"$f":"T_DataComboFile[[#This Row],[2017/18_Source]]*T_DataComboFile[[#This Row],[G&S reporting level indicator]]","v":0},{"$f":"T_DataComboFile[[#This Row],[2018/19_Source]]*T_DataComboFile[[#This Row],[G&S reporting level indicator]]","v":0},{"$f":"T_DataComboFile[[#This Row],[2019/20 Main appropriation_Source]]*T_DataComboFile[[#This Row],[G&S reporting level indicator]]","v":0},{"$f":"T_DataComboFile[[#This Row],[2019/20 Adjusted appropriation_Source]]*T_DataComboFile[[#This Row],[G&S reporting level indicator]]","v":0},{"$f":"T_DataComboFile[[#This Row],[2019/20 Revised estimate_Source]]*T_DataComboFile[[#This Row],[G&S reporting level indicator]]","v":0},{"$f":"T_DataComboFile[[#This Row],[2019/20 Preliminary outcome_Source]]*T_DataComboFile[[#This Row],[G&S reporting level indicator]]","v":0},{"$f":"T_DataComboFile[[#This Row],[2020/21 Original_Source]]*T_DataComboFile[[#This Row],[G&S reporting level indicator]]","v":0},{"$f":"T_DataComboFile[[#This Row],[2020/21 SAB_Source]]*T_DataComboFile[[#This Row],[G&S reporting level indicator]]","v":0},{"$f":"T_DataComboFile[[#This Row],[2020/21 Baseline_Source]]*T_DataComboFile[[#This Row],[G&S reporting level indicator]]","v":0},{"$f":"T_DataComboFile[[#This Row],[2021/22 Baseline_Source]]*T_DataComboFile[[#This Row],[G&S reporting level indicator]]","v":0},{"$f":"T_DataComboFile[[#This Row],[2022/23 Baseline_Source]]*T_DataComboFile[[#This Row],[G&S reporting level indicator]]","v":0},{"$f":"T_DataComboFile[[#This Row],[2023/24 Baseline_Source]]*T_DataComboFile[[#This Row],[G&S reporting level indicator]]","v":0},null,null,null,null,null,null,{"$f":"T_DataComboFile[[#This Row],[2021/22 Baseline]]+T_DataComboFile[[#This Row],[2021/22 Reduction]]+T_DataComboFile[[#This Row],[2021/22 Increase]]","v":0},{"$f":"T_DataComboFile[[#This Row],[2022/23 Baseline]]+T_DataComboFile[[#This Row],[2022/23 Reduction]]+T_DataComboFile[[#This Row],[2022/23 Increase]]","v":0},{"$f":"T_DataComboFile[[#This Row],[2023/24 Baseline]]+T_DataComboFile[[#This Row],[2023/24 Reduction]]+T_DataComboFile[[#This Row],[2023/24 Increase]]","v":0}]
["NAT|Non-transfer item","36|Consumable supplies","2021_22","ENE2020",36,1,2,17206,70176,36,1,2,17206,"070176","36|01|02",1,1,2,31,31,"01|01|02|31|31","National","Small Business Development","Administration","Departmental Management","Non-transfer item","Current","Current payments","Goods and services","Consumable supplies","Consumable supplies","Economic development","Industrialisation and exports","NAT",9,17,12,20,22,22,22,14,14,14,16,18,19,1,null,{"$f":"IF(T_DataComboFile[[#This Row],[G&S reporting level indicator]]=1,$AX$16,\"Not applicable\")","v":"Not applicable"},{"$f":"IF(AND($AX$16=\"Level 3\",T_DataComboFile[[#This Row],[Econ3]] = \"Goods and services\"),IF(T_DataComboFile[[#This Row],[Econ4]] = T_DataComboFile[[#This Row],[Econ3]],1,0),IF(AND($AX$16=\"Level 4\",T_DataComboFile[[#This Row],[Econ4]] = \"Goods and services\"),0,1))","v":0},{"$f":"T_DataComboFile[[#This Row],[2016/17_Source]]*T_DataComboFile[[#This Row],[G&S reporting level indicator]]","v":0},{"$f":"T_DataComboFile[[#This Row],[2017/18_Source]]*T_DataComboFile[[#This Row],[G&S reporting level indicator]]","v":0},{"$f":"T_DataComboFile[[#This Row],[2018/19_Source]]*T_DataComboFile[[#This Row],[G&S reporting level indicator]]","v":0},{"$f":"T_DataComboFile[[#This Row],[2019/20 Main appropriation_Source]]*T_DataComboFile[[#This Row],[G&S reporting level indicator]]","v":0},{"$f":"T_DataComboFile[[#This Row],[2019/20 Adjusted appropriation_Source]]*T_DataComboFile[[#This Row],[G&S reporting level indicator]]","v":0},{"$f":"T_DataComboFile[[#This Row],[2019/20 Revised estimate_Source]]*T_DataComboFile[[#This Row],[G&S reporting level indicator]]","v":0},{"$f":"T_DataComboFile[[#This Row],[2019/20 Preliminary outcome_Source]]*T_DataComboFile[[#This Row],[G&S reporting level indicator]]","v":0},{"$f":"T_DataComboFile[[#This Row],[2020/21 Original_Source]]*T_DataComboFile[[#This Row],[G&S reporting level indicator]]","v":0},{"$f":"T_DataComboFile[[#This Row],[2020/21 SAB_Source]]*T_DataComboFile[[#This Row],[G&S reporting level indicator]]","v":0},{"$f":"T_DataComboFile[[#This Row],[2020/21 Baseline_Source]]*T_DataComboFile[[#This Row],[G&S reporting level indicator]]","v":0},{"$f":"T_DataComboFile[[#This Row],[2021/22 Baseline_Source]]*T_DataComboFile[[#This Row],[G&S reporting level indicator]]","v":0},{"$f":"T_DataComboFile[[#This Row],[2022/23 Baseline_Source]]*T_DataComboFile[[#This Row],[G&S reporting level indicator]]","v":0},{"$f":"T_DataComboFile[[#This Row],[2023/24 Baseline_Source]]*T_DataComboFile[[#This Row],[G&S reporting level indicator]]","v":0},null,null,null,null,null,null,{"$f":"T_DataComboFile[[#This Row],[2021/22 Baseline]]+T_DataComboFile[[#This Row],[2021/22 Reduction]]+T_DataComboFile[[#This Row],[2021/22 Increase]]","v":0},{"$f":"T_DataComboFile[[#This Row],[2022/23 Baseline]]+T_DataComboFile[[#This Row],[2022/23 Reduction]]+T_DataComboFile[[#This Row],[2022/23 Increase]]","v":0},{"$f":"T_DataComboFile[[#This Row],[2023/24 Baseline]]+T_DataComboFile[[#This Row],[2023/24 Reduction]]+T_DataComboFile[[#This Row],[2023/24 Increase]]","v":0}]
["NAT|Non-transfer item","36|Consumables: Stationery, printing and office supplies","2021_22","ENE2020",36,1,2,17207,70177,36,1,2,17207,"070177","36|01|02",1,1,2,32,32,"01|01|02|32|32","National","Small Business Development","Administration","Departmental Management","Non-transfer item","Current","Current payments","Goods and services","Consumables: Stationery, printing and office supplies","Consumables: Stationery, printing and office supplies","Economic development","Industrialisation and exports","NAT",48,85,52,120,120,120,120,54,54,54,58,61,64,1,null,{"$f":"IF(T_DataComboFile[[#This Row],[G&S reporting level indicator]]=1,$AX$16,\"Not applicable\")","v":"Not applicable"},{"$f":"IF(AND($AX$16=\"Level 3\",T_DataComboFile[[#This Row],[Econ3]] = \"Goods and services\"),IF(T_DataComboFile[[#This Row],[Econ4]] = T_DataComboFile[[#This Row],[Econ3]],1,0),IF(AND($AX$16=\"Level 4\",T_DataComboFile[[#This Row],[Econ4]] = \"Goods and services\"),0,1))","v":0},{"$f":"T_DataComboFile[[#This Row],[2016/17_Source]]*T_DataComboFile[[#This Row],[G&S reporting level indicator]]","v":0},{"$f":"T_DataComboFile[[#This Row],[2017/18_Source]]*T_DataComboFile[[#This Row],[G&S reporting level indicator]]","v":0},{"$f":"T_DataComboFile[[#This Row],[2018/19_Source]]*T_DataComboFile[[#This Row],[G&S reporting level indicator]]","v":0},{"$f":"T_DataComboFile[[#This Row],[2019/20 Main appropriation_Source]]*T_DataComboFile[[#This Row],[G&S reporting level indicator]]","v":0},{"$f":"T_DataComboFile[[#This Row],[2019/20 Adjusted appropriation_Source]]*T_DataComboFile[[#This Row],[G&S reporting level indicator]]","v":0},{"$f":"T_DataComboFile[[#This Row],[2019/20 Revised estimate_Source]]*T_DataComboFile[[#This Row],[G&S reporting level indicator]]","v":0},{"$f":"T_DataComboFile[[#This Row],[2019/20 Preliminary outcome_Source]]*T_DataComboFile[[#This Row],[G&S reporting level indicator]]","v":0},{"$f":"T_DataComboFile[[#This Row],[2020/21 Original_Source]]*T_DataComboFile[[#This Row],[G&S reporting level indicator]]","v":0},{"$f":"T_DataComboFile[[#This Row],[2020/21 SAB_Source]]*T_DataComboFile[[#This Row],[G&S reporting level indicator]]","v":0},{"$f":"T_DataComboFile[[#This Row],[2020/21 Baseline_Source]]*T_DataComboFile[[#This Row],[G&S reporting level indicator]]","v":0},{"$f":"T_DataComboFile[[#This Row],[2021/22 Baseline_Source]]*T_DataComboFile[[#This Row],[G&S reporting level indicator]]","v":0},{"$f":"T_DataComboFile[[#This Row],[2022/23 Baseline_Source]]*T_DataComboFile[[#This Row],[G&S reporting level indicator]]","v":0},{"$f":"T_DataComboFile[[#This Row],[2023/24 Baseline_Source]]*T_DataComboFile[[#This Row],[G&S reporting level indicator]]","v":0},null,null,null,null,null,null,{"$f":"T_DataComboFile[[#This Row],[2021/22 Baseline]]+T_DataComboFile[[#This Row],[2021/22 Reduction]]+T_DataComboFile[[#This Row],[2021/22 Increase]]","v":0},{"$f":"T_DataComboFile[[#This Row],[2022/23 Baseline]]+T_DataComboFile[[#This Row],[2022/23 Reduction]]+T_DataComboFile[[#This Row],[2022/23 Increase]]","v":0},{"$f":"T_DataComboFile[[#This Row],[2023/24 Baseline]]+T_DataComboFile[[#This Row],[2023/24 Reduction]]+T_DataComboFile[[#This Row],[2023/24 Increase]]","v":0}]
["NAT|Non-transfer item","36|Operating leases","2021_22","ENE2020",36,1,2,17208,70178,36,1,2,17208,"070178","36|01|02",1,1,2,33,33,"01|01|02|33|33","National","Small Business Development","Administration","Departmental Management","Non-transfer item","Current","Current payments","Goods and services","Operating leases","Operating leases","Economic development","Industrialisation and exports","NAT",3,0,0,0,0,0,0,0,0,0,0,0,0,1,null,{"$f":"IF(T_DataComboFile[[#This Row],[G&S reporting level indicator]]=1,$AX$16,\"Not applicable\")","v":"Not applicable"},{"$f":"IF(AND($AX$16=\"Level 3\",T_DataComboFile[[#This Row],[Econ3]] = \"Goods and services\"),IF(T_DataComboFile[[#This Row],[Econ4]] = T_DataComboFile[[#This Row],[Econ3]],1,0),IF(AND($AX$16=\"Level 4\",T_DataComboFile[[#This Row],[Econ4]] = \"Goods and services\"),0,1))","v":0},{"$f":"T_DataComboFile[[#This Row],[2016/17_Source]]*T_DataComboFile[[#This Row],[G&S reporting level indicator]]","v":0},{"$f":"T_DataComboFile[[#This Row],[2017/18_Source]]*T_DataComboFile[[#This Row],[G&S reporting level indicator]]","v":0},{"$f":"T_DataComboFile[[#This Row],[2018/19_Source]]*T_DataComboFile[[#This Row],[G&S reporting level indicator]]","v":0},{"$f":"T_DataComboFile[[#This Row],[2019/20 Main appropriation_Source]]*T_DataComboFile[[#This Row],[G&S reporting level indicator]]","v":0},{"$f":"T_DataComboFile[[#This Row],[2019/20 Adjusted appropriation_Source]]*T_DataComboFile[[#This Row],[G&S reporting level indicator]]","v":0},{"$f":"T_DataComboFile[[#This Row],[2019/20 Revised estimate_Source]]*T_DataComboFile[[#This Row],[G&S reporting level indicator]]","v":0},{"$f":"T_DataComboFile[[#This Row],[2019/20 Preliminary outcome_Source]]*T_DataComboFile[[#This Row],[G&S reporting level indicator]]","v":0},{"$f":"T_DataComboFile[[#This Row],[2020/21 Original_Source]]*T_DataComboFile[[#This Row],[G&S reporting level indicator]]","v":0},{"$f":"T_DataComboFile[[#This Row],[2020/21 SAB_Source]]*T_DataComboFile[[#This Row],[G&S reporting level indicator]]","v":0},{"$f":"T_DataComboFile[[#This Row],[2020/21 Baseline_Source]]*T_DataComboFile[[#This Row],[G&S reporting level indicator]]","v":0},{"$f":"T_DataComboFile[[#This Row],[2021/22 Baseline_Source]]*T_DataComboFile[[#This Row],[G&S reporting level indicator]]","v":0},{"$f":"T_DataComboFile[[#This Row],[2022/23 Baseline_Source]]*T_DataComboFile[[#This Row],[G&S reporting level indicator]]","v":0},{"$f":"T_DataComboFile[[#This Row],[2023/24 Baseline_Source]]*T_DataComboFile[[#This Row],[G&S reporting level indicator]]","v":0},null,null,null,null,null,null,{"$f":"T_DataComboFile[[#This Row],[2021/22 Baseline]]+T_DataComboFile[[#This Row],[2021/22 Reduction]]+T_DataComboFile[[#This Row],[2021/22 Increase]]","v":0},{"$f":"T_DataComboFile[[#This Row],[2022/23 Baseline]]+T_DataComboFile[[#This Row],[2022/23 Reduction]]+T_DataComboFile[[#This Row],[2022/23 Increase]]","v":0},{"$f":"T_DataComboFile[[#This Row],[2023/24 Baseline]]+T_DataComboFile[[#This Row],[2023/24 Reduction]]+T_DataComboFile[[#This Row],[2023/24 Increase]]","v":0}]
[null,null,"2021_22","ENE2020",36,1,2,null,70179,36,1,2,null,"070179","36|01|02",1,1,2,34,34,"01|01|02|34|34","National","Small Business Development","Administration","Departmental Management",null,"Current","Current payments","Goods and services","Rental and hiring","Rental and hiring",null,null,null,0,0,0,0,0,0,0,0,0,0,0,0,0,0,null,{"$f":"IF(T_DataComboFile[[#This Row],[G&S reporting level indicator]]=1,$AX$16,\"Not applicable\")","v":"Not applicable"},{"$f":"IF(AND($AX$16=\"Level 3\",T_DataComboFile[[#This Row],[Econ3]] = \"Goods and services\"),IF(T_DataComboFile[[#This Row],[Econ4]] = T_DataComboFile[[#This Row],[Econ3]],1,0),IF(AND($AX$16=\"Level 4\",T_DataComboFile[[#This Row],[Econ4]] = \"Goods and services\"),0,1))","v":0},{"$f":"T_DataComboFile[[#This Row],[2016/17_Source]]*T_DataComboFile[[#This Row],[G&S reporting level indicator]]","v":0},{"$f":"T_DataComboFile[[#This Row],[2017/18_Source]]*T_DataComboFile[[#This Row],[G&S reporting level indicator]]","v":0},{"$f":"T_DataComboFile[[#This Row],[2018/19_Source]]*T_DataComboFile[[#This Row],[G&S reporting level indicator]]","v":0},{"$f":"T_DataComboFile[[#This Row],[2019/20 Main appropriation_Source]]*T_DataComboFile[[#This Row],[G&S reporting level indicator]]","v":0},{"$f":"T_DataComboFile[[#This Row],[2019/20 Adjusted appropriation_Source]]*T_DataComboFile[[#This Row],[G&S reporting level indicator]]","v":0},{"$f":"T_DataComboFile[[#This Row],[2019/20 Revised estimate_Source]]*T_DataComboFile[[#This Row],[G&S reporting level indicator]]","v":0},{"$f":"T_DataComboFile[[#This Row],[2019/20 Preliminary outcome_Source]]*T_DataComboFile[[#This Row],[G&S reporting level indicator]]","v":0},{"$f":"T_DataComboFile[[#This Row],[2020/21 Original_Source]]*T_DataComboFile[[#This Row],[G&S reporting level indicator]]","v":0},{"$f":"T_DataComboFile[[#This Row],[2020/21 SAB_Source]]*T_DataComboFile[[#This Row],[G&S reporting level indicator]]","v":0},{"$f":"T_DataComboFile[[#This Row],[2020/21 Baseline_Source]]*T_DataComboFile[[#This Row],[G&S reporting level indicator]]","v":0},{"$f":"T_DataComboFile[[#This Row],[2021/22 Baseline_Source]]*T_DataComboFile[[#This Row],[G&S reporting level indicator]]","v":0},{"$f":"T_DataComboFile[[#This Row],[2022/23 Baseline_Source]]*T_DataComboFile[[#This Row],[G&S reporting level indicator]]","v":0},{"$f":"T_DataComboFile[[#This Row],[2023/24 Baseline_Source]]*T_DataComboFile[[#This Row],[G&S reporting level indicator]]","v":0},null,null,null,null,null,null,{"$f":"T_DataComboFile[[#This Row],[2021/22 Baseline]]+T_DataComboFile[[#This Row],[2021/22 Reduction]]+T_DataComboFile[[#This Row],[2021/22 Increase]]","v":0},{"$f":"T_DataComboFile[[#This Row],[2022/23 Baseline]]+T_DataComboFile[[#This Row],[2022/23 Reduction]]+T_DataComboFile[[#This Row],[2022/23 Increase]]","v":0},{"$f":"T_DataComboFile[[#This Row],[2023/24 Baseline]]+T_DataComboFile[[#This Row],[2023/24 Reduction]]+T_DataComboFile[[#This Row],[2023/24 Increase]]","v":0}]
[null,null,"2021_22","ENE2020",36,1,2,null,70180,36,1,2,null,"070180","36|01|02",1,1,2,35,35,"01|01|02|35|35","National","Small Business Development","Administration","Departmental Management",null,"Current","Current payments","Goods and services","Property payments","Property payments",null,null,null,0,0,0,0,0,0,0,0,0,0,0,0,0,0,null,{"$f":"IF(T_DataComboFile[[#This Row],[G&S reporting level indicator]]=1,$AX$16,\"Not applicable\")","v":"Not applicable"},{"$f":"IF(AND($AX$16=\"Level 3\",T_DataComboFile[[#This Row],[Econ3]] = \"Goods and services\"),IF(T_DataComboFile[[#This Row],[Econ4]] = T_DataComboFile[[#This Row],[Econ3]],1,0),IF(AND($AX$16=\"Level 4\",T_DataComboFile[[#This Row],[Econ4]] = \"Goods and services\"),0,1))","v":0},{"$f":"T_DataComboFile[[#This Row],[2016/17_Source]]*T_DataComboFile[[#This Row],[G&S reporting level indicator]]","v":0},{"$f":"T_DataComboFile[[#This Row],[2017/18_Source]]*T_DataComboFile[[#This Row],[G&S reporting level indicator]]","v":0},{"$f":"T_DataComboFile[[#This Row],[2018/19_Source]]*T_DataComboFile[[#This Row],[G&S reporting level indicator]]","v":0},{"$f":"T_DataComboFile[[#This Row],[2019/20 Main appropriation_Source]]*T_DataComboFile[[#This Row],[G&S reporting level indicator]]","v":0},{"$f":"T_DataComboFile[[#This Row],[2019/20 Adjusted appropriation_Source]]*T_DataComboFile[[#This Row],[G&S reporting level indicator]]","v":0},{"$f":"T_DataComboFile[[#This Row],[2019/20 Revised estimate_Source]]*T_DataComboFile[[#This Row],[G&S reporting level indicator]]","v":0},{"$f":"T_DataComboFile[[#This Row],[2019/20 Preliminary outcome_Source]]*T_DataComboFile[[#This Row],[G&S reporting level indicator]]","v":0},{"$f":"T_DataComboFile[[#This Row],[2020/21 Original_Source]]*T_DataComboFile[[#This Row],[G&S reporting level indicator]]","v":0},{"$f":"T_DataComboFile[[#This Row],[2020/21 SAB_Source]]*T_DataComboFile[[#This Row],[G&S reporting level indicator]]","v":0},{"$f":"T_DataComboFile[[#This Row],[2020/21 Baseline_Source]]*T_DataComboFile[[#This Row],[G&S reporting level indicator]]","v":0},{"$f":"T_DataComboFile[[#This Row],[2021/22 Baseline_Source]]*T_DataComboFile[[#This Row],[G&S reporting level indicator]]","v":0},{"$f":"T_DataComboFile[[#This Row],[2022/23 Baseline_Source]]*T_DataComboFile[[#This Row],[G&S reporting level indicator]]","v":0},{"$f":"T_DataComboFile[[#This Row],[2023/24 Baseline_Source]]*T_DataComboFile[[#This Row],[G&S reporting level indicator]]","v":0},null,null,null,null,null,null,{"$f":"T_DataComboFile[[#This Row],[2021/22 Baseline]]+T_DataComboFile[[#This Row],[2021/22 Reduction]]+T_DataComboFile[[#This Row],[2021/22 Increase]]","v":0},{"$f":"T_DataComboFile[[#This Row],[2022/23 Baseline]]+T_DataComboFile[[#This Row],[2022/23 Reduction]]+T_DataComboFile[[#This Row],[2022/23 Increase]]","v":0},{"$f":"T_DataComboFile[[#This Row],[2023/24 Baseline]]+T_DataComboFile[[#This Row],[2023/24 Reduction]]+T_DataComboFile[[#This Row],[2023/24 Increase]]","v":0}]
[null,null,"2021_22","ENE2020",36,1,2,null,70181,36,1,2,null,"070181","36|01|02",1,1,2,36,36,"01|01|02|36|36","National","Small Business Development","Administration","Departmental Management",null,"Current","Current payments","Goods and services","Transport provided: Departmental activity","Transport provided: Departmental activity",null,null,null,0,0,0,0,0,0,0,0,0,0,0,0,0,0,null,{"$f":"IF(T_DataComboFile[[#This Row],[G&S reporting level indicator]]=1,$AX$16,\"Not applicable\")","v":"Not applicable"},{"$f":"IF(AND($AX$16=\"Level 3\",T_DataComboFile[[#This Row],[Econ3]] = \"Goods and services\"),IF(T_DataComboFile[[#This Row],[Econ4]] = T_DataComboFile[[#This Row],[Econ3]],1,0),IF(AND($AX$16=\"Level 4\",T_DataComboFile[[#This Row],[Econ4]] = \"Goods and services\"),0,1))","v":0},{"$f":"T_DataComboFile[[#This Row],[2016/17_Source]]*T_DataComboFile[[#This Row],[G&S reporting level indicator]]","v":0},{"$f":"T_DataComboFile[[#This Row],[2017/18_Source]]*T_DataComboFile[[#This Row],[G&S reporting level indicator]]","v":0},{"$f":"T_DataComboFile[[#This Row],[2018/19_Source]]*T_DataComboFile[[#This Row],[G&S reporting level indicator]]","v":0},{"$f":"T_DataComboFile[[#This Row],[2019/20 Main appropriation_Source]]*T_DataComboFile[[#This Row],[G&S reporting level indicator]]","v":0},{"$f":"T_DataComboFile[[#This Row],[2019/20 Adjusted appropriation_Source]]*T_DataComboFile[[#This Row],[G&S reporting level indicator]]","v":0},{"$f":"T_DataComboFile[[#This Row],[2019/20 Revised estimate_Source]]*T_DataComboFile[[#This Row],[G&S reporting level indicator]]","v":0},{"$f":"T_DataComboFile[[#This Row],[2019/20 Preliminary outcome_Source]]*T_DataComboFile[[#This Row],[G&S reporting level indicator]]","v":0},{"$f":"T_DataComboFile[[#This Row],[2020/21 Original_Source]]*T_DataComboFile[[#This Row],[G&S reporting level indicator]]","v":0},{"$f":"T_DataComboFile[[#This Row],[2020/21 SAB_Source]]*T_DataComboFile[[#This Row],[G&S reporting level indicator]]","v":0},{"$f":"T_DataComboFile[[#This Row],[2020/21 Baseline_Source]]*T_DataComboFile[[#This Row],[G&S reporting level indicator]]","v":0},{"$f":"T_DataComboFile[[#This Row],[2021/22 Baseline_Source]]*T_DataComboFile[[#This Row],[G&S reporting level indicator]]","v":0},{"$f":"T_DataComboFile[[#This Row],[2022/23 Baseline_Source]]*T_DataComboFile[[#This Row],[G&S reporting level indicator]]","v":0},{"$f":"T_DataComboFile[[#This Row],[2023/24 Baseline_Source]]*T_DataComboFile[[#This Row],[G&S reporting level indicator]]","v":0},null,null,null,null,null,null,{"$f":"T_DataComboFile[[#This Row],[2021/22 Baseline]]+T_DataComboFile[[#This Row],[2021/22 Reduction]]+T_DataComboFile[[#This Row],[2021/22 Increase]]","v":0},{"$f":"T_DataComboFile[[#This Row],[2022/23 Baseline]]+T_DataComboFile[[#This Row],[2022/23 Reduction]]+T_DataComboFile[[#This Row],[2022/23 Increase]]","v":0},{"$f":"T_DataComboFile[[#This Row],[2023/24 Baseline]]+T_DataComboFile[[#This Row],[2023/24 Reduction]]+T_DataComboFile[[#This Row],[2023/24 Increase]]","v":0}]
["NAT|Non-transfer item","36|Travel and subsistence","2021_22","ENE2020",36,1,2,17209,70182,36,1,2,17209,"070182","36|01|02",1,1,2,37,37,"01|01|02|37|37","National","Small Business Development","Administration","Departmental Management","Non-transfer item","Current","Current payments","Goods and services","Travel and subsistence","Travel and subsistence","Economic development","Industrialisation and exports","NAT",2156,2811,1091,2019,1614,1614,1614,1278,578,1278,1480,1686,1760,1,null,{"$f":"IF(T_DataComboFile[[#This Row],[G&S reporting level indicator]]=1,$AX$16,\"Not applicable\")","v":"Not applicable"},{"$f":"IF(AND($AX$16=\"Level 3\",T_DataComboFile[[#This Row],[Econ3]] = \"Goods and services\"),IF(T_DataComboFile[[#This Row],[Econ4]] = T_DataComboFile[[#This Row],[Econ3]],1,0),IF(AND($AX$16=\"Level 4\",T_DataComboFile[[#This Row],[Econ4]] = \"Goods and services\"),0,1))","v":0},{"$f":"T_DataComboFile[[#This Row],[2016/17_Source]]*T_DataComboFile[[#This Row],[G&S reporting level indicator]]","v":0},{"$f":"T_DataComboFile[[#This Row],[2017/18_Source]]*T_DataComboFile[[#This Row],[G&S reporting level indicator]]","v":0},{"$f":"T_DataComboFile[[#This Row],[2018/19_Source]]*T_DataComboFile[[#This Row],[G&S reporting level indicator]]","v":0},{"$f":"T_DataComboFile[[#This Row],[2019/20 Main appropriation_Source]]*T_DataComboFile[[#This Row],[G&S reporting level indicator]]","v":0},{"$f":"T_DataComboFile[[#This Row],[2019/20 Adjusted appropriation_Source]]*T_DataComboFile[[#This Row],[G&S reporting level indicator]]","v":0},{"$f":"T_DataComboFile[[#This Row],[2019/20 Revised estimate_Source]]*T_DataComboFile[[#This Row],[G&S reporting level indicator]]","v":0},{"$f":"T_DataComboFile[[#This Row],[2019/20 Preliminary outcome_Source]]*T_DataComboFile[[#This Row],[G&S reporting level indicator]]","v":0},{"$f":"T_DataComboFile[[#This Row],[2020/21 Original_Source]]*T_DataComboFile[[#This Row],[G&S reporting level indicator]]","v":0},{"$f":"T_DataComboFile[[#This Row],[2020/21 SAB_Source]]*T_DataComboFile[[#This Row],[G&S reporting level indicator]]","v":0},{"$f":"T_DataComboFile[[#This Row],[2020/21 Baseline_Source]]*T_DataComboFile[[#This Row],[G&S reporting level indicator]]","v":0},{"$f":"T_DataComboFile[[#This Row],[2021/22 Baseline_Source]]*T_DataComboFile[[#This Row],[G&S reporting level indicator]]","v":0},{"$f":"T_DataComboFile[[#This Row],[2022/23 Baseline_Source]]*T_DataComboFile[[#This Row],[G&S reporting level indicator]]","v":0},{"$f":"T_DataComboFile[[#This Row],[2023/24 Baseline_Source]]*T_DataComboFile[[#This Row],[G&S reporting level indicator]]","v":0},null,null,null,null,null,null,{"$f":"T_DataComboFile[[#This Row],[2021/22 Baseline]]+T_DataComboFile[[#This Row],[2021/22 Reduction]]+T_DataComboFile[[#This Row],[2021/22 Increase]]","v":0},{"$f":"T_DataComboFile[[#This Row],[2022/23 Baseline]]+T_DataComboFile[[#This Row],[2022/23 Reduction]]+T_DataComboFile[[#This Row],[2022/23 Increase]]","v":0},{"$f":"T_DataComboFile[[#This Row],[2023/24 Baseline]]+T_DataComboFile[[#This Row],[2023/24 Reduction]]+T_DataComboFile[[#This Row],[2023/24 Increase]]","v":0}]
["NAT|Non-transfer item","36|Training and development","2021_22","ENE2020",36,1,2,17210,70183,36,1,2,17210,"070183","36|01|02",1,1,2,38,38,"01|01|02|38|38","National","Small Business Development","Administration","Departmental Management","Non-transfer item","Current","Current payments","Goods and services","Training and development","Training and development","Economic development","Industrialisation and exports","NAT",26,0,0,0,0,0,0,0,0,0,0,0,0,1,null,{"$f":"IF(T_DataComboFile[[#This Row],[G&S reporting level indicator]]=1,$AX$16,\"Not applicable\")","v":"Not applicable"},{"$f":"IF(AND($AX$16=\"Level 3\",T_DataComboFile[[#This Row],[Econ3]] = \"Goods and services\"),IF(T_DataComboFile[[#This Row],[Econ4]] = T_DataComboFile[[#This Row],[Econ3]],1,0),IF(AND($AX$16=\"Level 4\",T_DataComboFile[[#This Row],[Econ4]] = \"Goods and services\"),0,1))","v":0},{"$f":"T_DataComboFile[[#This Row],[2016/17_Source]]*T_DataComboFile[[#This Row],[G&S reporting level indicator]]","v":0},{"$f":"T_DataComboFile[[#This Row],[2017/18_Source]]*T_DataComboFile[[#This Row],[G&S reporting level indicator]]","v":0},{"$f":"T_DataComboFile[[#This Row],[2018/19_Source]]*T_DataComboFile[[#This Row],[G&S reporting level indicator]]","v":0},{"$f":"T_DataComboFile[[#This Row],[2019/20 Main appropriation_Source]]*T_DataComboFile[[#This Row],[G&S reporting level indicator]]","v":0},{"$f":"T_DataComboFile[[#This Row],[2019/20 Adjusted appropriation_Source]]*T_DataComboFile[[#This Row],[G&S reporting level indicator]]","v":0},{"$f":"T_DataComboFile[[#This Row],[2019/20 Revised estimate_Source]]*T_DataComboFile[[#This Row],[G&S reporting level indicator]]","v":0},{"$f":"T_DataComboFile[[#This Row],[2019/20 Preliminary outcome_Source]]*T_DataComboFile[[#This Row],[G&S reporting level indicator]]","v":0},{"$f":"T_DataComboFile[[#This Row],[2020/21 Original_Source]]*T_DataComboFile[[#This Row],[G&S reporting level indicator]]","v":0},{"$f":"T_DataComboFile[[#This Row],[2020/21 SAB_Source]]*T_DataComboFile[[#This Row],[G&S reporting level indicator]]","v":0},{"$f":"T_DataComboFile[[#This Row],[2020/21 Baseline_Source]]*T_DataComboFile[[#This Row],[G&S reporting level indicator]]","v":0},{"$f":"T_DataComboFile[[#This Row],[2021/22 Baseline_Source]]*T_DataComboFile[[#This Row],[G&S reporting level indicator]]","v":0},{"$f":"T_DataComboFile[[#This Row],[2022/23 Baseline_Source]]*T_DataComboFile[[#This Row],[G&S reporting level indicator]]","v":0},{"$f":"T_DataComboFile[[#This Row],[2023/24 Baseline_Source]]*T_DataComboFile[[#This Row],[G&S reporting level indicator]]","v":0},null,null,null,null,null,null,{"$f":"T_DataComboFile[[#This Row],[2021/22 Baseline]]+T_DataComboFile[[#This Row],[2021/22 Reduction]]+T_DataComboFile[[#This Row],[2021/22 Increase]]","v":0},{"$f":"T_DataComboFile[[#This Row],[2022/23 Baseline]]+T_DataComboFile[[#This Row],[2022/23 Reduction]]+T_DataComboFile[[#This Row],[2022/23 Increase]]","v":0},{"$f":"T_DataComboFile[[#This Row],[2023/24 Baseline]]+T_DataComboFile[[#This Row],[2023/24 Reduction]]+T_DataComboFile[[#This Row],[2023/24 Increase]]","v":0}]
["NAT|Non-transfer item","36|Operating payments","2021_22","ENE2020",36,1,2,17211,70184,36,1,2,17211,"070184","36|01|02",1,1,2,39,39,"01|01|02|39|39","National","Small Business Development","Administration","Departmental Management","Non-transfer item","Current","Current payments","Goods and services","Operating payments","Operating payments","Economic development","Industrialisation and exports","NAT",440,200,167,250,251,251,251,250,250,250,255,260,271,1,null,{"$f":"IF(T_DataComboFile[[#This Row],[G&S reporting level indicator]]=1,$AX$16,\"Not applicable\")","v":"Not applicable"},{"$f":"IF(AND($AX$16=\"Level 3\",T_DataComboFile[[#This Row],[Econ3]] = \"Goods and services\"),IF(T_DataComboFile[[#This Row],[Econ4]] = T_DataComboFile[[#This Row],[Econ3]],1,0),IF(AND($AX$16=\"Level 4\",T_DataComboFile[[#This Row],[Econ4]] = \"Goods and services\"),0,1))","v":0},{"$f":"T_DataComboFile[[#This Row],[2016/17_Source]]*T_DataComboFile[[#This Row],[G&S reporting level indicator]]","v":0},{"$f":"T_DataComboFile[[#This Row],[2017/18_Source]]*T_DataComboFile[[#This Row],[G&S reporting level indicator]]","v":0},{"$f":"T_DataComboFile[[#This Row],[2018/19_Source]]*T_DataComboFile[[#This Row],[G&S reporting level indicator]]","v":0},{"$f":"T_DataComboFile[[#This Row],[2019/20 Main appropriation_Source]]*T_DataComboFile[[#This Row],[G&S reporting level indicator]]","v":0},{"$f":"T_DataComboFile[[#This Row],[2019/20 Adjusted appropriation_Source]]*T_DataComboFile[[#This Row],[G&S reporting level indicator]]","v":0},{"$f":"T_DataComboFile[[#This Row],[2019/20 Revised estimate_Source]]*T_DataComboFile[[#This Row],[G&S reporting level indicator]]","v":0},{"$f":"T_DataComboFile[[#This Row],[2019/20 Preliminary outcome_Source]]*T_DataComboFile[[#This Row],[G&S reporting level indicator]]","v":0},{"$f":"T_DataComboFile[[#This Row],[2020/21 Original_Source]]*T_DataComboFile[[#This Row],[G&S reporting level indicator]]","v":0},{"$f":"T_DataComboFile[[#This Row],[2020/21 SAB_Source]]*T_DataComboFile[[#This Row],[G&S reporting level indicator]]","v":0},{"$f":"T_DataComboFile[[#This Row],[2020/21 Baseline_Source]]*T_DataComboFile[[#This Row],[G&S reporting level indicator]]","v":0},{"$f":"T_DataComboFile[[#This Row],[2021/22 Baseline_Source]]*T_DataComboFile[[#This Row],[G&S reporting level indicator]]","v":0},{"$f":"T_DataComboFile[[#This Row],[2022/23 Baseline_Source]]*T_DataComboFile[[#This Row],[G&S reporting level indicator]]","v":0},{"$f":"T_DataComboFile[[#This Row],[2023/24 Baseline_Source]]*T_DataComboFile[[#This Row],[G&S reporting level indicator]]","v":0},null,null,null,null,null,null,{"$f":"T_DataComboFile[[#This Row],[2021/22 Baseline]]+T_DataComboFile[[#This Row],[2021/22 Reduction]]+T_DataComboFile[[#This Row],[2021/22 Increase]]","v":0},{"$f":"T_DataComboFile[[#This Row],[2022/23 Baseline]]+T_DataComboFile[[#This Row],[2022/23 Reduction]]+T_DataComboFile[[#This Row],[2022/23 Increase]]","v":0},{"$f":"T_DataComboFile[[#This Row],[2023/24 Baseline]]+T_DataComboFile[[#This Row],[2023/24 Reduction]]+T_DataComboFile[[#This Row],[2023/24 Increase]]","v":0}]
["NAT|Non-transfer item","36|Venues and facilities","2021_22","ENE2020",36,1,2,17212,70185,36,1,2,17212,"070185","36|01|02",1,1,2,40,40,"01|01|02|40|40","National","Small Business Development","Administration","Departmental Management","Non-transfer item","Current","Current payments","Goods and services","Venues and facilities","Venues and facilities","Economic development","Industrialisation and exports","NAT",138,0,68,10,70,70,70,70,70,70,75,80,84,1,null,{"$f":"IF(T_DataComboFile[[#This Row],[G&S reporting level indicator]]=1,$AX$16,\"Not applicable\")","v":"Not applicable"},{"$f":"IF(AND($AX$16=\"Level 3\",T_DataComboFile[[#This Row],[Econ3]] = \"Goods and services\"),IF(T_DataComboFile[[#This Row],[Econ4]] = T_DataComboFile[[#This Row],[Econ3]],1,0),IF(AND($AX$16=\"Level 4\",T_DataComboFile[[#This Row],[Econ4]] = \"Goods and services\"),0,1))","v":0},{"$f":"T_DataComboFile[[#This Row],[2016/17_Source]]*T_DataComboFile[[#This Row],[G&S reporting level indicator]]","v":0},{"$f":"T_DataComboFile[[#This Row],[2017/18_Source]]*T_DataComboFile[[#This Row],[G&S reporting level indicator]]","v":0},{"$f":"T_DataComboFile[[#This Row],[2018/19_Source]]*T_DataComboFile[[#This Row],[G&S reporting level indicator]]","v":0},{"$f":"T_DataComboFile[[#This Row],[2019/20 Main appropriation_Source]]*T_DataComboFile[[#This Row],[G&S reporting level indicator]]","v":0},{"$f":"T_DataComboFile[[#This Row],[2019/20 Adjusted appropriation_Source]]*T_DataComboFile[[#This Row],[G&S reporting level indicator]]","v":0},{"$f":"T_DataComboFile[[#This Row],[2019/20 Revised estimate_Source]]*T_DataComboFile[[#This Row],[G&S reporting level indicator]]","v":0},{"$f":"T_DataComboFile[[#This Row],[2019/20 Preliminary outcome_Source]]*T_DataComboFile[[#This Row],[G&S reporting level indicator]]","v":0},{"$f":"T_DataComboFile[[#This Row],[2020/21 Original_Source]]*T_DataComboFile[[#This Row],[G&S reporting level indicator]]","v":0},{"$f":"T_DataComboFile[[#This Row],[2020/21 SAB_Source]]*T_DataComboFile[[#This Row],[G&S reporting level indicator]]","v":0},{"$f":"T_DataComboFile[[#This Row],[2020/21 Baseline_Source]]*T_DataComboFile[[#This Row],[G&S reporting level indicator]]","v":0},{"$f":"T_DataComboFile[[#This Row],[2021/22 Baseline_Source]]*T_DataComboFile[[#This Row],[G&S reporting level indicator]]","v":0},{"$f":"T_DataComboFile[[#This Row],[2022/23 Baseline_Source]]*T_DataComboFile[[#This Row],[G&S reporting level indicator]]","v":0},{"$f":"T_DataComboFile[[#This Row],[2023/24 Baseline_Source]]*T_DataComboFile[[#This Row],[G&S reporting level indicator]]","v":0},null,null,null,null,null,null,{"$f":"T_DataComboFile[[#This Row],[2021/22 Baseline]]+T_DataComboFile[[#This Row],[2021/22 Reduction]]+T_DataComboFile[[#This Row],[2021/22 Increase]]","v":0},{"$f":"T_DataComboFile[[#This Row],[2022/23 Baseline]]+T_DataComboFile[[#This Row],[2022/23 Reduction]]+T_DataComboFile[[#This Row],[2022/23 Increase]]","v":0},{"$f":"T_DataComboFile[[#This Row],[2023/24 Baseline]]+T_DataComboFile[[#This Row],[2023/24 Reduction]]+T_DataComboFile[[#This Row],[2023/24 Increase]]","v":0}]
[null,null,"2021_22","ENE2020",36,1,2,null,70186,36,1,2,null,"070186","36|01|02",1,1,3,41,41,"01|01|03|41|41","National","Small Business Development","Administration","Departmental Management",null,"Current","Current payments","Interest and rent on land","Interest (Incl. interest on unitary payments (PPP))","Interest (Incl. interest on unitary payments (PPP))",null,null,null,0,0,0,0,0,0,0,0,0,0,0,0,0,0,null,{"$f":"IF(T_DataComboFile[[#This Row],[G&S reporting level indicator]]=1,$AX$16,\"Not applicable\")","v":"Level 3"},{"$f":"IF(AND($AX$16=\"Level 3\",T_DataComboFile[[#This Row],[Econ3]] = \"Goods and services\"),IF(T_DataComboFile[[#This Row],[Econ4]] = T_DataComboFile[[#This Row],[Econ3]],1,0),IF(AND($AX$16=\"Level 4\",T_DataComboFile[[#This Row],[Econ4]] = \"Goods and services\"),0,1))","v":1},{"$f":"T_DataComboFile[[#This Row],[2016/17_Source]]*T_DataComboFile[[#This Row],[G&S reporting level indicator]]","v":0},{"$f":"T_DataComboFile[[#This Row],[2017/18_Source]]*T_DataComboFile[[#This Row],[G&S reporting level indicator]]","v":0},{"$f":"T_DataComboFile[[#This Row],[2018/19_Source]]*T_DataComboFile[[#This Row],[G&S reporting level indicator]]","v":0},{"$f":"T_DataComboFile[[#This Row],[2019/20 Main appropriation_Source]]*T_DataComboFile[[#This Row],[G&S reporting level indicator]]","v":0},{"$f":"T_DataComboFile[[#This Row],[2019/20 Adjusted appropriation_Source]]*T_DataComboFile[[#This Row],[G&S reporting level indicator]]","v":0},{"$f":"T_DataComboFile[[#This Row],[2019/20 Revised estimate_Source]]*T_DataComboFile[[#This Row],[G&S reporting level indicator]]","v":0},{"$f":"T_DataComboFile[[#This Row],[2019/20 Preliminary outcome_Source]]*T_DataComboFile[[#This Row],[G&S reporting level indicator]]","v":0},{"$f":"T_DataComboFile[[#This Row],[2020/21 Original_Source]]*T_DataComboFile[[#This Row],[G&S reporting level indicator]]","v":0},{"$f":"T_DataComboFile[[#This Row],[2020/21 SAB_Source]]*T_DataComboFile[[#This Row],[G&S reporting level indicator]]","v":0},{"$f":"T_DataComboFile[[#This Row],[2020/21 Baseline_Source]]*T_DataComboFile[[#This Row],[G&S reporting level indicator]]","v":0},{"$f":"T_DataComboFile[[#This Row],[2021/22 Baseline_Source]]*T_DataComboFile[[#This Row],[G&S reporting level indicator]]","v":0},{"$f":"T_DataComboFile[[#This Row],[2022/23 Baseline_Source]]*T_DataComboFile[[#This Row],[G&S reporting level indicator]]","v":0},{"$f":"T_DataComboFile[[#This Row],[2023/24 Baseline_Source]]*T_DataComboFile[[#This Row],[G&S reporting level indicator]]","v":0},null,null,null,null,null,null,{"$f":"T_DataComboFile[[#This Row],[2021/22 Baseline]]+T_DataComboFile[[#This Row],[2021/22 Reduction]]+T_DataComboFile[[#This Row],[2021/22 Increase]]","v":0},{"$f":"T_DataComboFile[[#This Row],[2022/23 Baseline]]+T_DataComboFile[[#This Row],[2022/23 Reduction]]+T_DataComboFile[[#This Row],[2022/23 Increase]]","v":0},{"$f":"T_DataComboFile[[#This Row],[2023/24 Baseline]]+T_DataComboFile[[#This Row],[2023/24 Reduction]]+T_DataComboFile[[#This Row],[2023/24 Increase]]","v":0}]
[null,null,"2021_22","ENE2020",36,1,2,null,70187,36,1,2,null,"070187","36|01|02",1,1,3,42,42,"01|01|03|42|42","National","Small Business Development","Administration","Departmental Management",null,"Current","Current payments","Interest and rent on land","Rent on land","Rent on land",null,null,null,0,0,0,0,0,0,0,0,0,0,0,0,0,0,null,{"$f":"IF(T_DataComboFile[[#This Row],[G&S reporting level indicator]]=1,$AX$16,\"Not applicable\")","v":"Level 3"},{"$f":"IF(AND($AX$16=\"Level 3\",T_DataComboFile[[#This Row],[Econ3]] = \"Goods and services\"),IF(T_DataComboFile[[#This Row],[Econ4]] = T_DataComboFile[[#This Row],[Econ3]],1,0),IF(AND($AX$16=\"Level 4\",T_DataComboFile[[#This Row],[Econ4]] = \"Goods and services\"),0,1))","v":1},{"$f":"T_DataComboFile[[#This Row],[2016/17_Source]]*T_DataComboFile[[#This Row],[G&S reporting level indicator]]","v":0},{"$f":"T_DataComboFile[[#This Row],[2017/18_Source]]*T_DataComboFile[[#This Row],[G&S reporting level indicator]]","v":0},{"$f":"T_DataComboFile[[#This Row],[2018/19_Source]]*T_DataComboFile[[#This Row],[G&S reporting level indicator]]","v":0},{"$f":"T_DataComboFile[[#This Row],[2019/20 Main appropriation_Source]]*T_DataComboFile[[#This Row],[G&S reporting level indicator]]","v":0},{"$f":"T_DataComboFile[[#This Row],[2019/20 Adjusted appropriation_Source]]*T_DataComboFile[[#This Row],[G&S reporting level indicator]]","v":0},{"$f":"T_DataComboFile[[#This Row],[2019/20 Revised estimate_Source]]*T_DataComboFile[[#This Row],[G&S reporting level indicator]]","v":0},{"$f":"T_DataComboFile[[#This Row],[2019/20 Preliminary outcome_Source]]*T_DataComboFile[[#This Row],[G&S reporting level indicator]]","v":0},{"$f":"T_DataComboFile[[#This Row],[2020/21 Original_Source]]*T_DataComboFile[[#This Row],[G&S reporting level indicator]]","v":0},{"$f":"T_DataComboFile[[#This Row],[2020/21 SAB_Source]]*T_DataComboFile[[#This Row],[G&S reporting level indicator]]","v":0},{"$f":"T_DataComboFile[[#This Row],[2020/21 Baseline_Source]]*T_DataComboFile[[#This Row],[G&S reporting level indicator]]","v":0},{"$f":"T_DataComboFile[[#This Row],[2021/22 Baseline_Source]]*T_DataComboFile[[#This Row],[G&S reporting level indicator]]","v":0},{"$f":"T_DataComboFile[[#This Row],[2022/23 Baseline_Source]]*T_DataComboFile[[#This Row],[G&S reporting level indicator]]","v":0},{"$f":"T_DataComboFile[[#This Row],[2023/24 Baseline_Source]]*T_DataComboFile[[#This Row],[G&S reporting level indicator]]","v":0},null,null,null,null,null,null,{"$f":"T_DataComboFile[[#This Row],[2021/22 Baseline]]+T_DataComboFile[[#This Row],[2021/22 Reduction]]+T_DataComboFile[[#This Row],[2021/22 Increase]]","v":0},{"$f":"T_DataComboFile[[#This Row],[2022/23 Baseline]]+T_DataComboFile[[#This Row],[2022/23 Reduction]]+T_DataComboFile[[#This Row],[2022/23 Increase]]","v":0},{"$f":"T_DataComboFile[[#This Row],[2023/24 Baseline]]+T_DataComboFile[[#This Row],[2023/24 Reduction]]+T_DataComboFile[[#This Row],[2023/24 Increase]]","v":0}]
[null,null,"2021_22","ENE2020",36,1,2,null,70188,36,1,2,null,"070188","36|01|02",1,2,4,43,43,"01|02|04|43|43","National","Small Business Development","Administration","Departmental Management",null,"Current","Transfers and subsidies","Provinces and municipalities","Provinces","Provincial Revenue Funds",null,null,null,0,0,0,0,0,0,0,0,0,0,0,0,0,0,null,{"$f":"IF(T_DataComboFile[[#This Row],[G&S reporting level indicator]]=1,$AX$16,\"Not applicable\")","v":"Level 3"},{"$f":"IF(AND($AX$16=\"Level 3\",T_DataComboFile[[#This Row],[Econ3]] = \"Goods and services\"),IF(T_DataComboFile[[#This Row],[Econ4]] = T_DataComboFile[[#This Row],[Econ3]],1,0),IF(AND($AX$16=\"Level 4\",T_DataComboFile[[#This Row],[Econ4]] = \"Goods and services\"),0,1))","v":1},{"$f":"T_DataComboFile[[#This Row],[2016/17_Source]]*T_DataComboFile[[#This Row],[G&S reporting level indicator]]","v":0},{"$f":"T_DataComboFile[[#This Row],[2017/18_Source]]*T_DataComboFile[[#This Row],[G&S reporting level indicator]]","v":0},{"$f":"T_DataComboFile[[#This Row],[2018/19_Source]]*T_DataComboFile[[#This Row],[G&S reporting level indicator]]","v":0},{"$f":"T_DataComboFile[[#This Row],[2019/20 Main appropriation_Source]]*T_DataComboFile[[#This Row],[G&S reporting level indicator]]","v":0},{"$f":"T_DataComboFile[[#This Row],[2019/20 Adjusted appropriation_Source]]*T_DataComboFile[[#This Row],[G&S reporting level indicator]]","v":0},{"$f":"T_DataComboFile[[#This Row],[2019/20 Revised estimate_Source]]*T_DataComboFile[[#This Row],[G&S reporting level indicator]]","v":0},{"$f":"T_DataComboFile[[#This Row],[2019/20 Preliminary outcome_Source]]*T_DataComboFile[[#This Row],[G&S reporting level indicator]]","v":0},{"$f":"T_DataComboFile[[#This Row],[2020/21 Original_Source]]*T_DataComboFile[[#This Row],[G&S reporting level indicator]]","v":0},{"$f":"T_DataComboFile[[#This Row],[2020/21 SAB_Source]]*T_DataComboFile[[#This Row],[G&S reporting level indicator]]","v":0},{"$f":"T_DataComboFile[[#This Row],[2020/21 Baseline_Source]]*T_DataComboFile[[#This Row],[G&S reporting level indicator]]","v":0},{"$f":"T_DataComboFile[[#This Row],[2021/22 Baseline_Source]]*T_DataComboFile[[#This Row],[G&S reporting level indicator]]","v":0},{"$f":"T_DataComboFile[[#This Row],[2022/23 Baseline_Source]]*T_DataComboFile[[#This Row],[G&S reporting level indicator]]","v":0},{"$f":"T_DataComboFile[[#This Row],[2023/24 Baseline_Source]]*T_DataComboFile[[#This Row],[G&S reporting level indicator]]","v":0},null,null,null,null,null,null,{"$f":"T_DataComboFile[[#This Row],[2021/22 Baseline]]+T_DataComboFile[[#This Row],[2021/22 Reduction]]+T_DataComboFile[[#This Row],[2021/22 Increase]]","v":0},{"$f":"T_DataComboFile[[#This Row],[2022/23 Baseline]]+T_DataComboFile[[#This Row],[2022/23 Reduction]]+T_DataComboFile[[#This Row],[2022/23 Increase]]","v":0},{"$f":"T_DataComboFile[[#This Row],[2023/24 Baseline]]+T_DataComboFile[[#This Row],[2023/24 Reduction]]+T_DataComboFile[[#This Row],[2023/24 Increase]]","v":0}]
[null,null,"2021_22","ENE2020",36,1,2,null,70189,36,1,2,null,"070189","36|01|02",1,2,4,43,44,"01|02|04|43|44","National","Small Business Development","Administration","Departmental Management",null,"Current","Transfers and subsidies","Provinces and municipalities","Provinces","Provincial agencies and funds",null,null,null,0,0,0,0,0,0,0,0,0,0,0,0,0,0,null,{"$f":"IF(T_DataComboFile[[#This Row],[G&S reporting level indicator]]=1,$AX$16,\"Not applicable\")","v":"Level 3"},{"$f":"IF(AND($AX$16=\"Level 3\",T_DataComboFile[[#This Row],[Econ3]] = \"Goods and services\"),IF(T_DataComboFile[[#This Row],[Econ4]] = T_DataComboFile[[#This Row],[Econ3]],1,0),IF(AND($AX$16=\"Level 4\",T_DataComboFile[[#This Row],[Econ4]] = \"Goods and services\"),0,1))","v":1},{"$f":"T_DataComboFile[[#This Row],[2016/17_Source]]*T_DataComboFile[[#This Row],[G&S reporting level indicator]]","v":0},{"$f":"T_DataComboFile[[#This Row],[2017/18_Source]]*T_DataComboFile[[#This Row],[G&S reporting level indicator]]","v":0},{"$f":"T_DataComboFile[[#This Row],[2018/19_Source]]*T_DataComboFile[[#This Row],[G&S reporting level indicator]]","v":0},{"$f":"T_DataComboFile[[#This Row],[2019/20 Main appropriation_Source]]*T_DataComboFile[[#This Row],[G&S reporting level indicator]]","v":0},{"$f":"T_DataComboFile[[#This Row],[2019/20 Adjusted appropriation_Source]]*T_DataComboFile[[#This Row],[G&S reporting level indicator]]","v":0},{"$f":"T_DataComboFile[[#This Row],[2019/20 Revised estimate_Source]]*T_DataComboFile[[#This Row],[G&S reporting level indicator]]","v":0},{"$f":"T_DataComboFile[[#This Row],[2019/20 Preliminary outcome_Source]]*T_DataComboFile[[#This Row],[G&S reporting level indicator]]","v":0},{"$f":"T_DataComboFile[[#This Row],[2020/21 Original_Source]]*T_DataComboFile[[#This Row],[G&S reporting level indicator]]","v":0},{"$f":"T_DataComboFile[[#This Row],[2020/21 SAB_Source]]*T_DataComboFile[[#This Row],[G&S reporting level indicator]]","v":0},{"$f":"T_DataComboFile[[#This Row],[2020/21 Baseline_Source]]*T_DataComboFile[[#This Row],[G&S reporting level indicator]]","v":0},{"$f":"T_DataComboFile[[#This Row],[2021/22 Baseline_Source]]*T_DataComboFile[[#This Row],[G&S reporting level indicator]]","v":0},{"$f":"T_DataComboFile[[#This Row],[2022/23 Baseline_Source]]*T_DataComboFile[[#This Row],[G&S reporting level indicator]]","v":0},{"$f":"T_DataComboFile[[#This Row],[2023/24 Baseline_Source]]*T_DataComboFile[[#This Row],[G&S reporting level indicator]]","v":0},null,null,null,null,null,null,{"$f":"T_DataComboFile[[#This Row],[2021/22 Baseline]]+T_DataComboFile[[#This Row],[2021/22 Reduction]]+T_DataComboFile[[#This Row],[2021/22 Increase]]","v":0},{"$f":"T_DataComboFile[[#This Row],[2022/23 Baseline]]+T_DataComboFile[[#This Row],[2022/23 Reduction]]+T_DataComboFile[[#This Row],[2022/23 Increase]]","v":0},{"$f":"T_DataComboFile[[#This Row],[2023/24 Baseline]]+T_DataComboFile[[#This Row],[2023/24 Reduction]]+T_DataComboFile[[#This Row],[2023/24 Increase]]","v":0}]
[null,null,"2021_22","ENE2020",36,1,2,null,70190,36,1,2,null,"070190","36|01|02",1,2,4,44,45,"01|02|04|44|45","National","Small Business Development","Administration","Departmental Management",null,"Current","Transfers and subsidies","Provinces and municipalities","Municipalities","Municipal bank accounts",null,null,null,0,0,0,0,0,0,0,0,0,0,0,0,0,0,null,{"$f":"IF(T_DataComboFile[[#This Row],[G&S reporting level indicator]]=1,$AX$16,\"Not applicable\")","v":"Level 3"},{"$f":"IF(AND($AX$16=\"Level 3\",T_DataComboFile[[#This Row],[Econ3]] = \"Goods and services\"),IF(T_DataComboFile[[#This Row],[Econ4]] = T_DataComboFile[[#This Row],[Econ3]],1,0),IF(AND($AX$16=\"Level 4\",T_DataComboFile[[#This Row],[Econ4]] = \"Goods and services\"),0,1))","v":1},{"$f":"T_DataComboFile[[#This Row],[2016/17_Source]]*T_DataComboFile[[#This Row],[G&S reporting level indicator]]","v":0},{"$f":"T_DataComboFile[[#This Row],[2017/18_Source]]*T_DataComboFile[[#This Row],[G&S reporting level indicator]]","v":0},{"$f":"T_DataComboFile[[#This Row],[2018/19_Source]]*T_DataComboFile[[#This Row],[G&S reporting level indicator]]","v":0},{"$f":"T_DataComboFile[[#This Row],[2019/20 Main appropriation_Source]]*T_DataComboFile[[#This Row],[G&S reporting level indicator]]","v":0},{"$f":"T_DataComboFile[[#This Row],[2019/20 Adjusted appropriation_Source]]*T_DataComboFile[[#This Row],[G&S reporting level indicator]]","v":0},{"$f":"T_DataComboFile[[#This Row],[2019/20 Revised estimate_Source]]*T_DataComboFile[[#This Row],[G&S reporting level indicator]]","v":0},{"$f":"T_DataComboFile[[#This Row],[2019/20 Preliminary outcome_Source]]*T_DataComboFile[[#This Row],[G&S reporting level indicator]]","v":0},{"$f":"T_DataComboFile[[#This Row],[2020/21 Original_Source]]*T_DataComboFile[[#This Row],[G&S reporting level indicator]]","v":0},{"$f":"T_DataComboFile[[#This Row],[2020/21 SAB_Source]]*T_DataComboFile[[#This Row],[G&S reporting level indicator]]","v":0},{"$f":"T_DataComboFile[[#This Row],[2020/21 Baseline_Source]]*T_DataComboFile[[#This Row],[G&S reporting level indicator]]","v":0},{"$f":"T_DataComboFile[[#This Row],[2021/22 Baseline_Source]]*T_DataComboFile[[#This Row],[G&S reporting level indicator]]","v":0},{"$f":"T_DataComboFile[[#This Row],[2022/23 Baseline_Source]]*T_DataComboFile[[#This Row],[G&S reporting level indicator]]","v":0},{"$f":"T_DataComboFile[[#This Row],[2023/24 Baseline_Source]]*T_DataComboFile[[#This Row],[G&S reporting level indicator]]","v":0},null,null,null,null,null,null,{"$f":"T_DataComboFile[[#This Row],[2021/22 Baseline]]+T_DataComboFile[[#This Row],[2021/22 Reduction]]+T_DataComboFile[[#This Row],[2021/22 Increase]]","v":0},{"$f":"T_DataComboFile[[#This Row],[2022/23 Baseline]]+T_DataComboFile[[#This Row],[2022/23 Reduction]]+T_DataComboFile[[#This Row],[2022/23 Increase]]","v":0},{"$f":"T_DataComboFile[[#This Row],[2023/24 Baseline]]+T_DataComboFile[[#This Row],[2023/24 Reduction]]+T_DataComboFile[[#This Row],[2023/24 Increase]]","v":0}]
[null,null,"2021_22","ENE2020",36,1,2,null,70191,36,1,2,null,"070191","36|01|02",1,2,4,44,46,"01|02|04|44|46","National","Small Business Development","Administration","Departmental Management",null,"Current","Transfers and subsidies","Provinces and municipalities","Municipalities","Municipal agencies and funds",null,null,null,0,0,0,0,0,0,0,0,0,0,0,0,0,0,null,{"$f":"IF(T_DataComboFile[[#This Row],[G&S reporting level indicator]]=1,$AX$16,\"Not applicable\")","v":"Level 3"},{"$f":"IF(AND($AX$16=\"Level 3\",T_DataComboFile[[#This Row],[Econ3]] = \"Goods and services\"),IF(T_DataComboFile[[#This Row],[Econ4]] = T_DataComboFile[[#This Row],[Econ3]],1,0),IF(AND($AX$16=\"Level 4\",T_DataComboFile[[#This Row],[Econ4]] = \"Goods and services\"),0,1))","v":1},{"$f":"T_DataComboFile[[#This Row],[2016/17_Source]]*T_DataComboFile[[#This Row],[G&S reporting level indicator]]","v":0},{"$f":"T_DataComboFile[[#This Row],[2017/18_Source]]*T_DataComboFile[[#This Row],[G&S reporting level indicator]]","v":0},{"$f":"T_DataComboFile[[#This Row],[2018/19_Source]]*T_DataComboFile[[#This Row],[G&S reporting level indicator]]","v":0},{"$f":"T_DataComboFile[[#This Row],[2019/20 Main appropriation_Source]]*T_DataComboFile[[#This Row],[G&S reporting level indicator]]","v":0},{"$f":"T_DataComboFile[[#This Row],[2019/20 Adjusted appropriation_Source]]*T_DataComboFile[[#This Row],[G&S reporting level indicator]]","v":0},{"$f":"T_DataComboFile[[#This Row],[2019/20 Revised estimate_Source]]*T_DataComboFile[[#This Row],[G&S reporting level indicator]]","v":0},{"$f":"T_DataComboFile[[#This Row],[2019/20 Preliminary outcome_Source]]*T_DataComboFile[[#This Row],[G&S reporting level indicator]]","v":0},{"$f":"T_DataComboFile[[#This Row],[2020/21 Original_Source]]*T_DataComboFile[[#This Row],[G&S reporting level indicator]]","v":0},{"$f":"T_DataComboFile[[#This Row],[2020/21 SAB_Source]]*T_DataComboFile[[#This Row],[G&S reporting level indicator]]","v":0},{"$f":"T_DataComboFile[[#This Row],[2020/21 Baseline_Source]]*T_DataComboFile[[#This Row],[G&S reporting level indicator]]","v":0},{"$f":"T_DataComboFile[[#This Row],[2021/22 Baseline_Source]]*T_DataComboFile[[#This Row],[G&S reporting level indicator]]","v":0},{"$f":"T_DataComboFile[[#This Row],[2022/23 Baseline_Source]]*T_DataComboFile[[#This Row],[G&S reporting level indicator]]","v":0},{"$f":"T_DataComboFile[[#This Row],[2023/24 Baseline_Source]]*T_DataComboFile[[#This Row],[G&S reporting level indicator]]","v":0},null,null,null,null,null,null,{"$f":"T_DataComboFile[[#This Row],[2021/22 Baseline]]+T_DataComboFile[[#This Row],[2021/22 Reduction]]+T_DataComboFile[[#This Row],[2021/22 Increase]]","v":0},{"$f":"T_DataComboFile[[#This Row],[2022/23 Baseline]]+T_DataComboFile[[#This Row],[2022/23 Reduction]]+T_DataComboFile[[#This Row],[2022/23 Increase]]","v":0},{"$f":"T_DataComboFile[[#This Row],[2023/24 Baseline]]+T_DataComboFile[[#This Row],[2023/24 Reduction]]+T_DataComboFile[[#This Row],[2023/24 Increase]]","v":0}]
[null,null,"2021_22","ENE2020",36,1,2,null,70192,36,1,2,null,"070192","36|01|02",1,2,5,45,47,"01|02|05|45|47","National","Small Business Development","Administration","Departmental Management",null,"Current","Transfers and subsidies","Departmental agencies and accounts","Social security funds","Social security funds",null,null,null,0,0,0,0,0,0,0,0,0,0,0,0,0,0,null,{"$f":"IF(T_DataComboFile[[#This Row],[G&S reporting level indicator]]=1,$AX$16,\"Not applicable\")","v":"Level 3"},{"$f":"IF(AND($AX$16=\"Level 3\",T_DataComboFile[[#This Row],[Econ3]] = \"Goods and services\"),IF(T_DataComboFile[[#This Row],[Econ4]] = T_DataComboFile[[#This Row],[Econ3]],1,0),IF(AND($AX$16=\"Level 4\",T_DataComboFile[[#This Row],[Econ4]] = \"Goods and services\"),0,1))","v":1},{"$f":"T_DataComboFile[[#This Row],[2016/17_Source]]*T_DataComboFile[[#This Row],[G&S reporting level indicator]]","v":0},{"$f":"T_DataComboFile[[#This Row],[2017/18_Source]]*T_DataComboFile[[#This Row],[G&S reporting level indicator]]","v":0},{"$f":"T_DataComboFile[[#This Row],[2018/19_Source]]*T_DataComboFile[[#This Row],[G&S reporting level indicator]]","v":0},{"$f":"T_DataComboFile[[#This Row],[2019/20 Main appropriation_Source]]*T_DataComboFile[[#This Row],[G&S reporting level indicator]]","v":0},{"$f":"T_DataComboFile[[#This Row],[2019/20 Adjusted appropriation_Source]]*T_DataComboFile[[#This Row],[G&S reporting level indicator]]","v":0},{"$f":"T_DataComboFile[[#This Row],[2019/20 Revised estimate_Source]]*T_DataComboFile[[#This Row],[G&S reporting level indicator]]","v":0},{"$f":"T_DataComboFile[[#This Row],[2019/20 Preliminary outcome_Source]]*T_DataComboFile[[#This Row],[G&S reporting level indicator]]","v":0},{"$f":"T_DataComboFile[[#This Row],[2020/21 Original_Source]]*T_DataComboFile[[#This Row],[G&S reporting level indicator]]","v":0},{"$f":"T_DataComboFile[[#This Row],[2020/21 SAB_Source]]*T_DataComboFile[[#This Row],[G&S reporting level indicator]]","v":0},{"$f":"T_DataComboFile[[#This Row],[2020/21 Baseline_Source]]*T_DataComboFile[[#This Row],[G&S reporting level indicator]]","v":0},{"$f":"T_DataComboFile[[#This Row],[2021/22 Baseline_Source]]*T_DataComboFile[[#This Row],[G&S reporting level indicator]]","v":0},{"$f":"T_DataComboFile[[#This Row],[2022/23 Baseline_Source]]*T_DataComboFile[[#This Row],[G&S reporting level indicator]]","v":0},{"$f":"T_DataComboFile[[#This Row],[2023/24 Baseline_Source]]*T_DataComboFile[[#This Row],[G&S reporting level indicator]]","v":0},null,null,null,null,null,null,{"$f":"T_DataComboFile[[#This Row],[2021/22 Baseline]]+T_DataComboFile[[#This Row],[2021/22 Reduction]]+T_DataComboFile[[#This Row],[2021/22 Increase]]","v":0},{"$f":"T_DataComboFile[[#This Row],[2022/23 Baseline]]+T_DataComboFile[[#This Row],[2022/23 Reduction]]+T_DataComboFile[[#This Row],[2022/23 Increase]]","v":0},{"$f":"T_DataComboFile[[#This Row],[2023/24 Baseline]]+T_DataComboFile[[#This Row],[2023/24 Reduction]]+T_DataComboFile[[#This Row],[2023/24 Increase]]","v":0}]
[null,null,"2021_22","ENE2020",36,1,2,null,70193,36,1,2,null,"070193","36|01|02",1,2,5,46,48,"01|02|05|46|48","National","Small Business Development","Administration","Departmental Management",null,"Current","Transfers and subsidies","Departmental agencies and accounts","Departmental agencies (non-business entities)","Departmental agencies (non-business entities)",null,null,null,0,0,0,0,0,0,0,0,0,0,0,0,0,0,null,{"$f":"IF(T_DataComboFile[[#This Row],[G&S reporting level indicator]]=1,$AX$16,\"Not applicable\")","v":"Level 3"},{"$f":"IF(AND($AX$16=\"Level 3\",T_DataComboFile[[#This Row],[Econ3]] = \"Goods and services\"),IF(T_DataComboFile[[#This Row],[Econ4]] = T_DataComboFile[[#This Row],[Econ3]],1,0),IF(AND($AX$16=\"Level 4\",T_DataComboFile[[#This Row],[Econ4]] = \"Goods and services\"),0,1))","v":1},{"$f":"T_DataComboFile[[#This Row],[2016/17_Source]]*T_DataComboFile[[#This Row],[G&S reporting level indicator]]","v":0},{"$f":"T_DataComboFile[[#This Row],[2017/18_Source]]*T_DataComboFile[[#This Row],[G&S reporting level indicator]]","v":0},{"$f":"T_DataComboFile[[#This Row],[2018/19_Source]]*T_DataComboFile[[#This Row],[G&S reporting level indicator]]","v":0},{"$f":"T_DataComboFile[[#This Row],[2019/20 Main appropriation_Source]]*T_DataComboFile[[#This Row],[G&S reporting level indicator]]","v":0},{"$f":"T_DataComboFile[[#This Row],[2019/20 Adjusted appropriation_Source]]*T_DataComboFile[[#This Row],[G&S reporting level indicator]]","v":0},{"$f":"T_DataComboFile[[#This Row],[2019/20 Revised estimate_Source]]*T_DataComboFile[[#This Row],[G&S reporting level indicator]]","v":0},{"$f":"T_DataComboFile[[#This Row],[2019/20 Preliminary outcome_Source]]*T_DataComboFile[[#This Row],[G&S reporting level indicator]]","v":0},{"$f":"T_DataComboFile[[#This Row],[2020/21 Original_Source]]*T_DataComboFile[[#This Row],[G&S reporting level indicator]]","v":0},{"$f":"T_DataComboFile[[#This Row],[2020/21 SAB_Source]]*T_DataComboFile[[#This Row],[G&S reporting level indicator]]","v":0},{"$f":"T_DataComboFile[[#This Row],[2020/21 Baseline_Source]]*T_DataComboFile[[#This Row],[G&S reporting level indicator]]","v":0},{"$f":"T_DataComboFile[[#This Row],[2021/22 Baseline_Source]]*T_DataComboFile[[#This Row],[G&S reporting level indicator]]","v":0},{"$f":"T_DataComboFile[[#This Row],[2022/23 Baseline_Source]]*T_DataComboFile[[#This Row],[G&S reporting level indicator]]","v":0},{"$f":"T_DataComboFile[[#This Row],[2023/24 Baseline_Source]]*T_DataComboFile[[#This Row],[G&S reporting level indicator]]","v":0},null,null,null,null,null,null,{"$f":"T_DataComboFile[[#This Row],[2021/22 Baseline]]+T_DataComboFile[[#This Row],[2021/22 Reduction]]+T_DataComboFile[[#This Row],[2021/22 Increase]]","v":0},{"$f":"T_DataComboFile[[#This Row],[2022/23 Baseline]]+T_DataComboFile[[#This Row],[2022/23 Reduction]]+T_DataComboFile[[#This Row],[2022/23 Increase]]","v":0},{"$f":"T_DataComboFile[[#This Row],[2023/24 Baseline]]+T_DataComboFile[[#This Row],[2023/24 Reduction]]+T_DataComboFile[[#This Row],[2023/24 Increase]]","v":0}]
[null,null,"2021_22","ENE2020",36,1,2,null,70194,36,1,2,null,"070194","36|01|02",1,2,6,47,49,"01|02|06|47|49","National","Small Business Development","Administration","Departmental Management",null,"Current","Transfers and subsidies","Higher education institutions","Higher education institutions","Higher education institutions",null,null,null,0,0,0,0,0,0,0,0,0,0,0,0,0,0,null,{"$f":"IF(T_DataComboFile[[#This Row],[G&S reporting level indicator]]=1,$AX$16,\"Not applicable\")","v":"Level 3"},{"$f":"IF(AND($AX$16=\"Level 3\",T_DataComboFile[[#This Row],[Econ3]] = \"Goods and services\"),IF(T_DataComboFile[[#This Row],[Econ4]] = T_DataComboFile[[#This Row],[Econ3]],1,0),IF(AND($AX$16=\"Level 4\",T_DataComboFile[[#This Row],[Econ4]] = \"Goods and services\"),0,1))","v":1},{"$f":"T_DataComboFile[[#This Row],[2016/17_Source]]*T_DataComboFile[[#This Row],[G&S reporting level indicator]]","v":0},{"$f":"T_DataComboFile[[#This Row],[2017/18_Source]]*T_DataComboFile[[#This Row],[G&S reporting level indicator]]","v":0},{"$f":"T_DataComboFile[[#This Row],[2018/19_Source]]*T_DataComboFile[[#This Row],[G&S reporting level indicator]]","v":0},{"$f":"T_DataComboFile[[#This Row],[2019/20 Main appropriation_Source]]*T_DataComboFile[[#This Row],[G&S reporting level indicator]]","v":0},{"$f":"T_DataComboFile[[#This Row],[2019/20 Adjusted appropriation_Source]]*T_DataComboFile[[#This Row],[G&S reporting level indicator]]","v":0},{"$f":"T_DataComboFile[[#This Row],[2019/20 Revised estimate_Source]]*T_DataComboFile[[#This Row],[G&S reporting level indicator]]","v":0},{"$f":"T_DataComboFile[[#This Row],[2019/20 Preliminary outcome_Source]]*T_DataComboFile[[#This Row],[G&S reporting level indicator]]","v":0},{"$f":"T_DataComboFile[[#This Row],[2020/21 Original_Source]]*T_DataComboFile[[#This Row],[G&S reporting level indicator]]","v":0},{"$f":"T_DataComboFile[[#This Row],[2020/21 SAB_Source]]*T_DataComboFile[[#This Row],[G&S reporting level indicator]]","v":0},{"$f":"T_DataComboFile[[#This Row],[2020/21 Baseline_Source]]*T_DataComboFile[[#This Row],[G&S reporting level indicator]]","v":0},{"$f":"T_DataComboFile[[#This Row],[2021/22 Baseline_Source]]*T_DataComboFile[[#This Row],[G&S reporting level indicator]]","v":0},{"$f":"T_DataComboFile[[#This Row],[2022/23 Baseline_Source]]*T_DataComboFile[[#This Row],[G&S reporting level indicator]]","v":0},{"$f":"T_DataComboFile[[#This Row],[2023/24 Baseline_Source]]*T_DataComboFile[[#This Row],[G&S reporting level indicator]]","v":0},null,null,null,null,null,null,{"$f":"T_DataComboFile[[#This Row],[2021/22 Baseline]]+T_DataComboFile[[#This Row],[2021/22 Reduction]]+T_DataComboFile[[#This Row],[2021/22 Increase]]","v":0},{"$f":"T_DataComboFile[[#This Row],[2022/23 Baseline]]+T_DataComboFile[[#This Row],[2022/23 Reduction]]+T_DataComboFile[[#This Row],[2022/23 Increase]]","v":0},{"$f":"T_DataComboFile[[#This Row],[2023/24 Baseline]]+T_DataComboFile[[#This Row],[2023/24 Reduction]]+T_DataComboFile[[#This Row],[2023/24 Increase]]","v":0}]
[null,null,"2021_22","ENE2020",36,1,2,null,70195,36,1,2,null,"070195","36|01|02",1,2,7,48,50,"01|02|07|48|50","National","Small Business Development","Administration","Departmental Management",null,"Current","Transfers and subsidies","Foreign governments and international organisations","Foreign governments and international organisations","Foreign governments and international organisations",null,null,null,0,0,0,0,0,0,0,0,0,0,0,0,0,0,null,{"$f":"IF(T_DataComboFile[[#This Row],[G&S reporting level indicator]]=1,$AX$16,\"Not applicable\")","v":"Level 3"},{"$f":"IF(AND($AX$16=\"Level 3\",T_DataComboFile[[#This Row],[Econ3]] = \"Goods and services\"),IF(T_DataComboFile[[#This Row],[Econ4]] = T_DataComboFile[[#This Row],[Econ3]],1,0),IF(AND($AX$16=\"Level 4\",T_DataComboFile[[#This Row],[Econ4]] = \"Goods and services\"),0,1))","v":1},{"$f":"T_DataComboFile[[#This Row],[2016/17_Source]]*T_DataComboFile[[#This Row],[G&S reporting level indicator]]","v":0},{"$f":"T_DataComboFile[[#This Row],[2017/18_Source]]*T_DataComboFile[[#This Row],[G&S reporting level indicator]]","v":0},{"$f":"T_DataComboFile[[#This Row],[2018/19_Source]]*T_DataComboFile[[#This Row],[G&S reporting level indicator]]","v":0},{"$f":"T_DataComboFile[[#This Row],[2019/20 Main appropriation_Source]]*T_DataComboFile[[#This Row],[G&S reporting level indicator]]","v":0},{"$f":"T_DataComboFile[[#This Row],[2019/20 Adjusted appropriation_Source]]*T_DataComboFile[[#This Row],[G&S reporting level indicator]]","v":0},{"$f":"T_DataComboFile[[#This Row],[2019/20 Revised estimate_Source]]*T_DataComboFile[[#This Row],[G&S reporting level indicator]]","v":0},{"$f":"T_DataComboFile[[#This Row],[2019/20 Preliminary outcome_Source]]*T_DataComboFile[[#This Row],[G&S reporting level indicator]]","v":0},{"$f":"T_DataComboFile[[#This Row],[2020/21 Original_Source]]*T_DataComboFile[[#This Row],[G&S reporting level indicator]]","v":0},{"$f":"T_DataComboFile[[#This Row],[2020/21 SAB_Source]]*T_DataComboFile[[#This Row],[G&S reporting level indicator]]","v":0},{"$f":"T_DataComboFile[[#This Row],[2020/21 Baseline_Source]]*T_DataComboFile[[#This Row],[G&S reporting level indicator]]","v":0},{"$f":"T_DataComboFile[[#This Row],[2021/22 Baseline_Source]]*T_DataComboFile[[#This Row],[G&S reporting level indicator]]","v":0},{"$f":"T_DataComboFile[[#This Row],[2022/23 Baseline_Source]]*T_DataComboFile[[#This Row],[G&S reporting level indicator]]","v":0},{"$f":"T_DataComboFile[[#This Row],[2023/24 Baseline_Source]]*T_DataComboFile[[#This Row],[G&S reporting level indicator]]","v":0},null,null,null,null,null,null,{"$f":"T_DataComboFile[[#This Row],[2021/22 Baseline]]+T_DataComboFile[[#This Row],[2021/22 Reduction]]+T_DataComboFile[[#This Row],[2021/22 Increase]]","v":0},{"$f":"T_DataComboFile[[#This Row],[2022/23 Baseline]]+T_DataComboFile[[#This Row],[2022/23 Reduction]]+T_DataComboFile[[#This Row],[2022/23 Increase]]","v":0},{"$f":"T_DataComboFile[[#This Row],[2023/24 Baseline]]+T_DataComboFile[[#This Row],[2023/24 Reduction]]+T_DataComboFile[[#This Row],[2023/24 Increase]]","v":0}]
[null,null,"2021_22","ENE2020",36,1,2,null,70196,36,1,2,null,"070196","36|01|02",1,2,8,49,51,"01|02|08|49|51","National","Small Business Development","Administration","Departmental Management",null,"Current","Transfers and subsidies","Public corporations and private enterprises","Public corporations","Subsidies on products and production (pc)",null,null,null,0,0,0,0,0,0,0,0,0,0,0,0,0,0,null,{"$f":"IF(T_DataComboFile[[#This Row],[G&S reporting level indicator]]=1,$AX$16,\"Not applicable\")","v":"Level 3"},{"$f":"IF(AND($AX$16=\"Level 3\",T_DataComboFile[[#This Row],[Econ3]] = \"Goods and services\"),IF(T_DataComboFile[[#This Row],[Econ4]] = T_DataComboFile[[#This Row],[Econ3]],1,0),IF(AND($AX$16=\"Level 4\",T_DataComboFile[[#This Row],[Econ4]] = \"Goods and services\"),0,1))","v":1},{"$f":"T_DataComboFile[[#This Row],[2016/17_Source]]*T_DataComboFile[[#This Row],[G&S reporting level indicator]]","v":0},{"$f":"T_DataComboFile[[#This Row],[2017/18_Source]]*T_DataComboFile[[#This Row],[G&S reporting level indicator]]","v":0},{"$f":"T_DataComboFile[[#This Row],[2018/19_Source]]*T_DataComboFile[[#This Row],[G&S reporting level indicator]]","v":0},{"$f":"T_DataComboFile[[#This Row],[2019/20 Main appropriation_Source]]*T_DataComboFile[[#This Row],[G&S reporting level indicator]]","v":0},{"$f":"T_DataComboFile[[#This Row],[2019/20 Adjusted appropriation_Source]]*T_DataComboFile[[#This Row],[G&S reporting level indicator]]","v":0},{"$f":"T_DataComboFile[[#This Row],[2019/20 Revised estimate_Source]]*T_DataComboFile[[#This Row],[G&S reporting level indicator]]","v":0},{"$f":"T_DataComboFile[[#This Row],[2019/20 Preliminary outcome_Source]]*T_DataComboFile[[#This Row],[G&S reporting level indicator]]","v":0},{"$f":"T_DataComboFile[[#This Row],[2020/21 Original_Source]]*T_DataComboFile[[#This Row],[G&S reporting level indicator]]","v":0},{"$f":"T_DataComboFile[[#This Row],[2020/21 SAB_Source]]*T_DataComboFile[[#This Row],[G&S reporting level indicator]]","v":0},{"$f":"T_DataComboFile[[#This Row],[2020/21 Baseline_Source]]*T_DataComboFile[[#This Row],[G&S reporting level indicator]]","v":0},{"$f":"T_DataComboFile[[#This Row],[2021/22 Baseline_Source]]*T_DataComboFile[[#This Row],[G&S reporting level indicator]]","v":0},{"$f":"T_DataComboFile[[#This Row],[2022/23 Baseline_Source]]*T_DataComboFile[[#This Row],[G&S reporting level indicator]]","v":0},{"$f":"T_DataComboFile[[#This Row],[2023/24 Baseline_Source]]*T_DataComboFile[[#This Row],[G&S reporting level indicator]]","v":0},null,null,null,null,null,null,{"$f":"T_DataComboFile[[#This Row],[2021/22 Baseline]]+T_DataComboFile[[#This Row],[2021/22 Reduction]]+T_DataComboFile[[#This Row],[2021/22 Increase]]","v":0},{"$f":"T_DataComboFile[[#This Row],[2022/23 Baseline]]+T_DataComboFile[[#This Row],[2022/23 Reduction]]+T_DataComboFile[[#This Row],[2022/23 Increase]]","v":0},{"$f":"T_DataComboFile[[#This Row],[2023/24 Baseline]]+T_DataComboFile[[#This Row],[2023/24 Reduction]]+T_DataComboFile[[#This Row],[2023/24 Increase]]","v":0}]
[null,null,"2021_22","ENE2020",36,1,2,null,70197,36,1,2,null,"070197","36|01|02",1,2,8,49,52,"01|02|08|49|52","National","Small Business Development","Administration","Departmental Management",null,"Current","Transfers and subsidies","Public corporations and private enterprises","Public corporations","Other transfers to public corporations",null,null,null,0,0,0,0,0,0,0,0,0,0,0,0,0,0,null,{"$f":"IF(T_DataComboFile[[#This Row],[G&S reporting level indicator]]=1,$AX$16,\"Not applicable\")","v":"Level 3"},{"$f":"IF(AND($AX$16=\"Level 3\",T_DataComboFile[[#This Row],[Econ3]] = \"Goods and services\"),IF(T_DataComboFile[[#This Row],[Econ4]] = T_DataComboFile[[#This Row],[Econ3]],1,0),IF(AND($AX$16=\"Level 4\",T_DataComboFile[[#This Row],[Econ4]] = \"Goods and services\"),0,1))","v":1},{"$f":"T_DataComboFile[[#This Row],[2016/17_Source]]*T_DataComboFile[[#This Row],[G&S reporting level indicator]]","v":0},{"$f":"T_DataComboFile[[#This Row],[2017/18_Source]]*T_DataComboFile[[#This Row],[G&S reporting level indicator]]","v":0},{"$f":"T_DataComboFile[[#This Row],[2018/19_Source]]*T_DataComboFile[[#This Row],[G&S reporting level indicator]]","v":0},{"$f":"T_DataComboFile[[#This Row],[2019/20 Main appropriation_Source]]*T_DataComboFile[[#This Row],[G&S reporting level indicator]]","v":0},{"$f":"T_DataComboFile[[#This Row],[2019/20 Adjusted appropriation_Source]]*T_DataComboFile[[#This Row],[G&S reporting level indicator]]","v":0},{"$f":"T_DataComboFile[[#This Row],[2019/20 Revised estimate_Source]]*T_DataComboFile[[#This Row],[G&S reporting level indicator]]","v":0},{"$f":"T_DataComboFile[[#This Row],[2019/20 Preliminary outcome_Source]]*T_DataComboFile[[#This Row],[G&S reporting level indicator]]","v":0},{"$f":"T_DataComboFile[[#This Row],[2020/21 Original_Source]]*T_DataComboFile[[#This Row],[G&S reporting level indicator]]","v":0},{"$f":"T_DataComboFile[[#This Row],[2020/21 SAB_Source]]*T_DataComboFile[[#This Row],[G&S reporting level indicator]]","v":0},{"$f":"T_DataComboFile[[#This Row],[2020/21 Baseline_Source]]*T_DataComboFile[[#This Row],[G&S reporting level indicator]]","v":0},{"$f":"T_DataComboFile[[#This Row],[2021/22 Baseline_Source]]*T_DataComboFile[[#This Row],[G&S reporting level indicator]]","v":0},{"$f":"T_DataComboFile[[#This Row],[2022/23 Baseline_Source]]*T_DataComboFile[[#This Row],[G&S reporting level indicator]]","v":0},{"$f":"T_DataComboFile[[#This Row],[2023/24 Baseline_Source]]*T_DataComboFile[[#This Row],[G&S reporting level indicator]]","v":0},null,null,null,null,null,null,{"$f":"T_DataComboFile[[#This Row],[2021/22 Baseline]]+T_DataComboFile[[#This Row],[2021/22 Reduction]]+T_DataComboFile[[#This Row],[2021/22 Increase]]","v":0},{"$f":"T_DataComboFile[[#This Row],[2022/23 Baseline]]+T_DataComboFile[[#This Row],[2022/23 Reduction]]+T_DataComboFile[[#This Row],[2022/23 Increase]]","v":0},{"$f":"T_DataComboFile[[#This Row],[2023/24 Baseline]]+T_DataComboFile[[#This Row],[2023/24 Reduction]]+T_DataComboFile[[#This Row],[2023/24 Increase]]","v":0}]
[null,null,"2021_22","ENE2020",36,1,2,null,70198,36,1,2,null,"070198","36|01|02",1,2,8,50,53,"01|02|08|50|53","National","Small Business Development","Administration","Departmental Management",null,"Current","Transfers and subsidies","Public corporations and private enterprises","Private enterprises","Subsidies on products and production (pe)",null,null,null,0,0,0,0,0,0,0,0,0,0,0,0,0,0,null,{"$f":"IF(T_DataComboFile[[#This Row],[G&S reporting level indicator]]=1,$AX$16,\"Not applicable\")","v":"Level 3"},{"$f":"IF(AND($AX$16=\"Level 3\",T_DataComboFile[[#This Row],[Econ3]] = \"Goods and services\"),IF(T_DataComboFile[[#This Row],[Econ4]] = T_DataComboFile[[#This Row],[Econ3]],1,0),IF(AND($AX$16=\"Level 4\",T_DataComboFile[[#This Row],[Econ4]] = \"Goods and services\"),0,1))","v":1},{"$f":"T_DataComboFile[[#This Row],[2016/17_Source]]*T_DataComboFile[[#This Row],[G&S reporting level indicator]]","v":0},{"$f":"T_DataComboFile[[#This Row],[2017/18_Source]]*T_DataComboFile[[#This Row],[G&S reporting level indicator]]","v":0},{"$f":"T_DataComboFile[[#This Row],[2018/19_Source]]*T_DataComboFile[[#This Row],[G&S reporting level indicator]]","v":0},{"$f":"T_DataComboFile[[#This Row],[2019/20 Main appropriation_Source]]*T_DataComboFile[[#This Row],[G&S reporting level indicator]]","v":0},{"$f":"T_DataComboFile[[#This Row],[2019/20 Adjusted appropriation_Source]]*T_DataComboFile[[#This Row],[G&S reporting level indicator]]","v":0},{"$f":"T_DataComboFile[[#This Row],[2019/20 Revised estimate_Source]]*T_DataComboFile[[#This Row],[G&S reporting level indicator]]","v":0},{"$f":"T_DataComboFile[[#This Row],[2019/20 Preliminary outcome_Source]]*T_DataComboFile[[#This Row],[G&S reporting level indicator]]","v":0},{"$f":"T_DataComboFile[[#This Row],[2020/21 Original_Source]]*T_DataComboFile[[#This Row],[G&S reporting level indicator]]","v":0},{"$f":"T_DataComboFile[[#This Row],[2020/21 SAB_Source]]*T_DataComboFile[[#This Row],[G&S reporting level indicator]]","v":0},{"$f":"T_DataComboFile[[#This Row],[2020/21 Baseline_Source]]*T_DataComboFile[[#This Row],[G&S reporting level indicator]]","v":0},{"$f":"T_DataComboFile[[#This Row],[2021/22 Baseline_Source]]*T_DataComboFile[[#This Row],[G&S reporting level indicator]]","v":0},{"$f":"T_DataComboFile[[#This Row],[2022/23 Baseline_Source]]*T_DataComboFile[[#This Row],[G&S reporting level indicator]]","v":0},{"$f":"T_DataComboFile[[#This Row],[2023/24 Baseline_Source]]*T_DataComboFile[[#This Row],[G&S reporting level indicator]]","v":0},null,null,null,null,null,null,{"$f":"T_DataComboFile[[#This Row],[2021/22 Baseline]]+T_DataComboFile[[#This Row],[2021/22 Reduction]]+T_DataComboFile[[#This Row],[2021/22 Increase]]","v":0},{"$f":"T_DataComboFile[[#This Row],[2022/23 Baseline]]+T_DataComboFile[[#This Row],[2022/23 Reduction]]+T_DataComboFile[[#This Row],[2022/23 Increase]]","v":0},{"$f":"T_DataComboFile[[#This Row],[2023/24 Baseline]]+T_DataComboFile[[#This Row],[2023/24 Reduction]]+T_DataComboFile[[#This Row],[2023/24 Increase]]","v":0}]
[null,null,"2021_22","ENE2020",36,1,2,null,70199,36,1,2,null,"070199","36|01|02",1,2,8,50,54,"01|02|08|50|54","National","Small Business Development","Administration","Departmental Management",null,"Current","Transfers and subsidies","Public corporations and private enterprises","Private enterprises","Other transfers to private enterprises",null,null,null,0,0,0,0,0,0,0,0,0,0,0,0,0,0,null,{"$f":"IF(T_DataComboFile[[#This Row],[G&S reporting level indicator]]=1,$AX$16,\"Not applicable\")","v":"Level 3"},{"$f":"IF(AND($AX$16=\"Level 3\",T_DataComboFile[[#This Row],[Econ3]] = \"Goods and services\"),IF(T_DataComboFile[[#This Row],[Econ4]] = T_DataComboFile[[#This Row],[Econ3]],1,0),IF(AND($AX$16=\"Level 4\",T_DataComboFile[[#This Row],[Econ4]] = \"Goods and services\"),0,1))","v":1},{"$f":"T_DataComboFile[[#This Row],[2016/17_Source]]*T_DataComboFile[[#This Row],[G&S reporting level indicator]]","v":0},{"$f":"T_DataComboFile[[#This Row],[2017/18_Source]]*T_DataComboFile[[#This Row],[G&S reporting level indicator]]","v":0},{"$f":"T_DataComboFile[[#This Row],[2018/19_Source]]*T_DataComboFile[[#This Row],[G&S reporting level indicator]]","v":0},{"$f":"T_DataComboFile[[#This Row],[2019/20 Main appropriation_Source]]*T_DataComboFile[[#This Row],[G&S reporting level indicator]]","v":0},{"$f":"T_DataComboFile[[#This Row],[2019/20 Adjusted appropriation_Source]]*T_DataComboFile[[#This Row],[G&S reporting level indicator]]","v":0},{"$f":"T_DataComboFile[[#This Row],[2019/20 Revised estimate_Source]]*T_DataComboFile[[#This Row],[G&S reporting level indicator]]","v":0},{"$f":"T_DataComboFile[[#This Row],[2019/20 Preliminary outcome_Source]]*T_DataComboFile[[#This Row],[G&S reporting level indicator]]","v":0},{"$f":"T_DataComboFile[[#This Row],[2020/21 Original_Source]]*T_DataComboFile[[#This Row],[G&S reporting level indicator]]","v":0},{"$f":"T_DataComboFile[[#This Row],[2020/21 SAB_Source]]*T_DataComboFile[[#This Row],[G&S reporting level indicator]]","v":0},{"$f":"T_DataComboFile[[#This Row],[2020/21 Baseline_Source]]*T_DataComboFile[[#This Row],[G&S reporting level indicator]]","v":0},{"$f":"T_DataComboFile[[#This Row],[2021/22 Baseline_Source]]*T_DataComboFile[[#This Row],[G&S reporting level indicator]]","v":0},{"$f":"T_DataComboFile[[#This Row],[2022/23 Baseline_Source]]*T_DataComboFile[[#This Row],[G&S reporting level indicator]]","v":0},{"$f":"T_DataComboFile[[#This Row],[2023/24 Baseline_Source]]*T_DataComboFile[[#This Row],[G&S reporting level indicator]]","v":0},null,null,null,null,null,null,{"$f":"T_DataComboFile[[#This Row],[2021/22 Baseline]]+T_DataComboFile[[#This Row],[2021/22 Reduction]]+T_DataComboFile[[#This Row],[2021/22 Increase]]","v":0},{"$f":"T_DataComboFile[[#This Row],[2022/23 Baseline]]+T_DataComboFile[[#This Row],[2022/23 Reduction]]+T_DataComboFile[[#This Row],[2022/23 Increase]]","v":0},{"$f":"T_DataComboFile[[#This Row],[2023/24 Baseline]]+T_DataComboFile[[#This Row],[2023/24 Reduction]]+T_DataComboFile[[#This Row],[2023/24 Increase]]","v":0}]
[null,null,"2021_22","ENE2020",36,1,2,null,70200,36,1,2,null,"070200","36|01|02",1,2,9,51,55,"01|02|09|51|55","National","Small Business Development","Administration","Departmental Management",null,"Current","Transfers and subsidies","Non-profit institutions","Non-profit institutions","Non-profit institutions",null,null,null,0,0,0,0,0,0,0,0,0,0,0,0,0,0,null,{"$f":"IF(T_DataComboFile[[#This Row],[G&S reporting level indicator]]=1,$AX$16,\"Not applicable\")","v":"Level 3"},{"$f":"IF(AND($AX$16=\"Level 3\",T_DataComboFile[[#This Row],[Econ3]] = \"Goods and services\"),IF(T_DataComboFile[[#This Row],[Econ4]] = T_DataComboFile[[#This Row],[Econ3]],1,0),IF(AND($AX$16=\"Level 4\",T_DataComboFile[[#This Row],[Econ4]] = \"Goods and services\"),0,1))","v":1},{"$f":"T_DataComboFile[[#This Row],[2016/17_Source]]*T_DataComboFile[[#This Row],[G&S reporting level indicator]]","v":0},{"$f":"T_DataComboFile[[#This Row],[2017/18_Source]]*T_DataComboFile[[#This Row],[G&S reporting level indicator]]","v":0},{"$f":"T_DataComboFile[[#This Row],[2018/19_Source]]*T_DataComboFile[[#This Row],[G&S reporting level indicator]]","v":0},{"$f":"T_DataComboFile[[#This Row],[2019/20 Main appropriation_Source]]*T_DataComboFile[[#This Row],[G&S reporting level indicator]]","v":0},{"$f":"T_DataComboFile[[#This Row],[2019/20 Adjusted appropriation_Source]]*T_DataComboFile[[#This Row],[G&S reporting level indicator]]","v":0},{"$f":"T_DataComboFile[[#This Row],[2019/20 Revised estimate_Source]]*T_DataComboFile[[#This Row],[G&S reporting level indicator]]","v":0},{"$f":"T_DataComboFile[[#This Row],[2019/20 Preliminary outcome_Source]]*T_DataComboFile[[#This Row],[G&S reporting level indicator]]","v":0},{"$f":"T_DataComboFile[[#This Row],[2020/21 Original_Source]]*T_DataComboFile[[#This Row],[G&S reporting level indicator]]","v":0},{"$f":"T_DataComboFile[[#This Row],[2020/21 SAB_Source]]*T_DataComboFile[[#This Row],[G&S reporting level indicator]]","v":0},{"$f":"T_DataComboFile[[#This Row],[2020/21 Baseline_Source]]*T_DataComboFile[[#This Row],[G&S reporting level indicator]]","v":0},{"$f":"T_DataComboFile[[#This Row],[2021/22 Baseline_Source]]*T_DataComboFile[[#This Row],[G&S reporting level indicator]]","v":0},{"$f":"T_DataComboFile[[#This Row],[2022/23 Baseline_Source]]*T_DataComboFile[[#This Row],[G&S reporting level indicator]]","v":0},{"$f":"T_DataComboFile[[#This Row],[2023/24 Baseline_Source]]*T_DataComboFile[[#This Row],[G&S reporting level indicator]]","v":0},null,null,null,null,null,null,{"$f":"T_DataComboFile[[#This Row],[2021/22 Baseline]]+T_DataComboFile[[#This Row],[2021/22 Reduction]]+T_DataComboFile[[#This Row],[2021/22 Increase]]","v":0},{"$f":"T_DataComboFile[[#This Row],[2022/23 Baseline]]+T_DataComboFile[[#This Row],[2022/23 Reduction]]+T_DataComboFile[[#This Row],[2022/23 Increase]]","v":0},{"$f":"T_DataComboFile[[#This Row],[2023/24 Baseline]]+T_DataComboFile[[#This Row],[2023/24 Reduction]]+T_DataComboFile[[#This Row],[2023/24 Increase]]","v":0}]
["NAT|Households","36|Social benefits","2021_22","ENE2020",36,1,2,17213,70201,36,1,2,17213,"070201","36|01|02",1,2,10,52,56,"01|02|10|52|56","National","Small Business Development","Administration","Departmental Management","Households","Current","Transfers and subsidies","Households","Social benefits","Social benefits","Economic development","Industrialisation and exports","NAT",0,27,14,0,0,0,0,0,0,0,0,0,0,1,null,{"$f":"IF(T_DataComboFile[[#This Row],[G&S reporting level indicator]]=1,$AX$16,\"Not applicable\")","v":"Level 3"},{"$f":"IF(AND($AX$16=\"Level 3\",T_DataComboFile[[#This Row],[Econ3]] = \"Goods and services\"),IF(T_DataComboFile[[#This Row],[Econ4]] = T_DataComboFile[[#This Row],[Econ3]],1,0),IF(AND($AX$16=\"Level 4\",T_DataComboFile[[#This Row],[Econ4]] = \"Goods and services\"),0,1))","v":1},{"$f":"T_DataComboFile[[#This Row],[2016/17_Source]]*T_DataComboFile[[#This Row],[G&S reporting level indicator]]","v":0},{"$f":"T_DataComboFile[[#This Row],[2017/18_Source]]*T_DataComboFile[[#This Row],[G&S reporting level indicator]]","v":27},{"$f":"T_DataComboFile[[#This Row],[2018/19_Source]]*T_DataComboFile[[#This Row],[G&S reporting level indicator]]","v":14},{"$f":"T_DataComboFile[[#This Row],[2019/20 Main appropriation_Source]]*T_DataComboFile[[#This Row],[G&S reporting level indicator]]","v":0},{"$f":"T_DataComboFile[[#This Row],[2019/20 Adjusted appropriation_Source]]*T_DataComboFile[[#This Row],[G&S reporting level indicator]]","v":0},{"$f":"T_DataComboFile[[#This Row],[2019/20 Revised estimate_Source]]*T_DataComboFile[[#This Row],[G&S reporting level indicator]]","v":0},{"$f":"T_DataComboFile[[#This Row],[2019/20 Preliminary outcome_Source]]*T_DataComboFile[[#This Row],[G&S reporting level indicator]]","v":0},{"$f":"T_DataComboFile[[#This Row],[2020/21 Original_Source]]*T_DataComboFile[[#This Row],[G&S reporting level indicator]]","v":0},{"$f":"T_DataComboFile[[#This Row],[2020/21 SAB_Source]]*T_DataComboFile[[#This Row],[G&S reporting level indicator]]","v":0},{"$f":"T_DataComboFile[[#This Row],[2020/21 Baseline_Source]]*T_DataComboFile[[#This Row],[G&S reporting level indicator]]","v":0},{"$f":"T_DataComboFile[[#This Row],[2021/22 Baseline_Source]]*T_DataComboFile[[#This Row],[G&S reporting level indicator]]","v":0},{"$f":"T_DataComboFile[[#This Row],[2022/23 Baseline_Source]]*T_DataComboFile[[#This Row],[G&S reporting level indicator]]","v":0},{"$f":"T_DataComboFile[[#This Row],[2023/24 Baseline_Source]]*T_DataComboFile[[#This Row],[G&S reporting level indicator]]","v":0},null,null,null,null,null,null,{"$f":"T_DataComboFile[[#This Row],[2021/22 Baseline]]+T_DataComboFile[[#This Row],[2021/22 Reduction]]+T_DataComboFile[[#This Row],[2021/22 Increase]]","v":0},{"$f":"T_DataComboFile[[#This Row],[2022/23 Baseline]]+T_DataComboFile[[#This Row],[2022/23 Reduction]]+T_DataComboFile[[#This Row],[2022/23 Increase]]","v":0},{"$f":"T_DataComboFile[[#This Row],[2023/24 Baseline]]+T_DataComboFile[[#This Row],[2023/24 Reduction]]+T_DataComboFile[[#This Row],[2023/24 Increase]]","v":0}]
[null,null,"2021_22","ENE2020",36,1,2,null,70202,36,1,2,null,"070202","36|01|02",1,2,10,53,57,"01|02|10|53|57","National","Small Business Development","Administration","Departmental Management",null,"Current","Transfers and subsidies","Households","Other transfers to households","Other transfers to households",null,null,null,0,0,0,0,0,0,0,0,0,0,0,0,0,0,null,{"$f":"IF(T_DataComboFile[[#This Row],[G&S reporting level indicator]]=1,$AX$16,\"Not applicable\")","v":"Level 3"},{"$f":"IF(AND($AX$16=\"Level 3\",T_DataComboFile[[#This Row],[Econ3]] = \"Goods and services\"),IF(T_DataComboFile[[#This Row],[Econ4]] = T_DataComboFile[[#This Row],[Econ3]],1,0),IF(AND($AX$16=\"Level 4\",T_DataComboFile[[#This Row],[Econ4]] = \"Goods and services\"),0,1))","v":1},{"$f":"T_DataComboFile[[#This Row],[2016/17_Source]]*T_DataComboFile[[#This Row],[G&S reporting level indicator]]","v":0},{"$f":"T_DataComboFile[[#This Row],[2017/18_Source]]*T_DataComboFile[[#This Row],[G&S reporting level indicator]]","v":0},{"$f":"T_DataComboFile[[#This Row],[2018/19_Source]]*T_DataComboFile[[#This Row],[G&S reporting level indicator]]","v":0},{"$f":"T_DataComboFile[[#This Row],[2019/20 Main appropriation_Source]]*T_DataComboFile[[#This Row],[G&S reporting level indicator]]","v":0},{"$f":"T_DataComboFile[[#This Row],[2019/20 Adjusted appropriation_Source]]*T_DataComboFile[[#This Row],[G&S reporting level indicator]]","v":0},{"$f":"T_DataComboFile[[#This Row],[2019/20 Revised estimate_Source]]*T_DataComboFile[[#This Row],[G&S reporting level indicator]]","v":0},{"$f":"T_DataComboFile[[#This Row],[2019/20 Preliminary outcome_Source]]*T_DataComboFile[[#This Row],[G&S reporting level indicator]]","v":0},{"$f":"T_DataComboFile[[#This Row],[2020/21 Original_Source]]*T_DataComboFile[[#This Row],[G&S reporting level indicator]]","v":0},{"$f":"T_DataComboFile[[#This Row],[2020/21 SAB_Source]]*T_DataComboFile[[#This Row],[G&S reporting level indicator]]","v":0},{"$f":"T_DataComboFile[[#This Row],[2020/21 Baseline_Source]]*T_DataComboFile[[#This Row],[G&S reporting level indicator]]","v":0},{"$f":"T_DataComboFile[[#This Row],[2021/22 Baseline_Source]]*T_DataComboFile[[#This Row],[G&S reporting level indicator]]","v":0},{"$f":"T_DataComboFile[[#This Row],[2022/23 Baseline_Source]]*T_DataComboFile[[#This Row],[G&S reporting level indicator]]","v":0},{"$f":"T_DataComboFile[[#This Row],[2023/24 Baseline_Source]]*T_DataComboFile[[#This Row],[G&S reporting level indicator]]","v":0},null,null,null,null,null,null,{"$f":"T_DataComboFile[[#This Row],[2021/22 Baseline]]+T_DataComboFile[[#This Row],[2021/22 Reduction]]+T_DataComboFile[[#This Row],[2021/22 Increase]]","v":0},{"$f":"T_DataComboFile[[#This Row],[2022/23 Baseline]]+T_DataComboFile[[#This Row],[2022/23 Reduction]]+T_DataComboFile[[#This Row],[2022/23 Increase]]","v":0},{"$f":"T_DataComboFile[[#This Row],[2023/24 Baseline]]+T_DataComboFile[[#This Row],[2023/24 Reduction]]+T_DataComboFile[[#This Row],[2023/24 Increase]]","v":0}]
[null,null,"2021_22","ENE2020",36,1,2,null,70203,36,1,2,null,"070203","36|01|02",2,2,4,43,43,"02|02|04|43|43","National","Small Business Development","Administration","Departmental Management",null,"Capital","Transfers and subsidies","Provinces and municipalities","Provinces","Provincial Revenue Funds",null,null,null,0,0,0,0,0,0,0,0,0,0,0,0,0,0,null,{"$f":"IF(T_DataComboFile[[#This Row],[G&S reporting level indicator]]=1,$AX$16,\"Not applicable\")","v":"Level 3"},{"$f":"IF(AND($AX$16=\"Level 3\",T_DataComboFile[[#This Row],[Econ3]] = \"Goods and services\"),IF(T_DataComboFile[[#This Row],[Econ4]] = T_DataComboFile[[#This Row],[Econ3]],1,0),IF(AND($AX$16=\"Level 4\",T_DataComboFile[[#This Row],[Econ4]] = \"Goods and services\"),0,1))","v":1},{"$f":"T_DataComboFile[[#This Row],[2016/17_Source]]*T_DataComboFile[[#This Row],[G&S reporting level indicator]]","v":0},{"$f":"T_DataComboFile[[#This Row],[2017/18_Source]]*T_DataComboFile[[#This Row],[G&S reporting level indicator]]","v":0},{"$f":"T_DataComboFile[[#This Row],[2018/19_Source]]*T_DataComboFile[[#This Row],[G&S reporting level indicator]]","v":0},{"$f":"T_DataComboFile[[#This Row],[2019/20 Main appropriation_Source]]*T_DataComboFile[[#This Row],[G&S reporting level indicator]]","v":0},{"$f":"T_DataComboFile[[#This Row],[2019/20 Adjusted appropriation_Source]]*T_DataComboFile[[#This Row],[G&S reporting level indicator]]","v":0},{"$f":"T_DataComboFile[[#This Row],[2019/20 Revised estimate_Source]]*T_DataComboFile[[#This Row],[G&S reporting level indicator]]","v":0},{"$f":"T_DataComboFile[[#This Row],[2019/20 Preliminary outcome_Source]]*T_DataComboFile[[#This Row],[G&S reporting level indicator]]","v":0},{"$f":"T_DataComboFile[[#This Row],[2020/21 Original_Source]]*T_DataComboFile[[#This Row],[G&S reporting level indicator]]","v":0},{"$f":"T_DataComboFile[[#This Row],[2020/21 SAB_Source]]*T_DataComboFile[[#This Row],[G&S reporting level indicator]]","v":0},{"$f":"T_DataComboFile[[#This Row],[2020/21 Baseline_Source]]*T_DataComboFile[[#This Row],[G&S reporting level indicator]]","v":0},{"$f":"T_DataComboFile[[#This Row],[2021/22 Baseline_Source]]*T_DataComboFile[[#This Row],[G&S reporting level indicator]]","v":0},{"$f":"T_DataComboFile[[#This Row],[2022/23 Baseline_Source]]*T_DataComboFile[[#This Row],[G&S reporting level indicator]]","v":0},{"$f":"T_DataComboFile[[#This Row],[2023/24 Baseline_Source]]*T_DataComboFile[[#This Row],[G&S reporting level indicator]]","v":0},null,null,null,null,null,null,{"$f":"T_DataComboFile[[#This Row],[2021/22 Baseline]]+T_DataComboFile[[#This Row],[2021/22 Reduction]]+T_DataComboFile[[#This Row],[2021/22 Increase]]","v":0},{"$f":"T_DataComboFile[[#This Row],[2022/23 Baseline]]+T_DataComboFile[[#This Row],[2022/23 Reduction]]+T_DataComboFile[[#This Row],[2022/23 Increase]]","v":0},{"$f":"T_DataComboFile[[#This Row],[2023/24 Baseline]]+T_DataComboFile[[#This Row],[2023/24 Reduction]]+T_DataComboFile[[#This Row],[2023/24 Increase]]","v":0}]
[null,null,"2021_22","ENE2020",36,1,2,null,70204,36,1,2,null,"070204","36|01|02",2,2,4,44,45,"02|02|04|44|45","National","Small Business Development","Administration","Departmental Management",null,"Capital","Transfers and subsidies","Provinces and municipalities","Municipalities","Municipal bank accounts",null,null,null,0,0,0,0,0,0,0,0,0,0,0,0,0,0,null,{"$f":"IF(T_DataComboFile[[#This Row],[G&S reporting level indicator]]=1,$AX$16,\"Not applicable\")","v":"Level 3"},{"$f":"IF(AND($AX$16=\"Level 3\",T_DataComboFile[[#This Row],[Econ3]] = \"Goods and services\"),IF(T_DataComboFile[[#This Row],[Econ4]] = T_DataComboFile[[#This Row],[Econ3]],1,0),IF(AND($AX$16=\"Level 4\",T_DataComboFile[[#This Row],[Econ4]] = \"Goods and services\"),0,1))","v":1},{"$f":"T_DataComboFile[[#This Row],[2016/17_Source]]*T_DataComboFile[[#This Row],[G&S reporting level indicator]]","v":0},{"$f":"T_DataComboFile[[#This Row],[2017/18_Source]]*T_DataComboFile[[#This Row],[G&S reporting level indicator]]","v":0},{"$f":"T_DataComboFile[[#This Row],[2018/19_Source]]*T_DataComboFile[[#This Row],[G&S reporting level indicator]]","v":0},{"$f":"T_DataComboFile[[#This Row],[2019/20 Main appropriation_Source]]*T_DataComboFile[[#This Row],[G&S reporting level indicator]]","v":0},{"$f":"T_DataComboFile[[#This Row],[2019/20 Adjusted appropriation_Source]]*T_DataComboFile[[#This Row],[G&S reporting level indicator]]","v":0},{"$f":"T_DataComboFile[[#This Row],[2019/20 Revised estimate_Source]]*T_DataComboFile[[#This Row],[G&S reporting level indicator]]","v":0},{"$f":"T_DataComboFile[[#This Row],[2019/20 Preliminary outcome_Source]]*T_DataComboFile[[#This Row],[G&S reporting level indicator]]","v":0},{"$f":"T_DataComboFile[[#This Row],[2020/21 Original_Source]]*T_DataComboFile[[#This Row],[G&S reporting level indicator]]","v":0},{"$f":"T_DataComboFile[[#This Row],[2020/21 SAB_Source]]*T_DataComboFile[[#This Row],[G&S reporting level indicator]]","v":0},{"$f":"T_DataComboFile[[#This Row],[2020/21 Baseline_Source]]*T_DataComboFile[[#This Row],[G&S reporting level indicator]]","v":0},{"$f":"T_DataComboFile[[#This Row],[2021/22 Baseline_Source]]*T_DataComboFile[[#This Row],[G&S reporting level indicator]]","v":0},{"$f":"T_DataComboFile[[#This Row],[2022/23 Baseline_Source]]*T_DataComboFile[[#This Row],[G&S reporting level indicator]]","v":0},{"$f":"T_DataComboFile[[#This Row],[2023/24 Baseline_Source]]*T_DataComboFile[[#This Row],[G&S reporting level indicator]]","v":0},null,null,null,null,null,null,{"$f":"T_DataComboFile[[#This Row],[2021/22 Baseline]]+T_DataComboFile[[#This Row],[2021/22 Reduction]]+T_DataComboFile[[#This Row],[2021/22 Increase]]","v":0},{"$f":"T_DataComboFile[[#This Row],[2022/23 Baseline]]+T_DataComboFile[[#This Row],[2022/23 Reduction]]+T_DataComboFile[[#This Row],[2022/23 Increase]]","v":0},{"$f":"T_DataComboFile[[#This Row],[2023/24 Baseline]]+T_DataComboFile[[#This Row],[2023/24 Reduction]]+T_DataComboFile[[#This Row],[2023/24 Increase]]","v":0}]
[null,null,"2021_22","ENE2020",36,1,2,null,70205,36,1,2,null,"070205","36|01|02",2,2,5,46,48,"02|02|05|46|48","National","Small Business Development","Administration","Departmental Management",null,"Capital","Transfers and subsidies","Departmental agencies and accounts","Departmental agencies (non-business entities)","Departmental agencies (non-business entities)",null,null,null,0,0,0,0,0,0,0,0,0,0,0,0,0,0,null,{"$f":"IF(T_DataComboFile[[#This Row],[G&S reporting level indicator]]=1,$AX$16,\"Not applicable\")","v":"Level 3"},{"$f":"IF(AND($AX$16=\"Level 3\",T_DataComboFile[[#This Row],[Econ3]] = \"Goods and services\"),IF(T_DataComboFile[[#This Row],[Econ4]] = T_DataComboFile[[#This Row],[Econ3]],1,0),IF(AND($AX$16=\"Level 4\",T_DataComboFile[[#This Row],[Econ4]] = \"Goods and services\"),0,1))","v":1},{"$f":"T_DataComboFile[[#This Row],[2016/17_Source]]*T_DataComboFile[[#This Row],[G&S reporting level indicator]]","v":0},{"$f":"T_DataComboFile[[#This Row],[2017/18_Source]]*T_DataComboFile[[#This Row],[G&S reporting level indicator]]","v":0},{"$f":"T_DataComboFile[[#This Row],[2018/19_Source]]*T_DataComboFile[[#This Row],[G&S reporting level indicator]]","v":0},{"$f":"T_DataComboFile[[#This Row],[2019/20 Main appropriation_Source]]*T_DataComboFile[[#This Row],[G&S reporting level indicator]]","v":0},{"$f":"T_DataComboFile[[#This Row],[2019/20 Adjusted appropriation_Source]]*T_DataComboFile[[#This Row],[G&S reporting level indicator]]","v":0},{"$f":"T_DataComboFile[[#This Row],[2019/20 Revised estimate_Source]]*T_DataComboFile[[#This Row],[G&S reporting level indicator]]","v":0},{"$f":"T_DataComboFile[[#This Row],[2019/20 Preliminary outcome_Source]]*T_DataComboFile[[#This Row],[G&S reporting level indicator]]","v":0},{"$f":"T_DataComboFile[[#This Row],[2020/21 Original_Source]]*T_DataComboFile[[#This Row],[G&S reporting level indicator]]","v":0},{"$f":"T_DataComboFile[[#This Row],[2020/21 SAB_Source]]*T_DataComboFile[[#This Row],[G&S reporting level indicator]]","v":0},{"$f":"T_DataComboFile[[#This Row],[2020/21 Baseline_Source]]*T_DataComboFile[[#This Row],[G&S reporting level indicator]]","v":0},{"$f":"T_DataComboFile[[#This Row],[2021/22 Baseline_Source]]*T_DataComboFile[[#This Row],[G&S reporting level indicator]]","v":0},{"$f":"T_DataComboFile[[#This Row],[2022/23 Baseline_Source]]*T_DataComboFile[[#This Row],[G&S reporting level indicator]]","v":0},{"$f":"T_DataComboFile[[#This Row],[2023/24 Baseline_Source]]*T_DataComboFile[[#This Row],[G&S reporting level indicator]]","v":0},null,null,null,null,null,null,{"$f":"T_DataComboFile[[#This Row],[2021/22 Baseline]]+T_DataComboFile[[#This Row],[2021/22 Reduction]]+T_DataComboFile[[#This Row],[2021/22 Increase]]","v":0},{"$f":"T_DataComboFile[[#This Row],[2022/23 Baseline]]+T_DataComboFile[[#This Row],[2022/23 Reduction]]+T_DataComboFile[[#This Row],[2022/23 Increase]]","v":0},{"$f":"T_DataComboFile[[#This Row],[2023/24 Baseline]]+T_DataComboFile[[#This Row],[2023/24 Reduction]]+T_DataComboFile[[#This Row],[2023/24 Increase]]","v":0}]
[null,null,"2021_22","ENE2020",36,1,2,null,70206,36,1,2,null,"070206","36|01|02",2,2,6,47,49,"02|02|06|47|49","National","Small Business Development","Administration","Departmental Management",null,"Capital","Transfers and subsidies","Higher education institutions","Higher education institutions","Higher education institutions",null,null,null,0,0,0,0,0,0,0,0,0,0,0,0,0,0,null,{"$f":"IF(T_DataComboFile[[#This Row],[G&S reporting level indicator]]=1,$AX$16,\"Not applicable\")","v":"Level 3"},{"$f":"IF(AND($AX$16=\"Level 3\",T_DataComboFile[[#This Row],[Econ3]] = \"Goods and services\"),IF(T_DataComboFile[[#This Row],[Econ4]] = T_DataComboFile[[#This Row],[Econ3]],1,0),IF(AND($AX$16=\"Level 4\",T_DataComboFile[[#This Row],[Econ4]] = \"Goods and services\"),0,1))","v":1},{"$f":"T_DataComboFile[[#This Row],[2016/17_Source]]*T_DataComboFile[[#This Row],[G&S reporting level indicator]]","v":0},{"$f":"T_DataComboFile[[#This Row],[2017/18_Source]]*T_DataComboFile[[#This Row],[G&S reporting level indicator]]","v":0},{"$f":"T_DataComboFile[[#This Row],[2018/19_Source]]*T_DataComboFile[[#This Row],[G&S reporting level indicator]]","v":0},{"$f":"T_DataComboFile[[#This Row],[2019/20 Main appropriation_Source]]*T_DataComboFile[[#This Row],[G&S reporting level indicator]]","v":0},{"$f":"T_DataComboFile[[#This Row],[2019/20 Adjusted appropriation_Source]]*T_DataComboFile[[#This Row],[G&S reporting level indicator]]","v":0},{"$f":"T_DataComboFile[[#This Row],[2019/20 Revised estimate_Source]]*T_DataComboFile[[#This Row],[G&S reporting level indicator]]","v":0},{"$f":"T_DataComboFile[[#This Row],[2019/20 Preliminary outcome_Source]]*T_DataComboFile[[#This Row],[G&S reporting level indicator]]","v":0},{"$f":"T_DataComboFile[[#This Row],[2020/21 Original_Source]]*T_DataComboFile[[#This Row],[G&S reporting level indicator]]","v":0},{"$f":"T_DataComboFile[[#This Row],[2020/21 SAB_Source]]*T_DataComboFile[[#This Row],[G&S reporting level indicator]]","v":0},{"$f":"T_DataComboFile[[#This Row],[2020/21 Baseline_Source]]*T_DataComboFile[[#This Row],[G&S reporting level indicator]]","v":0},{"$f":"T_DataComboFile[[#This Row],[2021/22 Baseline_Source]]*T_DataComboFile[[#This Row],[G&S reporting level indicator]]","v":0},{"$f":"T_DataComboFile[[#This Row],[2022/23 Baseline_Source]]*T_DataComboFile[[#This Row],[G&S reporting level indicator]]","v":0},{"$f":"T_DataComboFile[[#This Row],[2023/24 Baseline_Source]]*T_DataComboFile[[#This Row],[G&S reporting level indicator]]","v":0},null,null,null,null,null,null,{"$f":"T_DataComboFile[[#This Row],[2021/22 Baseline]]+T_DataComboFile[[#This Row],[2021/22 Reduction]]+T_DataComboFile[[#This Row],[2021/22 Increase]]","v":0},{"$f":"T_DataComboFile[[#This Row],[2022/23 Baseline]]+T_DataComboFile[[#This Row],[2022/23 Reduction]]+T_DataComboFile[[#This Row],[2022/23 Increase]]","v":0},{"$f":"T_DataComboFile[[#This Row],[2023/24 Baseline]]+T_DataComboFile[[#This Row],[2023/24 Reduction]]+T_DataComboFile[[#This Row],[2023/24 Increase]]","v":0}]
[null,null,"2021_22","ENE2020",36,1,2,null,70207,36,1,2,null,"070207","36|01|02",2,2,7,48,50,"02|02|07|48|50","National","Small Business Development","Administration","Departmental Management",null,"Capital","Transfers and subsidies","Foreign governments and international organisations","Foreign governments and international organisations","Foreign governments and international organisations",null,null,null,0,0,0,0,0,0,0,0,0,0,0,0,0,0,null,{"$f":"IF(T_DataComboFile[[#This Row],[G&S reporting level indicator]]=1,$AX$16,\"Not applicable\")","v":"Level 3"},{"$f":"IF(AND($AX$16=\"Level 3\",T_DataComboFile[[#This Row],[Econ3]] = \"Goods and services\"),IF(T_DataComboFile[[#This Row],[Econ4]] = T_DataComboFile[[#This Row],[Econ3]],1,0),IF(AND($AX$16=\"Level 4\",T_DataComboFile[[#This Row],[Econ4]] = \"Goods and services\"),0,1))","v":1},{"$f":"T_DataComboFile[[#This Row],[2016/17_Source]]*T_DataComboFile[[#This Row],[G&S reporting level indicator]]","v":0},{"$f":"T_DataComboFile[[#This Row],[2017/18_Source]]*T_DataComboFile[[#This Row],[G&S reporting level indicator]]","v":0},{"$f":"T_DataComboFile[[#This Row],[2018/19_Source]]*T_DataComboFile[[#This Row],[G&S reporting level indicator]]","v":0},{"$f":"T_DataComboFile[[#This Row],[2019/20 Main appropriation_Source]]*T_DataComboFile[[#This Row],[G&S reporting level indicator]]","v":0},{"$f":"T_DataComboFile[[#This Row],[2019/20 Adjusted appropriation_Source]]*T_DataComboFile[[#This Row],[G&S reporting level indicator]]","v":0},{"$f":"T_DataComboFile[[#This Row],[2019/20 Revised estimate_Source]]*T_DataComboFile[[#This Row],[G&S reporting level indicator]]","v":0},{"$f":"T_DataComboFile[[#This Row],[2019/20 Preliminary outcome_Source]]*T_DataComboFile[[#This Row],[G&S reporting level indicator]]","v":0},{"$f":"T_DataComboFile[[#This Row],[2020/21 Original_Source]]*T_DataComboFile[[#This Row],[G&S reporting level indicator]]","v":0},{"$f":"T_DataComboFile[[#This Row],[2020/21 SAB_Source]]*T_DataComboFile[[#This Row],[G&S reporting level indicator]]","v":0},{"$f":"T_DataComboFile[[#This Row],[2020/21 Baseline_Source]]*T_DataComboFile[[#This Row],[G&S reporting level indicator]]","v":0},{"$f":"T_DataComboFile[[#This Row],[2021/22 Baseline_Source]]*T_DataComboFile[[#This Row],[G&S reporting level indicator]]","v":0},{"$f":"T_DataComboFile[[#This Row],[2022/23 Baseline_Source]]*T_DataComboFile[[#This Row],[G&S reporting level indicator]]","v":0},{"$f":"T_DataComboFile[[#This Row],[2023/24 Baseline_Source]]*T_DataComboFile[[#This Row],[G&S reporting level indicator]]","v":0},null,null,null,null,null,null,{"$f":"T_DataComboFile[[#This Row],[2021/22 Baseline]]+T_DataComboFile[[#This Row],[2021/22 Reduction]]+T_DataComboFile[[#This Row],[2021/22 Increase]]","v":0},{"$f":"T_DataComboFile[[#This Row],[2022/23 Baseline]]+T_DataComboFile[[#This Row],[2022/23 Reduction]]+T_DataComboFile[[#This Row],[2022/23 Increase]]","v":0},{"$f":"T_DataComboFile[[#This Row],[2023/24 Baseline]]+T_DataComboFile[[#This Row],[2023/24 Reduction]]+T_DataComboFile[[#This Row],[2023/24 Increase]]","v":0}]
[null,null,"2021_22","ENE2020",36,1,2,null,70208,36,1,2,null,"070208","36|01|02",2,2,8,49,51,"02|02|08|49|51","National","Small Business Development","Administration","Departmental Management",null,"Capital","Transfers and subsidies","Public corporations and private enterprises","Public corporations","Subsidies on products and production (pc)",null,null,null,0,0,0,0,0,0,0,0,0,0,0,0,0,0,null,{"$f":"IF(T_DataComboFile[[#This Row],[G&S reporting level indicator]]=1,$AX$16,\"Not applicable\")","v":"Level 3"},{"$f":"IF(AND($AX$16=\"Level 3\",T_DataComboFile[[#This Row],[Econ3]] = \"Goods and services\"),IF(T_DataComboFile[[#This Row],[Econ4]] = T_DataComboFile[[#This Row],[Econ3]],1,0),IF(AND($AX$16=\"Level 4\",T_DataComboFile[[#This Row],[Econ4]] = \"Goods and services\"),0,1))","v":1},{"$f":"T_DataComboFile[[#This Row],[2016/17_Source]]*T_DataComboFile[[#This Row],[G&S reporting level indicator]]","v":0},{"$f":"T_DataComboFile[[#This Row],[2017/18_Source]]*T_DataComboFile[[#This Row],[G&S reporting level indicator]]","v":0},{"$f":"T_DataComboFile[[#This Row],[2018/19_Source]]*T_DataComboFile[[#This Row],[G&S reporting level indicator]]","v":0},{"$f":"T_DataComboFile[[#This Row],[2019/20 Main appropriation_Source]]*T_DataComboFile[[#This Row],[G&S reporting level indicator]]","v":0},{"$f":"T_DataComboFile[[#This Row],[2019/20 Adjusted appropriation_Source]]*T_DataComboFile[[#This Row],[G&S reporting level indicator]]","v":0},{"$f":"T_DataComboFile[[#This Row],[2019/20 Revised estimate_Source]]*T_DataComboFile[[#This Row],[G&S reporting level indicator]]","v":0},{"$f":"T_DataComboFile[[#This Row],[2019/20 Preliminary outcome_Source]]*T_DataComboFile[[#This Row],[G&S reporting level indicator]]","v":0},{"$f":"T_DataComboFile[[#This Row],[2020/21 Original_Source]]*T_DataComboFile[[#This Row],[G&S reporting level indicator]]","v":0},{"$f":"T_DataComboFile[[#This Row],[2020/21 SAB_Source]]*T_DataComboFile[[#This Row],[G&S reporting level indicator]]","v":0},{"$f":"T_DataComboFile[[#This Row],[2020/21 Baseline_Source]]*T_DataComboFile[[#This Row],[G&S reporting level indicator]]","v":0},{"$f":"T_DataComboFile[[#This Row],[2021/22 Baseline_Source]]*T_DataComboFile[[#This Row],[G&S reporting level indicator]]","v":0},{"$f":"T_DataComboFile[[#This Row],[2022/23 Baseline_Source]]*T_DataComboFile[[#This Row],[G&S reporting level indicator]]","v":0},{"$f":"T_DataComboFile[[#This Row],[2023/24 Baseline_Source]]*T_DataComboFile[[#This Row],[G&S reporting level indicator]]","v":0},null,null,null,null,null,null,{"$f":"T_DataComboFile[[#This Row],[2021/22 Baseline]]+T_DataComboFile[[#This Row],[2021/22 Reduction]]+T_DataComboFile[[#This Row],[2021/22 Increase]]","v":0},{"$f":"T_DataComboFile[[#This Row],[2022/23 Baseline]]+T_DataComboFile[[#This Row],[2022/23 Reduction]]+T_DataComboFile[[#This Row],[2022/23 Increase]]","v":0},{"$f":"T_DataComboFile[[#This Row],[2023/24 Baseline]]+T_DataComboFile[[#This Row],[2023/24 Reduction]]+T_DataComboFile[[#This Row],[2023/24 Increase]]","v":0}]
[null,null,"2021_22","ENE2020",36,1,2,null,70209,36,1,2,null,"070209","36|01|02",2,2,8,49,52,"02|02|08|49|52","National","Small Business Development","Administration","Departmental Management",null,"Capital","Transfers and subsidies","Public corporations and private enterprises","Public corporations","Other transfers to public corporations",null,null,null,0,0,0,0,0,0,0,0,0,0,0,0,0,0,null,{"$f":"IF(T_DataComboFile[[#This Row],[G&S reporting level indicator]]=1,$AX$16,\"Not applicable\")","v":"Level 3"},{"$f":"IF(AND($AX$16=\"Level 3\",T_DataComboFile[[#This Row],[Econ3]] = \"Goods and services\"),IF(T_DataComboFile[[#This Row],[Econ4]] = T_DataComboFile[[#This Row],[Econ3]],1,0),IF(AND($AX$16=\"Level 4\",T_DataComboFile[[#This Row],[Econ4]] = \"Goods and services\"),0,1))","v":1},{"$f":"T_DataComboFile[[#This Row],[2016/17_Source]]*T_DataComboFile[[#This Row],[G&S reporting level indicator]]","v":0},{"$f":"T_DataComboFile[[#This Row],[2017/18_Source]]*T_DataComboFile[[#This Row],[G&S reporting level indicator]]","v":0},{"$f":"T_DataComboFile[[#This Row],[2018/19_Source]]*T_DataComboFile[[#This Row],[G&S reporting level indicator]]","v":0},{"$f":"T_DataComboFile[[#This Row],[2019/20 Main appropriation_Source]]*T_DataComboFile[[#This Row],[G&S reporting level indicator]]","v":0},{"$f":"T_DataComboFile[[#This Row],[2019/20 Adjusted appropriation_Source]]*T_DataComboFile[[#This Row],[G&S reporting level indicator]]","v":0},{"$f":"T_DataComboFile[[#This Row],[2019/20 Revised estimate_Source]]*T_DataComboFile[[#This Row],[G&S reporting level indicator]]","v":0},{"$f":"T_DataComboFile[[#This Row],[2019/20 Preliminary outcome_Source]]*T_DataComboFile[[#This Row],[G&S reporting level indicator]]","v":0},{"$f":"T_DataComboFile[[#This Row],[2020/21 Original_Source]]*T_DataComboFile[[#This Row],[G&S reporting level indicator]]","v":0},{"$f":"T_DataComboFile[[#This Row],[2020/21 SAB_Source]]*T_DataComboFile[[#This Row],[G&S reporting level indicator]]","v":0},{"$f":"T_DataComboFile[[#This Row],[2020/21 Baseline_Source]]*T_DataComboFile[[#This Row],[G&S reporting level indicator]]","v":0},{"$f":"T_DataComboFile[[#This Row],[2021/22 Baseline_Source]]*T_DataComboFile[[#This Row],[G&S reporting level indicator]]","v":0},{"$f":"T_DataComboFile[[#This Row],[2022/23 Baseline_Source]]*T_DataComboFile[[#This Row],[G&S reporting level indicator]]","v":0},{"$f":"T_DataComboFile[[#This Row],[2023/24 Baseline_Source]]*T_DataComboFile[[#This Row],[G&S reporting level indicator]]","v":0},null,null,null,null,null,null,{"$f":"T_DataComboFile[[#This Row],[2021/22 Baseline]]+T_DataComboFile[[#This Row],[2021/22 Reduction]]+T_DataComboFile[[#This Row],[2021/22 Increase]]","v":0},{"$f":"T_DataComboFile[[#This Row],[2022/23 Baseline]]+T_DataComboFile[[#This Row],[2022/23 Reduction]]+T_DataComboFile[[#This Row],[2022/23 Increase]]","v":0},{"$f":"T_DataComboFile[[#This Row],[2023/24 Baseline]]+T_DataComboFile[[#This Row],[2023/24 Reduction]]+T_DataComboFile[[#This Row],[2023/24 Increase]]","v":0}]
[null,null,"2021_22","ENE2020",36,1,2,null,70210,36,1,2,null,"070210","36|01|02",2,2,8,50,54,"02|02|08|50|54","National","Small Business Development","Administration","Departmental Management",null,"Capital","Transfers and subsidies","Public corporations and private enterprises","Private enterprises","Other transfers to private enterprises",null,null,null,0,0,0,0,0,0,0,0,0,0,0,0,0,0,null,{"$f":"IF(T_DataComboFile[[#This Row],[G&S reporting level indicator]]=1,$AX$16,\"Not applicable\")","v":"Level 3"},{"$f":"IF(AND($AX$16=\"Level 3\",T_DataComboFile[[#This Row],[Econ3]] = \"Goods and services\"),IF(T_DataComboFile[[#This Row],[Econ4]] = T_DataComboFile[[#This Row],[Econ3]],1,0),IF(AND($AX$16=\"Level 4\",T_DataComboFile[[#This Row],[Econ4]] = \"Goods and services\"),0,1))","v":1},{"$f":"T_DataComboFile[[#This Row],[2016/17_Source]]*T_DataComboFile[[#This Row],[G&S reporting level indicator]]","v":0},{"$f":"T_DataComboFile[[#This Row],[2017/18_Source]]*T_DataComboFile[[#This Row],[G&S reporting level indicator]]","v":0},{"$f":"T_DataComboFile[[#This Row],[2018/19_Source]]*T_DataComboFile[[#This Row],[G&S reporting level indicator]]","v":0},{"$f":"T_DataComboFile[[#This Row],[2019/20 Main appropriation_Source]]*T_DataComboFile[[#This Row],[G&S reporting level indicator]]","v":0},{"$f":"T_DataComboFile[[#This Row],[2019/20 Adjusted appropriation_Source]]*T_DataComboFile[[#This Row],[G&S reporting level indicator]]","v":0},{"$f":"T_DataComboFile[[#This Row],[2019/20 Revised estimate_Source]]*T_DataComboFile[[#This Row],[G&S reporting level indicator]]","v":0},{"$f":"T_DataComboFile[[#This Row],[2019/20 Preliminary outcome_Source]]*T_DataComboFile[[#This Row],[G&S reporting level indicator]]","v":0},{"$f":"T_DataComboFile[[#This Row],[2020/21 Original_Source]]*T_DataComboFile[[#This Row],[G&S reporting level indicator]]","v":0},{"$f":"T_DataComboFile[[#This Row],[2020/21 SAB_Source]]*T_DataComboFile[[#This Row],[G&S reporting level indicator]]","v":0},{"$f":"T_DataComboFile[[#This Row],[2020/21 Baseline_Source]]*T_DataComboFile[[#This Row],[G&S reporting level indicator]]","v":0},{"$f":"T_DataComboFile[[#This Row],[2021/22 Baseline_Source]]*T_DataComboFile[[#This Row],[G&S reporting level indicator]]","v":0},{"$f":"T_DataComboFile[[#This Row],[2022/23 Baseline_Source]]*T_DataComboFile[[#This Row],[G&S reporting level indicator]]","v":0},{"$f":"T_DataComboFile[[#This Row],[2023/24 Baseline_Source]]*T_DataComboFile[[#This Row],[G&S reporting level indicator]]","v":0},null,null,null,null,null,null,{"$f":"T_DataComboFile[[#This Row],[2021/22 Baseline]]+T_DataComboFile[[#This Row],[2021/22 Reduction]]+T_DataComboFile[[#This Row],[2021/22 Increase]]","v":0},{"$f":"T_DataComboFile[[#This Row],[2022/23 Baseline]]+T_DataComboFile[[#This Row],[2022/23 Reduction]]+T_DataComboFile[[#This Row],[2022/23 Increase]]","v":0},{"$f":"T_DataComboFile[[#This Row],[2023/24 Baseline]]+T_DataComboFile[[#This Row],[2023/24 Reduction]]+T_DataComboFile[[#This Row],[2023/24 Increase]]","v":0}]
[null,null,"2021_22","ENE2020",36,1,2,null,70211,36,1,2,null,"070211","36|01|02",2,2,9,51,55,"02|02|09|51|55","National","Small Business Development","Administration","Departmental Management",null,"Capital","Transfers and subsidies","Non-profit institutions","Non-profit institutions","Non-profit institutions",null,null,null,0,0,0,0,0,0,0,0,0,0,0,0,0,0,null,{"$f":"IF(T_DataComboFile[[#This Row],[G&S reporting level indicator]]=1,$AX$16,\"Not applicable\")","v":"Level 3"},{"$f":"IF(AND($AX$16=\"Level 3\",T_DataComboFile[[#This Row],[Econ3]] = \"Goods and services\"),IF(T_DataComboFile[[#This Row],[Econ4]] = T_DataComboFile[[#This Row],[Econ3]],1,0),IF(AND($AX$16=\"Level 4\",T_DataComboFile[[#This Row],[Econ4]] = \"Goods and services\"),0,1))","v":1},{"$f":"T_DataComboFile[[#This Row],[2016/17_Source]]*T_DataComboFile[[#This Row],[G&S reporting level indicator]]","v":0},{"$f":"T_DataComboFile[[#This Row],[2017/18_Source]]*T_DataComboFile[[#This Row],[G&S reporting level indicator]]","v":0},{"$f":"T_DataComboFile[[#This Row],[2018/19_Source]]*T_DataComboFile[[#This Row],[G&S reporting level indicator]]","v":0},{"$f":"T_DataComboFile[[#This Row],[2019/20 Main appropriation_Source]]*T_DataComboFile[[#This Row],[G&S reporting level indicator]]","v":0},{"$f":"T_DataComboFile[[#This Row],[2019/20 Adjusted appropriation_Source]]*T_DataComboFile[[#This Row],[G&S reporting level indicator]]","v":0},{"$f":"T_DataComboFile[[#This Row],[2019/20 Revised estimate_Source]]*T_DataComboFile[[#This Row],[G&S reporting level indicator]]","v":0},{"$f":"T_DataComboFile[[#This Row],[2019/20 Preliminary outcome_Source]]*T_DataComboFile[[#This Row],[G&S reporting level indicator]]","v":0},{"$f":"T_DataComboFile[[#This Row],[2020/21 Original_Source]]*T_DataComboFile[[#This Row],[G&S reporting level indicator]]","v":0},{"$f":"T_DataComboFile[[#This Row],[2020/21 SAB_Source]]*T_DataComboFile[[#This Row],[G&S reporting level indicator]]","v":0},{"$f":"T_DataComboFile[[#This Row],[2020/21 Baseline_Source]]*T_DataComboFile[[#This Row],[G&S reporting level indicator]]","v":0},{"$f":"T_DataComboFile[[#This Row],[2021/22 Baseline_Source]]*T_DataComboFile[[#This Row],[G&S reporting level indicator]]","v":0},{"$f":"T_DataComboFile[[#This Row],[2022/23 Baseline_Source]]*T_DataComboFile[[#This Row],[G&S reporting level indicator]]","v":0},{"$f":"T_DataComboFile[[#This Row],[2023/24 Baseline_Source]]*T_DataComboFile[[#This Row],[G&S reporting level indicator]]","v":0},null,null,null,null,null,null,{"$f":"T_DataComboFile[[#This Row],[2021/22 Baseline]]+T_DataComboFile[[#This Row],[2021/22 Reduction]]+T_DataComboFile[[#This Row],[2021/22 Increase]]","v":0},{"$f":"T_DataComboFile[[#This Row],[2022/23 Baseline]]+T_DataComboFile[[#This Row],[2022/23 Reduction]]+T_DataComboFile[[#This Row],[2022/23 Increase]]","v":0},{"$f":"T_DataComboFile[[#This Row],[2023/24 Baseline]]+T_DataComboFile[[#This Row],[2023/24 Reduction]]+T_DataComboFile[[#This Row],[2023/24 Increase]]","v":0}]
[null,null,"2021_22","ENE2020",36,1,2,null,70212,36,1,2,null,"070212","36|01|02",2,2,10,53,57,"02|02|10|53|57","National","Small Business Development","Administration","Departmental Management",null,"Capital","Transfers and subsidies","Households","Other transfers to households","Other transfers to households",null,null,null,0,0,0,0,0,0,0,0,0,0,0,0,0,0,null,{"$f":"IF(T_DataComboFile[[#This Row],[G&S reporting level indicator]]=1,$AX$16,\"Not applicable\")","v":"Level 3"},{"$f":"IF(AND($AX$16=\"Level 3\",T_DataComboFile[[#This Row],[Econ3]] = \"Goods and services\"),IF(T_DataComboFile[[#This Row],[Econ4]] = T_DataComboFile[[#This Row],[Econ3]],1,0),IF(AND($AX$16=\"Level 4\",T_DataComboFile[[#This Row],[Econ4]] = \"Goods and services\"),0,1))","v":1},{"$f":"T_DataComboFile[[#This Row],[2016/17_Source]]*T_DataComboFile[[#This Row],[G&S reporting level indicator]]","v":0},{"$f":"T_DataComboFile[[#This Row],[2017/18_Source]]*T_DataComboFile[[#This Row],[G&S reporting level indicator]]","v":0},{"$f":"T_DataComboFile[[#This Row],[2018/19_Source]]*T_DataComboFile[[#This Row],[G&S reporting level indicator]]","v":0},{"$f":"T_DataComboFile[[#This Row],[2019/20 Main appropriation_Source]]*T_DataComboFile[[#This Row],[G&S reporting level indicator]]","v":0},{"$f":"T_DataComboFile[[#This Row],[2019/20 Adjusted appropriation_Source]]*T_DataComboFile[[#This Row],[G&S reporting level indicator]]","v":0},{"$f":"T_DataComboFile[[#This Row],[2019/20 Revised estimate_Source]]*T_DataComboFile[[#This Row],[G&S reporting level indicator]]","v":0},{"$f":"T_DataComboFile[[#This Row],[2019/20 Preliminary outcome_Source]]*T_DataComboFile[[#This Row],[G&S reporting level indicator]]","v":0},{"$f":"T_DataComboFile[[#This Row],[2020/21 Original_Source]]*T_DataComboFile[[#This Row],[G&S reporting level indicator]]","v":0},{"$f":"T_DataComboFile[[#This Row],[2020/21 SAB_Source]]*T_DataComboFile[[#This Row],[G&S reporting level indicator]]","v":0},{"$f":"T_DataComboFile[[#This Row],[2020/21 Baseline_Source]]*T_DataComboFile[[#This Row],[G&S reporting level indicator]]","v":0},{"$f":"T_DataComboFile[[#This Row],[2021/22 Baseline_Source]]*T_DataComboFile[[#This Row],[G&S reporting level indicator]]","v":0},{"$f":"T_DataComboFile[[#This Row],[2022/23 Baseline_Source]]*T_DataComboFile[[#This Row],[G&S reporting level indicator]]","v":0},{"$f":"T_DataComboFile[[#This Row],[2023/24 Baseline_Source]]*T_DataComboFile[[#This Row],[G&S reporting level indicator]]","v":0},null,null,null,null,null,null,{"$f":"T_DataComboFile[[#This Row],[2021/22 Baseline]]+T_DataComboFile[[#This Row],[2021/22 Reduction]]+T_DataComboFile[[#This Row],[2021/22 Increase]]","v":0},{"$f":"T_DataComboFile[[#This Row],[2022/23 Baseline]]+T_DataComboFile[[#This Row],[2022/23 Reduction]]+T_DataComboFile[[#This Row],[2022/23 Increase]]","v":0},{"$f":"T_DataComboFile[[#This Row],[2023/24 Baseline]]+T_DataComboFile[[#This Row],[2023/24 Reduction]]+T_DataComboFile[[#This Row],[2023/24 Increase]]","v":0}]
[null,null,"2021_22","ENE2020",36,1,2,null,70213,36,1,2,null,"070213","36|01|02",2,3,11,54,58,"02|03|11|54|58","National","Small Business Development","Administration","Departmental Management",null,"Capital","Payments for capital assets","Buildings and other fixed structures","Buildings","Buildings",null,null,null,0,0,0,0,0,0,0,0,0,0,0,0,0,0,null,{"$f":"IF(T_DataComboFile[[#This Row],[G&S reporting level indicator]]=1,$AX$16,\"Not applicable\")","v":"Level 3"},{"$f":"IF(AND($AX$16=\"Level 3\",T_DataComboFile[[#This Row],[Econ3]] = \"Goods and services\"),IF(T_DataComboFile[[#This Row],[Econ4]] = T_DataComboFile[[#This Row],[Econ3]],1,0),IF(AND($AX$16=\"Level 4\",T_DataComboFile[[#This Row],[Econ4]] = \"Goods and services\"),0,1))","v":1},{"$f":"T_DataComboFile[[#This Row],[2016/17_Source]]*T_DataComboFile[[#This Row],[G&S reporting level indicator]]","v":0},{"$f":"T_DataComboFile[[#This Row],[2017/18_Source]]*T_DataComboFile[[#This Row],[G&S reporting level indicator]]","v":0},{"$f":"T_DataComboFile[[#This Row],[2018/19_Source]]*T_DataComboFile[[#This Row],[G&S reporting level indicator]]","v":0},{"$f":"T_DataComboFile[[#This Row],[2019/20 Main appropriation_Source]]*T_DataComboFile[[#This Row],[G&S reporting level indicator]]","v":0},{"$f":"T_DataComboFile[[#This Row],[2019/20 Adjusted appropriation_Source]]*T_DataComboFile[[#This Row],[G&S reporting level indicator]]","v":0},{"$f":"T_DataComboFile[[#This Row],[2019/20 Revised estimate_Source]]*T_DataComboFile[[#This Row],[G&S reporting level indicator]]","v":0},{"$f":"T_DataComboFile[[#This Row],[2019/20 Preliminary outcome_Source]]*T_DataComboFile[[#This Row],[G&S reporting level indicator]]","v":0},{"$f":"T_DataComboFile[[#This Row],[2020/21 Original_Source]]*T_DataComboFile[[#This Row],[G&S reporting level indicator]]","v":0},{"$f":"T_DataComboFile[[#This Row],[2020/21 SAB_Source]]*T_DataComboFile[[#This Row],[G&S reporting level indicator]]","v":0},{"$f":"T_DataComboFile[[#This Row],[2020/21 Baseline_Source]]*T_DataComboFile[[#This Row],[G&S reporting level indicator]]","v":0},{"$f":"T_DataComboFile[[#This Row],[2021/22 Baseline_Source]]*T_DataComboFile[[#This Row],[G&S reporting level indicator]]","v":0},{"$f":"T_DataComboFile[[#This Row],[2022/23 Baseline_Source]]*T_DataComboFile[[#This Row],[G&S reporting level indicator]]","v":0},{"$f":"T_DataComboFile[[#This Row],[2023/24 Baseline_Source]]*T_DataComboFile[[#This Row],[G&S reporting level indicator]]","v":0},null,null,null,null,null,null,{"$f":"T_DataComboFile[[#This Row],[2021/22 Baseline]]+T_DataComboFile[[#This Row],[2021/22 Reduction]]+T_DataComboFile[[#This Row],[2021/22 Increase]]","v":0},{"$f":"T_DataComboFile[[#This Row],[2022/23 Baseline]]+T_DataComboFile[[#This Row],[2022/23 Reduction]]+T_DataComboFile[[#This Row],[2022/23 Increase]]","v":0},{"$f":"T_DataComboFile[[#This Row],[2023/24 Baseline]]+T_DataComboFile[[#This Row],[2023/24 Reduction]]+T_DataComboFile[[#This Row],[2023/24 Increase]]","v":0}]
[null,null,"2021_22","ENE2020",36,1,2,null,70214,36,1,2,null,"070214","36|01|02",2,3,11,55,59,"02|03|11|55|59","National","Small Business Development","Administration","Departmental Management",null,"Capital","Payments for capital assets","Buildings and other fixed structures","Other fixed structures","Other fixed structures",null,null,null,0,0,0,0,0,0,0,0,0,0,0,0,0,0,null,{"$f":"IF(T_DataComboFile[[#This Row],[G&S reporting level indicator]]=1,$AX$16,\"Not applicable\")","v":"Level 3"},{"$f":"IF(AND($AX$16=\"Level 3\",T_DataComboFile[[#This Row],[Econ3]] = \"Goods and services\"),IF(T_DataComboFile[[#This Row],[Econ4]] = T_DataComboFile[[#This Row],[Econ3]],1,0),IF(AND($AX$16=\"Level 4\",T_DataComboFile[[#This Row],[Econ4]] = \"Goods and services\"),0,1))","v":1},{"$f":"T_DataComboFile[[#This Row],[2016/17_Source]]*T_DataComboFile[[#This Row],[G&S reporting level indicator]]","v":0},{"$f":"T_DataComboFile[[#This Row],[2017/18_Source]]*T_DataComboFile[[#This Row],[G&S reporting level indicator]]","v":0},{"$f":"T_DataComboFile[[#This Row],[2018/19_Source]]*T_DataComboFile[[#This Row],[G&S reporting level indicator]]","v":0},{"$f":"T_DataComboFile[[#This Row],[2019/20 Main appropriation_Source]]*T_DataComboFile[[#This Row],[G&S reporting level indicator]]","v":0},{"$f":"T_DataComboFile[[#This Row],[2019/20 Adjusted appropriation_Source]]*T_DataComboFile[[#This Row],[G&S reporting level indicator]]","v":0},{"$f":"T_DataComboFile[[#This Row],[2019/20 Revised estimate_Source]]*T_DataComboFile[[#This Row],[G&S reporting level indicator]]","v":0},{"$f":"T_DataComboFile[[#This Row],[2019/20 Preliminary outcome_Source]]*T_DataComboFile[[#This Row],[G&S reporting level indicator]]","v":0},{"$f":"T_DataComboFile[[#This Row],[2020/21 Original_Source]]*T_DataComboFile[[#This Row],[G&S reporting level indicator]]","v":0},{"$f":"T_DataComboFile[[#This Row],[2020/21 SAB_Source]]*T_DataComboFile[[#This Row],[G&S reporting level indicator]]","v":0},{"$f":"T_DataComboFile[[#This Row],[2020/21 Baseline_Source]]*T_DataComboFile[[#This Row],[G&S reporting level indicator]]","v":0},{"$f":"T_DataComboFile[[#This Row],[2021/22 Baseline_Source]]*T_DataComboFile[[#This Row],[G&S reporting level indicator]]","v":0},{"$f":"T_DataComboFile[[#This Row],[2022/23 Baseline_Source]]*T_DataComboFile[[#This Row],[G&S reporting level indicator]]","v":0},{"$f":"T_DataComboFile[[#This Row],[2023/24 Baseline_Source]]*T_DataComboFile[[#This Row],[G&S reporting level indicator]]","v":0},null,null,null,null,null,null,{"$f":"T_DataComboFile[[#This Row],[2021/22 Baseline]]+T_DataComboFile[[#This Row],[2021/22 Reduction]]+T_DataComboFile[[#This Row],[2021/22 Increase]]","v":0},{"$f":"T_DataComboFile[[#This Row],[2022/23 Baseline]]+T_DataComboFile[[#This Row],[2022/23 Reduction]]+T_DataComboFile[[#This Row],[2022/23 Increase]]","v":0},{"$f":"T_DataComboFile[[#This Row],[2023/24 Baseline]]+T_DataComboFile[[#This Row],[2023/24 Reduction]]+T_DataComboFile[[#This Row],[2023/24 Increase]]","v":0}]
[null,null,"2021_22","ENE2020",36,1,2,null,70215,36,1,2,null,"070215","36|01|02",2,3,12,56,60,"02|03|12|56|60","National","Small Business Development","Administration","Departmental Management",null,"Capital","Payments for capital assets","Machinery and equipment","Transport equipment","Transport equipment",null,null,null,0,0,0,0,0,0,0,0,0,0,0,0,0,0,null,{"$f":"IF(T_DataComboFile[[#This Row],[G&S reporting level indicator]]=1,$AX$16,\"Not applicable\")","v":"Level 3"},{"$f":"IF(AND($AX$16=\"Level 3\",T_DataComboFile[[#This Row],[Econ3]] = \"Goods and services\"),IF(T_DataComboFile[[#This Row],[Econ4]] = T_DataComboFile[[#This Row],[Econ3]],1,0),IF(AND($AX$16=\"Level 4\",T_DataComboFile[[#This Row],[Econ4]] = \"Goods and services\"),0,1))","v":1},{"$f":"T_DataComboFile[[#This Row],[2016/17_Source]]*T_DataComboFile[[#This Row],[G&S reporting level indicator]]","v":0},{"$f":"T_DataComboFile[[#This Row],[2017/18_Source]]*T_DataComboFile[[#This Row],[G&S reporting level indicator]]","v":0},{"$f":"T_DataComboFile[[#This Row],[2018/19_Source]]*T_DataComboFile[[#This Row],[G&S reporting level indicator]]","v":0},{"$f":"T_DataComboFile[[#This Row],[2019/20 Main appropriation_Source]]*T_DataComboFile[[#This Row],[G&S reporting level indicator]]","v":0},{"$f":"T_DataComboFile[[#This Row],[2019/20 Adjusted appropriation_Source]]*T_DataComboFile[[#This Row],[G&S reporting level indicator]]","v":0},{"$f":"T_DataComboFile[[#This Row],[2019/20 Revised estimate_Source]]*T_DataComboFile[[#This Row],[G&S reporting level indicator]]","v":0},{"$f":"T_DataComboFile[[#This Row],[2019/20 Preliminary outcome_Source]]*T_DataComboFile[[#This Row],[G&S reporting level indicator]]","v":0},{"$f":"T_DataComboFile[[#This Row],[2020/21 Original_Source]]*T_DataComboFile[[#This Row],[G&S reporting level indicator]]","v":0},{"$f":"T_DataComboFile[[#This Row],[2020/21 SAB_Source]]*T_DataComboFile[[#This Row],[G&S reporting level indicator]]","v":0},{"$f":"T_DataComboFile[[#This Row],[2020/21 Baseline_Source]]*T_DataComboFile[[#This Row],[G&S reporting level indicator]]","v":0},{"$f":"T_DataComboFile[[#This Row],[2021/22 Baseline_Source]]*T_DataComboFile[[#This Row],[G&S reporting level indicator]]","v":0},{"$f":"T_DataComboFile[[#This Row],[2022/23 Baseline_Source]]*T_DataComboFile[[#This Row],[G&S reporting level indicator]]","v":0},{"$f":"T_DataComboFile[[#This Row],[2023/24 Baseline_Source]]*T_DataComboFile[[#This Row],[G&S reporting level indicator]]","v":0},null,null,null,null,null,null,{"$f":"T_DataComboFile[[#This Row],[2021/22 Baseline]]+T_DataComboFile[[#This Row],[2021/22 Reduction]]+T_DataComboFile[[#This Row],[2021/22 Increase]]","v":0},{"$f":"T_DataComboFile[[#This Row],[2022/23 Baseline]]+T_DataComboFile[[#This Row],[2022/23 Reduction]]+T_DataComboFile[[#This Row],[2022/23 Increase]]","v":0},{"$f":"T_DataComboFile[[#This Row],[2023/24 Baseline]]+T_DataComboFile[[#This Row],[2023/24 Reduction]]+T_DataComboFile[[#This Row],[2023/24 Increase]]","v":0}]
["NAT|Non-transfer item","36|Other machinery and equipment","2021_22","ENE2020",36,1,2,17214,70216,36,1,2,17214,"070216","36|01|02",2,3,12,57,61,"02|03|12|57|61","National","Small Business Development","Administration","Departmental Management","Non-transfer item","Capital","Payments for capital assets","Machinery and equipment","Other machinery and equipment","Other machinery and equipment","Economic development","Industrialisation and exports","NAT",12,59,115,81,116,116,116,136,136,136,140,145,151,1,null,{"$f":"IF(T_DataComboFile[[#This Row],[G&S reporting level indicator]]=1,$AX$16,\"Not applicable\")","v":"Level 3"},{"$f":"IF(AND($AX$16=\"Level 3\",T_DataComboFile[[#This Row],[Econ3]] = \"Goods and services\"),IF(T_DataComboFile[[#This Row],[Econ4]] = T_DataComboFile[[#This Row],[Econ3]],1,0),IF(AND($AX$16=\"Level 4\",T_DataComboFile[[#This Row],[Econ4]] = \"Goods and services\"),0,1))","v":1},{"$f":"T_DataComboFile[[#This Row],[2016/17_Source]]*T_DataComboFile[[#This Row],[G&S reporting level indicator]]","v":12},{"$f":"T_DataComboFile[[#This Row],[2017/18_Source]]*T_DataComboFile[[#This Row],[G&S reporting level indicator]]","v":59},{"$f":"T_DataComboFile[[#This Row],[2018/19_Source]]*T_DataComboFile[[#This Row],[G&S reporting level indicator]]","v":115},{"$f":"T_DataComboFile[[#This Row],[2019/20 Main appropriation_Source]]*T_DataComboFile[[#This Row],[G&S reporting level indicator]]","v":81},{"$f":"T_DataComboFile[[#This Row],[2019/20 Adjusted appropriation_Source]]*T_DataComboFile[[#This Row],[G&S reporting level indicator]]","v":116},{"$f":"T_DataComboFile[[#This Row],[2019/20 Revised estimate_Source]]*T_DataComboFile[[#This Row],[G&S reporting level indicator]]","v":116},{"$f":"T_DataComboFile[[#This Row],[2019/20 Preliminary outcome_Source]]*T_DataComboFile[[#This Row],[G&S reporting level indicator]]","v":116},{"$f":"T_DataComboFile[[#This Row],[2020/21 Original_Source]]*T_DataComboFile[[#This Row],[G&S reporting level indicator]]","v":136},{"$f":"T_DataComboFile[[#This Row],[2020/21 SAB_Source]]*T_DataComboFile[[#This Row],[G&S reporting level indicator]]","v":136},{"$f":"T_DataComboFile[[#This Row],[2020/21 Baseline_Source]]*T_DataComboFile[[#This Row],[G&S reporting level indicator]]","v":136},{"$f":"T_DataComboFile[[#This Row],[2021/22 Baseline_Source]]*T_DataComboFile[[#This Row],[G&S reporting level indicator]]","v":140},{"$f":"T_DataComboFile[[#This Row],[2022/23 Baseline_Source]]*T_DataComboFile[[#This Row],[G&S reporting level indicator]]","v":145},{"$f":"T_DataComboFile[[#This Row],[2023/24 Baseline_Source]]*T_DataComboFile[[#This Row],[G&S reporting level indicator]]","v":151},null,null,null,null,null,null,{"$f":"T_DataComboFile[[#This Row],[2021/22 Baseline]]+T_DataComboFile[[#This Row],[2021/22 Reduction]]+T_DataComboFile[[#This Row],[2021/22 Increase]]","v":140},{"$f":"T_DataComboFile[[#This Row],[2022/23 Baseline]]+T_DataComboFile[[#This Row],[2022/23 Reduction]]+T_DataComboFile[[#This Row],[2022/23 Increase]]","v":145},{"$f":"T_DataComboFile[[#This Row],[2023/24 Baseline]]+T_DataComboFile[[#This Row],[2023/24 Reduction]]+T_DataComboFile[[#This Row],[2023/24 Increase]]","v":151}]
[null,null,"2021_22","ENE2020",36,1,2,null,70217,36,1,2,null,"070217","36|01|02",2,3,13,58,62,"02|03|13|58|62","National","Small Business Development","Administration","Departmental Management",null,"Capital","Payments for capital assets","Heritage assets","Heritage assets","Heritage assets",null,null,null,0,0,0,0,0,0,0,0,0,0,0,0,0,0,null,{"$f":"IF(T_DataComboFile[[#This Row],[G&S reporting level indicator]]=1,$AX$16,\"Not applicable\")","v":"Level 3"},{"$f":"IF(AND($AX$16=\"Level 3\",T_DataComboFile[[#This Row],[Econ3]] = \"Goods and services\"),IF(T_DataComboFile[[#This Row],[Econ4]] = T_DataComboFile[[#This Row],[Econ3]],1,0),IF(AND($AX$16=\"Level 4\",T_DataComboFile[[#This Row],[Econ4]] = \"Goods and services\"),0,1))","v":1},{"$f":"T_DataComboFile[[#This Row],[2016/17_Source]]*T_DataComboFile[[#This Row],[G&S reporting level indicator]]","v":0},{"$f":"T_DataComboFile[[#This Row],[2017/18_Source]]*T_DataComboFile[[#This Row],[G&S reporting level indicator]]","v":0},{"$f":"T_DataComboFile[[#This Row],[2018/19_Source]]*T_DataComboFile[[#This Row],[G&S reporting level indicator]]","v":0},{"$f":"T_DataComboFile[[#This Row],[2019/20 Main appropriation_Source]]*T_DataComboFile[[#This Row],[G&S reporting level indicator]]","v":0},{"$f":"T_DataComboFile[[#This Row],[2019/20 Adjusted appropriation_Source]]*T_DataComboFile[[#This Row],[G&S reporting level indicator]]","v":0},{"$f":"T_DataComboFile[[#This Row],[2019/20 Revised estimate_Source]]*T_DataComboFile[[#This Row],[G&S reporting level indicator]]","v":0},{"$f":"T_DataComboFile[[#This Row],[2019/20 Preliminary outcome_Source]]*T_DataComboFile[[#This Row],[G&S reporting level indicator]]","v":0},{"$f":"T_DataComboFile[[#This Row],[2020/21 Original_Source]]*T_DataComboFile[[#This Row],[G&S reporting level indicator]]","v":0},{"$f":"T_DataComboFile[[#This Row],[2020/21 SAB_Source]]*T_DataComboFile[[#This Row],[G&S reporting level indicator]]","v":0},{"$f":"T_DataComboFile[[#This Row],[2020/21 Baseline_Source]]*T_DataComboFile[[#This Row],[G&S reporting level indicator]]","v":0},{"$f":"T_DataComboFile[[#This Row],[2021/22 Baseline_Source]]*T_DataComboFile[[#This Row],[G&S reporting level indicator]]","v":0},{"$f":"T_DataComboFile[[#This Row],[2022/23 Baseline_Source]]*T_DataComboFile[[#This Row],[G&S reporting level indicator]]","v":0},{"$f":"T_DataComboFile[[#This Row],[2023/24 Baseline_Source]]*T_DataComboFile[[#This Row],[G&S reporting level indicator]]","v":0},null,null,null,null,null,null,{"$f":"T_DataComboFile[[#This Row],[2021/22 Baseline]]+T_DataComboFile[[#This Row],[2021/22 Reduction]]+T_DataComboFile[[#This Row],[2021/22 Increase]]","v":0},{"$f":"T_DataComboFile[[#This Row],[2022/23 Baseline]]+T_DataComboFile[[#This Row],[2022/23 Reduction]]+T_DataComboFile[[#This Row],[2022/23 Increase]]","v":0},{"$f":"T_DataComboFile[[#This Row],[2023/24 Baseline]]+T_DataComboFile[[#This Row],[2023/24 Reduction]]+T_DataComboFile[[#This Row],[2023/24 Increase]]","v":0}]
[null,null,"2021_22","ENE2020",36,1,2,null,70218,36,1,2,null,"070218","36|01|02",2,3,14,59,63,"02|03|14|59|63","National","Small Business Development","Administration","Departmental Management",null,"Capital","Payments for capital assets","Specialised military assets","Specialised military assets","Specialised military assets",null,null,null,0,0,0,0,0,0,0,0,0,0,0,0,0,0,null,{"$f":"IF(T_DataComboFile[[#This Row],[G&S reporting level indicator]]=1,$AX$16,\"Not applicable\")","v":"Level 3"},{"$f":"IF(AND($AX$16=\"Level 3\",T_DataComboFile[[#This Row],[Econ3]] = \"Goods and services\"),IF(T_DataComboFile[[#This Row],[Econ4]] = T_DataComboFile[[#This Row],[Econ3]],1,0),IF(AND($AX$16=\"Level 4\",T_DataComboFile[[#This Row],[Econ4]] = \"Goods and services\"),0,1))","v":1},{"$f":"T_DataComboFile[[#This Row],[2016/17_Source]]*T_DataComboFile[[#This Row],[G&S reporting level indicator]]","v":0},{"$f":"T_DataComboFile[[#This Row],[2017/18_Source]]*T_DataComboFile[[#This Row],[G&S reporting level indicator]]","v":0},{"$f":"T_DataComboFile[[#This Row],[2018/19_Source]]*T_DataComboFile[[#This Row],[G&S reporting level indicator]]","v":0},{"$f":"T_DataComboFile[[#This Row],[2019/20 Main appropriation_Source]]*T_DataComboFile[[#This Row],[G&S reporting level indicator]]","v":0},{"$f":"T_DataComboFile[[#This Row],[2019/20 Adjusted appropriation_Source]]*T_DataComboFile[[#This Row],[G&S reporting level indicator]]","v":0},{"$f":"T_DataComboFile[[#This Row],[2019/20 Revised estimate_Source]]*T_DataComboFile[[#This Row],[G&S reporting level indicator]]","v":0},{"$f":"T_DataComboFile[[#This Row],[2019/20 Preliminary outcome_Source]]*T_DataComboFile[[#This Row],[G&S reporting level indicator]]","v":0},{"$f":"T_DataComboFile[[#This Row],[2020/21 Original_Source]]*T_DataComboFile[[#This Row],[G&S reporting level indicator]]","v":0},{"$f":"T_DataComboFile[[#This Row],[2020/21 SAB_Source]]*T_DataComboFile[[#This Row],[G&S reporting level indicator]]","v":0},{"$f":"T_DataComboFile[[#This Row],[2020/21 Baseline_Source]]*T_DataComboFile[[#This Row],[G&S reporting level indicator]]","v":0},{"$f":"T_DataComboFile[[#This Row],[2021/22 Baseline_Source]]*T_DataComboFile[[#This Row],[G&S reporting level indicator]]","v":0},{"$f":"T_DataComboFile[[#This Row],[2022/23 Baseline_Source]]*T_DataComboFile[[#This Row],[G&S reporting level indicator]]","v":0},{"$f":"T_DataComboFile[[#This Row],[2023/24 Baseline_Source]]*T_DataComboFile[[#This Row],[G&S reporting level indicator]]","v":0},null,null,null,null,null,null,{"$f":"T_DataComboFile[[#This Row],[2021/22 Baseline]]+T_DataComboFile[[#This Row],[2021/22 Reduction]]+T_DataComboFile[[#This Row],[2021/22 Increase]]","v":0},{"$f":"T_DataComboFile[[#This Row],[2022/23 Baseline]]+T_DataComboFile[[#This Row],[2022/23 Reduction]]+T_DataComboFile[[#This Row],[2022/23 Increase]]","v":0},{"$f":"T_DataComboFile[[#This Row],[2023/24 Baseline]]+T_DataComboFile[[#This Row],[2023/24 Reduction]]+T_DataComboFile[[#This Row],[2023/24 Increase]]","v":0}]
[null,null,"2021_22","ENE2020",36,1,2,null,70219,36,1,2,null,"070219","36|01|02",2,3,15,60,64,"02|03|15|60|64","National","Small Business Development","Administration","Departmental Management",null,"Capital","Payments for capital assets","Biological assets","Biological assets","Biological assets",null,null,null,0,0,0,0,0,0,0,0,0,0,0,0,0,0,null,{"$f":"IF(T_DataComboFile[[#This Row],[G&S reporting level indicator]]=1,$AX$16,\"Not applicable\")","v":"Level 3"},{"$f":"IF(AND($AX$16=\"Level 3\",T_DataComboFile[[#This Row],[Econ3]] = \"Goods and services\"),IF(T_DataComboFile[[#This Row],[Econ4]] = T_DataComboFile[[#This Row],[Econ3]],1,0),IF(AND($AX$16=\"Level 4\",T_DataComboFile[[#This Row],[Econ4]] = \"Goods and services\"),0,1))","v":1},{"$f":"T_DataComboFile[[#This Row],[2016/17_Source]]*T_DataComboFile[[#This Row],[G&S reporting level indicator]]","v":0},{"$f":"T_DataComboFile[[#This Row],[2017/18_Source]]*T_DataComboFile[[#This Row],[G&S reporting level indicator]]","v":0},{"$f":"T_DataComboFile[[#This Row],[2018/19_Source]]*T_DataComboFile[[#This Row],[G&S reporting level indicator]]","v":0},{"$f":"T_DataComboFile[[#This Row],[2019/20 Main appropriation_Source]]*T_DataComboFile[[#This Row],[G&S reporting level indicator]]","v":0},{"$f":"T_DataComboFile[[#This Row],[2019/20 Adjusted appropriation_Source]]*T_DataComboFile[[#This Row],[G&S reporting level indicator]]","v":0},{"$f":"T_DataComboFile[[#This Row],[2019/20 Revised estimate_Source]]*T_DataComboFile[[#This Row],[G&S reporting level indicator]]","v":0},{"$f":"T_DataComboFile[[#This Row],[2019/20 Preliminary outcome_Source]]*T_DataComboFile[[#This Row],[G&S reporting level indicator]]","v":0},{"$f":"T_DataComboFile[[#This Row],[2020/21 Original_Source]]*T_DataComboFile[[#This Row],[G&S reporting level indicator]]","v":0},{"$f":"T_DataComboFile[[#This Row],[2020/21 SAB_Source]]*T_DataComboFile[[#This Row],[G&S reporting level indicator]]","v":0},{"$f":"T_DataComboFile[[#This Row],[2020/21 Baseline_Source]]*T_DataComboFile[[#This Row],[G&S reporting level indicator]]","v":0},{"$f":"T_DataComboFile[[#This Row],[2021/22 Baseline_Source]]*T_DataComboFile[[#This Row],[G&S reporting level indicator]]","v":0},{"$f":"T_DataComboFile[[#This Row],[2022/23 Baseline_Source]]*T_DataComboFile[[#This Row],[G&S reporting level indicator]]","v":0},{"$f":"T_DataComboFile[[#This Row],[2023/24 Baseline_Source]]*T_DataComboFile[[#This Row],[G&S reporting level indicator]]","v":0},null,null,null,null,null,null,{"$f":"T_DataComboFile[[#This Row],[2021/22 Baseline]]+T_DataComboFile[[#This Row],[2021/22 Reduction]]+T_DataComboFile[[#This Row],[2021/22 Increase]]","v":0},{"$f":"T_DataComboFile[[#This Row],[2022/23 Baseline]]+T_DataComboFile[[#This Row],[2022/23 Reduction]]+T_DataComboFile[[#This Row],[2022/23 Increase]]","v":0},{"$f":"T_DataComboFile[[#This Row],[2023/24 Baseline]]+T_DataComboFile[[#This Row],[2023/24 Reduction]]+T_DataComboFile[[#This Row],[2023/24 Increase]]","v":0}]
[null,null,"2021_22","ENE2020",36,1,2,null,70220,36,1,2,null,"070220","36|01|02",2,3,16,61,65,"02|03|16|61|65","National","Small Business Development","Administration","Departmental Management",null,"Capital","Payments for capital assets","Land and sub-soil assets","Land and sub-soil assets","Land and sub-soil assets",null,null,null,0,0,0,0,0,0,0,0,0,0,0,0,0,0,null,{"$f":"IF(T_DataComboFile[[#This Row],[G&S reporting level indicator]]=1,$AX$16,\"Not applicable\")","v":"Level 3"},{"$f":"IF(AND($AX$16=\"Level 3\",T_DataComboFile[[#This Row],[Econ3]] = \"Goods and services\"),IF(T_DataComboFile[[#This Row],[Econ4]] = T_DataComboFile[[#This Row],[Econ3]],1,0),IF(AND($AX$16=\"Level 4\",T_DataComboFile[[#This Row],[Econ4]] = \"Goods and services\"),0,1))","v":1},{"$f":"T_DataComboFile[[#This Row],[2016/17_Source]]*T_DataComboFile[[#This Row],[G&S reporting level indicator]]","v":0},{"$f":"T_DataComboFile[[#This Row],[2017/18_Source]]*T_DataComboFile[[#This Row],[G&S reporting level indicator]]","v":0},{"$f":"T_DataComboFile[[#This Row],[2018/19_Source]]*T_DataComboFile[[#This Row],[G&S reporting level indicator]]","v":0},{"$f":"T_DataComboFile[[#This Row],[2019/20 Main appropriation_Source]]*T_DataComboFile[[#This Row],[G&S reporting level indicator]]","v":0},{"$f":"T_DataComboFile[[#This Row],[2019/20 Adjusted appropriation_Source]]*T_DataComboFile[[#This Row],[G&S reporting level indicator]]","v":0},{"$f":"T_DataComboFile[[#This Row],[2019/20 Revised estimate_Source]]*T_DataComboFile[[#This Row],[G&S reporting level indicator]]","v":0},{"$f":"T_DataComboFile[[#This Row],[2019/20 Preliminary outcome_Source]]*T_DataComboFile[[#This Row],[G&S reporting level indicator]]","v":0},{"$f":"T_DataComboFile[[#This Row],[2020/21 Original_Source]]*T_DataComboFile[[#This Row],[G&S reporting level indicator]]","v":0},{"$f":"T_DataComboFile[[#This Row],[2020/21 SAB_Source]]*T_DataComboFile[[#This Row],[G&S reporting level indicator]]","v":0},{"$f":"T_DataComboFile[[#This Row],[2020/21 Baseline_Source]]*T_DataComboFile[[#This Row],[G&S reporting level indicator]]","v":0},{"$f":"T_DataComboFile[[#This Row],[2021/22 Baseline_Source]]*T_DataComboFile[[#This Row],[G&S reporting level indicator]]","v":0},{"$f":"T_DataComboFile[[#This Row],[2022/23 Baseline_Source]]*T_DataComboFile[[#This Row],[G&S reporting level indicator]]","v":0},{"$f":"T_DataComboFile[[#This Row],[2023/24 Baseline_Source]]*T_DataComboFile[[#This Row],[G&S reporting level indicator]]","v":0},null,null,null,null,null,null,{"$f":"T_DataComboFile[[#This Row],[2021/22 Baseline]]+T_DataComboFile[[#This Row],[2021/22 Reduction]]+T_DataComboFile[[#This Row],[2021/22 Increase]]","v":0},{"$f":"T_DataComboFile[[#This Row],[2022/23 Baseline]]+T_DataComboFile[[#This Row],[2022/23 Reduction]]+T_DataComboFile[[#This Row],[2022/23 Increase]]","v":0},{"$f":"T_DataComboFile[[#This Row],[2023/24 Baseline]]+T_DataComboFile[[#This Row],[2023/24 Reduction]]+T_DataComboFile[[#This Row],[2023/24 Increase]]","v":0}]
[null,null,"2021_22","ENE2020",36,1,2,null,70221,36,1,2,null,"070221","36|01|02",2,3,17,62,66,"02|03|17|62|66","National","Small Business Development","Administration","Departmental Management",null,"Capital","Payments for capital assets","Software and other intangible assets","Software and other intangible assets","Software and other intangible assets",null,null,null,0,0,0,0,0,0,0,0,0,0,0,0,0,0,null,{"$f":"IF(T_DataComboFile[[#This Row],[G&S reporting level indicator]]=1,$AX$16,\"Not applicable\")","v":"Level 3"},{"$f":"IF(AND($AX$16=\"Level 3\",T_DataComboFile[[#This Row],[Econ3]] = \"Goods and services\"),IF(T_DataComboFile[[#This Row],[Econ4]] = T_DataComboFile[[#This Row],[Econ3]],1,0),IF(AND($AX$16=\"Level 4\",T_DataComboFile[[#This Row],[Econ4]] = \"Goods and services\"),0,1))","v":1},{"$f":"T_DataComboFile[[#This Row],[2016/17_Source]]*T_DataComboFile[[#This Row],[G&S reporting level indicator]]","v":0},{"$f":"T_DataComboFile[[#This Row],[2017/18_Source]]*T_DataComboFile[[#This Row],[G&S reporting level indicator]]","v":0},{"$f":"T_DataComboFile[[#This Row],[2018/19_Source]]*T_DataComboFile[[#This Row],[G&S reporting level indicator]]","v":0},{"$f":"T_DataComboFile[[#This Row],[2019/20 Main appropriation_Source]]*T_DataComboFile[[#This Row],[G&S reporting level indicator]]","v":0},{"$f":"T_DataComboFile[[#This Row],[2019/20 Adjusted appropriation_Source]]*T_DataComboFile[[#This Row],[G&S reporting level indicator]]","v":0},{"$f":"T_DataComboFile[[#This Row],[2019/20 Revised estimate_Source]]*T_DataComboFile[[#This Row],[G&S reporting level indicator]]","v":0},{"$f":"T_DataComboFile[[#This Row],[2019/20 Preliminary outcome_Source]]*T_DataComboFile[[#This Row],[G&S reporting level indicator]]","v":0},{"$f":"T_DataComboFile[[#This Row],[2020/21 Original_Source]]*T_DataComboFile[[#This Row],[G&S reporting level indicator]]","v":0},{"$f":"T_DataComboFile[[#This Row],[2020/21 SAB_Source]]*T_DataComboFile[[#This Row],[G&S reporting level indicator]]","v":0},{"$f":"T_DataComboFile[[#This Row],[2020/21 Baseline_Source]]*T_DataComboFile[[#This Row],[G&S reporting level indicator]]","v":0},{"$f":"T_DataComboFile[[#This Row],[2021/22 Baseline_Source]]*T_DataComboFile[[#This Row],[G&S reporting level indicator]]","v":0},{"$f":"T_DataComboFile[[#This Row],[2022/23 Baseline_Source]]*T_DataComboFile[[#This Row],[G&S reporting level indicator]]","v":0},{"$f":"T_DataComboFile[[#This Row],[2023/24 Baseline_Source]]*T_DataComboFile[[#This Row],[G&S reporting level indicator]]","v":0},null,null,null,null,null,null,{"$f":"T_DataComboFile[[#This Row],[2021/22 Baseline]]+T_DataComboFile[[#This Row],[2021/22 Reduction]]+T_DataComboFile[[#This Row],[2021/22 Increase]]","v":0},{"$f":"T_DataComboFile[[#This Row],[2022/23 Baseline]]+T_DataComboFile[[#This Row],[2022/23 Reduction]]+T_DataComboFile[[#This Row],[2022/23 Increase]]","v":0},{"$f":"T_DataComboFile[[#This Row],[2023/24 Baseline]]+T_DataComboFile[[#This Row],[2023/24 Reduction]]+T_DataComboFile[[#This Row],[2023/24 Increase]]","v":0}]
[null,null,"2021_22","ENE2020",36,1,2,null,70222,36,1,2,null,"070222","36|01|02",3,4,18,63,67,"03|04|18|63|67","National","Small Business Development","Administration","Departmental Management",null,"Payments for financial assets","Payments for financial assets","Payments for financial assets","Payments for financial assets","Payments for financial assets",null,null,null,0,0,0,0,0,0,0,0,0,0,0,0,0,0,null,{"$f":"IF(T_DataComboFile[[#This Row],[G&S reporting level indicator]]=1,$AX$16,\"Not applicable\")","v":"Level 3"},{"$f":"IF(AND($AX$16=\"Level 3\",T_DataComboFile[[#This Row],[Econ3]] = \"Goods and services\"),IF(T_DataComboFile[[#This Row],[Econ4]] = T_DataComboFile[[#This Row],[Econ3]],1,0),IF(AND($AX$16=\"Level 4\",T_DataComboFile[[#This Row],[Econ4]] = \"Goods and services\"),0,1))","v":1},{"$f":"T_DataComboFile[[#This Row],[2016/17_Source]]*T_DataComboFile[[#This Row],[G&S reporting level indicator]]","v":0},{"$f":"T_DataComboFile[[#This Row],[2017/18_Source]]*T_DataComboFile[[#This Row],[G&S reporting level indicator]]","v":0},{"$f":"T_DataComboFile[[#This Row],[2018/19_Source]]*T_DataComboFile[[#This Row],[G&S reporting level indicator]]","v":0},{"$f":"T_DataComboFile[[#This Row],[2019/20 Main appropriation_Source]]*T_DataComboFile[[#This Row],[G&S reporting level indicator]]","v":0},{"$f":"T_DataComboFile[[#This Row],[2019/20 Adjusted appropriation_Source]]*T_DataComboFile[[#This Row],[G&S reporting level indicator]]","v":0},{"$f":"T_DataComboFile[[#This Row],[2019/20 Revised estimate_Source]]*T_DataComboFile[[#This Row],[G&S reporting level indicator]]","v":0},{"$f":"T_DataComboFile[[#This Row],[2019/20 Preliminary outcome_Source]]*T_DataComboFile[[#This Row],[G&S reporting level indicator]]","v":0},{"$f":"T_DataComboFile[[#This Row],[2020/21 Original_Source]]*T_DataComboFile[[#This Row],[G&S reporting level indicator]]","v":0},{"$f":"T_DataComboFile[[#This Row],[2020/21 SAB_Source]]*T_DataComboFile[[#This Row],[G&S reporting level indicator]]","v":0},{"$f":"T_DataComboFile[[#This Row],[2020/21 Baseline_Source]]*T_DataComboFile[[#This Row],[G&S reporting level indicator]]","v":0},{"$f":"T_DataComboFile[[#This Row],[2021/22 Baseline_Source]]*T_DataComboFile[[#This Row],[G&S reporting level indicator]]","v":0},{"$f":"T_DataComboFile[[#This Row],[2022/23 Baseline_Source]]*T_DataComboFile[[#This Row],[G&S reporting level indicator]]","v":0},{"$f":"T_DataComboFile[[#This Row],[2023/24 Baseline_Source]]*T_DataComboFile[[#This Row],[G&S reporting level indicator]]","v":0},null,null,null,null,null,null,{"$f":"T_DataComboFile[[#This Row],[2021/22 Baseline]]+T_DataComboFile[[#This Row],[2021/22 Reduction]]+T_DataComboFile[[#This Row],[2021/22 Increase]]","v":0},{"$f":"T_DataComboFile[[#This Row],[2022/23 Baseline]]+T_DataComboFile[[#This Row],[2022/23 Reduction]]+T_DataComboFile[[#This Row],[2022/23 Increase]]","v":0},{"$f":"T_DataComboFile[[#This Row],[2023/24 Baseline]]+T_DataComboFile[[#This Row],[2023/24 Reduction]]+T_DataComboFile[[#This Row],[2023/24 Increase]]","v":0}]
["NAT|Non-transfer item","36|Salaries and wages","2021_22","ENE2020",36,1,3,17215,70223,36,1,3,17215,"070223","36|01|03",1,1,1,1,1,"01|01|01|01|01","National","Small Business Development","Administration","Corporate Services","Non-transfer item","Current","Current payments","Compensation of employees","Salaries and wages","Salaries and wages","Economic development","Industrialisation and exports","NAT",9727,13536,14709,15103,15419,17419,17419,17725,17725,16721,17204,17777,18561,1,null,{"$f":"IF(T_DataComboFile[[#This Row],[G&S reporting level indicator]]=1,$AX$16,\"Not applicable\")","v":"Level 3"},{"$f":"IF(AND($AX$16=\"Level 3\",T_DataComboFile[[#This Row],[Econ3]] = \"Goods and services\"),IF(T_DataComboFile[[#This Row],[Econ4]] = T_DataComboFile[[#This Row],[Econ3]],1,0),IF(AND($AX$16=\"Level 4\",T_DataComboFile[[#This Row],[Econ4]] = \"Goods and services\"),0,1))","v":1},{"$f":"T_DataComboFile[[#This Row],[2016/17_Source]]*T_DataComboFile[[#This Row],[G&S reporting level indicator]]","v":9727},{"$f":"T_DataComboFile[[#This Row],[2017/18_Source]]*T_DataComboFile[[#This Row],[G&S reporting level indicator]]","v":13536},{"$f":"T_DataComboFile[[#This Row],[2018/19_Source]]*T_DataComboFile[[#This Row],[G&S reporting level indicator]]","v":14709},{"$f":"T_DataComboFile[[#This Row],[2019/20 Main appropriation_Source]]*T_DataComboFile[[#This Row],[G&S reporting level indicator]]","v":15103},{"$f":"T_DataComboFile[[#This Row],[2019/20 Adjusted appropriation_Source]]*T_DataComboFile[[#This Row],[G&S reporting level indicator]]","v":15419},{"$f":"T_DataComboFile[[#This Row],[2019/20 Revised estimate_Source]]*T_DataComboFile[[#This Row],[G&S reporting level indicator]]","v":17419},{"$f":"T_DataComboFile[[#This Row],[2019/20 Preliminary outcome_Source]]*T_DataComboFile[[#This Row],[G&S reporting level indicator]]","v":17419},{"$f":"T_DataComboFile[[#This Row],[2020/21 Original_Source]]*T_DataComboFile[[#This Row],[G&S reporting level indicator]]","v":17725},{"$f":"T_DataComboFile[[#This Row],[2020/21 SAB_Source]]*T_DataComboFile[[#This Row],[G&S reporting level indicator]]","v":17725},{"$f":"T_DataComboFile[[#This Row],[2020/21 Baseline_Source]]*T_DataComboFile[[#This Row],[G&S reporting level indicator]]","v":16721},{"$f":"T_DataComboFile[[#This Row],[2021/22 Baseline_Source]]*T_DataComboFile[[#This Row],[G&S reporting level indicator]]","v":17204},{"$f":"T_DataComboFile[[#This Row],[2022/23 Baseline_Source]]*T_DataComboFile[[#This Row],[G&S reporting level indicator]]","v":17777},{"$f":"T_DataComboFile[[#This Row],[2023/24 Baseline_Source]]*T_DataComboFile[[#This Row],[G&S reporting level indicator]]","v":18561},null,null,null,null,null,null,{"$f":"T_DataComboFile[[#This Row],[2021/22 Baseline]]+T_DataComboFile[[#This Row],[2021/22 Reduction]]+T_DataComboFile[[#This Row],[2021/22 Increase]]","v":17204},{"$f":"T_DataComboFile[[#This Row],[2022/23 Baseline]]+T_DataComboFile[[#This Row],[2022/23 Reduction]]+T_DataComboFile[[#This Row],[2022/23 Increase]]","v":17777},{"$f":"T_DataComboFile[[#This Row],[2023/24 Baseline]]+T_DataComboFile[[#This Row],[2023/24 Reduction]]+T_DataComboFile[[#This Row],[2023/24 Increase]]","v":18561}]
["NAT|Non-transfer item","36|Social contributions","2021_22","ENE2020",36,1,3,17216,70224,36,1,3,17216,"070224","36|01|03",1,1,1,2,2,"01|01|01|02|02","National","Small Business Development","Administration","Corporate Services","Non-transfer item","Current","Current payments","Compensation of employees","Social contributions","Social contributions","Economic development","Industrialisation and exports","NAT",1501,1787,1967,2301,1978,1978,1978,2273,2273,2144,2203,2274,2374,1,null,{"$f":"IF(T_DataComboFile[[#This Row],[G&S reporting level indicator]]=1,$AX$16,\"Not applicable\")","v":"Level 3"},{"$f":"IF(AND($AX$16=\"Level 3\",T_DataComboFile[[#This Row],[Econ3]] = \"Goods and services\"),IF(T_DataComboFile[[#This Row],[Econ4]] = T_DataComboFile[[#This Row],[Econ3]],1,0),IF(AND($AX$16=\"Level 4\",T_DataComboFile[[#This Row],[Econ4]] = \"Goods and services\"),0,1))","v":1},{"$f":"T_DataComboFile[[#This Row],[2016/17_Source]]*T_DataComboFile[[#This Row],[G&S reporting level indicator]]","v":1501},{"$f":"T_DataComboFile[[#This Row],[2017/18_Source]]*T_DataComboFile[[#This Row],[G&S reporting level indicator]]","v":1787},{"$f":"T_DataComboFile[[#This Row],[2018/19_Source]]*T_DataComboFile[[#This Row],[G&S reporting level indicator]]","v":1967},{"$f":"T_DataComboFile[[#This Row],[2019/20 Main appropriation_Source]]*T_DataComboFile[[#This Row],[G&S reporting level indicator]]","v":2301},{"$f":"T_DataComboFile[[#This Row],[2019/20 Adjusted appropriation_Source]]*T_DataComboFile[[#This Row],[G&S reporting level indicator]]","v":1978},{"$f":"T_DataComboFile[[#This Row],[2019/20 Revised estimate_Source]]*T_DataComboFile[[#This Row],[G&S reporting level indicator]]","v":1978},{"$f":"T_DataComboFile[[#This Row],[2019/20 Preliminary outcome_Source]]*T_DataComboFile[[#This Row],[G&S reporting level indicator]]","v":1978},{"$f":"T_DataComboFile[[#This Row],[2020/21 Original_Source]]*T_DataComboFile[[#This Row],[G&S reporting level indicator]]","v":2273},{"$f":"T_DataComboFile[[#This Row],[2020/21 SAB_Source]]*T_DataComboFile[[#This Row],[G&S reporting level indicator]]","v":2273},{"$f":"T_DataComboFile[[#This Row],[2020/21 Baseline_Source]]*T_DataComboFile[[#This Row],[G&S reporting level indicator]]","v":2144},{"$f":"T_DataComboFile[[#This Row],[2021/22 Baseline_Source]]*T_DataComboFile[[#This Row],[G&S reporting level indicator]]","v":2203},{"$f":"T_DataComboFile[[#This Row],[2022/23 Baseline_Source]]*T_DataComboFile[[#This Row],[G&S reporting level indicator]]","v":2274},{"$f":"T_DataComboFile[[#This Row],[2023/24 Baseline_Source]]*T_DataComboFile[[#This Row],[G&S reporting level indicator]]","v":2374},null,null,null,null,null,null,{"$f":"T_DataComboFile[[#This Row],[2021/22 Baseline]]+T_DataComboFile[[#This Row],[2021/22 Reduction]]+T_DataComboFile[[#This Row],[2021/22 Increase]]","v":2203},{"$f":"T_DataComboFile[[#This Row],[2022/23 Baseline]]+T_DataComboFile[[#This Row],[2022/23 Reduction]]+T_DataComboFile[[#This Row],[2022/23 Increase]]","v":2274},{"$f":"T_DataComboFile[[#This Row],[2023/24 Baseline]]+T_DataComboFile[[#This Row],[2023/24 Reduction]]+T_DataComboFile[[#This Row],[2023/24 Increase]]","v":2374}]
[null,null,"2021_22","ENE2020",36,1,3,null,70225,36,1,3,null,"070225","36|01|03",1,1,2,2,2,"01|01|02|02|02","National","Small Business Development","Administration","Corporate Services","Non-transfer item","Current","Current payments","Goods and services","Goods and services","Goods and services","Economic development","Industrialisation and exports","NAT",19601,25878,28708,33347,33347,33347,33347,35331,35031,35331,38033,39810,41562,1,null,{"$f":"IF(T_DataComboFile[[#This Row],[G&S reporting level indicator]]=1,$AX$16,\"Not applicable\")","v":"Level 3"},{"$f":"IF(AND($AX$16=\"Level 3\",T_DataComboFile[[#This Row],[Econ3]] = \"Goods and services\"),IF(T_DataComboFile[[#This Row],[Econ4]] = T_DataComboFile[[#This Row],[Econ3]],1,0),IF(AND($AX$16=\"Level 4\",T_DataComboFile[[#This Row],[Econ4]] = \"Goods and services\"),0,1))","v":1},{"$f":"T_DataComboFile[[#This Row],[2016/17_Source]]*T_DataComboFile[[#This Row],[G&S reporting level indicator]]","v":19601},{"$f":"T_DataComboFile[[#This Row],[2017/18_Source]]*T_DataComboFile[[#This Row],[G&S reporting level indicator]]","v":25878},{"$f":"T_DataComboFile[[#This Row],[2018/19_Source]]*T_DataComboFile[[#This Row],[G&S reporting level indicator]]","v":28708},{"$f":"T_DataComboFile[[#This Row],[2019/20 Main appropriation_Source]]*T_DataComboFile[[#This Row],[G&S reporting level indicator]]","v":33347},{"$f":"T_DataComboFile[[#This Row],[2019/20 Adjusted appropriation_Source]]*T_DataComboFile[[#This Row],[G&S reporting level indicator]]","v":33347},{"$f":"T_DataComboFile[[#This Row],[2019/20 Revised estimate_Source]]*T_DataComboFile[[#This Row],[G&S reporting level indicator]]","v":33347},{"$f":"T_DataComboFile[[#This Row],[2019/20 Preliminary outcome_Source]]*T_DataComboFile[[#This Row],[G&S reporting level indicator]]","v":33347},{"$f":"T_DataComboFile[[#This Row],[2020/21 Original_Source]]*T_DataComboFile[[#This Row],[G&S reporting level indicator]]","v":35331},{"$f":"T_DataComboFile[[#This Row],[2020/21 SAB_Source]]*T_DataComboFile[[#This Row],[G&S reporting level indicator]]","v":35031},{"$f":"T_DataComboFile[[#This Row],[2020/21 Baseline_Source]]*T_DataComboFile[[#This Row],[G&S reporting level indicator]]","v":35331},{"$f":"T_DataComboFile[[#This Row],[2021/22 Baseline_Source]]*T_DataComboFile[[#This Row],[G&S reporting level indicator]]","v":38033},{"$f":"T_DataComboFile[[#This Row],[2022/23 Baseline_Source]]*T_DataComboFile[[#This Row],[G&S reporting level indicator]]","v":39810},{"$f":"T_DataComboFile[[#This Row],[2023/24 Baseline_Source]]*T_DataComboFile[[#This Row],[G&S reporting level indicator]]","v":41562},null,null,null,null,null,null,{"$f":"T_DataComboFile[[#This Row],[2021/22 Baseline]]+T_DataComboFile[[#This Row],[2021/22 Reduction]]+T_DataComboFile[[#This Row],[2021/22 Increase]]","v":38033},{"$f":"T_DataComboFile[[#This Row],[2022/23 Baseline]]+T_DataComboFile[[#This Row],[2022/23 Reduction]]+T_DataComboFile[[#This Row],[2022/23 Increase]]","v":39810},{"$f":"T_DataComboFile[[#This Row],[2023/24 Baseline]]+T_DataComboFile[[#This Row],[2023/24 Reduction]]+T_DataComboFile[[#This Row],[2023/24 Increase]]","v":41562}]
["NAT|Non-transfer item","36|Administrative fees","2021_22","ENE2020",36,1,3,17217,70226,36,1,3,17217,"070226","36|01|03",1,1,2,3,3,"01|01|02|03|03","National","Small Business Development","Administration","Corporate Services","Non-transfer item","Current","Current payments","Goods and services","Administrative fees","Administrative fees","Economic development","Industrialisation and exports","NAT",107,53,37,64,74,74,74,43,43,43,46,49,51,1,null,{"$f":"IF(T_DataComboFile[[#This Row],[G&S reporting level indicator]]=1,$AX$16,\"Not applicable\")","v":"Not applicable"},{"$f":"IF(AND($AX$16=\"Level 3\",T_DataComboFile[[#This Row],[Econ3]] = \"Goods and services\"),IF(T_DataComboFile[[#This Row],[Econ4]] = T_DataComboFile[[#This Row],[Econ3]],1,0),IF(AND($AX$16=\"Level 4\",T_DataComboFile[[#This Row],[Econ4]] = \"Goods and services\"),0,1))","v":0},{"$f":"T_DataComboFile[[#This Row],[2016/17_Source]]*T_DataComboFile[[#This Row],[G&S reporting level indicator]]","v":0},{"$f":"T_DataComboFile[[#This Row],[2017/18_Source]]*T_DataComboFile[[#This Row],[G&S reporting level indicator]]","v":0},{"$f":"T_DataComboFile[[#This Row],[2018/19_Source]]*T_DataComboFile[[#This Row],[G&S reporting level indicator]]","v":0},{"$f":"T_DataComboFile[[#This Row],[2019/20 Main appropriation_Source]]*T_DataComboFile[[#This Row],[G&S reporting level indicator]]","v":0},{"$f":"T_DataComboFile[[#This Row],[2019/20 Adjusted appropriation_Source]]*T_DataComboFile[[#This Row],[G&S reporting level indicator]]","v":0},{"$f":"T_DataComboFile[[#This Row],[2019/20 Revised estimate_Source]]*T_DataComboFile[[#This Row],[G&S reporting level indicator]]","v":0},{"$f":"T_DataComboFile[[#This Row],[2019/20 Preliminary outcome_Source]]*T_DataComboFile[[#This Row],[G&S reporting level indicator]]","v":0},{"$f":"T_DataComboFile[[#This Row],[2020/21 Original_Source]]*T_DataComboFile[[#This Row],[G&S reporting level indicator]]","v":0},{"$f":"T_DataComboFile[[#This Row],[2020/21 SAB_Source]]*T_DataComboFile[[#This Row],[G&S reporting level indicator]]","v":0},{"$f":"T_DataComboFile[[#This Row],[2020/21 Baseline_Source]]*T_DataComboFile[[#This Row],[G&S reporting level indicator]]","v":0},{"$f":"T_DataComboFile[[#This Row],[2021/22 Baseline_Source]]*T_DataComboFile[[#This Row],[G&S reporting level indicator]]","v":0},{"$f":"T_DataComboFile[[#This Row],[2022/23 Baseline_Source]]*T_DataComboFile[[#This Row],[G&S reporting level indicator]]","v":0},{"$f":"T_DataComboFile[[#This Row],[2023/24 Baseline_Source]]*T_DataComboFile[[#This Row],[G&S reporting level indicator]]","v":0},null,null,null,null,null,null,{"$f":"T_DataComboFile[[#This Row],[2021/22 Baseline]]+T_DataComboFile[[#This Row],[2021/22 Reduction]]+T_DataComboFile[[#This Row],[2021/22 Increase]]","v":0},{"$f":"T_DataComboFile[[#This Row],[2022/23 Baseline]]+T_DataComboFile[[#This Row],[2022/23 Reduction]]+T_DataComboFile[[#This Row],[2022/23 Increase]]","v":0},{"$f":"T_DataComboFile[[#This Row],[2023/24 Baseline]]+T_DataComboFile[[#This Row],[2023/24 Reduction]]+T_DataComboFile[[#This Row],[2023/24 Increase]]","v":0}]
["NAT|Non-transfer item","36|Advertising","2021_22","ENE2020",36,1,3,17218,70227,36,1,3,17218,"070227","36|01|03",1,1,2,4,4,"01|01|02|04|04","National","Small Business Development","Administration","Corporate Services","Non-transfer item","Current","Current payments","Goods and services","Advertising","Advertising","Economic development","Industrialisation and exports","NAT",56,71,40,200,100,100,100,40,40,40,40,40,42,1,null,{"$f":"IF(T_DataComboFile[[#This Row],[G&S reporting level indicator]]=1,$AX$16,\"Not applicable\")","v":"Not applicable"},{"$f":"IF(AND($AX$16=\"Level 3\",T_DataComboFile[[#This Row],[Econ3]] = \"Goods and services\"),IF(T_DataComboFile[[#This Row],[Econ4]] = T_DataComboFile[[#This Row],[Econ3]],1,0),IF(AND($AX$16=\"Level 4\",T_DataComboFile[[#This Row],[Econ4]] = \"Goods and services\"),0,1))","v":0},{"$f":"T_DataComboFile[[#This Row],[2016/17_Source]]*T_DataComboFile[[#This Row],[G&S reporting level indicator]]","v":0},{"$f":"T_DataComboFile[[#This Row],[2017/18_Source]]*T_DataComboFile[[#This Row],[G&S reporting level indicator]]","v":0},{"$f":"T_DataComboFile[[#This Row],[2018/19_Source]]*T_DataComboFile[[#This Row],[G&S reporting level indicator]]","v":0},{"$f":"T_DataComboFile[[#This Row],[2019/20 Main appropriation_Source]]*T_DataComboFile[[#This Row],[G&S reporting level indicator]]","v":0},{"$f":"T_DataComboFile[[#This Row],[2019/20 Adjusted appropriation_Source]]*T_DataComboFile[[#This Row],[G&S reporting level indicator]]","v":0},{"$f":"T_DataComboFile[[#This Row],[2019/20 Revised estimate_Source]]*T_DataComboFile[[#This Row],[G&S reporting level indicator]]","v":0},{"$f":"T_DataComboFile[[#This Row],[2019/20 Preliminary outcome_Source]]*T_DataComboFile[[#This Row],[G&S reporting level indicator]]","v":0},{"$f":"T_DataComboFile[[#This Row],[2020/21 Original_Source]]*T_DataComboFile[[#This Row],[G&S reporting level indicator]]","v":0},{"$f":"T_DataComboFile[[#This Row],[2020/21 SAB_Source]]*T_DataComboFile[[#This Row],[G&S reporting level indicator]]","v":0},{"$f":"T_DataComboFile[[#This Row],[2020/21 Baseline_Source]]*T_DataComboFile[[#This Row],[G&S reporting level indicator]]","v":0},{"$f":"T_DataComboFile[[#This Row],[2021/22 Baseline_Source]]*T_DataComboFile[[#This Row],[G&S reporting level indicator]]","v":0},{"$f":"T_DataComboFile[[#This Row],[2022/23 Baseline_Source]]*T_DataComboFile[[#This Row],[G&S reporting level indicator]]","v":0},{"$f":"T_DataComboFile[[#This Row],[2023/24 Baseline_Source]]*T_DataComboFile[[#This Row],[G&S reporting level indicator]]","v":0},null,null,null,null,null,null,{"$f":"T_DataComboFile[[#This Row],[2021/22 Baseline]]+T_DataComboFile[[#This Row],[2021/22 Reduction]]+T_DataComboFile[[#This Row],[2021/22 Increase]]","v":0},{"$f":"T_DataComboFile[[#This Row],[2022/23 Baseline]]+T_DataComboFile[[#This Row],[2022/23 Reduction]]+T_DataComboFile[[#This Row],[2022/23 Increase]]","v":0},{"$f":"T_DataComboFile[[#This Row],[2023/24 Baseline]]+T_DataComboFile[[#This Row],[2023/24 Reduction]]+T_DataComboFile[[#This Row],[2023/24 Increase]]","v":0}]
["NAT|Non-transfer item","36|Minor assets","2021_22","ENE2020",36,1,3,17219,70228,36,1,3,17219,"070228","36|01|03",1,1,2,5,5,"01|01|02|05|05","National","Small Business Development","Administration","Corporate Services","Non-transfer item","Current","Current payments","Goods and services","Minor assets","Minor assets","Economic development","Industrialisation and exports","NAT",220,134,132,69,72,72,72,27,27,27,30,33,34,1,null,{"$f":"IF(T_DataComboFile[[#This Row],[G&S reporting level indicator]]=1,$AX$16,\"Not applicable\")","v":"Not applicable"},{"$f":"IF(AND($AX$16=\"Level 3\",T_DataComboFile[[#This Row],[Econ3]] = \"Goods and services\"),IF(T_DataComboFile[[#This Row],[Econ4]] = T_DataComboFile[[#This Row],[Econ3]],1,0),IF(AND($AX$16=\"Level 4\",T_DataComboFile[[#This Row],[Econ4]] = \"Goods and services\"),0,1))","v":0},{"$f":"T_DataComboFile[[#This Row],[2016/17_Source]]*T_DataComboFile[[#This Row],[G&S reporting level indicator]]","v":0},{"$f":"T_DataComboFile[[#This Row],[2017/18_Source]]*T_DataComboFile[[#This Row],[G&S reporting level indicator]]","v":0},{"$f":"T_DataComboFile[[#This Row],[2018/19_Source]]*T_DataComboFile[[#This Row],[G&S reporting level indicator]]","v":0},{"$f":"T_DataComboFile[[#This Row],[2019/20 Main appropriation_Source]]*T_DataComboFile[[#This Row],[G&S reporting level indicator]]","v":0},{"$f":"T_DataComboFile[[#This Row],[2019/20 Adjusted appropriation_Source]]*T_DataComboFile[[#This Row],[G&S reporting level indicator]]","v":0},{"$f":"T_DataComboFile[[#This Row],[2019/20 Revised estimate_Source]]*T_DataComboFile[[#This Row],[G&S reporting level indicator]]","v":0},{"$f":"T_DataComboFile[[#This Row],[2019/20 Preliminary outcome_Source]]*T_DataComboFile[[#This Row],[G&S reporting level indicator]]","v":0},{"$f":"T_DataComboFile[[#This Row],[2020/21 Original_Source]]*T_DataComboFile[[#This Row],[G&S reporting level indicator]]","v":0},{"$f":"T_DataComboFile[[#This Row],[2020/21 SAB_Source]]*T_DataComboFile[[#This Row],[G&S reporting level indicator]]","v":0},{"$f":"T_DataComboFile[[#This Row],[2020/21 Baseline_Source]]*T_DataComboFile[[#This Row],[G&S reporting level indicator]]","v":0},{"$f":"T_DataComboFile[[#This Row],[2021/22 Baseline_Source]]*T_DataComboFile[[#This Row],[G&S reporting level indicator]]","v":0},{"$f":"T_DataComboFile[[#This Row],[2022/23 Baseline_Source]]*T_DataComboFile[[#This Row],[G&S reporting level indicator]]","v":0},{"$f":"T_DataComboFile[[#This Row],[2023/24 Baseline_Source]]*T_DataComboFile[[#This Row],[G&S reporting level indicator]]","v":0},null,null,null,null,null,null,{"$f":"T_DataComboFile[[#This Row],[2021/22 Baseline]]+T_DataComboFile[[#This Row],[2021/22 Reduction]]+T_DataComboFile[[#This Row],[2021/22 Increase]]","v":0},{"$f":"T_DataComboFile[[#This Row],[2022/23 Baseline]]+T_DataComboFile[[#This Row],[2022/23 Reduction]]+T_DataComboFile[[#This Row],[2022/23 Increase]]","v":0},{"$f":"T_DataComboFile[[#This Row],[2023/24 Baseline]]+T_DataComboFile[[#This Row],[2023/24 Reduction]]+T_DataComboFile[[#This Row],[2023/24 Increase]]","v":0}]
[null,null,"2021_22","ENE2020",36,1,3,null,70229,36,1,3,null,"070229","36|01|03",1,1,2,6,6,"01|01|02|06|06","National","Small Business Development","Administration","Corporate Services",null,"Current","Current payments","Goods and services","Audit costs: External","Audit costs: External",null,null,null,0,0,0,0,0,0,0,0,0,0,0,0,0,0,null,{"$f":"IF(T_DataComboFile[[#This Row],[G&S reporting level indicator]]=1,$AX$16,\"Not applicable\")","v":"Not applicable"},{"$f":"IF(AND($AX$16=\"Level 3\",T_DataComboFile[[#This Row],[Econ3]] = \"Goods and services\"),IF(T_DataComboFile[[#This Row],[Econ4]] = T_DataComboFile[[#This Row],[Econ3]],1,0),IF(AND($AX$16=\"Level 4\",T_DataComboFile[[#This Row],[Econ4]] = \"Goods and services\"),0,1))","v":0},{"$f":"T_DataComboFile[[#This Row],[2016/17_Source]]*T_DataComboFile[[#This Row],[G&S reporting level indicator]]","v":0},{"$f":"T_DataComboFile[[#This Row],[2017/18_Source]]*T_DataComboFile[[#This Row],[G&S reporting level indicator]]","v":0},{"$f":"T_DataComboFile[[#This Row],[2018/19_Source]]*T_DataComboFile[[#This Row],[G&S reporting level indicator]]","v":0},{"$f":"T_DataComboFile[[#This Row],[2019/20 Main appropriation_Source]]*T_DataComboFile[[#This Row],[G&S reporting level indicator]]","v":0},{"$f":"T_DataComboFile[[#This Row],[2019/20 Adjusted appropriation_Source]]*T_DataComboFile[[#This Row],[G&S reporting level indicator]]","v":0},{"$f":"T_DataComboFile[[#This Row],[2019/20 Revised estimate_Source]]*T_DataComboFile[[#This Row],[G&S reporting level indicator]]","v":0},{"$f":"T_DataComboFile[[#This Row],[2019/20 Preliminary outcome_Source]]*T_DataComboFile[[#This Row],[G&S reporting level indicator]]","v":0},{"$f":"T_DataComboFile[[#This Row],[2020/21 Original_Source]]*T_DataComboFile[[#This Row],[G&S reporting level indicator]]","v":0},{"$f":"T_DataComboFile[[#This Row],[2020/21 SAB_Source]]*T_DataComboFile[[#This Row],[G&S reporting level indicator]]","v":0},{"$f":"T_DataComboFile[[#This Row],[2020/21 Baseline_Source]]*T_DataComboFile[[#This Row],[G&S reporting level indicator]]","v":0},{"$f":"T_DataComboFile[[#This Row],[2021/22 Baseline_Source]]*T_DataComboFile[[#This Row],[G&S reporting level indicator]]","v":0},{"$f":"T_DataComboFile[[#This Row],[2022/23 Baseline_Source]]*T_DataComboFile[[#This Row],[G&S reporting level indicator]]","v":0},{"$f":"T_DataComboFile[[#This Row],[2023/24 Baseline_Source]]*T_DataComboFile[[#This Row],[G&S reporting level indicator]]","v":0},null,null,null,null,null,null,{"$f":"T_DataComboFile[[#This Row],[2021/22 Baseline]]+T_DataComboFile[[#This Row],[2021/22 Reduction]]+T_DataComboFile[[#This Row],[2021/22 Increase]]","v":0},{"$f":"T_DataComboFile[[#This Row],[2022/23 Baseline]]+T_DataComboFile[[#This Row],[2022/23 Reduction]]+T_DataComboFile[[#This Row],[2022/23 Increase]]","v":0},{"$f":"T_DataComboFile[[#This Row],[2023/24 Baseline]]+T_DataComboFile[[#This Row],[2023/24 Reduction]]+T_DataComboFile[[#This Row],[2023/24 Increase]]","v":0}]
["NAT|Non-transfer item","36|Bursaries: Employees","2021_22","ENE2020",36,1,3,17220,70230,36,1,3,17220,"070230","36|01|03",1,1,2,7,7,"01|01|02|07|07","National","Small Business Development","Administration","Corporate Services","Non-transfer item","Current","Current payments","Goods and services","Bursaries: Employees","Bursaries: Employees","Economic development","Industrialisation and exports","NAT",172,186,292,340,340,340,340,357,357,357,374,394,411,1,null,{"$f":"IF(T_DataComboFile[[#This Row],[G&S reporting level indicator]]=1,$AX$16,\"Not applicable\")","v":"Not applicable"},{"$f":"IF(AND($AX$16=\"Level 3\",T_DataComboFile[[#This Row],[Econ3]] = \"Goods and services\"),IF(T_DataComboFile[[#This Row],[Econ4]] = T_DataComboFile[[#This Row],[Econ3]],1,0),IF(AND($AX$16=\"Level 4\",T_DataComboFile[[#This Row],[Econ4]] = \"Goods and services\"),0,1))","v":0},{"$f":"T_DataComboFile[[#This Row],[2016/17_Source]]*T_DataComboFile[[#This Row],[G&S reporting level indicator]]","v":0},{"$f":"T_DataComboFile[[#This Row],[2017/18_Source]]*T_DataComboFile[[#This Row],[G&S reporting level indicator]]","v":0},{"$f":"T_DataComboFile[[#This Row],[2018/19_Source]]*T_DataComboFile[[#This Row],[G&S reporting level indicator]]","v":0},{"$f":"T_DataComboFile[[#This Row],[2019/20 Main appropriation_Source]]*T_DataComboFile[[#This Row],[G&S reporting level indicator]]","v":0},{"$f":"T_DataComboFile[[#This Row],[2019/20 Adjusted appropriation_Source]]*T_DataComboFile[[#This Row],[G&S reporting level indicator]]","v":0},{"$f":"T_DataComboFile[[#This Row],[2019/20 Revised estimate_Source]]*T_DataComboFile[[#This Row],[G&S reporting level indicator]]","v":0},{"$f":"T_DataComboFile[[#This Row],[2019/20 Preliminary outcome_Source]]*T_DataComboFile[[#This Row],[G&S reporting level indicator]]","v":0},{"$f":"T_DataComboFile[[#This Row],[2020/21 Original_Source]]*T_DataComboFile[[#This Row],[G&S reporting level indicator]]","v":0},{"$f":"T_DataComboFile[[#This Row],[2020/21 SAB_Source]]*T_DataComboFile[[#This Row],[G&S reporting level indicator]]","v":0},{"$f":"T_DataComboFile[[#This Row],[2020/21 Baseline_Source]]*T_DataComboFile[[#This Row],[G&S reporting level indicator]]","v":0},{"$f":"T_DataComboFile[[#This Row],[2021/22 Baseline_Source]]*T_DataComboFile[[#This Row],[G&S reporting level indicator]]","v":0},{"$f":"T_DataComboFile[[#This Row],[2022/23 Baseline_Source]]*T_DataComboFile[[#This Row],[G&S reporting level indicator]]","v":0},{"$f":"T_DataComboFile[[#This Row],[2023/24 Baseline_Source]]*T_DataComboFile[[#This Row],[G&S reporting level indicator]]","v":0},null,null,null,null,null,null,{"$f":"T_DataComboFile[[#This Row],[2021/22 Baseline]]+T_DataComboFile[[#This Row],[2021/22 Reduction]]+T_DataComboFile[[#This Row],[2021/22 Increase]]","v":0},{"$f":"T_DataComboFile[[#This Row],[2022/23 Baseline]]+T_DataComboFile[[#This Row],[2022/23 Reduction]]+T_DataComboFile[[#This Row],[2022/23 Increase]]","v":0},{"$f":"T_DataComboFile[[#This Row],[2023/24 Baseline]]+T_DataComboFile[[#This Row],[2023/24 Reduction]]+T_DataComboFile[[#This Row],[2023/24 Increase]]","v":0}]
["NAT|Non-transfer item","36|Catering: Departmental activities","2021_22","ENE2020",36,1,3,17221,70231,36,1,3,17221,"070231","36|01|03",1,1,2,8,8,"01|01|02|08|08","National","Small Business Development","Administration","Corporate Services","Non-transfer item","Current","Current payments","Goods and services","Catering: Departmental activities","Catering: Departmental activities","Economic development","Industrialisation and exports","NAT",51,66,99,72,121,121,121,101,101,101,112,124,129,1,null,{"$f":"IF(T_DataComboFile[[#This Row],[G&S reporting level indicator]]=1,$AX$16,\"Not applicable\")","v":"Not applicable"},{"$f":"IF(AND($AX$16=\"Level 3\",T_DataComboFile[[#This Row],[Econ3]] = \"Goods and services\"),IF(T_DataComboFile[[#This Row],[Econ4]] = T_DataComboFile[[#This Row],[Econ3]],1,0),IF(AND($AX$16=\"Level 4\",T_DataComboFile[[#This Row],[Econ4]] = \"Goods and services\"),0,1))","v":0},{"$f":"T_DataComboFile[[#This Row],[2016/17_Source]]*T_DataComboFile[[#This Row],[G&S reporting level indicator]]","v":0},{"$f":"T_DataComboFile[[#This Row],[2017/18_Source]]*T_DataComboFile[[#This Row],[G&S reporting level indicator]]","v":0},{"$f":"T_DataComboFile[[#This Row],[2018/19_Source]]*T_DataComboFile[[#This Row],[G&S reporting level indicator]]","v":0},{"$f":"T_DataComboFile[[#This Row],[2019/20 Main appropriation_Source]]*T_DataComboFile[[#This Row],[G&S reporting level indicator]]","v":0},{"$f":"T_DataComboFile[[#This Row],[2019/20 Adjusted appropriation_Source]]*T_DataComboFile[[#This Row],[G&S reporting level indicator]]","v":0},{"$f":"T_DataComboFile[[#This Row],[2019/20 Revised estimate_Source]]*T_DataComboFile[[#This Row],[G&S reporting level indicator]]","v":0},{"$f":"T_DataComboFile[[#This Row],[2019/20 Preliminary outcome_Source]]*T_DataComboFile[[#This Row],[G&S reporting level indicator]]","v":0},{"$f":"T_DataComboFile[[#This Row],[2020/21 Original_Source]]*T_DataComboFile[[#This Row],[G&S reporting level indicator]]","v":0},{"$f":"T_DataComboFile[[#This Row],[2020/21 SAB_Source]]*T_DataComboFile[[#This Row],[G&S reporting level indicator]]","v":0},{"$f":"T_DataComboFile[[#This Row],[2020/21 Baseline_Source]]*T_DataComboFile[[#This Row],[G&S reporting level indicator]]","v":0},{"$f":"T_DataComboFile[[#This Row],[2021/22 Baseline_Source]]*T_DataComboFile[[#This Row],[G&S reporting level indicator]]","v":0},{"$f":"T_DataComboFile[[#This Row],[2022/23 Baseline_Source]]*T_DataComboFile[[#This Row],[G&S reporting level indicator]]","v":0},{"$f":"T_DataComboFile[[#This Row],[2023/24 Baseline_Source]]*T_DataComboFile[[#This Row],[G&S reporting level indicator]]","v":0},null,null,null,null,null,null,{"$f":"T_DataComboFile[[#This Row],[2021/22 Baseline]]+T_DataComboFile[[#This Row],[2021/22 Reduction]]+T_DataComboFile[[#This Row],[2021/22 Increase]]","v":0},{"$f":"T_DataComboFile[[#This Row],[2022/23 Baseline]]+T_DataComboFile[[#This Row],[2022/23 Reduction]]+T_DataComboFile[[#This Row],[2022/23 Increase]]","v":0},{"$f":"T_DataComboFile[[#This Row],[2023/24 Baseline]]+T_DataComboFile[[#This Row],[2023/24 Reduction]]+T_DataComboFile[[#This Row],[2023/24 Increase]]","v":0}]
["NAT|Non-transfer item","36|Communication (G&S)","2021_22","ENE2020",36,1,3,17222,70232,36,1,3,17222,"070232","36|01|03",1,1,2,9,9,"01|01|02|09|09","National","Small Business Development","Administration","Corporate Services","Non-transfer item","Current","Current payments","Goods and services","Communication (G&S)","Communication (G&S)","Economic development","Industrialisation and exports","NAT",20,379,622,120,564,564,564,677,677,677,712,750,783,1,null,{"$f":"IF(T_DataComboFile[[#This Row],[G&S reporting level indicator]]=1,$AX$16,\"Not applicable\")","v":"Not applicable"},{"$f":"IF(AND($AX$16=\"Level 3\",T_DataComboFile[[#This Row],[Econ3]] = \"Goods and services\"),IF(T_DataComboFile[[#This Row],[Econ4]] = T_DataComboFile[[#This Row],[Econ3]],1,0),IF(AND($AX$16=\"Level 4\",T_DataComboFile[[#This Row],[Econ4]] = \"Goods and services\"),0,1))","v":0},{"$f":"T_DataComboFile[[#This Row],[2016/17_Source]]*T_DataComboFile[[#This Row],[G&S reporting level indicator]]","v":0},{"$f":"T_DataComboFile[[#This Row],[2017/18_Source]]*T_DataComboFile[[#This Row],[G&S reporting level indicator]]","v":0},{"$f":"T_DataComboFile[[#This Row],[2018/19_Source]]*T_DataComboFile[[#This Row],[G&S reporting level indicator]]","v":0},{"$f":"T_DataComboFile[[#This Row],[2019/20 Main appropriation_Source]]*T_DataComboFile[[#This Row],[G&S reporting level indicator]]","v":0},{"$f":"T_DataComboFile[[#This Row],[2019/20 Adjusted appropriation_Source]]*T_DataComboFile[[#This Row],[G&S reporting level indicator]]","v":0},{"$f":"T_DataComboFile[[#This Row],[2019/20 Revised estimate_Source]]*T_DataComboFile[[#This Row],[G&S reporting level indicator]]","v":0},{"$f":"T_DataComboFile[[#This Row],[2019/20 Preliminary outcome_Source]]*T_DataComboFile[[#This Row],[G&S reporting level indicator]]","v":0},{"$f":"T_DataComboFile[[#This Row],[2020/21 Original_Source]]*T_DataComboFile[[#This Row],[G&S reporting level indicator]]","v":0},{"$f":"T_DataComboFile[[#This Row],[2020/21 SAB_Source]]*T_DataComboFile[[#This Row],[G&S reporting level indicator]]","v":0},{"$f":"T_DataComboFile[[#This Row],[2020/21 Baseline_Source]]*T_DataComboFile[[#This Row],[G&S reporting level indicator]]","v":0},{"$f":"T_DataComboFile[[#This Row],[2021/22 Baseline_Source]]*T_DataComboFile[[#This Row],[G&S reporting level indicator]]","v":0},{"$f":"T_DataComboFile[[#This Row],[2022/23 Baseline_Source]]*T_DataComboFile[[#This Row],[G&S reporting level indicator]]","v":0},{"$f":"T_DataComboFile[[#This Row],[2023/24 Baseline_Source]]*T_DataComboFile[[#This Row],[G&S reporting level indicator]]","v":0},null,null,null,null,null,null,{"$f":"T_DataComboFile[[#This Row],[2021/22 Baseline]]+T_DataComboFile[[#This Row],[2021/22 Reduction]]+T_DataComboFile[[#This Row],[2021/22 Increase]]","v":0},{"$f":"T_DataComboFile[[#This Row],[2022/23 Baseline]]+T_DataComboFile[[#This Row],[2022/23 Reduction]]+T_DataComboFile[[#This Row],[2022/23 Increase]]","v":0},{"$f":"T_DataComboFile[[#This Row],[2023/24 Baseline]]+T_DataComboFile[[#This Row],[2023/24 Reduction]]+T_DataComboFile[[#This Row],[2023/24 Increase]]","v":0}]
["NAT|Non-transfer item","36|Computer services","2021_22","ENE2020",36,1,3,17223,70233,36,1,3,17223,"070233","36|01|03",1,1,2,10,10,"01|01|02|10|10","National","Small Business Development","Administration","Corporate Services","Non-transfer item","Current","Current payments","Goods and services","Computer services","Computer services","Economic development","Industrialisation and exports","NAT",2662,4688,6454,8140,7179,7179,7179,7300,7300,7300,7715,8150,8509,1,null,{"$f":"IF(T_DataComboFile[[#This Row],[G&S reporting level indicator]]=1,$AX$16,\"Not applicable\")","v":"Not applicable"},{"$f":"IF(AND($AX$16=\"Level 3\",T_DataComboFile[[#This Row],[Econ3]] = \"Goods and services\"),IF(T_DataComboFile[[#This Row],[Econ4]] = T_DataComboFile[[#This Row],[Econ3]],1,0),IF(AND($AX$16=\"Level 4\",T_DataComboFile[[#This Row],[Econ4]] = \"Goods and services\"),0,1))","v":0},{"$f":"T_DataComboFile[[#This Row],[2016/17_Source]]*T_DataComboFile[[#This Row],[G&S reporting level indicator]]","v":0},{"$f":"T_DataComboFile[[#This Row],[2017/18_Source]]*T_DataComboFile[[#This Row],[G&S reporting level indicator]]","v":0},{"$f":"T_DataComboFile[[#This Row],[2018/19_Source]]*T_DataComboFile[[#This Row],[G&S reporting level indicator]]","v":0},{"$f":"T_DataComboFile[[#This Row],[2019/20 Main appropriation_Source]]*T_DataComboFile[[#This Row],[G&S reporting level indicator]]","v":0},{"$f":"T_DataComboFile[[#This Row],[2019/20 Adjusted appropriation_Source]]*T_DataComboFile[[#This Row],[G&S reporting level indicator]]","v":0},{"$f":"T_DataComboFile[[#This Row],[2019/20 Revised estimate_Source]]*T_DataComboFile[[#This Row],[G&S reporting level indicator]]","v":0},{"$f":"T_DataComboFile[[#This Row],[2019/20 Preliminary outcome_Source]]*T_DataComboFile[[#This Row],[G&S reporting level indicator]]","v":0},{"$f":"T_DataComboFile[[#This Row],[2020/21 Original_Source]]*T_DataComboFile[[#This Row],[G&S reporting level indicator]]","v":0},{"$f":"T_DataComboFile[[#This Row],[2020/21 SAB_Source]]*T_DataComboFile[[#This Row],[G&S reporting level indicator]]","v":0},{"$f":"T_DataComboFile[[#This Row],[2020/21 Baseline_Source]]*T_DataComboFile[[#This Row],[G&S reporting level indicator]]","v":0},{"$f":"T_DataComboFile[[#This Row],[2021/22 Baseline_Source]]*T_DataComboFile[[#This Row],[G&S reporting level indicator]]","v":0},{"$f":"T_DataComboFile[[#This Row],[2022/23 Baseline_Source]]*T_DataComboFile[[#This Row],[G&S reporting level indicator]]","v":0},{"$f":"T_DataComboFile[[#This Row],[2023/24 Baseline_Source]]*T_DataComboFile[[#This Row],[G&S reporting level indicator]]","v":0},null,null,null,null,null,null,{"$f":"T_DataComboFile[[#This Row],[2021/22 Baseline]]+T_DataComboFile[[#This Row],[2021/22 Reduction]]+T_DataComboFile[[#This Row],[2021/22 Increase]]","v":0},{"$f":"T_DataComboFile[[#This Row],[2022/23 Baseline]]+T_DataComboFile[[#This Row],[2022/23 Reduction]]+T_DataComboFile[[#This Row],[2022/23 Increase]]","v":0},{"$f":"T_DataComboFile[[#This Row],[2023/24 Baseline]]+T_DataComboFile[[#This Row],[2023/24 Reduction]]+T_DataComboFile[[#This Row],[2023/24 Increase]]","v":0}]
["NAT|Non-transfer item","36|Consultants: Business and advisory services","2021_22","ENE2020",36,1,3,17224,70234,36,1,3,17224,"070234","36|01|03",1,1,2,11,11,"01|01|02|11|11","National","Small Business Development","Administration","Corporate Services","Non-transfer item","Current","Current payments","Goods and services","Consultants: Business and advisory services","Consultants: Business and advisory services","Economic development","Industrialisation and exports","NAT",316,72,193,782,186,186,186,160,160,160,168,175,183,1,null,{"$f":"IF(T_DataComboFile[[#This Row],[G&S reporting level indicator]]=1,$AX$16,\"Not applicable\")","v":"Not applicable"},{"$f":"IF(AND($AX$16=\"Level 3\",T_DataComboFile[[#This Row],[Econ3]] = \"Goods and services\"),IF(T_DataComboFile[[#This Row],[Econ4]] = T_DataComboFile[[#This Row],[Econ3]],1,0),IF(AND($AX$16=\"Level 4\",T_DataComboFile[[#This Row],[Econ4]] = \"Goods and services\"),0,1))","v":0},{"$f":"T_DataComboFile[[#This Row],[2016/17_Source]]*T_DataComboFile[[#This Row],[G&S reporting level indicator]]","v":0},{"$f":"T_DataComboFile[[#This Row],[2017/18_Source]]*T_DataComboFile[[#This Row],[G&S reporting level indicator]]","v":0},{"$f":"T_DataComboFile[[#This Row],[2018/19_Source]]*T_DataComboFile[[#This Row],[G&S reporting level indicator]]","v":0},{"$f":"T_DataComboFile[[#This Row],[2019/20 Main appropriation_Source]]*T_DataComboFile[[#This Row],[G&S reporting level indicator]]","v":0},{"$f":"T_DataComboFile[[#This Row],[2019/20 Adjusted appropriation_Source]]*T_DataComboFile[[#This Row],[G&S reporting level indicator]]","v":0},{"$f":"T_DataComboFile[[#This Row],[2019/20 Revised estimate_Source]]*T_DataComboFile[[#This Row],[G&S reporting level indicator]]","v":0},{"$f":"T_DataComboFile[[#This Row],[2019/20 Preliminary outcome_Source]]*T_DataComboFile[[#This Row],[G&S reporting level indicator]]","v":0},{"$f":"T_DataComboFile[[#This Row],[2020/21 Original_Source]]*T_DataComboFile[[#This Row],[G&S reporting level indicator]]","v":0},{"$f":"T_DataComboFile[[#This Row],[2020/21 SAB_Source]]*T_DataComboFile[[#This Row],[G&S reporting level indicator]]","v":0},{"$f":"T_DataComboFile[[#This Row],[2020/21 Baseline_Source]]*T_DataComboFile[[#This Row],[G&S reporting level indicator]]","v":0},{"$f":"T_DataComboFile[[#This Row],[2021/22 Baseline_Source]]*T_DataComboFile[[#This Row],[G&S reporting level indicator]]","v":0},{"$f":"T_DataComboFile[[#This Row],[2022/23 Baseline_Source]]*T_DataComboFile[[#This Row],[G&S reporting level indicator]]","v":0},{"$f":"T_DataComboFile[[#This Row],[2023/24 Baseline_Source]]*T_DataComboFile[[#This Row],[G&S reporting level indicator]]","v":0},null,null,null,null,null,null,{"$f":"T_DataComboFile[[#This Row],[2021/22 Baseline]]+T_DataComboFile[[#This Row],[2021/22 Reduction]]+T_DataComboFile[[#This Row],[2021/22 Increase]]","v":0},{"$f":"T_DataComboFile[[#This Row],[2022/23 Baseline]]+T_DataComboFile[[#This Row],[2022/23 Reduction]]+T_DataComboFile[[#This Row],[2022/23 Increase]]","v":0},{"$f":"T_DataComboFile[[#This Row],[2023/24 Baseline]]+T_DataComboFile[[#This Row],[2023/24 Reduction]]+T_DataComboFile[[#This Row],[2023/24 Increase]]","v":0}]
[null,null,"2021_22","ENE2020",36,1,3,null,70235,36,1,3,null,"070235","36|01|03",1,1,2,12,12,"01|01|02|12|12","National","Small Business Development","Administration","Corporate Services",null,"Current","Current payments","Goods and services","Infrastructure and planning services","Infrastructure and planning services",null,null,null,0,0,0,0,0,0,0,0,0,0,0,0,0,0,null,{"$f":"IF(T_DataComboFile[[#This Row],[G&S reporting level indicator]]=1,$AX$16,\"Not applicable\")","v":"Not applicable"},{"$f":"IF(AND($AX$16=\"Level 3\",T_DataComboFile[[#This Row],[Econ3]] = \"Goods and services\"),IF(T_DataComboFile[[#This Row],[Econ4]] = T_DataComboFile[[#This Row],[Econ3]],1,0),IF(AND($AX$16=\"Level 4\",T_DataComboFile[[#This Row],[Econ4]] = \"Goods and services\"),0,1))","v":0},{"$f":"T_DataComboFile[[#This Row],[2016/17_Source]]*T_DataComboFile[[#This Row],[G&S reporting level indicator]]","v":0},{"$f":"T_DataComboFile[[#This Row],[2017/18_Source]]*T_DataComboFile[[#This Row],[G&S reporting level indicator]]","v":0},{"$f":"T_DataComboFile[[#This Row],[2018/19_Source]]*T_DataComboFile[[#This Row],[G&S reporting level indicator]]","v":0},{"$f":"T_DataComboFile[[#This Row],[2019/20 Main appropriation_Source]]*T_DataComboFile[[#This Row],[G&S reporting level indicator]]","v":0},{"$f":"T_DataComboFile[[#This Row],[2019/20 Adjusted appropriation_Source]]*T_DataComboFile[[#This Row],[G&S reporting level indicator]]","v":0},{"$f":"T_DataComboFile[[#This Row],[2019/20 Revised estimate_Source]]*T_DataComboFile[[#This Row],[G&S reporting level indicator]]","v":0},{"$f":"T_DataComboFile[[#This Row],[2019/20 Preliminary outcome_Source]]*T_DataComboFile[[#This Row],[G&S reporting level indicator]]","v":0},{"$f":"T_DataComboFile[[#This Row],[2020/21 Original_Source]]*T_DataComboFile[[#This Row],[G&S reporting level indicator]]","v":0},{"$f":"T_DataComboFile[[#This Row],[2020/21 SAB_Source]]*T_DataComboFile[[#This Row],[G&S reporting level indicator]]","v":0},{"$f":"T_DataComboFile[[#This Row],[2020/21 Baseline_Source]]*T_DataComboFile[[#This Row],[G&S reporting level indicator]]","v":0},{"$f":"T_DataComboFile[[#This Row],[2021/22 Baseline_Source]]*T_DataComboFile[[#This Row],[G&S reporting level indicator]]","v":0},{"$f":"T_DataComboFile[[#This Row],[2022/23 Baseline_Source]]*T_DataComboFile[[#This Row],[G&S reporting level indicator]]","v":0},{"$f":"T_DataComboFile[[#This Row],[2023/24 Baseline_Source]]*T_DataComboFile[[#This Row],[G&S reporting level indicator]]","v":0},null,null,null,null,null,null,{"$f":"T_DataComboFile[[#This Row],[2021/22 Baseline]]+T_DataComboFile[[#This Row],[2021/22 Reduction]]+T_DataComboFile[[#This Row],[2021/22 Increase]]","v":0},{"$f":"T_DataComboFile[[#This Row],[2022/23 Baseline]]+T_DataComboFile[[#This Row],[2022/23 Reduction]]+T_DataComboFile[[#This Row],[2022/23 Increase]]","v":0},{"$f":"T_DataComboFile[[#This Row],[2023/24 Baseline]]+T_DataComboFile[[#This Row],[2023/24 Reduction]]+T_DataComboFile[[#This Row],[2023/24 Increase]]","v":0}]
[null,null,"2021_22","ENE2020",36,1,3,null,70236,36,1,3,null,"070236","36|01|03",1,1,2,13,13,"01|01|02|13|13","National","Small Business Development","Administration","Corporate Services",null,"Current","Current payments","Goods and services","Laboratory services","Laboratory services",null,null,null,0,0,0,0,0,0,0,0,0,0,0,0,0,0,null,{"$f":"IF(T_DataComboFile[[#This Row],[G&S reporting level indicator]]=1,$AX$16,\"Not applicable\")","v":"Not applicable"},{"$f":"IF(AND($AX$16=\"Level 3\",T_DataComboFile[[#This Row],[Econ3]] = \"Goods and services\"),IF(T_DataComboFile[[#This Row],[Econ4]] = T_DataComboFile[[#This Row],[Econ3]],1,0),IF(AND($AX$16=\"Level 4\",T_DataComboFile[[#This Row],[Econ4]] = \"Goods and services\"),0,1))","v":0},{"$f":"T_DataComboFile[[#This Row],[2016/17_Source]]*T_DataComboFile[[#This Row],[G&S reporting level indicator]]","v":0},{"$f":"T_DataComboFile[[#This Row],[2017/18_Source]]*T_DataComboFile[[#This Row],[G&S reporting level indicator]]","v":0},{"$f":"T_DataComboFile[[#This Row],[2018/19_Source]]*T_DataComboFile[[#This Row],[G&S reporting level indicator]]","v":0},{"$f":"T_DataComboFile[[#This Row],[2019/20 Main appropriation_Source]]*T_DataComboFile[[#This Row],[G&S reporting level indicator]]","v":0},{"$f":"T_DataComboFile[[#This Row],[2019/20 Adjusted appropriation_Source]]*T_DataComboFile[[#This Row],[G&S reporting level indicator]]","v":0},{"$f":"T_DataComboFile[[#This Row],[2019/20 Revised estimate_Source]]*T_DataComboFile[[#This Row],[G&S reporting level indicator]]","v":0},{"$f":"T_DataComboFile[[#This Row],[2019/20 Preliminary outcome_Source]]*T_DataComboFile[[#This Row],[G&S reporting level indicator]]","v":0},{"$f":"T_DataComboFile[[#This Row],[2020/21 Original_Source]]*T_DataComboFile[[#This Row],[G&S reporting level indicator]]","v":0},{"$f":"T_DataComboFile[[#This Row],[2020/21 SAB_Source]]*T_DataComboFile[[#This Row],[G&S reporting level indicator]]","v":0},{"$f":"T_DataComboFile[[#This Row],[2020/21 Baseline_Source]]*T_DataComboFile[[#This Row],[G&S reporting level indicator]]","v":0},{"$f":"T_DataComboFile[[#This Row],[2021/22 Baseline_Source]]*T_DataComboFile[[#This Row],[G&S reporting level indicator]]","v":0},{"$f":"T_DataComboFile[[#This Row],[2022/23 Baseline_Source]]*T_DataComboFile[[#This Row],[G&S reporting level indicator]]","v":0},{"$f":"T_DataComboFile[[#This Row],[2023/24 Baseline_Source]]*T_DataComboFile[[#This Row],[G&S reporting level indicator]]","v":0},null,null,null,null,null,null,{"$f":"T_DataComboFile[[#This Row],[2021/22 Baseline]]+T_DataComboFile[[#This Row],[2021/22 Reduction]]+T_DataComboFile[[#This Row],[2021/22 Increase]]","v":0},{"$f":"T_DataComboFile[[#This Row],[2022/23 Baseline]]+T_DataComboFile[[#This Row],[2022/23 Reduction]]+T_DataComboFile[[#This Row],[2022/23 Increase]]","v":0},{"$f":"T_DataComboFile[[#This Row],[2023/24 Baseline]]+T_DataComboFile[[#This Row],[2023/24 Reduction]]+T_DataComboFile[[#This Row],[2023/24 Increase]]","v":0}]
["NAT|Non-transfer item","36|Legal services (G&S)","2021_22","ENE2020",36,1,3,17225,70237,36,1,3,17225,"070237","36|01|03",1,1,2,14,14,"01|01|02|14|14","National","Small Business Development","Administration","Corporate Services","Non-transfer item","Current","Current payments","Goods and services","Legal services (G&S)","Legal services (G&S)","Economic development","Industrialisation and exports","NAT",0,55,318,320,1360,1360,1360,1920,1920,1920,2080,2220,2318,1,null,{"$f":"IF(T_DataComboFile[[#This Row],[G&S reporting level indicator]]=1,$AX$16,\"Not applicable\")","v":"Not applicable"},{"$f":"IF(AND($AX$16=\"Level 3\",T_DataComboFile[[#This Row],[Econ3]] = \"Goods and services\"),IF(T_DataComboFile[[#This Row],[Econ4]] = T_DataComboFile[[#This Row],[Econ3]],1,0),IF(AND($AX$16=\"Level 4\",T_DataComboFile[[#This Row],[Econ4]] = \"Goods and services\"),0,1))","v":0},{"$f":"T_DataComboFile[[#This Row],[2016/17_Source]]*T_DataComboFile[[#This Row],[G&S reporting level indicator]]","v":0},{"$f":"T_DataComboFile[[#This Row],[2017/18_Source]]*T_DataComboFile[[#This Row],[G&S reporting level indicator]]","v":0},{"$f":"T_DataComboFile[[#This Row],[2018/19_Source]]*T_DataComboFile[[#This Row],[G&S reporting level indicator]]","v":0},{"$f":"T_DataComboFile[[#This Row],[2019/20 Main appropriation_Source]]*T_DataComboFile[[#This Row],[G&S reporting level indicator]]","v":0},{"$f":"T_DataComboFile[[#This Row],[2019/20 Adjusted appropriation_Source]]*T_DataComboFile[[#This Row],[G&S reporting level indicator]]","v":0},{"$f":"T_DataComboFile[[#This Row],[2019/20 Revised estimate_Source]]*T_DataComboFile[[#This Row],[G&S reporting level indicator]]","v":0},{"$f":"T_DataComboFile[[#This Row],[2019/20 Preliminary outcome_Source]]*T_DataComboFile[[#This Row],[G&S reporting level indicator]]","v":0},{"$f":"T_DataComboFile[[#This Row],[2020/21 Original_Source]]*T_DataComboFile[[#This Row],[G&S reporting level indicator]]","v":0},{"$f":"T_DataComboFile[[#This Row],[2020/21 SAB_Source]]*T_DataComboFile[[#This Row],[G&S reporting level indicator]]","v":0},{"$f":"T_DataComboFile[[#This Row],[2020/21 Baseline_Source]]*T_DataComboFile[[#This Row],[G&S reporting level indicator]]","v":0},{"$f":"T_DataComboFile[[#This Row],[2021/22 Baseline_Source]]*T_DataComboFile[[#This Row],[G&S reporting level indicator]]","v":0},{"$f":"T_DataComboFile[[#This Row],[2022/23 Baseline_Source]]*T_DataComboFile[[#This Row],[G&S reporting level indicator]]","v":0},{"$f":"T_DataComboFile[[#This Row],[2023/24 Baseline_Source]]*T_DataComboFile[[#This Row],[G&S reporting level indicator]]","v":0},null,null,null,null,null,null,{"$f":"T_DataComboFile[[#This Row],[2021/22 Baseline]]+T_DataComboFile[[#This Row],[2021/22 Reduction]]+T_DataComboFile[[#This Row],[2021/22 Increase]]","v":0},{"$f":"T_DataComboFile[[#This Row],[2022/23 Baseline]]+T_DataComboFile[[#This Row],[2022/23 Reduction]]+T_DataComboFile[[#This Row],[2022/23 Increase]]","v":0},{"$f":"T_DataComboFile[[#This Row],[2023/24 Baseline]]+T_DataComboFile[[#This Row],[2023/24 Reduction]]+T_DataComboFile[[#This Row],[2023/24 Increase]]","v":0}]
["NAT|Non-transfer item","36|Science and technological services","2021_22","ENE2020",36,1,3,17226,70238,36,1,3,17226,"070238","36|01|03",1,1,2,15,15,"01|01|02|15|15","National","Small Business Development","Administration","Corporate Services","Non-transfer item","Current","Current payments","Goods and services","Science and technological services","Science and technological services","Economic development","Industrialisation and exports","NAT",142,0,0,0,0,0,0,0,0,0,0,0,0,1,null,{"$f":"IF(T_DataComboFile[[#This Row],[G&S reporting level indicator]]=1,$AX$16,\"Not applicable\")","v":"Not applicable"},{"$f":"IF(AND($AX$16=\"Level 3\",T_DataComboFile[[#This Row],[Econ3]] = \"Goods and services\"),IF(T_DataComboFile[[#This Row],[Econ4]] = T_DataComboFile[[#This Row],[Econ3]],1,0),IF(AND($AX$16=\"Level 4\",T_DataComboFile[[#This Row],[Econ4]] = \"Goods and services\"),0,1))","v":0},{"$f":"T_DataComboFile[[#This Row],[2016/17_Source]]*T_DataComboFile[[#This Row],[G&S reporting level indicator]]","v":0},{"$f":"T_DataComboFile[[#This Row],[2017/18_Source]]*T_DataComboFile[[#This Row],[G&S reporting level indicator]]","v":0},{"$f":"T_DataComboFile[[#This Row],[2018/19_Source]]*T_DataComboFile[[#This Row],[G&S reporting level indicator]]","v":0},{"$f":"T_DataComboFile[[#This Row],[2019/20 Main appropriation_Source]]*T_DataComboFile[[#This Row],[G&S reporting level indicator]]","v":0},{"$f":"T_DataComboFile[[#This Row],[2019/20 Adjusted appropriation_Source]]*T_DataComboFile[[#This Row],[G&S reporting level indicator]]","v":0},{"$f":"T_DataComboFile[[#This Row],[2019/20 Revised estimate_Source]]*T_DataComboFile[[#This Row],[G&S reporting level indicator]]","v":0},{"$f":"T_DataComboFile[[#This Row],[2019/20 Preliminary outcome_Source]]*T_DataComboFile[[#This Row],[G&S reporting level indicator]]","v":0},{"$f":"T_DataComboFile[[#This Row],[2020/21 Original_Source]]*T_DataComboFile[[#This Row],[G&S reporting level indicator]]","v":0},{"$f":"T_DataComboFile[[#This Row],[2020/21 SAB_Source]]*T_DataComboFile[[#This Row],[G&S reporting level indicator]]","v":0},{"$f":"T_DataComboFile[[#This Row],[2020/21 Baseline_Source]]*T_DataComboFile[[#This Row],[G&S reporting level indicator]]","v":0},{"$f":"T_DataComboFile[[#This Row],[2021/22 Baseline_Source]]*T_DataComboFile[[#This Row],[G&S reporting level indicator]]","v":0},{"$f":"T_DataComboFile[[#This Row],[2022/23 Baseline_Source]]*T_DataComboFile[[#This Row],[G&S reporting level indicator]]","v":0},{"$f":"T_DataComboFile[[#This Row],[2023/24 Baseline_Source]]*T_DataComboFile[[#This Row],[G&S reporting level indicator]]","v":0},null,null,null,null,null,null,{"$f":"T_DataComboFile[[#This Row],[2021/22 Baseline]]+T_DataComboFile[[#This Row],[2021/22 Reduction]]+T_DataComboFile[[#This Row],[2021/22 Increase]]","v":0},{"$f":"T_DataComboFile[[#This Row],[2022/23 Baseline]]+T_DataComboFile[[#This Row],[2022/23 Reduction]]+T_DataComboFile[[#This Row],[2022/23 Increase]]","v":0},{"$f":"T_DataComboFile[[#This Row],[2023/24 Baseline]]+T_DataComboFile[[#This Row],[2023/24 Reduction]]+T_DataComboFile[[#This Row],[2023/24 Increase]]","v":0}]
["NAT|Non-transfer item","36|Contractors","2021_22","ENE2020",36,1,3,17227,70239,36,1,3,17227,"070239","36|01|03",1,1,2,16,16,"01|01|02|16|16","National","Small Business Development","Administration","Corporate Services","Non-transfer item","Current","Current payments","Goods and services","Contractors","Contractors","Economic development","Industrialisation and exports","NAT",29,90,157,179,225,225,225,105,105,105,116,121,126,1,null,{"$f":"IF(T_DataComboFile[[#This Row],[G&S reporting level indicator]]=1,$AX$16,\"Not applicable\")","v":"Not applicable"},{"$f":"IF(AND($AX$16=\"Level 3\",T_DataComboFile[[#This Row],[Econ3]] = \"Goods and services\"),IF(T_DataComboFile[[#This Row],[Econ4]] = T_DataComboFile[[#This Row],[Econ3]],1,0),IF(AND($AX$16=\"Level 4\",T_DataComboFile[[#This Row],[Econ4]] = \"Goods and services\"),0,1))","v":0},{"$f":"T_DataComboFile[[#This Row],[2016/17_Source]]*T_DataComboFile[[#This Row],[G&S reporting level indicator]]","v":0},{"$f":"T_DataComboFile[[#This Row],[2017/18_Source]]*T_DataComboFile[[#This Row],[G&S reporting level indicator]]","v":0},{"$f":"T_DataComboFile[[#This Row],[2018/19_Source]]*T_DataComboFile[[#This Row],[G&S reporting level indicator]]","v":0},{"$f":"T_DataComboFile[[#This Row],[2019/20 Main appropriation_Source]]*T_DataComboFile[[#This Row],[G&S reporting level indicator]]","v":0},{"$f":"T_DataComboFile[[#This Row],[2019/20 Adjusted appropriation_Source]]*T_DataComboFile[[#This Row],[G&S reporting level indicator]]","v":0},{"$f":"T_DataComboFile[[#This Row],[2019/20 Revised estimate_Source]]*T_DataComboFile[[#This Row],[G&S reporting level indicator]]","v":0},{"$f":"T_DataComboFile[[#This Row],[2019/20 Preliminary outcome_Source]]*T_DataComboFile[[#This Row],[G&S reporting level indicator]]","v":0},{"$f":"T_DataComboFile[[#This Row],[2020/21 Original_Source]]*T_DataComboFile[[#This Row],[G&S reporting level indicator]]","v":0},{"$f":"T_DataComboFile[[#This Row],[2020/21 SAB_Source]]*T_DataComboFile[[#This Row],[G&S reporting level indicator]]","v":0},{"$f":"T_DataComboFile[[#This Row],[2020/21 Baseline_Source]]*T_DataComboFile[[#This Row],[G&S reporting level indicator]]","v":0},{"$f":"T_DataComboFile[[#This Row],[2021/22 Baseline_Source]]*T_DataComboFile[[#This Row],[G&S reporting level indicator]]","v":0},{"$f":"T_DataComboFile[[#This Row],[2022/23 Baseline_Source]]*T_DataComboFile[[#This Row],[G&S reporting level indicator]]","v":0},{"$f":"T_DataComboFile[[#This Row],[2023/24 Baseline_Source]]*T_DataComboFile[[#This Row],[G&S reporting level indicator]]","v":0},null,null,null,null,null,null,{"$f":"T_DataComboFile[[#This Row],[2021/22 Baseline]]+T_DataComboFile[[#This Row],[2021/22 Reduction]]+T_DataComboFile[[#This Row],[2021/22 Increase]]","v":0},{"$f":"T_DataComboFile[[#This Row],[2022/23 Baseline]]+T_DataComboFile[[#This Row],[2022/23 Reduction]]+T_DataComboFile[[#This Row],[2022/23 Increase]]","v":0},{"$f":"T_DataComboFile[[#This Row],[2023/24 Baseline]]+T_DataComboFile[[#This Row],[2023/24 Reduction]]+T_DataComboFile[[#This Row],[2023/24 Increase]]","v":0}]
["NAT|Non-transfer item","36|Agency and support/outsourced services","2021_22","ENE2020",36,1,3,17228,70240,36,1,3,17228,"070240","36|01|03",1,1,2,17,17,"01|01|02|17|17","National","Small Business Development","Administration","Corporate Services","Non-transfer item","Current","Current payments","Goods and services","Agency and support/outsourced services","Agency and support/outsourced services","Economic development","Industrialisation and exports","NAT",0,0,0,320,0,0,0,0,0,0,0,0,0,1,null,{"$f":"IF(T_DataComboFile[[#This Row],[G&S reporting level indicator]]=1,$AX$16,\"Not applicable\")","v":"Not applicable"},{"$f":"IF(AND($AX$16=\"Level 3\",T_DataComboFile[[#This Row],[Econ3]] = \"Goods and services\"),IF(T_DataComboFile[[#This Row],[Econ4]] = T_DataComboFile[[#This Row],[Econ3]],1,0),IF(AND($AX$16=\"Level 4\",T_DataComboFile[[#This Row],[Econ4]] = \"Goods and services\"),0,1))","v":0},{"$f":"T_DataComboFile[[#This Row],[2016/17_Source]]*T_DataComboFile[[#This Row],[G&S reporting level indicator]]","v":0},{"$f":"T_DataComboFile[[#This Row],[2017/18_Source]]*T_DataComboFile[[#This Row],[G&S reporting level indicator]]","v":0},{"$f":"T_DataComboFile[[#This Row],[2018/19_Source]]*T_DataComboFile[[#This Row],[G&S reporting level indicator]]","v":0},{"$f":"T_DataComboFile[[#This Row],[2019/20 Main appropriation_Source]]*T_DataComboFile[[#This Row],[G&S reporting level indicator]]","v":0},{"$f":"T_DataComboFile[[#This Row],[2019/20 Adjusted appropriation_Source]]*T_DataComboFile[[#This Row],[G&S reporting level indicator]]","v":0},{"$f":"T_DataComboFile[[#This Row],[2019/20 Revised estimate_Source]]*T_DataComboFile[[#This Row],[G&S reporting level indicator]]","v":0},{"$f":"T_DataComboFile[[#This Row],[2019/20 Preliminary outcome_Source]]*T_DataComboFile[[#This Row],[G&S reporting level indicator]]","v":0},{"$f":"T_DataComboFile[[#This Row],[2020/21 Original_Source]]*T_DataComboFile[[#This Row],[G&S reporting level indicator]]","v":0},{"$f":"T_DataComboFile[[#This Row],[2020/21 SAB_Source]]*T_DataComboFile[[#This Row],[G&S reporting level indicator]]","v":0},{"$f":"T_DataComboFile[[#This Row],[2020/21 Baseline_Source]]*T_DataComboFile[[#This Row],[G&S reporting level indicator]]","v":0},{"$f":"T_DataComboFile[[#This Row],[2021/22 Baseline_Source]]*T_DataComboFile[[#This Row],[G&S reporting level indicator]]","v":0},{"$f":"T_DataComboFile[[#This Row],[2022/23 Baseline_Source]]*T_DataComboFile[[#This Row],[G&S reporting level indicator]]","v":0},{"$f":"T_DataComboFile[[#This Row],[2023/24 Baseline_Source]]*T_DataComboFile[[#This Row],[G&S reporting level indicator]]","v":0},null,null,null,null,null,null,{"$f":"T_DataComboFile[[#This Row],[2021/22 Baseline]]+T_DataComboFile[[#This Row],[2021/22 Reduction]]+T_DataComboFile[[#This Row],[2021/22 Increase]]","v":0},{"$f":"T_DataComboFile[[#This Row],[2022/23 Baseline]]+T_DataComboFile[[#This Row],[2022/23 Reduction]]+T_DataComboFile[[#This Row],[2022/23 Increase]]","v":0},{"$f":"T_DataComboFile[[#This Row],[2023/24 Baseline]]+T_DataComboFile[[#This Row],[2023/24 Reduction]]+T_DataComboFile[[#This Row],[2023/24 Increase]]","v":0}]
[null,null,"2021_22","ENE2020",36,1,3,null,70241,36,1,3,null,"070241","36|01|03",1,1,2,18,18,"01|01|02|18|18","National","Small Business Development","Administration","Corporate Services",null,"Current","Current payments","Goods and services","Entertainment","Entertainment",null,null,null,0,0,0,0,0,0,0,0,0,0,0,0,0,0,null,{"$f":"IF(T_DataComboFile[[#This Row],[G&S reporting level indicator]]=1,$AX$16,\"Not applicable\")","v":"Not applicable"},{"$f":"IF(AND($AX$16=\"Level 3\",T_DataComboFile[[#This Row],[Econ3]] = \"Goods and services\"),IF(T_DataComboFile[[#This Row],[Econ4]] = T_DataComboFile[[#This Row],[Econ3]],1,0),IF(AND($AX$16=\"Level 4\",T_DataComboFile[[#This Row],[Econ4]] = \"Goods and services\"),0,1))","v":0},{"$f":"T_DataComboFile[[#This Row],[2016/17_Source]]*T_DataComboFile[[#This Row],[G&S reporting level indicator]]","v":0},{"$f":"T_DataComboFile[[#This Row],[2017/18_Source]]*T_DataComboFile[[#This Row],[G&S reporting level indicator]]","v":0},{"$f":"T_DataComboFile[[#This Row],[2018/19_Source]]*T_DataComboFile[[#This Row],[G&S reporting level indicator]]","v":0},{"$f":"T_DataComboFile[[#This Row],[2019/20 Main appropriation_Source]]*T_DataComboFile[[#This Row],[G&S reporting level indicator]]","v":0},{"$f":"T_DataComboFile[[#This Row],[2019/20 Adjusted appropriation_Source]]*T_DataComboFile[[#This Row],[G&S reporting level indicator]]","v":0},{"$f":"T_DataComboFile[[#This Row],[2019/20 Revised estimate_Source]]*T_DataComboFile[[#This Row],[G&S reporting level indicator]]","v":0},{"$f":"T_DataComboFile[[#This Row],[2019/20 Preliminary outcome_Source]]*T_DataComboFile[[#This Row],[G&S reporting level indicator]]","v":0},{"$f":"T_DataComboFile[[#This Row],[2020/21 Original_Source]]*T_DataComboFile[[#This Row],[G&S reporting level indicator]]","v":0},{"$f":"T_DataComboFile[[#This Row],[2020/21 SAB_Source]]*T_DataComboFile[[#This Row],[G&S reporting level indicator]]","v":0},{"$f":"T_DataComboFile[[#This Row],[2020/21 Baseline_Source]]*T_DataComboFile[[#This Row],[G&S reporting level indicator]]","v":0},{"$f":"T_DataComboFile[[#This Row],[2021/22 Baseline_Source]]*T_DataComboFile[[#This Row],[G&S reporting level indicator]]","v":0},{"$f":"T_DataComboFile[[#This Row],[2022/23 Baseline_Source]]*T_DataComboFile[[#This Row],[G&S reporting level indicator]]","v":0},{"$f":"T_DataComboFile[[#This Row],[2023/24 Baseline_Source]]*T_DataComboFile[[#This Row],[G&S reporting level indicator]]","v":0},null,null,null,null,null,null,{"$f":"T_DataComboFile[[#This Row],[2021/22 Baseline]]+T_DataComboFile[[#This Row],[2021/22 Reduction]]+T_DataComboFile[[#This Row],[2021/22 Increase]]","v":0},{"$f":"T_DataComboFile[[#This Row],[2022/23 Baseline]]+T_DataComboFile[[#This Row],[2022/23 Reduction]]+T_DataComboFile[[#This Row],[2022/23 Increase]]","v":0},{"$f":"T_DataComboFile[[#This Row],[2023/24 Baseline]]+T_DataComboFile[[#This Row],[2023/24 Reduction]]+T_DataComboFile[[#This Row],[2023/24 Increase]]","v":0}]
["NAT|Non-transfer item","36|Fleet services (including government motor transport)","2021_22","ENE2020",36,1,3,17229,70242,36,1,3,17229,"070242","36|01|03",1,1,2,19,19,"01|01|02|19|19","National","Small Business Development","Administration","Corporate Services","Non-transfer item","Current","Current payments","Goods and services","Fleet services (including government motor transport)","Fleet services (including government motor transport)","Economic development","Industrialisation and exports","NAT",0,0,4,0,6,6,6,2,2,2,2,2,2,1,null,{"$f":"IF(T_DataComboFile[[#This Row],[G&S reporting level indicator]]=1,$AX$16,\"Not applicable\")","v":"Not applicable"},{"$f":"IF(AND($AX$16=\"Level 3\",T_DataComboFile[[#This Row],[Econ3]] = \"Goods and services\"),IF(T_DataComboFile[[#This Row],[Econ4]] = T_DataComboFile[[#This Row],[Econ3]],1,0),IF(AND($AX$16=\"Level 4\",T_DataComboFile[[#This Row],[Econ4]] = \"Goods and services\"),0,1))","v":0},{"$f":"T_DataComboFile[[#This Row],[2016/17_Source]]*T_DataComboFile[[#This Row],[G&S reporting level indicator]]","v":0},{"$f":"T_DataComboFile[[#This Row],[2017/18_Source]]*T_DataComboFile[[#This Row],[G&S reporting level indicator]]","v":0},{"$f":"T_DataComboFile[[#This Row],[2018/19_Source]]*T_DataComboFile[[#This Row],[G&S reporting level indicator]]","v":0},{"$f":"T_DataComboFile[[#This Row],[2019/20 Main appropriation_Source]]*T_DataComboFile[[#This Row],[G&S reporting level indicator]]","v":0},{"$f":"T_DataComboFile[[#This Row],[2019/20 Adjusted appropriation_Source]]*T_DataComboFile[[#This Row],[G&S reporting level indicator]]","v":0},{"$f":"T_DataComboFile[[#This Row],[2019/20 Revised estimate_Source]]*T_DataComboFile[[#This Row],[G&S reporting level indicator]]","v":0},{"$f":"T_DataComboFile[[#This Row],[2019/20 Preliminary outcome_Source]]*T_DataComboFile[[#This Row],[G&S reporting level indicator]]","v":0},{"$f":"T_DataComboFile[[#This Row],[2020/21 Original_Source]]*T_DataComboFile[[#This Row],[G&S reporting level indicator]]","v":0},{"$f":"T_DataComboFile[[#This Row],[2020/21 SAB_Source]]*T_DataComboFile[[#This Row],[G&S reporting level indicator]]","v":0},{"$f":"T_DataComboFile[[#This Row],[2020/21 Baseline_Source]]*T_DataComboFile[[#This Row],[G&S reporting level indicator]]","v":0},{"$f":"T_DataComboFile[[#This Row],[2021/22 Baseline_Source]]*T_DataComboFile[[#This Row],[G&S reporting level indicator]]","v":0},{"$f":"T_DataComboFile[[#This Row],[2022/23 Baseline_Source]]*T_DataComboFile[[#This Row],[G&S reporting level indicator]]","v":0},{"$f":"T_DataComboFile[[#This Row],[2023/24 Baseline_Source]]*T_DataComboFile[[#This Row],[G&S reporting level indicator]]","v":0},null,null,null,null,null,null,{"$f":"T_DataComboFile[[#This Row],[2021/22 Baseline]]+T_DataComboFile[[#This Row],[2021/22 Reduction]]+T_DataComboFile[[#This Row],[2021/22 Increase]]","v":0},{"$f":"T_DataComboFile[[#This Row],[2022/23 Baseline]]+T_DataComboFile[[#This Row],[2022/23 Reduction]]+T_DataComboFile[[#This Row],[2022/23 Increase]]","v":0},{"$f":"T_DataComboFile[[#This Row],[2023/24 Baseline]]+T_DataComboFile[[#This Row],[2023/24 Reduction]]+T_DataComboFile[[#This Row],[2023/24 Increase]]","v":0}]
[null,null,"2021_22","ENE2020",36,1,3,null,70243,36,1,3,null,"070243","36|01|03",1,1,2,20,20,"01|01|02|20|20","National","Small Business Development","Administration","Corporate Services",null,"Current","Current payments","Goods and services","Housing","Housing",null,null,null,0,0,0,0,0,0,0,0,0,0,0,0,0,0,null,{"$f":"IF(T_DataComboFile[[#This Row],[G&S reporting level indicator]]=1,$AX$16,\"Not applicable\")","v":"Not applicable"},{"$f":"IF(AND($AX$16=\"Level 3\",T_DataComboFile[[#This Row],[Econ3]] = \"Goods and services\"),IF(T_DataComboFile[[#This Row],[Econ4]] = T_DataComboFile[[#This Row],[Econ3]],1,0),IF(AND($AX$16=\"Level 4\",T_DataComboFile[[#This Row],[Econ4]] = \"Goods and services\"),0,1))","v":0},{"$f":"T_DataComboFile[[#This Row],[2016/17_Source]]*T_DataComboFile[[#This Row],[G&S reporting level indicator]]","v":0},{"$f":"T_DataComboFile[[#This Row],[2017/18_Source]]*T_DataComboFile[[#This Row],[G&S reporting level indicator]]","v":0},{"$f":"T_DataComboFile[[#This Row],[2018/19_Source]]*T_DataComboFile[[#This Row],[G&S reporting level indicator]]","v":0},{"$f":"T_DataComboFile[[#This Row],[2019/20 Main appropriation_Source]]*T_DataComboFile[[#This Row],[G&S reporting level indicator]]","v":0},{"$f":"T_DataComboFile[[#This Row],[2019/20 Adjusted appropriation_Source]]*T_DataComboFile[[#This Row],[G&S reporting level indicator]]","v":0},{"$f":"T_DataComboFile[[#This Row],[2019/20 Revised estimate_Source]]*T_DataComboFile[[#This Row],[G&S reporting level indicator]]","v":0},{"$f":"T_DataComboFile[[#This Row],[2019/20 Preliminary outcome_Source]]*T_DataComboFile[[#This Row],[G&S reporting level indicator]]","v":0},{"$f":"T_DataComboFile[[#This Row],[2020/21 Original_Source]]*T_DataComboFile[[#This Row],[G&S reporting level indicator]]","v":0},{"$f":"T_DataComboFile[[#This Row],[2020/21 SAB_Source]]*T_DataComboFile[[#This Row],[G&S reporting level indicator]]","v":0},{"$f":"T_DataComboFile[[#This Row],[2020/21 Baseline_Source]]*T_DataComboFile[[#This Row],[G&S reporting level indicator]]","v":0},{"$f":"T_DataComboFile[[#This Row],[2021/22 Baseline_Source]]*T_DataComboFile[[#This Row],[G&S reporting level indicator]]","v":0},{"$f":"T_DataComboFile[[#This Row],[2022/23 Baseline_Source]]*T_DataComboFile[[#This Row],[G&S reporting level indicator]]","v":0},{"$f":"T_DataComboFile[[#This Row],[2023/24 Baseline_Source]]*T_DataComboFile[[#This Row],[G&S reporting level indicator]]","v":0},null,null,null,null,null,null,{"$f":"T_DataComboFile[[#This Row],[2021/22 Baseline]]+T_DataComboFile[[#This Row],[2021/22 Reduction]]+T_DataComboFile[[#This Row],[2021/22 Increase]]","v":0},{"$f":"T_DataComboFile[[#This Row],[2022/23 Baseline]]+T_DataComboFile[[#This Row],[2022/23 Reduction]]+T_DataComboFile[[#This Row],[2022/23 Increase]]","v":0},{"$f":"T_DataComboFile[[#This Row],[2023/24 Baseline]]+T_DataComboFile[[#This Row],[2023/24 Reduction]]+T_DataComboFile[[#This Row],[2023/24 Increase]]","v":0}]
[null,null,"2021_22","ENE2020",36,1,3,null,70244,36,1,3,null,"070244","36|01|03",1,1,2,21,21,"01|01|02|21|21","National","Small Business Development","Administration","Corporate Services",null,"Current","Current payments","Goods and services","Inventory: Clothing material and accessories","Inventory: Clothing material and accessories",null,null,null,0,0,0,0,0,0,0,0,0,0,0,0,0,0,null,{"$f":"IF(T_DataComboFile[[#This Row],[G&S reporting level indicator]]=1,$AX$16,\"Not applicable\")","v":"Not applicable"},{"$f":"IF(AND($AX$16=\"Level 3\",T_DataComboFile[[#This Row],[Econ3]] = \"Goods and services\"),IF(T_DataComboFile[[#This Row],[Econ4]] = T_DataComboFile[[#This Row],[Econ3]],1,0),IF(AND($AX$16=\"Level 4\",T_DataComboFile[[#This Row],[Econ4]] = \"Goods and services\"),0,1))","v":0},{"$f":"T_DataComboFile[[#This Row],[2016/17_Source]]*T_DataComboFile[[#This Row],[G&S reporting level indicator]]","v":0},{"$f":"T_DataComboFile[[#This Row],[2017/18_Source]]*T_DataComboFile[[#This Row],[G&S reporting level indicator]]","v":0},{"$f":"T_DataComboFile[[#This Row],[2018/19_Source]]*T_DataComboFile[[#This Row],[G&S reporting level indicator]]","v":0},{"$f":"T_DataComboFile[[#This Row],[2019/20 Main appropriation_Source]]*T_DataComboFile[[#This Row],[G&S reporting level indicator]]","v":0},{"$f":"T_DataComboFile[[#This Row],[2019/20 Adjusted appropriation_Source]]*T_DataComboFile[[#This Row],[G&S reporting level indicator]]","v":0},{"$f":"T_DataComboFile[[#This Row],[2019/20 Revised estimate_Source]]*T_DataComboFile[[#This Row],[G&S reporting level indicator]]","v":0},{"$f":"T_DataComboFile[[#This Row],[2019/20 Preliminary outcome_Source]]*T_DataComboFile[[#This Row],[G&S reporting level indicator]]","v":0},{"$f":"T_DataComboFile[[#This Row],[2020/21 Original_Source]]*T_DataComboFile[[#This Row],[G&S reporting level indicator]]","v":0},{"$f":"T_DataComboFile[[#This Row],[2020/21 SAB_Source]]*T_DataComboFile[[#This Row],[G&S reporting level indicator]]","v":0},{"$f":"T_DataComboFile[[#This Row],[2020/21 Baseline_Source]]*T_DataComboFile[[#This Row],[G&S reporting level indicator]]","v":0},{"$f":"T_DataComboFile[[#This Row],[2021/22 Baseline_Source]]*T_DataComboFile[[#This Row],[G&S reporting level indicator]]","v":0},{"$f":"T_DataComboFile[[#This Row],[2022/23 Baseline_Source]]*T_DataComboFile[[#This Row],[G&S reporting level indicator]]","v":0},{"$f":"T_DataComboFile[[#This Row],[2023/24 Baseline_Source]]*T_DataComboFile[[#This Row],[G&S reporting level indicator]]","v":0},null,null,null,null,null,null,{"$f":"T_DataComboFile[[#This Row],[2021/22 Baseline]]+T_DataComboFile[[#This Row],[2021/22 Reduction]]+T_DataComboFile[[#This Row],[2021/22 Increase]]","v":0},{"$f":"T_DataComboFile[[#This Row],[2022/23 Baseline]]+T_DataComboFile[[#This Row],[2022/23 Reduction]]+T_DataComboFile[[#This Row],[2022/23 Increase]]","v":0},{"$f":"T_DataComboFile[[#This Row],[2023/24 Baseline]]+T_DataComboFile[[#This Row],[2023/24 Reduction]]+T_DataComboFile[[#This Row],[2023/24 Increase]]","v":0}]
[null,null,"2021_22","ENE2020",36,1,3,null,70245,36,1,3,null,"070245","36|01|03",1,1,2,22,22,"01|01|02|22|22","National","Small Business Development","Administration","Corporate Services",null,"Current","Current payments","Goods and services","Inventory: Farming supplies","Inventory: Farming supplies",null,null,null,0,0,0,0,0,0,0,0,0,0,0,0,0,0,null,{"$f":"IF(T_DataComboFile[[#This Row],[G&S reporting level indicator]]=1,$AX$16,\"Not applicable\")","v":"Not applicable"},{"$f":"IF(AND($AX$16=\"Level 3\",T_DataComboFile[[#This Row],[Econ3]] = \"Goods and services\"),IF(T_DataComboFile[[#This Row],[Econ4]] = T_DataComboFile[[#This Row],[Econ3]],1,0),IF(AND($AX$16=\"Level 4\",T_DataComboFile[[#This Row],[Econ4]] = \"Goods and services\"),0,1))","v":0},{"$f":"T_DataComboFile[[#This Row],[2016/17_Source]]*T_DataComboFile[[#This Row],[G&S reporting level indicator]]","v":0},{"$f":"T_DataComboFile[[#This Row],[2017/18_Source]]*T_DataComboFile[[#This Row],[G&S reporting level indicator]]","v":0},{"$f":"T_DataComboFile[[#This Row],[2018/19_Source]]*T_DataComboFile[[#This Row],[G&S reporting level indicator]]","v":0},{"$f":"T_DataComboFile[[#This Row],[2019/20 Main appropriation_Source]]*T_DataComboFile[[#This Row],[G&S reporting level indicator]]","v":0},{"$f":"T_DataComboFile[[#This Row],[2019/20 Adjusted appropriation_Source]]*T_DataComboFile[[#This Row],[G&S reporting level indicator]]","v":0},{"$f":"T_DataComboFile[[#This Row],[2019/20 Revised estimate_Source]]*T_DataComboFile[[#This Row],[G&S reporting level indicator]]","v":0},{"$f":"T_DataComboFile[[#This Row],[2019/20 Preliminary outcome_Source]]*T_DataComboFile[[#This Row],[G&S reporting level indicator]]","v":0},{"$f":"T_DataComboFile[[#This Row],[2020/21 Original_Source]]*T_DataComboFile[[#This Row],[G&S reporting level indicator]]","v":0},{"$f":"T_DataComboFile[[#This Row],[2020/21 SAB_Source]]*T_DataComboFile[[#This Row],[G&S reporting level indicator]]","v":0},{"$f":"T_DataComboFile[[#This Row],[2020/21 Baseline_Source]]*T_DataComboFile[[#This Row],[G&S reporting level indicator]]","v":0},{"$f":"T_DataComboFile[[#This Row],[2021/22 Baseline_Source]]*T_DataComboFile[[#This Row],[G&S reporting level indicator]]","v":0},{"$f":"T_DataComboFile[[#This Row],[2022/23 Baseline_Source]]*T_DataComboFile[[#This Row],[G&S reporting level indicator]]","v":0},{"$f":"T_DataComboFile[[#This Row],[2023/24 Baseline_Source]]*T_DataComboFile[[#This Row],[G&S reporting level indicator]]","v":0},null,null,null,null,null,null,{"$f":"T_DataComboFile[[#This Row],[2021/22 Baseline]]+T_DataComboFile[[#This Row],[2021/22 Reduction]]+T_DataComboFile[[#This Row],[2021/22 Increase]]","v":0},{"$f":"T_DataComboFile[[#This Row],[2022/23 Baseline]]+T_DataComboFile[[#This Row],[2022/23 Reduction]]+T_DataComboFile[[#This Row],[2022/23 Increase]]","v":0},{"$f":"T_DataComboFile[[#This Row],[2023/24 Baseline]]+T_DataComboFile[[#This Row],[2023/24 Reduction]]+T_DataComboFile[[#This Row],[2023/24 Increase]]","v":0}]
[null,null,"2021_22","ENE2020",36,1,3,null,70246,36,1,3,null,"070246","36|01|03",1,1,2,23,23,"01|01|02|23|23","National","Small Business Development","Administration","Corporate Services",null,"Current","Current payments","Goods and services","Inventory: Food and food supplies","Inventory: Food and food supplies",null,null,null,0,0,0,0,0,0,0,0,0,0,0,0,0,0,null,{"$f":"IF(T_DataComboFile[[#This Row],[G&S reporting level indicator]]=1,$AX$16,\"Not applicable\")","v":"Not applicable"},{"$f":"IF(AND($AX$16=\"Level 3\",T_DataComboFile[[#This Row],[Econ3]] = \"Goods and services\"),IF(T_DataComboFile[[#This Row],[Econ4]] = T_DataComboFile[[#This Row],[Econ3]],1,0),IF(AND($AX$16=\"Level 4\",T_DataComboFile[[#This Row],[Econ4]] = \"Goods and services\"),0,1))","v":0},{"$f":"T_DataComboFile[[#This Row],[2016/17_Source]]*T_DataComboFile[[#This Row],[G&S reporting level indicator]]","v":0},{"$f":"T_DataComboFile[[#This Row],[2017/18_Source]]*T_DataComboFile[[#This Row],[G&S reporting level indicator]]","v":0},{"$f":"T_DataComboFile[[#This Row],[2018/19_Source]]*T_DataComboFile[[#This Row],[G&S reporting level indicator]]","v":0},{"$f":"T_DataComboFile[[#This Row],[2019/20 Main appropriation_Source]]*T_DataComboFile[[#This Row],[G&S reporting level indicator]]","v":0},{"$f":"T_DataComboFile[[#This Row],[2019/20 Adjusted appropriation_Source]]*T_DataComboFile[[#This Row],[G&S reporting level indicator]]","v":0},{"$f":"T_DataComboFile[[#This Row],[2019/20 Revised estimate_Source]]*T_DataComboFile[[#This Row],[G&S reporting level indicator]]","v":0},{"$f":"T_DataComboFile[[#This Row],[2019/20 Preliminary outcome_Source]]*T_DataComboFile[[#This Row],[G&S reporting level indicator]]","v":0},{"$f":"T_DataComboFile[[#This Row],[2020/21 Original_Source]]*T_DataComboFile[[#This Row],[G&S reporting level indicator]]","v":0},{"$f":"T_DataComboFile[[#This Row],[2020/21 SAB_Source]]*T_DataComboFile[[#This Row],[G&S reporting level indicator]]","v":0},{"$f":"T_DataComboFile[[#This Row],[2020/21 Baseline_Source]]*T_DataComboFile[[#This Row],[G&S reporting level indicator]]","v":0},{"$f":"T_DataComboFile[[#This Row],[2021/22 Baseline_Source]]*T_DataComboFile[[#This Row],[G&S reporting level indicator]]","v":0},{"$f":"T_DataComboFile[[#This Row],[2022/23 Baseline_Source]]*T_DataComboFile[[#This Row],[G&S reporting level indicator]]","v":0},{"$f":"T_DataComboFile[[#This Row],[2023/24 Baseline_Source]]*T_DataComboFile[[#This Row],[G&S reporting level indicator]]","v":0},null,null,null,null,null,null,{"$f":"T_DataComboFile[[#This Row],[2021/22 Baseline]]+T_DataComboFile[[#This Row],[2021/22 Reduction]]+T_DataComboFile[[#This Row],[2021/22 Increase]]","v":0},{"$f":"T_DataComboFile[[#This Row],[2022/23 Baseline]]+T_DataComboFile[[#This Row],[2022/23 Reduction]]+T_DataComboFile[[#This Row],[2022/23 Increase]]","v":0},{"$f":"T_DataComboFile[[#This Row],[2023/24 Baseline]]+T_DataComboFile[[#This Row],[2023/24 Reduction]]+T_DataComboFile[[#This Row],[2023/24 Increase]]","v":0}]
[null,null,"2021_22","ENE2020",36,1,3,null,70247,36,1,3,null,"070247","36|01|03",1,1,2,24,24,"01|01|02|24|24","National","Small Business Development","Administration","Corporate Services",null,"Current","Current payments","Goods and services","Inventory: Fuel, oil and gas","Inventory: Fuel, oil and gas",null,null,null,0,0,0,0,0,0,0,0,0,0,0,0,0,0,null,{"$f":"IF(T_DataComboFile[[#This Row],[G&S reporting level indicator]]=1,$AX$16,\"Not applicable\")","v":"Not applicable"},{"$f":"IF(AND($AX$16=\"Level 3\",T_DataComboFile[[#This Row],[Econ3]] = \"Goods and services\"),IF(T_DataComboFile[[#This Row],[Econ4]] = T_DataComboFile[[#This Row],[Econ3]],1,0),IF(AND($AX$16=\"Level 4\",T_DataComboFile[[#This Row],[Econ4]] = \"Goods and services\"),0,1))","v":0},{"$f":"T_DataComboFile[[#This Row],[2016/17_Source]]*T_DataComboFile[[#This Row],[G&S reporting level indicator]]","v":0},{"$f":"T_DataComboFile[[#This Row],[2017/18_Source]]*T_DataComboFile[[#This Row],[G&S reporting level indicator]]","v":0},{"$f":"T_DataComboFile[[#This Row],[2018/19_Source]]*T_DataComboFile[[#This Row],[G&S reporting level indicator]]","v":0},{"$f":"T_DataComboFile[[#This Row],[2019/20 Main appropriation_Source]]*T_DataComboFile[[#This Row],[G&S reporting level indicator]]","v":0},{"$f":"T_DataComboFile[[#This Row],[2019/20 Adjusted appropriation_Source]]*T_DataComboFile[[#This Row],[G&S reporting level indicator]]","v":0},{"$f":"T_DataComboFile[[#This Row],[2019/20 Revised estimate_Source]]*T_DataComboFile[[#This Row],[G&S reporting level indicator]]","v":0},{"$f":"T_DataComboFile[[#This Row],[2019/20 Preliminary outcome_Source]]*T_DataComboFile[[#This Row],[G&S reporting level indicator]]","v":0},{"$f":"T_DataComboFile[[#This Row],[2020/21 Original_Source]]*T_DataComboFile[[#This Row],[G&S reporting level indicator]]","v":0},{"$f":"T_DataComboFile[[#This Row],[2020/21 SAB_Source]]*T_DataComboFile[[#This Row],[G&S reporting level indicator]]","v":0},{"$f":"T_DataComboFile[[#This Row],[2020/21 Baseline_Source]]*T_DataComboFile[[#This Row],[G&S reporting level indicator]]","v":0},{"$f":"T_DataComboFile[[#This Row],[2021/22 Baseline_Source]]*T_DataComboFile[[#This Row],[G&S reporting level indicator]]","v":0},{"$f":"T_DataComboFile[[#This Row],[2022/23 Baseline_Source]]*T_DataComboFile[[#This Row],[G&S reporting level indicator]]","v":0},{"$f":"T_DataComboFile[[#This Row],[2023/24 Baseline_Source]]*T_DataComboFile[[#This Row],[G&S reporting level indicator]]","v":0},null,null,null,null,null,null,{"$f":"T_DataComboFile[[#This Row],[2021/22 Baseline]]+T_DataComboFile[[#This Row],[2021/22 Reduction]]+T_DataComboFile[[#This Row],[2021/22 Increase]]","v":0},{"$f":"T_DataComboFile[[#This Row],[2022/23 Baseline]]+T_DataComboFile[[#This Row],[2022/23 Reduction]]+T_DataComboFile[[#This Row],[2022/23 Increase]]","v":0},{"$f":"T_DataComboFile[[#This Row],[2023/24 Baseline]]+T_DataComboFile[[#This Row],[2023/24 Reduction]]+T_DataComboFile[[#This Row],[2023/24 Increase]]","v":0}]
[null,null,"2021_22","ENE2020",36,1,3,null,70248,36,1,3,null,"070248","36|01|03",1,1,2,25,25,"01|01|02|25|25","National","Small Business Development","Administration","Corporate Services",null,"Current","Current payments","Goods and services","Inventory: Learner and teacher support material","Inventory: Learner and teacher support material",null,null,null,0,0,0,0,0,0,0,0,0,0,0,0,0,0,null,{"$f":"IF(T_DataComboFile[[#This Row],[G&S reporting level indicator]]=1,$AX$16,\"Not applicable\")","v":"Not applicable"},{"$f":"IF(AND($AX$16=\"Level 3\",T_DataComboFile[[#This Row],[Econ3]] = \"Goods and services\"),IF(T_DataComboFile[[#This Row],[Econ4]] = T_DataComboFile[[#This Row],[Econ3]],1,0),IF(AND($AX$16=\"Level 4\",T_DataComboFile[[#This Row],[Econ4]] = \"Goods and services\"),0,1))","v":0},{"$f":"T_DataComboFile[[#This Row],[2016/17_Source]]*T_DataComboFile[[#This Row],[G&S reporting level indicator]]","v":0},{"$f":"T_DataComboFile[[#This Row],[2017/18_Source]]*T_DataComboFile[[#This Row],[G&S reporting level indicator]]","v":0},{"$f":"T_DataComboFile[[#This Row],[2018/19_Source]]*T_DataComboFile[[#This Row],[G&S reporting level indicator]]","v":0},{"$f":"T_DataComboFile[[#This Row],[2019/20 Main appropriation_Source]]*T_DataComboFile[[#This Row],[G&S reporting level indicator]]","v":0},{"$f":"T_DataComboFile[[#This Row],[2019/20 Adjusted appropriation_Source]]*T_DataComboFile[[#This Row],[G&S reporting level indicator]]","v":0},{"$f":"T_DataComboFile[[#This Row],[2019/20 Revised estimate_Source]]*T_DataComboFile[[#This Row],[G&S reporting level indicator]]","v":0},{"$f":"T_DataComboFile[[#This Row],[2019/20 Preliminary outcome_Source]]*T_DataComboFile[[#This Row],[G&S reporting level indicator]]","v":0},{"$f":"T_DataComboFile[[#This Row],[2020/21 Original_Source]]*T_DataComboFile[[#This Row],[G&S reporting level indicator]]","v":0},{"$f":"T_DataComboFile[[#This Row],[2020/21 SAB_Source]]*T_DataComboFile[[#This Row],[G&S reporting level indicator]]","v":0},{"$f":"T_DataComboFile[[#This Row],[2020/21 Baseline_Source]]*T_DataComboFile[[#This Row],[G&S reporting level indicator]]","v":0},{"$f":"T_DataComboFile[[#This Row],[2021/22 Baseline_Source]]*T_DataComboFile[[#This Row],[G&S reporting level indicator]]","v":0},{"$f":"T_DataComboFile[[#This Row],[2022/23 Baseline_Source]]*T_DataComboFile[[#This Row],[G&S reporting level indicator]]","v":0},{"$f":"T_DataComboFile[[#This Row],[2023/24 Baseline_Source]]*T_DataComboFile[[#This Row],[G&S reporting level indicator]]","v":0},null,null,null,null,null,null,{"$f":"T_DataComboFile[[#This Row],[2021/22 Baseline]]+T_DataComboFile[[#This Row],[2021/22 Reduction]]+T_DataComboFile[[#This Row],[2021/22 Increase]]","v":0},{"$f":"T_DataComboFile[[#This Row],[2022/23 Baseline]]+T_DataComboFile[[#This Row],[2022/23 Reduction]]+T_DataComboFile[[#This Row],[2022/23 Increase]]","v":0},{"$f":"T_DataComboFile[[#This Row],[2023/24 Baseline]]+T_DataComboFile[[#This Row],[2023/24 Reduction]]+T_DataComboFile[[#This Row],[2023/24 Increase]]","v":0}]
[null,null,"2021_22","ENE2020",36,1,3,null,70249,36,1,3,null,"070249","36|01|03",1,1,2,26,26,"01|01|02|26|26","National","Small Business Development","Administration","Corporate Services",null,"Current","Current payments","Goods and services","Inventory: Materials and supplies","Inventory: Materials and supplies",null,null,null,0,0,0,0,0,0,0,0,0,0,0,0,0,0,null,{"$f":"IF(T_DataComboFile[[#This Row],[G&S reporting level indicator]]=1,$AX$16,\"Not applicable\")","v":"Not applicable"},{"$f":"IF(AND($AX$16=\"Level 3\",T_DataComboFile[[#This Row],[Econ3]] = \"Goods and services\"),IF(T_DataComboFile[[#This Row],[Econ4]] = T_DataComboFile[[#This Row],[Econ3]],1,0),IF(AND($AX$16=\"Level 4\",T_DataComboFile[[#This Row],[Econ4]] = \"Goods and services\"),0,1))","v":0},{"$f":"T_DataComboFile[[#This Row],[2016/17_Source]]*T_DataComboFile[[#This Row],[G&S reporting level indicator]]","v":0},{"$f":"T_DataComboFile[[#This Row],[2017/18_Source]]*T_DataComboFile[[#This Row],[G&S reporting level indicator]]","v":0},{"$f":"T_DataComboFile[[#This Row],[2018/19_Source]]*T_DataComboFile[[#This Row],[G&S reporting level indicator]]","v":0},{"$f":"T_DataComboFile[[#This Row],[2019/20 Main appropriation_Source]]*T_DataComboFile[[#This Row],[G&S reporting level indicator]]","v":0},{"$f":"T_DataComboFile[[#This Row],[2019/20 Adjusted appropriation_Source]]*T_DataComboFile[[#This Row],[G&S reporting level indicator]]","v":0},{"$f":"T_DataComboFile[[#This Row],[2019/20 Revised estimate_Source]]*T_DataComboFile[[#This Row],[G&S reporting level indicator]]","v":0},{"$f":"T_DataComboFile[[#This Row],[2019/20 Preliminary outcome_Source]]*T_DataComboFile[[#This Row],[G&S reporting level indicator]]","v":0},{"$f":"T_DataComboFile[[#This Row],[2020/21 Original_Source]]*T_DataComboFile[[#This Row],[G&S reporting level indicator]]","v":0},{"$f":"T_DataComboFile[[#This Row],[2020/21 SAB_Source]]*T_DataComboFile[[#This Row],[G&S reporting level indicator]]","v":0},{"$f":"T_DataComboFile[[#This Row],[2020/21 Baseline_Source]]*T_DataComboFile[[#This Row],[G&S reporting level indicator]]","v":0},{"$f":"T_DataComboFile[[#This Row],[2021/22 Baseline_Source]]*T_DataComboFile[[#This Row],[G&S reporting level indicator]]","v":0},{"$f":"T_DataComboFile[[#This Row],[2022/23 Baseline_Source]]*T_DataComboFile[[#This Row],[G&S reporting level indicator]]","v":0},{"$f":"T_DataComboFile[[#This Row],[2023/24 Baseline_Source]]*T_DataComboFile[[#This Row],[G&S reporting level indicator]]","v":0},null,null,null,null,null,null,{"$f":"T_DataComboFile[[#This Row],[2021/22 Baseline]]+T_DataComboFile[[#This Row],[2021/22 Reduction]]+T_DataComboFile[[#This Row],[2021/22 Increase]]","v":0},{"$f":"T_DataComboFile[[#This Row],[2022/23 Baseline]]+T_DataComboFile[[#This Row],[2022/23 Reduction]]+T_DataComboFile[[#This Row],[2022/23 Increase]]","v":0},{"$f":"T_DataComboFile[[#This Row],[2023/24 Baseline]]+T_DataComboFile[[#This Row],[2023/24 Reduction]]+T_DataComboFile[[#This Row],[2023/24 Increase]]","v":0}]
[null,null,"2021_22","ENE2020",36,1,3,null,70250,36,1,3,null,"070250","36|01|03",1,1,2,27,27,"01|01|02|27|27","National","Small Business Development","Administration","Corporate Services",null,"Current","Current payments","Goods and services","Inventory: Medical supplies","Inventory: Medical supplies",null,null,null,0,0,0,0,0,0,0,0,0,0,0,0,0,0,null,{"$f":"IF(T_DataComboFile[[#This Row],[G&S reporting level indicator]]=1,$AX$16,\"Not applicable\")","v":"Not applicable"},{"$f":"IF(AND($AX$16=\"Level 3\",T_DataComboFile[[#This Row],[Econ3]] = \"Goods and services\"),IF(T_DataComboFile[[#This Row],[Econ4]] = T_DataComboFile[[#This Row],[Econ3]],1,0),IF(AND($AX$16=\"Level 4\",T_DataComboFile[[#This Row],[Econ4]] = \"Goods and services\"),0,1))","v":0},{"$f":"T_DataComboFile[[#This Row],[2016/17_Source]]*T_DataComboFile[[#This Row],[G&S reporting level indicator]]","v":0},{"$f":"T_DataComboFile[[#This Row],[2017/18_Source]]*T_DataComboFile[[#This Row],[G&S reporting level indicator]]","v":0},{"$f":"T_DataComboFile[[#This Row],[2018/19_Source]]*T_DataComboFile[[#This Row],[G&S reporting level indicator]]","v":0},{"$f":"T_DataComboFile[[#This Row],[2019/20 Main appropriation_Source]]*T_DataComboFile[[#This Row],[G&S reporting level indicator]]","v":0},{"$f":"T_DataComboFile[[#This Row],[2019/20 Adjusted appropriation_Source]]*T_DataComboFile[[#This Row],[G&S reporting level indicator]]","v":0},{"$f":"T_DataComboFile[[#This Row],[2019/20 Revised estimate_Source]]*T_DataComboFile[[#This Row],[G&S reporting level indicator]]","v":0},{"$f":"T_DataComboFile[[#This Row],[2019/20 Preliminary outcome_Source]]*T_DataComboFile[[#This Row],[G&S reporting level indicator]]","v":0},{"$f":"T_DataComboFile[[#This Row],[2020/21 Original_Source]]*T_DataComboFile[[#This Row],[G&S reporting level indicator]]","v":0},{"$f":"T_DataComboFile[[#This Row],[2020/21 SAB_Source]]*T_DataComboFile[[#This Row],[G&S reporting level indicator]]","v":0},{"$f":"T_DataComboFile[[#This Row],[2020/21 Baseline_Source]]*T_DataComboFile[[#This Row],[G&S reporting level indicator]]","v":0},{"$f":"T_DataComboFile[[#This Row],[2021/22 Baseline_Source]]*T_DataComboFile[[#This Row],[G&S reporting level indicator]]","v":0},{"$f":"T_DataComboFile[[#This Row],[2022/23 Baseline_Source]]*T_DataComboFile[[#This Row],[G&S reporting level indicator]]","v":0},{"$f":"T_DataComboFile[[#This Row],[2023/24 Baseline_Source]]*T_DataComboFile[[#This Row],[G&S reporting level indicator]]","v":0},null,null,null,null,null,null,{"$f":"T_DataComboFile[[#This Row],[2021/22 Baseline]]+T_DataComboFile[[#This Row],[2021/22 Reduction]]+T_DataComboFile[[#This Row],[2021/22 Increase]]","v":0},{"$f":"T_DataComboFile[[#This Row],[2022/23 Baseline]]+T_DataComboFile[[#This Row],[2022/23 Reduction]]+T_DataComboFile[[#This Row],[2022/23 Increase]]","v":0},{"$f":"T_DataComboFile[[#This Row],[2023/24 Baseline]]+T_DataComboFile[[#This Row],[2023/24 Reduction]]+T_DataComboFile[[#This Row],[2023/24 Increase]]","v":0}]
[null,null,"2021_22","ENE2020",36,1,3,null,70251,36,1,3,null,"070251","36|01|03",1,1,2,28,28,"01|01|02|28|28","National","Small Business Development","Administration","Corporate Services",null,"Current","Current payments","Goods and services","Inventory: Medicine","Inventory: Medicine",null,null,null,0,0,0,0,0,0,0,0,0,0,0,0,0,0,null,{"$f":"IF(T_DataComboFile[[#This Row],[G&S reporting level indicator]]=1,$AX$16,\"Not applicable\")","v":"Not applicable"},{"$f":"IF(AND($AX$16=\"Level 3\",T_DataComboFile[[#This Row],[Econ3]] = \"Goods and services\"),IF(T_DataComboFile[[#This Row],[Econ4]] = T_DataComboFile[[#This Row],[Econ3]],1,0),IF(AND($AX$16=\"Level 4\",T_DataComboFile[[#This Row],[Econ4]] = \"Goods and services\"),0,1))","v":0},{"$f":"T_DataComboFile[[#This Row],[2016/17_Source]]*T_DataComboFile[[#This Row],[G&S reporting level indicator]]","v":0},{"$f":"T_DataComboFile[[#This Row],[2017/18_Source]]*T_DataComboFile[[#This Row],[G&S reporting level indicator]]","v":0},{"$f":"T_DataComboFile[[#This Row],[2018/19_Source]]*T_DataComboFile[[#This Row],[G&S reporting level indicator]]","v":0},{"$f":"T_DataComboFile[[#This Row],[2019/20 Main appropriation_Source]]*T_DataComboFile[[#This Row],[G&S reporting level indicator]]","v":0},{"$f":"T_DataComboFile[[#This Row],[2019/20 Adjusted appropriation_Source]]*T_DataComboFile[[#This Row],[G&S reporting level indicator]]","v":0},{"$f":"T_DataComboFile[[#This Row],[2019/20 Revised estimate_Source]]*T_DataComboFile[[#This Row],[G&S reporting level indicator]]","v":0},{"$f":"T_DataComboFile[[#This Row],[2019/20 Preliminary outcome_Source]]*T_DataComboFile[[#This Row],[G&S reporting level indicator]]","v":0},{"$f":"T_DataComboFile[[#This Row],[2020/21 Original_Source]]*T_DataComboFile[[#This Row],[G&S reporting level indicator]]","v":0},{"$f":"T_DataComboFile[[#This Row],[2020/21 SAB_Source]]*T_DataComboFile[[#This Row],[G&S reporting level indicator]]","v":0},{"$f":"T_DataComboFile[[#This Row],[2020/21 Baseline_Source]]*T_DataComboFile[[#This Row],[G&S reporting level indicator]]","v":0},{"$f":"T_DataComboFile[[#This Row],[2021/22 Baseline_Source]]*T_DataComboFile[[#This Row],[G&S reporting level indicator]]","v":0},{"$f":"T_DataComboFile[[#This Row],[2022/23 Baseline_Source]]*T_DataComboFile[[#This Row],[G&S reporting level indicator]]","v":0},{"$f":"T_DataComboFile[[#This Row],[2023/24 Baseline_Source]]*T_DataComboFile[[#This Row],[G&S reporting level indicator]]","v":0},null,null,null,null,null,null,{"$f":"T_DataComboFile[[#This Row],[2021/22 Baseline]]+T_DataComboFile[[#This Row],[2021/22 Reduction]]+T_DataComboFile[[#This Row],[2021/22 Increase]]","v":0},{"$f":"T_DataComboFile[[#This Row],[2022/23 Baseline]]+T_DataComboFile[[#This Row],[2022/23 Reduction]]+T_DataComboFile[[#This Row],[2022/23 Increase]]","v":0},{"$f":"T_DataComboFile[[#This Row],[2023/24 Baseline]]+T_DataComboFile[[#This Row],[2023/24 Reduction]]+T_DataComboFile[[#This Row],[2023/24 Increase]]","v":0}]
[null,null,"2021_22","ENE2020",36,1,3,null,70252,36,1,3,null,"070252","36|01|03",1,1,2,29,29,"01|01|02|29|29","National","Small Business Development","Administration","Corporate Services",null,"Current","Current payments","Goods and services","Medsas inventory interface","Medsas inventory interface",null,null,null,0,0,0,0,0,0,0,0,0,0,0,0,0,0,null,{"$f":"IF(T_DataComboFile[[#This Row],[G&S reporting level indicator]]=1,$AX$16,\"Not applicable\")","v":"Not applicable"},{"$f":"IF(AND($AX$16=\"Level 3\",T_DataComboFile[[#This Row],[Econ3]] = \"Goods and services\"),IF(T_DataComboFile[[#This Row],[Econ4]] = T_DataComboFile[[#This Row],[Econ3]],1,0),IF(AND($AX$16=\"Level 4\",T_DataComboFile[[#This Row],[Econ4]] = \"Goods and services\"),0,1))","v":0},{"$f":"T_DataComboFile[[#This Row],[2016/17_Source]]*T_DataComboFile[[#This Row],[G&S reporting level indicator]]","v":0},{"$f":"T_DataComboFile[[#This Row],[2017/18_Source]]*T_DataComboFile[[#This Row],[G&S reporting level indicator]]","v":0},{"$f":"T_DataComboFile[[#This Row],[2018/19_Source]]*T_DataComboFile[[#This Row],[G&S reporting level indicator]]","v":0},{"$f":"T_DataComboFile[[#This Row],[2019/20 Main appropriation_Source]]*T_DataComboFile[[#This Row],[G&S reporting level indicator]]","v":0},{"$f":"T_DataComboFile[[#This Row],[2019/20 Adjusted appropriation_Source]]*T_DataComboFile[[#This Row],[G&S reporting level indicator]]","v":0},{"$f":"T_DataComboFile[[#This Row],[2019/20 Revised estimate_Source]]*T_DataComboFile[[#This Row],[G&S reporting level indicator]]","v":0},{"$f":"T_DataComboFile[[#This Row],[2019/20 Preliminary outcome_Source]]*T_DataComboFile[[#This Row],[G&S reporting level indicator]]","v":0},{"$f":"T_DataComboFile[[#This Row],[2020/21 Original_Source]]*T_DataComboFile[[#This Row],[G&S reporting level indicator]]","v":0},{"$f":"T_DataComboFile[[#This Row],[2020/21 SAB_Source]]*T_DataComboFile[[#This Row],[G&S reporting level indicator]]","v":0},{"$f":"T_DataComboFile[[#This Row],[2020/21 Baseline_Source]]*T_DataComboFile[[#This Row],[G&S reporting level indicator]]","v":0},{"$f":"T_DataComboFile[[#This Row],[2021/22 Baseline_Source]]*T_DataComboFile[[#This Row],[G&S reporting level indicator]]","v":0},{"$f":"T_DataComboFile[[#This Row],[2022/23 Baseline_Source]]*T_DataComboFile[[#This Row],[G&S reporting level indicator]]","v":0},{"$f":"T_DataComboFile[[#This Row],[2023/24 Baseline_Source]]*T_DataComboFile[[#This Row],[G&S reporting level indicator]]","v":0},null,null,null,null,null,null,{"$f":"T_DataComboFile[[#This Row],[2021/22 Baseline]]+T_DataComboFile[[#This Row],[2021/22 Reduction]]+T_DataComboFile[[#This Row],[2021/22 Increase]]","v":0},{"$f":"T_DataComboFile[[#This Row],[2022/23 Baseline]]+T_DataComboFile[[#This Row],[2022/23 Reduction]]+T_DataComboFile[[#This Row],[2022/23 Increase]]","v":0},{"$f":"T_DataComboFile[[#This Row],[2023/24 Baseline]]+T_DataComboFile[[#This Row],[2023/24 Reduction]]+T_DataComboFile[[#This Row],[2023/24 Increase]]","v":0}]
[null,null,"2021_22","ENE2020",36,1,3,null,70253,36,1,3,null,"070253","36|01|03",1,1,2,30,30,"01|01|02|30|30","National","Small Business Development","Administration","Corporate Services",null,"Current","Current payments","Goods and services","Inventory: Other supplies","Inventory: Other supplies",null,null,null,0,0,0,0,0,0,0,0,0,0,0,0,0,0,null,{"$f":"IF(T_DataComboFile[[#This Row],[G&S reporting level indicator]]=1,$AX$16,\"Not applicable\")","v":"Not applicable"},{"$f":"IF(AND($AX$16=\"Level 3\",T_DataComboFile[[#This Row],[Econ3]] = \"Goods and services\"),IF(T_DataComboFile[[#This Row],[Econ4]] = T_DataComboFile[[#This Row],[Econ3]],1,0),IF(AND($AX$16=\"Level 4\",T_DataComboFile[[#This Row],[Econ4]] = \"Goods and services\"),0,1))","v":0},{"$f":"T_DataComboFile[[#This Row],[2016/17_Source]]*T_DataComboFile[[#This Row],[G&S reporting level indicator]]","v":0},{"$f":"T_DataComboFile[[#This Row],[2017/18_Source]]*T_DataComboFile[[#This Row],[G&S reporting level indicator]]","v":0},{"$f":"T_DataComboFile[[#This Row],[2018/19_Source]]*T_DataComboFile[[#This Row],[G&S reporting level indicator]]","v":0},{"$f":"T_DataComboFile[[#This Row],[2019/20 Main appropriation_Source]]*T_DataComboFile[[#This Row],[G&S reporting level indicator]]","v":0},{"$f":"T_DataComboFile[[#This Row],[2019/20 Adjusted appropriation_Source]]*T_DataComboFile[[#This Row],[G&S reporting level indicator]]","v":0},{"$f":"T_DataComboFile[[#This Row],[2019/20 Revised estimate_Source]]*T_DataComboFile[[#This Row],[G&S reporting level indicator]]","v":0},{"$f":"T_DataComboFile[[#This Row],[2019/20 Preliminary outcome_Source]]*T_DataComboFile[[#This Row],[G&S reporting level indicator]]","v":0},{"$f":"T_DataComboFile[[#This Row],[2020/21 Original_Source]]*T_DataComboFile[[#This Row],[G&S reporting level indicator]]","v":0},{"$f":"T_DataComboFile[[#This Row],[2020/21 SAB_Source]]*T_DataComboFile[[#This Row],[G&S reporting level indicator]]","v":0},{"$f":"T_DataComboFile[[#This Row],[2020/21 Baseline_Source]]*T_DataComboFile[[#This Row],[G&S reporting level indicator]]","v":0},{"$f":"T_DataComboFile[[#This Row],[2021/22 Baseline_Source]]*T_DataComboFile[[#This Row],[G&S reporting level indicator]]","v":0},{"$f":"T_DataComboFile[[#This Row],[2022/23 Baseline_Source]]*T_DataComboFile[[#This Row],[G&S reporting level indicator]]","v":0},{"$f":"T_DataComboFile[[#This Row],[2023/24 Baseline_Source]]*T_DataComboFile[[#This Row],[G&S reporting level indicator]]","v":0},null,null,null,null,null,null,{"$f":"T_DataComboFile[[#This Row],[2021/22 Baseline]]+T_DataComboFile[[#This Row],[2021/22 Reduction]]+T_DataComboFile[[#This Row],[2021/22 Increase]]","v":0},{"$f":"T_DataComboFile[[#This Row],[2022/23 Baseline]]+T_DataComboFile[[#This Row],[2022/23 Reduction]]+T_DataComboFile[[#This Row],[2022/23 Increase]]","v":0},{"$f":"T_DataComboFile[[#This Row],[2023/24 Baseline]]+T_DataComboFile[[#This Row],[2023/24 Reduction]]+T_DataComboFile[[#This Row],[2023/24 Increase]]","v":0}]
["NAT|Non-transfer item","36|Consumable supplies","2021_22","ENE2020",36,1,3,17230,70254,36,1,3,17230,"070254","36|01|03",1,1,2,31,31,"01|01|02|31|31","National","Small Business Development","Administration","Corporate Services","Non-transfer item","Current","Current payments","Goods and services","Consumable supplies","Consumable supplies","Economic development","Industrialisation and exports","NAT",106,229,120,230,326,326,326,30,30,30,32,34,35,1,null,{"$f":"IF(T_DataComboFile[[#This Row],[G&S reporting level indicator]]=1,$AX$16,\"Not applicable\")","v":"Not applicable"},{"$f":"IF(AND($AX$16=\"Level 3\",T_DataComboFile[[#This Row],[Econ3]] = \"Goods and services\"),IF(T_DataComboFile[[#This Row],[Econ4]] = T_DataComboFile[[#This Row],[Econ3]],1,0),IF(AND($AX$16=\"Level 4\",T_DataComboFile[[#This Row],[Econ4]] = \"Goods and services\"),0,1))","v":0},{"$f":"T_DataComboFile[[#This Row],[2016/17_Source]]*T_DataComboFile[[#This Row],[G&S reporting level indicator]]","v":0},{"$f":"T_DataComboFile[[#This Row],[2017/18_Source]]*T_DataComboFile[[#This Row],[G&S reporting level indicator]]","v":0},{"$f":"T_DataComboFile[[#This Row],[2018/19_Source]]*T_DataComboFile[[#This Row],[G&S reporting level indicator]]","v":0},{"$f":"T_DataComboFile[[#This Row],[2019/20 Main appropriation_Source]]*T_DataComboFile[[#This Row],[G&S reporting level indicator]]","v":0},{"$f":"T_DataComboFile[[#This Row],[2019/20 Adjusted appropriation_Source]]*T_DataComboFile[[#This Row],[G&S reporting level indicator]]","v":0},{"$f":"T_DataComboFile[[#This Row],[2019/20 Revised estimate_Source]]*T_DataComboFile[[#This Row],[G&S reporting level indicator]]","v":0},{"$f":"T_DataComboFile[[#This Row],[2019/20 Preliminary outcome_Source]]*T_DataComboFile[[#This Row],[G&S reporting level indicator]]","v":0},{"$f":"T_DataComboFile[[#This Row],[2020/21 Original_Source]]*T_DataComboFile[[#This Row],[G&S reporting level indicator]]","v":0},{"$f":"T_DataComboFile[[#This Row],[2020/21 SAB_Source]]*T_DataComboFile[[#This Row],[G&S reporting level indicator]]","v":0},{"$f":"T_DataComboFile[[#This Row],[2020/21 Baseline_Source]]*T_DataComboFile[[#This Row],[G&S reporting level indicator]]","v":0},{"$f":"T_DataComboFile[[#This Row],[2021/22 Baseline_Source]]*T_DataComboFile[[#This Row],[G&S reporting level indicator]]","v":0},{"$f":"T_DataComboFile[[#This Row],[2022/23 Baseline_Source]]*T_DataComboFile[[#This Row],[G&S reporting level indicator]]","v":0},{"$f":"T_DataComboFile[[#This Row],[2023/24 Baseline_Source]]*T_DataComboFile[[#This Row],[G&S reporting level indicator]]","v":0},null,null,null,null,null,null,{"$f":"T_DataComboFile[[#This Row],[2021/22 Baseline]]+T_DataComboFile[[#This Row],[2021/22 Reduction]]+T_DataComboFile[[#This Row],[2021/22 Increase]]","v":0},{"$f":"T_DataComboFile[[#This Row],[2022/23 Baseline]]+T_DataComboFile[[#This Row],[2022/23 Reduction]]+T_DataComboFile[[#This Row],[2022/23 Increase]]","v":0},{"$f":"T_DataComboFile[[#This Row],[2023/24 Baseline]]+T_DataComboFile[[#This Row],[2023/24 Reduction]]+T_DataComboFile[[#This Row],[2023/24 Increase]]","v":0}]
["NAT|Non-transfer item","36|Consumables: Stationery, printing and office supplies","2021_22","ENE2020",36,1,3,17231,70255,36,1,3,17231,"070255","36|01|03",1,1,2,32,32,"01|01|02|32|32","National","Small Business Development","Administration","Corporate Services","Non-transfer item","Current","Current payments","Goods and services","Consumables: Stationery, printing and office supplies","Consumables: Stationery, printing and office supplies","Economic development","Industrialisation and exports","NAT",830,285,148,210,192,192,192,59,59,59,63,69,72,1,null,{"$f":"IF(T_DataComboFile[[#This Row],[G&S reporting level indicator]]=1,$AX$16,\"Not applicable\")","v":"Not applicable"},{"$f":"IF(AND($AX$16=\"Level 3\",T_DataComboFile[[#This Row],[Econ3]] = \"Goods and services\"),IF(T_DataComboFile[[#This Row],[Econ4]] = T_DataComboFile[[#This Row],[Econ3]],1,0),IF(AND($AX$16=\"Level 4\",T_DataComboFile[[#This Row],[Econ4]] = \"Goods and services\"),0,1))","v":0},{"$f":"T_DataComboFile[[#This Row],[2016/17_Source]]*T_DataComboFile[[#This Row],[G&S reporting level indicator]]","v":0},{"$f":"T_DataComboFile[[#This Row],[2017/18_Source]]*T_DataComboFile[[#This Row],[G&S reporting level indicator]]","v":0},{"$f":"T_DataComboFile[[#This Row],[2018/19_Source]]*T_DataComboFile[[#This Row],[G&S reporting level indicator]]","v":0},{"$f":"T_DataComboFile[[#This Row],[2019/20 Main appropriation_Source]]*T_DataComboFile[[#This Row],[G&S reporting level indicator]]","v":0},{"$f":"T_DataComboFile[[#This Row],[2019/20 Adjusted appropriation_Source]]*T_DataComboFile[[#This Row],[G&S reporting level indicator]]","v":0},{"$f":"T_DataComboFile[[#This Row],[2019/20 Revised estimate_Source]]*T_DataComboFile[[#This Row],[G&S reporting level indicator]]","v":0},{"$f":"T_DataComboFile[[#This Row],[2019/20 Preliminary outcome_Source]]*T_DataComboFile[[#This Row],[G&S reporting level indicator]]","v":0},{"$f":"T_DataComboFile[[#This Row],[2020/21 Original_Source]]*T_DataComboFile[[#This Row],[G&S reporting level indicator]]","v":0},{"$f":"T_DataComboFile[[#This Row],[2020/21 SAB_Source]]*T_DataComboFile[[#This Row],[G&S reporting level indicator]]","v":0},{"$f":"T_DataComboFile[[#This Row],[2020/21 Baseline_Source]]*T_DataComboFile[[#This Row],[G&S reporting level indicator]]","v":0},{"$f":"T_DataComboFile[[#This Row],[2021/22 Baseline_Source]]*T_DataComboFile[[#This Row],[G&S reporting level indicator]]","v":0},{"$f":"T_DataComboFile[[#This Row],[2022/23 Baseline_Source]]*T_DataComboFile[[#This Row],[G&S reporting level indicator]]","v":0},{"$f":"T_DataComboFile[[#This Row],[2023/24 Baseline_Source]]*T_DataComboFile[[#This Row],[G&S reporting level indicator]]","v":0},null,null,null,null,null,null,{"$f":"T_DataComboFile[[#This Row],[2021/22 Baseline]]+T_DataComboFile[[#This Row],[2021/22 Reduction]]+T_DataComboFile[[#This Row],[2021/22 Increase]]","v":0},{"$f":"T_DataComboFile[[#This Row],[2022/23 Baseline]]+T_DataComboFile[[#This Row],[2022/23 Reduction]]+T_DataComboFile[[#This Row],[2022/23 Increase]]","v":0},{"$f":"T_DataComboFile[[#This Row],[2023/24 Baseline]]+T_DataComboFile[[#This Row],[2023/24 Reduction]]+T_DataComboFile[[#This Row],[2023/24 Increase]]","v":0}]
["NAT|Non-transfer item","36|Operating leases","2021_22","ENE2020",36,1,3,17232,70256,36,1,3,17232,"070256","36|01|03",1,1,2,33,33,"01|01|02|33|33","National","Small Business Development","Administration","Corporate Services","Non-transfer item","Current","Current payments","Goods and services","Operating leases","Operating leases","Economic development","Industrialisation and exports","NAT",13802,16947,18346,19863,19863,19863,19863,22188,22188,22188,24093,25070,26175,1,null,{"$f":"IF(T_DataComboFile[[#This Row],[G&S reporting level indicator]]=1,$AX$16,\"Not applicable\")","v":"Not applicable"},{"$f":"IF(AND($AX$16=\"Level 3\",T_DataComboFile[[#This Row],[Econ3]] = \"Goods and services\"),IF(T_DataComboFile[[#This Row],[Econ4]] = T_DataComboFile[[#This Row],[Econ3]],1,0),IF(AND($AX$16=\"Level 4\",T_DataComboFile[[#This Row],[Econ4]] = \"Goods and services\"),0,1))","v":0},{"$f":"T_DataComboFile[[#This Row],[2016/17_Source]]*T_DataComboFile[[#This Row],[G&S reporting level indicator]]","v":0},{"$f":"T_DataComboFile[[#This Row],[2017/18_Source]]*T_DataComboFile[[#This Row],[G&S reporting level indicator]]","v":0},{"$f":"T_DataComboFile[[#This Row],[2018/19_Source]]*T_DataComboFile[[#This Row],[G&S reporting level indicator]]","v":0},{"$f":"T_DataComboFile[[#This Row],[2019/20 Main appropriation_Source]]*T_DataComboFile[[#This Row],[G&S reporting level indicator]]","v":0},{"$f":"T_DataComboFile[[#This Row],[2019/20 Adjusted appropriation_Source]]*T_DataComboFile[[#This Row],[G&S reporting level indicator]]","v":0},{"$f":"T_DataComboFile[[#This Row],[2019/20 Revised estimate_Source]]*T_DataComboFile[[#This Row],[G&S reporting level indicator]]","v":0},{"$f":"T_DataComboFile[[#This Row],[2019/20 Preliminary outcome_Source]]*T_DataComboFile[[#This Row],[G&S reporting level indicator]]","v":0},{"$f":"T_DataComboFile[[#This Row],[2020/21 Original_Source]]*T_DataComboFile[[#This Row],[G&S reporting level indicator]]","v":0},{"$f":"T_DataComboFile[[#This Row],[2020/21 SAB_Source]]*T_DataComboFile[[#This Row],[G&S reporting level indicator]]","v":0},{"$f":"T_DataComboFile[[#This Row],[2020/21 Baseline_Source]]*T_DataComboFile[[#This Row],[G&S reporting level indicator]]","v":0},{"$f":"T_DataComboFile[[#This Row],[2021/22 Baseline_Source]]*T_DataComboFile[[#This Row],[G&S reporting level indicator]]","v":0},{"$f":"T_DataComboFile[[#This Row],[2022/23 Baseline_Source]]*T_DataComboFile[[#This Row],[G&S reporting level indicator]]","v":0},{"$f":"T_DataComboFile[[#This Row],[2023/24 Baseline_Source]]*T_DataComboFile[[#This Row],[G&S reporting level indicator]]","v":0},null,null,null,null,null,null,{"$f":"T_DataComboFile[[#This Row],[2021/22 Baseline]]+T_DataComboFile[[#This Row],[2021/22 Reduction]]+T_DataComboFile[[#This Row],[2021/22 Increase]]","v":0},{"$f":"T_DataComboFile[[#This Row],[2022/23 Baseline]]+T_DataComboFile[[#This Row],[2022/23 Reduction]]+T_DataComboFile[[#This Row],[2022/23 Increase]]","v":0},{"$f":"T_DataComboFile[[#This Row],[2023/24 Baseline]]+T_DataComboFile[[#This Row],[2023/24 Reduction]]+T_DataComboFile[[#This Row],[2023/24 Increase]]","v":0}]
["NAT|Non-transfer item","36|Rental and hiring","2021_22","ENE2020",36,1,3,17233,70257,36,1,3,17233,"070257","36|01|03",1,1,2,34,34,"01|01|02|34|34","National","Small Business Development","Administration","Corporate Services","Non-transfer item","Current","Current payments","Goods and services","Rental and hiring","Rental and hiring","Economic development","Industrialisation and exports","NAT",0,0,0,0,5,5,5,0,0,0,0,0,0,1,null,{"$f":"IF(T_DataComboFile[[#This Row],[G&S reporting level indicator]]=1,$AX$16,\"Not applicable\")","v":"Not applicable"},{"$f":"IF(AND($AX$16=\"Level 3\",T_DataComboFile[[#This Row],[Econ3]] = \"Goods and services\"),IF(T_DataComboFile[[#This Row],[Econ4]] = T_DataComboFile[[#This Row],[Econ3]],1,0),IF(AND($AX$16=\"Level 4\",T_DataComboFile[[#This Row],[Econ4]] = \"Goods and services\"),0,1))","v":0},{"$f":"T_DataComboFile[[#This Row],[2016/17_Source]]*T_DataComboFile[[#This Row],[G&S reporting level indicator]]","v":0},{"$f":"T_DataComboFile[[#This Row],[2017/18_Source]]*T_DataComboFile[[#This Row],[G&S reporting level indicator]]","v":0},{"$f":"T_DataComboFile[[#This Row],[2018/19_Source]]*T_DataComboFile[[#This Row],[G&S reporting level indicator]]","v":0},{"$f":"T_DataComboFile[[#This Row],[2019/20 Main appropriation_Source]]*T_DataComboFile[[#This Row],[G&S reporting level indicator]]","v":0},{"$f":"T_DataComboFile[[#This Row],[2019/20 Adjusted appropriation_Source]]*T_DataComboFile[[#This Row],[G&S reporting level indicator]]","v":0},{"$f":"T_DataComboFile[[#This Row],[2019/20 Revised estimate_Source]]*T_DataComboFile[[#This Row],[G&S reporting level indicator]]","v":0},{"$f":"T_DataComboFile[[#This Row],[2019/20 Preliminary outcome_Source]]*T_DataComboFile[[#This Row],[G&S reporting level indicator]]","v":0},{"$f":"T_DataComboFile[[#This Row],[2020/21 Original_Source]]*T_DataComboFile[[#This Row],[G&S reporting level indicator]]","v":0},{"$f":"T_DataComboFile[[#This Row],[2020/21 SAB_Source]]*T_DataComboFile[[#This Row],[G&S reporting level indicator]]","v":0},{"$f":"T_DataComboFile[[#This Row],[2020/21 Baseline_Source]]*T_DataComboFile[[#This Row],[G&S reporting level indicator]]","v":0},{"$f":"T_DataComboFile[[#This Row],[2021/22 Baseline_Source]]*T_DataComboFile[[#This Row],[G&S reporting level indicator]]","v":0},{"$f":"T_DataComboFile[[#This Row],[2022/23 Baseline_Source]]*T_DataComboFile[[#This Row],[G&S reporting level indicator]]","v":0},{"$f":"T_DataComboFile[[#This Row],[2023/24 Baseline_Source]]*T_DataComboFile[[#This Row],[G&S reporting level indicator]]","v":0},null,null,null,null,null,null,{"$f":"T_DataComboFile[[#This Row],[2021/22 Baseline]]+T_DataComboFile[[#This Row],[2021/22 Reduction]]+T_DataComboFile[[#This Row],[2021/22 Increase]]","v":0},{"$f":"T_DataComboFile[[#This Row],[2022/23 Baseline]]+T_DataComboFile[[#This Row],[2022/23 Reduction]]+T_DataComboFile[[#This Row],[2022/23 Increase]]","v":0},{"$f":"T_DataComboFile[[#This Row],[2023/24 Baseline]]+T_DataComboFile[[#This Row],[2023/24 Reduction]]+T_DataComboFile[[#This Row],[2023/24 Increase]]","v":0}]
["NAT|Non-transfer item","36|Property payments","2021_22","ENE2020",36,1,3,17234,70258,36,1,3,17234,"070258","36|01|03",1,1,2,35,35,"01|01|02|35|35","National","Small Business Development","Administration","Corporate Services","Non-transfer item","Current","Current payments","Goods and services","Property payments","Property payments","Economic development","Industrialisation and exports","NAT",0,0,3,0,1,1,1,0,0,0,0,0,0,1,null,{"$f":"IF(T_DataComboFile[[#This Row],[G&S reporting level indicator]]=1,$AX$16,\"Not applicable\")","v":"Not applicable"},{"$f":"IF(AND($AX$16=\"Level 3\",T_DataComboFile[[#This Row],[Econ3]] = \"Goods and services\"),IF(T_DataComboFile[[#This Row],[Econ4]] = T_DataComboFile[[#This Row],[Econ3]],1,0),IF(AND($AX$16=\"Level 4\",T_DataComboFile[[#This Row],[Econ4]] = \"Goods and services\"),0,1))","v":0},{"$f":"T_DataComboFile[[#This Row],[2016/17_Source]]*T_DataComboFile[[#This Row],[G&S reporting level indicator]]","v":0},{"$f":"T_DataComboFile[[#This Row],[2017/18_Source]]*T_DataComboFile[[#This Row],[G&S reporting level indicator]]","v":0},{"$f":"T_DataComboFile[[#This Row],[2018/19_Source]]*T_DataComboFile[[#This Row],[G&S reporting level indicator]]","v":0},{"$f":"T_DataComboFile[[#This Row],[2019/20 Main appropriation_Source]]*T_DataComboFile[[#This Row],[G&S reporting level indicator]]","v":0},{"$f":"T_DataComboFile[[#This Row],[2019/20 Adjusted appropriation_Source]]*T_DataComboFile[[#This Row],[G&S reporting level indicator]]","v":0},{"$f":"T_DataComboFile[[#This Row],[2019/20 Revised estimate_Source]]*T_DataComboFile[[#This Row],[G&S reporting level indicator]]","v":0},{"$f":"T_DataComboFile[[#This Row],[2019/20 Preliminary outcome_Source]]*T_DataComboFile[[#This Row],[G&S reporting level indicator]]","v":0},{"$f":"T_DataComboFile[[#This Row],[2020/21 Original_Source]]*T_DataComboFile[[#This Row],[G&S reporting level indicator]]","v":0},{"$f":"T_DataComboFile[[#This Row],[2020/21 SAB_Source]]*T_DataComboFile[[#This Row],[G&S reporting level indicator]]","v":0},{"$f":"T_DataComboFile[[#This Row],[2020/21 Baseline_Source]]*T_DataComboFile[[#This Row],[G&S reporting level indicator]]","v":0},{"$f":"T_DataComboFile[[#This Row],[2021/22 Baseline_Source]]*T_DataComboFile[[#This Row],[G&S reporting level indicator]]","v":0},{"$f":"T_DataComboFile[[#This Row],[2022/23 Baseline_Source]]*T_DataComboFile[[#This Row],[G&S reporting level indicator]]","v":0},{"$f":"T_DataComboFile[[#This Row],[2023/24 Baseline_Source]]*T_DataComboFile[[#This Row],[G&S reporting level indicator]]","v":0},null,null,null,null,null,null,{"$f":"T_DataComboFile[[#This Row],[2021/22 Baseline]]+T_DataComboFile[[#This Row],[2021/22 Reduction]]+T_DataComboFile[[#This Row],[2021/22 Increase]]","v":0},{"$f":"T_DataComboFile[[#This Row],[2022/23 Baseline]]+T_DataComboFile[[#This Row],[2022/23 Reduction]]+T_DataComboFile[[#This Row],[2022/23 Increase]]","v":0},{"$f":"T_DataComboFile[[#This Row],[2023/24 Baseline]]+T_DataComboFile[[#This Row],[2023/24 Reduction]]+T_DataComboFile[[#This Row],[2023/24 Increase]]","v":0}]
[null,null,"2021_22","ENE2020",36,1,3,null,70259,36,1,3,null,"070259","36|01|03",1,1,2,36,36,"01|01|02|36|36","National","Small Business Development","Administration","Corporate Services",null,"Current","Current payments","Goods and services","Transport provided: Departmental activity","Transport provided: Departmental activity",null,null,null,0,0,0,0,0,0,0,0,0,0,0,0,0,0,null,{"$f":"IF(T_DataComboFile[[#This Row],[G&S reporting level indicator]]=1,$AX$16,\"Not applicable\")","v":"Not applicable"},{"$f":"IF(AND($AX$16=\"Level 3\",T_DataComboFile[[#This Row],[Econ3]] = \"Goods and services\"),IF(T_DataComboFile[[#This Row],[Econ4]] = T_DataComboFile[[#This Row],[Econ3]],1,0),IF(AND($AX$16=\"Level 4\",T_DataComboFile[[#This Row],[Econ4]] = \"Goods and services\"),0,1))","v":0},{"$f":"T_DataComboFile[[#This Row],[2016/17_Source]]*T_DataComboFile[[#This Row],[G&S reporting level indicator]]","v":0},{"$f":"T_DataComboFile[[#This Row],[2017/18_Source]]*T_DataComboFile[[#This Row],[G&S reporting level indicator]]","v":0},{"$f":"T_DataComboFile[[#This Row],[2018/19_Source]]*T_DataComboFile[[#This Row],[G&S reporting level indicator]]","v":0},{"$f":"T_DataComboFile[[#This Row],[2019/20 Main appropriation_Source]]*T_DataComboFile[[#This Row],[G&S reporting level indicator]]","v":0},{"$f":"T_DataComboFile[[#This Row],[2019/20 Adjusted appropriation_Source]]*T_DataComboFile[[#This Row],[G&S reporting level indicator]]","v":0},{"$f":"T_DataComboFile[[#This Row],[2019/20 Revised estimate_Source]]*T_DataComboFile[[#This Row],[G&S reporting level indicator]]","v":0},{"$f":"T_DataComboFile[[#This Row],[2019/20 Preliminary outcome_Source]]*T_DataComboFile[[#This Row],[G&S reporting level indicator]]","v":0},{"$f":"T_DataComboFile[[#This Row],[2020/21 Original_Source]]*T_DataComboFile[[#This Row],[G&S reporting level indicator]]","v":0},{"$f":"T_DataComboFile[[#This Row],[2020/21 SAB_Source]]*T_DataComboFile[[#This Row],[G&S reporting level indicator]]","v":0},{"$f":"T_DataComboFile[[#This Row],[2020/21 Baseline_Source]]*T_DataComboFile[[#This Row],[G&S reporting level indicator]]","v":0},{"$f":"T_DataComboFile[[#This Row],[2021/22 Baseline_Source]]*T_DataComboFile[[#This Row],[G&S reporting level indicator]]","v":0},{"$f":"T_DataComboFile[[#This Row],[2022/23 Baseline_Source]]*T_DataComboFile[[#This Row],[G&S reporting level indicator]]","v":0},{"$f":"T_DataComboFile[[#This Row],[2023/24 Baseline_Source]]*T_DataComboFile[[#This Row],[G&S reporting level indicator]]","v":0},null,null,null,null,null,null,{"$f":"T_DataComboFile[[#This Row],[2021/22 Baseline]]+T_DataComboFile[[#This Row],[2021/22 Reduction]]+T_DataComboFile[[#This Row],[2021/22 Increase]]","v":0},{"$f":"T_DataComboFile[[#This Row],[2022/23 Baseline]]+T_DataComboFile[[#This Row],[2022/23 Reduction]]+T_DataComboFile[[#This Row],[2022/23 Increase]]","v":0},{"$f":"T_DataComboFile[[#This Row],[2023/24 Baseline]]+T_DataComboFile[[#This Row],[2023/24 Reduction]]+T_DataComboFile[[#This Row],[2023/24 Increase]]","v":0}]
["NAT|Non-transfer item","36|Travel and subsistence","2021_22","ENE2020",36,1,3,17235,70260,36,1,3,17235,"070260","36|01|03",1,1,2,37,37,"01|01|02|37|37","National","Small Business Development","Administration","Corporate Services","Non-transfer item","Current","Current payments","Goods and services","Travel and subsistence","Travel and subsistence","Economic development","Industrialisation and exports","NAT",669,766,688,870,982,982,982,518,218,518,555,589,615,1,null,{"$f":"IF(T_DataComboFile[[#This Row],[G&S reporting level indicator]]=1,$AX$16,\"Not applicable\")","v":"Not applicable"},{"$f":"IF(AND($AX$16=\"Level 3\",T_DataComboFile[[#This Row],[Econ3]] = \"Goods and services\"),IF(T_DataComboFile[[#This Row],[Econ4]] = T_DataComboFile[[#This Row],[Econ3]],1,0),IF(AND($AX$16=\"Level 4\",T_DataComboFile[[#This Row],[Econ4]] = \"Goods and services\"),0,1))","v":0},{"$f":"T_DataComboFile[[#This Row],[2016/17_Source]]*T_DataComboFile[[#This Row],[G&S reporting level indicator]]","v":0},{"$f":"T_DataComboFile[[#This Row],[2017/18_Source]]*T_DataComboFile[[#This Row],[G&S reporting level indicator]]","v":0},{"$f":"T_DataComboFile[[#This Row],[2018/19_Source]]*T_DataComboFile[[#This Row],[G&S reporting level indicator]]","v":0},{"$f":"T_DataComboFile[[#This Row],[2019/20 Main appropriation_Source]]*T_DataComboFile[[#This Row],[G&S reporting level indicator]]","v":0},{"$f":"T_DataComboFile[[#This Row],[2019/20 Adjusted appropriation_Source]]*T_DataComboFile[[#This Row],[G&S reporting level indicator]]","v":0},{"$f":"T_DataComboFile[[#This Row],[2019/20 Revised estimate_Source]]*T_DataComboFile[[#This Row],[G&S reporting level indicator]]","v":0},{"$f":"T_DataComboFile[[#This Row],[2019/20 Preliminary outcome_Source]]*T_DataComboFile[[#This Row],[G&S reporting level indicator]]","v":0},{"$f":"T_DataComboFile[[#This Row],[2020/21 Original_Source]]*T_DataComboFile[[#This Row],[G&S reporting level indicator]]","v":0},{"$f":"T_DataComboFile[[#This Row],[2020/21 SAB_Source]]*T_DataComboFile[[#This Row],[G&S reporting level indicator]]","v":0},{"$f":"T_DataComboFile[[#This Row],[2020/21 Baseline_Source]]*T_DataComboFile[[#This Row],[G&S reporting level indicator]]","v":0},{"$f":"T_DataComboFile[[#This Row],[2021/22 Baseline_Source]]*T_DataComboFile[[#This Row],[G&S reporting level indicator]]","v":0},{"$f":"T_DataComboFile[[#This Row],[2022/23 Baseline_Source]]*T_DataComboFile[[#This Row],[G&S reporting level indicator]]","v":0},{"$f":"T_DataComboFile[[#This Row],[2023/24 Baseline_Source]]*T_DataComboFile[[#This Row],[G&S reporting level indicator]]","v":0},null,null,null,null,null,null,{"$f":"T_DataComboFile[[#This Row],[2021/22 Baseline]]+T_DataComboFile[[#This Row],[2021/22 Reduction]]+T_DataComboFile[[#This Row],[2021/22 Increase]]","v":0},{"$f":"T_DataComboFile[[#This Row],[2022/23 Baseline]]+T_DataComboFile[[#This Row],[2022/23 Reduction]]+T_DataComboFile[[#This Row],[2022/23 Increase]]","v":0},{"$f":"T_DataComboFile[[#This Row],[2023/24 Baseline]]+T_DataComboFile[[#This Row],[2023/24 Reduction]]+T_DataComboFile[[#This Row],[2023/24 Increase]]","v":0}]
["NAT|Non-transfer item","36|Training and development","2021_22","ENE2020",36,1,3,17236,70261,36,1,3,17236,"070261","36|01|03",1,1,2,38,38,"01|01|02|38|38","National","Small Business Development","Administration","Corporate Services","Non-transfer item","Current","Current payments","Goods and services","Training and development","Training and development","Economic development","Industrialisation and exports","NAT",273,1519,576,1178,1178,1178,1178,1260,1260,1260,1323,1389,1450,1,null,{"$f":"IF(T_DataComboFile[[#This Row],[G&S reporting level indicator]]=1,$AX$16,\"Not applicable\")","v":"Not applicable"},{"$f":"IF(AND($AX$16=\"Level 3\",T_DataComboFile[[#This Row],[Econ3]] = \"Goods and services\"),IF(T_DataComboFile[[#This Row],[Econ4]] = T_DataComboFile[[#This Row],[Econ3]],1,0),IF(AND($AX$16=\"Level 4\",T_DataComboFile[[#This Row],[Econ4]] = \"Goods and services\"),0,1))","v":0},{"$f":"T_DataComboFile[[#This Row],[2016/17_Source]]*T_DataComboFile[[#This Row],[G&S reporting level indicator]]","v":0},{"$f":"T_DataComboFile[[#This Row],[2017/18_Source]]*T_DataComboFile[[#This Row],[G&S reporting level indicator]]","v":0},{"$f":"T_DataComboFile[[#This Row],[2018/19_Source]]*T_DataComboFile[[#This Row],[G&S reporting level indicator]]","v":0},{"$f":"T_DataComboFile[[#This Row],[2019/20 Main appropriation_Source]]*T_DataComboFile[[#This Row],[G&S reporting level indicator]]","v":0},{"$f":"T_DataComboFile[[#This Row],[2019/20 Adjusted appropriation_Source]]*T_DataComboFile[[#This Row],[G&S reporting level indicator]]","v":0},{"$f":"T_DataComboFile[[#This Row],[2019/20 Revised estimate_Source]]*T_DataComboFile[[#This Row],[G&S reporting level indicator]]","v":0},{"$f":"T_DataComboFile[[#This Row],[2019/20 Preliminary outcome_Source]]*T_DataComboFile[[#This Row],[G&S reporting level indicator]]","v":0},{"$f":"T_DataComboFile[[#This Row],[2020/21 Original_Source]]*T_DataComboFile[[#This Row],[G&S reporting level indicator]]","v":0},{"$f":"T_DataComboFile[[#This Row],[2020/21 SAB_Source]]*T_DataComboFile[[#This Row],[G&S reporting level indicator]]","v":0},{"$f":"T_DataComboFile[[#This Row],[2020/21 Baseline_Source]]*T_DataComboFile[[#This Row],[G&S reporting level indicator]]","v":0},{"$f":"T_DataComboFile[[#This Row],[2021/22 Baseline_Source]]*T_DataComboFile[[#This Row],[G&S reporting level indicator]]","v":0},{"$f":"T_DataComboFile[[#This Row],[2022/23 Baseline_Source]]*T_DataComboFile[[#This Row],[G&S reporting level indicator]]","v":0},{"$f":"T_DataComboFile[[#This Row],[2023/24 Baseline_Source]]*T_DataComboFile[[#This Row],[G&S reporting level indicator]]","v":0},null,null,null,null,null,null,{"$f":"T_DataComboFile[[#This Row],[2021/22 Baseline]]+T_DataComboFile[[#This Row],[2021/22 Reduction]]+T_DataComboFile[[#This Row],[2021/22 Increase]]","v":0},{"$f":"T_DataComboFile[[#This Row],[2022/23 Baseline]]+T_DataComboFile[[#This Row],[2022/23 Reduction]]+T_DataComboFile[[#This Row],[2022/23 Increase]]","v":0},{"$f":"T_DataComboFile[[#This Row],[2023/24 Baseline]]+T_DataComboFile[[#This Row],[2023/24 Reduction]]+T_DataComboFile[[#This Row],[2023/24 Increase]]","v":0}]
["NAT|Non-transfer item","36|Operating payments","2021_22","ENE2020",36,1,3,17237,70262,36,1,3,17237,"070262","36|01|03",1,1,2,39,39,"01|01|02|39|39","National","Small Business Development","Administration","Corporate Services","Non-transfer item","Current","Current payments","Goods and services","Operating payments","Operating payments","Economic development","Industrialisation and exports","NAT",146,338,477,390,503,503,503,544,544,544,572,601,627,1,null,{"$f":"IF(T_DataComboFile[[#This Row],[G&S reporting level indicator]]=1,$AX$16,\"Not applicable\")","v":"Not applicable"},{"$f":"IF(AND($AX$16=\"Level 3\",T_DataComboFile[[#This Row],[Econ3]] = \"Goods and services\"),IF(T_DataComboFile[[#This Row],[Econ4]] = T_DataComboFile[[#This Row],[Econ3]],1,0),IF(AND($AX$16=\"Level 4\",T_DataComboFile[[#This Row],[Econ4]] = \"Goods and services\"),0,1))","v":0},{"$f":"T_DataComboFile[[#This Row],[2016/17_Source]]*T_DataComboFile[[#This Row],[G&S reporting level indicator]]","v":0},{"$f":"T_DataComboFile[[#This Row],[2017/18_Source]]*T_DataComboFile[[#This Row],[G&S reporting level indicator]]","v":0},{"$f":"T_DataComboFile[[#This Row],[2018/19_Source]]*T_DataComboFile[[#This Row],[G&S reporting level indicator]]","v":0},{"$f":"T_DataComboFile[[#This Row],[2019/20 Main appropriation_Source]]*T_DataComboFile[[#This Row],[G&S reporting level indicator]]","v":0},{"$f":"T_DataComboFile[[#This Row],[2019/20 Adjusted appropriation_Source]]*T_DataComboFile[[#This Row],[G&S reporting level indicator]]","v":0},{"$f":"T_DataComboFile[[#This Row],[2019/20 Revised estimate_Source]]*T_DataComboFile[[#This Row],[G&S reporting level indicator]]","v":0},{"$f":"T_DataComboFile[[#This Row],[2019/20 Preliminary outcome_Source]]*T_DataComboFile[[#This Row],[G&S reporting level indicator]]","v":0},{"$f":"T_DataComboFile[[#This Row],[2020/21 Original_Source]]*T_DataComboFile[[#This Row],[G&S reporting level indicator]]","v":0},{"$f":"T_DataComboFile[[#This Row],[2020/21 SAB_Source]]*T_DataComboFile[[#This Row],[G&S reporting level indicator]]","v":0},{"$f":"T_DataComboFile[[#This Row],[2020/21 Baseline_Source]]*T_DataComboFile[[#This Row],[G&S reporting level indicator]]","v":0},{"$f":"T_DataComboFile[[#This Row],[2021/22 Baseline_Source]]*T_DataComboFile[[#This Row],[G&S reporting level indicator]]","v":0},{"$f":"T_DataComboFile[[#This Row],[2022/23 Baseline_Source]]*T_DataComboFile[[#This Row],[G&S reporting level indicator]]","v":0},{"$f":"T_DataComboFile[[#This Row],[2023/24 Baseline_Source]]*T_DataComboFile[[#This Row],[G&S reporting level indicator]]","v":0},null,null,null,null,null,null,{"$f":"T_DataComboFile[[#This Row],[2021/22 Baseline]]+T_DataComboFile[[#This Row],[2021/22 Reduction]]+T_DataComboFile[[#This Row],[2021/22 Increase]]","v":0},{"$f":"T_DataComboFile[[#This Row],[2022/23 Baseline]]+T_DataComboFile[[#This Row],[2022/23 Reduction]]+T_DataComboFile[[#This Row],[2022/23 Increase]]","v":0},{"$f":"T_DataComboFile[[#This Row],[2023/24 Baseline]]+T_DataComboFile[[#This Row],[2023/24 Reduction]]+T_DataComboFile[[#This Row],[2023/24 Increase]]","v":0}]
["NAT|Non-transfer item","36|Venues and facilities","2021_22","ENE2020",36,1,3,17238,70263,36,1,3,17238,"070263","36|01|03",1,1,2,40,40,"01|01|02|40|40","National","Small Business Development","Administration","Corporate Services","Non-transfer item","Current","Current payments","Goods and services","Venues and facilities","Venues and facilities","Economic development","Industrialisation and exports","NAT",0,0,2,0,70,70,70,0,0,0,0,0,0,1,null,{"$f":"IF(T_DataComboFile[[#This Row],[G&S reporting level indicator]]=1,$AX$16,\"Not applicable\")","v":"Not applicable"},{"$f":"IF(AND($AX$16=\"Level 3\",T_DataComboFile[[#This Row],[Econ3]] = \"Goods and services\"),IF(T_DataComboFile[[#This Row],[Econ4]] = T_DataComboFile[[#This Row],[Econ3]],1,0),IF(AND($AX$16=\"Level 4\",T_DataComboFile[[#This Row],[Econ4]] = \"Goods and services\"),0,1))","v":0},{"$f":"T_DataComboFile[[#This Row],[2016/17_Source]]*T_DataComboFile[[#This Row],[G&S reporting level indicator]]","v":0},{"$f":"T_DataComboFile[[#This Row],[2017/18_Source]]*T_DataComboFile[[#This Row],[G&S reporting level indicator]]","v":0},{"$f":"T_DataComboFile[[#This Row],[2018/19_Source]]*T_DataComboFile[[#This Row],[G&S reporting level indicator]]","v":0},{"$f":"T_DataComboFile[[#This Row],[2019/20 Main appropriation_Source]]*T_DataComboFile[[#This Row],[G&S reporting level indicator]]","v":0},{"$f":"T_DataComboFile[[#This Row],[2019/20 Adjusted appropriation_Source]]*T_DataComboFile[[#This Row],[G&S reporting level indicator]]","v":0},{"$f":"T_DataComboFile[[#This Row],[2019/20 Revised estimate_Source]]*T_DataComboFile[[#This Row],[G&S reporting level indicator]]","v":0},{"$f":"T_DataComboFile[[#This Row],[2019/20 Preliminary outcome_Source]]*T_DataComboFile[[#This Row],[G&S reporting level indicator]]","v":0},{"$f":"T_DataComboFile[[#This Row],[2020/21 Original_Source]]*T_DataComboFile[[#This Row],[G&S reporting level indicator]]","v":0},{"$f":"T_DataComboFile[[#This Row],[2020/21 SAB_Source]]*T_DataComboFile[[#This Row],[G&S reporting level indicator]]","v":0},{"$f":"T_DataComboFile[[#This Row],[2020/21 Baseline_Source]]*T_DataComboFile[[#This Row],[G&S reporting level indicator]]","v":0},{"$f":"T_DataComboFile[[#This Row],[2021/22 Baseline_Source]]*T_DataComboFile[[#This Row],[G&S reporting level indicator]]","v":0},{"$f":"T_DataComboFile[[#This Row],[2022/23 Baseline_Source]]*T_DataComboFile[[#This Row],[G&S reporting level indicator]]","v":0},{"$f":"T_DataComboFile[[#This Row],[2023/24 Baseline_Source]]*T_DataComboFile[[#This Row],[G&S reporting level indicator]]","v":0},null,null,null,null,null,null,{"$f":"T_DataComboFile[[#This Row],[2021/22 Baseline]]+T_DataComboFile[[#This Row],[2021/22 Reduction]]+T_DataComboFile[[#This Row],[2021/22 Increase]]","v":0},{"$f":"T_DataComboFile[[#This Row],[2022/23 Baseline]]+T_DataComboFile[[#This Row],[2022/23 Reduction]]+T_DataComboFile[[#This Row],[2022/23 Increase]]","v":0},{"$f":"T_DataComboFile[[#This Row],[2023/24 Baseline]]+T_DataComboFile[[#This Row],[2023/24 Reduction]]+T_DataComboFile[[#This Row],[2023/24 Increase]]","v":0}]
[null,null,"2021_22","ENE2020",36,1,3,null,70264,36,1,3,null,"070264","36|01|03",1,1,3,41,41,"01|01|03|41|41","National","Small Business Development","Administration","Corporate Services",null,"Current","Current payments","Interest and rent on land","Interest (Incl. interest on unitary payments (PPP))","Interest (Incl. interest on unitary payments (PPP))",null,null,null,0,0,0,0,0,0,0,0,0,0,0,0,0,0,null,{"$f":"IF(T_DataComboFile[[#This Row],[G&S reporting level indicator]]=1,$AX$16,\"Not applicable\")","v":"Level 3"},{"$f":"IF(AND($AX$16=\"Level 3\",T_DataComboFile[[#This Row],[Econ3]] = \"Goods and services\"),IF(T_DataComboFile[[#This Row],[Econ4]] = T_DataComboFile[[#This Row],[Econ3]],1,0),IF(AND($AX$16=\"Level 4\",T_DataComboFile[[#This Row],[Econ4]] = \"Goods and services\"),0,1))","v":1},{"$f":"T_DataComboFile[[#This Row],[2016/17_Source]]*T_DataComboFile[[#This Row],[G&S reporting level indicator]]","v":0},{"$f":"T_DataComboFile[[#This Row],[2017/18_Source]]*T_DataComboFile[[#This Row],[G&S reporting level indicator]]","v":0},{"$f":"T_DataComboFile[[#This Row],[2018/19_Source]]*T_DataComboFile[[#This Row],[G&S reporting level indicator]]","v":0},{"$f":"T_DataComboFile[[#This Row],[2019/20 Main appropriation_Source]]*T_DataComboFile[[#This Row],[G&S reporting level indicator]]","v":0},{"$f":"T_DataComboFile[[#This Row],[2019/20 Adjusted appropriation_Source]]*T_DataComboFile[[#This Row],[G&S reporting level indicator]]","v":0},{"$f":"T_DataComboFile[[#This Row],[2019/20 Revised estimate_Source]]*T_DataComboFile[[#This Row],[G&S reporting level indicator]]","v":0},{"$f":"T_DataComboFile[[#This Row],[2019/20 Preliminary outcome_Source]]*T_DataComboFile[[#This Row],[G&S reporting level indicator]]","v":0},{"$f":"T_DataComboFile[[#This Row],[2020/21 Original_Source]]*T_DataComboFile[[#This Row],[G&S reporting level indicator]]","v":0},{"$f":"T_DataComboFile[[#This Row],[2020/21 SAB_Source]]*T_DataComboFile[[#This Row],[G&S reporting level indicator]]","v":0},{"$f":"T_DataComboFile[[#This Row],[2020/21 Baseline_Source]]*T_DataComboFile[[#This Row],[G&S reporting level indicator]]","v":0},{"$f":"T_DataComboFile[[#This Row],[2021/22 Baseline_Source]]*T_DataComboFile[[#This Row],[G&S reporting level indicator]]","v":0},{"$f":"T_DataComboFile[[#This Row],[2022/23 Baseline_Source]]*T_DataComboFile[[#This Row],[G&S reporting level indicator]]","v":0},{"$f":"T_DataComboFile[[#This Row],[2023/24 Baseline_Source]]*T_DataComboFile[[#This Row],[G&S reporting level indicator]]","v":0},null,null,null,null,null,null,{"$f":"T_DataComboFile[[#This Row],[2021/22 Baseline]]+T_DataComboFile[[#This Row],[2021/22 Reduction]]+T_DataComboFile[[#This Row],[2021/22 Increase]]","v":0},{"$f":"T_DataComboFile[[#This Row],[2022/23 Baseline]]+T_DataComboFile[[#This Row],[2022/23 Reduction]]+T_DataComboFile[[#This Row],[2022/23 Increase]]","v":0},{"$f":"T_DataComboFile[[#This Row],[2023/24 Baseline]]+T_DataComboFile[[#This Row],[2023/24 Reduction]]+T_DataComboFile[[#This Row],[2023/24 Increase]]","v":0}]
[null,null,"2021_22","ENE2020",36,1,3,null,70265,36,1,3,null,"070265","36|01|03",1,1,3,42,42,"01|01|03|42|42","National","Small Business Development","Administration","Corporate Services",null,"Current","Current payments","Interest and rent on land","Rent on land","Rent on land",null,null,null,0,0,0,0,0,0,0,0,0,0,0,0,0,0,null,{"$f":"IF(T_DataComboFile[[#This Row],[G&S reporting level indicator]]=1,$AX$16,\"Not applicable\")","v":"Level 3"},{"$f":"IF(AND($AX$16=\"Level 3\",T_DataComboFile[[#This Row],[Econ3]] = \"Goods and services\"),IF(T_DataComboFile[[#This Row],[Econ4]] = T_DataComboFile[[#This Row],[Econ3]],1,0),IF(AND($AX$16=\"Level 4\",T_DataComboFile[[#This Row],[Econ4]] = \"Goods and services\"),0,1))","v":1},{"$f":"T_DataComboFile[[#This Row],[2016/17_Source]]*T_DataComboFile[[#This Row],[G&S reporting level indicator]]","v":0},{"$f":"T_DataComboFile[[#This Row],[2017/18_Source]]*T_DataComboFile[[#This Row],[G&S reporting level indicator]]","v":0},{"$f":"T_DataComboFile[[#This Row],[2018/19_Source]]*T_DataComboFile[[#This Row],[G&S reporting level indicator]]","v":0},{"$f":"T_DataComboFile[[#This Row],[2019/20 Main appropriation_Source]]*T_DataComboFile[[#This Row],[G&S reporting level indicator]]","v":0},{"$f":"T_DataComboFile[[#This Row],[2019/20 Adjusted appropriation_Source]]*T_DataComboFile[[#This Row],[G&S reporting level indicator]]","v":0},{"$f":"T_DataComboFile[[#This Row],[2019/20 Revised estimate_Source]]*T_DataComboFile[[#This Row],[G&S reporting level indicator]]","v":0},{"$f":"T_DataComboFile[[#This Row],[2019/20 Preliminary outcome_Source]]*T_DataComboFile[[#This Row],[G&S reporting level indicator]]","v":0},{"$f":"T_DataComboFile[[#This Row],[2020/21 Original_Source]]*T_DataComboFile[[#This Row],[G&S reporting level indicator]]","v":0},{"$f":"T_DataComboFile[[#This Row],[2020/21 SAB_Source]]*T_DataComboFile[[#This Row],[G&S reporting level indicator]]","v":0},{"$f":"T_DataComboFile[[#This Row],[2020/21 Baseline_Source]]*T_DataComboFile[[#This Row],[G&S reporting level indicator]]","v":0},{"$f":"T_DataComboFile[[#This Row],[2021/22 Baseline_Source]]*T_DataComboFile[[#This Row],[G&S reporting level indicator]]","v":0},{"$f":"T_DataComboFile[[#This Row],[2022/23 Baseline_Source]]*T_DataComboFile[[#This Row],[G&S reporting level indicator]]","v":0},{"$f":"T_DataComboFile[[#This Row],[2023/24 Baseline_Source]]*T_DataComboFile[[#This Row],[G&S reporting level indicator]]","v":0},null,null,null,null,null,null,{"$f":"T_DataComboFile[[#This Row],[2021/22 Baseline]]+T_DataComboFile[[#This Row],[2021/22 Reduction]]+T_DataComboFile[[#This Row],[2021/22 Increase]]","v":0},{"$f":"T_DataComboFile[[#This Row],[2022/23 Baseline]]+T_DataComboFile[[#This Row],[2022/23 Reduction]]+T_DataComboFile[[#This Row],[2022/23 Increase]]","v":0},{"$f":"T_DataComboFile[[#This Row],[2023/24 Baseline]]+T_DataComboFile[[#This Row],[2023/24 Reduction]]+T_DataComboFile[[#This Row],[2023/24 Increase]]","v":0}]
[null,null,"2021_22","ENE2020",36,1,3,null,70266,36,1,3,null,"070266","36|01|03",1,2,4,43,43,"01|02|04|43|43","National","Small Business Development","Administration","Corporate Services",null,"Current","Transfers and subsidies","Provinces and municipalities","Provinces","Provincial Revenue Funds",null,null,null,0,0,0,0,0,0,0,0,0,0,0,0,0,0,null,{"$f":"IF(T_DataComboFile[[#This Row],[G&S reporting level indicator]]=1,$AX$16,\"Not applicable\")","v":"Level 3"},{"$f":"IF(AND($AX$16=\"Level 3\",T_DataComboFile[[#This Row],[Econ3]] = \"Goods and services\"),IF(T_DataComboFile[[#This Row],[Econ4]] = T_DataComboFile[[#This Row],[Econ3]],1,0),IF(AND($AX$16=\"Level 4\",T_DataComboFile[[#This Row],[Econ4]] = \"Goods and services\"),0,1))","v":1},{"$f":"T_DataComboFile[[#This Row],[2016/17_Source]]*T_DataComboFile[[#This Row],[G&S reporting level indicator]]","v":0},{"$f":"T_DataComboFile[[#This Row],[2017/18_Source]]*T_DataComboFile[[#This Row],[G&S reporting level indicator]]","v":0},{"$f":"T_DataComboFile[[#This Row],[2018/19_Source]]*T_DataComboFile[[#This Row],[G&S reporting level indicator]]","v":0},{"$f":"T_DataComboFile[[#This Row],[2019/20 Main appropriation_Source]]*T_DataComboFile[[#This Row],[G&S reporting level indicator]]","v":0},{"$f":"T_DataComboFile[[#This Row],[2019/20 Adjusted appropriation_Source]]*T_DataComboFile[[#This Row],[G&S reporting level indicator]]","v":0},{"$f":"T_DataComboFile[[#This Row],[2019/20 Revised estimate_Source]]*T_DataComboFile[[#This Row],[G&S reporting level indicator]]","v":0},{"$f":"T_DataComboFile[[#This Row],[2019/20 Preliminary outcome_Source]]*T_DataComboFile[[#This Row],[G&S reporting level indicator]]","v":0},{"$f":"T_DataComboFile[[#This Row],[2020/21 Original_Source]]*T_DataComboFile[[#This Row],[G&S reporting level indicator]]","v":0},{"$f":"T_DataComboFile[[#This Row],[2020/21 SAB_Source]]*T_DataComboFile[[#This Row],[G&S reporting level indicator]]","v":0},{"$f":"T_DataComboFile[[#This Row],[2020/21 Baseline_Source]]*T_DataComboFile[[#This Row],[G&S reporting level indicator]]","v":0},{"$f":"T_DataComboFile[[#This Row],[2021/22 Baseline_Source]]*T_DataComboFile[[#This Row],[G&S reporting level indicator]]","v":0},{"$f":"T_DataComboFile[[#This Row],[2022/23 Baseline_Source]]*T_DataComboFile[[#This Row],[G&S reporting level indicator]]","v":0},{"$f":"T_DataComboFile[[#This Row],[2023/24 Baseline_Source]]*T_DataComboFile[[#This Row],[G&S reporting level indicator]]","v":0},null,null,null,null,null,null,{"$f":"T_DataComboFile[[#This Row],[2021/22 Baseline]]+T_DataComboFile[[#This Row],[2021/22 Reduction]]+T_DataComboFile[[#This Row],[2021/22 Increase]]","v":0},{"$f":"T_DataComboFile[[#This Row],[2022/23 Baseline]]+T_DataComboFile[[#This Row],[2022/23 Reduction]]+T_DataComboFile[[#This Row],[2022/23 Increase]]","v":0},{"$f":"T_DataComboFile[[#This Row],[2023/24 Baseline]]+T_DataComboFile[[#This Row],[2023/24 Reduction]]+T_DataComboFile[[#This Row],[2023/24 Increase]]","v":0}]
[null,null,"2021_22","ENE2020",36,1,3,null,70267,36,1,3,null,"070267","36|01|03",1,2,4,43,44,"01|02|04|43|44","National","Small Business Development","Administration","Corporate Services",null,"Current","Transfers and subsidies","Provinces and municipalities","Provinces","Provincial agencies and funds",null,null,null,0,0,0,0,0,0,0,0,0,0,0,0,0,0,null,{"$f":"IF(T_DataComboFile[[#This Row],[G&S reporting level indicator]]=1,$AX$16,\"Not applicable\")","v":"Level 3"},{"$f":"IF(AND($AX$16=\"Level 3\",T_DataComboFile[[#This Row],[Econ3]] = \"Goods and services\"),IF(T_DataComboFile[[#This Row],[Econ4]] = T_DataComboFile[[#This Row],[Econ3]],1,0),IF(AND($AX$16=\"Level 4\",T_DataComboFile[[#This Row],[Econ4]] = \"Goods and services\"),0,1))","v":1},{"$f":"T_DataComboFile[[#This Row],[2016/17_Source]]*T_DataComboFile[[#This Row],[G&S reporting level indicator]]","v":0},{"$f":"T_DataComboFile[[#This Row],[2017/18_Source]]*T_DataComboFile[[#This Row],[G&S reporting level indicator]]","v":0},{"$f":"T_DataComboFile[[#This Row],[2018/19_Source]]*T_DataComboFile[[#This Row],[G&S reporting level indicator]]","v":0},{"$f":"T_DataComboFile[[#This Row],[2019/20 Main appropriation_Source]]*T_DataComboFile[[#This Row],[G&S reporting level indicator]]","v":0},{"$f":"T_DataComboFile[[#This Row],[2019/20 Adjusted appropriation_Source]]*T_DataComboFile[[#This Row],[G&S reporting level indicator]]","v":0},{"$f":"T_DataComboFile[[#This Row],[2019/20 Revised estimate_Source]]*T_DataComboFile[[#This Row],[G&S reporting level indicator]]","v":0},{"$f":"T_DataComboFile[[#This Row],[2019/20 Preliminary outcome_Source]]*T_DataComboFile[[#This Row],[G&S reporting level indicator]]","v":0},{"$f":"T_DataComboFile[[#This Row],[2020/21 Original_Source]]*T_DataComboFile[[#This Row],[G&S reporting level indicator]]","v":0},{"$f":"T_DataComboFile[[#This Row],[2020/21 SAB_Source]]*T_DataComboFile[[#This Row],[G&S reporting level indicator]]","v":0},{"$f":"T_DataComboFile[[#This Row],[2020/21 Baseline_Source]]*T_DataComboFile[[#This Row],[G&S reporting level indicator]]","v":0},{"$f":"T_DataComboFile[[#This Row],[2021/22 Baseline_Source]]*T_DataComboFile[[#This Row],[G&S reporting level indicator]]","v":0},{"$f":"T_DataComboFile[[#This Row],[2022/23 Baseline_Source]]*T_DataComboFile[[#This Row],[G&S reporting level indicator]]","v":0},{"$f":"T_DataComboFile[[#This Row],[2023/24 Baseline_Source]]*T_DataComboFile[[#This Row],[G&S reporting level indicator]]","v":0},null,null,null,null,null,null,{"$f":"T_DataComboFile[[#This Row],[2021/22 Baseline]]+T_DataComboFile[[#This Row],[2021/22 Reduction]]+T_DataComboFile[[#This Row],[2021/22 Increase]]","v":0},{"$f":"T_DataComboFile[[#This Row],[2022/23 Baseline]]+T_DataComboFile[[#This Row],[2022/23 Reduction]]+T_DataComboFile[[#This Row],[2022/23 Increase]]","v":0},{"$f":"T_DataComboFile[[#This Row],[2023/24 Baseline]]+T_DataComboFile[[#This Row],[2023/24 Reduction]]+T_DataComboFile[[#This Row],[2023/24 Increase]]","v":0}]
[null,null,"2021_22","ENE2020",36,1,3,null,70268,36,1,3,null,"070268","36|01|03",1,2,4,44,45,"01|02|04|44|45","National","Small Business Development","Administration","Corporate Services",null,"Current","Transfers and subsidies","Provinces and municipalities","Municipalities","Municipal bank accounts",null,null,null,0,0,0,0,0,0,0,0,0,0,0,0,0,0,null,{"$f":"IF(T_DataComboFile[[#This Row],[G&S reporting level indicator]]=1,$AX$16,\"Not applicable\")","v":"Level 3"},{"$f":"IF(AND($AX$16=\"Level 3\",T_DataComboFile[[#This Row],[Econ3]] = \"Goods and services\"),IF(T_DataComboFile[[#This Row],[Econ4]] = T_DataComboFile[[#This Row],[Econ3]],1,0),IF(AND($AX$16=\"Level 4\",T_DataComboFile[[#This Row],[Econ4]] = \"Goods and services\"),0,1))","v":1},{"$f":"T_DataComboFile[[#This Row],[2016/17_Source]]*T_DataComboFile[[#This Row],[G&S reporting level indicator]]","v":0},{"$f":"T_DataComboFile[[#This Row],[2017/18_Source]]*T_DataComboFile[[#This Row],[G&S reporting level indicator]]","v":0},{"$f":"T_DataComboFile[[#This Row],[2018/19_Source]]*T_DataComboFile[[#This Row],[G&S reporting level indicator]]","v":0},{"$f":"T_DataComboFile[[#This Row],[2019/20 Main appropriation_Source]]*T_DataComboFile[[#This Row],[G&S reporting level indicator]]","v":0},{"$f":"T_DataComboFile[[#This Row],[2019/20 Adjusted appropriation_Source]]*T_DataComboFile[[#This Row],[G&S reporting level indicator]]","v":0},{"$f":"T_DataComboFile[[#This Row],[2019/20 Revised estimate_Source]]*T_DataComboFile[[#This Row],[G&S reporting level indicator]]","v":0},{"$f":"T_DataComboFile[[#This Row],[2019/20 Preliminary outcome_Source]]*T_DataComboFile[[#This Row],[G&S reporting level indicator]]","v":0},{"$f":"T_DataComboFile[[#This Row],[2020/21 Original_Source]]*T_DataComboFile[[#This Row],[G&S reporting level indicator]]","v":0},{"$f":"T_DataComboFile[[#This Row],[2020/21 SAB_Source]]*T_DataComboFile[[#This Row],[G&S reporting level indicator]]","v":0},{"$f":"T_DataComboFile[[#This Row],[2020/21 Baseline_Source]]*T_DataComboFile[[#This Row],[G&S reporting level indicator]]","v":0},{"$f":"T_DataComboFile[[#This Row],[2021/22 Baseline_Source]]*T_DataComboFile[[#This Row],[G&S reporting level indicator]]","v":0},{"$f":"T_DataComboFile[[#This Row],[2022/23 Baseline_Source]]*T_DataComboFile[[#This Row],[G&S reporting level indicator]]","v":0},{"$f":"T_DataComboFile[[#This Row],[2023/24 Baseline_Source]]*T_DataComboFile[[#This Row],[G&S reporting level indicator]]","v":0},null,null,null,null,null,null,{"$f":"T_DataComboFile[[#This Row],[2021/22 Baseline]]+T_DataComboFile[[#This Row],[2021/22 Reduction]]+T_DataComboFile[[#This Row],[2021/22 Increase]]","v":0},{"$f":"T_DataComboFile[[#This Row],[2022/23 Baseline]]+T_DataComboFile[[#This Row],[2022/23 Reduction]]+T_DataComboFile[[#This Row],[2022/23 Increase]]","v":0},{"$f":"T_DataComboFile[[#This Row],[2023/24 Baseline]]+T_DataComboFile[[#This Row],[2023/24 Reduction]]+T_DataComboFile[[#This Row],[2023/24 Increase]]","v":0}]
[null,null,"2021_22","ENE2020",36,1,3,null,70269,36,1,3,null,"070269","36|01|03",1,2,4,44,46,"01|02|04|44|46","National","Small Business Development","Administration","Corporate Services",null,"Current","Transfers and subsidies","Provinces and municipalities","Municipalities","Municipal agencies and funds",null,null,null,0,0,0,0,0,0,0,0,0,0,0,0,0,0,null,{"$f":"IF(T_DataComboFile[[#This Row],[G&S reporting level indicator]]=1,$AX$16,\"Not applicable\")","v":"Level 3"},{"$f":"IF(AND($AX$16=\"Level 3\",T_DataComboFile[[#This Row],[Econ3]] = \"Goods and services\"),IF(T_DataComboFile[[#This Row],[Econ4]] = T_DataComboFile[[#This Row],[Econ3]],1,0),IF(AND($AX$16=\"Level 4\",T_DataComboFile[[#This Row],[Econ4]] = \"Goods and services\"),0,1))","v":1},{"$f":"T_DataComboFile[[#This Row],[2016/17_Source]]*T_DataComboFile[[#This Row],[G&S reporting level indicator]]","v":0},{"$f":"T_DataComboFile[[#This Row],[2017/18_Source]]*T_DataComboFile[[#This Row],[G&S reporting level indicator]]","v":0},{"$f":"T_DataComboFile[[#This Row],[2018/19_Source]]*T_DataComboFile[[#This Row],[G&S reporting level indicator]]","v":0},{"$f":"T_DataComboFile[[#This Row],[2019/20 Main appropriation_Source]]*T_DataComboFile[[#This Row],[G&S reporting level indicator]]","v":0},{"$f":"T_DataComboFile[[#This Row],[2019/20 Adjusted appropriation_Source]]*T_DataComboFile[[#This Row],[G&S reporting level indicator]]","v":0},{"$f":"T_DataComboFile[[#This Row],[2019/20 Revised estimate_Source]]*T_DataComboFile[[#This Row],[G&S reporting level indicator]]","v":0},{"$f":"T_DataComboFile[[#This Row],[2019/20 Preliminary outcome_Source]]*T_DataComboFile[[#This Row],[G&S reporting level indicator]]","v":0},{"$f":"T_DataComboFile[[#This Row],[2020/21 Original_Source]]*T_DataComboFile[[#This Row],[G&S reporting level indicator]]","v":0},{"$f":"T_DataComboFile[[#This Row],[2020/21 SAB_Source]]*T_DataComboFile[[#This Row],[G&S reporting level indicator]]","v":0},{"$f":"T_DataComboFile[[#This Row],[2020/21 Baseline_Source]]*T_DataComboFile[[#This Row],[G&S reporting level indicator]]","v":0},{"$f":"T_DataComboFile[[#This Row],[2021/22 Baseline_Source]]*T_DataComboFile[[#This Row],[G&S reporting level indicator]]","v":0},{"$f":"T_DataComboFile[[#This Row],[2022/23 Baseline_Source]]*T_DataComboFile[[#This Row],[G&S reporting level indicator]]","v":0},{"$f":"T_DataComboFile[[#This Row],[2023/24 Baseline_Source]]*T_DataComboFile[[#This Row],[G&S reporting level indicator]]","v":0},null,null,null,null,null,null,{"$f":"T_DataComboFile[[#This Row],[2021/22 Baseline]]+T_DataComboFile[[#This Row],[2021/22 Reduction]]+T_DataComboFile[[#This Row],[2021/22 Increase]]","v":0},{"$f":"T_DataComboFile[[#This Row],[2022/23 Baseline]]+T_DataComboFile[[#This Row],[2022/23 Reduction]]+T_DataComboFile[[#This Row],[2022/23 Increase]]","v":0},{"$f":"T_DataComboFile[[#This Row],[2023/24 Baseline]]+T_DataComboFile[[#This Row],[2023/24 Reduction]]+T_DataComboFile[[#This Row],[2023/24 Increase]]","v":0}]
[null,null,"2021_22","ENE2020",36,1,3,null,70270,36,1,3,null,"070270","36|01|03",1,2,5,45,47,"01|02|05|45|47","National","Small Business Development","Administration","Corporate Services",null,"Current","Transfers and subsidies","Departmental agencies and accounts","Social security funds","Social security funds",null,null,null,0,0,0,0,0,0,0,0,0,0,0,0,0,0,null,{"$f":"IF(T_DataComboFile[[#This Row],[G&S reporting level indicator]]=1,$AX$16,\"Not applicable\")","v":"Level 3"},{"$f":"IF(AND($AX$16=\"Level 3\",T_DataComboFile[[#This Row],[Econ3]] = \"Goods and services\"),IF(T_DataComboFile[[#This Row],[Econ4]] = T_DataComboFile[[#This Row],[Econ3]],1,0),IF(AND($AX$16=\"Level 4\",T_DataComboFile[[#This Row],[Econ4]] = \"Goods and services\"),0,1))","v":1},{"$f":"T_DataComboFile[[#This Row],[2016/17_Source]]*T_DataComboFile[[#This Row],[G&S reporting level indicator]]","v":0},{"$f":"T_DataComboFile[[#This Row],[2017/18_Source]]*T_DataComboFile[[#This Row],[G&S reporting level indicator]]","v":0},{"$f":"T_DataComboFile[[#This Row],[2018/19_Source]]*T_DataComboFile[[#This Row],[G&S reporting level indicator]]","v":0},{"$f":"T_DataComboFile[[#This Row],[2019/20 Main appropriation_Source]]*T_DataComboFile[[#This Row],[G&S reporting level indicator]]","v":0},{"$f":"T_DataComboFile[[#This Row],[2019/20 Adjusted appropriation_Source]]*T_DataComboFile[[#This Row],[G&S reporting level indicator]]","v":0},{"$f":"T_DataComboFile[[#This Row],[2019/20 Revised estimate_Source]]*T_DataComboFile[[#This Row],[G&S reporting level indicator]]","v":0},{"$f":"T_DataComboFile[[#This Row],[2019/20 Preliminary outcome_Source]]*T_DataComboFile[[#This Row],[G&S reporting level indicator]]","v":0},{"$f":"T_DataComboFile[[#This Row],[2020/21 Original_Source]]*T_DataComboFile[[#This Row],[G&S reporting level indicator]]","v":0},{"$f":"T_DataComboFile[[#This Row],[2020/21 SAB_Source]]*T_DataComboFile[[#This Row],[G&S reporting level indicator]]","v":0},{"$f":"T_DataComboFile[[#This Row],[2020/21 Baseline_Source]]*T_DataComboFile[[#This Row],[G&S reporting level indicator]]","v":0},{"$f":"T_DataComboFile[[#This Row],[2021/22 Baseline_Source]]*T_DataComboFile[[#This Row],[G&S reporting level indicator]]","v":0},{"$f":"T_DataComboFile[[#This Row],[2022/23 Baseline_Source]]*T_DataComboFile[[#This Row],[G&S reporting level indicator]]","v":0},{"$f":"T_DataComboFile[[#This Row],[2023/24 Baseline_Source]]*T_DataComboFile[[#This Row],[G&S reporting level indicator]]","v":0},null,null,null,null,null,null,{"$f":"T_DataComboFile[[#This Row],[2021/22 Baseline]]+T_DataComboFile[[#This Row],[2021/22 Reduction]]+T_DataComboFile[[#This Row],[2021/22 Increase]]","v":0},{"$f":"T_DataComboFile[[#This Row],[2022/23 Baseline]]+T_DataComboFile[[#This Row],[2022/23 Reduction]]+T_DataComboFile[[#This Row],[2022/23 Increase]]","v":0},{"$f":"T_DataComboFile[[#This Row],[2023/24 Baseline]]+T_DataComboFile[[#This Row],[2023/24 Reduction]]+T_DataComboFile[[#This Row],[2023/24 Increase]]","v":0}]
[null,null,"2021_22","ENE2020",36,1,3,null,70271,36,1,3,null,"070271","36|01|03",1,2,5,46,48,"01|02|05|46|48","National","Small Business Development","Administration","Corporate Services",null,"Current","Transfers and subsidies","Departmental agencies and accounts","Departmental agencies (non-business entities)","Departmental agencies (non-business entities)",null,null,null,0,0,0,0,0,0,0,0,0,0,0,0,0,0,null,{"$f":"IF(T_DataComboFile[[#This Row],[G&S reporting level indicator]]=1,$AX$16,\"Not applicable\")","v":"Level 3"},{"$f":"IF(AND($AX$16=\"Level 3\",T_DataComboFile[[#This Row],[Econ3]] = \"Goods and services\"),IF(T_DataComboFile[[#This Row],[Econ4]] = T_DataComboFile[[#This Row],[Econ3]],1,0),IF(AND($AX$16=\"Level 4\",T_DataComboFile[[#This Row],[Econ4]] = \"Goods and services\"),0,1))","v":1},{"$f":"T_DataComboFile[[#This Row],[2016/17_Source]]*T_DataComboFile[[#This Row],[G&S reporting level indicator]]","v":0},{"$f":"T_DataComboFile[[#This Row],[2017/18_Source]]*T_DataComboFile[[#This Row],[G&S reporting level indicator]]","v":0},{"$f":"T_DataComboFile[[#This Row],[2018/19_Source]]*T_DataComboFile[[#This Row],[G&S reporting level indicator]]","v":0},{"$f":"T_DataComboFile[[#This Row],[2019/20 Main appropriation_Source]]*T_DataComboFile[[#This Row],[G&S reporting level indicator]]","v":0},{"$f":"T_DataComboFile[[#This Row],[2019/20 Adjusted appropriation_Source]]*T_DataComboFile[[#This Row],[G&S reporting level indicator]]","v":0},{"$f":"T_DataComboFile[[#This Row],[2019/20 Revised estimate_Source]]*T_DataComboFile[[#This Row],[G&S reporting level indicator]]","v":0},{"$f":"T_DataComboFile[[#This Row],[2019/20 Preliminary outcome_Source]]*T_DataComboFile[[#This Row],[G&S reporting level indicator]]","v":0},{"$f":"T_DataComboFile[[#This Row],[2020/21 Original_Source]]*T_DataComboFile[[#This Row],[G&S reporting level indicator]]","v":0},{"$f":"T_DataComboFile[[#This Row],[2020/21 SAB_Source]]*T_DataComboFile[[#This Row],[G&S reporting level indicator]]","v":0},{"$f":"T_DataComboFile[[#This Row],[2020/21 Baseline_Source]]*T_DataComboFile[[#This Row],[G&S reporting level indicator]]","v":0},{"$f":"T_DataComboFile[[#This Row],[2021/22 Baseline_Source]]*T_DataComboFile[[#This Row],[G&S reporting level indicator]]","v":0},{"$f":"T_DataComboFile[[#This Row],[2022/23 Baseline_Source]]*T_DataComboFile[[#This Row],[G&S reporting level indicator]]","v":0},{"$f":"T_DataComboFile[[#This Row],[2023/24 Baseline_Source]]*T_DataComboFile[[#This Row],[G&S reporting level indicator]]","v":0},null,null,null,null,null,null,{"$f":"T_DataComboFile[[#This Row],[2021/22 Baseline]]+T_DataComboFile[[#This Row],[2021/22 Reduction]]+T_DataComboFile[[#This Row],[2021/22 Increase]]","v":0},{"$f":"T_DataComboFile[[#This Row],[2022/23 Baseline]]+T_DataComboFile[[#This Row],[2022/23 Reduction]]+T_DataComboFile[[#This Row],[2022/23 Increase]]","v":0},{"$f":"T_DataComboFile[[#This Row],[2023/24 Baseline]]+T_DataComboFile[[#This Row],[2023/24 Reduction]]+T_DataComboFile[[#This Row],[2023/24 Increase]]","v":0}]
[null,null,"2021_22","ENE2020",36,1,3,null,70272,36,1,3,null,"070272","36|01|03",1,2,6,47,49,"01|02|06|47|49","National","Small Business Development","Administration","Corporate Services",null,"Current","Transfers and subsidies","Higher education institutions","Higher education institutions","Higher education institutions",null,null,null,0,0,0,0,0,0,0,0,0,0,0,0,0,0,null,{"$f":"IF(T_DataComboFile[[#This Row],[G&S reporting level indicator]]=1,$AX$16,\"Not applicable\")","v":"Level 3"},{"$f":"IF(AND($AX$16=\"Level 3\",T_DataComboFile[[#This Row],[Econ3]] = \"Goods and services\"),IF(T_DataComboFile[[#This Row],[Econ4]] = T_DataComboFile[[#This Row],[Econ3]],1,0),IF(AND($AX$16=\"Level 4\",T_DataComboFile[[#This Row],[Econ4]] = \"Goods and services\"),0,1))","v":1},{"$f":"T_DataComboFile[[#This Row],[2016/17_Source]]*T_DataComboFile[[#This Row],[G&S reporting level indicator]]","v":0},{"$f":"T_DataComboFile[[#This Row],[2017/18_Source]]*T_DataComboFile[[#This Row],[G&S reporting level indicator]]","v":0},{"$f":"T_DataComboFile[[#This Row],[2018/19_Source]]*T_DataComboFile[[#This Row],[G&S reporting level indicator]]","v":0},{"$f":"T_DataComboFile[[#This Row],[2019/20 Main appropriation_Source]]*T_DataComboFile[[#This Row],[G&S reporting level indicator]]","v":0},{"$f":"T_DataComboFile[[#This Row],[2019/20 Adjusted appropriation_Source]]*T_DataComboFile[[#This Row],[G&S reporting level indicator]]","v":0},{"$f":"T_DataComboFile[[#This Row],[2019/20 Revised estimate_Source]]*T_DataComboFile[[#This Row],[G&S reporting level indicator]]","v":0},{"$f":"T_DataComboFile[[#This Row],[2019/20 Preliminary outcome_Source]]*T_DataComboFile[[#This Row],[G&S reporting level indicator]]","v":0},{"$f":"T_DataComboFile[[#This Row],[2020/21 Original_Source]]*T_DataComboFile[[#This Row],[G&S reporting level indicator]]","v":0},{"$f":"T_DataComboFile[[#This Row],[2020/21 SAB_Source]]*T_DataComboFile[[#This Row],[G&S reporting level indicator]]","v":0},{"$f":"T_DataComboFile[[#This Row],[2020/21 Baseline_Source]]*T_DataComboFile[[#This Row],[G&S reporting level indicator]]","v":0},{"$f":"T_DataComboFile[[#This Row],[2021/22 Baseline_Source]]*T_DataComboFile[[#This Row],[G&S reporting level indicator]]","v":0},{"$f":"T_DataComboFile[[#This Row],[2022/23 Baseline_Source]]*T_DataComboFile[[#This Row],[G&S reporting level indicator]]","v":0},{"$f":"T_DataComboFile[[#This Row],[2023/24 Baseline_Source]]*T_DataComboFile[[#This Row],[G&S reporting level indicator]]","v":0},null,null,null,null,null,null,{"$f":"T_DataComboFile[[#This Row],[2021/22 Baseline]]+T_DataComboFile[[#This Row],[2021/22 Reduction]]+T_DataComboFile[[#This Row],[2021/22 Increase]]","v":0},{"$f":"T_DataComboFile[[#This Row],[2022/23 Baseline]]+T_DataComboFile[[#This Row],[2022/23 Reduction]]+T_DataComboFile[[#This Row],[2022/23 Increase]]","v":0},{"$f":"T_DataComboFile[[#This Row],[2023/24 Baseline]]+T_DataComboFile[[#This Row],[2023/24 Reduction]]+T_DataComboFile[[#This Row],[2023/24 Increase]]","v":0}]
[null,null,"2021_22","ENE2020",36,1,3,null,70273,36,1,3,null,"070273","36|01|03",1,2,7,48,50,"01|02|07|48|50","National","Small Business Development","Administration","Corporate Services",null,"Current","Transfers and subsidies","Foreign governments and international organisations","Foreign governments and international organisations","Foreign governments and international organisations",null,null,null,0,0,0,0,0,0,0,0,0,0,0,0,0,0,null,{"$f":"IF(T_DataComboFile[[#This Row],[G&S reporting level indicator]]=1,$AX$16,\"Not applicable\")","v":"Level 3"},{"$f":"IF(AND($AX$16=\"Level 3\",T_DataComboFile[[#This Row],[Econ3]] = \"Goods and services\"),IF(T_DataComboFile[[#This Row],[Econ4]] = T_DataComboFile[[#This Row],[Econ3]],1,0),IF(AND($AX$16=\"Level 4\",T_DataComboFile[[#This Row],[Econ4]] = \"Goods and services\"),0,1))","v":1},{"$f":"T_DataComboFile[[#This Row],[2016/17_Source]]*T_DataComboFile[[#This Row],[G&S reporting level indicator]]","v":0},{"$f":"T_DataComboFile[[#This Row],[2017/18_Source]]*T_DataComboFile[[#This Row],[G&S reporting level indicator]]","v":0},{"$f":"T_DataComboFile[[#This Row],[2018/19_Source]]*T_DataComboFile[[#This Row],[G&S reporting level indicator]]","v":0},{"$f":"T_DataComboFile[[#This Row],[2019/20 Main appropriation_Source]]*T_DataComboFile[[#This Row],[G&S reporting level indicator]]","v":0},{"$f":"T_DataComboFile[[#This Row],[2019/20 Adjusted appropriation_Source]]*T_DataComboFile[[#This Row],[G&S reporting level indicator]]","v":0},{"$f":"T_DataComboFile[[#This Row],[2019/20 Revised estimate_Source]]*T_DataComboFile[[#This Row],[G&S reporting level indicator]]","v":0},{"$f":"T_DataComboFile[[#This Row],[2019/20 Preliminary outcome_Source]]*T_DataComboFile[[#This Row],[G&S reporting level indicator]]","v":0},{"$f":"T_DataComboFile[[#This Row],[2020/21 Original_Source]]*T_DataComboFile[[#This Row],[G&S reporting level indicator]]","v":0},{"$f":"T_DataComboFile[[#This Row],[2020/21 SAB_Source]]*T_DataComboFile[[#This Row],[G&S reporting level indicator]]","v":0},{"$f":"T_DataComboFile[[#This Row],[2020/21 Baseline_Source]]*T_DataComboFile[[#This Row],[G&S reporting level indicator]]","v":0},{"$f":"T_DataComboFile[[#This Row],[2021/22 Baseline_Source]]*T_DataComboFile[[#This Row],[G&S reporting level indicator]]","v":0},{"$f":"T_DataComboFile[[#This Row],[2022/23 Baseline_Source]]*T_DataComboFile[[#This Row],[G&S reporting level indicator]]","v":0},{"$f":"T_DataComboFile[[#This Row],[2023/24 Baseline_Source]]*T_DataComboFile[[#This Row],[G&S reporting level indicator]]","v":0},null,null,null,null,null,null,{"$f":"T_DataComboFile[[#This Row],[2021/22 Baseline]]+T_DataComboFile[[#This Row],[2021/22 Reduction]]+T_DataComboFile[[#This Row],[2021/22 Increase]]","v":0},{"$f":"T_DataComboFile[[#This Row],[2022/23 Baseline]]+T_DataComboFile[[#This Row],[2022/23 Reduction]]+T_DataComboFile[[#This Row],[2022/23 Increase]]","v":0},{"$f":"T_DataComboFile[[#This Row],[2023/24 Baseline]]+T_DataComboFile[[#This Row],[2023/24 Reduction]]+T_DataComboFile[[#This Row],[2023/24 Increase]]","v":0}]
[null,null,"2021_22","ENE2020",36,1,3,null,70274,36,1,3,null,"070274","36|01|03",1,2,8,49,51,"01|02|08|49|51","National","Small Business Development","Administration","Corporate Services",null,"Current","Transfers and subsidies","Public corporations and private enterprises","Public corporations","Subsidies on products and production (pc)",null,null,null,0,0,0,0,0,0,0,0,0,0,0,0,0,0,null,{"$f":"IF(T_DataComboFile[[#This Row],[G&S reporting level indicator]]=1,$AX$16,\"Not applicable\")","v":"Level 3"},{"$f":"IF(AND($AX$16=\"Level 3\",T_DataComboFile[[#This Row],[Econ3]] = \"Goods and services\"),IF(T_DataComboFile[[#This Row],[Econ4]] = T_DataComboFile[[#This Row],[Econ3]],1,0),IF(AND($AX$16=\"Level 4\",T_DataComboFile[[#This Row],[Econ4]] = \"Goods and services\"),0,1))","v":1},{"$f":"T_DataComboFile[[#This Row],[2016/17_Source]]*T_DataComboFile[[#This Row],[G&S reporting level indicator]]","v":0},{"$f":"T_DataComboFile[[#This Row],[2017/18_Source]]*T_DataComboFile[[#This Row],[G&S reporting level indicator]]","v":0},{"$f":"T_DataComboFile[[#This Row],[2018/19_Source]]*T_DataComboFile[[#This Row],[G&S reporting level indicator]]","v":0},{"$f":"T_DataComboFile[[#This Row],[2019/20 Main appropriation_Source]]*T_DataComboFile[[#This Row],[G&S reporting level indicator]]","v":0},{"$f":"T_DataComboFile[[#This Row],[2019/20 Adjusted appropriation_Source]]*T_DataComboFile[[#This Row],[G&S reporting level indicator]]","v":0},{"$f":"T_DataComboFile[[#This Row],[2019/20 Revised estimate_Source]]*T_DataComboFile[[#This Row],[G&S reporting level indicator]]","v":0},{"$f":"T_DataComboFile[[#This Row],[2019/20 Preliminary outcome_Source]]*T_DataComboFile[[#This Row],[G&S reporting level indicator]]","v":0},{"$f":"T_DataComboFile[[#This Row],[2020/21 Original_Source]]*T_DataComboFile[[#This Row],[G&S reporting level indicator]]","v":0},{"$f":"T_DataComboFile[[#This Row],[2020/21 SAB_Source]]*T_DataComboFile[[#This Row],[G&S reporting level indicator]]","v":0},{"$f":"T_DataComboFile[[#This Row],[2020/21 Baseline_Source]]*T_DataComboFile[[#This Row],[G&S reporting level indicator]]","v":0},{"$f":"T_DataComboFile[[#This Row],[2021/22 Baseline_Source]]*T_DataComboFile[[#This Row],[G&S reporting level indicator]]","v":0},{"$f":"T_DataComboFile[[#This Row],[2022/23 Baseline_Source]]*T_DataComboFile[[#This Row],[G&S reporting level indicator]]","v":0},{"$f":"T_DataComboFile[[#This Row],[2023/24 Baseline_Source]]*T_DataComboFile[[#This Row],[G&S reporting level indicator]]","v":0},null,null,null,null,null,null,{"$f":"T_DataComboFile[[#This Row],[2021/22 Baseline]]+T_DataComboFile[[#This Row],[2021/22 Reduction]]+T_DataComboFile[[#This Row],[2021/22 Increase]]","v":0},{"$f":"T_DataComboFile[[#This Row],[2022/23 Baseline]]+T_DataComboFile[[#This Row],[2022/23 Reduction]]+T_DataComboFile[[#This Row],[2022/23 Increase]]","v":0},{"$f":"T_DataComboFile[[#This Row],[2023/24 Baseline]]+T_DataComboFile[[#This Row],[2023/24 Reduction]]+T_DataComboFile[[#This Row],[2023/24 Increase]]","v":0}]
[null,null,"2021_22","ENE2020",36,1,3,null,70275,36,1,3,null,"070275","36|01|03",1,2,8,49,52,"01|02|08|49|52","National","Small Business Development","Administration","Corporate Services",null,"Current","Transfers and subsidies","Public corporations and private enterprises","Public corporations","Other transfers to public corporations",null,null,null,0,0,0,0,0,0,0,0,0,0,0,0,0,0,null,{"$f":"IF(T_DataComboFile[[#This Row],[G&S reporting level indicator]]=1,$AX$16,\"Not applicable\")","v":"Level 3"},{"$f":"IF(AND($AX$16=\"Level 3\",T_DataComboFile[[#This Row],[Econ3]] = \"Goods and services\"),IF(T_DataComboFile[[#This Row],[Econ4]] = T_DataComboFile[[#This Row],[Econ3]],1,0),IF(AND($AX$16=\"Level 4\",T_DataComboFile[[#This Row],[Econ4]] = \"Goods and services\"),0,1))","v":1},{"$f":"T_DataComboFile[[#This Row],[2016/17_Source]]*T_DataComboFile[[#This Row],[G&S reporting level indicator]]","v":0},{"$f":"T_DataComboFile[[#This Row],[2017/18_Source]]*T_DataComboFile[[#This Row],[G&S reporting level indicator]]","v":0},{"$f":"T_DataComboFile[[#This Row],[2018/19_Source]]*T_DataComboFile[[#This Row],[G&S reporting level indicator]]","v":0},{"$f":"T_DataComboFile[[#This Row],[2019/20 Main appropriation_Source]]*T_DataComboFile[[#This Row],[G&S reporting level indicator]]","v":0},{"$f":"T_DataComboFile[[#This Row],[2019/20 Adjusted appropriation_Source]]*T_DataComboFile[[#This Row],[G&S reporting level indicator]]","v":0},{"$f":"T_DataComboFile[[#This Row],[2019/20 Revised estimate_Source]]*T_DataComboFile[[#This Row],[G&S reporting level indicator]]","v":0},{"$f":"T_DataComboFile[[#This Row],[2019/20 Preliminary outcome_Source]]*T_DataComboFile[[#This Row],[G&S reporting level indicator]]","v":0},{"$f":"T_DataComboFile[[#This Row],[2020/21 Original_Source]]*T_DataComboFile[[#This Row],[G&S reporting level indicator]]","v":0},{"$f":"T_DataComboFile[[#This Row],[2020/21 SAB_Source]]*T_DataComboFile[[#This Row],[G&S reporting level indicator]]","v":0},{"$f":"T_DataComboFile[[#This Row],[2020/21 Baseline_Source]]*T_DataComboFile[[#This Row],[G&S reporting level indicator]]","v":0},{"$f":"T_DataComboFile[[#This Row],[2021/22 Baseline_Source]]*T_DataComboFile[[#This Row],[G&S reporting level indicator]]","v":0},{"$f":"T_DataComboFile[[#This Row],[2022/23 Baseline_Source]]*T_DataComboFile[[#This Row],[G&S reporting level indicator]]","v":0},{"$f":"T_DataComboFile[[#This Row],[2023/24 Baseline_Source]]*T_DataComboFile[[#This Row],[G&S reporting level indicator]]","v":0},null,null,null,null,null,null,{"$f":"T_DataComboFile[[#This Row],[2021/22 Baseline]]+T_DataComboFile[[#This Row],[2021/22 Reduction]]+T_DataComboFile[[#This Row],[2021/22 Increase]]","v":0},{"$f":"T_DataComboFile[[#This Row],[2022/23 Baseline]]+T_DataComboFile[[#This Row],[2022/23 Reduction]]+T_DataComboFile[[#This Row],[2022/23 Increase]]","v":0},{"$f":"T_DataComboFile[[#This Row],[2023/24 Baseline]]+T_DataComboFile[[#This Row],[2023/24 Reduction]]+T_DataComboFile[[#This Row],[2023/24 Increase]]","v":0}]
[null,null,"2021_22","ENE2020",36,1,3,null,70276,36,1,3,null,"070276","36|01|03",1,2,8,50,53,"01|02|08|50|53","National","Small Business Development","Administration","Corporate Services",null,"Current","Transfers and subsidies","Public corporations and private enterprises","Private enterprises","Subsidies on products and production (pe)",null,null,null,0,0,0,0,0,0,0,0,0,0,0,0,0,0,null,{"$f":"IF(T_DataComboFile[[#This Row],[G&S reporting level indicator]]=1,$AX$16,\"Not applicable\")","v":"Level 3"},{"$f":"IF(AND($AX$16=\"Level 3\",T_DataComboFile[[#This Row],[Econ3]] = \"Goods and services\"),IF(T_DataComboFile[[#This Row],[Econ4]] = T_DataComboFile[[#This Row],[Econ3]],1,0),IF(AND($AX$16=\"Level 4\",T_DataComboFile[[#This Row],[Econ4]] = \"Goods and services\"),0,1))","v":1},{"$f":"T_DataComboFile[[#This Row],[2016/17_Source]]*T_DataComboFile[[#This Row],[G&S reporting level indicator]]","v":0},{"$f":"T_DataComboFile[[#This Row],[2017/18_Source]]*T_DataComboFile[[#This Row],[G&S reporting level indicator]]","v":0},{"$f":"T_DataComboFile[[#This Row],[2018/19_Source]]*T_DataComboFile[[#This Row],[G&S reporting level indicator]]","v":0},{"$f":"T_DataComboFile[[#This Row],[2019/20 Main appropriation_Source]]*T_DataComboFile[[#This Row],[G&S reporting level indicator]]","v":0},{"$f":"T_DataComboFile[[#This Row],[2019/20 Adjusted appropriation_Source]]*T_DataComboFile[[#This Row],[G&S reporting level indicator]]","v":0},{"$f":"T_DataComboFile[[#This Row],[2019/20 Revised estimate_Source]]*T_DataComboFile[[#This Row],[G&S reporting level indicator]]","v":0},{"$f":"T_DataComboFile[[#This Row],[2019/20 Preliminary outcome_Source]]*T_DataComboFile[[#This Row],[G&S reporting level indicator]]","v":0},{"$f":"T_DataComboFile[[#This Row],[2020/21 Original_Source]]*T_DataComboFile[[#This Row],[G&S reporting level indicator]]","v":0},{"$f":"T_DataComboFile[[#This Row],[2020/21 SAB_Source]]*T_DataComboFile[[#This Row],[G&S reporting level indicator]]","v":0},{"$f":"T_DataComboFile[[#This Row],[2020/21 Baseline_Source]]*T_DataComboFile[[#This Row],[G&S reporting level indicator]]","v":0},{"$f":"T_DataComboFile[[#This Row],[2021/22 Baseline_Source]]*T_DataComboFile[[#This Row],[G&S reporting level indicator]]","v":0},{"$f":"T_DataComboFile[[#This Row],[2022/23 Baseline_Source]]*T_DataComboFile[[#This Row],[G&S reporting level indicator]]","v":0},{"$f":"T_DataComboFile[[#This Row],[2023/24 Baseline_Source]]*T_DataComboFile[[#This Row],[G&S reporting level indicator]]","v":0},null,null,null,null,null,null,{"$f":"T_DataComboFile[[#This Row],[2021/22 Baseline]]+T_DataComboFile[[#This Row],[2021/22 Reduction]]+T_DataComboFile[[#This Row],[2021/22 Increase]]","v":0},{"$f":"T_DataComboFile[[#This Row],[2022/23 Baseline]]+T_DataComboFile[[#This Row],[2022/23 Reduction]]+T_DataComboFile[[#This Row],[2022/23 Increase]]","v":0},{"$f":"T_DataComboFile[[#This Row],[2023/24 Baseline]]+T_DataComboFile[[#This Row],[2023/24 Reduction]]+T_DataComboFile[[#This Row],[2023/24 Increase]]","v":0}]
[null,null,"2021_22","ENE2020",36,1,3,null,70277,36,1,3,null,"070277","36|01|03",1,2,8,50,54,"01|02|08|50|54","National","Small Business Development","Administration","Corporate Services",null,"Current","Transfers and subsidies","Public corporations and private enterprises","Private enterprises","Other transfers to private enterprises",null,null,null,0,0,0,0,0,0,0,0,0,0,0,0,0,0,null,{"$f":"IF(T_DataComboFile[[#This Row],[G&S reporting level indicator]]=1,$AX$16,\"Not applicable\")","v":"Level 3"},{"$f":"IF(AND($AX$16=\"Level 3\",T_DataComboFile[[#This Row],[Econ3]] = \"Goods and services\"),IF(T_DataComboFile[[#This Row],[Econ4]] = T_DataComboFile[[#This Row],[Econ3]],1,0),IF(AND($AX$16=\"Level 4\",T_DataComboFile[[#This Row],[Econ4]] = \"Goods and services\"),0,1))","v":1},{"$f":"T_DataComboFile[[#This Row],[2016/17_Source]]*T_DataComboFile[[#This Row],[G&S reporting level indicator]]","v":0},{"$f":"T_DataComboFile[[#This Row],[2017/18_Source]]*T_DataComboFile[[#This Row],[G&S reporting level indicator]]","v":0},{"$f":"T_DataComboFile[[#This Row],[2018/19_Source]]*T_DataComboFile[[#This Row],[G&S reporting level indicator]]","v":0},{"$f":"T_DataComboFile[[#This Row],[2019/20 Main appropriation_Source]]*T_DataComboFile[[#This Row],[G&S reporting level indicator]]","v":0},{"$f":"T_DataComboFile[[#This Row],[2019/20 Adjusted appropriation_Source]]*T_DataComboFile[[#This Row],[G&S reporting level indicator]]","v":0},{"$f":"T_DataComboFile[[#This Row],[2019/20 Revised estimate_Source]]*T_DataComboFile[[#This Row],[G&S reporting level indicator]]","v":0},{"$f":"T_DataComboFile[[#This Row],[2019/20 Preliminary outcome_Source]]*T_DataComboFile[[#This Row],[G&S reporting level indicator]]","v":0},{"$f":"T_DataComboFile[[#This Row],[2020/21 Original_Source]]*T_DataComboFile[[#This Row],[G&S reporting level indicator]]","v":0},{"$f":"T_DataComboFile[[#This Row],[2020/21 SAB_Source]]*T_DataComboFile[[#This Row],[G&S reporting level indicator]]","v":0},{"$f":"T_DataComboFile[[#This Row],[2020/21 Baseline_Source]]*T_DataComboFile[[#This Row],[G&S reporting level indicator]]","v":0},{"$f":"T_DataComboFile[[#This Row],[2021/22 Baseline_Source]]*T_DataComboFile[[#This Row],[G&S reporting level indicator]]","v":0},{"$f":"T_DataComboFile[[#This Row],[2022/23 Baseline_Source]]*T_DataComboFile[[#This Row],[G&S reporting level indicator]]","v":0},{"$f":"T_DataComboFile[[#This Row],[2023/24 Baseline_Source]]*T_DataComboFile[[#This Row],[G&S reporting level indicator]]","v":0},null,null,null,null,null,null,{"$f":"T_DataComboFile[[#This Row],[2021/22 Baseline]]+T_DataComboFile[[#This Row],[2021/22 Reduction]]+T_DataComboFile[[#This Row],[2021/22 Increase]]","v":0},{"$f":"T_DataComboFile[[#This Row],[2022/23 Baseline]]+T_DataComboFile[[#This Row],[2022/23 Reduction]]+T_DataComboFile[[#This Row],[2022/23 Increase]]","v":0},{"$f":"T_DataComboFile[[#This Row],[2023/24 Baseline]]+T_DataComboFile[[#This Row],[2023/24 Reduction]]+T_DataComboFile[[#This Row],[2023/24 Increase]]","v":0}]
[null,null,"2021_22","ENE2020",36,1,3,null,70278,36,1,3,null,"070278","36|01|03",1,2,9,51,55,"01|02|09|51|55","National","Small Business Development","Administration","Corporate Services",null,"Current","Transfers and subsidies","Non-profit institutions","Non-profit institutions","Non-profit institutions",null,null,null,0,0,0,0,0,0,0,0,0,0,0,0,0,0,null,{"$f":"IF(T_DataComboFile[[#This Row],[G&S reporting level indicator]]=1,$AX$16,\"Not applicable\")","v":"Level 3"},{"$f":"IF(AND($AX$16=\"Level 3\",T_DataComboFile[[#This Row],[Econ3]] = \"Goods and services\"),IF(T_DataComboFile[[#This Row],[Econ4]] = T_DataComboFile[[#This Row],[Econ3]],1,0),IF(AND($AX$16=\"Level 4\",T_DataComboFile[[#This Row],[Econ4]] = \"Goods and services\"),0,1))","v":1},{"$f":"T_DataComboFile[[#This Row],[2016/17_Source]]*T_DataComboFile[[#This Row],[G&S reporting level indicator]]","v":0},{"$f":"T_DataComboFile[[#This Row],[2017/18_Source]]*T_DataComboFile[[#This Row],[G&S reporting level indicator]]","v":0},{"$f":"T_DataComboFile[[#This Row],[2018/19_Source]]*T_DataComboFile[[#This Row],[G&S reporting level indicator]]","v":0},{"$f":"T_DataComboFile[[#This Row],[2019/20 Main appropriation_Source]]*T_DataComboFile[[#This Row],[G&S reporting level indicator]]","v":0},{"$f":"T_DataComboFile[[#This Row],[2019/20 Adjusted appropriation_Source]]*T_DataComboFile[[#This Row],[G&S reporting level indicator]]","v":0},{"$f":"T_DataComboFile[[#This Row],[2019/20 Revised estimate_Source]]*T_DataComboFile[[#This Row],[G&S reporting level indicator]]","v":0},{"$f":"T_DataComboFile[[#This Row],[2019/20 Preliminary outcome_Source]]*T_DataComboFile[[#This Row],[G&S reporting level indicator]]","v":0},{"$f":"T_DataComboFile[[#This Row],[2020/21 Original_Source]]*T_DataComboFile[[#This Row],[G&S reporting level indicator]]","v":0},{"$f":"T_DataComboFile[[#This Row],[2020/21 SAB_Source]]*T_DataComboFile[[#This Row],[G&S reporting level indicator]]","v":0},{"$f":"T_DataComboFile[[#This Row],[2020/21 Baseline_Source]]*T_DataComboFile[[#This Row],[G&S reporting level indicator]]","v":0},{"$f":"T_DataComboFile[[#This Row],[2021/22 Baseline_Source]]*T_DataComboFile[[#This Row],[G&S reporting level indicator]]","v":0},{"$f":"T_DataComboFile[[#This Row],[2022/23 Baseline_Source]]*T_DataComboFile[[#This Row],[G&S reporting level indicator]]","v":0},{"$f":"T_DataComboFile[[#This Row],[2023/24 Baseline_Source]]*T_DataComboFile[[#This Row],[G&S reporting level indicator]]","v":0},null,null,null,null,null,null,{"$f":"T_DataComboFile[[#This Row],[2021/22 Baseline]]+T_DataComboFile[[#This Row],[2021/22 Reduction]]+T_DataComboFile[[#This Row],[2021/22 Increase]]","v":0},{"$f":"T_DataComboFile[[#This Row],[2022/23 Baseline]]+T_DataComboFile[[#This Row],[2022/23 Reduction]]+T_DataComboFile[[#This Row],[2022/23 Increase]]","v":0},{"$f":"T_DataComboFile[[#This Row],[2023/24 Baseline]]+T_DataComboFile[[#This Row],[2023/24 Reduction]]+T_DataComboFile[[#This Row],[2023/24 Increase]]","v":0}]
["NAT|Households","36|Social benefits","2021_22","ENE2020",36,1,3,17239,70279,36,1,3,17239,"070279","36|01|03",1,2,10,52,56,"01|02|10|52|56","National","Small Business Development","Administration","Corporate Services","Households","Current","Transfers and subsidies","Households","Social benefits","Social benefits","Economic development","Industrialisation and exports","NAT",25,0,82,0,7,7,7,0,0,0,0,0,0,1,null,{"$f":"IF(T_DataComboFile[[#This Row],[G&S reporting level indicator]]=1,$AX$16,\"Not applicable\")","v":"Level 3"},{"$f":"IF(AND($AX$16=\"Level 3\",T_DataComboFile[[#This Row],[Econ3]] = \"Goods and services\"),IF(T_DataComboFile[[#This Row],[Econ4]] = T_DataComboFile[[#This Row],[Econ3]],1,0),IF(AND($AX$16=\"Level 4\",T_DataComboFile[[#This Row],[Econ4]] = \"Goods and services\"),0,1))","v":1},{"$f":"T_DataComboFile[[#This Row],[2016/17_Source]]*T_DataComboFile[[#This Row],[G&S reporting level indicator]]","v":25},{"$f":"T_DataComboFile[[#This Row],[2017/18_Source]]*T_DataComboFile[[#This Row],[G&S reporting level indicator]]","v":0},{"$f":"T_DataComboFile[[#This Row],[2018/19_Source]]*T_DataComboFile[[#This Row],[G&S reporting level indicator]]","v":82},{"$f":"T_DataComboFile[[#This Row],[2019/20 Main appropriation_Source]]*T_DataComboFile[[#This Row],[G&S reporting level indicator]]","v":0},{"$f":"T_DataComboFile[[#This Row],[2019/20 Adjusted appropriation_Source]]*T_DataComboFile[[#This Row],[G&S reporting level indicator]]","v":7},{"$f":"T_DataComboFile[[#This Row],[2019/20 Revised estimate_Source]]*T_DataComboFile[[#This Row],[G&S reporting level indicator]]","v":7},{"$f":"T_DataComboFile[[#This Row],[2019/20 Preliminary outcome_Source]]*T_DataComboFile[[#This Row],[G&S reporting level indicator]]","v":7},{"$f":"T_DataComboFile[[#This Row],[2020/21 Original_Source]]*T_DataComboFile[[#This Row],[G&S reporting level indicator]]","v":0},{"$f":"T_DataComboFile[[#This Row],[2020/21 SAB_Source]]*T_DataComboFile[[#This Row],[G&S reporting level indicator]]","v":0},{"$f":"T_DataComboFile[[#This Row],[2020/21 Baseline_Source]]*T_DataComboFile[[#This Row],[G&S reporting level indicator]]","v":0},{"$f":"T_DataComboFile[[#This Row],[2021/22 Baseline_Source]]*T_DataComboFile[[#This Row],[G&S reporting level indicator]]","v":0},{"$f":"T_DataComboFile[[#This Row],[2022/23 Baseline_Source]]*T_DataComboFile[[#This Row],[G&S reporting level indicator]]","v":0},{"$f":"T_DataComboFile[[#This Row],[2023/24 Baseline_Source]]*T_DataComboFile[[#This Row],[G&S reporting level indicator]]","v":0},null,null,null,null,null,null,{"$f":"T_DataComboFile[[#This Row],[2021/22 Baseline]]+T_DataComboFile[[#This Row],[2021/22 Reduction]]+T_DataComboFile[[#This Row],[2021/22 Increase]]","v":0},{"$f":"T_DataComboFile[[#This Row],[2022/23 Baseline]]+T_DataComboFile[[#This Row],[2022/23 Reduction]]+T_DataComboFile[[#This Row],[2022/23 Increase]]","v":0},{"$f":"T_DataComboFile[[#This Row],[2023/24 Baseline]]+T_DataComboFile[[#This Row],[2023/24 Reduction]]+T_DataComboFile[[#This Row],[2023/24 Increase]]","v":0}]
[null,null,"2021_22","ENE2020",36,1,3,null,70280,36,1,3,null,"070280","36|01|03",1,2,10,53,57,"01|02|10|53|57","National","Small Business Development","Administration","Corporate Services",null,"Current","Transfers and subsidies","Households","Other transfers to households","Other transfers to households",null,null,null,0,0,0,0,0,0,0,0,0,0,0,0,0,0,null,{"$f":"IF(T_DataComboFile[[#This Row],[G&S reporting level indicator]]=1,$AX$16,\"Not applicable\")","v":"Level 3"},{"$f":"IF(AND($AX$16=\"Level 3\",T_DataComboFile[[#This Row],[Econ3]] = \"Goods and services\"),IF(T_DataComboFile[[#This Row],[Econ4]] = T_DataComboFile[[#This Row],[Econ3]],1,0),IF(AND($AX$16=\"Level 4\",T_DataComboFile[[#This Row],[Econ4]] = \"Goods and services\"),0,1))","v":1},{"$f":"T_DataComboFile[[#This Row],[2016/17_Source]]*T_DataComboFile[[#This Row],[G&S reporting level indicator]]","v":0},{"$f":"T_DataComboFile[[#This Row],[2017/18_Source]]*T_DataComboFile[[#This Row],[G&S reporting level indicator]]","v":0},{"$f":"T_DataComboFile[[#This Row],[2018/19_Source]]*T_DataComboFile[[#This Row],[G&S reporting level indicator]]","v":0},{"$f":"T_DataComboFile[[#This Row],[2019/20 Main appropriation_Source]]*T_DataComboFile[[#This Row],[G&S reporting level indicator]]","v":0},{"$f":"T_DataComboFile[[#This Row],[2019/20 Adjusted appropriation_Source]]*T_DataComboFile[[#This Row],[G&S reporting level indicator]]","v":0},{"$f":"T_DataComboFile[[#This Row],[2019/20 Revised estimate_Source]]*T_DataComboFile[[#This Row],[G&S reporting level indicator]]","v":0},{"$f":"T_DataComboFile[[#This Row],[2019/20 Preliminary outcome_Source]]*T_DataComboFile[[#This Row],[G&S reporting level indicator]]","v":0},{"$f":"T_DataComboFile[[#This Row],[2020/21 Original_Source]]*T_DataComboFile[[#This Row],[G&S reporting level indicator]]","v":0},{"$f":"T_DataComboFile[[#This Row],[2020/21 SAB_Source]]*T_DataComboFile[[#This Row],[G&S reporting level indicator]]","v":0},{"$f":"T_DataComboFile[[#This Row],[2020/21 Baseline_Source]]*T_DataComboFile[[#This Row],[G&S reporting level indicator]]","v":0},{"$f":"T_DataComboFile[[#This Row],[2021/22 Baseline_Source]]*T_DataComboFile[[#This Row],[G&S reporting level indicator]]","v":0},{"$f":"T_DataComboFile[[#This Row],[2022/23 Baseline_Source]]*T_DataComboFile[[#This Row],[G&S reporting level indicator]]","v":0},{"$f":"T_DataComboFile[[#This Row],[2023/24 Baseline_Source]]*T_DataComboFile[[#This Row],[G&S reporting level indicator]]","v":0},null,null,null,null,null,null,{"$f":"T_DataComboFile[[#This Row],[2021/22 Baseline]]+T_DataComboFile[[#This Row],[2021/22 Reduction]]+T_DataComboFile[[#This Row],[2021/22 Increase]]","v":0},{"$f":"T_DataComboFile[[#This Row],[2022/23 Baseline]]+T_DataComboFile[[#This Row],[2022/23 Reduction]]+T_DataComboFile[[#This Row],[2022/23 Increase]]","v":0},{"$f":"T_DataComboFile[[#This Row],[2023/24 Baseline]]+T_DataComboFile[[#This Row],[2023/24 Reduction]]+T_DataComboFile[[#This Row],[2023/24 Increase]]","v":0}]
[null,null,"2021_22","ENE2020",36,1,3,null,70281,36,1,3,null,"070281","36|01|03",2,2,4,43,43,"02|02|04|43|43","National","Small Business Development","Administration","Corporate Services",null,"Capital","Transfers and subsidies","Provinces and municipalities","Provinces","Provincial Revenue Funds",null,null,null,0,0,0,0,0,0,0,0,0,0,0,0,0,0,null,{"$f":"IF(T_DataComboFile[[#This Row],[G&S reporting level indicator]]=1,$AX$16,\"Not applicable\")","v":"Level 3"},{"$f":"IF(AND($AX$16=\"Level 3\",T_DataComboFile[[#This Row],[Econ3]] = \"Goods and services\"),IF(T_DataComboFile[[#This Row],[Econ4]] = T_DataComboFile[[#This Row],[Econ3]],1,0),IF(AND($AX$16=\"Level 4\",T_DataComboFile[[#This Row],[Econ4]] = \"Goods and services\"),0,1))","v":1},{"$f":"T_DataComboFile[[#This Row],[2016/17_Source]]*T_DataComboFile[[#This Row],[G&S reporting level indicator]]","v":0},{"$f":"T_DataComboFile[[#This Row],[2017/18_Source]]*T_DataComboFile[[#This Row],[G&S reporting level indicator]]","v":0},{"$f":"T_DataComboFile[[#This Row],[2018/19_Source]]*T_DataComboFile[[#This Row],[G&S reporting level indicator]]","v":0},{"$f":"T_DataComboFile[[#This Row],[2019/20 Main appropriation_Source]]*T_DataComboFile[[#This Row],[G&S reporting level indicator]]","v":0},{"$f":"T_DataComboFile[[#This Row],[2019/20 Adjusted appropriation_Source]]*T_DataComboFile[[#This Row],[G&S reporting level indicator]]","v":0},{"$f":"T_DataComboFile[[#This Row],[2019/20 Revised estimate_Source]]*T_DataComboFile[[#This Row],[G&S reporting level indicator]]","v":0},{"$f":"T_DataComboFile[[#This Row],[2019/20 Preliminary outcome_Source]]*T_DataComboFile[[#This Row],[G&S reporting level indicator]]","v":0},{"$f":"T_DataComboFile[[#This Row],[2020/21 Original_Source]]*T_DataComboFile[[#This Row],[G&S reporting level indicator]]","v":0},{"$f":"T_DataComboFile[[#This Row],[2020/21 SAB_Source]]*T_DataComboFile[[#This Row],[G&S reporting level indicator]]","v":0},{"$f":"T_DataComboFile[[#This Row],[2020/21 Baseline_Source]]*T_DataComboFile[[#This Row],[G&S reporting level indicator]]","v":0},{"$f":"T_DataComboFile[[#This Row],[2021/22 Baseline_Source]]*T_DataComboFile[[#This Row],[G&S reporting level indicator]]","v":0},{"$f":"T_DataComboFile[[#This Row],[2022/23 Baseline_Source]]*T_DataComboFile[[#This Row],[G&S reporting level indicator]]","v":0},{"$f":"T_DataComboFile[[#This Row],[2023/24 Baseline_Source]]*T_DataComboFile[[#This Row],[G&S reporting level indicator]]","v":0},null,null,null,null,null,null,{"$f":"T_DataComboFile[[#This Row],[2021/22 Baseline]]+T_DataComboFile[[#This Row],[2021/22 Reduction]]+T_DataComboFile[[#This Row],[2021/22 Increase]]","v":0},{"$f":"T_DataComboFile[[#This Row],[2022/23 Baseline]]+T_DataComboFile[[#This Row],[2022/23 Reduction]]+T_DataComboFile[[#This Row],[2022/23 Increase]]","v":0},{"$f":"T_DataComboFile[[#This Row],[2023/24 Baseline]]+T_DataComboFile[[#This Row],[2023/24 Reduction]]+T_DataComboFile[[#This Row],[2023/24 Increase]]","v":0}]
[null,null,"2021_22","ENE2020",36,1,3,null,70282,36,1,3,null,"070282","36|01|03",2,2,4,44,45,"02|02|04|44|45","National","Small Business Development","Administration","Corporate Services",null,"Capital","Transfers and subsidies","Provinces and municipalities","Municipalities","Municipal bank accounts",null,null,null,0,0,0,0,0,0,0,0,0,0,0,0,0,0,null,{"$f":"IF(T_DataComboFile[[#This Row],[G&S reporting level indicator]]=1,$AX$16,\"Not applicable\")","v":"Level 3"},{"$f":"IF(AND($AX$16=\"Level 3\",T_DataComboFile[[#This Row],[Econ3]] = \"Goods and services\"),IF(T_DataComboFile[[#This Row],[Econ4]] = T_DataComboFile[[#This Row],[Econ3]],1,0),IF(AND($AX$16=\"Level 4\",T_DataComboFile[[#This Row],[Econ4]] = \"Goods and services\"),0,1))","v":1},{"$f":"T_DataComboFile[[#This Row],[2016/17_Source]]*T_DataComboFile[[#This Row],[G&S reporting level indicator]]","v":0},{"$f":"T_DataComboFile[[#This Row],[2017/18_Source]]*T_DataComboFile[[#This Row],[G&S reporting level indicator]]","v":0},{"$f":"T_DataComboFile[[#This Row],[2018/19_Source]]*T_DataComboFile[[#This Row],[G&S reporting level indicator]]","v":0},{"$f":"T_DataComboFile[[#This Row],[2019/20 Main appropriation_Source]]*T_DataComboFile[[#This Row],[G&S reporting level indicator]]","v":0},{"$f":"T_DataComboFile[[#This Row],[2019/20 Adjusted appropriation_Source]]*T_DataComboFile[[#This Row],[G&S reporting level indicator]]","v":0},{"$f":"T_DataComboFile[[#This Row],[2019/20 Revised estimate_Source]]*T_DataComboFile[[#This Row],[G&S reporting level indicator]]","v":0},{"$f":"T_DataComboFile[[#This Row],[2019/20 Preliminary outcome_Source]]*T_DataComboFile[[#This Row],[G&S reporting level indicator]]","v":0},{"$f":"T_DataComboFile[[#This Row],[2020/21 Original_Source]]*T_DataComboFile[[#This Row],[G&S reporting level indicator]]","v":0},{"$f":"T_DataComboFile[[#This Row],[2020/21 SAB_Source]]*T_DataComboFile[[#This Row],[G&S reporting level indicator]]","v":0},{"$f":"T_DataComboFile[[#This Row],[2020/21 Baseline_Source]]*T_DataComboFile[[#This Row],[G&S reporting level indicator]]","v":0},{"$f":"T_DataComboFile[[#This Row],[2021/22 Baseline_Source]]*T_DataComboFile[[#This Row],[G&S reporting level indicator]]","v":0},{"$f":"T_DataComboFile[[#This Row],[2022/23 Baseline_Source]]*T_DataComboFile[[#This Row],[G&S reporting level indicator]]","v":0},{"$f":"T_DataComboFile[[#This Row],[2023/24 Baseline_Source]]*T_DataComboFile[[#This Row],[G&S reporting level indicator]]","v":0},null,null,null,null,null,null,{"$f":"T_DataComboFile[[#This Row],[2021/22 Baseline]]+T_DataComboFile[[#This Row],[2021/22 Reduction]]+T_DataComboFile[[#This Row],[2021/22 Increase]]","v":0},{"$f":"T_DataComboFile[[#This Row],[2022/23 Baseline]]+T_DataComboFile[[#This Row],[2022/23 Reduction]]+T_DataComboFile[[#This Row],[2022/23 Increase]]","v":0},{"$f":"T_DataComboFile[[#This Row],[2023/24 Baseline]]+T_DataComboFile[[#This Row],[2023/24 Reduction]]+T_DataComboFile[[#This Row],[2023/24 Increase]]","v":0}]
[null,null,"2021_22","ENE2020",36,1,3,null,70283,36,1,3,null,"070283","36|01|03",2,2,5,46,48,"02|02|05|46|48","National","Small Business Development","Administration","Corporate Services",null,"Capital","Transfers and subsidies","Departmental agencies and accounts","Departmental agencies (non-business entities)","Departmental agencies (non-business entities)",null,null,null,0,0,0,0,0,0,0,0,0,0,0,0,0,0,null,{"$f":"IF(T_DataComboFile[[#This Row],[G&S reporting level indicator]]=1,$AX$16,\"Not applicable\")","v":"Level 3"},{"$f":"IF(AND($AX$16=\"Level 3\",T_DataComboFile[[#This Row],[Econ3]] = \"Goods and services\"),IF(T_DataComboFile[[#This Row],[Econ4]] = T_DataComboFile[[#This Row],[Econ3]],1,0),IF(AND($AX$16=\"Level 4\",T_DataComboFile[[#This Row],[Econ4]] = \"Goods and services\"),0,1))","v":1},{"$f":"T_DataComboFile[[#This Row],[2016/17_Source]]*T_DataComboFile[[#This Row],[G&S reporting level indicator]]","v":0},{"$f":"T_DataComboFile[[#This Row],[2017/18_Source]]*T_DataComboFile[[#This Row],[G&S reporting level indicator]]","v":0},{"$f":"T_DataComboFile[[#This Row],[2018/19_Source]]*T_DataComboFile[[#This Row],[G&S reporting level indicator]]","v":0},{"$f":"T_DataComboFile[[#This Row],[2019/20 Main appropriation_Source]]*T_DataComboFile[[#This Row],[G&S reporting level indicator]]","v":0},{"$f":"T_DataComboFile[[#This Row],[2019/20 Adjusted appropriation_Source]]*T_DataComboFile[[#This Row],[G&S reporting level indicator]]","v":0},{"$f":"T_DataComboFile[[#This Row],[2019/20 Revised estimate_Source]]*T_DataComboFile[[#This Row],[G&S reporting level indicator]]","v":0},{"$f":"T_DataComboFile[[#This Row],[2019/20 Preliminary outcome_Source]]*T_DataComboFile[[#This Row],[G&S reporting level indicator]]","v":0},{"$f":"T_DataComboFile[[#This Row],[2020/21 Original_Source]]*T_DataComboFile[[#This Row],[G&S reporting level indicator]]","v":0},{"$f":"T_DataComboFile[[#This Row],[2020/21 SAB_Source]]*T_DataComboFile[[#This Row],[G&S reporting level indicator]]","v":0},{"$f":"T_DataComboFile[[#This Row],[2020/21 Baseline_Source]]*T_DataComboFile[[#This Row],[G&S reporting level indicator]]","v":0},{"$f":"T_DataComboFile[[#This Row],[2021/22 Baseline_Source]]*T_DataComboFile[[#This Row],[G&S reporting level indicator]]","v":0},{"$f":"T_DataComboFile[[#This Row],[2022/23 Baseline_Source]]*T_DataComboFile[[#This Row],[G&S reporting level indicator]]","v":0},{"$f":"T_DataComboFile[[#This Row],[2023/24 Baseline_Source]]*T_DataComboFile[[#This Row],[G&S reporting level indicator]]","v":0},null,null,null,null,null,null,{"$f":"T_DataComboFile[[#This Row],[2021/22 Baseline]]+T_DataComboFile[[#This Row],[2021/22 Reduction]]+T_DataComboFile[[#This Row],[2021/22 Increase]]","v":0},{"$f":"T_DataComboFile[[#This Row],[2022/23 Baseline]]+T_DataComboFile[[#This Row],[2022/23 Reduction]]+T_DataComboFile[[#This Row],[2022/23 Increase]]","v":0},{"$f":"T_DataComboFile[[#This Row],[2023/24 Baseline]]+T_DataComboFile[[#This Row],[2023/24 Reduction]]+T_DataComboFile[[#This Row],[2023/24 Increase]]","v":0}]
[null,null,"2021_22","ENE2020",36,1,3,null,70284,36,1,3,null,"070284","36|01|03",2,2,6,47,49,"02|02|06|47|49","National","Small Business Development","Administration","Corporate Services",null,"Capital","Transfers and subsidies","Higher education institutions","Higher education institutions","Higher education institutions",null,null,null,0,0,0,0,0,0,0,0,0,0,0,0,0,0,null,{"$f":"IF(T_DataComboFile[[#This Row],[G&S reporting level indicator]]=1,$AX$16,\"Not applicable\")","v":"Level 3"},{"$f":"IF(AND($AX$16=\"Level 3\",T_DataComboFile[[#This Row],[Econ3]] = \"Goods and services\"),IF(T_DataComboFile[[#This Row],[Econ4]] = T_DataComboFile[[#This Row],[Econ3]],1,0),IF(AND($AX$16=\"Level 4\",T_DataComboFile[[#This Row],[Econ4]] = \"Goods and services\"),0,1))","v":1},{"$f":"T_DataComboFile[[#This Row],[2016/17_Source]]*T_DataComboFile[[#This Row],[G&S reporting level indicator]]","v":0},{"$f":"T_DataComboFile[[#This Row],[2017/18_Source]]*T_DataComboFile[[#This Row],[G&S reporting level indicator]]","v":0},{"$f":"T_DataComboFile[[#This Row],[2018/19_Source]]*T_DataComboFile[[#This Row],[G&S reporting level indicator]]","v":0},{"$f":"T_DataComboFile[[#This Row],[2019/20 Main appropriation_Source]]*T_DataComboFile[[#This Row],[G&S reporting level indicator]]","v":0},{"$f":"T_DataComboFile[[#This Row],[2019/20 Adjusted appropriation_Source]]*T_DataComboFile[[#This Row],[G&S reporting level indicator]]","v":0},{"$f":"T_DataComboFile[[#This Row],[2019/20 Revised estimate_Source]]*T_DataComboFile[[#This Row],[G&S reporting level indicator]]","v":0},{"$f":"T_DataComboFile[[#This Row],[2019/20 Preliminary outcome_Source]]*T_DataComboFile[[#This Row],[G&S reporting level indicator]]","v":0},{"$f":"T_DataComboFile[[#This Row],[2020/21 Original_Source]]*T_DataComboFile[[#This Row],[G&S reporting level indicator]]","v":0},{"$f":"T_DataComboFile[[#This Row],[2020/21 SAB_Source]]*T_DataComboFile[[#This Row],[G&S reporting level indicator]]","v":0},{"$f":"T_DataComboFile[[#This Row],[2020/21 Baseline_Source]]*T_DataComboFile[[#This Row],[G&S reporting level indicator]]","v":0},{"$f":"T_DataComboFile[[#This Row],[2021/22 Baseline_Source]]*T_DataComboFile[[#This Row],[G&S reporting level indicator]]","v":0},{"$f":"T_DataComboFile[[#This Row],[2022/23 Baseline_Source]]*T_DataComboFile[[#This Row],[G&S reporting level indicator]]","v":0},{"$f":"T_DataComboFile[[#This Row],[2023/24 Baseline_Source]]*T_DataComboFile[[#This Row],[G&S reporting level indicator]]","v":0},null,null,null,null,null,null,{"$f":"T_DataComboFile[[#This Row],[2021/22 Baseline]]+T_DataComboFile[[#This Row],[2021/22 Reduction]]+T_DataComboFile[[#This Row],[2021/22 Increase]]","v":0},{"$f":"T_DataComboFile[[#This Row],[2022/23 Baseline]]+T_DataComboFile[[#This Row],[2022/23 Reduction]]+T_DataComboFile[[#This Row],[2022/23 Increase]]","v":0},{"$f":"T_DataComboFile[[#This Row],[2023/24 Baseline]]+T_DataComboFile[[#This Row],[2023/24 Reduction]]+T_DataComboFile[[#This Row],[2023/24 Increase]]","v":0}]
[null,null,"2021_22","ENE2020",36,1,3,null,70285,36,1,3,null,"070285","36|01|03",2,2,7,48,50,"02|02|07|48|50","National","Small Business Development","Administration","Corporate Services",null,"Capital","Transfers and subsidies","Foreign governments and international organisations","Foreign governments and international organisations","Foreign governments and international organisations",null,null,null,0,0,0,0,0,0,0,0,0,0,0,0,0,0,null,{"$f":"IF(T_DataComboFile[[#This Row],[G&S reporting level indicator]]=1,$AX$16,\"Not applicable\")","v":"Level 3"},{"$f":"IF(AND($AX$16=\"Level 3\",T_DataComboFile[[#This Row],[Econ3]] = \"Goods and services\"),IF(T_DataComboFile[[#This Row],[Econ4]] = T_DataComboFile[[#This Row],[Econ3]],1,0),IF(AND($AX$16=\"Level 4\",T_DataComboFile[[#This Row],[Econ4]] = \"Goods and services\"),0,1))","v":1},{"$f":"T_DataComboFile[[#This Row],[2016/17_Source]]*T_DataComboFile[[#This Row],[G&S reporting level indicator]]","v":0},{"$f":"T_DataComboFile[[#This Row],[2017/18_Source]]*T_DataComboFile[[#This Row],[G&S reporting level indicator]]","v":0},{"$f":"T_DataComboFile[[#This Row],[2018/19_Source]]*T_DataComboFile[[#This Row],[G&S reporting level indicator]]","v":0},{"$f":"T_DataComboFile[[#This Row],[2019/20 Main appropriation_Source]]*T_DataComboFile[[#This Row],[G&S reporting level indicator]]","v":0},{"$f":"T_DataComboFile[[#This Row],[2019/20 Adjusted appropriation_Source]]*T_DataComboFile[[#This Row],[G&S reporting level indicator]]","v":0},{"$f":"T_DataComboFile[[#This Row],[2019/20 Revised estimate_Source]]*T_DataComboFile[[#This Row],[G&S reporting level indicator]]","v":0},{"$f":"T_DataComboFile[[#This Row],[2019/20 Preliminary outcome_Source]]*T_DataComboFile[[#This Row],[G&S reporting level indicator]]","v":0},{"$f":"T_DataComboFile[[#This Row],[2020/21 Original_Source]]*T_DataComboFile[[#This Row],[G&S reporting level indicator]]","v":0},{"$f":"T_DataComboFile[[#This Row],[2020/21 SAB_Source]]*T_DataComboFile[[#This Row],[G&S reporting level indicator]]","v":0},{"$f":"T_DataComboFile[[#This Row],[2020/21 Baseline_Source]]*T_DataComboFile[[#This Row],[G&S reporting level indicator]]","v":0},{"$f":"T_DataComboFile[[#This Row],[2021/22 Baseline_Source]]*T_DataComboFile[[#This Row],[G&S reporting level indicator]]","v":0},{"$f":"T_DataComboFile[[#This Row],[2022/23 Baseline_Source]]*T_DataComboFile[[#This Row],[G&S reporting level indicator]]","v":0},{"$f":"T_DataComboFile[[#This Row],[2023/24 Baseline_Source]]*T_DataComboFile[[#This Row],[G&S reporting level indicator]]","v":0},null,null,null,null,null,null,{"$f":"T_DataComboFile[[#This Row],[2021/22 Baseline]]+T_DataComboFile[[#This Row],[2021/22 Reduction]]+T_DataComboFile[[#This Row],[2021/22 Increase]]","v":0},{"$f":"T_DataComboFile[[#This Row],[2022/23 Baseline]]+T_DataComboFile[[#This Row],[2022/23 Reduction]]+T_DataComboFile[[#This Row],[2022/23 Increase]]","v":0},{"$f":"T_DataComboFile[[#This Row],[2023/24 Baseline]]+T_DataComboFile[[#This Row],[2023/24 Reduction]]+T_DataComboFile[[#This Row],[2023/24 Increase]]","v":0}]
[null,null,"2021_22","ENE2020",36,1,3,null,70286,36,1,3,null,"070286","36|01|03",2,2,8,49,51,"02|02|08|49|51","National","Small Business Development","Administration","Corporate Services",null,"Capital","Transfers and subsidies","Public corporations and private enterprises","Public corporations","Subsidies on products and production (pc)",null,null,null,0,0,0,0,0,0,0,0,0,0,0,0,0,0,null,{"$f":"IF(T_DataComboFile[[#This Row],[G&S reporting level indicator]]=1,$AX$16,\"Not applicable\")","v":"Level 3"},{"$f":"IF(AND($AX$16=\"Level 3\",T_DataComboFile[[#This Row],[Econ3]] = \"Goods and services\"),IF(T_DataComboFile[[#This Row],[Econ4]] = T_DataComboFile[[#This Row],[Econ3]],1,0),IF(AND($AX$16=\"Level 4\",T_DataComboFile[[#This Row],[Econ4]] = \"Goods and services\"),0,1))","v":1},{"$f":"T_DataComboFile[[#This Row],[2016/17_Source]]*T_DataComboFile[[#This Row],[G&S reporting level indicator]]","v":0},{"$f":"T_DataComboFile[[#This Row],[2017/18_Source]]*T_DataComboFile[[#This Row],[G&S reporting level indicator]]","v":0},{"$f":"T_DataComboFile[[#This Row],[2018/19_Source]]*T_DataComboFile[[#This Row],[G&S reporting level indicator]]","v":0},{"$f":"T_DataComboFile[[#This Row],[2019/20 Main appropriation_Source]]*T_DataComboFile[[#This Row],[G&S reporting level indicator]]","v":0},{"$f":"T_DataComboFile[[#This Row],[2019/20 Adjusted appropriation_Source]]*T_DataComboFile[[#This Row],[G&S reporting level indicator]]","v":0},{"$f":"T_DataComboFile[[#This Row],[2019/20 Revised estimate_Source]]*T_DataComboFile[[#This Row],[G&S reporting level indicator]]","v":0},{"$f":"T_DataComboFile[[#This Row],[2019/20 Preliminary outcome_Source]]*T_DataComboFile[[#This Row],[G&S reporting level indicator]]","v":0},{"$f":"T_DataComboFile[[#This Row],[2020/21 Original_Source]]*T_DataComboFile[[#This Row],[G&S reporting level indicator]]","v":0},{"$f":"T_DataComboFile[[#This Row],[2020/21 SAB_Source]]*T_DataComboFile[[#This Row],[G&S reporting level indicator]]","v":0},{"$f":"T_DataComboFile[[#This Row],[2020/21 Baseline_Source]]*T_DataComboFile[[#This Row],[G&S reporting level indicator]]","v":0},{"$f":"T_DataComboFile[[#This Row],[2021/22 Baseline_Source]]*T_DataComboFile[[#This Row],[G&S reporting level indicator]]","v":0},{"$f":"T_DataComboFile[[#This Row],[2022/23 Baseline_Source]]*T_DataComboFile[[#This Row],[G&S reporting level indicator]]","v":0},{"$f":"T_DataComboFile[[#This Row],[2023/24 Baseline_Source]]*T_DataComboFile[[#This Row],[G&S reporting level indicator]]","v":0},null,null,null,null,null,null,{"$f":"T_DataComboFile[[#This Row],[2021/22 Baseline]]+T_DataComboFile[[#This Row],[2021/22 Reduction]]+T_DataComboFile[[#This Row],[2021/22 Increase]]","v":0},{"$f":"T_DataComboFile[[#This Row],[2022/23 Baseline]]+T_DataComboFile[[#This Row],[2022/23 Reduction]]+T_DataComboFile[[#This Row],[2022/23 Increase]]","v":0},{"$f":"T_DataComboFile[[#This Row],[2023/24 Baseline]]+T_DataComboFile[[#This Row],[2023/24 Reduction]]+T_DataComboFile[[#This Row],[2023/24 Increase]]","v":0}]
[null,null,"2021_22","ENE2020",36,1,3,null,70287,36,1,3,null,"070287","36|01|03",2,2,8,49,52,"02|02|08|49|52","National","Small Business Development","Administration","Corporate Services",null,"Capital","Transfers and subsidies","Public corporations and private enterprises","Public corporations","Other transfers to public corporations",null,null,null,0,0,0,0,0,0,0,0,0,0,0,0,0,0,null,{"$f":"IF(T_DataComboFile[[#This Row],[G&S reporting level indicator]]=1,$AX$16,\"Not applicable\")","v":"Level 3"},{"$f":"IF(AND($AX$16=\"Level 3\",T_DataComboFile[[#This Row],[Econ3]] = \"Goods and services\"),IF(T_DataComboFile[[#This Row],[Econ4]] = T_DataComboFile[[#This Row],[Econ3]],1,0),IF(AND($AX$16=\"Level 4\",T_DataComboFile[[#This Row],[Econ4]] = \"Goods and services\"),0,1))","v":1},{"$f":"T_DataComboFile[[#This Row],[2016/17_Source]]*T_DataComboFile[[#This Row],[G&S reporting level indicator]]","v":0},{"$f":"T_DataComboFile[[#This Row],[2017/18_Source]]*T_DataComboFile[[#This Row],[G&S reporting level indicator]]","v":0},{"$f":"T_DataComboFile[[#This Row],[2018/19_Source]]*T_DataComboFile[[#This Row],[G&S reporting level indicator]]","v":0},{"$f":"T_DataComboFile[[#This Row],[2019/20 Main appropriation_Source]]*T_DataComboFile[[#This Row],[G&S reporting level indicator]]","v":0},{"$f":"T_DataComboFile[[#This Row],[2019/20 Adjusted appropriation_Source]]*T_DataComboFile[[#This Row],[G&S reporting level indicator]]","v":0},{"$f":"T_DataComboFile[[#This Row],[2019/20 Revised estimate_Source]]*T_DataComboFile[[#This Row],[G&S reporting level indicator]]","v":0},{"$f":"T_DataComboFile[[#This Row],[2019/20 Preliminary outcome_Source]]*T_DataComboFile[[#This Row],[G&S reporting level indicator]]","v":0},{"$f":"T_DataComboFile[[#This Row],[2020/21 Original_Source]]*T_DataComboFile[[#This Row],[G&S reporting level indicator]]","v":0},{"$f":"T_DataComboFile[[#This Row],[2020/21 SAB_Source]]*T_DataComboFile[[#This Row],[G&S reporting level indicator]]","v":0},{"$f":"T_DataComboFile[[#This Row],[2020/21 Baseline_Source]]*T_DataComboFile[[#This Row],[G&S reporting level indicator]]","v":0},{"$f":"T_DataComboFile[[#This Row],[2021/22 Baseline_Source]]*T_DataComboFile[[#This Row],[G&S reporting level indicator]]","v":0},{"$f":"T_DataComboFile[[#This Row],[2022/23 Baseline_Source]]*T_DataComboFile[[#This Row],[G&S reporting level indicator]]","v":0},{"$f":"T_DataComboFile[[#This Row],[2023/24 Baseline_Source]]*T_DataComboFile[[#This Row],[G&S reporting level indicator]]","v":0},null,null,null,null,null,null,{"$f":"T_DataComboFile[[#This Row],[2021/22 Baseline]]+T_DataComboFile[[#This Row],[2021/22 Reduction]]+T_DataComboFile[[#This Row],[2021/22 Increase]]","v":0},{"$f":"T_DataComboFile[[#This Row],[2022/23 Baseline]]+T_DataComboFile[[#This Row],[2022/23 Reduction]]+T_DataComboFile[[#This Row],[2022/23 Increase]]","v":0},{"$f":"T_DataComboFile[[#This Row],[2023/24 Baseline]]+T_DataComboFile[[#This Row],[2023/24 Reduction]]+T_DataComboFile[[#This Row],[2023/24 Increase]]","v":0}]
[null,null,"2021_22","ENE2020",36,1,3,null,70288,36,1,3,null,"070288","36|01|03",2,2,8,50,54,"02|02|08|50|54","National","Small Business Development","Administration","Corporate Services",null,"Capital","Transfers and subsidies","Public corporations and private enterprises","Private enterprises","Other transfers to private enterprises",null,null,null,0,0,0,0,0,0,0,0,0,0,0,0,0,0,null,{"$f":"IF(T_DataComboFile[[#This Row],[G&S reporting level indicator]]=1,$AX$16,\"Not applicable\")","v":"Level 3"},{"$f":"IF(AND($AX$16=\"Level 3\",T_DataComboFile[[#This Row],[Econ3]] = \"Goods and services\"),IF(T_DataComboFile[[#This Row],[Econ4]] = T_DataComboFile[[#This Row],[Econ3]],1,0),IF(AND($AX$16=\"Level 4\",T_DataComboFile[[#This Row],[Econ4]] = \"Goods and services\"),0,1))","v":1},{"$f":"T_DataComboFile[[#This Row],[2016/17_Source]]*T_DataComboFile[[#This Row],[G&S reporting level indicator]]","v":0},{"$f":"T_DataComboFile[[#This Row],[2017/18_Source]]*T_DataComboFile[[#This Row],[G&S reporting level indicator]]","v":0},{"$f":"T_DataComboFile[[#This Row],[2018/19_Source]]*T_DataComboFile[[#This Row],[G&S reporting level indicator]]","v":0},{"$f":"T_DataComboFile[[#This Row],[2019/20 Main appropriation_Source]]*T_DataComboFile[[#This Row],[G&S reporting level indicator]]","v":0},{"$f":"T_DataComboFile[[#This Row],[2019/20 Adjusted appropriation_Source]]*T_DataComboFile[[#This Row],[G&S reporting level indicator]]","v":0},{"$f":"T_DataComboFile[[#This Row],[2019/20 Revised estimate_Source]]*T_DataComboFile[[#This Row],[G&S reporting level indicator]]","v":0},{"$f":"T_DataComboFile[[#This Row],[2019/20 Preliminary outcome_Source]]*T_DataComboFile[[#This Row],[G&S reporting level indicator]]","v":0},{"$f":"T_DataComboFile[[#This Row],[2020/21 Original_Source]]*T_DataComboFile[[#This Row],[G&S reporting level indicator]]","v":0},{"$f":"T_DataComboFile[[#This Row],[2020/21 SAB_Source]]*T_DataComboFile[[#This Row],[G&S reporting level indicator]]","v":0},{"$f":"T_DataComboFile[[#This Row],[2020/21 Baseline_Source]]*T_DataComboFile[[#This Row],[G&S reporting level indicator]]","v":0},{"$f":"T_DataComboFile[[#This Row],[2021/22 Baseline_Source]]*T_DataComboFile[[#This Row],[G&S reporting level indicator]]","v":0},{"$f":"T_DataComboFile[[#This Row],[2022/23 Baseline_Source]]*T_DataComboFile[[#This Row],[G&S reporting level indicator]]","v":0},{"$f":"T_DataComboFile[[#This Row],[2023/24 Baseline_Source]]*T_DataComboFile[[#This Row],[G&S reporting level indicator]]","v":0},null,null,null,null,null,null,{"$f":"T_DataComboFile[[#This Row],[2021/22 Baseline]]+T_DataComboFile[[#This Row],[2021/22 Reduction]]+T_DataComboFile[[#This Row],[2021/22 Increase]]","v":0},{"$f":"T_DataComboFile[[#This Row],[2022/23 Baseline]]+T_DataComboFile[[#This Row],[2022/23 Reduction]]+T_DataComboFile[[#This Row],[2022/23 Increase]]","v":0},{"$f":"T_DataComboFile[[#This Row],[2023/24 Baseline]]+T_DataComboFile[[#This Row],[2023/24 Reduction]]+T_DataComboFile[[#This Row],[2023/24 Increase]]","v":0}]
[null,null,"2021_22","ENE2020",36,1,3,null,70289,36,1,3,null,"070289","36|01|03",2,2,9,51,55,"02|02|09|51|55","National","Small Business Development","Administration","Corporate Services",null,"Capital","Transfers and subsidies","Non-profit institutions","Non-profit institutions","Non-profit institutions",null,null,null,0,0,0,0,0,0,0,0,0,0,0,0,0,0,null,{"$f":"IF(T_DataComboFile[[#This Row],[G&S reporting level indicator]]=1,$AX$16,\"Not applicable\")","v":"Level 3"},{"$f":"IF(AND($AX$16=\"Level 3\",T_DataComboFile[[#This Row],[Econ3]] = \"Goods and services\"),IF(T_DataComboFile[[#This Row],[Econ4]] = T_DataComboFile[[#This Row],[Econ3]],1,0),IF(AND($AX$16=\"Level 4\",T_DataComboFile[[#This Row],[Econ4]] = \"Goods and services\"),0,1))","v":1},{"$f":"T_DataComboFile[[#This Row],[2016/17_Source]]*T_DataComboFile[[#This Row],[G&S reporting level indicator]]","v":0},{"$f":"T_DataComboFile[[#This Row],[2017/18_Source]]*T_DataComboFile[[#This Row],[G&S reporting level indicator]]","v":0},{"$f":"T_DataComboFile[[#This Row],[2018/19_Source]]*T_DataComboFile[[#This Row],[G&S reporting level indicator]]","v":0},{"$f":"T_DataComboFile[[#This Row],[2019/20 Main appropriation_Source]]*T_DataComboFile[[#This Row],[G&S reporting level indicator]]","v":0},{"$f":"T_DataComboFile[[#This Row],[2019/20 Adjusted appropriation_Source]]*T_DataComboFile[[#This Row],[G&S reporting level indicator]]","v":0},{"$f":"T_DataComboFile[[#This Row],[2019/20 Revised estimate_Source]]*T_DataComboFile[[#This Row],[G&S reporting level indicator]]","v":0},{"$f":"T_DataComboFile[[#This Row],[2019/20 Preliminary outcome_Source]]*T_DataComboFile[[#This Row],[G&S reporting level indicator]]","v":0},{"$f":"T_DataComboFile[[#This Row],[2020/21 Original_Source]]*T_DataComboFile[[#This Row],[G&S reporting level indicator]]","v":0},{"$f":"T_DataComboFile[[#This Row],[2020/21 SAB_Source]]*T_DataComboFile[[#This Row],[G&S reporting level indicator]]","v":0},{"$f":"T_DataComboFile[[#This Row],[2020/21 Baseline_Source]]*T_DataComboFile[[#This Row],[G&S reporting level indicator]]","v":0},{"$f":"T_DataComboFile[[#This Row],[2021/22 Baseline_Source]]*T_DataComboFile[[#This Row],[G&S reporting level indicator]]","v":0},{"$f":"T_DataComboFile[[#This Row],[2022/23 Baseline_Source]]*T_DataComboFile[[#This Row],[G&S reporting level indicator]]","v":0},{"$f":"T_DataComboFile[[#This Row],[2023/24 Baseline_Source]]*T_DataComboFile[[#This Row],[G&S reporting level indicator]]","v":0},null,null,null,null,null,null,{"$f":"T_DataComboFile[[#This Row],[2021/22 Baseline]]+T_DataComboFile[[#This Row],[2021/22 Reduction]]+T_DataComboFile[[#This Row],[2021/22 Increase]]","v":0},{"$f":"T_DataComboFile[[#This Row],[2022/23 Baseline]]+T_DataComboFile[[#This Row],[2022/23 Reduction]]+T_DataComboFile[[#This Row],[2022/23 Increase]]","v":0},{"$f":"T_DataComboFile[[#This Row],[2023/24 Baseline]]+T_DataComboFile[[#This Row],[2023/24 Reduction]]+T_DataComboFile[[#This Row],[2023/24 Increase]]","v":0}]
[null,null,"2021_22","ENE2020",36,1,3,null,70290,36,1,3,null,"070290","36|01|03",2,2,10,53,57,"02|02|10|53|57","National","Small Business Development","Administration","Corporate Services",null,"Capital","Transfers and subsidies","Households","Other transfers to households","Other transfers to households",null,null,null,0,0,0,0,0,0,0,0,0,0,0,0,0,0,null,{"$f":"IF(T_DataComboFile[[#This Row],[G&S reporting level indicator]]=1,$AX$16,\"Not applicable\")","v":"Level 3"},{"$f":"IF(AND($AX$16=\"Level 3\",T_DataComboFile[[#This Row],[Econ3]] = \"Goods and services\"),IF(T_DataComboFile[[#This Row],[Econ4]] = T_DataComboFile[[#This Row],[Econ3]],1,0),IF(AND($AX$16=\"Level 4\",T_DataComboFile[[#This Row],[Econ4]] = \"Goods and services\"),0,1))","v":1},{"$f":"T_DataComboFile[[#This Row],[2016/17_Source]]*T_DataComboFile[[#This Row],[G&S reporting level indicator]]","v":0},{"$f":"T_DataComboFile[[#This Row],[2017/18_Source]]*T_DataComboFile[[#This Row],[G&S reporting level indicator]]","v":0},{"$f":"T_DataComboFile[[#This Row],[2018/19_Source]]*T_DataComboFile[[#This Row],[G&S reporting level indicator]]","v":0},{"$f":"T_DataComboFile[[#This Row],[2019/20 Main appropriation_Source]]*T_DataComboFile[[#This Row],[G&S reporting level indicator]]","v":0},{"$f":"T_DataComboFile[[#This Row],[2019/20 Adjusted appropriation_Source]]*T_DataComboFile[[#This Row],[G&S reporting level indicator]]","v":0},{"$f":"T_DataComboFile[[#This Row],[2019/20 Revised estimate_Source]]*T_DataComboFile[[#This Row],[G&S reporting level indicator]]","v":0},{"$f":"T_DataComboFile[[#This Row],[2019/20 Preliminary outcome_Source]]*T_DataComboFile[[#This Row],[G&S reporting level indicator]]","v":0},{"$f":"T_DataComboFile[[#This Row],[2020/21 Original_Source]]*T_DataComboFile[[#This Row],[G&S reporting level indicator]]","v":0},{"$f":"T_DataComboFile[[#This Row],[2020/21 SAB_Source]]*T_DataComboFile[[#This Row],[G&S reporting level indicator]]","v":0},{"$f":"T_DataComboFile[[#This Row],[2020/21 Baseline_Source]]*T_DataComboFile[[#This Row],[G&S reporting level indicator]]","v":0},{"$f":"T_DataComboFile[[#This Row],[2021/22 Baseline_Source]]*T_DataComboFile[[#This Row],[G&S reporting level indicator]]","v":0},{"$f":"T_DataComboFile[[#This Row],[2022/23 Baseline_Source]]*T_DataComboFile[[#This Row],[G&S reporting level indicator]]","v":0},{"$f":"T_DataComboFile[[#This Row],[2023/24 Baseline_Source]]*T_DataComboFile[[#This Row],[G&S reporting level indicator]]","v":0},null,null,null,null,null,null,{"$f":"T_DataComboFile[[#This Row],[2021/22 Baseline]]+T_DataComboFile[[#This Row],[2021/22 Reduction]]+T_DataComboFile[[#This Row],[2021/22 Increase]]","v":0},{"$f":"T_DataComboFile[[#This Row],[2022/23 Baseline]]+T_DataComboFile[[#This Row],[2022/23 Reduction]]+T_DataComboFile[[#This Row],[2022/23 Increase]]","v":0},{"$f":"T_DataComboFile[[#This Row],[2023/24 Baseline]]+T_DataComboFile[[#This Row],[2023/24 Reduction]]+T_DataComboFile[[#This Row],[2023/24 Increase]]","v":0}]
[null,null,"2021_22","ENE2020",36,1,3,null,70291,36,1,3,null,"070291","36|01|03",2,3,11,54,58,"02|03|11|54|58","National","Small Business Development","Administration","Corporate Services",null,"Capital","Payments for capital assets","Buildings and other fixed structures","Buildings","Buildings",null,null,null,0,0,0,0,0,0,0,0,0,0,0,0,0,0,null,{"$f":"IF(T_DataComboFile[[#This Row],[G&S reporting level indicator]]=1,$AX$16,\"Not applicable\")","v":"Level 3"},{"$f":"IF(AND($AX$16=\"Level 3\",T_DataComboFile[[#This Row],[Econ3]] = \"Goods and services\"),IF(T_DataComboFile[[#This Row],[Econ4]] = T_DataComboFile[[#This Row],[Econ3]],1,0),IF(AND($AX$16=\"Level 4\",T_DataComboFile[[#This Row],[Econ4]] = \"Goods and services\"),0,1))","v":1},{"$f":"T_DataComboFile[[#This Row],[2016/17_Source]]*T_DataComboFile[[#This Row],[G&S reporting level indicator]]","v":0},{"$f":"T_DataComboFile[[#This Row],[2017/18_Source]]*T_DataComboFile[[#This Row],[G&S reporting level indicator]]","v":0},{"$f":"T_DataComboFile[[#This Row],[2018/19_Source]]*T_DataComboFile[[#This Row],[G&S reporting level indicator]]","v":0},{"$f":"T_DataComboFile[[#This Row],[2019/20 Main appropriation_Source]]*T_DataComboFile[[#This Row],[G&S reporting level indicator]]","v":0},{"$f":"T_DataComboFile[[#This Row],[2019/20 Adjusted appropriation_Source]]*T_DataComboFile[[#This Row],[G&S reporting level indicator]]","v":0},{"$f":"T_DataComboFile[[#This Row],[2019/20 Revised estimate_Source]]*T_DataComboFile[[#This Row],[G&S reporting level indicator]]","v":0},{"$f":"T_DataComboFile[[#This Row],[2019/20 Preliminary outcome_Source]]*T_DataComboFile[[#This Row],[G&S reporting level indicator]]","v":0},{"$f":"T_DataComboFile[[#This Row],[2020/21 Original_Source]]*T_DataComboFile[[#This Row],[G&S reporting level indicator]]","v":0},{"$f":"T_DataComboFile[[#This Row],[2020/21 SAB_Source]]*T_DataComboFile[[#This Row],[G&S reporting level indicator]]","v":0},{"$f":"T_DataComboFile[[#This Row],[2020/21 Baseline_Source]]*T_DataComboFile[[#This Row],[G&S reporting level indicator]]","v":0},{"$f":"T_DataComboFile[[#This Row],[2021/22 Baseline_Source]]*T_DataComboFile[[#This Row],[G&S reporting level indicator]]","v":0},{"$f":"T_DataComboFile[[#This Row],[2022/23 Baseline_Source]]*T_DataComboFile[[#This Row],[G&S reporting level indicator]]","v":0},{"$f":"T_DataComboFile[[#This Row],[2023/24 Baseline_Source]]*T_DataComboFile[[#This Row],[G&S reporting level indicator]]","v":0},null,null,null,null,null,null,{"$f":"T_DataComboFile[[#This Row],[2021/22 Baseline]]+T_DataComboFile[[#This Row],[2021/22 Reduction]]+T_DataComboFile[[#This Row],[2021/22 Increase]]","v":0},{"$f":"T_DataComboFile[[#This Row],[2022/23 Baseline]]+T_DataComboFile[[#This Row],[2022/23 Reduction]]+T_DataComboFile[[#This Row],[2022/23 Increase]]","v":0},{"$f":"T_DataComboFile[[#This Row],[2023/24 Baseline]]+T_DataComboFile[[#This Row],[2023/24 Reduction]]+T_DataComboFile[[#This Row],[2023/24 Increase]]","v":0}]
[null,null,"2021_22","ENE2020",36,1,3,null,70292,36,1,3,null,"070292","36|01|03",2,3,11,55,59,"02|03|11|55|59","National","Small Business Development","Administration","Corporate Services",null,"Capital","Payments for capital assets","Buildings and other fixed structures","Other fixed structures","Other fixed structures",null,null,null,0,0,0,0,0,0,0,0,0,0,0,0,0,0,null,{"$f":"IF(T_DataComboFile[[#This Row],[G&S reporting level indicator]]=1,$AX$16,\"Not applicable\")","v":"Level 3"},{"$f":"IF(AND($AX$16=\"Level 3\",T_DataComboFile[[#This Row],[Econ3]] = \"Goods and services\"),IF(T_DataComboFile[[#This Row],[Econ4]] = T_DataComboFile[[#This Row],[Econ3]],1,0),IF(AND($AX$16=\"Level 4\",T_DataComboFile[[#This Row],[Econ4]] = \"Goods and services\"),0,1))","v":1},{"$f":"T_DataComboFile[[#This Row],[2016/17_Source]]*T_DataComboFile[[#This Row],[G&S reporting level indicator]]","v":0},{"$f":"T_DataComboFile[[#This Row],[2017/18_Source]]*T_DataComboFile[[#This Row],[G&S reporting level indicator]]","v":0},{"$f":"T_DataComboFile[[#This Row],[2018/19_Source]]*T_DataComboFile[[#This Row],[G&S reporting level indicator]]","v":0},{"$f":"T_DataComboFile[[#This Row],[2019/20 Main appropriation_Source]]*T_DataComboFile[[#This Row],[G&S reporting level indicator]]","v":0},{"$f":"T_DataComboFile[[#This Row],[2019/20 Adjusted appropriation_Source]]*T_DataComboFile[[#This Row],[G&S reporting level indicator]]","v":0},{"$f":"T_DataComboFile[[#This Row],[2019/20 Revised estimate_Source]]*T_DataComboFile[[#This Row],[G&S reporting level indicator]]","v":0},{"$f":"T_DataComboFile[[#This Row],[2019/20 Preliminary outcome_Source]]*T_DataComboFile[[#This Row],[G&S reporting level indicator]]","v":0},{"$f":"T_DataComboFile[[#This Row],[2020/21 Original_Source]]*T_DataComboFile[[#This Row],[G&S reporting level indicator]]","v":0},{"$f":"T_DataComboFile[[#This Row],[2020/21 SAB_Source]]*T_DataComboFile[[#This Row],[G&S reporting level indicator]]","v":0},{"$f":"T_DataComboFile[[#This Row],[2020/21 Baseline_Source]]*T_DataComboFile[[#This Row],[G&S reporting level indicator]]","v":0},{"$f":"T_DataComboFile[[#This Row],[2021/22 Baseline_Source]]*T_DataComboFile[[#This Row],[G&S reporting level indicator]]","v":0},{"$f":"T_DataComboFile[[#This Row],[2022/23 Baseline_Source]]*T_DataComboFile[[#This Row],[G&S reporting level indicator]]","v":0},{"$f":"T_DataComboFile[[#This Row],[2023/24 Baseline_Source]]*T_DataComboFile[[#This Row],[G&S reporting level indicator]]","v":0},null,null,null,null,null,null,{"$f":"T_DataComboFile[[#This Row],[2021/22 Baseline]]+T_DataComboFile[[#This Row],[2021/22 Reduction]]+T_DataComboFile[[#This Row],[2021/22 Increase]]","v":0},{"$f":"T_DataComboFile[[#This Row],[2022/23 Baseline]]+T_DataComboFile[[#This Row],[2022/23 Reduction]]+T_DataComboFile[[#This Row],[2022/23 Increase]]","v":0},{"$f":"T_DataComboFile[[#This Row],[2023/24 Baseline]]+T_DataComboFile[[#This Row],[2023/24 Reduction]]+T_DataComboFile[[#This Row],[2023/24 Increase]]","v":0}]
[null,null,"2021_22","ENE2020",36,1,3,null,70293,36,1,3,null,"070293","36|01|03",2,3,12,56,60,"02|03|12|56|60","National","Small Business Development","Administration","Corporate Services",null,"Capital","Payments for capital assets","Machinery and equipment","Transport equipment","Transport equipment",null,null,null,0,0,0,0,0,0,0,0,0,0,0,0,0,0,null,{"$f":"IF(T_DataComboFile[[#This Row],[G&S reporting level indicator]]=1,$AX$16,\"Not applicable\")","v":"Level 3"},{"$f":"IF(AND($AX$16=\"Level 3\",T_DataComboFile[[#This Row],[Econ3]] = \"Goods and services\"),IF(T_DataComboFile[[#This Row],[Econ4]] = T_DataComboFile[[#This Row],[Econ3]],1,0),IF(AND($AX$16=\"Level 4\",T_DataComboFile[[#This Row],[Econ4]] = \"Goods and services\"),0,1))","v":1},{"$f":"T_DataComboFile[[#This Row],[2016/17_Source]]*T_DataComboFile[[#This Row],[G&S reporting level indicator]]","v":0},{"$f":"T_DataComboFile[[#This Row],[2017/18_Source]]*T_DataComboFile[[#This Row],[G&S reporting level indicator]]","v":0},{"$f":"T_DataComboFile[[#This Row],[2018/19_Source]]*T_DataComboFile[[#This Row],[G&S reporting level indicator]]","v":0},{"$f":"T_DataComboFile[[#This Row],[2019/20 Main appropriation_Source]]*T_DataComboFile[[#This Row],[G&S reporting level indicator]]","v":0},{"$f":"T_DataComboFile[[#This Row],[2019/20 Adjusted appropriation_Source]]*T_DataComboFile[[#This Row],[G&S reporting level indicator]]","v":0},{"$f":"T_DataComboFile[[#This Row],[2019/20 Revised estimate_Source]]*T_DataComboFile[[#This Row],[G&S reporting level indicator]]","v":0},{"$f":"T_DataComboFile[[#This Row],[2019/20 Preliminary outcome_Source]]*T_DataComboFile[[#This Row],[G&S reporting level indicator]]","v":0},{"$f":"T_DataComboFile[[#This Row],[2020/21 Original_Source]]*T_DataComboFile[[#This Row],[G&S reporting level indicator]]","v":0},{"$f":"T_DataComboFile[[#This Row],[2020/21 SAB_Source]]*T_DataComboFile[[#This Row],[G&S reporting level indicator]]","v":0},{"$f":"T_DataComboFile[[#This Row],[2020/21 Baseline_Source]]*T_DataComboFile[[#This Row],[G&S reporting level indicator]]","v":0},{"$f":"T_DataComboFile[[#This Row],[2021/22 Baseline_Source]]*T_DataComboFile[[#This Row],[G&S reporting level indicator]]","v":0},{"$f":"T_DataComboFile[[#This Row],[2022/23 Baseline_Source]]*T_DataComboFile[[#This Row],[G&S reporting level indicator]]","v":0},{"$f":"T_DataComboFile[[#This Row],[2023/24 Baseline_Source]]*T_DataComboFile[[#This Row],[G&S reporting level indicator]]","v":0},null,null,null,null,null,null,{"$f":"T_DataComboFile[[#This Row],[2021/22 Baseline]]+T_DataComboFile[[#This Row],[2021/22 Reduction]]+T_DataComboFile[[#This Row],[2021/22 Increase]]","v":0},{"$f":"T_DataComboFile[[#This Row],[2022/23 Baseline]]+T_DataComboFile[[#This Row],[2022/23 Reduction]]+T_DataComboFile[[#This Row],[2022/23 Increase]]","v":0},{"$f":"T_DataComboFile[[#This Row],[2023/24 Baseline]]+T_DataComboFile[[#This Row],[2023/24 Reduction]]+T_DataComboFile[[#This Row],[2023/24 Increase]]","v":0}]
["NAT|Non-transfer item","36|Other machinery and equipment","2021_22","ENE2020",36,1,3,17240,70294,36,1,3,17240,"070294","36|01|03",2,3,12,57,61,"02|03|12|57|61","National","Small Business Development","Administration","Corporate Services","Non-transfer item","Capital","Payments for capital assets","Machinery and equipment","Other machinery and equipment","Other machinery and equipment","Economic development","Industrialisation and exports","NAT",2601,2462,3685,3377,2447,2447,2447,2870,2870,2870,2959,3126,3264,1,null,{"$f":"IF(T_DataComboFile[[#This Row],[G&S reporting level indicator]]=1,$AX$16,\"Not applicable\")","v":"Level 3"},{"$f":"IF(AND($AX$16=\"Level 3\",T_DataComboFile[[#This Row],[Econ3]] = \"Goods and services\"),IF(T_DataComboFile[[#This Row],[Econ4]] = T_DataComboFile[[#This Row],[Econ3]],1,0),IF(AND($AX$16=\"Level 4\",T_DataComboFile[[#This Row],[Econ4]] = \"Goods and services\"),0,1))","v":1},{"$f":"T_DataComboFile[[#This Row],[2016/17_Source]]*T_DataComboFile[[#This Row],[G&S reporting level indicator]]","v":2601},{"$f":"T_DataComboFile[[#This Row],[2017/18_Source]]*T_DataComboFile[[#This Row],[G&S reporting level indicator]]","v":2462},{"$f":"T_DataComboFile[[#This Row],[2018/19_Source]]*T_DataComboFile[[#This Row],[G&S reporting level indicator]]","v":3685},{"$f":"T_DataComboFile[[#This Row],[2019/20 Main appropriation_Source]]*T_DataComboFile[[#This Row],[G&S reporting level indicator]]","v":3377},{"$f":"T_DataComboFile[[#This Row],[2019/20 Adjusted appropriation_Source]]*T_DataComboFile[[#This Row],[G&S reporting level indicator]]","v":2447},{"$f":"T_DataComboFile[[#This Row],[2019/20 Revised estimate_Source]]*T_DataComboFile[[#This Row],[G&S reporting level indicator]]","v":2447},{"$f":"T_DataComboFile[[#This Row],[2019/20 Preliminary outcome_Source]]*T_DataComboFile[[#This Row],[G&S reporting level indicator]]","v":2447},{"$f":"T_DataComboFile[[#This Row],[2020/21 Original_Source]]*T_DataComboFile[[#This Row],[G&S reporting level indicator]]","v":2870},{"$f":"T_DataComboFile[[#This Row],[2020/21 SAB_Source]]*T_DataComboFile[[#This Row],[G&S reporting level indicator]]","v":2870},{"$f":"T_DataComboFile[[#This Row],[2020/21 Baseline_Source]]*T_DataComboFile[[#This Row],[G&S reporting level indicator]]","v":2870},{"$f":"T_DataComboFile[[#This Row],[2021/22 Baseline_Source]]*T_DataComboFile[[#This Row],[G&S reporting level indicator]]","v":2959},{"$f":"T_DataComboFile[[#This Row],[2022/23 Baseline_Source]]*T_DataComboFile[[#This Row],[G&S reporting level indicator]]","v":3126},{"$f":"T_DataComboFile[[#This Row],[2023/24 Baseline_Source]]*T_DataComboFile[[#This Row],[G&S reporting level indicator]]","v":3264},null,null,null,null,null,null,{"$f":"T_DataComboFile[[#This Row],[2021/22 Baseline]]+T_DataComboFile[[#This Row],[2021/22 Reduction]]+T_DataComboFile[[#This Row],[2021/22 Increase]]","v":2959},{"$f":"T_DataComboFile[[#This Row],[2022/23 Baseline]]+T_DataComboFile[[#This Row],[2022/23 Reduction]]+T_DataComboFile[[#This Row],[2022/23 Increase]]","v":3126},{"$f":"T_DataComboFile[[#This Row],[2023/24 Baseline]]+T_DataComboFile[[#This Row],[2023/24 Reduction]]+T_DataComboFile[[#This Row],[2023/24 Increase]]","v":3264}]
[null,null,"2021_22","ENE2020",36,1,3,null,70295,36,1,3,null,"070295","36|01|03",2,3,13,58,62,"02|03|13|58|62","National","Small Business Development","Administration","Corporate Services",null,"Capital","Payments for capital assets","Heritage assets","Heritage assets","Heritage assets",null,null,null,0,0,0,0,0,0,0,0,0,0,0,0,0,0,null,{"$f":"IF(T_DataComboFile[[#This Row],[G&S reporting level indicator]]=1,$AX$16,\"Not applicable\")","v":"Level 3"},{"$f":"IF(AND($AX$16=\"Level 3\",T_DataComboFile[[#This Row],[Econ3]] = \"Goods and services\"),IF(T_DataComboFile[[#This Row],[Econ4]] = T_DataComboFile[[#This Row],[Econ3]],1,0),IF(AND($AX$16=\"Level 4\",T_DataComboFile[[#This Row],[Econ4]] = \"Goods and services\"),0,1))","v":1},{"$f":"T_DataComboFile[[#This Row],[2016/17_Source]]*T_DataComboFile[[#This Row],[G&S reporting level indicator]]","v":0},{"$f":"T_DataComboFile[[#This Row],[2017/18_Source]]*T_DataComboFile[[#This Row],[G&S reporting level indicator]]","v":0},{"$f":"T_DataComboFile[[#This Row],[2018/19_Source]]*T_DataComboFile[[#This Row],[G&S reporting level indicator]]","v":0},{"$f":"T_DataComboFile[[#This Row],[2019/20 Main appropriation_Source]]*T_DataComboFile[[#This Row],[G&S reporting level indicator]]","v":0},{"$f":"T_DataComboFile[[#This Row],[2019/20 Adjusted appropriation_Source]]*T_DataComboFile[[#This Row],[G&S reporting level indicator]]","v":0},{"$f":"T_DataComboFile[[#This Row],[2019/20 Revised estimate_Source]]*T_DataComboFile[[#This Row],[G&S reporting level indicator]]","v":0},{"$f":"T_DataComboFile[[#This Row],[2019/20 Preliminary outcome_Source]]*T_DataComboFile[[#This Row],[G&S reporting level indicator]]","v":0},{"$f":"T_DataComboFile[[#This Row],[2020/21 Original_Source]]*T_DataComboFile[[#This Row],[G&S reporting level indicator]]","v":0},{"$f":"T_DataComboFile[[#This Row],[2020/21 SAB_Source]]*T_DataComboFile[[#This Row],[G&S reporting level indicator]]","v":0},{"$f":"T_DataComboFile[[#This Row],[2020/21 Baseline_Source]]*T_DataComboFile[[#This Row],[G&S reporting level indicator]]","v":0},{"$f":"T_DataComboFile[[#This Row],[2021/22 Baseline_Source]]*T_DataComboFile[[#This Row],[G&S reporting level indicator]]","v":0},{"$f":"T_DataComboFile[[#This Row],[2022/23 Baseline_Source]]*T_DataComboFile[[#This Row],[G&S reporting level indicator]]","v":0},{"$f":"T_DataComboFile[[#This Row],[2023/24 Baseline_Source]]*T_DataComboFile[[#This Row],[G&S reporting level indicator]]","v":0},null,null,null,null,null,null,{"$f":"T_DataComboFile[[#This Row],[2021/22 Baseline]]+T_DataComboFile[[#This Row],[2021/22 Reduction]]+T_DataComboFile[[#This Row],[2021/22 Increase]]","v":0},{"$f":"T_DataComboFile[[#This Row],[2022/23 Baseline]]+T_DataComboFile[[#This Row],[2022/23 Reduction]]+T_DataComboFile[[#This Row],[2022/23 Increase]]","v":0},{"$f":"T_DataComboFile[[#This Row],[2023/24 Baseline]]+T_DataComboFile[[#This Row],[2023/24 Reduction]]+T_DataComboFile[[#This Row],[2023/24 Increase]]","v":0}]
[null,null,"2021_22","ENE2020",36,1,3,null,70296,36,1,3,null,"070296","36|01|03",2,3,14,59,63,"02|03|14|59|63","National","Small Business Development","Administration","Corporate Services",null,"Capital","Payments for capital assets","Specialised military assets","Specialised military assets","Specialised military assets",null,null,null,0,0,0,0,0,0,0,0,0,0,0,0,0,0,null,{"$f":"IF(T_DataComboFile[[#This Row],[G&S reporting level indicator]]=1,$AX$16,\"Not applicable\")","v":"Level 3"},{"$f":"IF(AND($AX$16=\"Level 3\",T_DataComboFile[[#This Row],[Econ3]] = \"Goods and services\"),IF(T_DataComboFile[[#This Row],[Econ4]] = T_DataComboFile[[#This Row],[Econ3]],1,0),IF(AND($AX$16=\"Level 4\",T_DataComboFile[[#This Row],[Econ4]] = \"Goods and services\"),0,1))","v":1},{"$f":"T_DataComboFile[[#This Row],[2016/17_Source]]*T_DataComboFile[[#This Row],[G&S reporting level indicator]]","v":0},{"$f":"T_DataComboFile[[#This Row],[2017/18_Source]]*T_DataComboFile[[#This Row],[G&S reporting level indicator]]","v":0},{"$f":"T_DataComboFile[[#This Row],[2018/19_Source]]*T_DataComboFile[[#This Row],[G&S reporting level indicator]]","v":0},{"$f":"T_DataComboFile[[#This Row],[2019/20 Main appropriation_Source]]*T_DataComboFile[[#This Row],[G&S reporting level indicator]]","v":0},{"$f":"T_DataComboFile[[#This Row],[2019/20 Adjusted appropriation_Source]]*T_DataComboFile[[#This Row],[G&S reporting level indicator]]","v":0},{"$f":"T_DataComboFile[[#This Row],[2019/20 Revised estimate_Source]]*T_DataComboFile[[#This Row],[G&S reporting level indicator]]","v":0},{"$f":"T_DataComboFile[[#This Row],[2019/20 Preliminary outcome_Source]]*T_DataComboFile[[#This Row],[G&S reporting level indicator]]","v":0},{"$f":"T_DataComboFile[[#This Row],[2020/21 Original_Source]]*T_DataComboFile[[#This Row],[G&S reporting level indicator]]","v":0},{"$f":"T_DataComboFile[[#This Row],[2020/21 SAB_Source]]*T_DataComboFile[[#This Row],[G&S reporting level indicator]]","v":0},{"$f":"T_DataComboFile[[#This Row],[2020/21 Baseline_Source]]*T_DataComboFile[[#This Row],[G&S reporting level indicator]]","v":0},{"$f":"T_DataComboFile[[#This Row],[2021/22 Baseline_Source]]*T_DataComboFile[[#This Row],[G&S reporting level indicator]]","v":0},{"$f":"T_DataComboFile[[#This Row],[2022/23 Baseline_Source]]*T_DataComboFile[[#This Row],[G&S reporting level indicator]]","v":0},{"$f":"T_DataComboFile[[#This Row],[2023/24 Baseline_Source]]*T_DataComboFile[[#This Row],[G&S reporting level indicator]]","v":0},null,null,null,null,null,null,{"$f":"T_DataComboFile[[#This Row],[2021/22 Baseline]]+T_DataComboFile[[#This Row],[2021/22 Reduction]]+T_DataComboFile[[#This Row],[2021/22 Increase]]","v":0},{"$f":"T_DataComboFile[[#This Row],[2022/23 Baseline]]+T_DataComboFile[[#This Row],[2022/23 Reduction]]+T_DataComboFile[[#This Row],[2022/23 Increase]]","v":0},{"$f":"T_DataComboFile[[#This Row],[2023/24 Baseline]]+T_DataComboFile[[#This Row],[2023/24 Reduction]]+T_DataComboFile[[#This Row],[2023/24 Increase]]","v":0}]
[null,null,"2021_22","ENE2020",36,1,3,null,70297,36,1,3,null,"070297","36|01|03",2,3,15,60,64,"02|03|15|60|64","National","Small Business Development","Administration","Corporate Services",null,"Capital","Payments for capital assets","Biological assets","Biological assets","Biological assets",null,null,null,0,0,0,0,0,0,0,0,0,0,0,0,0,0,null,{"$f":"IF(T_DataComboFile[[#This Row],[G&S reporting level indicator]]=1,$AX$16,\"Not applicable\")","v":"Level 3"},{"$f":"IF(AND($AX$16=\"Level 3\",T_DataComboFile[[#This Row],[Econ3]] = \"Goods and services\"),IF(T_DataComboFile[[#This Row],[Econ4]] = T_DataComboFile[[#This Row],[Econ3]],1,0),IF(AND($AX$16=\"Level 4\",T_DataComboFile[[#This Row],[Econ4]] = \"Goods and services\"),0,1))","v":1},{"$f":"T_DataComboFile[[#This Row],[2016/17_Source]]*T_DataComboFile[[#This Row],[G&S reporting level indicator]]","v":0},{"$f":"T_DataComboFile[[#This Row],[2017/18_Source]]*T_DataComboFile[[#This Row],[G&S reporting level indicator]]","v":0},{"$f":"T_DataComboFile[[#This Row],[2018/19_Source]]*T_DataComboFile[[#This Row],[G&S reporting level indicator]]","v":0},{"$f":"T_DataComboFile[[#This Row],[2019/20 Main appropriation_Source]]*T_DataComboFile[[#This Row],[G&S reporting level indicator]]","v":0},{"$f":"T_DataComboFile[[#This Row],[2019/20 Adjusted appropriation_Source]]*T_DataComboFile[[#This Row],[G&S reporting level indicator]]","v":0},{"$f":"T_DataComboFile[[#This Row],[2019/20 Revised estimate_Source]]*T_DataComboFile[[#This Row],[G&S reporting level indicator]]","v":0},{"$f":"T_DataComboFile[[#This Row],[2019/20 Preliminary outcome_Source]]*T_DataComboFile[[#This Row],[G&S reporting level indicator]]","v":0},{"$f":"T_DataComboFile[[#This Row],[2020/21 Original_Source]]*T_DataComboFile[[#This Row],[G&S reporting level indicator]]","v":0},{"$f":"T_DataComboFile[[#This Row],[2020/21 SAB_Source]]*T_DataComboFile[[#This Row],[G&S reporting level indicator]]","v":0},{"$f":"T_DataComboFile[[#This Row],[2020/21 Baseline_Source]]*T_DataComboFile[[#This Row],[G&S reporting level indicator]]","v":0},{"$f":"T_DataComboFile[[#This Row],[2021/22 Baseline_Source]]*T_DataComboFile[[#This Row],[G&S reporting level indicator]]","v":0},{"$f":"T_DataComboFile[[#This Row],[2022/23 Baseline_Source]]*T_DataComboFile[[#This Row],[G&S reporting level indicator]]","v":0},{"$f":"T_DataComboFile[[#This Row],[2023/24 Baseline_Source]]*T_DataComboFile[[#This Row],[G&S reporting level indicator]]","v":0},null,null,null,null,null,null,{"$f":"T_DataComboFile[[#This Row],[2021/22 Baseline]]+T_DataComboFile[[#This Row],[2021/22 Reduction]]+T_DataComboFile[[#This Row],[2021/22 Increase]]","v":0},{"$f":"T_DataComboFile[[#This Row],[2022/23 Baseline]]+T_DataComboFile[[#This Row],[2022/23 Reduction]]+T_DataComboFile[[#This Row],[2022/23 Increase]]","v":0},{"$f":"T_DataComboFile[[#This Row],[2023/24 Baseline]]+T_DataComboFile[[#This Row],[2023/24 Reduction]]+T_DataComboFile[[#This Row],[2023/24 Increase]]","v":0}]
[null,null,"2021_22","ENE2020",36,1,3,null,70298,36,1,3,null,"070298","36|01|03",2,3,16,61,65,"02|03|16|61|65","National","Small Business Development","Administration","Corporate Services",null,"Capital","Payments for capital assets","Land and sub-soil assets","Land and sub-soil assets","Land and sub-soil assets",null,null,null,0,0,0,0,0,0,0,0,0,0,0,0,0,0,null,{"$f":"IF(T_DataComboFile[[#This Row],[G&S reporting level indicator]]=1,$AX$16,\"Not applicable\")","v":"Level 3"},{"$f":"IF(AND($AX$16=\"Level 3\",T_DataComboFile[[#This Row],[Econ3]] = \"Goods and services\"),IF(T_DataComboFile[[#This Row],[Econ4]] = T_DataComboFile[[#This Row],[Econ3]],1,0),IF(AND($AX$16=\"Level 4\",T_DataComboFile[[#This Row],[Econ4]] = \"Goods and services\"),0,1))","v":1},{"$f":"T_DataComboFile[[#This Row],[2016/17_Source]]*T_DataComboFile[[#This Row],[G&S reporting level indicator]]","v":0},{"$f":"T_DataComboFile[[#This Row],[2017/18_Source]]*T_DataComboFile[[#This Row],[G&S reporting level indicator]]","v":0},{"$f":"T_DataComboFile[[#This Row],[2018/19_Source]]*T_DataComboFile[[#This Row],[G&S reporting level indicator]]","v":0},{"$f":"T_DataComboFile[[#This Row],[2019/20 Main appropriation_Source]]*T_DataComboFile[[#This Row],[G&S reporting level indicator]]","v":0},{"$f":"T_DataComboFile[[#This Row],[2019/20 Adjusted appropriation_Source]]*T_DataComboFile[[#This Row],[G&S reporting level indicator]]","v":0},{"$f":"T_DataComboFile[[#This Row],[2019/20 Revised estimate_Source]]*T_DataComboFile[[#This Row],[G&S reporting level indicator]]","v":0},{"$f":"T_DataComboFile[[#This Row],[2019/20 Preliminary outcome_Source]]*T_DataComboFile[[#This Row],[G&S reporting level indicator]]","v":0},{"$f":"T_DataComboFile[[#This Row],[2020/21 Original_Source]]*T_DataComboFile[[#This Row],[G&S reporting level indicator]]","v":0},{"$f":"T_DataComboFile[[#This Row],[2020/21 SAB_Source]]*T_DataComboFile[[#This Row],[G&S reporting level indicator]]","v":0},{"$f":"T_DataComboFile[[#This Row],[2020/21 Baseline_Source]]*T_DataComboFile[[#This Row],[G&S reporting level indicator]]","v":0},{"$f":"T_DataComboFile[[#This Row],[2021/22 Baseline_Source]]*T_DataComboFile[[#This Row],[G&S reporting level indicator]]","v":0},{"$f":"T_DataComboFile[[#This Row],[2022/23 Baseline_Source]]*T_DataComboFile[[#This Row],[G&S reporting level indicator]]","v":0},{"$f":"T_DataComboFile[[#This Row],[2023/24 Baseline_Source]]*T_DataComboFile[[#This Row],[G&S reporting level indicator]]","v":0},null,null,null,null,null,null,{"$f":"T_DataComboFile[[#This Row],[2021/22 Baseline]]+T_DataComboFile[[#This Row],[2021/22 Reduction]]+T_DataComboFile[[#This Row],[2021/22 Increase]]","v":0},{"$f":"T_DataComboFile[[#This Row],[2022/23 Baseline]]+T_DataComboFile[[#This Row],[2022/23 Reduction]]+T_DataComboFile[[#This Row],[2022/23 Increase]]","v":0},{"$f":"T_DataComboFile[[#This Row],[2023/24 Baseline]]+T_DataComboFile[[#This Row],[2023/24 Reduction]]+T_DataComboFile[[#This Row],[2023/24 Increase]]","v":0}]
["NAT|Non-transfer item","36|Software and other intangible assets","2021_22","ENE2020",36,1,3,17241,70299,36,1,3,17241,"070299","36|01|03",2,3,17,62,66,"02|03|17|62|66","National","Small Business Development","Administration","Corporate Services","Non-transfer item","Capital","Payments for capital assets","Software and other intangible assets","Software and other intangible assets","Software and other intangible assets","Economic development","Industrialisation and exports","NAT",0,1498,1454,0,0,0,0,0,0,0,0,0,0,1,null,{"$f":"IF(T_DataComboFile[[#This Row],[G&S reporting level indicator]]=1,$AX$16,\"Not applicable\")","v":"Level 3"},{"$f":"IF(AND($AX$16=\"Level 3\",T_DataComboFile[[#This Row],[Econ3]] = \"Goods and services\"),IF(T_DataComboFile[[#This Row],[Econ4]] = T_DataComboFile[[#This Row],[Econ3]],1,0),IF(AND($AX$16=\"Level 4\",T_DataComboFile[[#This Row],[Econ4]] = \"Goods and services\"),0,1))","v":1},{"$f":"T_DataComboFile[[#This Row],[2016/17_Source]]*T_DataComboFile[[#This Row],[G&S reporting level indicator]]","v":0},{"$f":"T_DataComboFile[[#This Row],[2017/18_Source]]*T_DataComboFile[[#This Row],[G&S reporting level indicator]]","v":1498},{"$f":"T_DataComboFile[[#This Row],[2018/19_Source]]*T_DataComboFile[[#This Row],[G&S reporting level indicator]]","v":1454},{"$f":"T_DataComboFile[[#This Row],[2019/20 Main appropriation_Source]]*T_DataComboFile[[#This Row],[G&S reporting level indicator]]","v":0},{"$f":"T_DataComboFile[[#This Row],[2019/20 Adjusted appropriation_Source]]*T_DataComboFile[[#This Row],[G&S reporting level indicator]]","v":0},{"$f":"T_DataComboFile[[#This Row],[2019/20 Revised estimate_Source]]*T_DataComboFile[[#This Row],[G&S reporting level indicator]]","v":0},{"$f":"T_DataComboFile[[#This Row],[2019/20 Preliminary outcome_Source]]*T_DataComboFile[[#This Row],[G&S reporting level indicator]]","v":0},{"$f":"T_DataComboFile[[#This Row],[2020/21 Original_Source]]*T_DataComboFile[[#This Row],[G&S reporting level indicator]]","v":0},{"$f":"T_DataComboFile[[#This Row],[2020/21 SAB_Source]]*T_DataComboFile[[#This Row],[G&S reporting level indicator]]","v":0},{"$f":"T_DataComboFile[[#This Row],[2020/21 Baseline_Source]]*T_DataComboFile[[#This Row],[G&S reporting level indicator]]","v":0},{"$f":"T_DataComboFile[[#This Row],[2021/22 Baseline_Source]]*T_DataComboFile[[#This Row],[G&S reporting level indicator]]","v":0},{"$f":"T_DataComboFile[[#This Row],[2022/23 Baseline_Source]]*T_DataComboFile[[#This Row],[G&S reporting level indicator]]","v":0},{"$f":"T_DataComboFile[[#This Row],[2023/24 Baseline_Source]]*T_DataComboFile[[#This Row],[G&S reporting level indicator]]","v":0},null,null,null,null,null,null,{"$f":"T_DataComboFile[[#This Row],[2021/22 Baseline]]+T_DataComboFile[[#This Row],[2021/22 Reduction]]+T_DataComboFile[[#This Row],[2021/22 Increase]]","v":0},{"$f":"T_DataComboFile[[#This Row],[2022/23 Baseline]]+T_DataComboFile[[#This Row],[2022/23 Reduction]]+T_DataComboFile[[#This Row],[2022/23 Increase]]","v":0},{"$f":"T_DataComboFile[[#This Row],[2023/24 Baseline]]+T_DataComboFile[[#This Row],[2023/24 Reduction]]+T_DataComboFile[[#This Row],[2023/24 Increase]]","v":0}]
[null,null,"2021_22","ENE2020",36,1,3,null,70300,36,1,3,null,"070300","36|01|03",3,4,18,63,67,"03|04|18|63|67","National","Small Business Development","Administration","Corporate Services",null,"Payments for financial assets","Payments for financial assets","Payments for financial assets","Payments for financial assets","Payments for financial assets",null,null,null,0,0,0,0,0,0,0,0,0,0,0,0,0,0,null,{"$f":"IF(T_DataComboFile[[#This Row],[G&S reporting level indicator]]=1,$AX$16,\"Not applicable\")","v":"Level 3"},{"$f":"IF(AND($AX$16=\"Level 3\",T_DataComboFile[[#This Row],[Econ3]] = \"Goods and services\"),IF(T_DataComboFile[[#This Row],[Econ4]] = T_DataComboFile[[#This Row],[Econ3]],1,0),IF(AND($AX$16=\"Level 4\",T_DataComboFile[[#This Row],[Econ4]] = \"Goods and services\"),0,1))","v":1},{"$f":"T_DataComboFile[[#This Row],[2016/17_Source]]*T_DataComboFile[[#This Row],[G&S reporting level indicator]]","v":0},{"$f":"T_DataComboFile[[#This Row],[2017/18_Source]]*T_DataComboFile[[#This Row],[G&S reporting level indicator]]","v":0},{"$f":"T_DataComboFile[[#This Row],[2018/19_Source]]*T_DataComboFile[[#This Row],[G&S reporting level indicator]]","v":0},{"$f":"T_DataComboFile[[#This Row],[2019/20 Main appropriation_Source]]*T_DataComboFile[[#This Row],[G&S reporting level indicator]]","v":0},{"$f":"T_DataComboFile[[#This Row],[2019/20 Adjusted appropriation_Source]]*T_DataComboFile[[#This Row],[G&S reporting level indicator]]","v":0},{"$f":"T_DataComboFile[[#This Row],[2019/20 Revised estimate_Source]]*T_DataComboFile[[#This Row],[G&S reporting level indicator]]","v":0},{"$f":"T_DataComboFile[[#This Row],[2019/20 Preliminary outcome_Source]]*T_DataComboFile[[#This Row],[G&S reporting level indicator]]","v":0},{"$f":"T_DataComboFile[[#This Row],[2020/21 Original_Source]]*T_DataComboFile[[#This Row],[G&S reporting level indicator]]","v":0},{"$f":"T_DataComboFile[[#This Row],[2020/21 SAB_Source]]*T_DataComboFile[[#This Row],[G&S reporting level indicator]]","v":0},{"$f":"T_DataComboFile[[#This Row],[2020/21 Baseline_Source]]*T_DataComboFile[[#This Row],[G&S reporting level indicator]]","v":0},{"$f":"T_DataComboFile[[#This Row],[2021/22 Baseline_Source]]*T_DataComboFile[[#This Row],[G&S reporting level indicator]]","v":0},{"$f":"T_DataComboFile[[#This Row],[2022/23 Baseline_Source]]*T_DataComboFile[[#This Row],[G&S reporting level indicator]]","v":0},{"$f":"T_DataComboFile[[#This Row],[2023/24 Baseline_Source]]*T_DataComboFile[[#This Row],[G&S reporting level indicator]]","v":0},null,null,null,null,null,null,{"$f":"T_DataComboFile[[#This Row],[2021/22 Baseline]]+T_DataComboFile[[#This Row],[2021/22 Reduction]]+T_DataComboFile[[#This Row],[2021/22 Increase]]","v":0},{"$f":"T_DataComboFile[[#This Row],[2022/23 Baseline]]+T_DataComboFile[[#This Row],[2022/23 Reduction]]+T_DataComboFile[[#This Row],[2022/23 Increase]]","v":0},{"$f":"T_DataComboFile[[#This Row],[2023/24 Baseline]]+T_DataComboFile[[#This Row],[2023/24 Reduction]]+T_DataComboFile[[#This Row],[2023/24 Increase]]","v":0}]
["NAT|Non-transfer item","36|Salaries and wages","2021_22","ENE2020",36,1,4,17242,70301,36,1,4,17242,"070301","36|01|04",1,1,1,1,1,"01|01|01|01|01","National","Small Business Development","Administration","Financial Management","Non-transfer item","Current","Current payments","Compensation of employees","Salaries and wages","Salaries and wages","Economic development","Industrialisation and exports","NAT",8285,9873,10300,11217,11217,11217,11217,10500,10500,9905,10171,10524,10988,1,null,{"$f":"IF(T_DataComboFile[[#This Row],[G&S reporting level indicator]]=1,$AX$16,\"Not applicable\")","v":"Level 3"},{"$f":"IF(AND($AX$16=\"Level 3\",T_DataComboFile[[#This Row],[Econ3]] = \"Goods and services\"),IF(T_DataComboFile[[#This Row],[Econ4]] = T_DataComboFile[[#This Row],[Econ3]],1,0),IF(AND($AX$16=\"Level 4\",T_DataComboFile[[#This Row],[Econ4]] = \"Goods and services\"),0,1))","v":1},{"$f":"T_DataComboFile[[#This Row],[2016/17_Source]]*T_DataComboFile[[#This Row],[G&S reporting level indicator]]","v":8285},{"$f":"T_DataComboFile[[#This Row],[2017/18_Source]]*T_DataComboFile[[#This Row],[G&S reporting level indicator]]","v":9873},{"$f":"T_DataComboFile[[#This Row],[2018/19_Source]]*T_DataComboFile[[#This Row],[G&S reporting level indicator]]","v":10300},{"$f":"T_DataComboFile[[#This Row],[2019/20 Main appropriation_Source]]*T_DataComboFile[[#This Row],[G&S reporting level indicator]]","v":11217},{"$f":"T_DataComboFile[[#This Row],[2019/20 Adjusted appropriation_Source]]*T_DataComboFile[[#This Row],[G&S reporting level indicator]]","v":11217},{"$f":"T_DataComboFile[[#This Row],[2019/20 Revised estimate_Source]]*T_DataComboFile[[#This Row],[G&S reporting level indicator]]","v":11217},{"$f":"T_DataComboFile[[#This Row],[2019/20 Preliminary outcome_Source]]*T_DataComboFile[[#This Row],[G&S reporting level indicator]]","v":11217},{"$f":"T_DataComboFile[[#This Row],[2020/21 Original_Source]]*T_DataComboFile[[#This Row],[G&S reporting level indicator]]","v":10500},{"$f":"T_DataComboFile[[#This Row],[2020/21 SAB_Source]]*T_DataComboFile[[#This Row],[G&S reporting level indicator]]","v":10500},{"$f":"T_DataComboFile[[#This Row],[2020/21 Baseline_Source]]*T_DataComboFile[[#This Row],[G&S reporting level indicator]]","v":9905},{"$f":"T_DataComboFile[[#This Row],[2021/22 Baseline_Source]]*T_DataComboFile[[#This Row],[G&S reporting level indicator]]","v":10171},{"$f":"T_DataComboFile[[#This Row],[2022/23 Baseline_Source]]*T_DataComboFile[[#This Row],[G&S reporting level indicator]]","v":10524},{"$f":"T_DataComboFile[[#This Row],[2023/24 Baseline_Source]]*T_DataComboFile[[#This Row],[G&S reporting level indicator]]","v":10988},null,null,null,null,null,null,{"$f":"T_DataComboFile[[#This Row],[2021/22 Baseline]]+T_DataComboFile[[#This Row],[2021/22 Reduction]]+T_DataComboFile[[#This Row],[2021/22 Increase]]","v":10171},{"$f":"T_DataComboFile[[#This Row],[2022/23 Baseline]]+T_DataComboFile[[#This Row],[2022/23 Reduction]]+T_DataComboFile[[#This Row],[2022/23 Increase]]","v":10524},{"$f":"T_DataComboFile[[#This Row],[2023/24 Baseline]]+T_DataComboFile[[#This Row],[2023/24 Reduction]]+T_DataComboFile[[#This Row],[2023/24 Increase]]","v":10988}]
["NAT|Non-transfer item","36|Social contributions","2021_22","ENE2020",36,1,4,17243,70302,36,1,4,17243,"070302","36|01|04",1,1,1,2,2,"01|01|01|02|02","National","Small Business Development","Administration","Financial Management","Non-transfer item","Current","Current payments","Compensation of employees","Social contributions","Social contributions","Economic development","Industrialisation and exports","NAT",976,1211,1377,1319,1319,1319,1319,1410,1410,1330,1366,1413,1475,1,null,{"$f":"IF(T_DataComboFile[[#This Row],[G&S reporting level indicator]]=1,$AX$16,\"Not applicable\")","v":"Level 3"},{"$f":"IF(AND($AX$16=\"Level 3\",T_DataComboFile[[#This Row],[Econ3]] = \"Goods and services\"),IF(T_DataComboFile[[#This Row],[Econ4]] = T_DataComboFile[[#This Row],[Econ3]],1,0),IF(AND($AX$16=\"Level 4\",T_DataComboFile[[#This Row],[Econ4]] = \"Goods and services\"),0,1))","v":1},{"$f":"T_DataComboFile[[#This Row],[2016/17_Source]]*T_DataComboFile[[#This Row],[G&S reporting level indicator]]","v":976},{"$f":"T_DataComboFile[[#This Row],[2017/18_Source]]*T_DataComboFile[[#This Row],[G&S reporting level indicator]]","v":1211},{"$f":"T_DataComboFile[[#This Row],[2018/19_Source]]*T_DataComboFile[[#This Row],[G&S reporting level indicator]]","v":1377},{"$f":"T_DataComboFile[[#This Row],[2019/20 Main appropriation_Source]]*T_DataComboFile[[#This Row],[G&S reporting level indicator]]","v":1319},{"$f":"T_DataComboFile[[#This Row],[2019/20 Adjusted appropriation_Source]]*T_DataComboFile[[#This Row],[G&S reporting level indicator]]","v":1319},{"$f":"T_DataComboFile[[#This Row],[2019/20 Revised estimate_Source]]*T_DataComboFile[[#This Row],[G&S reporting level indicator]]","v":1319},{"$f":"T_DataComboFile[[#This Row],[2019/20 Preliminary outcome_Source]]*T_DataComboFile[[#This Row],[G&S reporting level indicator]]","v":1319},{"$f":"T_DataComboFile[[#This Row],[2020/21 Original_Source]]*T_DataComboFile[[#This Row],[G&S reporting level indicator]]","v":1410},{"$f":"T_DataComboFile[[#This Row],[2020/21 SAB_Source]]*T_DataComboFile[[#This Row],[G&S reporting level indicator]]","v":1410},{"$f":"T_DataComboFile[[#This Row],[2020/21 Baseline_Source]]*T_DataComboFile[[#This Row],[G&S reporting level indicator]]","v":1330},{"$f":"T_DataComboFile[[#This Row],[2021/22 Baseline_Source]]*T_DataComboFile[[#This Row],[G&S reporting level indicator]]","v":1366},{"$f":"T_DataComboFile[[#This Row],[2022/23 Baseline_Source]]*T_DataComboFile[[#This Row],[G&S reporting level indicator]]","v":1413},{"$f":"T_DataComboFile[[#This Row],[2023/24 Baseline_Source]]*T_DataComboFile[[#This Row],[G&S reporting level indicator]]","v":1475},null,null,null,null,null,null,{"$f":"T_DataComboFile[[#This Row],[2021/22 Baseline]]+T_DataComboFile[[#This Row],[2021/22 Reduction]]+T_DataComboFile[[#This Row],[2021/22 Increase]]","v":1366},{"$f":"T_DataComboFile[[#This Row],[2022/23 Baseline]]+T_DataComboFile[[#This Row],[2022/23 Reduction]]+T_DataComboFile[[#This Row],[2022/23 Increase]]","v":1413},{"$f":"T_DataComboFile[[#This Row],[2023/24 Baseline]]+T_DataComboFile[[#This Row],[2023/24 Reduction]]+T_DataComboFile[[#This Row],[2023/24 Increase]]","v":1475}]
[null,null,"2021_22","ENE2020",36,1,4,null,70303,36,1,4,null,"070303","36|01|04",1,1,2,2,2,"01|01|02|02|02","National","Small Business Development","Administration","Financial Management","Non-transfer item","Current","Current payments","Goods and services","Goods and services","Goods and services","Economic development","Industrialisation and exports","NAT",5577,5115,7567,7608,7608,7608,7608,7919,7919,7919,8299,8577,8956,1,null,{"$f":"IF(T_DataComboFile[[#This Row],[G&S reporting level indicator]]=1,$AX$16,\"Not applicable\")","v":"Level 3"},{"$f":"IF(AND($AX$16=\"Level 3\",T_DataComboFile[[#This Row],[Econ3]] = \"Goods and services\"),IF(T_DataComboFile[[#This Row],[Econ4]] = T_DataComboFile[[#This Row],[Econ3]],1,0),IF(AND($AX$16=\"Level 4\",T_DataComboFile[[#This Row],[Econ4]] = \"Goods and services\"),0,1))","v":1},{"$f":"T_DataComboFile[[#This Row],[2016/17_Source]]*T_DataComboFile[[#This Row],[G&S reporting level indicator]]","v":5577},{"$f":"T_DataComboFile[[#This Row],[2017/18_Source]]*T_DataComboFile[[#This Row],[G&S reporting level indicator]]","v":5115},{"$f":"T_DataComboFile[[#This Row],[2018/19_Source]]*T_DataComboFile[[#This Row],[G&S reporting level indicator]]","v":7567},{"$f":"T_DataComboFile[[#This Row],[2019/20 Main appropriation_Source]]*T_DataComboFile[[#This Row],[G&S reporting level indicator]]","v":7608},{"$f":"T_DataComboFile[[#This Row],[2019/20 Adjusted appropriation_Source]]*T_DataComboFile[[#This Row],[G&S reporting level indicator]]","v":7608},{"$f":"T_DataComboFile[[#This Row],[2019/20 Revised estimate_Source]]*T_DataComboFile[[#This Row],[G&S reporting level indicator]]","v":7608},{"$f":"T_DataComboFile[[#This Row],[2019/20 Preliminary outcome_Source]]*T_DataComboFile[[#This Row],[G&S reporting level indicator]]","v":7608},{"$f":"T_DataComboFile[[#This Row],[2020/21 Original_Source]]*T_DataComboFile[[#This Row],[G&S reporting level indicator]]","v":7919},{"$f":"T_DataComboFile[[#This Row],[2020/21 SAB_Source]]*T_DataComboFile[[#This Row],[G&S reporting level indicator]]","v":7919},{"$f":"T_DataComboFile[[#This Row],[2020/21 Baseline_Source]]*T_DataComboFile[[#This Row],[G&S reporting level indicator]]","v":7919},{"$f":"T_DataComboFile[[#This Row],[2021/22 Baseline_Source]]*T_DataComboFile[[#This Row],[G&S reporting level indicator]]","v":8299},{"$f":"T_DataComboFile[[#This Row],[2022/23 Baseline_Source]]*T_DataComboFile[[#This Row],[G&S reporting level indicator]]","v":8577},{"$f":"T_DataComboFile[[#This Row],[2023/24 Baseline_Source]]*T_DataComboFile[[#This Row],[G&S reporting level indicator]]","v":8956},null,null,null,null,null,null,{"$f":"T_DataComboFile[[#This Row],[2021/22 Baseline]]+T_DataComboFile[[#This Row],[2021/22 Reduction]]+T_DataComboFile[[#This Row],[2021/22 Increase]]","v":8299},{"$f":"T_DataComboFile[[#This Row],[2022/23 Baseline]]+T_DataComboFile[[#This Row],[2022/23 Reduction]]+T_DataComboFile[[#This Row],[2022/23 Increase]]","v":8577},{"$f":"T_DataComboFile[[#This Row],[2023/24 Baseline]]+T_DataComboFile[[#This Row],[2023/24 Reduction]]+T_DataComboFile[[#This Row],[2023/24 Increase]]","v":8956}]
["NAT|Non-transfer item","36|Administrative fees","2021_22","ENE2020",36,1,4,17244,70304,36,1,4,17244,"070304","36|01|04",1,1,2,3,3,"01|01|02|03|03","National","Small Business Development","Administration","Financial Management","Non-transfer item","Current","Current payments","Goods and services","Administrative fees","Administrative fees","Economic development","Industrialisation and exports","NAT",35,84,58,86,86,86,86,58,58,58,60,64,67,1,null,{"$f":"IF(T_DataComboFile[[#This Row],[G&S reporting level indicator]]=1,$AX$16,\"Not applicable\")","v":"Not applicable"},{"$f":"IF(AND($AX$16=\"Level 3\",T_DataComboFile[[#This Row],[Econ3]] = \"Goods and services\"),IF(T_DataComboFile[[#This Row],[Econ4]] = T_DataComboFile[[#This Row],[Econ3]],1,0),IF(AND($AX$16=\"Level 4\",T_DataComboFile[[#This Row],[Econ4]] = \"Goods and services\"),0,1))","v":0},{"$f":"T_DataComboFile[[#This Row],[2016/17_Source]]*T_DataComboFile[[#This Row],[G&S reporting level indicator]]","v":0},{"$f":"T_DataComboFile[[#This Row],[2017/18_Source]]*T_DataComboFile[[#This Row],[G&S reporting level indicator]]","v":0},{"$f":"T_DataComboFile[[#This Row],[2018/19_Source]]*T_DataComboFile[[#This Row],[G&S reporting level indicator]]","v":0},{"$f":"T_DataComboFile[[#This Row],[2019/20 Main appropriation_Source]]*T_DataComboFile[[#This Row],[G&S reporting level indicator]]","v":0},{"$f":"T_DataComboFile[[#This Row],[2019/20 Adjusted appropriation_Source]]*T_DataComboFile[[#This Row],[G&S reporting level indicator]]","v":0},{"$f":"T_DataComboFile[[#This Row],[2019/20 Revised estimate_Source]]*T_DataComboFile[[#This Row],[G&S reporting level indicator]]","v":0},{"$f":"T_DataComboFile[[#This Row],[2019/20 Preliminary outcome_Source]]*T_DataComboFile[[#This Row],[G&S reporting level indicator]]","v":0},{"$f":"T_DataComboFile[[#This Row],[2020/21 Original_Source]]*T_DataComboFile[[#This Row],[G&S reporting level indicator]]","v":0},{"$f":"T_DataComboFile[[#This Row],[2020/21 SAB_Source]]*T_DataComboFile[[#This Row],[G&S reporting level indicator]]","v":0},{"$f":"T_DataComboFile[[#This Row],[2020/21 Baseline_Source]]*T_DataComboFile[[#This Row],[G&S reporting level indicator]]","v":0},{"$f":"T_DataComboFile[[#This Row],[2021/22 Baseline_Source]]*T_DataComboFile[[#This Row],[G&S reporting level indicator]]","v":0},{"$f":"T_DataComboFile[[#This Row],[2022/23 Baseline_Source]]*T_DataComboFile[[#This Row],[G&S reporting level indicator]]","v":0},{"$f":"T_DataComboFile[[#This Row],[2023/24 Baseline_Source]]*T_DataComboFile[[#This Row],[G&S reporting level indicator]]","v":0},null,null,null,null,null,null,{"$f":"T_DataComboFile[[#This Row],[2021/22 Baseline]]+T_DataComboFile[[#This Row],[2021/22 Reduction]]+T_DataComboFile[[#This Row],[2021/22 Increase]]","v":0},{"$f":"T_DataComboFile[[#This Row],[2022/23 Baseline]]+T_DataComboFile[[#This Row],[2022/23 Reduction]]+T_DataComboFile[[#This Row],[2022/23 Increase]]","v":0},{"$f":"T_DataComboFile[[#This Row],[2023/24 Baseline]]+T_DataComboFile[[#This Row],[2023/24 Reduction]]+T_DataComboFile[[#This Row],[2023/24 Increase]]","v":0}]
["NAT|Non-transfer item","36|Advertising","2021_22","ENE2020",36,1,4,17245,70305,36,1,4,17245,"070305","36|01|04",1,1,2,4,4,"01|01|02|04|04","National","Small Business Development","Administration","Financial Management","Non-transfer item","Current","Current payments","Goods and services","Advertising","Advertising","Economic development","Industrialisation and exports","NAT",0,4,2,5,5,5,5,15,15,15,20,25,26,1,null,{"$f":"IF(T_DataComboFile[[#This Row],[G&S reporting level indicator]]=1,$AX$16,\"Not applicable\")","v":"Not applicable"},{"$f":"IF(AND($AX$16=\"Level 3\",T_DataComboFile[[#This Row],[Econ3]] = \"Goods and services\"),IF(T_DataComboFile[[#This Row],[Econ4]] = T_DataComboFile[[#This Row],[Econ3]],1,0),IF(AND($AX$16=\"Level 4\",T_DataComboFile[[#This Row],[Econ4]] = \"Goods and services\"),0,1))","v":0},{"$f":"T_DataComboFile[[#This Row],[2016/17_Source]]*T_DataComboFile[[#This Row],[G&S reporting level indicator]]","v":0},{"$f":"T_DataComboFile[[#This Row],[2017/18_Source]]*T_DataComboFile[[#This Row],[G&S reporting level indicator]]","v":0},{"$f":"T_DataComboFile[[#This Row],[2018/19_Source]]*T_DataComboFile[[#This Row],[G&S reporting level indicator]]","v":0},{"$f":"T_DataComboFile[[#This Row],[2019/20 Main appropriation_Source]]*T_DataComboFile[[#This Row],[G&S reporting level indicator]]","v":0},{"$f":"T_DataComboFile[[#This Row],[2019/20 Adjusted appropriation_Source]]*T_DataComboFile[[#This Row],[G&S reporting level indicator]]","v":0},{"$f":"T_DataComboFile[[#This Row],[2019/20 Revised estimate_Source]]*T_DataComboFile[[#This Row],[G&S reporting level indicator]]","v":0},{"$f":"T_DataComboFile[[#This Row],[2019/20 Preliminary outcome_Source]]*T_DataComboFile[[#This Row],[G&S reporting level indicator]]","v":0},{"$f":"T_DataComboFile[[#This Row],[2020/21 Original_Source]]*T_DataComboFile[[#This Row],[G&S reporting level indicator]]","v":0},{"$f":"T_DataComboFile[[#This Row],[2020/21 SAB_Source]]*T_DataComboFile[[#This Row],[G&S reporting level indicator]]","v":0},{"$f":"T_DataComboFile[[#This Row],[2020/21 Baseline_Source]]*T_DataComboFile[[#This Row],[G&S reporting level indicator]]","v":0},{"$f":"T_DataComboFile[[#This Row],[2021/22 Baseline_Source]]*T_DataComboFile[[#This Row],[G&S reporting level indicator]]","v":0},{"$f":"T_DataComboFile[[#This Row],[2022/23 Baseline_Source]]*T_DataComboFile[[#This Row],[G&S reporting level indicator]]","v":0},{"$f":"T_DataComboFile[[#This Row],[2023/24 Baseline_Source]]*T_DataComboFile[[#This Row],[G&S reporting level indicator]]","v":0},null,null,null,null,null,null,{"$f":"T_DataComboFile[[#This Row],[2021/22 Baseline]]+T_DataComboFile[[#This Row],[2021/22 Reduction]]+T_DataComboFile[[#This Row],[2021/22 Increase]]","v":0},{"$f":"T_DataComboFile[[#This Row],[2022/23 Baseline]]+T_DataComboFile[[#This Row],[2022/23 Reduction]]+T_DataComboFile[[#This Row],[2022/23 Increase]]","v":0},{"$f":"T_DataComboFile[[#This Row],[2023/24 Baseline]]+T_DataComboFile[[#This Row],[2023/24 Reduction]]+T_DataComboFile[[#This Row],[2023/24 Increase]]","v":0}]
["NAT|Non-transfer item","36|Minor assets","2021_22","ENE2020",36,1,4,17246,70306,36,1,4,17246,"070306","36|01|04",1,1,2,5,5,"01|01|02|05|05","National","Small Business Development","Administration","Financial Management","Non-transfer item","Current","Current payments","Goods and services","Minor assets","Minor assets","Economic development","Industrialisation and exports","NAT",5,1,0,0,0,0,0,0,0,0,0,0,0,1,null,{"$f":"IF(T_DataComboFile[[#This Row],[G&S reporting level indicator]]=1,$AX$16,\"Not applicable\")","v":"Not applicable"},{"$f":"IF(AND($AX$16=\"Level 3\",T_DataComboFile[[#This Row],[Econ3]] = \"Goods and services\"),IF(T_DataComboFile[[#This Row],[Econ4]] = T_DataComboFile[[#This Row],[Econ3]],1,0),IF(AND($AX$16=\"Level 4\",T_DataComboFile[[#This Row],[Econ4]] = \"Goods and services\"),0,1))","v":0},{"$f":"T_DataComboFile[[#This Row],[2016/17_Source]]*T_DataComboFile[[#This Row],[G&S reporting level indicator]]","v":0},{"$f":"T_DataComboFile[[#This Row],[2017/18_Source]]*T_DataComboFile[[#This Row],[G&S reporting level indicator]]","v":0},{"$f":"T_DataComboFile[[#This Row],[2018/19_Source]]*T_DataComboFile[[#This Row],[G&S reporting level indicator]]","v":0},{"$f":"T_DataComboFile[[#This Row],[2019/20 Main appropriation_Source]]*T_DataComboFile[[#This Row],[G&S reporting level indicator]]","v":0},{"$f":"T_DataComboFile[[#This Row],[2019/20 Adjusted appropriation_Source]]*T_DataComboFile[[#This Row],[G&S reporting level indicator]]","v":0},{"$f":"T_DataComboFile[[#This Row],[2019/20 Revised estimate_Source]]*T_DataComboFile[[#This Row],[G&S reporting level indicator]]","v":0},{"$f":"T_DataComboFile[[#This Row],[2019/20 Preliminary outcome_Source]]*T_DataComboFile[[#This Row],[G&S reporting level indicator]]","v":0},{"$f":"T_DataComboFile[[#This Row],[2020/21 Original_Source]]*T_DataComboFile[[#This Row],[G&S reporting level indicator]]","v":0},{"$f":"T_DataComboFile[[#This Row],[2020/21 SAB_Source]]*T_DataComboFile[[#This Row],[G&S reporting level indicator]]","v":0},{"$f":"T_DataComboFile[[#This Row],[2020/21 Baseline_Source]]*T_DataComboFile[[#This Row],[G&S reporting level indicator]]","v":0},{"$f":"T_DataComboFile[[#This Row],[2021/22 Baseline_Source]]*T_DataComboFile[[#This Row],[G&S reporting level indicator]]","v":0},{"$f":"T_DataComboFile[[#This Row],[2022/23 Baseline_Source]]*T_DataComboFile[[#This Row],[G&S reporting level indicator]]","v":0},{"$f":"T_DataComboFile[[#This Row],[2023/24 Baseline_Source]]*T_DataComboFile[[#This Row],[G&S reporting level indicator]]","v":0},null,null,null,null,null,null,{"$f":"T_DataComboFile[[#This Row],[2021/22 Baseline]]+T_DataComboFile[[#This Row],[2021/22 Reduction]]+T_DataComboFile[[#This Row],[2021/22 Increase]]","v":0},{"$f":"T_DataComboFile[[#This Row],[2022/23 Baseline]]+T_DataComboFile[[#This Row],[2022/23 Reduction]]+T_DataComboFile[[#This Row],[2022/23 Increase]]","v":0},{"$f":"T_DataComboFile[[#This Row],[2023/24 Baseline]]+T_DataComboFile[[#This Row],[2023/24 Reduction]]+T_DataComboFile[[#This Row],[2023/24 Increase]]","v":0}]
["NAT|Non-transfer item","36|Audit costs: External","2021_22","ENE2020",36,1,4,17247,70307,36,1,4,17247,"070307","36|01|04",1,1,2,6,6,"01|01|02|06|06","National","Small Business Development","Administration","Financial Management","Non-transfer item","Current","Current payments","Goods and services","Audit costs: External","Audit costs: External","Economic development","Industrialisation and exports","NAT",3189,3289,4052,4265,4265,4265,4265,4300,4300,4300,4500,4600,4803,1,null,{"$f":"IF(T_DataComboFile[[#This Row],[G&S reporting level indicator]]=1,$AX$16,\"Not applicable\")","v":"Not applicable"},{"$f":"IF(AND($AX$16=\"Level 3\",T_DataComboFile[[#This Row],[Econ3]] = \"Goods and services\"),IF(T_DataComboFile[[#This Row],[Econ4]] = T_DataComboFile[[#This Row],[Econ3]],1,0),IF(AND($AX$16=\"Level 4\",T_DataComboFile[[#This Row],[Econ4]] = \"Goods and services\"),0,1))","v":0},{"$f":"T_DataComboFile[[#This Row],[2016/17_Source]]*T_DataComboFile[[#This Row],[G&S reporting level indicator]]","v":0},{"$f":"T_DataComboFile[[#This Row],[2017/18_Source]]*T_DataComboFile[[#This Row],[G&S reporting level indicator]]","v":0},{"$f":"T_DataComboFile[[#This Row],[2018/19_Source]]*T_DataComboFile[[#This Row],[G&S reporting level indicator]]","v":0},{"$f":"T_DataComboFile[[#This Row],[2019/20 Main appropriation_Source]]*T_DataComboFile[[#This Row],[G&S reporting level indicator]]","v":0},{"$f":"T_DataComboFile[[#This Row],[2019/20 Adjusted appropriation_Source]]*T_DataComboFile[[#This Row],[G&S reporting level indicator]]","v":0},{"$f":"T_DataComboFile[[#This Row],[2019/20 Revised estimate_Source]]*T_DataComboFile[[#This Row],[G&S reporting level indicator]]","v":0},{"$f":"T_DataComboFile[[#This Row],[2019/20 Preliminary outcome_Source]]*T_DataComboFile[[#This Row],[G&S reporting level indicator]]","v":0},{"$f":"T_DataComboFile[[#This Row],[2020/21 Original_Source]]*T_DataComboFile[[#This Row],[G&S reporting level indicator]]","v":0},{"$f":"T_DataComboFile[[#This Row],[2020/21 SAB_Source]]*T_DataComboFile[[#This Row],[G&S reporting level indicator]]","v":0},{"$f":"T_DataComboFile[[#This Row],[2020/21 Baseline_Source]]*T_DataComboFile[[#This Row],[G&S reporting level indicator]]","v":0},{"$f":"T_DataComboFile[[#This Row],[2021/22 Baseline_Source]]*T_DataComboFile[[#This Row],[G&S reporting level indicator]]","v":0},{"$f":"T_DataComboFile[[#This Row],[2022/23 Baseline_Source]]*T_DataComboFile[[#This Row],[G&S reporting level indicator]]","v":0},{"$f":"T_DataComboFile[[#This Row],[2023/24 Baseline_Source]]*T_DataComboFile[[#This Row],[G&S reporting level indicator]]","v":0},null,null,null,null,null,null,{"$f":"T_DataComboFile[[#This Row],[2021/22 Baseline]]+T_DataComboFile[[#This Row],[2021/22 Reduction]]+T_DataComboFile[[#This Row],[2021/22 Increase]]","v":0},{"$f":"T_DataComboFile[[#This Row],[2022/23 Baseline]]+T_DataComboFile[[#This Row],[2022/23 Reduction]]+T_DataComboFile[[#This Row],[2022/23 Increase]]","v":0},{"$f":"T_DataComboFile[[#This Row],[2023/24 Baseline]]+T_DataComboFile[[#This Row],[2023/24 Reduction]]+T_DataComboFile[[#This Row],[2023/24 Increase]]","v":0}]
[null,null,"2021_22","ENE2020",36,1,4,null,70308,36,1,4,null,"070308","36|01|04",1,1,2,7,7,"01|01|02|07|07","National","Small Business Development","Administration","Financial Management",null,"Current","Current payments","Goods and services","Bursaries: Employees","Bursaries: Employees",null,null,null,0,0,0,0,0,0,0,0,0,0,0,0,0,0,null,{"$f":"IF(T_DataComboFile[[#This Row],[G&S reporting level indicator]]=1,$AX$16,\"Not applicable\")","v":"Not applicable"},{"$f":"IF(AND($AX$16=\"Level 3\",T_DataComboFile[[#This Row],[Econ3]] = \"Goods and services\"),IF(T_DataComboFile[[#This Row],[Econ4]] = T_DataComboFile[[#This Row],[Econ3]],1,0),IF(AND($AX$16=\"Level 4\",T_DataComboFile[[#This Row],[Econ4]] = \"Goods and services\"),0,1))","v":0},{"$f":"T_DataComboFile[[#This Row],[2016/17_Source]]*T_DataComboFile[[#This Row],[G&S reporting level indicator]]","v":0},{"$f":"T_DataComboFile[[#This Row],[2017/18_Source]]*T_DataComboFile[[#This Row],[G&S reporting level indicator]]","v":0},{"$f":"T_DataComboFile[[#This Row],[2018/19_Source]]*T_DataComboFile[[#This Row],[G&S reporting level indicator]]","v":0},{"$f":"T_DataComboFile[[#This Row],[2019/20 Main appropriation_Source]]*T_DataComboFile[[#This Row],[G&S reporting level indicator]]","v":0},{"$f":"T_DataComboFile[[#This Row],[2019/20 Adjusted appropriation_Source]]*T_DataComboFile[[#This Row],[G&S reporting level indicator]]","v":0},{"$f":"T_DataComboFile[[#This Row],[2019/20 Revised estimate_Source]]*T_DataComboFile[[#This Row],[G&S reporting level indicator]]","v":0},{"$f":"T_DataComboFile[[#This Row],[2019/20 Preliminary outcome_Source]]*T_DataComboFile[[#This Row],[G&S reporting level indicator]]","v":0},{"$f":"T_DataComboFile[[#This Row],[2020/21 Original_Source]]*T_DataComboFile[[#This Row],[G&S reporting level indicator]]","v":0},{"$f":"T_DataComboFile[[#This Row],[2020/21 SAB_Source]]*T_DataComboFile[[#This Row],[G&S reporting level indicator]]","v":0},{"$f":"T_DataComboFile[[#This Row],[2020/21 Baseline_Source]]*T_DataComboFile[[#This Row],[G&S reporting level indicator]]","v":0},{"$f":"T_DataComboFile[[#This Row],[2021/22 Baseline_Source]]*T_DataComboFile[[#This Row],[G&S reporting level indicator]]","v":0},{"$f":"T_DataComboFile[[#This Row],[2022/23 Baseline_Source]]*T_DataComboFile[[#This Row],[G&S reporting level indicator]]","v":0},{"$f":"T_DataComboFile[[#This Row],[2023/24 Baseline_Source]]*T_DataComboFile[[#This Row],[G&S reporting level indicator]]","v":0},null,null,null,null,null,null,{"$f":"T_DataComboFile[[#This Row],[2021/22 Baseline]]+T_DataComboFile[[#This Row],[2021/22 Reduction]]+T_DataComboFile[[#This Row],[2021/22 Increase]]","v":0},{"$f":"T_DataComboFile[[#This Row],[2022/23 Baseline]]+T_DataComboFile[[#This Row],[2022/23 Reduction]]+T_DataComboFile[[#This Row],[2022/23 Increase]]","v":0},{"$f":"T_DataComboFile[[#This Row],[2023/24 Baseline]]+T_DataComboFile[[#This Row],[2023/24 Reduction]]+T_DataComboFile[[#This Row],[2023/24 Increase]]","v":0}]
["NAT|Non-transfer item","36|Catering: Departmental activities","2021_22","ENE2020",36,1,4,17248,70309,36,1,4,17248,"070309","36|01|04",1,1,2,8,8,"01|01|02|08|08","National","Small Business Development","Administration","Financial Management","Non-transfer item","Current","Current payments","Goods and services","Catering: Departmental activities","Catering: Departmental activities","Economic development","Industrialisation and exports","NAT",5,44,11,11,11,11,11,12,12,12,13,14,15,1,null,{"$f":"IF(T_DataComboFile[[#This Row],[G&S reporting level indicator]]=1,$AX$16,\"Not applicable\")","v":"Not applicable"},{"$f":"IF(AND($AX$16=\"Level 3\",T_DataComboFile[[#This Row],[Econ3]] = \"Goods and services\"),IF(T_DataComboFile[[#This Row],[Econ4]] = T_DataComboFile[[#This Row],[Econ3]],1,0),IF(AND($AX$16=\"Level 4\",T_DataComboFile[[#This Row],[Econ4]] = \"Goods and services\"),0,1))","v":0},{"$f":"T_DataComboFile[[#This Row],[2016/17_Source]]*T_DataComboFile[[#This Row],[G&S reporting level indicator]]","v":0},{"$f":"T_DataComboFile[[#This Row],[2017/18_Source]]*T_DataComboFile[[#This Row],[G&S reporting level indicator]]","v":0},{"$f":"T_DataComboFile[[#This Row],[2018/19_Source]]*T_DataComboFile[[#This Row],[G&S reporting level indicator]]","v":0},{"$f":"T_DataComboFile[[#This Row],[2019/20 Main appropriation_Source]]*T_DataComboFile[[#This Row],[G&S reporting level indicator]]","v":0},{"$f":"T_DataComboFile[[#This Row],[2019/20 Adjusted appropriation_Source]]*T_DataComboFile[[#This Row],[G&S reporting level indicator]]","v":0},{"$f":"T_DataComboFile[[#This Row],[2019/20 Revised estimate_Source]]*T_DataComboFile[[#This Row],[G&S reporting level indicator]]","v":0},{"$f":"T_DataComboFile[[#This Row],[2019/20 Preliminary outcome_Source]]*T_DataComboFile[[#This Row],[G&S reporting level indicator]]","v":0},{"$f":"T_DataComboFile[[#This Row],[2020/21 Original_Source]]*T_DataComboFile[[#This Row],[G&S reporting level indicator]]","v":0},{"$f":"T_DataComboFile[[#This Row],[2020/21 SAB_Source]]*T_DataComboFile[[#This Row],[G&S reporting level indicator]]","v":0},{"$f":"T_DataComboFile[[#This Row],[2020/21 Baseline_Source]]*T_DataComboFile[[#This Row],[G&S reporting level indicator]]","v":0},{"$f":"T_DataComboFile[[#This Row],[2021/22 Baseline_Source]]*T_DataComboFile[[#This Row],[G&S reporting level indicator]]","v":0},{"$f":"T_DataComboFile[[#This Row],[2022/23 Baseline_Source]]*T_DataComboFile[[#This Row],[G&S reporting level indicator]]","v":0},{"$f":"T_DataComboFile[[#This Row],[2023/24 Baseline_Source]]*T_DataComboFile[[#This Row],[G&S reporting level indicator]]","v":0},null,null,null,null,null,null,{"$f":"T_DataComboFile[[#This Row],[2021/22 Baseline]]+T_DataComboFile[[#This Row],[2021/22 Reduction]]+T_DataComboFile[[#This Row],[2021/22 Increase]]","v":0},{"$f":"T_DataComboFile[[#This Row],[2022/23 Baseline]]+T_DataComboFile[[#This Row],[2022/23 Reduction]]+T_DataComboFile[[#This Row],[2022/23 Increase]]","v":0},{"$f":"T_DataComboFile[[#This Row],[2023/24 Baseline]]+T_DataComboFile[[#This Row],[2023/24 Reduction]]+T_DataComboFile[[#This Row],[2023/24 Increase]]","v":0}]
["NAT|Non-transfer item","36|Communication (G&S)","2021_22","ENE2020",36,1,4,17249,70310,36,1,4,17249,"070310","36|01|04",1,1,2,9,9,"01|01|02|09|09","National","Small Business Development","Administration","Financial Management","Non-transfer item","Current","Current payments","Goods and services","Communication (G&S)","Communication (G&S)","Economic development","Industrialisation and exports","NAT",50,10,101,12,96,96,96,105,105,105,110,115,120,1,null,{"$f":"IF(T_DataComboFile[[#This Row],[G&S reporting level indicator]]=1,$AX$16,\"Not applicable\")","v":"Not applicable"},{"$f":"IF(AND($AX$16=\"Level 3\",T_DataComboFile[[#This Row],[Econ3]] = \"Goods and services\"),IF(T_DataComboFile[[#This Row],[Econ4]] = T_DataComboFile[[#This Row],[Econ3]],1,0),IF(AND($AX$16=\"Level 4\",T_DataComboFile[[#This Row],[Econ4]] = \"Goods and services\"),0,1))","v":0},{"$f":"T_DataComboFile[[#This Row],[2016/17_Source]]*T_DataComboFile[[#This Row],[G&S reporting level indicator]]","v":0},{"$f":"T_DataComboFile[[#This Row],[2017/18_Source]]*T_DataComboFile[[#This Row],[G&S reporting level indicator]]","v":0},{"$f":"T_DataComboFile[[#This Row],[2018/19_Source]]*T_DataComboFile[[#This Row],[G&S reporting level indicator]]","v":0},{"$f":"T_DataComboFile[[#This Row],[2019/20 Main appropriation_Source]]*T_DataComboFile[[#This Row],[G&S reporting level indicator]]","v":0},{"$f":"T_DataComboFile[[#This Row],[2019/20 Adjusted appropriation_Source]]*T_DataComboFile[[#This Row],[G&S reporting level indicator]]","v":0},{"$f":"T_DataComboFile[[#This Row],[2019/20 Revised estimate_Source]]*T_DataComboFile[[#This Row],[G&S reporting level indicator]]","v":0},{"$f":"T_DataComboFile[[#This Row],[2019/20 Preliminary outcome_Source]]*T_DataComboFile[[#This Row],[G&S reporting level indicator]]","v":0},{"$f":"T_DataComboFile[[#This Row],[2020/21 Original_Source]]*T_DataComboFile[[#This Row],[G&S reporting level indicator]]","v":0},{"$f":"T_DataComboFile[[#This Row],[2020/21 SAB_Source]]*T_DataComboFile[[#This Row],[G&S reporting level indicator]]","v":0},{"$f":"T_DataComboFile[[#This Row],[2020/21 Baseline_Source]]*T_DataComboFile[[#This Row],[G&S reporting level indicator]]","v":0},{"$f":"T_DataComboFile[[#This Row],[2021/22 Baseline_Source]]*T_DataComboFile[[#This Row],[G&S reporting level indicator]]","v":0},{"$f":"T_DataComboFile[[#This Row],[2022/23 Baseline_Source]]*T_DataComboFile[[#This Row],[G&S reporting level indicator]]","v":0},{"$f":"T_DataComboFile[[#This Row],[2023/24 Baseline_Source]]*T_DataComboFile[[#This Row],[G&S reporting level indicator]]","v":0},null,null,null,null,null,null,{"$f":"T_DataComboFile[[#This Row],[2021/22 Baseline]]+T_DataComboFile[[#This Row],[2021/22 Reduction]]+T_DataComboFile[[#This Row],[2021/22 Increase]]","v":0},{"$f":"T_DataComboFile[[#This Row],[2022/23 Baseline]]+T_DataComboFile[[#This Row],[2022/23 Reduction]]+T_DataComboFile[[#This Row],[2022/23 Increase]]","v":0},{"$f":"T_DataComboFile[[#This Row],[2023/24 Baseline]]+T_DataComboFile[[#This Row],[2023/24 Reduction]]+T_DataComboFile[[#This Row],[2023/24 Increase]]","v":0}]
["NAT|Non-transfer item","36|Computer services","2021_22","ENE2020",36,1,4,17250,70311,36,1,4,17250,"070311","36|01|04",1,1,2,10,10,"01|01|02|10|10","National","Small Business Development","Administration","Financial Management","Non-transfer item","Current","Current payments","Goods and services","Computer services","Computer services","Economic development","Industrialisation and exports","NAT",287,277,532,350,350,350,350,550,550,550,585,612,639,1,null,{"$f":"IF(T_DataComboFile[[#This Row],[G&S reporting level indicator]]=1,$AX$16,\"Not applicable\")","v":"Not applicable"},{"$f":"IF(AND($AX$16=\"Level 3\",T_DataComboFile[[#This Row],[Econ3]] = \"Goods and services\"),IF(T_DataComboFile[[#This Row],[Econ4]] = T_DataComboFile[[#This Row],[Econ3]],1,0),IF(AND($AX$16=\"Level 4\",T_DataComboFile[[#This Row],[Econ4]] = \"Goods and services\"),0,1))","v":0},{"$f":"T_DataComboFile[[#This Row],[2016/17_Source]]*T_DataComboFile[[#This Row],[G&S reporting level indicator]]","v":0},{"$f":"T_DataComboFile[[#This Row],[2017/18_Source]]*T_DataComboFile[[#This Row],[G&S reporting level indicator]]","v":0},{"$f":"T_DataComboFile[[#This Row],[2018/19_Source]]*T_DataComboFile[[#This Row],[G&S reporting level indicator]]","v":0},{"$f":"T_DataComboFile[[#This Row],[2019/20 Main appropriation_Source]]*T_DataComboFile[[#This Row],[G&S reporting level indicator]]","v":0},{"$f":"T_DataComboFile[[#This Row],[2019/20 Adjusted appropriation_Source]]*T_DataComboFile[[#This Row],[G&S reporting level indicator]]","v":0},{"$f":"T_DataComboFile[[#This Row],[2019/20 Revised estimate_Source]]*T_DataComboFile[[#This Row],[G&S reporting level indicator]]","v":0},{"$f":"T_DataComboFile[[#This Row],[2019/20 Preliminary outcome_Source]]*T_DataComboFile[[#This Row],[G&S reporting level indicator]]","v":0},{"$f":"T_DataComboFile[[#This Row],[2020/21 Original_Source]]*T_DataComboFile[[#This Row],[G&S reporting level indicator]]","v":0},{"$f":"T_DataComboFile[[#This Row],[2020/21 SAB_Source]]*T_DataComboFile[[#This Row],[G&S reporting level indicator]]","v":0},{"$f":"T_DataComboFile[[#This Row],[2020/21 Baseline_Source]]*T_DataComboFile[[#This Row],[G&S reporting level indicator]]","v":0},{"$f":"T_DataComboFile[[#This Row],[2021/22 Baseline_Source]]*T_DataComboFile[[#This Row],[G&S reporting level indicator]]","v":0},{"$f":"T_DataComboFile[[#This Row],[2022/23 Baseline_Source]]*T_DataComboFile[[#This Row],[G&S reporting level indicator]]","v":0},{"$f":"T_DataComboFile[[#This Row],[2023/24 Baseline_Source]]*T_DataComboFile[[#This Row],[G&S reporting level indicator]]","v":0},null,null,null,null,null,null,{"$f":"T_DataComboFile[[#This Row],[2021/22 Baseline]]+T_DataComboFile[[#This Row],[2021/22 Reduction]]+T_DataComboFile[[#This Row],[2021/22 Increase]]","v":0},{"$f":"T_DataComboFile[[#This Row],[2022/23 Baseline]]+T_DataComboFile[[#This Row],[2022/23 Reduction]]+T_DataComboFile[[#This Row],[2022/23 Increase]]","v":0},{"$f":"T_DataComboFile[[#This Row],[2023/24 Baseline]]+T_DataComboFile[[#This Row],[2023/24 Reduction]]+T_DataComboFile[[#This Row],[2023/24 Increase]]","v":0}]
["NAT|Non-transfer item","36|Consultants: Business and advisory services","2021_22","ENE2020",36,1,4,17251,70312,36,1,4,17251,"070312","36|01|04",1,1,2,11,11,"01|01|02|11|11","National","Small Business Development","Administration","Financial Management","Non-transfer item","Current","Current payments","Goods and services","Consultants: Business and advisory services","Consultants: Business and advisory services","Economic development","Industrialisation and exports","NAT",68,0,0,0,0,0,0,0,0,0,0,0,0,1,null,{"$f":"IF(T_DataComboFile[[#This Row],[G&S reporting level indicator]]=1,$AX$16,\"Not applicable\")","v":"Not applicable"},{"$f":"IF(AND($AX$16=\"Level 3\",T_DataComboFile[[#This Row],[Econ3]] = \"Goods and services\"),IF(T_DataComboFile[[#This Row],[Econ4]] = T_DataComboFile[[#This Row],[Econ3]],1,0),IF(AND($AX$16=\"Level 4\",T_DataComboFile[[#This Row],[Econ4]] = \"Goods and services\"),0,1))","v":0},{"$f":"T_DataComboFile[[#This Row],[2016/17_Source]]*T_DataComboFile[[#This Row],[G&S reporting level indicator]]","v":0},{"$f":"T_DataComboFile[[#This Row],[2017/18_Source]]*T_DataComboFile[[#This Row],[G&S reporting level indicator]]","v":0},{"$f":"T_DataComboFile[[#This Row],[2018/19_Source]]*T_DataComboFile[[#This Row],[G&S reporting level indicator]]","v":0},{"$f":"T_DataComboFile[[#This Row],[2019/20 Main appropriation_Source]]*T_DataComboFile[[#This Row],[G&S reporting level indicator]]","v":0},{"$f":"T_DataComboFile[[#This Row],[2019/20 Adjusted appropriation_Source]]*T_DataComboFile[[#This Row],[G&S reporting level indicator]]","v":0},{"$f":"T_DataComboFile[[#This Row],[2019/20 Revised estimate_Source]]*T_DataComboFile[[#This Row],[G&S reporting level indicator]]","v":0},{"$f":"T_DataComboFile[[#This Row],[2019/20 Preliminary outcome_Source]]*T_DataComboFile[[#This Row],[G&S reporting level indicator]]","v":0},{"$f":"T_DataComboFile[[#This Row],[2020/21 Original_Source]]*T_DataComboFile[[#This Row],[G&S reporting level indicator]]","v":0},{"$f":"T_DataComboFile[[#This Row],[2020/21 SAB_Source]]*T_DataComboFile[[#This Row],[G&S reporting level indicator]]","v":0},{"$f":"T_DataComboFile[[#This Row],[2020/21 Baseline_Source]]*T_DataComboFile[[#This Row],[G&S reporting level indicator]]","v":0},{"$f":"T_DataComboFile[[#This Row],[2021/22 Baseline_Source]]*T_DataComboFile[[#This Row],[G&S reporting level indicator]]","v":0},{"$f":"T_DataComboFile[[#This Row],[2022/23 Baseline_Source]]*T_DataComboFile[[#This Row],[G&S reporting level indicator]]","v":0},{"$f":"T_DataComboFile[[#This Row],[2023/24 Baseline_Source]]*T_DataComboFile[[#This Row],[G&S reporting level indicator]]","v":0},null,null,null,null,null,null,{"$f":"T_DataComboFile[[#This Row],[2021/22 Baseline]]+T_DataComboFile[[#This Row],[2021/22 Reduction]]+T_DataComboFile[[#This Row],[2021/22 Increase]]","v":0},{"$f":"T_DataComboFile[[#This Row],[2022/23 Baseline]]+T_DataComboFile[[#This Row],[2022/23 Reduction]]+T_DataComboFile[[#This Row],[2022/23 Increase]]","v":0},{"$f":"T_DataComboFile[[#This Row],[2023/24 Baseline]]+T_DataComboFile[[#This Row],[2023/24 Reduction]]+T_DataComboFile[[#This Row],[2023/24 Increase]]","v":0}]
[null,null,"2021_22","ENE2020",36,1,4,null,70313,36,1,4,null,"070313","36|01|04",1,1,2,12,12,"01|01|02|12|12","National","Small Business Development","Administration","Financial Management",null,"Current","Current payments","Goods and services","Infrastructure and planning services","Infrastructure and planning services",null,null,null,0,0,0,0,0,0,0,0,0,0,0,0,0,0,null,{"$f":"IF(T_DataComboFile[[#This Row],[G&S reporting level indicator]]=1,$AX$16,\"Not applicable\")","v":"Not applicable"},{"$f":"IF(AND($AX$16=\"Level 3\",T_DataComboFile[[#This Row],[Econ3]] = \"Goods and services\"),IF(T_DataComboFile[[#This Row],[Econ4]] = T_DataComboFile[[#This Row],[Econ3]],1,0),IF(AND($AX$16=\"Level 4\",T_DataComboFile[[#This Row],[Econ4]] = \"Goods and services\"),0,1))","v":0},{"$f":"T_DataComboFile[[#This Row],[2016/17_Source]]*T_DataComboFile[[#This Row],[G&S reporting level indicator]]","v":0},{"$f":"T_DataComboFile[[#This Row],[2017/18_Source]]*T_DataComboFile[[#This Row],[G&S reporting level indicator]]","v":0},{"$f":"T_DataComboFile[[#This Row],[2018/19_Source]]*T_DataComboFile[[#This Row],[G&S reporting level indicator]]","v":0},{"$f":"T_DataComboFile[[#This Row],[2019/20 Main appropriation_Source]]*T_DataComboFile[[#This Row],[G&S reporting level indicator]]","v":0},{"$f":"T_DataComboFile[[#This Row],[2019/20 Adjusted appropriation_Source]]*T_DataComboFile[[#This Row],[G&S reporting level indicator]]","v":0},{"$f":"T_DataComboFile[[#This Row],[2019/20 Revised estimate_Source]]*T_DataComboFile[[#This Row],[G&S reporting level indicator]]","v":0},{"$f":"T_DataComboFile[[#This Row],[2019/20 Preliminary outcome_Source]]*T_DataComboFile[[#This Row],[G&S reporting level indicator]]","v":0},{"$f":"T_DataComboFile[[#This Row],[2020/21 Original_Source]]*T_DataComboFile[[#This Row],[G&S reporting level indicator]]","v":0},{"$f":"T_DataComboFile[[#This Row],[2020/21 SAB_Source]]*T_DataComboFile[[#This Row],[G&S reporting level indicator]]","v":0},{"$f":"T_DataComboFile[[#This Row],[2020/21 Baseline_Source]]*T_DataComboFile[[#This Row],[G&S reporting level indicator]]","v":0},{"$f":"T_DataComboFile[[#This Row],[2021/22 Baseline_Source]]*T_DataComboFile[[#This Row],[G&S reporting level indicator]]","v":0},{"$f":"T_DataComboFile[[#This Row],[2022/23 Baseline_Source]]*T_DataComboFile[[#This Row],[G&S reporting level indicator]]","v":0},{"$f":"T_DataComboFile[[#This Row],[2023/24 Baseline_Source]]*T_DataComboFile[[#This Row],[G&S reporting level indicator]]","v":0},null,null,null,null,null,null,{"$f":"T_DataComboFile[[#This Row],[2021/22 Baseline]]+T_DataComboFile[[#This Row],[2021/22 Reduction]]+T_DataComboFile[[#This Row],[2021/22 Increase]]","v":0},{"$f":"T_DataComboFile[[#This Row],[2022/23 Baseline]]+T_DataComboFile[[#This Row],[2022/23 Reduction]]+T_DataComboFile[[#This Row],[2022/23 Increase]]","v":0},{"$f":"T_DataComboFile[[#This Row],[2023/24 Baseline]]+T_DataComboFile[[#This Row],[2023/24 Reduction]]+T_DataComboFile[[#This Row],[2023/24 Increase]]","v":0}]
[null,null,"2021_22","ENE2020",36,1,4,null,70314,36,1,4,null,"070314","36|01|04",1,1,2,13,13,"01|01|02|13|13","National","Small Business Development","Administration","Financial Management",null,"Current","Current payments","Goods and services","Laboratory services","Laboratory services",null,null,null,0,0,0,0,0,0,0,0,0,0,0,0,0,0,null,{"$f":"IF(T_DataComboFile[[#This Row],[G&S reporting level indicator]]=1,$AX$16,\"Not applicable\")","v":"Not applicable"},{"$f":"IF(AND($AX$16=\"Level 3\",T_DataComboFile[[#This Row],[Econ3]] = \"Goods and services\"),IF(T_DataComboFile[[#This Row],[Econ4]] = T_DataComboFile[[#This Row],[Econ3]],1,0),IF(AND($AX$16=\"Level 4\",T_DataComboFile[[#This Row],[Econ4]] = \"Goods and services\"),0,1))","v":0},{"$f":"T_DataComboFile[[#This Row],[2016/17_Source]]*T_DataComboFile[[#This Row],[G&S reporting level indicator]]","v":0},{"$f":"T_DataComboFile[[#This Row],[2017/18_Source]]*T_DataComboFile[[#This Row],[G&S reporting level indicator]]","v":0},{"$f":"T_DataComboFile[[#This Row],[2018/19_Source]]*T_DataComboFile[[#This Row],[G&S reporting level indicator]]","v":0},{"$f":"T_DataComboFile[[#This Row],[2019/20 Main appropriation_Source]]*T_DataComboFile[[#This Row],[G&S reporting level indicator]]","v":0},{"$f":"T_DataComboFile[[#This Row],[2019/20 Adjusted appropriation_Source]]*T_DataComboFile[[#This Row],[G&S reporting level indicator]]","v":0},{"$f":"T_DataComboFile[[#This Row],[2019/20 Revised estimate_Source]]*T_DataComboFile[[#This Row],[G&S reporting level indicator]]","v":0},{"$f":"T_DataComboFile[[#This Row],[2019/20 Preliminary outcome_Source]]*T_DataComboFile[[#This Row],[G&S reporting level indicator]]","v":0},{"$f":"T_DataComboFile[[#This Row],[2020/21 Original_Source]]*T_DataComboFile[[#This Row],[G&S reporting level indicator]]","v":0},{"$f":"T_DataComboFile[[#This Row],[2020/21 SAB_Source]]*T_DataComboFile[[#This Row],[G&S reporting level indicator]]","v":0},{"$f":"T_DataComboFile[[#This Row],[2020/21 Baseline_Source]]*T_DataComboFile[[#This Row],[G&S reporting level indicator]]","v":0},{"$f":"T_DataComboFile[[#This Row],[2021/22 Baseline_Source]]*T_DataComboFile[[#This Row],[G&S reporting level indicator]]","v":0},{"$f":"T_DataComboFile[[#This Row],[2022/23 Baseline_Source]]*T_DataComboFile[[#This Row],[G&S reporting level indicator]]","v":0},{"$f":"T_DataComboFile[[#This Row],[2023/24 Baseline_Source]]*T_DataComboFile[[#This Row],[G&S reporting level indicator]]","v":0},null,null,null,null,null,null,{"$f":"T_DataComboFile[[#This Row],[2021/22 Baseline]]+T_DataComboFile[[#This Row],[2021/22 Reduction]]+T_DataComboFile[[#This Row],[2021/22 Increase]]","v":0},{"$f":"T_DataComboFile[[#This Row],[2022/23 Baseline]]+T_DataComboFile[[#This Row],[2022/23 Reduction]]+T_DataComboFile[[#This Row],[2022/23 Increase]]","v":0},{"$f":"T_DataComboFile[[#This Row],[2023/24 Baseline]]+T_DataComboFile[[#This Row],[2023/24 Reduction]]+T_DataComboFile[[#This Row],[2023/24 Increase]]","v":0}]
[null,null,"2021_22","ENE2020",36,1,4,null,70315,36,1,4,null,"070315","36|01|04",1,1,2,14,14,"01|01|02|14|14","National","Small Business Development","Administration","Financial Management",null,"Current","Current payments","Goods and services","Legal services (G&S)","Legal services (G&S)",null,null,null,0,0,0,0,0,0,0,0,0,0,0,0,0,0,null,{"$f":"IF(T_DataComboFile[[#This Row],[G&S reporting level indicator]]=1,$AX$16,\"Not applicable\")","v":"Not applicable"},{"$f":"IF(AND($AX$16=\"Level 3\",T_DataComboFile[[#This Row],[Econ3]] = \"Goods and services\"),IF(T_DataComboFile[[#This Row],[Econ4]] = T_DataComboFile[[#This Row],[Econ3]],1,0),IF(AND($AX$16=\"Level 4\",T_DataComboFile[[#This Row],[Econ4]] = \"Goods and services\"),0,1))","v":0},{"$f":"T_DataComboFile[[#This Row],[2016/17_Source]]*T_DataComboFile[[#This Row],[G&S reporting level indicator]]","v":0},{"$f":"T_DataComboFile[[#This Row],[2017/18_Source]]*T_DataComboFile[[#This Row],[G&S reporting level indicator]]","v":0},{"$f":"T_DataComboFile[[#This Row],[2018/19_Source]]*T_DataComboFile[[#This Row],[G&S reporting level indicator]]","v":0},{"$f":"T_DataComboFile[[#This Row],[2019/20 Main appropriation_Source]]*T_DataComboFile[[#This Row],[G&S reporting level indicator]]","v":0},{"$f":"T_DataComboFile[[#This Row],[2019/20 Adjusted appropriation_Source]]*T_DataComboFile[[#This Row],[G&S reporting level indicator]]","v":0},{"$f":"T_DataComboFile[[#This Row],[2019/20 Revised estimate_Source]]*T_DataComboFile[[#This Row],[G&S reporting level indicator]]","v":0},{"$f":"T_DataComboFile[[#This Row],[2019/20 Preliminary outcome_Source]]*T_DataComboFile[[#This Row],[G&S reporting level indicator]]","v":0},{"$f":"T_DataComboFile[[#This Row],[2020/21 Original_Source]]*T_DataComboFile[[#This Row],[G&S reporting level indicator]]","v":0},{"$f":"T_DataComboFile[[#This Row],[2020/21 SAB_Source]]*T_DataComboFile[[#This Row],[G&S reporting level indicator]]","v":0},{"$f":"T_DataComboFile[[#This Row],[2020/21 Baseline_Source]]*T_DataComboFile[[#This Row],[G&S reporting level indicator]]","v":0},{"$f":"T_DataComboFile[[#This Row],[2021/22 Baseline_Source]]*T_DataComboFile[[#This Row],[G&S reporting level indicator]]","v":0},{"$f":"T_DataComboFile[[#This Row],[2022/23 Baseline_Source]]*T_DataComboFile[[#This Row],[G&S reporting level indicator]]","v":0},{"$f":"T_DataComboFile[[#This Row],[2023/24 Baseline_Source]]*T_DataComboFile[[#This Row],[G&S reporting level indicator]]","v":0},null,null,null,null,null,null,{"$f":"T_DataComboFile[[#This Row],[2021/22 Baseline]]+T_DataComboFile[[#This Row],[2021/22 Reduction]]+T_DataComboFile[[#This Row],[2021/22 Increase]]","v":0},{"$f":"T_DataComboFile[[#This Row],[2022/23 Baseline]]+T_DataComboFile[[#This Row],[2022/23 Reduction]]+T_DataComboFile[[#This Row],[2022/23 Increase]]","v":0},{"$f":"T_DataComboFile[[#This Row],[2023/24 Baseline]]+T_DataComboFile[[#This Row],[2023/24 Reduction]]+T_DataComboFile[[#This Row],[2023/24 Increase]]","v":0}]
[null,null,"2021_22","ENE2020",36,1,4,null,70316,36,1,4,null,"070316","36|01|04",1,1,2,15,15,"01|01|02|15|15","National","Small Business Development","Administration","Financial Management",null,"Current","Current payments","Goods and services","Science and technological services","Science and technological services",null,null,null,0,0,0,0,0,0,0,0,0,0,0,0,0,0,null,{"$f":"IF(T_DataComboFile[[#This Row],[G&S reporting level indicator]]=1,$AX$16,\"Not applicable\")","v":"Not applicable"},{"$f":"IF(AND($AX$16=\"Level 3\",T_DataComboFile[[#This Row],[Econ3]] = \"Goods and services\"),IF(T_DataComboFile[[#This Row],[Econ4]] = T_DataComboFile[[#This Row],[Econ3]],1,0),IF(AND($AX$16=\"Level 4\",T_DataComboFile[[#This Row],[Econ4]] = \"Goods and services\"),0,1))","v":0},{"$f":"T_DataComboFile[[#This Row],[2016/17_Source]]*T_DataComboFile[[#This Row],[G&S reporting level indicator]]","v":0},{"$f":"T_DataComboFile[[#This Row],[2017/18_Source]]*T_DataComboFile[[#This Row],[G&S reporting level indicator]]","v":0},{"$f":"T_DataComboFile[[#This Row],[2018/19_Source]]*T_DataComboFile[[#This Row],[G&S reporting level indicator]]","v":0},{"$f":"T_DataComboFile[[#This Row],[2019/20 Main appropriation_Source]]*T_DataComboFile[[#This Row],[G&S reporting level indicator]]","v":0},{"$f":"T_DataComboFile[[#This Row],[2019/20 Adjusted appropriation_Source]]*T_DataComboFile[[#This Row],[G&S reporting level indicator]]","v":0},{"$f":"T_DataComboFile[[#This Row],[2019/20 Revised estimate_Source]]*T_DataComboFile[[#This Row],[G&S reporting level indicator]]","v":0},{"$f":"T_DataComboFile[[#This Row],[2019/20 Preliminary outcome_Source]]*T_DataComboFile[[#This Row],[G&S reporting level indicator]]","v":0},{"$f":"T_DataComboFile[[#This Row],[2020/21 Original_Source]]*T_DataComboFile[[#This Row],[G&S reporting level indicator]]","v":0},{"$f":"T_DataComboFile[[#This Row],[2020/21 SAB_Source]]*T_DataComboFile[[#This Row],[G&S reporting level indicator]]","v":0},{"$f":"T_DataComboFile[[#This Row],[2020/21 Baseline_Source]]*T_DataComboFile[[#This Row],[G&S reporting level indicator]]","v":0},{"$f":"T_DataComboFile[[#This Row],[2021/22 Baseline_Source]]*T_DataComboFile[[#This Row],[G&S reporting level indicator]]","v":0},{"$f":"T_DataComboFile[[#This Row],[2022/23 Baseline_Source]]*T_DataComboFile[[#This Row],[G&S reporting level indicator]]","v":0},{"$f":"T_DataComboFile[[#This Row],[2023/24 Baseline_Source]]*T_DataComboFile[[#This Row],[G&S reporting level indicator]]","v":0},null,null,null,null,null,null,{"$f":"T_DataComboFile[[#This Row],[2021/22 Baseline]]+T_DataComboFile[[#This Row],[2021/22 Reduction]]+T_DataComboFile[[#This Row],[2021/22 Increase]]","v":0},{"$f":"T_DataComboFile[[#This Row],[2022/23 Baseline]]+T_DataComboFile[[#This Row],[2022/23 Reduction]]+T_DataComboFile[[#This Row],[2022/23 Increase]]","v":0},{"$f":"T_DataComboFile[[#This Row],[2023/24 Baseline]]+T_DataComboFile[[#This Row],[2023/24 Reduction]]+T_DataComboFile[[#This Row],[2023/24 Increase]]","v":0}]
["NAT|Non-transfer item","36|Contractors","2021_22","ENE2020",36,1,4,17252,70317,36,1,4,17252,"070317","36|01|04",1,1,2,16,16,"01|01|02|16|16","National","Small Business Development","Administration","Financial Management","Non-transfer item","Current","Current payments","Goods and services","Contractors","Contractors","Economic development","Industrialisation and exports","NAT",0,1,9,10,10,10,10,0,0,0,0,0,0,1,null,{"$f":"IF(T_DataComboFile[[#This Row],[G&S reporting level indicator]]=1,$AX$16,\"Not applicable\")","v":"Not applicable"},{"$f":"IF(AND($AX$16=\"Level 3\",T_DataComboFile[[#This Row],[Econ3]] = \"Goods and services\"),IF(T_DataComboFile[[#This Row],[Econ4]] = T_DataComboFile[[#This Row],[Econ3]],1,0),IF(AND($AX$16=\"Level 4\",T_DataComboFile[[#This Row],[Econ4]] = \"Goods and services\"),0,1))","v":0},{"$f":"T_DataComboFile[[#This Row],[2016/17_Source]]*T_DataComboFile[[#This Row],[G&S reporting level indicator]]","v":0},{"$f":"T_DataComboFile[[#This Row],[2017/18_Source]]*T_DataComboFile[[#This Row],[G&S reporting level indicator]]","v":0},{"$f":"T_DataComboFile[[#This Row],[2018/19_Source]]*T_DataComboFile[[#This Row],[G&S reporting level indicator]]","v":0},{"$f":"T_DataComboFile[[#This Row],[2019/20 Main appropriation_Source]]*T_DataComboFile[[#This Row],[G&S reporting level indicator]]","v":0},{"$f":"T_DataComboFile[[#This Row],[2019/20 Adjusted appropriation_Source]]*T_DataComboFile[[#This Row],[G&S reporting level indicator]]","v":0},{"$f":"T_DataComboFile[[#This Row],[2019/20 Revised estimate_Source]]*T_DataComboFile[[#This Row],[G&S reporting level indicator]]","v":0},{"$f":"T_DataComboFile[[#This Row],[2019/20 Preliminary outcome_Source]]*T_DataComboFile[[#This Row],[G&S reporting level indicator]]","v":0},{"$f":"T_DataComboFile[[#This Row],[2020/21 Original_Source]]*T_DataComboFile[[#This Row],[G&S reporting level indicator]]","v":0},{"$f":"T_DataComboFile[[#This Row],[2020/21 SAB_Source]]*T_DataComboFile[[#This Row],[G&S reporting level indicator]]","v":0},{"$f":"T_DataComboFile[[#This Row],[2020/21 Baseline_Source]]*T_DataComboFile[[#This Row],[G&S reporting level indicator]]","v":0},{"$f":"T_DataComboFile[[#This Row],[2021/22 Baseline_Source]]*T_DataComboFile[[#This Row],[G&S reporting level indicator]]","v":0},{"$f":"T_DataComboFile[[#This Row],[2022/23 Baseline_Source]]*T_DataComboFile[[#This Row],[G&S reporting level indicator]]","v":0},{"$f":"T_DataComboFile[[#This Row],[2023/24 Baseline_Source]]*T_DataComboFile[[#This Row],[G&S reporting level indicator]]","v":0},null,null,null,null,null,null,{"$f":"T_DataComboFile[[#This Row],[2021/22 Baseline]]+T_DataComboFile[[#This Row],[2021/22 Reduction]]+T_DataComboFile[[#This Row],[2021/22 Increase]]","v":0},{"$f":"T_DataComboFile[[#This Row],[2022/23 Baseline]]+T_DataComboFile[[#This Row],[2022/23 Reduction]]+T_DataComboFile[[#This Row],[2022/23 Increase]]","v":0},{"$f":"T_DataComboFile[[#This Row],[2023/24 Baseline]]+T_DataComboFile[[#This Row],[2023/24 Reduction]]+T_DataComboFile[[#This Row],[2023/24 Increase]]","v":0}]
[null,null,"2021_22","ENE2020",36,1,4,null,70318,36,1,4,null,"070318","36|01|04",1,1,2,17,17,"01|01|02|17|17","National","Small Business Development","Administration","Financial Management",null,"Current","Current payments","Goods and services","Agency and support/outsourced services","Agency and support/outsourced services",null,null,null,0,0,0,0,0,0,0,0,0,0,0,0,0,0,null,{"$f":"IF(T_DataComboFile[[#This Row],[G&S reporting level indicator]]=1,$AX$16,\"Not applicable\")","v":"Not applicable"},{"$f":"IF(AND($AX$16=\"Level 3\",T_DataComboFile[[#This Row],[Econ3]] = \"Goods and services\"),IF(T_DataComboFile[[#This Row],[Econ4]] = T_DataComboFile[[#This Row],[Econ3]],1,0),IF(AND($AX$16=\"Level 4\",T_DataComboFile[[#This Row],[Econ4]] = \"Goods and services\"),0,1))","v":0},{"$f":"T_DataComboFile[[#This Row],[2016/17_Source]]*T_DataComboFile[[#This Row],[G&S reporting level indicator]]","v":0},{"$f":"T_DataComboFile[[#This Row],[2017/18_Source]]*T_DataComboFile[[#This Row],[G&S reporting level indicator]]","v":0},{"$f":"T_DataComboFile[[#This Row],[2018/19_Source]]*T_DataComboFile[[#This Row],[G&S reporting level indicator]]","v":0},{"$f":"T_DataComboFile[[#This Row],[2019/20 Main appropriation_Source]]*T_DataComboFile[[#This Row],[G&S reporting level indicator]]","v":0},{"$f":"T_DataComboFile[[#This Row],[2019/20 Adjusted appropriation_Source]]*T_DataComboFile[[#This Row],[G&S reporting level indicator]]","v":0},{"$f":"T_DataComboFile[[#This Row],[2019/20 Revised estimate_Source]]*T_DataComboFile[[#This Row],[G&S reporting level indicator]]","v":0},{"$f":"T_DataComboFile[[#This Row],[2019/20 Preliminary outcome_Source]]*T_DataComboFile[[#This Row],[G&S reporting level indicator]]","v":0},{"$f":"T_DataComboFile[[#This Row],[2020/21 Original_Source]]*T_DataComboFile[[#This Row],[G&S reporting level indicator]]","v":0},{"$f":"T_DataComboFile[[#This Row],[2020/21 SAB_Source]]*T_DataComboFile[[#This Row],[G&S reporting level indicator]]","v":0},{"$f":"T_DataComboFile[[#This Row],[2020/21 Baseline_Source]]*T_DataComboFile[[#This Row],[G&S reporting level indicator]]","v":0},{"$f":"T_DataComboFile[[#This Row],[2021/22 Baseline_Source]]*T_DataComboFile[[#This Row],[G&S reporting level indicator]]","v":0},{"$f":"T_DataComboFile[[#This Row],[2022/23 Baseline_Source]]*T_DataComboFile[[#This Row],[G&S reporting level indicator]]","v":0},{"$f":"T_DataComboFile[[#This Row],[2023/24 Baseline_Source]]*T_DataComboFile[[#This Row],[G&S reporting level indicator]]","v":0},null,null,null,null,null,null,{"$f":"T_DataComboFile[[#This Row],[2021/22 Baseline]]+T_DataComboFile[[#This Row],[2021/22 Reduction]]+T_DataComboFile[[#This Row],[2021/22 Increase]]","v":0},{"$f":"T_DataComboFile[[#This Row],[2022/23 Baseline]]+T_DataComboFile[[#This Row],[2022/23 Reduction]]+T_DataComboFile[[#This Row],[2022/23 Increase]]","v":0},{"$f":"T_DataComboFile[[#This Row],[2023/24 Baseline]]+T_DataComboFile[[#This Row],[2023/24 Reduction]]+T_DataComboFile[[#This Row],[2023/24 Increase]]","v":0}]
[null,null,"2021_22","ENE2020",36,1,4,null,70319,36,1,4,null,"070319","36|01|04",1,1,2,18,18,"01|01|02|18|18","National","Small Business Development","Administration","Financial Management",null,"Current","Current payments","Goods and services","Entertainment","Entertainment",null,null,null,0,0,0,0,0,0,0,0,0,0,0,0,0,0,null,{"$f":"IF(T_DataComboFile[[#This Row],[G&S reporting level indicator]]=1,$AX$16,\"Not applicable\")","v":"Not applicable"},{"$f":"IF(AND($AX$16=\"Level 3\",T_DataComboFile[[#This Row],[Econ3]] = \"Goods and services\"),IF(T_DataComboFile[[#This Row],[Econ4]] = T_DataComboFile[[#This Row],[Econ3]],1,0),IF(AND($AX$16=\"Level 4\",T_DataComboFile[[#This Row],[Econ4]] = \"Goods and services\"),0,1))","v":0},{"$f":"T_DataComboFile[[#This Row],[2016/17_Source]]*T_DataComboFile[[#This Row],[G&S reporting level indicator]]","v":0},{"$f":"T_DataComboFile[[#This Row],[2017/18_Source]]*T_DataComboFile[[#This Row],[G&S reporting level indicator]]","v":0},{"$f":"T_DataComboFile[[#This Row],[2018/19_Source]]*T_DataComboFile[[#This Row],[G&S reporting level indicator]]","v":0},{"$f":"T_DataComboFile[[#This Row],[2019/20 Main appropriation_Source]]*T_DataComboFile[[#This Row],[G&S reporting level indicator]]","v":0},{"$f":"T_DataComboFile[[#This Row],[2019/20 Adjusted appropriation_Source]]*T_DataComboFile[[#This Row],[G&S reporting level indicator]]","v":0},{"$f":"T_DataComboFile[[#This Row],[2019/20 Revised estimate_Source]]*T_DataComboFile[[#This Row],[G&S reporting level indicator]]","v":0},{"$f":"T_DataComboFile[[#This Row],[2019/20 Preliminary outcome_Source]]*T_DataComboFile[[#This Row],[G&S reporting level indicator]]","v":0},{"$f":"T_DataComboFile[[#This Row],[2020/21 Original_Source]]*T_DataComboFile[[#This Row],[G&S reporting level indicator]]","v":0},{"$f":"T_DataComboFile[[#This Row],[2020/21 SAB_Source]]*T_DataComboFile[[#This Row],[G&S reporting level indicator]]","v":0},{"$f":"T_DataComboFile[[#This Row],[2020/21 Baseline_Source]]*T_DataComboFile[[#This Row],[G&S reporting level indicator]]","v":0},{"$f":"T_DataComboFile[[#This Row],[2021/22 Baseline_Source]]*T_DataComboFile[[#This Row],[G&S reporting level indicator]]","v":0},{"$f":"T_DataComboFile[[#This Row],[2022/23 Baseline_Source]]*T_DataComboFile[[#This Row],[G&S reporting level indicator]]","v":0},{"$f":"T_DataComboFile[[#This Row],[2023/24 Baseline_Source]]*T_DataComboFile[[#This Row],[G&S reporting level indicator]]","v":0},null,null,null,null,null,null,{"$f":"T_DataComboFile[[#This Row],[2021/22 Baseline]]+T_DataComboFile[[#This Row],[2021/22 Reduction]]+T_DataComboFile[[#This Row],[2021/22 Increase]]","v":0},{"$f":"T_DataComboFile[[#This Row],[2022/23 Baseline]]+T_DataComboFile[[#This Row],[2022/23 Reduction]]+T_DataComboFile[[#This Row],[2022/23 Increase]]","v":0},{"$f":"T_DataComboFile[[#This Row],[2023/24 Baseline]]+T_DataComboFile[[#This Row],[2023/24 Reduction]]+T_DataComboFile[[#This Row],[2023/24 Increase]]","v":0}]
["NAT|Non-transfer item","36|Fleet services (including government motor transport)","2021_22","ENE2020",36,1,4,17253,70320,36,1,4,17253,"070320","36|01|04",1,1,2,19,19,"01|01|02|19|19","National","Small Business Development","Administration","Financial Management","Non-transfer item","Current","Current payments","Goods and services","Fleet services (including government motor transport)","Fleet services (including government motor transport)","Economic development","Industrialisation and exports","NAT",244,309,454,468,382,382,382,470,470,470,480,490,512,1,null,{"$f":"IF(T_DataComboFile[[#This Row],[G&S reporting level indicator]]=1,$AX$16,\"Not applicable\")","v":"Not applicable"},{"$f":"IF(AND($AX$16=\"Level 3\",T_DataComboFile[[#This Row],[Econ3]] = \"Goods and services\"),IF(T_DataComboFile[[#This Row],[Econ4]] = T_DataComboFile[[#This Row],[Econ3]],1,0),IF(AND($AX$16=\"Level 4\",T_DataComboFile[[#This Row],[Econ4]] = \"Goods and services\"),0,1))","v":0},{"$f":"T_DataComboFile[[#This Row],[2016/17_Source]]*T_DataComboFile[[#This Row],[G&S reporting level indicator]]","v":0},{"$f":"T_DataComboFile[[#This Row],[2017/18_Source]]*T_DataComboFile[[#This Row],[G&S reporting level indicator]]","v":0},{"$f":"T_DataComboFile[[#This Row],[2018/19_Source]]*T_DataComboFile[[#This Row],[G&S reporting level indicator]]","v":0},{"$f":"T_DataComboFile[[#This Row],[2019/20 Main appropriation_Source]]*T_DataComboFile[[#This Row],[G&S reporting level indicator]]","v":0},{"$f":"T_DataComboFile[[#This Row],[2019/20 Adjusted appropriation_Source]]*T_DataComboFile[[#This Row],[G&S reporting level indicator]]","v":0},{"$f":"T_DataComboFile[[#This Row],[2019/20 Revised estimate_Source]]*T_DataComboFile[[#This Row],[G&S reporting level indicator]]","v":0},{"$f":"T_DataComboFile[[#This Row],[2019/20 Preliminary outcome_Source]]*T_DataComboFile[[#This Row],[G&S reporting level indicator]]","v":0},{"$f":"T_DataComboFile[[#This Row],[2020/21 Original_Source]]*T_DataComboFile[[#This Row],[G&S reporting level indicator]]","v":0},{"$f":"T_DataComboFile[[#This Row],[2020/21 SAB_Source]]*T_DataComboFile[[#This Row],[G&S reporting level indicator]]","v":0},{"$f":"T_DataComboFile[[#This Row],[2020/21 Baseline_Source]]*T_DataComboFile[[#This Row],[G&S reporting level indicator]]","v":0},{"$f":"T_DataComboFile[[#This Row],[2021/22 Baseline_Source]]*T_DataComboFile[[#This Row],[G&S reporting level indicator]]","v":0},{"$f":"T_DataComboFile[[#This Row],[2022/23 Baseline_Source]]*T_DataComboFile[[#This Row],[G&S reporting level indicator]]","v":0},{"$f":"T_DataComboFile[[#This Row],[2023/24 Baseline_Source]]*T_DataComboFile[[#This Row],[G&S reporting level indicator]]","v":0},null,null,null,null,null,null,{"$f":"T_DataComboFile[[#This Row],[2021/22 Baseline]]+T_DataComboFile[[#This Row],[2021/22 Reduction]]+T_DataComboFile[[#This Row],[2021/22 Increase]]","v":0},{"$f":"T_DataComboFile[[#This Row],[2022/23 Baseline]]+T_DataComboFile[[#This Row],[2022/23 Reduction]]+T_DataComboFile[[#This Row],[2022/23 Increase]]","v":0},{"$f":"T_DataComboFile[[#This Row],[2023/24 Baseline]]+T_DataComboFile[[#This Row],[2023/24 Reduction]]+T_DataComboFile[[#This Row],[2023/24 Increase]]","v":0}]
[null,null,"2021_22","ENE2020",36,1,4,null,70321,36,1,4,null,"070321","36|01|04",1,1,2,20,20,"01|01|02|20|20","National","Small Business Development","Administration","Financial Management",null,"Current","Current payments","Goods and services","Housing","Housing",null,null,null,0,0,0,0,0,0,0,0,0,0,0,0,0,0,null,{"$f":"IF(T_DataComboFile[[#This Row],[G&S reporting level indicator]]=1,$AX$16,\"Not applicable\")","v":"Not applicable"},{"$f":"IF(AND($AX$16=\"Level 3\",T_DataComboFile[[#This Row],[Econ3]] = \"Goods and services\"),IF(T_DataComboFile[[#This Row],[Econ4]] = T_DataComboFile[[#This Row],[Econ3]],1,0),IF(AND($AX$16=\"Level 4\",T_DataComboFile[[#This Row],[Econ4]] = \"Goods and services\"),0,1))","v":0},{"$f":"T_DataComboFile[[#This Row],[2016/17_Source]]*T_DataComboFile[[#This Row],[G&S reporting level indicator]]","v":0},{"$f":"T_DataComboFile[[#This Row],[2017/18_Source]]*T_DataComboFile[[#This Row],[G&S reporting level indicator]]","v":0},{"$f":"T_DataComboFile[[#This Row],[2018/19_Source]]*T_DataComboFile[[#This Row],[G&S reporting level indicator]]","v":0},{"$f":"T_DataComboFile[[#This Row],[2019/20 Main appropriation_Source]]*T_DataComboFile[[#This Row],[G&S reporting level indicator]]","v":0},{"$f":"T_DataComboFile[[#This Row],[2019/20 Adjusted appropriation_Source]]*T_DataComboFile[[#This Row],[G&S reporting level indicator]]","v":0},{"$f":"T_DataComboFile[[#This Row],[2019/20 Revised estimate_Source]]*T_DataComboFile[[#This Row],[G&S reporting level indicator]]","v":0},{"$f":"T_DataComboFile[[#This Row],[2019/20 Preliminary outcome_Source]]*T_DataComboFile[[#This Row],[G&S reporting level indicator]]","v":0},{"$f":"T_DataComboFile[[#This Row],[2020/21 Original_Source]]*T_DataComboFile[[#This Row],[G&S reporting level indicator]]","v":0},{"$f":"T_DataComboFile[[#This Row],[2020/21 SAB_Source]]*T_DataComboFile[[#This Row],[G&S reporting level indicator]]","v":0},{"$f":"T_DataComboFile[[#This Row],[2020/21 Baseline_Source]]*T_DataComboFile[[#This Row],[G&S reporting level indicator]]","v":0},{"$f":"T_DataComboFile[[#This Row],[2021/22 Baseline_Source]]*T_DataComboFile[[#This Row],[G&S reporting level indicator]]","v":0},{"$f":"T_DataComboFile[[#This Row],[2022/23 Baseline_Source]]*T_DataComboFile[[#This Row],[G&S reporting level indicator]]","v":0},{"$f":"T_DataComboFile[[#This Row],[2023/24 Baseline_Source]]*T_DataComboFile[[#This Row],[G&S reporting level indicator]]","v":0},null,null,null,null,null,null,{"$f":"T_DataComboFile[[#This Row],[2021/22 Baseline]]+T_DataComboFile[[#This Row],[2021/22 Reduction]]+T_DataComboFile[[#This Row],[2021/22 Increase]]","v":0},{"$f":"T_DataComboFile[[#This Row],[2022/23 Baseline]]+T_DataComboFile[[#This Row],[2022/23 Reduction]]+T_DataComboFile[[#This Row],[2022/23 Increase]]","v":0},{"$f":"T_DataComboFile[[#This Row],[2023/24 Baseline]]+T_DataComboFile[[#This Row],[2023/24 Reduction]]+T_DataComboFile[[#This Row],[2023/24 Increase]]","v":0}]
[null,null,"2021_22","ENE2020",36,1,4,null,70322,36,1,4,null,"070322","36|01|04",1,1,2,21,21,"01|01|02|21|21","National","Small Business Development","Administration","Financial Management",null,"Current","Current payments","Goods and services","Inventory: Clothing material and accessories","Inventory: Clothing material and accessories",null,null,null,0,0,0,0,0,0,0,0,0,0,0,0,0,0,null,{"$f":"IF(T_DataComboFile[[#This Row],[G&S reporting level indicator]]=1,$AX$16,\"Not applicable\")","v":"Not applicable"},{"$f":"IF(AND($AX$16=\"Level 3\",T_DataComboFile[[#This Row],[Econ3]] = \"Goods and services\"),IF(T_DataComboFile[[#This Row],[Econ4]] = T_DataComboFile[[#This Row],[Econ3]],1,0),IF(AND($AX$16=\"Level 4\",T_DataComboFile[[#This Row],[Econ4]] = \"Goods and services\"),0,1))","v":0},{"$f":"T_DataComboFile[[#This Row],[2016/17_Source]]*T_DataComboFile[[#This Row],[G&S reporting level indicator]]","v":0},{"$f":"T_DataComboFile[[#This Row],[2017/18_Source]]*T_DataComboFile[[#This Row],[G&S reporting level indicator]]","v":0},{"$f":"T_DataComboFile[[#This Row],[2018/19_Source]]*T_DataComboFile[[#This Row],[G&S reporting level indicator]]","v":0},{"$f":"T_DataComboFile[[#This Row],[2019/20 Main appropriation_Source]]*T_DataComboFile[[#This Row],[G&S reporting level indicator]]","v":0},{"$f":"T_DataComboFile[[#This Row],[2019/20 Adjusted appropriation_Source]]*T_DataComboFile[[#This Row],[G&S reporting level indicator]]","v":0},{"$f":"T_DataComboFile[[#This Row],[2019/20 Revised estimate_Source]]*T_DataComboFile[[#This Row],[G&S reporting level indicator]]","v":0},{"$f":"T_DataComboFile[[#This Row],[2019/20 Preliminary outcome_Source]]*T_DataComboFile[[#This Row],[G&S reporting level indicator]]","v":0},{"$f":"T_DataComboFile[[#This Row],[2020/21 Original_Source]]*T_DataComboFile[[#This Row],[G&S reporting level indicator]]","v":0},{"$f":"T_DataComboFile[[#This Row],[2020/21 SAB_Source]]*T_DataComboFile[[#This Row],[G&S reporting level indicator]]","v":0},{"$f":"T_DataComboFile[[#This Row],[2020/21 Baseline_Source]]*T_DataComboFile[[#This Row],[G&S reporting level indicator]]","v":0},{"$f":"T_DataComboFile[[#This Row],[2021/22 Baseline_Source]]*T_DataComboFile[[#This Row],[G&S reporting level indicator]]","v":0},{"$f":"T_DataComboFile[[#This Row],[2022/23 Baseline_Source]]*T_DataComboFile[[#This Row],[G&S reporting level indicator]]","v":0},{"$f":"T_DataComboFile[[#This Row],[2023/24 Baseline_Source]]*T_DataComboFile[[#This Row],[G&S reporting level indicator]]","v":0},null,null,null,null,null,null,{"$f":"T_DataComboFile[[#This Row],[2021/22 Baseline]]+T_DataComboFile[[#This Row],[2021/22 Reduction]]+T_DataComboFile[[#This Row],[2021/22 Increase]]","v":0},{"$f":"T_DataComboFile[[#This Row],[2022/23 Baseline]]+T_DataComboFile[[#This Row],[2022/23 Reduction]]+T_DataComboFile[[#This Row],[2022/23 Increase]]","v":0},{"$f":"T_DataComboFile[[#This Row],[2023/24 Baseline]]+T_DataComboFile[[#This Row],[2023/24 Reduction]]+T_DataComboFile[[#This Row],[2023/24 Increase]]","v":0}]
[null,null,"2021_22","ENE2020",36,1,4,null,70323,36,1,4,null,"070323","36|01|04",1,1,2,22,22,"01|01|02|22|22","National","Small Business Development","Administration","Financial Management",null,"Current","Current payments","Goods and services","Inventory: Farming supplies","Inventory: Farming supplies",null,null,null,0,0,0,0,0,0,0,0,0,0,0,0,0,0,null,{"$f":"IF(T_DataComboFile[[#This Row],[G&S reporting level indicator]]=1,$AX$16,\"Not applicable\")","v":"Not applicable"},{"$f":"IF(AND($AX$16=\"Level 3\",T_DataComboFile[[#This Row],[Econ3]] = \"Goods and services\"),IF(T_DataComboFile[[#This Row],[Econ4]] = T_DataComboFile[[#This Row],[Econ3]],1,0),IF(AND($AX$16=\"Level 4\",T_DataComboFile[[#This Row],[Econ4]] = \"Goods and services\"),0,1))","v":0},{"$f":"T_DataComboFile[[#This Row],[2016/17_Source]]*T_DataComboFile[[#This Row],[G&S reporting level indicator]]","v":0},{"$f":"T_DataComboFile[[#This Row],[2017/18_Source]]*T_DataComboFile[[#This Row],[G&S reporting level indicator]]","v":0},{"$f":"T_DataComboFile[[#This Row],[2018/19_Source]]*T_DataComboFile[[#This Row],[G&S reporting level indicator]]","v":0},{"$f":"T_DataComboFile[[#This Row],[2019/20 Main appropriation_Source]]*T_DataComboFile[[#This Row],[G&S reporting level indicator]]","v":0},{"$f":"T_DataComboFile[[#This Row],[2019/20 Adjusted appropriation_Source]]*T_DataComboFile[[#This Row],[G&S reporting level indicator]]","v":0},{"$f":"T_DataComboFile[[#This Row],[2019/20 Revised estimate_Source]]*T_DataComboFile[[#This Row],[G&S reporting level indicator]]","v":0},{"$f":"T_DataComboFile[[#This Row],[2019/20 Preliminary outcome_Source]]*T_DataComboFile[[#This Row],[G&S reporting level indicator]]","v":0},{"$f":"T_DataComboFile[[#This Row],[2020/21 Original_Source]]*T_DataComboFile[[#This Row],[G&S reporting level indicator]]","v":0},{"$f":"T_DataComboFile[[#This Row],[2020/21 SAB_Source]]*T_DataComboFile[[#This Row],[G&S reporting level indicator]]","v":0},{"$f":"T_DataComboFile[[#This Row],[2020/21 Baseline_Source]]*T_DataComboFile[[#This Row],[G&S reporting level indicator]]","v":0},{"$f":"T_DataComboFile[[#This Row],[2021/22 Baseline_Source]]*T_DataComboFile[[#This Row],[G&S reporting level indicator]]","v":0},{"$f":"T_DataComboFile[[#This Row],[2022/23 Baseline_Source]]*T_DataComboFile[[#This Row],[G&S reporting level indicator]]","v":0},{"$f":"T_DataComboFile[[#This Row],[2023/24 Baseline_Source]]*T_DataComboFile[[#This Row],[G&S reporting level indicator]]","v":0},null,null,null,null,null,null,{"$f":"T_DataComboFile[[#This Row],[2021/22 Baseline]]+T_DataComboFile[[#This Row],[2021/22 Reduction]]+T_DataComboFile[[#This Row],[2021/22 Increase]]","v":0},{"$f":"T_DataComboFile[[#This Row],[2022/23 Baseline]]+T_DataComboFile[[#This Row],[2022/23 Reduction]]+T_DataComboFile[[#This Row],[2022/23 Increase]]","v":0},{"$f":"T_DataComboFile[[#This Row],[2023/24 Baseline]]+T_DataComboFile[[#This Row],[2023/24 Reduction]]+T_DataComboFile[[#This Row],[2023/24 Increase]]","v":0}]
[null,null,"2021_22","ENE2020",36,1,4,null,70324,36,1,4,null,"070324","36|01|04",1,1,2,23,23,"01|01|02|23|23","National","Small Business Development","Administration","Financial Management",null,"Current","Current payments","Goods and services","Inventory: Food and food supplies","Inventory: Food and food supplies",null,null,null,0,0,0,0,0,0,0,0,0,0,0,0,0,0,null,{"$f":"IF(T_DataComboFile[[#This Row],[G&S reporting level indicator]]=1,$AX$16,\"Not applicable\")","v":"Not applicable"},{"$f":"IF(AND($AX$16=\"Level 3\",T_DataComboFile[[#This Row],[Econ3]] = \"Goods and services\"),IF(T_DataComboFile[[#This Row],[Econ4]] = T_DataComboFile[[#This Row],[Econ3]],1,0),IF(AND($AX$16=\"Level 4\",T_DataComboFile[[#This Row],[Econ4]] = \"Goods and services\"),0,1))","v":0},{"$f":"T_DataComboFile[[#This Row],[2016/17_Source]]*T_DataComboFile[[#This Row],[G&S reporting level indicator]]","v":0},{"$f":"T_DataComboFile[[#This Row],[2017/18_Source]]*T_DataComboFile[[#This Row],[G&S reporting level indicator]]","v":0},{"$f":"T_DataComboFile[[#This Row],[2018/19_Source]]*T_DataComboFile[[#This Row],[G&S reporting level indicator]]","v":0},{"$f":"T_DataComboFile[[#This Row],[2019/20 Main appropriation_Source]]*T_DataComboFile[[#This Row],[G&S reporting level indicator]]","v":0},{"$f":"T_DataComboFile[[#This Row],[2019/20 Adjusted appropriation_Source]]*T_DataComboFile[[#This Row],[G&S reporting level indicator]]","v":0},{"$f":"T_DataComboFile[[#This Row],[2019/20 Revised estimate_Source]]*T_DataComboFile[[#This Row],[G&S reporting level indicator]]","v":0},{"$f":"T_DataComboFile[[#This Row],[2019/20 Preliminary outcome_Source]]*T_DataComboFile[[#This Row],[G&S reporting level indicator]]","v":0},{"$f":"T_DataComboFile[[#This Row],[2020/21 Original_Source]]*T_DataComboFile[[#This Row],[G&S reporting level indicator]]","v":0},{"$f":"T_DataComboFile[[#This Row],[2020/21 SAB_Source]]*T_DataComboFile[[#This Row],[G&S reporting level indicator]]","v":0},{"$f":"T_DataComboFile[[#This Row],[2020/21 Baseline_Source]]*T_DataComboFile[[#This Row],[G&S reporting level indicator]]","v":0},{"$f":"T_DataComboFile[[#This Row],[2021/22 Baseline_Source]]*T_DataComboFile[[#This Row],[G&S reporting level indicator]]","v":0},{"$f":"T_DataComboFile[[#This Row],[2022/23 Baseline_Source]]*T_DataComboFile[[#This Row],[G&S reporting level indicator]]","v":0},{"$f":"T_DataComboFile[[#This Row],[2023/24 Baseline_Source]]*T_DataComboFile[[#This Row],[G&S reporting level indicator]]","v":0},null,null,null,null,null,null,{"$f":"T_DataComboFile[[#This Row],[2021/22 Baseline]]+T_DataComboFile[[#This Row],[2021/22 Reduction]]+T_DataComboFile[[#This Row],[2021/22 Increase]]","v":0},{"$f":"T_DataComboFile[[#This Row],[2022/23 Baseline]]+T_DataComboFile[[#This Row],[2022/23 Reduction]]+T_DataComboFile[[#This Row],[2022/23 Increase]]","v":0},{"$f":"T_DataComboFile[[#This Row],[2023/24 Baseline]]+T_DataComboFile[[#This Row],[2023/24 Reduction]]+T_DataComboFile[[#This Row],[2023/24 Increase]]","v":0}]
[null,null,"2021_22","ENE2020",36,1,4,null,70325,36,1,4,null,"070325","36|01|04",1,1,2,24,24,"01|01|02|24|24","National","Small Business Development","Administration","Financial Management",null,"Current","Current payments","Goods and services","Inventory: Fuel, oil and gas","Inventory: Fuel, oil and gas",null,null,null,0,0,0,0,0,0,0,0,0,0,0,0,0,0,null,{"$f":"IF(T_DataComboFile[[#This Row],[G&S reporting level indicator]]=1,$AX$16,\"Not applicable\")","v":"Not applicable"},{"$f":"IF(AND($AX$16=\"Level 3\",T_DataComboFile[[#This Row],[Econ3]] = \"Goods and services\"),IF(T_DataComboFile[[#This Row],[Econ4]] = T_DataComboFile[[#This Row],[Econ3]],1,0),IF(AND($AX$16=\"Level 4\",T_DataComboFile[[#This Row],[Econ4]] = \"Goods and services\"),0,1))","v":0},{"$f":"T_DataComboFile[[#This Row],[2016/17_Source]]*T_DataComboFile[[#This Row],[G&S reporting level indicator]]","v":0},{"$f":"T_DataComboFile[[#This Row],[2017/18_Source]]*T_DataComboFile[[#This Row],[G&S reporting level indicator]]","v":0},{"$f":"T_DataComboFile[[#This Row],[2018/19_Source]]*T_DataComboFile[[#This Row],[G&S reporting level indicator]]","v":0},{"$f":"T_DataComboFile[[#This Row],[2019/20 Main appropriation_Source]]*T_DataComboFile[[#This Row],[G&S reporting level indicator]]","v":0},{"$f":"T_DataComboFile[[#This Row],[2019/20 Adjusted appropriation_Source]]*T_DataComboFile[[#This Row],[G&S reporting level indicator]]","v":0},{"$f":"T_DataComboFile[[#This Row],[2019/20 Revised estimate_Source]]*T_DataComboFile[[#This Row],[G&S reporting level indicator]]","v":0},{"$f":"T_DataComboFile[[#This Row],[2019/20 Preliminary outcome_Source]]*T_DataComboFile[[#This Row],[G&S reporting level indicator]]","v":0},{"$f":"T_DataComboFile[[#This Row],[2020/21 Original_Source]]*T_DataComboFile[[#This Row],[G&S reporting level indicator]]","v":0},{"$f":"T_DataComboFile[[#This Row],[2020/21 SAB_Source]]*T_DataComboFile[[#This Row],[G&S reporting level indicator]]","v":0},{"$f":"T_DataComboFile[[#This Row],[2020/21 Baseline_Source]]*T_DataComboFile[[#This Row],[G&S reporting level indicator]]","v":0},{"$f":"T_DataComboFile[[#This Row],[2021/22 Baseline_Source]]*T_DataComboFile[[#This Row],[G&S reporting level indicator]]","v":0},{"$f":"T_DataComboFile[[#This Row],[2022/23 Baseline_Source]]*T_DataComboFile[[#This Row],[G&S reporting level indicator]]","v":0},{"$f":"T_DataComboFile[[#This Row],[2023/24 Baseline_Source]]*T_DataComboFile[[#This Row],[G&S reporting level indicator]]","v":0},null,null,null,null,null,null,{"$f":"T_DataComboFile[[#This Row],[2021/22 Baseline]]+T_DataComboFile[[#This Row],[2021/22 Reduction]]+T_DataComboFile[[#This Row],[2021/22 Increase]]","v":0},{"$f":"T_DataComboFile[[#This Row],[2022/23 Baseline]]+T_DataComboFile[[#This Row],[2022/23 Reduction]]+T_DataComboFile[[#This Row],[2022/23 Increase]]","v":0},{"$f":"T_DataComboFile[[#This Row],[2023/24 Baseline]]+T_DataComboFile[[#This Row],[2023/24 Reduction]]+T_DataComboFile[[#This Row],[2023/24 Increase]]","v":0}]
[null,null,"2021_22","ENE2020",36,1,4,null,70326,36,1,4,null,"070326","36|01|04",1,1,2,25,25,"01|01|02|25|25","National","Small Business Development","Administration","Financial Management",null,"Current","Current payments","Goods and services","Inventory: Learner and teacher support material","Inventory: Learner and teacher support material",null,null,null,0,0,0,0,0,0,0,0,0,0,0,0,0,0,null,{"$f":"IF(T_DataComboFile[[#This Row],[G&S reporting level indicator]]=1,$AX$16,\"Not applicable\")","v":"Not applicable"},{"$f":"IF(AND($AX$16=\"Level 3\",T_DataComboFile[[#This Row],[Econ3]] = \"Goods and services\"),IF(T_DataComboFile[[#This Row],[Econ4]] = T_DataComboFile[[#This Row],[Econ3]],1,0),IF(AND($AX$16=\"Level 4\",T_DataComboFile[[#This Row],[Econ4]] = \"Goods and services\"),0,1))","v":0},{"$f":"T_DataComboFile[[#This Row],[2016/17_Source]]*T_DataComboFile[[#This Row],[G&S reporting level indicator]]","v":0},{"$f":"T_DataComboFile[[#This Row],[2017/18_Source]]*T_DataComboFile[[#This Row],[G&S reporting level indicator]]","v":0},{"$f":"T_DataComboFile[[#This Row],[2018/19_Source]]*T_DataComboFile[[#This Row],[G&S reporting level indicator]]","v":0},{"$f":"T_DataComboFile[[#This Row],[2019/20 Main appropriation_Source]]*T_DataComboFile[[#This Row],[G&S reporting level indicator]]","v":0},{"$f":"T_DataComboFile[[#This Row],[2019/20 Adjusted appropriation_Source]]*T_DataComboFile[[#This Row],[G&S reporting level indicator]]","v":0},{"$f":"T_DataComboFile[[#This Row],[2019/20 Revised estimate_Source]]*T_DataComboFile[[#This Row],[G&S reporting level indicator]]","v":0},{"$f":"T_DataComboFile[[#This Row],[2019/20 Preliminary outcome_Source]]*T_DataComboFile[[#This Row],[G&S reporting level indicator]]","v":0},{"$f":"T_DataComboFile[[#This Row],[2020/21 Original_Source]]*T_DataComboFile[[#This Row],[G&S reporting level indicator]]","v":0},{"$f":"T_DataComboFile[[#This Row],[2020/21 SAB_Source]]*T_DataComboFile[[#This Row],[G&S reporting level indicator]]","v":0},{"$f":"T_DataComboFile[[#This Row],[2020/21 Baseline_Source]]*T_DataComboFile[[#This Row],[G&S reporting level indicator]]","v":0},{"$f":"T_DataComboFile[[#This Row],[2021/22 Baseline_Source]]*T_DataComboFile[[#This Row],[G&S reporting level indicator]]","v":0},{"$f":"T_DataComboFile[[#This Row],[2022/23 Baseline_Source]]*T_DataComboFile[[#This Row],[G&S reporting level indicator]]","v":0},{"$f":"T_DataComboFile[[#This Row],[2023/24 Baseline_Source]]*T_DataComboFile[[#This Row],[G&S reporting level indicator]]","v":0},null,null,null,null,null,null,{"$f":"T_DataComboFile[[#This Row],[2021/22 Baseline]]+T_DataComboFile[[#This Row],[2021/22 Reduction]]+T_DataComboFile[[#This Row],[2021/22 Increase]]","v":0},{"$f":"T_DataComboFile[[#This Row],[2022/23 Baseline]]+T_DataComboFile[[#This Row],[2022/23 Reduction]]+T_DataComboFile[[#This Row],[2022/23 Increase]]","v":0},{"$f":"T_DataComboFile[[#This Row],[2023/24 Baseline]]+T_DataComboFile[[#This Row],[2023/24 Reduction]]+T_DataComboFile[[#This Row],[2023/24 Increase]]","v":0}]
[null,null,"2021_22","ENE2020",36,1,4,null,70327,36,1,4,null,"070327","36|01|04",1,1,2,26,26,"01|01|02|26|26","National","Small Business Development","Administration","Financial Management",null,"Current","Current payments","Goods and services","Inventory: Materials and supplies","Inventory: Materials and supplies",null,null,null,0,0,0,0,0,0,0,0,0,0,0,0,0,0,null,{"$f":"IF(T_DataComboFile[[#This Row],[G&S reporting level indicator]]=1,$AX$16,\"Not applicable\")","v":"Not applicable"},{"$f":"IF(AND($AX$16=\"Level 3\",T_DataComboFile[[#This Row],[Econ3]] = \"Goods and services\"),IF(T_DataComboFile[[#This Row],[Econ4]] = T_DataComboFile[[#This Row],[Econ3]],1,0),IF(AND($AX$16=\"Level 4\",T_DataComboFile[[#This Row],[Econ4]] = \"Goods and services\"),0,1))","v":0},{"$f":"T_DataComboFile[[#This Row],[2016/17_Source]]*T_DataComboFile[[#This Row],[G&S reporting level indicator]]","v":0},{"$f":"T_DataComboFile[[#This Row],[2017/18_Source]]*T_DataComboFile[[#This Row],[G&S reporting level indicator]]","v":0},{"$f":"T_DataComboFile[[#This Row],[2018/19_Source]]*T_DataComboFile[[#This Row],[G&S reporting level indicator]]","v":0},{"$f":"T_DataComboFile[[#This Row],[2019/20 Main appropriation_Source]]*T_DataComboFile[[#This Row],[G&S reporting level indicator]]","v":0},{"$f":"T_DataComboFile[[#This Row],[2019/20 Adjusted appropriation_Source]]*T_DataComboFile[[#This Row],[G&S reporting level indicator]]","v":0},{"$f":"T_DataComboFile[[#This Row],[2019/20 Revised estimate_Source]]*T_DataComboFile[[#This Row],[G&S reporting level indicator]]","v":0},{"$f":"T_DataComboFile[[#This Row],[2019/20 Preliminary outcome_Source]]*T_DataComboFile[[#This Row],[G&S reporting level indicator]]","v":0},{"$f":"T_DataComboFile[[#This Row],[2020/21 Original_Source]]*T_DataComboFile[[#This Row],[G&S reporting level indicator]]","v":0},{"$f":"T_DataComboFile[[#This Row],[2020/21 SAB_Source]]*T_DataComboFile[[#This Row],[G&S reporting level indicator]]","v":0},{"$f":"T_DataComboFile[[#This Row],[2020/21 Baseline_Source]]*T_DataComboFile[[#This Row],[G&S reporting level indicator]]","v":0},{"$f":"T_DataComboFile[[#This Row],[2021/22 Baseline_Source]]*T_DataComboFile[[#This Row],[G&S reporting level indicator]]","v":0},{"$f":"T_DataComboFile[[#This Row],[2022/23 Baseline_Source]]*T_DataComboFile[[#This Row],[G&S reporting level indicator]]","v":0},{"$f":"T_DataComboFile[[#This Row],[2023/24 Baseline_Source]]*T_DataComboFile[[#This Row],[G&S reporting level indicator]]","v":0},null,null,null,null,null,null,{"$f":"T_DataComboFile[[#This Row],[2021/22 Baseline]]+T_DataComboFile[[#This Row],[2021/22 Reduction]]+T_DataComboFile[[#This Row],[2021/22 Increase]]","v":0},{"$f":"T_DataComboFile[[#This Row],[2022/23 Baseline]]+T_DataComboFile[[#This Row],[2022/23 Reduction]]+T_DataComboFile[[#This Row],[2022/23 Increase]]","v":0},{"$f":"T_DataComboFile[[#This Row],[2023/24 Baseline]]+T_DataComboFile[[#This Row],[2023/24 Reduction]]+T_DataComboFile[[#This Row],[2023/24 Increase]]","v":0}]
[null,null,"2021_22","ENE2020",36,1,4,null,70328,36,1,4,null,"070328","36|01|04",1,1,2,27,27,"01|01|02|27|27","National","Small Business Development","Administration","Financial Management",null,"Current","Current payments","Goods and services","Inventory: Medical supplies","Inventory: Medical supplies",null,null,null,0,0,0,0,0,0,0,0,0,0,0,0,0,0,null,{"$f":"IF(T_DataComboFile[[#This Row],[G&S reporting level indicator]]=1,$AX$16,\"Not applicable\")","v":"Not applicable"},{"$f":"IF(AND($AX$16=\"Level 3\",T_DataComboFile[[#This Row],[Econ3]] = \"Goods and services\"),IF(T_DataComboFile[[#This Row],[Econ4]] = T_DataComboFile[[#This Row],[Econ3]],1,0),IF(AND($AX$16=\"Level 4\",T_DataComboFile[[#This Row],[Econ4]] = \"Goods and services\"),0,1))","v":0},{"$f":"T_DataComboFile[[#This Row],[2016/17_Source]]*T_DataComboFile[[#This Row],[G&S reporting level indicator]]","v":0},{"$f":"T_DataComboFile[[#This Row],[2017/18_Source]]*T_DataComboFile[[#This Row],[G&S reporting level indicator]]","v":0},{"$f":"T_DataComboFile[[#This Row],[2018/19_Source]]*T_DataComboFile[[#This Row],[G&S reporting level indicator]]","v":0},{"$f":"T_DataComboFile[[#This Row],[2019/20 Main appropriation_Source]]*T_DataComboFile[[#This Row],[G&S reporting level indicator]]","v":0},{"$f":"T_DataComboFile[[#This Row],[2019/20 Adjusted appropriation_Source]]*T_DataComboFile[[#This Row],[G&S reporting level indicator]]","v":0},{"$f":"T_DataComboFile[[#This Row],[2019/20 Revised estimate_Source]]*T_DataComboFile[[#This Row],[G&S reporting level indicator]]","v":0},{"$f":"T_DataComboFile[[#This Row],[2019/20 Preliminary outcome_Source]]*T_DataComboFile[[#This Row],[G&S reporting level indicator]]","v":0},{"$f":"T_DataComboFile[[#This Row],[2020/21 Original_Source]]*T_DataComboFile[[#This Row],[G&S reporting level indicator]]","v":0},{"$f":"T_DataComboFile[[#This Row],[2020/21 SAB_Source]]*T_DataComboFile[[#This Row],[G&S reporting level indicator]]","v":0},{"$f":"T_DataComboFile[[#This Row],[2020/21 Baseline_Source]]*T_DataComboFile[[#This Row],[G&S reporting level indicator]]","v":0},{"$f":"T_DataComboFile[[#This Row],[2021/22 Baseline_Source]]*T_DataComboFile[[#This Row],[G&S reporting level indicator]]","v":0},{"$f":"T_DataComboFile[[#This Row],[2022/23 Baseline_Source]]*T_DataComboFile[[#This Row],[G&S reporting level indicator]]","v":0},{"$f":"T_DataComboFile[[#This Row],[2023/24 Baseline_Source]]*T_DataComboFile[[#This Row],[G&S reporting level indicator]]","v":0},null,null,null,null,null,null,{"$f":"T_DataComboFile[[#This Row],[2021/22 Baseline]]+T_DataComboFile[[#This Row],[2021/22 Reduction]]+T_DataComboFile[[#This Row],[2021/22 Increase]]","v":0},{"$f":"T_DataComboFile[[#This Row],[2022/23 Baseline]]+T_DataComboFile[[#This Row],[2022/23 Reduction]]+T_DataComboFile[[#This Row],[2022/23 Increase]]","v":0},{"$f":"T_DataComboFile[[#This Row],[2023/24 Baseline]]+T_DataComboFile[[#This Row],[2023/24 Reduction]]+T_DataComboFile[[#This Row],[2023/24 Increase]]","v":0}]
[null,null,"2021_22","ENE2020",36,1,4,null,70329,36,1,4,null,"070329","36|01|04",1,1,2,28,28,"01|01|02|28|28","National","Small Business Development","Administration","Financial Management",null,"Current","Current payments","Goods and services","Inventory: Medicine","Inventory: Medicine",null,null,null,0,0,0,0,0,0,0,0,0,0,0,0,0,0,null,{"$f":"IF(T_DataComboFile[[#This Row],[G&S reporting level indicator]]=1,$AX$16,\"Not applicable\")","v":"Not applicable"},{"$f":"IF(AND($AX$16=\"Level 3\",T_DataComboFile[[#This Row],[Econ3]] = \"Goods and services\"),IF(T_DataComboFile[[#This Row],[Econ4]] = T_DataComboFile[[#This Row],[Econ3]],1,0),IF(AND($AX$16=\"Level 4\",T_DataComboFile[[#This Row],[Econ4]] = \"Goods and services\"),0,1))","v":0},{"$f":"T_DataComboFile[[#This Row],[2016/17_Source]]*T_DataComboFile[[#This Row],[G&S reporting level indicator]]","v":0},{"$f":"T_DataComboFile[[#This Row],[2017/18_Source]]*T_DataComboFile[[#This Row],[G&S reporting level indicator]]","v":0},{"$f":"T_DataComboFile[[#This Row],[2018/19_Source]]*T_DataComboFile[[#This Row],[G&S reporting level indicator]]","v":0},{"$f":"T_DataComboFile[[#This Row],[2019/20 Main appropriation_Source]]*T_DataComboFile[[#This Row],[G&S reporting level indicator]]","v":0},{"$f":"T_DataComboFile[[#This Row],[2019/20 Adjusted appropriation_Source]]*T_DataComboFile[[#This Row],[G&S reporting level indicator]]","v":0},{"$f":"T_DataComboFile[[#This Row],[2019/20 Revised estimate_Source]]*T_DataComboFile[[#This Row],[G&S reporting level indicator]]","v":0},{"$f":"T_DataComboFile[[#This Row],[2019/20 Preliminary outcome_Source]]*T_DataComboFile[[#This Row],[G&S reporting level indicator]]","v":0},{"$f":"T_DataComboFile[[#This Row],[2020/21 Original_Source]]*T_DataComboFile[[#This Row],[G&S reporting level indicator]]","v":0},{"$f":"T_DataComboFile[[#This Row],[2020/21 SAB_Source]]*T_DataComboFile[[#This Row],[G&S reporting level indicator]]","v":0},{"$f":"T_DataComboFile[[#This Row],[2020/21 Baseline_Source]]*T_DataComboFile[[#This Row],[G&S reporting level indicator]]","v":0},{"$f":"T_DataComboFile[[#This Row],[2021/22 Baseline_Source]]*T_DataComboFile[[#This Row],[G&S reporting level indicator]]","v":0},{"$f":"T_DataComboFile[[#This Row],[2022/23 Baseline_Source]]*T_DataComboFile[[#This Row],[G&S reporting level indicator]]","v":0},{"$f":"T_DataComboFile[[#This Row],[2023/24 Baseline_Source]]*T_DataComboFile[[#This Row],[G&S reporting level indicator]]","v":0},null,null,null,null,null,null,{"$f":"T_DataComboFile[[#This Row],[2021/22 Baseline]]+T_DataComboFile[[#This Row],[2021/22 Reduction]]+T_DataComboFile[[#This Row],[2021/22 Increase]]","v":0},{"$f":"T_DataComboFile[[#This Row],[2022/23 Baseline]]+T_DataComboFile[[#This Row],[2022/23 Reduction]]+T_DataComboFile[[#This Row],[2022/23 Increase]]","v":0},{"$f":"T_DataComboFile[[#This Row],[2023/24 Baseline]]+T_DataComboFile[[#This Row],[2023/24 Reduction]]+T_DataComboFile[[#This Row],[2023/24 Increase]]","v":0}]
[null,null,"2021_22","ENE2020",36,1,4,null,70330,36,1,4,null,"070330","36|01|04",1,1,2,29,29,"01|01|02|29|29","National","Small Business Development","Administration","Financial Management",null,"Current","Current payments","Goods and services","Medsas inventory interface","Medsas inventory interface",null,null,null,0,0,0,0,0,0,0,0,0,0,0,0,0,0,null,{"$f":"IF(T_DataComboFile[[#This Row],[G&S reporting level indicator]]=1,$AX$16,\"Not applicable\")","v":"Not applicable"},{"$f":"IF(AND($AX$16=\"Level 3\",T_DataComboFile[[#This Row],[Econ3]] = \"Goods and services\"),IF(T_DataComboFile[[#This Row],[Econ4]] = T_DataComboFile[[#This Row],[Econ3]],1,0),IF(AND($AX$16=\"Level 4\",T_DataComboFile[[#This Row],[Econ4]] = \"Goods and services\"),0,1))","v":0},{"$f":"T_DataComboFile[[#This Row],[2016/17_Source]]*T_DataComboFile[[#This Row],[G&S reporting level indicator]]","v":0},{"$f":"T_DataComboFile[[#This Row],[2017/18_Source]]*T_DataComboFile[[#This Row],[G&S reporting level indicator]]","v":0},{"$f":"T_DataComboFile[[#This Row],[2018/19_Source]]*T_DataComboFile[[#This Row],[G&S reporting level indicator]]","v":0},{"$f":"T_DataComboFile[[#This Row],[2019/20 Main appropriation_Source]]*T_DataComboFile[[#This Row],[G&S reporting level indicator]]","v":0},{"$f":"T_DataComboFile[[#This Row],[2019/20 Adjusted appropriation_Source]]*T_DataComboFile[[#This Row],[G&S reporting level indicator]]","v":0},{"$f":"T_DataComboFile[[#This Row],[2019/20 Revised estimate_Source]]*T_DataComboFile[[#This Row],[G&S reporting level indicator]]","v":0},{"$f":"T_DataComboFile[[#This Row],[2019/20 Preliminary outcome_Source]]*T_DataComboFile[[#This Row],[G&S reporting level indicator]]","v":0},{"$f":"T_DataComboFile[[#This Row],[2020/21 Original_Source]]*T_DataComboFile[[#This Row],[G&S reporting level indicator]]","v":0},{"$f":"T_DataComboFile[[#This Row],[2020/21 SAB_Source]]*T_DataComboFile[[#This Row],[G&S reporting level indicator]]","v":0},{"$f":"T_DataComboFile[[#This Row],[2020/21 Baseline_Source]]*T_DataComboFile[[#This Row],[G&S reporting level indicator]]","v":0},{"$f":"T_DataComboFile[[#This Row],[2021/22 Baseline_Source]]*T_DataComboFile[[#This Row],[G&S reporting level indicator]]","v":0},{"$f":"T_DataComboFile[[#This Row],[2022/23 Baseline_Source]]*T_DataComboFile[[#This Row],[G&S reporting level indicator]]","v":0},{"$f":"T_DataComboFile[[#This Row],[2023/24 Baseline_Source]]*T_DataComboFile[[#This Row],[G&S reporting level indicator]]","v":0},null,null,null,null,null,null,{"$f":"T_DataComboFile[[#This Row],[2021/22 Baseline]]+T_DataComboFile[[#This Row],[2021/22 Reduction]]+T_DataComboFile[[#This Row],[2021/22 Increase]]","v":0},{"$f":"T_DataComboFile[[#This Row],[2022/23 Baseline]]+T_DataComboFile[[#This Row],[2022/23 Reduction]]+T_DataComboFile[[#This Row],[2022/23 Increase]]","v":0},{"$f":"T_DataComboFile[[#This Row],[2023/24 Baseline]]+T_DataComboFile[[#This Row],[2023/24 Reduction]]+T_DataComboFile[[#This Row],[2023/24 Increase]]","v":0}]
[null,null,"2021_22","ENE2020",36,1,4,null,70331,36,1,4,null,"070331","36|01|04",1,1,2,30,30,"01|01|02|30|30","National","Small Business Development","Administration","Financial Management",null,"Current","Current payments","Goods and services","Inventory: Other supplies","Inventory: Other supplies",null,null,null,0,0,0,0,0,0,0,0,0,0,0,0,0,0,null,{"$f":"IF(T_DataComboFile[[#This Row],[G&S reporting level indicator]]=1,$AX$16,\"Not applicable\")","v":"Not applicable"},{"$f":"IF(AND($AX$16=\"Level 3\",T_DataComboFile[[#This Row],[Econ3]] = \"Goods and services\"),IF(T_DataComboFile[[#This Row],[Econ4]] = T_DataComboFile[[#This Row],[Econ3]],1,0),IF(AND($AX$16=\"Level 4\",T_DataComboFile[[#This Row],[Econ4]] = \"Goods and services\"),0,1))","v":0},{"$f":"T_DataComboFile[[#This Row],[2016/17_Source]]*T_DataComboFile[[#This Row],[G&S reporting level indicator]]","v":0},{"$f":"T_DataComboFile[[#This Row],[2017/18_Source]]*T_DataComboFile[[#This Row],[G&S reporting level indicator]]","v":0},{"$f":"T_DataComboFile[[#This Row],[2018/19_Source]]*T_DataComboFile[[#This Row],[G&S reporting level indicator]]","v":0},{"$f":"T_DataComboFile[[#This Row],[2019/20 Main appropriation_Source]]*T_DataComboFile[[#This Row],[G&S reporting level indicator]]","v":0},{"$f":"T_DataComboFile[[#This Row],[2019/20 Adjusted appropriation_Source]]*T_DataComboFile[[#This Row],[G&S reporting level indicator]]","v":0},{"$f":"T_DataComboFile[[#This Row],[2019/20 Revised estimate_Source]]*T_DataComboFile[[#This Row],[G&S reporting level indicator]]","v":0},{"$f":"T_DataComboFile[[#This Row],[2019/20 Preliminary outcome_Source]]*T_DataComboFile[[#This Row],[G&S reporting level indicator]]","v":0},{"$f":"T_DataComboFile[[#This Row],[2020/21 Original_Source]]*T_DataComboFile[[#This Row],[G&S reporting level indicator]]","v":0},{"$f":"T_DataComboFile[[#This Row],[2020/21 SAB_Source]]*T_DataComboFile[[#This Row],[G&S reporting level indicator]]","v":0},{"$f":"T_DataComboFile[[#This Row],[2020/21 Baseline_Source]]*T_DataComboFile[[#This Row],[G&S reporting level indicator]]","v":0},{"$f":"T_DataComboFile[[#This Row],[2021/22 Baseline_Source]]*T_DataComboFile[[#This Row],[G&S reporting level indicator]]","v":0},{"$f":"T_DataComboFile[[#This Row],[2022/23 Baseline_Source]]*T_DataComboFile[[#This Row],[G&S reporting level indicator]]","v":0},{"$f":"T_DataComboFile[[#This Row],[2023/24 Baseline_Source]]*T_DataComboFile[[#This Row],[G&S reporting level indicator]]","v":0},null,null,null,null,null,null,{"$f":"T_DataComboFile[[#This Row],[2021/22 Baseline]]+T_DataComboFile[[#This Row],[2021/22 Reduction]]+T_DataComboFile[[#This Row],[2021/22 Increase]]","v":0},{"$f":"T_DataComboFile[[#This Row],[2022/23 Baseline]]+T_DataComboFile[[#This Row],[2022/23 Reduction]]+T_DataComboFile[[#This Row],[2022/23 Increase]]","v":0},{"$f":"T_DataComboFile[[#This Row],[2023/24 Baseline]]+T_DataComboFile[[#This Row],[2023/24 Reduction]]+T_DataComboFile[[#This Row],[2023/24 Increase]]","v":0}]
["NAT|Non-transfer item","36|Consumable supplies","2021_22","ENE2020",36,1,4,17254,70332,36,1,4,17254,"070332","36|01|04",1,1,2,31,31,"01|01|02|31|31","National","Small Business Development","Administration","Financial Management","Non-transfer item","Current","Current payments","Goods and services","Consumable supplies","Consumable supplies","Economic development","Industrialisation and exports","NAT",0,3,3,5,5,5,5,5,5,5,5,5,5,1,null,{"$f":"IF(T_DataComboFile[[#This Row],[G&S reporting level indicator]]=1,$AX$16,\"Not applicable\")","v":"Not applicable"},{"$f":"IF(AND($AX$16=\"Level 3\",T_DataComboFile[[#This Row],[Econ3]] = \"Goods and services\"),IF(T_DataComboFile[[#This Row],[Econ4]] = T_DataComboFile[[#This Row],[Econ3]],1,0),IF(AND($AX$16=\"Level 4\",T_DataComboFile[[#This Row],[Econ4]] = \"Goods and services\"),0,1))","v":0},{"$f":"T_DataComboFile[[#This Row],[2016/17_Source]]*T_DataComboFile[[#This Row],[G&S reporting level indicator]]","v":0},{"$f":"T_DataComboFile[[#This Row],[2017/18_Source]]*T_DataComboFile[[#This Row],[G&S reporting level indicator]]","v":0},{"$f":"T_DataComboFile[[#This Row],[2018/19_Source]]*T_DataComboFile[[#This Row],[G&S reporting level indicator]]","v":0},{"$f":"T_DataComboFile[[#This Row],[2019/20 Main appropriation_Source]]*T_DataComboFile[[#This Row],[G&S reporting level indicator]]","v":0},{"$f":"T_DataComboFile[[#This Row],[2019/20 Adjusted appropriation_Source]]*T_DataComboFile[[#This Row],[G&S reporting level indicator]]","v":0},{"$f":"T_DataComboFile[[#This Row],[2019/20 Revised estimate_Source]]*T_DataComboFile[[#This Row],[G&S reporting level indicator]]","v":0},{"$f":"T_DataComboFile[[#This Row],[2019/20 Preliminary outcome_Source]]*T_DataComboFile[[#This Row],[G&S reporting level indicator]]","v":0},{"$f":"T_DataComboFile[[#This Row],[2020/21 Original_Source]]*T_DataComboFile[[#This Row],[G&S reporting level indicator]]","v":0},{"$f":"T_DataComboFile[[#This Row],[2020/21 SAB_Source]]*T_DataComboFile[[#This Row],[G&S reporting level indicator]]","v":0},{"$f":"T_DataComboFile[[#This Row],[2020/21 Baseline_Source]]*T_DataComboFile[[#This Row],[G&S reporting level indicator]]","v":0},{"$f":"T_DataComboFile[[#This Row],[2021/22 Baseline_Source]]*T_DataComboFile[[#This Row],[G&S reporting level indicator]]","v":0},{"$f":"T_DataComboFile[[#This Row],[2022/23 Baseline_Source]]*T_DataComboFile[[#This Row],[G&S reporting level indicator]]","v":0},{"$f":"T_DataComboFile[[#This Row],[2023/24 Baseline_Source]]*T_DataComboFile[[#This Row],[G&S reporting level indicator]]","v":0},null,null,null,null,null,null,{"$f":"T_DataComboFile[[#This Row],[2021/22 Baseline]]+T_DataComboFile[[#This Row],[2021/22 Reduction]]+T_DataComboFile[[#This Row],[2021/22 Increase]]","v":0},{"$f":"T_DataComboFile[[#This Row],[2022/23 Baseline]]+T_DataComboFile[[#This Row],[2022/23 Reduction]]+T_DataComboFile[[#This Row],[2022/23 Increase]]","v":0},{"$f":"T_DataComboFile[[#This Row],[2023/24 Baseline]]+T_DataComboFile[[#This Row],[2023/24 Reduction]]+T_DataComboFile[[#This Row],[2023/24 Increase]]","v":0}]
["NAT|Non-transfer item","36|Consumables: Stationery, printing and office supplies","2021_22","ENE2020",36,1,4,17255,70333,36,1,4,17255,"070333","36|01|04",1,1,2,32,32,"01|01|02|32|32","National","Small Business Development","Administration","Financial Management","Non-transfer item","Current","Current payments","Goods and services","Consumables: Stationery, printing and office supplies","Consumables: Stationery, printing and office supplies","Economic development","Industrialisation and exports","NAT",285,-14,221,106,256,256,256,42,42,42,45,48,50,1,null,{"$f":"IF(T_DataComboFile[[#This Row],[G&S reporting level indicator]]=1,$AX$16,\"Not applicable\")","v":"Not applicable"},{"$f":"IF(AND($AX$16=\"Level 3\",T_DataComboFile[[#This Row],[Econ3]] = \"Goods and services\"),IF(T_DataComboFile[[#This Row],[Econ4]] = T_DataComboFile[[#This Row],[Econ3]],1,0),IF(AND($AX$16=\"Level 4\",T_DataComboFile[[#This Row],[Econ4]] = \"Goods and services\"),0,1))","v":0},{"$f":"T_DataComboFile[[#This Row],[2016/17_Source]]*T_DataComboFile[[#This Row],[G&S reporting level indicator]]","v":0},{"$f":"T_DataComboFile[[#This Row],[2017/18_Source]]*T_DataComboFile[[#This Row],[G&S reporting level indicator]]","v":0},{"$f":"T_DataComboFile[[#This Row],[2018/19_Source]]*T_DataComboFile[[#This Row],[G&S reporting level indicator]]","v":0},{"$f":"T_DataComboFile[[#This Row],[2019/20 Main appropriation_Source]]*T_DataComboFile[[#This Row],[G&S reporting level indicator]]","v":0},{"$f":"T_DataComboFile[[#This Row],[2019/20 Adjusted appropriation_Source]]*T_DataComboFile[[#This Row],[G&S reporting level indicator]]","v":0},{"$f":"T_DataComboFile[[#This Row],[2019/20 Revised estimate_Source]]*T_DataComboFile[[#This Row],[G&S reporting level indicator]]","v":0},{"$f":"T_DataComboFile[[#This Row],[2019/20 Preliminary outcome_Source]]*T_DataComboFile[[#This Row],[G&S reporting level indicator]]","v":0},{"$f":"T_DataComboFile[[#This Row],[2020/21 Original_Source]]*T_DataComboFile[[#This Row],[G&S reporting level indicator]]","v":0},{"$f":"T_DataComboFile[[#This Row],[2020/21 SAB_Source]]*T_DataComboFile[[#This Row],[G&S reporting level indicator]]","v":0},{"$f":"T_DataComboFile[[#This Row],[2020/21 Baseline_Source]]*T_DataComboFile[[#This Row],[G&S reporting level indicator]]","v":0},{"$f":"T_DataComboFile[[#This Row],[2021/22 Baseline_Source]]*T_DataComboFile[[#This Row],[G&S reporting level indicator]]","v":0},{"$f":"T_DataComboFile[[#This Row],[2022/23 Baseline_Source]]*T_DataComboFile[[#This Row],[G&S reporting level indicator]]","v":0},{"$f":"T_DataComboFile[[#This Row],[2023/24 Baseline_Source]]*T_DataComboFile[[#This Row],[G&S reporting level indicator]]","v":0},null,null,null,null,null,null,{"$f":"T_DataComboFile[[#This Row],[2021/22 Baseline]]+T_DataComboFile[[#This Row],[2021/22 Reduction]]+T_DataComboFile[[#This Row],[2021/22 Increase]]","v":0},{"$f":"T_DataComboFile[[#This Row],[2022/23 Baseline]]+T_DataComboFile[[#This Row],[2022/23 Reduction]]+T_DataComboFile[[#This Row],[2022/23 Increase]]","v":0},{"$f":"T_DataComboFile[[#This Row],[2023/24 Baseline]]+T_DataComboFile[[#This Row],[2023/24 Reduction]]+T_DataComboFile[[#This Row],[2023/24 Increase]]","v":0}]
["NAT|Non-transfer item","36|Operating leases","2021_22","ENE2020",36,1,4,17256,70334,36,1,4,17256,"070334","36|01|04",1,1,2,33,33,"01|01|02|33|33","National","Small Business Development","Administration","Financial Management","Non-transfer item","Current","Current payments","Goods and services","Operating leases","Operating leases","Economic development","Industrialisation and exports","NAT",1088,899,1761,2050,1840,1840,1840,2100,2100,2100,2205,2315,2417,1,null,{"$f":"IF(T_DataComboFile[[#This Row],[G&S reporting level indicator]]=1,$AX$16,\"Not applicable\")","v":"Not applicable"},{"$f":"IF(AND($AX$16=\"Level 3\",T_DataComboFile[[#This Row],[Econ3]] = \"Goods and services\"),IF(T_DataComboFile[[#This Row],[Econ4]] = T_DataComboFile[[#This Row],[Econ3]],1,0),IF(AND($AX$16=\"Level 4\",T_DataComboFile[[#This Row],[Econ4]] = \"Goods and services\"),0,1))","v":0},{"$f":"T_DataComboFile[[#This Row],[2016/17_Source]]*T_DataComboFile[[#This Row],[G&S reporting level indicator]]","v":0},{"$f":"T_DataComboFile[[#This Row],[2017/18_Source]]*T_DataComboFile[[#This Row],[G&S reporting level indicator]]","v":0},{"$f":"T_DataComboFile[[#This Row],[2018/19_Source]]*T_DataComboFile[[#This Row],[G&S reporting level indicator]]","v":0},{"$f":"T_DataComboFile[[#This Row],[2019/20 Main appropriation_Source]]*T_DataComboFile[[#This Row],[G&S reporting level indicator]]","v":0},{"$f":"T_DataComboFile[[#This Row],[2019/20 Adjusted appropriation_Source]]*T_DataComboFile[[#This Row],[G&S reporting level indicator]]","v":0},{"$f":"T_DataComboFile[[#This Row],[2019/20 Revised estimate_Source]]*T_DataComboFile[[#This Row],[G&S reporting level indicator]]","v":0},{"$f":"T_DataComboFile[[#This Row],[2019/20 Preliminary outcome_Source]]*T_DataComboFile[[#This Row],[G&S reporting level indicator]]","v":0},{"$f":"T_DataComboFile[[#This Row],[2020/21 Original_Source]]*T_DataComboFile[[#This Row],[G&S reporting level indicator]]","v":0},{"$f":"T_DataComboFile[[#This Row],[2020/21 SAB_Source]]*T_DataComboFile[[#This Row],[G&S reporting level indicator]]","v":0},{"$f":"T_DataComboFile[[#This Row],[2020/21 Baseline_Source]]*T_DataComboFile[[#This Row],[G&S reporting level indicator]]","v":0},{"$f":"T_DataComboFile[[#This Row],[2021/22 Baseline_Source]]*T_DataComboFile[[#This Row],[G&S reporting level indicator]]","v":0},{"$f":"T_DataComboFile[[#This Row],[2022/23 Baseline_Source]]*T_DataComboFile[[#This Row],[G&S reporting level indicator]]","v":0},{"$f":"T_DataComboFile[[#This Row],[2023/24 Baseline_Source]]*T_DataComboFile[[#This Row],[G&S reporting level indicator]]","v":0},null,null,null,null,null,null,{"$f":"T_DataComboFile[[#This Row],[2021/22 Baseline]]+T_DataComboFile[[#This Row],[2021/22 Reduction]]+T_DataComboFile[[#This Row],[2021/22 Increase]]","v":0},{"$f":"T_DataComboFile[[#This Row],[2022/23 Baseline]]+T_DataComboFile[[#This Row],[2022/23 Reduction]]+T_DataComboFile[[#This Row],[2022/23 Increase]]","v":0},{"$f":"T_DataComboFile[[#This Row],[2023/24 Baseline]]+T_DataComboFile[[#This Row],[2023/24 Reduction]]+T_DataComboFile[[#This Row],[2023/24 Increase]]","v":0}]
[null,null,"2021_22","ENE2020",36,1,4,null,70335,36,1,4,null,"070335","36|01|04",1,1,2,34,34,"01|01|02|34|34","National","Small Business Development","Administration","Financial Management",null,"Current","Current payments","Goods and services","Rental and hiring","Rental and hiring",null,null,null,0,0,0,0,0,0,0,0,0,0,0,0,0,0,null,{"$f":"IF(T_DataComboFile[[#This Row],[G&S reporting level indicator]]=1,$AX$16,\"Not applicable\")","v":"Not applicable"},{"$f":"IF(AND($AX$16=\"Level 3\",T_DataComboFile[[#This Row],[Econ3]] = \"Goods and services\"),IF(T_DataComboFile[[#This Row],[Econ4]] = T_DataComboFile[[#This Row],[Econ3]],1,0),IF(AND($AX$16=\"Level 4\",T_DataComboFile[[#This Row],[Econ4]] = \"Goods and services\"),0,1))","v":0},{"$f":"T_DataComboFile[[#This Row],[2016/17_Source]]*T_DataComboFile[[#This Row],[G&S reporting level indicator]]","v":0},{"$f":"T_DataComboFile[[#This Row],[2017/18_Source]]*T_DataComboFile[[#This Row],[G&S reporting level indicator]]","v":0},{"$f":"T_DataComboFile[[#This Row],[2018/19_Source]]*T_DataComboFile[[#This Row],[G&S reporting level indicator]]","v":0},{"$f":"T_DataComboFile[[#This Row],[2019/20 Main appropriation_Source]]*T_DataComboFile[[#This Row],[G&S reporting level indicator]]","v":0},{"$f":"T_DataComboFile[[#This Row],[2019/20 Adjusted appropriation_Source]]*T_DataComboFile[[#This Row],[G&S reporting level indicator]]","v":0},{"$f":"T_DataComboFile[[#This Row],[2019/20 Revised estimate_Source]]*T_DataComboFile[[#This Row],[G&S reporting level indicator]]","v":0},{"$f":"T_DataComboFile[[#This Row],[2019/20 Preliminary outcome_Source]]*T_DataComboFile[[#This Row],[G&S reporting level indicator]]","v":0},{"$f":"T_DataComboFile[[#This Row],[2020/21 Original_Source]]*T_DataComboFile[[#This Row],[G&S reporting level indicator]]","v":0},{"$f":"T_DataComboFile[[#This Row],[2020/21 SAB_Source]]*T_DataComboFile[[#This Row],[G&S reporting level indicator]]","v":0},{"$f":"T_DataComboFile[[#This Row],[2020/21 Baseline_Source]]*T_DataComboFile[[#This Row],[G&S reporting level indicator]]","v":0},{"$f":"T_DataComboFile[[#This Row],[2021/22 Baseline_Source]]*T_DataComboFile[[#This Row],[G&S reporting level indicator]]","v":0},{"$f":"T_DataComboFile[[#This Row],[2022/23 Baseline_Source]]*T_DataComboFile[[#This Row],[G&S reporting level indicator]]","v":0},{"$f":"T_DataComboFile[[#This Row],[2023/24 Baseline_Source]]*T_DataComboFile[[#This Row],[G&S reporting level indicator]]","v":0},null,null,null,null,null,null,{"$f":"T_DataComboFile[[#This Row],[2021/22 Baseline]]+T_DataComboFile[[#This Row],[2021/22 Reduction]]+T_DataComboFile[[#This Row],[2021/22 Increase]]","v":0},{"$f":"T_DataComboFile[[#This Row],[2022/23 Baseline]]+T_DataComboFile[[#This Row],[2022/23 Reduction]]+T_DataComboFile[[#This Row],[2022/23 Increase]]","v":0},{"$f":"T_DataComboFile[[#This Row],[2023/24 Baseline]]+T_DataComboFile[[#This Row],[2023/24 Reduction]]+T_DataComboFile[[#This Row],[2023/24 Increase]]","v":0}]
[null,null,"2021_22","ENE2020",36,1,4,null,70336,36,1,4,null,"070336","36|01|04",1,1,2,35,35,"01|01|02|35|35","National","Small Business Development","Administration","Financial Management",null,"Current","Current payments","Goods and services","Property payments","Property payments",null,null,null,0,0,0,0,0,0,0,0,0,0,0,0,0,0,null,{"$f":"IF(T_DataComboFile[[#This Row],[G&S reporting level indicator]]=1,$AX$16,\"Not applicable\")","v":"Not applicable"},{"$f":"IF(AND($AX$16=\"Level 3\",T_DataComboFile[[#This Row],[Econ3]] = \"Goods and services\"),IF(T_DataComboFile[[#This Row],[Econ4]] = T_DataComboFile[[#This Row],[Econ3]],1,0),IF(AND($AX$16=\"Level 4\",T_DataComboFile[[#This Row],[Econ4]] = \"Goods and services\"),0,1))","v":0},{"$f":"T_DataComboFile[[#This Row],[2016/17_Source]]*T_DataComboFile[[#This Row],[G&S reporting level indicator]]","v":0},{"$f":"T_DataComboFile[[#This Row],[2017/18_Source]]*T_DataComboFile[[#This Row],[G&S reporting level indicator]]","v":0},{"$f":"T_DataComboFile[[#This Row],[2018/19_Source]]*T_DataComboFile[[#This Row],[G&S reporting level indicator]]","v":0},{"$f":"T_DataComboFile[[#This Row],[2019/20 Main appropriation_Source]]*T_DataComboFile[[#This Row],[G&S reporting level indicator]]","v":0},{"$f":"T_DataComboFile[[#This Row],[2019/20 Adjusted appropriation_Source]]*T_DataComboFile[[#This Row],[G&S reporting level indicator]]","v":0},{"$f":"T_DataComboFile[[#This Row],[2019/20 Revised estimate_Source]]*T_DataComboFile[[#This Row],[G&S reporting level indicator]]","v":0},{"$f":"T_DataComboFile[[#This Row],[2019/20 Preliminary outcome_Source]]*T_DataComboFile[[#This Row],[G&S reporting level indicator]]","v":0},{"$f":"T_DataComboFile[[#This Row],[2020/21 Original_Source]]*T_DataComboFile[[#This Row],[G&S reporting level indicator]]","v":0},{"$f":"T_DataComboFile[[#This Row],[2020/21 SAB_Source]]*T_DataComboFile[[#This Row],[G&S reporting level indicator]]","v":0},{"$f":"T_DataComboFile[[#This Row],[2020/21 Baseline_Source]]*T_DataComboFile[[#This Row],[G&S reporting level indicator]]","v":0},{"$f":"T_DataComboFile[[#This Row],[2021/22 Baseline_Source]]*T_DataComboFile[[#This Row],[G&S reporting level indicator]]","v":0},{"$f":"T_DataComboFile[[#This Row],[2022/23 Baseline_Source]]*T_DataComboFile[[#This Row],[G&S reporting level indicator]]","v":0},{"$f":"T_DataComboFile[[#This Row],[2023/24 Baseline_Source]]*T_DataComboFile[[#This Row],[G&S reporting level indicator]]","v":0},null,null,null,null,null,null,{"$f":"T_DataComboFile[[#This Row],[2021/22 Baseline]]+T_DataComboFile[[#This Row],[2021/22 Reduction]]+T_DataComboFile[[#This Row],[2021/22 Increase]]","v":0},{"$f":"T_DataComboFile[[#This Row],[2022/23 Baseline]]+T_DataComboFile[[#This Row],[2022/23 Reduction]]+T_DataComboFile[[#This Row],[2022/23 Increase]]","v":0},{"$f":"T_DataComboFile[[#This Row],[2023/24 Baseline]]+T_DataComboFile[[#This Row],[2023/24 Reduction]]+T_DataComboFile[[#This Row],[2023/24 Increase]]","v":0}]
[null,null,"2021_22","ENE2020",36,1,4,null,70337,36,1,4,null,"070337","36|01|04",1,1,2,36,36,"01|01|02|36|36","National","Small Business Development","Administration","Financial Management",null,"Current","Current payments","Goods and services","Transport provided: Departmental activity","Transport provided: Departmental activity",null,null,null,0,0,0,0,0,0,0,0,0,0,0,0,0,0,null,{"$f":"IF(T_DataComboFile[[#This Row],[G&S reporting level indicator]]=1,$AX$16,\"Not applicable\")","v":"Not applicable"},{"$f":"IF(AND($AX$16=\"Level 3\",T_DataComboFile[[#This Row],[Econ3]] = \"Goods and services\"),IF(T_DataComboFile[[#This Row],[Econ4]] = T_DataComboFile[[#This Row],[Econ3]],1,0),IF(AND($AX$16=\"Level 4\",T_DataComboFile[[#This Row],[Econ4]] = \"Goods and services\"),0,1))","v":0},{"$f":"T_DataComboFile[[#This Row],[2016/17_Source]]*T_DataComboFile[[#This Row],[G&S reporting level indicator]]","v":0},{"$f":"T_DataComboFile[[#This Row],[2017/18_Source]]*T_DataComboFile[[#This Row],[G&S reporting level indicator]]","v":0},{"$f":"T_DataComboFile[[#This Row],[2018/19_Source]]*T_DataComboFile[[#This Row],[G&S reporting level indicator]]","v":0},{"$f":"T_DataComboFile[[#This Row],[2019/20 Main appropriation_Source]]*T_DataComboFile[[#This Row],[G&S reporting level indicator]]","v":0},{"$f":"T_DataComboFile[[#This Row],[2019/20 Adjusted appropriation_Source]]*T_DataComboFile[[#This Row],[G&S reporting level indicator]]","v":0},{"$f":"T_DataComboFile[[#This Row],[2019/20 Revised estimate_Source]]*T_DataComboFile[[#This Row],[G&S reporting level indicator]]","v":0},{"$f":"T_DataComboFile[[#This Row],[2019/20 Preliminary outcome_Source]]*T_DataComboFile[[#This Row],[G&S reporting level indicator]]","v":0},{"$f":"T_DataComboFile[[#This Row],[2020/21 Original_Source]]*T_DataComboFile[[#This Row],[G&S reporting level indicator]]","v":0},{"$f":"T_DataComboFile[[#This Row],[2020/21 SAB_Source]]*T_DataComboFile[[#This Row],[G&S reporting level indicator]]","v":0},{"$f":"T_DataComboFile[[#This Row],[2020/21 Baseline_Source]]*T_DataComboFile[[#This Row],[G&S reporting level indicator]]","v":0},{"$f":"T_DataComboFile[[#This Row],[2021/22 Baseline_Source]]*T_DataComboFile[[#This Row],[G&S reporting level indicator]]","v":0},{"$f":"T_DataComboFile[[#This Row],[2022/23 Baseline_Source]]*T_DataComboFile[[#This Row],[G&S reporting level indicator]]","v":0},{"$f":"T_DataComboFile[[#This Row],[2023/24 Baseline_Source]]*T_DataComboFile[[#This Row],[G&S reporting level indicator]]","v":0},null,null,null,null,null,null,{"$f":"T_DataComboFile[[#This Row],[2021/22 Baseline]]+T_DataComboFile[[#This Row],[2021/22 Reduction]]+T_DataComboFile[[#This Row],[2021/22 Increase]]","v":0},{"$f":"T_DataComboFile[[#This Row],[2022/23 Baseline]]+T_DataComboFile[[#This Row],[2022/23 Reduction]]+T_DataComboFile[[#This Row],[2022/23 Increase]]","v":0},{"$f":"T_DataComboFile[[#This Row],[2023/24 Baseline]]+T_DataComboFile[[#This Row],[2023/24 Reduction]]+T_DataComboFile[[#This Row],[2023/24 Increase]]","v":0}]
["NAT|Non-transfer item","36|Travel and subsistence","2021_22","ENE2020",36,1,4,17257,70338,36,1,4,17257,"070338","36|01|04",1,1,2,37,37,"01|01|02|37|37","National","Small Business Development","Administration","Financial Management","Non-transfer item","Current","Current payments","Goods and services","Travel and subsistence","Travel and subsistence","Economic development","Industrialisation and exports","NAT",189,207,334,240,240,240,240,262,262,262,276,289,302,1,null,{"$f":"IF(T_DataComboFile[[#This Row],[G&S reporting level indicator]]=1,$AX$16,\"Not applicable\")","v":"Not applicable"},{"$f":"IF(AND($AX$16=\"Level 3\",T_DataComboFile[[#This Row],[Econ3]] = \"Goods and services\"),IF(T_DataComboFile[[#This Row],[Econ4]] = T_DataComboFile[[#This Row],[Econ3]],1,0),IF(AND($AX$16=\"Level 4\",T_DataComboFile[[#This Row],[Econ4]] = \"Goods and services\"),0,1))","v":0},{"$f":"T_DataComboFile[[#This Row],[2016/17_Source]]*T_DataComboFile[[#This Row],[G&S reporting level indicator]]","v":0},{"$f":"T_DataComboFile[[#This Row],[2017/18_Source]]*T_DataComboFile[[#This Row],[G&S reporting level indicator]]","v":0},{"$f":"T_DataComboFile[[#This Row],[2018/19_Source]]*T_DataComboFile[[#This Row],[G&S reporting level indicator]]","v":0},{"$f":"T_DataComboFile[[#This Row],[2019/20 Main appropriation_Source]]*T_DataComboFile[[#This Row],[G&S reporting level indicator]]","v":0},{"$f":"T_DataComboFile[[#This Row],[2019/20 Adjusted appropriation_Source]]*T_DataComboFile[[#This Row],[G&S reporting level indicator]]","v":0},{"$f":"T_DataComboFile[[#This Row],[2019/20 Revised estimate_Source]]*T_DataComboFile[[#This Row],[G&S reporting level indicator]]","v":0},{"$f":"T_DataComboFile[[#This Row],[2019/20 Preliminary outcome_Source]]*T_DataComboFile[[#This Row],[G&S reporting level indicator]]","v":0},{"$f":"T_DataComboFile[[#This Row],[2020/21 Original_Source]]*T_DataComboFile[[#This Row],[G&S reporting level indicator]]","v":0},{"$f":"T_DataComboFile[[#This Row],[2020/21 SAB_Source]]*T_DataComboFile[[#This Row],[G&S reporting level indicator]]","v":0},{"$f":"T_DataComboFile[[#This Row],[2020/21 Baseline_Source]]*T_DataComboFile[[#This Row],[G&S reporting level indicator]]","v":0},{"$f":"T_DataComboFile[[#This Row],[2021/22 Baseline_Source]]*T_DataComboFile[[#This Row],[G&S reporting level indicator]]","v":0},{"$f":"T_DataComboFile[[#This Row],[2022/23 Baseline_Source]]*T_DataComboFile[[#This Row],[G&S reporting level indicator]]","v":0},{"$f":"T_DataComboFile[[#This Row],[2023/24 Baseline_Source]]*T_DataComboFile[[#This Row],[G&S reporting level indicator]]","v":0},null,null,null,null,null,null,{"$f":"T_DataComboFile[[#This Row],[2021/22 Baseline]]+T_DataComboFile[[#This Row],[2021/22 Reduction]]+T_DataComboFile[[#This Row],[2021/22 Increase]]","v":0},{"$f":"T_DataComboFile[[#This Row],[2022/23 Baseline]]+T_DataComboFile[[#This Row],[2022/23 Reduction]]+T_DataComboFile[[#This Row],[2022/23 Increase]]","v":0},{"$f":"T_DataComboFile[[#This Row],[2023/24 Baseline]]+T_DataComboFile[[#This Row],[2023/24 Reduction]]+T_DataComboFile[[#This Row],[2023/24 Increase]]","v":0}]
["NAT|Non-transfer item","36|Training and development","2021_22","ENE2020",36,1,4,17258,70339,36,1,4,17258,"070339","36|01|04",1,1,2,38,38,"01|01|02|38|38","National","Small Business Development","Administration","Financial Management","Non-transfer item","Current","Current payments","Goods and services","Training and development","Training and development","Economic development","Industrialisation and exports","NAT",98,0,0,0,0,0,0,0,0,0,0,0,0,1,null,{"$f":"IF(T_DataComboFile[[#This Row],[G&S reporting level indicator]]=1,$AX$16,\"Not applicable\")","v":"Not applicable"},{"$f":"IF(AND($AX$16=\"Level 3\",T_DataComboFile[[#This Row],[Econ3]] = \"Goods and services\"),IF(T_DataComboFile[[#This Row],[Econ4]] = T_DataComboFile[[#This Row],[Econ3]],1,0),IF(AND($AX$16=\"Level 4\",T_DataComboFile[[#This Row],[Econ4]] = \"Goods and services\"),0,1))","v":0},{"$f":"T_DataComboFile[[#This Row],[2016/17_Source]]*T_DataComboFile[[#This Row],[G&S reporting level indicator]]","v":0},{"$f":"T_DataComboFile[[#This Row],[2017/18_Source]]*T_DataComboFile[[#This Row],[G&S reporting level indicator]]","v":0},{"$f":"T_DataComboFile[[#This Row],[2018/19_Source]]*T_DataComboFile[[#This Row],[G&S reporting level indicator]]","v":0},{"$f":"T_DataComboFile[[#This Row],[2019/20 Main appropriation_Source]]*T_DataComboFile[[#This Row],[G&S reporting level indicator]]","v":0},{"$f":"T_DataComboFile[[#This Row],[2019/20 Adjusted appropriation_Source]]*T_DataComboFile[[#This Row],[G&S reporting level indicator]]","v":0},{"$f":"T_DataComboFile[[#This Row],[2019/20 Revised estimate_Source]]*T_DataComboFile[[#This Row],[G&S reporting level indicator]]","v":0},{"$f":"T_DataComboFile[[#This Row],[2019/20 Preliminary outcome_Source]]*T_DataComboFile[[#This Row],[G&S reporting level indicator]]","v":0},{"$f":"T_DataComboFile[[#This Row],[2020/21 Original_Source]]*T_DataComboFile[[#This Row],[G&S reporting level indicator]]","v":0},{"$f":"T_DataComboFile[[#This Row],[2020/21 SAB_Source]]*T_DataComboFile[[#This Row],[G&S reporting level indicator]]","v":0},{"$f":"T_DataComboFile[[#This Row],[2020/21 Baseline_Source]]*T_DataComboFile[[#This Row],[G&S reporting level indicator]]","v":0},{"$f":"T_DataComboFile[[#This Row],[2021/22 Baseline_Source]]*T_DataComboFile[[#This Row],[G&S reporting level indicator]]","v":0},{"$f":"T_DataComboFile[[#This Row],[2022/23 Baseline_Source]]*T_DataComboFile[[#This Row],[G&S reporting level indicator]]","v":0},{"$f":"T_DataComboFile[[#This Row],[2023/24 Baseline_Source]]*T_DataComboFile[[#This Row],[G&S reporting level indicator]]","v":0},null,null,null,null,null,null,{"$f":"T_DataComboFile[[#This Row],[2021/22 Baseline]]+T_DataComboFile[[#This Row],[2021/22 Reduction]]+T_DataComboFile[[#This Row],[2021/22 Increase]]","v":0},{"$f":"T_DataComboFile[[#This Row],[2022/23 Baseline]]+T_DataComboFile[[#This Row],[2022/23 Reduction]]+T_DataComboFile[[#This Row],[2022/23 Increase]]","v":0},{"$f":"T_DataComboFile[[#This Row],[2023/24 Baseline]]+T_DataComboFile[[#This Row],[2023/24 Reduction]]+T_DataComboFile[[#This Row],[2023/24 Increase]]","v":0}]
["NAT|Non-transfer item","36|Operating payments","2021_22","ENE2020",36,1,4,17259,70340,36,1,4,17259,"070340","36|01|04",1,1,2,39,39,"01|01|02|39|39","National","Small Business Development","Administration","Financial Management","Non-transfer item","Current","Current payments","Goods and services","Operating payments","Operating payments","Economic development","Industrialisation and exports","NAT",34,1,29,0,62,62,62,0,0,0,0,0,0,1,null,{"$f":"IF(T_DataComboFile[[#This Row],[G&S reporting level indicator]]=1,$AX$16,\"Not applicable\")","v":"Not applicable"},{"$f":"IF(AND($AX$16=\"Level 3\",T_DataComboFile[[#This Row],[Econ3]] = \"Goods and services\"),IF(T_DataComboFile[[#This Row],[Econ4]] = T_DataComboFile[[#This Row],[Econ3]],1,0),IF(AND($AX$16=\"Level 4\",T_DataComboFile[[#This Row],[Econ4]] = \"Goods and services\"),0,1))","v":0},{"$f":"T_DataComboFile[[#This Row],[2016/17_Source]]*T_DataComboFile[[#This Row],[G&S reporting level indicator]]","v":0},{"$f":"T_DataComboFile[[#This Row],[2017/18_Source]]*T_DataComboFile[[#This Row],[G&S reporting level indicator]]","v":0},{"$f":"T_DataComboFile[[#This Row],[2018/19_Source]]*T_DataComboFile[[#This Row],[G&S reporting level indicator]]","v":0},{"$f":"T_DataComboFile[[#This Row],[2019/20 Main appropriation_Source]]*T_DataComboFile[[#This Row],[G&S reporting level indicator]]","v":0},{"$f":"T_DataComboFile[[#This Row],[2019/20 Adjusted appropriation_Source]]*T_DataComboFile[[#This Row],[G&S reporting level indicator]]","v":0},{"$f":"T_DataComboFile[[#This Row],[2019/20 Revised estimate_Source]]*T_DataComboFile[[#This Row],[G&S reporting level indicator]]","v":0},{"$f":"T_DataComboFile[[#This Row],[2019/20 Preliminary outcome_Source]]*T_DataComboFile[[#This Row],[G&S reporting level indicator]]","v":0},{"$f":"T_DataComboFile[[#This Row],[2020/21 Original_Source]]*T_DataComboFile[[#This Row],[G&S reporting level indicator]]","v":0},{"$f":"T_DataComboFile[[#This Row],[2020/21 SAB_Source]]*T_DataComboFile[[#This Row],[G&S reporting level indicator]]","v":0},{"$f":"T_DataComboFile[[#This Row],[2020/21 Baseline_Source]]*T_DataComboFile[[#This Row],[G&S reporting level indicator]]","v":0},{"$f":"T_DataComboFile[[#This Row],[2021/22 Baseline_Source]]*T_DataComboFile[[#This Row],[G&S reporting level indicator]]","v":0},{"$f":"T_DataComboFile[[#This Row],[2022/23 Baseline_Source]]*T_DataComboFile[[#This Row],[G&S reporting level indicator]]","v":0},{"$f":"T_DataComboFile[[#This Row],[2023/24 Baseline_Source]]*T_DataComboFile[[#This Row],[G&S reporting level indicator]]","v":0},null,null,null,null,null,null,{"$f":"T_DataComboFile[[#This Row],[2021/22 Baseline]]+T_DataComboFile[[#This Row],[2021/22 Reduction]]+T_DataComboFile[[#This Row],[2021/22 Increase]]","v":0},{"$f":"T_DataComboFile[[#This Row],[2022/23 Baseline]]+T_DataComboFile[[#This Row],[2022/23 Reduction]]+T_DataComboFile[[#This Row],[2022/23 Increase]]","v":0},{"$f":"T_DataComboFile[[#This Row],[2023/24 Baseline]]+T_DataComboFile[[#This Row],[2023/24 Reduction]]+T_DataComboFile[[#This Row],[2023/24 Increase]]","v":0}]
[null,null,"2021_22","ENE2020",36,1,4,null,70341,36,1,4,null,"070341","36|01|04",1,1,2,40,40,"01|01|02|40|40","National","Small Business Development","Administration","Financial Management",null,"Current","Current payments","Goods and services","Venues and facilities","Venues and facilities",null,null,null,0,0,0,0,0,0,0,0,0,0,0,0,0,0,null,{"$f":"IF(T_DataComboFile[[#This Row],[G&S reporting level indicator]]=1,$AX$16,\"Not applicable\")","v":"Not applicable"},{"$f":"IF(AND($AX$16=\"Level 3\",T_DataComboFile[[#This Row],[Econ3]] = \"Goods and services\"),IF(T_DataComboFile[[#This Row],[Econ4]] = T_DataComboFile[[#This Row],[Econ3]],1,0),IF(AND($AX$16=\"Level 4\",T_DataComboFile[[#This Row],[Econ4]] = \"Goods and services\"),0,1))","v":0},{"$f":"T_DataComboFile[[#This Row],[2016/17_Source]]*T_DataComboFile[[#This Row],[G&S reporting level indicator]]","v":0},{"$f":"T_DataComboFile[[#This Row],[2017/18_Source]]*T_DataComboFile[[#This Row],[G&S reporting level indicator]]","v":0},{"$f":"T_DataComboFile[[#This Row],[2018/19_Source]]*T_DataComboFile[[#This Row],[G&S reporting level indicator]]","v":0},{"$f":"T_DataComboFile[[#This Row],[2019/20 Main appropriation_Source]]*T_DataComboFile[[#This Row],[G&S reporting level indicator]]","v":0},{"$f":"T_DataComboFile[[#This Row],[2019/20 Adjusted appropriation_Source]]*T_DataComboFile[[#This Row],[G&S reporting level indicator]]","v":0},{"$f":"T_DataComboFile[[#This Row],[2019/20 Revised estimate_Source]]*T_DataComboFile[[#This Row],[G&S reporting level indicator]]","v":0},{"$f":"T_DataComboFile[[#This Row],[2019/20 Preliminary outcome_Source]]*T_DataComboFile[[#This Row],[G&S reporting level indicator]]","v":0},{"$f":"T_DataComboFile[[#This Row],[2020/21 Original_Source]]*T_DataComboFile[[#This Row],[G&S reporting level indicator]]","v":0},{"$f":"T_DataComboFile[[#This Row],[2020/21 SAB_Source]]*T_DataComboFile[[#This Row],[G&S reporting level indicator]]","v":0},{"$f":"T_DataComboFile[[#This Row],[2020/21 Baseline_Source]]*T_DataComboFile[[#This Row],[G&S reporting level indicator]]","v":0},{"$f":"T_DataComboFile[[#This Row],[2021/22 Baseline_Source]]*T_DataComboFile[[#This Row],[G&S reporting level indicator]]","v":0},{"$f":"T_DataComboFile[[#This Row],[2022/23 Baseline_Source]]*T_DataComboFile[[#This Row],[G&S reporting level indicator]]","v":0},{"$f":"T_DataComboFile[[#This Row],[2023/24 Baseline_Source]]*T_DataComboFile[[#This Row],[G&S reporting level indicator]]","v":0},null,null,null,null,null,null,{"$f":"T_DataComboFile[[#This Row],[2021/22 Baseline]]+T_DataComboFile[[#This Row],[2021/22 Reduction]]+T_DataComboFile[[#This Row],[2021/22 Increase]]","v":0},{"$f":"T_DataComboFile[[#This Row],[2022/23 Baseline]]+T_DataComboFile[[#This Row],[2022/23 Reduction]]+T_DataComboFile[[#This Row],[2022/23 Increase]]","v":0},{"$f":"T_DataComboFile[[#This Row],[2023/24 Baseline]]+T_DataComboFile[[#This Row],[2023/24 Reduction]]+T_DataComboFile[[#This Row],[2023/24 Increase]]","v":0}]
[null,null,"2021_22","ENE2020",36,1,4,null,70342,36,1,4,null,"070342","36|01|04",1,1,3,41,41,"01|01|03|41|41","National","Small Business Development","Administration","Financial Management",null,"Current","Current payments","Interest and rent on land","Interest (Incl. interest on unitary payments (PPP))","Interest (Incl. interest on unitary payments (PPP))",null,null,null,0,0,0,0,0,0,0,0,0,0,0,0,0,0,null,{"$f":"IF(T_DataComboFile[[#This Row],[G&S reporting level indicator]]=1,$AX$16,\"Not applicable\")","v":"Level 3"},{"$f":"IF(AND($AX$16=\"Level 3\",T_DataComboFile[[#This Row],[Econ3]] = \"Goods and services\"),IF(T_DataComboFile[[#This Row],[Econ4]] = T_DataComboFile[[#This Row],[Econ3]],1,0),IF(AND($AX$16=\"Level 4\",T_DataComboFile[[#This Row],[Econ4]] = \"Goods and services\"),0,1))","v":1},{"$f":"T_DataComboFile[[#This Row],[2016/17_Source]]*T_DataComboFile[[#This Row],[G&S reporting level indicator]]","v":0},{"$f":"T_DataComboFile[[#This Row],[2017/18_Source]]*T_DataComboFile[[#This Row],[G&S reporting level indicator]]","v":0},{"$f":"T_DataComboFile[[#This Row],[2018/19_Source]]*T_DataComboFile[[#This Row],[G&S reporting level indicator]]","v":0},{"$f":"T_DataComboFile[[#This Row],[2019/20 Main appropriation_Source]]*T_DataComboFile[[#This Row],[G&S reporting level indicator]]","v":0},{"$f":"T_DataComboFile[[#This Row],[2019/20 Adjusted appropriation_Source]]*T_DataComboFile[[#This Row],[G&S reporting level indicator]]","v":0},{"$f":"T_DataComboFile[[#This Row],[2019/20 Revised estimate_Source]]*T_DataComboFile[[#This Row],[G&S reporting level indicator]]","v":0},{"$f":"T_DataComboFile[[#This Row],[2019/20 Preliminary outcome_Source]]*T_DataComboFile[[#This Row],[G&S reporting level indicator]]","v":0},{"$f":"T_DataComboFile[[#This Row],[2020/21 Original_Source]]*T_DataComboFile[[#This Row],[G&S reporting level indicator]]","v":0},{"$f":"T_DataComboFile[[#This Row],[2020/21 SAB_Source]]*T_DataComboFile[[#This Row],[G&S reporting level indicator]]","v":0},{"$f":"T_DataComboFile[[#This Row],[2020/21 Baseline_Source]]*T_DataComboFile[[#This Row],[G&S reporting level indicator]]","v":0},{"$f":"T_DataComboFile[[#This Row],[2021/22 Baseline_Source]]*T_DataComboFile[[#This Row],[G&S reporting level indicator]]","v":0},{"$f":"T_DataComboFile[[#This Row],[2022/23 Baseline_Source]]*T_DataComboFile[[#This Row],[G&S reporting level indicator]]","v":0},{"$f":"T_DataComboFile[[#This Row],[2023/24 Baseline_Source]]*T_DataComboFile[[#This Row],[G&S reporting level indicator]]","v":0},null,null,null,null,null,null,{"$f":"T_DataComboFile[[#This Row],[2021/22 Baseline]]+T_DataComboFile[[#This Row],[2021/22 Reduction]]+T_DataComboFile[[#This Row],[2021/22 Increase]]","v":0},{"$f":"T_DataComboFile[[#This Row],[2022/23 Baseline]]+T_DataComboFile[[#This Row],[2022/23 Reduction]]+T_DataComboFile[[#This Row],[2022/23 Increase]]","v":0},{"$f":"T_DataComboFile[[#This Row],[2023/24 Baseline]]+T_DataComboFile[[#This Row],[2023/24 Reduction]]+T_DataComboFile[[#This Row],[2023/24 Increase]]","v":0}]
[null,null,"2021_22","ENE2020",36,1,4,null,70343,36,1,4,null,"070343","36|01|04",1,1,3,42,42,"01|01|03|42|42","National","Small Business Development","Administration","Financial Management",null,"Current","Current payments","Interest and rent on land","Rent on land","Rent on land",null,null,null,0,0,0,0,0,0,0,0,0,0,0,0,0,0,null,{"$f":"IF(T_DataComboFile[[#This Row],[G&S reporting level indicator]]=1,$AX$16,\"Not applicable\")","v":"Level 3"},{"$f":"IF(AND($AX$16=\"Level 3\",T_DataComboFile[[#This Row],[Econ3]] = \"Goods and services\"),IF(T_DataComboFile[[#This Row],[Econ4]] = T_DataComboFile[[#This Row],[Econ3]],1,0),IF(AND($AX$16=\"Level 4\",T_DataComboFile[[#This Row],[Econ4]] = \"Goods and services\"),0,1))","v":1},{"$f":"T_DataComboFile[[#This Row],[2016/17_Source]]*T_DataComboFile[[#This Row],[G&S reporting level indicator]]","v":0},{"$f":"T_DataComboFile[[#This Row],[2017/18_Source]]*T_DataComboFile[[#This Row],[G&S reporting level indicator]]","v":0},{"$f":"T_DataComboFile[[#This Row],[2018/19_Source]]*T_DataComboFile[[#This Row],[G&S reporting level indicator]]","v":0},{"$f":"T_DataComboFile[[#This Row],[2019/20 Main appropriation_Source]]*T_DataComboFile[[#This Row],[G&S reporting level indicator]]","v":0},{"$f":"T_DataComboFile[[#This Row],[2019/20 Adjusted appropriation_Source]]*T_DataComboFile[[#This Row],[G&S reporting level indicator]]","v":0},{"$f":"T_DataComboFile[[#This Row],[2019/20 Revised estimate_Source]]*T_DataComboFile[[#This Row],[G&S reporting level indicator]]","v":0},{"$f":"T_DataComboFile[[#This Row],[2019/20 Preliminary outcome_Source]]*T_DataComboFile[[#This Row],[G&S reporting level indicator]]","v":0},{"$f":"T_DataComboFile[[#This Row],[2020/21 Original_Source]]*T_DataComboFile[[#This Row],[G&S reporting level indicator]]","v":0},{"$f":"T_DataComboFile[[#This Row],[2020/21 SAB_Source]]*T_DataComboFile[[#This Row],[G&S reporting level indicator]]","v":0},{"$f":"T_DataComboFile[[#This Row],[2020/21 Baseline_Source]]*T_DataComboFile[[#This Row],[G&S reporting level indicator]]","v":0},{"$f":"T_DataComboFile[[#This Row],[2021/22 Baseline_Source]]*T_DataComboFile[[#This Row],[G&S reporting level indicator]]","v":0},{"$f":"T_DataComboFile[[#This Row],[2022/23 Baseline_Source]]*T_DataComboFile[[#This Row],[G&S reporting level indicator]]","v":0},{"$f":"T_DataComboFile[[#This Row],[2023/24 Baseline_Source]]*T_DataComboFile[[#This Row],[G&S reporting level indicator]]","v":0},null,null,null,null,null,null,{"$f":"T_DataComboFile[[#This Row],[2021/22 Baseline]]+T_DataComboFile[[#This Row],[2021/22 Reduction]]+T_DataComboFile[[#This Row],[2021/22 Increase]]","v":0},{"$f":"T_DataComboFile[[#This Row],[2022/23 Baseline]]+T_DataComboFile[[#This Row],[2022/23 Reduction]]+T_DataComboFile[[#This Row],[2022/23 Increase]]","v":0},{"$f":"T_DataComboFile[[#This Row],[2023/24 Baseline]]+T_DataComboFile[[#This Row],[2023/24 Reduction]]+T_DataComboFile[[#This Row],[2023/24 Increase]]","v":0}]
[null,null,"2021_22","ENE2020",36,1,4,null,70344,36,1,4,null,"070344","36|01|04",1,2,4,43,43,"01|02|04|43|43","National","Small Business Development","Administration","Financial Management",null,"Current","Transfers and subsidies","Provinces and municipalities","Provinces","Provincial Revenue Funds",null,null,null,0,0,0,0,0,0,0,0,0,0,0,0,0,0,null,{"$f":"IF(T_DataComboFile[[#This Row],[G&S reporting level indicator]]=1,$AX$16,\"Not applicable\")","v":"Level 3"},{"$f":"IF(AND($AX$16=\"Level 3\",T_DataComboFile[[#This Row],[Econ3]] = \"Goods and services\"),IF(T_DataComboFile[[#This Row],[Econ4]] = T_DataComboFile[[#This Row],[Econ3]],1,0),IF(AND($AX$16=\"Level 4\",T_DataComboFile[[#This Row],[Econ4]] = \"Goods and services\"),0,1))","v":1},{"$f":"T_DataComboFile[[#This Row],[2016/17_Source]]*T_DataComboFile[[#This Row],[G&S reporting level indicator]]","v":0},{"$f":"T_DataComboFile[[#This Row],[2017/18_Source]]*T_DataComboFile[[#This Row],[G&S reporting level indicator]]","v":0},{"$f":"T_DataComboFile[[#This Row],[2018/19_Source]]*T_DataComboFile[[#This Row],[G&S reporting level indicator]]","v":0},{"$f":"T_DataComboFile[[#This Row],[2019/20 Main appropriation_Source]]*T_DataComboFile[[#This Row],[G&S reporting level indicator]]","v":0},{"$f":"T_DataComboFile[[#This Row],[2019/20 Adjusted appropriation_Source]]*T_DataComboFile[[#This Row],[G&S reporting level indicator]]","v":0},{"$f":"T_DataComboFile[[#This Row],[2019/20 Revised estimate_Source]]*T_DataComboFile[[#This Row],[G&S reporting level indicator]]","v":0},{"$f":"T_DataComboFile[[#This Row],[2019/20 Preliminary outcome_Source]]*T_DataComboFile[[#This Row],[G&S reporting level indicator]]","v":0},{"$f":"T_DataComboFile[[#This Row],[2020/21 Original_Source]]*T_DataComboFile[[#This Row],[G&S reporting level indicator]]","v":0},{"$f":"T_DataComboFile[[#This Row],[2020/21 SAB_Source]]*T_DataComboFile[[#This Row],[G&S reporting level indicator]]","v":0},{"$f":"T_DataComboFile[[#This Row],[2020/21 Baseline_Source]]*T_DataComboFile[[#This Row],[G&S reporting level indicator]]","v":0},{"$f":"T_DataComboFile[[#This Row],[2021/22 Baseline_Source]]*T_DataComboFile[[#This Row],[G&S reporting level indicator]]","v":0},{"$f":"T_DataComboFile[[#This Row],[2022/23 Baseline_Source]]*T_DataComboFile[[#This Row],[G&S reporting level indicator]]","v":0},{"$f":"T_DataComboFile[[#This Row],[2023/24 Baseline_Source]]*T_DataComboFile[[#This Row],[G&S reporting level indicator]]","v":0},null,null,null,null,null,null,{"$f":"T_DataComboFile[[#This Row],[2021/22 Baseline]]+T_DataComboFile[[#This Row],[2021/22 Reduction]]+T_DataComboFile[[#This Row],[2021/22 Increase]]","v":0},{"$f":"T_DataComboFile[[#This Row],[2022/23 Baseline]]+T_DataComboFile[[#This Row],[2022/23 Reduction]]+T_DataComboFile[[#This Row],[2022/23 Increase]]","v":0},{"$f":"T_DataComboFile[[#This Row],[2023/24 Baseline]]+T_DataComboFile[[#This Row],[2023/24 Reduction]]+T_DataComboFile[[#This Row],[2023/24 Increase]]","v":0}]
[null,null,"2021_22","ENE2020",36,1,4,null,70345,36,1,4,null,"070345","36|01|04",1,2,4,43,44,"01|02|04|43|44","National","Small Business Development","Administration","Financial Management",null,"Current","Transfers and subsidies","Provinces and municipalities","Provinces","Provincial agencies and funds",null,null,null,0,0,0,0,0,0,0,0,0,0,0,0,0,0,null,{"$f":"IF(T_DataComboFile[[#This Row],[G&S reporting level indicator]]=1,$AX$16,\"Not applicable\")","v":"Level 3"},{"$f":"IF(AND($AX$16=\"Level 3\",T_DataComboFile[[#This Row],[Econ3]] = \"Goods and services\"),IF(T_DataComboFile[[#This Row],[Econ4]] = T_DataComboFile[[#This Row],[Econ3]],1,0),IF(AND($AX$16=\"Level 4\",T_DataComboFile[[#This Row],[Econ4]] = \"Goods and services\"),0,1))","v":1},{"$f":"T_DataComboFile[[#This Row],[2016/17_Source]]*T_DataComboFile[[#This Row],[G&S reporting level indicator]]","v":0},{"$f":"T_DataComboFile[[#This Row],[2017/18_Source]]*T_DataComboFile[[#This Row],[G&S reporting level indicator]]","v":0},{"$f":"T_DataComboFile[[#This Row],[2018/19_Source]]*T_DataComboFile[[#This Row],[G&S reporting level indicator]]","v":0},{"$f":"T_DataComboFile[[#This Row],[2019/20 Main appropriation_Source]]*T_DataComboFile[[#This Row],[G&S reporting level indicator]]","v":0},{"$f":"T_DataComboFile[[#This Row],[2019/20 Adjusted appropriation_Source]]*T_DataComboFile[[#This Row],[G&S reporting level indicator]]","v":0},{"$f":"T_DataComboFile[[#This Row],[2019/20 Revised estimate_Source]]*T_DataComboFile[[#This Row],[G&S reporting level indicator]]","v":0},{"$f":"T_DataComboFile[[#This Row],[2019/20 Preliminary outcome_Source]]*T_DataComboFile[[#This Row],[G&S reporting level indicator]]","v":0},{"$f":"T_DataComboFile[[#This Row],[2020/21 Original_Source]]*T_DataComboFile[[#This Row],[G&S reporting level indicator]]","v":0},{"$f":"T_DataComboFile[[#This Row],[2020/21 SAB_Source]]*T_DataComboFile[[#This Row],[G&S reporting level indicator]]","v":0},{"$f":"T_DataComboFile[[#This Row],[2020/21 Baseline_Source]]*T_DataComboFile[[#This Row],[G&S reporting level indicator]]","v":0},{"$f":"T_DataComboFile[[#This Row],[2021/22 Baseline_Source]]*T_DataComboFile[[#This Row],[G&S reporting level indicator]]","v":0},{"$f":"T_DataComboFile[[#This Row],[2022/23 Baseline_Source]]*T_DataComboFile[[#This Row],[G&S reporting level indicator]]","v":0},{"$f":"T_DataComboFile[[#This Row],[2023/24 Baseline_Source]]*T_DataComboFile[[#This Row],[G&S reporting level indicator]]","v":0},null,null,null,null,null,null,{"$f":"T_DataComboFile[[#This Row],[2021/22 Baseline]]+T_DataComboFile[[#This Row],[2021/22 Reduction]]+T_DataComboFile[[#This Row],[2021/22 Increase]]","v":0},{"$f":"T_DataComboFile[[#This Row],[2022/23 Baseline]]+T_DataComboFile[[#This Row],[2022/23 Reduction]]+T_DataComboFile[[#This Row],[2022/23 Increase]]","v":0},{"$f":"T_DataComboFile[[#This Row],[2023/24 Baseline]]+T_DataComboFile[[#This Row],[2023/24 Reduction]]+T_DataComboFile[[#This Row],[2023/24 Increase]]","v":0}]
[null,null,"2021_22","ENE2020",36,1,4,null,70346,36,1,4,null,"070346","36|01|04",1,2,4,44,45,"01|02|04|44|45","National","Small Business Development","Administration","Financial Management",null,"Current","Transfers and subsidies","Provinces and municipalities","Municipalities","Municipal bank accounts",null,null,null,0,0,0,0,0,0,0,0,0,0,0,0,0,0,null,{"$f":"IF(T_DataComboFile[[#This Row],[G&S reporting level indicator]]=1,$AX$16,\"Not applicable\")","v":"Level 3"},{"$f":"IF(AND($AX$16=\"Level 3\",T_DataComboFile[[#This Row],[Econ3]] = \"Goods and services\"),IF(T_DataComboFile[[#This Row],[Econ4]] = T_DataComboFile[[#This Row],[Econ3]],1,0),IF(AND($AX$16=\"Level 4\",T_DataComboFile[[#This Row],[Econ4]] = \"Goods and services\"),0,1))","v":1},{"$f":"T_DataComboFile[[#This Row],[2016/17_Source]]*T_DataComboFile[[#This Row],[G&S reporting level indicator]]","v":0},{"$f":"T_DataComboFile[[#This Row],[2017/18_Source]]*T_DataComboFile[[#This Row],[G&S reporting level indicator]]","v":0},{"$f":"T_DataComboFile[[#This Row],[2018/19_Source]]*T_DataComboFile[[#This Row],[G&S reporting level indicator]]","v":0},{"$f":"T_DataComboFile[[#This Row],[2019/20 Main appropriation_Source]]*T_DataComboFile[[#This Row],[G&S reporting level indicator]]","v":0},{"$f":"T_DataComboFile[[#This Row],[2019/20 Adjusted appropriation_Source]]*T_DataComboFile[[#This Row],[G&S reporting level indicator]]","v":0},{"$f":"T_DataComboFile[[#This Row],[2019/20 Revised estimate_Source]]*T_DataComboFile[[#This Row],[G&S reporting level indicator]]","v":0},{"$f":"T_DataComboFile[[#This Row],[2019/20 Preliminary outcome_Source]]*T_DataComboFile[[#This Row],[G&S reporting level indicator]]","v":0},{"$f":"T_DataComboFile[[#This Row],[2020/21 Original_Source]]*T_DataComboFile[[#This Row],[G&S reporting level indicator]]","v":0},{"$f":"T_DataComboFile[[#This Row],[2020/21 SAB_Source]]*T_DataComboFile[[#This Row],[G&S reporting level indicator]]","v":0},{"$f":"T_DataComboFile[[#This Row],[2020/21 Baseline_Source]]*T_DataComboFile[[#This Row],[G&S reporting level indicator]]","v":0},{"$f":"T_DataComboFile[[#This Row],[2021/22 Baseline_Source]]*T_DataComboFile[[#This Row],[G&S reporting level indicator]]","v":0},{"$f":"T_DataComboFile[[#This Row],[2022/23 Baseline_Source]]*T_DataComboFile[[#This Row],[G&S reporting level indicator]]","v":0},{"$f":"T_DataComboFile[[#This Row],[2023/24 Baseline_Source]]*T_DataComboFile[[#This Row],[G&S reporting level indicator]]","v":0},null,null,null,null,null,null,{"$f":"T_DataComboFile[[#This Row],[2021/22 Baseline]]+T_DataComboFile[[#This Row],[2021/22 Reduction]]+T_DataComboFile[[#This Row],[2021/22 Increase]]","v":0},{"$f":"T_DataComboFile[[#This Row],[2022/23 Baseline]]+T_DataComboFile[[#This Row],[2022/23 Reduction]]+T_DataComboFile[[#This Row],[2022/23 Increase]]","v":0},{"$f":"T_DataComboFile[[#This Row],[2023/24 Baseline]]+T_DataComboFile[[#This Row],[2023/24 Reduction]]+T_DataComboFile[[#This Row],[2023/24 Increase]]","v":0}]
[null,null,"2021_22","ENE2020",36,1,4,null,70347,36,1,4,null,"070347","36|01|04",1,2,4,44,46,"01|02|04|44|46","National","Small Business Development","Administration","Financial Management",null,"Current","Transfers and subsidies","Provinces and municipalities","Municipalities","Municipal agencies and funds",null,null,null,0,0,0,0,0,0,0,0,0,0,0,0,0,0,null,{"$f":"IF(T_DataComboFile[[#This Row],[G&S reporting level indicator]]=1,$AX$16,\"Not applicable\")","v":"Level 3"},{"$f":"IF(AND($AX$16=\"Level 3\",T_DataComboFile[[#This Row],[Econ3]] = \"Goods and services\"),IF(T_DataComboFile[[#This Row],[Econ4]] = T_DataComboFile[[#This Row],[Econ3]],1,0),IF(AND($AX$16=\"Level 4\",T_DataComboFile[[#This Row],[Econ4]] = \"Goods and services\"),0,1))","v":1},{"$f":"T_DataComboFile[[#This Row],[2016/17_Source]]*T_DataComboFile[[#This Row],[G&S reporting level indicator]]","v":0},{"$f":"T_DataComboFile[[#This Row],[2017/18_Source]]*T_DataComboFile[[#This Row],[G&S reporting level indicator]]","v":0},{"$f":"T_DataComboFile[[#This Row],[2018/19_Source]]*T_DataComboFile[[#This Row],[G&S reporting level indicator]]","v":0},{"$f":"T_DataComboFile[[#This Row],[2019/20 Main appropriation_Source]]*T_DataComboFile[[#This Row],[G&S reporting level indicator]]","v":0},{"$f":"T_DataComboFile[[#This Row],[2019/20 Adjusted appropriation_Source]]*T_DataComboFile[[#This Row],[G&S reporting level indicator]]","v":0},{"$f":"T_DataComboFile[[#This Row],[2019/20 Revised estimate_Source]]*T_DataComboFile[[#This Row],[G&S reporting level indicator]]","v":0},{"$f":"T_DataComboFile[[#This Row],[2019/20 Preliminary outcome_Source]]*T_DataComboFile[[#This Row],[G&S reporting level indicator]]","v":0},{"$f":"T_DataComboFile[[#This Row],[2020/21 Original_Source]]*T_DataComboFile[[#This Row],[G&S reporting level indicator]]","v":0},{"$f":"T_DataComboFile[[#This Row],[2020/21 SAB_Source]]*T_DataComboFile[[#This Row],[G&S reporting level indicator]]","v":0},{"$f":"T_DataComboFile[[#This Row],[2020/21 Baseline_Source]]*T_DataComboFile[[#This Row],[G&S reporting level indicator]]","v":0},{"$f":"T_DataComboFile[[#This Row],[2021/22 Baseline_Source]]*T_DataComboFile[[#This Row],[G&S reporting level indicator]]","v":0},{"$f":"T_DataComboFile[[#This Row],[2022/23 Baseline_Source]]*T_DataComboFile[[#This Row],[G&S reporting level indicator]]","v":0},{"$f":"T_DataComboFile[[#This Row],[2023/24 Baseline_Source]]*T_DataComboFile[[#This Row],[G&S reporting level indicator]]","v":0},null,null,null,null,null,null,{"$f":"T_DataComboFile[[#This Row],[2021/22 Baseline]]+T_DataComboFile[[#This Row],[2021/22 Reduction]]+T_DataComboFile[[#This Row],[2021/22 Increase]]","v":0},{"$f":"T_DataComboFile[[#This Row],[2022/23 Baseline]]+T_DataComboFile[[#This Row],[2022/23 Reduction]]+T_DataComboFile[[#This Row],[2022/23 Increase]]","v":0},{"$f":"T_DataComboFile[[#This Row],[2023/24 Baseline]]+T_DataComboFile[[#This Row],[2023/24 Reduction]]+T_DataComboFile[[#This Row],[2023/24 Increase]]","v":0}]
[null,null,"2021_22","ENE2020",36,1,4,null,70348,36,1,4,null,"070348","36|01|04",1,2,5,45,47,"01|02|05|45|47","National","Small Business Development","Administration","Financial Management",null,"Current","Transfers and subsidies","Departmental agencies and accounts","Social security funds","Social security funds",null,null,null,0,0,0,0,0,0,0,0,0,0,0,0,0,0,null,{"$f":"IF(T_DataComboFile[[#This Row],[G&S reporting level indicator]]=1,$AX$16,\"Not applicable\")","v":"Level 3"},{"$f":"IF(AND($AX$16=\"Level 3\",T_DataComboFile[[#This Row],[Econ3]] = \"Goods and services\"),IF(T_DataComboFile[[#This Row],[Econ4]] = T_DataComboFile[[#This Row],[Econ3]],1,0),IF(AND($AX$16=\"Level 4\",T_DataComboFile[[#This Row],[Econ4]] = \"Goods and services\"),0,1))","v":1},{"$f":"T_DataComboFile[[#This Row],[2016/17_Source]]*T_DataComboFile[[#This Row],[G&S reporting level indicator]]","v":0},{"$f":"T_DataComboFile[[#This Row],[2017/18_Source]]*T_DataComboFile[[#This Row],[G&S reporting level indicator]]","v":0},{"$f":"T_DataComboFile[[#This Row],[2018/19_Source]]*T_DataComboFile[[#This Row],[G&S reporting level indicator]]","v":0},{"$f":"T_DataComboFile[[#This Row],[2019/20 Main appropriation_Source]]*T_DataComboFile[[#This Row],[G&S reporting level indicator]]","v":0},{"$f":"T_DataComboFile[[#This Row],[2019/20 Adjusted appropriation_Source]]*T_DataComboFile[[#This Row],[G&S reporting level indicator]]","v":0},{"$f":"T_DataComboFile[[#This Row],[2019/20 Revised estimate_Source]]*T_DataComboFile[[#This Row],[G&S reporting level indicator]]","v":0},{"$f":"T_DataComboFile[[#This Row],[2019/20 Preliminary outcome_Source]]*T_DataComboFile[[#This Row],[G&S reporting level indicator]]","v":0},{"$f":"T_DataComboFile[[#This Row],[2020/21 Original_Source]]*T_DataComboFile[[#This Row],[G&S reporting level indicator]]","v":0},{"$f":"T_DataComboFile[[#This Row],[2020/21 SAB_Source]]*T_DataComboFile[[#This Row],[G&S reporting level indicator]]","v":0},{"$f":"T_DataComboFile[[#This Row],[2020/21 Baseline_Source]]*T_DataComboFile[[#This Row],[G&S reporting level indicator]]","v":0},{"$f":"T_DataComboFile[[#This Row],[2021/22 Baseline_Source]]*T_DataComboFile[[#This Row],[G&S reporting level indicator]]","v":0},{"$f":"T_DataComboFile[[#This Row],[2022/23 Baseline_Source]]*T_DataComboFile[[#This Row],[G&S reporting level indicator]]","v":0},{"$f":"T_DataComboFile[[#This Row],[2023/24 Baseline_Source]]*T_DataComboFile[[#This Row],[G&S reporting level indicator]]","v":0},null,null,null,null,null,null,{"$f":"T_DataComboFile[[#This Row],[2021/22 Baseline]]+T_DataComboFile[[#This Row],[2021/22 Reduction]]+T_DataComboFile[[#This Row],[2021/22 Increase]]","v":0},{"$f":"T_DataComboFile[[#This Row],[2022/23 Baseline]]+T_DataComboFile[[#This Row],[2022/23 Reduction]]+T_DataComboFile[[#This Row],[2022/23 Increase]]","v":0},{"$f":"T_DataComboFile[[#This Row],[2023/24 Baseline]]+T_DataComboFile[[#This Row],[2023/24 Reduction]]+T_DataComboFile[[#This Row],[2023/24 Increase]]","v":0}]
[null,null,"2021_22","ENE2020",36,1,4,null,70349,36,1,4,null,"070349","36|01|04",1,2,5,46,48,"01|02|05|46|48","National","Small Business Development","Administration","Financial Management",null,"Current","Transfers and subsidies","Departmental agencies and accounts","Departmental agencies (non-business entities)","Departmental agencies (non-business entities)",null,null,null,0,0,0,0,0,0,0,0,0,0,0,0,0,0,null,{"$f":"IF(T_DataComboFile[[#This Row],[G&S reporting level indicator]]=1,$AX$16,\"Not applicable\")","v":"Level 3"},{"$f":"IF(AND($AX$16=\"Level 3\",T_DataComboFile[[#This Row],[Econ3]] = \"Goods and services\"),IF(T_DataComboFile[[#This Row],[Econ4]] = T_DataComboFile[[#This Row],[Econ3]],1,0),IF(AND($AX$16=\"Level 4\",T_DataComboFile[[#This Row],[Econ4]] = \"Goods and services\"),0,1))","v":1},{"$f":"T_DataComboFile[[#This Row],[2016/17_Source]]*T_DataComboFile[[#This Row],[G&S reporting level indicator]]","v":0},{"$f":"T_DataComboFile[[#This Row],[2017/18_Source]]*T_DataComboFile[[#This Row],[G&S reporting level indicator]]","v":0},{"$f":"T_DataComboFile[[#This Row],[2018/19_Source]]*T_DataComboFile[[#This Row],[G&S reporting level indicator]]","v":0},{"$f":"T_DataComboFile[[#This Row],[2019/20 Main appropriation_Source]]*T_DataComboFile[[#This Row],[G&S reporting level indicator]]","v":0},{"$f":"T_DataComboFile[[#This Row],[2019/20 Adjusted appropriation_Source]]*T_DataComboFile[[#This Row],[G&S reporting level indicator]]","v":0},{"$f":"T_DataComboFile[[#This Row],[2019/20 Revised estimate_Source]]*T_DataComboFile[[#This Row],[G&S reporting level indicator]]","v":0},{"$f":"T_DataComboFile[[#This Row],[2019/20 Preliminary outcome_Source]]*T_DataComboFile[[#This Row],[G&S reporting level indicator]]","v":0},{"$f":"T_DataComboFile[[#This Row],[2020/21 Original_Source]]*T_DataComboFile[[#This Row],[G&S reporting level indicator]]","v":0},{"$f":"T_DataComboFile[[#This Row],[2020/21 SAB_Source]]*T_DataComboFile[[#This Row],[G&S reporting level indicator]]","v":0},{"$f":"T_DataComboFile[[#This Row],[2020/21 Baseline_Source]]*T_DataComboFile[[#This Row],[G&S reporting level indicator]]","v":0},{"$f":"T_DataComboFile[[#This Row],[2021/22 Baseline_Source]]*T_DataComboFile[[#This Row],[G&S reporting level indicator]]","v":0},{"$f":"T_DataComboFile[[#This Row],[2022/23 Baseline_Source]]*T_DataComboFile[[#This Row],[G&S reporting level indicator]]","v":0},{"$f":"T_DataComboFile[[#This Row],[2023/24 Baseline_Source]]*T_DataComboFile[[#This Row],[G&S reporting level indicator]]","v":0},null,null,null,null,null,null,{"$f":"T_DataComboFile[[#This Row],[2021/22 Baseline]]+T_DataComboFile[[#This Row],[2021/22 Reduction]]+T_DataComboFile[[#This Row],[2021/22 Increase]]","v":0},{"$f":"T_DataComboFile[[#This Row],[2022/23 Baseline]]+T_DataComboFile[[#This Row],[2022/23 Reduction]]+T_DataComboFile[[#This Row],[2022/23 Increase]]","v":0},{"$f":"T_DataComboFile[[#This Row],[2023/24 Baseline]]+T_DataComboFile[[#This Row],[2023/24 Reduction]]+T_DataComboFile[[#This Row],[2023/24 Increase]]","v":0}]
[null,null,"2021_22","ENE2020",36,1,4,null,70350,36,1,4,null,"070350","36|01|04",1,2,6,47,49,"01|02|06|47|49","National","Small Business Development","Administration","Financial Management",null,"Current","Transfers and subsidies","Higher education institutions","Higher education institutions","Higher education institutions",null,null,null,0,0,0,0,0,0,0,0,0,0,0,0,0,0,null,{"$f":"IF(T_DataComboFile[[#This Row],[G&S reporting level indicator]]=1,$AX$16,\"Not applicable\")","v":"Level 3"},{"$f":"IF(AND($AX$16=\"Level 3\",T_DataComboFile[[#This Row],[Econ3]] = \"Goods and services\"),IF(T_DataComboFile[[#This Row],[Econ4]] = T_DataComboFile[[#This Row],[Econ3]],1,0),IF(AND($AX$16=\"Level 4\",T_DataComboFile[[#This Row],[Econ4]] = \"Goods and services\"),0,1))","v":1},{"$f":"T_DataComboFile[[#This Row],[2016/17_Source]]*T_DataComboFile[[#This Row],[G&S reporting level indicator]]","v":0},{"$f":"T_DataComboFile[[#This Row],[2017/18_Source]]*T_DataComboFile[[#This Row],[G&S reporting level indicator]]","v":0},{"$f":"T_DataComboFile[[#This Row],[2018/19_Source]]*T_DataComboFile[[#This Row],[G&S reporting level indicator]]","v":0},{"$f":"T_DataComboFile[[#This Row],[2019/20 Main appropriation_Source]]*T_DataComboFile[[#This Row],[G&S reporting level indicator]]","v":0},{"$f":"T_DataComboFile[[#This Row],[2019/20 Adjusted appropriation_Source]]*T_DataComboFile[[#This Row],[G&S reporting level indicator]]","v":0},{"$f":"T_DataComboFile[[#This Row],[2019/20 Revised estimate_Source]]*T_DataComboFile[[#This Row],[G&S reporting level indicator]]","v":0},{"$f":"T_DataComboFile[[#This Row],[2019/20 Preliminary outcome_Source]]*T_DataComboFile[[#This Row],[G&S reporting level indicator]]","v":0},{"$f":"T_DataComboFile[[#This Row],[2020/21 Original_Source]]*T_DataComboFile[[#This Row],[G&S reporting level indicator]]","v":0},{"$f":"T_DataComboFile[[#This Row],[2020/21 SAB_Source]]*T_DataComboFile[[#This Row],[G&S reporting level indicator]]","v":0},{"$f":"T_DataComboFile[[#This Row],[2020/21 Baseline_Source]]*T_DataComboFile[[#This Row],[G&S reporting level indicator]]","v":0},{"$f":"T_DataComboFile[[#This Row],[2021/22 Baseline_Source]]*T_DataComboFile[[#This Row],[G&S reporting level indicator]]","v":0},{"$f":"T_DataComboFile[[#This Row],[2022/23 Baseline_Source]]*T_DataComboFile[[#This Row],[G&S reporting level indicator]]","v":0},{"$f":"T_DataComboFile[[#This Row],[2023/24 Baseline_Source]]*T_DataComboFile[[#This Row],[G&S reporting level indicator]]","v":0},null,null,null,null,null,null,{"$f":"T_DataComboFile[[#This Row],[2021/22 Baseline]]+T_DataComboFile[[#This Row],[2021/22 Reduction]]+T_DataComboFile[[#This Row],[2021/22 Increase]]","v":0},{"$f":"T_DataComboFile[[#This Row],[2022/23 Baseline]]+T_DataComboFile[[#This Row],[2022/23 Reduction]]+T_DataComboFile[[#This Row],[2022/23 Increase]]","v":0},{"$f":"T_DataComboFile[[#This Row],[2023/24 Baseline]]+T_DataComboFile[[#This Row],[2023/24 Reduction]]+T_DataComboFile[[#This Row],[2023/24 Increase]]","v":0}]
[null,null,"2021_22","ENE2020",36,1,4,null,70351,36,1,4,null,"070351","36|01|04",1,2,7,48,50,"01|02|07|48|50","National","Small Business Development","Administration","Financial Management",null,"Current","Transfers and subsidies","Foreign governments and international organisations","Foreign governments and international organisations","Foreign governments and international organisations",null,null,null,0,0,0,0,0,0,0,0,0,0,0,0,0,0,null,{"$f":"IF(T_DataComboFile[[#This Row],[G&S reporting level indicator]]=1,$AX$16,\"Not applicable\")","v":"Level 3"},{"$f":"IF(AND($AX$16=\"Level 3\",T_DataComboFile[[#This Row],[Econ3]] = \"Goods and services\"),IF(T_DataComboFile[[#This Row],[Econ4]] = T_DataComboFile[[#This Row],[Econ3]],1,0),IF(AND($AX$16=\"Level 4\",T_DataComboFile[[#This Row],[Econ4]] = \"Goods and services\"),0,1))","v":1},{"$f":"T_DataComboFile[[#This Row],[2016/17_Source]]*T_DataComboFile[[#This Row],[G&S reporting level indicator]]","v":0},{"$f":"T_DataComboFile[[#This Row],[2017/18_Source]]*T_DataComboFile[[#This Row],[G&S reporting level indicator]]","v":0},{"$f":"T_DataComboFile[[#This Row],[2018/19_Source]]*T_DataComboFile[[#This Row],[G&S reporting level indicator]]","v":0},{"$f":"T_DataComboFile[[#This Row],[2019/20 Main appropriation_Source]]*T_DataComboFile[[#This Row],[G&S reporting level indicator]]","v":0},{"$f":"T_DataComboFile[[#This Row],[2019/20 Adjusted appropriation_Source]]*T_DataComboFile[[#This Row],[G&S reporting level indicator]]","v":0},{"$f":"T_DataComboFile[[#This Row],[2019/20 Revised estimate_Source]]*T_DataComboFile[[#This Row],[G&S reporting level indicator]]","v":0},{"$f":"T_DataComboFile[[#This Row],[2019/20 Preliminary outcome_Source]]*T_DataComboFile[[#This Row],[G&S reporting level indicator]]","v":0},{"$f":"T_DataComboFile[[#This Row],[2020/21 Original_Source]]*T_DataComboFile[[#This Row],[G&S reporting level indicator]]","v":0},{"$f":"T_DataComboFile[[#This Row],[2020/21 SAB_Source]]*T_DataComboFile[[#This Row],[G&S reporting level indicator]]","v":0},{"$f":"T_DataComboFile[[#This Row],[2020/21 Baseline_Source]]*T_DataComboFile[[#This Row],[G&S reporting level indicator]]","v":0},{"$f":"T_DataComboFile[[#This Row],[2021/22 Baseline_Source]]*T_DataComboFile[[#This Row],[G&S reporting level indicator]]","v":0},{"$f":"T_DataComboFile[[#This Row],[2022/23 Baseline_Source]]*T_DataComboFile[[#This Row],[G&S reporting level indicator]]","v":0},{"$f":"T_DataComboFile[[#This Row],[2023/24 Baseline_Source]]*T_DataComboFile[[#This Row],[G&S reporting level indicator]]","v":0},null,null,null,null,null,null,{"$f":"T_DataComboFile[[#This Row],[2021/22 Baseline]]+T_DataComboFile[[#This Row],[2021/22 Reduction]]+T_DataComboFile[[#This Row],[2021/22 Increase]]","v":0},{"$f":"T_DataComboFile[[#This Row],[2022/23 Baseline]]+T_DataComboFile[[#This Row],[2022/23 Reduction]]+T_DataComboFile[[#This Row],[2022/23 Increase]]","v":0},{"$f":"T_DataComboFile[[#This Row],[2023/24 Baseline]]+T_DataComboFile[[#This Row],[2023/24 Reduction]]+T_DataComboFile[[#This Row],[2023/24 Increase]]","v":0}]
[null,null,"2021_22","ENE2020",36,1,4,null,70352,36,1,4,null,"070352","36|01|04",1,2,8,49,51,"01|02|08|49|51","National","Small Business Development","Administration","Financial Management",null,"Current","Transfers and subsidies","Public corporations and private enterprises","Public corporations","Subsidies on products and production (pc)",null,null,null,0,0,0,0,0,0,0,0,0,0,0,0,0,0,null,{"$f":"IF(T_DataComboFile[[#This Row],[G&S reporting level indicator]]=1,$AX$16,\"Not applicable\")","v":"Level 3"},{"$f":"IF(AND($AX$16=\"Level 3\",T_DataComboFile[[#This Row],[Econ3]] = \"Goods and services\"),IF(T_DataComboFile[[#This Row],[Econ4]] = T_DataComboFile[[#This Row],[Econ3]],1,0),IF(AND($AX$16=\"Level 4\",T_DataComboFile[[#This Row],[Econ4]] = \"Goods and services\"),0,1))","v":1},{"$f":"T_DataComboFile[[#This Row],[2016/17_Source]]*T_DataComboFile[[#This Row],[G&S reporting level indicator]]","v":0},{"$f":"T_DataComboFile[[#This Row],[2017/18_Source]]*T_DataComboFile[[#This Row],[G&S reporting level indicator]]","v":0},{"$f":"T_DataComboFile[[#This Row],[2018/19_Source]]*T_DataComboFile[[#This Row],[G&S reporting level indicator]]","v":0},{"$f":"T_DataComboFile[[#This Row],[2019/20 Main appropriation_Source]]*T_DataComboFile[[#This Row],[G&S reporting level indicator]]","v":0},{"$f":"T_DataComboFile[[#This Row],[2019/20 Adjusted appropriation_Source]]*T_DataComboFile[[#This Row],[G&S reporting level indicator]]","v":0},{"$f":"T_DataComboFile[[#This Row],[2019/20 Revised estimate_Source]]*T_DataComboFile[[#This Row],[G&S reporting level indicator]]","v":0},{"$f":"T_DataComboFile[[#This Row],[2019/20 Preliminary outcome_Source]]*T_DataComboFile[[#This Row],[G&S reporting level indicator]]","v":0},{"$f":"T_DataComboFile[[#This Row],[2020/21 Original_Source]]*T_DataComboFile[[#This Row],[G&S reporting level indicator]]","v":0},{"$f":"T_DataComboFile[[#This Row],[2020/21 SAB_Source]]*T_DataComboFile[[#This Row],[G&S reporting level indicator]]","v":0},{"$f":"T_DataComboFile[[#This Row],[2020/21 Baseline_Source]]*T_DataComboFile[[#This Row],[G&S reporting level indicator]]","v":0},{"$f":"T_DataComboFile[[#This Row],[2021/22 Baseline_Source]]*T_DataComboFile[[#This Row],[G&S reporting level indicator]]","v":0},{"$f":"T_DataComboFile[[#This Row],[2022/23 Baseline_Source]]*T_DataComboFile[[#This Row],[G&S reporting level indicator]]","v":0},{"$f":"T_DataComboFile[[#This Row],[2023/24 Baseline_Source]]*T_DataComboFile[[#This Row],[G&S reporting level indicator]]","v":0},null,null,null,null,null,null,{"$f":"T_DataComboFile[[#This Row],[2021/22 Baseline]]+T_DataComboFile[[#This Row],[2021/22 Reduction]]+T_DataComboFile[[#This Row],[2021/22 Increase]]","v":0},{"$f":"T_DataComboFile[[#This Row],[2022/23 Baseline]]+T_DataComboFile[[#This Row],[2022/23 Reduction]]+T_DataComboFile[[#This Row],[2022/23 Increase]]","v":0},{"$f":"T_DataComboFile[[#This Row],[2023/24 Baseline]]+T_DataComboFile[[#This Row],[2023/24 Reduction]]+T_DataComboFile[[#This Row],[2023/24 Increase]]","v":0}]
[null,null,"2021_22","ENE2020",36,1,4,null,70353,36,1,4,null,"070353","36|01|04",1,2,8,49,52,"01|02|08|49|52","National","Small Business Development","Administration","Financial Management",null,"Current","Transfers and subsidies","Public corporations and private enterprises","Public corporations","Other transfers to public corporations",null,null,null,0,0,0,0,0,0,0,0,0,0,0,0,0,0,null,{"$f":"IF(T_DataComboFile[[#This Row],[G&S reporting level indicator]]=1,$AX$16,\"Not applicable\")","v":"Level 3"},{"$f":"IF(AND($AX$16=\"Level 3\",T_DataComboFile[[#This Row],[Econ3]] = \"Goods and services\"),IF(T_DataComboFile[[#This Row],[Econ4]] = T_DataComboFile[[#This Row],[Econ3]],1,0),IF(AND($AX$16=\"Level 4\",T_DataComboFile[[#This Row],[Econ4]] = \"Goods and services\"),0,1))","v":1},{"$f":"T_DataComboFile[[#This Row],[2016/17_Source]]*T_DataComboFile[[#This Row],[G&S reporting level indicator]]","v":0},{"$f":"T_DataComboFile[[#This Row],[2017/18_Source]]*T_DataComboFile[[#This Row],[G&S reporting level indicator]]","v":0},{"$f":"T_DataComboFile[[#This Row],[2018/19_Source]]*T_DataComboFile[[#This Row],[G&S reporting level indicator]]","v":0},{"$f":"T_DataComboFile[[#This Row],[2019/20 Main appropriation_Source]]*T_DataComboFile[[#This Row],[G&S reporting level indicator]]","v":0},{"$f":"T_DataComboFile[[#This Row],[2019/20 Adjusted appropriation_Source]]*T_DataComboFile[[#This Row],[G&S reporting level indicator]]","v":0},{"$f":"T_DataComboFile[[#This Row],[2019/20 Revised estimate_Source]]*T_DataComboFile[[#This Row],[G&S reporting level indicator]]","v":0},{"$f":"T_DataComboFile[[#This Row],[2019/20 Preliminary outcome_Source]]*T_DataComboFile[[#This Row],[G&S reporting level indicator]]","v":0},{"$f":"T_DataComboFile[[#This Row],[2020/21 Original_Source]]*T_DataComboFile[[#This Row],[G&S reporting level indicator]]","v":0},{"$f":"T_DataComboFile[[#This Row],[2020/21 SAB_Source]]*T_DataComboFile[[#This Row],[G&S reporting level indicator]]","v":0},{"$f":"T_DataComboFile[[#This Row],[2020/21 Baseline_Source]]*T_DataComboFile[[#This Row],[G&S reporting level indicator]]","v":0},{"$f":"T_DataComboFile[[#This Row],[2021/22 Baseline_Source]]*T_DataComboFile[[#This Row],[G&S reporting level indicator]]","v":0},{"$f":"T_DataComboFile[[#This Row],[2022/23 Baseline_Source]]*T_DataComboFile[[#This Row],[G&S reporting level indicator]]","v":0},{"$f":"T_DataComboFile[[#This Row],[2023/24 Baseline_Source]]*T_DataComboFile[[#This Row],[G&S reporting level indicator]]","v":0},null,null,null,null,null,null,{"$f":"T_DataComboFile[[#This Row],[2021/22 Baseline]]+T_DataComboFile[[#This Row],[2021/22 Reduction]]+T_DataComboFile[[#This Row],[2021/22 Increase]]","v":0},{"$f":"T_DataComboFile[[#This Row],[2022/23 Baseline]]+T_DataComboFile[[#This Row],[2022/23 Reduction]]+T_DataComboFile[[#This Row],[2022/23 Increase]]","v":0},{"$f":"T_DataComboFile[[#This Row],[2023/24 Baseline]]+T_DataComboFile[[#This Row],[2023/24 Reduction]]+T_DataComboFile[[#This Row],[2023/24 Increase]]","v":0}]
[null,null,"2021_22","ENE2020",36,1,4,null,70354,36,1,4,null,"070354","36|01|04",1,2,8,50,53,"01|02|08|50|53","National","Small Business Development","Administration","Financial Management",null,"Current","Transfers and subsidies","Public corporations and private enterprises","Private enterprises","Subsidies on products and production (pe)",null,null,null,0,0,0,0,0,0,0,0,0,0,0,0,0,0,null,{"$f":"IF(T_DataComboFile[[#This Row],[G&S reporting level indicator]]=1,$AX$16,\"Not applicable\")","v":"Level 3"},{"$f":"IF(AND($AX$16=\"Level 3\",T_DataComboFile[[#This Row],[Econ3]] = \"Goods and services\"),IF(T_DataComboFile[[#This Row],[Econ4]] = T_DataComboFile[[#This Row],[Econ3]],1,0),IF(AND($AX$16=\"Level 4\",T_DataComboFile[[#This Row],[Econ4]] = \"Goods and services\"),0,1))","v":1},{"$f":"T_DataComboFile[[#This Row],[2016/17_Source]]*T_DataComboFile[[#This Row],[G&S reporting level indicator]]","v":0},{"$f":"T_DataComboFile[[#This Row],[2017/18_Source]]*T_DataComboFile[[#This Row],[G&S reporting level indicator]]","v":0},{"$f":"T_DataComboFile[[#This Row],[2018/19_Source]]*T_DataComboFile[[#This Row],[G&S reporting level indicator]]","v":0},{"$f":"T_DataComboFile[[#This Row],[2019/20 Main appropriation_Source]]*T_DataComboFile[[#This Row],[G&S reporting level indicator]]","v":0},{"$f":"T_DataComboFile[[#This Row],[2019/20 Adjusted appropriation_Source]]*T_DataComboFile[[#This Row],[G&S reporting level indicator]]","v":0},{"$f":"T_DataComboFile[[#This Row],[2019/20 Revised estimate_Source]]*T_DataComboFile[[#This Row],[G&S reporting level indicator]]","v":0},{"$f":"T_DataComboFile[[#This Row],[2019/20 Preliminary outcome_Source]]*T_DataComboFile[[#This Row],[G&S reporting level indicator]]","v":0},{"$f":"T_DataComboFile[[#This Row],[2020/21 Original_Source]]*T_DataComboFile[[#This Row],[G&S reporting level indicator]]","v":0},{"$f":"T_DataComboFile[[#This Row],[2020/21 SAB_Source]]*T_DataComboFile[[#This Row],[G&S reporting level indicator]]","v":0},{"$f":"T_DataComboFile[[#This Row],[2020/21 Baseline_Source]]*T_DataComboFile[[#This Row],[G&S reporting level indicator]]","v":0},{"$f":"T_DataComboFile[[#This Row],[2021/22 Baseline_Source]]*T_DataComboFile[[#This Row],[G&S reporting level indicator]]","v":0},{"$f":"T_DataComboFile[[#This Row],[2022/23 Baseline_Source]]*T_DataComboFile[[#This Row],[G&S reporting level indicator]]","v":0},{"$f":"T_DataComboFile[[#This Row],[2023/24 Baseline_Source]]*T_DataComboFile[[#This Row],[G&S reporting level indicator]]","v":0},null,null,null,null,null,null,{"$f":"T_DataComboFile[[#This Row],[2021/22 Baseline]]+T_DataComboFile[[#This Row],[2021/22 Reduction]]+T_DataComboFile[[#This Row],[2021/22 Increase]]","v":0},{"$f":"T_DataComboFile[[#This Row],[2022/23 Baseline]]+T_DataComboFile[[#This Row],[2022/23 Reduction]]+T_DataComboFile[[#This Row],[2022/23 Increase]]","v":0},{"$f":"T_DataComboFile[[#This Row],[2023/24 Baseline]]+T_DataComboFile[[#This Row],[2023/24 Reduction]]+T_DataComboFile[[#This Row],[2023/24 Increase]]","v":0}]
[null,null,"2021_22","ENE2020",36,1,4,null,70355,36,1,4,null,"070355","36|01|04",1,2,8,50,54,"01|02|08|50|54","National","Small Business Development","Administration","Financial Management",null,"Current","Transfers and subsidies","Public corporations and private enterprises","Private enterprises","Other transfers to private enterprises",null,null,null,0,0,0,0,0,0,0,0,0,0,0,0,0,0,null,{"$f":"IF(T_DataComboFile[[#This Row],[G&S reporting level indicator]]=1,$AX$16,\"Not applicable\")","v":"Level 3"},{"$f":"IF(AND($AX$16=\"Level 3\",T_DataComboFile[[#This Row],[Econ3]] = \"Goods and services\"),IF(T_DataComboFile[[#This Row],[Econ4]] = T_DataComboFile[[#This Row],[Econ3]],1,0),IF(AND($AX$16=\"Level 4\",T_DataComboFile[[#This Row],[Econ4]] = \"Goods and services\"),0,1))","v":1},{"$f":"T_DataComboFile[[#This Row],[2016/17_Source]]*T_DataComboFile[[#This Row],[G&S reporting level indicator]]","v":0},{"$f":"T_DataComboFile[[#This Row],[2017/18_Source]]*T_DataComboFile[[#This Row],[G&S reporting level indicator]]","v":0},{"$f":"T_DataComboFile[[#This Row],[2018/19_Source]]*T_DataComboFile[[#This Row],[G&S reporting level indicator]]","v":0},{"$f":"T_DataComboFile[[#This Row],[2019/20 Main appropriation_Source]]*T_DataComboFile[[#This Row],[G&S reporting level indicator]]","v":0},{"$f":"T_DataComboFile[[#This Row],[2019/20 Adjusted appropriation_Source]]*T_DataComboFile[[#This Row],[G&S reporting level indicator]]","v":0},{"$f":"T_DataComboFile[[#This Row],[2019/20 Revised estimate_Source]]*T_DataComboFile[[#This Row],[G&S reporting level indicator]]","v":0},{"$f":"T_DataComboFile[[#This Row],[2019/20 Preliminary outcome_Source]]*T_DataComboFile[[#This Row],[G&S reporting level indicator]]","v":0},{"$f":"T_DataComboFile[[#This Row],[2020/21 Original_Source]]*T_DataComboFile[[#This Row],[G&S reporting level indicator]]","v":0},{"$f":"T_DataComboFile[[#This Row],[2020/21 SAB_Source]]*T_DataComboFile[[#This Row],[G&S reporting level indicator]]","v":0},{"$f":"T_DataComboFile[[#This Row],[2020/21 Baseline_Source]]*T_DataComboFile[[#This Row],[G&S reporting level indicator]]","v":0},{"$f":"T_DataComboFile[[#This Row],[2021/22 Baseline_Source]]*T_DataComboFile[[#This Row],[G&S reporting level indicator]]","v":0},{"$f":"T_DataComboFile[[#This Row],[2022/23 Baseline_Source]]*T_DataComboFile[[#This Row],[G&S reporting level indicator]]","v":0},{"$f":"T_DataComboFile[[#This Row],[2023/24 Baseline_Source]]*T_DataComboFile[[#This Row],[G&S reporting level indicator]]","v":0},null,null,null,null,null,null,{"$f":"T_DataComboFile[[#This Row],[2021/22 Baseline]]+T_DataComboFile[[#This Row],[2021/22 Reduction]]+T_DataComboFile[[#This Row],[2021/22 Increase]]","v":0},{"$f":"T_DataComboFile[[#This Row],[2022/23 Baseline]]+T_DataComboFile[[#This Row],[2022/23 Reduction]]+T_DataComboFile[[#This Row],[2022/23 Increase]]","v":0},{"$f":"T_DataComboFile[[#This Row],[2023/24 Baseline]]+T_DataComboFile[[#This Row],[2023/24 Reduction]]+T_DataComboFile[[#This Row],[2023/24 Increase]]","v":0}]
[null,null,"2021_22","ENE2020",36,1,4,null,70356,36,1,4,null,"070356","36|01|04",1,2,9,51,55,"01|02|09|51|55","National","Small Business Development","Administration","Financial Management",null,"Current","Transfers and subsidies","Non-profit institutions","Non-profit institutions","Non-profit institutions",null,null,null,0,0,0,0,0,0,0,0,0,0,0,0,0,0,null,{"$f":"IF(T_DataComboFile[[#This Row],[G&S reporting level indicator]]=1,$AX$16,\"Not applicable\")","v":"Level 3"},{"$f":"IF(AND($AX$16=\"Level 3\",T_DataComboFile[[#This Row],[Econ3]] = \"Goods and services\"),IF(T_DataComboFile[[#This Row],[Econ4]] = T_DataComboFile[[#This Row],[Econ3]],1,0),IF(AND($AX$16=\"Level 4\",T_DataComboFile[[#This Row],[Econ4]] = \"Goods and services\"),0,1))","v":1},{"$f":"T_DataComboFile[[#This Row],[2016/17_Source]]*T_DataComboFile[[#This Row],[G&S reporting level indicator]]","v":0},{"$f":"T_DataComboFile[[#This Row],[2017/18_Source]]*T_DataComboFile[[#This Row],[G&S reporting level indicator]]","v":0},{"$f":"T_DataComboFile[[#This Row],[2018/19_Source]]*T_DataComboFile[[#This Row],[G&S reporting level indicator]]","v":0},{"$f":"T_DataComboFile[[#This Row],[2019/20 Main appropriation_Source]]*T_DataComboFile[[#This Row],[G&S reporting level indicator]]","v":0},{"$f":"T_DataComboFile[[#This Row],[2019/20 Adjusted appropriation_Source]]*T_DataComboFile[[#This Row],[G&S reporting level indicator]]","v":0},{"$f":"T_DataComboFile[[#This Row],[2019/20 Revised estimate_Source]]*T_DataComboFile[[#This Row],[G&S reporting level indicator]]","v":0},{"$f":"T_DataComboFile[[#This Row],[2019/20 Preliminary outcome_Source]]*T_DataComboFile[[#This Row],[G&S reporting level indicator]]","v":0},{"$f":"T_DataComboFile[[#This Row],[2020/21 Original_Source]]*T_DataComboFile[[#This Row],[G&S reporting level indicator]]","v":0},{"$f":"T_DataComboFile[[#This Row],[2020/21 SAB_Source]]*T_DataComboFile[[#This Row],[G&S reporting level indicator]]","v":0},{"$f":"T_DataComboFile[[#This Row],[2020/21 Baseline_Source]]*T_DataComboFile[[#This Row],[G&S reporting level indicator]]","v":0},{"$f":"T_DataComboFile[[#This Row],[2021/22 Baseline_Source]]*T_DataComboFile[[#This Row],[G&S reporting level indicator]]","v":0},{"$f":"T_DataComboFile[[#This Row],[2022/23 Baseline_Source]]*T_DataComboFile[[#This Row],[G&S reporting level indicator]]","v":0},{"$f":"T_DataComboFile[[#This Row],[2023/24 Baseline_Source]]*T_DataComboFile[[#This Row],[G&S reporting level indicator]]","v":0},null,null,null,null,null,null,{"$f":"T_DataComboFile[[#This Row],[2021/22 Baseline]]+T_DataComboFile[[#This Row],[2021/22 Reduction]]+T_DataComboFile[[#This Row],[2021/22 Increase]]","v":0},{"$f":"T_DataComboFile[[#This Row],[2022/23 Baseline]]+T_DataComboFile[[#This Row],[2022/23 Reduction]]+T_DataComboFile[[#This Row],[2022/23 Increase]]","v":0},{"$f":"T_DataComboFile[[#This Row],[2023/24 Baseline]]+T_DataComboFile[[#This Row],[2023/24 Reduction]]+T_DataComboFile[[#This Row],[2023/24 Increase]]","v":0}]
["NAT|Households","36|Social benefits","2021_22","ENE2020",36,1,4,17260,70357,36,1,4,17260,"070357","36|01|04",1,2,10,52,56,"01|02|10|52|56","National","Small Business Development","Administration","Financial Management","Households","Current","Transfers and subsidies","Households","Social benefits","Social benefits","Economic development","Industrialisation and exports","NAT",0,23,37,0,0,0,0,0,0,0,0,0,0,1,null,{"$f":"IF(T_DataComboFile[[#This Row],[G&S reporting level indicator]]=1,$AX$16,\"Not applicable\")","v":"Level 3"},{"$f":"IF(AND($AX$16=\"Level 3\",T_DataComboFile[[#This Row],[Econ3]] = \"Goods and services\"),IF(T_DataComboFile[[#This Row],[Econ4]] = T_DataComboFile[[#This Row],[Econ3]],1,0),IF(AND($AX$16=\"Level 4\",T_DataComboFile[[#This Row],[Econ4]] = \"Goods and services\"),0,1))","v":1},{"$f":"T_DataComboFile[[#This Row],[2016/17_Source]]*T_DataComboFile[[#This Row],[G&S reporting level indicator]]","v":0},{"$f":"T_DataComboFile[[#This Row],[2017/18_Source]]*T_DataComboFile[[#This Row],[G&S reporting level indicator]]","v":23},{"$f":"T_DataComboFile[[#This Row],[2018/19_Source]]*T_DataComboFile[[#This Row],[G&S reporting level indicator]]","v":37},{"$f":"T_DataComboFile[[#This Row],[2019/20 Main appropriation_Source]]*T_DataComboFile[[#This Row],[G&S reporting level indicator]]","v":0},{"$f":"T_DataComboFile[[#This Row],[2019/20 Adjusted appropriation_Source]]*T_DataComboFile[[#This Row],[G&S reporting level indicator]]","v":0},{"$f":"T_DataComboFile[[#This Row],[2019/20 Revised estimate_Source]]*T_DataComboFile[[#This Row],[G&S reporting level indicator]]","v":0},{"$f":"T_DataComboFile[[#This Row],[2019/20 Preliminary outcome_Source]]*T_DataComboFile[[#This Row],[G&S reporting level indicator]]","v":0},{"$f":"T_DataComboFile[[#This Row],[2020/21 Original_Source]]*T_DataComboFile[[#This Row],[G&S reporting level indicator]]","v":0},{"$f":"T_DataComboFile[[#This Row],[2020/21 SAB_Source]]*T_DataComboFile[[#This Row],[G&S reporting level indicator]]","v":0},{"$f":"T_DataComboFile[[#This Row],[2020/21 Baseline_Source]]*T_DataComboFile[[#This Row],[G&S reporting level indicator]]","v":0},{"$f":"T_DataComboFile[[#This Row],[2021/22 Baseline_Source]]*T_DataComboFile[[#This Row],[G&S reporting level indicator]]","v":0},{"$f":"T_DataComboFile[[#This Row],[2022/23 Baseline_Source]]*T_DataComboFile[[#This Row],[G&S reporting level indicator]]","v":0},{"$f":"T_DataComboFile[[#This Row],[2023/24 Baseline_Source]]*T_DataComboFile[[#This Row],[G&S reporting level indicator]]","v":0},null,null,null,null,null,null,{"$f":"T_DataComboFile[[#This Row],[2021/22 Baseline]]+T_DataComboFile[[#This Row],[2021/22 Reduction]]+T_DataComboFile[[#This Row],[2021/22 Increase]]","v":0},{"$f":"T_DataComboFile[[#This Row],[2022/23 Baseline]]+T_DataComboFile[[#This Row],[2022/23 Reduction]]+T_DataComboFile[[#This Row],[2022/23 Increase]]","v":0},{"$f":"T_DataComboFile[[#This Row],[2023/24 Baseline]]+T_DataComboFile[[#This Row],[2023/24 Reduction]]+T_DataComboFile[[#This Row],[2023/24 Increase]]","v":0}]
[null,null,"2021_22","ENE2020",36,1,4,null,70358,36,1,4,null,"070358","36|01|04",1,2,10,53,57,"01|02|10|53|57","National","Small Business Development","Administration","Financial Management",null,"Current","Transfers and subsidies","Households","Other transfers to households","Other transfers to households",null,null,null,0,0,0,0,0,0,0,0,0,0,0,0,0,0,null,{"$f":"IF(T_DataComboFile[[#This Row],[G&S reporting level indicator]]=1,$AX$16,\"Not applicable\")","v":"Level 3"},{"$f":"IF(AND($AX$16=\"Level 3\",T_DataComboFile[[#This Row],[Econ3]] = \"Goods and services\"),IF(T_DataComboFile[[#This Row],[Econ4]] = T_DataComboFile[[#This Row],[Econ3]],1,0),IF(AND($AX$16=\"Level 4\",T_DataComboFile[[#This Row],[Econ4]] = \"Goods and services\"),0,1))","v":1},{"$f":"T_DataComboFile[[#This Row],[2016/17_Source]]*T_DataComboFile[[#This Row],[G&S reporting level indicator]]","v":0},{"$f":"T_DataComboFile[[#This Row],[2017/18_Source]]*T_DataComboFile[[#This Row],[G&S reporting level indicator]]","v":0},{"$f":"T_DataComboFile[[#This Row],[2018/19_Source]]*T_DataComboFile[[#This Row],[G&S reporting level indicator]]","v":0},{"$f":"T_DataComboFile[[#This Row],[2019/20 Main appropriation_Source]]*T_DataComboFile[[#This Row],[G&S reporting level indicator]]","v":0},{"$f":"T_DataComboFile[[#This Row],[2019/20 Adjusted appropriation_Source]]*T_DataComboFile[[#This Row],[G&S reporting level indicator]]","v":0},{"$f":"T_DataComboFile[[#This Row],[2019/20 Revised estimate_Source]]*T_DataComboFile[[#This Row],[G&S reporting level indicator]]","v":0},{"$f":"T_DataComboFile[[#This Row],[2019/20 Preliminary outcome_Source]]*T_DataComboFile[[#This Row],[G&S reporting level indicator]]","v":0},{"$f":"T_DataComboFile[[#This Row],[2020/21 Original_Source]]*T_DataComboFile[[#This Row],[G&S reporting level indicator]]","v":0},{"$f":"T_DataComboFile[[#This Row],[2020/21 SAB_Source]]*T_DataComboFile[[#This Row],[G&S reporting level indicator]]","v":0},{"$f":"T_DataComboFile[[#This Row],[2020/21 Baseline_Source]]*T_DataComboFile[[#This Row],[G&S reporting level indicator]]","v":0},{"$f":"T_DataComboFile[[#This Row],[2021/22 Baseline_Source]]*T_DataComboFile[[#This Row],[G&S reporting level indicator]]","v":0},{"$f":"T_DataComboFile[[#This Row],[2022/23 Baseline_Source]]*T_DataComboFile[[#This Row],[G&S reporting level indicator]]","v":0},{"$f":"T_DataComboFile[[#This Row],[2023/24 Baseline_Source]]*T_DataComboFile[[#This Row],[G&S reporting level indicator]]","v":0},null,null,null,null,null,null,{"$f":"T_DataComboFile[[#This Row],[2021/22 Baseline]]+T_DataComboFile[[#This Row],[2021/22 Reduction]]+T_DataComboFile[[#This Row],[2021/22 Increase]]","v":0},{"$f":"T_DataComboFile[[#This Row],[2022/23 Baseline]]+T_DataComboFile[[#This Row],[2022/23 Reduction]]+T_DataComboFile[[#This Row],[2022/23 Increase]]","v":0},{"$f":"T_DataComboFile[[#This Row],[2023/24 Baseline]]+T_DataComboFile[[#This Row],[2023/24 Reduction]]+T_DataComboFile[[#This Row],[2023/24 Increase]]","v":0}]
[null,null,"2021_22","ENE2020",36,1,4,null,70359,36,1,4,null,"070359","36|01|04",2,2,4,43,43,"02|02|04|43|43","National","Small Business Development","Administration","Financial Management",null,"Capital","Transfers and subsidies","Provinces and municipalities","Provinces","Provincial Revenue Funds",null,null,null,0,0,0,0,0,0,0,0,0,0,0,0,0,0,null,{"$f":"IF(T_DataComboFile[[#This Row],[G&S reporting level indicator]]=1,$AX$16,\"Not applicable\")","v":"Level 3"},{"$f":"IF(AND($AX$16=\"Level 3\",T_DataComboFile[[#This Row],[Econ3]] = \"Goods and services\"),IF(T_DataComboFile[[#This Row],[Econ4]] = T_DataComboFile[[#This Row],[Econ3]],1,0),IF(AND($AX$16=\"Level 4\",T_DataComboFile[[#This Row],[Econ4]] = \"Goods and services\"),0,1))","v":1},{"$f":"T_DataComboFile[[#This Row],[2016/17_Source]]*T_DataComboFile[[#This Row],[G&S reporting level indicator]]","v":0},{"$f":"T_DataComboFile[[#This Row],[2017/18_Source]]*T_DataComboFile[[#This Row],[G&S reporting level indicator]]","v":0},{"$f":"T_DataComboFile[[#This Row],[2018/19_Source]]*T_DataComboFile[[#This Row],[G&S reporting level indicator]]","v":0},{"$f":"T_DataComboFile[[#This Row],[2019/20 Main appropriation_Source]]*T_DataComboFile[[#This Row],[G&S reporting level indicator]]","v":0},{"$f":"T_DataComboFile[[#This Row],[2019/20 Adjusted appropriation_Source]]*T_DataComboFile[[#This Row],[G&S reporting level indicator]]","v":0},{"$f":"T_DataComboFile[[#This Row],[2019/20 Revised estimate_Source]]*T_DataComboFile[[#This Row],[G&S reporting level indicator]]","v":0},{"$f":"T_DataComboFile[[#This Row],[2019/20 Preliminary outcome_Source]]*T_DataComboFile[[#This Row],[G&S reporting level indicator]]","v":0},{"$f":"T_DataComboFile[[#This Row],[2020/21 Original_Source]]*T_DataComboFile[[#This Row],[G&S reporting level indicator]]","v":0},{"$f":"T_DataComboFile[[#This Row],[2020/21 SAB_Source]]*T_DataComboFile[[#This Row],[G&S reporting level indicator]]","v":0},{"$f":"T_DataComboFile[[#This Row],[2020/21 Baseline_Source]]*T_DataComboFile[[#This Row],[G&S reporting level indicator]]","v":0},{"$f":"T_DataComboFile[[#This Row],[2021/22 Baseline_Source]]*T_DataComboFile[[#This Row],[G&S reporting level indicator]]","v":0},{"$f":"T_DataComboFile[[#This Row],[2022/23 Baseline_Source]]*T_DataComboFile[[#This Row],[G&S reporting level indicator]]","v":0},{"$f":"T_DataComboFile[[#This Row],[2023/24 Baseline_Source]]*T_DataComboFile[[#This Row],[G&S reporting level indicator]]","v":0},null,null,null,null,null,null,{"$f":"T_DataComboFile[[#This Row],[2021/22 Baseline]]+T_DataComboFile[[#This Row],[2021/22 Reduction]]+T_DataComboFile[[#This Row],[2021/22 Increase]]","v":0},{"$f":"T_DataComboFile[[#This Row],[2022/23 Baseline]]+T_DataComboFile[[#This Row],[2022/23 Reduction]]+T_DataComboFile[[#This Row],[2022/23 Increase]]","v":0},{"$f":"T_DataComboFile[[#This Row],[2023/24 Baseline]]+T_DataComboFile[[#This Row],[2023/24 Reduction]]+T_DataComboFile[[#This Row],[2023/24 Increase]]","v":0}]
[null,null,"2021_22","ENE2020",36,1,4,null,70360,36,1,4,null,"070360","36|01|04",2,2,4,44,45,"02|02|04|44|45","National","Small Business Development","Administration","Financial Management",null,"Capital","Transfers and subsidies","Provinces and municipalities","Municipalities","Municipal bank accounts",null,null,null,0,0,0,0,0,0,0,0,0,0,0,0,0,0,null,{"$f":"IF(T_DataComboFile[[#This Row],[G&S reporting level indicator]]=1,$AX$16,\"Not applicable\")","v":"Level 3"},{"$f":"IF(AND($AX$16=\"Level 3\",T_DataComboFile[[#This Row],[Econ3]] = \"Goods and services\"),IF(T_DataComboFile[[#This Row],[Econ4]] = T_DataComboFile[[#This Row],[Econ3]],1,0),IF(AND($AX$16=\"Level 4\",T_DataComboFile[[#This Row],[Econ4]] = \"Goods and services\"),0,1))","v":1},{"$f":"T_DataComboFile[[#This Row],[2016/17_Source]]*T_DataComboFile[[#This Row],[G&S reporting level indicator]]","v":0},{"$f":"T_DataComboFile[[#This Row],[2017/18_Source]]*T_DataComboFile[[#This Row],[G&S reporting level indicator]]","v":0},{"$f":"T_DataComboFile[[#This Row],[2018/19_Source]]*T_DataComboFile[[#This Row],[G&S reporting level indicator]]","v":0},{"$f":"T_DataComboFile[[#This Row],[2019/20 Main appropriation_Source]]*T_DataComboFile[[#This Row],[G&S reporting level indicator]]","v":0},{"$f":"T_DataComboFile[[#This Row],[2019/20 Adjusted appropriation_Source]]*T_DataComboFile[[#This Row],[G&S reporting level indicator]]","v":0},{"$f":"T_DataComboFile[[#This Row],[2019/20 Revised estimate_Source]]*T_DataComboFile[[#This Row],[G&S reporting level indicator]]","v":0},{"$f":"T_DataComboFile[[#This Row],[2019/20 Preliminary outcome_Source]]*T_DataComboFile[[#This Row],[G&S reporting level indicator]]","v":0},{"$f":"T_DataComboFile[[#This Row],[2020/21 Original_Source]]*T_DataComboFile[[#This Row],[G&S reporting level indicator]]","v":0},{"$f":"T_DataComboFile[[#This Row],[2020/21 SAB_Source]]*T_DataComboFile[[#This Row],[G&S reporting level indicator]]","v":0},{"$f":"T_DataComboFile[[#This Row],[2020/21 Baseline_Source]]*T_DataComboFile[[#This Row],[G&S reporting level indicator]]","v":0},{"$f":"T_DataComboFile[[#This Row],[2021/22 Baseline_Source]]*T_DataComboFile[[#This Row],[G&S reporting level indicator]]","v":0},{"$f":"T_DataComboFile[[#This Row],[2022/23 Baseline_Source]]*T_DataComboFile[[#This Row],[G&S reporting level indicator]]","v":0},{"$f":"T_DataComboFile[[#This Row],[2023/24 Baseline_Source]]*T_DataComboFile[[#This Row],[G&S reporting level indicator]]","v":0},null,null,null,null,null,null,{"$f":"T_DataComboFile[[#This Row],[2021/22 Baseline]]+T_DataComboFile[[#This Row],[2021/22 Reduction]]+T_DataComboFile[[#This Row],[2021/22 Increase]]","v":0},{"$f":"T_DataComboFile[[#This Row],[2022/23 Baseline]]+T_DataComboFile[[#This Row],[2022/23 Reduction]]+T_DataComboFile[[#This Row],[2022/23 Increase]]","v":0},{"$f":"T_DataComboFile[[#This Row],[2023/24 Baseline]]+T_DataComboFile[[#This Row],[2023/24 Reduction]]+T_DataComboFile[[#This Row],[2023/24 Increase]]","v":0}]
[null,null,"2021_22","ENE2020",36,1,4,null,70361,36,1,4,null,"070361","36|01|04",2,2,5,46,48,"02|02|05|46|48","National","Small Business Development","Administration","Financial Management",null,"Capital","Transfers and subsidies","Departmental agencies and accounts","Departmental agencies (non-business entities)","Departmental agencies (non-business entities)",null,null,null,0,0,0,0,0,0,0,0,0,0,0,0,0,0,null,{"$f":"IF(T_DataComboFile[[#This Row],[G&S reporting level indicator]]=1,$AX$16,\"Not applicable\")","v":"Level 3"},{"$f":"IF(AND($AX$16=\"Level 3\",T_DataComboFile[[#This Row],[Econ3]] = \"Goods and services\"),IF(T_DataComboFile[[#This Row],[Econ4]] = T_DataComboFile[[#This Row],[Econ3]],1,0),IF(AND($AX$16=\"Level 4\",T_DataComboFile[[#This Row],[Econ4]] = \"Goods and services\"),0,1))","v":1},{"$f":"T_DataComboFile[[#This Row],[2016/17_Source]]*T_DataComboFile[[#This Row],[G&S reporting level indicator]]","v":0},{"$f":"T_DataComboFile[[#This Row],[2017/18_Source]]*T_DataComboFile[[#This Row],[G&S reporting level indicator]]","v":0},{"$f":"T_DataComboFile[[#This Row],[2018/19_Source]]*T_DataComboFile[[#This Row],[G&S reporting level indicator]]","v":0},{"$f":"T_DataComboFile[[#This Row],[2019/20 Main appropriation_Source]]*T_DataComboFile[[#This Row],[G&S reporting level indicator]]","v":0},{"$f":"T_DataComboFile[[#This Row],[2019/20 Adjusted appropriation_Source]]*T_DataComboFile[[#This Row],[G&S reporting level indicator]]","v":0},{"$f":"T_DataComboFile[[#This Row],[2019/20 Revised estimate_Source]]*T_DataComboFile[[#This Row],[G&S reporting level indicator]]","v":0},{"$f":"T_DataComboFile[[#This Row],[2019/20 Preliminary outcome_Source]]*T_DataComboFile[[#This Row],[G&S reporting level indicator]]","v":0},{"$f":"T_DataComboFile[[#This Row],[2020/21 Original_Source]]*T_DataComboFile[[#This Row],[G&S reporting level indicator]]","v":0},{"$f":"T_DataComboFile[[#This Row],[2020/21 SAB_Source]]*T_DataComboFile[[#This Row],[G&S reporting level indicator]]","v":0},{"$f":"T_DataComboFile[[#This Row],[2020/21 Baseline_Source]]*T_DataComboFile[[#This Row],[G&S reporting level indicator]]","v":0},{"$f":"T_DataComboFile[[#This Row],[2021/22 Baseline_Source]]*T_DataComboFile[[#This Row],[G&S reporting level indicator]]","v":0},{"$f":"T_DataComboFile[[#This Row],[2022/23 Baseline_Source]]*T_DataComboFile[[#This Row],[G&S reporting level indicator]]","v":0},{"$f":"T_DataComboFile[[#This Row],[2023/24 Baseline_Source]]*T_DataComboFile[[#This Row],[G&S reporting level indicator]]","v":0},null,null,null,null,null,null,{"$f":"T_DataComboFile[[#This Row],[2021/22 Baseline]]+T_DataComboFile[[#This Row],[2021/22 Reduction]]+T_DataComboFile[[#This Row],[2021/22 Increase]]","v":0},{"$f":"T_DataComboFile[[#This Row],[2022/23 Baseline]]+T_DataComboFile[[#This Row],[2022/23 Reduction]]+T_DataComboFile[[#This Row],[2022/23 Increase]]","v":0},{"$f":"T_DataComboFile[[#This Row],[2023/24 Baseline]]+T_DataComboFile[[#This Row],[2023/24 Reduction]]+T_DataComboFile[[#This Row],[2023/24 Increase]]","v":0}]
[null,null,"2021_22","ENE2020",36,1,4,null,70362,36,1,4,null,"070362","36|01|04",2,2,6,47,49,"02|02|06|47|49","National","Small Business Development","Administration","Financial Management",null,"Capital","Transfers and subsidies","Higher education institutions","Higher education institutions","Higher education institutions",null,null,null,0,0,0,0,0,0,0,0,0,0,0,0,0,0,null,{"$f":"IF(T_DataComboFile[[#This Row],[G&S reporting level indicator]]=1,$AX$16,\"Not applicable\")","v":"Level 3"},{"$f":"IF(AND($AX$16=\"Level 3\",T_DataComboFile[[#This Row],[Econ3]] = \"Goods and services\"),IF(T_DataComboFile[[#This Row],[Econ4]] = T_DataComboFile[[#This Row],[Econ3]],1,0),IF(AND($AX$16=\"Level 4\",T_DataComboFile[[#This Row],[Econ4]] = \"Goods and services\"),0,1))","v":1},{"$f":"T_DataComboFile[[#This Row],[2016/17_Source]]*T_DataComboFile[[#This Row],[G&S reporting level indicator]]","v":0},{"$f":"T_DataComboFile[[#This Row],[2017/18_Source]]*T_DataComboFile[[#This Row],[G&S reporting level indicator]]","v":0},{"$f":"T_DataComboFile[[#This Row],[2018/19_Source]]*T_DataComboFile[[#This Row],[G&S reporting level indicator]]","v":0},{"$f":"T_DataComboFile[[#This Row],[2019/20 Main appropriation_Source]]*T_DataComboFile[[#This Row],[G&S reporting level indicator]]","v":0},{"$f":"T_DataComboFile[[#This Row],[2019/20 Adjusted appropriation_Source]]*T_DataComboFile[[#This Row],[G&S reporting level indicator]]","v":0},{"$f":"T_DataComboFile[[#This Row],[2019/20 Revised estimate_Source]]*T_DataComboFile[[#This Row],[G&S reporting level indicator]]","v":0},{"$f":"T_DataComboFile[[#This Row],[2019/20 Preliminary outcome_Source]]*T_DataComboFile[[#This Row],[G&S reporting level indicator]]","v":0},{"$f":"T_DataComboFile[[#This Row],[2020/21 Original_Source]]*T_DataComboFile[[#This Row],[G&S reporting level indicator]]","v":0},{"$f":"T_DataComboFile[[#This Row],[2020/21 SAB_Source]]*T_DataComboFile[[#This Row],[G&S reporting level indicator]]","v":0},{"$f":"T_DataComboFile[[#This Row],[2020/21 Baseline_Source]]*T_DataComboFile[[#This Row],[G&S reporting level indicator]]","v":0},{"$f":"T_DataComboFile[[#This Row],[2021/22 Baseline_Source]]*T_DataComboFile[[#This Row],[G&S reporting level indicator]]","v":0},{"$f":"T_DataComboFile[[#This Row],[2022/23 Baseline_Source]]*T_DataComboFile[[#This Row],[G&S reporting level indicator]]","v":0},{"$f":"T_DataComboFile[[#This Row],[2023/24 Baseline_Source]]*T_DataComboFile[[#This Row],[G&S reporting level indicator]]","v":0},null,null,null,null,null,null,{"$f":"T_DataComboFile[[#This Row],[2021/22 Baseline]]+T_DataComboFile[[#This Row],[2021/22 Reduction]]+T_DataComboFile[[#This Row],[2021/22 Increase]]","v":0},{"$f":"T_DataComboFile[[#This Row],[2022/23 Baseline]]+T_DataComboFile[[#This Row],[2022/23 Reduction]]+T_DataComboFile[[#This Row],[2022/23 Increase]]","v":0},{"$f":"T_DataComboFile[[#This Row],[2023/24 Baseline]]+T_DataComboFile[[#This Row],[2023/24 Reduction]]+T_DataComboFile[[#This Row],[2023/24 Increase]]","v":0}]
[null,null,"2021_22","ENE2020",36,1,4,null,70363,36,1,4,null,"070363","36|01|04",2,2,7,48,50,"02|02|07|48|50","National","Small Business Development","Administration","Financial Management",null,"Capital","Transfers and subsidies","Foreign governments and international organisations","Foreign governments and international organisations","Foreign governments and international organisations",null,null,null,0,0,0,0,0,0,0,0,0,0,0,0,0,0,null,{"$f":"IF(T_DataComboFile[[#This Row],[G&S reporting level indicator]]=1,$AX$16,\"Not applicable\")","v":"Level 3"},{"$f":"IF(AND($AX$16=\"Level 3\",T_DataComboFile[[#This Row],[Econ3]] = \"Goods and services\"),IF(T_DataComboFile[[#This Row],[Econ4]] = T_DataComboFile[[#This Row],[Econ3]],1,0),IF(AND($AX$16=\"Level 4\",T_DataComboFile[[#This Row],[Econ4]] = \"Goods and services\"),0,1))","v":1},{"$f":"T_DataComboFile[[#This Row],[2016/17_Source]]*T_DataComboFile[[#This Row],[G&S reporting level indicator]]","v":0},{"$f":"T_DataComboFile[[#This Row],[2017/18_Source]]*T_DataComboFile[[#This Row],[G&S reporting level indicator]]","v":0},{"$f":"T_DataComboFile[[#This Row],[2018/19_Source]]*T_DataComboFile[[#This Row],[G&S reporting level indicator]]","v":0},{"$f":"T_DataComboFile[[#This Row],[2019/20 Main appropriation_Source]]*T_DataComboFile[[#This Row],[G&S reporting level indicator]]","v":0},{"$f":"T_DataComboFile[[#This Row],[2019/20 Adjusted appropriation_Source]]*T_DataComboFile[[#This Row],[G&S reporting level indicator]]","v":0},{"$f":"T_DataComboFile[[#This Row],[2019/20 Revised estimate_Source]]*T_DataComboFile[[#This Row],[G&S reporting level indicator]]","v":0},{"$f":"T_DataComboFile[[#This Row],[2019/20 Preliminary outcome_Source]]*T_DataComboFile[[#This Row],[G&S reporting level indicator]]","v":0},{"$f":"T_DataComboFile[[#This Row],[2020/21 Original_Source]]*T_DataComboFile[[#This Row],[G&S reporting level indicator]]","v":0},{"$f":"T_DataComboFile[[#This Row],[2020/21 SAB_Source]]*T_DataComboFile[[#This Row],[G&S reporting level indicator]]","v":0},{"$f":"T_DataComboFile[[#This Row],[2020/21 Baseline_Source]]*T_DataComboFile[[#This Row],[G&S reporting level indicator]]","v":0},{"$f":"T_DataComboFile[[#This Row],[2021/22 Baseline_Source]]*T_DataComboFile[[#This Row],[G&S reporting level indicator]]","v":0},{"$f":"T_DataComboFile[[#This Row],[2022/23 Baseline_Source]]*T_DataComboFile[[#This Row],[G&S reporting level indicator]]","v":0},{"$f":"T_DataComboFile[[#This Row],[2023/24 Baseline_Source]]*T_DataComboFile[[#This Row],[G&S reporting level indicator]]","v":0},null,null,null,null,null,null,{"$f":"T_DataComboFile[[#This Row],[2021/22 Baseline]]+T_DataComboFile[[#This Row],[2021/22 Reduction]]+T_DataComboFile[[#This Row],[2021/22 Increase]]","v":0},{"$f":"T_DataComboFile[[#This Row],[2022/23 Baseline]]+T_DataComboFile[[#This Row],[2022/23 Reduction]]+T_DataComboFile[[#This Row],[2022/23 Increase]]","v":0},{"$f":"T_DataComboFile[[#This Row],[2023/24 Baseline]]+T_DataComboFile[[#This Row],[2023/24 Reduction]]+T_DataComboFile[[#This Row],[2023/24 Increase]]","v":0}]
[null,null,"2021_22","ENE2020",36,1,4,null,70364,36,1,4,null,"070364","36|01|04",2,2,8,49,51,"02|02|08|49|51","National","Small Business Development","Administration","Financial Management",null,"Capital","Transfers and subsidies","Public corporations and private enterprises","Public corporations","Subsidies on products and production (pc)",null,null,null,0,0,0,0,0,0,0,0,0,0,0,0,0,0,null,{"$f":"IF(T_DataComboFile[[#This Row],[G&S reporting level indicator]]=1,$AX$16,\"Not applicable\")","v":"Level 3"},{"$f":"IF(AND($AX$16=\"Level 3\",T_DataComboFile[[#This Row],[Econ3]] = \"Goods and services\"),IF(T_DataComboFile[[#This Row],[Econ4]] = T_DataComboFile[[#This Row],[Econ3]],1,0),IF(AND($AX$16=\"Level 4\",T_DataComboFile[[#This Row],[Econ4]] = \"Goods and services\"),0,1))","v":1},{"$f":"T_DataComboFile[[#This Row],[2016/17_Source]]*T_DataComboFile[[#This Row],[G&S reporting level indicator]]","v":0},{"$f":"T_DataComboFile[[#This Row],[2017/18_Source]]*T_DataComboFile[[#This Row],[G&S reporting level indicator]]","v":0},{"$f":"T_DataComboFile[[#This Row],[2018/19_Source]]*T_DataComboFile[[#This Row],[G&S reporting level indicator]]","v":0},{"$f":"T_DataComboFile[[#This Row],[2019/20 Main appropriation_Source]]*T_DataComboFile[[#This Row],[G&S reporting level indicator]]","v":0},{"$f":"T_DataComboFile[[#This Row],[2019/20 Adjusted appropriation_Source]]*T_DataComboFile[[#This Row],[G&S reporting level indicator]]","v":0},{"$f":"T_DataComboFile[[#This Row],[2019/20 Revised estimate_Source]]*T_DataComboFile[[#This Row],[G&S reporting level indicator]]","v":0},{"$f":"T_DataComboFile[[#This Row],[2019/20 Preliminary outcome_Source]]*T_DataComboFile[[#This Row],[G&S reporting level indicator]]","v":0},{"$f":"T_DataComboFile[[#This Row],[2020/21 Original_Source]]*T_DataComboFile[[#This Row],[G&S reporting level indicator]]","v":0},{"$f":"T_DataComboFile[[#This Row],[2020/21 SAB_Source]]*T_DataComboFile[[#This Row],[G&S reporting level indicator]]","v":0},{"$f":"T_DataComboFile[[#This Row],[2020/21 Baseline_Source]]*T_DataComboFile[[#This Row],[G&S reporting level indicator]]","v":0},{"$f":"T_DataComboFile[[#This Row],[2021/22 Baseline_Source]]*T_DataComboFile[[#This Row],[G&S reporting level indicator]]","v":0},{"$f":"T_DataComboFile[[#This Row],[2022/23 Baseline_Source]]*T_DataComboFile[[#This Row],[G&S reporting level indicator]]","v":0},{"$f":"T_DataComboFile[[#This Row],[2023/24 Baseline_Source]]*T_DataComboFile[[#This Row],[G&S reporting level indicator]]","v":0},null,null,null,null,null,null,{"$f":"T_DataComboFile[[#This Row],[2021/22 Baseline]]+T_DataComboFile[[#This Row],[2021/22 Reduction]]+T_DataComboFile[[#This Row],[2021/22 Increase]]","v":0},{"$f":"T_DataComboFile[[#This Row],[2022/23 Baseline]]+T_DataComboFile[[#This Row],[2022/23 Reduction]]+T_DataComboFile[[#This Row],[2022/23 Increase]]","v":0},{"$f":"T_DataComboFile[[#This Row],[2023/24 Baseline]]+T_DataComboFile[[#This Row],[2023/24 Reduction]]+T_DataComboFile[[#This Row],[2023/24 Increase]]","v":0}]
[null,null,"2021_22","ENE2020",36,1,4,null,70365,36,1,4,null,"070365","36|01|04",2,2,8,49,52,"02|02|08|49|52","National","Small Business Development","Administration","Financial Management",null,"Capital","Transfers and subsidies","Public corporations and private enterprises","Public corporations","Other transfers to public corporations",null,null,null,0,0,0,0,0,0,0,0,0,0,0,0,0,0,null,{"$f":"IF(T_DataComboFile[[#This Row],[G&S reporting level indicator]]=1,$AX$16,\"Not applicable\")","v":"Level 3"},{"$f":"IF(AND($AX$16=\"Level 3\",T_DataComboFile[[#This Row],[Econ3]] = \"Goods and services\"),IF(T_DataComboFile[[#This Row],[Econ4]] = T_DataComboFile[[#This Row],[Econ3]],1,0),IF(AND($AX$16=\"Level 4\",T_DataComboFile[[#This Row],[Econ4]] = \"Goods and services\"),0,1))","v":1},{"$f":"T_DataComboFile[[#This Row],[2016/17_Source]]*T_DataComboFile[[#This Row],[G&S reporting level indicator]]","v":0},{"$f":"T_DataComboFile[[#This Row],[2017/18_Source]]*T_DataComboFile[[#This Row],[G&S reporting level indicator]]","v":0},{"$f":"T_DataComboFile[[#This Row],[2018/19_Source]]*T_DataComboFile[[#This Row],[G&S reporting level indicator]]","v":0},{"$f":"T_DataComboFile[[#This Row],[2019/20 Main appropriation_Source]]*T_DataComboFile[[#This Row],[G&S reporting level indicator]]","v":0},{"$f":"T_DataComboFile[[#This Row],[2019/20 Adjusted appropriation_Source]]*T_DataComboFile[[#This Row],[G&S reporting level indicator]]","v":0},{"$f":"T_DataComboFile[[#This Row],[2019/20 Revised estimate_Source]]*T_DataComboFile[[#This Row],[G&S reporting level indicator]]","v":0},{"$f":"T_DataComboFile[[#This Row],[2019/20 Preliminary outcome_Source]]*T_DataComboFile[[#This Row],[G&S reporting level indicator]]","v":0},{"$f":"T_DataComboFile[[#This Row],[2020/21 Original_Source]]*T_DataComboFile[[#This Row],[G&S reporting level indicator]]","v":0},{"$f":"T_DataComboFile[[#This Row],[2020/21 SAB_Source]]*T_DataComboFile[[#This Row],[G&S reporting level indicator]]","v":0},{"$f":"T_DataComboFile[[#This Row],[2020/21 Baseline_Source]]*T_DataComboFile[[#This Row],[G&S reporting level indicator]]","v":0},{"$f":"T_DataComboFile[[#This Row],[2021/22 Baseline_Source]]*T_DataComboFile[[#This Row],[G&S reporting level indicator]]","v":0},{"$f":"T_DataComboFile[[#This Row],[2022/23 Baseline_Source]]*T_DataComboFile[[#This Row],[G&S reporting level indicator]]","v":0},{"$f":"T_DataComboFile[[#This Row],[2023/24 Baseline_Source]]*T_DataComboFile[[#This Row],[G&S reporting level indicator]]","v":0},null,null,null,null,null,null,{"$f":"T_DataComboFile[[#This Row],[2021/22 Baseline]]+T_DataComboFile[[#This Row],[2021/22 Reduction]]+T_DataComboFile[[#This Row],[2021/22 Increase]]","v":0},{"$f":"T_DataComboFile[[#This Row],[2022/23 Baseline]]+T_DataComboFile[[#This Row],[2022/23 Reduction]]+T_DataComboFile[[#This Row],[2022/23 Increase]]","v":0},{"$f":"T_DataComboFile[[#This Row],[2023/24 Baseline]]+T_DataComboFile[[#This Row],[2023/24 Reduction]]+T_DataComboFile[[#This Row],[2023/24 Increase]]","v":0}]
[null,null,"2021_22","ENE2020",36,1,4,null,70366,36,1,4,null,"070366","36|01|04",2,2,8,50,54,"02|02|08|50|54","National","Small Business Development","Administration","Financial Management",null,"Capital","Transfers and subsidies","Public corporations and private enterprises","Private enterprises","Other transfers to private enterprises",null,null,null,0,0,0,0,0,0,0,0,0,0,0,0,0,0,null,{"$f":"IF(T_DataComboFile[[#This Row],[G&S reporting level indicator]]=1,$AX$16,\"Not applicable\")","v":"Level 3"},{"$f":"IF(AND($AX$16=\"Level 3\",T_DataComboFile[[#This Row],[Econ3]] = \"Goods and services\"),IF(T_DataComboFile[[#This Row],[Econ4]] = T_DataComboFile[[#This Row],[Econ3]],1,0),IF(AND($AX$16=\"Level 4\",T_DataComboFile[[#This Row],[Econ4]] = \"Goods and services\"),0,1))","v":1},{"$f":"T_DataComboFile[[#This Row],[2016/17_Source]]*T_DataComboFile[[#This Row],[G&S reporting level indicator]]","v":0},{"$f":"T_DataComboFile[[#This Row],[2017/18_Source]]*T_DataComboFile[[#This Row],[G&S reporting level indicator]]","v":0},{"$f":"T_DataComboFile[[#This Row],[2018/19_Source]]*T_DataComboFile[[#This Row],[G&S reporting level indicator]]","v":0},{"$f":"T_DataComboFile[[#This Row],[2019/20 Main appropriation_Source]]*T_DataComboFile[[#This Row],[G&S reporting level indicator]]","v":0},{"$f":"T_DataComboFile[[#This Row],[2019/20 Adjusted appropriation_Source]]*T_DataComboFile[[#This Row],[G&S reporting level indicator]]","v":0},{"$f":"T_DataComboFile[[#This Row],[2019/20 Revised estimate_Source]]*T_DataComboFile[[#This Row],[G&S reporting level indicator]]","v":0},{"$f":"T_DataComboFile[[#This Row],[2019/20 Preliminary outcome_Source]]*T_DataComboFile[[#This Row],[G&S reporting level indicator]]","v":0},{"$f":"T_DataComboFile[[#This Row],[2020/21 Original_Source]]*T_DataComboFile[[#This Row],[G&S reporting level indicator]]","v":0},{"$f":"T_DataComboFile[[#This Row],[2020/21 SAB_Source]]*T_DataComboFile[[#This Row],[G&S reporting level indicator]]","v":0},{"$f":"T_DataComboFile[[#This Row],[2020/21 Baseline_Source]]*T_DataComboFile[[#This Row],[G&S reporting level indicator]]","v":0},{"$f":"T_DataComboFile[[#This Row],[2021/22 Baseline_Source]]*T_DataComboFile[[#This Row],[G&S reporting level indicator]]","v":0},{"$f":"T_DataComboFile[[#This Row],[2022/23 Baseline_Source]]*T_DataComboFile[[#This Row],[G&S reporting level indicator]]","v":0},{"$f":"T_DataComboFile[[#This Row],[2023/24 Baseline_Source]]*T_DataComboFile[[#This Row],[G&S reporting level indicator]]","v":0},null,null,null,null,null,null,{"$f":"T_DataComboFile[[#This Row],[2021/22 Baseline]]+T_DataComboFile[[#This Row],[2021/22 Reduction]]+T_DataComboFile[[#This Row],[2021/22 Increase]]","v":0},{"$f":"T_DataComboFile[[#This Row],[2022/23 Baseline]]+T_DataComboFile[[#This Row],[2022/23 Reduction]]+T_DataComboFile[[#This Row],[2022/23 Increase]]","v":0},{"$f":"T_DataComboFile[[#This Row],[2023/24 Baseline]]+T_DataComboFile[[#This Row],[2023/24 Reduction]]+T_DataComboFile[[#This Row],[2023/24 Increase]]","v":0}]
[null,null,"2021_22","ENE2020",36,1,4,null,70367,36,1,4,null,"070367","36|01|04",2,2,9,51,55,"02|02|09|51|55","National","Small Business Development","Administration","Financial Management",null,"Capital","Transfers and subsidies","Non-profit institutions","Non-profit institutions","Non-profit institutions",null,null,null,0,0,0,0,0,0,0,0,0,0,0,0,0,0,null,{"$f":"IF(T_DataComboFile[[#This Row],[G&S reporting level indicator]]=1,$AX$16,\"Not applicable\")","v":"Level 3"},{"$f":"IF(AND($AX$16=\"Level 3\",T_DataComboFile[[#This Row],[Econ3]] = \"Goods and services\"),IF(T_DataComboFile[[#This Row],[Econ4]] = T_DataComboFile[[#This Row],[Econ3]],1,0),IF(AND($AX$16=\"Level 4\",T_DataComboFile[[#This Row],[Econ4]] = \"Goods and services\"),0,1))","v":1},{"$f":"T_DataComboFile[[#This Row],[2016/17_Source]]*T_DataComboFile[[#This Row],[G&S reporting level indicator]]","v":0},{"$f":"T_DataComboFile[[#This Row],[2017/18_Source]]*T_DataComboFile[[#This Row],[G&S reporting level indicator]]","v":0},{"$f":"T_DataComboFile[[#This Row],[2018/19_Source]]*T_DataComboFile[[#This Row],[G&S reporting level indicator]]","v":0},{"$f":"T_DataComboFile[[#This Row],[2019/20 Main appropriation_Source]]*T_DataComboFile[[#This Row],[G&S reporting level indicator]]","v":0},{"$f":"T_DataComboFile[[#This Row],[2019/20 Adjusted appropriation_Source]]*T_DataComboFile[[#This Row],[G&S reporting level indicator]]","v":0},{"$f":"T_DataComboFile[[#This Row],[2019/20 Revised estimate_Source]]*T_DataComboFile[[#This Row],[G&S reporting level indicator]]","v":0},{"$f":"T_DataComboFile[[#This Row],[2019/20 Preliminary outcome_Source]]*T_DataComboFile[[#This Row],[G&S reporting level indicator]]","v":0},{"$f":"T_DataComboFile[[#This Row],[2020/21 Original_Source]]*T_DataComboFile[[#This Row],[G&S reporting level indicator]]","v":0},{"$f":"T_DataComboFile[[#This Row],[2020/21 SAB_Source]]*T_DataComboFile[[#This Row],[G&S reporting level indicator]]","v":0},{"$f":"T_DataComboFile[[#This Row],[2020/21 Baseline_Source]]*T_DataComboFile[[#This Row],[G&S reporting level indicator]]","v":0},{"$f":"T_DataComboFile[[#This Row],[2021/22 Baseline_Source]]*T_DataComboFile[[#This Row],[G&S reporting level indicator]]","v":0},{"$f":"T_DataComboFile[[#This Row],[2022/23 Baseline_Source]]*T_DataComboFile[[#This Row],[G&S reporting level indicator]]","v":0},{"$f":"T_DataComboFile[[#This Row],[2023/24 Baseline_Source]]*T_DataComboFile[[#This Row],[G&S reporting level indicator]]","v":0},null,null,null,null,null,null,{"$f":"T_DataComboFile[[#This Row],[2021/22 Baseline]]+T_DataComboFile[[#This Row],[2021/22 Reduction]]+T_DataComboFile[[#This Row],[2021/22 Increase]]","v":0},{"$f":"T_DataComboFile[[#This Row],[2022/23 Baseline]]+T_DataComboFile[[#This Row],[2022/23 Reduction]]+T_DataComboFile[[#This Row],[2022/23 Increase]]","v":0},{"$f":"T_DataComboFile[[#This Row],[2023/24 Baseline]]+T_DataComboFile[[#This Row],[2023/24 Reduction]]+T_DataComboFile[[#This Row],[2023/24 Increase]]","v":0}]
[null,null,"2021_22","ENE2020",36,1,4,null,70368,36,1,4,null,"070368","36|01|04",2,2,10,53,57,"02|02|10|53|57","National","Small Business Development","Administration","Financial Management",null,"Capital","Transfers and subsidies","Households","Other transfers to households","Other transfers to households",null,null,null,0,0,0,0,0,0,0,0,0,0,0,0,0,0,null,{"$f":"IF(T_DataComboFile[[#This Row],[G&S reporting level indicator]]=1,$AX$16,\"Not applicable\")","v":"Level 3"},{"$f":"IF(AND($AX$16=\"Level 3\",T_DataComboFile[[#This Row],[Econ3]] = \"Goods and services\"),IF(T_DataComboFile[[#This Row],[Econ4]] = T_DataComboFile[[#This Row],[Econ3]],1,0),IF(AND($AX$16=\"Level 4\",T_DataComboFile[[#This Row],[Econ4]] = \"Goods and services\"),0,1))","v":1},{"$f":"T_DataComboFile[[#This Row],[2016/17_Source]]*T_DataComboFile[[#This Row],[G&S reporting level indicator]]","v":0},{"$f":"T_DataComboFile[[#This Row],[2017/18_Source]]*T_DataComboFile[[#This Row],[G&S reporting level indicator]]","v":0},{"$f":"T_DataComboFile[[#This Row],[2018/19_Source]]*T_DataComboFile[[#This Row],[G&S reporting level indicator]]","v":0},{"$f":"T_DataComboFile[[#This Row],[2019/20 Main appropriation_Source]]*T_DataComboFile[[#This Row],[G&S reporting level indicator]]","v":0},{"$f":"T_DataComboFile[[#This Row],[2019/20 Adjusted appropriation_Source]]*T_DataComboFile[[#This Row],[G&S reporting level indicator]]","v":0},{"$f":"T_DataComboFile[[#This Row],[2019/20 Revised estimate_Source]]*T_DataComboFile[[#This Row],[G&S reporting level indicator]]","v":0},{"$f":"T_DataComboFile[[#This Row],[2019/20 Preliminary outcome_Source]]*T_DataComboFile[[#This Row],[G&S reporting level indicator]]","v":0},{"$f":"T_DataComboFile[[#This Row],[2020/21 Original_Source]]*T_DataComboFile[[#This Row],[G&S reporting level indicator]]","v":0},{"$f":"T_DataComboFile[[#This Row],[2020/21 SAB_Source]]*T_DataComboFile[[#This Row],[G&S reporting level indicator]]","v":0},{"$f":"T_DataComboFile[[#This Row],[2020/21 Baseline_Source]]*T_DataComboFile[[#This Row],[G&S reporting level indicator]]","v":0},{"$f":"T_DataComboFile[[#This Row],[2021/22 Baseline_Source]]*T_DataComboFile[[#This Row],[G&S reporting level indicator]]","v":0},{"$f":"T_DataComboFile[[#This Row],[2022/23 Baseline_Source]]*T_DataComboFile[[#This Row],[G&S reporting level indicator]]","v":0},{"$f":"T_DataComboFile[[#This Row],[2023/24 Baseline_Source]]*T_DataComboFile[[#This Row],[G&S reporting level indicator]]","v":0},null,null,null,null,null,null,{"$f":"T_DataComboFile[[#This Row],[2021/22 Baseline]]+T_DataComboFile[[#This Row],[2021/22 Reduction]]+T_DataComboFile[[#This Row],[2021/22 Increase]]","v":0},{"$f":"T_DataComboFile[[#This Row],[2022/23 Baseline]]+T_DataComboFile[[#This Row],[2022/23 Reduction]]+T_DataComboFile[[#This Row],[2022/23 Increase]]","v":0},{"$f":"T_DataComboFile[[#This Row],[2023/24 Baseline]]+T_DataComboFile[[#This Row],[2023/24 Reduction]]+T_DataComboFile[[#This Row],[2023/24 Increase]]","v":0}]
[null,null,"2021_22","ENE2020",36,1,4,null,70369,36,1,4,null,"070369","36|01|04",2,3,11,54,58,"02|03|11|54|58","National","Small Business Development","Administration","Financial Management",null,"Capital","Payments for capital assets","Buildings and other fixed structures","Buildings","Buildings",null,null,null,0,0,0,0,0,0,0,0,0,0,0,0,0,0,null,{"$f":"IF(T_DataComboFile[[#This Row],[G&S reporting level indicator]]=1,$AX$16,\"Not applicable\")","v":"Level 3"},{"$f":"IF(AND($AX$16=\"Level 3\",T_DataComboFile[[#This Row],[Econ3]] = \"Goods and services\"),IF(T_DataComboFile[[#This Row],[Econ4]] = T_DataComboFile[[#This Row],[Econ3]],1,0),IF(AND($AX$16=\"Level 4\",T_DataComboFile[[#This Row],[Econ4]] = \"Goods and services\"),0,1))","v":1},{"$f":"T_DataComboFile[[#This Row],[2016/17_Source]]*T_DataComboFile[[#This Row],[G&S reporting level indicator]]","v":0},{"$f":"T_DataComboFile[[#This Row],[2017/18_Source]]*T_DataComboFile[[#This Row],[G&S reporting level indicator]]","v":0},{"$f":"T_DataComboFile[[#This Row],[2018/19_Source]]*T_DataComboFile[[#This Row],[G&S reporting level indicator]]","v":0},{"$f":"T_DataComboFile[[#This Row],[2019/20 Main appropriation_Source]]*T_DataComboFile[[#This Row],[G&S reporting level indicator]]","v":0},{"$f":"T_DataComboFile[[#This Row],[2019/20 Adjusted appropriation_Source]]*T_DataComboFile[[#This Row],[G&S reporting level indicator]]","v":0},{"$f":"T_DataComboFile[[#This Row],[2019/20 Revised estimate_Source]]*T_DataComboFile[[#This Row],[G&S reporting level indicator]]","v":0},{"$f":"T_DataComboFile[[#This Row],[2019/20 Preliminary outcome_Source]]*T_DataComboFile[[#This Row],[G&S reporting level indicator]]","v":0},{"$f":"T_DataComboFile[[#This Row],[2020/21 Original_Source]]*T_DataComboFile[[#This Row],[G&S reporting level indicator]]","v":0},{"$f":"T_DataComboFile[[#This Row],[2020/21 SAB_Source]]*T_DataComboFile[[#This Row],[G&S reporting level indicator]]","v":0},{"$f":"T_DataComboFile[[#This Row],[2020/21 Baseline_Source]]*T_DataComboFile[[#This Row],[G&S reporting level indicator]]","v":0},{"$f":"T_DataComboFile[[#This Row],[2021/22 Baseline_Source]]*T_DataComboFile[[#This Row],[G&S reporting level indicator]]","v":0},{"$f":"T_DataComboFile[[#This Row],[2022/23 Baseline_Source]]*T_DataComboFile[[#This Row],[G&S reporting level indicator]]","v":0},{"$f":"T_DataComboFile[[#This Row],[2023/24 Baseline_Source]]*T_DataComboFile[[#This Row],[G&S reporting level indicator]]","v":0},null,null,null,null,null,null,{"$f":"T_DataComboFile[[#This Row],[2021/22 Baseline]]+T_DataComboFile[[#This Row],[2021/22 Reduction]]+T_DataComboFile[[#This Row],[2021/22 Increase]]","v":0},{"$f":"T_DataComboFile[[#This Row],[2022/23 Baseline]]+T_DataComboFile[[#This Row],[2022/23 Reduction]]+T_DataComboFile[[#This Row],[2022/23 Increase]]","v":0},{"$f":"T_DataComboFile[[#This Row],[2023/24 Baseline]]+T_DataComboFile[[#This Row],[2023/24 Reduction]]+T_DataComboFile[[#This Row],[2023/24 Increase]]","v":0}]
[null,null,"2021_22","ENE2020",36,1,4,null,70370,36,1,4,null,"070370","36|01|04",2,3,11,55,59,"02|03|11|55|59","National","Small Business Development","Administration","Financial Management",null,"Capital","Payments for capital assets","Buildings and other fixed structures","Other fixed structures","Other fixed structures",null,null,null,0,0,0,0,0,0,0,0,0,0,0,0,0,0,null,{"$f":"IF(T_DataComboFile[[#This Row],[G&S reporting level indicator]]=1,$AX$16,\"Not applicable\")","v":"Level 3"},{"$f":"IF(AND($AX$16=\"Level 3\",T_DataComboFile[[#This Row],[Econ3]] = \"Goods and services\"),IF(T_DataComboFile[[#This Row],[Econ4]] = T_DataComboFile[[#This Row],[Econ3]],1,0),IF(AND($AX$16=\"Level 4\",T_DataComboFile[[#This Row],[Econ4]] = \"Goods and services\"),0,1))","v":1},{"$f":"T_DataComboFile[[#This Row],[2016/17_Source]]*T_DataComboFile[[#This Row],[G&S reporting level indicator]]","v":0},{"$f":"T_DataComboFile[[#This Row],[2017/18_Source]]*T_DataComboFile[[#This Row],[G&S reporting level indicator]]","v":0},{"$f":"T_DataComboFile[[#This Row],[2018/19_Source]]*T_DataComboFile[[#This Row],[G&S reporting level indicator]]","v":0},{"$f":"T_DataComboFile[[#This Row],[2019/20 Main appropriation_Source]]*T_DataComboFile[[#This Row],[G&S reporting level indicator]]","v":0},{"$f":"T_DataComboFile[[#This Row],[2019/20 Adjusted appropriation_Source]]*T_DataComboFile[[#This Row],[G&S reporting level indicator]]","v":0},{"$f":"T_DataComboFile[[#This Row],[2019/20 Revised estimate_Source]]*T_DataComboFile[[#This Row],[G&S reporting level indicator]]","v":0},{"$f":"T_DataComboFile[[#This Row],[2019/20 Preliminary outcome_Source]]*T_DataComboFile[[#This Row],[G&S reporting level indicator]]","v":0},{"$f":"T_DataComboFile[[#This Row],[2020/21 Original_Source]]*T_DataComboFile[[#This Row],[G&S reporting level indicator]]","v":0},{"$f":"T_DataComboFile[[#This Row],[2020/21 SAB_Source]]*T_DataComboFile[[#This Row],[G&S reporting level indicator]]","v":0},{"$f":"T_DataComboFile[[#This Row],[2020/21 Baseline_Source]]*T_DataComboFile[[#This Row],[G&S reporting level indicator]]","v":0},{"$f":"T_DataComboFile[[#This Row],[2021/22 Baseline_Source]]*T_DataComboFile[[#This Row],[G&S reporting level indicator]]","v":0},{"$f":"T_DataComboFile[[#This Row],[2022/23 Baseline_Source]]*T_DataComboFile[[#This Row],[G&S reporting level indicator]]","v":0},{"$f":"T_DataComboFile[[#This Row],[2023/24 Baseline_Source]]*T_DataComboFile[[#This Row],[G&S reporting level indicator]]","v":0},null,null,null,null,null,null,{"$f":"T_DataComboFile[[#This Row],[2021/22 Baseline]]+T_DataComboFile[[#This Row],[2021/22 Reduction]]+T_DataComboFile[[#This Row],[2021/22 Increase]]","v":0},{"$f":"T_DataComboFile[[#This Row],[2022/23 Baseline]]+T_DataComboFile[[#This Row],[2022/23 Reduction]]+T_DataComboFile[[#This Row],[2022/23 Increase]]","v":0},{"$f":"T_DataComboFile[[#This Row],[2023/24 Baseline]]+T_DataComboFile[[#This Row],[2023/24 Reduction]]+T_DataComboFile[[#This Row],[2023/24 Increase]]","v":0}]
[null,null,"2021_22","ENE2020",36,1,4,null,70371,36,1,4,null,"070371","36|01|04",2,3,12,56,60,"02|03|12|56|60","National","Small Business Development","Administration","Financial Management",null,"Capital","Payments for capital assets","Machinery and equipment","Transport equipment","Transport equipment",null,null,null,0,0,0,0,0,0,0,0,0,0,0,0,0,0,null,{"$f":"IF(T_DataComboFile[[#This Row],[G&S reporting level indicator]]=1,$AX$16,\"Not applicable\")","v":"Level 3"},{"$f":"IF(AND($AX$16=\"Level 3\",T_DataComboFile[[#This Row],[Econ3]] = \"Goods and services\"),IF(T_DataComboFile[[#This Row],[Econ4]] = T_DataComboFile[[#This Row],[Econ3]],1,0),IF(AND($AX$16=\"Level 4\",T_DataComboFile[[#This Row],[Econ4]] = \"Goods and services\"),0,1))","v":1},{"$f":"T_DataComboFile[[#This Row],[2016/17_Source]]*T_DataComboFile[[#This Row],[G&S reporting level indicator]]","v":0},{"$f":"T_DataComboFile[[#This Row],[2017/18_Source]]*T_DataComboFile[[#This Row],[G&S reporting level indicator]]","v":0},{"$f":"T_DataComboFile[[#This Row],[2018/19_Source]]*T_DataComboFile[[#This Row],[G&S reporting level indicator]]","v":0},{"$f":"T_DataComboFile[[#This Row],[2019/20 Main appropriation_Source]]*T_DataComboFile[[#This Row],[G&S reporting level indicator]]","v":0},{"$f":"T_DataComboFile[[#This Row],[2019/20 Adjusted appropriation_Source]]*T_DataComboFile[[#This Row],[G&S reporting level indicator]]","v":0},{"$f":"T_DataComboFile[[#This Row],[2019/20 Revised estimate_Source]]*T_DataComboFile[[#This Row],[G&S reporting level indicator]]","v":0},{"$f":"T_DataComboFile[[#This Row],[2019/20 Preliminary outcome_Source]]*T_DataComboFile[[#This Row],[G&S reporting level indicator]]","v":0},{"$f":"T_DataComboFile[[#This Row],[2020/21 Original_Source]]*T_DataComboFile[[#This Row],[G&S reporting level indicator]]","v":0},{"$f":"T_DataComboFile[[#This Row],[2020/21 SAB_Source]]*T_DataComboFile[[#This Row],[G&S reporting level indicator]]","v":0},{"$f":"T_DataComboFile[[#This Row],[2020/21 Baseline_Source]]*T_DataComboFile[[#This Row],[G&S reporting level indicator]]","v":0},{"$f":"T_DataComboFile[[#This Row],[2021/22 Baseline_Source]]*T_DataComboFile[[#This Row],[G&S reporting level indicator]]","v":0},{"$f":"T_DataComboFile[[#This Row],[2022/23 Baseline_Source]]*T_DataComboFile[[#This Row],[G&S reporting level indicator]]","v":0},{"$f":"T_DataComboFile[[#This Row],[2023/24 Baseline_Source]]*T_DataComboFile[[#This Row],[G&S reporting level indicator]]","v":0},null,null,null,null,null,null,{"$f":"T_DataComboFile[[#This Row],[2021/22 Baseline]]+T_DataComboFile[[#This Row],[2021/22 Reduction]]+T_DataComboFile[[#This Row],[2021/22 Increase]]","v":0},{"$f":"T_DataComboFile[[#This Row],[2022/23 Baseline]]+T_DataComboFile[[#This Row],[2022/23 Reduction]]+T_DataComboFile[[#This Row],[2022/23 Increase]]","v":0},{"$f":"T_DataComboFile[[#This Row],[2023/24 Baseline]]+T_DataComboFile[[#This Row],[2023/24 Reduction]]+T_DataComboFile[[#This Row],[2023/24 Increase]]","v":0}]
["NAT|Non-transfer item","36|Other machinery and equipment","2021_22","ENE2020",36,1,4,17261,70372,36,1,4,17261,"070372","36|01|04",2,3,12,57,61,"02|03|12|57|61","National","Small Business Development","Administration","Financial Management","Non-transfer item","Capital","Payments for capital assets","Machinery and equipment","Other machinery and equipment","Other machinery and equipment","Economic development","Industrialisation and exports","NAT",63,58,77,180,145,145,145,78,78,78,82,86,90,1,null,{"$f":"IF(T_DataComboFile[[#This Row],[G&S reporting level indicator]]=1,$AX$16,\"Not applicable\")","v":"Level 3"},{"$f":"IF(AND($AX$16=\"Level 3\",T_DataComboFile[[#This Row],[Econ3]] = \"Goods and services\"),IF(T_DataComboFile[[#This Row],[Econ4]] = T_DataComboFile[[#This Row],[Econ3]],1,0),IF(AND($AX$16=\"Level 4\",T_DataComboFile[[#This Row],[Econ4]] = \"Goods and services\"),0,1))","v":1},{"$f":"T_DataComboFile[[#This Row],[2016/17_Source]]*T_DataComboFile[[#This Row],[G&S reporting level indicator]]","v":63},{"$f":"T_DataComboFile[[#This Row],[2017/18_Source]]*T_DataComboFile[[#This Row],[G&S reporting level indicator]]","v":58},{"$f":"T_DataComboFile[[#This Row],[2018/19_Source]]*T_DataComboFile[[#This Row],[G&S reporting level indicator]]","v":77},{"$f":"T_DataComboFile[[#This Row],[2019/20 Main appropriation_Source]]*T_DataComboFile[[#This Row],[G&S reporting level indicator]]","v":180},{"$f":"T_DataComboFile[[#This Row],[2019/20 Adjusted appropriation_Source]]*T_DataComboFile[[#This Row],[G&S reporting level indicator]]","v":145},{"$f":"T_DataComboFile[[#This Row],[2019/20 Revised estimate_Source]]*T_DataComboFile[[#This Row],[G&S reporting level indicator]]","v":145},{"$f":"T_DataComboFile[[#This Row],[2019/20 Preliminary outcome_Source]]*T_DataComboFile[[#This Row],[G&S reporting level indicator]]","v":145},{"$f":"T_DataComboFile[[#This Row],[2020/21 Original_Source]]*T_DataComboFile[[#This Row],[G&S reporting level indicator]]","v":78},{"$f":"T_DataComboFile[[#This Row],[2020/21 SAB_Source]]*T_DataComboFile[[#This Row],[G&S reporting level indicator]]","v":78},{"$f":"T_DataComboFile[[#This Row],[2020/21 Baseline_Source]]*T_DataComboFile[[#This Row],[G&S reporting level indicator]]","v":78},{"$f":"T_DataComboFile[[#This Row],[2021/22 Baseline_Source]]*T_DataComboFile[[#This Row],[G&S reporting level indicator]]","v":82},{"$f":"T_DataComboFile[[#This Row],[2022/23 Baseline_Source]]*T_DataComboFile[[#This Row],[G&S reporting level indicator]]","v":86},{"$f":"T_DataComboFile[[#This Row],[2023/24 Baseline_Source]]*T_DataComboFile[[#This Row],[G&S reporting level indicator]]","v":90},null,null,null,null,null,null,{"$f":"T_DataComboFile[[#This Row],[2021/22 Baseline]]+T_DataComboFile[[#This Row],[2021/22 Reduction]]+T_DataComboFile[[#This Row],[2021/22 Increase]]","v":82},{"$f":"T_DataComboFile[[#This Row],[2022/23 Baseline]]+T_DataComboFile[[#This Row],[2022/23 Reduction]]+T_DataComboFile[[#This Row],[2022/23 Increase]]","v":86},{"$f":"T_DataComboFile[[#This Row],[2023/24 Baseline]]+T_DataComboFile[[#This Row],[2023/24 Reduction]]+T_DataComboFile[[#This Row],[2023/24 Increase]]","v":90}]
[null,null,"2021_22","ENE2020",36,1,4,null,70373,36,1,4,null,"070373","36|01|04",2,3,13,58,62,"02|03|13|58|62","National","Small Business Development","Administration","Financial Management",null,"Capital","Payments for capital assets","Heritage assets","Heritage assets","Heritage assets",null,null,null,0,0,0,0,0,0,0,0,0,0,0,0,0,0,null,{"$f":"IF(T_DataComboFile[[#This Row],[G&S reporting level indicator]]=1,$AX$16,\"Not applicable\")","v":"Level 3"},{"$f":"IF(AND($AX$16=\"Level 3\",T_DataComboFile[[#This Row],[Econ3]] = \"Goods and services\"),IF(T_DataComboFile[[#This Row],[Econ4]] = T_DataComboFile[[#This Row],[Econ3]],1,0),IF(AND($AX$16=\"Level 4\",T_DataComboFile[[#This Row],[Econ4]] = \"Goods and services\"),0,1))","v":1},{"$f":"T_DataComboFile[[#This Row],[2016/17_Source]]*T_DataComboFile[[#This Row],[G&S reporting level indicator]]","v":0},{"$f":"T_DataComboFile[[#This Row],[2017/18_Source]]*T_DataComboFile[[#This Row],[G&S reporting level indicator]]","v":0},{"$f":"T_DataComboFile[[#This Row],[2018/19_Source]]*T_DataComboFile[[#This Row],[G&S reporting level indicator]]","v":0},{"$f":"T_DataComboFile[[#This Row],[2019/20 Main appropriation_Source]]*T_DataComboFile[[#This Row],[G&S reporting level indicator]]","v":0},{"$f":"T_DataComboFile[[#This Row],[2019/20 Adjusted appropriation_Source]]*T_DataComboFile[[#This Row],[G&S reporting level indicator]]","v":0},{"$f":"T_DataComboFile[[#This Row],[2019/20 Revised estimate_Source]]*T_DataComboFile[[#This Row],[G&S reporting level indicator]]","v":0},{"$f":"T_DataComboFile[[#This Row],[2019/20 Preliminary outcome_Source]]*T_DataComboFile[[#This Row],[G&S reporting level indicator]]","v":0},{"$f":"T_DataComboFile[[#This Row],[2020/21 Original_Source]]*T_DataComboFile[[#This Row],[G&S reporting level indicator]]","v":0},{"$f":"T_DataComboFile[[#This Row],[2020/21 SAB_Source]]*T_DataComboFile[[#This Row],[G&S reporting level indicator]]","v":0},{"$f":"T_DataComboFile[[#This Row],[2020/21 Baseline_Source]]*T_DataComboFile[[#This Row],[G&S reporting level indicator]]","v":0},{"$f":"T_DataComboFile[[#This Row],[2021/22 Baseline_Source]]*T_DataComboFile[[#This Row],[G&S reporting level indicator]]","v":0},{"$f":"T_DataComboFile[[#This Row],[2022/23 Baseline_Source]]*T_DataComboFile[[#This Row],[G&S reporting level indicator]]","v":0},{"$f":"T_DataComboFile[[#This Row],[2023/24 Baseline_Source]]*T_DataComboFile[[#This Row],[G&S reporting level indicator]]","v":0},null,null,null,null,null,null,{"$f":"T_DataComboFile[[#This Row],[2021/22 Baseline]]+T_DataComboFile[[#This Row],[2021/22 Reduction]]+T_DataComboFile[[#This Row],[2021/22 Increase]]","v":0},{"$f":"T_DataComboFile[[#This Row],[2022/23 Baseline]]+T_DataComboFile[[#This Row],[2022/23 Reduction]]+T_DataComboFile[[#This Row],[2022/23 Increase]]","v":0},{"$f":"T_DataComboFile[[#This Row],[2023/24 Baseline]]+T_DataComboFile[[#This Row],[2023/24 Reduction]]+T_DataComboFile[[#This Row],[2023/24 Increase]]","v":0}]
[null,null,"2021_22","ENE2020",36,1,4,null,70374,36,1,4,null,"070374","36|01|04",2,3,14,59,63,"02|03|14|59|63","National","Small Business Development","Administration","Financial Management",null,"Capital","Payments for capital assets","Specialised military assets","Specialised military assets","Specialised military assets",null,null,null,0,0,0,0,0,0,0,0,0,0,0,0,0,0,null,{"$f":"IF(T_DataComboFile[[#This Row],[G&S reporting level indicator]]=1,$AX$16,\"Not applicable\")","v":"Level 3"},{"$f":"IF(AND($AX$16=\"Level 3\",T_DataComboFile[[#This Row],[Econ3]] = \"Goods and services\"),IF(T_DataComboFile[[#This Row],[Econ4]] = T_DataComboFile[[#This Row],[Econ3]],1,0),IF(AND($AX$16=\"Level 4\",T_DataComboFile[[#This Row],[Econ4]] = \"Goods and services\"),0,1))","v":1},{"$f":"T_DataComboFile[[#This Row],[2016/17_Source]]*T_DataComboFile[[#This Row],[G&S reporting level indicator]]","v":0},{"$f":"T_DataComboFile[[#This Row],[2017/18_Source]]*T_DataComboFile[[#This Row],[G&S reporting level indicator]]","v":0},{"$f":"T_DataComboFile[[#This Row],[2018/19_Source]]*T_DataComboFile[[#This Row],[G&S reporting level indicator]]","v":0},{"$f":"T_DataComboFile[[#This Row],[2019/20 Main appropriation_Source]]*T_DataComboFile[[#This Row],[G&S reporting level indicator]]","v":0},{"$f":"T_DataComboFile[[#This Row],[2019/20 Adjusted appropriation_Source]]*T_DataComboFile[[#This Row],[G&S reporting level indicator]]","v":0},{"$f":"T_DataComboFile[[#This Row],[2019/20 Revised estimate_Source]]*T_DataComboFile[[#This Row],[G&S reporting level indicator]]","v":0},{"$f":"T_DataComboFile[[#This Row],[2019/20 Preliminary outcome_Source]]*T_DataComboFile[[#This Row],[G&S reporting level indicator]]","v":0},{"$f":"T_DataComboFile[[#This Row],[2020/21 Original_Source]]*T_DataComboFile[[#This Row],[G&S reporting level indicator]]","v":0},{"$f":"T_DataComboFile[[#This Row],[2020/21 SAB_Source]]*T_DataComboFile[[#This Row],[G&S reporting level indicator]]","v":0},{"$f":"T_DataComboFile[[#This Row],[2020/21 Baseline_Source]]*T_DataComboFile[[#This Row],[G&S reporting level indicator]]","v":0},{"$f":"T_DataComboFile[[#This Row],[2021/22 Baseline_Source]]*T_DataComboFile[[#This Row],[G&S reporting level indicator]]","v":0},{"$f":"T_DataComboFile[[#This Row],[2022/23 Baseline_Source]]*T_DataComboFile[[#This Row],[G&S reporting level indicator]]","v":0},{"$f":"T_DataComboFile[[#This Row],[2023/24 Baseline_Source]]*T_DataComboFile[[#This Row],[G&S reporting level indicator]]","v":0},null,null,null,null,null,null,{"$f":"T_DataComboFile[[#This Row],[2021/22 Baseline]]+T_DataComboFile[[#This Row],[2021/22 Reduction]]+T_DataComboFile[[#This Row],[2021/22 Increase]]","v":0},{"$f":"T_DataComboFile[[#This Row],[2022/23 Baseline]]+T_DataComboFile[[#This Row],[2022/23 Reduction]]+T_DataComboFile[[#This Row],[2022/23 Increase]]","v":0},{"$f":"T_DataComboFile[[#This Row],[2023/24 Baseline]]+T_DataComboFile[[#This Row],[2023/24 Reduction]]+T_DataComboFile[[#This Row],[2023/24 Increase]]","v":0}]
[null,null,"2021_22","ENE2020",36,1,4,null,70375,36,1,4,null,"070375","36|01|04",2,3,15,60,64,"02|03|15|60|64","National","Small Business Development","Administration","Financial Management",null,"Capital","Payments for capital assets","Biological assets","Biological assets","Biological assets",null,null,null,0,0,0,0,0,0,0,0,0,0,0,0,0,0,null,{"$f":"IF(T_DataComboFile[[#This Row],[G&S reporting level indicator]]=1,$AX$16,\"Not applicable\")","v":"Level 3"},{"$f":"IF(AND($AX$16=\"Level 3\",T_DataComboFile[[#This Row],[Econ3]] = \"Goods and services\"),IF(T_DataComboFile[[#This Row],[Econ4]] = T_DataComboFile[[#This Row],[Econ3]],1,0),IF(AND($AX$16=\"Level 4\",T_DataComboFile[[#This Row],[Econ4]] = \"Goods and services\"),0,1))","v":1},{"$f":"T_DataComboFile[[#This Row],[2016/17_Source]]*T_DataComboFile[[#This Row],[G&S reporting level indicator]]","v":0},{"$f":"T_DataComboFile[[#This Row],[2017/18_Source]]*T_DataComboFile[[#This Row],[G&S reporting level indicator]]","v":0},{"$f":"T_DataComboFile[[#This Row],[2018/19_Source]]*T_DataComboFile[[#This Row],[G&S reporting level indicator]]","v":0},{"$f":"T_DataComboFile[[#This Row],[2019/20 Main appropriation_Source]]*T_DataComboFile[[#This Row],[G&S reporting level indicator]]","v":0},{"$f":"T_DataComboFile[[#This Row],[2019/20 Adjusted appropriation_Source]]*T_DataComboFile[[#This Row],[G&S reporting level indicator]]","v":0},{"$f":"T_DataComboFile[[#This Row],[2019/20 Revised estimate_Source]]*T_DataComboFile[[#This Row],[G&S reporting level indicator]]","v":0},{"$f":"T_DataComboFile[[#This Row],[2019/20 Preliminary outcome_Source]]*T_DataComboFile[[#This Row],[G&S reporting level indicator]]","v":0},{"$f":"T_DataComboFile[[#This Row],[2020/21 Original_Source]]*T_DataComboFile[[#This Row],[G&S reporting level indicator]]","v":0},{"$f":"T_DataComboFile[[#This Row],[2020/21 SAB_Source]]*T_DataComboFile[[#This Row],[G&S reporting level indicator]]","v":0},{"$f":"T_DataComboFile[[#This Row],[2020/21 Baseline_Source]]*T_DataComboFile[[#This Row],[G&S reporting level indicator]]","v":0},{"$f":"T_DataComboFile[[#This Row],[2021/22 Baseline_Source]]*T_DataComboFile[[#This Row],[G&S reporting level indicator]]","v":0},{"$f":"T_DataComboFile[[#This Row],[2022/23 Baseline_Source]]*T_DataComboFile[[#This Row],[G&S reporting level indicator]]","v":0},{"$f":"T_DataComboFile[[#This Row],[2023/24 Baseline_Source]]*T_DataComboFile[[#This Row],[G&S reporting level indicator]]","v":0},null,null,null,null,null,null,{"$f":"T_DataComboFile[[#This Row],[2021/22 Baseline]]+T_DataComboFile[[#This Row],[2021/22 Reduction]]+T_DataComboFile[[#This Row],[2021/22 Increase]]","v":0},{"$f":"T_DataComboFile[[#This Row],[2022/23 Baseline]]+T_DataComboFile[[#This Row],[2022/23 Reduction]]+T_DataComboFile[[#This Row],[2022/23 Increase]]","v":0},{"$f":"T_DataComboFile[[#This Row],[2023/24 Baseline]]+T_DataComboFile[[#This Row],[2023/24 Reduction]]+T_DataComboFile[[#This Row],[2023/24 Increase]]","v":0}]
[null,null,"2021_22","ENE2020",36,1,4,null,70376,36,1,4,null,"070376","36|01|04",2,3,16,61,65,"02|03|16|61|65","National","Small Business Development","Administration","Financial Management",null,"Capital","Payments for capital assets","Land and sub-soil assets","Land and sub-soil assets","Land and sub-soil assets",null,null,null,0,0,0,0,0,0,0,0,0,0,0,0,0,0,null,{"$f":"IF(T_DataComboFile[[#This Row],[G&S reporting level indicator]]=1,$AX$16,\"Not applicable\")","v":"Level 3"},{"$f":"IF(AND($AX$16=\"Level 3\",T_DataComboFile[[#This Row],[Econ3]] = \"Goods and services\"),IF(T_DataComboFile[[#This Row],[Econ4]] = T_DataComboFile[[#This Row],[Econ3]],1,0),IF(AND($AX$16=\"Level 4\",T_DataComboFile[[#This Row],[Econ4]] = \"Goods and services\"),0,1))","v":1},{"$f":"T_DataComboFile[[#This Row],[2016/17_Source]]*T_DataComboFile[[#This Row],[G&S reporting level indicator]]","v":0},{"$f":"T_DataComboFile[[#This Row],[2017/18_Source]]*T_DataComboFile[[#This Row],[G&S reporting level indicator]]","v":0},{"$f":"T_DataComboFile[[#This Row],[2018/19_Source]]*T_DataComboFile[[#This Row],[G&S reporting level indicator]]","v":0},{"$f":"T_DataComboFile[[#This Row],[2019/20 Main appropriation_Source]]*T_DataComboFile[[#This Row],[G&S reporting level indicator]]","v":0},{"$f":"T_DataComboFile[[#This Row],[2019/20 Adjusted appropriation_Source]]*T_DataComboFile[[#This Row],[G&S reporting level indicator]]","v":0},{"$f":"T_DataComboFile[[#This Row],[2019/20 Revised estimate_Source]]*T_DataComboFile[[#This Row],[G&S reporting level indicator]]","v":0},{"$f":"T_DataComboFile[[#This Row],[2019/20 Preliminary outcome_Source]]*T_DataComboFile[[#This Row],[G&S reporting level indicator]]","v":0},{"$f":"T_DataComboFile[[#This Row],[2020/21 Original_Source]]*T_DataComboFile[[#This Row],[G&S reporting level indicator]]","v":0},{"$f":"T_DataComboFile[[#This Row],[2020/21 SAB_Source]]*T_DataComboFile[[#This Row],[G&S reporting level indicator]]","v":0},{"$f":"T_DataComboFile[[#This Row],[2020/21 Baseline_Source]]*T_DataComboFile[[#This Row],[G&S reporting level indicator]]","v":0},{"$f":"T_DataComboFile[[#This Row],[2021/22 Baseline_Source]]*T_DataComboFile[[#This Row],[G&S reporting level indicator]]","v":0},{"$f":"T_DataComboFile[[#This Row],[2022/23 Baseline_Source]]*T_DataComboFile[[#This Row],[G&S reporting level indicator]]","v":0},{"$f":"T_DataComboFile[[#This Row],[2023/24 Baseline_Source]]*T_DataComboFile[[#This Row],[G&S reporting level indicator]]","v":0},null,null,null,null,null,null,{"$f":"T_DataComboFile[[#This Row],[2021/22 Baseline]]+T_DataComboFile[[#This Row],[2021/22 Reduction]]+T_DataComboFile[[#This Row],[2021/22 Increase]]","v":0},{"$f":"T_DataComboFile[[#This Row],[2022/23 Baseline]]+T_DataComboFile[[#This Row],[2022/23 Reduction]]+T_DataComboFile[[#This Row],[2022/23 Increase]]","v":0},{"$f":"T_DataComboFile[[#This Row],[2023/24 Baseline]]+T_DataComboFile[[#This Row],[2023/24 Reduction]]+T_DataComboFile[[#This Row],[2023/24 Increase]]","v":0}]
[null,null,"2021_22","ENE2020",36,1,4,null,70377,36,1,4,null,"070377","36|01|04",2,3,17,62,66,"02|03|17|62|66","National","Small Business Development","Administration","Financial Management",null,"Capital","Payments for capital assets","Software and other intangible assets","Software and other intangible assets","Software and other intangible assets",null,null,null,0,0,0,0,0,0,0,0,0,0,0,0,0,0,null,{"$f":"IF(T_DataComboFile[[#This Row],[G&S reporting level indicator]]=1,$AX$16,\"Not applicable\")","v":"Level 3"},{"$f":"IF(AND($AX$16=\"Level 3\",T_DataComboFile[[#This Row],[Econ3]] = \"Goods and services\"),IF(T_DataComboFile[[#This Row],[Econ4]] = T_DataComboFile[[#This Row],[Econ3]],1,0),IF(AND($AX$16=\"Level 4\",T_DataComboFile[[#This Row],[Econ4]] = \"Goods and services\"),0,1))","v":1},{"$f":"T_DataComboFile[[#This Row],[2016/17_Source]]*T_DataComboFile[[#This Row],[G&S reporting level indicator]]","v":0},{"$f":"T_DataComboFile[[#This Row],[2017/18_Source]]*T_DataComboFile[[#This Row],[G&S reporting level indicator]]","v":0},{"$f":"T_DataComboFile[[#This Row],[2018/19_Source]]*T_DataComboFile[[#This Row],[G&S reporting level indicator]]","v":0},{"$f":"T_DataComboFile[[#This Row],[2019/20 Main appropriation_Source]]*T_DataComboFile[[#This Row],[G&S reporting level indicator]]","v":0},{"$f":"T_DataComboFile[[#This Row],[2019/20 Adjusted appropriation_Source]]*T_DataComboFile[[#This Row],[G&S reporting level indicator]]","v":0},{"$f":"T_DataComboFile[[#This Row],[2019/20 Revised estimate_Source]]*T_DataComboFile[[#This Row],[G&S reporting level indicator]]","v":0},{"$f":"T_DataComboFile[[#This Row],[2019/20 Preliminary outcome_Source]]*T_DataComboFile[[#This Row],[G&S reporting level indicator]]","v":0},{"$f":"T_DataComboFile[[#This Row],[2020/21 Original_Source]]*T_DataComboFile[[#This Row],[G&S reporting level indicator]]","v":0},{"$f":"T_DataComboFile[[#This Row],[2020/21 SAB_Source]]*T_DataComboFile[[#This Row],[G&S reporting level indicator]]","v":0},{"$f":"T_DataComboFile[[#This Row],[2020/21 Baseline_Source]]*T_DataComboFile[[#This Row],[G&S reporting level indicator]]","v":0},{"$f":"T_DataComboFile[[#This Row],[2021/22 Baseline_Source]]*T_DataComboFile[[#This Row],[G&S reporting level indicator]]","v":0},{"$f":"T_DataComboFile[[#This Row],[2022/23 Baseline_Source]]*T_DataComboFile[[#This Row],[G&S reporting level indicator]]","v":0},{"$f":"T_DataComboFile[[#This Row],[2023/24 Baseline_Source]]*T_DataComboFile[[#This Row],[G&S reporting level indicator]]","v":0},null,null,null,null,null,null,{"$f":"T_DataComboFile[[#This Row],[2021/22 Baseline]]+T_DataComboFile[[#This Row],[2021/22 Reduction]]+T_DataComboFile[[#This Row],[2021/22 Increase]]","v":0},{"$f":"T_DataComboFile[[#This Row],[2022/23 Baseline]]+T_DataComboFile[[#This Row],[2022/23 Reduction]]+T_DataComboFile[[#This Row],[2022/23 Increase]]","v":0},{"$f":"T_DataComboFile[[#This Row],[2023/24 Baseline]]+T_DataComboFile[[#This Row],[2023/24 Reduction]]+T_DataComboFile[[#This Row],[2023/24 Increase]]","v":0}]
["NAT|Thefts and losses","36|Payments for financial assets","2021_22","ENE2020",36,1,4,17262,70378,36,1,4,17262,"070378","36|01|04",3,4,18,63,67,"03|04|18|63|67","National","Small Business Development","Administration","Financial Management","Thefts and losses","Payments for financial assets","Payments for financial assets","Payments for financial assets","Payments for financial assets","Payments for financial assets","Economic development","Industrialisation and exports","NAT",28,0,0,0,0,0,0,0,0,0,0,0,0,1,null,{"$f":"IF(T_DataComboFile[[#This Row],[G&S reporting level indicator]]=1,$AX$16,\"Not applicable\")","v":"Level 3"},{"$f":"IF(AND($AX$16=\"Level 3\",T_DataComboFile[[#This Row],[Econ3]] = \"Goods and services\"),IF(T_DataComboFile[[#This Row],[Econ4]] = T_DataComboFile[[#This Row],[Econ3]],1,0),IF(AND($AX$16=\"Level 4\",T_DataComboFile[[#This Row],[Econ4]] = \"Goods and services\"),0,1))","v":1},{"$f":"T_DataComboFile[[#This Row],[2016/17_Source]]*T_DataComboFile[[#This Row],[G&S reporting level indicator]]","v":28},{"$f":"T_DataComboFile[[#This Row],[2017/18_Source]]*T_DataComboFile[[#This Row],[G&S reporting level indicator]]","v":0},{"$f":"T_DataComboFile[[#This Row],[2018/19_Source]]*T_DataComboFile[[#This Row],[G&S reporting level indicator]]","v":0},{"$f":"T_DataComboFile[[#This Row],[2019/20 Main appropriation_Source]]*T_DataComboFile[[#This Row],[G&S reporting level indicator]]","v":0},{"$f":"T_DataComboFile[[#This Row],[2019/20 Adjusted appropriation_Source]]*T_DataComboFile[[#This Row],[G&S reporting level indicator]]","v":0},{"$f":"T_DataComboFile[[#This Row],[2019/20 Revised estimate_Source]]*T_DataComboFile[[#This Row],[G&S reporting level indicator]]","v":0},{"$f":"T_DataComboFile[[#This Row],[2019/20 Preliminary outcome_Source]]*T_DataComboFile[[#This Row],[G&S reporting level indicator]]","v":0},{"$f":"T_DataComboFile[[#This Row],[2020/21 Original_Source]]*T_DataComboFile[[#This Row],[G&S reporting level indicator]]","v":0},{"$f":"T_DataComboFile[[#This Row],[2020/21 SAB_Source]]*T_DataComboFile[[#This Row],[G&S reporting level indicator]]","v":0},{"$f":"T_DataComboFile[[#This Row],[2020/21 Baseline_Source]]*T_DataComboFile[[#This Row],[G&S reporting level indicator]]","v":0},{"$f":"T_DataComboFile[[#This Row],[2021/22 Baseline_Source]]*T_DataComboFile[[#This Row],[G&S reporting level indicator]]","v":0},{"$f":"T_DataComboFile[[#This Row],[2022/23 Baseline_Source]]*T_DataComboFile[[#This Row],[G&S reporting level indicator]]","v":0},{"$f":"T_DataComboFile[[#This Row],[2023/24 Baseline_Source]]*T_DataComboFile[[#This Row],[G&S reporting level indicator]]","v":0},null,null,null,null,null,null,{"$f":"T_DataComboFile[[#This Row],[2021/22 Baseline]]+T_DataComboFile[[#This Row],[2021/22 Reduction]]+T_DataComboFile[[#This Row],[2021/22 Increase]]","v":0},{"$f":"T_DataComboFile[[#This Row],[2022/23 Baseline]]+T_DataComboFile[[#This Row],[2022/23 Reduction]]+T_DataComboFile[[#This Row],[2022/23 Increase]]","v":0},{"$f":"T_DataComboFile[[#This Row],[2023/24 Baseline]]+T_DataComboFile[[#This Row],[2023/24 Reduction]]+T_DataComboFile[[#This Row],[2023/24 Increase]]","v":0}]
["NAT|Non-transfer item","36|Salaries and wages","2021_22","ENE2020",36,1,5,17263,70379,36,1,5,17263,"070379","36|01|05",1,1,1,1,1,"01|01|01|01|01","National","Small Business Development","Administration","Communications","Non-transfer item","Current","Current payments","Compensation of employees","Salaries and wages","Salaries and wages","Economic development","Industrialisation and exports","NAT",955,3582,2995,2137,2137,2837,2837,2560,2560,2415,2480,2566,2679,1,null,{"$f":"IF(T_DataComboFile[[#This Row],[G&S reporting level indicator]]=1,$AX$16,\"Not applicable\")","v":"Level 3"},{"$f":"IF(AND($AX$16=\"Level 3\",T_DataComboFile[[#This Row],[Econ3]] = \"Goods and services\"),IF(T_DataComboFile[[#This Row],[Econ4]] = T_DataComboFile[[#This Row],[Econ3]],1,0),IF(AND($AX$16=\"Level 4\",T_DataComboFile[[#This Row],[Econ4]] = \"Goods and services\"),0,1))","v":1},{"$f":"T_DataComboFile[[#This Row],[2016/17_Source]]*T_DataComboFile[[#This Row],[G&S reporting level indicator]]","v":955},{"$f":"T_DataComboFile[[#This Row],[2017/18_Source]]*T_DataComboFile[[#This Row],[G&S reporting level indicator]]","v":3582},{"$f":"T_DataComboFile[[#This Row],[2018/19_Source]]*T_DataComboFile[[#This Row],[G&S reporting level indicator]]","v":2995},{"$f":"T_DataComboFile[[#This Row],[2019/20 Main appropriation_Source]]*T_DataComboFile[[#This Row],[G&S reporting level indicator]]","v":2137},{"$f":"T_DataComboFile[[#This Row],[2019/20 Adjusted appropriation_Source]]*T_DataComboFile[[#This Row],[G&S reporting level indicator]]","v":2137},{"$f":"T_DataComboFile[[#This Row],[2019/20 Revised estimate_Source]]*T_DataComboFile[[#This Row],[G&S reporting level indicator]]","v":2837},{"$f":"T_DataComboFile[[#This Row],[2019/20 Preliminary outcome_Source]]*T_DataComboFile[[#This Row],[G&S reporting level indicator]]","v":2837},{"$f":"T_DataComboFile[[#This Row],[2020/21 Original_Source]]*T_DataComboFile[[#This Row],[G&S reporting level indicator]]","v":2560},{"$f":"T_DataComboFile[[#This Row],[2020/21 SAB_Source]]*T_DataComboFile[[#This Row],[G&S reporting level indicator]]","v":2560},{"$f":"T_DataComboFile[[#This Row],[2020/21 Baseline_Source]]*T_DataComboFile[[#This Row],[G&S reporting level indicator]]","v":2415},{"$f":"T_DataComboFile[[#This Row],[2021/22 Baseline_Source]]*T_DataComboFile[[#This Row],[G&S reporting level indicator]]","v":2480},{"$f":"T_DataComboFile[[#This Row],[2022/23 Baseline_Source]]*T_DataComboFile[[#This Row],[G&S reporting level indicator]]","v":2566},{"$f":"T_DataComboFile[[#This Row],[2023/24 Baseline_Source]]*T_DataComboFile[[#This Row],[G&S reporting level indicator]]","v":2679},null,null,null,null,null,null,{"$f":"T_DataComboFile[[#This Row],[2021/22 Baseline]]+T_DataComboFile[[#This Row],[2021/22 Reduction]]+T_DataComboFile[[#This Row],[2021/22 Increase]]","v":2480},{"$f":"T_DataComboFile[[#This Row],[2022/23 Baseline]]+T_DataComboFile[[#This Row],[2022/23 Reduction]]+T_DataComboFile[[#This Row],[2022/23 Increase]]","v":2566},{"$f":"T_DataComboFile[[#This Row],[2023/24 Baseline]]+T_DataComboFile[[#This Row],[2023/24 Reduction]]+T_DataComboFile[[#This Row],[2023/24 Increase]]","v":2679}]
["NAT|Non-transfer item","36|Social contributions","2021_22","ENE2020",36,1,5,17264,70380,36,1,5,17264,"070380","36|01|05",1,1,1,2,2,"01|01|01|02|02","National","Small Business Development","Administration","Communications","Non-transfer item","Current","Current payments","Compensation of employees","Social contributions","Social contributions","Economic development","Industrialisation and exports","NAT",69,490,507,358,358,358,358,302,302,285,295,311,325,1,null,{"$f":"IF(T_DataComboFile[[#This Row],[G&S reporting level indicator]]=1,$AX$16,\"Not applicable\")","v":"Level 3"},{"$f":"IF(AND($AX$16=\"Level 3\",T_DataComboFile[[#This Row],[Econ3]] = \"Goods and services\"),IF(T_DataComboFile[[#This Row],[Econ4]] = T_DataComboFile[[#This Row],[Econ3]],1,0),IF(AND($AX$16=\"Level 4\",T_DataComboFile[[#This Row],[Econ4]] = \"Goods and services\"),0,1))","v":1},{"$f":"T_DataComboFile[[#This Row],[2016/17_Source]]*T_DataComboFile[[#This Row],[G&S reporting level indicator]]","v":69},{"$f":"T_DataComboFile[[#This Row],[2017/18_Source]]*T_DataComboFile[[#This Row],[G&S reporting level indicator]]","v":490},{"$f":"T_DataComboFile[[#This Row],[2018/19_Source]]*T_DataComboFile[[#This Row],[G&S reporting level indicator]]","v":507},{"$f":"T_DataComboFile[[#This Row],[2019/20 Main appropriation_Source]]*T_DataComboFile[[#This Row],[G&S reporting level indicator]]","v":358},{"$f":"T_DataComboFile[[#This Row],[2019/20 Adjusted appropriation_Source]]*T_DataComboFile[[#This Row],[G&S reporting level indicator]]","v":358},{"$f":"T_DataComboFile[[#This Row],[2019/20 Revised estimate_Source]]*T_DataComboFile[[#This Row],[G&S reporting level indicator]]","v":358},{"$f":"T_DataComboFile[[#This Row],[2019/20 Preliminary outcome_Source]]*T_DataComboFile[[#This Row],[G&S reporting level indicator]]","v":358},{"$f":"T_DataComboFile[[#This Row],[2020/21 Original_Source]]*T_DataComboFile[[#This Row],[G&S reporting level indicator]]","v":302},{"$f":"T_DataComboFile[[#This Row],[2020/21 SAB_Source]]*T_DataComboFile[[#This Row],[G&S reporting level indicator]]","v":302},{"$f":"T_DataComboFile[[#This Row],[2020/21 Baseline_Source]]*T_DataComboFile[[#This Row],[G&S reporting level indicator]]","v":285},{"$f":"T_DataComboFile[[#This Row],[2021/22 Baseline_Source]]*T_DataComboFile[[#This Row],[G&S reporting level indicator]]","v":295},{"$f":"T_DataComboFile[[#This Row],[2022/23 Baseline_Source]]*T_DataComboFile[[#This Row],[G&S reporting level indicator]]","v":311},{"$f":"T_DataComboFile[[#This Row],[2023/24 Baseline_Source]]*T_DataComboFile[[#This Row],[G&S reporting level indicator]]","v":325},null,null,null,null,null,null,{"$f":"T_DataComboFile[[#This Row],[2021/22 Baseline]]+T_DataComboFile[[#This Row],[2021/22 Reduction]]+T_DataComboFile[[#This Row],[2021/22 Increase]]","v":295},{"$f":"T_DataComboFile[[#This Row],[2022/23 Baseline]]+T_DataComboFile[[#This Row],[2022/23 Reduction]]+T_DataComboFile[[#This Row],[2022/23 Increase]]","v":311},{"$f":"T_DataComboFile[[#This Row],[2023/24 Baseline]]+T_DataComboFile[[#This Row],[2023/24 Reduction]]+T_DataComboFile[[#This Row],[2023/24 Increase]]","v":325}]
[null,null,"2021_22","ENE2020",36,1,5,null,70381,36,1,5,null,"070381","36|01|05",1,1,2,2,2,"01|01|02|02|02","National","Small Business Development","Administration","Communications","Non-transfer item","Current","Current payments","Goods and services","Goods and services","Goods and services","Economic development","Industrialisation and exports","NAT",5288,3644,2923,2417,2417,2417,2417,4406,4006,4406,4624,4823,5036,1,null,{"$f":"IF(T_DataComboFile[[#This Row],[G&S reporting level indicator]]=1,$AX$16,\"Not applicable\")","v":"Level 3"},{"$f":"IF(AND($AX$16=\"Level 3\",T_DataComboFile[[#This Row],[Econ3]] = \"Goods and services\"),IF(T_DataComboFile[[#This Row],[Econ4]] = T_DataComboFile[[#This Row],[Econ3]],1,0),IF(AND($AX$16=\"Level 4\",T_DataComboFile[[#This Row],[Econ4]] = \"Goods and services\"),0,1))","v":1},{"$f":"T_DataComboFile[[#This Row],[2016/17_Source]]*T_DataComboFile[[#This Row],[G&S reporting level indicator]]","v":5288},{"$f":"T_DataComboFile[[#This Row],[2017/18_Source]]*T_DataComboFile[[#This Row],[G&S reporting level indicator]]","v":3644},{"$f":"T_DataComboFile[[#This Row],[2018/19_Source]]*T_DataComboFile[[#This Row],[G&S reporting level indicator]]","v":2923},{"$f":"T_DataComboFile[[#This Row],[2019/20 Main appropriation_Source]]*T_DataComboFile[[#This Row],[G&S reporting level indicator]]","v":2417},{"$f":"T_DataComboFile[[#This Row],[2019/20 Adjusted appropriation_Source]]*T_DataComboFile[[#This Row],[G&S reporting level indicator]]","v":2417},{"$f":"T_DataComboFile[[#This Row],[2019/20 Revised estimate_Source]]*T_DataComboFile[[#This Row],[G&S reporting level indicator]]","v":2417},{"$f":"T_DataComboFile[[#This Row],[2019/20 Preliminary outcome_Source]]*T_DataComboFile[[#This Row],[G&S reporting level indicator]]","v":2417},{"$f":"T_DataComboFile[[#This Row],[2020/21 Original_Source]]*T_DataComboFile[[#This Row],[G&S reporting level indicator]]","v":4406},{"$f":"T_DataComboFile[[#This Row],[2020/21 SAB_Source]]*T_DataComboFile[[#This Row],[G&S reporting level indicator]]","v":4006},{"$f":"T_DataComboFile[[#This Row],[2020/21 Baseline_Source]]*T_DataComboFile[[#This Row],[G&S reporting level indicator]]","v":4406},{"$f":"T_DataComboFile[[#This Row],[2021/22 Baseline_Source]]*T_DataComboFile[[#This Row],[G&S reporting level indicator]]","v":4624},{"$f":"T_DataComboFile[[#This Row],[2022/23 Baseline_Source]]*T_DataComboFile[[#This Row],[G&S reporting level indicator]]","v":4823},{"$f":"T_DataComboFile[[#This Row],[2023/24 Baseline_Source]]*T_DataComboFile[[#This Row],[G&S reporting level indicator]]","v":5036},null,null,null,null,null,null,{"$f":"T_DataComboFile[[#This Row],[2021/22 Baseline]]+T_DataComboFile[[#This Row],[2021/22 Reduction]]+T_DataComboFile[[#This Row],[2021/22 Increase]]","v":4624},{"$f":"T_DataComboFile[[#This Row],[2022/23 Baseline]]+T_DataComboFile[[#This Row],[2022/23 Reduction]]+T_DataComboFile[[#This Row],[2022/23 Increase]]","v":4823},{"$f":"T_DataComboFile[[#This Row],[2023/24 Baseline]]+T_DataComboFile[[#This Row],[2023/24 Reduction]]+T_DataComboFile[[#This Row],[2023/24 Increase]]","v":5036}]
["NAT|Non-transfer item","36|Administrative fees","2021_22","ENE2020",36,1,5,17265,70382,36,1,5,17265,"070382","36|01|05",1,1,2,3,3,"01|01|02|03|03","National","Small Business Development","Administration","Communications","Non-transfer item","Current","Current payments","Goods and services","Administrative fees","Administrative fees","Economic development","Industrialisation and exports","NAT",40,49,33,52,52,52,52,38,38,38,40,42,44,1,null,{"$f":"IF(T_DataComboFile[[#This Row],[G&S reporting level indicator]]=1,$AX$16,\"Not applicable\")","v":"Not applicable"},{"$f":"IF(AND($AX$16=\"Level 3\",T_DataComboFile[[#This Row],[Econ3]] = \"Goods and services\"),IF(T_DataComboFile[[#This Row],[Econ4]] = T_DataComboFile[[#This Row],[Econ3]],1,0),IF(AND($AX$16=\"Level 4\",T_DataComboFile[[#This Row],[Econ4]] = \"Goods and services\"),0,1))","v":0},{"$f":"T_DataComboFile[[#This Row],[2016/17_Source]]*T_DataComboFile[[#This Row],[G&S reporting level indicator]]","v":0},{"$f":"T_DataComboFile[[#This Row],[2017/18_Source]]*T_DataComboFile[[#This Row],[G&S reporting level indicator]]","v":0},{"$f":"T_DataComboFile[[#This Row],[2018/19_Source]]*T_DataComboFile[[#This Row],[G&S reporting level indicator]]","v":0},{"$f":"T_DataComboFile[[#This Row],[2019/20 Main appropriation_Source]]*T_DataComboFile[[#This Row],[G&S reporting level indicator]]","v":0},{"$f":"T_DataComboFile[[#This Row],[2019/20 Adjusted appropriation_Source]]*T_DataComboFile[[#This Row],[G&S reporting level indicator]]","v":0},{"$f":"T_DataComboFile[[#This Row],[2019/20 Revised estimate_Source]]*T_DataComboFile[[#This Row],[G&S reporting level indicator]]","v":0},{"$f":"T_DataComboFile[[#This Row],[2019/20 Preliminary outcome_Source]]*T_DataComboFile[[#This Row],[G&S reporting level indicator]]","v":0},{"$f":"T_DataComboFile[[#This Row],[2020/21 Original_Source]]*T_DataComboFile[[#This Row],[G&S reporting level indicator]]","v":0},{"$f":"T_DataComboFile[[#This Row],[2020/21 SAB_Source]]*T_DataComboFile[[#This Row],[G&S reporting level indicator]]","v":0},{"$f":"T_DataComboFile[[#This Row],[2020/21 Baseline_Source]]*T_DataComboFile[[#This Row],[G&S reporting level indicator]]","v":0},{"$f":"T_DataComboFile[[#This Row],[2021/22 Baseline_Source]]*T_DataComboFile[[#This Row],[G&S reporting level indicator]]","v":0},{"$f":"T_DataComboFile[[#This Row],[2022/23 Baseline_Source]]*T_DataComboFile[[#This Row],[G&S reporting level indicator]]","v":0},{"$f":"T_DataComboFile[[#This Row],[2023/24 Baseline_Source]]*T_DataComboFile[[#This Row],[G&S reporting level indicator]]","v":0},null,null,null,null,null,null,{"$f":"T_DataComboFile[[#This Row],[2021/22 Baseline]]+T_DataComboFile[[#This Row],[2021/22 Reduction]]+T_DataComboFile[[#This Row],[2021/22 Increase]]","v":0},{"$f":"T_DataComboFile[[#This Row],[2022/23 Baseline]]+T_DataComboFile[[#This Row],[2022/23 Reduction]]+T_DataComboFile[[#This Row],[2022/23 Increase]]","v":0},{"$f":"T_DataComboFile[[#This Row],[2023/24 Baseline]]+T_DataComboFile[[#This Row],[2023/24 Reduction]]+T_DataComboFile[[#This Row],[2023/24 Increase]]","v":0}]
["NAT|Non-transfer item","36|Advertising","2021_22","ENE2020",36,1,5,17266,70383,36,1,5,17266,"070383","36|01|05",1,1,2,4,4,"01|01|02|04|04","National","Small Business Development","Administration","Communications","Non-transfer item","Current","Current payments","Goods and services","Advertising","Advertising","Economic development","Industrialisation and exports","NAT",2016,1337,232,750,390,390,390,2050,2050,2050,2153,2260,2360,1,null,{"$f":"IF(T_DataComboFile[[#This Row],[G&S reporting level indicator]]=1,$AX$16,\"Not applicable\")","v":"Not applicable"},{"$f":"IF(AND($AX$16=\"Level 3\",T_DataComboFile[[#This Row],[Econ3]] = \"Goods and services\"),IF(T_DataComboFile[[#This Row],[Econ4]] = T_DataComboFile[[#This Row],[Econ3]],1,0),IF(AND($AX$16=\"Level 4\",T_DataComboFile[[#This Row],[Econ4]] = \"Goods and services\"),0,1))","v":0},{"$f":"T_DataComboFile[[#This Row],[2016/17_Source]]*T_DataComboFile[[#This Row],[G&S reporting level indicator]]","v":0},{"$f":"T_DataComboFile[[#This Row],[2017/18_Source]]*T_DataComboFile[[#This Row],[G&S reporting level indicator]]","v":0},{"$f":"T_DataComboFile[[#This Row],[2018/19_Source]]*T_DataComboFile[[#This Row],[G&S reporting level indicator]]","v":0},{"$f":"T_DataComboFile[[#This Row],[2019/20 Main appropriation_Source]]*T_DataComboFile[[#This Row],[G&S reporting level indicator]]","v":0},{"$f":"T_DataComboFile[[#This Row],[2019/20 Adjusted appropriation_Source]]*T_DataComboFile[[#This Row],[G&S reporting level indicator]]","v":0},{"$f":"T_DataComboFile[[#This Row],[2019/20 Revised estimate_Source]]*T_DataComboFile[[#This Row],[G&S reporting level indicator]]","v":0},{"$f":"T_DataComboFile[[#This Row],[2019/20 Preliminary outcome_Source]]*T_DataComboFile[[#This Row],[G&S reporting level indicator]]","v":0},{"$f":"T_DataComboFile[[#This Row],[2020/21 Original_Source]]*T_DataComboFile[[#This Row],[G&S reporting level indicator]]","v":0},{"$f":"T_DataComboFile[[#This Row],[2020/21 SAB_Source]]*T_DataComboFile[[#This Row],[G&S reporting level indicator]]","v":0},{"$f":"T_DataComboFile[[#This Row],[2020/21 Baseline_Source]]*T_DataComboFile[[#This Row],[G&S reporting level indicator]]","v":0},{"$f":"T_DataComboFile[[#This Row],[2021/22 Baseline_Source]]*T_DataComboFile[[#This Row],[G&S reporting level indicator]]","v":0},{"$f":"T_DataComboFile[[#This Row],[2022/23 Baseline_Source]]*T_DataComboFile[[#This Row],[G&S reporting level indicator]]","v":0},{"$f":"T_DataComboFile[[#This Row],[2023/24 Baseline_Source]]*T_DataComboFile[[#This Row],[G&S reporting level indicator]]","v":0},null,null,null,null,null,null,{"$f":"T_DataComboFile[[#This Row],[2021/22 Baseline]]+T_DataComboFile[[#This Row],[2021/22 Reduction]]+T_DataComboFile[[#This Row],[2021/22 Increase]]","v":0},{"$f":"T_DataComboFile[[#This Row],[2022/23 Baseline]]+T_DataComboFile[[#This Row],[2022/23 Reduction]]+T_DataComboFile[[#This Row],[2022/23 Increase]]","v":0},{"$f":"T_DataComboFile[[#This Row],[2023/24 Baseline]]+T_DataComboFile[[#This Row],[2023/24 Reduction]]+T_DataComboFile[[#This Row],[2023/24 Increase]]","v":0}]
["NAT|Non-transfer item","36|Minor assets","2021_22","ENE2020",36,1,5,17267,70384,36,1,5,17267,"070384","36|01|05",1,1,2,5,5,"01|01|02|05|05","National","Small Business Development","Administration","Communications","Non-transfer item","Current","Current payments","Goods and services","Minor assets","Minor assets","Economic development","Industrialisation and exports","NAT",7,0,0,0,0,0,0,0,0,0,0,0,0,1,null,{"$f":"IF(T_DataComboFile[[#This Row],[G&S reporting level indicator]]=1,$AX$16,\"Not applicable\")","v":"Not applicable"},{"$f":"IF(AND($AX$16=\"Level 3\",T_DataComboFile[[#This Row],[Econ3]] = \"Goods and services\"),IF(T_DataComboFile[[#This Row],[Econ4]] = T_DataComboFile[[#This Row],[Econ3]],1,0),IF(AND($AX$16=\"Level 4\",T_DataComboFile[[#This Row],[Econ4]] = \"Goods and services\"),0,1))","v":0},{"$f":"T_DataComboFile[[#This Row],[2016/17_Source]]*T_DataComboFile[[#This Row],[G&S reporting level indicator]]","v":0},{"$f":"T_DataComboFile[[#This Row],[2017/18_Source]]*T_DataComboFile[[#This Row],[G&S reporting level indicator]]","v":0},{"$f":"T_DataComboFile[[#This Row],[2018/19_Source]]*T_DataComboFile[[#This Row],[G&S reporting level indicator]]","v":0},{"$f":"T_DataComboFile[[#This Row],[2019/20 Main appropriation_Source]]*T_DataComboFile[[#This Row],[G&S reporting level indicator]]","v":0},{"$f":"T_DataComboFile[[#This Row],[2019/20 Adjusted appropriation_Source]]*T_DataComboFile[[#This Row],[G&S reporting level indicator]]","v":0},{"$f":"T_DataComboFile[[#This Row],[2019/20 Revised estimate_Source]]*T_DataComboFile[[#This Row],[G&S reporting level indicator]]","v":0},{"$f":"T_DataComboFile[[#This Row],[2019/20 Preliminary outcome_Source]]*T_DataComboFile[[#This Row],[G&S reporting level indicator]]","v":0},{"$f":"T_DataComboFile[[#This Row],[2020/21 Original_Source]]*T_DataComboFile[[#This Row],[G&S reporting level indicator]]","v":0},{"$f":"T_DataComboFile[[#This Row],[2020/21 SAB_Source]]*T_DataComboFile[[#This Row],[G&S reporting level indicator]]","v":0},{"$f":"T_DataComboFile[[#This Row],[2020/21 Baseline_Source]]*T_DataComboFile[[#This Row],[G&S reporting level indicator]]","v":0},{"$f":"T_DataComboFile[[#This Row],[2021/22 Baseline_Source]]*T_DataComboFile[[#This Row],[G&S reporting level indicator]]","v":0},{"$f":"T_DataComboFile[[#This Row],[2022/23 Baseline_Source]]*T_DataComboFile[[#This Row],[G&S reporting level indicator]]","v":0},{"$f":"T_DataComboFile[[#This Row],[2023/24 Baseline_Source]]*T_DataComboFile[[#This Row],[G&S reporting level indicator]]","v":0},null,null,null,null,null,null,{"$f":"T_DataComboFile[[#This Row],[2021/22 Baseline]]+T_DataComboFile[[#This Row],[2021/22 Reduction]]+T_DataComboFile[[#This Row],[2021/22 Increase]]","v":0},{"$f":"T_DataComboFile[[#This Row],[2022/23 Baseline]]+T_DataComboFile[[#This Row],[2022/23 Reduction]]+T_DataComboFile[[#This Row],[2022/23 Increase]]","v":0},{"$f":"T_DataComboFile[[#This Row],[2023/24 Baseline]]+T_DataComboFile[[#This Row],[2023/24 Reduction]]+T_DataComboFile[[#This Row],[2023/24 Increase]]","v":0}]
[null,null,"2021_22","ENE2020",36,1,5,null,70385,36,1,5,null,"070385","36|01|05",1,1,2,6,6,"01|01|02|06|06","National","Small Business Development","Administration","Communications",null,"Current","Current payments","Goods and services","Audit costs: External","Audit costs: External",null,null,null,0,0,0,0,0,0,0,0,0,0,0,0,0,0,null,{"$f":"IF(T_DataComboFile[[#This Row],[G&S reporting level indicator]]=1,$AX$16,\"Not applicable\")","v":"Not applicable"},{"$f":"IF(AND($AX$16=\"Level 3\",T_DataComboFile[[#This Row],[Econ3]] = \"Goods and services\"),IF(T_DataComboFile[[#This Row],[Econ4]] = T_DataComboFile[[#This Row],[Econ3]],1,0),IF(AND($AX$16=\"Level 4\",T_DataComboFile[[#This Row],[Econ4]] = \"Goods and services\"),0,1))","v":0},{"$f":"T_DataComboFile[[#This Row],[2016/17_Source]]*T_DataComboFile[[#This Row],[G&S reporting level indicator]]","v":0},{"$f":"T_DataComboFile[[#This Row],[2017/18_Source]]*T_DataComboFile[[#This Row],[G&S reporting level indicator]]","v":0},{"$f":"T_DataComboFile[[#This Row],[2018/19_Source]]*T_DataComboFile[[#This Row],[G&S reporting level indicator]]","v":0},{"$f":"T_DataComboFile[[#This Row],[2019/20 Main appropriation_Source]]*T_DataComboFile[[#This Row],[G&S reporting level indicator]]","v":0},{"$f":"T_DataComboFile[[#This Row],[2019/20 Adjusted appropriation_Source]]*T_DataComboFile[[#This Row],[G&S reporting level indicator]]","v":0},{"$f":"T_DataComboFile[[#This Row],[2019/20 Revised estimate_Source]]*T_DataComboFile[[#This Row],[G&S reporting level indicator]]","v":0},{"$f":"T_DataComboFile[[#This Row],[2019/20 Preliminary outcome_Source]]*T_DataComboFile[[#This Row],[G&S reporting level indicator]]","v":0},{"$f":"T_DataComboFile[[#This Row],[2020/21 Original_Source]]*T_DataComboFile[[#This Row],[G&S reporting level indicator]]","v":0},{"$f":"T_DataComboFile[[#This Row],[2020/21 SAB_Source]]*T_DataComboFile[[#This Row],[G&S reporting level indicator]]","v":0},{"$f":"T_DataComboFile[[#This Row],[2020/21 Baseline_Source]]*T_DataComboFile[[#This Row],[G&S reporting level indicator]]","v":0},{"$f":"T_DataComboFile[[#This Row],[2021/22 Baseline_Source]]*T_DataComboFile[[#This Row],[G&S reporting level indicator]]","v":0},{"$f":"T_DataComboFile[[#This Row],[2022/23 Baseline_Source]]*T_DataComboFile[[#This Row],[G&S reporting level indicator]]","v":0},{"$f":"T_DataComboFile[[#This Row],[2023/24 Baseline_Source]]*T_DataComboFile[[#This Row],[G&S reporting level indicator]]","v":0},null,null,null,null,null,null,{"$f":"T_DataComboFile[[#This Row],[2021/22 Baseline]]+T_DataComboFile[[#This Row],[2021/22 Reduction]]+T_DataComboFile[[#This Row],[2021/22 Increase]]","v":0},{"$f":"T_DataComboFile[[#This Row],[2022/23 Baseline]]+T_DataComboFile[[#This Row],[2022/23 Reduction]]+T_DataComboFile[[#This Row],[2022/23 Increase]]","v":0},{"$f":"T_DataComboFile[[#This Row],[2023/24 Baseline]]+T_DataComboFile[[#This Row],[2023/24 Reduction]]+T_DataComboFile[[#This Row],[2023/24 Increase]]","v":0}]
[null,null,"2021_22","ENE2020",36,1,5,null,70386,36,1,5,null,"070386","36|01|05",1,1,2,7,7,"01|01|02|07|07","National","Small Business Development","Administration","Communications",null,"Current","Current payments","Goods and services","Bursaries: Employees","Bursaries: Employees",null,null,null,0,0,0,0,0,0,0,0,0,0,0,0,0,0,null,{"$f":"IF(T_DataComboFile[[#This Row],[G&S reporting level indicator]]=1,$AX$16,\"Not applicable\")","v":"Not applicable"},{"$f":"IF(AND($AX$16=\"Level 3\",T_DataComboFile[[#This Row],[Econ3]] = \"Goods and services\"),IF(T_DataComboFile[[#This Row],[Econ4]] = T_DataComboFile[[#This Row],[Econ3]],1,0),IF(AND($AX$16=\"Level 4\",T_DataComboFile[[#This Row],[Econ4]] = \"Goods and services\"),0,1))","v":0},{"$f":"T_DataComboFile[[#This Row],[2016/17_Source]]*T_DataComboFile[[#This Row],[G&S reporting level indicator]]","v":0},{"$f":"T_DataComboFile[[#This Row],[2017/18_Source]]*T_DataComboFile[[#This Row],[G&S reporting level indicator]]","v":0},{"$f":"T_DataComboFile[[#This Row],[2018/19_Source]]*T_DataComboFile[[#This Row],[G&S reporting level indicator]]","v":0},{"$f":"T_DataComboFile[[#This Row],[2019/20 Main appropriation_Source]]*T_DataComboFile[[#This Row],[G&S reporting level indicator]]","v":0},{"$f":"T_DataComboFile[[#This Row],[2019/20 Adjusted appropriation_Source]]*T_DataComboFile[[#This Row],[G&S reporting level indicator]]","v":0},{"$f":"T_DataComboFile[[#This Row],[2019/20 Revised estimate_Source]]*T_DataComboFile[[#This Row],[G&S reporting level indicator]]","v":0},{"$f":"T_DataComboFile[[#This Row],[2019/20 Preliminary outcome_Source]]*T_DataComboFile[[#This Row],[G&S reporting level indicator]]","v":0},{"$f":"T_DataComboFile[[#This Row],[2020/21 Original_Source]]*T_DataComboFile[[#This Row],[G&S reporting level indicator]]","v":0},{"$f":"T_DataComboFile[[#This Row],[2020/21 SAB_Source]]*T_DataComboFile[[#This Row],[G&S reporting level indicator]]","v":0},{"$f":"T_DataComboFile[[#This Row],[2020/21 Baseline_Source]]*T_DataComboFile[[#This Row],[G&S reporting level indicator]]","v":0},{"$f":"T_DataComboFile[[#This Row],[2021/22 Baseline_Source]]*T_DataComboFile[[#This Row],[G&S reporting level indicator]]","v":0},{"$f":"T_DataComboFile[[#This Row],[2022/23 Baseline_Source]]*T_DataComboFile[[#This Row],[G&S reporting level indicator]]","v":0},{"$f":"T_DataComboFile[[#This Row],[2023/24 Baseline_Source]]*T_DataComboFile[[#This Row],[G&S reporting level indicator]]","v":0},null,null,null,null,null,null,{"$f":"T_DataComboFile[[#This Row],[2021/22 Baseline]]+T_DataComboFile[[#This Row],[2021/22 Reduction]]+T_DataComboFile[[#This Row],[2021/22 Increase]]","v":0},{"$f":"T_DataComboFile[[#This Row],[2022/23 Baseline]]+T_DataComboFile[[#This Row],[2022/23 Reduction]]+T_DataComboFile[[#This Row],[2022/23 Increase]]","v":0},{"$f":"T_DataComboFile[[#This Row],[2023/24 Baseline]]+T_DataComboFile[[#This Row],[2023/24 Reduction]]+T_DataComboFile[[#This Row],[2023/24 Increase]]","v":0}]
["NAT|Non-transfer item","36|Catering: Departmental activities","2021_22","ENE2020",36,1,5,17268,70387,36,1,5,17268,"070387","36|01|05",1,1,2,8,8,"01|01|02|08|08","National","Small Business Development","Administration","Communications","Non-transfer item","Current","Current payments","Goods and services","Catering: Departmental activities","Catering: Departmental activities","Economic development","Industrialisation and exports","NAT",946,653,402,486,486,486,486,512,512,512,530,541,565,1,null,{"$f":"IF(T_DataComboFile[[#This Row],[G&S reporting level indicator]]=1,$AX$16,\"Not applicable\")","v":"Not applicable"},{"$f":"IF(AND($AX$16=\"Level 3\",T_DataComboFile[[#This Row],[Econ3]] = \"Goods and services\"),IF(T_DataComboFile[[#This Row],[Econ4]] = T_DataComboFile[[#This Row],[Econ3]],1,0),IF(AND($AX$16=\"Level 4\",T_DataComboFile[[#This Row],[Econ4]] = \"Goods and services\"),0,1))","v":0},{"$f":"T_DataComboFile[[#This Row],[2016/17_Source]]*T_DataComboFile[[#This Row],[G&S reporting level indicator]]","v":0},{"$f":"T_DataComboFile[[#This Row],[2017/18_Source]]*T_DataComboFile[[#This Row],[G&S reporting level indicator]]","v":0},{"$f":"T_DataComboFile[[#This Row],[2018/19_Source]]*T_DataComboFile[[#This Row],[G&S reporting level indicator]]","v":0},{"$f":"T_DataComboFile[[#This Row],[2019/20 Main appropriation_Source]]*T_DataComboFile[[#This Row],[G&S reporting level indicator]]","v":0},{"$f":"T_DataComboFile[[#This Row],[2019/20 Adjusted appropriation_Source]]*T_DataComboFile[[#This Row],[G&S reporting level indicator]]","v":0},{"$f":"T_DataComboFile[[#This Row],[2019/20 Revised estimate_Source]]*T_DataComboFile[[#This Row],[G&S reporting level indicator]]","v":0},{"$f":"T_DataComboFile[[#This Row],[2019/20 Preliminary outcome_Source]]*T_DataComboFile[[#This Row],[G&S reporting level indicator]]","v":0},{"$f":"T_DataComboFile[[#This Row],[2020/21 Original_Source]]*T_DataComboFile[[#This Row],[G&S reporting level indicator]]","v":0},{"$f":"T_DataComboFile[[#This Row],[2020/21 SAB_Source]]*T_DataComboFile[[#This Row],[G&S reporting level indicator]]","v":0},{"$f":"T_DataComboFile[[#This Row],[2020/21 Baseline_Source]]*T_DataComboFile[[#This Row],[G&S reporting level indicator]]","v":0},{"$f":"T_DataComboFile[[#This Row],[2021/22 Baseline_Source]]*T_DataComboFile[[#This Row],[G&S reporting level indicator]]","v":0},{"$f":"T_DataComboFile[[#This Row],[2022/23 Baseline_Source]]*T_DataComboFile[[#This Row],[G&S reporting level indicator]]","v":0},{"$f":"T_DataComboFile[[#This Row],[2023/24 Baseline_Source]]*T_DataComboFile[[#This Row],[G&S reporting level indicator]]","v":0},null,null,null,null,null,null,{"$f":"T_DataComboFile[[#This Row],[2021/22 Baseline]]+T_DataComboFile[[#This Row],[2021/22 Reduction]]+T_DataComboFile[[#This Row],[2021/22 Increase]]","v":0},{"$f":"T_DataComboFile[[#This Row],[2022/23 Baseline]]+T_DataComboFile[[#This Row],[2022/23 Reduction]]+T_DataComboFile[[#This Row],[2022/23 Increase]]","v":0},{"$f":"T_DataComboFile[[#This Row],[2023/24 Baseline]]+T_DataComboFile[[#This Row],[2023/24 Reduction]]+T_DataComboFile[[#This Row],[2023/24 Increase]]","v":0}]
["NAT|Non-transfer item","36|Communication (G&S)","2021_22","ENE2020",36,1,5,17269,70388,36,1,5,17269,"070388","36|01|05",1,1,2,9,9,"01|01|02|09|09","National","Small Business Development","Administration","Communications","Non-transfer item","Current","Current payments","Goods and services","Communication (G&S)","Communication (G&S)","Economic development","Industrialisation and exports","NAT",79,39,34,33,23,23,23,41,41,41,42,44,46,1,null,{"$f":"IF(T_DataComboFile[[#This Row],[G&S reporting level indicator]]=1,$AX$16,\"Not applicable\")","v":"Not applicable"},{"$f":"IF(AND($AX$16=\"Level 3\",T_DataComboFile[[#This Row],[Econ3]] = \"Goods and services\"),IF(T_DataComboFile[[#This Row],[Econ4]] = T_DataComboFile[[#This Row],[Econ3]],1,0),IF(AND($AX$16=\"Level 4\",T_DataComboFile[[#This Row],[Econ4]] = \"Goods and services\"),0,1))","v":0},{"$f":"T_DataComboFile[[#This Row],[2016/17_Source]]*T_DataComboFile[[#This Row],[G&S reporting level indicator]]","v":0},{"$f":"T_DataComboFile[[#This Row],[2017/18_Source]]*T_DataComboFile[[#This Row],[G&S reporting level indicator]]","v":0},{"$f":"T_DataComboFile[[#This Row],[2018/19_Source]]*T_DataComboFile[[#This Row],[G&S reporting level indicator]]","v":0},{"$f":"T_DataComboFile[[#This Row],[2019/20 Main appropriation_Source]]*T_DataComboFile[[#This Row],[G&S reporting level indicator]]","v":0},{"$f":"T_DataComboFile[[#This Row],[2019/20 Adjusted appropriation_Source]]*T_DataComboFile[[#This Row],[G&S reporting level indicator]]","v":0},{"$f":"T_DataComboFile[[#This Row],[2019/20 Revised estimate_Source]]*T_DataComboFile[[#This Row],[G&S reporting level indicator]]","v":0},{"$f":"T_DataComboFile[[#This Row],[2019/20 Preliminary outcome_Source]]*T_DataComboFile[[#This Row],[G&S reporting level indicator]]","v":0},{"$f":"T_DataComboFile[[#This Row],[2020/21 Original_Source]]*T_DataComboFile[[#This Row],[G&S reporting level indicator]]","v":0},{"$f":"T_DataComboFile[[#This Row],[2020/21 SAB_Source]]*T_DataComboFile[[#This Row],[G&S reporting level indicator]]","v":0},{"$f":"T_DataComboFile[[#This Row],[2020/21 Baseline_Source]]*T_DataComboFile[[#This Row],[G&S reporting level indicator]]","v":0},{"$f":"T_DataComboFile[[#This Row],[2021/22 Baseline_Source]]*T_DataComboFile[[#This Row],[G&S reporting level indicator]]","v":0},{"$f":"T_DataComboFile[[#This Row],[2022/23 Baseline_Source]]*T_DataComboFile[[#This Row],[G&S reporting level indicator]]","v":0},{"$f":"T_DataComboFile[[#This Row],[2023/24 Baseline_Source]]*T_DataComboFile[[#This Row],[G&S reporting level indicator]]","v":0},null,null,null,null,null,null,{"$f":"T_DataComboFile[[#This Row],[2021/22 Baseline]]+T_DataComboFile[[#This Row],[2021/22 Reduction]]+T_DataComboFile[[#This Row],[2021/22 Increase]]","v":0},{"$f":"T_DataComboFile[[#This Row],[2022/23 Baseline]]+T_DataComboFile[[#This Row],[2022/23 Reduction]]+T_DataComboFile[[#This Row],[2022/23 Increase]]","v":0},{"$f":"T_DataComboFile[[#This Row],[2023/24 Baseline]]+T_DataComboFile[[#This Row],[2023/24 Reduction]]+T_DataComboFile[[#This Row],[2023/24 Increase]]","v":0}]
[null,null,"2021_22","ENE2020",36,1,5,null,70389,36,1,5,null,"070389","36|01|05",1,1,2,10,10,"01|01|02|10|10","National","Small Business Development","Administration","Communications",null,"Current","Current payments","Goods and services","Computer services","Computer services",null,null,null,0,0,0,0,0,0,0,0,0,0,0,0,0,0,null,{"$f":"IF(T_DataComboFile[[#This Row],[G&S reporting level indicator]]=1,$AX$16,\"Not applicable\")","v":"Not applicable"},{"$f":"IF(AND($AX$16=\"Level 3\",T_DataComboFile[[#This Row],[Econ3]] = \"Goods and services\"),IF(T_DataComboFile[[#This Row],[Econ4]] = T_DataComboFile[[#This Row],[Econ3]],1,0),IF(AND($AX$16=\"Level 4\",T_DataComboFile[[#This Row],[Econ4]] = \"Goods and services\"),0,1))","v":0},{"$f":"T_DataComboFile[[#This Row],[2016/17_Source]]*T_DataComboFile[[#This Row],[G&S reporting level indicator]]","v":0},{"$f":"T_DataComboFile[[#This Row],[2017/18_Source]]*T_DataComboFile[[#This Row],[G&S reporting level indicator]]","v":0},{"$f":"T_DataComboFile[[#This Row],[2018/19_Source]]*T_DataComboFile[[#This Row],[G&S reporting level indicator]]","v":0},{"$f":"T_DataComboFile[[#This Row],[2019/20 Main appropriation_Source]]*T_DataComboFile[[#This Row],[G&S reporting level indicator]]","v":0},{"$f":"T_DataComboFile[[#This Row],[2019/20 Adjusted appropriation_Source]]*T_DataComboFile[[#This Row],[G&S reporting level indicator]]","v":0},{"$f":"T_DataComboFile[[#This Row],[2019/20 Revised estimate_Source]]*T_DataComboFile[[#This Row],[G&S reporting level indicator]]","v":0},{"$f":"T_DataComboFile[[#This Row],[2019/20 Preliminary outcome_Source]]*T_DataComboFile[[#This Row],[G&S reporting level indicator]]","v":0},{"$f":"T_DataComboFile[[#This Row],[2020/21 Original_Source]]*T_DataComboFile[[#This Row],[G&S reporting level indicator]]","v":0},{"$f":"T_DataComboFile[[#This Row],[2020/21 SAB_Source]]*T_DataComboFile[[#This Row],[G&S reporting level indicator]]","v":0},{"$f":"T_DataComboFile[[#This Row],[2020/21 Baseline_Source]]*T_DataComboFile[[#This Row],[G&S reporting level indicator]]","v":0},{"$f":"T_DataComboFile[[#This Row],[2021/22 Baseline_Source]]*T_DataComboFile[[#This Row],[G&S reporting level indicator]]","v":0},{"$f":"T_DataComboFile[[#This Row],[2022/23 Baseline_Source]]*T_DataComboFile[[#This Row],[G&S reporting level indicator]]","v":0},{"$f":"T_DataComboFile[[#This Row],[2023/24 Baseline_Source]]*T_DataComboFile[[#This Row],[G&S reporting level indicator]]","v":0},null,null,null,null,null,null,{"$f":"T_DataComboFile[[#This Row],[2021/22 Baseline]]+T_DataComboFile[[#This Row],[2021/22 Reduction]]+T_DataComboFile[[#This Row],[2021/22 Increase]]","v":0},{"$f":"T_DataComboFile[[#This Row],[2022/23 Baseline]]+T_DataComboFile[[#This Row],[2022/23 Reduction]]+T_DataComboFile[[#This Row],[2022/23 Increase]]","v":0},{"$f":"T_DataComboFile[[#This Row],[2023/24 Baseline]]+T_DataComboFile[[#This Row],[2023/24 Reduction]]+T_DataComboFile[[#This Row],[2023/24 Increase]]","v":0}]
["NAT|Non-transfer item","36|Consultants: Business and advisory services","2021_22","ENE2020",36,1,5,17270,70390,36,1,5,17270,"070390","36|01|05",1,1,2,11,11,"01|01|02|11|11","National","Small Business Development","Administration","Communications","Non-transfer item","Current","Current payments","Goods and services","Consultants: Business and advisory services","Consultants: Business and advisory services","Economic development","Industrialisation and exports","NAT",0,92,0,0,0,0,0,0,0,0,0,0,0,1,null,{"$f":"IF(T_DataComboFile[[#This Row],[G&S reporting level indicator]]=1,$AX$16,\"Not applicable\")","v":"Not applicable"},{"$f":"IF(AND($AX$16=\"Level 3\",T_DataComboFile[[#This Row],[Econ3]] = \"Goods and services\"),IF(T_DataComboFile[[#This Row],[Econ4]] = T_DataComboFile[[#This Row],[Econ3]],1,0),IF(AND($AX$16=\"Level 4\",T_DataComboFile[[#This Row],[Econ4]] = \"Goods and services\"),0,1))","v":0},{"$f":"T_DataComboFile[[#This Row],[2016/17_Source]]*T_DataComboFile[[#This Row],[G&S reporting level indicator]]","v":0},{"$f":"T_DataComboFile[[#This Row],[2017/18_Source]]*T_DataComboFile[[#This Row],[G&S reporting level indicator]]","v":0},{"$f":"T_DataComboFile[[#This Row],[2018/19_Source]]*T_DataComboFile[[#This Row],[G&S reporting level indicator]]","v":0},{"$f":"T_DataComboFile[[#This Row],[2019/20 Main appropriation_Source]]*T_DataComboFile[[#This Row],[G&S reporting level indicator]]","v":0},{"$f":"T_DataComboFile[[#This Row],[2019/20 Adjusted appropriation_Source]]*T_DataComboFile[[#This Row],[G&S reporting level indicator]]","v":0},{"$f":"T_DataComboFile[[#This Row],[2019/20 Revised estimate_Source]]*T_DataComboFile[[#This Row],[G&S reporting level indicator]]","v":0},{"$f":"T_DataComboFile[[#This Row],[2019/20 Preliminary outcome_Source]]*T_DataComboFile[[#This Row],[G&S reporting level indicator]]","v":0},{"$f":"T_DataComboFile[[#This Row],[2020/21 Original_Source]]*T_DataComboFile[[#This Row],[G&S reporting level indicator]]","v":0},{"$f":"T_DataComboFile[[#This Row],[2020/21 SAB_Source]]*T_DataComboFile[[#This Row],[G&S reporting level indicator]]","v":0},{"$f":"T_DataComboFile[[#This Row],[2020/21 Baseline_Source]]*T_DataComboFile[[#This Row],[G&S reporting level indicator]]","v":0},{"$f":"T_DataComboFile[[#This Row],[2021/22 Baseline_Source]]*T_DataComboFile[[#This Row],[G&S reporting level indicator]]","v":0},{"$f":"T_DataComboFile[[#This Row],[2022/23 Baseline_Source]]*T_DataComboFile[[#This Row],[G&S reporting level indicator]]","v":0},{"$f":"T_DataComboFile[[#This Row],[2023/24 Baseline_Source]]*T_DataComboFile[[#This Row],[G&S reporting level indicator]]","v":0},null,null,null,null,null,null,{"$f":"T_DataComboFile[[#This Row],[2021/22 Baseline]]+T_DataComboFile[[#This Row],[2021/22 Reduction]]+T_DataComboFile[[#This Row],[2021/22 Increase]]","v":0},{"$f":"T_DataComboFile[[#This Row],[2022/23 Baseline]]+T_DataComboFile[[#This Row],[2022/23 Reduction]]+T_DataComboFile[[#This Row],[2022/23 Increase]]","v":0},{"$f":"T_DataComboFile[[#This Row],[2023/24 Baseline]]+T_DataComboFile[[#This Row],[2023/24 Reduction]]+T_DataComboFile[[#This Row],[2023/24 Increase]]","v":0}]
[null,null,"2021_22","ENE2020",36,1,5,null,70391,36,1,5,null,"070391","36|01|05",1,1,2,12,12,"01|01|02|12|12","National","Small Business Development","Administration","Communications",null,"Current","Current payments","Goods and services","Infrastructure and planning services","Infrastructure and planning services",null,null,null,0,0,0,0,0,0,0,0,0,0,0,0,0,0,null,{"$f":"IF(T_DataComboFile[[#This Row],[G&S reporting level indicator]]=1,$AX$16,\"Not applicable\")","v":"Not applicable"},{"$f":"IF(AND($AX$16=\"Level 3\",T_DataComboFile[[#This Row],[Econ3]] = \"Goods and services\"),IF(T_DataComboFile[[#This Row],[Econ4]] = T_DataComboFile[[#This Row],[Econ3]],1,0),IF(AND($AX$16=\"Level 4\",T_DataComboFile[[#This Row],[Econ4]] = \"Goods and services\"),0,1))","v":0},{"$f":"T_DataComboFile[[#This Row],[2016/17_Source]]*T_DataComboFile[[#This Row],[G&S reporting level indicator]]","v":0},{"$f":"T_DataComboFile[[#This Row],[2017/18_Source]]*T_DataComboFile[[#This Row],[G&S reporting level indicator]]","v":0},{"$f":"T_DataComboFile[[#This Row],[2018/19_Source]]*T_DataComboFile[[#This Row],[G&S reporting level indicator]]","v":0},{"$f":"T_DataComboFile[[#This Row],[2019/20 Main appropriation_Source]]*T_DataComboFile[[#This Row],[G&S reporting level indicator]]","v":0},{"$f":"T_DataComboFile[[#This Row],[2019/20 Adjusted appropriation_Source]]*T_DataComboFile[[#This Row],[G&S reporting level indicator]]","v":0},{"$f":"T_DataComboFile[[#This Row],[2019/20 Revised estimate_Source]]*T_DataComboFile[[#This Row],[G&S reporting level indicator]]","v":0},{"$f":"T_DataComboFile[[#This Row],[2019/20 Preliminary outcome_Source]]*T_DataComboFile[[#This Row],[G&S reporting level indicator]]","v":0},{"$f":"T_DataComboFile[[#This Row],[2020/21 Original_Source]]*T_DataComboFile[[#This Row],[G&S reporting level indicator]]","v":0},{"$f":"T_DataComboFile[[#This Row],[2020/21 SAB_Source]]*T_DataComboFile[[#This Row],[G&S reporting level indicator]]","v":0},{"$f":"T_DataComboFile[[#This Row],[2020/21 Baseline_Source]]*T_DataComboFile[[#This Row],[G&S reporting level indicator]]","v":0},{"$f":"T_DataComboFile[[#This Row],[2021/22 Baseline_Source]]*T_DataComboFile[[#This Row],[G&S reporting level indicator]]","v":0},{"$f":"T_DataComboFile[[#This Row],[2022/23 Baseline_Source]]*T_DataComboFile[[#This Row],[G&S reporting level indicator]]","v":0},{"$f":"T_DataComboFile[[#This Row],[2023/24 Baseline_Source]]*T_DataComboFile[[#This Row],[G&S reporting level indicator]]","v":0},null,null,null,null,null,null,{"$f":"T_DataComboFile[[#This Row],[2021/22 Baseline]]+T_DataComboFile[[#This Row],[2021/22 Reduction]]+T_DataComboFile[[#This Row],[2021/22 Increase]]","v":0},{"$f":"T_DataComboFile[[#This Row],[2022/23 Baseline]]+T_DataComboFile[[#This Row],[2022/23 Reduction]]+T_DataComboFile[[#This Row],[2022/23 Increase]]","v":0},{"$f":"T_DataComboFile[[#This Row],[2023/24 Baseline]]+T_DataComboFile[[#This Row],[2023/24 Reduction]]+T_DataComboFile[[#This Row],[2023/24 Increase]]","v":0}]
[null,null,"2021_22","ENE2020",36,1,5,null,70392,36,1,5,null,"070392","36|01|05",1,1,2,13,13,"01|01|02|13|13","National","Small Business Development","Administration","Communications",null,"Current","Current payments","Goods and services","Laboratory services","Laboratory services",null,null,null,0,0,0,0,0,0,0,0,0,0,0,0,0,0,null,{"$f":"IF(T_DataComboFile[[#This Row],[G&S reporting level indicator]]=1,$AX$16,\"Not applicable\")","v":"Not applicable"},{"$f":"IF(AND($AX$16=\"Level 3\",T_DataComboFile[[#This Row],[Econ3]] = \"Goods and services\"),IF(T_DataComboFile[[#This Row],[Econ4]] = T_DataComboFile[[#This Row],[Econ3]],1,0),IF(AND($AX$16=\"Level 4\",T_DataComboFile[[#This Row],[Econ4]] = \"Goods and services\"),0,1))","v":0},{"$f":"T_DataComboFile[[#This Row],[2016/17_Source]]*T_DataComboFile[[#This Row],[G&S reporting level indicator]]","v":0},{"$f":"T_DataComboFile[[#This Row],[2017/18_Source]]*T_DataComboFile[[#This Row],[G&S reporting level indicator]]","v":0},{"$f":"T_DataComboFile[[#This Row],[2018/19_Source]]*T_DataComboFile[[#This Row],[G&S reporting level indicator]]","v":0},{"$f":"T_DataComboFile[[#This Row],[2019/20 Main appropriation_Source]]*T_DataComboFile[[#This Row],[G&S reporting level indicator]]","v":0},{"$f":"T_DataComboFile[[#This Row],[2019/20 Adjusted appropriation_Source]]*T_DataComboFile[[#This Row],[G&S reporting level indicator]]","v":0},{"$f":"T_DataComboFile[[#This Row],[2019/20 Revised estimate_Source]]*T_DataComboFile[[#This Row],[G&S reporting level indicator]]","v":0},{"$f":"T_DataComboFile[[#This Row],[2019/20 Preliminary outcome_Source]]*T_DataComboFile[[#This Row],[G&S reporting level indicator]]","v":0},{"$f":"T_DataComboFile[[#This Row],[2020/21 Original_Source]]*T_DataComboFile[[#This Row],[G&S reporting level indicator]]","v":0},{"$f":"T_DataComboFile[[#This Row],[2020/21 SAB_Source]]*T_DataComboFile[[#This Row],[G&S reporting level indicator]]","v":0},{"$f":"T_DataComboFile[[#This Row],[2020/21 Baseline_Source]]*T_DataComboFile[[#This Row],[G&S reporting level indicator]]","v":0},{"$f":"T_DataComboFile[[#This Row],[2021/22 Baseline_Source]]*T_DataComboFile[[#This Row],[G&S reporting level indicator]]","v":0},{"$f":"T_DataComboFile[[#This Row],[2022/23 Baseline_Source]]*T_DataComboFile[[#This Row],[G&S reporting level indicator]]","v":0},{"$f":"T_DataComboFile[[#This Row],[2023/24 Baseline_Source]]*T_DataComboFile[[#This Row],[G&S reporting level indicator]]","v":0},null,null,null,null,null,null,{"$f":"T_DataComboFile[[#This Row],[2021/22 Baseline]]+T_DataComboFile[[#This Row],[2021/22 Reduction]]+T_DataComboFile[[#This Row],[2021/22 Increase]]","v":0},{"$f":"T_DataComboFile[[#This Row],[2022/23 Baseline]]+T_DataComboFile[[#This Row],[2022/23 Reduction]]+T_DataComboFile[[#This Row],[2022/23 Increase]]","v":0},{"$f":"T_DataComboFile[[#This Row],[2023/24 Baseline]]+T_DataComboFile[[#This Row],[2023/24 Reduction]]+T_DataComboFile[[#This Row],[2023/24 Increase]]","v":0}]
[null,null,"2021_22","ENE2020",36,1,5,null,70393,36,1,5,null,"070393","36|01|05",1,1,2,14,14,"01|01|02|14|14","National","Small Business Development","Administration","Communications",null,"Current","Current payments","Goods and services","Legal services (G&S)","Legal services (G&S)",null,null,null,0,0,0,0,0,0,0,0,0,0,0,0,0,0,null,{"$f":"IF(T_DataComboFile[[#This Row],[G&S reporting level indicator]]=1,$AX$16,\"Not applicable\")","v":"Not applicable"},{"$f":"IF(AND($AX$16=\"Level 3\",T_DataComboFile[[#This Row],[Econ3]] = \"Goods and services\"),IF(T_DataComboFile[[#This Row],[Econ4]] = T_DataComboFile[[#This Row],[Econ3]],1,0),IF(AND($AX$16=\"Level 4\",T_DataComboFile[[#This Row],[Econ4]] = \"Goods and services\"),0,1))","v":0},{"$f":"T_DataComboFile[[#This Row],[2016/17_Source]]*T_DataComboFile[[#This Row],[G&S reporting level indicator]]","v":0},{"$f":"T_DataComboFile[[#This Row],[2017/18_Source]]*T_DataComboFile[[#This Row],[G&S reporting level indicator]]","v":0},{"$f":"T_DataComboFile[[#This Row],[2018/19_Source]]*T_DataComboFile[[#This Row],[G&S reporting level indicator]]","v":0},{"$f":"T_DataComboFile[[#This Row],[2019/20 Main appropriation_Source]]*T_DataComboFile[[#This Row],[G&S reporting level indicator]]","v":0},{"$f":"T_DataComboFile[[#This Row],[2019/20 Adjusted appropriation_Source]]*T_DataComboFile[[#This Row],[G&S reporting level indicator]]","v":0},{"$f":"T_DataComboFile[[#This Row],[2019/20 Revised estimate_Source]]*T_DataComboFile[[#This Row],[G&S reporting level indicator]]","v":0},{"$f":"T_DataComboFile[[#This Row],[2019/20 Preliminary outcome_Source]]*T_DataComboFile[[#This Row],[G&S reporting level indicator]]","v":0},{"$f":"T_DataComboFile[[#This Row],[2020/21 Original_Source]]*T_DataComboFile[[#This Row],[G&S reporting level indicator]]","v":0},{"$f":"T_DataComboFile[[#This Row],[2020/21 SAB_Source]]*T_DataComboFile[[#This Row],[G&S reporting level indicator]]","v":0},{"$f":"T_DataComboFile[[#This Row],[2020/21 Baseline_Source]]*T_DataComboFile[[#This Row],[G&S reporting level indicator]]","v":0},{"$f":"T_DataComboFile[[#This Row],[2021/22 Baseline_Source]]*T_DataComboFile[[#This Row],[G&S reporting level indicator]]","v":0},{"$f":"T_DataComboFile[[#This Row],[2022/23 Baseline_Source]]*T_DataComboFile[[#This Row],[G&S reporting level indicator]]","v":0},{"$f":"T_DataComboFile[[#This Row],[2023/24 Baseline_Source]]*T_DataComboFile[[#This Row],[G&S reporting level indicator]]","v":0},null,null,null,null,null,null,{"$f":"T_DataComboFile[[#This Row],[2021/22 Baseline]]+T_DataComboFile[[#This Row],[2021/22 Reduction]]+T_DataComboFile[[#This Row],[2021/22 Increase]]","v":0},{"$f":"T_DataComboFile[[#This Row],[2022/23 Baseline]]+T_DataComboFile[[#This Row],[2022/23 Reduction]]+T_DataComboFile[[#This Row],[2022/23 Increase]]","v":0},{"$f":"T_DataComboFile[[#This Row],[2023/24 Baseline]]+T_DataComboFile[[#This Row],[2023/24 Reduction]]+T_DataComboFile[[#This Row],[2023/24 Increase]]","v":0}]
[null,null,"2021_22","ENE2020",36,1,5,null,70394,36,1,5,null,"070394","36|01|05",1,1,2,15,15,"01|01|02|15|15","National","Small Business Development","Administration","Communications",null,"Current","Current payments","Goods and services","Science and technological services","Science and technological services",null,null,null,0,0,0,0,0,0,0,0,0,0,0,0,0,0,null,{"$f":"IF(T_DataComboFile[[#This Row],[G&S reporting level indicator]]=1,$AX$16,\"Not applicable\")","v":"Not applicable"},{"$f":"IF(AND($AX$16=\"Level 3\",T_DataComboFile[[#This Row],[Econ3]] = \"Goods and services\"),IF(T_DataComboFile[[#This Row],[Econ4]] = T_DataComboFile[[#This Row],[Econ3]],1,0),IF(AND($AX$16=\"Level 4\",T_DataComboFile[[#This Row],[Econ4]] = \"Goods and services\"),0,1))","v":0},{"$f":"T_DataComboFile[[#This Row],[2016/17_Source]]*T_DataComboFile[[#This Row],[G&S reporting level indicator]]","v":0},{"$f":"T_DataComboFile[[#This Row],[2017/18_Source]]*T_DataComboFile[[#This Row],[G&S reporting level indicator]]","v":0},{"$f":"T_DataComboFile[[#This Row],[2018/19_Source]]*T_DataComboFile[[#This Row],[G&S reporting level indicator]]","v":0},{"$f":"T_DataComboFile[[#This Row],[2019/20 Main appropriation_Source]]*T_DataComboFile[[#This Row],[G&S reporting level indicator]]","v":0},{"$f":"T_DataComboFile[[#This Row],[2019/20 Adjusted appropriation_Source]]*T_DataComboFile[[#This Row],[G&S reporting level indicator]]","v":0},{"$f":"T_DataComboFile[[#This Row],[2019/20 Revised estimate_Source]]*T_DataComboFile[[#This Row],[G&S reporting level indicator]]","v":0},{"$f":"T_DataComboFile[[#This Row],[2019/20 Preliminary outcome_Source]]*T_DataComboFile[[#This Row],[G&S reporting level indicator]]","v":0},{"$f":"T_DataComboFile[[#This Row],[2020/21 Original_Source]]*T_DataComboFile[[#This Row],[G&S reporting level indicator]]","v":0},{"$f":"T_DataComboFile[[#This Row],[2020/21 SAB_Source]]*T_DataComboFile[[#This Row],[G&S reporting level indicator]]","v":0},{"$f":"T_DataComboFile[[#This Row],[2020/21 Baseline_Source]]*T_DataComboFile[[#This Row],[G&S reporting level indicator]]","v":0},{"$f":"T_DataComboFile[[#This Row],[2021/22 Baseline_Source]]*T_DataComboFile[[#This Row],[G&S reporting level indicator]]","v":0},{"$f":"T_DataComboFile[[#This Row],[2022/23 Baseline_Source]]*T_DataComboFile[[#This Row],[G&S reporting level indicator]]","v":0},{"$f":"T_DataComboFile[[#This Row],[2023/24 Baseline_Source]]*T_DataComboFile[[#This Row],[G&S reporting level indicator]]","v":0},null,null,null,null,null,null,{"$f":"T_DataComboFile[[#This Row],[2021/22 Baseline]]+T_DataComboFile[[#This Row],[2021/22 Reduction]]+T_DataComboFile[[#This Row],[2021/22 Increase]]","v":0},{"$f":"T_DataComboFile[[#This Row],[2022/23 Baseline]]+T_DataComboFile[[#This Row],[2022/23 Reduction]]+T_DataComboFile[[#This Row],[2022/23 Increase]]","v":0},{"$f":"T_DataComboFile[[#This Row],[2023/24 Baseline]]+T_DataComboFile[[#This Row],[2023/24 Reduction]]+T_DataComboFile[[#This Row],[2023/24 Increase]]","v":0}]
["NAT|Non-transfer item","36|Contractors","2021_22","ENE2020",36,1,5,17271,70395,36,1,5,17271,"070395","36|01|05",1,1,2,16,16,"01|01|02|16|16","National","Small Business Development","Administration","Communications","Non-transfer item","Current","Current payments","Goods and services","Contractors","Contractors","Economic development","Industrialisation and exports","NAT",873,95,172,120,120,120,120,180,180,180,186,190,198,1,null,{"$f":"IF(T_DataComboFile[[#This Row],[G&S reporting level indicator]]=1,$AX$16,\"Not applicable\")","v":"Not applicable"},{"$f":"IF(AND($AX$16=\"Level 3\",T_DataComboFile[[#This Row],[Econ3]] = \"Goods and services\"),IF(T_DataComboFile[[#This Row],[Econ4]] = T_DataComboFile[[#This Row],[Econ3]],1,0),IF(AND($AX$16=\"Level 4\",T_DataComboFile[[#This Row],[Econ4]] = \"Goods and services\"),0,1))","v":0},{"$f":"T_DataComboFile[[#This Row],[2016/17_Source]]*T_DataComboFile[[#This Row],[G&S reporting level indicator]]","v":0},{"$f":"T_DataComboFile[[#This Row],[2017/18_Source]]*T_DataComboFile[[#This Row],[G&S reporting level indicator]]","v":0},{"$f":"T_DataComboFile[[#This Row],[2018/19_Source]]*T_DataComboFile[[#This Row],[G&S reporting level indicator]]","v":0},{"$f":"T_DataComboFile[[#This Row],[2019/20 Main appropriation_Source]]*T_DataComboFile[[#This Row],[G&S reporting level indicator]]","v":0},{"$f":"T_DataComboFile[[#This Row],[2019/20 Adjusted appropriation_Source]]*T_DataComboFile[[#This Row],[G&S reporting level indicator]]","v":0},{"$f":"T_DataComboFile[[#This Row],[2019/20 Revised estimate_Source]]*T_DataComboFile[[#This Row],[G&S reporting level indicator]]","v":0},{"$f":"T_DataComboFile[[#This Row],[2019/20 Preliminary outcome_Source]]*T_DataComboFile[[#This Row],[G&S reporting level indicator]]","v":0},{"$f":"T_DataComboFile[[#This Row],[2020/21 Original_Source]]*T_DataComboFile[[#This Row],[G&S reporting level indicator]]","v":0},{"$f":"T_DataComboFile[[#This Row],[2020/21 SAB_Source]]*T_DataComboFile[[#This Row],[G&S reporting level indicator]]","v":0},{"$f":"T_DataComboFile[[#This Row],[2020/21 Baseline_Source]]*T_DataComboFile[[#This Row],[G&S reporting level indicator]]","v":0},{"$f":"T_DataComboFile[[#This Row],[2021/22 Baseline_Source]]*T_DataComboFile[[#This Row],[G&S reporting level indicator]]","v":0},{"$f":"T_DataComboFile[[#This Row],[2022/23 Baseline_Source]]*T_DataComboFile[[#This Row],[G&S reporting level indicator]]","v":0},{"$f":"T_DataComboFile[[#This Row],[2023/24 Baseline_Source]]*T_DataComboFile[[#This Row],[G&S reporting level indicator]]","v":0},null,null,null,null,null,null,{"$f":"T_DataComboFile[[#This Row],[2021/22 Baseline]]+T_DataComboFile[[#This Row],[2021/22 Reduction]]+T_DataComboFile[[#This Row],[2021/22 Increase]]","v":0},{"$f":"T_DataComboFile[[#This Row],[2022/23 Baseline]]+T_DataComboFile[[#This Row],[2022/23 Reduction]]+T_DataComboFile[[#This Row],[2022/23 Increase]]","v":0},{"$f":"T_DataComboFile[[#This Row],[2023/24 Baseline]]+T_DataComboFile[[#This Row],[2023/24 Reduction]]+T_DataComboFile[[#This Row],[2023/24 Increase]]","v":0}]
[null,null,"2021_22","ENE2020",36,1,5,null,70396,36,1,5,null,"070396","36|01|05",1,1,2,17,17,"01|01|02|17|17","National","Small Business Development","Administration","Communications",null,"Current","Current payments","Goods and services","Agency and support/outsourced services","Agency and support/outsourced services",null,null,null,0,0,0,0,0,0,0,0,0,0,0,0,0,0,null,{"$f":"IF(T_DataComboFile[[#This Row],[G&S reporting level indicator]]=1,$AX$16,\"Not applicable\")","v":"Not applicable"},{"$f":"IF(AND($AX$16=\"Level 3\",T_DataComboFile[[#This Row],[Econ3]] = \"Goods and services\"),IF(T_DataComboFile[[#This Row],[Econ4]] = T_DataComboFile[[#This Row],[Econ3]],1,0),IF(AND($AX$16=\"Level 4\",T_DataComboFile[[#This Row],[Econ4]] = \"Goods and services\"),0,1))","v":0},{"$f":"T_DataComboFile[[#This Row],[2016/17_Source]]*T_DataComboFile[[#This Row],[G&S reporting level indicator]]","v":0},{"$f":"T_DataComboFile[[#This Row],[2017/18_Source]]*T_DataComboFile[[#This Row],[G&S reporting level indicator]]","v":0},{"$f":"T_DataComboFile[[#This Row],[2018/19_Source]]*T_DataComboFile[[#This Row],[G&S reporting level indicator]]","v":0},{"$f":"T_DataComboFile[[#This Row],[2019/20 Main appropriation_Source]]*T_DataComboFile[[#This Row],[G&S reporting level indicator]]","v":0},{"$f":"T_DataComboFile[[#This Row],[2019/20 Adjusted appropriation_Source]]*T_DataComboFile[[#This Row],[G&S reporting level indicator]]","v":0},{"$f":"T_DataComboFile[[#This Row],[2019/20 Revised estimate_Source]]*T_DataComboFile[[#This Row],[G&S reporting level indicator]]","v":0},{"$f":"T_DataComboFile[[#This Row],[2019/20 Preliminary outcome_Source]]*T_DataComboFile[[#This Row],[G&S reporting level indicator]]","v":0},{"$f":"T_DataComboFile[[#This Row],[2020/21 Original_Source]]*T_DataComboFile[[#This Row],[G&S reporting level indicator]]","v":0},{"$f":"T_DataComboFile[[#This Row],[2020/21 SAB_Source]]*T_DataComboFile[[#This Row],[G&S reporting level indicator]]","v":0},{"$f":"T_DataComboFile[[#This Row],[2020/21 Baseline_Source]]*T_DataComboFile[[#This Row],[G&S reporting level indicator]]","v":0},{"$f":"T_DataComboFile[[#This Row],[2021/22 Baseline_Source]]*T_DataComboFile[[#This Row],[G&S reporting level indicator]]","v":0},{"$f":"T_DataComboFile[[#This Row],[2022/23 Baseline_Source]]*T_DataComboFile[[#This Row],[G&S reporting level indicator]]","v":0},{"$f":"T_DataComboFile[[#This Row],[2023/24 Baseline_Source]]*T_DataComboFile[[#This Row],[G&S reporting level indicator]]","v":0},null,null,null,null,null,null,{"$f":"T_DataComboFile[[#This Row],[2021/22 Baseline]]+T_DataComboFile[[#This Row],[2021/22 Reduction]]+T_DataComboFile[[#This Row],[2021/22 Increase]]","v":0},{"$f":"T_DataComboFile[[#This Row],[2022/23 Baseline]]+T_DataComboFile[[#This Row],[2022/23 Reduction]]+T_DataComboFile[[#This Row],[2022/23 Increase]]","v":0},{"$f":"T_DataComboFile[[#This Row],[2023/24 Baseline]]+T_DataComboFile[[#This Row],[2023/24 Reduction]]+T_DataComboFile[[#This Row],[2023/24 Increase]]","v":0}]
[null,null,"2021_22","ENE2020",36,1,5,null,70397,36,1,5,null,"070397","36|01|05",1,1,2,18,18,"01|01|02|18|18","National","Small Business Development","Administration","Communications",null,"Current","Current payments","Goods and services","Entertainment","Entertainment",null,null,null,0,0,0,0,0,0,0,0,0,0,0,0,0,0,null,{"$f":"IF(T_DataComboFile[[#This Row],[G&S reporting level indicator]]=1,$AX$16,\"Not applicable\")","v":"Not applicable"},{"$f":"IF(AND($AX$16=\"Level 3\",T_DataComboFile[[#This Row],[Econ3]] = \"Goods and services\"),IF(T_DataComboFile[[#This Row],[Econ4]] = T_DataComboFile[[#This Row],[Econ3]],1,0),IF(AND($AX$16=\"Level 4\",T_DataComboFile[[#This Row],[Econ4]] = \"Goods and services\"),0,1))","v":0},{"$f":"T_DataComboFile[[#This Row],[2016/17_Source]]*T_DataComboFile[[#This Row],[G&S reporting level indicator]]","v":0},{"$f":"T_DataComboFile[[#This Row],[2017/18_Source]]*T_DataComboFile[[#This Row],[G&S reporting level indicator]]","v":0},{"$f":"T_DataComboFile[[#This Row],[2018/19_Source]]*T_DataComboFile[[#This Row],[G&S reporting level indicator]]","v":0},{"$f":"T_DataComboFile[[#This Row],[2019/20 Main appropriation_Source]]*T_DataComboFile[[#This Row],[G&S reporting level indicator]]","v":0},{"$f":"T_DataComboFile[[#This Row],[2019/20 Adjusted appropriation_Source]]*T_DataComboFile[[#This Row],[G&S reporting level indicator]]","v":0},{"$f":"T_DataComboFile[[#This Row],[2019/20 Revised estimate_Source]]*T_DataComboFile[[#This Row],[G&S reporting level indicator]]","v":0},{"$f":"T_DataComboFile[[#This Row],[2019/20 Preliminary outcome_Source]]*T_DataComboFile[[#This Row],[G&S reporting level indicator]]","v":0},{"$f":"T_DataComboFile[[#This Row],[2020/21 Original_Source]]*T_DataComboFile[[#This Row],[G&S reporting level indicator]]","v":0},{"$f":"T_DataComboFile[[#This Row],[2020/21 SAB_Source]]*T_DataComboFile[[#This Row],[G&S reporting level indicator]]","v":0},{"$f":"T_DataComboFile[[#This Row],[2020/21 Baseline_Source]]*T_DataComboFile[[#This Row],[G&S reporting level indicator]]","v":0},{"$f":"T_DataComboFile[[#This Row],[2021/22 Baseline_Source]]*T_DataComboFile[[#This Row],[G&S reporting level indicator]]","v":0},{"$f":"T_DataComboFile[[#This Row],[2022/23 Baseline_Source]]*T_DataComboFile[[#This Row],[G&S reporting level indicator]]","v":0},{"$f":"T_DataComboFile[[#This Row],[2023/24 Baseline_Source]]*T_DataComboFile[[#This Row],[G&S reporting level indicator]]","v":0},null,null,null,null,null,null,{"$f":"T_DataComboFile[[#This Row],[2021/22 Baseline]]+T_DataComboFile[[#This Row],[2021/22 Reduction]]+T_DataComboFile[[#This Row],[2021/22 Increase]]","v":0},{"$f":"T_DataComboFile[[#This Row],[2022/23 Baseline]]+T_DataComboFile[[#This Row],[2022/23 Reduction]]+T_DataComboFile[[#This Row],[2022/23 Increase]]","v":0},{"$f":"T_DataComboFile[[#This Row],[2023/24 Baseline]]+T_DataComboFile[[#This Row],[2023/24 Reduction]]+T_DataComboFile[[#This Row],[2023/24 Increase]]","v":0}]
["NAT|Non-transfer item","36|Fleet services (including government motor transport)","2021_22","ENE2020",36,1,5,17272,70398,36,1,5,17272,"070398","36|01|05",1,1,2,19,19,"01|01|02|19|19","National","Small Business Development","Administration","Communications","Non-transfer item","Current","Current payments","Goods and services","Fleet services (including government motor transport)","Fleet services (including government motor transport)","Economic development","Industrialisation and exports","NAT",1,2,15,0,20,20,20,21,21,21,26,28,29,1,null,{"$f":"IF(T_DataComboFile[[#This Row],[G&S reporting level indicator]]=1,$AX$16,\"Not applicable\")","v":"Not applicable"},{"$f":"IF(AND($AX$16=\"Level 3\",T_DataComboFile[[#This Row],[Econ3]] = \"Goods and services\"),IF(T_DataComboFile[[#This Row],[Econ4]] = T_DataComboFile[[#This Row],[Econ3]],1,0),IF(AND($AX$16=\"Level 4\",T_DataComboFile[[#This Row],[Econ4]] = \"Goods and services\"),0,1))","v":0},{"$f":"T_DataComboFile[[#This Row],[2016/17_Source]]*T_DataComboFile[[#This Row],[G&S reporting level indicator]]","v":0},{"$f":"T_DataComboFile[[#This Row],[2017/18_Source]]*T_DataComboFile[[#This Row],[G&S reporting level indicator]]","v":0},{"$f":"T_DataComboFile[[#This Row],[2018/19_Source]]*T_DataComboFile[[#This Row],[G&S reporting level indicator]]","v":0},{"$f":"T_DataComboFile[[#This Row],[2019/20 Main appropriation_Source]]*T_DataComboFile[[#This Row],[G&S reporting level indicator]]","v":0},{"$f":"T_DataComboFile[[#This Row],[2019/20 Adjusted appropriation_Source]]*T_DataComboFile[[#This Row],[G&S reporting level indicator]]","v":0},{"$f":"T_DataComboFile[[#This Row],[2019/20 Revised estimate_Source]]*T_DataComboFile[[#This Row],[G&S reporting level indicator]]","v":0},{"$f":"T_DataComboFile[[#This Row],[2019/20 Preliminary outcome_Source]]*T_DataComboFile[[#This Row],[G&S reporting level indicator]]","v":0},{"$f":"T_DataComboFile[[#This Row],[2020/21 Original_Source]]*T_DataComboFile[[#This Row],[G&S reporting level indicator]]","v":0},{"$f":"T_DataComboFile[[#This Row],[2020/21 SAB_Source]]*T_DataComboFile[[#This Row],[G&S reporting level indicator]]","v":0},{"$f":"T_DataComboFile[[#This Row],[2020/21 Baseline_Source]]*T_DataComboFile[[#This Row],[G&S reporting level indicator]]","v":0},{"$f":"T_DataComboFile[[#This Row],[2021/22 Baseline_Source]]*T_DataComboFile[[#This Row],[G&S reporting level indicator]]","v":0},{"$f":"T_DataComboFile[[#This Row],[2022/23 Baseline_Source]]*T_DataComboFile[[#This Row],[G&S reporting level indicator]]","v":0},{"$f":"T_DataComboFile[[#This Row],[2023/24 Baseline_Source]]*T_DataComboFile[[#This Row],[G&S reporting level indicator]]","v":0},null,null,null,null,null,null,{"$f":"T_DataComboFile[[#This Row],[2021/22 Baseline]]+T_DataComboFile[[#This Row],[2021/22 Reduction]]+T_DataComboFile[[#This Row],[2021/22 Increase]]","v":0},{"$f":"T_DataComboFile[[#This Row],[2022/23 Baseline]]+T_DataComboFile[[#This Row],[2022/23 Reduction]]+T_DataComboFile[[#This Row],[2022/23 Increase]]","v":0},{"$f":"T_DataComboFile[[#This Row],[2023/24 Baseline]]+T_DataComboFile[[#This Row],[2023/24 Reduction]]+T_DataComboFile[[#This Row],[2023/24 Increase]]","v":0}]
[null,null,"2021_22","ENE2020",36,1,5,null,70399,36,1,5,null,"070399","36|01|05",1,1,2,20,20,"01|01|02|20|20","National","Small Business Development","Administration","Communications",null,"Current","Current payments","Goods and services","Housing","Housing",null,null,null,0,0,0,0,0,0,0,0,0,0,0,0,0,0,null,{"$f":"IF(T_DataComboFile[[#This Row],[G&S reporting level indicator]]=1,$AX$16,\"Not applicable\")","v":"Not applicable"},{"$f":"IF(AND($AX$16=\"Level 3\",T_DataComboFile[[#This Row],[Econ3]] = \"Goods and services\"),IF(T_DataComboFile[[#This Row],[Econ4]] = T_DataComboFile[[#This Row],[Econ3]],1,0),IF(AND($AX$16=\"Level 4\",T_DataComboFile[[#This Row],[Econ4]] = \"Goods and services\"),0,1))","v":0},{"$f":"T_DataComboFile[[#This Row],[2016/17_Source]]*T_DataComboFile[[#This Row],[G&S reporting level indicator]]","v":0},{"$f":"T_DataComboFile[[#This Row],[2017/18_Source]]*T_DataComboFile[[#This Row],[G&S reporting level indicator]]","v":0},{"$f":"T_DataComboFile[[#This Row],[2018/19_Source]]*T_DataComboFile[[#This Row],[G&S reporting level indicator]]","v":0},{"$f":"T_DataComboFile[[#This Row],[2019/20 Main appropriation_Source]]*T_DataComboFile[[#This Row],[G&S reporting level indicator]]","v":0},{"$f":"T_DataComboFile[[#This Row],[2019/20 Adjusted appropriation_Source]]*T_DataComboFile[[#This Row],[G&S reporting level indicator]]","v":0},{"$f":"T_DataComboFile[[#This Row],[2019/20 Revised estimate_Source]]*T_DataComboFile[[#This Row],[G&S reporting level indicator]]","v":0},{"$f":"T_DataComboFile[[#This Row],[2019/20 Preliminary outcome_Source]]*T_DataComboFile[[#This Row],[G&S reporting level indicator]]","v":0},{"$f":"T_DataComboFile[[#This Row],[2020/21 Original_Source]]*T_DataComboFile[[#This Row],[G&S reporting level indicator]]","v":0},{"$f":"T_DataComboFile[[#This Row],[2020/21 SAB_Source]]*T_DataComboFile[[#This Row],[G&S reporting level indicator]]","v":0},{"$f":"T_DataComboFile[[#This Row],[2020/21 Baseline_Source]]*T_DataComboFile[[#This Row],[G&S reporting level indicator]]","v":0},{"$f":"T_DataComboFile[[#This Row],[2021/22 Baseline_Source]]*T_DataComboFile[[#This Row],[G&S reporting level indicator]]","v":0},{"$f":"T_DataComboFile[[#This Row],[2022/23 Baseline_Source]]*T_DataComboFile[[#This Row],[G&S reporting level indicator]]","v":0},{"$f":"T_DataComboFile[[#This Row],[2023/24 Baseline_Source]]*T_DataComboFile[[#This Row],[G&S reporting level indicator]]","v":0},null,null,null,null,null,null,{"$f":"T_DataComboFile[[#This Row],[2021/22 Baseline]]+T_DataComboFile[[#This Row],[2021/22 Reduction]]+T_DataComboFile[[#This Row],[2021/22 Increase]]","v":0},{"$f":"T_DataComboFile[[#This Row],[2022/23 Baseline]]+T_DataComboFile[[#This Row],[2022/23 Reduction]]+T_DataComboFile[[#This Row],[2022/23 Increase]]","v":0},{"$f":"T_DataComboFile[[#This Row],[2023/24 Baseline]]+T_DataComboFile[[#This Row],[2023/24 Reduction]]+T_DataComboFile[[#This Row],[2023/24 Increase]]","v":0}]
[null,null,"2021_22","ENE2020",36,1,5,null,70400,36,1,5,null,"070400","36|01|05",1,1,2,21,21,"01|01|02|21|21","National","Small Business Development","Administration","Communications",null,"Current","Current payments","Goods and services","Inventory: Clothing material and accessories","Inventory: Clothing material and accessories",null,null,null,0,0,0,0,0,0,0,0,0,0,0,0,0,0,null,{"$f":"IF(T_DataComboFile[[#This Row],[G&S reporting level indicator]]=1,$AX$16,\"Not applicable\")","v":"Not applicable"},{"$f":"IF(AND($AX$16=\"Level 3\",T_DataComboFile[[#This Row],[Econ3]] = \"Goods and services\"),IF(T_DataComboFile[[#This Row],[Econ4]] = T_DataComboFile[[#This Row],[Econ3]],1,0),IF(AND($AX$16=\"Level 4\",T_DataComboFile[[#This Row],[Econ4]] = \"Goods and services\"),0,1))","v":0},{"$f":"T_DataComboFile[[#This Row],[2016/17_Source]]*T_DataComboFile[[#This Row],[G&S reporting level indicator]]","v":0},{"$f":"T_DataComboFile[[#This Row],[2017/18_Source]]*T_DataComboFile[[#This Row],[G&S reporting level indicator]]","v":0},{"$f":"T_DataComboFile[[#This Row],[2018/19_Source]]*T_DataComboFile[[#This Row],[G&S reporting level indicator]]","v":0},{"$f":"T_DataComboFile[[#This Row],[2019/20 Main appropriation_Source]]*T_DataComboFile[[#This Row],[G&S reporting level indicator]]","v":0},{"$f":"T_DataComboFile[[#This Row],[2019/20 Adjusted appropriation_Source]]*T_DataComboFile[[#This Row],[G&S reporting level indicator]]","v":0},{"$f":"T_DataComboFile[[#This Row],[2019/20 Revised estimate_Source]]*T_DataComboFile[[#This Row],[G&S reporting level indicator]]","v":0},{"$f":"T_DataComboFile[[#This Row],[2019/20 Preliminary outcome_Source]]*T_DataComboFile[[#This Row],[G&S reporting level indicator]]","v":0},{"$f":"T_DataComboFile[[#This Row],[2020/21 Original_Source]]*T_DataComboFile[[#This Row],[G&S reporting level indicator]]","v":0},{"$f":"T_DataComboFile[[#This Row],[2020/21 SAB_Source]]*T_DataComboFile[[#This Row],[G&S reporting level indicator]]","v":0},{"$f":"T_DataComboFile[[#This Row],[2020/21 Baseline_Source]]*T_DataComboFile[[#This Row],[G&S reporting level indicator]]","v":0},{"$f":"T_DataComboFile[[#This Row],[2021/22 Baseline_Source]]*T_DataComboFile[[#This Row],[G&S reporting level indicator]]","v":0},{"$f":"T_DataComboFile[[#This Row],[2022/23 Baseline_Source]]*T_DataComboFile[[#This Row],[G&S reporting level indicator]]","v":0},{"$f":"T_DataComboFile[[#This Row],[2023/24 Baseline_Source]]*T_DataComboFile[[#This Row],[G&S reporting level indicator]]","v":0},null,null,null,null,null,null,{"$f":"T_DataComboFile[[#This Row],[2021/22 Baseline]]+T_DataComboFile[[#This Row],[2021/22 Reduction]]+T_DataComboFile[[#This Row],[2021/22 Increase]]","v":0},{"$f":"T_DataComboFile[[#This Row],[2022/23 Baseline]]+T_DataComboFile[[#This Row],[2022/23 Reduction]]+T_DataComboFile[[#This Row],[2022/23 Increase]]","v":0},{"$f":"T_DataComboFile[[#This Row],[2023/24 Baseline]]+T_DataComboFile[[#This Row],[2023/24 Reduction]]+T_DataComboFile[[#This Row],[2023/24 Increase]]","v":0}]
[null,null,"2021_22","ENE2020",36,1,5,null,70401,36,1,5,null,"070401","36|01|05",1,1,2,22,22,"01|01|02|22|22","National","Small Business Development","Administration","Communications",null,"Current","Current payments","Goods and services","Inventory: Farming supplies","Inventory: Farming supplies",null,null,null,0,0,0,0,0,0,0,0,0,0,0,0,0,0,null,{"$f":"IF(T_DataComboFile[[#This Row],[G&S reporting level indicator]]=1,$AX$16,\"Not applicable\")","v":"Not applicable"},{"$f":"IF(AND($AX$16=\"Level 3\",T_DataComboFile[[#This Row],[Econ3]] = \"Goods and services\"),IF(T_DataComboFile[[#This Row],[Econ4]] = T_DataComboFile[[#This Row],[Econ3]],1,0),IF(AND($AX$16=\"Level 4\",T_DataComboFile[[#This Row],[Econ4]] = \"Goods and services\"),0,1))","v":0},{"$f":"T_DataComboFile[[#This Row],[2016/17_Source]]*T_DataComboFile[[#This Row],[G&S reporting level indicator]]","v":0},{"$f":"T_DataComboFile[[#This Row],[2017/18_Source]]*T_DataComboFile[[#This Row],[G&S reporting level indicator]]","v":0},{"$f":"T_DataComboFile[[#This Row],[2018/19_Source]]*T_DataComboFile[[#This Row],[G&S reporting level indicator]]","v":0},{"$f":"T_DataComboFile[[#This Row],[2019/20 Main appropriation_Source]]*T_DataComboFile[[#This Row],[G&S reporting level indicator]]","v":0},{"$f":"T_DataComboFile[[#This Row],[2019/20 Adjusted appropriation_Source]]*T_DataComboFile[[#This Row],[G&S reporting level indicator]]","v":0},{"$f":"T_DataComboFile[[#This Row],[2019/20 Revised estimate_Source]]*T_DataComboFile[[#This Row],[G&S reporting level indicator]]","v":0},{"$f":"T_DataComboFile[[#This Row],[2019/20 Preliminary outcome_Source]]*T_DataComboFile[[#This Row],[G&S reporting level indicator]]","v":0},{"$f":"T_DataComboFile[[#This Row],[2020/21 Original_Source]]*T_DataComboFile[[#This Row],[G&S reporting level indicator]]","v":0},{"$f":"T_DataComboFile[[#This Row],[2020/21 SAB_Source]]*T_DataComboFile[[#This Row],[G&S reporting level indicator]]","v":0},{"$f":"T_DataComboFile[[#This Row],[2020/21 Baseline_Source]]*T_DataComboFile[[#This Row],[G&S reporting level indicator]]","v":0},{"$f":"T_DataComboFile[[#This Row],[2021/22 Baseline_Source]]*T_DataComboFile[[#This Row],[G&S reporting level indicator]]","v":0},{"$f":"T_DataComboFile[[#This Row],[2022/23 Baseline_Source]]*T_DataComboFile[[#This Row],[G&S reporting level indicator]]","v":0},{"$f":"T_DataComboFile[[#This Row],[2023/24 Baseline_Source]]*T_DataComboFile[[#This Row],[G&S reporting level indicator]]","v":0},null,null,null,null,null,null,{"$f":"T_DataComboFile[[#This Row],[2021/22 Baseline]]+T_DataComboFile[[#This Row],[2021/22 Reduction]]+T_DataComboFile[[#This Row],[2021/22 Increase]]","v":0},{"$f":"T_DataComboFile[[#This Row],[2022/23 Baseline]]+T_DataComboFile[[#This Row],[2022/23 Reduction]]+T_DataComboFile[[#This Row],[2022/23 Increase]]","v":0},{"$f":"T_DataComboFile[[#This Row],[2023/24 Baseline]]+T_DataComboFile[[#This Row],[2023/24 Reduction]]+T_DataComboFile[[#This Row],[2023/24 Increase]]","v":0}]
[null,null,"2021_22","ENE2020",36,1,5,null,70402,36,1,5,null,"070402","36|01|05",1,1,2,23,23,"01|01|02|23|23","National","Small Business Development","Administration","Communications",null,"Current","Current payments","Goods and services","Inventory: Food and food supplies","Inventory: Food and food supplies",null,null,null,0,0,0,0,0,0,0,0,0,0,0,0,0,0,null,{"$f":"IF(T_DataComboFile[[#This Row],[G&S reporting level indicator]]=1,$AX$16,\"Not applicable\")","v":"Not applicable"},{"$f":"IF(AND($AX$16=\"Level 3\",T_DataComboFile[[#This Row],[Econ3]] = \"Goods and services\"),IF(T_DataComboFile[[#This Row],[Econ4]] = T_DataComboFile[[#This Row],[Econ3]],1,0),IF(AND($AX$16=\"Level 4\",T_DataComboFile[[#This Row],[Econ4]] = \"Goods and services\"),0,1))","v":0},{"$f":"T_DataComboFile[[#This Row],[2016/17_Source]]*T_DataComboFile[[#This Row],[G&S reporting level indicator]]","v":0},{"$f":"T_DataComboFile[[#This Row],[2017/18_Source]]*T_DataComboFile[[#This Row],[G&S reporting level indicator]]","v":0},{"$f":"T_DataComboFile[[#This Row],[2018/19_Source]]*T_DataComboFile[[#This Row],[G&S reporting level indicator]]","v":0},{"$f":"T_DataComboFile[[#This Row],[2019/20 Main appropriation_Source]]*T_DataComboFile[[#This Row],[G&S reporting level indicator]]","v":0},{"$f":"T_DataComboFile[[#This Row],[2019/20 Adjusted appropriation_Source]]*T_DataComboFile[[#This Row],[G&S reporting level indicator]]","v":0},{"$f":"T_DataComboFile[[#This Row],[2019/20 Revised estimate_Source]]*T_DataComboFile[[#This Row],[G&S reporting level indicator]]","v":0},{"$f":"T_DataComboFile[[#This Row],[2019/20 Preliminary outcome_Source]]*T_DataComboFile[[#This Row],[G&S reporting level indicator]]","v":0},{"$f":"T_DataComboFile[[#This Row],[2020/21 Original_Source]]*T_DataComboFile[[#This Row],[G&S reporting level indicator]]","v":0},{"$f":"T_DataComboFile[[#This Row],[2020/21 SAB_Source]]*T_DataComboFile[[#This Row],[G&S reporting level indicator]]","v":0},{"$f":"T_DataComboFile[[#This Row],[2020/21 Baseline_Source]]*T_DataComboFile[[#This Row],[G&S reporting level indicator]]","v":0},{"$f":"T_DataComboFile[[#This Row],[2021/22 Baseline_Source]]*T_DataComboFile[[#This Row],[G&S reporting level indicator]]","v":0},{"$f":"T_DataComboFile[[#This Row],[2022/23 Baseline_Source]]*T_DataComboFile[[#This Row],[G&S reporting level indicator]]","v":0},{"$f":"T_DataComboFile[[#This Row],[2023/24 Baseline_Source]]*T_DataComboFile[[#This Row],[G&S reporting level indicator]]","v":0},null,null,null,null,null,null,{"$f":"T_DataComboFile[[#This Row],[2021/22 Baseline]]+T_DataComboFile[[#This Row],[2021/22 Reduction]]+T_DataComboFile[[#This Row],[2021/22 Increase]]","v":0},{"$f":"T_DataComboFile[[#This Row],[2022/23 Baseline]]+T_DataComboFile[[#This Row],[2022/23 Reduction]]+T_DataComboFile[[#This Row],[2022/23 Increase]]","v":0},{"$f":"T_DataComboFile[[#This Row],[2023/24 Baseline]]+T_DataComboFile[[#This Row],[2023/24 Reduction]]+T_DataComboFile[[#This Row],[2023/24 Increase]]","v":0}]
[null,null,"2021_22","ENE2020",36,1,5,null,70403,36,1,5,null,"070403","36|01|05",1,1,2,24,24,"01|01|02|24|24","National","Small Business Development","Administration","Communications",null,"Current","Current payments","Goods and services","Inventory: Fuel, oil and gas","Inventory: Fuel, oil and gas",null,null,null,0,0,0,0,0,0,0,0,0,0,0,0,0,0,null,{"$f":"IF(T_DataComboFile[[#This Row],[G&S reporting level indicator]]=1,$AX$16,\"Not applicable\")","v":"Not applicable"},{"$f":"IF(AND($AX$16=\"Level 3\",T_DataComboFile[[#This Row],[Econ3]] = \"Goods and services\"),IF(T_DataComboFile[[#This Row],[Econ4]] = T_DataComboFile[[#This Row],[Econ3]],1,0),IF(AND($AX$16=\"Level 4\",T_DataComboFile[[#This Row],[Econ4]] = \"Goods and services\"),0,1))","v":0},{"$f":"T_DataComboFile[[#This Row],[2016/17_Source]]*T_DataComboFile[[#This Row],[G&S reporting level indicator]]","v":0},{"$f":"T_DataComboFile[[#This Row],[2017/18_Source]]*T_DataComboFile[[#This Row],[G&S reporting level indicator]]","v":0},{"$f":"T_DataComboFile[[#This Row],[2018/19_Source]]*T_DataComboFile[[#This Row],[G&S reporting level indicator]]","v":0},{"$f":"T_DataComboFile[[#This Row],[2019/20 Main appropriation_Source]]*T_DataComboFile[[#This Row],[G&S reporting level indicator]]","v":0},{"$f":"T_DataComboFile[[#This Row],[2019/20 Adjusted appropriation_Source]]*T_DataComboFile[[#This Row],[G&S reporting level indicator]]","v":0},{"$f":"T_DataComboFile[[#This Row],[2019/20 Revised estimate_Source]]*T_DataComboFile[[#This Row],[G&S reporting level indicator]]","v":0},{"$f":"T_DataComboFile[[#This Row],[2019/20 Preliminary outcome_Source]]*T_DataComboFile[[#This Row],[G&S reporting level indicator]]","v":0},{"$f":"T_DataComboFile[[#This Row],[2020/21 Original_Source]]*T_DataComboFile[[#This Row],[G&S reporting level indicator]]","v":0},{"$f":"T_DataComboFile[[#This Row],[2020/21 SAB_Source]]*T_DataComboFile[[#This Row],[G&S reporting level indicator]]","v":0},{"$f":"T_DataComboFile[[#This Row],[2020/21 Baseline_Source]]*T_DataComboFile[[#This Row],[G&S reporting level indicator]]","v":0},{"$f":"T_DataComboFile[[#This Row],[2021/22 Baseline_Source]]*T_DataComboFile[[#This Row],[G&S reporting level indicator]]","v":0},{"$f":"T_DataComboFile[[#This Row],[2022/23 Baseline_Source]]*T_DataComboFile[[#This Row],[G&S reporting level indicator]]","v":0},{"$f":"T_DataComboFile[[#This Row],[2023/24 Baseline_Source]]*T_DataComboFile[[#This Row],[G&S reporting level indicator]]","v":0},null,null,null,null,null,null,{"$f":"T_DataComboFile[[#This Row],[2021/22 Baseline]]+T_DataComboFile[[#This Row],[2021/22 Reduction]]+T_DataComboFile[[#This Row],[2021/22 Increase]]","v":0},{"$f":"T_DataComboFile[[#This Row],[2022/23 Baseline]]+T_DataComboFile[[#This Row],[2022/23 Reduction]]+T_DataComboFile[[#This Row],[2022/23 Increase]]","v":0},{"$f":"T_DataComboFile[[#This Row],[2023/24 Baseline]]+T_DataComboFile[[#This Row],[2023/24 Reduction]]+T_DataComboFile[[#This Row],[2023/24 Increase]]","v":0}]
[null,null,"2021_22","ENE2020",36,1,5,null,70404,36,1,5,null,"070404","36|01|05",1,1,2,25,25,"01|01|02|25|25","National","Small Business Development","Administration","Communications",null,"Current","Current payments","Goods and services","Inventory: Learner and teacher support material","Inventory: Learner and teacher support material",null,null,null,0,0,0,0,0,0,0,0,0,0,0,0,0,0,null,{"$f":"IF(T_DataComboFile[[#This Row],[G&S reporting level indicator]]=1,$AX$16,\"Not applicable\")","v":"Not applicable"},{"$f":"IF(AND($AX$16=\"Level 3\",T_DataComboFile[[#This Row],[Econ3]] = \"Goods and services\"),IF(T_DataComboFile[[#This Row],[Econ4]] = T_DataComboFile[[#This Row],[Econ3]],1,0),IF(AND($AX$16=\"Level 4\",T_DataComboFile[[#This Row],[Econ4]] = \"Goods and services\"),0,1))","v":0},{"$f":"T_DataComboFile[[#This Row],[2016/17_Source]]*T_DataComboFile[[#This Row],[G&S reporting level indicator]]","v":0},{"$f":"T_DataComboFile[[#This Row],[2017/18_Source]]*T_DataComboFile[[#This Row],[G&S reporting level indicator]]","v":0},{"$f":"T_DataComboFile[[#This Row],[2018/19_Source]]*T_DataComboFile[[#This Row],[G&S reporting level indicator]]","v":0},{"$f":"T_DataComboFile[[#This Row],[2019/20 Main appropriation_Source]]*T_DataComboFile[[#This Row],[G&S reporting level indicator]]","v":0},{"$f":"T_DataComboFile[[#This Row],[2019/20 Adjusted appropriation_Source]]*T_DataComboFile[[#This Row],[G&S reporting level indicator]]","v":0},{"$f":"T_DataComboFile[[#This Row],[2019/20 Revised estimate_Source]]*T_DataComboFile[[#This Row],[G&S reporting level indicator]]","v":0},{"$f":"T_DataComboFile[[#This Row],[2019/20 Preliminary outcome_Source]]*T_DataComboFile[[#This Row],[G&S reporting level indicator]]","v":0},{"$f":"T_DataComboFile[[#This Row],[2020/21 Original_Source]]*T_DataComboFile[[#This Row],[G&S reporting level indicator]]","v":0},{"$f":"T_DataComboFile[[#This Row],[2020/21 SAB_Source]]*T_DataComboFile[[#This Row],[G&S reporting level indicator]]","v":0},{"$f":"T_DataComboFile[[#This Row],[2020/21 Baseline_Source]]*T_DataComboFile[[#This Row],[G&S reporting level indicator]]","v":0},{"$f":"T_DataComboFile[[#This Row],[2021/22 Baseline_Source]]*T_DataComboFile[[#This Row],[G&S reporting level indicator]]","v":0},{"$f":"T_DataComboFile[[#This Row],[2022/23 Baseline_Source]]*T_DataComboFile[[#This Row],[G&S reporting level indicator]]","v":0},{"$f":"T_DataComboFile[[#This Row],[2023/24 Baseline_Source]]*T_DataComboFile[[#This Row],[G&S reporting level indicator]]","v":0},null,null,null,null,null,null,{"$f":"T_DataComboFile[[#This Row],[2021/22 Baseline]]+T_DataComboFile[[#This Row],[2021/22 Reduction]]+T_DataComboFile[[#This Row],[2021/22 Increase]]","v":0},{"$f":"T_DataComboFile[[#This Row],[2022/23 Baseline]]+T_DataComboFile[[#This Row],[2022/23 Reduction]]+T_DataComboFile[[#This Row],[2022/23 Increase]]","v":0},{"$f":"T_DataComboFile[[#This Row],[2023/24 Baseline]]+T_DataComboFile[[#This Row],[2023/24 Reduction]]+T_DataComboFile[[#This Row],[2023/24 Increase]]","v":0}]
[null,null,"2021_22","ENE2020",36,1,5,null,70405,36,1,5,null,"070405","36|01|05",1,1,2,26,26,"01|01|02|26|26","National","Small Business Development","Administration","Communications",null,"Current","Current payments","Goods and services","Inventory: Materials and supplies","Inventory: Materials and supplies",null,null,null,0,0,0,0,0,0,0,0,0,0,0,0,0,0,null,{"$f":"IF(T_DataComboFile[[#This Row],[G&S reporting level indicator]]=1,$AX$16,\"Not applicable\")","v":"Not applicable"},{"$f":"IF(AND($AX$16=\"Level 3\",T_DataComboFile[[#This Row],[Econ3]] = \"Goods and services\"),IF(T_DataComboFile[[#This Row],[Econ4]] = T_DataComboFile[[#This Row],[Econ3]],1,0),IF(AND($AX$16=\"Level 4\",T_DataComboFile[[#This Row],[Econ4]] = \"Goods and services\"),0,1))","v":0},{"$f":"T_DataComboFile[[#This Row],[2016/17_Source]]*T_DataComboFile[[#This Row],[G&S reporting level indicator]]","v":0},{"$f":"T_DataComboFile[[#This Row],[2017/18_Source]]*T_DataComboFile[[#This Row],[G&S reporting level indicator]]","v":0},{"$f":"T_DataComboFile[[#This Row],[2018/19_Source]]*T_DataComboFile[[#This Row],[G&S reporting level indicator]]","v":0},{"$f":"T_DataComboFile[[#This Row],[2019/20 Main appropriation_Source]]*T_DataComboFile[[#This Row],[G&S reporting level indicator]]","v":0},{"$f":"T_DataComboFile[[#This Row],[2019/20 Adjusted appropriation_Source]]*T_DataComboFile[[#This Row],[G&S reporting level indicator]]","v":0},{"$f":"T_DataComboFile[[#This Row],[2019/20 Revised estimate_Source]]*T_DataComboFile[[#This Row],[G&S reporting level indicator]]","v":0},{"$f":"T_DataComboFile[[#This Row],[2019/20 Preliminary outcome_Source]]*T_DataComboFile[[#This Row],[G&S reporting level indicator]]","v":0},{"$f":"T_DataComboFile[[#This Row],[2020/21 Original_Source]]*T_DataComboFile[[#This Row],[G&S reporting level indicator]]","v":0},{"$f":"T_DataComboFile[[#This Row],[2020/21 SAB_Source]]*T_DataComboFile[[#This Row],[G&S reporting level indicator]]","v":0},{"$f":"T_DataComboFile[[#This Row],[2020/21 Baseline_Source]]*T_DataComboFile[[#This Row],[G&S reporting level indicator]]","v":0},{"$f":"T_DataComboFile[[#This Row],[2021/22 Baseline_Source]]*T_DataComboFile[[#This Row],[G&S reporting level indicator]]","v":0},{"$f":"T_DataComboFile[[#This Row],[2022/23 Baseline_Source]]*T_DataComboFile[[#This Row],[G&S reporting level indicator]]","v":0},{"$f":"T_DataComboFile[[#This Row],[2023/24 Baseline_Source]]*T_DataComboFile[[#This Row],[G&S reporting level indicator]]","v":0},null,null,null,null,null,null,{"$f":"T_DataComboFile[[#This Row],[2021/22 Baseline]]+T_DataComboFile[[#This Row],[2021/22 Reduction]]+T_DataComboFile[[#This Row],[2021/22 Increase]]","v":0},{"$f":"T_DataComboFile[[#This Row],[2022/23 Baseline]]+T_DataComboFile[[#This Row],[2022/23 Reduction]]+T_DataComboFile[[#This Row],[2022/23 Increase]]","v":0},{"$f":"T_DataComboFile[[#This Row],[2023/24 Baseline]]+T_DataComboFile[[#This Row],[2023/24 Reduction]]+T_DataComboFile[[#This Row],[2023/24 Increase]]","v":0}]
[null,null,"2021_22","ENE2020",36,1,5,null,70406,36,1,5,null,"070406","36|01|05",1,1,2,27,27,"01|01|02|27|27","National","Small Business Development","Administration","Communications",null,"Current","Current payments","Goods and services","Inventory: Medical supplies","Inventory: Medical supplies",null,null,null,0,0,0,0,0,0,0,0,0,0,0,0,0,0,null,{"$f":"IF(T_DataComboFile[[#This Row],[G&S reporting level indicator]]=1,$AX$16,\"Not applicable\")","v":"Not applicable"},{"$f":"IF(AND($AX$16=\"Level 3\",T_DataComboFile[[#This Row],[Econ3]] = \"Goods and services\"),IF(T_DataComboFile[[#This Row],[Econ4]] = T_DataComboFile[[#This Row],[Econ3]],1,0),IF(AND($AX$16=\"Level 4\",T_DataComboFile[[#This Row],[Econ4]] = \"Goods and services\"),0,1))","v":0},{"$f":"T_DataComboFile[[#This Row],[2016/17_Source]]*T_DataComboFile[[#This Row],[G&S reporting level indicator]]","v":0},{"$f":"T_DataComboFile[[#This Row],[2017/18_Source]]*T_DataComboFile[[#This Row],[G&S reporting level indicator]]","v":0},{"$f":"T_DataComboFile[[#This Row],[2018/19_Source]]*T_DataComboFile[[#This Row],[G&S reporting level indicator]]","v":0},{"$f":"T_DataComboFile[[#This Row],[2019/20 Main appropriation_Source]]*T_DataComboFile[[#This Row],[G&S reporting level indicator]]","v":0},{"$f":"T_DataComboFile[[#This Row],[2019/20 Adjusted appropriation_Source]]*T_DataComboFile[[#This Row],[G&S reporting level indicator]]","v":0},{"$f":"T_DataComboFile[[#This Row],[2019/20 Revised estimate_Source]]*T_DataComboFile[[#This Row],[G&S reporting level indicator]]","v":0},{"$f":"T_DataComboFile[[#This Row],[2019/20 Preliminary outcome_Source]]*T_DataComboFile[[#This Row],[G&S reporting level indicator]]","v":0},{"$f":"T_DataComboFile[[#This Row],[2020/21 Original_Source]]*T_DataComboFile[[#This Row],[G&S reporting level indicator]]","v":0},{"$f":"T_DataComboFile[[#This Row],[2020/21 SAB_Source]]*T_DataComboFile[[#This Row],[G&S reporting level indicator]]","v":0},{"$f":"T_DataComboFile[[#This Row],[2020/21 Baseline_Source]]*T_DataComboFile[[#This Row],[G&S reporting level indicator]]","v":0},{"$f":"T_DataComboFile[[#This Row],[2021/22 Baseline_Source]]*T_DataComboFile[[#This Row],[G&S reporting level indicator]]","v":0},{"$f":"T_DataComboFile[[#This Row],[2022/23 Baseline_Source]]*T_DataComboFile[[#This Row],[G&S reporting level indicator]]","v":0},{"$f":"T_DataComboFile[[#This Row],[2023/24 Baseline_Source]]*T_DataComboFile[[#This Row],[G&S reporting level indicator]]","v":0},null,null,null,null,null,null,{"$f":"T_DataComboFile[[#This Row],[2021/22 Baseline]]+T_DataComboFile[[#This Row],[2021/22 Reduction]]+T_DataComboFile[[#This Row],[2021/22 Increase]]","v":0},{"$f":"T_DataComboFile[[#This Row],[2022/23 Baseline]]+T_DataComboFile[[#This Row],[2022/23 Reduction]]+T_DataComboFile[[#This Row],[2022/23 Increase]]","v":0},{"$f":"T_DataComboFile[[#This Row],[2023/24 Baseline]]+T_DataComboFile[[#This Row],[2023/24 Reduction]]+T_DataComboFile[[#This Row],[2023/24 Increase]]","v":0}]
[null,null,"2021_22","ENE2020",36,1,5,null,70407,36,1,5,null,"070407","36|01|05",1,1,2,28,28,"01|01|02|28|28","National","Small Business Development","Administration","Communications",null,"Current","Current payments","Goods and services","Inventory: Medicine","Inventory: Medicine",null,null,null,0,0,0,0,0,0,0,0,0,0,0,0,0,0,null,{"$f":"IF(T_DataComboFile[[#This Row],[G&S reporting level indicator]]=1,$AX$16,\"Not applicable\")","v":"Not applicable"},{"$f":"IF(AND($AX$16=\"Level 3\",T_DataComboFile[[#This Row],[Econ3]] = \"Goods and services\"),IF(T_DataComboFile[[#This Row],[Econ4]] = T_DataComboFile[[#This Row],[Econ3]],1,0),IF(AND($AX$16=\"Level 4\",T_DataComboFile[[#This Row],[Econ4]] = \"Goods and services\"),0,1))","v":0},{"$f":"T_DataComboFile[[#This Row],[2016/17_Source]]*T_DataComboFile[[#This Row],[G&S reporting level indicator]]","v":0},{"$f":"T_DataComboFile[[#This Row],[2017/18_Source]]*T_DataComboFile[[#This Row],[G&S reporting level indicator]]","v":0},{"$f":"T_DataComboFile[[#This Row],[2018/19_Source]]*T_DataComboFile[[#This Row],[G&S reporting level indicator]]","v":0},{"$f":"T_DataComboFile[[#This Row],[2019/20 Main appropriation_Source]]*T_DataComboFile[[#This Row],[G&S reporting level indicator]]","v":0},{"$f":"T_DataComboFile[[#This Row],[2019/20 Adjusted appropriation_Source]]*T_DataComboFile[[#This Row],[G&S reporting level indicator]]","v":0},{"$f":"T_DataComboFile[[#This Row],[2019/20 Revised estimate_Source]]*T_DataComboFile[[#This Row],[G&S reporting level indicator]]","v":0},{"$f":"T_DataComboFile[[#This Row],[2019/20 Preliminary outcome_Source]]*T_DataComboFile[[#This Row],[G&S reporting level indicator]]","v":0},{"$f":"T_DataComboFile[[#This Row],[2020/21 Original_Source]]*T_DataComboFile[[#This Row],[G&S reporting level indicator]]","v":0},{"$f":"T_DataComboFile[[#This Row],[2020/21 SAB_Source]]*T_DataComboFile[[#This Row],[G&S reporting level indicator]]","v":0},{"$f":"T_DataComboFile[[#This Row],[2020/21 Baseline_Source]]*T_DataComboFile[[#This Row],[G&S reporting level indicator]]","v":0},{"$f":"T_DataComboFile[[#This Row],[2021/22 Baseline_Source]]*T_DataComboFile[[#This Row],[G&S reporting level indicator]]","v":0},{"$f":"T_DataComboFile[[#This Row],[2022/23 Baseline_Source]]*T_DataComboFile[[#This Row],[G&S reporting level indicator]]","v":0},{"$f":"T_DataComboFile[[#This Row],[2023/24 Baseline_Source]]*T_DataComboFile[[#This Row],[G&S reporting level indicator]]","v":0},null,null,null,null,null,null,{"$f":"T_DataComboFile[[#This Row],[2021/22 Baseline]]+T_DataComboFile[[#This Row],[2021/22 Reduction]]+T_DataComboFile[[#This Row],[2021/22 Increase]]","v":0},{"$f":"T_DataComboFile[[#This Row],[2022/23 Baseline]]+T_DataComboFile[[#This Row],[2022/23 Reduction]]+T_DataComboFile[[#This Row],[2022/23 Increase]]","v":0},{"$f":"T_DataComboFile[[#This Row],[2023/24 Baseline]]+T_DataComboFile[[#This Row],[2023/24 Reduction]]+T_DataComboFile[[#This Row],[2023/24 Increase]]","v":0}]
[null,null,"2021_22","ENE2020",36,1,5,null,70408,36,1,5,null,"070408","36|01|05",1,1,2,29,29,"01|01|02|29|29","National","Small Business Development","Administration","Communications",null,"Current","Current payments","Goods and services","Medsas inventory interface","Medsas inventory interface",null,null,null,0,0,0,0,0,0,0,0,0,0,0,0,0,0,null,{"$f":"IF(T_DataComboFile[[#This Row],[G&S reporting level indicator]]=1,$AX$16,\"Not applicable\")","v":"Not applicable"},{"$f":"IF(AND($AX$16=\"Level 3\",T_DataComboFile[[#This Row],[Econ3]] = \"Goods and services\"),IF(T_DataComboFile[[#This Row],[Econ4]] = T_DataComboFile[[#This Row],[Econ3]],1,0),IF(AND($AX$16=\"Level 4\",T_DataComboFile[[#This Row],[Econ4]] = \"Goods and services\"),0,1))","v":0},{"$f":"T_DataComboFile[[#This Row],[2016/17_Source]]*T_DataComboFile[[#This Row],[G&S reporting level indicator]]","v":0},{"$f":"T_DataComboFile[[#This Row],[2017/18_Source]]*T_DataComboFile[[#This Row],[G&S reporting level indicator]]","v":0},{"$f":"T_DataComboFile[[#This Row],[2018/19_Source]]*T_DataComboFile[[#This Row],[G&S reporting level indicator]]","v":0},{"$f":"T_DataComboFile[[#This Row],[2019/20 Main appropriation_Source]]*T_DataComboFile[[#This Row],[G&S reporting level indicator]]","v":0},{"$f":"T_DataComboFile[[#This Row],[2019/20 Adjusted appropriation_Source]]*T_DataComboFile[[#This Row],[G&S reporting level indicator]]","v":0},{"$f":"T_DataComboFile[[#This Row],[2019/20 Revised estimate_Source]]*T_DataComboFile[[#This Row],[G&S reporting level indicator]]","v":0},{"$f":"T_DataComboFile[[#This Row],[2019/20 Preliminary outcome_Source]]*T_DataComboFile[[#This Row],[G&S reporting level indicator]]","v":0},{"$f":"T_DataComboFile[[#This Row],[2020/21 Original_Source]]*T_DataComboFile[[#This Row],[G&S reporting level indicator]]","v":0},{"$f":"T_DataComboFile[[#This Row],[2020/21 SAB_Source]]*T_DataComboFile[[#This Row],[G&S reporting level indicator]]","v":0},{"$f":"T_DataComboFile[[#This Row],[2020/21 Baseline_Source]]*T_DataComboFile[[#This Row],[G&S reporting level indicator]]","v":0},{"$f":"T_DataComboFile[[#This Row],[2021/22 Baseline_Source]]*T_DataComboFile[[#This Row],[G&S reporting level indicator]]","v":0},{"$f":"T_DataComboFile[[#This Row],[2022/23 Baseline_Source]]*T_DataComboFile[[#This Row],[G&S reporting level indicator]]","v":0},{"$f":"T_DataComboFile[[#This Row],[2023/24 Baseline_Source]]*T_DataComboFile[[#This Row],[G&S reporting level indicator]]","v":0},null,null,null,null,null,null,{"$f":"T_DataComboFile[[#This Row],[2021/22 Baseline]]+T_DataComboFile[[#This Row],[2021/22 Reduction]]+T_DataComboFile[[#This Row],[2021/22 Increase]]","v":0},{"$f":"T_DataComboFile[[#This Row],[2022/23 Baseline]]+T_DataComboFile[[#This Row],[2022/23 Reduction]]+T_DataComboFile[[#This Row],[2022/23 Increase]]","v":0},{"$f":"T_DataComboFile[[#This Row],[2023/24 Baseline]]+T_DataComboFile[[#This Row],[2023/24 Reduction]]+T_DataComboFile[[#This Row],[2023/24 Increase]]","v":0}]
[null,null,"2021_22","ENE2020",36,1,5,null,70409,36,1,5,null,"070409","36|01|05",1,1,2,30,30,"01|01|02|30|30","National","Small Business Development","Administration","Communications",null,"Current","Current payments","Goods and services","Inventory: Other supplies","Inventory: Other supplies",null,null,null,0,0,0,0,0,0,0,0,0,0,0,0,0,0,null,{"$f":"IF(T_DataComboFile[[#This Row],[G&S reporting level indicator]]=1,$AX$16,\"Not applicable\")","v":"Not applicable"},{"$f":"IF(AND($AX$16=\"Level 3\",T_DataComboFile[[#This Row],[Econ3]] = \"Goods and services\"),IF(T_DataComboFile[[#This Row],[Econ4]] = T_DataComboFile[[#This Row],[Econ3]],1,0),IF(AND($AX$16=\"Level 4\",T_DataComboFile[[#This Row],[Econ4]] = \"Goods and services\"),0,1))","v":0},{"$f":"T_DataComboFile[[#This Row],[2016/17_Source]]*T_DataComboFile[[#This Row],[G&S reporting level indicator]]","v":0},{"$f":"T_DataComboFile[[#This Row],[2017/18_Source]]*T_DataComboFile[[#This Row],[G&S reporting level indicator]]","v":0},{"$f":"T_DataComboFile[[#This Row],[2018/19_Source]]*T_DataComboFile[[#This Row],[G&S reporting level indicator]]","v":0},{"$f":"T_DataComboFile[[#This Row],[2019/20 Main appropriation_Source]]*T_DataComboFile[[#This Row],[G&S reporting level indicator]]","v":0},{"$f":"T_DataComboFile[[#This Row],[2019/20 Adjusted appropriation_Source]]*T_DataComboFile[[#This Row],[G&S reporting level indicator]]","v":0},{"$f":"T_DataComboFile[[#This Row],[2019/20 Revised estimate_Source]]*T_DataComboFile[[#This Row],[G&S reporting level indicator]]","v":0},{"$f":"T_DataComboFile[[#This Row],[2019/20 Preliminary outcome_Source]]*T_DataComboFile[[#This Row],[G&S reporting level indicator]]","v":0},{"$f":"T_DataComboFile[[#This Row],[2020/21 Original_Source]]*T_DataComboFile[[#This Row],[G&S reporting level indicator]]","v":0},{"$f":"T_DataComboFile[[#This Row],[2020/21 SAB_Source]]*T_DataComboFile[[#This Row],[G&S reporting level indicator]]","v":0},{"$f":"T_DataComboFile[[#This Row],[2020/21 Baseline_Source]]*T_DataComboFile[[#This Row],[G&S reporting level indicator]]","v":0},{"$f":"T_DataComboFile[[#This Row],[2021/22 Baseline_Source]]*T_DataComboFile[[#This Row],[G&S reporting level indicator]]","v":0},{"$f":"T_DataComboFile[[#This Row],[2022/23 Baseline_Source]]*T_DataComboFile[[#This Row],[G&S reporting level indicator]]","v":0},{"$f":"T_DataComboFile[[#This Row],[2023/24 Baseline_Source]]*T_DataComboFile[[#This Row],[G&S reporting level indicator]]","v":0},null,null,null,null,null,null,{"$f":"T_DataComboFile[[#This Row],[2021/22 Baseline]]+T_DataComboFile[[#This Row],[2021/22 Reduction]]+T_DataComboFile[[#This Row],[2021/22 Increase]]","v":0},{"$f":"T_DataComboFile[[#This Row],[2022/23 Baseline]]+T_DataComboFile[[#This Row],[2022/23 Reduction]]+T_DataComboFile[[#This Row],[2022/23 Increase]]","v":0},{"$f":"T_DataComboFile[[#This Row],[2023/24 Baseline]]+T_DataComboFile[[#This Row],[2023/24 Reduction]]+T_DataComboFile[[#This Row],[2023/24 Increase]]","v":0}]
["NAT|Non-transfer item","36|Consumable supplies","2021_22","ENE2020",36,1,5,17273,70410,36,1,5,17273,"070410","36|01|05",1,1,2,31,31,"01|01|02|31|31","National","Small Business Development","Administration","Communications","Non-transfer item","Current","Current payments","Goods and services","Consumable supplies","Consumable supplies","Economic development","Industrialisation and exports","NAT",27,199,463,0,0,0,0,0,0,0,0,0,0,1,null,{"$f":"IF(T_DataComboFile[[#This Row],[G&S reporting level indicator]]=1,$AX$16,\"Not applicable\")","v":"Not applicable"},{"$f":"IF(AND($AX$16=\"Level 3\",T_DataComboFile[[#This Row],[Econ3]] = \"Goods and services\"),IF(T_DataComboFile[[#This Row],[Econ4]] = T_DataComboFile[[#This Row],[Econ3]],1,0),IF(AND($AX$16=\"Level 4\",T_DataComboFile[[#This Row],[Econ4]] = \"Goods and services\"),0,1))","v":0},{"$f":"T_DataComboFile[[#This Row],[2016/17_Source]]*T_DataComboFile[[#This Row],[G&S reporting level indicator]]","v":0},{"$f":"T_DataComboFile[[#This Row],[2017/18_Source]]*T_DataComboFile[[#This Row],[G&S reporting level indicator]]","v":0},{"$f":"T_DataComboFile[[#This Row],[2018/19_Source]]*T_DataComboFile[[#This Row],[G&S reporting level indicator]]","v":0},{"$f":"T_DataComboFile[[#This Row],[2019/20 Main appropriation_Source]]*T_DataComboFile[[#This Row],[G&S reporting level indicator]]","v":0},{"$f":"T_DataComboFile[[#This Row],[2019/20 Adjusted appropriation_Source]]*T_DataComboFile[[#This Row],[G&S reporting level indicator]]","v":0},{"$f":"T_DataComboFile[[#This Row],[2019/20 Revised estimate_Source]]*T_DataComboFile[[#This Row],[G&S reporting level indicator]]","v":0},{"$f":"T_DataComboFile[[#This Row],[2019/20 Preliminary outcome_Source]]*T_DataComboFile[[#This Row],[G&S reporting level indicator]]","v":0},{"$f":"T_DataComboFile[[#This Row],[2020/21 Original_Source]]*T_DataComboFile[[#This Row],[G&S reporting level indicator]]","v":0},{"$f":"T_DataComboFile[[#This Row],[2020/21 SAB_Source]]*T_DataComboFile[[#This Row],[G&S reporting level indicator]]","v":0},{"$f":"T_DataComboFile[[#This Row],[2020/21 Baseline_Source]]*T_DataComboFile[[#This Row],[G&S reporting level indicator]]","v":0},{"$f":"T_DataComboFile[[#This Row],[2021/22 Baseline_Source]]*T_DataComboFile[[#This Row],[G&S reporting level indicator]]","v":0},{"$f":"T_DataComboFile[[#This Row],[2022/23 Baseline_Source]]*T_DataComboFile[[#This Row],[G&S reporting level indicator]]","v":0},{"$f":"T_DataComboFile[[#This Row],[2023/24 Baseline_Source]]*T_DataComboFile[[#This Row],[G&S reporting level indicator]]","v":0},null,null,null,null,null,null,{"$f":"T_DataComboFile[[#This Row],[2021/22 Baseline]]+T_DataComboFile[[#This Row],[2021/22 Reduction]]+T_DataComboFile[[#This Row],[2021/22 Increase]]","v":0},{"$f":"T_DataComboFile[[#This Row],[2022/23 Baseline]]+T_DataComboFile[[#This Row],[2022/23 Reduction]]+T_DataComboFile[[#This Row],[2022/23 Increase]]","v":0},{"$f":"T_DataComboFile[[#This Row],[2023/24 Baseline]]+T_DataComboFile[[#This Row],[2023/24 Reduction]]+T_DataComboFile[[#This Row],[2023/24 Increase]]","v":0}]
["NAT|Non-transfer item","36|Consumables: Stationery, printing and office supplies","2021_22","ENE2020",36,1,5,17274,70411,36,1,5,17274,"070411","36|01|05",1,1,2,32,32,"01|01|02|32|32","National","Small Business Development","Administration","Communications","Non-transfer item","Current","Current payments","Goods and services","Consumables: Stationery, printing and office supplies","Consumables: Stationery, printing and office supplies","Economic development","Industrialisation and exports","NAT",412,270,195,52,17,17,17,120,120,120,124,126,132,1,null,{"$f":"IF(T_DataComboFile[[#This Row],[G&S reporting level indicator]]=1,$AX$16,\"Not applicable\")","v":"Not applicable"},{"$f":"IF(AND($AX$16=\"Level 3\",T_DataComboFile[[#This Row],[Econ3]] = \"Goods and services\"),IF(T_DataComboFile[[#This Row],[Econ4]] = T_DataComboFile[[#This Row],[Econ3]],1,0),IF(AND($AX$16=\"Level 4\",T_DataComboFile[[#This Row],[Econ4]] = \"Goods and services\"),0,1))","v":0},{"$f":"T_DataComboFile[[#This Row],[2016/17_Source]]*T_DataComboFile[[#This Row],[G&S reporting level indicator]]","v":0},{"$f":"T_DataComboFile[[#This Row],[2017/18_Source]]*T_DataComboFile[[#This Row],[G&S reporting level indicator]]","v":0},{"$f":"T_DataComboFile[[#This Row],[2018/19_Source]]*T_DataComboFile[[#This Row],[G&S reporting level indicator]]","v":0},{"$f":"T_DataComboFile[[#This Row],[2019/20 Main appropriation_Source]]*T_DataComboFile[[#This Row],[G&S reporting level indicator]]","v":0},{"$f":"T_DataComboFile[[#This Row],[2019/20 Adjusted appropriation_Source]]*T_DataComboFile[[#This Row],[G&S reporting level indicator]]","v":0},{"$f":"T_DataComboFile[[#This Row],[2019/20 Revised estimate_Source]]*T_DataComboFile[[#This Row],[G&S reporting level indicator]]","v":0},{"$f":"T_DataComboFile[[#This Row],[2019/20 Preliminary outcome_Source]]*T_DataComboFile[[#This Row],[G&S reporting level indicator]]","v":0},{"$f":"T_DataComboFile[[#This Row],[2020/21 Original_Source]]*T_DataComboFile[[#This Row],[G&S reporting level indicator]]","v":0},{"$f":"T_DataComboFile[[#This Row],[2020/21 SAB_Source]]*T_DataComboFile[[#This Row],[G&S reporting level indicator]]","v":0},{"$f":"T_DataComboFile[[#This Row],[2020/21 Baseline_Source]]*T_DataComboFile[[#This Row],[G&S reporting level indicator]]","v":0},{"$f":"T_DataComboFile[[#This Row],[2021/22 Baseline_Source]]*T_DataComboFile[[#This Row],[G&S reporting level indicator]]","v":0},{"$f":"T_DataComboFile[[#This Row],[2022/23 Baseline_Source]]*T_DataComboFile[[#This Row],[G&S reporting level indicator]]","v":0},{"$f":"T_DataComboFile[[#This Row],[2023/24 Baseline_Source]]*T_DataComboFile[[#This Row],[G&S reporting level indicator]]","v":0},null,null,null,null,null,null,{"$f":"T_DataComboFile[[#This Row],[2021/22 Baseline]]+T_DataComboFile[[#This Row],[2021/22 Reduction]]+T_DataComboFile[[#This Row],[2021/22 Increase]]","v":0},{"$f":"T_DataComboFile[[#This Row],[2022/23 Baseline]]+T_DataComboFile[[#This Row],[2022/23 Reduction]]+T_DataComboFile[[#This Row],[2022/23 Increase]]","v":0},{"$f":"T_DataComboFile[[#This Row],[2023/24 Baseline]]+T_DataComboFile[[#This Row],[2023/24 Reduction]]+T_DataComboFile[[#This Row],[2023/24 Increase]]","v":0}]
[null,null,"2021_22","ENE2020",36,1,5,null,70412,36,1,5,null,"070412","36|01|05",1,1,2,33,33,"01|01|02|33|33","National","Small Business Development","Administration","Communications",null,"Current","Current payments","Goods and services","Operating leases","Operating leases",null,null,null,0,0,0,0,0,0,0,0,0,0,0,0,0,0,null,{"$f":"IF(T_DataComboFile[[#This Row],[G&S reporting level indicator]]=1,$AX$16,\"Not applicable\")","v":"Not applicable"},{"$f":"IF(AND($AX$16=\"Level 3\",T_DataComboFile[[#This Row],[Econ3]] = \"Goods and services\"),IF(T_DataComboFile[[#This Row],[Econ4]] = T_DataComboFile[[#This Row],[Econ3]],1,0),IF(AND($AX$16=\"Level 4\",T_DataComboFile[[#This Row],[Econ4]] = \"Goods and services\"),0,1))","v":0},{"$f":"T_DataComboFile[[#This Row],[2016/17_Source]]*T_DataComboFile[[#This Row],[G&S reporting level indicator]]","v":0},{"$f":"T_DataComboFile[[#This Row],[2017/18_Source]]*T_DataComboFile[[#This Row],[G&S reporting level indicator]]","v":0},{"$f":"T_DataComboFile[[#This Row],[2018/19_Source]]*T_DataComboFile[[#This Row],[G&S reporting level indicator]]","v":0},{"$f":"T_DataComboFile[[#This Row],[2019/20 Main appropriation_Source]]*T_DataComboFile[[#This Row],[G&S reporting level indicator]]","v":0},{"$f":"T_DataComboFile[[#This Row],[2019/20 Adjusted appropriation_Source]]*T_DataComboFile[[#This Row],[G&S reporting level indicator]]","v":0},{"$f":"T_DataComboFile[[#This Row],[2019/20 Revised estimate_Source]]*T_DataComboFile[[#This Row],[G&S reporting level indicator]]","v":0},{"$f":"T_DataComboFile[[#This Row],[2019/20 Preliminary outcome_Source]]*T_DataComboFile[[#This Row],[G&S reporting level indicator]]","v":0},{"$f":"T_DataComboFile[[#This Row],[2020/21 Original_Source]]*T_DataComboFile[[#This Row],[G&S reporting level indicator]]","v":0},{"$f":"T_DataComboFile[[#This Row],[2020/21 SAB_Source]]*T_DataComboFile[[#This Row],[G&S reporting level indicator]]","v":0},{"$f":"T_DataComboFile[[#This Row],[2020/21 Baseline_Source]]*T_DataComboFile[[#This Row],[G&S reporting level indicator]]","v":0},{"$f":"T_DataComboFile[[#This Row],[2021/22 Baseline_Source]]*T_DataComboFile[[#This Row],[G&S reporting level indicator]]","v":0},{"$f":"T_DataComboFile[[#This Row],[2022/23 Baseline_Source]]*T_DataComboFile[[#This Row],[G&S reporting level indicator]]","v":0},{"$f":"T_DataComboFile[[#This Row],[2023/24 Baseline_Source]]*T_DataComboFile[[#This Row],[G&S reporting level indicator]]","v":0},null,null,null,null,null,null,{"$f":"T_DataComboFile[[#This Row],[2021/22 Baseline]]+T_DataComboFile[[#This Row],[2021/22 Reduction]]+T_DataComboFile[[#This Row],[2021/22 Increase]]","v":0},{"$f":"T_DataComboFile[[#This Row],[2022/23 Baseline]]+T_DataComboFile[[#This Row],[2022/23 Reduction]]+T_DataComboFile[[#This Row],[2022/23 Increase]]","v":0},{"$f":"T_DataComboFile[[#This Row],[2023/24 Baseline]]+T_DataComboFile[[#This Row],[2023/24 Reduction]]+T_DataComboFile[[#This Row],[2023/24 Increase]]","v":0}]
["NAT|Non-transfer item","36|Rental and hiring","2021_22","ENE2020",36,1,5,17275,70413,36,1,5,17275,"070413","36|01|05",1,1,2,34,34,"01|01|02|34|34","National","Small Business Development","Administration","Communications","Non-transfer item","Current","Current payments","Goods and services","Rental and hiring","Rental and hiring","Economic development","Industrialisation and exports","NAT",62,205,89,130,430,430,430,124,124,124,129,134,140,1,null,{"$f":"IF(T_DataComboFile[[#This Row],[G&S reporting level indicator]]=1,$AX$16,\"Not applicable\")","v":"Not applicable"},{"$f":"IF(AND($AX$16=\"Level 3\",T_DataComboFile[[#This Row],[Econ3]] = \"Goods and services\"),IF(T_DataComboFile[[#This Row],[Econ4]] = T_DataComboFile[[#This Row],[Econ3]],1,0),IF(AND($AX$16=\"Level 4\",T_DataComboFile[[#This Row],[Econ4]] = \"Goods and services\"),0,1))","v":0},{"$f":"T_DataComboFile[[#This Row],[2016/17_Source]]*T_DataComboFile[[#This Row],[G&S reporting level indicator]]","v":0},{"$f":"T_DataComboFile[[#This Row],[2017/18_Source]]*T_DataComboFile[[#This Row],[G&S reporting level indicator]]","v":0},{"$f":"T_DataComboFile[[#This Row],[2018/19_Source]]*T_DataComboFile[[#This Row],[G&S reporting level indicator]]","v":0},{"$f":"T_DataComboFile[[#This Row],[2019/20 Main appropriation_Source]]*T_DataComboFile[[#This Row],[G&S reporting level indicator]]","v":0},{"$f":"T_DataComboFile[[#This Row],[2019/20 Adjusted appropriation_Source]]*T_DataComboFile[[#This Row],[G&S reporting level indicator]]","v":0},{"$f":"T_DataComboFile[[#This Row],[2019/20 Revised estimate_Source]]*T_DataComboFile[[#This Row],[G&S reporting level indicator]]","v":0},{"$f":"T_DataComboFile[[#This Row],[2019/20 Preliminary outcome_Source]]*T_DataComboFile[[#This Row],[G&S reporting level indicator]]","v":0},{"$f":"T_DataComboFile[[#This Row],[2020/21 Original_Source]]*T_DataComboFile[[#This Row],[G&S reporting level indicator]]","v":0},{"$f":"T_DataComboFile[[#This Row],[2020/21 SAB_Source]]*T_DataComboFile[[#This Row],[G&S reporting level indicator]]","v":0},{"$f":"T_DataComboFile[[#This Row],[2020/21 Baseline_Source]]*T_DataComboFile[[#This Row],[G&S reporting level indicator]]","v":0},{"$f":"T_DataComboFile[[#This Row],[2021/22 Baseline_Source]]*T_DataComboFile[[#This Row],[G&S reporting level indicator]]","v":0},{"$f":"T_DataComboFile[[#This Row],[2022/23 Baseline_Source]]*T_DataComboFile[[#This Row],[G&S reporting level indicator]]","v":0},{"$f":"T_DataComboFile[[#This Row],[2023/24 Baseline_Source]]*T_DataComboFile[[#This Row],[G&S reporting level indicator]]","v":0},null,null,null,null,null,null,{"$f":"T_DataComboFile[[#This Row],[2021/22 Baseline]]+T_DataComboFile[[#This Row],[2021/22 Reduction]]+T_DataComboFile[[#This Row],[2021/22 Increase]]","v":0},{"$f":"T_DataComboFile[[#This Row],[2022/23 Baseline]]+T_DataComboFile[[#This Row],[2022/23 Reduction]]+T_DataComboFile[[#This Row],[2022/23 Increase]]","v":0},{"$f":"T_DataComboFile[[#This Row],[2023/24 Baseline]]+T_DataComboFile[[#This Row],[2023/24 Reduction]]+T_DataComboFile[[#This Row],[2023/24 Increase]]","v":0}]
[null,null,"2021_22","ENE2020",36,1,5,null,70414,36,1,5,null,"070414","36|01|05",1,1,2,35,35,"01|01|02|35|35","National","Small Business Development","Administration","Communications",null,"Current","Current payments","Goods and services","Property payments","Property payments",null,null,null,0,0,0,0,0,0,0,0,0,0,0,0,0,0,null,{"$f":"IF(T_DataComboFile[[#This Row],[G&S reporting level indicator]]=1,$AX$16,\"Not applicable\")","v":"Not applicable"},{"$f":"IF(AND($AX$16=\"Level 3\",T_DataComboFile[[#This Row],[Econ3]] = \"Goods and services\"),IF(T_DataComboFile[[#This Row],[Econ4]] = T_DataComboFile[[#This Row],[Econ3]],1,0),IF(AND($AX$16=\"Level 4\",T_DataComboFile[[#This Row],[Econ4]] = \"Goods and services\"),0,1))","v":0},{"$f":"T_DataComboFile[[#This Row],[2016/17_Source]]*T_DataComboFile[[#This Row],[G&S reporting level indicator]]","v":0},{"$f":"T_DataComboFile[[#This Row],[2017/18_Source]]*T_DataComboFile[[#This Row],[G&S reporting level indicator]]","v":0},{"$f":"T_DataComboFile[[#This Row],[2018/19_Source]]*T_DataComboFile[[#This Row],[G&S reporting level indicator]]","v":0},{"$f":"T_DataComboFile[[#This Row],[2019/20 Main appropriation_Source]]*T_DataComboFile[[#This Row],[G&S reporting level indicator]]","v":0},{"$f":"T_DataComboFile[[#This Row],[2019/20 Adjusted appropriation_Source]]*T_DataComboFile[[#This Row],[G&S reporting level indicator]]","v":0},{"$f":"T_DataComboFile[[#This Row],[2019/20 Revised estimate_Source]]*T_DataComboFile[[#This Row],[G&S reporting level indicator]]","v":0},{"$f":"T_DataComboFile[[#This Row],[2019/20 Preliminary outcome_Source]]*T_DataComboFile[[#This Row],[G&S reporting level indicator]]","v":0},{"$f":"T_DataComboFile[[#This Row],[2020/21 Original_Source]]*T_DataComboFile[[#This Row],[G&S reporting level indicator]]","v":0},{"$f":"T_DataComboFile[[#This Row],[2020/21 SAB_Source]]*T_DataComboFile[[#This Row],[G&S reporting level indicator]]","v":0},{"$f":"T_DataComboFile[[#This Row],[2020/21 Baseline_Source]]*T_DataComboFile[[#This Row],[G&S reporting level indicator]]","v":0},{"$f":"T_DataComboFile[[#This Row],[2021/22 Baseline_Source]]*T_DataComboFile[[#This Row],[G&S reporting level indicator]]","v":0},{"$f":"T_DataComboFile[[#This Row],[2022/23 Baseline_Source]]*T_DataComboFile[[#This Row],[G&S reporting level indicator]]","v":0},{"$f":"T_DataComboFile[[#This Row],[2023/24 Baseline_Source]]*T_DataComboFile[[#This Row],[G&S reporting level indicator]]","v":0},null,null,null,null,null,null,{"$f":"T_DataComboFile[[#This Row],[2021/22 Baseline]]+T_DataComboFile[[#This Row],[2021/22 Reduction]]+T_DataComboFile[[#This Row],[2021/22 Increase]]","v":0},{"$f":"T_DataComboFile[[#This Row],[2022/23 Baseline]]+T_DataComboFile[[#This Row],[2022/23 Reduction]]+T_DataComboFile[[#This Row],[2022/23 Increase]]","v":0},{"$f":"T_DataComboFile[[#This Row],[2023/24 Baseline]]+T_DataComboFile[[#This Row],[2023/24 Reduction]]+T_DataComboFile[[#This Row],[2023/24 Increase]]","v":0}]
[null,null,"2021_22","ENE2020",36,1,5,null,70415,36,1,5,null,"070415","36|01|05",1,1,2,36,36,"01|01|02|36|36","National","Small Business Development","Administration","Communications",null,"Current","Current payments","Goods and services","Transport provided: Departmental activity","Transport provided: Departmental activity",null,null,null,0,0,0,0,0,0,0,0,0,0,0,0,0,0,null,{"$f":"IF(T_DataComboFile[[#This Row],[G&S reporting level indicator]]=1,$AX$16,\"Not applicable\")","v":"Not applicable"},{"$f":"IF(AND($AX$16=\"Level 3\",T_DataComboFile[[#This Row],[Econ3]] = \"Goods and services\"),IF(T_DataComboFile[[#This Row],[Econ4]] = T_DataComboFile[[#This Row],[Econ3]],1,0),IF(AND($AX$16=\"Level 4\",T_DataComboFile[[#This Row],[Econ4]] = \"Goods and services\"),0,1))","v":0},{"$f":"T_DataComboFile[[#This Row],[2016/17_Source]]*T_DataComboFile[[#This Row],[G&S reporting level indicator]]","v":0},{"$f":"T_DataComboFile[[#This Row],[2017/18_Source]]*T_DataComboFile[[#This Row],[G&S reporting level indicator]]","v":0},{"$f":"T_DataComboFile[[#This Row],[2018/19_Source]]*T_DataComboFile[[#This Row],[G&S reporting level indicator]]","v":0},{"$f":"T_DataComboFile[[#This Row],[2019/20 Main appropriation_Source]]*T_DataComboFile[[#This Row],[G&S reporting level indicator]]","v":0},{"$f":"T_DataComboFile[[#This Row],[2019/20 Adjusted appropriation_Source]]*T_DataComboFile[[#This Row],[G&S reporting level indicator]]","v":0},{"$f":"T_DataComboFile[[#This Row],[2019/20 Revised estimate_Source]]*T_DataComboFile[[#This Row],[G&S reporting level indicator]]","v":0},{"$f":"T_DataComboFile[[#This Row],[2019/20 Preliminary outcome_Source]]*T_DataComboFile[[#This Row],[G&S reporting level indicator]]","v":0},{"$f":"T_DataComboFile[[#This Row],[2020/21 Original_Source]]*T_DataComboFile[[#This Row],[G&S reporting level indicator]]","v":0},{"$f":"T_DataComboFile[[#This Row],[2020/21 SAB_Source]]*T_DataComboFile[[#This Row],[G&S reporting level indicator]]","v":0},{"$f":"T_DataComboFile[[#This Row],[2020/21 Baseline_Source]]*T_DataComboFile[[#This Row],[G&S reporting level indicator]]","v":0},{"$f":"T_DataComboFile[[#This Row],[2021/22 Baseline_Source]]*T_DataComboFile[[#This Row],[G&S reporting level indicator]]","v":0},{"$f":"T_DataComboFile[[#This Row],[2022/23 Baseline_Source]]*T_DataComboFile[[#This Row],[G&S reporting level indicator]]","v":0},{"$f":"T_DataComboFile[[#This Row],[2023/24 Baseline_Source]]*T_DataComboFile[[#This Row],[G&S reporting level indicator]]","v":0},null,null,null,null,null,null,{"$f":"T_DataComboFile[[#This Row],[2021/22 Baseline]]+T_DataComboFile[[#This Row],[2021/22 Reduction]]+T_DataComboFile[[#This Row],[2021/22 Increase]]","v":0},{"$f":"T_DataComboFile[[#This Row],[2022/23 Baseline]]+T_DataComboFile[[#This Row],[2022/23 Reduction]]+T_DataComboFile[[#This Row],[2022/23 Increase]]","v":0},{"$f":"T_DataComboFile[[#This Row],[2023/24 Baseline]]+T_DataComboFile[[#This Row],[2023/24 Reduction]]+T_DataComboFile[[#This Row],[2023/24 Increase]]","v":0}]
["NAT|Non-transfer item","36|Travel and subsistence","2021_22","ENE2020",36,1,5,17276,70416,36,1,5,17276,"070416","36|01|05",1,1,2,37,37,"01|01|02|37|37","National","Small Business Development","Administration","Communications","Non-transfer item","Current","Current payments","Goods and services","Travel and subsistence","Travel and subsistence","Economic development","Industrialisation and exports","NAT",609,631,719,720,720,720,720,790,390,790,830,871,909,1,null,{"$f":"IF(T_DataComboFile[[#This Row],[G&S reporting level indicator]]=1,$AX$16,\"Not applicable\")","v":"Not applicable"},{"$f":"IF(AND($AX$16=\"Level 3\",T_DataComboFile[[#This Row],[Econ3]] = \"Goods and services\"),IF(T_DataComboFile[[#This Row],[Econ4]] = T_DataComboFile[[#This Row],[Econ3]],1,0),IF(AND($AX$16=\"Level 4\",T_DataComboFile[[#This Row],[Econ4]] = \"Goods and services\"),0,1))","v":0},{"$f":"T_DataComboFile[[#This Row],[2016/17_Source]]*T_DataComboFile[[#This Row],[G&S reporting level indicator]]","v":0},{"$f":"T_DataComboFile[[#This Row],[2017/18_Source]]*T_DataComboFile[[#This Row],[G&S reporting level indicator]]","v":0},{"$f":"T_DataComboFile[[#This Row],[2018/19_Source]]*T_DataComboFile[[#This Row],[G&S reporting level indicator]]","v":0},{"$f":"T_DataComboFile[[#This Row],[2019/20 Main appropriation_Source]]*T_DataComboFile[[#This Row],[G&S reporting level indicator]]","v":0},{"$f":"T_DataComboFile[[#This Row],[2019/20 Adjusted appropriation_Source]]*T_DataComboFile[[#This Row],[G&S reporting level indicator]]","v":0},{"$f":"T_DataComboFile[[#This Row],[2019/20 Revised estimate_Source]]*T_DataComboFile[[#This Row],[G&S reporting level indicator]]","v":0},{"$f":"T_DataComboFile[[#This Row],[2019/20 Preliminary outcome_Source]]*T_DataComboFile[[#This Row],[G&S reporting level indicator]]","v":0},{"$f":"T_DataComboFile[[#This Row],[2020/21 Original_Source]]*T_DataComboFile[[#This Row],[G&S reporting level indicator]]","v":0},{"$f":"T_DataComboFile[[#This Row],[2020/21 SAB_Source]]*T_DataComboFile[[#This Row],[G&S reporting level indicator]]","v":0},{"$f":"T_DataComboFile[[#This Row],[2020/21 Baseline_Source]]*T_DataComboFile[[#This Row],[G&S reporting level indicator]]","v":0},{"$f":"T_DataComboFile[[#This Row],[2021/22 Baseline_Source]]*T_DataComboFile[[#This Row],[G&S reporting level indicator]]","v":0},{"$f":"T_DataComboFile[[#This Row],[2022/23 Baseline_Source]]*T_DataComboFile[[#This Row],[G&S reporting level indicator]]","v":0},{"$f":"T_DataComboFile[[#This Row],[2023/24 Baseline_Source]]*T_DataComboFile[[#This Row],[G&S reporting level indicator]]","v":0},null,null,null,null,null,null,{"$f":"T_DataComboFile[[#This Row],[2021/22 Baseline]]+T_DataComboFile[[#This Row],[2021/22 Reduction]]+T_DataComboFile[[#This Row],[2021/22 Increase]]","v":0},{"$f":"T_DataComboFile[[#This Row],[2022/23 Baseline]]+T_DataComboFile[[#This Row],[2022/23 Reduction]]+T_DataComboFile[[#This Row],[2022/23 Increase]]","v":0},{"$f":"T_DataComboFile[[#This Row],[2023/24 Baseline]]+T_DataComboFile[[#This Row],[2023/24 Reduction]]+T_DataComboFile[[#This Row],[2023/24 Increase]]","v":0}]
[null,null,"2021_22","ENE2020",36,1,5,null,70417,36,1,5,null,"070417","36|01|05",1,1,2,38,38,"01|01|02|38|38","National","Small Business Development","Administration","Communications",null,"Current","Current payments","Goods and services","Training and development","Training and development",null,null,null,0,0,0,0,0,0,0,0,0,0,0,0,0,0,null,{"$f":"IF(T_DataComboFile[[#This Row],[G&S reporting level indicator]]=1,$AX$16,\"Not applicable\")","v":"Not applicable"},{"$f":"IF(AND($AX$16=\"Level 3\",T_DataComboFile[[#This Row],[Econ3]] = \"Goods and services\"),IF(T_DataComboFile[[#This Row],[Econ4]] = T_DataComboFile[[#This Row],[Econ3]],1,0),IF(AND($AX$16=\"Level 4\",T_DataComboFile[[#This Row],[Econ4]] = \"Goods and services\"),0,1))","v":0},{"$f":"T_DataComboFile[[#This Row],[2016/17_Source]]*T_DataComboFile[[#This Row],[G&S reporting level indicator]]","v":0},{"$f":"T_DataComboFile[[#This Row],[2017/18_Source]]*T_DataComboFile[[#This Row],[G&S reporting level indicator]]","v":0},{"$f":"T_DataComboFile[[#This Row],[2018/19_Source]]*T_DataComboFile[[#This Row],[G&S reporting level indicator]]","v":0},{"$f":"T_DataComboFile[[#This Row],[2019/20 Main appropriation_Source]]*T_DataComboFile[[#This Row],[G&S reporting level indicator]]","v":0},{"$f":"T_DataComboFile[[#This Row],[2019/20 Adjusted appropriation_Source]]*T_DataComboFile[[#This Row],[G&S reporting level indicator]]","v":0},{"$f":"T_DataComboFile[[#This Row],[2019/20 Revised estimate_Source]]*T_DataComboFile[[#This Row],[G&S reporting level indicator]]","v":0},{"$f":"T_DataComboFile[[#This Row],[2019/20 Preliminary outcome_Source]]*T_DataComboFile[[#This Row],[G&S reporting level indicator]]","v":0},{"$f":"T_DataComboFile[[#This Row],[2020/21 Original_Source]]*T_DataComboFile[[#This Row],[G&S reporting level indicator]]","v":0},{"$f":"T_DataComboFile[[#This Row],[2020/21 SAB_Source]]*T_DataComboFile[[#This Row],[G&S reporting level indicator]]","v":0},{"$f":"T_DataComboFile[[#This Row],[2020/21 Baseline_Source]]*T_DataComboFile[[#This Row],[G&S reporting level indicator]]","v":0},{"$f":"T_DataComboFile[[#This Row],[2021/22 Baseline_Source]]*T_DataComboFile[[#This Row],[G&S reporting level indicator]]","v":0},{"$f":"T_DataComboFile[[#This Row],[2022/23 Baseline_Source]]*T_DataComboFile[[#This Row],[G&S reporting level indicator]]","v":0},{"$f":"T_DataComboFile[[#This Row],[2023/24 Baseline_Source]]*T_DataComboFile[[#This Row],[G&S reporting level indicator]]","v":0},null,null,null,null,null,null,{"$f":"T_DataComboFile[[#This Row],[2021/22 Baseline]]+T_DataComboFile[[#This Row],[2021/22 Reduction]]+T_DataComboFile[[#This Row],[2021/22 Increase]]","v":0},{"$f":"T_DataComboFile[[#This Row],[2022/23 Baseline]]+T_DataComboFile[[#This Row],[2022/23 Reduction]]+T_DataComboFile[[#This Row],[2022/23 Increase]]","v":0},{"$f":"T_DataComboFile[[#This Row],[2023/24 Baseline]]+T_DataComboFile[[#This Row],[2023/24 Reduction]]+T_DataComboFile[[#This Row],[2023/24 Increase]]","v":0}]
["NAT|Non-transfer item","36|Operating payments","2021_22","ENE2020",36,1,5,17277,70418,36,1,5,17277,"070418","36|01|05",1,1,2,39,39,"01|01|02|39|39","National","Small Business Development","Administration","Communications","Non-transfer item","Current","Current payments","Goods and services","Operating payments","Operating payments","Economic development","Industrialisation and exports","NAT",216,72,539,74,14,14,14,530,530,530,564,587,613,1,null,{"$f":"IF(T_DataComboFile[[#This Row],[G&S reporting level indicator]]=1,$AX$16,\"Not applicable\")","v":"Not applicable"},{"$f":"IF(AND($AX$16=\"Level 3\",T_DataComboFile[[#This Row],[Econ3]] = \"Goods and services\"),IF(T_DataComboFile[[#This Row],[Econ4]] = T_DataComboFile[[#This Row],[Econ3]],1,0),IF(AND($AX$16=\"Level 4\",T_DataComboFile[[#This Row],[Econ4]] = \"Goods and services\"),0,1))","v":0},{"$f":"T_DataComboFile[[#This Row],[2016/17_Source]]*T_DataComboFile[[#This Row],[G&S reporting level indicator]]","v":0},{"$f":"T_DataComboFile[[#This Row],[2017/18_Source]]*T_DataComboFile[[#This Row],[G&S reporting level indicator]]","v":0},{"$f":"T_DataComboFile[[#This Row],[2018/19_Source]]*T_DataComboFile[[#This Row],[G&S reporting level indicator]]","v":0},{"$f":"T_DataComboFile[[#This Row],[2019/20 Main appropriation_Source]]*T_DataComboFile[[#This Row],[G&S reporting level indicator]]","v":0},{"$f":"T_DataComboFile[[#This Row],[2019/20 Adjusted appropriation_Source]]*T_DataComboFile[[#This Row],[G&S reporting level indicator]]","v":0},{"$f":"T_DataComboFile[[#This Row],[2019/20 Revised estimate_Source]]*T_DataComboFile[[#This Row],[G&S reporting level indicator]]","v":0},{"$f":"T_DataComboFile[[#This Row],[2019/20 Preliminary outcome_Source]]*T_DataComboFile[[#This Row],[G&S reporting level indicator]]","v":0},{"$f":"T_DataComboFile[[#This Row],[2020/21 Original_Source]]*T_DataComboFile[[#This Row],[G&S reporting level indicator]]","v":0},{"$f":"T_DataComboFile[[#This Row],[2020/21 SAB_Source]]*T_DataComboFile[[#This Row],[G&S reporting level indicator]]","v":0},{"$f":"T_DataComboFile[[#This Row],[2020/21 Baseline_Source]]*T_DataComboFile[[#This Row],[G&S reporting level indicator]]","v":0},{"$f":"T_DataComboFile[[#This Row],[2021/22 Baseline_Source]]*T_DataComboFile[[#This Row],[G&S reporting level indicator]]","v":0},{"$f":"T_DataComboFile[[#This Row],[2022/23 Baseline_Source]]*T_DataComboFile[[#This Row],[G&S reporting level indicator]]","v":0},{"$f":"T_DataComboFile[[#This Row],[2023/24 Baseline_Source]]*T_DataComboFile[[#This Row],[G&S reporting level indicator]]","v":0},null,null,null,null,null,null,{"$f":"T_DataComboFile[[#This Row],[2021/22 Baseline]]+T_DataComboFile[[#This Row],[2021/22 Reduction]]+T_DataComboFile[[#This Row],[2021/22 Increase]]","v":0},{"$f":"T_DataComboFile[[#This Row],[2022/23 Baseline]]+T_DataComboFile[[#This Row],[2022/23 Reduction]]+T_DataComboFile[[#This Row],[2022/23 Increase]]","v":0},{"$f":"T_DataComboFile[[#This Row],[2023/24 Baseline]]+T_DataComboFile[[#This Row],[2023/24 Reduction]]+T_DataComboFile[[#This Row],[2023/24 Increase]]","v":0}]
["NAT|Non-transfer item","36|Venues and facilities","2021_22","ENE2020",36,1,5,17278,70419,36,1,5,17278,"070419","36|01|05",1,1,2,40,40,"01|01|02|40|40","National","Small Business Development","Administration","Communications","Non-transfer item","Current","Current payments","Goods and services","Venues and facilities","Venues and facilities","Economic development","Industrialisation and exports","NAT",0,0,30,0,145,145,145,0,0,0,0,0,0,1,null,{"$f":"IF(T_DataComboFile[[#This Row],[G&S reporting level indicator]]=1,$AX$16,\"Not applicable\")","v":"Not applicable"},{"$f":"IF(AND($AX$16=\"Level 3\",T_DataComboFile[[#This Row],[Econ3]] = \"Goods and services\"),IF(T_DataComboFile[[#This Row],[Econ4]] = T_DataComboFile[[#This Row],[Econ3]],1,0),IF(AND($AX$16=\"Level 4\",T_DataComboFile[[#This Row],[Econ4]] = \"Goods and services\"),0,1))","v":0},{"$f":"T_DataComboFile[[#This Row],[2016/17_Source]]*T_DataComboFile[[#This Row],[G&S reporting level indicator]]","v":0},{"$f":"T_DataComboFile[[#This Row],[2017/18_Source]]*T_DataComboFile[[#This Row],[G&S reporting level indicator]]","v":0},{"$f":"T_DataComboFile[[#This Row],[2018/19_Source]]*T_DataComboFile[[#This Row],[G&S reporting level indicator]]","v":0},{"$f":"T_DataComboFile[[#This Row],[2019/20 Main appropriation_Source]]*T_DataComboFile[[#This Row],[G&S reporting level indicator]]","v":0},{"$f":"T_DataComboFile[[#This Row],[2019/20 Adjusted appropriation_Source]]*T_DataComboFile[[#This Row],[G&S reporting level indicator]]","v":0},{"$f":"T_DataComboFile[[#This Row],[2019/20 Revised estimate_Source]]*T_DataComboFile[[#This Row],[G&S reporting level indicator]]","v":0},{"$f":"T_DataComboFile[[#This Row],[2019/20 Preliminary outcome_Source]]*T_DataComboFile[[#This Row],[G&S reporting level indicator]]","v":0},{"$f":"T_DataComboFile[[#This Row],[2020/21 Original_Source]]*T_DataComboFile[[#This Row],[G&S reporting level indicator]]","v":0},{"$f":"T_DataComboFile[[#This Row],[2020/21 SAB_Source]]*T_DataComboFile[[#This Row],[G&S reporting level indicator]]","v":0},{"$f":"T_DataComboFile[[#This Row],[2020/21 Baseline_Source]]*T_DataComboFile[[#This Row],[G&S reporting level indicator]]","v":0},{"$f":"T_DataComboFile[[#This Row],[2021/22 Baseline_Source]]*T_DataComboFile[[#This Row],[G&S reporting level indicator]]","v":0},{"$f":"T_DataComboFile[[#This Row],[2022/23 Baseline_Source]]*T_DataComboFile[[#This Row],[G&S reporting level indicator]]","v":0},{"$f":"T_DataComboFile[[#This Row],[2023/24 Baseline_Source]]*T_DataComboFile[[#This Row],[G&S reporting level indicator]]","v":0},null,null,null,null,null,null,{"$f":"T_DataComboFile[[#This Row],[2021/22 Baseline]]+T_DataComboFile[[#This Row],[2021/22 Reduction]]+T_DataComboFile[[#This Row],[2021/22 Increase]]","v":0},{"$f":"T_DataComboFile[[#This Row],[2022/23 Baseline]]+T_DataComboFile[[#This Row],[2022/23 Reduction]]+T_DataComboFile[[#This Row],[2022/23 Increase]]","v":0},{"$f":"T_DataComboFile[[#This Row],[2023/24 Baseline]]+T_DataComboFile[[#This Row],[2023/24 Reduction]]+T_DataComboFile[[#This Row],[2023/24 Increase]]","v":0}]
[null,null,"2021_22","ENE2020",36,1,5,null,70420,36,1,5,null,"070420","36|01|05",1,1,3,41,41,"01|01|03|41|41","National","Small Business Development","Administration","Communications",null,"Current","Current payments","Interest and rent on land","Interest (Incl. interest on unitary payments (PPP))","Interest (Incl. interest on unitary payments (PPP))",null,null,null,0,0,0,0,0,0,0,0,0,0,0,0,0,0,null,{"$f":"IF(T_DataComboFile[[#This Row],[G&S reporting level indicator]]=1,$AX$16,\"Not applicable\")","v":"Level 3"},{"$f":"IF(AND($AX$16=\"Level 3\",T_DataComboFile[[#This Row],[Econ3]] = \"Goods and services\"),IF(T_DataComboFile[[#This Row],[Econ4]] = T_DataComboFile[[#This Row],[Econ3]],1,0),IF(AND($AX$16=\"Level 4\",T_DataComboFile[[#This Row],[Econ4]] = \"Goods and services\"),0,1))","v":1},{"$f":"T_DataComboFile[[#This Row],[2016/17_Source]]*T_DataComboFile[[#This Row],[G&S reporting level indicator]]","v":0},{"$f":"T_DataComboFile[[#This Row],[2017/18_Source]]*T_DataComboFile[[#This Row],[G&S reporting level indicator]]","v":0},{"$f":"T_DataComboFile[[#This Row],[2018/19_Source]]*T_DataComboFile[[#This Row],[G&S reporting level indicator]]","v":0},{"$f":"T_DataComboFile[[#This Row],[2019/20 Main appropriation_Source]]*T_DataComboFile[[#This Row],[G&S reporting level indicator]]","v":0},{"$f":"T_DataComboFile[[#This Row],[2019/20 Adjusted appropriation_Source]]*T_DataComboFile[[#This Row],[G&S reporting level indicator]]","v":0},{"$f":"T_DataComboFile[[#This Row],[2019/20 Revised estimate_Source]]*T_DataComboFile[[#This Row],[G&S reporting level indicator]]","v":0},{"$f":"T_DataComboFile[[#This Row],[2019/20 Preliminary outcome_Source]]*T_DataComboFile[[#This Row],[G&S reporting level indicator]]","v":0},{"$f":"T_DataComboFile[[#This Row],[2020/21 Original_Source]]*T_DataComboFile[[#This Row],[G&S reporting level indicator]]","v":0},{"$f":"T_DataComboFile[[#This Row],[2020/21 SAB_Source]]*T_DataComboFile[[#This Row],[G&S reporting level indicator]]","v":0},{"$f":"T_DataComboFile[[#This Row],[2020/21 Baseline_Source]]*T_DataComboFile[[#This Row],[G&S reporting level indicator]]","v":0},{"$f":"T_DataComboFile[[#This Row],[2021/22 Baseline_Source]]*T_DataComboFile[[#This Row],[G&S reporting level indicator]]","v":0},{"$f":"T_DataComboFile[[#This Row],[2022/23 Baseline_Source]]*T_DataComboFile[[#This Row],[G&S reporting level indicator]]","v":0},{"$f":"T_DataComboFile[[#This Row],[2023/24 Baseline_Source]]*T_DataComboFile[[#This Row],[G&S reporting level indicator]]","v":0},null,null,null,null,null,null,{"$f":"T_DataComboFile[[#This Row],[2021/22 Baseline]]+T_DataComboFile[[#This Row],[2021/22 Reduction]]+T_DataComboFile[[#This Row],[2021/22 Increase]]","v":0},{"$f":"T_DataComboFile[[#This Row],[2022/23 Baseline]]+T_DataComboFile[[#This Row],[2022/23 Reduction]]+T_DataComboFile[[#This Row],[2022/23 Increase]]","v":0},{"$f":"T_DataComboFile[[#This Row],[2023/24 Baseline]]+T_DataComboFile[[#This Row],[2023/24 Reduction]]+T_DataComboFile[[#This Row],[2023/24 Increase]]","v":0}]
[null,null,"2021_22","ENE2020",36,1,5,null,70421,36,1,5,null,"070421","36|01|05",1,1,3,42,42,"01|01|03|42|42","National","Small Business Development","Administration","Communications",null,"Current","Current payments","Interest and rent on land","Rent on land","Rent on land",null,null,null,0,0,0,0,0,0,0,0,0,0,0,0,0,0,null,{"$f":"IF(T_DataComboFile[[#This Row],[G&S reporting level indicator]]=1,$AX$16,\"Not applicable\")","v":"Level 3"},{"$f":"IF(AND($AX$16=\"Level 3\",T_DataComboFile[[#This Row],[Econ3]] = \"Goods and services\"),IF(T_DataComboFile[[#This Row],[Econ4]] = T_DataComboFile[[#This Row],[Econ3]],1,0),IF(AND($AX$16=\"Level 4\",T_DataComboFile[[#This Row],[Econ4]] = \"Goods and services\"),0,1))","v":1},{"$f":"T_DataComboFile[[#This Row],[2016/17_Source]]*T_DataComboFile[[#This Row],[G&S reporting level indicator]]","v":0},{"$f":"T_DataComboFile[[#This Row],[2017/18_Source]]*T_DataComboFile[[#This Row],[G&S reporting level indicator]]","v":0},{"$f":"T_DataComboFile[[#This Row],[2018/19_Source]]*T_DataComboFile[[#This Row],[G&S reporting level indicator]]","v":0},{"$f":"T_DataComboFile[[#This Row],[2019/20 Main appropriation_Source]]*T_DataComboFile[[#This Row],[G&S reporting level indicator]]","v":0},{"$f":"T_DataComboFile[[#This Row],[2019/20 Adjusted appropriation_Source]]*T_DataComboFile[[#This Row],[G&S reporting level indicator]]","v":0},{"$f":"T_DataComboFile[[#This Row],[2019/20 Revised estimate_Source]]*T_DataComboFile[[#This Row],[G&S reporting level indicator]]","v":0},{"$f":"T_DataComboFile[[#This Row],[2019/20 Preliminary outcome_Source]]*T_DataComboFile[[#This Row],[G&S reporting level indicator]]","v":0},{"$f":"T_DataComboFile[[#This Row],[2020/21 Original_Source]]*T_DataComboFile[[#This Row],[G&S reporting level indicator]]","v":0},{"$f":"T_DataComboFile[[#This Row],[2020/21 SAB_Source]]*T_DataComboFile[[#This Row],[G&S reporting level indicator]]","v":0},{"$f":"T_DataComboFile[[#This Row],[2020/21 Baseline_Source]]*T_DataComboFile[[#This Row],[G&S reporting level indicator]]","v":0},{"$f":"T_DataComboFile[[#This Row],[2021/22 Baseline_Source]]*T_DataComboFile[[#This Row],[G&S reporting level indicator]]","v":0},{"$f":"T_DataComboFile[[#This Row],[2022/23 Baseline_Source]]*T_DataComboFile[[#This Row],[G&S reporting level indicator]]","v":0},{"$f":"T_DataComboFile[[#This Row],[2023/24 Baseline_Source]]*T_DataComboFile[[#This Row],[G&S reporting level indicator]]","v":0},null,null,null,null,null,null,{"$f":"T_DataComboFile[[#This Row],[2021/22 Baseline]]+T_DataComboFile[[#This Row],[2021/22 Reduction]]+T_DataComboFile[[#This Row],[2021/22 Increase]]","v":0},{"$f":"T_DataComboFile[[#This Row],[2022/23 Baseline]]+T_DataComboFile[[#This Row],[2022/23 Reduction]]+T_DataComboFile[[#This Row],[2022/23 Increase]]","v":0},{"$f":"T_DataComboFile[[#This Row],[2023/24 Baseline]]+T_DataComboFile[[#This Row],[2023/24 Reduction]]+T_DataComboFile[[#This Row],[2023/24 Increase]]","v":0}]
[null,null,"2021_22","ENE2020",36,1,5,null,70422,36,1,5,null,"070422","36|01|05",1,2,4,43,43,"01|02|04|43|43","National","Small Business Development","Administration","Communications",null,"Current","Transfers and subsidies","Provinces and municipalities","Provinces","Provincial Revenue Funds",null,null,null,0,0,0,0,0,0,0,0,0,0,0,0,0,0,null,{"$f":"IF(T_DataComboFile[[#This Row],[G&S reporting level indicator]]=1,$AX$16,\"Not applicable\")","v":"Level 3"},{"$f":"IF(AND($AX$16=\"Level 3\",T_DataComboFile[[#This Row],[Econ3]] = \"Goods and services\"),IF(T_DataComboFile[[#This Row],[Econ4]] = T_DataComboFile[[#This Row],[Econ3]],1,0),IF(AND($AX$16=\"Level 4\",T_DataComboFile[[#This Row],[Econ4]] = \"Goods and services\"),0,1))","v":1},{"$f":"T_DataComboFile[[#This Row],[2016/17_Source]]*T_DataComboFile[[#This Row],[G&S reporting level indicator]]","v":0},{"$f":"T_DataComboFile[[#This Row],[2017/18_Source]]*T_DataComboFile[[#This Row],[G&S reporting level indicator]]","v":0},{"$f":"T_DataComboFile[[#This Row],[2018/19_Source]]*T_DataComboFile[[#This Row],[G&S reporting level indicator]]","v":0},{"$f":"T_DataComboFile[[#This Row],[2019/20 Main appropriation_Source]]*T_DataComboFile[[#This Row],[G&S reporting level indicator]]","v":0},{"$f":"T_DataComboFile[[#This Row],[2019/20 Adjusted appropriation_Source]]*T_DataComboFile[[#This Row],[G&S reporting level indicator]]","v":0},{"$f":"T_DataComboFile[[#This Row],[2019/20 Revised estimate_Source]]*T_DataComboFile[[#This Row],[G&S reporting level indicator]]","v":0},{"$f":"T_DataComboFile[[#This Row],[2019/20 Preliminary outcome_Source]]*T_DataComboFile[[#This Row],[G&S reporting level indicator]]","v":0},{"$f":"T_DataComboFile[[#This Row],[2020/21 Original_Source]]*T_DataComboFile[[#This Row],[G&S reporting level indicator]]","v":0},{"$f":"T_DataComboFile[[#This Row],[2020/21 SAB_Source]]*T_DataComboFile[[#This Row],[G&S reporting level indicator]]","v":0},{"$f":"T_DataComboFile[[#This Row],[2020/21 Baseline_Source]]*T_DataComboFile[[#This Row],[G&S reporting level indicator]]","v":0},{"$f":"T_DataComboFile[[#This Row],[2021/22 Baseline_Source]]*T_DataComboFile[[#This Row],[G&S reporting level indicator]]","v":0},{"$f":"T_DataComboFile[[#This Row],[2022/23 Baseline_Source]]*T_DataComboFile[[#This Row],[G&S reporting level indicator]]","v":0},{"$f":"T_DataComboFile[[#This Row],[2023/24 Baseline_Source]]*T_DataComboFile[[#This Row],[G&S reporting level indicator]]","v":0},null,null,null,null,null,null,{"$f":"T_DataComboFile[[#This Row],[2021/22 Baseline]]+T_DataComboFile[[#This Row],[2021/22 Reduction]]+T_DataComboFile[[#This Row],[2021/22 Increase]]","v":0},{"$f":"T_DataComboFile[[#This Row],[2022/23 Baseline]]+T_DataComboFile[[#This Row],[2022/23 Reduction]]+T_DataComboFile[[#This Row],[2022/23 Increase]]","v":0},{"$f":"T_DataComboFile[[#This Row],[2023/24 Baseline]]+T_DataComboFile[[#This Row],[2023/24 Reduction]]+T_DataComboFile[[#This Row],[2023/24 Increase]]","v":0}]
[null,null,"2021_22","ENE2020",36,1,5,null,70423,36,1,5,null,"070423","36|01|05",1,2,4,43,44,"01|02|04|43|44","National","Small Business Development","Administration","Communications",null,"Current","Transfers and subsidies","Provinces and municipalities","Provinces","Provincial agencies and funds",null,null,null,0,0,0,0,0,0,0,0,0,0,0,0,0,0,null,{"$f":"IF(T_DataComboFile[[#This Row],[G&S reporting level indicator]]=1,$AX$16,\"Not applicable\")","v":"Level 3"},{"$f":"IF(AND($AX$16=\"Level 3\",T_DataComboFile[[#This Row],[Econ3]] = \"Goods and services\"),IF(T_DataComboFile[[#This Row],[Econ4]] = T_DataComboFile[[#This Row],[Econ3]],1,0),IF(AND($AX$16=\"Level 4\",T_DataComboFile[[#This Row],[Econ4]] = \"Goods and services\"),0,1))","v":1},{"$f":"T_DataComboFile[[#This Row],[2016/17_Source]]*T_DataComboFile[[#This Row],[G&S reporting level indicator]]","v":0},{"$f":"T_DataComboFile[[#This Row],[2017/18_Source]]*T_DataComboFile[[#This Row],[G&S reporting level indicator]]","v":0},{"$f":"T_DataComboFile[[#This Row],[2018/19_Source]]*T_DataComboFile[[#This Row],[G&S reporting level indicator]]","v":0},{"$f":"T_DataComboFile[[#This Row],[2019/20 Main appropriation_Source]]*T_DataComboFile[[#This Row],[G&S reporting level indicator]]","v":0},{"$f":"T_DataComboFile[[#This Row],[2019/20 Adjusted appropriation_Source]]*T_DataComboFile[[#This Row],[G&S reporting level indicator]]","v":0},{"$f":"T_DataComboFile[[#This Row],[2019/20 Revised estimate_Source]]*T_DataComboFile[[#This Row],[G&S reporting level indicator]]","v":0},{"$f":"T_DataComboFile[[#This Row],[2019/20 Preliminary outcome_Source]]*T_DataComboFile[[#This Row],[G&S reporting level indicator]]","v":0},{"$f":"T_DataComboFile[[#This Row],[2020/21 Original_Source]]*T_DataComboFile[[#This Row],[G&S reporting level indicator]]","v":0},{"$f":"T_DataComboFile[[#This Row],[2020/21 SAB_Source]]*T_DataComboFile[[#This Row],[G&S reporting level indicator]]","v":0},{"$f":"T_DataComboFile[[#This Row],[2020/21 Baseline_Source]]*T_DataComboFile[[#This Row],[G&S reporting level indicator]]","v":0},{"$f":"T_DataComboFile[[#This Row],[2021/22 Baseline_Source]]*T_DataComboFile[[#This Row],[G&S reporting level indicator]]","v":0},{"$f":"T_DataComboFile[[#This Row],[2022/23 Baseline_Source]]*T_DataComboFile[[#This Row],[G&S reporting level indicator]]","v":0},{"$f":"T_DataComboFile[[#This Row],[2023/24 Baseline_Source]]*T_DataComboFile[[#This Row],[G&S reporting level indicator]]","v":0},null,null,null,null,null,null,{"$f":"T_DataComboFile[[#This Row],[2021/22 Baseline]]+T_DataComboFile[[#This Row],[2021/22 Reduction]]+T_DataComboFile[[#This Row],[2021/22 Increase]]","v":0},{"$f":"T_DataComboFile[[#This Row],[2022/23 Baseline]]+T_DataComboFile[[#This Row],[2022/23 Reduction]]+T_DataComboFile[[#This Row],[2022/23 Increase]]","v":0},{"$f":"T_DataComboFile[[#This Row],[2023/24 Baseline]]+T_DataComboFile[[#This Row],[2023/24 Reduction]]+T_DataComboFile[[#This Row],[2023/24 Increase]]","v":0}]
[null,null,"2021_22","ENE2020",36,1,5,null,70424,36,1,5,null,"070424","36|01|05",1,2,4,44,45,"01|02|04|44|45","National","Small Business Development","Administration","Communications",null,"Current","Transfers and subsidies","Provinces and municipalities","Municipalities","Municipal bank accounts",null,null,null,0,0,0,0,0,0,0,0,0,0,0,0,0,0,null,{"$f":"IF(T_DataComboFile[[#This Row],[G&S reporting level indicator]]=1,$AX$16,\"Not applicable\")","v":"Level 3"},{"$f":"IF(AND($AX$16=\"Level 3\",T_DataComboFile[[#This Row],[Econ3]] = \"Goods and services\"),IF(T_DataComboFile[[#This Row],[Econ4]] = T_DataComboFile[[#This Row],[Econ3]],1,0),IF(AND($AX$16=\"Level 4\",T_DataComboFile[[#This Row],[Econ4]] = \"Goods and services\"),0,1))","v":1},{"$f":"T_DataComboFile[[#This Row],[2016/17_Source]]*T_DataComboFile[[#This Row],[G&S reporting level indicator]]","v":0},{"$f":"T_DataComboFile[[#This Row],[2017/18_Source]]*T_DataComboFile[[#This Row],[G&S reporting level indicator]]","v":0},{"$f":"T_DataComboFile[[#This Row],[2018/19_Source]]*T_DataComboFile[[#This Row],[G&S reporting level indicator]]","v":0},{"$f":"T_DataComboFile[[#This Row],[2019/20 Main appropriation_Source]]*T_DataComboFile[[#This Row],[G&S reporting level indicator]]","v":0},{"$f":"T_DataComboFile[[#This Row],[2019/20 Adjusted appropriation_Source]]*T_DataComboFile[[#This Row],[G&S reporting level indicator]]","v":0},{"$f":"T_DataComboFile[[#This Row],[2019/20 Revised estimate_Source]]*T_DataComboFile[[#This Row],[G&S reporting level indicator]]","v":0},{"$f":"T_DataComboFile[[#This Row],[2019/20 Preliminary outcome_Source]]*T_DataComboFile[[#This Row],[G&S reporting level indicator]]","v":0},{"$f":"T_DataComboFile[[#This Row],[2020/21 Original_Source]]*T_DataComboFile[[#This Row],[G&S reporting level indicator]]","v":0},{"$f":"T_DataComboFile[[#This Row],[2020/21 SAB_Source]]*T_DataComboFile[[#This Row],[G&S reporting level indicator]]","v":0},{"$f":"T_DataComboFile[[#This Row],[2020/21 Baseline_Source]]*T_DataComboFile[[#This Row],[G&S reporting level indicator]]","v":0},{"$f":"T_DataComboFile[[#This Row],[2021/22 Baseline_Source]]*T_DataComboFile[[#This Row],[G&S reporting level indicator]]","v":0},{"$f":"T_DataComboFile[[#This Row],[2022/23 Baseline_Source]]*T_DataComboFile[[#This Row],[G&S reporting level indicator]]","v":0},{"$f":"T_DataComboFile[[#This Row],[2023/24 Baseline_Source]]*T_DataComboFile[[#This Row],[G&S reporting level indicator]]","v":0},null,null,null,null,null,null,{"$f":"T_DataComboFile[[#This Row],[2021/22 Baseline]]+T_DataComboFile[[#This Row],[2021/22 Reduction]]+T_DataComboFile[[#This Row],[2021/22 Increase]]","v":0},{"$f":"T_DataComboFile[[#This Row],[2022/23 Baseline]]+T_DataComboFile[[#This Row],[2022/23 Reduction]]+T_DataComboFile[[#This Row],[2022/23 Increase]]","v":0},{"$f":"T_DataComboFile[[#This Row],[2023/24 Baseline]]+T_DataComboFile[[#This Row],[2023/24 Reduction]]+T_DataComboFile[[#This Row],[2023/24 Increase]]","v":0}]
[null,null,"2021_22","ENE2020",36,1,5,null,70425,36,1,5,null,"070425","36|01|05",1,2,4,44,46,"01|02|04|44|46","National","Small Business Development","Administration","Communications",null,"Current","Transfers and subsidies","Provinces and municipalities","Municipalities","Municipal agencies and funds",null,null,null,0,0,0,0,0,0,0,0,0,0,0,0,0,0,null,{"$f":"IF(T_DataComboFile[[#This Row],[G&S reporting level indicator]]=1,$AX$16,\"Not applicable\")","v":"Level 3"},{"$f":"IF(AND($AX$16=\"Level 3\",T_DataComboFile[[#This Row],[Econ3]] = \"Goods and services\"),IF(T_DataComboFile[[#This Row],[Econ4]] = T_DataComboFile[[#This Row],[Econ3]],1,0),IF(AND($AX$16=\"Level 4\",T_DataComboFile[[#This Row],[Econ4]] = \"Goods and services\"),0,1))","v":1},{"$f":"T_DataComboFile[[#This Row],[2016/17_Source]]*T_DataComboFile[[#This Row],[G&S reporting level indicator]]","v":0},{"$f":"T_DataComboFile[[#This Row],[2017/18_Source]]*T_DataComboFile[[#This Row],[G&S reporting level indicator]]","v":0},{"$f":"T_DataComboFile[[#This Row],[2018/19_Source]]*T_DataComboFile[[#This Row],[G&S reporting level indicator]]","v":0},{"$f":"T_DataComboFile[[#This Row],[2019/20 Main appropriation_Source]]*T_DataComboFile[[#This Row],[G&S reporting level indicator]]","v":0},{"$f":"T_DataComboFile[[#This Row],[2019/20 Adjusted appropriation_Source]]*T_DataComboFile[[#This Row],[G&S reporting level indicator]]","v":0},{"$f":"T_DataComboFile[[#This Row],[2019/20 Revised estimate_Source]]*T_DataComboFile[[#This Row],[G&S reporting level indicator]]","v":0},{"$f":"T_DataComboFile[[#This Row],[2019/20 Preliminary outcome_Source]]*T_DataComboFile[[#This Row],[G&S reporting level indicator]]","v":0},{"$f":"T_DataComboFile[[#This Row],[2020/21 Original_Source]]*T_DataComboFile[[#This Row],[G&S reporting level indicator]]","v":0},{"$f":"T_DataComboFile[[#This Row],[2020/21 SAB_Source]]*T_DataComboFile[[#This Row],[G&S reporting level indicator]]","v":0},{"$f":"T_DataComboFile[[#This Row],[2020/21 Baseline_Source]]*T_DataComboFile[[#This Row],[G&S reporting level indicator]]","v":0},{"$f":"T_DataComboFile[[#This Row],[2021/22 Baseline_Source]]*T_DataComboFile[[#This Row],[G&S reporting level indicator]]","v":0},{"$f":"T_DataComboFile[[#This Row],[2022/23 Baseline_Source]]*T_DataComboFile[[#This Row],[G&S reporting level indicator]]","v":0},{"$f":"T_DataComboFile[[#This Row],[2023/24 Baseline_Source]]*T_DataComboFile[[#This Row],[G&S reporting level indicator]]","v":0},null,null,null,null,null,null,{"$f":"T_DataComboFile[[#This Row],[2021/22 Baseline]]+T_DataComboFile[[#This Row],[2021/22 Reduction]]+T_DataComboFile[[#This Row],[2021/22 Increase]]","v":0},{"$f":"T_DataComboFile[[#This Row],[2022/23 Baseline]]+T_DataComboFile[[#This Row],[2022/23 Reduction]]+T_DataComboFile[[#This Row],[2022/23 Increase]]","v":0},{"$f":"T_DataComboFile[[#This Row],[2023/24 Baseline]]+T_DataComboFile[[#This Row],[2023/24 Reduction]]+T_DataComboFile[[#This Row],[2023/24 Increase]]","v":0}]
[null,null,"2021_22","ENE2020",36,1,5,null,70426,36,1,5,null,"070426","36|01|05",1,2,5,45,47,"01|02|05|45|47","National","Small Business Development","Administration","Communications",null,"Current","Transfers and subsidies","Departmental agencies and accounts","Social security funds","Social security funds",null,null,null,0,0,0,0,0,0,0,0,0,0,0,0,0,0,null,{"$f":"IF(T_DataComboFile[[#This Row],[G&S reporting level indicator]]=1,$AX$16,\"Not applicable\")","v":"Level 3"},{"$f":"IF(AND($AX$16=\"Level 3\",T_DataComboFile[[#This Row],[Econ3]] = \"Goods and services\"),IF(T_DataComboFile[[#This Row],[Econ4]] = T_DataComboFile[[#This Row],[Econ3]],1,0),IF(AND($AX$16=\"Level 4\",T_DataComboFile[[#This Row],[Econ4]] = \"Goods and services\"),0,1))","v":1},{"$f":"T_DataComboFile[[#This Row],[2016/17_Source]]*T_DataComboFile[[#This Row],[G&S reporting level indicator]]","v":0},{"$f":"T_DataComboFile[[#This Row],[2017/18_Source]]*T_DataComboFile[[#This Row],[G&S reporting level indicator]]","v":0},{"$f":"T_DataComboFile[[#This Row],[2018/19_Source]]*T_DataComboFile[[#This Row],[G&S reporting level indicator]]","v":0},{"$f":"T_DataComboFile[[#This Row],[2019/20 Main appropriation_Source]]*T_DataComboFile[[#This Row],[G&S reporting level indicator]]","v":0},{"$f":"T_DataComboFile[[#This Row],[2019/20 Adjusted appropriation_Source]]*T_DataComboFile[[#This Row],[G&S reporting level indicator]]","v":0},{"$f":"T_DataComboFile[[#This Row],[2019/20 Revised estimate_Source]]*T_DataComboFile[[#This Row],[G&S reporting level indicator]]","v":0},{"$f":"T_DataComboFile[[#This Row],[2019/20 Preliminary outcome_Source]]*T_DataComboFile[[#This Row],[G&S reporting level indicator]]","v":0},{"$f":"T_DataComboFile[[#This Row],[2020/21 Original_Source]]*T_DataComboFile[[#This Row],[G&S reporting level indicator]]","v":0},{"$f":"T_DataComboFile[[#This Row],[2020/21 SAB_Source]]*T_DataComboFile[[#This Row],[G&S reporting level indicator]]","v":0},{"$f":"T_DataComboFile[[#This Row],[2020/21 Baseline_Source]]*T_DataComboFile[[#This Row],[G&S reporting level indicator]]","v":0},{"$f":"T_DataComboFile[[#This Row],[2021/22 Baseline_Source]]*T_DataComboFile[[#This Row],[G&S reporting level indicator]]","v":0},{"$f":"T_DataComboFile[[#This Row],[2022/23 Baseline_Source]]*T_DataComboFile[[#This Row],[G&S reporting level indicator]]","v":0},{"$f":"T_DataComboFile[[#This Row],[2023/24 Baseline_Source]]*T_DataComboFile[[#This Row],[G&S reporting level indicator]]","v":0},null,null,null,null,null,null,{"$f":"T_DataComboFile[[#This Row],[2021/22 Baseline]]+T_DataComboFile[[#This Row],[2021/22 Reduction]]+T_DataComboFile[[#This Row],[2021/22 Increase]]","v":0},{"$f":"T_DataComboFile[[#This Row],[2022/23 Baseline]]+T_DataComboFile[[#This Row],[2022/23 Reduction]]+T_DataComboFile[[#This Row],[2022/23 Increase]]","v":0},{"$f":"T_DataComboFile[[#This Row],[2023/24 Baseline]]+T_DataComboFile[[#This Row],[2023/24 Reduction]]+T_DataComboFile[[#This Row],[2023/24 Increase]]","v":0}]
[null,null,"2021_22","ENE2020",36,1,5,null,70427,36,1,5,null,"070427","36|01|05",1,2,5,46,48,"01|02|05|46|48","National","Small Business Development","Administration","Communications",null,"Current","Transfers and subsidies","Departmental agencies and accounts","Departmental agencies (non-business entities)","Departmental agencies (non-business entities)",null,null,null,0,0,0,0,0,0,0,0,0,0,0,0,0,0,null,{"$f":"IF(T_DataComboFile[[#This Row],[G&S reporting level indicator]]=1,$AX$16,\"Not applicable\")","v":"Level 3"},{"$f":"IF(AND($AX$16=\"Level 3\",T_DataComboFile[[#This Row],[Econ3]] = \"Goods and services\"),IF(T_DataComboFile[[#This Row],[Econ4]] = T_DataComboFile[[#This Row],[Econ3]],1,0),IF(AND($AX$16=\"Level 4\",T_DataComboFile[[#This Row],[Econ4]] = \"Goods and services\"),0,1))","v":1},{"$f":"T_DataComboFile[[#This Row],[2016/17_Source]]*T_DataComboFile[[#This Row],[G&S reporting level indicator]]","v":0},{"$f":"T_DataComboFile[[#This Row],[2017/18_Source]]*T_DataComboFile[[#This Row],[G&S reporting level indicator]]","v":0},{"$f":"T_DataComboFile[[#This Row],[2018/19_Source]]*T_DataComboFile[[#This Row],[G&S reporting level indicator]]","v":0},{"$f":"T_DataComboFile[[#This Row],[2019/20 Main appropriation_Source]]*T_DataComboFile[[#This Row],[G&S reporting level indicator]]","v":0},{"$f":"T_DataComboFile[[#This Row],[2019/20 Adjusted appropriation_Source]]*T_DataComboFile[[#This Row],[G&S reporting level indicator]]","v":0},{"$f":"T_DataComboFile[[#This Row],[2019/20 Revised estimate_Source]]*T_DataComboFile[[#This Row],[G&S reporting level indicator]]","v":0},{"$f":"T_DataComboFile[[#This Row],[2019/20 Preliminary outcome_Source]]*T_DataComboFile[[#This Row],[G&S reporting level indicator]]","v":0},{"$f":"T_DataComboFile[[#This Row],[2020/21 Original_Source]]*T_DataComboFile[[#This Row],[G&S reporting level indicator]]","v":0},{"$f":"T_DataComboFile[[#This Row],[2020/21 SAB_Source]]*T_DataComboFile[[#This Row],[G&S reporting level indicator]]","v":0},{"$f":"T_DataComboFile[[#This Row],[2020/21 Baseline_Source]]*T_DataComboFile[[#This Row],[G&S reporting level indicator]]","v":0},{"$f":"T_DataComboFile[[#This Row],[2021/22 Baseline_Source]]*T_DataComboFile[[#This Row],[G&S reporting level indicator]]","v":0},{"$f":"T_DataComboFile[[#This Row],[2022/23 Baseline_Source]]*T_DataComboFile[[#This Row],[G&S reporting level indicator]]","v":0},{"$f":"T_DataComboFile[[#This Row],[2023/24 Baseline_Source]]*T_DataComboFile[[#This Row],[G&S reporting level indicator]]","v":0},null,null,null,null,null,null,{"$f":"T_DataComboFile[[#This Row],[2021/22 Baseline]]+T_DataComboFile[[#This Row],[2021/22 Reduction]]+T_DataComboFile[[#This Row],[2021/22 Increase]]","v":0},{"$f":"T_DataComboFile[[#This Row],[2022/23 Baseline]]+T_DataComboFile[[#This Row],[2022/23 Reduction]]+T_DataComboFile[[#This Row],[2022/23 Increase]]","v":0},{"$f":"T_DataComboFile[[#This Row],[2023/24 Baseline]]+T_DataComboFile[[#This Row],[2023/24 Reduction]]+T_DataComboFile[[#This Row],[2023/24 Increase]]","v":0}]
[null,null,"2021_22","ENE2020",36,1,5,null,70428,36,1,5,null,"070428","36|01|05",1,2,6,47,49,"01|02|06|47|49","National","Small Business Development","Administration","Communications",null,"Current","Transfers and subsidies","Higher education institutions","Higher education institutions","Higher education institutions",null,null,null,0,0,0,0,0,0,0,0,0,0,0,0,0,0,null,{"$f":"IF(T_DataComboFile[[#This Row],[G&S reporting level indicator]]=1,$AX$16,\"Not applicable\")","v":"Level 3"},{"$f":"IF(AND($AX$16=\"Level 3\",T_DataComboFile[[#This Row],[Econ3]] = \"Goods and services\"),IF(T_DataComboFile[[#This Row],[Econ4]] = T_DataComboFile[[#This Row],[Econ3]],1,0),IF(AND($AX$16=\"Level 4\",T_DataComboFile[[#This Row],[Econ4]] = \"Goods and services\"),0,1))","v":1},{"$f":"T_DataComboFile[[#This Row],[2016/17_Source]]*T_DataComboFile[[#This Row],[G&S reporting level indicator]]","v":0},{"$f":"T_DataComboFile[[#This Row],[2017/18_Source]]*T_DataComboFile[[#This Row],[G&S reporting level indicator]]","v":0},{"$f":"T_DataComboFile[[#This Row],[2018/19_Source]]*T_DataComboFile[[#This Row],[G&S reporting level indicator]]","v":0},{"$f":"T_DataComboFile[[#This Row],[2019/20 Main appropriation_Source]]*T_DataComboFile[[#This Row],[G&S reporting level indicator]]","v":0},{"$f":"T_DataComboFile[[#This Row],[2019/20 Adjusted appropriation_Source]]*T_DataComboFile[[#This Row],[G&S reporting level indicator]]","v":0},{"$f":"T_DataComboFile[[#This Row],[2019/20 Revised estimate_Source]]*T_DataComboFile[[#This Row],[G&S reporting level indicator]]","v":0},{"$f":"T_DataComboFile[[#This Row],[2019/20 Preliminary outcome_Source]]*T_DataComboFile[[#This Row],[G&S reporting level indicator]]","v":0},{"$f":"T_DataComboFile[[#This Row],[2020/21 Original_Source]]*T_DataComboFile[[#This Row],[G&S reporting level indicator]]","v":0},{"$f":"T_DataComboFile[[#This Row],[2020/21 SAB_Source]]*T_DataComboFile[[#This Row],[G&S reporting level indicator]]","v":0},{"$f":"T_DataComboFile[[#This Row],[2020/21 Baseline_Source]]*T_DataComboFile[[#This Row],[G&S reporting level indicator]]","v":0},{"$f":"T_DataComboFile[[#This Row],[2021/22 Baseline_Source]]*T_DataComboFile[[#This Row],[G&S reporting level indicator]]","v":0},{"$f":"T_DataComboFile[[#This Row],[2022/23 Baseline_Source]]*T_DataComboFile[[#This Row],[G&S reporting level indicator]]","v":0},{"$f":"T_DataComboFile[[#This Row],[2023/24 Baseline_Source]]*T_DataComboFile[[#This Row],[G&S reporting level indicator]]","v":0},null,null,null,null,null,null,{"$f":"T_DataComboFile[[#This Row],[2021/22 Baseline]]+T_DataComboFile[[#This Row],[2021/22 Reduction]]+T_DataComboFile[[#This Row],[2021/22 Increase]]","v":0},{"$f":"T_DataComboFile[[#This Row],[2022/23 Baseline]]+T_DataComboFile[[#This Row],[2022/23 Reduction]]+T_DataComboFile[[#This Row],[2022/23 Increase]]","v":0},{"$f":"T_DataComboFile[[#This Row],[2023/24 Baseline]]+T_DataComboFile[[#This Row],[2023/24 Reduction]]+T_DataComboFile[[#This Row],[2023/24 Increase]]","v":0}]
[null,null,"2021_22","ENE2020",36,1,5,null,70429,36,1,5,null,"070429","36|01|05",1,2,7,48,50,"01|02|07|48|50","National","Small Business Development","Administration","Communications",null,"Current","Transfers and subsidies","Foreign governments and international organisations","Foreign governments and international organisations","Foreign governments and international organisations",null,null,null,0,0,0,0,0,0,0,0,0,0,0,0,0,0,null,{"$f":"IF(T_DataComboFile[[#This Row],[G&S reporting level indicator]]=1,$AX$16,\"Not applicable\")","v":"Level 3"},{"$f":"IF(AND($AX$16=\"Level 3\",T_DataComboFile[[#This Row],[Econ3]] = \"Goods and services\"),IF(T_DataComboFile[[#This Row],[Econ4]] = T_DataComboFile[[#This Row],[Econ3]],1,0),IF(AND($AX$16=\"Level 4\",T_DataComboFile[[#This Row],[Econ4]] = \"Goods and services\"),0,1))","v":1},{"$f":"T_DataComboFile[[#This Row],[2016/17_Source]]*T_DataComboFile[[#This Row],[G&S reporting level indicator]]","v":0},{"$f":"T_DataComboFile[[#This Row],[2017/18_Source]]*T_DataComboFile[[#This Row],[G&S reporting level indicator]]","v":0},{"$f":"T_DataComboFile[[#This Row],[2018/19_Source]]*T_DataComboFile[[#This Row],[G&S reporting level indicator]]","v":0},{"$f":"T_DataComboFile[[#This Row],[2019/20 Main appropriation_Source]]*T_DataComboFile[[#This Row],[G&S reporting level indicator]]","v":0},{"$f":"T_DataComboFile[[#This Row],[2019/20 Adjusted appropriation_Source]]*T_DataComboFile[[#This Row],[G&S reporting level indicator]]","v":0},{"$f":"T_DataComboFile[[#This Row],[2019/20 Revised estimate_Source]]*T_DataComboFile[[#This Row],[G&S reporting level indicator]]","v":0},{"$f":"T_DataComboFile[[#This Row],[2019/20 Preliminary outcome_Source]]*T_DataComboFile[[#This Row],[G&S reporting level indicator]]","v":0},{"$f":"T_DataComboFile[[#This Row],[2020/21 Original_Source]]*T_DataComboFile[[#This Row],[G&S reporting level indicator]]","v":0},{"$f":"T_DataComboFile[[#This Row],[2020/21 SAB_Source]]*T_DataComboFile[[#This Row],[G&S reporting level indicator]]","v":0},{"$f":"T_DataComboFile[[#This Row],[2020/21 Baseline_Source]]*T_DataComboFile[[#This Row],[G&S reporting level indicator]]","v":0},{"$f":"T_DataComboFile[[#This Row],[2021/22 Baseline_Source]]*T_DataComboFile[[#This Row],[G&S reporting level indicator]]","v":0},{"$f":"T_DataComboFile[[#This Row],[2022/23 Baseline_Source]]*T_DataComboFile[[#This Row],[G&S reporting level indicator]]","v":0},{"$f":"T_DataComboFile[[#This Row],[2023/24 Baseline_Source]]*T_DataComboFile[[#This Row],[G&S reporting level indicator]]","v":0},null,null,null,null,null,null,{"$f":"T_DataComboFile[[#This Row],[2021/22 Baseline]]+T_DataComboFile[[#This Row],[2021/22 Reduction]]+T_DataComboFile[[#This Row],[2021/22 Increase]]","v":0},{"$f":"T_DataComboFile[[#This Row],[2022/23 Baseline]]+T_DataComboFile[[#This Row],[2022/23 Reduction]]+T_DataComboFile[[#This Row],[2022/23 Increase]]","v":0},{"$f":"T_DataComboFile[[#This Row],[2023/24 Baseline]]+T_DataComboFile[[#This Row],[2023/24 Reduction]]+T_DataComboFile[[#This Row],[2023/24 Increase]]","v":0}]
[null,null,"2021_22","ENE2020",36,1,5,null,70430,36,1,5,null,"070430","36|01|05",1,2,8,49,51,"01|02|08|49|51","National","Small Business Development","Administration","Communications",null,"Current","Transfers and subsidies","Public corporations and private enterprises","Public corporations","Subsidies on products and production (pc)",null,null,null,0,0,0,0,0,0,0,0,0,0,0,0,0,0,null,{"$f":"IF(T_DataComboFile[[#This Row],[G&S reporting level indicator]]=1,$AX$16,\"Not applicable\")","v":"Level 3"},{"$f":"IF(AND($AX$16=\"Level 3\",T_DataComboFile[[#This Row],[Econ3]] = \"Goods and services\"),IF(T_DataComboFile[[#This Row],[Econ4]] = T_DataComboFile[[#This Row],[Econ3]],1,0),IF(AND($AX$16=\"Level 4\",T_DataComboFile[[#This Row],[Econ4]] = \"Goods and services\"),0,1))","v":1},{"$f":"T_DataComboFile[[#This Row],[2016/17_Source]]*T_DataComboFile[[#This Row],[G&S reporting level indicator]]","v":0},{"$f":"T_DataComboFile[[#This Row],[2017/18_Source]]*T_DataComboFile[[#This Row],[G&S reporting level indicator]]","v":0},{"$f":"T_DataComboFile[[#This Row],[2018/19_Source]]*T_DataComboFile[[#This Row],[G&S reporting level indicator]]","v":0},{"$f":"T_DataComboFile[[#This Row],[2019/20 Main appropriation_Source]]*T_DataComboFile[[#This Row],[G&S reporting level indicator]]","v":0},{"$f":"T_DataComboFile[[#This Row],[2019/20 Adjusted appropriation_Source]]*T_DataComboFile[[#This Row],[G&S reporting level indicator]]","v":0},{"$f":"T_DataComboFile[[#This Row],[2019/20 Revised estimate_Source]]*T_DataComboFile[[#This Row],[G&S reporting level indicator]]","v":0},{"$f":"T_DataComboFile[[#This Row],[2019/20 Preliminary outcome_Source]]*T_DataComboFile[[#This Row],[G&S reporting level indicator]]","v":0},{"$f":"T_DataComboFile[[#This Row],[2020/21 Original_Source]]*T_DataComboFile[[#This Row],[G&S reporting level indicator]]","v":0},{"$f":"T_DataComboFile[[#This Row],[2020/21 SAB_Source]]*T_DataComboFile[[#This Row],[G&S reporting level indicator]]","v":0},{"$f":"T_DataComboFile[[#This Row],[2020/21 Baseline_Source]]*T_DataComboFile[[#This Row],[G&S reporting level indicator]]","v":0},{"$f":"T_DataComboFile[[#This Row],[2021/22 Baseline_Source]]*T_DataComboFile[[#This Row],[G&S reporting level indicator]]","v":0},{"$f":"T_DataComboFile[[#This Row],[2022/23 Baseline_Source]]*T_DataComboFile[[#This Row],[G&S reporting level indicator]]","v":0},{"$f":"T_DataComboFile[[#This Row],[2023/24 Baseline_Source]]*T_DataComboFile[[#This Row],[G&S reporting level indicator]]","v":0},null,null,null,null,null,null,{"$f":"T_DataComboFile[[#This Row],[2021/22 Baseline]]+T_DataComboFile[[#This Row],[2021/22 Reduction]]+T_DataComboFile[[#This Row],[2021/22 Increase]]","v":0},{"$f":"T_DataComboFile[[#This Row],[2022/23 Baseline]]+T_DataComboFile[[#This Row],[2022/23 Reduction]]+T_DataComboFile[[#This Row],[2022/23 Increase]]","v":0},{"$f":"T_DataComboFile[[#This Row],[2023/24 Baseline]]+T_DataComboFile[[#This Row],[2023/24 Reduction]]+T_DataComboFile[[#This Row],[2023/24 Increase]]","v":0}]
[null,null,"2021_22","ENE2020",36,1,5,null,70431,36,1,5,null,"070431","36|01|05",1,2,8,49,52,"01|02|08|49|52","National","Small Business Development","Administration","Communications",null,"Current","Transfers and subsidies","Public corporations and private enterprises","Public corporations","Other transfers to public corporations",null,null,null,0,0,0,0,0,0,0,0,0,0,0,0,0,0,null,{"$f":"IF(T_DataComboFile[[#This Row],[G&S reporting level indicator]]=1,$AX$16,\"Not applicable\")","v":"Level 3"},{"$f":"IF(AND($AX$16=\"Level 3\",T_DataComboFile[[#This Row],[Econ3]] = \"Goods and services\"),IF(T_DataComboFile[[#This Row],[Econ4]] = T_DataComboFile[[#This Row],[Econ3]],1,0),IF(AND($AX$16=\"Level 4\",T_DataComboFile[[#This Row],[Econ4]] = \"Goods and services\"),0,1))","v":1},{"$f":"T_DataComboFile[[#This Row],[2016/17_Source]]*T_DataComboFile[[#This Row],[G&S reporting level indicator]]","v":0},{"$f":"T_DataComboFile[[#This Row],[2017/18_Source]]*T_DataComboFile[[#This Row],[G&S reporting level indicator]]","v":0},{"$f":"T_DataComboFile[[#This Row],[2018/19_Source]]*T_DataComboFile[[#This Row],[G&S reporting level indicator]]","v":0},{"$f":"T_DataComboFile[[#This Row],[2019/20 Main appropriation_Source]]*T_DataComboFile[[#This Row],[G&S reporting level indicator]]","v":0},{"$f":"T_DataComboFile[[#This Row],[2019/20 Adjusted appropriation_Source]]*T_DataComboFile[[#This Row],[G&S reporting level indicator]]","v":0},{"$f":"T_DataComboFile[[#This Row],[2019/20 Revised estimate_Source]]*T_DataComboFile[[#This Row],[G&S reporting level indicator]]","v":0},{"$f":"T_DataComboFile[[#This Row],[2019/20 Preliminary outcome_Source]]*T_DataComboFile[[#This Row],[G&S reporting level indicator]]","v":0},{"$f":"T_DataComboFile[[#This Row],[2020/21 Original_Source]]*T_DataComboFile[[#This Row],[G&S reporting level indicator]]","v":0},{"$f":"T_DataComboFile[[#This Row],[2020/21 SAB_Source]]*T_DataComboFile[[#This Row],[G&S reporting level indicator]]","v":0},{"$f":"T_DataComboFile[[#This Row],[2020/21 Baseline_Source]]*T_DataComboFile[[#This Row],[G&S reporting level indicator]]","v":0},{"$f":"T_DataComboFile[[#This Row],[2021/22 Baseline_Source]]*T_DataComboFile[[#This Row],[G&S reporting level indicator]]","v":0},{"$f":"T_DataComboFile[[#This Row],[2022/23 Baseline_Source]]*T_DataComboFile[[#This Row],[G&S reporting level indicator]]","v":0},{"$f":"T_DataComboFile[[#This Row],[2023/24 Baseline_Source]]*T_DataComboFile[[#This Row],[G&S reporting level indicator]]","v":0},null,null,null,null,null,null,{"$f":"T_DataComboFile[[#This Row],[2021/22 Baseline]]+T_DataComboFile[[#This Row],[2021/22 Reduction]]+T_DataComboFile[[#This Row],[2021/22 Increase]]","v":0},{"$f":"T_DataComboFile[[#This Row],[2022/23 Baseline]]+T_DataComboFile[[#This Row],[2022/23 Reduction]]+T_DataComboFile[[#This Row],[2022/23 Increase]]","v":0},{"$f":"T_DataComboFile[[#This Row],[2023/24 Baseline]]+T_DataComboFile[[#This Row],[2023/24 Reduction]]+T_DataComboFile[[#This Row],[2023/24 Increase]]","v":0}]
[null,null,"2021_22","ENE2020",36,1,5,null,70432,36,1,5,null,"070432","36|01|05",1,2,8,50,53,"01|02|08|50|53","National","Small Business Development","Administration","Communications",null,"Current","Transfers and subsidies","Public corporations and private enterprises","Private enterprises","Subsidies on products and production (pe)",null,null,null,0,0,0,0,0,0,0,0,0,0,0,0,0,0,null,{"$f":"IF(T_DataComboFile[[#This Row],[G&S reporting level indicator]]=1,$AX$16,\"Not applicable\")","v":"Level 3"},{"$f":"IF(AND($AX$16=\"Level 3\",T_DataComboFile[[#This Row],[Econ3]] = \"Goods and services\"),IF(T_DataComboFile[[#This Row],[Econ4]] = T_DataComboFile[[#This Row],[Econ3]],1,0),IF(AND($AX$16=\"Level 4\",T_DataComboFile[[#This Row],[Econ4]] = \"Goods and services\"),0,1))","v":1},{"$f":"T_DataComboFile[[#This Row],[2016/17_Source]]*T_DataComboFile[[#This Row],[G&S reporting level indicator]]","v":0},{"$f":"T_DataComboFile[[#This Row],[2017/18_Source]]*T_DataComboFile[[#This Row],[G&S reporting level indicator]]","v":0},{"$f":"T_DataComboFile[[#This Row],[2018/19_Source]]*T_DataComboFile[[#This Row],[G&S reporting level indicator]]","v":0},{"$f":"T_DataComboFile[[#This Row],[2019/20 Main appropriation_Source]]*T_DataComboFile[[#This Row],[G&S reporting level indicator]]","v":0},{"$f":"T_DataComboFile[[#This Row],[2019/20 Adjusted appropriation_Source]]*T_DataComboFile[[#This Row],[G&S reporting level indicator]]","v":0},{"$f":"T_DataComboFile[[#This Row],[2019/20 Revised estimate_Source]]*T_DataComboFile[[#This Row],[G&S reporting level indicator]]","v":0},{"$f":"T_DataComboFile[[#This Row],[2019/20 Preliminary outcome_Source]]*T_DataComboFile[[#This Row],[G&S reporting level indicator]]","v":0},{"$f":"T_DataComboFile[[#This Row],[2020/21 Original_Source]]*T_DataComboFile[[#This Row],[G&S reporting level indicator]]","v":0},{"$f":"T_DataComboFile[[#This Row],[2020/21 SAB_Source]]*T_DataComboFile[[#This Row],[G&S reporting level indicator]]","v":0},{"$f":"T_DataComboFile[[#This Row],[2020/21 Baseline_Source]]*T_DataComboFile[[#This Row],[G&S reporting level indicator]]","v":0},{"$f":"T_DataComboFile[[#This Row],[2021/22 Baseline_Source]]*T_DataComboFile[[#This Row],[G&S reporting level indicator]]","v":0},{"$f":"T_DataComboFile[[#This Row],[2022/23 Baseline_Source]]*T_DataComboFile[[#This Row],[G&S reporting level indicator]]","v":0},{"$f":"T_DataComboFile[[#This Row],[2023/24 Baseline_Source]]*T_DataComboFile[[#This Row],[G&S reporting level indicator]]","v":0},null,null,null,null,null,null,{"$f":"T_DataComboFile[[#This Row],[2021/22 Baseline]]+T_DataComboFile[[#This Row],[2021/22 Reduction]]+T_DataComboFile[[#This Row],[2021/22 Increase]]","v":0},{"$f":"T_DataComboFile[[#This Row],[2022/23 Baseline]]+T_DataComboFile[[#This Row],[2022/23 Reduction]]+T_DataComboFile[[#This Row],[2022/23 Increase]]","v":0},{"$f":"T_DataComboFile[[#This Row],[2023/24 Baseline]]+T_DataComboFile[[#This Row],[2023/24 Reduction]]+T_DataComboFile[[#This Row],[2023/24 Increase]]","v":0}]
[null,null,"2021_22","ENE2020",36,1,5,null,70433,36,1,5,null,"070433","36|01|05",1,2,8,50,54,"01|02|08|50|54","National","Small Business Development","Administration","Communications",null,"Current","Transfers and subsidies","Public corporations and private enterprises","Private enterprises","Other transfers to private enterprises",null,null,null,0,0,0,0,0,0,0,0,0,0,0,0,0,0,null,{"$f":"IF(T_DataComboFile[[#This Row],[G&S reporting level indicator]]=1,$AX$16,\"Not applicable\")","v":"Level 3"},{"$f":"IF(AND($AX$16=\"Level 3\",T_DataComboFile[[#This Row],[Econ3]] = \"Goods and services\"),IF(T_DataComboFile[[#This Row],[Econ4]] = T_DataComboFile[[#This Row],[Econ3]],1,0),IF(AND($AX$16=\"Level 4\",T_DataComboFile[[#This Row],[Econ4]] = \"Goods and services\"),0,1))","v":1},{"$f":"T_DataComboFile[[#This Row],[2016/17_Source]]*T_DataComboFile[[#This Row],[G&S reporting level indicator]]","v":0},{"$f":"T_DataComboFile[[#This Row],[2017/18_Source]]*T_DataComboFile[[#This Row],[G&S reporting level indicator]]","v":0},{"$f":"T_DataComboFile[[#This Row],[2018/19_Source]]*T_DataComboFile[[#This Row],[G&S reporting level indicator]]","v":0},{"$f":"T_DataComboFile[[#This Row],[2019/20 Main appropriation_Source]]*T_DataComboFile[[#This Row],[G&S reporting level indicator]]","v":0},{"$f":"T_DataComboFile[[#This Row],[2019/20 Adjusted appropriation_Source]]*T_DataComboFile[[#This Row],[G&S reporting level indicator]]","v":0},{"$f":"T_DataComboFile[[#This Row],[2019/20 Revised estimate_Source]]*T_DataComboFile[[#This Row],[G&S reporting level indicator]]","v":0},{"$f":"T_DataComboFile[[#This Row],[2019/20 Preliminary outcome_Source]]*T_DataComboFile[[#This Row],[G&S reporting level indicator]]","v":0},{"$f":"T_DataComboFile[[#This Row],[2020/21 Original_Source]]*T_DataComboFile[[#This Row],[G&S reporting level indicator]]","v":0},{"$f":"T_DataComboFile[[#This Row],[2020/21 SAB_Source]]*T_DataComboFile[[#This Row],[G&S reporting level indicator]]","v":0},{"$f":"T_DataComboFile[[#This Row],[2020/21 Baseline_Source]]*T_DataComboFile[[#This Row],[G&S reporting level indicator]]","v":0},{"$f":"T_DataComboFile[[#This Row],[2021/22 Baseline_Source]]*T_DataComboFile[[#This Row],[G&S reporting level indicator]]","v":0},{"$f":"T_DataComboFile[[#This Row],[2022/23 Baseline_Source]]*T_DataComboFile[[#This Row],[G&S reporting level indicator]]","v":0},{"$f":"T_DataComboFile[[#This Row],[2023/24 Baseline_Source]]*T_DataComboFile[[#This Row],[G&S reporting level indicator]]","v":0},null,null,null,null,null,null,{"$f":"T_DataComboFile[[#This Row],[2021/22 Baseline]]+T_DataComboFile[[#This Row],[2021/22 Reduction]]+T_DataComboFile[[#This Row],[2021/22 Increase]]","v":0},{"$f":"T_DataComboFile[[#This Row],[2022/23 Baseline]]+T_DataComboFile[[#This Row],[2022/23 Reduction]]+T_DataComboFile[[#This Row],[2022/23 Increase]]","v":0},{"$f":"T_DataComboFile[[#This Row],[2023/24 Baseline]]+T_DataComboFile[[#This Row],[2023/24 Reduction]]+T_DataComboFile[[#This Row],[2023/24 Increase]]","v":0}]
[null,null,"2021_22","ENE2020",36,1,5,null,70434,36,1,5,null,"070434","36|01|05",1,2,9,51,55,"01|02|09|51|55","National","Small Business Development","Administration","Communications",null,"Current","Transfers and subsidies","Non-profit institutions","Non-profit institutions","Non-profit institutions",null,null,null,0,0,0,0,0,0,0,0,0,0,0,0,0,0,null,{"$f":"IF(T_DataComboFile[[#This Row],[G&S reporting level indicator]]=1,$AX$16,\"Not applicable\")","v":"Level 3"},{"$f":"IF(AND($AX$16=\"Level 3\",T_DataComboFile[[#This Row],[Econ3]] = \"Goods and services\"),IF(T_DataComboFile[[#This Row],[Econ4]] = T_DataComboFile[[#This Row],[Econ3]],1,0),IF(AND($AX$16=\"Level 4\",T_DataComboFile[[#This Row],[Econ4]] = \"Goods and services\"),0,1))","v":1},{"$f":"T_DataComboFile[[#This Row],[2016/17_Source]]*T_DataComboFile[[#This Row],[G&S reporting level indicator]]","v":0},{"$f":"T_DataComboFile[[#This Row],[2017/18_Source]]*T_DataComboFile[[#This Row],[G&S reporting level indicator]]","v":0},{"$f":"T_DataComboFile[[#This Row],[2018/19_Source]]*T_DataComboFile[[#This Row],[G&S reporting level indicator]]","v":0},{"$f":"T_DataComboFile[[#This Row],[2019/20 Main appropriation_Source]]*T_DataComboFile[[#This Row],[G&S reporting level indicator]]","v":0},{"$f":"T_DataComboFile[[#This Row],[2019/20 Adjusted appropriation_Source]]*T_DataComboFile[[#This Row],[G&S reporting level indicator]]","v":0},{"$f":"T_DataComboFile[[#This Row],[2019/20 Revised estimate_Source]]*T_DataComboFile[[#This Row],[G&S reporting level indicator]]","v":0},{"$f":"T_DataComboFile[[#This Row],[2019/20 Preliminary outcome_Source]]*T_DataComboFile[[#This Row],[G&S reporting level indicator]]","v":0},{"$f":"T_DataComboFile[[#This Row],[2020/21 Original_Source]]*T_DataComboFile[[#This Row],[G&S reporting level indicator]]","v":0},{"$f":"T_DataComboFile[[#This Row],[2020/21 SAB_Source]]*T_DataComboFile[[#This Row],[G&S reporting level indicator]]","v":0},{"$f":"T_DataComboFile[[#This Row],[2020/21 Baseline_Source]]*T_DataComboFile[[#This Row],[G&S reporting level indicator]]","v":0},{"$f":"T_DataComboFile[[#This Row],[2021/22 Baseline_Source]]*T_DataComboFile[[#This Row],[G&S reporting level indicator]]","v":0},{"$f":"T_DataComboFile[[#This Row],[2022/23 Baseline_Source]]*T_DataComboFile[[#This Row],[G&S reporting level indicator]]","v":0},{"$f":"T_DataComboFile[[#This Row],[2023/24 Baseline_Source]]*T_DataComboFile[[#This Row],[G&S reporting level indicator]]","v":0},null,null,null,null,null,null,{"$f":"T_DataComboFile[[#This Row],[2021/22 Baseline]]+T_DataComboFile[[#This Row],[2021/22 Reduction]]+T_DataComboFile[[#This Row],[2021/22 Increase]]","v":0},{"$f":"T_DataComboFile[[#This Row],[2022/23 Baseline]]+T_DataComboFile[[#This Row],[2022/23 Reduction]]+T_DataComboFile[[#This Row],[2022/23 Increase]]","v":0},{"$f":"T_DataComboFile[[#This Row],[2023/24 Baseline]]+T_DataComboFile[[#This Row],[2023/24 Reduction]]+T_DataComboFile[[#This Row],[2023/24 Increase]]","v":0}]
[null,null,"2021_22","ENE2020",36,1,5,null,70435,36,1,5,null,"070435","36|01|05",1,2,10,52,56,"01|02|10|52|56","National","Small Business Development","Administration","Communications",null,"Current","Transfers and subsidies","Households","Social benefits","Social benefits",null,null,null,0,0,0,0,0,0,0,0,0,0,0,0,0,0,null,{"$f":"IF(T_DataComboFile[[#This Row],[G&S reporting level indicator]]=1,$AX$16,\"Not applicable\")","v":"Level 3"},{"$f":"IF(AND($AX$16=\"Level 3\",T_DataComboFile[[#This Row],[Econ3]] = \"Goods and services\"),IF(T_DataComboFile[[#This Row],[Econ4]] = T_DataComboFile[[#This Row],[Econ3]],1,0),IF(AND($AX$16=\"Level 4\",T_DataComboFile[[#This Row],[Econ4]] = \"Goods and services\"),0,1))","v":1},{"$f":"T_DataComboFile[[#This Row],[2016/17_Source]]*T_DataComboFile[[#This Row],[G&S reporting level indicator]]","v":0},{"$f":"T_DataComboFile[[#This Row],[2017/18_Source]]*T_DataComboFile[[#This Row],[G&S reporting level indicator]]","v":0},{"$f":"T_DataComboFile[[#This Row],[2018/19_Source]]*T_DataComboFile[[#This Row],[G&S reporting level indicator]]","v":0},{"$f":"T_DataComboFile[[#This Row],[2019/20 Main appropriation_Source]]*T_DataComboFile[[#This Row],[G&S reporting level indicator]]","v":0},{"$f":"T_DataComboFile[[#This Row],[2019/20 Adjusted appropriation_Source]]*T_DataComboFile[[#This Row],[G&S reporting level indicator]]","v":0},{"$f":"T_DataComboFile[[#This Row],[2019/20 Revised estimate_Source]]*T_DataComboFile[[#This Row],[G&S reporting level indicator]]","v":0},{"$f":"T_DataComboFile[[#This Row],[2019/20 Preliminary outcome_Source]]*T_DataComboFile[[#This Row],[G&S reporting level indicator]]","v":0},{"$f":"T_DataComboFile[[#This Row],[2020/21 Original_Source]]*T_DataComboFile[[#This Row],[G&S reporting level indicator]]","v":0},{"$f":"T_DataComboFile[[#This Row],[2020/21 SAB_Source]]*T_DataComboFile[[#This Row],[G&S reporting level indicator]]","v":0},{"$f":"T_DataComboFile[[#This Row],[2020/21 Baseline_Source]]*T_DataComboFile[[#This Row],[G&S reporting level indicator]]","v":0},{"$f":"T_DataComboFile[[#This Row],[2021/22 Baseline_Source]]*T_DataComboFile[[#This Row],[G&S reporting level indicator]]","v":0},{"$f":"T_DataComboFile[[#This Row],[2022/23 Baseline_Source]]*T_DataComboFile[[#This Row],[G&S reporting level indicator]]","v":0},{"$f":"T_DataComboFile[[#This Row],[2023/24 Baseline_Source]]*T_DataComboFile[[#This Row],[G&S reporting level indicator]]","v":0},null,null,null,null,null,null,{"$f":"T_DataComboFile[[#This Row],[2021/22 Baseline]]+T_DataComboFile[[#This Row],[2021/22 Reduction]]+T_DataComboFile[[#This Row],[2021/22 Increase]]","v":0},{"$f":"T_DataComboFile[[#This Row],[2022/23 Baseline]]+T_DataComboFile[[#This Row],[2022/23 Reduction]]+T_DataComboFile[[#This Row],[2022/23 Increase]]","v":0},{"$f":"T_DataComboFile[[#This Row],[2023/24 Baseline]]+T_DataComboFile[[#This Row],[2023/24 Reduction]]+T_DataComboFile[[#This Row],[2023/24 Increase]]","v":0}]
[null,null,"2021_22","ENE2020",36,1,5,null,70436,36,1,5,null,"070436","36|01|05",1,2,10,53,57,"01|02|10|53|57","National","Small Business Development","Administration","Communications",null,"Current","Transfers and subsidies","Households","Other transfers to households","Other transfers to households",null,null,null,0,0,0,0,0,0,0,0,0,0,0,0,0,0,null,{"$f":"IF(T_DataComboFile[[#This Row],[G&S reporting level indicator]]=1,$AX$16,\"Not applicable\")","v":"Level 3"},{"$f":"IF(AND($AX$16=\"Level 3\",T_DataComboFile[[#This Row],[Econ3]] = \"Goods and services\"),IF(T_DataComboFile[[#This Row],[Econ4]] = T_DataComboFile[[#This Row],[Econ3]],1,0),IF(AND($AX$16=\"Level 4\",T_DataComboFile[[#This Row],[Econ4]] = \"Goods and services\"),0,1))","v":1},{"$f":"T_DataComboFile[[#This Row],[2016/17_Source]]*T_DataComboFile[[#This Row],[G&S reporting level indicator]]","v":0},{"$f":"T_DataComboFile[[#This Row],[2017/18_Source]]*T_DataComboFile[[#This Row],[G&S reporting level indicator]]","v":0},{"$f":"T_DataComboFile[[#This Row],[2018/19_Source]]*T_DataComboFile[[#This Row],[G&S reporting level indicator]]","v":0},{"$f":"T_DataComboFile[[#This Row],[2019/20 Main appropriation_Source]]*T_DataComboFile[[#This Row],[G&S reporting level indicator]]","v":0},{"$f":"T_DataComboFile[[#This Row],[2019/20 Adjusted appropriation_Source]]*T_DataComboFile[[#This Row],[G&S reporting level indicator]]","v":0},{"$f":"T_DataComboFile[[#This Row],[2019/20 Revised estimate_Source]]*T_DataComboFile[[#This Row],[G&S reporting level indicator]]","v":0},{"$f":"T_DataComboFile[[#This Row],[2019/20 Preliminary outcome_Source]]*T_DataComboFile[[#This Row],[G&S reporting level indicator]]","v":0},{"$f":"T_DataComboFile[[#This Row],[2020/21 Original_Source]]*T_DataComboFile[[#This Row],[G&S reporting level indicator]]","v":0},{"$f":"T_DataComboFile[[#This Row],[2020/21 SAB_Source]]*T_DataComboFile[[#This Row],[G&S reporting level indicator]]","v":0},{"$f":"T_DataComboFile[[#This Row],[2020/21 Baseline_Source]]*T_DataComboFile[[#This Row],[G&S reporting level indicator]]","v":0},{"$f":"T_DataComboFile[[#This Row],[2021/22 Baseline_Source]]*T_DataComboFile[[#This Row],[G&S reporting level indicator]]","v":0},{"$f":"T_DataComboFile[[#This Row],[2022/23 Baseline_Source]]*T_DataComboFile[[#This Row],[G&S reporting level indicator]]","v":0},{"$f":"T_DataComboFile[[#This Row],[2023/24 Baseline_Source]]*T_DataComboFile[[#This Row],[G&S reporting level indicator]]","v":0},null,null,null,null,null,null,{"$f":"T_DataComboFile[[#This Row],[2021/22 Baseline]]+T_DataComboFile[[#This Row],[2021/22 Reduction]]+T_DataComboFile[[#This Row],[2021/22 Increase]]","v":0},{"$f":"T_DataComboFile[[#This Row],[2022/23 Baseline]]+T_DataComboFile[[#This Row],[2022/23 Reduction]]+T_DataComboFile[[#This Row],[2022/23 Increase]]","v":0},{"$f":"T_DataComboFile[[#This Row],[2023/24 Baseline]]+T_DataComboFile[[#This Row],[2023/24 Reduction]]+T_DataComboFile[[#This Row],[2023/24 Increase]]","v":0}]
[null,null,"2021_22","ENE2020",36,1,5,null,70437,36,1,5,null,"070437","36|01|05",2,2,4,43,43,"02|02|04|43|43","National","Small Business Development","Administration","Communications",null,"Capital","Transfers and subsidies","Provinces and municipalities","Provinces","Provincial Revenue Funds",null,null,null,0,0,0,0,0,0,0,0,0,0,0,0,0,0,null,{"$f":"IF(T_DataComboFile[[#This Row],[G&S reporting level indicator]]=1,$AX$16,\"Not applicable\")","v":"Level 3"},{"$f":"IF(AND($AX$16=\"Level 3\",T_DataComboFile[[#This Row],[Econ3]] = \"Goods and services\"),IF(T_DataComboFile[[#This Row],[Econ4]] = T_DataComboFile[[#This Row],[Econ3]],1,0),IF(AND($AX$16=\"Level 4\",T_DataComboFile[[#This Row],[Econ4]] = \"Goods and services\"),0,1))","v":1},{"$f":"T_DataComboFile[[#This Row],[2016/17_Source]]*T_DataComboFile[[#This Row],[G&S reporting level indicator]]","v":0},{"$f":"T_DataComboFile[[#This Row],[2017/18_Source]]*T_DataComboFile[[#This Row],[G&S reporting level indicator]]","v":0},{"$f":"T_DataComboFile[[#This Row],[2018/19_Source]]*T_DataComboFile[[#This Row],[G&S reporting level indicator]]","v":0},{"$f":"T_DataComboFile[[#This Row],[2019/20 Main appropriation_Source]]*T_DataComboFile[[#This Row],[G&S reporting level indicator]]","v":0},{"$f":"T_DataComboFile[[#This Row],[2019/20 Adjusted appropriation_Source]]*T_DataComboFile[[#This Row],[G&S reporting level indicator]]","v":0},{"$f":"T_DataComboFile[[#This Row],[2019/20 Revised estimate_Source]]*T_DataComboFile[[#This Row],[G&S reporting level indicator]]","v":0},{"$f":"T_DataComboFile[[#This Row],[2019/20 Preliminary outcome_Source]]*T_DataComboFile[[#This Row],[G&S reporting level indicator]]","v":0},{"$f":"T_DataComboFile[[#This Row],[2020/21 Original_Source]]*T_DataComboFile[[#This Row],[G&S reporting level indicator]]","v":0},{"$f":"T_DataComboFile[[#This Row],[2020/21 SAB_Source]]*T_DataComboFile[[#This Row],[G&S reporting level indicator]]","v":0},{"$f":"T_DataComboFile[[#This Row],[2020/21 Baseline_Source]]*T_DataComboFile[[#This Row],[G&S reporting level indicator]]","v":0},{"$f":"T_DataComboFile[[#This Row],[2021/22 Baseline_Source]]*T_DataComboFile[[#This Row],[G&S reporting level indicator]]","v":0},{"$f":"T_DataComboFile[[#This Row],[2022/23 Baseline_Source]]*T_DataComboFile[[#This Row],[G&S reporting level indicator]]","v":0},{"$f":"T_DataComboFile[[#This Row],[2023/24 Baseline_Source]]*T_DataComboFile[[#This Row],[G&S reporting level indicator]]","v":0},null,null,null,null,null,null,{"$f":"T_DataComboFile[[#This Row],[2021/22 Baseline]]+T_DataComboFile[[#This Row],[2021/22 Reduction]]+T_DataComboFile[[#This Row],[2021/22 Increase]]","v":0},{"$f":"T_DataComboFile[[#This Row],[2022/23 Baseline]]+T_DataComboFile[[#This Row],[2022/23 Reduction]]+T_DataComboFile[[#This Row],[2022/23 Increase]]","v":0},{"$f":"T_DataComboFile[[#This Row],[2023/24 Baseline]]+T_DataComboFile[[#This Row],[2023/24 Reduction]]+T_DataComboFile[[#This Row],[2023/24 Increase]]","v":0}]
[null,null,"2021_22","ENE2020",36,1,5,null,70438,36,1,5,null,"070438","36|01|05",2,2,4,44,45,"02|02|04|44|45","National","Small Business Development","Administration","Communications",null,"Capital","Transfers and subsidies","Provinces and municipalities","Municipalities","Municipal bank accounts",null,null,null,0,0,0,0,0,0,0,0,0,0,0,0,0,0,null,{"$f":"IF(T_DataComboFile[[#This Row],[G&S reporting level indicator]]=1,$AX$16,\"Not applicable\")","v":"Level 3"},{"$f":"IF(AND($AX$16=\"Level 3\",T_DataComboFile[[#This Row],[Econ3]] = \"Goods and services\"),IF(T_DataComboFile[[#This Row],[Econ4]] = T_DataComboFile[[#This Row],[Econ3]],1,0),IF(AND($AX$16=\"Level 4\",T_DataComboFile[[#This Row],[Econ4]] = \"Goods and services\"),0,1))","v":1},{"$f":"T_DataComboFile[[#This Row],[2016/17_Source]]*T_DataComboFile[[#This Row],[G&S reporting level indicator]]","v":0},{"$f":"T_DataComboFile[[#This Row],[2017/18_Source]]*T_DataComboFile[[#This Row],[G&S reporting level indicator]]","v":0},{"$f":"T_DataComboFile[[#This Row],[2018/19_Source]]*T_DataComboFile[[#This Row],[G&S reporting level indicator]]","v":0},{"$f":"T_DataComboFile[[#This Row],[2019/20 Main appropriation_Source]]*T_DataComboFile[[#This Row],[G&S reporting level indicator]]","v":0},{"$f":"T_DataComboFile[[#This Row],[2019/20 Adjusted appropriation_Source]]*T_DataComboFile[[#This Row],[G&S reporting level indicator]]","v":0},{"$f":"T_DataComboFile[[#This Row],[2019/20 Revised estimate_Source]]*T_DataComboFile[[#This Row],[G&S reporting level indicator]]","v":0},{"$f":"T_DataComboFile[[#This Row],[2019/20 Preliminary outcome_Source]]*T_DataComboFile[[#This Row],[G&S reporting level indicator]]","v":0},{"$f":"T_DataComboFile[[#This Row],[2020/21 Original_Source]]*T_DataComboFile[[#This Row],[G&S reporting level indicator]]","v":0},{"$f":"T_DataComboFile[[#This Row],[2020/21 SAB_Source]]*T_DataComboFile[[#This Row],[G&S reporting level indicator]]","v":0},{"$f":"T_DataComboFile[[#This Row],[2020/21 Baseline_Source]]*T_DataComboFile[[#This Row],[G&S reporting level indicator]]","v":0},{"$f":"T_DataComboFile[[#This Row],[2021/22 Baseline_Source]]*T_DataComboFile[[#This Row],[G&S reporting level indicator]]","v":0},{"$f":"T_DataComboFile[[#This Row],[2022/23 Baseline_Source]]*T_DataComboFile[[#This Row],[G&S reporting level indicator]]","v":0},{"$f":"T_DataComboFile[[#This Row],[2023/24 Baseline_Source]]*T_DataComboFile[[#This Row],[G&S reporting level indicator]]","v":0},null,null,null,null,null,null,{"$f":"T_DataComboFile[[#This Row],[2021/22 Baseline]]+T_DataComboFile[[#This Row],[2021/22 Reduction]]+T_DataComboFile[[#This Row],[2021/22 Increase]]","v":0},{"$f":"T_DataComboFile[[#This Row],[2022/23 Baseline]]+T_DataComboFile[[#This Row],[2022/23 Reduction]]+T_DataComboFile[[#This Row],[2022/23 Increase]]","v":0},{"$f":"T_DataComboFile[[#This Row],[2023/24 Baseline]]+T_DataComboFile[[#This Row],[2023/24 Reduction]]+T_DataComboFile[[#This Row],[2023/24 Increase]]","v":0}]
[null,null,"2021_22","ENE2020",36,1,5,null,70439,36,1,5,null,"070439","36|01|05",2,2,5,46,48,"02|02|05|46|48","National","Small Business Development","Administration","Communications",null,"Capital","Transfers and subsidies","Departmental agencies and accounts","Departmental agencies (non-business entities)","Departmental agencies (non-business entities)",null,null,null,0,0,0,0,0,0,0,0,0,0,0,0,0,0,null,{"$f":"IF(T_DataComboFile[[#This Row],[G&S reporting level indicator]]=1,$AX$16,\"Not applicable\")","v":"Level 3"},{"$f":"IF(AND($AX$16=\"Level 3\",T_DataComboFile[[#This Row],[Econ3]] = \"Goods and services\"),IF(T_DataComboFile[[#This Row],[Econ4]] = T_DataComboFile[[#This Row],[Econ3]],1,0),IF(AND($AX$16=\"Level 4\",T_DataComboFile[[#This Row],[Econ4]] = \"Goods and services\"),0,1))","v":1},{"$f":"T_DataComboFile[[#This Row],[2016/17_Source]]*T_DataComboFile[[#This Row],[G&S reporting level indicator]]","v":0},{"$f":"T_DataComboFile[[#This Row],[2017/18_Source]]*T_DataComboFile[[#This Row],[G&S reporting level indicator]]","v":0},{"$f":"T_DataComboFile[[#This Row],[2018/19_Source]]*T_DataComboFile[[#This Row],[G&S reporting level indicator]]","v":0},{"$f":"T_DataComboFile[[#This Row],[2019/20 Main appropriation_Source]]*T_DataComboFile[[#This Row],[G&S reporting level indicator]]","v":0},{"$f":"T_DataComboFile[[#This Row],[2019/20 Adjusted appropriation_Source]]*T_DataComboFile[[#This Row],[G&S reporting level indicator]]","v":0},{"$f":"T_DataComboFile[[#This Row],[2019/20 Revised estimate_Source]]*T_DataComboFile[[#This Row],[G&S reporting level indicator]]","v":0},{"$f":"T_DataComboFile[[#This Row],[2019/20 Preliminary outcome_Source]]*T_DataComboFile[[#This Row],[G&S reporting level indicator]]","v":0},{"$f":"T_DataComboFile[[#This Row],[2020/21 Original_Source]]*T_DataComboFile[[#This Row],[G&S reporting level indicator]]","v":0},{"$f":"T_DataComboFile[[#This Row],[2020/21 SAB_Source]]*T_DataComboFile[[#This Row],[G&S reporting level indicator]]","v":0},{"$f":"T_DataComboFile[[#This Row],[2020/21 Baseline_Source]]*T_DataComboFile[[#This Row],[G&S reporting level indicator]]","v":0},{"$f":"T_DataComboFile[[#This Row],[2021/22 Baseline_Source]]*T_DataComboFile[[#This Row],[G&S reporting level indicator]]","v":0},{"$f":"T_DataComboFile[[#This Row],[2022/23 Baseline_Source]]*T_DataComboFile[[#This Row],[G&S reporting level indicator]]","v":0},{"$f":"T_DataComboFile[[#This Row],[2023/24 Baseline_Source]]*T_DataComboFile[[#This Row],[G&S reporting level indicator]]","v":0},null,null,null,null,null,null,{"$f":"T_DataComboFile[[#This Row],[2021/22 Baseline]]+T_DataComboFile[[#This Row],[2021/22 Reduction]]+T_DataComboFile[[#This Row],[2021/22 Increase]]","v":0},{"$f":"T_DataComboFile[[#This Row],[2022/23 Baseline]]+T_DataComboFile[[#This Row],[2022/23 Reduction]]+T_DataComboFile[[#This Row],[2022/23 Increase]]","v":0},{"$f":"T_DataComboFile[[#This Row],[2023/24 Baseline]]+T_DataComboFile[[#This Row],[2023/24 Reduction]]+T_DataComboFile[[#This Row],[2023/24 Increase]]","v":0}]
[null,null,"2021_22","ENE2020",36,1,5,null,70440,36,1,5,null,"070440","36|01|05",2,2,6,47,49,"02|02|06|47|49","National","Small Business Development","Administration","Communications",null,"Capital","Transfers and subsidies","Higher education institutions","Higher education institutions","Higher education institutions",null,null,null,0,0,0,0,0,0,0,0,0,0,0,0,0,0,null,{"$f":"IF(T_DataComboFile[[#This Row],[G&S reporting level indicator]]=1,$AX$16,\"Not applicable\")","v":"Level 3"},{"$f":"IF(AND($AX$16=\"Level 3\",T_DataComboFile[[#This Row],[Econ3]] = \"Goods and services\"),IF(T_DataComboFile[[#This Row],[Econ4]] = T_DataComboFile[[#This Row],[Econ3]],1,0),IF(AND($AX$16=\"Level 4\",T_DataComboFile[[#This Row],[Econ4]] = \"Goods and services\"),0,1))","v":1},{"$f":"T_DataComboFile[[#This Row],[2016/17_Source]]*T_DataComboFile[[#This Row],[G&S reporting level indicator]]","v":0},{"$f":"T_DataComboFile[[#This Row],[2017/18_Source]]*T_DataComboFile[[#This Row],[G&S reporting level indicator]]","v":0},{"$f":"T_DataComboFile[[#This Row],[2018/19_Source]]*T_DataComboFile[[#This Row],[G&S reporting level indicator]]","v":0},{"$f":"T_DataComboFile[[#This Row],[2019/20 Main appropriation_Source]]*T_DataComboFile[[#This Row],[G&S reporting level indicator]]","v":0},{"$f":"T_DataComboFile[[#This Row],[2019/20 Adjusted appropriation_Source]]*T_DataComboFile[[#This Row],[G&S reporting level indicator]]","v":0},{"$f":"T_DataComboFile[[#This Row],[2019/20 Revised estimate_Source]]*T_DataComboFile[[#This Row],[G&S reporting level indicator]]","v":0},{"$f":"T_DataComboFile[[#This Row],[2019/20 Preliminary outcome_Source]]*T_DataComboFile[[#This Row],[G&S reporting level indicator]]","v":0},{"$f":"T_DataComboFile[[#This Row],[2020/21 Original_Source]]*T_DataComboFile[[#This Row],[G&S reporting level indicator]]","v":0},{"$f":"T_DataComboFile[[#This Row],[2020/21 SAB_Source]]*T_DataComboFile[[#This Row],[G&S reporting level indicator]]","v":0},{"$f":"T_DataComboFile[[#This Row],[2020/21 Baseline_Source]]*T_DataComboFile[[#This Row],[G&S reporting level indicator]]","v":0},{"$f":"T_DataComboFile[[#This Row],[2021/22 Baseline_Source]]*T_DataComboFile[[#This Row],[G&S reporting level indicator]]","v":0},{"$f":"T_DataComboFile[[#This Row],[2022/23 Baseline_Source]]*T_DataComboFile[[#This Row],[G&S reporting level indicator]]","v":0},{"$f":"T_DataComboFile[[#This Row],[2023/24 Baseline_Source]]*T_DataComboFile[[#This Row],[G&S reporting level indicator]]","v":0},null,null,null,null,null,null,{"$f":"T_DataComboFile[[#This Row],[2021/22 Baseline]]+T_DataComboFile[[#This Row],[2021/22 Reduction]]+T_DataComboFile[[#This Row],[2021/22 Increase]]","v":0},{"$f":"T_DataComboFile[[#This Row],[2022/23 Baseline]]+T_DataComboFile[[#This Row],[2022/23 Reduction]]+T_DataComboFile[[#This Row],[2022/23 Increase]]","v":0},{"$f":"T_DataComboFile[[#This Row],[2023/24 Baseline]]+T_DataComboFile[[#This Row],[2023/24 Reduction]]+T_DataComboFile[[#This Row],[2023/24 Increase]]","v":0}]
[null,null,"2021_22","ENE2020",36,1,5,null,70441,36,1,5,null,"070441","36|01|05",2,2,7,48,50,"02|02|07|48|50","National","Small Business Development","Administration","Communications",null,"Capital","Transfers and subsidies","Foreign governments and international organisations","Foreign governments and international organisations","Foreign governments and international organisations",null,null,null,0,0,0,0,0,0,0,0,0,0,0,0,0,0,null,{"$f":"IF(T_DataComboFile[[#This Row],[G&S reporting level indicator]]=1,$AX$16,\"Not applicable\")","v":"Level 3"},{"$f":"IF(AND($AX$16=\"Level 3\",T_DataComboFile[[#This Row],[Econ3]] = \"Goods and services\"),IF(T_DataComboFile[[#This Row],[Econ4]] = T_DataComboFile[[#This Row],[Econ3]],1,0),IF(AND($AX$16=\"Level 4\",T_DataComboFile[[#This Row],[Econ4]] = \"Goods and services\"),0,1))","v":1},{"$f":"T_DataComboFile[[#This Row],[2016/17_Source]]*T_DataComboFile[[#This Row],[G&S reporting level indicator]]","v":0},{"$f":"T_DataComboFile[[#This Row],[2017/18_Source]]*T_DataComboFile[[#This Row],[G&S reporting level indicator]]","v":0},{"$f":"T_DataComboFile[[#This Row],[2018/19_Source]]*T_DataComboFile[[#This Row],[G&S reporting level indicator]]","v":0},{"$f":"T_DataComboFile[[#This Row],[2019/20 Main appropriation_Source]]*T_DataComboFile[[#This Row],[G&S reporting level indicator]]","v":0},{"$f":"T_DataComboFile[[#This Row],[2019/20 Adjusted appropriation_Source]]*T_DataComboFile[[#This Row],[G&S reporting level indicator]]","v":0},{"$f":"T_DataComboFile[[#This Row],[2019/20 Revised estimate_Source]]*T_DataComboFile[[#This Row],[G&S reporting level indicator]]","v":0},{"$f":"T_DataComboFile[[#This Row],[2019/20 Preliminary outcome_Source]]*T_DataComboFile[[#This Row],[G&S reporting level indicator]]","v":0},{"$f":"T_DataComboFile[[#This Row],[2020/21 Original_Source]]*T_DataComboFile[[#This Row],[G&S reporting level indicator]]","v":0},{"$f":"T_DataComboFile[[#This Row],[2020/21 SAB_Source]]*T_DataComboFile[[#This Row],[G&S reporting level indicator]]","v":0},{"$f":"T_DataComboFile[[#This Row],[2020/21 Baseline_Source]]*T_DataComboFile[[#This Row],[G&S reporting level indicator]]","v":0},{"$f":"T_DataComboFile[[#This Row],[2021/22 Baseline_Source]]*T_DataComboFile[[#This Row],[G&S reporting level indicator]]","v":0},{"$f":"T_DataComboFile[[#This Row],[2022/23 Baseline_Source]]*T_DataComboFile[[#This Row],[G&S reporting level indicator]]","v":0},{"$f":"T_DataComboFile[[#This Row],[2023/24 Baseline_Source]]*T_DataComboFile[[#This Row],[G&S reporting level indicator]]","v":0},null,null,null,null,null,null,{"$f":"T_DataComboFile[[#This Row],[2021/22 Baseline]]+T_DataComboFile[[#This Row],[2021/22 Reduction]]+T_DataComboFile[[#This Row],[2021/22 Increase]]","v":0},{"$f":"T_DataComboFile[[#This Row],[2022/23 Baseline]]+T_DataComboFile[[#This Row],[2022/23 Reduction]]+T_DataComboFile[[#This Row],[2022/23 Increase]]","v":0},{"$f":"T_DataComboFile[[#This Row],[2023/24 Baseline]]+T_DataComboFile[[#This Row],[2023/24 Reduction]]+T_DataComboFile[[#This Row],[2023/24 Increase]]","v":0}]
[null,null,"2021_22","ENE2020",36,1,5,null,70442,36,1,5,null,"070442","36|01|05",2,2,8,49,51,"02|02|08|49|51","National","Small Business Development","Administration","Communications",null,"Capital","Transfers and subsidies","Public corporations and private enterprises","Public corporations","Subsidies on products and production (pc)",null,null,null,0,0,0,0,0,0,0,0,0,0,0,0,0,0,null,{"$f":"IF(T_DataComboFile[[#This Row],[G&S reporting level indicator]]=1,$AX$16,\"Not applicable\")","v":"Level 3"},{"$f":"IF(AND($AX$16=\"Level 3\",T_DataComboFile[[#This Row],[Econ3]] = \"Goods and services\"),IF(T_DataComboFile[[#This Row],[Econ4]] = T_DataComboFile[[#This Row],[Econ3]],1,0),IF(AND($AX$16=\"Level 4\",T_DataComboFile[[#This Row],[Econ4]] = \"Goods and services\"),0,1))","v":1},{"$f":"T_DataComboFile[[#This Row],[2016/17_Source]]*T_DataComboFile[[#This Row],[G&S reporting level indicator]]","v":0},{"$f":"T_DataComboFile[[#This Row],[2017/18_Source]]*T_DataComboFile[[#This Row],[G&S reporting level indicator]]","v":0},{"$f":"T_DataComboFile[[#This Row],[2018/19_Source]]*T_DataComboFile[[#This Row],[G&S reporting level indicator]]","v":0},{"$f":"T_DataComboFile[[#This Row],[2019/20 Main appropriation_Source]]*T_DataComboFile[[#This Row],[G&S reporting level indicator]]","v":0},{"$f":"T_DataComboFile[[#This Row],[2019/20 Adjusted appropriation_Source]]*T_DataComboFile[[#This Row],[G&S reporting level indicator]]","v":0},{"$f":"T_DataComboFile[[#This Row],[2019/20 Revised estimate_Source]]*T_DataComboFile[[#This Row],[G&S reporting level indicator]]","v":0},{"$f":"T_DataComboFile[[#This Row],[2019/20 Preliminary outcome_Source]]*T_DataComboFile[[#This Row],[G&S reporting level indicator]]","v":0},{"$f":"T_DataComboFile[[#This Row],[2020/21 Original_Source]]*T_DataComboFile[[#This Row],[G&S reporting level indicator]]","v":0},{"$f":"T_DataComboFile[[#This Row],[2020/21 SAB_Source]]*T_DataComboFile[[#This Row],[G&S reporting level indicator]]","v":0},{"$f":"T_DataComboFile[[#This Row],[2020/21 Baseline_Source]]*T_DataComboFile[[#This Row],[G&S reporting level indicator]]","v":0},{"$f":"T_DataComboFile[[#This Row],[2021/22 Baseline_Source]]*T_DataComboFile[[#This Row],[G&S reporting level indicator]]","v":0},{"$f":"T_DataComboFile[[#This Row],[2022/23 Baseline_Source]]*T_DataComboFile[[#This Row],[G&S reporting level indicator]]","v":0},{"$f":"T_DataComboFile[[#This Row],[2023/24 Baseline_Source]]*T_DataComboFile[[#This Row],[G&S reporting level indicator]]","v":0},null,null,null,null,null,null,{"$f":"T_DataComboFile[[#This Row],[2021/22 Baseline]]+T_DataComboFile[[#This Row],[2021/22 Reduction]]+T_DataComboFile[[#This Row],[2021/22 Increase]]","v":0},{"$f":"T_DataComboFile[[#This Row],[2022/23 Baseline]]+T_DataComboFile[[#This Row],[2022/23 Reduction]]+T_DataComboFile[[#This Row],[2022/23 Increase]]","v":0},{"$f":"T_DataComboFile[[#This Row],[2023/24 Baseline]]+T_DataComboFile[[#This Row],[2023/24 Reduction]]+T_DataComboFile[[#This Row],[2023/24 Increase]]","v":0}]
[null,null,"2021_22","ENE2020",36,1,5,null,70443,36,1,5,null,"070443","36|01|05",2,2,8,49,52,"02|02|08|49|52","National","Small Business Development","Administration","Communications",null,"Capital","Transfers and subsidies","Public corporations and private enterprises","Public corporations","Other transfers to public corporations",null,null,null,0,0,0,0,0,0,0,0,0,0,0,0,0,0,null,{"$f":"IF(T_DataComboFile[[#This Row],[G&S reporting level indicator]]=1,$AX$16,\"Not applicable\")","v":"Level 3"},{"$f":"IF(AND($AX$16=\"Level 3\",T_DataComboFile[[#This Row],[Econ3]] = \"Goods and services\"),IF(T_DataComboFile[[#This Row],[Econ4]] = T_DataComboFile[[#This Row],[Econ3]],1,0),IF(AND($AX$16=\"Level 4\",T_DataComboFile[[#This Row],[Econ4]] = \"Goods and services\"),0,1))","v":1},{"$f":"T_DataComboFile[[#This Row],[2016/17_Source]]*T_DataComboFile[[#This Row],[G&S reporting level indicator]]","v":0},{"$f":"T_DataComboFile[[#This Row],[2017/18_Source]]*T_DataComboFile[[#This Row],[G&S reporting level indicator]]","v":0},{"$f":"T_DataComboFile[[#This Row],[2018/19_Source]]*T_DataComboFile[[#This Row],[G&S reporting level indicator]]","v":0},{"$f":"T_DataComboFile[[#This Row],[2019/20 Main appropriation_Source]]*T_DataComboFile[[#This Row],[G&S reporting level indicator]]","v":0},{"$f":"T_DataComboFile[[#This Row],[2019/20 Adjusted appropriation_Source]]*T_DataComboFile[[#This Row],[G&S reporting level indicator]]","v":0},{"$f":"T_DataComboFile[[#This Row],[2019/20 Revised estimate_Source]]*T_DataComboFile[[#This Row],[G&S reporting level indicator]]","v":0},{"$f":"T_DataComboFile[[#This Row],[2019/20 Preliminary outcome_Source]]*T_DataComboFile[[#This Row],[G&S reporting level indicator]]","v":0},{"$f":"T_DataComboFile[[#This Row],[2020/21 Original_Source]]*T_DataComboFile[[#This Row],[G&S reporting level indicator]]","v":0},{"$f":"T_DataComboFile[[#This Row],[2020/21 SAB_Source]]*T_DataComboFile[[#This Row],[G&S reporting level indicator]]","v":0},{"$f":"T_DataComboFile[[#This Row],[2020/21 Baseline_Source]]*T_DataComboFile[[#This Row],[G&S reporting level indicator]]","v":0},{"$f":"T_DataComboFile[[#This Row],[2021/22 Baseline_Source]]*T_DataComboFile[[#This Row],[G&S reporting level indicator]]","v":0},{"$f":"T_DataComboFile[[#This Row],[2022/23 Baseline_Source]]*T_DataComboFile[[#This Row],[G&S reporting level indicator]]","v":0},{"$f":"T_DataComboFile[[#This Row],[2023/24 Baseline_Source]]*T_DataComboFile[[#This Row],[G&S reporting level indicator]]","v":0},null,null,null,null,null,null,{"$f":"T_DataComboFile[[#This Row],[2021/22 Baseline]]+T_DataComboFile[[#This Row],[2021/22 Reduction]]+T_DataComboFile[[#This Row],[2021/22 Increase]]","v":0},{"$f":"T_DataComboFile[[#This Row],[2022/23 Baseline]]+T_DataComboFile[[#This Row],[2022/23 Reduction]]+T_DataComboFile[[#This Row],[2022/23 Increase]]","v":0},{"$f":"T_DataComboFile[[#This Row],[2023/24 Baseline]]+T_DataComboFile[[#This Row],[2023/24 Reduction]]+T_DataComboFile[[#This Row],[2023/24 Increase]]","v":0}]
[null,null,"2021_22","ENE2020",36,1,5,null,70444,36,1,5,null,"070444","36|01|05",2,2,8,50,54,"02|02|08|50|54","National","Small Business Development","Administration","Communications",null,"Capital","Transfers and subsidies","Public corporations and private enterprises","Private enterprises","Other transfers to private enterprises",null,null,null,0,0,0,0,0,0,0,0,0,0,0,0,0,0,null,{"$f":"IF(T_DataComboFile[[#This Row],[G&S reporting level indicator]]=1,$AX$16,\"Not applicable\")","v":"Level 3"},{"$f":"IF(AND($AX$16=\"Level 3\",T_DataComboFile[[#This Row],[Econ3]] = \"Goods and services\"),IF(T_DataComboFile[[#This Row],[Econ4]] = T_DataComboFile[[#This Row],[Econ3]],1,0),IF(AND($AX$16=\"Level 4\",T_DataComboFile[[#This Row],[Econ4]] = \"Goods and services\"),0,1))","v":1},{"$f":"T_DataComboFile[[#This Row],[2016/17_Source]]*T_DataComboFile[[#This Row],[G&S reporting level indicator]]","v":0},{"$f":"T_DataComboFile[[#This Row],[2017/18_Source]]*T_DataComboFile[[#This Row],[G&S reporting level indicator]]","v":0},{"$f":"T_DataComboFile[[#This Row],[2018/19_Source]]*T_DataComboFile[[#This Row],[G&S reporting level indicator]]","v":0},{"$f":"T_DataComboFile[[#This Row],[2019/20 Main appropriation_Source]]*T_DataComboFile[[#This Row],[G&S reporting level indicator]]","v":0},{"$f":"T_DataComboFile[[#This Row],[2019/20 Adjusted appropriation_Source]]*T_DataComboFile[[#This Row],[G&S reporting level indicator]]","v":0},{"$f":"T_DataComboFile[[#This Row],[2019/20 Revised estimate_Source]]*T_DataComboFile[[#This Row],[G&S reporting level indicator]]","v":0},{"$f":"T_DataComboFile[[#This Row],[2019/20 Preliminary outcome_Source]]*T_DataComboFile[[#This Row],[G&S reporting level indicator]]","v":0},{"$f":"T_DataComboFile[[#This Row],[2020/21 Original_Source]]*T_DataComboFile[[#This Row],[G&S reporting level indicator]]","v":0},{"$f":"T_DataComboFile[[#This Row],[2020/21 SAB_Source]]*T_DataComboFile[[#This Row],[G&S reporting level indicator]]","v":0},{"$f":"T_DataComboFile[[#This Row],[2020/21 Baseline_Source]]*T_DataComboFile[[#This Row],[G&S reporting level indicator]]","v":0},{"$f":"T_DataComboFile[[#This Row],[2021/22 Baseline_Source]]*T_DataComboFile[[#This Row],[G&S reporting level indicator]]","v":0},{"$f":"T_DataComboFile[[#This Row],[2022/23 Baseline_Source]]*T_DataComboFile[[#This Row],[G&S reporting level indicator]]","v":0},{"$f":"T_DataComboFile[[#This Row],[2023/24 Baseline_Source]]*T_DataComboFile[[#This Row],[G&S reporting level indicator]]","v":0},null,null,null,null,null,null,{"$f":"T_DataComboFile[[#This Row],[2021/22 Baseline]]+T_DataComboFile[[#This Row],[2021/22 Reduction]]+T_DataComboFile[[#This Row],[2021/22 Increase]]","v":0},{"$f":"T_DataComboFile[[#This Row],[2022/23 Baseline]]+T_DataComboFile[[#This Row],[2022/23 Reduction]]+T_DataComboFile[[#This Row],[2022/23 Increase]]","v":0},{"$f":"T_DataComboFile[[#This Row],[2023/24 Baseline]]+T_DataComboFile[[#This Row],[2023/24 Reduction]]+T_DataComboFile[[#This Row],[2023/24 Increase]]","v":0}]
[null,null,"2021_22","ENE2020",36,1,5,null,70445,36,1,5,null,"070445","36|01|05",2,2,9,51,55,"02|02|09|51|55","National","Small Business Development","Administration","Communications",null,"Capital","Transfers and subsidies","Non-profit institutions","Non-profit institutions","Non-profit institutions",null,null,null,0,0,0,0,0,0,0,0,0,0,0,0,0,0,null,{"$f":"IF(T_DataComboFile[[#This Row],[G&S reporting level indicator]]=1,$AX$16,\"Not applicable\")","v":"Level 3"},{"$f":"IF(AND($AX$16=\"Level 3\",T_DataComboFile[[#This Row],[Econ3]] = \"Goods and services\"),IF(T_DataComboFile[[#This Row],[Econ4]] = T_DataComboFile[[#This Row],[Econ3]],1,0),IF(AND($AX$16=\"Level 4\",T_DataComboFile[[#This Row],[Econ4]] = \"Goods and services\"),0,1))","v":1},{"$f":"T_DataComboFile[[#This Row],[2016/17_Source]]*T_DataComboFile[[#This Row],[G&S reporting level indicator]]","v":0},{"$f":"T_DataComboFile[[#This Row],[2017/18_Source]]*T_DataComboFile[[#This Row],[G&S reporting level indicator]]","v":0},{"$f":"T_DataComboFile[[#This Row],[2018/19_Source]]*T_DataComboFile[[#This Row],[G&S reporting level indicator]]","v":0},{"$f":"T_DataComboFile[[#This Row],[2019/20 Main appropriation_Source]]*T_DataComboFile[[#This Row],[G&S reporting level indicator]]","v":0},{"$f":"T_DataComboFile[[#This Row],[2019/20 Adjusted appropriation_Source]]*T_DataComboFile[[#This Row],[G&S reporting level indicator]]","v":0},{"$f":"T_DataComboFile[[#This Row],[2019/20 Revised estimate_Source]]*T_DataComboFile[[#This Row],[G&S reporting level indicator]]","v":0},{"$f":"T_DataComboFile[[#This Row],[2019/20 Preliminary outcome_Source]]*T_DataComboFile[[#This Row],[G&S reporting level indicator]]","v":0},{"$f":"T_DataComboFile[[#This Row],[2020/21 Original_Source]]*T_DataComboFile[[#This Row],[G&S reporting level indicator]]","v":0},{"$f":"T_DataComboFile[[#This Row],[2020/21 SAB_Source]]*T_DataComboFile[[#This Row],[G&S reporting level indicator]]","v":0},{"$f":"T_DataComboFile[[#This Row],[2020/21 Baseline_Source]]*T_DataComboFile[[#This Row],[G&S reporting level indicator]]","v":0},{"$f":"T_DataComboFile[[#This Row],[2021/22 Baseline_Source]]*T_DataComboFile[[#This Row],[G&S reporting level indicator]]","v":0},{"$f":"T_DataComboFile[[#This Row],[2022/23 Baseline_Source]]*T_DataComboFile[[#This Row],[G&S reporting level indicator]]","v":0},{"$f":"T_DataComboFile[[#This Row],[2023/24 Baseline_Source]]*T_DataComboFile[[#This Row],[G&S reporting level indicator]]","v":0},null,null,null,null,null,null,{"$f":"T_DataComboFile[[#This Row],[2021/22 Baseline]]+T_DataComboFile[[#This Row],[2021/22 Reduction]]+T_DataComboFile[[#This Row],[2021/22 Increase]]","v":0},{"$f":"T_DataComboFile[[#This Row],[2022/23 Baseline]]+T_DataComboFile[[#This Row],[2022/23 Reduction]]+T_DataComboFile[[#This Row],[2022/23 Increase]]","v":0},{"$f":"T_DataComboFile[[#This Row],[2023/24 Baseline]]+T_DataComboFile[[#This Row],[2023/24 Reduction]]+T_DataComboFile[[#This Row],[2023/24 Increase]]","v":0}]
[null,null,"2021_22","ENE2020",36,1,5,null,70446,36,1,5,null,"070446","36|01|05",2,2,10,53,57,"02|02|10|53|57","National","Small Business Development","Administration","Communications",null,"Capital","Transfers and subsidies","Households","Other transfers to households","Other transfers to households",null,null,null,0,0,0,0,0,0,0,0,0,0,0,0,0,0,null,{"$f":"IF(T_DataComboFile[[#This Row],[G&S reporting level indicator]]=1,$AX$16,\"Not applicable\")","v":"Level 3"},{"$f":"IF(AND($AX$16=\"Level 3\",T_DataComboFile[[#This Row],[Econ3]] = \"Goods and services\"),IF(T_DataComboFile[[#This Row],[Econ4]] = T_DataComboFile[[#This Row],[Econ3]],1,0),IF(AND($AX$16=\"Level 4\",T_DataComboFile[[#This Row],[Econ4]] = \"Goods and services\"),0,1))","v":1},{"$f":"T_DataComboFile[[#This Row],[2016/17_Source]]*T_DataComboFile[[#This Row],[G&S reporting level indicator]]","v":0},{"$f":"T_DataComboFile[[#This Row],[2017/18_Source]]*T_DataComboFile[[#This Row],[G&S reporting level indicator]]","v":0},{"$f":"T_DataComboFile[[#This Row],[2018/19_Source]]*T_DataComboFile[[#This Row],[G&S reporting level indicator]]","v":0},{"$f":"T_DataComboFile[[#This Row],[2019/20 Main appropriation_Source]]*T_DataComboFile[[#This Row],[G&S reporting level indicator]]","v":0},{"$f":"T_DataComboFile[[#This Row],[2019/20 Adjusted appropriation_Source]]*T_DataComboFile[[#This Row],[G&S reporting level indicator]]","v":0},{"$f":"T_DataComboFile[[#This Row],[2019/20 Revised estimate_Source]]*T_DataComboFile[[#This Row],[G&S reporting level indicator]]","v":0},{"$f":"T_DataComboFile[[#This Row],[2019/20 Preliminary outcome_Source]]*T_DataComboFile[[#This Row],[G&S reporting level indicator]]","v":0},{"$f":"T_DataComboFile[[#This Row],[2020/21 Original_Source]]*T_DataComboFile[[#This Row],[G&S reporting level indicator]]","v":0},{"$f":"T_DataComboFile[[#This Row],[2020/21 SAB_Source]]*T_DataComboFile[[#This Row],[G&S reporting level indicator]]","v":0},{"$f":"T_DataComboFile[[#This Row],[2020/21 Baseline_Source]]*T_DataComboFile[[#This Row],[G&S reporting level indicator]]","v":0},{"$f":"T_DataComboFile[[#This Row],[2021/22 Baseline_Source]]*T_DataComboFile[[#This Row],[G&S reporting level indicator]]","v":0},{"$f":"T_DataComboFile[[#This Row],[2022/23 Baseline_Source]]*T_DataComboFile[[#This Row],[G&S reporting level indicator]]","v":0},{"$f":"T_DataComboFile[[#This Row],[2023/24 Baseline_Source]]*T_DataComboFile[[#This Row],[G&S reporting level indicator]]","v":0},null,null,null,null,null,null,{"$f":"T_DataComboFile[[#This Row],[2021/22 Baseline]]+T_DataComboFile[[#This Row],[2021/22 Reduction]]+T_DataComboFile[[#This Row],[2021/22 Increase]]","v":0},{"$f":"T_DataComboFile[[#This Row],[2022/23 Baseline]]+T_DataComboFile[[#This Row],[2022/23 Reduction]]+T_DataComboFile[[#This Row],[2022/23 Increase]]","v":0},{"$f":"T_DataComboFile[[#This Row],[2023/24 Baseline]]+T_DataComboFile[[#This Row],[2023/24 Reduction]]+T_DataComboFile[[#This Row],[2023/24 Increase]]","v":0}]
[null,null,"2021_22","ENE2020",36,1,5,null,70447,36,1,5,null,"070447","36|01|05",2,3,11,54,58,"02|03|11|54|58","National","Small Business Development","Administration","Communications",null,"Capital","Payments for capital assets","Buildings and other fixed structures","Buildings","Buildings",null,null,null,0,0,0,0,0,0,0,0,0,0,0,0,0,0,null,{"$f":"IF(T_DataComboFile[[#This Row],[G&S reporting level indicator]]=1,$AX$16,\"Not applicable\")","v":"Level 3"},{"$f":"IF(AND($AX$16=\"Level 3\",T_DataComboFile[[#This Row],[Econ3]] = \"Goods and services\"),IF(T_DataComboFile[[#This Row],[Econ4]] = T_DataComboFile[[#This Row],[Econ3]],1,0),IF(AND($AX$16=\"Level 4\",T_DataComboFile[[#This Row],[Econ4]] = \"Goods and services\"),0,1))","v":1},{"$f":"T_DataComboFile[[#This Row],[2016/17_Source]]*T_DataComboFile[[#This Row],[G&S reporting level indicator]]","v":0},{"$f":"T_DataComboFile[[#This Row],[2017/18_Source]]*T_DataComboFile[[#This Row],[G&S reporting level indicator]]","v":0},{"$f":"T_DataComboFile[[#This Row],[2018/19_Source]]*T_DataComboFile[[#This Row],[G&S reporting level indicator]]","v":0},{"$f":"T_DataComboFile[[#This Row],[2019/20 Main appropriation_Source]]*T_DataComboFile[[#This Row],[G&S reporting level indicator]]","v":0},{"$f":"T_DataComboFile[[#This Row],[2019/20 Adjusted appropriation_Source]]*T_DataComboFile[[#This Row],[G&S reporting level indicator]]","v":0},{"$f":"T_DataComboFile[[#This Row],[2019/20 Revised estimate_Source]]*T_DataComboFile[[#This Row],[G&S reporting level indicator]]","v":0},{"$f":"T_DataComboFile[[#This Row],[2019/20 Preliminary outcome_Source]]*T_DataComboFile[[#This Row],[G&S reporting level indicator]]","v":0},{"$f":"T_DataComboFile[[#This Row],[2020/21 Original_Source]]*T_DataComboFile[[#This Row],[G&S reporting level indicator]]","v":0},{"$f":"T_DataComboFile[[#This Row],[2020/21 SAB_Source]]*T_DataComboFile[[#This Row],[G&S reporting level indicator]]","v":0},{"$f":"T_DataComboFile[[#This Row],[2020/21 Baseline_Source]]*T_DataComboFile[[#This Row],[G&S reporting level indicator]]","v":0},{"$f":"T_DataComboFile[[#This Row],[2021/22 Baseline_Source]]*T_DataComboFile[[#This Row],[G&S reporting level indicator]]","v":0},{"$f":"T_DataComboFile[[#This Row],[2022/23 Baseline_Source]]*T_DataComboFile[[#This Row],[G&S reporting level indicator]]","v":0},{"$f":"T_DataComboFile[[#This Row],[2023/24 Baseline_Source]]*T_DataComboFile[[#This Row],[G&S reporting level indicator]]","v":0},null,null,null,null,null,null,{"$f":"T_DataComboFile[[#This Row],[2021/22 Baseline]]+T_DataComboFile[[#This Row],[2021/22 Reduction]]+T_DataComboFile[[#This Row],[2021/22 Increase]]","v":0},{"$f":"T_DataComboFile[[#This Row],[2022/23 Baseline]]+T_DataComboFile[[#This Row],[2022/23 Reduction]]+T_DataComboFile[[#This Row],[2022/23 Increase]]","v":0},{"$f":"T_DataComboFile[[#This Row],[2023/24 Baseline]]+T_DataComboFile[[#This Row],[2023/24 Reduction]]+T_DataComboFile[[#This Row],[2023/24 Increase]]","v":0}]
[null,null,"2021_22","ENE2020",36,1,5,null,70448,36,1,5,null,"070448","36|01|05",2,3,11,55,59,"02|03|11|55|59","National","Small Business Development","Administration","Communications",null,"Capital","Payments for capital assets","Buildings and other fixed structures","Other fixed structures","Other fixed structures",null,null,null,0,0,0,0,0,0,0,0,0,0,0,0,0,0,null,{"$f":"IF(T_DataComboFile[[#This Row],[G&S reporting level indicator]]=1,$AX$16,\"Not applicable\")","v":"Level 3"},{"$f":"IF(AND($AX$16=\"Level 3\",T_DataComboFile[[#This Row],[Econ3]] = \"Goods and services\"),IF(T_DataComboFile[[#This Row],[Econ4]] = T_DataComboFile[[#This Row],[Econ3]],1,0),IF(AND($AX$16=\"Level 4\",T_DataComboFile[[#This Row],[Econ4]] = \"Goods and services\"),0,1))","v":1},{"$f":"T_DataComboFile[[#This Row],[2016/17_Source]]*T_DataComboFile[[#This Row],[G&S reporting level indicator]]","v":0},{"$f":"T_DataComboFile[[#This Row],[2017/18_Source]]*T_DataComboFile[[#This Row],[G&S reporting level indicator]]","v":0},{"$f":"T_DataComboFile[[#This Row],[2018/19_Source]]*T_DataComboFile[[#This Row],[G&S reporting level indicator]]","v":0},{"$f":"T_DataComboFile[[#This Row],[2019/20 Main appropriation_Source]]*T_DataComboFile[[#This Row],[G&S reporting level indicator]]","v":0},{"$f":"T_DataComboFile[[#This Row],[2019/20 Adjusted appropriation_Source]]*T_DataComboFile[[#This Row],[G&S reporting level indicator]]","v":0},{"$f":"T_DataComboFile[[#This Row],[2019/20 Revised estimate_Source]]*T_DataComboFile[[#This Row],[G&S reporting level indicator]]","v":0},{"$f":"T_DataComboFile[[#This Row],[2019/20 Preliminary outcome_Source]]*T_DataComboFile[[#This Row],[G&S reporting level indicator]]","v":0},{"$f":"T_DataComboFile[[#This Row],[2020/21 Original_Source]]*T_DataComboFile[[#This Row],[G&S reporting level indicator]]","v":0},{"$f":"T_DataComboFile[[#This Row],[2020/21 SAB_Source]]*T_DataComboFile[[#This Row],[G&S reporting level indicator]]","v":0},{"$f":"T_DataComboFile[[#This Row],[2020/21 Baseline_Source]]*T_DataComboFile[[#This Row],[G&S reporting level indicator]]","v":0},{"$f":"T_DataComboFile[[#This Row],[2021/22 Baseline_Source]]*T_DataComboFile[[#This Row],[G&S reporting level indicator]]","v":0},{"$f":"T_DataComboFile[[#This Row],[2022/23 Baseline_Source]]*T_DataComboFile[[#This Row],[G&S reporting level indicator]]","v":0},{"$f":"T_DataComboFile[[#This Row],[2023/24 Baseline_Source]]*T_DataComboFile[[#This Row],[G&S reporting level indicator]]","v":0},null,null,null,null,null,null,{"$f":"T_DataComboFile[[#This Row],[2021/22 Baseline]]+T_DataComboFile[[#This Row],[2021/22 Reduction]]+T_DataComboFile[[#This Row],[2021/22 Increase]]","v":0},{"$f":"T_DataComboFile[[#This Row],[2022/23 Baseline]]+T_DataComboFile[[#This Row],[2022/23 Reduction]]+T_DataComboFile[[#This Row],[2022/23 Increase]]","v":0},{"$f":"T_DataComboFile[[#This Row],[2023/24 Baseline]]+T_DataComboFile[[#This Row],[2023/24 Reduction]]+T_DataComboFile[[#This Row],[2023/24 Increase]]","v":0}]
[null,null,"2021_22","ENE2020",36,1,5,null,70449,36,1,5,null,"070449","36|01|05",2,3,12,56,60,"02|03|12|56|60","National","Small Business Development","Administration","Communications",null,"Capital","Payments for capital assets","Machinery and equipment","Transport equipment","Transport equipment",null,null,null,0,0,0,0,0,0,0,0,0,0,0,0,0,0,null,{"$f":"IF(T_DataComboFile[[#This Row],[G&S reporting level indicator]]=1,$AX$16,\"Not applicable\")","v":"Level 3"},{"$f":"IF(AND($AX$16=\"Level 3\",T_DataComboFile[[#This Row],[Econ3]] = \"Goods and services\"),IF(T_DataComboFile[[#This Row],[Econ4]] = T_DataComboFile[[#This Row],[Econ3]],1,0),IF(AND($AX$16=\"Level 4\",T_DataComboFile[[#This Row],[Econ4]] = \"Goods and services\"),0,1))","v":1},{"$f":"T_DataComboFile[[#This Row],[2016/17_Source]]*T_DataComboFile[[#This Row],[G&S reporting level indicator]]","v":0},{"$f":"T_DataComboFile[[#This Row],[2017/18_Source]]*T_DataComboFile[[#This Row],[G&S reporting level indicator]]","v":0},{"$f":"T_DataComboFile[[#This Row],[2018/19_Source]]*T_DataComboFile[[#This Row],[G&S reporting level indicator]]","v":0},{"$f":"T_DataComboFile[[#This Row],[2019/20 Main appropriation_Source]]*T_DataComboFile[[#This Row],[G&S reporting level indicator]]","v":0},{"$f":"T_DataComboFile[[#This Row],[2019/20 Adjusted appropriation_Source]]*T_DataComboFile[[#This Row],[G&S reporting level indicator]]","v":0},{"$f":"T_DataComboFile[[#This Row],[2019/20 Revised estimate_Source]]*T_DataComboFile[[#This Row],[G&S reporting level indicator]]","v":0},{"$f":"T_DataComboFile[[#This Row],[2019/20 Preliminary outcome_Source]]*T_DataComboFile[[#This Row],[G&S reporting level indicator]]","v":0},{"$f":"T_DataComboFile[[#This Row],[2020/21 Original_Source]]*T_DataComboFile[[#This Row],[G&S reporting level indicator]]","v":0},{"$f":"T_DataComboFile[[#This Row],[2020/21 SAB_Source]]*T_DataComboFile[[#This Row],[G&S reporting level indicator]]","v":0},{"$f":"T_DataComboFile[[#This Row],[2020/21 Baseline_Source]]*T_DataComboFile[[#This Row],[G&S reporting level indicator]]","v":0},{"$f":"T_DataComboFile[[#This Row],[2021/22 Baseline_Source]]*T_DataComboFile[[#This Row],[G&S reporting level indicator]]","v":0},{"$f":"T_DataComboFile[[#This Row],[2022/23 Baseline_Source]]*T_DataComboFile[[#This Row],[G&S reporting level indicator]]","v":0},{"$f":"T_DataComboFile[[#This Row],[2023/24 Baseline_Source]]*T_DataComboFile[[#This Row],[G&S reporting level indicator]]","v":0},null,null,null,null,null,null,{"$f":"T_DataComboFile[[#This Row],[2021/22 Baseline]]+T_DataComboFile[[#This Row],[2021/22 Reduction]]+T_DataComboFile[[#This Row],[2021/22 Increase]]","v":0},{"$f":"T_DataComboFile[[#This Row],[2022/23 Baseline]]+T_DataComboFile[[#This Row],[2022/23 Reduction]]+T_DataComboFile[[#This Row],[2022/23 Increase]]","v":0},{"$f":"T_DataComboFile[[#This Row],[2023/24 Baseline]]+T_DataComboFile[[#This Row],[2023/24 Reduction]]+T_DataComboFile[[#This Row],[2023/24 Increase]]","v":0}]
["NAT|Non-transfer item","36|Other machinery and equipment","2021_22","ENE2020",36,1,5,17279,70450,36,1,5,17279,"070450","36|01|05",2,3,12,57,61,"02|03|12|57|61","National","Small Business Development","Administration","Communications","Non-transfer item","Capital","Payments for capital assets","Machinery and equipment","Other machinery and equipment","Other machinery and equipment","Economic development","Industrialisation and exports","NAT",23,38,36,52,52,52,52,38,38,38,42,46,48,1,null,{"$f":"IF(T_DataComboFile[[#This Row],[G&S reporting level indicator]]=1,$AX$16,\"Not applicable\")","v":"Level 3"},{"$f":"IF(AND($AX$16=\"Level 3\",T_DataComboFile[[#This Row],[Econ3]] = \"Goods and services\"),IF(T_DataComboFile[[#This Row],[Econ4]] = T_DataComboFile[[#This Row],[Econ3]],1,0),IF(AND($AX$16=\"Level 4\",T_DataComboFile[[#This Row],[Econ4]] = \"Goods and services\"),0,1))","v":1},{"$f":"T_DataComboFile[[#This Row],[2016/17_Source]]*T_DataComboFile[[#This Row],[G&S reporting level indicator]]","v":23},{"$f":"T_DataComboFile[[#This Row],[2017/18_Source]]*T_DataComboFile[[#This Row],[G&S reporting level indicator]]","v":38},{"$f":"T_DataComboFile[[#This Row],[2018/19_Source]]*T_DataComboFile[[#This Row],[G&S reporting level indicator]]","v":36},{"$f":"T_DataComboFile[[#This Row],[2019/20 Main appropriation_Source]]*T_DataComboFile[[#This Row],[G&S reporting level indicator]]","v":52},{"$f":"T_DataComboFile[[#This Row],[2019/20 Adjusted appropriation_Source]]*T_DataComboFile[[#This Row],[G&S reporting level indicator]]","v":52},{"$f":"T_DataComboFile[[#This Row],[2019/20 Revised estimate_Source]]*T_DataComboFile[[#This Row],[G&S reporting level indicator]]","v":52},{"$f":"T_DataComboFile[[#This Row],[2019/20 Preliminary outcome_Source]]*T_DataComboFile[[#This Row],[G&S reporting level indicator]]","v":52},{"$f":"T_DataComboFile[[#This Row],[2020/21 Original_Source]]*T_DataComboFile[[#This Row],[G&S reporting level indicator]]","v":38},{"$f":"T_DataComboFile[[#This Row],[2020/21 SAB_Source]]*T_DataComboFile[[#This Row],[G&S reporting level indicator]]","v":38},{"$f":"T_DataComboFile[[#This Row],[2020/21 Baseline_Source]]*T_DataComboFile[[#This Row],[G&S reporting level indicator]]","v":38},{"$f":"T_DataComboFile[[#This Row],[2021/22 Baseline_Source]]*T_DataComboFile[[#This Row],[G&S reporting level indicator]]","v":42},{"$f":"T_DataComboFile[[#This Row],[2022/23 Baseline_Source]]*T_DataComboFile[[#This Row],[G&S reporting level indicator]]","v":46},{"$f":"T_DataComboFile[[#This Row],[2023/24 Baseline_Source]]*T_DataComboFile[[#This Row],[G&S reporting level indicator]]","v":48},null,null,null,null,null,null,{"$f":"T_DataComboFile[[#This Row],[2021/22 Baseline]]+T_DataComboFile[[#This Row],[2021/22 Reduction]]+T_DataComboFile[[#This Row],[2021/22 Increase]]","v":42},{"$f":"T_DataComboFile[[#This Row],[2022/23 Baseline]]+T_DataComboFile[[#This Row],[2022/23 Reduction]]+T_DataComboFile[[#This Row],[2022/23 Increase]]","v":46},{"$f":"T_DataComboFile[[#This Row],[2023/24 Baseline]]+T_DataComboFile[[#This Row],[2023/24 Reduction]]+T_DataComboFile[[#This Row],[2023/24 Increase]]","v":48}]
[null,null,"2021_22","ENE2020",36,1,5,null,70451,36,1,5,null,"070451","36|01|05",2,3,13,58,62,"02|03|13|58|62","National","Small Business Development","Administration","Communications",null,"Capital","Payments for capital assets","Heritage assets","Heritage assets","Heritage assets",null,null,null,0,0,0,0,0,0,0,0,0,0,0,0,0,0,null,{"$f":"IF(T_DataComboFile[[#This Row],[G&S reporting level indicator]]=1,$AX$16,\"Not applicable\")","v":"Level 3"},{"$f":"IF(AND($AX$16=\"Level 3\",T_DataComboFile[[#This Row],[Econ3]] = \"Goods and services\"),IF(T_DataComboFile[[#This Row],[Econ4]] = T_DataComboFile[[#This Row],[Econ3]],1,0),IF(AND($AX$16=\"Level 4\",T_DataComboFile[[#This Row],[Econ4]] = \"Goods and services\"),0,1))","v":1},{"$f":"T_DataComboFile[[#This Row],[2016/17_Source]]*T_DataComboFile[[#This Row],[G&S reporting level indicator]]","v":0},{"$f":"T_DataComboFile[[#This Row],[2017/18_Source]]*T_DataComboFile[[#This Row],[G&S reporting level indicator]]","v":0},{"$f":"T_DataComboFile[[#This Row],[2018/19_Source]]*T_DataComboFile[[#This Row],[G&S reporting level indicator]]","v":0},{"$f":"T_DataComboFile[[#This Row],[2019/20 Main appropriation_Source]]*T_DataComboFile[[#This Row],[G&S reporting level indicator]]","v":0},{"$f":"T_DataComboFile[[#This Row],[2019/20 Adjusted appropriation_Source]]*T_DataComboFile[[#This Row],[G&S reporting level indicator]]","v":0},{"$f":"T_DataComboFile[[#This Row],[2019/20 Revised estimate_Source]]*T_DataComboFile[[#This Row],[G&S reporting level indicator]]","v":0},{"$f":"T_DataComboFile[[#This Row],[2019/20 Preliminary outcome_Source]]*T_DataComboFile[[#This Row],[G&S reporting level indicator]]","v":0},{"$f":"T_DataComboFile[[#This Row],[2020/21 Original_Source]]*T_DataComboFile[[#This Row],[G&S reporting level indicator]]","v":0},{"$f":"T_DataComboFile[[#This Row],[2020/21 SAB_Source]]*T_DataComboFile[[#This Row],[G&S reporting level indicator]]","v":0},{"$f":"T_DataComboFile[[#This Row],[2020/21 Baseline_Source]]*T_DataComboFile[[#This Row],[G&S reporting level indicator]]","v":0},{"$f":"T_DataComboFile[[#This Row],[2021/22 Baseline_Source]]*T_DataComboFile[[#This Row],[G&S reporting level indicator]]","v":0},{"$f":"T_DataComboFile[[#This Row],[2022/23 Baseline_Source]]*T_DataComboFile[[#This Row],[G&S reporting level indicator]]","v":0},{"$f":"T_DataComboFile[[#This Row],[2023/24 Baseline_Source]]*T_DataComboFile[[#This Row],[G&S reporting level indicator]]","v":0},null,null,null,null,null,null,{"$f":"T_DataComboFile[[#This Row],[2021/22 Baseline]]+T_DataComboFile[[#This Row],[2021/22 Reduction]]+T_DataComboFile[[#This Row],[2021/22 Increase]]","v":0},{"$f":"T_DataComboFile[[#This Row],[2022/23 Baseline]]+T_DataComboFile[[#This Row],[2022/23 Reduction]]+T_DataComboFile[[#This Row],[2022/23 Increase]]","v":0},{"$f":"T_DataComboFile[[#This Row],[2023/24 Baseline]]+T_DataComboFile[[#This Row],[2023/24 Reduction]]+T_DataComboFile[[#This Row],[2023/24 Increase]]","v":0}]
[null,null,"2021_22","ENE2020",36,1,5,null,70452,36,1,5,null,"070452","36|01|05",2,3,14,59,63,"02|03|14|59|63","National","Small Business Development","Administration","Communications",null,"Capital","Payments for capital assets","Specialised military assets","Specialised military assets","Specialised military assets",null,null,null,0,0,0,0,0,0,0,0,0,0,0,0,0,0,null,{"$f":"IF(T_DataComboFile[[#This Row],[G&S reporting level indicator]]=1,$AX$16,\"Not applicable\")","v":"Level 3"},{"$f":"IF(AND($AX$16=\"Level 3\",T_DataComboFile[[#This Row],[Econ3]] = \"Goods and services\"),IF(T_DataComboFile[[#This Row],[Econ4]] = T_DataComboFile[[#This Row],[Econ3]],1,0),IF(AND($AX$16=\"Level 4\",T_DataComboFile[[#This Row],[Econ4]] = \"Goods and services\"),0,1))","v":1},{"$f":"T_DataComboFile[[#This Row],[2016/17_Source]]*T_DataComboFile[[#This Row],[G&S reporting level indicator]]","v":0},{"$f":"T_DataComboFile[[#This Row],[2017/18_Source]]*T_DataComboFile[[#This Row],[G&S reporting level indicator]]","v":0},{"$f":"T_DataComboFile[[#This Row],[2018/19_Source]]*T_DataComboFile[[#This Row],[G&S reporting level indicator]]","v":0},{"$f":"T_DataComboFile[[#This Row],[2019/20 Main appropriation_Source]]*T_DataComboFile[[#This Row],[G&S reporting level indicator]]","v":0},{"$f":"T_DataComboFile[[#This Row],[2019/20 Adjusted appropriation_Source]]*T_DataComboFile[[#This Row],[G&S reporting level indicator]]","v":0},{"$f":"T_DataComboFile[[#This Row],[2019/20 Revised estimate_Source]]*T_DataComboFile[[#This Row],[G&S reporting level indicator]]","v":0},{"$f":"T_DataComboFile[[#This Row],[2019/20 Preliminary outcome_Source]]*T_DataComboFile[[#This Row],[G&S reporting level indicator]]","v":0},{"$f":"T_DataComboFile[[#This Row],[2020/21 Original_Source]]*T_DataComboFile[[#This Row],[G&S reporting level indicator]]","v":0},{"$f":"T_DataComboFile[[#This Row],[2020/21 SAB_Source]]*T_DataComboFile[[#This Row],[G&S reporting level indicator]]","v":0},{"$f":"T_DataComboFile[[#This Row],[2020/21 Baseline_Source]]*T_DataComboFile[[#This Row],[G&S reporting level indicator]]","v":0},{"$f":"T_DataComboFile[[#This Row],[2021/22 Baseline_Source]]*T_DataComboFile[[#This Row],[G&S reporting level indicator]]","v":0},{"$f":"T_DataComboFile[[#This Row],[2022/23 Baseline_Source]]*T_DataComboFile[[#This Row],[G&S reporting level indicator]]","v":0},{"$f":"T_DataComboFile[[#This Row],[2023/24 Baseline_Source]]*T_DataComboFile[[#This Row],[G&S reporting level indicator]]","v":0},null,null,null,null,null,null,{"$f":"T_DataComboFile[[#This Row],[2021/22 Baseline]]+T_DataComboFile[[#This Row],[2021/22 Reduction]]+T_DataComboFile[[#This Row],[2021/22 Increase]]","v":0},{"$f":"T_DataComboFile[[#This Row],[2022/23 Baseline]]+T_DataComboFile[[#This Row],[2022/23 Reduction]]+T_DataComboFile[[#This Row],[2022/23 Increase]]","v":0},{"$f":"T_DataComboFile[[#This Row],[2023/24 Baseline]]+T_DataComboFile[[#This Row],[2023/24 Reduction]]+T_DataComboFile[[#This Row],[2023/24 Increase]]","v":0}]
[null,null,"2021_22","ENE2020",36,1,5,null,70453,36,1,5,null,"070453","36|01|05",2,3,15,60,64,"02|03|15|60|64","National","Small Business Development","Administration","Communications",null,"Capital","Payments for capital assets","Biological assets","Biological assets","Biological assets",null,null,null,0,0,0,0,0,0,0,0,0,0,0,0,0,0,null,{"$f":"IF(T_DataComboFile[[#This Row],[G&S reporting level indicator]]=1,$AX$16,\"Not applicable\")","v":"Level 3"},{"$f":"IF(AND($AX$16=\"Level 3\",T_DataComboFile[[#This Row],[Econ3]] = \"Goods and services\"),IF(T_DataComboFile[[#This Row],[Econ4]] = T_DataComboFile[[#This Row],[Econ3]],1,0),IF(AND($AX$16=\"Level 4\",T_DataComboFile[[#This Row],[Econ4]] = \"Goods and services\"),0,1))","v":1},{"$f":"T_DataComboFile[[#This Row],[2016/17_Source]]*T_DataComboFile[[#This Row],[G&S reporting level indicator]]","v":0},{"$f":"T_DataComboFile[[#This Row],[2017/18_Source]]*T_DataComboFile[[#This Row],[G&S reporting level indicator]]","v":0},{"$f":"T_DataComboFile[[#This Row],[2018/19_Source]]*T_DataComboFile[[#This Row],[G&S reporting level indicator]]","v":0},{"$f":"T_DataComboFile[[#This Row],[2019/20 Main appropriation_Source]]*T_DataComboFile[[#This Row],[G&S reporting level indicator]]","v":0},{"$f":"T_DataComboFile[[#This Row],[2019/20 Adjusted appropriation_Source]]*T_DataComboFile[[#This Row],[G&S reporting level indicator]]","v":0},{"$f":"T_DataComboFile[[#This Row],[2019/20 Revised estimate_Source]]*T_DataComboFile[[#This Row],[G&S reporting level indicator]]","v":0},{"$f":"T_DataComboFile[[#This Row],[2019/20 Preliminary outcome_Source]]*T_DataComboFile[[#This Row],[G&S reporting level indicator]]","v":0},{"$f":"T_DataComboFile[[#This Row],[2020/21 Original_Source]]*T_DataComboFile[[#This Row],[G&S reporting level indicator]]","v":0},{"$f":"T_DataComboFile[[#This Row],[2020/21 SAB_Source]]*T_DataComboFile[[#This Row],[G&S reporting level indicator]]","v":0},{"$f":"T_DataComboFile[[#This Row],[2020/21 Baseline_Source]]*T_DataComboFile[[#This Row],[G&S reporting level indicator]]","v":0},{"$f":"T_DataComboFile[[#This Row],[2021/22 Baseline_Source]]*T_DataComboFile[[#This Row],[G&S reporting level indicator]]","v":0},{"$f":"T_DataComboFile[[#This Row],[2022/23 Baseline_Source]]*T_DataComboFile[[#This Row],[G&S reporting level indicator]]","v":0},{"$f":"T_DataComboFile[[#This Row],[2023/24 Baseline_Source]]*T_DataComboFile[[#This Row],[G&S reporting level indicator]]","v":0},null,null,null,null,null,null,{"$f":"T_DataComboFile[[#This Row],[2021/22 Baseline]]+T_DataComboFile[[#This Row],[2021/22 Reduction]]+T_DataComboFile[[#This Row],[2021/22 Increase]]","v":0},{"$f":"T_DataComboFile[[#This Row],[2022/23 Baseline]]+T_DataComboFile[[#This Row],[2022/23 Reduction]]+T_DataComboFile[[#This Row],[2022/23 Increase]]","v":0},{"$f":"T_DataComboFile[[#This Row],[2023/24 Baseline]]+T_DataComboFile[[#This Row],[2023/24 Reduction]]+T_DataComboFile[[#This Row],[2023/24 Increase]]","v":0}]
[null,null,"2021_22","ENE2020",36,1,5,null,70454,36,1,5,null,"070454","36|01|05",2,3,16,61,65,"02|03|16|61|65","National","Small Business Development","Administration","Communications",null,"Capital","Payments for capital assets","Land and sub-soil assets","Land and sub-soil assets","Land and sub-soil assets",null,null,null,0,0,0,0,0,0,0,0,0,0,0,0,0,0,null,{"$f":"IF(T_DataComboFile[[#This Row],[G&S reporting level indicator]]=1,$AX$16,\"Not applicable\")","v":"Level 3"},{"$f":"IF(AND($AX$16=\"Level 3\",T_DataComboFile[[#This Row],[Econ3]] = \"Goods and services\"),IF(T_DataComboFile[[#This Row],[Econ4]] = T_DataComboFile[[#This Row],[Econ3]],1,0),IF(AND($AX$16=\"Level 4\",T_DataComboFile[[#This Row],[Econ4]] = \"Goods and services\"),0,1))","v":1},{"$f":"T_DataComboFile[[#This Row],[2016/17_Source]]*T_DataComboFile[[#This Row],[G&S reporting level indicator]]","v":0},{"$f":"T_DataComboFile[[#This Row],[2017/18_Source]]*T_DataComboFile[[#This Row],[G&S reporting level indicator]]","v":0},{"$f":"T_DataComboFile[[#This Row],[2018/19_Source]]*T_DataComboFile[[#This Row],[G&S reporting level indicator]]","v":0},{"$f":"T_DataComboFile[[#This Row],[2019/20 Main appropriation_Source]]*T_DataComboFile[[#This Row],[G&S reporting level indicator]]","v":0},{"$f":"T_DataComboFile[[#This Row],[2019/20 Adjusted appropriation_Source]]*T_DataComboFile[[#This Row],[G&S reporting level indicator]]","v":0},{"$f":"T_DataComboFile[[#This Row],[2019/20 Revised estimate_Source]]*T_DataComboFile[[#This Row],[G&S reporting level indicator]]","v":0},{"$f":"T_DataComboFile[[#This Row],[2019/20 Preliminary outcome_Source]]*T_DataComboFile[[#This Row],[G&S reporting level indicator]]","v":0},{"$f":"T_DataComboFile[[#This Row],[2020/21 Original_Source]]*T_DataComboFile[[#This Row],[G&S reporting level indicator]]","v":0},{"$f":"T_DataComboFile[[#This Row],[2020/21 SAB_Source]]*T_DataComboFile[[#This Row],[G&S reporting level indicator]]","v":0},{"$f":"T_DataComboFile[[#This Row],[2020/21 Baseline_Source]]*T_DataComboFile[[#This Row],[G&S reporting level indicator]]","v":0},{"$f":"T_DataComboFile[[#This Row],[2021/22 Baseline_Source]]*T_DataComboFile[[#This Row],[G&S reporting level indicator]]","v":0},{"$f":"T_DataComboFile[[#This Row],[2022/23 Baseline_Source]]*T_DataComboFile[[#This Row],[G&S reporting level indicator]]","v":0},{"$f":"T_DataComboFile[[#This Row],[2023/24 Baseline_Source]]*T_DataComboFile[[#This Row],[G&S reporting level indicator]]","v":0},null,null,null,null,null,null,{"$f":"T_DataComboFile[[#This Row],[2021/22 Baseline]]+T_DataComboFile[[#This Row],[2021/22 Reduction]]+T_DataComboFile[[#This Row],[2021/22 Increase]]","v":0},{"$f":"T_DataComboFile[[#This Row],[2022/23 Baseline]]+T_DataComboFile[[#This Row],[2022/23 Reduction]]+T_DataComboFile[[#This Row],[2022/23 Increase]]","v":0},{"$f":"T_DataComboFile[[#This Row],[2023/24 Baseline]]+T_DataComboFile[[#This Row],[2023/24 Reduction]]+T_DataComboFile[[#This Row],[2023/24 Increase]]","v":0}]
[null,null,"2021_22","ENE2020",36,1,5,null,70455,36,1,5,null,"070455","36|01|05",2,3,17,62,66,"02|03|17|62|66","National","Small Business Development","Administration","Communications",null,"Capital","Payments for capital assets","Software and other intangible assets","Software and other intangible assets","Software and other intangible assets",null,null,null,0,0,0,0,0,0,0,0,0,0,0,0,0,0,null,{"$f":"IF(T_DataComboFile[[#This Row],[G&S reporting level indicator]]=1,$AX$16,\"Not applicable\")","v":"Level 3"},{"$f":"IF(AND($AX$16=\"Level 3\",T_DataComboFile[[#This Row],[Econ3]] = \"Goods and services\"),IF(T_DataComboFile[[#This Row],[Econ4]] = T_DataComboFile[[#This Row],[Econ3]],1,0),IF(AND($AX$16=\"Level 4\",T_DataComboFile[[#This Row],[Econ4]] = \"Goods and services\"),0,1))","v":1},{"$f":"T_DataComboFile[[#This Row],[2016/17_Source]]*T_DataComboFile[[#This Row],[G&S reporting level indicator]]","v":0},{"$f":"T_DataComboFile[[#This Row],[2017/18_Source]]*T_DataComboFile[[#This Row],[G&S reporting level indicator]]","v":0},{"$f":"T_DataComboFile[[#This Row],[2018/19_Source]]*T_DataComboFile[[#This Row],[G&S reporting level indicator]]","v":0},{"$f":"T_DataComboFile[[#This Row],[2019/20 Main appropriation_Source]]*T_DataComboFile[[#This Row],[G&S reporting level indicator]]","v":0},{"$f":"T_DataComboFile[[#This Row],[2019/20 Adjusted appropriation_Source]]*T_DataComboFile[[#This Row],[G&S reporting level indicator]]","v":0},{"$f":"T_DataComboFile[[#This Row],[2019/20 Revised estimate_Source]]*T_DataComboFile[[#This Row],[G&S reporting level indicator]]","v":0},{"$f":"T_DataComboFile[[#This Row],[2019/20 Preliminary outcome_Source]]*T_DataComboFile[[#This Row],[G&S reporting level indicator]]","v":0},{"$f":"T_DataComboFile[[#This Row],[2020/21 Original_Source]]*T_DataComboFile[[#This Row],[G&S reporting level indicator]]","v":0},{"$f":"T_DataComboFile[[#This Row],[2020/21 SAB_Source]]*T_DataComboFile[[#This Row],[G&S reporting level indicator]]","v":0},{"$f":"T_DataComboFile[[#This Row],[2020/21 Baseline_Source]]*T_DataComboFile[[#This Row],[G&S reporting level indicator]]","v":0},{"$f":"T_DataComboFile[[#This Row],[2021/22 Baseline_Source]]*T_DataComboFile[[#This Row],[G&S reporting level indicator]]","v":0},{"$f":"T_DataComboFile[[#This Row],[2022/23 Baseline_Source]]*T_DataComboFile[[#This Row],[G&S reporting level indicator]]","v":0},{"$f":"T_DataComboFile[[#This Row],[2023/24 Baseline_Source]]*T_DataComboFile[[#This Row],[G&S reporting level indicator]]","v":0},null,null,null,null,null,null,{"$f":"T_DataComboFile[[#This Row],[2021/22 Baseline]]+T_DataComboFile[[#This Row],[2021/22 Reduction]]+T_DataComboFile[[#This Row],[2021/22 Increase]]","v":0},{"$f":"T_DataComboFile[[#This Row],[2022/23 Baseline]]+T_DataComboFile[[#This Row],[2022/23 Reduction]]+T_DataComboFile[[#This Row],[2022/23 Increase]]","v":0},{"$f":"T_DataComboFile[[#This Row],[2023/24 Baseline]]+T_DataComboFile[[#This Row],[2023/24 Reduction]]+T_DataComboFile[[#This Row],[2023/24 Increase]]","v":0}]
[null,null,"2021_22","ENE2020",36,1,5,null,70456,36,1,5,null,"070456","36|01|05",3,4,18,63,67,"03|04|18|63|67","National","Small Business Development","Administration","Communications",null,"Payments for financial assets","Payments for financial assets","Payments for financial assets","Payments for financial assets","Payments for financial assets",null,null,null,0,0,0,0,0,0,0,0,0,0,0,0,0,0,null,{"$f":"IF(T_DataComboFile[[#This Row],[G&S reporting level indicator]]=1,$AX$16,\"Not applicable\")","v":"Level 3"},{"$f":"IF(AND($AX$16=\"Level 3\",T_DataComboFile[[#This Row],[Econ3]] = \"Goods and services\"),IF(T_DataComboFile[[#This Row],[Econ4]] = T_DataComboFile[[#This Row],[Econ3]],1,0),IF(AND($AX$16=\"Level 4\",T_DataComboFile[[#This Row],[Econ4]] = \"Goods and services\"),0,1))","v":1},{"$f":"T_DataComboFile[[#This Row],[2016/17_Source]]*T_DataComboFile[[#This Row],[G&S reporting level indicator]]","v":0},{"$f":"T_DataComboFile[[#This Row],[2017/18_Source]]*T_DataComboFile[[#This Row],[G&S reporting level indicator]]","v":0},{"$f":"T_DataComboFile[[#This Row],[2018/19_Source]]*T_DataComboFile[[#This Row],[G&S reporting level indicator]]","v":0},{"$f":"T_DataComboFile[[#This Row],[2019/20 Main appropriation_Source]]*T_DataComboFile[[#This Row],[G&S reporting level indicator]]","v":0},{"$f":"T_DataComboFile[[#This Row],[2019/20 Adjusted appropriation_Source]]*T_DataComboFile[[#This Row],[G&S reporting level indicator]]","v":0},{"$f":"T_DataComboFile[[#This Row],[2019/20 Revised estimate_Source]]*T_DataComboFile[[#This Row],[G&S reporting level indicator]]","v":0},{"$f":"T_DataComboFile[[#This Row],[2019/20 Preliminary outcome_Source]]*T_DataComboFile[[#This Row],[G&S reporting level indicator]]","v":0},{"$f":"T_DataComboFile[[#This Row],[2020/21 Original_Source]]*T_DataComboFile[[#This Row],[G&S reporting level indicator]]","v":0},{"$f":"T_DataComboFile[[#This Row],[2020/21 SAB_Source]]*T_DataComboFile[[#This Row],[G&S reporting level indicator]]","v":0},{"$f":"T_DataComboFile[[#This Row],[2020/21 Baseline_Source]]*T_DataComboFile[[#This Row],[G&S reporting level indicator]]","v":0},{"$f":"T_DataComboFile[[#This Row],[2021/22 Baseline_Source]]*T_DataComboFile[[#This Row],[G&S reporting level indicator]]","v":0},{"$f":"T_DataComboFile[[#This Row],[2022/23 Baseline_Source]]*T_DataComboFile[[#This Row],[G&S reporting level indicator]]","v":0},{"$f":"T_DataComboFile[[#This Row],[2023/24 Baseline_Source]]*T_DataComboFile[[#This Row],[G&S reporting level indicator]]","v":0},null,null,null,null,null,null,{"$f":"T_DataComboFile[[#This Row],[2021/22 Baseline]]+T_DataComboFile[[#This Row],[2021/22 Reduction]]+T_DataComboFile[[#This Row],[2021/22 Increase]]","v":0},{"$f":"T_DataComboFile[[#This Row],[2022/23 Baseline]]+T_DataComboFile[[#This Row],[2022/23 Reduction]]+T_DataComboFile[[#This Row],[2022/23 Increase]]","v":0},{"$f":"T_DataComboFile[[#This Row],[2023/24 Baseline]]+T_DataComboFile[[#This Row],[2023/24 Reduction]]+T_DataComboFile[[#This Row],[2023/24 Increase]]","v":0}]
["NAT|Non-transfer item","36|Salaries and wages","2021_22","ENE2020",36,2,1,17280,70457,36,2,1,17280,"070457","36|02|01",1,1,1,1,1,"01|01|01|01|01","National","Small Business Development","Sector Policy and Research","Research","Non-transfer item","Current","Current payments","Compensation of employees","Salaries and wages","Salaries and wages","Economic development","Industrialisation and exports","NAT",9167,4485,4312,8495,8495,8495,8495,11705,11705,11042,9864,11452,11957,1,null,{"$f":"IF(T_DataComboFile[[#This Row],[G&S reporting level indicator]]=1,$AX$16,\"Not applicable\")","v":"Level 3"},{"$f":"IF(AND($AX$16=\"Level 3\",T_DataComboFile[[#This Row],[Econ3]] = \"Goods and services\"),IF(T_DataComboFile[[#This Row],[Econ4]] = T_DataComboFile[[#This Row],[Econ3]],1,0),IF(AND($AX$16=\"Level 4\",T_DataComboFile[[#This Row],[Econ4]] = \"Goods and services\"),0,1))","v":1},{"$f":"T_DataComboFile[[#This Row],[2016/17_Source]]*T_DataComboFile[[#This Row],[G&S reporting level indicator]]","v":9167},{"$f":"T_DataComboFile[[#This Row],[2017/18_Source]]*T_DataComboFile[[#This Row],[G&S reporting level indicator]]","v":4485},{"$f":"T_DataComboFile[[#This Row],[2018/19_Source]]*T_DataComboFile[[#This Row],[G&S reporting level indicator]]","v":4312},{"$f":"T_DataComboFile[[#This Row],[2019/20 Main appropriation_Source]]*T_DataComboFile[[#This Row],[G&S reporting level indicator]]","v":8495},{"$f":"T_DataComboFile[[#This Row],[2019/20 Adjusted appropriation_Source]]*T_DataComboFile[[#This Row],[G&S reporting level indicator]]","v":8495},{"$f":"T_DataComboFile[[#This Row],[2019/20 Revised estimate_Source]]*T_DataComboFile[[#This Row],[G&S reporting level indicator]]","v":8495},{"$f":"T_DataComboFile[[#This Row],[2019/20 Preliminary outcome_Source]]*T_DataComboFile[[#This Row],[G&S reporting level indicator]]","v":8495},{"$f":"T_DataComboFile[[#This Row],[2020/21 Original_Source]]*T_DataComboFile[[#This Row],[G&S reporting level indicator]]","v":11705},{"$f":"T_DataComboFile[[#This Row],[2020/21 SAB_Source]]*T_DataComboFile[[#This Row],[G&S reporting level indicator]]","v":11705},{"$f":"T_DataComboFile[[#This Row],[2020/21 Baseline_Source]]*T_DataComboFile[[#This Row],[G&S reporting level indicator]]","v":11042},{"$f":"T_DataComboFile[[#This Row],[2021/22 Baseline_Source]]*T_DataComboFile[[#This Row],[G&S reporting level indicator]]","v":9864},{"$f":"T_DataComboFile[[#This Row],[2022/23 Baseline_Source]]*T_DataComboFile[[#This Row],[G&S reporting level indicator]]","v":11452},{"$f":"T_DataComboFile[[#This Row],[2023/24 Baseline_Source]]*T_DataComboFile[[#This Row],[G&S reporting level indicator]]","v":11957},null,null,null,null,null,null,{"$f":"T_DataComboFile[[#This Row],[2021/22 Baseline]]+T_DataComboFile[[#This Row],[2021/22 Reduction]]+T_DataComboFile[[#This Row],[2021/22 Increase]]","v":9864},{"$f":"T_DataComboFile[[#This Row],[2022/23 Baseline]]+T_DataComboFile[[#This Row],[2022/23 Reduction]]+T_DataComboFile[[#This Row],[2022/23 Increase]]","v":11452},{"$f":"T_DataComboFile[[#This Row],[2023/24 Baseline]]+T_DataComboFile[[#This Row],[2023/24 Reduction]]+T_DataComboFile[[#This Row],[2023/24 Increase]]","v":11957}]
["NAT|Non-transfer item","36|Social contributions","2021_22","ENE2020",36,2,1,17281,70458,36,2,1,17281,"070458","36|02|01",1,1,1,2,2,"01|01|01|02|02","National","Small Business Development","Sector Policy and Research","Research","Non-transfer item","Current","Current payments","Compensation of employees","Social contributions","Social contributions","Economic development","Industrialisation and exports","NAT",1085,568,430,2269,2269,2269,2269,1054,1054,994,1021,1056,1103,1,null,{"$f":"IF(T_DataComboFile[[#This Row],[G&S reporting level indicator]]=1,$AX$16,\"Not applicable\")","v":"Level 3"},{"$f":"IF(AND($AX$16=\"Level 3\",T_DataComboFile[[#This Row],[Econ3]] = \"Goods and services\"),IF(T_DataComboFile[[#This Row],[Econ4]] = T_DataComboFile[[#This Row],[Econ3]],1,0),IF(AND($AX$16=\"Level 4\",T_DataComboFile[[#This Row],[Econ4]] = \"Goods and services\"),0,1))","v":1},{"$f":"T_DataComboFile[[#This Row],[2016/17_Source]]*T_DataComboFile[[#This Row],[G&S reporting level indicator]]","v":1085},{"$f":"T_DataComboFile[[#This Row],[2017/18_Source]]*T_DataComboFile[[#This Row],[G&S reporting level indicator]]","v":568},{"$f":"T_DataComboFile[[#This Row],[2018/19_Source]]*T_DataComboFile[[#This Row],[G&S reporting level indicator]]","v":430},{"$f":"T_DataComboFile[[#This Row],[2019/20 Main appropriation_Source]]*T_DataComboFile[[#This Row],[G&S reporting level indicator]]","v":2269},{"$f":"T_DataComboFile[[#This Row],[2019/20 Adjusted appropriation_Source]]*T_DataComboFile[[#This Row],[G&S reporting level indicator]]","v":2269},{"$f":"T_DataComboFile[[#This Row],[2019/20 Revised estimate_Source]]*T_DataComboFile[[#This Row],[G&S reporting level indicator]]","v":2269},{"$f":"T_DataComboFile[[#This Row],[2019/20 Preliminary outcome_Source]]*T_DataComboFile[[#This Row],[G&S reporting level indicator]]","v":2269},{"$f":"T_DataComboFile[[#This Row],[2020/21 Original_Source]]*T_DataComboFile[[#This Row],[G&S reporting level indicator]]","v":1054},{"$f":"T_DataComboFile[[#This Row],[2020/21 SAB_Source]]*T_DataComboFile[[#This Row],[G&S reporting level indicator]]","v":1054},{"$f":"T_DataComboFile[[#This Row],[2020/21 Baseline_Source]]*T_DataComboFile[[#This Row],[G&S reporting level indicator]]","v":994},{"$f":"T_DataComboFile[[#This Row],[2021/22 Baseline_Source]]*T_DataComboFile[[#This Row],[G&S reporting level indicator]]","v":1021},{"$f":"T_DataComboFile[[#This Row],[2022/23 Baseline_Source]]*T_DataComboFile[[#This Row],[G&S reporting level indicator]]","v":1056},{"$f":"T_DataComboFile[[#This Row],[2023/24 Baseline_Source]]*T_DataComboFile[[#This Row],[G&S reporting level indicator]]","v":1103},null,null,null,null,null,null,{"$f":"T_DataComboFile[[#This Row],[2021/22 Baseline]]+T_DataComboFile[[#This Row],[2021/22 Reduction]]+T_DataComboFile[[#This Row],[2021/22 Increase]]","v":1021},{"$f":"T_DataComboFile[[#This Row],[2022/23 Baseline]]+T_DataComboFile[[#This Row],[2022/23 Reduction]]+T_DataComboFile[[#This Row],[2022/23 Increase]]","v":1056},{"$f":"T_DataComboFile[[#This Row],[2023/24 Baseline]]+T_DataComboFile[[#This Row],[2023/24 Reduction]]+T_DataComboFile[[#This Row],[2023/24 Increase]]","v":1103}]
[null,null,"2021_22","ENE2020",36,2,1,null,70459,36,2,1,null,"070459","36|02|01",1,1,2,2,2,"01|01|02|02|02","National","Small Business Development","Sector Policy and Research","Research","Non-transfer item","Current","Current payments","Goods and services","Goods and services","Goods and services","Economic development","Industrialisation and exports","NAT",3359,5745,1911,6515,6515,6515,6515,7000,400,7000,7552,8110,8468,1,null,{"$f":"IF(T_DataComboFile[[#This Row],[G&S reporting level indicator]]=1,$AX$16,\"Not applicable\")","v":"Level 3"},{"$f":"IF(AND($AX$16=\"Level 3\",T_DataComboFile[[#This Row],[Econ3]] = \"Goods and services\"),IF(T_DataComboFile[[#This Row],[Econ4]] = T_DataComboFile[[#This Row],[Econ3]],1,0),IF(AND($AX$16=\"Level 4\",T_DataComboFile[[#This Row],[Econ4]] = \"Goods and services\"),0,1))","v":1},{"$f":"T_DataComboFile[[#This Row],[2016/17_Source]]*T_DataComboFile[[#This Row],[G&S reporting level indicator]]","v":3359},{"$f":"T_DataComboFile[[#This Row],[2017/18_Source]]*T_DataComboFile[[#This Row],[G&S reporting level indicator]]","v":5745},{"$f":"T_DataComboFile[[#This Row],[2018/19_Source]]*T_DataComboFile[[#This Row],[G&S reporting level indicator]]","v":1911},{"$f":"T_DataComboFile[[#This Row],[2019/20 Main appropriation_Source]]*T_DataComboFile[[#This Row],[G&S reporting level indicator]]","v":6515},{"$f":"T_DataComboFile[[#This Row],[2019/20 Adjusted appropriation_Source]]*T_DataComboFile[[#This Row],[G&S reporting level indicator]]","v":6515},{"$f":"T_DataComboFile[[#This Row],[2019/20 Revised estimate_Source]]*T_DataComboFile[[#This Row],[G&S reporting level indicator]]","v":6515},{"$f":"T_DataComboFile[[#This Row],[2019/20 Preliminary outcome_Source]]*T_DataComboFile[[#This Row],[G&S reporting level indicator]]","v":6515},{"$f":"T_DataComboFile[[#This Row],[2020/21 Original_Source]]*T_DataComboFile[[#This Row],[G&S reporting level indicator]]","v":7000},{"$f":"T_DataComboFile[[#This Row],[2020/21 SAB_Source]]*T_DataComboFile[[#This Row],[G&S reporting level indicator]]","v":400},{"$f":"T_DataComboFile[[#This Row],[2020/21 Baseline_Source]]*T_DataComboFile[[#This Row],[G&S reporting level indicator]]","v":7000},{"$f":"T_DataComboFile[[#This Row],[2021/22 Baseline_Source]]*T_DataComboFile[[#This Row],[G&S reporting level indicator]]","v":7552},{"$f":"T_DataComboFile[[#This Row],[2022/23 Baseline_Source]]*T_DataComboFile[[#This Row],[G&S reporting level indicator]]","v":8110},{"$f":"T_DataComboFile[[#This Row],[2023/24 Baseline_Source]]*T_DataComboFile[[#This Row],[G&S reporting level indicator]]","v":8468},null,null,null,null,null,null,{"$f":"T_DataComboFile[[#This Row],[2021/22 Baseline]]+T_DataComboFile[[#This Row],[2021/22 Reduction]]+T_DataComboFile[[#This Row],[2021/22 Increase]]","v":7552},{"$f":"T_DataComboFile[[#This Row],[2022/23 Baseline]]+T_DataComboFile[[#This Row],[2022/23 Reduction]]+T_DataComboFile[[#This Row],[2022/23 Increase]]","v":8110},{"$f":"T_DataComboFile[[#This Row],[2023/24 Baseline]]+T_DataComboFile[[#This Row],[2023/24 Reduction]]+T_DataComboFile[[#This Row],[2023/24 Increase]]","v":8468}]
["NAT|Non-transfer item","36|Administrative fees","2021_22","ENE2020",36,2,1,17282,70460,36,2,1,17282,"070460","36|02|01",1,1,2,3,3,"01|01|02|03|03","National","Small Business Development","Sector Policy and Research","Research","Non-transfer item","Current","Current payments","Goods and services","Administrative fees","Administrative fees","Economic development","Industrialisation and exports","NAT",65,43,23,18,23,23,23,24,24,24,26,30,31,1,null,{"$f":"IF(T_DataComboFile[[#This Row],[G&S reporting level indicator]]=1,$AX$16,\"Not applicable\")","v":"Not applicable"},{"$f":"IF(AND($AX$16=\"Level 3\",T_DataComboFile[[#This Row],[Econ3]] = \"Goods and services\"),IF(T_DataComboFile[[#This Row],[Econ4]] = T_DataComboFile[[#This Row],[Econ3]],1,0),IF(AND($AX$16=\"Level 4\",T_DataComboFile[[#This Row],[Econ4]] = \"Goods and services\"),0,1))","v":0},{"$f":"T_DataComboFile[[#This Row],[2016/17_Source]]*T_DataComboFile[[#This Row],[G&S reporting level indicator]]","v":0},{"$f":"T_DataComboFile[[#This Row],[2017/18_Source]]*T_DataComboFile[[#This Row],[G&S reporting level indicator]]","v":0},{"$f":"T_DataComboFile[[#This Row],[2018/19_Source]]*T_DataComboFile[[#This Row],[G&S reporting level indicator]]","v":0},{"$f":"T_DataComboFile[[#This Row],[2019/20 Main appropriation_Source]]*T_DataComboFile[[#This Row],[G&S reporting level indicator]]","v":0},{"$f":"T_DataComboFile[[#This Row],[2019/20 Adjusted appropriation_Source]]*T_DataComboFile[[#This Row],[G&S reporting level indicator]]","v":0},{"$f":"T_DataComboFile[[#This Row],[2019/20 Revised estimate_Source]]*T_DataComboFile[[#This Row],[G&S reporting level indicator]]","v":0},{"$f":"T_DataComboFile[[#This Row],[2019/20 Preliminary outcome_Source]]*T_DataComboFile[[#This Row],[G&S reporting level indicator]]","v":0},{"$f":"T_DataComboFile[[#This Row],[2020/21 Original_Source]]*T_DataComboFile[[#This Row],[G&S reporting level indicator]]","v":0},{"$f":"T_DataComboFile[[#This Row],[2020/21 SAB_Source]]*T_DataComboFile[[#This Row],[G&S reporting level indicator]]","v":0},{"$f":"T_DataComboFile[[#This Row],[2020/21 Baseline_Source]]*T_DataComboFile[[#This Row],[G&S reporting level indicator]]","v":0},{"$f":"T_DataComboFile[[#This Row],[2021/22 Baseline_Source]]*T_DataComboFile[[#This Row],[G&S reporting level indicator]]","v":0},{"$f":"T_DataComboFile[[#This Row],[2022/23 Baseline_Source]]*T_DataComboFile[[#This Row],[G&S reporting level indicator]]","v":0},{"$f":"T_DataComboFile[[#This Row],[2023/24 Baseline_Source]]*T_DataComboFile[[#This Row],[G&S reporting level indicator]]","v":0},null,null,null,null,null,null,{"$f":"T_DataComboFile[[#This Row],[2021/22 Baseline]]+T_DataComboFile[[#This Row],[2021/22 Reduction]]+T_DataComboFile[[#This Row],[2021/22 Increase]]","v":0},{"$f":"T_DataComboFile[[#This Row],[2022/23 Baseline]]+T_DataComboFile[[#This Row],[2022/23 Reduction]]+T_DataComboFile[[#This Row],[2022/23 Increase]]","v":0},{"$f":"T_DataComboFile[[#This Row],[2023/24 Baseline]]+T_DataComboFile[[#This Row],[2023/24 Reduction]]+T_DataComboFile[[#This Row],[2023/24 Increase]]","v":0}]
[null,null,"2021_22","ENE2020",36,2,1,null,70461,36,2,1,null,"070461","36|02|01",1,1,2,4,4,"01|01|02|04|04","National","Small Business Development","Sector Policy and Research","Research",null,"Current","Current payments","Goods and services","Advertising","Advertising",null,null,null,0,0,0,0,0,0,0,0,0,0,0,0,0,0,null,{"$f":"IF(T_DataComboFile[[#This Row],[G&S reporting level indicator]]=1,$AX$16,\"Not applicable\")","v":"Not applicable"},{"$f":"IF(AND($AX$16=\"Level 3\",T_DataComboFile[[#This Row],[Econ3]] = \"Goods and services\"),IF(T_DataComboFile[[#This Row],[Econ4]] = T_DataComboFile[[#This Row],[Econ3]],1,0),IF(AND($AX$16=\"Level 4\",T_DataComboFile[[#This Row],[Econ4]] = \"Goods and services\"),0,1))","v":0},{"$f":"T_DataComboFile[[#This Row],[2016/17_Source]]*T_DataComboFile[[#This Row],[G&S reporting level indicator]]","v":0},{"$f":"T_DataComboFile[[#This Row],[2017/18_Source]]*T_DataComboFile[[#This Row],[G&S reporting level indicator]]","v":0},{"$f":"T_DataComboFile[[#This Row],[2018/19_Source]]*T_DataComboFile[[#This Row],[G&S reporting level indicator]]","v":0},{"$f":"T_DataComboFile[[#This Row],[2019/20 Main appropriation_Source]]*T_DataComboFile[[#This Row],[G&S reporting level indicator]]","v":0},{"$f":"T_DataComboFile[[#This Row],[2019/20 Adjusted appropriation_Source]]*T_DataComboFile[[#This Row],[G&S reporting level indicator]]","v":0},{"$f":"T_DataComboFile[[#This Row],[2019/20 Revised estimate_Source]]*T_DataComboFile[[#This Row],[G&S reporting level indicator]]","v":0},{"$f":"T_DataComboFile[[#This Row],[2019/20 Preliminary outcome_Source]]*T_DataComboFile[[#This Row],[G&S reporting level indicator]]","v":0},{"$f":"T_DataComboFile[[#This Row],[2020/21 Original_Source]]*T_DataComboFile[[#This Row],[G&S reporting level indicator]]","v":0},{"$f":"T_DataComboFile[[#This Row],[2020/21 SAB_Source]]*T_DataComboFile[[#This Row],[G&S reporting level indicator]]","v":0},{"$f":"T_DataComboFile[[#This Row],[2020/21 Baseline_Source]]*T_DataComboFile[[#This Row],[G&S reporting level indicator]]","v":0},{"$f":"T_DataComboFile[[#This Row],[2021/22 Baseline_Source]]*T_DataComboFile[[#This Row],[G&S reporting level indicator]]","v":0},{"$f":"T_DataComboFile[[#This Row],[2022/23 Baseline_Source]]*T_DataComboFile[[#This Row],[G&S reporting level indicator]]","v":0},{"$f":"T_DataComboFile[[#This Row],[2023/24 Baseline_Source]]*T_DataComboFile[[#This Row],[G&S reporting level indicator]]","v":0},null,null,null,null,null,null,{"$f":"T_DataComboFile[[#This Row],[2021/22 Baseline]]+T_DataComboFile[[#This Row],[2021/22 Reduction]]+T_DataComboFile[[#This Row],[2021/22 Increase]]","v":0},{"$f":"T_DataComboFile[[#This Row],[2022/23 Baseline]]+T_DataComboFile[[#This Row],[2022/23 Reduction]]+T_DataComboFile[[#This Row],[2022/23 Increase]]","v":0},{"$f":"T_DataComboFile[[#This Row],[2023/24 Baseline]]+T_DataComboFile[[#This Row],[2023/24 Reduction]]+T_DataComboFile[[#This Row],[2023/24 Increase]]","v":0}]
["NAT|Non-transfer item","36|Minor assets","2021_22","ENE2020",36,2,1,17283,70462,36,2,1,17283,"070462","36|02|01",1,1,2,5,5,"01|01|02|05|05","National","Small Business Development","Sector Policy and Research","Research","Non-transfer item","Current","Current payments","Goods and services","Minor assets","Minor assets","Economic development","Industrialisation and exports","NAT",13,0,0,0,0,0,0,0,0,0,0,0,0,1,null,{"$f":"IF(T_DataComboFile[[#This Row],[G&S reporting level indicator]]=1,$AX$16,\"Not applicable\")","v":"Not applicable"},{"$f":"IF(AND($AX$16=\"Level 3\",T_DataComboFile[[#This Row],[Econ3]] = \"Goods and services\"),IF(T_DataComboFile[[#This Row],[Econ4]] = T_DataComboFile[[#This Row],[Econ3]],1,0),IF(AND($AX$16=\"Level 4\",T_DataComboFile[[#This Row],[Econ4]] = \"Goods and services\"),0,1))","v":0},{"$f":"T_DataComboFile[[#This Row],[2016/17_Source]]*T_DataComboFile[[#This Row],[G&S reporting level indicator]]","v":0},{"$f":"T_DataComboFile[[#This Row],[2017/18_Source]]*T_DataComboFile[[#This Row],[G&S reporting level indicator]]","v":0},{"$f":"T_DataComboFile[[#This Row],[2018/19_Source]]*T_DataComboFile[[#This Row],[G&S reporting level indicator]]","v":0},{"$f":"T_DataComboFile[[#This Row],[2019/20 Main appropriation_Source]]*T_DataComboFile[[#This Row],[G&S reporting level indicator]]","v":0},{"$f":"T_DataComboFile[[#This Row],[2019/20 Adjusted appropriation_Source]]*T_DataComboFile[[#This Row],[G&S reporting level indicator]]","v":0},{"$f":"T_DataComboFile[[#This Row],[2019/20 Revised estimate_Source]]*T_DataComboFile[[#This Row],[G&S reporting level indicator]]","v":0},{"$f":"T_DataComboFile[[#This Row],[2019/20 Preliminary outcome_Source]]*T_DataComboFile[[#This Row],[G&S reporting level indicator]]","v":0},{"$f":"T_DataComboFile[[#This Row],[2020/21 Original_Source]]*T_DataComboFile[[#This Row],[G&S reporting level indicator]]","v":0},{"$f":"T_DataComboFile[[#This Row],[2020/21 SAB_Source]]*T_DataComboFile[[#This Row],[G&S reporting level indicator]]","v":0},{"$f":"T_DataComboFile[[#This Row],[2020/21 Baseline_Source]]*T_DataComboFile[[#This Row],[G&S reporting level indicator]]","v":0},{"$f":"T_DataComboFile[[#This Row],[2021/22 Baseline_Source]]*T_DataComboFile[[#This Row],[G&S reporting level indicator]]","v":0},{"$f":"T_DataComboFile[[#This Row],[2022/23 Baseline_Source]]*T_DataComboFile[[#This Row],[G&S reporting level indicator]]","v":0},{"$f":"T_DataComboFile[[#This Row],[2023/24 Baseline_Source]]*T_DataComboFile[[#This Row],[G&S reporting level indicator]]","v":0},null,null,null,null,null,null,{"$f":"T_DataComboFile[[#This Row],[2021/22 Baseline]]+T_DataComboFile[[#This Row],[2021/22 Reduction]]+T_DataComboFile[[#This Row],[2021/22 Increase]]","v":0},{"$f":"T_DataComboFile[[#This Row],[2022/23 Baseline]]+T_DataComboFile[[#This Row],[2022/23 Reduction]]+T_DataComboFile[[#This Row],[2022/23 Increase]]","v":0},{"$f":"T_DataComboFile[[#This Row],[2023/24 Baseline]]+T_DataComboFile[[#This Row],[2023/24 Reduction]]+T_DataComboFile[[#This Row],[2023/24 Increase]]","v":0}]
[null,null,"2021_22","ENE2020",36,2,1,null,70463,36,2,1,null,"070463","36|02|01",1,1,2,6,6,"01|01|02|06|06","National","Small Business Development","Sector Policy and Research","Research",null,"Current","Current payments","Goods and services","Audit costs: External","Audit costs: External",null,null,null,0,0,0,0,0,0,0,0,0,0,0,0,0,0,null,{"$f":"IF(T_DataComboFile[[#This Row],[G&S reporting level indicator]]=1,$AX$16,\"Not applicable\")","v":"Not applicable"},{"$f":"IF(AND($AX$16=\"Level 3\",T_DataComboFile[[#This Row],[Econ3]] = \"Goods and services\"),IF(T_DataComboFile[[#This Row],[Econ4]] = T_DataComboFile[[#This Row],[Econ3]],1,0),IF(AND($AX$16=\"Level 4\",T_DataComboFile[[#This Row],[Econ4]] = \"Goods and services\"),0,1))","v":0},{"$f":"T_DataComboFile[[#This Row],[2016/17_Source]]*T_DataComboFile[[#This Row],[G&S reporting level indicator]]","v":0},{"$f":"T_DataComboFile[[#This Row],[2017/18_Source]]*T_DataComboFile[[#This Row],[G&S reporting level indicator]]","v":0},{"$f":"T_DataComboFile[[#This Row],[2018/19_Source]]*T_DataComboFile[[#This Row],[G&S reporting level indicator]]","v":0},{"$f":"T_DataComboFile[[#This Row],[2019/20 Main appropriation_Source]]*T_DataComboFile[[#This Row],[G&S reporting level indicator]]","v":0},{"$f":"T_DataComboFile[[#This Row],[2019/20 Adjusted appropriation_Source]]*T_DataComboFile[[#This Row],[G&S reporting level indicator]]","v":0},{"$f":"T_DataComboFile[[#This Row],[2019/20 Revised estimate_Source]]*T_DataComboFile[[#This Row],[G&S reporting level indicator]]","v":0},{"$f":"T_DataComboFile[[#This Row],[2019/20 Preliminary outcome_Source]]*T_DataComboFile[[#This Row],[G&S reporting level indicator]]","v":0},{"$f":"T_DataComboFile[[#This Row],[2020/21 Original_Source]]*T_DataComboFile[[#This Row],[G&S reporting level indicator]]","v":0},{"$f":"T_DataComboFile[[#This Row],[2020/21 SAB_Source]]*T_DataComboFile[[#This Row],[G&S reporting level indicator]]","v":0},{"$f":"T_DataComboFile[[#This Row],[2020/21 Baseline_Source]]*T_DataComboFile[[#This Row],[G&S reporting level indicator]]","v":0},{"$f":"T_DataComboFile[[#This Row],[2021/22 Baseline_Source]]*T_DataComboFile[[#This Row],[G&S reporting level indicator]]","v":0},{"$f":"T_DataComboFile[[#This Row],[2022/23 Baseline_Source]]*T_DataComboFile[[#This Row],[G&S reporting level indicator]]","v":0},{"$f":"T_DataComboFile[[#This Row],[2023/24 Baseline_Source]]*T_DataComboFile[[#This Row],[G&S reporting level indicator]]","v":0},null,null,null,null,null,null,{"$f":"T_DataComboFile[[#This Row],[2021/22 Baseline]]+T_DataComboFile[[#This Row],[2021/22 Reduction]]+T_DataComboFile[[#This Row],[2021/22 Increase]]","v":0},{"$f":"T_DataComboFile[[#This Row],[2022/23 Baseline]]+T_DataComboFile[[#This Row],[2022/23 Reduction]]+T_DataComboFile[[#This Row],[2022/23 Increase]]","v":0},{"$f":"T_DataComboFile[[#This Row],[2023/24 Baseline]]+T_DataComboFile[[#This Row],[2023/24 Reduction]]+T_DataComboFile[[#This Row],[2023/24 Increase]]","v":0}]
[null,null,"2021_22","ENE2020",36,2,1,null,70464,36,2,1,null,"070464","36|02|01",1,1,2,7,7,"01|01|02|07|07","National","Small Business Development","Sector Policy and Research","Research",null,"Current","Current payments","Goods and services","Bursaries: Employees","Bursaries: Employees",null,null,null,0,0,0,0,0,0,0,0,0,0,0,0,0,0,null,{"$f":"IF(T_DataComboFile[[#This Row],[G&S reporting level indicator]]=1,$AX$16,\"Not applicable\")","v":"Not applicable"},{"$f":"IF(AND($AX$16=\"Level 3\",T_DataComboFile[[#This Row],[Econ3]] = \"Goods and services\"),IF(T_DataComboFile[[#This Row],[Econ4]] = T_DataComboFile[[#This Row],[Econ3]],1,0),IF(AND($AX$16=\"Level 4\",T_DataComboFile[[#This Row],[Econ4]] = \"Goods and services\"),0,1))","v":0},{"$f":"T_DataComboFile[[#This Row],[2016/17_Source]]*T_DataComboFile[[#This Row],[G&S reporting level indicator]]","v":0},{"$f":"T_DataComboFile[[#This Row],[2017/18_Source]]*T_DataComboFile[[#This Row],[G&S reporting level indicator]]","v":0},{"$f":"T_DataComboFile[[#This Row],[2018/19_Source]]*T_DataComboFile[[#This Row],[G&S reporting level indicator]]","v":0},{"$f":"T_DataComboFile[[#This Row],[2019/20 Main appropriation_Source]]*T_DataComboFile[[#This Row],[G&S reporting level indicator]]","v":0},{"$f":"T_DataComboFile[[#This Row],[2019/20 Adjusted appropriation_Source]]*T_DataComboFile[[#This Row],[G&S reporting level indicator]]","v":0},{"$f":"T_DataComboFile[[#This Row],[2019/20 Revised estimate_Source]]*T_DataComboFile[[#This Row],[G&S reporting level indicator]]","v":0},{"$f":"T_DataComboFile[[#This Row],[2019/20 Preliminary outcome_Source]]*T_DataComboFile[[#This Row],[G&S reporting level indicator]]","v":0},{"$f":"T_DataComboFile[[#This Row],[2020/21 Original_Source]]*T_DataComboFile[[#This Row],[G&S reporting level indicator]]","v":0},{"$f":"T_DataComboFile[[#This Row],[2020/21 SAB_Source]]*T_DataComboFile[[#This Row],[G&S reporting level indicator]]","v":0},{"$f":"T_DataComboFile[[#This Row],[2020/21 Baseline_Source]]*T_DataComboFile[[#This Row],[G&S reporting level indicator]]","v":0},{"$f":"T_DataComboFile[[#This Row],[2021/22 Baseline_Source]]*T_DataComboFile[[#This Row],[G&S reporting level indicator]]","v":0},{"$f":"T_DataComboFile[[#This Row],[2022/23 Baseline_Source]]*T_DataComboFile[[#This Row],[G&S reporting level indicator]]","v":0},{"$f":"T_DataComboFile[[#This Row],[2023/24 Baseline_Source]]*T_DataComboFile[[#This Row],[G&S reporting level indicator]]","v":0},null,null,null,null,null,null,{"$f":"T_DataComboFile[[#This Row],[2021/22 Baseline]]+T_DataComboFile[[#This Row],[2021/22 Reduction]]+T_DataComboFile[[#This Row],[2021/22 Increase]]","v":0},{"$f":"T_DataComboFile[[#This Row],[2022/23 Baseline]]+T_DataComboFile[[#This Row],[2022/23 Reduction]]+T_DataComboFile[[#This Row],[2022/23 Increase]]","v":0},{"$f":"T_DataComboFile[[#This Row],[2023/24 Baseline]]+T_DataComboFile[[#This Row],[2023/24 Reduction]]+T_DataComboFile[[#This Row],[2023/24 Increase]]","v":0}]
["NAT|Non-transfer item","36|Catering: Departmental activities","2021_22","ENE2020",36,2,1,17284,70465,36,2,1,17284,"070465","36|02|01",1,1,2,8,8,"01|01|02|08|08","National","Small Business Development","Sector Policy and Research","Research","Non-transfer item","Current","Current payments","Goods and services","Catering: Departmental activities","Catering: Departmental activities","Economic development","Industrialisation and exports","NAT",217,149,4,82,82,82,82,92,92,92,98,106,111,1,null,{"$f":"IF(T_DataComboFile[[#This Row],[G&S reporting level indicator]]=1,$AX$16,\"Not applicable\")","v":"Not applicable"},{"$f":"IF(AND($AX$16=\"Level 3\",T_DataComboFile[[#This Row],[Econ3]] = \"Goods and services\"),IF(T_DataComboFile[[#This Row],[Econ4]] = T_DataComboFile[[#This Row],[Econ3]],1,0),IF(AND($AX$16=\"Level 4\",T_DataComboFile[[#This Row],[Econ4]] = \"Goods and services\"),0,1))","v":0},{"$f":"T_DataComboFile[[#This Row],[2016/17_Source]]*T_DataComboFile[[#This Row],[G&S reporting level indicator]]","v":0},{"$f":"T_DataComboFile[[#This Row],[2017/18_Source]]*T_DataComboFile[[#This Row],[G&S reporting level indicator]]","v":0},{"$f":"T_DataComboFile[[#This Row],[2018/19_Source]]*T_DataComboFile[[#This Row],[G&S reporting level indicator]]","v":0},{"$f":"T_DataComboFile[[#This Row],[2019/20 Main appropriation_Source]]*T_DataComboFile[[#This Row],[G&S reporting level indicator]]","v":0},{"$f":"T_DataComboFile[[#This Row],[2019/20 Adjusted appropriation_Source]]*T_DataComboFile[[#This Row],[G&S reporting level indicator]]","v":0},{"$f":"T_DataComboFile[[#This Row],[2019/20 Revised estimate_Source]]*T_DataComboFile[[#This Row],[G&S reporting level indicator]]","v":0},{"$f":"T_DataComboFile[[#This Row],[2019/20 Preliminary outcome_Source]]*T_DataComboFile[[#This Row],[G&S reporting level indicator]]","v":0},{"$f":"T_DataComboFile[[#This Row],[2020/21 Original_Source]]*T_DataComboFile[[#This Row],[G&S reporting level indicator]]","v":0},{"$f":"T_DataComboFile[[#This Row],[2020/21 SAB_Source]]*T_DataComboFile[[#This Row],[G&S reporting level indicator]]","v":0},{"$f":"T_DataComboFile[[#This Row],[2020/21 Baseline_Source]]*T_DataComboFile[[#This Row],[G&S reporting level indicator]]","v":0},{"$f":"T_DataComboFile[[#This Row],[2021/22 Baseline_Source]]*T_DataComboFile[[#This Row],[G&S reporting level indicator]]","v":0},{"$f":"T_DataComboFile[[#This Row],[2022/23 Baseline_Source]]*T_DataComboFile[[#This Row],[G&S reporting level indicator]]","v":0},{"$f":"T_DataComboFile[[#This Row],[2023/24 Baseline_Source]]*T_DataComboFile[[#This Row],[G&S reporting level indicator]]","v":0},null,null,null,null,null,null,{"$f":"T_DataComboFile[[#This Row],[2021/22 Baseline]]+T_DataComboFile[[#This Row],[2021/22 Reduction]]+T_DataComboFile[[#This Row],[2021/22 Increase]]","v":0},{"$f":"T_DataComboFile[[#This Row],[2022/23 Baseline]]+T_DataComboFile[[#This Row],[2022/23 Reduction]]+T_DataComboFile[[#This Row],[2022/23 Increase]]","v":0},{"$f":"T_DataComboFile[[#This Row],[2023/24 Baseline]]+T_DataComboFile[[#This Row],[2023/24 Reduction]]+T_DataComboFile[[#This Row],[2023/24 Increase]]","v":0}]
["NAT|Non-transfer item","36|Communication (G&S)","2021_22","ENE2020",36,2,1,17285,70466,36,2,1,17285,"070466","36|02|01",1,1,2,9,9,"01|01|02|09|09","National","Small Business Development","Sector Policy and Research","Research","Non-transfer item","Current","Current payments","Goods and services","Communication (G&S)","Communication (G&S)","Economic development","Industrialisation and exports","NAT",40,14,5,27,27,27,27,32,32,32,34,36,38,1,null,{"$f":"IF(T_DataComboFile[[#This Row],[G&S reporting level indicator]]=1,$AX$16,\"Not applicable\")","v":"Not applicable"},{"$f":"IF(AND($AX$16=\"Level 3\",T_DataComboFile[[#This Row],[Econ3]] = \"Goods and services\"),IF(T_DataComboFile[[#This Row],[Econ4]] = T_DataComboFile[[#This Row],[Econ3]],1,0),IF(AND($AX$16=\"Level 4\",T_DataComboFile[[#This Row],[Econ4]] = \"Goods and services\"),0,1))","v":0},{"$f":"T_DataComboFile[[#This Row],[2016/17_Source]]*T_DataComboFile[[#This Row],[G&S reporting level indicator]]","v":0},{"$f":"T_DataComboFile[[#This Row],[2017/18_Source]]*T_DataComboFile[[#This Row],[G&S reporting level indicator]]","v":0},{"$f":"T_DataComboFile[[#This Row],[2018/19_Source]]*T_DataComboFile[[#This Row],[G&S reporting level indicator]]","v":0},{"$f":"T_DataComboFile[[#This Row],[2019/20 Main appropriation_Source]]*T_DataComboFile[[#This Row],[G&S reporting level indicator]]","v":0},{"$f":"T_DataComboFile[[#This Row],[2019/20 Adjusted appropriation_Source]]*T_DataComboFile[[#This Row],[G&S reporting level indicator]]","v":0},{"$f":"T_DataComboFile[[#This Row],[2019/20 Revised estimate_Source]]*T_DataComboFile[[#This Row],[G&S reporting level indicator]]","v":0},{"$f":"T_DataComboFile[[#This Row],[2019/20 Preliminary outcome_Source]]*T_DataComboFile[[#This Row],[G&S reporting level indicator]]","v":0},{"$f":"T_DataComboFile[[#This Row],[2020/21 Original_Source]]*T_DataComboFile[[#This Row],[G&S reporting level indicator]]","v":0},{"$f":"T_DataComboFile[[#This Row],[2020/21 SAB_Source]]*T_DataComboFile[[#This Row],[G&S reporting level indicator]]","v":0},{"$f":"T_DataComboFile[[#This Row],[2020/21 Baseline_Source]]*T_DataComboFile[[#This Row],[G&S reporting level indicator]]","v":0},{"$f":"T_DataComboFile[[#This Row],[2021/22 Baseline_Source]]*T_DataComboFile[[#This Row],[G&S reporting level indicator]]","v":0},{"$f":"T_DataComboFile[[#This Row],[2022/23 Baseline_Source]]*T_DataComboFile[[#This Row],[G&S reporting level indicator]]","v":0},{"$f":"T_DataComboFile[[#This Row],[2023/24 Baseline_Source]]*T_DataComboFile[[#This Row],[G&S reporting level indicator]]","v":0},null,null,null,null,null,null,{"$f":"T_DataComboFile[[#This Row],[2021/22 Baseline]]+T_DataComboFile[[#This Row],[2021/22 Reduction]]+T_DataComboFile[[#This Row],[2021/22 Increase]]","v":0},{"$f":"T_DataComboFile[[#This Row],[2022/23 Baseline]]+T_DataComboFile[[#This Row],[2022/23 Reduction]]+T_DataComboFile[[#This Row],[2022/23 Increase]]","v":0},{"$f":"T_DataComboFile[[#This Row],[2023/24 Baseline]]+T_DataComboFile[[#This Row],[2023/24 Reduction]]+T_DataComboFile[[#This Row],[2023/24 Increase]]","v":0}]
[null,null,"2021_22","ENE2020",36,2,1,null,70467,36,2,1,null,"070467","36|02|01",1,1,2,10,10,"01|01|02|10|10","National","Small Business Development","Sector Policy and Research","Research",null,"Current","Current payments","Goods and services","Computer services","Computer services",null,null,null,0,0,0,0,0,0,0,0,0,0,0,0,0,0,null,{"$f":"IF(T_DataComboFile[[#This Row],[G&S reporting level indicator]]=1,$AX$16,\"Not applicable\")","v":"Not applicable"},{"$f":"IF(AND($AX$16=\"Level 3\",T_DataComboFile[[#This Row],[Econ3]] = \"Goods and services\"),IF(T_DataComboFile[[#This Row],[Econ4]] = T_DataComboFile[[#This Row],[Econ3]],1,0),IF(AND($AX$16=\"Level 4\",T_DataComboFile[[#This Row],[Econ4]] = \"Goods and services\"),0,1))","v":0},{"$f":"T_DataComboFile[[#This Row],[2016/17_Source]]*T_DataComboFile[[#This Row],[G&S reporting level indicator]]","v":0},{"$f":"T_DataComboFile[[#This Row],[2017/18_Source]]*T_DataComboFile[[#This Row],[G&S reporting level indicator]]","v":0},{"$f":"T_DataComboFile[[#This Row],[2018/19_Source]]*T_DataComboFile[[#This Row],[G&S reporting level indicator]]","v":0},{"$f":"T_DataComboFile[[#This Row],[2019/20 Main appropriation_Source]]*T_DataComboFile[[#This Row],[G&S reporting level indicator]]","v":0},{"$f":"T_DataComboFile[[#This Row],[2019/20 Adjusted appropriation_Source]]*T_DataComboFile[[#This Row],[G&S reporting level indicator]]","v":0},{"$f":"T_DataComboFile[[#This Row],[2019/20 Revised estimate_Source]]*T_DataComboFile[[#This Row],[G&S reporting level indicator]]","v":0},{"$f":"T_DataComboFile[[#This Row],[2019/20 Preliminary outcome_Source]]*T_DataComboFile[[#This Row],[G&S reporting level indicator]]","v":0},{"$f":"T_DataComboFile[[#This Row],[2020/21 Original_Source]]*T_DataComboFile[[#This Row],[G&S reporting level indicator]]","v":0},{"$f":"T_DataComboFile[[#This Row],[2020/21 SAB_Source]]*T_DataComboFile[[#This Row],[G&S reporting level indicator]]","v":0},{"$f":"T_DataComboFile[[#This Row],[2020/21 Baseline_Source]]*T_DataComboFile[[#This Row],[G&S reporting level indicator]]","v":0},{"$f":"T_DataComboFile[[#This Row],[2021/22 Baseline_Source]]*T_DataComboFile[[#This Row],[G&S reporting level indicator]]","v":0},{"$f":"T_DataComboFile[[#This Row],[2022/23 Baseline_Source]]*T_DataComboFile[[#This Row],[G&S reporting level indicator]]","v":0},{"$f":"T_DataComboFile[[#This Row],[2023/24 Baseline_Source]]*T_DataComboFile[[#This Row],[G&S reporting level indicator]]","v":0},null,null,null,null,null,null,{"$f":"T_DataComboFile[[#This Row],[2021/22 Baseline]]+T_DataComboFile[[#This Row],[2021/22 Reduction]]+T_DataComboFile[[#This Row],[2021/22 Increase]]","v":0},{"$f":"T_DataComboFile[[#This Row],[2022/23 Baseline]]+T_DataComboFile[[#This Row],[2022/23 Reduction]]+T_DataComboFile[[#This Row],[2022/23 Increase]]","v":0},{"$f":"T_DataComboFile[[#This Row],[2023/24 Baseline]]+T_DataComboFile[[#This Row],[2023/24 Reduction]]+T_DataComboFile[[#This Row],[2023/24 Increase]]","v":0}]
["NAT|Non-transfer item","36|Consultants: Business and advisory services","2021_22","ENE2020",36,2,1,17286,70468,36,2,1,17286,"070468","36|02|01",1,1,2,11,11,"01|01|02|11|11","National","Small Business Development","Sector Policy and Research","Research","Non-transfer item","Current","Current payments","Goods and services","Consultants: Business and advisory services","Consultants: Business and advisory services","Economic development","Industrialisation and exports","NAT",1687,4809,790,4800,4615,4615,4615,6000,0,6000,6400,6700,6995,1,null,{"$f":"IF(T_DataComboFile[[#This Row],[G&S reporting level indicator]]=1,$AX$16,\"Not applicable\")","v":"Not applicable"},{"$f":"IF(AND($AX$16=\"Level 3\",T_DataComboFile[[#This Row],[Econ3]] = \"Goods and services\"),IF(T_DataComboFile[[#This Row],[Econ4]] = T_DataComboFile[[#This Row],[Econ3]],1,0),IF(AND($AX$16=\"Level 4\",T_DataComboFile[[#This Row],[Econ4]] = \"Goods and services\"),0,1))","v":0},{"$f":"T_DataComboFile[[#This Row],[2016/17_Source]]*T_DataComboFile[[#This Row],[G&S reporting level indicator]]","v":0},{"$f":"T_DataComboFile[[#This Row],[2017/18_Source]]*T_DataComboFile[[#This Row],[G&S reporting level indicator]]","v":0},{"$f":"T_DataComboFile[[#This Row],[2018/19_Source]]*T_DataComboFile[[#This Row],[G&S reporting level indicator]]","v":0},{"$f":"T_DataComboFile[[#This Row],[2019/20 Main appropriation_Source]]*T_DataComboFile[[#This Row],[G&S reporting level indicator]]","v":0},{"$f":"T_DataComboFile[[#This Row],[2019/20 Adjusted appropriation_Source]]*T_DataComboFile[[#This Row],[G&S reporting level indicator]]","v":0},{"$f":"T_DataComboFile[[#This Row],[2019/20 Revised estimate_Source]]*T_DataComboFile[[#This Row],[G&S reporting level indicator]]","v":0},{"$f":"T_DataComboFile[[#This Row],[2019/20 Preliminary outcome_Source]]*T_DataComboFile[[#This Row],[G&S reporting level indicator]]","v":0},{"$f":"T_DataComboFile[[#This Row],[2020/21 Original_Source]]*T_DataComboFile[[#This Row],[G&S reporting level indicator]]","v":0},{"$f":"T_DataComboFile[[#This Row],[2020/21 SAB_Source]]*T_DataComboFile[[#This Row],[G&S reporting level indicator]]","v":0},{"$f":"T_DataComboFile[[#This Row],[2020/21 Baseline_Source]]*T_DataComboFile[[#This Row],[G&S reporting level indicator]]","v":0},{"$f":"T_DataComboFile[[#This Row],[2021/22 Baseline_Source]]*T_DataComboFile[[#This Row],[G&S reporting level indicator]]","v":0},{"$f":"T_DataComboFile[[#This Row],[2022/23 Baseline_Source]]*T_DataComboFile[[#This Row],[G&S reporting level indicator]]","v":0},{"$f":"T_DataComboFile[[#This Row],[2023/24 Baseline_Source]]*T_DataComboFile[[#This Row],[G&S reporting level indicator]]","v":0},null,null,null,null,null,null,{"$f":"T_DataComboFile[[#This Row],[2021/22 Baseline]]+T_DataComboFile[[#This Row],[2021/22 Reduction]]+T_DataComboFile[[#This Row],[2021/22 Increase]]","v":0},{"$f":"T_DataComboFile[[#This Row],[2022/23 Baseline]]+T_DataComboFile[[#This Row],[2022/23 Reduction]]+T_DataComboFile[[#This Row],[2022/23 Increase]]","v":0},{"$f":"T_DataComboFile[[#This Row],[2023/24 Baseline]]+T_DataComboFile[[#This Row],[2023/24 Reduction]]+T_DataComboFile[[#This Row],[2023/24 Increase]]","v":0}]
[null,null,"2021_22","ENE2020",36,2,1,null,70469,36,2,1,null,"070469","36|02|01",1,1,2,12,12,"01|01|02|12|12","National","Small Business Development","Sector Policy and Research","Research",null,"Current","Current payments","Goods and services","Infrastructure and planning services","Infrastructure and planning services",null,null,null,0,0,0,0,0,0,0,0,0,0,0,0,0,0,null,{"$f":"IF(T_DataComboFile[[#This Row],[G&S reporting level indicator]]=1,$AX$16,\"Not applicable\")","v":"Not applicable"},{"$f":"IF(AND($AX$16=\"Level 3\",T_DataComboFile[[#This Row],[Econ3]] = \"Goods and services\"),IF(T_DataComboFile[[#This Row],[Econ4]] = T_DataComboFile[[#This Row],[Econ3]],1,0),IF(AND($AX$16=\"Level 4\",T_DataComboFile[[#This Row],[Econ4]] = \"Goods and services\"),0,1))","v":0},{"$f":"T_DataComboFile[[#This Row],[2016/17_Source]]*T_DataComboFile[[#This Row],[G&S reporting level indicator]]","v":0},{"$f":"T_DataComboFile[[#This Row],[2017/18_Source]]*T_DataComboFile[[#This Row],[G&S reporting level indicator]]","v":0},{"$f":"T_DataComboFile[[#This Row],[2018/19_Source]]*T_DataComboFile[[#This Row],[G&S reporting level indicator]]","v":0},{"$f":"T_DataComboFile[[#This Row],[2019/20 Main appropriation_Source]]*T_DataComboFile[[#This Row],[G&S reporting level indicator]]","v":0},{"$f":"T_DataComboFile[[#This Row],[2019/20 Adjusted appropriation_Source]]*T_DataComboFile[[#This Row],[G&S reporting level indicator]]","v":0},{"$f":"T_DataComboFile[[#This Row],[2019/20 Revised estimate_Source]]*T_DataComboFile[[#This Row],[G&S reporting level indicator]]","v":0},{"$f":"T_DataComboFile[[#This Row],[2019/20 Preliminary outcome_Source]]*T_DataComboFile[[#This Row],[G&S reporting level indicator]]","v":0},{"$f":"T_DataComboFile[[#This Row],[2020/21 Original_Source]]*T_DataComboFile[[#This Row],[G&S reporting level indicator]]","v":0},{"$f":"T_DataComboFile[[#This Row],[2020/21 SAB_Source]]*T_DataComboFile[[#This Row],[G&S reporting level indicator]]","v":0},{"$f":"T_DataComboFile[[#This Row],[2020/21 Baseline_Source]]*T_DataComboFile[[#This Row],[G&S reporting level indicator]]","v":0},{"$f":"T_DataComboFile[[#This Row],[2021/22 Baseline_Source]]*T_DataComboFile[[#This Row],[G&S reporting level indicator]]","v":0},{"$f":"T_DataComboFile[[#This Row],[2022/23 Baseline_Source]]*T_DataComboFile[[#This Row],[G&S reporting level indicator]]","v":0},{"$f":"T_DataComboFile[[#This Row],[2023/24 Baseline_Source]]*T_DataComboFile[[#This Row],[G&S reporting level indicator]]","v":0},null,null,null,null,null,null,{"$f":"T_DataComboFile[[#This Row],[2021/22 Baseline]]+T_DataComboFile[[#This Row],[2021/22 Reduction]]+T_DataComboFile[[#This Row],[2021/22 Increase]]","v":0},{"$f":"T_DataComboFile[[#This Row],[2022/23 Baseline]]+T_DataComboFile[[#This Row],[2022/23 Reduction]]+T_DataComboFile[[#This Row],[2022/23 Increase]]","v":0},{"$f":"T_DataComboFile[[#This Row],[2023/24 Baseline]]+T_DataComboFile[[#This Row],[2023/24 Reduction]]+T_DataComboFile[[#This Row],[2023/24 Increase]]","v":0}]
[null,null,"2021_22","ENE2020",36,2,1,null,70470,36,2,1,null,"070470","36|02|01",1,1,2,13,13,"01|01|02|13|13","National","Small Business Development","Sector Policy and Research","Research",null,"Current","Current payments","Goods and services","Laboratory services","Laboratory services",null,null,null,0,0,0,0,0,0,0,0,0,0,0,0,0,0,null,{"$f":"IF(T_DataComboFile[[#This Row],[G&S reporting level indicator]]=1,$AX$16,\"Not applicable\")","v":"Not applicable"},{"$f":"IF(AND($AX$16=\"Level 3\",T_DataComboFile[[#This Row],[Econ3]] = \"Goods and services\"),IF(T_DataComboFile[[#This Row],[Econ4]] = T_DataComboFile[[#This Row],[Econ3]],1,0),IF(AND($AX$16=\"Level 4\",T_DataComboFile[[#This Row],[Econ4]] = \"Goods and services\"),0,1))","v":0},{"$f":"T_DataComboFile[[#This Row],[2016/17_Source]]*T_DataComboFile[[#This Row],[G&S reporting level indicator]]","v":0},{"$f":"T_DataComboFile[[#This Row],[2017/18_Source]]*T_DataComboFile[[#This Row],[G&S reporting level indicator]]","v":0},{"$f":"T_DataComboFile[[#This Row],[2018/19_Source]]*T_DataComboFile[[#This Row],[G&S reporting level indicator]]","v":0},{"$f":"T_DataComboFile[[#This Row],[2019/20 Main appropriation_Source]]*T_DataComboFile[[#This Row],[G&S reporting level indicator]]","v":0},{"$f":"T_DataComboFile[[#This Row],[2019/20 Adjusted appropriation_Source]]*T_DataComboFile[[#This Row],[G&S reporting level indicator]]","v":0},{"$f":"T_DataComboFile[[#This Row],[2019/20 Revised estimate_Source]]*T_DataComboFile[[#This Row],[G&S reporting level indicator]]","v":0},{"$f":"T_DataComboFile[[#This Row],[2019/20 Preliminary outcome_Source]]*T_DataComboFile[[#This Row],[G&S reporting level indicator]]","v":0},{"$f":"T_DataComboFile[[#This Row],[2020/21 Original_Source]]*T_DataComboFile[[#This Row],[G&S reporting level indicator]]","v":0},{"$f":"T_DataComboFile[[#This Row],[2020/21 SAB_Source]]*T_DataComboFile[[#This Row],[G&S reporting level indicator]]","v":0},{"$f":"T_DataComboFile[[#This Row],[2020/21 Baseline_Source]]*T_DataComboFile[[#This Row],[G&S reporting level indicator]]","v":0},{"$f":"T_DataComboFile[[#This Row],[2021/22 Baseline_Source]]*T_DataComboFile[[#This Row],[G&S reporting level indicator]]","v":0},{"$f":"T_DataComboFile[[#This Row],[2022/23 Baseline_Source]]*T_DataComboFile[[#This Row],[G&S reporting level indicator]]","v":0},{"$f":"T_DataComboFile[[#This Row],[2023/24 Baseline_Source]]*T_DataComboFile[[#This Row],[G&S reporting level indicator]]","v":0},null,null,null,null,null,null,{"$f":"T_DataComboFile[[#This Row],[2021/22 Baseline]]+T_DataComboFile[[#This Row],[2021/22 Reduction]]+T_DataComboFile[[#This Row],[2021/22 Increase]]","v":0},{"$f":"T_DataComboFile[[#This Row],[2022/23 Baseline]]+T_DataComboFile[[#This Row],[2022/23 Reduction]]+T_DataComboFile[[#This Row],[2022/23 Increase]]","v":0},{"$f":"T_DataComboFile[[#This Row],[2023/24 Baseline]]+T_DataComboFile[[#This Row],[2023/24 Reduction]]+T_DataComboFile[[#This Row],[2023/24 Increase]]","v":0}]
[null,null,"2021_22","ENE2020",36,2,1,null,70471,36,2,1,null,"070471","36|02|01",1,1,2,14,14,"01|01|02|14|14","National","Small Business Development","Sector Policy and Research","Research",null,"Current","Current payments","Goods and services","Legal services (G&S)","Legal services (G&S)",null,null,null,0,0,0,0,0,0,0,0,0,0,0,0,0,0,null,{"$f":"IF(T_DataComboFile[[#This Row],[G&S reporting level indicator]]=1,$AX$16,\"Not applicable\")","v":"Not applicable"},{"$f":"IF(AND($AX$16=\"Level 3\",T_DataComboFile[[#This Row],[Econ3]] = \"Goods and services\"),IF(T_DataComboFile[[#This Row],[Econ4]] = T_DataComboFile[[#This Row],[Econ3]],1,0),IF(AND($AX$16=\"Level 4\",T_DataComboFile[[#This Row],[Econ4]] = \"Goods and services\"),0,1))","v":0},{"$f":"T_DataComboFile[[#This Row],[2016/17_Source]]*T_DataComboFile[[#This Row],[G&S reporting level indicator]]","v":0},{"$f":"T_DataComboFile[[#This Row],[2017/18_Source]]*T_DataComboFile[[#This Row],[G&S reporting level indicator]]","v":0},{"$f":"T_DataComboFile[[#This Row],[2018/19_Source]]*T_DataComboFile[[#This Row],[G&S reporting level indicator]]","v":0},{"$f":"T_DataComboFile[[#This Row],[2019/20 Main appropriation_Source]]*T_DataComboFile[[#This Row],[G&S reporting level indicator]]","v":0},{"$f":"T_DataComboFile[[#This Row],[2019/20 Adjusted appropriation_Source]]*T_DataComboFile[[#This Row],[G&S reporting level indicator]]","v":0},{"$f":"T_DataComboFile[[#This Row],[2019/20 Revised estimate_Source]]*T_DataComboFile[[#This Row],[G&S reporting level indicator]]","v":0},{"$f":"T_DataComboFile[[#This Row],[2019/20 Preliminary outcome_Source]]*T_DataComboFile[[#This Row],[G&S reporting level indicator]]","v":0},{"$f":"T_DataComboFile[[#This Row],[2020/21 Original_Source]]*T_DataComboFile[[#This Row],[G&S reporting level indicator]]","v":0},{"$f":"T_DataComboFile[[#This Row],[2020/21 SAB_Source]]*T_DataComboFile[[#This Row],[G&S reporting level indicator]]","v":0},{"$f":"T_DataComboFile[[#This Row],[2020/21 Baseline_Source]]*T_DataComboFile[[#This Row],[G&S reporting level indicator]]","v":0},{"$f":"T_DataComboFile[[#This Row],[2021/22 Baseline_Source]]*T_DataComboFile[[#This Row],[G&S reporting level indicator]]","v":0},{"$f":"T_DataComboFile[[#This Row],[2022/23 Baseline_Source]]*T_DataComboFile[[#This Row],[G&S reporting level indicator]]","v":0},{"$f":"T_DataComboFile[[#This Row],[2023/24 Baseline_Source]]*T_DataComboFile[[#This Row],[G&S reporting level indicator]]","v":0},null,null,null,null,null,null,{"$f":"T_DataComboFile[[#This Row],[2021/22 Baseline]]+T_DataComboFile[[#This Row],[2021/22 Reduction]]+T_DataComboFile[[#This Row],[2021/22 Increase]]","v":0},{"$f":"T_DataComboFile[[#This Row],[2022/23 Baseline]]+T_DataComboFile[[#This Row],[2022/23 Reduction]]+T_DataComboFile[[#This Row],[2022/23 Increase]]","v":0},{"$f":"T_DataComboFile[[#This Row],[2023/24 Baseline]]+T_DataComboFile[[#This Row],[2023/24 Reduction]]+T_DataComboFile[[#This Row],[2023/24 Increase]]","v":0}]
[null,null,"2021_22","ENE2020",36,2,1,null,70472,36,2,1,null,"070472","36|02|01",1,1,2,15,15,"01|01|02|15|15","National","Small Business Development","Sector Policy and Research","Research",null,"Current","Current payments","Goods and services","Science and technological services","Science and technological services",null,null,null,0,0,0,0,0,0,0,0,0,0,0,0,0,0,null,{"$f":"IF(T_DataComboFile[[#This Row],[G&S reporting level indicator]]=1,$AX$16,\"Not applicable\")","v":"Not applicable"},{"$f":"IF(AND($AX$16=\"Level 3\",T_DataComboFile[[#This Row],[Econ3]] = \"Goods and services\"),IF(T_DataComboFile[[#This Row],[Econ4]] = T_DataComboFile[[#This Row],[Econ3]],1,0),IF(AND($AX$16=\"Level 4\",T_DataComboFile[[#This Row],[Econ4]] = \"Goods and services\"),0,1))","v":0},{"$f":"T_DataComboFile[[#This Row],[2016/17_Source]]*T_DataComboFile[[#This Row],[G&S reporting level indicator]]","v":0},{"$f":"T_DataComboFile[[#This Row],[2017/18_Source]]*T_DataComboFile[[#This Row],[G&S reporting level indicator]]","v":0},{"$f":"T_DataComboFile[[#This Row],[2018/19_Source]]*T_DataComboFile[[#This Row],[G&S reporting level indicator]]","v":0},{"$f":"T_DataComboFile[[#This Row],[2019/20 Main appropriation_Source]]*T_DataComboFile[[#This Row],[G&S reporting level indicator]]","v":0},{"$f":"T_DataComboFile[[#This Row],[2019/20 Adjusted appropriation_Source]]*T_DataComboFile[[#This Row],[G&S reporting level indicator]]","v":0},{"$f":"T_DataComboFile[[#This Row],[2019/20 Revised estimate_Source]]*T_DataComboFile[[#This Row],[G&S reporting level indicator]]","v":0},{"$f":"T_DataComboFile[[#This Row],[2019/20 Preliminary outcome_Source]]*T_DataComboFile[[#This Row],[G&S reporting level indicator]]","v":0},{"$f":"T_DataComboFile[[#This Row],[2020/21 Original_Source]]*T_DataComboFile[[#This Row],[G&S reporting level indicator]]","v":0},{"$f":"T_DataComboFile[[#This Row],[2020/21 SAB_Source]]*T_DataComboFile[[#This Row],[G&S reporting level indicator]]","v":0},{"$f":"T_DataComboFile[[#This Row],[2020/21 Baseline_Source]]*T_DataComboFile[[#This Row],[G&S reporting level indicator]]","v":0},{"$f":"T_DataComboFile[[#This Row],[2021/22 Baseline_Source]]*T_DataComboFile[[#This Row],[G&S reporting level indicator]]","v":0},{"$f":"T_DataComboFile[[#This Row],[2022/23 Baseline_Source]]*T_DataComboFile[[#This Row],[G&S reporting level indicator]]","v":0},{"$f":"T_DataComboFile[[#This Row],[2023/24 Baseline_Source]]*T_DataComboFile[[#This Row],[G&S reporting level indicator]]","v":0},null,null,null,null,null,null,{"$f":"T_DataComboFile[[#This Row],[2021/22 Baseline]]+T_DataComboFile[[#This Row],[2021/22 Reduction]]+T_DataComboFile[[#This Row],[2021/22 Increase]]","v":0},{"$f":"T_DataComboFile[[#This Row],[2022/23 Baseline]]+T_DataComboFile[[#This Row],[2022/23 Reduction]]+T_DataComboFile[[#This Row],[2022/23 Increase]]","v":0},{"$f":"T_DataComboFile[[#This Row],[2023/24 Baseline]]+T_DataComboFile[[#This Row],[2023/24 Reduction]]+T_DataComboFile[[#This Row],[2023/24 Increase]]","v":0}]
["NAT|Non-transfer item","36|Contractors","2021_22","ENE2020",36,2,1,17287,70473,36,2,1,17287,"070473","36|02|01",1,1,2,16,16,"01|01|02|16|16","National","Small Business Development","Sector Policy and Research","Research","Non-transfer item","Current","Current payments","Goods and services","Contractors","Contractors","Economic development","Industrialisation and exports","NAT",5,0,0,0,0,0,0,0,0,0,0,0,0,1,null,{"$f":"IF(T_DataComboFile[[#This Row],[G&S reporting level indicator]]=1,$AX$16,\"Not applicable\")","v":"Not applicable"},{"$f":"IF(AND($AX$16=\"Level 3\",T_DataComboFile[[#This Row],[Econ3]] = \"Goods and services\"),IF(T_DataComboFile[[#This Row],[Econ4]] = T_DataComboFile[[#This Row],[Econ3]],1,0),IF(AND($AX$16=\"Level 4\",T_DataComboFile[[#This Row],[Econ4]] = \"Goods and services\"),0,1))","v":0},{"$f":"T_DataComboFile[[#This Row],[2016/17_Source]]*T_DataComboFile[[#This Row],[G&S reporting level indicator]]","v":0},{"$f":"T_DataComboFile[[#This Row],[2017/18_Source]]*T_DataComboFile[[#This Row],[G&S reporting level indicator]]","v":0},{"$f":"T_DataComboFile[[#This Row],[2018/19_Source]]*T_DataComboFile[[#This Row],[G&S reporting level indicator]]","v":0},{"$f":"T_DataComboFile[[#This Row],[2019/20 Main appropriation_Source]]*T_DataComboFile[[#This Row],[G&S reporting level indicator]]","v":0},{"$f":"T_DataComboFile[[#This Row],[2019/20 Adjusted appropriation_Source]]*T_DataComboFile[[#This Row],[G&S reporting level indicator]]","v":0},{"$f":"T_DataComboFile[[#This Row],[2019/20 Revised estimate_Source]]*T_DataComboFile[[#This Row],[G&S reporting level indicator]]","v":0},{"$f":"T_DataComboFile[[#This Row],[2019/20 Preliminary outcome_Source]]*T_DataComboFile[[#This Row],[G&S reporting level indicator]]","v":0},{"$f":"T_DataComboFile[[#This Row],[2020/21 Original_Source]]*T_DataComboFile[[#This Row],[G&S reporting level indicator]]","v":0},{"$f":"T_DataComboFile[[#This Row],[2020/21 SAB_Source]]*T_DataComboFile[[#This Row],[G&S reporting level indicator]]","v":0},{"$f":"T_DataComboFile[[#This Row],[2020/21 Baseline_Source]]*T_DataComboFile[[#This Row],[G&S reporting level indicator]]","v":0},{"$f":"T_DataComboFile[[#This Row],[2021/22 Baseline_Source]]*T_DataComboFile[[#This Row],[G&S reporting level indicator]]","v":0},{"$f":"T_DataComboFile[[#This Row],[2022/23 Baseline_Source]]*T_DataComboFile[[#This Row],[G&S reporting level indicator]]","v":0},{"$f":"T_DataComboFile[[#This Row],[2023/24 Baseline_Source]]*T_DataComboFile[[#This Row],[G&S reporting level indicator]]","v":0},null,null,null,null,null,null,{"$f":"T_DataComboFile[[#This Row],[2021/22 Baseline]]+T_DataComboFile[[#This Row],[2021/22 Reduction]]+T_DataComboFile[[#This Row],[2021/22 Increase]]","v":0},{"$f":"T_DataComboFile[[#This Row],[2022/23 Baseline]]+T_DataComboFile[[#This Row],[2022/23 Reduction]]+T_DataComboFile[[#This Row],[2022/23 Increase]]","v":0},{"$f":"T_DataComboFile[[#This Row],[2023/24 Baseline]]+T_DataComboFile[[#This Row],[2023/24 Reduction]]+T_DataComboFile[[#This Row],[2023/24 Increase]]","v":0}]
["NAT|Non-transfer item","36|Agency and support/outsourced services","2021_22","ENE2020",36,2,1,17288,70474,36,2,1,17288,"070474","36|02|01",1,1,2,17,17,"01|01|02|17|17","National","Small Business Development","Sector Policy and Research","Research","Non-transfer item","Current","Current payments","Goods and services","Agency and support/outsourced services","Agency and support/outsourced services","Economic development","Industrialisation and exports","NAT",10,0,0,0,0,0,0,0,0,0,0,0,0,1,null,{"$f":"IF(T_DataComboFile[[#This Row],[G&S reporting level indicator]]=1,$AX$16,\"Not applicable\")","v":"Not applicable"},{"$f":"IF(AND($AX$16=\"Level 3\",T_DataComboFile[[#This Row],[Econ3]] = \"Goods and services\"),IF(T_DataComboFile[[#This Row],[Econ4]] = T_DataComboFile[[#This Row],[Econ3]],1,0),IF(AND($AX$16=\"Level 4\",T_DataComboFile[[#This Row],[Econ4]] = \"Goods and services\"),0,1))","v":0},{"$f":"T_DataComboFile[[#This Row],[2016/17_Source]]*T_DataComboFile[[#This Row],[G&S reporting level indicator]]","v":0},{"$f":"T_DataComboFile[[#This Row],[2017/18_Source]]*T_DataComboFile[[#This Row],[G&S reporting level indicator]]","v":0},{"$f":"T_DataComboFile[[#This Row],[2018/19_Source]]*T_DataComboFile[[#This Row],[G&S reporting level indicator]]","v":0},{"$f":"T_DataComboFile[[#This Row],[2019/20 Main appropriation_Source]]*T_DataComboFile[[#This Row],[G&S reporting level indicator]]","v":0},{"$f":"T_DataComboFile[[#This Row],[2019/20 Adjusted appropriation_Source]]*T_DataComboFile[[#This Row],[G&S reporting level indicator]]","v":0},{"$f":"T_DataComboFile[[#This Row],[2019/20 Revised estimate_Source]]*T_DataComboFile[[#This Row],[G&S reporting level indicator]]","v":0},{"$f":"T_DataComboFile[[#This Row],[2019/20 Preliminary outcome_Source]]*T_DataComboFile[[#This Row],[G&S reporting level indicator]]","v":0},{"$f":"T_DataComboFile[[#This Row],[2020/21 Original_Source]]*T_DataComboFile[[#This Row],[G&S reporting level indicator]]","v":0},{"$f":"T_DataComboFile[[#This Row],[2020/21 SAB_Source]]*T_DataComboFile[[#This Row],[G&S reporting level indicator]]","v":0},{"$f":"T_DataComboFile[[#This Row],[2020/21 Baseline_Source]]*T_DataComboFile[[#This Row],[G&S reporting level indicator]]","v":0},{"$f":"T_DataComboFile[[#This Row],[2021/22 Baseline_Source]]*T_DataComboFile[[#This Row],[G&S reporting level indicator]]","v":0},{"$f":"T_DataComboFile[[#This Row],[2022/23 Baseline_Source]]*T_DataComboFile[[#This Row],[G&S reporting level indicator]]","v":0},{"$f":"T_DataComboFile[[#This Row],[2023/24 Baseline_Source]]*T_DataComboFile[[#This Row],[G&S reporting level indicator]]","v":0},null,null,null,null,null,null,{"$f":"T_DataComboFile[[#This Row],[2021/22 Baseline]]+T_DataComboFile[[#This Row],[2021/22 Reduction]]+T_DataComboFile[[#This Row],[2021/22 Increase]]","v":0},{"$f":"T_DataComboFile[[#This Row],[2022/23 Baseline]]+T_DataComboFile[[#This Row],[2022/23 Reduction]]+T_DataComboFile[[#This Row],[2022/23 Increase]]","v":0},{"$f":"T_DataComboFile[[#This Row],[2023/24 Baseline]]+T_DataComboFile[[#This Row],[2023/24 Reduction]]+T_DataComboFile[[#This Row],[2023/24 Increase]]","v":0}]
[null,null,"2021_22","ENE2020",36,2,1,null,70475,36,2,1,null,"070475","36|02|01",1,1,2,18,18,"01|01|02|18|18","National","Small Business Development","Sector Policy and Research","Research",null,"Current","Current payments","Goods and services","Entertainment","Entertainment",null,null,null,0,0,0,0,0,0,0,0,0,0,0,0,0,0,null,{"$f":"IF(T_DataComboFile[[#This Row],[G&S reporting level indicator]]=1,$AX$16,\"Not applicable\")","v":"Not applicable"},{"$f":"IF(AND($AX$16=\"Level 3\",T_DataComboFile[[#This Row],[Econ3]] = \"Goods and services\"),IF(T_DataComboFile[[#This Row],[Econ4]] = T_DataComboFile[[#This Row],[Econ3]],1,0),IF(AND($AX$16=\"Level 4\",T_DataComboFile[[#This Row],[Econ4]] = \"Goods and services\"),0,1))","v":0},{"$f":"T_DataComboFile[[#This Row],[2016/17_Source]]*T_DataComboFile[[#This Row],[G&S reporting level indicator]]","v":0},{"$f":"T_DataComboFile[[#This Row],[2017/18_Source]]*T_DataComboFile[[#This Row],[G&S reporting level indicator]]","v":0},{"$f":"T_DataComboFile[[#This Row],[2018/19_Source]]*T_DataComboFile[[#This Row],[G&S reporting level indicator]]","v":0},{"$f":"T_DataComboFile[[#This Row],[2019/20 Main appropriation_Source]]*T_DataComboFile[[#This Row],[G&S reporting level indicator]]","v":0},{"$f":"T_DataComboFile[[#This Row],[2019/20 Adjusted appropriation_Source]]*T_DataComboFile[[#This Row],[G&S reporting level indicator]]","v":0},{"$f":"T_DataComboFile[[#This Row],[2019/20 Revised estimate_Source]]*T_DataComboFile[[#This Row],[G&S reporting level indicator]]","v":0},{"$f":"T_DataComboFile[[#This Row],[2019/20 Preliminary outcome_Source]]*T_DataComboFile[[#This Row],[G&S reporting level indicator]]","v":0},{"$f":"T_DataComboFile[[#This Row],[2020/21 Original_Source]]*T_DataComboFile[[#This Row],[G&S reporting level indicator]]","v":0},{"$f":"T_DataComboFile[[#This Row],[2020/21 SAB_Source]]*T_DataComboFile[[#This Row],[G&S reporting level indicator]]","v":0},{"$f":"T_DataComboFile[[#This Row],[2020/21 Baseline_Source]]*T_DataComboFile[[#This Row],[G&S reporting level indicator]]","v":0},{"$f":"T_DataComboFile[[#This Row],[2021/22 Baseline_Source]]*T_DataComboFile[[#This Row],[G&S reporting level indicator]]","v":0},{"$f":"T_DataComboFile[[#This Row],[2022/23 Baseline_Source]]*T_DataComboFile[[#This Row],[G&S reporting level indicator]]","v":0},{"$f":"T_DataComboFile[[#This Row],[2023/24 Baseline_Source]]*T_DataComboFile[[#This Row],[G&S reporting level indicator]]","v":0},null,null,null,null,null,null,{"$f":"T_DataComboFile[[#This Row],[2021/22 Baseline]]+T_DataComboFile[[#This Row],[2021/22 Reduction]]+T_DataComboFile[[#This Row],[2021/22 Increase]]","v":0},{"$f":"T_DataComboFile[[#This Row],[2022/23 Baseline]]+T_DataComboFile[[#This Row],[2022/23 Reduction]]+T_DataComboFile[[#This Row],[2022/23 Increase]]","v":0},{"$f":"T_DataComboFile[[#This Row],[2023/24 Baseline]]+T_DataComboFile[[#This Row],[2023/24 Reduction]]+T_DataComboFile[[#This Row],[2023/24 Increase]]","v":0}]
["NAT|Non-transfer item","36|Fleet services (including government motor transport)","2021_22","ENE2020",36,2,1,17289,70476,36,2,1,17289,"070476","36|02|01",1,1,2,19,19,"01|01|02|19|19","National","Small Business Development","Sector Policy and Research","Research","Non-transfer item","Current","Current payments","Goods and services","Fleet services (including government motor transport)","Fleet services (including government motor transport)","Economic development","Industrialisation and exports","NAT",5,2,4,0,5,5,5,0,0,0,0,0,0,1,null,{"$f":"IF(T_DataComboFile[[#This Row],[G&S reporting level indicator]]=1,$AX$16,\"Not applicable\")","v":"Not applicable"},{"$f":"IF(AND($AX$16=\"Level 3\",T_DataComboFile[[#This Row],[Econ3]] = \"Goods and services\"),IF(T_DataComboFile[[#This Row],[Econ4]] = T_DataComboFile[[#This Row],[Econ3]],1,0),IF(AND($AX$16=\"Level 4\",T_DataComboFile[[#This Row],[Econ4]] = \"Goods and services\"),0,1))","v":0},{"$f":"T_DataComboFile[[#This Row],[2016/17_Source]]*T_DataComboFile[[#This Row],[G&S reporting level indicator]]","v":0},{"$f":"T_DataComboFile[[#This Row],[2017/18_Source]]*T_DataComboFile[[#This Row],[G&S reporting level indicator]]","v":0},{"$f":"T_DataComboFile[[#This Row],[2018/19_Source]]*T_DataComboFile[[#This Row],[G&S reporting level indicator]]","v":0},{"$f":"T_DataComboFile[[#This Row],[2019/20 Main appropriation_Source]]*T_DataComboFile[[#This Row],[G&S reporting level indicator]]","v":0},{"$f":"T_DataComboFile[[#This Row],[2019/20 Adjusted appropriation_Source]]*T_DataComboFile[[#This Row],[G&S reporting level indicator]]","v":0},{"$f":"T_DataComboFile[[#This Row],[2019/20 Revised estimate_Source]]*T_DataComboFile[[#This Row],[G&S reporting level indicator]]","v":0},{"$f":"T_DataComboFile[[#This Row],[2019/20 Preliminary outcome_Source]]*T_DataComboFile[[#This Row],[G&S reporting level indicator]]","v":0},{"$f":"T_DataComboFile[[#This Row],[2020/21 Original_Source]]*T_DataComboFile[[#This Row],[G&S reporting level indicator]]","v":0},{"$f":"T_DataComboFile[[#This Row],[2020/21 SAB_Source]]*T_DataComboFile[[#This Row],[G&S reporting level indicator]]","v":0},{"$f":"T_DataComboFile[[#This Row],[2020/21 Baseline_Source]]*T_DataComboFile[[#This Row],[G&S reporting level indicator]]","v":0},{"$f":"T_DataComboFile[[#This Row],[2021/22 Baseline_Source]]*T_DataComboFile[[#This Row],[G&S reporting level indicator]]","v":0},{"$f":"T_DataComboFile[[#This Row],[2022/23 Baseline_Source]]*T_DataComboFile[[#This Row],[G&S reporting level indicator]]","v":0},{"$f":"T_DataComboFile[[#This Row],[2023/24 Baseline_Source]]*T_DataComboFile[[#This Row],[G&S reporting level indicator]]","v":0},null,null,null,null,null,null,{"$f":"T_DataComboFile[[#This Row],[2021/22 Baseline]]+T_DataComboFile[[#This Row],[2021/22 Reduction]]+T_DataComboFile[[#This Row],[2021/22 Increase]]","v":0},{"$f":"T_DataComboFile[[#This Row],[2022/23 Baseline]]+T_DataComboFile[[#This Row],[2022/23 Reduction]]+T_DataComboFile[[#This Row],[2022/23 Increase]]","v":0},{"$f":"T_DataComboFile[[#This Row],[2023/24 Baseline]]+T_DataComboFile[[#This Row],[2023/24 Reduction]]+T_DataComboFile[[#This Row],[2023/24 Increase]]","v":0}]
[null,null,"2021_22","ENE2020",36,2,1,null,70477,36,2,1,null,"070477","36|02|01",1,1,2,20,20,"01|01|02|20|20","National","Small Business Development","Sector Policy and Research","Research",null,"Current","Current payments","Goods and services","Housing","Housing",null,null,null,0,0,0,0,0,0,0,0,0,0,0,0,0,0,null,{"$f":"IF(T_DataComboFile[[#This Row],[G&S reporting level indicator]]=1,$AX$16,\"Not applicable\")","v":"Not applicable"},{"$f":"IF(AND($AX$16=\"Level 3\",T_DataComboFile[[#This Row],[Econ3]] = \"Goods and services\"),IF(T_DataComboFile[[#This Row],[Econ4]] = T_DataComboFile[[#This Row],[Econ3]],1,0),IF(AND($AX$16=\"Level 4\",T_DataComboFile[[#This Row],[Econ4]] = \"Goods and services\"),0,1))","v":0},{"$f":"T_DataComboFile[[#This Row],[2016/17_Source]]*T_DataComboFile[[#This Row],[G&S reporting level indicator]]","v":0},{"$f":"T_DataComboFile[[#This Row],[2017/18_Source]]*T_DataComboFile[[#This Row],[G&S reporting level indicator]]","v":0},{"$f":"T_DataComboFile[[#This Row],[2018/19_Source]]*T_DataComboFile[[#This Row],[G&S reporting level indicator]]","v":0},{"$f":"T_DataComboFile[[#This Row],[2019/20 Main appropriation_Source]]*T_DataComboFile[[#This Row],[G&S reporting level indicator]]","v":0},{"$f":"T_DataComboFile[[#This Row],[2019/20 Adjusted appropriation_Source]]*T_DataComboFile[[#This Row],[G&S reporting level indicator]]","v":0},{"$f":"T_DataComboFile[[#This Row],[2019/20 Revised estimate_Source]]*T_DataComboFile[[#This Row],[G&S reporting level indicator]]","v":0},{"$f":"T_DataComboFile[[#This Row],[2019/20 Preliminary outcome_Source]]*T_DataComboFile[[#This Row],[G&S reporting level indicator]]","v":0},{"$f":"T_DataComboFile[[#This Row],[2020/21 Original_Source]]*T_DataComboFile[[#This Row],[G&S reporting level indicator]]","v":0},{"$f":"T_DataComboFile[[#This Row],[2020/21 SAB_Source]]*T_DataComboFile[[#This Row],[G&S reporting level indicator]]","v":0},{"$f":"T_DataComboFile[[#This Row],[2020/21 Baseline_Source]]*T_DataComboFile[[#This Row],[G&S reporting level indicator]]","v":0},{"$f":"T_DataComboFile[[#This Row],[2021/22 Baseline_Source]]*T_DataComboFile[[#This Row],[G&S reporting level indicator]]","v":0},{"$f":"T_DataComboFile[[#This Row],[2022/23 Baseline_Source]]*T_DataComboFile[[#This Row],[G&S reporting level indicator]]","v":0},{"$f":"T_DataComboFile[[#This Row],[2023/24 Baseline_Source]]*T_DataComboFile[[#This Row],[G&S reporting level indicator]]","v":0},null,null,null,null,null,null,{"$f":"T_DataComboFile[[#This Row],[2021/22 Baseline]]+T_DataComboFile[[#This Row],[2021/22 Reduction]]+T_DataComboFile[[#This Row],[2021/22 Increase]]","v":0},{"$f":"T_DataComboFile[[#This Row],[2022/23 Baseline]]+T_DataComboFile[[#This Row],[2022/23 Reduction]]+T_DataComboFile[[#This Row],[2022/23 Increase]]","v":0},{"$f":"T_DataComboFile[[#This Row],[2023/24 Baseline]]+T_DataComboFile[[#This Row],[2023/24 Reduction]]+T_DataComboFile[[#This Row],[2023/24 Increase]]","v":0}]
[null,null,"2021_22","ENE2020",36,2,1,null,70478,36,2,1,null,"070478","36|02|01",1,1,2,21,21,"01|01|02|21|21","National","Small Business Development","Sector Policy and Research","Research",null,"Current","Current payments","Goods and services","Inventory: Clothing material and accessories","Inventory: Clothing material and accessories",null,null,null,0,0,0,0,0,0,0,0,0,0,0,0,0,0,null,{"$f":"IF(T_DataComboFile[[#This Row],[G&S reporting level indicator]]=1,$AX$16,\"Not applicable\")","v":"Not applicable"},{"$f":"IF(AND($AX$16=\"Level 3\",T_DataComboFile[[#This Row],[Econ3]] = \"Goods and services\"),IF(T_DataComboFile[[#This Row],[Econ4]] = T_DataComboFile[[#This Row],[Econ3]],1,0),IF(AND($AX$16=\"Level 4\",T_DataComboFile[[#This Row],[Econ4]] = \"Goods and services\"),0,1))","v":0},{"$f":"T_DataComboFile[[#This Row],[2016/17_Source]]*T_DataComboFile[[#This Row],[G&S reporting level indicator]]","v":0},{"$f":"T_DataComboFile[[#This Row],[2017/18_Source]]*T_DataComboFile[[#This Row],[G&S reporting level indicator]]","v":0},{"$f":"T_DataComboFile[[#This Row],[2018/19_Source]]*T_DataComboFile[[#This Row],[G&S reporting level indicator]]","v":0},{"$f":"T_DataComboFile[[#This Row],[2019/20 Main appropriation_Source]]*T_DataComboFile[[#This Row],[G&S reporting level indicator]]","v":0},{"$f":"T_DataComboFile[[#This Row],[2019/20 Adjusted appropriation_Source]]*T_DataComboFile[[#This Row],[G&S reporting level indicator]]","v":0},{"$f":"T_DataComboFile[[#This Row],[2019/20 Revised estimate_Source]]*T_DataComboFile[[#This Row],[G&S reporting level indicator]]","v":0},{"$f":"T_DataComboFile[[#This Row],[2019/20 Preliminary outcome_Source]]*T_DataComboFile[[#This Row],[G&S reporting level indicator]]","v":0},{"$f":"T_DataComboFile[[#This Row],[2020/21 Original_Source]]*T_DataComboFile[[#This Row],[G&S reporting level indicator]]","v":0},{"$f":"T_DataComboFile[[#This Row],[2020/21 SAB_Source]]*T_DataComboFile[[#This Row],[G&S reporting level indicator]]","v":0},{"$f":"T_DataComboFile[[#This Row],[2020/21 Baseline_Source]]*T_DataComboFile[[#This Row],[G&S reporting level indicator]]","v":0},{"$f":"T_DataComboFile[[#This Row],[2021/22 Baseline_Source]]*T_DataComboFile[[#This Row],[G&S reporting level indicator]]","v":0},{"$f":"T_DataComboFile[[#This Row],[2022/23 Baseline_Source]]*T_DataComboFile[[#This Row],[G&S reporting level indicator]]","v":0},{"$f":"T_DataComboFile[[#This Row],[2023/24 Baseline_Source]]*T_DataComboFile[[#This Row],[G&S reporting level indicator]]","v":0},null,null,null,null,null,null,{"$f":"T_DataComboFile[[#This Row],[2021/22 Baseline]]+T_DataComboFile[[#This Row],[2021/22 Reduction]]+T_DataComboFile[[#This Row],[2021/22 Increase]]","v":0},{"$f":"T_DataComboFile[[#This Row],[2022/23 Baseline]]+T_DataComboFile[[#This Row],[2022/23 Reduction]]+T_DataComboFile[[#This Row],[2022/23 Increase]]","v":0},{"$f":"T_DataComboFile[[#This Row],[2023/24 Baseline]]+T_DataComboFile[[#This Row],[2023/24 Reduction]]+T_DataComboFile[[#This Row],[2023/24 Increase]]","v":0}]
[null,null,"2021_22","ENE2020",36,2,1,null,70479,36,2,1,null,"070479","36|02|01",1,1,2,22,22,"01|01|02|22|22","National","Small Business Development","Sector Policy and Research","Research",null,"Current","Current payments","Goods and services","Inventory: Farming supplies","Inventory: Farming supplies",null,null,null,0,0,0,0,0,0,0,0,0,0,0,0,0,0,null,{"$f":"IF(T_DataComboFile[[#This Row],[G&S reporting level indicator]]=1,$AX$16,\"Not applicable\")","v":"Not applicable"},{"$f":"IF(AND($AX$16=\"Level 3\",T_DataComboFile[[#This Row],[Econ3]] = \"Goods and services\"),IF(T_DataComboFile[[#This Row],[Econ4]] = T_DataComboFile[[#This Row],[Econ3]],1,0),IF(AND($AX$16=\"Level 4\",T_DataComboFile[[#This Row],[Econ4]] = \"Goods and services\"),0,1))","v":0},{"$f":"T_DataComboFile[[#This Row],[2016/17_Source]]*T_DataComboFile[[#This Row],[G&S reporting level indicator]]","v":0},{"$f":"T_DataComboFile[[#This Row],[2017/18_Source]]*T_DataComboFile[[#This Row],[G&S reporting level indicator]]","v":0},{"$f":"T_DataComboFile[[#This Row],[2018/19_Source]]*T_DataComboFile[[#This Row],[G&S reporting level indicator]]","v":0},{"$f":"T_DataComboFile[[#This Row],[2019/20 Main appropriation_Source]]*T_DataComboFile[[#This Row],[G&S reporting level indicator]]","v":0},{"$f":"T_DataComboFile[[#This Row],[2019/20 Adjusted appropriation_Source]]*T_DataComboFile[[#This Row],[G&S reporting level indicator]]","v":0},{"$f":"T_DataComboFile[[#This Row],[2019/20 Revised estimate_Source]]*T_DataComboFile[[#This Row],[G&S reporting level indicator]]","v":0},{"$f":"T_DataComboFile[[#This Row],[2019/20 Preliminary outcome_Source]]*T_DataComboFile[[#This Row],[G&S reporting level indicator]]","v":0},{"$f":"T_DataComboFile[[#This Row],[2020/21 Original_Source]]*T_DataComboFile[[#This Row],[G&S reporting level indicator]]","v":0},{"$f":"T_DataComboFile[[#This Row],[2020/21 SAB_Source]]*T_DataComboFile[[#This Row],[G&S reporting level indicator]]","v":0},{"$f":"T_DataComboFile[[#This Row],[2020/21 Baseline_Source]]*T_DataComboFile[[#This Row],[G&S reporting level indicator]]","v":0},{"$f":"T_DataComboFile[[#This Row],[2021/22 Baseline_Source]]*T_DataComboFile[[#This Row],[G&S reporting level indicator]]","v":0},{"$f":"T_DataComboFile[[#This Row],[2022/23 Baseline_Source]]*T_DataComboFile[[#This Row],[G&S reporting level indicator]]","v":0},{"$f":"T_DataComboFile[[#This Row],[2023/24 Baseline_Source]]*T_DataComboFile[[#This Row],[G&S reporting level indicator]]","v":0},null,null,null,null,null,null,{"$f":"T_DataComboFile[[#This Row],[2021/22 Baseline]]+T_DataComboFile[[#This Row],[2021/22 Reduction]]+T_DataComboFile[[#This Row],[2021/22 Increase]]","v":0},{"$f":"T_DataComboFile[[#This Row],[2022/23 Baseline]]+T_DataComboFile[[#This Row],[2022/23 Reduction]]+T_DataComboFile[[#This Row],[2022/23 Increase]]","v":0},{"$f":"T_DataComboFile[[#This Row],[2023/24 Baseline]]+T_DataComboFile[[#This Row],[2023/24 Reduction]]+T_DataComboFile[[#This Row],[2023/24 Increase]]","v":0}]
[null,null,"2021_22","ENE2020",36,2,1,null,70480,36,2,1,null,"070480","36|02|01",1,1,2,23,23,"01|01|02|23|23","National","Small Business Development","Sector Policy and Research","Research",null,"Current","Current payments","Goods and services","Inventory: Food and food supplies","Inventory: Food and food supplies",null,null,null,0,0,0,0,0,0,0,0,0,0,0,0,0,0,null,{"$f":"IF(T_DataComboFile[[#This Row],[G&S reporting level indicator]]=1,$AX$16,\"Not applicable\")","v":"Not applicable"},{"$f":"IF(AND($AX$16=\"Level 3\",T_DataComboFile[[#This Row],[Econ3]] = \"Goods and services\"),IF(T_DataComboFile[[#This Row],[Econ4]] = T_DataComboFile[[#This Row],[Econ3]],1,0),IF(AND($AX$16=\"Level 4\",T_DataComboFile[[#This Row],[Econ4]] = \"Goods and services\"),0,1))","v":0},{"$f":"T_DataComboFile[[#This Row],[2016/17_Source]]*T_DataComboFile[[#This Row],[G&S reporting level indicator]]","v":0},{"$f":"T_DataComboFile[[#This Row],[2017/18_Source]]*T_DataComboFile[[#This Row],[G&S reporting level indicator]]","v":0},{"$f":"T_DataComboFile[[#This Row],[2018/19_Source]]*T_DataComboFile[[#This Row],[G&S reporting level indicator]]","v":0},{"$f":"T_DataComboFile[[#This Row],[2019/20 Main appropriation_Source]]*T_DataComboFile[[#This Row],[G&S reporting level indicator]]","v":0},{"$f":"T_DataComboFile[[#This Row],[2019/20 Adjusted appropriation_Source]]*T_DataComboFile[[#This Row],[G&S reporting level indicator]]","v":0},{"$f":"T_DataComboFile[[#This Row],[2019/20 Revised estimate_Source]]*T_DataComboFile[[#This Row],[G&S reporting level indicator]]","v":0},{"$f":"T_DataComboFile[[#This Row],[2019/20 Preliminary outcome_Source]]*T_DataComboFile[[#This Row],[G&S reporting level indicator]]","v":0},{"$f":"T_DataComboFile[[#This Row],[2020/21 Original_Source]]*T_DataComboFile[[#This Row],[G&S reporting level indicator]]","v":0},{"$f":"T_DataComboFile[[#This Row],[2020/21 SAB_Source]]*T_DataComboFile[[#This Row],[G&S reporting level indicator]]","v":0},{"$f":"T_DataComboFile[[#This Row],[2020/21 Baseline_Source]]*T_DataComboFile[[#This Row],[G&S reporting level indicator]]","v":0},{"$f":"T_DataComboFile[[#This Row],[2021/22 Baseline_Source]]*T_DataComboFile[[#This Row],[G&S reporting level indicator]]","v":0},{"$f":"T_DataComboFile[[#This Row],[2022/23 Baseline_Source]]*T_DataComboFile[[#This Row],[G&S reporting level indicator]]","v":0},{"$f":"T_DataComboFile[[#This Row],[2023/24 Baseline_Source]]*T_DataComboFile[[#This Row],[G&S reporting level indicator]]","v":0},null,null,null,null,null,null,{"$f":"T_DataComboFile[[#This Row],[2021/22 Baseline]]+T_DataComboFile[[#This Row],[2021/22 Reduction]]+T_DataComboFile[[#This Row],[2021/22 Increase]]","v":0},{"$f":"T_DataComboFile[[#This Row],[2022/23 Baseline]]+T_DataComboFile[[#This Row],[2022/23 Reduction]]+T_DataComboFile[[#This Row],[2022/23 Increase]]","v":0},{"$f":"T_DataComboFile[[#This Row],[2023/24 Baseline]]+T_DataComboFile[[#This Row],[2023/24 Reduction]]+T_DataComboFile[[#This Row],[2023/24 Increase]]","v":0}]
[null,null,"2021_22","ENE2020",36,2,1,null,70481,36,2,1,null,"070481","36|02|01",1,1,2,24,24,"01|01|02|24|24","National","Small Business Development","Sector Policy and Research","Research",null,"Current","Current payments","Goods and services","Inventory: Fuel, oil and gas","Inventory: Fuel, oil and gas",null,null,null,0,0,0,0,0,0,0,0,0,0,0,0,0,0,null,{"$f":"IF(T_DataComboFile[[#This Row],[G&S reporting level indicator]]=1,$AX$16,\"Not applicable\")","v":"Not applicable"},{"$f":"IF(AND($AX$16=\"Level 3\",T_DataComboFile[[#This Row],[Econ3]] = \"Goods and services\"),IF(T_DataComboFile[[#This Row],[Econ4]] = T_DataComboFile[[#This Row],[Econ3]],1,0),IF(AND($AX$16=\"Level 4\",T_DataComboFile[[#This Row],[Econ4]] = \"Goods and services\"),0,1))","v":0},{"$f":"T_DataComboFile[[#This Row],[2016/17_Source]]*T_DataComboFile[[#This Row],[G&S reporting level indicator]]","v":0},{"$f":"T_DataComboFile[[#This Row],[2017/18_Source]]*T_DataComboFile[[#This Row],[G&S reporting level indicator]]","v":0},{"$f":"T_DataComboFile[[#This Row],[2018/19_Source]]*T_DataComboFile[[#This Row],[G&S reporting level indicator]]","v":0},{"$f":"T_DataComboFile[[#This Row],[2019/20 Main appropriation_Source]]*T_DataComboFile[[#This Row],[G&S reporting level indicator]]","v":0},{"$f":"T_DataComboFile[[#This Row],[2019/20 Adjusted appropriation_Source]]*T_DataComboFile[[#This Row],[G&S reporting level indicator]]","v":0},{"$f":"T_DataComboFile[[#This Row],[2019/20 Revised estimate_Source]]*T_DataComboFile[[#This Row],[G&S reporting level indicator]]","v":0},{"$f":"T_DataComboFile[[#This Row],[2019/20 Preliminary outcome_Source]]*T_DataComboFile[[#This Row],[G&S reporting level indicator]]","v":0},{"$f":"T_DataComboFile[[#This Row],[2020/21 Original_Source]]*T_DataComboFile[[#This Row],[G&S reporting level indicator]]","v":0},{"$f":"T_DataComboFile[[#This Row],[2020/21 SAB_Source]]*T_DataComboFile[[#This Row],[G&S reporting level indicator]]","v":0},{"$f":"T_DataComboFile[[#This Row],[2020/21 Baseline_Source]]*T_DataComboFile[[#This Row],[G&S reporting level indicator]]","v":0},{"$f":"T_DataComboFile[[#This Row],[2021/22 Baseline_Source]]*T_DataComboFile[[#This Row],[G&S reporting level indicator]]","v":0},{"$f":"T_DataComboFile[[#This Row],[2022/23 Baseline_Source]]*T_DataComboFile[[#This Row],[G&S reporting level indicator]]","v":0},{"$f":"T_DataComboFile[[#This Row],[2023/24 Baseline_Source]]*T_DataComboFile[[#This Row],[G&S reporting level indicator]]","v":0},null,null,null,null,null,null,{"$f":"T_DataComboFile[[#This Row],[2021/22 Baseline]]+T_DataComboFile[[#This Row],[2021/22 Reduction]]+T_DataComboFile[[#This Row],[2021/22 Increase]]","v":0},{"$f":"T_DataComboFile[[#This Row],[2022/23 Baseline]]+T_DataComboFile[[#This Row],[2022/23 Reduction]]+T_DataComboFile[[#This Row],[2022/23 Increase]]","v":0},{"$f":"T_DataComboFile[[#This Row],[2023/24 Baseline]]+T_DataComboFile[[#This Row],[2023/24 Reduction]]+T_DataComboFile[[#This Row],[2023/24 Increase]]","v":0}]
[null,null,"2021_22","ENE2020",36,2,1,null,70482,36,2,1,null,"070482","36|02|01",1,1,2,25,25,"01|01|02|25|25","National","Small Business Development","Sector Policy and Research","Research",null,"Current","Current payments","Goods and services","Inventory: Learner and teacher support material","Inventory: Learner and teacher support material",null,null,null,0,0,0,0,0,0,0,0,0,0,0,0,0,0,null,{"$f":"IF(T_DataComboFile[[#This Row],[G&S reporting level indicator]]=1,$AX$16,\"Not applicable\")","v":"Not applicable"},{"$f":"IF(AND($AX$16=\"Level 3\",T_DataComboFile[[#This Row],[Econ3]] = \"Goods and services\"),IF(T_DataComboFile[[#This Row],[Econ4]] = T_DataComboFile[[#This Row],[Econ3]],1,0),IF(AND($AX$16=\"Level 4\",T_DataComboFile[[#This Row],[Econ4]] = \"Goods and services\"),0,1))","v":0},{"$f":"T_DataComboFile[[#This Row],[2016/17_Source]]*T_DataComboFile[[#This Row],[G&S reporting level indicator]]","v":0},{"$f":"T_DataComboFile[[#This Row],[2017/18_Source]]*T_DataComboFile[[#This Row],[G&S reporting level indicator]]","v":0},{"$f":"T_DataComboFile[[#This Row],[2018/19_Source]]*T_DataComboFile[[#This Row],[G&S reporting level indicator]]","v":0},{"$f":"T_DataComboFile[[#This Row],[2019/20 Main appropriation_Source]]*T_DataComboFile[[#This Row],[G&S reporting level indicator]]","v":0},{"$f":"T_DataComboFile[[#This Row],[2019/20 Adjusted appropriation_Source]]*T_DataComboFile[[#This Row],[G&S reporting level indicator]]","v":0},{"$f":"T_DataComboFile[[#This Row],[2019/20 Revised estimate_Source]]*T_DataComboFile[[#This Row],[G&S reporting level indicator]]","v":0},{"$f":"T_DataComboFile[[#This Row],[2019/20 Preliminary outcome_Source]]*T_DataComboFile[[#This Row],[G&S reporting level indicator]]","v":0},{"$f":"T_DataComboFile[[#This Row],[2020/21 Original_Source]]*T_DataComboFile[[#This Row],[G&S reporting level indicator]]","v":0},{"$f":"T_DataComboFile[[#This Row],[2020/21 SAB_Source]]*T_DataComboFile[[#This Row],[G&S reporting level indicator]]","v":0},{"$f":"T_DataComboFile[[#This Row],[2020/21 Baseline_Source]]*T_DataComboFile[[#This Row],[G&S reporting level indicator]]","v":0},{"$f":"T_DataComboFile[[#This Row],[2021/22 Baseline_Source]]*T_DataComboFile[[#This Row],[G&S reporting level indicator]]","v":0},{"$f":"T_DataComboFile[[#This Row],[2022/23 Baseline_Source]]*T_DataComboFile[[#This Row],[G&S reporting level indicator]]","v":0},{"$f":"T_DataComboFile[[#This Row],[2023/24 Baseline_Source]]*T_DataComboFile[[#This Row],[G&S reporting level indicator]]","v":0},null,null,null,null,null,null,{"$f":"T_DataComboFile[[#This Row],[2021/22 Baseline]]+T_DataComboFile[[#This Row],[2021/22 Reduction]]+T_DataComboFile[[#This Row],[2021/22 Increase]]","v":0},{"$f":"T_DataComboFile[[#This Row],[2022/23 Baseline]]+T_DataComboFile[[#This Row],[2022/23 Reduction]]+T_DataComboFile[[#This Row],[2022/23 Increase]]","v":0},{"$f":"T_DataComboFile[[#This Row],[2023/24 Baseline]]+T_DataComboFile[[#This Row],[2023/24 Reduction]]+T_DataComboFile[[#This Row],[2023/24 Increase]]","v":0}]
[null,null,"2021_22","ENE2020",36,2,1,null,70483,36,2,1,null,"070483","36|02|01",1,1,2,26,26,"01|01|02|26|26","National","Small Business Development","Sector Policy and Research","Research",null,"Current","Current payments","Goods and services","Inventory: Materials and supplies","Inventory: Materials and supplies",null,null,null,0,0,0,0,0,0,0,0,0,0,0,0,0,0,null,{"$f":"IF(T_DataComboFile[[#This Row],[G&S reporting level indicator]]=1,$AX$16,\"Not applicable\")","v":"Not applicable"},{"$f":"IF(AND($AX$16=\"Level 3\",T_DataComboFile[[#This Row],[Econ3]] = \"Goods and services\"),IF(T_DataComboFile[[#This Row],[Econ4]] = T_DataComboFile[[#This Row],[Econ3]],1,0),IF(AND($AX$16=\"Level 4\",T_DataComboFile[[#This Row],[Econ4]] = \"Goods and services\"),0,1))","v":0},{"$f":"T_DataComboFile[[#This Row],[2016/17_Source]]*T_DataComboFile[[#This Row],[G&S reporting level indicator]]","v":0},{"$f":"T_DataComboFile[[#This Row],[2017/18_Source]]*T_DataComboFile[[#This Row],[G&S reporting level indicator]]","v":0},{"$f":"T_DataComboFile[[#This Row],[2018/19_Source]]*T_DataComboFile[[#This Row],[G&S reporting level indicator]]","v":0},{"$f":"T_DataComboFile[[#This Row],[2019/20 Main appropriation_Source]]*T_DataComboFile[[#This Row],[G&S reporting level indicator]]","v":0},{"$f":"T_DataComboFile[[#This Row],[2019/20 Adjusted appropriation_Source]]*T_DataComboFile[[#This Row],[G&S reporting level indicator]]","v":0},{"$f":"T_DataComboFile[[#This Row],[2019/20 Revised estimate_Source]]*T_DataComboFile[[#This Row],[G&S reporting level indicator]]","v":0},{"$f":"T_DataComboFile[[#This Row],[2019/20 Preliminary outcome_Source]]*T_DataComboFile[[#This Row],[G&S reporting level indicator]]","v":0},{"$f":"T_DataComboFile[[#This Row],[2020/21 Original_Source]]*T_DataComboFile[[#This Row],[G&S reporting level indicator]]","v":0},{"$f":"T_DataComboFile[[#This Row],[2020/21 SAB_Source]]*T_DataComboFile[[#This Row],[G&S reporting level indicator]]","v":0},{"$f":"T_DataComboFile[[#This Row],[2020/21 Baseline_Source]]*T_DataComboFile[[#This Row],[G&S reporting level indicator]]","v":0},{"$f":"T_DataComboFile[[#This Row],[2021/22 Baseline_Source]]*T_DataComboFile[[#This Row],[G&S reporting level indicator]]","v":0},{"$f":"T_DataComboFile[[#This Row],[2022/23 Baseline_Source]]*T_DataComboFile[[#This Row],[G&S reporting level indicator]]","v":0},{"$f":"T_DataComboFile[[#This Row],[2023/24 Baseline_Source]]*T_DataComboFile[[#This Row],[G&S reporting level indicator]]","v":0},null,null,null,null,null,null,{"$f":"T_DataComboFile[[#This Row],[2021/22 Baseline]]+T_DataComboFile[[#This Row],[2021/22 Reduction]]+T_DataComboFile[[#This Row],[2021/22 Increase]]","v":0},{"$f":"T_DataComboFile[[#This Row],[2022/23 Baseline]]+T_DataComboFile[[#This Row],[2022/23 Reduction]]+T_DataComboFile[[#This Row],[2022/23 Increase]]","v":0},{"$f":"T_DataComboFile[[#This Row],[2023/24 Baseline]]+T_DataComboFile[[#This Row],[2023/24 Reduction]]+T_DataComboFile[[#This Row],[2023/24 Increase]]","v":0}]
[null,null,"2021_22","ENE2020",36,2,1,null,70484,36,2,1,null,"070484","36|02|01",1,1,2,27,27,"01|01|02|27|27","National","Small Business Development","Sector Policy and Research","Research",null,"Current","Current payments","Goods and services","Inventory: Medical supplies","Inventory: Medical supplies",null,null,null,0,0,0,0,0,0,0,0,0,0,0,0,0,0,null,{"$f":"IF(T_DataComboFile[[#This Row],[G&S reporting level indicator]]=1,$AX$16,\"Not applicable\")","v":"Not applicable"},{"$f":"IF(AND($AX$16=\"Level 3\",T_DataComboFile[[#This Row],[Econ3]] = \"Goods and services\"),IF(T_DataComboFile[[#This Row],[Econ4]] = T_DataComboFile[[#This Row],[Econ3]],1,0),IF(AND($AX$16=\"Level 4\",T_DataComboFile[[#This Row],[Econ4]] = \"Goods and services\"),0,1))","v":0},{"$f":"T_DataComboFile[[#This Row],[2016/17_Source]]*T_DataComboFile[[#This Row],[G&S reporting level indicator]]","v":0},{"$f":"T_DataComboFile[[#This Row],[2017/18_Source]]*T_DataComboFile[[#This Row],[G&S reporting level indicator]]","v":0},{"$f":"T_DataComboFile[[#This Row],[2018/19_Source]]*T_DataComboFile[[#This Row],[G&S reporting level indicator]]","v":0},{"$f":"T_DataComboFile[[#This Row],[2019/20 Main appropriation_Source]]*T_DataComboFile[[#This Row],[G&S reporting level indicator]]","v":0},{"$f":"T_DataComboFile[[#This Row],[2019/20 Adjusted appropriation_Source]]*T_DataComboFile[[#This Row],[G&S reporting level indicator]]","v":0},{"$f":"T_DataComboFile[[#This Row],[2019/20 Revised estimate_Source]]*T_DataComboFile[[#This Row],[G&S reporting level indicator]]","v":0},{"$f":"T_DataComboFile[[#This Row],[2019/20 Preliminary outcome_Source]]*T_DataComboFile[[#This Row],[G&S reporting level indicator]]","v":0},{"$f":"T_DataComboFile[[#This Row],[2020/21 Original_Source]]*T_DataComboFile[[#This Row],[G&S reporting level indicator]]","v":0},{"$f":"T_DataComboFile[[#This Row],[2020/21 SAB_Source]]*T_DataComboFile[[#This Row],[G&S reporting level indicator]]","v":0},{"$f":"T_DataComboFile[[#This Row],[2020/21 Baseline_Source]]*T_DataComboFile[[#This Row],[G&S reporting level indicator]]","v":0},{"$f":"T_DataComboFile[[#This Row],[2021/22 Baseline_Source]]*T_DataComboFile[[#This Row],[G&S reporting level indicator]]","v":0},{"$f":"T_DataComboFile[[#This Row],[2022/23 Baseline_Source]]*T_DataComboFile[[#This Row],[G&S reporting level indicator]]","v":0},{"$f":"T_DataComboFile[[#This Row],[2023/24 Baseline_Source]]*T_DataComboFile[[#This Row],[G&S reporting level indicator]]","v":0},null,null,null,null,null,null,{"$f":"T_DataComboFile[[#This Row],[2021/22 Baseline]]+T_DataComboFile[[#This Row],[2021/22 Reduction]]+T_DataComboFile[[#This Row],[2021/22 Increase]]","v":0},{"$f":"T_DataComboFile[[#This Row],[2022/23 Baseline]]+T_DataComboFile[[#This Row],[2022/23 Reduction]]+T_DataComboFile[[#This Row],[2022/23 Increase]]","v":0},{"$f":"T_DataComboFile[[#This Row],[2023/24 Baseline]]+T_DataComboFile[[#This Row],[2023/24 Reduction]]+T_DataComboFile[[#This Row],[2023/24 Increase]]","v":0}]
[null,null,"2021_22","ENE2020",36,2,1,null,70485,36,2,1,null,"070485","36|02|01",1,1,2,28,28,"01|01|02|28|28","National","Small Business Development","Sector Policy and Research","Research",null,"Current","Current payments","Goods and services","Inventory: Medicine","Inventory: Medicine",null,null,null,0,0,0,0,0,0,0,0,0,0,0,0,0,0,null,{"$f":"IF(T_DataComboFile[[#This Row],[G&S reporting level indicator]]=1,$AX$16,\"Not applicable\")","v":"Not applicable"},{"$f":"IF(AND($AX$16=\"Level 3\",T_DataComboFile[[#This Row],[Econ3]] = \"Goods and services\"),IF(T_DataComboFile[[#This Row],[Econ4]] = T_DataComboFile[[#This Row],[Econ3]],1,0),IF(AND($AX$16=\"Level 4\",T_DataComboFile[[#This Row],[Econ4]] = \"Goods and services\"),0,1))","v":0},{"$f":"T_DataComboFile[[#This Row],[2016/17_Source]]*T_DataComboFile[[#This Row],[G&S reporting level indicator]]","v":0},{"$f":"T_DataComboFile[[#This Row],[2017/18_Source]]*T_DataComboFile[[#This Row],[G&S reporting level indicator]]","v":0},{"$f":"T_DataComboFile[[#This Row],[2018/19_Source]]*T_DataComboFile[[#This Row],[G&S reporting level indicator]]","v":0},{"$f":"T_DataComboFile[[#This Row],[2019/20 Main appropriation_Source]]*T_DataComboFile[[#This Row],[G&S reporting level indicator]]","v":0},{"$f":"T_DataComboFile[[#This Row],[2019/20 Adjusted appropriation_Source]]*T_DataComboFile[[#This Row],[G&S reporting level indicator]]","v":0},{"$f":"T_DataComboFile[[#This Row],[2019/20 Revised estimate_Source]]*T_DataComboFile[[#This Row],[G&S reporting level indicator]]","v":0},{"$f":"T_DataComboFile[[#This Row],[2019/20 Preliminary outcome_Source]]*T_DataComboFile[[#This Row],[G&S reporting level indicator]]","v":0},{"$f":"T_DataComboFile[[#This Row],[2020/21 Original_Source]]*T_DataComboFile[[#This Row],[G&S reporting level indicator]]","v":0},{"$f":"T_DataComboFile[[#This Row],[2020/21 SAB_Source]]*T_DataComboFile[[#This Row],[G&S reporting level indicator]]","v":0},{"$f":"T_DataComboFile[[#This Row],[2020/21 Baseline_Source]]*T_DataComboFile[[#This Row],[G&S reporting level indicator]]","v":0},{"$f":"T_DataComboFile[[#This Row],[2021/22 Baseline_Source]]*T_DataComboFile[[#This Row],[G&S reporting level indicator]]","v":0},{"$f":"T_DataComboFile[[#This Row],[2022/23 Baseline_Source]]*T_DataComboFile[[#This Row],[G&S reporting level indicator]]","v":0},{"$f":"T_DataComboFile[[#This Row],[2023/24 Baseline_Source]]*T_DataComboFile[[#This Row],[G&S reporting level indicator]]","v":0},null,null,null,null,null,null,{"$f":"T_DataComboFile[[#This Row],[2021/22 Baseline]]+T_DataComboFile[[#This Row],[2021/22 Reduction]]+T_DataComboFile[[#This Row],[2021/22 Increase]]","v":0},{"$f":"T_DataComboFile[[#This Row],[2022/23 Baseline]]+T_DataComboFile[[#This Row],[2022/23 Reduction]]+T_DataComboFile[[#This Row],[2022/23 Increase]]","v":0},{"$f":"T_DataComboFile[[#This Row],[2023/24 Baseline]]+T_DataComboFile[[#This Row],[2023/24 Reduction]]+T_DataComboFile[[#This Row],[2023/24 Increase]]","v":0}]
[null,null,"2021_22","ENE2020",36,2,1,null,70486,36,2,1,null,"070486","36|02|01",1,1,2,29,29,"01|01|02|29|29","National","Small Business Development","Sector Policy and Research","Research",null,"Current","Current payments","Goods and services","Medsas inventory interface","Medsas inventory interface",null,null,null,0,0,0,0,0,0,0,0,0,0,0,0,0,0,null,{"$f":"IF(T_DataComboFile[[#This Row],[G&S reporting level indicator]]=1,$AX$16,\"Not applicable\")","v":"Not applicable"},{"$f":"IF(AND($AX$16=\"Level 3\",T_DataComboFile[[#This Row],[Econ3]] = \"Goods and services\"),IF(T_DataComboFile[[#This Row],[Econ4]] = T_DataComboFile[[#This Row],[Econ3]],1,0),IF(AND($AX$16=\"Level 4\",T_DataComboFile[[#This Row],[Econ4]] = \"Goods and services\"),0,1))","v":0},{"$f":"T_DataComboFile[[#This Row],[2016/17_Source]]*T_DataComboFile[[#This Row],[G&S reporting level indicator]]","v":0},{"$f":"T_DataComboFile[[#This Row],[2017/18_Source]]*T_DataComboFile[[#This Row],[G&S reporting level indicator]]","v":0},{"$f":"T_DataComboFile[[#This Row],[2018/19_Source]]*T_DataComboFile[[#This Row],[G&S reporting level indicator]]","v":0},{"$f":"T_DataComboFile[[#This Row],[2019/20 Main appropriation_Source]]*T_DataComboFile[[#This Row],[G&S reporting level indicator]]","v":0},{"$f":"T_DataComboFile[[#This Row],[2019/20 Adjusted appropriation_Source]]*T_DataComboFile[[#This Row],[G&S reporting level indicator]]","v":0},{"$f":"T_DataComboFile[[#This Row],[2019/20 Revised estimate_Source]]*T_DataComboFile[[#This Row],[G&S reporting level indicator]]","v":0},{"$f":"T_DataComboFile[[#This Row],[2019/20 Preliminary outcome_Source]]*T_DataComboFile[[#This Row],[G&S reporting level indicator]]","v":0},{"$f":"T_DataComboFile[[#This Row],[2020/21 Original_Source]]*T_DataComboFile[[#This Row],[G&S reporting level indicator]]","v":0},{"$f":"T_DataComboFile[[#This Row],[2020/21 SAB_Source]]*T_DataComboFile[[#This Row],[G&S reporting level indicator]]","v":0},{"$f":"T_DataComboFile[[#This Row],[2020/21 Baseline_Source]]*T_DataComboFile[[#This Row],[G&S reporting level indicator]]","v":0},{"$f":"T_DataComboFile[[#This Row],[2021/22 Baseline_Source]]*T_DataComboFile[[#This Row],[G&S reporting level indicator]]","v":0},{"$f":"T_DataComboFile[[#This Row],[2022/23 Baseline_Source]]*T_DataComboFile[[#This Row],[G&S reporting level indicator]]","v":0},{"$f":"T_DataComboFile[[#This Row],[2023/24 Baseline_Source]]*T_DataComboFile[[#This Row],[G&S reporting level indicator]]","v":0},null,null,null,null,null,null,{"$f":"T_DataComboFile[[#This Row],[2021/22 Baseline]]+T_DataComboFile[[#This Row],[2021/22 Reduction]]+T_DataComboFile[[#This Row],[2021/22 Increase]]","v":0},{"$f":"T_DataComboFile[[#This Row],[2022/23 Baseline]]+T_DataComboFile[[#This Row],[2022/23 Reduction]]+T_DataComboFile[[#This Row],[2022/23 Increase]]","v":0},{"$f":"T_DataComboFile[[#This Row],[2023/24 Baseline]]+T_DataComboFile[[#This Row],[2023/24 Reduction]]+T_DataComboFile[[#This Row],[2023/24 Increase]]","v":0}]
[null,null,"2021_22","ENE2020",36,2,1,null,70487,36,2,1,null,"070487","36|02|01",1,1,2,30,30,"01|01|02|30|30","National","Small Business Development","Sector Policy and Research","Research",null,"Current","Current payments","Goods and services","Inventory: Other supplies","Inventory: Other supplies",null,null,null,0,0,0,0,0,0,0,0,0,0,0,0,0,0,null,{"$f":"IF(T_DataComboFile[[#This Row],[G&S reporting level indicator]]=1,$AX$16,\"Not applicable\")","v":"Not applicable"},{"$f":"IF(AND($AX$16=\"Level 3\",T_DataComboFile[[#This Row],[Econ3]] = \"Goods and services\"),IF(T_DataComboFile[[#This Row],[Econ4]] = T_DataComboFile[[#This Row],[Econ3]],1,0),IF(AND($AX$16=\"Level 4\",T_DataComboFile[[#This Row],[Econ4]] = \"Goods and services\"),0,1))","v":0},{"$f":"T_DataComboFile[[#This Row],[2016/17_Source]]*T_DataComboFile[[#This Row],[G&S reporting level indicator]]","v":0},{"$f":"T_DataComboFile[[#This Row],[2017/18_Source]]*T_DataComboFile[[#This Row],[G&S reporting level indicator]]","v":0},{"$f":"T_DataComboFile[[#This Row],[2018/19_Source]]*T_DataComboFile[[#This Row],[G&S reporting level indicator]]","v":0},{"$f":"T_DataComboFile[[#This Row],[2019/20 Main appropriation_Source]]*T_DataComboFile[[#This Row],[G&S reporting level indicator]]","v":0},{"$f":"T_DataComboFile[[#This Row],[2019/20 Adjusted appropriation_Source]]*T_DataComboFile[[#This Row],[G&S reporting level indicator]]","v":0},{"$f":"T_DataComboFile[[#This Row],[2019/20 Revised estimate_Source]]*T_DataComboFile[[#This Row],[G&S reporting level indicator]]","v":0},{"$f":"T_DataComboFile[[#This Row],[2019/20 Preliminary outcome_Source]]*T_DataComboFile[[#This Row],[G&S reporting level indicator]]","v":0},{"$f":"T_DataComboFile[[#This Row],[2020/21 Original_Source]]*T_DataComboFile[[#This Row],[G&S reporting level indicator]]","v":0},{"$f":"T_DataComboFile[[#This Row],[2020/21 SAB_Source]]*T_DataComboFile[[#This Row],[G&S reporting level indicator]]","v":0},{"$f":"T_DataComboFile[[#This Row],[2020/21 Baseline_Source]]*T_DataComboFile[[#This Row],[G&S reporting level indicator]]","v":0},{"$f":"T_DataComboFile[[#This Row],[2021/22 Baseline_Source]]*T_DataComboFile[[#This Row],[G&S reporting level indicator]]","v":0},{"$f":"T_DataComboFile[[#This Row],[2022/23 Baseline_Source]]*T_DataComboFile[[#This Row],[G&S reporting level indicator]]","v":0},{"$f":"T_DataComboFile[[#This Row],[2023/24 Baseline_Source]]*T_DataComboFile[[#This Row],[G&S reporting level indicator]]","v":0},null,null,null,null,null,null,{"$f":"T_DataComboFile[[#This Row],[2021/22 Baseline]]+T_DataComboFile[[#This Row],[2021/22 Reduction]]+T_DataComboFile[[#This Row],[2021/22 Increase]]","v":0},{"$f":"T_DataComboFile[[#This Row],[2022/23 Baseline]]+T_DataComboFile[[#This Row],[2022/23 Reduction]]+T_DataComboFile[[#This Row],[2022/23 Increase]]","v":0},{"$f":"T_DataComboFile[[#This Row],[2023/24 Baseline]]+T_DataComboFile[[#This Row],[2023/24 Reduction]]+T_DataComboFile[[#This Row],[2023/24 Increase]]","v":0}]
["NAT|Non-transfer item","36|Consumable supplies","2021_22","ENE2020",36,2,1,17290,70488,36,2,1,17290,"070488","36|02|01",1,1,2,31,31,"01|01|02|31|31","National","Small Business Development","Sector Policy and Research","Research","Non-transfer item","Current","Current payments","Goods and services","Consumable supplies","Consumable supplies","Economic development","Industrialisation and exports","NAT",1,1,0,0,0,0,0,0,0,0,0,0,0,1,null,{"$f":"IF(T_DataComboFile[[#This Row],[G&S reporting level indicator]]=1,$AX$16,\"Not applicable\")","v":"Not applicable"},{"$f":"IF(AND($AX$16=\"Level 3\",T_DataComboFile[[#This Row],[Econ3]] = \"Goods and services\"),IF(T_DataComboFile[[#This Row],[Econ4]] = T_DataComboFile[[#This Row],[Econ3]],1,0),IF(AND($AX$16=\"Level 4\",T_DataComboFile[[#This Row],[Econ4]] = \"Goods and services\"),0,1))","v":0},{"$f":"T_DataComboFile[[#This Row],[2016/17_Source]]*T_DataComboFile[[#This Row],[G&S reporting level indicator]]","v":0},{"$f":"T_DataComboFile[[#This Row],[2017/18_Source]]*T_DataComboFile[[#This Row],[G&S reporting level indicator]]","v":0},{"$f":"T_DataComboFile[[#This Row],[2018/19_Source]]*T_DataComboFile[[#This Row],[G&S reporting level indicator]]","v":0},{"$f":"T_DataComboFile[[#This Row],[2019/20 Main appropriation_Source]]*T_DataComboFile[[#This Row],[G&S reporting level indicator]]","v":0},{"$f":"T_DataComboFile[[#This Row],[2019/20 Adjusted appropriation_Source]]*T_DataComboFile[[#This Row],[G&S reporting level indicator]]","v":0},{"$f":"T_DataComboFile[[#This Row],[2019/20 Revised estimate_Source]]*T_DataComboFile[[#This Row],[G&S reporting level indicator]]","v":0},{"$f":"T_DataComboFile[[#This Row],[2019/20 Preliminary outcome_Source]]*T_DataComboFile[[#This Row],[G&S reporting level indicator]]","v":0},{"$f":"T_DataComboFile[[#This Row],[2020/21 Original_Source]]*T_DataComboFile[[#This Row],[G&S reporting level indicator]]","v":0},{"$f":"T_DataComboFile[[#This Row],[2020/21 SAB_Source]]*T_DataComboFile[[#This Row],[G&S reporting level indicator]]","v":0},{"$f":"T_DataComboFile[[#This Row],[2020/21 Baseline_Source]]*T_DataComboFile[[#This Row],[G&S reporting level indicator]]","v":0},{"$f":"T_DataComboFile[[#This Row],[2021/22 Baseline_Source]]*T_DataComboFile[[#This Row],[G&S reporting level indicator]]","v":0},{"$f":"T_DataComboFile[[#This Row],[2022/23 Baseline_Source]]*T_DataComboFile[[#This Row],[G&S reporting level indicator]]","v":0},{"$f":"T_DataComboFile[[#This Row],[2023/24 Baseline_Source]]*T_DataComboFile[[#This Row],[G&S reporting level indicator]]","v":0},null,null,null,null,null,null,{"$f":"T_DataComboFile[[#This Row],[2021/22 Baseline]]+T_DataComboFile[[#This Row],[2021/22 Reduction]]+T_DataComboFile[[#This Row],[2021/22 Increase]]","v":0},{"$f":"T_DataComboFile[[#This Row],[2022/23 Baseline]]+T_DataComboFile[[#This Row],[2022/23 Reduction]]+T_DataComboFile[[#This Row],[2022/23 Increase]]","v":0},{"$f":"T_DataComboFile[[#This Row],[2023/24 Baseline]]+T_DataComboFile[[#This Row],[2023/24 Reduction]]+T_DataComboFile[[#This Row],[2023/24 Increase]]","v":0}]
["NAT|Non-transfer item","36|Consumables: Stationery, printing and office supplies","2021_22","ENE2020",36,2,1,17291,70489,36,2,1,17291,"070489","36|02|01",1,1,2,32,32,"01|01|02|32|32","National","Small Business Development","Sector Policy and Research","Research","Non-transfer item","Current","Current payments","Goods and services","Consumables: Stationery, printing and office supplies","Consumables: Stationery, printing and office supplies","Economic development","Industrialisation and exports","NAT",77,5,650,51,46,46,46,12,12,12,12,12,13,1,null,{"$f":"IF(T_DataComboFile[[#This Row],[G&S reporting level indicator]]=1,$AX$16,\"Not applicable\")","v":"Not applicable"},{"$f":"IF(AND($AX$16=\"Level 3\",T_DataComboFile[[#This Row],[Econ3]] = \"Goods and services\"),IF(T_DataComboFile[[#This Row],[Econ4]] = T_DataComboFile[[#This Row],[Econ3]],1,0),IF(AND($AX$16=\"Level 4\",T_DataComboFile[[#This Row],[Econ4]] = \"Goods and services\"),0,1))","v":0},{"$f":"T_DataComboFile[[#This Row],[2016/17_Source]]*T_DataComboFile[[#This Row],[G&S reporting level indicator]]","v":0},{"$f":"T_DataComboFile[[#This Row],[2017/18_Source]]*T_DataComboFile[[#This Row],[G&S reporting level indicator]]","v":0},{"$f":"T_DataComboFile[[#This Row],[2018/19_Source]]*T_DataComboFile[[#This Row],[G&S reporting level indicator]]","v":0},{"$f":"T_DataComboFile[[#This Row],[2019/20 Main appropriation_Source]]*T_DataComboFile[[#This Row],[G&S reporting level indicator]]","v":0},{"$f":"T_DataComboFile[[#This Row],[2019/20 Adjusted appropriation_Source]]*T_DataComboFile[[#This Row],[G&S reporting level indicator]]","v":0},{"$f":"T_DataComboFile[[#This Row],[2019/20 Revised estimate_Source]]*T_DataComboFile[[#This Row],[G&S reporting level indicator]]","v":0},{"$f":"T_DataComboFile[[#This Row],[2019/20 Preliminary outcome_Source]]*T_DataComboFile[[#This Row],[G&S reporting level indicator]]","v":0},{"$f":"T_DataComboFile[[#This Row],[2020/21 Original_Source]]*T_DataComboFile[[#This Row],[G&S reporting level indicator]]","v":0},{"$f":"T_DataComboFile[[#This Row],[2020/21 SAB_Source]]*T_DataComboFile[[#This Row],[G&S reporting level indicator]]","v":0},{"$f":"T_DataComboFile[[#This Row],[2020/21 Baseline_Source]]*T_DataComboFile[[#This Row],[G&S reporting level indicator]]","v":0},{"$f":"T_DataComboFile[[#This Row],[2021/22 Baseline_Source]]*T_DataComboFile[[#This Row],[G&S reporting level indicator]]","v":0},{"$f":"T_DataComboFile[[#This Row],[2022/23 Baseline_Source]]*T_DataComboFile[[#This Row],[G&S reporting level indicator]]","v":0},{"$f":"T_DataComboFile[[#This Row],[2023/24 Baseline_Source]]*T_DataComboFile[[#This Row],[G&S reporting level indicator]]","v":0},null,null,null,null,null,null,{"$f":"T_DataComboFile[[#This Row],[2021/22 Baseline]]+T_DataComboFile[[#This Row],[2021/22 Reduction]]+T_DataComboFile[[#This Row],[2021/22 Increase]]","v":0},{"$f":"T_DataComboFile[[#This Row],[2022/23 Baseline]]+T_DataComboFile[[#This Row],[2022/23 Reduction]]+T_DataComboFile[[#This Row],[2022/23 Increase]]","v":0},{"$f":"T_DataComboFile[[#This Row],[2023/24 Baseline]]+T_DataComboFile[[#This Row],[2023/24 Reduction]]+T_DataComboFile[[#This Row],[2023/24 Increase]]","v":0}]
["NAT|Non-transfer item","36|Operating leases","2021_22","ENE2020",36,2,1,17292,70490,36,2,1,17292,"070490","36|02|01",1,1,2,33,33,"01|01|02|33|33","National","Small Business Development","Sector Policy and Research","Research","Non-transfer item","Current","Current payments","Goods and services","Operating leases","Operating leases","Economic development","Industrialisation and exports","NAT",4,0,0,0,0,0,0,0,0,0,0,0,0,1,null,{"$f":"IF(T_DataComboFile[[#This Row],[G&S reporting level indicator]]=1,$AX$16,\"Not applicable\")","v":"Not applicable"},{"$f":"IF(AND($AX$16=\"Level 3\",T_DataComboFile[[#This Row],[Econ3]] = \"Goods and services\"),IF(T_DataComboFile[[#This Row],[Econ4]] = T_DataComboFile[[#This Row],[Econ3]],1,0),IF(AND($AX$16=\"Level 4\",T_DataComboFile[[#This Row],[Econ4]] = \"Goods and services\"),0,1))","v":0},{"$f":"T_DataComboFile[[#This Row],[2016/17_Source]]*T_DataComboFile[[#This Row],[G&S reporting level indicator]]","v":0},{"$f":"T_DataComboFile[[#This Row],[2017/18_Source]]*T_DataComboFile[[#This Row],[G&S reporting level indicator]]","v":0},{"$f":"T_DataComboFile[[#This Row],[2018/19_Source]]*T_DataComboFile[[#This Row],[G&S reporting level indicator]]","v":0},{"$f":"T_DataComboFile[[#This Row],[2019/20 Main appropriation_Source]]*T_DataComboFile[[#This Row],[G&S reporting level indicator]]","v":0},{"$f":"T_DataComboFile[[#This Row],[2019/20 Adjusted appropriation_Source]]*T_DataComboFile[[#This Row],[G&S reporting level indicator]]","v":0},{"$f":"T_DataComboFile[[#This Row],[2019/20 Revised estimate_Source]]*T_DataComboFile[[#This Row],[G&S reporting level indicator]]","v":0},{"$f":"T_DataComboFile[[#This Row],[2019/20 Preliminary outcome_Source]]*T_DataComboFile[[#This Row],[G&S reporting level indicator]]","v":0},{"$f":"T_DataComboFile[[#This Row],[2020/21 Original_Source]]*T_DataComboFile[[#This Row],[G&S reporting level indicator]]","v":0},{"$f":"T_DataComboFile[[#This Row],[2020/21 SAB_Source]]*T_DataComboFile[[#This Row],[G&S reporting level indicator]]","v":0},{"$f":"T_DataComboFile[[#This Row],[2020/21 Baseline_Source]]*T_DataComboFile[[#This Row],[G&S reporting level indicator]]","v":0},{"$f":"T_DataComboFile[[#This Row],[2021/22 Baseline_Source]]*T_DataComboFile[[#This Row],[G&S reporting level indicator]]","v":0},{"$f":"T_DataComboFile[[#This Row],[2022/23 Baseline_Source]]*T_DataComboFile[[#This Row],[G&S reporting level indicator]]","v":0},{"$f":"T_DataComboFile[[#This Row],[2023/24 Baseline_Source]]*T_DataComboFile[[#This Row],[G&S reporting level indicator]]","v":0},null,null,null,null,null,null,{"$f":"T_DataComboFile[[#This Row],[2021/22 Baseline]]+T_DataComboFile[[#This Row],[2021/22 Reduction]]+T_DataComboFile[[#This Row],[2021/22 Increase]]","v":0},{"$f":"T_DataComboFile[[#This Row],[2022/23 Baseline]]+T_DataComboFile[[#This Row],[2022/23 Reduction]]+T_DataComboFile[[#This Row],[2022/23 Increase]]","v":0},{"$f":"T_DataComboFile[[#This Row],[2023/24 Baseline]]+T_DataComboFile[[#This Row],[2023/24 Reduction]]+T_DataComboFile[[#This Row],[2023/24 Increase]]","v":0}]
[null,null,"2021_22","ENE2020",36,2,1,null,70491,36,2,1,null,"070491","36|02|01",1,1,2,34,34,"01|01|02|34|34","National","Small Business Development","Sector Policy and Research","Research",null,"Current","Current payments","Goods and services","Rental and hiring","Rental and hiring",null,null,null,0,0,0,0,0,0,0,0,0,0,0,0,0,0,null,{"$f":"IF(T_DataComboFile[[#This Row],[G&S reporting level indicator]]=1,$AX$16,\"Not applicable\")","v":"Not applicable"},{"$f":"IF(AND($AX$16=\"Level 3\",T_DataComboFile[[#This Row],[Econ3]] = \"Goods and services\"),IF(T_DataComboFile[[#This Row],[Econ4]] = T_DataComboFile[[#This Row],[Econ3]],1,0),IF(AND($AX$16=\"Level 4\",T_DataComboFile[[#This Row],[Econ4]] = \"Goods and services\"),0,1))","v":0},{"$f":"T_DataComboFile[[#This Row],[2016/17_Source]]*T_DataComboFile[[#This Row],[G&S reporting level indicator]]","v":0},{"$f":"T_DataComboFile[[#This Row],[2017/18_Source]]*T_DataComboFile[[#This Row],[G&S reporting level indicator]]","v":0},{"$f":"T_DataComboFile[[#This Row],[2018/19_Source]]*T_DataComboFile[[#This Row],[G&S reporting level indicator]]","v":0},{"$f":"T_DataComboFile[[#This Row],[2019/20 Main appropriation_Source]]*T_DataComboFile[[#This Row],[G&S reporting level indicator]]","v":0},{"$f":"T_DataComboFile[[#This Row],[2019/20 Adjusted appropriation_Source]]*T_DataComboFile[[#This Row],[G&S reporting level indicator]]","v":0},{"$f":"T_DataComboFile[[#This Row],[2019/20 Revised estimate_Source]]*T_DataComboFile[[#This Row],[G&S reporting level indicator]]","v":0},{"$f":"T_DataComboFile[[#This Row],[2019/20 Preliminary outcome_Source]]*T_DataComboFile[[#This Row],[G&S reporting level indicator]]","v":0},{"$f":"T_DataComboFile[[#This Row],[2020/21 Original_Source]]*T_DataComboFile[[#This Row],[G&S reporting level indicator]]","v":0},{"$f":"T_DataComboFile[[#This Row],[2020/21 SAB_Source]]*T_DataComboFile[[#This Row],[G&S reporting level indicator]]","v":0},{"$f":"T_DataComboFile[[#This Row],[2020/21 Baseline_Source]]*T_DataComboFile[[#This Row],[G&S reporting level indicator]]","v":0},{"$f":"T_DataComboFile[[#This Row],[2021/22 Baseline_Source]]*T_DataComboFile[[#This Row],[G&S reporting level indicator]]","v":0},{"$f":"T_DataComboFile[[#This Row],[2022/23 Baseline_Source]]*T_DataComboFile[[#This Row],[G&S reporting level indicator]]","v":0},{"$f":"T_DataComboFile[[#This Row],[2023/24 Baseline_Source]]*T_DataComboFile[[#This Row],[G&S reporting level indicator]]","v":0},null,null,null,null,null,null,{"$f":"T_DataComboFile[[#This Row],[2021/22 Baseline]]+T_DataComboFile[[#This Row],[2021/22 Reduction]]+T_DataComboFile[[#This Row],[2021/22 Increase]]","v":0},{"$f":"T_DataComboFile[[#This Row],[2022/23 Baseline]]+T_DataComboFile[[#This Row],[2022/23 Reduction]]+T_DataComboFile[[#This Row],[2022/23 Increase]]","v":0},{"$f":"T_DataComboFile[[#This Row],[2023/24 Baseline]]+T_DataComboFile[[#This Row],[2023/24 Reduction]]+T_DataComboFile[[#This Row],[2023/24 Increase]]","v":0}]
[null,null,"2021_22","ENE2020",36,2,1,null,70492,36,2,1,null,"070492","36|02|01",1,1,2,35,35,"01|01|02|35|35","National","Small Business Development","Sector Policy and Research","Research",null,"Current","Current payments","Goods and services","Property payments","Property payments",null,null,null,0,0,0,0,0,0,0,0,0,0,0,0,0,0,null,{"$f":"IF(T_DataComboFile[[#This Row],[G&S reporting level indicator]]=1,$AX$16,\"Not applicable\")","v":"Not applicable"},{"$f":"IF(AND($AX$16=\"Level 3\",T_DataComboFile[[#This Row],[Econ3]] = \"Goods and services\"),IF(T_DataComboFile[[#This Row],[Econ4]] = T_DataComboFile[[#This Row],[Econ3]],1,0),IF(AND($AX$16=\"Level 4\",T_DataComboFile[[#This Row],[Econ4]] = \"Goods and services\"),0,1))","v":0},{"$f":"T_DataComboFile[[#This Row],[2016/17_Source]]*T_DataComboFile[[#This Row],[G&S reporting level indicator]]","v":0},{"$f":"T_DataComboFile[[#This Row],[2017/18_Source]]*T_DataComboFile[[#This Row],[G&S reporting level indicator]]","v":0},{"$f":"T_DataComboFile[[#This Row],[2018/19_Source]]*T_DataComboFile[[#This Row],[G&S reporting level indicator]]","v":0},{"$f":"T_DataComboFile[[#This Row],[2019/20 Main appropriation_Source]]*T_DataComboFile[[#This Row],[G&S reporting level indicator]]","v":0},{"$f":"T_DataComboFile[[#This Row],[2019/20 Adjusted appropriation_Source]]*T_DataComboFile[[#This Row],[G&S reporting level indicator]]","v":0},{"$f":"T_DataComboFile[[#This Row],[2019/20 Revised estimate_Source]]*T_DataComboFile[[#This Row],[G&S reporting level indicator]]","v":0},{"$f":"T_DataComboFile[[#This Row],[2019/20 Preliminary outcome_Source]]*T_DataComboFile[[#This Row],[G&S reporting level indicator]]","v":0},{"$f":"T_DataComboFile[[#This Row],[2020/21 Original_Source]]*T_DataComboFile[[#This Row],[G&S reporting level indicator]]","v":0},{"$f":"T_DataComboFile[[#This Row],[2020/21 SAB_Source]]*T_DataComboFile[[#This Row],[G&S reporting level indicator]]","v":0},{"$f":"T_DataComboFile[[#This Row],[2020/21 Baseline_Source]]*T_DataComboFile[[#This Row],[G&S reporting level indicator]]","v":0},{"$f":"T_DataComboFile[[#This Row],[2021/22 Baseline_Source]]*T_DataComboFile[[#This Row],[G&S reporting level indicator]]","v":0},{"$f":"T_DataComboFile[[#This Row],[2022/23 Baseline_Source]]*T_DataComboFile[[#This Row],[G&S reporting level indicator]]","v":0},{"$f":"T_DataComboFile[[#This Row],[2023/24 Baseline_Source]]*T_DataComboFile[[#This Row],[G&S reporting level indicator]]","v":0},null,null,null,null,null,null,{"$f":"T_DataComboFile[[#This Row],[2021/22 Baseline]]+T_DataComboFile[[#This Row],[2021/22 Reduction]]+T_DataComboFile[[#This Row],[2021/22 Increase]]","v":0},{"$f":"T_DataComboFile[[#This Row],[2022/23 Baseline]]+T_DataComboFile[[#This Row],[2022/23 Reduction]]+T_DataComboFile[[#This Row],[2022/23 Increase]]","v":0},{"$f":"T_DataComboFile[[#This Row],[2023/24 Baseline]]+T_DataComboFile[[#This Row],[2023/24 Reduction]]+T_DataComboFile[[#This Row],[2023/24 Increase]]","v":0}]
[null,null,"2021_22","ENE2020",36,2,1,null,70493,36,2,1,null,"070493","36|02|01",1,1,2,36,36,"01|01|02|36|36","National","Small Business Development","Sector Policy and Research","Research",null,"Current","Current payments","Goods and services","Transport provided: Departmental activity","Transport provided: Departmental activity",null,null,null,0,0,0,0,0,0,0,0,0,0,0,0,0,0,null,{"$f":"IF(T_DataComboFile[[#This Row],[G&S reporting level indicator]]=1,$AX$16,\"Not applicable\")","v":"Not applicable"},{"$f":"IF(AND($AX$16=\"Level 3\",T_DataComboFile[[#This Row],[Econ3]] = \"Goods and services\"),IF(T_DataComboFile[[#This Row],[Econ4]] = T_DataComboFile[[#This Row],[Econ3]],1,0),IF(AND($AX$16=\"Level 4\",T_DataComboFile[[#This Row],[Econ4]] = \"Goods and services\"),0,1))","v":0},{"$f":"T_DataComboFile[[#This Row],[2016/17_Source]]*T_DataComboFile[[#This Row],[G&S reporting level indicator]]","v":0},{"$f":"T_DataComboFile[[#This Row],[2017/18_Source]]*T_DataComboFile[[#This Row],[G&S reporting level indicator]]","v":0},{"$f":"T_DataComboFile[[#This Row],[2018/19_Source]]*T_DataComboFile[[#This Row],[G&S reporting level indicator]]","v":0},{"$f":"T_DataComboFile[[#This Row],[2019/20 Main appropriation_Source]]*T_DataComboFile[[#This Row],[G&S reporting level indicator]]","v":0},{"$f":"T_DataComboFile[[#This Row],[2019/20 Adjusted appropriation_Source]]*T_DataComboFile[[#This Row],[G&S reporting level indicator]]","v":0},{"$f":"T_DataComboFile[[#This Row],[2019/20 Revised estimate_Source]]*T_DataComboFile[[#This Row],[G&S reporting level indicator]]","v":0},{"$f":"T_DataComboFile[[#This Row],[2019/20 Preliminary outcome_Source]]*T_DataComboFile[[#This Row],[G&S reporting level indicator]]","v":0},{"$f":"T_DataComboFile[[#This Row],[2020/21 Original_Source]]*T_DataComboFile[[#This Row],[G&S reporting level indicator]]","v":0},{"$f":"T_DataComboFile[[#This Row],[2020/21 SAB_Source]]*T_DataComboFile[[#This Row],[G&S reporting level indicator]]","v":0},{"$f":"T_DataComboFile[[#This Row],[2020/21 Baseline_Source]]*T_DataComboFile[[#This Row],[G&S reporting level indicator]]","v":0},{"$f":"T_DataComboFile[[#This Row],[2021/22 Baseline_Source]]*T_DataComboFile[[#This Row],[G&S reporting level indicator]]","v":0},{"$f":"T_DataComboFile[[#This Row],[2022/23 Baseline_Source]]*T_DataComboFile[[#This Row],[G&S reporting level indicator]]","v":0},{"$f":"T_DataComboFile[[#This Row],[2023/24 Baseline_Source]]*T_DataComboFile[[#This Row],[G&S reporting level indicator]]","v":0},null,null,null,null,null,null,{"$f":"T_DataComboFile[[#This Row],[2021/22 Baseline]]+T_DataComboFile[[#This Row],[2021/22 Reduction]]+T_DataComboFile[[#This Row],[2021/22 Increase]]","v":0},{"$f":"T_DataComboFile[[#This Row],[2022/23 Baseline]]+T_DataComboFile[[#This Row],[2022/23 Reduction]]+T_DataComboFile[[#This Row],[2022/23 Increase]]","v":0},{"$f":"T_DataComboFile[[#This Row],[2023/24 Baseline]]+T_DataComboFile[[#This Row],[2023/24 Reduction]]+T_DataComboFile[[#This Row],[2023/24 Increase]]","v":0}]
["NAT|Non-transfer item","36|Travel and subsistence","2021_22","ENE2020",36,2,1,17293,70494,36,2,1,17293,"070494","36|02|01",1,1,2,37,37,"01|01|02|37|37","National","Small Business Development","Sector Policy and Research","Research","Non-transfer item","Current","Current payments","Goods and services","Travel and subsistence","Travel and subsistence","Economic development","Industrialisation and exports","NAT",947,719,435,737,917,917,917,840,240,840,982,1226,1280,1,null,{"$f":"IF(T_DataComboFile[[#This Row],[G&S reporting level indicator]]=1,$AX$16,\"Not applicable\")","v":"Not applicable"},{"$f":"IF(AND($AX$16=\"Level 3\",T_DataComboFile[[#This Row],[Econ3]] = \"Goods and services\"),IF(T_DataComboFile[[#This Row],[Econ4]] = T_DataComboFile[[#This Row],[Econ3]],1,0),IF(AND($AX$16=\"Level 4\",T_DataComboFile[[#This Row],[Econ4]] = \"Goods and services\"),0,1))","v":0},{"$f":"T_DataComboFile[[#This Row],[2016/17_Source]]*T_DataComboFile[[#This Row],[G&S reporting level indicator]]","v":0},{"$f":"T_DataComboFile[[#This Row],[2017/18_Source]]*T_DataComboFile[[#This Row],[G&S reporting level indicator]]","v":0},{"$f":"T_DataComboFile[[#This Row],[2018/19_Source]]*T_DataComboFile[[#This Row],[G&S reporting level indicator]]","v":0},{"$f":"T_DataComboFile[[#This Row],[2019/20 Main appropriation_Source]]*T_DataComboFile[[#This Row],[G&S reporting level indicator]]","v":0},{"$f":"T_DataComboFile[[#This Row],[2019/20 Adjusted appropriation_Source]]*T_DataComboFile[[#This Row],[G&S reporting level indicator]]","v":0},{"$f":"T_DataComboFile[[#This Row],[2019/20 Revised estimate_Source]]*T_DataComboFile[[#This Row],[G&S reporting level indicator]]","v":0},{"$f":"T_DataComboFile[[#This Row],[2019/20 Preliminary outcome_Source]]*T_DataComboFile[[#This Row],[G&S reporting level indicator]]","v":0},{"$f":"T_DataComboFile[[#This Row],[2020/21 Original_Source]]*T_DataComboFile[[#This Row],[G&S reporting level indicator]]","v":0},{"$f":"T_DataComboFile[[#This Row],[2020/21 SAB_Source]]*T_DataComboFile[[#This Row],[G&S reporting level indicator]]","v":0},{"$f":"T_DataComboFile[[#This Row],[2020/21 Baseline_Source]]*T_DataComboFile[[#This Row],[G&S reporting level indicator]]","v":0},{"$f":"T_DataComboFile[[#This Row],[2021/22 Baseline_Source]]*T_DataComboFile[[#This Row],[G&S reporting level indicator]]","v":0},{"$f":"T_DataComboFile[[#This Row],[2022/23 Baseline_Source]]*T_DataComboFile[[#This Row],[G&S reporting level indicator]]","v":0},{"$f":"T_DataComboFile[[#This Row],[2023/24 Baseline_Source]]*T_DataComboFile[[#This Row],[G&S reporting level indicator]]","v":0},null,null,null,null,null,null,{"$f":"T_DataComboFile[[#This Row],[2021/22 Baseline]]+T_DataComboFile[[#This Row],[2021/22 Reduction]]+T_DataComboFile[[#This Row],[2021/22 Increase]]","v":0},{"$f":"T_DataComboFile[[#This Row],[2022/23 Baseline]]+T_DataComboFile[[#This Row],[2022/23 Reduction]]+T_DataComboFile[[#This Row],[2022/23 Increase]]","v":0},{"$f":"T_DataComboFile[[#This Row],[2023/24 Baseline]]+T_DataComboFile[[#This Row],[2023/24 Reduction]]+T_DataComboFile[[#This Row],[2023/24 Increase]]","v":0}]
["NAT|Non-transfer item","36|Training and development","2021_22","ENE2020",36,2,1,17294,70495,36,2,1,17294,"070495","36|02|01",1,1,2,38,38,"01|01|02|38|38","National","Small Business Development","Sector Policy and Research","Research","Non-transfer item","Current","Current payments","Goods and services","Training and development","Training and development","Economic development","Industrialisation and exports","NAT",88,0,0,0,0,0,0,0,0,0,0,0,0,1,null,{"$f":"IF(T_DataComboFile[[#This Row],[G&S reporting level indicator]]=1,$AX$16,\"Not applicable\")","v":"Not applicable"},{"$f":"IF(AND($AX$16=\"Level 3\",T_DataComboFile[[#This Row],[Econ3]] = \"Goods and services\"),IF(T_DataComboFile[[#This Row],[Econ4]] = T_DataComboFile[[#This Row],[Econ3]],1,0),IF(AND($AX$16=\"Level 4\",T_DataComboFile[[#This Row],[Econ4]] = \"Goods and services\"),0,1))","v":0},{"$f":"T_DataComboFile[[#This Row],[2016/17_Source]]*T_DataComboFile[[#This Row],[G&S reporting level indicator]]","v":0},{"$f":"T_DataComboFile[[#This Row],[2017/18_Source]]*T_DataComboFile[[#This Row],[G&S reporting level indicator]]","v":0},{"$f":"T_DataComboFile[[#This Row],[2018/19_Source]]*T_DataComboFile[[#This Row],[G&S reporting level indicator]]","v":0},{"$f":"T_DataComboFile[[#This Row],[2019/20 Main appropriation_Source]]*T_DataComboFile[[#This Row],[G&S reporting level indicator]]","v":0},{"$f":"T_DataComboFile[[#This Row],[2019/20 Adjusted appropriation_Source]]*T_DataComboFile[[#This Row],[G&S reporting level indicator]]","v":0},{"$f":"T_DataComboFile[[#This Row],[2019/20 Revised estimate_Source]]*T_DataComboFile[[#This Row],[G&S reporting level indicator]]","v":0},{"$f":"T_DataComboFile[[#This Row],[2019/20 Preliminary outcome_Source]]*T_DataComboFile[[#This Row],[G&S reporting level indicator]]","v":0},{"$f":"T_DataComboFile[[#This Row],[2020/21 Original_Source]]*T_DataComboFile[[#This Row],[G&S reporting level indicator]]","v":0},{"$f":"T_DataComboFile[[#This Row],[2020/21 SAB_Source]]*T_DataComboFile[[#This Row],[G&S reporting level indicator]]","v":0},{"$f":"T_DataComboFile[[#This Row],[2020/21 Baseline_Source]]*T_DataComboFile[[#This Row],[G&S reporting level indicator]]","v":0},{"$f":"T_DataComboFile[[#This Row],[2021/22 Baseline_Source]]*T_DataComboFile[[#This Row],[G&S reporting level indicator]]","v":0},{"$f":"T_DataComboFile[[#This Row],[2022/23 Baseline_Source]]*T_DataComboFile[[#This Row],[G&S reporting level indicator]]","v":0},{"$f":"T_DataComboFile[[#This Row],[2023/24 Baseline_Source]]*T_DataComboFile[[#This Row],[G&S reporting level indicator]]","v":0},null,null,null,null,null,null,{"$f":"T_DataComboFile[[#This Row],[2021/22 Baseline]]+T_DataComboFile[[#This Row],[2021/22 Reduction]]+T_DataComboFile[[#This Row],[2021/22 Increase]]","v":0},{"$f":"T_DataComboFile[[#This Row],[2022/23 Baseline]]+T_DataComboFile[[#This Row],[2022/23 Reduction]]+T_DataComboFile[[#This Row],[2022/23 Increase]]","v":0},{"$f":"T_DataComboFile[[#This Row],[2023/24 Baseline]]+T_DataComboFile[[#This Row],[2023/24 Reduction]]+T_DataComboFile[[#This Row],[2023/24 Increase]]","v":0}]
["NAT|Non-transfer item","36|Operating payments","2021_22","ENE2020",36,2,1,17295,70496,36,2,1,17295,"070496","36|02|01",1,1,2,39,39,"01|01|02|39|39","National","Small Business Development","Sector Policy and Research","Research","Non-transfer item","Current","Current payments","Goods and services","Operating payments","Operating payments","Economic development","Industrialisation and exports","NAT",0,3,0,800,800,800,800,0,0,0,0,0,0,1,null,{"$f":"IF(T_DataComboFile[[#This Row],[G&S reporting level indicator]]=1,$AX$16,\"Not applicable\")","v":"Not applicable"},{"$f":"IF(AND($AX$16=\"Level 3\",T_DataComboFile[[#This Row],[Econ3]] = \"Goods and services\"),IF(T_DataComboFile[[#This Row],[Econ4]] = T_DataComboFile[[#This Row],[Econ3]],1,0),IF(AND($AX$16=\"Level 4\",T_DataComboFile[[#This Row],[Econ4]] = \"Goods and services\"),0,1))","v":0},{"$f":"T_DataComboFile[[#This Row],[2016/17_Source]]*T_DataComboFile[[#This Row],[G&S reporting level indicator]]","v":0},{"$f":"T_DataComboFile[[#This Row],[2017/18_Source]]*T_DataComboFile[[#This Row],[G&S reporting level indicator]]","v":0},{"$f":"T_DataComboFile[[#This Row],[2018/19_Source]]*T_DataComboFile[[#This Row],[G&S reporting level indicator]]","v":0},{"$f":"T_DataComboFile[[#This Row],[2019/20 Main appropriation_Source]]*T_DataComboFile[[#This Row],[G&S reporting level indicator]]","v":0},{"$f":"T_DataComboFile[[#This Row],[2019/20 Adjusted appropriation_Source]]*T_DataComboFile[[#This Row],[G&S reporting level indicator]]","v":0},{"$f":"T_DataComboFile[[#This Row],[2019/20 Revised estimate_Source]]*T_DataComboFile[[#This Row],[G&S reporting level indicator]]","v":0},{"$f":"T_DataComboFile[[#This Row],[2019/20 Preliminary outcome_Source]]*T_DataComboFile[[#This Row],[G&S reporting level indicator]]","v":0},{"$f":"T_DataComboFile[[#This Row],[2020/21 Original_Source]]*T_DataComboFile[[#This Row],[G&S reporting level indicator]]","v":0},{"$f":"T_DataComboFile[[#This Row],[2020/21 SAB_Source]]*T_DataComboFile[[#This Row],[G&S reporting level indicator]]","v":0},{"$f":"T_DataComboFile[[#This Row],[2020/21 Baseline_Source]]*T_DataComboFile[[#This Row],[G&S reporting level indicator]]","v":0},{"$f":"T_DataComboFile[[#This Row],[2021/22 Baseline_Source]]*T_DataComboFile[[#This Row],[G&S reporting level indicator]]","v":0},{"$f":"T_DataComboFile[[#This Row],[2022/23 Baseline_Source]]*T_DataComboFile[[#This Row],[G&S reporting level indicator]]","v":0},{"$f":"T_DataComboFile[[#This Row],[2023/24 Baseline_Source]]*T_DataComboFile[[#This Row],[G&S reporting level indicator]]","v":0},null,null,null,null,null,null,{"$f":"T_DataComboFile[[#This Row],[2021/22 Baseline]]+T_DataComboFile[[#This Row],[2021/22 Reduction]]+T_DataComboFile[[#This Row],[2021/22 Increase]]","v":0},{"$f":"T_DataComboFile[[#This Row],[2022/23 Baseline]]+T_DataComboFile[[#This Row],[2022/23 Reduction]]+T_DataComboFile[[#This Row],[2022/23 Increase]]","v":0},{"$f":"T_DataComboFile[[#This Row],[2023/24 Baseline]]+T_DataComboFile[[#This Row],[2023/24 Reduction]]+T_DataComboFile[[#This Row],[2023/24 Increase]]","v":0}]
["NAT|Non-transfer item","36|Venues and facilities","2021_22","ENE2020",36,2,1,17296,70497,36,2,1,17296,"070497","36|02|01",1,1,2,40,40,"01|01|02|40|40","National","Small Business Development","Sector Policy and Research","Research","Non-transfer item","Current","Current payments","Goods and services","Venues and facilities","Venues and facilities","Economic development","Industrialisation and exports","NAT",200,0,0,0,0,0,0,0,0,0,0,0,0,1,null,{"$f":"IF(T_DataComboFile[[#This Row],[G&S reporting level indicator]]=1,$AX$16,\"Not applicable\")","v":"Not applicable"},{"$f":"IF(AND($AX$16=\"Level 3\",T_DataComboFile[[#This Row],[Econ3]] = \"Goods and services\"),IF(T_DataComboFile[[#This Row],[Econ4]] = T_DataComboFile[[#This Row],[Econ3]],1,0),IF(AND($AX$16=\"Level 4\",T_DataComboFile[[#This Row],[Econ4]] = \"Goods and services\"),0,1))","v":0},{"$f":"T_DataComboFile[[#This Row],[2016/17_Source]]*T_DataComboFile[[#This Row],[G&S reporting level indicator]]","v":0},{"$f":"T_DataComboFile[[#This Row],[2017/18_Source]]*T_DataComboFile[[#This Row],[G&S reporting level indicator]]","v":0},{"$f":"T_DataComboFile[[#This Row],[2018/19_Source]]*T_DataComboFile[[#This Row],[G&S reporting level indicator]]","v":0},{"$f":"T_DataComboFile[[#This Row],[2019/20 Main appropriation_Source]]*T_DataComboFile[[#This Row],[G&S reporting level indicator]]","v":0},{"$f":"T_DataComboFile[[#This Row],[2019/20 Adjusted appropriation_Source]]*T_DataComboFile[[#This Row],[G&S reporting level indicator]]","v":0},{"$f":"T_DataComboFile[[#This Row],[2019/20 Revised estimate_Source]]*T_DataComboFile[[#This Row],[G&S reporting level indicator]]","v":0},{"$f":"T_DataComboFile[[#This Row],[2019/20 Preliminary outcome_Source]]*T_DataComboFile[[#This Row],[G&S reporting level indicator]]","v":0},{"$f":"T_DataComboFile[[#This Row],[2020/21 Original_Source]]*T_DataComboFile[[#This Row],[G&S reporting level indicator]]","v":0},{"$f":"T_DataComboFile[[#This Row],[2020/21 SAB_Source]]*T_DataComboFile[[#This Row],[G&S reporting level indicator]]","v":0},{"$f":"T_DataComboFile[[#This Row],[2020/21 Baseline_Source]]*T_DataComboFile[[#This Row],[G&S reporting level indicator]]","v":0},{"$f":"T_DataComboFile[[#This Row],[2021/22 Baseline_Source]]*T_DataComboFile[[#This Row],[G&S reporting level indicator]]","v":0},{"$f":"T_DataComboFile[[#This Row],[2022/23 Baseline_Source]]*T_DataComboFile[[#This Row],[G&S reporting level indicator]]","v":0},{"$f":"T_DataComboFile[[#This Row],[2023/24 Baseline_Source]]*T_DataComboFile[[#This Row],[G&S reporting level indicator]]","v":0},null,null,null,null,null,null,{"$f":"T_DataComboFile[[#This Row],[2021/22 Baseline]]+T_DataComboFile[[#This Row],[2021/22 Reduction]]+T_DataComboFile[[#This Row],[2021/22 Increase]]","v":0},{"$f":"T_DataComboFile[[#This Row],[2022/23 Baseline]]+T_DataComboFile[[#This Row],[2022/23 Reduction]]+T_DataComboFile[[#This Row],[2022/23 Increase]]","v":0},{"$f":"T_DataComboFile[[#This Row],[2023/24 Baseline]]+T_DataComboFile[[#This Row],[2023/24 Reduction]]+T_DataComboFile[[#This Row],[2023/24 Increase]]","v":0}]
[null,null,"2021_22","ENE2020",36,2,1,null,70498,36,2,1,null,"070498","36|02|01",1,1,3,41,41,"01|01|03|41|41","National","Small Business Development","Sector Policy and Research","Research",null,"Current","Current payments","Interest and rent on land","Interest (Incl. interest on unitary payments (PPP))","Interest (Incl. interest on unitary payments (PPP))",null,null,null,0,0,0,0,0,0,0,0,0,0,0,0,0,0,null,{"$f":"IF(T_DataComboFile[[#This Row],[G&S reporting level indicator]]=1,$AX$16,\"Not applicable\")","v":"Level 3"},{"$f":"IF(AND($AX$16=\"Level 3\",T_DataComboFile[[#This Row],[Econ3]] = \"Goods and services\"),IF(T_DataComboFile[[#This Row],[Econ4]] = T_DataComboFile[[#This Row],[Econ3]],1,0),IF(AND($AX$16=\"Level 4\",T_DataComboFile[[#This Row],[Econ4]] = \"Goods and services\"),0,1))","v":1},{"$f":"T_DataComboFile[[#This Row],[2016/17_Source]]*T_DataComboFile[[#This Row],[G&S reporting level indicator]]","v":0},{"$f":"T_DataComboFile[[#This Row],[2017/18_Source]]*T_DataComboFile[[#This Row],[G&S reporting level indicator]]","v":0},{"$f":"T_DataComboFile[[#This Row],[2018/19_Source]]*T_DataComboFile[[#This Row],[G&S reporting level indicator]]","v":0},{"$f":"T_DataComboFile[[#This Row],[2019/20 Main appropriation_Source]]*T_DataComboFile[[#This Row],[G&S reporting level indicator]]","v":0},{"$f":"T_DataComboFile[[#This Row],[2019/20 Adjusted appropriation_Source]]*T_DataComboFile[[#This Row],[G&S reporting level indicator]]","v":0},{"$f":"T_DataComboFile[[#This Row],[2019/20 Revised estimate_Source]]*T_DataComboFile[[#This Row],[G&S reporting level indicator]]","v":0},{"$f":"T_DataComboFile[[#This Row],[2019/20 Preliminary outcome_Source]]*T_DataComboFile[[#This Row],[G&S reporting level indicator]]","v":0},{"$f":"T_DataComboFile[[#This Row],[2020/21 Original_Source]]*T_DataComboFile[[#This Row],[G&S reporting level indicator]]","v":0},{"$f":"T_DataComboFile[[#This Row],[2020/21 SAB_Source]]*T_DataComboFile[[#This Row],[G&S reporting level indicator]]","v":0},{"$f":"T_DataComboFile[[#This Row],[2020/21 Baseline_Source]]*T_DataComboFile[[#This Row],[G&S reporting level indicator]]","v":0},{"$f":"T_DataComboFile[[#This Row],[2021/22 Baseline_Source]]*T_DataComboFile[[#This Row],[G&S reporting level indicator]]","v":0},{"$f":"T_DataComboFile[[#This Row],[2022/23 Baseline_Source]]*T_DataComboFile[[#This Row],[G&S reporting level indicator]]","v":0},{"$f":"T_DataComboFile[[#This Row],[2023/24 Baseline_Source]]*T_DataComboFile[[#This Row],[G&S reporting level indicator]]","v":0},null,null,null,null,null,null,{"$f":"T_DataComboFile[[#This Row],[2021/22 Baseline]]+T_DataComboFile[[#This Row],[2021/22 Reduction]]+T_DataComboFile[[#This Row],[2021/22 Increase]]","v":0},{"$f":"T_DataComboFile[[#This Row],[2022/23 Baseline]]+T_DataComboFile[[#This Row],[2022/23 Reduction]]+T_DataComboFile[[#This Row],[2022/23 Increase]]","v":0},{"$f":"T_DataComboFile[[#This Row],[2023/24 Baseline]]+T_DataComboFile[[#This Row],[2023/24 Reduction]]+T_DataComboFile[[#This Row],[2023/24 Increase]]","v":0}]
[null,null,"2021_22","ENE2020",36,2,1,null,70499,36,2,1,null,"070499","36|02|01",1,1,3,42,42,"01|01|03|42|42","National","Small Business Development","Sector Policy and Research","Research",null,"Current","Current payments","Interest and rent on land","Rent on land","Rent on land",null,null,null,0,0,0,0,0,0,0,0,0,0,0,0,0,0,null,{"$f":"IF(T_DataComboFile[[#This Row],[G&S reporting level indicator]]=1,$AX$16,\"Not applicable\")","v":"Level 3"},{"$f":"IF(AND($AX$16=\"Level 3\",T_DataComboFile[[#This Row],[Econ3]] = \"Goods and services\"),IF(T_DataComboFile[[#This Row],[Econ4]] = T_DataComboFile[[#This Row],[Econ3]],1,0),IF(AND($AX$16=\"Level 4\",T_DataComboFile[[#This Row],[Econ4]] = \"Goods and services\"),0,1))","v":1},{"$f":"T_DataComboFile[[#This Row],[2016/17_Source]]*T_DataComboFile[[#This Row],[G&S reporting level indicator]]","v":0},{"$f":"T_DataComboFile[[#This Row],[2017/18_Source]]*T_DataComboFile[[#This Row],[G&S reporting level indicator]]","v":0},{"$f":"T_DataComboFile[[#This Row],[2018/19_Source]]*T_DataComboFile[[#This Row],[G&S reporting level indicator]]","v":0},{"$f":"T_DataComboFile[[#This Row],[2019/20 Main appropriation_Source]]*T_DataComboFile[[#This Row],[G&S reporting level indicator]]","v":0},{"$f":"T_DataComboFile[[#This Row],[2019/20 Adjusted appropriation_Source]]*T_DataComboFile[[#This Row],[G&S reporting level indicator]]","v":0},{"$f":"T_DataComboFile[[#This Row],[2019/20 Revised estimate_Source]]*T_DataComboFile[[#This Row],[G&S reporting level indicator]]","v":0},{"$f":"T_DataComboFile[[#This Row],[2019/20 Preliminary outcome_Source]]*T_DataComboFile[[#This Row],[G&S reporting level indicator]]","v":0},{"$f":"T_DataComboFile[[#This Row],[2020/21 Original_Source]]*T_DataComboFile[[#This Row],[G&S reporting level indicator]]","v":0},{"$f":"T_DataComboFile[[#This Row],[2020/21 SAB_Source]]*T_DataComboFile[[#This Row],[G&S reporting level indicator]]","v":0},{"$f":"T_DataComboFile[[#This Row],[2020/21 Baseline_Source]]*T_DataComboFile[[#This Row],[G&S reporting level indicator]]","v":0},{"$f":"T_DataComboFile[[#This Row],[2021/22 Baseline_Source]]*T_DataComboFile[[#This Row],[G&S reporting level indicator]]","v":0},{"$f":"T_DataComboFile[[#This Row],[2022/23 Baseline_Source]]*T_DataComboFile[[#This Row],[G&S reporting level indicator]]","v":0},{"$f":"T_DataComboFile[[#This Row],[2023/24 Baseline_Source]]*T_DataComboFile[[#This Row],[G&S reporting level indicator]]","v":0},null,null,null,null,null,null,{"$f":"T_DataComboFile[[#This Row],[2021/22 Baseline]]+T_DataComboFile[[#This Row],[2021/22 Reduction]]+T_DataComboFile[[#This Row],[2021/22 Increase]]","v":0},{"$f":"T_DataComboFile[[#This Row],[2022/23 Baseline]]+T_DataComboFile[[#This Row],[2022/23 Reduction]]+T_DataComboFile[[#This Row],[2022/23 Increase]]","v":0},{"$f":"T_DataComboFile[[#This Row],[2023/24 Baseline]]+T_DataComboFile[[#This Row],[2023/24 Reduction]]+T_DataComboFile[[#This Row],[2023/24 Increase]]","v":0}]
[null,null,"2021_22","ENE2020",36,2,1,null,70500,36,2,1,null,"070500","36|02|01",1,2,4,43,43,"01|02|04|43|43","National","Small Business Development","Sector Policy and Research","Research",null,"Current","Transfers and subsidies","Provinces and municipalities","Provinces","Provincial Revenue Funds",null,null,null,0,0,0,0,0,0,0,0,0,0,0,0,0,0,null,{"$f":"IF(T_DataComboFile[[#This Row],[G&S reporting level indicator]]=1,$AX$16,\"Not applicable\")","v":"Level 3"},{"$f":"IF(AND($AX$16=\"Level 3\",T_DataComboFile[[#This Row],[Econ3]] = \"Goods and services\"),IF(T_DataComboFile[[#This Row],[Econ4]] = T_DataComboFile[[#This Row],[Econ3]],1,0),IF(AND($AX$16=\"Level 4\",T_DataComboFile[[#This Row],[Econ4]] = \"Goods and services\"),0,1))","v":1},{"$f":"T_DataComboFile[[#This Row],[2016/17_Source]]*T_DataComboFile[[#This Row],[G&S reporting level indicator]]","v":0},{"$f":"T_DataComboFile[[#This Row],[2017/18_Source]]*T_DataComboFile[[#This Row],[G&S reporting level indicator]]","v":0},{"$f":"T_DataComboFile[[#This Row],[2018/19_Source]]*T_DataComboFile[[#This Row],[G&S reporting level indicator]]","v":0},{"$f":"T_DataComboFile[[#This Row],[2019/20 Main appropriation_Source]]*T_DataComboFile[[#This Row],[G&S reporting level indicator]]","v":0},{"$f":"T_DataComboFile[[#This Row],[2019/20 Adjusted appropriation_Source]]*T_DataComboFile[[#This Row],[G&S reporting level indicator]]","v":0},{"$f":"T_DataComboFile[[#This Row],[2019/20 Revised estimate_Source]]*T_DataComboFile[[#This Row],[G&S reporting level indicator]]","v":0},{"$f":"T_DataComboFile[[#This Row],[2019/20 Preliminary outcome_Source]]*T_DataComboFile[[#This Row],[G&S reporting level indicator]]","v":0},{"$f":"T_DataComboFile[[#This Row],[2020/21 Original_Source]]*T_DataComboFile[[#This Row],[G&S reporting level indicator]]","v":0},{"$f":"T_DataComboFile[[#This Row],[2020/21 SAB_Source]]*T_DataComboFile[[#This Row],[G&S reporting level indicator]]","v":0},{"$f":"T_DataComboFile[[#This Row],[2020/21 Baseline_Source]]*T_DataComboFile[[#This Row],[G&S reporting level indicator]]","v":0},{"$f":"T_DataComboFile[[#This Row],[2021/22 Baseline_Source]]*T_DataComboFile[[#This Row],[G&S reporting level indicator]]","v":0},{"$f":"T_DataComboFile[[#This Row],[2022/23 Baseline_Source]]*T_DataComboFile[[#This Row],[G&S reporting level indicator]]","v":0},{"$f":"T_DataComboFile[[#This Row],[2023/24 Baseline_Source]]*T_DataComboFile[[#This Row],[G&S reporting level indicator]]","v":0},null,null,null,null,null,null,{"$f":"T_DataComboFile[[#This Row],[2021/22 Baseline]]+T_DataComboFile[[#This Row],[2021/22 Reduction]]+T_DataComboFile[[#This Row],[2021/22 Increase]]","v":0},{"$f":"T_DataComboFile[[#This Row],[2022/23 Baseline]]+T_DataComboFile[[#This Row],[2022/23 Reduction]]+T_DataComboFile[[#This Row],[2022/23 Increase]]","v":0},{"$f":"T_DataComboFile[[#This Row],[2023/24 Baseline]]+T_DataComboFile[[#This Row],[2023/24 Reduction]]+T_DataComboFile[[#This Row],[2023/24 Increase]]","v":0}]
[null,null,"2021_22","ENE2020",36,2,1,null,70501,36,2,1,null,"070501","36|02|01",1,2,4,43,44,"01|02|04|43|44","National","Small Business Development","Sector Policy and Research","Research",null,"Current","Transfers and subsidies","Provinces and municipalities","Provinces","Provincial agencies and funds",null,null,null,0,0,0,0,0,0,0,0,0,0,0,0,0,0,null,{"$f":"IF(T_DataComboFile[[#This Row],[G&S reporting level indicator]]=1,$AX$16,\"Not applicable\")","v":"Level 3"},{"$f":"IF(AND($AX$16=\"Level 3\",T_DataComboFile[[#This Row],[Econ3]] = \"Goods and services\"),IF(T_DataComboFile[[#This Row],[Econ4]] = T_DataComboFile[[#This Row],[Econ3]],1,0),IF(AND($AX$16=\"Level 4\",T_DataComboFile[[#This Row],[Econ4]] = \"Goods and services\"),0,1))","v":1},{"$f":"T_DataComboFile[[#This Row],[2016/17_Source]]*T_DataComboFile[[#This Row],[G&S reporting level indicator]]","v":0},{"$f":"T_DataComboFile[[#This Row],[2017/18_Source]]*T_DataComboFile[[#This Row],[G&S reporting level indicator]]","v":0},{"$f":"T_DataComboFile[[#This Row],[2018/19_Source]]*T_DataComboFile[[#This Row],[G&S reporting level indicator]]","v":0},{"$f":"T_DataComboFile[[#This Row],[2019/20 Main appropriation_Source]]*T_DataComboFile[[#This Row],[G&S reporting level indicator]]","v":0},{"$f":"T_DataComboFile[[#This Row],[2019/20 Adjusted appropriation_Source]]*T_DataComboFile[[#This Row],[G&S reporting level indicator]]","v":0},{"$f":"T_DataComboFile[[#This Row],[2019/20 Revised estimate_Source]]*T_DataComboFile[[#This Row],[G&S reporting level indicator]]","v":0},{"$f":"T_DataComboFile[[#This Row],[2019/20 Preliminary outcome_Source]]*T_DataComboFile[[#This Row],[G&S reporting level indicator]]","v":0},{"$f":"T_DataComboFile[[#This Row],[2020/21 Original_Source]]*T_DataComboFile[[#This Row],[G&S reporting level indicator]]","v":0},{"$f":"T_DataComboFile[[#This Row],[2020/21 SAB_Source]]*T_DataComboFile[[#This Row],[G&S reporting level indicator]]","v":0},{"$f":"T_DataComboFile[[#This Row],[2020/21 Baseline_Source]]*T_DataComboFile[[#This Row],[G&S reporting level indicator]]","v":0},{"$f":"T_DataComboFile[[#This Row],[2021/22 Baseline_Source]]*T_DataComboFile[[#This Row],[G&S reporting level indicator]]","v":0},{"$f":"T_DataComboFile[[#This Row],[2022/23 Baseline_Source]]*T_DataComboFile[[#This Row],[G&S reporting level indicator]]","v":0},{"$f":"T_DataComboFile[[#This Row],[2023/24 Baseline_Source]]*T_DataComboFile[[#This Row],[G&S reporting level indicator]]","v":0},null,null,null,null,null,null,{"$f":"T_DataComboFile[[#This Row],[2021/22 Baseline]]+T_DataComboFile[[#This Row],[2021/22 Reduction]]+T_DataComboFile[[#This Row],[2021/22 Increase]]","v":0},{"$f":"T_DataComboFile[[#This Row],[2022/23 Baseline]]+T_DataComboFile[[#This Row],[2022/23 Reduction]]+T_DataComboFile[[#This Row],[2022/23 Increase]]","v":0},{"$f":"T_DataComboFile[[#This Row],[2023/24 Baseline]]+T_DataComboFile[[#This Row],[2023/24 Reduction]]+T_DataComboFile[[#This Row],[2023/24 Increase]]","v":0}]
[null,null,"2021_22","ENE2020",36,2,1,null,70502,36,2,1,null,"070502","36|02|01",1,2,4,44,45,"01|02|04|44|45","National","Small Business Development","Sector Policy and Research","Research",null,"Current","Transfers and subsidies","Provinces and municipalities","Municipalities","Municipal bank accounts",null,null,null,0,0,0,0,0,0,0,0,0,0,0,0,0,0,null,{"$f":"IF(T_DataComboFile[[#This Row],[G&S reporting level indicator]]=1,$AX$16,\"Not applicable\")","v":"Level 3"},{"$f":"IF(AND($AX$16=\"Level 3\",T_DataComboFile[[#This Row],[Econ3]] = \"Goods and services\"),IF(T_DataComboFile[[#This Row],[Econ4]] = T_DataComboFile[[#This Row],[Econ3]],1,0),IF(AND($AX$16=\"Level 4\",T_DataComboFile[[#This Row],[Econ4]] = \"Goods and services\"),0,1))","v":1},{"$f":"T_DataComboFile[[#This Row],[2016/17_Source]]*T_DataComboFile[[#This Row],[G&S reporting level indicator]]","v":0},{"$f":"T_DataComboFile[[#This Row],[2017/18_Source]]*T_DataComboFile[[#This Row],[G&S reporting level indicator]]","v":0},{"$f":"T_DataComboFile[[#This Row],[2018/19_Source]]*T_DataComboFile[[#This Row],[G&S reporting level indicator]]","v":0},{"$f":"T_DataComboFile[[#This Row],[2019/20 Main appropriation_Source]]*T_DataComboFile[[#This Row],[G&S reporting level indicator]]","v":0},{"$f":"T_DataComboFile[[#This Row],[2019/20 Adjusted appropriation_Source]]*T_DataComboFile[[#This Row],[G&S reporting level indicator]]","v":0},{"$f":"T_DataComboFile[[#This Row],[2019/20 Revised estimate_Source]]*T_DataComboFile[[#This Row],[G&S reporting level indicator]]","v":0},{"$f":"T_DataComboFile[[#This Row],[2019/20 Preliminary outcome_Source]]*T_DataComboFile[[#This Row],[G&S reporting level indicator]]","v":0},{"$f":"T_DataComboFile[[#This Row],[2020/21 Original_Source]]*T_DataComboFile[[#This Row],[G&S reporting level indicator]]","v":0},{"$f":"T_DataComboFile[[#This Row],[2020/21 SAB_Source]]*T_DataComboFile[[#This Row],[G&S reporting level indicator]]","v":0},{"$f":"T_DataComboFile[[#This Row],[2020/21 Baseline_Source]]*T_DataComboFile[[#This Row],[G&S reporting level indicator]]","v":0},{"$f":"T_DataComboFile[[#This Row],[2021/22 Baseline_Source]]*T_DataComboFile[[#This Row],[G&S reporting level indicator]]","v":0},{"$f":"T_DataComboFile[[#This Row],[2022/23 Baseline_Source]]*T_DataComboFile[[#This Row],[G&S reporting level indicator]]","v":0},{"$f":"T_DataComboFile[[#This Row],[2023/24 Baseline_Source]]*T_DataComboFile[[#This Row],[G&S reporting level indicator]]","v":0},null,null,null,null,null,null,{"$f":"T_DataComboFile[[#This Row],[2021/22 Baseline]]+T_DataComboFile[[#This Row],[2021/22 Reduction]]+T_DataComboFile[[#This Row],[2021/22 Increase]]","v":0},{"$f":"T_DataComboFile[[#This Row],[2022/23 Baseline]]+T_DataComboFile[[#This Row],[2022/23 Reduction]]+T_DataComboFile[[#This Row],[2022/23 Increase]]","v":0},{"$f":"T_DataComboFile[[#This Row],[2023/24 Baseline]]+T_DataComboFile[[#This Row],[2023/24 Reduction]]+T_DataComboFile[[#This Row],[2023/24 Increase]]","v":0}]
[null,null,"2021_22","ENE2020",36,2,1,null,70503,36,2,1,null,"070503","36|02|01",1,2,4,44,46,"01|02|04|44|46","National","Small Business Development","Sector Policy and Research","Research",null,"Current","Transfers and subsidies","Provinces and municipalities","Municipalities","Municipal agencies and funds",null,null,null,0,0,0,0,0,0,0,0,0,0,0,0,0,0,null,{"$f":"IF(T_DataComboFile[[#This Row],[G&S reporting level indicator]]=1,$AX$16,\"Not applicable\")","v":"Level 3"},{"$f":"IF(AND($AX$16=\"Level 3\",T_DataComboFile[[#This Row],[Econ3]] = \"Goods and services\"),IF(T_DataComboFile[[#This Row],[Econ4]] = T_DataComboFile[[#This Row],[Econ3]],1,0),IF(AND($AX$16=\"Level 4\",T_DataComboFile[[#This Row],[Econ4]] = \"Goods and services\"),0,1))","v":1},{"$f":"T_DataComboFile[[#This Row],[2016/17_Source]]*T_DataComboFile[[#This Row],[G&S reporting level indicator]]","v":0},{"$f":"T_DataComboFile[[#This Row],[2017/18_Source]]*T_DataComboFile[[#This Row],[G&S reporting level indicator]]","v":0},{"$f":"T_DataComboFile[[#This Row],[2018/19_Source]]*T_DataComboFile[[#This Row],[G&S reporting level indicator]]","v":0},{"$f":"T_DataComboFile[[#This Row],[2019/20 Main appropriation_Source]]*T_DataComboFile[[#This Row],[G&S reporting level indicator]]","v":0},{"$f":"T_DataComboFile[[#This Row],[2019/20 Adjusted appropriation_Source]]*T_DataComboFile[[#This Row],[G&S reporting level indicator]]","v":0},{"$f":"T_DataComboFile[[#This Row],[2019/20 Revised estimate_Source]]*T_DataComboFile[[#This Row],[G&S reporting level indicator]]","v":0},{"$f":"T_DataComboFile[[#This Row],[2019/20 Preliminary outcome_Source]]*T_DataComboFile[[#This Row],[G&S reporting level indicator]]","v":0},{"$f":"T_DataComboFile[[#This Row],[2020/21 Original_Source]]*T_DataComboFile[[#This Row],[G&S reporting level indicator]]","v":0},{"$f":"T_DataComboFile[[#This Row],[2020/21 SAB_Source]]*T_DataComboFile[[#This Row],[G&S reporting level indicator]]","v":0},{"$f":"T_DataComboFile[[#This Row],[2020/21 Baseline_Source]]*T_DataComboFile[[#This Row],[G&S reporting level indicator]]","v":0},{"$f":"T_DataComboFile[[#This Row],[2021/22 Baseline_Source]]*T_DataComboFile[[#This Row],[G&S reporting level indicator]]","v":0},{"$f":"T_DataComboFile[[#This Row],[2022/23 Baseline_Source]]*T_DataComboFile[[#This Row],[G&S reporting level indicator]]","v":0},{"$f":"T_DataComboFile[[#This Row],[2023/24 Baseline_Source]]*T_DataComboFile[[#This Row],[G&S reporting level indicator]]","v":0},null,null,null,null,null,null,{"$f":"T_DataComboFile[[#This Row],[2021/22 Baseline]]+T_DataComboFile[[#This Row],[2021/22 Reduction]]+T_DataComboFile[[#This Row],[2021/22 Increase]]","v":0},{"$f":"T_DataComboFile[[#This Row],[2022/23 Baseline]]+T_DataComboFile[[#This Row],[2022/23 Reduction]]+T_DataComboFile[[#This Row],[2022/23 Increase]]","v":0},{"$f":"T_DataComboFile[[#This Row],[2023/24 Baseline]]+T_DataComboFile[[#This Row],[2023/24 Reduction]]+T_DataComboFile[[#This Row],[2023/24 Increase]]","v":0}]
[null,null,"2021_22","ENE2020",36,2,1,null,70504,36,2,1,null,"070504","36|02|01",1,2,5,45,47,"01|02|05|45|47","National","Small Business Development","Sector Policy and Research","Research",null,"Current","Transfers and subsidies","Departmental agencies and accounts","Social security funds","Social security funds",null,null,null,0,0,0,0,0,0,0,0,0,0,0,0,0,0,null,{"$f":"IF(T_DataComboFile[[#This Row],[G&S reporting level indicator]]=1,$AX$16,\"Not applicable\")","v":"Level 3"},{"$f":"IF(AND($AX$16=\"Level 3\",T_DataComboFile[[#This Row],[Econ3]] = \"Goods and services\"),IF(T_DataComboFile[[#This Row],[Econ4]] = T_DataComboFile[[#This Row],[Econ3]],1,0),IF(AND($AX$16=\"Level 4\",T_DataComboFile[[#This Row],[Econ4]] = \"Goods and services\"),0,1))","v":1},{"$f":"T_DataComboFile[[#This Row],[2016/17_Source]]*T_DataComboFile[[#This Row],[G&S reporting level indicator]]","v":0},{"$f":"T_DataComboFile[[#This Row],[2017/18_Source]]*T_DataComboFile[[#This Row],[G&S reporting level indicator]]","v":0},{"$f":"T_DataComboFile[[#This Row],[2018/19_Source]]*T_DataComboFile[[#This Row],[G&S reporting level indicator]]","v":0},{"$f":"T_DataComboFile[[#This Row],[2019/20 Main appropriation_Source]]*T_DataComboFile[[#This Row],[G&S reporting level indicator]]","v":0},{"$f":"T_DataComboFile[[#This Row],[2019/20 Adjusted appropriation_Source]]*T_DataComboFile[[#This Row],[G&S reporting level indicator]]","v":0},{"$f":"T_DataComboFile[[#This Row],[2019/20 Revised estimate_Source]]*T_DataComboFile[[#This Row],[G&S reporting level indicator]]","v":0},{"$f":"T_DataComboFile[[#This Row],[2019/20 Preliminary outcome_Source]]*T_DataComboFile[[#This Row],[G&S reporting level indicator]]","v":0},{"$f":"T_DataComboFile[[#This Row],[2020/21 Original_Source]]*T_DataComboFile[[#This Row],[G&S reporting level indicator]]","v":0},{"$f":"T_DataComboFile[[#This Row],[2020/21 SAB_Source]]*T_DataComboFile[[#This Row],[G&S reporting level indicator]]","v":0},{"$f":"T_DataComboFile[[#This Row],[2020/21 Baseline_Source]]*T_DataComboFile[[#This Row],[G&S reporting level indicator]]","v":0},{"$f":"T_DataComboFile[[#This Row],[2021/22 Baseline_Source]]*T_DataComboFile[[#This Row],[G&S reporting level indicator]]","v":0},{"$f":"T_DataComboFile[[#This Row],[2022/23 Baseline_Source]]*T_DataComboFile[[#This Row],[G&S reporting level indicator]]","v":0},{"$f":"T_DataComboFile[[#This Row],[2023/24 Baseline_Source]]*T_DataComboFile[[#This Row],[G&S reporting level indicator]]","v":0},null,null,null,null,null,null,{"$f":"T_DataComboFile[[#This Row],[2021/22 Baseline]]+T_DataComboFile[[#This Row],[2021/22 Reduction]]+T_DataComboFile[[#This Row],[2021/22 Increase]]","v":0},{"$f":"T_DataComboFile[[#This Row],[2022/23 Baseline]]+T_DataComboFile[[#This Row],[2022/23 Reduction]]+T_DataComboFile[[#This Row],[2022/23 Increase]]","v":0},{"$f":"T_DataComboFile[[#This Row],[2023/24 Baseline]]+T_DataComboFile[[#This Row],[2023/24 Reduction]]+T_DataComboFile[[#This Row],[2023/24 Increase]]","v":0}]
[null,null,"2021_22","ENE2020",36,2,1,null,70505,36,2,1,null,"070505","36|02|01",1,2,5,46,48,"01|02|05|46|48","National","Small Business Development","Sector Policy and Research","Research",null,"Current","Transfers and subsidies","Departmental agencies and accounts","Departmental agencies (non-business entities)","Departmental agencies (non-business entities)",null,null,null,0,0,0,0,0,0,0,0,0,0,0,0,0,0,null,{"$f":"IF(T_DataComboFile[[#This Row],[G&S reporting level indicator]]=1,$AX$16,\"Not applicable\")","v":"Level 3"},{"$f":"IF(AND($AX$16=\"Level 3\",T_DataComboFile[[#This Row],[Econ3]] = \"Goods and services\"),IF(T_DataComboFile[[#This Row],[Econ4]] = T_DataComboFile[[#This Row],[Econ3]],1,0),IF(AND($AX$16=\"Level 4\",T_DataComboFile[[#This Row],[Econ4]] = \"Goods and services\"),0,1))","v":1},{"$f":"T_DataComboFile[[#This Row],[2016/17_Source]]*T_DataComboFile[[#This Row],[G&S reporting level indicator]]","v":0},{"$f":"T_DataComboFile[[#This Row],[2017/18_Source]]*T_DataComboFile[[#This Row],[G&S reporting level indicator]]","v":0},{"$f":"T_DataComboFile[[#This Row],[2018/19_Source]]*T_DataComboFile[[#This Row],[G&S reporting level indicator]]","v":0},{"$f":"T_DataComboFile[[#This Row],[2019/20 Main appropriation_Source]]*T_DataComboFile[[#This Row],[G&S reporting level indicator]]","v":0},{"$f":"T_DataComboFile[[#This Row],[2019/20 Adjusted appropriation_Source]]*T_DataComboFile[[#This Row],[G&S reporting level indicator]]","v":0},{"$f":"T_DataComboFile[[#This Row],[2019/20 Revised estimate_Source]]*T_DataComboFile[[#This Row],[G&S reporting level indicator]]","v":0},{"$f":"T_DataComboFile[[#This Row],[2019/20 Preliminary outcome_Source]]*T_DataComboFile[[#This Row],[G&S reporting level indicator]]","v":0},{"$f":"T_DataComboFile[[#This Row],[2020/21 Original_Source]]*T_DataComboFile[[#This Row],[G&S reporting level indicator]]","v":0},{"$f":"T_DataComboFile[[#This Row],[2020/21 SAB_Source]]*T_DataComboFile[[#This Row],[G&S reporting level indicator]]","v":0},{"$f":"T_DataComboFile[[#This Row],[2020/21 Baseline_Source]]*T_DataComboFile[[#This Row],[G&S reporting level indicator]]","v":0},{"$f":"T_DataComboFile[[#This Row],[2021/22 Baseline_Source]]*T_DataComboFile[[#This Row],[G&S reporting level indicator]]","v":0},{"$f":"T_DataComboFile[[#This Row],[2022/23 Baseline_Source]]*T_DataComboFile[[#This Row],[G&S reporting level indicator]]","v":0},{"$f":"T_DataComboFile[[#This Row],[2023/24 Baseline_Source]]*T_DataComboFile[[#This Row],[G&S reporting level indicator]]","v":0},null,null,null,null,null,null,{"$f":"T_DataComboFile[[#This Row],[2021/22 Baseline]]+T_DataComboFile[[#This Row],[2021/22 Reduction]]+T_DataComboFile[[#This Row],[2021/22 Increase]]","v":0},{"$f":"T_DataComboFile[[#This Row],[2022/23 Baseline]]+T_DataComboFile[[#This Row],[2022/23 Reduction]]+T_DataComboFile[[#This Row],[2022/23 Increase]]","v":0},{"$f":"T_DataComboFile[[#This Row],[2023/24 Baseline]]+T_DataComboFile[[#This Row],[2023/24 Reduction]]+T_DataComboFile[[#This Row],[2023/24 Increase]]","v":0}]
[null,null,"2021_22","ENE2020",36,2,1,null,70506,36,2,1,null,"070506","36|02|01",1,2,6,47,49,"01|02|06|47|49","National","Small Business Development","Sector Policy and Research","Research",null,"Current","Transfers and subsidies","Higher education institutions","Higher education institutions","Higher education institutions",null,null,null,0,0,0,0,0,0,0,0,0,0,0,0,0,0,null,{"$f":"IF(T_DataComboFile[[#This Row],[G&S reporting level indicator]]=1,$AX$16,\"Not applicable\")","v":"Level 3"},{"$f":"IF(AND($AX$16=\"Level 3\",T_DataComboFile[[#This Row],[Econ3]] = \"Goods and services\"),IF(T_DataComboFile[[#This Row],[Econ4]] = T_DataComboFile[[#This Row],[Econ3]],1,0),IF(AND($AX$16=\"Level 4\",T_DataComboFile[[#This Row],[Econ4]] = \"Goods and services\"),0,1))","v":1},{"$f":"T_DataComboFile[[#This Row],[2016/17_Source]]*T_DataComboFile[[#This Row],[G&S reporting level indicator]]","v":0},{"$f":"T_DataComboFile[[#This Row],[2017/18_Source]]*T_DataComboFile[[#This Row],[G&S reporting level indicator]]","v":0},{"$f":"T_DataComboFile[[#This Row],[2018/19_Source]]*T_DataComboFile[[#This Row],[G&S reporting level indicator]]","v":0},{"$f":"T_DataComboFile[[#This Row],[2019/20 Main appropriation_Source]]*T_DataComboFile[[#This Row],[G&S reporting level indicator]]","v":0},{"$f":"T_DataComboFile[[#This Row],[2019/20 Adjusted appropriation_Source]]*T_DataComboFile[[#This Row],[G&S reporting level indicator]]","v":0},{"$f":"T_DataComboFile[[#This Row],[2019/20 Revised estimate_Source]]*T_DataComboFile[[#This Row],[G&S reporting level indicator]]","v":0},{"$f":"T_DataComboFile[[#This Row],[2019/20 Preliminary outcome_Source]]*T_DataComboFile[[#This Row],[G&S reporting level indicator]]","v":0},{"$f":"T_DataComboFile[[#This Row],[2020/21 Original_Source]]*T_DataComboFile[[#This Row],[G&S reporting level indicator]]","v":0},{"$f":"T_DataComboFile[[#This Row],[2020/21 SAB_Source]]*T_DataComboFile[[#This Row],[G&S reporting level indicator]]","v":0},{"$f":"T_DataComboFile[[#This Row],[2020/21 Baseline_Source]]*T_DataComboFile[[#This Row],[G&S reporting level indicator]]","v":0},{"$f":"T_DataComboFile[[#This Row],[2021/22 Baseline_Source]]*T_DataComboFile[[#This Row],[G&S reporting level indicator]]","v":0},{"$f":"T_DataComboFile[[#This Row],[2022/23 Baseline_Source]]*T_DataComboFile[[#This Row],[G&S reporting level indicator]]","v":0},{"$f":"T_DataComboFile[[#This Row],[2023/24 Baseline_Source]]*T_DataComboFile[[#This Row],[G&S reporting level indicator]]","v":0},null,null,null,null,null,null,{"$f":"T_DataComboFile[[#This Row],[2021/22 Baseline]]+T_DataComboFile[[#This Row],[2021/22 Reduction]]+T_DataComboFile[[#This Row],[2021/22 Increase]]","v":0},{"$f":"T_DataComboFile[[#This Row],[2022/23 Baseline]]+T_DataComboFile[[#This Row],[2022/23 Reduction]]+T_DataComboFile[[#This Row],[2022/23 Increase]]","v":0},{"$f":"T_DataComboFile[[#This Row],[2023/24 Baseline]]+T_DataComboFile[[#This Row],[2023/24 Reduction]]+T_DataComboFile[[#This Row],[2023/24 Increase]]","v":0}]
[null,null,"2021_22","ENE2020",36,2,1,null,70507,36,2,1,null,"070507","36|02|01",1,2,7,48,50,"01|02|07|48|50","National","Small Business Development","Sector Policy and Research","Research",null,"Current","Transfers and subsidies","Foreign governments and international organisations","Foreign governments and international organisations","Foreign governments and international organisations",null,null,null,0,0,0,0,0,0,0,0,0,0,0,0,0,0,null,{"$f":"IF(T_DataComboFile[[#This Row],[G&S reporting level indicator]]=1,$AX$16,\"Not applicable\")","v":"Level 3"},{"$f":"IF(AND($AX$16=\"Level 3\",T_DataComboFile[[#This Row],[Econ3]] = \"Goods and services\"),IF(T_DataComboFile[[#This Row],[Econ4]] = T_DataComboFile[[#This Row],[Econ3]],1,0),IF(AND($AX$16=\"Level 4\",T_DataComboFile[[#This Row],[Econ4]] = \"Goods and services\"),0,1))","v":1},{"$f":"T_DataComboFile[[#This Row],[2016/17_Source]]*T_DataComboFile[[#This Row],[G&S reporting level indicator]]","v":0},{"$f":"T_DataComboFile[[#This Row],[2017/18_Source]]*T_DataComboFile[[#This Row],[G&S reporting level indicator]]","v":0},{"$f":"T_DataComboFile[[#This Row],[2018/19_Source]]*T_DataComboFile[[#This Row],[G&S reporting level indicator]]","v":0},{"$f":"T_DataComboFile[[#This Row],[2019/20 Main appropriation_Source]]*T_DataComboFile[[#This Row],[G&S reporting level indicator]]","v":0},{"$f":"T_DataComboFile[[#This Row],[2019/20 Adjusted appropriation_Source]]*T_DataComboFile[[#This Row],[G&S reporting level indicator]]","v":0},{"$f":"T_DataComboFile[[#This Row],[2019/20 Revised estimate_Source]]*T_DataComboFile[[#This Row],[G&S reporting level indicator]]","v":0},{"$f":"T_DataComboFile[[#This Row],[2019/20 Preliminary outcome_Source]]*T_DataComboFile[[#This Row],[G&S reporting level indicator]]","v":0},{"$f":"T_DataComboFile[[#This Row],[2020/21 Original_Source]]*T_DataComboFile[[#This Row],[G&S reporting level indicator]]","v":0},{"$f":"T_DataComboFile[[#This Row],[2020/21 SAB_Source]]*T_DataComboFile[[#This Row],[G&S reporting level indicator]]","v":0},{"$f":"T_DataComboFile[[#This Row],[2020/21 Baseline_Source]]*T_DataComboFile[[#This Row],[G&S reporting level indicator]]","v":0},{"$f":"T_DataComboFile[[#This Row],[2021/22 Baseline_Source]]*T_DataComboFile[[#This Row],[G&S reporting level indicator]]","v":0},{"$f":"T_DataComboFile[[#This Row],[2022/23 Baseline_Source]]*T_DataComboFile[[#This Row],[G&S reporting level indicator]]","v":0},{"$f":"T_DataComboFile[[#This Row],[2023/24 Baseline_Source]]*T_DataComboFile[[#This Row],[G&S reporting level indicator]]","v":0},null,null,null,null,null,null,{"$f":"T_DataComboFile[[#This Row],[2021/22 Baseline]]+T_DataComboFile[[#This Row],[2021/22 Reduction]]+T_DataComboFile[[#This Row],[2021/22 Increase]]","v":0},{"$f":"T_DataComboFile[[#This Row],[2022/23 Baseline]]+T_DataComboFile[[#This Row],[2022/23 Reduction]]+T_DataComboFile[[#This Row],[2022/23 Increase]]","v":0},{"$f":"T_DataComboFile[[#This Row],[2023/24 Baseline]]+T_DataComboFile[[#This Row],[2023/24 Reduction]]+T_DataComboFile[[#This Row],[2023/24 Increase]]","v":0}]
[null,null,"2021_22","ENE2020",36,2,1,null,70508,36,2,1,null,"070508","36|02|01",1,2,8,49,51,"01|02|08|49|51","National","Small Business Development","Sector Policy and Research","Research",null,"Current","Transfers and subsidies","Public corporations and private enterprises","Public corporations","Subsidies on products and production (pc)",null,null,null,0,0,0,0,0,0,0,0,0,0,0,0,0,0,null,{"$f":"IF(T_DataComboFile[[#This Row],[G&S reporting level indicator]]=1,$AX$16,\"Not applicable\")","v":"Level 3"},{"$f":"IF(AND($AX$16=\"Level 3\",T_DataComboFile[[#This Row],[Econ3]] = \"Goods and services\"),IF(T_DataComboFile[[#This Row],[Econ4]] = T_DataComboFile[[#This Row],[Econ3]],1,0),IF(AND($AX$16=\"Level 4\",T_DataComboFile[[#This Row],[Econ4]] = \"Goods and services\"),0,1))","v":1},{"$f":"T_DataComboFile[[#This Row],[2016/17_Source]]*T_DataComboFile[[#This Row],[G&S reporting level indicator]]","v":0},{"$f":"T_DataComboFile[[#This Row],[2017/18_Source]]*T_DataComboFile[[#This Row],[G&S reporting level indicator]]","v":0},{"$f":"T_DataComboFile[[#This Row],[2018/19_Source]]*T_DataComboFile[[#This Row],[G&S reporting level indicator]]","v":0},{"$f":"T_DataComboFile[[#This Row],[2019/20 Main appropriation_Source]]*T_DataComboFile[[#This Row],[G&S reporting level indicator]]","v":0},{"$f":"T_DataComboFile[[#This Row],[2019/20 Adjusted appropriation_Source]]*T_DataComboFile[[#This Row],[G&S reporting level indicator]]","v":0},{"$f":"T_DataComboFile[[#This Row],[2019/20 Revised estimate_Source]]*T_DataComboFile[[#This Row],[G&S reporting level indicator]]","v":0},{"$f":"T_DataComboFile[[#This Row],[2019/20 Preliminary outcome_Source]]*T_DataComboFile[[#This Row],[G&S reporting level indicator]]","v":0},{"$f":"T_DataComboFile[[#This Row],[2020/21 Original_Source]]*T_DataComboFile[[#This Row],[G&S reporting level indicator]]","v":0},{"$f":"T_DataComboFile[[#This Row],[2020/21 SAB_Source]]*T_DataComboFile[[#This Row],[G&S reporting level indicator]]","v":0},{"$f":"T_DataComboFile[[#This Row],[2020/21 Baseline_Source]]*T_DataComboFile[[#This Row],[G&S reporting level indicator]]","v":0},{"$f":"T_DataComboFile[[#This Row],[2021/22 Baseline_Source]]*T_DataComboFile[[#This Row],[G&S reporting level indicator]]","v":0},{"$f":"T_DataComboFile[[#This Row],[2022/23 Baseline_Source]]*T_DataComboFile[[#This Row],[G&S reporting level indicator]]","v":0},{"$f":"T_DataComboFile[[#This Row],[2023/24 Baseline_Source]]*T_DataComboFile[[#This Row],[G&S reporting level indicator]]","v":0},null,null,null,null,null,null,{"$f":"T_DataComboFile[[#This Row],[2021/22 Baseline]]+T_DataComboFile[[#This Row],[2021/22 Reduction]]+T_DataComboFile[[#This Row],[2021/22 Increase]]","v":0},{"$f":"T_DataComboFile[[#This Row],[2022/23 Baseline]]+T_DataComboFile[[#This Row],[2022/23 Reduction]]+T_DataComboFile[[#This Row],[2022/23 Increase]]","v":0},{"$f":"T_DataComboFile[[#This Row],[2023/24 Baseline]]+T_DataComboFile[[#This Row],[2023/24 Reduction]]+T_DataComboFile[[#This Row],[2023/24 Increase]]","v":0}]
[null,null,"2021_22","ENE2020",36,2,1,null,70509,36,2,1,null,"070509","36|02|01",1,2,8,49,52,"01|02|08|49|52","National","Small Business Development","Sector Policy and Research","Research",null,"Current","Transfers and subsidies","Public corporations and private enterprises","Public corporations","Other transfers to public corporations",null,null,null,0,0,0,0,0,0,0,0,0,0,0,0,0,0,null,{"$f":"IF(T_DataComboFile[[#This Row],[G&S reporting level indicator]]=1,$AX$16,\"Not applicable\")","v":"Level 3"},{"$f":"IF(AND($AX$16=\"Level 3\",T_DataComboFile[[#This Row],[Econ3]] = \"Goods and services\"),IF(T_DataComboFile[[#This Row],[Econ4]] = T_DataComboFile[[#This Row],[Econ3]],1,0),IF(AND($AX$16=\"Level 4\",T_DataComboFile[[#This Row],[Econ4]] = \"Goods and services\"),0,1))","v":1},{"$f":"T_DataComboFile[[#This Row],[2016/17_Source]]*T_DataComboFile[[#This Row],[G&S reporting level indicator]]","v":0},{"$f":"T_DataComboFile[[#This Row],[2017/18_Source]]*T_DataComboFile[[#This Row],[G&S reporting level indicator]]","v":0},{"$f":"T_DataComboFile[[#This Row],[2018/19_Source]]*T_DataComboFile[[#This Row],[G&S reporting level indicator]]","v":0},{"$f":"T_DataComboFile[[#This Row],[2019/20 Main appropriation_Source]]*T_DataComboFile[[#This Row],[G&S reporting level indicator]]","v":0},{"$f":"T_DataComboFile[[#This Row],[2019/20 Adjusted appropriation_Source]]*T_DataComboFile[[#This Row],[G&S reporting level indicator]]","v":0},{"$f":"T_DataComboFile[[#This Row],[2019/20 Revised estimate_Source]]*T_DataComboFile[[#This Row],[G&S reporting level indicator]]","v":0},{"$f":"T_DataComboFile[[#This Row],[2019/20 Preliminary outcome_Source]]*T_DataComboFile[[#This Row],[G&S reporting level indicator]]","v":0},{"$f":"T_DataComboFile[[#This Row],[2020/21 Original_Source]]*T_DataComboFile[[#This Row],[G&S reporting level indicator]]","v":0},{"$f":"T_DataComboFile[[#This Row],[2020/21 SAB_Source]]*T_DataComboFile[[#This Row],[G&S reporting level indicator]]","v":0},{"$f":"T_DataComboFile[[#This Row],[2020/21 Baseline_Source]]*T_DataComboFile[[#This Row],[G&S reporting level indicator]]","v":0},{"$f":"T_DataComboFile[[#This Row],[2021/22 Baseline_Source]]*T_DataComboFile[[#This Row],[G&S reporting level indicator]]","v":0},{"$f":"T_DataComboFile[[#This Row],[2022/23 Baseline_Source]]*T_DataComboFile[[#This Row],[G&S reporting level indicator]]","v":0},{"$f":"T_DataComboFile[[#This Row],[2023/24 Baseline_Source]]*T_DataComboFile[[#This Row],[G&S reporting level indicator]]","v":0},null,null,null,null,null,null,{"$f":"T_DataComboFile[[#This Row],[2021/22 Baseline]]+T_DataComboFile[[#This Row],[2021/22 Reduction]]+T_DataComboFile[[#This Row],[2021/22 Increase]]","v":0},{"$f":"T_DataComboFile[[#This Row],[2022/23 Baseline]]+T_DataComboFile[[#This Row],[2022/23 Reduction]]+T_DataComboFile[[#This Row],[2022/23 Increase]]","v":0},{"$f":"T_DataComboFile[[#This Row],[2023/24 Baseline]]+T_DataComboFile[[#This Row],[2023/24 Reduction]]+T_DataComboFile[[#This Row],[2023/24 Increase]]","v":0}]
[null,null,"2021_22","ENE2020",36,2,1,null,70510,36,2,1,null,"070510","36|02|01",1,2,8,50,53,"01|02|08|50|53","National","Small Business Development","Sector Policy and Research","Research",null,"Current","Transfers and subsidies","Public corporations and private enterprises","Private enterprises","Subsidies on products and production (pe)",null,null,null,0,0,0,0,0,0,0,0,0,0,0,0,0,0,null,{"$f":"IF(T_DataComboFile[[#This Row],[G&S reporting level indicator]]=1,$AX$16,\"Not applicable\")","v":"Level 3"},{"$f":"IF(AND($AX$16=\"Level 3\",T_DataComboFile[[#This Row],[Econ3]] = \"Goods and services\"),IF(T_DataComboFile[[#This Row],[Econ4]] = T_DataComboFile[[#This Row],[Econ3]],1,0),IF(AND($AX$16=\"Level 4\",T_DataComboFile[[#This Row],[Econ4]] = \"Goods and services\"),0,1))","v":1},{"$f":"T_DataComboFile[[#This Row],[2016/17_Source]]*T_DataComboFile[[#This Row],[G&S reporting level indicator]]","v":0},{"$f":"T_DataComboFile[[#This Row],[2017/18_Source]]*T_DataComboFile[[#This Row],[G&S reporting level indicator]]","v":0},{"$f":"T_DataComboFile[[#This Row],[2018/19_Source]]*T_DataComboFile[[#This Row],[G&S reporting level indicator]]","v":0},{"$f":"T_DataComboFile[[#This Row],[2019/20 Main appropriation_Source]]*T_DataComboFile[[#This Row],[G&S reporting level indicator]]","v":0},{"$f":"T_DataComboFile[[#This Row],[2019/20 Adjusted appropriation_Source]]*T_DataComboFile[[#This Row],[G&S reporting level indicator]]","v":0},{"$f":"T_DataComboFile[[#This Row],[2019/20 Revised estimate_Source]]*T_DataComboFile[[#This Row],[G&S reporting level indicator]]","v":0},{"$f":"T_DataComboFile[[#This Row],[2019/20 Preliminary outcome_Source]]*T_DataComboFile[[#This Row],[G&S reporting level indicator]]","v":0},{"$f":"T_DataComboFile[[#This Row],[2020/21 Original_Source]]*T_DataComboFile[[#This Row],[G&S reporting level indicator]]","v":0},{"$f":"T_DataComboFile[[#This Row],[2020/21 SAB_Source]]*T_DataComboFile[[#This Row],[G&S reporting level indicator]]","v":0},{"$f":"T_DataComboFile[[#This Row],[2020/21 Baseline_Source]]*T_DataComboFile[[#This Row],[G&S reporting level indicator]]","v":0},{"$f":"T_DataComboFile[[#This Row],[2021/22 Baseline_Source]]*T_DataComboFile[[#This Row],[G&S reporting level indicator]]","v":0},{"$f":"T_DataComboFile[[#This Row],[2022/23 Baseline_Source]]*T_DataComboFile[[#This Row],[G&S reporting level indicator]]","v":0},{"$f":"T_DataComboFile[[#This Row],[2023/24 Baseline_Source]]*T_DataComboFile[[#This Row],[G&S reporting level indicator]]","v":0},null,null,null,null,null,null,{"$f":"T_DataComboFile[[#This Row],[2021/22 Baseline]]+T_DataComboFile[[#This Row],[2021/22 Reduction]]+T_DataComboFile[[#This Row],[2021/22 Increase]]","v":0},{"$f":"T_DataComboFile[[#This Row],[2022/23 Baseline]]+T_DataComboFile[[#This Row],[2022/23 Reduction]]+T_DataComboFile[[#This Row],[2022/23 Increase]]","v":0},{"$f":"T_DataComboFile[[#This Row],[2023/24 Baseline]]+T_DataComboFile[[#This Row],[2023/24 Reduction]]+T_DataComboFile[[#This Row],[2023/24 Increase]]","v":0}]
[null,null,"2021_22","ENE2020",36,2,1,null,70511,36,2,1,null,"070511","36|02|01",1,2,8,50,54,"01|02|08|50|54","National","Small Business Development","Sector Policy and Research","Research",null,"Current","Transfers and subsidies","Public corporations and private enterprises","Private enterprises","Other transfers to private enterprises",null,null,null,0,0,0,0,0,0,0,0,0,0,0,0,0,0,null,{"$f":"IF(T_DataComboFile[[#This Row],[G&S reporting level indicator]]=1,$AX$16,\"Not applicable\")","v":"Level 3"},{"$f":"IF(AND($AX$16=\"Level 3\",T_DataComboFile[[#This Row],[Econ3]] = \"Goods and services\"),IF(T_DataComboFile[[#This Row],[Econ4]] = T_DataComboFile[[#This Row],[Econ3]],1,0),IF(AND($AX$16=\"Level 4\",T_DataComboFile[[#This Row],[Econ4]] = \"Goods and services\"),0,1))","v":1},{"$f":"T_DataComboFile[[#This Row],[2016/17_Source]]*T_DataComboFile[[#This Row],[G&S reporting level indicator]]","v":0},{"$f":"T_DataComboFile[[#This Row],[2017/18_Source]]*T_DataComboFile[[#This Row],[G&S reporting level indicator]]","v":0},{"$f":"T_DataComboFile[[#This Row],[2018/19_Source]]*T_DataComboFile[[#This Row],[G&S reporting level indicator]]","v":0},{"$f":"T_DataComboFile[[#This Row],[2019/20 Main appropriation_Source]]*T_DataComboFile[[#This Row],[G&S reporting level indicator]]","v":0},{"$f":"T_DataComboFile[[#This Row],[2019/20 Adjusted appropriation_Source]]*T_DataComboFile[[#This Row],[G&S reporting level indicator]]","v":0},{"$f":"T_DataComboFile[[#This Row],[2019/20 Revised estimate_Source]]*T_DataComboFile[[#This Row],[G&S reporting level indicator]]","v":0},{"$f":"T_DataComboFile[[#This Row],[2019/20 Preliminary outcome_Source]]*T_DataComboFile[[#This Row],[G&S reporting level indicator]]","v":0},{"$f":"T_DataComboFile[[#This Row],[2020/21 Original_Source]]*T_DataComboFile[[#This Row],[G&S reporting level indicator]]","v":0},{"$f":"T_DataComboFile[[#This Row],[2020/21 SAB_Source]]*T_DataComboFile[[#This Row],[G&S reporting level indicator]]","v":0},{"$f":"T_DataComboFile[[#This Row],[2020/21 Baseline_Source]]*T_DataComboFile[[#This Row],[G&S reporting level indicator]]","v":0},{"$f":"T_DataComboFile[[#This Row],[2021/22 Baseline_Source]]*T_DataComboFile[[#This Row],[G&S reporting level indicator]]","v":0},{"$f":"T_DataComboFile[[#This Row],[2022/23 Baseline_Source]]*T_DataComboFile[[#This Row],[G&S reporting level indicator]]","v":0},{"$f":"T_DataComboFile[[#This Row],[2023/24 Baseline_Source]]*T_DataComboFile[[#This Row],[G&S reporting level indicator]]","v":0},null,null,null,null,null,null,{"$f":"T_DataComboFile[[#This Row],[2021/22 Baseline]]+T_DataComboFile[[#This Row],[2021/22 Reduction]]+T_DataComboFile[[#This Row],[2021/22 Increase]]","v":0},{"$f":"T_DataComboFile[[#This Row],[2022/23 Baseline]]+T_DataComboFile[[#This Row],[2022/23 Reduction]]+T_DataComboFile[[#This Row],[2022/23 Increase]]","v":0},{"$f":"T_DataComboFile[[#This Row],[2023/24 Baseline]]+T_DataComboFile[[#This Row],[2023/24 Reduction]]+T_DataComboFile[[#This Row],[2023/24 Increase]]","v":0}]
[null,null,"2021_22","ENE2020",36,2,1,null,70512,36,2,1,null,"070512","36|02|01",1,2,9,51,55,"01|02|09|51|55","National","Small Business Development","Sector Policy and Research","Research",null,"Current","Transfers and subsidies","Non-profit institutions","Non-profit institutions","Non-profit institutions",null,null,null,0,0,0,0,0,0,0,0,0,0,0,0,0,0,null,{"$f":"IF(T_DataComboFile[[#This Row],[G&S reporting level indicator]]=1,$AX$16,\"Not applicable\")","v":"Level 3"},{"$f":"IF(AND($AX$16=\"Level 3\",T_DataComboFile[[#This Row],[Econ3]] = \"Goods and services\"),IF(T_DataComboFile[[#This Row],[Econ4]] = T_DataComboFile[[#This Row],[Econ3]],1,0),IF(AND($AX$16=\"Level 4\",T_DataComboFile[[#This Row],[Econ4]] = \"Goods and services\"),0,1))","v":1},{"$f":"T_DataComboFile[[#This Row],[2016/17_Source]]*T_DataComboFile[[#This Row],[G&S reporting level indicator]]","v":0},{"$f":"T_DataComboFile[[#This Row],[2017/18_Source]]*T_DataComboFile[[#This Row],[G&S reporting level indicator]]","v":0},{"$f":"T_DataComboFile[[#This Row],[2018/19_Source]]*T_DataComboFile[[#This Row],[G&S reporting level indicator]]","v":0},{"$f":"T_DataComboFile[[#This Row],[2019/20 Main appropriation_Source]]*T_DataComboFile[[#This Row],[G&S reporting level indicator]]","v":0},{"$f":"T_DataComboFile[[#This Row],[2019/20 Adjusted appropriation_Source]]*T_DataComboFile[[#This Row],[G&S reporting level indicator]]","v":0},{"$f":"T_DataComboFile[[#This Row],[2019/20 Revised estimate_Source]]*T_DataComboFile[[#This Row],[G&S reporting level indicator]]","v":0},{"$f":"T_DataComboFile[[#This Row],[2019/20 Preliminary outcome_Source]]*T_DataComboFile[[#This Row],[G&S reporting level indicator]]","v":0},{"$f":"T_DataComboFile[[#This Row],[2020/21 Original_Source]]*T_DataComboFile[[#This Row],[G&S reporting level indicator]]","v":0},{"$f":"T_DataComboFile[[#This Row],[2020/21 SAB_Source]]*T_DataComboFile[[#This Row],[G&S reporting level indicator]]","v":0},{"$f":"T_DataComboFile[[#This Row],[2020/21 Baseline_Source]]*T_DataComboFile[[#This Row],[G&S reporting level indicator]]","v":0},{"$f":"T_DataComboFile[[#This Row],[2021/22 Baseline_Source]]*T_DataComboFile[[#This Row],[G&S reporting level indicator]]","v":0},{"$f":"T_DataComboFile[[#This Row],[2022/23 Baseline_Source]]*T_DataComboFile[[#This Row],[G&S reporting level indicator]]","v":0},{"$f":"T_DataComboFile[[#This Row],[2023/24 Baseline_Source]]*T_DataComboFile[[#This Row],[G&S reporting level indicator]]","v":0},null,null,null,null,null,null,{"$f":"T_DataComboFile[[#This Row],[2021/22 Baseline]]+T_DataComboFile[[#This Row],[2021/22 Reduction]]+T_DataComboFile[[#This Row],[2021/22 Increase]]","v":0},{"$f":"T_DataComboFile[[#This Row],[2022/23 Baseline]]+T_DataComboFile[[#This Row],[2022/23 Reduction]]+T_DataComboFile[[#This Row],[2022/23 Increase]]","v":0},{"$f":"T_DataComboFile[[#This Row],[2023/24 Baseline]]+T_DataComboFile[[#This Row],[2023/24 Reduction]]+T_DataComboFile[[#This Row],[2023/24 Increase]]","v":0}]
["NAT|Employee social benefits","36|Social benefits","2021_22","ENE2020",36,2,1,17297,70513,36,2,1,17297,"070513","36|02|01",1,2,10,52,56,"01|02|10|52|56","National","Small Business Development","Sector Policy and Research","Research","Employee social benefits","Current","Transfers and subsidies","Households","Social benefits","Social benefits","Economic development","Industrialisation and exports","NAT",0,0,21,0,0,0,0,0,0,0,0,0,0,1,null,{"$f":"IF(T_DataComboFile[[#This Row],[G&S reporting level indicator]]=1,$AX$16,\"Not applicable\")","v":"Level 3"},{"$f":"IF(AND($AX$16=\"Level 3\",T_DataComboFile[[#This Row],[Econ3]] = \"Goods and services\"),IF(T_DataComboFile[[#This Row],[Econ4]] = T_DataComboFile[[#This Row],[Econ3]],1,0),IF(AND($AX$16=\"Level 4\",T_DataComboFile[[#This Row],[Econ4]] = \"Goods and services\"),0,1))","v":1},{"$f":"T_DataComboFile[[#This Row],[2016/17_Source]]*T_DataComboFile[[#This Row],[G&S reporting level indicator]]","v":0},{"$f":"T_DataComboFile[[#This Row],[2017/18_Source]]*T_DataComboFile[[#This Row],[G&S reporting level indicator]]","v":0},{"$f":"T_DataComboFile[[#This Row],[2018/19_Source]]*T_DataComboFile[[#This Row],[G&S reporting level indicator]]","v":21},{"$f":"T_DataComboFile[[#This Row],[2019/20 Main appropriation_Source]]*T_DataComboFile[[#This Row],[G&S reporting level indicator]]","v":0},{"$f":"T_DataComboFile[[#This Row],[2019/20 Adjusted appropriation_Source]]*T_DataComboFile[[#This Row],[G&S reporting level indicator]]","v":0},{"$f":"T_DataComboFile[[#This Row],[2019/20 Revised estimate_Source]]*T_DataComboFile[[#This Row],[G&S reporting level indicator]]","v":0},{"$f":"T_DataComboFile[[#This Row],[2019/20 Preliminary outcome_Source]]*T_DataComboFile[[#This Row],[G&S reporting level indicator]]","v":0},{"$f":"T_DataComboFile[[#This Row],[2020/21 Original_Source]]*T_DataComboFile[[#This Row],[G&S reporting level indicator]]","v":0},{"$f":"T_DataComboFile[[#This Row],[2020/21 SAB_Source]]*T_DataComboFile[[#This Row],[G&S reporting level indicator]]","v":0},{"$f":"T_DataComboFile[[#This Row],[2020/21 Baseline_Source]]*T_DataComboFile[[#This Row],[G&S reporting level indicator]]","v":0},{"$f":"T_DataComboFile[[#This Row],[2021/22 Baseline_Source]]*T_DataComboFile[[#This Row],[G&S reporting level indicator]]","v":0},{"$f":"T_DataComboFile[[#This Row],[2022/23 Baseline_Source]]*T_DataComboFile[[#This Row],[G&S reporting level indicator]]","v":0},{"$f":"T_DataComboFile[[#This Row],[2023/24 Baseline_Source]]*T_DataComboFile[[#This Row],[G&S reporting level indicator]]","v":0},null,null,null,null,null,null,{"$f":"T_DataComboFile[[#This Row],[2021/22 Baseline]]+T_DataComboFile[[#This Row],[2021/22 Reduction]]+T_DataComboFile[[#This Row],[2021/22 Increase]]","v":0},{"$f":"T_DataComboFile[[#This Row],[2022/23 Baseline]]+T_DataComboFile[[#This Row],[2022/23 Reduction]]+T_DataComboFile[[#This Row],[2022/23 Increase]]","v":0},{"$f":"T_DataComboFile[[#This Row],[2023/24 Baseline]]+T_DataComboFile[[#This Row],[2023/24 Reduction]]+T_DataComboFile[[#This Row],[2023/24 Increase]]","v":0}]
[null,null,"2021_22","ENE2020",36,2,1,null,70514,36,2,1,null,"070514","36|02|01",1,2,10,53,57,"01|02|10|53|57","National","Small Business Development","Sector Policy and Research","Research",null,"Current","Transfers and subsidies","Households","Other transfers to households","Other transfers to households",null,null,null,0,0,0,0,0,0,0,0,0,0,0,0,0,0,null,{"$f":"IF(T_DataComboFile[[#This Row],[G&S reporting level indicator]]=1,$AX$16,\"Not applicable\")","v":"Level 3"},{"$f":"IF(AND($AX$16=\"Level 3\",T_DataComboFile[[#This Row],[Econ3]] = \"Goods and services\"),IF(T_DataComboFile[[#This Row],[Econ4]] = T_DataComboFile[[#This Row],[Econ3]],1,0),IF(AND($AX$16=\"Level 4\",T_DataComboFile[[#This Row],[Econ4]] = \"Goods and services\"),0,1))","v":1},{"$f":"T_DataComboFile[[#This Row],[2016/17_Source]]*T_DataComboFile[[#This Row],[G&S reporting level indicator]]","v":0},{"$f":"T_DataComboFile[[#This Row],[2017/18_Source]]*T_DataComboFile[[#This Row],[G&S reporting level indicator]]","v":0},{"$f":"T_DataComboFile[[#This Row],[2018/19_Source]]*T_DataComboFile[[#This Row],[G&S reporting level indicator]]","v":0},{"$f":"T_DataComboFile[[#This Row],[2019/20 Main appropriation_Source]]*T_DataComboFile[[#This Row],[G&S reporting level indicator]]","v":0},{"$f":"T_DataComboFile[[#This Row],[2019/20 Adjusted appropriation_Source]]*T_DataComboFile[[#This Row],[G&S reporting level indicator]]","v":0},{"$f":"T_DataComboFile[[#This Row],[2019/20 Revised estimate_Source]]*T_DataComboFile[[#This Row],[G&S reporting level indicator]]","v":0},{"$f":"T_DataComboFile[[#This Row],[2019/20 Preliminary outcome_Source]]*T_DataComboFile[[#This Row],[G&S reporting level indicator]]","v":0},{"$f":"T_DataComboFile[[#This Row],[2020/21 Original_Source]]*T_DataComboFile[[#This Row],[G&S reporting level indicator]]","v":0},{"$f":"T_DataComboFile[[#This Row],[2020/21 SAB_Source]]*T_DataComboFile[[#This Row],[G&S reporting level indicator]]","v":0},{"$f":"T_DataComboFile[[#This Row],[2020/21 Baseline_Source]]*T_DataComboFile[[#This Row],[G&S reporting level indicator]]","v":0},{"$f":"T_DataComboFile[[#This Row],[2021/22 Baseline_Source]]*T_DataComboFile[[#This Row],[G&S reporting level indicator]]","v":0},{"$f":"T_DataComboFile[[#This Row],[2022/23 Baseline_Source]]*T_DataComboFile[[#This Row],[G&S reporting level indicator]]","v":0},{"$f":"T_DataComboFile[[#This Row],[2023/24 Baseline_Source]]*T_DataComboFile[[#This Row],[G&S reporting level indicator]]","v":0},null,null,null,null,null,null,{"$f":"T_DataComboFile[[#This Row],[2021/22 Baseline]]+T_DataComboFile[[#This Row],[2021/22 Reduction]]+T_DataComboFile[[#This Row],[2021/22 Increase]]","v":0},{"$f":"T_DataComboFile[[#This Row],[2022/23 Baseline]]+T_DataComboFile[[#This Row],[2022/23 Reduction]]+T_DataComboFile[[#This Row],[2022/23 Increase]]","v":0},{"$f":"T_DataComboFile[[#This Row],[2023/24 Baseline]]+T_DataComboFile[[#This Row],[2023/24 Reduction]]+T_DataComboFile[[#This Row],[2023/24 Increase]]","v":0}]
[null,null,"2021_22","ENE2020",36,2,1,null,70515,36,2,1,null,"070515","36|02|01",2,2,4,43,43,"02|02|04|43|43","National","Small Business Development","Sector Policy and Research","Research",null,"Capital","Transfers and subsidies","Provinces and municipalities","Provinces","Provincial Revenue Funds",null,null,null,0,0,0,0,0,0,0,0,0,0,0,0,0,0,null,{"$f":"IF(T_DataComboFile[[#This Row],[G&S reporting level indicator]]=1,$AX$16,\"Not applicable\")","v":"Level 3"},{"$f":"IF(AND($AX$16=\"Level 3\",T_DataComboFile[[#This Row],[Econ3]] = \"Goods and services\"),IF(T_DataComboFile[[#This Row],[Econ4]] = T_DataComboFile[[#This Row],[Econ3]],1,0),IF(AND($AX$16=\"Level 4\",T_DataComboFile[[#This Row],[Econ4]] = \"Goods and services\"),0,1))","v":1},{"$f":"T_DataComboFile[[#This Row],[2016/17_Source]]*T_DataComboFile[[#This Row],[G&S reporting level indicator]]","v":0},{"$f":"T_DataComboFile[[#This Row],[2017/18_Source]]*T_DataComboFile[[#This Row],[G&S reporting level indicator]]","v":0},{"$f":"T_DataComboFile[[#This Row],[2018/19_Source]]*T_DataComboFile[[#This Row],[G&S reporting level indicator]]","v":0},{"$f":"T_DataComboFile[[#This Row],[2019/20 Main appropriation_Source]]*T_DataComboFile[[#This Row],[G&S reporting level indicator]]","v":0},{"$f":"T_DataComboFile[[#This Row],[2019/20 Adjusted appropriation_Source]]*T_DataComboFile[[#This Row],[G&S reporting level indicator]]","v":0},{"$f":"T_DataComboFile[[#This Row],[2019/20 Revised estimate_Source]]*T_DataComboFile[[#This Row],[G&S reporting level indicator]]","v":0},{"$f":"T_DataComboFile[[#This Row],[2019/20 Preliminary outcome_Source]]*T_DataComboFile[[#This Row],[G&S reporting level indicator]]","v":0},{"$f":"T_DataComboFile[[#This Row],[2020/21 Original_Source]]*T_DataComboFile[[#This Row],[G&S reporting level indicator]]","v":0},{"$f":"T_DataComboFile[[#This Row],[2020/21 SAB_Source]]*T_DataComboFile[[#This Row],[G&S reporting level indicator]]","v":0},{"$f":"T_DataComboFile[[#This Row],[2020/21 Baseline_Source]]*T_DataComboFile[[#This Row],[G&S reporting level indicator]]","v":0},{"$f":"T_DataComboFile[[#This Row],[2021/22 Baseline_Source]]*T_DataComboFile[[#This Row],[G&S reporting level indicator]]","v":0},{"$f":"T_DataComboFile[[#This Row],[2022/23 Baseline_Source]]*T_DataComboFile[[#This Row],[G&S reporting level indicator]]","v":0},{"$f":"T_DataComboFile[[#This Row],[2023/24 Baseline_Source]]*T_DataComboFile[[#This Row],[G&S reporting level indicator]]","v":0},null,null,null,null,null,null,{"$f":"T_DataComboFile[[#This Row],[2021/22 Baseline]]+T_DataComboFile[[#This Row],[2021/22 Reduction]]+T_DataComboFile[[#This Row],[2021/22 Increase]]","v":0},{"$f":"T_DataComboFile[[#This Row],[2022/23 Baseline]]+T_DataComboFile[[#This Row],[2022/23 Reduction]]+T_DataComboFile[[#This Row],[2022/23 Increase]]","v":0},{"$f":"T_DataComboFile[[#This Row],[2023/24 Baseline]]+T_DataComboFile[[#This Row],[2023/24 Reduction]]+T_DataComboFile[[#This Row],[2023/24 Increase]]","v":0}]
[null,null,"2021_22","ENE2020",36,2,1,null,70516,36,2,1,null,"070516","36|02|01",2,2,4,44,45,"02|02|04|44|45","National","Small Business Development","Sector Policy and Research","Research",null,"Capital","Transfers and subsidies","Provinces and municipalities","Municipalities","Municipal bank accounts",null,null,null,0,0,0,0,0,0,0,0,0,0,0,0,0,0,null,{"$f":"IF(T_DataComboFile[[#This Row],[G&S reporting level indicator]]=1,$AX$16,\"Not applicable\")","v":"Level 3"},{"$f":"IF(AND($AX$16=\"Level 3\",T_DataComboFile[[#This Row],[Econ3]] = \"Goods and services\"),IF(T_DataComboFile[[#This Row],[Econ4]] = T_DataComboFile[[#This Row],[Econ3]],1,0),IF(AND($AX$16=\"Level 4\",T_DataComboFile[[#This Row],[Econ4]] = \"Goods and services\"),0,1))","v":1},{"$f":"T_DataComboFile[[#This Row],[2016/17_Source]]*T_DataComboFile[[#This Row],[G&S reporting level indicator]]","v":0},{"$f":"T_DataComboFile[[#This Row],[2017/18_Source]]*T_DataComboFile[[#This Row],[G&S reporting level indicator]]","v":0},{"$f":"T_DataComboFile[[#This Row],[2018/19_Source]]*T_DataComboFile[[#This Row],[G&S reporting level indicator]]","v":0},{"$f":"T_DataComboFile[[#This Row],[2019/20 Main appropriation_Source]]*T_DataComboFile[[#This Row],[G&S reporting level indicator]]","v":0},{"$f":"T_DataComboFile[[#This Row],[2019/20 Adjusted appropriation_Source]]*T_DataComboFile[[#This Row],[G&S reporting level indicator]]","v":0},{"$f":"T_DataComboFile[[#This Row],[2019/20 Revised estimate_Source]]*T_DataComboFile[[#This Row],[G&S reporting level indicator]]","v":0},{"$f":"T_DataComboFile[[#This Row],[2019/20 Preliminary outcome_Source]]*T_DataComboFile[[#This Row],[G&S reporting level indicator]]","v":0},{"$f":"T_DataComboFile[[#This Row],[2020/21 Original_Source]]*T_DataComboFile[[#This Row],[G&S reporting level indicator]]","v":0},{"$f":"T_DataComboFile[[#This Row],[2020/21 SAB_Source]]*T_DataComboFile[[#This Row],[G&S reporting level indicator]]","v":0},{"$f":"T_DataComboFile[[#This Row],[2020/21 Baseline_Source]]*T_DataComboFile[[#This Row],[G&S reporting level indicator]]","v":0},{"$f":"T_DataComboFile[[#This Row],[2021/22 Baseline_Source]]*T_DataComboFile[[#This Row],[G&S reporting level indicator]]","v":0},{"$f":"T_DataComboFile[[#This Row],[2022/23 Baseline_Source]]*T_DataComboFile[[#This Row],[G&S reporting level indicator]]","v":0},{"$f":"T_DataComboFile[[#This Row],[2023/24 Baseline_Source]]*T_DataComboFile[[#This Row],[G&S reporting level indicator]]","v":0},null,null,null,null,null,null,{"$f":"T_DataComboFile[[#This Row],[2021/22 Baseline]]+T_DataComboFile[[#This Row],[2021/22 Reduction]]+T_DataComboFile[[#This Row],[2021/22 Increase]]","v":0},{"$f":"T_DataComboFile[[#This Row],[2022/23 Baseline]]+T_DataComboFile[[#This Row],[2022/23 Reduction]]+T_DataComboFile[[#This Row],[2022/23 Increase]]","v":0},{"$f":"T_DataComboFile[[#This Row],[2023/24 Baseline]]+T_DataComboFile[[#This Row],[2023/24 Reduction]]+T_DataComboFile[[#This Row],[2023/24 Increase]]","v":0}]
[null,null,"2021_22","ENE2020",36,2,1,null,70517,36,2,1,null,"070517","36|02|01",2,2,5,46,48,"02|02|05|46|48","National","Small Business Development","Sector Policy and Research","Research",null,"Capital","Transfers and subsidies","Departmental agencies and accounts","Departmental agencies (non-business entities)","Departmental agencies (non-business entities)",null,null,null,0,0,0,0,0,0,0,0,0,0,0,0,0,0,null,{"$f":"IF(T_DataComboFile[[#This Row],[G&S reporting level indicator]]=1,$AX$16,\"Not applicable\")","v":"Level 3"},{"$f":"IF(AND($AX$16=\"Level 3\",T_DataComboFile[[#This Row],[Econ3]] = \"Goods and services\"),IF(T_DataComboFile[[#This Row],[Econ4]] = T_DataComboFile[[#This Row],[Econ3]],1,0),IF(AND($AX$16=\"Level 4\",T_DataComboFile[[#This Row],[Econ4]] = \"Goods and services\"),0,1))","v":1},{"$f":"T_DataComboFile[[#This Row],[2016/17_Source]]*T_DataComboFile[[#This Row],[G&S reporting level indicator]]","v":0},{"$f":"T_DataComboFile[[#This Row],[2017/18_Source]]*T_DataComboFile[[#This Row],[G&S reporting level indicator]]","v":0},{"$f":"T_DataComboFile[[#This Row],[2018/19_Source]]*T_DataComboFile[[#This Row],[G&S reporting level indicator]]","v":0},{"$f":"T_DataComboFile[[#This Row],[2019/20 Main appropriation_Source]]*T_DataComboFile[[#This Row],[G&S reporting level indicator]]","v":0},{"$f":"T_DataComboFile[[#This Row],[2019/20 Adjusted appropriation_Source]]*T_DataComboFile[[#This Row],[G&S reporting level indicator]]","v":0},{"$f":"T_DataComboFile[[#This Row],[2019/20 Revised estimate_Source]]*T_DataComboFile[[#This Row],[G&S reporting level indicator]]","v":0},{"$f":"T_DataComboFile[[#This Row],[2019/20 Preliminary outcome_Source]]*T_DataComboFile[[#This Row],[G&S reporting level indicator]]","v":0},{"$f":"T_DataComboFile[[#This Row],[2020/21 Original_Source]]*T_DataComboFile[[#This Row],[G&S reporting level indicator]]","v":0},{"$f":"T_DataComboFile[[#This Row],[2020/21 SAB_Source]]*T_DataComboFile[[#This Row],[G&S reporting level indicator]]","v":0},{"$f":"T_DataComboFile[[#This Row],[2020/21 Baseline_Source]]*T_DataComboFile[[#This Row],[G&S reporting level indicator]]","v":0},{"$f":"T_DataComboFile[[#This Row],[2021/22 Baseline_Source]]*T_DataComboFile[[#This Row],[G&S reporting level indicator]]","v":0},{"$f":"T_DataComboFile[[#This Row],[2022/23 Baseline_Source]]*T_DataComboFile[[#This Row],[G&S reporting level indicator]]","v":0},{"$f":"T_DataComboFile[[#This Row],[2023/24 Baseline_Source]]*T_DataComboFile[[#This Row],[G&S reporting level indicator]]","v":0},null,null,null,null,null,null,{"$f":"T_DataComboFile[[#This Row],[2021/22 Baseline]]+T_DataComboFile[[#This Row],[2021/22 Reduction]]+T_DataComboFile[[#This Row],[2021/22 Increase]]","v":0},{"$f":"T_DataComboFile[[#This Row],[2022/23 Baseline]]+T_DataComboFile[[#This Row],[2022/23 Reduction]]+T_DataComboFile[[#This Row],[2022/23 Increase]]","v":0},{"$f":"T_DataComboFile[[#This Row],[2023/24 Baseline]]+T_DataComboFile[[#This Row],[2023/24 Reduction]]+T_DataComboFile[[#This Row],[2023/24 Increase]]","v":0}]
[null,null,"2021_22","ENE2020",36,2,1,null,70518,36,2,1,null,"070518","36|02|01",2,2,6,47,49,"02|02|06|47|49","National","Small Business Development","Sector Policy and Research","Research",null,"Capital","Transfers and subsidies","Higher education institutions","Higher education institutions","Higher education institutions",null,null,null,0,0,0,0,0,0,0,0,0,0,0,0,0,0,null,{"$f":"IF(T_DataComboFile[[#This Row],[G&S reporting level indicator]]=1,$AX$16,\"Not applicable\")","v":"Level 3"},{"$f":"IF(AND($AX$16=\"Level 3\",T_DataComboFile[[#This Row],[Econ3]] = \"Goods and services\"),IF(T_DataComboFile[[#This Row],[Econ4]] = T_DataComboFile[[#This Row],[Econ3]],1,0),IF(AND($AX$16=\"Level 4\",T_DataComboFile[[#This Row],[Econ4]] = \"Goods and services\"),0,1))","v":1},{"$f":"T_DataComboFile[[#This Row],[2016/17_Source]]*T_DataComboFile[[#This Row],[G&S reporting level indicator]]","v":0},{"$f":"T_DataComboFile[[#This Row],[2017/18_Source]]*T_DataComboFile[[#This Row],[G&S reporting level indicator]]","v":0},{"$f":"T_DataComboFile[[#This Row],[2018/19_Source]]*T_DataComboFile[[#This Row],[G&S reporting level indicator]]","v":0},{"$f":"T_DataComboFile[[#This Row],[2019/20 Main appropriation_Source]]*T_DataComboFile[[#This Row],[G&S reporting level indicator]]","v":0},{"$f":"T_DataComboFile[[#This Row],[2019/20 Adjusted appropriation_Source]]*T_DataComboFile[[#This Row],[G&S reporting level indicator]]","v":0},{"$f":"T_DataComboFile[[#This Row],[2019/20 Revised estimate_Source]]*T_DataComboFile[[#This Row],[G&S reporting level indicator]]","v":0},{"$f":"T_DataComboFile[[#This Row],[2019/20 Preliminary outcome_Source]]*T_DataComboFile[[#This Row],[G&S reporting level indicator]]","v":0},{"$f":"T_DataComboFile[[#This Row],[2020/21 Original_Source]]*T_DataComboFile[[#This Row],[G&S reporting level indicator]]","v":0},{"$f":"T_DataComboFile[[#This Row],[2020/21 SAB_Source]]*T_DataComboFile[[#This Row],[G&S reporting level indicator]]","v":0},{"$f":"T_DataComboFile[[#This Row],[2020/21 Baseline_Source]]*T_DataComboFile[[#This Row],[G&S reporting level indicator]]","v":0},{"$f":"T_DataComboFile[[#This Row],[2021/22 Baseline_Source]]*T_DataComboFile[[#This Row],[G&S reporting level indicator]]","v":0},{"$f":"T_DataComboFile[[#This Row],[2022/23 Baseline_Source]]*T_DataComboFile[[#This Row],[G&S reporting level indicator]]","v":0},{"$f":"T_DataComboFile[[#This Row],[2023/24 Baseline_Source]]*T_DataComboFile[[#This Row],[G&S reporting level indicator]]","v":0},null,null,null,null,null,null,{"$f":"T_DataComboFile[[#This Row],[2021/22 Baseline]]+T_DataComboFile[[#This Row],[2021/22 Reduction]]+T_DataComboFile[[#This Row],[2021/22 Increase]]","v":0},{"$f":"T_DataComboFile[[#This Row],[2022/23 Baseline]]+T_DataComboFile[[#This Row],[2022/23 Reduction]]+T_DataComboFile[[#This Row],[2022/23 Increase]]","v":0},{"$f":"T_DataComboFile[[#This Row],[2023/24 Baseline]]+T_DataComboFile[[#This Row],[2023/24 Reduction]]+T_DataComboFile[[#This Row],[2023/24 Increase]]","v":0}]
[null,null,"2021_22","ENE2020",36,2,1,null,70519,36,2,1,null,"070519","36|02|01",2,2,7,48,50,"02|02|07|48|50","National","Small Business Development","Sector Policy and Research","Research",null,"Capital","Transfers and subsidies","Foreign governments and international organisations","Foreign governments and international organisations","Foreign governments and international organisations",null,null,null,0,0,0,0,0,0,0,0,0,0,0,0,0,0,null,{"$f":"IF(T_DataComboFile[[#This Row],[G&S reporting level indicator]]=1,$AX$16,\"Not applicable\")","v":"Level 3"},{"$f":"IF(AND($AX$16=\"Level 3\",T_DataComboFile[[#This Row],[Econ3]] = \"Goods and services\"),IF(T_DataComboFile[[#This Row],[Econ4]] = T_DataComboFile[[#This Row],[Econ3]],1,0),IF(AND($AX$16=\"Level 4\",T_DataComboFile[[#This Row],[Econ4]] = \"Goods and services\"),0,1))","v":1},{"$f":"T_DataComboFile[[#This Row],[2016/17_Source]]*T_DataComboFile[[#This Row],[G&S reporting level indicator]]","v":0},{"$f":"T_DataComboFile[[#This Row],[2017/18_Source]]*T_DataComboFile[[#This Row],[G&S reporting level indicator]]","v":0},{"$f":"T_DataComboFile[[#This Row],[2018/19_Source]]*T_DataComboFile[[#This Row],[G&S reporting level indicator]]","v":0},{"$f":"T_DataComboFile[[#This Row],[2019/20 Main appropriation_Source]]*T_DataComboFile[[#This Row],[G&S reporting level indicator]]","v":0},{"$f":"T_DataComboFile[[#This Row],[2019/20 Adjusted appropriation_Source]]*T_DataComboFile[[#This Row],[G&S reporting level indicator]]","v":0},{"$f":"T_DataComboFile[[#This Row],[2019/20 Revised estimate_Source]]*T_DataComboFile[[#This Row],[G&S reporting level indicator]]","v":0},{"$f":"T_DataComboFile[[#This Row],[2019/20 Preliminary outcome_Source]]*T_DataComboFile[[#This Row],[G&S reporting level indicator]]","v":0},{"$f":"T_DataComboFile[[#This Row],[2020/21 Original_Source]]*T_DataComboFile[[#This Row],[G&S reporting level indicator]]","v":0},{"$f":"T_DataComboFile[[#This Row],[2020/21 SAB_Source]]*T_DataComboFile[[#This Row],[G&S reporting level indicator]]","v":0},{"$f":"T_DataComboFile[[#This Row],[2020/21 Baseline_Source]]*T_DataComboFile[[#This Row],[G&S reporting level indicator]]","v":0},{"$f":"T_DataComboFile[[#This Row],[2021/22 Baseline_Source]]*T_DataComboFile[[#This Row],[G&S reporting level indicator]]","v":0},{"$f":"T_DataComboFile[[#This Row],[2022/23 Baseline_Source]]*T_DataComboFile[[#This Row],[G&S reporting level indicator]]","v":0},{"$f":"T_DataComboFile[[#This Row],[2023/24 Baseline_Source]]*T_DataComboFile[[#This Row],[G&S reporting level indicator]]","v":0},null,null,null,null,null,null,{"$f":"T_DataComboFile[[#This Row],[2021/22 Baseline]]+T_DataComboFile[[#This Row],[2021/22 Reduction]]+T_DataComboFile[[#This Row],[2021/22 Increase]]","v":0},{"$f":"T_DataComboFile[[#This Row],[2022/23 Baseline]]+T_DataComboFile[[#This Row],[2022/23 Reduction]]+T_DataComboFile[[#This Row],[2022/23 Increase]]","v":0},{"$f":"T_DataComboFile[[#This Row],[2023/24 Baseline]]+T_DataComboFile[[#This Row],[2023/24 Reduction]]+T_DataComboFile[[#This Row],[2023/24 Increase]]","v":0}]
[null,null,"2021_22","ENE2020",36,2,1,null,70520,36,2,1,null,"070520","36|02|01",2,2,8,49,51,"02|02|08|49|51","National","Small Business Development","Sector Policy and Research","Research",null,"Capital","Transfers and subsidies","Public corporations and private enterprises","Public corporations","Subsidies on products and production (pc)",null,null,null,0,0,0,0,0,0,0,0,0,0,0,0,0,0,null,{"$f":"IF(T_DataComboFile[[#This Row],[G&S reporting level indicator]]=1,$AX$16,\"Not applicable\")","v":"Level 3"},{"$f":"IF(AND($AX$16=\"Level 3\",T_DataComboFile[[#This Row],[Econ3]] = \"Goods and services\"),IF(T_DataComboFile[[#This Row],[Econ4]] = T_DataComboFile[[#This Row],[Econ3]],1,0),IF(AND($AX$16=\"Level 4\",T_DataComboFile[[#This Row],[Econ4]] = \"Goods and services\"),0,1))","v":1},{"$f":"T_DataComboFile[[#This Row],[2016/17_Source]]*T_DataComboFile[[#This Row],[G&S reporting level indicator]]","v":0},{"$f":"T_DataComboFile[[#This Row],[2017/18_Source]]*T_DataComboFile[[#This Row],[G&S reporting level indicator]]","v":0},{"$f":"T_DataComboFile[[#This Row],[2018/19_Source]]*T_DataComboFile[[#This Row],[G&S reporting level indicator]]","v":0},{"$f":"T_DataComboFile[[#This Row],[2019/20 Main appropriation_Source]]*T_DataComboFile[[#This Row],[G&S reporting level indicator]]","v":0},{"$f":"T_DataComboFile[[#This Row],[2019/20 Adjusted appropriation_Source]]*T_DataComboFile[[#This Row],[G&S reporting level indicator]]","v":0},{"$f":"T_DataComboFile[[#This Row],[2019/20 Revised estimate_Source]]*T_DataComboFile[[#This Row],[G&S reporting level indicator]]","v":0},{"$f":"T_DataComboFile[[#This Row],[2019/20 Preliminary outcome_Source]]*T_DataComboFile[[#This Row],[G&S reporting level indicator]]","v":0},{"$f":"T_DataComboFile[[#This Row],[2020/21 Original_Source]]*T_DataComboFile[[#This Row],[G&S reporting level indicator]]","v":0},{"$f":"T_DataComboFile[[#This Row],[2020/21 SAB_Source]]*T_DataComboFile[[#This Row],[G&S reporting level indicator]]","v":0},{"$f":"T_DataComboFile[[#This Row],[2020/21 Baseline_Source]]*T_DataComboFile[[#This Row],[G&S reporting level indicator]]","v":0},{"$f":"T_DataComboFile[[#This Row],[2021/22 Baseline_Source]]*T_DataComboFile[[#This Row],[G&S reporting level indicator]]","v":0},{"$f":"T_DataComboFile[[#This Row],[2022/23 Baseline_Source]]*T_DataComboFile[[#This Row],[G&S reporting level indicator]]","v":0},{"$f":"T_DataComboFile[[#This Row],[2023/24 Baseline_Source]]*T_DataComboFile[[#This Row],[G&S reporting level indicator]]","v":0},null,null,null,null,null,null,{"$f":"T_DataComboFile[[#This Row],[2021/22 Baseline]]+T_DataComboFile[[#This Row],[2021/22 Reduction]]+T_DataComboFile[[#This Row],[2021/22 Increase]]","v":0},{"$f":"T_DataComboFile[[#This Row],[2022/23 Baseline]]+T_DataComboFile[[#This Row],[2022/23 Reduction]]+T_DataComboFile[[#This Row],[2022/23 Increase]]","v":0},{"$f":"T_DataComboFile[[#This Row],[2023/24 Baseline]]+T_DataComboFile[[#This Row],[2023/24 Reduction]]+T_DataComboFile[[#This Row],[2023/24 Increase]]","v":0}]
[null,null,"2021_22","ENE2020",36,2,1,null,70521,36,2,1,null,"070521","36|02|01",2,2,8,49,52,"02|02|08|49|52","National","Small Business Development","Sector Policy and Research","Research",null,"Capital","Transfers and subsidies","Public corporations and private enterprises","Public corporations","Other transfers to public corporations",null,null,null,0,0,0,0,0,0,0,0,0,0,0,0,0,0,null,{"$f":"IF(T_DataComboFile[[#This Row],[G&S reporting level indicator]]=1,$AX$16,\"Not applicable\")","v":"Level 3"},{"$f":"IF(AND($AX$16=\"Level 3\",T_DataComboFile[[#This Row],[Econ3]] = \"Goods and services\"),IF(T_DataComboFile[[#This Row],[Econ4]] = T_DataComboFile[[#This Row],[Econ3]],1,0),IF(AND($AX$16=\"Level 4\",T_DataComboFile[[#This Row],[Econ4]] = \"Goods and services\"),0,1))","v":1},{"$f":"T_DataComboFile[[#This Row],[2016/17_Source]]*T_DataComboFile[[#This Row],[G&S reporting level indicator]]","v":0},{"$f":"T_DataComboFile[[#This Row],[2017/18_Source]]*T_DataComboFile[[#This Row],[G&S reporting level indicator]]","v":0},{"$f":"T_DataComboFile[[#This Row],[2018/19_Source]]*T_DataComboFile[[#This Row],[G&S reporting level indicator]]","v":0},{"$f":"T_DataComboFile[[#This Row],[2019/20 Main appropriation_Source]]*T_DataComboFile[[#This Row],[G&S reporting level indicator]]","v":0},{"$f":"T_DataComboFile[[#This Row],[2019/20 Adjusted appropriation_Source]]*T_DataComboFile[[#This Row],[G&S reporting level indicator]]","v":0},{"$f":"T_DataComboFile[[#This Row],[2019/20 Revised estimate_Source]]*T_DataComboFile[[#This Row],[G&S reporting level indicator]]","v":0},{"$f":"T_DataComboFile[[#This Row],[2019/20 Preliminary outcome_Source]]*T_DataComboFile[[#This Row],[G&S reporting level indicator]]","v":0},{"$f":"T_DataComboFile[[#This Row],[2020/21 Original_Source]]*T_DataComboFile[[#This Row],[G&S reporting level indicator]]","v":0},{"$f":"T_DataComboFile[[#This Row],[2020/21 SAB_Source]]*T_DataComboFile[[#This Row],[G&S reporting level indicator]]","v":0},{"$f":"T_DataComboFile[[#This Row],[2020/21 Baseline_Source]]*T_DataComboFile[[#This Row],[G&S reporting level indicator]]","v":0},{"$f":"T_DataComboFile[[#This Row],[2021/22 Baseline_Source]]*T_DataComboFile[[#This Row],[G&S reporting level indicator]]","v":0},{"$f":"T_DataComboFile[[#This Row],[2022/23 Baseline_Source]]*T_DataComboFile[[#This Row],[G&S reporting level indicator]]","v":0},{"$f":"T_DataComboFile[[#This Row],[2023/24 Baseline_Source]]*T_DataComboFile[[#This Row],[G&S reporting level indicator]]","v":0},null,null,null,null,null,null,{"$f":"T_DataComboFile[[#This Row],[2021/22 Baseline]]+T_DataComboFile[[#This Row],[2021/22 Reduction]]+T_DataComboFile[[#This Row],[2021/22 Increase]]","v":0},{"$f":"T_DataComboFile[[#This Row],[2022/23 Baseline]]+T_DataComboFile[[#This Row],[2022/23 Reduction]]+T_DataComboFile[[#This Row],[2022/23 Increase]]","v":0},{"$f":"T_DataComboFile[[#This Row],[2023/24 Baseline]]+T_DataComboFile[[#This Row],[2023/24 Reduction]]+T_DataComboFile[[#This Row],[2023/24 Increase]]","v":0}]
[null,null,"2021_22","ENE2020",36,2,1,null,70522,36,2,1,null,"070522","36|02|01",2,2,8,50,54,"02|02|08|50|54","National","Small Business Development","Sector Policy and Research","Research",null,"Capital","Transfers and subsidies","Public corporations and private enterprises","Private enterprises","Other transfers to private enterprises",null,null,null,0,0,0,0,0,0,0,0,0,0,0,0,0,0,null,{"$f":"IF(T_DataComboFile[[#This Row],[G&S reporting level indicator]]=1,$AX$16,\"Not applicable\")","v":"Level 3"},{"$f":"IF(AND($AX$16=\"Level 3\",T_DataComboFile[[#This Row],[Econ3]] = \"Goods and services\"),IF(T_DataComboFile[[#This Row],[Econ4]] = T_DataComboFile[[#This Row],[Econ3]],1,0),IF(AND($AX$16=\"Level 4\",T_DataComboFile[[#This Row],[Econ4]] = \"Goods and services\"),0,1))","v":1},{"$f":"T_DataComboFile[[#This Row],[2016/17_Source]]*T_DataComboFile[[#This Row],[G&S reporting level indicator]]","v":0},{"$f":"T_DataComboFile[[#This Row],[2017/18_Source]]*T_DataComboFile[[#This Row],[G&S reporting level indicator]]","v":0},{"$f":"T_DataComboFile[[#This Row],[2018/19_Source]]*T_DataComboFile[[#This Row],[G&S reporting level indicator]]","v":0},{"$f":"T_DataComboFile[[#This Row],[2019/20 Main appropriation_Source]]*T_DataComboFile[[#This Row],[G&S reporting level indicator]]","v":0},{"$f":"T_DataComboFile[[#This Row],[2019/20 Adjusted appropriation_Source]]*T_DataComboFile[[#This Row],[G&S reporting level indicator]]","v":0},{"$f":"T_DataComboFile[[#This Row],[2019/20 Revised estimate_Source]]*T_DataComboFile[[#This Row],[G&S reporting level indicator]]","v":0},{"$f":"T_DataComboFile[[#This Row],[2019/20 Preliminary outcome_Source]]*T_DataComboFile[[#This Row],[G&S reporting level indicator]]","v":0},{"$f":"T_DataComboFile[[#This Row],[2020/21 Original_Source]]*T_DataComboFile[[#This Row],[G&S reporting level indicator]]","v":0},{"$f":"T_DataComboFile[[#This Row],[2020/21 SAB_Source]]*T_DataComboFile[[#This Row],[G&S reporting level indicator]]","v":0},{"$f":"T_DataComboFile[[#This Row],[2020/21 Baseline_Source]]*T_DataComboFile[[#This Row],[G&S reporting level indicator]]","v":0},{"$f":"T_DataComboFile[[#This Row],[2021/22 Baseline_Source]]*T_DataComboFile[[#This Row],[G&S reporting level indicator]]","v":0},{"$f":"T_DataComboFile[[#This Row],[2022/23 Baseline_Source]]*T_DataComboFile[[#This Row],[G&S reporting level indicator]]","v":0},{"$f":"T_DataComboFile[[#This Row],[2023/24 Baseline_Source]]*T_DataComboFile[[#This Row],[G&S reporting level indicator]]","v":0},null,null,null,null,null,null,{"$f":"T_DataComboFile[[#This Row],[2021/22 Baseline]]+T_DataComboFile[[#This Row],[2021/22 Reduction]]+T_DataComboFile[[#This Row],[2021/22 Increase]]","v":0},{"$f":"T_DataComboFile[[#This Row],[2022/23 Baseline]]+T_DataComboFile[[#This Row],[2022/23 Reduction]]+T_DataComboFile[[#This Row],[2022/23 Increase]]","v":0},{"$f":"T_DataComboFile[[#This Row],[2023/24 Baseline]]+T_DataComboFile[[#This Row],[2023/24 Reduction]]+T_DataComboFile[[#This Row],[2023/24 Increase]]","v":0}]
[null,null,"2021_22","ENE2020",36,2,1,null,70523,36,2,1,null,"070523","36|02|01",2,2,9,51,55,"02|02|09|51|55","National","Small Business Development","Sector Policy and Research","Research",null,"Capital","Transfers and subsidies","Non-profit institutions","Non-profit institutions","Non-profit institutions",null,null,null,0,0,0,0,0,0,0,0,0,0,0,0,0,0,null,{"$f":"IF(T_DataComboFile[[#This Row],[G&S reporting level indicator]]=1,$AX$16,\"Not applicable\")","v":"Level 3"},{"$f":"IF(AND($AX$16=\"Level 3\",T_DataComboFile[[#This Row],[Econ3]] = \"Goods and services\"),IF(T_DataComboFile[[#This Row],[Econ4]] = T_DataComboFile[[#This Row],[Econ3]],1,0),IF(AND($AX$16=\"Level 4\",T_DataComboFile[[#This Row],[Econ4]] = \"Goods and services\"),0,1))","v":1},{"$f":"T_DataComboFile[[#This Row],[2016/17_Source]]*T_DataComboFile[[#This Row],[G&S reporting level indicator]]","v":0},{"$f":"T_DataComboFile[[#This Row],[2017/18_Source]]*T_DataComboFile[[#This Row],[G&S reporting level indicator]]","v":0},{"$f":"T_DataComboFile[[#This Row],[2018/19_Source]]*T_DataComboFile[[#This Row],[G&S reporting level indicator]]","v":0},{"$f":"T_DataComboFile[[#This Row],[2019/20 Main appropriation_Source]]*T_DataComboFile[[#This Row],[G&S reporting level indicator]]","v":0},{"$f":"T_DataComboFile[[#This Row],[2019/20 Adjusted appropriation_Source]]*T_DataComboFile[[#This Row],[G&S reporting level indicator]]","v":0},{"$f":"T_DataComboFile[[#This Row],[2019/20 Revised estimate_Source]]*T_DataComboFile[[#This Row],[G&S reporting level indicator]]","v":0},{"$f":"T_DataComboFile[[#This Row],[2019/20 Preliminary outcome_Source]]*T_DataComboFile[[#This Row],[G&S reporting level indicator]]","v":0},{"$f":"T_DataComboFile[[#This Row],[2020/21 Original_Source]]*T_DataComboFile[[#This Row],[G&S reporting level indicator]]","v":0},{"$f":"T_DataComboFile[[#This Row],[2020/21 SAB_Source]]*T_DataComboFile[[#This Row],[G&S reporting level indicator]]","v":0},{"$f":"T_DataComboFile[[#This Row],[2020/21 Baseline_Source]]*T_DataComboFile[[#This Row],[G&S reporting level indicator]]","v":0},{"$f":"T_DataComboFile[[#This Row],[2021/22 Baseline_Source]]*T_DataComboFile[[#This Row],[G&S reporting level indicator]]","v":0},{"$f":"T_DataComboFile[[#This Row],[2022/23 Baseline_Source]]*T_DataComboFile[[#This Row],[G&S reporting level indicator]]","v":0},{"$f":"T_DataComboFile[[#This Row],[2023/24 Baseline_Source]]*T_DataComboFile[[#This Row],[G&S reporting level indicator]]","v":0},null,null,null,null,null,null,{"$f":"T_DataComboFile[[#This Row],[2021/22 Baseline]]+T_DataComboFile[[#This Row],[2021/22 Reduction]]+T_DataComboFile[[#This Row],[2021/22 Increase]]","v":0},{"$f":"T_DataComboFile[[#This Row],[2022/23 Baseline]]+T_DataComboFile[[#This Row],[2022/23 Reduction]]+T_DataComboFile[[#This Row],[2022/23 Increase]]","v":0},{"$f":"T_DataComboFile[[#This Row],[2023/24 Baseline]]+T_DataComboFile[[#This Row],[2023/24 Reduction]]+T_DataComboFile[[#This Row],[2023/24 Increase]]","v":0}]
[null,null,"2021_22","ENE2020",36,2,1,null,70524,36,2,1,null,"070524","36|02|01",2,2,10,53,57,"02|02|10|53|57","National","Small Business Development","Sector Policy and Research","Research",null,"Capital","Transfers and subsidies","Households","Other transfers to households","Other transfers to households",null,null,null,0,0,0,0,0,0,0,0,0,0,0,0,0,0,null,{"$f":"IF(T_DataComboFile[[#This Row],[G&S reporting level indicator]]=1,$AX$16,\"Not applicable\")","v":"Level 3"},{"$f":"IF(AND($AX$16=\"Level 3\",T_DataComboFile[[#This Row],[Econ3]] = \"Goods and services\"),IF(T_DataComboFile[[#This Row],[Econ4]] = T_DataComboFile[[#This Row],[Econ3]],1,0),IF(AND($AX$16=\"Level 4\",T_DataComboFile[[#This Row],[Econ4]] = \"Goods and services\"),0,1))","v":1},{"$f":"T_DataComboFile[[#This Row],[2016/17_Source]]*T_DataComboFile[[#This Row],[G&S reporting level indicator]]","v":0},{"$f":"T_DataComboFile[[#This Row],[2017/18_Source]]*T_DataComboFile[[#This Row],[G&S reporting level indicator]]","v":0},{"$f":"T_DataComboFile[[#This Row],[2018/19_Source]]*T_DataComboFile[[#This Row],[G&S reporting level indicator]]","v":0},{"$f":"T_DataComboFile[[#This Row],[2019/20 Main appropriation_Source]]*T_DataComboFile[[#This Row],[G&S reporting level indicator]]","v":0},{"$f":"T_DataComboFile[[#This Row],[2019/20 Adjusted appropriation_Source]]*T_DataComboFile[[#This Row],[G&S reporting level indicator]]","v":0},{"$f":"T_DataComboFile[[#This Row],[2019/20 Revised estimate_Source]]*T_DataComboFile[[#This Row],[G&S reporting level indicator]]","v":0},{"$f":"T_DataComboFile[[#This Row],[2019/20 Preliminary outcome_Source]]*T_DataComboFile[[#This Row],[G&S reporting level indicator]]","v":0},{"$f":"T_DataComboFile[[#This Row],[2020/21 Original_Source]]*T_DataComboFile[[#This Row],[G&S reporting level indicator]]","v":0},{"$f":"T_DataComboFile[[#This Row],[2020/21 SAB_Source]]*T_DataComboFile[[#This Row],[G&S reporting level indicator]]","v":0},{"$f":"T_DataComboFile[[#This Row],[2020/21 Baseline_Source]]*T_DataComboFile[[#This Row],[G&S reporting level indicator]]","v":0},{"$f":"T_DataComboFile[[#This Row],[2021/22 Baseline_Source]]*T_DataComboFile[[#This Row],[G&S reporting level indicator]]","v":0},{"$f":"T_DataComboFile[[#This Row],[2022/23 Baseline_Source]]*T_DataComboFile[[#This Row],[G&S reporting level indicator]]","v":0},{"$f":"T_DataComboFile[[#This Row],[2023/24 Baseline_Source]]*T_DataComboFile[[#This Row],[G&S reporting level indicator]]","v":0},null,null,null,null,null,null,{"$f":"T_DataComboFile[[#This Row],[2021/22 Baseline]]+T_DataComboFile[[#This Row],[2021/22 Reduction]]+T_DataComboFile[[#This Row],[2021/22 Increase]]","v":0},{"$f":"T_DataComboFile[[#This Row],[2022/23 Baseline]]+T_DataComboFile[[#This Row],[2022/23 Reduction]]+T_DataComboFile[[#This Row],[2022/23 Increase]]","v":0},{"$f":"T_DataComboFile[[#This Row],[2023/24 Baseline]]+T_DataComboFile[[#This Row],[2023/24 Reduction]]+T_DataComboFile[[#This Row],[2023/24 Increase]]","v":0}]
[null,null,"2021_22","ENE2020",36,2,1,null,70525,36,2,1,null,"070525","36|02|01",2,3,11,54,58,"02|03|11|54|58","National","Small Business Development","Sector Policy and Research","Research",null,"Capital","Payments for capital assets","Buildings and other fixed structures","Buildings","Buildings",null,null,null,0,0,0,0,0,0,0,0,0,0,0,0,0,0,null,{"$f":"IF(T_DataComboFile[[#This Row],[G&S reporting level indicator]]=1,$AX$16,\"Not applicable\")","v":"Level 3"},{"$f":"IF(AND($AX$16=\"Level 3\",T_DataComboFile[[#This Row],[Econ3]] = \"Goods and services\"),IF(T_DataComboFile[[#This Row],[Econ4]] = T_DataComboFile[[#This Row],[Econ3]],1,0),IF(AND($AX$16=\"Level 4\",T_DataComboFile[[#This Row],[Econ4]] = \"Goods and services\"),0,1))","v":1},{"$f":"T_DataComboFile[[#This Row],[2016/17_Source]]*T_DataComboFile[[#This Row],[G&S reporting level indicator]]","v":0},{"$f":"T_DataComboFile[[#This Row],[2017/18_Source]]*T_DataComboFile[[#This Row],[G&S reporting level indicator]]","v":0},{"$f":"T_DataComboFile[[#This Row],[2018/19_Source]]*T_DataComboFile[[#This Row],[G&S reporting level indicator]]","v":0},{"$f":"T_DataComboFile[[#This Row],[2019/20 Main appropriation_Source]]*T_DataComboFile[[#This Row],[G&S reporting level indicator]]","v":0},{"$f":"T_DataComboFile[[#This Row],[2019/20 Adjusted appropriation_Source]]*T_DataComboFile[[#This Row],[G&S reporting level indicator]]","v":0},{"$f":"T_DataComboFile[[#This Row],[2019/20 Revised estimate_Source]]*T_DataComboFile[[#This Row],[G&S reporting level indicator]]","v":0},{"$f":"T_DataComboFile[[#This Row],[2019/20 Preliminary outcome_Source]]*T_DataComboFile[[#This Row],[G&S reporting level indicator]]","v":0},{"$f":"T_DataComboFile[[#This Row],[2020/21 Original_Source]]*T_DataComboFile[[#This Row],[G&S reporting level indicator]]","v":0},{"$f":"T_DataComboFile[[#This Row],[2020/21 SAB_Source]]*T_DataComboFile[[#This Row],[G&S reporting level indicator]]","v":0},{"$f":"T_DataComboFile[[#This Row],[2020/21 Baseline_Source]]*T_DataComboFile[[#This Row],[G&S reporting level indicator]]","v":0},{"$f":"T_DataComboFile[[#This Row],[2021/22 Baseline_Source]]*T_DataComboFile[[#This Row],[G&S reporting level indicator]]","v":0},{"$f":"T_DataComboFile[[#This Row],[2022/23 Baseline_Source]]*T_DataComboFile[[#This Row],[G&S reporting level indicator]]","v":0},{"$f":"T_DataComboFile[[#This Row],[2023/24 Baseline_Source]]*T_DataComboFile[[#This Row],[G&S reporting level indicator]]","v":0},null,null,null,null,null,null,{"$f":"T_DataComboFile[[#This Row],[2021/22 Baseline]]+T_DataComboFile[[#This Row],[2021/22 Reduction]]+T_DataComboFile[[#This Row],[2021/22 Increase]]","v":0},{"$f":"T_DataComboFile[[#This Row],[2022/23 Baseline]]+T_DataComboFile[[#This Row],[2022/23 Reduction]]+T_DataComboFile[[#This Row],[2022/23 Increase]]","v":0},{"$f":"T_DataComboFile[[#This Row],[2023/24 Baseline]]+T_DataComboFile[[#This Row],[2023/24 Reduction]]+T_DataComboFile[[#This Row],[2023/24 Increase]]","v":0}]
[null,null,"2021_22","ENE2020",36,2,1,null,70526,36,2,1,null,"070526","36|02|01",2,3,11,55,59,"02|03|11|55|59","National","Small Business Development","Sector Policy and Research","Research",null,"Capital","Payments for capital assets","Buildings and other fixed structures","Other fixed structures","Other fixed structures",null,null,null,0,0,0,0,0,0,0,0,0,0,0,0,0,0,null,{"$f":"IF(T_DataComboFile[[#This Row],[G&S reporting level indicator]]=1,$AX$16,\"Not applicable\")","v":"Level 3"},{"$f":"IF(AND($AX$16=\"Level 3\",T_DataComboFile[[#This Row],[Econ3]] = \"Goods and services\"),IF(T_DataComboFile[[#This Row],[Econ4]] = T_DataComboFile[[#This Row],[Econ3]],1,0),IF(AND($AX$16=\"Level 4\",T_DataComboFile[[#This Row],[Econ4]] = \"Goods and services\"),0,1))","v":1},{"$f":"T_DataComboFile[[#This Row],[2016/17_Source]]*T_DataComboFile[[#This Row],[G&S reporting level indicator]]","v":0},{"$f":"T_DataComboFile[[#This Row],[2017/18_Source]]*T_DataComboFile[[#This Row],[G&S reporting level indicator]]","v":0},{"$f":"T_DataComboFile[[#This Row],[2018/19_Source]]*T_DataComboFile[[#This Row],[G&S reporting level indicator]]","v":0},{"$f":"T_DataComboFile[[#This Row],[2019/20 Main appropriation_Source]]*T_DataComboFile[[#This Row],[G&S reporting level indicator]]","v":0},{"$f":"T_DataComboFile[[#This Row],[2019/20 Adjusted appropriation_Source]]*T_DataComboFile[[#This Row],[G&S reporting level indicator]]","v":0},{"$f":"T_DataComboFile[[#This Row],[2019/20 Revised estimate_Source]]*T_DataComboFile[[#This Row],[G&S reporting level indicator]]","v":0},{"$f":"T_DataComboFile[[#This Row],[2019/20 Preliminary outcome_Source]]*T_DataComboFile[[#This Row],[G&S reporting level indicator]]","v":0},{"$f":"T_DataComboFile[[#This Row],[2020/21 Original_Source]]*T_DataComboFile[[#This Row],[G&S reporting level indicator]]","v":0},{"$f":"T_DataComboFile[[#This Row],[2020/21 SAB_Source]]*T_DataComboFile[[#This Row],[G&S reporting level indicator]]","v":0},{"$f":"T_DataComboFile[[#This Row],[2020/21 Baseline_Source]]*T_DataComboFile[[#This Row],[G&S reporting level indicator]]","v":0},{"$f":"T_DataComboFile[[#This Row],[2021/22 Baseline_Source]]*T_DataComboFile[[#This Row],[G&S reporting level indicator]]","v":0},{"$f":"T_DataComboFile[[#This Row],[2022/23 Baseline_Source]]*T_DataComboFile[[#This Row],[G&S reporting level indicator]]","v":0},{"$f":"T_DataComboFile[[#This Row],[2023/24 Baseline_Source]]*T_DataComboFile[[#This Row],[G&S reporting level indicator]]","v":0},null,null,null,null,null,null,{"$f":"T_DataComboFile[[#This Row],[2021/22 Baseline]]+T_DataComboFile[[#This Row],[2021/22 Reduction]]+T_DataComboFile[[#This Row],[2021/22 Increase]]","v":0},{"$f":"T_DataComboFile[[#This Row],[2022/23 Baseline]]+T_DataComboFile[[#This Row],[2022/23 Reduction]]+T_DataComboFile[[#This Row],[2022/23 Increase]]","v":0},{"$f":"T_DataComboFile[[#This Row],[2023/24 Baseline]]+T_DataComboFile[[#This Row],[2023/24 Reduction]]+T_DataComboFile[[#This Row],[2023/24 Increase]]","v":0}]
[null,null,"2021_22","ENE2020",36,2,1,null,70527,36,2,1,null,"070527","36|02|01",2,3,12,56,60,"02|03|12|56|60","National","Small Business Development","Sector Policy and Research","Research",null,"Capital","Payments for capital assets","Machinery and equipment","Transport equipment","Transport equipment",null,null,null,0,0,0,0,0,0,0,0,0,0,0,0,0,0,null,{"$f":"IF(T_DataComboFile[[#This Row],[G&S reporting level indicator]]=1,$AX$16,\"Not applicable\")","v":"Level 3"},{"$f":"IF(AND($AX$16=\"Level 3\",T_DataComboFile[[#This Row],[Econ3]] = \"Goods and services\"),IF(T_DataComboFile[[#This Row],[Econ4]] = T_DataComboFile[[#This Row],[Econ3]],1,0),IF(AND($AX$16=\"Level 4\",T_DataComboFile[[#This Row],[Econ4]] = \"Goods and services\"),0,1))","v":1},{"$f":"T_DataComboFile[[#This Row],[2016/17_Source]]*T_DataComboFile[[#This Row],[G&S reporting level indicator]]","v":0},{"$f":"T_DataComboFile[[#This Row],[2017/18_Source]]*T_DataComboFile[[#This Row],[G&S reporting level indicator]]","v":0},{"$f":"T_DataComboFile[[#This Row],[2018/19_Source]]*T_DataComboFile[[#This Row],[G&S reporting level indicator]]","v":0},{"$f":"T_DataComboFile[[#This Row],[2019/20 Main appropriation_Source]]*T_DataComboFile[[#This Row],[G&S reporting level indicator]]","v":0},{"$f":"T_DataComboFile[[#This Row],[2019/20 Adjusted appropriation_Source]]*T_DataComboFile[[#This Row],[G&S reporting level indicator]]","v":0},{"$f":"T_DataComboFile[[#This Row],[2019/20 Revised estimate_Source]]*T_DataComboFile[[#This Row],[G&S reporting level indicator]]","v":0},{"$f":"T_DataComboFile[[#This Row],[2019/20 Preliminary outcome_Source]]*T_DataComboFile[[#This Row],[G&S reporting level indicator]]","v":0},{"$f":"T_DataComboFile[[#This Row],[2020/21 Original_Source]]*T_DataComboFile[[#This Row],[G&S reporting level indicator]]","v":0},{"$f":"T_DataComboFile[[#This Row],[2020/21 SAB_Source]]*T_DataComboFile[[#This Row],[G&S reporting level indicator]]","v":0},{"$f":"T_DataComboFile[[#This Row],[2020/21 Baseline_Source]]*T_DataComboFile[[#This Row],[G&S reporting level indicator]]","v":0},{"$f":"T_DataComboFile[[#This Row],[2021/22 Baseline_Source]]*T_DataComboFile[[#This Row],[G&S reporting level indicator]]","v":0},{"$f":"T_DataComboFile[[#This Row],[2022/23 Baseline_Source]]*T_DataComboFile[[#This Row],[G&S reporting level indicator]]","v":0},{"$f":"T_DataComboFile[[#This Row],[2023/24 Baseline_Source]]*T_DataComboFile[[#This Row],[G&S reporting level indicator]]","v":0},null,null,null,null,null,null,{"$f":"T_DataComboFile[[#This Row],[2021/22 Baseline]]+T_DataComboFile[[#This Row],[2021/22 Reduction]]+T_DataComboFile[[#This Row],[2021/22 Increase]]","v":0},{"$f":"T_DataComboFile[[#This Row],[2022/23 Baseline]]+T_DataComboFile[[#This Row],[2022/23 Reduction]]+T_DataComboFile[[#This Row],[2022/23 Increase]]","v":0},{"$f":"T_DataComboFile[[#This Row],[2023/24 Baseline]]+T_DataComboFile[[#This Row],[2023/24 Reduction]]+T_DataComboFile[[#This Row],[2023/24 Increase]]","v":0}]
["NAT|Non-transfer item","36|Other machinery and equipment","2021_22","ENE2020",36,2,1,17298,70528,36,2,1,17298,"070528","36|02|01",2,3,12,57,61,"02|03|12|57|61","National","Small Business Development","Sector Policy and Research","Research","Non-transfer item","Capital","Payments for capital assets","Machinery and equipment","Other machinery and equipment","Other machinery and equipment","Economic development","Industrialisation and exports","NAT",34,25,48,51,51,51,51,58,58,58,61,64,67,1,null,{"$f":"IF(T_DataComboFile[[#This Row],[G&S reporting level indicator]]=1,$AX$16,\"Not applicable\")","v":"Level 3"},{"$f":"IF(AND($AX$16=\"Level 3\",T_DataComboFile[[#This Row],[Econ3]] = \"Goods and services\"),IF(T_DataComboFile[[#This Row],[Econ4]] = T_DataComboFile[[#This Row],[Econ3]],1,0),IF(AND($AX$16=\"Level 4\",T_DataComboFile[[#This Row],[Econ4]] = \"Goods and services\"),0,1))","v":1},{"$f":"T_DataComboFile[[#This Row],[2016/17_Source]]*T_DataComboFile[[#This Row],[G&S reporting level indicator]]","v":34},{"$f":"T_DataComboFile[[#This Row],[2017/18_Source]]*T_DataComboFile[[#This Row],[G&S reporting level indicator]]","v":25},{"$f":"T_DataComboFile[[#This Row],[2018/19_Source]]*T_DataComboFile[[#This Row],[G&S reporting level indicator]]","v":48},{"$f":"T_DataComboFile[[#This Row],[2019/20 Main appropriation_Source]]*T_DataComboFile[[#This Row],[G&S reporting level indicator]]","v":51},{"$f":"T_DataComboFile[[#This Row],[2019/20 Adjusted appropriation_Source]]*T_DataComboFile[[#This Row],[G&S reporting level indicator]]","v":51},{"$f":"T_DataComboFile[[#This Row],[2019/20 Revised estimate_Source]]*T_DataComboFile[[#This Row],[G&S reporting level indicator]]","v":51},{"$f":"T_DataComboFile[[#This Row],[2019/20 Preliminary outcome_Source]]*T_DataComboFile[[#This Row],[G&S reporting level indicator]]","v":51},{"$f":"T_DataComboFile[[#This Row],[2020/21 Original_Source]]*T_DataComboFile[[#This Row],[G&S reporting level indicator]]","v":58},{"$f":"T_DataComboFile[[#This Row],[2020/21 SAB_Source]]*T_DataComboFile[[#This Row],[G&S reporting level indicator]]","v":58},{"$f":"T_DataComboFile[[#This Row],[2020/21 Baseline_Source]]*T_DataComboFile[[#This Row],[G&S reporting level indicator]]","v":58},{"$f":"T_DataComboFile[[#This Row],[2021/22 Baseline_Source]]*T_DataComboFile[[#This Row],[G&S reporting level indicator]]","v":61},{"$f":"T_DataComboFile[[#This Row],[2022/23 Baseline_Source]]*T_DataComboFile[[#This Row],[G&S reporting level indicator]]","v":64},{"$f":"T_DataComboFile[[#This Row],[2023/24 Baseline_Source]]*T_DataComboFile[[#This Row],[G&S reporting level indicator]]","v":67},null,null,null,null,null,null,{"$f":"T_DataComboFile[[#This Row],[2021/22 Baseline]]+T_DataComboFile[[#This Row],[2021/22 Reduction]]+T_DataComboFile[[#This Row],[2021/22 Increase]]","v":61},{"$f":"T_DataComboFile[[#This Row],[2022/23 Baseline]]+T_DataComboFile[[#This Row],[2022/23 Reduction]]+T_DataComboFile[[#This Row],[2022/23 Increase]]","v":64},{"$f":"T_DataComboFile[[#This Row],[2023/24 Baseline]]+T_DataComboFile[[#This Row],[2023/24 Reduction]]+T_DataComboFile[[#This Row],[2023/24 Increase]]","v":67}]
[null,null,"2021_22","ENE2020",36,2,1,null,70529,36,2,1,null,"070529","36|02|01",2,3,13,58,62,"02|03|13|58|62","National","Small Business Development","Sector Policy and Research","Research",null,"Capital","Payments for capital assets","Heritage assets","Heritage assets","Heritage assets",null,null,null,0,0,0,0,0,0,0,0,0,0,0,0,0,0,null,{"$f":"IF(T_DataComboFile[[#This Row],[G&S reporting level indicator]]=1,$AX$16,\"Not applicable\")","v":"Level 3"},{"$f":"IF(AND($AX$16=\"Level 3\",T_DataComboFile[[#This Row],[Econ3]] = \"Goods and services\"),IF(T_DataComboFile[[#This Row],[Econ4]] = T_DataComboFile[[#This Row],[Econ3]],1,0),IF(AND($AX$16=\"Level 4\",T_DataComboFile[[#This Row],[Econ4]] = \"Goods and services\"),0,1))","v":1},{"$f":"T_DataComboFile[[#This Row],[2016/17_Source]]*T_DataComboFile[[#This Row],[G&S reporting level indicator]]","v":0},{"$f":"T_DataComboFile[[#This Row],[2017/18_Source]]*T_DataComboFile[[#This Row],[G&S reporting level indicator]]","v":0},{"$f":"T_DataComboFile[[#This Row],[2018/19_Source]]*T_DataComboFile[[#This Row],[G&S reporting level indicator]]","v":0},{"$f":"T_DataComboFile[[#This Row],[2019/20 Main appropriation_Source]]*T_DataComboFile[[#This Row],[G&S reporting level indicator]]","v":0},{"$f":"T_DataComboFile[[#This Row],[2019/20 Adjusted appropriation_Source]]*T_DataComboFile[[#This Row],[G&S reporting level indicator]]","v":0},{"$f":"T_DataComboFile[[#This Row],[2019/20 Revised estimate_Source]]*T_DataComboFile[[#This Row],[G&S reporting level indicator]]","v":0},{"$f":"T_DataComboFile[[#This Row],[2019/20 Preliminary outcome_Source]]*T_DataComboFile[[#This Row],[G&S reporting level indicator]]","v":0},{"$f":"T_DataComboFile[[#This Row],[2020/21 Original_Source]]*T_DataComboFile[[#This Row],[G&S reporting level indicator]]","v":0},{"$f":"T_DataComboFile[[#This Row],[2020/21 SAB_Source]]*T_DataComboFile[[#This Row],[G&S reporting level indicator]]","v":0},{"$f":"T_DataComboFile[[#This Row],[2020/21 Baseline_Source]]*T_DataComboFile[[#This Row],[G&S reporting level indicator]]","v":0},{"$f":"T_DataComboFile[[#This Row],[2021/22 Baseline_Source]]*T_DataComboFile[[#This Row],[G&S reporting level indicator]]","v":0},{"$f":"T_DataComboFile[[#This Row],[2022/23 Baseline_Source]]*T_DataComboFile[[#This Row],[G&S reporting level indicator]]","v":0},{"$f":"T_DataComboFile[[#This Row],[2023/24 Baseline_Source]]*T_DataComboFile[[#This Row],[G&S reporting level indicator]]","v":0},null,null,null,null,null,null,{"$f":"T_DataComboFile[[#This Row],[2021/22 Baseline]]+T_DataComboFile[[#This Row],[2021/22 Reduction]]+T_DataComboFile[[#This Row],[2021/22 Increase]]","v":0},{"$f":"T_DataComboFile[[#This Row],[2022/23 Baseline]]+T_DataComboFile[[#This Row],[2022/23 Reduction]]+T_DataComboFile[[#This Row],[2022/23 Increase]]","v":0},{"$f":"T_DataComboFile[[#This Row],[2023/24 Baseline]]+T_DataComboFile[[#This Row],[2023/24 Reduction]]+T_DataComboFile[[#This Row],[2023/24 Increase]]","v":0}]
[null,null,"2021_22","ENE2020",36,2,1,null,70530,36,2,1,null,"070530","36|02|01",2,3,14,59,63,"02|03|14|59|63","National","Small Business Development","Sector Policy and Research","Research",null,"Capital","Payments for capital assets","Specialised military assets","Specialised military assets","Specialised military assets",null,null,null,0,0,0,0,0,0,0,0,0,0,0,0,0,0,null,{"$f":"IF(T_DataComboFile[[#This Row],[G&S reporting level indicator]]=1,$AX$16,\"Not applicable\")","v":"Level 3"},{"$f":"IF(AND($AX$16=\"Level 3\",T_DataComboFile[[#This Row],[Econ3]] = \"Goods and services\"),IF(T_DataComboFile[[#This Row],[Econ4]] = T_DataComboFile[[#This Row],[Econ3]],1,0),IF(AND($AX$16=\"Level 4\",T_DataComboFile[[#This Row],[Econ4]] = \"Goods and services\"),0,1))","v":1},{"$f":"T_DataComboFile[[#This Row],[2016/17_Source]]*T_DataComboFile[[#This Row],[G&S reporting level indicator]]","v":0},{"$f":"T_DataComboFile[[#This Row],[2017/18_Source]]*T_DataComboFile[[#This Row],[G&S reporting level indicator]]","v":0},{"$f":"T_DataComboFile[[#This Row],[2018/19_Source]]*T_DataComboFile[[#This Row],[G&S reporting level indicator]]","v":0},{"$f":"T_DataComboFile[[#This Row],[2019/20 Main appropriation_Source]]*T_DataComboFile[[#This Row],[G&S reporting level indicator]]","v":0},{"$f":"T_DataComboFile[[#This Row],[2019/20 Adjusted appropriation_Source]]*T_DataComboFile[[#This Row],[G&S reporting level indicator]]","v":0},{"$f":"T_DataComboFile[[#This Row],[2019/20 Revised estimate_Source]]*T_DataComboFile[[#This Row],[G&S reporting level indicator]]","v":0},{"$f":"T_DataComboFile[[#This Row],[2019/20 Preliminary outcome_Source]]*T_DataComboFile[[#This Row],[G&S reporting level indicator]]","v":0},{"$f":"T_DataComboFile[[#This Row],[2020/21 Original_Source]]*T_DataComboFile[[#This Row],[G&S reporting level indicator]]","v":0},{"$f":"T_DataComboFile[[#This Row],[2020/21 SAB_Source]]*T_DataComboFile[[#This Row],[G&S reporting level indicator]]","v":0},{"$f":"T_DataComboFile[[#This Row],[2020/21 Baseline_Source]]*T_DataComboFile[[#This Row],[G&S reporting level indicator]]","v":0},{"$f":"T_DataComboFile[[#This Row],[2021/22 Baseline_Source]]*T_DataComboFile[[#This Row],[G&S reporting level indicator]]","v":0},{"$f":"T_DataComboFile[[#This Row],[2022/23 Baseline_Source]]*T_DataComboFile[[#This Row],[G&S reporting level indicator]]","v":0},{"$f":"T_DataComboFile[[#This Row],[2023/24 Baseline_Source]]*T_DataComboFile[[#This Row],[G&S reporting level indicator]]","v":0},null,null,null,null,null,null,{"$f":"T_DataComboFile[[#This Row],[2021/22 Baseline]]+T_DataComboFile[[#This Row],[2021/22 Reduction]]+T_DataComboFile[[#This Row],[2021/22 Increase]]","v":0},{"$f":"T_DataComboFile[[#This Row],[2022/23 Baseline]]+T_DataComboFile[[#This Row],[2022/23 Reduction]]+T_DataComboFile[[#This Row],[2022/23 Increase]]","v":0},{"$f":"T_DataComboFile[[#This Row],[2023/24 Baseline]]+T_DataComboFile[[#This Row],[2023/24 Reduction]]+T_DataComboFile[[#This Row],[2023/24 Increase]]","v":0}]
[null,null,"2021_22","ENE2020",36,2,1,null,70531,36,2,1,null,"070531","36|02|01",2,3,15,60,64,"02|03|15|60|64","National","Small Business Development","Sector Policy and Research","Research",null,"Capital","Payments for capital assets","Biological assets","Biological assets","Biological assets",null,null,null,0,0,0,0,0,0,0,0,0,0,0,0,0,0,null,{"$f":"IF(T_DataComboFile[[#This Row],[G&S reporting level indicator]]=1,$AX$16,\"Not applicable\")","v":"Level 3"},{"$f":"IF(AND($AX$16=\"Level 3\",T_DataComboFile[[#This Row],[Econ3]] = \"Goods and services\"),IF(T_DataComboFile[[#This Row],[Econ4]] = T_DataComboFile[[#This Row],[Econ3]],1,0),IF(AND($AX$16=\"Level 4\",T_DataComboFile[[#This Row],[Econ4]] = \"Goods and services\"),0,1))","v":1},{"$f":"T_DataComboFile[[#This Row],[2016/17_Source]]*T_DataComboFile[[#This Row],[G&S reporting level indicator]]","v":0},{"$f":"T_DataComboFile[[#This Row],[2017/18_Source]]*T_DataComboFile[[#This Row],[G&S reporting level indicator]]","v":0},{"$f":"T_DataComboFile[[#This Row],[2018/19_Source]]*T_DataComboFile[[#This Row],[G&S reporting level indicator]]","v":0},{"$f":"T_DataComboFile[[#This Row],[2019/20 Main appropriation_Source]]*T_DataComboFile[[#This Row],[G&S reporting level indicator]]","v":0},{"$f":"T_DataComboFile[[#This Row],[2019/20 Adjusted appropriation_Source]]*T_DataComboFile[[#This Row],[G&S reporting level indicator]]","v":0},{"$f":"T_DataComboFile[[#This Row],[2019/20 Revised estimate_Source]]*T_DataComboFile[[#This Row],[G&S reporting level indicator]]","v":0},{"$f":"T_DataComboFile[[#This Row],[2019/20 Preliminary outcome_Source]]*T_DataComboFile[[#This Row],[G&S reporting level indicator]]","v":0},{"$f":"T_DataComboFile[[#This Row],[2020/21 Original_Source]]*T_DataComboFile[[#This Row],[G&S reporting level indicator]]","v":0},{"$f":"T_DataComboFile[[#This Row],[2020/21 SAB_Source]]*T_DataComboFile[[#This Row],[G&S reporting level indicator]]","v":0},{"$f":"T_DataComboFile[[#This Row],[2020/21 Baseline_Source]]*T_DataComboFile[[#This Row],[G&S reporting level indicator]]","v":0},{"$f":"T_DataComboFile[[#This Row],[2021/22 Baseline_Source]]*T_DataComboFile[[#This Row],[G&S reporting level indicator]]","v":0},{"$f":"T_DataComboFile[[#This Row],[2022/23 Baseline_Source]]*T_DataComboFile[[#This Row],[G&S reporting level indicator]]","v":0},{"$f":"T_DataComboFile[[#This Row],[2023/24 Baseline_Source]]*T_DataComboFile[[#This Row],[G&S reporting level indicator]]","v":0},null,null,null,null,null,null,{"$f":"T_DataComboFile[[#This Row],[2021/22 Baseline]]+T_DataComboFile[[#This Row],[2021/22 Reduction]]+T_DataComboFile[[#This Row],[2021/22 Increase]]","v":0},{"$f":"T_DataComboFile[[#This Row],[2022/23 Baseline]]+T_DataComboFile[[#This Row],[2022/23 Reduction]]+T_DataComboFile[[#This Row],[2022/23 Increase]]","v":0},{"$f":"T_DataComboFile[[#This Row],[2023/24 Baseline]]+T_DataComboFile[[#This Row],[2023/24 Reduction]]+T_DataComboFile[[#This Row],[2023/24 Increase]]","v":0}]
[null,null,"2021_22","ENE2020",36,2,1,null,70532,36,2,1,null,"070532","36|02|01",2,3,16,61,65,"02|03|16|61|65","National","Small Business Development","Sector Policy and Research","Research",null,"Capital","Payments for capital assets","Land and sub-soil assets","Land and sub-soil assets","Land and sub-soil assets",null,null,null,0,0,0,0,0,0,0,0,0,0,0,0,0,0,null,{"$f":"IF(T_DataComboFile[[#This Row],[G&S reporting level indicator]]=1,$AX$16,\"Not applicable\")","v":"Level 3"},{"$f":"IF(AND($AX$16=\"Level 3\",T_DataComboFile[[#This Row],[Econ3]] = \"Goods and services\"),IF(T_DataComboFile[[#This Row],[Econ4]] = T_DataComboFile[[#This Row],[Econ3]],1,0),IF(AND($AX$16=\"Level 4\",T_DataComboFile[[#This Row],[Econ4]] = \"Goods and services\"),0,1))","v":1},{"$f":"T_DataComboFile[[#This Row],[2016/17_Source]]*T_DataComboFile[[#This Row],[G&S reporting level indicator]]","v":0},{"$f":"T_DataComboFile[[#This Row],[2017/18_Source]]*T_DataComboFile[[#This Row],[G&S reporting level indicator]]","v":0},{"$f":"T_DataComboFile[[#This Row],[2018/19_Source]]*T_DataComboFile[[#This Row],[G&S reporting level indicator]]","v":0},{"$f":"T_DataComboFile[[#This Row],[2019/20 Main appropriation_Source]]*T_DataComboFile[[#This Row],[G&S reporting level indicator]]","v":0},{"$f":"T_DataComboFile[[#This Row],[2019/20 Adjusted appropriation_Source]]*T_DataComboFile[[#This Row],[G&S reporting level indicator]]","v":0},{"$f":"T_DataComboFile[[#This Row],[2019/20 Revised estimate_Source]]*T_DataComboFile[[#This Row],[G&S reporting level indicator]]","v":0},{"$f":"T_DataComboFile[[#This Row],[2019/20 Preliminary outcome_Source]]*T_DataComboFile[[#This Row],[G&S reporting level indicator]]","v":0},{"$f":"T_DataComboFile[[#This Row],[2020/21 Original_Source]]*T_DataComboFile[[#This Row],[G&S reporting level indicator]]","v":0},{"$f":"T_DataComboFile[[#This Row],[2020/21 SAB_Source]]*T_DataComboFile[[#This Row],[G&S reporting level indicator]]","v":0},{"$f":"T_DataComboFile[[#This Row],[2020/21 Baseline_Source]]*T_DataComboFile[[#This Row],[G&S reporting level indicator]]","v":0},{"$f":"T_DataComboFile[[#This Row],[2021/22 Baseline_Source]]*T_DataComboFile[[#This Row],[G&S reporting level indicator]]","v":0},{"$f":"T_DataComboFile[[#This Row],[2022/23 Baseline_Source]]*T_DataComboFile[[#This Row],[G&S reporting level indicator]]","v":0},{"$f":"T_DataComboFile[[#This Row],[2023/24 Baseline_Source]]*T_DataComboFile[[#This Row],[G&S reporting level indicator]]","v":0},null,null,null,null,null,null,{"$f":"T_DataComboFile[[#This Row],[2021/22 Baseline]]+T_DataComboFile[[#This Row],[2021/22 Reduction]]+T_DataComboFile[[#This Row],[2021/22 Increase]]","v":0},{"$f":"T_DataComboFile[[#This Row],[2022/23 Baseline]]+T_DataComboFile[[#This Row],[2022/23 Reduction]]+T_DataComboFile[[#This Row],[2022/23 Increase]]","v":0},{"$f":"T_DataComboFile[[#This Row],[2023/24 Baseline]]+T_DataComboFile[[#This Row],[2023/24 Reduction]]+T_DataComboFile[[#This Row],[2023/24 Increase]]","v":0}]
[null,null,"2021_22","ENE2020",36,2,1,null,70533,36,2,1,null,"070533","36|02|01",2,3,17,62,66,"02|03|17|62|66","National","Small Business Development","Sector Policy and Research","Research",null,"Capital","Payments for capital assets","Software and other intangible assets","Software and other intangible assets","Software and other intangible assets",null,null,null,0,0,0,0,0,0,0,0,0,0,0,0,0,0,null,{"$f":"IF(T_DataComboFile[[#This Row],[G&S reporting level indicator]]=1,$AX$16,\"Not applicable\")","v":"Level 3"},{"$f":"IF(AND($AX$16=\"Level 3\",T_DataComboFile[[#This Row],[Econ3]] = \"Goods and services\"),IF(T_DataComboFile[[#This Row],[Econ4]] = T_DataComboFile[[#This Row],[Econ3]],1,0),IF(AND($AX$16=\"Level 4\",T_DataComboFile[[#This Row],[Econ4]] = \"Goods and services\"),0,1))","v":1},{"$f":"T_DataComboFile[[#This Row],[2016/17_Source]]*T_DataComboFile[[#This Row],[G&S reporting level indicator]]","v":0},{"$f":"T_DataComboFile[[#This Row],[2017/18_Source]]*T_DataComboFile[[#This Row],[G&S reporting level indicator]]","v":0},{"$f":"T_DataComboFile[[#This Row],[2018/19_Source]]*T_DataComboFile[[#This Row],[G&S reporting level indicator]]","v":0},{"$f":"T_DataComboFile[[#This Row],[2019/20 Main appropriation_Source]]*T_DataComboFile[[#This Row],[G&S reporting level indicator]]","v":0},{"$f":"T_DataComboFile[[#This Row],[2019/20 Adjusted appropriation_Source]]*T_DataComboFile[[#This Row],[G&S reporting level indicator]]","v":0},{"$f":"T_DataComboFile[[#This Row],[2019/20 Revised estimate_Source]]*T_DataComboFile[[#This Row],[G&S reporting level indicator]]","v":0},{"$f":"T_DataComboFile[[#This Row],[2019/20 Preliminary outcome_Source]]*T_DataComboFile[[#This Row],[G&S reporting level indicator]]","v":0},{"$f":"T_DataComboFile[[#This Row],[2020/21 Original_Source]]*T_DataComboFile[[#This Row],[G&S reporting level indicator]]","v":0},{"$f":"T_DataComboFile[[#This Row],[2020/21 SAB_Source]]*T_DataComboFile[[#This Row],[G&S reporting level indicator]]","v":0},{"$f":"T_DataComboFile[[#This Row],[2020/21 Baseline_Source]]*T_DataComboFile[[#This Row],[G&S reporting level indicator]]","v":0},{"$f":"T_DataComboFile[[#This Row],[2021/22 Baseline_Source]]*T_DataComboFile[[#This Row],[G&S reporting level indicator]]","v":0},{"$f":"T_DataComboFile[[#This Row],[2022/23 Baseline_Source]]*T_DataComboFile[[#This Row],[G&S reporting level indicator]]","v":0},{"$f":"T_DataComboFile[[#This Row],[2023/24 Baseline_Source]]*T_DataComboFile[[#This Row],[G&S reporting level indicator]]","v":0},null,null,null,null,null,null,{"$f":"T_DataComboFile[[#This Row],[2021/22 Baseline]]+T_DataComboFile[[#This Row],[2021/22 Reduction]]+T_DataComboFile[[#This Row],[2021/22 Increase]]","v":0},{"$f":"T_DataComboFile[[#This Row],[2022/23 Baseline]]+T_DataComboFile[[#This Row],[2022/23 Reduction]]+T_DataComboFile[[#This Row],[2022/23 Increase]]","v":0},{"$f":"T_DataComboFile[[#This Row],[2023/24 Baseline]]+T_DataComboFile[[#This Row],[2023/24 Reduction]]+T_DataComboFile[[#This Row],[2023/24 Increase]]","v":0}]
[null,null,"2021_22","ENE2020",36,2,1,null,70534,36,2,1,null,"070534","36|02|01",3,4,18,63,67,"03|04|18|63|67","National","Small Business Development","Sector Policy and Research","Research",null,"Payments for financial assets","Payments for financial assets","Payments for financial assets","Payments for financial assets","Payments for financial assets",null,null,null,0,0,0,0,0,0,0,0,0,0,0,0,0,0,null,{"$f":"IF(T_DataComboFile[[#This Row],[G&S reporting level indicator]]=1,$AX$16,\"Not applicable\")","v":"Level 3"},{"$f":"IF(AND($AX$16=\"Level 3\",T_DataComboFile[[#This Row],[Econ3]] = \"Goods and services\"),IF(T_DataComboFile[[#This Row],[Econ4]] = T_DataComboFile[[#This Row],[Econ3]],1,0),IF(AND($AX$16=\"Level 4\",T_DataComboFile[[#This Row],[Econ4]] = \"Goods and services\"),0,1))","v":1},{"$f":"T_DataComboFile[[#This Row],[2016/17_Source]]*T_DataComboFile[[#This Row],[G&S reporting level indicator]]","v":0},{"$f":"T_DataComboFile[[#This Row],[2017/18_Source]]*T_DataComboFile[[#This Row],[G&S reporting level indicator]]","v":0},{"$f":"T_DataComboFile[[#This Row],[2018/19_Source]]*T_DataComboFile[[#This Row],[G&S reporting level indicator]]","v":0},{"$f":"T_DataComboFile[[#This Row],[2019/20 Main appropriation_Source]]*T_DataComboFile[[#This Row],[G&S reporting level indicator]]","v":0},{"$f":"T_DataComboFile[[#This Row],[2019/20 Adjusted appropriation_Source]]*T_DataComboFile[[#This Row],[G&S reporting level indicator]]","v":0},{"$f":"T_DataComboFile[[#This Row],[2019/20 Revised estimate_Source]]*T_DataComboFile[[#This Row],[G&S reporting level indicator]]","v":0},{"$f":"T_DataComboFile[[#This Row],[2019/20 Preliminary outcome_Source]]*T_DataComboFile[[#This Row],[G&S reporting level indicator]]","v":0},{"$f":"T_DataComboFile[[#This Row],[2020/21 Original_Source]]*T_DataComboFile[[#This Row],[G&S reporting level indicator]]","v":0},{"$f":"T_DataComboFile[[#This Row],[2020/21 SAB_Source]]*T_DataComboFile[[#This Row],[G&S reporting level indicator]]","v":0},{"$f":"T_DataComboFile[[#This Row],[2020/21 Baseline_Source]]*T_DataComboFile[[#This Row],[G&S reporting level indicator]]","v":0},{"$f":"T_DataComboFile[[#This Row],[2021/22 Baseline_Source]]*T_DataComboFile[[#This Row],[G&S reporting level indicator]]","v":0},{"$f":"T_DataComboFile[[#This Row],[2022/23 Baseline_Source]]*T_DataComboFile[[#This Row],[G&S reporting level indicator]]","v":0},{"$f":"T_DataComboFile[[#This Row],[2023/24 Baseline_Source]]*T_DataComboFile[[#This Row],[G&S reporting level indicator]]","v":0},null,null,null,null,null,null,{"$f":"T_DataComboFile[[#This Row],[2021/22 Baseline]]+T_DataComboFile[[#This Row],[2021/22 Reduction]]+T_DataComboFile[[#This Row],[2021/22 Increase]]","v":0},{"$f":"T_DataComboFile[[#This Row],[2022/23 Baseline]]+T_DataComboFile[[#This Row],[2022/23 Reduction]]+T_DataComboFile[[#This Row],[2022/23 Increase]]","v":0},{"$f":"T_DataComboFile[[#This Row],[2023/24 Baseline]]+T_DataComboFile[[#This Row],[2023/24 Reduction]]+T_DataComboFile[[#This Row],[2023/24 Increase]]","v":0}]
["NAT|Non-transfer item","36|Salaries and wages","2021_22","ENE2020",36,2,2,17299,70535,36,2,2,17299,"070535","36|02|02",1,1,1,1,1,"01|01|01|01|01","National","Small Business Development","Sector Policy and Research","Policy and Legislation","Non-transfer item","Current","Current payments","Compensation of employees","Salaries and wages","Salaries and wages","Economic development","Industrialisation and exports","NAT",0,0,1779,2768,2768,2768,2768,2934,2934,2768,3178,3138,3277,1,null,{"$f":"IF(T_DataComboFile[[#This Row],[G&S reporting level indicator]]=1,$AX$16,\"Not applicable\")","v":"Level 3"},{"$f":"IF(AND($AX$16=\"Level 3\",T_DataComboFile[[#This Row],[Econ3]] = \"Goods and services\"),IF(T_DataComboFile[[#This Row],[Econ4]] = T_DataComboFile[[#This Row],[Econ3]],1,0),IF(AND($AX$16=\"Level 4\",T_DataComboFile[[#This Row],[Econ4]] = \"Goods and services\"),0,1))","v":1},{"$f":"T_DataComboFile[[#This Row],[2016/17_Source]]*T_DataComboFile[[#This Row],[G&S reporting level indicator]]","v":0},{"$f":"T_DataComboFile[[#This Row],[2017/18_Source]]*T_DataComboFile[[#This Row],[G&S reporting level indicator]]","v":0},{"$f":"T_DataComboFile[[#This Row],[2018/19_Source]]*T_DataComboFile[[#This Row],[G&S reporting level indicator]]","v":1779},{"$f":"T_DataComboFile[[#This Row],[2019/20 Main appropriation_Source]]*T_DataComboFile[[#This Row],[G&S reporting level indicator]]","v":2768},{"$f":"T_DataComboFile[[#This Row],[2019/20 Adjusted appropriation_Source]]*T_DataComboFile[[#This Row],[G&S reporting level indicator]]","v":2768},{"$f":"T_DataComboFile[[#This Row],[2019/20 Revised estimate_Source]]*T_DataComboFile[[#This Row],[G&S reporting level indicator]]","v":2768},{"$f":"T_DataComboFile[[#This Row],[2019/20 Preliminary outcome_Source]]*T_DataComboFile[[#This Row],[G&S reporting level indicator]]","v":2768},{"$f":"T_DataComboFile[[#This Row],[2020/21 Original_Source]]*T_DataComboFile[[#This Row],[G&S reporting level indicator]]","v":2934},{"$f":"T_DataComboFile[[#This Row],[2020/21 SAB_Source]]*T_DataComboFile[[#This Row],[G&S reporting level indicator]]","v":2934},{"$f":"T_DataComboFile[[#This Row],[2020/21 Baseline_Source]]*T_DataComboFile[[#This Row],[G&S reporting level indicator]]","v":2768},{"$f":"T_DataComboFile[[#This Row],[2021/22 Baseline_Source]]*T_DataComboFile[[#This Row],[G&S reporting level indicator]]","v":3178},{"$f":"T_DataComboFile[[#This Row],[2022/23 Baseline_Source]]*T_DataComboFile[[#This Row],[G&S reporting level indicator]]","v":3138},{"$f":"T_DataComboFile[[#This Row],[2023/24 Baseline_Source]]*T_DataComboFile[[#This Row],[G&S reporting level indicator]]","v":3277},null,null,null,null,null,null,{"$f":"T_DataComboFile[[#This Row],[2021/22 Baseline]]+T_DataComboFile[[#This Row],[2021/22 Reduction]]+T_DataComboFile[[#This Row],[2021/22 Increase]]","v":3178},{"$f":"T_DataComboFile[[#This Row],[2022/23 Baseline]]+T_DataComboFile[[#This Row],[2022/23 Reduction]]+T_DataComboFile[[#This Row],[2022/23 Increase]]","v":3138},{"$f":"T_DataComboFile[[#This Row],[2023/24 Baseline]]+T_DataComboFile[[#This Row],[2023/24 Reduction]]+T_DataComboFile[[#This Row],[2023/24 Increase]]","v":3277}]
["NAT|Non-transfer item","36|Social contributions","2021_22","ENE2020",36,2,2,17300,70536,36,2,2,17300,"070536","36|02|02",1,1,1,2,2,"01|01|01|02|02","National","Small Business Development","Sector Policy and Research","Policy and Legislation","Non-transfer item","Current","Current payments","Compensation of employees","Social contributions","Social contributions","Economic development","Industrialisation and exports","NAT",0,0,253,227,227,227,227,444,444,419,434,635,663,1,null,{"$f":"IF(T_DataComboFile[[#This Row],[G&S reporting level indicator]]=1,$AX$16,\"Not applicable\")","v":"Level 3"},{"$f":"IF(AND($AX$16=\"Level 3\",T_DataComboFile[[#This Row],[Econ3]] = \"Goods and services\"),IF(T_DataComboFile[[#This Row],[Econ4]] = T_DataComboFile[[#This Row],[Econ3]],1,0),IF(AND($AX$16=\"Level 4\",T_DataComboFile[[#This Row],[Econ4]] = \"Goods and services\"),0,1))","v":1},{"$f":"T_DataComboFile[[#This Row],[2016/17_Source]]*T_DataComboFile[[#This Row],[G&S reporting level indicator]]","v":0},{"$f":"T_DataComboFile[[#This Row],[2017/18_Source]]*T_DataComboFile[[#This Row],[G&S reporting level indicator]]","v":0},{"$f":"T_DataComboFile[[#This Row],[2018/19_Source]]*T_DataComboFile[[#This Row],[G&S reporting level indicator]]","v":253},{"$f":"T_DataComboFile[[#This Row],[2019/20 Main appropriation_Source]]*T_DataComboFile[[#This Row],[G&S reporting level indicator]]","v":227},{"$f":"T_DataComboFile[[#This Row],[2019/20 Adjusted appropriation_Source]]*T_DataComboFile[[#This Row],[G&S reporting level indicator]]","v":227},{"$f":"T_DataComboFile[[#This Row],[2019/20 Revised estimate_Source]]*T_DataComboFile[[#This Row],[G&S reporting level indicator]]","v":227},{"$f":"T_DataComboFile[[#This Row],[2019/20 Preliminary outcome_Source]]*T_DataComboFile[[#This Row],[G&S reporting level indicator]]","v":227},{"$f":"T_DataComboFile[[#This Row],[2020/21 Original_Source]]*T_DataComboFile[[#This Row],[G&S reporting level indicator]]","v":444},{"$f":"T_DataComboFile[[#This Row],[2020/21 SAB_Source]]*T_DataComboFile[[#This Row],[G&S reporting level indicator]]","v":444},{"$f":"T_DataComboFile[[#This Row],[2020/21 Baseline_Source]]*T_DataComboFile[[#This Row],[G&S reporting level indicator]]","v":419},{"$f":"T_DataComboFile[[#This Row],[2021/22 Baseline_Source]]*T_DataComboFile[[#This Row],[G&S reporting level indicator]]","v":434},{"$f":"T_DataComboFile[[#This Row],[2022/23 Baseline_Source]]*T_DataComboFile[[#This Row],[G&S reporting level indicator]]","v":635},{"$f":"T_DataComboFile[[#This Row],[2023/24 Baseline_Source]]*T_DataComboFile[[#This Row],[G&S reporting level indicator]]","v":663},null,null,null,null,null,null,{"$f":"T_DataComboFile[[#This Row],[2021/22 Baseline]]+T_DataComboFile[[#This Row],[2021/22 Reduction]]+T_DataComboFile[[#This Row],[2021/22 Increase]]","v":434},{"$f":"T_DataComboFile[[#This Row],[2022/23 Baseline]]+T_DataComboFile[[#This Row],[2022/23 Reduction]]+T_DataComboFile[[#This Row],[2022/23 Increase]]","v":635},{"$f":"T_DataComboFile[[#This Row],[2023/24 Baseline]]+T_DataComboFile[[#This Row],[2023/24 Reduction]]+T_DataComboFile[[#This Row],[2023/24 Increase]]","v":663}]
[null,null,"2021_22","ENE2020",36,2,2,null,70537,36,2,2,null,"070537","36|02|02",1,1,2,2,2,"01|01|02|02|02","National","Small Business Development","Sector Policy and Research","Policy and Legislation","Non-transfer item","Current","Current payments","Goods and services","Goods and services","Goods and services","Economic development","Industrialisation and exports","NAT",0,0,2748,2701,2686,2686,2686,805,805,805,855,907,947,1,null,{"$f":"IF(T_DataComboFile[[#This Row],[G&S reporting level indicator]]=1,$AX$16,\"Not applicable\")","v":"Level 3"},{"$f":"IF(AND($AX$16=\"Level 3\",T_DataComboFile[[#This Row],[Econ3]] = \"Goods and services\"),IF(T_DataComboFile[[#This Row],[Econ4]] = T_DataComboFile[[#This Row],[Econ3]],1,0),IF(AND($AX$16=\"Level 4\",T_DataComboFile[[#This Row],[Econ4]] = \"Goods and services\"),0,1))","v":1},{"$f":"T_DataComboFile[[#This Row],[2016/17_Source]]*T_DataComboFile[[#This Row],[G&S reporting level indicator]]","v":0},{"$f":"T_DataComboFile[[#This Row],[2017/18_Source]]*T_DataComboFile[[#This Row],[G&S reporting level indicator]]","v":0},{"$f":"T_DataComboFile[[#This Row],[2018/19_Source]]*T_DataComboFile[[#This Row],[G&S reporting level indicator]]","v":2748},{"$f":"T_DataComboFile[[#This Row],[2019/20 Main appropriation_Source]]*T_DataComboFile[[#This Row],[G&S reporting level indicator]]","v":2701},{"$f":"T_DataComboFile[[#This Row],[2019/20 Adjusted appropriation_Source]]*T_DataComboFile[[#This Row],[G&S reporting level indicator]]","v":2686},{"$f":"T_DataComboFile[[#This Row],[2019/20 Revised estimate_Source]]*T_DataComboFile[[#This Row],[G&S reporting level indicator]]","v":2686},{"$f":"T_DataComboFile[[#This Row],[2019/20 Preliminary outcome_Source]]*T_DataComboFile[[#This Row],[G&S reporting level indicator]]","v":2686},{"$f":"T_DataComboFile[[#This Row],[2020/21 Original_Source]]*T_DataComboFile[[#This Row],[G&S reporting level indicator]]","v":805},{"$f":"T_DataComboFile[[#This Row],[2020/21 SAB_Source]]*T_DataComboFile[[#This Row],[G&S reporting level indicator]]","v":805},{"$f":"T_DataComboFile[[#This Row],[2020/21 Baseline_Source]]*T_DataComboFile[[#This Row],[G&S reporting level indicator]]","v":805},{"$f":"T_DataComboFile[[#This Row],[2021/22 Baseline_Source]]*T_DataComboFile[[#This Row],[G&S reporting level indicator]]","v":855},{"$f":"T_DataComboFile[[#This Row],[2022/23 Baseline_Source]]*T_DataComboFile[[#This Row],[G&S reporting level indicator]]","v":907},{"$f":"T_DataComboFile[[#This Row],[2023/24 Baseline_Source]]*T_DataComboFile[[#This Row],[G&S reporting level indicator]]","v":947},null,null,null,null,null,null,{"$f":"T_DataComboFile[[#This Row],[2021/22 Baseline]]+T_DataComboFile[[#This Row],[2021/22 Reduction]]+T_DataComboFile[[#This Row],[2021/22 Increase]]","v":855},{"$f":"T_DataComboFile[[#This Row],[2022/23 Baseline]]+T_DataComboFile[[#This Row],[2022/23 Reduction]]+T_DataComboFile[[#This Row],[2022/23 Increase]]","v":907},{"$f":"T_DataComboFile[[#This Row],[2023/24 Baseline]]+T_DataComboFile[[#This Row],[2023/24 Reduction]]+T_DataComboFile[[#This Row],[2023/24 Increase]]","v":947}]
["NAT|Non-transfer item","36|Administrative fees","2021_22","ENE2020",36,2,2,17301,70538,36,2,2,17301,"070538","36|02|02",1,1,2,3,3,"01|01|02|03|03","National","Small Business Development","Sector Policy and Research","Policy and Legislation","Non-transfer item","Current","Current payments","Goods and services","Administrative fees","Administrative fees","Economic development","Industrialisation and exports","NAT",0,0,14,38,38,38,38,21,21,21,25,28,29,1,null,{"$f":"IF(T_DataComboFile[[#This Row],[G&S reporting level indicator]]=1,$AX$16,\"Not applicable\")","v":"Not applicable"},{"$f":"IF(AND($AX$16=\"Level 3\",T_DataComboFile[[#This Row],[Econ3]] = \"Goods and services\"),IF(T_DataComboFile[[#This Row],[Econ4]] = T_DataComboFile[[#This Row],[Econ3]],1,0),IF(AND($AX$16=\"Level 4\",T_DataComboFile[[#This Row],[Econ4]] = \"Goods and services\"),0,1))","v":0},{"$f":"T_DataComboFile[[#This Row],[2016/17_Source]]*T_DataComboFile[[#This Row],[G&S reporting level indicator]]","v":0},{"$f":"T_DataComboFile[[#This Row],[2017/18_Source]]*T_DataComboFile[[#This Row],[G&S reporting level indicator]]","v":0},{"$f":"T_DataComboFile[[#This Row],[2018/19_Source]]*T_DataComboFile[[#This Row],[G&S reporting level indicator]]","v":0},{"$f":"T_DataComboFile[[#This Row],[2019/20 Main appropriation_Source]]*T_DataComboFile[[#This Row],[G&S reporting level indicator]]","v":0},{"$f":"T_DataComboFile[[#This Row],[2019/20 Adjusted appropriation_Source]]*T_DataComboFile[[#This Row],[G&S reporting level indicator]]","v":0},{"$f":"T_DataComboFile[[#This Row],[2019/20 Revised estimate_Source]]*T_DataComboFile[[#This Row],[G&S reporting level indicator]]","v":0},{"$f":"T_DataComboFile[[#This Row],[2019/20 Preliminary outcome_Source]]*T_DataComboFile[[#This Row],[G&S reporting level indicator]]","v":0},{"$f":"T_DataComboFile[[#This Row],[2020/21 Original_Source]]*T_DataComboFile[[#This Row],[G&S reporting level indicator]]","v":0},{"$f":"T_DataComboFile[[#This Row],[2020/21 SAB_Source]]*T_DataComboFile[[#This Row],[G&S reporting level indicator]]","v":0},{"$f":"T_DataComboFile[[#This Row],[2020/21 Baseline_Source]]*T_DataComboFile[[#This Row],[G&S reporting level indicator]]","v":0},{"$f":"T_DataComboFile[[#This Row],[2021/22 Baseline_Source]]*T_DataComboFile[[#This Row],[G&S reporting level indicator]]","v":0},{"$f":"T_DataComboFile[[#This Row],[2022/23 Baseline_Source]]*T_DataComboFile[[#This Row],[G&S reporting level indicator]]","v":0},{"$f":"T_DataComboFile[[#This Row],[2023/24 Baseline_Source]]*T_DataComboFile[[#This Row],[G&S reporting level indicator]]","v":0},null,null,null,null,null,null,{"$f":"T_DataComboFile[[#This Row],[2021/22 Baseline]]+T_DataComboFile[[#This Row],[2021/22 Reduction]]+T_DataComboFile[[#This Row],[2021/22 Increase]]","v":0},{"$f":"T_DataComboFile[[#This Row],[2022/23 Baseline]]+T_DataComboFile[[#This Row],[2022/23 Reduction]]+T_DataComboFile[[#This Row],[2022/23 Increase]]","v":0},{"$f":"T_DataComboFile[[#This Row],[2023/24 Baseline]]+T_DataComboFile[[#This Row],[2023/24 Reduction]]+T_DataComboFile[[#This Row],[2023/24 Increase]]","v":0}]
[null,null,"2021_22","ENE2020",36,2,2,null,70539,36,2,2,null,"070539","36|02|02",1,1,2,4,4,"01|01|02|04|04","National","Small Business Development","Sector Policy and Research","Policy and Legislation",null,"Current","Current payments","Goods and services","Advertising","Advertising",null,null,null,0,0,0,0,0,0,0,0,0,0,0,0,0,0,null,{"$f":"IF(T_DataComboFile[[#This Row],[G&S reporting level indicator]]=1,$AX$16,\"Not applicable\")","v":"Not applicable"},{"$f":"IF(AND($AX$16=\"Level 3\",T_DataComboFile[[#This Row],[Econ3]] = \"Goods and services\"),IF(T_DataComboFile[[#This Row],[Econ4]] = T_DataComboFile[[#This Row],[Econ3]],1,0),IF(AND($AX$16=\"Level 4\",T_DataComboFile[[#This Row],[Econ4]] = \"Goods and services\"),0,1))","v":0},{"$f":"T_DataComboFile[[#This Row],[2016/17_Source]]*T_DataComboFile[[#This Row],[G&S reporting level indicator]]","v":0},{"$f":"T_DataComboFile[[#This Row],[2017/18_Source]]*T_DataComboFile[[#This Row],[G&S reporting level indicator]]","v":0},{"$f":"T_DataComboFile[[#This Row],[2018/19_Source]]*T_DataComboFile[[#This Row],[G&S reporting level indicator]]","v":0},{"$f":"T_DataComboFile[[#This Row],[2019/20 Main appropriation_Source]]*T_DataComboFile[[#This Row],[G&S reporting level indicator]]","v":0},{"$f":"T_DataComboFile[[#This Row],[2019/20 Adjusted appropriation_Source]]*T_DataComboFile[[#This Row],[G&S reporting level indicator]]","v":0},{"$f":"T_DataComboFile[[#This Row],[2019/20 Revised estimate_Source]]*T_DataComboFile[[#This Row],[G&S reporting level indicator]]","v":0},{"$f":"T_DataComboFile[[#This Row],[2019/20 Preliminary outcome_Source]]*T_DataComboFile[[#This Row],[G&S reporting level indicator]]","v":0},{"$f":"T_DataComboFile[[#This Row],[2020/21 Original_Source]]*T_DataComboFile[[#This Row],[G&S reporting level indicator]]","v":0},{"$f":"T_DataComboFile[[#This Row],[2020/21 SAB_Source]]*T_DataComboFile[[#This Row],[G&S reporting level indicator]]","v":0},{"$f":"T_DataComboFile[[#This Row],[2020/21 Baseline_Source]]*T_DataComboFile[[#This Row],[G&S reporting level indicator]]","v":0},{"$f":"T_DataComboFile[[#This Row],[2021/22 Baseline_Source]]*T_DataComboFile[[#This Row],[G&S reporting level indicator]]","v":0},{"$f":"T_DataComboFile[[#This Row],[2022/23 Baseline_Source]]*T_DataComboFile[[#This Row],[G&S reporting level indicator]]","v":0},{"$f":"T_DataComboFile[[#This Row],[2023/24 Baseline_Source]]*T_DataComboFile[[#This Row],[G&S reporting level indicator]]","v":0},null,null,null,null,null,null,{"$f":"T_DataComboFile[[#This Row],[2021/22 Baseline]]+T_DataComboFile[[#This Row],[2021/22 Reduction]]+T_DataComboFile[[#This Row],[2021/22 Increase]]","v":0},{"$f":"T_DataComboFile[[#This Row],[2022/23 Baseline]]+T_DataComboFile[[#This Row],[2022/23 Reduction]]+T_DataComboFile[[#This Row],[2022/23 Increase]]","v":0},{"$f":"T_DataComboFile[[#This Row],[2023/24 Baseline]]+T_DataComboFile[[#This Row],[2023/24 Reduction]]+T_DataComboFile[[#This Row],[2023/24 Increase]]","v":0}]
[null,null,"2021_22","ENE2020",36,2,2,null,70540,36,2,2,null,"070540","36|02|02",1,1,2,5,5,"01|01|02|05|05","National","Small Business Development","Sector Policy and Research","Policy and Legislation",null,"Current","Current payments","Goods and services","Minor assets","Minor assets",null,null,null,0,0,0,0,0,0,0,0,0,0,0,0,0,0,null,{"$f":"IF(T_DataComboFile[[#This Row],[G&S reporting level indicator]]=1,$AX$16,\"Not applicable\")","v":"Not applicable"},{"$f":"IF(AND($AX$16=\"Level 3\",T_DataComboFile[[#This Row],[Econ3]] = \"Goods and services\"),IF(T_DataComboFile[[#This Row],[Econ4]] = T_DataComboFile[[#This Row],[Econ3]],1,0),IF(AND($AX$16=\"Level 4\",T_DataComboFile[[#This Row],[Econ4]] = \"Goods and services\"),0,1))","v":0},{"$f":"T_DataComboFile[[#This Row],[2016/17_Source]]*T_DataComboFile[[#This Row],[G&S reporting level indicator]]","v":0},{"$f":"T_DataComboFile[[#This Row],[2017/18_Source]]*T_DataComboFile[[#This Row],[G&S reporting level indicator]]","v":0},{"$f":"T_DataComboFile[[#This Row],[2018/19_Source]]*T_DataComboFile[[#This Row],[G&S reporting level indicator]]","v":0},{"$f":"T_DataComboFile[[#This Row],[2019/20 Main appropriation_Source]]*T_DataComboFile[[#This Row],[G&S reporting level indicator]]","v":0},{"$f":"T_DataComboFile[[#This Row],[2019/20 Adjusted appropriation_Source]]*T_DataComboFile[[#This Row],[G&S reporting level indicator]]","v":0},{"$f":"T_DataComboFile[[#This Row],[2019/20 Revised estimate_Source]]*T_DataComboFile[[#This Row],[G&S reporting level indicator]]","v":0},{"$f":"T_DataComboFile[[#This Row],[2019/20 Preliminary outcome_Source]]*T_DataComboFile[[#This Row],[G&S reporting level indicator]]","v":0},{"$f":"T_DataComboFile[[#This Row],[2020/21 Original_Source]]*T_DataComboFile[[#This Row],[G&S reporting level indicator]]","v":0},{"$f":"T_DataComboFile[[#This Row],[2020/21 SAB_Source]]*T_DataComboFile[[#This Row],[G&S reporting level indicator]]","v":0},{"$f":"T_DataComboFile[[#This Row],[2020/21 Baseline_Source]]*T_DataComboFile[[#This Row],[G&S reporting level indicator]]","v":0},{"$f":"T_DataComboFile[[#This Row],[2021/22 Baseline_Source]]*T_DataComboFile[[#This Row],[G&S reporting level indicator]]","v":0},{"$f":"T_DataComboFile[[#This Row],[2022/23 Baseline_Source]]*T_DataComboFile[[#This Row],[G&S reporting level indicator]]","v":0},{"$f":"T_DataComboFile[[#This Row],[2023/24 Baseline_Source]]*T_DataComboFile[[#This Row],[G&S reporting level indicator]]","v":0},null,null,null,null,null,null,{"$f":"T_DataComboFile[[#This Row],[2021/22 Baseline]]+T_DataComboFile[[#This Row],[2021/22 Reduction]]+T_DataComboFile[[#This Row],[2021/22 Increase]]","v":0},{"$f":"T_DataComboFile[[#This Row],[2022/23 Baseline]]+T_DataComboFile[[#This Row],[2022/23 Reduction]]+T_DataComboFile[[#This Row],[2022/23 Increase]]","v":0},{"$f":"T_DataComboFile[[#This Row],[2023/24 Baseline]]+T_DataComboFile[[#This Row],[2023/24 Reduction]]+T_DataComboFile[[#This Row],[2023/24 Increase]]","v":0}]
[null,null,"2021_22","ENE2020",36,2,2,null,70541,36,2,2,null,"070541","36|02|02",1,1,2,6,6,"01|01|02|06|06","National","Small Business Development","Sector Policy and Research","Policy and Legislation",null,"Current","Current payments","Goods and services","Audit costs: External","Audit costs: External",null,null,null,0,0,0,0,0,0,0,0,0,0,0,0,0,0,null,{"$f":"IF(T_DataComboFile[[#This Row],[G&S reporting level indicator]]=1,$AX$16,\"Not applicable\")","v":"Not applicable"},{"$f":"IF(AND($AX$16=\"Level 3\",T_DataComboFile[[#This Row],[Econ3]] = \"Goods and services\"),IF(T_DataComboFile[[#This Row],[Econ4]] = T_DataComboFile[[#This Row],[Econ3]],1,0),IF(AND($AX$16=\"Level 4\",T_DataComboFile[[#This Row],[Econ4]] = \"Goods and services\"),0,1))","v":0},{"$f":"T_DataComboFile[[#This Row],[2016/17_Source]]*T_DataComboFile[[#This Row],[G&S reporting level indicator]]","v":0},{"$f":"T_DataComboFile[[#This Row],[2017/18_Source]]*T_DataComboFile[[#This Row],[G&S reporting level indicator]]","v":0},{"$f":"T_DataComboFile[[#This Row],[2018/19_Source]]*T_DataComboFile[[#This Row],[G&S reporting level indicator]]","v":0},{"$f":"T_DataComboFile[[#This Row],[2019/20 Main appropriation_Source]]*T_DataComboFile[[#This Row],[G&S reporting level indicator]]","v":0},{"$f":"T_DataComboFile[[#This Row],[2019/20 Adjusted appropriation_Source]]*T_DataComboFile[[#This Row],[G&S reporting level indicator]]","v":0},{"$f":"T_DataComboFile[[#This Row],[2019/20 Revised estimate_Source]]*T_DataComboFile[[#This Row],[G&S reporting level indicator]]","v":0},{"$f":"T_DataComboFile[[#This Row],[2019/20 Preliminary outcome_Source]]*T_DataComboFile[[#This Row],[G&S reporting level indicator]]","v":0},{"$f":"T_DataComboFile[[#This Row],[2020/21 Original_Source]]*T_DataComboFile[[#This Row],[G&S reporting level indicator]]","v":0},{"$f":"T_DataComboFile[[#This Row],[2020/21 SAB_Source]]*T_DataComboFile[[#This Row],[G&S reporting level indicator]]","v":0},{"$f":"T_DataComboFile[[#This Row],[2020/21 Baseline_Source]]*T_DataComboFile[[#This Row],[G&S reporting level indicator]]","v":0},{"$f":"T_DataComboFile[[#This Row],[2021/22 Baseline_Source]]*T_DataComboFile[[#This Row],[G&S reporting level indicator]]","v":0},{"$f":"T_DataComboFile[[#This Row],[2022/23 Baseline_Source]]*T_DataComboFile[[#This Row],[G&S reporting level indicator]]","v":0},{"$f":"T_DataComboFile[[#This Row],[2023/24 Baseline_Source]]*T_DataComboFile[[#This Row],[G&S reporting level indicator]]","v":0},null,null,null,null,null,null,{"$f":"T_DataComboFile[[#This Row],[2021/22 Baseline]]+T_DataComboFile[[#This Row],[2021/22 Reduction]]+T_DataComboFile[[#This Row],[2021/22 Increase]]","v":0},{"$f":"T_DataComboFile[[#This Row],[2022/23 Baseline]]+T_DataComboFile[[#This Row],[2022/23 Reduction]]+T_DataComboFile[[#This Row],[2022/23 Increase]]","v":0},{"$f":"T_DataComboFile[[#This Row],[2023/24 Baseline]]+T_DataComboFile[[#This Row],[2023/24 Reduction]]+T_DataComboFile[[#This Row],[2023/24 Increase]]","v":0}]
[null,null,"2021_22","ENE2020",36,2,2,null,70542,36,2,2,null,"070542","36|02|02",1,1,2,7,7,"01|01|02|07|07","National","Small Business Development","Sector Policy and Research","Policy and Legislation",null,"Current","Current payments","Goods and services","Bursaries: Employees","Bursaries: Employees",null,null,null,0,0,0,0,0,0,0,0,0,0,0,0,0,0,null,{"$f":"IF(T_DataComboFile[[#This Row],[G&S reporting level indicator]]=1,$AX$16,\"Not applicable\")","v":"Not applicable"},{"$f":"IF(AND($AX$16=\"Level 3\",T_DataComboFile[[#This Row],[Econ3]] = \"Goods and services\"),IF(T_DataComboFile[[#This Row],[Econ4]] = T_DataComboFile[[#This Row],[Econ3]],1,0),IF(AND($AX$16=\"Level 4\",T_DataComboFile[[#This Row],[Econ4]] = \"Goods and services\"),0,1))","v":0},{"$f":"T_DataComboFile[[#This Row],[2016/17_Source]]*T_DataComboFile[[#This Row],[G&S reporting level indicator]]","v":0},{"$f":"T_DataComboFile[[#This Row],[2017/18_Source]]*T_DataComboFile[[#This Row],[G&S reporting level indicator]]","v":0},{"$f":"T_DataComboFile[[#This Row],[2018/19_Source]]*T_DataComboFile[[#This Row],[G&S reporting level indicator]]","v":0},{"$f":"T_DataComboFile[[#This Row],[2019/20 Main appropriation_Source]]*T_DataComboFile[[#This Row],[G&S reporting level indicator]]","v":0},{"$f":"T_DataComboFile[[#This Row],[2019/20 Adjusted appropriation_Source]]*T_DataComboFile[[#This Row],[G&S reporting level indicator]]","v":0},{"$f":"T_DataComboFile[[#This Row],[2019/20 Revised estimate_Source]]*T_DataComboFile[[#This Row],[G&S reporting level indicator]]","v":0},{"$f":"T_DataComboFile[[#This Row],[2019/20 Preliminary outcome_Source]]*T_DataComboFile[[#This Row],[G&S reporting level indicator]]","v":0},{"$f":"T_DataComboFile[[#This Row],[2020/21 Original_Source]]*T_DataComboFile[[#This Row],[G&S reporting level indicator]]","v":0},{"$f":"T_DataComboFile[[#This Row],[2020/21 SAB_Source]]*T_DataComboFile[[#This Row],[G&S reporting level indicator]]","v":0},{"$f":"T_DataComboFile[[#This Row],[2020/21 Baseline_Source]]*T_DataComboFile[[#This Row],[G&S reporting level indicator]]","v":0},{"$f":"T_DataComboFile[[#This Row],[2021/22 Baseline_Source]]*T_DataComboFile[[#This Row],[G&S reporting level indicator]]","v":0},{"$f":"T_DataComboFile[[#This Row],[2022/23 Baseline_Source]]*T_DataComboFile[[#This Row],[G&S reporting level indicator]]","v":0},{"$f":"T_DataComboFile[[#This Row],[2023/24 Baseline_Source]]*T_DataComboFile[[#This Row],[G&S reporting level indicator]]","v":0},null,null,null,null,null,null,{"$f":"T_DataComboFile[[#This Row],[2021/22 Baseline]]+T_DataComboFile[[#This Row],[2021/22 Reduction]]+T_DataComboFile[[#This Row],[2021/22 Increase]]","v":0},{"$f":"T_DataComboFile[[#This Row],[2022/23 Baseline]]+T_DataComboFile[[#This Row],[2022/23 Reduction]]+T_DataComboFile[[#This Row],[2022/23 Increase]]","v":0},{"$f":"T_DataComboFile[[#This Row],[2023/24 Baseline]]+T_DataComboFile[[#This Row],[2023/24 Reduction]]+T_DataComboFile[[#This Row],[2023/24 Increase]]","v":0}]
["NAT|Non-transfer item","36|Catering: Departmental activities","2021_22","ENE2020",36,2,2,17302,70543,36,2,2,17302,"070543","36|02|02",1,1,2,8,8,"01|01|02|08|08","National","Small Business Development","Sector Policy and Research","Policy and Legislation","Non-transfer item","Current","Current payments","Goods and services","Catering: Departmental activities","Catering: Departmental activities","Economic development","Industrialisation and exports","NAT",0,0,69,189,189,189,189,78,78,78,82,86,90,1,null,{"$f":"IF(T_DataComboFile[[#This Row],[G&S reporting level indicator]]=1,$AX$16,\"Not applicable\")","v":"Not applicable"},{"$f":"IF(AND($AX$16=\"Level 3\",T_DataComboFile[[#This Row],[Econ3]] = \"Goods and services\"),IF(T_DataComboFile[[#This Row],[Econ4]] = T_DataComboFile[[#This Row],[Econ3]],1,0),IF(AND($AX$16=\"Level 4\",T_DataComboFile[[#This Row],[Econ4]] = \"Goods and services\"),0,1))","v":0},{"$f":"T_DataComboFile[[#This Row],[2016/17_Source]]*T_DataComboFile[[#This Row],[G&S reporting level indicator]]","v":0},{"$f":"T_DataComboFile[[#This Row],[2017/18_Source]]*T_DataComboFile[[#This Row],[G&S reporting level indicator]]","v":0},{"$f":"T_DataComboFile[[#This Row],[2018/19_Source]]*T_DataComboFile[[#This Row],[G&S reporting level indicator]]","v":0},{"$f":"T_DataComboFile[[#This Row],[2019/20 Main appropriation_Source]]*T_DataComboFile[[#This Row],[G&S reporting level indicator]]","v":0},{"$f":"T_DataComboFile[[#This Row],[2019/20 Adjusted appropriation_Source]]*T_DataComboFile[[#This Row],[G&S reporting level indicator]]","v":0},{"$f":"T_DataComboFile[[#This Row],[2019/20 Revised estimate_Source]]*T_DataComboFile[[#This Row],[G&S reporting level indicator]]","v":0},{"$f":"T_DataComboFile[[#This Row],[2019/20 Preliminary outcome_Source]]*T_DataComboFile[[#This Row],[G&S reporting level indicator]]","v":0},{"$f":"T_DataComboFile[[#This Row],[2020/21 Original_Source]]*T_DataComboFile[[#This Row],[G&S reporting level indicator]]","v":0},{"$f":"T_DataComboFile[[#This Row],[2020/21 SAB_Source]]*T_DataComboFile[[#This Row],[G&S reporting level indicator]]","v":0},{"$f":"T_DataComboFile[[#This Row],[2020/21 Baseline_Source]]*T_DataComboFile[[#This Row],[G&S reporting level indicator]]","v":0},{"$f":"T_DataComboFile[[#This Row],[2021/22 Baseline_Source]]*T_DataComboFile[[#This Row],[G&S reporting level indicator]]","v":0},{"$f":"T_DataComboFile[[#This Row],[2022/23 Baseline_Source]]*T_DataComboFile[[#This Row],[G&S reporting level indicator]]","v":0},{"$f":"T_DataComboFile[[#This Row],[2023/24 Baseline_Source]]*T_DataComboFile[[#This Row],[G&S reporting level indicator]]","v":0},null,null,null,null,null,null,{"$f":"T_DataComboFile[[#This Row],[2021/22 Baseline]]+T_DataComboFile[[#This Row],[2021/22 Reduction]]+T_DataComboFile[[#This Row],[2021/22 Increase]]","v":0},{"$f":"T_DataComboFile[[#This Row],[2022/23 Baseline]]+T_DataComboFile[[#This Row],[2022/23 Reduction]]+T_DataComboFile[[#This Row],[2022/23 Increase]]","v":0},{"$f":"T_DataComboFile[[#This Row],[2023/24 Baseline]]+T_DataComboFile[[#This Row],[2023/24 Reduction]]+T_DataComboFile[[#This Row],[2023/24 Increase]]","v":0}]
["NAT|Non-transfer item","36|Communication (G&S)","2021_22","ENE2020",36,2,2,17303,70544,36,2,2,17303,"070544","36|02|02",1,1,2,9,9,"01|01|02|09|09","National","Small Business Development","Sector Policy and Research","Policy and Legislation","Non-transfer item","Current","Current payments","Goods and services","Communication (G&S)","Communication (G&S)","Economic development","Industrialisation and exports","NAT",0,0,12,10,10,10,10,16,16,16,18,20,21,1,null,{"$f":"IF(T_DataComboFile[[#This Row],[G&S reporting level indicator]]=1,$AX$16,\"Not applicable\")","v":"Not applicable"},{"$f":"IF(AND($AX$16=\"Level 3\",T_DataComboFile[[#This Row],[Econ3]] = \"Goods and services\"),IF(T_DataComboFile[[#This Row],[Econ4]] = T_DataComboFile[[#This Row],[Econ3]],1,0),IF(AND($AX$16=\"Level 4\",T_DataComboFile[[#This Row],[Econ4]] = \"Goods and services\"),0,1))","v":0},{"$f":"T_DataComboFile[[#This Row],[2016/17_Source]]*T_DataComboFile[[#This Row],[G&S reporting level indicator]]","v":0},{"$f":"T_DataComboFile[[#This Row],[2017/18_Source]]*T_DataComboFile[[#This Row],[G&S reporting level indicator]]","v":0},{"$f":"T_DataComboFile[[#This Row],[2018/19_Source]]*T_DataComboFile[[#This Row],[G&S reporting level indicator]]","v":0},{"$f":"T_DataComboFile[[#This Row],[2019/20 Main appropriation_Source]]*T_DataComboFile[[#This Row],[G&S reporting level indicator]]","v":0},{"$f":"T_DataComboFile[[#This Row],[2019/20 Adjusted appropriation_Source]]*T_DataComboFile[[#This Row],[G&S reporting level indicator]]","v":0},{"$f":"T_DataComboFile[[#This Row],[2019/20 Revised estimate_Source]]*T_DataComboFile[[#This Row],[G&S reporting level indicator]]","v":0},{"$f":"T_DataComboFile[[#This Row],[2019/20 Preliminary outcome_Source]]*T_DataComboFile[[#This Row],[G&S reporting level indicator]]","v":0},{"$f":"T_DataComboFile[[#This Row],[2020/21 Original_Source]]*T_DataComboFile[[#This Row],[G&S reporting level indicator]]","v":0},{"$f":"T_DataComboFile[[#This Row],[2020/21 SAB_Source]]*T_DataComboFile[[#This Row],[G&S reporting level indicator]]","v":0},{"$f":"T_DataComboFile[[#This Row],[2020/21 Baseline_Source]]*T_DataComboFile[[#This Row],[G&S reporting level indicator]]","v":0},{"$f":"T_DataComboFile[[#This Row],[2021/22 Baseline_Source]]*T_DataComboFile[[#This Row],[G&S reporting level indicator]]","v":0},{"$f":"T_DataComboFile[[#This Row],[2022/23 Baseline_Source]]*T_DataComboFile[[#This Row],[G&S reporting level indicator]]","v":0},{"$f":"T_DataComboFile[[#This Row],[2023/24 Baseline_Source]]*T_DataComboFile[[#This Row],[G&S reporting level indicator]]","v":0},null,null,null,null,null,null,{"$f":"T_DataComboFile[[#This Row],[2021/22 Baseline]]+T_DataComboFile[[#This Row],[2021/22 Reduction]]+T_DataComboFile[[#This Row],[2021/22 Increase]]","v":0},{"$f":"T_DataComboFile[[#This Row],[2022/23 Baseline]]+T_DataComboFile[[#This Row],[2022/23 Reduction]]+T_DataComboFile[[#This Row],[2022/23 Increase]]","v":0},{"$f":"T_DataComboFile[[#This Row],[2023/24 Baseline]]+T_DataComboFile[[#This Row],[2023/24 Reduction]]+T_DataComboFile[[#This Row],[2023/24 Increase]]","v":0}]
[null,null,"2021_22","ENE2020",36,2,2,null,70545,36,2,2,null,"070545","36|02|02",1,1,2,10,10,"01|01|02|10|10","National","Small Business Development","Sector Policy and Research","Policy and Legislation",null,"Current","Current payments","Goods and services","Computer services","Computer services",null,null,null,0,0,0,0,0,0,0,0,0,0,0,0,0,0,null,{"$f":"IF(T_DataComboFile[[#This Row],[G&S reporting level indicator]]=1,$AX$16,\"Not applicable\")","v":"Not applicable"},{"$f":"IF(AND($AX$16=\"Level 3\",T_DataComboFile[[#This Row],[Econ3]] = \"Goods and services\"),IF(T_DataComboFile[[#This Row],[Econ4]] = T_DataComboFile[[#This Row],[Econ3]],1,0),IF(AND($AX$16=\"Level 4\",T_DataComboFile[[#This Row],[Econ4]] = \"Goods and services\"),0,1))","v":0},{"$f":"T_DataComboFile[[#This Row],[2016/17_Source]]*T_DataComboFile[[#This Row],[G&S reporting level indicator]]","v":0},{"$f":"T_DataComboFile[[#This Row],[2017/18_Source]]*T_DataComboFile[[#This Row],[G&S reporting level indicator]]","v":0},{"$f":"T_DataComboFile[[#This Row],[2018/19_Source]]*T_DataComboFile[[#This Row],[G&S reporting level indicator]]","v":0},{"$f":"T_DataComboFile[[#This Row],[2019/20 Main appropriation_Source]]*T_DataComboFile[[#This Row],[G&S reporting level indicator]]","v":0},{"$f":"T_DataComboFile[[#This Row],[2019/20 Adjusted appropriation_Source]]*T_DataComboFile[[#This Row],[G&S reporting level indicator]]","v":0},{"$f":"T_DataComboFile[[#This Row],[2019/20 Revised estimate_Source]]*T_DataComboFile[[#This Row],[G&S reporting level indicator]]","v":0},{"$f":"T_DataComboFile[[#This Row],[2019/20 Preliminary outcome_Source]]*T_DataComboFile[[#This Row],[G&S reporting level indicator]]","v":0},{"$f":"T_DataComboFile[[#This Row],[2020/21 Original_Source]]*T_DataComboFile[[#This Row],[G&S reporting level indicator]]","v":0},{"$f":"T_DataComboFile[[#This Row],[2020/21 SAB_Source]]*T_DataComboFile[[#This Row],[G&S reporting level indicator]]","v":0},{"$f":"T_DataComboFile[[#This Row],[2020/21 Baseline_Source]]*T_DataComboFile[[#This Row],[G&S reporting level indicator]]","v":0},{"$f":"T_DataComboFile[[#This Row],[2021/22 Baseline_Source]]*T_DataComboFile[[#This Row],[G&S reporting level indicator]]","v":0},{"$f":"T_DataComboFile[[#This Row],[2022/23 Baseline_Source]]*T_DataComboFile[[#This Row],[G&S reporting level indicator]]","v":0},{"$f":"T_DataComboFile[[#This Row],[2023/24 Baseline_Source]]*T_DataComboFile[[#This Row],[G&S reporting level indicator]]","v":0},null,null,null,null,null,null,{"$f":"T_DataComboFile[[#This Row],[2021/22 Baseline]]+T_DataComboFile[[#This Row],[2021/22 Reduction]]+T_DataComboFile[[#This Row],[2021/22 Increase]]","v":0},{"$f":"T_DataComboFile[[#This Row],[2022/23 Baseline]]+T_DataComboFile[[#This Row],[2022/23 Reduction]]+T_DataComboFile[[#This Row],[2022/23 Increase]]","v":0},{"$f":"T_DataComboFile[[#This Row],[2023/24 Baseline]]+T_DataComboFile[[#This Row],[2023/24 Reduction]]+T_DataComboFile[[#This Row],[2023/24 Increase]]","v":0}]
["NAT|Non-transfer item","36|Consultants: Business and advisory services","2021_22","ENE2020",36,2,2,17304,70546,36,2,2,17304,"070546","36|02|02",1,1,2,11,11,"01|01|02|11|11","National","Small Business Development","Sector Policy and Research","Policy and Legislation","Non-transfer item","Current","Current payments","Goods and services","Consultants: Business and advisory services","Consultants: Business and advisory services","Economic development","Industrialisation and exports","NAT",0,0,2293,1800,1521,1521,1521,0,0,0,0,0,0,1,null,{"$f":"IF(T_DataComboFile[[#This Row],[G&S reporting level indicator]]=1,$AX$16,\"Not applicable\")","v":"Not applicable"},{"$f":"IF(AND($AX$16=\"Level 3\",T_DataComboFile[[#This Row],[Econ3]] = \"Goods and services\"),IF(T_DataComboFile[[#This Row],[Econ4]] = T_DataComboFile[[#This Row],[Econ3]],1,0),IF(AND($AX$16=\"Level 4\",T_DataComboFile[[#This Row],[Econ4]] = \"Goods and services\"),0,1))","v":0},{"$f":"T_DataComboFile[[#This Row],[2016/17_Source]]*T_DataComboFile[[#This Row],[G&S reporting level indicator]]","v":0},{"$f":"T_DataComboFile[[#This Row],[2017/18_Source]]*T_DataComboFile[[#This Row],[G&S reporting level indicator]]","v":0},{"$f":"T_DataComboFile[[#This Row],[2018/19_Source]]*T_DataComboFile[[#This Row],[G&S reporting level indicator]]","v":0},{"$f":"T_DataComboFile[[#This Row],[2019/20 Main appropriation_Source]]*T_DataComboFile[[#This Row],[G&S reporting level indicator]]","v":0},{"$f":"T_DataComboFile[[#This Row],[2019/20 Adjusted appropriation_Source]]*T_DataComboFile[[#This Row],[G&S reporting level indicator]]","v":0},{"$f":"T_DataComboFile[[#This Row],[2019/20 Revised estimate_Source]]*T_DataComboFile[[#This Row],[G&S reporting level indicator]]","v":0},{"$f":"T_DataComboFile[[#This Row],[2019/20 Preliminary outcome_Source]]*T_DataComboFile[[#This Row],[G&S reporting level indicator]]","v":0},{"$f":"T_DataComboFile[[#This Row],[2020/21 Original_Source]]*T_DataComboFile[[#This Row],[G&S reporting level indicator]]","v":0},{"$f":"T_DataComboFile[[#This Row],[2020/21 SAB_Source]]*T_DataComboFile[[#This Row],[G&S reporting level indicator]]","v":0},{"$f":"T_DataComboFile[[#This Row],[2020/21 Baseline_Source]]*T_DataComboFile[[#This Row],[G&S reporting level indicator]]","v":0},{"$f":"T_DataComboFile[[#This Row],[2021/22 Baseline_Source]]*T_DataComboFile[[#This Row],[G&S reporting level indicator]]","v":0},{"$f":"T_DataComboFile[[#This Row],[2022/23 Baseline_Source]]*T_DataComboFile[[#This Row],[G&S reporting level indicator]]","v":0},{"$f":"T_DataComboFile[[#This Row],[2023/24 Baseline_Source]]*T_DataComboFile[[#This Row],[G&S reporting level indicator]]","v":0},null,null,null,null,null,null,{"$f":"T_DataComboFile[[#This Row],[2021/22 Baseline]]+T_DataComboFile[[#This Row],[2021/22 Reduction]]+T_DataComboFile[[#This Row],[2021/22 Increase]]","v":0},{"$f":"T_DataComboFile[[#This Row],[2022/23 Baseline]]+T_DataComboFile[[#This Row],[2022/23 Reduction]]+T_DataComboFile[[#This Row],[2022/23 Increase]]","v":0},{"$f":"T_DataComboFile[[#This Row],[2023/24 Baseline]]+T_DataComboFile[[#This Row],[2023/24 Reduction]]+T_DataComboFile[[#This Row],[2023/24 Increase]]","v":0}]
[null,null,"2021_22","ENE2020",36,2,2,null,70547,36,2,2,null,"070547","36|02|02",1,1,2,12,12,"01|01|02|12|12","National","Small Business Development","Sector Policy and Research","Policy and Legislation",null,"Current","Current payments","Goods and services","Infrastructure and planning services","Infrastructure and planning services",null,null,null,0,0,0,0,0,0,0,0,0,0,0,0,0,0,null,{"$f":"IF(T_DataComboFile[[#This Row],[G&S reporting level indicator]]=1,$AX$16,\"Not applicable\")","v":"Not applicable"},{"$f":"IF(AND($AX$16=\"Level 3\",T_DataComboFile[[#This Row],[Econ3]] = \"Goods and services\"),IF(T_DataComboFile[[#This Row],[Econ4]] = T_DataComboFile[[#This Row],[Econ3]],1,0),IF(AND($AX$16=\"Level 4\",T_DataComboFile[[#This Row],[Econ4]] = \"Goods and services\"),0,1))","v":0},{"$f":"T_DataComboFile[[#This Row],[2016/17_Source]]*T_DataComboFile[[#This Row],[G&S reporting level indicator]]","v":0},{"$f":"T_DataComboFile[[#This Row],[2017/18_Source]]*T_DataComboFile[[#This Row],[G&S reporting level indicator]]","v":0},{"$f":"T_DataComboFile[[#This Row],[2018/19_Source]]*T_DataComboFile[[#This Row],[G&S reporting level indicator]]","v":0},{"$f":"T_DataComboFile[[#This Row],[2019/20 Main appropriation_Source]]*T_DataComboFile[[#This Row],[G&S reporting level indicator]]","v":0},{"$f":"T_DataComboFile[[#This Row],[2019/20 Adjusted appropriation_Source]]*T_DataComboFile[[#This Row],[G&S reporting level indicator]]","v":0},{"$f":"T_DataComboFile[[#This Row],[2019/20 Revised estimate_Source]]*T_DataComboFile[[#This Row],[G&S reporting level indicator]]","v":0},{"$f":"T_DataComboFile[[#This Row],[2019/20 Preliminary outcome_Source]]*T_DataComboFile[[#This Row],[G&S reporting level indicator]]","v":0},{"$f":"T_DataComboFile[[#This Row],[2020/21 Original_Source]]*T_DataComboFile[[#This Row],[G&S reporting level indicator]]","v":0},{"$f":"T_DataComboFile[[#This Row],[2020/21 SAB_Source]]*T_DataComboFile[[#This Row],[G&S reporting level indicator]]","v":0},{"$f":"T_DataComboFile[[#This Row],[2020/21 Baseline_Source]]*T_DataComboFile[[#This Row],[G&S reporting level indicator]]","v":0},{"$f":"T_DataComboFile[[#This Row],[2021/22 Baseline_Source]]*T_DataComboFile[[#This Row],[G&S reporting level indicator]]","v":0},{"$f":"T_DataComboFile[[#This Row],[2022/23 Baseline_Source]]*T_DataComboFile[[#This Row],[G&S reporting level indicator]]","v":0},{"$f":"T_DataComboFile[[#This Row],[2023/24 Baseline_Source]]*T_DataComboFile[[#This Row],[G&S reporting level indicator]]","v":0},null,null,null,null,null,null,{"$f":"T_DataComboFile[[#This Row],[2021/22 Baseline]]+T_DataComboFile[[#This Row],[2021/22 Reduction]]+T_DataComboFile[[#This Row],[2021/22 Increase]]","v":0},{"$f":"T_DataComboFile[[#This Row],[2022/23 Baseline]]+T_DataComboFile[[#This Row],[2022/23 Reduction]]+T_DataComboFile[[#This Row],[2022/23 Increase]]","v":0},{"$f":"T_DataComboFile[[#This Row],[2023/24 Baseline]]+T_DataComboFile[[#This Row],[2023/24 Reduction]]+T_DataComboFile[[#This Row],[2023/24 Increase]]","v":0}]
[null,null,"2021_22","ENE2020",36,2,2,null,70548,36,2,2,null,"070548","36|02|02",1,1,2,13,13,"01|01|02|13|13","National","Small Business Development","Sector Policy and Research","Policy and Legislation",null,"Current","Current payments","Goods and services","Laboratory services","Laboratory services",null,null,null,0,0,0,0,0,0,0,0,0,0,0,0,0,0,null,{"$f":"IF(T_DataComboFile[[#This Row],[G&S reporting level indicator]]=1,$AX$16,\"Not applicable\")","v":"Not applicable"},{"$f":"IF(AND($AX$16=\"Level 3\",T_DataComboFile[[#This Row],[Econ3]] = \"Goods and services\"),IF(T_DataComboFile[[#This Row],[Econ4]] = T_DataComboFile[[#This Row],[Econ3]],1,0),IF(AND($AX$16=\"Level 4\",T_DataComboFile[[#This Row],[Econ4]] = \"Goods and services\"),0,1))","v":0},{"$f":"T_DataComboFile[[#This Row],[2016/17_Source]]*T_DataComboFile[[#This Row],[G&S reporting level indicator]]","v":0},{"$f":"T_DataComboFile[[#This Row],[2017/18_Source]]*T_DataComboFile[[#This Row],[G&S reporting level indicator]]","v":0},{"$f":"T_DataComboFile[[#This Row],[2018/19_Source]]*T_DataComboFile[[#This Row],[G&S reporting level indicator]]","v":0},{"$f":"T_DataComboFile[[#This Row],[2019/20 Main appropriation_Source]]*T_DataComboFile[[#This Row],[G&S reporting level indicator]]","v":0},{"$f":"T_DataComboFile[[#This Row],[2019/20 Adjusted appropriation_Source]]*T_DataComboFile[[#This Row],[G&S reporting level indicator]]","v":0},{"$f":"T_DataComboFile[[#This Row],[2019/20 Revised estimate_Source]]*T_DataComboFile[[#This Row],[G&S reporting level indicator]]","v":0},{"$f":"T_DataComboFile[[#This Row],[2019/20 Preliminary outcome_Source]]*T_DataComboFile[[#This Row],[G&S reporting level indicator]]","v":0},{"$f":"T_DataComboFile[[#This Row],[2020/21 Original_Source]]*T_DataComboFile[[#This Row],[G&S reporting level indicator]]","v":0},{"$f":"T_DataComboFile[[#This Row],[2020/21 SAB_Source]]*T_DataComboFile[[#This Row],[G&S reporting level indicator]]","v":0},{"$f":"T_DataComboFile[[#This Row],[2020/21 Baseline_Source]]*T_DataComboFile[[#This Row],[G&S reporting level indicator]]","v":0},{"$f":"T_DataComboFile[[#This Row],[2021/22 Baseline_Source]]*T_DataComboFile[[#This Row],[G&S reporting level indicator]]","v":0},{"$f":"T_DataComboFile[[#This Row],[2022/23 Baseline_Source]]*T_DataComboFile[[#This Row],[G&S reporting level indicator]]","v":0},{"$f":"T_DataComboFile[[#This Row],[2023/24 Baseline_Source]]*T_DataComboFile[[#This Row],[G&S reporting level indicator]]","v":0},null,null,null,null,null,null,{"$f":"T_DataComboFile[[#This Row],[2021/22 Baseline]]+T_DataComboFile[[#This Row],[2021/22 Reduction]]+T_DataComboFile[[#This Row],[2021/22 Increase]]","v":0},{"$f":"T_DataComboFile[[#This Row],[2022/23 Baseline]]+T_DataComboFile[[#This Row],[2022/23 Reduction]]+T_DataComboFile[[#This Row],[2022/23 Increase]]","v":0},{"$f":"T_DataComboFile[[#This Row],[2023/24 Baseline]]+T_DataComboFile[[#This Row],[2023/24 Reduction]]+T_DataComboFile[[#This Row],[2023/24 Increase]]","v":0}]
[null,null,"2021_22","ENE2020",36,2,2,null,70549,36,2,2,null,"070549","36|02|02",1,1,2,14,14,"01|01|02|14|14","National","Small Business Development","Sector Policy and Research","Policy and Legislation",null,"Current","Current payments","Goods and services","Legal services (G&S)","Legal services (G&S)",null,null,null,0,0,0,0,0,0,0,0,0,0,0,0,0,0,null,{"$f":"IF(T_DataComboFile[[#This Row],[G&S reporting level indicator]]=1,$AX$16,\"Not applicable\")","v":"Not applicable"},{"$f":"IF(AND($AX$16=\"Level 3\",T_DataComboFile[[#This Row],[Econ3]] = \"Goods and services\"),IF(T_DataComboFile[[#This Row],[Econ4]] = T_DataComboFile[[#This Row],[Econ3]],1,0),IF(AND($AX$16=\"Level 4\",T_DataComboFile[[#This Row],[Econ4]] = \"Goods and services\"),0,1))","v":0},{"$f":"T_DataComboFile[[#This Row],[2016/17_Source]]*T_DataComboFile[[#This Row],[G&S reporting level indicator]]","v":0},{"$f":"T_DataComboFile[[#This Row],[2017/18_Source]]*T_DataComboFile[[#This Row],[G&S reporting level indicator]]","v":0},{"$f":"T_DataComboFile[[#This Row],[2018/19_Source]]*T_DataComboFile[[#This Row],[G&S reporting level indicator]]","v":0},{"$f":"T_DataComboFile[[#This Row],[2019/20 Main appropriation_Source]]*T_DataComboFile[[#This Row],[G&S reporting level indicator]]","v":0},{"$f":"T_DataComboFile[[#This Row],[2019/20 Adjusted appropriation_Source]]*T_DataComboFile[[#This Row],[G&S reporting level indicator]]","v":0},{"$f":"T_DataComboFile[[#This Row],[2019/20 Revised estimate_Source]]*T_DataComboFile[[#This Row],[G&S reporting level indicator]]","v":0},{"$f":"T_DataComboFile[[#This Row],[2019/20 Preliminary outcome_Source]]*T_DataComboFile[[#This Row],[G&S reporting level indicator]]","v":0},{"$f":"T_DataComboFile[[#This Row],[2020/21 Original_Source]]*T_DataComboFile[[#This Row],[G&S reporting level indicator]]","v":0},{"$f":"T_DataComboFile[[#This Row],[2020/21 SAB_Source]]*T_DataComboFile[[#This Row],[G&S reporting level indicator]]","v":0},{"$f":"T_DataComboFile[[#This Row],[2020/21 Baseline_Source]]*T_DataComboFile[[#This Row],[G&S reporting level indicator]]","v":0},{"$f":"T_DataComboFile[[#This Row],[2021/22 Baseline_Source]]*T_DataComboFile[[#This Row],[G&S reporting level indicator]]","v":0},{"$f":"T_DataComboFile[[#This Row],[2022/23 Baseline_Source]]*T_DataComboFile[[#This Row],[G&S reporting level indicator]]","v":0},{"$f":"T_DataComboFile[[#This Row],[2023/24 Baseline_Source]]*T_DataComboFile[[#This Row],[G&S reporting level indicator]]","v":0},null,null,null,null,null,null,{"$f":"T_DataComboFile[[#This Row],[2021/22 Baseline]]+T_DataComboFile[[#This Row],[2021/22 Reduction]]+T_DataComboFile[[#This Row],[2021/22 Increase]]","v":0},{"$f":"T_DataComboFile[[#This Row],[2022/23 Baseline]]+T_DataComboFile[[#This Row],[2022/23 Reduction]]+T_DataComboFile[[#This Row],[2022/23 Increase]]","v":0},{"$f":"T_DataComboFile[[#This Row],[2023/24 Baseline]]+T_DataComboFile[[#This Row],[2023/24 Reduction]]+T_DataComboFile[[#This Row],[2023/24 Increase]]","v":0}]
[null,null,"2021_22","ENE2020",36,2,2,null,70550,36,2,2,null,"070550","36|02|02",1,1,2,15,15,"01|01|02|15|15","National","Small Business Development","Sector Policy and Research","Policy and Legislation",null,"Current","Current payments","Goods and services","Science and technological services","Science and technological services",null,null,null,0,0,0,0,0,0,0,0,0,0,0,0,0,0,null,{"$f":"IF(T_DataComboFile[[#This Row],[G&S reporting level indicator]]=1,$AX$16,\"Not applicable\")","v":"Not applicable"},{"$f":"IF(AND($AX$16=\"Level 3\",T_DataComboFile[[#This Row],[Econ3]] = \"Goods and services\"),IF(T_DataComboFile[[#This Row],[Econ4]] = T_DataComboFile[[#This Row],[Econ3]],1,0),IF(AND($AX$16=\"Level 4\",T_DataComboFile[[#This Row],[Econ4]] = \"Goods and services\"),0,1))","v":0},{"$f":"T_DataComboFile[[#This Row],[2016/17_Source]]*T_DataComboFile[[#This Row],[G&S reporting level indicator]]","v":0},{"$f":"T_DataComboFile[[#This Row],[2017/18_Source]]*T_DataComboFile[[#This Row],[G&S reporting level indicator]]","v":0},{"$f":"T_DataComboFile[[#This Row],[2018/19_Source]]*T_DataComboFile[[#This Row],[G&S reporting level indicator]]","v":0},{"$f":"T_DataComboFile[[#This Row],[2019/20 Main appropriation_Source]]*T_DataComboFile[[#This Row],[G&S reporting level indicator]]","v":0},{"$f":"T_DataComboFile[[#This Row],[2019/20 Adjusted appropriation_Source]]*T_DataComboFile[[#This Row],[G&S reporting level indicator]]","v":0},{"$f":"T_DataComboFile[[#This Row],[2019/20 Revised estimate_Source]]*T_DataComboFile[[#This Row],[G&S reporting level indicator]]","v":0},{"$f":"T_DataComboFile[[#This Row],[2019/20 Preliminary outcome_Source]]*T_DataComboFile[[#This Row],[G&S reporting level indicator]]","v":0},{"$f":"T_DataComboFile[[#This Row],[2020/21 Original_Source]]*T_DataComboFile[[#This Row],[G&S reporting level indicator]]","v":0},{"$f":"T_DataComboFile[[#This Row],[2020/21 SAB_Source]]*T_DataComboFile[[#This Row],[G&S reporting level indicator]]","v":0},{"$f":"T_DataComboFile[[#This Row],[2020/21 Baseline_Source]]*T_DataComboFile[[#This Row],[G&S reporting level indicator]]","v":0},{"$f":"T_DataComboFile[[#This Row],[2021/22 Baseline_Source]]*T_DataComboFile[[#This Row],[G&S reporting level indicator]]","v":0},{"$f":"T_DataComboFile[[#This Row],[2022/23 Baseline_Source]]*T_DataComboFile[[#This Row],[G&S reporting level indicator]]","v":0},{"$f":"T_DataComboFile[[#This Row],[2023/24 Baseline_Source]]*T_DataComboFile[[#This Row],[G&S reporting level indicator]]","v":0},null,null,null,null,null,null,{"$f":"T_DataComboFile[[#This Row],[2021/22 Baseline]]+T_DataComboFile[[#This Row],[2021/22 Reduction]]+T_DataComboFile[[#This Row],[2021/22 Increase]]","v":0},{"$f":"T_DataComboFile[[#This Row],[2022/23 Baseline]]+T_DataComboFile[[#This Row],[2022/23 Reduction]]+T_DataComboFile[[#This Row],[2022/23 Increase]]","v":0},{"$f":"T_DataComboFile[[#This Row],[2023/24 Baseline]]+T_DataComboFile[[#This Row],[2023/24 Reduction]]+T_DataComboFile[[#This Row],[2023/24 Increase]]","v":0}]
[null,null,"2021_22","ENE2020",36,2,2,null,70551,36,2,2,null,"070551","36|02|02",1,1,2,16,16,"01|01|02|16|16","National","Small Business Development","Sector Policy and Research","Policy and Legislation",null,"Current","Current payments","Goods and services","Contractors","Contractors",null,null,null,0,0,0,0,0,0,0,0,0,0,0,0,0,0,null,{"$f":"IF(T_DataComboFile[[#This Row],[G&S reporting level indicator]]=1,$AX$16,\"Not applicable\")","v":"Not applicable"},{"$f":"IF(AND($AX$16=\"Level 3\",T_DataComboFile[[#This Row],[Econ3]] = \"Goods and services\"),IF(T_DataComboFile[[#This Row],[Econ4]] = T_DataComboFile[[#This Row],[Econ3]],1,0),IF(AND($AX$16=\"Level 4\",T_DataComboFile[[#This Row],[Econ4]] = \"Goods and services\"),0,1))","v":0},{"$f":"T_DataComboFile[[#This Row],[2016/17_Source]]*T_DataComboFile[[#This Row],[G&S reporting level indicator]]","v":0},{"$f":"T_DataComboFile[[#This Row],[2017/18_Source]]*T_DataComboFile[[#This Row],[G&S reporting level indicator]]","v":0},{"$f":"T_DataComboFile[[#This Row],[2018/19_Source]]*T_DataComboFile[[#This Row],[G&S reporting level indicator]]","v":0},{"$f":"T_DataComboFile[[#This Row],[2019/20 Main appropriation_Source]]*T_DataComboFile[[#This Row],[G&S reporting level indicator]]","v":0},{"$f":"T_DataComboFile[[#This Row],[2019/20 Adjusted appropriation_Source]]*T_DataComboFile[[#This Row],[G&S reporting level indicator]]","v":0},{"$f":"T_DataComboFile[[#This Row],[2019/20 Revised estimate_Source]]*T_DataComboFile[[#This Row],[G&S reporting level indicator]]","v":0},{"$f":"T_DataComboFile[[#This Row],[2019/20 Preliminary outcome_Source]]*T_DataComboFile[[#This Row],[G&S reporting level indicator]]","v":0},{"$f":"T_DataComboFile[[#This Row],[2020/21 Original_Source]]*T_DataComboFile[[#This Row],[G&S reporting level indicator]]","v":0},{"$f":"T_DataComboFile[[#This Row],[2020/21 SAB_Source]]*T_DataComboFile[[#This Row],[G&S reporting level indicator]]","v":0},{"$f":"T_DataComboFile[[#This Row],[2020/21 Baseline_Source]]*T_DataComboFile[[#This Row],[G&S reporting level indicator]]","v":0},{"$f":"T_DataComboFile[[#This Row],[2021/22 Baseline_Source]]*T_DataComboFile[[#This Row],[G&S reporting level indicator]]","v":0},{"$f":"T_DataComboFile[[#This Row],[2022/23 Baseline_Source]]*T_DataComboFile[[#This Row],[G&S reporting level indicator]]","v":0},{"$f":"T_DataComboFile[[#This Row],[2023/24 Baseline_Source]]*T_DataComboFile[[#This Row],[G&S reporting level indicator]]","v":0},null,null,null,null,null,null,{"$f":"T_DataComboFile[[#This Row],[2021/22 Baseline]]+T_DataComboFile[[#This Row],[2021/22 Reduction]]+T_DataComboFile[[#This Row],[2021/22 Increase]]","v":0},{"$f":"T_DataComboFile[[#This Row],[2022/23 Baseline]]+T_DataComboFile[[#This Row],[2022/23 Reduction]]+T_DataComboFile[[#This Row],[2022/23 Increase]]","v":0},{"$f":"T_DataComboFile[[#This Row],[2023/24 Baseline]]+T_DataComboFile[[#This Row],[2023/24 Reduction]]+T_DataComboFile[[#This Row],[2023/24 Increase]]","v":0}]
[null,null,"2021_22","ENE2020",36,2,2,null,70552,36,2,2,null,"070552","36|02|02",1,1,2,17,17,"01|01|02|17|17","National","Small Business Development","Sector Policy and Research","Policy and Legislation",null,"Current","Current payments","Goods and services","Agency and support/outsourced services","Agency and support/outsourced services",null,null,null,0,0,0,0,0,0,0,0,0,0,0,0,0,0,null,{"$f":"IF(T_DataComboFile[[#This Row],[G&S reporting level indicator]]=1,$AX$16,\"Not applicable\")","v":"Not applicable"},{"$f":"IF(AND($AX$16=\"Level 3\",T_DataComboFile[[#This Row],[Econ3]] = \"Goods and services\"),IF(T_DataComboFile[[#This Row],[Econ4]] = T_DataComboFile[[#This Row],[Econ3]],1,0),IF(AND($AX$16=\"Level 4\",T_DataComboFile[[#This Row],[Econ4]] = \"Goods and services\"),0,1))","v":0},{"$f":"T_DataComboFile[[#This Row],[2016/17_Source]]*T_DataComboFile[[#This Row],[G&S reporting level indicator]]","v":0},{"$f":"T_DataComboFile[[#This Row],[2017/18_Source]]*T_DataComboFile[[#This Row],[G&S reporting level indicator]]","v":0},{"$f":"T_DataComboFile[[#This Row],[2018/19_Source]]*T_DataComboFile[[#This Row],[G&S reporting level indicator]]","v":0},{"$f":"T_DataComboFile[[#This Row],[2019/20 Main appropriation_Source]]*T_DataComboFile[[#This Row],[G&S reporting level indicator]]","v":0},{"$f":"T_DataComboFile[[#This Row],[2019/20 Adjusted appropriation_Source]]*T_DataComboFile[[#This Row],[G&S reporting level indicator]]","v":0},{"$f":"T_DataComboFile[[#This Row],[2019/20 Revised estimate_Source]]*T_DataComboFile[[#This Row],[G&S reporting level indicator]]","v":0},{"$f":"T_DataComboFile[[#This Row],[2019/20 Preliminary outcome_Source]]*T_DataComboFile[[#This Row],[G&S reporting level indicator]]","v":0},{"$f":"T_DataComboFile[[#This Row],[2020/21 Original_Source]]*T_DataComboFile[[#This Row],[G&S reporting level indicator]]","v":0},{"$f":"T_DataComboFile[[#This Row],[2020/21 SAB_Source]]*T_DataComboFile[[#This Row],[G&S reporting level indicator]]","v":0},{"$f":"T_DataComboFile[[#This Row],[2020/21 Baseline_Source]]*T_DataComboFile[[#This Row],[G&S reporting level indicator]]","v":0},{"$f":"T_DataComboFile[[#This Row],[2021/22 Baseline_Source]]*T_DataComboFile[[#This Row],[G&S reporting level indicator]]","v":0},{"$f":"T_DataComboFile[[#This Row],[2022/23 Baseline_Source]]*T_DataComboFile[[#This Row],[G&S reporting level indicator]]","v":0},{"$f":"T_DataComboFile[[#This Row],[2023/24 Baseline_Source]]*T_DataComboFile[[#This Row],[G&S reporting level indicator]]","v":0},null,null,null,null,null,null,{"$f":"T_DataComboFile[[#This Row],[2021/22 Baseline]]+T_DataComboFile[[#This Row],[2021/22 Reduction]]+T_DataComboFile[[#This Row],[2021/22 Increase]]","v":0},{"$f":"T_DataComboFile[[#This Row],[2022/23 Baseline]]+T_DataComboFile[[#This Row],[2022/23 Reduction]]+T_DataComboFile[[#This Row],[2022/23 Increase]]","v":0},{"$f":"T_DataComboFile[[#This Row],[2023/24 Baseline]]+T_DataComboFile[[#This Row],[2023/24 Reduction]]+T_DataComboFile[[#This Row],[2023/24 Increase]]","v":0}]
[null,null,"2021_22","ENE2020",36,2,2,null,70553,36,2,2,null,"070553","36|02|02",1,1,2,18,18,"01|01|02|18|18","National","Small Business Development","Sector Policy and Research","Policy and Legislation",null,"Current","Current payments","Goods and services","Entertainment","Entertainment",null,null,null,0,0,0,0,0,0,0,0,0,0,0,0,0,0,null,{"$f":"IF(T_DataComboFile[[#This Row],[G&S reporting level indicator]]=1,$AX$16,\"Not applicable\")","v":"Not applicable"},{"$f":"IF(AND($AX$16=\"Level 3\",T_DataComboFile[[#This Row],[Econ3]] = \"Goods and services\"),IF(T_DataComboFile[[#This Row],[Econ4]] = T_DataComboFile[[#This Row],[Econ3]],1,0),IF(AND($AX$16=\"Level 4\",T_DataComboFile[[#This Row],[Econ4]] = \"Goods and services\"),0,1))","v":0},{"$f":"T_DataComboFile[[#This Row],[2016/17_Source]]*T_DataComboFile[[#This Row],[G&S reporting level indicator]]","v":0},{"$f":"T_DataComboFile[[#This Row],[2017/18_Source]]*T_DataComboFile[[#This Row],[G&S reporting level indicator]]","v":0},{"$f":"T_DataComboFile[[#This Row],[2018/19_Source]]*T_DataComboFile[[#This Row],[G&S reporting level indicator]]","v":0},{"$f":"T_DataComboFile[[#This Row],[2019/20 Main appropriation_Source]]*T_DataComboFile[[#This Row],[G&S reporting level indicator]]","v":0},{"$f":"T_DataComboFile[[#This Row],[2019/20 Adjusted appropriation_Source]]*T_DataComboFile[[#This Row],[G&S reporting level indicator]]","v":0},{"$f":"T_DataComboFile[[#This Row],[2019/20 Revised estimate_Source]]*T_DataComboFile[[#This Row],[G&S reporting level indicator]]","v":0},{"$f":"T_DataComboFile[[#This Row],[2019/20 Preliminary outcome_Source]]*T_DataComboFile[[#This Row],[G&S reporting level indicator]]","v":0},{"$f":"T_DataComboFile[[#This Row],[2020/21 Original_Source]]*T_DataComboFile[[#This Row],[G&S reporting level indicator]]","v":0},{"$f":"T_DataComboFile[[#This Row],[2020/21 SAB_Source]]*T_DataComboFile[[#This Row],[G&S reporting level indicator]]","v":0},{"$f":"T_DataComboFile[[#This Row],[2020/21 Baseline_Source]]*T_DataComboFile[[#This Row],[G&S reporting level indicator]]","v":0},{"$f":"T_DataComboFile[[#This Row],[2021/22 Baseline_Source]]*T_DataComboFile[[#This Row],[G&S reporting level indicator]]","v":0},{"$f":"T_DataComboFile[[#This Row],[2022/23 Baseline_Source]]*T_DataComboFile[[#This Row],[G&S reporting level indicator]]","v":0},{"$f":"T_DataComboFile[[#This Row],[2023/24 Baseline_Source]]*T_DataComboFile[[#This Row],[G&S reporting level indicator]]","v":0},null,null,null,null,null,null,{"$f":"T_DataComboFile[[#This Row],[2021/22 Baseline]]+T_DataComboFile[[#This Row],[2021/22 Reduction]]+T_DataComboFile[[#This Row],[2021/22 Increase]]","v":0},{"$f":"T_DataComboFile[[#This Row],[2022/23 Baseline]]+T_DataComboFile[[#This Row],[2022/23 Reduction]]+T_DataComboFile[[#This Row],[2022/23 Increase]]","v":0},{"$f":"T_DataComboFile[[#This Row],[2023/24 Baseline]]+T_DataComboFile[[#This Row],[2023/24 Reduction]]+T_DataComboFile[[#This Row],[2023/24 Increase]]","v":0}]
["NAT|Non-transfer item","36|Fleet services (including government motor transport)","2021_22","ENE2020",36,2,2,17305,70554,36,2,2,17305,"070554","36|02|02",1,1,2,19,19,"01|01|02|19|19","National","Small Business Development","Sector Policy and Research","Policy and Legislation","Non-transfer item","Current","Current payments","Goods and services","Fleet services (including government motor transport)","Fleet services (including government motor transport)","Economic development","Industrialisation and exports","NAT",0,0,2,0,5,5,5,5,5,5,5,5,5,1,null,{"$f":"IF(T_DataComboFile[[#This Row],[G&S reporting level indicator]]=1,$AX$16,\"Not applicable\")","v":"Not applicable"},{"$f":"IF(AND($AX$16=\"Level 3\",T_DataComboFile[[#This Row],[Econ3]] = \"Goods and services\"),IF(T_DataComboFile[[#This Row],[Econ4]] = T_DataComboFile[[#This Row],[Econ3]],1,0),IF(AND($AX$16=\"Level 4\",T_DataComboFile[[#This Row],[Econ4]] = \"Goods and services\"),0,1))","v":0},{"$f":"T_DataComboFile[[#This Row],[2016/17_Source]]*T_DataComboFile[[#This Row],[G&S reporting level indicator]]","v":0},{"$f":"T_DataComboFile[[#This Row],[2017/18_Source]]*T_DataComboFile[[#This Row],[G&S reporting level indicator]]","v":0},{"$f":"T_DataComboFile[[#This Row],[2018/19_Source]]*T_DataComboFile[[#This Row],[G&S reporting level indicator]]","v":0},{"$f":"T_DataComboFile[[#This Row],[2019/20 Main appropriation_Source]]*T_DataComboFile[[#This Row],[G&S reporting level indicator]]","v":0},{"$f":"T_DataComboFile[[#This Row],[2019/20 Adjusted appropriation_Source]]*T_DataComboFile[[#This Row],[G&S reporting level indicator]]","v":0},{"$f":"T_DataComboFile[[#This Row],[2019/20 Revised estimate_Source]]*T_DataComboFile[[#This Row],[G&S reporting level indicator]]","v":0},{"$f":"T_DataComboFile[[#This Row],[2019/20 Preliminary outcome_Source]]*T_DataComboFile[[#This Row],[G&S reporting level indicator]]","v":0},{"$f":"T_DataComboFile[[#This Row],[2020/21 Original_Source]]*T_DataComboFile[[#This Row],[G&S reporting level indicator]]","v":0},{"$f":"T_DataComboFile[[#This Row],[2020/21 SAB_Source]]*T_DataComboFile[[#This Row],[G&S reporting level indicator]]","v":0},{"$f":"T_DataComboFile[[#This Row],[2020/21 Baseline_Source]]*T_DataComboFile[[#This Row],[G&S reporting level indicator]]","v":0},{"$f":"T_DataComboFile[[#This Row],[2021/22 Baseline_Source]]*T_DataComboFile[[#This Row],[G&S reporting level indicator]]","v":0},{"$f":"T_DataComboFile[[#This Row],[2022/23 Baseline_Source]]*T_DataComboFile[[#This Row],[G&S reporting level indicator]]","v":0},{"$f":"T_DataComboFile[[#This Row],[2023/24 Baseline_Source]]*T_DataComboFile[[#This Row],[G&S reporting level indicator]]","v":0},null,null,null,null,null,null,{"$f":"T_DataComboFile[[#This Row],[2021/22 Baseline]]+T_DataComboFile[[#This Row],[2021/22 Reduction]]+T_DataComboFile[[#This Row],[2021/22 Increase]]","v":0},{"$f":"T_DataComboFile[[#This Row],[2022/23 Baseline]]+T_DataComboFile[[#This Row],[2022/23 Reduction]]+T_DataComboFile[[#This Row],[2022/23 Increase]]","v":0},{"$f":"T_DataComboFile[[#This Row],[2023/24 Baseline]]+T_DataComboFile[[#This Row],[2023/24 Reduction]]+T_DataComboFile[[#This Row],[2023/24 Increase]]","v":0}]
[null,null,"2021_22","ENE2020",36,2,2,null,70555,36,2,2,null,"070555","36|02|02",1,1,2,20,20,"01|01|02|20|20","National","Small Business Development","Sector Policy and Research","Policy and Legislation",null,"Current","Current payments","Goods and services","Housing","Housing",null,null,null,0,0,0,0,0,0,0,0,0,0,0,0,0,0,null,{"$f":"IF(T_DataComboFile[[#This Row],[G&S reporting level indicator]]=1,$AX$16,\"Not applicable\")","v":"Not applicable"},{"$f":"IF(AND($AX$16=\"Level 3\",T_DataComboFile[[#This Row],[Econ3]] = \"Goods and services\"),IF(T_DataComboFile[[#This Row],[Econ4]] = T_DataComboFile[[#This Row],[Econ3]],1,0),IF(AND($AX$16=\"Level 4\",T_DataComboFile[[#This Row],[Econ4]] = \"Goods and services\"),0,1))","v":0},{"$f":"T_DataComboFile[[#This Row],[2016/17_Source]]*T_DataComboFile[[#This Row],[G&S reporting level indicator]]","v":0},{"$f":"T_DataComboFile[[#This Row],[2017/18_Source]]*T_DataComboFile[[#This Row],[G&S reporting level indicator]]","v":0},{"$f":"T_DataComboFile[[#This Row],[2018/19_Source]]*T_DataComboFile[[#This Row],[G&S reporting level indicator]]","v":0},{"$f":"T_DataComboFile[[#This Row],[2019/20 Main appropriation_Source]]*T_DataComboFile[[#This Row],[G&S reporting level indicator]]","v":0},{"$f":"T_DataComboFile[[#This Row],[2019/20 Adjusted appropriation_Source]]*T_DataComboFile[[#This Row],[G&S reporting level indicator]]","v":0},{"$f":"T_DataComboFile[[#This Row],[2019/20 Revised estimate_Source]]*T_DataComboFile[[#This Row],[G&S reporting level indicator]]","v":0},{"$f":"T_DataComboFile[[#This Row],[2019/20 Preliminary outcome_Source]]*T_DataComboFile[[#This Row],[G&S reporting level indicator]]","v":0},{"$f":"T_DataComboFile[[#This Row],[2020/21 Original_Source]]*T_DataComboFile[[#This Row],[G&S reporting level indicator]]","v":0},{"$f":"T_DataComboFile[[#This Row],[2020/21 SAB_Source]]*T_DataComboFile[[#This Row],[G&S reporting level indicator]]","v":0},{"$f":"T_DataComboFile[[#This Row],[2020/21 Baseline_Source]]*T_DataComboFile[[#This Row],[G&S reporting level indicator]]","v":0},{"$f":"T_DataComboFile[[#This Row],[2021/22 Baseline_Source]]*T_DataComboFile[[#This Row],[G&S reporting level indicator]]","v":0},{"$f":"T_DataComboFile[[#This Row],[2022/23 Baseline_Source]]*T_DataComboFile[[#This Row],[G&S reporting level indicator]]","v":0},{"$f":"T_DataComboFile[[#This Row],[2023/24 Baseline_Source]]*T_DataComboFile[[#This Row],[G&S reporting level indicator]]","v":0},null,null,null,null,null,null,{"$f":"T_DataComboFile[[#This Row],[2021/22 Baseline]]+T_DataComboFile[[#This Row],[2021/22 Reduction]]+T_DataComboFile[[#This Row],[2021/22 Increase]]","v":0},{"$f":"T_DataComboFile[[#This Row],[2022/23 Baseline]]+T_DataComboFile[[#This Row],[2022/23 Reduction]]+T_DataComboFile[[#This Row],[2022/23 Increase]]","v":0},{"$f":"T_DataComboFile[[#This Row],[2023/24 Baseline]]+T_DataComboFile[[#This Row],[2023/24 Reduction]]+T_DataComboFile[[#This Row],[2023/24 Increase]]","v":0}]
[null,null,"2021_22","ENE2020",36,2,2,null,70556,36,2,2,null,"070556","36|02|02",1,1,2,21,21,"01|01|02|21|21","National","Small Business Development","Sector Policy and Research","Policy and Legislation",null,"Current","Current payments","Goods and services","Inventory: Clothing material and accessories","Inventory: Clothing material and accessories",null,null,null,0,0,0,0,0,0,0,0,0,0,0,0,0,0,null,{"$f":"IF(T_DataComboFile[[#This Row],[G&S reporting level indicator]]=1,$AX$16,\"Not applicable\")","v":"Not applicable"},{"$f":"IF(AND($AX$16=\"Level 3\",T_DataComboFile[[#This Row],[Econ3]] = \"Goods and services\"),IF(T_DataComboFile[[#This Row],[Econ4]] = T_DataComboFile[[#This Row],[Econ3]],1,0),IF(AND($AX$16=\"Level 4\",T_DataComboFile[[#This Row],[Econ4]] = \"Goods and services\"),0,1))","v":0},{"$f":"T_DataComboFile[[#This Row],[2016/17_Source]]*T_DataComboFile[[#This Row],[G&S reporting level indicator]]","v":0},{"$f":"T_DataComboFile[[#This Row],[2017/18_Source]]*T_DataComboFile[[#This Row],[G&S reporting level indicator]]","v":0},{"$f":"T_DataComboFile[[#This Row],[2018/19_Source]]*T_DataComboFile[[#This Row],[G&S reporting level indicator]]","v":0},{"$f":"T_DataComboFile[[#This Row],[2019/20 Main appropriation_Source]]*T_DataComboFile[[#This Row],[G&S reporting level indicator]]","v":0},{"$f":"T_DataComboFile[[#This Row],[2019/20 Adjusted appropriation_Source]]*T_DataComboFile[[#This Row],[G&S reporting level indicator]]","v":0},{"$f":"T_DataComboFile[[#This Row],[2019/20 Revised estimate_Source]]*T_DataComboFile[[#This Row],[G&S reporting level indicator]]","v":0},{"$f":"T_DataComboFile[[#This Row],[2019/20 Preliminary outcome_Source]]*T_DataComboFile[[#This Row],[G&S reporting level indicator]]","v":0},{"$f":"T_DataComboFile[[#This Row],[2020/21 Original_Source]]*T_DataComboFile[[#This Row],[G&S reporting level indicator]]","v":0},{"$f":"T_DataComboFile[[#This Row],[2020/21 SAB_Source]]*T_DataComboFile[[#This Row],[G&S reporting level indicator]]","v":0},{"$f":"T_DataComboFile[[#This Row],[2020/21 Baseline_Source]]*T_DataComboFile[[#This Row],[G&S reporting level indicator]]","v":0},{"$f":"T_DataComboFile[[#This Row],[2021/22 Baseline_Source]]*T_DataComboFile[[#This Row],[G&S reporting level indicator]]","v":0},{"$f":"T_DataComboFile[[#This Row],[2022/23 Baseline_Source]]*T_DataComboFile[[#This Row],[G&S reporting level indicator]]","v":0},{"$f":"T_DataComboFile[[#This Row],[2023/24 Baseline_Source]]*T_DataComboFile[[#This Row],[G&S reporting level indicator]]","v":0},null,null,null,null,null,null,{"$f":"T_DataComboFile[[#This Row],[2021/22 Baseline]]+T_DataComboFile[[#This Row],[2021/22 Reduction]]+T_DataComboFile[[#This Row],[2021/22 Increase]]","v":0},{"$f":"T_DataComboFile[[#This Row],[2022/23 Baseline]]+T_DataComboFile[[#This Row],[2022/23 Reduction]]+T_DataComboFile[[#This Row],[2022/23 Increase]]","v":0},{"$f":"T_DataComboFile[[#This Row],[2023/24 Baseline]]+T_DataComboFile[[#This Row],[2023/24 Reduction]]+T_DataComboFile[[#This Row],[2023/24 Increase]]","v":0}]
[null,null,"2021_22","ENE2020",36,2,2,null,70557,36,2,2,null,"070557","36|02|02",1,1,2,22,22,"01|01|02|22|22","National","Small Business Development","Sector Policy and Research","Policy and Legislation",null,"Current","Current payments","Goods and services","Inventory: Farming supplies","Inventory: Farming supplies",null,null,null,0,0,0,0,0,0,0,0,0,0,0,0,0,0,null,{"$f":"IF(T_DataComboFile[[#This Row],[G&S reporting level indicator]]=1,$AX$16,\"Not applicable\")","v":"Not applicable"},{"$f":"IF(AND($AX$16=\"Level 3\",T_DataComboFile[[#This Row],[Econ3]] = \"Goods and services\"),IF(T_DataComboFile[[#This Row],[Econ4]] = T_DataComboFile[[#This Row],[Econ3]],1,0),IF(AND($AX$16=\"Level 4\",T_DataComboFile[[#This Row],[Econ4]] = \"Goods and services\"),0,1))","v":0},{"$f":"T_DataComboFile[[#This Row],[2016/17_Source]]*T_DataComboFile[[#This Row],[G&S reporting level indicator]]","v":0},{"$f":"T_DataComboFile[[#This Row],[2017/18_Source]]*T_DataComboFile[[#This Row],[G&S reporting level indicator]]","v":0},{"$f":"T_DataComboFile[[#This Row],[2018/19_Source]]*T_DataComboFile[[#This Row],[G&S reporting level indicator]]","v":0},{"$f":"T_DataComboFile[[#This Row],[2019/20 Main appropriation_Source]]*T_DataComboFile[[#This Row],[G&S reporting level indicator]]","v":0},{"$f":"T_DataComboFile[[#This Row],[2019/20 Adjusted appropriation_Source]]*T_DataComboFile[[#This Row],[G&S reporting level indicator]]","v":0},{"$f":"T_DataComboFile[[#This Row],[2019/20 Revised estimate_Source]]*T_DataComboFile[[#This Row],[G&S reporting level indicator]]","v":0},{"$f":"T_DataComboFile[[#This Row],[2019/20 Preliminary outcome_Source]]*T_DataComboFile[[#This Row],[G&S reporting level indicator]]","v":0},{"$f":"T_DataComboFile[[#This Row],[2020/21 Original_Source]]*T_DataComboFile[[#This Row],[G&S reporting level indicator]]","v":0},{"$f":"T_DataComboFile[[#This Row],[2020/21 SAB_Source]]*T_DataComboFile[[#This Row],[G&S reporting level indicator]]","v":0},{"$f":"T_DataComboFile[[#This Row],[2020/21 Baseline_Source]]*T_DataComboFile[[#This Row],[G&S reporting level indicator]]","v":0},{"$f":"T_DataComboFile[[#This Row],[2021/22 Baseline_Source]]*T_DataComboFile[[#This Row],[G&S reporting level indicator]]","v":0},{"$f":"T_DataComboFile[[#This Row],[2022/23 Baseline_Source]]*T_DataComboFile[[#This Row],[G&S reporting level indicator]]","v":0},{"$f":"T_DataComboFile[[#This Row],[2023/24 Baseline_Source]]*T_DataComboFile[[#This Row],[G&S reporting level indicator]]","v":0},null,null,null,null,null,null,{"$f":"T_DataComboFile[[#This Row],[2021/22 Baseline]]+T_DataComboFile[[#This Row],[2021/22 Reduction]]+T_DataComboFile[[#This Row],[2021/22 Increase]]","v":0},{"$f":"T_DataComboFile[[#This Row],[2022/23 Baseline]]+T_DataComboFile[[#This Row],[2022/23 Reduction]]+T_DataComboFile[[#This Row],[2022/23 Increase]]","v":0},{"$f":"T_DataComboFile[[#This Row],[2023/24 Baseline]]+T_DataComboFile[[#This Row],[2023/24 Reduction]]+T_DataComboFile[[#This Row],[2023/24 Increase]]","v":0}]
[null,null,"2021_22","ENE2020",36,2,2,null,70558,36,2,2,null,"070558","36|02|02",1,1,2,23,23,"01|01|02|23|23","National","Small Business Development","Sector Policy and Research","Policy and Legislation",null,"Current","Current payments","Goods and services","Inventory: Food and food supplies","Inventory: Food and food supplies",null,null,null,0,0,0,0,0,0,0,0,0,0,0,0,0,0,null,{"$f":"IF(T_DataComboFile[[#This Row],[G&S reporting level indicator]]=1,$AX$16,\"Not applicable\")","v":"Not applicable"},{"$f":"IF(AND($AX$16=\"Level 3\",T_DataComboFile[[#This Row],[Econ3]] = \"Goods and services\"),IF(T_DataComboFile[[#This Row],[Econ4]] = T_DataComboFile[[#This Row],[Econ3]],1,0),IF(AND($AX$16=\"Level 4\",T_DataComboFile[[#This Row],[Econ4]] = \"Goods and services\"),0,1))","v":0},{"$f":"T_DataComboFile[[#This Row],[2016/17_Source]]*T_DataComboFile[[#This Row],[G&S reporting level indicator]]","v":0},{"$f":"T_DataComboFile[[#This Row],[2017/18_Source]]*T_DataComboFile[[#This Row],[G&S reporting level indicator]]","v":0},{"$f":"T_DataComboFile[[#This Row],[2018/19_Source]]*T_DataComboFile[[#This Row],[G&S reporting level indicator]]","v":0},{"$f":"T_DataComboFile[[#This Row],[2019/20 Main appropriation_Source]]*T_DataComboFile[[#This Row],[G&S reporting level indicator]]","v":0},{"$f":"T_DataComboFile[[#This Row],[2019/20 Adjusted appropriation_Source]]*T_DataComboFile[[#This Row],[G&S reporting level indicator]]","v":0},{"$f":"T_DataComboFile[[#This Row],[2019/20 Revised estimate_Source]]*T_DataComboFile[[#This Row],[G&S reporting level indicator]]","v":0},{"$f":"T_DataComboFile[[#This Row],[2019/20 Preliminary outcome_Source]]*T_DataComboFile[[#This Row],[G&S reporting level indicator]]","v":0},{"$f":"T_DataComboFile[[#This Row],[2020/21 Original_Source]]*T_DataComboFile[[#This Row],[G&S reporting level indicator]]","v":0},{"$f":"T_DataComboFile[[#This Row],[2020/21 SAB_Source]]*T_DataComboFile[[#This Row],[G&S reporting level indicator]]","v":0},{"$f":"T_DataComboFile[[#This Row],[2020/21 Baseline_Source]]*T_DataComboFile[[#This Row],[G&S reporting level indicator]]","v":0},{"$f":"T_DataComboFile[[#This Row],[2021/22 Baseline_Source]]*T_DataComboFile[[#This Row],[G&S reporting level indicator]]","v":0},{"$f":"T_DataComboFile[[#This Row],[2022/23 Baseline_Source]]*T_DataComboFile[[#This Row],[G&S reporting level indicator]]","v":0},{"$f":"T_DataComboFile[[#This Row],[2023/24 Baseline_Source]]*T_DataComboFile[[#This Row],[G&S reporting level indicator]]","v":0},null,null,null,null,null,null,{"$f":"T_DataComboFile[[#This Row],[2021/22 Baseline]]+T_DataComboFile[[#This Row],[2021/22 Reduction]]+T_DataComboFile[[#This Row],[2021/22 Increase]]","v":0},{"$f":"T_DataComboFile[[#This Row],[2022/23 Baseline]]+T_DataComboFile[[#This Row],[2022/23 Reduction]]+T_DataComboFile[[#This Row],[2022/23 Increase]]","v":0},{"$f":"T_DataComboFile[[#This Row],[2023/24 Baseline]]+T_DataComboFile[[#This Row],[2023/24 Reduction]]+T_DataComboFile[[#This Row],[2023/24 Increase]]","v":0}]
[null,null,"2021_22","ENE2020",36,2,2,null,70559,36,2,2,null,"070559","36|02|02",1,1,2,24,24,"01|01|02|24|24","National","Small Business Development","Sector Policy and Research","Policy and Legislation",null,"Current","Current payments","Goods and services","Inventory: Fuel, oil and gas","Inventory: Fuel, oil and gas",null,null,null,0,0,0,0,0,0,0,0,0,0,0,0,0,0,null,{"$f":"IF(T_DataComboFile[[#This Row],[G&S reporting level indicator]]=1,$AX$16,\"Not applicable\")","v":"Not applicable"},{"$f":"IF(AND($AX$16=\"Level 3\",T_DataComboFile[[#This Row],[Econ3]] = \"Goods and services\"),IF(T_DataComboFile[[#This Row],[Econ4]] = T_DataComboFile[[#This Row],[Econ3]],1,0),IF(AND($AX$16=\"Level 4\",T_DataComboFile[[#This Row],[Econ4]] = \"Goods and services\"),0,1))","v":0},{"$f":"T_DataComboFile[[#This Row],[2016/17_Source]]*T_DataComboFile[[#This Row],[G&S reporting level indicator]]","v":0},{"$f":"T_DataComboFile[[#This Row],[2017/18_Source]]*T_DataComboFile[[#This Row],[G&S reporting level indicator]]","v":0},{"$f":"T_DataComboFile[[#This Row],[2018/19_Source]]*T_DataComboFile[[#This Row],[G&S reporting level indicator]]","v":0},{"$f":"T_DataComboFile[[#This Row],[2019/20 Main appropriation_Source]]*T_DataComboFile[[#This Row],[G&S reporting level indicator]]","v":0},{"$f":"T_DataComboFile[[#This Row],[2019/20 Adjusted appropriation_Source]]*T_DataComboFile[[#This Row],[G&S reporting level indicator]]","v":0},{"$f":"T_DataComboFile[[#This Row],[2019/20 Revised estimate_Source]]*T_DataComboFile[[#This Row],[G&S reporting level indicator]]","v":0},{"$f":"T_DataComboFile[[#This Row],[2019/20 Preliminary outcome_Source]]*T_DataComboFile[[#This Row],[G&S reporting level indicator]]","v":0},{"$f":"T_DataComboFile[[#This Row],[2020/21 Original_Source]]*T_DataComboFile[[#This Row],[G&S reporting level indicator]]","v":0},{"$f":"T_DataComboFile[[#This Row],[2020/21 SAB_Source]]*T_DataComboFile[[#This Row],[G&S reporting level indicator]]","v":0},{"$f":"T_DataComboFile[[#This Row],[2020/21 Baseline_Source]]*T_DataComboFile[[#This Row],[G&S reporting level indicator]]","v":0},{"$f":"T_DataComboFile[[#This Row],[2021/22 Baseline_Source]]*T_DataComboFile[[#This Row],[G&S reporting level indicator]]","v":0},{"$f":"T_DataComboFile[[#This Row],[2022/23 Baseline_Source]]*T_DataComboFile[[#This Row],[G&S reporting level indicator]]","v":0},{"$f":"T_DataComboFile[[#This Row],[2023/24 Baseline_Source]]*T_DataComboFile[[#This Row],[G&S reporting level indicator]]","v":0},null,null,null,null,null,null,{"$f":"T_DataComboFile[[#This Row],[2021/22 Baseline]]+T_DataComboFile[[#This Row],[2021/22 Reduction]]+T_DataComboFile[[#This Row],[2021/22 Increase]]","v":0},{"$f":"T_DataComboFile[[#This Row],[2022/23 Baseline]]+T_DataComboFile[[#This Row],[2022/23 Reduction]]+T_DataComboFile[[#This Row],[2022/23 Increase]]","v":0},{"$f":"T_DataComboFile[[#This Row],[2023/24 Baseline]]+T_DataComboFile[[#This Row],[2023/24 Reduction]]+T_DataComboFile[[#This Row],[2023/24 Increase]]","v":0}]
[null,null,"2021_22","ENE2020",36,2,2,null,70560,36,2,2,null,"070560","36|02|02",1,1,2,25,25,"01|01|02|25|25","National","Small Business Development","Sector Policy and Research","Policy and Legislation",null,"Current","Current payments","Goods and services","Inventory: Learner and teacher support material","Inventory: Learner and teacher support material",null,null,null,0,0,0,0,0,0,0,0,0,0,0,0,0,0,null,{"$f":"IF(T_DataComboFile[[#This Row],[G&S reporting level indicator]]=1,$AX$16,\"Not applicable\")","v":"Not applicable"},{"$f":"IF(AND($AX$16=\"Level 3\",T_DataComboFile[[#This Row],[Econ3]] = \"Goods and services\"),IF(T_DataComboFile[[#This Row],[Econ4]] = T_DataComboFile[[#This Row],[Econ3]],1,0),IF(AND($AX$16=\"Level 4\",T_DataComboFile[[#This Row],[Econ4]] = \"Goods and services\"),0,1))","v":0},{"$f":"T_DataComboFile[[#This Row],[2016/17_Source]]*T_DataComboFile[[#This Row],[G&S reporting level indicator]]","v":0},{"$f":"T_DataComboFile[[#This Row],[2017/18_Source]]*T_DataComboFile[[#This Row],[G&S reporting level indicator]]","v":0},{"$f":"T_DataComboFile[[#This Row],[2018/19_Source]]*T_DataComboFile[[#This Row],[G&S reporting level indicator]]","v":0},{"$f":"T_DataComboFile[[#This Row],[2019/20 Main appropriation_Source]]*T_DataComboFile[[#This Row],[G&S reporting level indicator]]","v":0},{"$f":"T_DataComboFile[[#This Row],[2019/20 Adjusted appropriation_Source]]*T_DataComboFile[[#This Row],[G&S reporting level indicator]]","v":0},{"$f":"T_DataComboFile[[#This Row],[2019/20 Revised estimate_Source]]*T_DataComboFile[[#This Row],[G&S reporting level indicator]]","v":0},{"$f":"T_DataComboFile[[#This Row],[2019/20 Preliminary outcome_Source]]*T_DataComboFile[[#This Row],[G&S reporting level indicator]]","v":0},{"$f":"T_DataComboFile[[#This Row],[2020/21 Original_Source]]*T_DataComboFile[[#This Row],[G&S reporting level indicator]]","v":0},{"$f":"T_DataComboFile[[#This Row],[2020/21 SAB_Source]]*T_DataComboFile[[#This Row],[G&S reporting level indicator]]","v":0},{"$f":"T_DataComboFile[[#This Row],[2020/21 Baseline_Source]]*T_DataComboFile[[#This Row],[G&S reporting level indicator]]","v":0},{"$f":"T_DataComboFile[[#This Row],[2021/22 Baseline_Source]]*T_DataComboFile[[#This Row],[G&S reporting level indicator]]","v":0},{"$f":"T_DataComboFile[[#This Row],[2022/23 Baseline_Source]]*T_DataComboFile[[#This Row],[G&S reporting level indicator]]","v":0},{"$f":"T_DataComboFile[[#This Row],[2023/24 Baseline_Source]]*T_DataComboFile[[#This Row],[G&S reporting level indicator]]","v":0},null,null,null,null,null,null,{"$f":"T_DataComboFile[[#This Row],[2021/22 Baseline]]+T_DataComboFile[[#This Row],[2021/22 Reduction]]+T_DataComboFile[[#This Row],[2021/22 Increase]]","v":0},{"$f":"T_DataComboFile[[#This Row],[2022/23 Baseline]]+T_DataComboFile[[#This Row],[2022/23 Reduction]]+T_DataComboFile[[#This Row],[2022/23 Increase]]","v":0},{"$f":"T_DataComboFile[[#This Row],[2023/24 Baseline]]+T_DataComboFile[[#This Row],[2023/24 Reduction]]+T_DataComboFile[[#This Row],[2023/24 Increase]]","v":0}]
[null,null,"2021_22","ENE2020",36,2,2,null,70561,36,2,2,null,"070561","36|02|02",1,1,2,26,26,"01|01|02|26|26","National","Small Business Development","Sector Policy and Research","Policy and Legislation",null,"Current","Current payments","Goods and services","Inventory: Materials and supplies","Inventory: Materials and supplies",null,null,null,0,0,0,0,0,0,0,0,0,0,0,0,0,0,null,{"$f":"IF(T_DataComboFile[[#This Row],[G&S reporting level indicator]]=1,$AX$16,\"Not applicable\")","v":"Not applicable"},{"$f":"IF(AND($AX$16=\"Level 3\",T_DataComboFile[[#This Row],[Econ3]] = \"Goods and services\"),IF(T_DataComboFile[[#This Row],[Econ4]] = T_DataComboFile[[#This Row],[Econ3]],1,0),IF(AND($AX$16=\"Level 4\",T_DataComboFile[[#This Row],[Econ4]] = \"Goods and services\"),0,1))","v":0},{"$f":"T_DataComboFile[[#This Row],[2016/17_Source]]*T_DataComboFile[[#This Row],[G&S reporting level indicator]]","v":0},{"$f":"T_DataComboFile[[#This Row],[2017/18_Source]]*T_DataComboFile[[#This Row],[G&S reporting level indicator]]","v":0},{"$f":"T_DataComboFile[[#This Row],[2018/19_Source]]*T_DataComboFile[[#This Row],[G&S reporting level indicator]]","v":0},{"$f":"T_DataComboFile[[#This Row],[2019/20 Main appropriation_Source]]*T_DataComboFile[[#This Row],[G&S reporting level indicator]]","v":0},{"$f":"T_DataComboFile[[#This Row],[2019/20 Adjusted appropriation_Source]]*T_DataComboFile[[#This Row],[G&S reporting level indicator]]","v":0},{"$f":"T_DataComboFile[[#This Row],[2019/20 Revised estimate_Source]]*T_DataComboFile[[#This Row],[G&S reporting level indicator]]","v":0},{"$f":"T_DataComboFile[[#This Row],[2019/20 Preliminary outcome_Source]]*T_DataComboFile[[#This Row],[G&S reporting level indicator]]","v":0},{"$f":"T_DataComboFile[[#This Row],[2020/21 Original_Source]]*T_DataComboFile[[#This Row],[G&S reporting level indicator]]","v":0},{"$f":"T_DataComboFile[[#This Row],[2020/21 SAB_Source]]*T_DataComboFile[[#This Row],[G&S reporting level indicator]]","v":0},{"$f":"T_DataComboFile[[#This Row],[2020/21 Baseline_Source]]*T_DataComboFile[[#This Row],[G&S reporting level indicator]]","v":0},{"$f":"T_DataComboFile[[#This Row],[2021/22 Baseline_Source]]*T_DataComboFile[[#This Row],[G&S reporting level indicator]]","v":0},{"$f":"T_DataComboFile[[#This Row],[2022/23 Baseline_Source]]*T_DataComboFile[[#This Row],[G&S reporting level indicator]]","v":0},{"$f":"T_DataComboFile[[#This Row],[2023/24 Baseline_Source]]*T_DataComboFile[[#This Row],[G&S reporting level indicator]]","v":0},null,null,null,null,null,null,{"$f":"T_DataComboFile[[#This Row],[2021/22 Baseline]]+T_DataComboFile[[#This Row],[2021/22 Reduction]]+T_DataComboFile[[#This Row],[2021/22 Increase]]","v":0},{"$f":"T_DataComboFile[[#This Row],[2022/23 Baseline]]+T_DataComboFile[[#This Row],[2022/23 Reduction]]+T_DataComboFile[[#This Row],[2022/23 Increase]]","v":0},{"$f":"T_DataComboFile[[#This Row],[2023/24 Baseline]]+T_DataComboFile[[#This Row],[2023/24 Reduction]]+T_DataComboFile[[#This Row],[2023/24 Increase]]","v":0}]
[null,null,"2021_22","ENE2020",36,2,2,null,70562,36,2,2,null,"070562","36|02|02",1,1,2,27,27,"01|01|02|27|27","National","Small Business Development","Sector Policy and Research","Policy and Legislation",null,"Current","Current payments","Goods and services","Inventory: Medical supplies","Inventory: Medical supplies",null,null,null,0,0,0,0,0,0,0,0,0,0,0,0,0,0,null,{"$f":"IF(T_DataComboFile[[#This Row],[G&S reporting level indicator]]=1,$AX$16,\"Not applicable\")","v":"Not applicable"},{"$f":"IF(AND($AX$16=\"Level 3\",T_DataComboFile[[#This Row],[Econ3]] = \"Goods and services\"),IF(T_DataComboFile[[#This Row],[Econ4]] = T_DataComboFile[[#This Row],[Econ3]],1,0),IF(AND($AX$16=\"Level 4\",T_DataComboFile[[#This Row],[Econ4]] = \"Goods and services\"),0,1))","v":0},{"$f":"T_DataComboFile[[#This Row],[2016/17_Source]]*T_DataComboFile[[#This Row],[G&S reporting level indicator]]","v":0},{"$f":"T_DataComboFile[[#This Row],[2017/18_Source]]*T_DataComboFile[[#This Row],[G&S reporting level indicator]]","v":0},{"$f":"T_DataComboFile[[#This Row],[2018/19_Source]]*T_DataComboFile[[#This Row],[G&S reporting level indicator]]","v":0},{"$f":"T_DataComboFile[[#This Row],[2019/20 Main appropriation_Source]]*T_DataComboFile[[#This Row],[G&S reporting level indicator]]","v":0},{"$f":"T_DataComboFile[[#This Row],[2019/20 Adjusted appropriation_Source]]*T_DataComboFile[[#This Row],[G&S reporting level indicator]]","v":0},{"$f":"T_DataComboFile[[#This Row],[2019/20 Revised estimate_Source]]*T_DataComboFile[[#This Row],[G&S reporting level indicator]]","v":0},{"$f":"T_DataComboFile[[#This Row],[2019/20 Preliminary outcome_Source]]*T_DataComboFile[[#This Row],[G&S reporting level indicator]]","v":0},{"$f":"T_DataComboFile[[#This Row],[2020/21 Original_Source]]*T_DataComboFile[[#This Row],[G&S reporting level indicator]]","v":0},{"$f":"T_DataComboFile[[#This Row],[2020/21 SAB_Source]]*T_DataComboFile[[#This Row],[G&S reporting level indicator]]","v":0},{"$f":"T_DataComboFile[[#This Row],[2020/21 Baseline_Source]]*T_DataComboFile[[#This Row],[G&S reporting level indicator]]","v":0},{"$f":"T_DataComboFile[[#This Row],[2021/22 Baseline_Source]]*T_DataComboFile[[#This Row],[G&S reporting level indicator]]","v":0},{"$f":"T_DataComboFile[[#This Row],[2022/23 Baseline_Source]]*T_DataComboFile[[#This Row],[G&S reporting level indicator]]","v":0},{"$f":"T_DataComboFile[[#This Row],[2023/24 Baseline_Source]]*T_DataComboFile[[#This Row],[G&S reporting level indicator]]","v":0},null,null,null,null,null,null,{"$f":"T_DataComboFile[[#This Row],[2021/22 Baseline]]+T_DataComboFile[[#This Row],[2021/22 Reduction]]+T_DataComboFile[[#This Row],[2021/22 Increase]]","v":0},{"$f":"T_DataComboFile[[#This Row],[2022/23 Baseline]]+T_DataComboFile[[#This Row],[2022/23 Reduction]]+T_DataComboFile[[#This Row],[2022/23 Increase]]","v":0},{"$f":"T_DataComboFile[[#This Row],[2023/24 Baseline]]+T_DataComboFile[[#This Row],[2023/24 Reduction]]+T_DataComboFile[[#This Row],[2023/24 Increase]]","v":0}]
[null,null,"2021_22","ENE2020",36,2,2,null,70563,36,2,2,null,"070563","36|02|02",1,1,2,28,28,"01|01|02|28|28","National","Small Business Development","Sector Policy and Research","Policy and Legislation",null,"Current","Current payments","Goods and services","Inventory: Medicine","Inventory: Medicine",null,null,null,0,0,0,0,0,0,0,0,0,0,0,0,0,0,null,{"$f":"IF(T_DataComboFile[[#This Row],[G&S reporting level indicator]]=1,$AX$16,\"Not applicable\")","v":"Not applicable"},{"$f":"IF(AND($AX$16=\"Level 3\",T_DataComboFile[[#This Row],[Econ3]] = \"Goods and services\"),IF(T_DataComboFile[[#This Row],[Econ4]] = T_DataComboFile[[#This Row],[Econ3]],1,0),IF(AND($AX$16=\"Level 4\",T_DataComboFile[[#This Row],[Econ4]] = \"Goods and services\"),0,1))","v":0},{"$f":"T_DataComboFile[[#This Row],[2016/17_Source]]*T_DataComboFile[[#This Row],[G&S reporting level indicator]]","v":0},{"$f":"T_DataComboFile[[#This Row],[2017/18_Source]]*T_DataComboFile[[#This Row],[G&S reporting level indicator]]","v":0},{"$f":"T_DataComboFile[[#This Row],[2018/19_Source]]*T_DataComboFile[[#This Row],[G&S reporting level indicator]]","v":0},{"$f":"T_DataComboFile[[#This Row],[2019/20 Main appropriation_Source]]*T_DataComboFile[[#This Row],[G&S reporting level indicator]]","v":0},{"$f":"T_DataComboFile[[#This Row],[2019/20 Adjusted appropriation_Source]]*T_DataComboFile[[#This Row],[G&S reporting level indicator]]","v":0},{"$f":"T_DataComboFile[[#This Row],[2019/20 Revised estimate_Source]]*T_DataComboFile[[#This Row],[G&S reporting level indicator]]","v":0},{"$f":"T_DataComboFile[[#This Row],[2019/20 Preliminary outcome_Source]]*T_DataComboFile[[#This Row],[G&S reporting level indicator]]","v":0},{"$f":"T_DataComboFile[[#This Row],[2020/21 Original_Source]]*T_DataComboFile[[#This Row],[G&S reporting level indicator]]","v":0},{"$f":"T_DataComboFile[[#This Row],[2020/21 SAB_Source]]*T_DataComboFile[[#This Row],[G&S reporting level indicator]]","v":0},{"$f":"T_DataComboFile[[#This Row],[2020/21 Baseline_Source]]*T_DataComboFile[[#This Row],[G&S reporting level indicator]]","v":0},{"$f":"T_DataComboFile[[#This Row],[2021/22 Baseline_Source]]*T_DataComboFile[[#This Row],[G&S reporting level indicator]]","v":0},{"$f":"T_DataComboFile[[#This Row],[2022/23 Baseline_Source]]*T_DataComboFile[[#This Row],[G&S reporting level indicator]]","v":0},{"$f":"T_DataComboFile[[#This Row],[2023/24 Baseline_Source]]*T_DataComboFile[[#This Row],[G&S reporting level indicator]]","v":0},null,null,null,null,null,null,{"$f":"T_DataComboFile[[#This Row],[2021/22 Baseline]]+T_DataComboFile[[#This Row],[2021/22 Reduction]]+T_DataComboFile[[#This Row],[2021/22 Increase]]","v":0},{"$f":"T_DataComboFile[[#This Row],[2022/23 Baseline]]+T_DataComboFile[[#This Row],[2022/23 Reduction]]+T_DataComboFile[[#This Row],[2022/23 Increase]]","v":0},{"$f":"T_DataComboFile[[#This Row],[2023/24 Baseline]]+T_DataComboFile[[#This Row],[2023/24 Reduction]]+T_DataComboFile[[#This Row],[2023/24 Increase]]","v":0}]
[null,null,"2021_22","ENE2020",36,2,2,null,70564,36,2,2,null,"070564","36|02|02",1,1,2,29,29,"01|01|02|29|29","National","Small Business Development","Sector Policy and Research","Policy and Legislation",null,"Current","Current payments","Goods and services","Medsas inventory interface","Medsas inventory interface",null,null,null,0,0,0,0,0,0,0,0,0,0,0,0,0,0,null,{"$f":"IF(T_DataComboFile[[#This Row],[G&S reporting level indicator]]=1,$AX$16,\"Not applicable\")","v":"Not applicable"},{"$f":"IF(AND($AX$16=\"Level 3\",T_DataComboFile[[#This Row],[Econ3]] = \"Goods and services\"),IF(T_DataComboFile[[#This Row],[Econ4]] = T_DataComboFile[[#This Row],[Econ3]],1,0),IF(AND($AX$16=\"Level 4\",T_DataComboFile[[#This Row],[Econ4]] = \"Goods and services\"),0,1))","v":0},{"$f":"T_DataComboFile[[#This Row],[2016/17_Source]]*T_DataComboFile[[#This Row],[G&S reporting level indicator]]","v":0},{"$f":"T_DataComboFile[[#This Row],[2017/18_Source]]*T_DataComboFile[[#This Row],[G&S reporting level indicator]]","v":0},{"$f":"T_DataComboFile[[#This Row],[2018/19_Source]]*T_DataComboFile[[#This Row],[G&S reporting level indicator]]","v":0},{"$f":"T_DataComboFile[[#This Row],[2019/20 Main appropriation_Source]]*T_DataComboFile[[#This Row],[G&S reporting level indicator]]","v":0},{"$f":"T_DataComboFile[[#This Row],[2019/20 Adjusted appropriation_Source]]*T_DataComboFile[[#This Row],[G&S reporting level indicator]]","v":0},{"$f":"T_DataComboFile[[#This Row],[2019/20 Revised estimate_Source]]*T_DataComboFile[[#This Row],[G&S reporting level indicator]]","v":0},{"$f":"T_DataComboFile[[#This Row],[2019/20 Preliminary outcome_Source]]*T_DataComboFile[[#This Row],[G&S reporting level indicator]]","v":0},{"$f":"T_DataComboFile[[#This Row],[2020/21 Original_Source]]*T_DataComboFile[[#This Row],[G&S reporting level indicator]]","v":0},{"$f":"T_DataComboFile[[#This Row],[2020/21 SAB_Source]]*T_DataComboFile[[#This Row],[G&S reporting level indicator]]","v":0},{"$f":"T_DataComboFile[[#This Row],[2020/21 Baseline_Source]]*T_DataComboFile[[#This Row],[G&S reporting level indicator]]","v":0},{"$f":"T_DataComboFile[[#This Row],[2021/22 Baseline_Source]]*T_DataComboFile[[#This Row],[G&S reporting level indicator]]","v":0},{"$f":"T_DataComboFile[[#This Row],[2022/23 Baseline_Source]]*T_DataComboFile[[#This Row],[G&S reporting level indicator]]","v":0},{"$f":"T_DataComboFile[[#This Row],[2023/24 Baseline_Source]]*T_DataComboFile[[#This Row],[G&S reporting level indicator]]","v":0},null,null,null,null,null,null,{"$f":"T_DataComboFile[[#This Row],[2021/22 Baseline]]+T_DataComboFile[[#This Row],[2021/22 Reduction]]+T_DataComboFile[[#This Row],[2021/22 Increase]]","v":0},{"$f":"T_DataComboFile[[#This Row],[2022/23 Baseline]]+T_DataComboFile[[#This Row],[2022/23 Reduction]]+T_DataComboFile[[#This Row],[2022/23 Increase]]","v":0},{"$f":"T_DataComboFile[[#This Row],[2023/24 Baseline]]+T_DataComboFile[[#This Row],[2023/24 Reduction]]+T_DataComboFile[[#This Row],[2023/24 Increase]]","v":0}]
[null,null,"2021_22","ENE2020",36,2,2,null,70565,36,2,2,null,"070565","36|02|02",1,1,2,30,30,"01|01|02|30|30","National","Small Business Development","Sector Policy and Research","Policy and Legislation",null,"Current","Current payments","Goods and services","Inventory: Other supplies","Inventory: Other supplies",null,null,null,0,0,0,0,0,0,0,0,0,0,0,0,0,0,null,{"$f":"IF(T_DataComboFile[[#This Row],[G&S reporting level indicator]]=1,$AX$16,\"Not applicable\")","v":"Not applicable"},{"$f":"IF(AND($AX$16=\"Level 3\",T_DataComboFile[[#This Row],[Econ3]] = \"Goods and services\"),IF(T_DataComboFile[[#This Row],[Econ4]] = T_DataComboFile[[#This Row],[Econ3]],1,0),IF(AND($AX$16=\"Level 4\",T_DataComboFile[[#This Row],[Econ4]] = \"Goods and services\"),0,1))","v":0},{"$f":"T_DataComboFile[[#This Row],[2016/17_Source]]*T_DataComboFile[[#This Row],[G&S reporting level indicator]]","v":0},{"$f":"T_DataComboFile[[#This Row],[2017/18_Source]]*T_DataComboFile[[#This Row],[G&S reporting level indicator]]","v":0},{"$f":"T_DataComboFile[[#This Row],[2018/19_Source]]*T_DataComboFile[[#This Row],[G&S reporting level indicator]]","v":0},{"$f":"T_DataComboFile[[#This Row],[2019/20 Main appropriation_Source]]*T_DataComboFile[[#This Row],[G&S reporting level indicator]]","v":0},{"$f":"T_DataComboFile[[#This Row],[2019/20 Adjusted appropriation_Source]]*T_DataComboFile[[#This Row],[G&S reporting level indicator]]","v":0},{"$f":"T_DataComboFile[[#This Row],[2019/20 Revised estimate_Source]]*T_DataComboFile[[#This Row],[G&S reporting level indicator]]","v":0},{"$f":"T_DataComboFile[[#This Row],[2019/20 Preliminary outcome_Source]]*T_DataComboFile[[#This Row],[G&S reporting level indicator]]","v":0},{"$f":"T_DataComboFile[[#This Row],[2020/21 Original_Source]]*T_DataComboFile[[#This Row],[G&S reporting level indicator]]","v":0},{"$f":"T_DataComboFile[[#This Row],[2020/21 SAB_Source]]*T_DataComboFile[[#This Row],[G&S reporting level indicator]]","v":0},{"$f":"T_DataComboFile[[#This Row],[2020/21 Baseline_Source]]*T_DataComboFile[[#This Row],[G&S reporting level indicator]]","v":0},{"$f":"T_DataComboFile[[#This Row],[2021/22 Baseline_Source]]*T_DataComboFile[[#This Row],[G&S reporting level indicator]]","v":0},{"$f":"T_DataComboFile[[#This Row],[2022/23 Baseline_Source]]*T_DataComboFile[[#This Row],[G&S reporting level indicator]]","v":0},{"$f":"T_DataComboFile[[#This Row],[2023/24 Baseline_Source]]*T_DataComboFile[[#This Row],[G&S reporting level indicator]]","v":0},null,null,null,null,null,null,{"$f":"T_DataComboFile[[#This Row],[2021/22 Baseline]]+T_DataComboFile[[#This Row],[2021/22 Reduction]]+T_DataComboFile[[#This Row],[2021/22 Increase]]","v":0},{"$f":"T_DataComboFile[[#This Row],[2022/23 Baseline]]+T_DataComboFile[[#This Row],[2022/23 Reduction]]+T_DataComboFile[[#This Row],[2022/23 Increase]]","v":0},{"$f":"T_DataComboFile[[#This Row],[2023/24 Baseline]]+T_DataComboFile[[#This Row],[2023/24 Reduction]]+T_DataComboFile[[#This Row],[2023/24 Increase]]","v":0}]
["NAT|Non-transfer item","36|Consumable supplies","2021_22","ENE2020",36,2,2,17306,70566,36,2,2,17306,"070566","36|02|02",1,1,2,31,31,"01|01|02|31|31","National","Small Business Development","Sector Policy and Research","Policy and Legislation","Non-transfer item","Current","Current payments","Goods and services","Consumable supplies","Consumable supplies","Economic development","Industrialisation and exports","NAT",0,0,2,0,2,2,2,0,0,0,0,0,0,1,null,{"$f":"IF(T_DataComboFile[[#This Row],[G&S reporting level indicator]]=1,$AX$16,\"Not applicable\")","v":"Not applicable"},{"$f":"IF(AND($AX$16=\"Level 3\",T_DataComboFile[[#This Row],[Econ3]] = \"Goods and services\"),IF(T_DataComboFile[[#This Row],[Econ4]] = T_DataComboFile[[#This Row],[Econ3]],1,0),IF(AND($AX$16=\"Level 4\",T_DataComboFile[[#This Row],[Econ4]] = \"Goods and services\"),0,1))","v":0},{"$f":"T_DataComboFile[[#This Row],[2016/17_Source]]*T_DataComboFile[[#This Row],[G&S reporting level indicator]]","v":0},{"$f":"T_DataComboFile[[#This Row],[2017/18_Source]]*T_DataComboFile[[#This Row],[G&S reporting level indicator]]","v":0},{"$f":"T_DataComboFile[[#This Row],[2018/19_Source]]*T_DataComboFile[[#This Row],[G&S reporting level indicator]]","v":0},{"$f":"T_DataComboFile[[#This Row],[2019/20 Main appropriation_Source]]*T_DataComboFile[[#This Row],[G&S reporting level indicator]]","v":0},{"$f":"T_DataComboFile[[#This Row],[2019/20 Adjusted appropriation_Source]]*T_DataComboFile[[#This Row],[G&S reporting level indicator]]","v":0},{"$f":"T_DataComboFile[[#This Row],[2019/20 Revised estimate_Source]]*T_DataComboFile[[#This Row],[G&S reporting level indicator]]","v":0},{"$f":"T_DataComboFile[[#This Row],[2019/20 Preliminary outcome_Source]]*T_DataComboFile[[#This Row],[G&S reporting level indicator]]","v":0},{"$f":"T_DataComboFile[[#This Row],[2020/21 Original_Source]]*T_DataComboFile[[#This Row],[G&S reporting level indicator]]","v":0},{"$f":"T_DataComboFile[[#This Row],[2020/21 SAB_Source]]*T_DataComboFile[[#This Row],[G&S reporting level indicator]]","v":0},{"$f":"T_DataComboFile[[#This Row],[2020/21 Baseline_Source]]*T_DataComboFile[[#This Row],[G&S reporting level indicator]]","v":0},{"$f":"T_DataComboFile[[#This Row],[2021/22 Baseline_Source]]*T_DataComboFile[[#This Row],[G&S reporting level indicator]]","v":0},{"$f":"T_DataComboFile[[#This Row],[2022/23 Baseline_Source]]*T_DataComboFile[[#This Row],[G&S reporting level indicator]]","v":0},{"$f":"T_DataComboFile[[#This Row],[2023/24 Baseline_Source]]*T_DataComboFile[[#This Row],[G&S reporting level indicator]]","v":0},null,null,null,null,null,null,{"$f":"T_DataComboFile[[#This Row],[2021/22 Baseline]]+T_DataComboFile[[#This Row],[2021/22 Reduction]]+T_DataComboFile[[#This Row],[2021/22 Increase]]","v":0},{"$f":"T_DataComboFile[[#This Row],[2022/23 Baseline]]+T_DataComboFile[[#This Row],[2022/23 Reduction]]+T_DataComboFile[[#This Row],[2022/23 Increase]]","v":0},{"$f":"T_DataComboFile[[#This Row],[2023/24 Baseline]]+T_DataComboFile[[#This Row],[2023/24 Reduction]]+T_DataComboFile[[#This Row],[2023/24 Increase]]","v":0}]
["NAT|Non-transfer item","36|Consumables: Stationery, printing and office supplies","2021_22","ENE2020",36,2,2,17307,70567,36,2,2,17307,"070567","36|02|02",1,1,2,32,32,"01|01|02|32|32","National","Small Business Development","Sector Policy and Research","Policy and Legislation","Non-transfer item","Current","Current payments","Goods and services","Consumables: Stationery, printing and office supplies","Consumables: Stationery, printing and office supplies","Economic development","Industrialisation and exports","NAT",0,0,23,15,192,192,192,5,5,5,5,5,5,1,null,{"$f":"IF(T_DataComboFile[[#This Row],[G&S reporting level indicator]]=1,$AX$16,\"Not applicable\")","v":"Not applicable"},{"$f":"IF(AND($AX$16=\"Level 3\",T_DataComboFile[[#This Row],[Econ3]] = \"Goods and services\"),IF(T_DataComboFile[[#This Row],[Econ4]] = T_DataComboFile[[#This Row],[Econ3]],1,0),IF(AND($AX$16=\"Level 4\",T_DataComboFile[[#This Row],[Econ4]] = \"Goods and services\"),0,1))","v":0},{"$f":"T_DataComboFile[[#This Row],[2016/17_Source]]*T_DataComboFile[[#This Row],[G&S reporting level indicator]]","v":0},{"$f":"T_DataComboFile[[#This Row],[2017/18_Source]]*T_DataComboFile[[#This Row],[G&S reporting level indicator]]","v":0},{"$f":"T_DataComboFile[[#This Row],[2018/19_Source]]*T_DataComboFile[[#This Row],[G&S reporting level indicator]]","v":0},{"$f":"T_DataComboFile[[#This Row],[2019/20 Main appropriation_Source]]*T_DataComboFile[[#This Row],[G&S reporting level indicator]]","v":0},{"$f":"T_DataComboFile[[#This Row],[2019/20 Adjusted appropriation_Source]]*T_DataComboFile[[#This Row],[G&S reporting level indicator]]","v":0},{"$f":"T_DataComboFile[[#This Row],[2019/20 Revised estimate_Source]]*T_DataComboFile[[#This Row],[G&S reporting level indicator]]","v":0},{"$f":"T_DataComboFile[[#This Row],[2019/20 Preliminary outcome_Source]]*T_DataComboFile[[#This Row],[G&S reporting level indicator]]","v":0},{"$f":"T_DataComboFile[[#This Row],[2020/21 Original_Source]]*T_DataComboFile[[#This Row],[G&S reporting level indicator]]","v":0},{"$f":"T_DataComboFile[[#This Row],[2020/21 SAB_Source]]*T_DataComboFile[[#This Row],[G&S reporting level indicator]]","v":0},{"$f":"T_DataComboFile[[#This Row],[2020/21 Baseline_Source]]*T_DataComboFile[[#This Row],[G&S reporting level indicator]]","v":0},{"$f":"T_DataComboFile[[#This Row],[2021/22 Baseline_Source]]*T_DataComboFile[[#This Row],[G&S reporting level indicator]]","v":0},{"$f":"T_DataComboFile[[#This Row],[2022/23 Baseline_Source]]*T_DataComboFile[[#This Row],[G&S reporting level indicator]]","v":0},{"$f":"T_DataComboFile[[#This Row],[2023/24 Baseline_Source]]*T_DataComboFile[[#This Row],[G&S reporting level indicator]]","v":0},null,null,null,null,null,null,{"$f":"T_DataComboFile[[#This Row],[2021/22 Baseline]]+T_DataComboFile[[#This Row],[2021/22 Reduction]]+T_DataComboFile[[#This Row],[2021/22 Increase]]","v":0},{"$f":"T_DataComboFile[[#This Row],[2022/23 Baseline]]+T_DataComboFile[[#This Row],[2022/23 Reduction]]+T_DataComboFile[[#This Row],[2022/23 Increase]]","v":0},{"$f":"T_DataComboFile[[#This Row],[2023/24 Baseline]]+T_DataComboFile[[#This Row],[2023/24 Reduction]]+T_DataComboFile[[#This Row],[2023/24 Increase]]","v":0}]
[null,null,"2021_22","ENE2020",36,2,2,null,70568,36,2,2,null,"070568","36|02|02",1,1,2,33,33,"01|01|02|33|33","National","Small Business Development","Sector Policy and Research","Policy and Legislation",null,"Current","Current payments","Goods and services","Operating leases","Operating leases",null,null,null,0,0,0,0,0,0,0,0,0,0,0,0,0,0,null,{"$f":"IF(T_DataComboFile[[#This Row],[G&S reporting level indicator]]=1,$AX$16,\"Not applicable\")","v":"Not applicable"},{"$f":"IF(AND($AX$16=\"Level 3\",T_DataComboFile[[#This Row],[Econ3]] = \"Goods and services\"),IF(T_DataComboFile[[#This Row],[Econ4]] = T_DataComboFile[[#This Row],[Econ3]],1,0),IF(AND($AX$16=\"Level 4\",T_DataComboFile[[#This Row],[Econ4]] = \"Goods and services\"),0,1))","v":0},{"$f":"T_DataComboFile[[#This Row],[2016/17_Source]]*T_DataComboFile[[#This Row],[G&S reporting level indicator]]","v":0},{"$f":"T_DataComboFile[[#This Row],[2017/18_Source]]*T_DataComboFile[[#This Row],[G&S reporting level indicator]]","v":0},{"$f":"T_DataComboFile[[#This Row],[2018/19_Source]]*T_DataComboFile[[#This Row],[G&S reporting level indicator]]","v":0},{"$f":"T_DataComboFile[[#This Row],[2019/20 Main appropriation_Source]]*T_DataComboFile[[#This Row],[G&S reporting level indicator]]","v":0},{"$f":"T_DataComboFile[[#This Row],[2019/20 Adjusted appropriation_Source]]*T_DataComboFile[[#This Row],[G&S reporting level indicator]]","v":0},{"$f":"T_DataComboFile[[#This Row],[2019/20 Revised estimate_Source]]*T_DataComboFile[[#This Row],[G&S reporting level indicator]]","v":0},{"$f":"T_DataComboFile[[#This Row],[2019/20 Preliminary outcome_Source]]*T_DataComboFile[[#This Row],[G&S reporting level indicator]]","v":0},{"$f":"T_DataComboFile[[#This Row],[2020/21 Original_Source]]*T_DataComboFile[[#This Row],[G&S reporting level indicator]]","v":0},{"$f":"T_DataComboFile[[#This Row],[2020/21 SAB_Source]]*T_DataComboFile[[#This Row],[G&S reporting level indicator]]","v":0},{"$f":"T_DataComboFile[[#This Row],[2020/21 Baseline_Source]]*T_DataComboFile[[#This Row],[G&S reporting level indicator]]","v":0},{"$f":"T_DataComboFile[[#This Row],[2021/22 Baseline_Source]]*T_DataComboFile[[#This Row],[G&S reporting level indicator]]","v":0},{"$f":"T_DataComboFile[[#This Row],[2022/23 Baseline_Source]]*T_DataComboFile[[#This Row],[G&S reporting level indicator]]","v":0},{"$f":"T_DataComboFile[[#This Row],[2023/24 Baseline_Source]]*T_DataComboFile[[#This Row],[G&S reporting level indicator]]","v":0},null,null,null,null,null,null,{"$f":"T_DataComboFile[[#This Row],[2021/22 Baseline]]+T_DataComboFile[[#This Row],[2021/22 Reduction]]+T_DataComboFile[[#This Row],[2021/22 Increase]]","v":0},{"$f":"T_DataComboFile[[#This Row],[2022/23 Baseline]]+T_DataComboFile[[#This Row],[2022/23 Reduction]]+T_DataComboFile[[#This Row],[2022/23 Increase]]","v":0},{"$f":"T_DataComboFile[[#This Row],[2023/24 Baseline]]+T_DataComboFile[[#This Row],[2023/24 Reduction]]+T_DataComboFile[[#This Row],[2023/24 Increase]]","v":0}]
[null,null,"2021_22","ENE2020",36,2,2,null,70569,36,2,2,null,"070569","36|02|02",1,1,2,34,34,"01|01|02|34|34","National","Small Business Development","Sector Policy and Research","Policy and Legislation",null,"Current","Current payments","Goods and services","Rental and hiring","Rental and hiring",null,null,null,0,0,0,0,0,0,0,0,0,0,0,0,0,0,null,{"$f":"IF(T_DataComboFile[[#This Row],[G&S reporting level indicator]]=1,$AX$16,\"Not applicable\")","v":"Not applicable"},{"$f":"IF(AND($AX$16=\"Level 3\",T_DataComboFile[[#This Row],[Econ3]] = \"Goods and services\"),IF(T_DataComboFile[[#This Row],[Econ4]] = T_DataComboFile[[#This Row],[Econ3]],1,0),IF(AND($AX$16=\"Level 4\",T_DataComboFile[[#This Row],[Econ4]] = \"Goods and services\"),0,1))","v":0},{"$f":"T_DataComboFile[[#This Row],[2016/17_Source]]*T_DataComboFile[[#This Row],[G&S reporting level indicator]]","v":0},{"$f":"T_DataComboFile[[#This Row],[2017/18_Source]]*T_DataComboFile[[#This Row],[G&S reporting level indicator]]","v":0},{"$f":"T_DataComboFile[[#This Row],[2018/19_Source]]*T_DataComboFile[[#This Row],[G&S reporting level indicator]]","v":0},{"$f":"T_DataComboFile[[#This Row],[2019/20 Main appropriation_Source]]*T_DataComboFile[[#This Row],[G&S reporting level indicator]]","v":0},{"$f":"T_DataComboFile[[#This Row],[2019/20 Adjusted appropriation_Source]]*T_DataComboFile[[#This Row],[G&S reporting level indicator]]","v":0},{"$f":"T_DataComboFile[[#This Row],[2019/20 Revised estimate_Source]]*T_DataComboFile[[#This Row],[G&S reporting level indicator]]","v":0},{"$f":"T_DataComboFile[[#This Row],[2019/20 Preliminary outcome_Source]]*T_DataComboFile[[#This Row],[G&S reporting level indicator]]","v":0},{"$f":"T_DataComboFile[[#This Row],[2020/21 Original_Source]]*T_DataComboFile[[#This Row],[G&S reporting level indicator]]","v":0},{"$f":"T_DataComboFile[[#This Row],[2020/21 SAB_Source]]*T_DataComboFile[[#This Row],[G&S reporting level indicator]]","v":0},{"$f":"T_DataComboFile[[#This Row],[2020/21 Baseline_Source]]*T_DataComboFile[[#This Row],[G&S reporting level indicator]]","v":0},{"$f":"T_DataComboFile[[#This Row],[2021/22 Baseline_Source]]*T_DataComboFile[[#This Row],[G&S reporting level indicator]]","v":0},{"$f":"T_DataComboFile[[#This Row],[2022/23 Baseline_Source]]*T_DataComboFile[[#This Row],[G&S reporting level indicator]]","v":0},{"$f":"T_DataComboFile[[#This Row],[2023/24 Baseline_Source]]*T_DataComboFile[[#This Row],[G&S reporting level indicator]]","v":0},null,null,null,null,null,null,{"$f":"T_DataComboFile[[#This Row],[2021/22 Baseline]]+T_DataComboFile[[#This Row],[2021/22 Reduction]]+T_DataComboFile[[#This Row],[2021/22 Increase]]","v":0},{"$f":"T_DataComboFile[[#This Row],[2022/23 Baseline]]+T_DataComboFile[[#This Row],[2022/23 Reduction]]+T_DataComboFile[[#This Row],[2022/23 Increase]]","v":0},{"$f":"T_DataComboFile[[#This Row],[2023/24 Baseline]]+T_DataComboFile[[#This Row],[2023/24 Reduction]]+T_DataComboFile[[#This Row],[2023/24 Increase]]","v":0}]
[null,null,"2021_22","ENE2020",36,2,2,null,70570,36,2,2,null,"070570","36|02|02",1,1,2,35,35,"01|01|02|35|35","National","Small Business Development","Sector Policy and Research","Policy and Legislation",null,"Current","Current payments","Goods and services","Property payments","Property payments",null,null,null,0,0,0,0,0,0,0,0,0,0,0,0,0,0,null,{"$f":"IF(T_DataComboFile[[#This Row],[G&S reporting level indicator]]=1,$AX$16,\"Not applicable\")","v":"Not applicable"},{"$f":"IF(AND($AX$16=\"Level 3\",T_DataComboFile[[#This Row],[Econ3]] = \"Goods and services\"),IF(T_DataComboFile[[#This Row],[Econ4]] = T_DataComboFile[[#This Row],[Econ3]],1,0),IF(AND($AX$16=\"Level 4\",T_DataComboFile[[#This Row],[Econ4]] = \"Goods and services\"),0,1))","v":0},{"$f":"T_DataComboFile[[#This Row],[2016/17_Source]]*T_DataComboFile[[#This Row],[G&S reporting level indicator]]","v":0},{"$f":"T_DataComboFile[[#This Row],[2017/18_Source]]*T_DataComboFile[[#This Row],[G&S reporting level indicator]]","v":0},{"$f":"T_DataComboFile[[#This Row],[2018/19_Source]]*T_DataComboFile[[#This Row],[G&S reporting level indicator]]","v":0},{"$f":"T_DataComboFile[[#This Row],[2019/20 Main appropriation_Source]]*T_DataComboFile[[#This Row],[G&S reporting level indicator]]","v":0},{"$f":"T_DataComboFile[[#This Row],[2019/20 Adjusted appropriation_Source]]*T_DataComboFile[[#This Row],[G&S reporting level indicator]]","v":0},{"$f":"T_DataComboFile[[#This Row],[2019/20 Revised estimate_Source]]*T_DataComboFile[[#This Row],[G&S reporting level indicator]]","v":0},{"$f":"T_DataComboFile[[#This Row],[2019/20 Preliminary outcome_Source]]*T_DataComboFile[[#This Row],[G&S reporting level indicator]]","v":0},{"$f":"T_DataComboFile[[#This Row],[2020/21 Original_Source]]*T_DataComboFile[[#This Row],[G&S reporting level indicator]]","v":0},{"$f":"T_DataComboFile[[#This Row],[2020/21 SAB_Source]]*T_DataComboFile[[#This Row],[G&S reporting level indicator]]","v":0},{"$f":"T_DataComboFile[[#This Row],[2020/21 Baseline_Source]]*T_DataComboFile[[#This Row],[G&S reporting level indicator]]","v":0},{"$f":"T_DataComboFile[[#This Row],[2021/22 Baseline_Source]]*T_DataComboFile[[#This Row],[G&S reporting level indicator]]","v":0},{"$f":"T_DataComboFile[[#This Row],[2022/23 Baseline_Source]]*T_DataComboFile[[#This Row],[G&S reporting level indicator]]","v":0},{"$f":"T_DataComboFile[[#This Row],[2023/24 Baseline_Source]]*T_DataComboFile[[#This Row],[G&S reporting level indicator]]","v":0},null,null,null,null,null,null,{"$f":"T_DataComboFile[[#This Row],[2021/22 Baseline]]+T_DataComboFile[[#This Row],[2021/22 Reduction]]+T_DataComboFile[[#This Row],[2021/22 Increase]]","v":0},{"$f":"T_DataComboFile[[#This Row],[2022/23 Baseline]]+T_DataComboFile[[#This Row],[2022/23 Reduction]]+T_DataComboFile[[#This Row],[2022/23 Increase]]","v":0},{"$f":"T_DataComboFile[[#This Row],[2023/24 Baseline]]+T_DataComboFile[[#This Row],[2023/24 Reduction]]+T_DataComboFile[[#This Row],[2023/24 Increase]]","v":0}]
[null,null,"2021_22","ENE2020",36,2,2,null,70571,36,2,2,null,"070571","36|02|02",1,1,2,36,36,"01|01|02|36|36","National","Small Business Development","Sector Policy and Research","Policy and Legislation",null,"Current","Current payments","Goods and services","Transport provided: Departmental activity","Transport provided: Departmental activity",null,null,null,0,0,0,0,0,0,0,0,0,0,0,0,0,0,null,{"$f":"IF(T_DataComboFile[[#This Row],[G&S reporting level indicator]]=1,$AX$16,\"Not applicable\")","v":"Not applicable"},{"$f":"IF(AND($AX$16=\"Level 3\",T_DataComboFile[[#This Row],[Econ3]] = \"Goods and services\"),IF(T_DataComboFile[[#This Row],[Econ4]] = T_DataComboFile[[#This Row],[Econ3]],1,0),IF(AND($AX$16=\"Level 4\",T_DataComboFile[[#This Row],[Econ4]] = \"Goods and services\"),0,1))","v":0},{"$f":"T_DataComboFile[[#This Row],[2016/17_Source]]*T_DataComboFile[[#This Row],[G&S reporting level indicator]]","v":0},{"$f":"T_DataComboFile[[#This Row],[2017/18_Source]]*T_DataComboFile[[#This Row],[G&S reporting level indicator]]","v":0},{"$f":"T_DataComboFile[[#This Row],[2018/19_Source]]*T_DataComboFile[[#This Row],[G&S reporting level indicator]]","v":0},{"$f":"T_DataComboFile[[#This Row],[2019/20 Main appropriation_Source]]*T_DataComboFile[[#This Row],[G&S reporting level indicator]]","v":0},{"$f":"T_DataComboFile[[#This Row],[2019/20 Adjusted appropriation_Source]]*T_DataComboFile[[#This Row],[G&S reporting level indicator]]","v":0},{"$f":"T_DataComboFile[[#This Row],[2019/20 Revised estimate_Source]]*T_DataComboFile[[#This Row],[G&S reporting level indicator]]","v":0},{"$f":"T_DataComboFile[[#This Row],[2019/20 Preliminary outcome_Source]]*T_DataComboFile[[#This Row],[G&S reporting level indicator]]","v":0},{"$f":"T_DataComboFile[[#This Row],[2020/21 Original_Source]]*T_DataComboFile[[#This Row],[G&S reporting level indicator]]","v":0},{"$f":"T_DataComboFile[[#This Row],[2020/21 SAB_Source]]*T_DataComboFile[[#This Row],[G&S reporting level indicator]]","v":0},{"$f":"T_DataComboFile[[#This Row],[2020/21 Baseline_Source]]*T_DataComboFile[[#This Row],[G&S reporting level indicator]]","v":0},{"$f":"T_DataComboFile[[#This Row],[2021/22 Baseline_Source]]*T_DataComboFile[[#This Row],[G&S reporting level indicator]]","v":0},{"$f":"T_DataComboFile[[#This Row],[2022/23 Baseline_Source]]*T_DataComboFile[[#This Row],[G&S reporting level indicator]]","v":0},{"$f":"T_DataComboFile[[#This Row],[2023/24 Baseline_Source]]*T_DataComboFile[[#This Row],[G&S reporting level indicator]]","v":0},null,null,null,null,null,null,{"$f":"T_DataComboFile[[#This Row],[2021/22 Baseline]]+T_DataComboFile[[#This Row],[2021/22 Reduction]]+T_DataComboFile[[#This Row],[2021/22 Increase]]","v":0},{"$f":"T_DataComboFile[[#This Row],[2022/23 Baseline]]+T_DataComboFile[[#This Row],[2022/23 Reduction]]+T_DataComboFile[[#This Row],[2022/23 Increase]]","v":0},{"$f":"T_DataComboFile[[#This Row],[2023/24 Baseline]]+T_DataComboFile[[#This Row],[2023/24 Reduction]]+T_DataComboFile[[#This Row],[2023/24 Increase]]","v":0}]
["NAT|Non-transfer item","36|Travel and subsistence","2021_22","ENE2020",36,2,2,17308,70572,36,2,2,17308,"070572","36|02|02",1,1,2,37,37,"01|01|02|37|37","National","Small Business Development","Sector Policy and Research","Policy and Legislation","Non-transfer item","Current","Current payments","Goods and services","Travel and subsistence","Travel and subsistence","Economic development","Industrialisation and exports","NAT",0,0,328,649,649,649,649,640,640,640,678,719,751,1,null,{"$f":"IF(T_DataComboFile[[#This Row],[G&S reporting level indicator]]=1,$AX$16,\"Not applicable\")","v":"Not applicable"},{"$f":"IF(AND($AX$16=\"Level 3\",T_DataComboFile[[#This Row],[Econ3]] = \"Goods and services\"),IF(T_DataComboFile[[#This Row],[Econ4]] = T_DataComboFile[[#This Row],[Econ3]],1,0),IF(AND($AX$16=\"Level 4\",T_DataComboFile[[#This Row],[Econ4]] = \"Goods and services\"),0,1))","v":0},{"$f":"T_DataComboFile[[#This Row],[2016/17_Source]]*T_DataComboFile[[#This Row],[G&S reporting level indicator]]","v":0},{"$f":"T_DataComboFile[[#This Row],[2017/18_Source]]*T_DataComboFile[[#This Row],[G&S reporting level indicator]]","v":0},{"$f":"T_DataComboFile[[#This Row],[2018/19_Source]]*T_DataComboFile[[#This Row],[G&S reporting level indicator]]","v":0},{"$f":"T_DataComboFile[[#This Row],[2019/20 Main appropriation_Source]]*T_DataComboFile[[#This Row],[G&S reporting level indicator]]","v":0},{"$f":"T_DataComboFile[[#This Row],[2019/20 Adjusted appropriation_Source]]*T_DataComboFile[[#This Row],[G&S reporting level indicator]]","v":0},{"$f":"T_DataComboFile[[#This Row],[2019/20 Revised estimate_Source]]*T_DataComboFile[[#This Row],[G&S reporting level indicator]]","v":0},{"$f":"T_DataComboFile[[#This Row],[2019/20 Preliminary outcome_Source]]*T_DataComboFile[[#This Row],[G&S reporting level indicator]]","v":0},{"$f":"T_DataComboFile[[#This Row],[2020/21 Original_Source]]*T_DataComboFile[[#This Row],[G&S reporting level indicator]]","v":0},{"$f":"T_DataComboFile[[#This Row],[2020/21 SAB_Source]]*T_DataComboFile[[#This Row],[G&S reporting level indicator]]","v":0},{"$f":"T_DataComboFile[[#This Row],[2020/21 Baseline_Source]]*T_DataComboFile[[#This Row],[G&S reporting level indicator]]","v":0},{"$f":"T_DataComboFile[[#This Row],[2021/22 Baseline_Source]]*T_DataComboFile[[#This Row],[G&S reporting level indicator]]","v":0},{"$f":"T_DataComboFile[[#This Row],[2022/23 Baseline_Source]]*T_DataComboFile[[#This Row],[G&S reporting level indicator]]","v":0},{"$f":"T_DataComboFile[[#This Row],[2023/24 Baseline_Source]]*T_DataComboFile[[#This Row],[G&S reporting level indicator]]","v":0},null,null,null,null,null,null,{"$f":"T_DataComboFile[[#This Row],[2021/22 Baseline]]+T_DataComboFile[[#This Row],[2021/22 Reduction]]+T_DataComboFile[[#This Row],[2021/22 Increase]]","v":0},{"$f":"T_DataComboFile[[#This Row],[2022/23 Baseline]]+T_DataComboFile[[#This Row],[2022/23 Reduction]]+T_DataComboFile[[#This Row],[2022/23 Increase]]","v":0},{"$f":"T_DataComboFile[[#This Row],[2023/24 Baseline]]+T_DataComboFile[[#This Row],[2023/24 Reduction]]+T_DataComboFile[[#This Row],[2023/24 Increase]]","v":0}]
[null,null,"2021_22","ENE2020",36,2,2,null,70573,36,2,2,null,"070573","36|02|02",1,1,2,38,38,"01|01|02|38|38","National","Small Business Development","Sector Policy and Research","Policy and Legislation",null,"Current","Current payments","Goods and services","Training and development","Training and development",null,null,null,0,0,0,0,0,0,0,0,0,0,0,0,0,0,null,{"$f":"IF(T_DataComboFile[[#This Row],[G&S reporting level indicator]]=1,$AX$16,\"Not applicable\")","v":"Not applicable"},{"$f":"IF(AND($AX$16=\"Level 3\",T_DataComboFile[[#This Row],[Econ3]] = \"Goods and services\"),IF(T_DataComboFile[[#This Row],[Econ4]] = T_DataComboFile[[#This Row],[Econ3]],1,0),IF(AND($AX$16=\"Level 4\",T_DataComboFile[[#This Row],[Econ4]] = \"Goods and services\"),0,1))","v":0},{"$f":"T_DataComboFile[[#This Row],[2016/17_Source]]*T_DataComboFile[[#This Row],[G&S reporting level indicator]]","v":0},{"$f":"T_DataComboFile[[#This Row],[2017/18_Source]]*T_DataComboFile[[#This Row],[G&S reporting level indicator]]","v":0},{"$f":"T_DataComboFile[[#This Row],[2018/19_Source]]*T_DataComboFile[[#This Row],[G&S reporting level indicator]]","v":0},{"$f":"T_DataComboFile[[#This Row],[2019/20 Main appropriation_Source]]*T_DataComboFile[[#This Row],[G&S reporting level indicator]]","v":0},{"$f":"T_DataComboFile[[#This Row],[2019/20 Adjusted appropriation_Source]]*T_DataComboFile[[#This Row],[G&S reporting level indicator]]","v":0},{"$f":"T_DataComboFile[[#This Row],[2019/20 Revised estimate_Source]]*T_DataComboFile[[#This Row],[G&S reporting level indicator]]","v":0},{"$f":"T_DataComboFile[[#This Row],[2019/20 Preliminary outcome_Source]]*T_DataComboFile[[#This Row],[G&S reporting level indicator]]","v":0},{"$f":"T_DataComboFile[[#This Row],[2020/21 Original_Source]]*T_DataComboFile[[#This Row],[G&S reporting level indicator]]","v":0},{"$f":"T_DataComboFile[[#This Row],[2020/21 SAB_Source]]*T_DataComboFile[[#This Row],[G&S reporting level indicator]]","v":0},{"$f":"T_DataComboFile[[#This Row],[2020/21 Baseline_Source]]*T_DataComboFile[[#This Row],[G&S reporting level indicator]]","v":0},{"$f":"T_DataComboFile[[#This Row],[2021/22 Baseline_Source]]*T_DataComboFile[[#This Row],[G&S reporting level indicator]]","v":0},{"$f":"T_DataComboFile[[#This Row],[2022/23 Baseline_Source]]*T_DataComboFile[[#This Row],[G&S reporting level indicator]]","v":0},{"$f":"T_DataComboFile[[#This Row],[2023/24 Baseline_Source]]*T_DataComboFile[[#This Row],[G&S reporting level indicator]]","v":0},null,null,null,null,null,null,{"$f":"T_DataComboFile[[#This Row],[2021/22 Baseline]]+T_DataComboFile[[#This Row],[2021/22 Reduction]]+T_DataComboFile[[#This Row],[2021/22 Increase]]","v":0},{"$f":"T_DataComboFile[[#This Row],[2022/23 Baseline]]+T_DataComboFile[[#This Row],[2022/23 Reduction]]+T_DataComboFile[[#This Row],[2022/23 Increase]]","v":0},{"$f":"T_DataComboFile[[#This Row],[2023/24 Baseline]]+T_DataComboFile[[#This Row],[2023/24 Reduction]]+T_DataComboFile[[#This Row],[2023/24 Increase]]","v":0}]
["NAT|Non-transfer item","36|Operating payments","2021_22","ENE2020",36,2,2,17309,70574,36,2,2,17309,"070574","36|02|02",1,1,2,39,39,"01|01|02|39|39","National","Small Business Development","Sector Policy and Research","Policy and Legislation","Non-transfer item","Current","Current payments","Goods and services","Operating payments","Operating payments","Economic development","Industrialisation and exports","NAT",0,0,5,0,0,0,0,0,0,0,0,0,0,1,null,{"$f":"IF(T_DataComboFile[[#This Row],[G&S reporting level indicator]]=1,$AX$16,\"Not applicable\")","v":"Not applicable"},{"$f":"IF(AND($AX$16=\"Level 3\",T_DataComboFile[[#This Row],[Econ3]] = \"Goods and services\"),IF(T_DataComboFile[[#This Row],[Econ4]] = T_DataComboFile[[#This Row],[Econ3]],1,0),IF(AND($AX$16=\"Level 4\",T_DataComboFile[[#This Row],[Econ4]] = \"Goods and services\"),0,1))","v":0},{"$f":"T_DataComboFile[[#This Row],[2016/17_Source]]*T_DataComboFile[[#This Row],[G&S reporting level indicator]]","v":0},{"$f":"T_DataComboFile[[#This Row],[2017/18_Source]]*T_DataComboFile[[#This Row],[G&S reporting level indicator]]","v":0},{"$f":"T_DataComboFile[[#This Row],[2018/19_Source]]*T_DataComboFile[[#This Row],[G&S reporting level indicator]]","v":0},{"$f":"T_DataComboFile[[#This Row],[2019/20 Main appropriation_Source]]*T_DataComboFile[[#This Row],[G&S reporting level indicator]]","v":0},{"$f":"T_DataComboFile[[#This Row],[2019/20 Adjusted appropriation_Source]]*T_DataComboFile[[#This Row],[G&S reporting level indicator]]","v":0},{"$f":"T_DataComboFile[[#This Row],[2019/20 Revised estimate_Source]]*T_DataComboFile[[#This Row],[G&S reporting level indicator]]","v":0},{"$f":"T_DataComboFile[[#This Row],[2019/20 Preliminary outcome_Source]]*T_DataComboFile[[#This Row],[G&S reporting level indicator]]","v":0},{"$f":"T_DataComboFile[[#This Row],[2020/21 Original_Source]]*T_DataComboFile[[#This Row],[G&S reporting level indicator]]","v":0},{"$f":"T_DataComboFile[[#This Row],[2020/21 SAB_Source]]*T_DataComboFile[[#This Row],[G&S reporting level indicator]]","v":0},{"$f":"T_DataComboFile[[#This Row],[2020/21 Baseline_Source]]*T_DataComboFile[[#This Row],[G&S reporting level indicator]]","v":0},{"$f":"T_DataComboFile[[#This Row],[2021/22 Baseline_Source]]*T_DataComboFile[[#This Row],[G&S reporting level indicator]]","v":0},{"$f":"T_DataComboFile[[#This Row],[2022/23 Baseline_Source]]*T_DataComboFile[[#This Row],[G&S reporting level indicator]]","v":0},{"$f":"T_DataComboFile[[#This Row],[2023/24 Baseline_Source]]*T_DataComboFile[[#This Row],[G&S reporting level indicator]]","v":0},null,null,null,null,null,null,{"$f":"T_DataComboFile[[#This Row],[2021/22 Baseline]]+T_DataComboFile[[#This Row],[2021/22 Reduction]]+T_DataComboFile[[#This Row],[2021/22 Increase]]","v":0},{"$f":"T_DataComboFile[[#This Row],[2022/23 Baseline]]+T_DataComboFile[[#This Row],[2022/23 Reduction]]+T_DataComboFile[[#This Row],[2022/23 Increase]]","v":0},{"$f":"T_DataComboFile[[#This Row],[2023/24 Baseline]]+T_DataComboFile[[#This Row],[2023/24 Reduction]]+T_DataComboFile[[#This Row],[2023/24 Increase]]","v":0}]
["NAT|Non-transfer item","36|Venues and facilities","2021_22","ENE2020",36,2,2,17310,70575,36,2,2,17310,"070575","36|02|02",1,1,2,40,40,"01|01|02|40|40","National","Small Business Development","Sector Policy and Research","Policy and Legislation","Non-transfer item","Current","Current payments","Goods and services","Venues and facilities","Venues and facilities","Economic development","Industrialisation and exports","NAT",0,0,0,0,80,80,80,40,40,40,42,44,46,1,null,{"$f":"IF(T_DataComboFile[[#This Row],[G&S reporting level indicator]]=1,$AX$16,\"Not applicable\")","v":"Not applicable"},{"$f":"IF(AND($AX$16=\"Level 3\",T_DataComboFile[[#This Row],[Econ3]] = \"Goods and services\"),IF(T_DataComboFile[[#This Row],[Econ4]] = T_DataComboFile[[#This Row],[Econ3]],1,0),IF(AND($AX$16=\"Level 4\",T_DataComboFile[[#This Row],[Econ4]] = \"Goods and services\"),0,1))","v":0},{"$f":"T_DataComboFile[[#This Row],[2016/17_Source]]*T_DataComboFile[[#This Row],[G&S reporting level indicator]]","v":0},{"$f":"T_DataComboFile[[#This Row],[2017/18_Source]]*T_DataComboFile[[#This Row],[G&S reporting level indicator]]","v":0},{"$f":"T_DataComboFile[[#This Row],[2018/19_Source]]*T_DataComboFile[[#This Row],[G&S reporting level indicator]]","v":0},{"$f":"T_DataComboFile[[#This Row],[2019/20 Main appropriation_Source]]*T_DataComboFile[[#This Row],[G&S reporting level indicator]]","v":0},{"$f":"T_DataComboFile[[#This Row],[2019/20 Adjusted appropriation_Source]]*T_DataComboFile[[#This Row],[G&S reporting level indicator]]","v":0},{"$f":"T_DataComboFile[[#This Row],[2019/20 Revised estimate_Source]]*T_DataComboFile[[#This Row],[G&S reporting level indicator]]","v":0},{"$f":"T_DataComboFile[[#This Row],[2019/20 Preliminary outcome_Source]]*T_DataComboFile[[#This Row],[G&S reporting level indicator]]","v":0},{"$f":"T_DataComboFile[[#This Row],[2020/21 Original_Source]]*T_DataComboFile[[#This Row],[G&S reporting level indicator]]","v":0},{"$f":"T_DataComboFile[[#This Row],[2020/21 SAB_Source]]*T_DataComboFile[[#This Row],[G&S reporting level indicator]]","v":0},{"$f":"T_DataComboFile[[#This Row],[2020/21 Baseline_Source]]*T_DataComboFile[[#This Row],[G&S reporting level indicator]]","v":0},{"$f":"T_DataComboFile[[#This Row],[2021/22 Baseline_Source]]*T_DataComboFile[[#This Row],[G&S reporting level indicator]]","v":0},{"$f":"T_DataComboFile[[#This Row],[2022/23 Baseline_Source]]*T_DataComboFile[[#This Row],[G&S reporting level indicator]]","v":0},{"$f":"T_DataComboFile[[#This Row],[2023/24 Baseline_Source]]*T_DataComboFile[[#This Row],[G&S reporting level indicator]]","v":0},null,null,null,null,null,null,{"$f":"T_DataComboFile[[#This Row],[2021/22 Baseline]]+T_DataComboFile[[#This Row],[2021/22 Reduction]]+T_DataComboFile[[#This Row],[2021/22 Increase]]","v":0},{"$f":"T_DataComboFile[[#This Row],[2022/23 Baseline]]+T_DataComboFile[[#This Row],[2022/23 Reduction]]+T_DataComboFile[[#This Row],[2022/23 Increase]]","v":0},{"$f":"T_DataComboFile[[#This Row],[2023/24 Baseline]]+T_DataComboFile[[#This Row],[2023/24 Reduction]]+T_DataComboFile[[#This Row],[2023/24 Increase]]","v":0}]
[null,null,"2021_22","ENE2020",36,2,2,null,70576,36,2,2,null,"070576","36|02|02",1,1,3,41,41,"01|01|03|41|41","National","Small Business Development","Sector Policy and Research","Policy and Legislation",null,"Current","Current payments","Interest and rent on land","Interest (Incl. interest on unitary payments (PPP))","Interest (Incl. interest on unitary payments (PPP))",null,null,null,0,0,0,0,0,0,0,0,0,0,0,0,0,0,null,{"$f":"IF(T_DataComboFile[[#This Row],[G&S reporting level indicator]]=1,$AX$16,\"Not applicable\")","v":"Level 3"},{"$f":"IF(AND($AX$16=\"Level 3\",T_DataComboFile[[#This Row],[Econ3]] = \"Goods and services\"),IF(T_DataComboFile[[#This Row],[Econ4]] = T_DataComboFile[[#This Row],[Econ3]],1,0),IF(AND($AX$16=\"Level 4\",T_DataComboFile[[#This Row],[Econ4]] = \"Goods and services\"),0,1))","v":1},{"$f":"T_DataComboFile[[#This Row],[2016/17_Source]]*T_DataComboFile[[#This Row],[G&S reporting level indicator]]","v":0},{"$f":"T_DataComboFile[[#This Row],[2017/18_Source]]*T_DataComboFile[[#This Row],[G&S reporting level indicator]]","v":0},{"$f":"T_DataComboFile[[#This Row],[2018/19_Source]]*T_DataComboFile[[#This Row],[G&S reporting level indicator]]","v":0},{"$f":"T_DataComboFile[[#This Row],[2019/20 Main appropriation_Source]]*T_DataComboFile[[#This Row],[G&S reporting level indicator]]","v":0},{"$f":"T_DataComboFile[[#This Row],[2019/20 Adjusted appropriation_Source]]*T_DataComboFile[[#This Row],[G&S reporting level indicator]]","v":0},{"$f":"T_DataComboFile[[#This Row],[2019/20 Revised estimate_Source]]*T_DataComboFile[[#This Row],[G&S reporting level indicator]]","v":0},{"$f":"T_DataComboFile[[#This Row],[2019/20 Preliminary outcome_Source]]*T_DataComboFile[[#This Row],[G&S reporting level indicator]]","v":0},{"$f":"T_DataComboFile[[#This Row],[2020/21 Original_Source]]*T_DataComboFile[[#This Row],[G&S reporting level indicator]]","v":0},{"$f":"T_DataComboFile[[#This Row],[2020/21 SAB_Source]]*T_DataComboFile[[#This Row],[G&S reporting level indicator]]","v":0},{"$f":"T_DataComboFile[[#This Row],[2020/21 Baseline_Source]]*T_DataComboFile[[#This Row],[G&S reporting level indicator]]","v":0},{"$f":"T_DataComboFile[[#This Row],[2021/22 Baseline_Source]]*T_DataComboFile[[#This Row],[G&S reporting level indicator]]","v":0},{"$f":"T_DataComboFile[[#This Row],[2022/23 Baseline_Source]]*T_DataComboFile[[#This Row],[G&S reporting level indicator]]","v":0},{"$f":"T_DataComboFile[[#This Row],[2023/24 Baseline_Source]]*T_DataComboFile[[#This Row],[G&S reporting level indicator]]","v":0},null,null,null,null,null,null,{"$f":"T_DataComboFile[[#This Row],[2021/22 Baseline]]+T_DataComboFile[[#This Row],[2021/22 Reduction]]+T_DataComboFile[[#This Row],[2021/22 Increase]]","v":0},{"$f":"T_DataComboFile[[#This Row],[2022/23 Baseline]]+T_DataComboFile[[#This Row],[2022/23 Reduction]]+T_DataComboFile[[#This Row],[2022/23 Increase]]","v":0},{"$f":"T_DataComboFile[[#This Row],[2023/24 Baseline]]+T_DataComboFile[[#This Row],[2023/24 Reduction]]+T_DataComboFile[[#This Row],[2023/24 Increase]]","v":0}]
[null,null,"2021_22","ENE2020",36,2,2,null,70577,36,2,2,null,"070577","36|02|02",1,1,3,42,42,"01|01|03|42|42","National","Small Business Development","Sector Policy and Research","Policy and Legislation",null,"Current","Current payments","Interest and rent on land","Rent on land","Rent on land",null,null,null,0,0,0,0,0,0,0,0,0,0,0,0,0,0,null,{"$f":"IF(T_DataComboFile[[#This Row],[G&S reporting level indicator]]=1,$AX$16,\"Not applicable\")","v":"Level 3"},{"$f":"IF(AND($AX$16=\"Level 3\",T_DataComboFile[[#This Row],[Econ3]] = \"Goods and services\"),IF(T_DataComboFile[[#This Row],[Econ4]] = T_DataComboFile[[#This Row],[Econ3]],1,0),IF(AND($AX$16=\"Level 4\",T_DataComboFile[[#This Row],[Econ4]] = \"Goods and services\"),0,1))","v":1},{"$f":"T_DataComboFile[[#This Row],[2016/17_Source]]*T_DataComboFile[[#This Row],[G&S reporting level indicator]]","v":0},{"$f":"T_DataComboFile[[#This Row],[2017/18_Source]]*T_DataComboFile[[#This Row],[G&S reporting level indicator]]","v":0},{"$f":"T_DataComboFile[[#This Row],[2018/19_Source]]*T_DataComboFile[[#This Row],[G&S reporting level indicator]]","v":0},{"$f":"T_DataComboFile[[#This Row],[2019/20 Main appropriation_Source]]*T_DataComboFile[[#This Row],[G&S reporting level indicator]]","v":0},{"$f":"T_DataComboFile[[#This Row],[2019/20 Adjusted appropriation_Source]]*T_DataComboFile[[#This Row],[G&S reporting level indicator]]","v":0},{"$f":"T_DataComboFile[[#This Row],[2019/20 Revised estimate_Source]]*T_DataComboFile[[#This Row],[G&S reporting level indicator]]","v":0},{"$f":"T_DataComboFile[[#This Row],[2019/20 Preliminary outcome_Source]]*T_DataComboFile[[#This Row],[G&S reporting level indicator]]","v":0},{"$f":"T_DataComboFile[[#This Row],[2020/21 Original_Source]]*T_DataComboFile[[#This Row],[G&S reporting level indicator]]","v":0},{"$f":"T_DataComboFile[[#This Row],[2020/21 SAB_Source]]*T_DataComboFile[[#This Row],[G&S reporting level indicator]]","v":0},{"$f":"T_DataComboFile[[#This Row],[2020/21 Baseline_Source]]*T_DataComboFile[[#This Row],[G&S reporting level indicator]]","v":0},{"$f":"T_DataComboFile[[#This Row],[2021/22 Baseline_Source]]*T_DataComboFile[[#This Row],[G&S reporting level indicator]]","v":0},{"$f":"T_DataComboFile[[#This Row],[2022/23 Baseline_Source]]*T_DataComboFile[[#This Row],[G&S reporting level indicator]]","v":0},{"$f":"T_DataComboFile[[#This Row],[2023/24 Baseline_Source]]*T_DataComboFile[[#This Row],[G&S reporting level indicator]]","v":0},null,null,null,null,null,null,{"$f":"T_DataComboFile[[#This Row],[2021/22 Baseline]]+T_DataComboFile[[#This Row],[2021/22 Reduction]]+T_DataComboFile[[#This Row],[2021/22 Increase]]","v":0},{"$f":"T_DataComboFile[[#This Row],[2022/23 Baseline]]+T_DataComboFile[[#This Row],[2022/23 Reduction]]+T_DataComboFile[[#This Row],[2022/23 Increase]]","v":0},{"$f":"T_DataComboFile[[#This Row],[2023/24 Baseline]]+T_DataComboFile[[#This Row],[2023/24 Reduction]]+T_DataComboFile[[#This Row],[2023/24 Increase]]","v":0}]
[null,null,"2021_22","ENE2020",36,2,2,null,70578,36,2,2,null,"070578","36|02|02",1,2,4,43,43,"01|02|04|43|43","National","Small Business Development","Sector Policy and Research","Policy and Legislation",null,"Current","Transfers and subsidies","Provinces and municipalities","Provinces","Provincial Revenue Funds",null,null,null,0,0,0,0,0,0,0,0,0,0,0,0,0,0,null,{"$f":"IF(T_DataComboFile[[#This Row],[G&S reporting level indicator]]=1,$AX$16,\"Not applicable\")","v":"Level 3"},{"$f":"IF(AND($AX$16=\"Level 3\",T_DataComboFile[[#This Row],[Econ3]] = \"Goods and services\"),IF(T_DataComboFile[[#This Row],[Econ4]] = T_DataComboFile[[#This Row],[Econ3]],1,0),IF(AND($AX$16=\"Level 4\",T_DataComboFile[[#This Row],[Econ4]] = \"Goods and services\"),0,1))","v":1},{"$f":"T_DataComboFile[[#This Row],[2016/17_Source]]*T_DataComboFile[[#This Row],[G&S reporting level indicator]]","v":0},{"$f":"T_DataComboFile[[#This Row],[2017/18_Source]]*T_DataComboFile[[#This Row],[G&S reporting level indicator]]","v":0},{"$f":"T_DataComboFile[[#This Row],[2018/19_Source]]*T_DataComboFile[[#This Row],[G&S reporting level indicator]]","v":0},{"$f":"T_DataComboFile[[#This Row],[2019/20 Main appropriation_Source]]*T_DataComboFile[[#This Row],[G&S reporting level indicator]]","v":0},{"$f":"T_DataComboFile[[#This Row],[2019/20 Adjusted appropriation_Source]]*T_DataComboFile[[#This Row],[G&S reporting level indicator]]","v":0},{"$f":"T_DataComboFile[[#This Row],[2019/20 Revised estimate_Source]]*T_DataComboFile[[#This Row],[G&S reporting level indicator]]","v":0},{"$f":"T_DataComboFile[[#This Row],[2019/20 Preliminary outcome_Source]]*T_DataComboFile[[#This Row],[G&S reporting level indicator]]","v":0},{"$f":"T_DataComboFile[[#This Row],[2020/21 Original_Source]]*T_DataComboFile[[#This Row],[G&S reporting level indicator]]","v":0},{"$f":"T_DataComboFile[[#This Row],[2020/21 SAB_Source]]*T_DataComboFile[[#This Row],[G&S reporting level indicator]]","v":0},{"$f":"T_DataComboFile[[#This Row],[2020/21 Baseline_Source]]*T_DataComboFile[[#This Row],[G&S reporting level indicator]]","v":0},{"$f":"T_DataComboFile[[#This Row],[2021/22 Baseline_Source]]*T_DataComboFile[[#This Row],[G&S reporting level indicator]]","v":0},{"$f":"T_DataComboFile[[#This Row],[2022/23 Baseline_Source]]*T_DataComboFile[[#This Row],[G&S reporting level indicator]]","v":0},{"$f":"T_DataComboFile[[#This Row],[2023/24 Baseline_Source]]*T_DataComboFile[[#This Row],[G&S reporting level indicator]]","v":0},null,null,null,null,null,null,{"$f":"T_DataComboFile[[#This Row],[2021/22 Baseline]]+T_DataComboFile[[#This Row],[2021/22 Reduction]]+T_DataComboFile[[#This Row],[2021/22 Increase]]","v":0},{"$f":"T_DataComboFile[[#This Row],[2022/23 Baseline]]+T_DataComboFile[[#This Row],[2022/23 Reduction]]+T_DataComboFile[[#This Row],[2022/23 Increase]]","v":0},{"$f":"T_DataComboFile[[#This Row],[2023/24 Baseline]]+T_DataComboFile[[#This Row],[2023/24 Reduction]]+T_DataComboFile[[#This Row],[2023/24 Increase]]","v":0}]
[null,null,"2021_22","ENE2020",36,2,2,null,70579,36,2,2,null,"070579","36|02|02",1,2,4,43,44,"01|02|04|43|44","National","Small Business Development","Sector Policy and Research","Policy and Legislation",null,"Current","Transfers and subsidies","Provinces and municipalities","Provinces","Provincial agencies and funds",null,null,null,0,0,0,0,0,0,0,0,0,0,0,0,0,0,null,{"$f":"IF(T_DataComboFile[[#This Row],[G&S reporting level indicator]]=1,$AX$16,\"Not applicable\")","v":"Level 3"},{"$f":"IF(AND($AX$16=\"Level 3\",T_DataComboFile[[#This Row],[Econ3]] = \"Goods and services\"),IF(T_DataComboFile[[#This Row],[Econ4]] = T_DataComboFile[[#This Row],[Econ3]],1,0),IF(AND($AX$16=\"Level 4\",T_DataComboFile[[#This Row],[Econ4]] = \"Goods and services\"),0,1))","v":1},{"$f":"T_DataComboFile[[#This Row],[2016/17_Source]]*T_DataComboFile[[#This Row],[G&S reporting level indicator]]","v":0},{"$f":"T_DataComboFile[[#This Row],[2017/18_Source]]*T_DataComboFile[[#This Row],[G&S reporting level indicator]]","v":0},{"$f":"T_DataComboFile[[#This Row],[2018/19_Source]]*T_DataComboFile[[#This Row],[G&S reporting level indicator]]","v":0},{"$f":"T_DataComboFile[[#This Row],[2019/20 Main appropriation_Source]]*T_DataComboFile[[#This Row],[G&S reporting level indicator]]","v":0},{"$f":"T_DataComboFile[[#This Row],[2019/20 Adjusted appropriation_Source]]*T_DataComboFile[[#This Row],[G&S reporting level indicator]]","v":0},{"$f":"T_DataComboFile[[#This Row],[2019/20 Revised estimate_Source]]*T_DataComboFile[[#This Row],[G&S reporting level indicator]]","v":0},{"$f":"T_DataComboFile[[#This Row],[2019/20 Preliminary outcome_Source]]*T_DataComboFile[[#This Row],[G&S reporting level indicator]]","v":0},{"$f":"T_DataComboFile[[#This Row],[2020/21 Original_Source]]*T_DataComboFile[[#This Row],[G&S reporting level indicator]]","v":0},{"$f":"T_DataComboFile[[#This Row],[2020/21 SAB_Source]]*T_DataComboFile[[#This Row],[G&S reporting level indicator]]","v":0},{"$f":"T_DataComboFile[[#This Row],[2020/21 Baseline_Source]]*T_DataComboFile[[#This Row],[G&S reporting level indicator]]","v":0},{"$f":"T_DataComboFile[[#This Row],[2021/22 Baseline_Source]]*T_DataComboFile[[#This Row],[G&S reporting level indicator]]","v":0},{"$f":"T_DataComboFile[[#This Row],[2022/23 Baseline_Source]]*T_DataComboFile[[#This Row],[G&S reporting level indicator]]","v":0},{"$f":"T_DataComboFile[[#This Row],[2023/24 Baseline_Source]]*T_DataComboFile[[#This Row],[G&S reporting level indicator]]","v":0},null,null,null,null,null,null,{"$f":"T_DataComboFile[[#This Row],[2021/22 Baseline]]+T_DataComboFile[[#This Row],[2021/22 Reduction]]+T_DataComboFile[[#This Row],[2021/22 Increase]]","v":0},{"$f":"T_DataComboFile[[#This Row],[2022/23 Baseline]]+T_DataComboFile[[#This Row],[2022/23 Reduction]]+T_DataComboFile[[#This Row],[2022/23 Increase]]","v":0},{"$f":"T_DataComboFile[[#This Row],[2023/24 Baseline]]+T_DataComboFile[[#This Row],[2023/24 Reduction]]+T_DataComboFile[[#This Row],[2023/24 Increase]]","v":0}]
[null,null,"2021_22","ENE2020",36,2,2,null,70580,36,2,2,null,"070580","36|02|02",1,2,4,44,45,"01|02|04|44|45","National","Small Business Development","Sector Policy and Research","Policy and Legislation",null,"Current","Transfers and subsidies","Provinces and municipalities","Municipalities","Municipal bank accounts",null,null,null,0,0,0,0,0,0,0,0,0,0,0,0,0,0,null,{"$f":"IF(T_DataComboFile[[#This Row],[G&S reporting level indicator]]=1,$AX$16,\"Not applicable\")","v":"Level 3"},{"$f":"IF(AND($AX$16=\"Level 3\",T_DataComboFile[[#This Row],[Econ3]] = \"Goods and services\"),IF(T_DataComboFile[[#This Row],[Econ4]] = T_DataComboFile[[#This Row],[Econ3]],1,0),IF(AND($AX$16=\"Level 4\",T_DataComboFile[[#This Row],[Econ4]] = \"Goods and services\"),0,1))","v":1},{"$f":"T_DataComboFile[[#This Row],[2016/17_Source]]*T_DataComboFile[[#This Row],[G&S reporting level indicator]]","v":0},{"$f":"T_DataComboFile[[#This Row],[2017/18_Source]]*T_DataComboFile[[#This Row],[G&S reporting level indicator]]","v":0},{"$f":"T_DataComboFile[[#This Row],[2018/19_Source]]*T_DataComboFile[[#This Row],[G&S reporting level indicator]]","v":0},{"$f":"T_DataComboFile[[#This Row],[2019/20 Main appropriation_Source]]*T_DataComboFile[[#This Row],[G&S reporting level indicator]]","v":0},{"$f":"T_DataComboFile[[#This Row],[2019/20 Adjusted appropriation_Source]]*T_DataComboFile[[#This Row],[G&S reporting level indicator]]","v":0},{"$f":"T_DataComboFile[[#This Row],[2019/20 Revised estimate_Source]]*T_DataComboFile[[#This Row],[G&S reporting level indicator]]","v":0},{"$f":"T_DataComboFile[[#This Row],[2019/20 Preliminary outcome_Source]]*T_DataComboFile[[#This Row],[G&S reporting level indicator]]","v":0},{"$f":"T_DataComboFile[[#This Row],[2020/21 Original_Source]]*T_DataComboFile[[#This Row],[G&S reporting level indicator]]","v":0},{"$f":"T_DataComboFile[[#This Row],[2020/21 SAB_Source]]*T_DataComboFile[[#This Row],[G&S reporting level indicator]]","v":0},{"$f":"T_DataComboFile[[#This Row],[2020/21 Baseline_Source]]*T_DataComboFile[[#This Row],[G&S reporting level indicator]]","v":0},{"$f":"T_DataComboFile[[#This Row],[2021/22 Baseline_Source]]*T_DataComboFile[[#This Row],[G&S reporting level indicator]]","v":0},{"$f":"T_DataComboFile[[#This Row],[2022/23 Baseline_Source]]*T_DataComboFile[[#This Row],[G&S reporting level indicator]]","v":0},{"$f":"T_DataComboFile[[#This Row],[2023/24 Baseline_Source]]*T_DataComboFile[[#This Row],[G&S reporting level indicator]]","v":0},null,null,null,null,null,null,{"$f":"T_DataComboFile[[#This Row],[2021/22 Baseline]]+T_DataComboFile[[#This Row],[2021/22 Reduction]]+T_DataComboFile[[#This Row],[2021/22 Increase]]","v":0},{"$f":"T_DataComboFile[[#This Row],[2022/23 Baseline]]+T_DataComboFile[[#This Row],[2022/23 Reduction]]+T_DataComboFile[[#This Row],[2022/23 Increase]]","v":0},{"$f":"T_DataComboFile[[#This Row],[2023/24 Baseline]]+T_DataComboFile[[#This Row],[2023/24 Reduction]]+T_DataComboFile[[#This Row],[2023/24 Increase]]","v":0}]
[null,null,"2021_22","ENE2020",36,2,2,null,70581,36,2,2,null,"070581","36|02|02",1,2,4,44,46,"01|02|04|44|46","National","Small Business Development","Sector Policy and Research","Policy and Legislation",null,"Current","Transfers and subsidies","Provinces and municipalities","Municipalities","Municipal agencies and funds",null,null,null,0,0,0,0,0,0,0,0,0,0,0,0,0,0,null,{"$f":"IF(T_DataComboFile[[#This Row],[G&S reporting level indicator]]=1,$AX$16,\"Not applicable\")","v":"Level 3"},{"$f":"IF(AND($AX$16=\"Level 3\",T_DataComboFile[[#This Row],[Econ3]] = \"Goods and services\"),IF(T_DataComboFile[[#This Row],[Econ4]] = T_DataComboFile[[#This Row],[Econ3]],1,0),IF(AND($AX$16=\"Level 4\",T_DataComboFile[[#This Row],[Econ4]] = \"Goods and services\"),0,1))","v":1},{"$f":"T_DataComboFile[[#This Row],[2016/17_Source]]*T_DataComboFile[[#This Row],[G&S reporting level indicator]]","v":0},{"$f":"T_DataComboFile[[#This Row],[2017/18_Source]]*T_DataComboFile[[#This Row],[G&S reporting level indicator]]","v":0},{"$f":"T_DataComboFile[[#This Row],[2018/19_Source]]*T_DataComboFile[[#This Row],[G&S reporting level indicator]]","v":0},{"$f":"T_DataComboFile[[#This Row],[2019/20 Main appropriation_Source]]*T_DataComboFile[[#This Row],[G&S reporting level indicator]]","v":0},{"$f":"T_DataComboFile[[#This Row],[2019/20 Adjusted appropriation_Source]]*T_DataComboFile[[#This Row],[G&S reporting level indicator]]","v":0},{"$f":"T_DataComboFile[[#This Row],[2019/20 Revised estimate_Source]]*T_DataComboFile[[#This Row],[G&S reporting level indicator]]","v":0},{"$f":"T_DataComboFile[[#This Row],[2019/20 Preliminary outcome_Source]]*T_DataComboFile[[#This Row],[G&S reporting level indicator]]","v":0},{"$f":"T_DataComboFile[[#This Row],[2020/21 Original_Source]]*T_DataComboFile[[#This Row],[G&S reporting level indicator]]","v":0},{"$f":"T_DataComboFile[[#This Row],[2020/21 SAB_Source]]*T_DataComboFile[[#This Row],[G&S reporting level indicator]]","v":0},{"$f":"T_DataComboFile[[#This Row],[2020/21 Baseline_Source]]*T_DataComboFile[[#This Row],[G&S reporting level indicator]]","v":0},{"$f":"T_DataComboFile[[#This Row],[2021/22 Baseline_Source]]*T_DataComboFile[[#This Row],[G&S reporting level indicator]]","v":0},{"$f":"T_DataComboFile[[#This Row],[2022/23 Baseline_Source]]*T_DataComboFile[[#This Row],[G&S reporting level indicator]]","v":0},{"$f":"T_DataComboFile[[#This Row],[2023/24 Baseline_Source]]*T_DataComboFile[[#This Row],[G&S reporting level indicator]]","v":0},null,null,null,null,null,null,{"$f":"T_DataComboFile[[#This Row],[2021/22 Baseline]]+T_DataComboFile[[#This Row],[2021/22 Reduction]]+T_DataComboFile[[#This Row],[2021/22 Increase]]","v":0},{"$f":"T_DataComboFile[[#This Row],[2022/23 Baseline]]+T_DataComboFile[[#This Row],[2022/23 Reduction]]+T_DataComboFile[[#This Row],[2022/23 Increase]]","v":0},{"$f":"T_DataComboFile[[#This Row],[2023/24 Baseline]]+T_DataComboFile[[#This Row],[2023/24 Reduction]]+T_DataComboFile[[#This Row],[2023/24 Increase]]","v":0}]
[null,null,"2021_22","ENE2020",36,2,2,null,70582,36,2,2,null,"070582","36|02|02",1,2,5,45,47,"01|02|05|45|47","National","Small Business Development","Sector Policy and Research","Policy and Legislation",null,"Current","Transfers and subsidies","Departmental agencies and accounts","Social security funds","Social security funds",null,null,null,0,0,0,0,0,0,0,0,0,0,0,0,0,0,null,{"$f":"IF(T_DataComboFile[[#This Row],[G&S reporting level indicator]]=1,$AX$16,\"Not applicable\")","v":"Level 3"},{"$f":"IF(AND($AX$16=\"Level 3\",T_DataComboFile[[#This Row],[Econ3]] = \"Goods and services\"),IF(T_DataComboFile[[#This Row],[Econ4]] = T_DataComboFile[[#This Row],[Econ3]],1,0),IF(AND($AX$16=\"Level 4\",T_DataComboFile[[#This Row],[Econ4]] = \"Goods and services\"),0,1))","v":1},{"$f":"T_DataComboFile[[#This Row],[2016/17_Source]]*T_DataComboFile[[#This Row],[G&S reporting level indicator]]","v":0},{"$f":"T_DataComboFile[[#This Row],[2017/18_Source]]*T_DataComboFile[[#This Row],[G&S reporting level indicator]]","v":0},{"$f":"T_DataComboFile[[#This Row],[2018/19_Source]]*T_DataComboFile[[#This Row],[G&S reporting level indicator]]","v":0},{"$f":"T_DataComboFile[[#This Row],[2019/20 Main appropriation_Source]]*T_DataComboFile[[#This Row],[G&S reporting level indicator]]","v":0},{"$f":"T_DataComboFile[[#This Row],[2019/20 Adjusted appropriation_Source]]*T_DataComboFile[[#This Row],[G&S reporting level indicator]]","v":0},{"$f":"T_DataComboFile[[#This Row],[2019/20 Revised estimate_Source]]*T_DataComboFile[[#This Row],[G&S reporting level indicator]]","v":0},{"$f":"T_DataComboFile[[#This Row],[2019/20 Preliminary outcome_Source]]*T_DataComboFile[[#This Row],[G&S reporting level indicator]]","v":0},{"$f":"T_DataComboFile[[#This Row],[2020/21 Original_Source]]*T_DataComboFile[[#This Row],[G&S reporting level indicator]]","v":0},{"$f":"T_DataComboFile[[#This Row],[2020/21 SAB_Source]]*T_DataComboFile[[#This Row],[G&S reporting level indicator]]","v":0},{"$f":"T_DataComboFile[[#This Row],[2020/21 Baseline_Source]]*T_DataComboFile[[#This Row],[G&S reporting level indicator]]","v":0},{"$f":"T_DataComboFile[[#This Row],[2021/22 Baseline_Source]]*T_DataComboFile[[#This Row],[G&S reporting level indicator]]","v":0},{"$f":"T_DataComboFile[[#This Row],[2022/23 Baseline_Source]]*T_DataComboFile[[#This Row],[G&S reporting level indicator]]","v":0},{"$f":"T_DataComboFile[[#This Row],[2023/24 Baseline_Source]]*T_DataComboFile[[#This Row],[G&S reporting level indicator]]","v":0},null,null,null,null,null,null,{"$f":"T_DataComboFile[[#This Row],[2021/22 Baseline]]+T_DataComboFile[[#This Row],[2021/22 Reduction]]+T_DataComboFile[[#This Row],[2021/22 Increase]]","v":0},{"$f":"T_DataComboFile[[#This Row],[2022/23 Baseline]]+T_DataComboFile[[#This Row],[2022/23 Reduction]]+T_DataComboFile[[#This Row],[2022/23 Increase]]","v":0},{"$f":"T_DataComboFile[[#This Row],[2023/24 Baseline]]+T_DataComboFile[[#This Row],[2023/24 Reduction]]+T_DataComboFile[[#This Row],[2023/24 Increase]]","v":0}]
[null,null,"2021_22","ENE2020",36,2,2,null,70583,36,2,2,null,"070583","36|02|02",1,2,5,46,48,"01|02|05|46|48","National","Small Business Development","Sector Policy and Research","Policy and Legislation",null,"Current","Transfers and subsidies","Departmental agencies and accounts","Departmental agencies (non-business entities)","Departmental agencies (non-business entities)",null,null,null,0,0,0,0,0,0,0,0,0,0,0,0,0,0,null,{"$f":"IF(T_DataComboFile[[#This Row],[G&S reporting level indicator]]=1,$AX$16,\"Not applicable\")","v":"Level 3"},{"$f":"IF(AND($AX$16=\"Level 3\",T_DataComboFile[[#This Row],[Econ3]] = \"Goods and services\"),IF(T_DataComboFile[[#This Row],[Econ4]] = T_DataComboFile[[#This Row],[Econ3]],1,0),IF(AND($AX$16=\"Level 4\",T_DataComboFile[[#This Row],[Econ4]] = \"Goods and services\"),0,1))","v":1},{"$f":"T_DataComboFile[[#This Row],[2016/17_Source]]*T_DataComboFile[[#This Row],[G&S reporting level indicator]]","v":0},{"$f":"T_DataComboFile[[#This Row],[2017/18_Source]]*T_DataComboFile[[#This Row],[G&S reporting level indicator]]","v":0},{"$f":"T_DataComboFile[[#This Row],[2018/19_Source]]*T_DataComboFile[[#This Row],[G&S reporting level indicator]]","v":0},{"$f":"T_DataComboFile[[#This Row],[2019/20 Main appropriation_Source]]*T_DataComboFile[[#This Row],[G&S reporting level indicator]]","v":0},{"$f":"T_DataComboFile[[#This Row],[2019/20 Adjusted appropriation_Source]]*T_DataComboFile[[#This Row],[G&S reporting level indicator]]","v":0},{"$f":"T_DataComboFile[[#This Row],[2019/20 Revised estimate_Source]]*T_DataComboFile[[#This Row],[G&S reporting level indicator]]","v":0},{"$f":"T_DataComboFile[[#This Row],[2019/20 Preliminary outcome_Source]]*T_DataComboFile[[#This Row],[G&S reporting level indicator]]","v":0},{"$f":"T_DataComboFile[[#This Row],[2020/21 Original_Source]]*T_DataComboFile[[#This Row],[G&S reporting level indicator]]","v":0},{"$f":"T_DataComboFile[[#This Row],[2020/21 SAB_Source]]*T_DataComboFile[[#This Row],[G&S reporting level indicator]]","v":0},{"$f":"T_DataComboFile[[#This Row],[2020/21 Baseline_Source]]*T_DataComboFile[[#This Row],[G&S reporting level indicator]]","v":0},{"$f":"T_DataComboFile[[#This Row],[2021/22 Baseline_Source]]*T_DataComboFile[[#This Row],[G&S reporting level indicator]]","v":0},{"$f":"T_DataComboFile[[#This Row],[2022/23 Baseline_Source]]*T_DataComboFile[[#This Row],[G&S reporting level indicator]]","v":0},{"$f":"T_DataComboFile[[#This Row],[2023/24 Baseline_Source]]*T_DataComboFile[[#This Row],[G&S reporting level indicator]]","v":0},null,null,null,null,null,null,{"$f":"T_DataComboFile[[#This Row],[2021/22 Baseline]]+T_DataComboFile[[#This Row],[2021/22 Reduction]]+T_DataComboFile[[#This Row],[2021/22 Increase]]","v":0},{"$f":"T_DataComboFile[[#This Row],[2022/23 Baseline]]+T_DataComboFile[[#This Row],[2022/23 Reduction]]+T_DataComboFile[[#This Row],[2022/23 Increase]]","v":0},{"$f":"T_DataComboFile[[#This Row],[2023/24 Baseline]]+T_DataComboFile[[#This Row],[2023/24 Reduction]]+T_DataComboFile[[#This Row],[2023/24 Increase]]","v":0}]
[null,null,"2021_22","ENE2020",36,2,2,null,70584,36,2,2,null,"070584","36|02|02",1,2,6,47,49,"01|02|06|47|49","National","Small Business Development","Sector Policy and Research","Policy and Legislation",null,"Current","Transfers and subsidies","Higher education institutions","Higher education institutions","Higher education institutions",null,null,null,0,0,0,0,0,0,0,0,0,0,0,0,0,0,null,{"$f":"IF(T_DataComboFile[[#This Row],[G&S reporting level indicator]]=1,$AX$16,\"Not applicable\")","v":"Level 3"},{"$f":"IF(AND($AX$16=\"Level 3\",T_DataComboFile[[#This Row],[Econ3]] = \"Goods and services\"),IF(T_DataComboFile[[#This Row],[Econ4]] = T_DataComboFile[[#This Row],[Econ3]],1,0),IF(AND($AX$16=\"Level 4\",T_DataComboFile[[#This Row],[Econ4]] = \"Goods and services\"),0,1))","v":1},{"$f":"T_DataComboFile[[#This Row],[2016/17_Source]]*T_DataComboFile[[#This Row],[G&S reporting level indicator]]","v":0},{"$f":"T_DataComboFile[[#This Row],[2017/18_Source]]*T_DataComboFile[[#This Row],[G&S reporting level indicator]]","v":0},{"$f":"T_DataComboFile[[#This Row],[2018/19_Source]]*T_DataComboFile[[#This Row],[G&S reporting level indicator]]","v":0},{"$f":"T_DataComboFile[[#This Row],[2019/20 Main appropriation_Source]]*T_DataComboFile[[#This Row],[G&S reporting level indicator]]","v":0},{"$f":"T_DataComboFile[[#This Row],[2019/20 Adjusted appropriation_Source]]*T_DataComboFile[[#This Row],[G&S reporting level indicator]]","v":0},{"$f":"T_DataComboFile[[#This Row],[2019/20 Revised estimate_Source]]*T_DataComboFile[[#This Row],[G&S reporting level indicator]]","v":0},{"$f":"T_DataComboFile[[#This Row],[2019/20 Preliminary outcome_Source]]*T_DataComboFile[[#This Row],[G&S reporting level indicator]]","v":0},{"$f":"T_DataComboFile[[#This Row],[2020/21 Original_Source]]*T_DataComboFile[[#This Row],[G&S reporting level indicator]]","v":0},{"$f":"T_DataComboFile[[#This Row],[2020/21 SAB_Source]]*T_DataComboFile[[#This Row],[G&S reporting level indicator]]","v":0},{"$f":"T_DataComboFile[[#This Row],[2020/21 Baseline_Source]]*T_DataComboFile[[#This Row],[G&S reporting level indicator]]","v":0},{"$f":"T_DataComboFile[[#This Row],[2021/22 Baseline_Source]]*T_DataComboFile[[#This Row],[G&S reporting level indicator]]","v":0},{"$f":"T_DataComboFile[[#This Row],[2022/23 Baseline_Source]]*T_DataComboFile[[#This Row],[G&S reporting level indicator]]","v":0},{"$f":"T_DataComboFile[[#This Row],[2023/24 Baseline_Source]]*T_DataComboFile[[#This Row],[G&S reporting level indicator]]","v":0},null,null,null,null,null,null,{"$f":"T_DataComboFile[[#This Row],[2021/22 Baseline]]+T_DataComboFile[[#This Row],[2021/22 Reduction]]+T_DataComboFile[[#This Row],[2021/22 Increase]]","v":0},{"$f":"T_DataComboFile[[#This Row],[2022/23 Baseline]]+T_DataComboFile[[#This Row],[2022/23 Reduction]]+T_DataComboFile[[#This Row],[2022/23 Increase]]","v":0},{"$f":"T_DataComboFile[[#This Row],[2023/24 Baseline]]+T_DataComboFile[[#This Row],[2023/24 Reduction]]+T_DataComboFile[[#This Row],[2023/24 Increase]]","v":0}]
[null,null,"2021_22","ENE2020",36,2,2,null,70585,36,2,2,null,"070585","36|02|02",1,2,7,48,50,"01|02|07|48|50","National","Small Business Development","Sector Policy and Research","Policy and Legislation",null,"Current","Transfers and subsidies","Foreign governments and international organisations","Foreign governments and international organisations","Foreign governments and international organisations",null,null,null,0,0,0,0,0,0,0,0,0,0,0,0,0,0,null,{"$f":"IF(T_DataComboFile[[#This Row],[G&S reporting level indicator]]=1,$AX$16,\"Not applicable\")","v":"Level 3"},{"$f":"IF(AND($AX$16=\"Level 3\",T_DataComboFile[[#This Row],[Econ3]] = \"Goods and services\"),IF(T_DataComboFile[[#This Row],[Econ4]] = T_DataComboFile[[#This Row],[Econ3]],1,0),IF(AND($AX$16=\"Level 4\",T_DataComboFile[[#This Row],[Econ4]] = \"Goods and services\"),0,1))","v":1},{"$f":"T_DataComboFile[[#This Row],[2016/17_Source]]*T_DataComboFile[[#This Row],[G&S reporting level indicator]]","v":0},{"$f":"T_DataComboFile[[#This Row],[2017/18_Source]]*T_DataComboFile[[#This Row],[G&S reporting level indicator]]","v":0},{"$f":"T_DataComboFile[[#This Row],[2018/19_Source]]*T_DataComboFile[[#This Row],[G&S reporting level indicator]]","v":0},{"$f":"T_DataComboFile[[#This Row],[2019/20 Main appropriation_Source]]*T_DataComboFile[[#This Row],[G&S reporting level indicator]]","v":0},{"$f":"T_DataComboFile[[#This Row],[2019/20 Adjusted appropriation_Source]]*T_DataComboFile[[#This Row],[G&S reporting level indicator]]","v":0},{"$f":"T_DataComboFile[[#This Row],[2019/20 Revised estimate_Source]]*T_DataComboFile[[#This Row],[G&S reporting level indicator]]","v":0},{"$f":"T_DataComboFile[[#This Row],[2019/20 Preliminary outcome_Source]]*T_DataComboFile[[#This Row],[G&S reporting level indicator]]","v":0},{"$f":"T_DataComboFile[[#This Row],[2020/21 Original_Source]]*T_DataComboFile[[#This Row],[G&S reporting level indicator]]","v":0},{"$f":"T_DataComboFile[[#This Row],[2020/21 SAB_Source]]*T_DataComboFile[[#This Row],[G&S reporting level indicator]]","v":0},{"$f":"T_DataComboFile[[#This Row],[2020/21 Baseline_Source]]*T_DataComboFile[[#This Row],[G&S reporting level indicator]]","v":0},{"$f":"T_DataComboFile[[#This Row],[2021/22 Baseline_Source]]*T_DataComboFile[[#This Row],[G&S reporting level indicator]]","v":0},{"$f":"T_DataComboFile[[#This Row],[2022/23 Baseline_Source]]*T_DataComboFile[[#This Row],[G&S reporting level indicator]]","v":0},{"$f":"T_DataComboFile[[#This Row],[2023/24 Baseline_Source]]*T_DataComboFile[[#This Row],[G&S reporting level indicator]]","v":0},null,null,null,null,null,null,{"$f":"T_DataComboFile[[#This Row],[2021/22 Baseline]]+T_DataComboFile[[#This Row],[2021/22 Reduction]]+T_DataComboFile[[#This Row],[2021/22 Increase]]","v":0},{"$f":"T_DataComboFile[[#This Row],[2022/23 Baseline]]+T_DataComboFile[[#This Row],[2022/23 Reduction]]+T_DataComboFile[[#This Row],[2022/23 Increase]]","v":0},{"$f":"T_DataComboFile[[#This Row],[2023/24 Baseline]]+T_DataComboFile[[#This Row],[2023/24 Reduction]]+T_DataComboFile[[#This Row],[2023/24 Increase]]","v":0}]
[null,null,"2021_22","ENE2020",36,2,2,null,70586,36,2,2,null,"070586","36|02|02",1,2,8,49,51,"01|02|08|49|51","National","Small Business Development","Sector Policy and Research","Policy and Legislation",null,"Current","Transfers and subsidies","Public corporations and private enterprises","Public corporations","Subsidies on products and production (pc)",null,null,null,0,0,0,0,0,0,0,0,0,0,0,0,0,0,null,{"$f":"IF(T_DataComboFile[[#This Row],[G&S reporting level indicator]]=1,$AX$16,\"Not applicable\")","v":"Level 3"},{"$f":"IF(AND($AX$16=\"Level 3\",T_DataComboFile[[#This Row],[Econ3]] = \"Goods and services\"),IF(T_DataComboFile[[#This Row],[Econ4]] = T_DataComboFile[[#This Row],[Econ3]],1,0),IF(AND($AX$16=\"Level 4\",T_DataComboFile[[#This Row],[Econ4]] = \"Goods and services\"),0,1))","v":1},{"$f":"T_DataComboFile[[#This Row],[2016/17_Source]]*T_DataComboFile[[#This Row],[G&S reporting level indicator]]","v":0},{"$f":"T_DataComboFile[[#This Row],[2017/18_Source]]*T_DataComboFile[[#This Row],[G&S reporting level indicator]]","v":0},{"$f":"T_DataComboFile[[#This Row],[2018/19_Source]]*T_DataComboFile[[#This Row],[G&S reporting level indicator]]","v":0},{"$f":"T_DataComboFile[[#This Row],[2019/20 Main appropriation_Source]]*T_DataComboFile[[#This Row],[G&S reporting level indicator]]","v":0},{"$f":"T_DataComboFile[[#This Row],[2019/20 Adjusted appropriation_Source]]*T_DataComboFile[[#This Row],[G&S reporting level indicator]]","v":0},{"$f":"T_DataComboFile[[#This Row],[2019/20 Revised estimate_Source]]*T_DataComboFile[[#This Row],[G&S reporting level indicator]]","v":0},{"$f":"T_DataComboFile[[#This Row],[2019/20 Preliminary outcome_Source]]*T_DataComboFile[[#This Row],[G&S reporting level indicator]]","v":0},{"$f":"T_DataComboFile[[#This Row],[2020/21 Original_Source]]*T_DataComboFile[[#This Row],[G&S reporting level indicator]]","v":0},{"$f":"T_DataComboFile[[#This Row],[2020/21 SAB_Source]]*T_DataComboFile[[#This Row],[G&S reporting level indicator]]","v":0},{"$f":"T_DataComboFile[[#This Row],[2020/21 Baseline_Source]]*T_DataComboFile[[#This Row],[G&S reporting level indicator]]","v":0},{"$f":"T_DataComboFile[[#This Row],[2021/22 Baseline_Source]]*T_DataComboFile[[#This Row],[G&S reporting level indicator]]","v":0},{"$f":"T_DataComboFile[[#This Row],[2022/23 Baseline_Source]]*T_DataComboFile[[#This Row],[G&S reporting level indicator]]","v":0},{"$f":"T_DataComboFile[[#This Row],[2023/24 Baseline_Source]]*T_DataComboFile[[#This Row],[G&S reporting level indicator]]","v":0},null,null,null,null,null,null,{"$f":"T_DataComboFile[[#This Row],[2021/22 Baseline]]+T_DataComboFile[[#This Row],[2021/22 Reduction]]+T_DataComboFile[[#This Row],[2021/22 Increase]]","v":0},{"$f":"T_DataComboFile[[#This Row],[2022/23 Baseline]]+T_DataComboFile[[#This Row],[2022/23 Reduction]]+T_DataComboFile[[#This Row],[2022/23 Increase]]","v":0},{"$f":"T_DataComboFile[[#This Row],[2023/24 Baseline]]+T_DataComboFile[[#This Row],[2023/24 Reduction]]+T_DataComboFile[[#This Row],[2023/24 Increase]]","v":0}]
[null,null,"2021_22","ENE2020",36,2,2,null,70587,36,2,2,null,"070587","36|02|02",1,2,8,49,52,"01|02|08|49|52","National","Small Business Development","Sector Policy and Research","Policy and Legislation",null,"Current","Transfers and subsidies","Public corporations and private enterprises","Public corporations","Other transfers to public corporations",null,null,null,0,0,0,0,0,0,0,0,0,0,0,0,0,0,null,{"$f":"IF(T_DataComboFile[[#This Row],[G&S reporting level indicator]]=1,$AX$16,\"Not applicable\")","v":"Level 3"},{"$f":"IF(AND($AX$16=\"Level 3\",T_DataComboFile[[#This Row],[Econ3]] = \"Goods and services\"),IF(T_DataComboFile[[#This Row],[Econ4]] = T_DataComboFile[[#This Row],[Econ3]],1,0),IF(AND($AX$16=\"Level 4\",T_DataComboFile[[#This Row],[Econ4]] = \"Goods and services\"),0,1))","v":1},{"$f":"T_DataComboFile[[#This Row],[2016/17_Source]]*T_DataComboFile[[#This Row],[G&S reporting level indicator]]","v":0},{"$f":"T_DataComboFile[[#This Row],[2017/18_Source]]*T_DataComboFile[[#This Row],[G&S reporting level indicator]]","v":0},{"$f":"T_DataComboFile[[#This Row],[2018/19_Source]]*T_DataComboFile[[#This Row],[G&S reporting level indicator]]","v":0},{"$f":"T_DataComboFile[[#This Row],[2019/20 Main appropriation_Source]]*T_DataComboFile[[#This Row],[G&S reporting level indicator]]","v":0},{"$f":"T_DataComboFile[[#This Row],[2019/20 Adjusted appropriation_Source]]*T_DataComboFile[[#This Row],[G&S reporting level indicator]]","v":0},{"$f":"T_DataComboFile[[#This Row],[2019/20 Revised estimate_Source]]*T_DataComboFile[[#This Row],[G&S reporting level indicator]]","v":0},{"$f":"T_DataComboFile[[#This Row],[2019/20 Preliminary outcome_Source]]*T_DataComboFile[[#This Row],[G&S reporting level indicator]]","v":0},{"$f":"T_DataComboFile[[#This Row],[2020/21 Original_Source]]*T_DataComboFile[[#This Row],[G&S reporting level indicator]]","v":0},{"$f":"T_DataComboFile[[#This Row],[2020/21 SAB_Source]]*T_DataComboFile[[#This Row],[G&S reporting level indicator]]","v":0},{"$f":"T_DataComboFile[[#This Row],[2020/21 Baseline_Source]]*T_DataComboFile[[#This Row],[G&S reporting level indicator]]","v":0},{"$f":"T_DataComboFile[[#This Row],[2021/22 Baseline_Source]]*T_DataComboFile[[#This Row],[G&S reporting level indicator]]","v":0},{"$f":"T_DataComboFile[[#This Row],[2022/23 Baseline_Source]]*T_DataComboFile[[#This Row],[G&S reporting level indicator]]","v":0},{"$f":"T_DataComboFile[[#This Row],[2023/24 Baseline_Source]]*T_DataComboFile[[#This Row],[G&S reporting level indicator]]","v":0},null,null,null,null,null,null,{"$f":"T_DataComboFile[[#This Row],[2021/22 Baseline]]+T_DataComboFile[[#This Row],[2021/22 Reduction]]+T_DataComboFile[[#This Row],[2021/22 Increase]]","v":0},{"$f":"T_DataComboFile[[#This Row],[2022/23 Baseline]]+T_DataComboFile[[#This Row],[2022/23 Reduction]]+T_DataComboFile[[#This Row],[2022/23 Increase]]","v":0},{"$f":"T_DataComboFile[[#This Row],[2023/24 Baseline]]+T_DataComboFile[[#This Row],[2023/24 Reduction]]+T_DataComboFile[[#This Row],[2023/24 Increase]]","v":0}]
[null,null,"2021_22","ENE2020",36,2,2,null,70588,36,2,2,null,"070588","36|02|02",1,2,8,50,53,"01|02|08|50|53","National","Small Business Development","Sector Policy and Research","Policy and Legislation",null,"Current","Transfers and subsidies","Public corporations and private enterprises","Private enterprises","Subsidies on products and production (pe)",null,null,null,0,0,0,0,0,0,0,0,0,0,0,0,0,0,null,{"$f":"IF(T_DataComboFile[[#This Row],[G&S reporting level indicator]]=1,$AX$16,\"Not applicable\")","v":"Level 3"},{"$f":"IF(AND($AX$16=\"Level 3\",T_DataComboFile[[#This Row],[Econ3]] = \"Goods and services\"),IF(T_DataComboFile[[#This Row],[Econ4]] = T_DataComboFile[[#This Row],[Econ3]],1,0),IF(AND($AX$16=\"Level 4\",T_DataComboFile[[#This Row],[Econ4]] = \"Goods and services\"),0,1))","v":1},{"$f":"T_DataComboFile[[#This Row],[2016/17_Source]]*T_DataComboFile[[#This Row],[G&S reporting level indicator]]","v":0},{"$f":"T_DataComboFile[[#This Row],[2017/18_Source]]*T_DataComboFile[[#This Row],[G&S reporting level indicator]]","v":0},{"$f":"T_DataComboFile[[#This Row],[2018/19_Source]]*T_DataComboFile[[#This Row],[G&S reporting level indicator]]","v":0},{"$f":"T_DataComboFile[[#This Row],[2019/20 Main appropriation_Source]]*T_DataComboFile[[#This Row],[G&S reporting level indicator]]","v":0},{"$f":"T_DataComboFile[[#This Row],[2019/20 Adjusted appropriation_Source]]*T_DataComboFile[[#This Row],[G&S reporting level indicator]]","v":0},{"$f":"T_DataComboFile[[#This Row],[2019/20 Revised estimate_Source]]*T_DataComboFile[[#This Row],[G&S reporting level indicator]]","v":0},{"$f":"T_DataComboFile[[#This Row],[2019/20 Preliminary outcome_Source]]*T_DataComboFile[[#This Row],[G&S reporting level indicator]]","v":0},{"$f":"T_DataComboFile[[#This Row],[2020/21 Original_Source]]*T_DataComboFile[[#This Row],[G&S reporting level indicator]]","v":0},{"$f":"T_DataComboFile[[#This Row],[2020/21 SAB_Source]]*T_DataComboFile[[#This Row],[G&S reporting level indicator]]","v":0},{"$f":"T_DataComboFile[[#This Row],[2020/21 Baseline_Source]]*T_DataComboFile[[#This Row],[G&S reporting level indicator]]","v":0},{"$f":"T_DataComboFile[[#This Row],[2021/22 Baseline_Source]]*T_DataComboFile[[#This Row],[G&S reporting level indicator]]","v":0},{"$f":"T_DataComboFile[[#This Row],[2022/23 Baseline_Source]]*T_DataComboFile[[#This Row],[G&S reporting level indicator]]","v":0},{"$f":"T_DataComboFile[[#This Row],[2023/24 Baseline_Source]]*T_DataComboFile[[#This Row],[G&S reporting level indicator]]","v":0},null,null,null,null,null,null,{"$f":"T_DataComboFile[[#This Row],[2021/22 Baseline]]+T_DataComboFile[[#This Row],[2021/22 Reduction]]+T_DataComboFile[[#This Row],[2021/22 Increase]]","v":0},{"$f":"T_DataComboFile[[#This Row],[2022/23 Baseline]]+T_DataComboFile[[#This Row],[2022/23 Reduction]]+T_DataComboFile[[#This Row],[2022/23 Increase]]","v":0},{"$f":"T_DataComboFile[[#This Row],[2023/24 Baseline]]+T_DataComboFile[[#This Row],[2023/24 Reduction]]+T_DataComboFile[[#This Row],[2023/24 Increase]]","v":0}]
[null,null,"2021_22","ENE2020",36,2,2,null,70589,36,2,2,null,"070589","36|02|02",1,2,8,50,54,"01|02|08|50|54","National","Small Business Development","Sector Policy and Research","Policy and Legislation",null,"Current","Transfers and subsidies","Public corporations and private enterprises","Private enterprises","Other transfers to private enterprises",null,null,null,0,0,0,0,0,0,0,0,0,0,0,0,0,0,null,{"$f":"IF(T_DataComboFile[[#This Row],[G&S reporting level indicator]]=1,$AX$16,\"Not applicable\")","v":"Level 3"},{"$f":"IF(AND($AX$16=\"Level 3\",T_DataComboFile[[#This Row],[Econ3]] = \"Goods and services\"),IF(T_DataComboFile[[#This Row],[Econ4]] = T_DataComboFile[[#This Row],[Econ3]],1,0),IF(AND($AX$16=\"Level 4\",T_DataComboFile[[#This Row],[Econ4]] = \"Goods and services\"),0,1))","v":1},{"$f":"T_DataComboFile[[#This Row],[2016/17_Source]]*T_DataComboFile[[#This Row],[G&S reporting level indicator]]","v":0},{"$f":"T_DataComboFile[[#This Row],[2017/18_Source]]*T_DataComboFile[[#This Row],[G&S reporting level indicator]]","v":0},{"$f":"T_DataComboFile[[#This Row],[2018/19_Source]]*T_DataComboFile[[#This Row],[G&S reporting level indicator]]","v":0},{"$f":"T_DataComboFile[[#This Row],[2019/20 Main appropriation_Source]]*T_DataComboFile[[#This Row],[G&S reporting level indicator]]","v":0},{"$f":"T_DataComboFile[[#This Row],[2019/20 Adjusted appropriation_Source]]*T_DataComboFile[[#This Row],[G&S reporting level indicator]]","v":0},{"$f":"T_DataComboFile[[#This Row],[2019/20 Revised estimate_Source]]*T_DataComboFile[[#This Row],[G&S reporting level indicator]]","v":0},{"$f":"T_DataComboFile[[#This Row],[2019/20 Preliminary outcome_Source]]*T_DataComboFile[[#This Row],[G&S reporting level indicator]]","v":0},{"$f":"T_DataComboFile[[#This Row],[2020/21 Original_Source]]*T_DataComboFile[[#This Row],[G&S reporting level indicator]]","v":0},{"$f":"T_DataComboFile[[#This Row],[2020/21 SAB_Source]]*T_DataComboFile[[#This Row],[G&S reporting level indicator]]","v":0},{"$f":"T_DataComboFile[[#This Row],[2020/21 Baseline_Source]]*T_DataComboFile[[#This Row],[G&S reporting level indicator]]","v":0},{"$f":"T_DataComboFile[[#This Row],[2021/22 Baseline_Source]]*T_DataComboFile[[#This Row],[G&S reporting level indicator]]","v":0},{"$f":"T_DataComboFile[[#This Row],[2022/23 Baseline_Source]]*T_DataComboFile[[#This Row],[G&S reporting level indicator]]","v":0},{"$f":"T_DataComboFile[[#This Row],[2023/24 Baseline_Source]]*T_DataComboFile[[#This Row],[G&S reporting level indicator]]","v":0},null,null,null,null,null,null,{"$f":"T_DataComboFile[[#This Row],[2021/22 Baseline]]+T_DataComboFile[[#This Row],[2021/22 Reduction]]+T_DataComboFile[[#This Row],[2021/22 Increase]]","v":0},{"$f":"T_DataComboFile[[#This Row],[2022/23 Baseline]]+T_DataComboFile[[#This Row],[2022/23 Reduction]]+T_DataComboFile[[#This Row],[2022/23 Increase]]","v":0},{"$f":"T_DataComboFile[[#This Row],[2023/24 Baseline]]+T_DataComboFile[[#This Row],[2023/24 Reduction]]+T_DataComboFile[[#This Row],[2023/24 Increase]]","v":0}]
[null,null,"2021_22","ENE2020",36,2,2,null,70590,36,2,2,null,"070590","36|02|02",1,2,9,51,55,"01|02|09|51|55","National","Small Business Development","Sector Policy and Research","Policy and Legislation",null,"Current","Transfers and subsidies","Non-profit institutions","Non-profit institutions","Non-profit institutions",null,null,null,0,0,0,0,0,0,0,0,0,0,0,0,0,0,null,{"$f":"IF(T_DataComboFile[[#This Row],[G&S reporting level indicator]]=1,$AX$16,\"Not applicable\")","v":"Level 3"},{"$f":"IF(AND($AX$16=\"Level 3\",T_DataComboFile[[#This Row],[Econ3]] = \"Goods and services\"),IF(T_DataComboFile[[#This Row],[Econ4]] = T_DataComboFile[[#This Row],[Econ3]],1,0),IF(AND($AX$16=\"Level 4\",T_DataComboFile[[#This Row],[Econ4]] = \"Goods and services\"),0,1))","v":1},{"$f":"T_DataComboFile[[#This Row],[2016/17_Source]]*T_DataComboFile[[#This Row],[G&S reporting level indicator]]","v":0},{"$f":"T_DataComboFile[[#This Row],[2017/18_Source]]*T_DataComboFile[[#This Row],[G&S reporting level indicator]]","v":0},{"$f":"T_DataComboFile[[#This Row],[2018/19_Source]]*T_DataComboFile[[#This Row],[G&S reporting level indicator]]","v":0},{"$f":"T_DataComboFile[[#This Row],[2019/20 Main appropriation_Source]]*T_DataComboFile[[#This Row],[G&S reporting level indicator]]","v":0},{"$f":"T_DataComboFile[[#This Row],[2019/20 Adjusted appropriation_Source]]*T_DataComboFile[[#This Row],[G&S reporting level indicator]]","v":0},{"$f":"T_DataComboFile[[#This Row],[2019/20 Revised estimate_Source]]*T_DataComboFile[[#This Row],[G&S reporting level indicator]]","v":0},{"$f":"T_DataComboFile[[#This Row],[2019/20 Preliminary outcome_Source]]*T_DataComboFile[[#This Row],[G&S reporting level indicator]]","v":0},{"$f":"T_DataComboFile[[#This Row],[2020/21 Original_Source]]*T_DataComboFile[[#This Row],[G&S reporting level indicator]]","v":0},{"$f":"T_DataComboFile[[#This Row],[2020/21 SAB_Source]]*T_DataComboFile[[#This Row],[G&S reporting level indicator]]","v":0},{"$f":"T_DataComboFile[[#This Row],[2020/21 Baseline_Source]]*T_DataComboFile[[#This Row],[G&S reporting level indicator]]","v":0},{"$f":"T_DataComboFile[[#This Row],[2021/22 Baseline_Source]]*T_DataComboFile[[#This Row],[G&S reporting level indicator]]","v":0},{"$f":"T_DataComboFile[[#This Row],[2022/23 Baseline_Source]]*T_DataComboFile[[#This Row],[G&S reporting level indicator]]","v":0},{"$f":"T_DataComboFile[[#This Row],[2023/24 Baseline_Source]]*T_DataComboFile[[#This Row],[G&S reporting level indicator]]","v":0},null,null,null,null,null,null,{"$f":"T_DataComboFile[[#This Row],[2021/22 Baseline]]+T_DataComboFile[[#This Row],[2021/22 Reduction]]+T_DataComboFile[[#This Row],[2021/22 Increase]]","v":0},{"$f":"T_DataComboFile[[#This Row],[2022/23 Baseline]]+T_DataComboFile[[#This Row],[2022/23 Reduction]]+T_DataComboFile[[#This Row],[2022/23 Increase]]","v":0},{"$f":"T_DataComboFile[[#This Row],[2023/24 Baseline]]+T_DataComboFile[[#This Row],[2023/24 Reduction]]+T_DataComboFile[[#This Row],[2023/24 Increase]]","v":0}]
[null,null,"2021_22","ENE2020",36,2,2,null,70591,36,2,2,null,"070591","36|02|02",1,2,10,52,56,"01|02|10|52|56","National","Small Business Development","Sector Policy and Research","Policy and Legislation",null,"Current","Transfers and subsidies","Households","Social benefits","Social benefits",null,null,null,0,0,0,0,0,0,0,0,0,0,0,0,0,0,null,{"$f":"IF(T_DataComboFile[[#This Row],[G&S reporting level indicator]]=1,$AX$16,\"Not applicable\")","v":"Level 3"},{"$f":"IF(AND($AX$16=\"Level 3\",T_DataComboFile[[#This Row],[Econ3]] = \"Goods and services\"),IF(T_DataComboFile[[#This Row],[Econ4]] = T_DataComboFile[[#This Row],[Econ3]],1,0),IF(AND($AX$16=\"Level 4\",T_DataComboFile[[#This Row],[Econ4]] = \"Goods and services\"),0,1))","v":1},{"$f":"T_DataComboFile[[#This Row],[2016/17_Source]]*T_DataComboFile[[#This Row],[G&S reporting level indicator]]","v":0},{"$f":"T_DataComboFile[[#This Row],[2017/18_Source]]*T_DataComboFile[[#This Row],[G&S reporting level indicator]]","v":0},{"$f":"T_DataComboFile[[#This Row],[2018/19_Source]]*T_DataComboFile[[#This Row],[G&S reporting level indicator]]","v":0},{"$f":"T_DataComboFile[[#This Row],[2019/20 Main appropriation_Source]]*T_DataComboFile[[#This Row],[G&S reporting level indicator]]","v":0},{"$f":"T_DataComboFile[[#This Row],[2019/20 Adjusted appropriation_Source]]*T_DataComboFile[[#This Row],[G&S reporting level indicator]]","v":0},{"$f":"T_DataComboFile[[#This Row],[2019/20 Revised estimate_Source]]*T_DataComboFile[[#This Row],[G&S reporting level indicator]]","v":0},{"$f":"T_DataComboFile[[#This Row],[2019/20 Preliminary outcome_Source]]*T_DataComboFile[[#This Row],[G&S reporting level indicator]]","v":0},{"$f":"T_DataComboFile[[#This Row],[2020/21 Original_Source]]*T_DataComboFile[[#This Row],[G&S reporting level indicator]]","v":0},{"$f":"T_DataComboFile[[#This Row],[2020/21 SAB_Source]]*T_DataComboFile[[#This Row],[G&S reporting level indicator]]","v":0},{"$f":"T_DataComboFile[[#This Row],[2020/21 Baseline_Source]]*T_DataComboFile[[#This Row],[G&S reporting level indicator]]","v":0},{"$f":"T_DataComboFile[[#This Row],[2021/22 Baseline_Source]]*T_DataComboFile[[#This Row],[G&S reporting level indicator]]","v":0},{"$f":"T_DataComboFile[[#This Row],[2022/23 Baseline_Source]]*T_DataComboFile[[#This Row],[G&S reporting level indicator]]","v":0},{"$f":"T_DataComboFile[[#This Row],[2023/24 Baseline_Source]]*T_DataComboFile[[#This Row],[G&S reporting level indicator]]","v":0},null,null,null,null,null,null,{"$f":"T_DataComboFile[[#This Row],[2021/22 Baseline]]+T_DataComboFile[[#This Row],[2021/22 Reduction]]+T_DataComboFile[[#This Row],[2021/22 Increase]]","v":0},{"$f":"T_DataComboFile[[#This Row],[2022/23 Baseline]]+T_DataComboFile[[#This Row],[2022/23 Reduction]]+T_DataComboFile[[#This Row],[2022/23 Increase]]","v":0},{"$f":"T_DataComboFile[[#This Row],[2023/24 Baseline]]+T_DataComboFile[[#This Row],[2023/24 Reduction]]+T_DataComboFile[[#This Row],[2023/24 Increase]]","v":0}]
[null,null,"2021_22","ENE2020",36,2,2,null,70592,36,2,2,null,"070592","36|02|02",1,2,10,53,57,"01|02|10|53|57","National","Small Business Development","Sector Policy and Research","Policy and Legislation",null,"Current","Transfers and subsidies","Households","Other transfers to households","Other transfers to households",null,null,null,0,0,0,0,0,0,0,0,0,0,0,0,0,0,null,{"$f":"IF(T_DataComboFile[[#This Row],[G&S reporting level indicator]]=1,$AX$16,\"Not applicable\")","v":"Level 3"},{"$f":"IF(AND($AX$16=\"Level 3\",T_DataComboFile[[#This Row],[Econ3]] = \"Goods and services\"),IF(T_DataComboFile[[#This Row],[Econ4]] = T_DataComboFile[[#This Row],[Econ3]],1,0),IF(AND($AX$16=\"Level 4\",T_DataComboFile[[#This Row],[Econ4]] = \"Goods and services\"),0,1))","v":1},{"$f":"T_DataComboFile[[#This Row],[2016/17_Source]]*T_DataComboFile[[#This Row],[G&S reporting level indicator]]","v":0},{"$f":"T_DataComboFile[[#This Row],[2017/18_Source]]*T_DataComboFile[[#This Row],[G&S reporting level indicator]]","v":0},{"$f":"T_DataComboFile[[#This Row],[2018/19_Source]]*T_DataComboFile[[#This Row],[G&S reporting level indicator]]","v":0},{"$f":"T_DataComboFile[[#This Row],[2019/20 Main appropriation_Source]]*T_DataComboFile[[#This Row],[G&S reporting level indicator]]","v":0},{"$f":"T_DataComboFile[[#This Row],[2019/20 Adjusted appropriation_Source]]*T_DataComboFile[[#This Row],[G&S reporting level indicator]]","v":0},{"$f":"T_DataComboFile[[#This Row],[2019/20 Revised estimate_Source]]*T_DataComboFile[[#This Row],[G&S reporting level indicator]]","v":0},{"$f":"T_DataComboFile[[#This Row],[2019/20 Preliminary outcome_Source]]*T_DataComboFile[[#This Row],[G&S reporting level indicator]]","v":0},{"$f":"T_DataComboFile[[#This Row],[2020/21 Original_Source]]*T_DataComboFile[[#This Row],[G&S reporting level indicator]]","v":0},{"$f":"T_DataComboFile[[#This Row],[2020/21 SAB_Source]]*T_DataComboFile[[#This Row],[G&S reporting level indicator]]","v":0},{"$f":"T_DataComboFile[[#This Row],[2020/21 Baseline_Source]]*T_DataComboFile[[#This Row],[G&S reporting level indicator]]","v":0},{"$f":"T_DataComboFile[[#This Row],[2021/22 Baseline_Source]]*T_DataComboFile[[#This Row],[G&S reporting level indicator]]","v":0},{"$f":"T_DataComboFile[[#This Row],[2022/23 Baseline_Source]]*T_DataComboFile[[#This Row],[G&S reporting level indicator]]","v":0},{"$f":"T_DataComboFile[[#This Row],[2023/24 Baseline_Source]]*T_DataComboFile[[#This Row],[G&S reporting level indicator]]","v":0},null,null,null,null,null,null,{"$f":"T_DataComboFile[[#This Row],[2021/22 Baseline]]+T_DataComboFile[[#This Row],[2021/22 Reduction]]+T_DataComboFile[[#This Row],[2021/22 Increase]]","v":0},{"$f":"T_DataComboFile[[#This Row],[2022/23 Baseline]]+T_DataComboFile[[#This Row],[2022/23 Reduction]]+T_DataComboFile[[#This Row],[2022/23 Increase]]","v":0},{"$f":"T_DataComboFile[[#This Row],[2023/24 Baseline]]+T_DataComboFile[[#This Row],[2023/24 Reduction]]+T_DataComboFile[[#This Row],[2023/24 Increase]]","v":0}]
[null,null,"2021_22","ENE2020",36,2,2,null,70593,36,2,2,null,"070593","36|02|02",2,2,4,43,43,"02|02|04|43|43","National","Small Business Development","Sector Policy and Research","Policy and Legislation",null,"Capital","Transfers and subsidies","Provinces and municipalities","Provinces","Provincial Revenue Funds",null,null,null,0,0,0,0,0,0,0,0,0,0,0,0,0,0,null,{"$f":"IF(T_DataComboFile[[#This Row],[G&S reporting level indicator]]=1,$AX$16,\"Not applicable\")","v":"Level 3"},{"$f":"IF(AND($AX$16=\"Level 3\",T_DataComboFile[[#This Row],[Econ3]] = \"Goods and services\"),IF(T_DataComboFile[[#This Row],[Econ4]] = T_DataComboFile[[#This Row],[Econ3]],1,0),IF(AND($AX$16=\"Level 4\",T_DataComboFile[[#This Row],[Econ4]] = \"Goods and services\"),0,1))","v":1},{"$f":"T_DataComboFile[[#This Row],[2016/17_Source]]*T_DataComboFile[[#This Row],[G&S reporting level indicator]]","v":0},{"$f":"T_DataComboFile[[#This Row],[2017/18_Source]]*T_DataComboFile[[#This Row],[G&S reporting level indicator]]","v":0},{"$f":"T_DataComboFile[[#This Row],[2018/19_Source]]*T_DataComboFile[[#This Row],[G&S reporting level indicator]]","v":0},{"$f":"T_DataComboFile[[#This Row],[2019/20 Main appropriation_Source]]*T_DataComboFile[[#This Row],[G&S reporting level indicator]]","v":0},{"$f":"T_DataComboFile[[#This Row],[2019/20 Adjusted appropriation_Source]]*T_DataComboFile[[#This Row],[G&S reporting level indicator]]","v":0},{"$f":"T_DataComboFile[[#This Row],[2019/20 Revised estimate_Source]]*T_DataComboFile[[#This Row],[G&S reporting level indicator]]","v":0},{"$f":"T_DataComboFile[[#This Row],[2019/20 Preliminary outcome_Source]]*T_DataComboFile[[#This Row],[G&S reporting level indicator]]","v":0},{"$f":"T_DataComboFile[[#This Row],[2020/21 Original_Source]]*T_DataComboFile[[#This Row],[G&S reporting level indicator]]","v":0},{"$f":"T_DataComboFile[[#This Row],[2020/21 SAB_Source]]*T_DataComboFile[[#This Row],[G&S reporting level indicator]]","v":0},{"$f":"T_DataComboFile[[#This Row],[2020/21 Baseline_Source]]*T_DataComboFile[[#This Row],[G&S reporting level indicator]]","v":0},{"$f":"T_DataComboFile[[#This Row],[2021/22 Baseline_Source]]*T_DataComboFile[[#This Row],[G&S reporting level indicator]]","v":0},{"$f":"T_DataComboFile[[#This Row],[2022/23 Baseline_Source]]*T_DataComboFile[[#This Row],[G&S reporting level indicator]]","v":0},{"$f":"T_DataComboFile[[#This Row],[2023/24 Baseline_Source]]*T_DataComboFile[[#This Row],[G&S reporting level indicator]]","v":0},null,null,null,null,null,null,{"$f":"T_DataComboFile[[#This Row],[2021/22 Baseline]]+T_DataComboFile[[#This Row],[2021/22 Reduction]]+T_DataComboFile[[#This Row],[2021/22 Increase]]","v":0},{"$f":"T_DataComboFile[[#This Row],[2022/23 Baseline]]+T_DataComboFile[[#This Row],[2022/23 Reduction]]+T_DataComboFile[[#This Row],[2022/23 Increase]]","v":0},{"$f":"T_DataComboFile[[#This Row],[2023/24 Baseline]]+T_DataComboFile[[#This Row],[2023/24 Reduction]]+T_DataComboFile[[#This Row],[2023/24 Increase]]","v":0}]
[null,null,"2021_22","ENE2020",36,2,2,null,70594,36,2,2,null,"070594","36|02|02",2,2,4,44,45,"02|02|04|44|45","National","Small Business Development","Sector Policy and Research","Policy and Legislation",null,"Capital","Transfers and subsidies","Provinces and municipalities","Municipalities","Municipal bank accounts",null,null,null,0,0,0,0,0,0,0,0,0,0,0,0,0,0,null,{"$f":"IF(T_DataComboFile[[#This Row],[G&S reporting level indicator]]=1,$AX$16,\"Not applicable\")","v":"Level 3"},{"$f":"IF(AND($AX$16=\"Level 3\",T_DataComboFile[[#This Row],[Econ3]] = \"Goods and services\"),IF(T_DataComboFile[[#This Row],[Econ4]] = T_DataComboFile[[#This Row],[Econ3]],1,0),IF(AND($AX$16=\"Level 4\",T_DataComboFile[[#This Row],[Econ4]] = \"Goods and services\"),0,1))","v":1},{"$f":"T_DataComboFile[[#This Row],[2016/17_Source]]*T_DataComboFile[[#This Row],[G&S reporting level indicator]]","v":0},{"$f":"T_DataComboFile[[#This Row],[2017/18_Source]]*T_DataComboFile[[#This Row],[G&S reporting level indicator]]","v":0},{"$f":"T_DataComboFile[[#This Row],[2018/19_Source]]*T_DataComboFile[[#This Row],[G&S reporting level indicator]]","v":0},{"$f":"T_DataComboFile[[#This Row],[2019/20 Main appropriation_Source]]*T_DataComboFile[[#This Row],[G&S reporting level indicator]]","v":0},{"$f":"T_DataComboFile[[#This Row],[2019/20 Adjusted appropriation_Source]]*T_DataComboFile[[#This Row],[G&S reporting level indicator]]","v":0},{"$f":"T_DataComboFile[[#This Row],[2019/20 Revised estimate_Source]]*T_DataComboFile[[#This Row],[G&S reporting level indicator]]","v":0},{"$f":"T_DataComboFile[[#This Row],[2019/20 Preliminary outcome_Source]]*T_DataComboFile[[#This Row],[G&S reporting level indicator]]","v":0},{"$f":"T_DataComboFile[[#This Row],[2020/21 Original_Source]]*T_DataComboFile[[#This Row],[G&S reporting level indicator]]","v":0},{"$f":"T_DataComboFile[[#This Row],[2020/21 SAB_Source]]*T_DataComboFile[[#This Row],[G&S reporting level indicator]]","v":0},{"$f":"T_DataComboFile[[#This Row],[2020/21 Baseline_Source]]*T_DataComboFile[[#This Row],[G&S reporting level indicator]]","v":0},{"$f":"T_DataComboFile[[#This Row],[2021/22 Baseline_Source]]*T_DataComboFile[[#This Row],[G&S reporting level indicator]]","v":0},{"$f":"T_DataComboFile[[#This Row],[2022/23 Baseline_Source]]*T_DataComboFile[[#This Row],[G&S reporting level indicator]]","v":0},{"$f":"T_DataComboFile[[#This Row],[2023/24 Baseline_Source]]*T_DataComboFile[[#This Row],[G&S reporting level indicator]]","v":0},null,null,null,null,null,null,{"$f":"T_DataComboFile[[#This Row],[2021/22 Baseline]]+T_DataComboFile[[#This Row],[2021/22 Reduction]]+T_DataComboFile[[#This Row],[2021/22 Increase]]","v":0},{"$f":"T_DataComboFile[[#This Row],[2022/23 Baseline]]+T_DataComboFile[[#This Row],[2022/23 Reduction]]+T_DataComboFile[[#This Row],[2022/23 Increase]]","v":0},{"$f":"T_DataComboFile[[#This Row],[2023/24 Baseline]]+T_DataComboFile[[#This Row],[2023/24 Reduction]]+T_DataComboFile[[#This Row],[2023/24 Increase]]","v":0}]
[null,null,"2021_22","ENE2020",36,2,2,null,70595,36,2,2,null,"070595","36|02|02",2,2,5,46,48,"02|02|05|46|48","National","Small Business Development","Sector Policy and Research","Policy and Legislation",null,"Capital","Transfers and subsidies","Departmental agencies and accounts","Departmental agencies (non-business entities)","Departmental agencies (non-business entities)",null,null,null,0,0,0,0,0,0,0,0,0,0,0,0,0,0,null,{"$f":"IF(T_DataComboFile[[#This Row],[G&S reporting level indicator]]=1,$AX$16,\"Not applicable\")","v":"Level 3"},{"$f":"IF(AND($AX$16=\"Level 3\",T_DataComboFile[[#This Row],[Econ3]] = \"Goods and services\"),IF(T_DataComboFile[[#This Row],[Econ4]] = T_DataComboFile[[#This Row],[Econ3]],1,0),IF(AND($AX$16=\"Level 4\",T_DataComboFile[[#This Row],[Econ4]] = \"Goods and services\"),0,1))","v":1},{"$f":"T_DataComboFile[[#This Row],[2016/17_Source]]*T_DataComboFile[[#This Row],[G&S reporting level indicator]]","v":0},{"$f":"T_DataComboFile[[#This Row],[2017/18_Source]]*T_DataComboFile[[#This Row],[G&S reporting level indicator]]","v":0},{"$f":"T_DataComboFile[[#This Row],[2018/19_Source]]*T_DataComboFile[[#This Row],[G&S reporting level indicator]]","v":0},{"$f":"T_DataComboFile[[#This Row],[2019/20 Main appropriation_Source]]*T_DataComboFile[[#This Row],[G&S reporting level indicator]]","v":0},{"$f":"T_DataComboFile[[#This Row],[2019/20 Adjusted appropriation_Source]]*T_DataComboFile[[#This Row],[G&S reporting level indicator]]","v":0},{"$f":"T_DataComboFile[[#This Row],[2019/20 Revised estimate_Source]]*T_DataComboFile[[#This Row],[G&S reporting level indicator]]","v":0},{"$f":"T_DataComboFile[[#This Row],[2019/20 Preliminary outcome_Source]]*T_DataComboFile[[#This Row],[G&S reporting level indicator]]","v":0},{"$f":"T_DataComboFile[[#This Row],[2020/21 Original_Source]]*T_DataComboFile[[#This Row],[G&S reporting level indicator]]","v":0},{"$f":"T_DataComboFile[[#This Row],[2020/21 SAB_Source]]*T_DataComboFile[[#This Row],[G&S reporting level indicator]]","v":0},{"$f":"T_DataComboFile[[#This Row],[2020/21 Baseline_Source]]*T_DataComboFile[[#This Row],[G&S reporting level indicator]]","v":0},{"$f":"T_DataComboFile[[#This Row],[2021/22 Baseline_Source]]*T_DataComboFile[[#This Row],[G&S reporting level indicator]]","v":0},{"$f":"T_DataComboFile[[#This Row],[2022/23 Baseline_Source]]*T_DataComboFile[[#This Row],[G&S reporting level indicator]]","v":0},{"$f":"T_DataComboFile[[#This Row],[2023/24 Baseline_Source]]*T_DataComboFile[[#This Row],[G&S reporting level indicator]]","v":0},null,null,null,null,null,null,{"$f":"T_DataComboFile[[#This Row],[2021/22 Baseline]]+T_DataComboFile[[#This Row],[2021/22 Reduction]]+T_DataComboFile[[#This Row],[2021/22 Increase]]","v":0},{"$f":"T_DataComboFile[[#This Row],[2022/23 Baseline]]+T_DataComboFile[[#This Row],[2022/23 Reduction]]+T_DataComboFile[[#This Row],[2022/23 Increase]]","v":0},{"$f":"T_DataComboFile[[#This Row],[2023/24 Baseline]]+T_DataComboFile[[#This Row],[2023/24 Reduction]]+T_DataComboFile[[#This Row],[2023/24 Increase]]","v":0}]
[null,null,"2021_22","ENE2020",36,2,2,null,70596,36,2,2,null,"070596","36|02|02",2,2,6,47,49,"02|02|06|47|49","National","Small Business Development","Sector Policy and Research","Policy and Legislation",null,"Capital","Transfers and subsidies","Higher education institutions","Higher education institutions","Higher education institutions",null,null,null,0,0,0,0,0,0,0,0,0,0,0,0,0,0,null,{"$f":"IF(T_DataComboFile[[#This Row],[G&S reporting level indicator]]=1,$AX$16,\"Not applicable\")","v":"Level 3"},{"$f":"IF(AND($AX$16=\"Level 3\",T_DataComboFile[[#This Row],[Econ3]] = \"Goods and services\"),IF(T_DataComboFile[[#This Row],[Econ4]] = T_DataComboFile[[#This Row],[Econ3]],1,0),IF(AND($AX$16=\"Level 4\",T_DataComboFile[[#This Row],[Econ4]] = \"Goods and services\"),0,1))","v":1},{"$f":"T_DataComboFile[[#This Row],[2016/17_Source]]*T_DataComboFile[[#This Row],[G&S reporting level indicator]]","v":0},{"$f":"T_DataComboFile[[#This Row],[2017/18_Source]]*T_DataComboFile[[#This Row],[G&S reporting level indicator]]","v":0},{"$f":"T_DataComboFile[[#This Row],[2018/19_Source]]*T_DataComboFile[[#This Row],[G&S reporting level indicator]]","v":0},{"$f":"T_DataComboFile[[#This Row],[2019/20 Main appropriation_Source]]*T_DataComboFile[[#This Row],[G&S reporting level indicator]]","v":0},{"$f":"T_DataComboFile[[#This Row],[2019/20 Adjusted appropriation_Source]]*T_DataComboFile[[#This Row],[G&S reporting level indicator]]","v":0},{"$f":"T_DataComboFile[[#This Row],[2019/20 Revised estimate_Source]]*T_DataComboFile[[#This Row],[G&S reporting level indicator]]","v":0},{"$f":"T_DataComboFile[[#This Row],[2019/20 Preliminary outcome_Source]]*T_DataComboFile[[#This Row],[G&S reporting level indicator]]","v":0},{"$f":"T_DataComboFile[[#This Row],[2020/21 Original_Source]]*T_DataComboFile[[#This Row],[G&S reporting level indicator]]","v":0},{"$f":"T_DataComboFile[[#This Row],[2020/21 SAB_Source]]*T_DataComboFile[[#This Row],[G&S reporting level indicator]]","v":0},{"$f":"T_DataComboFile[[#This Row],[2020/21 Baseline_Source]]*T_DataComboFile[[#This Row],[G&S reporting level indicator]]","v":0},{"$f":"T_DataComboFile[[#This Row],[2021/22 Baseline_Source]]*T_DataComboFile[[#This Row],[G&S reporting level indicator]]","v":0},{"$f":"T_DataComboFile[[#This Row],[2022/23 Baseline_Source]]*T_DataComboFile[[#This Row],[G&S reporting level indicator]]","v":0},{"$f":"T_DataComboFile[[#This Row],[2023/24 Baseline_Source]]*T_DataComboFile[[#This Row],[G&S reporting level indicator]]","v":0},null,null,null,null,null,null,{"$f":"T_DataComboFile[[#This Row],[2021/22 Baseline]]+T_DataComboFile[[#This Row],[2021/22 Reduction]]+T_DataComboFile[[#This Row],[2021/22 Increase]]","v":0},{"$f":"T_DataComboFile[[#This Row],[2022/23 Baseline]]+T_DataComboFile[[#This Row],[2022/23 Reduction]]+T_DataComboFile[[#This Row],[2022/23 Increase]]","v":0},{"$f":"T_DataComboFile[[#This Row],[2023/24 Baseline]]+T_DataComboFile[[#This Row],[2023/24 Reduction]]+T_DataComboFile[[#This Row],[2023/24 Increase]]","v":0}]
[null,null,"2021_22","ENE2020",36,2,2,null,70597,36,2,2,null,"070597","36|02|02",2,2,7,48,50,"02|02|07|48|50","National","Small Business Development","Sector Policy and Research","Policy and Legislation",null,"Capital","Transfers and subsidies","Foreign governments and international organisations","Foreign governments and international organisations","Foreign governments and international organisations",null,null,null,0,0,0,0,0,0,0,0,0,0,0,0,0,0,null,{"$f":"IF(T_DataComboFile[[#This Row],[G&S reporting level indicator]]=1,$AX$16,\"Not applicable\")","v":"Level 3"},{"$f":"IF(AND($AX$16=\"Level 3\",T_DataComboFile[[#This Row],[Econ3]] = \"Goods and services\"),IF(T_DataComboFile[[#This Row],[Econ4]] = T_DataComboFile[[#This Row],[Econ3]],1,0),IF(AND($AX$16=\"Level 4\",T_DataComboFile[[#This Row],[Econ4]] = \"Goods and services\"),0,1))","v":1},{"$f":"T_DataComboFile[[#This Row],[2016/17_Source]]*T_DataComboFile[[#This Row],[G&S reporting level indicator]]","v":0},{"$f":"T_DataComboFile[[#This Row],[2017/18_Source]]*T_DataComboFile[[#This Row],[G&S reporting level indicator]]","v":0},{"$f":"T_DataComboFile[[#This Row],[2018/19_Source]]*T_DataComboFile[[#This Row],[G&S reporting level indicator]]","v":0},{"$f":"T_DataComboFile[[#This Row],[2019/20 Main appropriation_Source]]*T_DataComboFile[[#This Row],[G&S reporting level indicator]]","v":0},{"$f":"T_DataComboFile[[#This Row],[2019/20 Adjusted appropriation_Source]]*T_DataComboFile[[#This Row],[G&S reporting level indicator]]","v":0},{"$f":"T_DataComboFile[[#This Row],[2019/20 Revised estimate_Source]]*T_DataComboFile[[#This Row],[G&S reporting level indicator]]","v":0},{"$f":"T_DataComboFile[[#This Row],[2019/20 Preliminary outcome_Source]]*T_DataComboFile[[#This Row],[G&S reporting level indicator]]","v":0},{"$f":"T_DataComboFile[[#This Row],[2020/21 Original_Source]]*T_DataComboFile[[#This Row],[G&S reporting level indicator]]","v":0},{"$f":"T_DataComboFile[[#This Row],[2020/21 SAB_Source]]*T_DataComboFile[[#This Row],[G&S reporting level indicator]]","v":0},{"$f":"T_DataComboFile[[#This Row],[2020/21 Baseline_Source]]*T_DataComboFile[[#This Row],[G&S reporting level indicator]]","v":0},{"$f":"T_DataComboFile[[#This Row],[2021/22 Baseline_Source]]*T_DataComboFile[[#This Row],[G&S reporting level indicator]]","v":0},{"$f":"T_DataComboFile[[#This Row],[2022/23 Baseline_Source]]*T_DataComboFile[[#This Row],[G&S reporting level indicator]]","v":0},{"$f":"T_DataComboFile[[#This Row],[2023/24 Baseline_Source]]*T_DataComboFile[[#This Row],[G&S reporting level indicator]]","v":0},null,null,null,null,null,null,{"$f":"T_DataComboFile[[#This Row],[2021/22 Baseline]]+T_DataComboFile[[#This Row],[2021/22 Reduction]]+T_DataComboFile[[#This Row],[2021/22 Increase]]","v":0},{"$f":"T_DataComboFile[[#This Row],[2022/23 Baseline]]+T_DataComboFile[[#This Row],[2022/23 Reduction]]+T_DataComboFile[[#This Row],[2022/23 Increase]]","v":0},{"$f":"T_DataComboFile[[#This Row],[2023/24 Baseline]]+T_DataComboFile[[#This Row],[2023/24 Reduction]]+T_DataComboFile[[#This Row],[2023/24 Increase]]","v":0}]
[null,null,"2021_22","ENE2020",36,2,2,null,70598,36,2,2,null,"070598","36|02|02",2,2,8,49,51,"02|02|08|49|51","National","Small Business Development","Sector Policy and Research","Policy and Legislation",null,"Capital","Transfers and subsidies","Public corporations and private enterprises","Public corporations","Subsidies on products and production (pc)",null,null,null,0,0,0,0,0,0,0,0,0,0,0,0,0,0,null,{"$f":"IF(T_DataComboFile[[#This Row],[G&S reporting level indicator]]=1,$AX$16,\"Not applicable\")","v":"Level 3"},{"$f":"IF(AND($AX$16=\"Level 3\",T_DataComboFile[[#This Row],[Econ3]] = \"Goods and services\"),IF(T_DataComboFile[[#This Row],[Econ4]] = T_DataComboFile[[#This Row],[Econ3]],1,0),IF(AND($AX$16=\"Level 4\",T_DataComboFile[[#This Row],[Econ4]] = \"Goods and services\"),0,1))","v":1},{"$f":"T_DataComboFile[[#This Row],[2016/17_Source]]*T_DataComboFile[[#This Row],[G&S reporting level indicator]]","v":0},{"$f":"T_DataComboFile[[#This Row],[2017/18_Source]]*T_DataComboFile[[#This Row],[G&S reporting level indicator]]","v":0},{"$f":"T_DataComboFile[[#This Row],[2018/19_Source]]*T_DataComboFile[[#This Row],[G&S reporting level indicator]]","v":0},{"$f":"T_DataComboFile[[#This Row],[2019/20 Main appropriation_Source]]*T_DataComboFile[[#This Row],[G&S reporting level indicator]]","v":0},{"$f":"T_DataComboFile[[#This Row],[2019/20 Adjusted appropriation_Source]]*T_DataComboFile[[#This Row],[G&S reporting level indicator]]","v":0},{"$f":"T_DataComboFile[[#This Row],[2019/20 Revised estimate_Source]]*T_DataComboFile[[#This Row],[G&S reporting level indicator]]","v":0},{"$f":"T_DataComboFile[[#This Row],[2019/20 Preliminary outcome_Source]]*T_DataComboFile[[#This Row],[G&S reporting level indicator]]","v":0},{"$f":"T_DataComboFile[[#This Row],[2020/21 Original_Source]]*T_DataComboFile[[#This Row],[G&S reporting level indicator]]","v":0},{"$f":"T_DataComboFile[[#This Row],[2020/21 SAB_Source]]*T_DataComboFile[[#This Row],[G&S reporting level indicator]]","v":0},{"$f":"T_DataComboFile[[#This Row],[2020/21 Baseline_Source]]*T_DataComboFile[[#This Row],[G&S reporting level indicator]]","v":0},{"$f":"T_DataComboFile[[#This Row],[2021/22 Baseline_Source]]*T_DataComboFile[[#This Row],[G&S reporting level indicator]]","v":0},{"$f":"T_DataComboFile[[#This Row],[2022/23 Baseline_Source]]*T_DataComboFile[[#This Row],[G&S reporting level indicator]]","v":0},{"$f":"T_DataComboFile[[#This Row],[2023/24 Baseline_Source]]*T_DataComboFile[[#This Row],[G&S reporting level indicator]]","v":0},null,null,null,null,null,null,{"$f":"T_DataComboFile[[#This Row],[2021/22 Baseline]]+T_DataComboFile[[#This Row],[2021/22 Reduction]]+T_DataComboFile[[#This Row],[2021/22 Increase]]","v":0},{"$f":"T_DataComboFile[[#This Row],[2022/23 Baseline]]+T_DataComboFile[[#This Row],[2022/23 Reduction]]+T_DataComboFile[[#This Row],[2022/23 Increase]]","v":0},{"$f":"T_DataComboFile[[#This Row],[2023/24 Baseline]]+T_DataComboFile[[#This Row],[2023/24 Reduction]]+T_DataComboFile[[#This Row],[2023/24 Increase]]","v":0}]
[null,null,"2021_22","ENE2020",36,2,2,null,70599,36,2,2,null,"070599","36|02|02",2,2,8,49,52,"02|02|08|49|52","National","Small Business Development","Sector Policy and Research","Policy and Legislation",null,"Capital","Transfers and subsidies","Public corporations and private enterprises","Public corporations","Other transfers to public corporations",null,null,null,0,0,0,0,0,0,0,0,0,0,0,0,0,0,null,{"$f":"IF(T_DataComboFile[[#This Row],[G&S reporting level indicator]]=1,$AX$16,\"Not applicable\")","v":"Level 3"},{"$f":"IF(AND($AX$16=\"Level 3\",T_DataComboFile[[#This Row],[Econ3]] = \"Goods and services\"),IF(T_DataComboFile[[#This Row],[Econ4]] = T_DataComboFile[[#This Row],[Econ3]],1,0),IF(AND($AX$16=\"Level 4\",T_DataComboFile[[#This Row],[Econ4]] = \"Goods and services\"),0,1))","v":1},{"$f":"T_DataComboFile[[#This Row],[2016/17_Source]]*T_DataComboFile[[#This Row],[G&S reporting level indicator]]","v":0},{"$f":"T_DataComboFile[[#This Row],[2017/18_Source]]*T_DataComboFile[[#This Row],[G&S reporting level indicator]]","v":0},{"$f":"T_DataComboFile[[#This Row],[2018/19_Source]]*T_DataComboFile[[#This Row],[G&S reporting level indicator]]","v":0},{"$f":"T_DataComboFile[[#This Row],[2019/20 Main appropriation_Source]]*T_DataComboFile[[#This Row],[G&S reporting level indicator]]","v":0},{"$f":"T_DataComboFile[[#This Row],[2019/20 Adjusted appropriation_Source]]*T_DataComboFile[[#This Row],[G&S reporting level indicator]]","v":0},{"$f":"T_DataComboFile[[#This Row],[2019/20 Revised estimate_Source]]*T_DataComboFile[[#This Row],[G&S reporting level indicator]]","v":0},{"$f":"T_DataComboFile[[#This Row],[2019/20 Preliminary outcome_Source]]*T_DataComboFile[[#This Row],[G&S reporting level indicator]]","v":0},{"$f":"T_DataComboFile[[#This Row],[2020/21 Original_Source]]*T_DataComboFile[[#This Row],[G&S reporting level indicator]]","v":0},{"$f":"T_DataComboFile[[#This Row],[2020/21 SAB_Source]]*T_DataComboFile[[#This Row],[G&S reporting level indicator]]","v":0},{"$f":"T_DataComboFile[[#This Row],[2020/21 Baseline_Source]]*T_DataComboFile[[#This Row],[G&S reporting level indicator]]","v":0},{"$f":"T_DataComboFile[[#This Row],[2021/22 Baseline_Source]]*T_DataComboFile[[#This Row],[G&S reporting level indicator]]","v":0},{"$f":"T_DataComboFile[[#This Row],[2022/23 Baseline_Source]]*T_DataComboFile[[#This Row],[G&S reporting level indicator]]","v":0},{"$f":"T_DataComboFile[[#This Row],[2023/24 Baseline_Source]]*T_DataComboFile[[#This Row],[G&S reporting level indicator]]","v":0},null,null,null,null,null,null,{"$f":"T_DataComboFile[[#This Row],[2021/22 Baseline]]+T_DataComboFile[[#This Row],[2021/22 Reduction]]+T_DataComboFile[[#This Row],[2021/22 Increase]]","v":0},{"$f":"T_DataComboFile[[#This Row],[2022/23 Baseline]]+T_DataComboFile[[#This Row],[2022/23 Reduction]]+T_DataComboFile[[#This Row],[2022/23 Increase]]","v":0},{"$f":"T_DataComboFile[[#This Row],[2023/24 Baseline]]+T_DataComboFile[[#This Row],[2023/24 Reduction]]+T_DataComboFile[[#This Row],[2023/24 Increase]]","v":0}]
[null,null,"2021_22","ENE2020",36,2,2,null,70600,36,2,2,null,"070600","36|02|02",2,2,8,50,54,"02|02|08|50|54","National","Small Business Development","Sector Policy and Research","Policy and Legislation",null,"Capital","Transfers and subsidies","Public corporations and private enterprises","Private enterprises","Other transfers to private enterprises",null,null,null,0,0,0,0,0,0,0,0,0,0,0,0,0,0,null,{"$f":"IF(T_DataComboFile[[#This Row],[G&S reporting level indicator]]=1,$AX$16,\"Not applicable\")","v":"Level 3"},{"$f":"IF(AND($AX$16=\"Level 3\",T_DataComboFile[[#This Row],[Econ3]] = \"Goods and services\"),IF(T_DataComboFile[[#This Row],[Econ4]] = T_DataComboFile[[#This Row],[Econ3]],1,0),IF(AND($AX$16=\"Level 4\",T_DataComboFile[[#This Row],[Econ4]] = \"Goods and services\"),0,1))","v":1},{"$f":"T_DataComboFile[[#This Row],[2016/17_Source]]*T_DataComboFile[[#This Row],[G&S reporting level indicator]]","v":0},{"$f":"T_DataComboFile[[#This Row],[2017/18_Source]]*T_DataComboFile[[#This Row],[G&S reporting level indicator]]","v":0},{"$f":"T_DataComboFile[[#This Row],[2018/19_Source]]*T_DataComboFile[[#This Row],[G&S reporting level indicator]]","v":0},{"$f":"T_DataComboFile[[#This Row],[2019/20 Main appropriation_Source]]*T_DataComboFile[[#This Row],[G&S reporting level indicator]]","v":0},{"$f":"T_DataComboFile[[#This Row],[2019/20 Adjusted appropriation_Source]]*T_DataComboFile[[#This Row],[G&S reporting level indicator]]","v":0},{"$f":"T_DataComboFile[[#This Row],[2019/20 Revised estimate_Source]]*T_DataComboFile[[#This Row],[G&S reporting level indicator]]","v":0},{"$f":"T_DataComboFile[[#This Row],[2019/20 Preliminary outcome_Source]]*T_DataComboFile[[#This Row],[G&S reporting level indicator]]","v":0},{"$f":"T_DataComboFile[[#This Row],[2020/21 Original_Source]]*T_DataComboFile[[#This Row],[G&S reporting level indicator]]","v":0},{"$f":"T_DataComboFile[[#This Row],[2020/21 SAB_Source]]*T_DataComboFile[[#This Row],[G&S reporting level indicator]]","v":0},{"$f":"T_DataComboFile[[#This Row],[2020/21 Baseline_Source]]*T_DataComboFile[[#This Row],[G&S reporting level indicator]]","v":0},{"$f":"T_DataComboFile[[#This Row],[2021/22 Baseline_Source]]*T_DataComboFile[[#This Row],[G&S reporting level indicator]]","v":0},{"$f":"T_DataComboFile[[#This Row],[2022/23 Baseline_Source]]*T_DataComboFile[[#This Row],[G&S reporting level indicator]]","v":0},{"$f":"T_DataComboFile[[#This Row],[2023/24 Baseline_Source]]*T_DataComboFile[[#This Row],[G&S reporting level indicator]]","v":0},null,null,null,null,null,null,{"$f":"T_DataComboFile[[#This Row],[2021/22 Baseline]]+T_DataComboFile[[#This Row],[2021/22 Reduction]]+T_DataComboFile[[#This Row],[2021/22 Increase]]","v":0},{"$f":"T_DataComboFile[[#This Row],[2022/23 Baseline]]+T_DataComboFile[[#This Row],[2022/23 Reduction]]+T_DataComboFile[[#This Row],[2022/23 Increase]]","v":0},{"$f":"T_DataComboFile[[#This Row],[2023/24 Baseline]]+T_DataComboFile[[#This Row],[2023/24 Reduction]]+T_DataComboFile[[#This Row],[2023/24 Increase]]","v":0}]
[null,null,"2021_22","ENE2020",36,2,2,null,70601,36,2,2,null,"070601","36|02|02",2,2,9,51,55,"02|02|09|51|55","National","Small Business Development","Sector Policy and Research","Policy and Legislation",null,"Capital","Transfers and subsidies","Non-profit institutions","Non-profit institutions","Non-profit institutions",null,null,null,0,0,0,0,0,0,0,0,0,0,0,0,0,0,null,{"$f":"IF(T_DataComboFile[[#This Row],[G&S reporting level indicator]]=1,$AX$16,\"Not applicable\")","v":"Level 3"},{"$f":"IF(AND($AX$16=\"Level 3\",T_DataComboFile[[#This Row],[Econ3]] = \"Goods and services\"),IF(T_DataComboFile[[#This Row],[Econ4]] = T_DataComboFile[[#This Row],[Econ3]],1,0),IF(AND($AX$16=\"Level 4\",T_DataComboFile[[#This Row],[Econ4]] = \"Goods and services\"),0,1))","v":1},{"$f":"T_DataComboFile[[#This Row],[2016/17_Source]]*T_DataComboFile[[#This Row],[G&S reporting level indicator]]","v":0},{"$f":"T_DataComboFile[[#This Row],[2017/18_Source]]*T_DataComboFile[[#This Row],[G&S reporting level indicator]]","v":0},{"$f":"T_DataComboFile[[#This Row],[2018/19_Source]]*T_DataComboFile[[#This Row],[G&S reporting level indicator]]","v":0},{"$f":"T_DataComboFile[[#This Row],[2019/20 Main appropriation_Source]]*T_DataComboFile[[#This Row],[G&S reporting level indicator]]","v":0},{"$f":"T_DataComboFile[[#This Row],[2019/20 Adjusted appropriation_Source]]*T_DataComboFile[[#This Row],[G&S reporting level indicator]]","v":0},{"$f":"T_DataComboFile[[#This Row],[2019/20 Revised estimate_Source]]*T_DataComboFile[[#This Row],[G&S reporting level indicator]]","v":0},{"$f":"T_DataComboFile[[#This Row],[2019/20 Preliminary outcome_Source]]*T_DataComboFile[[#This Row],[G&S reporting level indicator]]","v":0},{"$f":"T_DataComboFile[[#This Row],[2020/21 Original_Source]]*T_DataComboFile[[#This Row],[G&S reporting level indicator]]","v":0},{"$f":"T_DataComboFile[[#This Row],[2020/21 SAB_Source]]*T_DataComboFile[[#This Row],[G&S reporting level indicator]]","v":0},{"$f":"T_DataComboFile[[#This Row],[2020/21 Baseline_Source]]*T_DataComboFile[[#This Row],[G&S reporting level indicator]]","v":0},{"$f":"T_DataComboFile[[#This Row],[2021/22 Baseline_Source]]*T_DataComboFile[[#This Row],[G&S reporting level indicator]]","v":0},{"$f":"T_DataComboFile[[#This Row],[2022/23 Baseline_Source]]*T_DataComboFile[[#This Row],[G&S reporting level indicator]]","v":0},{"$f":"T_DataComboFile[[#This Row],[2023/24 Baseline_Source]]*T_DataComboFile[[#This Row],[G&S reporting level indicator]]","v":0},null,null,null,null,null,null,{"$f":"T_DataComboFile[[#This Row],[2021/22 Baseline]]+T_DataComboFile[[#This Row],[2021/22 Reduction]]+T_DataComboFile[[#This Row],[2021/22 Increase]]","v":0},{"$f":"T_DataComboFile[[#This Row],[2022/23 Baseline]]+T_DataComboFile[[#This Row],[2022/23 Reduction]]+T_DataComboFile[[#This Row],[2022/23 Increase]]","v":0},{"$f":"T_DataComboFile[[#This Row],[2023/24 Baseline]]+T_DataComboFile[[#This Row],[2023/24 Reduction]]+T_DataComboFile[[#This Row],[2023/24 Increase]]","v":0}]
[null,null,"2021_22","ENE2020",36,2,2,null,70602,36,2,2,null,"070602","36|02|02",2,2,10,53,57,"02|02|10|53|57","National","Small Business Development","Sector Policy and Research","Policy and Legislation",null,"Capital","Transfers and subsidies","Households","Other transfers to households","Other transfers to households",null,null,null,0,0,0,0,0,0,0,0,0,0,0,0,0,0,null,{"$f":"IF(T_DataComboFile[[#This Row],[G&S reporting level indicator]]=1,$AX$16,\"Not applicable\")","v":"Level 3"},{"$f":"IF(AND($AX$16=\"Level 3\",T_DataComboFile[[#This Row],[Econ3]] = \"Goods and services\"),IF(T_DataComboFile[[#This Row],[Econ4]] = T_DataComboFile[[#This Row],[Econ3]],1,0),IF(AND($AX$16=\"Level 4\",T_DataComboFile[[#This Row],[Econ4]] = \"Goods and services\"),0,1))","v":1},{"$f":"T_DataComboFile[[#This Row],[2016/17_Source]]*T_DataComboFile[[#This Row],[G&S reporting level indicator]]","v":0},{"$f":"T_DataComboFile[[#This Row],[2017/18_Source]]*T_DataComboFile[[#This Row],[G&S reporting level indicator]]","v":0},{"$f":"T_DataComboFile[[#This Row],[2018/19_Source]]*T_DataComboFile[[#This Row],[G&S reporting level indicator]]","v":0},{"$f":"T_DataComboFile[[#This Row],[2019/20 Main appropriation_Source]]*T_DataComboFile[[#This Row],[G&S reporting level indicator]]","v":0},{"$f":"T_DataComboFile[[#This Row],[2019/20 Adjusted appropriation_Source]]*T_DataComboFile[[#This Row],[G&S reporting level indicator]]","v":0},{"$f":"T_DataComboFile[[#This Row],[2019/20 Revised estimate_Source]]*T_DataComboFile[[#This Row],[G&S reporting level indicator]]","v":0},{"$f":"T_DataComboFile[[#This Row],[2019/20 Preliminary outcome_Source]]*T_DataComboFile[[#This Row],[G&S reporting level indicator]]","v":0},{"$f":"T_DataComboFile[[#This Row],[2020/21 Original_Source]]*T_DataComboFile[[#This Row],[G&S reporting level indicator]]","v":0},{"$f":"T_DataComboFile[[#This Row],[2020/21 SAB_Source]]*T_DataComboFile[[#This Row],[G&S reporting level indicator]]","v":0},{"$f":"T_DataComboFile[[#This Row],[2020/21 Baseline_Source]]*T_DataComboFile[[#This Row],[G&S reporting level indicator]]","v":0},{"$f":"T_DataComboFile[[#This Row],[2021/22 Baseline_Source]]*T_DataComboFile[[#This Row],[G&S reporting level indicator]]","v":0},{"$f":"T_DataComboFile[[#This Row],[2022/23 Baseline_Source]]*T_DataComboFile[[#This Row],[G&S reporting level indicator]]","v":0},{"$f":"T_DataComboFile[[#This Row],[2023/24 Baseline_Source]]*T_DataComboFile[[#This Row],[G&S reporting level indicator]]","v":0},null,null,null,null,null,null,{"$f":"T_DataComboFile[[#This Row],[2021/22 Baseline]]+T_DataComboFile[[#This Row],[2021/22 Reduction]]+T_DataComboFile[[#This Row],[2021/22 Increase]]","v":0},{"$f":"T_DataComboFile[[#This Row],[2022/23 Baseline]]+T_DataComboFile[[#This Row],[2022/23 Reduction]]+T_DataComboFile[[#This Row],[2022/23 Increase]]","v":0},{"$f":"T_DataComboFile[[#This Row],[2023/24 Baseline]]+T_DataComboFile[[#This Row],[2023/24 Reduction]]+T_DataComboFile[[#This Row],[2023/24 Increase]]","v":0}]
[null,null,"2021_22","ENE2020",36,2,2,null,70603,36,2,2,null,"070603","36|02|02",2,3,11,54,58,"02|03|11|54|58","National","Small Business Development","Sector Policy and Research","Policy and Legislation",null,"Capital","Payments for capital assets","Buildings and other fixed structures","Buildings","Buildings",null,null,null,0,0,0,0,0,0,0,0,0,0,0,0,0,0,null,{"$f":"IF(T_DataComboFile[[#This Row],[G&S reporting level indicator]]=1,$AX$16,\"Not applicable\")","v":"Level 3"},{"$f":"IF(AND($AX$16=\"Level 3\",T_DataComboFile[[#This Row],[Econ3]] = \"Goods and services\"),IF(T_DataComboFile[[#This Row],[Econ4]] = T_DataComboFile[[#This Row],[Econ3]],1,0),IF(AND($AX$16=\"Level 4\",T_DataComboFile[[#This Row],[Econ4]] = \"Goods and services\"),0,1))","v":1},{"$f":"T_DataComboFile[[#This Row],[2016/17_Source]]*T_DataComboFile[[#This Row],[G&S reporting level indicator]]","v":0},{"$f":"T_DataComboFile[[#This Row],[2017/18_Source]]*T_DataComboFile[[#This Row],[G&S reporting level indicator]]","v":0},{"$f":"T_DataComboFile[[#This Row],[2018/19_Source]]*T_DataComboFile[[#This Row],[G&S reporting level indicator]]","v":0},{"$f":"T_DataComboFile[[#This Row],[2019/20 Main appropriation_Source]]*T_DataComboFile[[#This Row],[G&S reporting level indicator]]","v":0},{"$f":"T_DataComboFile[[#This Row],[2019/20 Adjusted appropriation_Source]]*T_DataComboFile[[#This Row],[G&S reporting level indicator]]","v":0},{"$f":"T_DataComboFile[[#This Row],[2019/20 Revised estimate_Source]]*T_DataComboFile[[#This Row],[G&S reporting level indicator]]","v":0},{"$f":"T_DataComboFile[[#This Row],[2019/20 Preliminary outcome_Source]]*T_DataComboFile[[#This Row],[G&S reporting level indicator]]","v":0},{"$f":"T_DataComboFile[[#This Row],[2020/21 Original_Source]]*T_DataComboFile[[#This Row],[G&S reporting level indicator]]","v":0},{"$f":"T_DataComboFile[[#This Row],[2020/21 SAB_Source]]*T_DataComboFile[[#This Row],[G&S reporting level indicator]]","v":0},{"$f":"T_DataComboFile[[#This Row],[2020/21 Baseline_Source]]*T_DataComboFile[[#This Row],[G&S reporting level indicator]]","v":0},{"$f":"T_DataComboFile[[#This Row],[2021/22 Baseline_Source]]*T_DataComboFile[[#This Row],[G&S reporting level indicator]]","v":0},{"$f":"T_DataComboFile[[#This Row],[2022/23 Baseline_Source]]*T_DataComboFile[[#This Row],[G&S reporting level indicator]]","v":0},{"$f":"T_DataComboFile[[#This Row],[2023/24 Baseline_Source]]*T_DataComboFile[[#This Row],[G&S reporting level indicator]]","v":0},null,null,null,null,null,null,{"$f":"T_DataComboFile[[#This Row],[2021/22 Baseline]]+T_DataComboFile[[#This Row],[2021/22 Reduction]]+T_DataComboFile[[#This Row],[2021/22 Increase]]","v":0},{"$f":"T_DataComboFile[[#This Row],[2022/23 Baseline]]+T_DataComboFile[[#This Row],[2022/23 Reduction]]+T_DataComboFile[[#This Row],[2022/23 Increase]]","v":0},{"$f":"T_DataComboFile[[#This Row],[2023/24 Baseline]]+T_DataComboFile[[#This Row],[2023/24 Reduction]]+T_DataComboFile[[#This Row],[2023/24 Increase]]","v":0}]
[null,null,"2021_22","ENE2020",36,2,2,null,70604,36,2,2,null,"070604","36|02|02",2,3,11,55,59,"02|03|11|55|59","National","Small Business Development","Sector Policy and Research","Policy and Legislation",null,"Capital","Payments for capital assets","Buildings and other fixed structures","Other fixed structures","Other fixed structures",null,null,null,0,0,0,0,0,0,0,0,0,0,0,0,0,0,null,{"$f":"IF(T_DataComboFile[[#This Row],[G&S reporting level indicator]]=1,$AX$16,\"Not applicable\")","v":"Level 3"},{"$f":"IF(AND($AX$16=\"Level 3\",T_DataComboFile[[#This Row],[Econ3]] = \"Goods and services\"),IF(T_DataComboFile[[#This Row],[Econ4]] = T_DataComboFile[[#This Row],[Econ3]],1,0),IF(AND($AX$16=\"Level 4\",T_DataComboFile[[#This Row],[Econ4]] = \"Goods and services\"),0,1))","v":1},{"$f":"T_DataComboFile[[#This Row],[2016/17_Source]]*T_DataComboFile[[#This Row],[G&S reporting level indicator]]","v":0},{"$f":"T_DataComboFile[[#This Row],[2017/18_Source]]*T_DataComboFile[[#This Row],[G&S reporting level indicator]]","v":0},{"$f":"T_DataComboFile[[#This Row],[2018/19_Source]]*T_DataComboFile[[#This Row],[G&S reporting level indicator]]","v":0},{"$f":"T_DataComboFile[[#This Row],[2019/20 Main appropriation_Source]]*T_DataComboFile[[#This Row],[G&S reporting level indicator]]","v":0},{"$f":"T_DataComboFile[[#This Row],[2019/20 Adjusted appropriation_Source]]*T_DataComboFile[[#This Row],[G&S reporting level indicator]]","v":0},{"$f":"T_DataComboFile[[#This Row],[2019/20 Revised estimate_Source]]*T_DataComboFile[[#This Row],[G&S reporting level indicator]]","v":0},{"$f":"T_DataComboFile[[#This Row],[2019/20 Preliminary outcome_Source]]*T_DataComboFile[[#This Row],[G&S reporting level indicator]]","v":0},{"$f":"T_DataComboFile[[#This Row],[2020/21 Original_Source]]*T_DataComboFile[[#This Row],[G&S reporting level indicator]]","v":0},{"$f":"T_DataComboFile[[#This Row],[2020/21 SAB_Source]]*T_DataComboFile[[#This Row],[G&S reporting level indicator]]","v":0},{"$f":"T_DataComboFile[[#This Row],[2020/21 Baseline_Source]]*T_DataComboFile[[#This Row],[G&S reporting level indicator]]","v":0},{"$f":"T_DataComboFile[[#This Row],[2021/22 Baseline_Source]]*T_DataComboFile[[#This Row],[G&S reporting level indicator]]","v":0},{"$f":"T_DataComboFile[[#This Row],[2022/23 Baseline_Source]]*T_DataComboFile[[#This Row],[G&S reporting level indicator]]","v":0},{"$f":"T_DataComboFile[[#This Row],[2023/24 Baseline_Source]]*T_DataComboFile[[#This Row],[G&S reporting level indicator]]","v":0},null,null,null,null,null,null,{"$f":"T_DataComboFile[[#This Row],[2021/22 Baseline]]+T_DataComboFile[[#This Row],[2021/22 Reduction]]+T_DataComboFile[[#This Row],[2021/22 Increase]]","v":0},{"$f":"T_DataComboFile[[#This Row],[2022/23 Baseline]]+T_DataComboFile[[#This Row],[2022/23 Reduction]]+T_DataComboFile[[#This Row],[2022/23 Increase]]","v":0},{"$f":"T_DataComboFile[[#This Row],[2023/24 Baseline]]+T_DataComboFile[[#This Row],[2023/24 Reduction]]+T_DataComboFile[[#This Row],[2023/24 Increase]]","v":0}]
[null,null,"2021_22","ENE2020",36,2,2,null,70605,36,2,2,null,"070605","36|02|02",2,3,12,56,60,"02|03|12|56|60","National","Small Business Development","Sector Policy and Research","Policy and Legislation",null,"Capital","Payments for capital assets","Machinery and equipment","Transport equipment","Transport equipment",null,null,null,0,0,0,0,0,0,0,0,0,0,0,0,0,0,null,{"$f":"IF(T_DataComboFile[[#This Row],[G&S reporting level indicator]]=1,$AX$16,\"Not applicable\")","v":"Level 3"},{"$f":"IF(AND($AX$16=\"Level 3\",T_DataComboFile[[#This Row],[Econ3]] = \"Goods and services\"),IF(T_DataComboFile[[#This Row],[Econ4]] = T_DataComboFile[[#This Row],[Econ3]],1,0),IF(AND($AX$16=\"Level 4\",T_DataComboFile[[#This Row],[Econ4]] = \"Goods and services\"),0,1))","v":1},{"$f":"T_DataComboFile[[#This Row],[2016/17_Source]]*T_DataComboFile[[#This Row],[G&S reporting level indicator]]","v":0},{"$f":"T_DataComboFile[[#This Row],[2017/18_Source]]*T_DataComboFile[[#This Row],[G&S reporting level indicator]]","v":0},{"$f":"T_DataComboFile[[#This Row],[2018/19_Source]]*T_DataComboFile[[#This Row],[G&S reporting level indicator]]","v":0},{"$f":"T_DataComboFile[[#This Row],[2019/20 Main appropriation_Source]]*T_DataComboFile[[#This Row],[G&S reporting level indicator]]","v":0},{"$f":"T_DataComboFile[[#This Row],[2019/20 Adjusted appropriation_Source]]*T_DataComboFile[[#This Row],[G&S reporting level indicator]]","v":0},{"$f":"T_DataComboFile[[#This Row],[2019/20 Revised estimate_Source]]*T_DataComboFile[[#This Row],[G&S reporting level indicator]]","v":0},{"$f":"T_DataComboFile[[#This Row],[2019/20 Preliminary outcome_Source]]*T_DataComboFile[[#This Row],[G&S reporting level indicator]]","v":0},{"$f":"T_DataComboFile[[#This Row],[2020/21 Original_Source]]*T_DataComboFile[[#This Row],[G&S reporting level indicator]]","v":0},{"$f":"T_DataComboFile[[#This Row],[2020/21 SAB_Source]]*T_DataComboFile[[#This Row],[G&S reporting level indicator]]","v":0},{"$f":"T_DataComboFile[[#This Row],[2020/21 Baseline_Source]]*T_DataComboFile[[#This Row],[G&S reporting level indicator]]","v":0},{"$f":"T_DataComboFile[[#This Row],[2021/22 Baseline_Source]]*T_DataComboFile[[#This Row],[G&S reporting level indicator]]","v":0},{"$f":"T_DataComboFile[[#This Row],[2022/23 Baseline_Source]]*T_DataComboFile[[#This Row],[G&S reporting level indicator]]","v":0},{"$f":"T_DataComboFile[[#This Row],[2023/24 Baseline_Source]]*T_DataComboFile[[#This Row],[G&S reporting level indicator]]","v":0},null,null,null,null,null,null,{"$f":"T_DataComboFile[[#This Row],[2021/22 Baseline]]+T_DataComboFile[[#This Row],[2021/22 Reduction]]+T_DataComboFile[[#This Row],[2021/22 Increase]]","v":0},{"$f":"T_DataComboFile[[#This Row],[2022/23 Baseline]]+T_DataComboFile[[#This Row],[2022/23 Reduction]]+T_DataComboFile[[#This Row],[2022/23 Increase]]","v":0},{"$f":"T_DataComboFile[[#This Row],[2023/24 Baseline]]+T_DataComboFile[[#This Row],[2023/24 Reduction]]+T_DataComboFile[[#This Row],[2023/24 Increase]]","v":0}]
["NAT|Non-transfer item","36|Other machinery and equipment","2021_22","ENE2020",36,2,2,17311,70606,36,2,2,17311,"070606","36|02|02",2,3,12,57,61,"02|03|12|57|61","National","Small Business Development","Sector Policy and Research","Policy and Legislation","Non-transfer item","Capital","Payments for capital assets","Machinery and equipment","Other machinery and equipment","Other machinery and equipment","Economic development","Industrialisation and exports","NAT",0,0,26,10,25,25,25,28,28,28,30,32,33,1,null,{"$f":"IF(T_DataComboFile[[#This Row],[G&S reporting level indicator]]=1,$AX$16,\"Not applicable\")","v":"Level 3"},{"$f":"IF(AND($AX$16=\"Level 3\",T_DataComboFile[[#This Row],[Econ3]] = \"Goods and services\"),IF(T_DataComboFile[[#This Row],[Econ4]] = T_DataComboFile[[#This Row],[Econ3]],1,0),IF(AND($AX$16=\"Level 4\",T_DataComboFile[[#This Row],[Econ4]] = \"Goods and services\"),0,1))","v":1},{"$f":"T_DataComboFile[[#This Row],[2016/17_Source]]*T_DataComboFile[[#This Row],[G&S reporting level indicator]]","v":0},{"$f":"T_DataComboFile[[#This Row],[2017/18_Source]]*T_DataComboFile[[#This Row],[G&S reporting level indicator]]","v":0},{"$f":"T_DataComboFile[[#This Row],[2018/19_Source]]*T_DataComboFile[[#This Row],[G&S reporting level indicator]]","v":26},{"$f":"T_DataComboFile[[#This Row],[2019/20 Main appropriation_Source]]*T_DataComboFile[[#This Row],[G&S reporting level indicator]]","v":10},{"$f":"T_DataComboFile[[#This Row],[2019/20 Adjusted appropriation_Source]]*T_DataComboFile[[#This Row],[G&S reporting level indicator]]","v":25},{"$f":"T_DataComboFile[[#This Row],[2019/20 Revised estimate_Source]]*T_DataComboFile[[#This Row],[G&S reporting level indicator]]","v":25},{"$f":"T_DataComboFile[[#This Row],[2019/20 Preliminary outcome_Source]]*T_DataComboFile[[#This Row],[G&S reporting level indicator]]","v":25},{"$f":"T_DataComboFile[[#This Row],[2020/21 Original_Source]]*T_DataComboFile[[#This Row],[G&S reporting level indicator]]","v":28},{"$f":"T_DataComboFile[[#This Row],[2020/21 SAB_Source]]*T_DataComboFile[[#This Row],[G&S reporting level indicator]]","v":28},{"$f":"T_DataComboFile[[#This Row],[2020/21 Baseline_Source]]*T_DataComboFile[[#This Row],[G&S reporting level indicator]]","v":28},{"$f":"T_DataComboFile[[#This Row],[2021/22 Baseline_Source]]*T_DataComboFile[[#This Row],[G&S reporting level indicator]]","v":30},{"$f":"T_DataComboFile[[#This Row],[2022/23 Baseline_Source]]*T_DataComboFile[[#This Row],[G&S reporting level indicator]]","v":32},{"$f":"T_DataComboFile[[#This Row],[2023/24 Baseline_Source]]*T_DataComboFile[[#This Row],[G&S reporting level indicator]]","v":33},null,null,null,null,null,null,{"$f":"T_DataComboFile[[#This Row],[2021/22 Baseline]]+T_DataComboFile[[#This Row],[2021/22 Reduction]]+T_DataComboFile[[#This Row],[2021/22 Increase]]","v":30},{"$f":"T_DataComboFile[[#This Row],[2022/23 Baseline]]+T_DataComboFile[[#This Row],[2022/23 Reduction]]+T_DataComboFile[[#This Row],[2022/23 Increase]]","v":32},{"$f":"T_DataComboFile[[#This Row],[2023/24 Baseline]]+T_DataComboFile[[#This Row],[2023/24 Reduction]]+T_DataComboFile[[#This Row],[2023/24 Increase]]","v":33}]
[null,null,"2021_22","ENE2020",36,2,2,null,70607,36,2,2,null,"070607","36|02|02",2,3,13,58,62,"02|03|13|58|62","National","Small Business Development","Sector Policy and Research","Policy and Legislation",null,"Capital","Payments for capital assets","Heritage assets","Heritage assets","Heritage assets",null,null,null,0,0,0,0,0,0,0,0,0,0,0,0,0,0,null,{"$f":"IF(T_DataComboFile[[#This Row],[G&S reporting level indicator]]=1,$AX$16,\"Not applicable\")","v":"Level 3"},{"$f":"IF(AND($AX$16=\"Level 3\",T_DataComboFile[[#This Row],[Econ3]] = \"Goods and services\"),IF(T_DataComboFile[[#This Row],[Econ4]] = T_DataComboFile[[#This Row],[Econ3]],1,0),IF(AND($AX$16=\"Level 4\",T_DataComboFile[[#This Row],[Econ4]] = \"Goods and services\"),0,1))","v":1},{"$f":"T_DataComboFile[[#This Row],[2016/17_Source]]*T_DataComboFile[[#This Row],[G&S reporting level indicator]]","v":0},{"$f":"T_DataComboFile[[#This Row],[2017/18_Source]]*T_DataComboFile[[#This Row],[G&S reporting level indicator]]","v":0},{"$f":"T_DataComboFile[[#This Row],[2018/19_Source]]*T_DataComboFile[[#This Row],[G&S reporting level indicator]]","v":0},{"$f":"T_DataComboFile[[#This Row],[2019/20 Main appropriation_Source]]*T_DataComboFile[[#This Row],[G&S reporting level indicator]]","v":0},{"$f":"T_DataComboFile[[#This Row],[2019/20 Adjusted appropriation_Source]]*T_DataComboFile[[#This Row],[G&S reporting level indicator]]","v":0},{"$f":"T_DataComboFile[[#This Row],[2019/20 Revised estimate_Source]]*T_DataComboFile[[#This Row],[G&S reporting level indicator]]","v":0},{"$f":"T_DataComboFile[[#This Row],[2019/20 Preliminary outcome_Source]]*T_DataComboFile[[#This Row],[G&S reporting level indicator]]","v":0},{"$f":"T_DataComboFile[[#This Row],[2020/21 Original_Source]]*T_DataComboFile[[#This Row],[G&S reporting level indicator]]","v":0},{"$f":"T_DataComboFile[[#This Row],[2020/21 SAB_Source]]*T_DataComboFile[[#This Row],[G&S reporting level indicator]]","v":0},{"$f":"T_DataComboFile[[#This Row],[2020/21 Baseline_Source]]*T_DataComboFile[[#This Row],[G&S reporting level indicator]]","v":0},{"$f":"T_DataComboFile[[#This Row],[2021/22 Baseline_Source]]*T_DataComboFile[[#This Row],[G&S reporting level indicator]]","v":0},{"$f":"T_DataComboFile[[#This Row],[2022/23 Baseline_Source]]*T_DataComboFile[[#This Row],[G&S reporting level indicator]]","v":0},{"$f":"T_DataComboFile[[#This Row],[2023/24 Baseline_Source]]*T_DataComboFile[[#This Row],[G&S reporting level indicator]]","v":0},null,null,null,null,null,null,{"$f":"T_DataComboFile[[#This Row],[2021/22 Baseline]]+T_DataComboFile[[#This Row],[2021/22 Reduction]]+T_DataComboFile[[#This Row],[2021/22 Increase]]","v":0},{"$f":"T_DataComboFile[[#This Row],[2022/23 Baseline]]+T_DataComboFile[[#This Row],[2022/23 Reduction]]+T_DataComboFile[[#This Row],[2022/23 Increase]]","v":0},{"$f":"T_DataComboFile[[#This Row],[2023/24 Baseline]]+T_DataComboFile[[#This Row],[2023/24 Reduction]]+T_DataComboFile[[#This Row],[2023/24 Increase]]","v":0}]
[null,null,"2021_22","ENE2020",36,2,2,null,70608,36,2,2,null,"070608","36|02|02",2,3,14,59,63,"02|03|14|59|63","National","Small Business Development","Sector Policy and Research","Policy and Legislation",null,"Capital","Payments for capital assets","Specialised military assets","Specialised military assets","Specialised military assets",null,null,null,0,0,0,0,0,0,0,0,0,0,0,0,0,0,null,{"$f":"IF(T_DataComboFile[[#This Row],[G&S reporting level indicator]]=1,$AX$16,\"Not applicable\")","v":"Level 3"},{"$f":"IF(AND($AX$16=\"Level 3\",T_DataComboFile[[#This Row],[Econ3]] = \"Goods and services\"),IF(T_DataComboFile[[#This Row],[Econ4]] = T_DataComboFile[[#This Row],[Econ3]],1,0),IF(AND($AX$16=\"Level 4\",T_DataComboFile[[#This Row],[Econ4]] = \"Goods and services\"),0,1))","v":1},{"$f":"T_DataComboFile[[#This Row],[2016/17_Source]]*T_DataComboFile[[#This Row],[G&S reporting level indicator]]","v":0},{"$f":"T_DataComboFile[[#This Row],[2017/18_Source]]*T_DataComboFile[[#This Row],[G&S reporting level indicator]]","v":0},{"$f":"T_DataComboFile[[#This Row],[2018/19_Source]]*T_DataComboFile[[#This Row],[G&S reporting level indicator]]","v":0},{"$f":"T_DataComboFile[[#This Row],[2019/20 Main appropriation_Source]]*T_DataComboFile[[#This Row],[G&S reporting level indicator]]","v":0},{"$f":"T_DataComboFile[[#This Row],[2019/20 Adjusted appropriation_Source]]*T_DataComboFile[[#This Row],[G&S reporting level indicator]]","v":0},{"$f":"T_DataComboFile[[#This Row],[2019/20 Revised estimate_Source]]*T_DataComboFile[[#This Row],[G&S reporting level indicator]]","v":0},{"$f":"T_DataComboFile[[#This Row],[2019/20 Preliminary outcome_Source]]*T_DataComboFile[[#This Row],[G&S reporting level indicator]]","v":0},{"$f":"T_DataComboFile[[#This Row],[2020/21 Original_Source]]*T_DataComboFile[[#This Row],[G&S reporting level indicator]]","v":0},{"$f":"T_DataComboFile[[#This Row],[2020/21 SAB_Source]]*T_DataComboFile[[#This Row],[G&S reporting level indicator]]","v":0},{"$f":"T_DataComboFile[[#This Row],[2020/21 Baseline_Source]]*T_DataComboFile[[#This Row],[G&S reporting level indicator]]","v":0},{"$f":"T_DataComboFile[[#This Row],[2021/22 Baseline_Source]]*T_DataComboFile[[#This Row],[G&S reporting level indicator]]","v":0},{"$f":"T_DataComboFile[[#This Row],[2022/23 Baseline_Source]]*T_DataComboFile[[#This Row],[G&S reporting level indicator]]","v":0},{"$f":"T_DataComboFile[[#This Row],[2023/24 Baseline_Source]]*T_DataComboFile[[#This Row],[G&S reporting level indicator]]","v":0},null,null,null,null,null,null,{"$f":"T_DataComboFile[[#This Row],[2021/22 Baseline]]+T_DataComboFile[[#This Row],[2021/22 Reduction]]+T_DataComboFile[[#This Row],[2021/22 Increase]]","v":0},{"$f":"T_DataComboFile[[#This Row],[2022/23 Baseline]]+T_DataComboFile[[#This Row],[2022/23 Reduction]]+T_DataComboFile[[#This Row],[2022/23 Increase]]","v":0},{"$f":"T_DataComboFile[[#This Row],[2023/24 Baseline]]+T_DataComboFile[[#This Row],[2023/24 Reduction]]+T_DataComboFile[[#This Row],[2023/24 Increase]]","v":0}]
[null,null,"2021_22","ENE2020",36,2,2,null,70609,36,2,2,null,"070609","36|02|02",2,3,15,60,64,"02|03|15|60|64","National","Small Business Development","Sector Policy and Research","Policy and Legislation",null,"Capital","Payments for capital assets","Biological assets","Biological assets","Biological assets",null,null,null,0,0,0,0,0,0,0,0,0,0,0,0,0,0,null,{"$f":"IF(T_DataComboFile[[#This Row],[G&S reporting level indicator]]=1,$AX$16,\"Not applicable\")","v":"Level 3"},{"$f":"IF(AND($AX$16=\"Level 3\",T_DataComboFile[[#This Row],[Econ3]] = \"Goods and services\"),IF(T_DataComboFile[[#This Row],[Econ4]] = T_DataComboFile[[#This Row],[Econ3]],1,0),IF(AND($AX$16=\"Level 4\",T_DataComboFile[[#This Row],[Econ4]] = \"Goods and services\"),0,1))","v":1},{"$f":"T_DataComboFile[[#This Row],[2016/17_Source]]*T_DataComboFile[[#This Row],[G&S reporting level indicator]]","v":0},{"$f":"T_DataComboFile[[#This Row],[2017/18_Source]]*T_DataComboFile[[#This Row],[G&S reporting level indicator]]","v":0},{"$f":"T_DataComboFile[[#This Row],[2018/19_Source]]*T_DataComboFile[[#This Row],[G&S reporting level indicator]]","v":0},{"$f":"T_DataComboFile[[#This Row],[2019/20 Main appropriation_Source]]*T_DataComboFile[[#This Row],[G&S reporting level indicator]]","v":0},{"$f":"T_DataComboFile[[#This Row],[2019/20 Adjusted appropriation_Source]]*T_DataComboFile[[#This Row],[G&S reporting level indicator]]","v":0},{"$f":"T_DataComboFile[[#This Row],[2019/20 Revised estimate_Source]]*T_DataComboFile[[#This Row],[G&S reporting level indicator]]","v":0},{"$f":"T_DataComboFile[[#This Row],[2019/20 Preliminary outcome_Source]]*T_DataComboFile[[#This Row],[G&S reporting level indicator]]","v":0},{"$f":"T_DataComboFile[[#This Row],[2020/21 Original_Source]]*T_DataComboFile[[#This Row],[G&S reporting level indicator]]","v":0},{"$f":"T_DataComboFile[[#This Row],[2020/21 SAB_Source]]*T_DataComboFile[[#This Row],[G&S reporting level indicator]]","v":0},{"$f":"T_DataComboFile[[#This Row],[2020/21 Baseline_Source]]*T_DataComboFile[[#This Row],[G&S reporting level indicator]]","v":0},{"$f":"T_DataComboFile[[#This Row],[2021/22 Baseline_Source]]*T_DataComboFile[[#This Row],[G&S reporting level indicator]]","v":0},{"$f":"T_DataComboFile[[#This Row],[2022/23 Baseline_Source]]*T_DataComboFile[[#This Row],[G&S reporting level indicator]]","v":0},{"$f":"T_DataComboFile[[#This Row],[2023/24 Baseline_Source]]*T_DataComboFile[[#This Row],[G&S reporting level indicator]]","v":0},null,null,null,null,null,null,{"$f":"T_DataComboFile[[#This Row],[2021/22 Baseline]]+T_DataComboFile[[#This Row],[2021/22 Reduction]]+T_DataComboFile[[#This Row],[2021/22 Increase]]","v":0},{"$f":"T_DataComboFile[[#This Row],[2022/23 Baseline]]+T_DataComboFile[[#This Row],[2022/23 Reduction]]+T_DataComboFile[[#This Row],[2022/23 Increase]]","v":0},{"$f":"T_DataComboFile[[#This Row],[2023/24 Baseline]]+T_DataComboFile[[#This Row],[2023/24 Reduction]]+T_DataComboFile[[#This Row],[2023/24 Increase]]","v":0}]
[null,null,"2021_22","ENE2020",36,2,2,null,70610,36,2,2,null,"070610","36|02|02",2,3,16,61,65,"02|03|16|61|65","National","Small Business Development","Sector Policy and Research","Policy and Legislation",null,"Capital","Payments for capital assets","Land and sub-soil assets","Land and sub-soil assets","Land and sub-soil assets",null,null,null,0,0,0,0,0,0,0,0,0,0,0,0,0,0,null,{"$f":"IF(T_DataComboFile[[#This Row],[G&S reporting level indicator]]=1,$AX$16,\"Not applicable\")","v":"Level 3"},{"$f":"IF(AND($AX$16=\"Level 3\",T_DataComboFile[[#This Row],[Econ3]] = \"Goods and services\"),IF(T_DataComboFile[[#This Row],[Econ4]] = T_DataComboFile[[#This Row],[Econ3]],1,0),IF(AND($AX$16=\"Level 4\",T_DataComboFile[[#This Row],[Econ4]] = \"Goods and services\"),0,1))","v":1},{"$f":"T_DataComboFile[[#This Row],[2016/17_Source]]*T_DataComboFile[[#This Row],[G&S reporting level indicator]]","v":0},{"$f":"T_DataComboFile[[#This Row],[2017/18_Source]]*T_DataComboFile[[#This Row],[G&S reporting level indicator]]","v":0},{"$f":"T_DataComboFile[[#This Row],[2018/19_Source]]*T_DataComboFile[[#This Row],[G&S reporting level indicator]]","v":0},{"$f":"T_DataComboFile[[#This Row],[2019/20 Main appropriation_Source]]*T_DataComboFile[[#This Row],[G&S reporting level indicator]]","v":0},{"$f":"T_DataComboFile[[#This Row],[2019/20 Adjusted appropriation_Source]]*T_DataComboFile[[#This Row],[G&S reporting level indicator]]","v":0},{"$f":"T_DataComboFile[[#This Row],[2019/20 Revised estimate_Source]]*T_DataComboFile[[#This Row],[G&S reporting level indicator]]","v":0},{"$f":"T_DataComboFile[[#This Row],[2019/20 Preliminary outcome_Source]]*T_DataComboFile[[#This Row],[G&S reporting level indicator]]","v":0},{"$f":"T_DataComboFile[[#This Row],[2020/21 Original_Source]]*T_DataComboFile[[#This Row],[G&S reporting level indicator]]","v":0},{"$f":"T_DataComboFile[[#This Row],[2020/21 SAB_Source]]*T_DataComboFile[[#This Row],[G&S reporting level indicator]]","v":0},{"$f":"T_DataComboFile[[#This Row],[2020/21 Baseline_Source]]*T_DataComboFile[[#This Row],[G&S reporting level indicator]]","v":0},{"$f":"T_DataComboFile[[#This Row],[2021/22 Baseline_Source]]*T_DataComboFile[[#This Row],[G&S reporting level indicator]]","v":0},{"$f":"T_DataComboFile[[#This Row],[2022/23 Baseline_Source]]*T_DataComboFile[[#This Row],[G&S reporting level indicator]]","v":0},{"$f":"T_DataComboFile[[#This Row],[2023/24 Baseline_Source]]*T_DataComboFile[[#This Row],[G&S reporting level indicator]]","v":0},null,null,null,null,null,null,{"$f":"T_DataComboFile[[#This Row],[2021/22 Baseline]]+T_DataComboFile[[#This Row],[2021/22 Reduction]]+T_DataComboFile[[#This Row],[2021/22 Increase]]","v":0},{"$f":"T_DataComboFile[[#This Row],[2022/23 Baseline]]+T_DataComboFile[[#This Row],[2022/23 Reduction]]+T_DataComboFile[[#This Row],[2022/23 Increase]]","v":0},{"$f":"T_DataComboFile[[#This Row],[2023/24 Baseline]]+T_DataComboFile[[#This Row],[2023/24 Reduction]]+T_DataComboFile[[#This Row],[2023/24 Increase]]","v":0}]
[null,null,"2021_22","ENE2020",36,2,2,null,70611,36,2,2,null,"070611","36|02|02",2,3,17,62,66,"02|03|17|62|66","National","Small Business Development","Sector Policy and Research","Policy and Legislation",null,"Capital","Payments for capital assets","Software and other intangible assets","Software and other intangible assets","Software and other intangible assets",null,null,null,0,0,0,0,0,0,0,0,0,0,0,0,0,0,null,{"$f":"IF(T_DataComboFile[[#This Row],[G&S reporting level indicator]]=1,$AX$16,\"Not applicable\")","v":"Level 3"},{"$f":"IF(AND($AX$16=\"Level 3\",T_DataComboFile[[#This Row],[Econ3]] = \"Goods and services\"),IF(T_DataComboFile[[#This Row],[Econ4]] = T_DataComboFile[[#This Row],[Econ3]],1,0),IF(AND($AX$16=\"Level 4\",T_DataComboFile[[#This Row],[Econ4]] = \"Goods and services\"),0,1))","v":1},{"$f":"T_DataComboFile[[#This Row],[2016/17_Source]]*T_DataComboFile[[#This Row],[G&S reporting level indicator]]","v":0},{"$f":"T_DataComboFile[[#This Row],[2017/18_Source]]*T_DataComboFile[[#This Row],[G&S reporting level indicator]]","v":0},{"$f":"T_DataComboFile[[#This Row],[2018/19_Source]]*T_DataComboFile[[#This Row],[G&S reporting level indicator]]","v":0},{"$f":"T_DataComboFile[[#This Row],[2019/20 Main appropriation_Source]]*T_DataComboFile[[#This Row],[G&S reporting level indicator]]","v":0},{"$f":"T_DataComboFile[[#This Row],[2019/20 Adjusted appropriation_Source]]*T_DataComboFile[[#This Row],[G&S reporting level indicator]]","v":0},{"$f":"T_DataComboFile[[#This Row],[2019/20 Revised estimate_Source]]*T_DataComboFile[[#This Row],[G&S reporting level indicator]]","v":0},{"$f":"T_DataComboFile[[#This Row],[2019/20 Preliminary outcome_Source]]*T_DataComboFile[[#This Row],[G&S reporting level indicator]]","v":0},{"$f":"T_DataComboFile[[#This Row],[2020/21 Original_Source]]*T_DataComboFile[[#This Row],[G&S reporting level indicator]]","v":0},{"$f":"T_DataComboFile[[#This Row],[2020/21 SAB_Source]]*T_DataComboFile[[#This Row],[G&S reporting level indicator]]","v":0},{"$f":"T_DataComboFile[[#This Row],[2020/21 Baseline_Source]]*T_DataComboFile[[#This Row],[G&S reporting level indicator]]","v":0},{"$f":"T_DataComboFile[[#This Row],[2021/22 Baseline_Source]]*T_DataComboFile[[#This Row],[G&S reporting level indicator]]","v":0},{"$f":"T_DataComboFile[[#This Row],[2022/23 Baseline_Source]]*T_DataComboFile[[#This Row],[G&S reporting level indicator]]","v":0},{"$f":"T_DataComboFile[[#This Row],[2023/24 Baseline_Source]]*T_DataComboFile[[#This Row],[G&S reporting level indicator]]","v":0},null,null,null,null,null,null,{"$f":"T_DataComboFile[[#This Row],[2021/22 Baseline]]+T_DataComboFile[[#This Row],[2021/22 Reduction]]+T_DataComboFile[[#This Row],[2021/22 Increase]]","v":0},{"$f":"T_DataComboFile[[#This Row],[2022/23 Baseline]]+T_DataComboFile[[#This Row],[2022/23 Reduction]]+T_DataComboFile[[#This Row],[2022/23 Increase]]","v":0},{"$f":"T_DataComboFile[[#This Row],[2023/24 Baseline]]+T_DataComboFile[[#This Row],[2023/24 Reduction]]+T_DataComboFile[[#This Row],[2023/24 Increase]]","v":0}]
[null,null,"2021_22","ENE2020",36,2,2,null,70612,36,2,2,null,"070612","36|02|02",3,4,18,63,67,"03|04|18|63|67","National","Small Business Development","Sector Policy and Research","Policy and Legislation",null,"Payments for financial assets","Payments for financial assets","Payments for financial assets","Payments for financial assets","Payments for financial assets",null,null,null,0,0,0,0,0,0,0,0,0,0,0,0,0,0,null,{"$f":"IF(T_DataComboFile[[#This Row],[G&S reporting level indicator]]=1,$AX$16,\"Not applicable\")","v":"Level 3"},{"$f":"IF(AND($AX$16=\"Level 3\",T_DataComboFile[[#This Row],[Econ3]] = \"Goods and services\"),IF(T_DataComboFile[[#This Row],[Econ4]] = T_DataComboFile[[#This Row],[Econ3]],1,0),IF(AND($AX$16=\"Level 4\",T_DataComboFile[[#This Row],[Econ4]] = \"Goods and services\"),0,1))","v":1},{"$f":"T_DataComboFile[[#This Row],[2016/17_Source]]*T_DataComboFile[[#This Row],[G&S reporting level indicator]]","v":0},{"$f":"T_DataComboFile[[#This Row],[2017/18_Source]]*T_DataComboFile[[#This Row],[G&S reporting level indicator]]","v":0},{"$f":"T_DataComboFile[[#This Row],[2018/19_Source]]*T_DataComboFile[[#This Row],[G&S reporting level indicator]]","v":0},{"$f":"T_DataComboFile[[#This Row],[2019/20 Main appropriation_Source]]*T_DataComboFile[[#This Row],[G&S reporting level indicator]]","v":0},{"$f":"T_DataComboFile[[#This Row],[2019/20 Adjusted appropriation_Source]]*T_DataComboFile[[#This Row],[G&S reporting level indicator]]","v":0},{"$f":"T_DataComboFile[[#This Row],[2019/20 Revised estimate_Source]]*T_DataComboFile[[#This Row],[G&S reporting level indicator]]","v":0},{"$f":"T_DataComboFile[[#This Row],[2019/20 Preliminary outcome_Source]]*T_DataComboFile[[#This Row],[G&S reporting level indicator]]","v":0},{"$f":"T_DataComboFile[[#This Row],[2020/21 Original_Source]]*T_DataComboFile[[#This Row],[G&S reporting level indicator]]","v":0},{"$f":"T_DataComboFile[[#This Row],[2020/21 SAB_Source]]*T_DataComboFile[[#This Row],[G&S reporting level indicator]]","v":0},{"$f":"T_DataComboFile[[#This Row],[2020/21 Baseline_Source]]*T_DataComboFile[[#This Row],[G&S reporting level indicator]]","v":0},{"$f":"T_DataComboFile[[#This Row],[2021/22 Baseline_Source]]*T_DataComboFile[[#This Row],[G&S reporting level indicator]]","v":0},{"$f":"T_DataComboFile[[#This Row],[2022/23 Baseline_Source]]*T_DataComboFile[[#This Row],[G&S reporting level indicator]]","v":0},{"$f":"T_DataComboFile[[#This Row],[2023/24 Baseline_Source]]*T_DataComboFile[[#This Row],[G&S reporting level indicator]]","v":0},null,null,null,null,null,null,{"$f":"T_DataComboFile[[#This Row],[2021/22 Baseline]]+T_DataComboFile[[#This Row],[2021/22 Reduction]]+T_DataComboFile[[#This Row],[2021/22 Increase]]","v":0},{"$f":"T_DataComboFile[[#This Row],[2022/23 Baseline]]+T_DataComboFile[[#This Row],[2022/23 Reduction]]+T_DataComboFile[[#This Row],[2022/23 Increase]]","v":0},{"$f":"T_DataComboFile[[#This Row],[2023/24 Baseline]]+T_DataComboFile[[#This Row],[2023/24 Reduction]]+T_DataComboFile[[#This Row],[2023/24 Increase]]","v":0}]
["NAT|Non-transfer item","36|Salaries and wages","2021_22","ENE2020",36,2,3,17312,70613,36,2,3,17312,"070613","36|02|03",1,1,1,1,1,"01|01|01|01|01","National","Small Business Development","Sector Policy and Research","International Relations","Non-transfer item","Current","Current payments","Compensation of employees","Salaries and wages","Salaries and wages","Economic development","Industrialisation and exports","NAT",0,3048,1923,3890,3890,3890,3890,0,0,0,0,0,0,1,null,{"$f":"IF(T_DataComboFile[[#This Row],[G&S reporting level indicator]]=1,$AX$16,\"Not applicable\")","v":"Level 3"},{"$f":"IF(AND($AX$16=\"Level 3\",T_DataComboFile[[#This Row],[Econ3]] = \"Goods and services\"),IF(T_DataComboFile[[#This Row],[Econ4]] = T_DataComboFile[[#This Row],[Econ3]],1,0),IF(AND($AX$16=\"Level 4\",T_DataComboFile[[#This Row],[Econ4]] = \"Goods and services\"),0,1))","v":1},{"$f":"T_DataComboFile[[#This Row],[2016/17_Source]]*T_DataComboFile[[#This Row],[G&S reporting level indicator]]","v":0},{"$f":"T_DataComboFile[[#This Row],[2017/18_Source]]*T_DataComboFile[[#This Row],[G&S reporting level indicator]]","v":3048},{"$f":"T_DataComboFile[[#This Row],[2018/19_Source]]*T_DataComboFile[[#This Row],[G&S reporting level indicator]]","v":1923},{"$f":"T_DataComboFile[[#This Row],[2019/20 Main appropriation_Source]]*T_DataComboFile[[#This Row],[G&S reporting level indicator]]","v":3890},{"$f":"T_DataComboFile[[#This Row],[2019/20 Adjusted appropriation_Source]]*T_DataComboFile[[#This Row],[G&S reporting level indicator]]","v":3890},{"$f":"T_DataComboFile[[#This Row],[2019/20 Revised estimate_Source]]*T_DataComboFile[[#This Row],[G&S reporting level indicator]]","v":3890},{"$f":"T_DataComboFile[[#This Row],[2019/20 Preliminary outcome_Source]]*T_DataComboFile[[#This Row],[G&S reporting level indicator]]","v":3890},{"$f":"T_DataComboFile[[#This Row],[2020/21 Original_Source]]*T_DataComboFile[[#This Row],[G&S reporting level indicator]]","v":0},{"$f":"T_DataComboFile[[#This Row],[2020/21 SAB_Source]]*T_DataComboFile[[#This Row],[G&S reporting level indicator]]","v":0},{"$f":"T_DataComboFile[[#This Row],[2020/21 Baseline_Source]]*T_DataComboFile[[#This Row],[G&S reporting level indicator]]","v":0},{"$f":"T_DataComboFile[[#This Row],[2021/22 Baseline_Source]]*T_DataComboFile[[#This Row],[G&S reporting level indicator]]","v":0},{"$f":"T_DataComboFile[[#This Row],[2022/23 Baseline_Source]]*T_DataComboFile[[#This Row],[G&S reporting level indicator]]","v":0},{"$f":"T_DataComboFile[[#This Row],[2023/24 Baseline_Source]]*T_DataComboFile[[#This Row],[G&S reporting level indicator]]","v":0},null,null,null,null,null,null,{"$f":"T_DataComboFile[[#This Row],[2021/22 Baseline]]+T_DataComboFile[[#This Row],[2021/22 Reduction]]+T_DataComboFile[[#This Row],[2021/22 Increase]]","v":0},{"$f":"T_DataComboFile[[#This Row],[2022/23 Baseline]]+T_DataComboFile[[#This Row],[2022/23 Reduction]]+T_DataComboFile[[#This Row],[2022/23 Increase]]","v":0},{"$f":"T_DataComboFile[[#This Row],[2023/24 Baseline]]+T_DataComboFile[[#This Row],[2023/24 Reduction]]+T_DataComboFile[[#This Row],[2023/24 Increase]]","v":0}]
["NAT|Non-transfer item","36|Social contributions","2021_22","ENE2020",36,2,3,17313,70614,36,2,3,17313,"070614","36|02|03",1,1,1,2,2,"01|01|01|02|02","National","Small Business Development","Sector Policy and Research","International Relations","Non-transfer item","Current","Current payments","Compensation of employees","Social contributions","Social contributions","Economic development","Industrialisation and exports","NAT",0,307,212,210,210,210,210,0,0,0,0,0,0,1,null,{"$f":"IF(T_DataComboFile[[#This Row],[G&S reporting level indicator]]=1,$AX$16,\"Not applicable\")","v":"Level 3"},{"$f":"IF(AND($AX$16=\"Level 3\",T_DataComboFile[[#This Row],[Econ3]] = \"Goods and services\"),IF(T_DataComboFile[[#This Row],[Econ4]] = T_DataComboFile[[#This Row],[Econ3]],1,0),IF(AND($AX$16=\"Level 4\",T_DataComboFile[[#This Row],[Econ4]] = \"Goods and services\"),0,1))","v":1},{"$f":"T_DataComboFile[[#This Row],[2016/17_Source]]*T_DataComboFile[[#This Row],[G&S reporting level indicator]]","v":0},{"$f":"T_DataComboFile[[#This Row],[2017/18_Source]]*T_DataComboFile[[#This Row],[G&S reporting level indicator]]","v":307},{"$f":"T_DataComboFile[[#This Row],[2018/19_Source]]*T_DataComboFile[[#This Row],[G&S reporting level indicator]]","v":212},{"$f":"T_DataComboFile[[#This Row],[2019/20 Main appropriation_Source]]*T_DataComboFile[[#This Row],[G&S reporting level indicator]]","v":210},{"$f":"T_DataComboFile[[#This Row],[2019/20 Adjusted appropriation_Source]]*T_DataComboFile[[#This Row],[G&S reporting level indicator]]","v":210},{"$f":"T_DataComboFile[[#This Row],[2019/20 Revised estimate_Source]]*T_DataComboFile[[#This Row],[G&S reporting level indicator]]","v":210},{"$f":"T_DataComboFile[[#This Row],[2019/20 Preliminary outcome_Source]]*T_DataComboFile[[#This Row],[G&S reporting level indicator]]","v":210},{"$f":"T_DataComboFile[[#This Row],[2020/21 Original_Source]]*T_DataComboFile[[#This Row],[G&S reporting level indicator]]","v":0},{"$f":"T_DataComboFile[[#This Row],[2020/21 SAB_Source]]*T_DataComboFile[[#This Row],[G&S reporting level indicator]]","v":0},{"$f":"T_DataComboFile[[#This Row],[2020/21 Baseline_Source]]*T_DataComboFile[[#This Row],[G&S reporting level indicator]]","v":0},{"$f":"T_DataComboFile[[#This Row],[2021/22 Baseline_Source]]*T_DataComboFile[[#This Row],[G&S reporting level indicator]]","v":0},{"$f":"T_DataComboFile[[#This Row],[2022/23 Baseline_Source]]*T_DataComboFile[[#This Row],[G&S reporting level indicator]]","v":0},{"$f":"T_DataComboFile[[#This Row],[2023/24 Baseline_Source]]*T_DataComboFile[[#This Row],[G&S reporting level indicator]]","v":0},null,null,null,null,null,null,{"$f":"T_DataComboFile[[#This Row],[2021/22 Baseline]]+T_DataComboFile[[#This Row],[2021/22 Reduction]]+T_DataComboFile[[#This Row],[2021/22 Increase]]","v":0},{"$f":"T_DataComboFile[[#This Row],[2022/23 Baseline]]+T_DataComboFile[[#This Row],[2022/23 Reduction]]+T_DataComboFile[[#This Row],[2022/23 Increase]]","v":0},{"$f":"T_DataComboFile[[#This Row],[2023/24 Baseline]]+T_DataComboFile[[#This Row],[2023/24 Reduction]]+T_DataComboFile[[#This Row],[2023/24 Increase]]","v":0}]
[null,null,"2021_22","ENE2020",36,2,3,null,70615,36,2,3,null,"070615","36|02|03",1,1,2,2,2,"01|01|02|02|02","National","Small Business Development","Sector Policy and Research","International Relations","Non-transfer item","Current","Current payments","Goods and services","Goods and services","Goods and services","Economic development","Industrialisation and exports","NAT",0,486,984,1910,1910,1910,1910,0,0,0,0,0,0,1,null,{"$f":"IF(T_DataComboFile[[#This Row],[G&S reporting level indicator]]=1,$AX$16,\"Not applicable\")","v":"Level 3"},{"$f":"IF(AND($AX$16=\"Level 3\",T_DataComboFile[[#This Row],[Econ3]] = \"Goods and services\"),IF(T_DataComboFile[[#This Row],[Econ4]] = T_DataComboFile[[#This Row],[Econ3]],1,0),IF(AND($AX$16=\"Level 4\",T_DataComboFile[[#This Row],[Econ4]] = \"Goods and services\"),0,1))","v":1},{"$f":"T_DataComboFile[[#This Row],[2016/17_Source]]*T_DataComboFile[[#This Row],[G&S reporting level indicator]]","v":0},{"$f":"T_DataComboFile[[#This Row],[2017/18_Source]]*T_DataComboFile[[#This Row],[G&S reporting level indicator]]","v":486},{"$f":"T_DataComboFile[[#This Row],[2018/19_Source]]*T_DataComboFile[[#This Row],[G&S reporting level indicator]]","v":984},{"$f":"T_DataComboFile[[#This Row],[2019/20 Main appropriation_Source]]*T_DataComboFile[[#This Row],[G&S reporting level indicator]]","v":1910},{"$f":"T_DataComboFile[[#This Row],[2019/20 Adjusted appropriation_Source]]*T_DataComboFile[[#This Row],[G&S reporting level indicator]]","v":1910},{"$f":"T_DataComboFile[[#This Row],[2019/20 Revised estimate_Source]]*T_DataComboFile[[#This Row],[G&S reporting level indicator]]","v":1910},{"$f":"T_DataComboFile[[#This Row],[2019/20 Preliminary outcome_Source]]*T_DataComboFile[[#This Row],[G&S reporting level indicator]]","v":1910},{"$f":"T_DataComboFile[[#This Row],[2020/21 Original_Source]]*T_DataComboFile[[#This Row],[G&S reporting level indicator]]","v":0},{"$f":"T_DataComboFile[[#This Row],[2020/21 SAB_Source]]*T_DataComboFile[[#This Row],[G&S reporting level indicator]]","v":0},{"$f":"T_DataComboFile[[#This Row],[2020/21 Baseline_Source]]*T_DataComboFile[[#This Row],[G&S reporting level indicator]]","v":0},{"$f":"T_DataComboFile[[#This Row],[2021/22 Baseline_Source]]*T_DataComboFile[[#This Row],[G&S reporting level indicator]]","v":0},{"$f":"T_DataComboFile[[#This Row],[2022/23 Baseline_Source]]*T_DataComboFile[[#This Row],[G&S reporting level indicator]]","v":0},{"$f":"T_DataComboFile[[#This Row],[2023/24 Baseline_Source]]*T_DataComboFile[[#This Row],[G&S reporting level indicator]]","v":0},null,null,null,null,null,null,{"$f":"T_DataComboFile[[#This Row],[2021/22 Baseline]]+T_DataComboFile[[#This Row],[2021/22 Reduction]]+T_DataComboFile[[#This Row],[2021/22 Increase]]","v":0},{"$f":"T_DataComboFile[[#This Row],[2022/23 Baseline]]+T_DataComboFile[[#This Row],[2022/23 Reduction]]+T_DataComboFile[[#This Row],[2022/23 Increase]]","v":0},{"$f":"T_DataComboFile[[#This Row],[2023/24 Baseline]]+T_DataComboFile[[#This Row],[2023/24 Reduction]]+T_DataComboFile[[#This Row],[2023/24 Increase]]","v":0}]
["NAT|Non-transfer item","36|Administrative fees","2021_22","ENE2020",36,2,3,17314,70616,36,2,3,17314,"070616","36|02|03",1,1,2,3,3,"01|01|02|03|03","National","Small Business Development","Sector Policy and Research","International Relations","Non-transfer item","Current","Current payments","Goods and services","Administrative fees","Administrative fees","Economic development","Industrialisation and exports","NAT",0,26,21,33,27,27,27,0,0,0,0,0,0,1,null,{"$f":"IF(T_DataComboFile[[#This Row],[G&S reporting level indicator]]=1,$AX$16,\"Not applicable\")","v":"Not applicable"},{"$f":"IF(AND($AX$16=\"Level 3\",T_DataComboFile[[#This Row],[Econ3]] = \"Goods and services\"),IF(T_DataComboFile[[#This Row],[Econ4]] = T_DataComboFile[[#This Row],[Econ3]],1,0),IF(AND($AX$16=\"Level 4\",T_DataComboFile[[#This Row],[Econ4]] = \"Goods and services\"),0,1))","v":0},{"$f":"T_DataComboFile[[#This Row],[2016/17_Source]]*T_DataComboFile[[#This Row],[G&S reporting level indicator]]","v":0},{"$f":"T_DataComboFile[[#This Row],[2017/18_Source]]*T_DataComboFile[[#This Row],[G&S reporting level indicator]]","v":0},{"$f":"T_DataComboFile[[#This Row],[2018/19_Source]]*T_DataComboFile[[#This Row],[G&S reporting level indicator]]","v":0},{"$f":"T_DataComboFile[[#This Row],[2019/20 Main appropriation_Source]]*T_DataComboFile[[#This Row],[G&S reporting level indicator]]","v":0},{"$f":"T_DataComboFile[[#This Row],[2019/20 Adjusted appropriation_Source]]*T_DataComboFile[[#This Row],[G&S reporting level indicator]]","v":0},{"$f":"T_DataComboFile[[#This Row],[2019/20 Revised estimate_Source]]*T_DataComboFile[[#This Row],[G&S reporting level indicator]]","v":0},{"$f":"T_DataComboFile[[#This Row],[2019/20 Preliminary outcome_Source]]*T_DataComboFile[[#This Row],[G&S reporting level indicator]]","v":0},{"$f":"T_DataComboFile[[#This Row],[2020/21 Original_Source]]*T_DataComboFile[[#This Row],[G&S reporting level indicator]]","v":0},{"$f":"T_DataComboFile[[#This Row],[2020/21 SAB_Source]]*T_DataComboFile[[#This Row],[G&S reporting level indicator]]","v":0},{"$f":"T_DataComboFile[[#This Row],[2020/21 Baseline_Source]]*T_DataComboFile[[#This Row],[G&S reporting level indicator]]","v":0},{"$f":"T_DataComboFile[[#This Row],[2021/22 Baseline_Source]]*T_DataComboFile[[#This Row],[G&S reporting level indicator]]","v":0},{"$f":"T_DataComboFile[[#This Row],[2022/23 Baseline_Source]]*T_DataComboFile[[#This Row],[G&S reporting level indicator]]","v":0},{"$f":"T_DataComboFile[[#This Row],[2023/24 Baseline_Source]]*T_DataComboFile[[#This Row],[G&S reporting level indicator]]","v":0},null,null,null,null,null,null,{"$f":"T_DataComboFile[[#This Row],[2021/22 Baseline]]+T_DataComboFile[[#This Row],[2021/22 Reduction]]+T_DataComboFile[[#This Row],[2021/22 Increase]]","v":0},{"$f":"T_DataComboFile[[#This Row],[2022/23 Baseline]]+T_DataComboFile[[#This Row],[2022/23 Reduction]]+T_DataComboFile[[#This Row],[2022/23 Increase]]","v":0},{"$f":"T_DataComboFile[[#This Row],[2023/24 Baseline]]+T_DataComboFile[[#This Row],[2023/24 Reduction]]+T_DataComboFile[[#This Row],[2023/24 Increase]]","v":0}]
["NAT|Non-transfer item","36|Advertising","2021_22","ENE2020",36,2,3,17315,70617,36,2,3,17315,"070617","36|02|03",1,1,2,4,4,"01|01|02|04|04","National","Small Business Development","Sector Policy and Research","International Relations","Non-transfer item","Current","Current payments","Goods and services","Advertising","Advertising","Economic development","Industrialisation and exports","NAT",0,0,27,0,0,0,0,0,0,0,0,0,0,1,null,{"$f":"IF(T_DataComboFile[[#This Row],[G&S reporting level indicator]]=1,$AX$16,\"Not applicable\")","v":"Not applicable"},{"$f":"IF(AND($AX$16=\"Level 3\",T_DataComboFile[[#This Row],[Econ3]] = \"Goods and services\"),IF(T_DataComboFile[[#This Row],[Econ4]] = T_DataComboFile[[#This Row],[Econ3]],1,0),IF(AND($AX$16=\"Level 4\",T_DataComboFile[[#This Row],[Econ4]] = \"Goods and services\"),0,1))","v":0},{"$f":"T_DataComboFile[[#This Row],[2016/17_Source]]*T_DataComboFile[[#This Row],[G&S reporting level indicator]]","v":0},{"$f":"T_DataComboFile[[#This Row],[2017/18_Source]]*T_DataComboFile[[#This Row],[G&S reporting level indicator]]","v":0},{"$f":"T_DataComboFile[[#This Row],[2018/19_Source]]*T_DataComboFile[[#This Row],[G&S reporting level indicator]]","v":0},{"$f":"T_DataComboFile[[#This Row],[2019/20 Main appropriation_Source]]*T_DataComboFile[[#This Row],[G&S reporting level indicator]]","v":0},{"$f":"T_DataComboFile[[#This Row],[2019/20 Adjusted appropriation_Source]]*T_DataComboFile[[#This Row],[G&S reporting level indicator]]","v":0},{"$f":"T_DataComboFile[[#This Row],[2019/20 Revised estimate_Source]]*T_DataComboFile[[#This Row],[G&S reporting level indicator]]","v":0},{"$f":"T_DataComboFile[[#This Row],[2019/20 Preliminary outcome_Source]]*T_DataComboFile[[#This Row],[G&S reporting level indicator]]","v":0},{"$f":"T_DataComboFile[[#This Row],[2020/21 Original_Source]]*T_DataComboFile[[#This Row],[G&S reporting level indicator]]","v":0},{"$f":"T_DataComboFile[[#This Row],[2020/21 SAB_Source]]*T_DataComboFile[[#This Row],[G&S reporting level indicator]]","v":0},{"$f":"T_DataComboFile[[#This Row],[2020/21 Baseline_Source]]*T_DataComboFile[[#This Row],[G&S reporting level indicator]]","v":0},{"$f":"T_DataComboFile[[#This Row],[2021/22 Baseline_Source]]*T_DataComboFile[[#This Row],[G&S reporting level indicator]]","v":0},{"$f":"T_DataComboFile[[#This Row],[2022/23 Baseline_Source]]*T_DataComboFile[[#This Row],[G&S reporting level indicator]]","v":0},{"$f":"T_DataComboFile[[#This Row],[2023/24 Baseline_Source]]*T_DataComboFile[[#This Row],[G&S reporting level indicator]]","v":0},null,null,null,null,null,null,{"$f":"T_DataComboFile[[#This Row],[2021/22 Baseline]]+T_DataComboFile[[#This Row],[2021/22 Reduction]]+T_DataComboFile[[#This Row],[2021/22 Increase]]","v":0},{"$f":"T_DataComboFile[[#This Row],[2022/23 Baseline]]+T_DataComboFile[[#This Row],[2022/23 Reduction]]+T_DataComboFile[[#This Row],[2022/23 Increase]]","v":0},{"$f":"T_DataComboFile[[#This Row],[2023/24 Baseline]]+T_DataComboFile[[#This Row],[2023/24 Reduction]]+T_DataComboFile[[#This Row],[2023/24 Increase]]","v":0}]
[null,null,"2021_22","ENE2020",36,2,3,null,70618,36,2,3,null,"070618","36|02|03",1,1,2,5,5,"01|01|02|05|05","National","Small Business Development","Sector Policy and Research","International Relations",null,"Current","Current payments","Goods and services","Minor assets","Minor assets",null,null,null,0,0,0,0,0,0,0,0,0,0,0,0,0,0,null,{"$f":"IF(T_DataComboFile[[#This Row],[G&S reporting level indicator]]=1,$AX$16,\"Not applicable\")","v":"Not applicable"},{"$f":"IF(AND($AX$16=\"Level 3\",T_DataComboFile[[#This Row],[Econ3]] = \"Goods and services\"),IF(T_DataComboFile[[#This Row],[Econ4]] = T_DataComboFile[[#This Row],[Econ3]],1,0),IF(AND($AX$16=\"Level 4\",T_DataComboFile[[#This Row],[Econ4]] = \"Goods and services\"),0,1))","v":0},{"$f":"T_DataComboFile[[#This Row],[2016/17_Source]]*T_DataComboFile[[#This Row],[G&S reporting level indicator]]","v":0},{"$f":"T_DataComboFile[[#This Row],[2017/18_Source]]*T_DataComboFile[[#This Row],[G&S reporting level indicator]]","v":0},{"$f":"T_DataComboFile[[#This Row],[2018/19_Source]]*T_DataComboFile[[#This Row],[G&S reporting level indicator]]","v":0},{"$f":"T_DataComboFile[[#This Row],[2019/20 Main appropriation_Source]]*T_DataComboFile[[#This Row],[G&S reporting level indicator]]","v":0},{"$f":"T_DataComboFile[[#This Row],[2019/20 Adjusted appropriation_Source]]*T_DataComboFile[[#This Row],[G&S reporting level indicator]]","v":0},{"$f":"T_DataComboFile[[#This Row],[2019/20 Revised estimate_Source]]*T_DataComboFile[[#This Row],[G&S reporting level indicator]]","v":0},{"$f":"T_DataComboFile[[#This Row],[2019/20 Preliminary outcome_Source]]*T_DataComboFile[[#This Row],[G&S reporting level indicator]]","v":0},{"$f":"T_DataComboFile[[#This Row],[2020/21 Original_Source]]*T_DataComboFile[[#This Row],[G&S reporting level indicator]]","v":0},{"$f":"T_DataComboFile[[#This Row],[2020/21 SAB_Source]]*T_DataComboFile[[#This Row],[G&S reporting level indicator]]","v":0},{"$f":"T_DataComboFile[[#This Row],[2020/21 Baseline_Source]]*T_DataComboFile[[#This Row],[G&S reporting level indicator]]","v":0},{"$f":"T_DataComboFile[[#This Row],[2021/22 Baseline_Source]]*T_DataComboFile[[#This Row],[G&S reporting level indicator]]","v":0},{"$f":"T_DataComboFile[[#This Row],[2022/23 Baseline_Source]]*T_DataComboFile[[#This Row],[G&S reporting level indicator]]","v":0},{"$f":"T_DataComboFile[[#This Row],[2023/24 Baseline_Source]]*T_DataComboFile[[#This Row],[G&S reporting level indicator]]","v":0},null,null,null,null,null,null,{"$f":"T_DataComboFile[[#This Row],[2021/22 Baseline]]+T_DataComboFile[[#This Row],[2021/22 Reduction]]+T_DataComboFile[[#This Row],[2021/22 Increase]]","v":0},{"$f":"T_DataComboFile[[#This Row],[2022/23 Baseline]]+T_DataComboFile[[#This Row],[2022/23 Reduction]]+T_DataComboFile[[#This Row],[2022/23 Increase]]","v":0},{"$f":"T_DataComboFile[[#This Row],[2023/24 Baseline]]+T_DataComboFile[[#This Row],[2023/24 Reduction]]+T_DataComboFile[[#This Row],[2023/24 Increase]]","v":0}]
[null,null,"2021_22","ENE2020",36,2,3,null,70619,36,2,3,null,"070619","36|02|03",1,1,2,6,6,"01|01|02|06|06","National","Small Business Development","Sector Policy and Research","International Relations",null,"Current","Current payments","Goods and services","Audit costs: External","Audit costs: External",null,null,null,0,0,0,0,0,0,0,0,0,0,0,0,0,0,null,{"$f":"IF(T_DataComboFile[[#This Row],[G&S reporting level indicator]]=1,$AX$16,\"Not applicable\")","v":"Not applicable"},{"$f":"IF(AND($AX$16=\"Level 3\",T_DataComboFile[[#This Row],[Econ3]] = \"Goods and services\"),IF(T_DataComboFile[[#This Row],[Econ4]] = T_DataComboFile[[#This Row],[Econ3]],1,0),IF(AND($AX$16=\"Level 4\",T_DataComboFile[[#This Row],[Econ4]] = \"Goods and services\"),0,1))","v":0},{"$f":"T_DataComboFile[[#This Row],[2016/17_Source]]*T_DataComboFile[[#This Row],[G&S reporting level indicator]]","v":0},{"$f":"T_DataComboFile[[#This Row],[2017/18_Source]]*T_DataComboFile[[#This Row],[G&S reporting level indicator]]","v":0},{"$f":"T_DataComboFile[[#This Row],[2018/19_Source]]*T_DataComboFile[[#This Row],[G&S reporting level indicator]]","v":0},{"$f":"T_DataComboFile[[#This Row],[2019/20 Main appropriation_Source]]*T_DataComboFile[[#This Row],[G&S reporting level indicator]]","v":0},{"$f":"T_DataComboFile[[#This Row],[2019/20 Adjusted appropriation_Source]]*T_DataComboFile[[#This Row],[G&S reporting level indicator]]","v":0},{"$f":"T_DataComboFile[[#This Row],[2019/20 Revised estimate_Source]]*T_DataComboFile[[#This Row],[G&S reporting level indicator]]","v":0},{"$f":"T_DataComboFile[[#This Row],[2019/20 Preliminary outcome_Source]]*T_DataComboFile[[#This Row],[G&S reporting level indicator]]","v":0},{"$f":"T_DataComboFile[[#This Row],[2020/21 Original_Source]]*T_DataComboFile[[#This Row],[G&S reporting level indicator]]","v":0},{"$f":"T_DataComboFile[[#This Row],[2020/21 SAB_Source]]*T_DataComboFile[[#This Row],[G&S reporting level indicator]]","v":0},{"$f":"T_DataComboFile[[#This Row],[2020/21 Baseline_Source]]*T_DataComboFile[[#This Row],[G&S reporting level indicator]]","v":0},{"$f":"T_DataComboFile[[#This Row],[2021/22 Baseline_Source]]*T_DataComboFile[[#This Row],[G&S reporting level indicator]]","v":0},{"$f":"T_DataComboFile[[#This Row],[2022/23 Baseline_Source]]*T_DataComboFile[[#This Row],[G&S reporting level indicator]]","v":0},{"$f":"T_DataComboFile[[#This Row],[2023/24 Baseline_Source]]*T_DataComboFile[[#This Row],[G&S reporting level indicator]]","v":0},null,null,null,null,null,null,{"$f":"T_DataComboFile[[#This Row],[2021/22 Baseline]]+T_DataComboFile[[#This Row],[2021/22 Reduction]]+T_DataComboFile[[#This Row],[2021/22 Increase]]","v":0},{"$f":"T_DataComboFile[[#This Row],[2022/23 Baseline]]+T_DataComboFile[[#This Row],[2022/23 Reduction]]+T_DataComboFile[[#This Row],[2022/23 Increase]]","v":0},{"$f":"T_DataComboFile[[#This Row],[2023/24 Baseline]]+T_DataComboFile[[#This Row],[2023/24 Reduction]]+T_DataComboFile[[#This Row],[2023/24 Increase]]","v":0}]
[null,null,"2021_22","ENE2020",36,2,3,null,70620,36,2,3,null,"070620","36|02|03",1,1,2,7,7,"01|01|02|07|07","National","Small Business Development","Sector Policy and Research","International Relations",null,"Current","Current payments","Goods and services","Bursaries: Employees","Bursaries: Employees",null,null,null,0,0,0,0,0,0,0,0,0,0,0,0,0,0,null,{"$f":"IF(T_DataComboFile[[#This Row],[G&S reporting level indicator]]=1,$AX$16,\"Not applicable\")","v":"Not applicable"},{"$f":"IF(AND($AX$16=\"Level 3\",T_DataComboFile[[#This Row],[Econ3]] = \"Goods and services\"),IF(T_DataComboFile[[#This Row],[Econ4]] = T_DataComboFile[[#This Row],[Econ3]],1,0),IF(AND($AX$16=\"Level 4\",T_DataComboFile[[#This Row],[Econ4]] = \"Goods and services\"),0,1))","v":0},{"$f":"T_DataComboFile[[#This Row],[2016/17_Source]]*T_DataComboFile[[#This Row],[G&S reporting level indicator]]","v":0},{"$f":"T_DataComboFile[[#This Row],[2017/18_Source]]*T_DataComboFile[[#This Row],[G&S reporting level indicator]]","v":0},{"$f":"T_DataComboFile[[#This Row],[2018/19_Source]]*T_DataComboFile[[#This Row],[G&S reporting level indicator]]","v":0},{"$f":"T_DataComboFile[[#This Row],[2019/20 Main appropriation_Source]]*T_DataComboFile[[#This Row],[G&S reporting level indicator]]","v":0},{"$f":"T_DataComboFile[[#This Row],[2019/20 Adjusted appropriation_Source]]*T_DataComboFile[[#This Row],[G&S reporting level indicator]]","v":0},{"$f":"T_DataComboFile[[#This Row],[2019/20 Revised estimate_Source]]*T_DataComboFile[[#This Row],[G&S reporting level indicator]]","v":0},{"$f":"T_DataComboFile[[#This Row],[2019/20 Preliminary outcome_Source]]*T_DataComboFile[[#This Row],[G&S reporting level indicator]]","v":0},{"$f":"T_DataComboFile[[#This Row],[2020/21 Original_Source]]*T_DataComboFile[[#This Row],[G&S reporting level indicator]]","v":0},{"$f":"T_DataComboFile[[#This Row],[2020/21 SAB_Source]]*T_DataComboFile[[#This Row],[G&S reporting level indicator]]","v":0},{"$f":"T_DataComboFile[[#This Row],[2020/21 Baseline_Source]]*T_DataComboFile[[#This Row],[G&S reporting level indicator]]","v":0},{"$f":"T_DataComboFile[[#This Row],[2021/22 Baseline_Source]]*T_DataComboFile[[#This Row],[G&S reporting level indicator]]","v":0},{"$f":"T_DataComboFile[[#This Row],[2022/23 Baseline_Source]]*T_DataComboFile[[#This Row],[G&S reporting level indicator]]","v":0},{"$f":"T_DataComboFile[[#This Row],[2023/24 Baseline_Source]]*T_DataComboFile[[#This Row],[G&S reporting level indicator]]","v":0},null,null,null,null,null,null,{"$f":"T_DataComboFile[[#This Row],[2021/22 Baseline]]+T_DataComboFile[[#This Row],[2021/22 Reduction]]+T_DataComboFile[[#This Row],[2021/22 Increase]]","v":0},{"$f":"T_DataComboFile[[#This Row],[2022/23 Baseline]]+T_DataComboFile[[#This Row],[2022/23 Reduction]]+T_DataComboFile[[#This Row],[2022/23 Increase]]","v":0},{"$f":"T_DataComboFile[[#This Row],[2023/24 Baseline]]+T_DataComboFile[[#This Row],[2023/24 Reduction]]+T_DataComboFile[[#This Row],[2023/24 Increase]]","v":0}]
["NAT|Non-transfer item","36|Catering: Departmental activities","2021_22","ENE2020",36,2,3,17316,70621,36,2,3,17316,"070621","36|02|03",1,1,2,8,8,"01|01|02|08|08","National","Small Business Development","Sector Policy and Research","International Relations","Non-transfer item","Current","Current payments","Goods and services","Catering: Departmental activities","Catering: Departmental activities","Economic development","Industrialisation and exports","NAT",0,0,0,0,5,5,5,0,0,0,0,0,0,1,null,{"$f":"IF(T_DataComboFile[[#This Row],[G&S reporting level indicator]]=1,$AX$16,\"Not applicable\")","v":"Not applicable"},{"$f":"IF(AND($AX$16=\"Level 3\",T_DataComboFile[[#This Row],[Econ3]] = \"Goods and services\"),IF(T_DataComboFile[[#This Row],[Econ4]] = T_DataComboFile[[#This Row],[Econ3]],1,0),IF(AND($AX$16=\"Level 4\",T_DataComboFile[[#This Row],[Econ4]] = \"Goods and services\"),0,1))","v":0},{"$f":"T_DataComboFile[[#This Row],[2016/17_Source]]*T_DataComboFile[[#This Row],[G&S reporting level indicator]]","v":0},{"$f":"T_DataComboFile[[#This Row],[2017/18_Source]]*T_DataComboFile[[#This Row],[G&S reporting level indicator]]","v":0},{"$f":"T_DataComboFile[[#This Row],[2018/19_Source]]*T_DataComboFile[[#This Row],[G&S reporting level indicator]]","v":0},{"$f":"T_DataComboFile[[#This Row],[2019/20 Main appropriation_Source]]*T_DataComboFile[[#This Row],[G&S reporting level indicator]]","v":0},{"$f":"T_DataComboFile[[#This Row],[2019/20 Adjusted appropriation_Source]]*T_DataComboFile[[#This Row],[G&S reporting level indicator]]","v":0},{"$f":"T_DataComboFile[[#This Row],[2019/20 Revised estimate_Source]]*T_DataComboFile[[#This Row],[G&S reporting level indicator]]","v":0},{"$f":"T_DataComboFile[[#This Row],[2019/20 Preliminary outcome_Source]]*T_DataComboFile[[#This Row],[G&S reporting level indicator]]","v":0},{"$f":"T_DataComboFile[[#This Row],[2020/21 Original_Source]]*T_DataComboFile[[#This Row],[G&S reporting level indicator]]","v":0},{"$f":"T_DataComboFile[[#This Row],[2020/21 SAB_Source]]*T_DataComboFile[[#This Row],[G&S reporting level indicator]]","v":0},{"$f":"T_DataComboFile[[#This Row],[2020/21 Baseline_Source]]*T_DataComboFile[[#This Row],[G&S reporting level indicator]]","v":0},{"$f":"T_DataComboFile[[#This Row],[2021/22 Baseline_Source]]*T_DataComboFile[[#This Row],[G&S reporting level indicator]]","v":0},{"$f":"T_DataComboFile[[#This Row],[2022/23 Baseline_Source]]*T_DataComboFile[[#This Row],[G&S reporting level indicator]]","v":0},{"$f":"T_DataComboFile[[#This Row],[2023/24 Baseline_Source]]*T_DataComboFile[[#This Row],[G&S reporting level indicator]]","v":0},null,null,null,null,null,null,{"$f":"T_DataComboFile[[#This Row],[2021/22 Baseline]]+T_DataComboFile[[#This Row],[2021/22 Reduction]]+T_DataComboFile[[#This Row],[2021/22 Increase]]","v":0},{"$f":"T_DataComboFile[[#This Row],[2022/23 Baseline]]+T_DataComboFile[[#This Row],[2022/23 Reduction]]+T_DataComboFile[[#This Row],[2022/23 Increase]]","v":0},{"$f":"T_DataComboFile[[#This Row],[2023/24 Baseline]]+T_DataComboFile[[#This Row],[2023/24 Reduction]]+T_DataComboFile[[#This Row],[2023/24 Increase]]","v":0}]
["NAT|Non-transfer item","36|Communication (G&S)","2021_22","ENE2020",36,2,3,17317,70622,36,2,3,17317,"070622","36|02|03",1,1,2,9,9,"01|01|02|09|09","National","Small Business Development","Sector Policy and Research","International Relations","Non-transfer item","Current","Current payments","Goods and services","Communication (G&S)","Communication (G&S)","Economic development","Industrialisation and exports","NAT",0,5,45,10,62,62,62,0,0,0,0,0,0,1,null,{"$f":"IF(T_DataComboFile[[#This Row],[G&S reporting level indicator]]=1,$AX$16,\"Not applicable\")","v":"Not applicable"},{"$f":"IF(AND($AX$16=\"Level 3\",T_DataComboFile[[#This Row],[Econ3]] = \"Goods and services\"),IF(T_DataComboFile[[#This Row],[Econ4]] = T_DataComboFile[[#This Row],[Econ3]],1,0),IF(AND($AX$16=\"Level 4\",T_DataComboFile[[#This Row],[Econ4]] = \"Goods and services\"),0,1))","v":0},{"$f":"T_DataComboFile[[#This Row],[2016/17_Source]]*T_DataComboFile[[#This Row],[G&S reporting level indicator]]","v":0},{"$f":"T_DataComboFile[[#This Row],[2017/18_Source]]*T_DataComboFile[[#This Row],[G&S reporting level indicator]]","v":0},{"$f":"T_DataComboFile[[#This Row],[2018/19_Source]]*T_DataComboFile[[#This Row],[G&S reporting level indicator]]","v":0},{"$f":"T_DataComboFile[[#This Row],[2019/20 Main appropriation_Source]]*T_DataComboFile[[#This Row],[G&S reporting level indicator]]","v":0},{"$f":"T_DataComboFile[[#This Row],[2019/20 Adjusted appropriation_Source]]*T_DataComboFile[[#This Row],[G&S reporting level indicator]]","v":0},{"$f":"T_DataComboFile[[#This Row],[2019/20 Revised estimate_Source]]*T_DataComboFile[[#This Row],[G&S reporting level indicator]]","v":0},{"$f":"T_DataComboFile[[#This Row],[2019/20 Preliminary outcome_Source]]*T_DataComboFile[[#This Row],[G&S reporting level indicator]]","v":0},{"$f":"T_DataComboFile[[#This Row],[2020/21 Original_Source]]*T_DataComboFile[[#This Row],[G&S reporting level indicator]]","v":0},{"$f":"T_DataComboFile[[#This Row],[2020/21 SAB_Source]]*T_DataComboFile[[#This Row],[G&S reporting level indicator]]","v":0},{"$f":"T_DataComboFile[[#This Row],[2020/21 Baseline_Source]]*T_DataComboFile[[#This Row],[G&S reporting level indicator]]","v":0},{"$f":"T_DataComboFile[[#This Row],[2021/22 Baseline_Source]]*T_DataComboFile[[#This Row],[G&S reporting level indicator]]","v":0},{"$f":"T_DataComboFile[[#This Row],[2022/23 Baseline_Source]]*T_DataComboFile[[#This Row],[G&S reporting level indicator]]","v":0},{"$f":"T_DataComboFile[[#This Row],[2023/24 Baseline_Source]]*T_DataComboFile[[#This Row],[G&S reporting level indicator]]","v":0},null,null,null,null,null,null,{"$f":"T_DataComboFile[[#This Row],[2021/22 Baseline]]+T_DataComboFile[[#This Row],[2021/22 Reduction]]+T_DataComboFile[[#This Row],[2021/22 Increase]]","v":0},{"$f":"T_DataComboFile[[#This Row],[2022/23 Baseline]]+T_DataComboFile[[#This Row],[2022/23 Reduction]]+T_DataComboFile[[#This Row],[2022/23 Increase]]","v":0},{"$f":"T_DataComboFile[[#This Row],[2023/24 Baseline]]+T_DataComboFile[[#This Row],[2023/24 Reduction]]+T_DataComboFile[[#This Row],[2023/24 Increase]]","v":0}]
[null,null,"2021_22","ENE2020",36,2,3,null,70623,36,2,3,null,"070623","36|02|03",1,1,2,10,10,"01|01|02|10|10","National","Small Business Development","Sector Policy and Research","International Relations",null,"Current","Current payments","Goods and services","Computer services","Computer services",null,null,null,0,0,0,0,0,0,0,0,0,0,0,0,0,0,null,{"$f":"IF(T_DataComboFile[[#This Row],[G&S reporting level indicator]]=1,$AX$16,\"Not applicable\")","v":"Not applicable"},{"$f":"IF(AND($AX$16=\"Level 3\",T_DataComboFile[[#This Row],[Econ3]] = \"Goods and services\"),IF(T_DataComboFile[[#This Row],[Econ4]] = T_DataComboFile[[#This Row],[Econ3]],1,0),IF(AND($AX$16=\"Level 4\",T_DataComboFile[[#This Row],[Econ4]] = \"Goods and services\"),0,1))","v":0},{"$f":"T_DataComboFile[[#This Row],[2016/17_Source]]*T_DataComboFile[[#This Row],[G&S reporting level indicator]]","v":0},{"$f":"T_DataComboFile[[#This Row],[2017/18_Source]]*T_DataComboFile[[#This Row],[G&S reporting level indicator]]","v":0},{"$f":"T_DataComboFile[[#This Row],[2018/19_Source]]*T_DataComboFile[[#This Row],[G&S reporting level indicator]]","v":0},{"$f":"T_DataComboFile[[#This Row],[2019/20 Main appropriation_Source]]*T_DataComboFile[[#This Row],[G&S reporting level indicator]]","v":0},{"$f":"T_DataComboFile[[#This Row],[2019/20 Adjusted appropriation_Source]]*T_DataComboFile[[#This Row],[G&S reporting level indicator]]","v":0},{"$f":"T_DataComboFile[[#This Row],[2019/20 Revised estimate_Source]]*T_DataComboFile[[#This Row],[G&S reporting level indicator]]","v":0},{"$f":"T_DataComboFile[[#This Row],[2019/20 Preliminary outcome_Source]]*T_DataComboFile[[#This Row],[G&S reporting level indicator]]","v":0},{"$f":"T_DataComboFile[[#This Row],[2020/21 Original_Source]]*T_DataComboFile[[#This Row],[G&S reporting level indicator]]","v":0},{"$f":"T_DataComboFile[[#This Row],[2020/21 SAB_Source]]*T_DataComboFile[[#This Row],[G&S reporting level indicator]]","v":0},{"$f":"T_DataComboFile[[#This Row],[2020/21 Baseline_Source]]*T_DataComboFile[[#This Row],[G&S reporting level indicator]]","v":0},{"$f":"T_DataComboFile[[#This Row],[2021/22 Baseline_Source]]*T_DataComboFile[[#This Row],[G&S reporting level indicator]]","v":0},{"$f":"T_DataComboFile[[#This Row],[2022/23 Baseline_Source]]*T_DataComboFile[[#This Row],[G&S reporting level indicator]]","v":0},{"$f":"T_DataComboFile[[#This Row],[2023/24 Baseline_Source]]*T_DataComboFile[[#This Row],[G&S reporting level indicator]]","v":0},null,null,null,null,null,null,{"$f":"T_DataComboFile[[#This Row],[2021/22 Baseline]]+T_DataComboFile[[#This Row],[2021/22 Reduction]]+T_DataComboFile[[#This Row],[2021/22 Increase]]","v":0},{"$f":"T_DataComboFile[[#This Row],[2022/23 Baseline]]+T_DataComboFile[[#This Row],[2022/23 Reduction]]+T_DataComboFile[[#This Row],[2022/23 Increase]]","v":0},{"$f":"T_DataComboFile[[#This Row],[2023/24 Baseline]]+T_DataComboFile[[#This Row],[2023/24 Reduction]]+T_DataComboFile[[#This Row],[2023/24 Increase]]","v":0}]
["NAT|Non-transfer item","36|Consultants: Business and advisory services","2021_22","ENE2020",36,2,3,17318,70624,36,2,3,17318,"070624","36|02|03",1,1,2,11,11,"01|01|02|11|11","National","Small Business Development","Sector Policy and Research","International Relations","Non-transfer item","Current","Current payments","Goods and services","Consultants: Business and advisory services","Consultants: Business and advisory services","Economic development","Industrialisation and exports","NAT",0,0,0,840,788,788,788,0,0,0,0,0,0,1,null,{"$f":"IF(T_DataComboFile[[#This Row],[G&S reporting level indicator]]=1,$AX$16,\"Not applicable\")","v":"Not applicable"},{"$f":"IF(AND($AX$16=\"Level 3\",T_DataComboFile[[#This Row],[Econ3]] = \"Goods and services\"),IF(T_DataComboFile[[#This Row],[Econ4]] = T_DataComboFile[[#This Row],[Econ3]],1,0),IF(AND($AX$16=\"Level 4\",T_DataComboFile[[#This Row],[Econ4]] = \"Goods and services\"),0,1))","v":0},{"$f":"T_DataComboFile[[#This Row],[2016/17_Source]]*T_DataComboFile[[#This Row],[G&S reporting level indicator]]","v":0},{"$f":"T_DataComboFile[[#This Row],[2017/18_Source]]*T_DataComboFile[[#This Row],[G&S reporting level indicator]]","v":0},{"$f":"T_DataComboFile[[#This Row],[2018/19_Source]]*T_DataComboFile[[#This Row],[G&S reporting level indicator]]","v":0},{"$f":"T_DataComboFile[[#This Row],[2019/20 Main appropriation_Source]]*T_DataComboFile[[#This Row],[G&S reporting level indicator]]","v":0},{"$f":"T_DataComboFile[[#This Row],[2019/20 Adjusted appropriation_Source]]*T_DataComboFile[[#This Row],[G&S reporting level indicator]]","v":0},{"$f":"T_DataComboFile[[#This Row],[2019/20 Revised estimate_Source]]*T_DataComboFile[[#This Row],[G&S reporting level indicator]]","v":0},{"$f":"T_DataComboFile[[#This Row],[2019/20 Preliminary outcome_Source]]*T_DataComboFile[[#This Row],[G&S reporting level indicator]]","v":0},{"$f":"T_DataComboFile[[#This Row],[2020/21 Original_Source]]*T_DataComboFile[[#This Row],[G&S reporting level indicator]]","v":0},{"$f":"T_DataComboFile[[#This Row],[2020/21 SAB_Source]]*T_DataComboFile[[#This Row],[G&S reporting level indicator]]","v":0},{"$f":"T_DataComboFile[[#This Row],[2020/21 Baseline_Source]]*T_DataComboFile[[#This Row],[G&S reporting level indicator]]","v":0},{"$f":"T_DataComboFile[[#This Row],[2021/22 Baseline_Source]]*T_DataComboFile[[#This Row],[G&S reporting level indicator]]","v":0},{"$f":"T_DataComboFile[[#This Row],[2022/23 Baseline_Source]]*T_DataComboFile[[#This Row],[G&S reporting level indicator]]","v":0},{"$f":"T_DataComboFile[[#This Row],[2023/24 Baseline_Source]]*T_DataComboFile[[#This Row],[G&S reporting level indicator]]","v":0},null,null,null,null,null,null,{"$f":"T_DataComboFile[[#This Row],[2021/22 Baseline]]+T_DataComboFile[[#This Row],[2021/22 Reduction]]+T_DataComboFile[[#This Row],[2021/22 Increase]]","v":0},{"$f":"T_DataComboFile[[#This Row],[2022/23 Baseline]]+T_DataComboFile[[#This Row],[2022/23 Reduction]]+T_DataComboFile[[#This Row],[2022/23 Increase]]","v":0},{"$f":"T_DataComboFile[[#This Row],[2023/24 Baseline]]+T_DataComboFile[[#This Row],[2023/24 Reduction]]+T_DataComboFile[[#This Row],[2023/24 Increase]]","v":0}]
[null,null,"2021_22","ENE2020",36,2,3,null,70625,36,2,3,null,"070625","36|02|03",1,1,2,12,12,"01|01|02|12|12","National","Small Business Development","Sector Policy and Research","International Relations",null,"Current","Current payments","Goods and services","Infrastructure and planning services","Infrastructure and planning services",null,null,null,0,0,0,0,0,0,0,0,0,0,0,0,0,0,null,{"$f":"IF(T_DataComboFile[[#This Row],[G&S reporting level indicator]]=1,$AX$16,\"Not applicable\")","v":"Not applicable"},{"$f":"IF(AND($AX$16=\"Level 3\",T_DataComboFile[[#This Row],[Econ3]] = \"Goods and services\"),IF(T_DataComboFile[[#This Row],[Econ4]] = T_DataComboFile[[#This Row],[Econ3]],1,0),IF(AND($AX$16=\"Level 4\",T_DataComboFile[[#This Row],[Econ4]] = \"Goods and services\"),0,1))","v":0},{"$f":"T_DataComboFile[[#This Row],[2016/17_Source]]*T_DataComboFile[[#This Row],[G&S reporting level indicator]]","v":0},{"$f":"T_DataComboFile[[#This Row],[2017/18_Source]]*T_DataComboFile[[#This Row],[G&S reporting level indicator]]","v":0},{"$f":"T_DataComboFile[[#This Row],[2018/19_Source]]*T_DataComboFile[[#This Row],[G&S reporting level indicator]]","v":0},{"$f":"T_DataComboFile[[#This Row],[2019/20 Main appropriation_Source]]*T_DataComboFile[[#This Row],[G&S reporting level indicator]]","v":0},{"$f":"T_DataComboFile[[#This Row],[2019/20 Adjusted appropriation_Source]]*T_DataComboFile[[#This Row],[G&S reporting level indicator]]","v":0},{"$f":"T_DataComboFile[[#This Row],[2019/20 Revised estimate_Source]]*T_DataComboFile[[#This Row],[G&S reporting level indicator]]","v":0},{"$f":"T_DataComboFile[[#This Row],[2019/20 Preliminary outcome_Source]]*T_DataComboFile[[#This Row],[G&S reporting level indicator]]","v":0},{"$f":"T_DataComboFile[[#This Row],[2020/21 Original_Source]]*T_DataComboFile[[#This Row],[G&S reporting level indicator]]","v":0},{"$f":"T_DataComboFile[[#This Row],[2020/21 SAB_Source]]*T_DataComboFile[[#This Row],[G&S reporting level indicator]]","v":0},{"$f":"T_DataComboFile[[#This Row],[2020/21 Baseline_Source]]*T_DataComboFile[[#This Row],[G&S reporting level indicator]]","v":0},{"$f":"T_DataComboFile[[#This Row],[2021/22 Baseline_Source]]*T_DataComboFile[[#This Row],[G&S reporting level indicator]]","v":0},{"$f":"T_DataComboFile[[#This Row],[2022/23 Baseline_Source]]*T_DataComboFile[[#This Row],[G&S reporting level indicator]]","v":0},{"$f":"T_DataComboFile[[#This Row],[2023/24 Baseline_Source]]*T_DataComboFile[[#This Row],[G&S reporting level indicator]]","v":0},null,null,null,null,null,null,{"$f":"T_DataComboFile[[#This Row],[2021/22 Baseline]]+T_DataComboFile[[#This Row],[2021/22 Reduction]]+T_DataComboFile[[#This Row],[2021/22 Increase]]","v":0},{"$f":"T_DataComboFile[[#This Row],[2022/23 Baseline]]+T_DataComboFile[[#This Row],[2022/23 Reduction]]+T_DataComboFile[[#This Row],[2022/23 Increase]]","v":0},{"$f":"T_DataComboFile[[#This Row],[2023/24 Baseline]]+T_DataComboFile[[#This Row],[2023/24 Reduction]]+T_DataComboFile[[#This Row],[2023/24 Increase]]","v":0}]
[null,null,"2021_22","ENE2020",36,2,3,null,70626,36,2,3,null,"070626","36|02|03",1,1,2,13,13,"01|01|02|13|13","National","Small Business Development","Sector Policy and Research","International Relations",null,"Current","Current payments","Goods and services","Laboratory services","Laboratory services",null,null,null,0,0,0,0,0,0,0,0,0,0,0,0,0,0,null,{"$f":"IF(T_DataComboFile[[#This Row],[G&S reporting level indicator]]=1,$AX$16,\"Not applicable\")","v":"Not applicable"},{"$f":"IF(AND($AX$16=\"Level 3\",T_DataComboFile[[#This Row],[Econ3]] = \"Goods and services\"),IF(T_DataComboFile[[#This Row],[Econ4]] = T_DataComboFile[[#This Row],[Econ3]],1,0),IF(AND($AX$16=\"Level 4\",T_DataComboFile[[#This Row],[Econ4]] = \"Goods and services\"),0,1))","v":0},{"$f":"T_DataComboFile[[#This Row],[2016/17_Source]]*T_DataComboFile[[#This Row],[G&S reporting level indicator]]","v":0},{"$f":"T_DataComboFile[[#This Row],[2017/18_Source]]*T_DataComboFile[[#This Row],[G&S reporting level indicator]]","v":0},{"$f":"T_DataComboFile[[#This Row],[2018/19_Source]]*T_DataComboFile[[#This Row],[G&S reporting level indicator]]","v":0},{"$f":"T_DataComboFile[[#This Row],[2019/20 Main appropriation_Source]]*T_DataComboFile[[#This Row],[G&S reporting level indicator]]","v":0},{"$f":"T_DataComboFile[[#This Row],[2019/20 Adjusted appropriation_Source]]*T_DataComboFile[[#This Row],[G&S reporting level indicator]]","v":0},{"$f":"T_DataComboFile[[#This Row],[2019/20 Revised estimate_Source]]*T_DataComboFile[[#This Row],[G&S reporting level indicator]]","v":0},{"$f":"T_DataComboFile[[#This Row],[2019/20 Preliminary outcome_Source]]*T_DataComboFile[[#This Row],[G&S reporting level indicator]]","v":0},{"$f":"T_DataComboFile[[#This Row],[2020/21 Original_Source]]*T_DataComboFile[[#This Row],[G&S reporting level indicator]]","v":0},{"$f":"T_DataComboFile[[#This Row],[2020/21 SAB_Source]]*T_DataComboFile[[#This Row],[G&S reporting level indicator]]","v":0},{"$f":"T_DataComboFile[[#This Row],[2020/21 Baseline_Source]]*T_DataComboFile[[#This Row],[G&S reporting level indicator]]","v":0},{"$f":"T_DataComboFile[[#This Row],[2021/22 Baseline_Source]]*T_DataComboFile[[#This Row],[G&S reporting level indicator]]","v":0},{"$f":"T_DataComboFile[[#This Row],[2022/23 Baseline_Source]]*T_DataComboFile[[#This Row],[G&S reporting level indicator]]","v":0},{"$f":"T_DataComboFile[[#This Row],[2023/24 Baseline_Source]]*T_DataComboFile[[#This Row],[G&S reporting level indicator]]","v":0},null,null,null,null,null,null,{"$f":"T_DataComboFile[[#This Row],[2021/22 Baseline]]+T_DataComboFile[[#This Row],[2021/22 Reduction]]+T_DataComboFile[[#This Row],[2021/22 Increase]]","v":0},{"$f":"T_DataComboFile[[#This Row],[2022/23 Baseline]]+T_DataComboFile[[#This Row],[2022/23 Reduction]]+T_DataComboFile[[#This Row],[2022/23 Increase]]","v":0},{"$f":"T_DataComboFile[[#This Row],[2023/24 Baseline]]+T_DataComboFile[[#This Row],[2023/24 Reduction]]+T_DataComboFile[[#This Row],[2023/24 Increase]]","v":0}]
[null,null,"2021_22","ENE2020",36,2,3,null,70627,36,2,3,null,"070627","36|02|03",1,1,2,14,14,"01|01|02|14|14","National","Small Business Development","Sector Policy and Research","International Relations",null,"Current","Current payments","Goods and services","Legal services (G&S)","Legal services (G&S)",null,null,null,0,0,0,0,0,0,0,0,0,0,0,0,0,0,null,{"$f":"IF(T_DataComboFile[[#This Row],[G&S reporting level indicator]]=1,$AX$16,\"Not applicable\")","v":"Not applicable"},{"$f":"IF(AND($AX$16=\"Level 3\",T_DataComboFile[[#This Row],[Econ3]] = \"Goods and services\"),IF(T_DataComboFile[[#This Row],[Econ4]] = T_DataComboFile[[#This Row],[Econ3]],1,0),IF(AND($AX$16=\"Level 4\",T_DataComboFile[[#This Row],[Econ4]] = \"Goods and services\"),0,1))","v":0},{"$f":"T_DataComboFile[[#This Row],[2016/17_Source]]*T_DataComboFile[[#This Row],[G&S reporting level indicator]]","v":0},{"$f":"T_DataComboFile[[#This Row],[2017/18_Source]]*T_DataComboFile[[#This Row],[G&S reporting level indicator]]","v":0},{"$f":"T_DataComboFile[[#This Row],[2018/19_Source]]*T_DataComboFile[[#This Row],[G&S reporting level indicator]]","v":0},{"$f":"T_DataComboFile[[#This Row],[2019/20 Main appropriation_Source]]*T_DataComboFile[[#This Row],[G&S reporting level indicator]]","v":0},{"$f":"T_DataComboFile[[#This Row],[2019/20 Adjusted appropriation_Source]]*T_DataComboFile[[#This Row],[G&S reporting level indicator]]","v":0},{"$f":"T_DataComboFile[[#This Row],[2019/20 Revised estimate_Source]]*T_DataComboFile[[#This Row],[G&S reporting level indicator]]","v":0},{"$f":"T_DataComboFile[[#This Row],[2019/20 Preliminary outcome_Source]]*T_DataComboFile[[#This Row],[G&S reporting level indicator]]","v":0},{"$f":"T_DataComboFile[[#This Row],[2020/21 Original_Source]]*T_DataComboFile[[#This Row],[G&S reporting level indicator]]","v":0},{"$f":"T_DataComboFile[[#This Row],[2020/21 SAB_Source]]*T_DataComboFile[[#This Row],[G&S reporting level indicator]]","v":0},{"$f":"T_DataComboFile[[#This Row],[2020/21 Baseline_Source]]*T_DataComboFile[[#This Row],[G&S reporting level indicator]]","v":0},{"$f":"T_DataComboFile[[#This Row],[2021/22 Baseline_Source]]*T_DataComboFile[[#This Row],[G&S reporting level indicator]]","v":0},{"$f":"T_DataComboFile[[#This Row],[2022/23 Baseline_Source]]*T_DataComboFile[[#This Row],[G&S reporting level indicator]]","v":0},{"$f":"T_DataComboFile[[#This Row],[2023/24 Baseline_Source]]*T_DataComboFile[[#This Row],[G&S reporting level indicator]]","v":0},null,null,null,null,null,null,{"$f":"T_DataComboFile[[#This Row],[2021/22 Baseline]]+T_DataComboFile[[#This Row],[2021/22 Reduction]]+T_DataComboFile[[#This Row],[2021/22 Increase]]","v":0},{"$f":"T_DataComboFile[[#This Row],[2022/23 Baseline]]+T_DataComboFile[[#This Row],[2022/23 Reduction]]+T_DataComboFile[[#This Row],[2022/23 Increase]]","v":0},{"$f":"T_DataComboFile[[#This Row],[2023/24 Baseline]]+T_DataComboFile[[#This Row],[2023/24 Reduction]]+T_DataComboFile[[#This Row],[2023/24 Increase]]","v":0}]
[null,null,"2021_22","ENE2020",36,2,3,null,70628,36,2,3,null,"070628","36|02|03",1,1,2,15,15,"01|01|02|15|15","National","Small Business Development","Sector Policy and Research","International Relations",null,"Current","Current payments","Goods and services","Science and technological services","Science and technological services",null,null,null,0,0,0,0,0,0,0,0,0,0,0,0,0,0,null,{"$f":"IF(T_DataComboFile[[#This Row],[G&S reporting level indicator]]=1,$AX$16,\"Not applicable\")","v":"Not applicable"},{"$f":"IF(AND($AX$16=\"Level 3\",T_DataComboFile[[#This Row],[Econ3]] = \"Goods and services\"),IF(T_DataComboFile[[#This Row],[Econ4]] = T_DataComboFile[[#This Row],[Econ3]],1,0),IF(AND($AX$16=\"Level 4\",T_DataComboFile[[#This Row],[Econ4]] = \"Goods and services\"),0,1))","v":0},{"$f":"T_DataComboFile[[#This Row],[2016/17_Source]]*T_DataComboFile[[#This Row],[G&S reporting level indicator]]","v":0},{"$f":"T_DataComboFile[[#This Row],[2017/18_Source]]*T_DataComboFile[[#This Row],[G&S reporting level indicator]]","v":0},{"$f":"T_DataComboFile[[#This Row],[2018/19_Source]]*T_DataComboFile[[#This Row],[G&S reporting level indicator]]","v":0},{"$f":"T_DataComboFile[[#This Row],[2019/20 Main appropriation_Source]]*T_DataComboFile[[#This Row],[G&S reporting level indicator]]","v":0},{"$f":"T_DataComboFile[[#This Row],[2019/20 Adjusted appropriation_Source]]*T_DataComboFile[[#This Row],[G&S reporting level indicator]]","v":0},{"$f":"T_DataComboFile[[#This Row],[2019/20 Revised estimate_Source]]*T_DataComboFile[[#This Row],[G&S reporting level indicator]]","v":0},{"$f":"T_DataComboFile[[#This Row],[2019/20 Preliminary outcome_Source]]*T_DataComboFile[[#This Row],[G&S reporting level indicator]]","v":0},{"$f":"T_DataComboFile[[#This Row],[2020/21 Original_Source]]*T_DataComboFile[[#This Row],[G&S reporting level indicator]]","v":0},{"$f":"T_DataComboFile[[#This Row],[2020/21 SAB_Source]]*T_DataComboFile[[#This Row],[G&S reporting level indicator]]","v":0},{"$f":"T_DataComboFile[[#This Row],[2020/21 Baseline_Source]]*T_DataComboFile[[#This Row],[G&S reporting level indicator]]","v":0},{"$f":"T_DataComboFile[[#This Row],[2021/22 Baseline_Source]]*T_DataComboFile[[#This Row],[G&S reporting level indicator]]","v":0},{"$f":"T_DataComboFile[[#This Row],[2022/23 Baseline_Source]]*T_DataComboFile[[#This Row],[G&S reporting level indicator]]","v":0},{"$f":"T_DataComboFile[[#This Row],[2023/24 Baseline_Source]]*T_DataComboFile[[#This Row],[G&S reporting level indicator]]","v":0},null,null,null,null,null,null,{"$f":"T_DataComboFile[[#This Row],[2021/22 Baseline]]+T_DataComboFile[[#This Row],[2021/22 Reduction]]+T_DataComboFile[[#This Row],[2021/22 Increase]]","v":0},{"$f":"T_DataComboFile[[#This Row],[2022/23 Baseline]]+T_DataComboFile[[#This Row],[2022/23 Reduction]]+T_DataComboFile[[#This Row],[2022/23 Increase]]","v":0},{"$f":"T_DataComboFile[[#This Row],[2023/24 Baseline]]+T_DataComboFile[[#This Row],[2023/24 Reduction]]+T_DataComboFile[[#This Row],[2023/24 Increase]]","v":0}]
[null,null,"2021_22","ENE2020",36,2,3,null,70629,36,2,3,null,"070629","36|02|03",1,1,2,16,16,"01|01|02|16|16","National","Small Business Development","Sector Policy and Research","International Relations",null,"Current","Current payments","Goods and services","Contractors","Contractors",null,null,null,0,0,0,0,0,0,0,0,0,0,0,0,0,0,null,{"$f":"IF(T_DataComboFile[[#This Row],[G&S reporting level indicator]]=1,$AX$16,\"Not applicable\")","v":"Not applicable"},{"$f":"IF(AND($AX$16=\"Level 3\",T_DataComboFile[[#This Row],[Econ3]] = \"Goods and services\"),IF(T_DataComboFile[[#This Row],[Econ4]] = T_DataComboFile[[#This Row],[Econ3]],1,0),IF(AND($AX$16=\"Level 4\",T_DataComboFile[[#This Row],[Econ4]] = \"Goods and services\"),0,1))","v":0},{"$f":"T_DataComboFile[[#This Row],[2016/17_Source]]*T_DataComboFile[[#This Row],[G&S reporting level indicator]]","v":0},{"$f":"T_DataComboFile[[#This Row],[2017/18_Source]]*T_DataComboFile[[#This Row],[G&S reporting level indicator]]","v":0},{"$f":"T_DataComboFile[[#This Row],[2018/19_Source]]*T_DataComboFile[[#This Row],[G&S reporting level indicator]]","v":0},{"$f":"T_DataComboFile[[#This Row],[2019/20 Main appropriation_Source]]*T_DataComboFile[[#This Row],[G&S reporting level indicator]]","v":0},{"$f":"T_DataComboFile[[#This Row],[2019/20 Adjusted appropriation_Source]]*T_DataComboFile[[#This Row],[G&S reporting level indicator]]","v":0},{"$f":"T_DataComboFile[[#This Row],[2019/20 Revised estimate_Source]]*T_DataComboFile[[#This Row],[G&S reporting level indicator]]","v":0},{"$f":"T_DataComboFile[[#This Row],[2019/20 Preliminary outcome_Source]]*T_DataComboFile[[#This Row],[G&S reporting level indicator]]","v":0},{"$f":"T_DataComboFile[[#This Row],[2020/21 Original_Source]]*T_DataComboFile[[#This Row],[G&S reporting level indicator]]","v":0},{"$f":"T_DataComboFile[[#This Row],[2020/21 SAB_Source]]*T_DataComboFile[[#This Row],[G&S reporting level indicator]]","v":0},{"$f":"T_DataComboFile[[#This Row],[2020/21 Baseline_Source]]*T_DataComboFile[[#This Row],[G&S reporting level indicator]]","v":0},{"$f":"T_DataComboFile[[#This Row],[2021/22 Baseline_Source]]*T_DataComboFile[[#This Row],[G&S reporting level indicator]]","v":0},{"$f":"T_DataComboFile[[#This Row],[2022/23 Baseline_Source]]*T_DataComboFile[[#This Row],[G&S reporting level indicator]]","v":0},{"$f":"T_DataComboFile[[#This Row],[2023/24 Baseline_Source]]*T_DataComboFile[[#This Row],[G&S reporting level indicator]]","v":0},null,null,null,null,null,null,{"$f":"T_DataComboFile[[#This Row],[2021/22 Baseline]]+T_DataComboFile[[#This Row],[2021/22 Reduction]]+T_DataComboFile[[#This Row],[2021/22 Increase]]","v":0},{"$f":"T_DataComboFile[[#This Row],[2022/23 Baseline]]+T_DataComboFile[[#This Row],[2022/23 Reduction]]+T_DataComboFile[[#This Row],[2022/23 Increase]]","v":0},{"$f":"T_DataComboFile[[#This Row],[2023/24 Baseline]]+T_DataComboFile[[#This Row],[2023/24 Reduction]]+T_DataComboFile[[#This Row],[2023/24 Increase]]","v":0}]
[null,null,"2021_22","ENE2020",36,2,3,null,70630,36,2,3,null,"070630","36|02|03",1,1,2,17,17,"01|01|02|17|17","National","Small Business Development","Sector Policy and Research","International Relations",null,"Current","Current payments","Goods and services","Agency and support/outsourced services","Agency and support/outsourced services",null,null,null,0,0,0,0,0,0,0,0,0,0,0,0,0,0,null,{"$f":"IF(T_DataComboFile[[#This Row],[G&S reporting level indicator]]=1,$AX$16,\"Not applicable\")","v":"Not applicable"},{"$f":"IF(AND($AX$16=\"Level 3\",T_DataComboFile[[#This Row],[Econ3]] = \"Goods and services\"),IF(T_DataComboFile[[#This Row],[Econ4]] = T_DataComboFile[[#This Row],[Econ3]],1,0),IF(AND($AX$16=\"Level 4\",T_DataComboFile[[#This Row],[Econ4]] = \"Goods and services\"),0,1))","v":0},{"$f":"T_DataComboFile[[#This Row],[2016/17_Source]]*T_DataComboFile[[#This Row],[G&S reporting level indicator]]","v":0},{"$f":"T_DataComboFile[[#This Row],[2017/18_Source]]*T_DataComboFile[[#This Row],[G&S reporting level indicator]]","v":0},{"$f":"T_DataComboFile[[#This Row],[2018/19_Source]]*T_DataComboFile[[#This Row],[G&S reporting level indicator]]","v":0},{"$f":"T_DataComboFile[[#This Row],[2019/20 Main appropriation_Source]]*T_DataComboFile[[#This Row],[G&S reporting level indicator]]","v":0},{"$f":"T_DataComboFile[[#This Row],[2019/20 Adjusted appropriation_Source]]*T_DataComboFile[[#This Row],[G&S reporting level indicator]]","v":0},{"$f":"T_DataComboFile[[#This Row],[2019/20 Revised estimate_Source]]*T_DataComboFile[[#This Row],[G&S reporting level indicator]]","v":0},{"$f":"T_DataComboFile[[#This Row],[2019/20 Preliminary outcome_Source]]*T_DataComboFile[[#This Row],[G&S reporting level indicator]]","v":0},{"$f":"T_DataComboFile[[#This Row],[2020/21 Original_Source]]*T_DataComboFile[[#This Row],[G&S reporting level indicator]]","v":0},{"$f":"T_DataComboFile[[#This Row],[2020/21 SAB_Source]]*T_DataComboFile[[#This Row],[G&S reporting level indicator]]","v":0},{"$f":"T_DataComboFile[[#This Row],[2020/21 Baseline_Source]]*T_DataComboFile[[#This Row],[G&S reporting level indicator]]","v":0},{"$f":"T_DataComboFile[[#This Row],[2021/22 Baseline_Source]]*T_DataComboFile[[#This Row],[G&S reporting level indicator]]","v":0},{"$f":"T_DataComboFile[[#This Row],[2022/23 Baseline_Source]]*T_DataComboFile[[#This Row],[G&S reporting level indicator]]","v":0},{"$f":"T_DataComboFile[[#This Row],[2023/24 Baseline_Source]]*T_DataComboFile[[#This Row],[G&S reporting level indicator]]","v":0},null,null,null,null,null,null,{"$f":"T_DataComboFile[[#This Row],[2021/22 Baseline]]+T_DataComboFile[[#This Row],[2021/22 Reduction]]+T_DataComboFile[[#This Row],[2021/22 Increase]]","v":0},{"$f":"T_DataComboFile[[#This Row],[2022/23 Baseline]]+T_DataComboFile[[#This Row],[2022/23 Reduction]]+T_DataComboFile[[#This Row],[2022/23 Increase]]","v":0},{"$f":"T_DataComboFile[[#This Row],[2023/24 Baseline]]+T_DataComboFile[[#This Row],[2023/24 Reduction]]+T_DataComboFile[[#This Row],[2023/24 Increase]]","v":0}]
[null,null,"2021_22","ENE2020",36,2,3,null,70631,36,2,3,null,"070631","36|02|03",1,1,2,18,18,"01|01|02|18|18","National","Small Business Development","Sector Policy and Research","International Relations",null,"Current","Current payments","Goods and services","Entertainment","Entertainment",null,null,null,0,0,0,0,0,0,0,0,0,0,0,0,0,0,null,{"$f":"IF(T_DataComboFile[[#This Row],[G&S reporting level indicator]]=1,$AX$16,\"Not applicable\")","v":"Not applicable"},{"$f":"IF(AND($AX$16=\"Level 3\",T_DataComboFile[[#This Row],[Econ3]] = \"Goods and services\"),IF(T_DataComboFile[[#This Row],[Econ4]] = T_DataComboFile[[#This Row],[Econ3]],1,0),IF(AND($AX$16=\"Level 4\",T_DataComboFile[[#This Row],[Econ4]] = \"Goods and services\"),0,1))","v":0},{"$f":"T_DataComboFile[[#This Row],[2016/17_Source]]*T_DataComboFile[[#This Row],[G&S reporting level indicator]]","v":0},{"$f":"T_DataComboFile[[#This Row],[2017/18_Source]]*T_DataComboFile[[#This Row],[G&S reporting level indicator]]","v":0},{"$f":"T_DataComboFile[[#This Row],[2018/19_Source]]*T_DataComboFile[[#This Row],[G&S reporting level indicator]]","v":0},{"$f":"T_DataComboFile[[#This Row],[2019/20 Main appropriation_Source]]*T_DataComboFile[[#This Row],[G&S reporting level indicator]]","v":0},{"$f":"T_DataComboFile[[#This Row],[2019/20 Adjusted appropriation_Source]]*T_DataComboFile[[#This Row],[G&S reporting level indicator]]","v":0},{"$f":"T_DataComboFile[[#This Row],[2019/20 Revised estimate_Source]]*T_DataComboFile[[#This Row],[G&S reporting level indicator]]","v":0},{"$f":"T_DataComboFile[[#This Row],[2019/20 Preliminary outcome_Source]]*T_DataComboFile[[#This Row],[G&S reporting level indicator]]","v":0},{"$f":"T_DataComboFile[[#This Row],[2020/21 Original_Source]]*T_DataComboFile[[#This Row],[G&S reporting level indicator]]","v":0},{"$f":"T_DataComboFile[[#This Row],[2020/21 SAB_Source]]*T_DataComboFile[[#This Row],[G&S reporting level indicator]]","v":0},{"$f":"T_DataComboFile[[#This Row],[2020/21 Baseline_Source]]*T_DataComboFile[[#This Row],[G&S reporting level indicator]]","v":0},{"$f":"T_DataComboFile[[#This Row],[2021/22 Baseline_Source]]*T_DataComboFile[[#This Row],[G&S reporting level indicator]]","v":0},{"$f":"T_DataComboFile[[#This Row],[2022/23 Baseline_Source]]*T_DataComboFile[[#This Row],[G&S reporting level indicator]]","v":0},{"$f":"T_DataComboFile[[#This Row],[2023/24 Baseline_Source]]*T_DataComboFile[[#This Row],[G&S reporting level indicator]]","v":0},null,null,null,null,null,null,{"$f":"T_DataComboFile[[#This Row],[2021/22 Baseline]]+T_DataComboFile[[#This Row],[2021/22 Reduction]]+T_DataComboFile[[#This Row],[2021/22 Increase]]","v":0},{"$f":"T_DataComboFile[[#This Row],[2022/23 Baseline]]+T_DataComboFile[[#This Row],[2022/23 Reduction]]+T_DataComboFile[[#This Row],[2022/23 Increase]]","v":0},{"$f":"T_DataComboFile[[#This Row],[2023/24 Baseline]]+T_DataComboFile[[#This Row],[2023/24 Reduction]]+T_DataComboFile[[#This Row],[2023/24 Increase]]","v":0}]
["NAT|Non-transfer item","36|Fleet services (including government motor transport)","2021_22","ENE2020",36,2,3,17319,70632,36,2,3,17319,"070632","36|02|03",1,1,2,19,19,"01|01|02|19|19","National","Small Business Development","Sector Policy and Research","International Relations","Non-transfer item","Current","Current payments","Goods and services","Fleet services (including government motor transport)","Fleet services (including government motor transport)","Economic development","Industrialisation and exports","NAT",0,0,5,0,0,0,0,0,0,0,0,0,0,1,null,{"$f":"IF(T_DataComboFile[[#This Row],[G&S reporting level indicator]]=1,$AX$16,\"Not applicable\")","v":"Not applicable"},{"$f":"IF(AND($AX$16=\"Level 3\",T_DataComboFile[[#This Row],[Econ3]] = \"Goods and services\"),IF(T_DataComboFile[[#This Row],[Econ4]] = T_DataComboFile[[#This Row],[Econ3]],1,0),IF(AND($AX$16=\"Level 4\",T_DataComboFile[[#This Row],[Econ4]] = \"Goods and services\"),0,1))","v":0},{"$f":"T_DataComboFile[[#This Row],[2016/17_Source]]*T_DataComboFile[[#This Row],[G&S reporting level indicator]]","v":0},{"$f":"T_DataComboFile[[#This Row],[2017/18_Source]]*T_DataComboFile[[#This Row],[G&S reporting level indicator]]","v":0},{"$f":"T_DataComboFile[[#This Row],[2018/19_Source]]*T_DataComboFile[[#This Row],[G&S reporting level indicator]]","v":0},{"$f":"T_DataComboFile[[#This Row],[2019/20 Main appropriation_Source]]*T_DataComboFile[[#This Row],[G&S reporting level indicator]]","v":0},{"$f":"T_DataComboFile[[#This Row],[2019/20 Adjusted appropriation_Source]]*T_DataComboFile[[#This Row],[G&S reporting level indicator]]","v":0},{"$f":"T_DataComboFile[[#This Row],[2019/20 Revised estimate_Source]]*T_DataComboFile[[#This Row],[G&S reporting level indicator]]","v":0},{"$f":"T_DataComboFile[[#This Row],[2019/20 Preliminary outcome_Source]]*T_DataComboFile[[#This Row],[G&S reporting level indicator]]","v":0},{"$f":"T_DataComboFile[[#This Row],[2020/21 Original_Source]]*T_DataComboFile[[#This Row],[G&S reporting level indicator]]","v":0},{"$f":"T_DataComboFile[[#This Row],[2020/21 SAB_Source]]*T_DataComboFile[[#This Row],[G&S reporting level indicator]]","v":0},{"$f":"T_DataComboFile[[#This Row],[2020/21 Baseline_Source]]*T_DataComboFile[[#This Row],[G&S reporting level indicator]]","v":0},{"$f":"T_DataComboFile[[#This Row],[2021/22 Baseline_Source]]*T_DataComboFile[[#This Row],[G&S reporting level indicator]]","v":0},{"$f":"T_DataComboFile[[#This Row],[2022/23 Baseline_Source]]*T_DataComboFile[[#This Row],[G&S reporting level indicator]]","v":0},{"$f":"T_DataComboFile[[#This Row],[2023/24 Baseline_Source]]*T_DataComboFile[[#This Row],[G&S reporting level indicator]]","v":0},null,null,null,null,null,null,{"$f":"T_DataComboFile[[#This Row],[2021/22 Baseline]]+T_DataComboFile[[#This Row],[2021/22 Reduction]]+T_DataComboFile[[#This Row],[2021/22 Increase]]","v":0},{"$f":"T_DataComboFile[[#This Row],[2022/23 Baseline]]+T_DataComboFile[[#This Row],[2022/23 Reduction]]+T_DataComboFile[[#This Row],[2022/23 Increase]]","v":0},{"$f":"T_DataComboFile[[#This Row],[2023/24 Baseline]]+T_DataComboFile[[#This Row],[2023/24 Reduction]]+T_DataComboFile[[#This Row],[2023/24 Increase]]","v":0}]
[null,null,"2021_22","ENE2020",36,2,3,null,70633,36,2,3,null,"070633","36|02|03",1,1,2,20,20,"01|01|02|20|20","National","Small Business Development","Sector Policy and Research","International Relations",null,"Current","Current payments","Goods and services","Housing","Housing",null,null,null,0,0,0,0,0,0,0,0,0,0,0,0,0,0,null,{"$f":"IF(T_DataComboFile[[#This Row],[G&S reporting level indicator]]=1,$AX$16,\"Not applicable\")","v":"Not applicable"},{"$f":"IF(AND($AX$16=\"Level 3\",T_DataComboFile[[#This Row],[Econ3]] = \"Goods and services\"),IF(T_DataComboFile[[#This Row],[Econ4]] = T_DataComboFile[[#This Row],[Econ3]],1,0),IF(AND($AX$16=\"Level 4\",T_DataComboFile[[#This Row],[Econ4]] = \"Goods and services\"),0,1))","v":0},{"$f":"T_DataComboFile[[#This Row],[2016/17_Source]]*T_DataComboFile[[#This Row],[G&S reporting level indicator]]","v":0},{"$f":"T_DataComboFile[[#This Row],[2017/18_Source]]*T_DataComboFile[[#This Row],[G&S reporting level indicator]]","v":0},{"$f":"T_DataComboFile[[#This Row],[2018/19_Source]]*T_DataComboFile[[#This Row],[G&S reporting level indicator]]","v":0},{"$f":"T_DataComboFile[[#This Row],[2019/20 Main appropriation_Source]]*T_DataComboFile[[#This Row],[G&S reporting level indicator]]","v":0},{"$f":"T_DataComboFile[[#This Row],[2019/20 Adjusted appropriation_Source]]*T_DataComboFile[[#This Row],[G&S reporting level indicator]]","v":0},{"$f":"T_DataComboFile[[#This Row],[2019/20 Revised estimate_Source]]*T_DataComboFile[[#This Row],[G&S reporting level indicator]]","v":0},{"$f":"T_DataComboFile[[#This Row],[2019/20 Preliminary outcome_Source]]*T_DataComboFile[[#This Row],[G&S reporting level indicator]]","v":0},{"$f":"T_DataComboFile[[#This Row],[2020/21 Original_Source]]*T_DataComboFile[[#This Row],[G&S reporting level indicator]]","v":0},{"$f":"T_DataComboFile[[#This Row],[2020/21 SAB_Source]]*T_DataComboFile[[#This Row],[G&S reporting level indicator]]","v":0},{"$f":"T_DataComboFile[[#This Row],[2020/21 Baseline_Source]]*T_DataComboFile[[#This Row],[G&S reporting level indicator]]","v":0},{"$f":"T_DataComboFile[[#This Row],[2021/22 Baseline_Source]]*T_DataComboFile[[#This Row],[G&S reporting level indicator]]","v":0},{"$f":"T_DataComboFile[[#This Row],[2022/23 Baseline_Source]]*T_DataComboFile[[#This Row],[G&S reporting level indicator]]","v":0},{"$f":"T_DataComboFile[[#This Row],[2023/24 Baseline_Source]]*T_DataComboFile[[#This Row],[G&S reporting level indicator]]","v":0},null,null,null,null,null,null,{"$f":"T_DataComboFile[[#This Row],[2021/22 Baseline]]+T_DataComboFile[[#This Row],[2021/22 Reduction]]+T_DataComboFile[[#This Row],[2021/22 Increase]]","v":0},{"$f":"T_DataComboFile[[#This Row],[2022/23 Baseline]]+T_DataComboFile[[#This Row],[2022/23 Reduction]]+T_DataComboFile[[#This Row],[2022/23 Increase]]","v":0},{"$f":"T_DataComboFile[[#This Row],[2023/24 Baseline]]+T_DataComboFile[[#This Row],[2023/24 Reduction]]+T_DataComboFile[[#This Row],[2023/24 Increase]]","v":0}]
[null,null,"2021_22","ENE2020",36,2,3,null,70634,36,2,3,null,"070634","36|02|03",1,1,2,21,21,"01|01|02|21|21","National","Small Business Development","Sector Policy and Research","International Relations",null,"Current","Current payments","Goods and services","Inventory: Clothing material and accessories","Inventory: Clothing material and accessories",null,null,null,0,0,0,0,0,0,0,0,0,0,0,0,0,0,null,{"$f":"IF(T_DataComboFile[[#This Row],[G&S reporting level indicator]]=1,$AX$16,\"Not applicable\")","v":"Not applicable"},{"$f":"IF(AND($AX$16=\"Level 3\",T_DataComboFile[[#This Row],[Econ3]] = \"Goods and services\"),IF(T_DataComboFile[[#This Row],[Econ4]] = T_DataComboFile[[#This Row],[Econ3]],1,0),IF(AND($AX$16=\"Level 4\",T_DataComboFile[[#This Row],[Econ4]] = \"Goods and services\"),0,1))","v":0},{"$f":"T_DataComboFile[[#This Row],[2016/17_Source]]*T_DataComboFile[[#This Row],[G&S reporting level indicator]]","v":0},{"$f":"T_DataComboFile[[#This Row],[2017/18_Source]]*T_DataComboFile[[#This Row],[G&S reporting level indicator]]","v":0},{"$f":"T_DataComboFile[[#This Row],[2018/19_Source]]*T_DataComboFile[[#This Row],[G&S reporting level indicator]]","v":0},{"$f":"T_DataComboFile[[#This Row],[2019/20 Main appropriation_Source]]*T_DataComboFile[[#This Row],[G&S reporting level indicator]]","v":0},{"$f":"T_DataComboFile[[#This Row],[2019/20 Adjusted appropriation_Source]]*T_DataComboFile[[#This Row],[G&S reporting level indicator]]","v":0},{"$f":"T_DataComboFile[[#This Row],[2019/20 Revised estimate_Source]]*T_DataComboFile[[#This Row],[G&S reporting level indicator]]","v":0},{"$f":"T_DataComboFile[[#This Row],[2019/20 Preliminary outcome_Source]]*T_DataComboFile[[#This Row],[G&S reporting level indicator]]","v":0},{"$f":"T_DataComboFile[[#This Row],[2020/21 Original_Source]]*T_DataComboFile[[#This Row],[G&S reporting level indicator]]","v":0},{"$f":"T_DataComboFile[[#This Row],[2020/21 SAB_Source]]*T_DataComboFile[[#This Row],[G&S reporting level indicator]]","v":0},{"$f":"T_DataComboFile[[#This Row],[2020/21 Baseline_Source]]*T_DataComboFile[[#This Row],[G&S reporting level indicator]]","v":0},{"$f":"T_DataComboFile[[#This Row],[2021/22 Baseline_Source]]*T_DataComboFile[[#This Row],[G&S reporting level indicator]]","v":0},{"$f":"T_DataComboFile[[#This Row],[2022/23 Baseline_Source]]*T_DataComboFile[[#This Row],[G&S reporting level indicator]]","v":0},{"$f":"T_DataComboFile[[#This Row],[2023/24 Baseline_Source]]*T_DataComboFile[[#This Row],[G&S reporting level indicator]]","v":0},null,null,null,null,null,null,{"$f":"T_DataComboFile[[#This Row],[2021/22 Baseline]]+T_DataComboFile[[#This Row],[2021/22 Reduction]]+T_DataComboFile[[#This Row],[2021/22 Increase]]","v":0},{"$f":"T_DataComboFile[[#This Row],[2022/23 Baseline]]+T_DataComboFile[[#This Row],[2022/23 Reduction]]+T_DataComboFile[[#This Row],[2022/23 Increase]]","v":0},{"$f":"T_DataComboFile[[#This Row],[2023/24 Baseline]]+T_DataComboFile[[#This Row],[2023/24 Reduction]]+T_DataComboFile[[#This Row],[2023/24 Increase]]","v":0}]
[null,null,"2021_22","ENE2020",36,2,3,null,70635,36,2,3,null,"070635","36|02|03",1,1,2,22,22,"01|01|02|22|22","National","Small Business Development","Sector Policy and Research","International Relations",null,"Current","Current payments","Goods and services","Inventory: Farming supplies","Inventory: Farming supplies",null,null,null,0,0,0,0,0,0,0,0,0,0,0,0,0,0,null,{"$f":"IF(T_DataComboFile[[#This Row],[G&S reporting level indicator]]=1,$AX$16,\"Not applicable\")","v":"Not applicable"},{"$f":"IF(AND($AX$16=\"Level 3\",T_DataComboFile[[#This Row],[Econ3]] = \"Goods and services\"),IF(T_DataComboFile[[#This Row],[Econ4]] = T_DataComboFile[[#This Row],[Econ3]],1,0),IF(AND($AX$16=\"Level 4\",T_DataComboFile[[#This Row],[Econ4]] = \"Goods and services\"),0,1))","v":0},{"$f":"T_DataComboFile[[#This Row],[2016/17_Source]]*T_DataComboFile[[#This Row],[G&S reporting level indicator]]","v":0},{"$f":"T_DataComboFile[[#This Row],[2017/18_Source]]*T_DataComboFile[[#This Row],[G&S reporting level indicator]]","v":0},{"$f":"T_DataComboFile[[#This Row],[2018/19_Source]]*T_DataComboFile[[#This Row],[G&S reporting level indicator]]","v":0},{"$f":"T_DataComboFile[[#This Row],[2019/20 Main appropriation_Source]]*T_DataComboFile[[#This Row],[G&S reporting level indicator]]","v":0},{"$f":"T_DataComboFile[[#This Row],[2019/20 Adjusted appropriation_Source]]*T_DataComboFile[[#This Row],[G&S reporting level indicator]]","v":0},{"$f":"T_DataComboFile[[#This Row],[2019/20 Revised estimate_Source]]*T_DataComboFile[[#This Row],[G&S reporting level indicator]]","v":0},{"$f":"T_DataComboFile[[#This Row],[2019/20 Preliminary outcome_Source]]*T_DataComboFile[[#This Row],[G&S reporting level indicator]]","v":0},{"$f":"T_DataComboFile[[#This Row],[2020/21 Original_Source]]*T_DataComboFile[[#This Row],[G&S reporting level indicator]]","v":0},{"$f":"T_DataComboFile[[#This Row],[2020/21 SAB_Source]]*T_DataComboFile[[#This Row],[G&S reporting level indicator]]","v":0},{"$f":"T_DataComboFile[[#This Row],[2020/21 Baseline_Source]]*T_DataComboFile[[#This Row],[G&S reporting level indicator]]","v":0},{"$f":"T_DataComboFile[[#This Row],[2021/22 Baseline_Source]]*T_DataComboFile[[#This Row],[G&S reporting level indicator]]","v":0},{"$f":"T_DataComboFile[[#This Row],[2022/23 Baseline_Source]]*T_DataComboFile[[#This Row],[G&S reporting level indicator]]","v":0},{"$f":"T_DataComboFile[[#This Row],[2023/24 Baseline_Source]]*T_DataComboFile[[#This Row],[G&S reporting level indicator]]","v":0},null,null,null,null,null,null,{"$f":"T_DataComboFile[[#This Row],[2021/22 Baseline]]+T_DataComboFile[[#This Row],[2021/22 Reduction]]+T_DataComboFile[[#This Row],[2021/22 Increase]]","v":0},{"$f":"T_DataComboFile[[#This Row],[2022/23 Baseline]]+T_DataComboFile[[#This Row],[2022/23 Reduction]]+T_DataComboFile[[#This Row],[2022/23 Increase]]","v":0},{"$f":"T_DataComboFile[[#This Row],[2023/24 Baseline]]+T_DataComboFile[[#This Row],[2023/24 Reduction]]+T_DataComboFile[[#This Row],[2023/24 Increase]]","v":0}]
[null,null,"2021_22","ENE2020",36,2,3,null,70636,36,2,3,null,"070636","36|02|03",1,1,2,23,23,"01|01|02|23|23","National","Small Business Development","Sector Policy and Research","International Relations",null,"Current","Current payments","Goods and services","Inventory: Food and food supplies","Inventory: Food and food supplies",null,null,null,0,0,0,0,0,0,0,0,0,0,0,0,0,0,null,{"$f":"IF(T_DataComboFile[[#This Row],[G&S reporting level indicator]]=1,$AX$16,\"Not applicable\")","v":"Not applicable"},{"$f":"IF(AND($AX$16=\"Level 3\",T_DataComboFile[[#This Row],[Econ3]] = \"Goods and services\"),IF(T_DataComboFile[[#This Row],[Econ4]] = T_DataComboFile[[#This Row],[Econ3]],1,0),IF(AND($AX$16=\"Level 4\",T_DataComboFile[[#This Row],[Econ4]] = \"Goods and services\"),0,1))","v":0},{"$f":"T_DataComboFile[[#This Row],[2016/17_Source]]*T_DataComboFile[[#This Row],[G&S reporting level indicator]]","v":0},{"$f":"T_DataComboFile[[#This Row],[2017/18_Source]]*T_DataComboFile[[#This Row],[G&S reporting level indicator]]","v":0},{"$f":"T_DataComboFile[[#This Row],[2018/19_Source]]*T_DataComboFile[[#This Row],[G&S reporting level indicator]]","v":0},{"$f":"T_DataComboFile[[#This Row],[2019/20 Main appropriation_Source]]*T_DataComboFile[[#This Row],[G&S reporting level indicator]]","v":0},{"$f":"T_DataComboFile[[#This Row],[2019/20 Adjusted appropriation_Source]]*T_DataComboFile[[#This Row],[G&S reporting level indicator]]","v":0},{"$f":"T_DataComboFile[[#This Row],[2019/20 Revised estimate_Source]]*T_DataComboFile[[#This Row],[G&S reporting level indicator]]","v":0},{"$f":"T_DataComboFile[[#This Row],[2019/20 Preliminary outcome_Source]]*T_DataComboFile[[#This Row],[G&S reporting level indicator]]","v":0},{"$f":"T_DataComboFile[[#This Row],[2020/21 Original_Source]]*T_DataComboFile[[#This Row],[G&S reporting level indicator]]","v":0},{"$f":"T_DataComboFile[[#This Row],[2020/21 SAB_Source]]*T_DataComboFile[[#This Row],[G&S reporting level indicator]]","v":0},{"$f":"T_DataComboFile[[#This Row],[2020/21 Baseline_Source]]*T_DataComboFile[[#This Row],[G&S reporting level indicator]]","v":0},{"$f":"T_DataComboFile[[#This Row],[2021/22 Baseline_Source]]*T_DataComboFile[[#This Row],[G&S reporting level indicator]]","v":0},{"$f":"T_DataComboFile[[#This Row],[2022/23 Baseline_Source]]*T_DataComboFile[[#This Row],[G&S reporting level indicator]]","v":0},{"$f":"T_DataComboFile[[#This Row],[2023/24 Baseline_Source]]*T_DataComboFile[[#This Row],[G&S reporting level indicator]]","v":0},null,null,null,null,null,null,{"$f":"T_DataComboFile[[#This Row],[2021/22 Baseline]]+T_DataComboFile[[#This Row],[2021/22 Reduction]]+T_DataComboFile[[#This Row],[2021/22 Increase]]","v":0},{"$f":"T_DataComboFile[[#This Row],[2022/23 Baseline]]+T_DataComboFile[[#This Row],[2022/23 Reduction]]+T_DataComboFile[[#This Row],[2022/23 Increase]]","v":0},{"$f":"T_DataComboFile[[#This Row],[2023/24 Baseline]]+T_DataComboFile[[#This Row],[2023/24 Reduction]]+T_DataComboFile[[#This Row],[2023/24 Increase]]","v":0}]
[null,null,"2021_22","ENE2020",36,2,3,null,70637,36,2,3,null,"070637","36|02|03",1,1,2,24,24,"01|01|02|24|24","National","Small Business Development","Sector Policy and Research","International Relations",null,"Current","Current payments","Goods and services","Inventory: Fuel, oil and gas","Inventory: Fuel, oil and gas",null,null,null,0,0,0,0,0,0,0,0,0,0,0,0,0,0,null,{"$f":"IF(T_DataComboFile[[#This Row],[G&S reporting level indicator]]=1,$AX$16,\"Not applicable\")","v":"Not applicable"},{"$f":"IF(AND($AX$16=\"Level 3\",T_DataComboFile[[#This Row],[Econ3]] = \"Goods and services\"),IF(T_DataComboFile[[#This Row],[Econ4]] = T_DataComboFile[[#This Row],[Econ3]],1,0),IF(AND($AX$16=\"Level 4\",T_DataComboFile[[#This Row],[Econ4]] = \"Goods and services\"),0,1))","v":0},{"$f":"T_DataComboFile[[#This Row],[2016/17_Source]]*T_DataComboFile[[#This Row],[G&S reporting level indicator]]","v":0},{"$f":"T_DataComboFile[[#This Row],[2017/18_Source]]*T_DataComboFile[[#This Row],[G&S reporting level indicator]]","v":0},{"$f":"T_DataComboFile[[#This Row],[2018/19_Source]]*T_DataComboFile[[#This Row],[G&S reporting level indicator]]","v":0},{"$f":"T_DataComboFile[[#This Row],[2019/20 Main appropriation_Source]]*T_DataComboFile[[#This Row],[G&S reporting level indicator]]","v":0},{"$f":"T_DataComboFile[[#This Row],[2019/20 Adjusted appropriation_Source]]*T_DataComboFile[[#This Row],[G&S reporting level indicator]]","v":0},{"$f":"T_DataComboFile[[#This Row],[2019/20 Revised estimate_Source]]*T_DataComboFile[[#This Row],[G&S reporting level indicator]]","v":0},{"$f":"T_DataComboFile[[#This Row],[2019/20 Preliminary outcome_Source]]*T_DataComboFile[[#This Row],[G&S reporting level indicator]]","v":0},{"$f":"T_DataComboFile[[#This Row],[2020/21 Original_Source]]*T_DataComboFile[[#This Row],[G&S reporting level indicator]]","v":0},{"$f":"T_DataComboFile[[#This Row],[2020/21 SAB_Source]]*T_DataComboFile[[#This Row],[G&S reporting level indicator]]","v":0},{"$f":"T_DataComboFile[[#This Row],[2020/21 Baseline_Source]]*T_DataComboFile[[#This Row],[G&S reporting level indicator]]","v":0},{"$f":"T_DataComboFile[[#This Row],[2021/22 Baseline_Source]]*T_DataComboFile[[#This Row],[G&S reporting level indicator]]","v":0},{"$f":"T_DataComboFile[[#This Row],[2022/23 Baseline_Source]]*T_DataComboFile[[#This Row],[G&S reporting level indicator]]","v":0},{"$f":"T_DataComboFile[[#This Row],[2023/24 Baseline_Source]]*T_DataComboFile[[#This Row],[G&S reporting level indicator]]","v":0},null,null,null,null,null,null,{"$f":"T_DataComboFile[[#This Row],[2021/22 Baseline]]+T_DataComboFile[[#This Row],[2021/22 Reduction]]+T_DataComboFile[[#This Row],[2021/22 Increase]]","v":0},{"$f":"T_DataComboFile[[#This Row],[2022/23 Baseline]]+T_DataComboFile[[#This Row],[2022/23 Reduction]]+T_DataComboFile[[#This Row],[2022/23 Increase]]","v":0},{"$f":"T_DataComboFile[[#This Row],[2023/24 Baseline]]+T_DataComboFile[[#This Row],[2023/24 Reduction]]+T_DataComboFile[[#This Row],[2023/24 Increase]]","v":0}]
[null,null,"2021_22","ENE2020",36,2,3,null,70638,36,2,3,null,"070638","36|02|03",1,1,2,25,25,"01|01|02|25|25","National","Small Business Development","Sector Policy and Research","International Relations",null,"Current","Current payments","Goods and services","Inventory: Learner and teacher support material","Inventory: Learner and teacher support material",null,null,null,0,0,0,0,0,0,0,0,0,0,0,0,0,0,null,{"$f":"IF(T_DataComboFile[[#This Row],[G&S reporting level indicator]]=1,$AX$16,\"Not applicable\")","v":"Not applicable"},{"$f":"IF(AND($AX$16=\"Level 3\",T_DataComboFile[[#This Row],[Econ3]] = \"Goods and services\"),IF(T_DataComboFile[[#This Row],[Econ4]] = T_DataComboFile[[#This Row],[Econ3]],1,0),IF(AND($AX$16=\"Level 4\",T_DataComboFile[[#This Row],[Econ4]] = \"Goods and services\"),0,1))","v":0},{"$f":"T_DataComboFile[[#This Row],[2016/17_Source]]*T_DataComboFile[[#This Row],[G&S reporting level indicator]]","v":0},{"$f":"T_DataComboFile[[#This Row],[2017/18_Source]]*T_DataComboFile[[#This Row],[G&S reporting level indicator]]","v":0},{"$f":"T_DataComboFile[[#This Row],[2018/19_Source]]*T_DataComboFile[[#This Row],[G&S reporting level indicator]]","v":0},{"$f":"T_DataComboFile[[#This Row],[2019/20 Main appropriation_Source]]*T_DataComboFile[[#This Row],[G&S reporting level indicator]]","v":0},{"$f":"T_DataComboFile[[#This Row],[2019/20 Adjusted appropriation_Source]]*T_DataComboFile[[#This Row],[G&S reporting level indicator]]","v":0},{"$f":"T_DataComboFile[[#This Row],[2019/20 Revised estimate_Source]]*T_DataComboFile[[#This Row],[G&S reporting level indicator]]","v":0},{"$f":"T_DataComboFile[[#This Row],[2019/20 Preliminary outcome_Source]]*T_DataComboFile[[#This Row],[G&S reporting level indicator]]","v":0},{"$f":"T_DataComboFile[[#This Row],[2020/21 Original_Source]]*T_DataComboFile[[#This Row],[G&S reporting level indicator]]","v":0},{"$f":"T_DataComboFile[[#This Row],[2020/21 SAB_Source]]*T_DataComboFile[[#This Row],[G&S reporting level indicator]]","v":0},{"$f":"T_DataComboFile[[#This Row],[2020/21 Baseline_Source]]*T_DataComboFile[[#This Row],[G&S reporting level indicator]]","v":0},{"$f":"T_DataComboFile[[#This Row],[2021/22 Baseline_Source]]*T_DataComboFile[[#This Row],[G&S reporting level indicator]]","v":0},{"$f":"T_DataComboFile[[#This Row],[2022/23 Baseline_Source]]*T_DataComboFile[[#This Row],[G&S reporting level indicator]]","v":0},{"$f":"T_DataComboFile[[#This Row],[2023/24 Baseline_Source]]*T_DataComboFile[[#This Row],[G&S reporting level indicator]]","v":0},null,null,null,null,null,null,{"$f":"T_DataComboFile[[#This Row],[2021/22 Baseline]]+T_DataComboFile[[#This Row],[2021/22 Reduction]]+T_DataComboFile[[#This Row],[2021/22 Increase]]","v":0},{"$f":"T_DataComboFile[[#This Row],[2022/23 Baseline]]+T_DataComboFile[[#This Row],[2022/23 Reduction]]+T_DataComboFile[[#This Row],[2022/23 Increase]]","v":0},{"$f":"T_DataComboFile[[#This Row],[2023/24 Baseline]]+T_DataComboFile[[#This Row],[2023/24 Reduction]]+T_DataComboFile[[#This Row],[2023/24 Increase]]","v":0}]
[null,null,"2021_22","ENE2020",36,2,3,null,70639,36,2,3,null,"070639","36|02|03",1,1,2,26,26,"01|01|02|26|26","National","Small Business Development","Sector Policy and Research","International Relations",null,"Current","Current payments","Goods and services","Inventory: Materials and supplies","Inventory: Materials and supplies",null,null,null,0,0,0,0,0,0,0,0,0,0,0,0,0,0,null,{"$f":"IF(T_DataComboFile[[#This Row],[G&S reporting level indicator]]=1,$AX$16,\"Not applicable\")","v":"Not applicable"},{"$f":"IF(AND($AX$16=\"Level 3\",T_DataComboFile[[#This Row],[Econ3]] = \"Goods and services\"),IF(T_DataComboFile[[#This Row],[Econ4]] = T_DataComboFile[[#This Row],[Econ3]],1,0),IF(AND($AX$16=\"Level 4\",T_DataComboFile[[#This Row],[Econ4]] = \"Goods and services\"),0,1))","v":0},{"$f":"T_DataComboFile[[#This Row],[2016/17_Source]]*T_DataComboFile[[#This Row],[G&S reporting level indicator]]","v":0},{"$f":"T_DataComboFile[[#This Row],[2017/18_Source]]*T_DataComboFile[[#This Row],[G&S reporting level indicator]]","v":0},{"$f":"T_DataComboFile[[#This Row],[2018/19_Source]]*T_DataComboFile[[#This Row],[G&S reporting level indicator]]","v":0},{"$f":"T_DataComboFile[[#This Row],[2019/20 Main appropriation_Source]]*T_DataComboFile[[#This Row],[G&S reporting level indicator]]","v":0},{"$f":"T_DataComboFile[[#This Row],[2019/20 Adjusted appropriation_Source]]*T_DataComboFile[[#This Row],[G&S reporting level indicator]]","v":0},{"$f":"T_DataComboFile[[#This Row],[2019/20 Revised estimate_Source]]*T_DataComboFile[[#This Row],[G&S reporting level indicator]]","v":0},{"$f":"T_DataComboFile[[#This Row],[2019/20 Preliminary outcome_Source]]*T_DataComboFile[[#This Row],[G&S reporting level indicator]]","v":0},{"$f":"T_DataComboFile[[#This Row],[2020/21 Original_Source]]*T_DataComboFile[[#This Row],[G&S reporting level indicator]]","v":0},{"$f":"T_DataComboFile[[#This Row],[2020/21 SAB_Source]]*T_DataComboFile[[#This Row],[G&S reporting level indicator]]","v":0},{"$f":"T_DataComboFile[[#This Row],[2020/21 Baseline_Source]]*T_DataComboFile[[#This Row],[G&S reporting level indicator]]","v":0},{"$f":"T_DataComboFile[[#This Row],[2021/22 Baseline_Source]]*T_DataComboFile[[#This Row],[G&S reporting level indicator]]","v":0},{"$f":"T_DataComboFile[[#This Row],[2022/23 Baseline_Source]]*T_DataComboFile[[#This Row],[G&S reporting level indicator]]","v":0},{"$f":"T_DataComboFile[[#This Row],[2023/24 Baseline_Source]]*T_DataComboFile[[#This Row],[G&S reporting level indicator]]","v":0},null,null,null,null,null,null,{"$f":"T_DataComboFile[[#This Row],[2021/22 Baseline]]+T_DataComboFile[[#This Row],[2021/22 Reduction]]+T_DataComboFile[[#This Row],[2021/22 Increase]]","v":0},{"$f":"T_DataComboFile[[#This Row],[2022/23 Baseline]]+T_DataComboFile[[#This Row],[2022/23 Reduction]]+T_DataComboFile[[#This Row],[2022/23 Increase]]","v":0},{"$f":"T_DataComboFile[[#This Row],[2023/24 Baseline]]+T_DataComboFile[[#This Row],[2023/24 Reduction]]+T_DataComboFile[[#This Row],[2023/24 Increase]]","v":0}]
[null,null,"2021_22","ENE2020",36,2,3,null,70640,36,2,3,null,"070640","36|02|03",1,1,2,27,27,"01|01|02|27|27","National","Small Business Development","Sector Policy and Research","International Relations",null,"Current","Current payments","Goods and services","Inventory: Medical supplies","Inventory: Medical supplies",null,null,null,0,0,0,0,0,0,0,0,0,0,0,0,0,0,null,{"$f":"IF(T_DataComboFile[[#This Row],[G&S reporting level indicator]]=1,$AX$16,\"Not applicable\")","v":"Not applicable"},{"$f":"IF(AND($AX$16=\"Level 3\",T_DataComboFile[[#This Row],[Econ3]] = \"Goods and services\"),IF(T_DataComboFile[[#This Row],[Econ4]] = T_DataComboFile[[#This Row],[Econ3]],1,0),IF(AND($AX$16=\"Level 4\",T_DataComboFile[[#This Row],[Econ4]] = \"Goods and services\"),0,1))","v":0},{"$f":"T_DataComboFile[[#This Row],[2016/17_Source]]*T_DataComboFile[[#This Row],[G&S reporting level indicator]]","v":0},{"$f":"T_DataComboFile[[#This Row],[2017/18_Source]]*T_DataComboFile[[#This Row],[G&S reporting level indicator]]","v":0},{"$f":"T_DataComboFile[[#This Row],[2018/19_Source]]*T_DataComboFile[[#This Row],[G&S reporting level indicator]]","v":0},{"$f":"T_DataComboFile[[#This Row],[2019/20 Main appropriation_Source]]*T_DataComboFile[[#This Row],[G&S reporting level indicator]]","v":0},{"$f":"T_DataComboFile[[#This Row],[2019/20 Adjusted appropriation_Source]]*T_DataComboFile[[#This Row],[G&S reporting level indicator]]","v":0},{"$f":"T_DataComboFile[[#This Row],[2019/20 Revised estimate_Source]]*T_DataComboFile[[#This Row],[G&S reporting level indicator]]","v":0},{"$f":"T_DataComboFile[[#This Row],[2019/20 Preliminary outcome_Source]]*T_DataComboFile[[#This Row],[G&S reporting level indicator]]","v":0},{"$f":"T_DataComboFile[[#This Row],[2020/21 Original_Source]]*T_DataComboFile[[#This Row],[G&S reporting level indicator]]","v":0},{"$f":"T_DataComboFile[[#This Row],[2020/21 SAB_Source]]*T_DataComboFile[[#This Row],[G&S reporting level indicator]]","v":0},{"$f":"T_DataComboFile[[#This Row],[2020/21 Baseline_Source]]*T_DataComboFile[[#This Row],[G&S reporting level indicator]]","v":0},{"$f":"T_DataComboFile[[#This Row],[2021/22 Baseline_Source]]*T_DataComboFile[[#This Row],[G&S reporting level indicator]]","v":0},{"$f":"T_DataComboFile[[#This Row],[2022/23 Baseline_Source]]*T_DataComboFile[[#This Row],[G&S reporting level indicator]]","v":0},{"$f":"T_DataComboFile[[#This Row],[2023/24 Baseline_Source]]*T_DataComboFile[[#This Row],[G&S reporting level indicator]]","v":0},null,null,null,null,null,null,{"$f":"T_DataComboFile[[#This Row],[2021/22 Baseline]]+T_DataComboFile[[#This Row],[2021/22 Reduction]]+T_DataComboFile[[#This Row],[2021/22 Increase]]","v":0},{"$f":"T_DataComboFile[[#This Row],[2022/23 Baseline]]+T_DataComboFile[[#This Row],[2022/23 Reduction]]+T_DataComboFile[[#This Row],[2022/23 Increase]]","v":0},{"$f":"T_DataComboFile[[#This Row],[2023/24 Baseline]]+T_DataComboFile[[#This Row],[2023/24 Reduction]]+T_DataComboFile[[#This Row],[2023/24 Increase]]","v":0}]
[null,null,"2021_22","ENE2020",36,2,3,null,70641,36,2,3,null,"070641","36|02|03",1,1,2,28,28,"01|01|02|28|28","National","Small Business Development","Sector Policy and Research","International Relations",null,"Current","Current payments","Goods and services","Inventory: Medicine","Inventory: Medicine",null,null,null,0,0,0,0,0,0,0,0,0,0,0,0,0,0,null,{"$f":"IF(T_DataComboFile[[#This Row],[G&S reporting level indicator]]=1,$AX$16,\"Not applicable\")","v":"Not applicable"},{"$f":"IF(AND($AX$16=\"Level 3\",T_DataComboFile[[#This Row],[Econ3]] = \"Goods and services\"),IF(T_DataComboFile[[#This Row],[Econ4]] = T_DataComboFile[[#This Row],[Econ3]],1,0),IF(AND($AX$16=\"Level 4\",T_DataComboFile[[#This Row],[Econ4]] = \"Goods and services\"),0,1))","v":0},{"$f":"T_DataComboFile[[#This Row],[2016/17_Source]]*T_DataComboFile[[#This Row],[G&S reporting level indicator]]","v":0},{"$f":"T_DataComboFile[[#This Row],[2017/18_Source]]*T_DataComboFile[[#This Row],[G&S reporting level indicator]]","v":0},{"$f":"T_DataComboFile[[#This Row],[2018/19_Source]]*T_DataComboFile[[#This Row],[G&S reporting level indicator]]","v":0},{"$f":"T_DataComboFile[[#This Row],[2019/20 Main appropriation_Source]]*T_DataComboFile[[#This Row],[G&S reporting level indicator]]","v":0},{"$f":"T_DataComboFile[[#This Row],[2019/20 Adjusted appropriation_Source]]*T_DataComboFile[[#This Row],[G&S reporting level indicator]]","v":0},{"$f":"T_DataComboFile[[#This Row],[2019/20 Revised estimate_Source]]*T_DataComboFile[[#This Row],[G&S reporting level indicator]]","v":0},{"$f":"T_DataComboFile[[#This Row],[2019/20 Preliminary outcome_Source]]*T_DataComboFile[[#This Row],[G&S reporting level indicator]]","v":0},{"$f":"T_DataComboFile[[#This Row],[2020/21 Original_Source]]*T_DataComboFile[[#This Row],[G&S reporting level indicator]]","v":0},{"$f":"T_DataComboFile[[#This Row],[2020/21 SAB_Source]]*T_DataComboFile[[#This Row],[G&S reporting level indicator]]","v":0},{"$f":"T_DataComboFile[[#This Row],[2020/21 Baseline_Source]]*T_DataComboFile[[#This Row],[G&S reporting level indicator]]","v":0},{"$f":"T_DataComboFile[[#This Row],[2021/22 Baseline_Source]]*T_DataComboFile[[#This Row],[G&S reporting level indicator]]","v":0},{"$f":"T_DataComboFile[[#This Row],[2022/23 Baseline_Source]]*T_DataComboFile[[#This Row],[G&S reporting level indicator]]","v":0},{"$f":"T_DataComboFile[[#This Row],[2023/24 Baseline_Source]]*T_DataComboFile[[#This Row],[G&S reporting level indicator]]","v":0},null,null,null,null,null,null,{"$f":"T_DataComboFile[[#This Row],[2021/22 Baseline]]+T_DataComboFile[[#This Row],[2021/22 Reduction]]+T_DataComboFile[[#This Row],[2021/22 Increase]]","v":0},{"$f":"T_DataComboFile[[#This Row],[2022/23 Baseline]]+T_DataComboFile[[#This Row],[2022/23 Reduction]]+T_DataComboFile[[#This Row],[2022/23 Increase]]","v":0},{"$f":"T_DataComboFile[[#This Row],[2023/24 Baseline]]+T_DataComboFile[[#This Row],[2023/24 Reduction]]+T_DataComboFile[[#This Row],[2023/24 Increase]]","v":0}]
[null,null,"2021_22","ENE2020",36,2,3,null,70642,36,2,3,null,"070642","36|02|03",1,1,2,29,29,"01|01|02|29|29","National","Small Business Development","Sector Policy and Research","International Relations",null,"Current","Current payments","Goods and services","Medsas inventory interface","Medsas inventory interface",null,null,null,0,0,0,0,0,0,0,0,0,0,0,0,0,0,null,{"$f":"IF(T_DataComboFile[[#This Row],[G&S reporting level indicator]]=1,$AX$16,\"Not applicable\")","v":"Not applicable"},{"$f":"IF(AND($AX$16=\"Level 3\",T_DataComboFile[[#This Row],[Econ3]] = \"Goods and services\"),IF(T_DataComboFile[[#This Row],[Econ4]] = T_DataComboFile[[#This Row],[Econ3]],1,0),IF(AND($AX$16=\"Level 4\",T_DataComboFile[[#This Row],[Econ4]] = \"Goods and services\"),0,1))","v":0},{"$f":"T_DataComboFile[[#This Row],[2016/17_Source]]*T_DataComboFile[[#This Row],[G&S reporting level indicator]]","v":0},{"$f":"T_DataComboFile[[#This Row],[2017/18_Source]]*T_DataComboFile[[#This Row],[G&S reporting level indicator]]","v":0},{"$f":"T_DataComboFile[[#This Row],[2018/19_Source]]*T_DataComboFile[[#This Row],[G&S reporting level indicator]]","v":0},{"$f":"T_DataComboFile[[#This Row],[2019/20 Main appropriation_Source]]*T_DataComboFile[[#This Row],[G&S reporting level indicator]]","v":0},{"$f":"T_DataComboFile[[#This Row],[2019/20 Adjusted appropriation_Source]]*T_DataComboFile[[#This Row],[G&S reporting level indicator]]","v":0},{"$f":"T_DataComboFile[[#This Row],[2019/20 Revised estimate_Source]]*T_DataComboFile[[#This Row],[G&S reporting level indicator]]","v":0},{"$f":"T_DataComboFile[[#This Row],[2019/20 Preliminary outcome_Source]]*T_DataComboFile[[#This Row],[G&S reporting level indicator]]","v":0},{"$f":"T_DataComboFile[[#This Row],[2020/21 Original_Source]]*T_DataComboFile[[#This Row],[G&S reporting level indicator]]","v":0},{"$f":"T_DataComboFile[[#This Row],[2020/21 SAB_Source]]*T_DataComboFile[[#This Row],[G&S reporting level indicator]]","v":0},{"$f":"T_DataComboFile[[#This Row],[2020/21 Baseline_Source]]*T_DataComboFile[[#This Row],[G&S reporting level indicator]]","v":0},{"$f":"T_DataComboFile[[#This Row],[2021/22 Baseline_Source]]*T_DataComboFile[[#This Row],[G&S reporting level indicator]]","v":0},{"$f":"T_DataComboFile[[#This Row],[2022/23 Baseline_Source]]*T_DataComboFile[[#This Row],[G&S reporting level indicator]]","v":0},{"$f":"T_DataComboFile[[#This Row],[2023/24 Baseline_Source]]*T_DataComboFile[[#This Row],[G&S reporting level indicator]]","v":0},null,null,null,null,null,null,{"$f":"T_DataComboFile[[#This Row],[2021/22 Baseline]]+T_DataComboFile[[#This Row],[2021/22 Reduction]]+T_DataComboFile[[#This Row],[2021/22 Increase]]","v":0},{"$f":"T_DataComboFile[[#This Row],[2022/23 Baseline]]+T_DataComboFile[[#This Row],[2022/23 Reduction]]+T_DataComboFile[[#This Row],[2022/23 Increase]]","v":0},{"$f":"T_DataComboFile[[#This Row],[2023/24 Baseline]]+T_DataComboFile[[#This Row],[2023/24 Reduction]]+T_DataComboFile[[#This Row],[2023/24 Increase]]","v":0}]
[null,null,"2021_22","ENE2020",36,2,3,null,70643,36,2,3,null,"070643","36|02|03",1,1,2,30,30,"01|01|02|30|30","National","Small Business Development","Sector Policy and Research","International Relations",null,"Current","Current payments","Goods and services","Inventory: Other supplies","Inventory: Other supplies",null,null,null,0,0,0,0,0,0,0,0,0,0,0,0,0,0,null,{"$f":"IF(T_DataComboFile[[#This Row],[G&S reporting level indicator]]=1,$AX$16,\"Not applicable\")","v":"Not applicable"},{"$f":"IF(AND($AX$16=\"Level 3\",T_DataComboFile[[#This Row],[Econ3]] = \"Goods and services\"),IF(T_DataComboFile[[#This Row],[Econ4]] = T_DataComboFile[[#This Row],[Econ3]],1,0),IF(AND($AX$16=\"Level 4\",T_DataComboFile[[#This Row],[Econ4]] = \"Goods and services\"),0,1))","v":0},{"$f":"T_DataComboFile[[#This Row],[2016/17_Source]]*T_DataComboFile[[#This Row],[G&S reporting level indicator]]","v":0},{"$f":"T_DataComboFile[[#This Row],[2017/18_Source]]*T_DataComboFile[[#This Row],[G&S reporting level indicator]]","v":0},{"$f":"T_DataComboFile[[#This Row],[2018/19_Source]]*T_DataComboFile[[#This Row],[G&S reporting level indicator]]","v":0},{"$f":"T_DataComboFile[[#This Row],[2019/20 Main appropriation_Source]]*T_DataComboFile[[#This Row],[G&S reporting level indicator]]","v":0},{"$f":"T_DataComboFile[[#This Row],[2019/20 Adjusted appropriation_Source]]*T_DataComboFile[[#This Row],[G&S reporting level indicator]]","v":0},{"$f":"T_DataComboFile[[#This Row],[2019/20 Revised estimate_Source]]*T_DataComboFile[[#This Row],[G&S reporting level indicator]]","v":0},{"$f":"T_DataComboFile[[#This Row],[2019/20 Preliminary outcome_Source]]*T_DataComboFile[[#This Row],[G&S reporting level indicator]]","v":0},{"$f":"T_DataComboFile[[#This Row],[2020/21 Original_Source]]*T_DataComboFile[[#This Row],[G&S reporting level indicator]]","v":0},{"$f":"T_DataComboFile[[#This Row],[2020/21 SAB_Source]]*T_DataComboFile[[#This Row],[G&S reporting level indicator]]","v":0},{"$f":"T_DataComboFile[[#This Row],[2020/21 Baseline_Source]]*T_DataComboFile[[#This Row],[G&S reporting level indicator]]","v":0},{"$f":"T_DataComboFile[[#This Row],[2021/22 Baseline_Source]]*T_DataComboFile[[#This Row],[G&S reporting level indicator]]","v":0},{"$f":"T_DataComboFile[[#This Row],[2022/23 Baseline_Source]]*T_DataComboFile[[#This Row],[G&S reporting level indicator]]","v":0},{"$f":"T_DataComboFile[[#This Row],[2023/24 Baseline_Source]]*T_DataComboFile[[#This Row],[G&S reporting level indicator]]","v":0},null,null,null,null,null,null,{"$f":"T_DataComboFile[[#This Row],[2021/22 Baseline]]+T_DataComboFile[[#This Row],[2021/22 Reduction]]+T_DataComboFile[[#This Row],[2021/22 Increase]]","v":0},{"$f":"T_DataComboFile[[#This Row],[2022/23 Baseline]]+T_DataComboFile[[#This Row],[2022/23 Reduction]]+T_DataComboFile[[#This Row],[2022/23 Increase]]","v":0},{"$f":"T_DataComboFile[[#This Row],[2023/24 Baseline]]+T_DataComboFile[[#This Row],[2023/24 Reduction]]+T_DataComboFile[[#This Row],[2023/24 Increase]]","v":0}]
["NAT|Non-transfer item","36|Consumable supplies","2021_22","ENE2020",36,2,3,17320,70644,36,2,3,17320,"070644","36|02|03",1,1,2,31,31,"01|01|02|31|31","National","Small Business Development","Sector Policy and Research","International Relations","Non-transfer item","Current","Current payments","Goods and services","Consumable supplies","Consumable supplies","Economic development","Industrialisation and exports","NAT",0,0,0,0,1,1,1,0,0,0,0,0,0,1,null,{"$f":"IF(T_DataComboFile[[#This Row],[G&S reporting level indicator]]=1,$AX$16,\"Not applicable\")","v":"Not applicable"},{"$f":"IF(AND($AX$16=\"Level 3\",T_DataComboFile[[#This Row],[Econ3]] = \"Goods and services\"),IF(T_DataComboFile[[#This Row],[Econ4]] = T_DataComboFile[[#This Row],[Econ3]],1,0),IF(AND($AX$16=\"Level 4\",T_DataComboFile[[#This Row],[Econ4]] = \"Goods and services\"),0,1))","v":0},{"$f":"T_DataComboFile[[#This Row],[2016/17_Source]]*T_DataComboFile[[#This Row],[G&S reporting level indicator]]","v":0},{"$f":"T_DataComboFile[[#This Row],[2017/18_Source]]*T_DataComboFile[[#This Row],[G&S reporting level indicator]]","v":0},{"$f":"T_DataComboFile[[#This Row],[2018/19_Source]]*T_DataComboFile[[#This Row],[G&S reporting level indicator]]","v":0},{"$f":"T_DataComboFile[[#This Row],[2019/20 Main appropriation_Source]]*T_DataComboFile[[#This Row],[G&S reporting level indicator]]","v":0},{"$f":"T_DataComboFile[[#This Row],[2019/20 Adjusted appropriation_Source]]*T_DataComboFile[[#This Row],[G&S reporting level indicator]]","v":0},{"$f":"T_DataComboFile[[#This Row],[2019/20 Revised estimate_Source]]*T_DataComboFile[[#This Row],[G&S reporting level indicator]]","v":0},{"$f":"T_DataComboFile[[#This Row],[2019/20 Preliminary outcome_Source]]*T_DataComboFile[[#This Row],[G&S reporting level indicator]]","v":0},{"$f":"T_DataComboFile[[#This Row],[2020/21 Original_Source]]*T_DataComboFile[[#This Row],[G&S reporting level indicator]]","v":0},{"$f":"T_DataComboFile[[#This Row],[2020/21 SAB_Source]]*T_DataComboFile[[#This Row],[G&S reporting level indicator]]","v":0},{"$f":"T_DataComboFile[[#This Row],[2020/21 Baseline_Source]]*T_DataComboFile[[#This Row],[G&S reporting level indicator]]","v":0},{"$f":"T_DataComboFile[[#This Row],[2021/22 Baseline_Source]]*T_DataComboFile[[#This Row],[G&S reporting level indicator]]","v":0},{"$f":"T_DataComboFile[[#This Row],[2022/23 Baseline_Source]]*T_DataComboFile[[#This Row],[G&S reporting level indicator]]","v":0},{"$f":"T_DataComboFile[[#This Row],[2023/24 Baseline_Source]]*T_DataComboFile[[#This Row],[G&S reporting level indicator]]","v":0},null,null,null,null,null,null,{"$f":"T_DataComboFile[[#This Row],[2021/22 Baseline]]+T_DataComboFile[[#This Row],[2021/22 Reduction]]+T_DataComboFile[[#This Row],[2021/22 Increase]]","v":0},{"$f":"T_DataComboFile[[#This Row],[2022/23 Baseline]]+T_DataComboFile[[#This Row],[2022/23 Reduction]]+T_DataComboFile[[#This Row],[2022/23 Increase]]","v":0},{"$f":"T_DataComboFile[[#This Row],[2023/24 Baseline]]+T_DataComboFile[[#This Row],[2023/24 Reduction]]+T_DataComboFile[[#This Row],[2023/24 Increase]]","v":0}]
["NAT|Non-transfer item","36|Consumables: Stationery, printing and office supplies","2021_22","ENE2020",36,2,3,17321,70645,36,2,3,17321,"070645","36|02|03",1,1,2,32,32,"01|01|02|32|32","National","Small Business Development","Sector Policy and Research","International Relations","Non-transfer item","Current","Current payments","Goods and services","Consumables: Stationery, printing and office supplies","Consumables: Stationery, printing and office supplies","Economic development","Industrialisation and exports","NAT",0,0,0,31,31,31,31,0,0,0,0,0,0,1,null,{"$f":"IF(T_DataComboFile[[#This Row],[G&S reporting level indicator]]=1,$AX$16,\"Not applicable\")","v":"Not applicable"},{"$f":"IF(AND($AX$16=\"Level 3\",T_DataComboFile[[#This Row],[Econ3]] = \"Goods and services\"),IF(T_DataComboFile[[#This Row],[Econ4]] = T_DataComboFile[[#This Row],[Econ3]],1,0),IF(AND($AX$16=\"Level 4\",T_DataComboFile[[#This Row],[Econ4]] = \"Goods and services\"),0,1))","v":0},{"$f":"T_DataComboFile[[#This Row],[2016/17_Source]]*T_DataComboFile[[#This Row],[G&S reporting level indicator]]","v":0},{"$f":"T_DataComboFile[[#This Row],[2017/18_Source]]*T_DataComboFile[[#This Row],[G&S reporting level indicator]]","v":0},{"$f":"T_DataComboFile[[#This Row],[2018/19_Source]]*T_DataComboFile[[#This Row],[G&S reporting level indicator]]","v":0},{"$f":"T_DataComboFile[[#This Row],[2019/20 Main appropriation_Source]]*T_DataComboFile[[#This Row],[G&S reporting level indicator]]","v":0},{"$f":"T_DataComboFile[[#This Row],[2019/20 Adjusted appropriation_Source]]*T_DataComboFile[[#This Row],[G&S reporting level indicator]]","v":0},{"$f":"T_DataComboFile[[#This Row],[2019/20 Revised estimate_Source]]*T_DataComboFile[[#This Row],[G&S reporting level indicator]]","v":0},{"$f":"T_DataComboFile[[#This Row],[2019/20 Preliminary outcome_Source]]*T_DataComboFile[[#This Row],[G&S reporting level indicator]]","v":0},{"$f":"T_DataComboFile[[#This Row],[2020/21 Original_Source]]*T_DataComboFile[[#This Row],[G&S reporting level indicator]]","v":0},{"$f":"T_DataComboFile[[#This Row],[2020/21 SAB_Source]]*T_DataComboFile[[#This Row],[G&S reporting level indicator]]","v":0},{"$f":"T_DataComboFile[[#This Row],[2020/21 Baseline_Source]]*T_DataComboFile[[#This Row],[G&S reporting level indicator]]","v":0},{"$f":"T_DataComboFile[[#This Row],[2021/22 Baseline_Source]]*T_DataComboFile[[#This Row],[G&S reporting level indicator]]","v":0},{"$f":"T_DataComboFile[[#This Row],[2022/23 Baseline_Source]]*T_DataComboFile[[#This Row],[G&S reporting level indicator]]","v":0},{"$f":"T_DataComboFile[[#This Row],[2023/24 Baseline_Source]]*T_DataComboFile[[#This Row],[G&S reporting level indicator]]","v":0},null,null,null,null,null,null,{"$f":"T_DataComboFile[[#This Row],[2021/22 Baseline]]+T_DataComboFile[[#This Row],[2021/22 Reduction]]+T_DataComboFile[[#This Row],[2021/22 Increase]]","v":0},{"$f":"T_DataComboFile[[#This Row],[2022/23 Baseline]]+T_DataComboFile[[#This Row],[2022/23 Reduction]]+T_DataComboFile[[#This Row],[2022/23 Increase]]","v":0},{"$f":"T_DataComboFile[[#This Row],[2023/24 Baseline]]+T_DataComboFile[[#This Row],[2023/24 Reduction]]+T_DataComboFile[[#This Row],[2023/24 Increase]]","v":0}]
[null,null,"2021_22","ENE2020",36,2,3,null,70646,36,2,3,null,"070646","36|02|03",1,1,2,33,33,"01|01|02|33|33","National","Small Business Development","Sector Policy and Research","International Relations",null,"Current","Current payments","Goods and services","Operating leases","Operating leases",null,null,null,0,0,0,0,0,0,0,0,0,0,0,0,0,0,null,{"$f":"IF(T_DataComboFile[[#This Row],[G&S reporting level indicator]]=1,$AX$16,\"Not applicable\")","v":"Not applicable"},{"$f":"IF(AND($AX$16=\"Level 3\",T_DataComboFile[[#This Row],[Econ3]] = \"Goods and services\"),IF(T_DataComboFile[[#This Row],[Econ4]] = T_DataComboFile[[#This Row],[Econ3]],1,0),IF(AND($AX$16=\"Level 4\",T_DataComboFile[[#This Row],[Econ4]] = \"Goods and services\"),0,1))","v":0},{"$f":"T_DataComboFile[[#This Row],[2016/17_Source]]*T_DataComboFile[[#This Row],[G&S reporting level indicator]]","v":0},{"$f":"T_DataComboFile[[#This Row],[2017/18_Source]]*T_DataComboFile[[#This Row],[G&S reporting level indicator]]","v":0},{"$f":"T_DataComboFile[[#This Row],[2018/19_Source]]*T_DataComboFile[[#This Row],[G&S reporting level indicator]]","v":0},{"$f":"T_DataComboFile[[#This Row],[2019/20 Main appropriation_Source]]*T_DataComboFile[[#This Row],[G&S reporting level indicator]]","v":0},{"$f":"T_DataComboFile[[#This Row],[2019/20 Adjusted appropriation_Source]]*T_DataComboFile[[#This Row],[G&S reporting level indicator]]","v":0},{"$f":"T_DataComboFile[[#This Row],[2019/20 Revised estimate_Source]]*T_DataComboFile[[#This Row],[G&S reporting level indicator]]","v":0},{"$f":"T_DataComboFile[[#This Row],[2019/20 Preliminary outcome_Source]]*T_DataComboFile[[#This Row],[G&S reporting level indicator]]","v":0},{"$f":"T_DataComboFile[[#This Row],[2020/21 Original_Source]]*T_DataComboFile[[#This Row],[G&S reporting level indicator]]","v":0},{"$f":"T_DataComboFile[[#This Row],[2020/21 SAB_Source]]*T_DataComboFile[[#This Row],[G&S reporting level indicator]]","v":0},{"$f":"T_DataComboFile[[#This Row],[2020/21 Baseline_Source]]*T_DataComboFile[[#This Row],[G&S reporting level indicator]]","v":0},{"$f":"T_DataComboFile[[#This Row],[2021/22 Baseline_Source]]*T_DataComboFile[[#This Row],[G&S reporting level indicator]]","v":0},{"$f":"T_DataComboFile[[#This Row],[2022/23 Baseline_Source]]*T_DataComboFile[[#This Row],[G&S reporting level indicator]]","v":0},{"$f":"T_DataComboFile[[#This Row],[2023/24 Baseline_Source]]*T_DataComboFile[[#This Row],[G&S reporting level indicator]]","v":0},null,null,null,null,null,null,{"$f":"T_DataComboFile[[#This Row],[2021/22 Baseline]]+T_DataComboFile[[#This Row],[2021/22 Reduction]]+T_DataComboFile[[#This Row],[2021/22 Increase]]","v":0},{"$f":"T_DataComboFile[[#This Row],[2022/23 Baseline]]+T_DataComboFile[[#This Row],[2022/23 Reduction]]+T_DataComboFile[[#This Row],[2022/23 Increase]]","v":0},{"$f":"T_DataComboFile[[#This Row],[2023/24 Baseline]]+T_DataComboFile[[#This Row],[2023/24 Reduction]]+T_DataComboFile[[#This Row],[2023/24 Increase]]","v":0}]
[null,null,"2021_22","ENE2020",36,2,3,null,70647,36,2,3,null,"070647","36|02|03",1,1,2,34,34,"01|01|02|34|34","National","Small Business Development","Sector Policy and Research","International Relations",null,"Current","Current payments","Goods and services","Rental and hiring","Rental and hiring",null,null,null,0,0,0,0,0,0,0,0,0,0,0,0,0,0,null,{"$f":"IF(T_DataComboFile[[#This Row],[G&S reporting level indicator]]=1,$AX$16,\"Not applicable\")","v":"Not applicable"},{"$f":"IF(AND($AX$16=\"Level 3\",T_DataComboFile[[#This Row],[Econ3]] = \"Goods and services\"),IF(T_DataComboFile[[#This Row],[Econ4]] = T_DataComboFile[[#This Row],[Econ3]],1,0),IF(AND($AX$16=\"Level 4\",T_DataComboFile[[#This Row],[Econ4]] = \"Goods and services\"),0,1))","v":0},{"$f":"T_DataComboFile[[#This Row],[2016/17_Source]]*T_DataComboFile[[#This Row],[G&S reporting level indicator]]","v":0},{"$f":"T_DataComboFile[[#This Row],[2017/18_Source]]*T_DataComboFile[[#This Row],[G&S reporting level indicator]]","v":0},{"$f":"T_DataComboFile[[#This Row],[2018/19_Source]]*T_DataComboFile[[#This Row],[G&S reporting level indicator]]","v":0},{"$f":"T_DataComboFile[[#This Row],[2019/20 Main appropriation_Source]]*T_DataComboFile[[#This Row],[G&S reporting level indicator]]","v":0},{"$f":"T_DataComboFile[[#This Row],[2019/20 Adjusted appropriation_Source]]*T_DataComboFile[[#This Row],[G&S reporting level indicator]]","v":0},{"$f":"T_DataComboFile[[#This Row],[2019/20 Revised estimate_Source]]*T_DataComboFile[[#This Row],[G&S reporting level indicator]]","v":0},{"$f":"T_DataComboFile[[#This Row],[2019/20 Preliminary outcome_Source]]*T_DataComboFile[[#This Row],[G&S reporting level indicator]]","v":0},{"$f":"T_DataComboFile[[#This Row],[2020/21 Original_Source]]*T_DataComboFile[[#This Row],[G&S reporting level indicator]]","v":0},{"$f":"T_DataComboFile[[#This Row],[2020/21 SAB_Source]]*T_DataComboFile[[#This Row],[G&S reporting level indicator]]","v":0},{"$f":"T_DataComboFile[[#This Row],[2020/21 Baseline_Source]]*T_DataComboFile[[#This Row],[G&S reporting level indicator]]","v":0},{"$f":"T_DataComboFile[[#This Row],[2021/22 Baseline_Source]]*T_DataComboFile[[#This Row],[G&S reporting level indicator]]","v":0},{"$f":"T_DataComboFile[[#This Row],[2022/23 Baseline_Source]]*T_DataComboFile[[#This Row],[G&S reporting level indicator]]","v":0},{"$f":"T_DataComboFile[[#This Row],[2023/24 Baseline_Source]]*T_DataComboFile[[#This Row],[G&S reporting level indicator]]","v":0},null,null,null,null,null,null,{"$f":"T_DataComboFile[[#This Row],[2021/22 Baseline]]+T_DataComboFile[[#This Row],[2021/22 Reduction]]+T_DataComboFile[[#This Row],[2021/22 Increase]]","v":0},{"$f":"T_DataComboFile[[#This Row],[2022/23 Baseline]]+T_DataComboFile[[#This Row],[2022/23 Reduction]]+T_DataComboFile[[#This Row],[2022/23 Increase]]","v":0},{"$f":"T_DataComboFile[[#This Row],[2023/24 Baseline]]+T_DataComboFile[[#This Row],[2023/24 Reduction]]+T_DataComboFile[[#This Row],[2023/24 Increase]]","v":0}]
[null,null,"2021_22","ENE2020",36,2,3,null,70648,36,2,3,null,"070648","36|02|03",1,1,2,35,35,"01|01|02|35|35","National","Small Business Development","Sector Policy and Research","International Relations",null,"Current","Current payments","Goods and services","Property payments","Property payments",null,null,null,0,0,0,0,0,0,0,0,0,0,0,0,0,0,null,{"$f":"IF(T_DataComboFile[[#This Row],[G&S reporting level indicator]]=1,$AX$16,\"Not applicable\")","v":"Not applicable"},{"$f":"IF(AND($AX$16=\"Level 3\",T_DataComboFile[[#This Row],[Econ3]] = \"Goods and services\"),IF(T_DataComboFile[[#This Row],[Econ4]] = T_DataComboFile[[#This Row],[Econ3]],1,0),IF(AND($AX$16=\"Level 4\",T_DataComboFile[[#This Row],[Econ4]] = \"Goods and services\"),0,1))","v":0},{"$f":"T_DataComboFile[[#This Row],[2016/17_Source]]*T_DataComboFile[[#This Row],[G&S reporting level indicator]]","v":0},{"$f":"T_DataComboFile[[#This Row],[2017/18_Source]]*T_DataComboFile[[#This Row],[G&S reporting level indicator]]","v":0},{"$f":"T_DataComboFile[[#This Row],[2018/19_Source]]*T_DataComboFile[[#This Row],[G&S reporting level indicator]]","v":0},{"$f":"T_DataComboFile[[#This Row],[2019/20 Main appropriation_Source]]*T_DataComboFile[[#This Row],[G&S reporting level indicator]]","v":0},{"$f":"T_DataComboFile[[#This Row],[2019/20 Adjusted appropriation_Source]]*T_DataComboFile[[#This Row],[G&S reporting level indicator]]","v":0},{"$f":"T_DataComboFile[[#This Row],[2019/20 Revised estimate_Source]]*T_DataComboFile[[#This Row],[G&S reporting level indicator]]","v":0},{"$f":"T_DataComboFile[[#This Row],[2019/20 Preliminary outcome_Source]]*T_DataComboFile[[#This Row],[G&S reporting level indicator]]","v":0},{"$f":"T_DataComboFile[[#This Row],[2020/21 Original_Source]]*T_DataComboFile[[#This Row],[G&S reporting level indicator]]","v":0},{"$f":"T_DataComboFile[[#This Row],[2020/21 SAB_Source]]*T_DataComboFile[[#This Row],[G&S reporting level indicator]]","v":0},{"$f":"T_DataComboFile[[#This Row],[2020/21 Baseline_Source]]*T_DataComboFile[[#This Row],[G&S reporting level indicator]]","v":0},{"$f":"T_DataComboFile[[#This Row],[2021/22 Baseline_Source]]*T_DataComboFile[[#This Row],[G&S reporting level indicator]]","v":0},{"$f":"T_DataComboFile[[#This Row],[2022/23 Baseline_Source]]*T_DataComboFile[[#This Row],[G&S reporting level indicator]]","v":0},{"$f":"T_DataComboFile[[#This Row],[2023/24 Baseline_Source]]*T_DataComboFile[[#This Row],[G&S reporting level indicator]]","v":0},null,null,null,null,null,null,{"$f":"T_DataComboFile[[#This Row],[2021/22 Baseline]]+T_DataComboFile[[#This Row],[2021/22 Reduction]]+T_DataComboFile[[#This Row],[2021/22 Increase]]","v":0},{"$f":"T_DataComboFile[[#This Row],[2022/23 Baseline]]+T_DataComboFile[[#This Row],[2022/23 Reduction]]+T_DataComboFile[[#This Row],[2022/23 Increase]]","v":0},{"$f":"T_DataComboFile[[#This Row],[2023/24 Baseline]]+T_DataComboFile[[#This Row],[2023/24 Reduction]]+T_DataComboFile[[#This Row],[2023/24 Increase]]","v":0}]
[null,null,"2021_22","ENE2020",36,2,3,null,70649,36,2,3,null,"070649","36|02|03",1,1,2,36,36,"01|01|02|36|36","National","Small Business Development","Sector Policy and Research","International Relations",null,"Current","Current payments","Goods and services","Transport provided: Departmental activity","Transport provided: Departmental activity",null,null,null,0,0,0,0,0,0,0,0,0,0,0,0,0,0,null,{"$f":"IF(T_DataComboFile[[#This Row],[G&S reporting level indicator]]=1,$AX$16,\"Not applicable\")","v":"Not applicable"},{"$f":"IF(AND($AX$16=\"Level 3\",T_DataComboFile[[#This Row],[Econ3]] = \"Goods and services\"),IF(T_DataComboFile[[#This Row],[Econ4]] = T_DataComboFile[[#This Row],[Econ3]],1,0),IF(AND($AX$16=\"Level 4\",T_DataComboFile[[#This Row],[Econ4]] = \"Goods and services\"),0,1))","v":0},{"$f":"T_DataComboFile[[#This Row],[2016/17_Source]]*T_DataComboFile[[#This Row],[G&S reporting level indicator]]","v":0},{"$f":"T_DataComboFile[[#This Row],[2017/18_Source]]*T_DataComboFile[[#This Row],[G&S reporting level indicator]]","v":0},{"$f":"T_DataComboFile[[#This Row],[2018/19_Source]]*T_DataComboFile[[#This Row],[G&S reporting level indicator]]","v":0},{"$f":"T_DataComboFile[[#This Row],[2019/20 Main appropriation_Source]]*T_DataComboFile[[#This Row],[G&S reporting level indicator]]","v":0},{"$f":"T_DataComboFile[[#This Row],[2019/20 Adjusted appropriation_Source]]*T_DataComboFile[[#This Row],[G&S reporting level indicator]]","v":0},{"$f":"T_DataComboFile[[#This Row],[2019/20 Revised estimate_Source]]*T_DataComboFile[[#This Row],[G&S reporting level indicator]]","v":0},{"$f":"T_DataComboFile[[#This Row],[2019/20 Preliminary outcome_Source]]*T_DataComboFile[[#This Row],[G&S reporting level indicator]]","v":0},{"$f":"T_DataComboFile[[#This Row],[2020/21 Original_Source]]*T_DataComboFile[[#This Row],[G&S reporting level indicator]]","v":0},{"$f":"T_DataComboFile[[#This Row],[2020/21 SAB_Source]]*T_DataComboFile[[#This Row],[G&S reporting level indicator]]","v":0},{"$f":"T_DataComboFile[[#This Row],[2020/21 Baseline_Source]]*T_DataComboFile[[#This Row],[G&S reporting level indicator]]","v":0},{"$f":"T_DataComboFile[[#This Row],[2021/22 Baseline_Source]]*T_DataComboFile[[#This Row],[G&S reporting level indicator]]","v":0},{"$f":"T_DataComboFile[[#This Row],[2022/23 Baseline_Source]]*T_DataComboFile[[#This Row],[G&S reporting level indicator]]","v":0},{"$f":"T_DataComboFile[[#This Row],[2023/24 Baseline_Source]]*T_DataComboFile[[#This Row],[G&S reporting level indicator]]","v":0},null,null,null,null,null,null,{"$f":"T_DataComboFile[[#This Row],[2021/22 Baseline]]+T_DataComboFile[[#This Row],[2021/22 Reduction]]+T_DataComboFile[[#This Row],[2021/22 Increase]]","v":0},{"$f":"T_DataComboFile[[#This Row],[2022/23 Baseline]]+T_DataComboFile[[#This Row],[2022/23 Reduction]]+T_DataComboFile[[#This Row],[2022/23 Increase]]","v":0},{"$f":"T_DataComboFile[[#This Row],[2023/24 Baseline]]+T_DataComboFile[[#This Row],[2023/24 Reduction]]+T_DataComboFile[[#This Row],[2023/24 Increase]]","v":0}]
["NAT|Non-transfer item","36|Travel and subsistence","2021_22","ENE2020",36,2,3,17322,70650,36,2,3,17322,"070650","36|02|03",1,1,2,37,37,"01|01|02|37|37","National","Small Business Development","Sector Policy and Research","International Relations","Non-transfer item","Current","Current payments","Goods and services","Travel and subsistence","Travel and subsistence","Economic development","Industrialisation and exports","NAT",0,455,886,987,987,987,987,0,0,0,0,0,0,1,null,{"$f":"IF(T_DataComboFile[[#This Row],[G&S reporting level indicator]]=1,$AX$16,\"Not applicable\")","v":"Not applicable"},{"$f":"IF(AND($AX$16=\"Level 3\",T_DataComboFile[[#This Row],[Econ3]] = \"Goods and services\"),IF(T_DataComboFile[[#This Row],[Econ4]] = T_DataComboFile[[#This Row],[Econ3]],1,0),IF(AND($AX$16=\"Level 4\",T_DataComboFile[[#This Row],[Econ4]] = \"Goods and services\"),0,1))","v":0},{"$f":"T_DataComboFile[[#This Row],[2016/17_Source]]*T_DataComboFile[[#This Row],[G&S reporting level indicator]]","v":0},{"$f":"T_DataComboFile[[#This Row],[2017/18_Source]]*T_DataComboFile[[#This Row],[G&S reporting level indicator]]","v":0},{"$f":"T_DataComboFile[[#This Row],[2018/19_Source]]*T_DataComboFile[[#This Row],[G&S reporting level indicator]]","v":0},{"$f":"T_DataComboFile[[#This Row],[2019/20 Main appropriation_Source]]*T_DataComboFile[[#This Row],[G&S reporting level indicator]]","v":0},{"$f":"T_DataComboFile[[#This Row],[2019/20 Adjusted appropriation_Source]]*T_DataComboFile[[#This Row],[G&S reporting level indicator]]","v":0},{"$f":"T_DataComboFile[[#This Row],[2019/20 Revised estimate_Source]]*T_DataComboFile[[#This Row],[G&S reporting level indicator]]","v":0},{"$f":"T_DataComboFile[[#This Row],[2019/20 Preliminary outcome_Source]]*T_DataComboFile[[#This Row],[G&S reporting level indicator]]","v":0},{"$f":"T_DataComboFile[[#This Row],[2020/21 Original_Source]]*T_DataComboFile[[#This Row],[G&S reporting level indicator]]","v":0},{"$f":"T_DataComboFile[[#This Row],[2020/21 SAB_Source]]*T_DataComboFile[[#This Row],[G&S reporting level indicator]]","v":0},{"$f":"T_DataComboFile[[#This Row],[2020/21 Baseline_Source]]*T_DataComboFile[[#This Row],[G&S reporting level indicator]]","v":0},{"$f":"T_DataComboFile[[#This Row],[2021/22 Baseline_Source]]*T_DataComboFile[[#This Row],[G&S reporting level indicator]]","v":0},{"$f":"T_DataComboFile[[#This Row],[2022/23 Baseline_Source]]*T_DataComboFile[[#This Row],[G&S reporting level indicator]]","v":0},{"$f":"T_DataComboFile[[#This Row],[2023/24 Baseline_Source]]*T_DataComboFile[[#This Row],[G&S reporting level indicator]]","v":0},null,null,null,null,null,null,{"$f":"T_DataComboFile[[#This Row],[2021/22 Baseline]]+T_DataComboFile[[#This Row],[2021/22 Reduction]]+T_DataComboFile[[#This Row],[2021/22 Increase]]","v":0},{"$f":"T_DataComboFile[[#This Row],[2022/23 Baseline]]+T_DataComboFile[[#This Row],[2022/23 Reduction]]+T_DataComboFile[[#This Row],[2022/23 Increase]]","v":0},{"$f":"T_DataComboFile[[#This Row],[2023/24 Baseline]]+T_DataComboFile[[#This Row],[2023/24 Reduction]]+T_DataComboFile[[#This Row],[2023/24 Increase]]","v":0}]
[null,null,"2021_22","ENE2020",36,2,3,null,70651,36,2,3,null,"070651","36|02|03",1,1,2,38,38,"01|01|02|38|38","National","Small Business Development","Sector Policy and Research","International Relations",null,"Current","Current payments","Goods and services","Training and development","Training and development",null,null,null,0,0,0,0,0,0,0,0,0,0,0,0,0,0,null,{"$f":"IF(T_DataComboFile[[#This Row],[G&S reporting level indicator]]=1,$AX$16,\"Not applicable\")","v":"Not applicable"},{"$f":"IF(AND($AX$16=\"Level 3\",T_DataComboFile[[#This Row],[Econ3]] = \"Goods and services\"),IF(T_DataComboFile[[#This Row],[Econ4]] = T_DataComboFile[[#This Row],[Econ3]],1,0),IF(AND($AX$16=\"Level 4\",T_DataComboFile[[#This Row],[Econ4]] = \"Goods and services\"),0,1))","v":0},{"$f":"T_DataComboFile[[#This Row],[2016/17_Source]]*T_DataComboFile[[#This Row],[G&S reporting level indicator]]","v":0},{"$f":"T_DataComboFile[[#This Row],[2017/18_Source]]*T_DataComboFile[[#This Row],[G&S reporting level indicator]]","v":0},{"$f":"T_DataComboFile[[#This Row],[2018/19_Source]]*T_DataComboFile[[#This Row],[G&S reporting level indicator]]","v":0},{"$f":"T_DataComboFile[[#This Row],[2019/20 Main appropriation_Source]]*T_DataComboFile[[#This Row],[G&S reporting level indicator]]","v":0},{"$f":"T_DataComboFile[[#This Row],[2019/20 Adjusted appropriation_Source]]*T_DataComboFile[[#This Row],[G&S reporting level indicator]]","v":0},{"$f":"T_DataComboFile[[#This Row],[2019/20 Revised estimate_Source]]*T_DataComboFile[[#This Row],[G&S reporting level indicator]]","v":0},{"$f":"T_DataComboFile[[#This Row],[2019/20 Preliminary outcome_Source]]*T_DataComboFile[[#This Row],[G&S reporting level indicator]]","v":0},{"$f":"T_DataComboFile[[#This Row],[2020/21 Original_Source]]*T_DataComboFile[[#This Row],[G&S reporting level indicator]]","v":0},{"$f":"T_DataComboFile[[#This Row],[2020/21 SAB_Source]]*T_DataComboFile[[#This Row],[G&S reporting level indicator]]","v":0},{"$f":"T_DataComboFile[[#This Row],[2020/21 Baseline_Source]]*T_DataComboFile[[#This Row],[G&S reporting level indicator]]","v":0},{"$f":"T_DataComboFile[[#This Row],[2021/22 Baseline_Source]]*T_DataComboFile[[#This Row],[G&S reporting level indicator]]","v":0},{"$f":"T_DataComboFile[[#This Row],[2022/23 Baseline_Source]]*T_DataComboFile[[#This Row],[G&S reporting level indicator]]","v":0},{"$f":"T_DataComboFile[[#This Row],[2023/24 Baseline_Source]]*T_DataComboFile[[#This Row],[G&S reporting level indicator]]","v":0},null,null,null,null,null,null,{"$f":"T_DataComboFile[[#This Row],[2021/22 Baseline]]+T_DataComboFile[[#This Row],[2021/22 Reduction]]+T_DataComboFile[[#This Row],[2021/22 Increase]]","v":0},{"$f":"T_DataComboFile[[#This Row],[2022/23 Baseline]]+T_DataComboFile[[#This Row],[2022/23 Reduction]]+T_DataComboFile[[#This Row],[2022/23 Increase]]","v":0},{"$f":"T_DataComboFile[[#This Row],[2023/24 Baseline]]+T_DataComboFile[[#This Row],[2023/24 Reduction]]+T_DataComboFile[[#This Row],[2023/24 Increase]]","v":0}]
["NAT|Non-transfer item","36|Operating payments","2021_22","ENE2020",36,2,3,17323,70652,36,2,3,17323,"070652","36|02|03",1,1,2,39,39,"01|01|02|39|39","National","Small Business Development","Sector Policy and Research","International Relations","Non-transfer item","Current","Current payments","Goods and services","Operating payments","Operating payments","Economic development","Industrialisation and exports","NAT",0,0,0,9,9,9,9,0,0,0,0,0,0,1,null,{"$f":"IF(T_DataComboFile[[#This Row],[G&S reporting level indicator]]=1,$AX$16,\"Not applicable\")","v":"Not applicable"},{"$f":"IF(AND($AX$16=\"Level 3\",T_DataComboFile[[#This Row],[Econ3]] = \"Goods and services\"),IF(T_DataComboFile[[#This Row],[Econ4]] = T_DataComboFile[[#This Row],[Econ3]],1,0),IF(AND($AX$16=\"Level 4\",T_DataComboFile[[#This Row],[Econ4]] = \"Goods and services\"),0,1))","v":0},{"$f":"T_DataComboFile[[#This Row],[2016/17_Source]]*T_DataComboFile[[#This Row],[G&S reporting level indicator]]","v":0},{"$f":"T_DataComboFile[[#This Row],[2017/18_Source]]*T_DataComboFile[[#This Row],[G&S reporting level indicator]]","v":0},{"$f":"T_DataComboFile[[#This Row],[2018/19_Source]]*T_DataComboFile[[#This Row],[G&S reporting level indicator]]","v":0},{"$f":"T_DataComboFile[[#This Row],[2019/20 Main appropriation_Source]]*T_DataComboFile[[#This Row],[G&S reporting level indicator]]","v":0},{"$f":"T_DataComboFile[[#This Row],[2019/20 Adjusted appropriation_Source]]*T_DataComboFile[[#This Row],[G&S reporting level indicator]]","v":0},{"$f":"T_DataComboFile[[#This Row],[2019/20 Revised estimate_Source]]*T_DataComboFile[[#This Row],[G&S reporting level indicator]]","v":0},{"$f":"T_DataComboFile[[#This Row],[2019/20 Preliminary outcome_Source]]*T_DataComboFile[[#This Row],[G&S reporting level indicator]]","v":0},{"$f":"T_DataComboFile[[#This Row],[2020/21 Original_Source]]*T_DataComboFile[[#This Row],[G&S reporting level indicator]]","v":0},{"$f":"T_DataComboFile[[#This Row],[2020/21 SAB_Source]]*T_DataComboFile[[#This Row],[G&S reporting level indicator]]","v":0},{"$f":"T_DataComboFile[[#This Row],[2020/21 Baseline_Source]]*T_DataComboFile[[#This Row],[G&S reporting level indicator]]","v":0},{"$f":"T_DataComboFile[[#This Row],[2021/22 Baseline_Source]]*T_DataComboFile[[#This Row],[G&S reporting level indicator]]","v":0},{"$f":"T_DataComboFile[[#This Row],[2022/23 Baseline_Source]]*T_DataComboFile[[#This Row],[G&S reporting level indicator]]","v":0},{"$f":"T_DataComboFile[[#This Row],[2023/24 Baseline_Source]]*T_DataComboFile[[#This Row],[G&S reporting level indicator]]","v":0},null,null,null,null,null,null,{"$f":"T_DataComboFile[[#This Row],[2021/22 Baseline]]+T_DataComboFile[[#This Row],[2021/22 Reduction]]+T_DataComboFile[[#This Row],[2021/22 Increase]]","v":0},{"$f":"T_DataComboFile[[#This Row],[2022/23 Baseline]]+T_DataComboFile[[#This Row],[2022/23 Reduction]]+T_DataComboFile[[#This Row],[2022/23 Increase]]","v":0},{"$f":"T_DataComboFile[[#This Row],[2023/24 Baseline]]+T_DataComboFile[[#This Row],[2023/24 Reduction]]+T_DataComboFile[[#This Row],[2023/24 Increase]]","v":0}]
[null,null,"2021_22","ENE2020",36,2,3,null,70653,36,2,3,null,"070653","36|02|03",1,1,2,40,40,"01|01|02|40|40","National","Small Business Development","Sector Policy and Research","International Relations",null,"Current","Current payments","Goods and services","Venues and facilities","Venues and facilities",null,null,null,0,0,0,0,0,0,0,0,0,0,0,0,0,0,null,{"$f":"IF(T_DataComboFile[[#This Row],[G&S reporting level indicator]]=1,$AX$16,\"Not applicable\")","v":"Not applicable"},{"$f":"IF(AND($AX$16=\"Level 3\",T_DataComboFile[[#This Row],[Econ3]] = \"Goods and services\"),IF(T_DataComboFile[[#This Row],[Econ4]] = T_DataComboFile[[#This Row],[Econ3]],1,0),IF(AND($AX$16=\"Level 4\",T_DataComboFile[[#This Row],[Econ4]] = \"Goods and services\"),0,1))","v":0},{"$f":"T_DataComboFile[[#This Row],[2016/17_Source]]*T_DataComboFile[[#This Row],[G&S reporting level indicator]]","v":0},{"$f":"T_DataComboFile[[#This Row],[2017/18_Source]]*T_DataComboFile[[#This Row],[G&S reporting level indicator]]","v":0},{"$f":"T_DataComboFile[[#This Row],[2018/19_Source]]*T_DataComboFile[[#This Row],[G&S reporting level indicator]]","v":0},{"$f":"T_DataComboFile[[#This Row],[2019/20 Main appropriation_Source]]*T_DataComboFile[[#This Row],[G&S reporting level indicator]]","v":0},{"$f":"T_DataComboFile[[#This Row],[2019/20 Adjusted appropriation_Source]]*T_DataComboFile[[#This Row],[G&S reporting level indicator]]","v":0},{"$f":"T_DataComboFile[[#This Row],[2019/20 Revised estimate_Source]]*T_DataComboFile[[#This Row],[G&S reporting level indicator]]","v":0},{"$f":"T_DataComboFile[[#This Row],[2019/20 Preliminary outcome_Source]]*T_DataComboFile[[#This Row],[G&S reporting level indicator]]","v":0},{"$f":"T_DataComboFile[[#This Row],[2020/21 Original_Source]]*T_DataComboFile[[#This Row],[G&S reporting level indicator]]","v":0},{"$f":"T_DataComboFile[[#This Row],[2020/21 SAB_Source]]*T_DataComboFile[[#This Row],[G&S reporting level indicator]]","v":0},{"$f":"T_DataComboFile[[#This Row],[2020/21 Baseline_Source]]*T_DataComboFile[[#This Row],[G&S reporting level indicator]]","v":0},{"$f":"T_DataComboFile[[#This Row],[2021/22 Baseline_Source]]*T_DataComboFile[[#This Row],[G&S reporting level indicator]]","v":0},{"$f":"T_DataComboFile[[#This Row],[2022/23 Baseline_Source]]*T_DataComboFile[[#This Row],[G&S reporting level indicator]]","v":0},{"$f":"T_DataComboFile[[#This Row],[2023/24 Baseline_Source]]*T_DataComboFile[[#This Row],[G&S reporting level indicator]]","v":0},null,null,null,null,null,null,{"$f":"T_DataComboFile[[#This Row],[2021/22 Baseline]]+T_DataComboFile[[#This Row],[2021/22 Reduction]]+T_DataComboFile[[#This Row],[2021/22 Increase]]","v":0},{"$f":"T_DataComboFile[[#This Row],[2022/23 Baseline]]+T_DataComboFile[[#This Row],[2022/23 Reduction]]+T_DataComboFile[[#This Row],[2022/23 Increase]]","v":0},{"$f":"T_DataComboFile[[#This Row],[2023/24 Baseline]]+T_DataComboFile[[#This Row],[2023/24 Reduction]]+T_DataComboFile[[#This Row],[2023/24 Increase]]","v":0}]
[null,null,"2021_22","ENE2020",36,2,3,null,70654,36,2,3,null,"070654","36|02|03",1,1,3,41,41,"01|01|03|41|41","National","Small Business Development","Sector Policy and Research","International Relations",null,"Current","Current payments","Interest and rent on land","Interest (Incl. interest on unitary payments (PPP))","Interest (Incl. interest on unitary payments (PPP))",null,null,null,0,0,0,0,0,0,0,0,0,0,0,0,0,0,null,{"$f":"IF(T_DataComboFile[[#This Row],[G&S reporting level indicator]]=1,$AX$16,\"Not applicable\")","v":"Level 3"},{"$f":"IF(AND($AX$16=\"Level 3\",T_DataComboFile[[#This Row],[Econ3]] = \"Goods and services\"),IF(T_DataComboFile[[#This Row],[Econ4]] = T_DataComboFile[[#This Row],[Econ3]],1,0),IF(AND($AX$16=\"Level 4\",T_DataComboFile[[#This Row],[Econ4]] = \"Goods and services\"),0,1))","v":1},{"$f":"T_DataComboFile[[#This Row],[2016/17_Source]]*T_DataComboFile[[#This Row],[G&S reporting level indicator]]","v":0},{"$f":"T_DataComboFile[[#This Row],[2017/18_Source]]*T_DataComboFile[[#This Row],[G&S reporting level indicator]]","v":0},{"$f":"T_DataComboFile[[#This Row],[2018/19_Source]]*T_DataComboFile[[#This Row],[G&S reporting level indicator]]","v":0},{"$f":"T_DataComboFile[[#This Row],[2019/20 Main appropriation_Source]]*T_DataComboFile[[#This Row],[G&S reporting level indicator]]","v":0},{"$f":"T_DataComboFile[[#This Row],[2019/20 Adjusted appropriation_Source]]*T_DataComboFile[[#This Row],[G&S reporting level indicator]]","v":0},{"$f":"T_DataComboFile[[#This Row],[2019/20 Revised estimate_Source]]*T_DataComboFile[[#This Row],[G&S reporting level indicator]]","v":0},{"$f":"T_DataComboFile[[#This Row],[2019/20 Preliminary outcome_Source]]*T_DataComboFile[[#This Row],[G&S reporting level indicator]]","v":0},{"$f":"T_DataComboFile[[#This Row],[2020/21 Original_Source]]*T_DataComboFile[[#This Row],[G&S reporting level indicator]]","v":0},{"$f":"T_DataComboFile[[#This Row],[2020/21 SAB_Source]]*T_DataComboFile[[#This Row],[G&S reporting level indicator]]","v":0},{"$f":"T_DataComboFile[[#This Row],[2020/21 Baseline_Source]]*T_DataComboFile[[#This Row],[G&S reporting level indicator]]","v":0},{"$f":"T_DataComboFile[[#This Row],[2021/22 Baseline_Source]]*T_DataComboFile[[#This Row],[G&S reporting level indicator]]","v":0},{"$f":"T_DataComboFile[[#This Row],[2022/23 Baseline_Source]]*T_DataComboFile[[#This Row],[G&S reporting level indicator]]","v":0},{"$f":"T_DataComboFile[[#This Row],[2023/24 Baseline_Source]]*T_DataComboFile[[#This Row],[G&S reporting level indicator]]","v":0},null,null,null,null,null,null,{"$f":"T_DataComboFile[[#This Row],[2021/22 Baseline]]+T_DataComboFile[[#This Row],[2021/22 Reduction]]+T_DataComboFile[[#This Row],[2021/22 Increase]]","v":0},{"$f":"T_DataComboFile[[#This Row],[2022/23 Baseline]]+T_DataComboFile[[#This Row],[2022/23 Reduction]]+T_DataComboFile[[#This Row],[2022/23 Increase]]","v":0},{"$f":"T_DataComboFile[[#This Row],[2023/24 Baseline]]+T_DataComboFile[[#This Row],[2023/24 Reduction]]+T_DataComboFile[[#This Row],[2023/24 Increase]]","v":0}]
[null,null,"2021_22","ENE2020",36,2,3,null,70655,36,2,3,null,"070655","36|02|03",1,1,3,42,42,"01|01|03|42|42","National","Small Business Development","Sector Policy and Research","International Relations",null,"Current","Current payments","Interest and rent on land","Rent on land","Rent on land",null,null,null,0,0,0,0,0,0,0,0,0,0,0,0,0,0,null,{"$f":"IF(T_DataComboFile[[#This Row],[G&S reporting level indicator]]=1,$AX$16,\"Not applicable\")","v":"Level 3"},{"$f":"IF(AND($AX$16=\"Level 3\",T_DataComboFile[[#This Row],[Econ3]] = \"Goods and services\"),IF(T_DataComboFile[[#This Row],[Econ4]] = T_DataComboFile[[#This Row],[Econ3]],1,0),IF(AND($AX$16=\"Level 4\",T_DataComboFile[[#This Row],[Econ4]] = \"Goods and services\"),0,1))","v":1},{"$f":"T_DataComboFile[[#This Row],[2016/17_Source]]*T_DataComboFile[[#This Row],[G&S reporting level indicator]]","v":0},{"$f":"T_DataComboFile[[#This Row],[2017/18_Source]]*T_DataComboFile[[#This Row],[G&S reporting level indicator]]","v":0},{"$f":"T_DataComboFile[[#This Row],[2018/19_Source]]*T_DataComboFile[[#This Row],[G&S reporting level indicator]]","v":0},{"$f":"T_DataComboFile[[#This Row],[2019/20 Main appropriation_Source]]*T_DataComboFile[[#This Row],[G&S reporting level indicator]]","v":0},{"$f":"T_DataComboFile[[#This Row],[2019/20 Adjusted appropriation_Source]]*T_DataComboFile[[#This Row],[G&S reporting level indicator]]","v":0},{"$f":"T_DataComboFile[[#This Row],[2019/20 Revised estimate_Source]]*T_DataComboFile[[#This Row],[G&S reporting level indicator]]","v":0},{"$f":"T_DataComboFile[[#This Row],[2019/20 Preliminary outcome_Source]]*T_DataComboFile[[#This Row],[G&S reporting level indicator]]","v":0},{"$f":"T_DataComboFile[[#This Row],[2020/21 Original_Source]]*T_DataComboFile[[#This Row],[G&S reporting level indicator]]","v":0},{"$f":"T_DataComboFile[[#This Row],[2020/21 SAB_Source]]*T_DataComboFile[[#This Row],[G&S reporting level indicator]]","v":0},{"$f":"T_DataComboFile[[#This Row],[2020/21 Baseline_Source]]*T_DataComboFile[[#This Row],[G&S reporting level indicator]]","v":0},{"$f":"T_DataComboFile[[#This Row],[2021/22 Baseline_Source]]*T_DataComboFile[[#This Row],[G&S reporting level indicator]]","v":0},{"$f":"T_DataComboFile[[#This Row],[2022/23 Baseline_Source]]*T_DataComboFile[[#This Row],[G&S reporting level indicator]]","v":0},{"$f":"T_DataComboFile[[#This Row],[2023/24 Baseline_Source]]*T_DataComboFile[[#This Row],[G&S reporting level indicator]]","v":0},null,null,null,null,null,null,{"$f":"T_DataComboFile[[#This Row],[2021/22 Baseline]]+T_DataComboFile[[#This Row],[2021/22 Reduction]]+T_DataComboFile[[#This Row],[2021/22 Increase]]","v":0},{"$f":"T_DataComboFile[[#This Row],[2022/23 Baseline]]+T_DataComboFile[[#This Row],[2022/23 Reduction]]+T_DataComboFile[[#This Row],[2022/23 Increase]]","v":0},{"$f":"T_DataComboFile[[#This Row],[2023/24 Baseline]]+T_DataComboFile[[#This Row],[2023/24 Reduction]]+T_DataComboFile[[#This Row],[2023/24 Increase]]","v":0}]
[null,null,"2021_22","ENE2020",36,2,3,null,70656,36,2,3,null,"070656","36|02|03",1,2,4,43,43,"01|02|04|43|43","National","Small Business Development","Sector Policy and Research","International Relations",null,"Current","Transfers and subsidies","Provinces and municipalities","Provinces","Provincial Revenue Funds",null,null,null,0,0,0,0,0,0,0,0,0,0,0,0,0,0,null,{"$f":"IF(T_DataComboFile[[#This Row],[G&S reporting level indicator]]=1,$AX$16,\"Not applicable\")","v":"Level 3"},{"$f":"IF(AND($AX$16=\"Level 3\",T_DataComboFile[[#This Row],[Econ3]] = \"Goods and services\"),IF(T_DataComboFile[[#This Row],[Econ4]] = T_DataComboFile[[#This Row],[Econ3]],1,0),IF(AND($AX$16=\"Level 4\",T_DataComboFile[[#This Row],[Econ4]] = \"Goods and services\"),0,1))","v":1},{"$f":"T_DataComboFile[[#This Row],[2016/17_Source]]*T_DataComboFile[[#This Row],[G&S reporting level indicator]]","v":0},{"$f":"T_DataComboFile[[#This Row],[2017/18_Source]]*T_DataComboFile[[#This Row],[G&S reporting level indicator]]","v":0},{"$f":"T_DataComboFile[[#This Row],[2018/19_Source]]*T_DataComboFile[[#This Row],[G&S reporting level indicator]]","v":0},{"$f":"T_DataComboFile[[#This Row],[2019/20 Main appropriation_Source]]*T_DataComboFile[[#This Row],[G&S reporting level indicator]]","v":0},{"$f":"T_DataComboFile[[#This Row],[2019/20 Adjusted appropriation_Source]]*T_DataComboFile[[#This Row],[G&S reporting level indicator]]","v":0},{"$f":"T_DataComboFile[[#This Row],[2019/20 Revised estimate_Source]]*T_DataComboFile[[#This Row],[G&S reporting level indicator]]","v":0},{"$f":"T_DataComboFile[[#This Row],[2019/20 Preliminary outcome_Source]]*T_DataComboFile[[#This Row],[G&S reporting level indicator]]","v":0},{"$f":"T_DataComboFile[[#This Row],[2020/21 Original_Source]]*T_DataComboFile[[#This Row],[G&S reporting level indicator]]","v":0},{"$f":"T_DataComboFile[[#This Row],[2020/21 SAB_Source]]*T_DataComboFile[[#This Row],[G&S reporting level indicator]]","v":0},{"$f":"T_DataComboFile[[#This Row],[2020/21 Baseline_Source]]*T_DataComboFile[[#This Row],[G&S reporting level indicator]]","v":0},{"$f":"T_DataComboFile[[#This Row],[2021/22 Baseline_Source]]*T_DataComboFile[[#This Row],[G&S reporting level indicator]]","v":0},{"$f":"T_DataComboFile[[#This Row],[2022/23 Baseline_Source]]*T_DataComboFile[[#This Row],[G&S reporting level indicator]]","v":0},{"$f":"T_DataComboFile[[#This Row],[2023/24 Baseline_Source]]*T_DataComboFile[[#This Row],[G&S reporting level indicator]]","v":0},null,null,null,null,null,null,{"$f":"T_DataComboFile[[#This Row],[2021/22 Baseline]]+T_DataComboFile[[#This Row],[2021/22 Reduction]]+T_DataComboFile[[#This Row],[2021/22 Increase]]","v":0},{"$f":"T_DataComboFile[[#This Row],[2022/23 Baseline]]+T_DataComboFile[[#This Row],[2022/23 Reduction]]+T_DataComboFile[[#This Row],[2022/23 Increase]]","v":0},{"$f":"T_DataComboFile[[#This Row],[2023/24 Baseline]]+T_DataComboFile[[#This Row],[2023/24 Reduction]]+T_DataComboFile[[#This Row],[2023/24 Increase]]","v":0}]
[null,null,"2021_22","ENE2020",36,2,3,null,70657,36,2,3,null,"070657","36|02|03",1,2,4,43,44,"01|02|04|43|44","National","Small Business Development","Sector Policy and Research","International Relations",null,"Current","Transfers and subsidies","Provinces and municipalities","Provinces","Provincial agencies and funds",null,null,null,0,0,0,0,0,0,0,0,0,0,0,0,0,0,null,{"$f":"IF(T_DataComboFile[[#This Row],[G&S reporting level indicator]]=1,$AX$16,\"Not applicable\")","v":"Level 3"},{"$f":"IF(AND($AX$16=\"Level 3\",T_DataComboFile[[#This Row],[Econ3]] = \"Goods and services\"),IF(T_DataComboFile[[#This Row],[Econ4]] = T_DataComboFile[[#This Row],[Econ3]],1,0),IF(AND($AX$16=\"Level 4\",T_DataComboFile[[#This Row],[Econ4]] = \"Goods and services\"),0,1))","v":1},{"$f":"T_DataComboFile[[#This Row],[2016/17_Source]]*T_DataComboFile[[#This Row],[G&S reporting level indicator]]","v":0},{"$f":"T_DataComboFile[[#This Row],[2017/18_Source]]*T_DataComboFile[[#This Row],[G&S reporting level indicator]]","v":0},{"$f":"T_DataComboFile[[#This Row],[2018/19_Source]]*T_DataComboFile[[#This Row],[G&S reporting level indicator]]","v":0},{"$f":"T_DataComboFile[[#This Row],[2019/20 Main appropriation_Source]]*T_DataComboFile[[#This Row],[G&S reporting level indicator]]","v":0},{"$f":"T_DataComboFile[[#This Row],[2019/20 Adjusted appropriation_Source]]*T_DataComboFile[[#This Row],[G&S reporting level indicator]]","v":0},{"$f":"T_DataComboFile[[#This Row],[2019/20 Revised estimate_Source]]*T_DataComboFile[[#This Row],[G&S reporting level indicator]]","v":0},{"$f":"T_DataComboFile[[#This Row],[2019/20 Preliminary outcome_Source]]*T_DataComboFile[[#This Row],[G&S reporting level indicator]]","v":0},{"$f":"T_DataComboFile[[#This Row],[2020/21 Original_Source]]*T_DataComboFile[[#This Row],[G&S reporting level indicator]]","v":0},{"$f":"T_DataComboFile[[#This Row],[2020/21 SAB_Source]]*T_DataComboFile[[#This Row],[G&S reporting level indicator]]","v":0},{"$f":"T_DataComboFile[[#This Row],[2020/21 Baseline_Source]]*T_DataComboFile[[#This Row],[G&S reporting level indicator]]","v":0},{"$f":"T_DataComboFile[[#This Row],[2021/22 Baseline_Source]]*T_DataComboFile[[#This Row],[G&S reporting level indicator]]","v":0},{"$f":"T_DataComboFile[[#This Row],[2022/23 Baseline_Source]]*T_DataComboFile[[#This Row],[G&S reporting level indicator]]","v":0},{"$f":"T_DataComboFile[[#This Row],[2023/24 Baseline_Source]]*T_DataComboFile[[#This Row],[G&S reporting level indicator]]","v":0},null,null,null,null,null,null,{"$f":"T_DataComboFile[[#This Row],[2021/22 Baseline]]+T_DataComboFile[[#This Row],[2021/22 Reduction]]+T_DataComboFile[[#This Row],[2021/22 Increase]]","v":0},{"$f":"T_DataComboFile[[#This Row],[2022/23 Baseline]]+T_DataComboFile[[#This Row],[2022/23 Reduction]]+T_DataComboFile[[#This Row],[2022/23 Increase]]","v":0},{"$f":"T_DataComboFile[[#This Row],[2023/24 Baseline]]+T_DataComboFile[[#This Row],[2023/24 Reduction]]+T_DataComboFile[[#This Row],[2023/24 Increase]]","v":0}]
[null,null,"2021_22","ENE2020",36,2,3,null,70658,36,2,3,null,"070658","36|02|03",1,2,4,44,45,"01|02|04|44|45","National","Small Business Development","Sector Policy and Research","International Relations",null,"Current","Transfers and subsidies","Provinces and municipalities","Municipalities","Municipal bank accounts",null,null,null,0,0,0,0,0,0,0,0,0,0,0,0,0,0,null,{"$f":"IF(T_DataComboFile[[#This Row],[G&S reporting level indicator]]=1,$AX$16,\"Not applicable\")","v":"Level 3"},{"$f":"IF(AND($AX$16=\"Level 3\",T_DataComboFile[[#This Row],[Econ3]] = \"Goods and services\"),IF(T_DataComboFile[[#This Row],[Econ4]] = T_DataComboFile[[#This Row],[Econ3]],1,0),IF(AND($AX$16=\"Level 4\",T_DataComboFile[[#This Row],[Econ4]] = \"Goods and services\"),0,1))","v":1},{"$f":"T_DataComboFile[[#This Row],[2016/17_Source]]*T_DataComboFile[[#This Row],[G&S reporting level indicator]]","v":0},{"$f":"T_DataComboFile[[#This Row],[2017/18_Source]]*T_DataComboFile[[#This Row],[G&S reporting level indicator]]","v":0},{"$f":"T_DataComboFile[[#This Row],[2018/19_Source]]*T_DataComboFile[[#This Row],[G&S reporting level indicator]]","v":0},{"$f":"T_DataComboFile[[#This Row],[2019/20 Main appropriation_Source]]*T_DataComboFile[[#This Row],[G&S reporting level indicator]]","v":0},{"$f":"T_DataComboFile[[#This Row],[2019/20 Adjusted appropriation_Source]]*T_DataComboFile[[#This Row],[G&S reporting level indicator]]","v":0},{"$f":"T_DataComboFile[[#This Row],[2019/20 Revised estimate_Source]]*T_DataComboFile[[#This Row],[G&S reporting level indicator]]","v":0},{"$f":"T_DataComboFile[[#This Row],[2019/20 Preliminary outcome_Source]]*T_DataComboFile[[#This Row],[G&S reporting level indicator]]","v":0},{"$f":"T_DataComboFile[[#This Row],[2020/21 Original_Source]]*T_DataComboFile[[#This Row],[G&S reporting level indicator]]","v":0},{"$f":"T_DataComboFile[[#This Row],[2020/21 SAB_Source]]*T_DataComboFile[[#This Row],[G&S reporting level indicator]]","v":0},{"$f":"T_DataComboFile[[#This Row],[2020/21 Baseline_Source]]*T_DataComboFile[[#This Row],[G&S reporting level indicator]]","v":0},{"$f":"T_DataComboFile[[#This Row],[2021/22 Baseline_Source]]*T_DataComboFile[[#This Row],[G&S reporting level indicator]]","v":0},{"$f":"T_DataComboFile[[#This Row],[2022/23 Baseline_Source]]*T_DataComboFile[[#This Row],[G&S reporting level indicator]]","v":0},{"$f":"T_DataComboFile[[#This Row],[2023/24 Baseline_Source]]*T_DataComboFile[[#This Row],[G&S reporting level indicator]]","v":0},null,null,null,null,null,null,{"$f":"T_DataComboFile[[#This Row],[2021/22 Baseline]]+T_DataComboFile[[#This Row],[2021/22 Reduction]]+T_DataComboFile[[#This Row],[2021/22 Increase]]","v":0},{"$f":"T_DataComboFile[[#This Row],[2022/23 Baseline]]+T_DataComboFile[[#This Row],[2022/23 Reduction]]+T_DataComboFile[[#This Row],[2022/23 Increase]]","v":0},{"$f":"T_DataComboFile[[#This Row],[2023/24 Baseline]]+T_DataComboFile[[#This Row],[2023/24 Reduction]]+T_DataComboFile[[#This Row],[2023/24 Increase]]","v":0}]
[null,null,"2021_22","ENE2020",36,2,3,null,70659,36,2,3,null,"070659","36|02|03",1,2,4,44,46,"01|02|04|44|46","National","Small Business Development","Sector Policy and Research","International Relations",null,"Current","Transfers and subsidies","Provinces and municipalities","Municipalities","Municipal agencies and funds",null,null,null,0,0,0,0,0,0,0,0,0,0,0,0,0,0,null,{"$f":"IF(T_DataComboFile[[#This Row],[G&S reporting level indicator]]=1,$AX$16,\"Not applicable\")","v":"Level 3"},{"$f":"IF(AND($AX$16=\"Level 3\",T_DataComboFile[[#This Row],[Econ3]] = \"Goods and services\"),IF(T_DataComboFile[[#This Row],[Econ4]] = T_DataComboFile[[#This Row],[Econ3]],1,0),IF(AND($AX$16=\"Level 4\",T_DataComboFile[[#This Row],[Econ4]] = \"Goods and services\"),0,1))","v":1},{"$f":"T_DataComboFile[[#This Row],[2016/17_Source]]*T_DataComboFile[[#This Row],[G&S reporting level indicator]]","v":0},{"$f":"T_DataComboFile[[#This Row],[2017/18_Source]]*T_DataComboFile[[#This Row],[G&S reporting level indicator]]","v":0},{"$f":"T_DataComboFile[[#This Row],[2018/19_Source]]*T_DataComboFile[[#This Row],[G&S reporting level indicator]]","v":0},{"$f":"T_DataComboFile[[#This Row],[2019/20 Main appropriation_Source]]*T_DataComboFile[[#This Row],[G&S reporting level indicator]]","v":0},{"$f":"T_DataComboFile[[#This Row],[2019/20 Adjusted appropriation_Source]]*T_DataComboFile[[#This Row],[G&S reporting level indicator]]","v":0},{"$f":"T_DataComboFile[[#This Row],[2019/20 Revised estimate_Source]]*T_DataComboFile[[#This Row],[G&S reporting level indicator]]","v":0},{"$f":"T_DataComboFile[[#This Row],[2019/20 Preliminary outcome_Source]]*T_DataComboFile[[#This Row],[G&S reporting level indicator]]","v":0},{"$f":"T_DataComboFile[[#This Row],[2020/21 Original_Source]]*T_DataComboFile[[#This Row],[G&S reporting level indicator]]","v":0},{"$f":"T_DataComboFile[[#This Row],[2020/21 SAB_Source]]*T_DataComboFile[[#This Row],[G&S reporting level indicator]]","v":0},{"$f":"T_DataComboFile[[#This Row],[2020/21 Baseline_Source]]*T_DataComboFile[[#This Row],[G&S reporting level indicator]]","v":0},{"$f":"T_DataComboFile[[#This Row],[2021/22 Baseline_Source]]*T_DataComboFile[[#This Row],[G&S reporting level indicator]]","v":0},{"$f":"T_DataComboFile[[#This Row],[2022/23 Baseline_Source]]*T_DataComboFile[[#This Row],[G&S reporting level indicator]]","v":0},{"$f":"T_DataComboFile[[#This Row],[2023/24 Baseline_Source]]*T_DataComboFile[[#This Row],[G&S reporting level indicator]]","v":0},null,null,null,null,null,null,{"$f":"T_DataComboFile[[#This Row],[2021/22 Baseline]]+T_DataComboFile[[#This Row],[2021/22 Reduction]]+T_DataComboFile[[#This Row],[2021/22 Increase]]","v":0},{"$f":"T_DataComboFile[[#This Row],[2022/23 Baseline]]+T_DataComboFile[[#This Row],[2022/23 Reduction]]+T_DataComboFile[[#This Row],[2022/23 Increase]]","v":0},{"$f":"T_DataComboFile[[#This Row],[2023/24 Baseline]]+T_DataComboFile[[#This Row],[2023/24 Reduction]]+T_DataComboFile[[#This Row],[2023/24 Increase]]","v":0}]
[null,null,"2021_22","ENE2020",36,2,3,null,70660,36,2,3,null,"070660","36|02|03",1,2,5,45,47,"01|02|05|45|47","National","Small Business Development","Sector Policy and Research","International Relations",null,"Current","Transfers and subsidies","Departmental agencies and accounts","Social security funds","Social security funds",null,null,null,0,0,0,0,0,0,0,0,0,0,0,0,0,0,null,{"$f":"IF(T_DataComboFile[[#This Row],[G&S reporting level indicator]]=1,$AX$16,\"Not applicable\")","v":"Level 3"},{"$f":"IF(AND($AX$16=\"Level 3\",T_DataComboFile[[#This Row],[Econ3]] = \"Goods and services\"),IF(T_DataComboFile[[#This Row],[Econ4]] = T_DataComboFile[[#This Row],[Econ3]],1,0),IF(AND($AX$16=\"Level 4\",T_DataComboFile[[#This Row],[Econ4]] = \"Goods and services\"),0,1))","v":1},{"$f":"T_DataComboFile[[#This Row],[2016/17_Source]]*T_DataComboFile[[#This Row],[G&S reporting level indicator]]","v":0},{"$f":"T_DataComboFile[[#This Row],[2017/18_Source]]*T_DataComboFile[[#This Row],[G&S reporting level indicator]]","v":0},{"$f":"T_DataComboFile[[#This Row],[2018/19_Source]]*T_DataComboFile[[#This Row],[G&S reporting level indicator]]","v":0},{"$f":"T_DataComboFile[[#This Row],[2019/20 Main appropriation_Source]]*T_DataComboFile[[#This Row],[G&S reporting level indicator]]","v":0},{"$f":"T_DataComboFile[[#This Row],[2019/20 Adjusted appropriation_Source]]*T_DataComboFile[[#This Row],[G&S reporting level indicator]]","v":0},{"$f":"T_DataComboFile[[#This Row],[2019/20 Revised estimate_Source]]*T_DataComboFile[[#This Row],[G&S reporting level indicator]]","v":0},{"$f":"T_DataComboFile[[#This Row],[2019/20 Preliminary outcome_Source]]*T_DataComboFile[[#This Row],[G&S reporting level indicator]]","v":0},{"$f":"T_DataComboFile[[#This Row],[2020/21 Original_Source]]*T_DataComboFile[[#This Row],[G&S reporting level indicator]]","v":0},{"$f":"T_DataComboFile[[#This Row],[2020/21 SAB_Source]]*T_DataComboFile[[#This Row],[G&S reporting level indicator]]","v":0},{"$f":"T_DataComboFile[[#This Row],[2020/21 Baseline_Source]]*T_DataComboFile[[#This Row],[G&S reporting level indicator]]","v":0},{"$f":"T_DataComboFile[[#This Row],[2021/22 Baseline_Source]]*T_DataComboFile[[#This Row],[G&S reporting level indicator]]","v":0},{"$f":"T_DataComboFile[[#This Row],[2022/23 Baseline_Source]]*T_DataComboFile[[#This Row],[G&S reporting level indicator]]","v":0},{"$f":"T_DataComboFile[[#This Row],[2023/24 Baseline_Source]]*T_DataComboFile[[#This Row],[G&S reporting level indicator]]","v":0},null,null,null,null,null,null,{"$f":"T_DataComboFile[[#This Row],[2021/22 Baseline]]+T_DataComboFile[[#This Row],[2021/22 Reduction]]+T_DataComboFile[[#This Row],[2021/22 Increase]]","v":0},{"$f":"T_DataComboFile[[#This Row],[2022/23 Baseline]]+T_DataComboFile[[#This Row],[2022/23 Reduction]]+T_DataComboFile[[#This Row],[2022/23 Increase]]","v":0},{"$f":"T_DataComboFile[[#This Row],[2023/24 Baseline]]+T_DataComboFile[[#This Row],[2023/24 Reduction]]+T_DataComboFile[[#This Row],[2023/24 Increase]]","v":0}]
[null,null,"2021_22","ENE2020",36,2,3,null,70661,36,2,3,null,"070661","36|02|03",1,2,5,46,48,"01|02|05|46|48","National","Small Business Development","Sector Policy and Research","International Relations",null,"Current","Transfers and subsidies","Departmental agencies and accounts","Departmental agencies (non-business entities)","Departmental agencies (non-business entities)",null,null,null,0,0,0,0,0,0,0,0,0,0,0,0,0,0,null,{"$f":"IF(T_DataComboFile[[#This Row],[G&S reporting level indicator]]=1,$AX$16,\"Not applicable\")","v":"Level 3"},{"$f":"IF(AND($AX$16=\"Level 3\",T_DataComboFile[[#This Row],[Econ3]] = \"Goods and services\"),IF(T_DataComboFile[[#This Row],[Econ4]] = T_DataComboFile[[#This Row],[Econ3]],1,0),IF(AND($AX$16=\"Level 4\",T_DataComboFile[[#This Row],[Econ4]] = \"Goods and services\"),0,1))","v":1},{"$f":"T_DataComboFile[[#This Row],[2016/17_Source]]*T_DataComboFile[[#This Row],[G&S reporting level indicator]]","v":0},{"$f":"T_DataComboFile[[#This Row],[2017/18_Source]]*T_DataComboFile[[#This Row],[G&S reporting level indicator]]","v":0},{"$f":"T_DataComboFile[[#This Row],[2018/19_Source]]*T_DataComboFile[[#This Row],[G&S reporting level indicator]]","v":0},{"$f":"T_DataComboFile[[#This Row],[2019/20 Main appropriation_Source]]*T_DataComboFile[[#This Row],[G&S reporting level indicator]]","v":0},{"$f":"T_DataComboFile[[#This Row],[2019/20 Adjusted appropriation_Source]]*T_DataComboFile[[#This Row],[G&S reporting level indicator]]","v":0},{"$f":"T_DataComboFile[[#This Row],[2019/20 Revised estimate_Source]]*T_DataComboFile[[#This Row],[G&S reporting level indicator]]","v":0},{"$f":"T_DataComboFile[[#This Row],[2019/20 Preliminary outcome_Source]]*T_DataComboFile[[#This Row],[G&S reporting level indicator]]","v":0},{"$f":"T_DataComboFile[[#This Row],[2020/21 Original_Source]]*T_DataComboFile[[#This Row],[G&S reporting level indicator]]","v":0},{"$f":"T_DataComboFile[[#This Row],[2020/21 SAB_Source]]*T_DataComboFile[[#This Row],[G&S reporting level indicator]]","v":0},{"$f":"T_DataComboFile[[#This Row],[2020/21 Baseline_Source]]*T_DataComboFile[[#This Row],[G&S reporting level indicator]]","v":0},{"$f":"T_DataComboFile[[#This Row],[2021/22 Baseline_Source]]*T_DataComboFile[[#This Row],[G&S reporting level indicator]]","v":0},{"$f":"T_DataComboFile[[#This Row],[2022/23 Baseline_Source]]*T_DataComboFile[[#This Row],[G&S reporting level indicator]]","v":0},{"$f":"T_DataComboFile[[#This Row],[2023/24 Baseline_Source]]*T_DataComboFile[[#This Row],[G&S reporting level indicator]]","v":0},null,null,null,null,null,null,{"$f":"T_DataComboFile[[#This Row],[2021/22 Baseline]]+T_DataComboFile[[#This Row],[2021/22 Reduction]]+T_DataComboFile[[#This Row],[2021/22 Increase]]","v":0},{"$f":"T_DataComboFile[[#This Row],[2022/23 Baseline]]+T_DataComboFile[[#This Row],[2022/23 Reduction]]+T_DataComboFile[[#This Row],[2022/23 Increase]]","v":0},{"$f":"T_DataComboFile[[#This Row],[2023/24 Baseline]]+T_DataComboFile[[#This Row],[2023/24 Reduction]]+T_DataComboFile[[#This Row],[2023/24 Increase]]","v":0}]
[null,null,"2021_22","ENE2020",36,2,3,null,70662,36,2,3,null,"070662","36|02|03",1,2,6,47,49,"01|02|06|47|49","National","Small Business Development","Sector Policy and Research","International Relations",null,"Current","Transfers and subsidies","Higher education institutions","Higher education institutions","Higher education institutions",null,null,null,0,0,0,0,0,0,0,0,0,0,0,0,0,0,null,{"$f":"IF(T_DataComboFile[[#This Row],[G&S reporting level indicator]]=1,$AX$16,\"Not applicable\")","v":"Level 3"},{"$f":"IF(AND($AX$16=\"Level 3\",T_DataComboFile[[#This Row],[Econ3]] = \"Goods and services\"),IF(T_DataComboFile[[#This Row],[Econ4]] = T_DataComboFile[[#This Row],[Econ3]],1,0),IF(AND($AX$16=\"Level 4\",T_DataComboFile[[#This Row],[Econ4]] = \"Goods and services\"),0,1))","v":1},{"$f":"T_DataComboFile[[#This Row],[2016/17_Source]]*T_DataComboFile[[#This Row],[G&S reporting level indicator]]","v":0},{"$f":"T_DataComboFile[[#This Row],[2017/18_Source]]*T_DataComboFile[[#This Row],[G&S reporting level indicator]]","v":0},{"$f":"T_DataComboFile[[#This Row],[2018/19_Source]]*T_DataComboFile[[#This Row],[G&S reporting level indicator]]","v":0},{"$f":"T_DataComboFile[[#This Row],[2019/20 Main appropriation_Source]]*T_DataComboFile[[#This Row],[G&S reporting level indicator]]","v":0},{"$f":"T_DataComboFile[[#This Row],[2019/20 Adjusted appropriation_Source]]*T_DataComboFile[[#This Row],[G&S reporting level indicator]]","v":0},{"$f":"T_DataComboFile[[#This Row],[2019/20 Revised estimate_Source]]*T_DataComboFile[[#This Row],[G&S reporting level indicator]]","v":0},{"$f":"T_DataComboFile[[#This Row],[2019/20 Preliminary outcome_Source]]*T_DataComboFile[[#This Row],[G&S reporting level indicator]]","v":0},{"$f":"T_DataComboFile[[#This Row],[2020/21 Original_Source]]*T_DataComboFile[[#This Row],[G&S reporting level indicator]]","v":0},{"$f":"T_DataComboFile[[#This Row],[2020/21 SAB_Source]]*T_DataComboFile[[#This Row],[G&S reporting level indicator]]","v":0},{"$f":"T_DataComboFile[[#This Row],[2020/21 Baseline_Source]]*T_DataComboFile[[#This Row],[G&S reporting level indicator]]","v":0},{"$f":"T_DataComboFile[[#This Row],[2021/22 Baseline_Source]]*T_DataComboFile[[#This Row],[G&S reporting level indicator]]","v":0},{"$f":"T_DataComboFile[[#This Row],[2022/23 Baseline_Source]]*T_DataComboFile[[#This Row],[G&S reporting level indicator]]","v":0},{"$f":"T_DataComboFile[[#This Row],[2023/24 Baseline_Source]]*T_DataComboFile[[#This Row],[G&S reporting level indicator]]","v":0},null,null,null,null,null,null,{"$f":"T_DataComboFile[[#This Row],[2021/22 Baseline]]+T_DataComboFile[[#This Row],[2021/22 Reduction]]+T_DataComboFile[[#This Row],[2021/22 Increase]]","v":0},{"$f":"T_DataComboFile[[#This Row],[2022/23 Baseline]]+T_DataComboFile[[#This Row],[2022/23 Reduction]]+T_DataComboFile[[#This Row],[2022/23 Increase]]","v":0},{"$f":"T_DataComboFile[[#This Row],[2023/24 Baseline]]+T_DataComboFile[[#This Row],[2023/24 Reduction]]+T_DataComboFile[[#This Row],[2023/24 Increase]]","v":0}]
[null,null,"2021_22","ENE2020",36,2,3,null,70663,36,2,3,null,"070663","36|02|03",1,2,7,48,50,"01|02|07|48|50","National","Small Business Development","Sector Policy and Research","International Relations",null,"Current","Transfers and subsidies","Foreign governments and international organisations","Foreign governments and international organisations","Foreign governments and international organisations",null,null,null,0,0,0,0,0,0,0,0,0,0,0,0,0,0,null,{"$f":"IF(T_DataComboFile[[#This Row],[G&S reporting level indicator]]=1,$AX$16,\"Not applicable\")","v":"Level 3"},{"$f":"IF(AND($AX$16=\"Level 3\",T_DataComboFile[[#This Row],[Econ3]] = \"Goods and services\"),IF(T_DataComboFile[[#This Row],[Econ4]] = T_DataComboFile[[#This Row],[Econ3]],1,0),IF(AND($AX$16=\"Level 4\",T_DataComboFile[[#This Row],[Econ4]] = \"Goods and services\"),0,1))","v":1},{"$f":"T_DataComboFile[[#This Row],[2016/17_Source]]*T_DataComboFile[[#This Row],[G&S reporting level indicator]]","v":0},{"$f":"T_DataComboFile[[#This Row],[2017/18_Source]]*T_DataComboFile[[#This Row],[G&S reporting level indicator]]","v":0},{"$f":"T_DataComboFile[[#This Row],[2018/19_Source]]*T_DataComboFile[[#This Row],[G&S reporting level indicator]]","v":0},{"$f":"T_DataComboFile[[#This Row],[2019/20 Main appropriation_Source]]*T_DataComboFile[[#This Row],[G&S reporting level indicator]]","v":0},{"$f":"T_DataComboFile[[#This Row],[2019/20 Adjusted appropriation_Source]]*T_DataComboFile[[#This Row],[G&S reporting level indicator]]","v":0},{"$f":"T_DataComboFile[[#This Row],[2019/20 Revised estimate_Source]]*T_DataComboFile[[#This Row],[G&S reporting level indicator]]","v":0},{"$f":"T_DataComboFile[[#This Row],[2019/20 Preliminary outcome_Source]]*T_DataComboFile[[#This Row],[G&S reporting level indicator]]","v":0},{"$f":"T_DataComboFile[[#This Row],[2020/21 Original_Source]]*T_DataComboFile[[#This Row],[G&S reporting level indicator]]","v":0},{"$f":"T_DataComboFile[[#This Row],[2020/21 SAB_Source]]*T_DataComboFile[[#This Row],[G&S reporting level indicator]]","v":0},{"$f":"T_DataComboFile[[#This Row],[2020/21 Baseline_Source]]*T_DataComboFile[[#This Row],[G&S reporting level indicator]]","v":0},{"$f":"T_DataComboFile[[#This Row],[2021/22 Baseline_Source]]*T_DataComboFile[[#This Row],[G&S reporting level indicator]]","v":0},{"$f":"T_DataComboFile[[#This Row],[2022/23 Baseline_Source]]*T_DataComboFile[[#This Row],[G&S reporting level indicator]]","v":0},{"$f":"T_DataComboFile[[#This Row],[2023/24 Baseline_Source]]*T_DataComboFile[[#This Row],[G&S reporting level indicator]]","v":0},null,null,null,null,null,null,{"$f":"T_DataComboFile[[#This Row],[2021/22 Baseline]]+T_DataComboFile[[#This Row],[2021/22 Reduction]]+T_DataComboFile[[#This Row],[2021/22 Increase]]","v":0},{"$f":"T_DataComboFile[[#This Row],[2022/23 Baseline]]+T_DataComboFile[[#This Row],[2022/23 Reduction]]+T_DataComboFile[[#This Row],[2022/23 Increase]]","v":0},{"$f":"T_DataComboFile[[#This Row],[2023/24 Baseline]]+T_DataComboFile[[#This Row],[2023/24 Reduction]]+T_DataComboFile[[#This Row],[2023/24 Increase]]","v":0}]
[null,null,"2021_22","ENE2020",36,2,3,null,70664,36,2,3,null,"070664","36|02|03",1,2,8,49,51,"01|02|08|49|51","National","Small Business Development","Sector Policy and Research","International Relations",null,"Current","Transfers and subsidies","Public corporations and private enterprises","Public corporations","Subsidies on products and production (pc)",null,null,null,0,0,0,0,0,0,0,0,0,0,0,0,0,0,null,{"$f":"IF(T_DataComboFile[[#This Row],[G&S reporting level indicator]]=1,$AX$16,\"Not applicable\")","v":"Level 3"},{"$f":"IF(AND($AX$16=\"Level 3\",T_DataComboFile[[#This Row],[Econ3]] = \"Goods and services\"),IF(T_DataComboFile[[#This Row],[Econ4]] = T_DataComboFile[[#This Row],[Econ3]],1,0),IF(AND($AX$16=\"Level 4\",T_DataComboFile[[#This Row],[Econ4]] = \"Goods and services\"),0,1))","v":1},{"$f":"T_DataComboFile[[#This Row],[2016/17_Source]]*T_DataComboFile[[#This Row],[G&S reporting level indicator]]","v":0},{"$f":"T_DataComboFile[[#This Row],[2017/18_Source]]*T_DataComboFile[[#This Row],[G&S reporting level indicator]]","v":0},{"$f":"T_DataComboFile[[#This Row],[2018/19_Source]]*T_DataComboFile[[#This Row],[G&S reporting level indicator]]","v":0},{"$f":"T_DataComboFile[[#This Row],[2019/20 Main appropriation_Source]]*T_DataComboFile[[#This Row],[G&S reporting level indicator]]","v":0},{"$f":"T_DataComboFile[[#This Row],[2019/20 Adjusted appropriation_Source]]*T_DataComboFile[[#This Row],[G&S reporting level indicator]]","v":0},{"$f":"T_DataComboFile[[#This Row],[2019/20 Revised estimate_Source]]*T_DataComboFile[[#This Row],[G&S reporting level indicator]]","v":0},{"$f":"T_DataComboFile[[#This Row],[2019/20 Preliminary outcome_Source]]*T_DataComboFile[[#This Row],[G&S reporting level indicator]]","v":0},{"$f":"T_DataComboFile[[#This Row],[2020/21 Original_Source]]*T_DataComboFile[[#This Row],[G&S reporting level indicator]]","v":0},{"$f":"T_DataComboFile[[#This Row],[2020/21 SAB_Source]]*T_DataComboFile[[#This Row],[G&S reporting level indicator]]","v":0},{"$f":"T_DataComboFile[[#This Row],[2020/21 Baseline_Source]]*T_DataComboFile[[#This Row],[G&S reporting level indicator]]","v":0},{"$f":"T_DataComboFile[[#This Row],[2021/22 Baseline_Source]]*T_DataComboFile[[#This Row],[G&S reporting level indicator]]","v":0},{"$f":"T_DataComboFile[[#This Row],[2022/23 Baseline_Source]]*T_DataComboFile[[#This Row],[G&S reporting level indicator]]","v":0},{"$f":"T_DataComboFile[[#This Row],[2023/24 Baseline_Source]]*T_DataComboFile[[#This Row],[G&S reporting level indicator]]","v":0},null,null,null,null,null,null,{"$f":"T_DataComboFile[[#This Row],[2021/22 Baseline]]+T_DataComboFile[[#This Row],[2021/22 Reduction]]+T_DataComboFile[[#This Row],[2021/22 Increase]]","v":0},{"$f":"T_DataComboFile[[#This Row],[2022/23 Baseline]]+T_DataComboFile[[#This Row],[2022/23 Reduction]]+T_DataComboFile[[#This Row],[2022/23 Increase]]","v":0},{"$f":"T_DataComboFile[[#This Row],[2023/24 Baseline]]+T_DataComboFile[[#This Row],[2023/24 Reduction]]+T_DataComboFile[[#This Row],[2023/24 Increase]]","v":0}]
[null,null,"2021_22","ENE2020",36,2,3,null,70665,36,2,3,null,"070665","36|02|03",1,2,8,49,52,"01|02|08|49|52","National","Small Business Development","Sector Policy and Research","International Relations",null,"Current","Transfers and subsidies","Public corporations and private enterprises","Public corporations","Other transfers to public corporations",null,null,null,0,0,0,0,0,0,0,0,0,0,0,0,0,0,null,{"$f":"IF(T_DataComboFile[[#This Row],[G&S reporting level indicator]]=1,$AX$16,\"Not applicable\")","v":"Level 3"},{"$f":"IF(AND($AX$16=\"Level 3\",T_DataComboFile[[#This Row],[Econ3]] = \"Goods and services\"),IF(T_DataComboFile[[#This Row],[Econ4]] = T_DataComboFile[[#This Row],[Econ3]],1,0),IF(AND($AX$16=\"Level 4\",T_DataComboFile[[#This Row],[Econ4]] = \"Goods and services\"),0,1))","v":1},{"$f":"T_DataComboFile[[#This Row],[2016/17_Source]]*T_DataComboFile[[#This Row],[G&S reporting level indicator]]","v":0},{"$f":"T_DataComboFile[[#This Row],[2017/18_Source]]*T_DataComboFile[[#This Row],[G&S reporting level indicator]]","v":0},{"$f":"T_DataComboFile[[#This Row],[2018/19_Source]]*T_DataComboFile[[#This Row],[G&S reporting level indicator]]","v":0},{"$f":"T_DataComboFile[[#This Row],[2019/20 Main appropriation_Source]]*T_DataComboFile[[#This Row],[G&S reporting level indicator]]","v":0},{"$f":"T_DataComboFile[[#This Row],[2019/20 Adjusted appropriation_Source]]*T_DataComboFile[[#This Row],[G&S reporting level indicator]]","v":0},{"$f":"T_DataComboFile[[#This Row],[2019/20 Revised estimate_Source]]*T_DataComboFile[[#This Row],[G&S reporting level indicator]]","v":0},{"$f":"T_DataComboFile[[#This Row],[2019/20 Preliminary outcome_Source]]*T_DataComboFile[[#This Row],[G&S reporting level indicator]]","v":0},{"$f":"T_DataComboFile[[#This Row],[2020/21 Original_Source]]*T_DataComboFile[[#This Row],[G&S reporting level indicator]]","v":0},{"$f":"T_DataComboFile[[#This Row],[2020/21 SAB_Source]]*T_DataComboFile[[#This Row],[G&S reporting level indicator]]","v":0},{"$f":"T_DataComboFile[[#This Row],[2020/21 Baseline_Source]]*T_DataComboFile[[#This Row],[G&S reporting level indicator]]","v":0},{"$f":"T_DataComboFile[[#This Row],[2021/22 Baseline_Source]]*T_DataComboFile[[#This Row],[G&S reporting level indicator]]","v":0},{"$f":"T_DataComboFile[[#This Row],[2022/23 Baseline_Source]]*T_DataComboFile[[#This Row],[G&S reporting level indicator]]","v":0},{"$f":"T_DataComboFile[[#This Row],[2023/24 Baseline_Source]]*T_DataComboFile[[#This Row],[G&S reporting level indicator]]","v":0},null,null,null,null,null,null,{"$f":"T_DataComboFile[[#This Row],[2021/22 Baseline]]+T_DataComboFile[[#This Row],[2021/22 Reduction]]+T_DataComboFile[[#This Row],[2021/22 Increase]]","v":0},{"$f":"T_DataComboFile[[#This Row],[2022/23 Baseline]]+T_DataComboFile[[#This Row],[2022/23 Reduction]]+T_DataComboFile[[#This Row],[2022/23 Increase]]","v":0},{"$f":"T_DataComboFile[[#This Row],[2023/24 Baseline]]+T_DataComboFile[[#This Row],[2023/24 Reduction]]+T_DataComboFile[[#This Row],[2023/24 Increase]]","v":0}]
[null,null,"2021_22","ENE2020",36,2,3,null,70666,36,2,3,null,"070666","36|02|03",1,2,8,50,53,"01|02|08|50|53","National","Small Business Development","Sector Policy and Research","International Relations",null,"Current","Transfers and subsidies","Public corporations and private enterprises","Private enterprises","Subsidies on products and production (pe)",null,null,null,0,0,0,0,0,0,0,0,0,0,0,0,0,0,null,{"$f":"IF(T_DataComboFile[[#This Row],[G&S reporting level indicator]]=1,$AX$16,\"Not applicable\")","v":"Level 3"},{"$f":"IF(AND($AX$16=\"Level 3\",T_DataComboFile[[#This Row],[Econ3]] = \"Goods and services\"),IF(T_DataComboFile[[#This Row],[Econ4]] = T_DataComboFile[[#This Row],[Econ3]],1,0),IF(AND($AX$16=\"Level 4\",T_DataComboFile[[#This Row],[Econ4]] = \"Goods and services\"),0,1))","v":1},{"$f":"T_DataComboFile[[#This Row],[2016/17_Source]]*T_DataComboFile[[#This Row],[G&S reporting level indicator]]","v":0},{"$f":"T_DataComboFile[[#This Row],[2017/18_Source]]*T_DataComboFile[[#This Row],[G&S reporting level indicator]]","v":0},{"$f":"T_DataComboFile[[#This Row],[2018/19_Source]]*T_DataComboFile[[#This Row],[G&S reporting level indicator]]","v":0},{"$f":"T_DataComboFile[[#This Row],[2019/20 Main appropriation_Source]]*T_DataComboFile[[#This Row],[G&S reporting level indicator]]","v":0},{"$f":"T_DataComboFile[[#This Row],[2019/20 Adjusted appropriation_Source]]*T_DataComboFile[[#This Row],[G&S reporting level indicator]]","v":0},{"$f":"T_DataComboFile[[#This Row],[2019/20 Revised estimate_Source]]*T_DataComboFile[[#This Row],[G&S reporting level indicator]]","v":0},{"$f":"T_DataComboFile[[#This Row],[2019/20 Preliminary outcome_Source]]*T_DataComboFile[[#This Row],[G&S reporting level indicator]]","v":0},{"$f":"T_DataComboFile[[#This Row],[2020/21 Original_Source]]*T_DataComboFile[[#This Row],[G&S reporting level indicator]]","v":0},{"$f":"T_DataComboFile[[#This Row],[2020/21 SAB_Source]]*T_DataComboFile[[#This Row],[G&S reporting level indicator]]","v":0},{"$f":"T_DataComboFile[[#This Row],[2020/21 Baseline_Source]]*T_DataComboFile[[#This Row],[G&S reporting level indicator]]","v":0},{"$f":"T_DataComboFile[[#This Row],[2021/22 Baseline_Source]]*T_DataComboFile[[#This Row],[G&S reporting level indicator]]","v":0},{"$f":"T_DataComboFile[[#This Row],[2022/23 Baseline_Source]]*T_DataComboFile[[#This Row],[G&S reporting level indicator]]","v":0},{"$f":"T_DataComboFile[[#This Row],[2023/24 Baseline_Source]]*T_DataComboFile[[#This Row],[G&S reporting level indicator]]","v":0},null,null,null,null,null,null,{"$f":"T_DataComboFile[[#This Row],[2021/22 Baseline]]+T_DataComboFile[[#This Row],[2021/22 Reduction]]+T_DataComboFile[[#This Row],[2021/22 Increase]]","v":0},{"$f":"T_DataComboFile[[#This Row],[2022/23 Baseline]]+T_DataComboFile[[#This Row],[2022/23 Reduction]]+T_DataComboFile[[#This Row],[2022/23 Increase]]","v":0},{"$f":"T_DataComboFile[[#This Row],[2023/24 Baseline]]+T_DataComboFile[[#This Row],[2023/24 Reduction]]+T_DataComboFile[[#This Row],[2023/24 Increase]]","v":0}]
[null,null,"2021_22","ENE2020",36,2,3,null,70667,36,2,3,null,"070667","36|02|03",1,2,8,50,54,"01|02|08|50|54","National","Small Business Development","Sector Policy and Research","International Relations",null,"Current","Transfers and subsidies","Public corporations and private enterprises","Private enterprises","Other transfers to private enterprises",null,null,null,0,0,0,0,0,0,0,0,0,0,0,0,0,0,null,{"$f":"IF(T_DataComboFile[[#This Row],[G&S reporting level indicator]]=1,$AX$16,\"Not applicable\")","v":"Level 3"},{"$f":"IF(AND($AX$16=\"Level 3\",T_DataComboFile[[#This Row],[Econ3]] = \"Goods and services\"),IF(T_DataComboFile[[#This Row],[Econ4]] = T_DataComboFile[[#This Row],[Econ3]],1,0),IF(AND($AX$16=\"Level 4\",T_DataComboFile[[#This Row],[Econ4]] = \"Goods and services\"),0,1))","v":1},{"$f":"T_DataComboFile[[#This Row],[2016/17_Source]]*T_DataComboFile[[#This Row],[G&S reporting level indicator]]","v":0},{"$f":"T_DataComboFile[[#This Row],[2017/18_Source]]*T_DataComboFile[[#This Row],[G&S reporting level indicator]]","v":0},{"$f":"T_DataComboFile[[#This Row],[2018/19_Source]]*T_DataComboFile[[#This Row],[G&S reporting level indicator]]","v":0},{"$f":"T_DataComboFile[[#This Row],[2019/20 Main appropriation_Source]]*T_DataComboFile[[#This Row],[G&S reporting level indicator]]","v":0},{"$f":"T_DataComboFile[[#This Row],[2019/20 Adjusted appropriation_Source]]*T_DataComboFile[[#This Row],[G&S reporting level indicator]]","v":0},{"$f":"T_DataComboFile[[#This Row],[2019/20 Revised estimate_Source]]*T_DataComboFile[[#This Row],[G&S reporting level indicator]]","v":0},{"$f":"T_DataComboFile[[#This Row],[2019/20 Preliminary outcome_Source]]*T_DataComboFile[[#This Row],[G&S reporting level indicator]]","v":0},{"$f":"T_DataComboFile[[#This Row],[2020/21 Original_Source]]*T_DataComboFile[[#This Row],[G&S reporting level indicator]]","v":0},{"$f":"T_DataComboFile[[#This Row],[2020/21 SAB_Source]]*T_DataComboFile[[#This Row],[G&S reporting level indicator]]","v":0},{"$f":"T_DataComboFile[[#This Row],[2020/21 Baseline_Source]]*T_DataComboFile[[#This Row],[G&S reporting level indicator]]","v":0},{"$f":"T_DataComboFile[[#This Row],[2021/22 Baseline_Source]]*T_DataComboFile[[#This Row],[G&S reporting level indicator]]","v":0},{"$f":"T_DataComboFile[[#This Row],[2022/23 Baseline_Source]]*T_DataComboFile[[#This Row],[G&S reporting level indicator]]","v":0},{"$f":"T_DataComboFile[[#This Row],[2023/24 Baseline_Source]]*T_DataComboFile[[#This Row],[G&S reporting level indicator]]","v":0},null,null,null,null,null,null,{"$f":"T_DataComboFile[[#This Row],[2021/22 Baseline]]+T_DataComboFile[[#This Row],[2021/22 Reduction]]+T_DataComboFile[[#This Row],[2021/22 Increase]]","v":0},{"$f":"T_DataComboFile[[#This Row],[2022/23 Baseline]]+T_DataComboFile[[#This Row],[2022/23 Reduction]]+T_DataComboFile[[#This Row],[2022/23 Increase]]","v":0},{"$f":"T_DataComboFile[[#This Row],[2023/24 Baseline]]+T_DataComboFile[[#This Row],[2023/24 Reduction]]+T_DataComboFile[[#This Row],[2023/24 Increase]]","v":0}]
[null,null,"2021_22","ENE2020",36,2,3,null,70668,36,2,3,null,"070668","36|02|03",1,2,9,51,55,"01|02|09|51|55","National","Small Business Development","Sector Policy and Research","International Relations",null,"Current","Transfers and subsidies","Non-profit institutions","Non-profit institutions","Non-profit institutions",null,null,null,0,0,0,0,0,0,0,0,0,0,0,0,0,0,null,{"$f":"IF(T_DataComboFile[[#This Row],[G&S reporting level indicator]]=1,$AX$16,\"Not applicable\")","v":"Level 3"},{"$f":"IF(AND($AX$16=\"Level 3\",T_DataComboFile[[#This Row],[Econ3]] = \"Goods and services\"),IF(T_DataComboFile[[#This Row],[Econ4]] = T_DataComboFile[[#This Row],[Econ3]],1,0),IF(AND($AX$16=\"Level 4\",T_DataComboFile[[#This Row],[Econ4]] = \"Goods and services\"),0,1))","v":1},{"$f":"T_DataComboFile[[#This Row],[2016/17_Source]]*T_DataComboFile[[#This Row],[G&S reporting level indicator]]","v":0},{"$f":"T_DataComboFile[[#This Row],[2017/18_Source]]*T_DataComboFile[[#This Row],[G&S reporting level indicator]]","v":0},{"$f":"T_DataComboFile[[#This Row],[2018/19_Source]]*T_DataComboFile[[#This Row],[G&S reporting level indicator]]","v":0},{"$f":"T_DataComboFile[[#This Row],[2019/20 Main appropriation_Source]]*T_DataComboFile[[#This Row],[G&S reporting level indicator]]","v":0},{"$f":"T_DataComboFile[[#This Row],[2019/20 Adjusted appropriation_Source]]*T_DataComboFile[[#This Row],[G&S reporting level indicator]]","v":0},{"$f":"T_DataComboFile[[#This Row],[2019/20 Revised estimate_Source]]*T_DataComboFile[[#This Row],[G&S reporting level indicator]]","v":0},{"$f":"T_DataComboFile[[#This Row],[2019/20 Preliminary outcome_Source]]*T_DataComboFile[[#This Row],[G&S reporting level indicator]]","v":0},{"$f":"T_DataComboFile[[#This Row],[2020/21 Original_Source]]*T_DataComboFile[[#This Row],[G&S reporting level indicator]]","v":0},{"$f":"T_DataComboFile[[#This Row],[2020/21 SAB_Source]]*T_DataComboFile[[#This Row],[G&S reporting level indicator]]","v":0},{"$f":"T_DataComboFile[[#This Row],[2020/21 Baseline_Source]]*T_DataComboFile[[#This Row],[G&S reporting level indicator]]","v":0},{"$f":"T_DataComboFile[[#This Row],[2021/22 Baseline_Source]]*T_DataComboFile[[#This Row],[G&S reporting level indicator]]","v":0},{"$f":"T_DataComboFile[[#This Row],[2022/23 Baseline_Source]]*T_DataComboFile[[#This Row],[G&S reporting level indicator]]","v":0},{"$f":"T_DataComboFile[[#This Row],[2023/24 Baseline_Source]]*T_DataComboFile[[#This Row],[G&S reporting level indicator]]","v":0},null,null,null,null,null,null,{"$f":"T_DataComboFile[[#This Row],[2021/22 Baseline]]+T_DataComboFile[[#This Row],[2021/22 Reduction]]+T_DataComboFile[[#This Row],[2021/22 Increase]]","v":0},{"$f":"T_DataComboFile[[#This Row],[2022/23 Baseline]]+T_DataComboFile[[#This Row],[2022/23 Reduction]]+T_DataComboFile[[#This Row],[2022/23 Increase]]","v":0},{"$f":"T_DataComboFile[[#This Row],[2023/24 Baseline]]+T_DataComboFile[[#This Row],[2023/24 Reduction]]+T_DataComboFile[[#This Row],[2023/24 Increase]]","v":0}]
["NAT|Employee social benefits","36|Social benefits","2021_22","ENE2020",36,2,3,17324,70669,36,2,3,17324,"070669","36|02|03",1,2,10,52,56,"01|02|10|52|56","National","Small Business Development","Sector Policy and Research","International Relations","Employee social benefits","Current","Transfers and subsidies","Households","Social benefits","Social benefits","Economic development","Industrialisation and exports","NAT",0,0,6,0,0,0,0,0,0,0,0,0,0,1,null,{"$f":"IF(T_DataComboFile[[#This Row],[G&S reporting level indicator]]=1,$AX$16,\"Not applicable\")","v":"Level 3"},{"$f":"IF(AND($AX$16=\"Level 3\",T_DataComboFile[[#This Row],[Econ3]] = \"Goods and services\"),IF(T_DataComboFile[[#This Row],[Econ4]] = T_DataComboFile[[#This Row],[Econ3]],1,0),IF(AND($AX$16=\"Level 4\",T_DataComboFile[[#This Row],[Econ4]] = \"Goods and services\"),0,1))","v":1},{"$f":"T_DataComboFile[[#This Row],[2016/17_Source]]*T_DataComboFile[[#This Row],[G&S reporting level indicator]]","v":0},{"$f":"T_DataComboFile[[#This Row],[2017/18_Source]]*T_DataComboFile[[#This Row],[G&S reporting level indicator]]","v":0},{"$f":"T_DataComboFile[[#This Row],[2018/19_Source]]*T_DataComboFile[[#This Row],[G&S reporting level indicator]]","v":6},{"$f":"T_DataComboFile[[#This Row],[2019/20 Main appropriation_Source]]*T_DataComboFile[[#This Row],[G&S reporting level indicator]]","v":0},{"$f":"T_DataComboFile[[#This Row],[2019/20 Adjusted appropriation_Source]]*T_DataComboFile[[#This Row],[G&S reporting level indicator]]","v":0},{"$f":"T_DataComboFile[[#This Row],[2019/20 Revised estimate_Source]]*T_DataComboFile[[#This Row],[G&S reporting level indicator]]","v":0},{"$f":"T_DataComboFile[[#This Row],[2019/20 Preliminary outcome_Source]]*T_DataComboFile[[#This Row],[G&S reporting level indicator]]","v":0},{"$f":"T_DataComboFile[[#This Row],[2020/21 Original_Source]]*T_DataComboFile[[#This Row],[G&S reporting level indicator]]","v":0},{"$f":"T_DataComboFile[[#This Row],[2020/21 SAB_Source]]*T_DataComboFile[[#This Row],[G&S reporting level indicator]]","v":0},{"$f":"T_DataComboFile[[#This Row],[2020/21 Baseline_Source]]*T_DataComboFile[[#This Row],[G&S reporting level indicator]]","v":0},{"$f":"T_DataComboFile[[#This Row],[2021/22 Baseline_Source]]*T_DataComboFile[[#This Row],[G&S reporting level indicator]]","v":0},{"$f":"T_DataComboFile[[#This Row],[2022/23 Baseline_Source]]*T_DataComboFile[[#This Row],[G&S reporting level indicator]]","v":0},{"$f":"T_DataComboFile[[#This Row],[2023/24 Baseline_Source]]*T_DataComboFile[[#This Row],[G&S reporting level indicator]]","v":0},null,null,null,null,null,null,{"$f":"T_DataComboFile[[#This Row],[2021/22 Baseline]]+T_DataComboFile[[#This Row],[2021/22 Reduction]]+T_DataComboFile[[#This Row],[2021/22 Increase]]","v":0},{"$f":"T_DataComboFile[[#This Row],[2022/23 Baseline]]+T_DataComboFile[[#This Row],[2022/23 Reduction]]+T_DataComboFile[[#This Row],[2022/23 Increase]]","v":0},{"$f":"T_DataComboFile[[#This Row],[2023/24 Baseline]]+T_DataComboFile[[#This Row],[2023/24 Reduction]]+T_DataComboFile[[#This Row],[2023/24 Increase]]","v":0}]
["NAT|Employee social benefits","36|Other transfers to households","2021_22","ENE2020",36,2,3,17325,70670,36,2,3,17325,"070670","36|02|03",1,2,10,53,57,"01|02|10|53|57","National","Small Business Development","Sector Policy and Research","International Relations","Employee social benefits","Current","Transfers and subsidies","Households","Other transfers to households","Other transfers to households","Economic development","Industrialisation and exports","NAT",0,0,100,0,0,0,0,0,0,0,0,0,0,1,null,{"$f":"IF(T_DataComboFile[[#This Row],[G&S reporting level indicator]]=1,$AX$16,\"Not applicable\")","v":"Level 3"},{"$f":"IF(AND($AX$16=\"Level 3\",T_DataComboFile[[#This Row],[Econ3]] = \"Goods and services\"),IF(T_DataComboFile[[#This Row],[Econ4]] = T_DataComboFile[[#This Row],[Econ3]],1,0),IF(AND($AX$16=\"Level 4\",T_DataComboFile[[#This Row],[Econ4]] = \"Goods and services\"),0,1))","v":1},{"$f":"T_DataComboFile[[#This Row],[2016/17_Source]]*T_DataComboFile[[#This Row],[G&S reporting level indicator]]","v":0},{"$f":"T_DataComboFile[[#This Row],[2017/18_Source]]*T_DataComboFile[[#This Row],[G&S reporting level indicator]]","v":0},{"$f":"T_DataComboFile[[#This Row],[2018/19_Source]]*T_DataComboFile[[#This Row],[G&S reporting level indicator]]","v":100},{"$f":"T_DataComboFile[[#This Row],[2019/20 Main appropriation_Source]]*T_DataComboFile[[#This Row],[G&S reporting level indicator]]","v":0},{"$f":"T_DataComboFile[[#This Row],[2019/20 Adjusted appropriation_Source]]*T_DataComboFile[[#This Row],[G&S reporting level indicator]]","v":0},{"$f":"T_DataComboFile[[#This Row],[2019/20 Revised estimate_Source]]*T_DataComboFile[[#This Row],[G&S reporting level indicator]]","v":0},{"$f":"T_DataComboFile[[#This Row],[2019/20 Preliminary outcome_Source]]*T_DataComboFile[[#This Row],[G&S reporting level indicator]]","v":0},{"$f":"T_DataComboFile[[#This Row],[2020/21 Original_Source]]*T_DataComboFile[[#This Row],[G&S reporting level indicator]]","v":0},{"$f":"T_DataComboFile[[#This Row],[2020/21 SAB_Source]]*T_DataComboFile[[#This Row],[G&S reporting level indicator]]","v":0},{"$f":"T_DataComboFile[[#This Row],[2020/21 Baseline_Source]]*T_DataComboFile[[#This Row],[G&S reporting level indicator]]","v":0},{"$f":"T_DataComboFile[[#This Row],[2021/22 Baseline_Source]]*T_DataComboFile[[#This Row],[G&S reporting level indicator]]","v":0},{"$f":"T_DataComboFile[[#This Row],[2022/23 Baseline_Source]]*T_DataComboFile[[#This Row],[G&S reporting level indicator]]","v":0},{"$f":"T_DataComboFile[[#This Row],[2023/24 Baseline_Source]]*T_DataComboFile[[#This Row],[G&S reporting level indicator]]","v":0},null,null,null,null,null,null,{"$f":"T_DataComboFile[[#This Row],[2021/22 Baseline]]+T_DataComboFile[[#This Row],[2021/22 Reduction]]+T_DataComboFile[[#This Row],[2021/22 Increase]]","v":0},{"$f":"T_DataComboFile[[#This Row],[2022/23 Baseline]]+T_DataComboFile[[#This Row],[2022/23 Reduction]]+T_DataComboFile[[#This Row],[2022/23 Increase]]","v":0},{"$f":"T_DataComboFile[[#This Row],[2023/24 Baseline]]+T_DataComboFile[[#This Row],[2023/24 Reduction]]+T_DataComboFile[[#This Row],[2023/24 Increase]]","v":0}]
[null,null,"2021_22","ENE2020",36,2,3,null,70671,36,2,3,null,"070671","36|02|03",2,2,4,43,43,"02|02|04|43|43","National","Small Business Development","Sector Policy and Research","International Relations",null,"Capital","Transfers and subsidies","Provinces and municipalities","Provinces","Provincial Revenue Funds",null,null,null,0,0,0,0,0,0,0,0,0,0,0,0,0,0,null,{"$f":"IF(T_DataComboFile[[#This Row],[G&S reporting level indicator]]=1,$AX$16,\"Not applicable\")","v":"Level 3"},{"$f":"IF(AND($AX$16=\"Level 3\",T_DataComboFile[[#This Row],[Econ3]] = \"Goods and services\"),IF(T_DataComboFile[[#This Row],[Econ4]] = T_DataComboFile[[#This Row],[Econ3]],1,0),IF(AND($AX$16=\"Level 4\",T_DataComboFile[[#This Row],[Econ4]] = \"Goods and services\"),0,1))","v":1},{"$f":"T_DataComboFile[[#This Row],[2016/17_Source]]*T_DataComboFile[[#This Row],[G&S reporting level indicator]]","v":0},{"$f":"T_DataComboFile[[#This Row],[2017/18_Source]]*T_DataComboFile[[#This Row],[G&S reporting level indicator]]","v":0},{"$f":"T_DataComboFile[[#This Row],[2018/19_Source]]*T_DataComboFile[[#This Row],[G&S reporting level indicator]]","v":0},{"$f":"T_DataComboFile[[#This Row],[2019/20 Main appropriation_Source]]*T_DataComboFile[[#This Row],[G&S reporting level indicator]]","v":0},{"$f":"T_DataComboFile[[#This Row],[2019/20 Adjusted appropriation_Source]]*T_DataComboFile[[#This Row],[G&S reporting level indicator]]","v":0},{"$f":"T_DataComboFile[[#This Row],[2019/20 Revised estimate_Source]]*T_DataComboFile[[#This Row],[G&S reporting level indicator]]","v":0},{"$f":"T_DataComboFile[[#This Row],[2019/20 Preliminary outcome_Source]]*T_DataComboFile[[#This Row],[G&S reporting level indicator]]","v":0},{"$f":"T_DataComboFile[[#This Row],[2020/21 Original_Source]]*T_DataComboFile[[#This Row],[G&S reporting level indicator]]","v":0},{"$f":"T_DataComboFile[[#This Row],[2020/21 SAB_Source]]*T_DataComboFile[[#This Row],[G&S reporting level indicator]]","v":0},{"$f":"T_DataComboFile[[#This Row],[2020/21 Baseline_Source]]*T_DataComboFile[[#This Row],[G&S reporting level indicator]]","v":0},{"$f":"T_DataComboFile[[#This Row],[2021/22 Baseline_Source]]*T_DataComboFile[[#This Row],[G&S reporting level indicator]]","v":0},{"$f":"T_DataComboFile[[#This Row],[2022/23 Baseline_Source]]*T_DataComboFile[[#This Row],[G&S reporting level indicator]]","v":0},{"$f":"T_DataComboFile[[#This Row],[2023/24 Baseline_Source]]*T_DataComboFile[[#This Row],[G&S reporting level indicator]]","v":0},null,null,null,null,null,null,{"$f":"T_DataComboFile[[#This Row],[2021/22 Baseline]]+T_DataComboFile[[#This Row],[2021/22 Reduction]]+T_DataComboFile[[#This Row],[2021/22 Increase]]","v":0},{"$f":"T_DataComboFile[[#This Row],[2022/23 Baseline]]+T_DataComboFile[[#This Row],[2022/23 Reduction]]+T_DataComboFile[[#This Row],[2022/23 Increase]]","v":0},{"$f":"T_DataComboFile[[#This Row],[2023/24 Baseline]]+T_DataComboFile[[#This Row],[2023/24 Reduction]]+T_DataComboFile[[#This Row],[2023/24 Increase]]","v":0}]
[null,null,"2021_22","ENE2020",36,2,3,null,70672,36,2,3,null,"070672","36|02|03",2,2,4,44,45,"02|02|04|44|45","National","Small Business Development","Sector Policy and Research","International Relations",null,"Capital","Transfers and subsidies","Provinces and municipalities","Municipalities","Municipal bank accounts",null,null,null,0,0,0,0,0,0,0,0,0,0,0,0,0,0,null,{"$f":"IF(T_DataComboFile[[#This Row],[G&S reporting level indicator]]=1,$AX$16,\"Not applicable\")","v":"Level 3"},{"$f":"IF(AND($AX$16=\"Level 3\",T_DataComboFile[[#This Row],[Econ3]] = \"Goods and services\"),IF(T_DataComboFile[[#This Row],[Econ4]] = T_DataComboFile[[#This Row],[Econ3]],1,0),IF(AND($AX$16=\"Level 4\",T_DataComboFile[[#This Row],[Econ4]] = \"Goods and services\"),0,1))","v":1},{"$f":"T_DataComboFile[[#This Row],[2016/17_Source]]*T_DataComboFile[[#This Row],[G&S reporting level indicator]]","v":0},{"$f":"T_DataComboFile[[#This Row],[2017/18_Source]]*T_DataComboFile[[#This Row],[G&S reporting level indicator]]","v":0},{"$f":"T_DataComboFile[[#This Row],[2018/19_Source]]*T_DataComboFile[[#This Row],[G&S reporting level indicator]]","v":0},{"$f":"T_DataComboFile[[#This Row],[2019/20 Main appropriation_Source]]*T_DataComboFile[[#This Row],[G&S reporting level indicator]]","v":0},{"$f":"T_DataComboFile[[#This Row],[2019/20 Adjusted appropriation_Source]]*T_DataComboFile[[#This Row],[G&S reporting level indicator]]","v":0},{"$f":"T_DataComboFile[[#This Row],[2019/20 Revised estimate_Source]]*T_DataComboFile[[#This Row],[G&S reporting level indicator]]","v":0},{"$f":"T_DataComboFile[[#This Row],[2019/20 Preliminary outcome_Source]]*T_DataComboFile[[#This Row],[G&S reporting level indicator]]","v":0},{"$f":"T_DataComboFile[[#This Row],[2020/21 Original_Source]]*T_DataComboFile[[#This Row],[G&S reporting level indicator]]","v":0},{"$f":"T_DataComboFile[[#This Row],[2020/21 SAB_Source]]*T_DataComboFile[[#This Row],[G&S reporting level indicator]]","v":0},{"$f":"T_DataComboFile[[#This Row],[2020/21 Baseline_Source]]*T_DataComboFile[[#This Row],[G&S reporting level indicator]]","v":0},{"$f":"T_DataComboFile[[#This Row],[2021/22 Baseline_Source]]*T_DataComboFile[[#This Row],[G&S reporting level indicator]]","v":0},{"$f":"T_DataComboFile[[#This Row],[2022/23 Baseline_Source]]*T_DataComboFile[[#This Row],[G&S reporting level indicator]]","v":0},{"$f":"T_DataComboFile[[#This Row],[2023/24 Baseline_Source]]*T_DataComboFile[[#This Row],[G&S reporting level indicator]]","v":0},null,null,null,null,null,null,{"$f":"T_DataComboFile[[#This Row],[2021/22 Baseline]]+T_DataComboFile[[#This Row],[2021/22 Reduction]]+T_DataComboFile[[#This Row],[2021/22 Increase]]","v":0},{"$f":"T_DataComboFile[[#This Row],[2022/23 Baseline]]+T_DataComboFile[[#This Row],[2022/23 Reduction]]+T_DataComboFile[[#This Row],[2022/23 Increase]]","v":0},{"$f":"T_DataComboFile[[#This Row],[2023/24 Baseline]]+T_DataComboFile[[#This Row],[2023/24 Reduction]]+T_DataComboFile[[#This Row],[2023/24 Increase]]","v":0}]
[null,null,"2021_22","ENE2020",36,2,3,null,70673,36,2,3,null,"070673","36|02|03",2,2,5,46,48,"02|02|05|46|48","National","Small Business Development","Sector Policy and Research","International Relations",null,"Capital","Transfers and subsidies","Departmental agencies and accounts","Departmental agencies (non-business entities)","Departmental agencies (non-business entities)",null,null,null,0,0,0,0,0,0,0,0,0,0,0,0,0,0,null,{"$f":"IF(T_DataComboFile[[#This Row],[G&S reporting level indicator]]=1,$AX$16,\"Not applicable\")","v":"Level 3"},{"$f":"IF(AND($AX$16=\"Level 3\",T_DataComboFile[[#This Row],[Econ3]] = \"Goods and services\"),IF(T_DataComboFile[[#This Row],[Econ4]] = T_DataComboFile[[#This Row],[Econ3]],1,0),IF(AND($AX$16=\"Level 4\",T_DataComboFile[[#This Row],[Econ4]] = \"Goods and services\"),0,1))","v":1},{"$f":"T_DataComboFile[[#This Row],[2016/17_Source]]*T_DataComboFile[[#This Row],[G&S reporting level indicator]]","v":0},{"$f":"T_DataComboFile[[#This Row],[2017/18_Source]]*T_DataComboFile[[#This Row],[G&S reporting level indicator]]","v":0},{"$f":"T_DataComboFile[[#This Row],[2018/19_Source]]*T_DataComboFile[[#This Row],[G&S reporting level indicator]]","v":0},{"$f":"T_DataComboFile[[#This Row],[2019/20 Main appropriation_Source]]*T_DataComboFile[[#This Row],[G&S reporting level indicator]]","v":0},{"$f":"T_DataComboFile[[#This Row],[2019/20 Adjusted appropriation_Source]]*T_DataComboFile[[#This Row],[G&S reporting level indicator]]","v":0},{"$f":"T_DataComboFile[[#This Row],[2019/20 Revised estimate_Source]]*T_DataComboFile[[#This Row],[G&S reporting level indicator]]","v":0},{"$f":"T_DataComboFile[[#This Row],[2019/20 Preliminary outcome_Source]]*T_DataComboFile[[#This Row],[G&S reporting level indicator]]","v":0},{"$f":"T_DataComboFile[[#This Row],[2020/21 Original_Source]]*T_DataComboFile[[#This Row],[G&S reporting level indicator]]","v":0},{"$f":"T_DataComboFile[[#This Row],[2020/21 SAB_Source]]*T_DataComboFile[[#This Row],[G&S reporting level indicator]]","v":0},{"$f":"T_DataComboFile[[#This Row],[2020/21 Baseline_Source]]*T_DataComboFile[[#This Row],[G&S reporting level indicator]]","v":0},{"$f":"T_DataComboFile[[#This Row],[2021/22 Baseline_Source]]*T_DataComboFile[[#This Row],[G&S reporting level indicator]]","v":0},{"$f":"T_DataComboFile[[#This Row],[2022/23 Baseline_Source]]*T_DataComboFile[[#This Row],[G&S reporting level indicator]]","v":0},{"$f":"T_DataComboFile[[#This Row],[2023/24 Baseline_Source]]*T_DataComboFile[[#This Row],[G&S reporting level indicator]]","v":0},null,null,null,null,null,null,{"$f":"T_DataComboFile[[#This Row],[2021/22 Baseline]]+T_DataComboFile[[#This Row],[2021/22 Reduction]]+T_DataComboFile[[#This Row],[2021/22 Increase]]","v":0},{"$f":"T_DataComboFile[[#This Row],[2022/23 Baseline]]+T_DataComboFile[[#This Row],[2022/23 Reduction]]+T_DataComboFile[[#This Row],[2022/23 Increase]]","v":0},{"$f":"T_DataComboFile[[#This Row],[2023/24 Baseline]]+T_DataComboFile[[#This Row],[2023/24 Reduction]]+T_DataComboFile[[#This Row],[2023/24 Increase]]","v":0}]
[null,null,"2021_22","ENE2020",36,2,3,null,70674,36,2,3,null,"070674","36|02|03",2,2,6,47,49,"02|02|06|47|49","National","Small Business Development","Sector Policy and Research","International Relations",null,"Capital","Transfers and subsidies","Higher education institutions","Higher education institutions","Higher education institutions",null,null,null,0,0,0,0,0,0,0,0,0,0,0,0,0,0,null,{"$f":"IF(T_DataComboFile[[#This Row],[G&S reporting level indicator]]=1,$AX$16,\"Not applicable\")","v":"Level 3"},{"$f":"IF(AND($AX$16=\"Level 3\",T_DataComboFile[[#This Row],[Econ3]] = \"Goods and services\"),IF(T_DataComboFile[[#This Row],[Econ4]] = T_DataComboFile[[#This Row],[Econ3]],1,0),IF(AND($AX$16=\"Level 4\",T_DataComboFile[[#This Row],[Econ4]] = \"Goods and services\"),0,1))","v":1},{"$f":"T_DataComboFile[[#This Row],[2016/17_Source]]*T_DataComboFile[[#This Row],[G&S reporting level indicator]]","v":0},{"$f":"T_DataComboFile[[#This Row],[2017/18_Source]]*T_DataComboFile[[#This Row],[G&S reporting level indicator]]","v":0},{"$f":"T_DataComboFile[[#This Row],[2018/19_Source]]*T_DataComboFile[[#This Row],[G&S reporting level indicator]]","v":0},{"$f":"T_DataComboFile[[#This Row],[2019/20 Main appropriation_Source]]*T_DataComboFile[[#This Row],[G&S reporting level indicator]]","v":0},{"$f":"T_DataComboFile[[#This Row],[2019/20 Adjusted appropriation_Source]]*T_DataComboFile[[#This Row],[G&S reporting level indicator]]","v":0},{"$f":"T_DataComboFile[[#This Row],[2019/20 Revised estimate_Source]]*T_DataComboFile[[#This Row],[G&S reporting level indicator]]","v":0},{"$f":"T_DataComboFile[[#This Row],[2019/20 Preliminary outcome_Source]]*T_DataComboFile[[#This Row],[G&S reporting level indicator]]","v":0},{"$f":"T_DataComboFile[[#This Row],[2020/21 Original_Source]]*T_DataComboFile[[#This Row],[G&S reporting level indicator]]","v":0},{"$f":"T_DataComboFile[[#This Row],[2020/21 SAB_Source]]*T_DataComboFile[[#This Row],[G&S reporting level indicator]]","v":0},{"$f":"T_DataComboFile[[#This Row],[2020/21 Baseline_Source]]*T_DataComboFile[[#This Row],[G&S reporting level indicator]]","v":0},{"$f":"T_DataComboFile[[#This Row],[2021/22 Baseline_Source]]*T_DataComboFile[[#This Row],[G&S reporting level indicator]]","v":0},{"$f":"T_DataComboFile[[#This Row],[2022/23 Baseline_Source]]*T_DataComboFile[[#This Row],[G&S reporting level indicator]]","v":0},{"$f":"T_DataComboFile[[#This Row],[2023/24 Baseline_Source]]*T_DataComboFile[[#This Row],[G&S reporting level indicator]]","v":0},null,null,null,null,null,null,{"$f":"T_DataComboFile[[#This Row],[2021/22 Baseline]]+T_DataComboFile[[#This Row],[2021/22 Reduction]]+T_DataComboFile[[#This Row],[2021/22 Increase]]","v":0},{"$f":"T_DataComboFile[[#This Row],[2022/23 Baseline]]+T_DataComboFile[[#This Row],[2022/23 Reduction]]+T_DataComboFile[[#This Row],[2022/23 Increase]]","v":0},{"$f":"T_DataComboFile[[#This Row],[2023/24 Baseline]]+T_DataComboFile[[#This Row],[2023/24 Reduction]]+T_DataComboFile[[#This Row],[2023/24 Increase]]","v":0}]
[null,null,"2021_22","ENE2020",36,2,3,null,70675,36,2,3,null,"070675","36|02|03",2,2,7,48,50,"02|02|07|48|50","National","Small Business Development","Sector Policy and Research","International Relations",null,"Capital","Transfers and subsidies","Foreign governments and international organisations","Foreign governments and international organisations","Foreign governments and international organisations",null,null,null,0,0,0,0,0,0,0,0,0,0,0,0,0,0,null,{"$f":"IF(T_DataComboFile[[#This Row],[G&S reporting level indicator]]=1,$AX$16,\"Not applicable\")","v":"Level 3"},{"$f":"IF(AND($AX$16=\"Level 3\",T_DataComboFile[[#This Row],[Econ3]] = \"Goods and services\"),IF(T_DataComboFile[[#This Row],[Econ4]] = T_DataComboFile[[#This Row],[Econ3]],1,0),IF(AND($AX$16=\"Level 4\",T_DataComboFile[[#This Row],[Econ4]] = \"Goods and services\"),0,1))","v":1},{"$f":"T_DataComboFile[[#This Row],[2016/17_Source]]*T_DataComboFile[[#This Row],[G&S reporting level indicator]]","v":0},{"$f":"T_DataComboFile[[#This Row],[2017/18_Source]]*T_DataComboFile[[#This Row],[G&S reporting level indicator]]","v":0},{"$f":"T_DataComboFile[[#This Row],[2018/19_Source]]*T_DataComboFile[[#This Row],[G&S reporting level indicator]]","v":0},{"$f":"T_DataComboFile[[#This Row],[2019/20 Main appropriation_Source]]*T_DataComboFile[[#This Row],[G&S reporting level indicator]]","v":0},{"$f":"T_DataComboFile[[#This Row],[2019/20 Adjusted appropriation_Source]]*T_DataComboFile[[#This Row],[G&S reporting level indicator]]","v":0},{"$f":"T_DataComboFile[[#This Row],[2019/20 Revised estimate_Source]]*T_DataComboFile[[#This Row],[G&S reporting level indicator]]","v":0},{"$f":"T_DataComboFile[[#This Row],[2019/20 Preliminary outcome_Source]]*T_DataComboFile[[#This Row],[G&S reporting level indicator]]","v":0},{"$f":"T_DataComboFile[[#This Row],[2020/21 Original_Source]]*T_DataComboFile[[#This Row],[G&S reporting level indicator]]","v":0},{"$f":"T_DataComboFile[[#This Row],[2020/21 SAB_Source]]*T_DataComboFile[[#This Row],[G&S reporting level indicator]]","v":0},{"$f":"T_DataComboFile[[#This Row],[2020/21 Baseline_Source]]*T_DataComboFile[[#This Row],[G&S reporting level indicator]]","v":0},{"$f":"T_DataComboFile[[#This Row],[2021/22 Baseline_Source]]*T_DataComboFile[[#This Row],[G&S reporting level indicator]]","v":0},{"$f":"T_DataComboFile[[#This Row],[2022/23 Baseline_Source]]*T_DataComboFile[[#This Row],[G&S reporting level indicator]]","v":0},{"$f":"T_DataComboFile[[#This Row],[2023/24 Baseline_Source]]*T_DataComboFile[[#This Row],[G&S reporting level indicator]]","v":0},null,null,null,null,null,null,{"$f":"T_DataComboFile[[#This Row],[2021/22 Baseline]]+T_DataComboFile[[#This Row],[2021/22 Reduction]]+T_DataComboFile[[#This Row],[2021/22 Increase]]","v":0},{"$f":"T_DataComboFile[[#This Row],[2022/23 Baseline]]+T_DataComboFile[[#This Row],[2022/23 Reduction]]+T_DataComboFile[[#This Row],[2022/23 Increase]]","v":0},{"$f":"T_DataComboFile[[#This Row],[2023/24 Baseline]]+T_DataComboFile[[#This Row],[2023/24 Reduction]]+T_DataComboFile[[#This Row],[2023/24 Increase]]","v":0}]
[null,null,"2021_22","ENE2020",36,2,3,null,70676,36,2,3,null,"070676","36|02|03",2,2,8,49,51,"02|02|08|49|51","National","Small Business Development","Sector Policy and Research","International Relations",null,"Capital","Transfers and subsidies","Public corporations and private enterprises","Public corporations","Subsidies on products and production (pc)",null,null,null,0,0,0,0,0,0,0,0,0,0,0,0,0,0,null,{"$f":"IF(T_DataComboFile[[#This Row],[G&S reporting level indicator]]=1,$AX$16,\"Not applicable\")","v":"Level 3"},{"$f":"IF(AND($AX$16=\"Level 3\",T_DataComboFile[[#This Row],[Econ3]] = \"Goods and services\"),IF(T_DataComboFile[[#This Row],[Econ4]] = T_DataComboFile[[#This Row],[Econ3]],1,0),IF(AND($AX$16=\"Level 4\",T_DataComboFile[[#This Row],[Econ4]] = \"Goods and services\"),0,1))","v":1},{"$f":"T_DataComboFile[[#This Row],[2016/17_Source]]*T_DataComboFile[[#This Row],[G&S reporting level indicator]]","v":0},{"$f":"T_DataComboFile[[#This Row],[2017/18_Source]]*T_DataComboFile[[#This Row],[G&S reporting level indicator]]","v":0},{"$f":"T_DataComboFile[[#This Row],[2018/19_Source]]*T_DataComboFile[[#This Row],[G&S reporting level indicator]]","v":0},{"$f":"T_DataComboFile[[#This Row],[2019/20 Main appropriation_Source]]*T_DataComboFile[[#This Row],[G&S reporting level indicator]]","v":0},{"$f":"T_DataComboFile[[#This Row],[2019/20 Adjusted appropriation_Source]]*T_DataComboFile[[#This Row],[G&S reporting level indicator]]","v":0},{"$f":"T_DataComboFile[[#This Row],[2019/20 Revised estimate_Source]]*T_DataComboFile[[#This Row],[G&S reporting level indicator]]","v":0},{"$f":"T_DataComboFile[[#This Row],[2019/20 Preliminary outcome_Source]]*T_DataComboFile[[#This Row],[G&S reporting level indicator]]","v":0},{"$f":"T_DataComboFile[[#This Row],[2020/21 Original_Source]]*T_DataComboFile[[#This Row],[G&S reporting level indicator]]","v":0},{"$f":"T_DataComboFile[[#This Row],[2020/21 SAB_Source]]*T_DataComboFile[[#This Row],[G&S reporting level indicator]]","v":0},{"$f":"T_DataComboFile[[#This Row],[2020/21 Baseline_Source]]*T_DataComboFile[[#This Row],[G&S reporting level indicator]]","v":0},{"$f":"T_DataComboFile[[#This Row],[2021/22 Baseline_Source]]*T_DataComboFile[[#This Row],[G&S reporting level indicator]]","v":0},{"$f":"T_DataComboFile[[#This Row],[2022/23 Baseline_Source]]*T_DataComboFile[[#This Row],[G&S reporting level indicator]]","v":0},{"$f":"T_DataComboFile[[#This Row],[2023/24 Baseline_Source]]*T_DataComboFile[[#This Row],[G&S reporting level indicator]]","v":0},null,null,null,null,null,null,{"$f":"T_DataComboFile[[#This Row],[2021/22 Baseline]]+T_DataComboFile[[#This Row],[2021/22 Reduction]]+T_DataComboFile[[#This Row],[2021/22 Increase]]","v":0},{"$f":"T_DataComboFile[[#This Row],[2022/23 Baseline]]+T_DataComboFile[[#This Row],[2022/23 Reduction]]+T_DataComboFile[[#This Row],[2022/23 Increase]]","v":0},{"$f":"T_DataComboFile[[#This Row],[2023/24 Baseline]]+T_DataComboFile[[#This Row],[2023/24 Reduction]]+T_DataComboFile[[#This Row],[2023/24 Increase]]","v":0}]
[null,null,"2021_22","ENE2020",36,2,3,null,70677,36,2,3,null,"070677","36|02|03",2,2,8,49,52,"02|02|08|49|52","National","Small Business Development","Sector Policy and Research","International Relations",null,"Capital","Transfers and subsidies","Public corporations and private enterprises","Public corporations","Other transfers to public corporations",null,null,null,0,0,0,0,0,0,0,0,0,0,0,0,0,0,null,{"$f":"IF(T_DataComboFile[[#This Row],[G&S reporting level indicator]]=1,$AX$16,\"Not applicable\")","v":"Level 3"},{"$f":"IF(AND($AX$16=\"Level 3\",T_DataComboFile[[#This Row],[Econ3]] = \"Goods and services\"),IF(T_DataComboFile[[#This Row],[Econ4]] = T_DataComboFile[[#This Row],[Econ3]],1,0),IF(AND($AX$16=\"Level 4\",T_DataComboFile[[#This Row],[Econ4]] = \"Goods and services\"),0,1))","v":1},{"$f":"T_DataComboFile[[#This Row],[2016/17_Source]]*T_DataComboFile[[#This Row],[G&S reporting level indicator]]","v":0},{"$f":"T_DataComboFile[[#This Row],[2017/18_Source]]*T_DataComboFile[[#This Row],[G&S reporting level indicator]]","v":0},{"$f":"T_DataComboFile[[#This Row],[2018/19_Source]]*T_DataComboFile[[#This Row],[G&S reporting level indicator]]","v":0},{"$f":"T_DataComboFile[[#This Row],[2019/20 Main appropriation_Source]]*T_DataComboFile[[#This Row],[G&S reporting level indicator]]","v":0},{"$f":"T_DataComboFile[[#This Row],[2019/20 Adjusted appropriation_Source]]*T_DataComboFile[[#This Row],[G&S reporting level indicator]]","v":0},{"$f":"T_DataComboFile[[#This Row],[2019/20 Revised estimate_Source]]*T_DataComboFile[[#This Row],[G&S reporting level indicator]]","v":0},{"$f":"T_DataComboFile[[#This Row],[2019/20 Preliminary outcome_Source]]*T_DataComboFile[[#This Row],[G&S reporting level indicator]]","v":0},{"$f":"T_DataComboFile[[#This Row],[2020/21 Original_Source]]*T_DataComboFile[[#This Row],[G&S reporting level indicator]]","v":0},{"$f":"T_DataComboFile[[#This Row],[2020/21 SAB_Source]]*T_DataComboFile[[#This Row],[G&S reporting level indicator]]","v":0},{"$f":"T_DataComboFile[[#This Row],[2020/21 Baseline_Source]]*T_DataComboFile[[#This Row],[G&S reporting level indicator]]","v":0},{"$f":"T_DataComboFile[[#This Row],[2021/22 Baseline_Source]]*T_DataComboFile[[#This Row],[G&S reporting level indicator]]","v":0},{"$f":"T_DataComboFile[[#This Row],[2022/23 Baseline_Source]]*T_DataComboFile[[#This Row],[G&S reporting level indicator]]","v":0},{"$f":"T_DataComboFile[[#This Row],[2023/24 Baseline_Source]]*T_DataComboFile[[#This Row],[G&S reporting level indicator]]","v":0},null,null,null,null,null,null,{"$f":"T_DataComboFile[[#This Row],[2021/22 Baseline]]+T_DataComboFile[[#This Row],[2021/22 Reduction]]+T_DataComboFile[[#This Row],[2021/22 Increase]]","v":0},{"$f":"T_DataComboFile[[#This Row],[2022/23 Baseline]]+T_DataComboFile[[#This Row],[2022/23 Reduction]]+T_DataComboFile[[#This Row],[2022/23 Increase]]","v":0},{"$f":"T_DataComboFile[[#This Row],[2023/24 Baseline]]+T_DataComboFile[[#This Row],[2023/24 Reduction]]+T_DataComboFile[[#This Row],[2023/24 Increase]]","v":0}]
[null,null,"2021_22","ENE2020",36,2,3,null,70678,36,2,3,null,"070678","36|02|03",2,2,8,50,54,"02|02|08|50|54","National","Small Business Development","Sector Policy and Research","International Relations",null,"Capital","Transfers and subsidies","Public corporations and private enterprises","Private enterprises","Other transfers to private enterprises",null,null,null,0,0,0,0,0,0,0,0,0,0,0,0,0,0,null,{"$f":"IF(T_DataComboFile[[#This Row],[G&S reporting level indicator]]=1,$AX$16,\"Not applicable\")","v":"Level 3"},{"$f":"IF(AND($AX$16=\"Level 3\",T_DataComboFile[[#This Row],[Econ3]] = \"Goods and services\"),IF(T_DataComboFile[[#This Row],[Econ4]] = T_DataComboFile[[#This Row],[Econ3]],1,0),IF(AND($AX$16=\"Level 4\",T_DataComboFile[[#This Row],[Econ4]] = \"Goods and services\"),0,1))","v":1},{"$f":"T_DataComboFile[[#This Row],[2016/17_Source]]*T_DataComboFile[[#This Row],[G&S reporting level indicator]]","v":0},{"$f":"T_DataComboFile[[#This Row],[2017/18_Source]]*T_DataComboFile[[#This Row],[G&S reporting level indicator]]","v":0},{"$f":"T_DataComboFile[[#This Row],[2018/19_Source]]*T_DataComboFile[[#This Row],[G&S reporting level indicator]]","v":0},{"$f":"T_DataComboFile[[#This Row],[2019/20 Main appropriation_Source]]*T_DataComboFile[[#This Row],[G&S reporting level indicator]]","v":0},{"$f":"T_DataComboFile[[#This Row],[2019/20 Adjusted appropriation_Source]]*T_DataComboFile[[#This Row],[G&S reporting level indicator]]","v":0},{"$f":"T_DataComboFile[[#This Row],[2019/20 Revised estimate_Source]]*T_DataComboFile[[#This Row],[G&S reporting level indicator]]","v":0},{"$f":"T_DataComboFile[[#This Row],[2019/20 Preliminary outcome_Source]]*T_DataComboFile[[#This Row],[G&S reporting level indicator]]","v":0},{"$f":"T_DataComboFile[[#This Row],[2020/21 Original_Source]]*T_DataComboFile[[#This Row],[G&S reporting level indicator]]","v":0},{"$f":"T_DataComboFile[[#This Row],[2020/21 SAB_Source]]*T_DataComboFile[[#This Row],[G&S reporting level indicator]]","v":0},{"$f":"T_DataComboFile[[#This Row],[2020/21 Baseline_Source]]*T_DataComboFile[[#This Row],[G&S reporting level indicator]]","v":0},{"$f":"T_DataComboFile[[#This Row],[2021/22 Baseline_Source]]*T_DataComboFile[[#This Row],[G&S reporting level indicator]]","v":0},{"$f":"T_DataComboFile[[#This Row],[2022/23 Baseline_Source]]*T_DataComboFile[[#This Row],[G&S reporting level indicator]]","v":0},{"$f":"T_DataComboFile[[#This Row],[2023/24 Baseline_Source]]*T_DataComboFile[[#This Row],[G&S reporting level indicator]]","v":0},null,null,null,null,null,null,{"$f":"T_DataComboFile[[#This Row],[2021/22 Baseline]]+T_DataComboFile[[#This Row],[2021/22 Reduction]]+T_DataComboFile[[#This Row],[2021/22 Increase]]","v":0},{"$f":"T_DataComboFile[[#This Row],[2022/23 Baseline]]+T_DataComboFile[[#This Row],[2022/23 Reduction]]+T_DataComboFile[[#This Row],[2022/23 Increase]]","v":0},{"$f":"T_DataComboFile[[#This Row],[2023/24 Baseline]]+T_DataComboFile[[#This Row],[2023/24 Reduction]]+T_DataComboFile[[#This Row],[2023/24 Increase]]","v":0}]
[null,null,"2021_22","ENE2020",36,2,3,null,70679,36,2,3,null,"070679","36|02|03",2,2,9,51,55,"02|02|09|51|55","National","Small Business Development","Sector Policy and Research","International Relations",null,"Capital","Transfers and subsidies","Non-profit institutions","Non-profit institutions","Non-profit institutions",null,null,null,0,0,0,0,0,0,0,0,0,0,0,0,0,0,null,{"$f":"IF(T_DataComboFile[[#This Row],[G&S reporting level indicator]]=1,$AX$16,\"Not applicable\")","v":"Level 3"},{"$f":"IF(AND($AX$16=\"Level 3\",T_DataComboFile[[#This Row],[Econ3]] = \"Goods and services\"),IF(T_DataComboFile[[#This Row],[Econ4]] = T_DataComboFile[[#This Row],[Econ3]],1,0),IF(AND($AX$16=\"Level 4\",T_DataComboFile[[#This Row],[Econ4]] = \"Goods and services\"),0,1))","v":1},{"$f":"T_DataComboFile[[#This Row],[2016/17_Source]]*T_DataComboFile[[#This Row],[G&S reporting level indicator]]","v":0},{"$f":"T_DataComboFile[[#This Row],[2017/18_Source]]*T_DataComboFile[[#This Row],[G&S reporting level indicator]]","v":0},{"$f":"T_DataComboFile[[#This Row],[2018/19_Source]]*T_DataComboFile[[#This Row],[G&S reporting level indicator]]","v":0},{"$f":"T_DataComboFile[[#This Row],[2019/20 Main appropriation_Source]]*T_DataComboFile[[#This Row],[G&S reporting level indicator]]","v":0},{"$f":"T_DataComboFile[[#This Row],[2019/20 Adjusted appropriation_Source]]*T_DataComboFile[[#This Row],[G&S reporting level indicator]]","v":0},{"$f":"T_DataComboFile[[#This Row],[2019/20 Revised estimate_Source]]*T_DataComboFile[[#This Row],[G&S reporting level indicator]]","v":0},{"$f":"T_DataComboFile[[#This Row],[2019/20 Preliminary outcome_Source]]*T_DataComboFile[[#This Row],[G&S reporting level indicator]]","v":0},{"$f":"T_DataComboFile[[#This Row],[2020/21 Original_Source]]*T_DataComboFile[[#This Row],[G&S reporting level indicator]]","v":0},{"$f":"T_DataComboFile[[#This Row],[2020/21 SAB_Source]]*T_DataComboFile[[#This Row],[G&S reporting level indicator]]","v":0},{"$f":"T_DataComboFile[[#This Row],[2020/21 Baseline_Source]]*T_DataComboFile[[#This Row],[G&S reporting level indicator]]","v":0},{"$f":"T_DataComboFile[[#This Row],[2021/22 Baseline_Source]]*T_DataComboFile[[#This Row],[G&S reporting level indicator]]","v":0},{"$f":"T_DataComboFile[[#This Row],[2022/23 Baseline_Source]]*T_DataComboFile[[#This Row],[G&S reporting level indicator]]","v":0},{"$f":"T_DataComboFile[[#This Row],[2023/24 Baseline_Source]]*T_DataComboFile[[#This Row],[G&S reporting level indicator]]","v":0},null,null,null,null,null,null,{"$f":"T_DataComboFile[[#This Row],[2021/22 Baseline]]+T_DataComboFile[[#This Row],[2021/22 Reduction]]+T_DataComboFile[[#This Row],[2021/22 Increase]]","v":0},{"$f":"T_DataComboFile[[#This Row],[2022/23 Baseline]]+T_DataComboFile[[#This Row],[2022/23 Reduction]]+T_DataComboFile[[#This Row],[2022/23 Increase]]","v":0},{"$f":"T_DataComboFile[[#This Row],[2023/24 Baseline]]+T_DataComboFile[[#This Row],[2023/24 Reduction]]+T_DataComboFile[[#This Row],[2023/24 Increase]]","v":0}]
[null,null,"2021_22","ENE2020",36,2,3,null,70680,36,2,3,null,"070680","36|02|03",2,2,10,53,57,"02|02|10|53|57","National","Small Business Development","Sector Policy and Research","International Relations",null,"Capital","Transfers and subsidies","Households","Other transfers to households","Other transfers to households",null,null,null,0,0,0,0,0,0,0,0,0,0,0,0,0,0,null,{"$f":"IF(T_DataComboFile[[#This Row],[G&S reporting level indicator]]=1,$AX$16,\"Not applicable\")","v":"Level 3"},{"$f":"IF(AND($AX$16=\"Level 3\",T_DataComboFile[[#This Row],[Econ3]] = \"Goods and services\"),IF(T_DataComboFile[[#This Row],[Econ4]] = T_DataComboFile[[#This Row],[Econ3]],1,0),IF(AND($AX$16=\"Level 4\",T_DataComboFile[[#This Row],[Econ4]] = \"Goods and services\"),0,1))","v":1},{"$f":"T_DataComboFile[[#This Row],[2016/17_Source]]*T_DataComboFile[[#This Row],[G&S reporting level indicator]]","v":0},{"$f":"T_DataComboFile[[#This Row],[2017/18_Source]]*T_DataComboFile[[#This Row],[G&S reporting level indicator]]","v":0},{"$f":"T_DataComboFile[[#This Row],[2018/19_Source]]*T_DataComboFile[[#This Row],[G&S reporting level indicator]]","v":0},{"$f":"T_DataComboFile[[#This Row],[2019/20 Main appropriation_Source]]*T_DataComboFile[[#This Row],[G&S reporting level indicator]]","v":0},{"$f":"T_DataComboFile[[#This Row],[2019/20 Adjusted appropriation_Source]]*T_DataComboFile[[#This Row],[G&S reporting level indicator]]","v":0},{"$f":"T_DataComboFile[[#This Row],[2019/20 Revised estimate_Source]]*T_DataComboFile[[#This Row],[G&S reporting level indicator]]","v":0},{"$f":"T_DataComboFile[[#This Row],[2019/20 Preliminary outcome_Source]]*T_DataComboFile[[#This Row],[G&S reporting level indicator]]","v":0},{"$f":"T_DataComboFile[[#This Row],[2020/21 Original_Source]]*T_DataComboFile[[#This Row],[G&S reporting level indicator]]","v":0},{"$f":"T_DataComboFile[[#This Row],[2020/21 SAB_Source]]*T_DataComboFile[[#This Row],[G&S reporting level indicator]]","v":0},{"$f":"T_DataComboFile[[#This Row],[2020/21 Baseline_Source]]*T_DataComboFile[[#This Row],[G&S reporting level indicator]]","v":0},{"$f":"T_DataComboFile[[#This Row],[2021/22 Baseline_Source]]*T_DataComboFile[[#This Row],[G&S reporting level indicator]]","v":0},{"$f":"T_DataComboFile[[#This Row],[2022/23 Baseline_Source]]*T_DataComboFile[[#This Row],[G&S reporting level indicator]]","v":0},{"$f":"T_DataComboFile[[#This Row],[2023/24 Baseline_Source]]*T_DataComboFile[[#This Row],[G&S reporting level indicator]]","v":0},null,null,null,null,null,null,{"$f":"T_DataComboFile[[#This Row],[2021/22 Baseline]]+T_DataComboFile[[#This Row],[2021/22 Reduction]]+T_DataComboFile[[#This Row],[2021/22 Increase]]","v":0},{"$f":"T_DataComboFile[[#This Row],[2022/23 Baseline]]+T_DataComboFile[[#This Row],[2022/23 Reduction]]+T_DataComboFile[[#This Row],[2022/23 Increase]]","v":0},{"$f":"T_DataComboFile[[#This Row],[2023/24 Baseline]]+T_DataComboFile[[#This Row],[2023/24 Reduction]]+T_DataComboFile[[#This Row],[2023/24 Increase]]","v":0}]
[null,null,"2021_22","ENE2020",36,2,3,null,70681,36,2,3,null,"070681","36|02|03",2,3,11,54,58,"02|03|11|54|58","National","Small Business Development","Sector Policy and Research","International Relations",null,"Capital","Payments for capital assets","Buildings and other fixed structures","Buildings","Buildings",null,null,null,0,0,0,0,0,0,0,0,0,0,0,0,0,0,null,{"$f":"IF(T_DataComboFile[[#This Row],[G&S reporting level indicator]]=1,$AX$16,\"Not applicable\")","v":"Level 3"},{"$f":"IF(AND($AX$16=\"Level 3\",T_DataComboFile[[#This Row],[Econ3]] = \"Goods and services\"),IF(T_DataComboFile[[#This Row],[Econ4]] = T_DataComboFile[[#This Row],[Econ3]],1,0),IF(AND($AX$16=\"Level 4\",T_DataComboFile[[#This Row],[Econ4]] = \"Goods and services\"),0,1))","v":1},{"$f":"T_DataComboFile[[#This Row],[2016/17_Source]]*T_DataComboFile[[#This Row],[G&S reporting level indicator]]","v":0},{"$f":"T_DataComboFile[[#This Row],[2017/18_Source]]*T_DataComboFile[[#This Row],[G&S reporting level indicator]]","v":0},{"$f":"T_DataComboFile[[#This Row],[2018/19_Source]]*T_DataComboFile[[#This Row],[G&S reporting level indicator]]","v":0},{"$f":"T_DataComboFile[[#This Row],[2019/20 Main appropriation_Source]]*T_DataComboFile[[#This Row],[G&S reporting level indicator]]","v":0},{"$f":"T_DataComboFile[[#This Row],[2019/20 Adjusted appropriation_Source]]*T_DataComboFile[[#This Row],[G&S reporting level indicator]]","v":0},{"$f":"T_DataComboFile[[#This Row],[2019/20 Revised estimate_Source]]*T_DataComboFile[[#This Row],[G&S reporting level indicator]]","v":0},{"$f":"T_DataComboFile[[#This Row],[2019/20 Preliminary outcome_Source]]*T_DataComboFile[[#This Row],[G&S reporting level indicator]]","v":0},{"$f":"T_DataComboFile[[#This Row],[2020/21 Original_Source]]*T_DataComboFile[[#This Row],[G&S reporting level indicator]]","v":0},{"$f":"T_DataComboFile[[#This Row],[2020/21 SAB_Source]]*T_DataComboFile[[#This Row],[G&S reporting level indicator]]","v":0},{"$f":"T_DataComboFile[[#This Row],[2020/21 Baseline_Source]]*T_DataComboFile[[#This Row],[G&S reporting level indicator]]","v":0},{"$f":"T_DataComboFile[[#This Row],[2021/22 Baseline_Source]]*T_DataComboFile[[#This Row],[G&S reporting level indicator]]","v":0},{"$f":"T_DataComboFile[[#This Row],[2022/23 Baseline_Source]]*T_DataComboFile[[#This Row],[G&S reporting level indicator]]","v":0},{"$f":"T_DataComboFile[[#This Row],[2023/24 Baseline_Source]]*T_DataComboFile[[#This Row],[G&S reporting level indicator]]","v":0},null,null,null,null,null,null,{"$f":"T_DataComboFile[[#This Row],[2021/22 Baseline]]+T_DataComboFile[[#This Row],[2021/22 Reduction]]+T_DataComboFile[[#This Row],[2021/22 Increase]]","v":0},{"$f":"T_DataComboFile[[#This Row],[2022/23 Baseline]]+T_DataComboFile[[#This Row],[2022/23 Reduction]]+T_DataComboFile[[#This Row],[2022/23 Increase]]","v":0},{"$f":"T_DataComboFile[[#This Row],[2023/24 Baseline]]+T_DataComboFile[[#This Row],[2023/24 Reduction]]+T_DataComboFile[[#This Row],[2023/24 Increase]]","v":0}]
[null,null,"2021_22","ENE2020",36,2,3,null,70682,36,2,3,null,"070682","36|02|03",2,3,11,55,59,"02|03|11|55|59","National","Small Business Development","Sector Policy and Research","International Relations",null,"Capital","Payments for capital assets","Buildings and other fixed structures","Other fixed structures","Other fixed structures",null,null,null,0,0,0,0,0,0,0,0,0,0,0,0,0,0,null,{"$f":"IF(T_DataComboFile[[#This Row],[G&S reporting level indicator]]=1,$AX$16,\"Not applicable\")","v":"Level 3"},{"$f":"IF(AND($AX$16=\"Level 3\",T_DataComboFile[[#This Row],[Econ3]] = \"Goods and services\"),IF(T_DataComboFile[[#This Row],[Econ4]] = T_DataComboFile[[#This Row],[Econ3]],1,0),IF(AND($AX$16=\"Level 4\",T_DataComboFile[[#This Row],[Econ4]] = \"Goods and services\"),0,1))","v":1},{"$f":"T_DataComboFile[[#This Row],[2016/17_Source]]*T_DataComboFile[[#This Row],[G&S reporting level indicator]]","v":0},{"$f":"T_DataComboFile[[#This Row],[2017/18_Source]]*T_DataComboFile[[#This Row],[G&S reporting level indicator]]","v":0},{"$f":"T_DataComboFile[[#This Row],[2018/19_Source]]*T_DataComboFile[[#This Row],[G&S reporting level indicator]]","v":0},{"$f":"T_DataComboFile[[#This Row],[2019/20 Main appropriation_Source]]*T_DataComboFile[[#This Row],[G&S reporting level indicator]]","v":0},{"$f":"T_DataComboFile[[#This Row],[2019/20 Adjusted appropriation_Source]]*T_DataComboFile[[#This Row],[G&S reporting level indicator]]","v":0},{"$f":"T_DataComboFile[[#This Row],[2019/20 Revised estimate_Source]]*T_DataComboFile[[#This Row],[G&S reporting level indicator]]","v":0},{"$f":"T_DataComboFile[[#This Row],[2019/20 Preliminary outcome_Source]]*T_DataComboFile[[#This Row],[G&S reporting level indicator]]","v":0},{"$f":"T_DataComboFile[[#This Row],[2020/21 Original_Source]]*T_DataComboFile[[#This Row],[G&S reporting level indicator]]","v":0},{"$f":"T_DataComboFile[[#This Row],[2020/21 SAB_Source]]*T_DataComboFile[[#This Row],[G&S reporting level indicator]]","v":0},{"$f":"T_DataComboFile[[#This Row],[2020/21 Baseline_Source]]*T_DataComboFile[[#This Row],[G&S reporting level indicator]]","v":0},{"$f":"T_DataComboFile[[#This Row],[2021/22 Baseline_Source]]*T_DataComboFile[[#This Row],[G&S reporting level indicator]]","v":0},{"$f":"T_DataComboFile[[#This Row],[2022/23 Baseline_Source]]*T_DataComboFile[[#This Row],[G&S reporting level indicator]]","v":0},{"$f":"T_DataComboFile[[#This Row],[2023/24 Baseline_Source]]*T_DataComboFile[[#This Row],[G&S reporting level indicator]]","v":0},null,null,null,null,null,null,{"$f":"T_DataComboFile[[#This Row],[2021/22 Baseline]]+T_DataComboFile[[#This Row],[2021/22 Reduction]]+T_DataComboFile[[#This Row],[2021/22 Increase]]","v":0},{"$f":"T_DataComboFile[[#This Row],[2022/23 Baseline]]+T_DataComboFile[[#This Row],[2022/23 Reduction]]+T_DataComboFile[[#This Row],[2022/23 Increase]]","v":0},{"$f":"T_DataComboFile[[#This Row],[2023/24 Baseline]]+T_DataComboFile[[#This Row],[2023/24 Reduction]]+T_DataComboFile[[#This Row],[2023/24 Increase]]","v":0}]
[null,null,"2021_22","ENE2020",36,2,3,null,70683,36,2,3,null,"070683","36|02|03",2,3,12,56,60,"02|03|12|56|60","National","Small Business Development","Sector Policy and Research","International Relations",null,"Capital","Payments for capital assets","Machinery and equipment","Transport equipment","Transport equipment",null,null,null,0,0,0,0,0,0,0,0,0,0,0,0,0,0,null,{"$f":"IF(T_DataComboFile[[#This Row],[G&S reporting level indicator]]=1,$AX$16,\"Not applicable\")","v":"Level 3"},{"$f":"IF(AND($AX$16=\"Level 3\",T_DataComboFile[[#This Row],[Econ3]] = \"Goods and services\"),IF(T_DataComboFile[[#This Row],[Econ4]] = T_DataComboFile[[#This Row],[Econ3]],1,0),IF(AND($AX$16=\"Level 4\",T_DataComboFile[[#This Row],[Econ4]] = \"Goods and services\"),0,1))","v":1},{"$f":"T_DataComboFile[[#This Row],[2016/17_Source]]*T_DataComboFile[[#This Row],[G&S reporting level indicator]]","v":0},{"$f":"T_DataComboFile[[#This Row],[2017/18_Source]]*T_DataComboFile[[#This Row],[G&S reporting level indicator]]","v":0},{"$f":"T_DataComboFile[[#This Row],[2018/19_Source]]*T_DataComboFile[[#This Row],[G&S reporting level indicator]]","v":0},{"$f":"T_DataComboFile[[#This Row],[2019/20 Main appropriation_Source]]*T_DataComboFile[[#This Row],[G&S reporting level indicator]]","v":0},{"$f":"T_DataComboFile[[#This Row],[2019/20 Adjusted appropriation_Source]]*T_DataComboFile[[#This Row],[G&S reporting level indicator]]","v":0},{"$f":"T_DataComboFile[[#This Row],[2019/20 Revised estimate_Source]]*T_DataComboFile[[#This Row],[G&S reporting level indicator]]","v":0},{"$f":"T_DataComboFile[[#This Row],[2019/20 Preliminary outcome_Source]]*T_DataComboFile[[#This Row],[G&S reporting level indicator]]","v":0},{"$f":"T_DataComboFile[[#This Row],[2020/21 Original_Source]]*T_DataComboFile[[#This Row],[G&S reporting level indicator]]","v":0},{"$f":"T_DataComboFile[[#This Row],[2020/21 SAB_Source]]*T_DataComboFile[[#This Row],[G&S reporting level indicator]]","v":0},{"$f":"T_DataComboFile[[#This Row],[2020/21 Baseline_Source]]*T_DataComboFile[[#This Row],[G&S reporting level indicator]]","v":0},{"$f":"T_DataComboFile[[#This Row],[2021/22 Baseline_Source]]*T_DataComboFile[[#This Row],[G&S reporting level indicator]]","v":0},{"$f":"T_DataComboFile[[#This Row],[2022/23 Baseline_Source]]*T_DataComboFile[[#This Row],[G&S reporting level indicator]]","v":0},{"$f":"T_DataComboFile[[#This Row],[2023/24 Baseline_Source]]*T_DataComboFile[[#This Row],[G&S reporting level indicator]]","v":0},null,null,null,null,null,null,{"$f":"T_DataComboFile[[#This Row],[2021/22 Baseline]]+T_DataComboFile[[#This Row],[2021/22 Reduction]]+T_DataComboFile[[#This Row],[2021/22 Increase]]","v":0},{"$f":"T_DataComboFile[[#This Row],[2022/23 Baseline]]+T_DataComboFile[[#This Row],[2022/23 Reduction]]+T_DataComboFile[[#This Row],[2022/23 Increase]]","v":0},{"$f":"T_DataComboFile[[#This Row],[2023/24 Baseline]]+T_DataComboFile[[#This Row],[2023/24 Reduction]]+T_DataComboFile[[#This Row],[2023/24 Increase]]","v":0}]
["NAT|Non-transfer item","36|Other machinery and equipment","2021_22","ENE2020",36,2,3,17326,70684,36,2,3,17326,"070684","36|02|03",2,3,12,57,61,"02|03|12|57|61","National","Small Business Development","Sector Policy and Research","International Relations","Non-transfer item","Capital","Payments for capital assets","Machinery and equipment","Other machinery and equipment","Other machinery and equipment","Economic development","Industrialisation and exports","NAT",0,5,30,16,16,16,16,0,0,0,0,0,0,1,null,{"$f":"IF(T_DataComboFile[[#This Row],[G&S reporting level indicator]]=1,$AX$16,\"Not applicable\")","v":"Level 3"},{"$f":"IF(AND($AX$16=\"Level 3\",T_DataComboFile[[#This Row],[Econ3]] = \"Goods and services\"),IF(T_DataComboFile[[#This Row],[Econ4]] = T_DataComboFile[[#This Row],[Econ3]],1,0),IF(AND($AX$16=\"Level 4\",T_DataComboFile[[#This Row],[Econ4]] = \"Goods and services\"),0,1))","v":1},{"$f":"T_DataComboFile[[#This Row],[2016/17_Source]]*T_DataComboFile[[#This Row],[G&S reporting level indicator]]","v":0},{"$f":"T_DataComboFile[[#This Row],[2017/18_Source]]*T_DataComboFile[[#This Row],[G&S reporting level indicator]]","v":5},{"$f":"T_DataComboFile[[#This Row],[2018/19_Source]]*T_DataComboFile[[#This Row],[G&S reporting level indicator]]","v":30},{"$f":"T_DataComboFile[[#This Row],[2019/20 Main appropriation_Source]]*T_DataComboFile[[#This Row],[G&S reporting level indicator]]","v":16},{"$f":"T_DataComboFile[[#This Row],[2019/20 Adjusted appropriation_Source]]*T_DataComboFile[[#This Row],[G&S reporting level indicator]]","v":16},{"$f":"T_DataComboFile[[#This Row],[2019/20 Revised estimate_Source]]*T_DataComboFile[[#This Row],[G&S reporting level indicator]]","v":16},{"$f":"T_DataComboFile[[#This Row],[2019/20 Preliminary outcome_Source]]*T_DataComboFile[[#This Row],[G&S reporting level indicator]]","v":16},{"$f":"T_DataComboFile[[#This Row],[2020/21 Original_Source]]*T_DataComboFile[[#This Row],[G&S reporting level indicator]]","v":0},{"$f":"T_DataComboFile[[#This Row],[2020/21 SAB_Source]]*T_DataComboFile[[#This Row],[G&S reporting level indicator]]","v":0},{"$f":"T_DataComboFile[[#This Row],[2020/21 Baseline_Source]]*T_DataComboFile[[#This Row],[G&S reporting level indicator]]","v":0},{"$f":"T_DataComboFile[[#This Row],[2021/22 Baseline_Source]]*T_DataComboFile[[#This Row],[G&S reporting level indicator]]","v":0},{"$f":"T_DataComboFile[[#This Row],[2022/23 Baseline_Source]]*T_DataComboFile[[#This Row],[G&S reporting level indicator]]","v":0},{"$f":"T_DataComboFile[[#This Row],[2023/24 Baseline_Source]]*T_DataComboFile[[#This Row],[G&S reporting level indicator]]","v":0},null,null,null,null,null,null,{"$f":"T_DataComboFile[[#This Row],[2021/22 Baseline]]+T_DataComboFile[[#This Row],[2021/22 Reduction]]+T_DataComboFile[[#This Row],[2021/22 Increase]]","v":0},{"$f":"T_DataComboFile[[#This Row],[2022/23 Baseline]]+T_DataComboFile[[#This Row],[2022/23 Reduction]]+T_DataComboFile[[#This Row],[2022/23 Increase]]","v":0},{"$f":"T_DataComboFile[[#This Row],[2023/24 Baseline]]+T_DataComboFile[[#This Row],[2023/24 Reduction]]+T_DataComboFile[[#This Row],[2023/24 Increase]]","v":0}]
[null,null,"2021_22","ENE2020",36,2,3,null,70685,36,2,3,null,"070685","36|02|03",2,3,13,58,62,"02|03|13|58|62","National","Small Business Development","Sector Policy and Research","International Relations",null,"Capital","Payments for capital assets","Heritage assets","Heritage assets","Heritage assets",null,null,null,0,0,0,0,0,0,0,0,0,0,0,0,0,0,null,{"$f":"IF(T_DataComboFile[[#This Row],[G&S reporting level indicator]]=1,$AX$16,\"Not applicable\")","v":"Level 3"},{"$f":"IF(AND($AX$16=\"Level 3\",T_DataComboFile[[#This Row],[Econ3]] = \"Goods and services\"),IF(T_DataComboFile[[#This Row],[Econ4]] = T_DataComboFile[[#This Row],[Econ3]],1,0),IF(AND($AX$16=\"Level 4\",T_DataComboFile[[#This Row],[Econ4]] = \"Goods and services\"),0,1))","v":1},{"$f":"T_DataComboFile[[#This Row],[2016/17_Source]]*T_DataComboFile[[#This Row],[G&S reporting level indicator]]","v":0},{"$f":"T_DataComboFile[[#This Row],[2017/18_Source]]*T_DataComboFile[[#This Row],[G&S reporting level indicator]]","v":0},{"$f":"T_DataComboFile[[#This Row],[2018/19_Source]]*T_DataComboFile[[#This Row],[G&S reporting level indicator]]","v":0},{"$f":"T_DataComboFile[[#This Row],[2019/20 Main appropriation_Source]]*T_DataComboFile[[#This Row],[G&S reporting level indicator]]","v":0},{"$f":"T_DataComboFile[[#This Row],[2019/20 Adjusted appropriation_Source]]*T_DataComboFile[[#This Row],[G&S reporting level indicator]]","v":0},{"$f":"T_DataComboFile[[#This Row],[2019/20 Revised estimate_Source]]*T_DataComboFile[[#This Row],[G&S reporting level indicator]]","v":0},{"$f":"T_DataComboFile[[#This Row],[2019/20 Preliminary outcome_Source]]*T_DataComboFile[[#This Row],[G&S reporting level indicator]]","v":0},{"$f":"T_DataComboFile[[#This Row],[2020/21 Original_Source]]*T_DataComboFile[[#This Row],[G&S reporting level indicator]]","v":0},{"$f":"T_DataComboFile[[#This Row],[2020/21 SAB_Source]]*T_DataComboFile[[#This Row],[G&S reporting level indicator]]","v":0},{"$f":"T_DataComboFile[[#This Row],[2020/21 Baseline_Source]]*T_DataComboFile[[#This Row],[G&S reporting level indicator]]","v":0},{"$f":"T_DataComboFile[[#This Row],[2021/22 Baseline_Source]]*T_DataComboFile[[#This Row],[G&S reporting level indicator]]","v":0},{"$f":"T_DataComboFile[[#This Row],[2022/23 Baseline_Source]]*T_DataComboFile[[#This Row],[G&S reporting level indicator]]","v":0},{"$f":"T_DataComboFile[[#This Row],[2023/24 Baseline_Source]]*T_DataComboFile[[#This Row],[G&S reporting level indicator]]","v":0},null,null,null,null,null,null,{"$f":"T_DataComboFile[[#This Row],[2021/22 Baseline]]+T_DataComboFile[[#This Row],[2021/22 Reduction]]+T_DataComboFile[[#This Row],[2021/22 Increase]]","v":0},{"$f":"T_DataComboFile[[#This Row],[2022/23 Baseline]]+T_DataComboFile[[#This Row],[2022/23 Reduction]]+T_DataComboFile[[#This Row],[2022/23 Increase]]","v":0},{"$f":"T_DataComboFile[[#This Row],[2023/24 Baseline]]+T_DataComboFile[[#This Row],[2023/24 Reduction]]+T_DataComboFile[[#This Row],[2023/24 Increase]]","v":0}]
[null,null,"2021_22","ENE2020",36,2,3,null,70686,36,2,3,null,"070686","36|02|03",2,3,14,59,63,"02|03|14|59|63","National","Small Business Development","Sector Policy and Research","International Relations",null,"Capital","Payments for capital assets","Specialised military assets","Specialised military assets","Specialised military assets",null,null,null,0,0,0,0,0,0,0,0,0,0,0,0,0,0,null,{"$f":"IF(T_DataComboFile[[#This Row],[G&S reporting level indicator]]=1,$AX$16,\"Not applicable\")","v":"Level 3"},{"$f":"IF(AND($AX$16=\"Level 3\",T_DataComboFile[[#This Row],[Econ3]] = \"Goods and services\"),IF(T_DataComboFile[[#This Row],[Econ4]] = T_DataComboFile[[#This Row],[Econ3]],1,0),IF(AND($AX$16=\"Level 4\",T_DataComboFile[[#This Row],[Econ4]] = \"Goods and services\"),0,1))","v":1},{"$f":"T_DataComboFile[[#This Row],[2016/17_Source]]*T_DataComboFile[[#This Row],[G&S reporting level indicator]]","v":0},{"$f":"T_DataComboFile[[#This Row],[2017/18_Source]]*T_DataComboFile[[#This Row],[G&S reporting level indicator]]","v":0},{"$f":"T_DataComboFile[[#This Row],[2018/19_Source]]*T_DataComboFile[[#This Row],[G&S reporting level indicator]]","v":0},{"$f":"T_DataComboFile[[#This Row],[2019/20 Main appropriation_Source]]*T_DataComboFile[[#This Row],[G&S reporting level indicator]]","v":0},{"$f":"T_DataComboFile[[#This Row],[2019/20 Adjusted appropriation_Source]]*T_DataComboFile[[#This Row],[G&S reporting level indicator]]","v":0},{"$f":"T_DataComboFile[[#This Row],[2019/20 Revised estimate_Source]]*T_DataComboFile[[#This Row],[G&S reporting level indicator]]","v":0},{"$f":"T_DataComboFile[[#This Row],[2019/20 Preliminary outcome_Source]]*T_DataComboFile[[#This Row],[G&S reporting level indicator]]","v":0},{"$f":"T_DataComboFile[[#This Row],[2020/21 Original_Source]]*T_DataComboFile[[#This Row],[G&S reporting level indicator]]","v":0},{"$f":"T_DataComboFile[[#This Row],[2020/21 SAB_Source]]*T_DataComboFile[[#This Row],[G&S reporting level indicator]]","v":0},{"$f":"T_DataComboFile[[#This Row],[2020/21 Baseline_Source]]*T_DataComboFile[[#This Row],[G&S reporting level indicator]]","v":0},{"$f":"T_DataComboFile[[#This Row],[2021/22 Baseline_Source]]*T_DataComboFile[[#This Row],[G&S reporting level indicator]]","v":0},{"$f":"T_DataComboFile[[#This Row],[2022/23 Baseline_Source]]*T_DataComboFile[[#This Row],[G&S reporting level indicator]]","v":0},{"$f":"T_DataComboFile[[#This Row],[2023/24 Baseline_Source]]*T_DataComboFile[[#This Row],[G&S reporting level indicator]]","v":0},null,null,null,null,null,null,{"$f":"T_DataComboFile[[#This Row],[2021/22 Baseline]]+T_DataComboFile[[#This Row],[2021/22 Reduction]]+T_DataComboFile[[#This Row],[2021/22 Increase]]","v":0},{"$f":"T_DataComboFile[[#This Row],[2022/23 Baseline]]+T_DataComboFile[[#This Row],[2022/23 Reduction]]+T_DataComboFile[[#This Row],[2022/23 Increase]]","v":0},{"$f":"T_DataComboFile[[#This Row],[2023/24 Baseline]]+T_DataComboFile[[#This Row],[2023/24 Reduction]]+T_DataComboFile[[#This Row],[2023/24 Increase]]","v":0}]
[null,null,"2021_22","ENE2020",36,2,3,null,70687,36,2,3,null,"070687","36|02|03",2,3,15,60,64,"02|03|15|60|64","National","Small Business Development","Sector Policy and Research","International Relations",null,"Capital","Payments for capital assets","Biological assets","Biological assets","Biological assets",null,null,null,0,0,0,0,0,0,0,0,0,0,0,0,0,0,null,{"$f":"IF(T_DataComboFile[[#This Row],[G&S reporting level indicator]]=1,$AX$16,\"Not applicable\")","v":"Level 3"},{"$f":"IF(AND($AX$16=\"Level 3\",T_DataComboFile[[#This Row],[Econ3]] = \"Goods and services\"),IF(T_DataComboFile[[#This Row],[Econ4]] = T_DataComboFile[[#This Row],[Econ3]],1,0),IF(AND($AX$16=\"Level 4\",T_DataComboFile[[#This Row],[Econ4]] = \"Goods and services\"),0,1))","v":1},{"$f":"T_DataComboFile[[#This Row],[2016/17_Source]]*T_DataComboFile[[#This Row],[G&S reporting level indicator]]","v":0},{"$f":"T_DataComboFile[[#This Row],[2017/18_Source]]*T_DataComboFile[[#This Row],[G&S reporting level indicator]]","v":0},{"$f":"T_DataComboFile[[#This Row],[2018/19_Source]]*T_DataComboFile[[#This Row],[G&S reporting level indicator]]","v":0},{"$f":"T_DataComboFile[[#This Row],[2019/20 Main appropriation_Source]]*T_DataComboFile[[#This Row],[G&S reporting level indicator]]","v":0},{"$f":"T_DataComboFile[[#This Row],[2019/20 Adjusted appropriation_Source]]*T_DataComboFile[[#This Row],[G&S reporting level indicator]]","v":0},{"$f":"T_DataComboFile[[#This Row],[2019/20 Revised estimate_Source]]*T_DataComboFile[[#This Row],[G&S reporting level indicator]]","v":0},{"$f":"T_DataComboFile[[#This Row],[2019/20 Preliminary outcome_Source]]*T_DataComboFile[[#This Row],[G&S reporting level indicator]]","v":0},{"$f":"T_DataComboFile[[#This Row],[2020/21 Original_Source]]*T_DataComboFile[[#This Row],[G&S reporting level indicator]]","v":0},{"$f":"T_DataComboFile[[#This Row],[2020/21 SAB_Source]]*T_DataComboFile[[#This Row],[G&S reporting level indicator]]","v":0},{"$f":"T_DataComboFile[[#This Row],[2020/21 Baseline_Source]]*T_DataComboFile[[#This Row],[G&S reporting level indicator]]","v":0},{"$f":"T_DataComboFile[[#This Row],[2021/22 Baseline_Source]]*T_DataComboFile[[#This Row],[G&S reporting level indicator]]","v":0},{"$f":"T_DataComboFile[[#This Row],[2022/23 Baseline_Source]]*T_DataComboFile[[#This Row],[G&S reporting level indicator]]","v":0},{"$f":"T_DataComboFile[[#This Row],[2023/24 Baseline_Source]]*T_DataComboFile[[#This Row],[G&S reporting level indicator]]","v":0},null,null,null,null,null,null,{"$f":"T_DataComboFile[[#This Row],[2021/22 Baseline]]+T_DataComboFile[[#This Row],[2021/22 Reduction]]+T_DataComboFile[[#This Row],[2021/22 Increase]]","v":0},{"$f":"T_DataComboFile[[#This Row],[2022/23 Baseline]]+T_DataComboFile[[#This Row],[2022/23 Reduction]]+T_DataComboFile[[#This Row],[2022/23 Increase]]","v":0},{"$f":"T_DataComboFile[[#This Row],[2023/24 Baseline]]+T_DataComboFile[[#This Row],[2023/24 Reduction]]+T_DataComboFile[[#This Row],[2023/24 Increase]]","v":0}]
[null,null,"2021_22","ENE2020",36,2,3,null,70688,36,2,3,null,"070688","36|02|03",2,3,16,61,65,"02|03|16|61|65","National","Small Business Development","Sector Policy and Research","International Relations",null,"Capital","Payments for capital assets","Land and sub-soil assets","Land and sub-soil assets","Land and sub-soil assets",null,null,null,0,0,0,0,0,0,0,0,0,0,0,0,0,0,null,{"$f":"IF(T_DataComboFile[[#This Row],[G&S reporting level indicator]]=1,$AX$16,\"Not applicable\")","v":"Level 3"},{"$f":"IF(AND($AX$16=\"Level 3\",T_DataComboFile[[#This Row],[Econ3]] = \"Goods and services\"),IF(T_DataComboFile[[#This Row],[Econ4]] = T_DataComboFile[[#This Row],[Econ3]],1,0),IF(AND($AX$16=\"Level 4\",T_DataComboFile[[#This Row],[Econ4]] = \"Goods and services\"),0,1))","v":1},{"$f":"T_DataComboFile[[#This Row],[2016/17_Source]]*T_DataComboFile[[#This Row],[G&S reporting level indicator]]","v":0},{"$f":"T_DataComboFile[[#This Row],[2017/18_Source]]*T_DataComboFile[[#This Row],[G&S reporting level indicator]]","v":0},{"$f":"T_DataComboFile[[#This Row],[2018/19_Source]]*T_DataComboFile[[#This Row],[G&S reporting level indicator]]","v":0},{"$f":"T_DataComboFile[[#This Row],[2019/20 Main appropriation_Source]]*T_DataComboFile[[#This Row],[G&S reporting level indicator]]","v":0},{"$f":"T_DataComboFile[[#This Row],[2019/20 Adjusted appropriation_Source]]*T_DataComboFile[[#This Row],[G&S reporting level indicator]]","v":0},{"$f":"T_DataComboFile[[#This Row],[2019/20 Revised estimate_Source]]*T_DataComboFile[[#This Row],[G&S reporting level indicator]]","v":0},{"$f":"T_DataComboFile[[#This Row],[2019/20 Preliminary outcome_Source]]*T_DataComboFile[[#This Row],[G&S reporting level indicator]]","v":0},{"$f":"T_DataComboFile[[#This Row],[2020/21 Original_Source]]*T_DataComboFile[[#This Row],[G&S reporting level indicator]]","v":0},{"$f":"T_DataComboFile[[#This Row],[2020/21 SAB_Source]]*T_DataComboFile[[#This Row],[G&S reporting level indicator]]","v":0},{"$f":"T_DataComboFile[[#This Row],[2020/21 Baseline_Source]]*T_DataComboFile[[#This Row],[G&S reporting level indicator]]","v":0},{"$f":"T_DataComboFile[[#This Row],[2021/22 Baseline_Source]]*T_DataComboFile[[#This Row],[G&S reporting level indicator]]","v":0},{"$f":"T_DataComboFile[[#This Row],[2022/23 Baseline_Source]]*T_DataComboFile[[#This Row],[G&S reporting level indicator]]","v":0},{"$f":"T_DataComboFile[[#This Row],[2023/24 Baseline_Source]]*T_DataComboFile[[#This Row],[G&S reporting level indicator]]","v":0},null,null,null,null,null,null,{"$f":"T_DataComboFile[[#This Row],[2021/22 Baseline]]+T_DataComboFile[[#This Row],[2021/22 Reduction]]+T_DataComboFile[[#This Row],[2021/22 Increase]]","v":0},{"$f":"T_DataComboFile[[#This Row],[2022/23 Baseline]]+T_DataComboFile[[#This Row],[2022/23 Reduction]]+T_DataComboFile[[#This Row],[2022/23 Increase]]","v":0},{"$f":"T_DataComboFile[[#This Row],[2023/24 Baseline]]+T_DataComboFile[[#This Row],[2023/24 Reduction]]+T_DataComboFile[[#This Row],[2023/24 Increase]]","v":0}]
[null,null,"2021_22","ENE2020",36,2,3,null,70689,36,2,3,null,"070689","36|02|03",2,3,17,62,66,"02|03|17|62|66","National","Small Business Development","Sector Policy and Research","International Relations",null,"Capital","Payments for capital assets","Software and other intangible assets","Software and other intangible assets","Software and other intangible assets",null,null,null,0,0,0,0,0,0,0,0,0,0,0,0,0,0,null,{"$f":"IF(T_DataComboFile[[#This Row],[G&S reporting level indicator]]=1,$AX$16,\"Not applicable\")","v":"Level 3"},{"$f":"IF(AND($AX$16=\"Level 3\",T_DataComboFile[[#This Row],[Econ3]] = \"Goods and services\"),IF(T_DataComboFile[[#This Row],[Econ4]] = T_DataComboFile[[#This Row],[Econ3]],1,0),IF(AND($AX$16=\"Level 4\",T_DataComboFile[[#This Row],[Econ4]] = \"Goods and services\"),0,1))","v":1},{"$f":"T_DataComboFile[[#This Row],[2016/17_Source]]*T_DataComboFile[[#This Row],[G&S reporting level indicator]]","v":0},{"$f":"T_DataComboFile[[#This Row],[2017/18_Source]]*T_DataComboFile[[#This Row],[G&S reporting level indicator]]","v":0},{"$f":"T_DataComboFile[[#This Row],[2018/19_Source]]*T_DataComboFile[[#This Row],[G&S reporting level indicator]]","v":0},{"$f":"T_DataComboFile[[#This Row],[2019/20 Main appropriation_Source]]*T_DataComboFile[[#This Row],[G&S reporting level indicator]]","v":0},{"$f":"T_DataComboFile[[#This Row],[2019/20 Adjusted appropriation_Source]]*T_DataComboFile[[#This Row],[G&S reporting level indicator]]","v":0},{"$f":"T_DataComboFile[[#This Row],[2019/20 Revised estimate_Source]]*T_DataComboFile[[#This Row],[G&S reporting level indicator]]","v":0},{"$f":"T_DataComboFile[[#This Row],[2019/20 Preliminary outcome_Source]]*T_DataComboFile[[#This Row],[G&S reporting level indicator]]","v":0},{"$f":"T_DataComboFile[[#This Row],[2020/21 Original_Source]]*T_DataComboFile[[#This Row],[G&S reporting level indicator]]","v":0},{"$f":"T_DataComboFile[[#This Row],[2020/21 SAB_Source]]*T_DataComboFile[[#This Row],[G&S reporting level indicator]]","v":0},{"$f":"T_DataComboFile[[#This Row],[2020/21 Baseline_Source]]*T_DataComboFile[[#This Row],[G&S reporting level indicator]]","v":0},{"$f":"T_DataComboFile[[#This Row],[2021/22 Baseline_Source]]*T_DataComboFile[[#This Row],[G&S reporting level indicator]]","v":0},{"$f":"T_DataComboFile[[#This Row],[2022/23 Baseline_Source]]*T_DataComboFile[[#This Row],[G&S reporting level indicator]]","v":0},{"$f":"T_DataComboFile[[#This Row],[2023/24 Baseline_Source]]*T_DataComboFile[[#This Row],[G&S reporting level indicator]]","v":0},null,null,null,null,null,null,{"$f":"T_DataComboFile[[#This Row],[2021/22 Baseline]]+T_DataComboFile[[#This Row],[2021/22 Reduction]]+T_DataComboFile[[#This Row],[2021/22 Increase]]","v":0},{"$f":"T_DataComboFile[[#This Row],[2022/23 Baseline]]+T_DataComboFile[[#This Row],[2022/23 Reduction]]+T_DataComboFile[[#This Row],[2022/23 Increase]]","v":0},{"$f":"T_DataComboFile[[#This Row],[2023/24 Baseline]]+T_DataComboFile[[#This Row],[2023/24 Reduction]]+T_DataComboFile[[#This Row],[2023/24 Increase]]","v":0}]
[null,null,"2021_22","ENE2020",36,2,3,null,70690,36,2,3,null,"070690","36|02|03",3,4,18,63,67,"03|04|18|63|67","National","Small Business Development","Sector Policy and Research","International Relations",null,"Payments for financial assets","Payments for financial assets","Payments for financial assets","Payments for financial assets","Payments for financial assets",null,null,null,0,0,0,0,0,0,0,0,0,0,0,0,0,0,null,{"$f":"IF(T_DataComboFile[[#This Row],[G&S reporting level indicator]]=1,$AX$16,\"Not applicable\")","v":"Level 3"},{"$f":"IF(AND($AX$16=\"Level 3\",T_DataComboFile[[#This Row],[Econ3]] = \"Goods and services\"),IF(T_DataComboFile[[#This Row],[Econ4]] = T_DataComboFile[[#This Row],[Econ3]],1,0),IF(AND($AX$16=\"Level 4\",T_DataComboFile[[#This Row],[Econ4]] = \"Goods and services\"),0,1))","v":1},{"$f":"T_DataComboFile[[#This Row],[2016/17_Source]]*T_DataComboFile[[#This Row],[G&S reporting level indicator]]","v":0},{"$f":"T_DataComboFile[[#This Row],[2017/18_Source]]*T_DataComboFile[[#This Row],[G&S reporting level indicator]]","v":0},{"$f":"T_DataComboFile[[#This Row],[2018/19_Source]]*T_DataComboFile[[#This Row],[G&S reporting level indicator]]","v":0},{"$f":"T_DataComboFile[[#This Row],[2019/20 Main appropriation_Source]]*T_DataComboFile[[#This Row],[G&S reporting level indicator]]","v":0},{"$f":"T_DataComboFile[[#This Row],[2019/20 Adjusted appropriation_Source]]*T_DataComboFile[[#This Row],[G&S reporting level indicator]]","v":0},{"$f":"T_DataComboFile[[#This Row],[2019/20 Revised estimate_Source]]*T_DataComboFile[[#This Row],[G&S reporting level indicator]]","v":0},{"$f":"T_DataComboFile[[#This Row],[2019/20 Preliminary outcome_Source]]*T_DataComboFile[[#This Row],[G&S reporting level indicator]]","v":0},{"$f":"T_DataComboFile[[#This Row],[2020/21 Original_Source]]*T_DataComboFile[[#This Row],[G&S reporting level indicator]]","v":0},{"$f":"T_DataComboFile[[#This Row],[2020/21 SAB_Source]]*T_DataComboFile[[#This Row],[G&S reporting level indicator]]","v":0},{"$f":"T_DataComboFile[[#This Row],[2020/21 Baseline_Source]]*T_DataComboFile[[#This Row],[G&S reporting level indicator]]","v":0},{"$f":"T_DataComboFile[[#This Row],[2021/22 Baseline_Source]]*T_DataComboFile[[#This Row],[G&S reporting level indicator]]","v":0},{"$f":"T_DataComboFile[[#This Row],[2022/23 Baseline_Source]]*T_DataComboFile[[#This Row],[G&S reporting level indicator]]","v":0},{"$f":"T_DataComboFile[[#This Row],[2023/24 Baseline_Source]]*T_DataComboFile[[#This Row],[G&S reporting level indicator]]","v":0},null,null,null,null,null,null,{"$f":"T_DataComboFile[[#This Row],[2021/22 Baseline]]+T_DataComboFile[[#This Row],[2021/22 Reduction]]+T_DataComboFile[[#This Row],[2021/22 Increase]]","v":0},{"$f":"T_DataComboFile[[#This Row],[2022/23 Baseline]]+T_DataComboFile[[#This Row],[2022/23 Reduction]]+T_DataComboFile[[#This Row],[2022/23 Increase]]","v":0},{"$f":"T_DataComboFile[[#This Row],[2023/24 Baseline]]+T_DataComboFile[[#This Row],[2023/24 Reduction]]+T_DataComboFile[[#This Row],[2023/24 Increase]]","v":0}]
["NAT|Non-transfer item","36|Salaries and wages","2021_22","ENE2020",36,2,4,17327,70691,36,2,4,17327,"070691","36|02|04",1,1,1,1,1,"01|01|01|01|01","National","Small Business Development","Sector Policy and Research","Monitoring and Evaluation","Non-transfer item","Current","Current payments","Compensation of employees","Salaries and wages","Salaries and wages","Economic development","Industrialisation and exports","NAT",0,1659,1709,1695,1695,1695,1695,1860,1860,1755,1802,1865,1947,1,null,{"$f":"IF(T_DataComboFile[[#This Row],[G&S reporting level indicator]]=1,$AX$16,\"Not applicable\")","v":"Level 3"},{"$f":"IF(AND($AX$16=\"Level 3\",T_DataComboFile[[#This Row],[Econ3]] = \"Goods and services\"),IF(T_DataComboFile[[#This Row],[Econ4]] = T_DataComboFile[[#This Row],[Econ3]],1,0),IF(AND($AX$16=\"Level 4\",T_DataComboFile[[#This Row],[Econ4]] = \"Goods and services\"),0,1))","v":1},{"$f":"T_DataComboFile[[#This Row],[2016/17_Source]]*T_DataComboFile[[#This Row],[G&S reporting level indicator]]","v":0},{"$f":"T_DataComboFile[[#This Row],[2017/18_Source]]*T_DataComboFile[[#This Row],[G&S reporting level indicator]]","v":1659},{"$f":"T_DataComboFile[[#This Row],[2018/19_Source]]*T_DataComboFile[[#This Row],[G&S reporting level indicator]]","v":1709},{"$f":"T_DataComboFile[[#This Row],[2019/20 Main appropriation_Source]]*T_DataComboFile[[#This Row],[G&S reporting level indicator]]","v":1695},{"$f":"T_DataComboFile[[#This Row],[2019/20 Adjusted appropriation_Source]]*T_DataComboFile[[#This Row],[G&S reporting level indicator]]","v":1695},{"$f":"T_DataComboFile[[#This Row],[2019/20 Revised estimate_Source]]*T_DataComboFile[[#This Row],[G&S reporting level indicator]]","v":1695},{"$f":"T_DataComboFile[[#This Row],[2019/20 Preliminary outcome_Source]]*T_DataComboFile[[#This Row],[G&S reporting level indicator]]","v":1695},{"$f":"T_DataComboFile[[#This Row],[2020/21 Original_Source]]*T_DataComboFile[[#This Row],[G&S reporting level indicator]]","v":1860},{"$f":"T_DataComboFile[[#This Row],[2020/21 SAB_Source]]*T_DataComboFile[[#This Row],[G&S reporting level indicator]]","v":1860},{"$f":"T_DataComboFile[[#This Row],[2020/21 Baseline_Source]]*T_DataComboFile[[#This Row],[G&S reporting level indicator]]","v":1755},{"$f":"T_DataComboFile[[#This Row],[2021/22 Baseline_Source]]*T_DataComboFile[[#This Row],[G&S reporting level indicator]]","v":1802},{"$f":"T_DataComboFile[[#This Row],[2022/23 Baseline_Source]]*T_DataComboFile[[#This Row],[G&S reporting level indicator]]","v":1865},{"$f":"T_DataComboFile[[#This Row],[2023/24 Baseline_Source]]*T_DataComboFile[[#This Row],[G&S reporting level indicator]]","v":1947},null,null,null,null,null,null,{"$f":"T_DataComboFile[[#This Row],[2021/22 Baseline]]+T_DataComboFile[[#This Row],[2021/22 Reduction]]+T_DataComboFile[[#This Row],[2021/22 Increase]]","v":1802},{"$f":"T_DataComboFile[[#This Row],[2022/23 Baseline]]+T_DataComboFile[[#This Row],[2022/23 Reduction]]+T_DataComboFile[[#This Row],[2022/23 Increase]]","v":1865},{"$f":"T_DataComboFile[[#This Row],[2023/24 Baseline]]+T_DataComboFile[[#This Row],[2023/24 Reduction]]+T_DataComboFile[[#This Row],[2023/24 Increase]]","v":1947}]
["NAT|Non-transfer item","36|Social contributions","2021_22","ENE2020",36,2,4,17328,70692,36,2,4,17328,"070692","36|02|04",1,1,1,2,2,"01|01|01|02|02","National","Small Business Development","Sector Policy and Research","Monitoring and Evaluation","Non-transfer item","Current","Current payments","Compensation of employees","Social contributions","Social contributions","Economic development","Industrialisation and exports","NAT",0,177,256,276,276,276,276,274,274,258,266,275,287,1,null,{"$f":"IF(T_DataComboFile[[#This Row],[G&S reporting level indicator]]=1,$AX$16,\"Not applicable\")","v":"Level 3"},{"$f":"IF(AND($AX$16=\"Level 3\",T_DataComboFile[[#This Row],[Econ3]] = \"Goods and services\"),IF(T_DataComboFile[[#This Row],[Econ4]] = T_DataComboFile[[#This Row],[Econ3]],1,0),IF(AND($AX$16=\"Level 4\",T_DataComboFile[[#This Row],[Econ4]] = \"Goods and services\"),0,1))","v":1},{"$f":"T_DataComboFile[[#This Row],[2016/17_Source]]*T_DataComboFile[[#This Row],[G&S reporting level indicator]]","v":0},{"$f":"T_DataComboFile[[#This Row],[2017/18_Source]]*T_DataComboFile[[#This Row],[G&S reporting level indicator]]","v":177},{"$f":"T_DataComboFile[[#This Row],[2018/19_Source]]*T_DataComboFile[[#This Row],[G&S reporting level indicator]]","v":256},{"$f":"T_DataComboFile[[#This Row],[2019/20 Main appropriation_Source]]*T_DataComboFile[[#This Row],[G&S reporting level indicator]]","v":276},{"$f":"T_DataComboFile[[#This Row],[2019/20 Adjusted appropriation_Source]]*T_DataComboFile[[#This Row],[G&S reporting level indicator]]","v":276},{"$f":"T_DataComboFile[[#This Row],[2019/20 Revised estimate_Source]]*T_DataComboFile[[#This Row],[G&S reporting level indicator]]","v":276},{"$f":"T_DataComboFile[[#This Row],[2019/20 Preliminary outcome_Source]]*T_DataComboFile[[#This Row],[G&S reporting level indicator]]","v":276},{"$f":"T_DataComboFile[[#This Row],[2020/21 Original_Source]]*T_DataComboFile[[#This Row],[G&S reporting level indicator]]","v":274},{"$f":"T_DataComboFile[[#This Row],[2020/21 SAB_Source]]*T_DataComboFile[[#This Row],[G&S reporting level indicator]]","v":274},{"$f":"T_DataComboFile[[#This Row],[2020/21 Baseline_Source]]*T_DataComboFile[[#This Row],[G&S reporting level indicator]]","v":258},{"$f":"T_DataComboFile[[#This Row],[2021/22 Baseline_Source]]*T_DataComboFile[[#This Row],[G&S reporting level indicator]]","v":266},{"$f":"T_DataComboFile[[#This Row],[2022/23 Baseline_Source]]*T_DataComboFile[[#This Row],[G&S reporting level indicator]]","v":275},{"$f":"T_DataComboFile[[#This Row],[2023/24 Baseline_Source]]*T_DataComboFile[[#This Row],[G&S reporting level indicator]]","v":287},null,null,null,null,null,null,{"$f":"T_DataComboFile[[#This Row],[2021/22 Baseline]]+T_DataComboFile[[#This Row],[2021/22 Reduction]]+T_DataComboFile[[#This Row],[2021/22 Increase]]","v":266},{"$f":"T_DataComboFile[[#This Row],[2022/23 Baseline]]+T_DataComboFile[[#This Row],[2022/23 Reduction]]+T_DataComboFile[[#This Row],[2022/23 Increase]]","v":275},{"$f":"T_DataComboFile[[#This Row],[2023/24 Baseline]]+T_DataComboFile[[#This Row],[2023/24 Reduction]]+T_DataComboFile[[#This Row],[2023/24 Increase]]","v":287}]
[null,null,"2021_22","ENE2020",36,2,4,null,70693,36,2,4,null,"070693","36|02|04",1,1,2,2,2,"01|01|02|02|02","National","Small Business Development","Sector Policy and Research","Monitoring and Evaluation","Non-transfer item","Current","Current payments","Goods and services","Goods and services","Goods and services","Economic development","Industrialisation and exports","NAT",203,238,259,4564,1264,1264,1264,1864,364,1864,2186,2408,2514,1,null,{"$f":"IF(T_DataComboFile[[#This Row],[G&S reporting level indicator]]=1,$AX$16,\"Not applicable\")","v":"Level 3"},{"$f":"IF(AND($AX$16=\"Level 3\",T_DataComboFile[[#This Row],[Econ3]] = \"Goods and services\"),IF(T_DataComboFile[[#This Row],[Econ4]] = T_DataComboFile[[#This Row],[Econ3]],1,0),IF(AND($AX$16=\"Level 4\",T_DataComboFile[[#This Row],[Econ4]] = \"Goods and services\"),0,1))","v":1},{"$f":"T_DataComboFile[[#This Row],[2016/17_Source]]*T_DataComboFile[[#This Row],[G&S reporting level indicator]]","v":203},{"$f":"T_DataComboFile[[#This Row],[2017/18_Source]]*T_DataComboFile[[#This Row],[G&S reporting level indicator]]","v":238},{"$f":"T_DataComboFile[[#This Row],[2018/19_Source]]*T_DataComboFile[[#This Row],[G&S reporting level indicator]]","v":259},{"$f":"T_DataComboFile[[#This Row],[2019/20 Main appropriation_Source]]*T_DataComboFile[[#This Row],[G&S reporting level indicator]]","v":4564},{"$f":"T_DataComboFile[[#This Row],[2019/20 Adjusted appropriation_Source]]*T_DataComboFile[[#This Row],[G&S reporting level indicator]]","v":1264},{"$f":"T_DataComboFile[[#This Row],[2019/20 Revised estimate_Source]]*T_DataComboFile[[#This Row],[G&S reporting level indicator]]","v":1264},{"$f":"T_DataComboFile[[#This Row],[2019/20 Preliminary outcome_Source]]*T_DataComboFile[[#This Row],[G&S reporting level indicator]]","v":1264},{"$f":"T_DataComboFile[[#This Row],[2020/21 Original_Source]]*T_DataComboFile[[#This Row],[G&S reporting level indicator]]","v":1864},{"$f":"T_DataComboFile[[#This Row],[2020/21 SAB_Source]]*T_DataComboFile[[#This Row],[G&S reporting level indicator]]","v":364},{"$f":"T_DataComboFile[[#This Row],[2020/21 Baseline_Source]]*T_DataComboFile[[#This Row],[G&S reporting level indicator]]","v":1864},{"$f":"T_DataComboFile[[#This Row],[2021/22 Baseline_Source]]*T_DataComboFile[[#This Row],[G&S reporting level indicator]]","v":2186},{"$f":"T_DataComboFile[[#This Row],[2022/23 Baseline_Source]]*T_DataComboFile[[#This Row],[G&S reporting level indicator]]","v":2408},{"$f":"T_DataComboFile[[#This Row],[2023/24 Baseline_Source]]*T_DataComboFile[[#This Row],[G&S reporting level indicator]]","v":2514},null,null,null,null,null,null,{"$f":"T_DataComboFile[[#This Row],[2021/22 Baseline]]+T_DataComboFile[[#This Row],[2021/22 Reduction]]+T_DataComboFile[[#This Row],[2021/22 Increase]]","v":2186},{"$f":"T_DataComboFile[[#This Row],[2022/23 Baseline]]+T_DataComboFile[[#This Row],[2022/23 Reduction]]+T_DataComboFile[[#This Row],[2022/23 Increase]]","v":2408},{"$f":"T_DataComboFile[[#This Row],[2023/24 Baseline]]+T_DataComboFile[[#This Row],[2023/24 Reduction]]+T_DataComboFile[[#This Row],[2023/24 Increase]]","v":2514}]
["NAT|Non-transfer item","36|Administrative fees","2021_22","ENE2020",36,2,4,17329,70694,36,2,4,17329,"070694","36|02|04",1,1,2,3,3,"01|01|02|03|03","National","Small Business Development","Sector Policy and Research","Monitoring and Evaluation","Non-transfer item","Current","Current payments","Goods and services","Administrative fees","Administrative fees","Economic development","Industrialisation and exports","NAT",21,19,14,9,9,9,9,15,15,15,18,21,22,1,null,{"$f":"IF(T_DataComboFile[[#This Row],[G&S reporting level indicator]]=1,$AX$16,\"Not applicable\")","v":"Not applicable"},{"$f":"IF(AND($AX$16=\"Level 3\",T_DataComboFile[[#This Row],[Econ3]] = \"Goods and services\"),IF(T_DataComboFile[[#This Row],[Econ4]] = T_DataComboFile[[#This Row],[Econ3]],1,0),IF(AND($AX$16=\"Level 4\",T_DataComboFile[[#This Row],[Econ4]] = \"Goods and services\"),0,1))","v":0},{"$f":"T_DataComboFile[[#This Row],[2016/17_Source]]*T_DataComboFile[[#This Row],[G&S reporting level indicator]]","v":0},{"$f":"T_DataComboFile[[#This Row],[2017/18_Source]]*T_DataComboFile[[#This Row],[G&S reporting level indicator]]","v":0},{"$f":"T_DataComboFile[[#This Row],[2018/19_Source]]*T_DataComboFile[[#This Row],[G&S reporting level indicator]]","v":0},{"$f":"T_DataComboFile[[#This Row],[2019/20 Main appropriation_Source]]*T_DataComboFile[[#This Row],[G&S reporting level indicator]]","v":0},{"$f":"T_DataComboFile[[#This Row],[2019/20 Adjusted appropriation_Source]]*T_DataComboFile[[#This Row],[G&S reporting level indicator]]","v":0},{"$f":"T_DataComboFile[[#This Row],[2019/20 Revised estimate_Source]]*T_DataComboFile[[#This Row],[G&S reporting level indicator]]","v":0},{"$f":"T_DataComboFile[[#This Row],[2019/20 Preliminary outcome_Source]]*T_DataComboFile[[#This Row],[G&S reporting level indicator]]","v":0},{"$f":"T_DataComboFile[[#This Row],[2020/21 Original_Source]]*T_DataComboFile[[#This Row],[G&S reporting level indicator]]","v":0},{"$f":"T_DataComboFile[[#This Row],[2020/21 SAB_Source]]*T_DataComboFile[[#This Row],[G&S reporting level indicator]]","v":0},{"$f":"T_DataComboFile[[#This Row],[2020/21 Baseline_Source]]*T_DataComboFile[[#This Row],[G&S reporting level indicator]]","v":0},{"$f":"T_DataComboFile[[#This Row],[2021/22 Baseline_Source]]*T_DataComboFile[[#This Row],[G&S reporting level indicator]]","v":0},{"$f":"T_DataComboFile[[#This Row],[2022/23 Baseline_Source]]*T_DataComboFile[[#This Row],[G&S reporting level indicator]]","v":0},{"$f":"T_DataComboFile[[#This Row],[2023/24 Baseline_Source]]*T_DataComboFile[[#This Row],[G&S reporting level indicator]]","v":0},null,null,null,null,null,null,{"$f":"T_DataComboFile[[#This Row],[2021/22 Baseline]]+T_DataComboFile[[#This Row],[2021/22 Reduction]]+T_DataComboFile[[#This Row],[2021/22 Increase]]","v":0},{"$f":"T_DataComboFile[[#This Row],[2022/23 Baseline]]+T_DataComboFile[[#This Row],[2022/23 Reduction]]+T_DataComboFile[[#This Row],[2022/23 Increase]]","v":0},{"$f":"T_DataComboFile[[#This Row],[2023/24 Baseline]]+T_DataComboFile[[#This Row],[2023/24 Reduction]]+T_DataComboFile[[#This Row],[2023/24 Increase]]","v":0}]
[null,null,"2021_22","ENE2020",36,2,4,null,70695,36,2,4,null,"070695","36|02|04",1,1,2,4,4,"01|01|02|04|04","National","Small Business Development","Sector Policy and Research","Monitoring and Evaluation",null,"Current","Current payments","Goods and services","Advertising","Advertising",null,null,null,0,0,0,0,0,0,0,0,0,0,0,0,0,0,null,{"$f":"IF(T_DataComboFile[[#This Row],[G&S reporting level indicator]]=1,$AX$16,\"Not applicable\")","v":"Not applicable"},{"$f":"IF(AND($AX$16=\"Level 3\",T_DataComboFile[[#This Row],[Econ3]] = \"Goods and services\"),IF(T_DataComboFile[[#This Row],[Econ4]] = T_DataComboFile[[#This Row],[Econ3]],1,0),IF(AND($AX$16=\"Level 4\",T_DataComboFile[[#This Row],[Econ4]] = \"Goods and services\"),0,1))","v":0},{"$f":"T_DataComboFile[[#This Row],[2016/17_Source]]*T_DataComboFile[[#This Row],[G&S reporting level indicator]]","v":0},{"$f":"T_DataComboFile[[#This Row],[2017/18_Source]]*T_DataComboFile[[#This Row],[G&S reporting level indicator]]","v":0},{"$f":"T_DataComboFile[[#This Row],[2018/19_Source]]*T_DataComboFile[[#This Row],[G&S reporting level indicator]]","v":0},{"$f":"T_DataComboFile[[#This Row],[2019/20 Main appropriation_Source]]*T_DataComboFile[[#This Row],[G&S reporting level indicator]]","v":0},{"$f":"T_DataComboFile[[#This Row],[2019/20 Adjusted appropriation_Source]]*T_DataComboFile[[#This Row],[G&S reporting level indicator]]","v":0},{"$f":"T_DataComboFile[[#This Row],[2019/20 Revised estimate_Source]]*T_DataComboFile[[#This Row],[G&S reporting level indicator]]","v":0},{"$f":"T_DataComboFile[[#This Row],[2019/20 Preliminary outcome_Source]]*T_DataComboFile[[#This Row],[G&S reporting level indicator]]","v":0},{"$f":"T_DataComboFile[[#This Row],[2020/21 Original_Source]]*T_DataComboFile[[#This Row],[G&S reporting level indicator]]","v":0},{"$f":"T_DataComboFile[[#This Row],[2020/21 SAB_Source]]*T_DataComboFile[[#This Row],[G&S reporting level indicator]]","v":0},{"$f":"T_DataComboFile[[#This Row],[2020/21 Baseline_Source]]*T_DataComboFile[[#This Row],[G&S reporting level indicator]]","v":0},{"$f":"T_DataComboFile[[#This Row],[2021/22 Baseline_Source]]*T_DataComboFile[[#This Row],[G&S reporting level indicator]]","v":0},{"$f":"T_DataComboFile[[#This Row],[2022/23 Baseline_Source]]*T_DataComboFile[[#This Row],[G&S reporting level indicator]]","v":0},{"$f":"T_DataComboFile[[#This Row],[2023/24 Baseline_Source]]*T_DataComboFile[[#This Row],[G&S reporting level indicator]]","v":0},null,null,null,null,null,null,{"$f":"T_DataComboFile[[#This Row],[2021/22 Baseline]]+T_DataComboFile[[#This Row],[2021/22 Reduction]]+T_DataComboFile[[#This Row],[2021/22 Increase]]","v":0},{"$f":"T_DataComboFile[[#This Row],[2022/23 Baseline]]+T_DataComboFile[[#This Row],[2022/23 Reduction]]+T_DataComboFile[[#This Row],[2022/23 Increase]]","v":0},{"$f":"T_DataComboFile[[#This Row],[2023/24 Baseline]]+T_DataComboFile[[#This Row],[2023/24 Reduction]]+T_DataComboFile[[#This Row],[2023/24 Increase]]","v":0}]
[null,null,"2021_22","ENE2020",36,2,4,null,70696,36,2,4,null,"070696","36|02|04",1,1,2,5,5,"01|01|02|05|05","National","Small Business Development","Sector Policy and Research","Monitoring and Evaluation",null,"Current","Current payments","Goods and services","Minor assets","Minor assets",null,null,null,0,0,0,0,0,0,0,0,0,0,0,0,0,0,null,{"$f":"IF(T_DataComboFile[[#This Row],[G&S reporting level indicator]]=1,$AX$16,\"Not applicable\")","v":"Not applicable"},{"$f":"IF(AND($AX$16=\"Level 3\",T_DataComboFile[[#This Row],[Econ3]] = \"Goods and services\"),IF(T_DataComboFile[[#This Row],[Econ4]] = T_DataComboFile[[#This Row],[Econ3]],1,0),IF(AND($AX$16=\"Level 4\",T_DataComboFile[[#This Row],[Econ4]] = \"Goods and services\"),0,1))","v":0},{"$f":"T_DataComboFile[[#This Row],[2016/17_Source]]*T_DataComboFile[[#This Row],[G&S reporting level indicator]]","v":0},{"$f":"T_DataComboFile[[#This Row],[2017/18_Source]]*T_DataComboFile[[#This Row],[G&S reporting level indicator]]","v":0},{"$f":"T_DataComboFile[[#This Row],[2018/19_Source]]*T_DataComboFile[[#This Row],[G&S reporting level indicator]]","v":0},{"$f":"T_DataComboFile[[#This Row],[2019/20 Main appropriation_Source]]*T_DataComboFile[[#This Row],[G&S reporting level indicator]]","v":0},{"$f":"T_DataComboFile[[#This Row],[2019/20 Adjusted appropriation_Source]]*T_DataComboFile[[#This Row],[G&S reporting level indicator]]","v":0},{"$f":"T_DataComboFile[[#This Row],[2019/20 Revised estimate_Source]]*T_DataComboFile[[#This Row],[G&S reporting level indicator]]","v":0},{"$f":"T_DataComboFile[[#This Row],[2019/20 Preliminary outcome_Source]]*T_DataComboFile[[#This Row],[G&S reporting level indicator]]","v":0},{"$f":"T_DataComboFile[[#This Row],[2020/21 Original_Source]]*T_DataComboFile[[#This Row],[G&S reporting level indicator]]","v":0},{"$f":"T_DataComboFile[[#This Row],[2020/21 SAB_Source]]*T_DataComboFile[[#This Row],[G&S reporting level indicator]]","v":0},{"$f":"T_DataComboFile[[#This Row],[2020/21 Baseline_Source]]*T_DataComboFile[[#This Row],[G&S reporting level indicator]]","v":0},{"$f":"T_DataComboFile[[#This Row],[2021/22 Baseline_Source]]*T_DataComboFile[[#This Row],[G&S reporting level indicator]]","v":0},{"$f":"T_DataComboFile[[#This Row],[2022/23 Baseline_Source]]*T_DataComboFile[[#This Row],[G&S reporting level indicator]]","v":0},{"$f":"T_DataComboFile[[#This Row],[2023/24 Baseline_Source]]*T_DataComboFile[[#This Row],[G&S reporting level indicator]]","v":0},null,null,null,null,null,null,{"$f":"T_DataComboFile[[#This Row],[2021/22 Baseline]]+T_DataComboFile[[#This Row],[2021/22 Reduction]]+T_DataComboFile[[#This Row],[2021/22 Increase]]","v":0},{"$f":"T_DataComboFile[[#This Row],[2022/23 Baseline]]+T_DataComboFile[[#This Row],[2022/23 Reduction]]+T_DataComboFile[[#This Row],[2022/23 Increase]]","v":0},{"$f":"T_DataComboFile[[#This Row],[2023/24 Baseline]]+T_DataComboFile[[#This Row],[2023/24 Reduction]]+T_DataComboFile[[#This Row],[2023/24 Increase]]","v":0}]
[null,null,"2021_22","ENE2020",36,2,4,null,70697,36,2,4,null,"070697","36|02|04",1,1,2,6,6,"01|01|02|06|06","National","Small Business Development","Sector Policy and Research","Monitoring and Evaluation",null,"Current","Current payments","Goods and services","Audit costs: External","Audit costs: External",null,null,null,0,0,0,0,0,0,0,0,0,0,0,0,0,0,null,{"$f":"IF(T_DataComboFile[[#This Row],[G&S reporting level indicator]]=1,$AX$16,\"Not applicable\")","v":"Not applicable"},{"$f":"IF(AND($AX$16=\"Level 3\",T_DataComboFile[[#This Row],[Econ3]] = \"Goods and services\"),IF(T_DataComboFile[[#This Row],[Econ4]] = T_DataComboFile[[#This Row],[Econ3]],1,0),IF(AND($AX$16=\"Level 4\",T_DataComboFile[[#This Row],[Econ4]] = \"Goods and services\"),0,1))","v":0},{"$f":"T_DataComboFile[[#This Row],[2016/17_Source]]*T_DataComboFile[[#This Row],[G&S reporting level indicator]]","v":0},{"$f":"T_DataComboFile[[#This Row],[2017/18_Source]]*T_DataComboFile[[#This Row],[G&S reporting level indicator]]","v":0},{"$f":"T_DataComboFile[[#This Row],[2018/19_Source]]*T_DataComboFile[[#This Row],[G&S reporting level indicator]]","v":0},{"$f":"T_DataComboFile[[#This Row],[2019/20 Main appropriation_Source]]*T_DataComboFile[[#This Row],[G&S reporting level indicator]]","v":0},{"$f":"T_DataComboFile[[#This Row],[2019/20 Adjusted appropriation_Source]]*T_DataComboFile[[#This Row],[G&S reporting level indicator]]","v":0},{"$f":"T_DataComboFile[[#This Row],[2019/20 Revised estimate_Source]]*T_DataComboFile[[#This Row],[G&S reporting level indicator]]","v":0},{"$f":"T_DataComboFile[[#This Row],[2019/20 Preliminary outcome_Source]]*T_DataComboFile[[#This Row],[G&S reporting level indicator]]","v":0},{"$f":"T_DataComboFile[[#This Row],[2020/21 Original_Source]]*T_DataComboFile[[#This Row],[G&S reporting level indicator]]","v":0},{"$f":"T_DataComboFile[[#This Row],[2020/21 SAB_Source]]*T_DataComboFile[[#This Row],[G&S reporting level indicator]]","v":0},{"$f":"T_DataComboFile[[#This Row],[2020/21 Baseline_Source]]*T_DataComboFile[[#This Row],[G&S reporting level indicator]]","v":0},{"$f":"T_DataComboFile[[#This Row],[2021/22 Baseline_Source]]*T_DataComboFile[[#This Row],[G&S reporting level indicator]]","v":0},{"$f":"T_DataComboFile[[#This Row],[2022/23 Baseline_Source]]*T_DataComboFile[[#This Row],[G&S reporting level indicator]]","v":0},{"$f":"T_DataComboFile[[#This Row],[2023/24 Baseline_Source]]*T_DataComboFile[[#This Row],[G&S reporting level indicator]]","v":0},null,null,null,null,null,null,{"$f":"T_DataComboFile[[#This Row],[2021/22 Baseline]]+T_DataComboFile[[#This Row],[2021/22 Reduction]]+T_DataComboFile[[#This Row],[2021/22 Increase]]","v":0},{"$f":"T_DataComboFile[[#This Row],[2022/23 Baseline]]+T_DataComboFile[[#This Row],[2022/23 Reduction]]+T_DataComboFile[[#This Row],[2022/23 Increase]]","v":0},{"$f":"T_DataComboFile[[#This Row],[2023/24 Baseline]]+T_DataComboFile[[#This Row],[2023/24 Reduction]]+T_DataComboFile[[#This Row],[2023/24 Increase]]","v":0}]
[null,null,"2021_22","ENE2020",36,2,4,null,70698,36,2,4,null,"070698","36|02|04",1,1,2,7,7,"01|01|02|07|07","National","Small Business Development","Sector Policy and Research","Monitoring and Evaluation",null,"Current","Current payments","Goods and services","Bursaries: Employees","Bursaries: Employees",null,null,null,0,0,0,0,0,0,0,0,0,0,0,0,0,0,null,{"$f":"IF(T_DataComboFile[[#This Row],[G&S reporting level indicator]]=1,$AX$16,\"Not applicable\")","v":"Not applicable"},{"$f":"IF(AND($AX$16=\"Level 3\",T_DataComboFile[[#This Row],[Econ3]] = \"Goods and services\"),IF(T_DataComboFile[[#This Row],[Econ4]] = T_DataComboFile[[#This Row],[Econ3]],1,0),IF(AND($AX$16=\"Level 4\",T_DataComboFile[[#This Row],[Econ4]] = \"Goods and services\"),0,1))","v":0},{"$f":"T_DataComboFile[[#This Row],[2016/17_Source]]*T_DataComboFile[[#This Row],[G&S reporting level indicator]]","v":0},{"$f":"T_DataComboFile[[#This Row],[2017/18_Source]]*T_DataComboFile[[#This Row],[G&S reporting level indicator]]","v":0},{"$f":"T_DataComboFile[[#This Row],[2018/19_Source]]*T_DataComboFile[[#This Row],[G&S reporting level indicator]]","v":0},{"$f":"T_DataComboFile[[#This Row],[2019/20 Main appropriation_Source]]*T_DataComboFile[[#This Row],[G&S reporting level indicator]]","v":0},{"$f":"T_DataComboFile[[#This Row],[2019/20 Adjusted appropriation_Source]]*T_DataComboFile[[#This Row],[G&S reporting level indicator]]","v":0},{"$f":"T_DataComboFile[[#This Row],[2019/20 Revised estimate_Source]]*T_DataComboFile[[#This Row],[G&S reporting level indicator]]","v":0},{"$f":"T_DataComboFile[[#This Row],[2019/20 Preliminary outcome_Source]]*T_DataComboFile[[#This Row],[G&S reporting level indicator]]","v":0},{"$f":"T_DataComboFile[[#This Row],[2020/21 Original_Source]]*T_DataComboFile[[#This Row],[G&S reporting level indicator]]","v":0},{"$f":"T_DataComboFile[[#This Row],[2020/21 SAB_Source]]*T_DataComboFile[[#This Row],[G&S reporting level indicator]]","v":0},{"$f":"T_DataComboFile[[#This Row],[2020/21 Baseline_Source]]*T_DataComboFile[[#This Row],[G&S reporting level indicator]]","v":0},{"$f":"T_DataComboFile[[#This Row],[2021/22 Baseline_Source]]*T_DataComboFile[[#This Row],[G&S reporting level indicator]]","v":0},{"$f":"T_DataComboFile[[#This Row],[2022/23 Baseline_Source]]*T_DataComboFile[[#This Row],[G&S reporting level indicator]]","v":0},{"$f":"T_DataComboFile[[#This Row],[2023/24 Baseline_Source]]*T_DataComboFile[[#This Row],[G&S reporting level indicator]]","v":0},null,null,null,null,null,null,{"$f":"T_DataComboFile[[#This Row],[2021/22 Baseline]]+T_DataComboFile[[#This Row],[2021/22 Reduction]]+T_DataComboFile[[#This Row],[2021/22 Increase]]","v":0},{"$f":"T_DataComboFile[[#This Row],[2022/23 Baseline]]+T_DataComboFile[[#This Row],[2022/23 Reduction]]+T_DataComboFile[[#This Row],[2022/23 Increase]]","v":0},{"$f":"T_DataComboFile[[#This Row],[2023/24 Baseline]]+T_DataComboFile[[#This Row],[2023/24 Reduction]]+T_DataComboFile[[#This Row],[2023/24 Increase]]","v":0}]
["NAT|Non-transfer item","36|Catering: Departmental activities","2021_22","ENE2020",36,2,4,17330,70699,36,2,4,17330,"070699","36|02|04",1,1,2,8,8,"01|01|02|08|08","National","Small Business Development","Sector Policy and Research","Monitoring and Evaluation","Non-transfer item","Current","Current payments","Goods and services","Catering: Departmental activities","Catering: Departmental activities","Economic development","Industrialisation and exports","NAT",0,5,0,25,25,25,25,30,30,30,32,33,34,1,null,{"$f":"IF(T_DataComboFile[[#This Row],[G&S reporting level indicator]]=1,$AX$16,\"Not applicable\")","v":"Not applicable"},{"$f":"IF(AND($AX$16=\"Level 3\",T_DataComboFile[[#This Row],[Econ3]] = \"Goods and services\"),IF(T_DataComboFile[[#This Row],[Econ4]] = T_DataComboFile[[#This Row],[Econ3]],1,0),IF(AND($AX$16=\"Level 4\",T_DataComboFile[[#This Row],[Econ4]] = \"Goods and services\"),0,1))","v":0},{"$f":"T_DataComboFile[[#This Row],[2016/17_Source]]*T_DataComboFile[[#This Row],[G&S reporting level indicator]]","v":0},{"$f":"T_DataComboFile[[#This Row],[2017/18_Source]]*T_DataComboFile[[#This Row],[G&S reporting level indicator]]","v":0},{"$f":"T_DataComboFile[[#This Row],[2018/19_Source]]*T_DataComboFile[[#This Row],[G&S reporting level indicator]]","v":0},{"$f":"T_DataComboFile[[#This Row],[2019/20 Main appropriation_Source]]*T_DataComboFile[[#This Row],[G&S reporting level indicator]]","v":0},{"$f":"T_DataComboFile[[#This Row],[2019/20 Adjusted appropriation_Source]]*T_DataComboFile[[#This Row],[G&S reporting level indicator]]","v":0},{"$f":"T_DataComboFile[[#This Row],[2019/20 Revised estimate_Source]]*T_DataComboFile[[#This Row],[G&S reporting level indicator]]","v":0},{"$f":"T_DataComboFile[[#This Row],[2019/20 Preliminary outcome_Source]]*T_DataComboFile[[#This Row],[G&S reporting level indicator]]","v":0},{"$f":"T_DataComboFile[[#This Row],[2020/21 Original_Source]]*T_DataComboFile[[#This Row],[G&S reporting level indicator]]","v":0},{"$f":"T_DataComboFile[[#This Row],[2020/21 SAB_Source]]*T_DataComboFile[[#This Row],[G&S reporting level indicator]]","v":0},{"$f":"T_DataComboFile[[#This Row],[2020/21 Baseline_Source]]*T_DataComboFile[[#This Row],[G&S reporting level indicator]]","v":0},{"$f":"T_DataComboFile[[#This Row],[2021/22 Baseline_Source]]*T_DataComboFile[[#This Row],[G&S reporting level indicator]]","v":0},{"$f":"T_DataComboFile[[#This Row],[2022/23 Baseline_Source]]*T_DataComboFile[[#This Row],[G&S reporting level indicator]]","v":0},{"$f":"T_DataComboFile[[#This Row],[2023/24 Baseline_Source]]*T_DataComboFile[[#This Row],[G&S reporting level indicator]]","v":0},null,null,null,null,null,null,{"$f":"T_DataComboFile[[#This Row],[2021/22 Baseline]]+T_DataComboFile[[#This Row],[2021/22 Reduction]]+T_DataComboFile[[#This Row],[2021/22 Increase]]","v":0},{"$f":"T_DataComboFile[[#This Row],[2022/23 Baseline]]+T_DataComboFile[[#This Row],[2022/23 Reduction]]+T_DataComboFile[[#This Row],[2022/23 Increase]]","v":0},{"$f":"T_DataComboFile[[#This Row],[2023/24 Baseline]]+T_DataComboFile[[#This Row],[2023/24 Reduction]]+T_DataComboFile[[#This Row],[2023/24 Increase]]","v":0}]
["NAT|Non-transfer item","36|Communication (G&S)","2021_22","ENE2020",36,2,4,17331,70700,36,2,4,17331,"070700","36|02|04",1,1,2,9,9,"01|01|02|09|09","National","Small Business Development","Sector Policy and Research","Monitoring and Evaluation","Non-transfer item","Current","Current payments","Goods and services","Communication (G&S)","Communication (G&S)","Economic development","Industrialisation and exports","NAT",7,3,3,12,12,12,12,12,12,12,13,14,15,1,null,{"$f":"IF(T_DataComboFile[[#This Row],[G&S reporting level indicator]]=1,$AX$16,\"Not applicable\")","v":"Not applicable"},{"$f":"IF(AND($AX$16=\"Level 3\",T_DataComboFile[[#This Row],[Econ3]] = \"Goods and services\"),IF(T_DataComboFile[[#This Row],[Econ4]] = T_DataComboFile[[#This Row],[Econ3]],1,0),IF(AND($AX$16=\"Level 4\",T_DataComboFile[[#This Row],[Econ4]] = \"Goods and services\"),0,1))","v":0},{"$f":"T_DataComboFile[[#This Row],[2016/17_Source]]*T_DataComboFile[[#This Row],[G&S reporting level indicator]]","v":0},{"$f":"T_DataComboFile[[#This Row],[2017/18_Source]]*T_DataComboFile[[#This Row],[G&S reporting level indicator]]","v":0},{"$f":"T_DataComboFile[[#This Row],[2018/19_Source]]*T_DataComboFile[[#This Row],[G&S reporting level indicator]]","v":0},{"$f":"T_DataComboFile[[#This Row],[2019/20 Main appropriation_Source]]*T_DataComboFile[[#This Row],[G&S reporting level indicator]]","v":0},{"$f":"T_DataComboFile[[#This Row],[2019/20 Adjusted appropriation_Source]]*T_DataComboFile[[#This Row],[G&S reporting level indicator]]","v":0},{"$f":"T_DataComboFile[[#This Row],[2019/20 Revised estimate_Source]]*T_DataComboFile[[#This Row],[G&S reporting level indicator]]","v":0},{"$f":"T_DataComboFile[[#This Row],[2019/20 Preliminary outcome_Source]]*T_DataComboFile[[#This Row],[G&S reporting level indicator]]","v":0},{"$f":"T_DataComboFile[[#This Row],[2020/21 Original_Source]]*T_DataComboFile[[#This Row],[G&S reporting level indicator]]","v":0},{"$f":"T_DataComboFile[[#This Row],[2020/21 SAB_Source]]*T_DataComboFile[[#This Row],[G&S reporting level indicator]]","v":0},{"$f":"T_DataComboFile[[#This Row],[2020/21 Baseline_Source]]*T_DataComboFile[[#This Row],[G&S reporting level indicator]]","v":0},{"$f":"T_DataComboFile[[#This Row],[2021/22 Baseline_Source]]*T_DataComboFile[[#This Row],[G&S reporting level indicator]]","v":0},{"$f":"T_DataComboFile[[#This Row],[2022/23 Baseline_Source]]*T_DataComboFile[[#This Row],[G&S reporting level indicator]]","v":0},{"$f":"T_DataComboFile[[#This Row],[2023/24 Baseline_Source]]*T_DataComboFile[[#This Row],[G&S reporting level indicator]]","v":0},null,null,null,null,null,null,{"$f":"T_DataComboFile[[#This Row],[2021/22 Baseline]]+T_DataComboFile[[#This Row],[2021/22 Reduction]]+T_DataComboFile[[#This Row],[2021/22 Increase]]","v":0},{"$f":"T_DataComboFile[[#This Row],[2022/23 Baseline]]+T_DataComboFile[[#This Row],[2022/23 Reduction]]+T_DataComboFile[[#This Row],[2022/23 Increase]]","v":0},{"$f":"T_DataComboFile[[#This Row],[2023/24 Baseline]]+T_DataComboFile[[#This Row],[2023/24 Reduction]]+T_DataComboFile[[#This Row],[2023/24 Increase]]","v":0}]
[null,null,"2021_22","ENE2020",36,2,4,null,70701,36,2,4,null,"070701","36|02|04",1,1,2,10,10,"01|01|02|10|10","National","Small Business Development","Sector Policy and Research","Monitoring and Evaluation",null,"Current","Current payments","Goods and services","Computer services","Computer services",null,null,null,0,0,0,0,0,0,0,0,0,0,0,0,0,0,null,{"$f":"IF(T_DataComboFile[[#This Row],[G&S reporting level indicator]]=1,$AX$16,\"Not applicable\")","v":"Not applicable"},{"$f":"IF(AND($AX$16=\"Level 3\",T_DataComboFile[[#This Row],[Econ3]] = \"Goods and services\"),IF(T_DataComboFile[[#This Row],[Econ4]] = T_DataComboFile[[#This Row],[Econ3]],1,0),IF(AND($AX$16=\"Level 4\",T_DataComboFile[[#This Row],[Econ4]] = \"Goods and services\"),0,1))","v":0},{"$f":"T_DataComboFile[[#This Row],[2016/17_Source]]*T_DataComboFile[[#This Row],[G&S reporting level indicator]]","v":0},{"$f":"T_DataComboFile[[#This Row],[2017/18_Source]]*T_DataComboFile[[#This Row],[G&S reporting level indicator]]","v":0},{"$f":"T_DataComboFile[[#This Row],[2018/19_Source]]*T_DataComboFile[[#This Row],[G&S reporting level indicator]]","v":0},{"$f":"T_DataComboFile[[#This Row],[2019/20 Main appropriation_Source]]*T_DataComboFile[[#This Row],[G&S reporting level indicator]]","v":0},{"$f":"T_DataComboFile[[#This Row],[2019/20 Adjusted appropriation_Source]]*T_DataComboFile[[#This Row],[G&S reporting level indicator]]","v":0},{"$f":"T_DataComboFile[[#This Row],[2019/20 Revised estimate_Source]]*T_DataComboFile[[#This Row],[G&S reporting level indicator]]","v":0},{"$f":"T_DataComboFile[[#This Row],[2019/20 Preliminary outcome_Source]]*T_DataComboFile[[#This Row],[G&S reporting level indicator]]","v":0},{"$f":"T_DataComboFile[[#This Row],[2020/21 Original_Source]]*T_DataComboFile[[#This Row],[G&S reporting level indicator]]","v":0},{"$f":"T_DataComboFile[[#This Row],[2020/21 SAB_Source]]*T_DataComboFile[[#This Row],[G&S reporting level indicator]]","v":0},{"$f":"T_DataComboFile[[#This Row],[2020/21 Baseline_Source]]*T_DataComboFile[[#This Row],[G&S reporting level indicator]]","v":0},{"$f":"T_DataComboFile[[#This Row],[2021/22 Baseline_Source]]*T_DataComboFile[[#This Row],[G&S reporting level indicator]]","v":0},{"$f":"T_DataComboFile[[#This Row],[2022/23 Baseline_Source]]*T_DataComboFile[[#This Row],[G&S reporting level indicator]]","v":0},{"$f":"T_DataComboFile[[#This Row],[2023/24 Baseline_Source]]*T_DataComboFile[[#This Row],[G&S reporting level indicator]]","v":0},null,null,null,null,null,null,{"$f":"T_DataComboFile[[#This Row],[2021/22 Baseline]]+T_DataComboFile[[#This Row],[2021/22 Reduction]]+T_DataComboFile[[#This Row],[2021/22 Increase]]","v":0},{"$f":"T_DataComboFile[[#This Row],[2022/23 Baseline]]+T_DataComboFile[[#This Row],[2022/23 Reduction]]+T_DataComboFile[[#This Row],[2022/23 Increase]]","v":0},{"$f":"T_DataComboFile[[#This Row],[2023/24 Baseline]]+T_DataComboFile[[#This Row],[2023/24 Reduction]]+T_DataComboFile[[#This Row],[2023/24 Increase]]","v":0}]
["NAT|Non-transfer item","36|Consultants: Business and advisory services","2021_22","ENE2020",36,2,4,17332,70702,36,2,4,17332,"070702","36|02|04",1,1,2,11,11,"01|01|02|11|11","National","Small Business Development","Sector Policy and Research","Monitoring and Evaluation","Non-transfer item","Current","Current payments","Goods and services","Consultants: Business and advisory services","Consultants: Business and advisory services","Economic development","Industrialisation and exports","NAT",0,0,0,3748,448,448,448,1500,0,1500,1800,2000,2088,1,null,{"$f":"IF(T_DataComboFile[[#This Row],[G&S reporting level indicator]]=1,$AX$16,\"Not applicable\")","v":"Not applicable"},{"$f":"IF(AND($AX$16=\"Level 3\",T_DataComboFile[[#This Row],[Econ3]] = \"Goods and services\"),IF(T_DataComboFile[[#This Row],[Econ4]] = T_DataComboFile[[#This Row],[Econ3]],1,0),IF(AND($AX$16=\"Level 4\",T_DataComboFile[[#This Row],[Econ4]] = \"Goods and services\"),0,1))","v":0},{"$f":"T_DataComboFile[[#This Row],[2016/17_Source]]*T_DataComboFile[[#This Row],[G&S reporting level indicator]]","v":0},{"$f":"T_DataComboFile[[#This Row],[2017/18_Source]]*T_DataComboFile[[#This Row],[G&S reporting level indicator]]","v":0},{"$f":"T_DataComboFile[[#This Row],[2018/19_Source]]*T_DataComboFile[[#This Row],[G&S reporting level indicator]]","v":0},{"$f":"T_DataComboFile[[#This Row],[2019/20 Main appropriation_Source]]*T_DataComboFile[[#This Row],[G&S reporting level indicator]]","v":0},{"$f":"T_DataComboFile[[#This Row],[2019/20 Adjusted appropriation_Source]]*T_DataComboFile[[#This Row],[G&S reporting level indicator]]","v":0},{"$f":"T_DataComboFile[[#This Row],[2019/20 Revised estimate_Source]]*T_DataComboFile[[#This Row],[G&S reporting level indicator]]","v":0},{"$f":"T_DataComboFile[[#This Row],[2019/20 Preliminary outcome_Source]]*T_DataComboFile[[#This Row],[G&S reporting level indicator]]","v":0},{"$f":"T_DataComboFile[[#This Row],[2020/21 Original_Source]]*T_DataComboFile[[#This Row],[G&S reporting level indicator]]","v":0},{"$f":"T_DataComboFile[[#This Row],[2020/21 SAB_Source]]*T_DataComboFile[[#This Row],[G&S reporting level indicator]]","v":0},{"$f":"T_DataComboFile[[#This Row],[2020/21 Baseline_Source]]*T_DataComboFile[[#This Row],[G&S reporting level indicator]]","v":0},{"$f":"T_DataComboFile[[#This Row],[2021/22 Baseline_Source]]*T_DataComboFile[[#This Row],[G&S reporting level indicator]]","v":0},{"$f":"T_DataComboFile[[#This Row],[2022/23 Baseline_Source]]*T_DataComboFile[[#This Row],[G&S reporting level indicator]]","v":0},{"$f":"T_DataComboFile[[#This Row],[2023/24 Baseline_Source]]*T_DataComboFile[[#This Row],[G&S reporting level indicator]]","v":0},null,null,null,null,null,null,{"$f":"T_DataComboFile[[#This Row],[2021/22 Baseline]]+T_DataComboFile[[#This Row],[2021/22 Reduction]]+T_DataComboFile[[#This Row],[2021/22 Increase]]","v":0},{"$f":"T_DataComboFile[[#This Row],[2022/23 Baseline]]+T_DataComboFile[[#This Row],[2022/23 Reduction]]+T_DataComboFile[[#This Row],[2022/23 Increase]]","v":0},{"$f":"T_DataComboFile[[#This Row],[2023/24 Baseline]]+T_DataComboFile[[#This Row],[2023/24 Reduction]]+T_DataComboFile[[#This Row],[2023/24 Increase]]","v":0}]
[null,null,"2021_22","ENE2020",36,2,4,null,70703,36,2,4,null,"070703","36|02|04",1,1,2,12,12,"01|01|02|12|12","National","Small Business Development","Sector Policy and Research","Monitoring and Evaluation",null,"Current","Current payments","Goods and services","Infrastructure and planning services","Infrastructure and planning services",null,null,null,0,0,0,0,0,0,0,0,0,0,0,0,0,0,null,{"$f":"IF(T_DataComboFile[[#This Row],[G&S reporting level indicator]]=1,$AX$16,\"Not applicable\")","v":"Not applicable"},{"$f":"IF(AND($AX$16=\"Level 3\",T_DataComboFile[[#This Row],[Econ3]] = \"Goods and services\"),IF(T_DataComboFile[[#This Row],[Econ4]] = T_DataComboFile[[#This Row],[Econ3]],1,0),IF(AND($AX$16=\"Level 4\",T_DataComboFile[[#This Row],[Econ4]] = \"Goods and services\"),0,1))","v":0},{"$f":"T_DataComboFile[[#This Row],[2016/17_Source]]*T_DataComboFile[[#This Row],[G&S reporting level indicator]]","v":0},{"$f":"T_DataComboFile[[#This Row],[2017/18_Source]]*T_DataComboFile[[#This Row],[G&S reporting level indicator]]","v":0},{"$f":"T_DataComboFile[[#This Row],[2018/19_Source]]*T_DataComboFile[[#This Row],[G&S reporting level indicator]]","v":0},{"$f":"T_DataComboFile[[#This Row],[2019/20 Main appropriation_Source]]*T_DataComboFile[[#This Row],[G&S reporting level indicator]]","v":0},{"$f":"T_DataComboFile[[#This Row],[2019/20 Adjusted appropriation_Source]]*T_DataComboFile[[#This Row],[G&S reporting level indicator]]","v":0},{"$f":"T_DataComboFile[[#This Row],[2019/20 Revised estimate_Source]]*T_DataComboFile[[#This Row],[G&S reporting level indicator]]","v":0},{"$f":"T_DataComboFile[[#This Row],[2019/20 Preliminary outcome_Source]]*T_DataComboFile[[#This Row],[G&S reporting level indicator]]","v":0},{"$f":"T_DataComboFile[[#This Row],[2020/21 Original_Source]]*T_DataComboFile[[#This Row],[G&S reporting level indicator]]","v":0},{"$f":"T_DataComboFile[[#This Row],[2020/21 SAB_Source]]*T_DataComboFile[[#This Row],[G&S reporting level indicator]]","v":0},{"$f":"T_DataComboFile[[#This Row],[2020/21 Baseline_Source]]*T_DataComboFile[[#This Row],[G&S reporting level indicator]]","v":0},{"$f":"T_DataComboFile[[#This Row],[2021/22 Baseline_Source]]*T_DataComboFile[[#This Row],[G&S reporting level indicator]]","v":0},{"$f":"T_DataComboFile[[#This Row],[2022/23 Baseline_Source]]*T_DataComboFile[[#This Row],[G&S reporting level indicator]]","v":0},{"$f":"T_DataComboFile[[#This Row],[2023/24 Baseline_Source]]*T_DataComboFile[[#This Row],[G&S reporting level indicator]]","v":0},null,null,null,null,null,null,{"$f":"T_DataComboFile[[#This Row],[2021/22 Baseline]]+T_DataComboFile[[#This Row],[2021/22 Reduction]]+T_DataComboFile[[#This Row],[2021/22 Increase]]","v":0},{"$f":"T_DataComboFile[[#This Row],[2022/23 Baseline]]+T_DataComboFile[[#This Row],[2022/23 Reduction]]+T_DataComboFile[[#This Row],[2022/23 Increase]]","v":0},{"$f":"T_DataComboFile[[#This Row],[2023/24 Baseline]]+T_DataComboFile[[#This Row],[2023/24 Reduction]]+T_DataComboFile[[#This Row],[2023/24 Increase]]","v":0}]
[null,null,"2021_22","ENE2020",36,2,4,null,70704,36,2,4,null,"070704","36|02|04",1,1,2,13,13,"01|01|02|13|13","National","Small Business Development","Sector Policy and Research","Monitoring and Evaluation",null,"Current","Current payments","Goods and services","Laboratory services","Laboratory services",null,null,null,0,0,0,0,0,0,0,0,0,0,0,0,0,0,null,{"$f":"IF(T_DataComboFile[[#This Row],[G&S reporting level indicator]]=1,$AX$16,\"Not applicable\")","v":"Not applicable"},{"$f":"IF(AND($AX$16=\"Level 3\",T_DataComboFile[[#This Row],[Econ3]] = \"Goods and services\"),IF(T_DataComboFile[[#This Row],[Econ4]] = T_DataComboFile[[#This Row],[Econ3]],1,0),IF(AND($AX$16=\"Level 4\",T_DataComboFile[[#This Row],[Econ4]] = \"Goods and services\"),0,1))","v":0},{"$f":"T_DataComboFile[[#This Row],[2016/17_Source]]*T_DataComboFile[[#This Row],[G&S reporting level indicator]]","v":0},{"$f":"T_DataComboFile[[#This Row],[2017/18_Source]]*T_DataComboFile[[#This Row],[G&S reporting level indicator]]","v":0},{"$f":"T_DataComboFile[[#This Row],[2018/19_Source]]*T_DataComboFile[[#This Row],[G&S reporting level indicator]]","v":0},{"$f":"T_DataComboFile[[#This Row],[2019/20 Main appropriation_Source]]*T_DataComboFile[[#This Row],[G&S reporting level indicator]]","v":0},{"$f":"T_DataComboFile[[#This Row],[2019/20 Adjusted appropriation_Source]]*T_DataComboFile[[#This Row],[G&S reporting level indicator]]","v":0},{"$f":"T_DataComboFile[[#This Row],[2019/20 Revised estimate_Source]]*T_DataComboFile[[#This Row],[G&S reporting level indicator]]","v":0},{"$f":"T_DataComboFile[[#This Row],[2019/20 Preliminary outcome_Source]]*T_DataComboFile[[#This Row],[G&S reporting level indicator]]","v":0},{"$f":"T_DataComboFile[[#This Row],[2020/21 Original_Source]]*T_DataComboFile[[#This Row],[G&S reporting level indicator]]","v":0},{"$f":"T_DataComboFile[[#This Row],[2020/21 SAB_Source]]*T_DataComboFile[[#This Row],[G&S reporting level indicator]]","v":0},{"$f":"T_DataComboFile[[#This Row],[2020/21 Baseline_Source]]*T_DataComboFile[[#This Row],[G&S reporting level indicator]]","v":0},{"$f":"T_DataComboFile[[#This Row],[2021/22 Baseline_Source]]*T_DataComboFile[[#This Row],[G&S reporting level indicator]]","v":0},{"$f":"T_DataComboFile[[#This Row],[2022/23 Baseline_Source]]*T_DataComboFile[[#This Row],[G&S reporting level indicator]]","v":0},{"$f":"T_DataComboFile[[#This Row],[2023/24 Baseline_Source]]*T_DataComboFile[[#This Row],[G&S reporting level indicator]]","v":0},null,null,null,null,null,null,{"$f":"T_DataComboFile[[#This Row],[2021/22 Baseline]]+T_DataComboFile[[#This Row],[2021/22 Reduction]]+T_DataComboFile[[#This Row],[2021/22 Increase]]","v":0},{"$f":"T_DataComboFile[[#This Row],[2022/23 Baseline]]+T_DataComboFile[[#This Row],[2022/23 Reduction]]+T_DataComboFile[[#This Row],[2022/23 Increase]]","v":0},{"$f":"T_DataComboFile[[#This Row],[2023/24 Baseline]]+T_DataComboFile[[#This Row],[2023/24 Reduction]]+T_DataComboFile[[#This Row],[2023/24 Increase]]","v":0}]
[null,null,"2021_22","ENE2020",36,2,4,null,70705,36,2,4,null,"070705","36|02|04",1,1,2,14,14,"01|01|02|14|14","National","Small Business Development","Sector Policy and Research","Monitoring and Evaluation",null,"Current","Current payments","Goods and services","Legal services (G&S)","Legal services (G&S)",null,null,null,0,0,0,0,0,0,0,0,0,0,0,0,0,0,null,{"$f":"IF(T_DataComboFile[[#This Row],[G&S reporting level indicator]]=1,$AX$16,\"Not applicable\")","v":"Not applicable"},{"$f":"IF(AND($AX$16=\"Level 3\",T_DataComboFile[[#This Row],[Econ3]] = \"Goods and services\"),IF(T_DataComboFile[[#This Row],[Econ4]] = T_DataComboFile[[#This Row],[Econ3]],1,0),IF(AND($AX$16=\"Level 4\",T_DataComboFile[[#This Row],[Econ4]] = \"Goods and services\"),0,1))","v":0},{"$f":"T_DataComboFile[[#This Row],[2016/17_Source]]*T_DataComboFile[[#This Row],[G&S reporting level indicator]]","v":0},{"$f":"T_DataComboFile[[#This Row],[2017/18_Source]]*T_DataComboFile[[#This Row],[G&S reporting level indicator]]","v":0},{"$f":"T_DataComboFile[[#This Row],[2018/19_Source]]*T_DataComboFile[[#This Row],[G&S reporting level indicator]]","v":0},{"$f":"T_DataComboFile[[#This Row],[2019/20 Main appropriation_Source]]*T_DataComboFile[[#This Row],[G&S reporting level indicator]]","v":0},{"$f":"T_DataComboFile[[#This Row],[2019/20 Adjusted appropriation_Source]]*T_DataComboFile[[#This Row],[G&S reporting level indicator]]","v":0},{"$f":"T_DataComboFile[[#This Row],[2019/20 Revised estimate_Source]]*T_DataComboFile[[#This Row],[G&S reporting level indicator]]","v":0},{"$f":"T_DataComboFile[[#This Row],[2019/20 Preliminary outcome_Source]]*T_DataComboFile[[#This Row],[G&S reporting level indicator]]","v":0},{"$f":"T_DataComboFile[[#This Row],[2020/21 Original_Source]]*T_DataComboFile[[#This Row],[G&S reporting level indicator]]","v":0},{"$f":"T_DataComboFile[[#This Row],[2020/21 SAB_Source]]*T_DataComboFile[[#This Row],[G&S reporting level indicator]]","v":0},{"$f":"T_DataComboFile[[#This Row],[2020/21 Baseline_Source]]*T_DataComboFile[[#This Row],[G&S reporting level indicator]]","v":0},{"$f":"T_DataComboFile[[#This Row],[2021/22 Baseline_Source]]*T_DataComboFile[[#This Row],[G&S reporting level indicator]]","v":0},{"$f":"T_DataComboFile[[#This Row],[2022/23 Baseline_Source]]*T_DataComboFile[[#This Row],[G&S reporting level indicator]]","v":0},{"$f":"T_DataComboFile[[#This Row],[2023/24 Baseline_Source]]*T_DataComboFile[[#This Row],[G&S reporting level indicator]]","v":0},null,null,null,null,null,null,{"$f":"T_DataComboFile[[#This Row],[2021/22 Baseline]]+T_DataComboFile[[#This Row],[2021/22 Reduction]]+T_DataComboFile[[#This Row],[2021/22 Increase]]","v":0},{"$f":"T_DataComboFile[[#This Row],[2022/23 Baseline]]+T_DataComboFile[[#This Row],[2022/23 Reduction]]+T_DataComboFile[[#This Row],[2022/23 Increase]]","v":0},{"$f":"T_DataComboFile[[#This Row],[2023/24 Baseline]]+T_DataComboFile[[#This Row],[2023/24 Reduction]]+T_DataComboFile[[#This Row],[2023/24 Increase]]","v":0}]
[null,null,"2021_22","ENE2020",36,2,4,null,70706,36,2,4,null,"070706","36|02|04",1,1,2,15,15,"01|01|02|15|15","National","Small Business Development","Sector Policy and Research","Monitoring and Evaluation",null,"Current","Current payments","Goods and services","Science and technological services","Science and technological services",null,null,null,0,0,0,0,0,0,0,0,0,0,0,0,0,0,null,{"$f":"IF(T_DataComboFile[[#This Row],[G&S reporting level indicator]]=1,$AX$16,\"Not applicable\")","v":"Not applicable"},{"$f":"IF(AND($AX$16=\"Level 3\",T_DataComboFile[[#This Row],[Econ3]] = \"Goods and services\"),IF(T_DataComboFile[[#This Row],[Econ4]] = T_DataComboFile[[#This Row],[Econ3]],1,0),IF(AND($AX$16=\"Level 4\",T_DataComboFile[[#This Row],[Econ4]] = \"Goods and services\"),0,1))","v":0},{"$f":"T_DataComboFile[[#This Row],[2016/17_Source]]*T_DataComboFile[[#This Row],[G&S reporting level indicator]]","v":0},{"$f":"T_DataComboFile[[#This Row],[2017/18_Source]]*T_DataComboFile[[#This Row],[G&S reporting level indicator]]","v":0},{"$f":"T_DataComboFile[[#This Row],[2018/19_Source]]*T_DataComboFile[[#This Row],[G&S reporting level indicator]]","v":0},{"$f":"T_DataComboFile[[#This Row],[2019/20 Main appropriation_Source]]*T_DataComboFile[[#This Row],[G&S reporting level indicator]]","v":0},{"$f":"T_DataComboFile[[#This Row],[2019/20 Adjusted appropriation_Source]]*T_DataComboFile[[#This Row],[G&S reporting level indicator]]","v":0},{"$f":"T_DataComboFile[[#This Row],[2019/20 Revised estimate_Source]]*T_DataComboFile[[#This Row],[G&S reporting level indicator]]","v":0},{"$f":"T_DataComboFile[[#This Row],[2019/20 Preliminary outcome_Source]]*T_DataComboFile[[#This Row],[G&S reporting level indicator]]","v":0},{"$f":"T_DataComboFile[[#This Row],[2020/21 Original_Source]]*T_DataComboFile[[#This Row],[G&S reporting level indicator]]","v":0},{"$f":"T_DataComboFile[[#This Row],[2020/21 SAB_Source]]*T_DataComboFile[[#This Row],[G&S reporting level indicator]]","v":0},{"$f":"T_DataComboFile[[#This Row],[2020/21 Baseline_Source]]*T_DataComboFile[[#This Row],[G&S reporting level indicator]]","v":0},{"$f":"T_DataComboFile[[#This Row],[2021/22 Baseline_Source]]*T_DataComboFile[[#This Row],[G&S reporting level indicator]]","v":0},{"$f":"T_DataComboFile[[#This Row],[2022/23 Baseline_Source]]*T_DataComboFile[[#This Row],[G&S reporting level indicator]]","v":0},{"$f":"T_DataComboFile[[#This Row],[2023/24 Baseline_Source]]*T_DataComboFile[[#This Row],[G&S reporting level indicator]]","v":0},null,null,null,null,null,null,{"$f":"T_DataComboFile[[#This Row],[2021/22 Baseline]]+T_DataComboFile[[#This Row],[2021/22 Reduction]]+T_DataComboFile[[#This Row],[2021/22 Increase]]","v":0},{"$f":"T_DataComboFile[[#This Row],[2022/23 Baseline]]+T_DataComboFile[[#This Row],[2022/23 Reduction]]+T_DataComboFile[[#This Row],[2022/23 Increase]]","v":0},{"$f":"T_DataComboFile[[#This Row],[2023/24 Baseline]]+T_DataComboFile[[#This Row],[2023/24 Reduction]]+T_DataComboFile[[#This Row],[2023/24 Increase]]","v":0}]
[null,null,"2021_22","ENE2020",36,2,4,null,70707,36,2,4,null,"070707","36|02|04",1,1,2,16,16,"01|01|02|16|16","National","Small Business Development","Sector Policy and Research","Monitoring and Evaluation",null,"Current","Current payments","Goods and services","Contractors","Contractors",null,null,null,0,0,0,0,0,0,0,0,0,0,0,0,0,0,null,{"$f":"IF(T_DataComboFile[[#This Row],[G&S reporting level indicator]]=1,$AX$16,\"Not applicable\")","v":"Not applicable"},{"$f":"IF(AND($AX$16=\"Level 3\",T_DataComboFile[[#This Row],[Econ3]] = \"Goods and services\"),IF(T_DataComboFile[[#This Row],[Econ4]] = T_DataComboFile[[#This Row],[Econ3]],1,0),IF(AND($AX$16=\"Level 4\",T_DataComboFile[[#This Row],[Econ4]] = \"Goods and services\"),0,1))","v":0},{"$f":"T_DataComboFile[[#This Row],[2016/17_Source]]*T_DataComboFile[[#This Row],[G&S reporting level indicator]]","v":0},{"$f":"T_DataComboFile[[#This Row],[2017/18_Source]]*T_DataComboFile[[#This Row],[G&S reporting level indicator]]","v":0},{"$f":"T_DataComboFile[[#This Row],[2018/19_Source]]*T_DataComboFile[[#This Row],[G&S reporting level indicator]]","v":0},{"$f":"T_DataComboFile[[#This Row],[2019/20 Main appropriation_Source]]*T_DataComboFile[[#This Row],[G&S reporting level indicator]]","v":0},{"$f":"T_DataComboFile[[#This Row],[2019/20 Adjusted appropriation_Source]]*T_DataComboFile[[#This Row],[G&S reporting level indicator]]","v":0},{"$f":"T_DataComboFile[[#This Row],[2019/20 Revised estimate_Source]]*T_DataComboFile[[#This Row],[G&S reporting level indicator]]","v":0},{"$f":"T_DataComboFile[[#This Row],[2019/20 Preliminary outcome_Source]]*T_DataComboFile[[#This Row],[G&S reporting level indicator]]","v":0},{"$f":"T_DataComboFile[[#This Row],[2020/21 Original_Source]]*T_DataComboFile[[#This Row],[G&S reporting level indicator]]","v":0},{"$f":"T_DataComboFile[[#This Row],[2020/21 SAB_Source]]*T_DataComboFile[[#This Row],[G&S reporting level indicator]]","v":0},{"$f":"T_DataComboFile[[#This Row],[2020/21 Baseline_Source]]*T_DataComboFile[[#This Row],[G&S reporting level indicator]]","v":0},{"$f":"T_DataComboFile[[#This Row],[2021/22 Baseline_Source]]*T_DataComboFile[[#This Row],[G&S reporting level indicator]]","v":0},{"$f":"T_DataComboFile[[#This Row],[2022/23 Baseline_Source]]*T_DataComboFile[[#This Row],[G&S reporting level indicator]]","v":0},{"$f":"T_DataComboFile[[#This Row],[2023/24 Baseline_Source]]*T_DataComboFile[[#This Row],[G&S reporting level indicator]]","v":0},null,null,null,null,null,null,{"$f":"T_DataComboFile[[#This Row],[2021/22 Baseline]]+T_DataComboFile[[#This Row],[2021/22 Reduction]]+T_DataComboFile[[#This Row],[2021/22 Increase]]","v":0},{"$f":"T_DataComboFile[[#This Row],[2022/23 Baseline]]+T_DataComboFile[[#This Row],[2022/23 Reduction]]+T_DataComboFile[[#This Row],[2022/23 Increase]]","v":0},{"$f":"T_DataComboFile[[#This Row],[2023/24 Baseline]]+T_DataComboFile[[#This Row],[2023/24 Reduction]]+T_DataComboFile[[#This Row],[2023/24 Increase]]","v":0}]
[null,null,"2021_22","ENE2020",36,2,4,null,70708,36,2,4,null,"070708","36|02|04",1,1,2,17,17,"01|01|02|17|17","National","Small Business Development","Sector Policy and Research","Monitoring and Evaluation",null,"Current","Current payments","Goods and services","Agency and support/outsourced services","Agency and support/outsourced services",null,null,null,0,0,0,0,0,0,0,0,0,0,0,0,0,0,null,{"$f":"IF(T_DataComboFile[[#This Row],[G&S reporting level indicator]]=1,$AX$16,\"Not applicable\")","v":"Not applicable"},{"$f":"IF(AND($AX$16=\"Level 3\",T_DataComboFile[[#This Row],[Econ3]] = \"Goods and services\"),IF(T_DataComboFile[[#This Row],[Econ4]] = T_DataComboFile[[#This Row],[Econ3]],1,0),IF(AND($AX$16=\"Level 4\",T_DataComboFile[[#This Row],[Econ4]] = \"Goods and services\"),0,1))","v":0},{"$f":"T_DataComboFile[[#This Row],[2016/17_Source]]*T_DataComboFile[[#This Row],[G&S reporting level indicator]]","v":0},{"$f":"T_DataComboFile[[#This Row],[2017/18_Source]]*T_DataComboFile[[#This Row],[G&S reporting level indicator]]","v":0},{"$f":"T_DataComboFile[[#This Row],[2018/19_Source]]*T_DataComboFile[[#This Row],[G&S reporting level indicator]]","v":0},{"$f":"T_DataComboFile[[#This Row],[2019/20 Main appropriation_Source]]*T_DataComboFile[[#This Row],[G&S reporting level indicator]]","v":0},{"$f":"T_DataComboFile[[#This Row],[2019/20 Adjusted appropriation_Source]]*T_DataComboFile[[#This Row],[G&S reporting level indicator]]","v":0},{"$f":"T_DataComboFile[[#This Row],[2019/20 Revised estimate_Source]]*T_DataComboFile[[#This Row],[G&S reporting level indicator]]","v":0},{"$f":"T_DataComboFile[[#This Row],[2019/20 Preliminary outcome_Source]]*T_DataComboFile[[#This Row],[G&S reporting level indicator]]","v":0},{"$f":"T_DataComboFile[[#This Row],[2020/21 Original_Source]]*T_DataComboFile[[#This Row],[G&S reporting level indicator]]","v":0},{"$f":"T_DataComboFile[[#This Row],[2020/21 SAB_Source]]*T_DataComboFile[[#This Row],[G&S reporting level indicator]]","v":0},{"$f":"T_DataComboFile[[#This Row],[2020/21 Baseline_Source]]*T_DataComboFile[[#This Row],[G&S reporting level indicator]]","v":0},{"$f":"T_DataComboFile[[#This Row],[2021/22 Baseline_Source]]*T_DataComboFile[[#This Row],[G&S reporting level indicator]]","v":0},{"$f":"T_DataComboFile[[#This Row],[2022/23 Baseline_Source]]*T_DataComboFile[[#This Row],[G&S reporting level indicator]]","v":0},{"$f":"T_DataComboFile[[#This Row],[2023/24 Baseline_Source]]*T_DataComboFile[[#This Row],[G&S reporting level indicator]]","v":0},null,null,null,null,null,null,{"$f":"T_DataComboFile[[#This Row],[2021/22 Baseline]]+T_DataComboFile[[#This Row],[2021/22 Reduction]]+T_DataComboFile[[#This Row],[2021/22 Increase]]","v":0},{"$f":"T_DataComboFile[[#This Row],[2022/23 Baseline]]+T_DataComboFile[[#This Row],[2022/23 Reduction]]+T_DataComboFile[[#This Row],[2022/23 Increase]]","v":0},{"$f":"T_DataComboFile[[#This Row],[2023/24 Baseline]]+T_DataComboFile[[#This Row],[2023/24 Reduction]]+T_DataComboFile[[#This Row],[2023/24 Increase]]","v":0}]
[null,null,"2021_22","ENE2020",36,2,4,null,70709,36,2,4,null,"070709","36|02|04",1,1,2,18,18,"01|01|02|18|18","National","Small Business Development","Sector Policy and Research","Monitoring and Evaluation",null,"Current","Current payments","Goods and services","Entertainment","Entertainment",null,null,null,0,0,0,0,0,0,0,0,0,0,0,0,0,0,null,{"$f":"IF(T_DataComboFile[[#This Row],[G&S reporting level indicator]]=1,$AX$16,\"Not applicable\")","v":"Not applicable"},{"$f":"IF(AND($AX$16=\"Level 3\",T_DataComboFile[[#This Row],[Econ3]] = \"Goods and services\"),IF(T_DataComboFile[[#This Row],[Econ4]] = T_DataComboFile[[#This Row],[Econ3]],1,0),IF(AND($AX$16=\"Level 4\",T_DataComboFile[[#This Row],[Econ4]] = \"Goods and services\"),0,1))","v":0},{"$f":"T_DataComboFile[[#This Row],[2016/17_Source]]*T_DataComboFile[[#This Row],[G&S reporting level indicator]]","v":0},{"$f":"T_DataComboFile[[#This Row],[2017/18_Source]]*T_DataComboFile[[#This Row],[G&S reporting level indicator]]","v":0},{"$f":"T_DataComboFile[[#This Row],[2018/19_Source]]*T_DataComboFile[[#This Row],[G&S reporting level indicator]]","v":0},{"$f":"T_DataComboFile[[#This Row],[2019/20 Main appropriation_Source]]*T_DataComboFile[[#This Row],[G&S reporting level indicator]]","v":0},{"$f":"T_DataComboFile[[#This Row],[2019/20 Adjusted appropriation_Source]]*T_DataComboFile[[#This Row],[G&S reporting level indicator]]","v":0},{"$f":"T_DataComboFile[[#This Row],[2019/20 Revised estimate_Source]]*T_DataComboFile[[#This Row],[G&S reporting level indicator]]","v":0},{"$f":"T_DataComboFile[[#This Row],[2019/20 Preliminary outcome_Source]]*T_DataComboFile[[#This Row],[G&S reporting level indicator]]","v":0},{"$f":"T_DataComboFile[[#This Row],[2020/21 Original_Source]]*T_DataComboFile[[#This Row],[G&S reporting level indicator]]","v":0},{"$f":"T_DataComboFile[[#This Row],[2020/21 SAB_Source]]*T_DataComboFile[[#This Row],[G&S reporting level indicator]]","v":0},{"$f":"T_DataComboFile[[#This Row],[2020/21 Baseline_Source]]*T_DataComboFile[[#This Row],[G&S reporting level indicator]]","v":0},{"$f":"T_DataComboFile[[#This Row],[2021/22 Baseline_Source]]*T_DataComboFile[[#This Row],[G&S reporting level indicator]]","v":0},{"$f":"T_DataComboFile[[#This Row],[2022/23 Baseline_Source]]*T_DataComboFile[[#This Row],[G&S reporting level indicator]]","v":0},{"$f":"T_DataComboFile[[#This Row],[2023/24 Baseline_Source]]*T_DataComboFile[[#This Row],[G&S reporting level indicator]]","v":0},null,null,null,null,null,null,{"$f":"T_DataComboFile[[#This Row],[2021/22 Baseline]]+T_DataComboFile[[#This Row],[2021/22 Reduction]]+T_DataComboFile[[#This Row],[2021/22 Increase]]","v":0},{"$f":"T_DataComboFile[[#This Row],[2022/23 Baseline]]+T_DataComboFile[[#This Row],[2022/23 Reduction]]+T_DataComboFile[[#This Row],[2022/23 Increase]]","v":0},{"$f":"T_DataComboFile[[#This Row],[2023/24 Baseline]]+T_DataComboFile[[#This Row],[2023/24 Reduction]]+T_DataComboFile[[#This Row],[2023/24 Increase]]","v":0}]
["NAT|Non-transfer item","36|Fleet services (including government motor transport)","2021_22","ENE2020",36,2,4,17333,70710,36,2,4,17333,"070710","36|02|04",1,1,2,19,19,"01|01|02|19|19","National","Small Business Development","Sector Policy and Research","Monitoring and Evaluation","Non-transfer item","Current","Current payments","Goods and services","Fleet services (including government motor transport)","Fleet services (including government motor transport)","Economic development","Industrialisation and exports","NAT",1,0,0,0,3,3,3,0,0,0,0,0,0,1,null,{"$f":"IF(T_DataComboFile[[#This Row],[G&S reporting level indicator]]=1,$AX$16,\"Not applicable\")","v":"Not applicable"},{"$f":"IF(AND($AX$16=\"Level 3\",T_DataComboFile[[#This Row],[Econ3]] = \"Goods and services\"),IF(T_DataComboFile[[#This Row],[Econ4]] = T_DataComboFile[[#This Row],[Econ3]],1,0),IF(AND($AX$16=\"Level 4\",T_DataComboFile[[#This Row],[Econ4]] = \"Goods and services\"),0,1))","v":0},{"$f":"T_DataComboFile[[#This Row],[2016/17_Source]]*T_DataComboFile[[#This Row],[G&S reporting level indicator]]","v":0},{"$f":"T_DataComboFile[[#This Row],[2017/18_Source]]*T_DataComboFile[[#This Row],[G&S reporting level indicator]]","v":0},{"$f":"T_DataComboFile[[#This Row],[2018/19_Source]]*T_DataComboFile[[#This Row],[G&S reporting level indicator]]","v":0},{"$f":"T_DataComboFile[[#This Row],[2019/20 Main appropriation_Source]]*T_DataComboFile[[#This Row],[G&S reporting level indicator]]","v":0},{"$f":"T_DataComboFile[[#This Row],[2019/20 Adjusted appropriation_Source]]*T_DataComboFile[[#This Row],[G&S reporting level indicator]]","v":0},{"$f":"T_DataComboFile[[#This Row],[2019/20 Revised estimate_Source]]*T_DataComboFile[[#This Row],[G&S reporting level indicator]]","v":0},{"$f":"T_DataComboFile[[#This Row],[2019/20 Preliminary outcome_Source]]*T_DataComboFile[[#This Row],[G&S reporting level indicator]]","v":0},{"$f":"T_DataComboFile[[#This Row],[2020/21 Original_Source]]*T_DataComboFile[[#This Row],[G&S reporting level indicator]]","v":0},{"$f":"T_DataComboFile[[#This Row],[2020/21 SAB_Source]]*T_DataComboFile[[#This Row],[G&S reporting level indicator]]","v":0},{"$f":"T_DataComboFile[[#This Row],[2020/21 Baseline_Source]]*T_DataComboFile[[#This Row],[G&S reporting level indicator]]","v":0},{"$f":"T_DataComboFile[[#This Row],[2021/22 Baseline_Source]]*T_DataComboFile[[#This Row],[G&S reporting level indicator]]","v":0},{"$f":"T_DataComboFile[[#This Row],[2022/23 Baseline_Source]]*T_DataComboFile[[#This Row],[G&S reporting level indicator]]","v":0},{"$f":"T_DataComboFile[[#This Row],[2023/24 Baseline_Source]]*T_DataComboFile[[#This Row],[G&S reporting level indicator]]","v":0},null,null,null,null,null,null,{"$f":"T_DataComboFile[[#This Row],[2021/22 Baseline]]+T_DataComboFile[[#This Row],[2021/22 Reduction]]+T_DataComboFile[[#This Row],[2021/22 Increase]]","v":0},{"$f":"T_DataComboFile[[#This Row],[2022/23 Baseline]]+T_DataComboFile[[#This Row],[2022/23 Reduction]]+T_DataComboFile[[#This Row],[2022/23 Increase]]","v":0},{"$f":"T_DataComboFile[[#This Row],[2023/24 Baseline]]+T_DataComboFile[[#This Row],[2023/24 Reduction]]+T_DataComboFile[[#This Row],[2023/24 Increase]]","v":0}]
[null,null,"2021_22","ENE2020",36,2,4,null,70711,36,2,4,null,"070711","36|02|04",1,1,2,20,20,"01|01|02|20|20","National","Small Business Development","Sector Policy and Research","Monitoring and Evaluation",null,"Current","Current payments","Goods and services","Housing","Housing",null,null,null,0,0,0,0,0,0,0,0,0,0,0,0,0,0,null,{"$f":"IF(T_DataComboFile[[#This Row],[G&S reporting level indicator]]=1,$AX$16,\"Not applicable\")","v":"Not applicable"},{"$f":"IF(AND($AX$16=\"Level 3\",T_DataComboFile[[#This Row],[Econ3]] = \"Goods and services\"),IF(T_DataComboFile[[#This Row],[Econ4]] = T_DataComboFile[[#This Row],[Econ3]],1,0),IF(AND($AX$16=\"Level 4\",T_DataComboFile[[#This Row],[Econ4]] = \"Goods and services\"),0,1))","v":0},{"$f":"T_DataComboFile[[#This Row],[2016/17_Source]]*T_DataComboFile[[#This Row],[G&S reporting level indicator]]","v":0},{"$f":"T_DataComboFile[[#This Row],[2017/18_Source]]*T_DataComboFile[[#This Row],[G&S reporting level indicator]]","v":0},{"$f":"T_DataComboFile[[#This Row],[2018/19_Source]]*T_DataComboFile[[#This Row],[G&S reporting level indicator]]","v":0},{"$f":"T_DataComboFile[[#This Row],[2019/20 Main appropriation_Source]]*T_DataComboFile[[#This Row],[G&S reporting level indicator]]","v":0},{"$f":"T_DataComboFile[[#This Row],[2019/20 Adjusted appropriation_Source]]*T_DataComboFile[[#This Row],[G&S reporting level indicator]]","v":0},{"$f":"T_DataComboFile[[#This Row],[2019/20 Revised estimate_Source]]*T_DataComboFile[[#This Row],[G&S reporting level indicator]]","v":0},{"$f":"T_DataComboFile[[#This Row],[2019/20 Preliminary outcome_Source]]*T_DataComboFile[[#This Row],[G&S reporting level indicator]]","v":0},{"$f":"T_DataComboFile[[#This Row],[2020/21 Original_Source]]*T_DataComboFile[[#This Row],[G&S reporting level indicator]]","v":0},{"$f":"T_DataComboFile[[#This Row],[2020/21 SAB_Source]]*T_DataComboFile[[#This Row],[G&S reporting level indicator]]","v":0},{"$f":"T_DataComboFile[[#This Row],[2020/21 Baseline_Source]]*T_DataComboFile[[#This Row],[G&S reporting level indicator]]","v":0},{"$f":"T_DataComboFile[[#This Row],[2021/22 Baseline_Source]]*T_DataComboFile[[#This Row],[G&S reporting level indicator]]","v":0},{"$f":"T_DataComboFile[[#This Row],[2022/23 Baseline_Source]]*T_DataComboFile[[#This Row],[G&S reporting level indicator]]","v":0},{"$f":"T_DataComboFile[[#This Row],[2023/24 Baseline_Source]]*T_DataComboFile[[#This Row],[G&S reporting level indicator]]","v":0},null,null,null,null,null,null,{"$f":"T_DataComboFile[[#This Row],[2021/22 Baseline]]+T_DataComboFile[[#This Row],[2021/22 Reduction]]+T_DataComboFile[[#This Row],[2021/22 Increase]]","v":0},{"$f":"T_DataComboFile[[#This Row],[2022/23 Baseline]]+T_DataComboFile[[#This Row],[2022/23 Reduction]]+T_DataComboFile[[#This Row],[2022/23 Increase]]","v":0},{"$f":"T_DataComboFile[[#This Row],[2023/24 Baseline]]+T_DataComboFile[[#This Row],[2023/24 Reduction]]+T_DataComboFile[[#This Row],[2023/24 Increase]]","v":0}]
[null,null,"2021_22","ENE2020",36,2,4,null,70712,36,2,4,null,"070712","36|02|04",1,1,2,21,21,"01|01|02|21|21","National","Small Business Development","Sector Policy and Research","Monitoring and Evaluation",null,"Current","Current payments","Goods and services","Inventory: Clothing material and accessories","Inventory: Clothing material and accessories",null,null,null,0,0,0,0,0,0,0,0,0,0,0,0,0,0,null,{"$f":"IF(T_DataComboFile[[#This Row],[G&S reporting level indicator]]=1,$AX$16,\"Not applicable\")","v":"Not applicable"},{"$f":"IF(AND($AX$16=\"Level 3\",T_DataComboFile[[#This Row],[Econ3]] = \"Goods and services\"),IF(T_DataComboFile[[#This Row],[Econ4]] = T_DataComboFile[[#This Row],[Econ3]],1,0),IF(AND($AX$16=\"Level 4\",T_DataComboFile[[#This Row],[Econ4]] = \"Goods and services\"),0,1))","v":0},{"$f":"T_DataComboFile[[#This Row],[2016/17_Source]]*T_DataComboFile[[#This Row],[G&S reporting level indicator]]","v":0},{"$f":"T_DataComboFile[[#This Row],[2017/18_Source]]*T_DataComboFile[[#This Row],[G&S reporting level indicator]]","v":0},{"$f":"T_DataComboFile[[#This Row],[2018/19_Source]]*T_DataComboFile[[#This Row],[G&S reporting level indicator]]","v":0},{"$f":"T_DataComboFile[[#This Row],[2019/20 Main appropriation_Source]]*T_DataComboFile[[#This Row],[G&S reporting level indicator]]","v":0},{"$f":"T_DataComboFile[[#This Row],[2019/20 Adjusted appropriation_Source]]*T_DataComboFile[[#This Row],[G&S reporting level indicator]]","v":0},{"$f":"T_DataComboFile[[#This Row],[2019/20 Revised estimate_Source]]*T_DataComboFile[[#This Row],[G&S reporting level indicator]]","v":0},{"$f":"T_DataComboFile[[#This Row],[2019/20 Preliminary outcome_Source]]*T_DataComboFile[[#This Row],[G&S reporting level indicator]]","v":0},{"$f":"T_DataComboFile[[#This Row],[2020/21 Original_Source]]*T_DataComboFile[[#This Row],[G&S reporting level indicator]]","v":0},{"$f":"T_DataComboFile[[#This Row],[2020/21 SAB_Source]]*T_DataComboFile[[#This Row],[G&S reporting level indicator]]","v":0},{"$f":"T_DataComboFile[[#This Row],[2020/21 Baseline_Source]]*T_DataComboFile[[#This Row],[G&S reporting level indicator]]","v":0},{"$f":"T_DataComboFile[[#This Row],[2021/22 Baseline_Source]]*T_DataComboFile[[#This Row],[G&S reporting level indicator]]","v":0},{"$f":"T_DataComboFile[[#This Row],[2022/23 Baseline_Source]]*T_DataComboFile[[#This Row],[G&S reporting level indicator]]","v":0},{"$f":"T_DataComboFile[[#This Row],[2023/24 Baseline_Source]]*T_DataComboFile[[#This Row],[G&S reporting level indicator]]","v":0},null,null,null,null,null,null,{"$f":"T_DataComboFile[[#This Row],[2021/22 Baseline]]+T_DataComboFile[[#This Row],[2021/22 Reduction]]+T_DataComboFile[[#This Row],[2021/22 Increase]]","v":0},{"$f":"T_DataComboFile[[#This Row],[2022/23 Baseline]]+T_DataComboFile[[#This Row],[2022/23 Reduction]]+T_DataComboFile[[#This Row],[2022/23 Increase]]","v":0},{"$f":"T_DataComboFile[[#This Row],[2023/24 Baseline]]+T_DataComboFile[[#This Row],[2023/24 Reduction]]+T_DataComboFile[[#This Row],[2023/24 Increase]]","v":0}]
[null,null,"2021_22","ENE2020",36,2,4,null,70713,36,2,4,null,"070713","36|02|04",1,1,2,22,22,"01|01|02|22|22","National","Small Business Development","Sector Policy and Research","Monitoring and Evaluation",null,"Current","Current payments","Goods and services","Inventory: Farming supplies","Inventory: Farming supplies",null,null,null,0,0,0,0,0,0,0,0,0,0,0,0,0,0,null,{"$f":"IF(T_DataComboFile[[#This Row],[G&S reporting level indicator]]=1,$AX$16,\"Not applicable\")","v":"Not applicable"},{"$f":"IF(AND($AX$16=\"Level 3\",T_DataComboFile[[#This Row],[Econ3]] = \"Goods and services\"),IF(T_DataComboFile[[#This Row],[Econ4]] = T_DataComboFile[[#This Row],[Econ3]],1,0),IF(AND($AX$16=\"Level 4\",T_DataComboFile[[#This Row],[Econ4]] = \"Goods and services\"),0,1))","v":0},{"$f":"T_DataComboFile[[#This Row],[2016/17_Source]]*T_DataComboFile[[#This Row],[G&S reporting level indicator]]","v":0},{"$f":"T_DataComboFile[[#This Row],[2017/18_Source]]*T_DataComboFile[[#This Row],[G&S reporting level indicator]]","v":0},{"$f":"T_DataComboFile[[#This Row],[2018/19_Source]]*T_DataComboFile[[#This Row],[G&S reporting level indicator]]","v":0},{"$f":"T_DataComboFile[[#This Row],[2019/20 Main appropriation_Source]]*T_DataComboFile[[#This Row],[G&S reporting level indicator]]","v":0},{"$f":"T_DataComboFile[[#This Row],[2019/20 Adjusted appropriation_Source]]*T_DataComboFile[[#This Row],[G&S reporting level indicator]]","v":0},{"$f":"T_DataComboFile[[#This Row],[2019/20 Revised estimate_Source]]*T_DataComboFile[[#This Row],[G&S reporting level indicator]]","v":0},{"$f":"T_DataComboFile[[#This Row],[2019/20 Preliminary outcome_Source]]*T_DataComboFile[[#This Row],[G&S reporting level indicator]]","v":0},{"$f":"T_DataComboFile[[#This Row],[2020/21 Original_Source]]*T_DataComboFile[[#This Row],[G&S reporting level indicator]]","v":0},{"$f":"T_DataComboFile[[#This Row],[2020/21 SAB_Source]]*T_DataComboFile[[#This Row],[G&S reporting level indicator]]","v":0},{"$f":"T_DataComboFile[[#This Row],[2020/21 Baseline_Source]]*T_DataComboFile[[#This Row],[G&S reporting level indicator]]","v":0},{"$f":"T_DataComboFile[[#This Row],[2021/22 Baseline_Source]]*T_DataComboFile[[#This Row],[G&S reporting level indicator]]","v":0},{"$f":"T_DataComboFile[[#This Row],[2022/23 Baseline_Source]]*T_DataComboFile[[#This Row],[G&S reporting level indicator]]","v":0},{"$f":"T_DataComboFile[[#This Row],[2023/24 Baseline_Source]]*T_DataComboFile[[#This Row],[G&S reporting level indicator]]","v":0},null,null,null,null,null,null,{"$f":"T_DataComboFile[[#This Row],[2021/22 Baseline]]+T_DataComboFile[[#This Row],[2021/22 Reduction]]+T_DataComboFile[[#This Row],[2021/22 Increase]]","v":0},{"$f":"T_DataComboFile[[#This Row],[2022/23 Baseline]]+T_DataComboFile[[#This Row],[2022/23 Reduction]]+T_DataComboFile[[#This Row],[2022/23 Increase]]","v":0},{"$f":"T_DataComboFile[[#This Row],[2023/24 Baseline]]+T_DataComboFile[[#This Row],[2023/24 Reduction]]+T_DataComboFile[[#This Row],[2023/24 Increase]]","v":0}]
[null,null,"2021_22","ENE2020",36,2,4,null,70714,36,2,4,null,"070714","36|02|04",1,1,2,23,23,"01|01|02|23|23","National","Small Business Development","Sector Policy and Research","Monitoring and Evaluation",null,"Current","Current payments","Goods and services","Inventory: Food and food supplies","Inventory: Food and food supplies",null,null,null,0,0,0,0,0,0,0,0,0,0,0,0,0,0,null,{"$f":"IF(T_DataComboFile[[#This Row],[G&S reporting level indicator]]=1,$AX$16,\"Not applicable\")","v":"Not applicable"},{"$f":"IF(AND($AX$16=\"Level 3\",T_DataComboFile[[#This Row],[Econ3]] = \"Goods and services\"),IF(T_DataComboFile[[#This Row],[Econ4]] = T_DataComboFile[[#This Row],[Econ3]],1,0),IF(AND($AX$16=\"Level 4\",T_DataComboFile[[#This Row],[Econ4]] = \"Goods and services\"),0,1))","v":0},{"$f":"T_DataComboFile[[#This Row],[2016/17_Source]]*T_DataComboFile[[#This Row],[G&S reporting level indicator]]","v":0},{"$f":"T_DataComboFile[[#This Row],[2017/18_Source]]*T_DataComboFile[[#This Row],[G&S reporting level indicator]]","v":0},{"$f":"T_DataComboFile[[#This Row],[2018/19_Source]]*T_DataComboFile[[#This Row],[G&S reporting level indicator]]","v":0},{"$f":"T_DataComboFile[[#This Row],[2019/20 Main appropriation_Source]]*T_DataComboFile[[#This Row],[G&S reporting level indicator]]","v":0},{"$f":"T_DataComboFile[[#This Row],[2019/20 Adjusted appropriation_Source]]*T_DataComboFile[[#This Row],[G&S reporting level indicator]]","v":0},{"$f":"T_DataComboFile[[#This Row],[2019/20 Revised estimate_Source]]*T_DataComboFile[[#This Row],[G&S reporting level indicator]]","v":0},{"$f":"T_DataComboFile[[#This Row],[2019/20 Preliminary outcome_Source]]*T_DataComboFile[[#This Row],[G&S reporting level indicator]]","v":0},{"$f":"T_DataComboFile[[#This Row],[2020/21 Original_Source]]*T_DataComboFile[[#This Row],[G&S reporting level indicator]]","v":0},{"$f":"T_DataComboFile[[#This Row],[2020/21 SAB_Source]]*T_DataComboFile[[#This Row],[G&S reporting level indicator]]","v":0},{"$f":"T_DataComboFile[[#This Row],[2020/21 Baseline_Source]]*T_DataComboFile[[#This Row],[G&S reporting level indicator]]","v":0},{"$f":"T_DataComboFile[[#This Row],[2021/22 Baseline_Source]]*T_DataComboFile[[#This Row],[G&S reporting level indicator]]","v":0},{"$f":"T_DataComboFile[[#This Row],[2022/23 Baseline_Source]]*T_DataComboFile[[#This Row],[G&S reporting level indicator]]","v":0},{"$f":"T_DataComboFile[[#This Row],[2023/24 Baseline_Source]]*T_DataComboFile[[#This Row],[G&S reporting level indicator]]","v":0},null,null,null,null,null,null,{"$f":"T_DataComboFile[[#This Row],[2021/22 Baseline]]+T_DataComboFile[[#This Row],[2021/22 Reduction]]+T_DataComboFile[[#This Row],[2021/22 Increase]]","v":0},{"$f":"T_DataComboFile[[#This Row],[2022/23 Baseline]]+T_DataComboFile[[#This Row],[2022/23 Reduction]]+T_DataComboFile[[#This Row],[2022/23 Increase]]","v":0},{"$f":"T_DataComboFile[[#This Row],[2023/24 Baseline]]+T_DataComboFile[[#This Row],[2023/24 Reduction]]+T_DataComboFile[[#This Row],[2023/24 Increase]]","v":0}]
[null,null,"2021_22","ENE2020",36,2,4,null,70715,36,2,4,null,"070715","36|02|04",1,1,2,24,24,"01|01|02|24|24","National","Small Business Development","Sector Policy and Research","Monitoring and Evaluation",null,"Current","Current payments","Goods and services","Inventory: Fuel, oil and gas","Inventory: Fuel, oil and gas",null,null,null,0,0,0,0,0,0,0,0,0,0,0,0,0,0,null,{"$f":"IF(T_DataComboFile[[#This Row],[G&S reporting level indicator]]=1,$AX$16,\"Not applicable\")","v":"Not applicable"},{"$f":"IF(AND($AX$16=\"Level 3\",T_DataComboFile[[#This Row],[Econ3]] = \"Goods and services\"),IF(T_DataComboFile[[#This Row],[Econ4]] = T_DataComboFile[[#This Row],[Econ3]],1,0),IF(AND($AX$16=\"Level 4\",T_DataComboFile[[#This Row],[Econ4]] = \"Goods and services\"),0,1))","v":0},{"$f":"T_DataComboFile[[#This Row],[2016/17_Source]]*T_DataComboFile[[#This Row],[G&S reporting level indicator]]","v":0},{"$f":"T_DataComboFile[[#This Row],[2017/18_Source]]*T_DataComboFile[[#This Row],[G&S reporting level indicator]]","v":0},{"$f":"T_DataComboFile[[#This Row],[2018/19_Source]]*T_DataComboFile[[#This Row],[G&S reporting level indicator]]","v":0},{"$f":"T_DataComboFile[[#This Row],[2019/20 Main appropriation_Source]]*T_DataComboFile[[#This Row],[G&S reporting level indicator]]","v":0},{"$f":"T_DataComboFile[[#This Row],[2019/20 Adjusted appropriation_Source]]*T_DataComboFile[[#This Row],[G&S reporting level indicator]]","v":0},{"$f":"T_DataComboFile[[#This Row],[2019/20 Revised estimate_Source]]*T_DataComboFile[[#This Row],[G&S reporting level indicator]]","v":0},{"$f":"T_DataComboFile[[#This Row],[2019/20 Preliminary outcome_Source]]*T_DataComboFile[[#This Row],[G&S reporting level indicator]]","v":0},{"$f":"T_DataComboFile[[#This Row],[2020/21 Original_Source]]*T_DataComboFile[[#This Row],[G&S reporting level indicator]]","v":0},{"$f":"T_DataComboFile[[#This Row],[2020/21 SAB_Source]]*T_DataComboFile[[#This Row],[G&S reporting level indicator]]","v":0},{"$f":"T_DataComboFile[[#This Row],[2020/21 Baseline_Source]]*T_DataComboFile[[#This Row],[G&S reporting level indicator]]","v":0},{"$f":"T_DataComboFile[[#This Row],[2021/22 Baseline_Source]]*T_DataComboFile[[#This Row],[G&S reporting level indicator]]","v":0},{"$f":"T_DataComboFile[[#This Row],[2022/23 Baseline_Source]]*T_DataComboFile[[#This Row],[G&S reporting level indicator]]","v":0},{"$f":"T_DataComboFile[[#This Row],[2023/24 Baseline_Source]]*T_DataComboFile[[#This Row],[G&S reporting level indicator]]","v":0},null,null,null,null,null,null,{"$f":"T_DataComboFile[[#This Row],[2021/22 Baseline]]+T_DataComboFile[[#This Row],[2021/22 Reduction]]+T_DataComboFile[[#This Row],[2021/22 Increase]]","v":0},{"$f":"T_DataComboFile[[#This Row],[2022/23 Baseline]]+T_DataComboFile[[#This Row],[2022/23 Reduction]]+T_DataComboFile[[#This Row],[2022/23 Increase]]","v":0},{"$f":"T_DataComboFile[[#This Row],[2023/24 Baseline]]+T_DataComboFile[[#This Row],[2023/24 Reduction]]+T_DataComboFile[[#This Row],[2023/24 Increase]]","v":0}]
[null,null,"2021_22","ENE2020",36,2,4,null,70716,36,2,4,null,"070716","36|02|04",1,1,2,25,25,"01|01|02|25|25","National","Small Business Development","Sector Policy and Research","Monitoring and Evaluation",null,"Current","Current payments","Goods and services","Inventory: Learner and teacher support material","Inventory: Learner and teacher support material",null,null,null,0,0,0,0,0,0,0,0,0,0,0,0,0,0,null,{"$f":"IF(T_DataComboFile[[#This Row],[G&S reporting level indicator]]=1,$AX$16,\"Not applicable\")","v":"Not applicable"},{"$f":"IF(AND($AX$16=\"Level 3\",T_DataComboFile[[#This Row],[Econ3]] = \"Goods and services\"),IF(T_DataComboFile[[#This Row],[Econ4]] = T_DataComboFile[[#This Row],[Econ3]],1,0),IF(AND($AX$16=\"Level 4\",T_DataComboFile[[#This Row],[Econ4]] = \"Goods and services\"),0,1))","v":0},{"$f":"T_DataComboFile[[#This Row],[2016/17_Source]]*T_DataComboFile[[#This Row],[G&S reporting level indicator]]","v":0},{"$f":"T_DataComboFile[[#This Row],[2017/18_Source]]*T_DataComboFile[[#This Row],[G&S reporting level indicator]]","v":0},{"$f":"T_DataComboFile[[#This Row],[2018/19_Source]]*T_DataComboFile[[#This Row],[G&S reporting level indicator]]","v":0},{"$f":"T_DataComboFile[[#This Row],[2019/20 Main appropriation_Source]]*T_DataComboFile[[#This Row],[G&S reporting level indicator]]","v":0},{"$f":"T_DataComboFile[[#This Row],[2019/20 Adjusted appropriation_Source]]*T_DataComboFile[[#This Row],[G&S reporting level indicator]]","v":0},{"$f":"T_DataComboFile[[#This Row],[2019/20 Revised estimate_Source]]*T_DataComboFile[[#This Row],[G&S reporting level indicator]]","v":0},{"$f":"T_DataComboFile[[#This Row],[2019/20 Preliminary outcome_Source]]*T_DataComboFile[[#This Row],[G&S reporting level indicator]]","v":0},{"$f":"T_DataComboFile[[#This Row],[2020/21 Original_Source]]*T_DataComboFile[[#This Row],[G&S reporting level indicator]]","v":0},{"$f":"T_DataComboFile[[#This Row],[2020/21 SAB_Source]]*T_DataComboFile[[#This Row],[G&S reporting level indicator]]","v":0},{"$f":"T_DataComboFile[[#This Row],[2020/21 Baseline_Source]]*T_DataComboFile[[#This Row],[G&S reporting level indicator]]","v":0},{"$f":"T_DataComboFile[[#This Row],[2021/22 Baseline_Source]]*T_DataComboFile[[#This Row],[G&S reporting level indicator]]","v":0},{"$f":"T_DataComboFile[[#This Row],[2022/23 Baseline_Source]]*T_DataComboFile[[#This Row],[G&S reporting level indicator]]","v":0},{"$f":"T_DataComboFile[[#This Row],[2023/24 Baseline_Source]]*T_DataComboFile[[#This Row],[G&S reporting level indicator]]","v":0},null,null,null,null,null,null,{"$f":"T_DataComboFile[[#This Row],[2021/22 Baseline]]+T_DataComboFile[[#This Row],[2021/22 Reduction]]+T_DataComboFile[[#This Row],[2021/22 Increase]]","v":0},{"$f":"T_DataComboFile[[#This Row],[2022/23 Baseline]]+T_DataComboFile[[#This Row],[2022/23 Reduction]]+T_DataComboFile[[#This Row],[2022/23 Increase]]","v":0},{"$f":"T_DataComboFile[[#This Row],[2023/24 Baseline]]+T_DataComboFile[[#This Row],[2023/24 Reduction]]+T_DataComboFile[[#This Row],[2023/24 Increase]]","v":0}]
[null,null,"2021_22","ENE2020",36,2,4,null,70717,36,2,4,null,"070717","36|02|04",1,1,2,26,26,"01|01|02|26|26","National","Small Business Development","Sector Policy and Research","Monitoring and Evaluation",null,"Current","Current payments","Goods and services","Inventory: Materials and supplies","Inventory: Materials and supplies",null,null,null,0,0,0,0,0,0,0,0,0,0,0,0,0,0,null,{"$f":"IF(T_DataComboFile[[#This Row],[G&S reporting level indicator]]=1,$AX$16,\"Not applicable\")","v":"Not applicable"},{"$f":"IF(AND($AX$16=\"Level 3\",T_DataComboFile[[#This Row],[Econ3]] = \"Goods and services\"),IF(T_DataComboFile[[#This Row],[Econ4]] = T_DataComboFile[[#This Row],[Econ3]],1,0),IF(AND($AX$16=\"Level 4\",T_DataComboFile[[#This Row],[Econ4]] = \"Goods and services\"),0,1))","v":0},{"$f":"T_DataComboFile[[#This Row],[2016/17_Source]]*T_DataComboFile[[#This Row],[G&S reporting level indicator]]","v":0},{"$f":"T_DataComboFile[[#This Row],[2017/18_Source]]*T_DataComboFile[[#This Row],[G&S reporting level indicator]]","v":0},{"$f":"T_DataComboFile[[#This Row],[2018/19_Source]]*T_DataComboFile[[#This Row],[G&S reporting level indicator]]","v":0},{"$f":"T_DataComboFile[[#This Row],[2019/20 Main appropriation_Source]]*T_DataComboFile[[#This Row],[G&S reporting level indicator]]","v":0},{"$f":"T_DataComboFile[[#This Row],[2019/20 Adjusted appropriation_Source]]*T_DataComboFile[[#This Row],[G&S reporting level indicator]]","v":0},{"$f":"T_DataComboFile[[#This Row],[2019/20 Revised estimate_Source]]*T_DataComboFile[[#This Row],[G&S reporting level indicator]]","v":0},{"$f":"T_DataComboFile[[#This Row],[2019/20 Preliminary outcome_Source]]*T_DataComboFile[[#This Row],[G&S reporting level indicator]]","v":0},{"$f":"T_DataComboFile[[#This Row],[2020/21 Original_Source]]*T_DataComboFile[[#This Row],[G&S reporting level indicator]]","v":0},{"$f":"T_DataComboFile[[#This Row],[2020/21 SAB_Source]]*T_DataComboFile[[#This Row],[G&S reporting level indicator]]","v":0},{"$f":"T_DataComboFile[[#This Row],[2020/21 Baseline_Source]]*T_DataComboFile[[#This Row],[G&S reporting level indicator]]","v":0},{"$f":"T_DataComboFile[[#This Row],[2021/22 Baseline_Source]]*T_DataComboFile[[#This Row],[G&S reporting level indicator]]","v":0},{"$f":"T_DataComboFile[[#This Row],[2022/23 Baseline_Source]]*T_DataComboFile[[#This Row],[G&S reporting level indicator]]","v":0},{"$f":"T_DataComboFile[[#This Row],[2023/24 Baseline_Source]]*T_DataComboFile[[#This Row],[G&S reporting level indicator]]","v":0},null,null,null,null,null,null,{"$f":"T_DataComboFile[[#This Row],[2021/22 Baseline]]+T_DataComboFile[[#This Row],[2021/22 Reduction]]+T_DataComboFile[[#This Row],[2021/22 Increase]]","v":0},{"$f":"T_DataComboFile[[#This Row],[2022/23 Baseline]]+T_DataComboFile[[#This Row],[2022/23 Reduction]]+T_DataComboFile[[#This Row],[2022/23 Increase]]","v":0},{"$f":"T_DataComboFile[[#This Row],[2023/24 Baseline]]+T_DataComboFile[[#This Row],[2023/24 Reduction]]+T_DataComboFile[[#This Row],[2023/24 Increase]]","v":0}]
[null,null,"2021_22","ENE2020",36,2,4,null,70718,36,2,4,null,"070718","36|02|04",1,1,2,27,27,"01|01|02|27|27","National","Small Business Development","Sector Policy and Research","Monitoring and Evaluation",null,"Current","Current payments","Goods and services","Inventory: Medical supplies","Inventory: Medical supplies",null,null,null,0,0,0,0,0,0,0,0,0,0,0,0,0,0,null,{"$f":"IF(T_DataComboFile[[#This Row],[G&S reporting level indicator]]=1,$AX$16,\"Not applicable\")","v":"Not applicable"},{"$f":"IF(AND($AX$16=\"Level 3\",T_DataComboFile[[#This Row],[Econ3]] = \"Goods and services\"),IF(T_DataComboFile[[#This Row],[Econ4]] = T_DataComboFile[[#This Row],[Econ3]],1,0),IF(AND($AX$16=\"Level 4\",T_DataComboFile[[#This Row],[Econ4]] = \"Goods and services\"),0,1))","v":0},{"$f":"T_DataComboFile[[#This Row],[2016/17_Source]]*T_DataComboFile[[#This Row],[G&S reporting level indicator]]","v":0},{"$f":"T_DataComboFile[[#This Row],[2017/18_Source]]*T_DataComboFile[[#This Row],[G&S reporting level indicator]]","v":0},{"$f":"T_DataComboFile[[#This Row],[2018/19_Source]]*T_DataComboFile[[#This Row],[G&S reporting level indicator]]","v":0},{"$f":"T_DataComboFile[[#This Row],[2019/20 Main appropriation_Source]]*T_DataComboFile[[#This Row],[G&S reporting level indicator]]","v":0},{"$f":"T_DataComboFile[[#This Row],[2019/20 Adjusted appropriation_Source]]*T_DataComboFile[[#This Row],[G&S reporting level indicator]]","v":0},{"$f":"T_DataComboFile[[#This Row],[2019/20 Revised estimate_Source]]*T_DataComboFile[[#This Row],[G&S reporting level indicator]]","v":0},{"$f":"T_DataComboFile[[#This Row],[2019/20 Preliminary outcome_Source]]*T_DataComboFile[[#This Row],[G&S reporting level indicator]]","v":0},{"$f":"T_DataComboFile[[#This Row],[2020/21 Original_Source]]*T_DataComboFile[[#This Row],[G&S reporting level indicator]]","v":0},{"$f":"T_DataComboFile[[#This Row],[2020/21 SAB_Source]]*T_DataComboFile[[#This Row],[G&S reporting level indicator]]","v":0},{"$f":"T_DataComboFile[[#This Row],[2020/21 Baseline_Source]]*T_DataComboFile[[#This Row],[G&S reporting level indicator]]","v":0},{"$f":"T_DataComboFile[[#This Row],[2021/22 Baseline_Source]]*T_DataComboFile[[#This Row],[G&S reporting level indicator]]","v":0},{"$f":"T_DataComboFile[[#This Row],[2022/23 Baseline_Source]]*T_DataComboFile[[#This Row],[G&S reporting level indicator]]","v":0},{"$f":"T_DataComboFile[[#This Row],[2023/24 Baseline_Source]]*T_DataComboFile[[#This Row],[G&S reporting level indicator]]","v":0},null,null,null,null,null,null,{"$f":"T_DataComboFile[[#This Row],[2021/22 Baseline]]+T_DataComboFile[[#This Row],[2021/22 Reduction]]+T_DataComboFile[[#This Row],[2021/22 Increase]]","v":0},{"$f":"T_DataComboFile[[#This Row],[2022/23 Baseline]]+T_DataComboFile[[#This Row],[2022/23 Reduction]]+T_DataComboFile[[#This Row],[2022/23 Increase]]","v":0},{"$f":"T_DataComboFile[[#This Row],[2023/24 Baseline]]+T_DataComboFile[[#This Row],[2023/24 Reduction]]+T_DataComboFile[[#This Row],[2023/24 Increase]]","v":0}]
[null,null,"2021_22","ENE2020",36,2,4,null,70719,36,2,4,null,"070719","36|02|04",1,1,2,28,28,"01|01|02|28|28","National","Small Business Development","Sector Policy and Research","Monitoring and Evaluation",null,"Current","Current payments","Goods and services","Inventory: Medicine","Inventory: Medicine",null,null,null,0,0,0,0,0,0,0,0,0,0,0,0,0,0,null,{"$f":"IF(T_DataComboFile[[#This Row],[G&S reporting level indicator]]=1,$AX$16,\"Not applicable\")","v":"Not applicable"},{"$f":"IF(AND($AX$16=\"Level 3\",T_DataComboFile[[#This Row],[Econ3]] = \"Goods and services\"),IF(T_DataComboFile[[#This Row],[Econ4]] = T_DataComboFile[[#This Row],[Econ3]],1,0),IF(AND($AX$16=\"Level 4\",T_DataComboFile[[#This Row],[Econ4]] = \"Goods and services\"),0,1))","v":0},{"$f":"T_DataComboFile[[#This Row],[2016/17_Source]]*T_DataComboFile[[#This Row],[G&S reporting level indicator]]","v":0},{"$f":"T_DataComboFile[[#This Row],[2017/18_Source]]*T_DataComboFile[[#This Row],[G&S reporting level indicator]]","v":0},{"$f":"T_DataComboFile[[#This Row],[2018/19_Source]]*T_DataComboFile[[#This Row],[G&S reporting level indicator]]","v":0},{"$f":"T_DataComboFile[[#This Row],[2019/20 Main appropriation_Source]]*T_DataComboFile[[#This Row],[G&S reporting level indicator]]","v":0},{"$f":"T_DataComboFile[[#This Row],[2019/20 Adjusted appropriation_Source]]*T_DataComboFile[[#This Row],[G&S reporting level indicator]]","v":0},{"$f":"T_DataComboFile[[#This Row],[2019/20 Revised estimate_Source]]*T_DataComboFile[[#This Row],[G&S reporting level indicator]]","v":0},{"$f":"T_DataComboFile[[#This Row],[2019/20 Preliminary outcome_Source]]*T_DataComboFile[[#This Row],[G&S reporting level indicator]]","v":0},{"$f":"T_DataComboFile[[#This Row],[2020/21 Original_Source]]*T_DataComboFile[[#This Row],[G&S reporting level indicator]]","v":0},{"$f":"T_DataComboFile[[#This Row],[2020/21 SAB_Source]]*T_DataComboFile[[#This Row],[G&S reporting level indicator]]","v":0},{"$f":"T_DataComboFile[[#This Row],[2020/21 Baseline_Source]]*T_DataComboFile[[#This Row],[G&S reporting level indicator]]","v":0},{"$f":"T_DataComboFile[[#This Row],[2021/22 Baseline_Source]]*T_DataComboFile[[#This Row],[G&S reporting level indicator]]","v":0},{"$f":"T_DataComboFile[[#This Row],[2022/23 Baseline_Source]]*T_DataComboFile[[#This Row],[G&S reporting level indicator]]","v":0},{"$f":"T_DataComboFile[[#This Row],[2023/24 Baseline_Source]]*T_DataComboFile[[#This Row],[G&S reporting level indicator]]","v":0},null,null,null,null,null,null,{"$f":"T_DataComboFile[[#This Row],[2021/22 Baseline]]+T_DataComboFile[[#This Row],[2021/22 Reduction]]+T_DataComboFile[[#This Row],[2021/22 Increase]]","v":0},{"$f":"T_DataComboFile[[#This Row],[2022/23 Baseline]]+T_DataComboFile[[#This Row],[2022/23 Reduction]]+T_DataComboFile[[#This Row],[2022/23 Increase]]","v":0},{"$f":"T_DataComboFile[[#This Row],[2023/24 Baseline]]+T_DataComboFile[[#This Row],[2023/24 Reduction]]+T_DataComboFile[[#This Row],[2023/24 Increase]]","v":0}]
[null,null,"2021_22","ENE2020",36,2,4,null,70720,36,2,4,null,"070720","36|02|04",1,1,2,29,29,"01|01|02|29|29","National","Small Business Development","Sector Policy and Research","Monitoring and Evaluation",null,"Current","Current payments","Goods and services","Medsas inventory interface","Medsas inventory interface",null,null,null,0,0,0,0,0,0,0,0,0,0,0,0,0,0,null,{"$f":"IF(T_DataComboFile[[#This Row],[G&S reporting level indicator]]=1,$AX$16,\"Not applicable\")","v":"Not applicable"},{"$f":"IF(AND($AX$16=\"Level 3\",T_DataComboFile[[#This Row],[Econ3]] = \"Goods and services\"),IF(T_DataComboFile[[#This Row],[Econ4]] = T_DataComboFile[[#This Row],[Econ3]],1,0),IF(AND($AX$16=\"Level 4\",T_DataComboFile[[#This Row],[Econ4]] = \"Goods and services\"),0,1))","v":0},{"$f":"T_DataComboFile[[#This Row],[2016/17_Source]]*T_DataComboFile[[#This Row],[G&S reporting level indicator]]","v":0},{"$f":"T_DataComboFile[[#This Row],[2017/18_Source]]*T_DataComboFile[[#This Row],[G&S reporting level indicator]]","v":0},{"$f":"T_DataComboFile[[#This Row],[2018/19_Source]]*T_DataComboFile[[#This Row],[G&S reporting level indicator]]","v":0},{"$f":"T_DataComboFile[[#This Row],[2019/20 Main appropriation_Source]]*T_DataComboFile[[#This Row],[G&S reporting level indicator]]","v":0},{"$f":"T_DataComboFile[[#This Row],[2019/20 Adjusted appropriation_Source]]*T_DataComboFile[[#This Row],[G&S reporting level indicator]]","v":0},{"$f":"T_DataComboFile[[#This Row],[2019/20 Revised estimate_Source]]*T_DataComboFile[[#This Row],[G&S reporting level indicator]]","v":0},{"$f":"T_DataComboFile[[#This Row],[2019/20 Preliminary outcome_Source]]*T_DataComboFile[[#This Row],[G&S reporting level indicator]]","v":0},{"$f":"T_DataComboFile[[#This Row],[2020/21 Original_Source]]*T_DataComboFile[[#This Row],[G&S reporting level indicator]]","v":0},{"$f":"T_DataComboFile[[#This Row],[2020/21 SAB_Source]]*T_DataComboFile[[#This Row],[G&S reporting level indicator]]","v":0},{"$f":"T_DataComboFile[[#This Row],[2020/21 Baseline_Source]]*T_DataComboFile[[#This Row],[G&S reporting level indicator]]","v":0},{"$f":"T_DataComboFile[[#This Row],[2021/22 Baseline_Source]]*T_DataComboFile[[#This Row],[G&S reporting level indicator]]","v":0},{"$f":"T_DataComboFile[[#This Row],[2022/23 Baseline_Source]]*T_DataComboFile[[#This Row],[G&S reporting level indicator]]","v":0},{"$f":"T_DataComboFile[[#This Row],[2023/24 Baseline_Source]]*T_DataComboFile[[#This Row],[G&S reporting level indicator]]","v":0},null,null,null,null,null,null,{"$f":"T_DataComboFile[[#This Row],[2021/22 Baseline]]+T_DataComboFile[[#This Row],[2021/22 Reduction]]+T_DataComboFile[[#This Row],[2021/22 Increase]]","v":0},{"$f":"T_DataComboFile[[#This Row],[2022/23 Baseline]]+T_DataComboFile[[#This Row],[2022/23 Reduction]]+T_DataComboFile[[#This Row],[2022/23 Increase]]","v":0},{"$f":"T_DataComboFile[[#This Row],[2023/24 Baseline]]+T_DataComboFile[[#This Row],[2023/24 Reduction]]+T_DataComboFile[[#This Row],[2023/24 Increase]]","v":0}]
[null,null,"2021_22","ENE2020",36,2,4,null,70721,36,2,4,null,"070721","36|02|04",1,1,2,30,30,"01|01|02|30|30","National","Small Business Development","Sector Policy and Research","Monitoring and Evaluation",null,"Current","Current payments","Goods and services","Inventory: Other supplies","Inventory: Other supplies",null,null,null,0,0,0,0,0,0,0,0,0,0,0,0,0,0,null,{"$f":"IF(T_DataComboFile[[#This Row],[G&S reporting level indicator]]=1,$AX$16,\"Not applicable\")","v":"Not applicable"},{"$f":"IF(AND($AX$16=\"Level 3\",T_DataComboFile[[#This Row],[Econ3]] = \"Goods and services\"),IF(T_DataComboFile[[#This Row],[Econ4]] = T_DataComboFile[[#This Row],[Econ3]],1,0),IF(AND($AX$16=\"Level 4\",T_DataComboFile[[#This Row],[Econ4]] = \"Goods and services\"),0,1))","v":0},{"$f":"T_DataComboFile[[#This Row],[2016/17_Source]]*T_DataComboFile[[#This Row],[G&S reporting level indicator]]","v":0},{"$f":"T_DataComboFile[[#This Row],[2017/18_Source]]*T_DataComboFile[[#This Row],[G&S reporting level indicator]]","v":0},{"$f":"T_DataComboFile[[#This Row],[2018/19_Source]]*T_DataComboFile[[#This Row],[G&S reporting level indicator]]","v":0},{"$f":"T_DataComboFile[[#This Row],[2019/20 Main appropriation_Source]]*T_DataComboFile[[#This Row],[G&S reporting level indicator]]","v":0},{"$f":"T_DataComboFile[[#This Row],[2019/20 Adjusted appropriation_Source]]*T_DataComboFile[[#This Row],[G&S reporting level indicator]]","v":0},{"$f":"T_DataComboFile[[#This Row],[2019/20 Revised estimate_Source]]*T_DataComboFile[[#This Row],[G&S reporting level indicator]]","v":0},{"$f":"T_DataComboFile[[#This Row],[2019/20 Preliminary outcome_Source]]*T_DataComboFile[[#This Row],[G&S reporting level indicator]]","v":0},{"$f":"T_DataComboFile[[#This Row],[2020/21 Original_Source]]*T_DataComboFile[[#This Row],[G&S reporting level indicator]]","v":0},{"$f":"T_DataComboFile[[#This Row],[2020/21 SAB_Source]]*T_DataComboFile[[#This Row],[G&S reporting level indicator]]","v":0},{"$f":"T_DataComboFile[[#This Row],[2020/21 Baseline_Source]]*T_DataComboFile[[#This Row],[G&S reporting level indicator]]","v":0},{"$f":"T_DataComboFile[[#This Row],[2021/22 Baseline_Source]]*T_DataComboFile[[#This Row],[G&S reporting level indicator]]","v":0},{"$f":"T_DataComboFile[[#This Row],[2022/23 Baseline_Source]]*T_DataComboFile[[#This Row],[G&S reporting level indicator]]","v":0},{"$f":"T_DataComboFile[[#This Row],[2023/24 Baseline_Source]]*T_DataComboFile[[#This Row],[G&S reporting level indicator]]","v":0},null,null,null,null,null,null,{"$f":"T_DataComboFile[[#This Row],[2021/22 Baseline]]+T_DataComboFile[[#This Row],[2021/22 Reduction]]+T_DataComboFile[[#This Row],[2021/22 Increase]]","v":0},{"$f":"T_DataComboFile[[#This Row],[2022/23 Baseline]]+T_DataComboFile[[#This Row],[2022/23 Reduction]]+T_DataComboFile[[#This Row],[2022/23 Increase]]","v":0},{"$f":"T_DataComboFile[[#This Row],[2023/24 Baseline]]+T_DataComboFile[[#This Row],[2023/24 Reduction]]+T_DataComboFile[[#This Row],[2023/24 Increase]]","v":0}]
["NAT|Non-transfer item","36|Consumable supplies","2021_22","ENE2020",36,2,4,17334,70722,36,2,4,17334,"070722","36|02|04",1,1,2,31,31,"01|01|02|31|31","National","Small Business Development","Sector Policy and Research","Monitoring and Evaluation","Non-transfer item","Current","Current payments","Goods and services","Consumable supplies","Consumable supplies","Economic development","Industrialisation and exports","NAT",1,1,0,0,0,0,0,0,0,0,0,0,0,1,null,{"$f":"IF(T_DataComboFile[[#This Row],[G&S reporting level indicator]]=1,$AX$16,\"Not applicable\")","v":"Not applicable"},{"$f":"IF(AND($AX$16=\"Level 3\",T_DataComboFile[[#This Row],[Econ3]] = \"Goods and services\"),IF(T_DataComboFile[[#This Row],[Econ4]] = T_DataComboFile[[#This Row],[Econ3]],1,0),IF(AND($AX$16=\"Level 4\",T_DataComboFile[[#This Row],[Econ4]] = \"Goods and services\"),0,1))","v":0},{"$f":"T_DataComboFile[[#This Row],[2016/17_Source]]*T_DataComboFile[[#This Row],[G&S reporting level indicator]]","v":0},{"$f":"T_DataComboFile[[#This Row],[2017/18_Source]]*T_DataComboFile[[#This Row],[G&S reporting level indicator]]","v":0},{"$f":"T_DataComboFile[[#This Row],[2018/19_Source]]*T_DataComboFile[[#This Row],[G&S reporting level indicator]]","v":0},{"$f":"T_DataComboFile[[#This Row],[2019/20 Main appropriation_Source]]*T_DataComboFile[[#This Row],[G&S reporting level indicator]]","v":0},{"$f":"T_DataComboFile[[#This Row],[2019/20 Adjusted appropriation_Source]]*T_DataComboFile[[#This Row],[G&S reporting level indicator]]","v":0},{"$f":"T_DataComboFile[[#This Row],[2019/20 Revised estimate_Source]]*T_DataComboFile[[#This Row],[G&S reporting level indicator]]","v":0},{"$f":"T_DataComboFile[[#This Row],[2019/20 Preliminary outcome_Source]]*T_DataComboFile[[#This Row],[G&S reporting level indicator]]","v":0},{"$f":"T_DataComboFile[[#This Row],[2020/21 Original_Source]]*T_DataComboFile[[#This Row],[G&S reporting level indicator]]","v":0},{"$f":"T_DataComboFile[[#This Row],[2020/21 SAB_Source]]*T_DataComboFile[[#This Row],[G&S reporting level indicator]]","v":0},{"$f":"T_DataComboFile[[#This Row],[2020/21 Baseline_Source]]*T_DataComboFile[[#This Row],[G&S reporting level indicator]]","v":0},{"$f":"T_DataComboFile[[#This Row],[2021/22 Baseline_Source]]*T_DataComboFile[[#This Row],[G&S reporting level indicator]]","v":0},{"$f":"T_DataComboFile[[#This Row],[2022/23 Baseline_Source]]*T_DataComboFile[[#This Row],[G&S reporting level indicator]]","v":0},{"$f":"T_DataComboFile[[#This Row],[2023/24 Baseline_Source]]*T_DataComboFile[[#This Row],[G&S reporting level indicator]]","v":0},null,null,null,null,null,null,{"$f":"T_DataComboFile[[#This Row],[2021/22 Baseline]]+T_DataComboFile[[#This Row],[2021/22 Reduction]]+T_DataComboFile[[#This Row],[2021/22 Increase]]","v":0},{"$f":"T_DataComboFile[[#This Row],[2022/23 Baseline]]+T_DataComboFile[[#This Row],[2022/23 Reduction]]+T_DataComboFile[[#This Row],[2022/23 Increase]]","v":0},{"$f":"T_DataComboFile[[#This Row],[2023/24 Baseline]]+T_DataComboFile[[#This Row],[2023/24 Reduction]]+T_DataComboFile[[#This Row],[2023/24 Increase]]","v":0}]
["NAT|Non-transfer item","36|Consumables: Stationery, printing and office supplies","2021_22","ENE2020",36,2,4,17335,70723,36,2,4,17335,"070723","36|02|04",1,1,2,32,32,"01|01|02|32|32","National","Small Business Development","Sector Policy and Research","Monitoring and Evaluation","Non-transfer item","Current","Current payments","Goods and services","Consumables: Stationery, printing and office supplies","Consumables: Stationery, printing and office supplies","Economic development","Industrialisation and exports","NAT",0,17,23,34,31,31,31,5,5,5,6,7,7,1,null,{"$f":"IF(T_DataComboFile[[#This Row],[G&S reporting level indicator]]=1,$AX$16,\"Not applicable\")","v":"Not applicable"},{"$f":"IF(AND($AX$16=\"Level 3\",T_DataComboFile[[#This Row],[Econ3]] = \"Goods and services\"),IF(T_DataComboFile[[#This Row],[Econ4]] = T_DataComboFile[[#This Row],[Econ3]],1,0),IF(AND($AX$16=\"Level 4\",T_DataComboFile[[#This Row],[Econ4]] = \"Goods and services\"),0,1))","v":0},{"$f":"T_DataComboFile[[#This Row],[2016/17_Source]]*T_DataComboFile[[#This Row],[G&S reporting level indicator]]","v":0},{"$f":"T_DataComboFile[[#This Row],[2017/18_Source]]*T_DataComboFile[[#This Row],[G&S reporting level indicator]]","v":0},{"$f":"T_DataComboFile[[#This Row],[2018/19_Source]]*T_DataComboFile[[#This Row],[G&S reporting level indicator]]","v":0},{"$f":"T_DataComboFile[[#This Row],[2019/20 Main appropriation_Source]]*T_DataComboFile[[#This Row],[G&S reporting level indicator]]","v":0},{"$f":"T_DataComboFile[[#This Row],[2019/20 Adjusted appropriation_Source]]*T_DataComboFile[[#This Row],[G&S reporting level indicator]]","v":0},{"$f":"T_DataComboFile[[#This Row],[2019/20 Revised estimate_Source]]*T_DataComboFile[[#This Row],[G&S reporting level indicator]]","v":0},{"$f":"T_DataComboFile[[#This Row],[2019/20 Preliminary outcome_Source]]*T_DataComboFile[[#This Row],[G&S reporting level indicator]]","v":0},{"$f":"T_DataComboFile[[#This Row],[2020/21 Original_Source]]*T_DataComboFile[[#This Row],[G&S reporting level indicator]]","v":0},{"$f":"T_DataComboFile[[#This Row],[2020/21 SAB_Source]]*T_DataComboFile[[#This Row],[G&S reporting level indicator]]","v":0},{"$f":"T_DataComboFile[[#This Row],[2020/21 Baseline_Source]]*T_DataComboFile[[#This Row],[G&S reporting level indicator]]","v":0},{"$f":"T_DataComboFile[[#This Row],[2021/22 Baseline_Source]]*T_DataComboFile[[#This Row],[G&S reporting level indicator]]","v":0},{"$f":"T_DataComboFile[[#This Row],[2022/23 Baseline_Source]]*T_DataComboFile[[#This Row],[G&S reporting level indicator]]","v":0},{"$f":"T_DataComboFile[[#This Row],[2023/24 Baseline_Source]]*T_DataComboFile[[#This Row],[G&S reporting level indicator]]","v":0},null,null,null,null,null,null,{"$f":"T_DataComboFile[[#This Row],[2021/22 Baseline]]+T_DataComboFile[[#This Row],[2021/22 Reduction]]+T_DataComboFile[[#This Row],[2021/22 Increase]]","v":0},{"$f":"T_DataComboFile[[#This Row],[2022/23 Baseline]]+T_DataComboFile[[#This Row],[2022/23 Reduction]]+T_DataComboFile[[#This Row],[2022/23 Increase]]","v":0},{"$f":"T_DataComboFile[[#This Row],[2023/24 Baseline]]+T_DataComboFile[[#This Row],[2023/24 Reduction]]+T_DataComboFile[[#This Row],[2023/24 Increase]]","v":0}]
[null,null,"2021_22","ENE2020",36,2,4,null,70724,36,2,4,null,"070724","36|02|04",1,1,2,33,33,"01|01|02|33|33","National","Small Business Development","Sector Policy and Research","Monitoring and Evaluation",null,"Current","Current payments","Goods and services","Operating leases","Operating leases",null,null,null,0,0,0,0,0,0,0,0,0,0,0,0,0,0,null,{"$f":"IF(T_DataComboFile[[#This Row],[G&S reporting level indicator]]=1,$AX$16,\"Not applicable\")","v":"Not applicable"},{"$f":"IF(AND($AX$16=\"Level 3\",T_DataComboFile[[#This Row],[Econ3]] = \"Goods and services\"),IF(T_DataComboFile[[#This Row],[Econ4]] = T_DataComboFile[[#This Row],[Econ3]],1,0),IF(AND($AX$16=\"Level 4\",T_DataComboFile[[#This Row],[Econ4]] = \"Goods and services\"),0,1))","v":0},{"$f":"T_DataComboFile[[#This Row],[2016/17_Source]]*T_DataComboFile[[#This Row],[G&S reporting level indicator]]","v":0},{"$f":"T_DataComboFile[[#This Row],[2017/18_Source]]*T_DataComboFile[[#This Row],[G&S reporting level indicator]]","v":0},{"$f":"T_DataComboFile[[#This Row],[2018/19_Source]]*T_DataComboFile[[#This Row],[G&S reporting level indicator]]","v":0},{"$f":"T_DataComboFile[[#This Row],[2019/20 Main appropriation_Source]]*T_DataComboFile[[#This Row],[G&S reporting level indicator]]","v":0},{"$f":"T_DataComboFile[[#This Row],[2019/20 Adjusted appropriation_Source]]*T_DataComboFile[[#This Row],[G&S reporting level indicator]]","v":0},{"$f":"T_DataComboFile[[#This Row],[2019/20 Revised estimate_Source]]*T_DataComboFile[[#This Row],[G&S reporting level indicator]]","v":0},{"$f":"T_DataComboFile[[#This Row],[2019/20 Preliminary outcome_Source]]*T_DataComboFile[[#This Row],[G&S reporting level indicator]]","v":0},{"$f":"T_DataComboFile[[#This Row],[2020/21 Original_Source]]*T_DataComboFile[[#This Row],[G&S reporting level indicator]]","v":0},{"$f":"T_DataComboFile[[#This Row],[2020/21 SAB_Source]]*T_DataComboFile[[#This Row],[G&S reporting level indicator]]","v":0},{"$f":"T_DataComboFile[[#This Row],[2020/21 Baseline_Source]]*T_DataComboFile[[#This Row],[G&S reporting level indicator]]","v":0},{"$f":"T_DataComboFile[[#This Row],[2021/22 Baseline_Source]]*T_DataComboFile[[#This Row],[G&S reporting level indicator]]","v":0},{"$f":"T_DataComboFile[[#This Row],[2022/23 Baseline_Source]]*T_DataComboFile[[#This Row],[G&S reporting level indicator]]","v":0},{"$f":"T_DataComboFile[[#This Row],[2023/24 Baseline_Source]]*T_DataComboFile[[#This Row],[G&S reporting level indicator]]","v":0},null,null,null,null,null,null,{"$f":"T_DataComboFile[[#This Row],[2021/22 Baseline]]+T_DataComboFile[[#This Row],[2021/22 Reduction]]+T_DataComboFile[[#This Row],[2021/22 Increase]]","v":0},{"$f":"T_DataComboFile[[#This Row],[2022/23 Baseline]]+T_DataComboFile[[#This Row],[2022/23 Reduction]]+T_DataComboFile[[#This Row],[2022/23 Increase]]","v":0},{"$f":"T_DataComboFile[[#This Row],[2023/24 Baseline]]+T_DataComboFile[[#This Row],[2023/24 Reduction]]+T_DataComboFile[[#This Row],[2023/24 Increase]]","v":0}]
[null,null,"2021_22","ENE2020",36,2,4,null,70725,36,2,4,null,"070725","36|02|04",1,1,2,34,34,"01|01|02|34|34","National","Small Business Development","Sector Policy and Research","Monitoring and Evaluation",null,"Current","Current payments","Goods and services","Rental and hiring","Rental and hiring",null,null,null,0,0,0,0,0,0,0,0,0,0,0,0,0,0,null,{"$f":"IF(T_DataComboFile[[#This Row],[G&S reporting level indicator]]=1,$AX$16,\"Not applicable\")","v":"Not applicable"},{"$f":"IF(AND($AX$16=\"Level 3\",T_DataComboFile[[#This Row],[Econ3]] = \"Goods and services\"),IF(T_DataComboFile[[#This Row],[Econ4]] = T_DataComboFile[[#This Row],[Econ3]],1,0),IF(AND($AX$16=\"Level 4\",T_DataComboFile[[#This Row],[Econ4]] = \"Goods and services\"),0,1))","v":0},{"$f":"T_DataComboFile[[#This Row],[2016/17_Source]]*T_DataComboFile[[#This Row],[G&S reporting level indicator]]","v":0},{"$f":"T_DataComboFile[[#This Row],[2017/18_Source]]*T_DataComboFile[[#This Row],[G&S reporting level indicator]]","v":0},{"$f":"T_DataComboFile[[#This Row],[2018/19_Source]]*T_DataComboFile[[#This Row],[G&S reporting level indicator]]","v":0},{"$f":"T_DataComboFile[[#This Row],[2019/20 Main appropriation_Source]]*T_DataComboFile[[#This Row],[G&S reporting level indicator]]","v":0},{"$f":"T_DataComboFile[[#This Row],[2019/20 Adjusted appropriation_Source]]*T_DataComboFile[[#This Row],[G&S reporting level indicator]]","v":0},{"$f":"T_DataComboFile[[#This Row],[2019/20 Revised estimate_Source]]*T_DataComboFile[[#This Row],[G&S reporting level indicator]]","v":0},{"$f":"T_DataComboFile[[#This Row],[2019/20 Preliminary outcome_Source]]*T_DataComboFile[[#This Row],[G&S reporting level indicator]]","v":0},{"$f":"T_DataComboFile[[#This Row],[2020/21 Original_Source]]*T_DataComboFile[[#This Row],[G&S reporting level indicator]]","v":0},{"$f":"T_DataComboFile[[#This Row],[2020/21 SAB_Source]]*T_DataComboFile[[#This Row],[G&S reporting level indicator]]","v":0},{"$f":"T_DataComboFile[[#This Row],[2020/21 Baseline_Source]]*T_DataComboFile[[#This Row],[G&S reporting level indicator]]","v":0},{"$f":"T_DataComboFile[[#This Row],[2021/22 Baseline_Source]]*T_DataComboFile[[#This Row],[G&S reporting level indicator]]","v":0},{"$f":"T_DataComboFile[[#This Row],[2022/23 Baseline_Source]]*T_DataComboFile[[#This Row],[G&S reporting level indicator]]","v":0},{"$f":"T_DataComboFile[[#This Row],[2023/24 Baseline_Source]]*T_DataComboFile[[#This Row],[G&S reporting level indicator]]","v":0},null,null,null,null,null,null,{"$f":"T_DataComboFile[[#This Row],[2021/22 Baseline]]+T_DataComboFile[[#This Row],[2021/22 Reduction]]+T_DataComboFile[[#This Row],[2021/22 Increase]]","v":0},{"$f":"T_DataComboFile[[#This Row],[2022/23 Baseline]]+T_DataComboFile[[#This Row],[2022/23 Reduction]]+T_DataComboFile[[#This Row],[2022/23 Increase]]","v":0},{"$f":"T_DataComboFile[[#This Row],[2023/24 Baseline]]+T_DataComboFile[[#This Row],[2023/24 Reduction]]+T_DataComboFile[[#This Row],[2023/24 Increase]]","v":0}]
[null,null,"2021_22","ENE2020",36,2,4,null,70726,36,2,4,null,"070726","36|02|04",1,1,2,35,35,"01|01|02|35|35","National","Small Business Development","Sector Policy and Research","Monitoring and Evaluation",null,"Current","Current payments","Goods and services","Property payments","Property payments",null,null,null,0,0,0,0,0,0,0,0,0,0,0,0,0,0,null,{"$f":"IF(T_DataComboFile[[#This Row],[G&S reporting level indicator]]=1,$AX$16,\"Not applicable\")","v":"Not applicable"},{"$f":"IF(AND($AX$16=\"Level 3\",T_DataComboFile[[#This Row],[Econ3]] = \"Goods and services\"),IF(T_DataComboFile[[#This Row],[Econ4]] = T_DataComboFile[[#This Row],[Econ3]],1,0),IF(AND($AX$16=\"Level 4\",T_DataComboFile[[#This Row],[Econ4]] = \"Goods and services\"),0,1))","v":0},{"$f":"T_DataComboFile[[#This Row],[2016/17_Source]]*T_DataComboFile[[#This Row],[G&S reporting level indicator]]","v":0},{"$f":"T_DataComboFile[[#This Row],[2017/18_Source]]*T_DataComboFile[[#This Row],[G&S reporting level indicator]]","v":0},{"$f":"T_DataComboFile[[#This Row],[2018/19_Source]]*T_DataComboFile[[#This Row],[G&S reporting level indicator]]","v":0},{"$f":"T_DataComboFile[[#This Row],[2019/20 Main appropriation_Source]]*T_DataComboFile[[#This Row],[G&S reporting level indicator]]","v":0},{"$f":"T_DataComboFile[[#This Row],[2019/20 Adjusted appropriation_Source]]*T_DataComboFile[[#This Row],[G&S reporting level indicator]]","v":0},{"$f":"T_DataComboFile[[#This Row],[2019/20 Revised estimate_Source]]*T_DataComboFile[[#This Row],[G&S reporting level indicator]]","v":0},{"$f":"T_DataComboFile[[#This Row],[2019/20 Preliminary outcome_Source]]*T_DataComboFile[[#This Row],[G&S reporting level indicator]]","v":0},{"$f":"T_DataComboFile[[#This Row],[2020/21 Original_Source]]*T_DataComboFile[[#This Row],[G&S reporting level indicator]]","v":0},{"$f":"T_DataComboFile[[#This Row],[2020/21 SAB_Source]]*T_DataComboFile[[#This Row],[G&S reporting level indicator]]","v":0},{"$f":"T_DataComboFile[[#This Row],[2020/21 Baseline_Source]]*T_DataComboFile[[#This Row],[G&S reporting level indicator]]","v":0},{"$f":"T_DataComboFile[[#This Row],[2021/22 Baseline_Source]]*T_DataComboFile[[#This Row],[G&S reporting level indicator]]","v":0},{"$f":"T_DataComboFile[[#This Row],[2022/23 Baseline_Source]]*T_DataComboFile[[#This Row],[G&S reporting level indicator]]","v":0},{"$f":"T_DataComboFile[[#This Row],[2023/24 Baseline_Source]]*T_DataComboFile[[#This Row],[G&S reporting level indicator]]","v":0},null,null,null,null,null,null,{"$f":"T_DataComboFile[[#This Row],[2021/22 Baseline]]+T_DataComboFile[[#This Row],[2021/22 Reduction]]+T_DataComboFile[[#This Row],[2021/22 Increase]]","v":0},{"$f":"T_DataComboFile[[#This Row],[2022/23 Baseline]]+T_DataComboFile[[#This Row],[2022/23 Reduction]]+T_DataComboFile[[#This Row],[2022/23 Increase]]","v":0},{"$f":"T_DataComboFile[[#This Row],[2023/24 Baseline]]+T_DataComboFile[[#This Row],[2023/24 Reduction]]+T_DataComboFile[[#This Row],[2023/24 Increase]]","v":0}]
[null,null,"2021_22","ENE2020",36,2,4,null,70727,36,2,4,null,"070727","36|02|04",1,1,2,36,36,"01|01|02|36|36","National","Small Business Development","Sector Policy and Research","Monitoring and Evaluation",null,"Current","Current payments","Goods and services","Transport provided: Departmental activity","Transport provided: Departmental activity",null,null,null,0,0,0,0,0,0,0,0,0,0,0,0,0,0,null,{"$f":"IF(T_DataComboFile[[#This Row],[G&S reporting level indicator]]=1,$AX$16,\"Not applicable\")","v":"Not applicable"},{"$f":"IF(AND($AX$16=\"Level 3\",T_DataComboFile[[#This Row],[Econ3]] = \"Goods and services\"),IF(T_DataComboFile[[#This Row],[Econ4]] = T_DataComboFile[[#This Row],[Econ3]],1,0),IF(AND($AX$16=\"Level 4\",T_DataComboFile[[#This Row],[Econ4]] = \"Goods and services\"),0,1))","v":0},{"$f":"T_DataComboFile[[#This Row],[2016/17_Source]]*T_DataComboFile[[#This Row],[G&S reporting level indicator]]","v":0},{"$f":"T_DataComboFile[[#This Row],[2017/18_Source]]*T_DataComboFile[[#This Row],[G&S reporting level indicator]]","v":0},{"$f":"T_DataComboFile[[#This Row],[2018/19_Source]]*T_DataComboFile[[#This Row],[G&S reporting level indicator]]","v":0},{"$f":"T_DataComboFile[[#This Row],[2019/20 Main appropriation_Source]]*T_DataComboFile[[#This Row],[G&S reporting level indicator]]","v":0},{"$f":"T_DataComboFile[[#This Row],[2019/20 Adjusted appropriation_Source]]*T_DataComboFile[[#This Row],[G&S reporting level indicator]]","v":0},{"$f":"T_DataComboFile[[#This Row],[2019/20 Revised estimate_Source]]*T_DataComboFile[[#This Row],[G&S reporting level indicator]]","v":0},{"$f":"T_DataComboFile[[#This Row],[2019/20 Preliminary outcome_Source]]*T_DataComboFile[[#This Row],[G&S reporting level indicator]]","v":0},{"$f":"T_DataComboFile[[#This Row],[2020/21 Original_Source]]*T_DataComboFile[[#This Row],[G&S reporting level indicator]]","v":0},{"$f":"T_DataComboFile[[#This Row],[2020/21 SAB_Source]]*T_DataComboFile[[#This Row],[G&S reporting level indicator]]","v":0},{"$f":"T_DataComboFile[[#This Row],[2020/21 Baseline_Source]]*T_DataComboFile[[#This Row],[G&S reporting level indicator]]","v":0},{"$f":"T_DataComboFile[[#This Row],[2021/22 Baseline_Source]]*T_DataComboFile[[#This Row],[G&S reporting level indicator]]","v":0},{"$f":"T_DataComboFile[[#This Row],[2022/23 Baseline_Source]]*T_DataComboFile[[#This Row],[G&S reporting level indicator]]","v":0},{"$f":"T_DataComboFile[[#This Row],[2023/24 Baseline_Source]]*T_DataComboFile[[#This Row],[G&S reporting level indicator]]","v":0},null,null,null,null,null,null,{"$f":"T_DataComboFile[[#This Row],[2021/22 Baseline]]+T_DataComboFile[[#This Row],[2021/22 Reduction]]+T_DataComboFile[[#This Row],[2021/22 Increase]]","v":0},{"$f":"T_DataComboFile[[#This Row],[2022/23 Baseline]]+T_DataComboFile[[#This Row],[2022/23 Reduction]]+T_DataComboFile[[#This Row],[2022/23 Increase]]","v":0},{"$f":"T_DataComboFile[[#This Row],[2023/24 Baseline]]+T_DataComboFile[[#This Row],[2023/24 Reduction]]+T_DataComboFile[[#This Row],[2023/24 Increase]]","v":0}]
["NAT|Non-transfer item","36|Travel and subsistence","2021_22","ENE2020",36,2,4,17336,70728,36,2,4,17336,"070728","36|02|04",1,1,2,37,37,"01|01|02|37|37","National","Small Business Development","Sector Policy and Research","Monitoring and Evaluation","Non-transfer item","Current","Current payments","Goods and services","Travel and subsistence","Travel and subsistence","Economic development","Industrialisation and exports","NAT",173,193,219,736,736,736,736,302,302,302,317,333,348,1,null,{"$f":"IF(T_DataComboFile[[#This Row],[G&S reporting level indicator]]=1,$AX$16,\"Not applicable\")","v":"Not applicable"},{"$f":"IF(AND($AX$16=\"Level 3\",T_DataComboFile[[#This Row],[Econ3]] = \"Goods and services\"),IF(T_DataComboFile[[#This Row],[Econ4]] = T_DataComboFile[[#This Row],[Econ3]],1,0),IF(AND($AX$16=\"Level 4\",T_DataComboFile[[#This Row],[Econ4]] = \"Goods and services\"),0,1))","v":0},{"$f":"T_DataComboFile[[#This Row],[2016/17_Source]]*T_DataComboFile[[#This Row],[G&S reporting level indicator]]","v":0},{"$f":"T_DataComboFile[[#This Row],[2017/18_Source]]*T_DataComboFile[[#This Row],[G&S reporting level indicator]]","v":0},{"$f":"T_DataComboFile[[#This Row],[2018/19_Source]]*T_DataComboFile[[#This Row],[G&S reporting level indicator]]","v":0},{"$f":"T_DataComboFile[[#This Row],[2019/20 Main appropriation_Source]]*T_DataComboFile[[#This Row],[G&S reporting level indicator]]","v":0},{"$f":"T_DataComboFile[[#This Row],[2019/20 Adjusted appropriation_Source]]*T_DataComboFile[[#This Row],[G&S reporting level indicator]]","v":0},{"$f":"T_DataComboFile[[#This Row],[2019/20 Revised estimate_Source]]*T_DataComboFile[[#This Row],[G&S reporting level indicator]]","v":0},{"$f":"T_DataComboFile[[#This Row],[2019/20 Preliminary outcome_Source]]*T_DataComboFile[[#This Row],[G&S reporting level indicator]]","v":0},{"$f":"T_DataComboFile[[#This Row],[2020/21 Original_Source]]*T_DataComboFile[[#This Row],[G&S reporting level indicator]]","v":0},{"$f":"T_DataComboFile[[#This Row],[2020/21 SAB_Source]]*T_DataComboFile[[#This Row],[G&S reporting level indicator]]","v":0},{"$f":"T_DataComboFile[[#This Row],[2020/21 Baseline_Source]]*T_DataComboFile[[#This Row],[G&S reporting level indicator]]","v":0},{"$f":"T_DataComboFile[[#This Row],[2021/22 Baseline_Source]]*T_DataComboFile[[#This Row],[G&S reporting level indicator]]","v":0},{"$f":"T_DataComboFile[[#This Row],[2022/23 Baseline_Source]]*T_DataComboFile[[#This Row],[G&S reporting level indicator]]","v":0},{"$f":"T_DataComboFile[[#This Row],[2023/24 Baseline_Source]]*T_DataComboFile[[#This Row],[G&S reporting level indicator]]","v":0},null,null,null,null,null,null,{"$f":"T_DataComboFile[[#This Row],[2021/22 Baseline]]+T_DataComboFile[[#This Row],[2021/22 Reduction]]+T_DataComboFile[[#This Row],[2021/22 Increase]]","v":0},{"$f":"T_DataComboFile[[#This Row],[2022/23 Baseline]]+T_DataComboFile[[#This Row],[2022/23 Reduction]]+T_DataComboFile[[#This Row],[2022/23 Increase]]","v":0},{"$f":"T_DataComboFile[[#This Row],[2023/24 Baseline]]+T_DataComboFile[[#This Row],[2023/24 Reduction]]+T_DataComboFile[[#This Row],[2023/24 Increase]]","v":0}]
[null,null,"2021_22","ENE2020",36,2,4,null,70729,36,2,4,null,"070729","36|02|04",1,1,2,38,38,"01|01|02|38|38","National","Small Business Development","Sector Policy and Research","Monitoring and Evaluation",null,"Current","Current payments","Goods and services","Training and development","Training and development",null,null,null,0,0,0,0,0,0,0,0,0,0,0,0,0,0,null,{"$f":"IF(T_DataComboFile[[#This Row],[G&S reporting level indicator]]=1,$AX$16,\"Not applicable\")","v":"Not applicable"},{"$f":"IF(AND($AX$16=\"Level 3\",T_DataComboFile[[#This Row],[Econ3]] = \"Goods and services\"),IF(T_DataComboFile[[#This Row],[Econ4]] = T_DataComboFile[[#This Row],[Econ3]],1,0),IF(AND($AX$16=\"Level 4\",T_DataComboFile[[#This Row],[Econ4]] = \"Goods and services\"),0,1))","v":0},{"$f":"T_DataComboFile[[#This Row],[2016/17_Source]]*T_DataComboFile[[#This Row],[G&S reporting level indicator]]","v":0},{"$f":"T_DataComboFile[[#This Row],[2017/18_Source]]*T_DataComboFile[[#This Row],[G&S reporting level indicator]]","v":0},{"$f":"T_DataComboFile[[#This Row],[2018/19_Source]]*T_DataComboFile[[#This Row],[G&S reporting level indicator]]","v":0},{"$f":"T_DataComboFile[[#This Row],[2019/20 Main appropriation_Source]]*T_DataComboFile[[#This Row],[G&S reporting level indicator]]","v":0},{"$f":"T_DataComboFile[[#This Row],[2019/20 Adjusted appropriation_Source]]*T_DataComboFile[[#This Row],[G&S reporting level indicator]]","v":0},{"$f":"T_DataComboFile[[#This Row],[2019/20 Revised estimate_Source]]*T_DataComboFile[[#This Row],[G&S reporting level indicator]]","v":0},{"$f":"T_DataComboFile[[#This Row],[2019/20 Preliminary outcome_Source]]*T_DataComboFile[[#This Row],[G&S reporting level indicator]]","v":0},{"$f":"T_DataComboFile[[#This Row],[2020/21 Original_Source]]*T_DataComboFile[[#This Row],[G&S reporting level indicator]]","v":0},{"$f":"T_DataComboFile[[#This Row],[2020/21 SAB_Source]]*T_DataComboFile[[#This Row],[G&S reporting level indicator]]","v":0},{"$f":"T_DataComboFile[[#This Row],[2020/21 Baseline_Source]]*T_DataComboFile[[#This Row],[G&S reporting level indicator]]","v":0},{"$f":"T_DataComboFile[[#This Row],[2021/22 Baseline_Source]]*T_DataComboFile[[#This Row],[G&S reporting level indicator]]","v":0},{"$f":"T_DataComboFile[[#This Row],[2022/23 Baseline_Source]]*T_DataComboFile[[#This Row],[G&S reporting level indicator]]","v":0},{"$f":"T_DataComboFile[[#This Row],[2023/24 Baseline_Source]]*T_DataComboFile[[#This Row],[G&S reporting level indicator]]","v":0},null,null,null,null,null,null,{"$f":"T_DataComboFile[[#This Row],[2021/22 Baseline]]+T_DataComboFile[[#This Row],[2021/22 Reduction]]+T_DataComboFile[[#This Row],[2021/22 Increase]]","v":0},{"$f":"T_DataComboFile[[#This Row],[2022/23 Baseline]]+T_DataComboFile[[#This Row],[2022/23 Reduction]]+T_DataComboFile[[#This Row],[2022/23 Increase]]","v":0},{"$f":"T_DataComboFile[[#This Row],[2023/24 Baseline]]+T_DataComboFile[[#This Row],[2023/24 Reduction]]+T_DataComboFile[[#This Row],[2023/24 Increase]]","v":0}]
[null,null,"2021_22","ENE2020",36,2,4,null,70730,36,2,4,null,"070730","36|02|04",1,1,2,39,39,"01|01|02|39|39","National","Small Business Development","Sector Policy and Research","Monitoring and Evaluation",null,"Current","Current payments","Goods and services","Operating payments","Operating payments",null,null,null,0,0,0,0,0,0,0,0,0,0,0,0,0,0,null,{"$f":"IF(T_DataComboFile[[#This Row],[G&S reporting level indicator]]=1,$AX$16,\"Not applicable\")","v":"Not applicable"},{"$f":"IF(AND($AX$16=\"Level 3\",T_DataComboFile[[#This Row],[Econ3]] = \"Goods and services\"),IF(T_DataComboFile[[#This Row],[Econ4]] = T_DataComboFile[[#This Row],[Econ3]],1,0),IF(AND($AX$16=\"Level 4\",T_DataComboFile[[#This Row],[Econ4]] = \"Goods and services\"),0,1))","v":0},{"$f":"T_DataComboFile[[#This Row],[2016/17_Source]]*T_DataComboFile[[#This Row],[G&S reporting level indicator]]","v":0},{"$f":"T_DataComboFile[[#This Row],[2017/18_Source]]*T_DataComboFile[[#This Row],[G&S reporting level indicator]]","v":0},{"$f":"T_DataComboFile[[#This Row],[2018/19_Source]]*T_DataComboFile[[#This Row],[G&S reporting level indicator]]","v":0},{"$f":"T_DataComboFile[[#This Row],[2019/20 Main appropriation_Source]]*T_DataComboFile[[#This Row],[G&S reporting level indicator]]","v":0},{"$f":"T_DataComboFile[[#This Row],[2019/20 Adjusted appropriation_Source]]*T_DataComboFile[[#This Row],[G&S reporting level indicator]]","v":0},{"$f":"T_DataComboFile[[#This Row],[2019/20 Revised estimate_Source]]*T_DataComboFile[[#This Row],[G&S reporting level indicator]]","v":0},{"$f":"T_DataComboFile[[#This Row],[2019/20 Preliminary outcome_Source]]*T_DataComboFile[[#This Row],[G&S reporting level indicator]]","v":0},{"$f":"T_DataComboFile[[#This Row],[2020/21 Original_Source]]*T_DataComboFile[[#This Row],[G&S reporting level indicator]]","v":0},{"$f":"T_DataComboFile[[#This Row],[2020/21 SAB_Source]]*T_DataComboFile[[#This Row],[G&S reporting level indicator]]","v":0},{"$f":"T_DataComboFile[[#This Row],[2020/21 Baseline_Source]]*T_DataComboFile[[#This Row],[G&S reporting level indicator]]","v":0},{"$f":"T_DataComboFile[[#This Row],[2021/22 Baseline_Source]]*T_DataComboFile[[#This Row],[G&S reporting level indicator]]","v":0},{"$f":"T_DataComboFile[[#This Row],[2022/23 Baseline_Source]]*T_DataComboFile[[#This Row],[G&S reporting level indicator]]","v":0},{"$f":"T_DataComboFile[[#This Row],[2023/24 Baseline_Source]]*T_DataComboFile[[#This Row],[G&S reporting level indicator]]","v":0},null,null,null,null,null,null,{"$f":"T_DataComboFile[[#This Row],[2021/22 Baseline]]+T_DataComboFile[[#This Row],[2021/22 Reduction]]+T_DataComboFile[[#This Row],[2021/22 Increase]]","v":0},{"$f":"T_DataComboFile[[#This Row],[2022/23 Baseline]]+T_DataComboFile[[#This Row],[2022/23 Reduction]]+T_DataComboFile[[#This Row],[2022/23 Increase]]","v":0},{"$f":"T_DataComboFile[[#This Row],[2023/24 Baseline]]+T_DataComboFile[[#This Row],[2023/24 Reduction]]+T_DataComboFile[[#This Row],[2023/24 Increase]]","v":0}]
[null,null,"2021_22","ENE2020",36,2,4,null,70731,36,2,4,null,"070731","36|02|04",1,1,2,40,40,"01|01|02|40|40","National","Small Business Development","Sector Policy and Research","Monitoring and Evaluation",null,"Current","Current payments","Goods and services","Venues and facilities","Venues and facilities",null,null,null,0,0,0,0,0,0,0,0,0,0,0,0,0,0,null,{"$f":"IF(T_DataComboFile[[#This Row],[G&S reporting level indicator]]=1,$AX$16,\"Not applicable\")","v":"Not applicable"},{"$f":"IF(AND($AX$16=\"Level 3\",T_DataComboFile[[#This Row],[Econ3]] = \"Goods and services\"),IF(T_DataComboFile[[#This Row],[Econ4]] = T_DataComboFile[[#This Row],[Econ3]],1,0),IF(AND($AX$16=\"Level 4\",T_DataComboFile[[#This Row],[Econ4]] = \"Goods and services\"),0,1))","v":0},{"$f":"T_DataComboFile[[#This Row],[2016/17_Source]]*T_DataComboFile[[#This Row],[G&S reporting level indicator]]","v":0},{"$f":"T_DataComboFile[[#This Row],[2017/18_Source]]*T_DataComboFile[[#This Row],[G&S reporting level indicator]]","v":0},{"$f":"T_DataComboFile[[#This Row],[2018/19_Source]]*T_DataComboFile[[#This Row],[G&S reporting level indicator]]","v":0},{"$f":"T_DataComboFile[[#This Row],[2019/20 Main appropriation_Source]]*T_DataComboFile[[#This Row],[G&S reporting level indicator]]","v":0},{"$f":"T_DataComboFile[[#This Row],[2019/20 Adjusted appropriation_Source]]*T_DataComboFile[[#This Row],[G&S reporting level indicator]]","v":0},{"$f":"T_DataComboFile[[#This Row],[2019/20 Revised estimate_Source]]*T_DataComboFile[[#This Row],[G&S reporting level indicator]]","v":0},{"$f":"T_DataComboFile[[#This Row],[2019/20 Preliminary outcome_Source]]*T_DataComboFile[[#This Row],[G&S reporting level indicator]]","v":0},{"$f":"T_DataComboFile[[#This Row],[2020/21 Original_Source]]*T_DataComboFile[[#This Row],[G&S reporting level indicator]]","v":0},{"$f":"T_DataComboFile[[#This Row],[2020/21 SAB_Source]]*T_DataComboFile[[#This Row],[G&S reporting level indicator]]","v":0},{"$f":"T_DataComboFile[[#This Row],[2020/21 Baseline_Source]]*T_DataComboFile[[#This Row],[G&S reporting level indicator]]","v":0},{"$f":"T_DataComboFile[[#This Row],[2021/22 Baseline_Source]]*T_DataComboFile[[#This Row],[G&S reporting level indicator]]","v":0},{"$f":"T_DataComboFile[[#This Row],[2022/23 Baseline_Source]]*T_DataComboFile[[#This Row],[G&S reporting level indicator]]","v":0},{"$f":"T_DataComboFile[[#This Row],[2023/24 Baseline_Source]]*T_DataComboFile[[#This Row],[G&S reporting level indicator]]","v":0},null,null,null,null,null,null,{"$f":"T_DataComboFile[[#This Row],[2021/22 Baseline]]+T_DataComboFile[[#This Row],[2021/22 Reduction]]+T_DataComboFile[[#This Row],[2021/22 Increase]]","v":0},{"$f":"T_DataComboFile[[#This Row],[2022/23 Baseline]]+T_DataComboFile[[#This Row],[2022/23 Reduction]]+T_DataComboFile[[#This Row],[2022/23 Increase]]","v":0},{"$f":"T_DataComboFile[[#This Row],[2023/24 Baseline]]+T_DataComboFile[[#This Row],[2023/24 Reduction]]+T_DataComboFile[[#This Row],[2023/24 Increase]]","v":0}]
[null,null,"2021_22","ENE2020",36,2,4,null,70732,36,2,4,null,"070732","36|02|04",1,1,3,41,41,"01|01|03|41|41","National","Small Business Development","Sector Policy and Research","Monitoring and Evaluation",null,"Current","Current payments","Interest and rent on land","Interest (Incl. interest on unitary payments (PPP))","Interest (Incl. interest on unitary payments (PPP))",null,null,null,0,0,0,0,0,0,0,0,0,0,0,0,0,0,null,{"$f":"IF(T_DataComboFile[[#This Row],[G&S reporting level indicator]]=1,$AX$16,\"Not applicable\")","v":"Level 3"},{"$f":"IF(AND($AX$16=\"Level 3\",T_DataComboFile[[#This Row],[Econ3]] = \"Goods and services\"),IF(T_DataComboFile[[#This Row],[Econ4]] = T_DataComboFile[[#This Row],[Econ3]],1,0),IF(AND($AX$16=\"Level 4\",T_DataComboFile[[#This Row],[Econ4]] = \"Goods and services\"),0,1))","v":1},{"$f":"T_DataComboFile[[#This Row],[2016/17_Source]]*T_DataComboFile[[#This Row],[G&S reporting level indicator]]","v":0},{"$f":"T_DataComboFile[[#This Row],[2017/18_Source]]*T_DataComboFile[[#This Row],[G&S reporting level indicator]]","v":0},{"$f":"T_DataComboFile[[#This Row],[2018/19_Source]]*T_DataComboFile[[#This Row],[G&S reporting level indicator]]","v":0},{"$f":"T_DataComboFile[[#This Row],[2019/20 Main appropriation_Source]]*T_DataComboFile[[#This Row],[G&S reporting level indicator]]","v":0},{"$f":"T_DataComboFile[[#This Row],[2019/20 Adjusted appropriation_Source]]*T_DataComboFile[[#This Row],[G&S reporting level indicator]]","v":0},{"$f":"T_DataComboFile[[#This Row],[2019/20 Revised estimate_Source]]*T_DataComboFile[[#This Row],[G&S reporting level indicator]]","v":0},{"$f":"T_DataComboFile[[#This Row],[2019/20 Preliminary outcome_Source]]*T_DataComboFile[[#This Row],[G&S reporting level indicator]]","v":0},{"$f":"T_DataComboFile[[#This Row],[2020/21 Original_Source]]*T_DataComboFile[[#This Row],[G&S reporting level indicator]]","v":0},{"$f":"T_DataComboFile[[#This Row],[2020/21 SAB_Source]]*T_DataComboFile[[#This Row],[G&S reporting level indicator]]","v":0},{"$f":"T_DataComboFile[[#This Row],[2020/21 Baseline_Source]]*T_DataComboFile[[#This Row],[G&S reporting level indicator]]","v":0},{"$f":"T_DataComboFile[[#This Row],[2021/22 Baseline_Source]]*T_DataComboFile[[#This Row],[G&S reporting level indicator]]","v":0},{"$f":"T_DataComboFile[[#This Row],[2022/23 Baseline_Source]]*T_DataComboFile[[#This Row],[G&S reporting level indicator]]","v":0},{"$f":"T_DataComboFile[[#This Row],[2023/24 Baseline_Source]]*T_DataComboFile[[#This Row],[G&S reporting level indicator]]","v":0},null,null,null,null,null,null,{"$f":"T_DataComboFile[[#This Row],[2021/22 Baseline]]+T_DataComboFile[[#This Row],[2021/22 Reduction]]+T_DataComboFile[[#This Row],[2021/22 Increase]]","v":0},{"$f":"T_DataComboFile[[#This Row],[2022/23 Baseline]]+T_DataComboFile[[#This Row],[2022/23 Reduction]]+T_DataComboFile[[#This Row],[2022/23 Increase]]","v":0},{"$f":"T_DataComboFile[[#This Row],[2023/24 Baseline]]+T_DataComboFile[[#This Row],[2023/24 Reduction]]+T_DataComboFile[[#This Row],[2023/24 Increase]]","v":0}]
[null,null,"2021_22","ENE2020",36,2,4,null,70733,36,2,4,null,"070733","36|02|04",1,1,3,42,42,"01|01|03|42|42","National","Small Business Development","Sector Policy and Research","Monitoring and Evaluation",null,"Current","Current payments","Interest and rent on land","Rent on land","Rent on land",null,null,null,0,0,0,0,0,0,0,0,0,0,0,0,0,0,null,{"$f":"IF(T_DataComboFile[[#This Row],[G&S reporting level indicator]]=1,$AX$16,\"Not applicable\")","v":"Level 3"},{"$f":"IF(AND($AX$16=\"Level 3\",T_DataComboFile[[#This Row],[Econ3]] = \"Goods and services\"),IF(T_DataComboFile[[#This Row],[Econ4]] = T_DataComboFile[[#This Row],[Econ3]],1,0),IF(AND($AX$16=\"Level 4\",T_DataComboFile[[#This Row],[Econ4]] = \"Goods and services\"),0,1))","v":1},{"$f":"T_DataComboFile[[#This Row],[2016/17_Source]]*T_DataComboFile[[#This Row],[G&S reporting level indicator]]","v":0},{"$f":"T_DataComboFile[[#This Row],[2017/18_Source]]*T_DataComboFile[[#This Row],[G&S reporting level indicator]]","v":0},{"$f":"T_DataComboFile[[#This Row],[2018/19_Source]]*T_DataComboFile[[#This Row],[G&S reporting level indicator]]","v":0},{"$f":"T_DataComboFile[[#This Row],[2019/20 Main appropriation_Source]]*T_DataComboFile[[#This Row],[G&S reporting level indicator]]","v":0},{"$f":"T_DataComboFile[[#This Row],[2019/20 Adjusted appropriation_Source]]*T_DataComboFile[[#This Row],[G&S reporting level indicator]]","v":0},{"$f":"T_DataComboFile[[#This Row],[2019/20 Revised estimate_Source]]*T_DataComboFile[[#This Row],[G&S reporting level indicator]]","v":0},{"$f":"T_DataComboFile[[#This Row],[2019/20 Preliminary outcome_Source]]*T_DataComboFile[[#This Row],[G&S reporting level indicator]]","v":0},{"$f":"T_DataComboFile[[#This Row],[2020/21 Original_Source]]*T_DataComboFile[[#This Row],[G&S reporting level indicator]]","v":0},{"$f":"T_DataComboFile[[#This Row],[2020/21 SAB_Source]]*T_DataComboFile[[#This Row],[G&S reporting level indicator]]","v":0},{"$f":"T_DataComboFile[[#This Row],[2020/21 Baseline_Source]]*T_DataComboFile[[#This Row],[G&S reporting level indicator]]","v":0},{"$f":"T_DataComboFile[[#This Row],[2021/22 Baseline_Source]]*T_DataComboFile[[#This Row],[G&S reporting level indicator]]","v":0},{"$f":"T_DataComboFile[[#This Row],[2022/23 Baseline_Source]]*T_DataComboFile[[#This Row],[G&S reporting level indicator]]","v":0},{"$f":"T_DataComboFile[[#This Row],[2023/24 Baseline_Source]]*T_DataComboFile[[#This Row],[G&S reporting level indicator]]","v":0},null,null,null,null,null,null,{"$f":"T_DataComboFile[[#This Row],[2021/22 Baseline]]+T_DataComboFile[[#This Row],[2021/22 Reduction]]+T_DataComboFile[[#This Row],[2021/22 Increase]]","v":0},{"$f":"T_DataComboFile[[#This Row],[2022/23 Baseline]]+T_DataComboFile[[#This Row],[2022/23 Reduction]]+T_DataComboFile[[#This Row],[2022/23 Increase]]","v":0},{"$f":"T_DataComboFile[[#This Row],[2023/24 Baseline]]+T_DataComboFile[[#This Row],[2023/24 Reduction]]+T_DataComboFile[[#This Row],[2023/24 Increase]]","v":0}]
[null,null,"2021_22","ENE2020",36,2,4,null,70734,36,2,4,null,"070734","36|02|04",1,2,4,43,43,"01|02|04|43|43","National","Small Business Development","Sector Policy and Research","Monitoring and Evaluation",null,"Current","Transfers and subsidies","Provinces and municipalities","Provinces","Provincial Revenue Funds",null,null,null,0,0,0,0,0,0,0,0,0,0,0,0,0,0,null,{"$f":"IF(T_DataComboFile[[#This Row],[G&S reporting level indicator]]=1,$AX$16,\"Not applicable\")","v":"Level 3"},{"$f":"IF(AND($AX$16=\"Level 3\",T_DataComboFile[[#This Row],[Econ3]] = \"Goods and services\"),IF(T_DataComboFile[[#This Row],[Econ4]] = T_DataComboFile[[#This Row],[Econ3]],1,0),IF(AND($AX$16=\"Level 4\",T_DataComboFile[[#This Row],[Econ4]] = \"Goods and services\"),0,1))","v":1},{"$f":"T_DataComboFile[[#This Row],[2016/17_Source]]*T_DataComboFile[[#This Row],[G&S reporting level indicator]]","v":0},{"$f":"T_DataComboFile[[#This Row],[2017/18_Source]]*T_DataComboFile[[#This Row],[G&S reporting level indicator]]","v":0},{"$f":"T_DataComboFile[[#This Row],[2018/19_Source]]*T_DataComboFile[[#This Row],[G&S reporting level indicator]]","v":0},{"$f":"T_DataComboFile[[#This Row],[2019/20 Main appropriation_Source]]*T_DataComboFile[[#This Row],[G&S reporting level indicator]]","v":0},{"$f":"T_DataComboFile[[#This Row],[2019/20 Adjusted appropriation_Source]]*T_DataComboFile[[#This Row],[G&S reporting level indicator]]","v":0},{"$f":"T_DataComboFile[[#This Row],[2019/20 Revised estimate_Source]]*T_DataComboFile[[#This Row],[G&S reporting level indicator]]","v":0},{"$f":"T_DataComboFile[[#This Row],[2019/20 Preliminary outcome_Source]]*T_DataComboFile[[#This Row],[G&S reporting level indicator]]","v":0},{"$f":"T_DataComboFile[[#This Row],[2020/21 Original_Source]]*T_DataComboFile[[#This Row],[G&S reporting level indicator]]","v":0},{"$f":"T_DataComboFile[[#This Row],[2020/21 SAB_Source]]*T_DataComboFile[[#This Row],[G&S reporting level indicator]]","v":0},{"$f":"T_DataComboFile[[#This Row],[2020/21 Baseline_Source]]*T_DataComboFile[[#This Row],[G&S reporting level indicator]]","v":0},{"$f":"T_DataComboFile[[#This Row],[2021/22 Baseline_Source]]*T_DataComboFile[[#This Row],[G&S reporting level indicator]]","v":0},{"$f":"T_DataComboFile[[#This Row],[2022/23 Baseline_Source]]*T_DataComboFile[[#This Row],[G&S reporting level indicator]]","v":0},{"$f":"T_DataComboFile[[#This Row],[2023/24 Baseline_Source]]*T_DataComboFile[[#This Row],[G&S reporting level indicator]]","v":0},null,null,null,null,null,null,{"$f":"T_DataComboFile[[#This Row],[2021/22 Baseline]]+T_DataComboFile[[#This Row],[2021/22 Reduction]]+T_DataComboFile[[#This Row],[2021/22 Increase]]","v":0},{"$f":"T_DataComboFile[[#This Row],[2022/23 Baseline]]+T_DataComboFile[[#This Row],[2022/23 Reduction]]+T_DataComboFile[[#This Row],[2022/23 Increase]]","v":0},{"$f":"T_DataComboFile[[#This Row],[2023/24 Baseline]]+T_DataComboFile[[#This Row],[2023/24 Reduction]]+T_DataComboFile[[#This Row],[2023/24 Increase]]","v":0}]
[null,null,"2021_22","ENE2020",36,2,4,null,70735,36,2,4,null,"070735","36|02|04",1,2,4,43,44,"01|02|04|43|44","National","Small Business Development","Sector Policy and Research","Monitoring and Evaluation",null,"Current","Transfers and subsidies","Provinces and municipalities","Provinces","Provincial agencies and funds",null,null,null,0,0,0,0,0,0,0,0,0,0,0,0,0,0,null,{"$f":"IF(T_DataComboFile[[#This Row],[G&S reporting level indicator]]=1,$AX$16,\"Not applicable\")","v":"Level 3"},{"$f":"IF(AND($AX$16=\"Level 3\",T_DataComboFile[[#This Row],[Econ3]] = \"Goods and services\"),IF(T_DataComboFile[[#This Row],[Econ4]] = T_DataComboFile[[#This Row],[Econ3]],1,0),IF(AND($AX$16=\"Level 4\",T_DataComboFile[[#This Row],[Econ4]] = \"Goods and services\"),0,1))","v":1},{"$f":"T_DataComboFile[[#This Row],[2016/17_Source]]*T_DataComboFile[[#This Row],[G&S reporting level indicator]]","v":0},{"$f":"T_DataComboFile[[#This Row],[2017/18_Source]]*T_DataComboFile[[#This Row],[G&S reporting level indicator]]","v":0},{"$f":"T_DataComboFile[[#This Row],[2018/19_Source]]*T_DataComboFile[[#This Row],[G&S reporting level indicator]]","v":0},{"$f":"T_DataComboFile[[#This Row],[2019/20 Main appropriation_Source]]*T_DataComboFile[[#This Row],[G&S reporting level indicator]]","v":0},{"$f":"T_DataComboFile[[#This Row],[2019/20 Adjusted appropriation_Source]]*T_DataComboFile[[#This Row],[G&S reporting level indicator]]","v":0},{"$f":"T_DataComboFile[[#This Row],[2019/20 Revised estimate_Source]]*T_DataComboFile[[#This Row],[G&S reporting level indicator]]","v":0},{"$f":"T_DataComboFile[[#This Row],[2019/20 Preliminary outcome_Source]]*T_DataComboFile[[#This Row],[G&S reporting level indicator]]","v":0},{"$f":"T_DataComboFile[[#This Row],[2020/21 Original_Source]]*T_DataComboFile[[#This Row],[G&S reporting level indicator]]","v":0},{"$f":"T_DataComboFile[[#This Row],[2020/21 SAB_Source]]*T_DataComboFile[[#This Row],[G&S reporting level indicator]]","v":0},{"$f":"T_DataComboFile[[#This Row],[2020/21 Baseline_Source]]*T_DataComboFile[[#This Row],[G&S reporting level indicator]]","v":0},{"$f":"T_DataComboFile[[#This Row],[2021/22 Baseline_Source]]*T_DataComboFile[[#This Row],[G&S reporting level indicator]]","v":0},{"$f":"T_DataComboFile[[#This Row],[2022/23 Baseline_Source]]*T_DataComboFile[[#This Row],[G&S reporting level indicator]]","v":0},{"$f":"T_DataComboFile[[#This Row],[2023/24 Baseline_Source]]*T_DataComboFile[[#This Row],[G&S reporting level indicator]]","v":0},null,null,null,null,null,null,{"$f":"T_DataComboFile[[#This Row],[2021/22 Baseline]]+T_DataComboFile[[#This Row],[2021/22 Reduction]]+T_DataComboFile[[#This Row],[2021/22 Increase]]","v":0},{"$f":"T_DataComboFile[[#This Row],[2022/23 Baseline]]+T_DataComboFile[[#This Row],[2022/23 Reduction]]+T_DataComboFile[[#This Row],[2022/23 Increase]]","v":0},{"$f":"T_DataComboFile[[#This Row],[2023/24 Baseline]]+T_DataComboFile[[#This Row],[2023/24 Reduction]]+T_DataComboFile[[#This Row],[2023/24 Increase]]","v":0}]
[null,null,"2021_22","ENE2020",36,2,4,null,70736,36,2,4,null,"070736","36|02|04",1,2,4,44,45,"01|02|04|44|45","National","Small Business Development","Sector Policy and Research","Monitoring and Evaluation",null,"Current","Transfers and subsidies","Provinces and municipalities","Municipalities","Municipal bank accounts",null,null,null,0,0,0,0,0,0,0,0,0,0,0,0,0,0,null,{"$f":"IF(T_DataComboFile[[#This Row],[G&S reporting level indicator]]=1,$AX$16,\"Not applicable\")","v":"Level 3"},{"$f":"IF(AND($AX$16=\"Level 3\",T_DataComboFile[[#This Row],[Econ3]] = \"Goods and services\"),IF(T_DataComboFile[[#This Row],[Econ4]] = T_DataComboFile[[#This Row],[Econ3]],1,0),IF(AND($AX$16=\"Level 4\",T_DataComboFile[[#This Row],[Econ4]] = \"Goods and services\"),0,1))","v":1},{"$f":"T_DataComboFile[[#This Row],[2016/17_Source]]*T_DataComboFile[[#This Row],[G&S reporting level indicator]]","v":0},{"$f":"T_DataComboFile[[#This Row],[2017/18_Source]]*T_DataComboFile[[#This Row],[G&S reporting level indicator]]","v":0},{"$f":"T_DataComboFile[[#This Row],[2018/19_Source]]*T_DataComboFile[[#This Row],[G&S reporting level indicator]]","v":0},{"$f":"T_DataComboFile[[#This Row],[2019/20 Main appropriation_Source]]*T_DataComboFile[[#This Row],[G&S reporting level indicator]]","v":0},{"$f":"T_DataComboFile[[#This Row],[2019/20 Adjusted appropriation_Source]]*T_DataComboFile[[#This Row],[G&S reporting level indicator]]","v":0},{"$f":"T_DataComboFile[[#This Row],[2019/20 Revised estimate_Source]]*T_DataComboFile[[#This Row],[G&S reporting level indicator]]","v":0},{"$f":"T_DataComboFile[[#This Row],[2019/20 Preliminary outcome_Source]]*T_DataComboFile[[#This Row],[G&S reporting level indicator]]","v":0},{"$f":"T_DataComboFile[[#This Row],[2020/21 Original_Source]]*T_DataComboFile[[#This Row],[G&S reporting level indicator]]","v":0},{"$f":"T_DataComboFile[[#This Row],[2020/21 SAB_Source]]*T_DataComboFile[[#This Row],[G&S reporting level indicator]]","v":0},{"$f":"T_DataComboFile[[#This Row],[2020/21 Baseline_Source]]*T_DataComboFile[[#This Row],[G&S reporting level indicator]]","v":0},{"$f":"T_DataComboFile[[#This Row],[2021/22 Baseline_Source]]*T_DataComboFile[[#This Row],[G&S reporting level indicator]]","v":0},{"$f":"T_DataComboFile[[#This Row],[2022/23 Baseline_Source]]*T_DataComboFile[[#This Row],[G&S reporting level indicator]]","v":0},{"$f":"T_DataComboFile[[#This Row],[2023/24 Baseline_Source]]*T_DataComboFile[[#This Row],[G&S reporting level indicator]]","v":0},null,null,null,null,null,null,{"$f":"T_DataComboFile[[#This Row],[2021/22 Baseline]]+T_DataComboFile[[#This Row],[2021/22 Reduction]]+T_DataComboFile[[#This Row],[2021/22 Increase]]","v":0},{"$f":"T_DataComboFile[[#This Row],[2022/23 Baseline]]+T_DataComboFile[[#This Row],[2022/23 Reduction]]+T_DataComboFile[[#This Row],[2022/23 Increase]]","v":0},{"$f":"T_DataComboFile[[#This Row],[2023/24 Baseline]]+T_DataComboFile[[#This Row],[2023/24 Reduction]]+T_DataComboFile[[#This Row],[2023/24 Increase]]","v":0}]
[null,null,"2021_22","ENE2020",36,2,4,null,70737,36,2,4,null,"070737","36|02|04",1,2,4,44,46,"01|02|04|44|46","National","Small Business Development","Sector Policy and Research","Monitoring and Evaluation",null,"Current","Transfers and subsidies","Provinces and municipalities","Municipalities","Municipal agencies and funds",null,null,null,0,0,0,0,0,0,0,0,0,0,0,0,0,0,null,{"$f":"IF(T_DataComboFile[[#This Row],[G&S reporting level indicator]]=1,$AX$16,\"Not applicable\")","v":"Level 3"},{"$f":"IF(AND($AX$16=\"Level 3\",T_DataComboFile[[#This Row],[Econ3]] = \"Goods and services\"),IF(T_DataComboFile[[#This Row],[Econ4]] = T_DataComboFile[[#This Row],[Econ3]],1,0),IF(AND($AX$16=\"Level 4\",T_DataComboFile[[#This Row],[Econ4]] = \"Goods and services\"),0,1))","v":1},{"$f":"T_DataComboFile[[#This Row],[2016/17_Source]]*T_DataComboFile[[#This Row],[G&S reporting level indicator]]","v":0},{"$f":"T_DataComboFile[[#This Row],[2017/18_Source]]*T_DataComboFile[[#This Row],[G&S reporting level indicator]]","v":0},{"$f":"T_DataComboFile[[#This Row],[2018/19_Source]]*T_DataComboFile[[#This Row],[G&S reporting level indicator]]","v":0},{"$f":"T_DataComboFile[[#This Row],[2019/20 Main appropriation_Source]]*T_DataComboFile[[#This Row],[G&S reporting level indicator]]","v":0},{"$f":"T_DataComboFile[[#This Row],[2019/20 Adjusted appropriation_Source]]*T_DataComboFile[[#This Row],[G&S reporting level indicator]]","v":0},{"$f":"T_DataComboFile[[#This Row],[2019/20 Revised estimate_Source]]*T_DataComboFile[[#This Row],[G&S reporting level indicator]]","v":0},{"$f":"T_DataComboFile[[#This Row],[2019/20 Preliminary outcome_Source]]*T_DataComboFile[[#This Row],[G&S reporting level indicator]]","v":0},{"$f":"T_DataComboFile[[#This Row],[2020/21 Original_Source]]*T_DataComboFile[[#This Row],[G&S reporting level indicator]]","v":0},{"$f":"T_DataComboFile[[#This Row],[2020/21 SAB_Source]]*T_DataComboFile[[#This Row],[G&S reporting level indicator]]","v":0},{"$f":"T_DataComboFile[[#This Row],[2020/21 Baseline_Source]]*T_DataComboFile[[#This Row],[G&S reporting level indicator]]","v":0},{"$f":"T_DataComboFile[[#This Row],[2021/22 Baseline_Source]]*T_DataComboFile[[#This Row],[G&S reporting level indicator]]","v":0},{"$f":"T_DataComboFile[[#This Row],[2022/23 Baseline_Source]]*T_DataComboFile[[#This Row],[G&S reporting level indicator]]","v":0},{"$f":"T_DataComboFile[[#This Row],[2023/24 Baseline_Source]]*T_DataComboFile[[#This Row],[G&S reporting level indicator]]","v":0},null,null,null,null,null,null,{"$f":"T_DataComboFile[[#This Row],[2021/22 Baseline]]+T_DataComboFile[[#This Row],[2021/22 Reduction]]+T_DataComboFile[[#This Row],[2021/22 Increase]]","v":0},{"$f":"T_DataComboFile[[#This Row],[2022/23 Baseline]]+T_DataComboFile[[#This Row],[2022/23 Reduction]]+T_DataComboFile[[#This Row],[2022/23 Increase]]","v":0},{"$f":"T_DataComboFile[[#This Row],[2023/24 Baseline]]+T_DataComboFile[[#This Row],[2023/24 Reduction]]+T_DataComboFile[[#This Row],[2023/24 Increase]]","v":0}]
[null,null,"2021_22","ENE2020",36,2,4,null,70738,36,2,4,null,"070738","36|02|04",1,2,5,45,47,"01|02|05|45|47","National","Small Business Development","Sector Policy and Research","Monitoring and Evaluation",null,"Current","Transfers and subsidies","Departmental agencies and accounts","Social security funds","Social security funds",null,null,null,0,0,0,0,0,0,0,0,0,0,0,0,0,0,null,{"$f":"IF(T_DataComboFile[[#This Row],[G&S reporting level indicator]]=1,$AX$16,\"Not applicable\")","v":"Level 3"},{"$f":"IF(AND($AX$16=\"Level 3\",T_DataComboFile[[#This Row],[Econ3]] = \"Goods and services\"),IF(T_DataComboFile[[#This Row],[Econ4]] = T_DataComboFile[[#This Row],[Econ3]],1,0),IF(AND($AX$16=\"Level 4\",T_DataComboFile[[#This Row],[Econ4]] = \"Goods and services\"),0,1))","v":1},{"$f":"T_DataComboFile[[#This Row],[2016/17_Source]]*T_DataComboFile[[#This Row],[G&S reporting level indicator]]","v":0},{"$f":"T_DataComboFile[[#This Row],[2017/18_Source]]*T_DataComboFile[[#This Row],[G&S reporting level indicator]]","v":0},{"$f":"T_DataComboFile[[#This Row],[2018/19_Source]]*T_DataComboFile[[#This Row],[G&S reporting level indicator]]","v":0},{"$f":"T_DataComboFile[[#This Row],[2019/20 Main appropriation_Source]]*T_DataComboFile[[#This Row],[G&S reporting level indicator]]","v":0},{"$f":"T_DataComboFile[[#This Row],[2019/20 Adjusted appropriation_Source]]*T_DataComboFile[[#This Row],[G&S reporting level indicator]]","v":0},{"$f":"T_DataComboFile[[#This Row],[2019/20 Revised estimate_Source]]*T_DataComboFile[[#This Row],[G&S reporting level indicator]]","v":0},{"$f":"T_DataComboFile[[#This Row],[2019/20 Preliminary outcome_Source]]*T_DataComboFile[[#This Row],[G&S reporting level indicator]]","v":0},{"$f":"T_DataComboFile[[#This Row],[2020/21 Original_Source]]*T_DataComboFile[[#This Row],[G&S reporting level indicator]]","v":0},{"$f":"T_DataComboFile[[#This Row],[2020/21 SAB_Source]]*T_DataComboFile[[#This Row],[G&S reporting level indicator]]","v":0},{"$f":"T_DataComboFile[[#This Row],[2020/21 Baseline_Source]]*T_DataComboFile[[#This Row],[G&S reporting level indicator]]","v":0},{"$f":"T_DataComboFile[[#This Row],[2021/22 Baseline_Source]]*T_DataComboFile[[#This Row],[G&S reporting level indicator]]","v":0},{"$f":"T_DataComboFile[[#This Row],[2022/23 Baseline_Source]]*T_DataComboFile[[#This Row],[G&S reporting level indicator]]","v":0},{"$f":"T_DataComboFile[[#This Row],[2023/24 Baseline_Source]]*T_DataComboFile[[#This Row],[G&S reporting level indicator]]","v":0},null,null,null,null,null,null,{"$f":"T_DataComboFile[[#This Row],[2021/22 Baseline]]+T_DataComboFile[[#This Row],[2021/22 Reduction]]+T_DataComboFile[[#This Row],[2021/22 Increase]]","v":0},{"$f":"T_DataComboFile[[#This Row],[2022/23 Baseline]]+T_DataComboFile[[#This Row],[2022/23 Reduction]]+T_DataComboFile[[#This Row],[2022/23 Increase]]","v":0},{"$f":"T_DataComboFile[[#This Row],[2023/24 Baseline]]+T_DataComboFile[[#This Row],[2023/24 Reduction]]+T_DataComboFile[[#This Row],[2023/24 Increase]]","v":0}]
[null,null,"2021_22","ENE2020",36,2,4,null,70739,36,2,4,null,"070739","36|02|04",1,2,5,46,48,"01|02|05|46|48","National","Small Business Development","Sector Policy and Research","Monitoring and Evaluation",null,"Current","Transfers and subsidies","Departmental agencies and accounts","Departmental agencies (non-business entities)","Departmental agencies (non-business entities)",null,null,null,0,0,0,0,0,0,0,0,0,0,0,0,0,0,null,{"$f":"IF(T_DataComboFile[[#This Row],[G&S reporting level indicator]]=1,$AX$16,\"Not applicable\")","v":"Level 3"},{"$f":"IF(AND($AX$16=\"Level 3\",T_DataComboFile[[#This Row],[Econ3]] = \"Goods and services\"),IF(T_DataComboFile[[#This Row],[Econ4]] = T_DataComboFile[[#This Row],[Econ3]],1,0),IF(AND($AX$16=\"Level 4\",T_DataComboFile[[#This Row],[Econ4]] = \"Goods and services\"),0,1))","v":1},{"$f":"T_DataComboFile[[#This Row],[2016/17_Source]]*T_DataComboFile[[#This Row],[G&S reporting level indicator]]","v":0},{"$f":"T_DataComboFile[[#This Row],[2017/18_Source]]*T_DataComboFile[[#This Row],[G&S reporting level indicator]]","v":0},{"$f":"T_DataComboFile[[#This Row],[2018/19_Source]]*T_DataComboFile[[#This Row],[G&S reporting level indicator]]","v":0},{"$f":"T_DataComboFile[[#This Row],[2019/20 Main appropriation_Source]]*T_DataComboFile[[#This Row],[G&S reporting level indicator]]","v":0},{"$f":"T_DataComboFile[[#This Row],[2019/20 Adjusted appropriation_Source]]*T_DataComboFile[[#This Row],[G&S reporting level indicator]]","v":0},{"$f":"T_DataComboFile[[#This Row],[2019/20 Revised estimate_Source]]*T_DataComboFile[[#This Row],[G&S reporting level indicator]]","v":0},{"$f":"T_DataComboFile[[#This Row],[2019/20 Preliminary outcome_Source]]*T_DataComboFile[[#This Row],[G&S reporting level indicator]]","v":0},{"$f":"T_DataComboFile[[#This Row],[2020/21 Original_Source]]*T_DataComboFile[[#This Row],[G&S reporting level indicator]]","v":0},{"$f":"T_DataComboFile[[#This Row],[2020/21 SAB_Source]]*T_DataComboFile[[#This Row],[G&S reporting level indicator]]","v":0},{"$f":"T_DataComboFile[[#This Row],[2020/21 Baseline_Source]]*T_DataComboFile[[#This Row],[G&S reporting level indicator]]","v":0},{"$f":"T_DataComboFile[[#This Row],[2021/22 Baseline_Source]]*T_DataComboFile[[#This Row],[G&S reporting level indicator]]","v":0},{"$f":"T_DataComboFile[[#This Row],[2022/23 Baseline_Source]]*T_DataComboFile[[#This Row],[G&S reporting level indicator]]","v":0},{"$f":"T_DataComboFile[[#This Row],[2023/24 Baseline_Source]]*T_DataComboFile[[#This Row],[G&S reporting level indicator]]","v":0},null,null,null,null,null,null,{"$f":"T_DataComboFile[[#This Row],[2021/22 Baseline]]+T_DataComboFile[[#This Row],[2021/22 Reduction]]+T_DataComboFile[[#This Row],[2021/22 Increase]]","v":0},{"$f":"T_DataComboFile[[#This Row],[2022/23 Baseline]]+T_DataComboFile[[#This Row],[2022/23 Reduction]]+T_DataComboFile[[#This Row],[2022/23 Increase]]","v":0},{"$f":"T_DataComboFile[[#This Row],[2023/24 Baseline]]+T_DataComboFile[[#This Row],[2023/24 Reduction]]+T_DataComboFile[[#This Row],[2023/24 Increase]]","v":0}]
[null,null,"2021_22","ENE2020",36,2,4,null,70740,36,2,4,null,"070740","36|02|04",1,2,6,47,49,"01|02|06|47|49","National","Small Business Development","Sector Policy and Research","Monitoring and Evaluation",null,"Current","Transfers and subsidies","Higher education institutions","Higher education institutions","Higher education institutions",null,null,null,0,0,0,0,0,0,0,0,0,0,0,0,0,0,null,{"$f":"IF(T_DataComboFile[[#This Row],[G&S reporting level indicator]]=1,$AX$16,\"Not applicable\")","v":"Level 3"},{"$f":"IF(AND($AX$16=\"Level 3\",T_DataComboFile[[#This Row],[Econ3]] = \"Goods and services\"),IF(T_DataComboFile[[#This Row],[Econ4]] = T_DataComboFile[[#This Row],[Econ3]],1,0),IF(AND($AX$16=\"Level 4\",T_DataComboFile[[#This Row],[Econ4]] = \"Goods and services\"),0,1))","v":1},{"$f":"T_DataComboFile[[#This Row],[2016/17_Source]]*T_DataComboFile[[#This Row],[G&S reporting level indicator]]","v":0},{"$f":"T_DataComboFile[[#This Row],[2017/18_Source]]*T_DataComboFile[[#This Row],[G&S reporting level indicator]]","v":0},{"$f":"T_DataComboFile[[#This Row],[2018/19_Source]]*T_DataComboFile[[#This Row],[G&S reporting level indicator]]","v":0},{"$f":"T_DataComboFile[[#This Row],[2019/20 Main appropriation_Source]]*T_DataComboFile[[#This Row],[G&S reporting level indicator]]","v":0},{"$f":"T_DataComboFile[[#This Row],[2019/20 Adjusted appropriation_Source]]*T_DataComboFile[[#This Row],[G&S reporting level indicator]]","v":0},{"$f":"T_DataComboFile[[#This Row],[2019/20 Revised estimate_Source]]*T_DataComboFile[[#This Row],[G&S reporting level indicator]]","v":0},{"$f":"T_DataComboFile[[#This Row],[2019/20 Preliminary outcome_Source]]*T_DataComboFile[[#This Row],[G&S reporting level indicator]]","v":0},{"$f":"T_DataComboFile[[#This Row],[2020/21 Original_Source]]*T_DataComboFile[[#This Row],[G&S reporting level indicator]]","v":0},{"$f":"T_DataComboFile[[#This Row],[2020/21 SAB_Source]]*T_DataComboFile[[#This Row],[G&S reporting level indicator]]","v":0},{"$f":"T_DataComboFile[[#This Row],[2020/21 Baseline_Source]]*T_DataComboFile[[#This Row],[G&S reporting level indicator]]","v":0},{"$f":"T_DataComboFile[[#This Row],[2021/22 Baseline_Source]]*T_DataComboFile[[#This Row],[G&S reporting level indicator]]","v":0},{"$f":"T_DataComboFile[[#This Row],[2022/23 Baseline_Source]]*T_DataComboFile[[#This Row],[G&S reporting level indicator]]","v":0},{"$f":"T_DataComboFile[[#This Row],[2023/24 Baseline_Source]]*T_DataComboFile[[#This Row],[G&S reporting level indicator]]","v":0},null,null,null,null,null,null,{"$f":"T_DataComboFile[[#This Row],[2021/22 Baseline]]+T_DataComboFile[[#This Row],[2021/22 Reduction]]+T_DataComboFile[[#This Row],[2021/22 Increase]]","v":0},{"$f":"T_DataComboFile[[#This Row],[2022/23 Baseline]]+T_DataComboFile[[#This Row],[2022/23 Reduction]]+T_DataComboFile[[#This Row],[2022/23 Increase]]","v":0},{"$f":"T_DataComboFile[[#This Row],[2023/24 Baseline]]+T_DataComboFile[[#This Row],[2023/24 Reduction]]+T_DataComboFile[[#This Row],[2023/24 Increase]]","v":0}]
[null,null,"2021_22","ENE2020",36,2,4,null,70741,36,2,4,null,"070741","36|02|04",1,2,7,48,50,"01|02|07|48|50","National","Small Business Development","Sector Policy and Research","Monitoring and Evaluation",null,"Current","Transfers and subsidies","Foreign governments and international organisations","Foreign governments and international organisations","Foreign governments and international organisations",null,null,null,0,0,0,0,0,0,0,0,0,0,0,0,0,0,null,{"$f":"IF(T_DataComboFile[[#This Row],[G&S reporting level indicator]]=1,$AX$16,\"Not applicable\")","v":"Level 3"},{"$f":"IF(AND($AX$16=\"Level 3\",T_DataComboFile[[#This Row],[Econ3]] = \"Goods and services\"),IF(T_DataComboFile[[#This Row],[Econ4]] = T_DataComboFile[[#This Row],[Econ3]],1,0),IF(AND($AX$16=\"Level 4\",T_DataComboFile[[#This Row],[Econ4]] = \"Goods and services\"),0,1))","v":1},{"$f":"T_DataComboFile[[#This Row],[2016/17_Source]]*T_DataComboFile[[#This Row],[G&S reporting level indicator]]","v":0},{"$f":"T_DataComboFile[[#This Row],[2017/18_Source]]*T_DataComboFile[[#This Row],[G&S reporting level indicator]]","v":0},{"$f":"T_DataComboFile[[#This Row],[2018/19_Source]]*T_DataComboFile[[#This Row],[G&S reporting level indicator]]","v":0},{"$f":"T_DataComboFile[[#This Row],[2019/20 Main appropriation_Source]]*T_DataComboFile[[#This Row],[G&S reporting level indicator]]","v":0},{"$f":"T_DataComboFile[[#This Row],[2019/20 Adjusted appropriation_Source]]*T_DataComboFile[[#This Row],[G&S reporting level indicator]]","v":0},{"$f":"T_DataComboFile[[#This Row],[2019/20 Revised estimate_Source]]*T_DataComboFile[[#This Row],[G&S reporting level indicator]]","v":0},{"$f":"T_DataComboFile[[#This Row],[2019/20 Preliminary outcome_Source]]*T_DataComboFile[[#This Row],[G&S reporting level indicator]]","v":0},{"$f":"T_DataComboFile[[#This Row],[2020/21 Original_Source]]*T_DataComboFile[[#This Row],[G&S reporting level indicator]]","v":0},{"$f":"T_DataComboFile[[#This Row],[2020/21 SAB_Source]]*T_DataComboFile[[#This Row],[G&S reporting level indicator]]","v":0},{"$f":"T_DataComboFile[[#This Row],[2020/21 Baseline_Source]]*T_DataComboFile[[#This Row],[G&S reporting level indicator]]","v":0},{"$f":"T_DataComboFile[[#This Row],[2021/22 Baseline_Source]]*T_DataComboFile[[#This Row],[G&S reporting level indicator]]","v":0},{"$f":"T_DataComboFile[[#This Row],[2022/23 Baseline_Source]]*T_DataComboFile[[#This Row],[G&S reporting level indicator]]","v":0},{"$f":"T_DataComboFile[[#This Row],[2023/24 Baseline_Source]]*T_DataComboFile[[#This Row],[G&S reporting level indicator]]","v":0},null,null,null,null,null,null,{"$f":"T_DataComboFile[[#This Row],[2021/22 Baseline]]+T_DataComboFile[[#This Row],[2021/22 Reduction]]+T_DataComboFile[[#This Row],[2021/22 Increase]]","v":0},{"$f":"T_DataComboFile[[#This Row],[2022/23 Baseline]]+T_DataComboFile[[#This Row],[2022/23 Reduction]]+T_DataComboFile[[#This Row],[2022/23 Increase]]","v":0},{"$f":"T_DataComboFile[[#This Row],[2023/24 Baseline]]+T_DataComboFile[[#This Row],[2023/24 Reduction]]+T_DataComboFile[[#This Row],[2023/24 Increase]]","v":0}]
[null,null,"2021_22","ENE2020",36,2,4,null,70742,36,2,4,null,"070742","36|02|04",1,2,8,49,51,"01|02|08|49|51","National","Small Business Development","Sector Policy and Research","Monitoring and Evaluation",null,"Current","Transfers and subsidies","Public corporations and private enterprises","Public corporations","Subsidies on products and production (pc)",null,null,null,0,0,0,0,0,0,0,0,0,0,0,0,0,0,null,{"$f":"IF(T_DataComboFile[[#This Row],[G&S reporting level indicator]]=1,$AX$16,\"Not applicable\")","v":"Level 3"},{"$f":"IF(AND($AX$16=\"Level 3\",T_DataComboFile[[#This Row],[Econ3]] = \"Goods and services\"),IF(T_DataComboFile[[#This Row],[Econ4]] = T_DataComboFile[[#This Row],[Econ3]],1,0),IF(AND($AX$16=\"Level 4\",T_DataComboFile[[#This Row],[Econ4]] = \"Goods and services\"),0,1))","v":1},{"$f":"T_DataComboFile[[#This Row],[2016/17_Source]]*T_DataComboFile[[#This Row],[G&S reporting level indicator]]","v":0},{"$f":"T_DataComboFile[[#This Row],[2017/18_Source]]*T_DataComboFile[[#This Row],[G&S reporting level indicator]]","v":0},{"$f":"T_DataComboFile[[#This Row],[2018/19_Source]]*T_DataComboFile[[#This Row],[G&S reporting level indicator]]","v":0},{"$f":"T_DataComboFile[[#This Row],[2019/20 Main appropriation_Source]]*T_DataComboFile[[#This Row],[G&S reporting level indicator]]","v":0},{"$f":"T_DataComboFile[[#This Row],[2019/20 Adjusted appropriation_Source]]*T_DataComboFile[[#This Row],[G&S reporting level indicator]]","v":0},{"$f":"T_DataComboFile[[#This Row],[2019/20 Revised estimate_Source]]*T_DataComboFile[[#This Row],[G&S reporting level indicator]]","v":0},{"$f":"T_DataComboFile[[#This Row],[2019/20 Preliminary outcome_Source]]*T_DataComboFile[[#This Row],[G&S reporting level indicator]]","v":0},{"$f":"T_DataComboFile[[#This Row],[2020/21 Original_Source]]*T_DataComboFile[[#This Row],[G&S reporting level indicator]]","v":0},{"$f":"T_DataComboFile[[#This Row],[2020/21 SAB_Source]]*T_DataComboFile[[#This Row],[G&S reporting level indicator]]","v":0},{"$f":"T_DataComboFile[[#This Row],[2020/21 Baseline_Source]]*T_DataComboFile[[#This Row],[G&S reporting level indicator]]","v":0},{"$f":"T_DataComboFile[[#This Row],[2021/22 Baseline_Source]]*T_DataComboFile[[#This Row],[G&S reporting level indicator]]","v":0},{"$f":"T_DataComboFile[[#This Row],[2022/23 Baseline_Source]]*T_DataComboFile[[#This Row],[G&S reporting level indicator]]","v":0},{"$f":"T_DataComboFile[[#This Row],[2023/24 Baseline_Source]]*T_DataComboFile[[#This Row],[G&S reporting level indicator]]","v":0},null,null,null,null,null,null,{"$f":"T_DataComboFile[[#This Row],[2021/22 Baseline]]+T_DataComboFile[[#This Row],[2021/22 Reduction]]+T_DataComboFile[[#This Row],[2021/22 Increase]]","v":0},{"$f":"T_DataComboFile[[#This Row],[2022/23 Baseline]]+T_DataComboFile[[#This Row],[2022/23 Reduction]]+T_DataComboFile[[#This Row],[2022/23 Increase]]","v":0},{"$f":"T_DataComboFile[[#This Row],[2023/24 Baseline]]+T_DataComboFile[[#This Row],[2023/24 Reduction]]+T_DataComboFile[[#This Row],[2023/24 Increase]]","v":0}]
[null,null,"2021_22","ENE2020",36,2,4,null,70743,36,2,4,null,"070743","36|02|04",1,2,8,49,52,"01|02|08|49|52","National","Small Business Development","Sector Policy and Research","Monitoring and Evaluation",null,"Current","Transfers and subsidies","Public corporations and private enterprises","Public corporations","Other transfers to public corporations",null,null,null,0,0,0,0,0,0,0,0,0,0,0,0,0,0,null,{"$f":"IF(T_DataComboFile[[#This Row],[G&S reporting level indicator]]=1,$AX$16,\"Not applicable\")","v":"Level 3"},{"$f":"IF(AND($AX$16=\"Level 3\",T_DataComboFile[[#This Row],[Econ3]] = \"Goods and services\"),IF(T_DataComboFile[[#This Row],[Econ4]] = T_DataComboFile[[#This Row],[Econ3]],1,0),IF(AND($AX$16=\"Level 4\",T_DataComboFile[[#This Row],[Econ4]] = \"Goods and services\"),0,1))","v":1},{"$f":"T_DataComboFile[[#This Row],[2016/17_Source]]*T_DataComboFile[[#This Row],[G&S reporting level indicator]]","v":0},{"$f":"T_DataComboFile[[#This Row],[2017/18_Source]]*T_DataComboFile[[#This Row],[G&S reporting level indicator]]","v":0},{"$f":"T_DataComboFile[[#This Row],[2018/19_Source]]*T_DataComboFile[[#This Row],[G&S reporting level indicator]]","v":0},{"$f":"T_DataComboFile[[#This Row],[2019/20 Main appropriation_Source]]*T_DataComboFile[[#This Row],[G&S reporting level indicator]]","v":0},{"$f":"T_DataComboFile[[#This Row],[2019/20 Adjusted appropriation_Source]]*T_DataComboFile[[#This Row],[G&S reporting level indicator]]","v":0},{"$f":"T_DataComboFile[[#This Row],[2019/20 Revised estimate_Source]]*T_DataComboFile[[#This Row],[G&S reporting level indicator]]","v":0},{"$f":"T_DataComboFile[[#This Row],[2019/20 Preliminary outcome_Source]]*T_DataComboFile[[#This Row],[G&S reporting level indicator]]","v":0},{"$f":"T_DataComboFile[[#This Row],[2020/21 Original_Source]]*T_DataComboFile[[#This Row],[G&S reporting level indicator]]","v":0},{"$f":"T_DataComboFile[[#This Row],[2020/21 SAB_Source]]*T_DataComboFile[[#This Row],[G&S reporting level indicator]]","v":0},{"$f":"T_DataComboFile[[#This Row],[2020/21 Baseline_Source]]*T_DataComboFile[[#This Row],[G&S reporting level indicator]]","v":0},{"$f":"T_DataComboFile[[#This Row],[2021/22 Baseline_Source]]*T_DataComboFile[[#This Row],[G&S reporting level indicator]]","v":0},{"$f":"T_DataComboFile[[#This Row],[2022/23 Baseline_Source]]*T_DataComboFile[[#This Row],[G&S reporting level indicator]]","v":0},{"$f":"T_DataComboFile[[#This Row],[2023/24 Baseline_Source]]*T_DataComboFile[[#This Row],[G&S reporting level indicator]]","v":0},null,null,null,null,null,null,{"$f":"T_DataComboFile[[#This Row],[2021/22 Baseline]]+T_DataComboFile[[#This Row],[2021/22 Reduction]]+T_DataComboFile[[#This Row],[2021/22 Increase]]","v":0},{"$f":"T_DataComboFile[[#This Row],[2022/23 Baseline]]+T_DataComboFile[[#This Row],[2022/23 Reduction]]+T_DataComboFile[[#This Row],[2022/23 Increase]]","v":0},{"$f":"T_DataComboFile[[#This Row],[2023/24 Baseline]]+T_DataComboFile[[#This Row],[2023/24 Reduction]]+T_DataComboFile[[#This Row],[2023/24 Increase]]","v":0}]
[null,null,"2021_22","ENE2020",36,2,4,null,70744,36,2,4,null,"070744","36|02|04",1,2,8,50,53,"01|02|08|50|53","National","Small Business Development","Sector Policy and Research","Monitoring and Evaluation",null,"Current","Transfers and subsidies","Public corporations and private enterprises","Private enterprises","Subsidies on products and production (pe)",null,null,null,0,0,0,0,0,0,0,0,0,0,0,0,0,0,null,{"$f":"IF(T_DataComboFile[[#This Row],[G&S reporting level indicator]]=1,$AX$16,\"Not applicable\")","v":"Level 3"},{"$f":"IF(AND($AX$16=\"Level 3\",T_DataComboFile[[#This Row],[Econ3]] = \"Goods and services\"),IF(T_DataComboFile[[#This Row],[Econ4]] = T_DataComboFile[[#This Row],[Econ3]],1,0),IF(AND($AX$16=\"Level 4\",T_DataComboFile[[#This Row],[Econ4]] = \"Goods and services\"),0,1))","v":1},{"$f":"T_DataComboFile[[#This Row],[2016/17_Source]]*T_DataComboFile[[#This Row],[G&S reporting level indicator]]","v":0},{"$f":"T_DataComboFile[[#This Row],[2017/18_Source]]*T_DataComboFile[[#This Row],[G&S reporting level indicator]]","v":0},{"$f":"T_DataComboFile[[#This Row],[2018/19_Source]]*T_DataComboFile[[#This Row],[G&S reporting level indicator]]","v":0},{"$f":"T_DataComboFile[[#This Row],[2019/20 Main appropriation_Source]]*T_DataComboFile[[#This Row],[G&S reporting level indicator]]","v":0},{"$f":"T_DataComboFile[[#This Row],[2019/20 Adjusted appropriation_Source]]*T_DataComboFile[[#This Row],[G&S reporting level indicator]]","v":0},{"$f":"T_DataComboFile[[#This Row],[2019/20 Revised estimate_Source]]*T_DataComboFile[[#This Row],[G&S reporting level indicator]]","v":0},{"$f":"T_DataComboFile[[#This Row],[2019/20 Preliminary outcome_Source]]*T_DataComboFile[[#This Row],[G&S reporting level indicator]]","v":0},{"$f":"T_DataComboFile[[#This Row],[2020/21 Original_Source]]*T_DataComboFile[[#This Row],[G&S reporting level indicator]]","v":0},{"$f":"T_DataComboFile[[#This Row],[2020/21 SAB_Source]]*T_DataComboFile[[#This Row],[G&S reporting level indicator]]","v":0},{"$f":"T_DataComboFile[[#This Row],[2020/21 Baseline_Source]]*T_DataComboFile[[#This Row],[G&S reporting level indicator]]","v":0},{"$f":"T_DataComboFile[[#This Row],[2021/22 Baseline_Source]]*T_DataComboFile[[#This Row],[G&S reporting level indicator]]","v":0},{"$f":"T_DataComboFile[[#This Row],[2022/23 Baseline_Source]]*T_DataComboFile[[#This Row],[G&S reporting level indicator]]","v":0},{"$f":"T_DataComboFile[[#This Row],[2023/24 Baseline_Source]]*T_DataComboFile[[#This Row],[G&S reporting level indicator]]","v":0},null,null,null,null,null,null,{"$f":"T_DataComboFile[[#This Row],[2021/22 Baseline]]+T_DataComboFile[[#This Row],[2021/22 Reduction]]+T_DataComboFile[[#This Row],[2021/22 Increase]]","v":0},{"$f":"T_DataComboFile[[#This Row],[2022/23 Baseline]]+T_DataComboFile[[#This Row],[2022/23 Reduction]]+T_DataComboFile[[#This Row],[2022/23 Increase]]","v":0},{"$f":"T_DataComboFile[[#This Row],[2023/24 Baseline]]+T_DataComboFile[[#This Row],[2023/24 Reduction]]+T_DataComboFile[[#This Row],[2023/24 Increase]]","v":0}]
[null,null,"2021_22","ENE2020",36,2,4,null,70745,36,2,4,null,"070745","36|02|04",1,2,8,50,54,"01|02|08|50|54","National","Small Business Development","Sector Policy and Research","Monitoring and Evaluation",null,"Current","Transfers and subsidies","Public corporations and private enterprises","Private enterprises","Other transfers to private enterprises",null,null,null,0,0,0,0,0,0,0,0,0,0,0,0,0,0,null,{"$f":"IF(T_DataComboFile[[#This Row],[G&S reporting level indicator]]=1,$AX$16,\"Not applicable\")","v":"Level 3"},{"$f":"IF(AND($AX$16=\"Level 3\",T_DataComboFile[[#This Row],[Econ3]] = \"Goods and services\"),IF(T_DataComboFile[[#This Row],[Econ4]] = T_DataComboFile[[#This Row],[Econ3]],1,0),IF(AND($AX$16=\"Level 4\",T_DataComboFile[[#This Row],[Econ4]] = \"Goods and services\"),0,1))","v":1},{"$f":"T_DataComboFile[[#This Row],[2016/17_Source]]*T_DataComboFile[[#This Row],[G&S reporting level indicator]]","v":0},{"$f":"T_DataComboFile[[#This Row],[2017/18_Source]]*T_DataComboFile[[#This Row],[G&S reporting level indicator]]","v":0},{"$f":"T_DataComboFile[[#This Row],[2018/19_Source]]*T_DataComboFile[[#This Row],[G&S reporting level indicator]]","v":0},{"$f":"T_DataComboFile[[#This Row],[2019/20 Main appropriation_Source]]*T_DataComboFile[[#This Row],[G&S reporting level indicator]]","v":0},{"$f":"T_DataComboFile[[#This Row],[2019/20 Adjusted appropriation_Source]]*T_DataComboFile[[#This Row],[G&S reporting level indicator]]","v":0},{"$f":"T_DataComboFile[[#This Row],[2019/20 Revised estimate_Source]]*T_DataComboFile[[#This Row],[G&S reporting level indicator]]","v":0},{"$f":"T_DataComboFile[[#This Row],[2019/20 Preliminary outcome_Source]]*T_DataComboFile[[#This Row],[G&S reporting level indicator]]","v":0},{"$f":"T_DataComboFile[[#This Row],[2020/21 Original_Source]]*T_DataComboFile[[#This Row],[G&S reporting level indicator]]","v":0},{"$f":"T_DataComboFile[[#This Row],[2020/21 SAB_Source]]*T_DataComboFile[[#This Row],[G&S reporting level indicator]]","v":0},{"$f":"T_DataComboFile[[#This Row],[2020/21 Baseline_Source]]*T_DataComboFile[[#This Row],[G&S reporting level indicator]]","v":0},{"$f":"T_DataComboFile[[#This Row],[2021/22 Baseline_Source]]*T_DataComboFile[[#This Row],[G&S reporting level indicator]]","v":0},{"$f":"T_DataComboFile[[#This Row],[2022/23 Baseline_Source]]*T_DataComboFile[[#This Row],[G&S reporting level indicator]]","v":0},{"$f":"T_DataComboFile[[#This Row],[2023/24 Baseline_Source]]*T_DataComboFile[[#This Row],[G&S reporting level indicator]]","v":0},null,null,null,null,null,null,{"$f":"T_DataComboFile[[#This Row],[2021/22 Baseline]]+T_DataComboFile[[#This Row],[2021/22 Reduction]]+T_DataComboFile[[#This Row],[2021/22 Increase]]","v":0},{"$f":"T_DataComboFile[[#This Row],[2022/23 Baseline]]+T_DataComboFile[[#This Row],[2022/23 Reduction]]+T_DataComboFile[[#This Row],[2022/23 Increase]]","v":0},{"$f":"T_DataComboFile[[#This Row],[2023/24 Baseline]]+T_DataComboFile[[#This Row],[2023/24 Reduction]]+T_DataComboFile[[#This Row],[2023/24 Increase]]","v":0}]
[null,null,"2021_22","ENE2020",36,2,4,null,70746,36,2,4,null,"070746","36|02|04",1,2,9,51,55,"01|02|09|51|55","National","Small Business Development","Sector Policy and Research","Monitoring and Evaluation",null,"Current","Transfers and subsidies","Non-profit institutions","Non-profit institutions","Non-profit institutions",null,null,null,0,0,0,0,0,0,0,0,0,0,0,0,0,0,null,{"$f":"IF(T_DataComboFile[[#This Row],[G&S reporting level indicator]]=1,$AX$16,\"Not applicable\")","v":"Level 3"},{"$f":"IF(AND($AX$16=\"Level 3\",T_DataComboFile[[#This Row],[Econ3]] = \"Goods and services\"),IF(T_DataComboFile[[#This Row],[Econ4]] = T_DataComboFile[[#This Row],[Econ3]],1,0),IF(AND($AX$16=\"Level 4\",T_DataComboFile[[#This Row],[Econ4]] = \"Goods and services\"),0,1))","v":1},{"$f":"T_DataComboFile[[#This Row],[2016/17_Source]]*T_DataComboFile[[#This Row],[G&S reporting level indicator]]","v":0},{"$f":"T_DataComboFile[[#This Row],[2017/18_Source]]*T_DataComboFile[[#This Row],[G&S reporting level indicator]]","v":0},{"$f":"T_DataComboFile[[#This Row],[2018/19_Source]]*T_DataComboFile[[#This Row],[G&S reporting level indicator]]","v":0},{"$f":"T_DataComboFile[[#This Row],[2019/20 Main appropriation_Source]]*T_DataComboFile[[#This Row],[G&S reporting level indicator]]","v":0},{"$f":"T_DataComboFile[[#This Row],[2019/20 Adjusted appropriation_Source]]*T_DataComboFile[[#This Row],[G&S reporting level indicator]]","v":0},{"$f":"T_DataComboFile[[#This Row],[2019/20 Revised estimate_Source]]*T_DataComboFile[[#This Row],[G&S reporting level indicator]]","v":0},{"$f":"T_DataComboFile[[#This Row],[2019/20 Preliminary outcome_Source]]*T_DataComboFile[[#This Row],[G&S reporting level indicator]]","v":0},{"$f":"T_DataComboFile[[#This Row],[2020/21 Original_Source]]*T_DataComboFile[[#This Row],[G&S reporting level indicator]]","v":0},{"$f":"T_DataComboFile[[#This Row],[2020/21 SAB_Source]]*T_DataComboFile[[#This Row],[G&S reporting level indicator]]","v":0},{"$f":"T_DataComboFile[[#This Row],[2020/21 Baseline_Source]]*T_DataComboFile[[#This Row],[G&S reporting level indicator]]","v":0},{"$f":"T_DataComboFile[[#This Row],[2021/22 Baseline_Source]]*T_DataComboFile[[#This Row],[G&S reporting level indicator]]","v":0},{"$f":"T_DataComboFile[[#This Row],[2022/23 Baseline_Source]]*T_DataComboFile[[#This Row],[G&S reporting level indicator]]","v":0},{"$f":"T_DataComboFile[[#This Row],[2023/24 Baseline_Source]]*T_DataComboFile[[#This Row],[G&S reporting level indicator]]","v":0},null,null,null,null,null,null,{"$f":"T_DataComboFile[[#This Row],[2021/22 Baseline]]+T_DataComboFile[[#This Row],[2021/22 Reduction]]+T_DataComboFile[[#This Row],[2021/22 Increase]]","v":0},{"$f":"T_DataComboFile[[#This Row],[2022/23 Baseline]]+T_DataComboFile[[#This Row],[2022/23 Reduction]]+T_DataComboFile[[#This Row],[2022/23 Increase]]","v":0},{"$f":"T_DataComboFile[[#This Row],[2023/24 Baseline]]+T_DataComboFile[[#This Row],[2023/24 Reduction]]+T_DataComboFile[[#This Row],[2023/24 Increase]]","v":0}]
[null,null,"2021_22","ENE2020",36,2,4,null,70747,36,2,4,null,"070747","36|02|04",1,2,10,52,56,"01|02|10|52|56","National","Small Business Development","Sector Policy and Research","Monitoring and Evaluation",null,"Current","Transfers and subsidies","Households","Social benefits","Social benefits",null,null,null,0,0,0,0,0,0,0,0,0,0,0,0,0,0,null,{"$f":"IF(T_DataComboFile[[#This Row],[G&S reporting level indicator]]=1,$AX$16,\"Not applicable\")","v":"Level 3"},{"$f":"IF(AND($AX$16=\"Level 3\",T_DataComboFile[[#This Row],[Econ3]] = \"Goods and services\"),IF(T_DataComboFile[[#This Row],[Econ4]] = T_DataComboFile[[#This Row],[Econ3]],1,0),IF(AND($AX$16=\"Level 4\",T_DataComboFile[[#This Row],[Econ4]] = \"Goods and services\"),0,1))","v":1},{"$f":"T_DataComboFile[[#This Row],[2016/17_Source]]*T_DataComboFile[[#This Row],[G&S reporting level indicator]]","v":0},{"$f":"T_DataComboFile[[#This Row],[2017/18_Source]]*T_DataComboFile[[#This Row],[G&S reporting level indicator]]","v":0},{"$f":"T_DataComboFile[[#This Row],[2018/19_Source]]*T_DataComboFile[[#This Row],[G&S reporting level indicator]]","v":0},{"$f":"T_DataComboFile[[#This Row],[2019/20 Main appropriation_Source]]*T_DataComboFile[[#This Row],[G&S reporting level indicator]]","v":0},{"$f":"T_DataComboFile[[#This Row],[2019/20 Adjusted appropriation_Source]]*T_DataComboFile[[#This Row],[G&S reporting level indicator]]","v":0},{"$f":"T_DataComboFile[[#This Row],[2019/20 Revised estimate_Source]]*T_DataComboFile[[#This Row],[G&S reporting level indicator]]","v":0},{"$f":"T_DataComboFile[[#This Row],[2019/20 Preliminary outcome_Source]]*T_DataComboFile[[#This Row],[G&S reporting level indicator]]","v":0},{"$f":"T_DataComboFile[[#This Row],[2020/21 Original_Source]]*T_DataComboFile[[#This Row],[G&S reporting level indicator]]","v":0},{"$f":"T_DataComboFile[[#This Row],[2020/21 SAB_Source]]*T_DataComboFile[[#This Row],[G&S reporting level indicator]]","v":0},{"$f":"T_DataComboFile[[#This Row],[2020/21 Baseline_Source]]*T_DataComboFile[[#This Row],[G&S reporting level indicator]]","v":0},{"$f":"T_DataComboFile[[#This Row],[2021/22 Baseline_Source]]*T_DataComboFile[[#This Row],[G&S reporting level indicator]]","v":0},{"$f":"T_DataComboFile[[#This Row],[2022/23 Baseline_Source]]*T_DataComboFile[[#This Row],[G&S reporting level indicator]]","v":0},{"$f":"T_DataComboFile[[#This Row],[2023/24 Baseline_Source]]*T_DataComboFile[[#This Row],[G&S reporting level indicator]]","v":0},null,null,null,null,null,null,{"$f":"T_DataComboFile[[#This Row],[2021/22 Baseline]]+T_DataComboFile[[#This Row],[2021/22 Reduction]]+T_DataComboFile[[#This Row],[2021/22 Increase]]","v":0},{"$f":"T_DataComboFile[[#This Row],[2022/23 Baseline]]+T_DataComboFile[[#This Row],[2022/23 Reduction]]+T_DataComboFile[[#This Row],[2022/23 Increase]]","v":0},{"$f":"T_DataComboFile[[#This Row],[2023/24 Baseline]]+T_DataComboFile[[#This Row],[2023/24 Reduction]]+T_DataComboFile[[#This Row],[2023/24 Increase]]","v":0}]
[null,null,"2021_22","ENE2020",36,2,4,null,70748,36,2,4,null,"070748","36|02|04",1,2,10,53,57,"01|02|10|53|57","National","Small Business Development","Sector Policy and Research","Monitoring and Evaluation",null,"Current","Transfers and subsidies","Households","Other transfers to households","Other transfers to households",null,null,null,0,0,0,0,0,0,0,0,0,0,0,0,0,0,null,{"$f":"IF(T_DataComboFile[[#This Row],[G&S reporting level indicator]]=1,$AX$16,\"Not applicable\")","v":"Level 3"},{"$f":"IF(AND($AX$16=\"Level 3\",T_DataComboFile[[#This Row],[Econ3]] = \"Goods and services\"),IF(T_DataComboFile[[#This Row],[Econ4]] = T_DataComboFile[[#This Row],[Econ3]],1,0),IF(AND($AX$16=\"Level 4\",T_DataComboFile[[#This Row],[Econ4]] = \"Goods and services\"),0,1))","v":1},{"$f":"T_DataComboFile[[#This Row],[2016/17_Source]]*T_DataComboFile[[#This Row],[G&S reporting level indicator]]","v":0},{"$f":"T_DataComboFile[[#This Row],[2017/18_Source]]*T_DataComboFile[[#This Row],[G&S reporting level indicator]]","v":0},{"$f":"T_DataComboFile[[#This Row],[2018/19_Source]]*T_DataComboFile[[#This Row],[G&S reporting level indicator]]","v":0},{"$f":"T_DataComboFile[[#This Row],[2019/20 Main appropriation_Source]]*T_DataComboFile[[#This Row],[G&S reporting level indicator]]","v":0},{"$f":"T_DataComboFile[[#This Row],[2019/20 Adjusted appropriation_Source]]*T_DataComboFile[[#This Row],[G&S reporting level indicator]]","v":0},{"$f":"T_DataComboFile[[#This Row],[2019/20 Revised estimate_Source]]*T_DataComboFile[[#This Row],[G&S reporting level indicator]]","v":0},{"$f":"T_DataComboFile[[#This Row],[2019/20 Preliminary outcome_Source]]*T_DataComboFile[[#This Row],[G&S reporting level indicator]]","v":0},{"$f":"T_DataComboFile[[#This Row],[2020/21 Original_Source]]*T_DataComboFile[[#This Row],[G&S reporting level indicator]]","v":0},{"$f":"T_DataComboFile[[#This Row],[2020/21 SAB_Source]]*T_DataComboFile[[#This Row],[G&S reporting level indicator]]","v":0},{"$f":"T_DataComboFile[[#This Row],[2020/21 Baseline_Source]]*T_DataComboFile[[#This Row],[G&S reporting level indicator]]","v":0},{"$f":"T_DataComboFile[[#This Row],[2021/22 Baseline_Source]]*T_DataComboFile[[#This Row],[G&S reporting level indicator]]","v":0},{"$f":"T_DataComboFile[[#This Row],[2022/23 Baseline_Source]]*T_DataComboFile[[#This Row],[G&S reporting level indicator]]","v":0},{"$f":"T_DataComboFile[[#This Row],[2023/24 Baseline_Source]]*T_DataComboFile[[#This Row],[G&S reporting level indicator]]","v":0},null,null,null,null,null,null,{"$f":"T_DataComboFile[[#This Row],[2021/22 Baseline]]+T_DataComboFile[[#This Row],[2021/22 Reduction]]+T_DataComboFile[[#This Row],[2021/22 Increase]]","v":0},{"$f":"T_DataComboFile[[#This Row],[2022/23 Baseline]]+T_DataComboFile[[#This Row],[2022/23 Reduction]]+T_DataComboFile[[#This Row],[2022/23 Increase]]","v":0},{"$f":"T_DataComboFile[[#This Row],[2023/24 Baseline]]+T_DataComboFile[[#This Row],[2023/24 Reduction]]+T_DataComboFile[[#This Row],[2023/24 Increase]]","v":0}]
[null,null,"2021_22","ENE2020",36,2,4,null,70749,36,2,4,null,"070749","36|02|04",2,2,4,43,43,"02|02|04|43|43","National","Small Business Development","Sector Policy and Research","Monitoring and Evaluation",null,"Capital","Transfers and subsidies","Provinces and municipalities","Provinces","Provincial Revenue Funds",null,null,null,0,0,0,0,0,0,0,0,0,0,0,0,0,0,null,{"$f":"IF(T_DataComboFile[[#This Row],[G&S reporting level indicator]]=1,$AX$16,\"Not applicable\")","v":"Level 3"},{"$f":"IF(AND($AX$16=\"Level 3\",T_DataComboFile[[#This Row],[Econ3]] = \"Goods and services\"),IF(T_DataComboFile[[#This Row],[Econ4]] = T_DataComboFile[[#This Row],[Econ3]],1,0),IF(AND($AX$16=\"Level 4\",T_DataComboFile[[#This Row],[Econ4]] = \"Goods and services\"),0,1))","v":1},{"$f":"T_DataComboFile[[#This Row],[2016/17_Source]]*T_DataComboFile[[#This Row],[G&S reporting level indicator]]","v":0},{"$f":"T_DataComboFile[[#This Row],[2017/18_Source]]*T_DataComboFile[[#This Row],[G&S reporting level indicator]]","v":0},{"$f":"T_DataComboFile[[#This Row],[2018/19_Source]]*T_DataComboFile[[#This Row],[G&S reporting level indicator]]","v":0},{"$f":"T_DataComboFile[[#This Row],[2019/20 Main appropriation_Source]]*T_DataComboFile[[#This Row],[G&S reporting level indicator]]","v":0},{"$f":"T_DataComboFile[[#This Row],[2019/20 Adjusted appropriation_Source]]*T_DataComboFile[[#This Row],[G&S reporting level indicator]]","v":0},{"$f":"T_DataComboFile[[#This Row],[2019/20 Revised estimate_Source]]*T_DataComboFile[[#This Row],[G&S reporting level indicator]]","v":0},{"$f":"T_DataComboFile[[#This Row],[2019/20 Preliminary outcome_Source]]*T_DataComboFile[[#This Row],[G&S reporting level indicator]]","v":0},{"$f":"T_DataComboFile[[#This Row],[2020/21 Original_Source]]*T_DataComboFile[[#This Row],[G&S reporting level indicator]]","v":0},{"$f":"T_DataComboFile[[#This Row],[2020/21 SAB_Source]]*T_DataComboFile[[#This Row],[G&S reporting level indicator]]","v":0},{"$f":"T_DataComboFile[[#This Row],[2020/21 Baseline_Source]]*T_DataComboFile[[#This Row],[G&S reporting level indicator]]","v":0},{"$f":"T_DataComboFile[[#This Row],[2021/22 Baseline_Source]]*T_DataComboFile[[#This Row],[G&S reporting level indicator]]","v":0},{"$f":"T_DataComboFile[[#This Row],[2022/23 Baseline_Source]]*T_DataComboFile[[#This Row],[G&S reporting level indicator]]","v":0},{"$f":"T_DataComboFile[[#This Row],[2023/24 Baseline_Source]]*T_DataComboFile[[#This Row],[G&S reporting level indicator]]","v":0},null,null,null,null,null,null,{"$f":"T_DataComboFile[[#This Row],[2021/22 Baseline]]+T_DataComboFile[[#This Row],[2021/22 Reduction]]+T_DataComboFile[[#This Row],[2021/22 Increase]]","v":0},{"$f":"T_DataComboFile[[#This Row],[2022/23 Baseline]]+T_DataComboFile[[#This Row],[2022/23 Reduction]]+T_DataComboFile[[#This Row],[2022/23 Increase]]","v":0},{"$f":"T_DataComboFile[[#This Row],[2023/24 Baseline]]+T_DataComboFile[[#This Row],[2023/24 Reduction]]+T_DataComboFile[[#This Row],[2023/24 Increase]]","v":0}]
[null,null,"2021_22","ENE2020",36,2,4,null,70750,36,2,4,null,"070750","36|02|04",2,2,4,44,45,"02|02|04|44|45","National","Small Business Development","Sector Policy and Research","Monitoring and Evaluation",null,"Capital","Transfers and subsidies","Provinces and municipalities","Municipalities","Municipal bank accounts",null,null,null,0,0,0,0,0,0,0,0,0,0,0,0,0,0,null,{"$f":"IF(T_DataComboFile[[#This Row],[G&S reporting level indicator]]=1,$AX$16,\"Not applicable\")","v":"Level 3"},{"$f":"IF(AND($AX$16=\"Level 3\",T_DataComboFile[[#This Row],[Econ3]] = \"Goods and services\"),IF(T_DataComboFile[[#This Row],[Econ4]] = T_DataComboFile[[#This Row],[Econ3]],1,0),IF(AND($AX$16=\"Level 4\",T_DataComboFile[[#This Row],[Econ4]] = \"Goods and services\"),0,1))","v":1},{"$f":"T_DataComboFile[[#This Row],[2016/17_Source]]*T_DataComboFile[[#This Row],[G&S reporting level indicator]]","v":0},{"$f":"T_DataComboFile[[#This Row],[2017/18_Source]]*T_DataComboFile[[#This Row],[G&S reporting level indicator]]","v":0},{"$f":"T_DataComboFile[[#This Row],[2018/19_Source]]*T_DataComboFile[[#This Row],[G&S reporting level indicator]]","v":0},{"$f":"T_DataComboFile[[#This Row],[2019/20 Main appropriation_Source]]*T_DataComboFile[[#This Row],[G&S reporting level indicator]]","v":0},{"$f":"T_DataComboFile[[#This Row],[2019/20 Adjusted appropriation_Source]]*T_DataComboFile[[#This Row],[G&S reporting level indicator]]","v":0},{"$f":"T_DataComboFile[[#This Row],[2019/20 Revised estimate_Source]]*T_DataComboFile[[#This Row],[G&S reporting level indicator]]","v":0},{"$f":"T_DataComboFile[[#This Row],[2019/20 Preliminary outcome_Source]]*T_DataComboFile[[#This Row],[G&S reporting level indicator]]","v":0},{"$f":"T_DataComboFile[[#This Row],[2020/21 Original_Source]]*T_DataComboFile[[#This Row],[G&S reporting level indicator]]","v":0},{"$f":"T_DataComboFile[[#This Row],[2020/21 SAB_Source]]*T_DataComboFile[[#This Row],[G&S reporting level indicator]]","v":0},{"$f":"T_DataComboFile[[#This Row],[2020/21 Baseline_Source]]*T_DataComboFile[[#This Row],[G&S reporting level indicator]]","v":0},{"$f":"T_DataComboFile[[#This Row],[2021/22 Baseline_Source]]*T_DataComboFile[[#This Row],[G&S reporting level indicator]]","v":0},{"$f":"T_DataComboFile[[#This Row],[2022/23 Baseline_Source]]*T_DataComboFile[[#This Row],[G&S reporting level indicator]]","v":0},{"$f":"T_DataComboFile[[#This Row],[2023/24 Baseline_Source]]*T_DataComboFile[[#This Row],[G&S reporting level indicator]]","v":0},null,null,null,null,null,null,{"$f":"T_DataComboFile[[#This Row],[2021/22 Baseline]]+T_DataComboFile[[#This Row],[2021/22 Reduction]]+T_DataComboFile[[#This Row],[2021/22 Increase]]","v":0},{"$f":"T_DataComboFile[[#This Row],[2022/23 Baseline]]+T_DataComboFile[[#This Row],[2022/23 Reduction]]+T_DataComboFile[[#This Row],[2022/23 Increase]]","v":0},{"$f":"T_DataComboFile[[#This Row],[2023/24 Baseline]]+T_DataComboFile[[#This Row],[2023/24 Reduction]]+T_DataComboFile[[#This Row],[2023/24 Increase]]","v":0}]
[null,null,"2021_22","ENE2020",36,2,4,null,70751,36,2,4,null,"070751","36|02|04",2,2,5,46,48,"02|02|05|46|48","National","Small Business Development","Sector Policy and Research","Monitoring and Evaluation",null,"Capital","Transfers and subsidies","Departmental agencies and accounts","Departmental agencies (non-business entities)","Departmental agencies (non-business entities)",null,null,null,0,0,0,0,0,0,0,0,0,0,0,0,0,0,null,{"$f":"IF(T_DataComboFile[[#This Row],[G&S reporting level indicator]]=1,$AX$16,\"Not applicable\")","v":"Level 3"},{"$f":"IF(AND($AX$16=\"Level 3\",T_DataComboFile[[#This Row],[Econ3]] = \"Goods and services\"),IF(T_DataComboFile[[#This Row],[Econ4]] = T_DataComboFile[[#This Row],[Econ3]],1,0),IF(AND($AX$16=\"Level 4\",T_DataComboFile[[#This Row],[Econ4]] = \"Goods and services\"),0,1))","v":1},{"$f":"T_DataComboFile[[#This Row],[2016/17_Source]]*T_DataComboFile[[#This Row],[G&S reporting level indicator]]","v":0},{"$f":"T_DataComboFile[[#This Row],[2017/18_Source]]*T_DataComboFile[[#This Row],[G&S reporting level indicator]]","v":0},{"$f":"T_DataComboFile[[#This Row],[2018/19_Source]]*T_DataComboFile[[#This Row],[G&S reporting level indicator]]","v":0},{"$f":"T_DataComboFile[[#This Row],[2019/20 Main appropriation_Source]]*T_DataComboFile[[#This Row],[G&S reporting level indicator]]","v":0},{"$f":"T_DataComboFile[[#This Row],[2019/20 Adjusted appropriation_Source]]*T_DataComboFile[[#This Row],[G&S reporting level indicator]]","v":0},{"$f":"T_DataComboFile[[#This Row],[2019/20 Revised estimate_Source]]*T_DataComboFile[[#This Row],[G&S reporting level indicator]]","v":0},{"$f":"T_DataComboFile[[#This Row],[2019/20 Preliminary outcome_Source]]*T_DataComboFile[[#This Row],[G&S reporting level indicator]]","v":0},{"$f":"T_DataComboFile[[#This Row],[2020/21 Original_Source]]*T_DataComboFile[[#This Row],[G&S reporting level indicator]]","v":0},{"$f":"T_DataComboFile[[#This Row],[2020/21 SAB_Source]]*T_DataComboFile[[#This Row],[G&S reporting level indicator]]","v":0},{"$f":"T_DataComboFile[[#This Row],[2020/21 Baseline_Source]]*T_DataComboFile[[#This Row],[G&S reporting level indicator]]","v":0},{"$f":"T_DataComboFile[[#This Row],[2021/22 Baseline_Source]]*T_DataComboFile[[#This Row],[G&S reporting level indicator]]","v":0},{"$f":"T_DataComboFile[[#This Row],[2022/23 Baseline_Source]]*T_DataComboFile[[#This Row],[G&S reporting level indicator]]","v":0},{"$f":"T_DataComboFile[[#This Row],[2023/24 Baseline_Source]]*T_DataComboFile[[#This Row],[G&S reporting level indicator]]","v":0},null,null,null,null,null,null,{"$f":"T_DataComboFile[[#This Row],[2021/22 Baseline]]+T_DataComboFile[[#This Row],[2021/22 Reduction]]+T_DataComboFile[[#This Row],[2021/22 Increase]]","v":0},{"$f":"T_DataComboFile[[#This Row],[2022/23 Baseline]]+T_DataComboFile[[#This Row],[2022/23 Reduction]]+T_DataComboFile[[#This Row],[2022/23 Increase]]","v":0},{"$f":"T_DataComboFile[[#This Row],[2023/24 Baseline]]+T_DataComboFile[[#This Row],[2023/24 Reduction]]+T_DataComboFile[[#This Row],[2023/24 Increase]]","v":0}]
[null,null,"2021_22","ENE2020",36,2,4,null,70752,36,2,4,null,"070752","36|02|04",2,2,6,47,49,"02|02|06|47|49","National","Small Business Development","Sector Policy and Research","Monitoring and Evaluation",null,"Capital","Transfers and subsidies","Higher education institutions","Higher education institutions","Higher education institutions",null,null,null,0,0,0,0,0,0,0,0,0,0,0,0,0,0,null,{"$f":"IF(T_DataComboFile[[#This Row],[G&S reporting level indicator]]=1,$AX$16,\"Not applicable\")","v":"Level 3"},{"$f":"IF(AND($AX$16=\"Level 3\",T_DataComboFile[[#This Row],[Econ3]] = \"Goods and services\"),IF(T_DataComboFile[[#This Row],[Econ4]] = T_DataComboFile[[#This Row],[Econ3]],1,0),IF(AND($AX$16=\"Level 4\",T_DataComboFile[[#This Row],[Econ4]] = \"Goods and services\"),0,1))","v":1},{"$f":"T_DataComboFile[[#This Row],[2016/17_Source]]*T_DataComboFile[[#This Row],[G&S reporting level indicator]]","v":0},{"$f":"T_DataComboFile[[#This Row],[2017/18_Source]]*T_DataComboFile[[#This Row],[G&S reporting level indicator]]","v":0},{"$f":"T_DataComboFile[[#This Row],[2018/19_Source]]*T_DataComboFile[[#This Row],[G&S reporting level indicator]]","v":0},{"$f":"T_DataComboFile[[#This Row],[2019/20 Main appropriation_Source]]*T_DataComboFile[[#This Row],[G&S reporting level indicator]]","v":0},{"$f":"T_DataComboFile[[#This Row],[2019/20 Adjusted appropriation_Source]]*T_DataComboFile[[#This Row],[G&S reporting level indicator]]","v":0},{"$f":"T_DataComboFile[[#This Row],[2019/20 Revised estimate_Source]]*T_DataComboFile[[#This Row],[G&S reporting level indicator]]","v":0},{"$f":"T_DataComboFile[[#This Row],[2019/20 Preliminary outcome_Source]]*T_DataComboFile[[#This Row],[G&S reporting level indicator]]","v":0},{"$f":"T_DataComboFile[[#This Row],[2020/21 Original_Source]]*T_DataComboFile[[#This Row],[G&S reporting level indicator]]","v":0},{"$f":"T_DataComboFile[[#This Row],[2020/21 SAB_Source]]*T_DataComboFile[[#This Row],[G&S reporting level indicator]]","v":0},{"$f":"T_DataComboFile[[#This Row],[2020/21 Baseline_Source]]*T_DataComboFile[[#This Row],[G&S reporting level indicator]]","v":0},{"$f":"T_DataComboFile[[#This Row],[2021/22 Baseline_Source]]*T_DataComboFile[[#This Row],[G&S reporting level indicator]]","v":0},{"$f":"T_DataComboFile[[#This Row],[2022/23 Baseline_Source]]*T_DataComboFile[[#This Row],[G&S reporting level indicator]]","v":0},{"$f":"T_DataComboFile[[#This Row],[2023/24 Baseline_Source]]*T_DataComboFile[[#This Row],[G&S reporting level indicator]]","v":0},null,null,null,null,null,null,{"$f":"T_DataComboFile[[#This Row],[2021/22 Baseline]]+T_DataComboFile[[#This Row],[2021/22 Reduction]]+T_DataComboFile[[#This Row],[2021/22 Increase]]","v":0},{"$f":"T_DataComboFile[[#This Row],[2022/23 Baseline]]+T_DataComboFile[[#This Row],[2022/23 Reduction]]+T_DataComboFile[[#This Row],[2022/23 Increase]]","v":0},{"$f":"T_DataComboFile[[#This Row],[2023/24 Baseline]]+T_DataComboFile[[#This Row],[2023/24 Reduction]]+T_DataComboFile[[#This Row],[2023/24 Increase]]","v":0}]
[null,null,"2021_22","ENE2020",36,2,4,null,70753,36,2,4,null,"070753","36|02|04",2,2,7,48,50,"02|02|07|48|50","National","Small Business Development","Sector Policy and Research","Monitoring and Evaluation",null,"Capital","Transfers and subsidies","Foreign governments and international organisations","Foreign governments and international organisations","Foreign governments and international organisations",null,null,null,0,0,0,0,0,0,0,0,0,0,0,0,0,0,null,{"$f":"IF(T_DataComboFile[[#This Row],[G&S reporting level indicator]]=1,$AX$16,\"Not applicable\")","v":"Level 3"},{"$f":"IF(AND($AX$16=\"Level 3\",T_DataComboFile[[#This Row],[Econ3]] = \"Goods and services\"),IF(T_DataComboFile[[#This Row],[Econ4]] = T_DataComboFile[[#This Row],[Econ3]],1,0),IF(AND($AX$16=\"Level 4\",T_DataComboFile[[#This Row],[Econ4]] = \"Goods and services\"),0,1))","v":1},{"$f":"T_DataComboFile[[#This Row],[2016/17_Source]]*T_DataComboFile[[#This Row],[G&S reporting level indicator]]","v":0},{"$f":"T_DataComboFile[[#This Row],[2017/18_Source]]*T_DataComboFile[[#This Row],[G&S reporting level indicator]]","v":0},{"$f":"T_DataComboFile[[#This Row],[2018/19_Source]]*T_DataComboFile[[#This Row],[G&S reporting level indicator]]","v":0},{"$f":"T_DataComboFile[[#This Row],[2019/20 Main appropriation_Source]]*T_DataComboFile[[#This Row],[G&S reporting level indicator]]","v":0},{"$f":"T_DataComboFile[[#This Row],[2019/20 Adjusted appropriation_Source]]*T_DataComboFile[[#This Row],[G&S reporting level indicator]]","v":0},{"$f":"T_DataComboFile[[#This Row],[2019/20 Revised estimate_Source]]*T_DataComboFile[[#This Row],[G&S reporting level indicator]]","v":0},{"$f":"T_DataComboFile[[#This Row],[2019/20 Preliminary outcome_Source]]*T_DataComboFile[[#This Row],[G&S reporting level indicator]]","v":0},{"$f":"T_DataComboFile[[#This Row],[2020/21 Original_Source]]*T_DataComboFile[[#This Row],[G&S reporting level indicator]]","v":0},{"$f":"T_DataComboFile[[#This Row],[2020/21 SAB_Source]]*T_DataComboFile[[#This Row],[G&S reporting level indicator]]","v":0},{"$f":"T_DataComboFile[[#This Row],[2020/21 Baseline_Source]]*T_DataComboFile[[#This Row],[G&S reporting level indicator]]","v":0},{"$f":"T_DataComboFile[[#This Row],[2021/22 Baseline_Source]]*T_DataComboFile[[#This Row],[G&S reporting level indicator]]","v":0},{"$f":"T_DataComboFile[[#This Row],[2022/23 Baseline_Source]]*T_DataComboFile[[#This Row],[G&S reporting level indicator]]","v":0},{"$f":"T_DataComboFile[[#This Row],[2023/24 Baseline_Source]]*T_DataComboFile[[#This Row],[G&S reporting level indicator]]","v":0},null,null,null,null,null,null,{"$f":"T_DataComboFile[[#This Row],[2021/22 Baseline]]+T_DataComboFile[[#This Row],[2021/22 Reduction]]+T_DataComboFile[[#This Row],[2021/22 Increase]]","v":0},{"$f":"T_DataComboFile[[#This Row],[2022/23 Baseline]]+T_DataComboFile[[#This Row],[2022/23 Reduction]]+T_DataComboFile[[#This Row],[2022/23 Increase]]","v":0},{"$f":"T_DataComboFile[[#This Row],[2023/24 Baseline]]+T_DataComboFile[[#This Row],[2023/24 Reduction]]+T_DataComboFile[[#This Row],[2023/24 Increase]]","v":0}]
[null,null,"2021_22","ENE2020",36,2,4,null,70754,36,2,4,null,"070754","36|02|04",2,2,8,49,51,"02|02|08|49|51","National","Small Business Development","Sector Policy and Research","Monitoring and Evaluation",null,"Capital","Transfers and subsidies","Public corporations and private enterprises","Public corporations","Subsidies on products and production (pc)",null,null,null,0,0,0,0,0,0,0,0,0,0,0,0,0,0,null,{"$f":"IF(T_DataComboFile[[#This Row],[G&S reporting level indicator]]=1,$AX$16,\"Not applicable\")","v":"Level 3"},{"$f":"IF(AND($AX$16=\"Level 3\",T_DataComboFile[[#This Row],[Econ3]] = \"Goods and services\"),IF(T_DataComboFile[[#This Row],[Econ4]] = T_DataComboFile[[#This Row],[Econ3]],1,0),IF(AND($AX$16=\"Level 4\",T_DataComboFile[[#This Row],[Econ4]] = \"Goods and services\"),0,1))","v":1},{"$f":"T_DataComboFile[[#This Row],[2016/17_Source]]*T_DataComboFile[[#This Row],[G&S reporting level indicator]]","v":0},{"$f":"T_DataComboFile[[#This Row],[2017/18_Source]]*T_DataComboFile[[#This Row],[G&S reporting level indicator]]","v":0},{"$f":"T_DataComboFile[[#This Row],[2018/19_Source]]*T_DataComboFile[[#This Row],[G&S reporting level indicator]]","v":0},{"$f":"T_DataComboFile[[#This Row],[2019/20 Main appropriation_Source]]*T_DataComboFile[[#This Row],[G&S reporting level indicator]]","v":0},{"$f":"T_DataComboFile[[#This Row],[2019/20 Adjusted appropriation_Source]]*T_DataComboFile[[#This Row],[G&S reporting level indicator]]","v":0},{"$f":"T_DataComboFile[[#This Row],[2019/20 Revised estimate_Source]]*T_DataComboFile[[#This Row],[G&S reporting level indicator]]","v":0},{"$f":"T_DataComboFile[[#This Row],[2019/20 Preliminary outcome_Source]]*T_DataComboFile[[#This Row],[G&S reporting level indicator]]","v":0},{"$f":"T_DataComboFile[[#This Row],[2020/21 Original_Source]]*T_DataComboFile[[#This Row],[G&S reporting level indicator]]","v":0},{"$f":"T_DataComboFile[[#This Row],[2020/21 SAB_Source]]*T_DataComboFile[[#This Row],[G&S reporting level indicator]]","v":0},{"$f":"T_DataComboFile[[#This Row],[2020/21 Baseline_Source]]*T_DataComboFile[[#This Row],[G&S reporting level indicator]]","v":0},{"$f":"T_DataComboFile[[#This Row],[2021/22 Baseline_Source]]*T_DataComboFile[[#This Row],[G&S reporting level indicator]]","v":0},{"$f":"T_DataComboFile[[#This Row],[2022/23 Baseline_Source]]*T_DataComboFile[[#This Row],[G&S reporting level indicator]]","v":0},{"$f":"T_DataComboFile[[#This Row],[2023/24 Baseline_Source]]*T_DataComboFile[[#This Row],[G&S reporting level indicator]]","v":0},null,null,null,null,null,null,{"$f":"T_DataComboFile[[#This Row],[2021/22 Baseline]]+T_DataComboFile[[#This Row],[2021/22 Reduction]]+T_DataComboFile[[#This Row],[2021/22 Increase]]","v":0},{"$f":"T_DataComboFile[[#This Row],[2022/23 Baseline]]+T_DataComboFile[[#This Row],[2022/23 Reduction]]+T_DataComboFile[[#This Row],[2022/23 Increase]]","v":0},{"$f":"T_DataComboFile[[#This Row],[2023/24 Baseline]]+T_DataComboFile[[#This Row],[2023/24 Reduction]]+T_DataComboFile[[#This Row],[2023/24 Increase]]","v":0}]
[null,null,"2021_22","ENE2020",36,2,4,null,70755,36,2,4,null,"070755","36|02|04",2,2,8,49,52,"02|02|08|49|52","National","Small Business Development","Sector Policy and Research","Monitoring and Evaluation",null,"Capital","Transfers and subsidies","Public corporations and private enterprises","Public corporations","Other transfers to public corporations",null,null,null,0,0,0,0,0,0,0,0,0,0,0,0,0,0,null,{"$f":"IF(T_DataComboFile[[#This Row],[G&S reporting level indicator]]=1,$AX$16,\"Not applicable\")","v":"Level 3"},{"$f":"IF(AND($AX$16=\"Level 3\",T_DataComboFile[[#This Row],[Econ3]] = \"Goods and services\"),IF(T_DataComboFile[[#This Row],[Econ4]] = T_DataComboFile[[#This Row],[Econ3]],1,0),IF(AND($AX$16=\"Level 4\",T_DataComboFile[[#This Row],[Econ4]] = \"Goods and services\"),0,1))","v":1},{"$f":"T_DataComboFile[[#This Row],[2016/17_Source]]*T_DataComboFile[[#This Row],[G&S reporting level indicator]]","v":0},{"$f":"T_DataComboFile[[#This Row],[2017/18_Source]]*T_DataComboFile[[#This Row],[G&S reporting level indicator]]","v":0},{"$f":"T_DataComboFile[[#This Row],[2018/19_Source]]*T_DataComboFile[[#This Row],[G&S reporting level indicator]]","v":0},{"$f":"T_DataComboFile[[#This Row],[2019/20 Main appropriation_Source]]*T_DataComboFile[[#This Row],[G&S reporting level indicator]]","v":0},{"$f":"T_DataComboFile[[#This Row],[2019/20 Adjusted appropriation_Source]]*T_DataComboFile[[#This Row],[G&S reporting level indicator]]","v":0},{"$f":"T_DataComboFile[[#This Row],[2019/20 Revised estimate_Source]]*T_DataComboFile[[#This Row],[G&S reporting level indicator]]","v":0},{"$f":"T_DataComboFile[[#This Row],[2019/20 Preliminary outcome_Source]]*T_DataComboFile[[#This Row],[G&S reporting level indicator]]","v":0},{"$f":"T_DataComboFile[[#This Row],[2020/21 Original_Source]]*T_DataComboFile[[#This Row],[G&S reporting level indicator]]","v":0},{"$f":"T_DataComboFile[[#This Row],[2020/21 SAB_Source]]*T_DataComboFile[[#This Row],[G&S reporting level indicator]]","v":0},{"$f":"T_DataComboFile[[#This Row],[2020/21 Baseline_Source]]*T_DataComboFile[[#This Row],[G&S reporting level indicator]]","v":0},{"$f":"T_DataComboFile[[#This Row],[2021/22 Baseline_Source]]*T_DataComboFile[[#This Row],[G&S reporting level indicator]]","v":0},{"$f":"T_DataComboFile[[#This Row],[2022/23 Baseline_Source]]*T_DataComboFile[[#This Row],[G&S reporting level indicator]]","v":0},{"$f":"T_DataComboFile[[#This Row],[2023/24 Baseline_Source]]*T_DataComboFile[[#This Row],[G&S reporting level indicator]]","v":0},null,null,null,null,null,null,{"$f":"T_DataComboFile[[#This Row],[2021/22 Baseline]]+T_DataComboFile[[#This Row],[2021/22 Reduction]]+T_DataComboFile[[#This Row],[2021/22 Increase]]","v":0},{"$f":"T_DataComboFile[[#This Row],[2022/23 Baseline]]+T_DataComboFile[[#This Row],[2022/23 Reduction]]+T_DataComboFile[[#This Row],[2022/23 Increase]]","v":0},{"$f":"T_DataComboFile[[#This Row],[2023/24 Baseline]]+T_DataComboFile[[#This Row],[2023/24 Reduction]]+T_DataComboFile[[#This Row],[2023/24 Increase]]","v":0}]
[null,null,"2021_22","ENE2020",36,2,4,null,70756,36,2,4,null,"070756","36|02|04",2,2,8,50,54,"02|02|08|50|54","National","Small Business Development","Sector Policy and Research","Monitoring and Evaluation",null,"Capital","Transfers and subsidies","Public corporations and private enterprises","Private enterprises","Other transfers to private enterprises",null,null,null,0,0,0,0,0,0,0,0,0,0,0,0,0,0,null,{"$f":"IF(T_DataComboFile[[#This Row],[G&S reporting level indicator]]=1,$AX$16,\"Not applicable\")","v":"Level 3"},{"$f":"IF(AND($AX$16=\"Level 3\",T_DataComboFile[[#This Row],[Econ3]] = \"Goods and services\"),IF(T_DataComboFile[[#This Row],[Econ4]] = T_DataComboFile[[#This Row],[Econ3]],1,0),IF(AND($AX$16=\"Level 4\",T_DataComboFile[[#This Row],[Econ4]] = \"Goods and services\"),0,1))","v":1},{"$f":"T_DataComboFile[[#This Row],[2016/17_Source]]*T_DataComboFile[[#This Row],[G&S reporting level indicator]]","v":0},{"$f":"T_DataComboFile[[#This Row],[2017/18_Source]]*T_DataComboFile[[#This Row],[G&S reporting level indicator]]","v":0},{"$f":"T_DataComboFile[[#This Row],[2018/19_Source]]*T_DataComboFile[[#This Row],[G&S reporting level indicator]]","v":0},{"$f":"T_DataComboFile[[#This Row],[2019/20 Main appropriation_Source]]*T_DataComboFile[[#This Row],[G&S reporting level indicator]]","v":0},{"$f":"T_DataComboFile[[#This Row],[2019/20 Adjusted appropriation_Source]]*T_DataComboFile[[#This Row],[G&S reporting level indicator]]","v":0},{"$f":"T_DataComboFile[[#This Row],[2019/20 Revised estimate_Source]]*T_DataComboFile[[#This Row],[G&S reporting level indicator]]","v":0},{"$f":"T_DataComboFile[[#This Row],[2019/20 Preliminary outcome_Source]]*T_DataComboFile[[#This Row],[G&S reporting level indicator]]","v":0},{"$f":"T_DataComboFile[[#This Row],[2020/21 Original_Source]]*T_DataComboFile[[#This Row],[G&S reporting level indicator]]","v":0},{"$f":"T_DataComboFile[[#This Row],[2020/21 SAB_Source]]*T_DataComboFile[[#This Row],[G&S reporting level indicator]]","v":0},{"$f":"T_DataComboFile[[#This Row],[2020/21 Baseline_Source]]*T_DataComboFile[[#This Row],[G&S reporting level indicator]]","v":0},{"$f":"T_DataComboFile[[#This Row],[2021/22 Baseline_Source]]*T_DataComboFile[[#This Row],[G&S reporting level indicator]]","v":0},{"$f":"T_DataComboFile[[#This Row],[2022/23 Baseline_Source]]*T_DataComboFile[[#This Row],[G&S reporting level indicator]]","v":0},{"$f":"T_DataComboFile[[#This Row],[2023/24 Baseline_Source]]*T_DataComboFile[[#This Row],[G&S reporting level indicator]]","v":0},null,null,null,null,null,null,{"$f":"T_DataComboFile[[#This Row],[2021/22 Baseline]]+T_DataComboFile[[#This Row],[2021/22 Reduction]]+T_DataComboFile[[#This Row],[2021/22 Increase]]","v":0},{"$f":"T_DataComboFile[[#This Row],[2022/23 Baseline]]+T_DataComboFile[[#This Row],[2022/23 Reduction]]+T_DataComboFile[[#This Row],[2022/23 Increase]]","v":0},{"$f":"T_DataComboFile[[#This Row],[2023/24 Baseline]]+T_DataComboFile[[#This Row],[2023/24 Reduction]]+T_DataComboFile[[#This Row],[2023/24 Increase]]","v":0}]
[null,null,"2021_22","ENE2020",36,2,4,null,70757,36,2,4,null,"070757","36|02|04",2,2,9,51,55,"02|02|09|51|55","National","Small Business Development","Sector Policy and Research","Monitoring and Evaluation",null,"Capital","Transfers and subsidies","Non-profit institutions","Non-profit institutions","Non-profit institutions",null,null,null,0,0,0,0,0,0,0,0,0,0,0,0,0,0,null,{"$f":"IF(T_DataComboFile[[#This Row],[G&S reporting level indicator]]=1,$AX$16,\"Not applicable\")","v":"Level 3"},{"$f":"IF(AND($AX$16=\"Level 3\",T_DataComboFile[[#This Row],[Econ3]] = \"Goods and services\"),IF(T_DataComboFile[[#This Row],[Econ4]] = T_DataComboFile[[#This Row],[Econ3]],1,0),IF(AND($AX$16=\"Level 4\",T_DataComboFile[[#This Row],[Econ4]] = \"Goods and services\"),0,1))","v":1},{"$f":"T_DataComboFile[[#This Row],[2016/17_Source]]*T_DataComboFile[[#This Row],[G&S reporting level indicator]]","v":0},{"$f":"T_DataComboFile[[#This Row],[2017/18_Source]]*T_DataComboFile[[#This Row],[G&S reporting level indicator]]","v":0},{"$f":"T_DataComboFile[[#This Row],[2018/19_Source]]*T_DataComboFile[[#This Row],[G&S reporting level indicator]]","v":0},{"$f":"T_DataComboFile[[#This Row],[2019/20 Main appropriation_Source]]*T_DataComboFile[[#This Row],[G&S reporting level indicator]]","v":0},{"$f":"T_DataComboFile[[#This Row],[2019/20 Adjusted appropriation_Source]]*T_DataComboFile[[#This Row],[G&S reporting level indicator]]","v":0},{"$f":"T_DataComboFile[[#This Row],[2019/20 Revised estimate_Source]]*T_DataComboFile[[#This Row],[G&S reporting level indicator]]","v":0},{"$f":"T_DataComboFile[[#This Row],[2019/20 Preliminary outcome_Source]]*T_DataComboFile[[#This Row],[G&S reporting level indicator]]","v":0},{"$f":"T_DataComboFile[[#This Row],[2020/21 Original_Source]]*T_DataComboFile[[#This Row],[G&S reporting level indicator]]","v":0},{"$f":"T_DataComboFile[[#This Row],[2020/21 SAB_Source]]*T_DataComboFile[[#This Row],[G&S reporting level indicator]]","v":0},{"$f":"T_DataComboFile[[#This Row],[2020/21 Baseline_Source]]*T_DataComboFile[[#This Row],[G&S reporting level indicator]]","v":0},{"$f":"T_DataComboFile[[#This Row],[2021/22 Baseline_Source]]*T_DataComboFile[[#This Row],[G&S reporting level indicator]]","v":0},{"$f":"T_DataComboFile[[#This Row],[2022/23 Baseline_Source]]*T_DataComboFile[[#This Row],[G&S reporting level indicator]]","v":0},{"$f":"T_DataComboFile[[#This Row],[2023/24 Baseline_Source]]*T_DataComboFile[[#This Row],[G&S reporting level indicator]]","v":0},null,null,null,null,null,null,{"$f":"T_DataComboFile[[#This Row],[2021/22 Baseline]]+T_DataComboFile[[#This Row],[2021/22 Reduction]]+T_DataComboFile[[#This Row],[2021/22 Increase]]","v":0},{"$f":"T_DataComboFile[[#This Row],[2022/23 Baseline]]+T_DataComboFile[[#This Row],[2022/23 Reduction]]+T_DataComboFile[[#This Row],[2022/23 Increase]]","v":0},{"$f":"T_DataComboFile[[#This Row],[2023/24 Baseline]]+T_DataComboFile[[#This Row],[2023/24 Reduction]]+T_DataComboFile[[#This Row],[2023/24 Increase]]","v":0}]
[null,null,"2021_22","ENE2020",36,2,4,null,70758,36,2,4,null,"070758","36|02|04",2,2,10,53,57,"02|02|10|53|57","National","Small Business Development","Sector Policy and Research","Monitoring and Evaluation",null,"Capital","Transfers and subsidies","Households","Other transfers to households","Other transfers to households",null,null,null,0,0,0,0,0,0,0,0,0,0,0,0,0,0,null,{"$f":"IF(T_DataComboFile[[#This Row],[G&S reporting level indicator]]=1,$AX$16,\"Not applicable\")","v":"Level 3"},{"$f":"IF(AND($AX$16=\"Level 3\",T_DataComboFile[[#This Row],[Econ3]] = \"Goods and services\"),IF(T_DataComboFile[[#This Row],[Econ4]] = T_DataComboFile[[#This Row],[Econ3]],1,0),IF(AND($AX$16=\"Level 4\",T_DataComboFile[[#This Row],[Econ4]] = \"Goods and services\"),0,1))","v":1},{"$f":"T_DataComboFile[[#This Row],[2016/17_Source]]*T_DataComboFile[[#This Row],[G&S reporting level indicator]]","v":0},{"$f":"T_DataComboFile[[#This Row],[2017/18_Source]]*T_DataComboFile[[#This Row],[G&S reporting level indicator]]","v":0},{"$f":"T_DataComboFile[[#This Row],[2018/19_Source]]*T_DataComboFile[[#This Row],[G&S reporting level indicator]]","v":0},{"$f":"T_DataComboFile[[#This Row],[2019/20 Main appropriation_Source]]*T_DataComboFile[[#This Row],[G&S reporting level indicator]]","v":0},{"$f":"T_DataComboFile[[#This Row],[2019/20 Adjusted appropriation_Source]]*T_DataComboFile[[#This Row],[G&S reporting level indicator]]","v":0},{"$f":"T_DataComboFile[[#This Row],[2019/20 Revised estimate_Source]]*T_DataComboFile[[#This Row],[G&S reporting level indicator]]","v":0},{"$f":"T_DataComboFile[[#This Row],[2019/20 Preliminary outcome_Source]]*T_DataComboFile[[#This Row],[G&S reporting level indicator]]","v":0},{"$f":"T_DataComboFile[[#This Row],[2020/21 Original_Source]]*T_DataComboFile[[#This Row],[G&S reporting level indicator]]","v":0},{"$f":"T_DataComboFile[[#This Row],[2020/21 SAB_Source]]*T_DataComboFile[[#This Row],[G&S reporting level indicator]]","v":0},{"$f":"T_DataComboFile[[#This Row],[2020/21 Baseline_Source]]*T_DataComboFile[[#This Row],[G&S reporting level indicator]]","v":0},{"$f":"T_DataComboFile[[#This Row],[2021/22 Baseline_Source]]*T_DataComboFile[[#This Row],[G&S reporting level indicator]]","v":0},{"$f":"T_DataComboFile[[#This Row],[2022/23 Baseline_Source]]*T_DataComboFile[[#This Row],[G&S reporting level indicator]]","v":0},{"$f":"T_DataComboFile[[#This Row],[2023/24 Baseline_Source]]*T_DataComboFile[[#This Row],[G&S reporting level indicator]]","v":0},null,null,null,null,null,null,{"$f":"T_DataComboFile[[#This Row],[2021/22 Baseline]]+T_DataComboFile[[#This Row],[2021/22 Reduction]]+T_DataComboFile[[#This Row],[2021/22 Increase]]","v":0},{"$f":"T_DataComboFile[[#This Row],[2022/23 Baseline]]+T_DataComboFile[[#This Row],[2022/23 Reduction]]+T_DataComboFile[[#This Row],[2022/23 Increase]]","v":0},{"$f":"T_DataComboFile[[#This Row],[2023/24 Baseline]]+T_DataComboFile[[#This Row],[2023/24 Reduction]]+T_DataComboFile[[#This Row],[2023/24 Increase]]","v":0}]
[null,null,"2021_22","ENE2020",36,2,4,null,70759,36,2,4,null,"070759","36|02|04",2,3,11,54,58,"02|03|11|54|58","National","Small Business Development","Sector Policy and Research","Monitoring and Evaluation",null,"Capital","Payments for capital assets","Buildings and other fixed structures","Buildings","Buildings",null,null,null,0,0,0,0,0,0,0,0,0,0,0,0,0,0,null,{"$f":"IF(T_DataComboFile[[#This Row],[G&S reporting level indicator]]=1,$AX$16,\"Not applicable\")","v":"Level 3"},{"$f":"IF(AND($AX$16=\"Level 3\",T_DataComboFile[[#This Row],[Econ3]] = \"Goods and services\"),IF(T_DataComboFile[[#This Row],[Econ4]] = T_DataComboFile[[#This Row],[Econ3]],1,0),IF(AND($AX$16=\"Level 4\",T_DataComboFile[[#This Row],[Econ4]] = \"Goods and services\"),0,1))","v":1},{"$f":"T_DataComboFile[[#This Row],[2016/17_Source]]*T_DataComboFile[[#This Row],[G&S reporting level indicator]]","v":0},{"$f":"T_DataComboFile[[#This Row],[2017/18_Source]]*T_DataComboFile[[#This Row],[G&S reporting level indicator]]","v":0},{"$f":"T_DataComboFile[[#This Row],[2018/19_Source]]*T_DataComboFile[[#This Row],[G&S reporting level indicator]]","v":0},{"$f":"T_DataComboFile[[#This Row],[2019/20 Main appropriation_Source]]*T_DataComboFile[[#This Row],[G&S reporting level indicator]]","v":0},{"$f":"T_DataComboFile[[#This Row],[2019/20 Adjusted appropriation_Source]]*T_DataComboFile[[#This Row],[G&S reporting level indicator]]","v":0},{"$f":"T_DataComboFile[[#This Row],[2019/20 Revised estimate_Source]]*T_DataComboFile[[#This Row],[G&S reporting level indicator]]","v":0},{"$f":"T_DataComboFile[[#This Row],[2019/20 Preliminary outcome_Source]]*T_DataComboFile[[#This Row],[G&S reporting level indicator]]","v":0},{"$f":"T_DataComboFile[[#This Row],[2020/21 Original_Source]]*T_DataComboFile[[#This Row],[G&S reporting level indicator]]","v":0},{"$f":"T_DataComboFile[[#This Row],[2020/21 SAB_Source]]*T_DataComboFile[[#This Row],[G&S reporting level indicator]]","v":0},{"$f":"T_DataComboFile[[#This Row],[2020/21 Baseline_Source]]*T_DataComboFile[[#This Row],[G&S reporting level indicator]]","v":0},{"$f":"T_DataComboFile[[#This Row],[2021/22 Baseline_Source]]*T_DataComboFile[[#This Row],[G&S reporting level indicator]]","v":0},{"$f":"T_DataComboFile[[#This Row],[2022/23 Baseline_Source]]*T_DataComboFile[[#This Row],[G&S reporting level indicator]]","v":0},{"$f":"T_DataComboFile[[#This Row],[2023/24 Baseline_Source]]*T_DataComboFile[[#This Row],[G&S reporting level indicator]]","v":0},null,null,null,null,null,null,{"$f":"T_DataComboFile[[#This Row],[2021/22 Baseline]]+T_DataComboFile[[#This Row],[2021/22 Reduction]]+T_DataComboFile[[#This Row],[2021/22 Increase]]","v":0},{"$f":"T_DataComboFile[[#This Row],[2022/23 Baseline]]+T_DataComboFile[[#This Row],[2022/23 Reduction]]+T_DataComboFile[[#This Row],[2022/23 Increase]]","v":0},{"$f":"T_DataComboFile[[#This Row],[2023/24 Baseline]]+T_DataComboFile[[#This Row],[2023/24 Reduction]]+T_DataComboFile[[#This Row],[2023/24 Increase]]","v":0}]
[null,null,"2021_22","ENE2020",36,2,4,null,70760,36,2,4,null,"070760","36|02|04",2,3,11,55,59,"02|03|11|55|59","National","Small Business Development","Sector Policy and Research","Monitoring and Evaluation",null,"Capital","Payments for capital assets","Buildings and other fixed structures","Other fixed structures","Other fixed structures",null,null,null,0,0,0,0,0,0,0,0,0,0,0,0,0,0,null,{"$f":"IF(T_DataComboFile[[#This Row],[G&S reporting level indicator]]=1,$AX$16,\"Not applicable\")","v":"Level 3"},{"$f":"IF(AND($AX$16=\"Level 3\",T_DataComboFile[[#This Row],[Econ3]] = \"Goods and services\"),IF(T_DataComboFile[[#This Row],[Econ4]] = T_DataComboFile[[#This Row],[Econ3]],1,0),IF(AND($AX$16=\"Level 4\",T_DataComboFile[[#This Row],[Econ4]] = \"Goods and services\"),0,1))","v":1},{"$f":"T_DataComboFile[[#This Row],[2016/17_Source]]*T_DataComboFile[[#This Row],[G&S reporting level indicator]]","v":0},{"$f":"T_DataComboFile[[#This Row],[2017/18_Source]]*T_DataComboFile[[#This Row],[G&S reporting level indicator]]","v":0},{"$f":"T_DataComboFile[[#This Row],[2018/19_Source]]*T_DataComboFile[[#This Row],[G&S reporting level indicator]]","v":0},{"$f":"T_DataComboFile[[#This Row],[2019/20 Main appropriation_Source]]*T_DataComboFile[[#This Row],[G&S reporting level indicator]]","v":0},{"$f":"T_DataComboFile[[#This Row],[2019/20 Adjusted appropriation_Source]]*T_DataComboFile[[#This Row],[G&S reporting level indicator]]","v":0},{"$f":"T_DataComboFile[[#This Row],[2019/20 Revised estimate_Source]]*T_DataComboFile[[#This Row],[G&S reporting level indicator]]","v":0},{"$f":"T_DataComboFile[[#This Row],[2019/20 Preliminary outcome_Source]]*T_DataComboFile[[#This Row],[G&S reporting level indicator]]","v":0},{"$f":"T_DataComboFile[[#This Row],[2020/21 Original_Source]]*T_DataComboFile[[#This Row],[G&S reporting level indicator]]","v":0},{"$f":"T_DataComboFile[[#This Row],[2020/21 SAB_Source]]*T_DataComboFile[[#This Row],[G&S reporting level indicator]]","v":0},{"$f":"T_DataComboFile[[#This Row],[2020/21 Baseline_Source]]*T_DataComboFile[[#This Row],[G&S reporting level indicator]]","v":0},{"$f":"T_DataComboFile[[#This Row],[2021/22 Baseline_Source]]*T_DataComboFile[[#This Row],[G&S reporting level indicator]]","v":0},{"$f":"T_DataComboFile[[#This Row],[2022/23 Baseline_Source]]*T_DataComboFile[[#This Row],[G&S reporting level indicator]]","v":0},{"$f":"T_DataComboFile[[#This Row],[2023/24 Baseline_Source]]*T_DataComboFile[[#This Row],[G&S reporting level indicator]]","v":0},null,null,null,null,null,null,{"$f":"T_DataComboFile[[#This Row],[2021/22 Baseline]]+T_DataComboFile[[#This Row],[2021/22 Reduction]]+T_DataComboFile[[#This Row],[2021/22 Increase]]","v":0},{"$f":"T_DataComboFile[[#This Row],[2022/23 Baseline]]+T_DataComboFile[[#This Row],[2022/23 Reduction]]+T_DataComboFile[[#This Row],[2022/23 Increase]]","v":0},{"$f":"T_DataComboFile[[#This Row],[2023/24 Baseline]]+T_DataComboFile[[#This Row],[2023/24 Reduction]]+T_DataComboFile[[#This Row],[2023/24 Increase]]","v":0}]
[null,null,"2021_22","ENE2020",36,2,4,null,70761,36,2,4,null,"070761","36|02|04",2,3,12,56,60,"02|03|12|56|60","National","Small Business Development","Sector Policy and Research","Monitoring and Evaluation",null,"Capital","Payments for capital assets","Machinery and equipment","Transport equipment","Transport equipment",null,null,null,0,0,0,0,0,0,0,0,0,0,0,0,0,0,null,{"$f":"IF(T_DataComboFile[[#This Row],[G&S reporting level indicator]]=1,$AX$16,\"Not applicable\")","v":"Level 3"},{"$f":"IF(AND($AX$16=\"Level 3\",T_DataComboFile[[#This Row],[Econ3]] = \"Goods and services\"),IF(T_DataComboFile[[#This Row],[Econ4]] = T_DataComboFile[[#This Row],[Econ3]],1,0),IF(AND($AX$16=\"Level 4\",T_DataComboFile[[#This Row],[Econ4]] = \"Goods and services\"),0,1))","v":1},{"$f":"T_DataComboFile[[#This Row],[2016/17_Source]]*T_DataComboFile[[#This Row],[G&S reporting level indicator]]","v":0},{"$f":"T_DataComboFile[[#This Row],[2017/18_Source]]*T_DataComboFile[[#This Row],[G&S reporting level indicator]]","v":0},{"$f":"T_DataComboFile[[#This Row],[2018/19_Source]]*T_DataComboFile[[#This Row],[G&S reporting level indicator]]","v":0},{"$f":"T_DataComboFile[[#This Row],[2019/20 Main appropriation_Source]]*T_DataComboFile[[#This Row],[G&S reporting level indicator]]","v":0},{"$f":"T_DataComboFile[[#This Row],[2019/20 Adjusted appropriation_Source]]*T_DataComboFile[[#This Row],[G&S reporting level indicator]]","v":0},{"$f":"T_DataComboFile[[#This Row],[2019/20 Revised estimate_Source]]*T_DataComboFile[[#This Row],[G&S reporting level indicator]]","v":0},{"$f":"T_DataComboFile[[#This Row],[2019/20 Preliminary outcome_Source]]*T_DataComboFile[[#This Row],[G&S reporting level indicator]]","v":0},{"$f":"T_DataComboFile[[#This Row],[2020/21 Original_Source]]*T_DataComboFile[[#This Row],[G&S reporting level indicator]]","v":0},{"$f":"T_DataComboFile[[#This Row],[2020/21 SAB_Source]]*T_DataComboFile[[#This Row],[G&S reporting level indicator]]","v":0},{"$f":"T_DataComboFile[[#This Row],[2020/21 Baseline_Source]]*T_DataComboFile[[#This Row],[G&S reporting level indicator]]","v":0},{"$f":"T_DataComboFile[[#This Row],[2021/22 Baseline_Source]]*T_DataComboFile[[#This Row],[G&S reporting level indicator]]","v":0},{"$f":"T_DataComboFile[[#This Row],[2022/23 Baseline_Source]]*T_DataComboFile[[#This Row],[G&S reporting level indicator]]","v":0},{"$f":"T_DataComboFile[[#This Row],[2023/24 Baseline_Source]]*T_DataComboFile[[#This Row],[G&S reporting level indicator]]","v":0},null,null,null,null,null,null,{"$f":"T_DataComboFile[[#This Row],[2021/22 Baseline]]+T_DataComboFile[[#This Row],[2021/22 Reduction]]+T_DataComboFile[[#This Row],[2021/22 Increase]]","v":0},{"$f":"T_DataComboFile[[#This Row],[2022/23 Baseline]]+T_DataComboFile[[#This Row],[2022/23 Reduction]]+T_DataComboFile[[#This Row],[2022/23 Increase]]","v":0},{"$f":"T_DataComboFile[[#This Row],[2023/24 Baseline]]+T_DataComboFile[[#This Row],[2023/24 Reduction]]+T_DataComboFile[[#This Row],[2023/24 Increase]]","v":0}]
["NAT|Non-transfer item","36|Other machinery and equipment","2021_22","ENE2020",36,2,4,17337,70762,36,2,4,17337,"070762","36|02|04",2,3,12,57,61,"02|03|12|57|61","National","Small Business Development","Sector Policy and Research","Monitoring and Evaluation","Non-transfer item","Capital","Payments for capital assets","Machinery and equipment","Other machinery and equipment","Other machinery and equipment","Economic development","Industrialisation and exports","NAT",1,5,16,18,18,18,18,18,18,18,21,24,25,1,null,{"$f":"IF(T_DataComboFile[[#This Row],[G&S reporting level indicator]]=1,$AX$16,\"Not applicable\")","v":"Level 3"},{"$f":"IF(AND($AX$16=\"Level 3\",T_DataComboFile[[#This Row],[Econ3]] = \"Goods and services\"),IF(T_DataComboFile[[#This Row],[Econ4]] = T_DataComboFile[[#This Row],[Econ3]],1,0),IF(AND($AX$16=\"Level 4\",T_DataComboFile[[#This Row],[Econ4]] = \"Goods and services\"),0,1))","v":1},{"$f":"T_DataComboFile[[#This Row],[2016/17_Source]]*T_DataComboFile[[#This Row],[G&S reporting level indicator]]","v":1},{"$f":"T_DataComboFile[[#This Row],[2017/18_Source]]*T_DataComboFile[[#This Row],[G&S reporting level indicator]]","v":5},{"$f":"T_DataComboFile[[#This Row],[2018/19_Source]]*T_DataComboFile[[#This Row],[G&S reporting level indicator]]","v":16},{"$f":"T_DataComboFile[[#This Row],[2019/20 Main appropriation_Source]]*T_DataComboFile[[#This Row],[G&S reporting level indicator]]","v":18},{"$f":"T_DataComboFile[[#This Row],[2019/20 Adjusted appropriation_Source]]*T_DataComboFile[[#This Row],[G&S reporting level indicator]]","v":18},{"$f":"T_DataComboFile[[#This Row],[2019/20 Revised estimate_Source]]*T_DataComboFile[[#This Row],[G&S reporting level indicator]]","v":18},{"$f":"T_DataComboFile[[#This Row],[2019/20 Preliminary outcome_Source]]*T_DataComboFile[[#This Row],[G&S reporting level indicator]]","v":18},{"$f":"T_DataComboFile[[#This Row],[2020/21 Original_Source]]*T_DataComboFile[[#This Row],[G&S reporting level indicator]]","v":18},{"$f":"T_DataComboFile[[#This Row],[2020/21 SAB_Source]]*T_DataComboFile[[#This Row],[G&S reporting level indicator]]","v":18},{"$f":"T_DataComboFile[[#This Row],[2020/21 Baseline_Source]]*T_DataComboFile[[#This Row],[G&S reporting level indicator]]","v":18},{"$f":"T_DataComboFile[[#This Row],[2021/22 Baseline_Source]]*T_DataComboFile[[#This Row],[G&S reporting level indicator]]","v":21},{"$f":"T_DataComboFile[[#This Row],[2022/23 Baseline_Source]]*T_DataComboFile[[#This Row],[G&S reporting level indicator]]","v":24},{"$f":"T_DataComboFile[[#This Row],[2023/24 Baseline_Source]]*T_DataComboFile[[#This Row],[G&S reporting level indicator]]","v":25},null,null,null,null,null,null,{"$f":"T_DataComboFile[[#This Row],[2021/22 Baseline]]+T_DataComboFile[[#This Row],[2021/22 Reduction]]+T_DataComboFile[[#This Row],[2021/22 Increase]]","v":21},{"$f":"T_DataComboFile[[#This Row],[2022/23 Baseline]]+T_DataComboFile[[#This Row],[2022/23 Reduction]]+T_DataComboFile[[#This Row],[2022/23 Increase]]","v":24},{"$f":"T_DataComboFile[[#This Row],[2023/24 Baseline]]+T_DataComboFile[[#This Row],[2023/24 Reduction]]+T_DataComboFile[[#This Row],[2023/24 Increase]]","v":25}]
[null,null,"2021_22","ENE2020",36,2,4,null,70763,36,2,4,null,"070763","36|02|04",2,3,13,58,62,"02|03|13|58|62","National","Small Business Development","Sector Policy and Research","Monitoring and Evaluation",null,"Capital","Payments for capital assets","Heritage assets","Heritage assets","Heritage assets",null,null,null,0,0,0,0,0,0,0,0,0,0,0,0,0,0,null,{"$f":"IF(T_DataComboFile[[#This Row],[G&S reporting level indicator]]=1,$AX$16,\"Not applicable\")","v":"Level 3"},{"$f":"IF(AND($AX$16=\"Level 3\",T_DataComboFile[[#This Row],[Econ3]] = \"Goods and services\"),IF(T_DataComboFile[[#This Row],[Econ4]] = T_DataComboFile[[#This Row],[Econ3]],1,0),IF(AND($AX$16=\"Level 4\",T_DataComboFile[[#This Row],[Econ4]] = \"Goods and services\"),0,1))","v":1},{"$f":"T_DataComboFile[[#This Row],[2016/17_Source]]*T_DataComboFile[[#This Row],[G&S reporting level indicator]]","v":0},{"$f":"T_DataComboFile[[#This Row],[2017/18_Source]]*T_DataComboFile[[#This Row],[G&S reporting level indicator]]","v":0},{"$f":"T_DataComboFile[[#This Row],[2018/19_Source]]*T_DataComboFile[[#This Row],[G&S reporting level indicator]]","v":0},{"$f":"T_DataComboFile[[#This Row],[2019/20 Main appropriation_Source]]*T_DataComboFile[[#This Row],[G&S reporting level indicator]]","v":0},{"$f":"T_DataComboFile[[#This Row],[2019/20 Adjusted appropriation_Source]]*T_DataComboFile[[#This Row],[G&S reporting level indicator]]","v":0},{"$f":"T_DataComboFile[[#This Row],[2019/20 Revised estimate_Source]]*T_DataComboFile[[#This Row],[G&S reporting level indicator]]","v":0},{"$f":"T_DataComboFile[[#This Row],[2019/20 Preliminary outcome_Source]]*T_DataComboFile[[#This Row],[G&S reporting level indicator]]","v":0},{"$f":"T_DataComboFile[[#This Row],[2020/21 Original_Source]]*T_DataComboFile[[#This Row],[G&S reporting level indicator]]","v":0},{"$f":"T_DataComboFile[[#This Row],[2020/21 SAB_Source]]*T_DataComboFile[[#This Row],[G&S reporting level indicator]]","v":0},{"$f":"T_DataComboFile[[#This Row],[2020/21 Baseline_Source]]*T_DataComboFile[[#This Row],[G&S reporting level indicator]]","v":0},{"$f":"T_DataComboFile[[#This Row],[2021/22 Baseline_Source]]*T_DataComboFile[[#This Row],[G&S reporting level indicator]]","v":0},{"$f":"T_DataComboFile[[#This Row],[2022/23 Baseline_Source]]*T_DataComboFile[[#This Row],[G&S reporting level indicator]]","v":0},{"$f":"T_DataComboFile[[#This Row],[2023/24 Baseline_Source]]*T_DataComboFile[[#This Row],[G&S reporting level indicator]]","v":0},null,null,null,null,null,null,{"$f":"T_DataComboFile[[#This Row],[2021/22 Baseline]]+T_DataComboFile[[#This Row],[2021/22 Reduction]]+T_DataComboFile[[#This Row],[2021/22 Increase]]","v":0},{"$f":"T_DataComboFile[[#This Row],[2022/23 Baseline]]+T_DataComboFile[[#This Row],[2022/23 Reduction]]+T_DataComboFile[[#This Row],[2022/23 Increase]]","v":0},{"$f":"T_DataComboFile[[#This Row],[2023/24 Baseline]]+T_DataComboFile[[#This Row],[2023/24 Reduction]]+T_DataComboFile[[#This Row],[2023/24 Increase]]","v":0}]
[null,null,"2021_22","ENE2020",36,2,4,null,70764,36,2,4,null,"070764","36|02|04",2,3,14,59,63,"02|03|14|59|63","National","Small Business Development","Sector Policy and Research","Monitoring and Evaluation",null,"Capital","Payments for capital assets","Specialised military assets","Specialised military assets","Specialised military assets",null,null,null,0,0,0,0,0,0,0,0,0,0,0,0,0,0,null,{"$f":"IF(T_DataComboFile[[#This Row],[G&S reporting level indicator]]=1,$AX$16,\"Not applicable\")","v":"Level 3"},{"$f":"IF(AND($AX$16=\"Level 3\",T_DataComboFile[[#This Row],[Econ3]] = \"Goods and services\"),IF(T_DataComboFile[[#This Row],[Econ4]] = T_DataComboFile[[#This Row],[Econ3]],1,0),IF(AND($AX$16=\"Level 4\",T_DataComboFile[[#This Row],[Econ4]] = \"Goods and services\"),0,1))","v":1},{"$f":"T_DataComboFile[[#This Row],[2016/17_Source]]*T_DataComboFile[[#This Row],[G&S reporting level indicator]]","v":0},{"$f":"T_DataComboFile[[#This Row],[2017/18_Source]]*T_DataComboFile[[#This Row],[G&S reporting level indicator]]","v":0},{"$f":"T_DataComboFile[[#This Row],[2018/19_Source]]*T_DataComboFile[[#This Row],[G&S reporting level indicator]]","v":0},{"$f":"T_DataComboFile[[#This Row],[2019/20 Main appropriation_Source]]*T_DataComboFile[[#This Row],[G&S reporting level indicator]]","v":0},{"$f":"T_DataComboFile[[#This Row],[2019/20 Adjusted appropriation_Source]]*T_DataComboFile[[#This Row],[G&S reporting level indicator]]","v":0},{"$f":"T_DataComboFile[[#This Row],[2019/20 Revised estimate_Source]]*T_DataComboFile[[#This Row],[G&S reporting level indicator]]","v":0},{"$f":"T_DataComboFile[[#This Row],[2019/20 Preliminary outcome_Source]]*T_DataComboFile[[#This Row],[G&S reporting level indicator]]","v":0},{"$f":"T_DataComboFile[[#This Row],[2020/21 Original_Source]]*T_DataComboFile[[#This Row],[G&S reporting level indicator]]","v":0},{"$f":"T_DataComboFile[[#This Row],[2020/21 SAB_Source]]*T_DataComboFile[[#This Row],[G&S reporting level indicator]]","v":0},{"$f":"T_DataComboFile[[#This Row],[2020/21 Baseline_Source]]*T_DataComboFile[[#This Row],[G&S reporting level indicator]]","v":0},{"$f":"T_DataComboFile[[#This Row],[2021/22 Baseline_Source]]*T_DataComboFile[[#This Row],[G&S reporting level indicator]]","v":0},{"$f":"T_DataComboFile[[#This Row],[2022/23 Baseline_Source]]*T_DataComboFile[[#This Row],[G&S reporting level indicator]]","v":0},{"$f":"T_DataComboFile[[#This Row],[2023/24 Baseline_Source]]*T_DataComboFile[[#This Row],[G&S reporting level indicator]]","v":0},null,null,null,null,null,null,{"$f":"T_DataComboFile[[#This Row],[2021/22 Baseline]]+T_DataComboFile[[#This Row],[2021/22 Reduction]]+T_DataComboFile[[#This Row],[2021/22 Increase]]","v":0},{"$f":"T_DataComboFile[[#This Row],[2022/23 Baseline]]+T_DataComboFile[[#This Row],[2022/23 Reduction]]+T_DataComboFile[[#This Row],[2022/23 Increase]]","v":0},{"$f":"T_DataComboFile[[#This Row],[2023/24 Baseline]]+T_DataComboFile[[#This Row],[2023/24 Reduction]]+T_DataComboFile[[#This Row],[2023/24 Increase]]","v":0}]
[null,null,"2021_22","ENE2020",36,2,4,null,70765,36,2,4,null,"070765","36|02|04",2,3,15,60,64,"02|03|15|60|64","National","Small Business Development","Sector Policy and Research","Monitoring and Evaluation",null,"Capital","Payments for capital assets","Biological assets","Biological assets","Biological assets",null,null,null,0,0,0,0,0,0,0,0,0,0,0,0,0,0,null,{"$f":"IF(T_DataComboFile[[#This Row],[G&S reporting level indicator]]=1,$AX$16,\"Not applicable\")","v":"Level 3"},{"$f":"IF(AND($AX$16=\"Level 3\",T_DataComboFile[[#This Row],[Econ3]] = \"Goods and services\"),IF(T_DataComboFile[[#This Row],[Econ4]] = T_DataComboFile[[#This Row],[Econ3]],1,0),IF(AND($AX$16=\"Level 4\",T_DataComboFile[[#This Row],[Econ4]] = \"Goods and services\"),0,1))","v":1},{"$f":"T_DataComboFile[[#This Row],[2016/17_Source]]*T_DataComboFile[[#This Row],[G&S reporting level indicator]]","v":0},{"$f":"T_DataComboFile[[#This Row],[2017/18_Source]]*T_DataComboFile[[#This Row],[G&S reporting level indicator]]","v":0},{"$f":"T_DataComboFile[[#This Row],[2018/19_Source]]*T_DataComboFile[[#This Row],[G&S reporting level indicator]]","v":0},{"$f":"T_DataComboFile[[#This Row],[2019/20 Main appropriation_Source]]*T_DataComboFile[[#This Row],[G&S reporting level indicator]]","v":0},{"$f":"T_DataComboFile[[#This Row],[2019/20 Adjusted appropriation_Source]]*T_DataComboFile[[#This Row],[G&S reporting level indicator]]","v":0},{"$f":"T_DataComboFile[[#This Row],[2019/20 Revised estimate_Source]]*T_DataComboFile[[#This Row],[G&S reporting level indicator]]","v":0},{"$f":"T_DataComboFile[[#This Row],[2019/20 Preliminary outcome_Source]]*T_DataComboFile[[#This Row],[G&S reporting level indicator]]","v":0},{"$f":"T_DataComboFile[[#This Row],[2020/21 Original_Source]]*T_DataComboFile[[#This Row],[G&S reporting level indicator]]","v":0},{"$f":"T_DataComboFile[[#This Row],[2020/21 SAB_Source]]*T_DataComboFile[[#This Row],[G&S reporting level indicator]]","v":0},{"$f":"T_DataComboFile[[#This Row],[2020/21 Baseline_Source]]*T_DataComboFile[[#This Row],[G&S reporting level indicator]]","v":0},{"$f":"T_DataComboFile[[#This Row],[2021/22 Baseline_Source]]*T_DataComboFile[[#This Row],[G&S reporting level indicator]]","v":0},{"$f":"T_DataComboFile[[#This Row],[2022/23 Baseline_Source]]*T_DataComboFile[[#This Row],[G&S reporting level indicator]]","v":0},{"$f":"T_DataComboFile[[#This Row],[2023/24 Baseline_Source]]*T_DataComboFile[[#This Row],[G&S reporting level indicator]]","v":0},null,null,null,null,null,null,{"$f":"T_DataComboFile[[#This Row],[2021/22 Baseline]]+T_DataComboFile[[#This Row],[2021/22 Reduction]]+T_DataComboFile[[#This Row],[2021/22 Increase]]","v":0},{"$f":"T_DataComboFile[[#This Row],[2022/23 Baseline]]+T_DataComboFile[[#This Row],[2022/23 Reduction]]+T_DataComboFile[[#This Row],[2022/23 Increase]]","v":0},{"$f":"T_DataComboFile[[#This Row],[2023/24 Baseline]]+T_DataComboFile[[#This Row],[2023/24 Reduction]]+T_DataComboFile[[#This Row],[2023/24 Increase]]","v":0}]
[null,null,"2021_22","ENE2020",36,2,4,null,70766,36,2,4,null,"070766","36|02|04",2,3,16,61,65,"02|03|16|61|65","National","Small Business Development","Sector Policy and Research","Monitoring and Evaluation",null,"Capital","Payments for capital assets","Land and sub-soil assets","Land and sub-soil assets","Land and sub-soil assets",null,null,null,0,0,0,0,0,0,0,0,0,0,0,0,0,0,null,{"$f":"IF(T_DataComboFile[[#This Row],[G&S reporting level indicator]]=1,$AX$16,\"Not applicable\")","v":"Level 3"},{"$f":"IF(AND($AX$16=\"Level 3\",T_DataComboFile[[#This Row],[Econ3]] = \"Goods and services\"),IF(T_DataComboFile[[#This Row],[Econ4]] = T_DataComboFile[[#This Row],[Econ3]],1,0),IF(AND($AX$16=\"Level 4\",T_DataComboFile[[#This Row],[Econ4]] = \"Goods and services\"),0,1))","v":1},{"$f":"T_DataComboFile[[#This Row],[2016/17_Source]]*T_DataComboFile[[#This Row],[G&S reporting level indicator]]","v":0},{"$f":"T_DataComboFile[[#This Row],[2017/18_Source]]*T_DataComboFile[[#This Row],[G&S reporting level indicator]]","v":0},{"$f":"T_DataComboFile[[#This Row],[2018/19_Source]]*T_DataComboFile[[#This Row],[G&S reporting level indicator]]","v":0},{"$f":"T_DataComboFile[[#This Row],[2019/20 Main appropriation_Source]]*T_DataComboFile[[#This Row],[G&S reporting level indicator]]","v":0},{"$f":"T_DataComboFile[[#This Row],[2019/20 Adjusted appropriation_Source]]*T_DataComboFile[[#This Row],[G&S reporting level indicator]]","v":0},{"$f":"T_DataComboFile[[#This Row],[2019/20 Revised estimate_Source]]*T_DataComboFile[[#This Row],[G&S reporting level indicator]]","v":0},{"$f":"T_DataComboFile[[#This Row],[2019/20 Preliminary outcome_Source]]*T_DataComboFile[[#This Row],[G&S reporting level indicator]]","v":0},{"$f":"T_DataComboFile[[#This Row],[2020/21 Original_Source]]*T_DataComboFile[[#This Row],[G&S reporting level indicator]]","v":0},{"$f":"T_DataComboFile[[#This Row],[2020/21 SAB_Source]]*T_DataComboFile[[#This Row],[G&S reporting level indicator]]","v":0},{"$f":"T_DataComboFile[[#This Row],[2020/21 Baseline_Source]]*T_DataComboFile[[#This Row],[G&S reporting level indicator]]","v":0},{"$f":"T_DataComboFile[[#This Row],[2021/22 Baseline_Source]]*T_DataComboFile[[#This Row],[G&S reporting level indicator]]","v":0},{"$f":"T_DataComboFile[[#This Row],[2022/23 Baseline_Source]]*T_DataComboFile[[#This Row],[G&S reporting level indicator]]","v":0},{"$f":"T_DataComboFile[[#This Row],[2023/24 Baseline_Source]]*T_DataComboFile[[#This Row],[G&S reporting level indicator]]","v":0},null,null,null,null,null,null,{"$f":"T_DataComboFile[[#This Row],[2021/22 Baseline]]+T_DataComboFile[[#This Row],[2021/22 Reduction]]+T_DataComboFile[[#This Row],[2021/22 Increase]]","v":0},{"$f":"T_DataComboFile[[#This Row],[2022/23 Baseline]]+T_DataComboFile[[#This Row],[2022/23 Reduction]]+T_DataComboFile[[#This Row],[2022/23 Increase]]","v":0},{"$f":"T_DataComboFile[[#This Row],[2023/24 Baseline]]+T_DataComboFile[[#This Row],[2023/24 Reduction]]+T_DataComboFile[[#This Row],[2023/24 Increase]]","v":0}]
[null,null,"2021_22","ENE2020",36,2,4,null,70767,36,2,4,null,"070767","36|02|04",2,3,17,62,66,"02|03|17|62|66","National","Small Business Development","Sector Policy and Research","Monitoring and Evaluation",null,"Capital","Payments for capital assets","Software and other intangible assets","Software and other intangible assets","Software and other intangible assets",null,null,null,0,0,0,0,0,0,0,0,0,0,0,0,0,0,null,{"$f":"IF(T_DataComboFile[[#This Row],[G&S reporting level indicator]]=1,$AX$16,\"Not applicable\")","v":"Level 3"},{"$f":"IF(AND($AX$16=\"Level 3\",T_DataComboFile[[#This Row],[Econ3]] = \"Goods and services\"),IF(T_DataComboFile[[#This Row],[Econ4]] = T_DataComboFile[[#This Row],[Econ3]],1,0),IF(AND($AX$16=\"Level 4\",T_DataComboFile[[#This Row],[Econ4]] = \"Goods and services\"),0,1))","v":1},{"$f":"T_DataComboFile[[#This Row],[2016/17_Source]]*T_DataComboFile[[#This Row],[G&S reporting level indicator]]","v":0},{"$f":"T_DataComboFile[[#This Row],[2017/18_Source]]*T_DataComboFile[[#This Row],[G&S reporting level indicator]]","v":0},{"$f":"T_DataComboFile[[#This Row],[2018/19_Source]]*T_DataComboFile[[#This Row],[G&S reporting level indicator]]","v":0},{"$f":"T_DataComboFile[[#This Row],[2019/20 Main appropriation_Source]]*T_DataComboFile[[#This Row],[G&S reporting level indicator]]","v":0},{"$f":"T_DataComboFile[[#This Row],[2019/20 Adjusted appropriation_Source]]*T_DataComboFile[[#This Row],[G&S reporting level indicator]]","v":0},{"$f":"T_DataComboFile[[#This Row],[2019/20 Revised estimate_Source]]*T_DataComboFile[[#This Row],[G&S reporting level indicator]]","v":0},{"$f":"T_DataComboFile[[#This Row],[2019/20 Preliminary outcome_Source]]*T_DataComboFile[[#This Row],[G&S reporting level indicator]]","v":0},{"$f":"T_DataComboFile[[#This Row],[2020/21 Original_Source]]*T_DataComboFile[[#This Row],[G&S reporting level indicator]]","v":0},{"$f":"T_DataComboFile[[#This Row],[2020/21 SAB_Source]]*T_DataComboFile[[#This Row],[G&S reporting level indicator]]","v":0},{"$f":"T_DataComboFile[[#This Row],[2020/21 Baseline_Source]]*T_DataComboFile[[#This Row],[G&S reporting level indicator]]","v":0},{"$f":"T_DataComboFile[[#This Row],[2021/22 Baseline_Source]]*T_DataComboFile[[#This Row],[G&S reporting level indicator]]","v":0},{"$f":"T_DataComboFile[[#This Row],[2022/23 Baseline_Source]]*T_DataComboFile[[#This Row],[G&S reporting level indicator]]","v":0},{"$f":"T_DataComboFile[[#This Row],[2023/24 Baseline_Source]]*T_DataComboFile[[#This Row],[G&S reporting level indicator]]","v":0},null,null,null,null,null,null,{"$f":"T_DataComboFile[[#This Row],[2021/22 Baseline]]+T_DataComboFile[[#This Row],[2021/22 Reduction]]+T_DataComboFile[[#This Row],[2021/22 Increase]]","v":0},{"$f":"T_DataComboFile[[#This Row],[2022/23 Baseline]]+T_DataComboFile[[#This Row],[2022/23 Reduction]]+T_DataComboFile[[#This Row],[2022/23 Increase]]","v":0},{"$f":"T_DataComboFile[[#This Row],[2023/24 Baseline]]+T_DataComboFile[[#This Row],[2023/24 Reduction]]+T_DataComboFile[[#This Row],[2023/24 Increase]]","v":0}]
[null,null,"2021_22","ENE2020",36,2,4,null,70768,36,2,4,null,"070768","36|02|04",3,4,18,63,67,"03|04|18|63|67","National","Small Business Development","Sector Policy and Research","Monitoring and Evaluation",null,"Payments for financial assets","Payments for financial assets","Payments for financial assets","Payments for financial assets","Payments for financial assets",null,null,null,0,0,0,0,0,0,0,0,0,0,0,0,0,0,null,{"$f":"IF(T_DataComboFile[[#This Row],[G&S reporting level indicator]]=1,$AX$16,\"Not applicable\")","v":"Level 3"},{"$f":"IF(AND($AX$16=\"Level 3\",T_DataComboFile[[#This Row],[Econ3]] = \"Goods and services\"),IF(T_DataComboFile[[#This Row],[Econ4]] = T_DataComboFile[[#This Row],[Econ3]],1,0),IF(AND($AX$16=\"Level 4\",T_DataComboFile[[#This Row],[Econ4]] = \"Goods and services\"),0,1))","v":1},{"$f":"T_DataComboFile[[#This Row],[2016/17_Source]]*T_DataComboFile[[#This Row],[G&S reporting level indicator]]","v":0},{"$f":"T_DataComboFile[[#This Row],[2017/18_Source]]*T_DataComboFile[[#This Row],[G&S reporting level indicator]]","v":0},{"$f":"T_DataComboFile[[#This Row],[2018/19_Source]]*T_DataComboFile[[#This Row],[G&S reporting level indicator]]","v":0},{"$f":"T_DataComboFile[[#This Row],[2019/20 Main appropriation_Source]]*T_DataComboFile[[#This Row],[G&S reporting level indicator]]","v":0},{"$f":"T_DataComboFile[[#This Row],[2019/20 Adjusted appropriation_Source]]*T_DataComboFile[[#This Row],[G&S reporting level indicator]]","v":0},{"$f":"T_DataComboFile[[#This Row],[2019/20 Revised estimate_Source]]*T_DataComboFile[[#This Row],[G&S reporting level indicator]]","v":0},{"$f":"T_DataComboFile[[#This Row],[2019/20 Preliminary outcome_Source]]*T_DataComboFile[[#This Row],[G&S reporting level indicator]]","v":0},{"$f":"T_DataComboFile[[#This Row],[2020/21 Original_Source]]*T_DataComboFile[[#This Row],[G&S reporting level indicator]]","v":0},{"$f":"T_DataComboFile[[#This Row],[2020/21 SAB_Source]]*T_DataComboFile[[#This Row],[G&S reporting level indicator]]","v":0},{"$f":"T_DataComboFile[[#This Row],[2020/21 Baseline_Source]]*T_DataComboFile[[#This Row],[G&S reporting level indicator]]","v":0},{"$f":"T_DataComboFile[[#This Row],[2021/22 Baseline_Source]]*T_DataComboFile[[#This Row],[G&S reporting level indicator]]","v":0},{"$f":"T_DataComboFile[[#This Row],[2022/23 Baseline_Source]]*T_DataComboFile[[#This Row],[G&S reporting level indicator]]","v":0},{"$f":"T_DataComboFile[[#This Row],[2023/24 Baseline_Source]]*T_DataComboFile[[#This Row],[G&S reporting level indicator]]","v":0},null,null,null,null,null,null,{"$f":"T_DataComboFile[[#This Row],[2021/22 Baseline]]+T_DataComboFile[[#This Row],[2021/22 Reduction]]+T_DataComboFile[[#This Row],[2021/22 Increase]]","v":0},{"$f":"T_DataComboFile[[#This Row],[2022/23 Baseline]]+T_DataComboFile[[#This Row],[2022/23 Reduction]]+T_DataComboFile[[#This Row],[2022/23 Increase]]","v":0},{"$f":"T_DataComboFile[[#This Row],[2023/24 Baseline]]+T_DataComboFile[[#This Row],[2023/24 Reduction]]+T_DataComboFile[[#This Row],[2023/24 Increase]]","v":0}]
["NAT|Non-transfer item","36|Salaries and wages","2021_22","ENE2020",36,3,1,17338,70769,36,3,1,17338,"070769","36|03|01",1,1,1,1,1,"01|01|01|01|01","National","Small Business Development","Integrated Cooperative Development","Cooperatives Development","Non-transfer item","Current","Current payments","Compensation of employees","Salaries and wages","Salaries and wages","Economic development","Industrialisation and exports","NAT",3003,4813,4123,5893,5893,5893,5893,8206,8206,7741,8875,9048,9447,1,null,{"$f":"IF(T_DataComboFile[[#This Row],[G&S reporting level indicator]]=1,$AX$16,\"Not applicable\")","v":"Level 3"},{"$f":"IF(AND($AX$16=\"Level 3\",T_DataComboFile[[#This Row],[Econ3]] = \"Goods and services\"),IF(T_DataComboFile[[#This Row],[Econ4]] = T_DataComboFile[[#This Row],[Econ3]],1,0),IF(AND($AX$16=\"Level 4\",T_DataComboFile[[#This Row],[Econ4]] = \"Goods and services\"),0,1))","v":1},{"$f":"T_DataComboFile[[#This Row],[2016/17_Source]]*T_DataComboFile[[#This Row],[G&S reporting level indicator]]","v":3003},{"$f":"T_DataComboFile[[#This Row],[2017/18_Source]]*T_DataComboFile[[#This Row],[G&S reporting level indicator]]","v":4813},{"$f":"T_DataComboFile[[#This Row],[2018/19_Source]]*T_DataComboFile[[#This Row],[G&S reporting level indicator]]","v":4123},{"$f":"T_DataComboFile[[#This Row],[2019/20 Main appropriation_Source]]*T_DataComboFile[[#This Row],[G&S reporting level indicator]]","v":5893},{"$f":"T_DataComboFile[[#This Row],[2019/20 Adjusted appropriation_Source]]*T_DataComboFile[[#This Row],[G&S reporting level indicator]]","v":5893},{"$f":"T_DataComboFile[[#This Row],[2019/20 Revised estimate_Source]]*T_DataComboFile[[#This Row],[G&S reporting level indicator]]","v":5893},{"$f":"T_DataComboFile[[#This Row],[2019/20 Preliminary outcome_Source]]*T_DataComboFile[[#This Row],[G&S reporting level indicator]]","v":5893},{"$f":"T_DataComboFile[[#This Row],[2020/21 Original_Source]]*T_DataComboFile[[#This Row],[G&S reporting level indicator]]","v":8206},{"$f":"T_DataComboFile[[#This Row],[2020/21 SAB_Source]]*T_DataComboFile[[#This Row],[G&S reporting level indicator]]","v":8206},{"$f":"T_DataComboFile[[#This Row],[2020/21 Baseline_Source]]*T_DataComboFile[[#This Row],[G&S reporting level indicator]]","v":7741},{"$f":"T_DataComboFile[[#This Row],[2021/22 Baseline_Source]]*T_DataComboFile[[#This Row],[G&S reporting level indicator]]","v":8875},{"$f":"T_DataComboFile[[#This Row],[2022/23 Baseline_Source]]*T_DataComboFile[[#This Row],[G&S reporting level indicator]]","v":9048},{"$f":"T_DataComboFile[[#This Row],[2023/24 Baseline_Source]]*T_DataComboFile[[#This Row],[G&S reporting level indicator]]","v":9447},null,null,null,null,null,null,{"$f":"T_DataComboFile[[#This Row],[2021/22 Baseline]]+T_DataComboFile[[#This Row],[2021/22 Reduction]]+T_DataComboFile[[#This Row],[2021/22 Increase]]","v":8875},{"$f":"T_DataComboFile[[#This Row],[2022/23 Baseline]]+T_DataComboFile[[#This Row],[2022/23 Reduction]]+T_DataComboFile[[#This Row],[2022/23 Increase]]","v":9048},{"$f":"T_DataComboFile[[#This Row],[2023/24 Baseline]]+T_DataComboFile[[#This Row],[2023/24 Reduction]]+T_DataComboFile[[#This Row],[2023/24 Increase]]","v":9447}]
["NAT|Non-transfer item","36|Social contributions","2021_22","ENE2020",36,3,1,17339,70770,36,3,1,17339,"070770","36|03|01",1,1,1,2,2,"01|01|01|02|02","National","Small Business Development","Integrated Cooperative Development","Cooperatives Development","Non-transfer item","Current","Current payments","Compensation of employees","Social contributions","Social contributions","Economic development","Industrialisation and exports","NAT",307,555,454,796,796,796,796,1926,1926,1817,1722,1737,1814,1,null,{"$f":"IF(T_DataComboFile[[#This Row],[G&S reporting level indicator]]=1,$AX$16,\"Not applicable\")","v":"Level 3"},{"$f":"IF(AND($AX$16=\"Level 3\",T_DataComboFile[[#This Row],[Econ3]] = \"Goods and services\"),IF(T_DataComboFile[[#This Row],[Econ4]] = T_DataComboFile[[#This Row],[Econ3]],1,0),IF(AND($AX$16=\"Level 4\",T_DataComboFile[[#This Row],[Econ4]] = \"Goods and services\"),0,1))","v":1},{"$f":"T_DataComboFile[[#This Row],[2016/17_Source]]*T_DataComboFile[[#This Row],[G&S reporting level indicator]]","v":307},{"$f":"T_DataComboFile[[#This Row],[2017/18_Source]]*T_DataComboFile[[#This Row],[G&S reporting level indicator]]","v":555},{"$f":"T_DataComboFile[[#This Row],[2018/19_Source]]*T_DataComboFile[[#This Row],[G&S reporting level indicator]]","v":454},{"$f":"T_DataComboFile[[#This Row],[2019/20 Main appropriation_Source]]*T_DataComboFile[[#This Row],[G&S reporting level indicator]]","v":796},{"$f":"T_DataComboFile[[#This Row],[2019/20 Adjusted appropriation_Source]]*T_DataComboFile[[#This Row],[G&S reporting level indicator]]","v":796},{"$f":"T_DataComboFile[[#This Row],[2019/20 Revised estimate_Source]]*T_DataComboFile[[#This Row],[G&S reporting level indicator]]","v":796},{"$f":"T_DataComboFile[[#This Row],[2019/20 Preliminary outcome_Source]]*T_DataComboFile[[#This Row],[G&S reporting level indicator]]","v":796},{"$f":"T_DataComboFile[[#This Row],[2020/21 Original_Source]]*T_DataComboFile[[#This Row],[G&S reporting level indicator]]","v":1926},{"$f":"T_DataComboFile[[#This Row],[2020/21 SAB_Source]]*T_DataComboFile[[#This Row],[G&S reporting level indicator]]","v":1926},{"$f":"T_DataComboFile[[#This Row],[2020/21 Baseline_Source]]*T_DataComboFile[[#This Row],[G&S reporting level indicator]]","v":1817},{"$f":"T_DataComboFile[[#This Row],[2021/22 Baseline_Source]]*T_DataComboFile[[#This Row],[G&S reporting level indicator]]","v":1722},{"$f":"T_DataComboFile[[#This Row],[2022/23 Baseline_Source]]*T_DataComboFile[[#This Row],[G&S reporting level indicator]]","v":1737},{"$f":"T_DataComboFile[[#This Row],[2023/24 Baseline_Source]]*T_DataComboFile[[#This Row],[G&S reporting level indicator]]","v":1814},null,null,null,null,null,null,{"$f":"T_DataComboFile[[#This Row],[2021/22 Baseline]]+T_DataComboFile[[#This Row],[2021/22 Reduction]]+T_DataComboFile[[#This Row],[2021/22 Increase]]","v":1722},{"$f":"T_DataComboFile[[#This Row],[2022/23 Baseline]]+T_DataComboFile[[#This Row],[2022/23 Reduction]]+T_DataComboFile[[#This Row],[2022/23 Increase]]","v":1737},{"$f":"T_DataComboFile[[#This Row],[2023/24 Baseline]]+T_DataComboFile[[#This Row],[2023/24 Reduction]]+T_DataComboFile[[#This Row],[2023/24 Increase]]","v":1814}]
[null,null,"2021_22","ENE2020",36,3,1,null,70771,36,3,1,null,"070771","36|03|01",1,1,2,2,2,"01|01|02|02|02","National","Small Business Development","Integrated Cooperative Development","Cooperatives Development","Non-transfer item","Current","Current payments","Goods and services","Goods and services","Goods and services","Economic development","Industrialisation and exports","NAT",2132,4344,1485,2314,2276,2276,2276,2357,1357,2357,2221,2391,2498,1,null,{"$f":"IF(T_DataComboFile[[#This Row],[G&S reporting level indicator]]=1,$AX$16,\"Not applicable\")","v":"Level 3"},{"$f":"IF(AND($AX$16=\"Level 3\",T_DataComboFile[[#This Row],[Econ3]] = \"Goods and services\"),IF(T_DataComboFile[[#This Row],[Econ4]] = T_DataComboFile[[#This Row],[Econ3]],1,0),IF(AND($AX$16=\"Level 4\",T_DataComboFile[[#This Row],[Econ4]] = \"Goods and services\"),0,1))","v":1},{"$f":"T_DataComboFile[[#This Row],[2016/17_Source]]*T_DataComboFile[[#This Row],[G&S reporting level indicator]]","v":2132},{"$f":"T_DataComboFile[[#This Row],[2017/18_Source]]*T_DataComboFile[[#This Row],[G&S reporting level indicator]]","v":4344},{"$f":"T_DataComboFile[[#This Row],[2018/19_Source]]*T_DataComboFile[[#This Row],[G&S reporting level indicator]]","v":1485},{"$f":"T_DataComboFile[[#This Row],[2019/20 Main appropriation_Source]]*T_DataComboFile[[#This Row],[G&S reporting level indicator]]","v":2314},{"$f":"T_DataComboFile[[#This Row],[2019/20 Adjusted appropriation_Source]]*T_DataComboFile[[#This Row],[G&S reporting level indicator]]","v":2276},{"$f":"T_DataComboFile[[#This Row],[2019/20 Revised estimate_Source]]*T_DataComboFile[[#This Row],[G&S reporting level indicator]]","v":2276},{"$f":"T_DataComboFile[[#This Row],[2019/20 Preliminary outcome_Source]]*T_DataComboFile[[#This Row],[G&S reporting level indicator]]","v":2276},{"$f":"T_DataComboFile[[#This Row],[2020/21 Original_Source]]*T_DataComboFile[[#This Row],[G&S reporting level indicator]]","v":2357},{"$f":"T_DataComboFile[[#This Row],[2020/21 SAB_Source]]*T_DataComboFile[[#This Row],[G&S reporting level indicator]]","v":1357},{"$f":"T_DataComboFile[[#This Row],[2020/21 Baseline_Source]]*T_DataComboFile[[#This Row],[G&S reporting level indicator]]","v":2357},{"$f":"T_DataComboFile[[#This Row],[2021/22 Baseline_Source]]*T_DataComboFile[[#This Row],[G&S reporting level indicator]]","v":2221},{"$f":"T_DataComboFile[[#This Row],[2022/23 Baseline_Source]]*T_DataComboFile[[#This Row],[G&S reporting level indicator]]","v":2391},{"$f":"T_DataComboFile[[#This Row],[2023/24 Baseline_Source]]*T_DataComboFile[[#This Row],[G&S reporting level indicator]]","v":2498},null,null,null,null,null,null,{"$f":"T_DataComboFile[[#This Row],[2021/22 Baseline]]+T_DataComboFile[[#This Row],[2021/22 Reduction]]+T_DataComboFile[[#This Row],[2021/22 Increase]]","v":2221},{"$f":"T_DataComboFile[[#This Row],[2022/23 Baseline]]+T_DataComboFile[[#This Row],[2022/23 Reduction]]+T_DataComboFile[[#This Row],[2022/23 Increase]]","v":2391},{"$f":"T_DataComboFile[[#This Row],[2023/24 Baseline]]+T_DataComboFile[[#This Row],[2023/24 Reduction]]+T_DataComboFile[[#This Row],[2023/24 Increase]]","v":2498}]
["NAT|Non-transfer item","36|Administrative fees","2021_22","ENE2020",36,3,1,17340,70772,36,3,1,17340,"070772","36|03|01",1,1,2,3,3,"01|01|02|03|03","National","Small Business Development","Integrated Cooperative Development","Cooperatives Development","Non-transfer item","Current","Current payments","Goods and services","Administrative fees","Administrative fees","Economic development","Industrialisation and exports","NAT",54,94,44,92,81,81,81,59,59,59,63,67,70,1,null,{"$f":"IF(T_DataComboFile[[#This Row],[G&S reporting level indicator]]=1,$AX$16,\"Not applicable\")","v":"Not applicable"},{"$f":"IF(AND($AX$16=\"Level 3\",T_DataComboFile[[#This Row],[Econ3]] = \"Goods and services\"),IF(T_DataComboFile[[#This Row],[Econ4]] = T_DataComboFile[[#This Row],[Econ3]],1,0),IF(AND($AX$16=\"Level 4\",T_DataComboFile[[#This Row],[Econ4]] = \"Goods and services\"),0,1))","v":0},{"$f":"T_DataComboFile[[#This Row],[2016/17_Source]]*T_DataComboFile[[#This Row],[G&S reporting level indicator]]","v":0},{"$f":"T_DataComboFile[[#This Row],[2017/18_Source]]*T_DataComboFile[[#This Row],[G&S reporting level indicator]]","v":0},{"$f":"T_DataComboFile[[#This Row],[2018/19_Source]]*T_DataComboFile[[#This Row],[G&S reporting level indicator]]","v":0},{"$f":"T_DataComboFile[[#This Row],[2019/20 Main appropriation_Source]]*T_DataComboFile[[#This Row],[G&S reporting level indicator]]","v":0},{"$f":"T_DataComboFile[[#This Row],[2019/20 Adjusted appropriation_Source]]*T_DataComboFile[[#This Row],[G&S reporting level indicator]]","v":0},{"$f":"T_DataComboFile[[#This Row],[2019/20 Revised estimate_Source]]*T_DataComboFile[[#This Row],[G&S reporting level indicator]]","v":0},{"$f":"T_DataComboFile[[#This Row],[2019/20 Preliminary outcome_Source]]*T_DataComboFile[[#This Row],[G&S reporting level indicator]]","v":0},{"$f":"T_DataComboFile[[#This Row],[2020/21 Original_Source]]*T_DataComboFile[[#This Row],[G&S reporting level indicator]]","v":0},{"$f":"T_DataComboFile[[#This Row],[2020/21 SAB_Source]]*T_DataComboFile[[#This Row],[G&S reporting level indicator]]","v":0},{"$f":"T_DataComboFile[[#This Row],[2020/21 Baseline_Source]]*T_DataComboFile[[#This Row],[G&S reporting level indicator]]","v":0},{"$f":"T_DataComboFile[[#This Row],[2021/22 Baseline_Source]]*T_DataComboFile[[#This Row],[G&S reporting level indicator]]","v":0},{"$f":"T_DataComboFile[[#This Row],[2022/23 Baseline_Source]]*T_DataComboFile[[#This Row],[G&S reporting level indicator]]","v":0},{"$f":"T_DataComboFile[[#This Row],[2023/24 Baseline_Source]]*T_DataComboFile[[#This Row],[G&S reporting level indicator]]","v":0},null,null,null,null,null,null,{"$f":"T_DataComboFile[[#This Row],[2021/22 Baseline]]+T_DataComboFile[[#This Row],[2021/22 Reduction]]+T_DataComboFile[[#This Row],[2021/22 Increase]]","v":0},{"$f":"T_DataComboFile[[#This Row],[2022/23 Baseline]]+T_DataComboFile[[#This Row],[2022/23 Reduction]]+T_DataComboFile[[#This Row],[2022/23 Increase]]","v":0},{"$f":"T_DataComboFile[[#This Row],[2023/24 Baseline]]+T_DataComboFile[[#This Row],[2023/24 Reduction]]+T_DataComboFile[[#This Row],[2023/24 Increase]]","v":0}]
[null,null,"2021_22","ENE2020",36,3,1,null,70773,36,3,1,null,"070773","36|03|01",1,1,2,4,4,"01|01|02|04|04","National","Small Business Development","Integrated Cooperative Development","Cooperatives Development",null,"Current","Current payments","Goods and services","Advertising","Advertising",null,null,null,0,0,0,0,0,0,0,0,0,0,0,0,0,0,null,{"$f":"IF(T_DataComboFile[[#This Row],[G&S reporting level indicator]]=1,$AX$16,\"Not applicable\")","v":"Not applicable"},{"$f":"IF(AND($AX$16=\"Level 3\",T_DataComboFile[[#This Row],[Econ3]] = \"Goods and services\"),IF(T_DataComboFile[[#This Row],[Econ4]] = T_DataComboFile[[#This Row],[Econ3]],1,0),IF(AND($AX$16=\"Level 4\",T_DataComboFile[[#This Row],[Econ4]] = \"Goods and services\"),0,1))","v":0},{"$f":"T_DataComboFile[[#This Row],[2016/17_Source]]*T_DataComboFile[[#This Row],[G&S reporting level indicator]]","v":0},{"$f":"T_DataComboFile[[#This Row],[2017/18_Source]]*T_DataComboFile[[#This Row],[G&S reporting level indicator]]","v":0},{"$f":"T_DataComboFile[[#This Row],[2018/19_Source]]*T_DataComboFile[[#This Row],[G&S reporting level indicator]]","v":0},{"$f":"T_DataComboFile[[#This Row],[2019/20 Main appropriation_Source]]*T_DataComboFile[[#This Row],[G&S reporting level indicator]]","v":0},{"$f":"T_DataComboFile[[#This Row],[2019/20 Adjusted appropriation_Source]]*T_DataComboFile[[#This Row],[G&S reporting level indicator]]","v":0},{"$f":"T_DataComboFile[[#This Row],[2019/20 Revised estimate_Source]]*T_DataComboFile[[#This Row],[G&S reporting level indicator]]","v":0},{"$f":"T_DataComboFile[[#This Row],[2019/20 Preliminary outcome_Source]]*T_DataComboFile[[#This Row],[G&S reporting level indicator]]","v":0},{"$f":"T_DataComboFile[[#This Row],[2020/21 Original_Source]]*T_DataComboFile[[#This Row],[G&S reporting level indicator]]","v":0},{"$f":"T_DataComboFile[[#This Row],[2020/21 SAB_Source]]*T_DataComboFile[[#This Row],[G&S reporting level indicator]]","v":0},{"$f":"T_DataComboFile[[#This Row],[2020/21 Baseline_Source]]*T_DataComboFile[[#This Row],[G&S reporting level indicator]]","v":0},{"$f":"T_DataComboFile[[#This Row],[2021/22 Baseline_Source]]*T_DataComboFile[[#This Row],[G&S reporting level indicator]]","v":0},{"$f":"T_DataComboFile[[#This Row],[2022/23 Baseline_Source]]*T_DataComboFile[[#This Row],[G&S reporting level indicator]]","v":0},{"$f":"T_DataComboFile[[#This Row],[2023/24 Baseline_Source]]*T_DataComboFile[[#This Row],[G&S reporting level indicator]]","v":0},null,null,null,null,null,null,{"$f":"T_DataComboFile[[#This Row],[2021/22 Baseline]]+T_DataComboFile[[#This Row],[2021/22 Reduction]]+T_DataComboFile[[#This Row],[2021/22 Increase]]","v":0},{"$f":"T_DataComboFile[[#This Row],[2022/23 Baseline]]+T_DataComboFile[[#This Row],[2022/23 Reduction]]+T_DataComboFile[[#This Row],[2022/23 Increase]]","v":0},{"$f":"T_DataComboFile[[#This Row],[2023/24 Baseline]]+T_DataComboFile[[#This Row],[2023/24 Reduction]]+T_DataComboFile[[#This Row],[2023/24 Increase]]","v":0}]
["NAT|Non-transfer item","36|Minor assets","2021_22","ENE2020",36,3,1,17341,70774,36,3,1,17341,"070774","36|03|01",1,1,2,5,5,"01|01|02|05|05","National","Small Business Development","Integrated Cooperative Development","Cooperatives Development","Non-transfer item","Current","Current payments","Goods and services","Minor assets","Minor assets","Economic development","Industrialisation and exports","NAT",0,0,4,0,0,0,0,0,0,0,0,0,0,1,null,{"$f":"IF(T_DataComboFile[[#This Row],[G&S reporting level indicator]]=1,$AX$16,\"Not applicable\")","v":"Not applicable"},{"$f":"IF(AND($AX$16=\"Level 3\",T_DataComboFile[[#This Row],[Econ3]] = \"Goods and services\"),IF(T_DataComboFile[[#This Row],[Econ4]] = T_DataComboFile[[#This Row],[Econ3]],1,0),IF(AND($AX$16=\"Level 4\",T_DataComboFile[[#This Row],[Econ4]] = \"Goods and services\"),0,1))","v":0},{"$f":"T_DataComboFile[[#This Row],[2016/17_Source]]*T_DataComboFile[[#This Row],[G&S reporting level indicator]]","v":0},{"$f":"T_DataComboFile[[#This Row],[2017/18_Source]]*T_DataComboFile[[#This Row],[G&S reporting level indicator]]","v":0},{"$f":"T_DataComboFile[[#This Row],[2018/19_Source]]*T_DataComboFile[[#This Row],[G&S reporting level indicator]]","v":0},{"$f":"T_DataComboFile[[#This Row],[2019/20 Main appropriation_Source]]*T_DataComboFile[[#This Row],[G&S reporting level indicator]]","v":0},{"$f":"T_DataComboFile[[#This Row],[2019/20 Adjusted appropriation_Source]]*T_DataComboFile[[#This Row],[G&S reporting level indicator]]","v":0},{"$f":"T_DataComboFile[[#This Row],[2019/20 Revised estimate_Source]]*T_DataComboFile[[#This Row],[G&S reporting level indicator]]","v":0},{"$f":"T_DataComboFile[[#This Row],[2019/20 Preliminary outcome_Source]]*T_DataComboFile[[#This Row],[G&S reporting level indicator]]","v":0},{"$f":"T_DataComboFile[[#This Row],[2020/21 Original_Source]]*T_DataComboFile[[#This Row],[G&S reporting level indicator]]","v":0},{"$f":"T_DataComboFile[[#This Row],[2020/21 SAB_Source]]*T_DataComboFile[[#This Row],[G&S reporting level indicator]]","v":0},{"$f":"T_DataComboFile[[#This Row],[2020/21 Baseline_Source]]*T_DataComboFile[[#This Row],[G&S reporting level indicator]]","v":0},{"$f":"T_DataComboFile[[#This Row],[2021/22 Baseline_Source]]*T_DataComboFile[[#This Row],[G&S reporting level indicator]]","v":0},{"$f":"T_DataComboFile[[#This Row],[2022/23 Baseline_Source]]*T_DataComboFile[[#This Row],[G&S reporting level indicator]]","v":0},{"$f":"T_DataComboFile[[#This Row],[2023/24 Baseline_Source]]*T_DataComboFile[[#This Row],[G&S reporting level indicator]]","v":0},null,null,null,null,null,null,{"$f":"T_DataComboFile[[#This Row],[2021/22 Baseline]]+T_DataComboFile[[#This Row],[2021/22 Reduction]]+T_DataComboFile[[#This Row],[2021/22 Increase]]","v":0},{"$f":"T_DataComboFile[[#This Row],[2022/23 Baseline]]+T_DataComboFile[[#This Row],[2022/23 Reduction]]+T_DataComboFile[[#This Row],[2022/23 Increase]]","v":0},{"$f":"T_DataComboFile[[#This Row],[2023/24 Baseline]]+T_DataComboFile[[#This Row],[2023/24 Reduction]]+T_DataComboFile[[#This Row],[2023/24 Increase]]","v":0}]
[null,null,"2021_22","ENE2020",36,3,1,null,70775,36,3,1,null,"070775","36|03|01",1,1,2,6,6,"01|01|02|06|06","National","Small Business Development","Integrated Cooperative Development","Cooperatives Development",null,"Current","Current payments","Goods and services","Audit costs: External","Audit costs: External",null,null,null,0,0,0,0,0,0,0,0,0,0,0,0,0,0,null,{"$f":"IF(T_DataComboFile[[#This Row],[G&S reporting level indicator]]=1,$AX$16,\"Not applicable\")","v":"Not applicable"},{"$f":"IF(AND($AX$16=\"Level 3\",T_DataComboFile[[#This Row],[Econ3]] = \"Goods and services\"),IF(T_DataComboFile[[#This Row],[Econ4]] = T_DataComboFile[[#This Row],[Econ3]],1,0),IF(AND($AX$16=\"Level 4\",T_DataComboFile[[#This Row],[Econ4]] = \"Goods and services\"),0,1))","v":0},{"$f":"T_DataComboFile[[#This Row],[2016/17_Source]]*T_DataComboFile[[#This Row],[G&S reporting level indicator]]","v":0},{"$f":"T_DataComboFile[[#This Row],[2017/18_Source]]*T_DataComboFile[[#This Row],[G&S reporting level indicator]]","v":0},{"$f":"T_DataComboFile[[#This Row],[2018/19_Source]]*T_DataComboFile[[#This Row],[G&S reporting level indicator]]","v":0},{"$f":"T_DataComboFile[[#This Row],[2019/20 Main appropriation_Source]]*T_DataComboFile[[#This Row],[G&S reporting level indicator]]","v":0},{"$f":"T_DataComboFile[[#This Row],[2019/20 Adjusted appropriation_Source]]*T_DataComboFile[[#This Row],[G&S reporting level indicator]]","v":0},{"$f":"T_DataComboFile[[#This Row],[2019/20 Revised estimate_Source]]*T_DataComboFile[[#This Row],[G&S reporting level indicator]]","v":0},{"$f":"T_DataComboFile[[#This Row],[2019/20 Preliminary outcome_Source]]*T_DataComboFile[[#This Row],[G&S reporting level indicator]]","v":0},{"$f":"T_DataComboFile[[#This Row],[2020/21 Original_Source]]*T_DataComboFile[[#This Row],[G&S reporting level indicator]]","v":0},{"$f":"T_DataComboFile[[#This Row],[2020/21 SAB_Source]]*T_DataComboFile[[#This Row],[G&S reporting level indicator]]","v":0},{"$f":"T_DataComboFile[[#This Row],[2020/21 Baseline_Source]]*T_DataComboFile[[#This Row],[G&S reporting level indicator]]","v":0},{"$f":"T_DataComboFile[[#This Row],[2021/22 Baseline_Source]]*T_DataComboFile[[#This Row],[G&S reporting level indicator]]","v":0},{"$f":"T_DataComboFile[[#This Row],[2022/23 Baseline_Source]]*T_DataComboFile[[#This Row],[G&S reporting level indicator]]","v":0},{"$f":"T_DataComboFile[[#This Row],[2023/24 Baseline_Source]]*T_DataComboFile[[#This Row],[G&S reporting level indicator]]","v":0},null,null,null,null,null,null,{"$f":"T_DataComboFile[[#This Row],[2021/22 Baseline]]+T_DataComboFile[[#This Row],[2021/22 Reduction]]+T_DataComboFile[[#This Row],[2021/22 Increase]]","v":0},{"$f":"T_DataComboFile[[#This Row],[2022/23 Baseline]]+T_DataComboFile[[#This Row],[2022/23 Reduction]]+T_DataComboFile[[#This Row],[2022/23 Increase]]","v":0},{"$f":"T_DataComboFile[[#This Row],[2023/24 Baseline]]+T_DataComboFile[[#This Row],[2023/24 Reduction]]+T_DataComboFile[[#This Row],[2023/24 Increase]]","v":0}]
[null,null,"2021_22","ENE2020",36,3,1,null,70776,36,3,1,null,"070776","36|03|01",1,1,2,7,7,"01|01|02|07|07","National","Small Business Development","Integrated Cooperative Development","Cooperatives Development",null,"Current","Current payments","Goods and services","Bursaries: Employees","Bursaries: Employees",null,null,null,0,0,0,0,0,0,0,0,0,0,0,0,0,0,null,{"$f":"IF(T_DataComboFile[[#This Row],[G&S reporting level indicator]]=1,$AX$16,\"Not applicable\")","v":"Not applicable"},{"$f":"IF(AND($AX$16=\"Level 3\",T_DataComboFile[[#This Row],[Econ3]] = \"Goods and services\"),IF(T_DataComboFile[[#This Row],[Econ4]] = T_DataComboFile[[#This Row],[Econ3]],1,0),IF(AND($AX$16=\"Level 4\",T_DataComboFile[[#This Row],[Econ4]] = \"Goods and services\"),0,1))","v":0},{"$f":"T_DataComboFile[[#This Row],[2016/17_Source]]*T_DataComboFile[[#This Row],[G&S reporting level indicator]]","v":0},{"$f":"T_DataComboFile[[#This Row],[2017/18_Source]]*T_DataComboFile[[#This Row],[G&S reporting level indicator]]","v":0},{"$f":"T_DataComboFile[[#This Row],[2018/19_Source]]*T_DataComboFile[[#This Row],[G&S reporting level indicator]]","v":0},{"$f":"T_DataComboFile[[#This Row],[2019/20 Main appropriation_Source]]*T_DataComboFile[[#This Row],[G&S reporting level indicator]]","v":0},{"$f":"T_DataComboFile[[#This Row],[2019/20 Adjusted appropriation_Source]]*T_DataComboFile[[#This Row],[G&S reporting level indicator]]","v":0},{"$f":"T_DataComboFile[[#This Row],[2019/20 Revised estimate_Source]]*T_DataComboFile[[#This Row],[G&S reporting level indicator]]","v":0},{"$f":"T_DataComboFile[[#This Row],[2019/20 Preliminary outcome_Source]]*T_DataComboFile[[#This Row],[G&S reporting level indicator]]","v":0},{"$f":"T_DataComboFile[[#This Row],[2020/21 Original_Source]]*T_DataComboFile[[#This Row],[G&S reporting level indicator]]","v":0},{"$f":"T_DataComboFile[[#This Row],[2020/21 SAB_Source]]*T_DataComboFile[[#This Row],[G&S reporting level indicator]]","v":0},{"$f":"T_DataComboFile[[#This Row],[2020/21 Baseline_Source]]*T_DataComboFile[[#This Row],[G&S reporting level indicator]]","v":0},{"$f":"T_DataComboFile[[#This Row],[2021/22 Baseline_Source]]*T_DataComboFile[[#This Row],[G&S reporting level indicator]]","v":0},{"$f":"T_DataComboFile[[#This Row],[2022/23 Baseline_Source]]*T_DataComboFile[[#This Row],[G&S reporting level indicator]]","v":0},{"$f":"T_DataComboFile[[#This Row],[2023/24 Baseline_Source]]*T_DataComboFile[[#This Row],[G&S reporting level indicator]]","v":0},null,null,null,null,null,null,{"$f":"T_DataComboFile[[#This Row],[2021/22 Baseline]]+T_DataComboFile[[#This Row],[2021/22 Reduction]]+T_DataComboFile[[#This Row],[2021/22 Increase]]","v":0},{"$f":"T_DataComboFile[[#This Row],[2022/23 Baseline]]+T_DataComboFile[[#This Row],[2022/23 Reduction]]+T_DataComboFile[[#This Row],[2022/23 Increase]]","v":0},{"$f":"T_DataComboFile[[#This Row],[2023/24 Baseline]]+T_DataComboFile[[#This Row],[2023/24 Reduction]]+T_DataComboFile[[#This Row],[2023/24 Increase]]","v":0}]
["NAT|Non-transfer item","36|Catering: Departmental activities","2021_22","ENE2020",36,3,1,17342,70777,36,3,1,17342,"070777","36|03|01",1,1,2,8,8,"01|01|02|08|08","National","Small Business Development","Integrated Cooperative Development","Cooperatives Development","Non-transfer item","Current","Current payments","Goods and services","Catering: Departmental activities","Catering: Departmental activities","Economic development","Industrialisation and exports","NAT",928,1647,89,230,230,230,230,98,98,98,115,128,134,1,null,{"$f":"IF(T_DataComboFile[[#This Row],[G&S reporting level indicator]]=1,$AX$16,\"Not applicable\")","v":"Not applicable"},{"$f":"IF(AND($AX$16=\"Level 3\",T_DataComboFile[[#This Row],[Econ3]] = \"Goods and services\"),IF(T_DataComboFile[[#This Row],[Econ4]] = T_DataComboFile[[#This Row],[Econ3]],1,0),IF(AND($AX$16=\"Level 4\",T_DataComboFile[[#This Row],[Econ4]] = \"Goods and services\"),0,1))","v":0},{"$f":"T_DataComboFile[[#This Row],[2016/17_Source]]*T_DataComboFile[[#This Row],[G&S reporting level indicator]]","v":0},{"$f":"T_DataComboFile[[#This Row],[2017/18_Source]]*T_DataComboFile[[#This Row],[G&S reporting level indicator]]","v":0},{"$f":"T_DataComboFile[[#This Row],[2018/19_Source]]*T_DataComboFile[[#This Row],[G&S reporting level indicator]]","v":0},{"$f":"T_DataComboFile[[#This Row],[2019/20 Main appropriation_Source]]*T_DataComboFile[[#This Row],[G&S reporting level indicator]]","v":0},{"$f":"T_DataComboFile[[#This Row],[2019/20 Adjusted appropriation_Source]]*T_DataComboFile[[#This Row],[G&S reporting level indicator]]","v":0},{"$f":"T_DataComboFile[[#This Row],[2019/20 Revised estimate_Source]]*T_DataComboFile[[#This Row],[G&S reporting level indicator]]","v":0},{"$f":"T_DataComboFile[[#This Row],[2019/20 Preliminary outcome_Source]]*T_DataComboFile[[#This Row],[G&S reporting level indicator]]","v":0},{"$f":"T_DataComboFile[[#This Row],[2020/21 Original_Source]]*T_DataComboFile[[#This Row],[G&S reporting level indicator]]","v":0},{"$f":"T_DataComboFile[[#This Row],[2020/21 SAB_Source]]*T_DataComboFile[[#This Row],[G&S reporting level indicator]]","v":0},{"$f":"T_DataComboFile[[#This Row],[2020/21 Baseline_Source]]*T_DataComboFile[[#This Row],[G&S reporting level indicator]]","v":0},{"$f":"T_DataComboFile[[#This Row],[2021/22 Baseline_Source]]*T_DataComboFile[[#This Row],[G&S reporting level indicator]]","v":0},{"$f":"T_DataComboFile[[#This Row],[2022/23 Baseline_Source]]*T_DataComboFile[[#This Row],[G&S reporting level indicator]]","v":0},{"$f":"T_DataComboFile[[#This Row],[2023/24 Baseline_Source]]*T_DataComboFile[[#This Row],[G&S reporting level indicator]]","v":0},null,null,null,null,null,null,{"$f":"T_DataComboFile[[#This Row],[2021/22 Baseline]]+T_DataComboFile[[#This Row],[2021/22 Reduction]]+T_DataComboFile[[#This Row],[2021/22 Increase]]","v":0},{"$f":"T_DataComboFile[[#This Row],[2022/23 Baseline]]+T_DataComboFile[[#This Row],[2022/23 Reduction]]+T_DataComboFile[[#This Row],[2022/23 Increase]]","v":0},{"$f":"T_DataComboFile[[#This Row],[2023/24 Baseline]]+T_DataComboFile[[#This Row],[2023/24 Reduction]]+T_DataComboFile[[#This Row],[2023/24 Increase]]","v":0}]
["NAT|Non-transfer item","36|Communication (G&S)","2021_22","ENE2020",36,3,1,17343,70778,36,3,1,17343,"070778","36|03|01",1,1,2,9,9,"01|01|02|09|09","National","Small Business Development","Integrated Cooperative Development","Cooperatives Development","Non-transfer item","Current","Current payments","Goods and services","Communication (G&S)","Communication (G&S)","Economic development","Industrialisation and exports","NAT",9,11,12,12,27,27,27,6,6,6,7,8,8,1,null,{"$f":"IF(T_DataComboFile[[#This Row],[G&S reporting level indicator]]=1,$AX$16,\"Not applicable\")","v":"Not applicable"},{"$f":"IF(AND($AX$16=\"Level 3\",T_DataComboFile[[#This Row],[Econ3]] = \"Goods and services\"),IF(T_DataComboFile[[#This Row],[Econ4]] = T_DataComboFile[[#This Row],[Econ3]],1,0),IF(AND($AX$16=\"Level 4\",T_DataComboFile[[#This Row],[Econ4]] = \"Goods and services\"),0,1))","v":0},{"$f":"T_DataComboFile[[#This Row],[2016/17_Source]]*T_DataComboFile[[#This Row],[G&S reporting level indicator]]","v":0},{"$f":"T_DataComboFile[[#This Row],[2017/18_Source]]*T_DataComboFile[[#This Row],[G&S reporting level indicator]]","v":0},{"$f":"T_DataComboFile[[#This Row],[2018/19_Source]]*T_DataComboFile[[#This Row],[G&S reporting level indicator]]","v":0},{"$f":"T_DataComboFile[[#This Row],[2019/20 Main appropriation_Source]]*T_DataComboFile[[#This Row],[G&S reporting level indicator]]","v":0},{"$f":"T_DataComboFile[[#This Row],[2019/20 Adjusted appropriation_Source]]*T_DataComboFile[[#This Row],[G&S reporting level indicator]]","v":0},{"$f":"T_DataComboFile[[#This Row],[2019/20 Revised estimate_Source]]*T_DataComboFile[[#This Row],[G&S reporting level indicator]]","v":0},{"$f":"T_DataComboFile[[#This Row],[2019/20 Preliminary outcome_Source]]*T_DataComboFile[[#This Row],[G&S reporting level indicator]]","v":0},{"$f":"T_DataComboFile[[#This Row],[2020/21 Original_Source]]*T_DataComboFile[[#This Row],[G&S reporting level indicator]]","v":0},{"$f":"T_DataComboFile[[#This Row],[2020/21 SAB_Source]]*T_DataComboFile[[#This Row],[G&S reporting level indicator]]","v":0},{"$f":"T_DataComboFile[[#This Row],[2020/21 Baseline_Source]]*T_DataComboFile[[#This Row],[G&S reporting level indicator]]","v":0},{"$f":"T_DataComboFile[[#This Row],[2021/22 Baseline_Source]]*T_DataComboFile[[#This Row],[G&S reporting level indicator]]","v":0},{"$f":"T_DataComboFile[[#This Row],[2022/23 Baseline_Source]]*T_DataComboFile[[#This Row],[G&S reporting level indicator]]","v":0},{"$f":"T_DataComboFile[[#This Row],[2023/24 Baseline_Source]]*T_DataComboFile[[#This Row],[G&S reporting level indicator]]","v":0},null,null,null,null,null,null,{"$f":"T_DataComboFile[[#This Row],[2021/22 Baseline]]+T_DataComboFile[[#This Row],[2021/22 Reduction]]+T_DataComboFile[[#This Row],[2021/22 Increase]]","v":0},{"$f":"T_DataComboFile[[#This Row],[2022/23 Baseline]]+T_DataComboFile[[#This Row],[2022/23 Reduction]]+T_DataComboFile[[#This Row],[2022/23 Increase]]","v":0},{"$f":"T_DataComboFile[[#This Row],[2023/24 Baseline]]+T_DataComboFile[[#This Row],[2023/24 Reduction]]+T_DataComboFile[[#This Row],[2023/24 Increase]]","v":0}]
[null,null,"2021_22","ENE2020",36,3,1,null,70779,36,3,1,null,"070779","36|03|01",1,1,2,10,10,"01|01|02|10|10","National","Small Business Development","Integrated Cooperative Development","Cooperatives Development",null,"Current","Current payments","Goods and services","Computer services","Computer services",null,null,null,0,0,0,0,0,0,0,0,0,0,0,0,0,0,null,{"$f":"IF(T_DataComboFile[[#This Row],[G&S reporting level indicator]]=1,$AX$16,\"Not applicable\")","v":"Not applicable"},{"$f":"IF(AND($AX$16=\"Level 3\",T_DataComboFile[[#This Row],[Econ3]] = \"Goods and services\"),IF(T_DataComboFile[[#This Row],[Econ4]] = T_DataComboFile[[#This Row],[Econ3]],1,0),IF(AND($AX$16=\"Level 4\",T_DataComboFile[[#This Row],[Econ4]] = \"Goods and services\"),0,1))","v":0},{"$f":"T_DataComboFile[[#This Row],[2016/17_Source]]*T_DataComboFile[[#This Row],[G&S reporting level indicator]]","v":0},{"$f":"T_DataComboFile[[#This Row],[2017/18_Source]]*T_DataComboFile[[#This Row],[G&S reporting level indicator]]","v":0},{"$f":"T_DataComboFile[[#This Row],[2018/19_Source]]*T_DataComboFile[[#This Row],[G&S reporting level indicator]]","v":0},{"$f":"T_DataComboFile[[#This Row],[2019/20 Main appropriation_Source]]*T_DataComboFile[[#This Row],[G&S reporting level indicator]]","v":0},{"$f":"T_DataComboFile[[#This Row],[2019/20 Adjusted appropriation_Source]]*T_DataComboFile[[#This Row],[G&S reporting level indicator]]","v":0},{"$f":"T_DataComboFile[[#This Row],[2019/20 Revised estimate_Source]]*T_DataComboFile[[#This Row],[G&S reporting level indicator]]","v":0},{"$f":"T_DataComboFile[[#This Row],[2019/20 Preliminary outcome_Source]]*T_DataComboFile[[#This Row],[G&S reporting level indicator]]","v":0},{"$f":"T_DataComboFile[[#This Row],[2020/21 Original_Source]]*T_DataComboFile[[#This Row],[G&S reporting level indicator]]","v":0},{"$f":"T_DataComboFile[[#This Row],[2020/21 SAB_Source]]*T_DataComboFile[[#This Row],[G&S reporting level indicator]]","v":0},{"$f":"T_DataComboFile[[#This Row],[2020/21 Baseline_Source]]*T_DataComboFile[[#This Row],[G&S reporting level indicator]]","v":0},{"$f":"T_DataComboFile[[#This Row],[2021/22 Baseline_Source]]*T_DataComboFile[[#This Row],[G&S reporting level indicator]]","v":0},{"$f":"T_DataComboFile[[#This Row],[2022/23 Baseline_Source]]*T_DataComboFile[[#This Row],[G&S reporting level indicator]]","v":0},{"$f":"T_DataComboFile[[#This Row],[2023/24 Baseline_Source]]*T_DataComboFile[[#This Row],[G&S reporting level indicator]]","v":0},null,null,null,null,null,null,{"$f":"T_DataComboFile[[#This Row],[2021/22 Baseline]]+T_DataComboFile[[#This Row],[2021/22 Reduction]]+T_DataComboFile[[#This Row],[2021/22 Increase]]","v":0},{"$f":"T_DataComboFile[[#This Row],[2022/23 Baseline]]+T_DataComboFile[[#This Row],[2022/23 Reduction]]+T_DataComboFile[[#This Row],[2022/23 Increase]]","v":0},{"$f":"T_DataComboFile[[#This Row],[2023/24 Baseline]]+T_DataComboFile[[#This Row],[2023/24 Reduction]]+T_DataComboFile[[#This Row],[2023/24 Increase]]","v":0}]
["NAT|Non-transfer item","36|Consultants: Business and advisory services","2021_22","ENE2020",36,3,1,17344,70780,36,3,1,17344,"070780","36|03|01",1,1,2,11,11,"01|01|02|11|11","National","Small Business Development","Integrated Cooperative Development","Cooperatives Development","Non-transfer item","Current","Current payments","Goods and services","Consultants: Business and advisory services","Consultants: Business and advisory services","Economic development","Industrialisation and exports","NAT",79,59,0,485,485,485,485,625,625,625,661,670,700,1,null,{"$f":"IF(T_DataComboFile[[#This Row],[G&S reporting level indicator]]=1,$AX$16,\"Not applicable\")","v":"Not applicable"},{"$f":"IF(AND($AX$16=\"Level 3\",T_DataComboFile[[#This Row],[Econ3]] = \"Goods and services\"),IF(T_DataComboFile[[#This Row],[Econ4]] = T_DataComboFile[[#This Row],[Econ3]],1,0),IF(AND($AX$16=\"Level 4\",T_DataComboFile[[#This Row],[Econ4]] = \"Goods and services\"),0,1))","v":0},{"$f":"T_DataComboFile[[#This Row],[2016/17_Source]]*T_DataComboFile[[#This Row],[G&S reporting level indicator]]","v":0},{"$f":"T_DataComboFile[[#This Row],[2017/18_Source]]*T_DataComboFile[[#This Row],[G&S reporting level indicator]]","v":0},{"$f":"T_DataComboFile[[#This Row],[2018/19_Source]]*T_DataComboFile[[#This Row],[G&S reporting level indicator]]","v":0},{"$f":"T_DataComboFile[[#This Row],[2019/20 Main appropriation_Source]]*T_DataComboFile[[#This Row],[G&S reporting level indicator]]","v":0},{"$f":"T_DataComboFile[[#This Row],[2019/20 Adjusted appropriation_Source]]*T_DataComboFile[[#This Row],[G&S reporting level indicator]]","v":0},{"$f":"T_DataComboFile[[#This Row],[2019/20 Revised estimate_Source]]*T_DataComboFile[[#This Row],[G&S reporting level indicator]]","v":0},{"$f":"T_DataComboFile[[#This Row],[2019/20 Preliminary outcome_Source]]*T_DataComboFile[[#This Row],[G&S reporting level indicator]]","v":0},{"$f":"T_DataComboFile[[#This Row],[2020/21 Original_Source]]*T_DataComboFile[[#This Row],[G&S reporting level indicator]]","v":0},{"$f":"T_DataComboFile[[#This Row],[2020/21 SAB_Source]]*T_DataComboFile[[#This Row],[G&S reporting level indicator]]","v":0},{"$f":"T_DataComboFile[[#This Row],[2020/21 Baseline_Source]]*T_DataComboFile[[#This Row],[G&S reporting level indicator]]","v":0},{"$f":"T_DataComboFile[[#This Row],[2021/22 Baseline_Source]]*T_DataComboFile[[#This Row],[G&S reporting level indicator]]","v":0},{"$f":"T_DataComboFile[[#This Row],[2022/23 Baseline_Source]]*T_DataComboFile[[#This Row],[G&S reporting level indicator]]","v":0},{"$f":"T_DataComboFile[[#This Row],[2023/24 Baseline_Source]]*T_DataComboFile[[#This Row],[G&S reporting level indicator]]","v":0},null,null,null,null,null,null,{"$f":"T_DataComboFile[[#This Row],[2021/22 Baseline]]+T_DataComboFile[[#This Row],[2021/22 Reduction]]+T_DataComboFile[[#This Row],[2021/22 Increase]]","v":0},{"$f":"T_DataComboFile[[#This Row],[2022/23 Baseline]]+T_DataComboFile[[#This Row],[2022/23 Reduction]]+T_DataComboFile[[#This Row],[2022/23 Increase]]","v":0},{"$f":"T_DataComboFile[[#This Row],[2023/24 Baseline]]+T_DataComboFile[[#This Row],[2023/24 Reduction]]+T_DataComboFile[[#This Row],[2023/24 Increase]]","v":0}]
[null,null,"2021_22","ENE2020",36,3,1,null,70781,36,3,1,null,"070781","36|03|01",1,1,2,12,12,"01|01|02|12|12","National","Small Business Development","Integrated Cooperative Development","Cooperatives Development",null,"Current","Current payments","Goods and services","Infrastructure and planning services","Infrastructure and planning services",null,null,null,0,0,0,0,0,0,0,0,0,0,0,0,0,0,null,{"$f":"IF(T_DataComboFile[[#This Row],[G&S reporting level indicator]]=1,$AX$16,\"Not applicable\")","v":"Not applicable"},{"$f":"IF(AND($AX$16=\"Level 3\",T_DataComboFile[[#This Row],[Econ3]] = \"Goods and services\"),IF(T_DataComboFile[[#This Row],[Econ4]] = T_DataComboFile[[#This Row],[Econ3]],1,0),IF(AND($AX$16=\"Level 4\",T_DataComboFile[[#This Row],[Econ4]] = \"Goods and services\"),0,1))","v":0},{"$f":"T_DataComboFile[[#This Row],[2016/17_Source]]*T_DataComboFile[[#This Row],[G&S reporting level indicator]]","v":0},{"$f":"T_DataComboFile[[#This Row],[2017/18_Source]]*T_DataComboFile[[#This Row],[G&S reporting level indicator]]","v":0},{"$f":"T_DataComboFile[[#This Row],[2018/19_Source]]*T_DataComboFile[[#This Row],[G&S reporting level indicator]]","v":0},{"$f":"T_DataComboFile[[#This Row],[2019/20 Main appropriation_Source]]*T_DataComboFile[[#This Row],[G&S reporting level indicator]]","v":0},{"$f":"T_DataComboFile[[#This Row],[2019/20 Adjusted appropriation_Source]]*T_DataComboFile[[#This Row],[G&S reporting level indicator]]","v":0},{"$f":"T_DataComboFile[[#This Row],[2019/20 Revised estimate_Source]]*T_DataComboFile[[#This Row],[G&S reporting level indicator]]","v":0},{"$f":"T_DataComboFile[[#This Row],[2019/20 Preliminary outcome_Source]]*T_DataComboFile[[#This Row],[G&S reporting level indicator]]","v":0},{"$f":"T_DataComboFile[[#This Row],[2020/21 Original_Source]]*T_DataComboFile[[#This Row],[G&S reporting level indicator]]","v":0},{"$f":"T_DataComboFile[[#This Row],[2020/21 SAB_Source]]*T_DataComboFile[[#This Row],[G&S reporting level indicator]]","v":0},{"$f":"T_DataComboFile[[#This Row],[2020/21 Baseline_Source]]*T_DataComboFile[[#This Row],[G&S reporting level indicator]]","v":0},{"$f":"T_DataComboFile[[#This Row],[2021/22 Baseline_Source]]*T_DataComboFile[[#This Row],[G&S reporting level indicator]]","v":0},{"$f":"T_DataComboFile[[#This Row],[2022/23 Baseline_Source]]*T_DataComboFile[[#This Row],[G&S reporting level indicator]]","v":0},{"$f":"T_DataComboFile[[#This Row],[2023/24 Baseline_Source]]*T_DataComboFile[[#This Row],[G&S reporting level indicator]]","v":0},null,null,null,null,null,null,{"$f":"T_DataComboFile[[#This Row],[2021/22 Baseline]]+T_DataComboFile[[#This Row],[2021/22 Reduction]]+T_DataComboFile[[#This Row],[2021/22 Increase]]","v":0},{"$f":"T_DataComboFile[[#This Row],[2022/23 Baseline]]+T_DataComboFile[[#This Row],[2022/23 Reduction]]+T_DataComboFile[[#This Row],[2022/23 Increase]]","v":0},{"$f":"T_DataComboFile[[#This Row],[2023/24 Baseline]]+T_DataComboFile[[#This Row],[2023/24 Reduction]]+T_DataComboFile[[#This Row],[2023/24 Increase]]","v":0}]
[null,null,"2021_22","ENE2020",36,3,1,null,70782,36,3,1,null,"070782","36|03|01",1,1,2,13,13,"01|01|02|13|13","National","Small Business Development","Integrated Cooperative Development","Cooperatives Development",null,"Current","Current payments","Goods and services","Laboratory services","Laboratory services",null,null,null,0,0,0,0,0,0,0,0,0,0,0,0,0,0,null,{"$f":"IF(T_DataComboFile[[#This Row],[G&S reporting level indicator]]=1,$AX$16,\"Not applicable\")","v":"Not applicable"},{"$f":"IF(AND($AX$16=\"Level 3\",T_DataComboFile[[#This Row],[Econ3]] = \"Goods and services\"),IF(T_DataComboFile[[#This Row],[Econ4]] = T_DataComboFile[[#This Row],[Econ3]],1,0),IF(AND($AX$16=\"Level 4\",T_DataComboFile[[#This Row],[Econ4]] = \"Goods and services\"),0,1))","v":0},{"$f":"T_DataComboFile[[#This Row],[2016/17_Source]]*T_DataComboFile[[#This Row],[G&S reporting level indicator]]","v":0},{"$f":"T_DataComboFile[[#This Row],[2017/18_Source]]*T_DataComboFile[[#This Row],[G&S reporting level indicator]]","v":0},{"$f":"T_DataComboFile[[#This Row],[2018/19_Source]]*T_DataComboFile[[#This Row],[G&S reporting level indicator]]","v":0},{"$f":"T_DataComboFile[[#This Row],[2019/20 Main appropriation_Source]]*T_DataComboFile[[#This Row],[G&S reporting level indicator]]","v":0},{"$f":"T_DataComboFile[[#This Row],[2019/20 Adjusted appropriation_Source]]*T_DataComboFile[[#This Row],[G&S reporting level indicator]]","v":0},{"$f":"T_DataComboFile[[#This Row],[2019/20 Revised estimate_Source]]*T_DataComboFile[[#This Row],[G&S reporting level indicator]]","v":0},{"$f":"T_DataComboFile[[#This Row],[2019/20 Preliminary outcome_Source]]*T_DataComboFile[[#This Row],[G&S reporting level indicator]]","v":0},{"$f":"T_DataComboFile[[#This Row],[2020/21 Original_Source]]*T_DataComboFile[[#This Row],[G&S reporting level indicator]]","v":0},{"$f":"T_DataComboFile[[#This Row],[2020/21 SAB_Source]]*T_DataComboFile[[#This Row],[G&S reporting level indicator]]","v":0},{"$f":"T_DataComboFile[[#This Row],[2020/21 Baseline_Source]]*T_DataComboFile[[#This Row],[G&S reporting level indicator]]","v":0},{"$f":"T_DataComboFile[[#This Row],[2021/22 Baseline_Source]]*T_DataComboFile[[#This Row],[G&S reporting level indicator]]","v":0},{"$f":"T_DataComboFile[[#This Row],[2022/23 Baseline_Source]]*T_DataComboFile[[#This Row],[G&S reporting level indicator]]","v":0},{"$f":"T_DataComboFile[[#This Row],[2023/24 Baseline_Source]]*T_DataComboFile[[#This Row],[G&S reporting level indicator]]","v":0},null,null,null,null,null,null,{"$f":"T_DataComboFile[[#This Row],[2021/22 Baseline]]+T_DataComboFile[[#This Row],[2021/22 Reduction]]+T_DataComboFile[[#This Row],[2021/22 Increase]]","v":0},{"$f":"T_DataComboFile[[#This Row],[2022/23 Baseline]]+T_DataComboFile[[#This Row],[2022/23 Reduction]]+T_DataComboFile[[#This Row],[2022/23 Increase]]","v":0},{"$f":"T_DataComboFile[[#This Row],[2023/24 Baseline]]+T_DataComboFile[[#This Row],[2023/24 Reduction]]+T_DataComboFile[[#This Row],[2023/24 Increase]]","v":0}]
[null,null,"2021_22","ENE2020",36,3,1,null,70783,36,3,1,null,"070783","36|03|01",1,1,2,14,14,"01|01|02|14|14","National","Small Business Development","Integrated Cooperative Development","Cooperatives Development",null,"Current","Current payments","Goods and services","Legal services (G&S)","Legal services (G&S)",null,null,null,0,0,0,0,0,0,0,0,0,0,0,0,0,0,null,{"$f":"IF(T_DataComboFile[[#This Row],[G&S reporting level indicator]]=1,$AX$16,\"Not applicable\")","v":"Not applicable"},{"$f":"IF(AND($AX$16=\"Level 3\",T_DataComboFile[[#This Row],[Econ3]] = \"Goods and services\"),IF(T_DataComboFile[[#This Row],[Econ4]] = T_DataComboFile[[#This Row],[Econ3]],1,0),IF(AND($AX$16=\"Level 4\",T_DataComboFile[[#This Row],[Econ4]] = \"Goods and services\"),0,1))","v":0},{"$f":"T_DataComboFile[[#This Row],[2016/17_Source]]*T_DataComboFile[[#This Row],[G&S reporting level indicator]]","v":0},{"$f":"T_DataComboFile[[#This Row],[2017/18_Source]]*T_DataComboFile[[#This Row],[G&S reporting level indicator]]","v":0},{"$f":"T_DataComboFile[[#This Row],[2018/19_Source]]*T_DataComboFile[[#This Row],[G&S reporting level indicator]]","v":0},{"$f":"T_DataComboFile[[#This Row],[2019/20 Main appropriation_Source]]*T_DataComboFile[[#This Row],[G&S reporting level indicator]]","v":0},{"$f":"T_DataComboFile[[#This Row],[2019/20 Adjusted appropriation_Source]]*T_DataComboFile[[#This Row],[G&S reporting level indicator]]","v":0},{"$f":"T_DataComboFile[[#This Row],[2019/20 Revised estimate_Source]]*T_DataComboFile[[#This Row],[G&S reporting level indicator]]","v":0},{"$f":"T_DataComboFile[[#This Row],[2019/20 Preliminary outcome_Source]]*T_DataComboFile[[#This Row],[G&S reporting level indicator]]","v":0},{"$f":"T_DataComboFile[[#This Row],[2020/21 Original_Source]]*T_DataComboFile[[#This Row],[G&S reporting level indicator]]","v":0},{"$f":"T_DataComboFile[[#This Row],[2020/21 SAB_Source]]*T_DataComboFile[[#This Row],[G&S reporting level indicator]]","v":0},{"$f":"T_DataComboFile[[#This Row],[2020/21 Baseline_Source]]*T_DataComboFile[[#This Row],[G&S reporting level indicator]]","v":0},{"$f":"T_DataComboFile[[#This Row],[2021/22 Baseline_Source]]*T_DataComboFile[[#This Row],[G&S reporting level indicator]]","v":0},{"$f":"T_DataComboFile[[#This Row],[2022/23 Baseline_Source]]*T_DataComboFile[[#This Row],[G&S reporting level indicator]]","v":0},{"$f":"T_DataComboFile[[#This Row],[2023/24 Baseline_Source]]*T_DataComboFile[[#This Row],[G&S reporting level indicator]]","v":0},null,null,null,null,null,null,{"$f":"T_DataComboFile[[#This Row],[2021/22 Baseline]]+T_DataComboFile[[#This Row],[2021/22 Reduction]]+T_DataComboFile[[#This Row],[2021/22 Increase]]","v":0},{"$f":"T_DataComboFile[[#This Row],[2022/23 Baseline]]+T_DataComboFile[[#This Row],[2022/23 Reduction]]+T_DataComboFile[[#This Row],[2022/23 Increase]]","v":0},{"$f":"T_DataComboFile[[#This Row],[2023/24 Baseline]]+T_DataComboFile[[#This Row],[2023/24 Reduction]]+T_DataComboFile[[#This Row],[2023/24 Increase]]","v":0}]
[null,null,"2021_22","ENE2020",36,3,1,null,70784,36,3,1,null,"070784","36|03|01",1,1,2,15,15,"01|01|02|15|15","National","Small Business Development","Integrated Cooperative Development","Cooperatives Development",null,"Current","Current payments","Goods and services","Science and technological services","Science and technological services",null,null,null,0,0,0,0,0,0,0,0,0,0,0,0,0,0,null,{"$f":"IF(T_DataComboFile[[#This Row],[G&S reporting level indicator]]=1,$AX$16,\"Not applicable\")","v":"Not applicable"},{"$f":"IF(AND($AX$16=\"Level 3\",T_DataComboFile[[#This Row],[Econ3]] = \"Goods and services\"),IF(T_DataComboFile[[#This Row],[Econ4]] = T_DataComboFile[[#This Row],[Econ3]],1,0),IF(AND($AX$16=\"Level 4\",T_DataComboFile[[#This Row],[Econ4]] = \"Goods and services\"),0,1))","v":0},{"$f":"T_DataComboFile[[#This Row],[2016/17_Source]]*T_DataComboFile[[#This Row],[G&S reporting level indicator]]","v":0},{"$f":"T_DataComboFile[[#This Row],[2017/18_Source]]*T_DataComboFile[[#This Row],[G&S reporting level indicator]]","v":0},{"$f":"T_DataComboFile[[#This Row],[2018/19_Source]]*T_DataComboFile[[#This Row],[G&S reporting level indicator]]","v":0},{"$f":"T_DataComboFile[[#This Row],[2019/20 Main appropriation_Source]]*T_DataComboFile[[#This Row],[G&S reporting level indicator]]","v":0},{"$f":"T_DataComboFile[[#This Row],[2019/20 Adjusted appropriation_Source]]*T_DataComboFile[[#This Row],[G&S reporting level indicator]]","v":0},{"$f":"T_DataComboFile[[#This Row],[2019/20 Revised estimate_Source]]*T_DataComboFile[[#This Row],[G&S reporting level indicator]]","v":0},{"$f":"T_DataComboFile[[#This Row],[2019/20 Preliminary outcome_Source]]*T_DataComboFile[[#This Row],[G&S reporting level indicator]]","v":0},{"$f":"T_DataComboFile[[#This Row],[2020/21 Original_Source]]*T_DataComboFile[[#This Row],[G&S reporting level indicator]]","v":0},{"$f":"T_DataComboFile[[#This Row],[2020/21 SAB_Source]]*T_DataComboFile[[#This Row],[G&S reporting level indicator]]","v":0},{"$f":"T_DataComboFile[[#This Row],[2020/21 Baseline_Source]]*T_DataComboFile[[#This Row],[G&S reporting level indicator]]","v":0},{"$f":"T_DataComboFile[[#This Row],[2021/22 Baseline_Source]]*T_DataComboFile[[#This Row],[G&S reporting level indicator]]","v":0},{"$f":"T_DataComboFile[[#This Row],[2022/23 Baseline_Source]]*T_DataComboFile[[#This Row],[G&S reporting level indicator]]","v":0},{"$f":"T_DataComboFile[[#This Row],[2023/24 Baseline_Source]]*T_DataComboFile[[#This Row],[G&S reporting level indicator]]","v":0},null,null,null,null,null,null,{"$f":"T_DataComboFile[[#This Row],[2021/22 Baseline]]+T_DataComboFile[[#This Row],[2021/22 Reduction]]+T_DataComboFile[[#This Row],[2021/22 Increase]]","v":0},{"$f":"T_DataComboFile[[#This Row],[2022/23 Baseline]]+T_DataComboFile[[#This Row],[2022/23 Reduction]]+T_DataComboFile[[#This Row],[2022/23 Increase]]","v":0},{"$f":"T_DataComboFile[[#This Row],[2023/24 Baseline]]+T_DataComboFile[[#This Row],[2023/24 Reduction]]+T_DataComboFile[[#This Row],[2023/24 Increase]]","v":0}]
["NAT|Non-transfer item","36|Contractors","2021_22","ENE2020",36,3,1,17345,70785,36,3,1,17345,"070785","36|03|01",1,1,2,16,16,"01|01|02|16|16","National","Small Business Development","Integrated Cooperative Development","Cooperatives Development","Non-transfer item","Current","Current payments","Goods and services","Contractors","Contractors","Economic development","Industrialisation and exports","NAT",261,861,0,0,0,0,0,0,0,0,0,0,0,1,null,{"$f":"IF(T_DataComboFile[[#This Row],[G&S reporting level indicator]]=1,$AX$16,\"Not applicable\")","v":"Not applicable"},{"$f":"IF(AND($AX$16=\"Level 3\",T_DataComboFile[[#This Row],[Econ3]] = \"Goods and services\"),IF(T_DataComboFile[[#This Row],[Econ4]] = T_DataComboFile[[#This Row],[Econ3]],1,0),IF(AND($AX$16=\"Level 4\",T_DataComboFile[[#This Row],[Econ4]] = \"Goods and services\"),0,1))","v":0},{"$f":"T_DataComboFile[[#This Row],[2016/17_Source]]*T_DataComboFile[[#This Row],[G&S reporting level indicator]]","v":0},{"$f":"T_DataComboFile[[#This Row],[2017/18_Source]]*T_DataComboFile[[#This Row],[G&S reporting level indicator]]","v":0},{"$f":"T_DataComboFile[[#This Row],[2018/19_Source]]*T_DataComboFile[[#This Row],[G&S reporting level indicator]]","v":0},{"$f":"T_DataComboFile[[#This Row],[2019/20 Main appropriation_Source]]*T_DataComboFile[[#This Row],[G&S reporting level indicator]]","v":0},{"$f":"T_DataComboFile[[#This Row],[2019/20 Adjusted appropriation_Source]]*T_DataComboFile[[#This Row],[G&S reporting level indicator]]","v":0},{"$f":"T_DataComboFile[[#This Row],[2019/20 Revised estimate_Source]]*T_DataComboFile[[#This Row],[G&S reporting level indicator]]","v":0},{"$f":"T_DataComboFile[[#This Row],[2019/20 Preliminary outcome_Source]]*T_DataComboFile[[#This Row],[G&S reporting level indicator]]","v":0},{"$f":"T_DataComboFile[[#This Row],[2020/21 Original_Source]]*T_DataComboFile[[#This Row],[G&S reporting level indicator]]","v":0},{"$f":"T_DataComboFile[[#This Row],[2020/21 SAB_Source]]*T_DataComboFile[[#This Row],[G&S reporting level indicator]]","v":0},{"$f":"T_DataComboFile[[#This Row],[2020/21 Baseline_Source]]*T_DataComboFile[[#This Row],[G&S reporting level indicator]]","v":0},{"$f":"T_DataComboFile[[#This Row],[2021/22 Baseline_Source]]*T_DataComboFile[[#This Row],[G&S reporting level indicator]]","v":0},{"$f":"T_DataComboFile[[#This Row],[2022/23 Baseline_Source]]*T_DataComboFile[[#This Row],[G&S reporting level indicator]]","v":0},{"$f":"T_DataComboFile[[#This Row],[2023/24 Baseline_Source]]*T_DataComboFile[[#This Row],[G&S reporting level indicator]]","v":0},null,null,null,null,null,null,{"$f":"T_DataComboFile[[#This Row],[2021/22 Baseline]]+T_DataComboFile[[#This Row],[2021/22 Reduction]]+T_DataComboFile[[#This Row],[2021/22 Increase]]","v":0},{"$f":"T_DataComboFile[[#This Row],[2022/23 Baseline]]+T_DataComboFile[[#This Row],[2022/23 Reduction]]+T_DataComboFile[[#This Row],[2022/23 Increase]]","v":0},{"$f":"T_DataComboFile[[#This Row],[2023/24 Baseline]]+T_DataComboFile[[#This Row],[2023/24 Reduction]]+T_DataComboFile[[#This Row],[2023/24 Increase]]","v":0}]
[null,null,"2021_22","ENE2020",36,3,1,null,70786,36,3,1,null,"070786","36|03|01",1,1,2,17,17,"01|01|02|17|17","National","Small Business Development","Integrated Cooperative Development","Cooperatives Development",null,"Current","Current payments","Goods and services","Agency and support/outsourced services","Agency and support/outsourced services",null,null,null,0,0,0,0,0,0,0,0,0,0,0,0,0,0,null,{"$f":"IF(T_DataComboFile[[#This Row],[G&S reporting level indicator]]=1,$AX$16,\"Not applicable\")","v":"Not applicable"},{"$f":"IF(AND($AX$16=\"Level 3\",T_DataComboFile[[#This Row],[Econ3]] = \"Goods and services\"),IF(T_DataComboFile[[#This Row],[Econ4]] = T_DataComboFile[[#This Row],[Econ3]],1,0),IF(AND($AX$16=\"Level 4\",T_DataComboFile[[#This Row],[Econ4]] = \"Goods and services\"),0,1))","v":0},{"$f":"T_DataComboFile[[#This Row],[2016/17_Source]]*T_DataComboFile[[#This Row],[G&S reporting level indicator]]","v":0},{"$f":"T_DataComboFile[[#This Row],[2017/18_Source]]*T_DataComboFile[[#This Row],[G&S reporting level indicator]]","v":0},{"$f":"T_DataComboFile[[#This Row],[2018/19_Source]]*T_DataComboFile[[#This Row],[G&S reporting level indicator]]","v":0},{"$f":"T_DataComboFile[[#This Row],[2019/20 Main appropriation_Source]]*T_DataComboFile[[#This Row],[G&S reporting level indicator]]","v":0},{"$f":"T_DataComboFile[[#This Row],[2019/20 Adjusted appropriation_Source]]*T_DataComboFile[[#This Row],[G&S reporting level indicator]]","v":0},{"$f":"T_DataComboFile[[#This Row],[2019/20 Revised estimate_Source]]*T_DataComboFile[[#This Row],[G&S reporting level indicator]]","v":0},{"$f":"T_DataComboFile[[#This Row],[2019/20 Preliminary outcome_Source]]*T_DataComboFile[[#This Row],[G&S reporting level indicator]]","v":0},{"$f":"T_DataComboFile[[#This Row],[2020/21 Original_Source]]*T_DataComboFile[[#This Row],[G&S reporting level indicator]]","v":0},{"$f":"T_DataComboFile[[#This Row],[2020/21 SAB_Source]]*T_DataComboFile[[#This Row],[G&S reporting level indicator]]","v":0},{"$f":"T_DataComboFile[[#This Row],[2020/21 Baseline_Source]]*T_DataComboFile[[#This Row],[G&S reporting level indicator]]","v":0},{"$f":"T_DataComboFile[[#This Row],[2021/22 Baseline_Source]]*T_DataComboFile[[#This Row],[G&S reporting level indicator]]","v":0},{"$f":"T_DataComboFile[[#This Row],[2022/23 Baseline_Source]]*T_DataComboFile[[#This Row],[G&S reporting level indicator]]","v":0},{"$f":"T_DataComboFile[[#This Row],[2023/24 Baseline_Source]]*T_DataComboFile[[#This Row],[G&S reporting level indicator]]","v":0},null,null,null,null,null,null,{"$f":"T_DataComboFile[[#This Row],[2021/22 Baseline]]+T_DataComboFile[[#This Row],[2021/22 Reduction]]+T_DataComboFile[[#This Row],[2021/22 Increase]]","v":0},{"$f":"T_DataComboFile[[#This Row],[2022/23 Baseline]]+T_DataComboFile[[#This Row],[2022/23 Reduction]]+T_DataComboFile[[#This Row],[2022/23 Increase]]","v":0},{"$f":"T_DataComboFile[[#This Row],[2023/24 Baseline]]+T_DataComboFile[[#This Row],[2023/24 Reduction]]+T_DataComboFile[[#This Row],[2023/24 Increase]]","v":0}]
[null,null,"2021_22","ENE2020",36,3,1,null,70787,36,3,1,null,"070787","36|03|01",1,1,2,18,18,"01|01|02|18|18","National","Small Business Development","Integrated Cooperative Development","Cooperatives Development",null,"Current","Current payments","Goods and services","Entertainment","Entertainment",null,null,null,0,0,0,0,0,0,0,0,0,0,0,0,0,0,null,{"$f":"IF(T_DataComboFile[[#This Row],[G&S reporting level indicator]]=1,$AX$16,\"Not applicable\")","v":"Not applicable"},{"$f":"IF(AND($AX$16=\"Level 3\",T_DataComboFile[[#This Row],[Econ3]] = \"Goods and services\"),IF(T_DataComboFile[[#This Row],[Econ4]] = T_DataComboFile[[#This Row],[Econ3]],1,0),IF(AND($AX$16=\"Level 4\",T_DataComboFile[[#This Row],[Econ4]] = \"Goods and services\"),0,1))","v":0},{"$f":"T_DataComboFile[[#This Row],[2016/17_Source]]*T_DataComboFile[[#This Row],[G&S reporting level indicator]]","v":0},{"$f":"T_DataComboFile[[#This Row],[2017/18_Source]]*T_DataComboFile[[#This Row],[G&S reporting level indicator]]","v":0},{"$f":"T_DataComboFile[[#This Row],[2018/19_Source]]*T_DataComboFile[[#This Row],[G&S reporting level indicator]]","v":0},{"$f":"T_DataComboFile[[#This Row],[2019/20 Main appropriation_Source]]*T_DataComboFile[[#This Row],[G&S reporting level indicator]]","v":0},{"$f":"T_DataComboFile[[#This Row],[2019/20 Adjusted appropriation_Source]]*T_DataComboFile[[#This Row],[G&S reporting level indicator]]","v":0},{"$f":"T_DataComboFile[[#This Row],[2019/20 Revised estimate_Source]]*T_DataComboFile[[#This Row],[G&S reporting level indicator]]","v":0},{"$f":"T_DataComboFile[[#This Row],[2019/20 Preliminary outcome_Source]]*T_DataComboFile[[#This Row],[G&S reporting level indicator]]","v":0},{"$f":"T_DataComboFile[[#This Row],[2020/21 Original_Source]]*T_DataComboFile[[#This Row],[G&S reporting level indicator]]","v":0},{"$f":"T_DataComboFile[[#This Row],[2020/21 SAB_Source]]*T_DataComboFile[[#This Row],[G&S reporting level indicator]]","v":0},{"$f":"T_DataComboFile[[#This Row],[2020/21 Baseline_Source]]*T_DataComboFile[[#This Row],[G&S reporting level indicator]]","v":0},{"$f":"T_DataComboFile[[#This Row],[2021/22 Baseline_Source]]*T_DataComboFile[[#This Row],[G&S reporting level indicator]]","v":0},{"$f":"T_DataComboFile[[#This Row],[2022/23 Baseline_Source]]*T_DataComboFile[[#This Row],[G&S reporting level indicator]]","v":0},{"$f":"T_DataComboFile[[#This Row],[2023/24 Baseline_Source]]*T_DataComboFile[[#This Row],[G&S reporting level indicator]]","v":0},null,null,null,null,null,null,{"$f":"T_DataComboFile[[#This Row],[2021/22 Baseline]]+T_DataComboFile[[#This Row],[2021/22 Reduction]]+T_DataComboFile[[#This Row],[2021/22 Increase]]","v":0},{"$f":"T_DataComboFile[[#This Row],[2022/23 Baseline]]+T_DataComboFile[[#This Row],[2022/23 Reduction]]+T_DataComboFile[[#This Row],[2022/23 Increase]]","v":0},{"$f":"T_DataComboFile[[#This Row],[2023/24 Baseline]]+T_DataComboFile[[#This Row],[2023/24 Reduction]]+T_DataComboFile[[#This Row],[2023/24 Increase]]","v":0}]
["NAT|Non-transfer item","36|Fleet services (including government motor transport)","2021_22","ENE2020",36,3,1,17346,70788,36,3,1,17346,"070788","36|03|01",1,1,2,19,19,"01|01|02|19|19","National","Small Business Development","Integrated Cooperative Development","Cooperatives Development","Non-transfer item","Current","Current payments","Goods and services","Fleet services (including government motor transport)","Fleet services (including government motor transport)","Economic development","Industrialisation and exports","NAT",2,5,39,22,22,22,22,14,14,14,15,16,17,1,null,{"$f":"IF(T_DataComboFile[[#This Row],[G&S reporting level indicator]]=1,$AX$16,\"Not applicable\")","v":"Not applicable"},{"$f":"IF(AND($AX$16=\"Level 3\",T_DataComboFile[[#This Row],[Econ3]] = \"Goods and services\"),IF(T_DataComboFile[[#This Row],[Econ4]] = T_DataComboFile[[#This Row],[Econ3]],1,0),IF(AND($AX$16=\"Level 4\",T_DataComboFile[[#This Row],[Econ4]] = \"Goods and services\"),0,1))","v":0},{"$f":"T_DataComboFile[[#This Row],[2016/17_Source]]*T_DataComboFile[[#This Row],[G&S reporting level indicator]]","v":0},{"$f":"T_DataComboFile[[#This Row],[2017/18_Source]]*T_DataComboFile[[#This Row],[G&S reporting level indicator]]","v":0},{"$f":"T_DataComboFile[[#This Row],[2018/19_Source]]*T_DataComboFile[[#This Row],[G&S reporting level indicator]]","v":0},{"$f":"T_DataComboFile[[#This Row],[2019/20 Main appropriation_Source]]*T_DataComboFile[[#This Row],[G&S reporting level indicator]]","v":0},{"$f":"T_DataComboFile[[#This Row],[2019/20 Adjusted appropriation_Source]]*T_DataComboFile[[#This Row],[G&S reporting level indicator]]","v":0},{"$f":"T_DataComboFile[[#This Row],[2019/20 Revised estimate_Source]]*T_DataComboFile[[#This Row],[G&S reporting level indicator]]","v":0},{"$f":"T_DataComboFile[[#This Row],[2019/20 Preliminary outcome_Source]]*T_DataComboFile[[#This Row],[G&S reporting level indicator]]","v":0},{"$f":"T_DataComboFile[[#This Row],[2020/21 Original_Source]]*T_DataComboFile[[#This Row],[G&S reporting level indicator]]","v":0},{"$f":"T_DataComboFile[[#This Row],[2020/21 SAB_Source]]*T_DataComboFile[[#This Row],[G&S reporting level indicator]]","v":0},{"$f":"T_DataComboFile[[#This Row],[2020/21 Baseline_Source]]*T_DataComboFile[[#This Row],[G&S reporting level indicator]]","v":0},{"$f":"T_DataComboFile[[#This Row],[2021/22 Baseline_Source]]*T_DataComboFile[[#This Row],[G&S reporting level indicator]]","v":0},{"$f":"T_DataComboFile[[#This Row],[2022/23 Baseline_Source]]*T_DataComboFile[[#This Row],[G&S reporting level indicator]]","v":0},{"$f":"T_DataComboFile[[#This Row],[2023/24 Baseline_Source]]*T_DataComboFile[[#This Row],[G&S reporting level indicator]]","v":0},null,null,null,null,null,null,{"$f":"T_DataComboFile[[#This Row],[2021/22 Baseline]]+T_DataComboFile[[#This Row],[2021/22 Reduction]]+T_DataComboFile[[#This Row],[2021/22 Increase]]","v":0},{"$f":"T_DataComboFile[[#This Row],[2022/23 Baseline]]+T_DataComboFile[[#This Row],[2022/23 Reduction]]+T_DataComboFile[[#This Row],[2022/23 Increase]]","v":0},{"$f":"T_DataComboFile[[#This Row],[2023/24 Baseline]]+T_DataComboFile[[#This Row],[2023/24 Reduction]]+T_DataComboFile[[#This Row],[2023/24 Increase]]","v":0}]
[null,null,"2021_22","ENE2020",36,3,1,null,70789,36,3,1,null,"070789","36|03|01",1,1,2,20,20,"01|01|02|20|20","National","Small Business Development","Integrated Cooperative Development","Cooperatives Development",null,"Current","Current payments","Goods and services","Housing","Housing",null,null,null,0,0,0,0,0,0,0,0,0,0,0,0,0,0,null,{"$f":"IF(T_DataComboFile[[#This Row],[G&S reporting level indicator]]=1,$AX$16,\"Not applicable\")","v":"Not applicable"},{"$f":"IF(AND($AX$16=\"Level 3\",T_DataComboFile[[#This Row],[Econ3]] = \"Goods and services\"),IF(T_DataComboFile[[#This Row],[Econ4]] = T_DataComboFile[[#This Row],[Econ3]],1,0),IF(AND($AX$16=\"Level 4\",T_DataComboFile[[#This Row],[Econ4]] = \"Goods and services\"),0,1))","v":0},{"$f":"T_DataComboFile[[#This Row],[2016/17_Source]]*T_DataComboFile[[#This Row],[G&S reporting level indicator]]","v":0},{"$f":"T_DataComboFile[[#This Row],[2017/18_Source]]*T_DataComboFile[[#This Row],[G&S reporting level indicator]]","v":0},{"$f":"T_DataComboFile[[#This Row],[2018/19_Source]]*T_DataComboFile[[#This Row],[G&S reporting level indicator]]","v":0},{"$f":"T_DataComboFile[[#This Row],[2019/20 Main appropriation_Source]]*T_DataComboFile[[#This Row],[G&S reporting level indicator]]","v":0},{"$f":"T_DataComboFile[[#This Row],[2019/20 Adjusted appropriation_Source]]*T_DataComboFile[[#This Row],[G&S reporting level indicator]]","v":0},{"$f":"T_DataComboFile[[#This Row],[2019/20 Revised estimate_Source]]*T_DataComboFile[[#This Row],[G&S reporting level indicator]]","v":0},{"$f":"T_DataComboFile[[#This Row],[2019/20 Preliminary outcome_Source]]*T_DataComboFile[[#This Row],[G&S reporting level indicator]]","v":0},{"$f":"T_DataComboFile[[#This Row],[2020/21 Original_Source]]*T_DataComboFile[[#This Row],[G&S reporting level indicator]]","v":0},{"$f":"T_DataComboFile[[#This Row],[2020/21 SAB_Source]]*T_DataComboFile[[#This Row],[G&S reporting level indicator]]","v":0},{"$f":"T_DataComboFile[[#This Row],[2020/21 Baseline_Source]]*T_DataComboFile[[#This Row],[G&S reporting level indicator]]","v":0},{"$f":"T_DataComboFile[[#This Row],[2021/22 Baseline_Source]]*T_DataComboFile[[#This Row],[G&S reporting level indicator]]","v":0},{"$f":"T_DataComboFile[[#This Row],[2022/23 Baseline_Source]]*T_DataComboFile[[#This Row],[G&S reporting level indicator]]","v":0},{"$f":"T_DataComboFile[[#This Row],[2023/24 Baseline_Source]]*T_DataComboFile[[#This Row],[G&S reporting level indicator]]","v":0},null,null,null,null,null,null,{"$f":"T_DataComboFile[[#This Row],[2021/22 Baseline]]+T_DataComboFile[[#This Row],[2021/22 Reduction]]+T_DataComboFile[[#This Row],[2021/22 Increase]]","v":0},{"$f":"T_DataComboFile[[#This Row],[2022/23 Baseline]]+T_DataComboFile[[#This Row],[2022/23 Reduction]]+T_DataComboFile[[#This Row],[2022/23 Increase]]","v":0},{"$f":"T_DataComboFile[[#This Row],[2023/24 Baseline]]+T_DataComboFile[[#This Row],[2023/24 Reduction]]+T_DataComboFile[[#This Row],[2023/24 Increase]]","v":0}]
[null,null,"2021_22","ENE2020",36,3,1,null,70790,36,3,1,null,"070790","36|03|01",1,1,2,21,21,"01|01|02|21|21","National","Small Business Development","Integrated Cooperative Development","Cooperatives Development",null,"Current","Current payments","Goods and services","Inventory: Clothing material and accessories","Inventory: Clothing material and accessories",null,null,null,0,0,0,0,0,0,0,0,0,0,0,0,0,0,null,{"$f":"IF(T_DataComboFile[[#This Row],[G&S reporting level indicator]]=1,$AX$16,\"Not applicable\")","v":"Not applicable"},{"$f":"IF(AND($AX$16=\"Level 3\",T_DataComboFile[[#This Row],[Econ3]] = \"Goods and services\"),IF(T_DataComboFile[[#This Row],[Econ4]] = T_DataComboFile[[#This Row],[Econ3]],1,0),IF(AND($AX$16=\"Level 4\",T_DataComboFile[[#This Row],[Econ4]] = \"Goods and services\"),0,1))","v":0},{"$f":"T_DataComboFile[[#This Row],[2016/17_Source]]*T_DataComboFile[[#This Row],[G&S reporting level indicator]]","v":0},{"$f":"T_DataComboFile[[#This Row],[2017/18_Source]]*T_DataComboFile[[#This Row],[G&S reporting level indicator]]","v":0},{"$f":"T_DataComboFile[[#This Row],[2018/19_Source]]*T_DataComboFile[[#This Row],[G&S reporting level indicator]]","v":0},{"$f":"T_DataComboFile[[#This Row],[2019/20 Main appropriation_Source]]*T_DataComboFile[[#This Row],[G&S reporting level indicator]]","v":0},{"$f":"T_DataComboFile[[#This Row],[2019/20 Adjusted appropriation_Source]]*T_DataComboFile[[#This Row],[G&S reporting level indicator]]","v":0},{"$f":"T_DataComboFile[[#This Row],[2019/20 Revised estimate_Source]]*T_DataComboFile[[#This Row],[G&S reporting level indicator]]","v":0},{"$f":"T_DataComboFile[[#This Row],[2019/20 Preliminary outcome_Source]]*T_DataComboFile[[#This Row],[G&S reporting level indicator]]","v":0},{"$f":"T_DataComboFile[[#This Row],[2020/21 Original_Source]]*T_DataComboFile[[#This Row],[G&S reporting level indicator]]","v":0},{"$f":"T_DataComboFile[[#This Row],[2020/21 SAB_Source]]*T_DataComboFile[[#This Row],[G&S reporting level indicator]]","v":0},{"$f":"T_DataComboFile[[#This Row],[2020/21 Baseline_Source]]*T_DataComboFile[[#This Row],[G&S reporting level indicator]]","v":0},{"$f":"T_DataComboFile[[#This Row],[2021/22 Baseline_Source]]*T_DataComboFile[[#This Row],[G&S reporting level indicator]]","v":0},{"$f":"T_DataComboFile[[#This Row],[2022/23 Baseline_Source]]*T_DataComboFile[[#This Row],[G&S reporting level indicator]]","v":0},{"$f":"T_DataComboFile[[#This Row],[2023/24 Baseline_Source]]*T_DataComboFile[[#This Row],[G&S reporting level indicator]]","v":0},null,null,null,null,null,null,{"$f":"T_DataComboFile[[#This Row],[2021/22 Baseline]]+T_DataComboFile[[#This Row],[2021/22 Reduction]]+T_DataComboFile[[#This Row],[2021/22 Increase]]","v":0},{"$f":"T_DataComboFile[[#This Row],[2022/23 Baseline]]+T_DataComboFile[[#This Row],[2022/23 Reduction]]+T_DataComboFile[[#This Row],[2022/23 Increase]]","v":0},{"$f":"T_DataComboFile[[#This Row],[2023/24 Baseline]]+T_DataComboFile[[#This Row],[2023/24 Reduction]]+T_DataComboFile[[#This Row],[2023/24 Increase]]","v":0}]
[null,null,"2021_22","ENE2020",36,3,1,null,70791,36,3,1,null,"070791","36|03|01",1,1,2,22,22,"01|01|02|22|22","National","Small Business Development","Integrated Cooperative Development","Cooperatives Development",null,"Current","Current payments","Goods and services","Inventory: Farming supplies","Inventory: Farming supplies",null,null,null,0,0,0,0,0,0,0,0,0,0,0,0,0,0,null,{"$f":"IF(T_DataComboFile[[#This Row],[G&S reporting level indicator]]=1,$AX$16,\"Not applicable\")","v":"Not applicable"},{"$f":"IF(AND($AX$16=\"Level 3\",T_DataComboFile[[#This Row],[Econ3]] = \"Goods and services\"),IF(T_DataComboFile[[#This Row],[Econ4]] = T_DataComboFile[[#This Row],[Econ3]],1,0),IF(AND($AX$16=\"Level 4\",T_DataComboFile[[#This Row],[Econ4]] = \"Goods and services\"),0,1))","v":0},{"$f":"T_DataComboFile[[#This Row],[2016/17_Source]]*T_DataComboFile[[#This Row],[G&S reporting level indicator]]","v":0},{"$f":"T_DataComboFile[[#This Row],[2017/18_Source]]*T_DataComboFile[[#This Row],[G&S reporting level indicator]]","v":0},{"$f":"T_DataComboFile[[#This Row],[2018/19_Source]]*T_DataComboFile[[#This Row],[G&S reporting level indicator]]","v":0},{"$f":"T_DataComboFile[[#This Row],[2019/20 Main appropriation_Source]]*T_DataComboFile[[#This Row],[G&S reporting level indicator]]","v":0},{"$f":"T_DataComboFile[[#This Row],[2019/20 Adjusted appropriation_Source]]*T_DataComboFile[[#This Row],[G&S reporting level indicator]]","v":0},{"$f":"T_DataComboFile[[#This Row],[2019/20 Revised estimate_Source]]*T_DataComboFile[[#This Row],[G&S reporting level indicator]]","v":0},{"$f":"T_DataComboFile[[#This Row],[2019/20 Preliminary outcome_Source]]*T_DataComboFile[[#This Row],[G&S reporting level indicator]]","v":0},{"$f":"T_DataComboFile[[#This Row],[2020/21 Original_Source]]*T_DataComboFile[[#This Row],[G&S reporting level indicator]]","v":0},{"$f":"T_DataComboFile[[#This Row],[2020/21 SAB_Source]]*T_DataComboFile[[#This Row],[G&S reporting level indicator]]","v":0},{"$f":"T_DataComboFile[[#This Row],[2020/21 Baseline_Source]]*T_DataComboFile[[#This Row],[G&S reporting level indicator]]","v":0},{"$f":"T_DataComboFile[[#This Row],[2021/22 Baseline_Source]]*T_DataComboFile[[#This Row],[G&S reporting level indicator]]","v":0},{"$f":"T_DataComboFile[[#This Row],[2022/23 Baseline_Source]]*T_DataComboFile[[#This Row],[G&S reporting level indicator]]","v":0},{"$f":"T_DataComboFile[[#This Row],[2023/24 Baseline_Source]]*T_DataComboFile[[#This Row],[G&S reporting level indicator]]","v":0},null,null,null,null,null,null,{"$f":"T_DataComboFile[[#This Row],[2021/22 Baseline]]+T_DataComboFile[[#This Row],[2021/22 Reduction]]+T_DataComboFile[[#This Row],[2021/22 Increase]]","v":0},{"$f":"T_DataComboFile[[#This Row],[2022/23 Baseline]]+T_DataComboFile[[#This Row],[2022/23 Reduction]]+T_DataComboFile[[#This Row],[2022/23 Increase]]","v":0},{"$f":"T_DataComboFile[[#This Row],[2023/24 Baseline]]+T_DataComboFile[[#This Row],[2023/24 Reduction]]+T_DataComboFile[[#This Row],[2023/24 Increase]]","v":0}]
[null,null,"2021_22","ENE2020",36,3,1,null,70792,36,3,1,null,"070792","36|03|01",1,1,2,23,23,"01|01|02|23|23","National","Small Business Development","Integrated Cooperative Development","Cooperatives Development",null,"Current","Current payments","Goods and services","Inventory: Food and food supplies","Inventory: Food and food supplies",null,null,null,0,0,0,0,0,0,0,0,0,0,0,0,0,0,null,{"$f":"IF(T_DataComboFile[[#This Row],[G&S reporting level indicator]]=1,$AX$16,\"Not applicable\")","v":"Not applicable"},{"$f":"IF(AND($AX$16=\"Level 3\",T_DataComboFile[[#This Row],[Econ3]] = \"Goods and services\"),IF(T_DataComboFile[[#This Row],[Econ4]] = T_DataComboFile[[#This Row],[Econ3]],1,0),IF(AND($AX$16=\"Level 4\",T_DataComboFile[[#This Row],[Econ4]] = \"Goods and services\"),0,1))","v":0},{"$f":"T_DataComboFile[[#This Row],[2016/17_Source]]*T_DataComboFile[[#This Row],[G&S reporting level indicator]]","v":0},{"$f":"T_DataComboFile[[#This Row],[2017/18_Source]]*T_DataComboFile[[#This Row],[G&S reporting level indicator]]","v":0},{"$f":"T_DataComboFile[[#This Row],[2018/19_Source]]*T_DataComboFile[[#This Row],[G&S reporting level indicator]]","v":0},{"$f":"T_DataComboFile[[#This Row],[2019/20 Main appropriation_Source]]*T_DataComboFile[[#This Row],[G&S reporting level indicator]]","v":0},{"$f":"T_DataComboFile[[#This Row],[2019/20 Adjusted appropriation_Source]]*T_DataComboFile[[#This Row],[G&S reporting level indicator]]","v":0},{"$f":"T_DataComboFile[[#This Row],[2019/20 Revised estimate_Source]]*T_DataComboFile[[#This Row],[G&S reporting level indicator]]","v":0},{"$f":"T_DataComboFile[[#This Row],[2019/20 Preliminary outcome_Source]]*T_DataComboFile[[#This Row],[G&S reporting level indicator]]","v":0},{"$f":"T_DataComboFile[[#This Row],[2020/21 Original_Source]]*T_DataComboFile[[#This Row],[G&S reporting level indicator]]","v":0},{"$f":"T_DataComboFile[[#This Row],[2020/21 SAB_Source]]*T_DataComboFile[[#This Row],[G&S reporting level indicator]]","v":0},{"$f":"T_DataComboFile[[#This Row],[2020/21 Baseline_Source]]*T_DataComboFile[[#This Row],[G&S reporting level indicator]]","v":0},{"$f":"T_DataComboFile[[#This Row],[2021/22 Baseline_Source]]*T_DataComboFile[[#This Row],[G&S reporting level indicator]]","v":0},{"$f":"T_DataComboFile[[#This Row],[2022/23 Baseline_Source]]*T_DataComboFile[[#This Row],[G&S reporting level indicator]]","v":0},{"$f":"T_DataComboFile[[#This Row],[2023/24 Baseline_Source]]*T_DataComboFile[[#This Row],[G&S reporting level indicator]]","v":0},null,null,null,null,null,null,{"$f":"T_DataComboFile[[#This Row],[2021/22 Baseline]]+T_DataComboFile[[#This Row],[2021/22 Reduction]]+T_DataComboFile[[#This Row],[2021/22 Increase]]","v":0},{"$f":"T_DataComboFile[[#This Row],[2022/23 Baseline]]+T_DataComboFile[[#This Row],[2022/23 Reduction]]+T_DataComboFile[[#This Row],[2022/23 Increase]]","v":0},{"$f":"T_DataComboFile[[#This Row],[2023/24 Baseline]]+T_DataComboFile[[#This Row],[2023/24 Reduction]]+T_DataComboFile[[#This Row],[2023/24 Increase]]","v":0}]
[null,null,"2021_22","ENE2020",36,3,1,null,70793,36,3,1,null,"070793","36|03|01",1,1,2,24,24,"01|01|02|24|24","National","Small Business Development","Integrated Cooperative Development","Cooperatives Development",null,"Current","Current payments","Goods and services","Inventory: Fuel, oil and gas","Inventory: Fuel, oil and gas",null,null,null,0,0,0,0,0,0,0,0,0,0,0,0,0,0,null,{"$f":"IF(T_DataComboFile[[#This Row],[G&S reporting level indicator]]=1,$AX$16,\"Not applicable\")","v":"Not applicable"},{"$f":"IF(AND($AX$16=\"Level 3\",T_DataComboFile[[#This Row],[Econ3]] = \"Goods and services\"),IF(T_DataComboFile[[#This Row],[Econ4]] = T_DataComboFile[[#This Row],[Econ3]],1,0),IF(AND($AX$16=\"Level 4\",T_DataComboFile[[#This Row],[Econ4]] = \"Goods and services\"),0,1))","v":0},{"$f":"T_DataComboFile[[#This Row],[2016/17_Source]]*T_DataComboFile[[#This Row],[G&S reporting level indicator]]","v":0},{"$f":"T_DataComboFile[[#This Row],[2017/18_Source]]*T_DataComboFile[[#This Row],[G&S reporting level indicator]]","v":0},{"$f":"T_DataComboFile[[#This Row],[2018/19_Source]]*T_DataComboFile[[#This Row],[G&S reporting level indicator]]","v":0},{"$f":"T_DataComboFile[[#This Row],[2019/20 Main appropriation_Source]]*T_DataComboFile[[#This Row],[G&S reporting level indicator]]","v":0},{"$f":"T_DataComboFile[[#This Row],[2019/20 Adjusted appropriation_Source]]*T_DataComboFile[[#This Row],[G&S reporting level indicator]]","v":0},{"$f":"T_DataComboFile[[#This Row],[2019/20 Revised estimate_Source]]*T_DataComboFile[[#This Row],[G&S reporting level indicator]]","v":0},{"$f":"T_DataComboFile[[#This Row],[2019/20 Preliminary outcome_Source]]*T_DataComboFile[[#This Row],[G&S reporting level indicator]]","v":0},{"$f":"T_DataComboFile[[#This Row],[2020/21 Original_Source]]*T_DataComboFile[[#This Row],[G&S reporting level indicator]]","v":0},{"$f":"T_DataComboFile[[#This Row],[2020/21 SAB_Source]]*T_DataComboFile[[#This Row],[G&S reporting level indicator]]","v":0},{"$f":"T_DataComboFile[[#This Row],[2020/21 Baseline_Source]]*T_DataComboFile[[#This Row],[G&S reporting level indicator]]","v":0},{"$f":"T_DataComboFile[[#This Row],[2021/22 Baseline_Source]]*T_DataComboFile[[#This Row],[G&S reporting level indicator]]","v":0},{"$f":"T_DataComboFile[[#This Row],[2022/23 Baseline_Source]]*T_DataComboFile[[#This Row],[G&S reporting level indicator]]","v":0},{"$f":"T_DataComboFile[[#This Row],[2023/24 Baseline_Source]]*T_DataComboFile[[#This Row],[G&S reporting level indicator]]","v":0},null,null,null,null,null,null,{"$f":"T_DataComboFile[[#This Row],[2021/22 Baseline]]+T_DataComboFile[[#This Row],[2021/22 Reduction]]+T_DataComboFile[[#This Row],[2021/22 Increase]]","v":0},{"$f":"T_DataComboFile[[#This Row],[2022/23 Baseline]]+T_DataComboFile[[#This Row],[2022/23 Reduction]]+T_DataComboFile[[#This Row],[2022/23 Increase]]","v":0},{"$f":"T_DataComboFile[[#This Row],[2023/24 Baseline]]+T_DataComboFile[[#This Row],[2023/24 Reduction]]+T_DataComboFile[[#This Row],[2023/24 Increase]]","v":0}]
[null,null,"2021_22","ENE2020",36,3,1,null,70794,36,3,1,null,"070794","36|03|01",1,1,2,25,25,"01|01|02|25|25","National","Small Business Development","Integrated Cooperative Development","Cooperatives Development",null,"Current","Current payments","Goods and services","Inventory: Learner and teacher support material","Inventory: Learner and teacher support material",null,null,null,0,0,0,0,0,0,0,0,0,0,0,0,0,0,null,{"$f":"IF(T_DataComboFile[[#This Row],[G&S reporting level indicator]]=1,$AX$16,\"Not applicable\")","v":"Not applicable"},{"$f":"IF(AND($AX$16=\"Level 3\",T_DataComboFile[[#This Row],[Econ3]] = \"Goods and services\"),IF(T_DataComboFile[[#This Row],[Econ4]] = T_DataComboFile[[#This Row],[Econ3]],1,0),IF(AND($AX$16=\"Level 4\",T_DataComboFile[[#This Row],[Econ4]] = \"Goods and services\"),0,1))","v":0},{"$f":"T_DataComboFile[[#This Row],[2016/17_Source]]*T_DataComboFile[[#This Row],[G&S reporting level indicator]]","v":0},{"$f":"T_DataComboFile[[#This Row],[2017/18_Source]]*T_DataComboFile[[#This Row],[G&S reporting level indicator]]","v":0},{"$f":"T_DataComboFile[[#This Row],[2018/19_Source]]*T_DataComboFile[[#This Row],[G&S reporting level indicator]]","v":0},{"$f":"T_DataComboFile[[#This Row],[2019/20 Main appropriation_Source]]*T_DataComboFile[[#This Row],[G&S reporting level indicator]]","v":0},{"$f":"T_DataComboFile[[#This Row],[2019/20 Adjusted appropriation_Source]]*T_DataComboFile[[#This Row],[G&S reporting level indicator]]","v":0},{"$f":"T_DataComboFile[[#This Row],[2019/20 Revised estimate_Source]]*T_DataComboFile[[#This Row],[G&S reporting level indicator]]","v":0},{"$f":"T_DataComboFile[[#This Row],[2019/20 Preliminary outcome_Source]]*T_DataComboFile[[#This Row],[G&S reporting level indicator]]","v":0},{"$f":"T_DataComboFile[[#This Row],[2020/21 Original_Source]]*T_DataComboFile[[#This Row],[G&S reporting level indicator]]","v":0},{"$f":"T_DataComboFile[[#This Row],[2020/21 SAB_Source]]*T_DataComboFile[[#This Row],[G&S reporting level indicator]]","v":0},{"$f":"T_DataComboFile[[#This Row],[2020/21 Baseline_Source]]*T_DataComboFile[[#This Row],[G&S reporting level indicator]]","v":0},{"$f":"T_DataComboFile[[#This Row],[2021/22 Baseline_Source]]*T_DataComboFile[[#This Row],[G&S reporting level indicator]]","v":0},{"$f":"T_DataComboFile[[#This Row],[2022/23 Baseline_Source]]*T_DataComboFile[[#This Row],[G&S reporting level indicator]]","v":0},{"$f":"T_DataComboFile[[#This Row],[2023/24 Baseline_Source]]*T_DataComboFile[[#This Row],[G&S reporting level indicator]]","v":0},null,null,null,null,null,null,{"$f":"T_DataComboFile[[#This Row],[2021/22 Baseline]]+T_DataComboFile[[#This Row],[2021/22 Reduction]]+T_DataComboFile[[#This Row],[2021/22 Increase]]","v":0},{"$f":"T_DataComboFile[[#This Row],[2022/23 Baseline]]+T_DataComboFile[[#This Row],[2022/23 Reduction]]+T_DataComboFile[[#This Row],[2022/23 Increase]]","v":0},{"$f":"T_DataComboFile[[#This Row],[2023/24 Baseline]]+T_DataComboFile[[#This Row],[2023/24 Reduction]]+T_DataComboFile[[#This Row],[2023/24 Increase]]","v":0}]
[null,null,"2021_22","ENE2020",36,3,1,null,70795,36,3,1,null,"070795","36|03|01",1,1,2,26,26,"01|01|02|26|26","National","Small Business Development","Integrated Cooperative Development","Cooperatives Development",null,"Current","Current payments","Goods and services","Inventory: Materials and supplies","Inventory: Materials and supplies",null,null,null,0,0,0,0,0,0,0,0,0,0,0,0,0,0,null,{"$f":"IF(T_DataComboFile[[#This Row],[G&S reporting level indicator]]=1,$AX$16,\"Not applicable\")","v":"Not applicable"},{"$f":"IF(AND($AX$16=\"Level 3\",T_DataComboFile[[#This Row],[Econ3]] = \"Goods and services\"),IF(T_DataComboFile[[#This Row],[Econ4]] = T_DataComboFile[[#This Row],[Econ3]],1,0),IF(AND($AX$16=\"Level 4\",T_DataComboFile[[#This Row],[Econ4]] = \"Goods and services\"),0,1))","v":0},{"$f":"T_DataComboFile[[#This Row],[2016/17_Source]]*T_DataComboFile[[#This Row],[G&S reporting level indicator]]","v":0},{"$f":"T_DataComboFile[[#This Row],[2017/18_Source]]*T_DataComboFile[[#This Row],[G&S reporting level indicator]]","v":0},{"$f":"T_DataComboFile[[#This Row],[2018/19_Source]]*T_DataComboFile[[#This Row],[G&S reporting level indicator]]","v":0},{"$f":"T_DataComboFile[[#This Row],[2019/20 Main appropriation_Source]]*T_DataComboFile[[#This Row],[G&S reporting level indicator]]","v":0},{"$f":"T_DataComboFile[[#This Row],[2019/20 Adjusted appropriation_Source]]*T_DataComboFile[[#This Row],[G&S reporting level indicator]]","v":0},{"$f":"T_DataComboFile[[#This Row],[2019/20 Revised estimate_Source]]*T_DataComboFile[[#This Row],[G&S reporting level indicator]]","v":0},{"$f":"T_DataComboFile[[#This Row],[2019/20 Preliminary outcome_Source]]*T_DataComboFile[[#This Row],[G&S reporting level indicator]]","v":0},{"$f":"T_DataComboFile[[#This Row],[2020/21 Original_Source]]*T_DataComboFile[[#This Row],[G&S reporting level indicator]]","v":0},{"$f":"T_DataComboFile[[#This Row],[2020/21 SAB_Source]]*T_DataComboFile[[#This Row],[G&S reporting level indicator]]","v":0},{"$f":"T_DataComboFile[[#This Row],[2020/21 Baseline_Source]]*T_DataComboFile[[#This Row],[G&S reporting level indicator]]","v":0},{"$f":"T_DataComboFile[[#This Row],[2021/22 Baseline_Source]]*T_DataComboFile[[#This Row],[G&S reporting level indicator]]","v":0},{"$f":"T_DataComboFile[[#This Row],[2022/23 Baseline_Source]]*T_DataComboFile[[#This Row],[G&S reporting level indicator]]","v":0},{"$f":"T_DataComboFile[[#This Row],[2023/24 Baseline_Source]]*T_DataComboFile[[#This Row],[G&S reporting level indicator]]","v":0},null,null,null,null,null,null,{"$f":"T_DataComboFile[[#This Row],[2021/22 Baseline]]+T_DataComboFile[[#This Row],[2021/22 Reduction]]+T_DataComboFile[[#This Row],[2021/22 Increase]]","v":0},{"$f":"T_DataComboFile[[#This Row],[2022/23 Baseline]]+T_DataComboFile[[#This Row],[2022/23 Reduction]]+T_DataComboFile[[#This Row],[2022/23 Increase]]","v":0},{"$f":"T_DataComboFile[[#This Row],[2023/24 Baseline]]+T_DataComboFile[[#This Row],[2023/24 Reduction]]+T_DataComboFile[[#This Row],[2023/24 Increase]]","v":0}]
[null,null,"2021_22","ENE2020",36,3,1,null,70796,36,3,1,null,"070796","36|03|01",1,1,2,27,27,"01|01|02|27|27","National","Small Business Development","Integrated Cooperative Development","Cooperatives Development",null,"Current","Current payments","Goods and services","Inventory: Medical supplies","Inventory: Medical supplies",null,null,null,0,0,0,0,0,0,0,0,0,0,0,0,0,0,null,{"$f":"IF(T_DataComboFile[[#This Row],[G&S reporting level indicator]]=1,$AX$16,\"Not applicable\")","v":"Not applicable"},{"$f":"IF(AND($AX$16=\"Level 3\",T_DataComboFile[[#This Row],[Econ3]] = \"Goods and services\"),IF(T_DataComboFile[[#This Row],[Econ4]] = T_DataComboFile[[#This Row],[Econ3]],1,0),IF(AND($AX$16=\"Level 4\",T_DataComboFile[[#This Row],[Econ4]] = \"Goods and services\"),0,1))","v":0},{"$f":"T_DataComboFile[[#This Row],[2016/17_Source]]*T_DataComboFile[[#This Row],[G&S reporting level indicator]]","v":0},{"$f":"T_DataComboFile[[#This Row],[2017/18_Source]]*T_DataComboFile[[#This Row],[G&S reporting level indicator]]","v":0},{"$f":"T_DataComboFile[[#This Row],[2018/19_Source]]*T_DataComboFile[[#This Row],[G&S reporting level indicator]]","v":0},{"$f":"T_DataComboFile[[#This Row],[2019/20 Main appropriation_Source]]*T_DataComboFile[[#This Row],[G&S reporting level indicator]]","v":0},{"$f":"T_DataComboFile[[#This Row],[2019/20 Adjusted appropriation_Source]]*T_DataComboFile[[#This Row],[G&S reporting level indicator]]","v":0},{"$f":"T_DataComboFile[[#This Row],[2019/20 Revised estimate_Source]]*T_DataComboFile[[#This Row],[G&S reporting level indicator]]","v":0},{"$f":"T_DataComboFile[[#This Row],[2019/20 Preliminary outcome_Source]]*T_DataComboFile[[#This Row],[G&S reporting level indicator]]","v":0},{"$f":"T_DataComboFile[[#This Row],[2020/21 Original_Source]]*T_DataComboFile[[#This Row],[G&S reporting level indicator]]","v":0},{"$f":"T_DataComboFile[[#This Row],[2020/21 SAB_Source]]*T_DataComboFile[[#This Row],[G&S reporting level indicator]]","v":0},{"$f":"T_DataComboFile[[#This Row],[2020/21 Baseline_Source]]*T_DataComboFile[[#This Row],[G&S reporting level indicator]]","v":0},{"$f":"T_DataComboFile[[#This Row],[2021/22 Baseline_Source]]*T_DataComboFile[[#This Row],[G&S reporting level indicator]]","v":0},{"$f":"T_DataComboFile[[#This Row],[2022/23 Baseline_Source]]*T_DataComboFile[[#This Row],[G&S reporting level indicator]]","v":0},{"$f":"T_DataComboFile[[#This Row],[2023/24 Baseline_Source]]*T_DataComboFile[[#This Row],[G&S reporting level indicator]]","v":0},null,null,null,null,null,null,{"$f":"T_DataComboFile[[#This Row],[2021/22 Baseline]]+T_DataComboFile[[#This Row],[2021/22 Reduction]]+T_DataComboFile[[#This Row],[2021/22 Increase]]","v":0},{"$f":"T_DataComboFile[[#This Row],[2022/23 Baseline]]+T_DataComboFile[[#This Row],[2022/23 Reduction]]+T_DataComboFile[[#This Row],[2022/23 Increase]]","v":0},{"$f":"T_DataComboFile[[#This Row],[2023/24 Baseline]]+T_DataComboFile[[#This Row],[2023/24 Reduction]]+T_DataComboFile[[#This Row],[2023/24 Increase]]","v":0}]
[null,null,"2021_22","ENE2020",36,3,1,null,70797,36,3,1,null,"070797","36|03|01",1,1,2,28,28,"01|01|02|28|28","National","Small Business Development","Integrated Cooperative Development","Cooperatives Development",null,"Current","Current payments","Goods and services","Inventory: Medicine","Inventory: Medicine",null,null,null,0,0,0,0,0,0,0,0,0,0,0,0,0,0,null,{"$f":"IF(T_DataComboFile[[#This Row],[G&S reporting level indicator]]=1,$AX$16,\"Not applicable\")","v":"Not applicable"},{"$f":"IF(AND($AX$16=\"Level 3\",T_DataComboFile[[#This Row],[Econ3]] = \"Goods and services\"),IF(T_DataComboFile[[#This Row],[Econ4]] = T_DataComboFile[[#This Row],[Econ3]],1,0),IF(AND($AX$16=\"Level 4\",T_DataComboFile[[#This Row],[Econ4]] = \"Goods and services\"),0,1))","v":0},{"$f":"T_DataComboFile[[#This Row],[2016/17_Source]]*T_DataComboFile[[#This Row],[G&S reporting level indicator]]","v":0},{"$f":"T_DataComboFile[[#This Row],[2017/18_Source]]*T_DataComboFile[[#This Row],[G&S reporting level indicator]]","v":0},{"$f":"T_DataComboFile[[#This Row],[2018/19_Source]]*T_DataComboFile[[#This Row],[G&S reporting level indicator]]","v":0},{"$f":"T_DataComboFile[[#This Row],[2019/20 Main appropriation_Source]]*T_DataComboFile[[#This Row],[G&S reporting level indicator]]","v":0},{"$f":"T_DataComboFile[[#This Row],[2019/20 Adjusted appropriation_Source]]*T_DataComboFile[[#This Row],[G&S reporting level indicator]]","v":0},{"$f":"T_DataComboFile[[#This Row],[2019/20 Revised estimate_Source]]*T_DataComboFile[[#This Row],[G&S reporting level indicator]]","v":0},{"$f":"T_DataComboFile[[#This Row],[2019/20 Preliminary outcome_Source]]*T_DataComboFile[[#This Row],[G&S reporting level indicator]]","v":0},{"$f":"T_DataComboFile[[#This Row],[2020/21 Original_Source]]*T_DataComboFile[[#This Row],[G&S reporting level indicator]]","v":0},{"$f":"T_DataComboFile[[#This Row],[2020/21 SAB_Source]]*T_DataComboFile[[#This Row],[G&S reporting level indicator]]","v":0},{"$f":"T_DataComboFile[[#This Row],[2020/21 Baseline_Source]]*T_DataComboFile[[#This Row],[G&S reporting level indicator]]","v":0},{"$f":"T_DataComboFile[[#This Row],[2021/22 Baseline_Source]]*T_DataComboFile[[#This Row],[G&S reporting level indicator]]","v":0},{"$f":"T_DataComboFile[[#This Row],[2022/23 Baseline_Source]]*T_DataComboFile[[#This Row],[G&S reporting level indicator]]","v":0},{"$f":"T_DataComboFile[[#This Row],[2023/24 Baseline_Source]]*T_DataComboFile[[#This Row],[G&S reporting level indicator]]","v":0},null,null,null,null,null,null,{"$f":"T_DataComboFile[[#This Row],[2021/22 Baseline]]+T_DataComboFile[[#This Row],[2021/22 Reduction]]+T_DataComboFile[[#This Row],[2021/22 Increase]]","v":0},{"$f":"T_DataComboFile[[#This Row],[2022/23 Baseline]]+T_DataComboFile[[#This Row],[2022/23 Reduction]]+T_DataComboFile[[#This Row],[2022/23 Increase]]","v":0},{"$f":"T_DataComboFile[[#This Row],[2023/24 Baseline]]+T_DataComboFile[[#This Row],[2023/24 Reduction]]+T_DataComboFile[[#This Row],[2023/24 Increase]]","v":0}]
[null,null,"2021_22","ENE2020",36,3,1,null,70798,36,3,1,null,"070798","36|03|01",1,1,2,29,29,"01|01|02|29|29","National","Small Business Development","Integrated Cooperative Development","Cooperatives Development",null,"Current","Current payments","Goods and services","Medsas inventory interface","Medsas inventory interface",null,null,null,0,0,0,0,0,0,0,0,0,0,0,0,0,0,null,{"$f":"IF(T_DataComboFile[[#This Row],[G&S reporting level indicator]]=1,$AX$16,\"Not applicable\")","v":"Not applicable"},{"$f":"IF(AND($AX$16=\"Level 3\",T_DataComboFile[[#This Row],[Econ3]] = \"Goods and services\"),IF(T_DataComboFile[[#This Row],[Econ4]] = T_DataComboFile[[#This Row],[Econ3]],1,0),IF(AND($AX$16=\"Level 4\",T_DataComboFile[[#This Row],[Econ4]] = \"Goods and services\"),0,1))","v":0},{"$f":"T_DataComboFile[[#This Row],[2016/17_Source]]*T_DataComboFile[[#This Row],[G&S reporting level indicator]]","v":0},{"$f":"T_DataComboFile[[#This Row],[2017/18_Source]]*T_DataComboFile[[#This Row],[G&S reporting level indicator]]","v":0},{"$f":"T_DataComboFile[[#This Row],[2018/19_Source]]*T_DataComboFile[[#This Row],[G&S reporting level indicator]]","v":0},{"$f":"T_DataComboFile[[#This Row],[2019/20 Main appropriation_Source]]*T_DataComboFile[[#This Row],[G&S reporting level indicator]]","v":0},{"$f":"T_DataComboFile[[#This Row],[2019/20 Adjusted appropriation_Source]]*T_DataComboFile[[#This Row],[G&S reporting level indicator]]","v":0},{"$f":"T_DataComboFile[[#This Row],[2019/20 Revised estimate_Source]]*T_DataComboFile[[#This Row],[G&S reporting level indicator]]","v":0},{"$f":"T_DataComboFile[[#This Row],[2019/20 Preliminary outcome_Source]]*T_DataComboFile[[#This Row],[G&S reporting level indicator]]","v":0},{"$f":"T_DataComboFile[[#This Row],[2020/21 Original_Source]]*T_DataComboFile[[#This Row],[G&S reporting level indicator]]","v":0},{"$f":"T_DataComboFile[[#This Row],[2020/21 SAB_Source]]*T_DataComboFile[[#This Row],[G&S reporting level indicator]]","v":0},{"$f":"T_DataComboFile[[#This Row],[2020/21 Baseline_Source]]*T_DataComboFile[[#This Row],[G&S reporting level indicator]]","v":0},{"$f":"T_DataComboFile[[#This Row],[2021/22 Baseline_Source]]*T_DataComboFile[[#This Row],[G&S reporting level indicator]]","v":0},{"$f":"T_DataComboFile[[#This Row],[2022/23 Baseline_Source]]*T_DataComboFile[[#This Row],[G&S reporting level indicator]]","v":0},{"$f":"T_DataComboFile[[#This Row],[2023/24 Baseline_Source]]*T_DataComboFile[[#This Row],[G&S reporting level indicator]]","v":0},null,null,null,null,null,null,{"$f":"T_DataComboFile[[#This Row],[2021/22 Baseline]]+T_DataComboFile[[#This Row],[2021/22 Reduction]]+T_DataComboFile[[#This Row],[2021/22 Increase]]","v":0},{"$f":"T_DataComboFile[[#This Row],[2022/23 Baseline]]+T_DataComboFile[[#This Row],[2022/23 Reduction]]+T_DataComboFile[[#This Row],[2022/23 Increase]]","v":0},{"$f":"T_DataComboFile[[#This Row],[2023/24 Baseline]]+T_DataComboFile[[#This Row],[2023/24 Reduction]]+T_DataComboFile[[#This Row],[2023/24 Increase]]","v":0}]
[null,null,"2021_22","ENE2020",36,3,1,null,70799,36,3,1,null,"070799","36|03|01",1,1,2,30,30,"01|01|02|30|30","National","Small Business Development","Integrated Cooperative Development","Cooperatives Development",null,"Current","Current payments","Goods and services","Inventory: Other supplies","Inventory: Other supplies",null,null,null,0,0,0,0,0,0,0,0,0,0,0,0,0,0,null,{"$f":"IF(T_DataComboFile[[#This Row],[G&S reporting level indicator]]=1,$AX$16,\"Not applicable\")","v":"Not applicable"},{"$f":"IF(AND($AX$16=\"Level 3\",T_DataComboFile[[#This Row],[Econ3]] = \"Goods and services\"),IF(T_DataComboFile[[#This Row],[Econ4]] = T_DataComboFile[[#This Row],[Econ3]],1,0),IF(AND($AX$16=\"Level 4\",T_DataComboFile[[#This Row],[Econ4]] = \"Goods and services\"),0,1))","v":0},{"$f":"T_DataComboFile[[#This Row],[2016/17_Source]]*T_DataComboFile[[#This Row],[G&S reporting level indicator]]","v":0},{"$f":"T_DataComboFile[[#This Row],[2017/18_Source]]*T_DataComboFile[[#This Row],[G&S reporting level indicator]]","v":0},{"$f":"T_DataComboFile[[#This Row],[2018/19_Source]]*T_DataComboFile[[#This Row],[G&S reporting level indicator]]","v":0},{"$f":"T_DataComboFile[[#This Row],[2019/20 Main appropriation_Source]]*T_DataComboFile[[#This Row],[G&S reporting level indicator]]","v":0},{"$f":"T_DataComboFile[[#This Row],[2019/20 Adjusted appropriation_Source]]*T_DataComboFile[[#This Row],[G&S reporting level indicator]]","v":0},{"$f":"T_DataComboFile[[#This Row],[2019/20 Revised estimate_Source]]*T_DataComboFile[[#This Row],[G&S reporting level indicator]]","v":0},{"$f":"T_DataComboFile[[#This Row],[2019/20 Preliminary outcome_Source]]*T_DataComboFile[[#This Row],[G&S reporting level indicator]]","v":0},{"$f":"T_DataComboFile[[#This Row],[2020/21 Original_Source]]*T_DataComboFile[[#This Row],[G&S reporting level indicator]]","v":0},{"$f":"T_DataComboFile[[#This Row],[2020/21 SAB_Source]]*T_DataComboFile[[#This Row],[G&S reporting level indicator]]","v":0},{"$f":"T_DataComboFile[[#This Row],[2020/21 Baseline_Source]]*T_DataComboFile[[#This Row],[G&S reporting level indicator]]","v":0},{"$f":"T_DataComboFile[[#This Row],[2021/22 Baseline_Source]]*T_DataComboFile[[#This Row],[G&S reporting level indicator]]","v":0},{"$f":"T_DataComboFile[[#This Row],[2022/23 Baseline_Source]]*T_DataComboFile[[#This Row],[G&S reporting level indicator]]","v":0},{"$f":"T_DataComboFile[[#This Row],[2023/24 Baseline_Source]]*T_DataComboFile[[#This Row],[G&S reporting level indicator]]","v":0},null,null,null,null,null,null,{"$f":"T_DataComboFile[[#This Row],[2021/22 Baseline]]+T_DataComboFile[[#This Row],[2021/22 Reduction]]+T_DataComboFile[[#This Row],[2021/22 Increase]]","v":0},{"$f":"T_DataComboFile[[#This Row],[2022/23 Baseline]]+T_DataComboFile[[#This Row],[2022/23 Reduction]]+T_DataComboFile[[#This Row],[2022/23 Increase]]","v":0},{"$f":"T_DataComboFile[[#This Row],[2023/24 Baseline]]+T_DataComboFile[[#This Row],[2023/24 Reduction]]+T_DataComboFile[[#This Row],[2023/24 Increase]]","v":0}]
["NAT|Non-transfer item","36|Consumable supplies","2021_22","ENE2020",36,3,1,17347,70800,36,3,1,17347,"070800","36|03|01",1,1,2,31,31,"01|01|02|31|31","National","Small Business Development","Integrated Cooperative Development","Cooperatives Development","Non-transfer item","Current","Current payments","Goods and services","Consumable supplies","Consumable supplies","Economic development","Industrialisation and exports","NAT",1,2,4,0,6,6,6,0,0,0,0,0,0,1,null,{"$f":"IF(T_DataComboFile[[#This Row],[G&S reporting level indicator]]=1,$AX$16,\"Not applicable\")","v":"Not applicable"},{"$f":"IF(AND($AX$16=\"Level 3\",T_DataComboFile[[#This Row],[Econ3]] = \"Goods and services\"),IF(T_DataComboFile[[#This Row],[Econ4]] = T_DataComboFile[[#This Row],[Econ3]],1,0),IF(AND($AX$16=\"Level 4\",T_DataComboFile[[#This Row],[Econ4]] = \"Goods and services\"),0,1))","v":0},{"$f":"T_DataComboFile[[#This Row],[2016/17_Source]]*T_DataComboFile[[#This Row],[G&S reporting level indicator]]","v":0},{"$f":"T_DataComboFile[[#This Row],[2017/18_Source]]*T_DataComboFile[[#This Row],[G&S reporting level indicator]]","v":0},{"$f":"T_DataComboFile[[#This Row],[2018/19_Source]]*T_DataComboFile[[#This Row],[G&S reporting level indicator]]","v":0},{"$f":"T_DataComboFile[[#This Row],[2019/20 Main appropriation_Source]]*T_DataComboFile[[#This Row],[G&S reporting level indicator]]","v":0},{"$f":"T_DataComboFile[[#This Row],[2019/20 Adjusted appropriation_Source]]*T_DataComboFile[[#This Row],[G&S reporting level indicator]]","v":0},{"$f":"T_DataComboFile[[#This Row],[2019/20 Revised estimate_Source]]*T_DataComboFile[[#This Row],[G&S reporting level indicator]]","v":0},{"$f":"T_DataComboFile[[#This Row],[2019/20 Preliminary outcome_Source]]*T_DataComboFile[[#This Row],[G&S reporting level indicator]]","v":0},{"$f":"T_DataComboFile[[#This Row],[2020/21 Original_Source]]*T_DataComboFile[[#This Row],[G&S reporting level indicator]]","v":0},{"$f":"T_DataComboFile[[#This Row],[2020/21 SAB_Source]]*T_DataComboFile[[#This Row],[G&S reporting level indicator]]","v":0},{"$f":"T_DataComboFile[[#This Row],[2020/21 Baseline_Source]]*T_DataComboFile[[#This Row],[G&S reporting level indicator]]","v":0},{"$f":"T_DataComboFile[[#This Row],[2021/22 Baseline_Source]]*T_DataComboFile[[#This Row],[G&S reporting level indicator]]","v":0},{"$f":"T_DataComboFile[[#This Row],[2022/23 Baseline_Source]]*T_DataComboFile[[#This Row],[G&S reporting level indicator]]","v":0},{"$f":"T_DataComboFile[[#This Row],[2023/24 Baseline_Source]]*T_DataComboFile[[#This Row],[G&S reporting level indicator]]","v":0},null,null,null,null,null,null,{"$f":"T_DataComboFile[[#This Row],[2021/22 Baseline]]+T_DataComboFile[[#This Row],[2021/22 Reduction]]+T_DataComboFile[[#This Row],[2021/22 Increase]]","v":0},{"$f":"T_DataComboFile[[#This Row],[2022/23 Baseline]]+T_DataComboFile[[#This Row],[2022/23 Reduction]]+T_DataComboFile[[#This Row],[2022/23 Increase]]","v":0},{"$f":"T_DataComboFile[[#This Row],[2023/24 Baseline]]+T_DataComboFile[[#This Row],[2023/24 Reduction]]+T_DataComboFile[[#This Row],[2023/24 Increase]]","v":0}]
["NAT|Non-transfer item","36|Consumables: Stationery, printing and office supplies","2021_22","ENE2020",36,3,1,17348,70801,36,3,1,17348,"070801","36|03|01",1,1,2,32,32,"01|01|02|32|32","National","Small Business Development","Integrated Cooperative Development","Cooperatives Development","Non-transfer item","Current","Current payments","Goods and services","Consumables: Stationery, printing and office supplies","Consumables: Stationery, printing and office supplies","Economic development","Industrialisation and exports","NAT",3,38,113,0,5,5,5,10,10,10,11,12,13,1,null,{"$f":"IF(T_DataComboFile[[#This Row],[G&S reporting level indicator]]=1,$AX$16,\"Not applicable\")","v":"Not applicable"},{"$f":"IF(AND($AX$16=\"Level 3\",T_DataComboFile[[#This Row],[Econ3]] = \"Goods and services\"),IF(T_DataComboFile[[#This Row],[Econ4]] = T_DataComboFile[[#This Row],[Econ3]],1,0),IF(AND($AX$16=\"Level 4\",T_DataComboFile[[#This Row],[Econ4]] = \"Goods and services\"),0,1))","v":0},{"$f":"T_DataComboFile[[#This Row],[2016/17_Source]]*T_DataComboFile[[#This Row],[G&S reporting level indicator]]","v":0},{"$f":"T_DataComboFile[[#This Row],[2017/18_Source]]*T_DataComboFile[[#This Row],[G&S reporting level indicator]]","v":0},{"$f":"T_DataComboFile[[#This Row],[2018/19_Source]]*T_DataComboFile[[#This Row],[G&S reporting level indicator]]","v":0},{"$f":"T_DataComboFile[[#This Row],[2019/20 Main appropriation_Source]]*T_DataComboFile[[#This Row],[G&S reporting level indicator]]","v":0},{"$f":"T_DataComboFile[[#This Row],[2019/20 Adjusted appropriation_Source]]*T_DataComboFile[[#This Row],[G&S reporting level indicator]]","v":0},{"$f":"T_DataComboFile[[#This Row],[2019/20 Revised estimate_Source]]*T_DataComboFile[[#This Row],[G&S reporting level indicator]]","v":0},{"$f":"T_DataComboFile[[#This Row],[2019/20 Preliminary outcome_Source]]*T_DataComboFile[[#This Row],[G&S reporting level indicator]]","v":0},{"$f":"T_DataComboFile[[#This Row],[2020/21 Original_Source]]*T_DataComboFile[[#This Row],[G&S reporting level indicator]]","v":0},{"$f":"T_DataComboFile[[#This Row],[2020/21 SAB_Source]]*T_DataComboFile[[#This Row],[G&S reporting level indicator]]","v":0},{"$f":"T_DataComboFile[[#This Row],[2020/21 Baseline_Source]]*T_DataComboFile[[#This Row],[G&S reporting level indicator]]","v":0},{"$f":"T_DataComboFile[[#This Row],[2021/22 Baseline_Source]]*T_DataComboFile[[#This Row],[G&S reporting level indicator]]","v":0},{"$f":"T_DataComboFile[[#This Row],[2022/23 Baseline_Source]]*T_DataComboFile[[#This Row],[G&S reporting level indicator]]","v":0},{"$f":"T_DataComboFile[[#This Row],[2023/24 Baseline_Source]]*T_DataComboFile[[#This Row],[G&S reporting level indicator]]","v":0},null,null,null,null,null,null,{"$f":"T_DataComboFile[[#This Row],[2021/22 Baseline]]+T_DataComboFile[[#This Row],[2021/22 Reduction]]+T_DataComboFile[[#This Row],[2021/22 Increase]]","v":0},{"$f":"T_DataComboFile[[#This Row],[2022/23 Baseline]]+T_DataComboFile[[#This Row],[2022/23 Reduction]]+T_DataComboFile[[#This Row],[2022/23 Increase]]","v":0},{"$f":"T_DataComboFile[[#This Row],[2023/24 Baseline]]+T_DataComboFile[[#This Row],[2023/24 Reduction]]+T_DataComboFile[[#This Row],[2023/24 Increase]]","v":0}]
["NAT|Non-transfer item","36|Operating leases","2021_22","ENE2020",36,3,1,17349,70802,36,3,1,17349,"070802","36|03|01",1,1,2,33,33,"01|01|02|33|33","National","Small Business Development","Integrated Cooperative Development","Cooperatives Development","Non-transfer item","Current","Current payments","Goods and services","Operating leases","Operating leases","Economic development","Industrialisation and exports","NAT",2,0,0,0,0,0,0,0,0,0,0,0,0,1,null,{"$f":"IF(T_DataComboFile[[#This Row],[G&S reporting level indicator]]=1,$AX$16,\"Not applicable\")","v":"Not applicable"},{"$f":"IF(AND($AX$16=\"Level 3\",T_DataComboFile[[#This Row],[Econ3]] = \"Goods and services\"),IF(T_DataComboFile[[#This Row],[Econ4]] = T_DataComboFile[[#This Row],[Econ3]],1,0),IF(AND($AX$16=\"Level 4\",T_DataComboFile[[#This Row],[Econ4]] = \"Goods and services\"),0,1))","v":0},{"$f":"T_DataComboFile[[#This Row],[2016/17_Source]]*T_DataComboFile[[#This Row],[G&S reporting level indicator]]","v":0},{"$f":"T_DataComboFile[[#This Row],[2017/18_Source]]*T_DataComboFile[[#This Row],[G&S reporting level indicator]]","v":0},{"$f":"T_DataComboFile[[#This Row],[2018/19_Source]]*T_DataComboFile[[#This Row],[G&S reporting level indicator]]","v":0},{"$f":"T_DataComboFile[[#This Row],[2019/20 Main appropriation_Source]]*T_DataComboFile[[#This Row],[G&S reporting level indicator]]","v":0},{"$f":"T_DataComboFile[[#This Row],[2019/20 Adjusted appropriation_Source]]*T_DataComboFile[[#This Row],[G&S reporting level indicator]]","v":0},{"$f":"T_DataComboFile[[#This Row],[2019/20 Revised estimate_Source]]*T_DataComboFile[[#This Row],[G&S reporting level indicator]]","v":0},{"$f":"T_DataComboFile[[#This Row],[2019/20 Preliminary outcome_Source]]*T_DataComboFile[[#This Row],[G&S reporting level indicator]]","v":0},{"$f":"T_DataComboFile[[#This Row],[2020/21 Original_Source]]*T_DataComboFile[[#This Row],[G&S reporting level indicator]]","v":0},{"$f":"T_DataComboFile[[#This Row],[2020/21 SAB_Source]]*T_DataComboFile[[#This Row],[G&S reporting level indicator]]","v":0},{"$f":"T_DataComboFile[[#This Row],[2020/21 Baseline_Source]]*T_DataComboFile[[#This Row],[G&S reporting level indicator]]","v":0},{"$f":"T_DataComboFile[[#This Row],[2021/22 Baseline_Source]]*T_DataComboFile[[#This Row],[G&S reporting level indicator]]","v":0},{"$f":"T_DataComboFile[[#This Row],[2022/23 Baseline_Source]]*T_DataComboFile[[#This Row],[G&S reporting level indicator]]","v":0},{"$f":"T_DataComboFile[[#This Row],[2023/24 Baseline_Source]]*T_DataComboFile[[#This Row],[G&S reporting level indicator]]","v":0},null,null,null,null,null,null,{"$f":"T_DataComboFile[[#This Row],[2021/22 Baseline]]+T_DataComboFile[[#This Row],[2021/22 Reduction]]+T_DataComboFile[[#This Row],[2021/22 Increase]]","v":0},{"$f":"T_DataComboFile[[#This Row],[2022/23 Baseline]]+T_DataComboFile[[#This Row],[2022/23 Reduction]]+T_DataComboFile[[#This Row],[2022/23 Increase]]","v":0},{"$f":"T_DataComboFile[[#This Row],[2023/24 Baseline]]+T_DataComboFile[[#This Row],[2023/24 Reduction]]+T_DataComboFile[[#This Row],[2023/24 Increase]]","v":0}]
[null,null,"2021_22","ENE2020",36,3,1,null,70803,36,3,1,null,"070803","36|03|01",1,1,2,34,34,"01|01|02|34|34","National","Small Business Development","Integrated Cooperative Development","Cooperatives Development",null,"Current","Current payments","Goods and services","Rental and hiring","Rental and hiring",null,null,null,0,0,0,0,0,0,0,0,0,0,0,0,0,0,null,{"$f":"IF(T_DataComboFile[[#This Row],[G&S reporting level indicator]]=1,$AX$16,\"Not applicable\")","v":"Not applicable"},{"$f":"IF(AND($AX$16=\"Level 3\",T_DataComboFile[[#This Row],[Econ3]] = \"Goods and services\"),IF(T_DataComboFile[[#This Row],[Econ4]] = T_DataComboFile[[#This Row],[Econ3]],1,0),IF(AND($AX$16=\"Level 4\",T_DataComboFile[[#This Row],[Econ4]] = \"Goods and services\"),0,1))","v":0},{"$f":"T_DataComboFile[[#This Row],[2016/17_Source]]*T_DataComboFile[[#This Row],[G&S reporting level indicator]]","v":0},{"$f":"T_DataComboFile[[#This Row],[2017/18_Source]]*T_DataComboFile[[#This Row],[G&S reporting level indicator]]","v":0},{"$f":"T_DataComboFile[[#This Row],[2018/19_Source]]*T_DataComboFile[[#This Row],[G&S reporting level indicator]]","v":0},{"$f":"T_DataComboFile[[#This Row],[2019/20 Main appropriation_Source]]*T_DataComboFile[[#This Row],[G&S reporting level indicator]]","v":0},{"$f":"T_DataComboFile[[#This Row],[2019/20 Adjusted appropriation_Source]]*T_DataComboFile[[#This Row],[G&S reporting level indicator]]","v":0},{"$f":"T_DataComboFile[[#This Row],[2019/20 Revised estimate_Source]]*T_DataComboFile[[#This Row],[G&S reporting level indicator]]","v":0},{"$f":"T_DataComboFile[[#This Row],[2019/20 Preliminary outcome_Source]]*T_DataComboFile[[#This Row],[G&S reporting level indicator]]","v":0},{"$f":"T_DataComboFile[[#This Row],[2020/21 Original_Source]]*T_DataComboFile[[#This Row],[G&S reporting level indicator]]","v":0},{"$f":"T_DataComboFile[[#This Row],[2020/21 SAB_Source]]*T_DataComboFile[[#This Row],[G&S reporting level indicator]]","v":0},{"$f":"T_DataComboFile[[#This Row],[2020/21 Baseline_Source]]*T_DataComboFile[[#This Row],[G&S reporting level indicator]]","v":0},{"$f":"T_DataComboFile[[#This Row],[2021/22 Baseline_Source]]*T_DataComboFile[[#This Row],[G&S reporting level indicator]]","v":0},{"$f":"T_DataComboFile[[#This Row],[2022/23 Baseline_Source]]*T_DataComboFile[[#This Row],[G&S reporting level indicator]]","v":0},{"$f":"T_DataComboFile[[#This Row],[2023/24 Baseline_Source]]*T_DataComboFile[[#This Row],[G&S reporting level indicator]]","v":0},null,null,null,null,null,null,{"$f":"T_DataComboFile[[#This Row],[2021/22 Baseline]]+T_DataComboFile[[#This Row],[2021/22 Reduction]]+T_DataComboFile[[#This Row],[2021/22 Increase]]","v":0},{"$f":"T_DataComboFile[[#This Row],[2022/23 Baseline]]+T_DataComboFile[[#This Row],[2022/23 Reduction]]+T_DataComboFile[[#This Row],[2022/23 Increase]]","v":0},{"$f":"T_DataComboFile[[#This Row],[2023/24 Baseline]]+T_DataComboFile[[#This Row],[2023/24 Reduction]]+T_DataComboFile[[#This Row],[2023/24 Increase]]","v":0}]
[null,null,"2021_22","ENE2020",36,3,1,null,70804,36,3,1,null,"070804","36|03|01",1,1,2,35,35,"01|01|02|35|35","National","Small Business Development","Integrated Cooperative Development","Cooperatives Development",null,"Current","Current payments","Goods and services","Property payments","Property payments",null,null,null,0,0,0,0,0,0,0,0,0,0,0,0,0,0,null,{"$f":"IF(T_DataComboFile[[#This Row],[G&S reporting level indicator]]=1,$AX$16,\"Not applicable\")","v":"Not applicable"},{"$f":"IF(AND($AX$16=\"Level 3\",T_DataComboFile[[#This Row],[Econ3]] = \"Goods and services\"),IF(T_DataComboFile[[#This Row],[Econ4]] = T_DataComboFile[[#This Row],[Econ3]],1,0),IF(AND($AX$16=\"Level 4\",T_DataComboFile[[#This Row],[Econ4]] = \"Goods and services\"),0,1))","v":0},{"$f":"T_DataComboFile[[#This Row],[2016/17_Source]]*T_DataComboFile[[#This Row],[G&S reporting level indicator]]","v":0},{"$f":"T_DataComboFile[[#This Row],[2017/18_Source]]*T_DataComboFile[[#This Row],[G&S reporting level indicator]]","v":0},{"$f":"T_DataComboFile[[#This Row],[2018/19_Source]]*T_DataComboFile[[#This Row],[G&S reporting level indicator]]","v":0},{"$f":"T_DataComboFile[[#This Row],[2019/20 Main appropriation_Source]]*T_DataComboFile[[#This Row],[G&S reporting level indicator]]","v":0},{"$f":"T_DataComboFile[[#This Row],[2019/20 Adjusted appropriation_Source]]*T_DataComboFile[[#This Row],[G&S reporting level indicator]]","v":0},{"$f":"T_DataComboFile[[#This Row],[2019/20 Revised estimate_Source]]*T_DataComboFile[[#This Row],[G&S reporting level indicator]]","v":0},{"$f":"T_DataComboFile[[#This Row],[2019/20 Preliminary outcome_Source]]*T_DataComboFile[[#This Row],[G&S reporting level indicator]]","v":0},{"$f":"T_DataComboFile[[#This Row],[2020/21 Original_Source]]*T_DataComboFile[[#This Row],[G&S reporting level indicator]]","v":0},{"$f":"T_DataComboFile[[#This Row],[2020/21 SAB_Source]]*T_DataComboFile[[#This Row],[G&S reporting level indicator]]","v":0},{"$f":"T_DataComboFile[[#This Row],[2020/21 Baseline_Source]]*T_DataComboFile[[#This Row],[G&S reporting level indicator]]","v":0},{"$f":"T_DataComboFile[[#This Row],[2021/22 Baseline_Source]]*T_DataComboFile[[#This Row],[G&S reporting level indicator]]","v":0},{"$f":"T_DataComboFile[[#This Row],[2022/23 Baseline_Source]]*T_DataComboFile[[#This Row],[G&S reporting level indicator]]","v":0},{"$f":"T_DataComboFile[[#This Row],[2023/24 Baseline_Source]]*T_DataComboFile[[#This Row],[G&S reporting level indicator]]","v":0},null,null,null,null,null,null,{"$f":"T_DataComboFile[[#This Row],[2021/22 Baseline]]+T_DataComboFile[[#This Row],[2021/22 Reduction]]+T_DataComboFile[[#This Row],[2021/22 Increase]]","v":0},{"$f":"T_DataComboFile[[#This Row],[2022/23 Baseline]]+T_DataComboFile[[#This Row],[2022/23 Reduction]]+T_DataComboFile[[#This Row],[2022/23 Increase]]","v":0},{"$f":"T_DataComboFile[[#This Row],[2023/24 Baseline]]+T_DataComboFile[[#This Row],[2023/24 Reduction]]+T_DataComboFile[[#This Row],[2023/24 Increase]]","v":0}]
[null,null,"2021_22","ENE2020",36,3,1,null,70805,36,3,1,null,"070805","36|03|01",1,1,2,36,36,"01|01|02|36|36","National","Small Business Development","Integrated Cooperative Development","Cooperatives Development",null,"Current","Current payments","Goods and services","Transport provided: Departmental activity","Transport provided: Departmental activity",null,null,null,0,0,0,0,0,0,0,0,0,0,0,0,0,0,null,{"$f":"IF(T_DataComboFile[[#This Row],[G&S reporting level indicator]]=1,$AX$16,\"Not applicable\")","v":"Not applicable"},{"$f":"IF(AND($AX$16=\"Level 3\",T_DataComboFile[[#This Row],[Econ3]] = \"Goods and services\"),IF(T_DataComboFile[[#This Row],[Econ4]] = T_DataComboFile[[#This Row],[Econ3]],1,0),IF(AND($AX$16=\"Level 4\",T_DataComboFile[[#This Row],[Econ4]] = \"Goods and services\"),0,1))","v":0},{"$f":"T_DataComboFile[[#This Row],[2016/17_Source]]*T_DataComboFile[[#This Row],[G&S reporting level indicator]]","v":0},{"$f":"T_DataComboFile[[#This Row],[2017/18_Source]]*T_DataComboFile[[#This Row],[G&S reporting level indicator]]","v":0},{"$f":"T_DataComboFile[[#This Row],[2018/19_Source]]*T_DataComboFile[[#This Row],[G&S reporting level indicator]]","v":0},{"$f":"T_DataComboFile[[#This Row],[2019/20 Main appropriation_Source]]*T_DataComboFile[[#This Row],[G&S reporting level indicator]]","v":0},{"$f":"T_DataComboFile[[#This Row],[2019/20 Adjusted appropriation_Source]]*T_DataComboFile[[#This Row],[G&S reporting level indicator]]","v":0},{"$f":"T_DataComboFile[[#This Row],[2019/20 Revised estimate_Source]]*T_DataComboFile[[#This Row],[G&S reporting level indicator]]","v":0},{"$f":"T_DataComboFile[[#This Row],[2019/20 Preliminary outcome_Source]]*T_DataComboFile[[#This Row],[G&S reporting level indicator]]","v":0},{"$f":"T_DataComboFile[[#This Row],[2020/21 Original_Source]]*T_DataComboFile[[#This Row],[G&S reporting level indicator]]","v":0},{"$f":"T_DataComboFile[[#This Row],[2020/21 SAB_Source]]*T_DataComboFile[[#This Row],[G&S reporting level indicator]]","v":0},{"$f":"T_DataComboFile[[#This Row],[2020/21 Baseline_Source]]*T_DataComboFile[[#This Row],[G&S reporting level indicator]]","v":0},{"$f":"T_DataComboFile[[#This Row],[2021/22 Baseline_Source]]*T_DataComboFile[[#This Row],[G&S reporting level indicator]]","v":0},{"$f":"T_DataComboFile[[#This Row],[2022/23 Baseline_Source]]*T_DataComboFile[[#This Row],[G&S reporting level indicator]]","v":0},{"$f":"T_DataComboFile[[#This Row],[2023/24 Baseline_Source]]*T_DataComboFile[[#This Row],[G&S reporting level indicator]]","v":0},null,null,null,null,null,null,{"$f":"T_DataComboFile[[#This Row],[2021/22 Baseline]]+T_DataComboFile[[#This Row],[2021/22 Reduction]]+T_DataComboFile[[#This Row],[2021/22 Increase]]","v":0},{"$f":"T_DataComboFile[[#This Row],[2022/23 Baseline]]+T_DataComboFile[[#This Row],[2022/23 Reduction]]+T_DataComboFile[[#This Row],[2022/23 Increase]]","v":0},{"$f":"T_DataComboFile[[#This Row],[2023/24 Baseline]]+T_DataComboFile[[#This Row],[2023/24 Reduction]]+T_DataComboFile[[#This Row],[2023/24 Increase]]","v":0}]
["NAT|Non-transfer item","36|Travel and subsistence","2021_22","ENE2020",36,3,1,17350,70806,36,3,1,17350,"070806","36|03|01",1,1,2,37,37,"01|01|02|37|37","National","Small Business Development","Integrated Cooperative Development","Cooperatives Development","Non-transfer item","Current","Current payments","Goods and services","Travel and subsistence","Travel and subsistence","Economic development","Industrialisation and exports","NAT",775,1621,990,1450,1397,1397,1397,1545,545,1545,1349,1490,1556,1,null,{"$f":"IF(T_DataComboFile[[#This Row],[G&S reporting level indicator]]=1,$AX$16,\"Not applicable\")","v":"Not applicable"},{"$f":"IF(AND($AX$16=\"Level 3\",T_DataComboFile[[#This Row],[Econ3]] = \"Goods and services\"),IF(T_DataComboFile[[#This Row],[Econ4]] = T_DataComboFile[[#This Row],[Econ3]],1,0),IF(AND($AX$16=\"Level 4\",T_DataComboFile[[#This Row],[Econ4]] = \"Goods and services\"),0,1))","v":0},{"$f":"T_DataComboFile[[#This Row],[2016/17_Source]]*T_DataComboFile[[#This Row],[G&S reporting level indicator]]","v":0},{"$f":"T_DataComboFile[[#This Row],[2017/18_Source]]*T_DataComboFile[[#This Row],[G&S reporting level indicator]]","v":0},{"$f":"T_DataComboFile[[#This Row],[2018/19_Source]]*T_DataComboFile[[#This Row],[G&S reporting level indicator]]","v":0},{"$f":"T_DataComboFile[[#This Row],[2019/20 Main appropriation_Source]]*T_DataComboFile[[#This Row],[G&S reporting level indicator]]","v":0},{"$f":"T_DataComboFile[[#This Row],[2019/20 Adjusted appropriation_Source]]*T_DataComboFile[[#This Row],[G&S reporting level indicator]]","v":0},{"$f":"T_DataComboFile[[#This Row],[2019/20 Revised estimate_Source]]*T_DataComboFile[[#This Row],[G&S reporting level indicator]]","v":0},{"$f":"T_DataComboFile[[#This Row],[2019/20 Preliminary outcome_Source]]*T_DataComboFile[[#This Row],[G&S reporting level indicator]]","v":0},{"$f":"T_DataComboFile[[#This Row],[2020/21 Original_Source]]*T_DataComboFile[[#This Row],[G&S reporting level indicator]]","v":0},{"$f":"T_DataComboFile[[#This Row],[2020/21 SAB_Source]]*T_DataComboFile[[#This Row],[G&S reporting level indicator]]","v":0},{"$f":"T_DataComboFile[[#This Row],[2020/21 Baseline_Source]]*T_DataComboFile[[#This Row],[G&S reporting level indicator]]","v":0},{"$f":"T_DataComboFile[[#This Row],[2021/22 Baseline_Source]]*T_DataComboFile[[#This Row],[G&S reporting level indicator]]","v":0},{"$f":"T_DataComboFile[[#This Row],[2022/23 Baseline_Source]]*T_DataComboFile[[#This Row],[G&S reporting level indicator]]","v":0},{"$f":"T_DataComboFile[[#This Row],[2023/24 Baseline_Source]]*T_DataComboFile[[#This Row],[G&S reporting level indicator]]","v":0},null,null,null,null,null,null,{"$f":"T_DataComboFile[[#This Row],[2021/22 Baseline]]+T_DataComboFile[[#This Row],[2021/22 Reduction]]+T_DataComboFile[[#This Row],[2021/22 Increase]]","v":0},{"$f":"T_DataComboFile[[#This Row],[2022/23 Baseline]]+T_DataComboFile[[#This Row],[2022/23 Reduction]]+T_DataComboFile[[#This Row],[2022/23 Increase]]","v":0},{"$f":"T_DataComboFile[[#This Row],[2023/24 Baseline]]+T_DataComboFile[[#This Row],[2023/24 Reduction]]+T_DataComboFile[[#This Row],[2023/24 Increase]]","v":0}]
[null,null,"2021_22","ENE2020",36,3,1,null,70807,36,3,1,null,"070807","36|03|01",1,1,2,38,38,"01|01|02|38|38","National","Small Business Development","Integrated Cooperative Development","Cooperatives Development",null,"Current","Current payments","Goods and services","Training and development","Training and development",null,null,null,0,0,0,0,0,0,0,0,0,0,0,0,0,0,null,{"$f":"IF(T_DataComboFile[[#This Row],[G&S reporting level indicator]]=1,$AX$16,\"Not applicable\")","v":"Not applicable"},{"$f":"IF(AND($AX$16=\"Level 3\",T_DataComboFile[[#This Row],[Econ3]] = \"Goods and services\"),IF(T_DataComboFile[[#This Row],[Econ4]] = T_DataComboFile[[#This Row],[Econ3]],1,0),IF(AND($AX$16=\"Level 4\",T_DataComboFile[[#This Row],[Econ4]] = \"Goods and services\"),0,1))","v":0},{"$f":"T_DataComboFile[[#This Row],[2016/17_Source]]*T_DataComboFile[[#This Row],[G&S reporting level indicator]]","v":0},{"$f":"T_DataComboFile[[#This Row],[2017/18_Source]]*T_DataComboFile[[#This Row],[G&S reporting level indicator]]","v":0},{"$f":"T_DataComboFile[[#This Row],[2018/19_Source]]*T_DataComboFile[[#This Row],[G&S reporting level indicator]]","v":0},{"$f":"T_DataComboFile[[#This Row],[2019/20 Main appropriation_Source]]*T_DataComboFile[[#This Row],[G&S reporting level indicator]]","v":0},{"$f":"T_DataComboFile[[#This Row],[2019/20 Adjusted appropriation_Source]]*T_DataComboFile[[#This Row],[G&S reporting level indicator]]","v":0},{"$f":"T_DataComboFile[[#This Row],[2019/20 Revised estimate_Source]]*T_DataComboFile[[#This Row],[G&S reporting level indicator]]","v":0},{"$f":"T_DataComboFile[[#This Row],[2019/20 Preliminary outcome_Source]]*T_DataComboFile[[#This Row],[G&S reporting level indicator]]","v":0},{"$f":"T_DataComboFile[[#This Row],[2020/21 Original_Source]]*T_DataComboFile[[#This Row],[G&S reporting level indicator]]","v":0},{"$f":"T_DataComboFile[[#This Row],[2020/21 SAB_Source]]*T_DataComboFile[[#This Row],[G&S reporting level indicator]]","v":0},{"$f":"T_DataComboFile[[#This Row],[2020/21 Baseline_Source]]*T_DataComboFile[[#This Row],[G&S reporting level indicator]]","v":0},{"$f":"T_DataComboFile[[#This Row],[2021/22 Baseline_Source]]*T_DataComboFile[[#This Row],[G&S reporting level indicator]]","v":0},{"$f":"T_DataComboFile[[#This Row],[2022/23 Baseline_Source]]*T_DataComboFile[[#This Row],[G&S reporting level indicator]]","v":0},{"$f":"T_DataComboFile[[#This Row],[2023/24 Baseline_Source]]*T_DataComboFile[[#This Row],[G&S reporting level indicator]]","v":0},null,null,null,null,null,null,{"$f":"T_DataComboFile[[#This Row],[2021/22 Baseline]]+T_DataComboFile[[#This Row],[2021/22 Reduction]]+T_DataComboFile[[#This Row],[2021/22 Increase]]","v":0},{"$f":"T_DataComboFile[[#This Row],[2022/23 Baseline]]+T_DataComboFile[[#This Row],[2022/23 Reduction]]+T_DataComboFile[[#This Row],[2022/23 Increase]]","v":0},{"$f":"T_DataComboFile[[#This Row],[2023/24 Baseline]]+T_DataComboFile[[#This Row],[2023/24 Reduction]]+T_DataComboFile[[#This Row],[2023/24 Increase]]","v":0}]
["NAT|Non-transfer item","36|Operating payments","2021_22","ENE2020",36,3,1,17351,70808,36,3,1,17351,"070808","36|03|01",1,1,2,39,39,"01|01|02|39|39","National","Small Business Development","Integrated Cooperative Development","Cooperatives Development","Non-transfer item","Current","Current payments","Goods and services","Operating payments","Operating payments","Economic development","Industrialisation and exports","NAT",2,6,0,23,23,23,23,0,0,0,0,0,0,1,null,{"$f":"IF(T_DataComboFile[[#This Row],[G&S reporting level indicator]]=1,$AX$16,\"Not applicable\")","v":"Not applicable"},{"$f":"IF(AND($AX$16=\"Level 3\",T_DataComboFile[[#This Row],[Econ3]] = \"Goods and services\"),IF(T_DataComboFile[[#This Row],[Econ4]] = T_DataComboFile[[#This Row],[Econ3]],1,0),IF(AND($AX$16=\"Level 4\",T_DataComboFile[[#This Row],[Econ4]] = \"Goods and services\"),0,1))","v":0},{"$f":"T_DataComboFile[[#This Row],[2016/17_Source]]*T_DataComboFile[[#This Row],[G&S reporting level indicator]]","v":0},{"$f":"T_DataComboFile[[#This Row],[2017/18_Source]]*T_DataComboFile[[#This Row],[G&S reporting level indicator]]","v":0},{"$f":"T_DataComboFile[[#This Row],[2018/19_Source]]*T_DataComboFile[[#This Row],[G&S reporting level indicator]]","v":0},{"$f":"T_DataComboFile[[#This Row],[2019/20 Main appropriation_Source]]*T_DataComboFile[[#This Row],[G&S reporting level indicator]]","v":0},{"$f":"T_DataComboFile[[#This Row],[2019/20 Adjusted appropriation_Source]]*T_DataComboFile[[#This Row],[G&S reporting level indicator]]","v":0},{"$f":"T_DataComboFile[[#This Row],[2019/20 Revised estimate_Source]]*T_DataComboFile[[#This Row],[G&S reporting level indicator]]","v":0},{"$f":"T_DataComboFile[[#This Row],[2019/20 Preliminary outcome_Source]]*T_DataComboFile[[#This Row],[G&S reporting level indicator]]","v":0},{"$f":"T_DataComboFile[[#This Row],[2020/21 Original_Source]]*T_DataComboFile[[#This Row],[G&S reporting level indicator]]","v":0},{"$f":"T_DataComboFile[[#This Row],[2020/21 SAB_Source]]*T_DataComboFile[[#This Row],[G&S reporting level indicator]]","v":0},{"$f":"T_DataComboFile[[#This Row],[2020/21 Baseline_Source]]*T_DataComboFile[[#This Row],[G&S reporting level indicator]]","v":0},{"$f":"T_DataComboFile[[#This Row],[2021/22 Baseline_Source]]*T_DataComboFile[[#This Row],[G&S reporting level indicator]]","v":0},{"$f":"T_DataComboFile[[#This Row],[2022/23 Baseline_Source]]*T_DataComboFile[[#This Row],[G&S reporting level indicator]]","v":0},{"$f":"T_DataComboFile[[#This Row],[2023/24 Baseline_Source]]*T_DataComboFile[[#This Row],[G&S reporting level indicator]]","v":0},null,null,null,null,null,null,{"$f":"T_DataComboFile[[#This Row],[2021/22 Baseline]]+T_DataComboFile[[#This Row],[2021/22 Reduction]]+T_DataComboFile[[#This Row],[2021/22 Increase]]","v":0},{"$f":"T_DataComboFile[[#This Row],[2022/23 Baseline]]+T_DataComboFile[[#This Row],[2022/23 Reduction]]+T_DataComboFile[[#This Row],[2022/23 Increase]]","v":0},{"$f":"T_DataComboFile[[#This Row],[2023/24 Baseline]]+T_DataComboFile[[#This Row],[2023/24 Reduction]]+T_DataComboFile[[#This Row],[2023/24 Increase]]","v":0}]
["NAT|Non-transfer item","36|Venues and facilities","2021_22","ENE2020",36,3,1,17352,70809,36,3,1,17352,"070809","36|03|01",1,1,2,40,40,"01|01|02|40|40","National","Small Business Development","Integrated Cooperative Development","Cooperatives Development","Non-transfer item","Current","Current payments","Goods and services","Venues and facilities","Venues and facilities","Economic development","Industrialisation and exports","NAT",16,0,190,0,0,0,0,0,0,0,0,0,0,1,null,{"$f":"IF(T_DataComboFile[[#This Row],[G&S reporting level indicator]]=1,$AX$16,\"Not applicable\")","v":"Not applicable"},{"$f":"IF(AND($AX$16=\"Level 3\",T_DataComboFile[[#This Row],[Econ3]] = \"Goods and services\"),IF(T_DataComboFile[[#This Row],[Econ4]] = T_DataComboFile[[#This Row],[Econ3]],1,0),IF(AND($AX$16=\"Level 4\",T_DataComboFile[[#This Row],[Econ4]] = \"Goods and services\"),0,1))","v":0},{"$f":"T_DataComboFile[[#This Row],[2016/17_Source]]*T_DataComboFile[[#This Row],[G&S reporting level indicator]]","v":0},{"$f":"T_DataComboFile[[#This Row],[2017/18_Source]]*T_DataComboFile[[#This Row],[G&S reporting level indicator]]","v":0},{"$f":"T_DataComboFile[[#This Row],[2018/19_Source]]*T_DataComboFile[[#This Row],[G&S reporting level indicator]]","v":0},{"$f":"T_DataComboFile[[#This Row],[2019/20 Main appropriation_Source]]*T_DataComboFile[[#This Row],[G&S reporting level indicator]]","v":0},{"$f":"T_DataComboFile[[#This Row],[2019/20 Adjusted appropriation_Source]]*T_DataComboFile[[#This Row],[G&S reporting level indicator]]","v":0},{"$f":"T_DataComboFile[[#This Row],[2019/20 Revised estimate_Source]]*T_DataComboFile[[#This Row],[G&S reporting level indicator]]","v":0},{"$f":"T_DataComboFile[[#This Row],[2019/20 Preliminary outcome_Source]]*T_DataComboFile[[#This Row],[G&S reporting level indicator]]","v":0},{"$f":"T_DataComboFile[[#This Row],[2020/21 Original_Source]]*T_DataComboFile[[#This Row],[G&S reporting level indicator]]","v":0},{"$f":"T_DataComboFile[[#This Row],[2020/21 SAB_Source]]*T_DataComboFile[[#This Row],[G&S reporting level indicator]]","v":0},{"$f":"T_DataComboFile[[#This Row],[2020/21 Baseline_Source]]*T_DataComboFile[[#This Row],[G&S reporting level indicator]]","v":0},{"$f":"T_DataComboFile[[#This Row],[2021/22 Baseline_Source]]*T_DataComboFile[[#This Row],[G&S reporting level indicator]]","v":0},{"$f":"T_DataComboFile[[#This Row],[2022/23 Baseline_Source]]*T_DataComboFile[[#This Row],[G&S reporting level indicator]]","v":0},{"$f":"T_DataComboFile[[#This Row],[2023/24 Baseline_Source]]*T_DataComboFile[[#This Row],[G&S reporting level indicator]]","v":0},null,null,null,null,null,null,{"$f":"T_DataComboFile[[#This Row],[2021/22 Baseline]]+T_DataComboFile[[#This Row],[2021/22 Reduction]]+T_DataComboFile[[#This Row],[2021/22 Increase]]","v":0},{"$f":"T_DataComboFile[[#This Row],[2022/23 Baseline]]+T_DataComboFile[[#This Row],[2022/23 Reduction]]+T_DataComboFile[[#This Row],[2022/23 Increase]]","v":0},{"$f":"T_DataComboFile[[#This Row],[2023/24 Baseline]]+T_DataComboFile[[#This Row],[2023/24 Reduction]]+T_DataComboFile[[#This Row],[2023/24 Increase]]","v":0}]
[null,null,"2021_22","ENE2020",36,3,1,null,70810,36,3,1,null,"070810","36|03|01",1,1,3,41,41,"01|01|03|41|41","National","Small Business Development","Integrated Cooperative Development","Cooperatives Development",null,"Current","Current payments","Interest and rent on land","Interest (Incl. interest on unitary payments (PPP))","Interest (Incl. interest on unitary payments (PPP))",null,null,null,0,0,0,0,0,0,0,0,0,0,0,0,0,0,null,{"$f":"IF(T_DataComboFile[[#This Row],[G&S reporting level indicator]]=1,$AX$16,\"Not applicable\")","v":"Level 3"},{"$f":"IF(AND($AX$16=\"Level 3\",T_DataComboFile[[#This Row],[Econ3]] = \"Goods and services\"),IF(T_DataComboFile[[#This Row],[Econ4]] = T_DataComboFile[[#This Row],[Econ3]],1,0),IF(AND($AX$16=\"Level 4\",T_DataComboFile[[#This Row],[Econ4]] = \"Goods and services\"),0,1))","v":1},{"$f":"T_DataComboFile[[#This Row],[2016/17_Source]]*T_DataComboFile[[#This Row],[G&S reporting level indicator]]","v":0},{"$f":"T_DataComboFile[[#This Row],[2017/18_Source]]*T_DataComboFile[[#This Row],[G&S reporting level indicator]]","v":0},{"$f":"T_DataComboFile[[#This Row],[2018/19_Source]]*T_DataComboFile[[#This Row],[G&S reporting level indicator]]","v":0},{"$f":"T_DataComboFile[[#This Row],[2019/20 Main appropriation_Source]]*T_DataComboFile[[#This Row],[G&S reporting level indicator]]","v":0},{"$f":"T_DataComboFile[[#This Row],[2019/20 Adjusted appropriation_Source]]*T_DataComboFile[[#This Row],[G&S reporting level indicator]]","v":0},{"$f":"T_DataComboFile[[#This Row],[2019/20 Revised estimate_Source]]*T_DataComboFile[[#This Row],[G&S reporting level indicator]]","v":0},{"$f":"T_DataComboFile[[#This Row],[2019/20 Preliminary outcome_Source]]*T_DataComboFile[[#This Row],[G&S reporting level indicator]]","v":0},{"$f":"T_DataComboFile[[#This Row],[2020/21 Original_Source]]*T_DataComboFile[[#This Row],[G&S reporting level indicator]]","v":0},{"$f":"T_DataComboFile[[#This Row],[2020/21 SAB_Source]]*T_DataComboFile[[#This Row],[G&S reporting level indicator]]","v":0},{"$f":"T_DataComboFile[[#This Row],[2020/21 Baseline_Source]]*T_DataComboFile[[#This Row],[G&S reporting level indicator]]","v":0},{"$f":"T_DataComboFile[[#This Row],[2021/22 Baseline_Source]]*T_DataComboFile[[#This Row],[G&S reporting level indicator]]","v":0},{"$f":"T_DataComboFile[[#This Row],[2022/23 Baseline_Source]]*T_DataComboFile[[#This Row],[G&S reporting level indicator]]","v":0},{"$f":"T_DataComboFile[[#This Row],[2023/24 Baseline_Source]]*T_DataComboFile[[#This Row],[G&S reporting level indicator]]","v":0},null,null,null,null,null,null,{"$f":"T_DataComboFile[[#This Row],[2021/22 Baseline]]+T_DataComboFile[[#This Row],[2021/22 Reduction]]+T_DataComboFile[[#This Row],[2021/22 Increase]]","v":0},{"$f":"T_DataComboFile[[#This Row],[2022/23 Baseline]]+T_DataComboFile[[#This Row],[2022/23 Reduction]]+T_DataComboFile[[#This Row],[2022/23 Increase]]","v":0},{"$f":"T_DataComboFile[[#This Row],[2023/24 Baseline]]+T_DataComboFile[[#This Row],[2023/24 Reduction]]+T_DataComboFile[[#This Row],[2023/24 Increase]]","v":0}]
[null,null,"2021_22","ENE2020",36,3,1,null,70811,36,3,1,null,"070811","36|03|01",1,1,3,42,42,"01|01|03|42|42","National","Small Business Development","Integrated Cooperative Development","Cooperatives Development",null,"Current","Current payments","Interest and rent on land","Rent on land","Rent on land",null,null,null,0,0,0,0,0,0,0,0,0,0,0,0,0,0,null,{"$f":"IF(T_DataComboFile[[#This Row],[G&S reporting level indicator]]=1,$AX$16,\"Not applicable\")","v":"Level 3"},{"$f":"IF(AND($AX$16=\"Level 3\",T_DataComboFile[[#This Row],[Econ3]] = \"Goods and services\"),IF(T_DataComboFile[[#This Row],[Econ4]] = T_DataComboFile[[#This Row],[Econ3]],1,0),IF(AND($AX$16=\"Level 4\",T_DataComboFile[[#This Row],[Econ4]] = \"Goods and services\"),0,1))","v":1},{"$f":"T_DataComboFile[[#This Row],[2016/17_Source]]*T_DataComboFile[[#This Row],[G&S reporting level indicator]]","v":0},{"$f":"T_DataComboFile[[#This Row],[2017/18_Source]]*T_DataComboFile[[#This Row],[G&S reporting level indicator]]","v":0},{"$f":"T_DataComboFile[[#This Row],[2018/19_Source]]*T_DataComboFile[[#This Row],[G&S reporting level indicator]]","v":0},{"$f":"T_DataComboFile[[#This Row],[2019/20 Main appropriation_Source]]*T_DataComboFile[[#This Row],[G&S reporting level indicator]]","v":0},{"$f":"T_DataComboFile[[#This Row],[2019/20 Adjusted appropriation_Source]]*T_DataComboFile[[#This Row],[G&S reporting level indicator]]","v":0},{"$f":"T_DataComboFile[[#This Row],[2019/20 Revised estimate_Source]]*T_DataComboFile[[#This Row],[G&S reporting level indicator]]","v":0},{"$f":"T_DataComboFile[[#This Row],[2019/20 Preliminary outcome_Source]]*T_DataComboFile[[#This Row],[G&S reporting level indicator]]","v":0},{"$f":"T_DataComboFile[[#This Row],[2020/21 Original_Source]]*T_DataComboFile[[#This Row],[G&S reporting level indicator]]","v":0},{"$f":"T_DataComboFile[[#This Row],[2020/21 SAB_Source]]*T_DataComboFile[[#This Row],[G&S reporting level indicator]]","v":0},{"$f":"T_DataComboFile[[#This Row],[2020/21 Baseline_Source]]*T_DataComboFile[[#This Row],[G&S reporting level indicator]]","v":0},{"$f":"T_DataComboFile[[#This Row],[2021/22 Baseline_Source]]*T_DataComboFile[[#This Row],[G&S reporting level indicator]]","v":0},{"$f":"T_DataComboFile[[#This Row],[2022/23 Baseline_Source]]*T_DataComboFile[[#This Row],[G&S reporting level indicator]]","v":0},{"$f":"T_DataComboFile[[#This Row],[2023/24 Baseline_Source]]*T_DataComboFile[[#This Row],[G&S reporting level indicator]]","v":0},null,null,null,null,null,null,{"$f":"T_DataComboFile[[#This Row],[2021/22 Baseline]]+T_DataComboFile[[#This Row],[2021/22 Reduction]]+T_DataComboFile[[#This Row],[2021/22 Increase]]","v":0},{"$f":"T_DataComboFile[[#This Row],[2022/23 Baseline]]+T_DataComboFile[[#This Row],[2022/23 Reduction]]+T_DataComboFile[[#This Row],[2022/23 Increase]]","v":0},{"$f":"T_DataComboFile[[#This Row],[2023/24 Baseline]]+T_DataComboFile[[#This Row],[2023/24 Reduction]]+T_DataComboFile[[#This Row],[2023/24 Increase]]","v":0}]
[null,null,"2021_22","ENE2020",36,3,1,null,70812,36,3,1,null,"070812","36|03|01",1,2,4,43,43,"01|02|04|43|43","National","Small Business Development","Integrated Cooperative Development","Cooperatives Development",null,"Current","Transfers and subsidies","Provinces and municipalities","Provinces","Provincial Revenue Funds",null,null,null,0,0,0,0,0,0,0,0,0,0,0,0,0,0,null,{"$f":"IF(T_DataComboFile[[#This Row],[G&S reporting level indicator]]=1,$AX$16,\"Not applicable\")","v":"Level 3"},{"$f":"IF(AND($AX$16=\"Level 3\",T_DataComboFile[[#This Row],[Econ3]] = \"Goods and services\"),IF(T_DataComboFile[[#This Row],[Econ4]] = T_DataComboFile[[#This Row],[Econ3]],1,0),IF(AND($AX$16=\"Level 4\",T_DataComboFile[[#This Row],[Econ4]] = \"Goods and services\"),0,1))","v":1},{"$f":"T_DataComboFile[[#This Row],[2016/17_Source]]*T_DataComboFile[[#This Row],[G&S reporting level indicator]]","v":0},{"$f":"T_DataComboFile[[#This Row],[2017/18_Source]]*T_DataComboFile[[#This Row],[G&S reporting level indicator]]","v":0},{"$f":"T_DataComboFile[[#This Row],[2018/19_Source]]*T_DataComboFile[[#This Row],[G&S reporting level indicator]]","v":0},{"$f":"T_DataComboFile[[#This Row],[2019/20 Main appropriation_Source]]*T_DataComboFile[[#This Row],[G&S reporting level indicator]]","v":0},{"$f":"T_DataComboFile[[#This Row],[2019/20 Adjusted appropriation_Source]]*T_DataComboFile[[#This Row],[G&S reporting level indicator]]","v":0},{"$f":"T_DataComboFile[[#This Row],[2019/20 Revised estimate_Source]]*T_DataComboFile[[#This Row],[G&S reporting level indicator]]","v":0},{"$f":"T_DataComboFile[[#This Row],[2019/20 Preliminary outcome_Source]]*T_DataComboFile[[#This Row],[G&S reporting level indicator]]","v":0},{"$f":"T_DataComboFile[[#This Row],[2020/21 Original_Source]]*T_DataComboFile[[#This Row],[G&S reporting level indicator]]","v":0},{"$f":"T_DataComboFile[[#This Row],[2020/21 SAB_Source]]*T_DataComboFile[[#This Row],[G&S reporting level indicator]]","v":0},{"$f":"T_DataComboFile[[#This Row],[2020/21 Baseline_Source]]*T_DataComboFile[[#This Row],[G&S reporting level indicator]]","v":0},{"$f":"T_DataComboFile[[#This Row],[2021/22 Baseline_Source]]*T_DataComboFile[[#This Row],[G&S reporting level indicator]]","v":0},{"$f":"T_DataComboFile[[#This Row],[2022/23 Baseline_Source]]*T_DataComboFile[[#This Row],[G&S reporting level indicator]]","v":0},{"$f":"T_DataComboFile[[#This Row],[2023/24 Baseline_Source]]*T_DataComboFile[[#This Row],[G&S reporting level indicator]]","v":0},null,null,null,null,null,null,{"$f":"T_DataComboFile[[#This Row],[2021/22 Baseline]]+T_DataComboFile[[#This Row],[2021/22 Reduction]]+T_DataComboFile[[#This Row],[2021/22 Increase]]","v":0},{"$f":"T_DataComboFile[[#This Row],[2022/23 Baseline]]+T_DataComboFile[[#This Row],[2022/23 Reduction]]+T_DataComboFile[[#This Row],[2022/23 Increase]]","v":0},{"$f":"T_DataComboFile[[#This Row],[2023/24 Baseline]]+T_DataComboFile[[#This Row],[2023/24 Reduction]]+T_DataComboFile[[#This Row],[2023/24 Increase]]","v":0}]
[null,null,"2021_22","ENE2020",36,3,1,null,70813,36,3,1,null,"070813","36|03|01",1,2,4,43,44,"01|02|04|43|44","National","Small Business Development","Integrated Cooperative Development","Cooperatives Development",null,"Current","Transfers and subsidies","Provinces and municipalities","Provinces","Provincial agencies and funds",null,null,null,0,0,0,0,0,0,0,0,0,0,0,0,0,0,null,{"$f":"IF(T_DataComboFile[[#This Row],[G&S reporting level indicator]]=1,$AX$16,\"Not applicable\")","v":"Level 3"},{"$f":"IF(AND($AX$16=\"Level 3\",T_DataComboFile[[#This Row],[Econ3]] = \"Goods and services\"),IF(T_DataComboFile[[#This Row],[Econ4]] = T_DataComboFile[[#This Row],[Econ3]],1,0),IF(AND($AX$16=\"Level 4\",T_DataComboFile[[#This Row],[Econ4]] = \"Goods and services\"),0,1))","v":1},{"$f":"T_DataComboFile[[#This Row],[2016/17_Source]]*T_DataComboFile[[#This Row],[G&S reporting level indicator]]","v":0},{"$f":"T_DataComboFile[[#This Row],[2017/18_Source]]*T_DataComboFile[[#This Row],[G&S reporting level indicator]]","v":0},{"$f":"T_DataComboFile[[#This Row],[2018/19_Source]]*T_DataComboFile[[#This Row],[G&S reporting level indicator]]","v":0},{"$f":"T_DataComboFile[[#This Row],[2019/20 Main appropriation_Source]]*T_DataComboFile[[#This Row],[G&S reporting level indicator]]","v":0},{"$f":"T_DataComboFile[[#This Row],[2019/20 Adjusted appropriation_Source]]*T_DataComboFile[[#This Row],[G&S reporting level indicator]]","v":0},{"$f":"T_DataComboFile[[#This Row],[2019/20 Revised estimate_Source]]*T_DataComboFile[[#This Row],[G&S reporting level indicator]]","v":0},{"$f":"T_DataComboFile[[#This Row],[2019/20 Preliminary outcome_Source]]*T_DataComboFile[[#This Row],[G&S reporting level indicator]]","v":0},{"$f":"T_DataComboFile[[#This Row],[2020/21 Original_Source]]*T_DataComboFile[[#This Row],[G&S reporting level indicator]]","v":0},{"$f":"T_DataComboFile[[#This Row],[2020/21 SAB_Source]]*T_DataComboFile[[#This Row],[G&S reporting level indicator]]","v":0},{"$f":"T_DataComboFile[[#This Row],[2020/21 Baseline_Source]]*T_DataComboFile[[#This Row],[G&S reporting level indicator]]","v":0},{"$f":"T_DataComboFile[[#This Row],[2021/22 Baseline_Source]]*T_DataComboFile[[#This Row],[G&S reporting level indicator]]","v":0},{"$f":"T_DataComboFile[[#This Row],[2022/23 Baseline_Source]]*T_DataComboFile[[#This Row],[G&S reporting level indicator]]","v":0},{"$f":"T_DataComboFile[[#This Row],[2023/24 Baseline_Source]]*T_DataComboFile[[#This Row],[G&S reporting level indicator]]","v":0},null,null,null,null,null,null,{"$f":"T_DataComboFile[[#This Row],[2021/22 Baseline]]+T_DataComboFile[[#This Row],[2021/22 Reduction]]+T_DataComboFile[[#This Row],[2021/22 Increase]]","v":0},{"$f":"T_DataComboFile[[#This Row],[2022/23 Baseline]]+T_DataComboFile[[#This Row],[2022/23 Reduction]]+T_DataComboFile[[#This Row],[2022/23 Increase]]","v":0},{"$f":"T_DataComboFile[[#This Row],[2023/24 Baseline]]+T_DataComboFile[[#This Row],[2023/24 Reduction]]+T_DataComboFile[[#This Row],[2023/24 Increase]]","v":0}]
[null,null,"2021_22","ENE2020",36,3,1,null,70814,36,3,1,null,"070814","36|03|01",1,2,4,44,45,"01|02|04|44|45","National","Small Business Development","Integrated Cooperative Development","Cooperatives Development",null,"Current","Transfers and subsidies","Provinces and municipalities","Municipalities","Municipal bank accounts",null,null,null,0,0,0,0,0,0,0,0,0,0,0,0,0,0,null,{"$f":"IF(T_DataComboFile[[#This Row],[G&S reporting level indicator]]=1,$AX$16,\"Not applicable\")","v":"Level 3"},{"$f":"IF(AND($AX$16=\"Level 3\",T_DataComboFile[[#This Row],[Econ3]] = \"Goods and services\"),IF(T_DataComboFile[[#This Row],[Econ4]] = T_DataComboFile[[#This Row],[Econ3]],1,0),IF(AND($AX$16=\"Level 4\",T_DataComboFile[[#This Row],[Econ4]] = \"Goods and services\"),0,1))","v":1},{"$f":"T_DataComboFile[[#This Row],[2016/17_Source]]*T_DataComboFile[[#This Row],[G&S reporting level indicator]]","v":0},{"$f":"T_DataComboFile[[#This Row],[2017/18_Source]]*T_DataComboFile[[#This Row],[G&S reporting level indicator]]","v":0},{"$f":"T_DataComboFile[[#This Row],[2018/19_Source]]*T_DataComboFile[[#This Row],[G&S reporting level indicator]]","v":0},{"$f":"T_DataComboFile[[#This Row],[2019/20 Main appropriation_Source]]*T_DataComboFile[[#This Row],[G&S reporting level indicator]]","v":0},{"$f":"T_DataComboFile[[#This Row],[2019/20 Adjusted appropriation_Source]]*T_DataComboFile[[#This Row],[G&S reporting level indicator]]","v":0},{"$f":"T_DataComboFile[[#This Row],[2019/20 Revised estimate_Source]]*T_DataComboFile[[#This Row],[G&S reporting level indicator]]","v":0},{"$f":"T_DataComboFile[[#This Row],[2019/20 Preliminary outcome_Source]]*T_DataComboFile[[#This Row],[G&S reporting level indicator]]","v":0},{"$f":"T_DataComboFile[[#This Row],[2020/21 Original_Source]]*T_DataComboFile[[#This Row],[G&S reporting level indicator]]","v":0},{"$f":"T_DataComboFile[[#This Row],[2020/21 SAB_Source]]*T_DataComboFile[[#This Row],[G&S reporting level indicator]]","v":0},{"$f":"T_DataComboFile[[#This Row],[2020/21 Baseline_Source]]*T_DataComboFile[[#This Row],[G&S reporting level indicator]]","v":0},{"$f":"T_DataComboFile[[#This Row],[2021/22 Baseline_Source]]*T_DataComboFile[[#This Row],[G&S reporting level indicator]]","v":0},{"$f":"T_DataComboFile[[#This Row],[2022/23 Baseline_Source]]*T_DataComboFile[[#This Row],[G&S reporting level indicator]]","v":0},{"$f":"T_DataComboFile[[#This Row],[2023/24 Baseline_Source]]*T_DataComboFile[[#This Row],[G&S reporting level indicator]]","v":0},null,null,null,null,null,null,{"$f":"T_DataComboFile[[#This Row],[2021/22 Baseline]]+T_DataComboFile[[#This Row],[2021/22 Reduction]]+T_DataComboFile[[#This Row],[2021/22 Increase]]","v":0},{"$f":"T_DataComboFile[[#This Row],[2022/23 Baseline]]+T_DataComboFile[[#This Row],[2022/23 Reduction]]+T_DataComboFile[[#This Row],[2022/23 Increase]]","v":0},{"$f":"T_DataComboFile[[#This Row],[2023/24 Baseline]]+T_DataComboFile[[#This Row],[2023/24 Reduction]]+T_DataComboFile[[#This Row],[2023/24 Increase]]","v":0}]
[null,null,"2021_22","ENE2020",36,3,1,null,70815,36,3,1,null,"070815","36|03|01",1,2,4,44,46,"01|02|04|44|46","National","Small Business Development","Integrated Cooperative Development","Cooperatives Development",null,"Current","Transfers and subsidies","Provinces and municipalities","Municipalities","Municipal agencies and funds",null,null,null,0,0,0,0,0,0,0,0,0,0,0,0,0,0,null,{"$f":"IF(T_DataComboFile[[#This Row],[G&S reporting level indicator]]=1,$AX$16,\"Not applicable\")","v":"Level 3"},{"$f":"IF(AND($AX$16=\"Level 3\",T_DataComboFile[[#This Row],[Econ3]] = \"Goods and services\"),IF(T_DataComboFile[[#This Row],[Econ4]] = T_DataComboFile[[#This Row],[Econ3]],1,0),IF(AND($AX$16=\"Level 4\",T_DataComboFile[[#This Row],[Econ4]] = \"Goods and services\"),0,1))","v":1},{"$f":"T_DataComboFile[[#This Row],[2016/17_Source]]*T_DataComboFile[[#This Row],[G&S reporting level indicator]]","v":0},{"$f":"T_DataComboFile[[#This Row],[2017/18_Source]]*T_DataComboFile[[#This Row],[G&S reporting level indicator]]","v":0},{"$f":"T_DataComboFile[[#This Row],[2018/19_Source]]*T_DataComboFile[[#This Row],[G&S reporting level indicator]]","v":0},{"$f":"T_DataComboFile[[#This Row],[2019/20 Main appropriation_Source]]*T_DataComboFile[[#This Row],[G&S reporting level indicator]]","v":0},{"$f":"T_DataComboFile[[#This Row],[2019/20 Adjusted appropriation_Source]]*T_DataComboFile[[#This Row],[G&S reporting level indicator]]","v":0},{"$f":"T_DataComboFile[[#This Row],[2019/20 Revised estimate_Source]]*T_DataComboFile[[#This Row],[G&S reporting level indicator]]","v":0},{"$f":"T_DataComboFile[[#This Row],[2019/20 Preliminary outcome_Source]]*T_DataComboFile[[#This Row],[G&S reporting level indicator]]","v":0},{"$f":"T_DataComboFile[[#This Row],[2020/21 Original_Source]]*T_DataComboFile[[#This Row],[G&S reporting level indicator]]","v":0},{"$f":"T_DataComboFile[[#This Row],[2020/21 SAB_Source]]*T_DataComboFile[[#This Row],[G&S reporting level indicator]]","v":0},{"$f":"T_DataComboFile[[#This Row],[2020/21 Baseline_Source]]*T_DataComboFile[[#This Row],[G&S reporting level indicator]]","v":0},{"$f":"T_DataComboFile[[#This Row],[2021/22 Baseline_Source]]*T_DataComboFile[[#This Row],[G&S reporting level indicator]]","v":0},{"$f":"T_DataComboFile[[#This Row],[2022/23 Baseline_Source]]*T_DataComboFile[[#This Row],[G&S reporting level indicator]]","v":0},{"$f":"T_DataComboFile[[#This Row],[2023/24 Baseline_Source]]*T_DataComboFile[[#This Row],[G&S reporting level indicator]]","v":0},null,null,null,null,null,null,{"$f":"T_DataComboFile[[#This Row],[2021/22 Baseline]]+T_DataComboFile[[#This Row],[2021/22 Reduction]]+T_DataComboFile[[#This Row],[2021/22 Increase]]","v":0},{"$f":"T_DataComboFile[[#This Row],[2022/23 Baseline]]+T_DataComboFile[[#This Row],[2022/23 Reduction]]+T_DataComboFile[[#This Row],[2022/23 Increase]]","v":0},{"$f":"T_DataComboFile[[#This Row],[2023/24 Baseline]]+T_DataComboFile[[#This Row],[2023/24 Reduction]]+T_DataComboFile[[#This Row],[2023/24 Increase]]","v":0}]
[null,null,"2021_22","ENE2020",36,3,1,null,70816,36,3,1,null,"070816","36|03|01",1,2,5,45,47,"01|02|05|45|47","National","Small Business Development","Integrated Cooperative Development","Cooperatives Development",null,"Current","Transfers and subsidies","Departmental agencies and accounts","Social security funds","Social security funds",null,null,null,0,0,0,0,0,0,0,0,0,0,0,0,0,0,null,{"$f":"IF(T_DataComboFile[[#This Row],[G&S reporting level indicator]]=1,$AX$16,\"Not applicable\")","v":"Level 3"},{"$f":"IF(AND($AX$16=\"Level 3\",T_DataComboFile[[#This Row],[Econ3]] = \"Goods and services\"),IF(T_DataComboFile[[#This Row],[Econ4]] = T_DataComboFile[[#This Row],[Econ3]],1,0),IF(AND($AX$16=\"Level 4\",T_DataComboFile[[#This Row],[Econ4]] = \"Goods and services\"),0,1))","v":1},{"$f":"T_DataComboFile[[#This Row],[2016/17_Source]]*T_DataComboFile[[#This Row],[G&S reporting level indicator]]","v":0},{"$f":"T_DataComboFile[[#This Row],[2017/18_Source]]*T_DataComboFile[[#This Row],[G&S reporting level indicator]]","v":0},{"$f":"T_DataComboFile[[#This Row],[2018/19_Source]]*T_DataComboFile[[#This Row],[G&S reporting level indicator]]","v":0},{"$f":"T_DataComboFile[[#This Row],[2019/20 Main appropriation_Source]]*T_DataComboFile[[#This Row],[G&S reporting level indicator]]","v":0},{"$f":"T_DataComboFile[[#This Row],[2019/20 Adjusted appropriation_Source]]*T_DataComboFile[[#This Row],[G&S reporting level indicator]]","v":0},{"$f":"T_DataComboFile[[#This Row],[2019/20 Revised estimate_Source]]*T_DataComboFile[[#This Row],[G&S reporting level indicator]]","v":0},{"$f":"T_DataComboFile[[#This Row],[2019/20 Preliminary outcome_Source]]*T_DataComboFile[[#This Row],[G&S reporting level indicator]]","v":0},{"$f":"T_DataComboFile[[#This Row],[2020/21 Original_Source]]*T_DataComboFile[[#This Row],[G&S reporting level indicator]]","v":0},{"$f":"T_DataComboFile[[#This Row],[2020/21 SAB_Source]]*T_DataComboFile[[#This Row],[G&S reporting level indicator]]","v":0},{"$f":"T_DataComboFile[[#This Row],[2020/21 Baseline_Source]]*T_DataComboFile[[#This Row],[G&S reporting level indicator]]","v":0},{"$f":"T_DataComboFile[[#This Row],[2021/22 Baseline_Source]]*T_DataComboFile[[#This Row],[G&S reporting level indicator]]","v":0},{"$f":"T_DataComboFile[[#This Row],[2022/23 Baseline_Source]]*T_DataComboFile[[#This Row],[G&S reporting level indicator]]","v":0},{"$f":"T_DataComboFile[[#This Row],[2023/24 Baseline_Source]]*T_DataComboFile[[#This Row],[G&S reporting level indicator]]","v":0},null,null,null,null,null,null,{"$f":"T_DataComboFile[[#This Row],[2021/22 Baseline]]+T_DataComboFile[[#This Row],[2021/22 Reduction]]+T_DataComboFile[[#This Row],[2021/22 Increase]]","v":0},{"$f":"T_DataComboFile[[#This Row],[2022/23 Baseline]]+T_DataComboFile[[#This Row],[2022/23 Reduction]]+T_DataComboFile[[#This Row],[2022/23 Increase]]","v":0},{"$f":"T_DataComboFile[[#This Row],[2023/24 Baseline]]+T_DataComboFile[[#This Row],[2023/24 Reduction]]+T_DataComboFile[[#This Row],[2023/24 Increase]]","v":0}]
[null,null,"2021_22","ENE2020",36,3,1,null,70817,36,3,1,null,"070817","36|03|01",1,2,5,46,48,"01|02|05|46|48","National","Small Business Development","Integrated Cooperative Development","Cooperatives Development",null,"Current","Transfers and subsidies","Departmental agencies and accounts","Departmental agencies (non-business entities)","Departmental agencies (non-business entities)",null,null,null,0,0,0,0,0,0,0,0,0,0,0,0,0,0,null,{"$f":"IF(T_DataComboFile[[#This Row],[G&S reporting level indicator]]=1,$AX$16,\"Not applicable\")","v":"Level 3"},{"$f":"IF(AND($AX$16=\"Level 3\",T_DataComboFile[[#This Row],[Econ3]] = \"Goods and services\"),IF(T_DataComboFile[[#This Row],[Econ4]] = T_DataComboFile[[#This Row],[Econ3]],1,0),IF(AND($AX$16=\"Level 4\",T_DataComboFile[[#This Row],[Econ4]] = \"Goods and services\"),0,1))","v":1},{"$f":"T_DataComboFile[[#This Row],[2016/17_Source]]*T_DataComboFile[[#This Row],[G&S reporting level indicator]]","v":0},{"$f":"T_DataComboFile[[#This Row],[2017/18_Source]]*T_DataComboFile[[#This Row],[G&S reporting level indicator]]","v":0},{"$f":"T_DataComboFile[[#This Row],[2018/19_Source]]*T_DataComboFile[[#This Row],[G&S reporting level indicator]]","v":0},{"$f":"T_DataComboFile[[#This Row],[2019/20 Main appropriation_Source]]*T_DataComboFile[[#This Row],[G&S reporting level indicator]]","v":0},{"$f":"T_DataComboFile[[#This Row],[2019/20 Adjusted appropriation_Source]]*T_DataComboFile[[#This Row],[G&S reporting level indicator]]","v":0},{"$f":"T_DataComboFile[[#This Row],[2019/20 Revised estimate_Source]]*T_DataComboFile[[#This Row],[G&S reporting level indicator]]","v":0},{"$f":"T_DataComboFile[[#This Row],[2019/20 Preliminary outcome_Source]]*T_DataComboFile[[#This Row],[G&S reporting level indicator]]","v":0},{"$f":"T_DataComboFile[[#This Row],[2020/21 Original_Source]]*T_DataComboFile[[#This Row],[G&S reporting level indicator]]","v":0},{"$f":"T_DataComboFile[[#This Row],[2020/21 SAB_Source]]*T_DataComboFile[[#This Row],[G&S reporting level indicator]]","v":0},{"$f":"T_DataComboFile[[#This Row],[2020/21 Baseline_Source]]*T_DataComboFile[[#This Row],[G&S reporting level indicator]]","v":0},{"$f":"T_DataComboFile[[#This Row],[2021/22 Baseline_Source]]*T_DataComboFile[[#This Row],[G&S reporting level indicator]]","v":0},{"$f":"T_DataComboFile[[#This Row],[2022/23 Baseline_Source]]*T_DataComboFile[[#This Row],[G&S reporting level indicator]]","v":0},{"$f":"T_DataComboFile[[#This Row],[2023/24 Baseline_Source]]*T_DataComboFile[[#This Row],[G&S reporting level indicator]]","v":0},null,null,null,null,null,null,{"$f":"T_DataComboFile[[#This Row],[2021/22 Baseline]]+T_DataComboFile[[#This Row],[2021/22 Reduction]]+T_DataComboFile[[#This Row],[2021/22 Increase]]","v":0},{"$f":"T_DataComboFile[[#This Row],[2022/23 Baseline]]+T_DataComboFile[[#This Row],[2022/23 Reduction]]+T_DataComboFile[[#This Row],[2022/23 Increase]]","v":0},{"$f":"T_DataComboFile[[#This Row],[2023/24 Baseline]]+T_DataComboFile[[#This Row],[2023/24 Reduction]]+T_DataComboFile[[#This Row],[2023/24 Increase]]","v":0}]
[null,null,"2021_22","ENE2020",36,3,1,null,70818,36,3,1,null,"070818","36|03|01",1,2,6,47,49,"01|02|06|47|49","National","Small Business Development","Integrated Cooperative Development","Cooperatives Development",null,"Current","Transfers and subsidies","Higher education institutions","Higher education institutions","Higher education institutions",null,null,null,0,0,0,0,0,0,0,0,0,0,0,0,0,0,null,{"$f":"IF(T_DataComboFile[[#This Row],[G&S reporting level indicator]]=1,$AX$16,\"Not applicable\")","v":"Level 3"},{"$f":"IF(AND($AX$16=\"Level 3\",T_DataComboFile[[#This Row],[Econ3]] = \"Goods and services\"),IF(T_DataComboFile[[#This Row],[Econ4]] = T_DataComboFile[[#This Row],[Econ3]],1,0),IF(AND($AX$16=\"Level 4\",T_DataComboFile[[#This Row],[Econ4]] = \"Goods and services\"),0,1))","v":1},{"$f":"T_DataComboFile[[#This Row],[2016/17_Source]]*T_DataComboFile[[#This Row],[G&S reporting level indicator]]","v":0},{"$f":"T_DataComboFile[[#This Row],[2017/18_Source]]*T_DataComboFile[[#This Row],[G&S reporting level indicator]]","v":0},{"$f":"T_DataComboFile[[#This Row],[2018/19_Source]]*T_DataComboFile[[#This Row],[G&S reporting level indicator]]","v":0},{"$f":"T_DataComboFile[[#This Row],[2019/20 Main appropriation_Source]]*T_DataComboFile[[#This Row],[G&S reporting level indicator]]","v":0},{"$f":"T_DataComboFile[[#This Row],[2019/20 Adjusted appropriation_Source]]*T_DataComboFile[[#This Row],[G&S reporting level indicator]]","v":0},{"$f":"T_DataComboFile[[#This Row],[2019/20 Revised estimate_Source]]*T_DataComboFile[[#This Row],[G&S reporting level indicator]]","v":0},{"$f":"T_DataComboFile[[#This Row],[2019/20 Preliminary outcome_Source]]*T_DataComboFile[[#This Row],[G&S reporting level indicator]]","v":0},{"$f":"T_DataComboFile[[#This Row],[2020/21 Original_Source]]*T_DataComboFile[[#This Row],[G&S reporting level indicator]]","v":0},{"$f":"T_DataComboFile[[#This Row],[2020/21 SAB_Source]]*T_DataComboFile[[#This Row],[G&S reporting level indicator]]","v":0},{"$f":"T_DataComboFile[[#This Row],[2020/21 Baseline_Source]]*T_DataComboFile[[#This Row],[G&S reporting level indicator]]","v":0},{"$f":"T_DataComboFile[[#This Row],[2021/22 Baseline_Source]]*T_DataComboFile[[#This Row],[G&S reporting level indicator]]","v":0},{"$f":"T_DataComboFile[[#This Row],[2022/23 Baseline_Source]]*T_DataComboFile[[#This Row],[G&S reporting level indicator]]","v":0},{"$f":"T_DataComboFile[[#This Row],[2023/24 Baseline_Source]]*T_DataComboFile[[#This Row],[G&S reporting level indicator]]","v":0},null,null,null,null,null,null,{"$f":"T_DataComboFile[[#This Row],[2021/22 Baseline]]+T_DataComboFile[[#This Row],[2021/22 Reduction]]+T_DataComboFile[[#This Row],[2021/22 Increase]]","v":0},{"$f":"T_DataComboFile[[#This Row],[2022/23 Baseline]]+T_DataComboFile[[#This Row],[2022/23 Reduction]]+T_DataComboFile[[#This Row],[2022/23 Increase]]","v":0},{"$f":"T_DataComboFile[[#This Row],[2023/24 Baseline]]+T_DataComboFile[[#This Row],[2023/24 Reduction]]+T_DataComboFile[[#This Row],[2023/24 Increase]]","v":0}]
[null,null,"2021_22","ENE2020",36,3,1,null,70819,36,3,1,null,"070819","36|03|01",1,2,7,48,50,"01|02|07|48|50","National","Small Business Development","Integrated Cooperative Development","Cooperatives Development",null,"Current","Transfers and subsidies","Foreign governments and international organisations","Foreign governments and international organisations","Foreign governments and international organisations",null,null,null,0,0,0,0,0,0,0,0,0,0,0,0,0,0,null,{"$f":"IF(T_DataComboFile[[#This Row],[G&S reporting level indicator]]=1,$AX$16,\"Not applicable\")","v":"Level 3"},{"$f":"IF(AND($AX$16=\"Level 3\",T_DataComboFile[[#This Row],[Econ3]] = \"Goods and services\"),IF(T_DataComboFile[[#This Row],[Econ4]] = T_DataComboFile[[#This Row],[Econ3]],1,0),IF(AND($AX$16=\"Level 4\",T_DataComboFile[[#This Row],[Econ4]] = \"Goods and services\"),0,1))","v":1},{"$f":"T_DataComboFile[[#This Row],[2016/17_Source]]*T_DataComboFile[[#This Row],[G&S reporting level indicator]]","v":0},{"$f":"T_DataComboFile[[#This Row],[2017/18_Source]]*T_DataComboFile[[#This Row],[G&S reporting level indicator]]","v":0},{"$f":"T_DataComboFile[[#This Row],[2018/19_Source]]*T_DataComboFile[[#This Row],[G&S reporting level indicator]]","v":0},{"$f":"T_DataComboFile[[#This Row],[2019/20 Main appropriation_Source]]*T_DataComboFile[[#This Row],[G&S reporting level indicator]]","v":0},{"$f":"T_DataComboFile[[#This Row],[2019/20 Adjusted appropriation_Source]]*T_DataComboFile[[#This Row],[G&S reporting level indicator]]","v":0},{"$f":"T_DataComboFile[[#This Row],[2019/20 Revised estimate_Source]]*T_DataComboFile[[#This Row],[G&S reporting level indicator]]","v":0},{"$f":"T_DataComboFile[[#This Row],[2019/20 Preliminary outcome_Source]]*T_DataComboFile[[#This Row],[G&S reporting level indicator]]","v":0},{"$f":"T_DataComboFile[[#This Row],[2020/21 Original_Source]]*T_DataComboFile[[#This Row],[G&S reporting level indicator]]","v":0},{"$f":"T_DataComboFile[[#This Row],[2020/21 SAB_Source]]*T_DataComboFile[[#This Row],[G&S reporting level indicator]]","v":0},{"$f":"T_DataComboFile[[#This Row],[2020/21 Baseline_Source]]*T_DataComboFile[[#This Row],[G&S reporting level indicator]]","v":0},{"$f":"T_DataComboFile[[#This Row],[2021/22 Baseline_Source]]*T_DataComboFile[[#This Row],[G&S reporting level indicator]]","v":0},{"$f":"T_DataComboFile[[#This Row],[2022/23 Baseline_Source]]*T_DataComboFile[[#This Row],[G&S reporting level indicator]]","v":0},{"$f":"T_DataComboFile[[#This Row],[2023/24 Baseline_Source]]*T_DataComboFile[[#This Row],[G&S reporting level indicator]]","v":0},null,null,null,null,null,null,{"$f":"T_DataComboFile[[#This Row],[2021/22 Baseline]]+T_DataComboFile[[#This Row],[2021/22 Reduction]]+T_DataComboFile[[#This Row],[2021/22 Increase]]","v":0},{"$f":"T_DataComboFile[[#This Row],[2022/23 Baseline]]+T_DataComboFile[[#This Row],[2022/23 Reduction]]+T_DataComboFile[[#This Row],[2022/23 Increase]]","v":0},{"$f":"T_DataComboFile[[#This Row],[2023/24 Baseline]]+T_DataComboFile[[#This Row],[2023/24 Reduction]]+T_DataComboFile[[#This Row],[2023/24 Increase]]","v":0}]
[null,null,"2021_22","ENE2020",36,3,1,null,70820,36,3,1,null,"070820","36|03|01",1,2,8,49,51,"01|02|08|49|51","National","Small Business Development","Integrated Cooperative Development","Cooperatives Development",null,"Current","Transfers and subsidies","Public corporations and private enterprises","Public corporations","Subsidies on products and production (pc)",null,null,null,0,0,0,0,0,0,0,0,0,0,0,0,0,0,null,{"$f":"IF(T_DataComboFile[[#This Row],[G&S reporting level indicator]]=1,$AX$16,\"Not applicable\")","v":"Level 3"},{"$f":"IF(AND($AX$16=\"Level 3\",T_DataComboFile[[#This Row],[Econ3]] = \"Goods and services\"),IF(T_DataComboFile[[#This Row],[Econ4]] = T_DataComboFile[[#This Row],[Econ3]],1,0),IF(AND($AX$16=\"Level 4\",T_DataComboFile[[#This Row],[Econ4]] = \"Goods and services\"),0,1))","v":1},{"$f":"T_DataComboFile[[#This Row],[2016/17_Source]]*T_DataComboFile[[#This Row],[G&S reporting level indicator]]","v":0},{"$f":"T_DataComboFile[[#This Row],[2017/18_Source]]*T_DataComboFile[[#This Row],[G&S reporting level indicator]]","v":0},{"$f":"T_DataComboFile[[#This Row],[2018/19_Source]]*T_DataComboFile[[#This Row],[G&S reporting level indicator]]","v":0},{"$f":"T_DataComboFile[[#This Row],[2019/20 Main appropriation_Source]]*T_DataComboFile[[#This Row],[G&S reporting level indicator]]","v":0},{"$f":"T_DataComboFile[[#This Row],[2019/20 Adjusted appropriation_Source]]*T_DataComboFile[[#This Row],[G&S reporting level indicator]]","v":0},{"$f":"T_DataComboFile[[#This Row],[2019/20 Revised estimate_Source]]*T_DataComboFile[[#This Row],[G&S reporting level indicator]]","v":0},{"$f":"T_DataComboFile[[#This Row],[2019/20 Preliminary outcome_Source]]*T_DataComboFile[[#This Row],[G&S reporting level indicator]]","v":0},{"$f":"T_DataComboFile[[#This Row],[2020/21 Original_Source]]*T_DataComboFile[[#This Row],[G&S reporting level indicator]]","v":0},{"$f":"T_DataComboFile[[#This Row],[2020/21 SAB_Source]]*T_DataComboFile[[#This Row],[G&S reporting level indicator]]","v":0},{"$f":"T_DataComboFile[[#This Row],[2020/21 Baseline_Source]]*T_DataComboFile[[#This Row],[G&S reporting level indicator]]","v":0},{"$f":"T_DataComboFile[[#This Row],[2021/22 Baseline_Source]]*T_DataComboFile[[#This Row],[G&S reporting level indicator]]","v":0},{"$f":"T_DataComboFile[[#This Row],[2022/23 Baseline_Source]]*T_DataComboFile[[#This Row],[G&S reporting level indicator]]","v":0},{"$f":"T_DataComboFile[[#This Row],[2023/24 Baseline_Source]]*T_DataComboFile[[#This Row],[G&S reporting level indicator]]","v":0},null,null,null,null,null,null,{"$f":"T_DataComboFile[[#This Row],[2021/22 Baseline]]+T_DataComboFile[[#This Row],[2021/22 Reduction]]+T_DataComboFile[[#This Row],[2021/22 Increase]]","v":0},{"$f":"T_DataComboFile[[#This Row],[2022/23 Baseline]]+T_DataComboFile[[#This Row],[2022/23 Reduction]]+T_DataComboFile[[#This Row],[2022/23 Increase]]","v":0},{"$f":"T_DataComboFile[[#This Row],[2023/24 Baseline]]+T_DataComboFile[[#This Row],[2023/24 Reduction]]+T_DataComboFile[[#This Row],[2023/24 Increase]]","v":0}]
[null,null,"2021_22","ENE2020",36,3,1,null,70821,36,3,1,null,"070821","36|03|01",1,2,8,49,52,"01|02|08|49|52","National","Small Business Development","Integrated Cooperative Development","Cooperatives Development",null,"Current","Transfers and subsidies","Public corporations and private enterprises","Public corporations","Other transfers to public corporations",null,null,null,0,0,0,0,0,0,0,0,0,0,0,0,0,0,null,{"$f":"IF(T_DataComboFile[[#This Row],[G&S reporting level indicator]]=1,$AX$16,\"Not applicable\")","v":"Level 3"},{"$f":"IF(AND($AX$16=\"Level 3\",T_DataComboFile[[#This Row],[Econ3]] = \"Goods and services\"),IF(T_DataComboFile[[#This Row],[Econ4]] = T_DataComboFile[[#This Row],[Econ3]],1,0),IF(AND($AX$16=\"Level 4\",T_DataComboFile[[#This Row],[Econ4]] = \"Goods and services\"),0,1))","v":1},{"$f":"T_DataComboFile[[#This Row],[2016/17_Source]]*T_DataComboFile[[#This Row],[G&S reporting level indicator]]","v":0},{"$f":"T_DataComboFile[[#This Row],[2017/18_Source]]*T_DataComboFile[[#This Row],[G&S reporting level indicator]]","v":0},{"$f":"T_DataComboFile[[#This Row],[2018/19_Source]]*T_DataComboFile[[#This Row],[G&S reporting level indicator]]","v":0},{"$f":"T_DataComboFile[[#This Row],[2019/20 Main appropriation_Source]]*T_DataComboFile[[#This Row],[G&S reporting level indicator]]","v":0},{"$f":"T_DataComboFile[[#This Row],[2019/20 Adjusted appropriation_Source]]*T_DataComboFile[[#This Row],[G&S reporting level indicator]]","v":0},{"$f":"T_DataComboFile[[#This Row],[2019/20 Revised estimate_Source]]*T_DataComboFile[[#This Row],[G&S reporting level indicator]]","v":0},{"$f":"T_DataComboFile[[#This Row],[2019/20 Preliminary outcome_Source]]*T_DataComboFile[[#This Row],[G&S reporting level indicator]]","v":0},{"$f":"T_DataComboFile[[#This Row],[2020/21 Original_Source]]*T_DataComboFile[[#This Row],[G&S reporting level indicator]]","v":0},{"$f":"T_DataComboFile[[#This Row],[2020/21 SAB_Source]]*T_DataComboFile[[#This Row],[G&S reporting level indicator]]","v":0},{"$f":"T_DataComboFile[[#This Row],[2020/21 Baseline_Source]]*T_DataComboFile[[#This Row],[G&S reporting level indicator]]","v":0},{"$f":"T_DataComboFile[[#This Row],[2021/22 Baseline_Source]]*T_DataComboFile[[#This Row],[G&S reporting level indicator]]","v":0},{"$f":"T_DataComboFile[[#This Row],[2022/23 Baseline_Source]]*T_DataComboFile[[#This Row],[G&S reporting level indicator]]","v":0},{"$f":"T_DataComboFile[[#This Row],[2023/24 Baseline_Source]]*T_DataComboFile[[#This Row],[G&S reporting level indicator]]","v":0},null,null,null,null,null,null,{"$f":"T_DataComboFile[[#This Row],[2021/22 Baseline]]+T_DataComboFile[[#This Row],[2021/22 Reduction]]+T_DataComboFile[[#This Row],[2021/22 Increase]]","v":0},{"$f":"T_DataComboFile[[#This Row],[2022/23 Baseline]]+T_DataComboFile[[#This Row],[2022/23 Reduction]]+T_DataComboFile[[#This Row],[2022/23 Increase]]","v":0},{"$f":"T_DataComboFile[[#This Row],[2023/24 Baseline]]+T_DataComboFile[[#This Row],[2023/24 Reduction]]+T_DataComboFile[[#This Row],[2023/24 Increase]]","v":0}]
[null,null,"2021_22","ENE2020",36,3,1,null,70822,36,3,1,null,"070822","36|03|01",1,2,8,50,53,"01|02|08|50|53","National","Small Business Development","Integrated Cooperative Development","Cooperatives Development",null,"Current","Transfers and subsidies","Public corporations and private enterprises","Private enterprises","Subsidies on products and production (pe)",null,null,null,0,0,0,0,0,0,0,0,0,0,0,0,0,0,null,{"$f":"IF(T_DataComboFile[[#This Row],[G&S reporting level indicator]]=1,$AX$16,\"Not applicable\")","v":"Level 3"},{"$f":"IF(AND($AX$16=\"Level 3\",T_DataComboFile[[#This Row],[Econ3]] = \"Goods and services\"),IF(T_DataComboFile[[#This Row],[Econ4]] = T_DataComboFile[[#This Row],[Econ3]],1,0),IF(AND($AX$16=\"Level 4\",T_DataComboFile[[#This Row],[Econ4]] = \"Goods and services\"),0,1))","v":1},{"$f":"T_DataComboFile[[#This Row],[2016/17_Source]]*T_DataComboFile[[#This Row],[G&S reporting level indicator]]","v":0},{"$f":"T_DataComboFile[[#This Row],[2017/18_Source]]*T_DataComboFile[[#This Row],[G&S reporting level indicator]]","v":0},{"$f":"T_DataComboFile[[#This Row],[2018/19_Source]]*T_DataComboFile[[#This Row],[G&S reporting level indicator]]","v":0},{"$f":"T_DataComboFile[[#This Row],[2019/20 Main appropriation_Source]]*T_DataComboFile[[#This Row],[G&S reporting level indicator]]","v":0},{"$f":"T_DataComboFile[[#This Row],[2019/20 Adjusted appropriation_Source]]*T_DataComboFile[[#This Row],[G&S reporting level indicator]]","v":0},{"$f":"T_DataComboFile[[#This Row],[2019/20 Revised estimate_Source]]*T_DataComboFile[[#This Row],[G&S reporting level indicator]]","v":0},{"$f":"T_DataComboFile[[#This Row],[2019/20 Preliminary outcome_Source]]*T_DataComboFile[[#This Row],[G&S reporting level indicator]]","v":0},{"$f":"T_DataComboFile[[#This Row],[2020/21 Original_Source]]*T_DataComboFile[[#This Row],[G&S reporting level indicator]]","v":0},{"$f":"T_DataComboFile[[#This Row],[2020/21 SAB_Source]]*T_DataComboFile[[#This Row],[G&S reporting level indicator]]","v":0},{"$f":"T_DataComboFile[[#This Row],[2020/21 Baseline_Source]]*T_DataComboFile[[#This Row],[G&S reporting level indicator]]","v":0},{"$f":"T_DataComboFile[[#This Row],[2021/22 Baseline_Source]]*T_DataComboFile[[#This Row],[G&S reporting level indicator]]","v":0},{"$f":"T_DataComboFile[[#This Row],[2022/23 Baseline_Source]]*T_DataComboFile[[#This Row],[G&S reporting level indicator]]","v":0},{"$f":"T_DataComboFile[[#This Row],[2023/24 Baseline_Source]]*T_DataComboFile[[#This Row],[G&S reporting level indicator]]","v":0},null,null,null,null,null,null,{"$f":"T_DataComboFile[[#This Row],[2021/22 Baseline]]+T_DataComboFile[[#This Row],[2021/22 Reduction]]+T_DataComboFile[[#This Row],[2021/22 Increase]]","v":0},{"$f":"T_DataComboFile[[#This Row],[2022/23 Baseline]]+T_DataComboFile[[#This Row],[2022/23 Reduction]]+T_DataComboFile[[#This Row],[2022/23 Increase]]","v":0},{"$f":"T_DataComboFile[[#This Row],[2023/24 Baseline]]+T_DataComboFile[[#This Row],[2023/24 Reduction]]+T_DataComboFile[[#This Row],[2023/24 Increase]]","v":0}]
[null,null,"2021_22","ENE2020",36,3,1,null,70823,36,3,1,null,"070823","36|03|01",1,2,8,50,54,"01|02|08|50|54","National","Small Business Development","Integrated Cooperative Development","Cooperatives Development",null,"Current","Transfers and subsidies","Public corporations and private enterprises","Private enterprises","Other transfers to private enterprises",null,null,null,0,0,0,0,0,0,0,0,0,0,0,0,0,0,null,{"$f":"IF(T_DataComboFile[[#This Row],[G&S reporting level indicator]]=1,$AX$16,\"Not applicable\")","v":"Level 3"},{"$f":"IF(AND($AX$16=\"Level 3\",T_DataComboFile[[#This Row],[Econ3]] = \"Goods and services\"),IF(T_DataComboFile[[#This Row],[Econ4]] = T_DataComboFile[[#This Row],[Econ3]],1,0),IF(AND($AX$16=\"Level 4\",T_DataComboFile[[#This Row],[Econ4]] = \"Goods and services\"),0,1))","v":1},{"$f":"T_DataComboFile[[#This Row],[2016/17_Source]]*T_DataComboFile[[#This Row],[G&S reporting level indicator]]","v":0},{"$f":"T_DataComboFile[[#This Row],[2017/18_Source]]*T_DataComboFile[[#This Row],[G&S reporting level indicator]]","v":0},{"$f":"T_DataComboFile[[#This Row],[2018/19_Source]]*T_DataComboFile[[#This Row],[G&S reporting level indicator]]","v":0},{"$f":"T_DataComboFile[[#This Row],[2019/20 Main appropriation_Source]]*T_DataComboFile[[#This Row],[G&S reporting level indicator]]","v":0},{"$f":"T_DataComboFile[[#This Row],[2019/20 Adjusted appropriation_Source]]*T_DataComboFile[[#This Row],[G&S reporting level indicator]]","v":0},{"$f":"T_DataComboFile[[#This Row],[2019/20 Revised estimate_Source]]*T_DataComboFile[[#This Row],[G&S reporting level indicator]]","v":0},{"$f":"T_DataComboFile[[#This Row],[2019/20 Preliminary outcome_Source]]*T_DataComboFile[[#This Row],[G&S reporting level indicator]]","v":0},{"$f":"T_DataComboFile[[#This Row],[2020/21 Original_Source]]*T_DataComboFile[[#This Row],[G&S reporting level indicator]]","v":0},{"$f":"T_DataComboFile[[#This Row],[2020/21 SAB_Source]]*T_DataComboFile[[#This Row],[G&S reporting level indicator]]","v":0},{"$f":"T_DataComboFile[[#This Row],[2020/21 Baseline_Source]]*T_DataComboFile[[#This Row],[G&S reporting level indicator]]","v":0},{"$f":"T_DataComboFile[[#This Row],[2021/22 Baseline_Source]]*T_DataComboFile[[#This Row],[G&S reporting level indicator]]","v":0},{"$f":"T_DataComboFile[[#This Row],[2022/23 Baseline_Source]]*T_DataComboFile[[#This Row],[G&S reporting level indicator]]","v":0},{"$f":"T_DataComboFile[[#This Row],[2023/24 Baseline_Source]]*T_DataComboFile[[#This Row],[G&S reporting level indicator]]","v":0},null,null,null,null,null,null,{"$f":"T_DataComboFile[[#This Row],[2021/22 Baseline]]+T_DataComboFile[[#This Row],[2021/22 Reduction]]+T_DataComboFile[[#This Row],[2021/22 Increase]]","v":0},{"$f":"T_DataComboFile[[#This Row],[2022/23 Baseline]]+T_DataComboFile[[#This Row],[2022/23 Reduction]]+T_DataComboFile[[#This Row],[2022/23 Increase]]","v":0},{"$f":"T_DataComboFile[[#This Row],[2023/24 Baseline]]+T_DataComboFile[[#This Row],[2023/24 Reduction]]+T_DataComboFile[[#This Row],[2023/24 Increase]]","v":0}]
[null,null,"2021_22","ENE2020",36,3,1,null,70824,36,3,1,null,"070824","36|03|01",1,2,9,51,55,"01|02|09|51|55","National","Small Business Development","Integrated Cooperative Development","Cooperatives Development",null,"Current","Transfers and subsidies","Non-profit institutions","Non-profit institutions","Non-profit institutions",null,null,null,0,0,0,0,0,0,0,0,0,0,0,0,0,0,null,{"$f":"IF(T_DataComboFile[[#This Row],[G&S reporting level indicator]]=1,$AX$16,\"Not applicable\")","v":"Level 3"},{"$f":"IF(AND($AX$16=\"Level 3\",T_DataComboFile[[#This Row],[Econ3]] = \"Goods and services\"),IF(T_DataComboFile[[#This Row],[Econ4]] = T_DataComboFile[[#This Row],[Econ3]],1,0),IF(AND($AX$16=\"Level 4\",T_DataComboFile[[#This Row],[Econ4]] = \"Goods and services\"),0,1))","v":1},{"$f":"T_DataComboFile[[#This Row],[2016/17_Source]]*T_DataComboFile[[#This Row],[G&S reporting level indicator]]","v":0},{"$f":"T_DataComboFile[[#This Row],[2017/18_Source]]*T_DataComboFile[[#This Row],[G&S reporting level indicator]]","v":0},{"$f":"T_DataComboFile[[#This Row],[2018/19_Source]]*T_DataComboFile[[#This Row],[G&S reporting level indicator]]","v":0},{"$f":"T_DataComboFile[[#This Row],[2019/20 Main appropriation_Source]]*T_DataComboFile[[#This Row],[G&S reporting level indicator]]","v":0},{"$f":"T_DataComboFile[[#This Row],[2019/20 Adjusted appropriation_Source]]*T_DataComboFile[[#This Row],[G&S reporting level indicator]]","v":0},{"$f":"T_DataComboFile[[#This Row],[2019/20 Revised estimate_Source]]*T_DataComboFile[[#This Row],[G&S reporting level indicator]]","v":0},{"$f":"T_DataComboFile[[#This Row],[2019/20 Preliminary outcome_Source]]*T_DataComboFile[[#This Row],[G&S reporting level indicator]]","v":0},{"$f":"T_DataComboFile[[#This Row],[2020/21 Original_Source]]*T_DataComboFile[[#This Row],[G&S reporting level indicator]]","v":0},{"$f":"T_DataComboFile[[#This Row],[2020/21 SAB_Source]]*T_DataComboFile[[#This Row],[G&S reporting level indicator]]","v":0},{"$f":"T_DataComboFile[[#This Row],[2020/21 Baseline_Source]]*T_DataComboFile[[#This Row],[G&S reporting level indicator]]","v":0},{"$f":"T_DataComboFile[[#This Row],[2021/22 Baseline_Source]]*T_DataComboFile[[#This Row],[G&S reporting level indicator]]","v":0},{"$f":"T_DataComboFile[[#This Row],[2022/23 Baseline_Source]]*T_DataComboFile[[#This Row],[G&S reporting level indicator]]","v":0},{"$f":"T_DataComboFile[[#This Row],[2023/24 Baseline_Source]]*T_DataComboFile[[#This Row],[G&S reporting level indicator]]","v":0},null,null,null,null,null,null,{"$f":"T_DataComboFile[[#This Row],[2021/22 Baseline]]+T_DataComboFile[[#This Row],[2021/22 Reduction]]+T_DataComboFile[[#This Row],[2021/22 Increase]]","v":0},{"$f":"T_DataComboFile[[#This Row],[2022/23 Baseline]]+T_DataComboFile[[#This Row],[2022/23 Reduction]]+T_DataComboFile[[#This Row],[2022/23 Increase]]","v":0},{"$f":"T_DataComboFile[[#This Row],[2023/24 Baseline]]+T_DataComboFile[[#This Row],[2023/24 Reduction]]+T_DataComboFile[[#This Row],[2023/24 Increase]]","v":0}]
["NAT|Employee social benefits","36|Social benefits","2021_22","ENE2020",36,3,1,17353,70825,36,3,1,17353,"070825","36|03|01",1,2,10,52,56,"01|02|10|52|56","National","Small Business Development","Integrated Cooperative Development","Cooperatives Development","Employee social benefits","Current","Transfers and subsidies","Households","Social benefits","Social benefits","Economic development","Industrialisation and exports","NAT",1,-5,0,0,0,0,0,0,0,0,0,0,0,1,null,{"$f":"IF(T_DataComboFile[[#This Row],[G&S reporting level indicator]]=1,$AX$16,\"Not applicable\")","v":"Level 3"},{"$f":"IF(AND($AX$16=\"Level 3\",T_DataComboFile[[#This Row],[Econ3]] = \"Goods and services\"),IF(T_DataComboFile[[#This Row],[Econ4]] = T_DataComboFile[[#This Row],[Econ3]],1,0),IF(AND($AX$16=\"Level 4\",T_DataComboFile[[#This Row],[Econ4]] = \"Goods and services\"),0,1))","v":1},{"$f":"T_DataComboFile[[#This Row],[2016/17_Source]]*T_DataComboFile[[#This Row],[G&S reporting level indicator]]","v":1},{"$f":"T_DataComboFile[[#This Row],[2017/18_Source]]*T_DataComboFile[[#This Row],[G&S reporting level indicator]]","v":-5},{"$f":"T_DataComboFile[[#This Row],[2018/19_Source]]*T_DataComboFile[[#This Row],[G&S reporting level indicator]]","v":0},{"$f":"T_DataComboFile[[#This Row],[2019/20 Main appropriation_Source]]*T_DataComboFile[[#This Row],[G&S reporting level indicator]]","v":0},{"$f":"T_DataComboFile[[#This Row],[2019/20 Adjusted appropriation_Source]]*T_DataComboFile[[#This Row],[G&S reporting level indicator]]","v":0},{"$f":"T_DataComboFile[[#This Row],[2019/20 Revised estimate_Source]]*T_DataComboFile[[#This Row],[G&S reporting level indicator]]","v":0},{"$f":"T_DataComboFile[[#This Row],[2019/20 Preliminary outcome_Source]]*T_DataComboFile[[#This Row],[G&S reporting level indicator]]","v":0},{"$f":"T_DataComboFile[[#This Row],[2020/21 Original_Source]]*T_DataComboFile[[#This Row],[G&S reporting level indicator]]","v":0},{"$f":"T_DataComboFile[[#This Row],[2020/21 SAB_Source]]*T_DataComboFile[[#This Row],[G&S reporting level indicator]]","v":0},{"$f":"T_DataComboFile[[#This Row],[2020/21 Baseline_Source]]*T_DataComboFile[[#This Row],[G&S reporting level indicator]]","v":0},{"$f":"T_DataComboFile[[#This Row],[2021/22 Baseline_Source]]*T_DataComboFile[[#This Row],[G&S reporting level indicator]]","v":0},{"$f":"T_DataComboFile[[#This Row],[2022/23 Baseline_Source]]*T_DataComboFile[[#This Row],[G&S reporting level indicator]]","v":0},{"$f":"T_DataComboFile[[#This Row],[2023/24 Baseline_Source]]*T_DataComboFile[[#This Row],[G&S reporting level indicator]]","v":0},null,null,null,null,null,null,{"$f":"T_DataComboFile[[#This Row],[2021/22 Baseline]]+T_DataComboFile[[#This Row],[2021/22 Reduction]]+T_DataComboFile[[#This Row],[2021/22 Increase]]","v":0},{"$f":"T_DataComboFile[[#This Row],[2022/23 Baseline]]+T_DataComboFile[[#This Row],[2022/23 Reduction]]+T_DataComboFile[[#This Row],[2022/23 Increase]]","v":0},{"$f":"T_DataComboFile[[#This Row],[2023/24 Baseline]]+T_DataComboFile[[#This Row],[2023/24 Reduction]]+T_DataComboFile[[#This Row],[2023/24 Increase]]","v":0}]
[null,null,"2021_22","ENE2020",36,3,1,null,70826,36,3,1,null,"070826","36|03|01",1,2,10,53,57,"01|02|10|53|57","National","Small Business Development","Integrated Cooperative Development","Cooperatives Development",null,"Current","Transfers and subsidies","Households","Other transfers to households","Other transfers to households",null,null,null,0,0,0,0,0,0,0,0,0,0,0,0,0,0,null,{"$f":"IF(T_DataComboFile[[#This Row],[G&S reporting level indicator]]=1,$AX$16,\"Not applicable\")","v":"Level 3"},{"$f":"IF(AND($AX$16=\"Level 3\",T_DataComboFile[[#This Row],[Econ3]] = \"Goods and services\"),IF(T_DataComboFile[[#This Row],[Econ4]] = T_DataComboFile[[#This Row],[Econ3]],1,0),IF(AND($AX$16=\"Level 4\",T_DataComboFile[[#This Row],[Econ4]] = \"Goods and services\"),0,1))","v":1},{"$f":"T_DataComboFile[[#This Row],[2016/17_Source]]*T_DataComboFile[[#This Row],[G&S reporting level indicator]]","v":0},{"$f":"T_DataComboFile[[#This Row],[2017/18_Source]]*T_DataComboFile[[#This Row],[G&S reporting level indicator]]","v":0},{"$f":"T_DataComboFile[[#This Row],[2018/19_Source]]*T_DataComboFile[[#This Row],[G&S reporting level indicator]]","v":0},{"$f":"T_DataComboFile[[#This Row],[2019/20 Main appropriation_Source]]*T_DataComboFile[[#This Row],[G&S reporting level indicator]]","v":0},{"$f":"T_DataComboFile[[#This Row],[2019/20 Adjusted appropriation_Source]]*T_DataComboFile[[#This Row],[G&S reporting level indicator]]","v":0},{"$f":"T_DataComboFile[[#This Row],[2019/20 Revised estimate_Source]]*T_DataComboFile[[#This Row],[G&S reporting level indicator]]","v":0},{"$f":"T_DataComboFile[[#This Row],[2019/20 Preliminary outcome_Source]]*T_DataComboFile[[#This Row],[G&S reporting level indicator]]","v":0},{"$f":"T_DataComboFile[[#This Row],[2020/21 Original_Source]]*T_DataComboFile[[#This Row],[G&S reporting level indicator]]","v":0},{"$f":"T_DataComboFile[[#This Row],[2020/21 SAB_Source]]*T_DataComboFile[[#This Row],[G&S reporting level indicator]]","v":0},{"$f":"T_DataComboFile[[#This Row],[2020/21 Baseline_Source]]*T_DataComboFile[[#This Row],[G&S reporting level indicator]]","v":0},{"$f":"T_DataComboFile[[#This Row],[2021/22 Baseline_Source]]*T_DataComboFile[[#This Row],[G&S reporting level indicator]]","v":0},{"$f":"T_DataComboFile[[#This Row],[2022/23 Baseline_Source]]*T_DataComboFile[[#This Row],[G&S reporting level indicator]]","v":0},{"$f":"T_DataComboFile[[#This Row],[2023/24 Baseline_Source]]*T_DataComboFile[[#This Row],[G&S reporting level indicator]]","v":0},null,null,null,null,null,null,{"$f":"T_DataComboFile[[#This Row],[2021/22 Baseline]]+T_DataComboFile[[#This Row],[2021/22 Reduction]]+T_DataComboFile[[#This Row],[2021/22 Increase]]","v":0},{"$f":"T_DataComboFile[[#This Row],[2022/23 Baseline]]+T_DataComboFile[[#This Row],[2022/23 Reduction]]+T_DataComboFile[[#This Row],[2022/23 Increase]]","v":0},{"$f":"T_DataComboFile[[#This Row],[2023/24 Baseline]]+T_DataComboFile[[#This Row],[2023/24 Reduction]]+T_DataComboFile[[#This Row],[2023/24 Increase]]","v":0}]
[null,null,"2021_22","ENE2020",36,3,1,null,70827,36,3,1,null,"070827","36|03|01",2,2,4,43,43,"02|02|04|43|43","National","Small Business Development","Integrated Cooperative Development","Cooperatives Development",null,"Capital","Transfers and subsidies","Provinces and municipalities","Provinces","Provincial Revenue Funds",null,null,null,0,0,0,0,0,0,0,0,0,0,0,0,0,0,null,{"$f":"IF(T_DataComboFile[[#This Row],[G&S reporting level indicator]]=1,$AX$16,\"Not applicable\")","v":"Level 3"},{"$f":"IF(AND($AX$16=\"Level 3\",T_DataComboFile[[#This Row],[Econ3]] = \"Goods and services\"),IF(T_DataComboFile[[#This Row],[Econ4]] = T_DataComboFile[[#This Row],[Econ3]],1,0),IF(AND($AX$16=\"Level 4\",T_DataComboFile[[#This Row],[Econ4]] = \"Goods and services\"),0,1))","v":1},{"$f":"T_DataComboFile[[#This Row],[2016/17_Source]]*T_DataComboFile[[#This Row],[G&S reporting level indicator]]","v":0},{"$f":"T_DataComboFile[[#This Row],[2017/18_Source]]*T_DataComboFile[[#This Row],[G&S reporting level indicator]]","v":0},{"$f":"T_DataComboFile[[#This Row],[2018/19_Source]]*T_DataComboFile[[#This Row],[G&S reporting level indicator]]","v":0},{"$f":"T_DataComboFile[[#This Row],[2019/20 Main appropriation_Source]]*T_DataComboFile[[#This Row],[G&S reporting level indicator]]","v":0},{"$f":"T_DataComboFile[[#This Row],[2019/20 Adjusted appropriation_Source]]*T_DataComboFile[[#This Row],[G&S reporting level indicator]]","v":0},{"$f":"T_DataComboFile[[#This Row],[2019/20 Revised estimate_Source]]*T_DataComboFile[[#This Row],[G&S reporting level indicator]]","v":0},{"$f":"T_DataComboFile[[#This Row],[2019/20 Preliminary outcome_Source]]*T_DataComboFile[[#This Row],[G&S reporting level indicator]]","v":0},{"$f":"T_DataComboFile[[#This Row],[2020/21 Original_Source]]*T_DataComboFile[[#This Row],[G&S reporting level indicator]]","v":0},{"$f":"T_DataComboFile[[#This Row],[2020/21 SAB_Source]]*T_DataComboFile[[#This Row],[G&S reporting level indicator]]","v":0},{"$f":"T_DataComboFile[[#This Row],[2020/21 Baseline_Source]]*T_DataComboFile[[#This Row],[G&S reporting level indicator]]","v":0},{"$f":"T_DataComboFile[[#This Row],[2021/22 Baseline_Source]]*T_DataComboFile[[#This Row],[G&S reporting level indicator]]","v":0},{"$f":"T_DataComboFile[[#This Row],[2022/23 Baseline_Source]]*T_DataComboFile[[#This Row],[G&S reporting level indicator]]","v":0},{"$f":"T_DataComboFile[[#This Row],[2023/24 Baseline_Source]]*T_DataComboFile[[#This Row],[G&S reporting level indicator]]","v":0},null,null,null,null,null,null,{"$f":"T_DataComboFile[[#This Row],[2021/22 Baseline]]+T_DataComboFile[[#This Row],[2021/22 Reduction]]+T_DataComboFile[[#This Row],[2021/22 Increase]]","v":0},{"$f":"T_DataComboFile[[#This Row],[2022/23 Baseline]]+T_DataComboFile[[#This Row],[2022/23 Reduction]]+T_DataComboFile[[#This Row],[2022/23 Increase]]","v":0},{"$f":"T_DataComboFile[[#This Row],[2023/24 Baseline]]+T_DataComboFile[[#This Row],[2023/24 Reduction]]+T_DataComboFile[[#This Row],[2023/24 Increase]]","v":0}]
[null,null,"2021_22","ENE2020",36,3,1,null,70828,36,3,1,null,"070828","36|03|01",2,2,4,44,45,"02|02|04|44|45","National","Small Business Development","Integrated Cooperative Development","Cooperatives Development",null,"Capital","Transfers and subsidies","Provinces and municipalities","Municipalities","Municipal bank accounts",null,null,null,0,0,0,0,0,0,0,0,0,0,0,0,0,0,null,{"$f":"IF(T_DataComboFile[[#This Row],[G&S reporting level indicator]]=1,$AX$16,\"Not applicable\")","v":"Level 3"},{"$f":"IF(AND($AX$16=\"Level 3\",T_DataComboFile[[#This Row],[Econ3]] = \"Goods and services\"),IF(T_DataComboFile[[#This Row],[Econ4]] = T_DataComboFile[[#This Row],[Econ3]],1,0),IF(AND($AX$16=\"Level 4\",T_DataComboFile[[#This Row],[Econ4]] = \"Goods and services\"),0,1))","v":1},{"$f":"T_DataComboFile[[#This Row],[2016/17_Source]]*T_DataComboFile[[#This Row],[G&S reporting level indicator]]","v":0},{"$f":"T_DataComboFile[[#This Row],[2017/18_Source]]*T_DataComboFile[[#This Row],[G&S reporting level indicator]]","v":0},{"$f":"T_DataComboFile[[#This Row],[2018/19_Source]]*T_DataComboFile[[#This Row],[G&S reporting level indicator]]","v":0},{"$f":"T_DataComboFile[[#This Row],[2019/20 Main appropriation_Source]]*T_DataComboFile[[#This Row],[G&S reporting level indicator]]","v":0},{"$f":"T_DataComboFile[[#This Row],[2019/20 Adjusted appropriation_Source]]*T_DataComboFile[[#This Row],[G&S reporting level indicator]]","v":0},{"$f":"T_DataComboFile[[#This Row],[2019/20 Revised estimate_Source]]*T_DataComboFile[[#This Row],[G&S reporting level indicator]]","v":0},{"$f":"T_DataComboFile[[#This Row],[2019/20 Preliminary outcome_Source]]*T_DataComboFile[[#This Row],[G&S reporting level indicator]]","v":0},{"$f":"T_DataComboFile[[#This Row],[2020/21 Original_Source]]*T_DataComboFile[[#This Row],[G&S reporting level indicator]]","v":0},{"$f":"T_DataComboFile[[#This Row],[2020/21 SAB_Source]]*T_DataComboFile[[#This Row],[G&S reporting level indicator]]","v":0},{"$f":"T_DataComboFile[[#This Row],[2020/21 Baseline_Source]]*T_DataComboFile[[#This Row],[G&S reporting level indicator]]","v":0},{"$f":"T_DataComboFile[[#This Row],[2021/22 Baseline_Source]]*T_DataComboFile[[#This Row],[G&S reporting level indicator]]","v":0},{"$f":"T_DataComboFile[[#This Row],[2022/23 Baseline_Source]]*T_DataComboFile[[#This Row],[G&S reporting level indicator]]","v":0},{"$f":"T_DataComboFile[[#This Row],[2023/24 Baseline_Source]]*T_DataComboFile[[#This Row],[G&S reporting level indicator]]","v":0},null,null,null,null,null,null,{"$f":"T_DataComboFile[[#This Row],[2021/22 Baseline]]+T_DataComboFile[[#This Row],[2021/22 Reduction]]+T_DataComboFile[[#This Row],[2021/22 Increase]]","v":0},{"$f":"T_DataComboFile[[#This Row],[2022/23 Baseline]]+T_DataComboFile[[#This Row],[2022/23 Reduction]]+T_DataComboFile[[#This Row],[2022/23 Increase]]","v":0},{"$f":"T_DataComboFile[[#This Row],[2023/24 Baseline]]+T_DataComboFile[[#This Row],[2023/24 Reduction]]+T_DataComboFile[[#This Row],[2023/24 Increase]]","v":0}]
[null,null,"2021_22","ENE2020",36,3,1,null,70829,36,3,1,null,"070829","36|03|01",2,2,5,46,48,"02|02|05|46|48","National","Small Business Development","Integrated Cooperative Development","Cooperatives Development",null,"Capital","Transfers and subsidies","Departmental agencies and accounts","Departmental agencies (non-business entities)","Departmental agencies (non-business entities)",null,null,null,0,0,0,0,0,0,0,0,0,0,0,0,0,0,null,{"$f":"IF(T_DataComboFile[[#This Row],[G&S reporting level indicator]]=1,$AX$16,\"Not applicable\")","v":"Level 3"},{"$f":"IF(AND($AX$16=\"Level 3\",T_DataComboFile[[#This Row],[Econ3]] = \"Goods and services\"),IF(T_DataComboFile[[#This Row],[Econ4]] = T_DataComboFile[[#This Row],[Econ3]],1,0),IF(AND($AX$16=\"Level 4\",T_DataComboFile[[#This Row],[Econ4]] = \"Goods and services\"),0,1))","v":1},{"$f":"T_DataComboFile[[#This Row],[2016/17_Source]]*T_DataComboFile[[#This Row],[G&S reporting level indicator]]","v":0},{"$f":"T_DataComboFile[[#This Row],[2017/18_Source]]*T_DataComboFile[[#This Row],[G&S reporting level indicator]]","v":0},{"$f":"T_DataComboFile[[#This Row],[2018/19_Source]]*T_DataComboFile[[#This Row],[G&S reporting level indicator]]","v":0},{"$f":"T_DataComboFile[[#This Row],[2019/20 Main appropriation_Source]]*T_DataComboFile[[#This Row],[G&S reporting level indicator]]","v":0},{"$f":"T_DataComboFile[[#This Row],[2019/20 Adjusted appropriation_Source]]*T_DataComboFile[[#This Row],[G&S reporting level indicator]]","v":0},{"$f":"T_DataComboFile[[#This Row],[2019/20 Revised estimate_Source]]*T_DataComboFile[[#This Row],[G&S reporting level indicator]]","v":0},{"$f":"T_DataComboFile[[#This Row],[2019/20 Preliminary outcome_Source]]*T_DataComboFile[[#This Row],[G&S reporting level indicator]]","v":0},{"$f":"T_DataComboFile[[#This Row],[2020/21 Original_Source]]*T_DataComboFile[[#This Row],[G&S reporting level indicator]]","v":0},{"$f":"T_DataComboFile[[#This Row],[2020/21 SAB_Source]]*T_DataComboFile[[#This Row],[G&S reporting level indicator]]","v":0},{"$f":"T_DataComboFile[[#This Row],[2020/21 Baseline_Source]]*T_DataComboFile[[#This Row],[G&S reporting level indicator]]","v":0},{"$f":"T_DataComboFile[[#This Row],[2021/22 Baseline_Source]]*T_DataComboFile[[#This Row],[G&S reporting level indicator]]","v":0},{"$f":"T_DataComboFile[[#This Row],[2022/23 Baseline_Source]]*T_DataComboFile[[#This Row],[G&S reporting level indicator]]","v":0},{"$f":"T_DataComboFile[[#This Row],[2023/24 Baseline_Source]]*T_DataComboFile[[#This Row],[G&S reporting level indicator]]","v":0},null,null,null,null,null,null,{"$f":"T_DataComboFile[[#This Row],[2021/22 Baseline]]+T_DataComboFile[[#This Row],[2021/22 Reduction]]+T_DataComboFile[[#This Row],[2021/22 Increase]]","v":0},{"$f":"T_DataComboFile[[#This Row],[2022/23 Baseline]]+T_DataComboFile[[#This Row],[2022/23 Reduction]]+T_DataComboFile[[#This Row],[2022/23 Increase]]","v":0},{"$f":"T_DataComboFile[[#This Row],[2023/24 Baseline]]+T_DataComboFile[[#This Row],[2023/24 Reduction]]+T_DataComboFile[[#This Row],[2023/24 Increase]]","v":0}]
[null,null,"2021_22","ENE2020",36,3,1,null,70830,36,3,1,null,"070830","36|03|01",2,2,6,47,49,"02|02|06|47|49","National","Small Business Development","Integrated Cooperative Development","Cooperatives Development",null,"Capital","Transfers and subsidies","Higher education institutions","Higher education institutions","Higher education institutions",null,null,null,0,0,0,0,0,0,0,0,0,0,0,0,0,0,null,{"$f":"IF(T_DataComboFile[[#This Row],[G&S reporting level indicator]]=1,$AX$16,\"Not applicable\")","v":"Level 3"},{"$f":"IF(AND($AX$16=\"Level 3\",T_DataComboFile[[#This Row],[Econ3]] = \"Goods and services\"),IF(T_DataComboFile[[#This Row],[Econ4]] = T_DataComboFile[[#This Row],[Econ3]],1,0),IF(AND($AX$16=\"Level 4\",T_DataComboFile[[#This Row],[Econ4]] = \"Goods and services\"),0,1))","v":1},{"$f":"T_DataComboFile[[#This Row],[2016/17_Source]]*T_DataComboFile[[#This Row],[G&S reporting level indicator]]","v":0},{"$f":"T_DataComboFile[[#This Row],[2017/18_Source]]*T_DataComboFile[[#This Row],[G&S reporting level indicator]]","v":0},{"$f":"T_DataComboFile[[#This Row],[2018/19_Source]]*T_DataComboFile[[#This Row],[G&S reporting level indicator]]","v":0},{"$f":"T_DataComboFile[[#This Row],[2019/20 Main appropriation_Source]]*T_DataComboFile[[#This Row],[G&S reporting level indicator]]","v":0},{"$f":"T_DataComboFile[[#This Row],[2019/20 Adjusted appropriation_Source]]*T_DataComboFile[[#This Row],[G&S reporting level indicator]]","v":0},{"$f":"T_DataComboFile[[#This Row],[2019/20 Revised estimate_Source]]*T_DataComboFile[[#This Row],[G&S reporting level indicator]]","v":0},{"$f":"T_DataComboFile[[#This Row],[2019/20 Preliminary outcome_Source]]*T_DataComboFile[[#This Row],[G&S reporting level indicator]]","v":0},{"$f":"T_DataComboFile[[#This Row],[2020/21 Original_Source]]*T_DataComboFile[[#This Row],[G&S reporting level indicator]]","v":0},{"$f":"T_DataComboFile[[#This Row],[2020/21 SAB_Source]]*T_DataComboFile[[#This Row],[G&S reporting level indicator]]","v":0},{"$f":"T_DataComboFile[[#This Row],[2020/21 Baseline_Source]]*T_DataComboFile[[#This Row],[G&S reporting level indicator]]","v":0},{"$f":"T_DataComboFile[[#This Row],[2021/22 Baseline_Source]]*T_DataComboFile[[#This Row],[G&S reporting level indicator]]","v":0},{"$f":"T_DataComboFile[[#This Row],[2022/23 Baseline_Source]]*T_DataComboFile[[#This Row],[G&S reporting level indicator]]","v":0},{"$f":"T_DataComboFile[[#This Row],[2023/24 Baseline_Source]]*T_DataComboFile[[#This Row],[G&S reporting level indicator]]","v":0},null,null,null,null,null,null,{"$f":"T_DataComboFile[[#This Row],[2021/22 Baseline]]+T_DataComboFile[[#This Row],[2021/22 Reduction]]+T_DataComboFile[[#This Row],[2021/22 Increase]]","v":0},{"$f":"T_DataComboFile[[#This Row],[2022/23 Baseline]]+T_DataComboFile[[#This Row],[2022/23 Reduction]]+T_DataComboFile[[#This Row],[2022/23 Increase]]","v":0},{"$f":"T_DataComboFile[[#This Row],[2023/24 Baseline]]+T_DataComboFile[[#This Row],[2023/24 Reduction]]+T_DataComboFile[[#This Row],[2023/24 Increase]]","v":0}]
[null,null,"2021_22","ENE2020",36,3,1,null,70831,36,3,1,null,"070831","36|03|01",2,2,7,48,50,"02|02|07|48|50","National","Small Business Development","Integrated Cooperative Development","Cooperatives Development",null,"Capital","Transfers and subsidies","Foreign governments and international organisations","Foreign governments and international organisations","Foreign governments and international organisations",null,null,null,0,0,0,0,0,0,0,0,0,0,0,0,0,0,null,{"$f":"IF(T_DataComboFile[[#This Row],[G&S reporting level indicator]]=1,$AX$16,\"Not applicable\")","v":"Level 3"},{"$f":"IF(AND($AX$16=\"Level 3\",T_DataComboFile[[#This Row],[Econ3]] = \"Goods and services\"),IF(T_DataComboFile[[#This Row],[Econ4]] = T_DataComboFile[[#This Row],[Econ3]],1,0),IF(AND($AX$16=\"Level 4\",T_DataComboFile[[#This Row],[Econ4]] = \"Goods and services\"),0,1))","v":1},{"$f":"T_DataComboFile[[#This Row],[2016/17_Source]]*T_DataComboFile[[#This Row],[G&S reporting level indicator]]","v":0},{"$f":"T_DataComboFile[[#This Row],[2017/18_Source]]*T_DataComboFile[[#This Row],[G&S reporting level indicator]]","v":0},{"$f":"T_DataComboFile[[#This Row],[2018/19_Source]]*T_DataComboFile[[#This Row],[G&S reporting level indicator]]","v":0},{"$f":"T_DataComboFile[[#This Row],[2019/20 Main appropriation_Source]]*T_DataComboFile[[#This Row],[G&S reporting level indicator]]","v":0},{"$f":"T_DataComboFile[[#This Row],[2019/20 Adjusted appropriation_Source]]*T_DataComboFile[[#This Row],[G&S reporting level indicator]]","v":0},{"$f":"T_DataComboFile[[#This Row],[2019/20 Revised estimate_Source]]*T_DataComboFile[[#This Row],[G&S reporting level indicator]]","v":0},{"$f":"T_DataComboFile[[#This Row],[2019/20 Preliminary outcome_Source]]*T_DataComboFile[[#This Row],[G&S reporting level indicator]]","v":0},{"$f":"T_DataComboFile[[#This Row],[2020/21 Original_Source]]*T_DataComboFile[[#This Row],[G&S reporting level indicator]]","v":0},{"$f":"T_DataComboFile[[#This Row],[2020/21 SAB_Source]]*T_DataComboFile[[#This Row],[G&S reporting level indicator]]","v":0},{"$f":"T_DataComboFile[[#This Row],[2020/21 Baseline_Source]]*T_DataComboFile[[#This Row],[G&S reporting level indicator]]","v":0},{"$f":"T_DataComboFile[[#This Row],[2021/22 Baseline_Source]]*T_DataComboFile[[#This Row],[G&S reporting level indicator]]","v":0},{"$f":"T_DataComboFile[[#This Row],[2022/23 Baseline_Source]]*T_DataComboFile[[#This Row],[G&S reporting level indicator]]","v":0},{"$f":"T_DataComboFile[[#This Row],[2023/24 Baseline_Source]]*T_DataComboFile[[#This Row],[G&S reporting level indicator]]","v":0},null,null,null,null,null,null,{"$f":"T_DataComboFile[[#This Row],[2021/22 Baseline]]+T_DataComboFile[[#This Row],[2021/22 Reduction]]+T_DataComboFile[[#This Row],[2021/22 Increase]]","v":0},{"$f":"T_DataComboFile[[#This Row],[2022/23 Baseline]]+T_DataComboFile[[#This Row],[2022/23 Reduction]]+T_DataComboFile[[#This Row],[2022/23 Increase]]","v":0},{"$f":"T_DataComboFile[[#This Row],[2023/24 Baseline]]+T_DataComboFile[[#This Row],[2023/24 Reduction]]+T_DataComboFile[[#This Row],[2023/24 Increase]]","v":0}]
[null,null,"2021_22","ENE2020",36,3,1,null,70832,36,3,1,null,"070832","36|03|01",2,2,8,49,51,"02|02|08|49|51","National","Small Business Development","Integrated Cooperative Development","Cooperatives Development",null,"Capital","Transfers and subsidies","Public corporations and private enterprises","Public corporations","Subsidies on products and production (pc)",null,null,null,0,0,0,0,0,0,0,0,0,0,0,0,0,0,null,{"$f":"IF(T_DataComboFile[[#This Row],[G&S reporting level indicator]]=1,$AX$16,\"Not applicable\")","v":"Level 3"},{"$f":"IF(AND($AX$16=\"Level 3\",T_DataComboFile[[#This Row],[Econ3]] = \"Goods and services\"),IF(T_DataComboFile[[#This Row],[Econ4]] = T_DataComboFile[[#This Row],[Econ3]],1,0),IF(AND($AX$16=\"Level 4\",T_DataComboFile[[#This Row],[Econ4]] = \"Goods and services\"),0,1))","v":1},{"$f":"T_DataComboFile[[#This Row],[2016/17_Source]]*T_DataComboFile[[#This Row],[G&S reporting level indicator]]","v":0},{"$f":"T_DataComboFile[[#This Row],[2017/18_Source]]*T_DataComboFile[[#This Row],[G&S reporting level indicator]]","v":0},{"$f":"T_DataComboFile[[#This Row],[2018/19_Source]]*T_DataComboFile[[#This Row],[G&S reporting level indicator]]","v":0},{"$f":"T_DataComboFile[[#This Row],[2019/20 Main appropriation_Source]]*T_DataComboFile[[#This Row],[G&S reporting level indicator]]","v":0},{"$f":"T_DataComboFile[[#This Row],[2019/20 Adjusted appropriation_Source]]*T_DataComboFile[[#This Row],[G&S reporting level indicator]]","v":0},{"$f":"T_DataComboFile[[#This Row],[2019/20 Revised estimate_Source]]*T_DataComboFile[[#This Row],[G&S reporting level indicator]]","v":0},{"$f":"T_DataComboFile[[#This Row],[2019/20 Preliminary outcome_Source]]*T_DataComboFile[[#This Row],[G&S reporting level indicator]]","v":0},{"$f":"T_DataComboFile[[#This Row],[2020/21 Original_Source]]*T_DataComboFile[[#This Row],[G&S reporting level indicator]]","v":0},{"$f":"T_DataComboFile[[#This Row],[2020/21 SAB_Source]]*T_DataComboFile[[#This Row],[G&S reporting level indicator]]","v":0},{"$f":"T_DataComboFile[[#This Row],[2020/21 Baseline_Source]]*T_DataComboFile[[#This Row],[G&S reporting level indicator]]","v":0},{"$f":"T_DataComboFile[[#This Row],[2021/22 Baseline_Source]]*T_DataComboFile[[#This Row],[G&S reporting level indicator]]","v":0},{"$f":"T_DataComboFile[[#This Row],[2022/23 Baseline_Source]]*T_DataComboFile[[#This Row],[G&S reporting level indicator]]","v":0},{"$f":"T_DataComboFile[[#This Row],[2023/24 Baseline_Source]]*T_DataComboFile[[#This Row],[G&S reporting level indicator]]","v":0},null,null,null,null,null,null,{"$f":"T_DataComboFile[[#This Row],[2021/22 Baseline]]+T_DataComboFile[[#This Row],[2021/22 Reduction]]+T_DataComboFile[[#This Row],[2021/22 Increase]]","v":0},{"$f":"T_DataComboFile[[#This Row],[2022/23 Baseline]]+T_DataComboFile[[#This Row],[2022/23 Reduction]]+T_DataComboFile[[#This Row],[2022/23 Increase]]","v":0},{"$f":"T_DataComboFile[[#This Row],[2023/24 Baseline]]+T_DataComboFile[[#This Row],[2023/24 Reduction]]+T_DataComboFile[[#This Row],[2023/24 Increase]]","v":0}]
[null,null,"2021_22","ENE2020",36,3,1,null,70833,36,3,1,null,"070833","36|03|01",2,2,8,49,52,"02|02|08|49|52","National","Small Business Development","Integrated Cooperative Development","Cooperatives Development",null,"Capital","Transfers and subsidies","Public corporations and private enterprises","Public corporations","Other transfers to public corporations",null,null,null,0,0,0,0,0,0,0,0,0,0,0,0,0,0,null,{"$f":"IF(T_DataComboFile[[#This Row],[G&S reporting level indicator]]=1,$AX$16,\"Not applicable\")","v":"Level 3"},{"$f":"IF(AND($AX$16=\"Level 3\",T_DataComboFile[[#This Row],[Econ3]] = \"Goods and services\"),IF(T_DataComboFile[[#This Row],[Econ4]] = T_DataComboFile[[#This Row],[Econ3]],1,0),IF(AND($AX$16=\"Level 4\",T_DataComboFile[[#This Row],[Econ4]] = \"Goods and services\"),0,1))","v":1},{"$f":"T_DataComboFile[[#This Row],[2016/17_Source]]*T_DataComboFile[[#This Row],[G&S reporting level indicator]]","v":0},{"$f":"T_DataComboFile[[#This Row],[2017/18_Source]]*T_DataComboFile[[#This Row],[G&S reporting level indicator]]","v":0},{"$f":"T_DataComboFile[[#This Row],[2018/19_Source]]*T_DataComboFile[[#This Row],[G&S reporting level indicator]]","v":0},{"$f":"T_DataComboFile[[#This Row],[2019/20 Main appropriation_Source]]*T_DataComboFile[[#This Row],[G&S reporting level indicator]]","v":0},{"$f":"T_DataComboFile[[#This Row],[2019/20 Adjusted appropriation_Source]]*T_DataComboFile[[#This Row],[G&S reporting level indicator]]","v":0},{"$f":"T_DataComboFile[[#This Row],[2019/20 Revised estimate_Source]]*T_DataComboFile[[#This Row],[G&S reporting level indicator]]","v":0},{"$f":"T_DataComboFile[[#This Row],[2019/20 Preliminary outcome_Source]]*T_DataComboFile[[#This Row],[G&S reporting level indicator]]","v":0},{"$f":"T_DataComboFile[[#This Row],[2020/21 Original_Source]]*T_DataComboFile[[#This Row],[G&S reporting level indicator]]","v":0},{"$f":"T_DataComboFile[[#This Row],[2020/21 SAB_Source]]*T_DataComboFile[[#This Row],[G&S reporting level indicator]]","v":0},{"$f":"T_DataComboFile[[#This Row],[2020/21 Baseline_Source]]*T_DataComboFile[[#This Row],[G&S reporting level indicator]]","v":0},{"$f":"T_DataComboFile[[#This Row],[2021/22 Baseline_Source]]*T_DataComboFile[[#This Row],[G&S reporting level indicator]]","v":0},{"$f":"T_DataComboFile[[#This Row],[2022/23 Baseline_Source]]*T_DataComboFile[[#This Row],[G&S reporting level indicator]]","v":0},{"$f":"T_DataComboFile[[#This Row],[2023/24 Baseline_Source]]*T_DataComboFile[[#This Row],[G&S reporting level indicator]]","v":0},null,null,null,null,null,null,{"$f":"T_DataComboFile[[#This Row],[2021/22 Baseline]]+T_DataComboFile[[#This Row],[2021/22 Reduction]]+T_DataComboFile[[#This Row],[2021/22 Increase]]","v":0},{"$f":"T_DataComboFile[[#This Row],[2022/23 Baseline]]+T_DataComboFile[[#This Row],[2022/23 Reduction]]+T_DataComboFile[[#This Row],[2022/23 Increase]]","v":0},{"$f":"T_DataComboFile[[#This Row],[2023/24 Baseline]]+T_DataComboFile[[#This Row],[2023/24 Reduction]]+T_DataComboFile[[#This Row],[2023/24 Increase]]","v":0}]
[null,null,"2021_22","ENE2020",36,3,1,null,70834,36,3,1,null,"070834","36|03|01",2,2,8,50,54,"02|02|08|50|54","National","Small Business Development","Integrated Cooperative Development","Cooperatives Development",null,"Capital","Transfers and subsidies","Public corporations and private enterprises","Private enterprises","Other transfers to private enterprises",null,null,null,0,0,0,0,0,0,0,0,0,0,0,0,0,0,null,{"$f":"IF(T_DataComboFile[[#This Row],[G&S reporting level indicator]]=1,$AX$16,\"Not applicable\")","v":"Level 3"},{"$f":"IF(AND($AX$16=\"Level 3\",T_DataComboFile[[#This Row],[Econ3]] = \"Goods and services\"),IF(T_DataComboFile[[#This Row],[Econ4]] = T_DataComboFile[[#This Row],[Econ3]],1,0),IF(AND($AX$16=\"Level 4\",T_DataComboFile[[#This Row],[Econ4]] = \"Goods and services\"),0,1))","v":1},{"$f":"T_DataComboFile[[#This Row],[2016/17_Source]]*T_DataComboFile[[#This Row],[G&S reporting level indicator]]","v":0},{"$f":"T_DataComboFile[[#This Row],[2017/18_Source]]*T_DataComboFile[[#This Row],[G&S reporting level indicator]]","v":0},{"$f":"T_DataComboFile[[#This Row],[2018/19_Source]]*T_DataComboFile[[#This Row],[G&S reporting level indicator]]","v":0},{"$f":"T_DataComboFile[[#This Row],[2019/20 Main appropriation_Source]]*T_DataComboFile[[#This Row],[G&S reporting level indicator]]","v":0},{"$f":"T_DataComboFile[[#This Row],[2019/20 Adjusted appropriation_Source]]*T_DataComboFile[[#This Row],[G&S reporting level indicator]]","v":0},{"$f":"T_DataComboFile[[#This Row],[2019/20 Revised estimate_Source]]*T_DataComboFile[[#This Row],[G&S reporting level indicator]]","v":0},{"$f":"T_DataComboFile[[#This Row],[2019/20 Preliminary outcome_Source]]*T_DataComboFile[[#This Row],[G&S reporting level indicator]]","v":0},{"$f":"T_DataComboFile[[#This Row],[2020/21 Original_Source]]*T_DataComboFile[[#This Row],[G&S reporting level indicator]]","v":0},{"$f":"T_DataComboFile[[#This Row],[2020/21 SAB_Source]]*T_DataComboFile[[#This Row],[G&S reporting level indicator]]","v":0},{"$f":"T_DataComboFile[[#This Row],[2020/21 Baseline_Source]]*T_DataComboFile[[#This Row],[G&S reporting level indicator]]","v":0},{"$f":"T_DataComboFile[[#This Row],[2021/22 Baseline_Source]]*T_DataComboFile[[#This Row],[G&S reporting level indicator]]","v":0},{"$f":"T_DataComboFile[[#This Row],[2022/23 Baseline_Source]]*T_DataComboFile[[#This Row],[G&S reporting level indicator]]","v":0},{"$f":"T_DataComboFile[[#This Row],[2023/24 Baseline_Source]]*T_DataComboFile[[#This Row],[G&S reporting level indicator]]","v":0},null,null,null,null,null,null,{"$f":"T_DataComboFile[[#This Row],[2021/22 Baseline]]+T_DataComboFile[[#This Row],[2021/22 Reduction]]+T_DataComboFile[[#This Row],[2021/22 Increase]]","v":0},{"$f":"T_DataComboFile[[#This Row],[2022/23 Baseline]]+T_DataComboFile[[#This Row],[2022/23 Reduction]]+T_DataComboFile[[#This Row],[2022/23 Increase]]","v":0},{"$f":"T_DataComboFile[[#This Row],[2023/24 Baseline]]+T_DataComboFile[[#This Row],[2023/24 Reduction]]+T_DataComboFile[[#This Row],[2023/24 Increase]]","v":0}]
[null,null,"2021_22","ENE2020",36,3,1,null,70835,36,3,1,null,"070835","36|03|01",2,2,9,51,55,"02|02|09|51|55","National","Small Business Development","Integrated Cooperative Development","Cooperatives Development",null,"Capital","Transfers and subsidies","Non-profit institutions","Non-profit institutions","Non-profit institutions",null,null,null,0,0,0,0,0,0,0,0,0,0,0,0,0,0,null,{"$f":"IF(T_DataComboFile[[#This Row],[G&S reporting level indicator]]=1,$AX$16,\"Not applicable\")","v":"Level 3"},{"$f":"IF(AND($AX$16=\"Level 3\",T_DataComboFile[[#This Row],[Econ3]] = \"Goods and services\"),IF(T_DataComboFile[[#This Row],[Econ4]] = T_DataComboFile[[#This Row],[Econ3]],1,0),IF(AND($AX$16=\"Level 4\",T_DataComboFile[[#This Row],[Econ4]] = \"Goods and services\"),0,1))","v":1},{"$f":"T_DataComboFile[[#This Row],[2016/17_Source]]*T_DataComboFile[[#This Row],[G&S reporting level indicator]]","v":0},{"$f":"T_DataComboFile[[#This Row],[2017/18_Source]]*T_DataComboFile[[#This Row],[G&S reporting level indicator]]","v":0},{"$f":"T_DataComboFile[[#This Row],[2018/19_Source]]*T_DataComboFile[[#This Row],[G&S reporting level indicator]]","v":0},{"$f":"T_DataComboFile[[#This Row],[2019/20 Main appropriation_Source]]*T_DataComboFile[[#This Row],[G&S reporting level indicator]]","v":0},{"$f":"T_DataComboFile[[#This Row],[2019/20 Adjusted appropriation_Source]]*T_DataComboFile[[#This Row],[G&S reporting level indicator]]","v":0},{"$f":"T_DataComboFile[[#This Row],[2019/20 Revised estimate_Source]]*T_DataComboFile[[#This Row],[G&S reporting level indicator]]","v":0},{"$f":"T_DataComboFile[[#This Row],[2019/20 Preliminary outcome_Source]]*T_DataComboFile[[#This Row],[G&S reporting level indicator]]","v":0},{"$f":"T_DataComboFile[[#This Row],[2020/21 Original_Source]]*T_DataComboFile[[#This Row],[G&S reporting level indicator]]","v":0},{"$f":"T_DataComboFile[[#This Row],[2020/21 SAB_Source]]*T_DataComboFile[[#This Row],[G&S reporting level indicator]]","v":0},{"$f":"T_DataComboFile[[#This Row],[2020/21 Baseline_Source]]*T_DataComboFile[[#This Row],[G&S reporting level indicator]]","v":0},{"$f":"T_DataComboFile[[#This Row],[2021/22 Baseline_Source]]*T_DataComboFile[[#This Row],[G&S reporting level indicator]]","v":0},{"$f":"T_DataComboFile[[#This Row],[2022/23 Baseline_Source]]*T_DataComboFile[[#This Row],[G&S reporting level indicator]]","v":0},{"$f":"T_DataComboFile[[#This Row],[2023/24 Baseline_Source]]*T_DataComboFile[[#This Row],[G&S reporting level indicator]]","v":0},null,null,null,null,null,null,{"$f":"T_DataComboFile[[#This Row],[2021/22 Baseline]]+T_DataComboFile[[#This Row],[2021/22 Reduction]]+T_DataComboFile[[#This Row],[2021/22 Increase]]","v":0},{"$f":"T_DataComboFile[[#This Row],[2022/23 Baseline]]+T_DataComboFile[[#This Row],[2022/23 Reduction]]+T_DataComboFile[[#This Row],[2022/23 Increase]]","v":0},{"$f":"T_DataComboFile[[#This Row],[2023/24 Baseline]]+T_DataComboFile[[#This Row],[2023/24 Reduction]]+T_DataComboFile[[#This Row],[2023/24 Increase]]","v":0}]
[null,null,"2021_22","ENE2020",36,3,1,null,70836,36,3,1,null,"070836","36|03|01",2,2,10,53,57,"02|02|10|53|57","National","Small Business Development","Integrated Cooperative Development","Cooperatives Development",null,"Capital","Transfers and subsidies","Households","Other transfers to households","Other transfers to households",null,null,null,0,0,0,0,0,0,0,0,0,0,0,0,0,0,null,{"$f":"IF(T_DataComboFile[[#This Row],[G&S reporting level indicator]]=1,$AX$16,\"Not applicable\")","v":"Level 3"},{"$f":"IF(AND($AX$16=\"Level 3\",T_DataComboFile[[#This Row],[Econ3]] = \"Goods and services\"),IF(T_DataComboFile[[#This Row],[Econ4]] = T_DataComboFile[[#This Row],[Econ3]],1,0),IF(AND($AX$16=\"Level 4\",T_DataComboFile[[#This Row],[Econ4]] = \"Goods and services\"),0,1))","v":1},{"$f":"T_DataComboFile[[#This Row],[2016/17_Source]]*T_DataComboFile[[#This Row],[G&S reporting level indicator]]","v":0},{"$f":"T_DataComboFile[[#This Row],[2017/18_Source]]*T_DataComboFile[[#This Row],[G&S reporting level indicator]]","v":0},{"$f":"T_DataComboFile[[#This Row],[2018/19_Source]]*T_DataComboFile[[#This Row],[G&S reporting level indicator]]","v":0},{"$f":"T_DataComboFile[[#This Row],[2019/20 Main appropriation_Source]]*T_DataComboFile[[#This Row],[G&S reporting level indicator]]","v":0},{"$f":"T_DataComboFile[[#This Row],[2019/20 Adjusted appropriation_Source]]*T_DataComboFile[[#This Row],[G&S reporting level indicator]]","v":0},{"$f":"T_DataComboFile[[#This Row],[2019/20 Revised estimate_Source]]*T_DataComboFile[[#This Row],[G&S reporting level indicator]]","v":0},{"$f":"T_DataComboFile[[#This Row],[2019/20 Preliminary outcome_Source]]*T_DataComboFile[[#This Row],[G&S reporting level indicator]]","v":0},{"$f":"T_DataComboFile[[#This Row],[2020/21 Original_Source]]*T_DataComboFile[[#This Row],[G&S reporting level indicator]]","v":0},{"$f":"T_DataComboFile[[#This Row],[2020/21 SAB_Source]]*T_DataComboFile[[#This Row],[G&S reporting level indicator]]","v":0},{"$f":"T_DataComboFile[[#This Row],[2020/21 Baseline_Source]]*T_DataComboFile[[#This Row],[G&S reporting level indicator]]","v":0},{"$f":"T_DataComboFile[[#This Row],[2021/22 Baseline_Source]]*T_DataComboFile[[#This Row],[G&S reporting level indicator]]","v":0},{"$f":"T_DataComboFile[[#This Row],[2022/23 Baseline_Source]]*T_DataComboFile[[#This Row],[G&S reporting level indicator]]","v":0},{"$f":"T_DataComboFile[[#This Row],[2023/24 Baseline_Source]]*T_DataComboFile[[#This Row],[G&S reporting level indicator]]","v":0},null,null,null,null,null,null,{"$f":"T_DataComboFile[[#This Row],[2021/22 Baseline]]+T_DataComboFile[[#This Row],[2021/22 Reduction]]+T_DataComboFile[[#This Row],[2021/22 Increase]]","v":0},{"$f":"T_DataComboFile[[#This Row],[2022/23 Baseline]]+T_DataComboFile[[#This Row],[2022/23 Reduction]]+T_DataComboFile[[#This Row],[2022/23 Increase]]","v":0},{"$f":"T_DataComboFile[[#This Row],[2023/24 Baseline]]+T_DataComboFile[[#This Row],[2023/24 Reduction]]+T_DataComboFile[[#This Row],[2023/24 Increase]]","v":0}]
[null,null,"2021_22","ENE2020",36,3,1,null,70837,36,3,1,null,"070837","36|03|01",2,3,11,54,58,"02|03|11|54|58","National","Small Business Development","Integrated Cooperative Development","Cooperatives Development",null,"Capital","Payments for capital assets","Buildings and other fixed structures","Buildings","Buildings",null,null,null,0,0,0,0,0,0,0,0,0,0,0,0,0,0,null,{"$f":"IF(T_DataComboFile[[#This Row],[G&S reporting level indicator]]=1,$AX$16,\"Not applicable\")","v":"Level 3"},{"$f":"IF(AND($AX$16=\"Level 3\",T_DataComboFile[[#This Row],[Econ3]] = \"Goods and services\"),IF(T_DataComboFile[[#This Row],[Econ4]] = T_DataComboFile[[#This Row],[Econ3]],1,0),IF(AND($AX$16=\"Level 4\",T_DataComboFile[[#This Row],[Econ4]] = \"Goods and services\"),0,1))","v":1},{"$f":"T_DataComboFile[[#This Row],[2016/17_Source]]*T_DataComboFile[[#This Row],[G&S reporting level indicator]]","v":0},{"$f":"T_DataComboFile[[#This Row],[2017/18_Source]]*T_DataComboFile[[#This Row],[G&S reporting level indicator]]","v":0},{"$f":"T_DataComboFile[[#This Row],[2018/19_Source]]*T_DataComboFile[[#This Row],[G&S reporting level indicator]]","v":0},{"$f":"T_DataComboFile[[#This Row],[2019/20 Main appropriation_Source]]*T_DataComboFile[[#This Row],[G&S reporting level indicator]]","v":0},{"$f":"T_DataComboFile[[#This Row],[2019/20 Adjusted appropriation_Source]]*T_DataComboFile[[#This Row],[G&S reporting level indicator]]","v":0},{"$f":"T_DataComboFile[[#This Row],[2019/20 Revised estimate_Source]]*T_DataComboFile[[#This Row],[G&S reporting level indicator]]","v":0},{"$f":"T_DataComboFile[[#This Row],[2019/20 Preliminary outcome_Source]]*T_DataComboFile[[#This Row],[G&S reporting level indicator]]","v":0},{"$f":"T_DataComboFile[[#This Row],[2020/21 Original_Source]]*T_DataComboFile[[#This Row],[G&S reporting level indicator]]","v":0},{"$f":"T_DataComboFile[[#This Row],[2020/21 SAB_Source]]*T_DataComboFile[[#This Row],[G&S reporting level indicator]]","v":0},{"$f":"T_DataComboFile[[#This Row],[2020/21 Baseline_Source]]*T_DataComboFile[[#This Row],[G&S reporting level indicator]]","v":0},{"$f":"T_DataComboFile[[#This Row],[2021/22 Baseline_Source]]*T_DataComboFile[[#This Row],[G&S reporting level indicator]]","v":0},{"$f":"T_DataComboFile[[#This Row],[2022/23 Baseline_Source]]*T_DataComboFile[[#This Row],[G&S reporting level indicator]]","v":0},{"$f":"T_DataComboFile[[#This Row],[2023/24 Baseline_Source]]*T_DataComboFile[[#This Row],[G&S reporting level indicator]]","v":0},null,null,null,null,null,null,{"$f":"T_DataComboFile[[#This Row],[2021/22 Baseline]]+T_DataComboFile[[#This Row],[2021/22 Reduction]]+T_DataComboFile[[#This Row],[2021/22 Increase]]","v":0},{"$f":"T_DataComboFile[[#This Row],[2022/23 Baseline]]+T_DataComboFile[[#This Row],[2022/23 Reduction]]+T_DataComboFile[[#This Row],[2022/23 Increase]]","v":0},{"$f":"T_DataComboFile[[#This Row],[2023/24 Baseline]]+T_DataComboFile[[#This Row],[2023/24 Reduction]]+T_DataComboFile[[#This Row],[2023/24 Increase]]","v":0}]
[null,null,"2021_22","ENE2020",36,3,1,null,70838,36,3,1,null,"070838","36|03|01",2,3,11,55,59,"02|03|11|55|59","National","Small Business Development","Integrated Cooperative Development","Cooperatives Development",null,"Capital","Payments for capital assets","Buildings and other fixed structures","Other fixed structures","Other fixed structures",null,null,null,0,0,0,0,0,0,0,0,0,0,0,0,0,0,null,{"$f":"IF(T_DataComboFile[[#This Row],[G&S reporting level indicator]]=1,$AX$16,\"Not applicable\")","v":"Level 3"},{"$f":"IF(AND($AX$16=\"Level 3\",T_DataComboFile[[#This Row],[Econ3]] = \"Goods and services\"),IF(T_DataComboFile[[#This Row],[Econ4]] = T_DataComboFile[[#This Row],[Econ3]],1,0),IF(AND($AX$16=\"Level 4\",T_DataComboFile[[#This Row],[Econ4]] = \"Goods and services\"),0,1))","v":1},{"$f":"T_DataComboFile[[#This Row],[2016/17_Source]]*T_DataComboFile[[#This Row],[G&S reporting level indicator]]","v":0},{"$f":"T_DataComboFile[[#This Row],[2017/18_Source]]*T_DataComboFile[[#This Row],[G&S reporting level indicator]]","v":0},{"$f":"T_DataComboFile[[#This Row],[2018/19_Source]]*T_DataComboFile[[#This Row],[G&S reporting level indicator]]","v":0},{"$f":"T_DataComboFile[[#This Row],[2019/20 Main appropriation_Source]]*T_DataComboFile[[#This Row],[G&S reporting level indicator]]","v":0},{"$f":"T_DataComboFile[[#This Row],[2019/20 Adjusted appropriation_Source]]*T_DataComboFile[[#This Row],[G&S reporting level indicator]]","v":0},{"$f":"T_DataComboFile[[#This Row],[2019/20 Revised estimate_Source]]*T_DataComboFile[[#This Row],[G&S reporting level indicator]]","v":0},{"$f":"T_DataComboFile[[#This Row],[2019/20 Preliminary outcome_Source]]*T_DataComboFile[[#This Row],[G&S reporting level indicator]]","v":0},{"$f":"T_DataComboFile[[#This Row],[2020/21 Original_Source]]*T_DataComboFile[[#This Row],[G&S reporting level indicator]]","v":0},{"$f":"T_DataComboFile[[#This Row],[2020/21 SAB_Source]]*T_DataComboFile[[#This Row],[G&S reporting level indicator]]","v":0},{"$f":"T_DataComboFile[[#This Row],[2020/21 Baseline_Source]]*T_DataComboFile[[#This Row],[G&S reporting level indicator]]","v":0},{"$f":"T_DataComboFile[[#This Row],[2021/22 Baseline_Source]]*T_DataComboFile[[#This Row],[G&S reporting level indicator]]","v":0},{"$f":"T_DataComboFile[[#This Row],[2022/23 Baseline_Source]]*T_DataComboFile[[#This Row],[G&S reporting level indicator]]","v":0},{"$f":"T_DataComboFile[[#This Row],[2023/24 Baseline_Source]]*T_DataComboFile[[#This Row],[G&S reporting level indicator]]","v":0},null,null,null,null,null,null,{"$f":"T_DataComboFile[[#This Row],[2021/22 Baseline]]+T_DataComboFile[[#This Row],[2021/22 Reduction]]+T_DataComboFile[[#This Row],[2021/22 Increase]]","v":0},{"$f":"T_DataComboFile[[#This Row],[2022/23 Baseline]]+T_DataComboFile[[#This Row],[2022/23 Reduction]]+T_DataComboFile[[#This Row],[2022/23 Increase]]","v":0},{"$f":"T_DataComboFile[[#This Row],[2023/24 Baseline]]+T_DataComboFile[[#This Row],[2023/24 Reduction]]+T_DataComboFile[[#This Row],[2023/24 Increase]]","v":0}]
[null,null,"2021_22","ENE2020",36,3,1,null,70839,36,3,1,null,"070839","36|03|01",2,3,12,56,60,"02|03|12|56|60","National","Small Business Development","Integrated Cooperative Development","Cooperatives Development",null,"Capital","Payments for capital assets","Machinery and equipment","Transport equipment","Transport equipment",null,null,null,0,0,0,0,0,0,0,0,0,0,0,0,0,0,null,{"$f":"IF(T_DataComboFile[[#This Row],[G&S reporting level indicator]]=1,$AX$16,\"Not applicable\")","v":"Level 3"},{"$f":"IF(AND($AX$16=\"Level 3\",T_DataComboFile[[#This Row],[Econ3]] = \"Goods and services\"),IF(T_DataComboFile[[#This Row],[Econ4]] = T_DataComboFile[[#This Row],[Econ3]],1,0),IF(AND($AX$16=\"Level 4\",T_DataComboFile[[#This Row],[Econ4]] = \"Goods and services\"),0,1))","v":1},{"$f":"T_DataComboFile[[#This Row],[2016/17_Source]]*T_DataComboFile[[#This Row],[G&S reporting level indicator]]","v":0},{"$f":"T_DataComboFile[[#This Row],[2017/18_Source]]*T_DataComboFile[[#This Row],[G&S reporting level indicator]]","v":0},{"$f":"T_DataComboFile[[#This Row],[2018/19_Source]]*T_DataComboFile[[#This Row],[G&S reporting level indicator]]","v":0},{"$f":"T_DataComboFile[[#This Row],[2019/20 Main appropriation_Source]]*T_DataComboFile[[#This Row],[G&S reporting level indicator]]","v":0},{"$f":"T_DataComboFile[[#This Row],[2019/20 Adjusted appropriation_Source]]*T_DataComboFile[[#This Row],[G&S reporting level indicator]]","v":0},{"$f":"T_DataComboFile[[#This Row],[2019/20 Revised estimate_Source]]*T_DataComboFile[[#This Row],[G&S reporting level indicator]]","v":0},{"$f":"T_DataComboFile[[#This Row],[2019/20 Preliminary outcome_Source]]*T_DataComboFile[[#This Row],[G&S reporting level indicator]]","v":0},{"$f":"T_DataComboFile[[#This Row],[2020/21 Original_Source]]*T_DataComboFile[[#This Row],[G&S reporting level indicator]]","v":0},{"$f":"T_DataComboFile[[#This Row],[2020/21 SAB_Source]]*T_DataComboFile[[#This Row],[G&S reporting level indicator]]","v":0},{"$f":"T_DataComboFile[[#This Row],[2020/21 Baseline_Source]]*T_DataComboFile[[#This Row],[G&S reporting level indicator]]","v":0},{"$f":"T_DataComboFile[[#This Row],[2021/22 Baseline_Source]]*T_DataComboFile[[#This Row],[G&S reporting level indicator]]","v":0},{"$f":"T_DataComboFile[[#This Row],[2022/23 Baseline_Source]]*T_DataComboFile[[#This Row],[G&S reporting level indicator]]","v":0},{"$f":"T_DataComboFile[[#This Row],[2023/24 Baseline_Source]]*T_DataComboFile[[#This Row],[G&S reporting level indicator]]","v":0},null,null,null,null,null,null,{"$f":"T_DataComboFile[[#This Row],[2021/22 Baseline]]+T_DataComboFile[[#This Row],[2021/22 Reduction]]+T_DataComboFile[[#This Row],[2021/22 Increase]]","v":0},{"$f":"T_DataComboFile[[#This Row],[2022/23 Baseline]]+T_DataComboFile[[#This Row],[2022/23 Reduction]]+T_DataComboFile[[#This Row],[2022/23 Increase]]","v":0},{"$f":"T_DataComboFile[[#This Row],[2023/24 Baseline]]+T_DataComboFile[[#This Row],[2023/24 Reduction]]+T_DataComboFile[[#This Row],[2023/24 Increase]]","v":0}]
["NAT|Non-transfer item","36|Other machinery and equipment","2021_22","ENE2020",36,3,1,17354,70840,36,3,1,17354,"070840","36|03|01",2,3,12,57,61,"02|03|12|57|61","National","Small Business Development","Integrated Cooperative Development","Cooperatives Development","Non-transfer item","Capital","Payments for capital assets","Machinery and equipment","Other machinery and equipment","Other machinery and equipment","Economic development","Industrialisation and exports","NAT",4,47,57,35,60,60,60,80,80,80,85,90,94,1,null,{"$f":"IF(T_DataComboFile[[#This Row],[G&S reporting level indicator]]=1,$AX$16,\"Not applicable\")","v":"Level 3"},{"$f":"IF(AND($AX$16=\"Level 3\",T_DataComboFile[[#This Row],[Econ3]] = \"Goods and services\"),IF(T_DataComboFile[[#This Row],[Econ4]] = T_DataComboFile[[#This Row],[Econ3]],1,0),IF(AND($AX$16=\"Level 4\",T_DataComboFile[[#This Row],[Econ4]] = \"Goods and services\"),0,1))","v":1},{"$f":"T_DataComboFile[[#This Row],[2016/17_Source]]*T_DataComboFile[[#This Row],[G&S reporting level indicator]]","v":4},{"$f":"T_DataComboFile[[#This Row],[2017/18_Source]]*T_DataComboFile[[#This Row],[G&S reporting level indicator]]","v":47},{"$f":"T_DataComboFile[[#This Row],[2018/19_Source]]*T_DataComboFile[[#This Row],[G&S reporting level indicator]]","v":57},{"$f":"T_DataComboFile[[#This Row],[2019/20 Main appropriation_Source]]*T_DataComboFile[[#This Row],[G&S reporting level indicator]]","v":35},{"$f":"T_DataComboFile[[#This Row],[2019/20 Adjusted appropriation_Source]]*T_DataComboFile[[#This Row],[G&S reporting level indicator]]","v":60},{"$f":"T_DataComboFile[[#This Row],[2019/20 Revised estimate_Source]]*T_DataComboFile[[#This Row],[G&S reporting level indicator]]","v":60},{"$f":"T_DataComboFile[[#This Row],[2019/20 Preliminary outcome_Source]]*T_DataComboFile[[#This Row],[G&S reporting level indicator]]","v":60},{"$f":"T_DataComboFile[[#This Row],[2020/21 Original_Source]]*T_DataComboFile[[#This Row],[G&S reporting level indicator]]","v":80},{"$f":"T_DataComboFile[[#This Row],[2020/21 SAB_Source]]*T_DataComboFile[[#This Row],[G&S reporting level indicator]]","v":80},{"$f":"T_DataComboFile[[#This Row],[2020/21 Baseline_Source]]*T_DataComboFile[[#This Row],[G&S reporting level indicator]]","v":80},{"$f":"T_DataComboFile[[#This Row],[2021/22 Baseline_Source]]*T_DataComboFile[[#This Row],[G&S reporting level indicator]]","v":85},{"$f":"T_DataComboFile[[#This Row],[2022/23 Baseline_Source]]*T_DataComboFile[[#This Row],[G&S reporting level indicator]]","v":90},{"$f":"T_DataComboFile[[#This Row],[2023/24 Baseline_Source]]*T_DataComboFile[[#This Row],[G&S reporting level indicator]]","v":94},null,null,null,null,null,null,{"$f":"T_DataComboFile[[#This Row],[2021/22 Baseline]]+T_DataComboFile[[#This Row],[2021/22 Reduction]]+T_DataComboFile[[#This Row],[2021/22 Increase]]","v":85},{"$f":"T_DataComboFile[[#This Row],[2022/23 Baseline]]+T_DataComboFile[[#This Row],[2022/23 Reduction]]+T_DataComboFile[[#This Row],[2022/23 Increase]]","v":90},{"$f":"T_DataComboFile[[#This Row],[2023/24 Baseline]]+T_DataComboFile[[#This Row],[2023/24 Reduction]]+T_DataComboFile[[#This Row],[2023/24 Increase]]","v":94}]
[null,null,"2021_22","ENE2020",36,3,1,null,70841,36,3,1,null,"070841","36|03|01",2,3,13,58,62,"02|03|13|58|62","National","Small Business Development","Integrated Cooperative Development","Cooperatives Development",null,"Capital","Payments for capital assets","Heritage assets","Heritage assets","Heritage assets",null,null,null,0,0,0,0,0,0,0,0,0,0,0,0,0,0,null,{"$f":"IF(T_DataComboFile[[#This Row],[G&S reporting level indicator]]=1,$AX$16,\"Not applicable\")","v":"Level 3"},{"$f":"IF(AND($AX$16=\"Level 3\",T_DataComboFile[[#This Row],[Econ3]] = \"Goods and services\"),IF(T_DataComboFile[[#This Row],[Econ4]] = T_DataComboFile[[#This Row],[Econ3]],1,0),IF(AND($AX$16=\"Level 4\",T_DataComboFile[[#This Row],[Econ4]] = \"Goods and services\"),0,1))","v":1},{"$f":"T_DataComboFile[[#This Row],[2016/17_Source]]*T_DataComboFile[[#This Row],[G&S reporting level indicator]]","v":0},{"$f":"T_DataComboFile[[#This Row],[2017/18_Source]]*T_DataComboFile[[#This Row],[G&S reporting level indicator]]","v":0},{"$f":"T_DataComboFile[[#This Row],[2018/19_Source]]*T_DataComboFile[[#This Row],[G&S reporting level indicator]]","v":0},{"$f":"T_DataComboFile[[#This Row],[2019/20 Main appropriation_Source]]*T_DataComboFile[[#This Row],[G&S reporting level indicator]]","v":0},{"$f":"T_DataComboFile[[#This Row],[2019/20 Adjusted appropriation_Source]]*T_DataComboFile[[#This Row],[G&S reporting level indicator]]","v":0},{"$f":"T_DataComboFile[[#This Row],[2019/20 Revised estimate_Source]]*T_DataComboFile[[#This Row],[G&S reporting level indicator]]","v":0},{"$f":"T_DataComboFile[[#This Row],[2019/20 Preliminary outcome_Source]]*T_DataComboFile[[#This Row],[G&S reporting level indicator]]","v":0},{"$f":"T_DataComboFile[[#This Row],[2020/21 Original_Source]]*T_DataComboFile[[#This Row],[G&S reporting level indicator]]","v":0},{"$f":"T_DataComboFile[[#This Row],[2020/21 SAB_Source]]*T_DataComboFile[[#This Row],[G&S reporting level indicator]]","v":0},{"$f":"T_DataComboFile[[#This Row],[2020/21 Baseline_Source]]*T_DataComboFile[[#This Row],[G&S reporting level indicator]]","v":0},{"$f":"T_DataComboFile[[#This Row],[2021/22 Baseline_Source]]*T_DataComboFile[[#This Row],[G&S reporting level indicator]]","v":0},{"$f":"T_DataComboFile[[#This Row],[2022/23 Baseline_Source]]*T_DataComboFile[[#This Row],[G&S reporting level indicator]]","v":0},{"$f":"T_DataComboFile[[#This Row],[2023/24 Baseline_Source]]*T_DataComboFile[[#This Row],[G&S reporting level indicator]]","v":0},null,null,null,null,null,null,{"$f":"T_DataComboFile[[#This Row],[2021/22 Baseline]]+T_DataComboFile[[#This Row],[2021/22 Reduction]]+T_DataComboFile[[#This Row],[2021/22 Increase]]","v":0},{"$f":"T_DataComboFile[[#This Row],[2022/23 Baseline]]+T_DataComboFile[[#This Row],[2022/23 Reduction]]+T_DataComboFile[[#This Row],[2022/23 Increase]]","v":0},{"$f":"T_DataComboFile[[#This Row],[2023/24 Baseline]]+T_DataComboFile[[#This Row],[2023/24 Reduction]]+T_DataComboFile[[#This Row],[2023/24 Increase]]","v":0}]
[null,null,"2021_22","ENE2020",36,3,1,null,70842,36,3,1,null,"070842","36|03|01",2,3,14,59,63,"02|03|14|59|63","National","Small Business Development","Integrated Cooperative Development","Cooperatives Development",null,"Capital","Payments for capital assets","Specialised military assets","Specialised military assets","Specialised military assets",null,null,null,0,0,0,0,0,0,0,0,0,0,0,0,0,0,null,{"$f":"IF(T_DataComboFile[[#This Row],[G&S reporting level indicator]]=1,$AX$16,\"Not applicable\")","v":"Level 3"},{"$f":"IF(AND($AX$16=\"Level 3\",T_DataComboFile[[#This Row],[Econ3]] = \"Goods and services\"),IF(T_DataComboFile[[#This Row],[Econ4]] = T_DataComboFile[[#This Row],[Econ3]],1,0),IF(AND($AX$16=\"Level 4\",T_DataComboFile[[#This Row],[Econ4]] = \"Goods and services\"),0,1))","v":1},{"$f":"T_DataComboFile[[#This Row],[2016/17_Source]]*T_DataComboFile[[#This Row],[G&S reporting level indicator]]","v":0},{"$f":"T_DataComboFile[[#This Row],[2017/18_Source]]*T_DataComboFile[[#This Row],[G&S reporting level indicator]]","v":0},{"$f":"T_DataComboFile[[#This Row],[2018/19_Source]]*T_DataComboFile[[#This Row],[G&S reporting level indicator]]","v":0},{"$f":"T_DataComboFile[[#This Row],[2019/20 Main appropriation_Source]]*T_DataComboFile[[#This Row],[G&S reporting level indicator]]","v":0},{"$f":"T_DataComboFile[[#This Row],[2019/20 Adjusted appropriation_Source]]*T_DataComboFile[[#This Row],[G&S reporting level indicator]]","v":0},{"$f":"T_DataComboFile[[#This Row],[2019/20 Revised estimate_Source]]*T_DataComboFile[[#This Row],[G&S reporting level indicator]]","v":0},{"$f":"T_DataComboFile[[#This Row],[2019/20 Preliminary outcome_Source]]*T_DataComboFile[[#This Row],[G&S reporting level indicator]]","v":0},{"$f":"T_DataComboFile[[#This Row],[2020/21 Original_Source]]*T_DataComboFile[[#This Row],[G&S reporting level indicator]]","v":0},{"$f":"T_DataComboFile[[#This Row],[2020/21 SAB_Source]]*T_DataComboFile[[#This Row],[G&S reporting level indicator]]","v":0},{"$f":"T_DataComboFile[[#This Row],[2020/21 Baseline_Source]]*T_DataComboFile[[#This Row],[G&S reporting level indicator]]","v":0},{"$f":"T_DataComboFile[[#This Row],[2021/22 Baseline_Source]]*T_DataComboFile[[#This Row],[G&S reporting level indicator]]","v":0},{"$f":"T_DataComboFile[[#This Row],[2022/23 Baseline_Source]]*T_DataComboFile[[#This Row],[G&S reporting level indicator]]","v":0},{"$f":"T_DataComboFile[[#This Row],[2023/24 Baseline_Source]]*T_DataComboFile[[#This Row],[G&S reporting level indicator]]","v":0},null,null,null,null,null,null,{"$f":"T_DataComboFile[[#This Row],[2021/22 Baseline]]+T_DataComboFile[[#This Row],[2021/22 Reduction]]+T_DataComboFile[[#This Row],[2021/22 Increase]]","v":0},{"$f":"T_DataComboFile[[#This Row],[2022/23 Baseline]]+T_DataComboFile[[#This Row],[2022/23 Reduction]]+T_DataComboFile[[#This Row],[2022/23 Increase]]","v":0},{"$f":"T_DataComboFile[[#This Row],[2023/24 Baseline]]+T_DataComboFile[[#This Row],[2023/24 Reduction]]+T_DataComboFile[[#This Row],[2023/24 Increase]]","v":0}]
[null,null,"2021_22","ENE2020",36,3,1,null,70843,36,3,1,null,"070843","36|03|01",2,3,15,60,64,"02|03|15|60|64","National","Small Business Development","Integrated Cooperative Development","Cooperatives Development",null,"Capital","Payments for capital assets","Biological assets","Biological assets","Biological assets",null,null,null,0,0,0,0,0,0,0,0,0,0,0,0,0,0,null,{"$f":"IF(T_DataComboFile[[#This Row],[G&S reporting level indicator]]=1,$AX$16,\"Not applicable\")","v":"Level 3"},{"$f":"IF(AND($AX$16=\"Level 3\",T_DataComboFile[[#This Row],[Econ3]] = \"Goods and services\"),IF(T_DataComboFile[[#This Row],[Econ4]] = T_DataComboFile[[#This Row],[Econ3]],1,0),IF(AND($AX$16=\"Level 4\",T_DataComboFile[[#This Row],[Econ4]] = \"Goods and services\"),0,1))","v":1},{"$f":"T_DataComboFile[[#This Row],[2016/17_Source]]*T_DataComboFile[[#This Row],[G&S reporting level indicator]]","v":0},{"$f":"T_DataComboFile[[#This Row],[2017/18_Source]]*T_DataComboFile[[#This Row],[G&S reporting level indicator]]","v":0},{"$f":"T_DataComboFile[[#This Row],[2018/19_Source]]*T_DataComboFile[[#This Row],[G&S reporting level indicator]]","v":0},{"$f":"T_DataComboFile[[#This Row],[2019/20 Main appropriation_Source]]*T_DataComboFile[[#This Row],[G&S reporting level indicator]]","v":0},{"$f":"T_DataComboFile[[#This Row],[2019/20 Adjusted appropriation_Source]]*T_DataComboFile[[#This Row],[G&S reporting level indicator]]","v":0},{"$f":"T_DataComboFile[[#This Row],[2019/20 Revised estimate_Source]]*T_DataComboFile[[#This Row],[G&S reporting level indicator]]","v":0},{"$f":"T_DataComboFile[[#This Row],[2019/20 Preliminary outcome_Source]]*T_DataComboFile[[#This Row],[G&S reporting level indicator]]","v":0},{"$f":"T_DataComboFile[[#This Row],[2020/21 Original_Source]]*T_DataComboFile[[#This Row],[G&S reporting level indicator]]","v":0},{"$f":"T_DataComboFile[[#This Row],[2020/21 SAB_Source]]*T_DataComboFile[[#This Row],[G&S reporting level indicator]]","v":0},{"$f":"T_DataComboFile[[#This Row],[2020/21 Baseline_Source]]*T_DataComboFile[[#This Row],[G&S reporting level indicator]]","v":0},{"$f":"T_DataComboFile[[#This Row],[2021/22 Baseline_Source]]*T_DataComboFile[[#This Row],[G&S reporting level indicator]]","v":0},{"$f":"T_DataComboFile[[#This Row],[2022/23 Baseline_Source]]*T_DataComboFile[[#This Row],[G&S reporting level indicator]]","v":0},{"$f":"T_DataComboFile[[#This Row],[2023/24 Baseline_Source]]*T_DataComboFile[[#This Row],[G&S reporting level indicator]]","v":0},null,null,null,null,null,null,{"$f":"T_DataComboFile[[#This Row],[2021/22 Baseline]]+T_DataComboFile[[#This Row],[2021/22 Reduction]]+T_DataComboFile[[#This Row],[2021/22 Increase]]","v":0},{"$f":"T_DataComboFile[[#This Row],[2022/23 Baseline]]+T_DataComboFile[[#This Row],[2022/23 Reduction]]+T_DataComboFile[[#This Row],[2022/23 Increase]]","v":0},{"$f":"T_DataComboFile[[#This Row],[2023/24 Baseline]]+T_DataComboFile[[#This Row],[2023/24 Reduction]]+T_DataComboFile[[#This Row],[2023/24 Increase]]","v":0}]
[null,null,"2021_22","ENE2020",36,3,1,null,70844,36,3,1,null,"070844","36|03|01",2,3,16,61,65,"02|03|16|61|65","National","Small Business Development","Integrated Cooperative Development","Cooperatives Development",null,"Capital","Payments for capital assets","Land and sub-soil assets","Land and sub-soil assets","Land and sub-soil assets",null,null,null,0,0,0,0,0,0,0,0,0,0,0,0,0,0,null,{"$f":"IF(T_DataComboFile[[#This Row],[G&S reporting level indicator]]=1,$AX$16,\"Not applicable\")","v":"Level 3"},{"$f":"IF(AND($AX$16=\"Level 3\",T_DataComboFile[[#This Row],[Econ3]] = \"Goods and services\"),IF(T_DataComboFile[[#This Row],[Econ4]] = T_DataComboFile[[#This Row],[Econ3]],1,0),IF(AND($AX$16=\"Level 4\",T_DataComboFile[[#This Row],[Econ4]] = \"Goods and services\"),0,1))","v":1},{"$f":"T_DataComboFile[[#This Row],[2016/17_Source]]*T_DataComboFile[[#This Row],[G&S reporting level indicator]]","v":0},{"$f":"T_DataComboFile[[#This Row],[2017/18_Source]]*T_DataComboFile[[#This Row],[G&S reporting level indicator]]","v":0},{"$f":"T_DataComboFile[[#This Row],[2018/19_Source]]*T_DataComboFile[[#This Row],[G&S reporting level indicator]]","v":0},{"$f":"T_DataComboFile[[#This Row],[2019/20 Main appropriation_Source]]*T_DataComboFile[[#This Row],[G&S reporting level indicator]]","v":0},{"$f":"T_DataComboFile[[#This Row],[2019/20 Adjusted appropriation_Source]]*T_DataComboFile[[#This Row],[G&S reporting level indicator]]","v":0},{"$f":"T_DataComboFile[[#This Row],[2019/20 Revised estimate_Source]]*T_DataComboFile[[#This Row],[G&S reporting level indicator]]","v":0},{"$f":"T_DataComboFile[[#This Row],[2019/20 Preliminary outcome_Source]]*T_DataComboFile[[#This Row],[G&S reporting level indicator]]","v":0},{"$f":"T_DataComboFile[[#This Row],[2020/21 Original_Source]]*T_DataComboFile[[#This Row],[G&S reporting level indicator]]","v":0},{"$f":"T_DataComboFile[[#This Row],[2020/21 SAB_Source]]*T_DataComboFile[[#This Row],[G&S reporting level indicator]]","v":0},{"$f":"T_DataComboFile[[#This Row],[2020/21 Baseline_Source]]*T_DataComboFile[[#This Row],[G&S reporting level indicator]]","v":0},{"$f":"T_DataComboFile[[#This Row],[2021/22 Baseline_Source]]*T_DataComboFile[[#This Row],[G&S reporting level indicator]]","v":0},{"$f":"T_DataComboFile[[#This Row],[2022/23 Baseline_Source]]*T_DataComboFile[[#This Row],[G&S reporting level indicator]]","v":0},{"$f":"T_DataComboFile[[#This Row],[2023/24 Baseline_Source]]*T_DataComboFile[[#This Row],[G&S reporting level indicator]]","v":0},null,null,null,null,null,null,{"$f":"T_DataComboFile[[#This Row],[2021/22 Baseline]]+T_DataComboFile[[#This Row],[2021/22 Reduction]]+T_DataComboFile[[#This Row],[2021/22 Increase]]","v":0},{"$f":"T_DataComboFile[[#This Row],[2022/23 Baseline]]+T_DataComboFile[[#This Row],[2022/23 Reduction]]+T_DataComboFile[[#This Row],[2022/23 Increase]]","v":0},{"$f":"T_DataComboFile[[#This Row],[2023/24 Baseline]]+T_DataComboFile[[#This Row],[2023/24 Reduction]]+T_DataComboFile[[#This Row],[2023/24 Increase]]","v":0}]
[null,null,"2021_22","ENE2020",36,3,1,null,70845,36,3,1,null,"070845","36|03|01",2,3,17,62,66,"02|03|17|62|66","National","Small Business Development","Integrated Cooperative Development","Cooperatives Development",null,"Capital","Payments for capital assets","Software and other intangible assets","Software and other intangible assets","Software and other intangible assets",null,null,null,0,0,0,0,0,0,0,0,0,0,0,0,0,0,null,{"$f":"IF(T_DataComboFile[[#This Row],[G&S reporting level indicator]]=1,$AX$16,\"Not applicable\")","v":"Level 3"},{"$f":"IF(AND($AX$16=\"Level 3\",T_DataComboFile[[#This Row],[Econ3]] = \"Goods and services\"),IF(T_DataComboFile[[#This Row],[Econ4]] = T_DataComboFile[[#This Row],[Econ3]],1,0),IF(AND($AX$16=\"Level 4\",T_DataComboFile[[#This Row],[Econ4]] = \"Goods and services\"),0,1))","v":1},{"$f":"T_DataComboFile[[#This Row],[2016/17_Source]]*T_DataComboFile[[#This Row],[G&S reporting level indicator]]","v":0},{"$f":"T_DataComboFile[[#This Row],[2017/18_Source]]*T_DataComboFile[[#This Row],[G&S reporting level indicator]]","v":0},{"$f":"T_DataComboFile[[#This Row],[2018/19_Source]]*T_DataComboFile[[#This Row],[G&S reporting level indicator]]","v":0},{"$f":"T_DataComboFile[[#This Row],[2019/20 Main appropriation_Source]]*T_DataComboFile[[#This Row],[G&S reporting level indicator]]","v":0},{"$f":"T_DataComboFile[[#This Row],[2019/20 Adjusted appropriation_Source]]*T_DataComboFile[[#This Row],[G&S reporting level indicator]]","v":0},{"$f":"T_DataComboFile[[#This Row],[2019/20 Revised estimate_Source]]*T_DataComboFile[[#This Row],[G&S reporting level indicator]]","v":0},{"$f":"T_DataComboFile[[#This Row],[2019/20 Preliminary outcome_Source]]*T_DataComboFile[[#This Row],[G&S reporting level indicator]]","v":0},{"$f":"T_DataComboFile[[#This Row],[2020/21 Original_Source]]*T_DataComboFile[[#This Row],[G&S reporting level indicator]]","v":0},{"$f":"T_DataComboFile[[#This Row],[2020/21 SAB_Source]]*T_DataComboFile[[#This Row],[G&S reporting level indicator]]","v":0},{"$f":"T_DataComboFile[[#This Row],[2020/21 Baseline_Source]]*T_DataComboFile[[#This Row],[G&S reporting level indicator]]","v":0},{"$f":"T_DataComboFile[[#This Row],[2021/22 Baseline_Source]]*T_DataComboFile[[#This Row],[G&S reporting level indicator]]","v":0},{"$f":"T_DataComboFile[[#This Row],[2022/23 Baseline_Source]]*T_DataComboFile[[#This Row],[G&S reporting level indicator]]","v":0},{"$f":"T_DataComboFile[[#This Row],[2023/24 Baseline_Source]]*T_DataComboFile[[#This Row],[G&S reporting level indicator]]","v":0},null,null,null,null,null,null,{"$f":"T_DataComboFile[[#This Row],[2021/22 Baseline]]+T_DataComboFile[[#This Row],[2021/22 Reduction]]+T_DataComboFile[[#This Row],[2021/22 Increase]]","v":0},{"$f":"T_DataComboFile[[#This Row],[2022/23 Baseline]]+T_DataComboFile[[#This Row],[2022/23 Reduction]]+T_DataComboFile[[#This Row],[2022/23 Increase]]","v":0},{"$f":"T_DataComboFile[[#This Row],[2023/24 Baseline]]+T_DataComboFile[[#This Row],[2023/24 Reduction]]+T_DataComboFile[[#This Row],[2023/24 Increase]]","v":0}]
[null,null,"2021_22","ENE2020",36,3,1,null,70846,36,3,1,null,"070846","36|03|01",3,4,18,63,67,"03|04|18|63|67","National","Small Business Development","Integrated Cooperative Development","Cooperatives Development",null,"Payments for financial assets","Payments for financial assets","Payments for financial assets","Payments for financial assets","Payments for financial assets",null,null,null,0,0,0,0,0,0,0,0,0,0,0,0,0,0,null,{"$f":"IF(T_DataComboFile[[#This Row],[G&S reporting level indicator]]=1,$AX$16,\"Not applicable\")","v":"Level 3"},{"$f":"IF(AND($AX$16=\"Level 3\",T_DataComboFile[[#This Row],[Econ3]] = \"Goods and services\"),IF(T_DataComboFile[[#This Row],[Econ4]] = T_DataComboFile[[#This Row],[Econ3]],1,0),IF(AND($AX$16=\"Level 4\",T_DataComboFile[[#This Row],[Econ4]] = \"Goods and services\"),0,1))","v":1},{"$f":"T_DataComboFile[[#This Row],[2016/17_Source]]*T_DataComboFile[[#This Row],[G&S reporting level indicator]]","v":0},{"$f":"T_DataComboFile[[#This Row],[2017/18_Source]]*T_DataComboFile[[#This Row],[G&S reporting level indicator]]","v":0},{"$f":"T_DataComboFile[[#This Row],[2018/19_Source]]*T_DataComboFile[[#This Row],[G&S reporting level indicator]]","v":0},{"$f":"T_DataComboFile[[#This Row],[2019/20 Main appropriation_Source]]*T_DataComboFile[[#This Row],[G&S reporting level indicator]]","v":0},{"$f":"T_DataComboFile[[#This Row],[2019/20 Adjusted appropriation_Source]]*T_DataComboFile[[#This Row],[G&S reporting level indicator]]","v":0},{"$f":"T_DataComboFile[[#This Row],[2019/20 Revised estimate_Source]]*T_DataComboFile[[#This Row],[G&S reporting level indicator]]","v":0},{"$f":"T_DataComboFile[[#This Row],[2019/20 Preliminary outcome_Source]]*T_DataComboFile[[#This Row],[G&S reporting level indicator]]","v":0},{"$f":"T_DataComboFile[[#This Row],[2020/21 Original_Source]]*T_DataComboFile[[#This Row],[G&S reporting level indicator]]","v":0},{"$f":"T_DataComboFile[[#This Row],[2020/21 SAB_Source]]*T_DataComboFile[[#This Row],[G&S reporting level indicator]]","v":0},{"$f":"T_DataComboFile[[#This Row],[2020/21 Baseline_Source]]*T_DataComboFile[[#This Row],[G&S reporting level indicator]]","v":0},{"$f":"T_DataComboFile[[#This Row],[2021/22 Baseline_Source]]*T_DataComboFile[[#This Row],[G&S reporting level indicator]]","v":0},{"$f":"T_DataComboFile[[#This Row],[2022/23 Baseline_Source]]*T_DataComboFile[[#This Row],[G&S reporting level indicator]]","v":0},{"$f":"T_DataComboFile[[#This Row],[2023/24 Baseline_Source]]*T_DataComboFile[[#This Row],[G&S reporting level indicator]]","v":0},null,null,null,null,null,null,{"$f":"T_DataComboFile[[#This Row],[2021/22 Baseline]]+T_DataComboFile[[#This Row],[2021/22 Reduction]]+T_DataComboFile[[#This Row],[2021/22 Increase]]","v":0},{"$f":"T_DataComboFile[[#This Row],[2022/23 Baseline]]+T_DataComboFile[[#This Row],[2022/23 Reduction]]+T_DataComboFile[[#This Row],[2022/23 Increase]]","v":0},{"$f":"T_DataComboFile[[#This Row],[2023/24 Baseline]]+T_DataComboFile[[#This Row],[2023/24 Reduction]]+T_DataComboFile[[#This Row],[2023/24 Increase]]","v":0}]
["NAT|Non-transfer item","36|Salaries and wages","2021_22","ENE2020",36,3,2,17355,70847,36,3,2,17355,"070847","36|03|02",1,1,1,1,1,"01|01|01|01|01","National","Small Business Development","Integrated Cooperative Development","Cooperatives Programme Design and Support","Non-transfer item","Current","Current payments","Compensation of employees","Salaries and wages","Salaries and wages","Economic development","Industrialisation and exports","NAT",6450,9550,9747,13303,13303,13303,13303,15518,15518,14639,14573,14665,15312,1,null,{"$f":"IF(T_DataComboFile[[#This Row],[G&S reporting level indicator]]=1,$AX$16,\"Not applicable\")","v":"Level 3"},{"$f":"IF(AND($AX$16=\"Level 3\",T_DataComboFile[[#This Row],[Econ3]] = \"Goods and services\"),IF(T_DataComboFile[[#This Row],[Econ4]] = T_DataComboFile[[#This Row],[Econ3]],1,0),IF(AND($AX$16=\"Level 4\",T_DataComboFile[[#This Row],[Econ4]] = \"Goods and services\"),0,1))","v":1},{"$f":"T_DataComboFile[[#This Row],[2016/17_Source]]*T_DataComboFile[[#This Row],[G&S reporting level indicator]]","v":6450},{"$f":"T_DataComboFile[[#This Row],[2017/18_Source]]*T_DataComboFile[[#This Row],[G&S reporting level indicator]]","v":9550},{"$f":"T_DataComboFile[[#This Row],[2018/19_Source]]*T_DataComboFile[[#This Row],[G&S reporting level indicator]]","v":9747},{"$f":"T_DataComboFile[[#This Row],[2019/20 Main appropriation_Source]]*T_DataComboFile[[#This Row],[G&S reporting level indicator]]","v":13303},{"$f":"T_DataComboFile[[#This Row],[2019/20 Adjusted appropriation_Source]]*T_DataComboFile[[#This Row],[G&S reporting level indicator]]","v":13303},{"$f":"T_DataComboFile[[#This Row],[2019/20 Revised estimate_Source]]*T_DataComboFile[[#This Row],[G&S reporting level indicator]]","v":13303},{"$f":"T_DataComboFile[[#This Row],[2019/20 Preliminary outcome_Source]]*T_DataComboFile[[#This Row],[G&S reporting level indicator]]","v":13303},{"$f":"T_DataComboFile[[#This Row],[2020/21 Original_Source]]*T_DataComboFile[[#This Row],[G&S reporting level indicator]]","v":15518},{"$f":"T_DataComboFile[[#This Row],[2020/21 SAB_Source]]*T_DataComboFile[[#This Row],[G&S reporting level indicator]]","v":15518},{"$f":"T_DataComboFile[[#This Row],[2020/21 Baseline_Source]]*T_DataComboFile[[#This Row],[G&S reporting level indicator]]","v":14639},{"$f":"T_DataComboFile[[#This Row],[2021/22 Baseline_Source]]*T_DataComboFile[[#This Row],[G&S reporting level indicator]]","v":14573},{"$f":"T_DataComboFile[[#This Row],[2022/23 Baseline_Source]]*T_DataComboFile[[#This Row],[G&S reporting level indicator]]","v":14665},{"$f":"T_DataComboFile[[#This Row],[2023/24 Baseline_Source]]*T_DataComboFile[[#This Row],[G&S reporting level indicator]]","v":15312},null,null,null,null,null,null,{"$f":"T_DataComboFile[[#This Row],[2021/22 Baseline]]+T_DataComboFile[[#This Row],[2021/22 Reduction]]+T_DataComboFile[[#This Row],[2021/22 Increase]]","v":14573},{"$f":"T_DataComboFile[[#This Row],[2022/23 Baseline]]+T_DataComboFile[[#This Row],[2022/23 Reduction]]+T_DataComboFile[[#This Row],[2022/23 Increase]]","v":14665},{"$f":"T_DataComboFile[[#This Row],[2023/24 Baseline]]+T_DataComboFile[[#This Row],[2023/24 Reduction]]+T_DataComboFile[[#This Row],[2023/24 Increase]]","v":15312}]
["NAT|Non-transfer item","36|Social contributions","2021_22","ENE2020",36,3,2,17356,70848,36,3,2,17356,"070848","36|03|02",1,1,1,2,2,"01|01|01|02|02","National","Small Business Development","Integrated Cooperative Development","Cooperatives Programme Design and Support","Non-transfer item","Current","Current payments","Compensation of employees","Social contributions","Social contributions","Economic development","Industrialisation and exports","NAT",935,1303,1347,2506,2506,2506,2506,2138,2138,2017,1780,1842,1923,1,null,{"$f":"IF(T_DataComboFile[[#This Row],[G&S reporting level indicator]]=1,$AX$16,\"Not applicable\")","v":"Level 3"},{"$f":"IF(AND($AX$16=\"Level 3\",T_DataComboFile[[#This Row],[Econ3]] = \"Goods and services\"),IF(T_DataComboFile[[#This Row],[Econ4]] = T_DataComboFile[[#This Row],[Econ3]],1,0),IF(AND($AX$16=\"Level 4\",T_DataComboFile[[#This Row],[Econ4]] = \"Goods and services\"),0,1))","v":1},{"$f":"T_DataComboFile[[#This Row],[2016/17_Source]]*T_DataComboFile[[#This Row],[G&S reporting level indicator]]","v":935},{"$f":"T_DataComboFile[[#This Row],[2017/18_Source]]*T_DataComboFile[[#This Row],[G&S reporting level indicator]]","v":1303},{"$f":"T_DataComboFile[[#This Row],[2018/19_Source]]*T_DataComboFile[[#This Row],[G&S reporting level indicator]]","v":1347},{"$f":"T_DataComboFile[[#This Row],[2019/20 Main appropriation_Source]]*T_DataComboFile[[#This Row],[G&S reporting level indicator]]","v":2506},{"$f":"T_DataComboFile[[#This Row],[2019/20 Adjusted appropriation_Source]]*T_DataComboFile[[#This Row],[G&S reporting level indicator]]","v":2506},{"$f":"T_DataComboFile[[#This Row],[2019/20 Revised estimate_Source]]*T_DataComboFile[[#This Row],[G&S reporting level indicator]]","v":2506},{"$f":"T_DataComboFile[[#This Row],[2019/20 Preliminary outcome_Source]]*T_DataComboFile[[#This Row],[G&S reporting level indicator]]","v":2506},{"$f":"T_DataComboFile[[#This Row],[2020/21 Original_Source]]*T_DataComboFile[[#This Row],[G&S reporting level indicator]]","v":2138},{"$f":"T_DataComboFile[[#This Row],[2020/21 SAB_Source]]*T_DataComboFile[[#This Row],[G&S reporting level indicator]]","v":2138},{"$f":"T_DataComboFile[[#This Row],[2020/21 Baseline_Source]]*T_DataComboFile[[#This Row],[G&S reporting level indicator]]","v":2017},{"$f":"T_DataComboFile[[#This Row],[2021/22 Baseline_Source]]*T_DataComboFile[[#This Row],[G&S reporting level indicator]]","v":1780},{"$f":"T_DataComboFile[[#This Row],[2022/23 Baseline_Source]]*T_DataComboFile[[#This Row],[G&S reporting level indicator]]","v":1842},{"$f":"T_DataComboFile[[#This Row],[2023/24 Baseline_Source]]*T_DataComboFile[[#This Row],[G&S reporting level indicator]]","v":1923},null,null,null,null,null,null,{"$f":"T_DataComboFile[[#This Row],[2021/22 Baseline]]+T_DataComboFile[[#This Row],[2021/22 Reduction]]+T_DataComboFile[[#This Row],[2021/22 Increase]]","v":1780},{"$f":"T_DataComboFile[[#This Row],[2022/23 Baseline]]+T_DataComboFile[[#This Row],[2022/23 Reduction]]+T_DataComboFile[[#This Row],[2022/23 Increase]]","v":1842},{"$f":"T_DataComboFile[[#This Row],[2023/24 Baseline]]+T_DataComboFile[[#This Row],[2023/24 Reduction]]+T_DataComboFile[[#This Row],[2023/24 Increase]]","v":1923}]
[null,null,"2021_22","ENE2020",36,3,2,null,70849,36,3,2,null,"070849","36|03|02",1,1,2,2,2,"01|01|02|02|02","National","Small Business Development","Integrated Cooperative Development","Cooperatives Programme Design and Support","Non-transfer item","Current","Current payments","Goods and services","Goods and services","Goods and services","Economic development","Industrialisation and exports","NAT",1297,1136,1711,1626,1499,1499,1499,3108,1108,3108,2920,3131,3269,1,null,{"$f":"IF(T_DataComboFile[[#This Row],[G&S reporting level indicator]]=1,$AX$16,\"Not applicable\")","v":"Level 3"},{"$f":"IF(AND($AX$16=\"Level 3\",T_DataComboFile[[#This Row],[Econ3]] = \"Goods and services\"),IF(T_DataComboFile[[#This Row],[Econ4]] = T_DataComboFile[[#This Row],[Econ3]],1,0),IF(AND($AX$16=\"Level 4\",T_DataComboFile[[#This Row],[Econ4]] = \"Goods and services\"),0,1))","v":1},{"$f":"T_DataComboFile[[#This Row],[2016/17_Source]]*T_DataComboFile[[#This Row],[G&S reporting level indicator]]","v":1297},{"$f":"T_DataComboFile[[#This Row],[2017/18_Source]]*T_DataComboFile[[#This Row],[G&S reporting level indicator]]","v":1136},{"$f":"T_DataComboFile[[#This Row],[2018/19_Source]]*T_DataComboFile[[#This Row],[G&S reporting level indicator]]","v":1711},{"$f":"T_DataComboFile[[#This Row],[2019/20 Main appropriation_Source]]*T_DataComboFile[[#This Row],[G&S reporting level indicator]]","v":1626},{"$f":"T_DataComboFile[[#This Row],[2019/20 Adjusted appropriation_Source]]*T_DataComboFile[[#This Row],[G&S reporting level indicator]]","v":1499},{"$f":"T_DataComboFile[[#This Row],[2019/20 Revised estimate_Source]]*T_DataComboFile[[#This Row],[G&S reporting level indicator]]","v":1499},{"$f":"T_DataComboFile[[#This Row],[2019/20 Preliminary outcome_Source]]*T_DataComboFile[[#This Row],[G&S reporting level indicator]]","v":1499},{"$f":"T_DataComboFile[[#This Row],[2020/21 Original_Source]]*T_DataComboFile[[#This Row],[G&S reporting level indicator]]","v":3108},{"$f":"T_DataComboFile[[#This Row],[2020/21 SAB_Source]]*T_DataComboFile[[#This Row],[G&S reporting level indicator]]","v":1108},{"$f":"T_DataComboFile[[#This Row],[2020/21 Baseline_Source]]*T_DataComboFile[[#This Row],[G&S reporting level indicator]]","v":3108},{"$f":"T_DataComboFile[[#This Row],[2021/22 Baseline_Source]]*T_DataComboFile[[#This Row],[G&S reporting level indicator]]","v":2920},{"$f":"T_DataComboFile[[#This Row],[2022/23 Baseline_Source]]*T_DataComboFile[[#This Row],[G&S reporting level indicator]]","v":3131},{"$f":"T_DataComboFile[[#This Row],[2023/24 Baseline_Source]]*T_DataComboFile[[#This Row],[G&S reporting level indicator]]","v":3269},null,null,null,null,null,null,{"$f":"T_DataComboFile[[#This Row],[2021/22 Baseline]]+T_DataComboFile[[#This Row],[2021/22 Reduction]]+T_DataComboFile[[#This Row],[2021/22 Increase]]","v":2920},{"$f":"T_DataComboFile[[#This Row],[2022/23 Baseline]]+T_DataComboFile[[#This Row],[2022/23 Reduction]]+T_DataComboFile[[#This Row],[2022/23 Increase]]","v":3131},{"$f":"T_DataComboFile[[#This Row],[2023/24 Baseline]]+T_DataComboFile[[#This Row],[2023/24 Reduction]]+T_DataComboFile[[#This Row],[2023/24 Increase]]","v":3269}]
["NAT|Non-transfer item","36|Administrative fees","2021_22","ENE2020",36,3,2,17357,70850,36,3,2,17357,"070850","36|03|02",1,1,2,3,3,"01|01|02|03|03","National","Small Business Development","Integrated Cooperative Development","Cooperatives Programme Design and Support","Non-transfer item","Current","Current payments","Goods and services","Administrative fees","Administrative fees","Economic development","Industrialisation and exports","NAT",61,65,73,48,68,68,68,57,57,57,63,67,70,1,null,{"$f":"IF(T_DataComboFile[[#This Row],[G&S reporting level indicator]]=1,$AX$16,\"Not applicable\")","v":"Not applicable"},{"$f":"IF(AND($AX$16=\"Level 3\",T_DataComboFile[[#This Row],[Econ3]] = \"Goods and services\"),IF(T_DataComboFile[[#This Row],[Econ4]] = T_DataComboFile[[#This Row],[Econ3]],1,0),IF(AND($AX$16=\"Level 4\",T_DataComboFile[[#This Row],[Econ4]] = \"Goods and services\"),0,1))","v":0},{"$f":"T_DataComboFile[[#This Row],[2016/17_Source]]*T_DataComboFile[[#This Row],[G&S reporting level indicator]]","v":0},{"$f":"T_DataComboFile[[#This Row],[2017/18_Source]]*T_DataComboFile[[#This Row],[G&S reporting level indicator]]","v":0},{"$f":"T_DataComboFile[[#This Row],[2018/19_Source]]*T_DataComboFile[[#This Row],[G&S reporting level indicator]]","v":0},{"$f":"T_DataComboFile[[#This Row],[2019/20 Main appropriation_Source]]*T_DataComboFile[[#This Row],[G&S reporting level indicator]]","v":0},{"$f":"T_DataComboFile[[#This Row],[2019/20 Adjusted appropriation_Source]]*T_DataComboFile[[#This Row],[G&S reporting level indicator]]","v":0},{"$f":"T_DataComboFile[[#This Row],[2019/20 Revised estimate_Source]]*T_DataComboFile[[#This Row],[G&S reporting level indicator]]","v":0},{"$f":"T_DataComboFile[[#This Row],[2019/20 Preliminary outcome_Source]]*T_DataComboFile[[#This Row],[G&S reporting level indicator]]","v":0},{"$f":"T_DataComboFile[[#This Row],[2020/21 Original_Source]]*T_DataComboFile[[#This Row],[G&S reporting level indicator]]","v":0},{"$f":"T_DataComboFile[[#This Row],[2020/21 SAB_Source]]*T_DataComboFile[[#This Row],[G&S reporting level indicator]]","v":0},{"$f":"T_DataComboFile[[#This Row],[2020/21 Baseline_Source]]*T_DataComboFile[[#This Row],[G&S reporting level indicator]]","v":0},{"$f":"T_DataComboFile[[#This Row],[2021/22 Baseline_Source]]*T_DataComboFile[[#This Row],[G&S reporting level indicator]]","v":0},{"$f":"T_DataComboFile[[#This Row],[2022/23 Baseline_Source]]*T_DataComboFile[[#This Row],[G&S reporting level indicator]]","v":0},{"$f":"T_DataComboFile[[#This Row],[2023/24 Baseline_Source]]*T_DataComboFile[[#This Row],[G&S reporting level indicator]]","v":0},null,null,null,null,null,null,{"$f":"T_DataComboFile[[#This Row],[2021/22 Baseline]]+T_DataComboFile[[#This Row],[2021/22 Reduction]]+T_DataComboFile[[#This Row],[2021/22 Increase]]","v":0},{"$f":"T_DataComboFile[[#This Row],[2022/23 Baseline]]+T_DataComboFile[[#This Row],[2022/23 Reduction]]+T_DataComboFile[[#This Row],[2022/23 Increase]]","v":0},{"$f":"T_DataComboFile[[#This Row],[2023/24 Baseline]]+T_DataComboFile[[#This Row],[2023/24 Reduction]]+T_DataComboFile[[#This Row],[2023/24 Increase]]","v":0}]
[null,null,"2021_22","ENE2020",36,3,2,null,70851,36,3,2,null,"070851","36|03|02",1,1,2,4,4,"01|01|02|04|04","National","Small Business Development","Integrated Cooperative Development","Cooperatives Programme Design and Support",null,"Current","Current payments","Goods and services","Advertising","Advertising",null,null,null,0,0,0,0,0,0,0,0,0,0,0,0,0,0,null,{"$f":"IF(T_DataComboFile[[#This Row],[G&S reporting level indicator]]=1,$AX$16,\"Not applicable\")","v":"Not applicable"},{"$f":"IF(AND($AX$16=\"Level 3\",T_DataComboFile[[#This Row],[Econ3]] = \"Goods and services\"),IF(T_DataComboFile[[#This Row],[Econ4]] = T_DataComboFile[[#This Row],[Econ3]],1,0),IF(AND($AX$16=\"Level 4\",T_DataComboFile[[#This Row],[Econ4]] = \"Goods and services\"),0,1))","v":0},{"$f":"T_DataComboFile[[#This Row],[2016/17_Source]]*T_DataComboFile[[#This Row],[G&S reporting level indicator]]","v":0},{"$f":"T_DataComboFile[[#This Row],[2017/18_Source]]*T_DataComboFile[[#This Row],[G&S reporting level indicator]]","v":0},{"$f":"T_DataComboFile[[#This Row],[2018/19_Source]]*T_DataComboFile[[#This Row],[G&S reporting level indicator]]","v":0},{"$f":"T_DataComboFile[[#This Row],[2019/20 Main appropriation_Source]]*T_DataComboFile[[#This Row],[G&S reporting level indicator]]","v":0},{"$f":"T_DataComboFile[[#This Row],[2019/20 Adjusted appropriation_Source]]*T_DataComboFile[[#This Row],[G&S reporting level indicator]]","v":0},{"$f":"T_DataComboFile[[#This Row],[2019/20 Revised estimate_Source]]*T_DataComboFile[[#This Row],[G&S reporting level indicator]]","v":0},{"$f":"T_DataComboFile[[#This Row],[2019/20 Preliminary outcome_Source]]*T_DataComboFile[[#This Row],[G&S reporting level indicator]]","v":0},{"$f":"T_DataComboFile[[#This Row],[2020/21 Original_Source]]*T_DataComboFile[[#This Row],[G&S reporting level indicator]]","v":0},{"$f":"T_DataComboFile[[#This Row],[2020/21 SAB_Source]]*T_DataComboFile[[#This Row],[G&S reporting level indicator]]","v":0},{"$f":"T_DataComboFile[[#This Row],[2020/21 Baseline_Source]]*T_DataComboFile[[#This Row],[G&S reporting level indicator]]","v":0},{"$f":"T_DataComboFile[[#This Row],[2021/22 Baseline_Source]]*T_DataComboFile[[#This Row],[G&S reporting level indicator]]","v":0},{"$f":"T_DataComboFile[[#This Row],[2022/23 Baseline_Source]]*T_DataComboFile[[#This Row],[G&S reporting level indicator]]","v":0},{"$f":"T_DataComboFile[[#This Row],[2023/24 Baseline_Source]]*T_DataComboFile[[#This Row],[G&S reporting level indicator]]","v":0},null,null,null,null,null,null,{"$f":"T_DataComboFile[[#This Row],[2021/22 Baseline]]+T_DataComboFile[[#This Row],[2021/22 Reduction]]+T_DataComboFile[[#This Row],[2021/22 Increase]]","v":0},{"$f":"T_DataComboFile[[#This Row],[2022/23 Baseline]]+T_DataComboFile[[#This Row],[2022/23 Reduction]]+T_DataComboFile[[#This Row],[2022/23 Increase]]","v":0},{"$f":"T_DataComboFile[[#This Row],[2023/24 Baseline]]+T_DataComboFile[[#This Row],[2023/24 Reduction]]+T_DataComboFile[[#This Row],[2023/24 Increase]]","v":0}]
[null,null,"2021_22","ENE2020",36,3,2,null,70852,36,3,2,null,"070852","36|03|02",1,1,2,5,5,"01|01|02|05|05","National","Small Business Development","Integrated Cooperative Development","Cooperatives Programme Design and Support",null,"Current","Current payments","Goods and services","Minor assets","Minor assets",null,null,null,0,0,0,0,0,0,0,0,0,0,0,0,0,0,null,{"$f":"IF(T_DataComboFile[[#This Row],[G&S reporting level indicator]]=1,$AX$16,\"Not applicable\")","v":"Not applicable"},{"$f":"IF(AND($AX$16=\"Level 3\",T_DataComboFile[[#This Row],[Econ3]] = \"Goods and services\"),IF(T_DataComboFile[[#This Row],[Econ4]] = T_DataComboFile[[#This Row],[Econ3]],1,0),IF(AND($AX$16=\"Level 4\",T_DataComboFile[[#This Row],[Econ4]] = \"Goods and services\"),0,1))","v":0},{"$f":"T_DataComboFile[[#This Row],[2016/17_Source]]*T_DataComboFile[[#This Row],[G&S reporting level indicator]]","v":0},{"$f":"T_DataComboFile[[#This Row],[2017/18_Source]]*T_DataComboFile[[#This Row],[G&S reporting level indicator]]","v":0},{"$f":"T_DataComboFile[[#This Row],[2018/19_Source]]*T_DataComboFile[[#This Row],[G&S reporting level indicator]]","v":0},{"$f":"T_DataComboFile[[#This Row],[2019/20 Main appropriation_Source]]*T_DataComboFile[[#This Row],[G&S reporting level indicator]]","v":0},{"$f":"T_DataComboFile[[#This Row],[2019/20 Adjusted appropriation_Source]]*T_DataComboFile[[#This Row],[G&S reporting level indicator]]","v":0},{"$f":"T_DataComboFile[[#This Row],[2019/20 Revised estimate_Source]]*T_DataComboFile[[#This Row],[G&S reporting level indicator]]","v":0},{"$f":"T_DataComboFile[[#This Row],[2019/20 Preliminary outcome_Source]]*T_DataComboFile[[#This Row],[G&S reporting level indicator]]","v":0},{"$f":"T_DataComboFile[[#This Row],[2020/21 Original_Source]]*T_DataComboFile[[#This Row],[G&S reporting level indicator]]","v":0},{"$f":"T_DataComboFile[[#This Row],[2020/21 SAB_Source]]*T_DataComboFile[[#This Row],[G&S reporting level indicator]]","v":0},{"$f":"T_DataComboFile[[#This Row],[2020/21 Baseline_Source]]*T_DataComboFile[[#This Row],[G&S reporting level indicator]]","v":0},{"$f":"T_DataComboFile[[#This Row],[2021/22 Baseline_Source]]*T_DataComboFile[[#This Row],[G&S reporting level indicator]]","v":0},{"$f":"T_DataComboFile[[#This Row],[2022/23 Baseline_Source]]*T_DataComboFile[[#This Row],[G&S reporting level indicator]]","v":0},{"$f":"T_DataComboFile[[#This Row],[2023/24 Baseline_Source]]*T_DataComboFile[[#This Row],[G&S reporting level indicator]]","v":0},null,null,null,null,null,null,{"$f":"T_DataComboFile[[#This Row],[2021/22 Baseline]]+T_DataComboFile[[#This Row],[2021/22 Reduction]]+T_DataComboFile[[#This Row],[2021/22 Increase]]","v":0},{"$f":"T_DataComboFile[[#This Row],[2022/23 Baseline]]+T_DataComboFile[[#This Row],[2022/23 Reduction]]+T_DataComboFile[[#This Row],[2022/23 Increase]]","v":0},{"$f":"T_DataComboFile[[#This Row],[2023/24 Baseline]]+T_DataComboFile[[#This Row],[2023/24 Reduction]]+T_DataComboFile[[#This Row],[2023/24 Increase]]","v":0}]
[null,null,"2021_22","ENE2020",36,3,2,null,70853,36,3,2,null,"070853","36|03|02",1,1,2,6,6,"01|01|02|06|06","National","Small Business Development","Integrated Cooperative Development","Cooperatives Programme Design and Support",null,"Current","Current payments","Goods and services","Audit costs: External","Audit costs: External",null,null,null,0,0,0,0,0,0,0,0,0,0,0,0,0,0,null,{"$f":"IF(T_DataComboFile[[#This Row],[G&S reporting level indicator]]=1,$AX$16,\"Not applicable\")","v":"Not applicable"},{"$f":"IF(AND($AX$16=\"Level 3\",T_DataComboFile[[#This Row],[Econ3]] = \"Goods and services\"),IF(T_DataComboFile[[#This Row],[Econ4]] = T_DataComboFile[[#This Row],[Econ3]],1,0),IF(AND($AX$16=\"Level 4\",T_DataComboFile[[#This Row],[Econ4]] = \"Goods and services\"),0,1))","v":0},{"$f":"T_DataComboFile[[#This Row],[2016/17_Source]]*T_DataComboFile[[#This Row],[G&S reporting level indicator]]","v":0},{"$f":"T_DataComboFile[[#This Row],[2017/18_Source]]*T_DataComboFile[[#This Row],[G&S reporting level indicator]]","v":0},{"$f":"T_DataComboFile[[#This Row],[2018/19_Source]]*T_DataComboFile[[#This Row],[G&S reporting level indicator]]","v":0},{"$f":"T_DataComboFile[[#This Row],[2019/20 Main appropriation_Source]]*T_DataComboFile[[#This Row],[G&S reporting level indicator]]","v":0},{"$f":"T_DataComboFile[[#This Row],[2019/20 Adjusted appropriation_Source]]*T_DataComboFile[[#This Row],[G&S reporting level indicator]]","v":0},{"$f":"T_DataComboFile[[#This Row],[2019/20 Revised estimate_Source]]*T_DataComboFile[[#This Row],[G&S reporting level indicator]]","v":0},{"$f":"T_DataComboFile[[#This Row],[2019/20 Preliminary outcome_Source]]*T_DataComboFile[[#This Row],[G&S reporting level indicator]]","v":0},{"$f":"T_DataComboFile[[#This Row],[2020/21 Original_Source]]*T_DataComboFile[[#This Row],[G&S reporting level indicator]]","v":0},{"$f":"T_DataComboFile[[#This Row],[2020/21 SAB_Source]]*T_DataComboFile[[#This Row],[G&S reporting level indicator]]","v":0},{"$f":"T_DataComboFile[[#This Row],[2020/21 Baseline_Source]]*T_DataComboFile[[#This Row],[G&S reporting level indicator]]","v":0},{"$f":"T_DataComboFile[[#This Row],[2021/22 Baseline_Source]]*T_DataComboFile[[#This Row],[G&S reporting level indicator]]","v":0},{"$f":"T_DataComboFile[[#This Row],[2022/23 Baseline_Source]]*T_DataComboFile[[#This Row],[G&S reporting level indicator]]","v":0},{"$f":"T_DataComboFile[[#This Row],[2023/24 Baseline_Source]]*T_DataComboFile[[#This Row],[G&S reporting level indicator]]","v":0},null,null,null,null,null,null,{"$f":"T_DataComboFile[[#This Row],[2021/22 Baseline]]+T_DataComboFile[[#This Row],[2021/22 Reduction]]+T_DataComboFile[[#This Row],[2021/22 Increase]]","v":0},{"$f":"T_DataComboFile[[#This Row],[2022/23 Baseline]]+T_DataComboFile[[#This Row],[2022/23 Reduction]]+T_DataComboFile[[#This Row],[2022/23 Increase]]","v":0},{"$f":"T_DataComboFile[[#This Row],[2023/24 Baseline]]+T_DataComboFile[[#This Row],[2023/24 Reduction]]+T_DataComboFile[[#This Row],[2023/24 Increase]]","v":0}]
[null,null,"2021_22","ENE2020",36,3,2,null,70854,36,3,2,null,"070854","36|03|02",1,1,2,7,7,"01|01|02|07|07","National","Small Business Development","Integrated Cooperative Development","Cooperatives Programme Design and Support",null,"Current","Current payments","Goods and services","Bursaries: Employees","Bursaries: Employees",null,null,null,0,0,0,0,0,0,0,0,0,0,0,0,0,0,null,{"$f":"IF(T_DataComboFile[[#This Row],[G&S reporting level indicator]]=1,$AX$16,\"Not applicable\")","v":"Not applicable"},{"$f":"IF(AND($AX$16=\"Level 3\",T_DataComboFile[[#This Row],[Econ3]] = \"Goods and services\"),IF(T_DataComboFile[[#This Row],[Econ4]] = T_DataComboFile[[#This Row],[Econ3]],1,0),IF(AND($AX$16=\"Level 4\",T_DataComboFile[[#This Row],[Econ4]] = \"Goods and services\"),0,1))","v":0},{"$f":"T_DataComboFile[[#This Row],[2016/17_Source]]*T_DataComboFile[[#This Row],[G&S reporting level indicator]]","v":0},{"$f":"T_DataComboFile[[#This Row],[2017/18_Source]]*T_DataComboFile[[#This Row],[G&S reporting level indicator]]","v":0},{"$f":"T_DataComboFile[[#This Row],[2018/19_Source]]*T_DataComboFile[[#This Row],[G&S reporting level indicator]]","v":0},{"$f":"T_DataComboFile[[#This Row],[2019/20 Main appropriation_Source]]*T_DataComboFile[[#This Row],[G&S reporting level indicator]]","v":0},{"$f":"T_DataComboFile[[#This Row],[2019/20 Adjusted appropriation_Source]]*T_DataComboFile[[#This Row],[G&S reporting level indicator]]","v":0},{"$f":"T_DataComboFile[[#This Row],[2019/20 Revised estimate_Source]]*T_DataComboFile[[#This Row],[G&S reporting level indicator]]","v":0},{"$f":"T_DataComboFile[[#This Row],[2019/20 Preliminary outcome_Source]]*T_DataComboFile[[#This Row],[G&S reporting level indicator]]","v":0},{"$f":"T_DataComboFile[[#This Row],[2020/21 Original_Source]]*T_DataComboFile[[#This Row],[G&S reporting level indicator]]","v":0},{"$f":"T_DataComboFile[[#This Row],[2020/21 SAB_Source]]*T_DataComboFile[[#This Row],[G&S reporting level indicator]]","v":0},{"$f":"T_DataComboFile[[#This Row],[2020/21 Baseline_Source]]*T_DataComboFile[[#This Row],[G&S reporting level indicator]]","v":0},{"$f":"T_DataComboFile[[#This Row],[2021/22 Baseline_Source]]*T_DataComboFile[[#This Row],[G&S reporting level indicator]]","v":0},{"$f":"T_DataComboFile[[#This Row],[2022/23 Baseline_Source]]*T_DataComboFile[[#This Row],[G&S reporting level indicator]]","v":0},{"$f":"T_DataComboFile[[#This Row],[2023/24 Baseline_Source]]*T_DataComboFile[[#This Row],[G&S reporting level indicator]]","v":0},null,null,null,null,null,null,{"$f":"T_DataComboFile[[#This Row],[2021/22 Baseline]]+T_DataComboFile[[#This Row],[2021/22 Reduction]]+T_DataComboFile[[#This Row],[2021/22 Increase]]","v":0},{"$f":"T_DataComboFile[[#This Row],[2022/23 Baseline]]+T_DataComboFile[[#This Row],[2022/23 Reduction]]+T_DataComboFile[[#This Row],[2022/23 Increase]]","v":0},{"$f":"T_DataComboFile[[#This Row],[2023/24 Baseline]]+T_DataComboFile[[#This Row],[2023/24 Reduction]]+T_DataComboFile[[#This Row],[2023/24 Increase]]","v":0}]
["NAT|Non-transfer item","36|Catering: Departmental activities","2021_22","ENE2020",36,3,2,17358,70855,36,3,2,17358,"070855","36|03|02",1,1,2,8,8,"01|01|02|08|08","National","Small Business Development","Integrated Cooperative Development","Cooperatives Programme Design and Support","Non-transfer item","Current","Current payments","Goods and services","Catering: Departmental activities","Catering: Departmental activities","Economic development","Industrialisation and exports","NAT",5,48,68,87,87,87,87,62,62,62,76,91,95,1,null,{"$f":"IF(T_DataComboFile[[#This Row],[G&S reporting level indicator]]=1,$AX$16,\"Not applicable\")","v":"Not applicable"},{"$f":"IF(AND($AX$16=\"Level 3\",T_DataComboFile[[#This Row],[Econ3]] = \"Goods and services\"),IF(T_DataComboFile[[#This Row],[Econ4]] = T_DataComboFile[[#This Row],[Econ3]],1,0),IF(AND($AX$16=\"Level 4\",T_DataComboFile[[#This Row],[Econ4]] = \"Goods and services\"),0,1))","v":0},{"$f":"T_DataComboFile[[#This Row],[2016/17_Source]]*T_DataComboFile[[#This Row],[G&S reporting level indicator]]","v":0},{"$f":"T_DataComboFile[[#This Row],[2017/18_Source]]*T_DataComboFile[[#This Row],[G&S reporting level indicator]]","v":0},{"$f":"T_DataComboFile[[#This Row],[2018/19_Source]]*T_DataComboFile[[#This Row],[G&S reporting level indicator]]","v":0},{"$f":"T_DataComboFile[[#This Row],[2019/20 Main appropriation_Source]]*T_DataComboFile[[#This Row],[G&S reporting level indicator]]","v":0},{"$f":"T_DataComboFile[[#This Row],[2019/20 Adjusted appropriation_Source]]*T_DataComboFile[[#This Row],[G&S reporting level indicator]]","v":0},{"$f":"T_DataComboFile[[#This Row],[2019/20 Revised estimate_Source]]*T_DataComboFile[[#This Row],[G&S reporting level indicator]]","v":0},{"$f":"T_DataComboFile[[#This Row],[2019/20 Preliminary outcome_Source]]*T_DataComboFile[[#This Row],[G&S reporting level indicator]]","v":0},{"$f":"T_DataComboFile[[#This Row],[2020/21 Original_Source]]*T_DataComboFile[[#This Row],[G&S reporting level indicator]]","v":0},{"$f":"T_DataComboFile[[#This Row],[2020/21 SAB_Source]]*T_DataComboFile[[#This Row],[G&S reporting level indicator]]","v":0},{"$f":"T_DataComboFile[[#This Row],[2020/21 Baseline_Source]]*T_DataComboFile[[#This Row],[G&S reporting level indicator]]","v":0},{"$f":"T_DataComboFile[[#This Row],[2021/22 Baseline_Source]]*T_DataComboFile[[#This Row],[G&S reporting level indicator]]","v":0},{"$f":"T_DataComboFile[[#This Row],[2022/23 Baseline_Source]]*T_DataComboFile[[#This Row],[G&S reporting level indicator]]","v":0},{"$f":"T_DataComboFile[[#This Row],[2023/24 Baseline_Source]]*T_DataComboFile[[#This Row],[G&S reporting level indicator]]","v":0},null,null,null,null,null,null,{"$f":"T_DataComboFile[[#This Row],[2021/22 Baseline]]+T_DataComboFile[[#This Row],[2021/22 Reduction]]+T_DataComboFile[[#This Row],[2021/22 Increase]]","v":0},{"$f":"T_DataComboFile[[#This Row],[2022/23 Baseline]]+T_DataComboFile[[#This Row],[2022/23 Reduction]]+T_DataComboFile[[#This Row],[2022/23 Increase]]","v":0},{"$f":"T_DataComboFile[[#This Row],[2023/24 Baseline]]+T_DataComboFile[[#This Row],[2023/24 Reduction]]+T_DataComboFile[[#This Row],[2023/24 Increase]]","v":0}]
["NAT|Non-transfer item","36|Communication (G&S)","2021_22","ENE2020",36,3,2,17359,70856,36,3,2,17359,"070856","36|03|02",1,1,2,9,9,"01|01|02|09|09","National","Small Business Development","Integrated Cooperative Development","Cooperatives Programme Design and Support","Non-transfer item","Current","Current payments","Goods and services","Communication (G&S)","Communication (G&S)","Economic development","Industrialisation and exports","NAT",27,24,47,28,58,58,58,60,60,60,65,100,104,1,null,{"$f":"IF(T_DataComboFile[[#This Row],[G&S reporting level indicator]]=1,$AX$16,\"Not applicable\")","v":"Not applicable"},{"$f":"IF(AND($AX$16=\"Level 3\",T_DataComboFile[[#This Row],[Econ3]] = \"Goods and services\"),IF(T_DataComboFile[[#This Row],[Econ4]] = T_DataComboFile[[#This Row],[Econ3]],1,0),IF(AND($AX$16=\"Level 4\",T_DataComboFile[[#This Row],[Econ4]] = \"Goods and services\"),0,1))","v":0},{"$f":"T_DataComboFile[[#This Row],[2016/17_Source]]*T_DataComboFile[[#This Row],[G&S reporting level indicator]]","v":0},{"$f":"T_DataComboFile[[#This Row],[2017/18_Source]]*T_DataComboFile[[#This Row],[G&S reporting level indicator]]","v":0},{"$f":"T_DataComboFile[[#This Row],[2018/19_Source]]*T_DataComboFile[[#This Row],[G&S reporting level indicator]]","v":0},{"$f":"T_DataComboFile[[#This Row],[2019/20 Main appropriation_Source]]*T_DataComboFile[[#This Row],[G&S reporting level indicator]]","v":0},{"$f":"T_DataComboFile[[#This Row],[2019/20 Adjusted appropriation_Source]]*T_DataComboFile[[#This Row],[G&S reporting level indicator]]","v":0},{"$f":"T_DataComboFile[[#This Row],[2019/20 Revised estimate_Source]]*T_DataComboFile[[#This Row],[G&S reporting level indicator]]","v":0},{"$f":"T_DataComboFile[[#This Row],[2019/20 Preliminary outcome_Source]]*T_DataComboFile[[#This Row],[G&S reporting level indicator]]","v":0},{"$f":"T_DataComboFile[[#This Row],[2020/21 Original_Source]]*T_DataComboFile[[#This Row],[G&S reporting level indicator]]","v":0},{"$f":"T_DataComboFile[[#This Row],[2020/21 SAB_Source]]*T_DataComboFile[[#This Row],[G&S reporting level indicator]]","v":0},{"$f":"T_DataComboFile[[#This Row],[2020/21 Baseline_Source]]*T_DataComboFile[[#This Row],[G&S reporting level indicator]]","v":0},{"$f":"T_DataComboFile[[#This Row],[2021/22 Baseline_Source]]*T_DataComboFile[[#This Row],[G&S reporting level indicator]]","v":0},{"$f":"T_DataComboFile[[#This Row],[2022/23 Baseline_Source]]*T_DataComboFile[[#This Row],[G&S reporting level indicator]]","v":0},{"$f":"T_DataComboFile[[#This Row],[2023/24 Baseline_Source]]*T_DataComboFile[[#This Row],[G&S reporting level indicator]]","v":0},null,null,null,null,null,null,{"$f":"T_DataComboFile[[#This Row],[2021/22 Baseline]]+T_DataComboFile[[#This Row],[2021/22 Reduction]]+T_DataComboFile[[#This Row],[2021/22 Increase]]","v":0},{"$f":"T_DataComboFile[[#This Row],[2022/23 Baseline]]+T_DataComboFile[[#This Row],[2022/23 Reduction]]+T_DataComboFile[[#This Row],[2022/23 Increase]]","v":0},{"$f":"T_DataComboFile[[#This Row],[2023/24 Baseline]]+T_DataComboFile[[#This Row],[2023/24 Reduction]]+T_DataComboFile[[#This Row],[2023/24 Increase]]","v":0}]
["NAT|Non-transfer item","36|Computer services","2021_22","ENE2020",36,3,2,17360,70857,36,3,2,17360,"070857","36|03|02",1,1,2,10,10,"01|01|02|10|10","National","Small Business Development","Integrated Cooperative Development","Cooperatives Programme Design and Support","Non-transfer item","Current","Current payments","Goods and services","Computer services","Computer services","Economic development","Industrialisation and exports","NAT",0,0,8,0,0,0,0,0,0,0,0,0,0,1,null,{"$f":"IF(T_DataComboFile[[#This Row],[G&S reporting level indicator]]=1,$AX$16,\"Not applicable\")","v":"Not applicable"},{"$f":"IF(AND($AX$16=\"Level 3\",T_DataComboFile[[#This Row],[Econ3]] = \"Goods and services\"),IF(T_DataComboFile[[#This Row],[Econ4]] = T_DataComboFile[[#This Row],[Econ3]],1,0),IF(AND($AX$16=\"Level 4\",T_DataComboFile[[#This Row],[Econ4]] = \"Goods and services\"),0,1))","v":0},{"$f":"T_DataComboFile[[#This Row],[2016/17_Source]]*T_DataComboFile[[#This Row],[G&S reporting level indicator]]","v":0},{"$f":"T_DataComboFile[[#This Row],[2017/18_Source]]*T_DataComboFile[[#This Row],[G&S reporting level indicator]]","v":0},{"$f":"T_DataComboFile[[#This Row],[2018/19_Source]]*T_DataComboFile[[#This Row],[G&S reporting level indicator]]","v":0},{"$f":"T_DataComboFile[[#This Row],[2019/20 Main appropriation_Source]]*T_DataComboFile[[#This Row],[G&S reporting level indicator]]","v":0},{"$f":"T_DataComboFile[[#This Row],[2019/20 Adjusted appropriation_Source]]*T_DataComboFile[[#This Row],[G&S reporting level indicator]]","v":0},{"$f":"T_DataComboFile[[#This Row],[2019/20 Revised estimate_Source]]*T_DataComboFile[[#This Row],[G&S reporting level indicator]]","v":0},{"$f":"T_DataComboFile[[#This Row],[2019/20 Preliminary outcome_Source]]*T_DataComboFile[[#This Row],[G&S reporting level indicator]]","v":0},{"$f":"T_DataComboFile[[#This Row],[2020/21 Original_Source]]*T_DataComboFile[[#This Row],[G&S reporting level indicator]]","v":0},{"$f":"T_DataComboFile[[#This Row],[2020/21 SAB_Source]]*T_DataComboFile[[#This Row],[G&S reporting level indicator]]","v":0},{"$f":"T_DataComboFile[[#This Row],[2020/21 Baseline_Source]]*T_DataComboFile[[#This Row],[G&S reporting level indicator]]","v":0},{"$f":"T_DataComboFile[[#This Row],[2021/22 Baseline_Source]]*T_DataComboFile[[#This Row],[G&S reporting level indicator]]","v":0},{"$f":"T_DataComboFile[[#This Row],[2022/23 Baseline_Source]]*T_DataComboFile[[#This Row],[G&S reporting level indicator]]","v":0},{"$f":"T_DataComboFile[[#This Row],[2023/24 Baseline_Source]]*T_DataComboFile[[#This Row],[G&S reporting level indicator]]","v":0},null,null,null,null,null,null,{"$f":"T_DataComboFile[[#This Row],[2021/22 Baseline]]+T_DataComboFile[[#This Row],[2021/22 Reduction]]+T_DataComboFile[[#This Row],[2021/22 Increase]]","v":0},{"$f":"T_DataComboFile[[#This Row],[2022/23 Baseline]]+T_DataComboFile[[#This Row],[2022/23 Reduction]]+T_DataComboFile[[#This Row],[2022/23 Increase]]","v":0},{"$f":"T_DataComboFile[[#This Row],[2023/24 Baseline]]+T_DataComboFile[[#This Row],[2023/24 Reduction]]+T_DataComboFile[[#This Row],[2023/24 Increase]]","v":0}]
[null,null,"2021_22","ENE2020",36,3,2,null,70858,36,3,2,null,"070858","36|03|02",1,1,2,11,11,"01|01|02|11|11","National","Small Business Development","Integrated Cooperative Development","Cooperatives Programme Design and Support",null,"Current","Current payments","Goods and services","Consultants: Business and advisory services","Consultants: Business and advisory services",null,null,null,0,0,0,0,0,0,0,0,0,0,0,0,0,0,null,{"$f":"IF(T_DataComboFile[[#This Row],[G&S reporting level indicator]]=1,$AX$16,\"Not applicable\")","v":"Not applicable"},{"$f":"IF(AND($AX$16=\"Level 3\",T_DataComboFile[[#This Row],[Econ3]] = \"Goods and services\"),IF(T_DataComboFile[[#This Row],[Econ4]] = T_DataComboFile[[#This Row],[Econ3]],1,0),IF(AND($AX$16=\"Level 4\",T_DataComboFile[[#This Row],[Econ4]] = \"Goods and services\"),0,1))","v":0},{"$f":"T_DataComboFile[[#This Row],[2016/17_Source]]*T_DataComboFile[[#This Row],[G&S reporting level indicator]]","v":0},{"$f":"T_DataComboFile[[#This Row],[2017/18_Source]]*T_DataComboFile[[#This Row],[G&S reporting level indicator]]","v":0},{"$f":"T_DataComboFile[[#This Row],[2018/19_Source]]*T_DataComboFile[[#This Row],[G&S reporting level indicator]]","v":0},{"$f":"T_DataComboFile[[#This Row],[2019/20 Main appropriation_Source]]*T_DataComboFile[[#This Row],[G&S reporting level indicator]]","v":0},{"$f":"T_DataComboFile[[#This Row],[2019/20 Adjusted appropriation_Source]]*T_DataComboFile[[#This Row],[G&S reporting level indicator]]","v":0},{"$f":"T_DataComboFile[[#This Row],[2019/20 Revised estimate_Source]]*T_DataComboFile[[#This Row],[G&S reporting level indicator]]","v":0},{"$f":"T_DataComboFile[[#This Row],[2019/20 Preliminary outcome_Source]]*T_DataComboFile[[#This Row],[G&S reporting level indicator]]","v":0},{"$f":"T_DataComboFile[[#This Row],[2020/21 Original_Source]]*T_DataComboFile[[#This Row],[G&S reporting level indicator]]","v":0},{"$f":"T_DataComboFile[[#This Row],[2020/21 SAB_Source]]*T_DataComboFile[[#This Row],[G&S reporting level indicator]]","v":0},{"$f":"T_DataComboFile[[#This Row],[2020/21 Baseline_Source]]*T_DataComboFile[[#This Row],[G&S reporting level indicator]]","v":0},{"$f":"T_DataComboFile[[#This Row],[2021/22 Baseline_Source]]*T_DataComboFile[[#This Row],[G&S reporting level indicator]]","v":0},{"$f":"T_DataComboFile[[#This Row],[2022/23 Baseline_Source]]*T_DataComboFile[[#This Row],[G&S reporting level indicator]]","v":0},{"$f":"T_DataComboFile[[#This Row],[2023/24 Baseline_Source]]*T_DataComboFile[[#This Row],[G&S reporting level indicator]]","v":0},null,null,null,null,null,null,{"$f":"T_DataComboFile[[#This Row],[2021/22 Baseline]]+T_DataComboFile[[#This Row],[2021/22 Reduction]]+T_DataComboFile[[#This Row],[2021/22 Increase]]","v":0},{"$f":"T_DataComboFile[[#This Row],[2022/23 Baseline]]+T_DataComboFile[[#This Row],[2022/23 Reduction]]+T_DataComboFile[[#This Row],[2022/23 Increase]]","v":0},{"$f":"T_DataComboFile[[#This Row],[2023/24 Baseline]]+T_DataComboFile[[#This Row],[2023/24 Reduction]]+T_DataComboFile[[#This Row],[2023/24 Increase]]","v":0}]
[null,null,"2021_22","ENE2020",36,3,2,null,70859,36,3,2,null,"070859","36|03|02",1,1,2,12,12,"01|01|02|12|12","National","Small Business Development","Integrated Cooperative Development","Cooperatives Programme Design and Support",null,"Current","Current payments","Goods and services","Infrastructure and planning services","Infrastructure and planning services",null,null,null,0,0,0,0,0,0,0,0,0,0,0,0,0,0,null,{"$f":"IF(T_DataComboFile[[#This Row],[G&S reporting level indicator]]=1,$AX$16,\"Not applicable\")","v":"Not applicable"},{"$f":"IF(AND($AX$16=\"Level 3\",T_DataComboFile[[#This Row],[Econ3]] = \"Goods and services\"),IF(T_DataComboFile[[#This Row],[Econ4]] = T_DataComboFile[[#This Row],[Econ3]],1,0),IF(AND($AX$16=\"Level 4\",T_DataComboFile[[#This Row],[Econ4]] = \"Goods and services\"),0,1))","v":0},{"$f":"T_DataComboFile[[#This Row],[2016/17_Source]]*T_DataComboFile[[#This Row],[G&S reporting level indicator]]","v":0},{"$f":"T_DataComboFile[[#This Row],[2017/18_Source]]*T_DataComboFile[[#This Row],[G&S reporting level indicator]]","v":0},{"$f":"T_DataComboFile[[#This Row],[2018/19_Source]]*T_DataComboFile[[#This Row],[G&S reporting level indicator]]","v":0},{"$f":"T_DataComboFile[[#This Row],[2019/20 Main appropriation_Source]]*T_DataComboFile[[#This Row],[G&S reporting level indicator]]","v":0},{"$f":"T_DataComboFile[[#This Row],[2019/20 Adjusted appropriation_Source]]*T_DataComboFile[[#This Row],[G&S reporting level indicator]]","v":0},{"$f":"T_DataComboFile[[#This Row],[2019/20 Revised estimate_Source]]*T_DataComboFile[[#This Row],[G&S reporting level indicator]]","v":0},{"$f":"T_DataComboFile[[#This Row],[2019/20 Preliminary outcome_Source]]*T_DataComboFile[[#This Row],[G&S reporting level indicator]]","v":0},{"$f":"T_DataComboFile[[#This Row],[2020/21 Original_Source]]*T_DataComboFile[[#This Row],[G&S reporting level indicator]]","v":0},{"$f":"T_DataComboFile[[#This Row],[2020/21 SAB_Source]]*T_DataComboFile[[#This Row],[G&S reporting level indicator]]","v":0},{"$f":"T_DataComboFile[[#This Row],[2020/21 Baseline_Source]]*T_DataComboFile[[#This Row],[G&S reporting level indicator]]","v":0},{"$f":"T_DataComboFile[[#This Row],[2021/22 Baseline_Source]]*T_DataComboFile[[#This Row],[G&S reporting level indicator]]","v":0},{"$f":"T_DataComboFile[[#This Row],[2022/23 Baseline_Source]]*T_DataComboFile[[#This Row],[G&S reporting level indicator]]","v":0},{"$f":"T_DataComboFile[[#This Row],[2023/24 Baseline_Source]]*T_DataComboFile[[#This Row],[G&S reporting level indicator]]","v":0},null,null,null,null,null,null,{"$f":"T_DataComboFile[[#This Row],[2021/22 Baseline]]+T_DataComboFile[[#This Row],[2021/22 Reduction]]+T_DataComboFile[[#This Row],[2021/22 Increase]]","v":0},{"$f":"T_DataComboFile[[#This Row],[2022/23 Baseline]]+T_DataComboFile[[#This Row],[2022/23 Reduction]]+T_DataComboFile[[#This Row],[2022/23 Increase]]","v":0},{"$f":"T_DataComboFile[[#This Row],[2023/24 Baseline]]+T_DataComboFile[[#This Row],[2023/24 Reduction]]+T_DataComboFile[[#This Row],[2023/24 Increase]]","v":0}]
[null,null,"2021_22","ENE2020",36,3,2,null,70860,36,3,2,null,"070860","36|03|02",1,1,2,13,13,"01|01|02|13|13","National","Small Business Development","Integrated Cooperative Development","Cooperatives Programme Design and Support",null,"Current","Current payments","Goods and services","Laboratory services","Laboratory services",null,null,null,0,0,0,0,0,0,0,0,0,0,0,0,0,0,null,{"$f":"IF(T_DataComboFile[[#This Row],[G&S reporting level indicator]]=1,$AX$16,\"Not applicable\")","v":"Not applicable"},{"$f":"IF(AND($AX$16=\"Level 3\",T_DataComboFile[[#This Row],[Econ3]] = \"Goods and services\"),IF(T_DataComboFile[[#This Row],[Econ4]] = T_DataComboFile[[#This Row],[Econ3]],1,0),IF(AND($AX$16=\"Level 4\",T_DataComboFile[[#This Row],[Econ4]] = \"Goods and services\"),0,1))","v":0},{"$f":"T_DataComboFile[[#This Row],[2016/17_Source]]*T_DataComboFile[[#This Row],[G&S reporting level indicator]]","v":0},{"$f":"T_DataComboFile[[#This Row],[2017/18_Source]]*T_DataComboFile[[#This Row],[G&S reporting level indicator]]","v":0},{"$f":"T_DataComboFile[[#This Row],[2018/19_Source]]*T_DataComboFile[[#This Row],[G&S reporting level indicator]]","v":0},{"$f":"T_DataComboFile[[#This Row],[2019/20 Main appropriation_Source]]*T_DataComboFile[[#This Row],[G&S reporting level indicator]]","v":0},{"$f":"T_DataComboFile[[#This Row],[2019/20 Adjusted appropriation_Source]]*T_DataComboFile[[#This Row],[G&S reporting level indicator]]","v":0},{"$f":"T_DataComboFile[[#This Row],[2019/20 Revised estimate_Source]]*T_DataComboFile[[#This Row],[G&S reporting level indicator]]","v":0},{"$f":"T_DataComboFile[[#This Row],[2019/20 Preliminary outcome_Source]]*T_DataComboFile[[#This Row],[G&S reporting level indicator]]","v":0},{"$f":"T_DataComboFile[[#This Row],[2020/21 Original_Source]]*T_DataComboFile[[#This Row],[G&S reporting level indicator]]","v":0},{"$f":"T_DataComboFile[[#This Row],[2020/21 SAB_Source]]*T_DataComboFile[[#This Row],[G&S reporting level indicator]]","v":0},{"$f":"T_DataComboFile[[#This Row],[2020/21 Baseline_Source]]*T_DataComboFile[[#This Row],[G&S reporting level indicator]]","v":0},{"$f":"T_DataComboFile[[#This Row],[2021/22 Baseline_Source]]*T_DataComboFile[[#This Row],[G&S reporting level indicator]]","v":0},{"$f":"T_DataComboFile[[#This Row],[2022/23 Baseline_Source]]*T_DataComboFile[[#This Row],[G&S reporting level indicator]]","v":0},{"$f":"T_DataComboFile[[#This Row],[2023/24 Baseline_Source]]*T_DataComboFile[[#This Row],[G&S reporting level indicator]]","v":0},null,null,null,null,null,null,{"$f":"T_DataComboFile[[#This Row],[2021/22 Baseline]]+T_DataComboFile[[#This Row],[2021/22 Reduction]]+T_DataComboFile[[#This Row],[2021/22 Increase]]","v":0},{"$f":"T_DataComboFile[[#This Row],[2022/23 Baseline]]+T_DataComboFile[[#This Row],[2022/23 Reduction]]+T_DataComboFile[[#This Row],[2022/23 Increase]]","v":0},{"$f":"T_DataComboFile[[#This Row],[2023/24 Baseline]]+T_DataComboFile[[#This Row],[2023/24 Reduction]]+T_DataComboFile[[#This Row],[2023/24 Increase]]","v":0}]
[null,null,"2021_22","ENE2020",36,3,2,null,70861,36,3,2,null,"070861","36|03|02",1,1,2,14,14,"01|01|02|14|14","National","Small Business Development","Integrated Cooperative Development","Cooperatives Programme Design and Support",null,"Current","Current payments","Goods and services","Legal services (G&S)","Legal services (G&S)",null,null,null,0,0,0,0,0,0,0,0,0,0,0,0,0,0,null,{"$f":"IF(T_DataComboFile[[#This Row],[G&S reporting level indicator]]=1,$AX$16,\"Not applicable\")","v":"Not applicable"},{"$f":"IF(AND($AX$16=\"Level 3\",T_DataComboFile[[#This Row],[Econ3]] = \"Goods and services\"),IF(T_DataComboFile[[#This Row],[Econ4]] = T_DataComboFile[[#This Row],[Econ3]],1,0),IF(AND($AX$16=\"Level 4\",T_DataComboFile[[#This Row],[Econ4]] = \"Goods and services\"),0,1))","v":0},{"$f":"T_DataComboFile[[#This Row],[2016/17_Source]]*T_DataComboFile[[#This Row],[G&S reporting level indicator]]","v":0},{"$f":"T_DataComboFile[[#This Row],[2017/18_Source]]*T_DataComboFile[[#This Row],[G&S reporting level indicator]]","v":0},{"$f":"T_DataComboFile[[#This Row],[2018/19_Source]]*T_DataComboFile[[#This Row],[G&S reporting level indicator]]","v":0},{"$f":"T_DataComboFile[[#This Row],[2019/20 Main appropriation_Source]]*T_DataComboFile[[#This Row],[G&S reporting level indicator]]","v":0},{"$f":"T_DataComboFile[[#This Row],[2019/20 Adjusted appropriation_Source]]*T_DataComboFile[[#This Row],[G&S reporting level indicator]]","v":0},{"$f":"T_DataComboFile[[#This Row],[2019/20 Revised estimate_Source]]*T_DataComboFile[[#This Row],[G&S reporting level indicator]]","v":0},{"$f":"T_DataComboFile[[#This Row],[2019/20 Preliminary outcome_Source]]*T_DataComboFile[[#This Row],[G&S reporting level indicator]]","v":0},{"$f":"T_DataComboFile[[#This Row],[2020/21 Original_Source]]*T_DataComboFile[[#This Row],[G&S reporting level indicator]]","v":0},{"$f":"T_DataComboFile[[#This Row],[2020/21 SAB_Source]]*T_DataComboFile[[#This Row],[G&S reporting level indicator]]","v":0},{"$f":"T_DataComboFile[[#This Row],[2020/21 Baseline_Source]]*T_DataComboFile[[#This Row],[G&S reporting level indicator]]","v":0},{"$f":"T_DataComboFile[[#This Row],[2021/22 Baseline_Source]]*T_DataComboFile[[#This Row],[G&S reporting level indicator]]","v":0},{"$f":"T_DataComboFile[[#This Row],[2022/23 Baseline_Source]]*T_DataComboFile[[#This Row],[G&S reporting level indicator]]","v":0},{"$f":"T_DataComboFile[[#This Row],[2023/24 Baseline_Source]]*T_DataComboFile[[#This Row],[G&S reporting level indicator]]","v":0},null,null,null,null,null,null,{"$f":"T_DataComboFile[[#This Row],[2021/22 Baseline]]+T_DataComboFile[[#This Row],[2021/22 Reduction]]+T_DataComboFile[[#This Row],[2021/22 Increase]]","v":0},{"$f":"T_DataComboFile[[#This Row],[2022/23 Baseline]]+T_DataComboFile[[#This Row],[2022/23 Reduction]]+T_DataComboFile[[#This Row],[2022/23 Increase]]","v":0},{"$f":"T_DataComboFile[[#This Row],[2023/24 Baseline]]+T_DataComboFile[[#This Row],[2023/24 Reduction]]+T_DataComboFile[[#This Row],[2023/24 Increase]]","v":0}]
[null,null,"2021_22","ENE2020",36,3,2,null,70862,36,3,2,null,"070862","36|03|02",1,1,2,15,15,"01|01|02|15|15","National","Small Business Development","Integrated Cooperative Development","Cooperatives Programme Design and Support",null,"Current","Current payments","Goods and services","Science and technological services","Science and technological services",null,null,null,0,0,0,0,0,0,0,0,0,0,0,0,0,0,null,{"$f":"IF(T_DataComboFile[[#This Row],[G&S reporting level indicator]]=1,$AX$16,\"Not applicable\")","v":"Not applicable"},{"$f":"IF(AND($AX$16=\"Level 3\",T_DataComboFile[[#This Row],[Econ3]] = \"Goods and services\"),IF(T_DataComboFile[[#This Row],[Econ4]] = T_DataComboFile[[#This Row],[Econ3]],1,0),IF(AND($AX$16=\"Level 4\",T_DataComboFile[[#This Row],[Econ4]] = \"Goods and services\"),0,1))","v":0},{"$f":"T_DataComboFile[[#This Row],[2016/17_Source]]*T_DataComboFile[[#This Row],[G&S reporting level indicator]]","v":0},{"$f":"T_DataComboFile[[#This Row],[2017/18_Source]]*T_DataComboFile[[#This Row],[G&S reporting level indicator]]","v":0},{"$f":"T_DataComboFile[[#This Row],[2018/19_Source]]*T_DataComboFile[[#This Row],[G&S reporting level indicator]]","v":0},{"$f":"T_DataComboFile[[#This Row],[2019/20 Main appropriation_Source]]*T_DataComboFile[[#This Row],[G&S reporting level indicator]]","v":0},{"$f":"T_DataComboFile[[#This Row],[2019/20 Adjusted appropriation_Source]]*T_DataComboFile[[#This Row],[G&S reporting level indicator]]","v":0},{"$f":"T_DataComboFile[[#This Row],[2019/20 Revised estimate_Source]]*T_DataComboFile[[#This Row],[G&S reporting level indicator]]","v":0},{"$f":"T_DataComboFile[[#This Row],[2019/20 Preliminary outcome_Source]]*T_DataComboFile[[#This Row],[G&S reporting level indicator]]","v":0},{"$f":"T_DataComboFile[[#This Row],[2020/21 Original_Source]]*T_DataComboFile[[#This Row],[G&S reporting level indicator]]","v":0},{"$f":"T_DataComboFile[[#This Row],[2020/21 SAB_Source]]*T_DataComboFile[[#This Row],[G&S reporting level indicator]]","v":0},{"$f":"T_DataComboFile[[#This Row],[2020/21 Baseline_Source]]*T_DataComboFile[[#This Row],[G&S reporting level indicator]]","v":0},{"$f":"T_DataComboFile[[#This Row],[2021/22 Baseline_Source]]*T_DataComboFile[[#This Row],[G&S reporting level indicator]]","v":0},{"$f":"T_DataComboFile[[#This Row],[2022/23 Baseline_Source]]*T_DataComboFile[[#This Row],[G&S reporting level indicator]]","v":0},{"$f":"T_DataComboFile[[#This Row],[2023/24 Baseline_Source]]*T_DataComboFile[[#This Row],[G&S reporting level indicator]]","v":0},null,null,null,null,null,null,{"$f":"T_DataComboFile[[#This Row],[2021/22 Baseline]]+T_DataComboFile[[#This Row],[2021/22 Reduction]]+T_DataComboFile[[#This Row],[2021/22 Increase]]","v":0},{"$f":"T_DataComboFile[[#This Row],[2022/23 Baseline]]+T_DataComboFile[[#This Row],[2022/23 Reduction]]+T_DataComboFile[[#This Row],[2022/23 Increase]]","v":0},{"$f":"T_DataComboFile[[#This Row],[2023/24 Baseline]]+T_DataComboFile[[#This Row],[2023/24 Reduction]]+T_DataComboFile[[#This Row],[2023/24 Increase]]","v":0}]
[null,null,"2021_22","ENE2020",36,3,2,null,70863,36,3,2,null,"070863","36|03|02",1,1,2,16,16,"01|01|02|16|16","National","Small Business Development","Integrated Cooperative Development","Cooperatives Programme Design and Support",null,"Current","Current payments","Goods and services","Contractors","Contractors",null,null,null,0,0,0,0,0,0,0,0,0,0,0,0,0,0,null,{"$f":"IF(T_DataComboFile[[#This Row],[G&S reporting level indicator]]=1,$AX$16,\"Not applicable\")","v":"Not applicable"},{"$f":"IF(AND($AX$16=\"Level 3\",T_DataComboFile[[#This Row],[Econ3]] = \"Goods and services\"),IF(T_DataComboFile[[#This Row],[Econ4]] = T_DataComboFile[[#This Row],[Econ3]],1,0),IF(AND($AX$16=\"Level 4\",T_DataComboFile[[#This Row],[Econ4]] = \"Goods and services\"),0,1))","v":0},{"$f":"T_DataComboFile[[#This Row],[2016/17_Source]]*T_DataComboFile[[#This Row],[G&S reporting level indicator]]","v":0},{"$f":"T_DataComboFile[[#This Row],[2017/18_Source]]*T_DataComboFile[[#This Row],[G&S reporting level indicator]]","v":0},{"$f":"T_DataComboFile[[#This Row],[2018/19_Source]]*T_DataComboFile[[#This Row],[G&S reporting level indicator]]","v":0},{"$f":"T_DataComboFile[[#This Row],[2019/20 Main appropriation_Source]]*T_DataComboFile[[#This Row],[G&S reporting level indicator]]","v":0},{"$f":"T_DataComboFile[[#This Row],[2019/20 Adjusted appropriation_Source]]*T_DataComboFile[[#This Row],[G&S reporting level indicator]]","v":0},{"$f":"T_DataComboFile[[#This Row],[2019/20 Revised estimate_Source]]*T_DataComboFile[[#This Row],[G&S reporting level indicator]]","v":0},{"$f":"T_DataComboFile[[#This Row],[2019/20 Preliminary outcome_Source]]*T_DataComboFile[[#This Row],[G&S reporting level indicator]]","v":0},{"$f":"T_DataComboFile[[#This Row],[2020/21 Original_Source]]*T_DataComboFile[[#This Row],[G&S reporting level indicator]]","v":0},{"$f":"T_DataComboFile[[#This Row],[2020/21 SAB_Source]]*T_DataComboFile[[#This Row],[G&S reporting level indicator]]","v":0},{"$f":"T_DataComboFile[[#This Row],[2020/21 Baseline_Source]]*T_DataComboFile[[#This Row],[G&S reporting level indicator]]","v":0},{"$f":"T_DataComboFile[[#This Row],[2021/22 Baseline_Source]]*T_DataComboFile[[#This Row],[G&S reporting level indicator]]","v":0},{"$f":"T_DataComboFile[[#This Row],[2022/23 Baseline_Source]]*T_DataComboFile[[#This Row],[G&S reporting level indicator]]","v":0},{"$f":"T_DataComboFile[[#This Row],[2023/24 Baseline_Source]]*T_DataComboFile[[#This Row],[G&S reporting level indicator]]","v":0},null,null,null,null,null,null,{"$f":"T_DataComboFile[[#This Row],[2021/22 Baseline]]+T_DataComboFile[[#This Row],[2021/22 Reduction]]+T_DataComboFile[[#This Row],[2021/22 Increase]]","v":0},{"$f":"T_DataComboFile[[#This Row],[2022/23 Baseline]]+T_DataComboFile[[#This Row],[2022/23 Reduction]]+T_DataComboFile[[#This Row],[2022/23 Increase]]","v":0},{"$f":"T_DataComboFile[[#This Row],[2023/24 Baseline]]+T_DataComboFile[[#This Row],[2023/24 Reduction]]+T_DataComboFile[[#This Row],[2023/24 Increase]]","v":0}]
[null,null,"2021_22","ENE2020",36,3,2,null,70864,36,3,2,null,"070864","36|03|02",1,1,2,17,17,"01|01|02|17|17","National","Small Business Development","Integrated Cooperative Development","Cooperatives Programme Design and Support",null,"Current","Current payments","Goods and services","Agency and support/outsourced services","Agency and support/outsourced services",null,null,null,0,0,0,0,0,0,0,0,0,0,0,0,0,0,null,{"$f":"IF(T_DataComboFile[[#This Row],[G&S reporting level indicator]]=1,$AX$16,\"Not applicable\")","v":"Not applicable"},{"$f":"IF(AND($AX$16=\"Level 3\",T_DataComboFile[[#This Row],[Econ3]] = \"Goods and services\"),IF(T_DataComboFile[[#This Row],[Econ4]] = T_DataComboFile[[#This Row],[Econ3]],1,0),IF(AND($AX$16=\"Level 4\",T_DataComboFile[[#This Row],[Econ4]] = \"Goods and services\"),0,1))","v":0},{"$f":"T_DataComboFile[[#This Row],[2016/17_Source]]*T_DataComboFile[[#This Row],[G&S reporting level indicator]]","v":0},{"$f":"T_DataComboFile[[#This Row],[2017/18_Source]]*T_DataComboFile[[#This Row],[G&S reporting level indicator]]","v":0},{"$f":"T_DataComboFile[[#This Row],[2018/19_Source]]*T_DataComboFile[[#This Row],[G&S reporting level indicator]]","v":0},{"$f":"T_DataComboFile[[#This Row],[2019/20 Main appropriation_Source]]*T_DataComboFile[[#This Row],[G&S reporting level indicator]]","v":0},{"$f":"T_DataComboFile[[#This Row],[2019/20 Adjusted appropriation_Source]]*T_DataComboFile[[#This Row],[G&S reporting level indicator]]","v":0},{"$f":"T_DataComboFile[[#This Row],[2019/20 Revised estimate_Source]]*T_DataComboFile[[#This Row],[G&S reporting level indicator]]","v":0},{"$f":"T_DataComboFile[[#This Row],[2019/20 Preliminary outcome_Source]]*T_DataComboFile[[#This Row],[G&S reporting level indicator]]","v":0},{"$f":"T_DataComboFile[[#This Row],[2020/21 Original_Source]]*T_DataComboFile[[#This Row],[G&S reporting level indicator]]","v":0},{"$f":"T_DataComboFile[[#This Row],[2020/21 SAB_Source]]*T_DataComboFile[[#This Row],[G&S reporting level indicator]]","v":0},{"$f":"T_DataComboFile[[#This Row],[2020/21 Baseline_Source]]*T_DataComboFile[[#This Row],[G&S reporting level indicator]]","v":0},{"$f":"T_DataComboFile[[#This Row],[2021/22 Baseline_Source]]*T_DataComboFile[[#This Row],[G&S reporting level indicator]]","v":0},{"$f":"T_DataComboFile[[#This Row],[2022/23 Baseline_Source]]*T_DataComboFile[[#This Row],[G&S reporting level indicator]]","v":0},{"$f":"T_DataComboFile[[#This Row],[2023/24 Baseline_Source]]*T_DataComboFile[[#This Row],[G&S reporting level indicator]]","v":0},null,null,null,null,null,null,{"$f":"T_DataComboFile[[#This Row],[2021/22 Baseline]]+T_DataComboFile[[#This Row],[2021/22 Reduction]]+T_DataComboFile[[#This Row],[2021/22 Increase]]","v":0},{"$f":"T_DataComboFile[[#This Row],[2022/23 Baseline]]+T_DataComboFile[[#This Row],[2022/23 Reduction]]+T_DataComboFile[[#This Row],[2022/23 Increase]]","v":0},{"$f":"T_DataComboFile[[#This Row],[2023/24 Baseline]]+T_DataComboFile[[#This Row],[2023/24 Reduction]]+T_DataComboFile[[#This Row],[2023/24 Increase]]","v":0}]
[null,null,"2021_22","ENE2020",36,3,2,null,70865,36,3,2,null,"070865","36|03|02",1,1,2,18,18,"01|01|02|18|18","National","Small Business Development","Integrated Cooperative Development","Cooperatives Programme Design and Support",null,"Current","Current payments","Goods and services","Entertainment","Entertainment",null,null,null,0,0,0,0,0,0,0,0,0,0,0,0,0,0,null,{"$f":"IF(T_DataComboFile[[#This Row],[G&S reporting level indicator]]=1,$AX$16,\"Not applicable\")","v":"Not applicable"},{"$f":"IF(AND($AX$16=\"Level 3\",T_DataComboFile[[#This Row],[Econ3]] = \"Goods and services\"),IF(T_DataComboFile[[#This Row],[Econ4]] = T_DataComboFile[[#This Row],[Econ3]],1,0),IF(AND($AX$16=\"Level 4\",T_DataComboFile[[#This Row],[Econ4]] = \"Goods and services\"),0,1))","v":0},{"$f":"T_DataComboFile[[#This Row],[2016/17_Source]]*T_DataComboFile[[#This Row],[G&S reporting level indicator]]","v":0},{"$f":"T_DataComboFile[[#This Row],[2017/18_Source]]*T_DataComboFile[[#This Row],[G&S reporting level indicator]]","v":0},{"$f":"T_DataComboFile[[#This Row],[2018/19_Source]]*T_DataComboFile[[#This Row],[G&S reporting level indicator]]","v":0},{"$f":"T_DataComboFile[[#This Row],[2019/20 Main appropriation_Source]]*T_DataComboFile[[#This Row],[G&S reporting level indicator]]","v":0},{"$f":"T_DataComboFile[[#This Row],[2019/20 Adjusted appropriation_Source]]*T_DataComboFile[[#This Row],[G&S reporting level indicator]]","v":0},{"$f":"T_DataComboFile[[#This Row],[2019/20 Revised estimate_Source]]*T_DataComboFile[[#This Row],[G&S reporting level indicator]]","v":0},{"$f":"T_DataComboFile[[#This Row],[2019/20 Preliminary outcome_Source]]*T_DataComboFile[[#This Row],[G&S reporting level indicator]]","v":0},{"$f":"T_DataComboFile[[#This Row],[2020/21 Original_Source]]*T_DataComboFile[[#This Row],[G&S reporting level indicator]]","v":0},{"$f":"T_DataComboFile[[#This Row],[2020/21 SAB_Source]]*T_DataComboFile[[#This Row],[G&S reporting level indicator]]","v":0},{"$f":"T_DataComboFile[[#This Row],[2020/21 Baseline_Source]]*T_DataComboFile[[#This Row],[G&S reporting level indicator]]","v":0},{"$f":"T_DataComboFile[[#This Row],[2021/22 Baseline_Source]]*T_DataComboFile[[#This Row],[G&S reporting level indicator]]","v":0},{"$f":"T_DataComboFile[[#This Row],[2022/23 Baseline_Source]]*T_DataComboFile[[#This Row],[G&S reporting level indicator]]","v":0},{"$f":"T_DataComboFile[[#This Row],[2023/24 Baseline_Source]]*T_DataComboFile[[#This Row],[G&S reporting level indicator]]","v":0},null,null,null,null,null,null,{"$f":"T_DataComboFile[[#This Row],[2021/22 Baseline]]+T_DataComboFile[[#This Row],[2021/22 Reduction]]+T_DataComboFile[[#This Row],[2021/22 Increase]]","v":0},{"$f":"T_DataComboFile[[#This Row],[2022/23 Baseline]]+T_DataComboFile[[#This Row],[2022/23 Reduction]]+T_DataComboFile[[#This Row],[2022/23 Increase]]","v":0},{"$f":"T_DataComboFile[[#This Row],[2023/24 Baseline]]+T_DataComboFile[[#This Row],[2023/24 Reduction]]+T_DataComboFile[[#This Row],[2023/24 Increase]]","v":0}]
["NAT|Non-transfer item","36|Fleet services (including government motor transport)","2021_22","ENE2020",36,3,2,17361,70866,36,3,2,17361,"070866","36|03|02",1,1,2,19,19,"01|01|02|19|19","National","Small Business Development","Integrated Cooperative Development","Cooperatives Programme Design and Support","Non-transfer item","Current","Current payments","Goods and services","Fleet services (including government motor transport)","Fleet services (including government motor transport)","Economic development","Industrialisation and exports","NAT",28,22,44,18,63,63,63,33,33,33,36,41,43,1,null,{"$f":"IF(T_DataComboFile[[#This Row],[G&S reporting level indicator]]=1,$AX$16,\"Not applicable\")","v":"Not applicable"},{"$f":"IF(AND($AX$16=\"Level 3\",T_DataComboFile[[#This Row],[Econ3]] = \"Goods and services\"),IF(T_DataComboFile[[#This Row],[Econ4]] = T_DataComboFile[[#This Row],[Econ3]],1,0),IF(AND($AX$16=\"Level 4\",T_DataComboFile[[#This Row],[Econ4]] = \"Goods and services\"),0,1))","v":0},{"$f":"T_DataComboFile[[#This Row],[2016/17_Source]]*T_DataComboFile[[#This Row],[G&S reporting level indicator]]","v":0},{"$f":"T_DataComboFile[[#This Row],[2017/18_Source]]*T_DataComboFile[[#This Row],[G&S reporting level indicator]]","v":0},{"$f":"T_DataComboFile[[#This Row],[2018/19_Source]]*T_DataComboFile[[#This Row],[G&S reporting level indicator]]","v":0},{"$f":"T_DataComboFile[[#This Row],[2019/20 Main appropriation_Source]]*T_DataComboFile[[#This Row],[G&S reporting level indicator]]","v":0},{"$f":"T_DataComboFile[[#This Row],[2019/20 Adjusted appropriation_Source]]*T_DataComboFile[[#This Row],[G&S reporting level indicator]]","v":0},{"$f":"T_DataComboFile[[#This Row],[2019/20 Revised estimate_Source]]*T_DataComboFile[[#This Row],[G&S reporting level indicator]]","v":0},{"$f":"T_DataComboFile[[#This Row],[2019/20 Preliminary outcome_Source]]*T_DataComboFile[[#This Row],[G&S reporting level indicator]]","v":0},{"$f":"T_DataComboFile[[#This Row],[2020/21 Original_Source]]*T_DataComboFile[[#This Row],[G&S reporting level indicator]]","v":0},{"$f":"T_DataComboFile[[#This Row],[2020/21 SAB_Source]]*T_DataComboFile[[#This Row],[G&S reporting level indicator]]","v":0},{"$f":"T_DataComboFile[[#This Row],[2020/21 Baseline_Source]]*T_DataComboFile[[#This Row],[G&S reporting level indicator]]","v":0},{"$f":"T_DataComboFile[[#This Row],[2021/22 Baseline_Source]]*T_DataComboFile[[#This Row],[G&S reporting level indicator]]","v":0},{"$f":"T_DataComboFile[[#This Row],[2022/23 Baseline_Source]]*T_DataComboFile[[#This Row],[G&S reporting level indicator]]","v":0},{"$f":"T_DataComboFile[[#This Row],[2023/24 Baseline_Source]]*T_DataComboFile[[#This Row],[G&S reporting level indicator]]","v":0},null,null,null,null,null,null,{"$f":"T_DataComboFile[[#This Row],[2021/22 Baseline]]+T_DataComboFile[[#This Row],[2021/22 Reduction]]+T_DataComboFile[[#This Row],[2021/22 Increase]]","v":0},{"$f":"T_DataComboFile[[#This Row],[2022/23 Baseline]]+T_DataComboFile[[#This Row],[2022/23 Reduction]]+T_DataComboFile[[#This Row],[2022/23 Increase]]","v":0},{"$f":"T_DataComboFile[[#This Row],[2023/24 Baseline]]+T_DataComboFile[[#This Row],[2023/24 Reduction]]+T_DataComboFile[[#This Row],[2023/24 Increase]]","v":0}]
[null,null,"2021_22","ENE2020",36,3,2,null,70867,36,3,2,null,"070867","36|03|02",1,1,2,20,20,"01|01|02|20|20","National","Small Business Development","Integrated Cooperative Development","Cooperatives Programme Design and Support",null,"Current","Current payments","Goods and services","Housing","Housing",null,null,null,0,0,0,0,0,0,0,0,0,0,0,0,0,0,null,{"$f":"IF(T_DataComboFile[[#This Row],[G&S reporting level indicator]]=1,$AX$16,\"Not applicable\")","v":"Not applicable"},{"$f":"IF(AND($AX$16=\"Level 3\",T_DataComboFile[[#This Row],[Econ3]] = \"Goods and services\"),IF(T_DataComboFile[[#This Row],[Econ4]] = T_DataComboFile[[#This Row],[Econ3]],1,0),IF(AND($AX$16=\"Level 4\",T_DataComboFile[[#This Row],[Econ4]] = \"Goods and services\"),0,1))","v":0},{"$f":"T_DataComboFile[[#This Row],[2016/17_Source]]*T_DataComboFile[[#This Row],[G&S reporting level indicator]]","v":0},{"$f":"T_DataComboFile[[#This Row],[2017/18_Source]]*T_DataComboFile[[#This Row],[G&S reporting level indicator]]","v":0},{"$f":"T_DataComboFile[[#This Row],[2018/19_Source]]*T_DataComboFile[[#This Row],[G&S reporting level indicator]]","v":0},{"$f":"T_DataComboFile[[#This Row],[2019/20 Main appropriation_Source]]*T_DataComboFile[[#This Row],[G&S reporting level indicator]]","v":0},{"$f":"T_DataComboFile[[#This Row],[2019/20 Adjusted appropriation_Source]]*T_DataComboFile[[#This Row],[G&S reporting level indicator]]","v":0},{"$f":"T_DataComboFile[[#This Row],[2019/20 Revised estimate_Source]]*T_DataComboFile[[#This Row],[G&S reporting level indicator]]","v":0},{"$f":"T_DataComboFile[[#This Row],[2019/20 Preliminary outcome_Source]]*T_DataComboFile[[#This Row],[G&S reporting level indicator]]","v":0},{"$f":"T_DataComboFile[[#This Row],[2020/21 Original_Source]]*T_DataComboFile[[#This Row],[G&S reporting level indicator]]","v":0},{"$f":"T_DataComboFile[[#This Row],[2020/21 SAB_Source]]*T_DataComboFile[[#This Row],[G&S reporting level indicator]]","v":0},{"$f":"T_DataComboFile[[#This Row],[2020/21 Baseline_Source]]*T_DataComboFile[[#This Row],[G&S reporting level indicator]]","v":0},{"$f":"T_DataComboFile[[#This Row],[2021/22 Baseline_Source]]*T_DataComboFile[[#This Row],[G&S reporting level indicator]]","v":0},{"$f":"T_DataComboFile[[#This Row],[2022/23 Baseline_Source]]*T_DataComboFile[[#This Row],[G&S reporting level indicator]]","v":0},{"$f":"T_DataComboFile[[#This Row],[2023/24 Baseline_Source]]*T_DataComboFile[[#This Row],[G&S reporting level indicator]]","v":0},null,null,null,null,null,null,{"$f":"T_DataComboFile[[#This Row],[2021/22 Baseline]]+T_DataComboFile[[#This Row],[2021/22 Reduction]]+T_DataComboFile[[#This Row],[2021/22 Increase]]","v":0},{"$f":"T_DataComboFile[[#This Row],[2022/23 Baseline]]+T_DataComboFile[[#This Row],[2022/23 Reduction]]+T_DataComboFile[[#This Row],[2022/23 Increase]]","v":0},{"$f":"T_DataComboFile[[#This Row],[2023/24 Baseline]]+T_DataComboFile[[#This Row],[2023/24 Reduction]]+T_DataComboFile[[#This Row],[2023/24 Increase]]","v":0}]
[null,null,"2021_22","ENE2020",36,3,2,null,70868,36,3,2,null,"070868","36|03|02",1,1,2,21,21,"01|01|02|21|21","National","Small Business Development","Integrated Cooperative Development","Cooperatives Programme Design and Support",null,"Current","Current payments","Goods and services","Inventory: Clothing material and accessories","Inventory: Clothing material and accessories",null,null,null,0,0,0,0,0,0,0,0,0,0,0,0,0,0,null,{"$f":"IF(T_DataComboFile[[#This Row],[G&S reporting level indicator]]=1,$AX$16,\"Not applicable\")","v":"Not applicable"},{"$f":"IF(AND($AX$16=\"Level 3\",T_DataComboFile[[#This Row],[Econ3]] = \"Goods and services\"),IF(T_DataComboFile[[#This Row],[Econ4]] = T_DataComboFile[[#This Row],[Econ3]],1,0),IF(AND($AX$16=\"Level 4\",T_DataComboFile[[#This Row],[Econ4]] = \"Goods and services\"),0,1))","v":0},{"$f":"T_DataComboFile[[#This Row],[2016/17_Source]]*T_DataComboFile[[#This Row],[G&S reporting level indicator]]","v":0},{"$f":"T_DataComboFile[[#This Row],[2017/18_Source]]*T_DataComboFile[[#This Row],[G&S reporting level indicator]]","v":0},{"$f":"T_DataComboFile[[#This Row],[2018/19_Source]]*T_DataComboFile[[#This Row],[G&S reporting level indicator]]","v":0},{"$f":"T_DataComboFile[[#This Row],[2019/20 Main appropriation_Source]]*T_DataComboFile[[#This Row],[G&S reporting level indicator]]","v":0},{"$f":"T_DataComboFile[[#This Row],[2019/20 Adjusted appropriation_Source]]*T_DataComboFile[[#This Row],[G&S reporting level indicator]]","v":0},{"$f":"T_DataComboFile[[#This Row],[2019/20 Revised estimate_Source]]*T_DataComboFile[[#This Row],[G&S reporting level indicator]]","v":0},{"$f":"T_DataComboFile[[#This Row],[2019/20 Preliminary outcome_Source]]*T_DataComboFile[[#This Row],[G&S reporting level indicator]]","v":0},{"$f":"T_DataComboFile[[#This Row],[2020/21 Original_Source]]*T_DataComboFile[[#This Row],[G&S reporting level indicator]]","v":0},{"$f":"T_DataComboFile[[#This Row],[2020/21 SAB_Source]]*T_DataComboFile[[#This Row],[G&S reporting level indicator]]","v":0},{"$f":"T_DataComboFile[[#This Row],[2020/21 Baseline_Source]]*T_DataComboFile[[#This Row],[G&S reporting level indicator]]","v":0},{"$f":"T_DataComboFile[[#This Row],[2021/22 Baseline_Source]]*T_DataComboFile[[#This Row],[G&S reporting level indicator]]","v":0},{"$f":"T_DataComboFile[[#This Row],[2022/23 Baseline_Source]]*T_DataComboFile[[#This Row],[G&S reporting level indicator]]","v":0},{"$f":"T_DataComboFile[[#This Row],[2023/24 Baseline_Source]]*T_DataComboFile[[#This Row],[G&S reporting level indicator]]","v":0},null,null,null,null,null,null,{"$f":"T_DataComboFile[[#This Row],[2021/22 Baseline]]+T_DataComboFile[[#This Row],[2021/22 Reduction]]+T_DataComboFile[[#This Row],[2021/22 Increase]]","v":0},{"$f":"T_DataComboFile[[#This Row],[2022/23 Baseline]]+T_DataComboFile[[#This Row],[2022/23 Reduction]]+T_DataComboFile[[#This Row],[2022/23 Increase]]","v":0},{"$f":"T_DataComboFile[[#This Row],[2023/24 Baseline]]+T_DataComboFile[[#This Row],[2023/24 Reduction]]+T_DataComboFile[[#This Row],[2023/24 Increase]]","v":0}]
[null,null,"2021_22","ENE2020",36,3,2,null,70869,36,3,2,null,"070869","36|03|02",1,1,2,22,22,"01|01|02|22|22","National","Small Business Development","Integrated Cooperative Development","Cooperatives Programme Design and Support",null,"Current","Current payments","Goods and services","Inventory: Farming supplies","Inventory: Farming supplies",null,null,null,0,0,0,0,0,0,0,0,0,0,0,0,0,0,null,{"$f":"IF(T_DataComboFile[[#This Row],[G&S reporting level indicator]]=1,$AX$16,\"Not applicable\")","v":"Not applicable"},{"$f":"IF(AND($AX$16=\"Level 3\",T_DataComboFile[[#This Row],[Econ3]] = \"Goods and services\"),IF(T_DataComboFile[[#This Row],[Econ4]] = T_DataComboFile[[#This Row],[Econ3]],1,0),IF(AND($AX$16=\"Level 4\",T_DataComboFile[[#This Row],[Econ4]] = \"Goods and services\"),0,1))","v":0},{"$f":"T_DataComboFile[[#This Row],[2016/17_Source]]*T_DataComboFile[[#This Row],[G&S reporting level indicator]]","v":0},{"$f":"T_DataComboFile[[#This Row],[2017/18_Source]]*T_DataComboFile[[#This Row],[G&S reporting level indicator]]","v":0},{"$f":"T_DataComboFile[[#This Row],[2018/19_Source]]*T_DataComboFile[[#This Row],[G&S reporting level indicator]]","v":0},{"$f":"T_DataComboFile[[#This Row],[2019/20 Main appropriation_Source]]*T_DataComboFile[[#This Row],[G&S reporting level indicator]]","v":0},{"$f":"T_DataComboFile[[#This Row],[2019/20 Adjusted appropriation_Source]]*T_DataComboFile[[#This Row],[G&S reporting level indicator]]","v":0},{"$f":"T_DataComboFile[[#This Row],[2019/20 Revised estimate_Source]]*T_DataComboFile[[#This Row],[G&S reporting level indicator]]","v":0},{"$f":"T_DataComboFile[[#This Row],[2019/20 Preliminary outcome_Source]]*T_DataComboFile[[#This Row],[G&S reporting level indicator]]","v":0},{"$f":"T_DataComboFile[[#This Row],[2020/21 Original_Source]]*T_DataComboFile[[#This Row],[G&S reporting level indicator]]","v":0},{"$f":"T_DataComboFile[[#This Row],[2020/21 SAB_Source]]*T_DataComboFile[[#This Row],[G&S reporting level indicator]]","v":0},{"$f":"T_DataComboFile[[#This Row],[2020/21 Baseline_Source]]*T_DataComboFile[[#This Row],[G&S reporting level indicator]]","v":0},{"$f":"T_DataComboFile[[#This Row],[2021/22 Baseline_Source]]*T_DataComboFile[[#This Row],[G&S reporting level indicator]]","v":0},{"$f":"T_DataComboFile[[#This Row],[2022/23 Baseline_Source]]*T_DataComboFile[[#This Row],[G&S reporting level indicator]]","v":0},{"$f":"T_DataComboFile[[#This Row],[2023/24 Baseline_Source]]*T_DataComboFile[[#This Row],[G&S reporting level indicator]]","v":0},null,null,null,null,null,null,{"$f":"T_DataComboFile[[#This Row],[2021/22 Baseline]]+T_DataComboFile[[#This Row],[2021/22 Reduction]]+T_DataComboFile[[#This Row],[2021/22 Increase]]","v":0},{"$f":"T_DataComboFile[[#This Row],[2022/23 Baseline]]+T_DataComboFile[[#This Row],[2022/23 Reduction]]+T_DataComboFile[[#This Row],[2022/23 Increase]]","v":0},{"$f":"T_DataComboFile[[#This Row],[2023/24 Baseline]]+T_DataComboFile[[#This Row],[2023/24 Reduction]]+T_DataComboFile[[#This Row],[2023/24 Increase]]","v":0}]
[null,null,"2021_22","ENE2020",36,3,2,null,70870,36,3,2,null,"070870","36|03|02",1,1,2,23,23,"01|01|02|23|23","National","Small Business Development","Integrated Cooperative Development","Cooperatives Programme Design and Support",null,"Current","Current payments","Goods and services","Inventory: Food and food supplies","Inventory: Food and food supplies",null,null,null,0,0,0,0,0,0,0,0,0,0,0,0,0,0,null,{"$f":"IF(T_DataComboFile[[#This Row],[G&S reporting level indicator]]=1,$AX$16,\"Not applicable\")","v":"Not applicable"},{"$f":"IF(AND($AX$16=\"Level 3\",T_DataComboFile[[#This Row],[Econ3]] = \"Goods and services\"),IF(T_DataComboFile[[#This Row],[Econ4]] = T_DataComboFile[[#This Row],[Econ3]],1,0),IF(AND($AX$16=\"Level 4\",T_DataComboFile[[#This Row],[Econ4]] = \"Goods and services\"),0,1))","v":0},{"$f":"T_DataComboFile[[#This Row],[2016/17_Source]]*T_DataComboFile[[#This Row],[G&S reporting level indicator]]","v":0},{"$f":"T_DataComboFile[[#This Row],[2017/18_Source]]*T_DataComboFile[[#This Row],[G&S reporting level indicator]]","v":0},{"$f":"T_DataComboFile[[#This Row],[2018/19_Source]]*T_DataComboFile[[#This Row],[G&S reporting level indicator]]","v":0},{"$f":"T_DataComboFile[[#This Row],[2019/20 Main appropriation_Source]]*T_DataComboFile[[#This Row],[G&S reporting level indicator]]","v":0},{"$f":"T_DataComboFile[[#This Row],[2019/20 Adjusted appropriation_Source]]*T_DataComboFile[[#This Row],[G&S reporting level indicator]]","v":0},{"$f":"T_DataComboFile[[#This Row],[2019/20 Revised estimate_Source]]*T_DataComboFile[[#This Row],[G&S reporting level indicator]]","v":0},{"$f":"T_DataComboFile[[#This Row],[2019/20 Preliminary outcome_Source]]*T_DataComboFile[[#This Row],[G&S reporting level indicator]]","v":0},{"$f":"T_DataComboFile[[#This Row],[2020/21 Original_Source]]*T_DataComboFile[[#This Row],[G&S reporting level indicator]]","v":0},{"$f":"T_DataComboFile[[#This Row],[2020/21 SAB_Source]]*T_DataComboFile[[#This Row],[G&S reporting level indicator]]","v":0},{"$f":"T_DataComboFile[[#This Row],[2020/21 Baseline_Source]]*T_DataComboFile[[#This Row],[G&S reporting level indicator]]","v":0},{"$f":"T_DataComboFile[[#This Row],[2021/22 Baseline_Source]]*T_DataComboFile[[#This Row],[G&S reporting level indicator]]","v":0},{"$f":"T_DataComboFile[[#This Row],[2022/23 Baseline_Source]]*T_DataComboFile[[#This Row],[G&S reporting level indicator]]","v":0},{"$f":"T_DataComboFile[[#This Row],[2023/24 Baseline_Source]]*T_DataComboFile[[#This Row],[G&S reporting level indicator]]","v":0},null,null,null,null,null,null,{"$f":"T_DataComboFile[[#This Row],[2021/22 Baseline]]+T_DataComboFile[[#This Row],[2021/22 Reduction]]+T_DataComboFile[[#This Row],[2021/22 Increase]]","v":0},{"$f":"T_DataComboFile[[#This Row],[2022/23 Baseline]]+T_DataComboFile[[#This Row],[2022/23 Reduction]]+T_DataComboFile[[#This Row],[2022/23 Increase]]","v":0},{"$f":"T_DataComboFile[[#This Row],[2023/24 Baseline]]+T_DataComboFile[[#This Row],[2023/24 Reduction]]+T_DataComboFile[[#This Row],[2023/24 Increase]]","v":0}]
[null,null,"2021_22","ENE2020",36,3,2,null,70871,36,3,2,null,"070871","36|03|02",1,1,2,24,24,"01|01|02|24|24","National","Small Business Development","Integrated Cooperative Development","Cooperatives Programme Design and Support",null,"Current","Current payments","Goods and services","Inventory: Fuel, oil and gas","Inventory: Fuel, oil and gas",null,null,null,0,0,0,0,0,0,0,0,0,0,0,0,0,0,null,{"$f":"IF(T_DataComboFile[[#This Row],[G&S reporting level indicator]]=1,$AX$16,\"Not applicable\")","v":"Not applicable"},{"$f":"IF(AND($AX$16=\"Level 3\",T_DataComboFile[[#This Row],[Econ3]] = \"Goods and services\"),IF(T_DataComboFile[[#This Row],[Econ4]] = T_DataComboFile[[#This Row],[Econ3]],1,0),IF(AND($AX$16=\"Level 4\",T_DataComboFile[[#This Row],[Econ4]] = \"Goods and services\"),0,1))","v":0},{"$f":"T_DataComboFile[[#This Row],[2016/17_Source]]*T_DataComboFile[[#This Row],[G&S reporting level indicator]]","v":0},{"$f":"T_DataComboFile[[#This Row],[2017/18_Source]]*T_DataComboFile[[#This Row],[G&S reporting level indicator]]","v":0},{"$f":"T_DataComboFile[[#This Row],[2018/19_Source]]*T_DataComboFile[[#This Row],[G&S reporting level indicator]]","v":0},{"$f":"T_DataComboFile[[#This Row],[2019/20 Main appropriation_Source]]*T_DataComboFile[[#This Row],[G&S reporting level indicator]]","v":0},{"$f":"T_DataComboFile[[#This Row],[2019/20 Adjusted appropriation_Source]]*T_DataComboFile[[#This Row],[G&S reporting level indicator]]","v":0},{"$f":"T_DataComboFile[[#This Row],[2019/20 Revised estimate_Source]]*T_DataComboFile[[#This Row],[G&S reporting level indicator]]","v":0},{"$f":"T_DataComboFile[[#This Row],[2019/20 Preliminary outcome_Source]]*T_DataComboFile[[#This Row],[G&S reporting level indicator]]","v":0},{"$f":"T_DataComboFile[[#This Row],[2020/21 Original_Source]]*T_DataComboFile[[#This Row],[G&S reporting level indicator]]","v":0},{"$f":"T_DataComboFile[[#This Row],[2020/21 SAB_Source]]*T_DataComboFile[[#This Row],[G&S reporting level indicator]]","v":0},{"$f":"T_DataComboFile[[#This Row],[2020/21 Baseline_Source]]*T_DataComboFile[[#This Row],[G&S reporting level indicator]]","v":0},{"$f":"T_DataComboFile[[#This Row],[2021/22 Baseline_Source]]*T_DataComboFile[[#This Row],[G&S reporting level indicator]]","v":0},{"$f":"T_DataComboFile[[#This Row],[2022/23 Baseline_Source]]*T_DataComboFile[[#This Row],[G&S reporting level indicator]]","v":0},{"$f":"T_DataComboFile[[#This Row],[2023/24 Baseline_Source]]*T_DataComboFile[[#This Row],[G&S reporting level indicator]]","v":0},null,null,null,null,null,null,{"$f":"T_DataComboFile[[#This Row],[2021/22 Baseline]]+T_DataComboFile[[#This Row],[2021/22 Reduction]]+T_DataComboFile[[#This Row],[2021/22 Increase]]","v":0},{"$f":"T_DataComboFile[[#This Row],[2022/23 Baseline]]+T_DataComboFile[[#This Row],[2022/23 Reduction]]+T_DataComboFile[[#This Row],[2022/23 Increase]]","v":0},{"$f":"T_DataComboFile[[#This Row],[2023/24 Baseline]]+T_DataComboFile[[#This Row],[2023/24 Reduction]]+T_DataComboFile[[#This Row],[2023/24 Increase]]","v":0}]
[null,null,"2021_22","ENE2020",36,3,2,null,70872,36,3,2,null,"070872","36|03|02",1,1,2,25,25,"01|01|02|25|25","National","Small Business Development","Integrated Cooperative Development","Cooperatives Programme Design and Support",null,"Current","Current payments","Goods and services","Inventory: Learner and teacher support material","Inventory: Learner and teacher support material",null,null,null,0,0,0,0,0,0,0,0,0,0,0,0,0,0,null,{"$f":"IF(T_DataComboFile[[#This Row],[G&S reporting level indicator]]=1,$AX$16,\"Not applicable\")","v":"Not applicable"},{"$f":"IF(AND($AX$16=\"Level 3\",T_DataComboFile[[#This Row],[Econ3]] = \"Goods and services\"),IF(T_DataComboFile[[#This Row],[Econ4]] = T_DataComboFile[[#This Row],[Econ3]],1,0),IF(AND($AX$16=\"Level 4\",T_DataComboFile[[#This Row],[Econ4]] = \"Goods and services\"),0,1))","v":0},{"$f":"T_DataComboFile[[#This Row],[2016/17_Source]]*T_DataComboFile[[#This Row],[G&S reporting level indicator]]","v":0},{"$f":"T_DataComboFile[[#This Row],[2017/18_Source]]*T_DataComboFile[[#This Row],[G&S reporting level indicator]]","v":0},{"$f":"T_DataComboFile[[#This Row],[2018/19_Source]]*T_DataComboFile[[#This Row],[G&S reporting level indicator]]","v":0},{"$f":"T_DataComboFile[[#This Row],[2019/20 Main appropriation_Source]]*T_DataComboFile[[#This Row],[G&S reporting level indicator]]","v":0},{"$f":"T_DataComboFile[[#This Row],[2019/20 Adjusted appropriation_Source]]*T_DataComboFile[[#This Row],[G&S reporting level indicator]]","v":0},{"$f":"T_DataComboFile[[#This Row],[2019/20 Revised estimate_Source]]*T_DataComboFile[[#This Row],[G&S reporting level indicator]]","v":0},{"$f":"T_DataComboFile[[#This Row],[2019/20 Preliminary outcome_Source]]*T_DataComboFile[[#This Row],[G&S reporting level indicator]]","v":0},{"$f":"T_DataComboFile[[#This Row],[2020/21 Original_Source]]*T_DataComboFile[[#This Row],[G&S reporting level indicator]]","v":0},{"$f":"T_DataComboFile[[#This Row],[2020/21 SAB_Source]]*T_DataComboFile[[#This Row],[G&S reporting level indicator]]","v":0},{"$f":"T_DataComboFile[[#This Row],[2020/21 Baseline_Source]]*T_DataComboFile[[#This Row],[G&S reporting level indicator]]","v":0},{"$f":"T_DataComboFile[[#This Row],[2021/22 Baseline_Source]]*T_DataComboFile[[#This Row],[G&S reporting level indicator]]","v":0},{"$f":"T_DataComboFile[[#This Row],[2022/23 Baseline_Source]]*T_DataComboFile[[#This Row],[G&S reporting level indicator]]","v":0},{"$f":"T_DataComboFile[[#This Row],[2023/24 Baseline_Source]]*T_DataComboFile[[#This Row],[G&S reporting level indicator]]","v":0},null,null,null,null,null,null,{"$f":"T_DataComboFile[[#This Row],[2021/22 Baseline]]+T_DataComboFile[[#This Row],[2021/22 Reduction]]+T_DataComboFile[[#This Row],[2021/22 Increase]]","v":0},{"$f":"T_DataComboFile[[#This Row],[2022/23 Baseline]]+T_DataComboFile[[#This Row],[2022/23 Reduction]]+T_DataComboFile[[#This Row],[2022/23 Increase]]","v":0},{"$f":"T_DataComboFile[[#This Row],[2023/24 Baseline]]+T_DataComboFile[[#This Row],[2023/24 Reduction]]+T_DataComboFile[[#This Row],[2023/24 Increase]]","v":0}]
[null,null,"2021_22","ENE2020",36,3,2,null,70873,36,3,2,null,"070873","36|03|02",1,1,2,26,26,"01|01|02|26|26","National","Small Business Development","Integrated Cooperative Development","Cooperatives Programme Design and Support",null,"Current","Current payments","Goods and services","Inventory: Materials and supplies","Inventory: Materials and supplies",null,null,null,0,0,0,0,0,0,0,0,0,0,0,0,0,0,null,{"$f":"IF(T_DataComboFile[[#This Row],[G&S reporting level indicator]]=1,$AX$16,\"Not applicable\")","v":"Not applicable"},{"$f":"IF(AND($AX$16=\"Level 3\",T_DataComboFile[[#This Row],[Econ3]] = \"Goods and services\"),IF(T_DataComboFile[[#This Row],[Econ4]] = T_DataComboFile[[#This Row],[Econ3]],1,0),IF(AND($AX$16=\"Level 4\",T_DataComboFile[[#This Row],[Econ4]] = \"Goods and services\"),0,1))","v":0},{"$f":"T_DataComboFile[[#This Row],[2016/17_Source]]*T_DataComboFile[[#This Row],[G&S reporting level indicator]]","v":0},{"$f":"T_DataComboFile[[#This Row],[2017/18_Source]]*T_DataComboFile[[#This Row],[G&S reporting level indicator]]","v":0},{"$f":"T_DataComboFile[[#This Row],[2018/19_Source]]*T_DataComboFile[[#This Row],[G&S reporting level indicator]]","v":0},{"$f":"T_DataComboFile[[#This Row],[2019/20 Main appropriation_Source]]*T_DataComboFile[[#This Row],[G&S reporting level indicator]]","v":0},{"$f":"T_DataComboFile[[#This Row],[2019/20 Adjusted appropriation_Source]]*T_DataComboFile[[#This Row],[G&S reporting level indicator]]","v":0},{"$f":"T_DataComboFile[[#This Row],[2019/20 Revised estimate_Source]]*T_DataComboFile[[#This Row],[G&S reporting level indicator]]","v":0},{"$f":"T_DataComboFile[[#This Row],[2019/20 Preliminary outcome_Source]]*T_DataComboFile[[#This Row],[G&S reporting level indicator]]","v":0},{"$f":"T_DataComboFile[[#This Row],[2020/21 Original_Source]]*T_DataComboFile[[#This Row],[G&S reporting level indicator]]","v":0},{"$f":"T_DataComboFile[[#This Row],[2020/21 SAB_Source]]*T_DataComboFile[[#This Row],[G&S reporting level indicator]]","v":0},{"$f":"T_DataComboFile[[#This Row],[2020/21 Baseline_Source]]*T_DataComboFile[[#This Row],[G&S reporting level indicator]]","v":0},{"$f":"T_DataComboFile[[#This Row],[2021/22 Baseline_Source]]*T_DataComboFile[[#This Row],[G&S reporting level indicator]]","v":0},{"$f":"T_DataComboFile[[#This Row],[2022/23 Baseline_Source]]*T_DataComboFile[[#This Row],[G&S reporting level indicator]]","v":0},{"$f":"T_DataComboFile[[#This Row],[2023/24 Baseline_Source]]*T_DataComboFile[[#This Row],[G&S reporting level indicator]]","v":0},null,null,null,null,null,null,{"$f":"T_DataComboFile[[#This Row],[2021/22 Baseline]]+T_DataComboFile[[#This Row],[2021/22 Reduction]]+T_DataComboFile[[#This Row],[2021/22 Increase]]","v":0},{"$f":"T_DataComboFile[[#This Row],[2022/23 Baseline]]+T_DataComboFile[[#This Row],[2022/23 Reduction]]+T_DataComboFile[[#This Row],[2022/23 Increase]]","v":0},{"$f":"T_DataComboFile[[#This Row],[2023/24 Baseline]]+T_DataComboFile[[#This Row],[2023/24 Reduction]]+T_DataComboFile[[#This Row],[2023/24 Increase]]","v":0}]
[null,null,"2021_22","ENE2020",36,3,2,null,70874,36,3,2,null,"070874","36|03|02",1,1,2,27,27,"01|01|02|27|27","National","Small Business Development","Integrated Cooperative Development","Cooperatives Programme Design and Support",null,"Current","Current payments","Goods and services","Inventory: Medical supplies","Inventory: Medical supplies",null,null,null,0,0,0,0,0,0,0,0,0,0,0,0,0,0,null,{"$f":"IF(T_DataComboFile[[#This Row],[G&S reporting level indicator]]=1,$AX$16,\"Not applicable\")","v":"Not applicable"},{"$f":"IF(AND($AX$16=\"Level 3\",T_DataComboFile[[#This Row],[Econ3]] = \"Goods and services\"),IF(T_DataComboFile[[#This Row],[Econ4]] = T_DataComboFile[[#This Row],[Econ3]],1,0),IF(AND($AX$16=\"Level 4\",T_DataComboFile[[#This Row],[Econ4]] = \"Goods and services\"),0,1))","v":0},{"$f":"T_DataComboFile[[#This Row],[2016/17_Source]]*T_DataComboFile[[#This Row],[G&S reporting level indicator]]","v":0},{"$f":"T_DataComboFile[[#This Row],[2017/18_Source]]*T_DataComboFile[[#This Row],[G&S reporting level indicator]]","v":0},{"$f":"T_DataComboFile[[#This Row],[2018/19_Source]]*T_DataComboFile[[#This Row],[G&S reporting level indicator]]","v":0},{"$f":"T_DataComboFile[[#This Row],[2019/20 Main appropriation_Source]]*T_DataComboFile[[#This Row],[G&S reporting level indicator]]","v":0},{"$f":"T_DataComboFile[[#This Row],[2019/20 Adjusted appropriation_Source]]*T_DataComboFile[[#This Row],[G&S reporting level indicator]]","v":0},{"$f":"T_DataComboFile[[#This Row],[2019/20 Revised estimate_Source]]*T_DataComboFile[[#This Row],[G&S reporting level indicator]]","v":0},{"$f":"T_DataComboFile[[#This Row],[2019/20 Preliminary outcome_Source]]*T_DataComboFile[[#This Row],[G&S reporting level indicator]]","v":0},{"$f":"T_DataComboFile[[#This Row],[2020/21 Original_Source]]*T_DataComboFile[[#This Row],[G&S reporting level indicator]]","v":0},{"$f":"T_DataComboFile[[#This Row],[2020/21 SAB_Source]]*T_DataComboFile[[#This Row],[G&S reporting level indicator]]","v":0},{"$f":"T_DataComboFile[[#This Row],[2020/21 Baseline_Source]]*T_DataComboFile[[#This Row],[G&S reporting level indicator]]","v":0},{"$f":"T_DataComboFile[[#This Row],[2021/22 Baseline_Source]]*T_DataComboFile[[#This Row],[G&S reporting level indicator]]","v":0},{"$f":"T_DataComboFile[[#This Row],[2022/23 Baseline_Source]]*T_DataComboFile[[#This Row],[G&S reporting level indicator]]","v":0},{"$f":"T_DataComboFile[[#This Row],[2023/24 Baseline_Source]]*T_DataComboFile[[#This Row],[G&S reporting level indicator]]","v":0},null,null,null,null,null,null,{"$f":"T_DataComboFile[[#This Row],[2021/22 Baseline]]+T_DataComboFile[[#This Row],[2021/22 Reduction]]+T_DataComboFile[[#This Row],[2021/22 Increase]]","v":0},{"$f":"T_DataComboFile[[#This Row],[2022/23 Baseline]]+T_DataComboFile[[#This Row],[2022/23 Reduction]]+T_DataComboFile[[#This Row],[2022/23 Increase]]","v":0},{"$f":"T_DataComboFile[[#This Row],[2023/24 Baseline]]+T_DataComboFile[[#This Row],[2023/24 Reduction]]+T_DataComboFile[[#This Row],[2023/24 Increase]]","v":0}]
[null,null,"2021_22","ENE2020",36,3,2,null,70875,36,3,2,null,"070875","36|03|02",1,1,2,28,28,"01|01|02|28|28","National","Small Business Development","Integrated Cooperative Development","Cooperatives Programme Design and Support",null,"Current","Current payments","Goods and services","Inventory: Medicine","Inventory: Medicine",null,null,null,0,0,0,0,0,0,0,0,0,0,0,0,0,0,null,{"$f":"IF(T_DataComboFile[[#This Row],[G&S reporting level indicator]]=1,$AX$16,\"Not applicable\")","v":"Not applicable"},{"$f":"IF(AND($AX$16=\"Level 3\",T_DataComboFile[[#This Row],[Econ3]] = \"Goods and services\"),IF(T_DataComboFile[[#This Row],[Econ4]] = T_DataComboFile[[#This Row],[Econ3]],1,0),IF(AND($AX$16=\"Level 4\",T_DataComboFile[[#This Row],[Econ4]] = \"Goods and services\"),0,1))","v":0},{"$f":"T_DataComboFile[[#This Row],[2016/17_Source]]*T_DataComboFile[[#This Row],[G&S reporting level indicator]]","v":0},{"$f":"T_DataComboFile[[#This Row],[2017/18_Source]]*T_DataComboFile[[#This Row],[G&S reporting level indicator]]","v":0},{"$f":"T_DataComboFile[[#This Row],[2018/19_Source]]*T_DataComboFile[[#This Row],[G&S reporting level indicator]]","v":0},{"$f":"T_DataComboFile[[#This Row],[2019/20 Main appropriation_Source]]*T_DataComboFile[[#This Row],[G&S reporting level indicator]]","v":0},{"$f":"T_DataComboFile[[#This Row],[2019/20 Adjusted appropriation_Source]]*T_DataComboFile[[#This Row],[G&S reporting level indicator]]","v":0},{"$f":"T_DataComboFile[[#This Row],[2019/20 Revised estimate_Source]]*T_DataComboFile[[#This Row],[G&S reporting level indicator]]","v":0},{"$f":"T_DataComboFile[[#This Row],[2019/20 Preliminary outcome_Source]]*T_DataComboFile[[#This Row],[G&S reporting level indicator]]","v":0},{"$f":"T_DataComboFile[[#This Row],[2020/21 Original_Source]]*T_DataComboFile[[#This Row],[G&S reporting level indicator]]","v":0},{"$f":"T_DataComboFile[[#This Row],[2020/21 SAB_Source]]*T_DataComboFile[[#This Row],[G&S reporting level indicator]]","v":0},{"$f":"T_DataComboFile[[#This Row],[2020/21 Baseline_Source]]*T_DataComboFile[[#This Row],[G&S reporting level indicator]]","v":0},{"$f":"T_DataComboFile[[#This Row],[2021/22 Baseline_Source]]*T_DataComboFile[[#This Row],[G&S reporting level indicator]]","v":0},{"$f":"T_DataComboFile[[#This Row],[2022/23 Baseline_Source]]*T_DataComboFile[[#This Row],[G&S reporting level indicator]]","v":0},{"$f":"T_DataComboFile[[#This Row],[2023/24 Baseline_Source]]*T_DataComboFile[[#This Row],[G&S reporting level indicator]]","v":0},null,null,null,null,null,null,{"$f":"T_DataComboFile[[#This Row],[2021/22 Baseline]]+T_DataComboFile[[#This Row],[2021/22 Reduction]]+T_DataComboFile[[#This Row],[2021/22 Increase]]","v":0},{"$f":"T_DataComboFile[[#This Row],[2022/23 Baseline]]+T_DataComboFile[[#This Row],[2022/23 Reduction]]+T_DataComboFile[[#This Row],[2022/23 Increase]]","v":0},{"$f":"T_DataComboFile[[#This Row],[2023/24 Baseline]]+T_DataComboFile[[#This Row],[2023/24 Reduction]]+T_DataComboFile[[#This Row],[2023/24 Increase]]","v":0}]
[null,null,"2021_22","ENE2020",36,3,2,null,70876,36,3,2,null,"070876","36|03|02",1,1,2,29,29,"01|01|02|29|29","National","Small Business Development","Integrated Cooperative Development","Cooperatives Programme Design and Support",null,"Current","Current payments","Goods and services","Medsas inventory interface","Medsas inventory interface",null,null,null,0,0,0,0,0,0,0,0,0,0,0,0,0,0,null,{"$f":"IF(T_DataComboFile[[#This Row],[G&S reporting level indicator]]=1,$AX$16,\"Not applicable\")","v":"Not applicable"},{"$f":"IF(AND($AX$16=\"Level 3\",T_DataComboFile[[#This Row],[Econ3]] = \"Goods and services\"),IF(T_DataComboFile[[#This Row],[Econ4]] = T_DataComboFile[[#This Row],[Econ3]],1,0),IF(AND($AX$16=\"Level 4\",T_DataComboFile[[#This Row],[Econ4]] = \"Goods and services\"),0,1))","v":0},{"$f":"T_DataComboFile[[#This Row],[2016/17_Source]]*T_DataComboFile[[#This Row],[G&S reporting level indicator]]","v":0},{"$f":"T_DataComboFile[[#This Row],[2017/18_Source]]*T_DataComboFile[[#This Row],[G&S reporting level indicator]]","v":0},{"$f":"T_DataComboFile[[#This Row],[2018/19_Source]]*T_DataComboFile[[#This Row],[G&S reporting level indicator]]","v":0},{"$f":"T_DataComboFile[[#This Row],[2019/20 Main appropriation_Source]]*T_DataComboFile[[#This Row],[G&S reporting level indicator]]","v":0},{"$f":"T_DataComboFile[[#This Row],[2019/20 Adjusted appropriation_Source]]*T_DataComboFile[[#This Row],[G&S reporting level indicator]]","v":0},{"$f":"T_DataComboFile[[#This Row],[2019/20 Revised estimate_Source]]*T_DataComboFile[[#This Row],[G&S reporting level indicator]]","v":0},{"$f":"T_DataComboFile[[#This Row],[2019/20 Preliminary outcome_Source]]*T_DataComboFile[[#This Row],[G&S reporting level indicator]]","v":0},{"$f":"T_DataComboFile[[#This Row],[2020/21 Original_Source]]*T_DataComboFile[[#This Row],[G&S reporting level indicator]]","v":0},{"$f":"T_DataComboFile[[#This Row],[2020/21 SAB_Source]]*T_DataComboFile[[#This Row],[G&S reporting level indicator]]","v":0},{"$f":"T_DataComboFile[[#This Row],[2020/21 Baseline_Source]]*T_DataComboFile[[#This Row],[G&S reporting level indicator]]","v":0},{"$f":"T_DataComboFile[[#This Row],[2021/22 Baseline_Source]]*T_DataComboFile[[#This Row],[G&S reporting level indicator]]","v":0},{"$f":"T_DataComboFile[[#This Row],[2022/23 Baseline_Source]]*T_DataComboFile[[#This Row],[G&S reporting level indicator]]","v":0},{"$f":"T_DataComboFile[[#This Row],[2023/24 Baseline_Source]]*T_DataComboFile[[#This Row],[G&S reporting level indicator]]","v":0},null,null,null,null,null,null,{"$f":"T_DataComboFile[[#This Row],[2021/22 Baseline]]+T_DataComboFile[[#This Row],[2021/22 Reduction]]+T_DataComboFile[[#This Row],[2021/22 Increase]]","v":0},{"$f":"T_DataComboFile[[#This Row],[2022/23 Baseline]]+T_DataComboFile[[#This Row],[2022/23 Reduction]]+T_DataComboFile[[#This Row],[2022/23 Increase]]","v":0},{"$f":"T_DataComboFile[[#This Row],[2023/24 Baseline]]+T_DataComboFile[[#This Row],[2023/24 Reduction]]+T_DataComboFile[[#This Row],[2023/24 Increase]]","v":0}]
[null,null,"2021_22","ENE2020",36,3,2,null,70877,36,3,2,null,"070877","36|03|02",1,1,2,30,30,"01|01|02|30|30","National","Small Business Development","Integrated Cooperative Development","Cooperatives Programme Design and Support",null,"Current","Current payments","Goods and services","Inventory: Other supplies","Inventory: Other supplies",null,null,null,0,0,0,0,0,0,0,0,0,0,0,0,0,0,null,{"$f":"IF(T_DataComboFile[[#This Row],[G&S reporting level indicator]]=1,$AX$16,\"Not applicable\")","v":"Not applicable"},{"$f":"IF(AND($AX$16=\"Level 3\",T_DataComboFile[[#This Row],[Econ3]] = \"Goods and services\"),IF(T_DataComboFile[[#This Row],[Econ4]] = T_DataComboFile[[#This Row],[Econ3]],1,0),IF(AND($AX$16=\"Level 4\",T_DataComboFile[[#This Row],[Econ4]] = \"Goods and services\"),0,1))","v":0},{"$f":"T_DataComboFile[[#This Row],[2016/17_Source]]*T_DataComboFile[[#This Row],[G&S reporting level indicator]]","v":0},{"$f":"T_DataComboFile[[#This Row],[2017/18_Source]]*T_DataComboFile[[#This Row],[G&S reporting level indicator]]","v":0},{"$f":"T_DataComboFile[[#This Row],[2018/19_Source]]*T_DataComboFile[[#This Row],[G&S reporting level indicator]]","v":0},{"$f":"T_DataComboFile[[#This Row],[2019/20 Main appropriation_Source]]*T_DataComboFile[[#This Row],[G&S reporting level indicator]]","v":0},{"$f":"T_DataComboFile[[#This Row],[2019/20 Adjusted appropriation_Source]]*T_DataComboFile[[#This Row],[G&S reporting level indicator]]","v":0},{"$f":"T_DataComboFile[[#This Row],[2019/20 Revised estimate_Source]]*T_DataComboFile[[#This Row],[G&S reporting level indicator]]","v":0},{"$f":"T_DataComboFile[[#This Row],[2019/20 Preliminary outcome_Source]]*T_DataComboFile[[#This Row],[G&S reporting level indicator]]","v":0},{"$f":"T_DataComboFile[[#This Row],[2020/21 Original_Source]]*T_DataComboFile[[#This Row],[G&S reporting level indicator]]","v":0},{"$f":"T_DataComboFile[[#This Row],[2020/21 SAB_Source]]*T_DataComboFile[[#This Row],[G&S reporting level indicator]]","v":0},{"$f":"T_DataComboFile[[#This Row],[2020/21 Baseline_Source]]*T_DataComboFile[[#This Row],[G&S reporting level indicator]]","v":0},{"$f":"T_DataComboFile[[#This Row],[2021/22 Baseline_Source]]*T_DataComboFile[[#This Row],[G&S reporting level indicator]]","v":0},{"$f":"T_DataComboFile[[#This Row],[2022/23 Baseline_Source]]*T_DataComboFile[[#This Row],[G&S reporting level indicator]]","v":0},{"$f":"T_DataComboFile[[#This Row],[2023/24 Baseline_Source]]*T_DataComboFile[[#This Row],[G&S reporting level indicator]]","v":0},null,null,null,null,null,null,{"$f":"T_DataComboFile[[#This Row],[2021/22 Baseline]]+T_DataComboFile[[#This Row],[2021/22 Reduction]]+T_DataComboFile[[#This Row],[2021/22 Increase]]","v":0},{"$f":"T_DataComboFile[[#This Row],[2022/23 Baseline]]+T_DataComboFile[[#This Row],[2022/23 Reduction]]+T_DataComboFile[[#This Row],[2022/23 Increase]]","v":0},{"$f":"T_DataComboFile[[#This Row],[2023/24 Baseline]]+T_DataComboFile[[#This Row],[2023/24 Reduction]]+T_DataComboFile[[#This Row],[2023/24 Increase]]","v":0}]
["NAT|Non-transfer item","36|Consumable supplies","2021_22","ENE2020",36,3,2,17362,70878,36,3,2,17362,"070878","36|03|02",1,1,2,31,31,"01|01|02|31|31","National","Small Business Development","Integrated Cooperative Development","Cooperatives Programme Design and Support","Non-transfer item","Current","Current payments","Goods and services","Consumable supplies","Consumable supplies","Economic development","Industrialisation and exports","NAT",0,1,3,2,2,2,2,0,0,0,0,0,0,1,null,{"$f":"IF(T_DataComboFile[[#This Row],[G&S reporting level indicator]]=1,$AX$16,\"Not applicable\")","v":"Not applicable"},{"$f":"IF(AND($AX$16=\"Level 3\",T_DataComboFile[[#This Row],[Econ3]] = \"Goods and services\"),IF(T_DataComboFile[[#This Row],[Econ4]] = T_DataComboFile[[#This Row],[Econ3]],1,0),IF(AND($AX$16=\"Level 4\",T_DataComboFile[[#This Row],[Econ4]] = \"Goods and services\"),0,1))","v":0},{"$f":"T_DataComboFile[[#This Row],[2016/17_Source]]*T_DataComboFile[[#This Row],[G&S reporting level indicator]]","v":0},{"$f":"T_DataComboFile[[#This Row],[2017/18_Source]]*T_DataComboFile[[#This Row],[G&S reporting level indicator]]","v":0},{"$f":"T_DataComboFile[[#This Row],[2018/19_Source]]*T_DataComboFile[[#This Row],[G&S reporting level indicator]]","v":0},{"$f":"T_DataComboFile[[#This Row],[2019/20 Main appropriation_Source]]*T_DataComboFile[[#This Row],[G&S reporting level indicator]]","v":0},{"$f":"T_DataComboFile[[#This Row],[2019/20 Adjusted appropriation_Source]]*T_DataComboFile[[#This Row],[G&S reporting level indicator]]","v":0},{"$f":"T_DataComboFile[[#This Row],[2019/20 Revised estimate_Source]]*T_DataComboFile[[#This Row],[G&S reporting level indicator]]","v":0},{"$f":"T_DataComboFile[[#This Row],[2019/20 Preliminary outcome_Source]]*T_DataComboFile[[#This Row],[G&S reporting level indicator]]","v":0},{"$f":"T_DataComboFile[[#This Row],[2020/21 Original_Source]]*T_DataComboFile[[#This Row],[G&S reporting level indicator]]","v":0},{"$f":"T_DataComboFile[[#This Row],[2020/21 SAB_Source]]*T_DataComboFile[[#This Row],[G&S reporting level indicator]]","v":0},{"$f":"T_DataComboFile[[#This Row],[2020/21 Baseline_Source]]*T_DataComboFile[[#This Row],[G&S reporting level indicator]]","v":0},{"$f":"T_DataComboFile[[#This Row],[2021/22 Baseline_Source]]*T_DataComboFile[[#This Row],[G&S reporting level indicator]]","v":0},{"$f":"T_DataComboFile[[#This Row],[2022/23 Baseline_Source]]*T_DataComboFile[[#This Row],[G&S reporting level indicator]]","v":0},{"$f":"T_DataComboFile[[#This Row],[2023/24 Baseline_Source]]*T_DataComboFile[[#This Row],[G&S reporting level indicator]]","v":0},null,null,null,null,null,null,{"$f":"T_DataComboFile[[#This Row],[2021/22 Baseline]]+T_DataComboFile[[#This Row],[2021/22 Reduction]]+T_DataComboFile[[#This Row],[2021/22 Increase]]","v":0},{"$f":"T_DataComboFile[[#This Row],[2022/23 Baseline]]+T_DataComboFile[[#This Row],[2022/23 Reduction]]+T_DataComboFile[[#This Row],[2022/23 Increase]]","v":0},{"$f":"T_DataComboFile[[#This Row],[2023/24 Baseline]]+T_DataComboFile[[#This Row],[2023/24 Reduction]]+T_DataComboFile[[#This Row],[2023/24 Increase]]","v":0}]
["NAT|Non-transfer item","36|Consumables: Stationery, printing and office supplies","2021_22","ENE2020",36,3,2,17363,70879,36,3,2,17363,"070879","36|03|02",1,1,2,32,32,"01|01|02|32|32","National","Small Business Development","Integrated Cooperative Development","Cooperatives Programme Design and Support","Non-transfer item","Current","Current payments","Goods and services","Consumables: Stationery, printing and office supplies","Consumables: Stationery, printing and office supplies","Economic development","Industrialisation and exports","NAT",82,0,29,17,17,17,17,17,17,17,21,23,24,1,null,{"$f":"IF(T_DataComboFile[[#This Row],[G&S reporting level indicator]]=1,$AX$16,\"Not applicable\")","v":"Not applicable"},{"$f":"IF(AND($AX$16=\"Level 3\",T_DataComboFile[[#This Row],[Econ3]] = \"Goods and services\"),IF(T_DataComboFile[[#This Row],[Econ4]] = T_DataComboFile[[#This Row],[Econ3]],1,0),IF(AND($AX$16=\"Level 4\",T_DataComboFile[[#This Row],[Econ4]] = \"Goods and services\"),0,1))","v":0},{"$f":"T_DataComboFile[[#This Row],[2016/17_Source]]*T_DataComboFile[[#This Row],[G&S reporting level indicator]]","v":0},{"$f":"T_DataComboFile[[#This Row],[2017/18_Source]]*T_DataComboFile[[#This Row],[G&S reporting level indicator]]","v":0},{"$f":"T_DataComboFile[[#This Row],[2018/19_Source]]*T_DataComboFile[[#This Row],[G&S reporting level indicator]]","v":0},{"$f":"T_DataComboFile[[#This Row],[2019/20 Main appropriation_Source]]*T_DataComboFile[[#This Row],[G&S reporting level indicator]]","v":0},{"$f":"T_DataComboFile[[#This Row],[2019/20 Adjusted appropriation_Source]]*T_DataComboFile[[#This Row],[G&S reporting level indicator]]","v":0},{"$f":"T_DataComboFile[[#This Row],[2019/20 Revised estimate_Source]]*T_DataComboFile[[#This Row],[G&S reporting level indicator]]","v":0},{"$f":"T_DataComboFile[[#This Row],[2019/20 Preliminary outcome_Source]]*T_DataComboFile[[#This Row],[G&S reporting level indicator]]","v":0},{"$f":"T_DataComboFile[[#This Row],[2020/21 Original_Source]]*T_DataComboFile[[#This Row],[G&S reporting level indicator]]","v":0},{"$f":"T_DataComboFile[[#This Row],[2020/21 SAB_Source]]*T_DataComboFile[[#This Row],[G&S reporting level indicator]]","v":0},{"$f":"T_DataComboFile[[#This Row],[2020/21 Baseline_Source]]*T_DataComboFile[[#This Row],[G&S reporting level indicator]]","v":0},{"$f":"T_DataComboFile[[#This Row],[2021/22 Baseline_Source]]*T_DataComboFile[[#This Row],[G&S reporting level indicator]]","v":0},{"$f":"T_DataComboFile[[#This Row],[2022/23 Baseline_Source]]*T_DataComboFile[[#This Row],[G&S reporting level indicator]]","v":0},{"$f":"T_DataComboFile[[#This Row],[2023/24 Baseline_Source]]*T_DataComboFile[[#This Row],[G&S reporting level indicator]]","v":0},null,null,null,null,null,null,{"$f":"T_DataComboFile[[#This Row],[2021/22 Baseline]]+T_DataComboFile[[#This Row],[2021/22 Reduction]]+T_DataComboFile[[#This Row],[2021/22 Increase]]","v":0},{"$f":"T_DataComboFile[[#This Row],[2022/23 Baseline]]+T_DataComboFile[[#This Row],[2022/23 Reduction]]+T_DataComboFile[[#This Row],[2022/23 Increase]]","v":0},{"$f":"T_DataComboFile[[#This Row],[2023/24 Baseline]]+T_DataComboFile[[#This Row],[2023/24 Reduction]]+T_DataComboFile[[#This Row],[2023/24 Increase]]","v":0}]
["NAT|Non-transfer item","36|Operating leases","2021_22","ENE2020",36,3,2,17364,70880,36,3,2,17364,"070880","36|03|02",1,1,2,33,33,"01|01|02|33|33","National","Small Business Development","Integrated Cooperative Development","Cooperatives Programme Design and Support","Non-transfer item","Current","Current payments","Goods and services","Operating leases","Operating leases","Economic development","Industrialisation and exports","NAT",7,0,0,0,0,0,0,0,0,0,0,0,0,1,null,{"$f":"IF(T_DataComboFile[[#This Row],[G&S reporting level indicator]]=1,$AX$16,\"Not applicable\")","v":"Not applicable"},{"$f":"IF(AND($AX$16=\"Level 3\",T_DataComboFile[[#This Row],[Econ3]] = \"Goods and services\"),IF(T_DataComboFile[[#This Row],[Econ4]] = T_DataComboFile[[#This Row],[Econ3]],1,0),IF(AND($AX$16=\"Level 4\",T_DataComboFile[[#This Row],[Econ4]] = \"Goods and services\"),0,1))","v":0},{"$f":"T_DataComboFile[[#This Row],[2016/17_Source]]*T_DataComboFile[[#This Row],[G&S reporting level indicator]]","v":0},{"$f":"T_DataComboFile[[#This Row],[2017/18_Source]]*T_DataComboFile[[#This Row],[G&S reporting level indicator]]","v":0},{"$f":"T_DataComboFile[[#This Row],[2018/19_Source]]*T_DataComboFile[[#This Row],[G&S reporting level indicator]]","v":0},{"$f":"T_DataComboFile[[#This Row],[2019/20 Main appropriation_Source]]*T_DataComboFile[[#This Row],[G&S reporting level indicator]]","v":0},{"$f":"T_DataComboFile[[#This Row],[2019/20 Adjusted appropriation_Source]]*T_DataComboFile[[#This Row],[G&S reporting level indicator]]","v":0},{"$f":"T_DataComboFile[[#This Row],[2019/20 Revised estimate_Source]]*T_DataComboFile[[#This Row],[G&S reporting level indicator]]","v":0},{"$f":"T_DataComboFile[[#This Row],[2019/20 Preliminary outcome_Source]]*T_DataComboFile[[#This Row],[G&S reporting level indicator]]","v":0},{"$f":"T_DataComboFile[[#This Row],[2020/21 Original_Source]]*T_DataComboFile[[#This Row],[G&S reporting level indicator]]","v":0},{"$f":"T_DataComboFile[[#This Row],[2020/21 SAB_Source]]*T_DataComboFile[[#This Row],[G&S reporting level indicator]]","v":0},{"$f":"T_DataComboFile[[#This Row],[2020/21 Baseline_Source]]*T_DataComboFile[[#This Row],[G&S reporting level indicator]]","v":0},{"$f":"T_DataComboFile[[#This Row],[2021/22 Baseline_Source]]*T_DataComboFile[[#This Row],[G&S reporting level indicator]]","v":0},{"$f":"T_DataComboFile[[#This Row],[2022/23 Baseline_Source]]*T_DataComboFile[[#This Row],[G&S reporting level indicator]]","v":0},{"$f":"T_DataComboFile[[#This Row],[2023/24 Baseline_Source]]*T_DataComboFile[[#This Row],[G&S reporting level indicator]]","v":0},null,null,null,null,null,null,{"$f":"T_DataComboFile[[#This Row],[2021/22 Baseline]]+T_DataComboFile[[#This Row],[2021/22 Reduction]]+T_DataComboFile[[#This Row],[2021/22 Increase]]","v":0},{"$f":"T_DataComboFile[[#This Row],[2022/23 Baseline]]+T_DataComboFile[[#This Row],[2022/23 Reduction]]+T_DataComboFile[[#This Row],[2022/23 Increase]]","v":0},{"$f":"T_DataComboFile[[#This Row],[2023/24 Baseline]]+T_DataComboFile[[#This Row],[2023/24 Reduction]]+T_DataComboFile[[#This Row],[2023/24 Increase]]","v":0}]
[null,null,"2021_22","ENE2020",36,3,2,null,70881,36,3,2,null,"070881","36|03|02",1,1,2,34,34,"01|01|02|34|34","National","Small Business Development","Integrated Cooperative Development","Cooperatives Programme Design and Support",null,"Current","Current payments","Goods and services","Rental and hiring","Rental and hiring",null,null,null,0,0,0,0,0,0,0,0,0,0,0,0,0,0,null,{"$f":"IF(T_DataComboFile[[#This Row],[G&S reporting level indicator]]=1,$AX$16,\"Not applicable\")","v":"Not applicable"},{"$f":"IF(AND($AX$16=\"Level 3\",T_DataComboFile[[#This Row],[Econ3]] = \"Goods and services\"),IF(T_DataComboFile[[#This Row],[Econ4]] = T_DataComboFile[[#This Row],[Econ3]],1,0),IF(AND($AX$16=\"Level 4\",T_DataComboFile[[#This Row],[Econ4]] = \"Goods and services\"),0,1))","v":0},{"$f":"T_DataComboFile[[#This Row],[2016/17_Source]]*T_DataComboFile[[#This Row],[G&S reporting level indicator]]","v":0},{"$f":"T_DataComboFile[[#This Row],[2017/18_Source]]*T_DataComboFile[[#This Row],[G&S reporting level indicator]]","v":0},{"$f":"T_DataComboFile[[#This Row],[2018/19_Source]]*T_DataComboFile[[#This Row],[G&S reporting level indicator]]","v":0},{"$f":"T_DataComboFile[[#This Row],[2019/20 Main appropriation_Source]]*T_DataComboFile[[#This Row],[G&S reporting level indicator]]","v":0},{"$f":"T_DataComboFile[[#This Row],[2019/20 Adjusted appropriation_Source]]*T_DataComboFile[[#This Row],[G&S reporting level indicator]]","v":0},{"$f":"T_DataComboFile[[#This Row],[2019/20 Revised estimate_Source]]*T_DataComboFile[[#This Row],[G&S reporting level indicator]]","v":0},{"$f":"T_DataComboFile[[#This Row],[2019/20 Preliminary outcome_Source]]*T_DataComboFile[[#This Row],[G&S reporting level indicator]]","v":0},{"$f":"T_DataComboFile[[#This Row],[2020/21 Original_Source]]*T_DataComboFile[[#This Row],[G&S reporting level indicator]]","v":0},{"$f":"T_DataComboFile[[#This Row],[2020/21 SAB_Source]]*T_DataComboFile[[#This Row],[G&S reporting level indicator]]","v":0},{"$f":"T_DataComboFile[[#This Row],[2020/21 Baseline_Source]]*T_DataComboFile[[#This Row],[G&S reporting level indicator]]","v":0},{"$f":"T_DataComboFile[[#This Row],[2021/22 Baseline_Source]]*T_DataComboFile[[#This Row],[G&S reporting level indicator]]","v":0},{"$f":"T_DataComboFile[[#This Row],[2022/23 Baseline_Source]]*T_DataComboFile[[#This Row],[G&S reporting level indicator]]","v":0},{"$f":"T_DataComboFile[[#This Row],[2023/24 Baseline_Source]]*T_DataComboFile[[#This Row],[G&S reporting level indicator]]","v":0},null,null,null,null,null,null,{"$f":"T_DataComboFile[[#This Row],[2021/22 Baseline]]+T_DataComboFile[[#This Row],[2021/22 Reduction]]+T_DataComboFile[[#This Row],[2021/22 Increase]]","v":0},{"$f":"T_DataComboFile[[#This Row],[2022/23 Baseline]]+T_DataComboFile[[#This Row],[2022/23 Reduction]]+T_DataComboFile[[#This Row],[2022/23 Increase]]","v":0},{"$f":"T_DataComboFile[[#This Row],[2023/24 Baseline]]+T_DataComboFile[[#This Row],[2023/24 Reduction]]+T_DataComboFile[[#This Row],[2023/24 Increase]]","v":0}]
[null,null,"2021_22","ENE2020",36,3,2,null,70882,36,3,2,null,"070882","36|03|02",1,1,2,35,35,"01|01|02|35|35","National","Small Business Development","Integrated Cooperative Development","Cooperatives Programme Design and Support",null,"Current","Current payments","Goods and services","Property payments","Property payments",null,null,null,0,0,0,0,0,0,0,0,0,0,0,0,0,0,null,{"$f":"IF(T_DataComboFile[[#This Row],[G&S reporting level indicator]]=1,$AX$16,\"Not applicable\")","v":"Not applicable"},{"$f":"IF(AND($AX$16=\"Level 3\",T_DataComboFile[[#This Row],[Econ3]] = \"Goods and services\"),IF(T_DataComboFile[[#This Row],[Econ4]] = T_DataComboFile[[#This Row],[Econ3]],1,0),IF(AND($AX$16=\"Level 4\",T_DataComboFile[[#This Row],[Econ4]] = \"Goods and services\"),0,1))","v":0},{"$f":"T_DataComboFile[[#This Row],[2016/17_Source]]*T_DataComboFile[[#This Row],[G&S reporting level indicator]]","v":0},{"$f":"T_DataComboFile[[#This Row],[2017/18_Source]]*T_DataComboFile[[#This Row],[G&S reporting level indicator]]","v":0},{"$f":"T_DataComboFile[[#This Row],[2018/19_Source]]*T_DataComboFile[[#This Row],[G&S reporting level indicator]]","v":0},{"$f":"T_DataComboFile[[#This Row],[2019/20 Main appropriation_Source]]*T_DataComboFile[[#This Row],[G&S reporting level indicator]]","v":0},{"$f":"T_DataComboFile[[#This Row],[2019/20 Adjusted appropriation_Source]]*T_DataComboFile[[#This Row],[G&S reporting level indicator]]","v":0},{"$f":"T_DataComboFile[[#This Row],[2019/20 Revised estimate_Source]]*T_DataComboFile[[#This Row],[G&S reporting level indicator]]","v":0},{"$f":"T_DataComboFile[[#This Row],[2019/20 Preliminary outcome_Source]]*T_DataComboFile[[#This Row],[G&S reporting level indicator]]","v":0},{"$f":"T_DataComboFile[[#This Row],[2020/21 Original_Source]]*T_DataComboFile[[#This Row],[G&S reporting level indicator]]","v":0},{"$f":"T_DataComboFile[[#This Row],[2020/21 SAB_Source]]*T_DataComboFile[[#This Row],[G&S reporting level indicator]]","v":0},{"$f":"T_DataComboFile[[#This Row],[2020/21 Baseline_Source]]*T_DataComboFile[[#This Row],[G&S reporting level indicator]]","v":0},{"$f":"T_DataComboFile[[#This Row],[2021/22 Baseline_Source]]*T_DataComboFile[[#This Row],[G&S reporting level indicator]]","v":0},{"$f":"T_DataComboFile[[#This Row],[2022/23 Baseline_Source]]*T_DataComboFile[[#This Row],[G&S reporting level indicator]]","v":0},{"$f":"T_DataComboFile[[#This Row],[2023/24 Baseline_Source]]*T_DataComboFile[[#This Row],[G&S reporting level indicator]]","v":0},null,null,null,null,null,null,{"$f":"T_DataComboFile[[#This Row],[2021/22 Baseline]]+T_DataComboFile[[#This Row],[2021/22 Reduction]]+T_DataComboFile[[#This Row],[2021/22 Increase]]","v":0},{"$f":"T_DataComboFile[[#This Row],[2022/23 Baseline]]+T_DataComboFile[[#This Row],[2022/23 Reduction]]+T_DataComboFile[[#This Row],[2022/23 Increase]]","v":0},{"$f":"T_DataComboFile[[#This Row],[2023/24 Baseline]]+T_DataComboFile[[#This Row],[2023/24 Reduction]]+T_DataComboFile[[#This Row],[2023/24 Increase]]","v":0}]
[null,null,"2021_22","ENE2020",36,3,2,null,70883,36,3,2,null,"070883","36|03|02",1,1,2,36,36,"01|01|02|36|36","National","Small Business Development","Integrated Cooperative Development","Cooperatives Programme Design and Support",null,"Current","Current payments","Goods and services","Transport provided: Departmental activity","Transport provided: Departmental activity",null,null,null,0,0,0,0,0,0,0,0,0,0,0,0,0,0,null,{"$f":"IF(T_DataComboFile[[#This Row],[G&S reporting level indicator]]=1,$AX$16,\"Not applicable\")","v":"Not applicable"},{"$f":"IF(AND($AX$16=\"Level 3\",T_DataComboFile[[#This Row],[Econ3]] = \"Goods and services\"),IF(T_DataComboFile[[#This Row],[Econ4]] = T_DataComboFile[[#This Row],[Econ3]],1,0),IF(AND($AX$16=\"Level 4\",T_DataComboFile[[#This Row],[Econ4]] = \"Goods and services\"),0,1))","v":0},{"$f":"T_DataComboFile[[#This Row],[2016/17_Source]]*T_DataComboFile[[#This Row],[G&S reporting level indicator]]","v":0},{"$f":"T_DataComboFile[[#This Row],[2017/18_Source]]*T_DataComboFile[[#This Row],[G&S reporting level indicator]]","v":0},{"$f":"T_DataComboFile[[#This Row],[2018/19_Source]]*T_DataComboFile[[#This Row],[G&S reporting level indicator]]","v":0},{"$f":"T_DataComboFile[[#This Row],[2019/20 Main appropriation_Source]]*T_DataComboFile[[#This Row],[G&S reporting level indicator]]","v":0},{"$f":"T_DataComboFile[[#This Row],[2019/20 Adjusted appropriation_Source]]*T_DataComboFile[[#This Row],[G&S reporting level indicator]]","v":0},{"$f":"T_DataComboFile[[#This Row],[2019/20 Revised estimate_Source]]*T_DataComboFile[[#This Row],[G&S reporting level indicator]]","v":0},{"$f":"T_DataComboFile[[#This Row],[2019/20 Preliminary outcome_Source]]*T_DataComboFile[[#This Row],[G&S reporting level indicator]]","v":0},{"$f":"T_DataComboFile[[#This Row],[2020/21 Original_Source]]*T_DataComboFile[[#This Row],[G&S reporting level indicator]]","v":0},{"$f":"T_DataComboFile[[#This Row],[2020/21 SAB_Source]]*T_DataComboFile[[#This Row],[G&S reporting level indicator]]","v":0},{"$f":"T_DataComboFile[[#This Row],[2020/21 Baseline_Source]]*T_DataComboFile[[#This Row],[G&S reporting level indicator]]","v":0},{"$f":"T_DataComboFile[[#This Row],[2021/22 Baseline_Source]]*T_DataComboFile[[#This Row],[G&S reporting level indicator]]","v":0},{"$f":"T_DataComboFile[[#This Row],[2022/23 Baseline_Source]]*T_DataComboFile[[#This Row],[G&S reporting level indicator]]","v":0},{"$f":"T_DataComboFile[[#This Row],[2023/24 Baseline_Source]]*T_DataComboFile[[#This Row],[G&S reporting level indicator]]","v":0},null,null,null,null,null,null,{"$f":"T_DataComboFile[[#This Row],[2021/22 Baseline]]+T_DataComboFile[[#This Row],[2021/22 Reduction]]+T_DataComboFile[[#This Row],[2021/22 Increase]]","v":0},{"$f":"T_DataComboFile[[#This Row],[2022/23 Baseline]]+T_DataComboFile[[#This Row],[2022/23 Reduction]]+T_DataComboFile[[#This Row],[2022/23 Increase]]","v":0},{"$f":"T_DataComboFile[[#This Row],[2023/24 Baseline]]+T_DataComboFile[[#This Row],[2023/24 Reduction]]+T_DataComboFile[[#This Row],[2023/24 Increase]]","v":0}]
["NAT|Non-transfer item","36|Travel and subsistence","2021_22","ENE2020",36,3,2,17365,70884,36,3,2,17365,"070884","36|03|02",1,1,2,37,37,"01|01|02|37|37","National","Small Business Development","Integrated Cooperative Development","Cooperatives Programme Design and Support","Non-transfer item","Current","Current payments","Goods and services","Travel and subsistence","Travel and subsistence","Economic development","Industrialisation and exports","NAT",1087,967,1436,1421,1199,1199,1199,2879,879,2879,2659,2809,2933,1,null,{"$f":"IF(T_DataComboFile[[#This Row],[G&S reporting level indicator]]=1,$AX$16,\"Not applicable\")","v":"Not applicable"},{"$f":"IF(AND($AX$16=\"Level 3\",T_DataComboFile[[#This Row],[Econ3]] = \"Goods and services\"),IF(T_DataComboFile[[#This Row],[Econ4]] = T_DataComboFile[[#This Row],[Econ3]],1,0),IF(AND($AX$16=\"Level 4\",T_DataComboFile[[#This Row],[Econ4]] = \"Goods and services\"),0,1))","v":0},{"$f":"T_DataComboFile[[#This Row],[2016/17_Source]]*T_DataComboFile[[#This Row],[G&S reporting level indicator]]","v":0},{"$f":"T_DataComboFile[[#This Row],[2017/18_Source]]*T_DataComboFile[[#This Row],[G&S reporting level indicator]]","v":0},{"$f":"T_DataComboFile[[#This Row],[2018/19_Source]]*T_DataComboFile[[#This Row],[G&S reporting level indicator]]","v":0},{"$f":"T_DataComboFile[[#This Row],[2019/20 Main appropriation_Source]]*T_DataComboFile[[#This Row],[G&S reporting level indicator]]","v":0},{"$f":"T_DataComboFile[[#This Row],[2019/20 Adjusted appropriation_Source]]*T_DataComboFile[[#This Row],[G&S reporting level indicator]]","v":0},{"$f":"T_DataComboFile[[#This Row],[2019/20 Revised estimate_Source]]*T_DataComboFile[[#This Row],[G&S reporting level indicator]]","v":0},{"$f":"T_DataComboFile[[#This Row],[2019/20 Preliminary outcome_Source]]*T_DataComboFile[[#This Row],[G&S reporting level indicator]]","v":0},{"$f":"T_DataComboFile[[#This Row],[2020/21 Original_Source]]*T_DataComboFile[[#This Row],[G&S reporting level indicator]]","v":0},{"$f":"T_DataComboFile[[#This Row],[2020/21 SAB_Source]]*T_DataComboFile[[#This Row],[G&S reporting level indicator]]","v":0},{"$f":"T_DataComboFile[[#This Row],[2020/21 Baseline_Source]]*T_DataComboFile[[#This Row],[G&S reporting level indicator]]","v":0},{"$f":"T_DataComboFile[[#This Row],[2021/22 Baseline_Source]]*T_DataComboFile[[#This Row],[G&S reporting level indicator]]","v":0},{"$f":"T_DataComboFile[[#This Row],[2022/23 Baseline_Source]]*T_DataComboFile[[#This Row],[G&S reporting level indicator]]","v":0},{"$f":"T_DataComboFile[[#This Row],[2023/24 Baseline_Source]]*T_DataComboFile[[#This Row],[G&S reporting level indicator]]","v":0},null,null,null,null,null,null,{"$f":"T_DataComboFile[[#This Row],[2021/22 Baseline]]+T_DataComboFile[[#This Row],[2021/22 Reduction]]+T_DataComboFile[[#This Row],[2021/22 Increase]]","v":0},{"$f":"T_DataComboFile[[#This Row],[2022/23 Baseline]]+T_DataComboFile[[#This Row],[2022/23 Reduction]]+T_DataComboFile[[#This Row],[2022/23 Increase]]","v":0},{"$f":"T_DataComboFile[[#This Row],[2023/24 Baseline]]+T_DataComboFile[[#This Row],[2023/24 Reduction]]+T_DataComboFile[[#This Row],[2023/24 Increase]]","v":0}]
[null,null,"2021_22","ENE2020",36,3,2,null,70885,36,3,2,null,"070885","36|03|02",1,1,2,38,38,"01|01|02|38|38","National","Small Business Development","Integrated Cooperative Development","Cooperatives Programme Design and Support",null,"Current","Current payments","Goods and services","Training and development","Training and development",null,null,null,0,0,0,0,0,0,0,0,0,0,0,0,0,0,null,{"$f":"IF(T_DataComboFile[[#This Row],[G&S reporting level indicator]]=1,$AX$16,\"Not applicable\")","v":"Not applicable"},{"$f":"IF(AND($AX$16=\"Level 3\",T_DataComboFile[[#This Row],[Econ3]] = \"Goods and services\"),IF(T_DataComboFile[[#This Row],[Econ4]] = T_DataComboFile[[#This Row],[Econ3]],1,0),IF(AND($AX$16=\"Level 4\",T_DataComboFile[[#This Row],[Econ4]] = \"Goods and services\"),0,1))","v":0},{"$f":"T_DataComboFile[[#This Row],[2016/17_Source]]*T_DataComboFile[[#This Row],[G&S reporting level indicator]]","v":0},{"$f":"T_DataComboFile[[#This Row],[2017/18_Source]]*T_DataComboFile[[#This Row],[G&S reporting level indicator]]","v":0},{"$f":"T_DataComboFile[[#This Row],[2018/19_Source]]*T_DataComboFile[[#This Row],[G&S reporting level indicator]]","v":0},{"$f":"T_DataComboFile[[#This Row],[2019/20 Main appropriation_Source]]*T_DataComboFile[[#This Row],[G&S reporting level indicator]]","v":0},{"$f":"T_DataComboFile[[#This Row],[2019/20 Adjusted appropriation_Source]]*T_DataComboFile[[#This Row],[G&S reporting level indicator]]","v":0},{"$f":"T_DataComboFile[[#This Row],[2019/20 Revised estimate_Source]]*T_DataComboFile[[#This Row],[G&S reporting level indicator]]","v":0},{"$f":"T_DataComboFile[[#This Row],[2019/20 Preliminary outcome_Source]]*T_DataComboFile[[#This Row],[G&S reporting level indicator]]","v":0},{"$f":"T_DataComboFile[[#This Row],[2020/21 Original_Source]]*T_DataComboFile[[#This Row],[G&S reporting level indicator]]","v":0},{"$f":"T_DataComboFile[[#This Row],[2020/21 SAB_Source]]*T_DataComboFile[[#This Row],[G&S reporting level indicator]]","v":0},{"$f":"T_DataComboFile[[#This Row],[2020/21 Baseline_Source]]*T_DataComboFile[[#This Row],[G&S reporting level indicator]]","v":0},{"$f":"T_DataComboFile[[#This Row],[2021/22 Baseline_Source]]*T_DataComboFile[[#This Row],[G&S reporting level indicator]]","v":0},{"$f":"T_DataComboFile[[#This Row],[2022/23 Baseline_Source]]*T_DataComboFile[[#This Row],[G&S reporting level indicator]]","v":0},{"$f":"T_DataComboFile[[#This Row],[2023/24 Baseline_Source]]*T_DataComboFile[[#This Row],[G&S reporting level indicator]]","v":0},null,null,null,null,null,null,{"$f":"T_DataComboFile[[#This Row],[2021/22 Baseline]]+T_DataComboFile[[#This Row],[2021/22 Reduction]]+T_DataComboFile[[#This Row],[2021/22 Increase]]","v":0},{"$f":"T_DataComboFile[[#This Row],[2022/23 Baseline]]+T_DataComboFile[[#This Row],[2022/23 Reduction]]+T_DataComboFile[[#This Row],[2022/23 Increase]]","v":0},{"$f":"T_DataComboFile[[#This Row],[2023/24 Baseline]]+T_DataComboFile[[#This Row],[2023/24 Reduction]]+T_DataComboFile[[#This Row],[2023/24 Increase]]","v":0}]
["NAT|Non-transfer item","36|Operating payments","2021_22","ENE2020",36,3,2,17366,70886,36,3,2,17366,"070886","36|03|02",1,1,2,39,39,"01|01|02|39|39","National","Small Business Development","Integrated Cooperative Development","Cooperatives Programme Design and Support","Non-transfer item","Current","Current payments","Goods and services","Operating payments","Operating payments","Economic development","Industrialisation and exports","NAT",0,9,3,5,5,5,5,0,0,0,0,0,0,1,null,{"$f":"IF(T_DataComboFile[[#This Row],[G&S reporting level indicator]]=1,$AX$16,\"Not applicable\")","v":"Not applicable"},{"$f":"IF(AND($AX$16=\"Level 3\",T_DataComboFile[[#This Row],[Econ3]] = \"Goods and services\"),IF(T_DataComboFile[[#This Row],[Econ4]] = T_DataComboFile[[#This Row],[Econ3]],1,0),IF(AND($AX$16=\"Level 4\",T_DataComboFile[[#This Row],[Econ4]] = \"Goods and services\"),0,1))","v":0},{"$f":"T_DataComboFile[[#This Row],[2016/17_Source]]*T_DataComboFile[[#This Row],[G&S reporting level indicator]]","v":0},{"$f":"T_DataComboFile[[#This Row],[2017/18_Source]]*T_DataComboFile[[#This Row],[G&S reporting level indicator]]","v":0},{"$f":"T_DataComboFile[[#This Row],[2018/19_Source]]*T_DataComboFile[[#This Row],[G&S reporting level indicator]]","v":0},{"$f":"T_DataComboFile[[#This Row],[2019/20 Main appropriation_Source]]*T_DataComboFile[[#This Row],[G&S reporting level indicator]]","v":0},{"$f":"T_DataComboFile[[#This Row],[2019/20 Adjusted appropriation_Source]]*T_DataComboFile[[#This Row],[G&S reporting level indicator]]","v":0},{"$f":"T_DataComboFile[[#This Row],[2019/20 Revised estimate_Source]]*T_DataComboFile[[#This Row],[G&S reporting level indicator]]","v":0},{"$f":"T_DataComboFile[[#This Row],[2019/20 Preliminary outcome_Source]]*T_DataComboFile[[#This Row],[G&S reporting level indicator]]","v":0},{"$f":"T_DataComboFile[[#This Row],[2020/21 Original_Source]]*T_DataComboFile[[#This Row],[G&S reporting level indicator]]","v":0},{"$f":"T_DataComboFile[[#This Row],[2020/21 SAB_Source]]*T_DataComboFile[[#This Row],[G&S reporting level indicator]]","v":0},{"$f":"T_DataComboFile[[#This Row],[2020/21 Baseline_Source]]*T_DataComboFile[[#This Row],[G&S reporting level indicator]]","v":0},{"$f":"T_DataComboFile[[#This Row],[2021/22 Baseline_Source]]*T_DataComboFile[[#This Row],[G&S reporting level indicator]]","v":0},{"$f":"T_DataComboFile[[#This Row],[2022/23 Baseline_Source]]*T_DataComboFile[[#This Row],[G&S reporting level indicator]]","v":0},{"$f":"T_DataComboFile[[#This Row],[2023/24 Baseline_Source]]*T_DataComboFile[[#This Row],[G&S reporting level indicator]]","v":0},null,null,null,null,null,null,{"$f":"T_DataComboFile[[#This Row],[2021/22 Baseline]]+T_DataComboFile[[#This Row],[2021/22 Reduction]]+T_DataComboFile[[#This Row],[2021/22 Increase]]","v":0},{"$f":"T_DataComboFile[[#This Row],[2022/23 Baseline]]+T_DataComboFile[[#This Row],[2022/23 Reduction]]+T_DataComboFile[[#This Row],[2022/23 Increase]]","v":0},{"$f":"T_DataComboFile[[#This Row],[2023/24 Baseline]]+T_DataComboFile[[#This Row],[2023/24 Reduction]]+T_DataComboFile[[#This Row],[2023/24 Increase]]","v":0}]
[null,null,"2021_22","ENE2020",36,3,2,null,70887,36,3,2,null,"070887","36|03|02",1,1,2,40,40,"01|01|02|40|40","National","Small Business Development","Integrated Cooperative Development","Cooperatives Programme Design and Support",null,"Current","Current payments","Goods and services","Venues and facilities","Venues and facilities",null,null,null,0,0,0,0,0,0,0,0,0,0,0,0,0,0,null,{"$f":"IF(T_DataComboFile[[#This Row],[G&S reporting level indicator]]=1,$AX$16,\"Not applicable\")","v":"Not applicable"},{"$f":"IF(AND($AX$16=\"Level 3\",T_DataComboFile[[#This Row],[Econ3]] = \"Goods and services\"),IF(T_DataComboFile[[#This Row],[Econ4]] = T_DataComboFile[[#This Row],[Econ3]],1,0),IF(AND($AX$16=\"Level 4\",T_DataComboFile[[#This Row],[Econ4]] = \"Goods and services\"),0,1))","v":0},{"$f":"T_DataComboFile[[#This Row],[2016/17_Source]]*T_DataComboFile[[#This Row],[G&S reporting level indicator]]","v":0},{"$f":"T_DataComboFile[[#This Row],[2017/18_Source]]*T_DataComboFile[[#This Row],[G&S reporting level indicator]]","v":0},{"$f":"T_DataComboFile[[#This Row],[2018/19_Source]]*T_DataComboFile[[#This Row],[G&S reporting level indicator]]","v":0},{"$f":"T_DataComboFile[[#This Row],[2019/20 Main appropriation_Source]]*T_DataComboFile[[#This Row],[G&S reporting level indicator]]","v":0},{"$f":"T_DataComboFile[[#This Row],[2019/20 Adjusted appropriation_Source]]*T_DataComboFile[[#This Row],[G&S reporting level indicator]]","v":0},{"$f":"T_DataComboFile[[#This Row],[2019/20 Revised estimate_Source]]*T_DataComboFile[[#This Row],[G&S reporting level indicator]]","v":0},{"$f":"T_DataComboFile[[#This Row],[2019/20 Preliminary outcome_Source]]*T_DataComboFile[[#This Row],[G&S reporting level indicator]]","v":0},{"$f":"T_DataComboFile[[#This Row],[2020/21 Original_Source]]*T_DataComboFile[[#This Row],[G&S reporting level indicator]]","v":0},{"$f":"T_DataComboFile[[#This Row],[2020/21 SAB_Source]]*T_DataComboFile[[#This Row],[G&S reporting level indicator]]","v":0},{"$f":"T_DataComboFile[[#This Row],[2020/21 Baseline_Source]]*T_DataComboFile[[#This Row],[G&S reporting level indicator]]","v":0},{"$f":"T_DataComboFile[[#This Row],[2021/22 Baseline_Source]]*T_DataComboFile[[#This Row],[G&S reporting level indicator]]","v":0},{"$f":"T_DataComboFile[[#This Row],[2022/23 Baseline_Source]]*T_DataComboFile[[#This Row],[G&S reporting level indicator]]","v":0},{"$f":"T_DataComboFile[[#This Row],[2023/24 Baseline_Source]]*T_DataComboFile[[#This Row],[G&S reporting level indicator]]","v":0},null,null,null,null,null,null,{"$f":"T_DataComboFile[[#This Row],[2021/22 Baseline]]+T_DataComboFile[[#This Row],[2021/22 Reduction]]+T_DataComboFile[[#This Row],[2021/22 Increase]]","v":0},{"$f":"T_DataComboFile[[#This Row],[2022/23 Baseline]]+T_DataComboFile[[#This Row],[2022/23 Reduction]]+T_DataComboFile[[#This Row],[2022/23 Increase]]","v":0},{"$f":"T_DataComboFile[[#This Row],[2023/24 Baseline]]+T_DataComboFile[[#This Row],[2023/24 Reduction]]+T_DataComboFile[[#This Row],[2023/24 Increase]]","v":0}]
[null,null,"2021_22","ENE2020",36,3,2,null,70888,36,3,2,null,"070888","36|03|02",1,1,3,41,41,"01|01|03|41|41","National","Small Business Development","Integrated Cooperative Development","Cooperatives Programme Design and Support",null,"Current","Current payments","Interest and rent on land","Interest (Incl. interest on unitary payments (PPP))","Interest (Incl. interest on unitary payments (PPP))",null,null,null,0,0,0,0,0,0,0,0,0,0,0,0,0,0,null,{"$f":"IF(T_DataComboFile[[#This Row],[G&S reporting level indicator]]=1,$AX$16,\"Not applicable\")","v":"Level 3"},{"$f":"IF(AND($AX$16=\"Level 3\",T_DataComboFile[[#This Row],[Econ3]] = \"Goods and services\"),IF(T_DataComboFile[[#This Row],[Econ4]] = T_DataComboFile[[#This Row],[Econ3]],1,0),IF(AND($AX$16=\"Level 4\",T_DataComboFile[[#This Row],[Econ4]] = \"Goods and services\"),0,1))","v":1},{"$f":"T_DataComboFile[[#This Row],[2016/17_Source]]*T_DataComboFile[[#This Row],[G&S reporting level indicator]]","v":0},{"$f":"T_DataComboFile[[#This Row],[2017/18_Source]]*T_DataComboFile[[#This Row],[G&S reporting level indicator]]","v":0},{"$f":"T_DataComboFile[[#This Row],[2018/19_Source]]*T_DataComboFile[[#This Row],[G&S reporting level indicator]]","v":0},{"$f":"T_DataComboFile[[#This Row],[2019/20 Main appropriation_Source]]*T_DataComboFile[[#This Row],[G&S reporting level indicator]]","v":0},{"$f":"T_DataComboFile[[#This Row],[2019/20 Adjusted appropriation_Source]]*T_DataComboFile[[#This Row],[G&S reporting level indicator]]","v":0},{"$f":"T_DataComboFile[[#This Row],[2019/20 Revised estimate_Source]]*T_DataComboFile[[#This Row],[G&S reporting level indicator]]","v":0},{"$f":"T_DataComboFile[[#This Row],[2019/20 Preliminary outcome_Source]]*T_DataComboFile[[#This Row],[G&S reporting level indicator]]","v":0},{"$f":"T_DataComboFile[[#This Row],[2020/21 Original_Source]]*T_DataComboFile[[#This Row],[G&S reporting level indicator]]","v":0},{"$f":"T_DataComboFile[[#This Row],[2020/21 SAB_Source]]*T_DataComboFile[[#This Row],[G&S reporting level indicator]]","v":0},{"$f":"T_DataComboFile[[#This Row],[2020/21 Baseline_Source]]*T_DataComboFile[[#This Row],[G&S reporting level indicator]]","v":0},{"$f":"T_DataComboFile[[#This Row],[2021/22 Baseline_Source]]*T_DataComboFile[[#This Row],[G&S reporting level indicator]]","v":0},{"$f":"T_DataComboFile[[#This Row],[2022/23 Baseline_Source]]*T_DataComboFile[[#This Row],[G&S reporting level indicator]]","v":0},{"$f":"T_DataComboFile[[#This Row],[2023/24 Baseline_Source]]*T_DataComboFile[[#This Row],[G&S reporting level indicator]]","v":0},null,null,null,null,null,null,{"$f":"T_DataComboFile[[#This Row],[2021/22 Baseline]]+T_DataComboFile[[#This Row],[2021/22 Reduction]]+T_DataComboFile[[#This Row],[2021/22 Increase]]","v":0},{"$f":"T_DataComboFile[[#This Row],[2022/23 Baseline]]+T_DataComboFile[[#This Row],[2022/23 Reduction]]+T_DataComboFile[[#This Row],[2022/23 Increase]]","v":0},{"$f":"T_DataComboFile[[#This Row],[2023/24 Baseline]]+T_DataComboFile[[#This Row],[2023/24 Reduction]]+T_DataComboFile[[#This Row],[2023/24 Increase]]","v":0}]
[null,null,"2021_22","ENE2020",36,3,2,null,70889,36,3,2,null,"070889","36|03|02",1,1,3,42,42,"01|01|03|42|42","National","Small Business Development","Integrated Cooperative Development","Cooperatives Programme Design and Support",null,"Current","Current payments","Interest and rent on land","Rent on land","Rent on land",null,null,null,0,0,0,0,0,0,0,0,0,0,0,0,0,0,null,{"$f":"IF(T_DataComboFile[[#This Row],[G&S reporting level indicator]]=1,$AX$16,\"Not applicable\")","v":"Level 3"},{"$f":"IF(AND($AX$16=\"Level 3\",T_DataComboFile[[#This Row],[Econ3]] = \"Goods and services\"),IF(T_DataComboFile[[#This Row],[Econ4]] = T_DataComboFile[[#This Row],[Econ3]],1,0),IF(AND($AX$16=\"Level 4\",T_DataComboFile[[#This Row],[Econ4]] = \"Goods and services\"),0,1))","v":1},{"$f":"T_DataComboFile[[#This Row],[2016/17_Source]]*T_DataComboFile[[#This Row],[G&S reporting level indicator]]","v":0},{"$f":"T_DataComboFile[[#This Row],[2017/18_Source]]*T_DataComboFile[[#This Row],[G&S reporting level indicator]]","v":0},{"$f":"T_DataComboFile[[#This Row],[2018/19_Source]]*T_DataComboFile[[#This Row],[G&S reporting level indicator]]","v":0},{"$f":"T_DataComboFile[[#This Row],[2019/20 Main appropriation_Source]]*T_DataComboFile[[#This Row],[G&S reporting level indicator]]","v":0},{"$f":"T_DataComboFile[[#This Row],[2019/20 Adjusted appropriation_Source]]*T_DataComboFile[[#This Row],[G&S reporting level indicator]]","v":0},{"$f":"T_DataComboFile[[#This Row],[2019/20 Revised estimate_Source]]*T_DataComboFile[[#This Row],[G&S reporting level indicator]]","v":0},{"$f":"T_DataComboFile[[#This Row],[2019/20 Preliminary outcome_Source]]*T_DataComboFile[[#This Row],[G&S reporting level indicator]]","v":0},{"$f":"T_DataComboFile[[#This Row],[2020/21 Original_Source]]*T_DataComboFile[[#This Row],[G&S reporting level indicator]]","v":0},{"$f":"T_DataComboFile[[#This Row],[2020/21 SAB_Source]]*T_DataComboFile[[#This Row],[G&S reporting level indicator]]","v":0},{"$f":"T_DataComboFile[[#This Row],[2020/21 Baseline_Source]]*T_DataComboFile[[#This Row],[G&S reporting level indicator]]","v":0},{"$f":"T_DataComboFile[[#This Row],[2021/22 Baseline_Source]]*T_DataComboFile[[#This Row],[G&S reporting level indicator]]","v":0},{"$f":"T_DataComboFile[[#This Row],[2022/23 Baseline_Source]]*T_DataComboFile[[#This Row],[G&S reporting level indicator]]","v":0},{"$f":"T_DataComboFile[[#This Row],[2023/24 Baseline_Source]]*T_DataComboFile[[#This Row],[G&S reporting level indicator]]","v":0},null,null,null,null,null,null,{"$f":"T_DataComboFile[[#This Row],[2021/22 Baseline]]+T_DataComboFile[[#This Row],[2021/22 Reduction]]+T_DataComboFile[[#This Row],[2021/22 Increase]]","v":0},{"$f":"T_DataComboFile[[#This Row],[2022/23 Baseline]]+T_DataComboFile[[#This Row],[2022/23 Reduction]]+T_DataComboFile[[#This Row],[2022/23 Increase]]","v":0},{"$f":"T_DataComboFile[[#This Row],[2023/24 Baseline]]+T_DataComboFile[[#This Row],[2023/24 Reduction]]+T_DataComboFile[[#This Row],[2023/24 Increase]]","v":0}]
[null,null,"2021_22","ENE2020",36,3,2,null,70890,36,3,2,null,"070890","36|03|02",1,2,4,43,43,"01|02|04|43|43","National","Small Business Development","Integrated Cooperative Development","Cooperatives Programme Design and Support",null,"Current","Transfers and subsidies","Provinces and municipalities","Provinces","Provincial Revenue Funds",null,null,null,0,0,0,0,0,0,0,0,0,0,0,0,0,0,null,{"$f":"IF(T_DataComboFile[[#This Row],[G&S reporting level indicator]]=1,$AX$16,\"Not applicable\")","v":"Level 3"},{"$f":"IF(AND($AX$16=\"Level 3\",T_DataComboFile[[#This Row],[Econ3]] = \"Goods and services\"),IF(T_DataComboFile[[#This Row],[Econ4]] = T_DataComboFile[[#This Row],[Econ3]],1,0),IF(AND($AX$16=\"Level 4\",T_DataComboFile[[#This Row],[Econ4]] = \"Goods and services\"),0,1))","v":1},{"$f":"T_DataComboFile[[#This Row],[2016/17_Source]]*T_DataComboFile[[#This Row],[G&S reporting level indicator]]","v":0},{"$f":"T_DataComboFile[[#This Row],[2017/18_Source]]*T_DataComboFile[[#This Row],[G&S reporting level indicator]]","v":0},{"$f":"T_DataComboFile[[#This Row],[2018/19_Source]]*T_DataComboFile[[#This Row],[G&S reporting level indicator]]","v":0},{"$f":"T_DataComboFile[[#This Row],[2019/20 Main appropriation_Source]]*T_DataComboFile[[#This Row],[G&S reporting level indicator]]","v":0},{"$f":"T_DataComboFile[[#This Row],[2019/20 Adjusted appropriation_Source]]*T_DataComboFile[[#This Row],[G&S reporting level indicator]]","v":0},{"$f":"T_DataComboFile[[#This Row],[2019/20 Revised estimate_Source]]*T_DataComboFile[[#This Row],[G&S reporting level indicator]]","v":0},{"$f":"T_DataComboFile[[#This Row],[2019/20 Preliminary outcome_Source]]*T_DataComboFile[[#This Row],[G&S reporting level indicator]]","v":0},{"$f":"T_DataComboFile[[#This Row],[2020/21 Original_Source]]*T_DataComboFile[[#This Row],[G&S reporting level indicator]]","v":0},{"$f":"T_DataComboFile[[#This Row],[2020/21 SAB_Source]]*T_DataComboFile[[#This Row],[G&S reporting level indicator]]","v":0},{"$f":"T_DataComboFile[[#This Row],[2020/21 Baseline_Source]]*T_DataComboFile[[#This Row],[G&S reporting level indicator]]","v":0},{"$f":"T_DataComboFile[[#This Row],[2021/22 Baseline_Source]]*T_DataComboFile[[#This Row],[G&S reporting level indicator]]","v":0},{"$f":"T_DataComboFile[[#This Row],[2022/23 Baseline_Source]]*T_DataComboFile[[#This Row],[G&S reporting level indicator]]","v":0},{"$f":"T_DataComboFile[[#This Row],[2023/24 Baseline_Source]]*T_DataComboFile[[#This Row],[G&S reporting level indicator]]","v":0},null,null,null,null,null,null,{"$f":"T_DataComboFile[[#This Row],[2021/22 Baseline]]+T_DataComboFile[[#This Row],[2021/22 Reduction]]+T_DataComboFile[[#This Row],[2021/22 Increase]]","v":0},{"$f":"T_DataComboFile[[#This Row],[2022/23 Baseline]]+T_DataComboFile[[#This Row],[2022/23 Reduction]]+T_DataComboFile[[#This Row],[2022/23 Increase]]","v":0},{"$f":"T_DataComboFile[[#This Row],[2023/24 Baseline]]+T_DataComboFile[[#This Row],[2023/24 Reduction]]+T_DataComboFile[[#This Row],[2023/24 Increase]]","v":0}]
[null,null,"2021_22","ENE2020",36,3,2,null,70891,36,3,2,null,"070891","36|03|02",1,2,4,43,44,"01|02|04|43|44","National","Small Business Development","Integrated Cooperative Development","Cooperatives Programme Design and Support",null,"Current","Transfers and subsidies","Provinces and municipalities","Provinces","Provincial agencies and funds",null,null,null,0,0,0,0,0,0,0,0,0,0,0,0,0,0,null,{"$f":"IF(T_DataComboFile[[#This Row],[G&S reporting level indicator]]=1,$AX$16,\"Not applicable\")","v":"Level 3"},{"$f":"IF(AND($AX$16=\"Level 3\",T_DataComboFile[[#This Row],[Econ3]] = \"Goods and services\"),IF(T_DataComboFile[[#This Row],[Econ4]] = T_DataComboFile[[#This Row],[Econ3]],1,0),IF(AND($AX$16=\"Level 4\",T_DataComboFile[[#This Row],[Econ4]] = \"Goods and services\"),0,1))","v":1},{"$f":"T_DataComboFile[[#This Row],[2016/17_Source]]*T_DataComboFile[[#This Row],[G&S reporting level indicator]]","v":0},{"$f":"T_DataComboFile[[#This Row],[2017/18_Source]]*T_DataComboFile[[#This Row],[G&S reporting level indicator]]","v":0},{"$f":"T_DataComboFile[[#This Row],[2018/19_Source]]*T_DataComboFile[[#This Row],[G&S reporting level indicator]]","v":0},{"$f":"T_DataComboFile[[#This Row],[2019/20 Main appropriation_Source]]*T_DataComboFile[[#This Row],[G&S reporting level indicator]]","v":0},{"$f":"T_DataComboFile[[#This Row],[2019/20 Adjusted appropriation_Source]]*T_DataComboFile[[#This Row],[G&S reporting level indicator]]","v":0},{"$f":"T_DataComboFile[[#This Row],[2019/20 Revised estimate_Source]]*T_DataComboFile[[#This Row],[G&S reporting level indicator]]","v":0},{"$f":"T_DataComboFile[[#This Row],[2019/20 Preliminary outcome_Source]]*T_DataComboFile[[#This Row],[G&S reporting level indicator]]","v":0},{"$f":"T_DataComboFile[[#This Row],[2020/21 Original_Source]]*T_DataComboFile[[#This Row],[G&S reporting level indicator]]","v":0},{"$f":"T_DataComboFile[[#This Row],[2020/21 SAB_Source]]*T_DataComboFile[[#This Row],[G&S reporting level indicator]]","v":0},{"$f":"T_DataComboFile[[#This Row],[2020/21 Baseline_Source]]*T_DataComboFile[[#This Row],[G&S reporting level indicator]]","v":0},{"$f":"T_DataComboFile[[#This Row],[2021/22 Baseline_Source]]*T_DataComboFile[[#This Row],[G&S reporting level indicator]]","v":0},{"$f":"T_DataComboFile[[#This Row],[2022/23 Baseline_Source]]*T_DataComboFile[[#This Row],[G&S reporting level indicator]]","v":0},{"$f":"T_DataComboFile[[#This Row],[2023/24 Baseline_Source]]*T_DataComboFile[[#This Row],[G&S reporting level indicator]]","v":0},null,null,null,null,null,null,{"$f":"T_DataComboFile[[#This Row],[2021/22 Baseline]]+T_DataComboFile[[#This Row],[2021/22 Reduction]]+T_DataComboFile[[#This Row],[2021/22 Increase]]","v":0},{"$f":"T_DataComboFile[[#This Row],[2022/23 Baseline]]+T_DataComboFile[[#This Row],[2022/23 Reduction]]+T_DataComboFile[[#This Row],[2022/23 Increase]]","v":0},{"$f":"T_DataComboFile[[#This Row],[2023/24 Baseline]]+T_DataComboFile[[#This Row],[2023/24 Reduction]]+T_DataComboFile[[#This Row],[2023/24 Increase]]","v":0}]
[null,null,"2021_22","ENE2020",36,3,2,null,70892,36,3,2,null,"070892","36|03|02",1,2,4,44,45,"01|02|04|44|45","National","Small Business Development","Integrated Cooperative Development","Cooperatives Programme Design and Support",null,"Current","Transfers and subsidies","Provinces and municipalities","Municipalities","Municipal bank accounts",null,null,null,0,0,0,0,0,0,0,0,0,0,0,0,0,0,null,{"$f":"IF(T_DataComboFile[[#This Row],[G&S reporting level indicator]]=1,$AX$16,\"Not applicable\")","v":"Level 3"},{"$f":"IF(AND($AX$16=\"Level 3\",T_DataComboFile[[#This Row],[Econ3]] = \"Goods and services\"),IF(T_DataComboFile[[#This Row],[Econ4]] = T_DataComboFile[[#This Row],[Econ3]],1,0),IF(AND($AX$16=\"Level 4\",T_DataComboFile[[#This Row],[Econ4]] = \"Goods and services\"),0,1))","v":1},{"$f":"T_DataComboFile[[#This Row],[2016/17_Source]]*T_DataComboFile[[#This Row],[G&S reporting level indicator]]","v":0},{"$f":"T_DataComboFile[[#This Row],[2017/18_Source]]*T_DataComboFile[[#This Row],[G&S reporting level indicator]]","v":0},{"$f":"T_DataComboFile[[#This Row],[2018/19_Source]]*T_DataComboFile[[#This Row],[G&S reporting level indicator]]","v":0},{"$f":"T_DataComboFile[[#This Row],[2019/20 Main appropriation_Source]]*T_DataComboFile[[#This Row],[G&S reporting level indicator]]","v":0},{"$f":"T_DataComboFile[[#This Row],[2019/20 Adjusted appropriation_Source]]*T_DataComboFile[[#This Row],[G&S reporting level indicator]]","v":0},{"$f":"T_DataComboFile[[#This Row],[2019/20 Revised estimate_Source]]*T_DataComboFile[[#This Row],[G&S reporting level indicator]]","v":0},{"$f":"T_DataComboFile[[#This Row],[2019/20 Preliminary outcome_Source]]*T_DataComboFile[[#This Row],[G&S reporting level indicator]]","v":0},{"$f":"T_DataComboFile[[#This Row],[2020/21 Original_Source]]*T_DataComboFile[[#This Row],[G&S reporting level indicator]]","v":0},{"$f":"T_DataComboFile[[#This Row],[2020/21 SAB_Source]]*T_DataComboFile[[#This Row],[G&S reporting level indicator]]","v":0},{"$f":"T_DataComboFile[[#This Row],[2020/21 Baseline_Source]]*T_DataComboFile[[#This Row],[G&S reporting level indicator]]","v":0},{"$f":"T_DataComboFile[[#This Row],[2021/22 Baseline_Source]]*T_DataComboFile[[#This Row],[G&S reporting level indicator]]","v":0},{"$f":"T_DataComboFile[[#This Row],[2022/23 Baseline_Source]]*T_DataComboFile[[#This Row],[G&S reporting level indicator]]","v":0},{"$f":"T_DataComboFile[[#This Row],[2023/24 Baseline_Source]]*T_DataComboFile[[#This Row],[G&S reporting level indicator]]","v":0},null,null,null,null,null,null,{"$f":"T_DataComboFile[[#This Row],[2021/22 Baseline]]+T_DataComboFile[[#This Row],[2021/22 Reduction]]+T_DataComboFile[[#This Row],[2021/22 Increase]]","v":0},{"$f":"T_DataComboFile[[#This Row],[2022/23 Baseline]]+T_DataComboFile[[#This Row],[2022/23 Reduction]]+T_DataComboFile[[#This Row],[2022/23 Increase]]","v":0},{"$f":"T_DataComboFile[[#This Row],[2023/24 Baseline]]+T_DataComboFile[[#This Row],[2023/24 Reduction]]+T_DataComboFile[[#This Row],[2023/24 Increase]]","v":0}]
[null,null,"2021_22","ENE2020",36,3,2,null,70893,36,3,2,null,"070893","36|03|02",1,2,4,44,46,"01|02|04|44|46","National","Small Business Development","Integrated Cooperative Development","Cooperatives Programme Design and Support",null,"Current","Transfers and subsidies","Provinces and municipalities","Municipalities","Municipal agencies and funds",null,null,null,0,0,0,0,0,0,0,0,0,0,0,0,0,0,null,{"$f":"IF(T_DataComboFile[[#This Row],[G&S reporting level indicator]]=1,$AX$16,\"Not applicable\")","v":"Level 3"},{"$f":"IF(AND($AX$16=\"Level 3\",T_DataComboFile[[#This Row],[Econ3]] = \"Goods and services\"),IF(T_DataComboFile[[#This Row],[Econ4]] = T_DataComboFile[[#This Row],[Econ3]],1,0),IF(AND($AX$16=\"Level 4\",T_DataComboFile[[#This Row],[Econ4]] = \"Goods and services\"),0,1))","v":1},{"$f":"T_DataComboFile[[#This Row],[2016/17_Source]]*T_DataComboFile[[#This Row],[G&S reporting level indicator]]","v":0},{"$f":"T_DataComboFile[[#This Row],[2017/18_Source]]*T_DataComboFile[[#This Row],[G&S reporting level indicator]]","v":0},{"$f":"T_DataComboFile[[#This Row],[2018/19_Source]]*T_DataComboFile[[#This Row],[G&S reporting level indicator]]","v":0},{"$f":"T_DataComboFile[[#This Row],[2019/20 Main appropriation_Source]]*T_DataComboFile[[#This Row],[G&S reporting level indicator]]","v":0},{"$f":"T_DataComboFile[[#This Row],[2019/20 Adjusted appropriation_Source]]*T_DataComboFile[[#This Row],[G&S reporting level indicator]]","v":0},{"$f":"T_DataComboFile[[#This Row],[2019/20 Revised estimate_Source]]*T_DataComboFile[[#This Row],[G&S reporting level indicator]]","v":0},{"$f":"T_DataComboFile[[#This Row],[2019/20 Preliminary outcome_Source]]*T_DataComboFile[[#This Row],[G&S reporting level indicator]]","v":0},{"$f":"T_DataComboFile[[#This Row],[2020/21 Original_Source]]*T_DataComboFile[[#This Row],[G&S reporting level indicator]]","v":0},{"$f":"T_DataComboFile[[#This Row],[2020/21 SAB_Source]]*T_DataComboFile[[#This Row],[G&S reporting level indicator]]","v":0},{"$f":"T_DataComboFile[[#This Row],[2020/21 Baseline_Source]]*T_DataComboFile[[#This Row],[G&S reporting level indicator]]","v":0},{"$f":"T_DataComboFile[[#This Row],[2021/22 Baseline_Source]]*T_DataComboFile[[#This Row],[G&S reporting level indicator]]","v":0},{"$f":"T_DataComboFile[[#This Row],[2022/23 Baseline_Source]]*T_DataComboFile[[#This Row],[G&S reporting level indicator]]","v":0},{"$f":"T_DataComboFile[[#This Row],[2023/24 Baseline_Source]]*T_DataComboFile[[#This Row],[G&S reporting level indicator]]","v":0},null,null,null,null,null,null,{"$f":"T_DataComboFile[[#This Row],[2021/22 Baseline]]+T_DataComboFile[[#This Row],[2021/22 Reduction]]+T_DataComboFile[[#This Row],[2021/22 Increase]]","v":0},{"$f":"T_DataComboFile[[#This Row],[2022/23 Baseline]]+T_DataComboFile[[#This Row],[2022/23 Reduction]]+T_DataComboFile[[#This Row],[2022/23 Increase]]","v":0},{"$f":"T_DataComboFile[[#This Row],[2023/24 Baseline]]+T_DataComboFile[[#This Row],[2023/24 Reduction]]+T_DataComboFile[[#This Row],[2023/24 Increase]]","v":0}]
[null,null,"2021_22","ENE2020",36,3,2,null,70894,36,3,2,null,"070894","36|03|02",1,2,5,45,47,"01|02|05|45|47","National","Small Business Development","Integrated Cooperative Development","Cooperatives Programme Design and Support",null,"Current","Transfers and subsidies","Departmental agencies and accounts","Social security funds","Social security funds",null,null,null,0,0,0,0,0,0,0,0,0,0,0,0,0,0,null,{"$f":"IF(T_DataComboFile[[#This Row],[G&S reporting level indicator]]=1,$AX$16,\"Not applicable\")","v":"Level 3"},{"$f":"IF(AND($AX$16=\"Level 3\",T_DataComboFile[[#This Row],[Econ3]] = \"Goods and services\"),IF(T_DataComboFile[[#This Row],[Econ4]] = T_DataComboFile[[#This Row],[Econ3]],1,0),IF(AND($AX$16=\"Level 4\",T_DataComboFile[[#This Row],[Econ4]] = \"Goods and services\"),0,1))","v":1},{"$f":"T_DataComboFile[[#This Row],[2016/17_Source]]*T_DataComboFile[[#This Row],[G&S reporting level indicator]]","v":0},{"$f":"T_DataComboFile[[#This Row],[2017/18_Source]]*T_DataComboFile[[#This Row],[G&S reporting level indicator]]","v":0},{"$f":"T_DataComboFile[[#This Row],[2018/19_Source]]*T_DataComboFile[[#This Row],[G&S reporting level indicator]]","v":0},{"$f":"T_DataComboFile[[#This Row],[2019/20 Main appropriation_Source]]*T_DataComboFile[[#This Row],[G&S reporting level indicator]]","v":0},{"$f":"T_DataComboFile[[#This Row],[2019/20 Adjusted appropriation_Source]]*T_DataComboFile[[#This Row],[G&S reporting level indicator]]","v":0},{"$f":"T_DataComboFile[[#This Row],[2019/20 Revised estimate_Source]]*T_DataComboFile[[#This Row],[G&S reporting level indicator]]","v":0},{"$f":"T_DataComboFile[[#This Row],[2019/20 Preliminary outcome_Source]]*T_DataComboFile[[#This Row],[G&S reporting level indicator]]","v":0},{"$f":"T_DataComboFile[[#This Row],[2020/21 Original_Source]]*T_DataComboFile[[#This Row],[G&S reporting level indicator]]","v":0},{"$f":"T_DataComboFile[[#This Row],[2020/21 SAB_Source]]*T_DataComboFile[[#This Row],[G&S reporting level indicator]]","v":0},{"$f":"T_DataComboFile[[#This Row],[2020/21 Baseline_Source]]*T_DataComboFile[[#This Row],[G&S reporting level indicator]]","v":0},{"$f":"T_DataComboFile[[#This Row],[2021/22 Baseline_Source]]*T_DataComboFile[[#This Row],[G&S reporting level indicator]]","v":0},{"$f":"T_DataComboFile[[#This Row],[2022/23 Baseline_Source]]*T_DataComboFile[[#This Row],[G&S reporting level indicator]]","v":0},{"$f":"T_DataComboFile[[#This Row],[2023/24 Baseline_Source]]*T_DataComboFile[[#This Row],[G&S reporting level indicator]]","v":0},null,null,null,null,null,null,{"$f":"T_DataComboFile[[#This Row],[2021/22 Baseline]]+T_DataComboFile[[#This Row],[2021/22 Reduction]]+T_DataComboFile[[#This Row],[2021/22 Increase]]","v":0},{"$f":"T_DataComboFile[[#This Row],[2022/23 Baseline]]+T_DataComboFile[[#This Row],[2022/23 Reduction]]+T_DataComboFile[[#This Row],[2022/23 Increase]]","v":0},{"$f":"T_DataComboFile[[#This Row],[2023/24 Baseline]]+T_DataComboFile[[#This Row],[2023/24 Reduction]]+T_DataComboFile[[#This Row],[2023/24 Increase]]","v":0}]
[null,null,"2021_22","ENE2020",36,3,2,null,70895,36,3,2,null,"070895","36|03|02",1,2,5,46,48,"01|02|05|46|48","National","Small Business Development","Integrated Cooperative Development","Cooperatives Programme Design and Support",null,"Current","Transfers and subsidies","Departmental agencies and accounts","Departmental agencies (non-business entities)","Departmental agencies (non-business entities)",null,null,null,0,0,0,0,0,0,0,0,0,0,0,0,0,0,null,{"$f":"IF(T_DataComboFile[[#This Row],[G&S reporting level indicator]]=1,$AX$16,\"Not applicable\")","v":"Level 3"},{"$f":"IF(AND($AX$16=\"Level 3\",T_DataComboFile[[#This Row],[Econ3]] = \"Goods and services\"),IF(T_DataComboFile[[#This Row],[Econ4]] = T_DataComboFile[[#This Row],[Econ3]],1,0),IF(AND($AX$16=\"Level 4\",T_DataComboFile[[#This Row],[Econ4]] = \"Goods and services\"),0,1))","v":1},{"$f":"T_DataComboFile[[#This Row],[2016/17_Source]]*T_DataComboFile[[#This Row],[G&S reporting level indicator]]","v":0},{"$f":"T_DataComboFile[[#This Row],[2017/18_Source]]*T_DataComboFile[[#This Row],[G&S reporting level indicator]]","v":0},{"$f":"T_DataComboFile[[#This Row],[2018/19_Source]]*T_DataComboFile[[#This Row],[G&S reporting level indicator]]","v":0},{"$f":"T_DataComboFile[[#This Row],[2019/20 Main appropriation_Source]]*T_DataComboFile[[#This Row],[G&S reporting level indicator]]","v":0},{"$f":"T_DataComboFile[[#This Row],[2019/20 Adjusted appropriation_Source]]*T_DataComboFile[[#This Row],[G&S reporting level indicator]]","v":0},{"$f":"T_DataComboFile[[#This Row],[2019/20 Revised estimate_Source]]*T_DataComboFile[[#This Row],[G&S reporting level indicator]]","v":0},{"$f":"T_DataComboFile[[#This Row],[2019/20 Preliminary outcome_Source]]*T_DataComboFile[[#This Row],[G&S reporting level indicator]]","v":0},{"$f":"T_DataComboFile[[#This Row],[2020/21 Original_Source]]*T_DataComboFile[[#This Row],[G&S reporting level indicator]]","v":0},{"$f":"T_DataComboFile[[#This Row],[2020/21 SAB_Source]]*T_DataComboFile[[#This Row],[G&S reporting level indicator]]","v":0},{"$f":"T_DataComboFile[[#This Row],[2020/21 Baseline_Source]]*T_DataComboFile[[#This Row],[G&S reporting level indicator]]","v":0},{"$f":"T_DataComboFile[[#This Row],[2021/22 Baseline_Source]]*T_DataComboFile[[#This Row],[G&S reporting level indicator]]","v":0},{"$f":"T_DataComboFile[[#This Row],[2022/23 Baseline_Source]]*T_DataComboFile[[#This Row],[G&S reporting level indicator]]","v":0},{"$f":"T_DataComboFile[[#This Row],[2023/24 Baseline_Source]]*T_DataComboFile[[#This Row],[G&S reporting level indicator]]","v":0},null,null,null,null,null,null,{"$f":"T_DataComboFile[[#This Row],[2021/22 Baseline]]+T_DataComboFile[[#This Row],[2021/22 Reduction]]+T_DataComboFile[[#This Row],[2021/22 Increase]]","v":0},{"$f":"T_DataComboFile[[#This Row],[2022/23 Baseline]]+T_DataComboFile[[#This Row],[2022/23 Reduction]]+T_DataComboFile[[#This Row],[2022/23 Increase]]","v":0},{"$f":"T_DataComboFile[[#This Row],[2023/24 Baseline]]+T_DataComboFile[[#This Row],[2023/24 Reduction]]+T_DataComboFile[[#This Row],[2023/24 Increase]]","v":0}]
[null,null,"2021_22","ENE2020",36,3,2,null,70896,36,3,2,null,"070896","36|03|02",1,2,6,47,49,"01|02|06|47|49","National","Small Business Development","Integrated Cooperative Development","Cooperatives Programme Design and Support",null,"Current","Transfers and subsidies","Higher education institutions","Higher education institutions","Higher education institutions",null,null,null,0,0,0,0,0,0,0,0,0,0,0,0,0,0,null,{"$f":"IF(T_DataComboFile[[#This Row],[G&S reporting level indicator]]=1,$AX$16,\"Not applicable\")","v":"Level 3"},{"$f":"IF(AND($AX$16=\"Level 3\",T_DataComboFile[[#This Row],[Econ3]] = \"Goods and services\"),IF(T_DataComboFile[[#This Row],[Econ4]] = T_DataComboFile[[#This Row],[Econ3]],1,0),IF(AND($AX$16=\"Level 4\",T_DataComboFile[[#This Row],[Econ4]] = \"Goods and services\"),0,1))","v":1},{"$f":"T_DataComboFile[[#This Row],[2016/17_Source]]*T_DataComboFile[[#This Row],[G&S reporting level indicator]]","v":0},{"$f":"T_DataComboFile[[#This Row],[2017/18_Source]]*T_DataComboFile[[#This Row],[G&S reporting level indicator]]","v":0},{"$f":"T_DataComboFile[[#This Row],[2018/19_Source]]*T_DataComboFile[[#This Row],[G&S reporting level indicator]]","v":0},{"$f":"T_DataComboFile[[#This Row],[2019/20 Main appropriation_Source]]*T_DataComboFile[[#This Row],[G&S reporting level indicator]]","v":0},{"$f":"T_DataComboFile[[#This Row],[2019/20 Adjusted appropriation_Source]]*T_DataComboFile[[#This Row],[G&S reporting level indicator]]","v":0},{"$f":"T_DataComboFile[[#This Row],[2019/20 Revised estimate_Source]]*T_DataComboFile[[#This Row],[G&S reporting level indicator]]","v":0},{"$f":"T_DataComboFile[[#This Row],[2019/20 Preliminary outcome_Source]]*T_DataComboFile[[#This Row],[G&S reporting level indicator]]","v":0},{"$f":"T_DataComboFile[[#This Row],[2020/21 Original_Source]]*T_DataComboFile[[#This Row],[G&S reporting level indicator]]","v":0},{"$f":"T_DataComboFile[[#This Row],[2020/21 SAB_Source]]*T_DataComboFile[[#This Row],[G&S reporting level indicator]]","v":0},{"$f":"T_DataComboFile[[#This Row],[2020/21 Baseline_Source]]*T_DataComboFile[[#This Row],[G&S reporting level indicator]]","v":0},{"$f":"T_DataComboFile[[#This Row],[2021/22 Baseline_Source]]*T_DataComboFile[[#This Row],[G&S reporting level indicator]]","v":0},{"$f":"T_DataComboFile[[#This Row],[2022/23 Baseline_Source]]*T_DataComboFile[[#This Row],[G&S reporting level indicator]]","v":0},{"$f":"T_DataComboFile[[#This Row],[2023/24 Baseline_Source]]*T_DataComboFile[[#This Row],[G&S reporting level indicator]]","v":0},null,null,null,null,null,null,{"$f":"T_DataComboFile[[#This Row],[2021/22 Baseline]]+T_DataComboFile[[#This Row],[2021/22 Reduction]]+T_DataComboFile[[#This Row],[2021/22 Increase]]","v":0},{"$f":"T_DataComboFile[[#This Row],[2022/23 Baseline]]+T_DataComboFile[[#This Row],[2022/23 Reduction]]+T_DataComboFile[[#This Row],[2022/23 Increase]]","v":0},{"$f":"T_DataComboFile[[#This Row],[2023/24 Baseline]]+T_DataComboFile[[#This Row],[2023/24 Reduction]]+T_DataComboFile[[#This Row],[2023/24 Increase]]","v":0}]
[null,null,"2021_22","ENE2020",36,3,2,null,70897,36,3,2,null,"070897","36|03|02",1,2,7,48,50,"01|02|07|48|50","National","Small Business Development","Integrated Cooperative Development","Cooperatives Programme Design and Support",null,"Current","Transfers and subsidies","Foreign governments and international organisations","Foreign governments and international organisations","Foreign governments and international organisations",null,null,null,0,0,0,0,0,0,0,0,0,0,0,0,0,0,null,{"$f":"IF(T_DataComboFile[[#This Row],[G&S reporting level indicator]]=1,$AX$16,\"Not applicable\")","v":"Level 3"},{"$f":"IF(AND($AX$16=\"Level 3\",T_DataComboFile[[#This Row],[Econ3]] = \"Goods and services\"),IF(T_DataComboFile[[#This Row],[Econ4]] = T_DataComboFile[[#This Row],[Econ3]],1,0),IF(AND($AX$16=\"Level 4\",T_DataComboFile[[#This Row],[Econ4]] = \"Goods and services\"),0,1))","v":1},{"$f":"T_DataComboFile[[#This Row],[2016/17_Source]]*T_DataComboFile[[#This Row],[G&S reporting level indicator]]","v":0},{"$f":"T_DataComboFile[[#This Row],[2017/18_Source]]*T_DataComboFile[[#This Row],[G&S reporting level indicator]]","v":0},{"$f":"T_DataComboFile[[#This Row],[2018/19_Source]]*T_DataComboFile[[#This Row],[G&S reporting level indicator]]","v":0},{"$f":"T_DataComboFile[[#This Row],[2019/20 Main appropriation_Source]]*T_DataComboFile[[#This Row],[G&S reporting level indicator]]","v":0},{"$f":"T_DataComboFile[[#This Row],[2019/20 Adjusted appropriation_Source]]*T_DataComboFile[[#This Row],[G&S reporting level indicator]]","v":0},{"$f":"T_DataComboFile[[#This Row],[2019/20 Revised estimate_Source]]*T_DataComboFile[[#This Row],[G&S reporting level indicator]]","v":0},{"$f":"T_DataComboFile[[#This Row],[2019/20 Preliminary outcome_Source]]*T_DataComboFile[[#This Row],[G&S reporting level indicator]]","v":0},{"$f":"T_DataComboFile[[#This Row],[2020/21 Original_Source]]*T_DataComboFile[[#This Row],[G&S reporting level indicator]]","v":0},{"$f":"T_DataComboFile[[#This Row],[2020/21 SAB_Source]]*T_DataComboFile[[#This Row],[G&S reporting level indicator]]","v":0},{"$f":"T_DataComboFile[[#This Row],[2020/21 Baseline_Source]]*T_DataComboFile[[#This Row],[G&S reporting level indicator]]","v":0},{"$f":"T_DataComboFile[[#This Row],[2021/22 Baseline_Source]]*T_DataComboFile[[#This Row],[G&S reporting level indicator]]","v":0},{"$f":"T_DataComboFile[[#This Row],[2022/23 Baseline_Source]]*T_DataComboFile[[#This Row],[G&S reporting level indicator]]","v":0},{"$f":"T_DataComboFile[[#This Row],[2023/24 Baseline_Source]]*T_DataComboFile[[#This Row],[G&S reporting level indicator]]","v":0},null,null,null,null,null,null,{"$f":"T_DataComboFile[[#This Row],[2021/22 Baseline]]+T_DataComboFile[[#This Row],[2021/22 Reduction]]+T_DataComboFile[[#This Row],[2021/22 Increase]]","v":0},{"$f":"T_DataComboFile[[#This Row],[2022/23 Baseline]]+T_DataComboFile[[#This Row],[2022/23 Reduction]]+T_DataComboFile[[#This Row],[2022/23 Increase]]","v":0},{"$f":"T_DataComboFile[[#This Row],[2023/24 Baseline]]+T_DataComboFile[[#This Row],[2023/24 Reduction]]+T_DataComboFile[[#This Row],[2023/24 Increase]]","v":0}]
[null,null,"2021_22","ENE2020",36,3,2,null,70898,36,3,2,null,"070898","36|03|02",1,2,8,49,51,"01|02|08|49|51","National","Small Business Development","Integrated Cooperative Development","Cooperatives Programme Design and Support",null,"Current","Transfers and subsidies","Public corporations and private enterprises","Public corporations","Subsidies on products and production (pc)",null,null,null,0,0,0,0,0,0,0,0,0,0,0,0,0,0,null,{"$f":"IF(T_DataComboFile[[#This Row],[G&S reporting level indicator]]=1,$AX$16,\"Not applicable\")","v":"Level 3"},{"$f":"IF(AND($AX$16=\"Level 3\",T_DataComboFile[[#This Row],[Econ3]] = \"Goods and services\"),IF(T_DataComboFile[[#This Row],[Econ4]] = T_DataComboFile[[#This Row],[Econ3]],1,0),IF(AND($AX$16=\"Level 4\",T_DataComboFile[[#This Row],[Econ4]] = \"Goods and services\"),0,1))","v":1},{"$f":"T_DataComboFile[[#This Row],[2016/17_Source]]*T_DataComboFile[[#This Row],[G&S reporting level indicator]]","v":0},{"$f":"T_DataComboFile[[#This Row],[2017/18_Source]]*T_DataComboFile[[#This Row],[G&S reporting level indicator]]","v":0},{"$f":"T_DataComboFile[[#This Row],[2018/19_Source]]*T_DataComboFile[[#This Row],[G&S reporting level indicator]]","v":0},{"$f":"T_DataComboFile[[#This Row],[2019/20 Main appropriation_Source]]*T_DataComboFile[[#This Row],[G&S reporting level indicator]]","v":0},{"$f":"T_DataComboFile[[#This Row],[2019/20 Adjusted appropriation_Source]]*T_DataComboFile[[#This Row],[G&S reporting level indicator]]","v":0},{"$f":"T_DataComboFile[[#This Row],[2019/20 Revised estimate_Source]]*T_DataComboFile[[#This Row],[G&S reporting level indicator]]","v":0},{"$f":"T_DataComboFile[[#This Row],[2019/20 Preliminary outcome_Source]]*T_DataComboFile[[#This Row],[G&S reporting level indicator]]","v":0},{"$f":"T_DataComboFile[[#This Row],[2020/21 Original_Source]]*T_DataComboFile[[#This Row],[G&S reporting level indicator]]","v":0},{"$f":"T_DataComboFile[[#This Row],[2020/21 SAB_Source]]*T_DataComboFile[[#This Row],[G&S reporting level indicator]]","v":0},{"$f":"T_DataComboFile[[#This Row],[2020/21 Baseline_Source]]*T_DataComboFile[[#This Row],[G&S reporting level indicator]]","v":0},{"$f":"T_DataComboFile[[#This Row],[2021/22 Baseline_Source]]*T_DataComboFile[[#This Row],[G&S reporting level indicator]]","v":0},{"$f":"T_DataComboFile[[#This Row],[2022/23 Baseline_Source]]*T_DataComboFile[[#This Row],[G&S reporting level indicator]]","v":0},{"$f":"T_DataComboFile[[#This Row],[2023/24 Baseline_Source]]*T_DataComboFile[[#This Row],[G&S reporting level indicator]]","v":0},null,null,null,null,null,null,{"$f":"T_DataComboFile[[#This Row],[2021/22 Baseline]]+T_DataComboFile[[#This Row],[2021/22 Reduction]]+T_DataComboFile[[#This Row],[2021/22 Increase]]","v":0},{"$f":"T_DataComboFile[[#This Row],[2022/23 Baseline]]+T_DataComboFile[[#This Row],[2022/23 Reduction]]+T_DataComboFile[[#This Row],[2022/23 Increase]]","v":0},{"$f":"T_DataComboFile[[#This Row],[2023/24 Baseline]]+T_DataComboFile[[#This Row],[2023/24 Reduction]]+T_DataComboFile[[#This Row],[2023/24 Increase]]","v":0}]
[null,null,"2021_22","ENE2020",36,3,2,null,70899,36,3,2,null,"070899","36|03|02",1,2,8,49,52,"01|02|08|49|52","National","Small Business Development","Integrated Cooperative Development","Cooperatives Programme Design and Support",null,"Current","Transfers and subsidies","Public corporations and private enterprises","Public corporations","Other transfers to public corporations",null,null,null,0,0,0,0,0,0,0,0,0,0,0,0,0,0,null,{"$f":"IF(T_DataComboFile[[#This Row],[G&S reporting level indicator]]=1,$AX$16,\"Not applicable\")","v":"Level 3"},{"$f":"IF(AND($AX$16=\"Level 3\",T_DataComboFile[[#This Row],[Econ3]] = \"Goods and services\"),IF(T_DataComboFile[[#This Row],[Econ4]] = T_DataComboFile[[#This Row],[Econ3]],1,0),IF(AND($AX$16=\"Level 4\",T_DataComboFile[[#This Row],[Econ4]] = \"Goods and services\"),0,1))","v":1},{"$f":"T_DataComboFile[[#This Row],[2016/17_Source]]*T_DataComboFile[[#This Row],[G&S reporting level indicator]]","v":0},{"$f":"T_DataComboFile[[#This Row],[2017/18_Source]]*T_DataComboFile[[#This Row],[G&S reporting level indicator]]","v":0},{"$f":"T_DataComboFile[[#This Row],[2018/19_Source]]*T_DataComboFile[[#This Row],[G&S reporting level indicator]]","v":0},{"$f":"T_DataComboFile[[#This Row],[2019/20 Main appropriation_Source]]*T_DataComboFile[[#This Row],[G&S reporting level indicator]]","v":0},{"$f":"T_DataComboFile[[#This Row],[2019/20 Adjusted appropriation_Source]]*T_DataComboFile[[#This Row],[G&S reporting level indicator]]","v":0},{"$f":"T_DataComboFile[[#This Row],[2019/20 Revised estimate_Source]]*T_DataComboFile[[#This Row],[G&S reporting level indicator]]","v":0},{"$f":"T_DataComboFile[[#This Row],[2019/20 Preliminary outcome_Source]]*T_DataComboFile[[#This Row],[G&S reporting level indicator]]","v":0},{"$f":"T_DataComboFile[[#This Row],[2020/21 Original_Source]]*T_DataComboFile[[#This Row],[G&S reporting level indicator]]","v":0},{"$f":"T_DataComboFile[[#This Row],[2020/21 SAB_Source]]*T_DataComboFile[[#This Row],[G&S reporting level indicator]]","v":0},{"$f":"T_DataComboFile[[#This Row],[2020/21 Baseline_Source]]*T_DataComboFile[[#This Row],[G&S reporting level indicator]]","v":0},{"$f":"T_DataComboFile[[#This Row],[2021/22 Baseline_Source]]*T_DataComboFile[[#This Row],[G&S reporting level indicator]]","v":0},{"$f":"T_DataComboFile[[#This Row],[2022/23 Baseline_Source]]*T_DataComboFile[[#This Row],[G&S reporting level indicator]]","v":0},{"$f":"T_DataComboFile[[#This Row],[2023/24 Baseline_Source]]*T_DataComboFile[[#This Row],[G&S reporting level indicator]]","v":0},null,null,null,null,null,null,{"$f":"T_DataComboFile[[#This Row],[2021/22 Baseline]]+T_DataComboFile[[#This Row],[2021/22 Reduction]]+T_DataComboFile[[#This Row],[2021/22 Increase]]","v":0},{"$f":"T_DataComboFile[[#This Row],[2022/23 Baseline]]+T_DataComboFile[[#This Row],[2022/23 Reduction]]+T_DataComboFile[[#This Row],[2022/23 Increase]]","v":0},{"$f":"T_DataComboFile[[#This Row],[2023/24 Baseline]]+T_DataComboFile[[#This Row],[2023/24 Reduction]]+T_DataComboFile[[#This Row],[2023/24 Increase]]","v":0}]
[null,null,"2021_22","ENE2020",36,3,2,null,70900,36,3,2,null,"070900","36|03|02",1,2,8,50,53,"01|02|08|50|53","National","Small Business Development","Integrated Cooperative Development","Cooperatives Programme Design and Support",null,"Current","Transfers and subsidies","Public corporations and private enterprises","Private enterprises","Subsidies on products and production (pe)",null,null,null,0,0,0,0,0,0,0,0,0,0,0,0,0,0,null,{"$f":"IF(T_DataComboFile[[#This Row],[G&S reporting level indicator]]=1,$AX$16,\"Not applicable\")","v":"Level 3"},{"$f":"IF(AND($AX$16=\"Level 3\",T_DataComboFile[[#This Row],[Econ3]] = \"Goods and services\"),IF(T_DataComboFile[[#This Row],[Econ4]] = T_DataComboFile[[#This Row],[Econ3]],1,0),IF(AND($AX$16=\"Level 4\",T_DataComboFile[[#This Row],[Econ4]] = \"Goods and services\"),0,1))","v":1},{"$f":"T_DataComboFile[[#This Row],[2016/17_Source]]*T_DataComboFile[[#This Row],[G&S reporting level indicator]]","v":0},{"$f":"T_DataComboFile[[#This Row],[2017/18_Source]]*T_DataComboFile[[#This Row],[G&S reporting level indicator]]","v":0},{"$f":"T_DataComboFile[[#This Row],[2018/19_Source]]*T_DataComboFile[[#This Row],[G&S reporting level indicator]]","v":0},{"$f":"T_DataComboFile[[#This Row],[2019/20 Main appropriation_Source]]*T_DataComboFile[[#This Row],[G&S reporting level indicator]]","v":0},{"$f":"T_DataComboFile[[#This Row],[2019/20 Adjusted appropriation_Source]]*T_DataComboFile[[#This Row],[G&S reporting level indicator]]","v":0},{"$f":"T_DataComboFile[[#This Row],[2019/20 Revised estimate_Source]]*T_DataComboFile[[#This Row],[G&S reporting level indicator]]","v":0},{"$f":"T_DataComboFile[[#This Row],[2019/20 Preliminary outcome_Source]]*T_DataComboFile[[#This Row],[G&S reporting level indicator]]","v":0},{"$f":"T_DataComboFile[[#This Row],[2020/21 Original_Source]]*T_DataComboFile[[#This Row],[G&S reporting level indicator]]","v":0},{"$f":"T_DataComboFile[[#This Row],[2020/21 SAB_Source]]*T_DataComboFile[[#This Row],[G&S reporting level indicator]]","v":0},{"$f":"T_DataComboFile[[#This Row],[2020/21 Baseline_Source]]*T_DataComboFile[[#This Row],[G&S reporting level indicator]]","v":0},{"$f":"T_DataComboFile[[#This Row],[2021/22 Baseline_Source]]*T_DataComboFile[[#This Row],[G&S reporting level indicator]]","v":0},{"$f":"T_DataComboFile[[#This Row],[2022/23 Baseline_Source]]*T_DataComboFile[[#This Row],[G&S reporting level indicator]]","v":0},{"$f":"T_DataComboFile[[#This Row],[2023/24 Baseline_Source]]*T_DataComboFile[[#This Row],[G&S reporting level indicator]]","v":0},null,null,null,null,null,null,{"$f":"T_DataComboFile[[#This Row],[2021/22 Baseline]]+T_DataComboFile[[#This Row],[2021/22 Reduction]]+T_DataComboFile[[#This Row],[2021/22 Increase]]","v":0},{"$f":"T_DataComboFile[[#This Row],[2022/23 Baseline]]+T_DataComboFile[[#This Row],[2022/23 Reduction]]+T_DataComboFile[[#This Row],[2022/23 Increase]]","v":0},{"$f":"T_DataComboFile[[#This Row],[2023/24 Baseline]]+T_DataComboFile[[#This Row],[2023/24 Reduction]]+T_DataComboFile[[#This Row],[2023/24 Increase]]","v":0}]
["NAT|Various institutions: Cooperatives incentive scheme","36|Other transfers to private enterprises","2021_22","ENE2020",36,3,2,17367,70901,36,3,2,17367,"070901","36|03|02",1,2,8,50,54,"01|02|08|50|54","National","Small Business Development","Integrated Cooperative Development","Cooperatives Programme Design and Support","Various institutions: Cooperatives incentive scheme","Current","Transfers and subsidies","Public corporations and private enterprises","Private enterprises","Other transfers to private enterprises","Economic development","Industrialisation and exports","NAT",63879,70695,41222,87984,87984,87984,87984,87254,63754,87254,92052,95473,99681,1,null,{"$f":"IF(T_DataComboFile[[#This Row],[G&S reporting level indicator]]=1,$AX$16,\"Not applicable\")","v":"Level 3"},{"$f":"IF(AND($AX$16=\"Level 3\",T_DataComboFile[[#This Row],[Econ3]] = \"Goods and services\"),IF(T_DataComboFile[[#This Row],[Econ4]] = T_DataComboFile[[#This Row],[Econ3]],1,0),IF(AND($AX$16=\"Level 4\",T_DataComboFile[[#This Row],[Econ4]] = \"Goods and services\"),0,1))","v":1},{"$f":"T_DataComboFile[[#This Row],[2016/17_Source]]*T_DataComboFile[[#This Row],[G&S reporting level indicator]]","v":63879},{"$f":"T_DataComboFile[[#This Row],[2017/18_Source]]*T_DataComboFile[[#This Row],[G&S reporting level indicator]]","v":70695},{"$f":"T_DataComboFile[[#This Row],[2018/19_Source]]*T_DataComboFile[[#This Row],[G&S reporting level indicator]]","v":41222},{"$f":"T_DataComboFile[[#This Row],[2019/20 Main appropriation_Source]]*T_DataComboFile[[#This Row],[G&S reporting level indicator]]","v":87984},{"$f":"T_DataComboFile[[#This Row],[2019/20 Adjusted appropriation_Source]]*T_DataComboFile[[#This Row],[G&S reporting level indicator]]","v":87984},{"$f":"T_DataComboFile[[#This Row],[2019/20 Revised estimate_Source]]*T_DataComboFile[[#This Row],[G&S reporting level indicator]]","v":87984},{"$f":"T_DataComboFile[[#This Row],[2019/20 Preliminary outcome_Source]]*T_DataComboFile[[#This Row],[G&S reporting level indicator]]","v":87984},{"$f":"T_DataComboFile[[#This Row],[2020/21 Original_Source]]*T_DataComboFile[[#This Row],[G&S reporting level indicator]]","v":87254},{"$f":"T_DataComboFile[[#This Row],[2020/21 SAB_Source]]*T_DataComboFile[[#This Row],[G&S reporting level indicator]]","v":63754},{"$f":"T_DataComboFile[[#This Row],[2020/21 Baseline_Source]]*T_DataComboFile[[#This Row],[G&S reporting level indicator]]","v":87254},{"$f":"T_DataComboFile[[#This Row],[2021/22 Baseline_Source]]*T_DataComboFile[[#This Row],[G&S reporting level indicator]]","v":92052},{"$f":"T_DataComboFile[[#This Row],[2022/23 Baseline_Source]]*T_DataComboFile[[#This Row],[G&S reporting level indicator]]","v":95473},{"$f":"T_DataComboFile[[#This Row],[2023/24 Baseline_Source]]*T_DataComboFile[[#This Row],[G&S reporting level indicator]]","v":99681},null,null,null,null,null,null,{"$f":"T_DataComboFile[[#This Row],[2021/22 Baseline]]+T_DataComboFile[[#This Row],[2021/22 Reduction]]+T_DataComboFile[[#This Row],[2021/22 Increase]]","v":92052},{"$f":"T_DataComboFile[[#This Row],[2022/23 Baseline]]+T_DataComboFile[[#This Row],[2022/23 Reduction]]+T_DataComboFile[[#This Row],[2022/23 Increase]]","v":95473},{"$f":"T_DataComboFile[[#This Row],[2023/24 Baseline]]+T_DataComboFile[[#This Row],[2023/24 Reduction]]+T_DataComboFile[[#This Row],[2023/24 Increase]]","v":99681}]
[null,null,"2021_22","ENE2020",36,3,2,null,70902,36,3,2,null,"070902","36|03|02",1,2,9,51,55,"01|02|09|51|55","National","Small Business Development","Integrated Cooperative Development","Cooperatives Programme Design and Support",null,"Current","Transfers and subsidies","Non-profit institutions","Non-profit institutions","Non-profit institutions",null,null,null,0,0,0,0,0,0,0,0,0,0,0,0,0,0,null,{"$f":"IF(T_DataComboFile[[#This Row],[G&S reporting level indicator]]=1,$AX$16,\"Not applicable\")","v":"Level 3"},{"$f":"IF(AND($AX$16=\"Level 3\",T_DataComboFile[[#This Row],[Econ3]] = \"Goods and services\"),IF(T_DataComboFile[[#This Row],[Econ4]] = T_DataComboFile[[#This Row],[Econ3]],1,0),IF(AND($AX$16=\"Level 4\",T_DataComboFile[[#This Row],[Econ4]] = \"Goods and services\"),0,1))","v":1},{"$f":"T_DataComboFile[[#This Row],[2016/17_Source]]*T_DataComboFile[[#This Row],[G&S reporting level indicator]]","v":0},{"$f":"T_DataComboFile[[#This Row],[2017/18_Source]]*T_DataComboFile[[#This Row],[G&S reporting level indicator]]","v":0},{"$f":"T_DataComboFile[[#This Row],[2018/19_Source]]*T_DataComboFile[[#This Row],[G&S reporting level indicator]]","v":0},{"$f":"T_DataComboFile[[#This Row],[2019/20 Main appropriation_Source]]*T_DataComboFile[[#This Row],[G&S reporting level indicator]]","v":0},{"$f":"T_DataComboFile[[#This Row],[2019/20 Adjusted appropriation_Source]]*T_DataComboFile[[#This Row],[G&S reporting level indicator]]","v":0},{"$f":"T_DataComboFile[[#This Row],[2019/20 Revised estimate_Source]]*T_DataComboFile[[#This Row],[G&S reporting level indicator]]","v":0},{"$f":"T_DataComboFile[[#This Row],[2019/20 Preliminary outcome_Source]]*T_DataComboFile[[#This Row],[G&S reporting level indicator]]","v":0},{"$f":"T_DataComboFile[[#This Row],[2020/21 Original_Source]]*T_DataComboFile[[#This Row],[G&S reporting level indicator]]","v":0},{"$f":"T_DataComboFile[[#This Row],[2020/21 SAB_Source]]*T_DataComboFile[[#This Row],[G&S reporting level indicator]]","v":0},{"$f":"T_DataComboFile[[#This Row],[2020/21 Baseline_Source]]*T_DataComboFile[[#This Row],[G&S reporting level indicator]]","v":0},{"$f":"T_DataComboFile[[#This Row],[2021/22 Baseline_Source]]*T_DataComboFile[[#This Row],[G&S reporting level indicator]]","v":0},{"$f":"T_DataComboFile[[#This Row],[2022/23 Baseline_Source]]*T_DataComboFile[[#This Row],[G&S reporting level indicator]]","v":0},{"$f":"T_DataComboFile[[#This Row],[2023/24 Baseline_Source]]*T_DataComboFile[[#This Row],[G&S reporting level indicator]]","v":0},null,null,null,null,null,null,{"$f":"T_DataComboFile[[#This Row],[2021/22 Baseline]]+T_DataComboFile[[#This Row],[2021/22 Reduction]]+T_DataComboFile[[#This Row],[2021/22 Increase]]","v":0},{"$f":"T_DataComboFile[[#This Row],[2022/23 Baseline]]+T_DataComboFile[[#This Row],[2022/23 Reduction]]+T_DataComboFile[[#This Row],[2022/23 Increase]]","v":0},{"$f":"T_DataComboFile[[#This Row],[2023/24 Baseline]]+T_DataComboFile[[#This Row],[2023/24 Reduction]]+T_DataComboFile[[#This Row],[2023/24 Increase]]","v":0}]
["NAT|Employee social benefits","36|Social benefits","2021_22","ENE2020",36,3,2,17368,70903,36,3,2,17368,"070903","36|03|02",1,2,10,52,56,"01|02|10|52|56","National","Small Business Development","Integrated Cooperative Development","Cooperatives Programme Design and Support","Employee social benefits","Current","Transfers and subsidies","Households","Social benefits","Social benefits","Economic development","Industrialisation and exports","NAT",0,0,5,0,0,0,0,0,0,0,0,0,0,1,null,{"$f":"IF(T_DataComboFile[[#This Row],[G&S reporting level indicator]]=1,$AX$16,\"Not applicable\")","v":"Level 3"},{"$f":"IF(AND($AX$16=\"Level 3\",T_DataComboFile[[#This Row],[Econ3]] = \"Goods and services\"),IF(T_DataComboFile[[#This Row],[Econ4]] = T_DataComboFile[[#This Row],[Econ3]],1,0),IF(AND($AX$16=\"Level 4\",T_DataComboFile[[#This Row],[Econ4]] = \"Goods and services\"),0,1))","v":1},{"$f":"T_DataComboFile[[#This Row],[2016/17_Source]]*T_DataComboFile[[#This Row],[G&S reporting level indicator]]","v":0},{"$f":"T_DataComboFile[[#This Row],[2017/18_Source]]*T_DataComboFile[[#This Row],[G&S reporting level indicator]]","v":0},{"$f":"T_DataComboFile[[#This Row],[2018/19_Source]]*T_DataComboFile[[#This Row],[G&S reporting level indicator]]","v":5},{"$f":"T_DataComboFile[[#This Row],[2019/20 Main appropriation_Source]]*T_DataComboFile[[#This Row],[G&S reporting level indicator]]","v":0},{"$f":"T_DataComboFile[[#This Row],[2019/20 Adjusted appropriation_Source]]*T_DataComboFile[[#This Row],[G&S reporting level indicator]]","v":0},{"$f":"T_DataComboFile[[#This Row],[2019/20 Revised estimate_Source]]*T_DataComboFile[[#This Row],[G&S reporting level indicator]]","v":0},{"$f":"T_DataComboFile[[#This Row],[2019/20 Preliminary outcome_Source]]*T_DataComboFile[[#This Row],[G&S reporting level indicator]]","v":0},{"$f":"T_DataComboFile[[#This Row],[2020/21 Original_Source]]*T_DataComboFile[[#This Row],[G&S reporting level indicator]]","v":0},{"$f":"T_DataComboFile[[#This Row],[2020/21 SAB_Source]]*T_DataComboFile[[#This Row],[G&S reporting level indicator]]","v":0},{"$f":"T_DataComboFile[[#This Row],[2020/21 Baseline_Source]]*T_DataComboFile[[#This Row],[G&S reporting level indicator]]","v":0},{"$f":"T_DataComboFile[[#This Row],[2021/22 Baseline_Source]]*T_DataComboFile[[#This Row],[G&S reporting level indicator]]","v":0},{"$f":"T_DataComboFile[[#This Row],[2022/23 Baseline_Source]]*T_DataComboFile[[#This Row],[G&S reporting level indicator]]","v":0},{"$f":"T_DataComboFile[[#This Row],[2023/24 Baseline_Source]]*T_DataComboFile[[#This Row],[G&S reporting level indicator]]","v":0},null,null,null,null,null,null,{"$f":"T_DataComboFile[[#This Row],[2021/22 Baseline]]+T_DataComboFile[[#This Row],[2021/22 Reduction]]+T_DataComboFile[[#This Row],[2021/22 Increase]]","v":0},{"$f":"T_DataComboFile[[#This Row],[2022/23 Baseline]]+T_DataComboFile[[#This Row],[2022/23 Reduction]]+T_DataComboFile[[#This Row],[2022/23 Increase]]","v":0},{"$f":"T_DataComboFile[[#This Row],[2023/24 Baseline]]+T_DataComboFile[[#This Row],[2023/24 Reduction]]+T_DataComboFile[[#This Row],[2023/24 Increase]]","v":0}]
[null,null,"2021_22","ENE2020",36,3,2,null,70904,36,3,2,null,"070904","36|03|02",1,2,10,53,57,"01|02|10|53|57","National","Small Business Development","Integrated Cooperative Development","Cooperatives Programme Design and Support",null,"Current","Transfers and subsidies","Households","Other transfers to households","Other transfers to households",null,null,null,0,0,0,0,0,0,0,0,0,0,0,0,0,0,null,{"$f":"IF(T_DataComboFile[[#This Row],[G&S reporting level indicator]]=1,$AX$16,\"Not applicable\")","v":"Level 3"},{"$f":"IF(AND($AX$16=\"Level 3\",T_DataComboFile[[#This Row],[Econ3]] = \"Goods and services\"),IF(T_DataComboFile[[#This Row],[Econ4]] = T_DataComboFile[[#This Row],[Econ3]],1,0),IF(AND($AX$16=\"Level 4\",T_DataComboFile[[#This Row],[Econ4]] = \"Goods and services\"),0,1))","v":1},{"$f":"T_DataComboFile[[#This Row],[2016/17_Source]]*T_DataComboFile[[#This Row],[G&S reporting level indicator]]","v":0},{"$f":"T_DataComboFile[[#This Row],[2017/18_Source]]*T_DataComboFile[[#This Row],[G&S reporting level indicator]]","v":0},{"$f":"T_DataComboFile[[#This Row],[2018/19_Source]]*T_DataComboFile[[#This Row],[G&S reporting level indicator]]","v":0},{"$f":"T_DataComboFile[[#This Row],[2019/20 Main appropriation_Source]]*T_DataComboFile[[#This Row],[G&S reporting level indicator]]","v":0},{"$f":"T_DataComboFile[[#This Row],[2019/20 Adjusted appropriation_Source]]*T_DataComboFile[[#This Row],[G&S reporting level indicator]]","v":0},{"$f":"T_DataComboFile[[#This Row],[2019/20 Revised estimate_Source]]*T_DataComboFile[[#This Row],[G&S reporting level indicator]]","v":0},{"$f":"T_DataComboFile[[#This Row],[2019/20 Preliminary outcome_Source]]*T_DataComboFile[[#This Row],[G&S reporting level indicator]]","v":0},{"$f":"T_DataComboFile[[#This Row],[2020/21 Original_Source]]*T_DataComboFile[[#This Row],[G&S reporting level indicator]]","v":0},{"$f":"T_DataComboFile[[#This Row],[2020/21 SAB_Source]]*T_DataComboFile[[#This Row],[G&S reporting level indicator]]","v":0},{"$f":"T_DataComboFile[[#This Row],[2020/21 Baseline_Source]]*T_DataComboFile[[#This Row],[G&S reporting level indicator]]","v":0},{"$f":"T_DataComboFile[[#This Row],[2021/22 Baseline_Source]]*T_DataComboFile[[#This Row],[G&S reporting level indicator]]","v":0},{"$f":"T_DataComboFile[[#This Row],[2022/23 Baseline_Source]]*T_DataComboFile[[#This Row],[G&S reporting level indicator]]","v":0},{"$f":"T_DataComboFile[[#This Row],[2023/24 Baseline_Source]]*T_DataComboFile[[#This Row],[G&S reporting level indicator]]","v":0},null,null,null,null,null,null,{"$f":"T_DataComboFile[[#This Row],[2021/22 Baseline]]+T_DataComboFile[[#This Row],[2021/22 Reduction]]+T_DataComboFile[[#This Row],[2021/22 Increase]]","v":0},{"$f":"T_DataComboFile[[#This Row],[2022/23 Baseline]]+T_DataComboFile[[#This Row],[2022/23 Reduction]]+T_DataComboFile[[#This Row],[2022/23 Increase]]","v":0},{"$f":"T_DataComboFile[[#This Row],[2023/24 Baseline]]+T_DataComboFile[[#This Row],[2023/24 Reduction]]+T_DataComboFile[[#This Row],[2023/24 Increase]]","v":0}]
[null,null,"2021_22","ENE2020",36,3,2,null,70905,36,3,2,null,"070905","36|03|02",2,2,4,43,43,"02|02|04|43|43","National","Small Business Development","Integrated Cooperative Development","Cooperatives Programme Design and Support",null,"Capital","Transfers and subsidies","Provinces and municipalities","Provinces","Provincial Revenue Funds",null,null,null,0,0,0,0,0,0,0,0,0,0,0,0,0,0,null,{"$f":"IF(T_DataComboFile[[#This Row],[G&S reporting level indicator]]=1,$AX$16,\"Not applicable\")","v":"Level 3"},{"$f":"IF(AND($AX$16=\"Level 3\",T_DataComboFile[[#This Row],[Econ3]] = \"Goods and services\"),IF(T_DataComboFile[[#This Row],[Econ4]] = T_DataComboFile[[#This Row],[Econ3]],1,0),IF(AND($AX$16=\"Level 4\",T_DataComboFile[[#This Row],[Econ4]] = \"Goods and services\"),0,1))","v":1},{"$f":"T_DataComboFile[[#This Row],[2016/17_Source]]*T_DataComboFile[[#This Row],[G&S reporting level indicator]]","v":0},{"$f":"T_DataComboFile[[#This Row],[2017/18_Source]]*T_DataComboFile[[#This Row],[G&S reporting level indicator]]","v":0},{"$f":"T_DataComboFile[[#This Row],[2018/19_Source]]*T_DataComboFile[[#This Row],[G&S reporting level indicator]]","v":0},{"$f":"T_DataComboFile[[#This Row],[2019/20 Main appropriation_Source]]*T_DataComboFile[[#This Row],[G&S reporting level indicator]]","v":0},{"$f":"T_DataComboFile[[#This Row],[2019/20 Adjusted appropriation_Source]]*T_DataComboFile[[#This Row],[G&S reporting level indicator]]","v":0},{"$f":"T_DataComboFile[[#This Row],[2019/20 Revised estimate_Source]]*T_DataComboFile[[#This Row],[G&S reporting level indicator]]","v":0},{"$f":"T_DataComboFile[[#This Row],[2019/20 Preliminary outcome_Source]]*T_DataComboFile[[#This Row],[G&S reporting level indicator]]","v":0},{"$f":"T_DataComboFile[[#This Row],[2020/21 Original_Source]]*T_DataComboFile[[#This Row],[G&S reporting level indicator]]","v":0},{"$f":"T_DataComboFile[[#This Row],[2020/21 SAB_Source]]*T_DataComboFile[[#This Row],[G&S reporting level indicator]]","v":0},{"$f":"T_DataComboFile[[#This Row],[2020/21 Baseline_Source]]*T_DataComboFile[[#This Row],[G&S reporting level indicator]]","v":0},{"$f":"T_DataComboFile[[#This Row],[2021/22 Baseline_Source]]*T_DataComboFile[[#This Row],[G&S reporting level indicator]]","v":0},{"$f":"T_DataComboFile[[#This Row],[2022/23 Baseline_Source]]*T_DataComboFile[[#This Row],[G&S reporting level indicator]]","v":0},{"$f":"T_DataComboFile[[#This Row],[2023/24 Baseline_Source]]*T_DataComboFile[[#This Row],[G&S reporting level indicator]]","v":0},null,null,null,null,null,null,{"$f":"T_DataComboFile[[#This Row],[2021/22 Baseline]]+T_DataComboFile[[#This Row],[2021/22 Reduction]]+T_DataComboFile[[#This Row],[2021/22 Increase]]","v":0},{"$f":"T_DataComboFile[[#This Row],[2022/23 Baseline]]+T_DataComboFile[[#This Row],[2022/23 Reduction]]+T_DataComboFile[[#This Row],[2022/23 Increase]]","v":0},{"$f":"T_DataComboFile[[#This Row],[2023/24 Baseline]]+T_DataComboFile[[#This Row],[2023/24 Reduction]]+T_DataComboFile[[#This Row],[2023/24 Increase]]","v":0}]
[null,null,"2021_22","ENE2020",36,3,2,null,70906,36,3,2,null,"070906","36|03|02",2,2,4,44,45,"02|02|04|44|45","National","Small Business Development","Integrated Cooperative Development","Cooperatives Programme Design and Support",null,"Capital","Transfers and subsidies","Provinces and municipalities","Municipalities","Municipal bank accounts",null,null,null,0,0,0,0,0,0,0,0,0,0,0,0,0,0,null,{"$f":"IF(T_DataComboFile[[#This Row],[G&S reporting level indicator]]=1,$AX$16,\"Not applicable\")","v":"Level 3"},{"$f":"IF(AND($AX$16=\"Level 3\",T_DataComboFile[[#This Row],[Econ3]] = \"Goods and services\"),IF(T_DataComboFile[[#This Row],[Econ4]] = T_DataComboFile[[#This Row],[Econ3]],1,0),IF(AND($AX$16=\"Level 4\",T_DataComboFile[[#This Row],[Econ4]] = \"Goods and services\"),0,1))","v":1},{"$f":"T_DataComboFile[[#This Row],[2016/17_Source]]*T_DataComboFile[[#This Row],[G&S reporting level indicator]]","v":0},{"$f":"T_DataComboFile[[#This Row],[2017/18_Source]]*T_DataComboFile[[#This Row],[G&S reporting level indicator]]","v":0},{"$f":"T_DataComboFile[[#This Row],[2018/19_Source]]*T_DataComboFile[[#This Row],[G&S reporting level indicator]]","v":0},{"$f":"T_DataComboFile[[#This Row],[2019/20 Main appropriation_Source]]*T_DataComboFile[[#This Row],[G&S reporting level indicator]]","v":0},{"$f":"T_DataComboFile[[#This Row],[2019/20 Adjusted appropriation_Source]]*T_DataComboFile[[#This Row],[G&S reporting level indicator]]","v":0},{"$f":"T_DataComboFile[[#This Row],[2019/20 Revised estimate_Source]]*T_DataComboFile[[#This Row],[G&S reporting level indicator]]","v":0},{"$f":"T_DataComboFile[[#This Row],[2019/20 Preliminary outcome_Source]]*T_DataComboFile[[#This Row],[G&S reporting level indicator]]","v":0},{"$f":"T_DataComboFile[[#This Row],[2020/21 Original_Source]]*T_DataComboFile[[#This Row],[G&S reporting level indicator]]","v":0},{"$f":"T_DataComboFile[[#This Row],[2020/21 SAB_Source]]*T_DataComboFile[[#This Row],[G&S reporting level indicator]]","v":0},{"$f":"T_DataComboFile[[#This Row],[2020/21 Baseline_Source]]*T_DataComboFile[[#This Row],[G&S reporting level indicator]]","v":0},{"$f":"T_DataComboFile[[#This Row],[2021/22 Baseline_Source]]*T_DataComboFile[[#This Row],[G&S reporting level indicator]]","v":0},{"$f":"T_DataComboFile[[#This Row],[2022/23 Baseline_Source]]*T_DataComboFile[[#This Row],[G&S reporting level indicator]]","v":0},{"$f":"T_DataComboFile[[#This Row],[2023/24 Baseline_Source]]*T_DataComboFile[[#This Row],[G&S reporting level indicator]]","v":0},null,null,null,null,null,null,{"$f":"T_DataComboFile[[#This Row],[2021/22 Baseline]]+T_DataComboFile[[#This Row],[2021/22 Reduction]]+T_DataComboFile[[#This Row],[2021/22 Increase]]","v":0},{"$f":"T_DataComboFile[[#This Row],[2022/23 Baseline]]+T_DataComboFile[[#This Row],[2022/23 Reduction]]+T_DataComboFile[[#This Row],[2022/23 Increase]]","v":0},{"$f":"T_DataComboFile[[#This Row],[2023/24 Baseline]]+T_DataComboFile[[#This Row],[2023/24 Reduction]]+T_DataComboFile[[#This Row],[2023/24 Increase]]","v":0}]
[null,null,"2021_22","ENE2020",36,3,2,null,70907,36,3,2,null,"070907","36|03|02",2,2,5,46,48,"02|02|05|46|48","National","Small Business Development","Integrated Cooperative Development","Cooperatives Programme Design and Support",null,"Capital","Transfers and subsidies","Departmental agencies and accounts","Departmental agencies (non-business entities)","Departmental agencies (non-business entities)",null,null,null,0,0,0,0,0,0,0,0,0,0,0,0,0,0,null,{"$f":"IF(T_DataComboFile[[#This Row],[G&S reporting level indicator]]=1,$AX$16,\"Not applicable\")","v":"Level 3"},{"$f":"IF(AND($AX$16=\"Level 3\",T_DataComboFile[[#This Row],[Econ3]] = \"Goods and services\"),IF(T_DataComboFile[[#This Row],[Econ4]] = T_DataComboFile[[#This Row],[Econ3]],1,0),IF(AND($AX$16=\"Level 4\",T_DataComboFile[[#This Row],[Econ4]] = \"Goods and services\"),0,1))","v":1},{"$f":"T_DataComboFile[[#This Row],[2016/17_Source]]*T_DataComboFile[[#This Row],[G&S reporting level indicator]]","v":0},{"$f":"T_DataComboFile[[#This Row],[2017/18_Source]]*T_DataComboFile[[#This Row],[G&S reporting level indicator]]","v":0},{"$f":"T_DataComboFile[[#This Row],[2018/19_Source]]*T_DataComboFile[[#This Row],[G&S reporting level indicator]]","v":0},{"$f":"T_DataComboFile[[#This Row],[2019/20 Main appropriation_Source]]*T_DataComboFile[[#This Row],[G&S reporting level indicator]]","v":0},{"$f":"T_DataComboFile[[#This Row],[2019/20 Adjusted appropriation_Source]]*T_DataComboFile[[#This Row],[G&S reporting level indicator]]","v":0},{"$f":"T_DataComboFile[[#This Row],[2019/20 Revised estimate_Source]]*T_DataComboFile[[#This Row],[G&S reporting level indicator]]","v":0},{"$f":"T_DataComboFile[[#This Row],[2019/20 Preliminary outcome_Source]]*T_DataComboFile[[#This Row],[G&S reporting level indicator]]","v":0},{"$f":"T_DataComboFile[[#This Row],[2020/21 Original_Source]]*T_DataComboFile[[#This Row],[G&S reporting level indicator]]","v":0},{"$f":"T_DataComboFile[[#This Row],[2020/21 SAB_Source]]*T_DataComboFile[[#This Row],[G&S reporting level indicator]]","v":0},{"$f":"T_DataComboFile[[#This Row],[2020/21 Baseline_Source]]*T_DataComboFile[[#This Row],[G&S reporting level indicator]]","v":0},{"$f":"T_DataComboFile[[#This Row],[2021/22 Baseline_Source]]*T_DataComboFile[[#This Row],[G&S reporting level indicator]]","v":0},{"$f":"T_DataComboFile[[#This Row],[2022/23 Baseline_Source]]*T_DataComboFile[[#This Row],[G&S reporting level indicator]]","v":0},{"$f":"T_DataComboFile[[#This Row],[2023/24 Baseline_Source]]*T_DataComboFile[[#This Row],[G&S reporting level indicator]]","v":0},null,null,null,null,null,null,{"$f":"T_DataComboFile[[#This Row],[2021/22 Baseline]]+T_DataComboFile[[#This Row],[2021/22 Reduction]]+T_DataComboFile[[#This Row],[2021/22 Increase]]","v":0},{"$f":"T_DataComboFile[[#This Row],[2022/23 Baseline]]+T_DataComboFile[[#This Row],[2022/23 Reduction]]+T_DataComboFile[[#This Row],[2022/23 Increase]]","v":0},{"$f":"T_DataComboFile[[#This Row],[2023/24 Baseline]]+T_DataComboFile[[#This Row],[2023/24 Reduction]]+T_DataComboFile[[#This Row],[2023/24 Increase]]","v":0}]
[null,null,"2021_22","ENE2020",36,3,2,null,70908,36,3,2,null,"070908","36|03|02",2,2,6,47,49,"02|02|06|47|49","National","Small Business Development","Integrated Cooperative Development","Cooperatives Programme Design and Support",null,"Capital","Transfers and subsidies","Higher education institutions","Higher education institutions","Higher education institutions",null,null,null,0,0,0,0,0,0,0,0,0,0,0,0,0,0,null,{"$f":"IF(T_DataComboFile[[#This Row],[G&S reporting level indicator]]=1,$AX$16,\"Not applicable\")","v":"Level 3"},{"$f":"IF(AND($AX$16=\"Level 3\",T_DataComboFile[[#This Row],[Econ3]] = \"Goods and services\"),IF(T_DataComboFile[[#This Row],[Econ4]] = T_DataComboFile[[#This Row],[Econ3]],1,0),IF(AND($AX$16=\"Level 4\",T_DataComboFile[[#This Row],[Econ4]] = \"Goods and services\"),0,1))","v":1},{"$f":"T_DataComboFile[[#This Row],[2016/17_Source]]*T_DataComboFile[[#This Row],[G&S reporting level indicator]]","v":0},{"$f":"T_DataComboFile[[#This Row],[2017/18_Source]]*T_DataComboFile[[#This Row],[G&S reporting level indicator]]","v":0},{"$f":"T_DataComboFile[[#This Row],[2018/19_Source]]*T_DataComboFile[[#This Row],[G&S reporting level indicator]]","v":0},{"$f":"T_DataComboFile[[#This Row],[2019/20 Main appropriation_Source]]*T_DataComboFile[[#This Row],[G&S reporting level indicator]]","v":0},{"$f":"T_DataComboFile[[#This Row],[2019/20 Adjusted appropriation_Source]]*T_DataComboFile[[#This Row],[G&S reporting level indicator]]","v":0},{"$f":"T_DataComboFile[[#This Row],[2019/20 Revised estimate_Source]]*T_DataComboFile[[#This Row],[G&S reporting level indicator]]","v":0},{"$f":"T_DataComboFile[[#This Row],[2019/20 Preliminary outcome_Source]]*T_DataComboFile[[#This Row],[G&S reporting level indicator]]","v":0},{"$f":"T_DataComboFile[[#This Row],[2020/21 Original_Source]]*T_DataComboFile[[#This Row],[G&S reporting level indicator]]","v":0},{"$f":"T_DataComboFile[[#This Row],[2020/21 SAB_Source]]*T_DataComboFile[[#This Row],[G&S reporting level indicator]]","v":0},{"$f":"T_DataComboFile[[#This Row],[2020/21 Baseline_Source]]*T_DataComboFile[[#This Row],[G&S reporting level indicator]]","v":0},{"$f":"T_DataComboFile[[#This Row],[2021/22 Baseline_Source]]*T_DataComboFile[[#This Row],[G&S reporting level indicator]]","v":0},{"$f":"T_DataComboFile[[#This Row],[2022/23 Baseline_Source]]*T_DataComboFile[[#This Row],[G&S reporting level indicator]]","v":0},{"$f":"T_DataComboFile[[#This Row],[2023/24 Baseline_Source]]*T_DataComboFile[[#This Row],[G&S reporting level indicator]]","v":0},null,null,null,null,null,null,{"$f":"T_DataComboFile[[#This Row],[2021/22 Baseline]]+T_DataComboFile[[#This Row],[2021/22 Reduction]]+T_DataComboFile[[#This Row],[2021/22 Increase]]","v":0},{"$f":"T_DataComboFile[[#This Row],[2022/23 Baseline]]+T_DataComboFile[[#This Row],[2022/23 Reduction]]+T_DataComboFile[[#This Row],[2022/23 Increase]]","v":0},{"$f":"T_DataComboFile[[#This Row],[2023/24 Baseline]]+T_DataComboFile[[#This Row],[2023/24 Reduction]]+T_DataComboFile[[#This Row],[2023/24 Increase]]","v":0}]
[null,null,"2021_22","ENE2020",36,3,2,null,70909,36,3,2,null,"070909","36|03|02",2,2,7,48,50,"02|02|07|48|50","National","Small Business Development","Integrated Cooperative Development","Cooperatives Programme Design and Support",null,"Capital","Transfers and subsidies","Foreign governments and international organisations","Foreign governments and international organisations","Foreign governments and international organisations",null,null,null,0,0,0,0,0,0,0,0,0,0,0,0,0,0,null,{"$f":"IF(T_DataComboFile[[#This Row],[G&S reporting level indicator]]=1,$AX$16,\"Not applicable\")","v":"Level 3"},{"$f":"IF(AND($AX$16=\"Level 3\",T_DataComboFile[[#This Row],[Econ3]] = \"Goods and services\"),IF(T_DataComboFile[[#This Row],[Econ4]] = T_DataComboFile[[#This Row],[Econ3]],1,0),IF(AND($AX$16=\"Level 4\",T_DataComboFile[[#This Row],[Econ4]] = \"Goods and services\"),0,1))","v":1},{"$f":"T_DataComboFile[[#This Row],[2016/17_Source]]*T_DataComboFile[[#This Row],[G&S reporting level indicator]]","v":0},{"$f":"T_DataComboFile[[#This Row],[2017/18_Source]]*T_DataComboFile[[#This Row],[G&S reporting level indicator]]","v":0},{"$f":"T_DataComboFile[[#This Row],[2018/19_Source]]*T_DataComboFile[[#This Row],[G&S reporting level indicator]]","v":0},{"$f":"T_DataComboFile[[#This Row],[2019/20 Main appropriation_Source]]*T_DataComboFile[[#This Row],[G&S reporting level indicator]]","v":0},{"$f":"T_DataComboFile[[#This Row],[2019/20 Adjusted appropriation_Source]]*T_DataComboFile[[#This Row],[G&S reporting level indicator]]","v":0},{"$f":"T_DataComboFile[[#This Row],[2019/20 Revised estimate_Source]]*T_DataComboFile[[#This Row],[G&S reporting level indicator]]","v":0},{"$f":"T_DataComboFile[[#This Row],[2019/20 Preliminary outcome_Source]]*T_DataComboFile[[#This Row],[G&S reporting level indicator]]","v":0},{"$f":"T_DataComboFile[[#This Row],[2020/21 Original_Source]]*T_DataComboFile[[#This Row],[G&S reporting level indicator]]","v":0},{"$f":"T_DataComboFile[[#This Row],[2020/21 SAB_Source]]*T_DataComboFile[[#This Row],[G&S reporting level indicator]]","v":0},{"$f":"T_DataComboFile[[#This Row],[2020/21 Baseline_Source]]*T_DataComboFile[[#This Row],[G&S reporting level indicator]]","v":0},{"$f":"T_DataComboFile[[#This Row],[2021/22 Baseline_Source]]*T_DataComboFile[[#This Row],[G&S reporting level indicator]]","v":0},{"$f":"T_DataComboFile[[#This Row],[2022/23 Baseline_Source]]*T_DataComboFile[[#This Row],[G&S reporting level indicator]]","v":0},{"$f":"T_DataComboFile[[#This Row],[2023/24 Baseline_Source]]*T_DataComboFile[[#This Row],[G&S reporting level indicator]]","v":0},null,null,null,null,null,null,{"$f":"T_DataComboFile[[#This Row],[2021/22 Baseline]]+T_DataComboFile[[#This Row],[2021/22 Reduction]]+T_DataComboFile[[#This Row],[2021/22 Increase]]","v":0},{"$f":"T_DataComboFile[[#This Row],[2022/23 Baseline]]+T_DataComboFile[[#This Row],[2022/23 Reduction]]+T_DataComboFile[[#This Row],[2022/23 Increase]]","v":0},{"$f":"T_DataComboFile[[#This Row],[2023/24 Baseline]]+T_DataComboFile[[#This Row],[2023/24 Reduction]]+T_DataComboFile[[#This Row],[2023/24 Increase]]","v":0}]
[null,null,"2021_22","ENE2020",36,3,2,null,70910,36,3,2,null,"070910","36|03|02",2,2,8,49,51,"02|02|08|49|51","National","Small Business Development","Integrated Cooperative Development","Cooperatives Programme Design and Support",null,"Capital","Transfers and subsidies","Public corporations and private enterprises","Public corporations","Subsidies on products and production (pc)",null,null,null,0,0,0,0,0,0,0,0,0,0,0,0,0,0,null,{"$f":"IF(T_DataComboFile[[#This Row],[G&S reporting level indicator]]=1,$AX$16,\"Not applicable\")","v":"Level 3"},{"$f":"IF(AND($AX$16=\"Level 3\",T_DataComboFile[[#This Row],[Econ3]] = \"Goods and services\"),IF(T_DataComboFile[[#This Row],[Econ4]] = T_DataComboFile[[#This Row],[Econ3]],1,0),IF(AND($AX$16=\"Level 4\",T_DataComboFile[[#This Row],[Econ4]] = \"Goods and services\"),0,1))","v":1},{"$f":"T_DataComboFile[[#This Row],[2016/17_Source]]*T_DataComboFile[[#This Row],[G&S reporting level indicator]]","v":0},{"$f":"T_DataComboFile[[#This Row],[2017/18_Source]]*T_DataComboFile[[#This Row],[G&S reporting level indicator]]","v":0},{"$f":"T_DataComboFile[[#This Row],[2018/19_Source]]*T_DataComboFile[[#This Row],[G&S reporting level indicator]]","v":0},{"$f":"T_DataComboFile[[#This Row],[2019/20 Main appropriation_Source]]*T_DataComboFile[[#This Row],[G&S reporting level indicator]]","v":0},{"$f":"T_DataComboFile[[#This Row],[2019/20 Adjusted appropriation_Source]]*T_DataComboFile[[#This Row],[G&S reporting level indicator]]","v":0},{"$f":"T_DataComboFile[[#This Row],[2019/20 Revised estimate_Source]]*T_DataComboFile[[#This Row],[G&S reporting level indicator]]","v":0},{"$f":"T_DataComboFile[[#This Row],[2019/20 Preliminary outcome_Source]]*T_DataComboFile[[#This Row],[G&S reporting level indicator]]","v":0},{"$f":"T_DataComboFile[[#This Row],[2020/21 Original_Source]]*T_DataComboFile[[#This Row],[G&S reporting level indicator]]","v":0},{"$f":"T_DataComboFile[[#This Row],[2020/21 SAB_Source]]*T_DataComboFile[[#This Row],[G&S reporting level indicator]]","v":0},{"$f":"T_DataComboFile[[#This Row],[2020/21 Baseline_Source]]*T_DataComboFile[[#This Row],[G&S reporting level indicator]]","v":0},{"$f":"T_DataComboFile[[#This Row],[2021/22 Baseline_Source]]*T_DataComboFile[[#This Row],[G&S reporting level indicator]]","v":0},{"$f":"T_DataComboFile[[#This Row],[2022/23 Baseline_Source]]*T_DataComboFile[[#This Row],[G&S reporting level indicator]]","v":0},{"$f":"T_DataComboFile[[#This Row],[2023/24 Baseline_Source]]*T_DataComboFile[[#This Row],[G&S reporting level indicator]]","v":0},null,null,null,null,null,null,{"$f":"T_DataComboFile[[#This Row],[2021/22 Baseline]]+T_DataComboFile[[#This Row],[2021/22 Reduction]]+T_DataComboFile[[#This Row],[2021/22 Increase]]","v":0},{"$f":"T_DataComboFile[[#This Row],[2022/23 Baseline]]+T_DataComboFile[[#This Row],[2022/23 Reduction]]+T_DataComboFile[[#This Row],[2022/23 Increase]]","v":0},{"$f":"T_DataComboFile[[#This Row],[2023/24 Baseline]]+T_DataComboFile[[#This Row],[2023/24 Reduction]]+T_DataComboFile[[#This Row],[2023/24 Increase]]","v":0}]
[null,null,"2021_22","ENE2020",36,3,2,null,70911,36,3,2,null,"070911","36|03|02",2,2,8,49,52,"02|02|08|49|52","National","Small Business Development","Integrated Cooperative Development","Cooperatives Programme Design and Support",null,"Capital","Transfers and subsidies","Public corporations and private enterprises","Public corporations","Other transfers to public corporations",null,null,null,0,0,0,0,0,0,0,0,0,0,0,0,0,0,null,{"$f":"IF(T_DataComboFile[[#This Row],[G&S reporting level indicator]]=1,$AX$16,\"Not applicable\")","v":"Level 3"},{"$f":"IF(AND($AX$16=\"Level 3\",T_DataComboFile[[#This Row],[Econ3]] = \"Goods and services\"),IF(T_DataComboFile[[#This Row],[Econ4]] = T_DataComboFile[[#This Row],[Econ3]],1,0),IF(AND($AX$16=\"Level 4\",T_DataComboFile[[#This Row],[Econ4]] = \"Goods and services\"),0,1))","v":1},{"$f":"T_DataComboFile[[#This Row],[2016/17_Source]]*T_DataComboFile[[#This Row],[G&S reporting level indicator]]","v":0},{"$f":"T_DataComboFile[[#This Row],[2017/18_Source]]*T_DataComboFile[[#This Row],[G&S reporting level indicator]]","v":0},{"$f":"T_DataComboFile[[#This Row],[2018/19_Source]]*T_DataComboFile[[#This Row],[G&S reporting level indicator]]","v":0},{"$f":"T_DataComboFile[[#This Row],[2019/20 Main appropriation_Source]]*T_DataComboFile[[#This Row],[G&S reporting level indicator]]","v":0},{"$f":"T_DataComboFile[[#This Row],[2019/20 Adjusted appropriation_Source]]*T_DataComboFile[[#This Row],[G&S reporting level indicator]]","v":0},{"$f":"T_DataComboFile[[#This Row],[2019/20 Revised estimate_Source]]*T_DataComboFile[[#This Row],[G&S reporting level indicator]]","v":0},{"$f":"T_DataComboFile[[#This Row],[2019/20 Preliminary outcome_Source]]*T_DataComboFile[[#This Row],[G&S reporting level indicator]]","v":0},{"$f":"T_DataComboFile[[#This Row],[2020/21 Original_Source]]*T_DataComboFile[[#This Row],[G&S reporting level indicator]]","v":0},{"$f":"T_DataComboFile[[#This Row],[2020/21 SAB_Source]]*T_DataComboFile[[#This Row],[G&S reporting level indicator]]","v":0},{"$f":"T_DataComboFile[[#This Row],[2020/21 Baseline_Source]]*T_DataComboFile[[#This Row],[G&S reporting level indicator]]","v":0},{"$f":"T_DataComboFile[[#This Row],[2021/22 Baseline_Source]]*T_DataComboFile[[#This Row],[G&S reporting level indicator]]","v":0},{"$f":"T_DataComboFile[[#This Row],[2022/23 Baseline_Source]]*T_DataComboFile[[#This Row],[G&S reporting level indicator]]","v":0},{"$f":"T_DataComboFile[[#This Row],[2023/24 Baseline_Source]]*T_DataComboFile[[#This Row],[G&S reporting level indicator]]","v":0},null,null,null,null,null,null,{"$f":"T_DataComboFile[[#This Row],[2021/22 Baseline]]+T_DataComboFile[[#This Row],[2021/22 Reduction]]+T_DataComboFile[[#This Row],[2021/22 Increase]]","v":0},{"$f":"T_DataComboFile[[#This Row],[2022/23 Baseline]]+T_DataComboFile[[#This Row],[2022/23 Reduction]]+T_DataComboFile[[#This Row],[2022/23 Increase]]","v":0},{"$f":"T_DataComboFile[[#This Row],[2023/24 Baseline]]+T_DataComboFile[[#This Row],[2023/24 Reduction]]+T_DataComboFile[[#This Row],[2023/24 Increase]]","v":0}]
[null,null,"2021_22","ENE2020",36,3,2,null,70912,36,3,2,null,"070912","36|03|02",2,2,8,50,54,"02|02|08|50|54","National","Small Business Development","Integrated Cooperative Development","Cooperatives Programme Design and Support",null,"Capital","Transfers and subsidies","Public corporations and private enterprises","Private enterprises","Other transfers to private enterprises",null,null,null,0,0,0,0,0,0,0,0,0,0,0,0,0,0,null,{"$f":"IF(T_DataComboFile[[#This Row],[G&S reporting level indicator]]=1,$AX$16,\"Not applicable\")","v":"Level 3"},{"$f":"IF(AND($AX$16=\"Level 3\",T_DataComboFile[[#This Row],[Econ3]] = \"Goods and services\"),IF(T_DataComboFile[[#This Row],[Econ4]] = T_DataComboFile[[#This Row],[Econ3]],1,0),IF(AND($AX$16=\"Level 4\",T_DataComboFile[[#This Row],[Econ4]] = \"Goods and services\"),0,1))","v":1},{"$f":"T_DataComboFile[[#This Row],[2016/17_Source]]*T_DataComboFile[[#This Row],[G&S reporting level indicator]]","v":0},{"$f":"T_DataComboFile[[#This Row],[2017/18_Source]]*T_DataComboFile[[#This Row],[G&S reporting level indicator]]","v":0},{"$f":"T_DataComboFile[[#This Row],[2018/19_Source]]*T_DataComboFile[[#This Row],[G&S reporting level indicator]]","v":0},{"$f":"T_DataComboFile[[#This Row],[2019/20 Main appropriation_Source]]*T_DataComboFile[[#This Row],[G&S reporting level indicator]]","v":0},{"$f":"T_DataComboFile[[#This Row],[2019/20 Adjusted appropriation_Source]]*T_DataComboFile[[#This Row],[G&S reporting level indicator]]","v":0},{"$f":"T_DataComboFile[[#This Row],[2019/20 Revised estimate_Source]]*T_DataComboFile[[#This Row],[G&S reporting level indicator]]","v":0},{"$f":"T_DataComboFile[[#This Row],[2019/20 Preliminary outcome_Source]]*T_DataComboFile[[#This Row],[G&S reporting level indicator]]","v":0},{"$f":"T_DataComboFile[[#This Row],[2020/21 Original_Source]]*T_DataComboFile[[#This Row],[G&S reporting level indicator]]","v":0},{"$f":"T_DataComboFile[[#This Row],[2020/21 SAB_Source]]*T_DataComboFile[[#This Row],[G&S reporting level indicator]]","v":0},{"$f":"T_DataComboFile[[#This Row],[2020/21 Baseline_Source]]*T_DataComboFile[[#This Row],[G&S reporting level indicator]]","v":0},{"$f":"T_DataComboFile[[#This Row],[2021/22 Baseline_Source]]*T_DataComboFile[[#This Row],[G&S reporting level indicator]]","v":0},{"$f":"T_DataComboFile[[#This Row],[2022/23 Baseline_Source]]*T_DataComboFile[[#This Row],[G&S reporting level indicator]]","v":0},{"$f":"T_DataComboFile[[#This Row],[2023/24 Baseline_Source]]*T_DataComboFile[[#This Row],[G&S reporting level indicator]]","v":0},null,null,null,null,null,null,{"$f":"T_DataComboFile[[#This Row],[2021/22 Baseline]]+T_DataComboFile[[#This Row],[2021/22 Reduction]]+T_DataComboFile[[#This Row],[2021/22 Increase]]","v":0},{"$f":"T_DataComboFile[[#This Row],[2022/23 Baseline]]+T_DataComboFile[[#This Row],[2022/23 Reduction]]+T_DataComboFile[[#This Row],[2022/23 Increase]]","v":0},{"$f":"T_DataComboFile[[#This Row],[2023/24 Baseline]]+T_DataComboFile[[#This Row],[2023/24 Reduction]]+T_DataComboFile[[#This Row],[2023/24 Increase]]","v":0}]
[null,null,"2021_22","ENE2020",36,3,2,null,70913,36,3,2,null,"070913","36|03|02",2,2,9,51,55,"02|02|09|51|55","National","Small Business Development","Integrated Cooperative Development","Cooperatives Programme Design and Support",null,"Capital","Transfers and subsidies","Non-profit institutions","Non-profit institutions","Non-profit institutions",null,null,null,0,0,0,0,0,0,0,0,0,0,0,0,0,0,null,{"$f":"IF(T_DataComboFile[[#This Row],[G&S reporting level indicator]]=1,$AX$16,\"Not applicable\")","v":"Level 3"},{"$f":"IF(AND($AX$16=\"Level 3\",T_DataComboFile[[#This Row],[Econ3]] = \"Goods and services\"),IF(T_DataComboFile[[#This Row],[Econ4]] = T_DataComboFile[[#This Row],[Econ3]],1,0),IF(AND($AX$16=\"Level 4\",T_DataComboFile[[#This Row],[Econ4]] = \"Goods and services\"),0,1))","v":1},{"$f":"T_DataComboFile[[#This Row],[2016/17_Source]]*T_DataComboFile[[#This Row],[G&S reporting level indicator]]","v":0},{"$f":"T_DataComboFile[[#This Row],[2017/18_Source]]*T_DataComboFile[[#This Row],[G&S reporting level indicator]]","v":0},{"$f":"T_DataComboFile[[#This Row],[2018/19_Source]]*T_DataComboFile[[#This Row],[G&S reporting level indicator]]","v":0},{"$f":"T_DataComboFile[[#This Row],[2019/20 Main appropriation_Source]]*T_DataComboFile[[#This Row],[G&S reporting level indicator]]","v":0},{"$f":"T_DataComboFile[[#This Row],[2019/20 Adjusted appropriation_Source]]*T_DataComboFile[[#This Row],[G&S reporting level indicator]]","v":0},{"$f":"T_DataComboFile[[#This Row],[2019/20 Revised estimate_Source]]*T_DataComboFile[[#This Row],[G&S reporting level indicator]]","v":0},{"$f":"T_DataComboFile[[#This Row],[2019/20 Preliminary outcome_Source]]*T_DataComboFile[[#This Row],[G&S reporting level indicator]]","v":0},{"$f":"T_DataComboFile[[#This Row],[2020/21 Original_Source]]*T_DataComboFile[[#This Row],[G&S reporting level indicator]]","v":0},{"$f":"T_DataComboFile[[#This Row],[2020/21 SAB_Source]]*T_DataComboFile[[#This Row],[G&S reporting level indicator]]","v":0},{"$f":"T_DataComboFile[[#This Row],[2020/21 Baseline_Source]]*T_DataComboFile[[#This Row],[G&S reporting level indicator]]","v":0},{"$f":"T_DataComboFile[[#This Row],[2021/22 Baseline_Source]]*T_DataComboFile[[#This Row],[G&S reporting level indicator]]","v":0},{"$f":"T_DataComboFile[[#This Row],[2022/23 Baseline_Source]]*T_DataComboFile[[#This Row],[G&S reporting level indicator]]","v":0},{"$f":"T_DataComboFile[[#This Row],[2023/24 Baseline_Source]]*T_DataComboFile[[#This Row],[G&S reporting level indicator]]","v":0},null,null,null,null,null,null,{"$f":"T_DataComboFile[[#This Row],[2021/22 Baseline]]+T_DataComboFile[[#This Row],[2021/22 Reduction]]+T_DataComboFile[[#This Row],[2021/22 Increase]]","v":0},{"$f":"T_DataComboFile[[#This Row],[2022/23 Baseline]]+T_DataComboFile[[#This Row],[2022/23 Reduction]]+T_DataComboFile[[#This Row],[2022/23 Increase]]","v":0},{"$f":"T_DataComboFile[[#This Row],[2023/24 Baseline]]+T_DataComboFile[[#This Row],[2023/24 Reduction]]+T_DataComboFile[[#This Row],[2023/24 Increase]]","v":0}]
[null,null,"2021_22","ENE2020",36,3,2,null,70914,36,3,2,null,"070914","36|03|02",2,2,10,53,57,"02|02|10|53|57","National","Small Business Development","Integrated Cooperative Development","Cooperatives Programme Design and Support",null,"Capital","Transfers and subsidies","Households","Other transfers to households","Other transfers to households",null,null,null,0,0,0,0,0,0,0,0,0,0,0,0,0,0,null,{"$f":"IF(T_DataComboFile[[#This Row],[G&S reporting level indicator]]=1,$AX$16,\"Not applicable\")","v":"Level 3"},{"$f":"IF(AND($AX$16=\"Level 3\",T_DataComboFile[[#This Row],[Econ3]] = \"Goods and services\"),IF(T_DataComboFile[[#This Row],[Econ4]] = T_DataComboFile[[#This Row],[Econ3]],1,0),IF(AND($AX$16=\"Level 4\",T_DataComboFile[[#This Row],[Econ4]] = \"Goods and services\"),0,1))","v":1},{"$f":"T_DataComboFile[[#This Row],[2016/17_Source]]*T_DataComboFile[[#This Row],[G&S reporting level indicator]]","v":0},{"$f":"T_DataComboFile[[#This Row],[2017/18_Source]]*T_DataComboFile[[#This Row],[G&S reporting level indicator]]","v":0},{"$f":"T_DataComboFile[[#This Row],[2018/19_Source]]*T_DataComboFile[[#This Row],[G&S reporting level indicator]]","v":0},{"$f":"T_DataComboFile[[#This Row],[2019/20 Main appropriation_Source]]*T_DataComboFile[[#This Row],[G&S reporting level indicator]]","v":0},{"$f":"T_DataComboFile[[#This Row],[2019/20 Adjusted appropriation_Source]]*T_DataComboFile[[#This Row],[G&S reporting level indicator]]","v":0},{"$f":"T_DataComboFile[[#This Row],[2019/20 Revised estimate_Source]]*T_DataComboFile[[#This Row],[G&S reporting level indicator]]","v":0},{"$f":"T_DataComboFile[[#This Row],[2019/20 Preliminary outcome_Source]]*T_DataComboFile[[#This Row],[G&S reporting level indicator]]","v":0},{"$f":"T_DataComboFile[[#This Row],[2020/21 Original_Source]]*T_DataComboFile[[#This Row],[G&S reporting level indicator]]","v":0},{"$f":"T_DataComboFile[[#This Row],[2020/21 SAB_Source]]*T_DataComboFile[[#This Row],[G&S reporting level indicator]]","v":0},{"$f":"T_DataComboFile[[#This Row],[2020/21 Baseline_Source]]*T_DataComboFile[[#This Row],[G&S reporting level indicator]]","v":0},{"$f":"T_DataComboFile[[#This Row],[2021/22 Baseline_Source]]*T_DataComboFile[[#This Row],[G&S reporting level indicator]]","v":0},{"$f":"T_DataComboFile[[#This Row],[2022/23 Baseline_Source]]*T_DataComboFile[[#This Row],[G&S reporting level indicator]]","v":0},{"$f":"T_DataComboFile[[#This Row],[2023/24 Baseline_Source]]*T_DataComboFile[[#This Row],[G&S reporting level indicator]]","v":0},null,null,null,null,null,null,{"$f":"T_DataComboFile[[#This Row],[2021/22 Baseline]]+T_DataComboFile[[#This Row],[2021/22 Reduction]]+T_DataComboFile[[#This Row],[2021/22 Increase]]","v":0},{"$f":"T_DataComboFile[[#This Row],[2022/23 Baseline]]+T_DataComboFile[[#This Row],[2022/23 Reduction]]+T_DataComboFile[[#This Row],[2022/23 Increase]]","v":0},{"$f":"T_DataComboFile[[#This Row],[2023/24 Baseline]]+T_DataComboFile[[#This Row],[2023/24 Reduction]]+T_DataComboFile[[#This Row],[2023/24 Increase]]","v":0}]
[null,null,"2021_22","ENE2020",36,3,2,null,70915,36,3,2,null,"070915","36|03|02",2,3,11,54,58,"02|03|11|54|58","National","Small Business Development","Integrated Cooperative Development","Cooperatives Programme Design and Support",null,"Capital","Payments for capital assets","Buildings and other fixed structures","Buildings","Buildings",null,null,null,0,0,0,0,0,0,0,0,0,0,0,0,0,0,null,{"$f":"IF(T_DataComboFile[[#This Row],[G&S reporting level indicator]]=1,$AX$16,\"Not applicable\")","v":"Level 3"},{"$f":"IF(AND($AX$16=\"Level 3\",T_DataComboFile[[#This Row],[Econ3]] = \"Goods and services\"),IF(T_DataComboFile[[#This Row],[Econ4]] = T_DataComboFile[[#This Row],[Econ3]],1,0),IF(AND($AX$16=\"Level 4\",T_DataComboFile[[#This Row],[Econ4]] = \"Goods and services\"),0,1))","v":1},{"$f":"T_DataComboFile[[#This Row],[2016/17_Source]]*T_DataComboFile[[#This Row],[G&S reporting level indicator]]","v":0},{"$f":"T_DataComboFile[[#This Row],[2017/18_Source]]*T_DataComboFile[[#This Row],[G&S reporting level indicator]]","v":0},{"$f":"T_DataComboFile[[#This Row],[2018/19_Source]]*T_DataComboFile[[#This Row],[G&S reporting level indicator]]","v":0},{"$f":"T_DataComboFile[[#This Row],[2019/20 Main appropriation_Source]]*T_DataComboFile[[#This Row],[G&S reporting level indicator]]","v":0},{"$f":"T_DataComboFile[[#This Row],[2019/20 Adjusted appropriation_Source]]*T_DataComboFile[[#This Row],[G&S reporting level indicator]]","v":0},{"$f":"T_DataComboFile[[#This Row],[2019/20 Revised estimate_Source]]*T_DataComboFile[[#This Row],[G&S reporting level indicator]]","v":0},{"$f":"T_DataComboFile[[#This Row],[2019/20 Preliminary outcome_Source]]*T_DataComboFile[[#This Row],[G&S reporting level indicator]]","v":0},{"$f":"T_DataComboFile[[#This Row],[2020/21 Original_Source]]*T_DataComboFile[[#This Row],[G&S reporting level indicator]]","v":0},{"$f":"T_DataComboFile[[#This Row],[2020/21 SAB_Source]]*T_DataComboFile[[#This Row],[G&S reporting level indicator]]","v":0},{"$f":"T_DataComboFile[[#This Row],[2020/21 Baseline_Source]]*T_DataComboFile[[#This Row],[G&S reporting level indicator]]","v":0},{"$f":"T_DataComboFile[[#This Row],[2021/22 Baseline_Source]]*T_DataComboFile[[#This Row],[G&S reporting level indicator]]","v":0},{"$f":"T_DataComboFile[[#This Row],[2022/23 Baseline_Source]]*T_DataComboFile[[#This Row],[G&S reporting level indicator]]","v":0},{"$f":"T_DataComboFile[[#This Row],[2023/24 Baseline_Source]]*T_DataComboFile[[#This Row],[G&S reporting level indicator]]","v":0},null,null,null,null,null,null,{"$f":"T_DataComboFile[[#This Row],[2021/22 Baseline]]+T_DataComboFile[[#This Row],[2021/22 Reduction]]+T_DataComboFile[[#This Row],[2021/22 Increase]]","v":0},{"$f":"T_DataComboFile[[#This Row],[2022/23 Baseline]]+T_DataComboFile[[#This Row],[2022/23 Reduction]]+T_DataComboFile[[#This Row],[2022/23 Increase]]","v":0},{"$f":"T_DataComboFile[[#This Row],[2023/24 Baseline]]+T_DataComboFile[[#This Row],[2023/24 Reduction]]+T_DataComboFile[[#This Row],[2023/24 Increase]]","v":0}]
[null,null,"2021_22","ENE2020",36,3,2,null,70916,36,3,2,null,"070916","36|03|02",2,3,11,55,59,"02|03|11|55|59","National","Small Business Development","Integrated Cooperative Development","Cooperatives Programme Design and Support",null,"Capital","Payments for capital assets","Buildings and other fixed structures","Other fixed structures","Other fixed structures",null,null,null,0,0,0,0,0,0,0,0,0,0,0,0,0,0,null,{"$f":"IF(T_DataComboFile[[#This Row],[G&S reporting level indicator]]=1,$AX$16,\"Not applicable\")","v":"Level 3"},{"$f":"IF(AND($AX$16=\"Level 3\",T_DataComboFile[[#This Row],[Econ3]] = \"Goods and services\"),IF(T_DataComboFile[[#This Row],[Econ4]] = T_DataComboFile[[#This Row],[Econ3]],1,0),IF(AND($AX$16=\"Level 4\",T_DataComboFile[[#This Row],[Econ4]] = \"Goods and services\"),0,1))","v":1},{"$f":"T_DataComboFile[[#This Row],[2016/17_Source]]*T_DataComboFile[[#This Row],[G&S reporting level indicator]]","v":0},{"$f":"T_DataComboFile[[#This Row],[2017/18_Source]]*T_DataComboFile[[#This Row],[G&S reporting level indicator]]","v":0},{"$f":"T_DataComboFile[[#This Row],[2018/19_Source]]*T_DataComboFile[[#This Row],[G&S reporting level indicator]]","v":0},{"$f":"T_DataComboFile[[#This Row],[2019/20 Main appropriation_Source]]*T_DataComboFile[[#This Row],[G&S reporting level indicator]]","v":0},{"$f":"T_DataComboFile[[#This Row],[2019/20 Adjusted appropriation_Source]]*T_DataComboFile[[#This Row],[G&S reporting level indicator]]","v":0},{"$f":"T_DataComboFile[[#This Row],[2019/20 Revised estimate_Source]]*T_DataComboFile[[#This Row],[G&S reporting level indicator]]","v":0},{"$f":"T_DataComboFile[[#This Row],[2019/20 Preliminary outcome_Source]]*T_DataComboFile[[#This Row],[G&S reporting level indicator]]","v":0},{"$f":"T_DataComboFile[[#This Row],[2020/21 Original_Source]]*T_DataComboFile[[#This Row],[G&S reporting level indicator]]","v":0},{"$f":"T_DataComboFile[[#This Row],[2020/21 SAB_Source]]*T_DataComboFile[[#This Row],[G&S reporting level indicator]]","v":0},{"$f":"T_DataComboFile[[#This Row],[2020/21 Baseline_Source]]*T_DataComboFile[[#This Row],[G&S reporting level indicator]]","v":0},{"$f":"T_DataComboFile[[#This Row],[2021/22 Baseline_Source]]*T_DataComboFile[[#This Row],[G&S reporting level indicator]]","v":0},{"$f":"T_DataComboFile[[#This Row],[2022/23 Baseline_Source]]*T_DataComboFile[[#This Row],[G&S reporting level indicator]]","v":0},{"$f":"T_DataComboFile[[#This Row],[2023/24 Baseline_Source]]*T_DataComboFile[[#This Row],[G&S reporting level indicator]]","v":0},null,null,null,null,null,null,{"$f":"T_DataComboFile[[#This Row],[2021/22 Baseline]]+T_DataComboFile[[#This Row],[2021/22 Reduction]]+T_DataComboFile[[#This Row],[2021/22 Increase]]","v":0},{"$f":"T_DataComboFile[[#This Row],[2022/23 Baseline]]+T_DataComboFile[[#This Row],[2022/23 Reduction]]+T_DataComboFile[[#This Row],[2022/23 Increase]]","v":0},{"$f":"T_DataComboFile[[#This Row],[2023/24 Baseline]]+T_DataComboFile[[#This Row],[2023/24 Reduction]]+T_DataComboFile[[#This Row],[2023/24 Increase]]","v":0}]
[null,null,"2021_22","ENE2020",36,3,2,null,70917,36,3,2,null,"070917","36|03|02",2,3,12,56,60,"02|03|12|56|60","National","Small Business Development","Integrated Cooperative Development","Cooperatives Programme Design and Support",null,"Capital","Payments for capital assets","Machinery and equipment","Transport equipment","Transport equipment",null,null,null,0,0,0,0,0,0,0,0,0,0,0,0,0,0,null,{"$f":"IF(T_DataComboFile[[#This Row],[G&S reporting level indicator]]=1,$AX$16,\"Not applicable\")","v":"Level 3"},{"$f":"IF(AND($AX$16=\"Level 3\",T_DataComboFile[[#This Row],[Econ3]] = \"Goods and services\"),IF(T_DataComboFile[[#This Row],[Econ4]] = T_DataComboFile[[#This Row],[Econ3]],1,0),IF(AND($AX$16=\"Level 4\",T_DataComboFile[[#This Row],[Econ4]] = \"Goods and services\"),0,1))","v":1},{"$f":"T_DataComboFile[[#This Row],[2016/17_Source]]*T_DataComboFile[[#This Row],[G&S reporting level indicator]]","v":0},{"$f":"T_DataComboFile[[#This Row],[2017/18_Source]]*T_DataComboFile[[#This Row],[G&S reporting level indicator]]","v":0},{"$f":"T_DataComboFile[[#This Row],[2018/19_Source]]*T_DataComboFile[[#This Row],[G&S reporting level indicator]]","v":0},{"$f":"T_DataComboFile[[#This Row],[2019/20 Main appropriation_Source]]*T_DataComboFile[[#This Row],[G&S reporting level indicator]]","v":0},{"$f":"T_DataComboFile[[#This Row],[2019/20 Adjusted appropriation_Source]]*T_DataComboFile[[#This Row],[G&S reporting level indicator]]","v":0},{"$f":"T_DataComboFile[[#This Row],[2019/20 Revised estimate_Source]]*T_DataComboFile[[#This Row],[G&S reporting level indicator]]","v":0},{"$f":"T_DataComboFile[[#This Row],[2019/20 Preliminary outcome_Source]]*T_DataComboFile[[#This Row],[G&S reporting level indicator]]","v":0},{"$f":"T_DataComboFile[[#This Row],[2020/21 Original_Source]]*T_DataComboFile[[#This Row],[G&S reporting level indicator]]","v":0},{"$f":"T_DataComboFile[[#This Row],[2020/21 SAB_Source]]*T_DataComboFile[[#This Row],[G&S reporting level indicator]]","v":0},{"$f":"T_DataComboFile[[#This Row],[2020/21 Baseline_Source]]*T_DataComboFile[[#This Row],[G&S reporting level indicator]]","v":0},{"$f":"T_DataComboFile[[#This Row],[2021/22 Baseline_Source]]*T_DataComboFile[[#This Row],[G&S reporting level indicator]]","v":0},{"$f":"T_DataComboFile[[#This Row],[2022/23 Baseline_Source]]*T_DataComboFile[[#This Row],[G&S reporting level indicator]]","v":0},{"$f":"T_DataComboFile[[#This Row],[2023/24 Baseline_Source]]*T_DataComboFile[[#This Row],[G&S reporting level indicator]]","v":0},null,null,null,null,null,null,{"$f":"T_DataComboFile[[#This Row],[2021/22 Baseline]]+T_DataComboFile[[#This Row],[2021/22 Reduction]]+T_DataComboFile[[#This Row],[2021/22 Increase]]","v":0},{"$f":"T_DataComboFile[[#This Row],[2022/23 Baseline]]+T_DataComboFile[[#This Row],[2022/23 Reduction]]+T_DataComboFile[[#This Row],[2022/23 Increase]]","v":0},{"$f":"T_DataComboFile[[#This Row],[2023/24 Baseline]]+T_DataComboFile[[#This Row],[2023/24 Reduction]]+T_DataComboFile[[#This Row],[2023/24 Increase]]","v":0}]
["NAT|Non-transfer item","36|Other machinery and equipment","2021_22","ENE2020",36,3,2,17369,70918,36,3,2,17369,"070918","36|03|02",2,3,12,57,61,"02|03|12|57|61","National","Small Business Development","Integrated Cooperative Development","Cooperatives Programme Design and Support","Non-transfer item","Capital","Payments for capital assets","Machinery and equipment","Other machinery and equipment","Other machinery and equipment","Economic development","Industrialisation and exports","NAT",2,26,176,92,219,219,219,110,110,110,120,130,136,1,null,{"$f":"IF(T_DataComboFile[[#This Row],[G&S reporting level indicator]]=1,$AX$16,\"Not applicable\")","v":"Level 3"},{"$f":"IF(AND($AX$16=\"Level 3\",T_DataComboFile[[#This Row],[Econ3]] = \"Goods and services\"),IF(T_DataComboFile[[#This Row],[Econ4]] = T_DataComboFile[[#This Row],[Econ3]],1,0),IF(AND($AX$16=\"Level 4\",T_DataComboFile[[#This Row],[Econ4]] = \"Goods and services\"),0,1))","v":1},{"$f":"T_DataComboFile[[#This Row],[2016/17_Source]]*T_DataComboFile[[#This Row],[G&S reporting level indicator]]","v":2},{"$f":"T_DataComboFile[[#This Row],[2017/18_Source]]*T_DataComboFile[[#This Row],[G&S reporting level indicator]]","v":26},{"$f":"T_DataComboFile[[#This Row],[2018/19_Source]]*T_DataComboFile[[#This Row],[G&S reporting level indicator]]","v":176},{"$f":"T_DataComboFile[[#This Row],[2019/20 Main appropriation_Source]]*T_DataComboFile[[#This Row],[G&S reporting level indicator]]","v":92},{"$f":"T_DataComboFile[[#This Row],[2019/20 Adjusted appropriation_Source]]*T_DataComboFile[[#This Row],[G&S reporting level indicator]]","v":219},{"$f":"T_DataComboFile[[#This Row],[2019/20 Revised estimate_Source]]*T_DataComboFile[[#This Row],[G&S reporting level indicator]]","v":219},{"$f":"T_DataComboFile[[#This Row],[2019/20 Preliminary outcome_Source]]*T_DataComboFile[[#This Row],[G&S reporting level indicator]]","v":219},{"$f":"T_DataComboFile[[#This Row],[2020/21 Original_Source]]*T_DataComboFile[[#This Row],[G&S reporting level indicator]]","v":110},{"$f":"T_DataComboFile[[#This Row],[2020/21 SAB_Source]]*T_DataComboFile[[#This Row],[G&S reporting level indicator]]","v":110},{"$f":"T_DataComboFile[[#This Row],[2020/21 Baseline_Source]]*T_DataComboFile[[#This Row],[G&S reporting level indicator]]","v":110},{"$f":"T_DataComboFile[[#This Row],[2021/22 Baseline_Source]]*T_DataComboFile[[#This Row],[G&S reporting level indicator]]","v":120},{"$f":"T_DataComboFile[[#This Row],[2022/23 Baseline_Source]]*T_DataComboFile[[#This Row],[G&S reporting level indicator]]","v":130},{"$f":"T_DataComboFile[[#This Row],[2023/24 Baseline_Source]]*T_DataComboFile[[#This Row],[G&S reporting level indicator]]","v":136},null,null,null,null,null,null,{"$f":"T_DataComboFile[[#This Row],[2021/22 Baseline]]+T_DataComboFile[[#This Row],[2021/22 Reduction]]+T_DataComboFile[[#This Row],[2021/22 Increase]]","v":120},{"$f":"T_DataComboFile[[#This Row],[2022/23 Baseline]]+T_DataComboFile[[#This Row],[2022/23 Reduction]]+T_DataComboFile[[#This Row],[2022/23 Increase]]","v":130},{"$f":"T_DataComboFile[[#This Row],[2023/24 Baseline]]+T_DataComboFile[[#This Row],[2023/24 Reduction]]+T_DataComboFile[[#This Row],[2023/24 Increase]]","v":136}]
[null,null,"2021_22","ENE2020",36,3,2,null,70919,36,3,2,null,"070919","36|03|02",2,3,13,58,62,"02|03|13|58|62","National","Small Business Development","Integrated Cooperative Development","Cooperatives Programme Design and Support",null,"Capital","Payments for capital assets","Heritage assets","Heritage assets","Heritage assets",null,null,null,0,0,0,0,0,0,0,0,0,0,0,0,0,0,null,{"$f":"IF(T_DataComboFile[[#This Row],[G&S reporting level indicator]]=1,$AX$16,\"Not applicable\")","v":"Level 3"},{"$f":"IF(AND($AX$16=\"Level 3\",T_DataComboFile[[#This Row],[Econ3]] = \"Goods and services\"),IF(T_DataComboFile[[#This Row],[Econ4]] = T_DataComboFile[[#This Row],[Econ3]],1,0),IF(AND($AX$16=\"Level 4\",T_DataComboFile[[#This Row],[Econ4]] = \"Goods and services\"),0,1))","v":1},{"$f":"T_DataComboFile[[#This Row],[2016/17_Source]]*T_DataComboFile[[#This Row],[G&S reporting level indicator]]","v":0},{"$f":"T_DataComboFile[[#This Row],[2017/18_Source]]*T_DataComboFile[[#This Row],[G&S reporting level indicator]]","v":0},{"$f":"T_DataComboFile[[#This Row],[2018/19_Source]]*T_DataComboFile[[#This Row],[G&S reporting level indicator]]","v":0},{"$f":"T_DataComboFile[[#This Row],[2019/20 Main appropriation_Source]]*T_DataComboFile[[#This Row],[G&S reporting level indicator]]","v":0},{"$f":"T_DataComboFile[[#This Row],[2019/20 Adjusted appropriation_Source]]*T_DataComboFile[[#This Row],[G&S reporting level indicator]]","v":0},{"$f":"T_DataComboFile[[#This Row],[2019/20 Revised estimate_Source]]*T_DataComboFile[[#This Row],[G&S reporting level indicator]]","v":0},{"$f":"T_DataComboFile[[#This Row],[2019/20 Preliminary outcome_Source]]*T_DataComboFile[[#This Row],[G&S reporting level indicator]]","v":0},{"$f":"T_DataComboFile[[#This Row],[2020/21 Original_Source]]*T_DataComboFile[[#This Row],[G&S reporting level indicator]]","v":0},{"$f":"T_DataComboFile[[#This Row],[2020/21 SAB_Source]]*T_DataComboFile[[#This Row],[G&S reporting level indicator]]","v":0},{"$f":"T_DataComboFile[[#This Row],[2020/21 Baseline_Source]]*T_DataComboFile[[#This Row],[G&S reporting level indicator]]","v":0},{"$f":"T_DataComboFile[[#This Row],[2021/22 Baseline_Source]]*T_DataComboFile[[#This Row],[G&S reporting level indicator]]","v":0},{"$f":"T_DataComboFile[[#This Row],[2022/23 Baseline_Source]]*T_DataComboFile[[#This Row],[G&S reporting level indicator]]","v":0},{"$f":"T_DataComboFile[[#This Row],[2023/24 Baseline_Source]]*T_DataComboFile[[#This Row],[G&S reporting level indicator]]","v":0},null,null,null,null,null,null,{"$f":"T_DataComboFile[[#This Row],[2021/22 Baseline]]+T_DataComboFile[[#This Row],[2021/22 Reduction]]+T_DataComboFile[[#This Row],[2021/22 Increase]]","v":0},{"$f":"T_DataComboFile[[#This Row],[2022/23 Baseline]]+T_DataComboFile[[#This Row],[2022/23 Reduction]]+T_DataComboFile[[#This Row],[2022/23 Increase]]","v":0},{"$f":"T_DataComboFile[[#This Row],[2023/24 Baseline]]+T_DataComboFile[[#This Row],[2023/24 Reduction]]+T_DataComboFile[[#This Row],[2023/24 Increase]]","v":0}]
[null,null,"2021_22","ENE2020",36,3,2,null,70920,36,3,2,null,"070920","36|03|02",2,3,14,59,63,"02|03|14|59|63","National","Small Business Development","Integrated Cooperative Development","Cooperatives Programme Design and Support",null,"Capital","Payments for capital assets","Specialised military assets","Specialised military assets","Specialised military assets",null,null,null,0,0,0,0,0,0,0,0,0,0,0,0,0,0,null,{"$f":"IF(T_DataComboFile[[#This Row],[G&S reporting level indicator]]=1,$AX$16,\"Not applicable\")","v":"Level 3"},{"$f":"IF(AND($AX$16=\"Level 3\",T_DataComboFile[[#This Row],[Econ3]] = \"Goods and services\"),IF(T_DataComboFile[[#This Row],[Econ4]] = T_DataComboFile[[#This Row],[Econ3]],1,0),IF(AND($AX$16=\"Level 4\",T_DataComboFile[[#This Row],[Econ4]] = \"Goods and services\"),0,1))","v":1},{"$f":"T_DataComboFile[[#This Row],[2016/17_Source]]*T_DataComboFile[[#This Row],[G&S reporting level indicator]]","v":0},{"$f":"T_DataComboFile[[#This Row],[2017/18_Source]]*T_DataComboFile[[#This Row],[G&S reporting level indicator]]","v":0},{"$f":"T_DataComboFile[[#This Row],[2018/19_Source]]*T_DataComboFile[[#This Row],[G&S reporting level indicator]]","v":0},{"$f":"T_DataComboFile[[#This Row],[2019/20 Main appropriation_Source]]*T_DataComboFile[[#This Row],[G&S reporting level indicator]]","v":0},{"$f":"T_DataComboFile[[#This Row],[2019/20 Adjusted appropriation_Source]]*T_DataComboFile[[#This Row],[G&S reporting level indicator]]","v":0},{"$f":"T_DataComboFile[[#This Row],[2019/20 Revised estimate_Source]]*T_DataComboFile[[#This Row],[G&S reporting level indicator]]","v":0},{"$f":"T_DataComboFile[[#This Row],[2019/20 Preliminary outcome_Source]]*T_DataComboFile[[#This Row],[G&S reporting level indicator]]","v":0},{"$f":"T_DataComboFile[[#This Row],[2020/21 Original_Source]]*T_DataComboFile[[#This Row],[G&S reporting level indicator]]","v":0},{"$f":"T_DataComboFile[[#This Row],[2020/21 SAB_Source]]*T_DataComboFile[[#This Row],[G&S reporting level indicator]]","v":0},{"$f":"T_DataComboFile[[#This Row],[2020/21 Baseline_Source]]*T_DataComboFile[[#This Row],[G&S reporting level indicator]]","v":0},{"$f":"T_DataComboFile[[#This Row],[2021/22 Baseline_Source]]*T_DataComboFile[[#This Row],[G&S reporting level indicator]]","v":0},{"$f":"T_DataComboFile[[#This Row],[2022/23 Baseline_Source]]*T_DataComboFile[[#This Row],[G&S reporting level indicator]]","v":0},{"$f":"T_DataComboFile[[#This Row],[2023/24 Baseline_Source]]*T_DataComboFile[[#This Row],[G&S reporting level indicator]]","v":0},null,null,null,null,null,null,{"$f":"T_DataComboFile[[#This Row],[2021/22 Baseline]]+T_DataComboFile[[#This Row],[2021/22 Reduction]]+T_DataComboFile[[#This Row],[2021/22 Increase]]","v":0},{"$f":"T_DataComboFile[[#This Row],[2022/23 Baseline]]+T_DataComboFile[[#This Row],[2022/23 Reduction]]+T_DataComboFile[[#This Row],[2022/23 Increase]]","v":0},{"$f":"T_DataComboFile[[#This Row],[2023/24 Baseline]]+T_DataComboFile[[#This Row],[2023/24 Reduction]]+T_DataComboFile[[#This Row],[2023/24 Increase]]","v":0}]
[null,null,"2021_22","ENE2020",36,3,2,null,70921,36,3,2,null,"070921","36|03|02",2,3,15,60,64,"02|03|15|60|64","National","Small Business Development","Integrated Cooperative Development","Cooperatives Programme Design and Support",null,"Capital","Payments for capital assets","Biological assets","Biological assets","Biological assets",null,null,null,0,0,0,0,0,0,0,0,0,0,0,0,0,0,null,{"$f":"IF(T_DataComboFile[[#This Row],[G&S reporting level indicator]]=1,$AX$16,\"Not applicable\")","v":"Level 3"},{"$f":"IF(AND($AX$16=\"Level 3\",T_DataComboFile[[#This Row],[Econ3]] = \"Goods and services\"),IF(T_DataComboFile[[#This Row],[Econ4]] = T_DataComboFile[[#This Row],[Econ3]],1,0),IF(AND($AX$16=\"Level 4\",T_DataComboFile[[#This Row],[Econ4]] = \"Goods and services\"),0,1))","v":1},{"$f":"T_DataComboFile[[#This Row],[2016/17_Source]]*T_DataComboFile[[#This Row],[G&S reporting level indicator]]","v":0},{"$f":"T_DataComboFile[[#This Row],[2017/18_Source]]*T_DataComboFile[[#This Row],[G&S reporting level indicator]]","v":0},{"$f":"T_DataComboFile[[#This Row],[2018/19_Source]]*T_DataComboFile[[#This Row],[G&S reporting level indicator]]","v":0},{"$f":"T_DataComboFile[[#This Row],[2019/20 Main appropriation_Source]]*T_DataComboFile[[#This Row],[G&S reporting level indicator]]","v":0},{"$f":"T_DataComboFile[[#This Row],[2019/20 Adjusted appropriation_Source]]*T_DataComboFile[[#This Row],[G&S reporting level indicator]]","v":0},{"$f":"T_DataComboFile[[#This Row],[2019/20 Revised estimate_Source]]*T_DataComboFile[[#This Row],[G&S reporting level indicator]]","v":0},{"$f":"T_DataComboFile[[#This Row],[2019/20 Preliminary outcome_Source]]*T_DataComboFile[[#This Row],[G&S reporting level indicator]]","v":0},{"$f":"T_DataComboFile[[#This Row],[2020/21 Original_Source]]*T_DataComboFile[[#This Row],[G&S reporting level indicator]]","v":0},{"$f":"T_DataComboFile[[#This Row],[2020/21 SAB_Source]]*T_DataComboFile[[#This Row],[G&S reporting level indicator]]","v":0},{"$f":"T_DataComboFile[[#This Row],[2020/21 Baseline_Source]]*T_DataComboFile[[#This Row],[G&S reporting level indicator]]","v":0},{"$f":"T_DataComboFile[[#This Row],[2021/22 Baseline_Source]]*T_DataComboFile[[#This Row],[G&S reporting level indicator]]","v":0},{"$f":"T_DataComboFile[[#This Row],[2022/23 Baseline_Source]]*T_DataComboFile[[#This Row],[G&S reporting level indicator]]","v":0},{"$f":"T_DataComboFile[[#This Row],[2023/24 Baseline_Source]]*T_DataComboFile[[#This Row],[G&S reporting level indicator]]","v":0},null,null,null,null,null,null,{"$f":"T_DataComboFile[[#This Row],[2021/22 Baseline]]+T_DataComboFile[[#This Row],[2021/22 Reduction]]+T_DataComboFile[[#This Row],[2021/22 Increase]]","v":0},{"$f":"T_DataComboFile[[#This Row],[2022/23 Baseline]]+T_DataComboFile[[#This Row],[2022/23 Reduction]]+T_DataComboFile[[#This Row],[2022/23 Increase]]","v":0},{"$f":"T_DataComboFile[[#This Row],[2023/24 Baseline]]+T_DataComboFile[[#This Row],[2023/24 Reduction]]+T_DataComboFile[[#This Row],[2023/24 Increase]]","v":0}]
[null,null,"2021_22","ENE2020",36,3,2,null,70922,36,3,2,null,"070922","36|03|02",2,3,16,61,65,"02|03|16|61|65","National","Small Business Development","Integrated Cooperative Development","Cooperatives Programme Design and Support",null,"Capital","Payments for capital assets","Land and sub-soil assets","Land and sub-soil assets","Land and sub-soil assets",null,null,null,0,0,0,0,0,0,0,0,0,0,0,0,0,0,null,{"$f":"IF(T_DataComboFile[[#This Row],[G&S reporting level indicator]]=1,$AX$16,\"Not applicable\")","v":"Level 3"},{"$f":"IF(AND($AX$16=\"Level 3\",T_DataComboFile[[#This Row],[Econ3]] = \"Goods and services\"),IF(T_DataComboFile[[#This Row],[Econ4]] = T_DataComboFile[[#This Row],[Econ3]],1,0),IF(AND($AX$16=\"Level 4\",T_DataComboFile[[#This Row],[Econ4]] = \"Goods and services\"),0,1))","v":1},{"$f":"T_DataComboFile[[#This Row],[2016/17_Source]]*T_DataComboFile[[#This Row],[G&S reporting level indicator]]","v":0},{"$f":"T_DataComboFile[[#This Row],[2017/18_Source]]*T_DataComboFile[[#This Row],[G&S reporting level indicator]]","v":0},{"$f":"T_DataComboFile[[#This Row],[2018/19_Source]]*T_DataComboFile[[#This Row],[G&S reporting level indicator]]","v":0},{"$f":"T_DataComboFile[[#This Row],[2019/20 Main appropriation_Source]]*T_DataComboFile[[#This Row],[G&S reporting level indicator]]","v":0},{"$f":"T_DataComboFile[[#This Row],[2019/20 Adjusted appropriation_Source]]*T_DataComboFile[[#This Row],[G&S reporting level indicator]]","v":0},{"$f":"T_DataComboFile[[#This Row],[2019/20 Revised estimate_Source]]*T_DataComboFile[[#This Row],[G&S reporting level indicator]]","v":0},{"$f":"T_DataComboFile[[#This Row],[2019/20 Preliminary outcome_Source]]*T_DataComboFile[[#This Row],[G&S reporting level indicator]]","v":0},{"$f":"T_DataComboFile[[#This Row],[2020/21 Original_Source]]*T_DataComboFile[[#This Row],[G&S reporting level indicator]]","v":0},{"$f":"T_DataComboFile[[#This Row],[2020/21 SAB_Source]]*T_DataComboFile[[#This Row],[G&S reporting level indicator]]","v":0},{"$f":"T_DataComboFile[[#This Row],[2020/21 Baseline_Source]]*T_DataComboFile[[#This Row],[G&S reporting level indicator]]","v":0},{"$f":"T_DataComboFile[[#This Row],[2021/22 Baseline_Source]]*T_DataComboFile[[#This Row],[G&S reporting level indicator]]","v":0},{"$f":"T_DataComboFile[[#This Row],[2022/23 Baseline_Source]]*T_DataComboFile[[#This Row],[G&S reporting level indicator]]","v":0},{"$f":"T_DataComboFile[[#This Row],[2023/24 Baseline_Source]]*T_DataComboFile[[#This Row],[G&S reporting level indicator]]","v":0},null,null,null,null,null,null,{"$f":"T_DataComboFile[[#This Row],[2021/22 Baseline]]+T_DataComboFile[[#This Row],[2021/22 Reduction]]+T_DataComboFile[[#This Row],[2021/22 Increase]]","v":0},{"$f":"T_DataComboFile[[#This Row],[2022/23 Baseline]]+T_DataComboFile[[#This Row],[2022/23 Reduction]]+T_DataComboFile[[#This Row],[2022/23 Increase]]","v":0},{"$f":"T_DataComboFile[[#This Row],[2023/24 Baseline]]+T_DataComboFile[[#This Row],[2023/24 Reduction]]+T_DataComboFile[[#This Row],[2023/24 Increase]]","v":0}]
[null,null,"2021_22","ENE2020",36,3,2,null,70923,36,3,2,null,"070923","36|03|02",2,3,17,62,66,"02|03|17|62|66","National","Small Business Development","Integrated Cooperative Development","Cooperatives Programme Design and Support",null,"Capital","Payments for capital assets","Software and other intangible assets","Software and other intangible assets","Software and other intangible assets",null,null,null,0,0,0,0,0,0,0,0,0,0,0,0,0,0,null,{"$f":"IF(T_DataComboFile[[#This Row],[G&S reporting level indicator]]=1,$AX$16,\"Not applicable\")","v":"Level 3"},{"$f":"IF(AND($AX$16=\"Level 3\",T_DataComboFile[[#This Row],[Econ3]] = \"Goods and services\"),IF(T_DataComboFile[[#This Row],[Econ4]] = T_DataComboFile[[#This Row],[Econ3]],1,0),IF(AND($AX$16=\"Level 4\",T_DataComboFile[[#This Row],[Econ4]] = \"Goods and services\"),0,1))","v":1},{"$f":"T_DataComboFile[[#This Row],[2016/17_Source]]*T_DataComboFile[[#This Row],[G&S reporting level indicator]]","v":0},{"$f":"T_DataComboFile[[#This Row],[2017/18_Source]]*T_DataComboFile[[#This Row],[G&S reporting level indicator]]","v":0},{"$f":"T_DataComboFile[[#This Row],[2018/19_Source]]*T_DataComboFile[[#This Row],[G&S reporting level indicator]]","v":0},{"$f":"T_DataComboFile[[#This Row],[2019/20 Main appropriation_Source]]*T_DataComboFile[[#This Row],[G&S reporting level indicator]]","v":0},{"$f":"T_DataComboFile[[#This Row],[2019/20 Adjusted appropriation_Source]]*T_DataComboFile[[#This Row],[G&S reporting level indicator]]","v":0},{"$f":"T_DataComboFile[[#This Row],[2019/20 Revised estimate_Source]]*T_DataComboFile[[#This Row],[G&S reporting level indicator]]","v":0},{"$f":"T_DataComboFile[[#This Row],[2019/20 Preliminary outcome_Source]]*T_DataComboFile[[#This Row],[G&S reporting level indicator]]","v":0},{"$f":"T_DataComboFile[[#This Row],[2020/21 Original_Source]]*T_DataComboFile[[#This Row],[G&S reporting level indicator]]","v":0},{"$f":"T_DataComboFile[[#This Row],[2020/21 SAB_Source]]*T_DataComboFile[[#This Row],[G&S reporting level indicator]]","v":0},{"$f":"T_DataComboFile[[#This Row],[2020/21 Baseline_Source]]*T_DataComboFile[[#This Row],[G&S reporting level indicator]]","v":0},{"$f":"T_DataComboFile[[#This Row],[2021/22 Baseline_Source]]*T_DataComboFile[[#This Row],[G&S reporting level indicator]]","v":0},{"$f":"T_DataComboFile[[#This Row],[2022/23 Baseline_Source]]*T_DataComboFile[[#This Row],[G&S reporting level indicator]]","v":0},{"$f":"T_DataComboFile[[#This Row],[2023/24 Baseline_Source]]*T_DataComboFile[[#This Row],[G&S reporting level indicator]]","v":0},null,null,null,null,null,null,{"$f":"T_DataComboFile[[#This Row],[2021/22 Baseline]]+T_DataComboFile[[#This Row],[2021/22 Reduction]]+T_DataComboFile[[#This Row],[2021/22 Increase]]","v":0},{"$f":"T_DataComboFile[[#This Row],[2022/23 Baseline]]+T_DataComboFile[[#This Row],[2022/23 Reduction]]+T_DataComboFile[[#This Row],[2022/23 Increase]]","v":0},{"$f":"T_DataComboFile[[#This Row],[2023/24 Baseline]]+T_DataComboFile[[#This Row],[2023/24 Reduction]]+T_DataComboFile[[#This Row],[2023/24 Increase]]","v":0}]
[null,null,"2021_22","ENE2020",36,3,2,null,70924,36,3,2,null,"070924","36|03|02",3,4,18,63,67,"03|04|18|63|67","National","Small Business Development","Integrated Cooperative Development","Cooperatives Programme Design and Support",null,"Payments for financial assets","Payments for financial assets","Payments for financial assets","Payments for financial assets","Payments for financial assets",null,null,null,0,0,0,0,0,0,0,0,0,0,0,0,0,0,null,{"$f":"IF(T_DataComboFile[[#This Row],[G&S reporting level indicator]]=1,$AX$16,\"Not applicable\")","v":"Level 3"},{"$f":"IF(AND($AX$16=\"Level 3\",T_DataComboFile[[#This Row],[Econ3]] = \"Goods and services\"),IF(T_DataComboFile[[#This Row],[Econ4]] = T_DataComboFile[[#This Row],[Econ3]],1,0),IF(AND($AX$16=\"Level 4\",T_DataComboFile[[#This Row],[Econ4]] = \"Goods and services\"),0,1))","v":1},{"$f":"T_DataComboFile[[#This Row],[2016/17_Source]]*T_DataComboFile[[#This Row],[G&S reporting level indicator]]","v":0},{"$f":"T_DataComboFile[[#This Row],[2017/18_Source]]*T_DataComboFile[[#This Row],[G&S reporting level indicator]]","v":0},{"$f":"T_DataComboFile[[#This Row],[2018/19_Source]]*T_DataComboFile[[#This Row],[G&S reporting level indicator]]","v":0},{"$f":"T_DataComboFile[[#This Row],[2019/20 Main appropriation_Source]]*T_DataComboFile[[#This Row],[G&S reporting level indicator]]","v":0},{"$f":"T_DataComboFile[[#This Row],[2019/20 Adjusted appropriation_Source]]*T_DataComboFile[[#This Row],[G&S reporting level indicator]]","v":0},{"$f":"T_DataComboFile[[#This Row],[2019/20 Revised estimate_Source]]*T_DataComboFile[[#This Row],[G&S reporting level indicator]]","v":0},{"$f":"T_DataComboFile[[#This Row],[2019/20 Preliminary outcome_Source]]*T_DataComboFile[[#This Row],[G&S reporting level indicator]]","v":0},{"$f":"T_DataComboFile[[#This Row],[2020/21 Original_Source]]*T_DataComboFile[[#This Row],[G&S reporting level indicator]]","v":0},{"$f":"T_DataComboFile[[#This Row],[2020/21 SAB_Source]]*T_DataComboFile[[#This Row],[G&S reporting level indicator]]","v":0},{"$f":"T_DataComboFile[[#This Row],[2020/21 Baseline_Source]]*T_DataComboFile[[#This Row],[G&S reporting level indicator]]","v":0},{"$f":"T_DataComboFile[[#This Row],[2021/22 Baseline_Source]]*T_DataComboFile[[#This Row],[G&S reporting level indicator]]","v":0},{"$f":"T_DataComboFile[[#This Row],[2022/23 Baseline_Source]]*T_DataComboFile[[#This Row],[G&S reporting level indicator]]","v":0},{"$f":"T_DataComboFile[[#This Row],[2023/24 Baseline_Source]]*T_DataComboFile[[#This Row],[G&S reporting level indicator]]","v":0},null,null,null,null,null,null,{"$f":"T_DataComboFile[[#This Row],[2021/22 Baseline]]+T_DataComboFile[[#This Row],[2021/22 Reduction]]+T_DataComboFile[[#This Row],[2021/22 Increase]]","v":0},{"$f":"T_DataComboFile[[#This Row],[2022/23 Baseline]]+T_DataComboFile[[#This Row],[2022/23 Reduction]]+T_DataComboFile[[#This Row],[2022/23 Increase]]","v":0},{"$f":"T_DataComboFile[[#This Row],[2023/24 Baseline]]+T_DataComboFile[[#This Row],[2023/24 Reduction]]+T_DataComboFile[[#This Row],[2023/24 Increase]]","v":0}]
["NAT|Non-transfer item","36|Salaries and wages","2021_22","ENE2020",36,3,3,17370,70925,36,3,3,17370,"070925","36|03|03",1,1,1,1,1,"01|01|01|01|01","National","Small Business Development","Integrated Cooperative Development","Supplier Development and Market Access Support","Non-transfer item","Current","Current payments","Compensation of employees","Salaries and wages","Salaries and wages","Economic development","Industrialisation and exports","NAT",0,3589,11524,9551,9551,9551,9551,12400,12400,11697,12011,12429,12977,1,null,{"$f":"IF(T_DataComboFile[[#This Row],[G&S reporting level indicator]]=1,$AX$16,\"Not applicable\")","v":"Level 3"},{"$f":"IF(AND($AX$16=\"Level 3\",T_DataComboFile[[#This Row],[Econ3]] = \"Goods and services\"),IF(T_DataComboFile[[#This Row],[Econ4]] = T_DataComboFile[[#This Row],[Econ3]],1,0),IF(AND($AX$16=\"Level 4\",T_DataComboFile[[#This Row],[Econ4]] = \"Goods and services\"),0,1))","v":1},{"$f":"T_DataComboFile[[#This Row],[2016/17_Source]]*T_DataComboFile[[#This Row],[G&S reporting level indicator]]","v":0},{"$f":"T_DataComboFile[[#This Row],[2017/18_Source]]*T_DataComboFile[[#This Row],[G&S reporting level indicator]]","v":3589},{"$f":"T_DataComboFile[[#This Row],[2018/19_Source]]*T_DataComboFile[[#This Row],[G&S reporting level indicator]]","v":11524},{"$f":"T_DataComboFile[[#This Row],[2019/20 Main appropriation_Source]]*T_DataComboFile[[#This Row],[G&S reporting level indicator]]","v":9551},{"$f":"T_DataComboFile[[#This Row],[2019/20 Adjusted appropriation_Source]]*T_DataComboFile[[#This Row],[G&S reporting level indicator]]","v":9551},{"$f":"T_DataComboFile[[#This Row],[2019/20 Revised estimate_Source]]*T_DataComboFile[[#This Row],[G&S reporting level indicator]]","v":9551},{"$f":"T_DataComboFile[[#This Row],[2019/20 Preliminary outcome_Source]]*T_DataComboFile[[#This Row],[G&S reporting level indicator]]","v":9551},{"$f":"T_DataComboFile[[#This Row],[2020/21 Original_Source]]*T_DataComboFile[[#This Row],[G&S reporting level indicator]]","v":12400},{"$f":"T_DataComboFile[[#This Row],[2020/21 SAB_Source]]*T_DataComboFile[[#This Row],[G&S reporting level indicator]]","v":12400},{"$f":"T_DataComboFile[[#This Row],[2020/21 Baseline_Source]]*T_DataComboFile[[#This Row],[G&S reporting level indicator]]","v":11697},{"$f":"T_DataComboFile[[#This Row],[2021/22 Baseline_Source]]*T_DataComboFile[[#This Row],[G&S reporting level indicator]]","v":12011},{"$f":"T_DataComboFile[[#This Row],[2022/23 Baseline_Source]]*T_DataComboFile[[#This Row],[G&S reporting level indicator]]","v":12429},{"$f":"T_DataComboFile[[#This Row],[2023/24 Baseline_Source]]*T_DataComboFile[[#This Row],[G&S reporting level indicator]]","v":12977},null,null,null,null,null,null,{"$f":"T_DataComboFile[[#This Row],[2021/22 Baseline]]+T_DataComboFile[[#This Row],[2021/22 Reduction]]+T_DataComboFile[[#This Row],[2021/22 Increase]]","v":12011},{"$f":"T_DataComboFile[[#This Row],[2022/23 Baseline]]+T_DataComboFile[[#This Row],[2022/23 Reduction]]+T_DataComboFile[[#This Row],[2022/23 Increase]]","v":12429},{"$f":"T_DataComboFile[[#This Row],[2023/24 Baseline]]+T_DataComboFile[[#This Row],[2023/24 Reduction]]+T_DataComboFile[[#This Row],[2023/24 Increase]]","v":12977}]
["NAT|Non-transfer item","36|Social contributions","2021_22","ENE2020",36,3,3,17371,70926,36,3,3,17371,"070926","36|03|03",1,1,1,2,2,"01|01|01|02|02","National","Small Business Development","Integrated Cooperative Development","Supplier Development and Market Access Support","Non-transfer item","Current","Current payments","Compensation of employees","Social contributions","Social contributions","Economic development","Industrialisation and exports","NAT",0,408,1233,1160,1160,1160,1160,1925,1925,1816,1864,1929,2014,1,null,{"$f":"IF(T_DataComboFile[[#This Row],[G&S reporting level indicator]]=1,$AX$16,\"Not applicable\")","v":"Level 3"},{"$f":"IF(AND($AX$16=\"Level 3\",T_DataComboFile[[#This Row],[Econ3]] = \"Goods and services\"),IF(T_DataComboFile[[#This Row],[Econ4]] = T_DataComboFile[[#This Row],[Econ3]],1,0),IF(AND($AX$16=\"Level 4\",T_DataComboFile[[#This Row],[Econ4]] = \"Goods and services\"),0,1))","v":1},{"$f":"T_DataComboFile[[#This Row],[2016/17_Source]]*T_DataComboFile[[#This Row],[G&S reporting level indicator]]","v":0},{"$f":"T_DataComboFile[[#This Row],[2017/18_Source]]*T_DataComboFile[[#This Row],[G&S reporting level indicator]]","v":408},{"$f":"T_DataComboFile[[#This Row],[2018/19_Source]]*T_DataComboFile[[#This Row],[G&S reporting level indicator]]","v":1233},{"$f":"T_DataComboFile[[#This Row],[2019/20 Main appropriation_Source]]*T_DataComboFile[[#This Row],[G&S reporting level indicator]]","v":1160},{"$f":"T_DataComboFile[[#This Row],[2019/20 Adjusted appropriation_Source]]*T_DataComboFile[[#This Row],[G&S reporting level indicator]]","v":1160},{"$f":"T_DataComboFile[[#This Row],[2019/20 Revised estimate_Source]]*T_DataComboFile[[#This Row],[G&S reporting level indicator]]","v":1160},{"$f":"T_DataComboFile[[#This Row],[2019/20 Preliminary outcome_Source]]*T_DataComboFile[[#This Row],[G&S reporting level indicator]]","v":1160},{"$f":"T_DataComboFile[[#This Row],[2020/21 Original_Source]]*T_DataComboFile[[#This Row],[G&S reporting level indicator]]","v":1925},{"$f":"T_DataComboFile[[#This Row],[2020/21 SAB_Source]]*T_DataComboFile[[#This Row],[G&S reporting level indicator]]","v":1925},{"$f":"T_DataComboFile[[#This Row],[2020/21 Baseline_Source]]*T_DataComboFile[[#This Row],[G&S reporting level indicator]]","v":1816},{"$f":"T_DataComboFile[[#This Row],[2021/22 Baseline_Source]]*T_DataComboFile[[#This Row],[G&S reporting level indicator]]","v":1864},{"$f":"T_DataComboFile[[#This Row],[2022/23 Baseline_Source]]*T_DataComboFile[[#This Row],[G&S reporting level indicator]]","v":1929},{"$f":"T_DataComboFile[[#This Row],[2023/24 Baseline_Source]]*T_DataComboFile[[#This Row],[G&S reporting level indicator]]","v":2014},null,null,null,null,null,null,{"$f":"T_DataComboFile[[#This Row],[2021/22 Baseline]]+T_DataComboFile[[#This Row],[2021/22 Reduction]]+T_DataComboFile[[#This Row],[2021/22 Increase]]","v":1864},{"$f":"T_DataComboFile[[#This Row],[2022/23 Baseline]]+T_DataComboFile[[#This Row],[2022/23 Reduction]]+T_DataComboFile[[#This Row],[2022/23 Increase]]","v":1929},{"$f":"T_DataComboFile[[#This Row],[2023/24 Baseline]]+T_DataComboFile[[#This Row],[2023/24 Reduction]]+T_DataComboFile[[#This Row],[2023/24 Increase]]","v":2014}]
[null,null,"2021_22","ENE2020",36,3,3,null,70927,36,3,3,null,"070927","36|03|03",1,1,2,2,2,"01|01|02|02|02","National","Small Business Development","Integrated Cooperative Development","Supplier Development and Market Access Support","Non-transfer item","Current","Current payments","Goods and services","Goods and services","Goods and services","Economic development","Industrialisation and exports","NAT",540,2704,2077,2356,3652,3652,3652,4857,1357,4857,5282,5714,5966,1,null,{"$f":"IF(T_DataComboFile[[#This Row],[G&S reporting level indicator]]=1,$AX$16,\"Not applicable\")","v":"Level 3"},{"$f":"IF(AND($AX$16=\"Level 3\",T_DataComboFile[[#This Row],[Econ3]] = \"Goods and services\"),IF(T_DataComboFile[[#This Row],[Econ4]] = T_DataComboFile[[#This Row],[Econ3]],1,0),IF(AND($AX$16=\"Level 4\",T_DataComboFile[[#This Row],[Econ4]] = \"Goods and services\"),0,1))","v":1},{"$f":"T_DataComboFile[[#This Row],[2016/17_Source]]*T_DataComboFile[[#This Row],[G&S reporting level indicator]]","v":540},{"$f":"T_DataComboFile[[#This Row],[2017/18_Source]]*T_DataComboFile[[#This Row],[G&S reporting level indicator]]","v":2704},{"$f":"T_DataComboFile[[#This Row],[2018/19_Source]]*T_DataComboFile[[#This Row],[G&S reporting level indicator]]","v":2077},{"$f":"T_DataComboFile[[#This Row],[2019/20 Main appropriation_Source]]*T_DataComboFile[[#This Row],[G&S reporting level indicator]]","v":2356},{"$f":"T_DataComboFile[[#This Row],[2019/20 Adjusted appropriation_Source]]*T_DataComboFile[[#This Row],[G&S reporting level indicator]]","v":3652},{"$f":"T_DataComboFile[[#This Row],[2019/20 Revised estimate_Source]]*T_DataComboFile[[#This Row],[G&S reporting level indicator]]","v":3652},{"$f":"T_DataComboFile[[#This Row],[2019/20 Preliminary outcome_Source]]*T_DataComboFile[[#This Row],[G&S reporting level indicator]]","v":3652},{"$f":"T_DataComboFile[[#This Row],[2020/21 Original_Source]]*T_DataComboFile[[#This Row],[G&S reporting level indicator]]","v":4857},{"$f":"T_DataComboFile[[#This Row],[2020/21 SAB_Source]]*T_DataComboFile[[#This Row],[G&S reporting level indicator]]","v":1357},{"$f":"T_DataComboFile[[#This Row],[2020/21 Baseline_Source]]*T_DataComboFile[[#This Row],[G&S reporting level indicator]]","v":4857},{"$f":"T_DataComboFile[[#This Row],[2021/22 Baseline_Source]]*T_DataComboFile[[#This Row],[G&S reporting level indicator]]","v":5282},{"$f":"T_DataComboFile[[#This Row],[2022/23 Baseline_Source]]*T_DataComboFile[[#This Row],[G&S reporting level indicator]]","v":5714},{"$f":"T_DataComboFile[[#This Row],[2023/24 Baseline_Source]]*T_DataComboFile[[#This Row],[G&S reporting level indicator]]","v":5966},null,null,null,null,null,null,{"$f":"T_DataComboFile[[#This Row],[2021/22 Baseline]]+T_DataComboFile[[#This Row],[2021/22 Reduction]]+T_DataComboFile[[#This Row],[2021/22 Increase]]","v":5282},{"$f":"T_DataComboFile[[#This Row],[2022/23 Baseline]]+T_DataComboFile[[#This Row],[2022/23 Reduction]]+T_DataComboFile[[#This Row],[2022/23 Increase]]","v":5714},{"$f":"T_DataComboFile[[#This Row],[2023/24 Baseline]]+T_DataComboFile[[#This Row],[2023/24 Reduction]]+T_DataComboFile[[#This Row],[2023/24 Increase]]","v":5966}]
["NAT|Non-transfer item","36|Administrative fees","2021_22","ENE2020",36,3,3,17372,70928,36,3,3,17372,"070928","36|03|03",1,1,2,3,3,"01|01|02|03|03","National","Small Business Development","Integrated Cooperative Development","Supplier Development and Market Access Support","Non-transfer item","Current","Current payments","Goods and services","Administrative fees","Administrative fees","Economic development","Industrialisation and exports","NAT",27,76,91,58,58,58,58,106,106,106,111,117,122,1,null,{"$f":"IF(T_DataComboFile[[#This Row],[G&S reporting level indicator]]=1,$AX$16,\"Not applicable\")","v":"Not applicable"},{"$f":"IF(AND($AX$16=\"Level 3\",T_DataComboFile[[#This Row],[Econ3]] = \"Goods and services\"),IF(T_DataComboFile[[#This Row],[Econ4]] = T_DataComboFile[[#This Row],[Econ3]],1,0),IF(AND($AX$16=\"Level 4\",T_DataComboFile[[#This Row],[Econ4]] = \"Goods and services\"),0,1))","v":0},{"$f":"T_DataComboFile[[#This Row],[2016/17_Source]]*T_DataComboFile[[#This Row],[G&S reporting level indicator]]","v":0},{"$f":"T_DataComboFile[[#This Row],[2017/18_Source]]*T_DataComboFile[[#This Row],[G&S reporting level indicator]]","v":0},{"$f":"T_DataComboFile[[#This Row],[2018/19_Source]]*T_DataComboFile[[#This Row],[G&S reporting level indicator]]","v":0},{"$f":"T_DataComboFile[[#This Row],[2019/20 Main appropriation_Source]]*T_DataComboFile[[#This Row],[G&S reporting level indicator]]","v":0},{"$f":"T_DataComboFile[[#This Row],[2019/20 Adjusted appropriation_Source]]*T_DataComboFile[[#This Row],[G&S reporting level indicator]]","v":0},{"$f":"T_DataComboFile[[#This Row],[2019/20 Revised estimate_Source]]*T_DataComboFile[[#This Row],[G&S reporting level indicator]]","v":0},{"$f":"T_DataComboFile[[#This Row],[2019/20 Preliminary outcome_Source]]*T_DataComboFile[[#This Row],[G&S reporting level indicator]]","v":0},{"$f":"T_DataComboFile[[#This Row],[2020/21 Original_Source]]*T_DataComboFile[[#This Row],[G&S reporting level indicator]]","v":0},{"$f":"T_DataComboFile[[#This Row],[2020/21 SAB_Source]]*T_DataComboFile[[#This Row],[G&S reporting level indicator]]","v":0},{"$f":"T_DataComboFile[[#This Row],[2020/21 Baseline_Source]]*T_DataComboFile[[#This Row],[G&S reporting level indicator]]","v":0},{"$f":"T_DataComboFile[[#This Row],[2021/22 Baseline_Source]]*T_DataComboFile[[#This Row],[G&S reporting level indicator]]","v":0},{"$f":"T_DataComboFile[[#This Row],[2022/23 Baseline_Source]]*T_DataComboFile[[#This Row],[G&S reporting level indicator]]","v":0},{"$f":"T_DataComboFile[[#This Row],[2023/24 Baseline_Source]]*T_DataComboFile[[#This Row],[G&S reporting level indicator]]","v":0},null,null,null,null,null,null,{"$f":"T_DataComboFile[[#This Row],[2021/22 Baseline]]+T_DataComboFile[[#This Row],[2021/22 Reduction]]+T_DataComboFile[[#This Row],[2021/22 Increase]]","v":0},{"$f":"T_DataComboFile[[#This Row],[2022/23 Baseline]]+T_DataComboFile[[#This Row],[2022/23 Reduction]]+T_DataComboFile[[#This Row],[2022/23 Increase]]","v":0},{"$f":"T_DataComboFile[[#This Row],[2023/24 Baseline]]+T_DataComboFile[[#This Row],[2023/24 Reduction]]+T_DataComboFile[[#This Row],[2023/24 Increase]]","v":0}]
["NAT|Non-transfer item","36|Advertising","2021_22","ENE2020",36,3,3,17373,70929,36,3,3,17373,"070929","36|03|03",1,1,2,4,4,"01|01|02|04|04","National","Small Business Development","Integrated Cooperative Development","Supplier Development and Market Access Support","Non-transfer item","Current","Current payments","Goods and services","Advertising","Advertising","Economic development","Industrialisation and exports","NAT",0,0,0,27,27,27,27,0,0,0,0,0,0,1,null,{"$f":"IF(T_DataComboFile[[#This Row],[G&S reporting level indicator]]=1,$AX$16,\"Not applicable\")","v":"Not applicable"},{"$f":"IF(AND($AX$16=\"Level 3\",T_DataComboFile[[#This Row],[Econ3]] = \"Goods and services\"),IF(T_DataComboFile[[#This Row],[Econ4]] = T_DataComboFile[[#This Row],[Econ3]],1,0),IF(AND($AX$16=\"Level 4\",T_DataComboFile[[#This Row],[Econ4]] = \"Goods and services\"),0,1))","v":0},{"$f":"T_DataComboFile[[#This Row],[2016/17_Source]]*T_DataComboFile[[#This Row],[G&S reporting level indicator]]","v":0},{"$f":"T_DataComboFile[[#This Row],[2017/18_Source]]*T_DataComboFile[[#This Row],[G&S reporting level indicator]]","v":0},{"$f":"T_DataComboFile[[#This Row],[2018/19_Source]]*T_DataComboFile[[#This Row],[G&S reporting level indicator]]","v":0},{"$f":"T_DataComboFile[[#This Row],[2019/20 Main appropriation_Source]]*T_DataComboFile[[#This Row],[G&S reporting level indicator]]","v":0},{"$f":"T_DataComboFile[[#This Row],[2019/20 Adjusted appropriation_Source]]*T_DataComboFile[[#This Row],[G&S reporting level indicator]]","v":0},{"$f":"T_DataComboFile[[#This Row],[2019/20 Revised estimate_Source]]*T_DataComboFile[[#This Row],[G&S reporting level indicator]]","v":0},{"$f":"T_DataComboFile[[#This Row],[2019/20 Preliminary outcome_Source]]*T_DataComboFile[[#This Row],[G&S reporting level indicator]]","v":0},{"$f":"T_DataComboFile[[#This Row],[2020/21 Original_Source]]*T_DataComboFile[[#This Row],[G&S reporting level indicator]]","v":0},{"$f":"T_DataComboFile[[#This Row],[2020/21 SAB_Source]]*T_DataComboFile[[#This Row],[G&S reporting level indicator]]","v":0},{"$f":"T_DataComboFile[[#This Row],[2020/21 Baseline_Source]]*T_DataComboFile[[#This Row],[G&S reporting level indicator]]","v":0},{"$f":"T_DataComboFile[[#This Row],[2021/22 Baseline_Source]]*T_DataComboFile[[#This Row],[G&S reporting level indicator]]","v":0},{"$f":"T_DataComboFile[[#This Row],[2022/23 Baseline_Source]]*T_DataComboFile[[#This Row],[G&S reporting level indicator]]","v":0},{"$f":"T_DataComboFile[[#This Row],[2023/24 Baseline_Source]]*T_DataComboFile[[#This Row],[G&S reporting level indicator]]","v":0},null,null,null,null,null,null,{"$f":"T_DataComboFile[[#This Row],[2021/22 Baseline]]+T_DataComboFile[[#This Row],[2021/22 Reduction]]+T_DataComboFile[[#This Row],[2021/22 Increase]]","v":0},{"$f":"T_DataComboFile[[#This Row],[2022/23 Baseline]]+T_DataComboFile[[#This Row],[2022/23 Reduction]]+T_DataComboFile[[#This Row],[2022/23 Increase]]","v":0},{"$f":"T_DataComboFile[[#This Row],[2023/24 Baseline]]+T_DataComboFile[[#This Row],[2023/24 Reduction]]+T_DataComboFile[[#This Row],[2023/24 Increase]]","v":0}]
[null,null,"2021_22","ENE2020",36,3,3,null,70930,36,3,3,null,"070930","36|03|03",1,1,2,5,5,"01|01|02|05|05","National","Small Business Development","Integrated Cooperative Development","Supplier Development and Market Access Support",null,"Current","Current payments","Goods and services","Minor assets","Minor assets",null,null,null,0,0,0,0,0,0,0,0,0,0,0,0,0,0,null,{"$f":"IF(T_DataComboFile[[#This Row],[G&S reporting level indicator]]=1,$AX$16,\"Not applicable\")","v":"Not applicable"},{"$f":"IF(AND($AX$16=\"Level 3\",T_DataComboFile[[#This Row],[Econ3]] = \"Goods and services\"),IF(T_DataComboFile[[#This Row],[Econ4]] = T_DataComboFile[[#This Row],[Econ3]],1,0),IF(AND($AX$16=\"Level 4\",T_DataComboFile[[#This Row],[Econ4]] = \"Goods and services\"),0,1))","v":0},{"$f":"T_DataComboFile[[#This Row],[2016/17_Source]]*T_DataComboFile[[#This Row],[G&S reporting level indicator]]","v":0},{"$f":"T_DataComboFile[[#This Row],[2017/18_Source]]*T_DataComboFile[[#This Row],[G&S reporting level indicator]]","v":0},{"$f":"T_DataComboFile[[#This Row],[2018/19_Source]]*T_DataComboFile[[#This Row],[G&S reporting level indicator]]","v":0},{"$f":"T_DataComboFile[[#This Row],[2019/20 Main appropriation_Source]]*T_DataComboFile[[#This Row],[G&S reporting level indicator]]","v":0},{"$f":"T_DataComboFile[[#This Row],[2019/20 Adjusted appropriation_Source]]*T_DataComboFile[[#This Row],[G&S reporting level indicator]]","v":0},{"$f":"T_DataComboFile[[#This Row],[2019/20 Revised estimate_Source]]*T_DataComboFile[[#This Row],[G&S reporting level indicator]]","v":0},{"$f":"T_DataComboFile[[#This Row],[2019/20 Preliminary outcome_Source]]*T_DataComboFile[[#This Row],[G&S reporting level indicator]]","v":0},{"$f":"T_DataComboFile[[#This Row],[2020/21 Original_Source]]*T_DataComboFile[[#This Row],[G&S reporting level indicator]]","v":0},{"$f":"T_DataComboFile[[#This Row],[2020/21 SAB_Source]]*T_DataComboFile[[#This Row],[G&S reporting level indicator]]","v":0},{"$f":"T_DataComboFile[[#This Row],[2020/21 Baseline_Source]]*T_DataComboFile[[#This Row],[G&S reporting level indicator]]","v":0},{"$f":"T_DataComboFile[[#This Row],[2021/22 Baseline_Source]]*T_DataComboFile[[#This Row],[G&S reporting level indicator]]","v":0},{"$f":"T_DataComboFile[[#This Row],[2022/23 Baseline_Source]]*T_DataComboFile[[#This Row],[G&S reporting level indicator]]","v":0},{"$f":"T_DataComboFile[[#This Row],[2023/24 Baseline_Source]]*T_DataComboFile[[#This Row],[G&S reporting level indicator]]","v":0},null,null,null,null,null,null,{"$f":"T_DataComboFile[[#This Row],[2021/22 Baseline]]+T_DataComboFile[[#This Row],[2021/22 Reduction]]+T_DataComboFile[[#This Row],[2021/22 Increase]]","v":0},{"$f":"T_DataComboFile[[#This Row],[2022/23 Baseline]]+T_DataComboFile[[#This Row],[2022/23 Reduction]]+T_DataComboFile[[#This Row],[2022/23 Increase]]","v":0},{"$f":"T_DataComboFile[[#This Row],[2023/24 Baseline]]+T_DataComboFile[[#This Row],[2023/24 Reduction]]+T_DataComboFile[[#This Row],[2023/24 Increase]]","v":0}]
[null,null,"2021_22","ENE2020",36,3,3,null,70931,36,3,3,null,"070931","36|03|03",1,1,2,6,6,"01|01|02|06|06","National","Small Business Development","Integrated Cooperative Development","Supplier Development and Market Access Support",null,"Current","Current payments","Goods and services","Audit costs: External","Audit costs: External",null,null,null,0,0,0,0,0,0,0,0,0,0,0,0,0,0,null,{"$f":"IF(T_DataComboFile[[#This Row],[G&S reporting level indicator]]=1,$AX$16,\"Not applicable\")","v":"Not applicable"},{"$f":"IF(AND($AX$16=\"Level 3\",T_DataComboFile[[#This Row],[Econ3]] = \"Goods and services\"),IF(T_DataComboFile[[#This Row],[Econ4]] = T_DataComboFile[[#This Row],[Econ3]],1,0),IF(AND($AX$16=\"Level 4\",T_DataComboFile[[#This Row],[Econ4]] = \"Goods and services\"),0,1))","v":0},{"$f":"T_DataComboFile[[#This Row],[2016/17_Source]]*T_DataComboFile[[#This Row],[G&S reporting level indicator]]","v":0},{"$f":"T_DataComboFile[[#This Row],[2017/18_Source]]*T_DataComboFile[[#This Row],[G&S reporting level indicator]]","v":0},{"$f":"T_DataComboFile[[#This Row],[2018/19_Source]]*T_DataComboFile[[#This Row],[G&S reporting level indicator]]","v":0},{"$f":"T_DataComboFile[[#This Row],[2019/20 Main appropriation_Source]]*T_DataComboFile[[#This Row],[G&S reporting level indicator]]","v":0},{"$f":"T_DataComboFile[[#This Row],[2019/20 Adjusted appropriation_Source]]*T_DataComboFile[[#This Row],[G&S reporting level indicator]]","v":0},{"$f":"T_DataComboFile[[#This Row],[2019/20 Revised estimate_Source]]*T_DataComboFile[[#This Row],[G&S reporting level indicator]]","v":0},{"$f":"T_DataComboFile[[#This Row],[2019/20 Preliminary outcome_Source]]*T_DataComboFile[[#This Row],[G&S reporting level indicator]]","v":0},{"$f":"T_DataComboFile[[#This Row],[2020/21 Original_Source]]*T_DataComboFile[[#This Row],[G&S reporting level indicator]]","v":0},{"$f":"T_DataComboFile[[#This Row],[2020/21 SAB_Source]]*T_DataComboFile[[#This Row],[G&S reporting level indicator]]","v":0},{"$f":"T_DataComboFile[[#This Row],[2020/21 Baseline_Source]]*T_DataComboFile[[#This Row],[G&S reporting level indicator]]","v":0},{"$f":"T_DataComboFile[[#This Row],[2021/22 Baseline_Source]]*T_DataComboFile[[#This Row],[G&S reporting level indicator]]","v":0},{"$f":"T_DataComboFile[[#This Row],[2022/23 Baseline_Source]]*T_DataComboFile[[#This Row],[G&S reporting level indicator]]","v":0},{"$f":"T_DataComboFile[[#This Row],[2023/24 Baseline_Source]]*T_DataComboFile[[#This Row],[G&S reporting level indicator]]","v":0},null,null,null,null,null,null,{"$f":"T_DataComboFile[[#This Row],[2021/22 Baseline]]+T_DataComboFile[[#This Row],[2021/22 Reduction]]+T_DataComboFile[[#This Row],[2021/22 Increase]]","v":0},{"$f":"T_DataComboFile[[#This Row],[2022/23 Baseline]]+T_DataComboFile[[#This Row],[2022/23 Reduction]]+T_DataComboFile[[#This Row],[2022/23 Increase]]","v":0},{"$f":"T_DataComboFile[[#This Row],[2023/24 Baseline]]+T_DataComboFile[[#This Row],[2023/24 Reduction]]+T_DataComboFile[[#This Row],[2023/24 Increase]]","v":0}]
[null,null,"2021_22","ENE2020",36,3,3,null,70932,36,3,3,null,"070932","36|03|03",1,1,2,7,7,"01|01|02|07|07","National","Small Business Development","Integrated Cooperative Development","Supplier Development and Market Access Support",null,"Current","Current payments","Goods and services","Bursaries: Employees","Bursaries: Employees",null,null,null,0,0,0,0,0,0,0,0,0,0,0,0,0,0,null,{"$f":"IF(T_DataComboFile[[#This Row],[G&S reporting level indicator]]=1,$AX$16,\"Not applicable\")","v":"Not applicable"},{"$f":"IF(AND($AX$16=\"Level 3\",T_DataComboFile[[#This Row],[Econ3]] = \"Goods and services\"),IF(T_DataComboFile[[#This Row],[Econ4]] = T_DataComboFile[[#This Row],[Econ3]],1,0),IF(AND($AX$16=\"Level 4\",T_DataComboFile[[#This Row],[Econ4]] = \"Goods and services\"),0,1))","v":0},{"$f":"T_DataComboFile[[#This Row],[2016/17_Source]]*T_DataComboFile[[#This Row],[G&S reporting level indicator]]","v":0},{"$f":"T_DataComboFile[[#This Row],[2017/18_Source]]*T_DataComboFile[[#This Row],[G&S reporting level indicator]]","v":0},{"$f":"T_DataComboFile[[#This Row],[2018/19_Source]]*T_DataComboFile[[#This Row],[G&S reporting level indicator]]","v":0},{"$f":"T_DataComboFile[[#This Row],[2019/20 Main appropriation_Source]]*T_DataComboFile[[#This Row],[G&S reporting level indicator]]","v":0},{"$f":"T_DataComboFile[[#This Row],[2019/20 Adjusted appropriation_Source]]*T_DataComboFile[[#This Row],[G&S reporting level indicator]]","v":0},{"$f":"T_DataComboFile[[#This Row],[2019/20 Revised estimate_Source]]*T_DataComboFile[[#This Row],[G&S reporting level indicator]]","v":0},{"$f":"T_DataComboFile[[#This Row],[2019/20 Preliminary outcome_Source]]*T_DataComboFile[[#This Row],[G&S reporting level indicator]]","v":0},{"$f":"T_DataComboFile[[#This Row],[2020/21 Original_Source]]*T_DataComboFile[[#This Row],[G&S reporting level indicator]]","v":0},{"$f":"T_DataComboFile[[#This Row],[2020/21 SAB_Source]]*T_DataComboFile[[#This Row],[G&S reporting level indicator]]","v":0},{"$f":"T_DataComboFile[[#This Row],[2020/21 Baseline_Source]]*T_DataComboFile[[#This Row],[G&S reporting level indicator]]","v":0},{"$f":"T_DataComboFile[[#This Row],[2021/22 Baseline_Source]]*T_DataComboFile[[#This Row],[G&S reporting level indicator]]","v":0},{"$f":"T_DataComboFile[[#This Row],[2022/23 Baseline_Source]]*T_DataComboFile[[#This Row],[G&S reporting level indicator]]","v":0},{"$f":"T_DataComboFile[[#This Row],[2023/24 Baseline_Source]]*T_DataComboFile[[#This Row],[G&S reporting level indicator]]","v":0},null,null,null,null,null,null,{"$f":"T_DataComboFile[[#This Row],[2021/22 Baseline]]+T_DataComboFile[[#This Row],[2021/22 Reduction]]+T_DataComboFile[[#This Row],[2021/22 Increase]]","v":0},{"$f":"T_DataComboFile[[#This Row],[2022/23 Baseline]]+T_DataComboFile[[#This Row],[2022/23 Reduction]]+T_DataComboFile[[#This Row],[2022/23 Increase]]","v":0},{"$f":"T_DataComboFile[[#This Row],[2023/24 Baseline]]+T_DataComboFile[[#This Row],[2023/24 Reduction]]+T_DataComboFile[[#This Row],[2023/24 Increase]]","v":0}]
["NAT|Non-transfer item","36|Catering: Departmental activities","2021_22","ENE2020",36,3,3,17374,70933,36,3,3,17374,"070933","36|03|03",1,1,2,8,8,"01|01|02|08|08","National","Small Business Development","Integrated Cooperative Development","Supplier Development and Market Access Support","Non-transfer item","Current","Current payments","Goods and services","Catering: Departmental activities","Catering: Departmental activities","Economic development","Industrialisation and exports","NAT",18,148,49,53,53,53,53,62,62,62,68,74,77,1,null,{"$f":"IF(T_DataComboFile[[#This Row],[G&S reporting level indicator]]=1,$AX$16,\"Not applicable\")","v":"Not applicable"},{"$f":"IF(AND($AX$16=\"Level 3\",T_DataComboFile[[#This Row],[Econ3]] = \"Goods and services\"),IF(T_DataComboFile[[#This Row],[Econ4]] = T_DataComboFile[[#This Row],[Econ3]],1,0),IF(AND($AX$16=\"Level 4\",T_DataComboFile[[#This Row],[Econ4]] = \"Goods and services\"),0,1))","v":0},{"$f":"T_DataComboFile[[#This Row],[2016/17_Source]]*T_DataComboFile[[#This Row],[G&S reporting level indicator]]","v":0},{"$f":"T_DataComboFile[[#This Row],[2017/18_Source]]*T_DataComboFile[[#This Row],[G&S reporting level indicator]]","v":0},{"$f":"T_DataComboFile[[#This Row],[2018/19_Source]]*T_DataComboFile[[#This Row],[G&S reporting level indicator]]","v":0},{"$f":"T_DataComboFile[[#This Row],[2019/20 Main appropriation_Source]]*T_DataComboFile[[#This Row],[G&S reporting level indicator]]","v":0},{"$f":"T_DataComboFile[[#This Row],[2019/20 Adjusted appropriation_Source]]*T_DataComboFile[[#This Row],[G&S reporting level indicator]]","v":0},{"$f":"T_DataComboFile[[#This Row],[2019/20 Revised estimate_Source]]*T_DataComboFile[[#This Row],[G&S reporting level indicator]]","v":0},{"$f":"T_DataComboFile[[#This Row],[2019/20 Preliminary outcome_Source]]*T_DataComboFile[[#This Row],[G&S reporting level indicator]]","v":0},{"$f":"T_DataComboFile[[#This Row],[2020/21 Original_Source]]*T_DataComboFile[[#This Row],[G&S reporting level indicator]]","v":0},{"$f":"T_DataComboFile[[#This Row],[2020/21 SAB_Source]]*T_DataComboFile[[#This Row],[G&S reporting level indicator]]","v":0},{"$f":"T_DataComboFile[[#This Row],[2020/21 Baseline_Source]]*T_DataComboFile[[#This Row],[G&S reporting level indicator]]","v":0},{"$f":"T_DataComboFile[[#This Row],[2021/22 Baseline_Source]]*T_DataComboFile[[#This Row],[G&S reporting level indicator]]","v":0},{"$f":"T_DataComboFile[[#This Row],[2022/23 Baseline_Source]]*T_DataComboFile[[#This Row],[G&S reporting level indicator]]","v":0},{"$f":"T_DataComboFile[[#This Row],[2023/24 Baseline_Source]]*T_DataComboFile[[#This Row],[G&S reporting level indicator]]","v":0},null,null,null,null,null,null,{"$f":"T_DataComboFile[[#This Row],[2021/22 Baseline]]+T_DataComboFile[[#This Row],[2021/22 Reduction]]+T_DataComboFile[[#This Row],[2021/22 Increase]]","v":0},{"$f":"T_DataComboFile[[#This Row],[2022/23 Baseline]]+T_DataComboFile[[#This Row],[2022/23 Reduction]]+T_DataComboFile[[#This Row],[2022/23 Increase]]","v":0},{"$f":"T_DataComboFile[[#This Row],[2023/24 Baseline]]+T_DataComboFile[[#This Row],[2023/24 Reduction]]+T_DataComboFile[[#This Row],[2023/24 Increase]]","v":0}]
["NAT|Non-transfer item","36|Communication (G&S)","2021_22","ENE2020",36,3,3,17375,70934,36,3,3,17375,"070934","36|03|03",1,1,2,9,9,"01|01|02|09|09","National","Small Business Development","Integrated Cooperative Development","Supplier Development and Market Access Support","Non-transfer item","Current","Current payments","Goods and services","Communication (G&S)","Communication (G&S)","Economic development","Industrialisation and exports","NAT",2,4,29,21,56,56,56,38,38,38,42,46,48,1,null,{"$f":"IF(T_DataComboFile[[#This Row],[G&S reporting level indicator]]=1,$AX$16,\"Not applicable\")","v":"Not applicable"},{"$f":"IF(AND($AX$16=\"Level 3\",T_DataComboFile[[#This Row],[Econ3]] = \"Goods and services\"),IF(T_DataComboFile[[#This Row],[Econ4]] = T_DataComboFile[[#This Row],[Econ3]],1,0),IF(AND($AX$16=\"Level 4\",T_DataComboFile[[#This Row],[Econ4]] = \"Goods and services\"),0,1))","v":0},{"$f":"T_DataComboFile[[#This Row],[2016/17_Source]]*T_DataComboFile[[#This Row],[G&S reporting level indicator]]","v":0},{"$f":"T_DataComboFile[[#This Row],[2017/18_Source]]*T_DataComboFile[[#This Row],[G&S reporting level indicator]]","v":0},{"$f":"T_DataComboFile[[#This Row],[2018/19_Source]]*T_DataComboFile[[#This Row],[G&S reporting level indicator]]","v":0},{"$f":"T_DataComboFile[[#This Row],[2019/20 Main appropriation_Source]]*T_DataComboFile[[#This Row],[G&S reporting level indicator]]","v":0},{"$f":"T_DataComboFile[[#This Row],[2019/20 Adjusted appropriation_Source]]*T_DataComboFile[[#This Row],[G&S reporting level indicator]]","v":0},{"$f":"T_DataComboFile[[#This Row],[2019/20 Revised estimate_Source]]*T_DataComboFile[[#This Row],[G&S reporting level indicator]]","v":0},{"$f":"T_DataComboFile[[#This Row],[2019/20 Preliminary outcome_Source]]*T_DataComboFile[[#This Row],[G&S reporting level indicator]]","v":0},{"$f":"T_DataComboFile[[#This Row],[2020/21 Original_Source]]*T_DataComboFile[[#This Row],[G&S reporting level indicator]]","v":0},{"$f":"T_DataComboFile[[#This Row],[2020/21 SAB_Source]]*T_DataComboFile[[#This Row],[G&S reporting level indicator]]","v":0},{"$f":"T_DataComboFile[[#This Row],[2020/21 Baseline_Source]]*T_DataComboFile[[#This Row],[G&S reporting level indicator]]","v":0},{"$f":"T_DataComboFile[[#This Row],[2021/22 Baseline_Source]]*T_DataComboFile[[#This Row],[G&S reporting level indicator]]","v":0},{"$f":"T_DataComboFile[[#This Row],[2022/23 Baseline_Source]]*T_DataComboFile[[#This Row],[G&S reporting level indicator]]","v":0},{"$f":"T_DataComboFile[[#This Row],[2023/24 Baseline_Source]]*T_DataComboFile[[#This Row],[G&S reporting level indicator]]","v":0},null,null,null,null,null,null,{"$f":"T_DataComboFile[[#This Row],[2021/22 Baseline]]+T_DataComboFile[[#This Row],[2021/22 Reduction]]+T_DataComboFile[[#This Row],[2021/22 Increase]]","v":0},{"$f":"T_DataComboFile[[#This Row],[2022/23 Baseline]]+T_DataComboFile[[#This Row],[2022/23 Reduction]]+T_DataComboFile[[#This Row],[2022/23 Increase]]","v":0},{"$f":"T_DataComboFile[[#This Row],[2023/24 Baseline]]+T_DataComboFile[[#This Row],[2023/24 Reduction]]+T_DataComboFile[[#This Row],[2023/24 Increase]]","v":0}]
[null,null,"2021_22","ENE2020",36,3,3,null,70935,36,3,3,null,"070935","36|03|03",1,1,2,10,10,"01|01|02|10|10","National","Small Business Development","Integrated Cooperative Development","Supplier Development and Market Access Support",null,"Current","Current payments","Goods and services","Computer services","Computer services",null,null,null,0,0,0,0,0,0,0,0,0,0,0,0,0,0,null,{"$f":"IF(T_DataComboFile[[#This Row],[G&S reporting level indicator]]=1,$AX$16,\"Not applicable\")","v":"Not applicable"},{"$f":"IF(AND($AX$16=\"Level 3\",T_DataComboFile[[#This Row],[Econ3]] = \"Goods and services\"),IF(T_DataComboFile[[#This Row],[Econ4]] = T_DataComboFile[[#This Row],[Econ3]],1,0),IF(AND($AX$16=\"Level 4\",T_DataComboFile[[#This Row],[Econ4]] = \"Goods and services\"),0,1))","v":0},{"$f":"T_DataComboFile[[#This Row],[2016/17_Source]]*T_DataComboFile[[#This Row],[G&S reporting level indicator]]","v":0},{"$f":"T_DataComboFile[[#This Row],[2017/18_Source]]*T_DataComboFile[[#This Row],[G&S reporting level indicator]]","v":0},{"$f":"T_DataComboFile[[#This Row],[2018/19_Source]]*T_DataComboFile[[#This Row],[G&S reporting level indicator]]","v":0},{"$f":"T_DataComboFile[[#This Row],[2019/20 Main appropriation_Source]]*T_DataComboFile[[#This Row],[G&S reporting level indicator]]","v":0},{"$f":"T_DataComboFile[[#This Row],[2019/20 Adjusted appropriation_Source]]*T_DataComboFile[[#This Row],[G&S reporting level indicator]]","v":0},{"$f":"T_DataComboFile[[#This Row],[2019/20 Revised estimate_Source]]*T_DataComboFile[[#This Row],[G&S reporting level indicator]]","v":0},{"$f":"T_DataComboFile[[#This Row],[2019/20 Preliminary outcome_Source]]*T_DataComboFile[[#This Row],[G&S reporting level indicator]]","v":0},{"$f":"T_DataComboFile[[#This Row],[2020/21 Original_Source]]*T_DataComboFile[[#This Row],[G&S reporting level indicator]]","v":0},{"$f":"T_DataComboFile[[#This Row],[2020/21 SAB_Source]]*T_DataComboFile[[#This Row],[G&S reporting level indicator]]","v":0},{"$f":"T_DataComboFile[[#This Row],[2020/21 Baseline_Source]]*T_DataComboFile[[#This Row],[G&S reporting level indicator]]","v":0},{"$f":"T_DataComboFile[[#This Row],[2021/22 Baseline_Source]]*T_DataComboFile[[#This Row],[G&S reporting level indicator]]","v":0},{"$f":"T_DataComboFile[[#This Row],[2022/23 Baseline_Source]]*T_DataComboFile[[#This Row],[G&S reporting level indicator]]","v":0},{"$f":"T_DataComboFile[[#This Row],[2023/24 Baseline_Source]]*T_DataComboFile[[#This Row],[G&S reporting level indicator]]","v":0},null,null,null,null,null,null,{"$f":"T_DataComboFile[[#This Row],[2021/22 Baseline]]+T_DataComboFile[[#This Row],[2021/22 Reduction]]+T_DataComboFile[[#This Row],[2021/22 Increase]]","v":0},{"$f":"T_DataComboFile[[#This Row],[2022/23 Baseline]]+T_DataComboFile[[#This Row],[2022/23 Reduction]]+T_DataComboFile[[#This Row],[2022/23 Increase]]","v":0},{"$f":"T_DataComboFile[[#This Row],[2023/24 Baseline]]+T_DataComboFile[[#This Row],[2023/24 Reduction]]+T_DataComboFile[[#This Row],[2023/24 Increase]]","v":0}]
[null,null,"2021_22","ENE2020",36,3,3,null,70936,36,3,3,null,"070936","36|03|03",1,1,2,11,11,"01|01|02|11|11","National","Small Business Development","Integrated Cooperative Development","Supplier Development and Market Access Support",null,"Current","Current payments","Goods and services","Consultants: Business and advisory services","Consultants: Business and advisory services",null,null,null,0,0,0,0,0,0,0,0,0,0,0,0,0,0,null,{"$f":"IF(T_DataComboFile[[#This Row],[G&S reporting level indicator]]=1,$AX$16,\"Not applicable\")","v":"Not applicable"},{"$f":"IF(AND($AX$16=\"Level 3\",T_DataComboFile[[#This Row],[Econ3]] = \"Goods and services\"),IF(T_DataComboFile[[#This Row],[Econ4]] = T_DataComboFile[[#This Row],[Econ3]],1,0),IF(AND($AX$16=\"Level 4\",T_DataComboFile[[#This Row],[Econ4]] = \"Goods and services\"),0,1))","v":0},{"$f":"T_DataComboFile[[#This Row],[2016/17_Source]]*T_DataComboFile[[#This Row],[G&S reporting level indicator]]","v":0},{"$f":"T_DataComboFile[[#This Row],[2017/18_Source]]*T_DataComboFile[[#This Row],[G&S reporting level indicator]]","v":0},{"$f":"T_DataComboFile[[#This Row],[2018/19_Source]]*T_DataComboFile[[#This Row],[G&S reporting level indicator]]","v":0},{"$f":"T_DataComboFile[[#This Row],[2019/20 Main appropriation_Source]]*T_DataComboFile[[#This Row],[G&S reporting level indicator]]","v":0},{"$f":"T_DataComboFile[[#This Row],[2019/20 Adjusted appropriation_Source]]*T_DataComboFile[[#This Row],[G&S reporting level indicator]]","v":0},{"$f":"T_DataComboFile[[#This Row],[2019/20 Revised estimate_Source]]*T_DataComboFile[[#This Row],[G&S reporting level indicator]]","v":0},{"$f":"T_DataComboFile[[#This Row],[2019/20 Preliminary outcome_Source]]*T_DataComboFile[[#This Row],[G&S reporting level indicator]]","v":0},{"$f":"T_DataComboFile[[#This Row],[2020/21 Original_Source]]*T_DataComboFile[[#This Row],[G&S reporting level indicator]]","v":0},{"$f":"T_DataComboFile[[#This Row],[2020/21 SAB_Source]]*T_DataComboFile[[#This Row],[G&S reporting level indicator]]","v":0},{"$f":"T_DataComboFile[[#This Row],[2020/21 Baseline_Source]]*T_DataComboFile[[#This Row],[G&S reporting level indicator]]","v":0},{"$f":"T_DataComboFile[[#This Row],[2021/22 Baseline_Source]]*T_DataComboFile[[#This Row],[G&S reporting level indicator]]","v":0},{"$f":"T_DataComboFile[[#This Row],[2022/23 Baseline_Source]]*T_DataComboFile[[#This Row],[G&S reporting level indicator]]","v":0},{"$f":"T_DataComboFile[[#This Row],[2023/24 Baseline_Source]]*T_DataComboFile[[#This Row],[G&S reporting level indicator]]","v":0},null,null,null,null,null,null,{"$f":"T_DataComboFile[[#This Row],[2021/22 Baseline]]+T_DataComboFile[[#This Row],[2021/22 Reduction]]+T_DataComboFile[[#This Row],[2021/22 Increase]]","v":0},{"$f":"T_DataComboFile[[#This Row],[2022/23 Baseline]]+T_DataComboFile[[#This Row],[2022/23 Reduction]]+T_DataComboFile[[#This Row],[2022/23 Increase]]","v":0},{"$f":"T_DataComboFile[[#This Row],[2023/24 Baseline]]+T_DataComboFile[[#This Row],[2023/24 Reduction]]+T_DataComboFile[[#This Row],[2023/24 Increase]]","v":0}]
[null,null,"2021_22","ENE2020",36,3,3,null,70937,36,3,3,null,"070937","36|03|03",1,1,2,12,12,"01|01|02|12|12","National","Small Business Development","Integrated Cooperative Development","Supplier Development and Market Access Support",null,"Current","Current payments","Goods and services","Infrastructure and planning services","Infrastructure and planning services",null,null,null,0,0,0,0,0,0,0,0,0,0,0,0,0,0,null,{"$f":"IF(T_DataComboFile[[#This Row],[G&S reporting level indicator]]=1,$AX$16,\"Not applicable\")","v":"Not applicable"},{"$f":"IF(AND($AX$16=\"Level 3\",T_DataComboFile[[#This Row],[Econ3]] = \"Goods and services\"),IF(T_DataComboFile[[#This Row],[Econ4]] = T_DataComboFile[[#This Row],[Econ3]],1,0),IF(AND($AX$16=\"Level 4\",T_DataComboFile[[#This Row],[Econ4]] = \"Goods and services\"),0,1))","v":0},{"$f":"T_DataComboFile[[#This Row],[2016/17_Source]]*T_DataComboFile[[#This Row],[G&S reporting level indicator]]","v":0},{"$f":"T_DataComboFile[[#This Row],[2017/18_Source]]*T_DataComboFile[[#This Row],[G&S reporting level indicator]]","v":0},{"$f":"T_DataComboFile[[#This Row],[2018/19_Source]]*T_DataComboFile[[#This Row],[G&S reporting level indicator]]","v":0},{"$f":"T_DataComboFile[[#This Row],[2019/20 Main appropriation_Source]]*T_DataComboFile[[#This Row],[G&S reporting level indicator]]","v":0},{"$f":"T_DataComboFile[[#This Row],[2019/20 Adjusted appropriation_Source]]*T_DataComboFile[[#This Row],[G&S reporting level indicator]]","v":0},{"$f":"T_DataComboFile[[#This Row],[2019/20 Revised estimate_Source]]*T_DataComboFile[[#This Row],[G&S reporting level indicator]]","v":0},{"$f":"T_DataComboFile[[#This Row],[2019/20 Preliminary outcome_Source]]*T_DataComboFile[[#This Row],[G&S reporting level indicator]]","v":0},{"$f":"T_DataComboFile[[#This Row],[2020/21 Original_Source]]*T_DataComboFile[[#This Row],[G&S reporting level indicator]]","v":0},{"$f":"T_DataComboFile[[#This Row],[2020/21 SAB_Source]]*T_DataComboFile[[#This Row],[G&S reporting level indicator]]","v":0},{"$f":"T_DataComboFile[[#This Row],[2020/21 Baseline_Source]]*T_DataComboFile[[#This Row],[G&S reporting level indicator]]","v":0},{"$f":"T_DataComboFile[[#This Row],[2021/22 Baseline_Source]]*T_DataComboFile[[#This Row],[G&S reporting level indicator]]","v":0},{"$f":"T_DataComboFile[[#This Row],[2022/23 Baseline_Source]]*T_DataComboFile[[#This Row],[G&S reporting level indicator]]","v":0},{"$f":"T_DataComboFile[[#This Row],[2023/24 Baseline_Source]]*T_DataComboFile[[#This Row],[G&S reporting level indicator]]","v":0},null,null,null,null,null,null,{"$f":"T_DataComboFile[[#This Row],[2021/22 Baseline]]+T_DataComboFile[[#This Row],[2021/22 Reduction]]+T_DataComboFile[[#This Row],[2021/22 Increase]]","v":0},{"$f":"T_DataComboFile[[#This Row],[2022/23 Baseline]]+T_DataComboFile[[#This Row],[2022/23 Reduction]]+T_DataComboFile[[#This Row],[2022/23 Increase]]","v":0},{"$f":"T_DataComboFile[[#This Row],[2023/24 Baseline]]+T_DataComboFile[[#This Row],[2023/24 Reduction]]+T_DataComboFile[[#This Row],[2023/24 Increase]]","v":0}]
[null,null,"2021_22","ENE2020",36,3,3,null,70938,36,3,3,null,"070938","36|03|03",1,1,2,13,13,"01|01|02|13|13","National","Small Business Development","Integrated Cooperative Development","Supplier Development and Market Access Support",null,"Current","Current payments","Goods and services","Laboratory services","Laboratory services",null,null,null,0,0,0,0,0,0,0,0,0,0,0,0,0,0,null,{"$f":"IF(T_DataComboFile[[#This Row],[G&S reporting level indicator]]=1,$AX$16,\"Not applicable\")","v":"Not applicable"},{"$f":"IF(AND($AX$16=\"Level 3\",T_DataComboFile[[#This Row],[Econ3]] = \"Goods and services\"),IF(T_DataComboFile[[#This Row],[Econ4]] = T_DataComboFile[[#This Row],[Econ3]],1,0),IF(AND($AX$16=\"Level 4\",T_DataComboFile[[#This Row],[Econ4]] = \"Goods and services\"),0,1))","v":0},{"$f":"T_DataComboFile[[#This Row],[2016/17_Source]]*T_DataComboFile[[#This Row],[G&S reporting level indicator]]","v":0},{"$f":"T_DataComboFile[[#This Row],[2017/18_Source]]*T_DataComboFile[[#This Row],[G&S reporting level indicator]]","v":0},{"$f":"T_DataComboFile[[#This Row],[2018/19_Source]]*T_DataComboFile[[#This Row],[G&S reporting level indicator]]","v":0},{"$f":"T_DataComboFile[[#This Row],[2019/20 Main appropriation_Source]]*T_DataComboFile[[#This Row],[G&S reporting level indicator]]","v":0},{"$f":"T_DataComboFile[[#This Row],[2019/20 Adjusted appropriation_Source]]*T_DataComboFile[[#This Row],[G&S reporting level indicator]]","v":0},{"$f":"T_DataComboFile[[#This Row],[2019/20 Revised estimate_Source]]*T_DataComboFile[[#This Row],[G&S reporting level indicator]]","v":0},{"$f":"T_DataComboFile[[#This Row],[2019/20 Preliminary outcome_Source]]*T_DataComboFile[[#This Row],[G&S reporting level indicator]]","v":0},{"$f":"T_DataComboFile[[#This Row],[2020/21 Original_Source]]*T_DataComboFile[[#This Row],[G&S reporting level indicator]]","v":0},{"$f":"T_DataComboFile[[#This Row],[2020/21 SAB_Source]]*T_DataComboFile[[#This Row],[G&S reporting level indicator]]","v":0},{"$f":"T_DataComboFile[[#This Row],[2020/21 Baseline_Source]]*T_DataComboFile[[#This Row],[G&S reporting level indicator]]","v":0},{"$f":"T_DataComboFile[[#This Row],[2021/22 Baseline_Source]]*T_DataComboFile[[#This Row],[G&S reporting level indicator]]","v":0},{"$f":"T_DataComboFile[[#This Row],[2022/23 Baseline_Source]]*T_DataComboFile[[#This Row],[G&S reporting level indicator]]","v":0},{"$f":"T_DataComboFile[[#This Row],[2023/24 Baseline_Source]]*T_DataComboFile[[#This Row],[G&S reporting level indicator]]","v":0},null,null,null,null,null,null,{"$f":"T_DataComboFile[[#This Row],[2021/22 Baseline]]+T_DataComboFile[[#This Row],[2021/22 Reduction]]+T_DataComboFile[[#This Row],[2021/22 Increase]]","v":0},{"$f":"T_DataComboFile[[#This Row],[2022/23 Baseline]]+T_DataComboFile[[#This Row],[2022/23 Reduction]]+T_DataComboFile[[#This Row],[2022/23 Increase]]","v":0},{"$f":"T_DataComboFile[[#This Row],[2023/24 Baseline]]+T_DataComboFile[[#This Row],[2023/24 Reduction]]+T_DataComboFile[[#This Row],[2023/24 Increase]]","v":0}]
[null,null,"2021_22","ENE2020",36,3,3,null,70939,36,3,3,null,"070939","36|03|03",1,1,2,14,14,"01|01|02|14|14","National","Small Business Development","Integrated Cooperative Development","Supplier Development and Market Access Support",null,"Current","Current payments","Goods and services","Legal services (G&S)","Legal services (G&S)",null,null,null,0,0,0,0,0,0,0,0,0,0,0,0,0,0,null,{"$f":"IF(T_DataComboFile[[#This Row],[G&S reporting level indicator]]=1,$AX$16,\"Not applicable\")","v":"Not applicable"},{"$f":"IF(AND($AX$16=\"Level 3\",T_DataComboFile[[#This Row],[Econ3]] = \"Goods and services\"),IF(T_DataComboFile[[#This Row],[Econ4]] = T_DataComboFile[[#This Row],[Econ3]],1,0),IF(AND($AX$16=\"Level 4\",T_DataComboFile[[#This Row],[Econ4]] = \"Goods and services\"),0,1))","v":0},{"$f":"T_DataComboFile[[#This Row],[2016/17_Source]]*T_DataComboFile[[#This Row],[G&S reporting level indicator]]","v":0},{"$f":"T_DataComboFile[[#This Row],[2017/18_Source]]*T_DataComboFile[[#This Row],[G&S reporting level indicator]]","v":0},{"$f":"T_DataComboFile[[#This Row],[2018/19_Source]]*T_DataComboFile[[#This Row],[G&S reporting level indicator]]","v":0},{"$f":"T_DataComboFile[[#This Row],[2019/20 Main appropriation_Source]]*T_DataComboFile[[#This Row],[G&S reporting level indicator]]","v":0},{"$f":"T_DataComboFile[[#This Row],[2019/20 Adjusted appropriation_Source]]*T_DataComboFile[[#This Row],[G&S reporting level indicator]]","v":0},{"$f":"T_DataComboFile[[#This Row],[2019/20 Revised estimate_Source]]*T_DataComboFile[[#This Row],[G&S reporting level indicator]]","v":0},{"$f":"T_DataComboFile[[#This Row],[2019/20 Preliminary outcome_Source]]*T_DataComboFile[[#This Row],[G&S reporting level indicator]]","v":0},{"$f":"T_DataComboFile[[#This Row],[2020/21 Original_Source]]*T_DataComboFile[[#This Row],[G&S reporting level indicator]]","v":0},{"$f":"T_DataComboFile[[#This Row],[2020/21 SAB_Source]]*T_DataComboFile[[#This Row],[G&S reporting level indicator]]","v":0},{"$f":"T_DataComboFile[[#This Row],[2020/21 Baseline_Source]]*T_DataComboFile[[#This Row],[G&S reporting level indicator]]","v":0},{"$f":"T_DataComboFile[[#This Row],[2021/22 Baseline_Source]]*T_DataComboFile[[#This Row],[G&S reporting level indicator]]","v":0},{"$f":"T_DataComboFile[[#This Row],[2022/23 Baseline_Source]]*T_DataComboFile[[#This Row],[G&S reporting level indicator]]","v":0},{"$f":"T_DataComboFile[[#This Row],[2023/24 Baseline_Source]]*T_DataComboFile[[#This Row],[G&S reporting level indicator]]","v":0},null,null,null,null,null,null,{"$f":"T_DataComboFile[[#This Row],[2021/22 Baseline]]+T_DataComboFile[[#This Row],[2021/22 Reduction]]+T_DataComboFile[[#This Row],[2021/22 Increase]]","v":0},{"$f":"T_DataComboFile[[#This Row],[2022/23 Baseline]]+T_DataComboFile[[#This Row],[2022/23 Reduction]]+T_DataComboFile[[#This Row],[2022/23 Increase]]","v":0},{"$f":"T_DataComboFile[[#This Row],[2023/24 Baseline]]+T_DataComboFile[[#This Row],[2023/24 Reduction]]+T_DataComboFile[[#This Row],[2023/24 Increase]]","v":0}]
[null,null,"2021_22","ENE2020",36,3,3,null,70940,36,3,3,null,"070940","36|03|03",1,1,2,15,15,"01|01|02|15|15","National","Small Business Development","Integrated Cooperative Development","Supplier Development and Market Access Support",null,"Current","Current payments","Goods and services","Science and technological services","Science and technological services",null,null,null,0,0,0,0,0,0,0,0,0,0,0,0,0,0,null,{"$f":"IF(T_DataComboFile[[#This Row],[G&S reporting level indicator]]=1,$AX$16,\"Not applicable\")","v":"Not applicable"},{"$f":"IF(AND($AX$16=\"Level 3\",T_DataComboFile[[#This Row],[Econ3]] = \"Goods and services\"),IF(T_DataComboFile[[#This Row],[Econ4]] = T_DataComboFile[[#This Row],[Econ3]],1,0),IF(AND($AX$16=\"Level 4\",T_DataComboFile[[#This Row],[Econ4]] = \"Goods and services\"),0,1))","v":0},{"$f":"T_DataComboFile[[#This Row],[2016/17_Source]]*T_DataComboFile[[#This Row],[G&S reporting level indicator]]","v":0},{"$f":"T_DataComboFile[[#This Row],[2017/18_Source]]*T_DataComboFile[[#This Row],[G&S reporting level indicator]]","v":0},{"$f":"T_DataComboFile[[#This Row],[2018/19_Source]]*T_DataComboFile[[#This Row],[G&S reporting level indicator]]","v":0},{"$f":"T_DataComboFile[[#This Row],[2019/20 Main appropriation_Source]]*T_DataComboFile[[#This Row],[G&S reporting level indicator]]","v":0},{"$f":"T_DataComboFile[[#This Row],[2019/20 Adjusted appropriation_Source]]*T_DataComboFile[[#This Row],[G&S reporting level indicator]]","v":0},{"$f":"T_DataComboFile[[#This Row],[2019/20 Revised estimate_Source]]*T_DataComboFile[[#This Row],[G&S reporting level indicator]]","v":0},{"$f":"T_DataComboFile[[#This Row],[2019/20 Preliminary outcome_Source]]*T_DataComboFile[[#This Row],[G&S reporting level indicator]]","v":0},{"$f":"T_DataComboFile[[#This Row],[2020/21 Original_Source]]*T_DataComboFile[[#This Row],[G&S reporting level indicator]]","v":0},{"$f":"T_DataComboFile[[#This Row],[2020/21 SAB_Source]]*T_DataComboFile[[#This Row],[G&S reporting level indicator]]","v":0},{"$f":"T_DataComboFile[[#This Row],[2020/21 Baseline_Source]]*T_DataComboFile[[#This Row],[G&S reporting level indicator]]","v":0},{"$f":"T_DataComboFile[[#This Row],[2021/22 Baseline_Source]]*T_DataComboFile[[#This Row],[G&S reporting level indicator]]","v":0},{"$f":"T_DataComboFile[[#This Row],[2022/23 Baseline_Source]]*T_DataComboFile[[#This Row],[G&S reporting level indicator]]","v":0},{"$f":"T_DataComboFile[[#This Row],[2023/24 Baseline_Source]]*T_DataComboFile[[#This Row],[G&S reporting level indicator]]","v":0},null,null,null,null,null,null,{"$f":"T_DataComboFile[[#This Row],[2021/22 Baseline]]+T_DataComboFile[[#This Row],[2021/22 Reduction]]+T_DataComboFile[[#This Row],[2021/22 Increase]]","v":0},{"$f":"T_DataComboFile[[#This Row],[2022/23 Baseline]]+T_DataComboFile[[#This Row],[2022/23 Reduction]]+T_DataComboFile[[#This Row],[2022/23 Increase]]","v":0},{"$f":"T_DataComboFile[[#This Row],[2023/24 Baseline]]+T_DataComboFile[[#This Row],[2023/24 Reduction]]+T_DataComboFile[[#This Row],[2023/24 Increase]]","v":0}]
["NAT|Non-transfer item","36|Contractors","2021_22","ENE2020",36,3,3,17376,70941,36,3,3,17376,"070941","36|03|03",1,1,2,16,16,"01|01|02|16|16","National","Small Business Development","Integrated Cooperative Development","Supplier Development and Market Access Support","Non-transfer item","Current","Current payments","Goods and services","Contractors","Contractors","Economic development","Industrialisation and exports","NAT",0,1476,0,110,10,10,10,0,0,0,0,0,0,1,null,{"$f":"IF(T_DataComboFile[[#This Row],[G&S reporting level indicator]]=1,$AX$16,\"Not applicable\")","v":"Not applicable"},{"$f":"IF(AND($AX$16=\"Level 3\",T_DataComboFile[[#This Row],[Econ3]] = \"Goods and services\"),IF(T_DataComboFile[[#This Row],[Econ4]] = T_DataComboFile[[#This Row],[Econ3]],1,0),IF(AND($AX$16=\"Level 4\",T_DataComboFile[[#This Row],[Econ4]] = \"Goods and services\"),0,1))","v":0},{"$f":"T_DataComboFile[[#This Row],[2016/17_Source]]*T_DataComboFile[[#This Row],[G&S reporting level indicator]]","v":0},{"$f":"T_DataComboFile[[#This Row],[2017/18_Source]]*T_DataComboFile[[#This Row],[G&S reporting level indicator]]","v":0},{"$f":"T_DataComboFile[[#This Row],[2018/19_Source]]*T_DataComboFile[[#This Row],[G&S reporting level indicator]]","v":0},{"$f":"T_DataComboFile[[#This Row],[2019/20 Main appropriation_Source]]*T_DataComboFile[[#This Row],[G&S reporting level indicator]]","v":0},{"$f":"T_DataComboFile[[#This Row],[2019/20 Adjusted appropriation_Source]]*T_DataComboFile[[#This Row],[G&S reporting level indicator]]","v":0},{"$f":"T_DataComboFile[[#This Row],[2019/20 Revised estimate_Source]]*T_DataComboFile[[#This Row],[G&S reporting level indicator]]","v":0},{"$f":"T_DataComboFile[[#This Row],[2019/20 Preliminary outcome_Source]]*T_DataComboFile[[#This Row],[G&S reporting level indicator]]","v":0},{"$f":"T_DataComboFile[[#This Row],[2020/21 Original_Source]]*T_DataComboFile[[#This Row],[G&S reporting level indicator]]","v":0},{"$f":"T_DataComboFile[[#This Row],[2020/21 SAB_Source]]*T_DataComboFile[[#This Row],[G&S reporting level indicator]]","v":0},{"$f":"T_DataComboFile[[#This Row],[2020/21 Baseline_Source]]*T_DataComboFile[[#This Row],[G&S reporting level indicator]]","v":0},{"$f":"T_DataComboFile[[#This Row],[2021/22 Baseline_Source]]*T_DataComboFile[[#This Row],[G&S reporting level indicator]]","v":0},{"$f":"T_DataComboFile[[#This Row],[2022/23 Baseline_Source]]*T_DataComboFile[[#This Row],[G&S reporting level indicator]]","v":0},{"$f":"T_DataComboFile[[#This Row],[2023/24 Baseline_Source]]*T_DataComboFile[[#This Row],[G&S reporting level indicator]]","v":0},null,null,null,null,null,null,{"$f":"T_DataComboFile[[#This Row],[2021/22 Baseline]]+T_DataComboFile[[#This Row],[2021/22 Reduction]]+T_DataComboFile[[#This Row],[2021/22 Increase]]","v":0},{"$f":"T_DataComboFile[[#This Row],[2022/23 Baseline]]+T_DataComboFile[[#This Row],[2022/23 Reduction]]+T_DataComboFile[[#This Row],[2022/23 Increase]]","v":0},{"$f":"T_DataComboFile[[#This Row],[2023/24 Baseline]]+T_DataComboFile[[#This Row],[2023/24 Reduction]]+T_DataComboFile[[#This Row],[2023/24 Increase]]","v":0}]
[null,null,"2021_22","ENE2020",36,3,3,null,70942,36,3,3,null,"070942","36|03|03",1,1,2,17,17,"01|01|02|17|17","National","Small Business Development","Integrated Cooperative Development","Supplier Development and Market Access Support",null,"Current","Current payments","Goods and services","Agency and support/outsourced services","Agency and support/outsourced services",null,null,null,0,0,0,0,0,0,0,0,0,0,0,0,0,0,null,{"$f":"IF(T_DataComboFile[[#This Row],[G&S reporting level indicator]]=1,$AX$16,\"Not applicable\")","v":"Not applicable"},{"$f":"IF(AND($AX$16=\"Level 3\",T_DataComboFile[[#This Row],[Econ3]] = \"Goods and services\"),IF(T_DataComboFile[[#This Row],[Econ4]] = T_DataComboFile[[#This Row],[Econ3]],1,0),IF(AND($AX$16=\"Level 4\",T_DataComboFile[[#This Row],[Econ4]] = \"Goods and services\"),0,1))","v":0},{"$f":"T_DataComboFile[[#This Row],[2016/17_Source]]*T_DataComboFile[[#This Row],[G&S reporting level indicator]]","v":0},{"$f":"T_DataComboFile[[#This Row],[2017/18_Source]]*T_DataComboFile[[#This Row],[G&S reporting level indicator]]","v":0},{"$f":"T_DataComboFile[[#This Row],[2018/19_Source]]*T_DataComboFile[[#This Row],[G&S reporting level indicator]]","v":0},{"$f":"T_DataComboFile[[#This Row],[2019/20 Main appropriation_Source]]*T_DataComboFile[[#This Row],[G&S reporting level indicator]]","v":0},{"$f":"T_DataComboFile[[#This Row],[2019/20 Adjusted appropriation_Source]]*T_DataComboFile[[#This Row],[G&S reporting level indicator]]","v":0},{"$f":"T_DataComboFile[[#This Row],[2019/20 Revised estimate_Source]]*T_DataComboFile[[#This Row],[G&S reporting level indicator]]","v":0},{"$f":"T_DataComboFile[[#This Row],[2019/20 Preliminary outcome_Source]]*T_DataComboFile[[#This Row],[G&S reporting level indicator]]","v":0},{"$f":"T_DataComboFile[[#This Row],[2020/21 Original_Source]]*T_DataComboFile[[#This Row],[G&S reporting level indicator]]","v":0},{"$f":"T_DataComboFile[[#This Row],[2020/21 SAB_Source]]*T_DataComboFile[[#This Row],[G&S reporting level indicator]]","v":0},{"$f":"T_DataComboFile[[#This Row],[2020/21 Baseline_Source]]*T_DataComboFile[[#This Row],[G&S reporting level indicator]]","v":0},{"$f":"T_DataComboFile[[#This Row],[2021/22 Baseline_Source]]*T_DataComboFile[[#This Row],[G&S reporting level indicator]]","v":0},{"$f":"T_DataComboFile[[#This Row],[2022/23 Baseline_Source]]*T_DataComboFile[[#This Row],[G&S reporting level indicator]]","v":0},{"$f":"T_DataComboFile[[#This Row],[2023/24 Baseline_Source]]*T_DataComboFile[[#This Row],[G&S reporting level indicator]]","v":0},null,null,null,null,null,null,{"$f":"T_DataComboFile[[#This Row],[2021/22 Baseline]]+T_DataComboFile[[#This Row],[2021/22 Reduction]]+T_DataComboFile[[#This Row],[2021/22 Increase]]","v":0},{"$f":"T_DataComboFile[[#This Row],[2022/23 Baseline]]+T_DataComboFile[[#This Row],[2022/23 Reduction]]+T_DataComboFile[[#This Row],[2022/23 Increase]]","v":0},{"$f":"T_DataComboFile[[#This Row],[2023/24 Baseline]]+T_DataComboFile[[#This Row],[2023/24 Reduction]]+T_DataComboFile[[#This Row],[2023/24 Increase]]","v":0}]
[null,null,"2021_22","ENE2020",36,3,3,null,70943,36,3,3,null,"070943","36|03|03",1,1,2,18,18,"01|01|02|18|18","National","Small Business Development","Integrated Cooperative Development","Supplier Development and Market Access Support",null,"Current","Current payments","Goods and services","Entertainment","Entertainment",null,null,null,0,0,0,0,0,0,0,0,0,0,0,0,0,0,null,{"$f":"IF(T_DataComboFile[[#This Row],[G&S reporting level indicator]]=1,$AX$16,\"Not applicable\")","v":"Not applicable"},{"$f":"IF(AND($AX$16=\"Level 3\",T_DataComboFile[[#This Row],[Econ3]] = \"Goods and services\"),IF(T_DataComboFile[[#This Row],[Econ4]] = T_DataComboFile[[#This Row],[Econ3]],1,0),IF(AND($AX$16=\"Level 4\",T_DataComboFile[[#This Row],[Econ4]] = \"Goods and services\"),0,1))","v":0},{"$f":"T_DataComboFile[[#This Row],[2016/17_Source]]*T_DataComboFile[[#This Row],[G&S reporting level indicator]]","v":0},{"$f":"T_DataComboFile[[#This Row],[2017/18_Source]]*T_DataComboFile[[#This Row],[G&S reporting level indicator]]","v":0},{"$f":"T_DataComboFile[[#This Row],[2018/19_Source]]*T_DataComboFile[[#This Row],[G&S reporting level indicator]]","v":0},{"$f":"T_DataComboFile[[#This Row],[2019/20 Main appropriation_Source]]*T_DataComboFile[[#This Row],[G&S reporting level indicator]]","v":0},{"$f":"T_DataComboFile[[#This Row],[2019/20 Adjusted appropriation_Source]]*T_DataComboFile[[#This Row],[G&S reporting level indicator]]","v":0},{"$f":"T_DataComboFile[[#This Row],[2019/20 Revised estimate_Source]]*T_DataComboFile[[#This Row],[G&S reporting level indicator]]","v":0},{"$f":"T_DataComboFile[[#This Row],[2019/20 Preliminary outcome_Source]]*T_DataComboFile[[#This Row],[G&S reporting level indicator]]","v":0},{"$f":"T_DataComboFile[[#This Row],[2020/21 Original_Source]]*T_DataComboFile[[#This Row],[G&S reporting level indicator]]","v":0},{"$f":"T_DataComboFile[[#This Row],[2020/21 SAB_Source]]*T_DataComboFile[[#This Row],[G&S reporting level indicator]]","v":0},{"$f":"T_DataComboFile[[#This Row],[2020/21 Baseline_Source]]*T_DataComboFile[[#This Row],[G&S reporting level indicator]]","v":0},{"$f":"T_DataComboFile[[#This Row],[2021/22 Baseline_Source]]*T_DataComboFile[[#This Row],[G&S reporting level indicator]]","v":0},{"$f":"T_DataComboFile[[#This Row],[2022/23 Baseline_Source]]*T_DataComboFile[[#This Row],[G&S reporting level indicator]]","v":0},{"$f":"T_DataComboFile[[#This Row],[2023/24 Baseline_Source]]*T_DataComboFile[[#This Row],[G&S reporting level indicator]]","v":0},null,null,null,null,null,null,{"$f":"T_DataComboFile[[#This Row],[2021/22 Baseline]]+T_DataComboFile[[#This Row],[2021/22 Reduction]]+T_DataComboFile[[#This Row],[2021/22 Increase]]","v":0},{"$f":"T_DataComboFile[[#This Row],[2022/23 Baseline]]+T_DataComboFile[[#This Row],[2022/23 Reduction]]+T_DataComboFile[[#This Row],[2022/23 Increase]]","v":0},{"$f":"T_DataComboFile[[#This Row],[2023/24 Baseline]]+T_DataComboFile[[#This Row],[2023/24 Reduction]]+T_DataComboFile[[#This Row],[2023/24 Increase]]","v":0}]
["NAT|Non-transfer item","36|Fleet services (including government motor transport)","2021_22","ENE2020",36,3,3,17377,70944,36,3,3,17377,"070944","36|03|03",1,1,2,19,19,"01|01|02|19|19","National","Small Business Development","Integrated Cooperative Development","Supplier Development and Market Access Support","Non-transfer item","Current","Current payments","Goods and services","Fleet services (including government motor transport)","Fleet services (including government motor transport)","Economic development","Industrialisation and exports","NAT",1,1,25,12,27,27,27,36,36,36,39,42,44,1,null,{"$f":"IF(T_DataComboFile[[#This Row],[G&S reporting level indicator]]=1,$AX$16,\"Not applicable\")","v":"Not applicable"},{"$f":"IF(AND($AX$16=\"Level 3\",T_DataComboFile[[#This Row],[Econ3]] = \"Goods and services\"),IF(T_DataComboFile[[#This Row],[Econ4]] = T_DataComboFile[[#This Row],[Econ3]],1,0),IF(AND($AX$16=\"Level 4\",T_DataComboFile[[#This Row],[Econ4]] = \"Goods and services\"),0,1))","v":0},{"$f":"T_DataComboFile[[#This Row],[2016/17_Source]]*T_DataComboFile[[#This Row],[G&S reporting level indicator]]","v":0},{"$f":"T_DataComboFile[[#This Row],[2017/18_Source]]*T_DataComboFile[[#This Row],[G&S reporting level indicator]]","v":0},{"$f":"T_DataComboFile[[#This Row],[2018/19_Source]]*T_DataComboFile[[#This Row],[G&S reporting level indicator]]","v":0},{"$f":"T_DataComboFile[[#This Row],[2019/20 Main appropriation_Source]]*T_DataComboFile[[#This Row],[G&S reporting level indicator]]","v":0},{"$f":"T_DataComboFile[[#This Row],[2019/20 Adjusted appropriation_Source]]*T_DataComboFile[[#This Row],[G&S reporting level indicator]]","v":0},{"$f":"T_DataComboFile[[#This Row],[2019/20 Revised estimate_Source]]*T_DataComboFile[[#This Row],[G&S reporting level indicator]]","v":0},{"$f":"T_DataComboFile[[#This Row],[2019/20 Preliminary outcome_Source]]*T_DataComboFile[[#This Row],[G&S reporting level indicator]]","v":0},{"$f":"T_DataComboFile[[#This Row],[2020/21 Original_Source]]*T_DataComboFile[[#This Row],[G&S reporting level indicator]]","v":0},{"$f":"T_DataComboFile[[#This Row],[2020/21 SAB_Source]]*T_DataComboFile[[#This Row],[G&S reporting level indicator]]","v":0},{"$f":"T_DataComboFile[[#This Row],[2020/21 Baseline_Source]]*T_DataComboFile[[#This Row],[G&S reporting level indicator]]","v":0},{"$f":"T_DataComboFile[[#This Row],[2021/22 Baseline_Source]]*T_DataComboFile[[#This Row],[G&S reporting level indicator]]","v":0},{"$f":"T_DataComboFile[[#This Row],[2022/23 Baseline_Source]]*T_DataComboFile[[#This Row],[G&S reporting level indicator]]","v":0},{"$f":"T_DataComboFile[[#This Row],[2023/24 Baseline_Source]]*T_DataComboFile[[#This Row],[G&S reporting level indicator]]","v":0},null,null,null,null,null,null,{"$f":"T_DataComboFile[[#This Row],[2021/22 Baseline]]+T_DataComboFile[[#This Row],[2021/22 Reduction]]+T_DataComboFile[[#This Row],[2021/22 Increase]]","v":0},{"$f":"T_DataComboFile[[#This Row],[2022/23 Baseline]]+T_DataComboFile[[#This Row],[2022/23 Reduction]]+T_DataComboFile[[#This Row],[2022/23 Increase]]","v":0},{"$f":"T_DataComboFile[[#This Row],[2023/24 Baseline]]+T_DataComboFile[[#This Row],[2023/24 Reduction]]+T_DataComboFile[[#This Row],[2023/24 Increase]]","v":0}]
[null,null,"2021_22","ENE2020",36,3,3,null,70945,36,3,3,null,"070945","36|03|03",1,1,2,20,20,"01|01|02|20|20","National","Small Business Development","Integrated Cooperative Development","Supplier Development and Market Access Support",null,"Current","Current payments","Goods and services","Housing","Housing",null,null,null,0,0,0,0,0,0,0,0,0,0,0,0,0,0,null,{"$f":"IF(T_DataComboFile[[#This Row],[G&S reporting level indicator]]=1,$AX$16,\"Not applicable\")","v":"Not applicable"},{"$f":"IF(AND($AX$16=\"Level 3\",T_DataComboFile[[#This Row],[Econ3]] = \"Goods and services\"),IF(T_DataComboFile[[#This Row],[Econ4]] = T_DataComboFile[[#This Row],[Econ3]],1,0),IF(AND($AX$16=\"Level 4\",T_DataComboFile[[#This Row],[Econ4]] = \"Goods and services\"),0,1))","v":0},{"$f":"T_DataComboFile[[#This Row],[2016/17_Source]]*T_DataComboFile[[#This Row],[G&S reporting level indicator]]","v":0},{"$f":"T_DataComboFile[[#This Row],[2017/18_Source]]*T_DataComboFile[[#This Row],[G&S reporting level indicator]]","v":0},{"$f":"T_DataComboFile[[#This Row],[2018/19_Source]]*T_DataComboFile[[#This Row],[G&S reporting level indicator]]","v":0},{"$f":"T_DataComboFile[[#This Row],[2019/20 Main appropriation_Source]]*T_DataComboFile[[#This Row],[G&S reporting level indicator]]","v":0},{"$f":"T_DataComboFile[[#This Row],[2019/20 Adjusted appropriation_Source]]*T_DataComboFile[[#This Row],[G&S reporting level indicator]]","v":0},{"$f":"T_DataComboFile[[#This Row],[2019/20 Revised estimate_Source]]*T_DataComboFile[[#This Row],[G&S reporting level indicator]]","v":0},{"$f":"T_DataComboFile[[#This Row],[2019/20 Preliminary outcome_Source]]*T_DataComboFile[[#This Row],[G&S reporting level indicator]]","v":0},{"$f":"T_DataComboFile[[#This Row],[2020/21 Original_Source]]*T_DataComboFile[[#This Row],[G&S reporting level indicator]]","v":0},{"$f":"T_DataComboFile[[#This Row],[2020/21 SAB_Source]]*T_DataComboFile[[#This Row],[G&S reporting level indicator]]","v":0},{"$f":"T_DataComboFile[[#This Row],[2020/21 Baseline_Source]]*T_DataComboFile[[#This Row],[G&S reporting level indicator]]","v":0},{"$f":"T_DataComboFile[[#This Row],[2021/22 Baseline_Source]]*T_DataComboFile[[#This Row],[G&S reporting level indicator]]","v":0},{"$f":"T_DataComboFile[[#This Row],[2022/23 Baseline_Source]]*T_DataComboFile[[#This Row],[G&S reporting level indicator]]","v":0},{"$f":"T_DataComboFile[[#This Row],[2023/24 Baseline_Source]]*T_DataComboFile[[#This Row],[G&S reporting level indicator]]","v":0},null,null,null,null,null,null,{"$f":"T_DataComboFile[[#This Row],[2021/22 Baseline]]+T_DataComboFile[[#This Row],[2021/22 Reduction]]+T_DataComboFile[[#This Row],[2021/22 Increase]]","v":0},{"$f":"T_DataComboFile[[#This Row],[2022/23 Baseline]]+T_DataComboFile[[#This Row],[2022/23 Reduction]]+T_DataComboFile[[#This Row],[2022/23 Increase]]","v":0},{"$f":"T_DataComboFile[[#This Row],[2023/24 Baseline]]+T_DataComboFile[[#This Row],[2023/24 Reduction]]+T_DataComboFile[[#This Row],[2023/24 Increase]]","v":0}]
[null,null,"2021_22","ENE2020",36,3,3,null,70946,36,3,3,null,"070946","36|03|03",1,1,2,21,21,"01|01|02|21|21","National","Small Business Development","Integrated Cooperative Development","Supplier Development and Market Access Support",null,"Current","Current payments","Goods and services","Inventory: Clothing material and accessories","Inventory: Clothing material and accessories",null,null,null,0,0,0,0,0,0,0,0,0,0,0,0,0,0,null,{"$f":"IF(T_DataComboFile[[#This Row],[G&S reporting level indicator]]=1,$AX$16,\"Not applicable\")","v":"Not applicable"},{"$f":"IF(AND($AX$16=\"Level 3\",T_DataComboFile[[#This Row],[Econ3]] = \"Goods and services\"),IF(T_DataComboFile[[#This Row],[Econ4]] = T_DataComboFile[[#This Row],[Econ3]],1,0),IF(AND($AX$16=\"Level 4\",T_DataComboFile[[#This Row],[Econ4]] = \"Goods and services\"),0,1))","v":0},{"$f":"T_DataComboFile[[#This Row],[2016/17_Source]]*T_DataComboFile[[#This Row],[G&S reporting level indicator]]","v":0},{"$f":"T_DataComboFile[[#This Row],[2017/18_Source]]*T_DataComboFile[[#This Row],[G&S reporting level indicator]]","v":0},{"$f":"T_DataComboFile[[#This Row],[2018/19_Source]]*T_DataComboFile[[#This Row],[G&S reporting level indicator]]","v":0},{"$f":"T_DataComboFile[[#This Row],[2019/20 Main appropriation_Source]]*T_DataComboFile[[#This Row],[G&S reporting level indicator]]","v":0},{"$f":"T_DataComboFile[[#This Row],[2019/20 Adjusted appropriation_Source]]*T_DataComboFile[[#This Row],[G&S reporting level indicator]]","v":0},{"$f":"T_DataComboFile[[#This Row],[2019/20 Revised estimate_Source]]*T_DataComboFile[[#This Row],[G&S reporting level indicator]]","v":0},{"$f":"T_DataComboFile[[#This Row],[2019/20 Preliminary outcome_Source]]*T_DataComboFile[[#This Row],[G&S reporting level indicator]]","v":0},{"$f":"T_DataComboFile[[#This Row],[2020/21 Original_Source]]*T_DataComboFile[[#This Row],[G&S reporting level indicator]]","v":0},{"$f":"T_DataComboFile[[#This Row],[2020/21 SAB_Source]]*T_DataComboFile[[#This Row],[G&S reporting level indicator]]","v":0},{"$f":"T_DataComboFile[[#This Row],[2020/21 Baseline_Source]]*T_DataComboFile[[#This Row],[G&S reporting level indicator]]","v":0},{"$f":"T_DataComboFile[[#This Row],[2021/22 Baseline_Source]]*T_DataComboFile[[#This Row],[G&S reporting level indicator]]","v":0},{"$f":"T_DataComboFile[[#This Row],[2022/23 Baseline_Source]]*T_DataComboFile[[#This Row],[G&S reporting level indicator]]","v":0},{"$f":"T_DataComboFile[[#This Row],[2023/24 Baseline_Source]]*T_DataComboFile[[#This Row],[G&S reporting level indicator]]","v":0},null,null,null,null,null,null,{"$f":"T_DataComboFile[[#This Row],[2021/22 Baseline]]+T_DataComboFile[[#This Row],[2021/22 Reduction]]+T_DataComboFile[[#This Row],[2021/22 Increase]]","v":0},{"$f":"T_DataComboFile[[#This Row],[2022/23 Baseline]]+T_DataComboFile[[#This Row],[2022/23 Reduction]]+T_DataComboFile[[#This Row],[2022/23 Increase]]","v":0},{"$f":"T_DataComboFile[[#This Row],[2023/24 Baseline]]+T_DataComboFile[[#This Row],[2023/24 Reduction]]+T_DataComboFile[[#This Row],[2023/24 Increase]]","v":0}]
[null,null,"2021_22","ENE2020",36,3,3,null,70947,36,3,3,null,"070947","36|03|03",1,1,2,22,22,"01|01|02|22|22","National","Small Business Development","Integrated Cooperative Development","Supplier Development and Market Access Support",null,"Current","Current payments","Goods and services","Inventory: Farming supplies","Inventory: Farming supplies",null,null,null,0,0,0,0,0,0,0,0,0,0,0,0,0,0,null,{"$f":"IF(T_DataComboFile[[#This Row],[G&S reporting level indicator]]=1,$AX$16,\"Not applicable\")","v":"Not applicable"},{"$f":"IF(AND($AX$16=\"Level 3\",T_DataComboFile[[#This Row],[Econ3]] = \"Goods and services\"),IF(T_DataComboFile[[#This Row],[Econ4]] = T_DataComboFile[[#This Row],[Econ3]],1,0),IF(AND($AX$16=\"Level 4\",T_DataComboFile[[#This Row],[Econ4]] = \"Goods and services\"),0,1))","v":0},{"$f":"T_DataComboFile[[#This Row],[2016/17_Source]]*T_DataComboFile[[#This Row],[G&S reporting level indicator]]","v":0},{"$f":"T_DataComboFile[[#This Row],[2017/18_Source]]*T_DataComboFile[[#This Row],[G&S reporting level indicator]]","v":0},{"$f":"T_DataComboFile[[#This Row],[2018/19_Source]]*T_DataComboFile[[#This Row],[G&S reporting level indicator]]","v":0},{"$f":"T_DataComboFile[[#This Row],[2019/20 Main appropriation_Source]]*T_DataComboFile[[#This Row],[G&S reporting level indicator]]","v":0},{"$f":"T_DataComboFile[[#This Row],[2019/20 Adjusted appropriation_Source]]*T_DataComboFile[[#This Row],[G&S reporting level indicator]]","v":0},{"$f":"T_DataComboFile[[#This Row],[2019/20 Revised estimate_Source]]*T_DataComboFile[[#This Row],[G&S reporting level indicator]]","v":0},{"$f":"T_DataComboFile[[#This Row],[2019/20 Preliminary outcome_Source]]*T_DataComboFile[[#This Row],[G&S reporting level indicator]]","v":0},{"$f":"T_DataComboFile[[#This Row],[2020/21 Original_Source]]*T_DataComboFile[[#This Row],[G&S reporting level indicator]]","v":0},{"$f":"T_DataComboFile[[#This Row],[2020/21 SAB_Source]]*T_DataComboFile[[#This Row],[G&S reporting level indicator]]","v":0},{"$f":"T_DataComboFile[[#This Row],[2020/21 Baseline_Source]]*T_DataComboFile[[#This Row],[G&S reporting level indicator]]","v":0},{"$f":"T_DataComboFile[[#This Row],[2021/22 Baseline_Source]]*T_DataComboFile[[#This Row],[G&S reporting level indicator]]","v":0},{"$f":"T_DataComboFile[[#This Row],[2022/23 Baseline_Source]]*T_DataComboFile[[#This Row],[G&S reporting level indicator]]","v":0},{"$f":"T_DataComboFile[[#This Row],[2023/24 Baseline_Source]]*T_DataComboFile[[#This Row],[G&S reporting level indicator]]","v":0},null,null,null,null,null,null,{"$f":"T_DataComboFile[[#This Row],[2021/22 Baseline]]+T_DataComboFile[[#This Row],[2021/22 Reduction]]+T_DataComboFile[[#This Row],[2021/22 Increase]]","v":0},{"$f":"T_DataComboFile[[#This Row],[2022/23 Baseline]]+T_DataComboFile[[#This Row],[2022/23 Reduction]]+T_DataComboFile[[#This Row],[2022/23 Increase]]","v":0},{"$f":"T_DataComboFile[[#This Row],[2023/24 Baseline]]+T_DataComboFile[[#This Row],[2023/24 Reduction]]+T_DataComboFile[[#This Row],[2023/24 Increase]]","v":0}]
[null,null,"2021_22","ENE2020",36,3,3,null,70948,36,3,3,null,"070948","36|03|03",1,1,2,23,23,"01|01|02|23|23","National","Small Business Development","Integrated Cooperative Development","Supplier Development and Market Access Support",null,"Current","Current payments","Goods and services","Inventory: Food and food supplies","Inventory: Food and food supplies",null,null,null,0,0,0,0,0,0,0,0,0,0,0,0,0,0,null,{"$f":"IF(T_DataComboFile[[#This Row],[G&S reporting level indicator]]=1,$AX$16,\"Not applicable\")","v":"Not applicable"},{"$f":"IF(AND($AX$16=\"Level 3\",T_DataComboFile[[#This Row],[Econ3]] = \"Goods and services\"),IF(T_DataComboFile[[#This Row],[Econ4]] = T_DataComboFile[[#This Row],[Econ3]],1,0),IF(AND($AX$16=\"Level 4\",T_DataComboFile[[#This Row],[Econ4]] = \"Goods and services\"),0,1))","v":0},{"$f":"T_DataComboFile[[#This Row],[2016/17_Source]]*T_DataComboFile[[#This Row],[G&S reporting level indicator]]","v":0},{"$f":"T_DataComboFile[[#This Row],[2017/18_Source]]*T_DataComboFile[[#This Row],[G&S reporting level indicator]]","v":0},{"$f":"T_DataComboFile[[#This Row],[2018/19_Source]]*T_DataComboFile[[#This Row],[G&S reporting level indicator]]","v":0},{"$f":"T_DataComboFile[[#This Row],[2019/20 Main appropriation_Source]]*T_DataComboFile[[#This Row],[G&S reporting level indicator]]","v":0},{"$f":"T_DataComboFile[[#This Row],[2019/20 Adjusted appropriation_Source]]*T_DataComboFile[[#This Row],[G&S reporting level indicator]]","v":0},{"$f":"T_DataComboFile[[#This Row],[2019/20 Revised estimate_Source]]*T_DataComboFile[[#This Row],[G&S reporting level indicator]]","v":0},{"$f":"T_DataComboFile[[#This Row],[2019/20 Preliminary outcome_Source]]*T_DataComboFile[[#This Row],[G&S reporting level indicator]]","v":0},{"$f":"T_DataComboFile[[#This Row],[2020/21 Original_Source]]*T_DataComboFile[[#This Row],[G&S reporting level indicator]]","v":0},{"$f":"T_DataComboFile[[#This Row],[2020/21 SAB_Source]]*T_DataComboFile[[#This Row],[G&S reporting level indicator]]","v":0},{"$f":"T_DataComboFile[[#This Row],[2020/21 Baseline_Source]]*T_DataComboFile[[#This Row],[G&S reporting level indicator]]","v":0},{"$f":"T_DataComboFile[[#This Row],[2021/22 Baseline_Source]]*T_DataComboFile[[#This Row],[G&S reporting level indicator]]","v":0},{"$f":"T_DataComboFile[[#This Row],[2022/23 Baseline_Source]]*T_DataComboFile[[#This Row],[G&S reporting level indicator]]","v":0},{"$f":"T_DataComboFile[[#This Row],[2023/24 Baseline_Source]]*T_DataComboFile[[#This Row],[G&S reporting level indicator]]","v":0},null,null,null,null,null,null,{"$f":"T_DataComboFile[[#This Row],[2021/22 Baseline]]+T_DataComboFile[[#This Row],[2021/22 Reduction]]+T_DataComboFile[[#This Row],[2021/22 Increase]]","v":0},{"$f":"T_DataComboFile[[#This Row],[2022/23 Baseline]]+T_DataComboFile[[#This Row],[2022/23 Reduction]]+T_DataComboFile[[#This Row],[2022/23 Increase]]","v":0},{"$f":"T_DataComboFile[[#This Row],[2023/24 Baseline]]+T_DataComboFile[[#This Row],[2023/24 Reduction]]+T_DataComboFile[[#This Row],[2023/24 Increase]]","v":0}]
[null,null,"2021_22","ENE2020",36,3,3,null,70949,36,3,3,null,"070949","36|03|03",1,1,2,24,24,"01|01|02|24|24","National","Small Business Development","Integrated Cooperative Development","Supplier Development and Market Access Support",null,"Current","Current payments","Goods and services","Inventory: Fuel, oil and gas","Inventory: Fuel, oil and gas",null,null,null,0,0,0,0,0,0,0,0,0,0,0,0,0,0,null,{"$f":"IF(T_DataComboFile[[#This Row],[G&S reporting level indicator]]=1,$AX$16,\"Not applicable\")","v":"Not applicable"},{"$f":"IF(AND($AX$16=\"Level 3\",T_DataComboFile[[#This Row],[Econ3]] = \"Goods and services\"),IF(T_DataComboFile[[#This Row],[Econ4]] = T_DataComboFile[[#This Row],[Econ3]],1,0),IF(AND($AX$16=\"Level 4\",T_DataComboFile[[#This Row],[Econ4]] = \"Goods and services\"),0,1))","v":0},{"$f":"T_DataComboFile[[#This Row],[2016/17_Source]]*T_DataComboFile[[#This Row],[G&S reporting level indicator]]","v":0},{"$f":"T_DataComboFile[[#This Row],[2017/18_Source]]*T_DataComboFile[[#This Row],[G&S reporting level indicator]]","v":0},{"$f":"T_DataComboFile[[#This Row],[2018/19_Source]]*T_DataComboFile[[#This Row],[G&S reporting level indicator]]","v":0},{"$f":"T_DataComboFile[[#This Row],[2019/20 Main appropriation_Source]]*T_DataComboFile[[#This Row],[G&S reporting level indicator]]","v":0},{"$f":"T_DataComboFile[[#This Row],[2019/20 Adjusted appropriation_Source]]*T_DataComboFile[[#This Row],[G&S reporting level indicator]]","v":0},{"$f":"T_DataComboFile[[#This Row],[2019/20 Revised estimate_Source]]*T_DataComboFile[[#This Row],[G&S reporting level indicator]]","v":0},{"$f":"T_DataComboFile[[#This Row],[2019/20 Preliminary outcome_Source]]*T_DataComboFile[[#This Row],[G&S reporting level indicator]]","v":0},{"$f":"T_DataComboFile[[#This Row],[2020/21 Original_Source]]*T_DataComboFile[[#This Row],[G&S reporting level indicator]]","v":0},{"$f":"T_DataComboFile[[#This Row],[2020/21 SAB_Source]]*T_DataComboFile[[#This Row],[G&S reporting level indicator]]","v":0},{"$f":"T_DataComboFile[[#This Row],[2020/21 Baseline_Source]]*T_DataComboFile[[#This Row],[G&S reporting level indicator]]","v":0},{"$f":"T_DataComboFile[[#This Row],[2021/22 Baseline_Source]]*T_DataComboFile[[#This Row],[G&S reporting level indicator]]","v":0},{"$f":"T_DataComboFile[[#This Row],[2022/23 Baseline_Source]]*T_DataComboFile[[#This Row],[G&S reporting level indicator]]","v":0},{"$f":"T_DataComboFile[[#This Row],[2023/24 Baseline_Source]]*T_DataComboFile[[#This Row],[G&S reporting level indicator]]","v":0},null,null,null,null,null,null,{"$f":"T_DataComboFile[[#This Row],[2021/22 Baseline]]+T_DataComboFile[[#This Row],[2021/22 Reduction]]+T_DataComboFile[[#This Row],[2021/22 Increase]]","v":0},{"$f":"T_DataComboFile[[#This Row],[2022/23 Baseline]]+T_DataComboFile[[#This Row],[2022/23 Reduction]]+T_DataComboFile[[#This Row],[2022/23 Increase]]","v":0},{"$f":"T_DataComboFile[[#This Row],[2023/24 Baseline]]+T_DataComboFile[[#This Row],[2023/24 Reduction]]+T_DataComboFile[[#This Row],[2023/24 Increase]]","v":0}]
[null,null,"2021_22","ENE2020",36,3,3,null,70950,36,3,3,null,"070950","36|03|03",1,1,2,25,25,"01|01|02|25|25","National","Small Business Development","Integrated Cooperative Development","Supplier Development and Market Access Support",null,"Current","Current payments","Goods and services","Inventory: Learner and teacher support material","Inventory: Learner and teacher support material",null,null,null,0,0,0,0,0,0,0,0,0,0,0,0,0,0,null,{"$f":"IF(T_DataComboFile[[#This Row],[G&S reporting level indicator]]=1,$AX$16,\"Not applicable\")","v":"Not applicable"},{"$f":"IF(AND($AX$16=\"Level 3\",T_DataComboFile[[#This Row],[Econ3]] = \"Goods and services\"),IF(T_DataComboFile[[#This Row],[Econ4]] = T_DataComboFile[[#This Row],[Econ3]],1,0),IF(AND($AX$16=\"Level 4\",T_DataComboFile[[#This Row],[Econ4]] = \"Goods and services\"),0,1))","v":0},{"$f":"T_DataComboFile[[#This Row],[2016/17_Source]]*T_DataComboFile[[#This Row],[G&S reporting level indicator]]","v":0},{"$f":"T_DataComboFile[[#This Row],[2017/18_Source]]*T_DataComboFile[[#This Row],[G&S reporting level indicator]]","v":0},{"$f":"T_DataComboFile[[#This Row],[2018/19_Source]]*T_DataComboFile[[#This Row],[G&S reporting level indicator]]","v":0},{"$f":"T_DataComboFile[[#This Row],[2019/20 Main appropriation_Source]]*T_DataComboFile[[#This Row],[G&S reporting level indicator]]","v":0},{"$f":"T_DataComboFile[[#This Row],[2019/20 Adjusted appropriation_Source]]*T_DataComboFile[[#This Row],[G&S reporting level indicator]]","v":0},{"$f":"T_DataComboFile[[#This Row],[2019/20 Revised estimate_Source]]*T_DataComboFile[[#This Row],[G&S reporting level indicator]]","v":0},{"$f":"T_DataComboFile[[#This Row],[2019/20 Preliminary outcome_Source]]*T_DataComboFile[[#This Row],[G&S reporting level indicator]]","v":0},{"$f":"T_DataComboFile[[#This Row],[2020/21 Original_Source]]*T_DataComboFile[[#This Row],[G&S reporting level indicator]]","v":0},{"$f":"T_DataComboFile[[#This Row],[2020/21 SAB_Source]]*T_DataComboFile[[#This Row],[G&S reporting level indicator]]","v":0},{"$f":"T_DataComboFile[[#This Row],[2020/21 Baseline_Source]]*T_DataComboFile[[#This Row],[G&S reporting level indicator]]","v":0},{"$f":"T_DataComboFile[[#This Row],[2021/22 Baseline_Source]]*T_DataComboFile[[#This Row],[G&S reporting level indicator]]","v":0},{"$f":"T_DataComboFile[[#This Row],[2022/23 Baseline_Source]]*T_DataComboFile[[#This Row],[G&S reporting level indicator]]","v":0},{"$f":"T_DataComboFile[[#This Row],[2023/24 Baseline_Source]]*T_DataComboFile[[#This Row],[G&S reporting level indicator]]","v":0},null,null,null,null,null,null,{"$f":"T_DataComboFile[[#This Row],[2021/22 Baseline]]+T_DataComboFile[[#This Row],[2021/22 Reduction]]+T_DataComboFile[[#This Row],[2021/22 Increase]]","v":0},{"$f":"T_DataComboFile[[#This Row],[2022/23 Baseline]]+T_DataComboFile[[#This Row],[2022/23 Reduction]]+T_DataComboFile[[#This Row],[2022/23 Increase]]","v":0},{"$f":"T_DataComboFile[[#This Row],[2023/24 Baseline]]+T_DataComboFile[[#This Row],[2023/24 Reduction]]+T_DataComboFile[[#This Row],[2023/24 Increase]]","v":0}]
[null,null,"2021_22","ENE2020",36,3,3,null,70951,36,3,3,null,"070951","36|03|03",1,1,2,26,26,"01|01|02|26|26","National","Small Business Development","Integrated Cooperative Development","Supplier Development and Market Access Support",null,"Current","Current payments","Goods and services","Inventory: Materials and supplies","Inventory: Materials and supplies",null,null,null,0,0,0,0,0,0,0,0,0,0,0,0,0,0,null,{"$f":"IF(T_DataComboFile[[#This Row],[G&S reporting level indicator]]=1,$AX$16,\"Not applicable\")","v":"Not applicable"},{"$f":"IF(AND($AX$16=\"Level 3\",T_DataComboFile[[#This Row],[Econ3]] = \"Goods and services\"),IF(T_DataComboFile[[#This Row],[Econ4]] = T_DataComboFile[[#This Row],[Econ3]],1,0),IF(AND($AX$16=\"Level 4\",T_DataComboFile[[#This Row],[Econ4]] = \"Goods and services\"),0,1))","v":0},{"$f":"T_DataComboFile[[#This Row],[2016/17_Source]]*T_DataComboFile[[#This Row],[G&S reporting level indicator]]","v":0},{"$f":"T_DataComboFile[[#This Row],[2017/18_Source]]*T_DataComboFile[[#This Row],[G&S reporting level indicator]]","v":0},{"$f":"T_DataComboFile[[#This Row],[2018/19_Source]]*T_DataComboFile[[#This Row],[G&S reporting level indicator]]","v":0},{"$f":"T_DataComboFile[[#This Row],[2019/20 Main appropriation_Source]]*T_DataComboFile[[#This Row],[G&S reporting level indicator]]","v":0},{"$f":"T_DataComboFile[[#This Row],[2019/20 Adjusted appropriation_Source]]*T_DataComboFile[[#This Row],[G&S reporting level indicator]]","v":0},{"$f":"T_DataComboFile[[#This Row],[2019/20 Revised estimate_Source]]*T_DataComboFile[[#This Row],[G&S reporting level indicator]]","v":0},{"$f":"T_DataComboFile[[#This Row],[2019/20 Preliminary outcome_Source]]*T_DataComboFile[[#This Row],[G&S reporting level indicator]]","v":0},{"$f":"T_DataComboFile[[#This Row],[2020/21 Original_Source]]*T_DataComboFile[[#This Row],[G&S reporting level indicator]]","v":0},{"$f":"T_DataComboFile[[#This Row],[2020/21 SAB_Source]]*T_DataComboFile[[#This Row],[G&S reporting level indicator]]","v":0},{"$f":"T_DataComboFile[[#This Row],[2020/21 Baseline_Source]]*T_DataComboFile[[#This Row],[G&S reporting level indicator]]","v":0},{"$f":"T_DataComboFile[[#This Row],[2021/22 Baseline_Source]]*T_DataComboFile[[#This Row],[G&S reporting level indicator]]","v":0},{"$f":"T_DataComboFile[[#This Row],[2022/23 Baseline_Source]]*T_DataComboFile[[#This Row],[G&S reporting level indicator]]","v":0},{"$f":"T_DataComboFile[[#This Row],[2023/24 Baseline_Source]]*T_DataComboFile[[#This Row],[G&S reporting level indicator]]","v":0},null,null,null,null,null,null,{"$f":"T_DataComboFile[[#This Row],[2021/22 Baseline]]+T_DataComboFile[[#This Row],[2021/22 Reduction]]+T_DataComboFile[[#This Row],[2021/22 Increase]]","v":0},{"$f":"T_DataComboFile[[#This Row],[2022/23 Baseline]]+T_DataComboFile[[#This Row],[2022/23 Reduction]]+T_DataComboFile[[#This Row],[2022/23 Increase]]","v":0},{"$f":"T_DataComboFile[[#This Row],[2023/24 Baseline]]+T_DataComboFile[[#This Row],[2023/24 Reduction]]+T_DataComboFile[[#This Row],[2023/24 Increase]]","v":0}]
[null,null,"2021_22","ENE2020",36,3,3,null,70952,36,3,3,null,"070952","36|03|03",1,1,2,27,27,"01|01|02|27|27","National","Small Business Development","Integrated Cooperative Development","Supplier Development and Market Access Support",null,"Current","Current payments","Goods and services","Inventory: Medical supplies","Inventory: Medical supplies",null,null,null,0,0,0,0,0,0,0,0,0,0,0,0,0,0,null,{"$f":"IF(T_DataComboFile[[#This Row],[G&S reporting level indicator]]=1,$AX$16,\"Not applicable\")","v":"Not applicable"},{"$f":"IF(AND($AX$16=\"Level 3\",T_DataComboFile[[#This Row],[Econ3]] = \"Goods and services\"),IF(T_DataComboFile[[#This Row],[Econ4]] = T_DataComboFile[[#This Row],[Econ3]],1,0),IF(AND($AX$16=\"Level 4\",T_DataComboFile[[#This Row],[Econ4]] = \"Goods and services\"),0,1))","v":0},{"$f":"T_DataComboFile[[#This Row],[2016/17_Source]]*T_DataComboFile[[#This Row],[G&S reporting level indicator]]","v":0},{"$f":"T_DataComboFile[[#This Row],[2017/18_Source]]*T_DataComboFile[[#This Row],[G&S reporting level indicator]]","v":0},{"$f":"T_DataComboFile[[#This Row],[2018/19_Source]]*T_DataComboFile[[#This Row],[G&S reporting level indicator]]","v":0},{"$f":"T_DataComboFile[[#This Row],[2019/20 Main appropriation_Source]]*T_DataComboFile[[#This Row],[G&S reporting level indicator]]","v":0},{"$f":"T_DataComboFile[[#This Row],[2019/20 Adjusted appropriation_Source]]*T_DataComboFile[[#This Row],[G&S reporting level indicator]]","v":0},{"$f":"T_DataComboFile[[#This Row],[2019/20 Revised estimate_Source]]*T_DataComboFile[[#This Row],[G&S reporting level indicator]]","v":0},{"$f":"T_DataComboFile[[#This Row],[2019/20 Preliminary outcome_Source]]*T_DataComboFile[[#This Row],[G&S reporting level indicator]]","v":0},{"$f":"T_DataComboFile[[#This Row],[2020/21 Original_Source]]*T_DataComboFile[[#This Row],[G&S reporting level indicator]]","v":0},{"$f":"T_DataComboFile[[#This Row],[2020/21 SAB_Source]]*T_DataComboFile[[#This Row],[G&S reporting level indicator]]","v":0},{"$f":"T_DataComboFile[[#This Row],[2020/21 Baseline_Source]]*T_DataComboFile[[#This Row],[G&S reporting level indicator]]","v":0},{"$f":"T_DataComboFile[[#This Row],[2021/22 Baseline_Source]]*T_DataComboFile[[#This Row],[G&S reporting level indicator]]","v":0},{"$f":"T_DataComboFile[[#This Row],[2022/23 Baseline_Source]]*T_DataComboFile[[#This Row],[G&S reporting level indicator]]","v":0},{"$f":"T_DataComboFile[[#This Row],[2023/24 Baseline_Source]]*T_DataComboFile[[#This Row],[G&S reporting level indicator]]","v":0},null,null,null,null,null,null,{"$f":"T_DataComboFile[[#This Row],[2021/22 Baseline]]+T_DataComboFile[[#This Row],[2021/22 Reduction]]+T_DataComboFile[[#This Row],[2021/22 Increase]]","v":0},{"$f":"T_DataComboFile[[#This Row],[2022/23 Baseline]]+T_DataComboFile[[#This Row],[2022/23 Reduction]]+T_DataComboFile[[#This Row],[2022/23 Increase]]","v":0},{"$f":"T_DataComboFile[[#This Row],[2023/24 Baseline]]+T_DataComboFile[[#This Row],[2023/24 Reduction]]+T_DataComboFile[[#This Row],[2023/24 Increase]]","v":0}]
[null,null,"2021_22","ENE2020",36,3,3,null,70953,36,3,3,null,"070953","36|03|03",1,1,2,28,28,"01|01|02|28|28","National","Small Business Development","Integrated Cooperative Development","Supplier Development and Market Access Support",null,"Current","Current payments","Goods and services","Inventory: Medicine","Inventory: Medicine",null,null,null,0,0,0,0,0,0,0,0,0,0,0,0,0,0,null,{"$f":"IF(T_DataComboFile[[#This Row],[G&S reporting level indicator]]=1,$AX$16,\"Not applicable\")","v":"Not applicable"},{"$f":"IF(AND($AX$16=\"Level 3\",T_DataComboFile[[#This Row],[Econ3]] = \"Goods and services\"),IF(T_DataComboFile[[#This Row],[Econ4]] = T_DataComboFile[[#This Row],[Econ3]],1,0),IF(AND($AX$16=\"Level 4\",T_DataComboFile[[#This Row],[Econ4]] = \"Goods and services\"),0,1))","v":0},{"$f":"T_DataComboFile[[#This Row],[2016/17_Source]]*T_DataComboFile[[#This Row],[G&S reporting level indicator]]","v":0},{"$f":"T_DataComboFile[[#This Row],[2017/18_Source]]*T_DataComboFile[[#This Row],[G&S reporting level indicator]]","v":0},{"$f":"T_DataComboFile[[#This Row],[2018/19_Source]]*T_DataComboFile[[#This Row],[G&S reporting level indicator]]","v":0},{"$f":"T_DataComboFile[[#This Row],[2019/20 Main appropriation_Source]]*T_DataComboFile[[#This Row],[G&S reporting level indicator]]","v":0},{"$f":"T_DataComboFile[[#This Row],[2019/20 Adjusted appropriation_Source]]*T_DataComboFile[[#This Row],[G&S reporting level indicator]]","v":0},{"$f":"T_DataComboFile[[#This Row],[2019/20 Revised estimate_Source]]*T_DataComboFile[[#This Row],[G&S reporting level indicator]]","v":0},{"$f":"T_DataComboFile[[#This Row],[2019/20 Preliminary outcome_Source]]*T_DataComboFile[[#This Row],[G&S reporting level indicator]]","v":0},{"$f":"T_DataComboFile[[#This Row],[2020/21 Original_Source]]*T_DataComboFile[[#This Row],[G&S reporting level indicator]]","v":0},{"$f":"T_DataComboFile[[#This Row],[2020/21 SAB_Source]]*T_DataComboFile[[#This Row],[G&S reporting level indicator]]","v":0},{"$f":"T_DataComboFile[[#This Row],[2020/21 Baseline_Source]]*T_DataComboFile[[#This Row],[G&S reporting level indicator]]","v":0},{"$f":"T_DataComboFile[[#This Row],[2021/22 Baseline_Source]]*T_DataComboFile[[#This Row],[G&S reporting level indicator]]","v":0},{"$f":"T_DataComboFile[[#This Row],[2022/23 Baseline_Source]]*T_DataComboFile[[#This Row],[G&S reporting level indicator]]","v":0},{"$f":"T_DataComboFile[[#This Row],[2023/24 Baseline_Source]]*T_DataComboFile[[#This Row],[G&S reporting level indicator]]","v":0},null,null,null,null,null,null,{"$f":"T_DataComboFile[[#This Row],[2021/22 Baseline]]+T_DataComboFile[[#This Row],[2021/22 Reduction]]+T_DataComboFile[[#This Row],[2021/22 Increase]]","v":0},{"$f":"T_DataComboFile[[#This Row],[2022/23 Baseline]]+T_DataComboFile[[#This Row],[2022/23 Reduction]]+T_DataComboFile[[#This Row],[2022/23 Increase]]","v":0},{"$f":"T_DataComboFile[[#This Row],[2023/24 Baseline]]+T_DataComboFile[[#This Row],[2023/24 Reduction]]+T_DataComboFile[[#This Row],[2023/24 Increase]]","v":0}]
[null,null,"2021_22","ENE2020",36,3,3,null,70954,36,3,3,null,"070954","36|03|03",1,1,2,29,29,"01|01|02|29|29","National","Small Business Development","Integrated Cooperative Development","Supplier Development and Market Access Support",null,"Current","Current payments","Goods and services","Medsas inventory interface","Medsas inventory interface",null,null,null,0,0,0,0,0,0,0,0,0,0,0,0,0,0,null,{"$f":"IF(T_DataComboFile[[#This Row],[G&S reporting level indicator]]=1,$AX$16,\"Not applicable\")","v":"Not applicable"},{"$f":"IF(AND($AX$16=\"Level 3\",T_DataComboFile[[#This Row],[Econ3]] = \"Goods and services\"),IF(T_DataComboFile[[#This Row],[Econ4]] = T_DataComboFile[[#This Row],[Econ3]],1,0),IF(AND($AX$16=\"Level 4\",T_DataComboFile[[#This Row],[Econ4]] = \"Goods and services\"),0,1))","v":0},{"$f":"T_DataComboFile[[#This Row],[2016/17_Source]]*T_DataComboFile[[#This Row],[G&S reporting level indicator]]","v":0},{"$f":"T_DataComboFile[[#This Row],[2017/18_Source]]*T_DataComboFile[[#This Row],[G&S reporting level indicator]]","v":0},{"$f":"T_DataComboFile[[#This Row],[2018/19_Source]]*T_DataComboFile[[#This Row],[G&S reporting level indicator]]","v":0},{"$f":"T_DataComboFile[[#This Row],[2019/20 Main appropriation_Source]]*T_DataComboFile[[#This Row],[G&S reporting level indicator]]","v":0},{"$f":"T_DataComboFile[[#This Row],[2019/20 Adjusted appropriation_Source]]*T_DataComboFile[[#This Row],[G&S reporting level indicator]]","v":0},{"$f":"T_DataComboFile[[#This Row],[2019/20 Revised estimate_Source]]*T_DataComboFile[[#This Row],[G&S reporting level indicator]]","v":0},{"$f":"T_DataComboFile[[#This Row],[2019/20 Preliminary outcome_Source]]*T_DataComboFile[[#This Row],[G&S reporting level indicator]]","v":0},{"$f":"T_DataComboFile[[#This Row],[2020/21 Original_Source]]*T_DataComboFile[[#This Row],[G&S reporting level indicator]]","v":0},{"$f":"T_DataComboFile[[#This Row],[2020/21 SAB_Source]]*T_DataComboFile[[#This Row],[G&S reporting level indicator]]","v":0},{"$f":"T_DataComboFile[[#This Row],[2020/21 Baseline_Source]]*T_DataComboFile[[#This Row],[G&S reporting level indicator]]","v":0},{"$f":"T_DataComboFile[[#This Row],[2021/22 Baseline_Source]]*T_DataComboFile[[#This Row],[G&S reporting level indicator]]","v":0},{"$f":"T_DataComboFile[[#This Row],[2022/23 Baseline_Source]]*T_DataComboFile[[#This Row],[G&S reporting level indicator]]","v":0},{"$f":"T_DataComboFile[[#This Row],[2023/24 Baseline_Source]]*T_DataComboFile[[#This Row],[G&S reporting level indicator]]","v":0},null,null,null,null,null,null,{"$f":"T_DataComboFile[[#This Row],[2021/22 Baseline]]+T_DataComboFile[[#This Row],[2021/22 Reduction]]+T_DataComboFile[[#This Row],[2021/22 Increase]]","v":0},{"$f":"T_DataComboFile[[#This Row],[2022/23 Baseline]]+T_DataComboFile[[#This Row],[2022/23 Reduction]]+T_DataComboFile[[#This Row],[2022/23 Increase]]","v":0},{"$f":"T_DataComboFile[[#This Row],[2023/24 Baseline]]+T_DataComboFile[[#This Row],[2023/24 Reduction]]+T_DataComboFile[[#This Row],[2023/24 Increase]]","v":0}]
[null,null,"2021_22","ENE2020",36,3,3,null,70955,36,3,3,null,"070955","36|03|03",1,1,2,30,30,"01|01|02|30|30","National","Small Business Development","Integrated Cooperative Development","Supplier Development and Market Access Support",null,"Current","Current payments","Goods and services","Inventory: Other supplies","Inventory: Other supplies",null,null,null,0,0,0,0,0,0,0,0,0,0,0,0,0,0,null,{"$f":"IF(T_DataComboFile[[#This Row],[G&S reporting level indicator]]=1,$AX$16,\"Not applicable\")","v":"Not applicable"},{"$f":"IF(AND($AX$16=\"Level 3\",T_DataComboFile[[#This Row],[Econ3]] = \"Goods and services\"),IF(T_DataComboFile[[#This Row],[Econ4]] = T_DataComboFile[[#This Row],[Econ3]],1,0),IF(AND($AX$16=\"Level 4\",T_DataComboFile[[#This Row],[Econ4]] = \"Goods and services\"),0,1))","v":0},{"$f":"T_DataComboFile[[#This Row],[2016/17_Source]]*T_DataComboFile[[#This Row],[G&S reporting level indicator]]","v":0},{"$f":"T_DataComboFile[[#This Row],[2017/18_Source]]*T_DataComboFile[[#This Row],[G&S reporting level indicator]]","v":0},{"$f":"T_DataComboFile[[#This Row],[2018/19_Source]]*T_DataComboFile[[#This Row],[G&S reporting level indicator]]","v":0},{"$f":"T_DataComboFile[[#This Row],[2019/20 Main appropriation_Source]]*T_DataComboFile[[#This Row],[G&S reporting level indicator]]","v":0},{"$f":"T_DataComboFile[[#This Row],[2019/20 Adjusted appropriation_Source]]*T_DataComboFile[[#This Row],[G&S reporting level indicator]]","v":0},{"$f":"T_DataComboFile[[#This Row],[2019/20 Revised estimate_Source]]*T_DataComboFile[[#This Row],[G&S reporting level indicator]]","v":0},{"$f":"T_DataComboFile[[#This Row],[2019/20 Preliminary outcome_Source]]*T_DataComboFile[[#This Row],[G&S reporting level indicator]]","v":0},{"$f":"T_DataComboFile[[#This Row],[2020/21 Original_Source]]*T_DataComboFile[[#This Row],[G&S reporting level indicator]]","v":0},{"$f":"T_DataComboFile[[#This Row],[2020/21 SAB_Source]]*T_DataComboFile[[#This Row],[G&S reporting level indicator]]","v":0},{"$f":"T_DataComboFile[[#This Row],[2020/21 Baseline_Source]]*T_DataComboFile[[#This Row],[G&S reporting level indicator]]","v":0},{"$f":"T_DataComboFile[[#This Row],[2021/22 Baseline_Source]]*T_DataComboFile[[#This Row],[G&S reporting level indicator]]","v":0},{"$f":"T_DataComboFile[[#This Row],[2022/23 Baseline_Source]]*T_DataComboFile[[#This Row],[G&S reporting level indicator]]","v":0},{"$f":"T_DataComboFile[[#This Row],[2023/24 Baseline_Source]]*T_DataComboFile[[#This Row],[G&S reporting level indicator]]","v":0},null,null,null,null,null,null,{"$f":"T_DataComboFile[[#This Row],[2021/22 Baseline]]+T_DataComboFile[[#This Row],[2021/22 Reduction]]+T_DataComboFile[[#This Row],[2021/22 Increase]]","v":0},{"$f":"T_DataComboFile[[#This Row],[2022/23 Baseline]]+T_DataComboFile[[#This Row],[2022/23 Reduction]]+T_DataComboFile[[#This Row],[2022/23 Increase]]","v":0},{"$f":"T_DataComboFile[[#This Row],[2023/24 Baseline]]+T_DataComboFile[[#This Row],[2023/24 Reduction]]+T_DataComboFile[[#This Row],[2023/24 Increase]]","v":0}]
["NAT|Non-transfer item","36|Consumable supplies","2021_22","ENE2020",36,3,3,17378,70956,36,3,3,17378,"070956","36|03|03",1,1,2,31,31,"01|01|02|31|31","National","Small Business Development","Integrated Cooperative Development","Supplier Development and Market Access Support","Non-transfer item","Current","Current payments","Goods and services","Consumable supplies","Consumable supplies","Economic development","Industrialisation and exports","NAT",1,1,0,0,0,0,0,0,0,0,0,0,0,1,null,{"$f":"IF(T_DataComboFile[[#This Row],[G&S reporting level indicator]]=1,$AX$16,\"Not applicable\")","v":"Not applicable"},{"$f":"IF(AND($AX$16=\"Level 3\",T_DataComboFile[[#This Row],[Econ3]] = \"Goods and services\"),IF(T_DataComboFile[[#This Row],[Econ4]] = T_DataComboFile[[#This Row],[Econ3]],1,0),IF(AND($AX$16=\"Level 4\",T_DataComboFile[[#This Row],[Econ4]] = \"Goods and services\"),0,1))","v":0},{"$f":"T_DataComboFile[[#This Row],[2016/17_Source]]*T_DataComboFile[[#This Row],[G&S reporting level indicator]]","v":0},{"$f":"T_DataComboFile[[#This Row],[2017/18_Source]]*T_DataComboFile[[#This Row],[G&S reporting level indicator]]","v":0},{"$f":"T_DataComboFile[[#This Row],[2018/19_Source]]*T_DataComboFile[[#This Row],[G&S reporting level indicator]]","v":0},{"$f":"T_DataComboFile[[#This Row],[2019/20 Main appropriation_Source]]*T_DataComboFile[[#This Row],[G&S reporting level indicator]]","v":0},{"$f":"T_DataComboFile[[#This Row],[2019/20 Adjusted appropriation_Source]]*T_DataComboFile[[#This Row],[G&S reporting level indicator]]","v":0},{"$f":"T_DataComboFile[[#This Row],[2019/20 Revised estimate_Source]]*T_DataComboFile[[#This Row],[G&S reporting level indicator]]","v":0},{"$f":"T_DataComboFile[[#This Row],[2019/20 Preliminary outcome_Source]]*T_DataComboFile[[#This Row],[G&S reporting level indicator]]","v":0},{"$f":"T_DataComboFile[[#This Row],[2020/21 Original_Source]]*T_DataComboFile[[#This Row],[G&S reporting level indicator]]","v":0},{"$f":"T_DataComboFile[[#This Row],[2020/21 SAB_Source]]*T_DataComboFile[[#This Row],[G&S reporting level indicator]]","v":0},{"$f":"T_DataComboFile[[#This Row],[2020/21 Baseline_Source]]*T_DataComboFile[[#This Row],[G&S reporting level indicator]]","v":0},{"$f":"T_DataComboFile[[#This Row],[2021/22 Baseline_Source]]*T_DataComboFile[[#This Row],[G&S reporting level indicator]]","v":0},{"$f":"T_DataComboFile[[#This Row],[2022/23 Baseline_Source]]*T_DataComboFile[[#This Row],[G&S reporting level indicator]]","v":0},{"$f":"T_DataComboFile[[#This Row],[2023/24 Baseline_Source]]*T_DataComboFile[[#This Row],[G&S reporting level indicator]]","v":0},null,null,null,null,null,null,{"$f":"T_DataComboFile[[#This Row],[2021/22 Baseline]]+T_DataComboFile[[#This Row],[2021/22 Reduction]]+T_DataComboFile[[#This Row],[2021/22 Increase]]","v":0},{"$f":"T_DataComboFile[[#This Row],[2022/23 Baseline]]+T_DataComboFile[[#This Row],[2022/23 Reduction]]+T_DataComboFile[[#This Row],[2022/23 Increase]]","v":0},{"$f":"T_DataComboFile[[#This Row],[2023/24 Baseline]]+T_DataComboFile[[#This Row],[2023/24 Reduction]]+T_DataComboFile[[#This Row],[2023/24 Increase]]","v":0}]
["NAT|Non-transfer item","36|Consumables: Stationery, printing and office supplies","2021_22","ENE2020",36,3,3,17379,70957,36,3,3,17379,"070957","36|03|03",1,1,2,32,32,"01|01|02|32|32","National","Small Business Development","Integrated Cooperative Development","Supplier Development and Market Access Support","Non-transfer item","Current","Current payments","Goods and services","Consumables: Stationery, printing and office supplies","Consumables: Stationery, printing and office supplies","Economic development","Industrialisation and exports","NAT",27,19,6,14,14,14,14,10,10,10,12,14,15,1,null,{"$f":"IF(T_DataComboFile[[#This Row],[G&S reporting level indicator]]=1,$AX$16,\"Not applicable\")","v":"Not applicable"},{"$f":"IF(AND($AX$16=\"Level 3\",T_DataComboFile[[#This Row],[Econ3]] = \"Goods and services\"),IF(T_DataComboFile[[#This Row],[Econ4]] = T_DataComboFile[[#This Row],[Econ3]],1,0),IF(AND($AX$16=\"Level 4\",T_DataComboFile[[#This Row],[Econ4]] = \"Goods and services\"),0,1))","v":0},{"$f":"T_DataComboFile[[#This Row],[2016/17_Source]]*T_DataComboFile[[#This Row],[G&S reporting level indicator]]","v":0},{"$f":"T_DataComboFile[[#This Row],[2017/18_Source]]*T_DataComboFile[[#This Row],[G&S reporting level indicator]]","v":0},{"$f":"T_DataComboFile[[#This Row],[2018/19_Source]]*T_DataComboFile[[#This Row],[G&S reporting level indicator]]","v":0},{"$f":"T_DataComboFile[[#This Row],[2019/20 Main appropriation_Source]]*T_DataComboFile[[#This Row],[G&S reporting level indicator]]","v":0},{"$f":"T_DataComboFile[[#This Row],[2019/20 Adjusted appropriation_Source]]*T_DataComboFile[[#This Row],[G&S reporting level indicator]]","v":0},{"$f":"T_DataComboFile[[#This Row],[2019/20 Revised estimate_Source]]*T_DataComboFile[[#This Row],[G&S reporting level indicator]]","v":0},{"$f":"T_DataComboFile[[#This Row],[2019/20 Preliminary outcome_Source]]*T_DataComboFile[[#This Row],[G&S reporting level indicator]]","v":0},{"$f":"T_DataComboFile[[#This Row],[2020/21 Original_Source]]*T_DataComboFile[[#This Row],[G&S reporting level indicator]]","v":0},{"$f":"T_DataComboFile[[#This Row],[2020/21 SAB_Source]]*T_DataComboFile[[#This Row],[G&S reporting level indicator]]","v":0},{"$f":"T_DataComboFile[[#This Row],[2020/21 Baseline_Source]]*T_DataComboFile[[#This Row],[G&S reporting level indicator]]","v":0},{"$f":"T_DataComboFile[[#This Row],[2021/22 Baseline_Source]]*T_DataComboFile[[#This Row],[G&S reporting level indicator]]","v":0},{"$f":"T_DataComboFile[[#This Row],[2022/23 Baseline_Source]]*T_DataComboFile[[#This Row],[G&S reporting level indicator]]","v":0},{"$f":"T_DataComboFile[[#This Row],[2023/24 Baseline_Source]]*T_DataComboFile[[#This Row],[G&S reporting level indicator]]","v":0},null,null,null,null,null,null,{"$f":"T_DataComboFile[[#This Row],[2021/22 Baseline]]+T_DataComboFile[[#This Row],[2021/22 Reduction]]+T_DataComboFile[[#This Row],[2021/22 Increase]]","v":0},{"$f":"T_DataComboFile[[#This Row],[2022/23 Baseline]]+T_DataComboFile[[#This Row],[2022/23 Reduction]]+T_DataComboFile[[#This Row],[2022/23 Increase]]","v":0},{"$f":"T_DataComboFile[[#This Row],[2023/24 Baseline]]+T_DataComboFile[[#This Row],[2023/24 Reduction]]+T_DataComboFile[[#This Row],[2023/24 Increase]]","v":0}]
[null,null,"2021_22","ENE2020",36,3,3,null,70958,36,3,3,null,"070958","36|03|03",1,1,2,33,33,"01|01|02|33|33","National","Small Business Development","Integrated Cooperative Development","Supplier Development and Market Access Support",null,"Current","Current payments","Goods and services","Operating leases","Operating leases",null,null,null,0,0,0,0,0,0,0,0,0,0,0,0,0,0,null,{"$f":"IF(T_DataComboFile[[#This Row],[G&S reporting level indicator]]=1,$AX$16,\"Not applicable\")","v":"Not applicable"},{"$f":"IF(AND($AX$16=\"Level 3\",T_DataComboFile[[#This Row],[Econ3]] = \"Goods and services\"),IF(T_DataComboFile[[#This Row],[Econ4]] = T_DataComboFile[[#This Row],[Econ3]],1,0),IF(AND($AX$16=\"Level 4\",T_DataComboFile[[#This Row],[Econ4]] = \"Goods and services\"),0,1))","v":0},{"$f":"T_DataComboFile[[#This Row],[2016/17_Source]]*T_DataComboFile[[#This Row],[G&S reporting level indicator]]","v":0},{"$f":"T_DataComboFile[[#This Row],[2017/18_Source]]*T_DataComboFile[[#This Row],[G&S reporting level indicator]]","v":0},{"$f":"T_DataComboFile[[#This Row],[2018/19_Source]]*T_DataComboFile[[#This Row],[G&S reporting level indicator]]","v":0},{"$f":"T_DataComboFile[[#This Row],[2019/20 Main appropriation_Source]]*T_DataComboFile[[#This Row],[G&S reporting level indicator]]","v":0},{"$f":"T_DataComboFile[[#This Row],[2019/20 Adjusted appropriation_Source]]*T_DataComboFile[[#This Row],[G&S reporting level indicator]]","v":0},{"$f":"T_DataComboFile[[#This Row],[2019/20 Revised estimate_Source]]*T_DataComboFile[[#This Row],[G&S reporting level indicator]]","v":0},{"$f":"T_DataComboFile[[#This Row],[2019/20 Preliminary outcome_Source]]*T_DataComboFile[[#This Row],[G&S reporting level indicator]]","v":0},{"$f":"T_DataComboFile[[#This Row],[2020/21 Original_Source]]*T_DataComboFile[[#This Row],[G&S reporting level indicator]]","v":0},{"$f":"T_DataComboFile[[#This Row],[2020/21 SAB_Source]]*T_DataComboFile[[#This Row],[G&S reporting level indicator]]","v":0},{"$f":"T_DataComboFile[[#This Row],[2020/21 Baseline_Source]]*T_DataComboFile[[#This Row],[G&S reporting level indicator]]","v":0},{"$f":"T_DataComboFile[[#This Row],[2021/22 Baseline_Source]]*T_DataComboFile[[#This Row],[G&S reporting level indicator]]","v":0},{"$f":"T_DataComboFile[[#This Row],[2022/23 Baseline_Source]]*T_DataComboFile[[#This Row],[G&S reporting level indicator]]","v":0},{"$f":"T_DataComboFile[[#This Row],[2023/24 Baseline_Source]]*T_DataComboFile[[#This Row],[G&S reporting level indicator]]","v":0},null,null,null,null,null,null,{"$f":"T_DataComboFile[[#This Row],[2021/22 Baseline]]+T_DataComboFile[[#This Row],[2021/22 Reduction]]+T_DataComboFile[[#This Row],[2021/22 Increase]]","v":0},{"$f":"T_DataComboFile[[#This Row],[2022/23 Baseline]]+T_DataComboFile[[#This Row],[2022/23 Reduction]]+T_DataComboFile[[#This Row],[2022/23 Increase]]","v":0},{"$f":"T_DataComboFile[[#This Row],[2023/24 Baseline]]+T_DataComboFile[[#This Row],[2023/24 Reduction]]+T_DataComboFile[[#This Row],[2023/24 Increase]]","v":0}]
[null,null,"2021_22","ENE2020",36,3,3,null,70959,36,3,3,null,"070959","36|03|03",1,1,2,34,34,"01|01|02|34|34","National","Small Business Development","Integrated Cooperative Development","Supplier Development and Market Access Support",null,"Current","Current payments","Goods and services","Rental and hiring","Rental and hiring",null,null,null,0,0,0,0,0,0,0,0,0,0,0,0,0,0,null,{"$f":"IF(T_DataComboFile[[#This Row],[G&S reporting level indicator]]=1,$AX$16,\"Not applicable\")","v":"Not applicable"},{"$f":"IF(AND($AX$16=\"Level 3\",T_DataComboFile[[#This Row],[Econ3]] = \"Goods and services\"),IF(T_DataComboFile[[#This Row],[Econ4]] = T_DataComboFile[[#This Row],[Econ3]],1,0),IF(AND($AX$16=\"Level 4\",T_DataComboFile[[#This Row],[Econ4]] = \"Goods and services\"),0,1))","v":0},{"$f":"T_DataComboFile[[#This Row],[2016/17_Source]]*T_DataComboFile[[#This Row],[G&S reporting level indicator]]","v":0},{"$f":"T_DataComboFile[[#This Row],[2017/18_Source]]*T_DataComboFile[[#This Row],[G&S reporting level indicator]]","v":0},{"$f":"T_DataComboFile[[#This Row],[2018/19_Source]]*T_DataComboFile[[#This Row],[G&S reporting level indicator]]","v":0},{"$f":"T_DataComboFile[[#This Row],[2019/20 Main appropriation_Source]]*T_DataComboFile[[#This Row],[G&S reporting level indicator]]","v":0},{"$f":"T_DataComboFile[[#This Row],[2019/20 Adjusted appropriation_Source]]*T_DataComboFile[[#This Row],[G&S reporting level indicator]]","v":0},{"$f":"T_DataComboFile[[#This Row],[2019/20 Revised estimate_Source]]*T_DataComboFile[[#This Row],[G&S reporting level indicator]]","v":0},{"$f":"T_DataComboFile[[#This Row],[2019/20 Preliminary outcome_Source]]*T_DataComboFile[[#This Row],[G&S reporting level indicator]]","v":0},{"$f":"T_DataComboFile[[#This Row],[2020/21 Original_Source]]*T_DataComboFile[[#This Row],[G&S reporting level indicator]]","v":0},{"$f":"T_DataComboFile[[#This Row],[2020/21 SAB_Source]]*T_DataComboFile[[#This Row],[G&S reporting level indicator]]","v":0},{"$f":"T_DataComboFile[[#This Row],[2020/21 Baseline_Source]]*T_DataComboFile[[#This Row],[G&S reporting level indicator]]","v":0},{"$f":"T_DataComboFile[[#This Row],[2021/22 Baseline_Source]]*T_DataComboFile[[#This Row],[G&S reporting level indicator]]","v":0},{"$f":"T_DataComboFile[[#This Row],[2022/23 Baseline_Source]]*T_DataComboFile[[#This Row],[G&S reporting level indicator]]","v":0},{"$f":"T_DataComboFile[[#This Row],[2023/24 Baseline_Source]]*T_DataComboFile[[#This Row],[G&S reporting level indicator]]","v":0},null,null,null,null,null,null,{"$f":"T_DataComboFile[[#This Row],[2021/22 Baseline]]+T_DataComboFile[[#This Row],[2021/22 Reduction]]+T_DataComboFile[[#This Row],[2021/22 Increase]]","v":0},{"$f":"T_DataComboFile[[#This Row],[2022/23 Baseline]]+T_DataComboFile[[#This Row],[2022/23 Reduction]]+T_DataComboFile[[#This Row],[2022/23 Increase]]","v":0},{"$f":"T_DataComboFile[[#This Row],[2023/24 Baseline]]+T_DataComboFile[[#This Row],[2023/24 Reduction]]+T_DataComboFile[[#This Row],[2023/24 Increase]]","v":0}]
[null,null,"2021_22","ENE2020",36,3,3,null,70960,36,3,3,null,"070960","36|03|03",1,1,2,35,35,"01|01|02|35|35","National","Small Business Development","Integrated Cooperative Development","Supplier Development and Market Access Support",null,"Current","Current payments","Goods and services","Property payments","Property payments",null,null,null,0,0,0,0,0,0,0,0,0,0,0,0,0,0,null,{"$f":"IF(T_DataComboFile[[#This Row],[G&S reporting level indicator]]=1,$AX$16,\"Not applicable\")","v":"Not applicable"},{"$f":"IF(AND($AX$16=\"Level 3\",T_DataComboFile[[#This Row],[Econ3]] = \"Goods and services\"),IF(T_DataComboFile[[#This Row],[Econ4]] = T_DataComboFile[[#This Row],[Econ3]],1,0),IF(AND($AX$16=\"Level 4\",T_DataComboFile[[#This Row],[Econ4]] = \"Goods and services\"),0,1))","v":0},{"$f":"T_DataComboFile[[#This Row],[2016/17_Source]]*T_DataComboFile[[#This Row],[G&S reporting level indicator]]","v":0},{"$f":"T_DataComboFile[[#This Row],[2017/18_Source]]*T_DataComboFile[[#This Row],[G&S reporting level indicator]]","v":0},{"$f":"T_DataComboFile[[#This Row],[2018/19_Source]]*T_DataComboFile[[#This Row],[G&S reporting level indicator]]","v":0},{"$f":"T_DataComboFile[[#This Row],[2019/20 Main appropriation_Source]]*T_DataComboFile[[#This Row],[G&S reporting level indicator]]","v":0},{"$f":"T_DataComboFile[[#This Row],[2019/20 Adjusted appropriation_Source]]*T_DataComboFile[[#This Row],[G&S reporting level indicator]]","v":0},{"$f":"T_DataComboFile[[#This Row],[2019/20 Revised estimate_Source]]*T_DataComboFile[[#This Row],[G&S reporting level indicator]]","v":0},{"$f":"T_DataComboFile[[#This Row],[2019/20 Preliminary outcome_Source]]*T_DataComboFile[[#This Row],[G&S reporting level indicator]]","v":0},{"$f":"T_DataComboFile[[#This Row],[2020/21 Original_Source]]*T_DataComboFile[[#This Row],[G&S reporting level indicator]]","v":0},{"$f":"T_DataComboFile[[#This Row],[2020/21 SAB_Source]]*T_DataComboFile[[#This Row],[G&S reporting level indicator]]","v":0},{"$f":"T_DataComboFile[[#This Row],[2020/21 Baseline_Source]]*T_DataComboFile[[#This Row],[G&S reporting level indicator]]","v":0},{"$f":"T_DataComboFile[[#This Row],[2021/22 Baseline_Source]]*T_DataComboFile[[#This Row],[G&S reporting level indicator]]","v":0},{"$f":"T_DataComboFile[[#This Row],[2022/23 Baseline_Source]]*T_DataComboFile[[#This Row],[G&S reporting level indicator]]","v":0},{"$f":"T_DataComboFile[[#This Row],[2023/24 Baseline_Source]]*T_DataComboFile[[#This Row],[G&S reporting level indicator]]","v":0},null,null,null,null,null,null,{"$f":"T_DataComboFile[[#This Row],[2021/22 Baseline]]+T_DataComboFile[[#This Row],[2021/22 Reduction]]+T_DataComboFile[[#This Row],[2021/22 Increase]]","v":0},{"$f":"T_DataComboFile[[#This Row],[2022/23 Baseline]]+T_DataComboFile[[#This Row],[2022/23 Reduction]]+T_DataComboFile[[#This Row],[2022/23 Increase]]","v":0},{"$f":"T_DataComboFile[[#This Row],[2023/24 Baseline]]+T_DataComboFile[[#This Row],[2023/24 Reduction]]+T_DataComboFile[[#This Row],[2023/24 Increase]]","v":0}]
[null,null,"2021_22","ENE2020",36,3,3,null,70961,36,3,3,null,"070961","36|03|03",1,1,2,36,36,"01|01|02|36|36","National","Small Business Development","Integrated Cooperative Development","Supplier Development and Market Access Support",null,"Current","Current payments","Goods and services","Transport provided: Departmental activity","Transport provided: Departmental activity",null,null,null,0,0,0,0,0,0,0,0,0,0,0,0,0,0,null,{"$f":"IF(T_DataComboFile[[#This Row],[G&S reporting level indicator]]=1,$AX$16,\"Not applicable\")","v":"Not applicable"},{"$f":"IF(AND($AX$16=\"Level 3\",T_DataComboFile[[#This Row],[Econ3]] = \"Goods and services\"),IF(T_DataComboFile[[#This Row],[Econ4]] = T_DataComboFile[[#This Row],[Econ3]],1,0),IF(AND($AX$16=\"Level 4\",T_DataComboFile[[#This Row],[Econ4]] = \"Goods and services\"),0,1))","v":0},{"$f":"T_DataComboFile[[#This Row],[2016/17_Source]]*T_DataComboFile[[#This Row],[G&S reporting level indicator]]","v":0},{"$f":"T_DataComboFile[[#This Row],[2017/18_Source]]*T_DataComboFile[[#This Row],[G&S reporting level indicator]]","v":0},{"$f":"T_DataComboFile[[#This Row],[2018/19_Source]]*T_DataComboFile[[#This Row],[G&S reporting level indicator]]","v":0},{"$f":"T_DataComboFile[[#This Row],[2019/20 Main appropriation_Source]]*T_DataComboFile[[#This Row],[G&S reporting level indicator]]","v":0},{"$f":"T_DataComboFile[[#This Row],[2019/20 Adjusted appropriation_Source]]*T_DataComboFile[[#This Row],[G&S reporting level indicator]]","v":0},{"$f":"T_DataComboFile[[#This Row],[2019/20 Revised estimate_Source]]*T_DataComboFile[[#This Row],[G&S reporting level indicator]]","v":0},{"$f":"T_DataComboFile[[#This Row],[2019/20 Preliminary outcome_Source]]*T_DataComboFile[[#This Row],[G&S reporting level indicator]]","v":0},{"$f":"T_DataComboFile[[#This Row],[2020/21 Original_Source]]*T_DataComboFile[[#This Row],[G&S reporting level indicator]]","v":0},{"$f":"T_DataComboFile[[#This Row],[2020/21 SAB_Source]]*T_DataComboFile[[#This Row],[G&S reporting level indicator]]","v":0},{"$f":"T_DataComboFile[[#This Row],[2020/21 Baseline_Source]]*T_DataComboFile[[#This Row],[G&S reporting level indicator]]","v":0},{"$f":"T_DataComboFile[[#This Row],[2021/22 Baseline_Source]]*T_DataComboFile[[#This Row],[G&S reporting level indicator]]","v":0},{"$f":"T_DataComboFile[[#This Row],[2022/23 Baseline_Source]]*T_DataComboFile[[#This Row],[G&S reporting level indicator]]","v":0},{"$f":"T_DataComboFile[[#This Row],[2023/24 Baseline_Source]]*T_DataComboFile[[#This Row],[G&S reporting level indicator]]","v":0},null,null,null,null,null,null,{"$f":"T_DataComboFile[[#This Row],[2021/22 Baseline]]+T_DataComboFile[[#This Row],[2021/22 Reduction]]+T_DataComboFile[[#This Row],[2021/22 Increase]]","v":0},{"$f":"T_DataComboFile[[#This Row],[2022/23 Baseline]]+T_DataComboFile[[#This Row],[2022/23 Reduction]]+T_DataComboFile[[#This Row],[2022/23 Increase]]","v":0},{"$f":"T_DataComboFile[[#This Row],[2023/24 Baseline]]+T_DataComboFile[[#This Row],[2023/24 Reduction]]+T_DataComboFile[[#This Row],[2023/24 Increase]]","v":0}]
["NAT|Non-transfer item","36|Travel and subsistence","2021_22","ENE2020",36,3,3,17380,70962,36,3,3,17380,"070962","36|03|03",1,1,2,37,37,"01|01|02|37|37","National","Small Business Development","Integrated Cooperative Development","Supplier Development and Market Access Support","Non-transfer item","Current","Current payments","Goods and services","Travel and subsistence","Travel and subsistence","Economic development","Industrialisation and exports","NAT",464,942,1803,1490,1490,1490,1490,2105,1105,2105,2210,2321,2423,1,null,{"$f":"IF(T_DataComboFile[[#This Row],[G&S reporting level indicator]]=1,$AX$16,\"Not applicable\")","v":"Not applicable"},{"$f":"IF(AND($AX$16=\"Level 3\",T_DataComboFile[[#This Row],[Econ3]] = \"Goods and services\"),IF(T_DataComboFile[[#This Row],[Econ4]] = T_DataComboFile[[#This Row],[Econ3]],1,0),IF(AND($AX$16=\"Level 4\",T_DataComboFile[[#This Row],[Econ4]] = \"Goods and services\"),0,1))","v":0},{"$f":"T_DataComboFile[[#This Row],[2016/17_Source]]*T_DataComboFile[[#This Row],[G&S reporting level indicator]]","v":0},{"$f":"T_DataComboFile[[#This Row],[2017/18_Source]]*T_DataComboFile[[#This Row],[G&S reporting level indicator]]","v":0},{"$f":"T_DataComboFile[[#This Row],[2018/19_Source]]*T_DataComboFile[[#This Row],[G&S reporting level indicator]]","v":0},{"$f":"T_DataComboFile[[#This Row],[2019/20 Main appropriation_Source]]*T_DataComboFile[[#This Row],[G&S reporting level indicator]]","v":0},{"$f":"T_DataComboFile[[#This Row],[2019/20 Adjusted appropriation_Source]]*T_DataComboFile[[#This Row],[G&S reporting level indicator]]","v":0},{"$f":"T_DataComboFile[[#This Row],[2019/20 Revised estimate_Source]]*T_DataComboFile[[#This Row],[G&S reporting level indicator]]","v":0},{"$f":"T_DataComboFile[[#This Row],[2019/20 Preliminary outcome_Source]]*T_DataComboFile[[#This Row],[G&S reporting level indicator]]","v":0},{"$f":"T_DataComboFile[[#This Row],[2020/21 Original_Source]]*T_DataComboFile[[#This Row],[G&S reporting level indicator]]","v":0},{"$f":"T_DataComboFile[[#This Row],[2020/21 SAB_Source]]*T_DataComboFile[[#This Row],[G&S reporting level indicator]]","v":0},{"$f":"T_DataComboFile[[#This Row],[2020/21 Baseline_Source]]*T_DataComboFile[[#This Row],[G&S reporting level indicator]]","v":0},{"$f":"T_DataComboFile[[#This Row],[2021/22 Baseline_Source]]*T_DataComboFile[[#This Row],[G&S reporting level indicator]]","v":0},{"$f":"T_DataComboFile[[#This Row],[2022/23 Baseline_Source]]*T_DataComboFile[[#This Row],[G&S reporting level indicator]]","v":0},{"$f":"T_DataComboFile[[#This Row],[2023/24 Baseline_Source]]*T_DataComboFile[[#This Row],[G&S reporting level indicator]]","v":0},null,null,null,null,null,null,{"$f":"T_DataComboFile[[#This Row],[2021/22 Baseline]]+T_DataComboFile[[#This Row],[2021/22 Reduction]]+T_DataComboFile[[#This Row],[2021/22 Increase]]","v":0},{"$f":"T_DataComboFile[[#This Row],[2022/23 Baseline]]+T_DataComboFile[[#This Row],[2022/23 Reduction]]+T_DataComboFile[[#This Row],[2022/23 Increase]]","v":0},{"$f":"T_DataComboFile[[#This Row],[2023/24 Baseline]]+T_DataComboFile[[#This Row],[2023/24 Reduction]]+T_DataComboFile[[#This Row],[2023/24 Increase]]","v":0}]
["NAT|Non-transfer item","36|Training and development","2021_22","ENE2020",36,3,3,17381,70963,36,3,3,17381,"070963","36|03|03",1,1,2,38,38,"01|01|02|38|38","National","Small Business Development","Integrated Cooperative Development","Supplier Development and Market Access Support","Non-transfer item","Current","Current payments","Goods and services","Training and development","Training and development","Economic development","Industrialisation and exports","NAT",0,36,0,0,0,0,0,0,0,0,0,0,0,1,null,{"$f":"IF(T_DataComboFile[[#This Row],[G&S reporting level indicator]]=1,$AX$16,\"Not applicable\")","v":"Not applicable"},{"$f":"IF(AND($AX$16=\"Level 3\",T_DataComboFile[[#This Row],[Econ3]] = \"Goods and services\"),IF(T_DataComboFile[[#This Row],[Econ4]] = T_DataComboFile[[#This Row],[Econ3]],1,0),IF(AND($AX$16=\"Level 4\",T_DataComboFile[[#This Row],[Econ4]] = \"Goods and services\"),0,1))","v":0},{"$f":"T_DataComboFile[[#This Row],[2016/17_Source]]*T_DataComboFile[[#This Row],[G&S reporting level indicator]]","v":0},{"$f":"T_DataComboFile[[#This Row],[2017/18_Source]]*T_DataComboFile[[#This Row],[G&S reporting level indicator]]","v":0},{"$f":"T_DataComboFile[[#This Row],[2018/19_Source]]*T_DataComboFile[[#This Row],[G&S reporting level indicator]]","v":0},{"$f":"T_DataComboFile[[#This Row],[2019/20 Main appropriation_Source]]*T_DataComboFile[[#This Row],[G&S reporting level indicator]]","v":0},{"$f":"T_DataComboFile[[#This Row],[2019/20 Adjusted appropriation_Source]]*T_DataComboFile[[#This Row],[G&S reporting level indicator]]","v":0},{"$f":"T_DataComboFile[[#This Row],[2019/20 Revised estimate_Source]]*T_DataComboFile[[#This Row],[G&S reporting level indicator]]","v":0},{"$f":"T_DataComboFile[[#This Row],[2019/20 Preliminary outcome_Source]]*T_DataComboFile[[#This Row],[G&S reporting level indicator]]","v":0},{"$f":"T_DataComboFile[[#This Row],[2020/21 Original_Source]]*T_DataComboFile[[#This Row],[G&S reporting level indicator]]","v":0},{"$f":"T_DataComboFile[[#This Row],[2020/21 SAB_Source]]*T_DataComboFile[[#This Row],[G&S reporting level indicator]]","v":0},{"$f":"T_DataComboFile[[#This Row],[2020/21 Baseline_Source]]*T_DataComboFile[[#This Row],[G&S reporting level indicator]]","v":0},{"$f":"T_DataComboFile[[#This Row],[2021/22 Baseline_Source]]*T_DataComboFile[[#This Row],[G&S reporting level indicator]]","v":0},{"$f":"T_DataComboFile[[#This Row],[2022/23 Baseline_Source]]*T_DataComboFile[[#This Row],[G&S reporting level indicator]]","v":0},{"$f":"T_DataComboFile[[#This Row],[2023/24 Baseline_Source]]*T_DataComboFile[[#This Row],[G&S reporting level indicator]]","v":0},null,null,null,null,null,null,{"$f":"T_DataComboFile[[#This Row],[2021/22 Baseline]]+T_DataComboFile[[#This Row],[2021/22 Reduction]]+T_DataComboFile[[#This Row],[2021/22 Increase]]","v":0},{"$f":"T_DataComboFile[[#This Row],[2022/23 Baseline]]+T_DataComboFile[[#This Row],[2022/23 Reduction]]+T_DataComboFile[[#This Row],[2022/23 Increase]]","v":0},{"$f":"T_DataComboFile[[#This Row],[2023/24 Baseline]]+T_DataComboFile[[#This Row],[2023/24 Reduction]]+T_DataComboFile[[#This Row],[2023/24 Increase]]","v":0}]
["NAT|Non-transfer item","36|Operating payments","2021_22","ENE2020",36,3,3,17382,70964,36,3,3,17382,"070964","36|03|03",1,1,2,39,39,"01|01|02|39|39","National","Small Business Development","Integrated Cooperative Development","Supplier Development and Market Access Support","Non-transfer item","Current","Current payments","Goods and services","Operating payments","Operating payments","Economic development","Industrialisation and exports","NAT",0,1,2,1,4,4,4,0,0,0,0,0,0,1,null,{"$f":"IF(T_DataComboFile[[#This Row],[G&S reporting level indicator]]=1,$AX$16,\"Not applicable\")","v":"Not applicable"},{"$f":"IF(AND($AX$16=\"Level 3\",T_DataComboFile[[#This Row],[Econ3]] = \"Goods and services\"),IF(T_DataComboFile[[#This Row],[Econ4]] = T_DataComboFile[[#This Row],[Econ3]],1,0),IF(AND($AX$16=\"Level 4\",T_DataComboFile[[#This Row],[Econ4]] = \"Goods and services\"),0,1))","v":0},{"$f":"T_DataComboFile[[#This Row],[2016/17_Source]]*T_DataComboFile[[#This Row],[G&S reporting level indicator]]","v":0},{"$f":"T_DataComboFile[[#This Row],[2017/18_Source]]*T_DataComboFile[[#This Row],[G&S reporting level indicator]]","v":0},{"$f":"T_DataComboFile[[#This Row],[2018/19_Source]]*T_DataComboFile[[#This Row],[G&S reporting level indicator]]","v":0},{"$f":"T_DataComboFile[[#This Row],[2019/20 Main appropriation_Source]]*T_DataComboFile[[#This Row],[G&S reporting level indicator]]","v":0},{"$f":"T_DataComboFile[[#This Row],[2019/20 Adjusted appropriation_Source]]*T_DataComboFile[[#This Row],[G&S reporting level indicator]]","v":0},{"$f":"T_DataComboFile[[#This Row],[2019/20 Revised estimate_Source]]*T_DataComboFile[[#This Row],[G&S reporting level indicator]]","v":0},{"$f":"T_DataComboFile[[#This Row],[2019/20 Preliminary outcome_Source]]*T_DataComboFile[[#This Row],[G&S reporting level indicator]]","v":0},{"$f":"T_DataComboFile[[#This Row],[2020/21 Original_Source]]*T_DataComboFile[[#This Row],[G&S reporting level indicator]]","v":0},{"$f":"T_DataComboFile[[#This Row],[2020/21 SAB_Source]]*T_DataComboFile[[#This Row],[G&S reporting level indicator]]","v":0},{"$f":"T_DataComboFile[[#This Row],[2020/21 Baseline_Source]]*T_DataComboFile[[#This Row],[G&S reporting level indicator]]","v":0},{"$f":"T_DataComboFile[[#This Row],[2021/22 Baseline_Source]]*T_DataComboFile[[#This Row],[G&S reporting level indicator]]","v":0},{"$f":"T_DataComboFile[[#This Row],[2022/23 Baseline_Source]]*T_DataComboFile[[#This Row],[G&S reporting level indicator]]","v":0},{"$f":"T_DataComboFile[[#This Row],[2023/24 Baseline_Source]]*T_DataComboFile[[#This Row],[G&S reporting level indicator]]","v":0},null,null,null,null,null,null,{"$f":"T_DataComboFile[[#This Row],[2021/22 Baseline]]+T_DataComboFile[[#This Row],[2021/22 Reduction]]+T_DataComboFile[[#This Row],[2021/22 Increase]]","v":0},{"$f":"T_DataComboFile[[#This Row],[2022/23 Baseline]]+T_DataComboFile[[#This Row],[2022/23 Reduction]]+T_DataComboFile[[#This Row],[2022/23 Increase]]","v":0},{"$f":"T_DataComboFile[[#This Row],[2023/24 Baseline]]+T_DataComboFile[[#This Row],[2023/24 Reduction]]+T_DataComboFile[[#This Row],[2023/24 Increase]]","v":0}]
["NAT|Non-transfer item","36|Venues and facilities","2021_22","ENE2020",36,3,3,17383,70965,36,3,3,17383,"070965","36|03|03",1,1,2,40,40,"01|01|02|40|40","National","Small Business Development","Integrated Cooperative Development","Supplier Development and Market Access Support","Non-transfer item","Current","Current payments","Goods and services","Venues and facilities","Venues and facilities","Economic development","Industrialisation and exports","NAT",0,0,72,570,1913,1913,1913,2500,0,2500,2800,3100,3237,1,null,{"$f":"IF(T_DataComboFile[[#This Row],[G&S reporting level indicator]]=1,$AX$16,\"Not applicable\")","v":"Not applicable"},{"$f":"IF(AND($AX$16=\"Level 3\",T_DataComboFile[[#This Row],[Econ3]] = \"Goods and services\"),IF(T_DataComboFile[[#This Row],[Econ4]] = T_DataComboFile[[#This Row],[Econ3]],1,0),IF(AND($AX$16=\"Level 4\",T_DataComboFile[[#This Row],[Econ4]] = \"Goods and services\"),0,1))","v":0},{"$f":"T_DataComboFile[[#This Row],[2016/17_Source]]*T_DataComboFile[[#This Row],[G&S reporting level indicator]]","v":0},{"$f":"T_DataComboFile[[#This Row],[2017/18_Source]]*T_DataComboFile[[#This Row],[G&S reporting level indicator]]","v":0},{"$f":"T_DataComboFile[[#This Row],[2018/19_Source]]*T_DataComboFile[[#This Row],[G&S reporting level indicator]]","v":0},{"$f":"T_DataComboFile[[#This Row],[2019/20 Main appropriation_Source]]*T_DataComboFile[[#This Row],[G&S reporting level indicator]]","v":0},{"$f":"T_DataComboFile[[#This Row],[2019/20 Adjusted appropriation_Source]]*T_DataComboFile[[#This Row],[G&S reporting level indicator]]","v":0},{"$f":"T_DataComboFile[[#This Row],[2019/20 Revised estimate_Source]]*T_DataComboFile[[#This Row],[G&S reporting level indicator]]","v":0},{"$f":"T_DataComboFile[[#This Row],[2019/20 Preliminary outcome_Source]]*T_DataComboFile[[#This Row],[G&S reporting level indicator]]","v":0},{"$f":"T_DataComboFile[[#This Row],[2020/21 Original_Source]]*T_DataComboFile[[#This Row],[G&S reporting level indicator]]","v":0},{"$f":"T_DataComboFile[[#This Row],[2020/21 SAB_Source]]*T_DataComboFile[[#This Row],[G&S reporting level indicator]]","v":0},{"$f":"T_DataComboFile[[#This Row],[2020/21 Baseline_Source]]*T_DataComboFile[[#This Row],[G&S reporting level indicator]]","v":0},{"$f":"T_DataComboFile[[#This Row],[2021/22 Baseline_Source]]*T_DataComboFile[[#This Row],[G&S reporting level indicator]]","v":0},{"$f":"T_DataComboFile[[#This Row],[2022/23 Baseline_Source]]*T_DataComboFile[[#This Row],[G&S reporting level indicator]]","v":0},{"$f":"T_DataComboFile[[#This Row],[2023/24 Baseline_Source]]*T_DataComboFile[[#This Row],[G&S reporting level indicator]]","v":0},null,null,null,null,null,null,{"$f":"T_DataComboFile[[#This Row],[2021/22 Baseline]]+T_DataComboFile[[#This Row],[2021/22 Reduction]]+T_DataComboFile[[#This Row],[2021/22 Increase]]","v":0},{"$f":"T_DataComboFile[[#This Row],[2022/23 Baseline]]+T_DataComboFile[[#This Row],[2022/23 Reduction]]+T_DataComboFile[[#This Row],[2022/23 Increase]]","v":0},{"$f":"T_DataComboFile[[#This Row],[2023/24 Baseline]]+T_DataComboFile[[#This Row],[2023/24 Reduction]]+T_DataComboFile[[#This Row],[2023/24 Increase]]","v":0}]
[null,null,"2021_22","ENE2020",36,3,3,null,70966,36,3,3,null,"070966","36|03|03",1,1,3,41,41,"01|01|03|41|41","National","Small Business Development","Integrated Cooperative Development","Supplier Development and Market Access Support",null,"Current","Current payments","Interest and rent on land","Interest (Incl. interest on unitary payments (PPP))","Interest (Incl. interest on unitary payments (PPP))",null,null,null,0,0,0,0,0,0,0,0,0,0,0,0,0,0,null,{"$f":"IF(T_DataComboFile[[#This Row],[G&S reporting level indicator]]=1,$AX$16,\"Not applicable\")","v":"Level 3"},{"$f":"IF(AND($AX$16=\"Level 3\",T_DataComboFile[[#This Row],[Econ3]] = \"Goods and services\"),IF(T_DataComboFile[[#This Row],[Econ4]] = T_DataComboFile[[#This Row],[Econ3]],1,0),IF(AND($AX$16=\"Level 4\",T_DataComboFile[[#This Row],[Econ4]] = \"Goods and services\"),0,1))","v":1},{"$f":"T_DataComboFile[[#This Row],[2016/17_Source]]*T_DataComboFile[[#This Row],[G&S reporting level indicator]]","v":0},{"$f":"T_DataComboFile[[#This Row],[2017/18_Source]]*T_DataComboFile[[#This Row],[G&S reporting level indicator]]","v":0},{"$f":"T_DataComboFile[[#This Row],[2018/19_Source]]*T_DataComboFile[[#This Row],[G&S reporting level indicator]]","v":0},{"$f":"T_DataComboFile[[#This Row],[2019/20 Main appropriation_Source]]*T_DataComboFile[[#This Row],[G&S reporting level indicator]]","v":0},{"$f":"T_DataComboFile[[#This Row],[2019/20 Adjusted appropriation_Source]]*T_DataComboFile[[#This Row],[G&S reporting level indicator]]","v":0},{"$f":"T_DataComboFile[[#This Row],[2019/20 Revised estimate_Source]]*T_DataComboFile[[#This Row],[G&S reporting level indicator]]","v":0},{"$f":"T_DataComboFile[[#This Row],[2019/20 Preliminary outcome_Source]]*T_DataComboFile[[#This Row],[G&S reporting level indicator]]","v":0},{"$f":"T_DataComboFile[[#This Row],[2020/21 Original_Source]]*T_DataComboFile[[#This Row],[G&S reporting level indicator]]","v":0},{"$f":"T_DataComboFile[[#This Row],[2020/21 SAB_Source]]*T_DataComboFile[[#This Row],[G&S reporting level indicator]]","v":0},{"$f":"T_DataComboFile[[#This Row],[2020/21 Baseline_Source]]*T_DataComboFile[[#This Row],[G&S reporting level indicator]]","v":0},{"$f":"T_DataComboFile[[#This Row],[2021/22 Baseline_Source]]*T_DataComboFile[[#This Row],[G&S reporting level indicator]]","v":0},{"$f":"T_DataComboFile[[#This Row],[2022/23 Baseline_Source]]*T_DataComboFile[[#This Row],[G&S reporting level indicator]]","v":0},{"$f":"T_DataComboFile[[#This Row],[2023/24 Baseline_Source]]*T_DataComboFile[[#This Row],[G&S reporting level indicator]]","v":0},null,null,null,null,null,null,{"$f":"T_DataComboFile[[#This Row],[2021/22 Baseline]]+T_DataComboFile[[#This Row],[2021/22 Reduction]]+T_DataComboFile[[#This Row],[2021/22 Increase]]","v":0},{"$f":"T_DataComboFile[[#This Row],[2022/23 Baseline]]+T_DataComboFile[[#This Row],[2022/23 Reduction]]+T_DataComboFile[[#This Row],[2022/23 Increase]]","v":0},{"$f":"T_DataComboFile[[#This Row],[2023/24 Baseline]]+T_DataComboFile[[#This Row],[2023/24 Reduction]]+T_DataComboFile[[#This Row],[2023/24 Increase]]","v":0}]
[null,null,"2021_22","ENE2020",36,3,3,null,70967,36,3,3,null,"070967","36|03|03",1,1,3,42,42,"01|01|03|42|42","National","Small Business Development","Integrated Cooperative Development","Supplier Development and Market Access Support",null,"Current","Current payments","Interest and rent on land","Rent on land","Rent on land",null,null,null,0,0,0,0,0,0,0,0,0,0,0,0,0,0,null,{"$f":"IF(T_DataComboFile[[#This Row],[G&S reporting level indicator]]=1,$AX$16,\"Not applicable\")","v":"Level 3"},{"$f":"IF(AND($AX$16=\"Level 3\",T_DataComboFile[[#This Row],[Econ3]] = \"Goods and services\"),IF(T_DataComboFile[[#This Row],[Econ4]] = T_DataComboFile[[#This Row],[Econ3]],1,0),IF(AND($AX$16=\"Level 4\",T_DataComboFile[[#This Row],[Econ4]] = \"Goods and services\"),0,1))","v":1},{"$f":"T_DataComboFile[[#This Row],[2016/17_Source]]*T_DataComboFile[[#This Row],[G&S reporting level indicator]]","v":0},{"$f":"T_DataComboFile[[#This Row],[2017/18_Source]]*T_DataComboFile[[#This Row],[G&S reporting level indicator]]","v":0},{"$f":"T_DataComboFile[[#This Row],[2018/19_Source]]*T_DataComboFile[[#This Row],[G&S reporting level indicator]]","v":0},{"$f":"T_DataComboFile[[#This Row],[2019/20 Main appropriation_Source]]*T_DataComboFile[[#This Row],[G&S reporting level indicator]]","v":0},{"$f":"T_DataComboFile[[#This Row],[2019/20 Adjusted appropriation_Source]]*T_DataComboFile[[#This Row],[G&S reporting level indicator]]","v":0},{"$f":"T_DataComboFile[[#This Row],[2019/20 Revised estimate_Source]]*T_DataComboFile[[#This Row],[G&S reporting level indicator]]","v":0},{"$f":"T_DataComboFile[[#This Row],[2019/20 Preliminary outcome_Source]]*T_DataComboFile[[#This Row],[G&S reporting level indicator]]","v":0},{"$f":"T_DataComboFile[[#This Row],[2020/21 Original_Source]]*T_DataComboFile[[#This Row],[G&S reporting level indicator]]","v":0},{"$f":"T_DataComboFile[[#This Row],[2020/21 SAB_Source]]*T_DataComboFile[[#This Row],[G&S reporting level indicator]]","v":0},{"$f":"T_DataComboFile[[#This Row],[2020/21 Baseline_Source]]*T_DataComboFile[[#This Row],[G&S reporting level indicator]]","v":0},{"$f":"T_DataComboFile[[#This Row],[2021/22 Baseline_Source]]*T_DataComboFile[[#This Row],[G&S reporting level indicator]]","v":0},{"$f":"T_DataComboFile[[#This Row],[2022/23 Baseline_Source]]*T_DataComboFile[[#This Row],[G&S reporting level indicator]]","v":0},{"$f":"T_DataComboFile[[#This Row],[2023/24 Baseline_Source]]*T_DataComboFile[[#This Row],[G&S reporting level indicator]]","v":0},null,null,null,null,null,null,{"$f":"T_DataComboFile[[#This Row],[2021/22 Baseline]]+T_DataComboFile[[#This Row],[2021/22 Reduction]]+T_DataComboFile[[#This Row],[2021/22 Increase]]","v":0},{"$f":"T_DataComboFile[[#This Row],[2022/23 Baseline]]+T_DataComboFile[[#This Row],[2022/23 Reduction]]+T_DataComboFile[[#This Row],[2022/23 Increase]]","v":0},{"$f":"T_DataComboFile[[#This Row],[2023/24 Baseline]]+T_DataComboFile[[#This Row],[2023/24 Reduction]]+T_DataComboFile[[#This Row],[2023/24 Increase]]","v":0}]
[null,null,"2021_22","ENE2020",36,3,3,null,70968,36,3,3,null,"070968","36|03|03",1,2,4,43,43,"01|02|04|43|43","National","Small Business Development","Integrated Cooperative Development","Supplier Development and Market Access Support",null,"Current","Transfers and subsidies","Provinces and municipalities","Provinces","Provincial Revenue Funds",null,null,null,0,0,0,0,0,0,0,0,0,0,0,0,0,0,null,{"$f":"IF(T_DataComboFile[[#This Row],[G&S reporting level indicator]]=1,$AX$16,\"Not applicable\")","v":"Level 3"},{"$f":"IF(AND($AX$16=\"Level 3\",T_DataComboFile[[#This Row],[Econ3]] = \"Goods and services\"),IF(T_DataComboFile[[#This Row],[Econ4]] = T_DataComboFile[[#This Row],[Econ3]],1,0),IF(AND($AX$16=\"Level 4\",T_DataComboFile[[#This Row],[Econ4]] = \"Goods and services\"),0,1))","v":1},{"$f":"T_DataComboFile[[#This Row],[2016/17_Source]]*T_DataComboFile[[#This Row],[G&S reporting level indicator]]","v":0},{"$f":"T_DataComboFile[[#This Row],[2017/18_Source]]*T_DataComboFile[[#This Row],[G&S reporting level indicator]]","v":0},{"$f":"T_DataComboFile[[#This Row],[2018/19_Source]]*T_DataComboFile[[#This Row],[G&S reporting level indicator]]","v":0},{"$f":"T_DataComboFile[[#This Row],[2019/20 Main appropriation_Source]]*T_DataComboFile[[#This Row],[G&S reporting level indicator]]","v":0},{"$f":"T_DataComboFile[[#This Row],[2019/20 Adjusted appropriation_Source]]*T_DataComboFile[[#This Row],[G&S reporting level indicator]]","v":0},{"$f":"T_DataComboFile[[#This Row],[2019/20 Revised estimate_Source]]*T_DataComboFile[[#This Row],[G&S reporting level indicator]]","v":0},{"$f":"T_DataComboFile[[#This Row],[2019/20 Preliminary outcome_Source]]*T_DataComboFile[[#This Row],[G&S reporting level indicator]]","v":0},{"$f":"T_DataComboFile[[#This Row],[2020/21 Original_Source]]*T_DataComboFile[[#This Row],[G&S reporting level indicator]]","v":0},{"$f":"T_DataComboFile[[#This Row],[2020/21 SAB_Source]]*T_DataComboFile[[#This Row],[G&S reporting level indicator]]","v":0},{"$f":"T_DataComboFile[[#This Row],[2020/21 Baseline_Source]]*T_DataComboFile[[#This Row],[G&S reporting level indicator]]","v":0},{"$f":"T_DataComboFile[[#This Row],[2021/22 Baseline_Source]]*T_DataComboFile[[#This Row],[G&S reporting level indicator]]","v":0},{"$f":"T_DataComboFile[[#This Row],[2022/23 Baseline_Source]]*T_DataComboFile[[#This Row],[G&S reporting level indicator]]","v":0},{"$f":"T_DataComboFile[[#This Row],[2023/24 Baseline_Source]]*T_DataComboFile[[#This Row],[G&S reporting level indicator]]","v":0},null,null,null,null,null,null,{"$f":"T_DataComboFile[[#This Row],[2021/22 Baseline]]+T_DataComboFile[[#This Row],[2021/22 Reduction]]+T_DataComboFile[[#This Row],[2021/22 Increase]]","v":0},{"$f":"T_DataComboFile[[#This Row],[2022/23 Baseline]]+T_DataComboFile[[#This Row],[2022/23 Reduction]]+T_DataComboFile[[#This Row],[2022/23 Increase]]","v":0},{"$f":"T_DataComboFile[[#This Row],[2023/24 Baseline]]+T_DataComboFile[[#This Row],[2023/24 Reduction]]+T_DataComboFile[[#This Row],[2023/24 Increase]]","v":0}]
[null,null,"2021_22","ENE2020",36,3,3,null,70969,36,3,3,null,"070969","36|03|03",1,2,4,43,44,"01|02|04|43|44","National","Small Business Development","Integrated Cooperative Development","Supplier Development and Market Access Support",null,"Current","Transfers and subsidies","Provinces and municipalities","Provinces","Provincial agencies and funds",null,null,null,0,0,0,0,0,0,0,0,0,0,0,0,0,0,null,{"$f":"IF(T_DataComboFile[[#This Row],[G&S reporting level indicator]]=1,$AX$16,\"Not applicable\")","v":"Level 3"},{"$f":"IF(AND($AX$16=\"Level 3\",T_DataComboFile[[#This Row],[Econ3]] = \"Goods and services\"),IF(T_DataComboFile[[#This Row],[Econ4]] = T_DataComboFile[[#This Row],[Econ3]],1,0),IF(AND($AX$16=\"Level 4\",T_DataComboFile[[#This Row],[Econ4]] = \"Goods and services\"),0,1))","v":1},{"$f":"T_DataComboFile[[#This Row],[2016/17_Source]]*T_DataComboFile[[#This Row],[G&S reporting level indicator]]","v":0},{"$f":"T_DataComboFile[[#This Row],[2017/18_Source]]*T_DataComboFile[[#This Row],[G&S reporting level indicator]]","v":0},{"$f":"T_DataComboFile[[#This Row],[2018/19_Source]]*T_DataComboFile[[#This Row],[G&S reporting level indicator]]","v":0},{"$f":"T_DataComboFile[[#This Row],[2019/20 Main appropriation_Source]]*T_DataComboFile[[#This Row],[G&S reporting level indicator]]","v":0},{"$f":"T_DataComboFile[[#This Row],[2019/20 Adjusted appropriation_Source]]*T_DataComboFile[[#This Row],[G&S reporting level indicator]]","v":0},{"$f":"T_DataComboFile[[#This Row],[2019/20 Revised estimate_Source]]*T_DataComboFile[[#This Row],[G&S reporting level indicator]]","v":0},{"$f":"T_DataComboFile[[#This Row],[2019/20 Preliminary outcome_Source]]*T_DataComboFile[[#This Row],[G&S reporting level indicator]]","v":0},{"$f":"T_DataComboFile[[#This Row],[2020/21 Original_Source]]*T_DataComboFile[[#This Row],[G&S reporting level indicator]]","v":0},{"$f":"T_DataComboFile[[#This Row],[2020/21 SAB_Source]]*T_DataComboFile[[#This Row],[G&S reporting level indicator]]","v":0},{"$f":"T_DataComboFile[[#This Row],[2020/21 Baseline_Source]]*T_DataComboFile[[#This Row],[G&S reporting level indicator]]","v":0},{"$f":"T_DataComboFile[[#This Row],[2021/22 Baseline_Source]]*T_DataComboFile[[#This Row],[G&S reporting level indicator]]","v":0},{"$f":"T_DataComboFile[[#This Row],[2022/23 Baseline_Source]]*T_DataComboFile[[#This Row],[G&S reporting level indicator]]","v":0},{"$f":"T_DataComboFile[[#This Row],[2023/24 Baseline_Source]]*T_DataComboFile[[#This Row],[G&S reporting level indicator]]","v":0},null,null,null,null,null,null,{"$f":"T_DataComboFile[[#This Row],[2021/22 Baseline]]+T_DataComboFile[[#This Row],[2021/22 Reduction]]+T_DataComboFile[[#This Row],[2021/22 Increase]]","v":0},{"$f":"T_DataComboFile[[#This Row],[2022/23 Baseline]]+T_DataComboFile[[#This Row],[2022/23 Reduction]]+T_DataComboFile[[#This Row],[2022/23 Increase]]","v":0},{"$f":"T_DataComboFile[[#This Row],[2023/24 Baseline]]+T_DataComboFile[[#This Row],[2023/24 Reduction]]+T_DataComboFile[[#This Row],[2023/24 Increase]]","v":0}]
[null,null,"2021_22","ENE2020",36,3,3,null,70970,36,3,3,null,"070970","36|03|03",1,2,4,44,45,"01|02|04|44|45","National","Small Business Development","Integrated Cooperative Development","Supplier Development and Market Access Support",null,"Current","Transfers and subsidies","Provinces and municipalities","Municipalities","Municipal bank accounts",null,null,null,0,0,0,0,0,0,0,0,0,0,0,0,0,0,null,{"$f":"IF(T_DataComboFile[[#This Row],[G&S reporting level indicator]]=1,$AX$16,\"Not applicable\")","v":"Level 3"},{"$f":"IF(AND($AX$16=\"Level 3\",T_DataComboFile[[#This Row],[Econ3]] = \"Goods and services\"),IF(T_DataComboFile[[#This Row],[Econ4]] = T_DataComboFile[[#This Row],[Econ3]],1,0),IF(AND($AX$16=\"Level 4\",T_DataComboFile[[#This Row],[Econ4]] = \"Goods and services\"),0,1))","v":1},{"$f":"T_DataComboFile[[#This Row],[2016/17_Source]]*T_DataComboFile[[#This Row],[G&S reporting level indicator]]","v":0},{"$f":"T_DataComboFile[[#This Row],[2017/18_Source]]*T_DataComboFile[[#This Row],[G&S reporting level indicator]]","v":0},{"$f":"T_DataComboFile[[#This Row],[2018/19_Source]]*T_DataComboFile[[#This Row],[G&S reporting level indicator]]","v":0},{"$f":"T_DataComboFile[[#This Row],[2019/20 Main appropriation_Source]]*T_DataComboFile[[#This Row],[G&S reporting level indicator]]","v":0},{"$f":"T_DataComboFile[[#This Row],[2019/20 Adjusted appropriation_Source]]*T_DataComboFile[[#This Row],[G&S reporting level indicator]]","v":0},{"$f":"T_DataComboFile[[#This Row],[2019/20 Revised estimate_Source]]*T_DataComboFile[[#This Row],[G&S reporting level indicator]]","v":0},{"$f":"T_DataComboFile[[#This Row],[2019/20 Preliminary outcome_Source]]*T_DataComboFile[[#This Row],[G&S reporting level indicator]]","v":0},{"$f":"T_DataComboFile[[#This Row],[2020/21 Original_Source]]*T_DataComboFile[[#This Row],[G&S reporting level indicator]]","v":0},{"$f":"T_DataComboFile[[#This Row],[2020/21 SAB_Source]]*T_DataComboFile[[#This Row],[G&S reporting level indicator]]","v":0},{"$f":"T_DataComboFile[[#This Row],[2020/21 Baseline_Source]]*T_DataComboFile[[#This Row],[G&S reporting level indicator]]","v":0},{"$f":"T_DataComboFile[[#This Row],[2021/22 Baseline_Source]]*T_DataComboFile[[#This Row],[G&S reporting level indicator]]","v":0},{"$f":"T_DataComboFile[[#This Row],[2022/23 Baseline_Source]]*T_DataComboFile[[#This Row],[G&S reporting level indicator]]","v":0},{"$f":"T_DataComboFile[[#This Row],[2023/24 Baseline_Source]]*T_DataComboFile[[#This Row],[G&S reporting level indicator]]","v":0},null,null,null,null,null,null,{"$f":"T_DataComboFile[[#This Row],[2021/22 Baseline]]+T_DataComboFile[[#This Row],[2021/22 Reduction]]+T_DataComboFile[[#This Row],[2021/22 Increase]]","v":0},{"$f":"T_DataComboFile[[#This Row],[2022/23 Baseline]]+T_DataComboFile[[#This Row],[2022/23 Reduction]]+T_DataComboFile[[#This Row],[2022/23 Increase]]","v":0},{"$f":"T_DataComboFile[[#This Row],[2023/24 Baseline]]+T_DataComboFile[[#This Row],[2023/24 Reduction]]+T_DataComboFile[[#This Row],[2023/24 Increase]]","v":0}]
[null,null,"2021_22","ENE2020",36,3,3,null,70971,36,3,3,null,"070971","36|03|03",1,2,4,44,46,"01|02|04|44|46","National","Small Business Development","Integrated Cooperative Development","Supplier Development and Market Access Support",null,"Current","Transfers and subsidies","Provinces and municipalities","Municipalities","Municipal agencies and funds",null,null,null,0,0,0,0,0,0,0,0,0,0,0,0,0,0,null,{"$f":"IF(T_DataComboFile[[#This Row],[G&S reporting level indicator]]=1,$AX$16,\"Not applicable\")","v":"Level 3"},{"$f":"IF(AND($AX$16=\"Level 3\",T_DataComboFile[[#This Row],[Econ3]] = \"Goods and services\"),IF(T_DataComboFile[[#This Row],[Econ4]] = T_DataComboFile[[#This Row],[Econ3]],1,0),IF(AND($AX$16=\"Level 4\",T_DataComboFile[[#This Row],[Econ4]] = \"Goods and services\"),0,1))","v":1},{"$f":"T_DataComboFile[[#This Row],[2016/17_Source]]*T_DataComboFile[[#This Row],[G&S reporting level indicator]]","v":0},{"$f":"T_DataComboFile[[#This Row],[2017/18_Source]]*T_DataComboFile[[#This Row],[G&S reporting level indicator]]","v":0},{"$f":"T_DataComboFile[[#This Row],[2018/19_Source]]*T_DataComboFile[[#This Row],[G&S reporting level indicator]]","v":0},{"$f":"T_DataComboFile[[#This Row],[2019/20 Main appropriation_Source]]*T_DataComboFile[[#This Row],[G&S reporting level indicator]]","v":0},{"$f":"T_DataComboFile[[#This Row],[2019/20 Adjusted appropriation_Source]]*T_DataComboFile[[#This Row],[G&S reporting level indicator]]","v":0},{"$f":"T_DataComboFile[[#This Row],[2019/20 Revised estimate_Source]]*T_DataComboFile[[#This Row],[G&S reporting level indicator]]","v":0},{"$f":"T_DataComboFile[[#This Row],[2019/20 Preliminary outcome_Source]]*T_DataComboFile[[#This Row],[G&S reporting level indicator]]","v":0},{"$f":"T_DataComboFile[[#This Row],[2020/21 Original_Source]]*T_DataComboFile[[#This Row],[G&S reporting level indicator]]","v":0},{"$f":"T_DataComboFile[[#This Row],[2020/21 SAB_Source]]*T_DataComboFile[[#This Row],[G&S reporting level indicator]]","v":0},{"$f":"T_DataComboFile[[#This Row],[2020/21 Baseline_Source]]*T_DataComboFile[[#This Row],[G&S reporting level indicator]]","v":0},{"$f":"T_DataComboFile[[#This Row],[2021/22 Baseline_Source]]*T_DataComboFile[[#This Row],[G&S reporting level indicator]]","v":0},{"$f":"T_DataComboFile[[#This Row],[2022/23 Baseline_Source]]*T_DataComboFile[[#This Row],[G&S reporting level indicator]]","v":0},{"$f":"T_DataComboFile[[#This Row],[2023/24 Baseline_Source]]*T_DataComboFile[[#This Row],[G&S reporting level indicator]]","v":0},null,null,null,null,null,null,{"$f":"T_DataComboFile[[#This Row],[2021/22 Baseline]]+T_DataComboFile[[#This Row],[2021/22 Reduction]]+T_DataComboFile[[#This Row],[2021/22 Increase]]","v":0},{"$f":"T_DataComboFile[[#This Row],[2022/23 Baseline]]+T_DataComboFile[[#This Row],[2022/23 Reduction]]+T_DataComboFile[[#This Row],[2022/23 Increase]]","v":0},{"$f":"T_DataComboFile[[#This Row],[2023/24 Baseline]]+T_DataComboFile[[#This Row],[2023/24 Reduction]]+T_DataComboFile[[#This Row],[2023/24 Increase]]","v":0}]
[null,null,"2021_22","ENE2020",36,3,3,null,70972,36,3,3,null,"070972","36|03|03",1,2,5,45,47,"01|02|05|45|47","National","Small Business Development","Integrated Cooperative Development","Supplier Development and Market Access Support",null,"Current","Transfers and subsidies","Departmental agencies and accounts","Social security funds","Social security funds",null,null,null,0,0,0,0,0,0,0,0,0,0,0,0,0,0,null,{"$f":"IF(T_DataComboFile[[#This Row],[G&S reporting level indicator]]=1,$AX$16,\"Not applicable\")","v":"Level 3"},{"$f":"IF(AND($AX$16=\"Level 3\",T_DataComboFile[[#This Row],[Econ3]] = \"Goods and services\"),IF(T_DataComboFile[[#This Row],[Econ4]] = T_DataComboFile[[#This Row],[Econ3]],1,0),IF(AND($AX$16=\"Level 4\",T_DataComboFile[[#This Row],[Econ4]] = \"Goods and services\"),0,1))","v":1},{"$f":"T_DataComboFile[[#This Row],[2016/17_Source]]*T_DataComboFile[[#This Row],[G&S reporting level indicator]]","v":0},{"$f":"T_DataComboFile[[#This Row],[2017/18_Source]]*T_DataComboFile[[#This Row],[G&S reporting level indicator]]","v":0},{"$f":"T_DataComboFile[[#This Row],[2018/19_Source]]*T_DataComboFile[[#This Row],[G&S reporting level indicator]]","v":0},{"$f":"T_DataComboFile[[#This Row],[2019/20 Main appropriation_Source]]*T_DataComboFile[[#This Row],[G&S reporting level indicator]]","v":0},{"$f":"T_DataComboFile[[#This Row],[2019/20 Adjusted appropriation_Source]]*T_DataComboFile[[#This Row],[G&S reporting level indicator]]","v":0},{"$f":"T_DataComboFile[[#This Row],[2019/20 Revised estimate_Source]]*T_DataComboFile[[#This Row],[G&S reporting level indicator]]","v":0},{"$f":"T_DataComboFile[[#This Row],[2019/20 Preliminary outcome_Source]]*T_DataComboFile[[#This Row],[G&S reporting level indicator]]","v":0},{"$f":"T_DataComboFile[[#This Row],[2020/21 Original_Source]]*T_DataComboFile[[#This Row],[G&S reporting level indicator]]","v":0},{"$f":"T_DataComboFile[[#This Row],[2020/21 SAB_Source]]*T_DataComboFile[[#This Row],[G&S reporting level indicator]]","v":0},{"$f":"T_DataComboFile[[#This Row],[2020/21 Baseline_Source]]*T_DataComboFile[[#This Row],[G&S reporting level indicator]]","v":0},{"$f":"T_DataComboFile[[#This Row],[2021/22 Baseline_Source]]*T_DataComboFile[[#This Row],[G&S reporting level indicator]]","v":0},{"$f":"T_DataComboFile[[#This Row],[2022/23 Baseline_Source]]*T_DataComboFile[[#This Row],[G&S reporting level indicator]]","v":0},{"$f":"T_DataComboFile[[#This Row],[2023/24 Baseline_Source]]*T_DataComboFile[[#This Row],[G&S reporting level indicator]]","v":0},null,null,null,null,null,null,{"$f":"T_DataComboFile[[#This Row],[2021/22 Baseline]]+T_DataComboFile[[#This Row],[2021/22 Reduction]]+T_DataComboFile[[#This Row],[2021/22 Increase]]","v":0},{"$f":"T_DataComboFile[[#This Row],[2022/23 Baseline]]+T_DataComboFile[[#This Row],[2022/23 Reduction]]+T_DataComboFile[[#This Row],[2022/23 Increase]]","v":0},{"$f":"T_DataComboFile[[#This Row],[2023/24 Baseline]]+T_DataComboFile[[#This Row],[2023/24 Reduction]]+T_DataComboFile[[#This Row],[2023/24 Increase]]","v":0}]
[null,null,"2021_22","ENE2020",36,3,3,null,70973,36,3,3,null,"070973","36|03|03",1,2,5,46,48,"01|02|05|46|48","National","Small Business Development","Integrated Cooperative Development","Supplier Development and Market Access Support",null,"Current","Transfers and subsidies","Departmental agencies and accounts","Departmental agencies (non-business entities)","Departmental agencies (non-business entities)",null,null,null,0,0,0,0,0,0,0,0,0,0,0,0,0,0,null,{"$f":"IF(T_DataComboFile[[#This Row],[G&S reporting level indicator]]=1,$AX$16,\"Not applicable\")","v":"Level 3"},{"$f":"IF(AND($AX$16=\"Level 3\",T_DataComboFile[[#This Row],[Econ3]] = \"Goods and services\"),IF(T_DataComboFile[[#This Row],[Econ4]] = T_DataComboFile[[#This Row],[Econ3]],1,0),IF(AND($AX$16=\"Level 4\",T_DataComboFile[[#This Row],[Econ4]] = \"Goods and services\"),0,1))","v":1},{"$f":"T_DataComboFile[[#This Row],[2016/17_Source]]*T_DataComboFile[[#This Row],[G&S reporting level indicator]]","v":0},{"$f":"T_DataComboFile[[#This Row],[2017/18_Source]]*T_DataComboFile[[#This Row],[G&S reporting level indicator]]","v":0},{"$f":"T_DataComboFile[[#This Row],[2018/19_Source]]*T_DataComboFile[[#This Row],[G&S reporting level indicator]]","v":0},{"$f":"T_DataComboFile[[#This Row],[2019/20 Main appropriation_Source]]*T_DataComboFile[[#This Row],[G&S reporting level indicator]]","v":0},{"$f":"T_DataComboFile[[#This Row],[2019/20 Adjusted appropriation_Source]]*T_DataComboFile[[#This Row],[G&S reporting level indicator]]","v":0},{"$f":"T_DataComboFile[[#This Row],[2019/20 Revised estimate_Source]]*T_DataComboFile[[#This Row],[G&S reporting level indicator]]","v":0},{"$f":"T_DataComboFile[[#This Row],[2019/20 Preliminary outcome_Source]]*T_DataComboFile[[#This Row],[G&S reporting level indicator]]","v":0},{"$f":"T_DataComboFile[[#This Row],[2020/21 Original_Source]]*T_DataComboFile[[#This Row],[G&S reporting level indicator]]","v":0},{"$f":"T_DataComboFile[[#This Row],[2020/21 SAB_Source]]*T_DataComboFile[[#This Row],[G&S reporting level indicator]]","v":0},{"$f":"T_DataComboFile[[#This Row],[2020/21 Baseline_Source]]*T_DataComboFile[[#This Row],[G&S reporting level indicator]]","v":0},{"$f":"T_DataComboFile[[#This Row],[2021/22 Baseline_Source]]*T_DataComboFile[[#This Row],[G&S reporting level indicator]]","v":0},{"$f":"T_DataComboFile[[#This Row],[2022/23 Baseline_Source]]*T_DataComboFile[[#This Row],[G&S reporting level indicator]]","v":0},{"$f":"T_DataComboFile[[#This Row],[2023/24 Baseline_Source]]*T_DataComboFile[[#This Row],[G&S reporting level indicator]]","v":0},null,null,null,null,null,null,{"$f":"T_DataComboFile[[#This Row],[2021/22 Baseline]]+T_DataComboFile[[#This Row],[2021/22 Reduction]]+T_DataComboFile[[#This Row],[2021/22 Increase]]","v":0},{"$f":"T_DataComboFile[[#This Row],[2022/23 Baseline]]+T_DataComboFile[[#This Row],[2022/23 Reduction]]+T_DataComboFile[[#This Row],[2022/23 Increase]]","v":0},{"$f":"T_DataComboFile[[#This Row],[2023/24 Baseline]]+T_DataComboFile[[#This Row],[2023/24 Reduction]]+T_DataComboFile[[#This Row],[2023/24 Increase]]","v":0}]
[null,null,"2021_22","ENE2020",36,3,3,null,70974,36,3,3,null,"070974","36|03|03",1,2,6,47,49,"01|02|06|47|49","National","Small Business Development","Integrated Cooperative Development","Supplier Development and Market Access Support",null,"Current","Transfers and subsidies","Higher education institutions","Higher education institutions","Higher education institutions",null,null,null,0,0,0,0,0,0,0,0,0,0,0,0,0,0,null,{"$f":"IF(T_DataComboFile[[#This Row],[G&S reporting level indicator]]=1,$AX$16,\"Not applicable\")","v":"Level 3"},{"$f":"IF(AND($AX$16=\"Level 3\",T_DataComboFile[[#This Row],[Econ3]] = \"Goods and services\"),IF(T_DataComboFile[[#This Row],[Econ4]] = T_DataComboFile[[#This Row],[Econ3]],1,0),IF(AND($AX$16=\"Level 4\",T_DataComboFile[[#This Row],[Econ4]] = \"Goods and services\"),0,1))","v":1},{"$f":"T_DataComboFile[[#This Row],[2016/17_Source]]*T_DataComboFile[[#This Row],[G&S reporting level indicator]]","v":0},{"$f":"T_DataComboFile[[#This Row],[2017/18_Source]]*T_DataComboFile[[#This Row],[G&S reporting level indicator]]","v":0},{"$f":"T_DataComboFile[[#This Row],[2018/19_Source]]*T_DataComboFile[[#This Row],[G&S reporting level indicator]]","v":0},{"$f":"T_DataComboFile[[#This Row],[2019/20 Main appropriation_Source]]*T_DataComboFile[[#This Row],[G&S reporting level indicator]]","v":0},{"$f":"T_DataComboFile[[#This Row],[2019/20 Adjusted appropriation_Source]]*T_DataComboFile[[#This Row],[G&S reporting level indicator]]","v":0},{"$f":"T_DataComboFile[[#This Row],[2019/20 Revised estimate_Source]]*T_DataComboFile[[#This Row],[G&S reporting level indicator]]","v":0},{"$f":"T_DataComboFile[[#This Row],[2019/20 Preliminary outcome_Source]]*T_DataComboFile[[#This Row],[G&S reporting level indicator]]","v":0},{"$f":"T_DataComboFile[[#This Row],[2020/21 Original_Source]]*T_DataComboFile[[#This Row],[G&S reporting level indicator]]","v":0},{"$f":"T_DataComboFile[[#This Row],[2020/21 SAB_Source]]*T_DataComboFile[[#This Row],[G&S reporting level indicator]]","v":0},{"$f":"T_DataComboFile[[#This Row],[2020/21 Baseline_Source]]*T_DataComboFile[[#This Row],[G&S reporting level indicator]]","v":0},{"$f":"T_DataComboFile[[#This Row],[2021/22 Baseline_Source]]*T_DataComboFile[[#This Row],[G&S reporting level indicator]]","v":0},{"$f":"T_DataComboFile[[#This Row],[2022/23 Baseline_Source]]*T_DataComboFile[[#This Row],[G&S reporting level indicator]]","v":0},{"$f":"T_DataComboFile[[#This Row],[2023/24 Baseline_Source]]*T_DataComboFile[[#This Row],[G&S reporting level indicator]]","v":0},null,null,null,null,null,null,{"$f":"T_DataComboFile[[#This Row],[2021/22 Baseline]]+T_DataComboFile[[#This Row],[2021/22 Reduction]]+T_DataComboFile[[#This Row],[2021/22 Increase]]","v":0},{"$f":"T_DataComboFile[[#This Row],[2022/23 Baseline]]+T_DataComboFile[[#This Row],[2022/23 Reduction]]+T_DataComboFile[[#This Row],[2022/23 Increase]]","v":0},{"$f":"T_DataComboFile[[#This Row],[2023/24 Baseline]]+T_DataComboFile[[#This Row],[2023/24 Reduction]]+T_DataComboFile[[#This Row],[2023/24 Increase]]","v":0}]
[null,null,"2021_22","ENE2020",36,3,3,null,70975,36,3,3,null,"070975","36|03|03",1,2,7,48,50,"01|02|07|48|50","National","Small Business Development","Integrated Cooperative Development","Supplier Development and Market Access Support",null,"Current","Transfers and subsidies","Foreign governments and international organisations","Foreign governments and international organisations","Foreign governments and international organisations",null,null,null,0,0,0,0,0,0,0,0,0,0,0,0,0,0,null,{"$f":"IF(T_DataComboFile[[#This Row],[G&S reporting level indicator]]=1,$AX$16,\"Not applicable\")","v":"Level 3"},{"$f":"IF(AND($AX$16=\"Level 3\",T_DataComboFile[[#This Row],[Econ3]] = \"Goods and services\"),IF(T_DataComboFile[[#This Row],[Econ4]] = T_DataComboFile[[#This Row],[Econ3]],1,0),IF(AND($AX$16=\"Level 4\",T_DataComboFile[[#This Row],[Econ4]] = \"Goods and services\"),0,1))","v":1},{"$f":"T_DataComboFile[[#This Row],[2016/17_Source]]*T_DataComboFile[[#This Row],[G&S reporting level indicator]]","v":0},{"$f":"T_DataComboFile[[#This Row],[2017/18_Source]]*T_DataComboFile[[#This Row],[G&S reporting level indicator]]","v":0},{"$f":"T_DataComboFile[[#This Row],[2018/19_Source]]*T_DataComboFile[[#This Row],[G&S reporting level indicator]]","v":0},{"$f":"T_DataComboFile[[#This Row],[2019/20 Main appropriation_Source]]*T_DataComboFile[[#This Row],[G&S reporting level indicator]]","v":0},{"$f":"T_DataComboFile[[#This Row],[2019/20 Adjusted appropriation_Source]]*T_DataComboFile[[#This Row],[G&S reporting level indicator]]","v":0},{"$f":"T_DataComboFile[[#This Row],[2019/20 Revised estimate_Source]]*T_DataComboFile[[#This Row],[G&S reporting level indicator]]","v":0},{"$f":"T_DataComboFile[[#This Row],[2019/20 Preliminary outcome_Source]]*T_DataComboFile[[#This Row],[G&S reporting level indicator]]","v":0},{"$f":"T_DataComboFile[[#This Row],[2020/21 Original_Source]]*T_DataComboFile[[#This Row],[G&S reporting level indicator]]","v":0},{"$f":"T_DataComboFile[[#This Row],[2020/21 SAB_Source]]*T_DataComboFile[[#This Row],[G&S reporting level indicator]]","v":0},{"$f":"T_DataComboFile[[#This Row],[2020/21 Baseline_Source]]*T_DataComboFile[[#This Row],[G&S reporting level indicator]]","v":0},{"$f":"T_DataComboFile[[#This Row],[2021/22 Baseline_Source]]*T_DataComboFile[[#This Row],[G&S reporting level indicator]]","v":0},{"$f":"T_DataComboFile[[#This Row],[2022/23 Baseline_Source]]*T_DataComboFile[[#This Row],[G&S reporting level indicator]]","v":0},{"$f":"T_DataComboFile[[#This Row],[2023/24 Baseline_Source]]*T_DataComboFile[[#This Row],[G&S reporting level indicator]]","v":0},null,null,null,null,null,null,{"$f":"T_DataComboFile[[#This Row],[2021/22 Baseline]]+T_DataComboFile[[#This Row],[2021/22 Reduction]]+T_DataComboFile[[#This Row],[2021/22 Increase]]","v":0},{"$f":"T_DataComboFile[[#This Row],[2022/23 Baseline]]+T_DataComboFile[[#This Row],[2022/23 Reduction]]+T_DataComboFile[[#This Row],[2022/23 Increase]]","v":0},{"$f":"T_DataComboFile[[#This Row],[2023/24 Baseline]]+T_DataComboFile[[#This Row],[2023/24 Reduction]]+T_DataComboFile[[#This Row],[2023/24 Increase]]","v":0}]
[null,null,"2021_22","ENE2020",36,3,3,null,70976,36,3,3,null,"070976","36|03|03",1,2,8,49,51,"01|02|08|49|51","National","Small Business Development","Integrated Cooperative Development","Supplier Development and Market Access Support",null,"Current","Transfers and subsidies","Public corporations and private enterprises","Public corporations","Subsidies on products and production (pc)",null,null,null,0,0,0,0,0,0,0,0,0,0,0,0,0,0,null,{"$f":"IF(T_DataComboFile[[#This Row],[G&S reporting level indicator]]=1,$AX$16,\"Not applicable\")","v":"Level 3"},{"$f":"IF(AND($AX$16=\"Level 3\",T_DataComboFile[[#This Row],[Econ3]] = \"Goods and services\"),IF(T_DataComboFile[[#This Row],[Econ4]] = T_DataComboFile[[#This Row],[Econ3]],1,0),IF(AND($AX$16=\"Level 4\",T_DataComboFile[[#This Row],[Econ4]] = \"Goods and services\"),0,1))","v":1},{"$f":"T_DataComboFile[[#This Row],[2016/17_Source]]*T_DataComboFile[[#This Row],[G&S reporting level indicator]]","v":0},{"$f":"T_DataComboFile[[#This Row],[2017/18_Source]]*T_DataComboFile[[#This Row],[G&S reporting level indicator]]","v":0},{"$f":"T_DataComboFile[[#This Row],[2018/19_Source]]*T_DataComboFile[[#This Row],[G&S reporting level indicator]]","v":0},{"$f":"T_DataComboFile[[#This Row],[2019/20 Main appropriation_Source]]*T_DataComboFile[[#This Row],[G&S reporting level indicator]]","v":0},{"$f":"T_DataComboFile[[#This Row],[2019/20 Adjusted appropriation_Source]]*T_DataComboFile[[#This Row],[G&S reporting level indicator]]","v":0},{"$f":"T_DataComboFile[[#This Row],[2019/20 Revised estimate_Source]]*T_DataComboFile[[#This Row],[G&S reporting level indicator]]","v":0},{"$f":"T_DataComboFile[[#This Row],[2019/20 Preliminary outcome_Source]]*T_DataComboFile[[#This Row],[G&S reporting level indicator]]","v":0},{"$f":"T_DataComboFile[[#This Row],[2020/21 Original_Source]]*T_DataComboFile[[#This Row],[G&S reporting level indicator]]","v":0},{"$f":"T_DataComboFile[[#This Row],[2020/21 SAB_Source]]*T_DataComboFile[[#This Row],[G&S reporting level indicator]]","v":0},{"$f":"T_DataComboFile[[#This Row],[2020/21 Baseline_Source]]*T_DataComboFile[[#This Row],[G&S reporting level indicator]]","v":0},{"$f":"T_DataComboFile[[#This Row],[2021/22 Baseline_Source]]*T_DataComboFile[[#This Row],[G&S reporting level indicator]]","v":0},{"$f":"T_DataComboFile[[#This Row],[2022/23 Baseline_Source]]*T_DataComboFile[[#This Row],[G&S reporting level indicator]]","v":0},{"$f":"T_DataComboFile[[#This Row],[2023/24 Baseline_Source]]*T_DataComboFile[[#This Row],[G&S reporting level indicator]]","v":0},null,null,null,null,null,null,{"$f":"T_DataComboFile[[#This Row],[2021/22 Baseline]]+T_DataComboFile[[#This Row],[2021/22 Reduction]]+T_DataComboFile[[#This Row],[2021/22 Increase]]","v":0},{"$f":"T_DataComboFile[[#This Row],[2022/23 Baseline]]+T_DataComboFile[[#This Row],[2022/23 Reduction]]+T_DataComboFile[[#This Row],[2022/23 Increase]]","v":0},{"$f":"T_DataComboFile[[#This Row],[2023/24 Baseline]]+T_DataComboFile[[#This Row],[2023/24 Reduction]]+T_DataComboFile[[#This Row],[2023/24 Increase]]","v":0}]
[null,null,"2021_22","ENE2020",36,3,3,null,70977,36,3,3,null,"070977","36|03|03",1,2,8,49,52,"01|02|08|49|52","National","Small Business Development","Integrated Cooperative Development","Supplier Development and Market Access Support",null,"Current","Transfers and subsidies","Public corporations and private enterprises","Public corporations","Other transfers to public corporations",null,null,null,0,0,0,0,0,0,0,0,0,0,0,0,0,0,null,{"$f":"IF(T_DataComboFile[[#This Row],[G&S reporting level indicator]]=1,$AX$16,\"Not applicable\")","v":"Level 3"},{"$f":"IF(AND($AX$16=\"Level 3\",T_DataComboFile[[#This Row],[Econ3]] = \"Goods and services\"),IF(T_DataComboFile[[#This Row],[Econ4]] = T_DataComboFile[[#This Row],[Econ3]],1,0),IF(AND($AX$16=\"Level 4\",T_DataComboFile[[#This Row],[Econ4]] = \"Goods and services\"),0,1))","v":1},{"$f":"T_DataComboFile[[#This Row],[2016/17_Source]]*T_DataComboFile[[#This Row],[G&S reporting level indicator]]","v":0},{"$f":"T_DataComboFile[[#This Row],[2017/18_Source]]*T_DataComboFile[[#This Row],[G&S reporting level indicator]]","v":0},{"$f":"T_DataComboFile[[#This Row],[2018/19_Source]]*T_DataComboFile[[#This Row],[G&S reporting level indicator]]","v":0},{"$f":"T_DataComboFile[[#This Row],[2019/20 Main appropriation_Source]]*T_DataComboFile[[#This Row],[G&S reporting level indicator]]","v":0},{"$f":"T_DataComboFile[[#This Row],[2019/20 Adjusted appropriation_Source]]*T_DataComboFile[[#This Row],[G&S reporting level indicator]]","v":0},{"$f":"T_DataComboFile[[#This Row],[2019/20 Revised estimate_Source]]*T_DataComboFile[[#This Row],[G&S reporting level indicator]]","v":0},{"$f":"T_DataComboFile[[#This Row],[2019/20 Preliminary outcome_Source]]*T_DataComboFile[[#This Row],[G&S reporting level indicator]]","v":0},{"$f":"T_DataComboFile[[#This Row],[2020/21 Original_Source]]*T_DataComboFile[[#This Row],[G&S reporting level indicator]]","v":0},{"$f":"T_DataComboFile[[#This Row],[2020/21 SAB_Source]]*T_DataComboFile[[#This Row],[G&S reporting level indicator]]","v":0},{"$f":"T_DataComboFile[[#This Row],[2020/21 Baseline_Source]]*T_DataComboFile[[#This Row],[G&S reporting level indicator]]","v":0},{"$f":"T_DataComboFile[[#This Row],[2021/22 Baseline_Source]]*T_DataComboFile[[#This Row],[G&S reporting level indicator]]","v":0},{"$f":"T_DataComboFile[[#This Row],[2022/23 Baseline_Source]]*T_DataComboFile[[#This Row],[G&S reporting level indicator]]","v":0},{"$f":"T_DataComboFile[[#This Row],[2023/24 Baseline_Source]]*T_DataComboFile[[#This Row],[G&S reporting level indicator]]","v":0},null,null,null,null,null,null,{"$f":"T_DataComboFile[[#This Row],[2021/22 Baseline]]+T_DataComboFile[[#This Row],[2021/22 Reduction]]+T_DataComboFile[[#This Row],[2021/22 Increase]]","v":0},{"$f":"T_DataComboFile[[#This Row],[2022/23 Baseline]]+T_DataComboFile[[#This Row],[2022/23 Reduction]]+T_DataComboFile[[#This Row],[2022/23 Increase]]","v":0},{"$f":"T_DataComboFile[[#This Row],[2023/24 Baseline]]+T_DataComboFile[[#This Row],[2023/24 Reduction]]+T_DataComboFile[[#This Row],[2023/24 Increase]]","v":0}]
[null,null,"2021_22","ENE2020",36,3,3,null,70978,36,3,3,null,"070978","36|03|03",1,2,8,50,53,"01|02|08|50|53","National","Small Business Development","Integrated Cooperative Development","Supplier Development and Market Access Support",null,"Current","Transfers and subsidies","Public corporations and private enterprises","Private enterprises","Subsidies on products and production (pe)",null,null,null,0,0,0,0,0,0,0,0,0,0,0,0,0,0,null,{"$f":"IF(T_DataComboFile[[#This Row],[G&S reporting level indicator]]=1,$AX$16,\"Not applicable\")","v":"Level 3"},{"$f":"IF(AND($AX$16=\"Level 3\",T_DataComboFile[[#This Row],[Econ3]] = \"Goods and services\"),IF(T_DataComboFile[[#This Row],[Econ4]] = T_DataComboFile[[#This Row],[Econ3]],1,0),IF(AND($AX$16=\"Level 4\",T_DataComboFile[[#This Row],[Econ4]] = \"Goods and services\"),0,1))","v":1},{"$f":"T_DataComboFile[[#This Row],[2016/17_Source]]*T_DataComboFile[[#This Row],[G&S reporting level indicator]]","v":0},{"$f":"T_DataComboFile[[#This Row],[2017/18_Source]]*T_DataComboFile[[#This Row],[G&S reporting level indicator]]","v":0},{"$f":"T_DataComboFile[[#This Row],[2018/19_Source]]*T_DataComboFile[[#This Row],[G&S reporting level indicator]]","v":0},{"$f":"T_DataComboFile[[#This Row],[2019/20 Main appropriation_Source]]*T_DataComboFile[[#This Row],[G&S reporting level indicator]]","v":0},{"$f":"T_DataComboFile[[#This Row],[2019/20 Adjusted appropriation_Source]]*T_DataComboFile[[#This Row],[G&S reporting level indicator]]","v":0},{"$f":"T_DataComboFile[[#This Row],[2019/20 Revised estimate_Source]]*T_DataComboFile[[#This Row],[G&S reporting level indicator]]","v":0},{"$f":"T_DataComboFile[[#This Row],[2019/20 Preliminary outcome_Source]]*T_DataComboFile[[#This Row],[G&S reporting level indicator]]","v":0},{"$f":"T_DataComboFile[[#This Row],[2020/21 Original_Source]]*T_DataComboFile[[#This Row],[G&S reporting level indicator]]","v":0},{"$f":"T_DataComboFile[[#This Row],[2020/21 SAB_Source]]*T_DataComboFile[[#This Row],[G&S reporting level indicator]]","v":0},{"$f":"T_DataComboFile[[#This Row],[2020/21 Baseline_Source]]*T_DataComboFile[[#This Row],[G&S reporting level indicator]]","v":0},{"$f":"T_DataComboFile[[#This Row],[2021/22 Baseline_Source]]*T_DataComboFile[[#This Row],[G&S reporting level indicator]]","v":0},{"$f":"T_DataComboFile[[#This Row],[2022/23 Baseline_Source]]*T_DataComboFile[[#This Row],[G&S reporting level indicator]]","v":0},{"$f":"T_DataComboFile[[#This Row],[2023/24 Baseline_Source]]*T_DataComboFile[[#This Row],[G&S reporting level indicator]]","v":0},null,null,null,null,null,null,{"$f":"T_DataComboFile[[#This Row],[2021/22 Baseline]]+T_DataComboFile[[#This Row],[2021/22 Reduction]]+T_DataComboFile[[#This Row],[2021/22 Increase]]","v":0},{"$f":"T_DataComboFile[[#This Row],[2022/23 Baseline]]+T_DataComboFile[[#This Row],[2022/23 Reduction]]+T_DataComboFile[[#This Row],[2022/23 Increase]]","v":0},{"$f":"T_DataComboFile[[#This Row],[2023/24 Baseline]]+T_DataComboFile[[#This Row],[2023/24 Reduction]]+T_DataComboFile[[#This Row],[2023/24 Increase]]","v":0}]
[null,null,"2021_22","ENE2020",36,3,3,null,70979,36,3,3,null,"070979","36|03|03",1,2,8,50,54,"01|02|08|50|54","National","Small Business Development","Integrated Cooperative Development","Supplier Development and Market Access Support",null,"Current","Transfers and subsidies","Public corporations and private enterprises","Private enterprises","Other transfers to private enterprises",null,null,null,0,0,0,0,0,0,0,0,0,0,0,0,0,0,null,{"$f":"IF(T_DataComboFile[[#This Row],[G&S reporting level indicator]]=1,$AX$16,\"Not applicable\")","v":"Level 3"},{"$f":"IF(AND($AX$16=\"Level 3\",T_DataComboFile[[#This Row],[Econ3]] = \"Goods and services\"),IF(T_DataComboFile[[#This Row],[Econ4]] = T_DataComboFile[[#This Row],[Econ3]],1,0),IF(AND($AX$16=\"Level 4\",T_DataComboFile[[#This Row],[Econ4]] = \"Goods and services\"),0,1))","v":1},{"$f":"T_DataComboFile[[#This Row],[2016/17_Source]]*T_DataComboFile[[#This Row],[G&S reporting level indicator]]","v":0},{"$f":"T_DataComboFile[[#This Row],[2017/18_Source]]*T_DataComboFile[[#This Row],[G&S reporting level indicator]]","v":0},{"$f":"T_DataComboFile[[#This Row],[2018/19_Source]]*T_DataComboFile[[#This Row],[G&S reporting level indicator]]","v":0},{"$f":"T_DataComboFile[[#This Row],[2019/20 Main appropriation_Source]]*T_DataComboFile[[#This Row],[G&S reporting level indicator]]","v":0},{"$f":"T_DataComboFile[[#This Row],[2019/20 Adjusted appropriation_Source]]*T_DataComboFile[[#This Row],[G&S reporting level indicator]]","v":0},{"$f":"T_DataComboFile[[#This Row],[2019/20 Revised estimate_Source]]*T_DataComboFile[[#This Row],[G&S reporting level indicator]]","v":0},{"$f":"T_DataComboFile[[#This Row],[2019/20 Preliminary outcome_Source]]*T_DataComboFile[[#This Row],[G&S reporting level indicator]]","v":0},{"$f":"T_DataComboFile[[#This Row],[2020/21 Original_Source]]*T_DataComboFile[[#This Row],[G&S reporting level indicator]]","v":0},{"$f":"T_DataComboFile[[#This Row],[2020/21 SAB_Source]]*T_DataComboFile[[#This Row],[G&S reporting level indicator]]","v":0},{"$f":"T_DataComboFile[[#This Row],[2020/21 Baseline_Source]]*T_DataComboFile[[#This Row],[G&S reporting level indicator]]","v":0},{"$f":"T_DataComboFile[[#This Row],[2021/22 Baseline_Source]]*T_DataComboFile[[#This Row],[G&S reporting level indicator]]","v":0},{"$f":"T_DataComboFile[[#This Row],[2022/23 Baseline_Source]]*T_DataComboFile[[#This Row],[G&S reporting level indicator]]","v":0},{"$f":"T_DataComboFile[[#This Row],[2023/24 Baseline_Source]]*T_DataComboFile[[#This Row],[G&S reporting level indicator]]","v":0},null,null,null,null,null,null,{"$f":"T_DataComboFile[[#This Row],[2021/22 Baseline]]+T_DataComboFile[[#This Row],[2021/22 Reduction]]+T_DataComboFile[[#This Row],[2021/22 Increase]]","v":0},{"$f":"T_DataComboFile[[#This Row],[2022/23 Baseline]]+T_DataComboFile[[#This Row],[2022/23 Reduction]]+T_DataComboFile[[#This Row],[2022/23 Increase]]","v":0},{"$f":"T_DataComboFile[[#This Row],[2023/24 Baseline]]+T_DataComboFile[[#This Row],[2023/24 Reduction]]+T_DataComboFile[[#This Row],[2023/24 Increase]]","v":0}]
[null,null,"2021_22","ENE2020",36,3,3,null,70980,36,3,3,null,"070980","36|03|03",1,2,9,51,55,"01|02|09|51|55","National","Small Business Development","Integrated Cooperative Development","Supplier Development and Market Access Support",null,"Current","Transfers and subsidies","Non-profit institutions","Non-profit institutions","Non-profit institutions",null,null,null,0,0,0,0,0,0,0,0,0,0,0,0,0,0,null,{"$f":"IF(T_DataComboFile[[#This Row],[G&S reporting level indicator]]=1,$AX$16,\"Not applicable\")","v":"Level 3"},{"$f":"IF(AND($AX$16=\"Level 3\",T_DataComboFile[[#This Row],[Econ3]] = \"Goods and services\"),IF(T_DataComboFile[[#This Row],[Econ4]] = T_DataComboFile[[#This Row],[Econ3]],1,0),IF(AND($AX$16=\"Level 4\",T_DataComboFile[[#This Row],[Econ4]] = \"Goods and services\"),0,1))","v":1},{"$f":"T_DataComboFile[[#This Row],[2016/17_Source]]*T_DataComboFile[[#This Row],[G&S reporting level indicator]]","v":0},{"$f":"T_DataComboFile[[#This Row],[2017/18_Source]]*T_DataComboFile[[#This Row],[G&S reporting level indicator]]","v":0},{"$f":"T_DataComboFile[[#This Row],[2018/19_Source]]*T_DataComboFile[[#This Row],[G&S reporting level indicator]]","v":0},{"$f":"T_DataComboFile[[#This Row],[2019/20 Main appropriation_Source]]*T_DataComboFile[[#This Row],[G&S reporting level indicator]]","v":0},{"$f":"T_DataComboFile[[#This Row],[2019/20 Adjusted appropriation_Source]]*T_DataComboFile[[#This Row],[G&S reporting level indicator]]","v":0},{"$f":"T_DataComboFile[[#This Row],[2019/20 Revised estimate_Source]]*T_DataComboFile[[#This Row],[G&S reporting level indicator]]","v":0},{"$f":"T_DataComboFile[[#This Row],[2019/20 Preliminary outcome_Source]]*T_DataComboFile[[#This Row],[G&S reporting level indicator]]","v":0},{"$f":"T_DataComboFile[[#This Row],[2020/21 Original_Source]]*T_DataComboFile[[#This Row],[G&S reporting level indicator]]","v":0},{"$f":"T_DataComboFile[[#This Row],[2020/21 SAB_Source]]*T_DataComboFile[[#This Row],[G&S reporting level indicator]]","v":0},{"$f":"T_DataComboFile[[#This Row],[2020/21 Baseline_Source]]*T_DataComboFile[[#This Row],[G&S reporting level indicator]]","v":0},{"$f":"T_DataComboFile[[#This Row],[2021/22 Baseline_Source]]*T_DataComboFile[[#This Row],[G&S reporting level indicator]]","v":0},{"$f":"T_DataComboFile[[#This Row],[2022/23 Baseline_Source]]*T_DataComboFile[[#This Row],[G&S reporting level indicator]]","v":0},{"$f":"T_DataComboFile[[#This Row],[2023/24 Baseline_Source]]*T_DataComboFile[[#This Row],[G&S reporting level indicator]]","v":0},null,null,null,null,null,null,{"$f":"T_DataComboFile[[#This Row],[2021/22 Baseline]]+T_DataComboFile[[#This Row],[2021/22 Reduction]]+T_DataComboFile[[#This Row],[2021/22 Increase]]","v":0},{"$f":"T_DataComboFile[[#This Row],[2022/23 Baseline]]+T_DataComboFile[[#This Row],[2022/23 Reduction]]+T_DataComboFile[[#This Row],[2022/23 Increase]]","v":0},{"$f":"T_DataComboFile[[#This Row],[2023/24 Baseline]]+T_DataComboFile[[#This Row],[2023/24 Reduction]]+T_DataComboFile[[#This Row],[2023/24 Increase]]","v":0}]
["NAT|Employee social benefits","36|Social benefits","2021_22","ENE2020",36,3,3,17384,70981,36,3,3,17384,"070981","36|03|03",1,2,10,52,56,"01|02|10|52|56","National","Small Business Development","Integrated Cooperative Development","Supplier Development and Market Access Support","Employee social benefits","Current","Transfers and subsidies","Households","Social benefits","Social benefits","Economic development","Industrialisation and exports","NAT",0,8,1,0,0,0,0,0,0,0,0,0,0,1,null,{"$f":"IF(T_DataComboFile[[#This Row],[G&S reporting level indicator]]=1,$AX$16,\"Not applicable\")","v":"Level 3"},{"$f":"IF(AND($AX$16=\"Level 3\",T_DataComboFile[[#This Row],[Econ3]] = \"Goods and services\"),IF(T_DataComboFile[[#This Row],[Econ4]] = T_DataComboFile[[#This Row],[Econ3]],1,0),IF(AND($AX$16=\"Level 4\",T_DataComboFile[[#This Row],[Econ4]] = \"Goods and services\"),0,1))","v":1},{"$f":"T_DataComboFile[[#This Row],[2016/17_Source]]*T_DataComboFile[[#This Row],[G&S reporting level indicator]]","v":0},{"$f":"T_DataComboFile[[#This Row],[2017/18_Source]]*T_DataComboFile[[#This Row],[G&S reporting level indicator]]","v":8},{"$f":"T_DataComboFile[[#This Row],[2018/19_Source]]*T_DataComboFile[[#This Row],[G&S reporting level indicator]]","v":1},{"$f":"T_DataComboFile[[#This Row],[2019/20 Main appropriation_Source]]*T_DataComboFile[[#This Row],[G&S reporting level indicator]]","v":0},{"$f":"T_DataComboFile[[#This Row],[2019/20 Adjusted appropriation_Source]]*T_DataComboFile[[#This Row],[G&S reporting level indicator]]","v":0},{"$f":"T_DataComboFile[[#This Row],[2019/20 Revised estimate_Source]]*T_DataComboFile[[#This Row],[G&S reporting level indicator]]","v":0},{"$f":"T_DataComboFile[[#This Row],[2019/20 Preliminary outcome_Source]]*T_DataComboFile[[#This Row],[G&S reporting level indicator]]","v":0},{"$f":"T_DataComboFile[[#This Row],[2020/21 Original_Source]]*T_DataComboFile[[#This Row],[G&S reporting level indicator]]","v":0},{"$f":"T_DataComboFile[[#This Row],[2020/21 SAB_Source]]*T_DataComboFile[[#This Row],[G&S reporting level indicator]]","v":0},{"$f":"T_DataComboFile[[#This Row],[2020/21 Baseline_Source]]*T_DataComboFile[[#This Row],[G&S reporting level indicator]]","v":0},{"$f":"T_DataComboFile[[#This Row],[2021/22 Baseline_Source]]*T_DataComboFile[[#This Row],[G&S reporting level indicator]]","v":0},{"$f":"T_DataComboFile[[#This Row],[2022/23 Baseline_Source]]*T_DataComboFile[[#This Row],[G&S reporting level indicator]]","v":0},{"$f":"T_DataComboFile[[#This Row],[2023/24 Baseline_Source]]*T_DataComboFile[[#This Row],[G&S reporting level indicator]]","v":0},null,null,null,null,null,null,{"$f":"T_DataComboFile[[#This Row],[2021/22 Baseline]]+T_DataComboFile[[#This Row],[2021/22 Reduction]]+T_DataComboFile[[#This Row],[2021/22 Increase]]","v":0},{"$f":"T_DataComboFile[[#This Row],[2022/23 Baseline]]+T_DataComboFile[[#This Row],[2022/23 Reduction]]+T_DataComboFile[[#This Row],[2022/23 Increase]]","v":0},{"$f":"T_DataComboFile[[#This Row],[2023/24 Baseline]]+T_DataComboFile[[#This Row],[2023/24 Reduction]]+T_DataComboFile[[#This Row],[2023/24 Increase]]","v":0}]
[null,null,"2021_22","ENE2020",36,3,3,null,70982,36,3,3,null,"070982","36|03|03",1,2,10,53,57,"01|02|10|53|57","National","Small Business Development","Integrated Cooperative Development","Supplier Development and Market Access Support",null,"Current","Transfers and subsidies","Households","Other transfers to households","Other transfers to households",null,null,null,0,0,0,0,0,0,0,0,0,0,0,0,0,0,null,{"$f":"IF(T_DataComboFile[[#This Row],[G&S reporting level indicator]]=1,$AX$16,\"Not applicable\")","v":"Level 3"},{"$f":"IF(AND($AX$16=\"Level 3\",T_DataComboFile[[#This Row],[Econ3]] = \"Goods and services\"),IF(T_DataComboFile[[#This Row],[Econ4]] = T_DataComboFile[[#This Row],[Econ3]],1,0),IF(AND($AX$16=\"Level 4\",T_DataComboFile[[#This Row],[Econ4]] = \"Goods and services\"),0,1))","v":1},{"$f":"T_DataComboFile[[#This Row],[2016/17_Source]]*T_DataComboFile[[#This Row],[G&S reporting level indicator]]","v":0},{"$f":"T_DataComboFile[[#This Row],[2017/18_Source]]*T_DataComboFile[[#This Row],[G&S reporting level indicator]]","v":0},{"$f":"T_DataComboFile[[#This Row],[2018/19_Source]]*T_DataComboFile[[#This Row],[G&S reporting level indicator]]","v":0},{"$f":"T_DataComboFile[[#This Row],[2019/20 Main appropriation_Source]]*T_DataComboFile[[#This Row],[G&S reporting level indicator]]","v":0},{"$f":"T_DataComboFile[[#This Row],[2019/20 Adjusted appropriation_Source]]*T_DataComboFile[[#This Row],[G&S reporting level indicator]]","v":0},{"$f":"T_DataComboFile[[#This Row],[2019/20 Revised estimate_Source]]*T_DataComboFile[[#This Row],[G&S reporting level indicator]]","v":0},{"$f":"T_DataComboFile[[#This Row],[2019/20 Preliminary outcome_Source]]*T_DataComboFile[[#This Row],[G&S reporting level indicator]]","v":0},{"$f":"T_DataComboFile[[#This Row],[2020/21 Original_Source]]*T_DataComboFile[[#This Row],[G&S reporting level indicator]]","v":0},{"$f":"T_DataComboFile[[#This Row],[2020/21 SAB_Source]]*T_DataComboFile[[#This Row],[G&S reporting level indicator]]","v":0},{"$f":"T_DataComboFile[[#This Row],[2020/21 Baseline_Source]]*T_DataComboFile[[#This Row],[G&S reporting level indicator]]","v":0},{"$f":"T_DataComboFile[[#This Row],[2021/22 Baseline_Source]]*T_DataComboFile[[#This Row],[G&S reporting level indicator]]","v":0},{"$f":"T_DataComboFile[[#This Row],[2022/23 Baseline_Source]]*T_DataComboFile[[#This Row],[G&S reporting level indicator]]","v":0},{"$f":"T_DataComboFile[[#This Row],[2023/24 Baseline_Source]]*T_DataComboFile[[#This Row],[G&S reporting level indicator]]","v":0},null,null,null,null,null,null,{"$f":"T_DataComboFile[[#This Row],[2021/22 Baseline]]+T_DataComboFile[[#This Row],[2021/22 Reduction]]+T_DataComboFile[[#This Row],[2021/22 Increase]]","v":0},{"$f":"T_DataComboFile[[#This Row],[2022/23 Baseline]]+T_DataComboFile[[#This Row],[2022/23 Reduction]]+T_DataComboFile[[#This Row],[2022/23 Increase]]","v":0},{"$f":"T_DataComboFile[[#This Row],[2023/24 Baseline]]+T_DataComboFile[[#This Row],[2023/24 Reduction]]+T_DataComboFile[[#This Row],[2023/24 Increase]]","v":0}]
[null,null,"2021_22","ENE2020",36,3,3,null,70983,36,3,3,null,"070983","36|03|03",2,2,4,43,43,"02|02|04|43|43","National","Small Business Development","Integrated Cooperative Development","Supplier Development and Market Access Support",null,"Capital","Transfers and subsidies","Provinces and municipalities","Provinces","Provincial Revenue Funds",null,null,null,0,0,0,0,0,0,0,0,0,0,0,0,0,0,null,{"$f":"IF(T_DataComboFile[[#This Row],[G&S reporting level indicator]]=1,$AX$16,\"Not applicable\")","v":"Level 3"},{"$f":"IF(AND($AX$16=\"Level 3\",T_DataComboFile[[#This Row],[Econ3]] = \"Goods and services\"),IF(T_DataComboFile[[#This Row],[Econ4]] = T_DataComboFile[[#This Row],[Econ3]],1,0),IF(AND($AX$16=\"Level 4\",T_DataComboFile[[#This Row],[Econ4]] = \"Goods and services\"),0,1))","v":1},{"$f":"T_DataComboFile[[#This Row],[2016/17_Source]]*T_DataComboFile[[#This Row],[G&S reporting level indicator]]","v":0},{"$f":"T_DataComboFile[[#This Row],[2017/18_Source]]*T_DataComboFile[[#This Row],[G&S reporting level indicator]]","v":0},{"$f":"T_DataComboFile[[#This Row],[2018/19_Source]]*T_DataComboFile[[#This Row],[G&S reporting level indicator]]","v":0},{"$f":"T_DataComboFile[[#This Row],[2019/20 Main appropriation_Source]]*T_DataComboFile[[#This Row],[G&S reporting level indicator]]","v":0},{"$f":"T_DataComboFile[[#This Row],[2019/20 Adjusted appropriation_Source]]*T_DataComboFile[[#This Row],[G&S reporting level indicator]]","v":0},{"$f":"T_DataComboFile[[#This Row],[2019/20 Revised estimate_Source]]*T_DataComboFile[[#This Row],[G&S reporting level indicator]]","v":0},{"$f":"T_DataComboFile[[#This Row],[2019/20 Preliminary outcome_Source]]*T_DataComboFile[[#This Row],[G&S reporting level indicator]]","v":0},{"$f":"T_DataComboFile[[#This Row],[2020/21 Original_Source]]*T_DataComboFile[[#This Row],[G&S reporting level indicator]]","v":0},{"$f":"T_DataComboFile[[#This Row],[2020/21 SAB_Source]]*T_DataComboFile[[#This Row],[G&S reporting level indicator]]","v":0},{"$f":"T_DataComboFile[[#This Row],[2020/21 Baseline_Source]]*T_DataComboFile[[#This Row],[G&S reporting level indicator]]","v":0},{"$f":"T_DataComboFile[[#This Row],[2021/22 Baseline_Source]]*T_DataComboFile[[#This Row],[G&S reporting level indicator]]","v":0},{"$f":"T_DataComboFile[[#This Row],[2022/23 Baseline_Source]]*T_DataComboFile[[#This Row],[G&S reporting level indicator]]","v":0},{"$f":"T_DataComboFile[[#This Row],[2023/24 Baseline_Source]]*T_DataComboFile[[#This Row],[G&S reporting level indicator]]","v":0},null,null,null,null,null,null,{"$f":"T_DataComboFile[[#This Row],[2021/22 Baseline]]+T_DataComboFile[[#This Row],[2021/22 Reduction]]+T_DataComboFile[[#This Row],[2021/22 Increase]]","v":0},{"$f":"T_DataComboFile[[#This Row],[2022/23 Baseline]]+T_DataComboFile[[#This Row],[2022/23 Reduction]]+T_DataComboFile[[#This Row],[2022/23 Increase]]","v":0},{"$f":"T_DataComboFile[[#This Row],[2023/24 Baseline]]+T_DataComboFile[[#This Row],[2023/24 Reduction]]+T_DataComboFile[[#This Row],[2023/24 Increase]]","v":0}]
[null,null,"2021_22","ENE2020",36,3,3,null,70984,36,3,3,null,"070984","36|03|03",2,2,4,44,45,"02|02|04|44|45","National","Small Business Development","Integrated Cooperative Development","Supplier Development and Market Access Support",null,"Capital","Transfers and subsidies","Provinces and municipalities","Municipalities","Municipal bank accounts",null,null,null,0,0,0,0,0,0,0,0,0,0,0,0,0,0,null,{"$f":"IF(T_DataComboFile[[#This Row],[G&S reporting level indicator]]=1,$AX$16,\"Not applicable\")","v":"Level 3"},{"$f":"IF(AND($AX$16=\"Level 3\",T_DataComboFile[[#This Row],[Econ3]] = \"Goods and services\"),IF(T_DataComboFile[[#This Row],[Econ4]] = T_DataComboFile[[#This Row],[Econ3]],1,0),IF(AND($AX$16=\"Level 4\",T_DataComboFile[[#This Row],[Econ4]] = \"Goods and services\"),0,1))","v":1},{"$f":"T_DataComboFile[[#This Row],[2016/17_Source]]*T_DataComboFile[[#This Row],[G&S reporting level indicator]]","v":0},{"$f":"T_DataComboFile[[#This Row],[2017/18_Source]]*T_DataComboFile[[#This Row],[G&S reporting level indicator]]","v":0},{"$f":"T_DataComboFile[[#This Row],[2018/19_Source]]*T_DataComboFile[[#This Row],[G&S reporting level indicator]]","v":0},{"$f":"T_DataComboFile[[#This Row],[2019/20 Main appropriation_Source]]*T_DataComboFile[[#This Row],[G&S reporting level indicator]]","v":0},{"$f":"T_DataComboFile[[#This Row],[2019/20 Adjusted appropriation_Source]]*T_DataComboFile[[#This Row],[G&S reporting level indicator]]","v":0},{"$f":"T_DataComboFile[[#This Row],[2019/20 Revised estimate_Source]]*T_DataComboFile[[#This Row],[G&S reporting level indicator]]","v":0},{"$f":"T_DataComboFile[[#This Row],[2019/20 Preliminary outcome_Source]]*T_DataComboFile[[#This Row],[G&S reporting level indicator]]","v":0},{"$f":"T_DataComboFile[[#This Row],[2020/21 Original_Source]]*T_DataComboFile[[#This Row],[G&S reporting level indicator]]","v":0},{"$f":"T_DataComboFile[[#This Row],[2020/21 SAB_Source]]*T_DataComboFile[[#This Row],[G&S reporting level indicator]]","v":0},{"$f":"T_DataComboFile[[#This Row],[2020/21 Baseline_Source]]*T_DataComboFile[[#This Row],[G&S reporting level indicator]]","v":0},{"$f":"T_DataComboFile[[#This Row],[2021/22 Baseline_Source]]*T_DataComboFile[[#This Row],[G&S reporting level indicator]]","v":0},{"$f":"T_DataComboFile[[#This Row],[2022/23 Baseline_Source]]*T_DataComboFile[[#This Row],[G&S reporting level indicator]]","v":0},{"$f":"T_DataComboFile[[#This Row],[2023/24 Baseline_Source]]*T_DataComboFile[[#This Row],[G&S reporting level indicator]]","v":0},null,null,null,null,null,null,{"$f":"T_DataComboFile[[#This Row],[2021/22 Baseline]]+T_DataComboFile[[#This Row],[2021/22 Reduction]]+T_DataComboFile[[#This Row],[2021/22 Increase]]","v":0},{"$f":"T_DataComboFile[[#This Row],[2022/23 Baseline]]+T_DataComboFile[[#This Row],[2022/23 Reduction]]+T_DataComboFile[[#This Row],[2022/23 Increase]]","v":0},{"$f":"T_DataComboFile[[#This Row],[2023/24 Baseline]]+T_DataComboFile[[#This Row],[2023/24 Reduction]]+T_DataComboFile[[#This Row],[2023/24 Increase]]","v":0}]
[null,null,"2021_22","ENE2020",36,3,3,null,70985,36,3,3,null,"070985","36|03|03",2,2,5,46,48,"02|02|05|46|48","National","Small Business Development","Integrated Cooperative Development","Supplier Development and Market Access Support",null,"Capital","Transfers and subsidies","Departmental agencies and accounts","Departmental agencies (non-business entities)","Departmental agencies (non-business entities)",null,null,null,0,0,0,0,0,0,0,0,0,0,0,0,0,0,null,{"$f":"IF(T_DataComboFile[[#This Row],[G&S reporting level indicator]]=1,$AX$16,\"Not applicable\")","v":"Level 3"},{"$f":"IF(AND($AX$16=\"Level 3\",T_DataComboFile[[#This Row],[Econ3]] = \"Goods and services\"),IF(T_DataComboFile[[#This Row],[Econ4]] = T_DataComboFile[[#This Row],[Econ3]],1,0),IF(AND($AX$16=\"Level 4\",T_DataComboFile[[#This Row],[Econ4]] = \"Goods and services\"),0,1))","v":1},{"$f":"T_DataComboFile[[#This Row],[2016/17_Source]]*T_DataComboFile[[#This Row],[G&S reporting level indicator]]","v":0},{"$f":"T_DataComboFile[[#This Row],[2017/18_Source]]*T_DataComboFile[[#This Row],[G&S reporting level indicator]]","v":0},{"$f":"T_DataComboFile[[#This Row],[2018/19_Source]]*T_DataComboFile[[#This Row],[G&S reporting level indicator]]","v":0},{"$f":"T_DataComboFile[[#This Row],[2019/20 Main appropriation_Source]]*T_DataComboFile[[#This Row],[G&S reporting level indicator]]","v":0},{"$f":"T_DataComboFile[[#This Row],[2019/20 Adjusted appropriation_Source]]*T_DataComboFile[[#This Row],[G&S reporting level indicator]]","v":0},{"$f":"T_DataComboFile[[#This Row],[2019/20 Revised estimate_Source]]*T_DataComboFile[[#This Row],[G&S reporting level indicator]]","v":0},{"$f":"T_DataComboFile[[#This Row],[2019/20 Preliminary outcome_Source]]*T_DataComboFile[[#This Row],[G&S reporting level indicator]]","v":0},{"$f":"T_DataComboFile[[#This Row],[2020/21 Original_Source]]*T_DataComboFile[[#This Row],[G&S reporting level indicator]]","v":0},{"$f":"T_DataComboFile[[#This Row],[2020/21 SAB_Source]]*T_DataComboFile[[#This Row],[G&S reporting level indicator]]","v":0},{"$f":"T_DataComboFile[[#This Row],[2020/21 Baseline_Source]]*T_DataComboFile[[#This Row],[G&S reporting level indicator]]","v":0},{"$f":"T_DataComboFile[[#This Row],[2021/22 Baseline_Source]]*T_DataComboFile[[#This Row],[G&S reporting level indicator]]","v":0},{"$f":"T_DataComboFile[[#This Row],[2022/23 Baseline_Source]]*T_DataComboFile[[#This Row],[G&S reporting level indicator]]","v":0},{"$f":"T_DataComboFile[[#This Row],[2023/24 Baseline_Source]]*T_DataComboFile[[#This Row],[G&S reporting level indicator]]","v":0},null,null,null,null,null,null,{"$f":"T_DataComboFile[[#This Row],[2021/22 Baseline]]+T_DataComboFile[[#This Row],[2021/22 Reduction]]+T_DataComboFile[[#This Row],[2021/22 Increase]]","v":0},{"$f":"T_DataComboFile[[#This Row],[2022/23 Baseline]]+T_DataComboFile[[#This Row],[2022/23 Reduction]]+T_DataComboFile[[#This Row],[2022/23 Increase]]","v":0},{"$f":"T_DataComboFile[[#This Row],[2023/24 Baseline]]+T_DataComboFile[[#This Row],[2023/24 Reduction]]+T_DataComboFile[[#This Row],[2023/24 Increase]]","v":0}]
[null,null,"2021_22","ENE2020",36,3,3,null,70986,36,3,3,null,"070986","36|03|03",2,2,6,47,49,"02|02|06|47|49","National","Small Business Development","Integrated Cooperative Development","Supplier Development and Market Access Support",null,"Capital","Transfers and subsidies","Higher education institutions","Higher education institutions","Higher education institutions",null,null,null,0,0,0,0,0,0,0,0,0,0,0,0,0,0,null,{"$f":"IF(T_DataComboFile[[#This Row],[G&S reporting level indicator]]=1,$AX$16,\"Not applicable\")","v":"Level 3"},{"$f":"IF(AND($AX$16=\"Level 3\",T_DataComboFile[[#This Row],[Econ3]] = \"Goods and services\"),IF(T_DataComboFile[[#This Row],[Econ4]] = T_DataComboFile[[#This Row],[Econ3]],1,0),IF(AND($AX$16=\"Level 4\",T_DataComboFile[[#This Row],[Econ4]] = \"Goods and services\"),0,1))","v":1},{"$f":"T_DataComboFile[[#This Row],[2016/17_Source]]*T_DataComboFile[[#This Row],[G&S reporting level indicator]]","v":0},{"$f":"T_DataComboFile[[#This Row],[2017/18_Source]]*T_DataComboFile[[#This Row],[G&S reporting level indicator]]","v":0},{"$f":"T_DataComboFile[[#This Row],[2018/19_Source]]*T_DataComboFile[[#This Row],[G&S reporting level indicator]]","v":0},{"$f":"T_DataComboFile[[#This Row],[2019/20 Main appropriation_Source]]*T_DataComboFile[[#This Row],[G&S reporting level indicator]]","v":0},{"$f":"T_DataComboFile[[#This Row],[2019/20 Adjusted appropriation_Source]]*T_DataComboFile[[#This Row],[G&S reporting level indicator]]","v":0},{"$f":"T_DataComboFile[[#This Row],[2019/20 Revised estimate_Source]]*T_DataComboFile[[#This Row],[G&S reporting level indicator]]","v":0},{"$f":"T_DataComboFile[[#This Row],[2019/20 Preliminary outcome_Source]]*T_DataComboFile[[#This Row],[G&S reporting level indicator]]","v":0},{"$f":"T_DataComboFile[[#This Row],[2020/21 Original_Source]]*T_DataComboFile[[#This Row],[G&S reporting level indicator]]","v":0},{"$f":"T_DataComboFile[[#This Row],[2020/21 SAB_Source]]*T_DataComboFile[[#This Row],[G&S reporting level indicator]]","v":0},{"$f":"T_DataComboFile[[#This Row],[2020/21 Baseline_Source]]*T_DataComboFile[[#This Row],[G&S reporting level indicator]]","v":0},{"$f":"T_DataComboFile[[#This Row],[2021/22 Baseline_Source]]*T_DataComboFile[[#This Row],[G&S reporting level indicator]]","v":0},{"$f":"T_DataComboFile[[#This Row],[2022/23 Baseline_Source]]*T_DataComboFile[[#This Row],[G&S reporting level indicator]]","v":0},{"$f":"T_DataComboFile[[#This Row],[2023/24 Baseline_Source]]*T_DataComboFile[[#This Row],[G&S reporting level indicator]]","v":0},null,null,null,null,null,null,{"$f":"T_DataComboFile[[#This Row],[2021/22 Baseline]]+T_DataComboFile[[#This Row],[2021/22 Reduction]]+T_DataComboFile[[#This Row],[2021/22 Increase]]","v":0},{"$f":"T_DataComboFile[[#This Row],[2022/23 Baseline]]+T_DataComboFile[[#This Row],[2022/23 Reduction]]+T_DataComboFile[[#This Row],[2022/23 Increase]]","v":0},{"$f":"T_DataComboFile[[#This Row],[2023/24 Baseline]]+T_DataComboFile[[#This Row],[2023/24 Reduction]]+T_DataComboFile[[#This Row],[2023/24 Increase]]","v":0}]
[null,null,"2021_22","ENE2020",36,3,3,null,70987,36,3,3,null,"070987","36|03|03",2,2,7,48,50,"02|02|07|48|50","National","Small Business Development","Integrated Cooperative Development","Supplier Development and Market Access Support",null,"Capital","Transfers and subsidies","Foreign governments and international organisations","Foreign governments and international organisations","Foreign governments and international organisations",null,null,null,0,0,0,0,0,0,0,0,0,0,0,0,0,0,null,{"$f":"IF(T_DataComboFile[[#This Row],[G&S reporting level indicator]]=1,$AX$16,\"Not applicable\")","v":"Level 3"},{"$f":"IF(AND($AX$16=\"Level 3\",T_DataComboFile[[#This Row],[Econ3]] = \"Goods and services\"),IF(T_DataComboFile[[#This Row],[Econ4]] = T_DataComboFile[[#This Row],[Econ3]],1,0),IF(AND($AX$16=\"Level 4\",T_DataComboFile[[#This Row],[Econ4]] = \"Goods and services\"),0,1))","v":1},{"$f":"T_DataComboFile[[#This Row],[2016/17_Source]]*T_DataComboFile[[#This Row],[G&S reporting level indicator]]","v":0},{"$f":"T_DataComboFile[[#This Row],[2017/18_Source]]*T_DataComboFile[[#This Row],[G&S reporting level indicator]]","v":0},{"$f":"T_DataComboFile[[#This Row],[2018/19_Source]]*T_DataComboFile[[#This Row],[G&S reporting level indicator]]","v":0},{"$f":"T_DataComboFile[[#This Row],[2019/20 Main appropriation_Source]]*T_DataComboFile[[#This Row],[G&S reporting level indicator]]","v":0},{"$f":"T_DataComboFile[[#This Row],[2019/20 Adjusted appropriation_Source]]*T_DataComboFile[[#This Row],[G&S reporting level indicator]]","v":0},{"$f":"T_DataComboFile[[#This Row],[2019/20 Revised estimate_Source]]*T_DataComboFile[[#This Row],[G&S reporting level indicator]]","v":0},{"$f":"T_DataComboFile[[#This Row],[2019/20 Preliminary outcome_Source]]*T_DataComboFile[[#This Row],[G&S reporting level indicator]]","v":0},{"$f":"T_DataComboFile[[#This Row],[2020/21 Original_Source]]*T_DataComboFile[[#This Row],[G&S reporting level indicator]]","v":0},{"$f":"T_DataComboFile[[#This Row],[2020/21 SAB_Source]]*T_DataComboFile[[#This Row],[G&S reporting level indicator]]","v":0},{"$f":"T_DataComboFile[[#This Row],[2020/21 Baseline_Source]]*T_DataComboFile[[#This Row],[G&S reporting level indicator]]","v":0},{"$f":"T_DataComboFile[[#This Row],[2021/22 Baseline_Source]]*T_DataComboFile[[#This Row],[G&S reporting level indicator]]","v":0},{"$f":"T_DataComboFile[[#This Row],[2022/23 Baseline_Source]]*T_DataComboFile[[#This Row],[G&S reporting level indicator]]","v":0},{"$f":"T_DataComboFile[[#This Row],[2023/24 Baseline_Source]]*T_DataComboFile[[#This Row],[G&S reporting level indicator]]","v":0},null,null,null,null,null,null,{"$f":"T_DataComboFile[[#This Row],[2021/22 Baseline]]+T_DataComboFile[[#This Row],[2021/22 Reduction]]+T_DataComboFile[[#This Row],[2021/22 Increase]]","v":0},{"$f":"T_DataComboFile[[#This Row],[2022/23 Baseline]]+T_DataComboFile[[#This Row],[2022/23 Reduction]]+T_DataComboFile[[#This Row],[2022/23 Increase]]","v":0},{"$f":"T_DataComboFile[[#This Row],[2023/24 Baseline]]+T_DataComboFile[[#This Row],[2023/24 Reduction]]+T_DataComboFile[[#This Row],[2023/24 Increase]]","v":0}]
[null,null,"2021_22","ENE2020",36,3,3,null,70988,36,3,3,null,"070988","36|03|03",2,2,8,49,51,"02|02|08|49|51","National","Small Business Development","Integrated Cooperative Development","Supplier Development and Market Access Support",null,"Capital","Transfers and subsidies","Public corporations and private enterprises","Public corporations","Subsidies on products and production (pc)",null,null,null,0,0,0,0,0,0,0,0,0,0,0,0,0,0,null,{"$f":"IF(T_DataComboFile[[#This Row],[G&S reporting level indicator]]=1,$AX$16,\"Not applicable\")","v":"Level 3"},{"$f":"IF(AND($AX$16=\"Level 3\",T_DataComboFile[[#This Row],[Econ3]] = \"Goods and services\"),IF(T_DataComboFile[[#This Row],[Econ4]] = T_DataComboFile[[#This Row],[Econ3]],1,0),IF(AND($AX$16=\"Level 4\",T_DataComboFile[[#This Row],[Econ4]] = \"Goods and services\"),0,1))","v":1},{"$f":"T_DataComboFile[[#This Row],[2016/17_Source]]*T_DataComboFile[[#This Row],[G&S reporting level indicator]]","v":0},{"$f":"T_DataComboFile[[#This Row],[2017/18_Source]]*T_DataComboFile[[#This Row],[G&S reporting level indicator]]","v":0},{"$f":"T_DataComboFile[[#This Row],[2018/19_Source]]*T_DataComboFile[[#This Row],[G&S reporting level indicator]]","v":0},{"$f":"T_DataComboFile[[#This Row],[2019/20 Main appropriation_Source]]*T_DataComboFile[[#This Row],[G&S reporting level indicator]]","v":0},{"$f":"T_DataComboFile[[#This Row],[2019/20 Adjusted appropriation_Source]]*T_DataComboFile[[#This Row],[G&S reporting level indicator]]","v":0},{"$f":"T_DataComboFile[[#This Row],[2019/20 Revised estimate_Source]]*T_DataComboFile[[#This Row],[G&S reporting level indicator]]","v":0},{"$f":"T_DataComboFile[[#This Row],[2019/20 Preliminary outcome_Source]]*T_DataComboFile[[#This Row],[G&S reporting level indicator]]","v":0},{"$f":"T_DataComboFile[[#This Row],[2020/21 Original_Source]]*T_DataComboFile[[#This Row],[G&S reporting level indicator]]","v":0},{"$f":"T_DataComboFile[[#This Row],[2020/21 SAB_Source]]*T_DataComboFile[[#This Row],[G&S reporting level indicator]]","v":0},{"$f":"T_DataComboFile[[#This Row],[2020/21 Baseline_Source]]*T_DataComboFile[[#This Row],[G&S reporting level indicator]]","v":0},{"$f":"T_DataComboFile[[#This Row],[2021/22 Baseline_Source]]*T_DataComboFile[[#This Row],[G&S reporting level indicator]]","v":0},{"$f":"T_DataComboFile[[#This Row],[2022/23 Baseline_Source]]*T_DataComboFile[[#This Row],[G&S reporting level indicator]]","v":0},{"$f":"T_DataComboFile[[#This Row],[2023/24 Baseline_Source]]*T_DataComboFile[[#This Row],[G&S reporting level indicator]]","v":0},null,null,null,null,null,null,{"$f":"T_DataComboFile[[#This Row],[2021/22 Baseline]]+T_DataComboFile[[#This Row],[2021/22 Reduction]]+T_DataComboFile[[#This Row],[2021/22 Increase]]","v":0},{"$f":"T_DataComboFile[[#This Row],[2022/23 Baseline]]+T_DataComboFile[[#This Row],[2022/23 Reduction]]+T_DataComboFile[[#This Row],[2022/23 Increase]]","v":0},{"$f":"T_DataComboFile[[#This Row],[2023/24 Baseline]]+T_DataComboFile[[#This Row],[2023/24 Reduction]]+T_DataComboFile[[#This Row],[2023/24 Increase]]","v":0}]
[null,null,"2021_22","ENE2020",36,3,3,null,70989,36,3,3,null,"070989","36|03|03",2,2,8,49,52,"02|02|08|49|52","National","Small Business Development","Integrated Cooperative Development","Supplier Development and Market Access Support",null,"Capital","Transfers and subsidies","Public corporations and private enterprises","Public corporations","Other transfers to public corporations",null,null,null,0,0,0,0,0,0,0,0,0,0,0,0,0,0,null,{"$f":"IF(T_DataComboFile[[#This Row],[G&S reporting level indicator]]=1,$AX$16,\"Not applicable\")","v":"Level 3"},{"$f":"IF(AND($AX$16=\"Level 3\",T_DataComboFile[[#This Row],[Econ3]] = \"Goods and services\"),IF(T_DataComboFile[[#This Row],[Econ4]] = T_DataComboFile[[#This Row],[Econ3]],1,0),IF(AND($AX$16=\"Level 4\",T_DataComboFile[[#This Row],[Econ4]] = \"Goods and services\"),0,1))","v":1},{"$f":"T_DataComboFile[[#This Row],[2016/17_Source]]*T_DataComboFile[[#This Row],[G&S reporting level indicator]]","v":0},{"$f":"T_DataComboFile[[#This Row],[2017/18_Source]]*T_DataComboFile[[#This Row],[G&S reporting level indicator]]","v":0},{"$f":"T_DataComboFile[[#This Row],[2018/19_Source]]*T_DataComboFile[[#This Row],[G&S reporting level indicator]]","v":0},{"$f":"T_DataComboFile[[#This Row],[2019/20 Main appropriation_Source]]*T_DataComboFile[[#This Row],[G&S reporting level indicator]]","v":0},{"$f":"T_DataComboFile[[#This Row],[2019/20 Adjusted appropriation_Source]]*T_DataComboFile[[#This Row],[G&S reporting level indicator]]","v":0},{"$f":"T_DataComboFile[[#This Row],[2019/20 Revised estimate_Source]]*T_DataComboFile[[#This Row],[G&S reporting level indicator]]","v":0},{"$f":"T_DataComboFile[[#This Row],[2019/20 Preliminary outcome_Source]]*T_DataComboFile[[#This Row],[G&S reporting level indicator]]","v":0},{"$f":"T_DataComboFile[[#This Row],[2020/21 Original_Source]]*T_DataComboFile[[#This Row],[G&S reporting level indicator]]","v":0},{"$f":"T_DataComboFile[[#This Row],[2020/21 SAB_Source]]*T_DataComboFile[[#This Row],[G&S reporting level indicator]]","v":0},{"$f":"T_DataComboFile[[#This Row],[2020/21 Baseline_Source]]*T_DataComboFile[[#This Row],[G&S reporting level indicator]]","v":0},{"$f":"T_DataComboFile[[#This Row],[2021/22 Baseline_Source]]*T_DataComboFile[[#This Row],[G&S reporting level indicator]]","v":0},{"$f":"T_DataComboFile[[#This Row],[2022/23 Baseline_Source]]*T_DataComboFile[[#This Row],[G&S reporting level indicator]]","v":0},{"$f":"T_DataComboFile[[#This Row],[2023/24 Baseline_Source]]*T_DataComboFile[[#This Row],[G&S reporting level indicator]]","v":0},null,null,null,null,null,null,{"$f":"T_DataComboFile[[#This Row],[2021/22 Baseline]]+T_DataComboFile[[#This Row],[2021/22 Reduction]]+T_DataComboFile[[#This Row],[2021/22 Increase]]","v":0},{"$f":"T_DataComboFile[[#This Row],[2022/23 Baseline]]+T_DataComboFile[[#This Row],[2022/23 Reduction]]+T_DataComboFile[[#This Row],[2022/23 Increase]]","v":0},{"$f":"T_DataComboFile[[#This Row],[2023/24 Baseline]]+T_DataComboFile[[#This Row],[2023/24 Reduction]]+T_DataComboFile[[#This Row],[2023/24 Increase]]","v":0}]
[null,null,"2021_22","ENE2020",36,3,3,null,70990,36,3,3,null,"070990","36|03|03",2,2,8,50,54,"02|02|08|50|54","National","Small Business Development","Integrated Cooperative Development","Supplier Development and Market Access Support",null,"Capital","Transfers and subsidies","Public corporations and private enterprises","Private enterprises","Other transfers to private enterprises",null,null,null,0,0,0,0,0,0,0,0,0,0,0,0,0,0,null,{"$f":"IF(T_DataComboFile[[#This Row],[G&S reporting level indicator]]=1,$AX$16,\"Not applicable\")","v":"Level 3"},{"$f":"IF(AND($AX$16=\"Level 3\",T_DataComboFile[[#This Row],[Econ3]] = \"Goods and services\"),IF(T_DataComboFile[[#This Row],[Econ4]] = T_DataComboFile[[#This Row],[Econ3]],1,0),IF(AND($AX$16=\"Level 4\",T_DataComboFile[[#This Row],[Econ4]] = \"Goods and services\"),0,1))","v":1},{"$f":"T_DataComboFile[[#This Row],[2016/17_Source]]*T_DataComboFile[[#This Row],[G&S reporting level indicator]]","v":0},{"$f":"T_DataComboFile[[#This Row],[2017/18_Source]]*T_DataComboFile[[#This Row],[G&S reporting level indicator]]","v":0},{"$f":"T_DataComboFile[[#This Row],[2018/19_Source]]*T_DataComboFile[[#This Row],[G&S reporting level indicator]]","v":0},{"$f":"T_DataComboFile[[#This Row],[2019/20 Main appropriation_Source]]*T_DataComboFile[[#This Row],[G&S reporting level indicator]]","v":0},{"$f":"T_DataComboFile[[#This Row],[2019/20 Adjusted appropriation_Source]]*T_DataComboFile[[#This Row],[G&S reporting level indicator]]","v":0},{"$f":"T_DataComboFile[[#This Row],[2019/20 Revised estimate_Source]]*T_DataComboFile[[#This Row],[G&S reporting level indicator]]","v":0},{"$f":"T_DataComboFile[[#This Row],[2019/20 Preliminary outcome_Source]]*T_DataComboFile[[#This Row],[G&S reporting level indicator]]","v":0},{"$f":"T_DataComboFile[[#This Row],[2020/21 Original_Source]]*T_DataComboFile[[#This Row],[G&S reporting level indicator]]","v":0},{"$f":"T_DataComboFile[[#This Row],[2020/21 SAB_Source]]*T_DataComboFile[[#This Row],[G&S reporting level indicator]]","v":0},{"$f":"T_DataComboFile[[#This Row],[2020/21 Baseline_Source]]*T_DataComboFile[[#This Row],[G&S reporting level indicator]]","v":0},{"$f":"T_DataComboFile[[#This Row],[2021/22 Baseline_Source]]*T_DataComboFile[[#This Row],[G&S reporting level indicator]]","v":0},{"$f":"T_DataComboFile[[#This Row],[2022/23 Baseline_Source]]*T_DataComboFile[[#This Row],[G&S reporting level indicator]]","v":0},{"$f":"T_DataComboFile[[#This Row],[2023/24 Baseline_Source]]*T_DataComboFile[[#This Row],[G&S reporting level indicator]]","v":0},null,null,null,null,null,null,{"$f":"T_DataComboFile[[#This Row],[2021/22 Baseline]]+T_DataComboFile[[#This Row],[2021/22 Reduction]]+T_DataComboFile[[#This Row],[2021/22 Increase]]","v":0},{"$f":"T_DataComboFile[[#This Row],[2022/23 Baseline]]+T_DataComboFile[[#This Row],[2022/23 Reduction]]+T_DataComboFile[[#This Row],[2022/23 Increase]]","v":0},{"$f":"T_DataComboFile[[#This Row],[2023/24 Baseline]]+T_DataComboFile[[#This Row],[2023/24 Reduction]]+T_DataComboFile[[#This Row],[2023/24 Increase]]","v":0}]
[null,null,"2021_22","ENE2020",36,3,3,null,70991,36,3,3,null,"070991","36|03|03",2,2,9,51,55,"02|02|09|51|55","National","Small Business Development","Integrated Cooperative Development","Supplier Development and Market Access Support",null,"Capital","Transfers and subsidies","Non-profit institutions","Non-profit institutions","Non-profit institutions",null,null,null,0,0,0,0,0,0,0,0,0,0,0,0,0,0,null,{"$f":"IF(T_DataComboFile[[#This Row],[G&S reporting level indicator]]=1,$AX$16,\"Not applicable\")","v":"Level 3"},{"$f":"IF(AND($AX$16=\"Level 3\",T_DataComboFile[[#This Row],[Econ3]] = \"Goods and services\"),IF(T_DataComboFile[[#This Row],[Econ4]] = T_DataComboFile[[#This Row],[Econ3]],1,0),IF(AND($AX$16=\"Level 4\",T_DataComboFile[[#This Row],[Econ4]] = \"Goods and services\"),0,1))","v":1},{"$f":"T_DataComboFile[[#This Row],[2016/17_Source]]*T_DataComboFile[[#This Row],[G&S reporting level indicator]]","v":0},{"$f":"T_DataComboFile[[#This Row],[2017/18_Source]]*T_DataComboFile[[#This Row],[G&S reporting level indicator]]","v":0},{"$f":"T_DataComboFile[[#This Row],[2018/19_Source]]*T_DataComboFile[[#This Row],[G&S reporting level indicator]]","v":0},{"$f":"T_DataComboFile[[#This Row],[2019/20 Main appropriation_Source]]*T_DataComboFile[[#This Row],[G&S reporting level indicator]]","v":0},{"$f":"T_DataComboFile[[#This Row],[2019/20 Adjusted appropriation_Source]]*T_DataComboFile[[#This Row],[G&S reporting level indicator]]","v":0},{"$f":"T_DataComboFile[[#This Row],[2019/20 Revised estimate_Source]]*T_DataComboFile[[#This Row],[G&S reporting level indicator]]","v":0},{"$f":"T_DataComboFile[[#This Row],[2019/20 Preliminary outcome_Source]]*T_DataComboFile[[#This Row],[G&S reporting level indicator]]","v":0},{"$f":"T_DataComboFile[[#This Row],[2020/21 Original_Source]]*T_DataComboFile[[#This Row],[G&S reporting level indicator]]","v":0},{"$f":"T_DataComboFile[[#This Row],[2020/21 SAB_Source]]*T_DataComboFile[[#This Row],[G&S reporting level indicator]]","v":0},{"$f":"T_DataComboFile[[#This Row],[2020/21 Baseline_Source]]*T_DataComboFile[[#This Row],[G&S reporting level indicator]]","v":0},{"$f":"T_DataComboFile[[#This Row],[2021/22 Baseline_Source]]*T_DataComboFile[[#This Row],[G&S reporting level indicator]]","v":0},{"$f":"T_DataComboFile[[#This Row],[2022/23 Baseline_Source]]*T_DataComboFile[[#This Row],[G&S reporting level indicator]]","v":0},{"$f":"T_DataComboFile[[#This Row],[2023/24 Baseline_Source]]*T_DataComboFile[[#This Row],[G&S reporting level indicator]]","v":0},null,null,null,null,null,null,{"$f":"T_DataComboFile[[#This Row],[2021/22 Baseline]]+T_DataComboFile[[#This Row],[2021/22 Reduction]]+T_DataComboFile[[#This Row],[2021/22 Increase]]","v":0},{"$f":"T_DataComboFile[[#This Row],[2022/23 Baseline]]+T_DataComboFile[[#This Row],[2022/23 Reduction]]+T_DataComboFile[[#This Row],[2022/23 Increase]]","v":0},{"$f":"T_DataComboFile[[#This Row],[2023/24 Baseline]]+T_DataComboFile[[#This Row],[2023/24 Reduction]]+T_DataComboFile[[#This Row],[2023/24 Increase]]","v":0}]
[null,null,"2021_22","ENE2020",36,3,3,null,70992,36,3,3,null,"070992","36|03|03",2,2,10,53,57,"02|02|10|53|57","National","Small Business Development","Integrated Cooperative Development","Supplier Development and Market Access Support",null,"Capital","Transfers and subsidies","Households","Other transfers to households","Other transfers to households",null,null,null,0,0,0,0,0,0,0,0,0,0,0,0,0,0,null,{"$f":"IF(T_DataComboFile[[#This Row],[G&S reporting level indicator]]=1,$AX$16,\"Not applicable\")","v":"Level 3"},{"$f":"IF(AND($AX$16=\"Level 3\",T_DataComboFile[[#This Row],[Econ3]] = \"Goods and services\"),IF(T_DataComboFile[[#This Row],[Econ4]] = T_DataComboFile[[#This Row],[Econ3]],1,0),IF(AND($AX$16=\"Level 4\",T_DataComboFile[[#This Row],[Econ4]] = \"Goods and services\"),0,1))","v":1},{"$f":"T_DataComboFile[[#This Row],[2016/17_Source]]*T_DataComboFile[[#This Row],[G&S reporting level indicator]]","v":0},{"$f":"T_DataComboFile[[#This Row],[2017/18_Source]]*T_DataComboFile[[#This Row],[G&S reporting level indicator]]","v":0},{"$f":"T_DataComboFile[[#This Row],[2018/19_Source]]*T_DataComboFile[[#This Row],[G&S reporting level indicator]]","v":0},{"$f":"T_DataComboFile[[#This Row],[2019/20 Main appropriation_Source]]*T_DataComboFile[[#This Row],[G&S reporting level indicator]]","v":0},{"$f":"T_DataComboFile[[#This Row],[2019/20 Adjusted appropriation_Source]]*T_DataComboFile[[#This Row],[G&S reporting level indicator]]","v":0},{"$f":"T_DataComboFile[[#This Row],[2019/20 Revised estimate_Source]]*T_DataComboFile[[#This Row],[G&S reporting level indicator]]","v":0},{"$f":"T_DataComboFile[[#This Row],[2019/20 Preliminary outcome_Source]]*T_DataComboFile[[#This Row],[G&S reporting level indicator]]","v":0},{"$f":"T_DataComboFile[[#This Row],[2020/21 Original_Source]]*T_DataComboFile[[#This Row],[G&S reporting level indicator]]","v":0},{"$f":"T_DataComboFile[[#This Row],[2020/21 SAB_Source]]*T_DataComboFile[[#This Row],[G&S reporting level indicator]]","v":0},{"$f":"T_DataComboFile[[#This Row],[2020/21 Baseline_Source]]*T_DataComboFile[[#This Row],[G&S reporting level indicator]]","v":0},{"$f":"T_DataComboFile[[#This Row],[2021/22 Baseline_Source]]*T_DataComboFile[[#This Row],[G&S reporting level indicator]]","v":0},{"$f":"T_DataComboFile[[#This Row],[2022/23 Baseline_Source]]*T_DataComboFile[[#This Row],[G&S reporting level indicator]]","v":0},{"$f":"T_DataComboFile[[#This Row],[2023/24 Baseline_Source]]*T_DataComboFile[[#This Row],[G&S reporting level indicator]]","v":0},null,null,null,null,null,null,{"$f":"T_DataComboFile[[#This Row],[2021/22 Baseline]]+T_DataComboFile[[#This Row],[2021/22 Reduction]]+T_DataComboFile[[#This Row],[2021/22 Increase]]","v":0},{"$f":"T_DataComboFile[[#This Row],[2022/23 Baseline]]+T_DataComboFile[[#This Row],[2022/23 Reduction]]+T_DataComboFile[[#This Row],[2022/23 Increase]]","v":0},{"$f":"T_DataComboFile[[#This Row],[2023/24 Baseline]]+T_DataComboFile[[#This Row],[2023/24 Reduction]]+T_DataComboFile[[#This Row],[2023/24 Increase]]","v":0}]
[null,null,"2021_22","ENE2020",36,3,3,null,70993,36,3,3,null,"070993","36|03|03",2,3,11,54,58,"02|03|11|54|58","National","Small Business Development","Integrated Cooperative Development","Supplier Development and Market Access Support",null,"Capital","Payments for capital assets","Buildings and other fixed structures","Buildings","Buildings",null,null,null,0,0,0,0,0,0,0,0,0,0,0,0,0,0,null,{"$f":"IF(T_DataComboFile[[#This Row],[G&S reporting level indicator]]=1,$AX$16,\"Not applicable\")","v":"Level 3"},{"$f":"IF(AND($AX$16=\"Level 3\",T_DataComboFile[[#This Row],[Econ3]] = \"Goods and services\"),IF(T_DataComboFile[[#This Row],[Econ4]] = T_DataComboFile[[#This Row],[Econ3]],1,0),IF(AND($AX$16=\"Level 4\",T_DataComboFile[[#This Row],[Econ4]] = \"Goods and services\"),0,1))","v":1},{"$f":"T_DataComboFile[[#This Row],[2016/17_Source]]*T_DataComboFile[[#This Row],[G&S reporting level indicator]]","v":0},{"$f":"T_DataComboFile[[#This Row],[2017/18_Source]]*T_DataComboFile[[#This Row],[G&S reporting level indicator]]","v":0},{"$f":"T_DataComboFile[[#This Row],[2018/19_Source]]*T_DataComboFile[[#This Row],[G&S reporting level indicator]]","v":0},{"$f":"T_DataComboFile[[#This Row],[2019/20 Main appropriation_Source]]*T_DataComboFile[[#This Row],[G&S reporting level indicator]]","v":0},{"$f":"T_DataComboFile[[#This Row],[2019/20 Adjusted appropriation_Source]]*T_DataComboFile[[#This Row],[G&S reporting level indicator]]","v":0},{"$f":"T_DataComboFile[[#This Row],[2019/20 Revised estimate_Source]]*T_DataComboFile[[#This Row],[G&S reporting level indicator]]","v":0},{"$f":"T_DataComboFile[[#This Row],[2019/20 Preliminary outcome_Source]]*T_DataComboFile[[#This Row],[G&S reporting level indicator]]","v":0},{"$f":"T_DataComboFile[[#This Row],[2020/21 Original_Source]]*T_DataComboFile[[#This Row],[G&S reporting level indicator]]","v":0},{"$f":"T_DataComboFile[[#This Row],[2020/21 SAB_Source]]*T_DataComboFile[[#This Row],[G&S reporting level indicator]]","v":0},{"$f":"T_DataComboFile[[#This Row],[2020/21 Baseline_Source]]*T_DataComboFile[[#This Row],[G&S reporting level indicator]]","v":0},{"$f":"T_DataComboFile[[#This Row],[2021/22 Baseline_Source]]*T_DataComboFile[[#This Row],[G&S reporting level indicator]]","v":0},{"$f":"T_DataComboFile[[#This Row],[2022/23 Baseline_Source]]*T_DataComboFile[[#This Row],[G&S reporting level indicator]]","v":0},{"$f":"T_DataComboFile[[#This Row],[2023/24 Baseline_Source]]*T_DataComboFile[[#This Row],[G&S reporting level indicator]]","v":0},null,null,null,null,null,null,{"$f":"T_DataComboFile[[#This Row],[2021/22 Baseline]]+T_DataComboFile[[#This Row],[2021/22 Reduction]]+T_DataComboFile[[#This Row],[2021/22 Increase]]","v":0},{"$f":"T_DataComboFile[[#This Row],[2022/23 Baseline]]+T_DataComboFile[[#This Row],[2022/23 Reduction]]+T_DataComboFile[[#This Row],[2022/23 Increase]]","v":0},{"$f":"T_DataComboFile[[#This Row],[2023/24 Baseline]]+T_DataComboFile[[#This Row],[2023/24 Reduction]]+T_DataComboFile[[#This Row],[2023/24 Increase]]","v":0}]
[null,null,"2021_22","ENE2020",36,3,3,null,70994,36,3,3,null,"070994","36|03|03",2,3,11,55,59,"02|03|11|55|59","National","Small Business Development","Integrated Cooperative Development","Supplier Development and Market Access Support",null,"Capital","Payments for capital assets","Buildings and other fixed structures","Other fixed structures","Other fixed structures",null,null,null,0,0,0,0,0,0,0,0,0,0,0,0,0,0,null,{"$f":"IF(T_DataComboFile[[#This Row],[G&S reporting level indicator]]=1,$AX$16,\"Not applicable\")","v":"Level 3"},{"$f":"IF(AND($AX$16=\"Level 3\",T_DataComboFile[[#This Row],[Econ3]] = \"Goods and services\"),IF(T_DataComboFile[[#This Row],[Econ4]] = T_DataComboFile[[#This Row],[Econ3]],1,0),IF(AND($AX$16=\"Level 4\",T_DataComboFile[[#This Row],[Econ4]] = \"Goods and services\"),0,1))","v":1},{"$f":"T_DataComboFile[[#This Row],[2016/17_Source]]*T_DataComboFile[[#This Row],[G&S reporting level indicator]]","v":0},{"$f":"T_DataComboFile[[#This Row],[2017/18_Source]]*T_DataComboFile[[#This Row],[G&S reporting level indicator]]","v":0},{"$f":"T_DataComboFile[[#This Row],[2018/19_Source]]*T_DataComboFile[[#This Row],[G&S reporting level indicator]]","v":0},{"$f":"T_DataComboFile[[#This Row],[2019/20 Main appropriation_Source]]*T_DataComboFile[[#This Row],[G&S reporting level indicator]]","v":0},{"$f":"T_DataComboFile[[#This Row],[2019/20 Adjusted appropriation_Source]]*T_DataComboFile[[#This Row],[G&S reporting level indicator]]","v":0},{"$f":"T_DataComboFile[[#This Row],[2019/20 Revised estimate_Source]]*T_DataComboFile[[#This Row],[G&S reporting level indicator]]","v":0},{"$f":"T_DataComboFile[[#This Row],[2019/20 Preliminary outcome_Source]]*T_DataComboFile[[#This Row],[G&S reporting level indicator]]","v":0},{"$f":"T_DataComboFile[[#This Row],[2020/21 Original_Source]]*T_DataComboFile[[#This Row],[G&S reporting level indicator]]","v":0},{"$f":"T_DataComboFile[[#This Row],[2020/21 SAB_Source]]*T_DataComboFile[[#This Row],[G&S reporting level indicator]]","v":0},{"$f":"T_DataComboFile[[#This Row],[2020/21 Baseline_Source]]*T_DataComboFile[[#This Row],[G&S reporting level indicator]]","v":0},{"$f":"T_DataComboFile[[#This Row],[2021/22 Baseline_Source]]*T_DataComboFile[[#This Row],[G&S reporting level indicator]]","v":0},{"$f":"T_DataComboFile[[#This Row],[2022/23 Baseline_Source]]*T_DataComboFile[[#This Row],[G&S reporting level indicator]]","v":0},{"$f":"T_DataComboFile[[#This Row],[2023/24 Baseline_Source]]*T_DataComboFile[[#This Row],[G&S reporting level indicator]]","v":0},null,null,null,null,null,null,{"$f":"T_DataComboFile[[#This Row],[2021/22 Baseline]]+T_DataComboFile[[#This Row],[2021/22 Reduction]]+T_DataComboFile[[#This Row],[2021/22 Increase]]","v":0},{"$f":"T_DataComboFile[[#This Row],[2022/23 Baseline]]+T_DataComboFile[[#This Row],[2022/23 Reduction]]+T_DataComboFile[[#This Row],[2022/23 Increase]]","v":0},{"$f":"T_DataComboFile[[#This Row],[2023/24 Baseline]]+T_DataComboFile[[#This Row],[2023/24 Reduction]]+T_DataComboFile[[#This Row],[2023/24 Increase]]","v":0}]
[null,null,"2021_22","ENE2020",36,3,3,null,70995,36,3,3,null,"070995","36|03|03",2,3,12,56,60,"02|03|12|56|60","National","Small Business Development","Integrated Cooperative Development","Supplier Development and Market Access Support",null,"Capital","Payments for capital assets","Machinery and equipment","Transport equipment","Transport equipment",null,null,null,0,0,0,0,0,0,0,0,0,0,0,0,0,0,null,{"$f":"IF(T_DataComboFile[[#This Row],[G&S reporting level indicator]]=1,$AX$16,\"Not applicable\")","v":"Level 3"},{"$f":"IF(AND($AX$16=\"Level 3\",T_DataComboFile[[#This Row],[Econ3]] = \"Goods and services\"),IF(T_DataComboFile[[#This Row],[Econ4]] = T_DataComboFile[[#This Row],[Econ3]],1,0),IF(AND($AX$16=\"Level 4\",T_DataComboFile[[#This Row],[Econ4]] = \"Goods and services\"),0,1))","v":1},{"$f":"T_DataComboFile[[#This Row],[2016/17_Source]]*T_DataComboFile[[#This Row],[G&S reporting level indicator]]","v":0},{"$f":"T_DataComboFile[[#This Row],[2017/18_Source]]*T_DataComboFile[[#This Row],[G&S reporting level indicator]]","v":0},{"$f":"T_DataComboFile[[#This Row],[2018/19_Source]]*T_DataComboFile[[#This Row],[G&S reporting level indicator]]","v":0},{"$f":"T_DataComboFile[[#This Row],[2019/20 Main appropriation_Source]]*T_DataComboFile[[#This Row],[G&S reporting level indicator]]","v":0},{"$f":"T_DataComboFile[[#This Row],[2019/20 Adjusted appropriation_Source]]*T_DataComboFile[[#This Row],[G&S reporting level indicator]]","v":0},{"$f":"T_DataComboFile[[#This Row],[2019/20 Revised estimate_Source]]*T_DataComboFile[[#This Row],[G&S reporting level indicator]]","v":0},{"$f":"T_DataComboFile[[#This Row],[2019/20 Preliminary outcome_Source]]*T_DataComboFile[[#This Row],[G&S reporting level indicator]]","v":0},{"$f":"T_DataComboFile[[#This Row],[2020/21 Original_Source]]*T_DataComboFile[[#This Row],[G&S reporting level indicator]]","v":0},{"$f":"T_DataComboFile[[#This Row],[2020/21 SAB_Source]]*T_DataComboFile[[#This Row],[G&S reporting level indicator]]","v":0},{"$f":"T_DataComboFile[[#This Row],[2020/21 Baseline_Source]]*T_DataComboFile[[#This Row],[G&S reporting level indicator]]","v":0},{"$f":"T_DataComboFile[[#This Row],[2021/22 Baseline_Source]]*T_DataComboFile[[#This Row],[G&S reporting level indicator]]","v":0},{"$f":"T_DataComboFile[[#This Row],[2022/23 Baseline_Source]]*T_DataComboFile[[#This Row],[G&S reporting level indicator]]","v":0},{"$f":"T_DataComboFile[[#This Row],[2023/24 Baseline_Source]]*T_DataComboFile[[#This Row],[G&S reporting level indicator]]","v":0},null,null,null,null,null,null,{"$f":"T_DataComboFile[[#This Row],[2021/22 Baseline]]+T_DataComboFile[[#This Row],[2021/22 Reduction]]+T_DataComboFile[[#This Row],[2021/22 Increase]]","v":0},{"$f":"T_DataComboFile[[#This Row],[2022/23 Baseline]]+T_DataComboFile[[#This Row],[2022/23 Reduction]]+T_DataComboFile[[#This Row],[2022/23 Increase]]","v":0},{"$f":"T_DataComboFile[[#This Row],[2023/24 Baseline]]+T_DataComboFile[[#This Row],[2023/24 Reduction]]+T_DataComboFile[[#This Row],[2023/24 Increase]]","v":0}]
["NAT|Non-transfer item","36|Other machinery and equipment","2021_22","ENE2020",36,3,3,17385,70996,36,3,3,17385,"070996","36|03|03",2,3,12,57,61,"02|03|12|57|61","National","Small Business Development","Integrated Cooperative Development","Supplier Development and Market Access Support","Non-transfer item","Capital","Payments for capital assets","Machinery and equipment","Other machinery and equipment","Other machinery and equipment","Economic development","Industrialisation and exports","NAT",0,31,116,12,129,129,129,121,121,121,127,133,139,1,null,{"$f":"IF(T_DataComboFile[[#This Row],[G&S reporting level indicator]]=1,$AX$16,\"Not applicable\")","v":"Level 3"},{"$f":"IF(AND($AX$16=\"Level 3\",T_DataComboFile[[#This Row],[Econ3]] = \"Goods and services\"),IF(T_DataComboFile[[#This Row],[Econ4]] = T_DataComboFile[[#This Row],[Econ3]],1,0),IF(AND($AX$16=\"Level 4\",T_DataComboFile[[#This Row],[Econ4]] = \"Goods and services\"),0,1))","v":1},{"$f":"T_DataComboFile[[#This Row],[2016/17_Source]]*T_DataComboFile[[#This Row],[G&S reporting level indicator]]","v":0},{"$f":"T_DataComboFile[[#This Row],[2017/18_Source]]*T_DataComboFile[[#This Row],[G&S reporting level indicator]]","v":31},{"$f":"T_DataComboFile[[#This Row],[2018/19_Source]]*T_DataComboFile[[#This Row],[G&S reporting level indicator]]","v":116},{"$f":"T_DataComboFile[[#This Row],[2019/20 Main appropriation_Source]]*T_DataComboFile[[#This Row],[G&S reporting level indicator]]","v":12},{"$f":"T_DataComboFile[[#This Row],[2019/20 Adjusted appropriation_Source]]*T_DataComboFile[[#This Row],[G&S reporting level indicator]]","v":129},{"$f":"T_DataComboFile[[#This Row],[2019/20 Revised estimate_Source]]*T_DataComboFile[[#This Row],[G&S reporting level indicator]]","v":129},{"$f":"T_DataComboFile[[#This Row],[2019/20 Preliminary outcome_Source]]*T_DataComboFile[[#This Row],[G&S reporting level indicator]]","v":129},{"$f":"T_DataComboFile[[#This Row],[2020/21 Original_Source]]*T_DataComboFile[[#This Row],[G&S reporting level indicator]]","v":121},{"$f":"T_DataComboFile[[#This Row],[2020/21 SAB_Source]]*T_DataComboFile[[#This Row],[G&S reporting level indicator]]","v":121},{"$f":"T_DataComboFile[[#This Row],[2020/21 Baseline_Source]]*T_DataComboFile[[#This Row],[G&S reporting level indicator]]","v":121},{"$f":"T_DataComboFile[[#This Row],[2021/22 Baseline_Source]]*T_DataComboFile[[#This Row],[G&S reporting level indicator]]","v":127},{"$f":"T_DataComboFile[[#This Row],[2022/23 Baseline_Source]]*T_DataComboFile[[#This Row],[G&S reporting level indicator]]","v":133},{"$f":"T_DataComboFile[[#This Row],[2023/24 Baseline_Source]]*T_DataComboFile[[#This Row],[G&S reporting level indicator]]","v":139},null,null,null,null,null,null,{"$f":"T_DataComboFile[[#This Row],[2021/22 Baseline]]+T_DataComboFile[[#This Row],[2021/22 Reduction]]+T_DataComboFile[[#This Row],[2021/22 Increase]]","v":127},{"$f":"T_DataComboFile[[#This Row],[2022/23 Baseline]]+T_DataComboFile[[#This Row],[2022/23 Reduction]]+T_DataComboFile[[#This Row],[2022/23 Increase]]","v":133},{"$f":"T_DataComboFile[[#This Row],[2023/24 Baseline]]+T_DataComboFile[[#This Row],[2023/24 Reduction]]+T_DataComboFile[[#This Row],[2023/24 Increase]]","v":139}]
[null,null,"2021_22","ENE2020",36,3,3,null,70997,36,3,3,null,"070997","36|03|03",2,3,13,58,62,"02|03|13|58|62","National","Small Business Development","Integrated Cooperative Development","Supplier Development and Market Access Support",null,"Capital","Payments for capital assets","Heritage assets","Heritage assets","Heritage assets",null,null,null,0,0,0,0,0,0,0,0,0,0,0,0,0,0,null,{"$f":"IF(T_DataComboFile[[#This Row],[G&S reporting level indicator]]=1,$AX$16,\"Not applicable\")","v":"Level 3"},{"$f":"IF(AND($AX$16=\"Level 3\",T_DataComboFile[[#This Row],[Econ3]] = \"Goods and services\"),IF(T_DataComboFile[[#This Row],[Econ4]] = T_DataComboFile[[#This Row],[Econ3]],1,0),IF(AND($AX$16=\"Level 4\",T_DataComboFile[[#This Row],[Econ4]] = \"Goods and services\"),0,1))","v":1},{"$f":"T_DataComboFile[[#This Row],[2016/17_Source]]*T_DataComboFile[[#This Row],[G&S reporting level indicator]]","v":0},{"$f":"T_DataComboFile[[#This Row],[2017/18_Source]]*T_DataComboFile[[#This Row],[G&S reporting level indicator]]","v":0},{"$f":"T_DataComboFile[[#This Row],[2018/19_Source]]*T_DataComboFile[[#This Row],[G&S reporting level indicator]]","v":0},{"$f":"T_DataComboFile[[#This Row],[2019/20 Main appropriation_Source]]*T_DataComboFile[[#This Row],[G&S reporting level indicator]]","v":0},{"$f":"T_DataComboFile[[#This Row],[2019/20 Adjusted appropriation_Source]]*T_DataComboFile[[#This Row],[G&S reporting level indicator]]","v":0},{"$f":"T_DataComboFile[[#This Row],[2019/20 Revised estimate_Source]]*T_DataComboFile[[#This Row],[G&S reporting level indicator]]","v":0},{"$f":"T_DataComboFile[[#This Row],[2019/20 Preliminary outcome_Source]]*T_DataComboFile[[#This Row],[G&S reporting level indicator]]","v":0},{"$f":"T_DataComboFile[[#This Row],[2020/21 Original_Source]]*T_DataComboFile[[#This Row],[G&S reporting level indicator]]","v":0},{"$f":"T_DataComboFile[[#This Row],[2020/21 SAB_Source]]*T_DataComboFile[[#This Row],[G&S reporting level indicator]]","v":0},{"$f":"T_DataComboFile[[#This Row],[2020/21 Baseline_Source]]*T_DataComboFile[[#This Row],[G&S reporting level indicator]]","v":0},{"$f":"T_DataComboFile[[#This Row],[2021/22 Baseline_Source]]*T_DataComboFile[[#This Row],[G&S reporting level indicator]]","v":0},{"$f":"T_DataComboFile[[#This Row],[2022/23 Baseline_Source]]*T_DataComboFile[[#This Row],[G&S reporting level indicator]]","v":0},{"$f":"T_DataComboFile[[#This Row],[2023/24 Baseline_Source]]*T_DataComboFile[[#This Row],[G&S reporting level indicator]]","v":0},null,null,null,null,null,null,{"$f":"T_DataComboFile[[#This Row],[2021/22 Baseline]]+T_DataComboFile[[#This Row],[2021/22 Reduction]]+T_DataComboFile[[#This Row],[2021/22 Increase]]","v":0},{"$f":"T_DataComboFile[[#This Row],[2022/23 Baseline]]+T_DataComboFile[[#This Row],[2022/23 Reduction]]+T_DataComboFile[[#This Row],[2022/23 Increase]]","v":0},{"$f":"T_DataComboFile[[#This Row],[2023/24 Baseline]]+T_DataComboFile[[#This Row],[2023/24 Reduction]]+T_DataComboFile[[#This Row],[2023/24 Increase]]","v":0}]
[null,null,"2021_22","ENE2020",36,3,3,null,70998,36,3,3,null,"070998","36|03|03",2,3,14,59,63,"02|03|14|59|63","National","Small Business Development","Integrated Cooperative Development","Supplier Development and Market Access Support",null,"Capital","Payments for capital assets","Specialised military assets","Specialised military assets","Specialised military assets",null,null,null,0,0,0,0,0,0,0,0,0,0,0,0,0,0,null,{"$f":"IF(T_DataComboFile[[#This Row],[G&S reporting level indicator]]=1,$AX$16,\"Not applicable\")","v":"Level 3"},{"$f":"IF(AND($AX$16=\"Level 3\",T_DataComboFile[[#This Row],[Econ3]] = \"Goods and services\"),IF(T_DataComboFile[[#This Row],[Econ4]] = T_DataComboFile[[#This Row],[Econ3]],1,0),IF(AND($AX$16=\"Level 4\",T_DataComboFile[[#This Row],[Econ4]] = \"Goods and services\"),0,1))","v":1},{"$f":"T_DataComboFile[[#This Row],[2016/17_Source]]*T_DataComboFile[[#This Row],[G&S reporting level indicator]]","v":0},{"$f":"T_DataComboFile[[#This Row],[2017/18_Source]]*T_DataComboFile[[#This Row],[G&S reporting level indicator]]","v":0},{"$f":"T_DataComboFile[[#This Row],[2018/19_Source]]*T_DataComboFile[[#This Row],[G&S reporting level indicator]]","v":0},{"$f":"T_DataComboFile[[#This Row],[2019/20 Main appropriation_Source]]*T_DataComboFile[[#This Row],[G&S reporting level indicator]]","v":0},{"$f":"T_DataComboFile[[#This Row],[2019/20 Adjusted appropriation_Source]]*T_DataComboFile[[#This Row],[G&S reporting level indicator]]","v":0},{"$f":"T_DataComboFile[[#This Row],[2019/20 Revised estimate_Source]]*T_DataComboFile[[#This Row],[G&S reporting level indicator]]","v":0},{"$f":"T_DataComboFile[[#This Row],[2019/20 Preliminary outcome_Source]]*T_DataComboFile[[#This Row],[G&S reporting level indicator]]","v":0},{"$f":"T_DataComboFile[[#This Row],[2020/21 Original_Source]]*T_DataComboFile[[#This Row],[G&S reporting level indicator]]","v":0},{"$f":"T_DataComboFile[[#This Row],[2020/21 SAB_Source]]*T_DataComboFile[[#This Row],[G&S reporting level indicator]]","v":0},{"$f":"T_DataComboFile[[#This Row],[2020/21 Baseline_Source]]*T_DataComboFile[[#This Row],[G&S reporting level indicator]]","v":0},{"$f":"T_DataComboFile[[#This Row],[2021/22 Baseline_Source]]*T_DataComboFile[[#This Row],[G&S reporting level indicator]]","v":0},{"$f":"T_DataComboFile[[#This Row],[2022/23 Baseline_Source]]*T_DataComboFile[[#This Row],[G&S reporting level indicator]]","v":0},{"$f":"T_DataComboFile[[#This Row],[2023/24 Baseline_Source]]*T_DataComboFile[[#This Row],[G&S reporting level indicator]]","v":0},null,null,null,null,null,null,{"$f":"T_DataComboFile[[#This Row],[2021/22 Baseline]]+T_DataComboFile[[#This Row],[2021/22 Reduction]]+T_DataComboFile[[#This Row],[2021/22 Increase]]","v":0},{"$f":"T_DataComboFile[[#This Row],[2022/23 Baseline]]+T_DataComboFile[[#This Row],[2022/23 Reduction]]+T_DataComboFile[[#This Row],[2022/23 Increase]]","v":0},{"$f":"T_DataComboFile[[#This Row],[2023/24 Baseline]]+T_DataComboFile[[#This Row],[2023/24 Reduction]]+T_DataComboFile[[#This Row],[2023/24 Increase]]","v":0}]
[null,null,"2021_22","ENE2020",36,3,3,null,70999,36,3,3,null,"070999","36|03|03",2,3,15,60,64,"02|03|15|60|64","National","Small Business Development","Integrated Cooperative Development","Supplier Development and Market Access Support",null,"Capital","Payments for capital assets","Biological assets","Biological assets","Biological assets",null,null,null,0,0,0,0,0,0,0,0,0,0,0,0,0,0,null,{"$f":"IF(T_DataComboFile[[#This Row],[G&S reporting level indicator]]=1,$AX$16,\"Not applicable\")","v":"Level 3"},{"$f":"IF(AND($AX$16=\"Level 3\",T_DataComboFile[[#This Row],[Econ3]] = \"Goods and services\"),IF(T_DataComboFile[[#This Row],[Econ4]] = T_DataComboFile[[#This Row],[Econ3]],1,0),IF(AND($AX$16=\"Level 4\",T_DataComboFile[[#This Row],[Econ4]] = \"Goods and services\"),0,1))","v":1},{"$f":"T_DataComboFile[[#This Row],[2016/17_Source]]*T_DataComboFile[[#This Row],[G&S reporting level indicator]]","v":0},{"$f":"T_DataComboFile[[#This Row],[2017/18_Source]]*T_DataComboFile[[#This Row],[G&S reporting level indicator]]","v":0},{"$f":"T_DataComboFile[[#This Row],[2018/19_Source]]*T_DataComboFile[[#This Row],[G&S reporting level indicator]]","v":0},{"$f":"T_DataComboFile[[#This Row],[2019/20 Main appropriation_Source]]*T_DataComboFile[[#This Row],[G&S reporting level indicator]]","v":0},{"$f":"T_DataComboFile[[#This Row],[2019/20 Adjusted appropriation_Source]]*T_DataComboFile[[#This Row],[G&S reporting level indicator]]","v":0},{"$f":"T_DataComboFile[[#This Row],[2019/20 Revised estimate_Source]]*T_DataComboFile[[#This Row],[G&S reporting level indicator]]","v":0},{"$f":"T_DataComboFile[[#This Row],[2019/20 Preliminary outcome_Source]]*T_DataComboFile[[#This Row],[G&S reporting level indicator]]","v":0},{"$f":"T_DataComboFile[[#This Row],[2020/21 Original_Source]]*T_DataComboFile[[#This Row],[G&S reporting level indicator]]","v":0},{"$f":"T_DataComboFile[[#This Row],[2020/21 SAB_Source]]*T_DataComboFile[[#This Row],[G&S reporting level indicator]]","v":0},{"$f":"T_DataComboFile[[#This Row],[2020/21 Baseline_Source]]*T_DataComboFile[[#This Row],[G&S reporting level indicator]]","v":0},{"$f":"T_DataComboFile[[#This Row],[2021/22 Baseline_Source]]*T_DataComboFile[[#This Row],[G&S reporting level indicator]]","v":0},{"$f":"T_DataComboFile[[#This Row],[2022/23 Baseline_Source]]*T_DataComboFile[[#This Row],[G&S reporting level indicator]]","v":0},{"$f":"T_DataComboFile[[#This Row],[2023/24 Baseline_Source]]*T_DataComboFile[[#This Row],[G&S reporting level indicator]]","v":0},null,null,null,null,null,null,{"$f":"T_DataComboFile[[#This Row],[2021/22 Baseline]]+T_DataComboFile[[#This Row],[2021/22 Reduction]]+T_DataComboFile[[#This Row],[2021/22 Increase]]","v":0},{"$f":"T_DataComboFile[[#This Row],[2022/23 Baseline]]+T_DataComboFile[[#This Row],[2022/23 Reduction]]+T_DataComboFile[[#This Row],[2022/23 Increase]]","v":0},{"$f":"T_DataComboFile[[#This Row],[2023/24 Baseline]]+T_DataComboFile[[#This Row],[2023/24 Reduction]]+T_DataComboFile[[#This Row],[2023/24 Increase]]","v":0}]
[null,null,"2021_22","ENE2020",36,3,3,null,71000,36,3,3,null,"071000","36|03|03",2,3,16,61,65,"02|03|16|61|65","National","Small Business Development","Integrated Cooperative Development","Supplier Development and Market Access Support",null,"Capital","Payments for capital assets","Land and sub-soil assets","Land and sub-soil assets","Land and sub-soil assets",null,null,null,0,0,0,0,0,0,0,0,0,0,0,0,0,0,null,{"$f":"IF(T_DataComboFile[[#This Row],[G&S reporting level indicator]]=1,$AX$16,\"Not applicable\")","v":"Level 3"},{"$f":"IF(AND($AX$16=\"Level 3\",T_DataComboFile[[#This Row],[Econ3]] = \"Goods and services\"),IF(T_DataComboFile[[#This Row],[Econ4]] = T_DataComboFile[[#This Row],[Econ3]],1,0),IF(AND($AX$16=\"Level 4\",T_DataComboFile[[#This Row],[Econ4]] = \"Goods and services\"),0,1))","v":1},{"$f":"T_DataComboFile[[#This Row],[2016/17_Source]]*T_DataComboFile[[#This Row],[G&S reporting level indicator]]","v":0},{"$f":"T_DataComboFile[[#This Row],[2017/18_Source]]*T_DataComboFile[[#This Row],[G&S reporting level indicator]]","v":0},{"$f":"T_DataComboFile[[#This Row],[2018/19_Source]]*T_DataComboFile[[#This Row],[G&S reporting level indicator]]","v":0},{"$f":"T_DataComboFile[[#This Row],[2019/20 Main appropriation_Source]]*T_DataComboFile[[#This Row],[G&S reporting level indicator]]","v":0},{"$f":"T_DataComboFile[[#This Row],[2019/20 Adjusted appropriation_Source]]*T_DataComboFile[[#This Row],[G&S reporting level indicator]]","v":0},{"$f":"T_DataComboFile[[#This Row],[2019/20 Revised estimate_Source]]*T_DataComboFile[[#This Row],[G&S reporting level indicator]]","v":0},{"$f":"T_DataComboFile[[#This Row],[2019/20 Preliminary outcome_Source]]*T_DataComboFile[[#This Row],[G&S reporting level indicator]]","v":0},{"$f":"T_DataComboFile[[#This Row],[2020/21 Original_Source]]*T_DataComboFile[[#This Row],[G&S reporting level indicator]]","v":0},{"$f":"T_DataComboFile[[#This Row],[2020/21 SAB_Source]]*T_DataComboFile[[#This Row],[G&S reporting level indicator]]","v":0},{"$f":"T_DataComboFile[[#This Row],[2020/21 Baseline_Source]]*T_DataComboFile[[#This Row],[G&S reporting level indicator]]","v":0},{"$f":"T_DataComboFile[[#This Row],[2021/22 Baseline_Source]]*T_DataComboFile[[#This Row],[G&S reporting level indicator]]","v":0},{"$f":"T_DataComboFile[[#This Row],[2022/23 Baseline_Source]]*T_DataComboFile[[#This Row],[G&S reporting level indicator]]","v":0},{"$f":"T_DataComboFile[[#This Row],[2023/24 Baseline_Source]]*T_DataComboFile[[#This Row],[G&S reporting level indicator]]","v":0},null,null,null,null,null,null,{"$f":"T_DataComboFile[[#This Row],[2021/22 Baseline]]+T_DataComboFile[[#This Row],[2021/22 Reduction]]+T_DataComboFile[[#This Row],[2021/22 Increase]]","v":0},{"$f":"T_DataComboFile[[#This Row],[2022/23 Baseline]]+T_DataComboFile[[#This Row],[2022/23 Reduction]]+T_DataComboFile[[#This Row],[2022/23 Increase]]","v":0},{"$f":"T_DataComboFile[[#This Row],[2023/24 Baseline]]+T_DataComboFile[[#This Row],[2023/24 Reduction]]+T_DataComboFile[[#This Row],[2023/24 Increase]]","v":0}]
[null,null,"2021_22","ENE2020",36,3,3,null,71001,36,3,3,null,"071001","36|03|03",2,3,17,62,66,"02|03|17|62|66","National","Small Business Development","Integrated Cooperative Development","Supplier Development and Market Access Support",null,"Capital","Payments for capital assets","Software and other intangible assets","Software and other intangible assets","Software and other intangible assets",null,null,null,0,0,0,0,0,0,0,0,0,0,0,0,0,0,null,{"$f":"IF(T_DataComboFile[[#This Row],[G&S reporting level indicator]]=1,$AX$16,\"Not applicable\")","v":"Level 3"},{"$f":"IF(AND($AX$16=\"Level 3\",T_DataComboFile[[#This Row],[Econ3]] = \"Goods and services\"),IF(T_DataComboFile[[#This Row],[Econ4]] = T_DataComboFile[[#This Row],[Econ3]],1,0),IF(AND($AX$16=\"Level 4\",T_DataComboFile[[#This Row],[Econ4]] = \"Goods and services\"),0,1))","v":1},{"$f":"T_DataComboFile[[#This Row],[2016/17_Source]]*T_DataComboFile[[#This Row],[G&S reporting level indicator]]","v":0},{"$f":"T_DataComboFile[[#This Row],[2017/18_Source]]*T_DataComboFile[[#This Row],[G&S reporting level indicator]]","v":0},{"$f":"T_DataComboFile[[#This Row],[2018/19_Source]]*T_DataComboFile[[#This Row],[G&S reporting level indicator]]","v":0},{"$f":"T_DataComboFile[[#This Row],[2019/20 Main appropriation_Source]]*T_DataComboFile[[#This Row],[G&S reporting level indicator]]","v":0},{"$f":"T_DataComboFile[[#This Row],[2019/20 Adjusted appropriation_Source]]*T_DataComboFile[[#This Row],[G&S reporting level indicator]]","v":0},{"$f":"T_DataComboFile[[#This Row],[2019/20 Revised estimate_Source]]*T_DataComboFile[[#This Row],[G&S reporting level indicator]]","v":0},{"$f":"T_DataComboFile[[#This Row],[2019/20 Preliminary outcome_Source]]*T_DataComboFile[[#This Row],[G&S reporting level indicator]]","v":0},{"$f":"T_DataComboFile[[#This Row],[2020/21 Original_Source]]*T_DataComboFile[[#This Row],[G&S reporting level indicator]]","v":0},{"$f":"T_DataComboFile[[#This Row],[2020/21 SAB_Source]]*T_DataComboFile[[#This Row],[G&S reporting level indicator]]","v":0},{"$f":"T_DataComboFile[[#This Row],[2020/21 Baseline_Source]]*T_DataComboFile[[#This Row],[G&S reporting level indicator]]","v":0},{"$f":"T_DataComboFile[[#This Row],[2021/22 Baseline_Source]]*T_DataComboFile[[#This Row],[G&S reporting level indicator]]","v":0},{"$f":"T_DataComboFile[[#This Row],[2022/23 Baseline_Source]]*T_DataComboFile[[#This Row],[G&S reporting level indicator]]","v":0},{"$f":"T_DataComboFile[[#This Row],[2023/24 Baseline_Source]]*T_DataComboFile[[#This Row],[G&S reporting level indicator]]","v":0},null,null,null,null,null,null,{"$f":"T_DataComboFile[[#This Row],[2021/22 Baseline]]+T_DataComboFile[[#This Row],[2021/22 Reduction]]+T_DataComboFile[[#This Row],[2021/22 Increase]]","v":0},{"$f":"T_DataComboFile[[#This Row],[2022/23 Baseline]]+T_DataComboFile[[#This Row],[2022/23 Reduction]]+T_DataComboFile[[#This Row],[2022/23 Increase]]","v":0},{"$f":"T_DataComboFile[[#This Row],[2023/24 Baseline]]+T_DataComboFile[[#This Row],[2023/24 Reduction]]+T_DataComboFile[[#This Row],[2023/24 Increase]]","v":0}]
[null,null,"2021_22","ENE2020",36,3,3,null,71002,36,3,3,null,"071002","36|03|03",3,4,18,63,67,"03|04|18|63|67","National","Small Business Development","Integrated Cooperative Development","Supplier Development and Market Access Support",null,"Payments for financial assets","Payments for financial assets","Payments for financial assets","Payments for financial assets","Payments for financial assets",null,null,null,0,0,0,0,0,0,0,0,0,0,0,0,0,0,null,{"$f":"IF(T_DataComboFile[[#This Row],[G&S reporting level indicator]]=1,$AX$16,\"Not applicable\")","v":"Level 3"},{"$f":"IF(AND($AX$16=\"Level 3\",T_DataComboFile[[#This Row],[Econ3]] = \"Goods and services\"),IF(T_DataComboFile[[#This Row],[Econ4]] = T_DataComboFile[[#This Row],[Econ3]],1,0),IF(AND($AX$16=\"Level 4\",T_DataComboFile[[#This Row],[Econ4]] = \"Goods and services\"),0,1))","v":1},{"$f":"T_DataComboFile[[#This Row],[2016/17_Source]]*T_DataComboFile[[#This Row],[G&S reporting level indicator]]","v":0},{"$f":"T_DataComboFile[[#This Row],[2017/18_Source]]*T_DataComboFile[[#This Row],[G&S reporting level indicator]]","v":0},{"$f":"T_DataComboFile[[#This Row],[2018/19_Source]]*T_DataComboFile[[#This Row],[G&S reporting level indicator]]","v":0},{"$f":"T_DataComboFile[[#This Row],[2019/20 Main appropriation_Source]]*T_DataComboFile[[#This Row],[G&S reporting level indicator]]","v":0},{"$f":"T_DataComboFile[[#This Row],[2019/20 Adjusted appropriation_Source]]*T_DataComboFile[[#This Row],[G&S reporting level indicator]]","v":0},{"$f":"T_DataComboFile[[#This Row],[2019/20 Revised estimate_Source]]*T_DataComboFile[[#This Row],[G&S reporting level indicator]]","v":0},{"$f":"T_DataComboFile[[#This Row],[2019/20 Preliminary outcome_Source]]*T_DataComboFile[[#This Row],[G&S reporting level indicator]]","v":0},{"$f":"T_DataComboFile[[#This Row],[2020/21 Original_Source]]*T_DataComboFile[[#This Row],[G&S reporting level indicator]]","v":0},{"$f":"T_DataComboFile[[#This Row],[2020/21 SAB_Source]]*T_DataComboFile[[#This Row],[G&S reporting level indicator]]","v":0},{"$f":"T_DataComboFile[[#This Row],[2020/21 Baseline_Source]]*T_DataComboFile[[#This Row],[G&S reporting level indicator]]","v":0},{"$f":"T_DataComboFile[[#This Row],[2021/22 Baseline_Source]]*T_DataComboFile[[#This Row],[G&S reporting level indicator]]","v":0},{"$f":"T_DataComboFile[[#This Row],[2022/23 Baseline_Source]]*T_DataComboFile[[#This Row],[G&S reporting level indicator]]","v":0},{"$f":"T_DataComboFile[[#This Row],[2023/24 Baseline_Source]]*T_DataComboFile[[#This Row],[G&S reporting level indicator]]","v":0},null,null,null,null,null,null,{"$f":"T_DataComboFile[[#This Row],[2021/22 Baseline]]+T_DataComboFile[[#This Row],[2021/22 Reduction]]+T_DataComboFile[[#This Row],[2021/22 Increase]]","v":0},{"$f":"T_DataComboFile[[#This Row],[2022/23 Baseline]]+T_DataComboFile[[#This Row],[2022/23 Reduction]]+T_DataComboFile[[#This Row],[2022/23 Increase]]","v":0},{"$f":"T_DataComboFile[[#This Row],[2023/24 Baseline]]+T_DataComboFile[[#This Row],[2023/24 Reduction]]+T_DataComboFile[[#This Row],[2023/24 Increase]]","v":0}]
["NAT|Non-transfer item","36|Salaries and wages","2021_22","ENE2020",36,4,1,17386,71003,36,4,1,17386,"071003","36|04|01",1,1,1,1,1,"01|01|01|01|01","National","Small Business Development","Enterprise Development and Entrepreneurship","Enterprise and Supplier Development","Non-transfer item","Current","Current payments","Compensation of employees","Salaries and wages","Salaries and wages","Economic development","Industrialisation and exports","NAT",16572,12333,6350,7822,7822,7822,7822,8184,8184,7720,8807,9023,9421,1,null,{"$f":"IF(T_DataComboFile[[#This Row],[G&S reporting level indicator]]=1,$AX$16,\"Not applicable\")","v":"Level 3"},{"$f":"IF(AND($AX$16=\"Level 3\",T_DataComboFile[[#This Row],[Econ3]] = \"Goods and services\"),IF(T_DataComboFile[[#This Row],[Econ4]] = T_DataComboFile[[#This Row],[Econ3]],1,0),IF(AND($AX$16=\"Level 4\",T_DataComboFile[[#This Row],[Econ4]] = \"Goods and services\"),0,1))","v":1},{"$f":"T_DataComboFile[[#This Row],[2016/17_Source]]*T_DataComboFile[[#This Row],[G&S reporting level indicator]]","v":16572},{"$f":"T_DataComboFile[[#This Row],[2017/18_Source]]*T_DataComboFile[[#This Row],[G&S reporting level indicator]]","v":12333},{"$f":"T_DataComboFile[[#This Row],[2018/19_Source]]*T_DataComboFile[[#This Row],[G&S reporting level indicator]]","v":6350},{"$f":"T_DataComboFile[[#This Row],[2019/20 Main appropriation_Source]]*T_DataComboFile[[#This Row],[G&S reporting level indicator]]","v":7822},{"$f":"T_DataComboFile[[#This Row],[2019/20 Adjusted appropriation_Source]]*T_DataComboFile[[#This Row],[G&S reporting level indicator]]","v":7822},{"$f":"T_DataComboFile[[#This Row],[2019/20 Revised estimate_Source]]*T_DataComboFile[[#This Row],[G&S reporting level indicator]]","v":7822},{"$f":"T_DataComboFile[[#This Row],[2019/20 Preliminary outcome_Source]]*T_DataComboFile[[#This Row],[G&S reporting level indicator]]","v":7822},{"$f":"T_DataComboFile[[#This Row],[2020/21 Original_Source]]*T_DataComboFile[[#This Row],[G&S reporting level indicator]]","v":8184},{"$f":"T_DataComboFile[[#This Row],[2020/21 SAB_Source]]*T_DataComboFile[[#This Row],[G&S reporting level indicator]]","v":8184},{"$f":"T_DataComboFile[[#This Row],[2020/21 Baseline_Source]]*T_DataComboFile[[#This Row],[G&S reporting level indicator]]","v":7720},{"$f":"T_DataComboFile[[#This Row],[2021/22 Baseline_Source]]*T_DataComboFile[[#This Row],[G&S reporting level indicator]]","v":8807},{"$f":"T_DataComboFile[[#This Row],[2022/23 Baseline_Source]]*T_DataComboFile[[#This Row],[G&S reporting level indicator]]","v":9023},{"$f":"T_DataComboFile[[#This Row],[2023/24 Baseline_Source]]*T_DataComboFile[[#This Row],[G&S reporting level indicator]]","v":9421},null,null,null,null,null,null,{"$f":"T_DataComboFile[[#This Row],[2021/22 Baseline]]+T_DataComboFile[[#This Row],[2021/22 Reduction]]+T_DataComboFile[[#This Row],[2021/22 Increase]]","v":8807},{"$f":"T_DataComboFile[[#This Row],[2022/23 Baseline]]+T_DataComboFile[[#This Row],[2022/23 Reduction]]+T_DataComboFile[[#This Row],[2022/23 Increase]]","v":9023},{"$f":"T_DataComboFile[[#This Row],[2023/24 Baseline]]+T_DataComboFile[[#This Row],[2023/24 Reduction]]+T_DataComboFile[[#This Row],[2023/24 Increase]]","v":9421}]
["NAT|Non-transfer item","36|Social contributions","2021_22","ENE2020",36,4,1,17387,71004,36,4,1,17387,"071004","36|04|01",1,1,1,2,2,"01|01|01|02|02","National","Small Business Development","Enterprise Development and Entrepreneurship","Enterprise and Supplier Development","Non-transfer item","Current","Current payments","Compensation of employees","Social contributions","Social contributions","Economic development","Industrialisation and exports","NAT",1812,1312,682,996,996,996,996,1778,1778,1677,1772,1788,1867,1,null,{"$f":"IF(T_DataComboFile[[#This Row],[G&S reporting level indicator]]=1,$AX$16,\"Not applicable\")","v":"Level 3"},{"$f":"IF(AND($AX$16=\"Level 3\",T_DataComboFile[[#This Row],[Econ3]] = \"Goods and services\"),IF(T_DataComboFile[[#This Row],[Econ4]] = T_DataComboFile[[#This Row],[Econ3]],1,0),IF(AND($AX$16=\"Level 4\",T_DataComboFile[[#This Row],[Econ4]] = \"Goods and services\"),0,1))","v":1},{"$f":"T_DataComboFile[[#This Row],[2016/17_Source]]*T_DataComboFile[[#This Row],[G&S reporting level indicator]]","v":1812},{"$f":"T_DataComboFile[[#This Row],[2017/18_Source]]*T_DataComboFile[[#This Row],[G&S reporting level indicator]]","v":1312},{"$f":"T_DataComboFile[[#This Row],[2018/19_Source]]*T_DataComboFile[[#This Row],[G&S reporting level indicator]]","v":682},{"$f":"T_DataComboFile[[#This Row],[2019/20 Main appropriation_Source]]*T_DataComboFile[[#This Row],[G&S reporting level indicator]]","v":996},{"$f":"T_DataComboFile[[#This Row],[2019/20 Adjusted appropriation_Source]]*T_DataComboFile[[#This Row],[G&S reporting level indicator]]","v":996},{"$f":"T_DataComboFile[[#This Row],[2019/20 Revised estimate_Source]]*T_DataComboFile[[#This Row],[G&S reporting level indicator]]","v":996},{"$f":"T_DataComboFile[[#This Row],[2019/20 Preliminary outcome_Source]]*T_DataComboFile[[#This Row],[G&S reporting level indicator]]","v":996},{"$f":"T_DataComboFile[[#This Row],[2020/21 Original_Source]]*T_DataComboFile[[#This Row],[G&S reporting level indicator]]","v":1778},{"$f":"T_DataComboFile[[#This Row],[2020/21 SAB_Source]]*T_DataComboFile[[#This Row],[G&S reporting level indicator]]","v":1778},{"$f":"T_DataComboFile[[#This Row],[2020/21 Baseline_Source]]*T_DataComboFile[[#This Row],[G&S reporting level indicator]]","v":1677},{"$f":"T_DataComboFile[[#This Row],[2021/22 Baseline_Source]]*T_DataComboFile[[#This Row],[G&S reporting level indicator]]","v":1772},{"$f":"T_DataComboFile[[#This Row],[2022/23 Baseline_Source]]*T_DataComboFile[[#This Row],[G&S reporting level indicator]]","v":1788},{"$f":"T_DataComboFile[[#This Row],[2023/24 Baseline_Source]]*T_DataComboFile[[#This Row],[G&S reporting level indicator]]","v":1867},null,null,null,null,null,null,{"$f":"T_DataComboFile[[#This Row],[2021/22 Baseline]]+T_DataComboFile[[#This Row],[2021/22 Reduction]]+T_DataComboFile[[#This Row],[2021/22 Increase]]","v":1772},{"$f":"T_DataComboFile[[#This Row],[2022/23 Baseline]]+T_DataComboFile[[#This Row],[2022/23 Reduction]]+T_DataComboFile[[#This Row],[2022/23 Increase]]","v":1788},{"$f":"T_DataComboFile[[#This Row],[2023/24 Baseline]]+T_DataComboFile[[#This Row],[2023/24 Reduction]]+T_DataComboFile[[#This Row],[2023/24 Increase]]","v":1867}]
[null,null,"2021_22","ENE2020",36,4,1,null,71005,36,4,1,null,"071005","36|04|01",1,1,2,2,2,"01|01|02|02|02","National","Small Business Development","Enterprise Development and Entrepreneurship","Enterprise and Supplier Development","Non-transfer item","Current","Current payments","Goods and services","Goods and services","Goods and services","Economic development","Industrialisation and exports","NAT",8450,9988,3766,1808,3708,3708,3708,2639,639,2639,2105,1343,1402,1,null,{"$f":"IF(T_DataComboFile[[#This Row],[G&S reporting level indicator]]=1,$AX$16,\"Not applicable\")","v":"Level 3"},{"$f":"IF(AND($AX$16=\"Level 3\",T_DataComboFile[[#This Row],[Econ3]] = \"Goods and services\"),IF(T_DataComboFile[[#This Row],[Econ4]] = T_DataComboFile[[#This Row],[Econ3]],1,0),IF(AND($AX$16=\"Level 4\",T_DataComboFile[[#This Row],[Econ4]] = \"Goods and services\"),0,1))","v":1},{"$f":"T_DataComboFile[[#This Row],[2016/17_Source]]*T_DataComboFile[[#This Row],[G&S reporting level indicator]]","v":8450},{"$f":"T_DataComboFile[[#This Row],[2017/18_Source]]*T_DataComboFile[[#This Row],[G&S reporting level indicator]]","v":9988},{"$f":"T_DataComboFile[[#This Row],[2018/19_Source]]*T_DataComboFile[[#This Row],[G&S reporting level indicator]]","v":3766},{"$f":"T_DataComboFile[[#This Row],[2019/20 Main appropriation_Source]]*T_DataComboFile[[#This Row],[G&S reporting level indicator]]","v":1808},{"$f":"T_DataComboFile[[#This Row],[2019/20 Adjusted appropriation_Source]]*T_DataComboFile[[#This Row],[G&S reporting level indicator]]","v":3708},{"$f":"T_DataComboFile[[#This Row],[2019/20 Revised estimate_Source]]*T_DataComboFile[[#This Row],[G&S reporting level indicator]]","v":3708},{"$f":"T_DataComboFile[[#This Row],[2019/20 Preliminary outcome_Source]]*T_DataComboFile[[#This Row],[G&S reporting level indicator]]","v":3708},{"$f":"T_DataComboFile[[#This Row],[2020/21 Original_Source]]*T_DataComboFile[[#This Row],[G&S reporting level indicator]]","v":2639},{"$f":"T_DataComboFile[[#This Row],[2020/21 SAB_Source]]*T_DataComboFile[[#This Row],[G&S reporting level indicator]]","v":639},{"$f":"T_DataComboFile[[#This Row],[2020/21 Baseline_Source]]*T_DataComboFile[[#This Row],[G&S reporting level indicator]]","v":2639},{"$f":"T_DataComboFile[[#This Row],[2021/22 Baseline_Source]]*T_DataComboFile[[#This Row],[G&S reporting level indicator]]","v":2105},{"$f":"T_DataComboFile[[#This Row],[2022/23 Baseline_Source]]*T_DataComboFile[[#This Row],[G&S reporting level indicator]]","v":1343},{"$f":"T_DataComboFile[[#This Row],[2023/24 Baseline_Source]]*T_DataComboFile[[#This Row],[G&S reporting level indicator]]","v":1402},null,null,null,null,null,null,{"$f":"T_DataComboFile[[#This Row],[2021/22 Baseline]]+T_DataComboFile[[#This Row],[2021/22 Reduction]]+T_DataComboFile[[#This Row],[2021/22 Increase]]","v":2105},{"$f":"T_DataComboFile[[#This Row],[2022/23 Baseline]]+T_DataComboFile[[#This Row],[2022/23 Reduction]]+T_DataComboFile[[#This Row],[2022/23 Increase]]","v":1343},{"$f":"T_DataComboFile[[#This Row],[2023/24 Baseline]]+T_DataComboFile[[#This Row],[2023/24 Reduction]]+T_DataComboFile[[#This Row],[2023/24 Increase]]","v":1402}]
["NAT|Non-transfer item","36|Administrative fees","2021_22","ENE2020",36,4,1,17388,71006,36,4,1,17388,"071006","36|04|01",1,1,2,3,3,"01|01|02|03|03","National","Small Business Development","Enterprise Development and Entrepreneurship","Enterprise and Supplier Development","Non-transfer item","Current","Current payments","Goods and services","Administrative fees","Administrative fees","Economic development","Industrialisation and exports","NAT",58,72,48,52,52,52,52,71,71,71,78,87,91,1,null,{"$f":"IF(T_DataComboFile[[#This Row],[G&S reporting level indicator]]=1,$AX$16,\"Not applicable\")","v":"Not applicable"},{"$f":"IF(AND($AX$16=\"Level 3\",T_DataComboFile[[#This Row],[Econ3]] = \"Goods and services\"),IF(T_DataComboFile[[#This Row],[Econ4]] = T_DataComboFile[[#This Row],[Econ3]],1,0),IF(AND($AX$16=\"Level 4\",T_DataComboFile[[#This Row],[Econ4]] = \"Goods and services\"),0,1))","v":0},{"$f":"T_DataComboFile[[#This Row],[2016/17_Source]]*T_DataComboFile[[#This Row],[G&S reporting level indicator]]","v":0},{"$f":"T_DataComboFile[[#This Row],[2017/18_Source]]*T_DataComboFile[[#This Row],[G&S reporting level indicator]]","v":0},{"$f":"T_DataComboFile[[#This Row],[2018/19_Source]]*T_DataComboFile[[#This Row],[G&S reporting level indicator]]","v":0},{"$f":"T_DataComboFile[[#This Row],[2019/20 Main appropriation_Source]]*T_DataComboFile[[#This Row],[G&S reporting level indicator]]","v":0},{"$f":"T_DataComboFile[[#This Row],[2019/20 Adjusted appropriation_Source]]*T_DataComboFile[[#This Row],[G&S reporting level indicator]]","v":0},{"$f":"T_DataComboFile[[#This Row],[2019/20 Revised estimate_Source]]*T_DataComboFile[[#This Row],[G&S reporting level indicator]]","v":0},{"$f":"T_DataComboFile[[#This Row],[2019/20 Preliminary outcome_Source]]*T_DataComboFile[[#This Row],[G&S reporting level indicator]]","v":0},{"$f":"T_DataComboFile[[#This Row],[2020/21 Original_Source]]*T_DataComboFile[[#This Row],[G&S reporting level indicator]]","v":0},{"$f":"T_DataComboFile[[#This Row],[2020/21 SAB_Source]]*T_DataComboFile[[#This Row],[G&S reporting level indicator]]","v":0},{"$f":"T_DataComboFile[[#This Row],[2020/21 Baseline_Source]]*T_DataComboFile[[#This Row],[G&S reporting level indicator]]","v":0},{"$f":"T_DataComboFile[[#This Row],[2021/22 Baseline_Source]]*T_DataComboFile[[#This Row],[G&S reporting level indicator]]","v":0},{"$f":"T_DataComboFile[[#This Row],[2022/23 Baseline_Source]]*T_DataComboFile[[#This Row],[G&S reporting level indicator]]","v":0},{"$f":"T_DataComboFile[[#This Row],[2023/24 Baseline_Source]]*T_DataComboFile[[#This Row],[G&S reporting level indicator]]","v":0},null,null,null,null,null,null,{"$f":"T_DataComboFile[[#This Row],[2021/22 Baseline]]+T_DataComboFile[[#This Row],[2021/22 Reduction]]+T_DataComboFile[[#This Row],[2021/22 Increase]]","v":0},{"$f":"T_DataComboFile[[#This Row],[2022/23 Baseline]]+T_DataComboFile[[#This Row],[2022/23 Reduction]]+T_DataComboFile[[#This Row],[2022/23 Increase]]","v":0},{"$f":"T_DataComboFile[[#This Row],[2023/24 Baseline]]+T_DataComboFile[[#This Row],[2023/24 Reduction]]+T_DataComboFile[[#This Row],[2023/24 Increase]]","v":0}]
[null,null,"2021_22","ENE2020",36,4,1,null,71007,36,4,1,null,"071007","36|04|01",1,1,2,4,4,"01|01|02|04|04","National","Small Business Development","Enterprise Development and Entrepreneurship","Enterprise and Supplier Development",null,"Current","Current payments","Goods and services","Advertising","Advertising",null,null,null,0,0,0,0,0,0,0,0,0,0,0,0,0,0,null,{"$f":"IF(T_DataComboFile[[#This Row],[G&S reporting level indicator]]=1,$AX$16,\"Not applicable\")","v":"Not applicable"},{"$f":"IF(AND($AX$16=\"Level 3\",T_DataComboFile[[#This Row],[Econ3]] = \"Goods and services\"),IF(T_DataComboFile[[#This Row],[Econ4]] = T_DataComboFile[[#This Row],[Econ3]],1,0),IF(AND($AX$16=\"Level 4\",T_DataComboFile[[#This Row],[Econ4]] = \"Goods and services\"),0,1))","v":0},{"$f":"T_DataComboFile[[#This Row],[2016/17_Source]]*T_DataComboFile[[#This Row],[G&S reporting level indicator]]","v":0},{"$f":"T_DataComboFile[[#This Row],[2017/18_Source]]*T_DataComboFile[[#This Row],[G&S reporting level indicator]]","v":0},{"$f":"T_DataComboFile[[#This Row],[2018/19_Source]]*T_DataComboFile[[#This Row],[G&S reporting level indicator]]","v":0},{"$f":"T_DataComboFile[[#This Row],[2019/20 Main appropriation_Source]]*T_DataComboFile[[#This Row],[G&S reporting level indicator]]","v":0},{"$f":"T_DataComboFile[[#This Row],[2019/20 Adjusted appropriation_Source]]*T_DataComboFile[[#This Row],[G&S reporting level indicator]]","v":0},{"$f":"T_DataComboFile[[#This Row],[2019/20 Revised estimate_Source]]*T_DataComboFile[[#This Row],[G&S reporting level indicator]]","v":0},{"$f":"T_DataComboFile[[#This Row],[2019/20 Preliminary outcome_Source]]*T_DataComboFile[[#This Row],[G&S reporting level indicator]]","v":0},{"$f":"T_DataComboFile[[#This Row],[2020/21 Original_Source]]*T_DataComboFile[[#This Row],[G&S reporting level indicator]]","v":0},{"$f":"T_DataComboFile[[#This Row],[2020/21 SAB_Source]]*T_DataComboFile[[#This Row],[G&S reporting level indicator]]","v":0},{"$f":"T_DataComboFile[[#This Row],[2020/21 Baseline_Source]]*T_DataComboFile[[#This Row],[G&S reporting level indicator]]","v":0},{"$f":"T_DataComboFile[[#This Row],[2021/22 Baseline_Source]]*T_DataComboFile[[#This Row],[G&S reporting level indicator]]","v":0},{"$f":"T_DataComboFile[[#This Row],[2022/23 Baseline_Source]]*T_DataComboFile[[#This Row],[G&S reporting level indicator]]","v":0},{"$f":"T_DataComboFile[[#This Row],[2023/24 Baseline_Source]]*T_DataComboFile[[#This Row],[G&S reporting level indicator]]","v":0},null,null,null,null,null,null,{"$f":"T_DataComboFile[[#This Row],[2021/22 Baseline]]+T_DataComboFile[[#This Row],[2021/22 Reduction]]+T_DataComboFile[[#This Row],[2021/22 Increase]]","v":0},{"$f":"T_DataComboFile[[#This Row],[2022/23 Baseline]]+T_DataComboFile[[#This Row],[2022/23 Reduction]]+T_DataComboFile[[#This Row],[2022/23 Increase]]","v":0},{"$f":"T_DataComboFile[[#This Row],[2023/24 Baseline]]+T_DataComboFile[[#This Row],[2023/24 Reduction]]+T_DataComboFile[[#This Row],[2023/24 Increase]]","v":0}]
["NAT|Non-transfer item","36|Minor assets","2021_22","ENE2020",36,4,1,17389,71008,36,4,1,17389,"071008","36|04|01",1,1,2,5,5,"01|01|02|05|05","National","Small Business Development","Enterprise Development and Entrepreneurship","Enterprise and Supplier Development","Non-transfer item","Current","Current payments","Goods and services","Minor assets","Minor assets","Economic development","Industrialisation and exports","NAT",0,4,0,0,0,0,0,0,0,0,0,0,0,1,null,{"$f":"IF(T_DataComboFile[[#This Row],[G&S reporting level indicator]]=1,$AX$16,\"Not applicable\")","v":"Not applicable"},{"$f":"IF(AND($AX$16=\"Level 3\",T_DataComboFile[[#This Row],[Econ3]] = \"Goods and services\"),IF(T_DataComboFile[[#This Row],[Econ4]] = T_DataComboFile[[#This Row],[Econ3]],1,0),IF(AND($AX$16=\"Level 4\",T_DataComboFile[[#This Row],[Econ4]] = \"Goods and services\"),0,1))","v":0},{"$f":"T_DataComboFile[[#This Row],[2016/17_Source]]*T_DataComboFile[[#This Row],[G&S reporting level indicator]]","v":0},{"$f":"T_DataComboFile[[#This Row],[2017/18_Source]]*T_DataComboFile[[#This Row],[G&S reporting level indicator]]","v":0},{"$f":"T_DataComboFile[[#This Row],[2018/19_Source]]*T_DataComboFile[[#This Row],[G&S reporting level indicator]]","v":0},{"$f":"T_DataComboFile[[#This Row],[2019/20 Main appropriation_Source]]*T_DataComboFile[[#This Row],[G&S reporting level indicator]]","v":0},{"$f":"T_DataComboFile[[#This Row],[2019/20 Adjusted appropriation_Source]]*T_DataComboFile[[#This Row],[G&S reporting level indicator]]","v":0},{"$f":"T_DataComboFile[[#This Row],[2019/20 Revised estimate_Source]]*T_DataComboFile[[#This Row],[G&S reporting level indicator]]","v":0},{"$f":"T_DataComboFile[[#This Row],[2019/20 Preliminary outcome_Source]]*T_DataComboFile[[#This Row],[G&S reporting level indicator]]","v":0},{"$f":"T_DataComboFile[[#This Row],[2020/21 Original_Source]]*T_DataComboFile[[#This Row],[G&S reporting level indicator]]","v":0},{"$f":"T_DataComboFile[[#This Row],[2020/21 SAB_Source]]*T_DataComboFile[[#This Row],[G&S reporting level indicator]]","v":0},{"$f":"T_DataComboFile[[#This Row],[2020/21 Baseline_Source]]*T_DataComboFile[[#This Row],[G&S reporting level indicator]]","v":0},{"$f":"T_DataComboFile[[#This Row],[2021/22 Baseline_Source]]*T_DataComboFile[[#This Row],[G&S reporting level indicator]]","v":0},{"$f":"T_DataComboFile[[#This Row],[2022/23 Baseline_Source]]*T_DataComboFile[[#This Row],[G&S reporting level indicator]]","v":0},{"$f":"T_DataComboFile[[#This Row],[2023/24 Baseline_Source]]*T_DataComboFile[[#This Row],[G&S reporting level indicator]]","v":0},null,null,null,null,null,null,{"$f":"T_DataComboFile[[#This Row],[2021/22 Baseline]]+T_DataComboFile[[#This Row],[2021/22 Reduction]]+T_DataComboFile[[#This Row],[2021/22 Increase]]","v":0},{"$f":"T_DataComboFile[[#This Row],[2022/23 Baseline]]+T_DataComboFile[[#This Row],[2022/23 Reduction]]+T_DataComboFile[[#This Row],[2022/23 Increase]]","v":0},{"$f":"T_DataComboFile[[#This Row],[2023/24 Baseline]]+T_DataComboFile[[#This Row],[2023/24 Reduction]]+T_DataComboFile[[#This Row],[2023/24 Increase]]","v":0}]
[null,null,"2021_22","ENE2020",36,4,1,null,71009,36,4,1,null,"071009","36|04|01",1,1,2,6,6,"01|01|02|06|06","National","Small Business Development","Enterprise Development and Entrepreneurship","Enterprise and Supplier Development",null,"Current","Current payments","Goods and services","Audit costs: External","Audit costs: External",null,null,null,0,0,0,0,0,0,0,0,0,0,0,0,0,0,null,{"$f":"IF(T_DataComboFile[[#This Row],[G&S reporting level indicator]]=1,$AX$16,\"Not applicable\")","v":"Not applicable"},{"$f":"IF(AND($AX$16=\"Level 3\",T_DataComboFile[[#This Row],[Econ3]] = \"Goods and services\"),IF(T_DataComboFile[[#This Row],[Econ4]] = T_DataComboFile[[#This Row],[Econ3]],1,0),IF(AND($AX$16=\"Level 4\",T_DataComboFile[[#This Row],[Econ4]] = \"Goods and services\"),0,1))","v":0},{"$f":"T_DataComboFile[[#This Row],[2016/17_Source]]*T_DataComboFile[[#This Row],[G&S reporting level indicator]]","v":0},{"$f":"T_DataComboFile[[#This Row],[2017/18_Source]]*T_DataComboFile[[#This Row],[G&S reporting level indicator]]","v":0},{"$f":"T_DataComboFile[[#This Row],[2018/19_Source]]*T_DataComboFile[[#This Row],[G&S reporting level indicator]]","v":0},{"$f":"T_DataComboFile[[#This Row],[2019/20 Main appropriation_Source]]*T_DataComboFile[[#This Row],[G&S reporting level indicator]]","v":0},{"$f":"T_DataComboFile[[#This Row],[2019/20 Adjusted appropriation_Source]]*T_DataComboFile[[#This Row],[G&S reporting level indicator]]","v":0},{"$f":"T_DataComboFile[[#This Row],[2019/20 Revised estimate_Source]]*T_DataComboFile[[#This Row],[G&S reporting level indicator]]","v":0},{"$f":"T_DataComboFile[[#This Row],[2019/20 Preliminary outcome_Source]]*T_DataComboFile[[#This Row],[G&S reporting level indicator]]","v":0},{"$f":"T_DataComboFile[[#This Row],[2020/21 Original_Source]]*T_DataComboFile[[#This Row],[G&S reporting level indicator]]","v":0},{"$f":"T_DataComboFile[[#This Row],[2020/21 SAB_Source]]*T_DataComboFile[[#This Row],[G&S reporting level indicator]]","v":0},{"$f":"T_DataComboFile[[#This Row],[2020/21 Baseline_Source]]*T_DataComboFile[[#This Row],[G&S reporting level indicator]]","v":0},{"$f":"T_DataComboFile[[#This Row],[2021/22 Baseline_Source]]*T_DataComboFile[[#This Row],[G&S reporting level indicator]]","v":0},{"$f":"T_DataComboFile[[#This Row],[2022/23 Baseline_Source]]*T_DataComboFile[[#This Row],[G&S reporting level indicator]]","v":0},{"$f":"T_DataComboFile[[#This Row],[2023/24 Baseline_Source]]*T_DataComboFile[[#This Row],[G&S reporting level indicator]]","v":0},null,null,null,null,null,null,{"$f":"T_DataComboFile[[#This Row],[2021/22 Baseline]]+T_DataComboFile[[#This Row],[2021/22 Reduction]]+T_DataComboFile[[#This Row],[2021/22 Increase]]","v":0},{"$f":"T_DataComboFile[[#This Row],[2022/23 Baseline]]+T_DataComboFile[[#This Row],[2022/23 Reduction]]+T_DataComboFile[[#This Row],[2022/23 Increase]]","v":0},{"$f":"T_DataComboFile[[#This Row],[2023/24 Baseline]]+T_DataComboFile[[#This Row],[2023/24 Reduction]]+T_DataComboFile[[#This Row],[2023/24 Increase]]","v":0}]
[null,null,"2021_22","ENE2020",36,4,1,null,71010,36,4,1,null,"071010","36|04|01",1,1,2,7,7,"01|01|02|07|07","National","Small Business Development","Enterprise Development and Entrepreneurship","Enterprise and Supplier Development",null,"Current","Current payments","Goods and services","Bursaries: Employees","Bursaries: Employees",null,null,null,0,0,0,0,0,0,0,0,0,0,0,0,0,0,null,{"$f":"IF(T_DataComboFile[[#This Row],[G&S reporting level indicator]]=1,$AX$16,\"Not applicable\")","v":"Not applicable"},{"$f":"IF(AND($AX$16=\"Level 3\",T_DataComboFile[[#This Row],[Econ3]] = \"Goods and services\"),IF(T_DataComboFile[[#This Row],[Econ4]] = T_DataComboFile[[#This Row],[Econ3]],1,0),IF(AND($AX$16=\"Level 4\",T_DataComboFile[[#This Row],[Econ4]] = \"Goods and services\"),0,1))","v":0},{"$f":"T_DataComboFile[[#This Row],[2016/17_Source]]*T_DataComboFile[[#This Row],[G&S reporting level indicator]]","v":0},{"$f":"T_DataComboFile[[#This Row],[2017/18_Source]]*T_DataComboFile[[#This Row],[G&S reporting level indicator]]","v":0},{"$f":"T_DataComboFile[[#This Row],[2018/19_Source]]*T_DataComboFile[[#This Row],[G&S reporting level indicator]]","v":0},{"$f":"T_DataComboFile[[#This Row],[2019/20 Main appropriation_Source]]*T_DataComboFile[[#This Row],[G&S reporting level indicator]]","v":0},{"$f":"T_DataComboFile[[#This Row],[2019/20 Adjusted appropriation_Source]]*T_DataComboFile[[#This Row],[G&S reporting level indicator]]","v":0},{"$f":"T_DataComboFile[[#This Row],[2019/20 Revised estimate_Source]]*T_DataComboFile[[#This Row],[G&S reporting level indicator]]","v":0},{"$f":"T_DataComboFile[[#This Row],[2019/20 Preliminary outcome_Source]]*T_DataComboFile[[#This Row],[G&S reporting level indicator]]","v":0},{"$f":"T_DataComboFile[[#This Row],[2020/21 Original_Source]]*T_DataComboFile[[#This Row],[G&S reporting level indicator]]","v":0},{"$f":"T_DataComboFile[[#This Row],[2020/21 SAB_Source]]*T_DataComboFile[[#This Row],[G&S reporting level indicator]]","v":0},{"$f":"T_DataComboFile[[#This Row],[2020/21 Baseline_Source]]*T_DataComboFile[[#This Row],[G&S reporting level indicator]]","v":0},{"$f":"T_DataComboFile[[#This Row],[2021/22 Baseline_Source]]*T_DataComboFile[[#This Row],[G&S reporting level indicator]]","v":0},{"$f":"T_DataComboFile[[#This Row],[2022/23 Baseline_Source]]*T_DataComboFile[[#This Row],[G&S reporting level indicator]]","v":0},{"$f":"T_DataComboFile[[#This Row],[2023/24 Baseline_Source]]*T_DataComboFile[[#This Row],[G&S reporting level indicator]]","v":0},null,null,null,null,null,null,{"$f":"T_DataComboFile[[#This Row],[2021/22 Baseline]]+T_DataComboFile[[#This Row],[2021/22 Reduction]]+T_DataComboFile[[#This Row],[2021/22 Increase]]","v":0},{"$f":"T_DataComboFile[[#This Row],[2022/23 Baseline]]+T_DataComboFile[[#This Row],[2022/23 Reduction]]+T_DataComboFile[[#This Row],[2022/23 Increase]]","v":0},{"$f":"T_DataComboFile[[#This Row],[2023/24 Baseline]]+T_DataComboFile[[#This Row],[2023/24 Reduction]]+T_DataComboFile[[#This Row],[2023/24 Increase]]","v":0}]
["NAT|Non-transfer item","36|Catering: Departmental activities","2021_22","ENE2020",36,4,1,17390,71011,36,4,1,17390,"071011","36|04|01",1,1,2,8,8,"01|01|02|08|08","National","Small Business Development","Enterprise Development and Entrepreneurship","Enterprise and Supplier Development","Non-transfer item","Current","Current payments","Goods and services","Catering: Departmental activities","Catering: Departmental activities","Economic development","Industrialisation and exports","NAT",105,68,919,57,97,97,97,103,103,103,71,75,78,1,null,{"$f":"IF(T_DataComboFile[[#This Row],[G&S reporting level indicator]]=1,$AX$16,\"Not applicable\")","v":"Not applicable"},{"$f":"IF(AND($AX$16=\"Level 3\",T_DataComboFile[[#This Row],[Econ3]] = \"Goods and services\"),IF(T_DataComboFile[[#This Row],[Econ4]] = T_DataComboFile[[#This Row],[Econ3]],1,0),IF(AND($AX$16=\"Level 4\",T_DataComboFile[[#This Row],[Econ4]] = \"Goods and services\"),0,1))","v":0},{"$f":"T_DataComboFile[[#This Row],[2016/17_Source]]*T_DataComboFile[[#This Row],[G&S reporting level indicator]]","v":0},{"$f":"T_DataComboFile[[#This Row],[2017/18_Source]]*T_DataComboFile[[#This Row],[G&S reporting level indicator]]","v":0},{"$f":"T_DataComboFile[[#This Row],[2018/19_Source]]*T_DataComboFile[[#This Row],[G&S reporting level indicator]]","v":0},{"$f":"T_DataComboFile[[#This Row],[2019/20 Main appropriation_Source]]*T_DataComboFile[[#This Row],[G&S reporting level indicator]]","v":0},{"$f":"T_DataComboFile[[#This Row],[2019/20 Adjusted appropriation_Source]]*T_DataComboFile[[#This Row],[G&S reporting level indicator]]","v":0},{"$f":"T_DataComboFile[[#This Row],[2019/20 Revised estimate_Source]]*T_DataComboFile[[#This Row],[G&S reporting level indicator]]","v":0},{"$f":"T_DataComboFile[[#This Row],[2019/20 Preliminary outcome_Source]]*T_DataComboFile[[#This Row],[G&S reporting level indicator]]","v":0},{"$f":"T_DataComboFile[[#This Row],[2020/21 Original_Source]]*T_DataComboFile[[#This Row],[G&S reporting level indicator]]","v":0},{"$f":"T_DataComboFile[[#This Row],[2020/21 SAB_Source]]*T_DataComboFile[[#This Row],[G&S reporting level indicator]]","v":0},{"$f":"T_DataComboFile[[#This Row],[2020/21 Baseline_Source]]*T_DataComboFile[[#This Row],[G&S reporting level indicator]]","v":0},{"$f":"T_DataComboFile[[#This Row],[2021/22 Baseline_Source]]*T_DataComboFile[[#This Row],[G&S reporting level indicator]]","v":0},{"$f":"T_DataComboFile[[#This Row],[2022/23 Baseline_Source]]*T_DataComboFile[[#This Row],[G&S reporting level indicator]]","v":0},{"$f":"T_DataComboFile[[#This Row],[2023/24 Baseline_Source]]*T_DataComboFile[[#This Row],[G&S reporting level indicator]]","v":0},null,null,null,null,null,null,{"$f":"T_DataComboFile[[#This Row],[2021/22 Baseline]]+T_DataComboFile[[#This Row],[2021/22 Reduction]]+T_DataComboFile[[#This Row],[2021/22 Increase]]","v":0},{"$f":"T_DataComboFile[[#This Row],[2022/23 Baseline]]+T_DataComboFile[[#This Row],[2022/23 Reduction]]+T_DataComboFile[[#This Row],[2022/23 Increase]]","v":0},{"$f":"T_DataComboFile[[#This Row],[2023/24 Baseline]]+T_DataComboFile[[#This Row],[2023/24 Reduction]]+T_DataComboFile[[#This Row],[2023/24 Increase]]","v":0}]
["NAT|Non-transfer item","36|Communication (G&S)","2021_22","ENE2020",36,4,1,17391,71012,36,4,1,17391,"071012","36|04|01",1,1,2,9,9,"01|01|02|09|09","National","Small Business Development","Enterprise Development and Entrepreneurship","Enterprise and Supplier Development","Non-transfer item","Current","Current payments","Goods and services","Communication (G&S)","Communication (G&S)","Economic development","Industrialisation and exports","NAT",38,22,14,7,29,29,29,8,8,8,9,40,42,1,null,{"$f":"IF(T_DataComboFile[[#This Row],[G&S reporting level indicator]]=1,$AX$16,\"Not applicable\")","v":"Not applicable"},{"$f":"IF(AND($AX$16=\"Level 3\",T_DataComboFile[[#This Row],[Econ3]] = \"Goods and services\"),IF(T_DataComboFile[[#This Row],[Econ4]] = T_DataComboFile[[#This Row],[Econ3]],1,0),IF(AND($AX$16=\"Level 4\",T_DataComboFile[[#This Row],[Econ4]] = \"Goods and services\"),0,1))","v":0},{"$f":"T_DataComboFile[[#This Row],[2016/17_Source]]*T_DataComboFile[[#This Row],[G&S reporting level indicator]]","v":0},{"$f":"T_DataComboFile[[#This Row],[2017/18_Source]]*T_DataComboFile[[#This Row],[G&S reporting level indicator]]","v":0},{"$f":"T_DataComboFile[[#This Row],[2018/19_Source]]*T_DataComboFile[[#This Row],[G&S reporting level indicator]]","v":0},{"$f":"T_DataComboFile[[#This Row],[2019/20 Main appropriation_Source]]*T_DataComboFile[[#This Row],[G&S reporting level indicator]]","v":0},{"$f":"T_DataComboFile[[#This Row],[2019/20 Adjusted appropriation_Source]]*T_DataComboFile[[#This Row],[G&S reporting level indicator]]","v":0},{"$f":"T_DataComboFile[[#This Row],[2019/20 Revised estimate_Source]]*T_DataComboFile[[#This Row],[G&S reporting level indicator]]","v":0},{"$f":"T_DataComboFile[[#This Row],[2019/20 Preliminary outcome_Source]]*T_DataComboFile[[#This Row],[G&S reporting level indicator]]","v":0},{"$f":"T_DataComboFile[[#This Row],[2020/21 Original_Source]]*T_DataComboFile[[#This Row],[G&S reporting level indicator]]","v":0},{"$f":"T_DataComboFile[[#This Row],[2020/21 SAB_Source]]*T_DataComboFile[[#This Row],[G&S reporting level indicator]]","v":0},{"$f":"T_DataComboFile[[#This Row],[2020/21 Baseline_Source]]*T_DataComboFile[[#This Row],[G&S reporting level indicator]]","v":0},{"$f":"T_DataComboFile[[#This Row],[2021/22 Baseline_Source]]*T_DataComboFile[[#This Row],[G&S reporting level indicator]]","v":0},{"$f":"T_DataComboFile[[#This Row],[2022/23 Baseline_Source]]*T_DataComboFile[[#This Row],[G&S reporting level indicator]]","v":0},{"$f":"T_DataComboFile[[#This Row],[2023/24 Baseline_Source]]*T_DataComboFile[[#This Row],[G&S reporting level indicator]]","v":0},null,null,null,null,null,null,{"$f":"T_DataComboFile[[#This Row],[2021/22 Baseline]]+T_DataComboFile[[#This Row],[2021/22 Reduction]]+T_DataComboFile[[#This Row],[2021/22 Increase]]","v":0},{"$f":"T_DataComboFile[[#This Row],[2022/23 Baseline]]+T_DataComboFile[[#This Row],[2022/23 Reduction]]+T_DataComboFile[[#This Row],[2022/23 Increase]]","v":0},{"$f":"T_DataComboFile[[#This Row],[2023/24 Baseline]]+T_DataComboFile[[#This Row],[2023/24 Reduction]]+T_DataComboFile[[#This Row],[2023/24 Increase]]","v":0}]
["NAT|Non-transfer item","36|Computer services","2021_22","ENE2020",36,4,1,17392,71013,36,4,1,17392,"071013","36|04|01",1,1,2,10,10,"01|01|02|10|10","National","Small Business Development","Enterprise Development and Entrepreneurship","Enterprise and Supplier Development","Non-transfer item","Current","Current payments","Goods and services","Computer services","Computer services","Economic development","Industrialisation and exports","NAT",0,0,0,0,1900,1900,1900,1400,0,1400,895,0,0,1,null,{"$f":"IF(T_DataComboFile[[#This Row],[G&S reporting level indicator]]=1,$AX$16,\"Not applicable\")","v":"Not applicable"},{"$f":"IF(AND($AX$16=\"Level 3\",T_DataComboFile[[#This Row],[Econ3]] = \"Goods and services\"),IF(T_DataComboFile[[#This Row],[Econ4]] = T_DataComboFile[[#This Row],[Econ3]],1,0),IF(AND($AX$16=\"Level 4\",T_DataComboFile[[#This Row],[Econ4]] = \"Goods and services\"),0,1))","v":0},{"$f":"T_DataComboFile[[#This Row],[2016/17_Source]]*T_DataComboFile[[#This Row],[G&S reporting level indicator]]","v":0},{"$f":"T_DataComboFile[[#This Row],[2017/18_Source]]*T_DataComboFile[[#This Row],[G&S reporting level indicator]]","v":0},{"$f":"T_DataComboFile[[#This Row],[2018/19_Source]]*T_DataComboFile[[#This Row],[G&S reporting level indicator]]","v":0},{"$f":"T_DataComboFile[[#This Row],[2019/20 Main appropriation_Source]]*T_DataComboFile[[#This Row],[G&S reporting level indicator]]","v":0},{"$f":"T_DataComboFile[[#This Row],[2019/20 Adjusted appropriation_Source]]*T_DataComboFile[[#This Row],[G&S reporting level indicator]]","v":0},{"$f":"T_DataComboFile[[#This Row],[2019/20 Revised estimate_Source]]*T_DataComboFile[[#This Row],[G&S reporting level indicator]]","v":0},{"$f":"T_DataComboFile[[#This Row],[2019/20 Preliminary outcome_Source]]*T_DataComboFile[[#This Row],[G&S reporting level indicator]]","v":0},{"$f":"T_DataComboFile[[#This Row],[2020/21 Original_Source]]*T_DataComboFile[[#This Row],[G&S reporting level indicator]]","v":0},{"$f":"T_DataComboFile[[#This Row],[2020/21 SAB_Source]]*T_DataComboFile[[#This Row],[G&S reporting level indicator]]","v":0},{"$f":"T_DataComboFile[[#This Row],[2020/21 Baseline_Source]]*T_DataComboFile[[#This Row],[G&S reporting level indicator]]","v":0},{"$f":"T_DataComboFile[[#This Row],[2021/22 Baseline_Source]]*T_DataComboFile[[#This Row],[G&S reporting level indicator]]","v":0},{"$f":"T_DataComboFile[[#This Row],[2022/23 Baseline_Source]]*T_DataComboFile[[#This Row],[G&S reporting level indicator]]","v":0},{"$f":"T_DataComboFile[[#This Row],[2023/24 Baseline_Source]]*T_DataComboFile[[#This Row],[G&S reporting level indicator]]","v":0},null,null,null,null,null,null,{"$f":"T_DataComboFile[[#This Row],[2021/22 Baseline]]+T_DataComboFile[[#This Row],[2021/22 Reduction]]+T_DataComboFile[[#This Row],[2021/22 Increase]]","v":0},{"$f":"T_DataComboFile[[#This Row],[2022/23 Baseline]]+T_DataComboFile[[#This Row],[2022/23 Reduction]]+T_DataComboFile[[#This Row],[2022/23 Increase]]","v":0},{"$f":"T_DataComboFile[[#This Row],[2023/24 Baseline]]+T_DataComboFile[[#This Row],[2023/24 Reduction]]+T_DataComboFile[[#This Row],[2023/24 Increase]]","v":0}]
["NAT|Non-transfer item","36|Consultants: Business and advisory services","2021_22","ENE2020",36,4,1,17393,71014,36,4,1,17393,"071014","36|04|01",1,1,2,11,11,"01|01|02|11|11","National","Small Business Development","Enterprise Development and Entrepreneurship","Enterprise and Supplier Development","Non-transfer item","Current","Current payments","Goods and services","Consultants: Business and advisory services","Consultants: Business and advisory services","Economic development","Industrialisation and exports","NAT",1956,7428,263,1100,362,362,362,0,0,0,0,0,0,1,null,{"$f":"IF(T_DataComboFile[[#This Row],[G&S reporting level indicator]]=1,$AX$16,\"Not applicable\")","v":"Not applicable"},{"$f":"IF(AND($AX$16=\"Level 3\",T_DataComboFile[[#This Row],[Econ3]] = \"Goods and services\"),IF(T_DataComboFile[[#This Row],[Econ4]] = T_DataComboFile[[#This Row],[Econ3]],1,0),IF(AND($AX$16=\"Level 4\",T_DataComboFile[[#This Row],[Econ4]] = \"Goods and services\"),0,1))","v":0},{"$f":"T_DataComboFile[[#This Row],[2016/17_Source]]*T_DataComboFile[[#This Row],[G&S reporting level indicator]]","v":0},{"$f":"T_DataComboFile[[#This Row],[2017/18_Source]]*T_DataComboFile[[#This Row],[G&S reporting level indicator]]","v":0},{"$f":"T_DataComboFile[[#This Row],[2018/19_Source]]*T_DataComboFile[[#This Row],[G&S reporting level indicator]]","v":0},{"$f":"T_DataComboFile[[#This Row],[2019/20 Main appropriation_Source]]*T_DataComboFile[[#This Row],[G&S reporting level indicator]]","v":0},{"$f":"T_DataComboFile[[#This Row],[2019/20 Adjusted appropriation_Source]]*T_DataComboFile[[#This Row],[G&S reporting level indicator]]","v":0},{"$f":"T_DataComboFile[[#This Row],[2019/20 Revised estimate_Source]]*T_DataComboFile[[#This Row],[G&S reporting level indicator]]","v":0},{"$f":"T_DataComboFile[[#This Row],[2019/20 Preliminary outcome_Source]]*T_DataComboFile[[#This Row],[G&S reporting level indicator]]","v":0},{"$f":"T_DataComboFile[[#This Row],[2020/21 Original_Source]]*T_DataComboFile[[#This Row],[G&S reporting level indicator]]","v":0},{"$f":"T_DataComboFile[[#This Row],[2020/21 SAB_Source]]*T_DataComboFile[[#This Row],[G&S reporting level indicator]]","v":0},{"$f":"T_DataComboFile[[#This Row],[2020/21 Baseline_Source]]*T_DataComboFile[[#This Row],[G&S reporting level indicator]]","v":0},{"$f":"T_DataComboFile[[#This Row],[2021/22 Baseline_Source]]*T_DataComboFile[[#This Row],[G&S reporting level indicator]]","v":0},{"$f":"T_DataComboFile[[#This Row],[2022/23 Baseline_Source]]*T_DataComboFile[[#This Row],[G&S reporting level indicator]]","v":0},{"$f":"T_DataComboFile[[#This Row],[2023/24 Baseline_Source]]*T_DataComboFile[[#This Row],[G&S reporting level indicator]]","v":0},null,null,null,null,null,null,{"$f":"T_DataComboFile[[#This Row],[2021/22 Baseline]]+T_DataComboFile[[#This Row],[2021/22 Reduction]]+T_DataComboFile[[#This Row],[2021/22 Increase]]","v":0},{"$f":"T_DataComboFile[[#This Row],[2022/23 Baseline]]+T_DataComboFile[[#This Row],[2022/23 Reduction]]+T_DataComboFile[[#This Row],[2022/23 Increase]]","v":0},{"$f":"T_DataComboFile[[#This Row],[2023/24 Baseline]]+T_DataComboFile[[#This Row],[2023/24 Reduction]]+T_DataComboFile[[#This Row],[2023/24 Increase]]","v":0}]
[null,null,"2021_22","ENE2020",36,4,1,null,71015,36,4,1,null,"071015","36|04|01",1,1,2,12,12,"01|01|02|12|12","National","Small Business Development","Enterprise Development and Entrepreneurship","Enterprise and Supplier Development",null,"Current","Current payments","Goods and services","Infrastructure and planning services","Infrastructure and planning services",null,null,null,0,0,0,0,0,0,0,0,0,0,0,0,0,0,null,{"$f":"IF(T_DataComboFile[[#This Row],[G&S reporting level indicator]]=1,$AX$16,\"Not applicable\")","v":"Not applicable"},{"$f":"IF(AND($AX$16=\"Level 3\",T_DataComboFile[[#This Row],[Econ3]] = \"Goods and services\"),IF(T_DataComboFile[[#This Row],[Econ4]] = T_DataComboFile[[#This Row],[Econ3]],1,0),IF(AND($AX$16=\"Level 4\",T_DataComboFile[[#This Row],[Econ4]] = \"Goods and services\"),0,1))","v":0},{"$f":"T_DataComboFile[[#This Row],[2016/17_Source]]*T_DataComboFile[[#This Row],[G&S reporting level indicator]]","v":0},{"$f":"T_DataComboFile[[#This Row],[2017/18_Source]]*T_DataComboFile[[#This Row],[G&S reporting level indicator]]","v":0},{"$f":"T_DataComboFile[[#This Row],[2018/19_Source]]*T_DataComboFile[[#This Row],[G&S reporting level indicator]]","v":0},{"$f":"T_DataComboFile[[#This Row],[2019/20 Main appropriation_Source]]*T_DataComboFile[[#This Row],[G&S reporting level indicator]]","v":0},{"$f":"T_DataComboFile[[#This Row],[2019/20 Adjusted appropriation_Source]]*T_DataComboFile[[#This Row],[G&S reporting level indicator]]","v":0},{"$f":"T_DataComboFile[[#This Row],[2019/20 Revised estimate_Source]]*T_DataComboFile[[#This Row],[G&S reporting level indicator]]","v":0},{"$f":"T_DataComboFile[[#This Row],[2019/20 Preliminary outcome_Source]]*T_DataComboFile[[#This Row],[G&S reporting level indicator]]","v":0},{"$f":"T_DataComboFile[[#This Row],[2020/21 Original_Source]]*T_DataComboFile[[#This Row],[G&S reporting level indicator]]","v":0},{"$f":"T_DataComboFile[[#This Row],[2020/21 SAB_Source]]*T_DataComboFile[[#This Row],[G&S reporting level indicator]]","v":0},{"$f":"T_DataComboFile[[#This Row],[2020/21 Baseline_Source]]*T_DataComboFile[[#This Row],[G&S reporting level indicator]]","v":0},{"$f":"T_DataComboFile[[#This Row],[2021/22 Baseline_Source]]*T_DataComboFile[[#This Row],[G&S reporting level indicator]]","v":0},{"$f":"T_DataComboFile[[#This Row],[2022/23 Baseline_Source]]*T_DataComboFile[[#This Row],[G&S reporting level indicator]]","v":0},{"$f":"T_DataComboFile[[#This Row],[2023/24 Baseline_Source]]*T_DataComboFile[[#This Row],[G&S reporting level indicator]]","v":0},null,null,null,null,null,null,{"$f":"T_DataComboFile[[#This Row],[2021/22 Baseline]]+T_DataComboFile[[#This Row],[2021/22 Reduction]]+T_DataComboFile[[#This Row],[2021/22 Increase]]","v":0},{"$f":"T_DataComboFile[[#This Row],[2022/23 Baseline]]+T_DataComboFile[[#This Row],[2022/23 Reduction]]+T_DataComboFile[[#This Row],[2022/23 Increase]]","v":0},{"$f":"T_DataComboFile[[#This Row],[2023/24 Baseline]]+T_DataComboFile[[#This Row],[2023/24 Reduction]]+T_DataComboFile[[#This Row],[2023/24 Increase]]","v":0}]
[null,null,"2021_22","ENE2020",36,4,1,null,71016,36,4,1,null,"071016","36|04|01",1,1,2,13,13,"01|01|02|13|13","National","Small Business Development","Enterprise Development and Entrepreneurship","Enterprise and Supplier Development",null,"Current","Current payments","Goods and services","Laboratory services","Laboratory services",null,null,null,0,0,0,0,0,0,0,0,0,0,0,0,0,0,null,{"$f":"IF(T_DataComboFile[[#This Row],[G&S reporting level indicator]]=1,$AX$16,\"Not applicable\")","v":"Not applicable"},{"$f":"IF(AND($AX$16=\"Level 3\",T_DataComboFile[[#This Row],[Econ3]] = \"Goods and services\"),IF(T_DataComboFile[[#This Row],[Econ4]] = T_DataComboFile[[#This Row],[Econ3]],1,0),IF(AND($AX$16=\"Level 4\",T_DataComboFile[[#This Row],[Econ4]] = \"Goods and services\"),0,1))","v":0},{"$f":"T_DataComboFile[[#This Row],[2016/17_Source]]*T_DataComboFile[[#This Row],[G&S reporting level indicator]]","v":0},{"$f":"T_DataComboFile[[#This Row],[2017/18_Source]]*T_DataComboFile[[#This Row],[G&S reporting level indicator]]","v":0},{"$f":"T_DataComboFile[[#This Row],[2018/19_Source]]*T_DataComboFile[[#This Row],[G&S reporting level indicator]]","v":0},{"$f":"T_DataComboFile[[#This Row],[2019/20 Main appropriation_Source]]*T_DataComboFile[[#This Row],[G&S reporting level indicator]]","v":0},{"$f":"T_DataComboFile[[#This Row],[2019/20 Adjusted appropriation_Source]]*T_DataComboFile[[#This Row],[G&S reporting level indicator]]","v":0},{"$f":"T_DataComboFile[[#This Row],[2019/20 Revised estimate_Source]]*T_DataComboFile[[#This Row],[G&S reporting level indicator]]","v":0},{"$f":"T_DataComboFile[[#This Row],[2019/20 Preliminary outcome_Source]]*T_DataComboFile[[#This Row],[G&S reporting level indicator]]","v":0},{"$f":"T_DataComboFile[[#This Row],[2020/21 Original_Source]]*T_DataComboFile[[#This Row],[G&S reporting level indicator]]","v":0},{"$f":"T_DataComboFile[[#This Row],[2020/21 SAB_Source]]*T_DataComboFile[[#This Row],[G&S reporting level indicator]]","v":0},{"$f":"T_DataComboFile[[#This Row],[2020/21 Baseline_Source]]*T_DataComboFile[[#This Row],[G&S reporting level indicator]]","v":0},{"$f":"T_DataComboFile[[#This Row],[2021/22 Baseline_Source]]*T_DataComboFile[[#This Row],[G&S reporting level indicator]]","v":0},{"$f":"T_DataComboFile[[#This Row],[2022/23 Baseline_Source]]*T_DataComboFile[[#This Row],[G&S reporting level indicator]]","v":0},{"$f":"T_DataComboFile[[#This Row],[2023/24 Baseline_Source]]*T_DataComboFile[[#This Row],[G&S reporting level indicator]]","v":0},null,null,null,null,null,null,{"$f":"T_DataComboFile[[#This Row],[2021/22 Baseline]]+T_DataComboFile[[#This Row],[2021/22 Reduction]]+T_DataComboFile[[#This Row],[2021/22 Increase]]","v":0},{"$f":"T_DataComboFile[[#This Row],[2022/23 Baseline]]+T_DataComboFile[[#This Row],[2022/23 Reduction]]+T_DataComboFile[[#This Row],[2022/23 Increase]]","v":0},{"$f":"T_DataComboFile[[#This Row],[2023/24 Baseline]]+T_DataComboFile[[#This Row],[2023/24 Reduction]]+T_DataComboFile[[#This Row],[2023/24 Increase]]","v":0}]
[null,null,"2021_22","ENE2020",36,4,1,null,71017,36,4,1,null,"071017","36|04|01",1,1,2,14,14,"01|01|02|14|14","National","Small Business Development","Enterprise Development and Entrepreneurship","Enterprise and Supplier Development",null,"Current","Current payments","Goods and services","Legal services (G&S)","Legal services (G&S)",null,null,null,0,0,0,0,0,0,0,0,0,0,0,0,0,0,null,{"$f":"IF(T_DataComboFile[[#This Row],[G&S reporting level indicator]]=1,$AX$16,\"Not applicable\")","v":"Not applicable"},{"$f":"IF(AND($AX$16=\"Level 3\",T_DataComboFile[[#This Row],[Econ3]] = \"Goods and services\"),IF(T_DataComboFile[[#This Row],[Econ4]] = T_DataComboFile[[#This Row],[Econ3]],1,0),IF(AND($AX$16=\"Level 4\",T_DataComboFile[[#This Row],[Econ4]] = \"Goods and services\"),0,1))","v":0},{"$f":"T_DataComboFile[[#This Row],[2016/17_Source]]*T_DataComboFile[[#This Row],[G&S reporting level indicator]]","v":0},{"$f":"T_DataComboFile[[#This Row],[2017/18_Source]]*T_DataComboFile[[#This Row],[G&S reporting level indicator]]","v":0},{"$f":"T_DataComboFile[[#This Row],[2018/19_Source]]*T_DataComboFile[[#This Row],[G&S reporting level indicator]]","v":0},{"$f":"T_DataComboFile[[#This Row],[2019/20 Main appropriation_Source]]*T_DataComboFile[[#This Row],[G&S reporting level indicator]]","v":0},{"$f":"T_DataComboFile[[#This Row],[2019/20 Adjusted appropriation_Source]]*T_DataComboFile[[#This Row],[G&S reporting level indicator]]","v":0},{"$f":"T_DataComboFile[[#This Row],[2019/20 Revised estimate_Source]]*T_DataComboFile[[#This Row],[G&S reporting level indicator]]","v":0},{"$f":"T_DataComboFile[[#This Row],[2019/20 Preliminary outcome_Source]]*T_DataComboFile[[#This Row],[G&S reporting level indicator]]","v":0},{"$f":"T_DataComboFile[[#This Row],[2020/21 Original_Source]]*T_DataComboFile[[#This Row],[G&S reporting level indicator]]","v":0},{"$f":"T_DataComboFile[[#This Row],[2020/21 SAB_Source]]*T_DataComboFile[[#This Row],[G&S reporting level indicator]]","v":0},{"$f":"T_DataComboFile[[#This Row],[2020/21 Baseline_Source]]*T_DataComboFile[[#This Row],[G&S reporting level indicator]]","v":0},{"$f":"T_DataComboFile[[#This Row],[2021/22 Baseline_Source]]*T_DataComboFile[[#This Row],[G&S reporting level indicator]]","v":0},{"$f":"T_DataComboFile[[#This Row],[2022/23 Baseline_Source]]*T_DataComboFile[[#This Row],[G&S reporting level indicator]]","v":0},{"$f":"T_DataComboFile[[#This Row],[2023/24 Baseline_Source]]*T_DataComboFile[[#This Row],[G&S reporting level indicator]]","v":0},null,null,null,null,null,null,{"$f":"T_DataComboFile[[#This Row],[2021/22 Baseline]]+T_DataComboFile[[#This Row],[2021/22 Reduction]]+T_DataComboFile[[#This Row],[2021/22 Increase]]","v":0},{"$f":"T_DataComboFile[[#This Row],[2022/23 Baseline]]+T_DataComboFile[[#This Row],[2022/23 Reduction]]+T_DataComboFile[[#This Row],[2022/23 Increase]]","v":0},{"$f":"T_DataComboFile[[#This Row],[2023/24 Baseline]]+T_DataComboFile[[#This Row],[2023/24 Reduction]]+T_DataComboFile[[#This Row],[2023/24 Increase]]","v":0}]
[null,null,"2021_22","ENE2020",36,4,1,null,71018,36,4,1,null,"071018","36|04|01",1,1,2,15,15,"01|01|02|15|15","National","Small Business Development","Enterprise Development and Entrepreneurship","Enterprise and Supplier Development",null,"Current","Current payments","Goods and services","Science and technological services","Science and technological services",null,null,null,0,0,0,0,0,0,0,0,0,0,0,0,0,0,null,{"$f":"IF(T_DataComboFile[[#This Row],[G&S reporting level indicator]]=1,$AX$16,\"Not applicable\")","v":"Not applicable"},{"$f":"IF(AND($AX$16=\"Level 3\",T_DataComboFile[[#This Row],[Econ3]] = \"Goods and services\"),IF(T_DataComboFile[[#This Row],[Econ4]] = T_DataComboFile[[#This Row],[Econ3]],1,0),IF(AND($AX$16=\"Level 4\",T_DataComboFile[[#This Row],[Econ4]] = \"Goods and services\"),0,1))","v":0},{"$f":"T_DataComboFile[[#This Row],[2016/17_Source]]*T_DataComboFile[[#This Row],[G&S reporting level indicator]]","v":0},{"$f":"T_DataComboFile[[#This Row],[2017/18_Source]]*T_DataComboFile[[#This Row],[G&S reporting level indicator]]","v":0},{"$f":"T_DataComboFile[[#This Row],[2018/19_Source]]*T_DataComboFile[[#This Row],[G&S reporting level indicator]]","v":0},{"$f":"T_DataComboFile[[#This Row],[2019/20 Main appropriation_Source]]*T_DataComboFile[[#This Row],[G&S reporting level indicator]]","v":0},{"$f":"T_DataComboFile[[#This Row],[2019/20 Adjusted appropriation_Source]]*T_DataComboFile[[#This Row],[G&S reporting level indicator]]","v":0},{"$f":"T_DataComboFile[[#This Row],[2019/20 Revised estimate_Source]]*T_DataComboFile[[#This Row],[G&S reporting level indicator]]","v":0},{"$f":"T_DataComboFile[[#This Row],[2019/20 Preliminary outcome_Source]]*T_DataComboFile[[#This Row],[G&S reporting level indicator]]","v":0},{"$f":"T_DataComboFile[[#This Row],[2020/21 Original_Source]]*T_DataComboFile[[#This Row],[G&S reporting level indicator]]","v":0},{"$f":"T_DataComboFile[[#This Row],[2020/21 SAB_Source]]*T_DataComboFile[[#This Row],[G&S reporting level indicator]]","v":0},{"$f":"T_DataComboFile[[#This Row],[2020/21 Baseline_Source]]*T_DataComboFile[[#This Row],[G&S reporting level indicator]]","v":0},{"$f":"T_DataComboFile[[#This Row],[2021/22 Baseline_Source]]*T_DataComboFile[[#This Row],[G&S reporting level indicator]]","v":0},{"$f":"T_DataComboFile[[#This Row],[2022/23 Baseline_Source]]*T_DataComboFile[[#This Row],[G&S reporting level indicator]]","v":0},{"$f":"T_DataComboFile[[#This Row],[2023/24 Baseline_Source]]*T_DataComboFile[[#This Row],[G&S reporting level indicator]]","v":0},null,null,null,null,null,null,{"$f":"T_DataComboFile[[#This Row],[2021/22 Baseline]]+T_DataComboFile[[#This Row],[2021/22 Reduction]]+T_DataComboFile[[#This Row],[2021/22 Increase]]","v":0},{"$f":"T_DataComboFile[[#This Row],[2022/23 Baseline]]+T_DataComboFile[[#This Row],[2022/23 Reduction]]+T_DataComboFile[[#This Row],[2022/23 Increase]]","v":0},{"$f":"T_DataComboFile[[#This Row],[2023/24 Baseline]]+T_DataComboFile[[#This Row],[2023/24 Reduction]]+T_DataComboFile[[#This Row],[2023/24 Increase]]","v":0}]
["NAT|Non-transfer item","36|Contractors","2021_22","ENE2020",36,4,1,17394,71019,36,4,1,17394,"071019","36|04|01",1,1,2,16,16,"01|01|02|16|16","National","Small Business Development","Enterprise Development and Entrepreneurship","Enterprise and Supplier Development","Non-transfer item","Current","Current payments","Goods and services","Contractors","Contractors","Economic development","Industrialisation and exports","NAT",168,413,707,0,0,0,0,0,0,0,0,0,0,1,null,{"$f":"IF(T_DataComboFile[[#This Row],[G&S reporting level indicator]]=1,$AX$16,\"Not applicable\")","v":"Not applicable"},{"$f":"IF(AND($AX$16=\"Level 3\",T_DataComboFile[[#This Row],[Econ3]] = \"Goods and services\"),IF(T_DataComboFile[[#This Row],[Econ4]] = T_DataComboFile[[#This Row],[Econ3]],1,0),IF(AND($AX$16=\"Level 4\",T_DataComboFile[[#This Row],[Econ4]] = \"Goods and services\"),0,1))","v":0},{"$f":"T_DataComboFile[[#This Row],[2016/17_Source]]*T_DataComboFile[[#This Row],[G&S reporting level indicator]]","v":0},{"$f":"T_DataComboFile[[#This Row],[2017/18_Source]]*T_DataComboFile[[#This Row],[G&S reporting level indicator]]","v":0},{"$f":"T_DataComboFile[[#This Row],[2018/19_Source]]*T_DataComboFile[[#This Row],[G&S reporting level indicator]]","v":0},{"$f":"T_DataComboFile[[#This Row],[2019/20 Main appropriation_Source]]*T_DataComboFile[[#This Row],[G&S reporting level indicator]]","v":0},{"$f":"T_DataComboFile[[#This Row],[2019/20 Adjusted appropriation_Source]]*T_DataComboFile[[#This Row],[G&S reporting level indicator]]","v":0},{"$f":"T_DataComboFile[[#This Row],[2019/20 Revised estimate_Source]]*T_DataComboFile[[#This Row],[G&S reporting level indicator]]","v":0},{"$f":"T_DataComboFile[[#This Row],[2019/20 Preliminary outcome_Source]]*T_DataComboFile[[#This Row],[G&S reporting level indicator]]","v":0},{"$f":"T_DataComboFile[[#This Row],[2020/21 Original_Source]]*T_DataComboFile[[#This Row],[G&S reporting level indicator]]","v":0},{"$f":"T_DataComboFile[[#This Row],[2020/21 SAB_Source]]*T_DataComboFile[[#This Row],[G&S reporting level indicator]]","v":0},{"$f":"T_DataComboFile[[#This Row],[2020/21 Baseline_Source]]*T_DataComboFile[[#This Row],[G&S reporting level indicator]]","v":0},{"$f":"T_DataComboFile[[#This Row],[2021/22 Baseline_Source]]*T_DataComboFile[[#This Row],[G&S reporting level indicator]]","v":0},{"$f":"T_DataComboFile[[#This Row],[2022/23 Baseline_Source]]*T_DataComboFile[[#This Row],[G&S reporting level indicator]]","v":0},{"$f":"T_DataComboFile[[#This Row],[2023/24 Baseline_Source]]*T_DataComboFile[[#This Row],[G&S reporting level indicator]]","v":0},null,null,null,null,null,null,{"$f":"T_DataComboFile[[#This Row],[2021/22 Baseline]]+T_DataComboFile[[#This Row],[2021/22 Reduction]]+T_DataComboFile[[#This Row],[2021/22 Increase]]","v":0},{"$f":"T_DataComboFile[[#This Row],[2022/23 Baseline]]+T_DataComboFile[[#This Row],[2022/23 Reduction]]+T_DataComboFile[[#This Row],[2022/23 Increase]]","v":0},{"$f":"T_DataComboFile[[#This Row],[2023/24 Baseline]]+T_DataComboFile[[#This Row],[2023/24 Reduction]]+T_DataComboFile[[#This Row],[2023/24 Increase]]","v":0}]
[null,null,"2021_22","ENE2020",36,4,1,null,71020,36,4,1,null,"071020","36|04|01",1,1,2,17,17,"01|01|02|17|17","National","Small Business Development","Enterprise Development and Entrepreneurship","Enterprise and Supplier Development",null,"Current","Current payments","Goods and services","Agency and support/outsourced services","Agency and support/outsourced services",null,null,null,0,0,0,0,0,0,0,0,0,0,0,0,0,0,null,{"$f":"IF(T_DataComboFile[[#This Row],[G&S reporting level indicator]]=1,$AX$16,\"Not applicable\")","v":"Not applicable"},{"$f":"IF(AND($AX$16=\"Level 3\",T_DataComboFile[[#This Row],[Econ3]] = \"Goods and services\"),IF(T_DataComboFile[[#This Row],[Econ4]] = T_DataComboFile[[#This Row],[Econ3]],1,0),IF(AND($AX$16=\"Level 4\",T_DataComboFile[[#This Row],[Econ4]] = \"Goods and services\"),0,1))","v":0},{"$f":"T_DataComboFile[[#This Row],[2016/17_Source]]*T_DataComboFile[[#This Row],[G&S reporting level indicator]]","v":0},{"$f":"T_DataComboFile[[#This Row],[2017/18_Source]]*T_DataComboFile[[#This Row],[G&S reporting level indicator]]","v":0},{"$f":"T_DataComboFile[[#This Row],[2018/19_Source]]*T_DataComboFile[[#This Row],[G&S reporting level indicator]]","v":0},{"$f":"T_DataComboFile[[#This Row],[2019/20 Main appropriation_Source]]*T_DataComboFile[[#This Row],[G&S reporting level indicator]]","v":0},{"$f":"T_DataComboFile[[#This Row],[2019/20 Adjusted appropriation_Source]]*T_DataComboFile[[#This Row],[G&S reporting level indicator]]","v":0},{"$f":"T_DataComboFile[[#This Row],[2019/20 Revised estimate_Source]]*T_DataComboFile[[#This Row],[G&S reporting level indicator]]","v":0},{"$f":"T_DataComboFile[[#This Row],[2019/20 Preliminary outcome_Source]]*T_DataComboFile[[#This Row],[G&S reporting level indicator]]","v":0},{"$f":"T_DataComboFile[[#This Row],[2020/21 Original_Source]]*T_DataComboFile[[#This Row],[G&S reporting level indicator]]","v":0},{"$f":"T_DataComboFile[[#This Row],[2020/21 SAB_Source]]*T_DataComboFile[[#This Row],[G&S reporting level indicator]]","v":0},{"$f":"T_DataComboFile[[#This Row],[2020/21 Baseline_Source]]*T_DataComboFile[[#This Row],[G&S reporting level indicator]]","v":0},{"$f":"T_DataComboFile[[#This Row],[2021/22 Baseline_Source]]*T_DataComboFile[[#This Row],[G&S reporting level indicator]]","v":0},{"$f":"T_DataComboFile[[#This Row],[2022/23 Baseline_Source]]*T_DataComboFile[[#This Row],[G&S reporting level indicator]]","v":0},{"$f":"T_DataComboFile[[#This Row],[2023/24 Baseline_Source]]*T_DataComboFile[[#This Row],[G&S reporting level indicator]]","v":0},null,null,null,null,null,null,{"$f":"T_DataComboFile[[#This Row],[2021/22 Baseline]]+T_DataComboFile[[#This Row],[2021/22 Reduction]]+T_DataComboFile[[#This Row],[2021/22 Increase]]","v":0},{"$f":"T_DataComboFile[[#This Row],[2022/23 Baseline]]+T_DataComboFile[[#This Row],[2022/23 Reduction]]+T_DataComboFile[[#This Row],[2022/23 Increase]]","v":0},{"$f":"T_DataComboFile[[#This Row],[2023/24 Baseline]]+T_DataComboFile[[#This Row],[2023/24 Reduction]]+T_DataComboFile[[#This Row],[2023/24 Increase]]","v":0}]
[null,null,"2021_22","ENE2020",36,4,1,null,71021,36,4,1,null,"071021","36|04|01",1,1,2,18,18,"01|01|02|18|18","National","Small Business Development","Enterprise Development and Entrepreneurship","Enterprise and Supplier Development",null,"Current","Current payments","Goods and services","Entertainment","Entertainment",null,null,null,0,0,0,0,0,0,0,0,0,0,0,0,0,0,null,{"$f":"IF(T_DataComboFile[[#This Row],[G&S reporting level indicator]]=1,$AX$16,\"Not applicable\")","v":"Not applicable"},{"$f":"IF(AND($AX$16=\"Level 3\",T_DataComboFile[[#This Row],[Econ3]] = \"Goods and services\"),IF(T_DataComboFile[[#This Row],[Econ4]] = T_DataComboFile[[#This Row],[Econ3]],1,0),IF(AND($AX$16=\"Level 4\",T_DataComboFile[[#This Row],[Econ4]] = \"Goods and services\"),0,1))","v":0},{"$f":"T_DataComboFile[[#This Row],[2016/17_Source]]*T_DataComboFile[[#This Row],[G&S reporting level indicator]]","v":0},{"$f":"T_DataComboFile[[#This Row],[2017/18_Source]]*T_DataComboFile[[#This Row],[G&S reporting level indicator]]","v":0},{"$f":"T_DataComboFile[[#This Row],[2018/19_Source]]*T_DataComboFile[[#This Row],[G&S reporting level indicator]]","v":0},{"$f":"T_DataComboFile[[#This Row],[2019/20 Main appropriation_Source]]*T_DataComboFile[[#This Row],[G&S reporting level indicator]]","v":0},{"$f":"T_DataComboFile[[#This Row],[2019/20 Adjusted appropriation_Source]]*T_DataComboFile[[#This Row],[G&S reporting level indicator]]","v":0},{"$f":"T_DataComboFile[[#This Row],[2019/20 Revised estimate_Source]]*T_DataComboFile[[#This Row],[G&S reporting level indicator]]","v":0},{"$f":"T_DataComboFile[[#This Row],[2019/20 Preliminary outcome_Source]]*T_DataComboFile[[#This Row],[G&S reporting level indicator]]","v":0},{"$f":"T_DataComboFile[[#This Row],[2020/21 Original_Source]]*T_DataComboFile[[#This Row],[G&S reporting level indicator]]","v":0},{"$f":"T_DataComboFile[[#This Row],[2020/21 SAB_Source]]*T_DataComboFile[[#This Row],[G&S reporting level indicator]]","v":0},{"$f":"T_DataComboFile[[#This Row],[2020/21 Baseline_Source]]*T_DataComboFile[[#This Row],[G&S reporting level indicator]]","v":0},{"$f":"T_DataComboFile[[#This Row],[2021/22 Baseline_Source]]*T_DataComboFile[[#This Row],[G&S reporting level indicator]]","v":0},{"$f":"T_DataComboFile[[#This Row],[2022/23 Baseline_Source]]*T_DataComboFile[[#This Row],[G&S reporting level indicator]]","v":0},{"$f":"T_DataComboFile[[#This Row],[2023/24 Baseline_Source]]*T_DataComboFile[[#This Row],[G&S reporting level indicator]]","v":0},null,null,null,null,null,null,{"$f":"T_DataComboFile[[#This Row],[2021/22 Baseline]]+T_DataComboFile[[#This Row],[2021/22 Reduction]]+T_DataComboFile[[#This Row],[2021/22 Increase]]","v":0},{"$f":"T_DataComboFile[[#This Row],[2022/23 Baseline]]+T_DataComboFile[[#This Row],[2022/23 Reduction]]+T_DataComboFile[[#This Row],[2022/23 Increase]]","v":0},{"$f":"T_DataComboFile[[#This Row],[2023/24 Baseline]]+T_DataComboFile[[#This Row],[2023/24 Reduction]]+T_DataComboFile[[#This Row],[2023/24 Increase]]","v":0}]
["NAT|Non-transfer item","36|Fleet services (including government motor transport)","2021_22","ENE2020",36,4,1,17395,71022,36,4,1,17395,"071022","36|04|01",1,1,2,19,19,"01|01|02|19|19","National","Small Business Development","Enterprise Development and Entrepreneurship","Enterprise and Supplier Development","Non-transfer item","Current","Current payments","Goods and services","Fleet services (including government motor transport)","Fleet services (including government motor transport)","Economic development","Industrialisation and exports","NAT",2,6,12,5,5,5,5,6,6,6,7,8,8,1,null,{"$f":"IF(T_DataComboFile[[#This Row],[G&S reporting level indicator]]=1,$AX$16,\"Not applicable\")","v":"Not applicable"},{"$f":"IF(AND($AX$16=\"Level 3\",T_DataComboFile[[#This Row],[Econ3]] = \"Goods and services\"),IF(T_DataComboFile[[#This Row],[Econ4]] = T_DataComboFile[[#This Row],[Econ3]],1,0),IF(AND($AX$16=\"Level 4\",T_DataComboFile[[#This Row],[Econ4]] = \"Goods and services\"),0,1))","v":0},{"$f":"T_DataComboFile[[#This Row],[2016/17_Source]]*T_DataComboFile[[#This Row],[G&S reporting level indicator]]","v":0},{"$f":"T_DataComboFile[[#This Row],[2017/18_Source]]*T_DataComboFile[[#This Row],[G&S reporting level indicator]]","v":0},{"$f":"T_DataComboFile[[#This Row],[2018/19_Source]]*T_DataComboFile[[#This Row],[G&S reporting level indicator]]","v":0},{"$f":"T_DataComboFile[[#This Row],[2019/20 Main appropriation_Source]]*T_DataComboFile[[#This Row],[G&S reporting level indicator]]","v":0},{"$f":"T_DataComboFile[[#This Row],[2019/20 Adjusted appropriation_Source]]*T_DataComboFile[[#This Row],[G&S reporting level indicator]]","v":0},{"$f":"T_DataComboFile[[#This Row],[2019/20 Revised estimate_Source]]*T_DataComboFile[[#This Row],[G&S reporting level indicator]]","v":0},{"$f":"T_DataComboFile[[#This Row],[2019/20 Preliminary outcome_Source]]*T_DataComboFile[[#This Row],[G&S reporting level indicator]]","v":0},{"$f":"T_DataComboFile[[#This Row],[2020/21 Original_Source]]*T_DataComboFile[[#This Row],[G&S reporting level indicator]]","v":0},{"$f":"T_DataComboFile[[#This Row],[2020/21 SAB_Source]]*T_DataComboFile[[#This Row],[G&S reporting level indicator]]","v":0},{"$f":"T_DataComboFile[[#This Row],[2020/21 Baseline_Source]]*T_DataComboFile[[#This Row],[G&S reporting level indicator]]","v":0},{"$f":"T_DataComboFile[[#This Row],[2021/22 Baseline_Source]]*T_DataComboFile[[#This Row],[G&S reporting level indicator]]","v":0},{"$f":"T_DataComboFile[[#This Row],[2022/23 Baseline_Source]]*T_DataComboFile[[#This Row],[G&S reporting level indicator]]","v":0},{"$f":"T_DataComboFile[[#This Row],[2023/24 Baseline_Source]]*T_DataComboFile[[#This Row],[G&S reporting level indicator]]","v":0},null,null,null,null,null,null,{"$f":"T_DataComboFile[[#This Row],[2021/22 Baseline]]+T_DataComboFile[[#This Row],[2021/22 Reduction]]+T_DataComboFile[[#This Row],[2021/22 Increase]]","v":0},{"$f":"T_DataComboFile[[#This Row],[2022/23 Baseline]]+T_DataComboFile[[#This Row],[2022/23 Reduction]]+T_DataComboFile[[#This Row],[2022/23 Increase]]","v":0},{"$f":"T_DataComboFile[[#This Row],[2023/24 Baseline]]+T_DataComboFile[[#This Row],[2023/24 Reduction]]+T_DataComboFile[[#This Row],[2023/24 Increase]]","v":0}]
[null,null,"2021_22","ENE2020",36,4,1,null,71023,36,4,1,null,"071023","36|04|01",1,1,2,20,20,"01|01|02|20|20","National","Small Business Development","Enterprise Development and Entrepreneurship","Enterprise and Supplier Development",null,"Current","Current payments","Goods and services","Housing","Housing",null,null,null,0,0,0,0,0,0,0,0,0,0,0,0,0,0,null,{"$f":"IF(T_DataComboFile[[#This Row],[G&S reporting level indicator]]=1,$AX$16,\"Not applicable\")","v":"Not applicable"},{"$f":"IF(AND($AX$16=\"Level 3\",T_DataComboFile[[#This Row],[Econ3]] = \"Goods and services\"),IF(T_DataComboFile[[#This Row],[Econ4]] = T_DataComboFile[[#This Row],[Econ3]],1,0),IF(AND($AX$16=\"Level 4\",T_DataComboFile[[#This Row],[Econ4]] = \"Goods and services\"),0,1))","v":0},{"$f":"T_DataComboFile[[#This Row],[2016/17_Source]]*T_DataComboFile[[#This Row],[G&S reporting level indicator]]","v":0},{"$f":"T_DataComboFile[[#This Row],[2017/18_Source]]*T_DataComboFile[[#This Row],[G&S reporting level indicator]]","v":0},{"$f":"T_DataComboFile[[#This Row],[2018/19_Source]]*T_DataComboFile[[#This Row],[G&S reporting level indicator]]","v":0},{"$f":"T_DataComboFile[[#This Row],[2019/20 Main appropriation_Source]]*T_DataComboFile[[#This Row],[G&S reporting level indicator]]","v":0},{"$f":"T_DataComboFile[[#This Row],[2019/20 Adjusted appropriation_Source]]*T_DataComboFile[[#This Row],[G&S reporting level indicator]]","v":0},{"$f":"T_DataComboFile[[#This Row],[2019/20 Revised estimate_Source]]*T_DataComboFile[[#This Row],[G&S reporting level indicator]]","v":0},{"$f":"T_DataComboFile[[#This Row],[2019/20 Preliminary outcome_Source]]*T_DataComboFile[[#This Row],[G&S reporting level indicator]]","v":0},{"$f":"T_DataComboFile[[#This Row],[2020/21 Original_Source]]*T_DataComboFile[[#This Row],[G&S reporting level indicator]]","v":0},{"$f":"T_DataComboFile[[#This Row],[2020/21 SAB_Source]]*T_DataComboFile[[#This Row],[G&S reporting level indicator]]","v":0},{"$f":"T_DataComboFile[[#This Row],[2020/21 Baseline_Source]]*T_DataComboFile[[#This Row],[G&S reporting level indicator]]","v":0},{"$f":"T_DataComboFile[[#This Row],[2021/22 Baseline_Source]]*T_DataComboFile[[#This Row],[G&S reporting level indicator]]","v":0},{"$f":"T_DataComboFile[[#This Row],[2022/23 Baseline_Source]]*T_DataComboFile[[#This Row],[G&S reporting level indicator]]","v":0},{"$f":"T_DataComboFile[[#This Row],[2023/24 Baseline_Source]]*T_DataComboFile[[#This Row],[G&S reporting level indicator]]","v":0},null,null,null,null,null,null,{"$f":"T_DataComboFile[[#This Row],[2021/22 Baseline]]+T_DataComboFile[[#This Row],[2021/22 Reduction]]+T_DataComboFile[[#This Row],[2021/22 Increase]]","v":0},{"$f":"T_DataComboFile[[#This Row],[2022/23 Baseline]]+T_DataComboFile[[#This Row],[2022/23 Reduction]]+T_DataComboFile[[#This Row],[2022/23 Increase]]","v":0},{"$f":"T_DataComboFile[[#This Row],[2023/24 Baseline]]+T_DataComboFile[[#This Row],[2023/24 Reduction]]+T_DataComboFile[[#This Row],[2023/24 Increase]]","v":0}]
[null,null,"2021_22","ENE2020",36,4,1,null,71024,36,4,1,null,"071024","36|04|01",1,1,2,21,21,"01|01|02|21|21","National","Small Business Development","Enterprise Development and Entrepreneurship","Enterprise and Supplier Development",null,"Current","Current payments","Goods and services","Inventory: Clothing material and accessories","Inventory: Clothing material and accessories",null,null,null,0,0,0,0,0,0,0,0,0,0,0,0,0,0,null,{"$f":"IF(T_DataComboFile[[#This Row],[G&S reporting level indicator]]=1,$AX$16,\"Not applicable\")","v":"Not applicable"},{"$f":"IF(AND($AX$16=\"Level 3\",T_DataComboFile[[#This Row],[Econ3]] = \"Goods and services\"),IF(T_DataComboFile[[#This Row],[Econ4]] = T_DataComboFile[[#This Row],[Econ3]],1,0),IF(AND($AX$16=\"Level 4\",T_DataComboFile[[#This Row],[Econ4]] = \"Goods and services\"),0,1))","v":0},{"$f":"T_DataComboFile[[#This Row],[2016/17_Source]]*T_DataComboFile[[#This Row],[G&S reporting level indicator]]","v":0},{"$f":"T_DataComboFile[[#This Row],[2017/18_Source]]*T_DataComboFile[[#This Row],[G&S reporting level indicator]]","v":0},{"$f":"T_DataComboFile[[#This Row],[2018/19_Source]]*T_DataComboFile[[#This Row],[G&S reporting level indicator]]","v":0},{"$f":"T_DataComboFile[[#This Row],[2019/20 Main appropriation_Source]]*T_DataComboFile[[#This Row],[G&S reporting level indicator]]","v":0},{"$f":"T_DataComboFile[[#This Row],[2019/20 Adjusted appropriation_Source]]*T_DataComboFile[[#This Row],[G&S reporting level indicator]]","v":0},{"$f":"T_DataComboFile[[#This Row],[2019/20 Revised estimate_Source]]*T_DataComboFile[[#This Row],[G&S reporting level indicator]]","v":0},{"$f":"T_DataComboFile[[#This Row],[2019/20 Preliminary outcome_Source]]*T_DataComboFile[[#This Row],[G&S reporting level indicator]]","v":0},{"$f":"T_DataComboFile[[#This Row],[2020/21 Original_Source]]*T_DataComboFile[[#This Row],[G&S reporting level indicator]]","v":0},{"$f":"T_DataComboFile[[#This Row],[2020/21 SAB_Source]]*T_DataComboFile[[#This Row],[G&S reporting level indicator]]","v":0},{"$f":"T_DataComboFile[[#This Row],[2020/21 Baseline_Source]]*T_DataComboFile[[#This Row],[G&S reporting level indicator]]","v":0},{"$f":"T_DataComboFile[[#This Row],[2021/22 Baseline_Source]]*T_DataComboFile[[#This Row],[G&S reporting level indicator]]","v":0},{"$f":"T_DataComboFile[[#This Row],[2022/23 Baseline_Source]]*T_DataComboFile[[#This Row],[G&S reporting level indicator]]","v":0},{"$f":"T_DataComboFile[[#This Row],[2023/24 Baseline_Source]]*T_DataComboFile[[#This Row],[G&S reporting level indicator]]","v":0},null,null,null,null,null,null,{"$f":"T_DataComboFile[[#This Row],[2021/22 Baseline]]+T_DataComboFile[[#This Row],[2021/22 Reduction]]+T_DataComboFile[[#This Row],[2021/22 Increase]]","v":0},{"$f":"T_DataComboFile[[#This Row],[2022/23 Baseline]]+T_DataComboFile[[#This Row],[2022/23 Reduction]]+T_DataComboFile[[#This Row],[2022/23 Increase]]","v":0},{"$f":"T_DataComboFile[[#This Row],[2023/24 Baseline]]+T_DataComboFile[[#This Row],[2023/24 Reduction]]+T_DataComboFile[[#This Row],[2023/24 Increase]]","v":0}]
[null,null,"2021_22","ENE2020",36,4,1,null,71025,36,4,1,null,"071025","36|04|01",1,1,2,22,22,"01|01|02|22|22","National","Small Business Development","Enterprise Development and Entrepreneurship","Enterprise and Supplier Development",null,"Current","Current payments","Goods and services","Inventory: Farming supplies","Inventory: Farming supplies",null,null,null,0,0,0,0,0,0,0,0,0,0,0,0,0,0,null,{"$f":"IF(T_DataComboFile[[#This Row],[G&S reporting level indicator]]=1,$AX$16,\"Not applicable\")","v":"Not applicable"},{"$f":"IF(AND($AX$16=\"Level 3\",T_DataComboFile[[#This Row],[Econ3]] = \"Goods and services\"),IF(T_DataComboFile[[#This Row],[Econ4]] = T_DataComboFile[[#This Row],[Econ3]],1,0),IF(AND($AX$16=\"Level 4\",T_DataComboFile[[#This Row],[Econ4]] = \"Goods and services\"),0,1))","v":0},{"$f":"T_DataComboFile[[#This Row],[2016/17_Source]]*T_DataComboFile[[#This Row],[G&S reporting level indicator]]","v":0},{"$f":"T_DataComboFile[[#This Row],[2017/18_Source]]*T_DataComboFile[[#This Row],[G&S reporting level indicator]]","v":0},{"$f":"T_DataComboFile[[#This Row],[2018/19_Source]]*T_DataComboFile[[#This Row],[G&S reporting level indicator]]","v":0},{"$f":"T_DataComboFile[[#This Row],[2019/20 Main appropriation_Source]]*T_DataComboFile[[#This Row],[G&S reporting level indicator]]","v":0},{"$f":"T_DataComboFile[[#This Row],[2019/20 Adjusted appropriation_Source]]*T_DataComboFile[[#This Row],[G&S reporting level indicator]]","v":0},{"$f":"T_DataComboFile[[#This Row],[2019/20 Revised estimate_Source]]*T_DataComboFile[[#This Row],[G&S reporting level indicator]]","v":0},{"$f":"T_DataComboFile[[#This Row],[2019/20 Preliminary outcome_Source]]*T_DataComboFile[[#This Row],[G&S reporting level indicator]]","v":0},{"$f":"T_DataComboFile[[#This Row],[2020/21 Original_Source]]*T_DataComboFile[[#This Row],[G&S reporting level indicator]]","v":0},{"$f":"T_DataComboFile[[#This Row],[2020/21 SAB_Source]]*T_DataComboFile[[#This Row],[G&S reporting level indicator]]","v":0},{"$f":"T_DataComboFile[[#This Row],[2020/21 Baseline_Source]]*T_DataComboFile[[#This Row],[G&S reporting level indicator]]","v":0},{"$f":"T_DataComboFile[[#This Row],[2021/22 Baseline_Source]]*T_DataComboFile[[#This Row],[G&S reporting level indicator]]","v":0},{"$f":"T_DataComboFile[[#This Row],[2022/23 Baseline_Source]]*T_DataComboFile[[#This Row],[G&S reporting level indicator]]","v":0},{"$f":"T_DataComboFile[[#This Row],[2023/24 Baseline_Source]]*T_DataComboFile[[#This Row],[G&S reporting level indicator]]","v":0},null,null,null,null,null,null,{"$f":"T_DataComboFile[[#This Row],[2021/22 Baseline]]+T_DataComboFile[[#This Row],[2021/22 Reduction]]+T_DataComboFile[[#This Row],[2021/22 Increase]]","v":0},{"$f":"T_DataComboFile[[#This Row],[2022/23 Baseline]]+T_DataComboFile[[#This Row],[2022/23 Reduction]]+T_DataComboFile[[#This Row],[2022/23 Increase]]","v":0},{"$f":"T_DataComboFile[[#This Row],[2023/24 Baseline]]+T_DataComboFile[[#This Row],[2023/24 Reduction]]+T_DataComboFile[[#This Row],[2023/24 Increase]]","v":0}]
[null,null,"2021_22","ENE2020",36,4,1,null,71026,36,4,1,null,"071026","36|04|01",1,1,2,23,23,"01|01|02|23|23","National","Small Business Development","Enterprise Development and Entrepreneurship","Enterprise and Supplier Development",null,"Current","Current payments","Goods and services","Inventory: Food and food supplies","Inventory: Food and food supplies",null,null,null,0,0,0,0,0,0,0,0,0,0,0,0,0,0,null,{"$f":"IF(T_DataComboFile[[#This Row],[G&S reporting level indicator]]=1,$AX$16,\"Not applicable\")","v":"Not applicable"},{"$f":"IF(AND($AX$16=\"Level 3\",T_DataComboFile[[#This Row],[Econ3]] = \"Goods and services\"),IF(T_DataComboFile[[#This Row],[Econ4]] = T_DataComboFile[[#This Row],[Econ3]],1,0),IF(AND($AX$16=\"Level 4\",T_DataComboFile[[#This Row],[Econ4]] = \"Goods and services\"),0,1))","v":0},{"$f":"T_DataComboFile[[#This Row],[2016/17_Source]]*T_DataComboFile[[#This Row],[G&S reporting level indicator]]","v":0},{"$f":"T_DataComboFile[[#This Row],[2017/18_Source]]*T_DataComboFile[[#This Row],[G&S reporting level indicator]]","v":0},{"$f":"T_DataComboFile[[#This Row],[2018/19_Source]]*T_DataComboFile[[#This Row],[G&S reporting level indicator]]","v":0},{"$f":"T_DataComboFile[[#This Row],[2019/20 Main appropriation_Source]]*T_DataComboFile[[#This Row],[G&S reporting level indicator]]","v":0},{"$f":"T_DataComboFile[[#This Row],[2019/20 Adjusted appropriation_Source]]*T_DataComboFile[[#This Row],[G&S reporting level indicator]]","v":0},{"$f":"T_DataComboFile[[#This Row],[2019/20 Revised estimate_Source]]*T_DataComboFile[[#This Row],[G&S reporting level indicator]]","v":0},{"$f":"T_DataComboFile[[#This Row],[2019/20 Preliminary outcome_Source]]*T_DataComboFile[[#This Row],[G&S reporting level indicator]]","v":0},{"$f":"T_DataComboFile[[#This Row],[2020/21 Original_Source]]*T_DataComboFile[[#This Row],[G&S reporting level indicator]]","v":0},{"$f":"T_DataComboFile[[#This Row],[2020/21 SAB_Source]]*T_DataComboFile[[#This Row],[G&S reporting level indicator]]","v":0},{"$f":"T_DataComboFile[[#This Row],[2020/21 Baseline_Source]]*T_DataComboFile[[#This Row],[G&S reporting level indicator]]","v":0},{"$f":"T_DataComboFile[[#This Row],[2021/22 Baseline_Source]]*T_DataComboFile[[#This Row],[G&S reporting level indicator]]","v":0},{"$f":"T_DataComboFile[[#This Row],[2022/23 Baseline_Source]]*T_DataComboFile[[#This Row],[G&S reporting level indicator]]","v":0},{"$f":"T_DataComboFile[[#This Row],[2023/24 Baseline_Source]]*T_DataComboFile[[#This Row],[G&S reporting level indicator]]","v":0},null,null,null,null,null,null,{"$f":"T_DataComboFile[[#This Row],[2021/22 Baseline]]+T_DataComboFile[[#This Row],[2021/22 Reduction]]+T_DataComboFile[[#This Row],[2021/22 Increase]]","v":0},{"$f":"T_DataComboFile[[#This Row],[2022/23 Baseline]]+T_DataComboFile[[#This Row],[2022/23 Reduction]]+T_DataComboFile[[#This Row],[2022/23 Increase]]","v":0},{"$f":"T_DataComboFile[[#This Row],[2023/24 Baseline]]+T_DataComboFile[[#This Row],[2023/24 Reduction]]+T_DataComboFile[[#This Row],[2023/24 Increase]]","v":0}]
[null,null,"2021_22","ENE2020",36,4,1,null,71027,36,4,1,null,"071027","36|04|01",1,1,2,24,24,"01|01|02|24|24","National","Small Business Development","Enterprise Development and Entrepreneurship","Enterprise and Supplier Development",null,"Current","Current payments","Goods and services","Inventory: Fuel, oil and gas","Inventory: Fuel, oil and gas",null,null,null,0,0,0,0,0,0,0,0,0,0,0,0,0,0,null,{"$f":"IF(T_DataComboFile[[#This Row],[G&S reporting level indicator]]=1,$AX$16,\"Not applicable\")","v":"Not applicable"},{"$f":"IF(AND($AX$16=\"Level 3\",T_DataComboFile[[#This Row],[Econ3]] = \"Goods and services\"),IF(T_DataComboFile[[#This Row],[Econ4]] = T_DataComboFile[[#This Row],[Econ3]],1,0),IF(AND($AX$16=\"Level 4\",T_DataComboFile[[#This Row],[Econ4]] = \"Goods and services\"),0,1))","v":0},{"$f":"T_DataComboFile[[#This Row],[2016/17_Source]]*T_DataComboFile[[#This Row],[G&S reporting level indicator]]","v":0},{"$f":"T_DataComboFile[[#This Row],[2017/18_Source]]*T_DataComboFile[[#This Row],[G&S reporting level indicator]]","v":0},{"$f":"T_DataComboFile[[#This Row],[2018/19_Source]]*T_DataComboFile[[#This Row],[G&S reporting level indicator]]","v":0},{"$f":"T_DataComboFile[[#This Row],[2019/20 Main appropriation_Source]]*T_DataComboFile[[#This Row],[G&S reporting level indicator]]","v":0},{"$f":"T_DataComboFile[[#This Row],[2019/20 Adjusted appropriation_Source]]*T_DataComboFile[[#This Row],[G&S reporting level indicator]]","v":0},{"$f":"T_DataComboFile[[#This Row],[2019/20 Revised estimate_Source]]*T_DataComboFile[[#This Row],[G&S reporting level indicator]]","v":0},{"$f":"T_DataComboFile[[#This Row],[2019/20 Preliminary outcome_Source]]*T_DataComboFile[[#This Row],[G&S reporting level indicator]]","v":0},{"$f":"T_DataComboFile[[#This Row],[2020/21 Original_Source]]*T_DataComboFile[[#This Row],[G&S reporting level indicator]]","v":0},{"$f":"T_DataComboFile[[#This Row],[2020/21 SAB_Source]]*T_DataComboFile[[#This Row],[G&S reporting level indicator]]","v":0},{"$f":"T_DataComboFile[[#This Row],[2020/21 Baseline_Source]]*T_DataComboFile[[#This Row],[G&S reporting level indicator]]","v":0},{"$f":"T_DataComboFile[[#This Row],[2021/22 Baseline_Source]]*T_DataComboFile[[#This Row],[G&S reporting level indicator]]","v":0},{"$f":"T_DataComboFile[[#This Row],[2022/23 Baseline_Source]]*T_DataComboFile[[#This Row],[G&S reporting level indicator]]","v":0},{"$f":"T_DataComboFile[[#This Row],[2023/24 Baseline_Source]]*T_DataComboFile[[#This Row],[G&S reporting level indicator]]","v":0},null,null,null,null,null,null,{"$f":"T_DataComboFile[[#This Row],[2021/22 Baseline]]+T_DataComboFile[[#This Row],[2021/22 Reduction]]+T_DataComboFile[[#This Row],[2021/22 Increase]]","v":0},{"$f":"T_DataComboFile[[#This Row],[2022/23 Baseline]]+T_DataComboFile[[#This Row],[2022/23 Reduction]]+T_DataComboFile[[#This Row],[2022/23 Increase]]","v":0},{"$f":"T_DataComboFile[[#This Row],[2023/24 Baseline]]+T_DataComboFile[[#This Row],[2023/24 Reduction]]+T_DataComboFile[[#This Row],[2023/24 Increase]]","v":0}]
[null,null,"2021_22","ENE2020",36,4,1,null,71028,36,4,1,null,"071028","36|04|01",1,1,2,25,25,"01|01|02|25|25","National","Small Business Development","Enterprise Development and Entrepreneurship","Enterprise and Supplier Development",null,"Current","Current payments","Goods and services","Inventory: Learner and teacher support material","Inventory: Learner and teacher support material",null,null,null,0,0,0,0,0,0,0,0,0,0,0,0,0,0,null,{"$f":"IF(T_DataComboFile[[#This Row],[G&S reporting level indicator]]=1,$AX$16,\"Not applicable\")","v":"Not applicable"},{"$f":"IF(AND($AX$16=\"Level 3\",T_DataComboFile[[#This Row],[Econ3]] = \"Goods and services\"),IF(T_DataComboFile[[#This Row],[Econ4]] = T_DataComboFile[[#This Row],[Econ3]],1,0),IF(AND($AX$16=\"Level 4\",T_DataComboFile[[#This Row],[Econ4]] = \"Goods and services\"),0,1))","v":0},{"$f":"T_DataComboFile[[#This Row],[2016/17_Source]]*T_DataComboFile[[#This Row],[G&S reporting level indicator]]","v":0},{"$f":"T_DataComboFile[[#This Row],[2017/18_Source]]*T_DataComboFile[[#This Row],[G&S reporting level indicator]]","v":0},{"$f":"T_DataComboFile[[#This Row],[2018/19_Source]]*T_DataComboFile[[#This Row],[G&S reporting level indicator]]","v":0},{"$f":"T_DataComboFile[[#This Row],[2019/20 Main appropriation_Source]]*T_DataComboFile[[#This Row],[G&S reporting level indicator]]","v":0},{"$f":"T_DataComboFile[[#This Row],[2019/20 Adjusted appropriation_Source]]*T_DataComboFile[[#This Row],[G&S reporting level indicator]]","v":0},{"$f":"T_DataComboFile[[#This Row],[2019/20 Revised estimate_Source]]*T_DataComboFile[[#This Row],[G&S reporting level indicator]]","v":0},{"$f":"T_DataComboFile[[#This Row],[2019/20 Preliminary outcome_Source]]*T_DataComboFile[[#This Row],[G&S reporting level indicator]]","v":0},{"$f":"T_DataComboFile[[#This Row],[2020/21 Original_Source]]*T_DataComboFile[[#This Row],[G&S reporting level indicator]]","v":0},{"$f":"T_DataComboFile[[#This Row],[2020/21 SAB_Source]]*T_DataComboFile[[#This Row],[G&S reporting level indicator]]","v":0},{"$f":"T_DataComboFile[[#This Row],[2020/21 Baseline_Source]]*T_DataComboFile[[#This Row],[G&S reporting level indicator]]","v":0},{"$f":"T_DataComboFile[[#This Row],[2021/22 Baseline_Source]]*T_DataComboFile[[#This Row],[G&S reporting level indicator]]","v":0},{"$f":"T_DataComboFile[[#This Row],[2022/23 Baseline_Source]]*T_DataComboFile[[#This Row],[G&S reporting level indicator]]","v":0},{"$f":"T_DataComboFile[[#This Row],[2023/24 Baseline_Source]]*T_DataComboFile[[#This Row],[G&S reporting level indicator]]","v":0},null,null,null,null,null,null,{"$f":"T_DataComboFile[[#This Row],[2021/22 Baseline]]+T_DataComboFile[[#This Row],[2021/22 Reduction]]+T_DataComboFile[[#This Row],[2021/22 Increase]]","v":0},{"$f":"T_DataComboFile[[#This Row],[2022/23 Baseline]]+T_DataComboFile[[#This Row],[2022/23 Reduction]]+T_DataComboFile[[#This Row],[2022/23 Increase]]","v":0},{"$f":"T_DataComboFile[[#This Row],[2023/24 Baseline]]+T_DataComboFile[[#This Row],[2023/24 Reduction]]+T_DataComboFile[[#This Row],[2023/24 Increase]]","v":0}]
[null,null,"2021_22","ENE2020",36,4,1,null,71029,36,4,1,null,"071029","36|04|01",1,1,2,26,26,"01|01|02|26|26","National","Small Business Development","Enterprise Development and Entrepreneurship","Enterprise and Supplier Development",null,"Current","Current payments","Goods and services","Inventory: Materials and supplies","Inventory: Materials and supplies",null,null,null,0,0,0,0,0,0,0,0,0,0,0,0,0,0,null,{"$f":"IF(T_DataComboFile[[#This Row],[G&S reporting level indicator]]=1,$AX$16,\"Not applicable\")","v":"Not applicable"},{"$f":"IF(AND($AX$16=\"Level 3\",T_DataComboFile[[#This Row],[Econ3]] = \"Goods and services\"),IF(T_DataComboFile[[#This Row],[Econ4]] = T_DataComboFile[[#This Row],[Econ3]],1,0),IF(AND($AX$16=\"Level 4\",T_DataComboFile[[#This Row],[Econ4]] = \"Goods and services\"),0,1))","v":0},{"$f":"T_DataComboFile[[#This Row],[2016/17_Source]]*T_DataComboFile[[#This Row],[G&S reporting level indicator]]","v":0},{"$f":"T_DataComboFile[[#This Row],[2017/18_Source]]*T_DataComboFile[[#This Row],[G&S reporting level indicator]]","v":0},{"$f":"T_DataComboFile[[#This Row],[2018/19_Source]]*T_DataComboFile[[#This Row],[G&S reporting level indicator]]","v":0},{"$f":"T_DataComboFile[[#This Row],[2019/20 Main appropriation_Source]]*T_DataComboFile[[#This Row],[G&S reporting level indicator]]","v":0},{"$f":"T_DataComboFile[[#This Row],[2019/20 Adjusted appropriation_Source]]*T_DataComboFile[[#This Row],[G&S reporting level indicator]]","v":0},{"$f":"T_DataComboFile[[#This Row],[2019/20 Revised estimate_Source]]*T_DataComboFile[[#This Row],[G&S reporting level indicator]]","v":0},{"$f":"T_DataComboFile[[#This Row],[2019/20 Preliminary outcome_Source]]*T_DataComboFile[[#This Row],[G&S reporting level indicator]]","v":0},{"$f":"T_DataComboFile[[#This Row],[2020/21 Original_Source]]*T_DataComboFile[[#This Row],[G&S reporting level indicator]]","v":0},{"$f":"T_DataComboFile[[#This Row],[2020/21 SAB_Source]]*T_DataComboFile[[#This Row],[G&S reporting level indicator]]","v":0},{"$f":"T_DataComboFile[[#This Row],[2020/21 Baseline_Source]]*T_DataComboFile[[#This Row],[G&S reporting level indicator]]","v":0},{"$f":"T_DataComboFile[[#This Row],[2021/22 Baseline_Source]]*T_DataComboFile[[#This Row],[G&S reporting level indicator]]","v":0},{"$f":"T_DataComboFile[[#This Row],[2022/23 Baseline_Source]]*T_DataComboFile[[#This Row],[G&S reporting level indicator]]","v":0},{"$f":"T_DataComboFile[[#This Row],[2023/24 Baseline_Source]]*T_DataComboFile[[#This Row],[G&S reporting level indicator]]","v":0},null,null,null,null,null,null,{"$f":"T_DataComboFile[[#This Row],[2021/22 Baseline]]+T_DataComboFile[[#This Row],[2021/22 Reduction]]+T_DataComboFile[[#This Row],[2021/22 Increase]]","v":0},{"$f":"T_DataComboFile[[#This Row],[2022/23 Baseline]]+T_DataComboFile[[#This Row],[2022/23 Reduction]]+T_DataComboFile[[#This Row],[2022/23 Increase]]","v":0},{"$f":"T_DataComboFile[[#This Row],[2023/24 Baseline]]+T_DataComboFile[[#This Row],[2023/24 Reduction]]+T_DataComboFile[[#This Row],[2023/24 Increase]]","v":0}]
[null,null,"2021_22","ENE2020",36,4,1,null,71030,36,4,1,null,"071030","36|04|01",1,1,2,27,27,"01|01|02|27|27","National","Small Business Development","Enterprise Development and Entrepreneurship","Enterprise and Supplier Development",null,"Current","Current payments","Goods and services","Inventory: Medical supplies","Inventory: Medical supplies",null,null,null,0,0,0,0,0,0,0,0,0,0,0,0,0,0,null,{"$f":"IF(T_DataComboFile[[#This Row],[G&S reporting level indicator]]=1,$AX$16,\"Not applicable\")","v":"Not applicable"},{"$f":"IF(AND($AX$16=\"Level 3\",T_DataComboFile[[#This Row],[Econ3]] = \"Goods and services\"),IF(T_DataComboFile[[#This Row],[Econ4]] = T_DataComboFile[[#This Row],[Econ3]],1,0),IF(AND($AX$16=\"Level 4\",T_DataComboFile[[#This Row],[Econ4]] = \"Goods and services\"),0,1))","v":0},{"$f":"T_DataComboFile[[#This Row],[2016/17_Source]]*T_DataComboFile[[#This Row],[G&S reporting level indicator]]","v":0},{"$f":"T_DataComboFile[[#This Row],[2017/18_Source]]*T_DataComboFile[[#This Row],[G&S reporting level indicator]]","v":0},{"$f":"T_DataComboFile[[#This Row],[2018/19_Source]]*T_DataComboFile[[#This Row],[G&S reporting level indicator]]","v":0},{"$f":"T_DataComboFile[[#This Row],[2019/20 Main appropriation_Source]]*T_DataComboFile[[#This Row],[G&S reporting level indicator]]","v":0},{"$f":"T_DataComboFile[[#This Row],[2019/20 Adjusted appropriation_Source]]*T_DataComboFile[[#This Row],[G&S reporting level indicator]]","v":0},{"$f":"T_DataComboFile[[#This Row],[2019/20 Revised estimate_Source]]*T_DataComboFile[[#This Row],[G&S reporting level indicator]]","v":0},{"$f":"T_DataComboFile[[#This Row],[2019/20 Preliminary outcome_Source]]*T_DataComboFile[[#This Row],[G&S reporting level indicator]]","v":0},{"$f":"T_DataComboFile[[#This Row],[2020/21 Original_Source]]*T_DataComboFile[[#This Row],[G&S reporting level indicator]]","v":0},{"$f":"T_DataComboFile[[#This Row],[2020/21 SAB_Source]]*T_DataComboFile[[#This Row],[G&S reporting level indicator]]","v":0},{"$f":"T_DataComboFile[[#This Row],[2020/21 Baseline_Source]]*T_DataComboFile[[#This Row],[G&S reporting level indicator]]","v":0},{"$f":"T_DataComboFile[[#This Row],[2021/22 Baseline_Source]]*T_DataComboFile[[#This Row],[G&S reporting level indicator]]","v":0},{"$f":"T_DataComboFile[[#This Row],[2022/23 Baseline_Source]]*T_DataComboFile[[#This Row],[G&S reporting level indicator]]","v":0},{"$f":"T_DataComboFile[[#This Row],[2023/24 Baseline_Source]]*T_DataComboFile[[#This Row],[G&S reporting level indicator]]","v":0},null,null,null,null,null,null,{"$f":"T_DataComboFile[[#This Row],[2021/22 Baseline]]+T_DataComboFile[[#This Row],[2021/22 Reduction]]+T_DataComboFile[[#This Row],[2021/22 Increase]]","v":0},{"$f":"T_DataComboFile[[#This Row],[2022/23 Baseline]]+T_DataComboFile[[#This Row],[2022/23 Reduction]]+T_DataComboFile[[#This Row],[2022/23 Increase]]","v":0},{"$f":"T_DataComboFile[[#This Row],[2023/24 Baseline]]+T_DataComboFile[[#This Row],[2023/24 Reduction]]+T_DataComboFile[[#This Row],[2023/24 Increase]]","v":0}]
[null,null,"2021_22","ENE2020",36,4,1,null,71031,36,4,1,null,"071031","36|04|01",1,1,2,28,28,"01|01|02|28|28","National","Small Business Development","Enterprise Development and Entrepreneurship","Enterprise and Supplier Development",null,"Current","Current payments","Goods and services","Inventory: Medicine","Inventory: Medicine",null,null,null,0,0,0,0,0,0,0,0,0,0,0,0,0,0,null,{"$f":"IF(T_DataComboFile[[#This Row],[G&S reporting level indicator]]=1,$AX$16,\"Not applicable\")","v":"Not applicable"},{"$f":"IF(AND($AX$16=\"Level 3\",T_DataComboFile[[#This Row],[Econ3]] = \"Goods and services\"),IF(T_DataComboFile[[#This Row],[Econ4]] = T_DataComboFile[[#This Row],[Econ3]],1,0),IF(AND($AX$16=\"Level 4\",T_DataComboFile[[#This Row],[Econ4]] = \"Goods and services\"),0,1))","v":0},{"$f":"T_DataComboFile[[#This Row],[2016/17_Source]]*T_DataComboFile[[#This Row],[G&S reporting level indicator]]","v":0},{"$f":"T_DataComboFile[[#This Row],[2017/18_Source]]*T_DataComboFile[[#This Row],[G&S reporting level indicator]]","v":0},{"$f":"T_DataComboFile[[#This Row],[2018/19_Source]]*T_DataComboFile[[#This Row],[G&S reporting level indicator]]","v":0},{"$f":"T_DataComboFile[[#This Row],[2019/20 Main appropriation_Source]]*T_DataComboFile[[#This Row],[G&S reporting level indicator]]","v":0},{"$f":"T_DataComboFile[[#This Row],[2019/20 Adjusted appropriation_Source]]*T_DataComboFile[[#This Row],[G&S reporting level indicator]]","v":0},{"$f":"T_DataComboFile[[#This Row],[2019/20 Revised estimate_Source]]*T_DataComboFile[[#This Row],[G&S reporting level indicator]]","v":0},{"$f":"T_DataComboFile[[#This Row],[2019/20 Preliminary outcome_Source]]*T_DataComboFile[[#This Row],[G&S reporting level indicator]]","v":0},{"$f":"T_DataComboFile[[#This Row],[2020/21 Original_Source]]*T_DataComboFile[[#This Row],[G&S reporting level indicator]]","v":0},{"$f":"T_DataComboFile[[#This Row],[2020/21 SAB_Source]]*T_DataComboFile[[#This Row],[G&S reporting level indicator]]","v":0},{"$f":"T_DataComboFile[[#This Row],[2020/21 Baseline_Source]]*T_DataComboFile[[#This Row],[G&S reporting level indicator]]","v":0},{"$f":"T_DataComboFile[[#This Row],[2021/22 Baseline_Source]]*T_DataComboFile[[#This Row],[G&S reporting level indicator]]","v":0},{"$f":"T_DataComboFile[[#This Row],[2022/23 Baseline_Source]]*T_DataComboFile[[#This Row],[G&S reporting level indicator]]","v":0},{"$f":"T_DataComboFile[[#This Row],[2023/24 Baseline_Source]]*T_DataComboFile[[#This Row],[G&S reporting level indicator]]","v":0},null,null,null,null,null,null,{"$f":"T_DataComboFile[[#This Row],[2021/22 Baseline]]+T_DataComboFile[[#This Row],[2021/22 Reduction]]+T_DataComboFile[[#This Row],[2021/22 Increase]]","v":0},{"$f":"T_DataComboFile[[#This Row],[2022/23 Baseline]]+T_DataComboFile[[#This Row],[2022/23 Reduction]]+T_DataComboFile[[#This Row],[2022/23 Increase]]","v":0},{"$f":"T_DataComboFile[[#This Row],[2023/24 Baseline]]+T_DataComboFile[[#This Row],[2023/24 Reduction]]+T_DataComboFile[[#This Row],[2023/24 Increase]]","v":0}]
[null,null,"2021_22","ENE2020",36,4,1,null,71032,36,4,1,null,"071032","36|04|01",1,1,2,29,29,"01|01|02|29|29","National","Small Business Development","Enterprise Development and Entrepreneurship","Enterprise and Supplier Development",null,"Current","Current payments","Goods and services","Medsas inventory interface","Medsas inventory interface",null,null,null,0,0,0,0,0,0,0,0,0,0,0,0,0,0,null,{"$f":"IF(T_DataComboFile[[#This Row],[G&S reporting level indicator]]=1,$AX$16,\"Not applicable\")","v":"Not applicable"},{"$f":"IF(AND($AX$16=\"Level 3\",T_DataComboFile[[#This Row],[Econ3]] = \"Goods and services\"),IF(T_DataComboFile[[#This Row],[Econ4]] = T_DataComboFile[[#This Row],[Econ3]],1,0),IF(AND($AX$16=\"Level 4\",T_DataComboFile[[#This Row],[Econ4]] = \"Goods and services\"),0,1))","v":0},{"$f":"T_DataComboFile[[#This Row],[2016/17_Source]]*T_DataComboFile[[#This Row],[G&S reporting level indicator]]","v":0},{"$f":"T_DataComboFile[[#This Row],[2017/18_Source]]*T_DataComboFile[[#This Row],[G&S reporting level indicator]]","v":0},{"$f":"T_DataComboFile[[#This Row],[2018/19_Source]]*T_DataComboFile[[#This Row],[G&S reporting level indicator]]","v":0},{"$f":"T_DataComboFile[[#This Row],[2019/20 Main appropriation_Source]]*T_DataComboFile[[#This Row],[G&S reporting level indicator]]","v":0},{"$f":"T_DataComboFile[[#This Row],[2019/20 Adjusted appropriation_Source]]*T_DataComboFile[[#This Row],[G&S reporting level indicator]]","v":0},{"$f":"T_DataComboFile[[#This Row],[2019/20 Revised estimate_Source]]*T_DataComboFile[[#This Row],[G&S reporting level indicator]]","v":0},{"$f":"T_DataComboFile[[#This Row],[2019/20 Preliminary outcome_Source]]*T_DataComboFile[[#This Row],[G&S reporting level indicator]]","v":0},{"$f":"T_DataComboFile[[#This Row],[2020/21 Original_Source]]*T_DataComboFile[[#This Row],[G&S reporting level indicator]]","v":0},{"$f":"T_DataComboFile[[#This Row],[2020/21 SAB_Source]]*T_DataComboFile[[#This Row],[G&S reporting level indicator]]","v":0},{"$f":"T_DataComboFile[[#This Row],[2020/21 Baseline_Source]]*T_DataComboFile[[#This Row],[G&S reporting level indicator]]","v":0},{"$f":"T_DataComboFile[[#This Row],[2021/22 Baseline_Source]]*T_DataComboFile[[#This Row],[G&S reporting level indicator]]","v":0},{"$f":"T_DataComboFile[[#This Row],[2022/23 Baseline_Source]]*T_DataComboFile[[#This Row],[G&S reporting level indicator]]","v":0},{"$f":"T_DataComboFile[[#This Row],[2023/24 Baseline_Source]]*T_DataComboFile[[#This Row],[G&S reporting level indicator]]","v":0},null,null,null,null,null,null,{"$f":"T_DataComboFile[[#This Row],[2021/22 Baseline]]+T_DataComboFile[[#This Row],[2021/22 Reduction]]+T_DataComboFile[[#This Row],[2021/22 Increase]]","v":0},{"$f":"T_DataComboFile[[#This Row],[2022/23 Baseline]]+T_DataComboFile[[#This Row],[2022/23 Reduction]]+T_DataComboFile[[#This Row],[2022/23 Increase]]","v":0},{"$f":"T_DataComboFile[[#This Row],[2023/24 Baseline]]+T_DataComboFile[[#This Row],[2023/24 Reduction]]+T_DataComboFile[[#This Row],[2023/24 Increase]]","v":0}]
[null,null,"2021_22","ENE2020",36,4,1,null,71033,36,4,1,null,"071033","36|04|01",1,1,2,30,30,"01|01|02|30|30","National","Small Business Development","Enterprise Development and Entrepreneurship","Enterprise and Supplier Development",null,"Current","Current payments","Goods and services","Inventory: Other supplies","Inventory: Other supplies",null,null,null,0,0,0,0,0,0,0,0,0,0,0,0,0,0,null,{"$f":"IF(T_DataComboFile[[#This Row],[G&S reporting level indicator]]=1,$AX$16,\"Not applicable\")","v":"Not applicable"},{"$f":"IF(AND($AX$16=\"Level 3\",T_DataComboFile[[#This Row],[Econ3]] = \"Goods and services\"),IF(T_DataComboFile[[#This Row],[Econ4]] = T_DataComboFile[[#This Row],[Econ3]],1,0),IF(AND($AX$16=\"Level 4\",T_DataComboFile[[#This Row],[Econ4]] = \"Goods and services\"),0,1))","v":0},{"$f":"T_DataComboFile[[#This Row],[2016/17_Source]]*T_DataComboFile[[#This Row],[G&S reporting level indicator]]","v":0},{"$f":"T_DataComboFile[[#This Row],[2017/18_Source]]*T_DataComboFile[[#This Row],[G&S reporting level indicator]]","v":0},{"$f":"T_DataComboFile[[#This Row],[2018/19_Source]]*T_DataComboFile[[#This Row],[G&S reporting level indicator]]","v":0},{"$f":"T_DataComboFile[[#This Row],[2019/20 Main appropriation_Source]]*T_DataComboFile[[#This Row],[G&S reporting level indicator]]","v":0},{"$f":"T_DataComboFile[[#This Row],[2019/20 Adjusted appropriation_Source]]*T_DataComboFile[[#This Row],[G&S reporting level indicator]]","v":0},{"$f":"T_DataComboFile[[#This Row],[2019/20 Revised estimate_Source]]*T_DataComboFile[[#This Row],[G&S reporting level indicator]]","v":0},{"$f":"T_DataComboFile[[#This Row],[2019/20 Preliminary outcome_Source]]*T_DataComboFile[[#This Row],[G&S reporting level indicator]]","v":0},{"$f":"T_DataComboFile[[#This Row],[2020/21 Original_Source]]*T_DataComboFile[[#This Row],[G&S reporting level indicator]]","v":0},{"$f":"T_DataComboFile[[#This Row],[2020/21 SAB_Source]]*T_DataComboFile[[#This Row],[G&S reporting level indicator]]","v":0},{"$f":"T_DataComboFile[[#This Row],[2020/21 Baseline_Source]]*T_DataComboFile[[#This Row],[G&S reporting level indicator]]","v":0},{"$f":"T_DataComboFile[[#This Row],[2021/22 Baseline_Source]]*T_DataComboFile[[#This Row],[G&S reporting level indicator]]","v":0},{"$f":"T_DataComboFile[[#This Row],[2022/23 Baseline_Source]]*T_DataComboFile[[#This Row],[G&S reporting level indicator]]","v":0},{"$f":"T_DataComboFile[[#This Row],[2023/24 Baseline_Source]]*T_DataComboFile[[#This Row],[G&S reporting level indicator]]","v":0},null,null,null,null,null,null,{"$f":"T_DataComboFile[[#This Row],[2021/22 Baseline]]+T_DataComboFile[[#This Row],[2021/22 Reduction]]+T_DataComboFile[[#This Row],[2021/22 Increase]]","v":0},{"$f":"T_DataComboFile[[#This Row],[2022/23 Baseline]]+T_DataComboFile[[#This Row],[2022/23 Reduction]]+T_DataComboFile[[#This Row],[2022/23 Increase]]","v":0},{"$f":"T_DataComboFile[[#This Row],[2023/24 Baseline]]+T_DataComboFile[[#This Row],[2023/24 Reduction]]+T_DataComboFile[[#This Row],[2023/24 Increase]]","v":0}]
["NAT|Non-transfer item","36|Consumable supplies","2021_22","ENE2020",36,4,1,17396,71034,36,4,1,17396,"071034","36|04|01",1,1,2,31,31,"01|01|02|31|31","National","Small Business Development","Enterprise Development and Entrepreneurship","Enterprise and Supplier Development","Non-transfer item","Current","Current payments","Goods and services","Consumable supplies","Consumable supplies","Economic development","Industrialisation and exports","NAT",0,1,1,0,2,2,2,0,0,0,0,0,0,1,null,{"$f":"IF(T_DataComboFile[[#This Row],[G&S reporting level indicator]]=1,$AX$16,\"Not applicable\")","v":"Not applicable"},{"$f":"IF(AND($AX$16=\"Level 3\",T_DataComboFile[[#This Row],[Econ3]] = \"Goods and services\"),IF(T_DataComboFile[[#This Row],[Econ4]] = T_DataComboFile[[#This Row],[Econ3]],1,0),IF(AND($AX$16=\"Level 4\",T_DataComboFile[[#This Row],[Econ4]] = \"Goods and services\"),0,1))","v":0},{"$f":"T_DataComboFile[[#This Row],[2016/17_Source]]*T_DataComboFile[[#This Row],[G&S reporting level indicator]]","v":0},{"$f":"T_DataComboFile[[#This Row],[2017/18_Source]]*T_DataComboFile[[#This Row],[G&S reporting level indicator]]","v":0},{"$f":"T_DataComboFile[[#This Row],[2018/19_Source]]*T_DataComboFile[[#This Row],[G&S reporting level indicator]]","v":0},{"$f":"T_DataComboFile[[#This Row],[2019/20 Main appropriation_Source]]*T_DataComboFile[[#This Row],[G&S reporting level indicator]]","v":0},{"$f":"T_DataComboFile[[#This Row],[2019/20 Adjusted appropriation_Source]]*T_DataComboFile[[#This Row],[G&S reporting level indicator]]","v":0},{"$f":"T_DataComboFile[[#This Row],[2019/20 Revised estimate_Source]]*T_DataComboFile[[#This Row],[G&S reporting level indicator]]","v":0},{"$f":"T_DataComboFile[[#This Row],[2019/20 Preliminary outcome_Source]]*T_DataComboFile[[#This Row],[G&S reporting level indicator]]","v":0},{"$f":"T_DataComboFile[[#This Row],[2020/21 Original_Source]]*T_DataComboFile[[#This Row],[G&S reporting level indicator]]","v":0},{"$f":"T_DataComboFile[[#This Row],[2020/21 SAB_Source]]*T_DataComboFile[[#This Row],[G&S reporting level indicator]]","v":0},{"$f":"T_DataComboFile[[#This Row],[2020/21 Baseline_Source]]*T_DataComboFile[[#This Row],[G&S reporting level indicator]]","v":0},{"$f":"T_DataComboFile[[#This Row],[2021/22 Baseline_Source]]*T_DataComboFile[[#This Row],[G&S reporting level indicator]]","v":0},{"$f":"T_DataComboFile[[#This Row],[2022/23 Baseline_Source]]*T_DataComboFile[[#This Row],[G&S reporting level indicator]]","v":0},{"$f":"T_DataComboFile[[#This Row],[2023/24 Baseline_Source]]*T_DataComboFile[[#This Row],[G&S reporting level indicator]]","v":0},null,null,null,null,null,null,{"$f":"T_DataComboFile[[#This Row],[2021/22 Baseline]]+T_DataComboFile[[#This Row],[2021/22 Reduction]]+T_DataComboFile[[#This Row],[2021/22 Increase]]","v":0},{"$f":"T_DataComboFile[[#This Row],[2022/23 Baseline]]+T_DataComboFile[[#This Row],[2022/23 Reduction]]+T_DataComboFile[[#This Row],[2022/23 Increase]]","v":0},{"$f":"T_DataComboFile[[#This Row],[2023/24 Baseline]]+T_DataComboFile[[#This Row],[2023/24 Reduction]]+T_DataComboFile[[#This Row],[2023/24 Increase]]","v":0}]
["NAT|Non-transfer item","36|Consumables: Stationery, printing and office supplies","2021_22","ENE2020",36,4,1,17397,71035,36,4,1,17397,"071035","36|04|01",1,1,2,32,32,"01|01|02|32|32","National","Small Business Development","Enterprise Development and Entrepreneurship","Enterprise and Supplier Development","Non-transfer item","Current","Current payments","Goods and services","Consumables: Stationery, printing and office supplies","Consumables: Stationery, printing and office supplies","Economic development","Industrialisation and exports","NAT",14,76,12,46,46,46,46,13,13,13,15,19,20,1,null,{"$f":"IF(T_DataComboFile[[#This Row],[G&S reporting level indicator]]=1,$AX$16,\"Not applicable\")","v":"Not applicable"},{"$f":"IF(AND($AX$16=\"Level 3\",T_DataComboFile[[#This Row],[Econ3]] = \"Goods and services\"),IF(T_DataComboFile[[#This Row],[Econ4]] = T_DataComboFile[[#This Row],[Econ3]],1,0),IF(AND($AX$16=\"Level 4\",T_DataComboFile[[#This Row],[Econ4]] = \"Goods and services\"),0,1))","v":0},{"$f":"T_DataComboFile[[#This Row],[2016/17_Source]]*T_DataComboFile[[#This Row],[G&S reporting level indicator]]","v":0},{"$f":"T_DataComboFile[[#This Row],[2017/18_Source]]*T_DataComboFile[[#This Row],[G&S reporting level indicator]]","v":0},{"$f":"T_DataComboFile[[#This Row],[2018/19_Source]]*T_DataComboFile[[#This Row],[G&S reporting level indicator]]","v":0},{"$f":"T_DataComboFile[[#This Row],[2019/20 Main appropriation_Source]]*T_DataComboFile[[#This Row],[G&S reporting level indicator]]","v":0},{"$f":"T_DataComboFile[[#This Row],[2019/20 Adjusted appropriation_Source]]*T_DataComboFile[[#This Row],[G&S reporting level indicator]]","v":0},{"$f":"T_DataComboFile[[#This Row],[2019/20 Revised estimate_Source]]*T_DataComboFile[[#This Row],[G&S reporting level indicator]]","v":0},{"$f":"T_DataComboFile[[#This Row],[2019/20 Preliminary outcome_Source]]*T_DataComboFile[[#This Row],[G&S reporting level indicator]]","v":0},{"$f":"T_DataComboFile[[#This Row],[2020/21 Original_Source]]*T_DataComboFile[[#This Row],[G&S reporting level indicator]]","v":0},{"$f":"T_DataComboFile[[#This Row],[2020/21 SAB_Source]]*T_DataComboFile[[#This Row],[G&S reporting level indicator]]","v":0},{"$f":"T_DataComboFile[[#This Row],[2020/21 Baseline_Source]]*T_DataComboFile[[#This Row],[G&S reporting level indicator]]","v":0},{"$f":"T_DataComboFile[[#This Row],[2021/22 Baseline_Source]]*T_DataComboFile[[#This Row],[G&S reporting level indicator]]","v":0},{"$f":"T_DataComboFile[[#This Row],[2022/23 Baseline_Source]]*T_DataComboFile[[#This Row],[G&S reporting level indicator]]","v":0},{"$f":"T_DataComboFile[[#This Row],[2023/24 Baseline_Source]]*T_DataComboFile[[#This Row],[G&S reporting level indicator]]","v":0},null,null,null,null,null,null,{"$f":"T_DataComboFile[[#This Row],[2021/22 Baseline]]+T_DataComboFile[[#This Row],[2021/22 Reduction]]+T_DataComboFile[[#This Row],[2021/22 Increase]]","v":0},{"$f":"T_DataComboFile[[#This Row],[2022/23 Baseline]]+T_DataComboFile[[#This Row],[2022/23 Reduction]]+T_DataComboFile[[#This Row],[2022/23 Increase]]","v":0},{"$f":"T_DataComboFile[[#This Row],[2023/24 Baseline]]+T_DataComboFile[[#This Row],[2023/24 Reduction]]+T_DataComboFile[[#This Row],[2023/24 Increase]]","v":0}]
["NAT|Non-transfer item","36|Operating leases","2021_22","ENE2020",36,4,1,17398,71036,36,4,1,17398,"071036","36|04|01",1,1,2,33,33,"01|01|02|33|33","National","Small Business Development","Enterprise Development and Entrepreneurship","Enterprise and Supplier Development","Non-transfer item","Current","Current payments","Goods and services","Operating leases","Operating leases","Economic development","Industrialisation and exports","NAT",6,0,0,0,0,0,0,0,0,0,0,0,0,1,null,{"$f":"IF(T_DataComboFile[[#This Row],[G&S reporting level indicator]]=1,$AX$16,\"Not applicable\")","v":"Not applicable"},{"$f":"IF(AND($AX$16=\"Level 3\",T_DataComboFile[[#This Row],[Econ3]] = \"Goods and services\"),IF(T_DataComboFile[[#This Row],[Econ4]] = T_DataComboFile[[#This Row],[Econ3]],1,0),IF(AND($AX$16=\"Level 4\",T_DataComboFile[[#This Row],[Econ4]] = \"Goods and services\"),0,1))","v":0},{"$f":"T_DataComboFile[[#This Row],[2016/17_Source]]*T_DataComboFile[[#This Row],[G&S reporting level indicator]]","v":0},{"$f":"T_DataComboFile[[#This Row],[2017/18_Source]]*T_DataComboFile[[#This Row],[G&S reporting level indicator]]","v":0},{"$f":"T_DataComboFile[[#This Row],[2018/19_Source]]*T_DataComboFile[[#This Row],[G&S reporting level indicator]]","v":0},{"$f":"T_DataComboFile[[#This Row],[2019/20 Main appropriation_Source]]*T_DataComboFile[[#This Row],[G&S reporting level indicator]]","v":0},{"$f":"T_DataComboFile[[#This Row],[2019/20 Adjusted appropriation_Source]]*T_DataComboFile[[#This Row],[G&S reporting level indicator]]","v":0},{"$f":"T_DataComboFile[[#This Row],[2019/20 Revised estimate_Source]]*T_DataComboFile[[#This Row],[G&S reporting level indicator]]","v":0},{"$f":"T_DataComboFile[[#This Row],[2019/20 Preliminary outcome_Source]]*T_DataComboFile[[#This Row],[G&S reporting level indicator]]","v":0},{"$f":"T_DataComboFile[[#This Row],[2020/21 Original_Source]]*T_DataComboFile[[#This Row],[G&S reporting level indicator]]","v":0},{"$f":"T_DataComboFile[[#This Row],[2020/21 SAB_Source]]*T_DataComboFile[[#This Row],[G&S reporting level indicator]]","v":0},{"$f":"T_DataComboFile[[#This Row],[2020/21 Baseline_Source]]*T_DataComboFile[[#This Row],[G&S reporting level indicator]]","v":0},{"$f":"T_DataComboFile[[#This Row],[2021/22 Baseline_Source]]*T_DataComboFile[[#This Row],[G&S reporting level indicator]]","v":0},{"$f":"T_DataComboFile[[#This Row],[2022/23 Baseline_Source]]*T_DataComboFile[[#This Row],[G&S reporting level indicator]]","v":0},{"$f":"T_DataComboFile[[#This Row],[2023/24 Baseline_Source]]*T_DataComboFile[[#This Row],[G&S reporting level indicator]]","v":0},null,null,null,null,null,null,{"$f":"T_DataComboFile[[#This Row],[2021/22 Baseline]]+T_DataComboFile[[#This Row],[2021/22 Reduction]]+T_DataComboFile[[#This Row],[2021/22 Increase]]","v":0},{"$f":"T_DataComboFile[[#This Row],[2022/23 Baseline]]+T_DataComboFile[[#This Row],[2022/23 Reduction]]+T_DataComboFile[[#This Row],[2022/23 Increase]]","v":0},{"$f":"T_DataComboFile[[#This Row],[2023/24 Baseline]]+T_DataComboFile[[#This Row],[2023/24 Reduction]]+T_DataComboFile[[#This Row],[2023/24 Increase]]","v":0}]
[null,null,"2021_22","ENE2020",36,4,1,null,71037,36,4,1,null,"071037","36|04|01",1,1,2,34,34,"01|01|02|34|34","National","Small Business Development","Enterprise Development and Entrepreneurship","Enterprise and Supplier Development",null,"Current","Current payments","Goods and services","Rental and hiring","Rental and hiring",null,null,null,0,0,0,0,0,0,0,0,0,0,0,0,0,0,null,{"$f":"IF(T_DataComboFile[[#This Row],[G&S reporting level indicator]]=1,$AX$16,\"Not applicable\")","v":"Not applicable"},{"$f":"IF(AND($AX$16=\"Level 3\",T_DataComboFile[[#This Row],[Econ3]] = \"Goods and services\"),IF(T_DataComboFile[[#This Row],[Econ4]] = T_DataComboFile[[#This Row],[Econ3]],1,0),IF(AND($AX$16=\"Level 4\",T_DataComboFile[[#This Row],[Econ4]] = \"Goods and services\"),0,1))","v":0},{"$f":"T_DataComboFile[[#This Row],[2016/17_Source]]*T_DataComboFile[[#This Row],[G&S reporting level indicator]]","v":0},{"$f":"T_DataComboFile[[#This Row],[2017/18_Source]]*T_DataComboFile[[#This Row],[G&S reporting level indicator]]","v":0},{"$f":"T_DataComboFile[[#This Row],[2018/19_Source]]*T_DataComboFile[[#This Row],[G&S reporting level indicator]]","v":0},{"$f":"T_DataComboFile[[#This Row],[2019/20 Main appropriation_Source]]*T_DataComboFile[[#This Row],[G&S reporting level indicator]]","v":0},{"$f":"T_DataComboFile[[#This Row],[2019/20 Adjusted appropriation_Source]]*T_DataComboFile[[#This Row],[G&S reporting level indicator]]","v":0},{"$f":"T_DataComboFile[[#This Row],[2019/20 Revised estimate_Source]]*T_DataComboFile[[#This Row],[G&S reporting level indicator]]","v":0},{"$f":"T_DataComboFile[[#This Row],[2019/20 Preliminary outcome_Source]]*T_DataComboFile[[#This Row],[G&S reporting level indicator]]","v":0},{"$f":"T_DataComboFile[[#This Row],[2020/21 Original_Source]]*T_DataComboFile[[#This Row],[G&S reporting level indicator]]","v":0},{"$f":"T_DataComboFile[[#This Row],[2020/21 SAB_Source]]*T_DataComboFile[[#This Row],[G&S reporting level indicator]]","v":0},{"$f":"T_DataComboFile[[#This Row],[2020/21 Baseline_Source]]*T_DataComboFile[[#This Row],[G&S reporting level indicator]]","v":0},{"$f":"T_DataComboFile[[#This Row],[2021/22 Baseline_Source]]*T_DataComboFile[[#This Row],[G&S reporting level indicator]]","v":0},{"$f":"T_DataComboFile[[#This Row],[2022/23 Baseline_Source]]*T_DataComboFile[[#This Row],[G&S reporting level indicator]]","v":0},{"$f":"T_DataComboFile[[#This Row],[2023/24 Baseline_Source]]*T_DataComboFile[[#This Row],[G&S reporting level indicator]]","v":0},null,null,null,null,null,null,{"$f":"T_DataComboFile[[#This Row],[2021/22 Baseline]]+T_DataComboFile[[#This Row],[2021/22 Reduction]]+T_DataComboFile[[#This Row],[2021/22 Increase]]","v":0},{"$f":"T_DataComboFile[[#This Row],[2022/23 Baseline]]+T_DataComboFile[[#This Row],[2022/23 Reduction]]+T_DataComboFile[[#This Row],[2022/23 Increase]]","v":0},{"$f":"T_DataComboFile[[#This Row],[2023/24 Baseline]]+T_DataComboFile[[#This Row],[2023/24 Reduction]]+T_DataComboFile[[#This Row],[2023/24 Increase]]","v":0}]
[null,null,"2021_22","ENE2020",36,4,1,null,71038,36,4,1,null,"071038","36|04|01",1,1,2,35,35,"01|01|02|35|35","National","Small Business Development","Enterprise Development and Entrepreneurship","Enterprise and Supplier Development",null,"Current","Current payments","Goods and services","Property payments","Property payments",null,null,null,0,0,0,0,0,0,0,0,0,0,0,0,0,0,null,{"$f":"IF(T_DataComboFile[[#This Row],[G&S reporting level indicator]]=1,$AX$16,\"Not applicable\")","v":"Not applicable"},{"$f":"IF(AND($AX$16=\"Level 3\",T_DataComboFile[[#This Row],[Econ3]] = \"Goods and services\"),IF(T_DataComboFile[[#This Row],[Econ4]] = T_DataComboFile[[#This Row],[Econ3]],1,0),IF(AND($AX$16=\"Level 4\",T_DataComboFile[[#This Row],[Econ4]] = \"Goods and services\"),0,1))","v":0},{"$f":"T_DataComboFile[[#This Row],[2016/17_Source]]*T_DataComboFile[[#This Row],[G&S reporting level indicator]]","v":0},{"$f":"T_DataComboFile[[#This Row],[2017/18_Source]]*T_DataComboFile[[#This Row],[G&S reporting level indicator]]","v":0},{"$f":"T_DataComboFile[[#This Row],[2018/19_Source]]*T_DataComboFile[[#This Row],[G&S reporting level indicator]]","v":0},{"$f":"T_DataComboFile[[#This Row],[2019/20 Main appropriation_Source]]*T_DataComboFile[[#This Row],[G&S reporting level indicator]]","v":0},{"$f":"T_DataComboFile[[#This Row],[2019/20 Adjusted appropriation_Source]]*T_DataComboFile[[#This Row],[G&S reporting level indicator]]","v":0},{"$f":"T_DataComboFile[[#This Row],[2019/20 Revised estimate_Source]]*T_DataComboFile[[#This Row],[G&S reporting level indicator]]","v":0},{"$f":"T_DataComboFile[[#This Row],[2019/20 Preliminary outcome_Source]]*T_DataComboFile[[#This Row],[G&S reporting level indicator]]","v":0},{"$f":"T_DataComboFile[[#This Row],[2020/21 Original_Source]]*T_DataComboFile[[#This Row],[G&S reporting level indicator]]","v":0},{"$f":"T_DataComboFile[[#This Row],[2020/21 SAB_Source]]*T_DataComboFile[[#This Row],[G&S reporting level indicator]]","v":0},{"$f":"T_DataComboFile[[#This Row],[2020/21 Baseline_Source]]*T_DataComboFile[[#This Row],[G&S reporting level indicator]]","v":0},{"$f":"T_DataComboFile[[#This Row],[2021/22 Baseline_Source]]*T_DataComboFile[[#This Row],[G&S reporting level indicator]]","v":0},{"$f":"T_DataComboFile[[#This Row],[2022/23 Baseline_Source]]*T_DataComboFile[[#This Row],[G&S reporting level indicator]]","v":0},{"$f":"T_DataComboFile[[#This Row],[2023/24 Baseline_Source]]*T_DataComboFile[[#This Row],[G&S reporting level indicator]]","v":0},null,null,null,null,null,null,{"$f":"T_DataComboFile[[#This Row],[2021/22 Baseline]]+T_DataComboFile[[#This Row],[2021/22 Reduction]]+T_DataComboFile[[#This Row],[2021/22 Increase]]","v":0},{"$f":"T_DataComboFile[[#This Row],[2022/23 Baseline]]+T_DataComboFile[[#This Row],[2022/23 Reduction]]+T_DataComboFile[[#This Row],[2022/23 Increase]]","v":0},{"$f":"T_DataComboFile[[#This Row],[2023/24 Baseline]]+T_DataComboFile[[#This Row],[2023/24 Reduction]]+T_DataComboFile[[#This Row],[2023/24 Increase]]","v":0}]
[null,null,"2021_22","ENE2020",36,4,1,null,71039,36,4,1,null,"071039","36|04|01",1,1,2,36,36,"01|01|02|36|36","National","Small Business Development","Enterprise Development and Entrepreneurship","Enterprise and Supplier Development",null,"Current","Current payments","Goods and services","Transport provided: Departmental activity","Transport provided: Departmental activity",null,null,null,0,0,0,0,0,0,0,0,0,0,0,0,0,0,null,{"$f":"IF(T_DataComboFile[[#This Row],[G&S reporting level indicator]]=1,$AX$16,\"Not applicable\")","v":"Not applicable"},{"$f":"IF(AND($AX$16=\"Level 3\",T_DataComboFile[[#This Row],[Econ3]] = \"Goods and services\"),IF(T_DataComboFile[[#This Row],[Econ4]] = T_DataComboFile[[#This Row],[Econ3]],1,0),IF(AND($AX$16=\"Level 4\",T_DataComboFile[[#This Row],[Econ4]] = \"Goods and services\"),0,1))","v":0},{"$f":"T_DataComboFile[[#This Row],[2016/17_Source]]*T_DataComboFile[[#This Row],[G&S reporting level indicator]]","v":0},{"$f":"T_DataComboFile[[#This Row],[2017/18_Source]]*T_DataComboFile[[#This Row],[G&S reporting level indicator]]","v":0},{"$f":"T_DataComboFile[[#This Row],[2018/19_Source]]*T_DataComboFile[[#This Row],[G&S reporting level indicator]]","v":0},{"$f":"T_DataComboFile[[#This Row],[2019/20 Main appropriation_Source]]*T_DataComboFile[[#This Row],[G&S reporting level indicator]]","v":0},{"$f":"T_DataComboFile[[#This Row],[2019/20 Adjusted appropriation_Source]]*T_DataComboFile[[#This Row],[G&S reporting level indicator]]","v":0},{"$f":"T_DataComboFile[[#This Row],[2019/20 Revised estimate_Source]]*T_DataComboFile[[#This Row],[G&S reporting level indicator]]","v":0},{"$f":"T_DataComboFile[[#This Row],[2019/20 Preliminary outcome_Source]]*T_DataComboFile[[#This Row],[G&S reporting level indicator]]","v":0},{"$f":"T_DataComboFile[[#This Row],[2020/21 Original_Source]]*T_DataComboFile[[#This Row],[G&S reporting level indicator]]","v":0},{"$f":"T_DataComboFile[[#This Row],[2020/21 SAB_Source]]*T_DataComboFile[[#This Row],[G&S reporting level indicator]]","v":0},{"$f":"T_DataComboFile[[#This Row],[2020/21 Baseline_Source]]*T_DataComboFile[[#This Row],[G&S reporting level indicator]]","v":0},{"$f":"T_DataComboFile[[#This Row],[2021/22 Baseline_Source]]*T_DataComboFile[[#This Row],[G&S reporting level indicator]]","v":0},{"$f":"T_DataComboFile[[#This Row],[2022/23 Baseline_Source]]*T_DataComboFile[[#This Row],[G&S reporting level indicator]]","v":0},{"$f":"T_DataComboFile[[#This Row],[2023/24 Baseline_Source]]*T_DataComboFile[[#This Row],[G&S reporting level indicator]]","v":0},null,null,null,null,null,null,{"$f":"T_DataComboFile[[#This Row],[2021/22 Baseline]]+T_DataComboFile[[#This Row],[2021/22 Reduction]]+T_DataComboFile[[#This Row],[2021/22 Increase]]","v":0},{"$f":"T_DataComboFile[[#This Row],[2022/23 Baseline]]+T_DataComboFile[[#This Row],[2022/23 Reduction]]+T_DataComboFile[[#This Row],[2022/23 Increase]]","v":0},{"$f":"T_DataComboFile[[#This Row],[2023/24 Baseline]]+T_DataComboFile[[#This Row],[2023/24 Reduction]]+T_DataComboFile[[#This Row],[2023/24 Increase]]","v":0}]
["NAT|Non-transfer item","36|Travel and subsistence","2021_22","ENE2020",36,4,1,17399,71040,36,4,1,17399,"071040","36|04|01",1,1,2,37,37,"01|01|02|37|37","National","Small Business Development","Enterprise Development and Entrepreneurship","Enterprise and Supplier Development","Non-transfer item","Current","Current payments","Goods and services","Travel and subsistence","Travel and subsistence","Economic development","Industrialisation and exports","NAT",1430,1637,864,541,908,908,908,1038,438,1038,1030,1114,1163,1,null,{"$f":"IF(T_DataComboFile[[#This Row],[G&S reporting level indicator]]=1,$AX$16,\"Not applicable\")","v":"Not applicable"},{"$f":"IF(AND($AX$16=\"Level 3\",T_DataComboFile[[#This Row],[Econ3]] = \"Goods and services\"),IF(T_DataComboFile[[#This Row],[Econ4]] = T_DataComboFile[[#This Row],[Econ3]],1,0),IF(AND($AX$16=\"Level 4\",T_DataComboFile[[#This Row],[Econ4]] = \"Goods and services\"),0,1))","v":0},{"$f":"T_DataComboFile[[#This Row],[2016/17_Source]]*T_DataComboFile[[#This Row],[G&S reporting level indicator]]","v":0},{"$f":"T_DataComboFile[[#This Row],[2017/18_Source]]*T_DataComboFile[[#This Row],[G&S reporting level indicator]]","v":0},{"$f":"T_DataComboFile[[#This Row],[2018/19_Source]]*T_DataComboFile[[#This Row],[G&S reporting level indicator]]","v":0},{"$f":"T_DataComboFile[[#This Row],[2019/20 Main appropriation_Source]]*T_DataComboFile[[#This Row],[G&S reporting level indicator]]","v":0},{"$f":"T_DataComboFile[[#This Row],[2019/20 Adjusted appropriation_Source]]*T_DataComboFile[[#This Row],[G&S reporting level indicator]]","v":0},{"$f":"T_DataComboFile[[#This Row],[2019/20 Revised estimate_Source]]*T_DataComboFile[[#This Row],[G&S reporting level indicator]]","v":0},{"$f":"T_DataComboFile[[#This Row],[2019/20 Preliminary outcome_Source]]*T_DataComboFile[[#This Row],[G&S reporting level indicator]]","v":0},{"$f":"T_DataComboFile[[#This Row],[2020/21 Original_Source]]*T_DataComboFile[[#This Row],[G&S reporting level indicator]]","v":0},{"$f":"T_DataComboFile[[#This Row],[2020/21 SAB_Source]]*T_DataComboFile[[#This Row],[G&S reporting level indicator]]","v":0},{"$f":"T_DataComboFile[[#This Row],[2020/21 Baseline_Source]]*T_DataComboFile[[#This Row],[G&S reporting level indicator]]","v":0},{"$f":"T_DataComboFile[[#This Row],[2021/22 Baseline_Source]]*T_DataComboFile[[#This Row],[G&S reporting level indicator]]","v":0},{"$f":"T_DataComboFile[[#This Row],[2022/23 Baseline_Source]]*T_DataComboFile[[#This Row],[G&S reporting level indicator]]","v":0},{"$f":"T_DataComboFile[[#This Row],[2023/24 Baseline_Source]]*T_DataComboFile[[#This Row],[G&S reporting level indicator]]","v":0},null,null,null,null,null,null,{"$f":"T_DataComboFile[[#This Row],[2021/22 Baseline]]+T_DataComboFile[[#This Row],[2021/22 Reduction]]+T_DataComboFile[[#This Row],[2021/22 Increase]]","v":0},{"$f":"T_DataComboFile[[#This Row],[2022/23 Baseline]]+T_DataComboFile[[#This Row],[2022/23 Reduction]]+T_DataComboFile[[#This Row],[2022/23 Increase]]","v":0},{"$f":"T_DataComboFile[[#This Row],[2023/24 Baseline]]+T_DataComboFile[[#This Row],[2023/24 Reduction]]+T_DataComboFile[[#This Row],[2023/24 Increase]]","v":0}]
["NAT|Non-transfer item","36|Training and development","2021_22","ENE2020",36,4,1,17400,71041,36,4,1,17400,"071041","36|04|01",1,1,2,38,38,"01|01|02|38|38","National","Small Business Development","Enterprise Development and Entrepreneurship","Enterprise and Supplier Development","Non-transfer item","Current","Current payments","Goods and services","Training and development","Training and development","Economic development","Industrialisation and exports","NAT",16,0,0,0,0,0,0,0,0,0,0,0,0,1,null,{"$f":"IF(T_DataComboFile[[#This Row],[G&S reporting level indicator]]=1,$AX$16,\"Not applicable\")","v":"Not applicable"},{"$f":"IF(AND($AX$16=\"Level 3\",T_DataComboFile[[#This Row],[Econ3]] = \"Goods and services\"),IF(T_DataComboFile[[#This Row],[Econ4]] = T_DataComboFile[[#This Row],[Econ3]],1,0),IF(AND($AX$16=\"Level 4\",T_DataComboFile[[#This Row],[Econ4]] = \"Goods and services\"),0,1))","v":0},{"$f":"T_DataComboFile[[#This Row],[2016/17_Source]]*T_DataComboFile[[#This Row],[G&S reporting level indicator]]","v":0},{"$f":"T_DataComboFile[[#This Row],[2017/18_Source]]*T_DataComboFile[[#This Row],[G&S reporting level indicator]]","v":0},{"$f":"T_DataComboFile[[#This Row],[2018/19_Source]]*T_DataComboFile[[#This Row],[G&S reporting level indicator]]","v":0},{"$f":"T_DataComboFile[[#This Row],[2019/20 Main appropriation_Source]]*T_DataComboFile[[#This Row],[G&S reporting level indicator]]","v":0},{"$f":"T_DataComboFile[[#This Row],[2019/20 Adjusted appropriation_Source]]*T_DataComboFile[[#This Row],[G&S reporting level indicator]]","v":0},{"$f":"T_DataComboFile[[#This Row],[2019/20 Revised estimate_Source]]*T_DataComboFile[[#This Row],[G&S reporting level indicator]]","v":0},{"$f":"T_DataComboFile[[#This Row],[2019/20 Preliminary outcome_Source]]*T_DataComboFile[[#This Row],[G&S reporting level indicator]]","v":0},{"$f":"T_DataComboFile[[#This Row],[2020/21 Original_Source]]*T_DataComboFile[[#This Row],[G&S reporting level indicator]]","v":0},{"$f":"T_DataComboFile[[#This Row],[2020/21 SAB_Source]]*T_DataComboFile[[#This Row],[G&S reporting level indicator]]","v":0},{"$f":"T_DataComboFile[[#This Row],[2020/21 Baseline_Source]]*T_DataComboFile[[#This Row],[G&S reporting level indicator]]","v":0},{"$f":"T_DataComboFile[[#This Row],[2021/22 Baseline_Source]]*T_DataComboFile[[#This Row],[G&S reporting level indicator]]","v":0},{"$f":"T_DataComboFile[[#This Row],[2022/23 Baseline_Source]]*T_DataComboFile[[#This Row],[G&S reporting level indicator]]","v":0},{"$f":"T_DataComboFile[[#This Row],[2023/24 Baseline_Source]]*T_DataComboFile[[#This Row],[G&S reporting level indicator]]","v":0},null,null,null,null,null,null,{"$f":"T_DataComboFile[[#This Row],[2021/22 Baseline]]+T_DataComboFile[[#This Row],[2021/22 Reduction]]+T_DataComboFile[[#This Row],[2021/22 Increase]]","v":0},{"$f":"T_DataComboFile[[#This Row],[2022/23 Baseline]]+T_DataComboFile[[#This Row],[2022/23 Reduction]]+T_DataComboFile[[#This Row],[2022/23 Increase]]","v":0},{"$f":"T_DataComboFile[[#This Row],[2023/24 Baseline]]+T_DataComboFile[[#This Row],[2023/24 Reduction]]+T_DataComboFile[[#This Row],[2023/24 Increase]]","v":0}]
["NAT|Non-transfer item","36|Operating payments","2021_22","ENE2020",36,4,1,17401,71042,36,4,1,17401,"071042","36|04|01",1,1,2,39,39,"01|01|02|39|39","National","Small Business Development","Enterprise Development and Entrepreneurship","Enterprise and Supplier Development","Non-transfer item","Current","Current payments","Goods and services","Operating payments","Operating payments","Economic development","Industrialisation and exports","NAT",105,0,0,0,0,0,0,0,0,0,0,0,0,1,null,{"$f":"IF(T_DataComboFile[[#This Row],[G&S reporting level indicator]]=1,$AX$16,\"Not applicable\")","v":"Not applicable"},{"$f":"IF(AND($AX$16=\"Level 3\",T_DataComboFile[[#This Row],[Econ3]] = \"Goods and services\"),IF(T_DataComboFile[[#This Row],[Econ4]] = T_DataComboFile[[#This Row],[Econ3]],1,0),IF(AND($AX$16=\"Level 4\",T_DataComboFile[[#This Row],[Econ4]] = \"Goods and services\"),0,1))","v":0},{"$f":"T_DataComboFile[[#This Row],[2016/17_Source]]*T_DataComboFile[[#This Row],[G&S reporting level indicator]]","v":0},{"$f":"T_DataComboFile[[#This Row],[2017/18_Source]]*T_DataComboFile[[#This Row],[G&S reporting level indicator]]","v":0},{"$f":"T_DataComboFile[[#This Row],[2018/19_Source]]*T_DataComboFile[[#This Row],[G&S reporting level indicator]]","v":0},{"$f":"T_DataComboFile[[#This Row],[2019/20 Main appropriation_Source]]*T_DataComboFile[[#This Row],[G&S reporting level indicator]]","v":0},{"$f":"T_DataComboFile[[#This Row],[2019/20 Adjusted appropriation_Source]]*T_DataComboFile[[#This Row],[G&S reporting level indicator]]","v":0},{"$f":"T_DataComboFile[[#This Row],[2019/20 Revised estimate_Source]]*T_DataComboFile[[#This Row],[G&S reporting level indicator]]","v":0},{"$f":"T_DataComboFile[[#This Row],[2019/20 Preliminary outcome_Source]]*T_DataComboFile[[#This Row],[G&S reporting level indicator]]","v":0},{"$f":"T_DataComboFile[[#This Row],[2020/21 Original_Source]]*T_DataComboFile[[#This Row],[G&S reporting level indicator]]","v":0},{"$f":"T_DataComboFile[[#This Row],[2020/21 SAB_Source]]*T_DataComboFile[[#This Row],[G&S reporting level indicator]]","v":0},{"$f":"T_DataComboFile[[#This Row],[2020/21 Baseline_Source]]*T_DataComboFile[[#This Row],[G&S reporting level indicator]]","v":0},{"$f":"T_DataComboFile[[#This Row],[2021/22 Baseline_Source]]*T_DataComboFile[[#This Row],[G&S reporting level indicator]]","v":0},{"$f":"T_DataComboFile[[#This Row],[2022/23 Baseline_Source]]*T_DataComboFile[[#This Row],[G&S reporting level indicator]]","v":0},{"$f":"T_DataComboFile[[#This Row],[2023/24 Baseline_Source]]*T_DataComboFile[[#This Row],[G&S reporting level indicator]]","v":0},null,null,null,null,null,null,{"$f":"T_DataComboFile[[#This Row],[2021/22 Baseline]]+T_DataComboFile[[#This Row],[2021/22 Reduction]]+T_DataComboFile[[#This Row],[2021/22 Increase]]","v":0},{"$f":"T_DataComboFile[[#This Row],[2022/23 Baseline]]+T_DataComboFile[[#This Row],[2022/23 Reduction]]+T_DataComboFile[[#This Row],[2022/23 Increase]]","v":0},{"$f":"T_DataComboFile[[#This Row],[2023/24 Baseline]]+T_DataComboFile[[#This Row],[2023/24 Reduction]]+T_DataComboFile[[#This Row],[2023/24 Increase]]","v":0}]
["NAT|Non-transfer item","36|Venues and facilities","2021_22","ENE2020",36,4,1,17402,71043,36,4,1,17402,"071043","36|04|01",1,1,2,40,40,"01|01|02|40|40","National","Small Business Development","Enterprise Development and Entrepreneurship","Enterprise and Supplier Development","Non-transfer item","Current","Current payments","Goods and services","Venues and facilities","Venues and facilities","Economic development","Industrialisation and exports","NAT",4552,261,926,0,307,307,307,0,0,0,0,0,0,1,null,{"$f":"IF(T_DataComboFile[[#This Row],[G&S reporting level indicator]]=1,$AX$16,\"Not applicable\")","v":"Not applicable"},{"$f":"IF(AND($AX$16=\"Level 3\",T_DataComboFile[[#This Row],[Econ3]] = \"Goods and services\"),IF(T_DataComboFile[[#This Row],[Econ4]] = T_DataComboFile[[#This Row],[Econ3]],1,0),IF(AND($AX$16=\"Level 4\",T_DataComboFile[[#This Row],[Econ4]] = \"Goods and services\"),0,1))","v":0},{"$f":"T_DataComboFile[[#This Row],[2016/17_Source]]*T_DataComboFile[[#This Row],[G&S reporting level indicator]]","v":0},{"$f":"T_DataComboFile[[#This Row],[2017/18_Source]]*T_DataComboFile[[#This Row],[G&S reporting level indicator]]","v":0},{"$f":"T_DataComboFile[[#This Row],[2018/19_Source]]*T_DataComboFile[[#This Row],[G&S reporting level indicator]]","v":0},{"$f":"T_DataComboFile[[#This Row],[2019/20 Main appropriation_Source]]*T_DataComboFile[[#This Row],[G&S reporting level indicator]]","v":0},{"$f":"T_DataComboFile[[#This Row],[2019/20 Adjusted appropriation_Source]]*T_DataComboFile[[#This Row],[G&S reporting level indicator]]","v":0},{"$f":"T_DataComboFile[[#This Row],[2019/20 Revised estimate_Source]]*T_DataComboFile[[#This Row],[G&S reporting level indicator]]","v":0},{"$f":"T_DataComboFile[[#This Row],[2019/20 Preliminary outcome_Source]]*T_DataComboFile[[#This Row],[G&S reporting level indicator]]","v":0},{"$f":"T_DataComboFile[[#This Row],[2020/21 Original_Source]]*T_DataComboFile[[#This Row],[G&S reporting level indicator]]","v":0},{"$f":"T_DataComboFile[[#This Row],[2020/21 SAB_Source]]*T_DataComboFile[[#This Row],[G&S reporting level indicator]]","v":0},{"$f":"T_DataComboFile[[#This Row],[2020/21 Baseline_Source]]*T_DataComboFile[[#This Row],[G&S reporting level indicator]]","v":0},{"$f":"T_DataComboFile[[#This Row],[2021/22 Baseline_Source]]*T_DataComboFile[[#This Row],[G&S reporting level indicator]]","v":0},{"$f":"T_DataComboFile[[#This Row],[2022/23 Baseline_Source]]*T_DataComboFile[[#This Row],[G&S reporting level indicator]]","v":0},{"$f":"T_DataComboFile[[#This Row],[2023/24 Baseline_Source]]*T_DataComboFile[[#This Row],[G&S reporting level indicator]]","v":0},null,null,null,null,null,null,{"$f":"T_DataComboFile[[#This Row],[2021/22 Baseline]]+T_DataComboFile[[#This Row],[2021/22 Reduction]]+T_DataComboFile[[#This Row],[2021/22 Increase]]","v":0},{"$f":"T_DataComboFile[[#This Row],[2022/23 Baseline]]+T_DataComboFile[[#This Row],[2022/23 Reduction]]+T_DataComboFile[[#This Row],[2022/23 Increase]]","v":0},{"$f":"T_DataComboFile[[#This Row],[2023/24 Baseline]]+T_DataComboFile[[#This Row],[2023/24 Reduction]]+T_DataComboFile[[#This Row],[2023/24 Increase]]","v":0}]
[null,null,"2021_22","ENE2020",36,4,1,null,71044,36,4,1,null,"071044","36|04|01",1,1,3,41,41,"01|01|03|41|41","National","Small Business Development","Enterprise Development and Entrepreneurship","Enterprise and Supplier Development",null,"Current","Current payments","Interest and rent on land","Interest (Incl. interest on unitary payments (PPP))","Interest (Incl. interest on unitary payments (PPP))",null,null,null,0,0,0,0,0,0,0,0,0,0,0,0,0,0,null,{"$f":"IF(T_DataComboFile[[#This Row],[G&S reporting level indicator]]=1,$AX$16,\"Not applicable\")","v":"Level 3"},{"$f":"IF(AND($AX$16=\"Level 3\",T_DataComboFile[[#This Row],[Econ3]] = \"Goods and services\"),IF(T_DataComboFile[[#This Row],[Econ4]] = T_DataComboFile[[#This Row],[Econ3]],1,0),IF(AND($AX$16=\"Level 4\",T_DataComboFile[[#This Row],[Econ4]] = \"Goods and services\"),0,1))","v":1},{"$f":"T_DataComboFile[[#This Row],[2016/17_Source]]*T_DataComboFile[[#This Row],[G&S reporting level indicator]]","v":0},{"$f":"T_DataComboFile[[#This Row],[2017/18_Source]]*T_DataComboFile[[#This Row],[G&S reporting level indicator]]","v":0},{"$f":"T_DataComboFile[[#This Row],[2018/19_Source]]*T_DataComboFile[[#This Row],[G&S reporting level indicator]]","v":0},{"$f":"T_DataComboFile[[#This Row],[2019/20 Main appropriation_Source]]*T_DataComboFile[[#This Row],[G&S reporting level indicator]]","v":0},{"$f":"T_DataComboFile[[#This Row],[2019/20 Adjusted appropriation_Source]]*T_DataComboFile[[#This Row],[G&S reporting level indicator]]","v":0},{"$f":"T_DataComboFile[[#This Row],[2019/20 Revised estimate_Source]]*T_DataComboFile[[#This Row],[G&S reporting level indicator]]","v":0},{"$f":"T_DataComboFile[[#This Row],[2019/20 Preliminary outcome_Source]]*T_DataComboFile[[#This Row],[G&S reporting level indicator]]","v":0},{"$f":"T_DataComboFile[[#This Row],[2020/21 Original_Source]]*T_DataComboFile[[#This Row],[G&S reporting level indicator]]","v":0},{"$f":"T_DataComboFile[[#This Row],[2020/21 SAB_Source]]*T_DataComboFile[[#This Row],[G&S reporting level indicator]]","v":0},{"$f":"T_DataComboFile[[#This Row],[2020/21 Baseline_Source]]*T_DataComboFile[[#This Row],[G&S reporting level indicator]]","v":0},{"$f":"T_DataComboFile[[#This Row],[2021/22 Baseline_Source]]*T_DataComboFile[[#This Row],[G&S reporting level indicator]]","v":0},{"$f":"T_DataComboFile[[#This Row],[2022/23 Baseline_Source]]*T_DataComboFile[[#This Row],[G&S reporting level indicator]]","v":0},{"$f":"T_DataComboFile[[#This Row],[2023/24 Baseline_Source]]*T_DataComboFile[[#This Row],[G&S reporting level indicator]]","v":0},null,null,null,null,null,null,{"$f":"T_DataComboFile[[#This Row],[2021/22 Baseline]]+T_DataComboFile[[#This Row],[2021/22 Reduction]]+T_DataComboFile[[#This Row],[2021/22 Increase]]","v":0},{"$f":"T_DataComboFile[[#This Row],[2022/23 Baseline]]+T_DataComboFile[[#This Row],[2022/23 Reduction]]+T_DataComboFile[[#This Row],[2022/23 Increase]]","v":0},{"$f":"T_DataComboFile[[#This Row],[2023/24 Baseline]]+T_DataComboFile[[#This Row],[2023/24 Reduction]]+T_DataComboFile[[#This Row],[2023/24 Increase]]","v":0}]
[null,null,"2021_22","ENE2020",36,4,1,null,71045,36,4,1,null,"071045","36|04|01",1,1,3,42,42,"01|01|03|42|42","National","Small Business Development","Enterprise Development and Entrepreneurship","Enterprise and Supplier Development",null,"Current","Current payments","Interest and rent on land","Rent on land","Rent on land",null,null,null,0,0,0,0,0,0,0,0,0,0,0,0,0,0,null,{"$f":"IF(T_DataComboFile[[#This Row],[G&S reporting level indicator]]=1,$AX$16,\"Not applicable\")","v":"Level 3"},{"$f":"IF(AND($AX$16=\"Level 3\",T_DataComboFile[[#This Row],[Econ3]] = \"Goods and services\"),IF(T_DataComboFile[[#This Row],[Econ4]] = T_DataComboFile[[#This Row],[Econ3]],1,0),IF(AND($AX$16=\"Level 4\",T_DataComboFile[[#This Row],[Econ4]] = \"Goods and services\"),0,1))","v":1},{"$f":"T_DataComboFile[[#This Row],[2016/17_Source]]*T_DataComboFile[[#This Row],[G&S reporting level indicator]]","v":0},{"$f":"T_DataComboFile[[#This Row],[2017/18_Source]]*T_DataComboFile[[#This Row],[G&S reporting level indicator]]","v":0},{"$f":"T_DataComboFile[[#This Row],[2018/19_Source]]*T_DataComboFile[[#This Row],[G&S reporting level indicator]]","v":0},{"$f":"T_DataComboFile[[#This Row],[2019/20 Main appropriation_Source]]*T_DataComboFile[[#This Row],[G&S reporting level indicator]]","v":0},{"$f":"T_DataComboFile[[#This Row],[2019/20 Adjusted appropriation_Source]]*T_DataComboFile[[#This Row],[G&S reporting level indicator]]","v":0},{"$f":"T_DataComboFile[[#This Row],[2019/20 Revised estimate_Source]]*T_DataComboFile[[#This Row],[G&S reporting level indicator]]","v":0},{"$f":"T_DataComboFile[[#This Row],[2019/20 Preliminary outcome_Source]]*T_DataComboFile[[#This Row],[G&S reporting level indicator]]","v":0},{"$f":"T_DataComboFile[[#This Row],[2020/21 Original_Source]]*T_DataComboFile[[#This Row],[G&S reporting level indicator]]","v":0},{"$f":"T_DataComboFile[[#This Row],[2020/21 SAB_Source]]*T_DataComboFile[[#This Row],[G&S reporting level indicator]]","v":0},{"$f":"T_DataComboFile[[#This Row],[2020/21 Baseline_Source]]*T_DataComboFile[[#This Row],[G&S reporting level indicator]]","v":0},{"$f":"T_DataComboFile[[#This Row],[2021/22 Baseline_Source]]*T_DataComboFile[[#This Row],[G&S reporting level indicator]]","v":0},{"$f":"T_DataComboFile[[#This Row],[2022/23 Baseline_Source]]*T_DataComboFile[[#This Row],[G&S reporting level indicator]]","v":0},{"$f":"T_DataComboFile[[#This Row],[2023/24 Baseline_Source]]*T_DataComboFile[[#This Row],[G&S reporting level indicator]]","v":0},null,null,null,null,null,null,{"$f":"T_DataComboFile[[#This Row],[2021/22 Baseline]]+T_DataComboFile[[#This Row],[2021/22 Reduction]]+T_DataComboFile[[#This Row],[2021/22 Increase]]","v":0},{"$f":"T_DataComboFile[[#This Row],[2022/23 Baseline]]+T_DataComboFile[[#This Row],[2022/23 Reduction]]+T_DataComboFile[[#This Row],[2022/23 Increase]]","v":0},{"$f":"T_DataComboFile[[#This Row],[2023/24 Baseline]]+T_DataComboFile[[#This Row],[2023/24 Reduction]]+T_DataComboFile[[#This Row],[2023/24 Increase]]","v":0}]
[null,null,"2021_22","ENE2020",36,4,1,null,71046,36,4,1,null,"071046","36|04|01",1,2,4,43,43,"01|02|04|43|43","National","Small Business Development","Enterprise Development and Entrepreneurship","Enterprise and Supplier Development",null,"Current","Transfers and subsidies","Provinces and municipalities","Provinces","Provincial Revenue Funds",null,null,null,0,0,0,0,0,0,0,0,0,0,0,0,0,0,null,{"$f":"IF(T_DataComboFile[[#This Row],[G&S reporting level indicator]]=1,$AX$16,\"Not applicable\")","v":"Level 3"},{"$f":"IF(AND($AX$16=\"Level 3\",T_DataComboFile[[#This Row],[Econ3]] = \"Goods and services\"),IF(T_DataComboFile[[#This Row],[Econ4]] = T_DataComboFile[[#This Row],[Econ3]],1,0),IF(AND($AX$16=\"Level 4\",T_DataComboFile[[#This Row],[Econ4]] = \"Goods and services\"),0,1))","v":1},{"$f":"T_DataComboFile[[#This Row],[2016/17_Source]]*T_DataComboFile[[#This Row],[G&S reporting level indicator]]","v":0},{"$f":"T_DataComboFile[[#This Row],[2017/18_Source]]*T_DataComboFile[[#This Row],[G&S reporting level indicator]]","v":0},{"$f":"T_DataComboFile[[#This Row],[2018/19_Source]]*T_DataComboFile[[#This Row],[G&S reporting level indicator]]","v":0},{"$f":"T_DataComboFile[[#This Row],[2019/20 Main appropriation_Source]]*T_DataComboFile[[#This Row],[G&S reporting level indicator]]","v":0},{"$f":"T_DataComboFile[[#This Row],[2019/20 Adjusted appropriation_Source]]*T_DataComboFile[[#This Row],[G&S reporting level indicator]]","v":0},{"$f":"T_DataComboFile[[#This Row],[2019/20 Revised estimate_Source]]*T_DataComboFile[[#This Row],[G&S reporting level indicator]]","v":0},{"$f":"T_DataComboFile[[#This Row],[2019/20 Preliminary outcome_Source]]*T_DataComboFile[[#This Row],[G&S reporting level indicator]]","v":0},{"$f":"T_DataComboFile[[#This Row],[2020/21 Original_Source]]*T_DataComboFile[[#This Row],[G&S reporting level indicator]]","v":0},{"$f":"T_DataComboFile[[#This Row],[2020/21 SAB_Source]]*T_DataComboFile[[#This Row],[G&S reporting level indicator]]","v":0},{"$f":"T_DataComboFile[[#This Row],[2020/21 Baseline_Source]]*T_DataComboFile[[#This Row],[G&S reporting level indicator]]","v":0},{"$f":"T_DataComboFile[[#This Row],[2021/22 Baseline_Source]]*T_DataComboFile[[#This Row],[G&S reporting level indicator]]","v":0},{"$f":"T_DataComboFile[[#This Row],[2022/23 Baseline_Source]]*T_DataComboFile[[#This Row],[G&S reporting level indicator]]","v":0},{"$f":"T_DataComboFile[[#This Row],[2023/24 Baseline_Source]]*T_DataComboFile[[#This Row],[G&S reporting level indicator]]","v":0},null,null,null,null,null,null,{"$f":"T_DataComboFile[[#This Row],[2021/22 Baseline]]+T_DataComboFile[[#This Row],[2021/22 Reduction]]+T_DataComboFile[[#This Row],[2021/22 Increase]]","v":0},{"$f":"T_DataComboFile[[#This Row],[2022/23 Baseline]]+T_DataComboFile[[#This Row],[2022/23 Reduction]]+T_DataComboFile[[#This Row],[2022/23 Increase]]","v":0},{"$f":"T_DataComboFile[[#This Row],[2023/24 Baseline]]+T_DataComboFile[[#This Row],[2023/24 Reduction]]+T_DataComboFile[[#This Row],[2023/24 Increase]]","v":0}]
[null,null,"2021_22","ENE2020",36,4,1,null,71047,36,4,1,null,"071047","36|04|01",1,2,4,43,44,"01|02|04|43|44","National","Small Business Development","Enterprise Development and Entrepreneurship","Enterprise and Supplier Development",null,"Current","Transfers and subsidies","Provinces and municipalities","Provinces","Provincial agencies and funds",null,null,null,0,0,0,0,0,0,0,0,0,0,0,0,0,0,null,{"$f":"IF(T_DataComboFile[[#This Row],[G&S reporting level indicator]]=1,$AX$16,\"Not applicable\")","v":"Level 3"},{"$f":"IF(AND($AX$16=\"Level 3\",T_DataComboFile[[#This Row],[Econ3]] = \"Goods and services\"),IF(T_DataComboFile[[#This Row],[Econ4]] = T_DataComboFile[[#This Row],[Econ3]],1,0),IF(AND($AX$16=\"Level 4\",T_DataComboFile[[#This Row],[Econ4]] = \"Goods and services\"),0,1))","v":1},{"$f":"T_DataComboFile[[#This Row],[2016/17_Source]]*T_DataComboFile[[#This Row],[G&S reporting level indicator]]","v":0},{"$f":"T_DataComboFile[[#This Row],[2017/18_Source]]*T_DataComboFile[[#This Row],[G&S reporting level indicator]]","v":0},{"$f":"T_DataComboFile[[#This Row],[2018/19_Source]]*T_DataComboFile[[#This Row],[G&S reporting level indicator]]","v":0},{"$f":"T_DataComboFile[[#This Row],[2019/20 Main appropriation_Source]]*T_DataComboFile[[#This Row],[G&S reporting level indicator]]","v":0},{"$f":"T_DataComboFile[[#This Row],[2019/20 Adjusted appropriation_Source]]*T_DataComboFile[[#This Row],[G&S reporting level indicator]]","v":0},{"$f":"T_DataComboFile[[#This Row],[2019/20 Revised estimate_Source]]*T_DataComboFile[[#This Row],[G&S reporting level indicator]]","v":0},{"$f":"T_DataComboFile[[#This Row],[2019/20 Preliminary outcome_Source]]*T_DataComboFile[[#This Row],[G&S reporting level indicator]]","v":0},{"$f":"T_DataComboFile[[#This Row],[2020/21 Original_Source]]*T_DataComboFile[[#This Row],[G&S reporting level indicator]]","v":0},{"$f":"T_DataComboFile[[#This Row],[2020/21 SAB_Source]]*T_DataComboFile[[#This Row],[G&S reporting level indicator]]","v":0},{"$f":"T_DataComboFile[[#This Row],[2020/21 Baseline_Source]]*T_DataComboFile[[#This Row],[G&S reporting level indicator]]","v":0},{"$f":"T_DataComboFile[[#This Row],[2021/22 Baseline_Source]]*T_DataComboFile[[#This Row],[G&S reporting level indicator]]","v":0},{"$f":"T_DataComboFile[[#This Row],[2022/23 Baseline_Source]]*T_DataComboFile[[#This Row],[G&S reporting level indicator]]","v":0},{"$f":"T_DataComboFile[[#This Row],[2023/24 Baseline_Source]]*T_DataComboFile[[#This Row],[G&S reporting level indicator]]","v":0},null,null,null,null,null,null,{"$f":"T_DataComboFile[[#This Row],[2021/22 Baseline]]+T_DataComboFile[[#This Row],[2021/22 Reduction]]+T_DataComboFile[[#This Row],[2021/22 Increase]]","v":0},{"$f":"T_DataComboFile[[#This Row],[2022/23 Baseline]]+T_DataComboFile[[#This Row],[2022/23 Reduction]]+T_DataComboFile[[#This Row],[2022/23 Increase]]","v":0},{"$f":"T_DataComboFile[[#This Row],[2023/24 Baseline]]+T_DataComboFile[[#This Row],[2023/24 Reduction]]+T_DataComboFile[[#This Row],[2023/24 Increase]]","v":0}]
[null,null,"2021_22","ENE2020",36,4,1,null,71048,36,4,1,null,"071048","36|04|01",1,2,4,44,45,"01|02|04|44|45","National","Small Business Development","Enterprise Development and Entrepreneurship","Enterprise and Supplier Development",null,"Current","Transfers and subsidies","Provinces and municipalities","Municipalities","Municipal bank accounts",null,null,null,0,0,0,0,0,0,0,0,0,0,0,0,0,0,null,{"$f":"IF(T_DataComboFile[[#This Row],[G&S reporting level indicator]]=1,$AX$16,\"Not applicable\")","v":"Level 3"},{"$f":"IF(AND($AX$16=\"Level 3\",T_DataComboFile[[#This Row],[Econ3]] = \"Goods and services\"),IF(T_DataComboFile[[#This Row],[Econ4]] = T_DataComboFile[[#This Row],[Econ3]],1,0),IF(AND($AX$16=\"Level 4\",T_DataComboFile[[#This Row],[Econ4]] = \"Goods and services\"),0,1))","v":1},{"$f":"T_DataComboFile[[#This Row],[2016/17_Source]]*T_DataComboFile[[#This Row],[G&S reporting level indicator]]","v":0},{"$f":"T_DataComboFile[[#This Row],[2017/18_Source]]*T_DataComboFile[[#This Row],[G&S reporting level indicator]]","v":0},{"$f":"T_DataComboFile[[#This Row],[2018/19_Source]]*T_DataComboFile[[#This Row],[G&S reporting level indicator]]","v":0},{"$f":"T_DataComboFile[[#This Row],[2019/20 Main appropriation_Source]]*T_DataComboFile[[#This Row],[G&S reporting level indicator]]","v":0},{"$f":"T_DataComboFile[[#This Row],[2019/20 Adjusted appropriation_Source]]*T_DataComboFile[[#This Row],[G&S reporting level indicator]]","v":0},{"$f":"T_DataComboFile[[#This Row],[2019/20 Revised estimate_Source]]*T_DataComboFile[[#This Row],[G&S reporting level indicator]]","v":0},{"$f":"T_DataComboFile[[#This Row],[2019/20 Preliminary outcome_Source]]*T_DataComboFile[[#This Row],[G&S reporting level indicator]]","v":0},{"$f":"T_DataComboFile[[#This Row],[2020/21 Original_Source]]*T_DataComboFile[[#This Row],[G&S reporting level indicator]]","v":0},{"$f":"T_DataComboFile[[#This Row],[2020/21 SAB_Source]]*T_DataComboFile[[#This Row],[G&S reporting level indicator]]","v":0},{"$f":"T_DataComboFile[[#This Row],[2020/21 Baseline_Source]]*T_DataComboFile[[#This Row],[G&S reporting level indicator]]","v":0},{"$f":"T_DataComboFile[[#This Row],[2021/22 Baseline_Source]]*T_DataComboFile[[#This Row],[G&S reporting level indicator]]","v":0},{"$f":"T_DataComboFile[[#This Row],[2022/23 Baseline_Source]]*T_DataComboFile[[#This Row],[G&S reporting level indicator]]","v":0},{"$f":"T_DataComboFile[[#This Row],[2023/24 Baseline_Source]]*T_DataComboFile[[#This Row],[G&S reporting level indicator]]","v":0},null,null,null,null,null,null,{"$f":"T_DataComboFile[[#This Row],[2021/22 Baseline]]+T_DataComboFile[[#This Row],[2021/22 Reduction]]+T_DataComboFile[[#This Row],[2021/22 Increase]]","v":0},{"$f":"T_DataComboFile[[#This Row],[2022/23 Baseline]]+T_DataComboFile[[#This Row],[2022/23 Reduction]]+T_DataComboFile[[#This Row],[2022/23 Increase]]","v":0},{"$f":"T_DataComboFile[[#This Row],[2023/24 Baseline]]+T_DataComboFile[[#This Row],[2023/24 Reduction]]+T_DataComboFile[[#This Row],[2023/24 Increase]]","v":0}]
[null,null,"2021_22","ENE2020",36,4,1,null,71049,36,4,1,null,"071049","36|04|01",1,2,4,44,46,"01|02|04|44|46","National","Small Business Development","Enterprise Development and Entrepreneurship","Enterprise and Supplier Development",null,"Current","Transfers and subsidies","Provinces and municipalities","Municipalities","Municipal agencies and funds",null,null,null,0,0,0,0,0,0,0,0,0,0,0,0,0,0,null,{"$f":"IF(T_DataComboFile[[#This Row],[G&S reporting level indicator]]=1,$AX$16,\"Not applicable\")","v":"Level 3"},{"$f":"IF(AND($AX$16=\"Level 3\",T_DataComboFile[[#This Row],[Econ3]] = \"Goods and services\"),IF(T_DataComboFile[[#This Row],[Econ4]] = T_DataComboFile[[#This Row],[Econ3]],1,0),IF(AND($AX$16=\"Level 4\",T_DataComboFile[[#This Row],[Econ4]] = \"Goods and services\"),0,1))","v":1},{"$f":"T_DataComboFile[[#This Row],[2016/17_Source]]*T_DataComboFile[[#This Row],[G&S reporting level indicator]]","v":0},{"$f":"T_DataComboFile[[#This Row],[2017/18_Source]]*T_DataComboFile[[#This Row],[G&S reporting level indicator]]","v":0},{"$f":"T_DataComboFile[[#This Row],[2018/19_Source]]*T_DataComboFile[[#This Row],[G&S reporting level indicator]]","v":0},{"$f":"T_DataComboFile[[#This Row],[2019/20 Main appropriation_Source]]*T_DataComboFile[[#This Row],[G&S reporting level indicator]]","v":0},{"$f":"T_DataComboFile[[#This Row],[2019/20 Adjusted appropriation_Source]]*T_DataComboFile[[#This Row],[G&S reporting level indicator]]","v":0},{"$f":"T_DataComboFile[[#This Row],[2019/20 Revised estimate_Source]]*T_DataComboFile[[#This Row],[G&S reporting level indicator]]","v":0},{"$f":"T_DataComboFile[[#This Row],[2019/20 Preliminary outcome_Source]]*T_DataComboFile[[#This Row],[G&S reporting level indicator]]","v":0},{"$f":"T_DataComboFile[[#This Row],[2020/21 Original_Source]]*T_DataComboFile[[#This Row],[G&S reporting level indicator]]","v":0},{"$f":"T_DataComboFile[[#This Row],[2020/21 SAB_Source]]*T_DataComboFile[[#This Row],[G&S reporting level indicator]]","v":0},{"$f":"T_DataComboFile[[#This Row],[2020/21 Baseline_Source]]*T_DataComboFile[[#This Row],[G&S reporting level indicator]]","v":0},{"$f":"T_DataComboFile[[#This Row],[2021/22 Baseline_Source]]*T_DataComboFile[[#This Row],[G&S reporting level indicator]]","v":0},{"$f":"T_DataComboFile[[#This Row],[2022/23 Baseline_Source]]*T_DataComboFile[[#This Row],[G&S reporting level indicator]]","v":0},{"$f":"T_DataComboFile[[#This Row],[2023/24 Baseline_Source]]*T_DataComboFile[[#This Row],[G&S reporting level indicator]]","v":0},null,null,null,null,null,null,{"$f":"T_DataComboFile[[#This Row],[2021/22 Baseline]]+T_DataComboFile[[#This Row],[2021/22 Reduction]]+T_DataComboFile[[#This Row],[2021/22 Increase]]","v":0},{"$f":"T_DataComboFile[[#This Row],[2022/23 Baseline]]+T_DataComboFile[[#This Row],[2022/23 Reduction]]+T_DataComboFile[[#This Row],[2022/23 Increase]]","v":0},{"$f":"T_DataComboFile[[#This Row],[2023/24 Baseline]]+T_DataComboFile[[#This Row],[2023/24 Reduction]]+T_DataComboFile[[#This Row],[2023/24 Increase]]","v":0}]
[null,null,"2021_22","ENE2020",36,4,1,null,71050,36,4,1,null,"071050","36|04|01",1,2,5,45,47,"01|02|05|45|47","National","Small Business Development","Enterprise Development and Entrepreneurship","Enterprise and Supplier Development",null,"Current","Transfers and subsidies","Departmental agencies and accounts","Social security funds","Social security funds",null,null,null,0,0,0,0,0,0,0,0,0,0,0,0,0,0,null,{"$f":"IF(T_DataComboFile[[#This Row],[G&S reporting level indicator]]=1,$AX$16,\"Not applicable\")","v":"Level 3"},{"$f":"IF(AND($AX$16=\"Level 3\",T_DataComboFile[[#This Row],[Econ3]] = \"Goods and services\"),IF(T_DataComboFile[[#This Row],[Econ4]] = T_DataComboFile[[#This Row],[Econ3]],1,0),IF(AND($AX$16=\"Level 4\",T_DataComboFile[[#This Row],[Econ4]] = \"Goods and services\"),0,1))","v":1},{"$f":"T_DataComboFile[[#This Row],[2016/17_Source]]*T_DataComboFile[[#This Row],[G&S reporting level indicator]]","v":0},{"$f":"T_DataComboFile[[#This Row],[2017/18_Source]]*T_DataComboFile[[#This Row],[G&S reporting level indicator]]","v":0},{"$f":"T_DataComboFile[[#This Row],[2018/19_Source]]*T_DataComboFile[[#This Row],[G&S reporting level indicator]]","v":0},{"$f":"T_DataComboFile[[#This Row],[2019/20 Main appropriation_Source]]*T_DataComboFile[[#This Row],[G&S reporting level indicator]]","v":0},{"$f":"T_DataComboFile[[#This Row],[2019/20 Adjusted appropriation_Source]]*T_DataComboFile[[#This Row],[G&S reporting level indicator]]","v":0},{"$f":"T_DataComboFile[[#This Row],[2019/20 Revised estimate_Source]]*T_DataComboFile[[#This Row],[G&S reporting level indicator]]","v":0},{"$f":"T_DataComboFile[[#This Row],[2019/20 Preliminary outcome_Source]]*T_DataComboFile[[#This Row],[G&S reporting level indicator]]","v":0},{"$f":"T_DataComboFile[[#This Row],[2020/21 Original_Source]]*T_DataComboFile[[#This Row],[G&S reporting level indicator]]","v":0},{"$f":"T_DataComboFile[[#This Row],[2020/21 SAB_Source]]*T_DataComboFile[[#This Row],[G&S reporting level indicator]]","v":0},{"$f":"T_DataComboFile[[#This Row],[2020/21 Baseline_Source]]*T_DataComboFile[[#This Row],[G&S reporting level indicator]]","v":0},{"$f":"T_DataComboFile[[#This Row],[2021/22 Baseline_Source]]*T_DataComboFile[[#This Row],[G&S reporting level indicator]]","v":0},{"$f":"T_DataComboFile[[#This Row],[2022/23 Baseline_Source]]*T_DataComboFile[[#This Row],[G&S reporting level indicator]]","v":0},{"$f":"T_DataComboFile[[#This Row],[2023/24 Baseline_Source]]*T_DataComboFile[[#This Row],[G&S reporting level indicator]]","v":0},null,null,null,null,null,null,{"$f":"T_DataComboFile[[#This Row],[2021/22 Baseline]]+T_DataComboFile[[#This Row],[2021/22 Reduction]]+T_DataComboFile[[#This Row],[2021/22 Increase]]","v":0},{"$f":"T_DataComboFile[[#This Row],[2022/23 Baseline]]+T_DataComboFile[[#This Row],[2022/23 Reduction]]+T_DataComboFile[[#This Row],[2022/23 Increase]]","v":0},{"$f":"T_DataComboFile[[#This Row],[2023/24 Baseline]]+T_DataComboFile[[#This Row],[2023/24 Reduction]]+T_DataComboFile[[#This Row],[2023/24 Increase]]","v":0}]
["NAT|Small Enterprise Development Agency","36|Departmental agencies (non-business entities)","2021_22","ENE2020",36,4,1,17403,71051,36,4,1,17403,"071051","36|04|01",1,2,5,46,48,"01|02|05|46|48","National","Small Business Development","Enterprise Development and Entrepreneurship","Enterprise and Supplier Development","Small Enterprise Development Agency","Current","Transfers and subsidies","Departmental agencies and accounts","Departmental agencies (non-business entities)","Departmental agencies (non-business entities)","Economic development","Industrialisation and exports","NAT",496495,619766,580241,665076,680076,680076,680076,682626,682626,631572,643564,649513,678139,1,null,{"$f":"IF(T_DataComboFile[[#This Row],[G&S reporting level indicator]]=1,$AX$16,\"Not applicable\")","v":"Level 3"},{"$f":"IF(AND($AX$16=\"Level 3\",T_DataComboFile[[#This Row],[Econ3]] = \"Goods and services\"),IF(T_DataComboFile[[#This Row],[Econ4]] = T_DataComboFile[[#This Row],[Econ3]],1,0),IF(AND($AX$16=\"Level 4\",T_DataComboFile[[#This Row],[Econ4]] = \"Goods and services\"),0,1))","v":1},{"$f":"T_DataComboFile[[#This Row],[2016/17_Source]]*T_DataComboFile[[#This Row],[G&S reporting level indicator]]","v":496495},{"$f":"T_DataComboFile[[#This Row],[2017/18_Source]]*T_DataComboFile[[#This Row],[G&S reporting level indicator]]","v":619766},{"$f":"T_DataComboFile[[#This Row],[2018/19_Source]]*T_DataComboFile[[#This Row],[G&S reporting level indicator]]","v":580241},{"$f":"T_DataComboFile[[#This Row],[2019/20 Main appropriation_Source]]*T_DataComboFile[[#This Row],[G&S reporting level indicator]]","v":665076},{"$f":"T_DataComboFile[[#This Row],[2019/20 Adjusted appropriation_Source]]*T_DataComboFile[[#This Row],[G&S reporting level indicator]]","v":680076},{"$f":"T_DataComboFile[[#This Row],[2019/20 Revised estimate_Source]]*T_DataComboFile[[#This Row],[G&S reporting level indicator]]","v":680076},{"$f":"T_DataComboFile[[#This Row],[2019/20 Preliminary outcome_Source]]*T_DataComboFile[[#This Row],[G&S reporting level indicator]]","v":680076},{"$f":"T_DataComboFile[[#This Row],[2020/21 Original_Source]]*T_DataComboFile[[#This Row],[G&S reporting level indicator]]","v":682626},{"$f":"T_DataComboFile[[#This Row],[2020/21 SAB_Source]]*T_DataComboFile[[#This Row],[G&S reporting level indicator]]","v":682626},{"$f":"T_DataComboFile[[#This Row],[2020/21 Baseline_Source]]*T_DataComboFile[[#This Row],[G&S reporting level indicator]]","v":631572},{"$f":"T_DataComboFile[[#This Row],[2021/22 Baseline_Source]]*T_DataComboFile[[#This Row],[G&S reporting level indicator]]","v":643564},{"$f":"T_DataComboFile[[#This Row],[2022/23 Baseline_Source]]*T_DataComboFile[[#This Row],[G&S reporting level indicator]]","v":649513},{"$f":"T_DataComboFile[[#This Row],[2023/24 Baseline_Source]]*T_DataComboFile[[#This Row],[G&S reporting level indicator]]","v":678139},null,null,null,null,null,null,{"$f":"T_DataComboFile[[#This Row],[2021/22 Baseline]]+T_DataComboFile[[#This Row],[2021/22 Reduction]]+T_DataComboFile[[#This Row],[2021/22 Increase]]","v":643564},{"$f":"T_DataComboFile[[#This Row],[2022/23 Baseline]]+T_DataComboFile[[#This Row],[2022/23 Reduction]]+T_DataComboFile[[#This Row],[2022/23 Increase]]","v":649513},{"$f":"T_DataComboFile[[#This Row],[2023/24 Baseline]]+T_DataComboFile[[#This Row],[2023/24 Reduction]]+T_DataComboFile[[#This Row],[2023/24 Increase]]","v":678139}]
["NAT|Small Enterprise Development Agency: National gazelles programme","36|Departmental agencies (non-business entities)","2021_22","ENE2020",36,4,1,17406,71052,36,4,1,17406,"071052","36|04|01",1,2,5,46,48,"01|02|05|46|48","National","Small Business Development","Enterprise Development and Entrepreneurship","Enterprise and Supplier Development","Small Enterprise Development Agency: National gazelles programme","Current","Transfers and subsidies","Departmental agencies and accounts","Departmental agencies (non-business entities)","Departmental agencies (non-business entities)","Economic development","Industrialisation and exports","NAT",0,15000,30000,35000,35000,35000,35000,30000,0,27756,28310,28562,29821,1,null,{"$f":"IF(T_DataComboFile[[#This Row],[G&S reporting level indicator]]=1,$AX$16,\"Not applicable\")","v":"Level 3"},{"$f":"IF(AND($AX$16=\"Level 3\",T_DataComboFile[[#This Row],[Econ3]] = \"Goods and services\"),IF(T_DataComboFile[[#This Row],[Econ4]] = T_DataComboFile[[#This Row],[Econ3]],1,0),IF(AND($AX$16=\"Level 4\",T_DataComboFile[[#This Row],[Econ4]] = \"Goods and services\"),0,1))","v":1},{"$f":"T_DataComboFile[[#This Row],[2016/17_Source]]*T_DataComboFile[[#This Row],[G&S reporting level indicator]]","v":0},{"$f":"T_DataComboFile[[#This Row],[2017/18_Source]]*T_DataComboFile[[#This Row],[G&S reporting level indicator]]","v":15000},{"$f":"T_DataComboFile[[#This Row],[2018/19_Source]]*T_DataComboFile[[#This Row],[G&S reporting level indicator]]","v":30000},{"$f":"T_DataComboFile[[#This Row],[2019/20 Main appropriation_Source]]*T_DataComboFile[[#This Row],[G&S reporting level indicator]]","v":35000},{"$f":"T_DataComboFile[[#This Row],[2019/20 Adjusted appropriation_Source]]*T_DataComboFile[[#This Row],[G&S reporting level indicator]]","v":35000},{"$f":"T_DataComboFile[[#This Row],[2019/20 Revised estimate_Source]]*T_DataComboFile[[#This Row],[G&S reporting level indicator]]","v":35000},{"$f":"T_DataComboFile[[#This Row],[2019/20 Preliminary outcome_Source]]*T_DataComboFile[[#This Row],[G&S reporting level indicator]]","v":35000},{"$f":"T_DataComboFile[[#This Row],[2020/21 Original_Source]]*T_DataComboFile[[#This Row],[G&S reporting level indicator]]","v":30000},{"$f":"T_DataComboFile[[#This Row],[2020/21 SAB_Source]]*T_DataComboFile[[#This Row],[G&S reporting level indicator]]","v":0},{"$f":"T_DataComboFile[[#This Row],[2020/21 Baseline_Source]]*T_DataComboFile[[#This Row],[G&S reporting level indicator]]","v":27756},{"$f":"T_DataComboFile[[#This Row],[2021/22 Baseline_Source]]*T_DataComboFile[[#This Row],[G&S reporting level indicator]]","v":28310},{"$f":"T_DataComboFile[[#This Row],[2022/23 Baseline_Source]]*T_DataComboFile[[#This Row],[G&S reporting level indicator]]","v":28562},{"$f":"T_DataComboFile[[#This Row],[2023/24 Baseline_Source]]*T_DataComboFile[[#This Row],[G&S reporting level indicator]]","v":29821},null,null,null,null,null,null,{"$f":"T_DataComboFile[[#This Row],[2021/22 Baseline]]+T_DataComboFile[[#This Row],[2021/22 Reduction]]+T_DataComboFile[[#This Row],[2021/22 Increase]]","v":28310},{"$f":"T_DataComboFile[[#This Row],[2022/23 Baseline]]+T_DataComboFile[[#This Row],[2022/23 Reduction]]+T_DataComboFile[[#This Row],[2022/23 Increase]]","v":28562},{"$f":"T_DataComboFile[[#This Row],[2023/24 Baseline]]+T_DataComboFile[[#This Row],[2023/24 Reduction]]+T_DataComboFile[[#This Row],[2023/24 Increase]]","v":29821}]
["NAT|Small Enterprise Development Agency: Technology programme","36|Departmental agencies (non-business entities)","2021_22","ENE2020",36,4,1,17405,71053,36,4,1,17405,"071053","36|04|01",1,2,5,46,48,"01|02|05|46|48","National","Small Business Development","Enterprise Development and Entrepreneurship","Enterprise and Supplier Development","Small Enterprise Development Agency: Technology programme","Current","Transfers and subsidies","Departmental agencies and accounts","Departmental agencies (non-business entities)","Departmental agencies (non-business entities)","Economic development","Industrialisation and exports","NAT",139187,146146,199359,152281,152281,152281,152281,160261,160261,148275,151232,152577,159302,1,null,{"$f":"IF(T_DataComboFile[[#This Row],[G&S reporting level indicator]]=1,$AX$16,\"Not applicable\")","v":"Level 3"},{"$f":"IF(AND($AX$16=\"Level 3\",T_DataComboFile[[#This Row],[Econ3]] = \"Goods and services\"),IF(T_DataComboFile[[#This Row],[Econ4]] = T_DataComboFile[[#This Row],[Econ3]],1,0),IF(AND($AX$16=\"Level 4\",T_DataComboFile[[#This Row],[Econ4]] = \"Goods and services\"),0,1))","v":1},{"$f":"T_DataComboFile[[#This Row],[2016/17_Source]]*T_DataComboFile[[#This Row],[G&S reporting level indicator]]","v":139187},{"$f":"T_DataComboFile[[#This Row],[2017/18_Source]]*T_DataComboFile[[#This Row],[G&S reporting level indicator]]","v":146146},{"$f":"T_DataComboFile[[#This Row],[2018/19_Source]]*T_DataComboFile[[#This Row],[G&S reporting level indicator]]","v":199359},{"$f":"T_DataComboFile[[#This Row],[2019/20 Main appropriation_Source]]*T_DataComboFile[[#This Row],[G&S reporting level indicator]]","v":152281},{"$f":"T_DataComboFile[[#This Row],[2019/20 Adjusted appropriation_Source]]*T_DataComboFile[[#This Row],[G&S reporting level indicator]]","v":152281},{"$f":"T_DataComboFile[[#This Row],[2019/20 Revised estimate_Source]]*T_DataComboFile[[#This Row],[G&S reporting level indicator]]","v":152281},{"$f":"T_DataComboFile[[#This Row],[2019/20 Preliminary outcome_Source]]*T_DataComboFile[[#This Row],[G&S reporting level indicator]]","v":152281},{"$f":"T_DataComboFile[[#This Row],[2020/21 Original_Source]]*T_DataComboFile[[#This Row],[G&S reporting level indicator]]","v":160261},{"$f":"T_DataComboFile[[#This Row],[2020/21 SAB_Source]]*T_DataComboFile[[#This Row],[G&S reporting level indicator]]","v":160261},{"$f":"T_DataComboFile[[#This Row],[2020/21 Baseline_Source]]*T_DataComboFile[[#This Row],[G&S reporting level indicator]]","v":148275},{"$f":"T_DataComboFile[[#This Row],[2021/22 Baseline_Source]]*T_DataComboFile[[#This Row],[G&S reporting level indicator]]","v":151232},{"$f":"T_DataComboFile[[#This Row],[2022/23 Baseline_Source]]*T_DataComboFile[[#This Row],[G&S reporting level indicator]]","v":152577},{"$f":"T_DataComboFile[[#This Row],[2023/24 Baseline_Source]]*T_DataComboFile[[#This Row],[G&S reporting level indicator]]","v":159302},null,null,null,null,null,null,{"$f":"T_DataComboFile[[#This Row],[2021/22 Baseline]]+T_DataComboFile[[#This Row],[2021/22 Reduction]]+T_DataComboFile[[#This Row],[2021/22 Increase]]","v":151232},{"$f":"T_DataComboFile[[#This Row],[2022/23 Baseline]]+T_DataComboFile[[#This Row],[2022/23 Reduction]]+T_DataComboFile[[#This Row],[2022/23 Increase]]","v":152577},{"$f":"T_DataComboFile[[#This Row],[2023/24 Baseline]]+T_DataComboFile[[#This Row],[2023/24 Reduction]]+T_DataComboFile[[#This Row],[2023/24 Increase]]","v":159302}]
["NAT|Small Enterprise Development Agency: Capacity-building programme","36|Departmental agencies (non-business entities)","2021_22","ENE2020",36,4,1,17404,71054,36,4,1,17404,"071054","36|04|01",1,2,5,46,48,"01|02|05|46|48","National","Small Business Development","Enterprise Development and Entrepreneurship","Enterprise and Supplier Development","Small Enterprise Development Agency: Capacity-building programme ","Current","Transfers and subsidies","Departmental agencies and accounts","Departmental agencies (non-business entities)","Departmental agencies (non-business entities)","Economic development","Industrialisation and exports","NAT",17232,30389,30489,15406,15406,15406,15406,16253,16253,15037,15337,15474,16156,1,null,{"$f":"IF(T_DataComboFile[[#This Row],[G&S reporting level indicator]]=1,$AX$16,\"Not applicable\")","v":"Level 3"},{"$f":"IF(AND($AX$16=\"Level 3\",T_DataComboFile[[#This Row],[Econ3]] = \"Goods and services\"),IF(T_DataComboFile[[#This Row],[Econ4]] = T_DataComboFile[[#This Row],[Econ3]],1,0),IF(AND($AX$16=\"Level 4\",T_DataComboFile[[#This Row],[Econ4]] = \"Goods and services\"),0,1))","v":1},{"$f":"T_DataComboFile[[#This Row],[2016/17_Source]]*T_DataComboFile[[#This Row],[G&S reporting level indicator]]","v":17232},{"$f":"T_DataComboFile[[#This Row],[2017/18_Source]]*T_DataComboFile[[#This Row],[G&S reporting level indicator]]","v":30389},{"$f":"T_DataComboFile[[#This Row],[2018/19_Source]]*T_DataComboFile[[#This Row],[G&S reporting level indicator]]","v":30489},{"$f":"T_DataComboFile[[#This Row],[2019/20 Main appropriation_Source]]*T_DataComboFile[[#This Row],[G&S reporting level indicator]]","v":15406},{"$f":"T_DataComboFile[[#This Row],[2019/20 Adjusted appropriation_Source]]*T_DataComboFile[[#This Row],[G&S reporting level indicator]]","v":15406},{"$f":"T_DataComboFile[[#This Row],[2019/20 Revised estimate_Source]]*T_DataComboFile[[#This Row],[G&S reporting level indicator]]","v":15406},{"$f":"T_DataComboFile[[#This Row],[2019/20 Preliminary outcome_Source]]*T_DataComboFile[[#This Row],[G&S reporting level indicator]]","v":15406},{"$f":"T_DataComboFile[[#This Row],[2020/21 Original_Source]]*T_DataComboFile[[#This Row],[G&S reporting level indicator]]","v":16253},{"$f":"T_DataComboFile[[#This Row],[2020/21 SAB_Source]]*T_DataComboFile[[#This Row],[G&S reporting level indicator]]","v":16253},{"$f":"T_DataComboFile[[#This Row],[2020/21 Baseline_Source]]*T_DataComboFile[[#This Row],[G&S reporting level indicator]]","v":15037},{"$f":"T_DataComboFile[[#This Row],[2021/22 Baseline_Source]]*T_DataComboFile[[#This Row],[G&S reporting level indicator]]","v":15337},{"$f":"T_DataComboFile[[#This Row],[2022/23 Baseline_Source]]*T_DataComboFile[[#This Row],[G&S reporting level indicator]]","v":15474},{"$f":"T_DataComboFile[[#This Row],[2023/24 Baseline_Source]]*T_DataComboFile[[#This Row],[G&S reporting level indicator]]","v":16156},null,null,null,null,null,null,{"$f":"T_DataComboFile[[#This Row],[2021/22 Baseline]]+T_DataComboFile[[#This Row],[2021/22 Reduction]]+T_DataComboFile[[#This Row],[2021/22 Increase]]","v":15337},{"$f":"T_DataComboFile[[#This Row],[2022/23 Baseline]]+T_DataComboFile[[#This Row],[2022/23 Reduction]]+T_DataComboFile[[#This Row],[2022/23 Increase]]","v":15474},{"$f":"T_DataComboFile[[#This Row],[2023/24 Baseline]]+T_DataComboFile[[#This Row],[2023/24 Reduction]]+T_DataComboFile[[#This Row],[2023/24 Increase]]","v":16156}]
[null,null,"2021_22","ENE2020",36,4,1,null,71055,36,4,1,null,"071055","36|04|01",1,2,6,47,49,"01|02|06|47|49","National","Small Business Development","Enterprise Development and Entrepreneurship","Enterprise and Supplier Development",null,"Current","Transfers and subsidies","Higher education institutions","Higher education institutions","Higher education institutions",null,null,null,0,0,0,0,0,0,0,0,0,0,0,0,0,0,null,{"$f":"IF(T_DataComboFile[[#This Row],[G&S reporting level indicator]]=1,$AX$16,\"Not applicable\")","v":"Level 3"},{"$f":"IF(AND($AX$16=\"Level 3\",T_DataComboFile[[#This Row],[Econ3]] = \"Goods and services\"),IF(T_DataComboFile[[#This Row],[Econ4]] = T_DataComboFile[[#This Row],[Econ3]],1,0),IF(AND($AX$16=\"Level 4\",T_DataComboFile[[#This Row],[Econ4]] = \"Goods and services\"),0,1))","v":1},{"$f":"T_DataComboFile[[#This Row],[2016/17_Source]]*T_DataComboFile[[#This Row],[G&S reporting level indicator]]","v":0},{"$f":"T_DataComboFile[[#This Row],[2017/18_Source]]*T_DataComboFile[[#This Row],[G&S reporting level indicator]]","v":0},{"$f":"T_DataComboFile[[#This Row],[2018/19_Source]]*T_DataComboFile[[#This Row],[G&S reporting level indicator]]","v":0},{"$f":"T_DataComboFile[[#This Row],[2019/20 Main appropriation_Source]]*T_DataComboFile[[#This Row],[G&S reporting level indicator]]","v":0},{"$f":"T_DataComboFile[[#This Row],[2019/20 Adjusted appropriation_Source]]*T_DataComboFile[[#This Row],[G&S reporting level indicator]]","v":0},{"$f":"T_DataComboFile[[#This Row],[2019/20 Revised estimate_Source]]*T_DataComboFile[[#This Row],[G&S reporting level indicator]]","v":0},{"$f":"T_DataComboFile[[#This Row],[2019/20 Preliminary outcome_Source]]*T_DataComboFile[[#This Row],[G&S reporting level indicator]]","v":0},{"$f":"T_DataComboFile[[#This Row],[2020/21 Original_Source]]*T_DataComboFile[[#This Row],[G&S reporting level indicator]]","v":0},{"$f":"T_DataComboFile[[#This Row],[2020/21 SAB_Source]]*T_DataComboFile[[#This Row],[G&S reporting level indicator]]","v":0},{"$f":"T_DataComboFile[[#This Row],[2020/21 Baseline_Source]]*T_DataComboFile[[#This Row],[G&S reporting level indicator]]","v":0},{"$f":"T_DataComboFile[[#This Row],[2021/22 Baseline_Source]]*T_DataComboFile[[#This Row],[G&S reporting level indicator]]","v":0},{"$f":"T_DataComboFile[[#This Row],[2022/23 Baseline_Source]]*T_DataComboFile[[#This Row],[G&S reporting level indicator]]","v":0},{"$f":"T_DataComboFile[[#This Row],[2023/24 Baseline_Source]]*T_DataComboFile[[#This Row],[G&S reporting level indicator]]","v":0},null,null,null,null,null,null,{"$f":"T_DataComboFile[[#This Row],[2021/22 Baseline]]+T_DataComboFile[[#This Row],[2021/22 Reduction]]+T_DataComboFile[[#This Row],[2021/22 Increase]]","v":0},{"$f":"T_DataComboFile[[#This Row],[2022/23 Baseline]]+T_DataComboFile[[#This Row],[2022/23 Reduction]]+T_DataComboFile[[#This Row],[2022/23 Increase]]","v":0},{"$f":"T_DataComboFile[[#This Row],[2023/24 Baseline]]+T_DataComboFile[[#This Row],[2023/24 Reduction]]+T_DataComboFile[[#This Row],[2023/24 Increase]]","v":0}]
[null,null,"2021_22","ENE2020",36,4,1,null,71056,36,4,1,null,"071056","36|04|01",1,2,7,48,50,"01|02|07|48|50","National","Small Business Development","Enterprise Development and Entrepreneurship","Enterprise and Supplier Development",null,"Current","Transfers and subsidies","Foreign governments and international organisations","Foreign governments and international organisations","Foreign governments and international organisations",null,null,null,0,0,0,0,0,0,0,0,0,0,0,0,0,0,null,{"$f":"IF(T_DataComboFile[[#This Row],[G&S reporting level indicator]]=1,$AX$16,\"Not applicable\")","v":"Level 3"},{"$f":"IF(AND($AX$16=\"Level 3\",T_DataComboFile[[#This Row],[Econ3]] = \"Goods and services\"),IF(T_DataComboFile[[#This Row],[Econ4]] = T_DataComboFile[[#This Row],[Econ3]],1,0),IF(AND($AX$16=\"Level 4\",T_DataComboFile[[#This Row],[Econ4]] = \"Goods and services\"),0,1))","v":1},{"$f":"T_DataComboFile[[#This Row],[2016/17_Source]]*T_DataComboFile[[#This Row],[G&S reporting level indicator]]","v":0},{"$f":"T_DataComboFile[[#This Row],[2017/18_Source]]*T_DataComboFile[[#This Row],[G&S reporting level indicator]]","v":0},{"$f":"T_DataComboFile[[#This Row],[2018/19_Source]]*T_DataComboFile[[#This Row],[G&S reporting level indicator]]","v":0},{"$f":"T_DataComboFile[[#This Row],[2019/20 Main appropriation_Source]]*T_DataComboFile[[#This Row],[G&S reporting level indicator]]","v":0},{"$f":"T_DataComboFile[[#This Row],[2019/20 Adjusted appropriation_Source]]*T_DataComboFile[[#This Row],[G&S reporting level indicator]]","v":0},{"$f":"T_DataComboFile[[#This Row],[2019/20 Revised estimate_Source]]*T_DataComboFile[[#This Row],[G&S reporting level indicator]]","v":0},{"$f":"T_DataComboFile[[#This Row],[2019/20 Preliminary outcome_Source]]*T_DataComboFile[[#This Row],[G&S reporting level indicator]]","v":0},{"$f":"T_DataComboFile[[#This Row],[2020/21 Original_Source]]*T_DataComboFile[[#This Row],[G&S reporting level indicator]]","v":0},{"$f":"T_DataComboFile[[#This Row],[2020/21 SAB_Source]]*T_DataComboFile[[#This Row],[G&S reporting level indicator]]","v":0},{"$f":"T_DataComboFile[[#This Row],[2020/21 Baseline_Source]]*T_DataComboFile[[#This Row],[G&S reporting level indicator]]","v":0},{"$f":"T_DataComboFile[[#This Row],[2021/22 Baseline_Source]]*T_DataComboFile[[#This Row],[G&S reporting level indicator]]","v":0},{"$f":"T_DataComboFile[[#This Row],[2022/23 Baseline_Source]]*T_DataComboFile[[#This Row],[G&S reporting level indicator]]","v":0},{"$f":"T_DataComboFile[[#This Row],[2023/24 Baseline_Source]]*T_DataComboFile[[#This Row],[G&S reporting level indicator]]","v":0},null,null,null,null,null,null,{"$f":"T_DataComboFile[[#This Row],[2021/22 Baseline]]+T_DataComboFile[[#This Row],[2021/22 Reduction]]+T_DataComboFile[[#This Row],[2021/22 Increase]]","v":0},{"$f":"T_DataComboFile[[#This Row],[2022/23 Baseline]]+T_DataComboFile[[#This Row],[2022/23 Reduction]]+T_DataComboFile[[#This Row],[2022/23 Increase]]","v":0},{"$f":"T_DataComboFile[[#This Row],[2023/24 Baseline]]+T_DataComboFile[[#This Row],[2023/24 Reduction]]+T_DataComboFile[[#This Row],[2023/24 Increase]]","v":0}]
[null,null,"2021_22","ENE2020",36,4,1,null,71057,36,4,1,null,"071057","36|04|01",1,2,8,49,51,"01|02|08|49|51","National","Small Business Development","Enterprise Development and Entrepreneurship","Enterprise and Supplier Development",null,"Current","Transfers and subsidies","Public corporations and private enterprises","Public corporations","Subsidies on products and production (pc)",null,null,null,0,0,0,0,0,0,0,0,0,0,0,0,0,0,null,{"$f":"IF(T_DataComboFile[[#This Row],[G&S reporting level indicator]]=1,$AX$16,\"Not applicable\")","v":"Level 3"},{"$f":"IF(AND($AX$16=\"Level 3\",T_DataComboFile[[#This Row],[Econ3]] = \"Goods and services\"),IF(T_DataComboFile[[#This Row],[Econ4]] = T_DataComboFile[[#This Row],[Econ3]],1,0),IF(AND($AX$16=\"Level 4\",T_DataComboFile[[#This Row],[Econ4]] = \"Goods and services\"),0,1))","v":1},{"$f":"T_DataComboFile[[#This Row],[2016/17_Source]]*T_DataComboFile[[#This Row],[G&S reporting level indicator]]","v":0},{"$f":"T_DataComboFile[[#This Row],[2017/18_Source]]*T_DataComboFile[[#This Row],[G&S reporting level indicator]]","v":0},{"$f":"T_DataComboFile[[#This Row],[2018/19_Source]]*T_DataComboFile[[#This Row],[G&S reporting level indicator]]","v":0},{"$f":"T_DataComboFile[[#This Row],[2019/20 Main appropriation_Source]]*T_DataComboFile[[#This Row],[G&S reporting level indicator]]","v":0},{"$f":"T_DataComboFile[[#This Row],[2019/20 Adjusted appropriation_Source]]*T_DataComboFile[[#This Row],[G&S reporting level indicator]]","v":0},{"$f":"T_DataComboFile[[#This Row],[2019/20 Revised estimate_Source]]*T_DataComboFile[[#This Row],[G&S reporting level indicator]]","v":0},{"$f":"T_DataComboFile[[#This Row],[2019/20 Preliminary outcome_Source]]*T_DataComboFile[[#This Row],[G&S reporting level indicator]]","v":0},{"$f":"T_DataComboFile[[#This Row],[2020/21 Original_Source]]*T_DataComboFile[[#This Row],[G&S reporting level indicator]]","v":0},{"$f":"T_DataComboFile[[#This Row],[2020/21 SAB_Source]]*T_DataComboFile[[#This Row],[G&S reporting level indicator]]","v":0},{"$f":"T_DataComboFile[[#This Row],[2020/21 Baseline_Source]]*T_DataComboFile[[#This Row],[G&S reporting level indicator]]","v":0},{"$f":"T_DataComboFile[[#This Row],[2021/22 Baseline_Source]]*T_DataComboFile[[#This Row],[G&S reporting level indicator]]","v":0},{"$f":"T_DataComboFile[[#This Row],[2022/23 Baseline_Source]]*T_DataComboFile[[#This Row],[G&S reporting level indicator]]","v":0},{"$f":"T_DataComboFile[[#This Row],[2023/24 Baseline_Source]]*T_DataComboFile[[#This Row],[G&S reporting level indicator]]","v":0},null,null,null,null,null,null,{"$f":"T_DataComboFile[[#This Row],[2021/22 Baseline]]+T_DataComboFile[[#This Row],[2021/22 Reduction]]+T_DataComboFile[[#This Row],[2021/22 Increase]]","v":0},{"$f":"T_DataComboFile[[#This Row],[2022/23 Baseline]]+T_DataComboFile[[#This Row],[2022/23 Reduction]]+T_DataComboFile[[#This Row],[2022/23 Increase]]","v":0},{"$f":"T_DataComboFile[[#This Row],[2023/24 Baseline]]+T_DataComboFile[[#This Row],[2023/24 Reduction]]+T_DataComboFile[[#This Row],[2023/24 Increase]]","v":0}]
["NAT|Small Enterprise Finance Agency: Township Enterpreneurial Fund","36|Other transfers to public corporations","2021_22","ENE2020",36,4,1,17407,71058,36,4,1,17407,"071058","36|04|01",1,2,8,49,52,"01|02|08|49|52","National","Small Business Development","Enterprise Development and Entrepreneurship","Enterprise and Supplier Development","Small Enterprise Finance Agency: Township Enterpreneurial Fund","Current","Transfers and subsidies","Public corporations and private enterprises","Public corporations","Other transfers to public corporations","Economic development","Industrialisation and exports","NAT",0,0,0,0,700000,700000,700000,800000,0,800000,1000000,1000000,1044074,1,null,{"$f":"IF(T_DataComboFile[[#This Row],[G&S reporting level indicator]]=1,$AX$16,\"Not applicable\")","v":"Level 3"},{"$f":"IF(AND($AX$16=\"Level 3\",T_DataComboFile[[#This Row],[Econ3]] = \"Goods and services\"),IF(T_DataComboFile[[#This Row],[Econ4]] = T_DataComboFile[[#This Row],[Econ3]],1,0),IF(AND($AX$16=\"Level 4\",T_DataComboFile[[#This Row],[Econ4]] = \"Goods and services\"),0,1))","v":1},{"$f":"T_DataComboFile[[#This Row],[2016/17_Source]]*T_DataComboFile[[#This Row],[G&S reporting level indicator]]","v":0},{"$f":"T_DataComboFile[[#This Row],[2017/18_Source]]*T_DataComboFile[[#This Row],[G&S reporting level indicator]]","v":0},{"$f":"T_DataComboFile[[#This Row],[2018/19_Source]]*T_DataComboFile[[#This Row],[G&S reporting level indicator]]","v":0},{"$f":"T_DataComboFile[[#This Row],[2019/20 Main appropriation_Source]]*T_DataComboFile[[#This Row],[G&S reporting level indicator]]","v":0},{"$f":"T_DataComboFile[[#This Row],[2019/20 Adjusted appropriation_Source]]*T_DataComboFile[[#This Row],[G&S reporting level indicator]]","v":700000},{"$f":"T_DataComboFile[[#This Row],[2019/20 Revised estimate_Source]]*T_DataComboFile[[#This Row],[G&S reporting level indicator]]","v":700000},{"$f":"T_DataComboFile[[#This Row],[2019/20 Preliminary outcome_Source]]*T_DataComboFile[[#This Row],[G&S reporting level indicator]]","v":700000},{"$f":"T_DataComboFile[[#This Row],[2020/21 Original_Source]]*T_DataComboFile[[#This Row],[G&S reporting level indicator]]","v":800000},{"$f":"T_DataComboFile[[#This Row],[2020/21 SAB_Source]]*T_DataComboFile[[#This Row],[G&S reporting level indicator]]","v":0},{"$f":"T_DataComboFile[[#This Row],[2020/21 Baseline_Source]]*T_DataComboFile[[#This Row],[G&S reporting level indicator]]","v":800000},{"$f":"T_DataComboFile[[#This Row],[2021/22 Baseline_Source]]*T_DataComboFile[[#This Row],[G&S reporting level indicator]]","v":1000000},{"$f":"T_DataComboFile[[#This Row],[2022/23 Baseline_Source]]*T_DataComboFile[[#This Row],[G&S reporting level indicator]]","v":1000000},{"$f":"T_DataComboFile[[#This Row],[2023/24 Baseline_Source]]*T_DataComboFile[[#This Row],[G&S reporting level indicator]]","v":1044074},null,null,null,null,null,null,{"$f":"T_DataComboFile[[#This Row],[2021/22 Baseline]]+T_DataComboFile[[#This Row],[2021/22 Reduction]]+T_DataComboFile[[#This Row],[2021/22 Increase]]","v":1000000},{"$f":"T_DataComboFile[[#This Row],[2022/23 Baseline]]+T_DataComboFile[[#This Row],[2022/23 Reduction]]+T_DataComboFile[[#This Row],[2022/23 Increase]]","v":1000000},{"$f":"T_DataComboFile[[#This Row],[2023/24 Baseline]]+T_DataComboFile[[#This Row],[2023/24 Reduction]]+T_DataComboFile[[#This Row],[2023/24 Increase]]","v":1044074}]
[null,null,"2021_22","ENE2020",36,4,1,null,71059,36,4,1,null,"071059","36|04|01",1,2,8,50,53,"01|02|08|50|53","National","Small Business Development","Enterprise Development and Entrepreneurship","Enterprise and Supplier Development",null,"Current","Transfers and subsidies","Public corporations and private enterprises","Private enterprises","Subsidies on products and production (pe)",null,null,null,0,0,0,0,0,0,0,0,0,0,0,0,0,0,null,{"$f":"IF(T_DataComboFile[[#This Row],[G&S reporting level indicator]]=1,$AX$16,\"Not applicable\")","v":"Level 3"},{"$f":"IF(AND($AX$16=\"Level 3\",T_DataComboFile[[#This Row],[Econ3]] = \"Goods and services\"),IF(T_DataComboFile[[#This Row],[Econ4]] = T_DataComboFile[[#This Row],[Econ3]],1,0),IF(AND($AX$16=\"Level 4\",T_DataComboFile[[#This Row],[Econ4]] = \"Goods and services\"),0,1))","v":1},{"$f":"T_DataComboFile[[#This Row],[2016/17_Source]]*T_DataComboFile[[#This Row],[G&S reporting level indicator]]","v":0},{"$f":"T_DataComboFile[[#This Row],[2017/18_Source]]*T_DataComboFile[[#This Row],[G&S reporting level indicator]]","v":0},{"$f":"T_DataComboFile[[#This Row],[2018/19_Source]]*T_DataComboFile[[#This Row],[G&S reporting level indicator]]","v":0},{"$f":"T_DataComboFile[[#This Row],[2019/20 Main appropriation_Source]]*T_DataComboFile[[#This Row],[G&S reporting level indicator]]","v":0},{"$f":"T_DataComboFile[[#This Row],[2019/20 Adjusted appropriation_Source]]*T_DataComboFile[[#This Row],[G&S reporting level indicator]]","v":0},{"$f":"T_DataComboFile[[#This Row],[2019/20 Revised estimate_Source]]*T_DataComboFile[[#This Row],[G&S reporting level indicator]]","v":0},{"$f":"T_DataComboFile[[#This Row],[2019/20 Preliminary outcome_Source]]*T_DataComboFile[[#This Row],[G&S reporting level indicator]]","v":0},{"$f":"T_DataComboFile[[#This Row],[2020/21 Original_Source]]*T_DataComboFile[[#This Row],[G&S reporting level indicator]]","v":0},{"$f":"T_DataComboFile[[#This Row],[2020/21 SAB_Source]]*T_DataComboFile[[#This Row],[G&S reporting level indicator]]","v":0},{"$f":"T_DataComboFile[[#This Row],[2020/21 Baseline_Source]]*T_DataComboFile[[#This Row],[G&S reporting level indicator]]","v":0},{"$f":"T_DataComboFile[[#This Row],[2021/22 Baseline_Source]]*T_DataComboFile[[#This Row],[G&S reporting level indicator]]","v":0},{"$f":"T_DataComboFile[[#This Row],[2022/23 Baseline_Source]]*T_DataComboFile[[#This Row],[G&S reporting level indicator]]","v":0},{"$f":"T_DataComboFile[[#This Row],[2023/24 Baseline_Source]]*T_DataComboFile[[#This Row],[G&S reporting level indicator]]","v":0},null,null,null,null,null,null,{"$f":"T_DataComboFile[[#This Row],[2021/22 Baseline]]+T_DataComboFile[[#This Row],[2021/22 Reduction]]+T_DataComboFile[[#This Row],[2021/22 Increase]]","v":0},{"$f":"T_DataComboFile[[#This Row],[2022/23 Baseline]]+T_DataComboFile[[#This Row],[2022/23 Reduction]]+T_DataComboFile[[#This Row],[2022/23 Increase]]","v":0},{"$f":"T_DataComboFile[[#This Row],[2023/24 Baseline]]+T_DataComboFile[[#This Row],[2023/24 Reduction]]+T_DataComboFile[[#This Row],[2023/24 Increase]]","v":0}]
["NAT|Various institutions: Craft customised sector programme","36|Other transfers to private enterprises","2021_22","ENE2020",36,4,1,17408,71060,36,4,1,17408,"071060","36|04|01",1,2,8,50,54,"01|02|08|50|54","National","Small Business Development","Enterprise Development and Entrepreneurship","Enterprise and Supplier Development","Various institutions: Craft customised sector programme","Current","Transfers and subsidies","Public corporations and private enterprises","Private enterprises","Other transfers to private enterprises","Economic development","Industrialisation and exports","NAT",10000,10000,10000,10560,10560,10560,10560,11141,11141,11141,11754,12191,12728,1,null,{"$f":"IF(T_DataComboFile[[#This Row],[G&S reporting level indicator]]=1,$AX$16,\"Not applicable\")","v":"Level 3"},{"$f":"IF(AND($AX$16=\"Level 3\",T_DataComboFile[[#This Row],[Econ3]] = \"Goods and services\"),IF(T_DataComboFile[[#This Row],[Econ4]] = T_DataComboFile[[#This Row],[Econ3]],1,0),IF(AND($AX$16=\"Level 4\",T_DataComboFile[[#This Row],[Econ4]] = \"Goods and services\"),0,1))","v":1},{"$f":"T_DataComboFile[[#This Row],[2016/17_Source]]*T_DataComboFile[[#This Row],[G&S reporting level indicator]]","v":10000},{"$f":"T_DataComboFile[[#This Row],[2017/18_Source]]*T_DataComboFile[[#This Row],[G&S reporting level indicator]]","v":10000},{"$f":"T_DataComboFile[[#This Row],[2018/19_Source]]*T_DataComboFile[[#This Row],[G&S reporting level indicator]]","v":10000},{"$f":"T_DataComboFile[[#This Row],[2019/20 Main appropriation_Source]]*T_DataComboFile[[#This Row],[G&S reporting level indicator]]","v":10560},{"$f":"T_DataComboFile[[#This Row],[2019/20 Adjusted appropriation_Source]]*T_DataComboFile[[#This Row],[G&S reporting level indicator]]","v":10560},{"$f":"T_DataComboFile[[#This Row],[2019/20 Revised estimate_Source]]*T_DataComboFile[[#This Row],[G&S reporting level indicator]]","v":10560},{"$f":"T_DataComboFile[[#This Row],[2019/20 Preliminary outcome_Source]]*T_DataComboFile[[#This Row],[G&S reporting level indicator]]","v":10560},{"$f":"T_DataComboFile[[#This Row],[2020/21 Original_Source]]*T_DataComboFile[[#This Row],[G&S reporting level indicator]]","v":11141},{"$f":"T_DataComboFile[[#This Row],[2020/21 SAB_Source]]*T_DataComboFile[[#This Row],[G&S reporting level indicator]]","v":11141},{"$f":"T_DataComboFile[[#This Row],[2020/21 Baseline_Source]]*T_DataComboFile[[#This Row],[G&S reporting level indicator]]","v":11141},{"$f":"T_DataComboFile[[#This Row],[2021/22 Baseline_Source]]*T_DataComboFile[[#This Row],[G&S reporting level indicator]]","v":11754},{"$f":"T_DataComboFile[[#This Row],[2022/23 Baseline_Source]]*T_DataComboFile[[#This Row],[G&S reporting level indicator]]","v":12191},{"$f":"T_DataComboFile[[#This Row],[2023/24 Baseline_Source]]*T_DataComboFile[[#This Row],[G&S reporting level indicator]]","v":12728},null,null,null,null,null,null,{"$f":"T_DataComboFile[[#This Row],[2021/22 Baseline]]+T_DataComboFile[[#This Row],[2021/22 Reduction]]+T_DataComboFile[[#This Row],[2021/22 Increase]]","v":11754},{"$f":"T_DataComboFile[[#This Row],[2022/23 Baseline]]+T_DataComboFile[[#This Row],[2022/23 Reduction]]+T_DataComboFile[[#This Row],[2022/23 Increase]]","v":12191},{"$f":"T_DataComboFile[[#This Row],[2023/24 Baseline]]+T_DataComboFile[[#This Row],[2023/24 Reduction]]+T_DataComboFile[[#This Row],[2023/24 Increase]]","v":12728}]
["NAT|Primesters Marketing","36|Non-profit institutions","2021_22","ENE2020",36,4,1,17409,71061,36,4,1,17409,"071061","36|04|01",1,2,9,51,55,"01|02|09|51|55","National","Small Business Development","Enterprise Development and Entrepreneurship","Enterprise and Supplier Development","Primesters Marketing ","Current","Transfers and subsidies","Non-profit institutions","Non-profit institutions","Non-profit institutions","Economic development","Industrialisation and exports","NAT",100,0,0,0,0,0,0,0,0,0,0,0,0,1,null,{"$f":"IF(T_DataComboFile[[#This Row],[G&S reporting level indicator]]=1,$AX$16,\"Not applicable\")","v":"Level 3"},{"$f":"IF(AND($AX$16=\"Level 3\",T_DataComboFile[[#This Row],[Econ3]] = \"Goods and services\"),IF(T_DataComboFile[[#This Row],[Econ4]] = T_DataComboFile[[#This Row],[Econ3]],1,0),IF(AND($AX$16=\"Level 4\",T_DataComboFile[[#This Row],[Econ4]] = \"Goods and services\"),0,1))","v":1},{"$f":"T_DataComboFile[[#This Row],[2016/17_Source]]*T_DataComboFile[[#This Row],[G&S reporting level indicator]]","v":100},{"$f":"T_DataComboFile[[#This Row],[2017/18_Source]]*T_DataComboFile[[#This Row],[G&S reporting level indicator]]","v":0},{"$f":"T_DataComboFile[[#This Row],[2018/19_Source]]*T_DataComboFile[[#This Row],[G&S reporting level indicator]]","v":0},{"$f":"T_DataComboFile[[#This Row],[2019/20 Main appropriation_Source]]*T_DataComboFile[[#This Row],[G&S reporting level indicator]]","v":0},{"$f":"T_DataComboFile[[#This Row],[2019/20 Adjusted appropriation_Source]]*T_DataComboFile[[#This Row],[G&S reporting level indicator]]","v":0},{"$f":"T_DataComboFile[[#This Row],[2019/20 Revised estimate_Source]]*T_DataComboFile[[#This Row],[G&S reporting level indicator]]","v":0},{"$f":"T_DataComboFile[[#This Row],[2019/20 Preliminary outcome_Source]]*T_DataComboFile[[#This Row],[G&S reporting level indicator]]","v":0},{"$f":"T_DataComboFile[[#This Row],[2020/21 Original_Source]]*T_DataComboFile[[#This Row],[G&S reporting level indicator]]","v":0},{"$f":"T_DataComboFile[[#This Row],[2020/21 SAB_Source]]*T_DataComboFile[[#This Row],[G&S reporting level indicator]]","v":0},{"$f":"T_DataComboFile[[#This Row],[2020/21 Baseline_Source]]*T_DataComboFile[[#This Row],[G&S reporting level indicator]]","v":0},{"$f":"T_DataComboFile[[#This Row],[2021/22 Baseline_Source]]*T_DataComboFile[[#This Row],[G&S reporting level indicator]]","v":0},{"$f":"T_DataComboFile[[#This Row],[2022/23 Baseline_Source]]*T_DataComboFile[[#This Row],[G&S reporting level indicator]]","v":0},{"$f":"T_DataComboFile[[#This Row],[2023/24 Baseline_Source]]*T_DataComboFile[[#This Row],[G&S reporting level indicator]]","v":0},null,null,null,null,null,null,{"$f":"T_DataComboFile[[#This Row],[2021/22 Baseline]]+T_DataComboFile[[#This Row],[2021/22 Reduction]]+T_DataComboFile[[#This Row],[2021/22 Increase]]","v":0},{"$f":"T_DataComboFile[[#This Row],[2022/23 Baseline]]+T_DataComboFile[[#This Row],[2022/23 Reduction]]+T_DataComboFile[[#This Row],[2022/23 Increase]]","v":0},{"$f":"T_DataComboFile[[#This Row],[2023/24 Baseline]]+T_DataComboFile[[#This Row],[2023/24 Reduction]]+T_DataComboFile[[#This Row],[2023/24 Increase]]","v":0}]
["NAT|Employee social benefits","36|Social benefits","2021_22","ENE2020",36,4,1,17410,71062,36,4,1,17410,"071062","36|04|01",1,2,10,52,56,"01|02|10|52|56","National","Small Business Development","Enterprise Development and Entrepreneurship","Enterprise and Supplier Development","Employee social benefits","Current","Transfers and subsidies","Households","Social benefits","Social benefits","Economic development","Industrialisation and exports","NAT",68,84,41,0,0,0,0,0,0,0,0,0,0,1,null,{"$f":"IF(T_DataComboFile[[#This Row],[G&S reporting level indicator]]=1,$AX$16,\"Not applicable\")","v":"Level 3"},{"$f":"IF(AND($AX$16=\"Level 3\",T_DataComboFile[[#This Row],[Econ3]] = \"Goods and services\"),IF(T_DataComboFile[[#This Row],[Econ4]] = T_DataComboFile[[#This Row],[Econ3]],1,0),IF(AND($AX$16=\"Level 4\",T_DataComboFile[[#This Row],[Econ4]] = \"Goods and services\"),0,1))","v":1},{"$f":"T_DataComboFile[[#This Row],[2016/17_Source]]*T_DataComboFile[[#This Row],[G&S reporting level indicator]]","v":68},{"$f":"T_DataComboFile[[#This Row],[2017/18_Source]]*T_DataComboFile[[#This Row],[G&S reporting level indicator]]","v":84},{"$f":"T_DataComboFile[[#This Row],[2018/19_Source]]*T_DataComboFile[[#This Row],[G&S reporting level indicator]]","v":41},{"$f":"T_DataComboFile[[#This Row],[2019/20 Main appropriation_Source]]*T_DataComboFile[[#This Row],[G&S reporting level indicator]]","v":0},{"$f":"T_DataComboFile[[#This Row],[2019/20 Adjusted appropriation_Source]]*T_DataComboFile[[#This Row],[G&S reporting level indicator]]","v":0},{"$f":"T_DataComboFile[[#This Row],[2019/20 Revised estimate_Source]]*T_DataComboFile[[#This Row],[G&S reporting level indicator]]","v":0},{"$f":"T_DataComboFile[[#This Row],[2019/20 Preliminary outcome_Source]]*T_DataComboFile[[#This Row],[G&S reporting level indicator]]","v":0},{"$f":"T_DataComboFile[[#This Row],[2020/21 Original_Source]]*T_DataComboFile[[#This Row],[G&S reporting level indicator]]","v":0},{"$f":"T_DataComboFile[[#This Row],[2020/21 SAB_Source]]*T_DataComboFile[[#This Row],[G&S reporting level indicator]]","v":0},{"$f":"T_DataComboFile[[#This Row],[2020/21 Baseline_Source]]*T_DataComboFile[[#This Row],[G&S reporting level indicator]]","v":0},{"$f":"T_DataComboFile[[#This Row],[2021/22 Baseline_Source]]*T_DataComboFile[[#This Row],[G&S reporting level indicator]]","v":0},{"$f":"T_DataComboFile[[#This Row],[2022/23 Baseline_Source]]*T_DataComboFile[[#This Row],[G&S reporting level indicator]]","v":0},{"$f":"T_DataComboFile[[#This Row],[2023/24 Baseline_Source]]*T_DataComboFile[[#This Row],[G&S reporting level indicator]]","v":0},null,null,null,null,null,null,{"$f":"T_DataComboFile[[#This Row],[2021/22 Baseline]]+T_DataComboFile[[#This Row],[2021/22 Reduction]]+T_DataComboFile[[#This Row],[2021/22 Increase]]","v":0},{"$f":"T_DataComboFile[[#This Row],[2022/23 Baseline]]+T_DataComboFile[[#This Row],[2022/23 Reduction]]+T_DataComboFile[[#This Row],[2022/23 Increase]]","v":0},{"$f":"T_DataComboFile[[#This Row],[2023/24 Baseline]]+T_DataComboFile[[#This Row],[2023/24 Reduction]]+T_DataComboFile[[#This Row],[2023/24 Increase]]","v":0}]
["NAT|Social Benefits","36|Other transfers to households","2021_22","ENE2020",36,4,1,17412,71063,36,4,1,17412,"071063","36|04|01",1,2,10,53,57,"01|02|10|53|57","National","Small Business Development","Enterprise Development and Entrepreneurship","Enterprise and Supplier Development","Social Benefits","Current","Transfers and subsidies","Households","Other transfers to households","Other transfers to households","Economic development","Industrialisation and exports","NAT",0,0,100,0,0,0,0,0,0,0,0,0,0,1,null,{"$f":"IF(T_DataComboFile[[#This Row],[G&S reporting level indicator]]=1,$AX$16,\"Not applicable\")","v":"Level 3"},{"$f":"IF(AND($AX$16=\"Level 3\",T_DataComboFile[[#This Row],[Econ3]] = \"Goods and services\"),IF(T_DataComboFile[[#This Row],[Econ4]] = T_DataComboFile[[#This Row],[Econ3]],1,0),IF(AND($AX$16=\"Level 4\",T_DataComboFile[[#This Row],[Econ4]] = \"Goods and services\"),0,1))","v":1},{"$f":"T_DataComboFile[[#This Row],[2016/17_Source]]*T_DataComboFile[[#This Row],[G&S reporting level indicator]]","v":0},{"$f":"T_DataComboFile[[#This Row],[2017/18_Source]]*T_DataComboFile[[#This Row],[G&S reporting level indicator]]","v":0},{"$f":"T_DataComboFile[[#This Row],[2018/19_Source]]*T_DataComboFile[[#This Row],[G&S reporting level indicator]]","v":100},{"$f":"T_DataComboFile[[#This Row],[2019/20 Main appropriation_Source]]*T_DataComboFile[[#This Row],[G&S reporting level indicator]]","v":0},{"$f":"T_DataComboFile[[#This Row],[2019/20 Adjusted appropriation_Source]]*T_DataComboFile[[#This Row],[G&S reporting level indicator]]","v":0},{"$f":"T_DataComboFile[[#This Row],[2019/20 Revised estimate_Source]]*T_DataComboFile[[#This Row],[G&S reporting level indicator]]","v":0},{"$f":"T_DataComboFile[[#This Row],[2019/20 Preliminary outcome_Source]]*T_DataComboFile[[#This Row],[G&S reporting level indicator]]","v":0},{"$f":"T_DataComboFile[[#This Row],[2020/21 Original_Source]]*T_DataComboFile[[#This Row],[G&S reporting level indicator]]","v":0},{"$f":"T_DataComboFile[[#This Row],[2020/21 SAB_Source]]*T_DataComboFile[[#This Row],[G&S reporting level indicator]]","v":0},{"$f":"T_DataComboFile[[#This Row],[2020/21 Baseline_Source]]*T_DataComboFile[[#This Row],[G&S reporting level indicator]]","v":0},{"$f":"T_DataComboFile[[#This Row],[2021/22 Baseline_Source]]*T_DataComboFile[[#This Row],[G&S reporting level indicator]]","v":0},{"$f":"T_DataComboFile[[#This Row],[2022/23 Baseline_Source]]*T_DataComboFile[[#This Row],[G&S reporting level indicator]]","v":0},{"$f":"T_DataComboFile[[#This Row],[2023/24 Baseline_Source]]*T_DataComboFile[[#This Row],[G&S reporting level indicator]]","v":0},null,null,null,null,null,null,{"$f":"T_DataComboFile[[#This Row],[2021/22 Baseline]]+T_DataComboFile[[#This Row],[2021/22 Reduction]]+T_DataComboFile[[#This Row],[2021/22 Increase]]","v":0},{"$f":"T_DataComboFile[[#This Row],[2022/23 Baseline]]+T_DataComboFile[[#This Row],[2022/23 Reduction]]+T_DataComboFile[[#This Row],[2022/23 Increase]]","v":0},{"$f":"T_DataComboFile[[#This Row],[2023/24 Baseline]]+T_DataComboFile[[#This Row],[2023/24 Reduction]]+T_DataComboFile[[#This Row],[2023/24 Increase]]","v":0}]
["NAT|Small Enterprise Finance Agency (SEFA)","36|Other transfers to public corporations","2021_22","ENE2020",36,4,1,17411,71064,36,4,1,17411,"071064","36|04|01",1,2,10,53,57,"01|02|10|53|57","National","Small Business Development","Enterprise Development and Entrepreneurship","Enterprise and Supplier Development","Small Enterprise Finance Agency (SEFA)","Current","Transfers and subsidies","Public corporations and private enterprises","Public corporations","Other transfers to public corporations","Economic development","Industrialisation and exports","NAT",0,0,0,0,0,0,0,0,1154500,0,0,0,0,1,null,{"$f":"IF(T_DataComboFile[[#This Row],[G&S reporting level indicator]]=1,$AX$16,\"Not applicable\")","v":"Level 3"},{"$f":"IF(AND($AX$16=\"Level 3\",T_DataComboFile[[#This Row],[Econ3]] = \"Goods and services\"),IF(T_DataComboFile[[#This Row],[Econ4]] = T_DataComboFile[[#This Row],[Econ3]],1,0),IF(AND($AX$16=\"Level 4\",T_DataComboFile[[#This Row],[Econ4]] = \"Goods and services\"),0,1))","v":1},{"$f":"T_DataComboFile[[#This Row],[2016/17_Source]]*T_DataComboFile[[#This Row],[G&S reporting level indicator]]","v":0},{"$f":"T_DataComboFile[[#This Row],[2017/18_Source]]*T_DataComboFile[[#This Row],[G&S reporting level indicator]]","v":0},{"$f":"T_DataComboFile[[#This Row],[2018/19_Source]]*T_DataComboFile[[#This Row],[G&S reporting level indicator]]","v":0},{"$f":"T_DataComboFile[[#This Row],[2019/20 Main appropriation_Source]]*T_DataComboFile[[#This Row],[G&S reporting level indicator]]","v":0},{"$f":"T_DataComboFile[[#This Row],[2019/20 Adjusted appropriation_Source]]*T_DataComboFile[[#This Row],[G&S reporting level indicator]]","v":0},{"$f":"T_DataComboFile[[#This Row],[2019/20 Revised estimate_Source]]*T_DataComboFile[[#This Row],[G&S reporting level indicator]]","v":0},{"$f":"T_DataComboFile[[#This Row],[2019/20 Preliminary outcome_Source]]*T_DataComboFile[[#This Row],[G&S reporting level indicator]]","v":0},{"$f":"T_DataComboFile[[#This Row],[2020/21 Original_Source]]*T_DataComboFile[[#This Row],[G&S reporting level indicator]]","v":0},{"$f":"T_DataComboFile[[#This Row],[2020/21 SAB_Source]]*T_DataComboFile[[#This Row],[G&S reporting level indicator]]","v":1154500},{"$f":"T_DataComboFile[[#This Row],[2020/21 Baseline_Source]]*T_DataComboFile[[#This Row],[G&S reporting level indicator]]","v":0},{"$f":"T_DataComboFile[[#This Row],[2021/22 Baseline_Source]]*T_DataComboFile[[#This Row],[G&S reporting level indicator]]","v":0},{"$f":"T_DataComboFile[[#This Row],[2022/23 Baseline_Source]]*T_DataComboFile[[#This Row],[G&S reporting level indicator]]","v":0},{"$f":"T_DataComboFile[[#This Row],[2023/24 Baseline_Source]]*T_DataComboFile[[#This Row],[G&S reporting level indicator]]","v":0},null,null,null,null,null,null,{"$f":"T_DataComboFile[[#This Row],[2021/22 Baseline]]+T_DataComboFile[[#This Row],[2021/22 Reduction]]+T_DataComboFile[[#This Row],[2021/22 Increase]]","v":0},{"$f":"T_DataComboFile[[#This Row],[2022/23 Baseline]]+T_DataComboFile[[#This Row],[2022/23 Reduction]]+T_DataComboFile[[#This Row],[2022/23 Increase]]","v":0},{"$f":"T_DataComboFile[[#This Row],[2023/24 Baseline]]+T_DataComboFile[[#This Row],[2023/24 Reduction]]+T_DataComboFile[[#This Row],[2023/24 Increase]]","v":0}]
[null,null,"2021_22","ENE2020",36,4,1,null,71065,36,4,1,null,"071065","36|04|01",2,2,4,43,43,"02|02|04|43|43","National","Small Business Development","Enterprise Development and Entrepreneurship","Enterprise and Supplier Development",null,"Capital","Transfers and subsidies","Provinces and municipalities","Provinces","Provincial Revenue Funds",null,null,null,0,0,0,0,0,0,0,0,0,0,0,0,0,0,null,{"$f":"IF(T_DataComboFile[[#This Row],[G&S reporting level indicator]]=1,$AX$16,\"Not applicable\")","v":"Level 3"},{"$f":"IF(AND($AX$16=\"Level 3\",T_DataComboFile[[#This Row],[Econ3]] = \"Goods and services\"),IF(T_DataComboFile[[#This Row],[Econ4]] = T_DataComboFile[[#This Row],[Econ3]],1,0),IF(AND($AX$16=\"Level 4\",T_DataComboFile[[#This Row],[Econ4]] = \"Goods and services\"),0,1))","v":1},{"$f":"T_DataComboFile[[#This Row],[2016/17_Source]]*T_DataComboFile[[#This Row],[G&S reporting level indicator]]","v":0},{"$f":"T_DataComboFile[[#This Row],[2017/18_Source]]*T_DataComboFile[[#This Row],[G&S reporting level indicator]]","v":0},{"$f":"T_DataComboFile[[#This Row],[2018/19_Source]]*T_DataComboFile[[#This Row],[G&S reporting level indicator]]","v":0},{"$f":"T_DataComboFile[[#This Row],[2019/20 Main appropriation_Source]]*T_DataComboFile[[#This Row],[G&S reporting level indicator]]","v":0},{"$f":"T_DataComboFile[[#This Row],[2019/20 Adjusted appropriation_Source]]*T_DataComboFile[[#This Row],[G&S reporting level indicator]]","v":0},{"$f":"T_DataComboFile[[#This Row],[2019/20 Revised estimate_Source]]*T_DataComboFile[[#This Row],[G&S reporting level indicator]]","v":0},{"$f":"T_DataComboFile[[#This Row],[2019/20 Preliminary outcome_Source]]*T_DataComboFile[[#This Row],[G&S reporting level indicator]]","v":0},{"$f":"T_DataComboFile[[#This Row],[2020/21 Original_Source]]*T_DataComboFile[[#This Row],[G&S reporting level indicator]]","v":0},{"$f":"T_DataComboFile[[#This Row],[2020/21 SAB_Source]]*T_DataComboFile[[#This Row],[G&S reporting level indicator]]","v":0},{"$f":"T_DataComboFile[[#This Row],[2020/21 Baseline_Source]]*T_DataComboFile[[#This Row],[G&S reporting level indicator]]","v":0},{"$f":"T_DataComboFile[[#This Row],[2021/22 Baseline_Source]]*T_DataComboFile[[#This Row],[G&S reporting level indicator]]","v":0},{"$f":"T_DataComboFile[[#This Row],[2022/23 Baseline_Source]]*T_DataComboFile[[#This Row],[G&S reporting level indicator]]","v":0},{"$f":"T_DataComboFile[[#This Row],[2023/24 Baseline_Source]]*T_DataComboFile[[#This Row],[G&S reporting level indicator]]","v":0},null,null,null,null,null,null,{"$f":"T_DataComboFile[[#This Row],[2021/22 Baseline]]+T_DataComboFile[[#This Row],[2021/22 Reduction]]+T_DataComboFile[[#This Row],[2021/22 Increase]]","v":0},{"$f":"T_DataComboFile[[#This Row],[2022/23 Baseline]]+T_DataComboFile[[#This Row],[2022/23 Reduction]]+T_DataComboFile[[#This Row],[2022/23 Increase]]","v":0},{"$f":"T_DataComboFile[[#This Row],[2023/24 Baseline]]+T_DataComboFile[[#This Row],[2023/24 Reduction]]+T_DataComboFile[[#This Row],[2023/24 Increase]]","v":0}]
[null,null,"2021_22","ENE2020",36,4,1,null,71066,36,4,1,null,"071066","36|04|01",2,2,4,44,45,"02|02|04|44|45","National","Small Business Development","Enterprise Development and Entrepreneurship","Enterprise and Supplier Development",null,"Capital","Transfers and subsidies","Provinces and municipalities","Municipalities","Municipal bank accounts",null,null,null,0,0,0,0,0,0,0,0,0,0,0,0,0,0,null,{"$f":"IF(T_DataComboFile[[#This Row],[G&S reporting level indicator]]=1,$AX$16,\"Not applicable\")","v":"Level 3"},{"$f":"IF(AND($AX$16=\"Level 3\",T_DataComboFile[[#This Row],[Econ3]] = \"Goods and services\"),IF(T_DataComboFile[[#This Row],[Econ4]] = T_DataComboFile[[#This Row],[Econ3]],1,0),IF(AND($AX$16=\"Level 4\",T_DataComboFile[[#This Row],[Econ4]] = \"Goods and services\"),0,1))","v":1},{"$f":"T_DataComboFile[[#This Row],[2016/17_Source]]*T_DataComboFile[[#This Row],[G&S reporting level indicator]]","v":0},{"$f":"T_DataComboFile[[#This Row],[2017/18_Source]]*T_DataComboFile[[#This Row],[G&S reporting level indicator]]","v":0},{"$f":"T_DataComboFile[[#This Row],[2018/19_Source]]*T_DataComboFile[[#This Row],[G&S reporting level indicator]]","v":0},{"$f":"T_DataComboFile[[#This Row],[2019/20 Main appropriation_Source]]*T_DataComboFile[[#This Row],[G&S reporting level indicator]]","v":0},{"$f":"T_DataComboFile[[#This Row],[2019/20 Adjusted appropriation_Source]]*T_DataComboFile[[#This Row],[G&S reporting level indicator]]","v":0},{"$f":"T_DataComboFile[[#This Row],[2019/20 Revised estimate_Source]]*T_DataComboFile[[#This Row],[G&S reporting level indicator]]","v":0},{"$f":"T_DataComboFile[[#This Row],[2019/20 Preliminary outcome_Source]]*T_DataComboFile[[#This Row],[G&S reporting level indicator]]","v":0},{"$f":"T_DataComboFile[[#This Row],[2020/21 Original_Source]]*T_DataComboFile[[#This Row],[G&S reporting level indicator]]","v":0},{"$f":"T_DataComboFile[[#This Row],[2020/21 SAB_Source]]*T_DataComboFile[[#This Row],[G&S reporting level indicator]]","v":0},{"$f":"T_DataComboFile[[#This Row],[2020/21 Baseline_Source]]*T_DataComboFile[[#This Row],[G&S reporting level indicator]]","v":0},{"$f":"T_DataComboFile[[#This Row],[2021/22 Baseline_Source]]*T_DataComboFile[[#This Row],[G&S reporting level indicator]]","v":0},{"$f":"T_DataComboFile[[#This Row],[2022/23 Baseline_Source]]*T_DataComboFile[[#This Row],[G&S reporting level indicator]]","v":0},{"$f":"T_DataComboFile[[#This Row],[2023/24 Baseline_Source]]*T_DataComboFile[[#This Row],[G&S reporting level indicator]]","v":0},null,null,null,null,null,null,{"$f":"T_DataComboFile[[#This Row],[2021/22 Baseline]]+T_DataComboFile[[#This Row],[2021/22 Reduction]]+T_DataComboFile[[#This Row],[2021/22 Increase]]","v":0},{"$f":"T_DataComboFile[[#This Row],[2022/23 Baseline]]+T_DataComboFile[[#This Row],[2022/23 Reduction]]+T_DataComboFile[[#This Row],[2022/23 Increase]]","v":0},{"$f":"T_DataComboFile[[#This Row],[2023/24 Baseline]]+T_DataComboFile[[#This Row],[2023/24 Reduction]]+T_DataComboFile[[#This Row],[2023/24 Increase]]","v":0}]
[null,null,"2021_22","ENE2020",36,4,1,null,71067,36,4,1,null,"071067","36|04|01",2,2,5,46,48,"02|02|05|46|48","National","Small Business Development","Enterprise Development and Entrepreneurship","Enterprise and Supplier Development",null,"Capital","Transfers and subsidies","Departmental agencies and accounts","Departmental agencies (non-business entities)","Departmental agencies (non-business entities)",null,null,null,0,0,0,0,0,0,0,0,0,0,0,0,0,0,null,{"$f":"IF(T_DataComboFile[[#This Row],[G&S reporting level indicator]]=1,$AX$16,\"Not applicable\")","v":"Level 3"},{"$f":"IF(AND($AX$16=\"Level 3\",T_DataComboFile[[#This Row],[Econ3]] = \"Goods and services\"),IF(T_DataComboFile[[#This Row],[Econ4]] = T_DataComboFile[[#This Row],[Econ3]],1,0),IF(AND($AX$16=\"Level 4\",T_DataComboFile[[#This Row],[Econ4]] = \"Goods and services\"),0,1))","v":1},{"$f":"T_DataComboFile[[#This Row],[2016/17_Source]]*T_DataComboFile[[#This Row],[G&S reporting level indicator]]","v":0},{"$f":"T_DataComboFile[[#This Row],[2017/18_Source]]*T_DataComboFile[[#This Row],[G&S reporting level indicator]]","v":0},{"$f":"T_DataComboFile[[#This Row],[2018/19_Source]]*T_DataComboFile[[#This Row],[G&S reporting level indicator]]","v":0},{"$f":"T_DataComboFile[[#This Row],[2019/20 Main appropriation_Source]]*T_DataComboFile[[#This Row],[G&S reporting level indicator]]","v":0},{"$f":"T_DataComboFile[[#This Row],[2019/20 Adjusted appropriation_Source]]*T_DataComboFile[[#This Row],[G&S reporting level indicator]]","v":0},{"$f":"T_DataComboFile[[#This Row],[2019/20 Revised estimate_Source]]*T_DataComboFile[[#This Row],[G&S reporting level indicator]]","v":0},{"$f":"T_DataComboFile[[#This Row],[2019/20 Preliminary outcome_Source]]*T_DataComboFile[[#This Row],[G&S reporting level indicator]]","v":0},{"$f":"T_DataComboFile[[#This Row],[2020/21 Original_Source]]*T_DataComboFile[[#This Row],[G&S reporting level indicator]]","v":0},{"$f":"T_DataComboFile[[#This Row],[2020/21 SAB_Source]]*T_DataComboFile[[#This Row],[G&S reporting level indicator]]","v":0},{"$f":"T_DataComboFile[[#This Row],[2020/21 Baseline_Source]]*T_DataComboFile[[#This Row],[G&S reporting level indicator]]","v":0},{"$f":"T_DataComboFile[[#This Row],[2021/22 Baseline_Source]]*T_DataComboFile[[#This Row],[G&S reporting level indicator]]","v":0},{"$f":"T_DataComboFile[[#This Row],[2022/23 Baseline_Source]]*T_DataComboFile[[#This Row],[G&S reporting level indicator]]","v":0},{"$f":"T_DataComboFile[[#This Row],[2023/24 Baseline_Source]]*T_DataComboFile[[#This Row],[G&S reporting level indicator]]","v":0},null,null,null,null,null,null,{"$f":"T_DataComboFile[[#This Row],[2021/22 Baseline]]+T_DataComboFile[[#This Row],[2021/22 Reduction]]+T_DataComboFile[[#This Row],[2021/22 Increase]]","v":0},{"$f":"T_DataComboFile[[#This Row],[2022/23 Baseline]]+T_DataComboFile[[#This Row],[2022/23 Reduction]]+T_DataComboFile[[#This Row],[2022/23 Increase]]","v":0},{"$f":"T_DataComboFile[[#This Row],[2023/24 Baseline]]+T_DataComboFile[[#This Row],[2023/24 Reduction]]+T_DataComboFile[[#This Row],[2023/24 Increase]]","v":0}]
[null,null,"2021_22","ENE2020",36,4,1,null,71068,36,4,1,null,"071068","36|04|01",2,2,6,47,49,"02|02|06|47|49","National","Small Business Development","Enterprise Development and Entrepreneurship","Enterprise and Supplier Development",null,"Capital","Transfers and subsidies","Higher education institutions","Higher education institutions","Higher education institutions",null,null,null,0,0,0,0,0,0,0,0,0,0,0,0,0,0,null,{"$f":"IF(T_DataComboFile[[#This Row],[G&S reporting level indicator]]=1,$AX$16,\"Not applicable\")","v":"Level 3"},{"$f":"IF(AND($AX$16=\"Level 3\",T_DataComboFile[[#This Row],[Econ3]] = \"Goods and services\"),IF(T_DataComboFile[[#This Row],[Econ4]] = T_DataComboFile[[#This Row],[Econ3]],1,0),IF(AND($AX$16=\"Level 4\",T_DataComboFile[[#This Row],[Econ4]] = \"Goods and services\"),0,1))","v":1},{"$f":"T_DataComboFile[[#This Row],[2016/17_Source]]*T_DataComboFile[[#This Row],[G&S reporting level indicator]]","v":0},{"$f":"T_DataComboFile[[#This Row],[2017/18_Source]]*T_DataComboFile[[#This Row],[G&S reporting level indicator]]","v":0},{"$f":"T_DataComboFile[[#This Row],[2018/19_Source]]*T_DataComboFile[[#This Row],[G&S reporting level indicator]]","v":0},{"$f":"T_DataComboFile[[#This Row],[2019/20 Main appropriation_Source]]*T_DataComboFile[[#This Row],[G&S reporting level indicator]]","v":0},{"$f":"T_DataComboFile[[#This Row],[2019/20 Adjusted appropriation_Source]]*T_DataComboFile[[#This Row],[G&S reporting level indicator]]","v":0},{"$f":"T_DataComboFile[[#This Row],[2019/20 Revised estimate_Source]]*T_DataComboFile[[#This Row],[G&S reporting level indicator]]","v":0},{"$f":"T_DataComboFile[[#This Row],[2019/20 Preliminary outcome_Source]]*T_DataComboFile[[#This Row],[G&S reporting level indicator]]","v":0},{"$f":"T_DataComboFile[[#This Row],[2020/21 Original_Source]]*T_DataComboFile[[#This Row],[G&S reporting level indicator]]","v":0},{"$f":"T_DataComboFile[[#This Row],[2020/21 SAB_Source]]*T_DataComboFile[[#This Row],[G&S reporting level indicator]]","v":0},{"$f":"T_DataComboFile[[#This Row],[2020/21 Baseline_Source]]*T_DataComboFile[[#This Row],[G&S reporting level indicator]]","v":0},{"$f":"T_DataComboFile[[#This Row],[2021/22 Baseline_Source]]*T_DataComboFile[[#This Row],[G&S reporting level indicator]]","v":0},{"$f":"T_DataComboFile[[#This Row],[2022/23 Baseline_Source]]*T_DataComboFile[[#This Row],[G&S reporting level indicator]]","v":0},{"$f":"T_DataComboFile[[#This Row],[2023/24 Baseline_Source]]*T_DataComboFile[[#This Row],[G&S reporting level indicator]]","v":0},null,null,null,null,null,null,{"$f":"T_DataComboFile[[#This Row],[2021/22 Baseline]]+T_DataComboFile[[#This Row],[2021/22 Reduction]]+T_DataComboFile[[#This Row],[2021/22 Increase]]","v":0},{"$f":"T_DataComboFile[[#This Row],[2022/23 Baseline]]+T_DataComboFile[[#This Row],[2022/23 Reduction]]+T_DataComboFile[[#This Row],[2022/23 Increase]]","v":0},{"$f":"T_DataComboFile[[#This Row],[2023/24 Baseline]]+T_DataComboFile[[#This Row],[2023/24 Reduction]]+T_DataComboFile[[#This Row],[2023/24 Increase]]","v":0}]
[null,null,"2021_22","ENE2020",36,4,1,null,71069,36,4,1,null,"071069","36|04|01",2,2,7,48,50,"02|02|07|48|50","National","Small Business Development","Enterprise Development and Entrepreneurship","Enterprise and Supplier Development",null,"Capital","Transfers and subsidies","Foreign governments and international organisations","Foreign governments and international organisations","Foreign governments and international organisations",null,null,null,0,0,0,0,0,0,0,0,0,0,0,0,0,0,null,{"$f":"IF(T_DataComboFile[[#This Row],[G&S reporting level indicator]]=1,$AX$16,\"Not applicable\")","v":"Level 3"},{"$f":"IF(AND($AX$16=\"Level 3\",T_DataComboFile[[#This Row],[Econ3]] = \"Goods and services\"),IF(T_DataComboFile[[#This Row],[Econ4]] = T_DataComboFile[[#This Row],[Econ3]],1,0),IF(AND($AX$16=\"Level 4\",T_DataComboFile[[#This Row],[Econ4]] = \"Goods and services\"),0,1))","v":1},{"$f":"T_DataComboFile[[#This Row],[2016/17_Source]]*T_DataComboFile[[#This Row],[G&S reporting level indicator]]","v":0},{"$f":"T_DataComboFile[[#This Row],[2017/18_Source]]*T_DataComboFile[[#This Row],[G&S reporting level indicator]]","v":0},{"$f":"T_DataComboFile[[#This Row],[2018/19_Source]]*T_DataComboFile[[#This Row],[G&S reporting level indicator]]","v":0},{"$f":"T_DataComboFile[[#This Row],[2019/20 Main appropriation_Source]]*T_DataComboFile[[#This Row],[G&S reporting level indicator]]","v":0},{"$f":"T_DataComboFile[[#This Row],[2019/20 Adjusted appropriation_Source]]*T_DataComboFile[[#This Row],[G&S reporting level indicator]]","v":0},{"$f":"T_DataComboFile[[#This Row],[2019/20 Revised estimate_Source]]*T_DataComboFile[[#This Row],[G&S reporting level indicator]]","v":0},{"$f":"T_DataComboFile[[#This Row],[2019/20 Preliminary outcome_Source]]*T_DataComboFile[[#This Row],[G&S reporting level indicator]]","v":0},{"$f":"T_DataComboFile[[#This Row],[2020/21 Original_Source]]*T_DataComboFile[[#This Row],[G&S reporting level indicator]]","v":0},{"$f":"T_DataComboFile[[#This Row],[2020/21 SAB_Source]]*T_DataComboFile[[#This Row],[G&S reporting level indicator]]","v":0},{"$f":"T_DataComboFile[[#This Row],[2020/21 Baseline_Source]]*T_DataComboFile[[#This Row],[G&S reporting level indicator]]","v":0},{"$f":"T_DataComboFile[[#This Row],[2021/22 Baseline_Source]]*T_DataComboFile[[#This Row],[G&S reporting level indicator]]","v":0},{"$f":"T_DataComboFile[[#This Row],[2022/23 Baseline_Source]]*T_DataComboFile[[#This Row],[G&S reporting level indicator]]","v":0},{"$f":"T_DataComboFile[[#This Row],[2023/24 Baseline_Source]]*T_DataComboFile[[#This Row],[G&S reporting level indicator]]","v":0},null,null,null,null,null,null,{"$f":"T_DataComboFile[[#This Row],[2021/22 Baseline]]+T_DataComboFile[[#This Row],[2021/22 Reduction]]+T_DataComboFile[[#This Row],[2021/22 Increase]]","v":0},{"$f":"T_DataComboFile[[#This Row],[2022/23 Baseline]]+T_DataComboFile[[#This Row],[2022/23 Reduction]]+T_DataComboFile[[#This Row],[2022/23 Increase]]","v":0},{"$f":"T_DataComboFile[[#This Row],[2023/24 Baseline]]+T_DataComboFile[[#This Row],[2023/24 Reduction]]+T_DataComboFile[[#This Row],[2023/24 Increase]]","v":0}]
[null,null,"2021_22","ENE2020",36,4,1,null,71070,36,4,1,null,"071070","36|04|01",2,2,8,49,51,"02|02|08|49|51","National","Small Business Development","Enterprise Development and Entrepreneurship","Enterprise and Supplier Development",null,"Capital","Transfers and subsidies","Public corporations and private enterprises","Public corporations","Subsidies on products and production (pc)",null,null,null,0,0,0,0,0,0,0,0,0,0,0,0,0,0,null,{"$f":"IF(T_DataComboFile[[#This Row],[G&S reporting level indicator]]=1,$AX$16,\"Not applicable\")","v":"Level 3"},{"$f":"IF(AND($AX$16=\"Level 3\",T_DataComboFile[[#This Row],[Econ3]] = \"Goods and services\"),IF(T_DataComboFile[[#This Row],[Econ4]] = T_DataComboFile[[#This Row],[Econ3]],1,0),IF(AND($AX$16=\"Level 4\",T_DataComboFile[[#This Row],[Econ4]] = \"Goods and services\"),0,1))","v":1},{"$f":"T_DataComboFile[[#This Row],[2016/17_Source]]*T_DataComboFile[[#This Row],[G&S reporting level indicator]]","v":0},{"$f":"T_DataComboFile[[#This Row],[2017/18_Source]]*T_DataComboFile[[#This Row],[G&S reporting level indicator]]","v":0},{"$f":"T_DataComboFile[[#This Row],[2018/19_Source]]*T_DataComboFile[[#This Row],[G&S reporting level indicator]]","v":0},{"$f":"T_DataComboFile[[#This Row],[2019/20 Main appropriation_Source]]*T_DataComboFile[[#This Row],[G&S reporting level indicator]]","v":0},{"$f":"T_DataComboFile[[#This Row],[2019/20 Adjusted appropriation_Source]]*T_DataComboFile[[#This Row],[G&S reporting level indicator]]","v":0},{"$f":"T_DataComboFile[[#This Row],[2019/20 Revised estimate_Source]]*T_DataComboFile[[#This Row],[G&S reporting level indicator]]","v":0},{"$f":"T_DataComboFile[[#This Row],[2019/20 Preliminary outcome_Source]]*T_DataComboFile[[#This Row],[G&S reporting level indicator]]","v":0},{"$f":"T_DataComboFile[[#This Row],[2020/21 Original_Source]]*T_DataComboFile[[#This Row],[G&S reporting level indicator]]","v":0},{"$f":"T_DataComboFile[[#This Row],[2020/21 SAB_Source]]*T_DataComboFile[[#This Row],[G&S reporting level indicator]]","v":0},{"$f":"T_DataComboFile[[#This Row],[2020/21 Baseline_Source]]*T_DataComboFile[[#This Row],[G&S reporting level indicator]]","v":0},{"$f":"T_DataComboFile[[#This Row],[2021/22 Baseline_Source]]*T_DataComboFile[[#This Row],[G&S reporting level indicator]]","v":0},{"$f":"T_DataComboFile[[#This Row],[2022/23 Baseline_Source]]*T_DataComboFile[[#This Row],[G&S reporting level indicator]]","v":0},{"$f":"T_DataComboFile[[#This Row],[2023/24 Baseline_Source]]*T_DataComboFile[[#This Row],[G&S reporting level indicator]]","v":0},null,null,null,null,null,null,{"$f":"T_DataComboFile[[#This Row],[2021/22 Baseline]]+T_DataComboFile[[#This Row],[2021/22 Reduction]]+T_DataComboFile[[#This Row],[2021/22 Increase]]","v":0},{"$f":"T_DataComboFile[[#This Row],[2022/23 Baseline]]+T_DataComboFile[[#This Row],[2022/23 Reduction]]+T_DataComboFile[[#This Row],[2022/23 Increase]]","v":0},{"$f":"T_DataComboFile[[#This Row],[2023/24 Baseline]]+T_DataComboFile[[#This Row],[2023/24 Reduction]]+T_DataComboFile[[#This Row],[2023/24 Increase]]","v":0}]
[null,null,"2021_22","ENE2020",36,4,1,null,71071,36,4,1,null,"071071","36|04|01",2,2,8,49,52,"02|02|08|49|52","National","Small Business Development","Enterprise Development and Entrepreneurship","Enterprise and Supplier Development",null,"Capital","Transfers and subsidies","Public corporations and private enterprises","Public corporations","Other transfers to public corporations",null,null,null,0,0,0,0,0,0,0,0,0,0,0,0,0,0,null,{"$f":"IF(T_DataComboFile[[#This Row],[G&S reporting level indicator]]=1,$AX$16,\"Not applicable\")","v":"Level 3"},{"$f":"IF(AND($AX$16=\"Level 3\",T_DataComboFile[[#This Row],[Econ3]] = \"Goods and services\"),IF(T_DataComboFile[[#This Row],[Econ4]] = T_DataComboFile[[#This Row],[Econ3]],1,0),IF(AND($AX$16=\"Level 4\",T_DataComboFile[[#This Row],[Econ4]] = \"Goods and services\"),0,1))","v":1},{"$f":"T_DataComboFile[[#This Row],[2016/17_Source]]*T_DataComboFile[[#This Row],[G&S reporting level indicator]]","v":0},{"$f":"T_DataComboFile[[#This Row],[2017/18_Source]]*T_DataComboFile[[#This Row],[G&S reporting level indicator]]","v":0},{"$f":"T_DataComboFile[[#This Row],[2018/19_Source]]*T_DataComboFile[[#This Row],[G&S reporting level indicator]]","v":0},{"$f":"T_DataComboFile[[#This Row],[2019/20 Main appropriation_Source]]*T_DataComboFile[[#This Row],[G&S reporting level indicator]]","v":0},{"$f":"T_DataComboFile[[#This Row],[2019/20 Adjusted appropriation_Source]]*T_DataComboFile[[#This Row],[G&S reporting level indicator]]","v":0},{"$f":"T_DataComboFile[[#This Row],[2019/20 Revised estimate_Source]]*T_DataComboFile[[#This Row],[G&S reporting level indicator]]","v":0},{"$f":"T_DataComboFile[[#This Row],[2019/20 Preliminary outcome_Source]]*T_DataComboFile[[#This Row],[G&S reporting level indicator]]","v":0},{"$f":"T_DataComboFile[[#This Row],[2020/21 Original_Source]]*T_DataComboFile[[#This Row],[G&S reporting level indicator]]","v":0},{"$f":"T_DataComboFile[[#This Row],[2020/21 SAB_Source]]*T_DataComboFile[[#This Row],[G&S reporting level indicator]]","v":0},{"$f":"T_DataComboFile[[#This Row],[2020/21 Baseline_Source]]*T_DataComboFile[[#This Row],[G&S reporting level indicator]]","v":0},{"$f":"T_DataComboFile[[#This Row],[2021/22 Baseline_Source]]*T_DataComboFile[[#This Row],[G&S reporting level indicator]]","v":0},{"$f":"T_DataComboFile[[#This Row],[2022/23 Baseline_Source]]*T_DataComboFile[[#This Row],[G&S reporting level indicator]]","v":0},{"$f":"T_DataComboFile[[#This Row],[2023/24 Baseline_Source]]*T_DataComboFile[[#This Row],[G&S reporting level indicator]]","v":0},null,null,null,null,null,null,{"$f":"T_DataComboFile[[#This Row],[2021/22 Baseline]]+T_DataComboFile[[#This Row],[2021/22 Reduction]]+T_DataComboFile[[#This Row],[2021/22 Increase]]","v":0},{"$f":"T_DataComboFile[[#This Row],[2022/23 Baseline]]+T_DataComboFile[[#This Row],[2022/23 Reduction]]+T_DataComboFile[[#This Row],[2022/23 Increase]]","v":0},{"$f":"T_DataComboFile[[#This Row],[2023/24 Baseline]]+T_DataComboFile[[#This Row],[2023/24 Reduction]]+T_DataComboFile[[#This Row],[2023/24 Increase]]","v":0}]
[null,null,"2021_22","ENE2020",36,4,1,null,71072,36,4,1,null,"071072","36|04|01",2,2,8,50,54,"02|02|08|50|54","National","Small Business Development","Enterprise Development and Entrepreneurship","Enterprise and Supplier Development",null,"Capital","Transfers and subsidies","Public corporations and private enterprises","Private enterprises","Other transfers to private enterprises",null,null,null,0,0,0,0,0,0,0,0,0,0,0,0,0,0,null,{"$f":"IF(T_DataComboFile[[#This Row],[G&S reporting level indicator]]=1,$AX$16,\"Not applicable\")","v":"Level 3"},{"$f":"IF(AND($AX$16=\"Level 3\",T_DataComboFile[[#This Row],[Econ3]] = \"Goods and services\"),IF(T_DataComboFile[[#This Row],[Econ4]] = T_DataComboFile[[#This Row],[Econ3]],1,0),IF(AND($AX$16=\"Level 4\",T_DataComboFile[[#This Row],[Econ4]] = \"Goods and services\"),0,1))","v":1},{"$f":"T_DataComboFile[[#This Row],[2016/17_Source]]*T_DataComboFile[[#This Row],[G&S reporting level indicator]]","v":0},{"$f":"T_DataComboFile[[#This Row],[2017/18_Source]]*T_DataComboFile[[#This Row],[G&S reporting level indicator]]","v":0},{"$f":"T_DataComboFile[[#This Row],[2018/19_Source]]*T_DataComboFile[[#This Row],[G&S reporting level indicator]]","v":0},{"$f":"T_DataComboFile[[#This Row],[2019/20 Main appropriation_Source]]*T_DataComboFile[[#This Row],[G&S reporting level indicator]]","v":0},{"$f":"T_DataComboFile[[#This Row],[2019/20 Adjusted appropriation_Source]]*T_DataComboFile[[#This Row],[G&S reporting level indicator]]","v":0},{"$f":"T_DataComboFile[[#This Row],[2019/20 Revised estimate_Source]]*T_DataComboFile[[#This Row],[G&S reporting level indicator]]","v":0},{"$f":"T_DataComboFile[[#This Row],[2019/20 Preliminary outcome_Source]]*T_DataComboFile[[#This Row],[G&S reporting level indicator]]","v":0},{"$f":"T_DataComboFile[[#This Row],[2020/21 Original_Source]]*T_DataComboFile[[#This Row],[G&S reporting level indicator]]","v":0},{"$f":"T_DataComboFile[[#This Row],[2020/21 SAB_Source]]*T_DataComboFile[[#This Row],[G&S reporting level indicator]]","v":0},{"$f":"T_DataComboFile[[#This Row],[2020/21 Baseline_Source]]*T_DataComboFile[[#This Row],[G&S reporting level indicator]]","v":0},{"$f":"T_DataComboFile[[#This Row],[2021/22 Baseline_Source]]*T_DataComboFile[[#This Row],[G&S reporting level indicator]]","v":0},{"$f":"T_DataComboFile[[#This Row],[2022/23 Baseline_Source]]*T_DataComboFile[[#This Row],[G&S reporting level indicator]]","v":0},{"$f":"T_DataComboFile[[#This Row],[2023/24 Baseline_Source]]*T_DataComboFile[[#This Row],[G&S reporting level indicator]]","v":0},null,null,null,null,null,null,{"$f":"T_DataComboFile[[#This Row],[2021/22 Baseline]]+T_DataComboFile[[#This Row],[2021/22 Reduction]]+T_DataComboFile[[#This Row],[2021/22 Increase]]","v":0},{"$f":"T_DataComboFile[[#This Row],[2022/23 Baseline]]+T_DataComboFile[[#This Row],[2022/23 Reduction]]+T_DataComboFile[[#This Row],[2022/23 Increase]]","v":0},{"$f":"T_DataComboFile[[#This Row],[2023/24 Baseline]]+T_DataComboFile[[#This Row],[2023/24 Reduction]]+T_DataComboFile[[#This Row],[2023/24 Increase]]","v":0}]
[null,null,"2021_22","ENE2020",36,4,1,null,71073,36,4,1,null,"071073","36|04|01",2,2,9,51,55,"02|02|09|51|55","National","Small Business Development","Enterprise Development and Entrepreneurship","Enterprise and Supplier Development",null,"Capital","Transfers and subsidies","Non-profit institutions","Non-profit institutions","Non-profit institutions",null,null,null,0,0,0,0,0,0,0,0,0,0,0,0,0,0,null,{"$f":"IF(T_DataComboFile[[#This Row],[G&S reporting level indicator]]=1,$AX$16,\"Not applicable\")","v":"Level 3"},{"$f":"IF(AND($AX$16=\"Level 3\",T_DataComboFile[[#This Row],[Econ3]] = \"Goods and services\"),IF(T_DataComboFile[[#This Row],[Econ4]] = T_DataComboFile[[#This Row],[Econ3]],1,0),IF(AND($AX$16=\"Level 4\",T_DataComboFile[[#This Row],[Econ4]] = \"Goods and services\"),0,1))","v":1},{"$f":"T_DataComboFile[[#This Row],[2016/17_Source]]*T_DataComboFile[[#This Row],[G&S reporting level indicator]]","v":0},{"$f":"T_DataComboFile[[#This Row],[2017/18_Source]]*T_DataComboFile[[#This Row],[G&S reporting level indicator]]","v":0},{"$f":"T_DataComboFile[[#This Row],[2018/19_Source]]*T_DataComboFile[[#This Row],[G&S reporting level indicator]]","v":0},{"$f":"T_DataComboFile[[#This Row],[2019/20 Main appropriation_Source]]*T_DataComboFile[[#This Row],[G&S reporting level indicator]]","v":0},{"$f":"T_DataComboFile[[#This Row],[2019/20 Adjusted appropriation_Source]]*T_DataComboFile[[#This Row],[G&S reporting level indicator]]","v":0},{"$f":"T_DataComboFile[[#This Row],[2019/20 Revised estimate_Source]]*T_DataComboFile[[#This Row],[G&S reporting level indicator]]","v":0},{"$f":"T_DataComboFile[[#This Row],[2019/20 Preliminary outcome_Source]]*T_DataComboFile[[#This Row],[G&S reporting level indicator]]","v":0},{"$f":"T_DataComboFile[[#This Row],[2020/21 Original_Source]]*T_DataComboFile[[#This Row],[G&S reporting level indicator]]","v":0},{"$f":"T_DataComboFile[[#This Row],[2020/21 SAB_Source]]*T_DataComboFile[[#This Row],[G&S reporting level indicator]]","v":0},{"$f":"T_DataComboFile[[#This Row],[2020/21 Baseline_Source]]*T_DataComboFile[[#This Row],[G&S reporting level indicator]]","v":0},{"$f":"T_DataComboFile[[#This Row],[2021/22 Baseline_Source]]*T_DataComboFile[[#This Row],[G&S reporting level indicator]]","v":0},{"$f":"T_DataComboFile[[#This Row],[2022/23 Baseline_Source]]*T_DataComboFile[[#This Row],[G&S reporting level indicator]]","v":0},{"$f":"T_DataComboFile[[#This Row],[2023/24 Baseline_Source]]*T_DataComboFile[[#This Row],[G&S reporting level indicator]]","v":0},null,null,null,null,null,null,{"$f":"T_DataComboFile[[#This Row],[2021/22 Baseline]]+T_DataComboFile[[#This Row],[2021/22 Reduction]]+T_DataComboFile[[#This Row],[2021/22 Increase]]","v":0},{"$f":"T_DataComboFile[[#This Row],[2022/23 Baseline]]+T_DataComboFile[[#This Row],[2022/23 Reduction]]+T_DataComboFile[[#This Row],[2022/23 Increase]]","v":0},{"$f":"T_DataComboFile[[#This Row],[2023/24 Baseline]]+T_DataComboFile[[#This Row],[2023/24 Reduction]]+T_DataComboFile[[#This Row],[2023/24 Increase]]","v":0}]
[null,null,"2021_22","ENE2020",36,4,1,null,71074,36,4,1,null,"071074","36|04|01",2,2,10,53,57,"02|02|10|53|57","National","Small Business Development","Enterprise Development and Entrepreneurship","Enterprise and Supplier Development",null,"Capital","Transfers and subsidies","Households","Other transfers to households","Other transfers to households",null,null,null,0,0,0,0,0,0,0,0,0,0,0,0,0,0,null,{"$f":"IF(T_DataComboFile[[#This Row],[G&S reporting level indicator]]=1,$AX$16,\"Not applicable\")","v":"Level 3"},{"$f":"IF(AND($AX$16=\"Level 3\",T_DataComboFile[[#This Row],[Econ3]] = \"Goods and services\"),IF(T_DataComboFile[[#This Row],[Econ4]] = T_DataComboFile[[#This Row],[Econ3]],1,0),IF(AND($AX$16=\"Level 4\",T_DataComboFile[[#This Row],[Econ4]] = \"Goods and services\"),0,1))","v":1},{"$f":"T_DataComboFile[[#This Row],[2016/17_Source]]*T_DataComboFile[[#This Row],[G&S reporting level indicator]]","v":0},{"$f":"T_DataComboFile[[#This Row],[2017/18_Source]]*T_DataComboFile[[#This Row],[G&S reporting level indicator]]","v":0},{"$f":"T_DataComboFile[[#This Row],[2018/19_Source]]*T_DataComboFile[[#This Row],[G&S reporting level indicator]]","v":0},{"$f":"T_DataComboFile[[#This Row],[2019/20 Main appropriation_Source]]*T_DataComboFile[[#This Row],[G&S reporting level indicator]]","v":0},{"$f":"T_DataComboFile[[#This Row],[2019/20 Adjusted appropriation_Source]]*T_DataComboFile[[#This Row],[G&S reporting level indicator]]","v":0},{"$f":"T_DataComboFile[[#This Row],[2019/20 Revised estimate_Source]]*T_DataComboFile[[#This Row],[G&S reporting level indicator]]","v":0},{"$f":"T_DataComboFile[[#This Row],[2019/20 Preliminary outcome_Source]]*T_DataComboFile[[#This Row],[G&S reporting level indicator]]","v":0},{"$f":"T_DataComboFile[[#This Row],[2020/21 Original_Source]]*T_DataComboFile[[#This Row],[G&S reporting level indicator]]","v":0},{"$f":"T_DataComboFile[[#This Row],[2020/21 SAB_Source]]*T_DataComboFile[[#This Row],[G&S reporting level indicator]]","v":0},{"$f":"T_DataComboFile[[#This Row],[2020/21 Baseline_Source]]*T_DataComboFile[[#This Row],[G&S reporting level indicator]]","v":0},{"$f":"T_DataComboFile[[#This Row],[2021/22 Baseline_Source]]*T_DataComboFile[[#This Row],[G&S reporting level indicator]]","v":0},{"$f":"T_DataComboFile[[#This Row],[2022/23 Baseline_Source]]*T_DataComboFile[[#This Row],[G&S reporting level indicator]]","v":0},{"$f":"T_DataComboFile[[#This Row],[2023/24 Baseline_Source]]*T_DataComboFile[[#This Row],[G&S reporting level indicator]]","v":0},null,null,null,null,null,null,{"$f":"T_DataComboFile[[#This Row],[2021/22 Baseline]]+T_DataComboFile[[#This Row],[2021/22 Reduction]]+T_DataComboFile[[#This Row],[2021/22 Increase]]","v":0},{"$f":"T_DataComboFile[[#This Row],[2022/23 Baseline]]+T_DataComboFile[[#This Row],[2022/23 Reduction]]+T_DataComboFile[[#This Row],[2022/23 Increase]]","v":0},{"$f":"T_DataComboFile[[#This Row],[2023/24 Baseline]]+T_DataComboFile[[#This Row],[2023/24 Reduction]]+T_DataComboFile[[#This Row],[2023/24 Increase]]","v":0}]
[null,null,"2021_22","ENE2020",36,4,1,null,71075,36,4,1,null,"071075","36|04|01",2,3,11,54,58,"02|03|11|54|58","National","Small Business Development","Enterprise Development and Entrepreneurship","Enterprise and Supplier Development",null,"Capital","Payments for capital assets","Buildings and other fixed structures","Buildings","Buildings",null,null,null,0,0,0,0,0,0,0,0,0,0,0,0,0,0,null,{"$f":"IF(T_DataComboFile[[#This Row],[G&S reporting level indicator]]=1,$AX$16,\"Not applicable\")","v":"Level 3"},{"$f":"IF(AND($AX$16=\"Level 3\",T_DataComboFile[[#This Row],[Econ3]] = \"Goods and services\"),IF(T_DataComboFile[[#This Row],[Econ4]] = T_DataComboFile[[#This Row],[Econ3]],1,0),IF(AND($AX$16=\"Level 4\",T_DataComboFile[[#This Row],[Econ4]] = \"Goods and services\"),0,1))","v":1},{"$f":"T_DataComboFile[[#This Row],[2016/17_Source]]*T_DataComboFile[[#This Row],[G&S reporting level indicator]]","v":0},{"$f":"T_DataComboFile[[#This Row],[2017/18_Source]]*T_DataComboFile[[#This Row],[G&S reporting level indicator]]","v":0},{"$f":"T_DataComboFile[[#This Row],[2018/19_Source]]*T_DataComboFile[[#This Row],[G&S reporting level indicator]]","v":0},{"$f":"T_DataComboFile[[#This Row],[2019/20 Main appropriation_Source]]*T_DataComboFile[[#This Row],[G&S reporting level indicator]]","v":0},{"$f":"T_DataComboFile[[#This Row],[2019/20 Adjusted appropriation_Source]]*T_DataComboFile[[#This Row],[G&S reporting level indicator]]","v":0},{"$f":"T_DataComboFile[[#This Row],[2019/20 Revised estimate_Source]]*T_DataComboFile[[#This Row],[G&S reporting level indicator]]","v":0},{"$f":"T_DataComboFile[[#This Row],[2019/20 Preliminary outcome_Source]]*T_DataComboFile[[#This Row],[G&S reporting level indicator]]","v":0},{"$f":"T_DataComboFile[[#This Row],[2020/21 Original_Source]]*T_DataComboFile[[#This Row],[G&S reporting level indicator]]","v":0},{"$f":"T_DataComboFile[[#This Row],[2020/21 SAB_Source]]*T_DataComboFile[[#This Row],[G&S reporting level indicator]]","v":0},{"$f":"T_DataComboFile[[#This Row],[2020/21 Baseline_Source]]*T_DataComboFile[[#This Row],[G&S reporting level indicator]]","v":0},{"$f":"T_DataComboFile[[#This Row],[2021/22 Baseline_Source]]*T_DataComboFile[[#This Row],[G&S reporting level indicator]]","v":0},{"$f":"T_DataComboFile[[#This Row],[2022/23 Baseline_Source]]*T_DataComboFile[[#This Row],[G&S reporting level indicator]]","v":0},{"$f":"T_DataComboFile[[#This Row],[2023/24 Baseline_Source]]*T_DataComboFile[[#This Row],[G&S reporting level indicator]]","v":0},null,null,null,null,null,null,{"$f":"T_DataComboFile[[#This Row],[2021/22 Baseline]]+T_DataComboFile[[#This Row],[2021/22 Reduction]]+T_DataComboFile[[#This Row],[2021/22 Increase]]","v":0},{"$f":"T_DataComboFile[[#This Row],[2022/23 Baseline]]+T_DataComboFile[[#This Row],[2022/23 Reduction]]+T_DataComboFile[[#This Row],[2022/23 Increase]]","v":0},{"$f":"T_DataComboFile[[#This Row],[2023/24 Baseline]]+T_DataComboFile[[#This Row],[2023/24 Reduction]]+T_DataComboFile[[#This Row],[2023/24 Increase]]","v":0}]
[null,null,"2021_22","ENE2020",36,4,1,null,71076,36,4,1,null,"071076","36|04|01",2,3,11,55,59,"02|03|11|55|59","National","Small Business Development","Enterprise Development and Entrepreneurship","Enterprise and Supplier Development",null,"Capital","Payments for capital assets","Buildings and other fixed structures","Other fixed structures","Other fixed structures",null,null,null,0,0,0,0,0,0,0,0,0,0,0,0,0,0,null,{"$f":"IF(T_DataComboFile[[#This Row],[G&S reporting level indicator]]=1,$AX$16,\"Not applicable\")","v":"Level 3"},{"$f":"IF(AND($AX$16=\"Level 3\",T_DataComboFile[[#This Row],[Econ3]] = \"Goods and services\"),IF(T_DataComboFile[[#This Row],[Econ4]] = T_DataComboFile[[#This Row],[Econ3]],1,0),IF(AND($AX$16=\"Level 4\",T_DataComboFile[[#This Row],[Econ4]] = \"Goods and services\"),0,1))","v":1},{"$f":"T_DataComboFile[[#This Row],[2016/17_Source]]*T_DataComboFile[[#This Row],[G&S reporting level indicator]]","v":0},{"$f":"T_DataComboFile[[#This Row],[2017/18_Source]]*T_DataComboFile[[#This Row],[G&S reporting level indicator]]","v":0},{"$f":"T_DataComboFile[[#This Row],[2018/19_Source]]*T_DataComboFile[[#This Row],[G&S reporting level indicator]]","v":0},{"$f":"T_DataComboFile[[#This Row],[2019/20 Main appropriation_Source]]*T_DataComboFile[[#This Row],[G&S reporting level indicator]]","v":0},{"$f":"T_DataComboFile[[#This Row],[2019/20 Adjusted appropriation_Source]]*T_DataComboFile[[#This Row],[G&S reporting level indicator]]","v":0},{"$f":"T_DataComboFile[[#This Row],[2019/20 Revised estimate_Source]]*T_DataComboFile[[#This Row],[G&S reporting level indicator]]","v":0},{"$f":"T_DataComboFile[[#This Row],[2019/20 Preliminary outcome_Source]]*T_DataComboFile[[#This Row],[G&S reporting level indicator]]","v":0},{"$f":"T_DataComboFile[[#This Row],[2020/21 Original_Source]]*T_DataComboFile[[#This Row],[G&S reporting level indicator]]","v":0},{"$f":"T_DataComboFile[[#This Row],[2020/21 SAB_Source]]*T_DataComboFile[[#This Row],[G&S reporting level indicator]]","v":0},{"$f":"T_DataComboFile[[#This Row],[2020/21 Baseline_Source]]*T_DataComboFile[[#This Row],[G&S reporting level indicator]]","v":0},{"$f":"T_DataComboFile[[#This Row],[2021/22 Baseline_Source]]*T_DataComboFile[[#This Row],[G&S reporting level indicator]]","v":0},{"$f":"T_DataComboFile[[#This Row],[2022/23 Baseline_Source]]*T_DataComboFile[[#This Row],[G&S reporting level indicator]]","v":0},{"$f":"T_DataComboFile[[#This Row],[2023/24 Baseline_Source]]*T_DataComboFile[[#This Row],[G&S reporting level indicator]]","v":0},null,null,null,null,null,null,{"$f":"T_DataComboFile[[#This Row],[2021/22 Baseline]]+T_DataComboFile[[#This Row],[2021/22 Reduction]]+T_DataComboFile[[#This Row],[2021/22 Increase]]","v":0},{"$f":"T_DataComboFile[[#This Row],[2022/23 Baseline]]+T_DataComboFile[[#This Row],[2022/23 Reduction]]+T_DataComboFile[[#This Row],[2022/23 Increase]]","v":0},{"$f":"T_DataComboFile[[#This Row],[2023/24 Baseline]]+T_DataComboFile[[#This Row],[2023/24 Reduction]]+T_DataComboFile[[#This Row],[2023/24 Increase]]","v":0}]
[null,null,"2021_22","ENE2020",36,4,1,null,71077,36,4,1,null,"071077","36|04|01",2,3,12,56,60,"02|03|12|56|60","National","Small Business Development","Enterprise Development and Entrepreneurship","Enterprise and Supplier Development",null,"Capital","Payments for capital assets","Machinery and equipment","Transport equipment","Transport equipment",null,null,null,0,0,0,0,0,0,0,0,0,0,0,0,0,0,null,{"$f":"IF(T_DataComboFile[[#This Row],[G&S reporting level indicator]]=1,$AX$16,\"Not applicable\")","v":"Level 3"},{"$f":"IF(AND($AX$16=\"Level 3\",T_DataComboFile[[#This Row],[Econ3]] = \"Goods and services\"),IF(T_DataComboFile[[#This Row],[Econ4]] = T_DataComboFile[[#This Row],[Econ3]],1,0),IF(AND($AX$16=\"Level 4\",T_DataComboFile[[#This Row],[Econ4]] = \"Goods and services\"),0,1))","v":1},{"$f":"T_DataComboFile[[#This Row],[2016/17_Source]]*T_DataComboFile[[#This Row],[G&S reporting level indicator]]","v":0},{"$f":"T_DataComboFile[[#This Row],[2017/18_Source]]*T_DataComboFile[[#This Row],[G&S reporting level indicator]]","v":0},{"$f":"T_DataComboFile[[#This Row],[2018/19_Source]]*T_DataComboFile[[#This Row],[G&S reporting level indicator]]","v":0},{"$f":"T_DataComboFile[[#This Row],[2019/20 Main appropriation_Source]]*T_DataComboFile[[#This Row],[G&S reporting level indicator]]","v":0},{"$f":"T_DataComboFile[[#This Row],[2019/20 Adjusted appropriation_Source]]*T_DataComboFile[[#This Row],[G&S reporting level indicator]]","v":0},{"$f":"T_DataComboFile[[#This Row],[2019/20 Revised estimate_Source]]*T_DataComboFile[[#This Row],[G&S reporting level indicator]]","v":0},{"$f":"T_DataComboFile[[#This Row],[2019/20 Preliminary outcome_Source]]*T_DataComboFile[[#This Row],[G&S reporting level indicator]]","v":0},{"$f":"T_DataComboFile[[#This Row],[2020/21 Original_Source]]*T_DataComboFile[[#This Row],[G&S reporting level indicator]]","v":0},{"$f":"T_DataComboFile[[#This Row],[2020/21 SAB_Source]]*T_DataComboFile[[#This Row],[G&S reporting level indicator]]","v":0},{"$f":"T_DataComboFile[[#This Row],[2020/21 Baseline_Source]]*T_DataComboFile[[#This Row],[G&S reporting level indicator]]","v":0},{"$f":"T_DataComboFile[[#This Row],[2021/22 Baseline_Source]]*T_DataComboFile[[#This Row],[G&S reporting level indicator]]","v":0},{"$f":"T_DataComboFile[[#This Row],[2022/23 Baseline_Source]]*T_DataComboFile[[#This Row],[G&S reporting level indicator]]","v":0},{"$f":"T_DataComboFile[[#This Row],[2023/24 Baseline_Source]]*T_DataComboFile[[#This Row],[G&S reporting level indicator]]","v":0},null,null,null,null,null,null,{"$f":"T_DataComboFile[[#This Row],[2021/22 Baseline]]+T_DataComboFile[[#This Row],[2021/22 Reduction]]+T_DataComboFile[[#This Row],[2021/22 Increase]]","v":0},{"$f":"T_DataComboFile[[#This Row],[2022/23 Baseline]]+T_DataComboFile[[#This Row],[2022/23 Reduction]]+T_DataComboFile[[#This Row],[2022/23 Increase]]","v":0},{"$f":"T_DataComboFile[[#This Row],[2023/24 Baseline]]+T_DataComboFile[[#This Row],[2023/24 Reduction]]+T_DataComboFile[[#This Row],[2023/24 Increase]]","v":0}]
["NAT|Non-transfer item","36|Other machinery and equipment","2021_22","ENE2020",36,4,1,17413,71078,36,4,1,17413,"071078","36|04|01",2,3,12,57,61,"02|03|12|57|61","National","Small Business Development","Enterprise Development and Entrepreneurship","Enterprise and Supplier Development","Non-transfer item","Capital","Payments for capital assets","Machinery and equipment","Other machinery and equipment","Other machinery and equipment","Economic development","Industrialisation and exports","NAT",4,19,55,51,51,51,51,72,72,72,77,81,85,1,null,{"$f":"IF(T_DataComboFile[[#This Row],[G&S reporting level indicator]]=1,$AX$16,\"Not applicable\")","v":"Level 3"},{"$f":"IF(AND($AX$16=\"Level 3\",T_DataComboFile[[#This Row],[Econ3]] = \"Goods and services\"),IF(T_DataComboFile[[#This Row],[Econ4]] = T_DataComboFile[[#This Row],[Econ3]],1,0),IF(AND($AX$16=\"Level 4\",T_DataComboFile[[#This Row],[Econ4]] = \"Goods and services\"),0,1))","v":1},{"$f":"T_DataComboFile[[#This Row],[2016/17_Source]]*T_DataComboFile[[#This Row],[G&S reporting level indicator]]","v":4},{"$f":"T_DataComboFile[[#This Row],[2017/18_Source]]*T_DataComboFile[[#This Row],[G&S reporting level indicator]]","v":19},{"$f":"T_DataComboFile[[#This Row],[2018/19_Source]]*T_DataComboFile[[#This Row],[G&S reporting level indicator]]","v":55},{"$f":"T_DataComboFile[[#This Row],[2019/20 Main appropriation_Source]]*T_DataComboFile[[#This Row],[G&S reporting level indicator]]","v":51},{"$f":"T_DataComboFile[[#This Row],[2019/20 Adjusted appropriation_Source]]*T_DataComboFile[[#This Row],[G&S reporting level indicator]]","v":51},{"$f":"T_DataComboFile[[#This Row],[2019/20 Revised estimate_Source]]*T_DataComboFile[[#This Row],[G&S reporting level indicator]]","v":51},{"$f":"T_DataComboFile[[#This Row],[2019/20 Preliminary outcome_Source]]*T_DataComboFile[[#This Row],[G&S reporting level indicator]]","v":51},{"$f":"T_DataComboFile[[#This Row],[2020/21 Original_Source]]*T_DataComboFile[[#This Row],[G&S reporting level indicator]]","v":72},{"$f":"T_DataComboFile[[#This Row],[2020/21 SAB_Source]]*T_DataComboFile[[#This Row],[G&S reporting level indicator]]","v":72},{"$f":"T_DataComboFile[[#This Row],[2020/21 Baseline_Source]]*T_DataComboFile[[#This Row],[G&S reporting level indicator]]","v":72},{"$f":"T_DataComboFile[[#This Row],[2021/22 Baseline_Source]]*T_DataComboFile[[#This Row],[G&S reporting level indicator]]","v":77},{"$f":"T_DataComboFile[[#This Row],[2022/23 Baseline_Source]]*T_DataComboFile[[#This Row],[G&S reporting level indicator]]","v":81},{"$f":"T_DataComboFile[[#This Row],[2023/24 Baseline_Source]]*T_DataComboFile[[#This Row],[G&S reporting level indicator]]","v":85},null,null,null,null,null,null,{"$f":"T_DataComboFile[[#This Row],[2021/22 Baseline]]+T_DataComboFile[[#This Row],[2021/22 Reduction]]+T_DataComboFile[[#This Row],[2021/22 Increase]]","v":77},{"$f":"T_DataComboFile[[#This Row],[2022/23 Baseline]]+T_DataComboFile[[#This Row],[2022/23 Reduction]]+T_DataComboFile[[#This Row],[2022/23 Increase]]","v":81},{"$f":"T_DataComboFile[[#This Row],[2023/24 Baseline]]+T_DataComboFile[[#This Row],[2023/24 Reduction]]+T_DataComboFile[[#This Row],[2023/24 Increase]]","v":85}]
[null,null,"2021_22","ENE2020",36,4,1,null,71079,36,4,1,null,"071079","36|04|01",2,3,13,58,62,"02|03|13|58|62","National","Small Business Development","Enterprise Development and Entrepreneurship","Enterprise and Supplier Development",null,"Capital","Payments for capital assets","Heritage assets","Heritage assets","Heritage assets",null,null,null,0,0,0,0,0,0,0,0,0,0,0,0,0,0,null,{"$f":"IF(T_DataComboFile[[#This Row],[G&S reporting level indicator]]=1,$AX$16,\"Not applicable\")","v":"Level 3"},{"$f":"IF(AND($AX$16=\"Level 3\",T_DataComboFile[[#This Row],[Econ3]] = \"Goods and services\"),IF(T_DataComboFile[[#This Row],[Econ4]] = T_DataComboFile[[#This Row],[Econ3]],1,0),IF(AND($AX$16=\"Level 4\",T_DataComboFile[[#This Row],[Econ4]] = \"Goods and services\"),0,1))","v":1},{"$f":"T_DataComboFile[[#This Row],[2016/17_Source]]*T_DataComboFile[[#This Row],[G&S reporting level indicator]]","v":0},{"$f":"T_DataComboFile[[#This Row],[2017/18_Source]]*T_DataComboFile[[#This Row],[G&S reporting level indicator]]","v":0},{"$f":"T_DataComboFile[[#This Row],[2018/19_Source]]*T_DataComboFile[[#This Row],[G&S reporting level indicator]]","v":0},{"$f":"T_DataComboFile[[#This Row],[2019/20 Main appropriation_Source]]*T_DataComboFile[[#This Row],[G&S reporting level indicator]]","v":0},{"$f":"T_DataComboFile[[#This Row],[2019/20 Adjusted appropriation_Source]]*T_DataComboFile[[#This Row],[G&S reporting level indicator]]","v":0},{"$f":"T_DataComboFile[[#This Row],[2019/20 Revised estimate_Source]]*T_DataComboFile[[#This Row],[G&S reporting level indicator]]","v":0},{"$f":"T_DataComboFile[[#This Row],[2019/20 Preliminary outcome_Source]]*T_DataComboFile[[#This Row],[G&S reporting level indicator]]","v":0},{"$f":"T_DataComboFile[[#This Row],[2020/21 Original_Source]]*T_DataComboFile[[#This Row],[G&S reporting level indicator]]","v":0},{"$f":"T_DataComboFile[[#This Row],[2020/21 SAB_Source]]*T_DataComboFile[[#This Row],[G&S reporting level indicator]]","v":0},{"$f":"T_DataComboFile[[#This Row],[2020/21 Baseline_Source]]*T_DataComboFile[[#This Row],[G&S reporting level indicator]]","v":0},{"$f":"T_DataComboFile[[#This Row],[2021/22 Baseline_Source]]*T_DataComboFile[[#This Row],[G&S reporting level indicator]]","v":0},{"$f":"T_DataComboFile[[#This Row],[2022/23 Baseline_Source]]*T_DataComboFile[[#This Row],[G&S reporting level indicator]]","v":0},{"$f":"T_DataComboFile[[#This Row],[2023/24 Baseline_Source]]*T_DataComboFile[[#This Row],[G&S reporting level indicator]]","v":0},null,null,null,null,null,null,{"$f":"T_DataComboFile[[#This Row],[2021/22 Baseline]]+T_DataComboFile[[#This Row],[2021/22 Reduction]]+T_DataComboFile[[#This Row],[2021/22 Increase]]","v":0},{"$f":"T_DataComboFile[[#This Row],[2022/23 Baseline]]+T_DataComboFile[[#This Row],[2022/23 Reduction]]+T_DataComboFile[[#This Row],[2022/23 Increase]]","v":0},{"$f":"T_DataComboFile[[#This Row],[2023/24 Baseline]]+T_DataComboFile[[#This Row],[2023/24 Reduction]]+T_DataComboFile[[#This Row],[2023/24 Increase]]","v":0}]
[null,null,"2021_22","ENE2020",36,4,1,null,71080,36,4,1,null,"071080","36|04|01",2,3,14,59,63,"02|03|14|59|63","National","Small Business Development","Enterprise Development and Entrepreneurship","Enterprise and Supplier Development",null,"Capital","Payments for capital assets","Specialised military assets","Specialised military assets","Specialised military assets",null,null,null,0,0,0,0,0,0,0,0,0,0,0,0,0,0,null,{"$f":"IF(T_DataComboFile[[#This Row],[G&S reporting level indicator]]=1,$AX$16,\"Not applicable\")","v":"Level 3"},{"$f":"IF(AND($AX$16=\"Level 3\",T_DataComboFile[[#This Row],[Econ3]] = \"Goods and services\"),IF(T_DataComboFile[[#This Row],[Econ4]] = T_DataComboFile[[#This Row],[Econ3]],1,0),IF(AND($AX$16=\"Level 4\",T_DataComboFile[[#This Row],[Econ4]] = \"Goods and services\"),0,1))","v":1},{"$f":"T_DataComboFile[[#This Row],[2016/17_Source]]*T_DataComboFile[[#This Row],[G&S reporting level indicator]]","v":0},{"$f":"T_DataComboFile[[#This Row],[2017/18_Source]]*T_DataComboFile[[#This Row],[G&S reporting level indicator]]","v":0},{"$f":"T_DataComboFile[[#This Row],[2018/19_Source]]*T_DataComboFile[[#This Row],[G&S reporting level indicator]]","v":0},{"$f":"T_DataComboFile[[#This Row],[2019/20 Main appropriation_Source]]*T_DataComboFile[[#This Row],[G&S reporting level indicator]]","v":0},{"$f":"T_DataComboFile[[#This Row],[2019/20 Adjusted appropriation_Source]]*T_DataComboFile[[#This Row],[G&S reporting level indicator]]","v":0},{"$f":"T_DataComboFile[[#This Row],[2019/20 Revised estimate_Source]]*T_DataComboFile[[#This Row],[G&S reporting level indicator]]","v":0},{"$f":"T_DataComboFile[[#This Row],[2019/20 Preliminary outcome_Source]]*T_DataComboFile[[#This Row],[G&S reporting level indicator]]","v":0},{"$f":"T_DataComboFile[[#This Row],[2020/21 Original_Source]]*T_DataComboFile[[#This Row],[G&S reporting level indicator]]","v":0},{"$f":"T_DataComboFile[[#This Row],[2020/21 SAB_Source]]*T_DataComboFile[[#This Row],[G&S reporting level indicator]]","v":0},{"$f":"T_DataComboFile[[#This Row],[2020/21 Baseline_Source]]*T_DataComboFile[[#This Row],[G&S reporting level indicator]]","v":0},{"$f":"T_DataComboFile[[#This Row],[2021/22 Baseline_Source]]*T_DataComboFile[[#This Row],[G&S reporting level indicator]]","v":0},{"$f":"T_DataComboFile[[#This Row],[2022/23 Baseline_Source]]*T_DataComboFile[[#This Row],[G&S reporting level indicator]]","v":0},{"$f":"T_DataComboFile[[#This Row],[2023/24 Baseline_Source]]*T_DataComboFile[[#This Row],[G&S reporting level indicator]]","v":0},null,null,null,null,null,null,{"$f":"T_DataComboFile[[#This Row],[2021/22 Baseline]]+T_DataComboFile[[#This Row],[2021/22 Reduction]]+T_DataComboFile[[#This Row],[2021/22 Increase]]","v":0},{"$f":"T_DataComboFile[[#This Row],[2022/23 Baseline]]+T_DataComboFile[[#This Row],[2022/23 Reduction]]+T_DataComboFile[[#This Row],[2022/23 Increase]]","v":0},{"$f":"T_DataComboFile[[#This Row],[2023/24 Baseline]]+T_DataComboFile[[#This Row],[2023/24 Reduction]]+T_DataComboFile[[#This Row],[2023/24 Increase]]","v":0}]
[null,null,"2021_22","ENE2020",36,4,1,null,71081,36,4,1,null,"071081","36|04|01",2,3,15,60,64,"02|03|15|60|64","National","Small Business Development","Enterprise Development and Entrepreneurship","Enterprise and Supplier Development",null,"Capital","Payments for capital assets","Biological assets","Biological assets","Biological assets",null,null,null,0,0,0,0,0,0,0,0,0,0,0,0,0,0,null,{"$f":"IF(T_DataComboFile[[#This Row],[G&S reporting level indicator]]=1,$AX$16,\"Not applicable\")","v":"Level 3"},{"$f":"IF(AND($AX$16=\"Level 3\",T_DataComboFile[[#This Row],[Econ3]] = \"Goods and services\"),IF(T_DataComboFile[[#This Row],[Econ4]] = T_DataComboFile[[#This Row],[Econ3]],1,0),IF(AND($AX$16=\"Level 4\",T_DataComboFile[[#This Row],[Econ4]] = \"Goods and services\"),0,1))","v":1},{"$f":"T_DataComboFile[[#This Row],[2016/17_Source]]*T_DataComboFile[[#This Row],[G&S reporting level indicator]]","v":0},{"$f":"T_DataComboFile[[#This Row],[2017/18_Source]]*T_DataComboFile[[#This Row],[G&S reporting level indicator]]","v":0},{"$f":"T_DataComboFile[[#This Row],[2018/19_Source]]*T_DataComboFile[[#This Row],[G&S reporting level indicator]]","v":0},{"$f":"T_DataComboFile[[#This Row],[2019/20 Main appropriation_Source]]*T_DataComboFile[[#This Row],[G&S reporting level indicator]]","v":0},{"$f":"T_DataComboFile[[#This Row],[2019/20 Adjusted appropriation_Source]]*T_DataComboFile[[#This Row],[G&S reporting level indicator]]","v":0},{"$f":"T_DataComboFile[[#This Row],[2019/20 Revised estimate_Source]]*T_DataComboFile[[#This Row],[G&S reporting level indicator]]","v":0},{"$f":"T_DataComboFile[[#This Row],[2019/20 Preliminary outcome_Source]]*T_DataComboFile[[#This Row],[G&S reporting level indicator]]","v":0},{"$f":"T_DataComboFile[[#This Row],[2020/21 Original_Source]]*T_DataComboFile[[#This Row],[G&S reporting level indicator]]","v":0},{"$f":"T_DataComboFile[[#This Row],[2020/21 SAB_Source]]*T_DataComboFile[[#This Row],[G&S reporting level indicator]]","v":0},{"$f":"T_DataComboFile[[#This Row],[2020/21 Baseline_Source]]*T_DataComboFile[[#This Row],[G&S reporting level indicator]]","v":0},{"$f":"T_DataComboFile[[#This Row],[2021/22 Baseline_Source]]*T_DataComboFile[[#This Row],[G&S reporting level indicator]]","v":0},{"$f":"T_DataComboFile[[#This Row],[2022/23 Baseline_Source]]*T_DataComboFile[[#This Row],[G&S reporting level indicator]]","v":0},{"$f":"T_DataComboFile[[#This Row],[2023/24 Baseline_Source]]*T_DataComboFile[[#This Row],[G&S reporting level indicator]]","v":0},null,null,null,null,null,null,{"$f":"T_DataComboFile[[#This Row],[2021/22 Baseline]]+T_DataComboFile[[#This Row],[2021/22 Reduction]]+T_DataComboFile[[#This Row],[2021/22 Increase]]","v":0},{"$f":"T_DataComboFile[[#This Row],[2022/23 Baseline]]+T_DataComboFile[[#This Row],[2022/23 Reduction]]+T_DataComboFile[[#This Row],[2022/23 Increase]]","v":0},{"$f":"T_DataComboFile[[#This Row],[2023/24 Baseline]]+T_DataComboFile[[#This Row],[2023/24 Reduction]]+T_DataComboFile[[#This Row],[2023/24 Increase]]","v":0}]
[null,null,"2021_22","ENE2020",36,4,1,null,71082,36,4,1,null,"071082","36|04|01",2,3,16,61,65,"02|03|16|61|65","National","Small Business Development","Enterprise Development and Entrepreneurship","Enterprise and Supplier Development",null,"Capital","Payments for capital assets","Land and sub-soil assets","Land and sub-soil assets","Land and sub-soil assets",null,null,null,0,0,0,0,0,0,0,0,0,0,0,0,0,0,null,{"$f":"IF(T_DataComboFile[[#This Row],[G&S reporting level indicator]]=1,$AX$16,\"Not applicable\")","v":"Level 3"},{"$f":"IF(AND($AX$16=\"Level 3\",T_DataComboFile[[#This Row],[Econ3]] = \"Goods and services\"),IF(T_DataComboFile[[#This Row],[Econ4]] = T_DataComboFile[[#This Row],[Econ3]],1,0),IF(AND($AX$16=\"Level 4\",T_DataComboFile[[#This Row],[Econ4]] = \"Goods and services\"),0,1))","v":1},{"$f":"T_DataComboFile[[#This Row],[2016/17_Source]]*T_DataComboFile[[#This Row],[G&S reporting level indicator]]","v":0},{"$f":"T_DataComboFile[[#This Row],[2017/18_Source]]*T_DataComboFile[[#This Row],[G&S reporting level indicator]]","v":0},{"$f":"T_DataComboFile[[#This Row],[2018/19_Source]]*T_DataComboFile[[#This Row],[G&S reporting level indicator]]","v":0},{"$f":"T_DataComboFile[[#This Row],[2019/20 Main appropriation_Source]]*T_DataComboFile[[#This Row],[G&S reporting level indicator]]","v":0},{"$f":"T_DataComboFile[[#This Row],[2019/20 Adjusted appropriation_Source]]*T_DataComboFile[[#This Row],[G&S reporting level indicator]]","v":0},{"$f":"T_DataComboFile[[#This Row],[2019/20 Revised estimate_Source]]*T_DataComboFile[[#This Row],[G&S reporting level indicator]]","v":0},{"$f":"T_DataComboFile[[#This Row],[2019/20 Preliminary outcome_Source]]*T_DataComboFile[[#This Row],[G&S reporting level indicator]]","v":0},{"$f":"T_DataComboFile[[#This Row],[2020/21 Original_Source]]*T_DataComboFile[[#This Row],[G&S reporting level indicator]]","v":0},{"$f":"T_DataComboFile[[#This Row],[2020/21 SAB_Source]]*T_DataComboFile[[#This Row],[G&S reporting level indicator]]","v":0},{"$f":"T_DataComboFile[[#This Row],[2020/21 Baseline_Source]]*T_DataComboFile[[#This Row],[G&S reporting level indicator]]","v":0},{"$f":"T_DataComboFile[[#This Row],[2021/22 Baseline_Source]]*T_DataComboFile[[#This Row],[G&S reporting level indicator]]","v":0},{"$f":"T_DataComboFile[[#This Row],[2022/23 Baseline_Source]]*T_DataComboFile[[#This Row],[G&S reporting level indicator]]","v":0},{"$f":"T_DataComboFile[[#This Row],[2023/24 Baseline_Source]]*T_DataComboFile[[#This Row],[G&S reporting level indicator]]","v":0},null,null,null,null,null,null,{"$f":"T_DataComboFile[[#This Row],[2021/22 Baseline]]+T_DataComboFile[[#This Row],[2021/22 Reduction]]+T_DataComboFile[[#This Row],[2021/22 Increase]]","v":0},{"$f":"T_DataComboFile[[#This Row],[2022/23 Baseline]]+T_DataComboFile[[#This Row],[2022/23 Reduction]]+T_DataComboFile[[#This Row],[2022/23 Increase]]","v":0},{"$f":"T_DataComboFile[[#This Row],[2023/24 Baseline]]+T_DataComboFile[[#This Row],[2023/24 Reduction]]+T_DataComboFile[[#This Row],[2023/24 Increase]]","v":0}]
[null,null,"2021_22","ENE2020",36,4,1,null,71083,36,4,1,null,"071083","36|04|01",2,3,17,62,66,"02|03|17|62|66","National","Small Business Development","Enterprise Development and Entrepreneurship","Enterprise and Supplier Development",null,"Capital","Payments for capital assets","Software and other intangible assets","Software and other intangible assets","Software and other intangible assets",null,null,null,0,0,0,0,0,0,0,0,0,0,0,0,0,0,null,{"$f":"IF(T_DataComboFile[[#This Row],[G&S reporting level indicator]]=1,$AX$16,\"Not applicable\")","v":"Level 3"},{"$f":"IF(AND($AX$16=\"Level 3\",T_DataComboFile[[#This Row],[Econ3]] = \"Goods and services\"),IF(T_DataComboFile[[#This Row],[Econ4]] = T_DataComboFile[[#This Row],[Econ3]],1,0),IF(AND($AX$16=\"Level 4\",T_DataComboFile[[#This Row],[Econ4]] = \"Goods and services\"),0,1))","v":1},{"$f":"T_DataComboFile[[#This Row],[2016/17_Source]]*T_DataComboFile[[#This Row],[G&S reporting level indicator]]","v":0},{"$f":"T_DataComboFile[[#This Row],[2017/18_Source]]*T_DataComboFile[[#This Row],[G&S reporting level indicator]]","v":0},{"$f":"T_DataComboFile[[#This Row],[2018/19_Source]]*T_DataComboFile[[#This Row],[G&S reporting level indicator]]","v":0},{"$f":"T_DataComboFile[[#This Row],[2019/20 Main appropriation_Source]]*T_DataComboFile[[#This Row],[G&S reporting level indicator]]","v":0},{"$f":"T_DataComboFile[[#This Row],[2019/20 Adjusted appropriation_Source]]*T_DataComboFile[[#This Row],[G&S reporting level indicator]]","v":0},{"$f":"T_DataComboFile[[#This Row],[2019/20 Revised estimate_Source]]*T_DataComboFile[[#This Row],[G&S reporting level indicator]]","v":0},{"$f":"T_DataComboFile[[#This Row],[2019/20 Preliminary outcome_Source]]*T_DataComboFile[[#This Row],[G&S reporting level indicator]]","v":0},{"$f":"T_DataComboFile[[#This Row],[2020/21 Original_Source]]*T_DataComboFile[[#This Row],[G&S reporting level indicator]]","v":0},{"$f":"T_DataComboFile[[#This Row],[2020/21 SAB_Source]]*T_DataComboFile[[#This Row],[G&S reporting level indicator]]","v":0},{"$f":"T_DataComboFile[[#This Row],[2020/21 Baseline_Source]]*T_DataComboFile[[#This Row],[G&S reporting level indicator]]","v":0},{"$f":"T_DataComboFile[[#This Row],[2021/22 Baseline_Source]]*T_DataComboFile[[#This Row],[G&S reporting level indicator]]","v":0},{"$f":"T_DataComboFile[[#This Row],[2022/23 Baseline_Source]]*T_DataComboFile[[#This Row],[G&S reporting level indicator]]","v":0},{"$f":"T_DataComboFile[[#This Row],[2023/24 Baseline_Source]]*T_DataComboFile[[#This Row],[G&S reporting level indicator]]","v":0},null,null,null,null,null,null,{"$f":"T_DataComboFile[[#This Row],[2021/22 Baseline]]+T_DataComboFile[[#This Row],[2021/22 Reduction]]+T_DataComboFile[[#This Row],[2021/22 Increase]]","v":0},{"$f":"T_DataComboFile[[#This Row],[2022/23 Baseline]]+T_DataComboFile[[#This Row],[2022/23 Reduction]]+T_DataComboFile[[#This Row],[2022/23 Increase]]","v":0},{"$f":"T_DataComboFile[[#This Row],[2023/24 Baseline]]+T_DataComboFile[[#This Row],[2023/24 Reduction]]+T_DataComboFile[[#This Row],[2023/24 Increase]]","v":0}]
[null,null,"2021_22","ENE2020",36,4,1,null,71084,36,4,1,null,"071084","36|04|01",3,4,18,63,67,"03|04|18|63|67","National","Small Business Development","Enterprise Development and Entrepreneurship","Enterprise and Supplier Development",null,"Payments for financial assets","Payments for financial assets","Payments for financial assets","Payments for financial assets","Payments for financial assets",null,null,null,0,0,0,0,0,0,0,0,0,0,0,0,0,0,null,{"$f":"IF(T_DataComboFile[[#This Row],[G&S reporting level indicator]]=1,$AX$16,\"Not applicable\")","v":"Level 3"},{"$f":"IF(AND($AX$16=\"Level 3\",T_DataComboFile[[#This Row],[Econ3]] = \"Goods and services\"),IF(T_DataComboFile[[#This Row],[Econ4]] = T_DataComboFile[[#This Row],[Econ3]],1,0),IF(AND($AX$16=\"Level 4\",T_DataComboFile[[#This Row],[Econ4]] = \"Goods and services\"),0,1))","v":1},{"$f":"T_DataComboFile[[#This Row],[2016/17_Source]]*T_DataComboFile[[#This Row],[G&S reporting level indicator]]","v":0},{"$f":"T_DataComboFile[[#This Row],[2017/18_Source]]*T_DataComboFile[[#This Row],[G&S reporting level indicator]]","v":0},{"$f":"T_DataComboFile[[#This Row],[2018/19_Source]]*T_DataComboFile[[#This Row],[G&S reporting level indicator]]","v":0},{"$f":"T_DataComboFile[[#This Row],[2019/20 Main appropriation_Source]]*T_DataComboFile[[#This Row],[G&S reporting level indicator]]","v":0},{"$f":"T_DataComboFile[[#This Row],[2019/20 Adjusted appropriation_Source]]*T_DataComboFile[[#This Row],[G&S reporting level indicator]]","v":0},{"$f":"T_DataComboFile[[#This Row],[2019/20 Revised estimate_Source]]*T_DataComboFile[[#This Row],[G&S reporting level indicator]]","v":0},{"$f":"T_DataComboFile[[#This Row],[2019/20 Preliminary outcome_Source]]*T_DataComboFile[[#This Row],[G&S reporting level indicator]]","v":0},{"$f":"T_DataComboFile[[#This Row],[2020/21 Original_Source]]*T_DataComboFile[[#This Row],[G&S reporting level indicator]]","v":0},{"$f":"T_DataComboFile[[#This Row],[2020/21 SAB_Source]]*T_DataComboFile[[#This Row],[G&S reporting level indicator]]","v":0},{"$f":"T_DataComboFile[[#This Row],[2020/21 Baseline_Source]]*T_DataComboFile[[#This Row],[G&S reporting level indicator]]","v":0},{"$f":"T_DataComboFile[[#This Row],[2021/22 Baseline_Source]]*T_DataComboFile[[#This Row],[G&S reporting level indicator]]","v":0},{"$f":"T_DataComboFile[[#This Row],[2022/23 Baseline_Source]]*T_DataComboFile[[#This Row],[G&S reporting level indicator]]","v":0},{"$f":"T_DataComboFile[[#This Row],[2023/24 Baseline_Source]]*T_DataComboFile[[#This Row],[G&S reporting level indicator]]","v":0},null,null,null,null,null,null,{"$f":"T_DataComboFile[[#This Row],[2021/22 Baseline]]+T_DataComboFile[[#This Row],[2021/22 Reduction]]+T_DataComboFile[[#This Row],[2021/22 Increase]]","v":0},{"$f":"T_DataComboFile[[#This Row],[2022/23 Baseline]]+T_DataComboFile[[#This Row],[2022/23 Reduction]]+T_DataComboFile[[#This Row],[2022/23 Increase]]","v":0},{"$f":"T_DataComboFile[[#This Row],[2023/24 Baseline]]+T_DataComboFile[[#This Row],[2023/24 Reduction]]+T_DataComboFile[[#This Row],[2023/24 Increase]]","v":0}]
["NAT|Non-transfer item","36|Salaries and wages","2021_22","ENE2020",36,4,2,17414,71085,36,4,2,17414,"071085","36|04|02",1,1,1,1,1,"01|01|01|01|01","National","Small Business Development","Enterprise Development and Entrepreneurship","SMMEs Programme Design and Support","Non-transfer item","Current","Current payments","Compensation of employees","Salaries and wages","Salaries and wages","Economic development","Industrialisation and exports","NAT",11818,10770,17289,19609,19475,19475,19475,19820,19820,18697,21465,20620,21529,1,null,{"$f":"IF(T_DataComboFile[[#This Row],[G&S reporting level indicator]]=1,$AX$16,\"Not applicable\")","v":"Level 3"},{"$f":"IF(AND($AX$16=\"Level 3\",T_DataComboFile[[#This Row],[Econ3]] = \"Goods and services\"),IF(T_DataComboFile[[#This Row],[Econ4]] = T_DataComboFile[[#This Row],[Econ3]],1,0),IF(AND($AX$16=\"Level 4\",T_DataComboFile[[#This Row],[Econ4]] = \"Goods and services\"),0,1))","v":1},{"$f":"T_DataComboFile[[#This Row],[2016/17_Source]]*T_DataComboFile[[#This Row],[G&S reporting level indicator]]","v":11818},{"$f":"T_DataComboFile[[#This Row],[2017/18_Source]]*T_DataComboFile[[#This Row],[G&S reporting level indicator]]","v":10770},{"$f":"T_DataComboFile[[#This Row],[2018/19_Source]]*T_DataComboFile[[#This Row],[G&S reporting level indicator]]","v":17289},{"$f":"T_DataComboFile[[#This Row],[2019/20 Main appropriation_Source]]*T_DataComboFile[[#This Row],[G&S reporting level indicator]]","v":19609},{"$f":"T_DataComboFile[[#This Row],[2019/20 Adjusted appropriation_Source]]*T_DataComboFile[[#This Row],[G&S reporting level indicator]]","v":19475},{"$f":"T_DataComboFile[[#This Row],[2019/20 Revised estimate_Source]]*T_DataComboFile[[#This Row],[G&S reporting level indicator]]","v":19475},{"$f":"T_DataComboFile[[#This Row],[2019/20 Preliminary outcome_Source]]*T_DataComboFile[[#This Row],[G&S reporting level indicator]]","v":19475},{"$f":"T_DataComboFile[[#This Row],[2020/21 Original_Source]]*T_DataComboFile[[#This Row],[G&S reporting level indicator]]","v":19820},{"$f":"T_DataComboFile[[#This Row],[2020/21 SAB_Source]]*T_DataComboFile[[#This Row],[G&S reporting level indicator]]","v":19820},{"$f":"T_DataComboFile[[#This Row],[2020/21 Baseline_Source]]*T_DataComboFile[[#This Row],[G&S reporting level indicator]]","v":18697},{"$f":"T_DataComboFile[[#This Row],[2021/22 Baseline_Source]]*T_DataComboFile[[#This Row],[G&S reporting level indicator]]","v":21465},{"$f":"T_DataComboFile[[#This Row],[2022/23 Baseline_Source]]*T_DataComboFile[[#This Row],[G&S reporting level indicator]]","v":20620},{"$f":"T_DataComboFile[[#This Row],[2023/24 Baseline_Source]]*T_DataComboFile[[#This Row],[G&S reporting level indicator]]","v":21529},null,null,null,null,null,null,{"$f":"T_DataComboFile[[#This Row],[2021/22 Baseline]]+T_DataComboFile[[#This Row],[2021/22 Reduction]]+T_DataComboFile[[#This Row],[2021/22 Increase]]","v":21465},{"$f":"T_DataComboFile[[#This Row],[2022/23 Baseline]]+T_DataComboFile[[#This Row],[2022/23 Reduction]]+T_DataComboFile[[#This Row],[2022/23 Increase]]","v":20620},{"$f":"T_DataComboFile[[#This Row],[2023/24 Baseline]]+T_DataComboFile[[#This Row],[2023/24 Reduction]]+T_DataComboFile[[#This Row],[2023/24 Increase]]","v":21529}]
["NAT|Non-transfer item","36|Social contributions","2021_22","ENE2020",36,4,2,17415,71086,36,4,2,17415,"071086","36|04|02",1,1,1,2,2,"01|01|01|02|02","National","Small Business Development","Enterprise Development and Entrepreneurship","SMMEs Programme Design and Support","Non-transfer item","Current","Current payments","Compensation of employees","Social contributions","Social contributions","Economic development","Industrialisation and exports","NAT",1863,1694,2597,2147,2267,2267,2267,3565,3565,3363,3407,3479,3633,1,null,{"$f":"IF(T_DataComboFile[[#This Row],[G&S reporting level indicator]]=1,$AX$16,\"Not applicable\")","v":"Level 3"},{"$f":"IF(AND($AX$16=\"Level 3\",T_DataComboFile[[#This Row],[Econ3]] = \"Goods and services\"),IF(T_DataComboFile[[#This Row],[Econ4]] = T_DataComboFile[[#This Row],[Econ3]],1,0),IF(AND($AX$16=\"Level 4\",T_DataComboFile[[#This Row],[Econ4]] = \"Goods and services\"),0,1))","v":1},{"$f":"T_DataComboFile[[#This Row],[2016/17_Source]]*T_DataComboFile[[#This Row],[G&S reporting level indicator]]","v":1863},{"$f":"T_DataComboFile[[#This Row],[2017/18_Source]]*T_DataComboFile[[#This Row],[G&S reporting level indicator]]","v":1694},{"$f":"T_DataComboFile[[#This Row],[2018/19_Source]]*T_DataComboFile[[#This Row],[G&S reporting level indicator]]","v":2597},{"$f":"T_DataComboFile[[#This Row],[2019/20 Main appropriation_Source]]*T_DataComboFile[[#This Row],[G&S reporting level indicator]]","v":2147},{"$f":"T_DataComboFile[[#This Row],[2019/20 Adjusted appropriation_Source]]*T_DataComboFile[[#This Row],[G&S reporting level indicator]]","v":2267},{"$f":"T_DataComboFile[[#This Row],[2019/20 Revised estimate_Source]]*T_DataComboFile[[#This Row],[G&S reporting level indicator]]","v":2267},{"$f":"T_DataComboFile[[#This Row],[2019/20 Preliminary outcome_Source]]*T_DataComboFile[[#This Row],[G&S reporting level indicator]]","v":2267},{"$f":"T_DataComboFile[[#This Row],[2020/21 Original_Source]]*T_DataComboFile[[#This Row],[G&S reporting level indicator]]","v":3565},{"$f":"T_DataComboFile[[#This Row],[2020/21 SAB_Source]]*T_DataComboFile[[#This Row],[G&S reporting level indicator]]","v":3565},{"$f":"T_DataComboFile[[#This Row],[2020/21 Baseline_Source]]*T_DataComboFile[[#This Row],[G&S reporting level indicator]]","v":3363},{"$f":"T_DataComboFile[[#This Row],[2021/22 Baseline_Source]]*T_DataComboFile[[#This Row],[G&S reporting level indicator]]","v":3407},{"$f":"T_DataComboFile[[#This Row],[2022/23 Baseline_Source]]*T_DataComboFile[[#This Row],[G&S reporting level indicator]]","v":3479},{"$f":"T_DataComboFile[[#This Row],[2023/24 Baseline_Source]]*T_DataComboFile[[#This Row],[G&S reporting level indicator]]","v":3633},null,null,null,null,null,null,{"$f":"T_DataComboFile[[#This Row],[2021/22 Baseline]]+T_DataComboFile[[#This Row],[2021/22 Reduction]]+T_DataComboFile[[#This Row],[2021/22 Increase]]","v":3407},{"$f":"T_DataComboFile[[#This Row],[2022/23 Baseline]]+T_DataComboFile[[#This Row],[2022/23 Reduction]]+T_DataComboFile[[#This Row],[2022/23 Increase]]","v":3479},{"$f":"T_DataComboFile[[#This Row],[2023/24 Baseline]]+T_DataComboFile[[#This Row],[2023/24 Reduction]]+T_DataComboFile[[#This Row],[2023/24 Increase]]","v":3633}]
[null,null,"2021_22","ENE2020",36,4,2,null,71087,36,4,2,null,"071087","36|04|02",1,1,2,2,2,"01|01|02|02|02","National","Small Business Development","Enterprise Development and Entrepreneurship","SMMEs Programme Design and Support","Non-transfer item","Current","Current payments","Goods and services","Goods and services","Goods and services","Economic development","Industrialisation and exports","NAT",1716,1424,3341,2933,2933,2933,2933,2808,1308,2808,2955,3107,3243,1,null,{"$f":"IF(T_DataComboFile[[#This Row],[G&S reporting level indicator]]=1,$AX$16,\"Not applicable\")","v":"Level 3"},{"$f":"IF(AND($AX$16=\"Level 3\",T_DataComboFile[[#This Row],[Econ3]] = \"Goods and services\"),IF(T_DataComboFile[[#This Row],[Econ4]] = T_DataComboFile[[#This Row],[Econ3]],1,0),IF(AND($AX$16=\"Level 4\",T_DataComboFile[[#This Row],[Econ4]] = \"Goods and services\"),0,1))","v":1},{"$f":"T_DataComboFile[[#This Row],[2016/17_Source]]*T_DataComboFile[[#This Row],[G&S reporting level indicator]]","v":1716},{"$f":"T_DataComboFile[[#This Row],[2017/18_Source]]*T_DataComboFile[[#This Row],[G&S reporting level indicator]]","v":1424},{"$f":"T_DataComboFile[[#This Row],[2018/19_Source]]*T_DataComboFile[[#This Row],[G&S reporting level indicator]]","v":3341},{"$f":"T_DataComboFile[[#This Row],[2019/20 Main appropriation_Source]]*T_DataComboFile[[#This Row],[G&S reporting level indicator]]","v":2933},{"$f":"T_DataComboFile[[#This Row],[2019/20 Adjusted appropriation_Source]]*T_DataComboFile[[#This Row],[G&S reporting level indicator]]","v":2933},{"$f":"T_DataComboFile[[#This Row],[2019/20 Revised estimate_Source]]*T_DataComboFile[[#This Row],[G&S reporting level indicator]]","v":2933},{"$f":"T_DataComboFile[[#This Row],[2019/20 Preliminary outcome_Source]]*T_DataComboFile[[#This Row],[G&S reporting level indicator]]","v":2933},{"$f":"T_DataComboFile[[#This Row],[2020/21 Original_Source]]*T_DataComboFile[[#This Row],[G&S reporting level indicator]]","v":2808},{"$f":"T_DataComboFile[[#This Row],[2020/21 SAB_Source]]*T_DataComboFile[[#This Row],[G&S reporting level indicator]]","v":1308},{"$f":"T_DataComboFile[[#This Row],[2020/21 Baseline_Source]]*T_DataComboFile[[#This Row],[G&S reporting level indicator]]","v":2808},{"$f":"T_DataComboFile[[#This Row],[2021/22 Baseline_Source]]*T_DataComboFile[[#This Row],[G&S reporting level indicator]]","v":2955},{"$f":"T_DataComboFile[[#This Row],[2022/23 Baseline_Source]]*T_DataComboFile[[#This Row],[G&S reporting level indicator]]","v":3107},{"$f":"T_DataComboFile[[#This Row],[2023/24 Baseline_Source]]*T_DataComboFile[[#This Row],[G&S reporting level indicator]]","v":3243},null,null,null,null,null,null,{"$f":"T_DataComboFile[[#This Row],[2021/22 Baseline]]+T_DataComboFile[[#This Row],[2021/22 Reduction]]+T_DataComboFile[[#This Row],[2021/22 Increase]]","v":2955},{"$f":"T_DataComboFile[[#This Row],[2022/23 Baseline]]+T_DataComboFile[[#This Row],[2022/23 Reduction]]+T_DataComboFile[[#This Row],[2022/23 Increase]]","v":3107},{"$f":"T_DataComboFile[[#This Row],[2023/24 Baseline]]+T_DataComboFile[[#This Row],[2023/24 Reduction]]+T_DataComboFile[[#This Row],[2023/24 Increase]]","v":3243}]
["NAT|Non-transfer item","36|Administrative fees","2021_22","ENE2020",36,4,2,17416,71088,36,4,2,17416,"071088","36|04|02",1,1,2,3,3,"01|01|02|03|03","National","Small Business Development","Enterprise Development and Entrepreneurship","SMMEs Programme Design and Support","Non-transfer item","Current","Current payments","Goods and services","Administrative fees","Administrative fees","Economic development","Industrialisation and exports","NAT",84,109,121,168,166,166,166,136,136,136,142,148,155,1,null,{"$f":"IF(T_DataComboFile[[#This Row],[G&S reporting level indicator]]=1,$AX$16,\"Not applicable\")","v":"Not applicable"},{"$f":"IF(AND($AX$16=\"Level 3\",T_DataComboFile[[#This Row],[Econ3]] = \"Goods and services\"),IF(T_DataComboFile[[#This Row],[Econ4]] = T_DataComboFile[[#This Row],[Econ3]],1,0),IF(AND($AX$16=\"Level 4\",T_DataComboFile[[#This Row],[Econ4]] = \"Goods and services\"),0,1))","v":0},{"$f":"T_DataComboFile[[#This Row],[2016/17_Source]]*T_DataComboFile[[#This Row],[G&S reporting level indicator]]","v":0},{"$f":"T_DataComboFile[[#This Row],[2017/18_Source]]*T_DataComboFile[[#This Row],[G&S reporting level indicator]]","v":0},{"$f":"T_DataComboFile[[#This Row],[2018/19_Source]]*T_DataComboFile[[#This Row],[G&S reporting level indicator]]","v":0},{"$f":"T_DataComboFile[[#This Row],[2019/20 Main appropriation_Source]]*T_DataComboFile[[#This Row],[G&S reporting level indicator]]","v":0},{"$f":"T_DataComboFile[[#This Row],[2019/20 Adjusted appropriation_Source]]*T_DataComboFile[[#This Row],[G&S reporting level indicator]]","v":0},{"$f":"T_DataComboFile[[#This Row],[2019/20 Revised estimate_Source]]*T_DataComboFile[[#This Row],[G&S reporting level indicator]]","v":0},{"$f":"T_DataComboFile[[#This Row],[2019/20 Preliminary outcome_Source]]*T_DataComboFile[[#This Row],[G&S reporting level indicator]]","v":0},{"$f":"T_DataComboFile[[#This Row],[2020/21 Original_Source]]*T_DataComboFile[[#This Row],[G&S reporting level indicator]]","v":0},{"$f":"T_DataComboFile[[#This Row],[2020/21 SAB_Source]]*T_DataComboFile[[#This Row],[G&S reporting level indicator]]","v":0},{"$f":"T_DataComboFile[[#This Row],[2020/21 Baseline_Source]]*T_DataComboFile[[#This Row],[G&S reporting level indicator]]","v":0},{"$f":"T_DataComboFile[[#This Row],[2021/22 Baseline_Source]]*T_DataComboFile[[#This Row],[G&S reporting level indicator]]","v":0},{"$f":"T_DataComboFile[[#This Row],[2022/23 Baseline_Source]]*T_DataComboFile[[#This Row],[G&S reporting level indicator]]","v":0},{"$f":"T_DataComboFile[[#This Row],[2023/24 Baseline_Source]]*T_DataComboFile[[#This Row],[G&S reporting level indicator]]","v":0},null,null,null,null,null,null,{"$f":"T_DataComboFile[[#This Row],[2021/22 Baseline]]+T_DataComboFile[[#This Row],[2021/22 Reduction]]+T_DataComboFile[[#This Row],[2021/22 Increase]]","v":0},{"$f":"T_DataComboFile[[#This Row],[2022/23 Baseline]]+T_DataComboFile[[#This Row],[2022/23 Reduction]]+T_DataComboFile[[#This Row],[2022/23 Increase]]","v":0},{"$f":"T_DataComboFile[[#This Row],[2023/24 Baseline]]+T_DataComboFile[[#This Row],[2023/24 Reduction]]+T_DataComboFile[[#This Row],[2023/24 Increase]]","v":0}]
[null,null,"2021_22","ENE2020",36,4,2,null,71089,36,4,2,null,"071089","36|04|02",1,1,2,4,4,"01|01|02|04|04","National","Small Business Development","Enterprise Development and Entrepreneurship","SMMEs Programme Design and Support",null,"Current","Current payments","Goods and services","Advertising","Advertising",null,null,null,0,0,0,0,0,0,0,0,0,0,0,0,0,0,null,{"$f":"IF(T_DataComboFile[[#This Row],[G&S reporting level indicator]]=1,$AX$16,\"Not applicable\")","v":"Not applicable"},{"$f":"IF(AND($AX$16=\"Level 3\",T_DataComboFile[[#This Row],[Econ3]] = \"Goods and services\"),IF(T_DataComboFile[[#This Row],[Econ4]] = T_DataComboFile[[#This Row],[Econ3]],1,0),IF(AND($AX$16=\"Level 4\",T_DataComboFile[[#This Row],[Econ4]] = \"Goods and services\"),0,1))","v":0},{"$f":"T_DataComboFile[[#This Row],[2016/17_Source]]*T_DataComboFile[[#This Row],[G&S reporting level indicator]]","v":0},{"$f":"T_DataComboFile[[#This Row],[2017/18_Source]]*T_DataComboFile[[#This Row],[G&S reporting level indicator]]","v":0},{"$f":"T_DataComboFile[[#This Row],[2018/19_Source]]*T_DataComboFile[[#This Row],[G&S reporting level indicator]]","v":0},{"$f":"T_DataComboFile[[#This Row],[2019/20 Main appropriation_Source]]*T_DataComboFile[[#This Row],[G&S reporting level indicator]]","v":0},{"$f":"T_DataComboFile[[#This Row],[2019/20 Adjusted appropriation_Source]]*T_DataComboFile[[#This Row],[G&S reporting level indicator]]","v":0},{"$f":"T_DataComboFile[[#This Row],[2019/20 Revised estimate_Source]]*T_DataComboFile[[#This Row],[G&S reporting level indicator]]","v":0},{"$f":"T_DataComboFile[[#This Row],[2019/20 Preliminary outcome_Source]]*T_DataComboFile[[#This Row],[G&S reporting level indicator]]","v":0},{"$f":"T_DataComboFile[[#This Row],[2020/21 Original_Source]]*T_DataComboFile[[#This Row],[G&S reporting level indicator]]","v":0},{"$f":"T_DataComboFile[[#This Row],[2020/21 SAB_Source]]*T_DataComboFile[[#This Row],[G&S reporting level indicator]]","v":0},{"$f":"T_DataComboFile[[#This Row],[2020/21 Baseline_Source]]*T_DataComboFile[[#This Row],[G&S reporting level indicator]]","v":0},{"$f":"T_DataComboFile[[#This Row],[2021/22 Baseline_Source]]*T_DataComboFile[[#This Row],[G&S reporting level indicator]]","v":0},{"$f":"T_DataComboFile[[#This Row],[2022/23 Baseline_Source]]*T_DataComboFile[[#This Row],[G&S reporting level indicator]]","v":0},{"$f":"T_DataComboFile[[#This Row],[2023/24 Baseline_Source]]*T_DataComboFile[[#This Row],[G&S reporting level indicator]]","v":0},null,null,null,null,null,null,{"$f":"T_DataComboFile[[#This Row],[2021/22 Baseline]]+T_DataComboFile[[#This Row],[2021/22 Reduction]]+T_DataComboFile[[#This Row],[2021/22 Increase]]","v":0},{"$f":"T_DataComboFile[[#This Row],[2022/23 Baseline]]+T_DataComboFile[[#This Row],[2022/23 Reduction]]+T_DataComboFile[[#This Row],[2022/23 Increase]]","v":0},{"$f":"T_DataComboFile[[#This Row],[2023/24 Baseline]]+T_DataComboFile[[#This Row],[2023/24 Reduction]]+T_DataComboFile[[#This Row],[2023/24 Increase]]","v":0}]
["NAT|Non-transfer item","36|Minor assets","2021_22","ENE2020",36,4,2,17417,71090,36,4,2,17417,"071090","36|04|02",1,1,2,5,5,"01|01|02|05|05","National","Small Business Development","Enterprise Development and Entrepreneurship","SMMEs Programme Design and Support","Non-transfer item","Current","Current payments","Goods and services","Minor assets","Minor assets","Economic development","Industrialisation and exports","NAT",0,0,4,0,0,0,0,0,0,0,0,0,0,1,null,{"$f":"IF(T_DataComboFile[[#This Row],[G&S reporting level indicator]]=1,$AX$16,\"Not applicable\")","v":"Not applicable"},{"$f":"IF(AND($AX$16=\"Level 3\",T_DataComboFile[[#This Row],[Econ3]] = \"Goods and services\"),IF(T_DataComboFile[[#This Row],[Econ4]] = T_DataComboFile[[#This Row],[Econ3]],1,0),IF(AND($AX$16=\"Level 4\",T_DataComboFile[[#This Row],[Econ4]] = \"Goods and services\"),0,1))","v":0},{"$f":"T_DataComboFile[[#This Row],[2016/17_Source]]*T_DataComboFile[[#This Row],[G&S reporting level indicator]]","v":0},{"$f":"T_DataComboFile[[#This Row],[2017/18_Source]]*T_DataComboFile[[#This Row],[G&S reporting level indicator]]","v":0},{"$f":"T_DataComboFile[[#This Row],[2018/19_Source]]*T_DataComboFile[[#This Row],[G&S reporting level indicator]]","v":0},{"$f":"T_DataComboFile[[#This Row],[2019/20 Main appropriation_Source]]*T_DataComboFile[[#This Row],[G&S reporting level indicator]]","v":0},{"$f":"T_DataComboFile[[#This Row],[2019/20 Adjusted appropriation_Source]]*T_DataComboFile[[#This Row],[G&S reporting level indicator]]","v":0},{"$f":"T_DataComboFile[[#This Row],[2019/20 Revised estimate_Source]]*T_DataComboFile[[#This Row],[G&S reporting level indicator]]","v":0},{"$f":"T_DataComboFile[[#This Row],[2019/20 Preliminary outcome_Source]]*T_DataComboFile[[#This Row],[G&S reporting level indicator]]","v":0},{"$f":"T_DataComboFile[[#This Row],[2020/21 Original_Source]]*T_DataComboFile[[#This Row],[G&S reporting level indicator]]","v":0},{"$f":"T_DataComboFile[[#This Row],[2020/21 SAB_Source]]*T_DataComboFile[[#This Row],[G&S reporting level indicator]]","v":0},{"$f":"T_DataComboFile[[#This Row],[2020/21 Baseline_Source]]*T_DataComboFile[[#This Row],[G&S reporting level indicator]]","v":0},{"$f":"T_DataComboFile[[#This Row],[2021/22 Baseline_Source]]*T_DataComboFile[[#This Row],[G&S reporting level indicator]]","v":0},{"$f":"T_DataComboFile[[#This Row],[2022/23 Baseline_Source]]*T_DataComboFile[[#This Row],[G&S reporting level indicator]]","v":0},{"$f":"T_DataComboFile[[#This Row],[2023/24 Baseline_Source]]*T_DataComboFile[[#This Row],[G&S reporting level indicator]]","v":0},null,null,null,null,null,null,{"$f":"T_DataComboFile[[#This Row],[2021/22 Baseline]]+T_DataComboFile[[#This Row],[2021/22 Reduction]]+T_DataComboFile[[#This Row],[2021/22 Increase]]","v":0},{"$f":"T_DataComboFile[[#This Row],[2022/23 Baseline]]+T_DataComboFile[[#This Row],[2022/23 Reduction]]+T_DataComboFile[[#This Row],[2022/23 Increase]]","v":0},{"$f":"T_DataComboFile[[#This Row],[2023/24 Baseline]]+T_DataComboFile[[#This Row],[2023/24 Reduction]]+T_DataComboFile[[#This Row],[2023/24 Increase]]","v":0}]
[null,null,"2021_22","ENE2020",36,4,2,null,71091,36,4,2,null,"071091","36|04|02",1,1,2,6,6,"01|01|02|06|06","National","Small Business Development","Enterprise Development and Entrepreneurship","SMMEs Programme Design and Support",null,"Current","Current payments","Goods and services","Audit costs: External","Audit costs: External",null,null,null,0,0,0,0,0,0,0,0,0,0,0,0,0,0,null,{"$f":"IF(T_DataComboFile[[#This Row],[G&S reporting level indicator]]=1,$AX$16,\"Not applicable\")","v":"Not applicable"},{"$f":"IF(AND($AX$16=\"Level 3\",T_DataComboFile[[#This Row],[Econ3]] = \"Goods and services\"),IF(T_DataComboFile[[#This Row],[Econ4]] = T_DataComboFile[[#This Row],[Econ3]],1,0),IF(AND($AX$16=\"Level 4\",T_DataComboFile[[#This Row],[Econ4]] = \"Goods and services\"),0,1))","v":0},{"$f":"T_DataComboFile[[#This Row],[2016/17_Source]]*T_DataComboFile[[#This Row],[G&S reporting level indicator]]","v":0},{"$f":"T_DataComboFile[[#This Row],[2017/18_Source]]*T_DataComboFile[[#This Row],[G&S reporting level indicator]]","v":0},{"$f":"T_DataComboFile[[#This Row],[2018/19_Source]]*T_DataComboFile[[#This Row],[G&S reporting level indicator]]","v":0},{"$f":"T_DataComboFile[[#This Row],[2019/20 Main appropriation_Source]]*T_DataComboFile[[#This Row],[G&S reporting level indicator]]","v":0},{"$f":"T_DataComboFile[[#This Row],[2019/20 Adjusted appropriation_Source]]*T_DataComboFile[[#This Row],[G&S reporting level indicator]]","v":0},{"$f":"T_DataComboFile[[#This Row],[2019/20 Revised estimate_Source]]*T_DataComboFile[[#This Row],[G&S reporting level indicator]]","v":0},{"$f":"T_DataComboFile[[#This Row],[2019/20 Preliminary outcome_Source]]*T_DataComboFile[[#This Row],[G&S reporting level indicator]]","v":0},{"$f":"T_DataComboFile[[#This Row],[2020/21 Original_Source]]*T_DataComboFile[[#This Row],[G&S reporting level indicator]]","v":0},{"$f":"T_DataComboFile[[#This Row],[2020/21 SAB_Source]]*T_DataComboFile[[#This Row],[G&S reporting level indicator]]","v":0},{"$f":"T_DataComboFile[[#This Row],[2020/21 Baseline_Source]]*T_DataComboFile[[#This Row],[G&S reporting level indicator]]","v":0},{"$f":"T_DataComboFile[[#This Row],[2021/22 Baseline_Source]]*T_DataComboFile[[#This Row],[G&S reporting level indicator]]","v":0},{"$f":"T_DataComboFile[[#This Row],[2022/23 Baseline_Source]]*T_DataComboFile[[#This Row],[G&S reporting level indicator]]","v":0},{"$f":"T_DataComboFile[[#This Row],[2023/24 Baseline_Source]]*T_DataComboFile[[#This Row],[G&S reporting level indicator]]","v":0},null,null,null,null,null,null,{"$f":"T_DataComboFile[[#This Row],[2021/22 Baseline]]+T_DataComboFile[[#This Row],[2021/22 Reduction]]+T_DataComboFile[[#This Row],[2021/22 Increase]]","v":0},{"$f":"T_DataComboFile[[#This Row],[2022/23 Baseline]]+T_DataComboFile[[#This Row],[2022/23 Reduction]]+T_DataComboFile[[#This Row],[2022/23 Increase]]","v":0},{"$f":"T_DataComboFile[[#This Row],[2023/24 Baseline]]+T_DataComboFile[[#This Row],[2023/24 Reduction]]+T_DataComboFile[[#This Row],[2023/24 Increase]]","v":0}]
[null,null,"2021_22","ENE2020",36,4,2,null,71092,36,4,2,null,"071092","36|04|02",1,1,2,7,7,"01|01|02|07|07","National","Small Business Development","Enterprise Development and Entrepreneurship","SMMEs Programme Design and Support",null,"Current","Current payments","Goods and services","Bursaries: Employees","Bursaries: Employees",null,null,null,0,0,0,0,0,0,0,0,0,0,0,0,0,0,null,{"$f":"IF(T_DataComboFile[[#This Row],[G&S reporting level indicator]]=1,$AX$16,\"Not applicable\")","v":"Not applicable"},{"$f":"IF(AND($AX$16=\"Level 3\",T_DataComboFile[[#This Row],[Econ3]] = \"Goods and services\"),IF(T_DataComboFile[[#This Row],[Econ4]] = T_DataComboFile[[#This Row],[Econ3]],1,0),IF(AND($AX$16=\"Level 4\",T_DataComboFile[[#This Row],[Econ4]] = \"Goods and services\"),0,1))","v":0},{"$f":"T_DataComboFile[[#This Row],[2016/17_Source]]*T_DataComboFile[[#This Row],[G&S reporting level indicator]]","v":0},{"$f":"T_DataComboFile[[#This Row],[2017/18_Source]]*T_DataComboFile[[#This Row],[G&S reporting level indicator]]","v":0},{"$f":"T_DataComboFile[[#This Row],[2018/19_Source]]*T_DataComboFile[[#This Row],[G&S reporting level indicator]]","v":0},{"$f":"T_DataComboFile[[#This Row],[2019/20 Main appropriation_Source]]*T_DataComboFile[[#This Row],[G&S reporting level indicator]]","v":0},{"$f":"T_DataComboFile[[#This Row],[2019/20 Adjusted appropriation_Source]]*T_DataComboFile[[#This Row],[G&S reporting level indicator]]","v":0},{"$f":"T_DataComboFile[[#This Row],[2019/20 Revised estimate_Source]]*T_DataComboFile[[#This Row],[G&S reporting level indicator]]","v":0},{"$f":"T_DataComboFile[[#This Row],[2019/20 Preliminary outcome_Source]]*T_DataComboFile[[#This Row],[G&S reporting level indicator]]","v":0},{"$f":"T_DataComboFile[[#This Row],[2020/21 Original_Source]]*T_DataComboFile[[#This Row],[G&S reporting level indicator]]","v":0},{"$f":"T_DataComboFile[[#This Row],[2020/21 SAB_Source]]*T_DataComboFile[[#This Row],[G&S reporting level indicator]]","v":0},{"$f":"T_DataComboFile[[#This Row],[2020/21 Baseline_Source]]*T_DataComboFile[[#This Row],[G&S reporting level indicator]]","v":0},{"$f":"T_DataComboFile[[#This Row],[2021/22 Baseline_Source]]*T_DataComboFile[[#This Row],[G&S reporting level indicator]]","v":0},{"$f":"T_DataComboFile[[#This Row],[2022/23 Baseline_Source]]*T_DataComboFile[[#This Row],[G&S reporting level indicator]]","v":0},{"$f":"T_DataComboFile[[#This Row],[2023/24 Baseline_Source]]*T_DataComboFile[[#This Row],[G&S reporting level indicator]]","v":0},null,null,null,null,null,null,{"$f":"T_DataComboFile[[#This Row],[2021/22 Baseline]]+T_DataComboFile[[#This Row],[2021/22 Reduction]]+T_DataComboFile[[#This Row],[2021/22 Increase]]","v":0},{"$f":"T_DataComboFile[[#This Row],[2022/23 Baseline]]+T_DataComboFile[[#This Row],[2022/23 Reduction]]+T_DataComboFile[[#This Row],[2022/23 Increase]]","v":0},{"$f":"T_DataComboFile[[#This Row],[2023/24 Baseline]]+T_DataComboFile[[#This Row],[2023/24 Reduction]]+T_DataComboFile[[#This Row],[2023/24 Increase]]","v":0}]
["NAT|Non-transfer item","36|Catering: Departmental activities","2021_22","ENE2020",36,4,2,17418,71093,36,4,2,17418,"071093","36|04|02",1,1,2,8,8,"01|01|02|08|08","National","Small Business Development","Enterprise Development and Entrepreneurship","SMMEs Programme Design and Support","Non-transfer item","Current","Current payments","Goods and services","Catering: Departmental activities","Catering: Departmental activities","Economic development","Industrialisation and exports","NAT",18,21,549,668,668,668,668,384,384,384,466,508,530,1,null,{"$f":"IF(T_DataComboFile[[#This Row],[G&S reporting level indicator]]=1,$AX$16,\"Not applicable\")","v":"Not applicable"},{"$f":"IF(AND($AX$16=\"Level 3\",T_DataComboFile[[#This Row],[Econ3]] = \"Goods and services\"),IF(T_DataComboFile[[#This Row],[Econ4]] = T_DataComboFile[[#This Row],[Econ3]],1,0),IF(AND($AX$16=\"Level 4\",T_DataComboFile[[#This Row],[Econ4]] = \"Goods and services\"),0,1))","v":0},{"$f":"T_DataComboFile[[#This Row],[2016/17_Source]]*T_DataComboFile[[#This Row],[G&S reporting level indicator]]","v":0},{"$f":"T_DataComboFile[[#This Row],[2017/18_Source]]*T_DataComboFile[[#This Row],[G&S reporting level indicator]]","v":0},{"$f":"T_DataComboFile[[#This Row],[2018/19_Source]]*T_DataComboFile[[#This Row],[G&S reporting level indicator]]","v":0},{"$f":"T_DataComboFile[[#This Row],[2019/20 Main appropriation_Source]]*T_DataComboFile[[#This Row],[G&S reporting level indicator]]","v":0},{"$f":"T_DataComboFile[[#This Row],[2019/20 Adjusted appropriation_Source]]*T_DataComboFile[[#This Row],[G&S reporting level indicator]]","v":0},{"$f":"T_DataComboFile[[#This Row],[2019/20 Revised estimate_Source]]*T_DataComboFile[[#This Row],[G&S reporting level indicator]]","v":0},{"$f":"T_DataComboFile[[#This Row],[2019/20 Preliminary outcome_Source]]*T_DataComboFile[[#This Row],[G&S reporting level indicator]]","v":0},{"$f":"T_DataComboFile[[#This Row],[2020/21 Original_Source]]*T_DataComboFile[[#This Row],[G&S reporting level indicator]]","v":0},{"$f":"T_DataComboFile[[#This Row],[2020/21 SAB_Source]]*T_DataComboFile[[#This Row],[G&S reporting level indicator]]","v":0},{"$f":"T_DataComboFile[[#This Row],[2020/21 Baseline_Source]]*T_DataComboFile[[#This Row],[G&S reporting level indicator]]","v":0},{"$f":"T_DataComboFile[[#This Row],[2021/22 Baseline_Source]]*T_DataComboFile[[#This Row],[G&S reporting level indicator]]","v":0},{"$f":"T_DataComboFile[[#This Row],[2022/23 Baseline_Source]]*T_DataComboFile[[#This Row],[G&S reporting level indicator]]","v":0},{"$f":"T_DataComboFile[[#This Row],[2023/24 Baseline_Source]]*T_DataComboFile[[#This Row],[G&S reporting level indicator]]","v":0},null,null,null,null,null,null,{"$f":"T_DataComboFile[[#This Row],[2021/22 Baseline]]+T_DataComboFile[[#This Row],[2021/22 Reduction]]+T_DataComboFile[[#This Row],[2021/22 Increase]]","v":0},{"$f":"T_DataComboFile[[#This Row],[2022/23 Baseline]]+T_DataComboFile[[#This Row],[2022/23 Reduction]]+T_DataComboFile[[#This Row],[2022/23 Increase]]","v":0},{"$f":"T_DataComboFile[[#This Row],[2023/24 Baseline]]+T_DataComboFile[[#This Row],[2023/24 Reduction]]+T_DataComboFile[[#This Row],[2023/24 Increase]]","v":0}]
["NAT|Non-transfer item","36|Communication (G&S)","2021_22","ENE2020",36,4,2,17419,71094,36,4,2,17419,"071094","36|04|02",1,1,2,9,9,"01|01|02|09|09","National","Small Business Development","Enterprise Development and Entrepreneurship","SMMEs Programme Design and Support","Non-transfer item","Current","Current payments","Goods and services","Communication (G&S)","Communication (G&S)","Economic development","Industrialisation and exports","NAT",15,16,84,39,39,39,39,68,68,68,74,79,82,1,null,{"$f":"IF(T_DataComboFile[[#This Row],[G&S reporting level indicator]]=1,$AX$16,\"Not applicable\")","v":"Not applicable"},{"$f":"IF(AND($AX$16=\"Level 3\",T_DataComboFile[[#This Row],[Econ3]] = \"Goods and services\"),IF(T_DataComboFile[[#This Row],[Econ4]] = T_DataComboFile[[#This Row],[Econ3]],1,0),IF(AND($AX$16=\"Level 4\",T_DataComboFile[[#This Row],[Econ4]] = \"Goods and services\"),0,1))","v":0},{"$f":"T_DataComboFile[[#This Row],[2016/17_Source]]*T_DataComboFile[[#This Row],[G&S reporting level indicator]]","v":0},{"$f":"T_DataComboFile[[#This Row],[2017/18_Source]]*T_DataComboFile[[#This Row],[G&S reporting level indicator]]","v":0},{"$f":"T_DataComboFile[[#This Row],[2018/19_Source]]*T_DataComboFile[[#This Row],[G&S reporting level indicator]]","v":0},{"$f":"T_DataComboFile[[#This Row],[2019/20 Main appropriation_Source]]*T_DataComboFile[[#This Row],[G&S reporting level indicator]]","v":0},{"$f":"T_DataComboFile[[#This Row],[2019/20 Adjusted appropriation_Source]]*T_DataComboFile[[#This Row],[G&S reporting level indicator]]","v":0},{"$f":"T_DataComboFile[[#This Row],[2019/20 Revised estimate_Source]]*T_DataComboFile[[#This Row],[G&S reporting level indicator]]","v":0},{"$f":"T_DataComboFile[[#This Row],[2019/20 Preliminary outcome_Source]]*T_DataComboFile[[#This Row],[G&S reporting level indicator]]","v":0},{"$f":"T_DataComboFile[[#This Row],[2020/21 Original_Source]]*T_DataComboFile[[#This Row],[G&S reporting level indicator]]","v":0},{"$f":"T_DataComboFile[[#This Row],[2020/21 SAB_Source]]*T_DataComboFile[[#This Row],[G&S reporting level indicator]]","v":0},{"$f":"T_DataComboFile[[#This Row],[2020/21 Baseline_Source]]*T_DataComboFile[[#This Row],[G&S reporting level indicator]]","v":0},{"$f":"T_DataComboFile[[#This Row],[2021/22 Baseline_Source]]*T_DataComboFile[[#This Row],[G&S reporting level indicator]]","v":0},{"$f":"T_DataComboFile[[#This Row],[2022/23 Baseline_Source]]*T_DataComboFile[[#This Row],[G&S reporting level indicator]]","v":0},{"$f":"T_DataComboFile[[#This Row],[2023/24 Baseline_Source]]*T_DataComboFile[[#This Row],[G&S reporting level indicator]]","v":0},null,null,null,null,null,null,{"$f":"T_DataComboFile[[#This Row],[2021/22 Baseline]]+T_DataComboFile[[#This Row],[2021/22 Reduction]]+T_DataComboFile[[#This Row],[2021/22 Increase]]","v":0},{"$f":"T_DataComboFile[[#This Row],[2022/23 Baseline]]+T_DataComboFile[[#This Row],[2022/23 Reduction]]+T_DataComboFile[[#This Row],[2022/23 Increase]]","v":0},{"$f":"T_DataComboFile[[#This Row],[2023/24 Baseline]]+T_DataComboFile[[#This Row],[2023/24 Reduction]]+T_DataComboFile[[#This Row],[2023/24 Increase]]","v":0}]
["NAT|Non-transfer item","36|Computer services","2021_22","ENE2020",36,4,2,17420,71095,36,4,2,17420,"071095","36|04|02",1,1,2,10,10,"01|01|02|10|10","National","Small Business Development","Enterprise Development and Entrepreneurship","SMMEs Programme Design and Support","Non-transfer item","Current","Current payments","Goods and services","Computer services","Computer services","Economic development","Industrialisation and exports","NAT",0,0,46,0,0,0,0,0,0,0,0,0,0,1,null,{"$f":"IF(T_DataComboFile[[#This Row],[G&S reporting level indicator]]=1,$AX$16,\"Not applicable\")","v":"Not applicable"},{"$f":"IF(AND($AX$16=\"Level 3\",T_DataComboFile[[#This Row],[Econ3]] = \"Goods and services\"),IF(T_DataComboFile[[#This Row],[Econ4]] = T_DataComboFile[[#This Row],[Econ3]],1,0),IF(AND($AX$16=\"Level 4\",T_DataComboFile[[#This Row],[Econ4]] = \"Goods and services\"),0,1))","v":0},{"$f":"T_DataComboFile[[#This Row],[2016/17_Source]]*T_DataComboFile[[#This Row],[G&S reporting level indicator]]","v":0},{"$f":"T_DataComboFile[[#This Row],[2017/18_Source]]*T_DataComboFile[[#This Row],[G&S reporting level indicator]]","v":0},{"$f":"T_DataComboFile[[#This Row],[2018/19_Source]]*T_DataComboFile[[#This Row],[G&S reporting level indicator]]","v":0},{"$f":"T_DataComboFile[[#This Row],[2019/20 Main appropriation_Source]]*T_DataComboFile[[#This Row],[G&S reporting level indicator]]","v":0},{"$f":"T_DataComboFile[[#This Row],[2019/20 Adjusted appropriation_Source]]*T_DataComboFile[[#This Row],[G&S reporting level indicator]]","v":0},{"$f":"T_DataComboFile[[#This Row],[2019/20 Revised estimate_Source]]*T_DataComboFile[[#This Row],[G&S reporting level indicator]]","v":0},{"$f":"T_DataComboFile[[#This Row],[2019/20 Preliminary outcome_Source]]*T_DataComboFile[[#This Row],[G&S reporting level indicator]]","v":0},{"$f":"T_DataComboFile[[#This Row],[2020/21 Original_Source]]*T_DataComboFile[[#This Row],[G&S reporting level indicator]]","v":0},{"$f":"T_DataComboFile[[#This Row],[2020/21 SAB_Source]]*T_DataComboFile[[#This Row],[G&S reporting level indicator]]","v":0},{"$f":"T_DataComboFile[[#This Row],[2020/21 Baseline_Source]]*T_DataComboFile[[#This Row],[G&S reporting level indicator]]","v":0},{"$f":"T_DataComboFile[[#This Row],[2021/22 Baseline_Source]]*T_DataComboFile[[#This Row],[G&S reporting level indicator]]","v":0},{"$f":"T_DataComboFile[[#This Row],[2022/23 Baseline_Source]]*T_DataComboFile[[#This Row],[G&S reporting level indicator]]","v":0},{"$f":"T_DataComboFile[[#This Row],[2023/24 Baseline_Source]]*T_DataComboFile[[#This Row],[G&S reporting level indicator]]","v":0},null,null,null,null,null,null,{"$f":"T_DataComboFile[[#This Row],[2021/22 Baseline]]+T_DataComboFile[[#This Row],[2021/22 Reduction]]+T_DataComboFile[[#This Row],[2021/22 Increase]]","v":0},{"$f":"T_DataComboFile[[#This Row],[2022/23 Baseline]]+T_DataComboFile[[#This Row],[2022/23 Reduction]]+T_DataComboFile[[#This Row],[2022/23 Increase]]","v":0},{"$f":"T_DataComboFile[[#This Row],[2023/24 Baseline]]+T_DataComboFile[[#This Row],[2023/24 Reduction]]+T_DataComboFile[[#This Row],[2023/24 Increase]]","v":0}]
["NAT|Non-transfer item","36|Consultants: Business and advisory services","2021_22","ENE2020",36,4,2,17421,71096,36,4,2,17421,"071096","36|04|02",1,1,2,11,11,"01|01|02|11|11","National","Small Business Development","Enterprise Development and Entrepreneurship","SMMEs Programme Design and Support","Non-transfer item","Current","Current payments","Goods and services","Consultants: Business and advisory services","Consultants: Business and advisory services","Economic development","Industrialisation and exports","NAT",0,0,85,0,0,0,0,0,0,0,0,0,0,1,null,{"$f":"IF(T_DataComboFile[[#This Row],[G&S reporting level indicator]]=1,$AX$16,\"Not applicable\")","v":"Not applicable"},{"$f":"IF(AND($AX$16=\"Level 3\",T_DataComboFile[[#This Row],[Econ3]] = \"Goods and services\"),IF(T_DataComboFile[[#This Row],[Econ4]] = T_DataComboFile[[#This Row],[Econ3]],1,0),IF(AND($AX$16=\"Level 4\",T_DataComboFile[[#This Row],[Econ4]] = \"Goods and services\"),0,1))","v":0},{"$f":"T_DataComboFile[[#This Row],[2016/17_Source]]*T_DataComboFile[[#This Row],[G&S reporting level indicator]]","v":0},{"$f":"T_DataComboFile[[#This Row],[2017/18_Source]]*T_DataComboFile[[#This Row],[G&S reporting level indicator]]","v":0},{"$f":"T_DataComboFile[[#This Row],[2018/19_Source]]*T_DataComboFile[[#This Row],[G&S reporting level indicator]]","v":0},{"$f":"T_DataComboFile[[#This Row],[2019/20 Main appropriation_Source]]*T_DataComboFile[[#This Row],[G&S reporting level indicator]]","v":0},{"$f":"T_DataComboFile[[#This Row],[2019/20 Adjusted appropriation_Source]]*T_DataComboFile[[#This Row],[G&S reporting level indicator]]","v":0},{"$f":"T_DataComboFile[[#This Row],[2019/20 Revised estimate_Source]]*T_DataComboFile[[#This Row],[G&S reporting level indicator]]","v":0},{"$f":"T_DataComboFile[[#This Row],[2019/20 Preliminary outcome_Source]]*T_DataComboFile[[#This Row],[G&S reporting level indicator]]","v":0},{"$f":"T_DataComboFile[[#This Row],[2020/21 Original_Source]]*T_DataComboFile[[#This Row],[G&S reporting level indicator]]","v":0},{"$f":"T_DataComboFile[[#This Row],[2020/21 SAB_Source]]*T_DataComboFile[[#This Row],[G&S reporting level indicator]]","v":0},{"$f":"T_DataComboFile[[#This Row],[2020/21 Baseline_Source]]*T_DataComboFile[[#This Row],[G&S reporting level indicator]]","v":0},{"$f":"T_DataComboFile[[#This Row],[2021/22 Baseline_Source]]*T_DataComboFile[[#This Row],[G&S reporting level indicator]]","v":0},{"$f":"T_DataComboFile[[#This Row],[2022/23 Baseline_Source]]*T_DataComboFile[[#This Row],[G&S reporting level indicator]]","v":0},{"$f":"T_DataComboFile[[#This Row],[2023/24 Baseline_Source]]*T_DataComboFile[[#This Row],[G&S reporting level indicator]]","v":0},null,null,null,null,null,null,{"$f":"T_DataComboFile[[#This Row],[2021/22 Baseline]]+T_DataComboFile[[#This Row],[2021/22 Reduction]]+T_DataComboFile[[#This Row],[2021/22 Increase]]","v":0},{"$f":"T_DataComboFile[[#This Row],[2022/23 Baseline]]+T_DataComboFile[[#This Row],[2022/23 Reduction]]+T_DataComboFile[[#This Row],[2022/23 Increase]]","v":0},{"$f":"T_DataComboFile[[#This Row],[2023/24 Baseline]]+T_DataComboFile[[#This Row],[2023/24 Reduction]]+T_DataComboFile[[#This Row],[2023/24 Increase]]","v":0}]
[null,null,"2021_22","ENE2020",36,4,2,null,71097,36,4,2,null,"071097","36|04|02",1,1,2,12,12,"01|01|02|12|12","National","Small Business Development","Enterprise Development and Entrepreneurship","SMMEs Programme Design and Support",null,"Current","Current payments","Goods and services","Infrastructure and planning services","Infrastructure and planning services",null,null,null,0,0,0,0,0,0,0,0,0,0,0,0,0,0,null,{"$f":"IF(T_DataComboFile[[#This Row],[G&S reporting level indicator]]=1,$AX$16,\"Not applicable\")","v":"Not applicable"},{"$f":"IF(AND($AX$16=\"Level 3\",T_DataComboFile[[#This Row],[Econ3]] = \"Goods and services\"),IF(T_DataComboFile[[#This Row],[Econ4]] = T_DataComboFile[[#This Row],[Econ3]],1,0),IF(AND($AX$16=\"Level 4\",T_DataComboFile[[#This Row],[Econ4]] = \"Goods and services\"),0,1))","v":0},{"$f":"T_DataComboFile[[#This Row],[2016/17_Source]]*T_DataComboFile[[#This Row],[G&S reporting level indicator]]","v":0},{"$f":"T_DataComboFile[[#This Row],[2017/18_Source]]*T_DataComboFile[[#This Row],[G&S reporting level indicator]]","v":0},{"$f":"T_DataComboFile[[#This Row],[2018/19_Source]]*T_DataComboFile[[#This Row],[G&S reporting level indicator]]","v":0},{"$f":"T_DataComboFile[[#This Row],[2019/20 Main appropriation_Source]]*T_DataComboFile[[#This Row],[G&S reporting level indicator]]","v":0},{"$f":"T_DataComboFile[[#This Row],[2019/20 Adjusted appropriation_Source]]*T_DataComboFile[[#This Row],[G&S reporting level indicator]]","v":0},{"$f":"T_DataComboFile[[#This Row],[2019/20 Revised estimate_Source]]*T_DataComboFile[[#This Row],[G&S reporting level indicator]]","v":0},{"$f":"T_DataComboFile[[#This Row],[2019/20 Preliminary outcome_Source]]*T_DataComboFile[[#This Row],[G&S reporting level indicator]]","v":0},{"$f":"T_DataComboFile[[#This Row],[2020/21 Original_Source]]*T_DataComboFile[[#This Row],[G&S reporting level indicator]]","v":0},{"$f":"T_DataComboFile[[#This Row],[2020/21 SAB_Source]]*T_DataComboFile[[#This Row],[G&S reporting level indicator]]","v":0},{"$f":"T_DataComboFile[[#This Row],[2020/21 Baseline_Source]]*T_DataComboFile[[#This Row],[G&S reporting level indicator]]","v":0},{"$f":"T_DataComboFile[[#This Row],[2021/22 Baseline_Source]]*T_DataComboFile[[#This Row],[G&S reporting level indicator]]","v":0},{"$f":"T_DataComboFile[[#This Row],[2022/23 Baseline_Source]]*T_DataComboFile[[#This Row],[G&S reporting level indicator]]","v":0},{"$f":"T_DataComboFile[[#This Row],[2023/24 Baseline_Source]]*T_DataComboFile[[#This Row],[G&S reporting level indicator]]","v":0},null,null,null,null,null,null,{"$f":"T_DataComboFile[[#This Row],[2021/22 Baseline]]+T_DataComboFile[[#This Row],[2021/22 Reduction]]+T_DataComboFile[[#This Row],[2021/22 Increase]]","v":0},{"$f":"T_DataComboFile[[#This Row],[2022/23 Baseline]]+T_DataComboFile[[#This Row],[2022/23 Reduction]]+T_DataComboFile[[#This Row],[2022/23 Increase]]","v":0},{"$f":"T_DataComboFile[[#This Row],[2023/24 Baseline]]+T_DataComboFile[[#This Row],[2023/24 Reduction]]+T_DataComboFile[[#This Row],[2023/24 Increase]]","v":0}]
[null,null,"2021_22","ENE2020",36,4,2,null,71098,36,4,2,null,"071098","36|04|02",1,1,2,13,13,"01|01|02|13|13","National","Small Business Development","Enterprise Development and Entrepreneurship","SMMEs Programme Design and Support",null,"Current","Current payments","Goods and services","Laboratory services","Laboratory services",null,null,null,0,0,0,0,0,0,0,0,0,0,0,0,0,0,null,{"$f":"IF(T_DataComboFile[[#This Row],[G&S reporting level indicator]]=1,$AX$16,\"Not applicable\")","v":"Not applicable"},{"$f":"IF(AND($AX$16=\"Level 3\",T_DataComboFile[[#This Row],[Econ3]] = \"Goods and services\"),IF(T_DataComboFile[[#This Row],[Econ4]] = T_DataComboFile[[#This Row],[Econ3]],1,0),IF(AND($AX$16=\"Level 4\",T_DataComboFile[[#This Row],[Econ4]] = \"Goods and services\"),0,1))","v":0},{"$f":"T_DataComboFile[[#This Row],[2016/17_Source]]*T_DataComboFile[[#This Row],[G&S reporting level indicator]]","v":0},{"$f":"T_DataComboFile[[#This Row],[2017/18_Source]]*T_DataComboFile[[#This Row],[G&S reporting level indicator]]","v":0},{"$f":"T_DataComboFile[[#This Row],[2018/19_Source]]*T_DataComboFile[[#This Row],[G&S reporting level indicator]]","v":0},{"$f":"T_DataComboFile[[#This Row],[2019/20 Main appropriation_Source]]*T_DataComboFile[[#This Row],[G&S reporting level indicator]]","v":0},{"$f":"T_DataComboFile[[#This Row],[2019/20 Adjusted appropriation_Source]]*T_DataComboFile[[#This Row],[G&S reporting level indicator]]","v":0},{"$f":"T_DataComboFile[[#This Row],[2019/20 Revised estimate_Source]]*T_DataComboFile[[#This Row],[G&S reporting level indicator]]","v":0},{"$f":"T_DataComboFile[[#This Row],[2019/20 Preliminary outcome_Source]]*T_DataComboFile[[#This Row],[G&S reporting level indicator]]","v":0},{"$f":"T_DataComboFile[[#This Row],[2020/21 Original_Source]]*T_DataComboFile[[#This Row],[G&S reporting level indicator]]","v":0},{"$f":"T_DataComboFile[[#This Row],[2020/21 SAB_Source]]*T_DataComboFile[[#This Row],[G&S reporting level indicator]]","v":0},{"$f":"T_DataComboFile[[#This Row],[2020/21 Baseline_Source]]*T_DataComboFile[[#This Row],[G&S reporting level indicator]]","v":0},{"$f":"T_DataComboFile[[#This Row],[2021/22 Baseline_Source]]*T_DataComboFile[[#This Row],[G&S reporting level indicator]]","v":0},{"$f":"T_DataComboFile[[#This Row],[2022/23 Baseline_Source]]*T_DataComboFile[[#This Row],[G&S reporting level indicator]]","v":0},{"$f":"T_DataComboFile[[#This Row],[2023/24 Baseline_Source]]*T_DataComboFile[[#This Row],[G&S reporting level indicator]]","v":0},null,null,null,null,null,null,{"$f":"T_DataComboFile[[#This Row],[2021/22 Baseline]]+T_DataComboFile[[#This Row],[2021/22 Reduction]]+T_DataComboFile[[#This Row],[2021/22 Increase]]","v":0},{"$f":"T_DataComboFile[[#This Row],[2022/23 Baseline]]+T_DataComboFile[[#This Row],[2022/23 Reduction]]+T_DataComboFile[[#This Row],[2022/23 Increase]]","v":0},{"$f":"T_DataComboFile[[#This Row],[2023/24 Baseline]]+T_DataComboFile[[#This Row],[2023/24 Reduction]]+T_DataComboFile[[#This Row],[2023/24 Increase]]","v":0}]
[null,null,"2021_22","ENE2020",36,4,2,null,71099,36,4,2,null,"071099","36|04|02",1,1,2,14,14,"01|01|02|14|14","National","Small Business Development","Enterprise Development and Entrepreneurship","SMMEs Programme Design and Support",null,"Current","Current payments","Goods and services","Legal services (G&S)","Legal services (G&S)",null,null,null,0,0,0,0,0,0,0,0,0,0,0,0,0,0,null,{"$f":"IF(T_DataComboFile[[#This Row],[G&S reporting level indicator]]=1,$AX$16,\"Not applicable\")","v":"Not applicable"},{"$f":"IF(AND($AX$16=\"Level 3\",T_DataComboFile[[#This Row],[Econ3]] = \"Goods and services\"),IF(T_DataComboFile[[#This Row],[Econ4]] = T_DataComboFile[[#This Row],[Econ3]],1,0),IF(AND($AX$16=\"Level 4\",T_DataComboFile[[#This Row],[Econ4]] = \"Goods and services\"),0,1))","v":0},{"$f":"T_DataComboFile[[#This Row],[2016/17_Source]]*T_DataComboFile[[#This Row],[G&S reporting level indicator]]","v":0},{"$f":"T_DataComboFile[[#This Row],[2017/18_Source]]*T_DataComboFile[[#This Row],[G&S reporting level indicator]]","v":0},{"$f":"T_DataComboFile[[#This Row],[2018/19_Source]]*T_DataComboFile[[#This Row],[G&S reporting level indicator]]","v":0},{"$f":"T_DataComboFile[[#This Row],[2019/20 Main appropriation_Source]]*T_DataComboFile[[#This Row],[G&S reporting level indicator]]","v":0},{"$f":"T_DataComboFile[[#This Row],[2019/20 Adjusted appropriation_Source]]*T_DataComboFile[[#This Row],[G&S reporting level indicator]]","v":0},{"$f":"T_DataComboFile[[#This Row],[2019/20 Revised estimate_Source]]*T_DataComboFile[[#This Row],[G&S reporting level indicator]]","v":0},{"$f":"T_DataComboFile[[#This Row],[2019/20 Preliminary outcome_Source]]*T_DataComboFile[[#This Row],[G&S reporting level indicator]]","v":0},{"$f":"T_DataComboFile[[#This Row],[2020/21 Original_Source]]*T_DataComboFile[[#This Row],[G&S reporting level indicator]]","v":0},{"$f":"T_DataComboFile[[#This Row],[2020/21 SAB_Source]]*T_DataComboFile[[#This Row],[G&S reporting level indicator]]","v":0},{"$f":"T_DataComboFile[[#This Row],[2020/21 Baseline_Source]]*T_DataComboFile[[#This Row],[G&S reporting level indicator]]","v":0},{"$f":"T_DataComboFile[[#This Row],[2021/22 Baseline_Source]]*T_DataComboFile[[#This Row],[G&S reporting level indicator]]","v":0},{"$f":"T_DataComboFile[[#This Row],[2022/23 Baseline_Source]]*T_DataComboFile[[#This Row],[G&S reporting level indicator]]","v":0},{"$f":"T_DataComboFile[[#This Row],[2023/24 Baseline_Source]]*T_DataComboFile[[#This Row],[G&S reporting level indicator]]","v":0},null,null,null,null,null,null,{"$f":"T_DataComboFile[[#This Row],[2021/22 Baseline]]+T_DataComboFile[[#This Row],[2021/22 Reduction]]+T_DataComboFile[[#This Row],[2021/22 Increase]]","v":0},{"$f":"T_DataComboFile[[#This Row],[2022/23 Baseline]]+T_DataComboFile[[#This Row],[2022/23 Reduction]]+T_DataComboFile[[#This Row],[2022/23 Increase]]","v":0},{"$f":"T_DataComboFile[[#This Row],[2023/24 Baseline]]+T_DataComboFile[[#This Row],[2023/24 Reduction]]+T_DataComboFile[[#This Row],[2023/24 Increase]]","v":0}]
[null,null,"2021_22","ENE2020",36,4,2,null,71100,36,4,2,null,"071100","36|04|02",1,1,2,15,15,"01|01|02|15|15","National","Small Business Development","Enterprise Development and Entrepreneurship","SMMEs Programme Design and Support",null,"Current","Current payments","Goods and services","Science and technological services","Science and technological services",null,null,null,0,0,0,0,0,0,0,0,0,0,0,0,0,0,null,{"$f":"IF(T_DataComboFile[[#This Row],[G&S reporting level indicator]]=1,$AX$16,\"Not applicable\")","v":"Not applicable"},{"$f":"IF(AND($AX$16=\"Level 3\",T_DataComboFile[[#This Row],[Econ3]] = \"Goods and services\"),IF(T_DataComboFile[[#This Row],[Econ4]] = T_DataComboFile[[#This Row],[Econ3]],1,0),IF(AND($AX$16=\"Level 4\",T_DataComboFile[[#This Row],[Econ4]] = \"Goods and services\"),0,1))","v":0},{"$f":"T_DataComboFile[[#This Row],[2016/17_Source]]*T_DataComboFile[[#This Row],[G&S reporting level indicator]]","v":0},{"$f":"T_DataComboFile[[#This Row],[2017/18_Source]]*T_DataComboFile[[#This Row],[G&S reporting level indicator]]","v":0},{"$f":"T_DataComboFile[[#This Row],[2018/19_Source]]*T_DataComboFile[[#This Row],[G&S reporting level indicator]]","v":0},{"$f":"T_DataComboFile[[#This Row],[2019/20 Main appropriation_Source]]*T_DataComboFile[[#This Row],[G&S reporting level indicator]]","v":0},{"$f":"T_DataComboFile[[#This Row],[2019/20 Adjusted appropriation_Source]]*T_DataComboFile[[#This Row],[G&S reporting level indicator]]","v":0},{"$f":"T_DataComboFile[[#This Row],[2019/20 Revised estimate_Source]]*T_DataComboFile[[#This Row],[G&S reporting level indicator]]","v":0},{"$f":"T_DataComboFile[[#This Row],[2019/20 Preliminary outcome_Source]]*T_DataComboFile[[#This Row],[G&S reporting level indicator]]","v":0},{"$f":"T_DataComboFile[[#This Row],[2020/21 Original_Source]]*T_DataComboFile[[#This Row],[G&S reporting level indicator]]","v":0},{"$f":"T_DataComboFile[[#This Row],[2020/21 SAB_Source]]*T_DataComboFile[[#This Row],[G&S reporting level indicator]]","v":0},{"$f":"T_DataComboFile[[#This Row],[2020/21 Baseline_Source]]*T_DataComboFile[[#This Row],[G&S reporting level indicator]]","v":0},{"$f":"T_DataComboFile[[#This Row],[2021/22 Baseline_Source]]*T_DataComboFile[[#This Row],[G&S reporting level indicator]]","v":0},{"$f":"T_DataComboFile[[#This Row],[2022/23 Baseline_Source]]*T_DataComboFile[[#This Row],[G&S reporting level indicator]]","v":0},{"$f":"T_DataComboFile[[#This Row],[2023/24 Baseline_Source]]*T_DataComboFile[[#This Row],[G&S reporting level indicator]]","v":0},null,null,null,null,null,null,{"$f":"T_DataComboFile[[#This Row],[2021/22 Baseline]]+T_DataComboFile[[#This Row],[2021/22 Reduction]]+T_DataComboFile[[#This Row],[2021/22 Increase]]","v":0},{"$f":"T_DataComboFile[[#This Row],[2022/23 Baseline]]+T_DataComboFile[[#This Row],[2022/23 Reduction]]+T_DataComboFile[[#This Row],[2022/23 Increase]]","v":0},{"$f":"T_DataComboFile[[#This Row],[2023/24 Baseline]]+T_DataComboFile[[#This Row],[2023/24 Reduction]]+T_DataComboFile[[#This Row],[2023/24 Increase]]","v":0}]
[null,null,"2021_22","ENE2020",36,4,2,null,71101,36,4,2,null,"071101","36|04|02",1,1,2,16,16,"01|01|02|16|16","National","Small Business Development","Enterprise Development and Entrepreneurship","SMMEs Programme Design and Support",null,"Current","Current payments","Goods and services","Contractors","Contractors",null,null,null,0,0,0,0,0,0,0,0,0,0,0,0,0,0,null,{"$f":"IF(T_DataComboFile[[#This Row],[G&S reporting level indicator]]=1,$AX$16,\"Not applicable\")","v":"Not applicable"},{"$f":"IF(AND($AX$16=\"Level 3\",T_DataComboFile[[#This Row],[Econ3]] = \"Goods and services\"),IF(T_DataComboFile[[#This Row],[Econ4]] = T_DataComboFile[[#This Row],[Econ3]],1,0),IF(AND($AX$16=\"Level 4\",T_DataComboFile[[#This Row],[Econ4]] = \"Goods and services\"),0,1))","v":0},{"$f":"T_DataComboFile[[#This Row],[2016/17_Source]]*T_DataComboFile[[#This Row],[G&S reporting level indicator]]","v":0},{"$f":"T_DataComboFile[[#This Row],[2017/18_Source]]*T_DataComboFile[[#This Row],[G&S reporting level indicator]]","v":0},{"$f":"T_DataComboFile[[#This Row],[2018/19_Source]]*T_DataComboFile[[#This Row],[G&S reporting level indicator]]","v":0},{"$f":"T_DataComboFile[[#This Row],[2019/20 Main appropriation_Source]]*T_DataComboFile[[#This Row],[G&S reporting level indicator]]","v":0},{"$f":"T_DataComboFile[[#This Row],[2019/20 Adjusted appropriation_Source]]*T_DataComboFile[[#This Row],[G&S reporting level indicator]]","v":0},{"$f":"T_DataComboFile[[#This Row],[2019/20 Revised estimate_Source]]*T_DataComboFile[[#This Row],[G&S reporting level indicator]]","v":0},{"$f":"T_DataComboFile[[#This Row],[2019/20 Preliminary outcome_Source]]*T_DataComboFile[[#This Row],[G&S reporting level indicator]]","v":0},{"$f":"T_DataComboFile[[#This Row],[2020/21 Original_Source]]*T_DataComboFile[[#This Row],[G&S reporting level indicator]]","v":0},{"$f":"T_DataComboFile[[#This Row],[2020/21 SAB_Source]]*T_DataComboFile[[#This Row],[G&S reporting level indicator]]","v":0},{"$f":"T_DataComboFile[[#This Row],[2020/21 Baseline_Source]]*T_DataComboFile[[#This Row],[G&S reporting level indicator]]","v":0},{"$f":"T_DataComboFile[[#This Row],[2021/22 Baseline_Source]]*T_DataComboFile[[#This Row],[G&S reporting level indicator]]","v":0},{"$f":"T_DataComboFile[[#This Row],[2022/23 Baseline_Source]]*T_DataComboFile[[#This Row],[G&S reporting level indicator]]","v":0},{"$f":"T_DataComboFile[[#This Row],[2023/24 Baseline_Source]]*T_DataComboFile[[#This Row],[G&S reporting level indicator]]","v":0},null,null,null,null,null,null,{"$f":"T_DataComboFile[[#This Row],[2021/22 Baseline]]+T_DataComboFile[[#This Row],[2021/22 Reduction]]+T_DataComboFile[[#This Row],[2021/22 Increase]]","v":0},{"$f":"T_DataComboFile[[#This Row],[2022/23 Baseline]]+T_DataComboFile[[#This Row],[2022/23 Reduction]]+T_DataComboFile[[#This Row],[2022/23 Increase]]","v":0},{"$f":"T_DataComboFile[[#This Row],[2023/24 Baseline]]+T_DataComboFile[[#This Row],[2023/24 Reduction]]+T_DataComboFile[[#This Row],[2023/24 Increase]]","v":0}]
[null,null,"2021_22","ENE2020",36,4,2,null,71102,36,4,2,null,"071102","36|04|02",1,1,2,17,17,"01|01|02|17|17","National","Small Business Development","Enterprise Development and Entrepreneurship","SMMEs Programme Design and Support",null,"Current","Current payments","Goods and services","Agency and support/outsourced services","Agency and support/outsourced services",null,null,null,0,0,0,0,0,0,0,0,0,0,0,0,0,0,null,{"$f":"IF(T_DataComboFile[[#This Row],[G&S reporting level indicator]]=1,$AX$16,\"Not applicable\")","v":"Not applicable"},{"$f":"IF(AND($AX$16=\"Level 3\",T_DataComboFile[[#This Row],[Econ3]] = \"Goods and services\"),IF(T_DataComboFile[[#This Row],[Econ4]] = T_DataComboFile[[#This Row],[Econ3]],1,0),IF(AND($AX$16=\"Level 4\",T_DataComboFile[[#This Row],[Econ4]] = \"Goods and services\"),0,1))","v":0},{"$f":"T_DataComboFile[[#This Row],[2016/17_Source]]*T_DataComboFile[[#This Row],[G&S reporting level indicator]]","v":0},{"$f":"T_DataComboFile[[#This Row],[2017/18_Source]]*T_DataComboFile[[#This Row],[G&S reporting level indicator]]","v":0},{"$f":"T_DataComboFile[[#This Row],[2018/19_Source]]*T_DataComboFile[[#This Row],[G&S reporting level indicator]]","v":0},{"$f":"T_DataComboFile[[#This Row],[2019/20 Main appropriation_Source]]*T_DataComboFile[[#This Row],[G&S reporting level indicator]]","v":0},{"$f":"T_DataComboFile[[#This Row],[2019/20 Adjusted appropriation_Source]]*T_DataComboFile[[#This Row],[G&S reporting level indicator]]","v":0},{"$f":"T_DataComboFile[[#This Row],[2019/20 Revised estimate_Source]]*T_DataComboFile[[#This Row],[G&S reporting level indicator]]","v":0},{"$f":"T_DataComboFile[[#This Row],[2019/20 Preliminary outcome_Source]]*T_DataComboFile[[#This Row],[G&S reporting level indicator]]","v":0},{"$f":"T_DataComboFile[[#This Row],[2020/21 Original_Source]]*T_DataComboFile[[#This Row],[G&S reporting level indicator]]","v":0},{"$f":"T_DataComboFile[[#This Row],[2020/21 SAB_Source]]*T_DataComboFile[[#This Row],[G&S reporting level indicator]]","v":0},{"$f":"T_DataComboFile[[#This Row],[2020/21 Baseline_Source]]*T_DataComboFile[[#This Row],[G&S reporting level indicator]]","v":0},{"$f":"T_DataComboFile[[#This Row],[2021/22 Baseline_Source]]*T_DataComboFile[[#This Row],[G&S reporting level indicator]]","v":0},{"$f":"T_DataComboFile[[#This Row],[2022/23 Baseline_Source]]*T_DataComboFile[[#This Row],[G&S reporting level indicator]]","v":0},{"$f":"T_DataComboFile[[#This Row],[2023/24 Baseline_Source]]*T_DataComboFile[[#This Row],[G&S reporting level indicator]]","v":0},null,null,null,null,null,null,{"$f":"T_DataComboFile[[#This Row],[2021/22 Baseline]]+T_DataComboFile[[#This Row],[2021/22 Reduction]]+T_DataComboFile[[#This Row],[2021/22 Increase]]","v":0},{"$f":"T_DataComboFile[[#This Row],[2022/23 Baseline]]+T_DataComboFile[[#This Row],[2022/23 Reduction]]+T_DataComboFile[[#This Row],[2022/23 Increase]]","v":0},{"$f":"T_DataComboFile[[#This Row],[2023/24 Baseline]]+T_DataComboFile[[#This Row],[2023/24 Reduction]]+T_DataComboFile[[#This Row],[2023/24 Increase]]","v":0}]
[null,null,"2021_22","ENE2020",36,4,2,null,71103,36,4,2,null,"071103","36|04|02",1,1,2,18,18,"01|01|02|18|18","National","Small Business Development","Enterprise Development and Entrepreneurship","SMMEs Programme Design and Support",null,"Current","Current payments","Goods and services","Entertainment","Entertainment",null,null,null,0,0,0,0,0,0,0,0,0,0,0,0,0,0,null,{"$f":"IF(T_DataComboFile[[#This Row],[G&S reporting level indicator]]=1,$AX$16,\"Not applicable\")","v":"Not applicable"},{"$f":"IF(AND($AX$16=\"Level 3\",T_DataComboFile[[#This Row],[Econ3]] = \"Goods and services\"),IF(T_DataComboFile[[#This Row],[Econ4]] = T_DataComboFile[[#This Row],[Econ3]],1,0),IF(AND($AX$16=\"Level 4\",T_DataComboFile[[#This Row],[Econ4]] = \"Goods and services\"),0,1))","v":0},{"$f":"T_DataComboFile[[#This Row],[2016/17_Source]]*T_DataComboFile[[#This Row],[G&S reporting level indicator]]","v":0},{"$f":"T_DataComboFile[[#This Row],[2017/18_Source]]*T_DataComboFile[[#This Row],[G&S reporting level indicator]]","v":0},{"$f":"T_DataComboFile[[#This Row],[2018/19_Source]]*T_DataComboFile[[#This Row],[G&S reporting level indicator]]","v":0},{"$f":"T_DataComboFile[[#This Row],[2019/20 Main appropriation_Source]]*T_DataComboFile[[#This Row],[G&S reporting level indicator]]","v":0},{"$f":"T_DataComboFile[[#This Row],[2019/20 Adjusted appropriation_Source]]*T_DataComboFile[[#This Row],[G&S reporting level indicator]]","v":0},{"$f":"T_DataComboFile[[#This Row],[2019/20 Revised estimate_Source]]*T_DataComboFile[[#This Row],[G&S reporting level indicator]]","v":0},{"$f":"T_DataComboFile[[#This Row],[2019/20 Preliminary outcome_Source]]*T_DataComboFile[[#This Row],[G&S reporting level indicator]]","v":0},{"$f":"T_DataComboFile[[#This Row],[2020/21 Original_Source]]*T_DataComboFile[[#This Row],[G&S reporting level indicator]]","v":0},{"$f":"T_DataComboFile[[#This Row],[2020/21 SAB_Source]]*T_DataComboFile[[#This Row],[G&S reporting level indicator]]","v":0},{"$f":"T_DataComboFile[[#This Row],[2020/21 Baseline_Source]]*T_DataComboFile[[#This Row],[G&S reporting level indicator]]","v":0},{"$f":"T_DataComboFile[[#This Row],[2021/22 Baseline_Source]]*T_DataComboFile[[#This Row],[G&S reporting level indicator]]","v":0},{"$f":"T_DataComboFile[[#This Row],[2022/23 Baseline_Source]]*T_DataComboFile[[#This Row],[G&S reporting level indicator]]","v":0},{"$f":"T_DataComboFile[[#This Row],[2023/24 Baseline_Source]]*T_DataComboFile[[#This Row],[G&S reporting level indicator]]","v":0},null,null,null,null,null,null,{"$f":"T_DataComboFile[[#This Row],[2021/22 Baseline]]+T_DataComboFile[[#This Row],[2021/22 Reduction]]+T_DataComboFile[[#This Row],[2021/22 Increase]]","v":0},{"$f":"T_DataComboFile[[#This Row],[2022/23 Baseline]]+T_DataComboFile[[#This Row],[2022/23 Reduction]]+T_DataComboFile[[#This Row],[2022/23 Increase]]","v":0},{"$f":"T_DataComboFile[[#This Row],[2023/24 Baseline]]+T_DataComboFile[[#This Row],[2023/24 Reduction]]+T_DataComboFile[[#This Row],[2023/24 Increase]]","v":0}]
["NAT|Non-transfer item","36|Fleet services (including government motor transport)","2021_22","ENE2020",36,4,2,17422,71104,36,4,2,17422,"071104","36|04|02",1,1,2,19,19,"01|01|02|19|19","National","Small Business Development","Enterprise Development and Entrepreneurship","SMMEs Programme Design and Support","Non-transfer item","Current","Current payments","Goods and services","Fleet services (including government motor transport)","Fleet services (including government motor transport)","Economic development","Industrialisation and exports","NAT",26,13,71,124,124,124,124,78,78,78,86,94,98,1,null,{"$f":"IF(T_DataComboFile[[#This Row],[G&S reporting level indicator]]=1,$AX$16,\"Not applicable\")","v":"Not applicable"},{"$f":"IF(AND($AX$16=\"Level 3\",T_DataComboFile[[#This Row],[Econ3]] = \"Goods and services\"),IF(T_DataComboFile[[#This Row],[Econ4]] = T_DataComboFile[[#This Row],[Econ3]],1,0),IF(AND($AX$16=\"Level 4\",T_DataComboFile[[#This Row],[Econ4]] = \"Goods and services\"),0,1))","v":0},{"$f":"T_DataComboFile[[#This Row],[2016/17_Source]]*T_DataComboFile[[#This Row],[G&S reporting level indicator]]","v":0},{"$f":"T_DataComboFile[[#This Row],[2017/18_Source]]*T_DataComboFile[[#This Row],[G&S reporting level indicator]]","v":0},{"$f":"T_DataComboFile[[#This Row],[2018/19_Source]]*T_DataComboFile[[#This Row],[G&S reporting level indicator]]","v":0},{"$f":"T_DataComboFile[[#This Row],[2019/20 Main appropriation_Source]]*T_DataComboFile[[#This Row],[G&S reporting level indicator]]","v":0},{"$f":"T_DataComboFile[[#This Row],[2019/20 Adjusted appropriation_Source]]*T_DataComboFile[[#This Row],[G&S reporting level indicator]]","v":0},{"$f":"T_DataComboFile[[#This Row],[2019/20 Revised estimate_Source]]*T_DataComboFile[[#This Row],[G&S reporting level indicator]]","v":0},{"$f":"T_DataComboFile[[#This Row],[2019/20 Preliminary outcome_Source]]*T_DataComboFile[[#This Row],[G&S reporting level indicator]]","v":0},{"$f":"T_DataComboFile[[#This Row],[2020/21 Original_Source]]*T_DataComboFile[[#This Row],[G&S reporting level indicator]]","v":0},{"$f":"T_DataComboFile[[#This Row],[2020/21 SAB_Source]]*T_DataComboFile[[#This Row],[G&S reporting level indicator]]","v":0},{"$f":"T_DataComboFile[[#This Row],[2020/21 Baseline_Source]]*T_DataComboFile[[#This Row],[G&S reporting level indicator]]","v":0},{"$f":"T_DataComboFile[[#This Row],[2021/22 Baseline_Source]]*T_DataComboFile[[#This Row],[G&S reporting level indicator]]","v":0},{"$f":"T_DataComboFile[[#This Row],[2022/23 Baseline_Source]]*T_DataComboFile[[#This Row],[G&S reporting level indicator]]","v":0},{"$f":"T_DataComboFile[[#This Row],[2023/24 Baseline_Source]]*T_DataComboFile[[#This Row],[G&S reporting level indicator]]","v":0},null,null,null,null,null,null,{"$f":"T_DataComboFile[[#This Row],[2021/22 Baseline]]+T_DataComboFile[[#This Row],[2021/22 Reduction]]+T_DataComboFile[[#This Row],[2021/22 Increase]]","v":0},{"$f":"T_DataComboFile[[#This Row],[2022/23 Baseline]]+T_DataComboFile[[#This Row],[2022/23 Reduction]]+T_DataComboFile[[#This Row],[2022/23 Increase]]","v":0},{"$f":"T_DataComboFile[[#This Row],[2023/24 Baseline]]+T_DataComboFile[[#This Row],[2023/24 Reduction]]+T_DataComboFile[[#This Row],[2023/24 Increase]]","v":0}]
[null,null,"2021_22","ENE2020",36,4,2,null,71105,36,4,2,null,"071105","36|04|02",1,1,2,20,20,"01|01|02|20|20","National","Small Business Development","Enterprise Development and Entrepreneurship","SMMEs Programme Design and Support",null,"Current","Current payments","Goods and services","Housing","Housing",null,null,null,0,0,0,0,0,0,0,0,0,0,0,0,0,0,null,{"$f":"IF(T_DataComboFile[[#This Row],[G&S reporting level indicator]]=1,$AX$16,\"Not applicable\")","v":"Not applicable"},{"$f":"IF(AND($AX$16=\"Level 3\",T_DataComboFile[[#This Row],[Econ3]] = \"Goods and services\"),IF(T_DataComboFile[[#This Row],[Econ4]] = T_DataComboFile[[#This Row],[Econ3]],1,0),IF(AND($AX$16=\"Level 4\",T_DataComboFile[[#This Row],[Econ4]] = \"Goods and services\"),0,1))","v":0},{"$f":"T_DataComboFile[[#This Row],[2016/17_Source]]*T_DataComboFile[[#This Row],[G&S reporting level indicator]]","v":0},{"$f":"T_DataComboFile[[#This Row],[2017/18_Source]]*T_DataComboFile[[#This Row],[G&S reporting level indicator]]","v":0},{"$f":"T_DataComboFile[[#This Row],[2018/19_Source]]*T_DataComboFile[[#This Row],[G&S reporting level indicator]]","v":0},{"$f":"T_DataComboFile[[#This Row],[2019/20 Main appropriation_Source]]*T_DataComboFile[[#This Row],[G&S reporting level indicator]]","v":0},{"$f":"T_DataComboFile[[#This Row],[2019/20 Adjusted appropriation_Source]]*T_DataComboFile[[#This Row],[G&S reporting level indicator]]","v":0},{"$f":"T_DataComboFile[[#This Row],[2019/20 Revised estimate_Source]]*T_DataComboFile[[#This Row],[G&S reporting level indicator]]","v":0},{"$f":"T_DataComboFile[[#This Row],[2019/20 Preliminary outcome_Source]]*T_DataComboFile[[#This Row],[G&S reporting level indicator]]","v":0},{"$f":"T_DataComboFile[[#This Row],[2020/21 Original_Source]]*T_DataComboFile[[#This Row],[G&S reporting level indicator]]","v":0},{"$f":"T_DataComboFile[[#This Row],[2020/21 SAB_Source]]*T_DataComboFile[[#This Row],[G&S reporting level indicator]]","v":0},{"$f":"T_DataComboFile[[#This Row],[2020/21 Baseline_Source]]*T_DataComboFile[[#This Row],[G&S reporting level indicator]]","v":0},{"$f":"T_DataComboFile[[#This Row],[2021/22 Baseline_Source]]*T_DataComboFile[[#This Row],[G&S reporting level indicator]]","v":0},{"$f":"T_DataComboFile[[#This Row],[2022/23 Baseline_Source]]*T_DataComboFile[[#This Row],[G&S reporting level indicator]]","v":0},{"$f":"T_DataComboFile[[#This Row],[2023/24 Baseline_Source]]*T_DataComboFile[[#This Row],[G&S reporting level indicator]]","v":0},null,null,null,null,null,null,{"$f":"T_DataComboFile[[#This Row],[2021/22 Baseline]]+T_DataComboFile[[#This Row],[2021/22 Reduction]]+T_DataComboFile[[#This Row],[2021/22 Increase]]","v":0},{"$f":"T_DataComboFile[[#This Row],[2022/23 Baseline]]+T_DataComboFile[[#This Row],[2022/23 Reduction]]+T_DataComboFile[[#This Row],[2022/23 Increase]]","v":0},{"$f":"T_DataComboFile[[#This Row],[2023/24 Baseline]]+T_DataComboFile[[#This Row],[2023/24 Reduction]]+T_DataComboFile[[#This Row],[2023/24 Increase]]","v":0}]
[null,null,"2021_22","ENE2020",36,4,2,null,71106,36,4,2,null,"071106","36|04|02",1,1,2,21,21,"01|01|02|21|21","National","Small Business Development","Enterprise Development and Entrepreneurship","SMMEs Programme Design and Support",null,"Current","Current payments","Goods and services","Inventory: Clothing material and accessories","Inventory: Clothing material and accessories",null,null,null,0,0,0,0,0,0,0,0,0,0,0,0,0,0,null,{"$f":"IF(T_DataComboFile[[#This Row],[G&S reporting level indicator]]=1,$AX$16,\"Not applicable\")","v":"Not applicable"},{"$f":"IF(AND($AX$16=\"Level 3\",T_DataComboFile[[#This Row],[Econ3]] = \"Goods and services\"),IF(T_DataComboFile[[#This Row],[Econ4]] = T_DataComboFile[[#This Row],[Econ3]],1,0),IF(AND($AX$16=\"Level 4\",T_DataComboFile[[#This Row],[Econ4]] = \"Goods and services\"),0,1))","v":0},{"$f":"T_DataComboFile[[#This Row],[2016/17_Source]]*T_DataComboFile[[#This Row],[G&S reporting level indicator]]","v":0},{"$f":"T_DataComboFile[[#This Row],[2017/18_Source]]*T_DataComboFile[[#This Row],[G&S reporting level indicator]]","v":0},{"$f":"T_DataComboFile[[#This Row],[2018/19_Source]]*T_DataComboFile[[#This Row],[G&S reporting level indicator]]","v":0},{"$f":"T_DataComboFile[[#This Row],[2019/20 Main appropriation_Source]]*T_DataComboFile[[#This Row],[G&S reporting level indicator]]","v":0},{"$f":"T_DataComboFile[[#This Row],[2019/20 Adjusted appropriation_Source]]*T_DataComboFile[[#This Row],[G&S reporting level indicator]]","v":0},{"$f":"T_DataComboFile[[#This Row],[2019/20 Revised estimate_Source]]*T_DataComboFile[[#This Row],[G&S reporting level indicator]]","v":0},{"$f":"T_DataComboFile[[#This Row],[2019/20 Preliminary outcome_Source]]*T_DataComboFile[[#This Row],[G&S reporting level indicator]]","v":0},{"$f":"T_DataComboFile[[#This Row],[2020/21 Original_Source]]*T_DataComboFile[[#This Row],[G&S reporting level indicator]]","v":0},{"$f":"T_DataComboFile[[#This Row],[2020/21 SAB_Source]]*T_DataComboFile[[#This Row],[G&S reporting level indicator]]","v":0},{"$f":"T_DataComboFile[[#This Row],[2020/21 Baseline_Source]]*T_DataComboFile[[#This Row],[G&S reporting level indicator]]","v":0},{"$f":"T_DataComboFile[[#This Row],[2021/22 Baseline_Source]]*T_DataComboFile[[#This Row],[G&S reporting level indicator]]","v":0},{"$f":"T_DataComboFile[[#This Row],[2022/23 Baseline_Source]]*T_DataComboFile[[#This Row],[G&S reporting level indicator]]","v":0},{"$f":"T_DataComboFile[[#This Row],[2023/24 Baseline_Source]]*T_DataComboFile[[#This Row],[G&S reporting level indicator]]","v":0},null,null,null,null,null,null,{"$f":"T_DataComboFile[[#This Row],[2021/22 Baseline]]+T_DataComboFile[[#This Row],[2021/22 Reduction]]+T_DataComboFile[[#This Row],[2021/22 Increase]]","v":0},{"$f":"T_DataComboFile[[#This Row],[2022/23 Baseline]]+T_DataComboFile[[#This Row],[2022/23 Reduction]]+T_DataComboFile[[#This Row],[2022/23 Increase]]","v":0},{"$f":"T_DataComboFile[[#This Row],[2023/24 Baseline]]+T_DataComboFile[[#This Row],[2023/24 Reduction]]+T_DataComboFile[[#This Row],[2023/24 Increase]]","v":0}]
[null,null,"2021_22","ENE2020",36,4,2,null,71107,36,4,2,null,"071107","36|04|02",1,1,2,22,22,"01|01|02|22|22","National","Small Business Development","Enterprise Development and Entrepreneurship","SMMEs Programme Design and Support",null,"Current","Current payments","Goods and services","Inventory: Farming supplies","Inventory: Farming supplies",null,null,null,0,0,0,0,0,0,0,0,0,0,0,0,0,0,null,{"$f":"IF(T_DataComboFile[[#This Row],[G&S reporting level indicator]]=1,$AX$16,\"Not applicable\")","v":"Not applicable"},{"$f":"IF(AND($AX$16=\"Level 3\",T_DataComboFile[[#This Row],[Econ3]] = \"Goods and services\"),IF(T_DataComboFile[[#This Row],[Econ4]] = T_DataComboFile[[#This Row],[Econ3]],1,0),IF(AND($AX$16=\"Level 4\",T_DataComboFile[[#This Row],[Econ4]] = \"Goods and services\"),0,1))","v":0},{"$f":"T_DataComboFile[[#This Row],[2016/17_Source]]*T_DataComboFile[[#This Row],[G&S reporting level indicator]]","v":0},{"$f":"T_DataComboFile[[#This Row],[2017/18_Source]]*T_DataComboFile[[#This Row],[G&S reporting level indicator]]","v":0},{"$f":"T_DataComboFile[[#This Row],[2018/19_Source]]*T_DataComboFile[[#This Row],[G&S reporting level indicator]]","v":0},{"$f":"T_DataComboFile[[#This Row],[2019/20 Main appropriation_Source]]*T_DataComboFile[[#This Row],[G&S reporting level indicator]]","v":0},{"$f":"T_DataComboFile[[#This Row],[2019/20 Adjusted appropriation_Source]]*T_DataComboFile[[#This Row],[G&S reporting level indicator]]","v":0},{"$f":"T_DataComboFile[[#This Row],[2019/20 Revised estimate_Source]]*T_DataComboFile[[#This Row],[G&S reporting level indicator]]","v":0},{"$f":"T_DataComboFile[[#This Row],[2019/20 Preliminary outcome_Source]]*T_DataComboFile[[#This Row],[G&S reporting level indicator]]","v":0},{"$f":"T_DataComboFile[[#This Row],[2020/21 Original_Source]]*T_DataComboFile[[#This Row],[G&S reporting level indicator]]","v":0},{"$f":"T_DataComboFile[[#This Row],[2020/21 SAB_Source]]*T_DataComboFile[[#This Row],[G&S reporting level indicator]]","v":0},{"$f":"T_DataComboFile[[#This Row],[2020/21 Baseline_Source]]*T_DataComboFile[[#This Row],[G&S reporting level indicator]]","v":0},{"$f":"T_DataComboFile[[#This Row],[2021/22 Baseline_Source]]*T_DataComboFile[[#This Row],[G&S reporting level indicator]]","v":0},{"$f":"T_DataComboFile[[#This Row],[2022/23 Baseline_Source]]*T_DataComboFile[[#This Row],[G&S reporting level indicator]]","v":0},{"$f":"T_DataComboFile[[#This Row],[2023/24 Baseline_Source]]*T_DataComboFile[[#This Row],[G&S reporting level indicator]]","v":0},null,null,null,null,null,null,{"$f":"T_DataComboFile[[#This Row],[2021/22 Baseline]]+T_DataComboFile[[#This Row],[2021/22 Reduction]]+T_DataComboFile[[#This Row],[2021/22 Increase]]","v":0},{"$f":"T_DataComboFile[[#This Row],[2022/23 Baseline]]+T_DataComboFile[[#This Row],[2022/23 Reduction]]+T_DataComboFile[[#This Row],[2022/23 Increase]]","v":0},{"$f":"T_DataComboFile[[#This Row],[2023/24 Baseline]]+T_DataComboFile[[#This Row],[2023/24 Reduction]]+T_DataComboFile[[#This Row],[2023/24 Increase]]","v":0}]
[null,null,"2021_22","ENE2020",36,4,2,null,71108,36,4,2,null,"071108","36|04|02",1,1,2,23,23,"01|01|02|23|23","National","Small Business Development","Enterprise Development and Entrepreneurship","SMMEs Programme Design and Support",null,"Current","Current payments","Goods and services","Inventory: Food and food supplies","Inventory: Food and food supplies",null,null,null,0,0,0,0,0,0,0,0,0,0,0,0,0,0,null,{"$f":"IF(T_DataComboFile[[#This Row],[G&S reporting level indicator]]=1,$AX$16,\"Not applicable\")","v":"Not applicable"},{"$f":"IF(AND($AX$16=\"Level 3\",T_DataComboFile[[#This Row],[Econ3]] = \"Goods and services\"),IF(T_DataComboFile[[#This Row],[Econ4]] = T_DataComboFile[[#This Row],[Econ3]],1,0),IF(AND($AX$16=\"Level 4\",T_DataComboFile[[#This Row],[Econ4]] = \"Goods and services\"),0,1))","v":0},{"$f":"T_DataComboFile[[#This Row],[2016/17_Source]]*T_DataComboFile[[#This Row],[G&S reporting level indicator]]","v":0},{"$f":"T_DataComboFile[[#This Row],[2017/18_Source]]*T_DataComboFile[[#This Row],[G&S reporting level indicator]]","v":0},{"$f":"T_DataComboFile[[#This Row],[2018/19_Source]]*T_DataComboFile[[#This Row],[G&S reporting level indicator]]","v":0},{"$f":"T_DataComboFile[[#This Row],[2019/20 Main appropriation_Source]]*T_DataComboFile[[#This Row],[G&S reporting level indicator]]","v":0},{"$f":"T_DataComboFile[[#This Row],[2019/20 Adjusted appropriation_Source]]*T_DataComboFile[[#This Row],[G&S reporting level indicator]]","v":0},{"$f":"T_DataComboFile[[#This Row],[2019/20 Revised estimate_Source]]*T_DataComboFile[[#This Row],[G&S reporting level indicator]]","v":0},{"$f":"T_DataComboFile[[#This Row],[2019/20 Preliminary outcome_Source]]*T_DataComboFile[[#This Row],[G&S reporting level indicator]]","v":0},{"$f":"T_DataComboFile[[#This Row],[2020/21 Original_Source]]*T_DataComboFile[[#This Row],[G&S reporting level indicator]]","v":0},{"$f":"T_DataComboFile[[#This Row],[2020/21 SAB_Source]]*T_DataComboFile[[#This Row],[G&S reporting level indicator]]","v":0},{"$f":"T_DataComboFile[[#This Row],[2020/21 Baseline_Source]]*T_DataComboFile[[#This Row],[G&S reporting level indicator]]","v":0},{"$f":"T_DataComboFile[[#This Row],[2021/22 Baseline_Source]]*T_DataComboFile[[#This Row],[G&S reporting level indicator]]","v":0},{"$f":"T_DataComboFile[[#This Row],[2022/23 Baseline_Source]]*T_DataComboFile[[#This Row],[G&S reporting level indicator]]","v":0},{"$f":"T_DataComboFile[[#This Row],[2023/24 Baseline_Source]]*T_DataComboFile[[#This Row],[G&S reporting level indicator]]","v":0},null,null,null,null,null,null,{"$f":"T_DataComboFile[[#This Row],[2021/22 Baseline]]+T_DataComboFile[[#This Row],[2021/22 Reduction]]+T_DataComboFile[[#This Row],[2021/22 Increase]]","v":0},{"$f":"T_DataComboFile[[#This Row],[2022/23 Baseline]]+T_DataComboFile[[#This Row],[2022/23 Reduction]]+T_DataComboFile[[#This Row],[2022/23 Increase]]","v":0},{"$f":"T_DataComboFile[[#This Row],[2023/24 Baseline]]+T_DataComboFile[[#This Row],[2023/24 Reduction]]+T_DataComboFile[[#This Row],[2023/24 Increase]]","v":0}]
[null,null,"2021_22","ENE2020",36,4,2,null,71109,36,4,2,null,"071109","36|04|02",1,1,2,24,24,"01|01|02|24|24","National","Small Business Development","Enterprise Development and Entrepreneurship","SMMEs Programme Design and Support",null,"Current","Current payments","Goods and services","Inventory: Fuel, oil and gas","Inventory: Fuel, oil and gas",null,null,null,0,0,0,0,0,0,0,0,0,0,0,0,0,0,null,{"$f":"IF(T_DataComboFile[[#This Row],[G&S reporting level indicator]]=1,$AX$16,\"Not applicable\")","v":"Not applicable"},{"$f":"IF(AND($AX$16=\"Level 3\",T_DataComboFile[[#This Row],[Econ3]] = \"Goods and services\"),IF(T_DataComboFile[[#This Row],[Econ4]] = T_DataComboFile[[#This Row],[Econ3]],1,0),IF(AND($AX$16=\"Level 4\",T_DataComboFile[[#This Row],[Econ4]] = \"Goods and services\"),0,1))","v":0},{"$f":"T_DataComboFile[[#This Row],[2016/17_Source]]*T_DataComboFile[[#This Row],[G&S reporting level indicator]]","v":0},{"$f":"T_DataComboFile[[#This Row],[2017/18_Source]]*T_DataComboFile[[#This Row],[G&S reporting level indicator]]","v":0},{"$f":"T_DataComboFile[[#This Row],[2018/19_Source]]*T_DataComboFile[[#This Row],[G&S reporting level indicator]]","v":0},{"$f":"T_DataComboFile[[#This Row],[2019/20 Main appropriation_Source]]*T_DataComboFile[[#This Row],[G&S reporting level indicator]]","v":0},{"$f":"T_DataComboFile[[#This Row],[2019/20 Adjusted appropriation_Source]]*T_DataComboFile[[#This Row],[G&S reporting level indicator]]","v":0},{"$f":"T_DataComboFile[[#This Row],[2019/20 Revised estimate_Source]]*T_DataComboFile[[#This Row],[G&S reporting level indicator]]","v":0},{"$f":"T_DataComboFile[[#This Row],[2019/20 Preliminary outcome_Source]]*T_DataComboFile[[#This Row],[G&S reporting level indicator]]","v":0},{"$f":"T_DataComboFile[[#This Row],[2020/21 Original_Source]]*T_DataComboFile[[#This Row],[G&S reporting level indicator]]","v":0},{"$f":"T_DataComboFile[[#This Row],[2020/21 SAB_Source]]*T_DataComboFile[[#This Row],[G&S reporting level indicator]]","v":0},{"$f":"T_DataComboFile[[#This Row],[2020/21 Baseline_Source]]*T_DataComboFile[[#This Row],[G&S reporting level indicator]]","v":0},{"$f":"T_DataComboFile[[#This Row],[2021/22 Baseline_Source]]*T_DataComboFile[[#This Row],[G&S reporting level indicator]]","v":0},{"$f":"T_DataComboFile[[#This Row],[2022/23 Baseline_Source]]*T_DataComboFile[[#This Row],[G&S reporting level indicator]]","v":0},{"$f":"T_DataComboFile[[#This Row],[2023/24 Baseline_Source]]*T_DataComboFile[[#This Row],[G&S reporting level indicator]]","v":0},null,null,null,null,null,null,{"$f":"T_DataComboFile[[#This Row],[2021/22 Baseline]]+T_DataComboFile[[#This Row],[2021/22 Reduction]]+T_DataComboFile[[#This Row],[2021/22 Increase]]","v":0},{"$f":"T_DataComboFile[[#This Row],[2022/23 Baseline]]+T_DataComboFile[[#This Row],[2022/23 Reduction]]+T_DataComboFile[[#This Row],[2022/23 Increase]]","v":0},{"$f":"T_DataComboFile[[#This Row],[2023/24 Baseline]]+T_DataComboFile[[#This Row],[2023/24 Reduction]]+T_DataComboFile[[#This Row],[2023/24 Increase]]","v":0}]
[null,null,"2021_22","ENE2020",36,4,2,null,71110,36,4,2,null,"071110","36|04|02",1,1,2,25,25,"01|01|02|25|25","National","Small Business Development","Enterprise Development and Entrepreneurship","SMMEs Programme Design and Support",null,"Current","Current payments","Goods and services","Inventory: Learner and teacher support material","Inventory: Learner and teacher support material",null,null,null,0,0,0,0,0,0,0,0,0,0,0,0,0,0,null,{"$f":"IF(T_DataComboFile[[#This Row],[G&S reporting level indicator]]=1,$AX$16,\"Not applicable\")","v":"Not applicable"},{"$f":"IF(AND($AX$16=\"Level 3\",T_DataComboFile[[#This Row],[Econ3]] = \"Goods and services\"),IF(T_DataComboFile[[#This Row],[Econ4]] = T_DataComboFile[[#This Row],[Econ3]],1,0),IF(AND($AX$16=\"Level 4\",T_DataComboFile[[#This Row],[Econ4]] = \"Goods and services\"),0,1))","v":0},{"$f":"T_DataComboFile[[#This Row],[2016/17_Source]]*T_DataComboFile[[#This Row],[G&S reporting level indicator]]","v":0},{"$f":"T_DataComboFile[[#This Row],[2017/18_Source]]*T_DataComboFile[[#This Row],[G&S reporting level indicator]]","v":0},{"$f":"T_DataComboFile[[#This Row],[2018/19_Source]]*T_DataComboFile[[#This Row],[G&S reporting level indicator]]","v":0},{"$f":"T_DataComboFile[[#This Row],[2019/20 Main appropriation_Source]]*T_DataComboFile[[#This Row],[G&S reporting level indicator]]","v":0},{"$f":"T_DataComboFile[[#This Row],[2019/20 Adjusted appropriation_Source]]*T_DataComboFile[[#This Row],[G&S reporting level indicator]]","v":0},{"$f":"T_DataComboFile[[#This Row],[2019/20 Revised estimate_Source]]*T_DataComboFile[[#This Row],[G&S reporting level indicator]]","v":0},{"$f":"T_DataComboFile[[#This Row],[2019/20 Preliminary outcome_Source]]*T_DataComboFile[[#This Row],[G&S reporting level indicator]]","v":0},{"$f":"T_DataComboFile[[#This Row],[2020/21 Original_Source]]*T_DataComboFile[[#This Row],[G&S reporting level indicator]]","v":0},{"$f":"T_DataComboFile[[#This Row],[2020/21 SAB_Source]]*T_DataComboFile[[#This Row],[G&S reporting level indicator]]","v":0},{"$f":"T_DataComboFile[[#This Row],[2020/21 Baseline_Source]]*T_DataComboFile[[#This Row],[G&S reporting level indicator]]","v":0},{"$f":"T_DataComboFile[[#This Row],[2021/22 Baseline_Source]]*T_DataComboFile[[#This Row],[G&S reporting level indicator]]","v":0},{"$f":"T_DataComboFile[[#This Row],[2022/23 Baseline_Source]]*T_DataComboFile[[#This Row],[G&S reporting level indicator]]","v":0},{"$f":"T_DataComboFile[[#This Row],[2023/24 Baseline_Source]]*T_DataComboFile[[#This Row],[G&S reporting level indicator]]","v":0},null,null,null,null,null,null,{"$f":"T_DataComboFile[[#This Row],[2021/22 Baseline]]+T_DataComboFile[[#This Row],[2021/22 Reduction]]+T_DataComboFile[[#This Row],[2021/22 Increase]]","v":0},{"$f":"T_DataComboFile[[#This Row],[2022/23 Baseline]]+T_DataComboFile[[#This Row],[2022/23 Reduction]]+T_DataComboFile[[#This Row],[2022/23 Increase]]","v":0},{"$f":"T_DataComboFile[[#This Row],[2023/24 Baseline]]+T_DataComboFile[[#This Row],[2023/24 Reduction]]+T_DataComboFile[[#This Row],[2023/24 Increase]]","v":0}]
[null,null,"2021_22","ENE2020",36,4,2,null,71111,36,4,2,null,"071111","36|04|02",1,1,2,26,26,"01|01|02|26|26","National","Small Business Development","Enterprise Development and Entrepreneurship","SMMEs Programme Design and Support",null,"Current","Current payments","Goods and services","Inventory: Materials and supplies","Inventory: Materials and supplies",null,null,null,0,0,0,0,0,0,0,0,0,0,0,0,0,0,null,{"$f":"IF(T_DataComboFile[[#This Row],[G&S reporting level indicator]]=1,$AX$16,\"Not applicable\")","v":"Not applicable"},{"$f":"IF(AND($AX$16=\"Level 3\",T_DataComboFile[[#This Row],[Econ3]] = \"Goods and services\"),IF(T_DataComboFile[[#This Row],[Econ4]] = T_DataComboFile[[#This Row],[Econ3]],1,0),IF(AND($AX$16=\"Level 4\",T_DataComboFile[[#This Row],[Econ4]] = \"Goods and services\"),0,1))","v":0},{"$f":"T_DataComboFile[[#This Row],[2016/17_Source]]*T_DataComboFile[[#This Row],[G&S reporting level indicator]]","v":0},{"$f":"T_DataComboFile[[#This Row],[2017/18_Source]]*T_DataComboFile[[#This Row],[G&S reporting level indicator]]","v":0},{"$f":"T_DataComboFile[[#This Row],[2018/19_Source]]*T_DataComboFile[[#This Row],[G&S reporting level indicator]]","v":0},{"$f":"T_DataComboFile[[#This Row],[2019/20 Main appropriation_Source]]*T_DataComboFile[[#This Row],[G&S reporting level indicator]]","v":0},{"$f":"T_DataComboFile[[#This Row],[2019/20 Adjusted appropriation_Source]]*T_DataComboFile[[#This Row],[G&S reporting level indicator]]","v":0},{"$f":"T_DataComboFile[[#This Row],[2019/20 Revised estimate_Source]]*T_DataComboFile[[#This Row],[G&S reporting level indicator]]","v":0},{"$f":"T_DataComboFile[[#This Row],[2019/20 Preliminary outcome_Source]]*T_DataComboFile[[#This Row],[G&S reporting level indicator]]","v":0},{"$f":"T_DataComboFile[[#This Row],[2020/21 Original_Source]]*T_DataComboFile[[#This Row],[G&S reporting level indicator]]","v":0},{"$f":"T_DataComboFile[[#This Row],[2020/21 SAB_Source]]*T_DataComboFile[[#This Row],[G&S reporting level indicator]]","v":0},{"$f":"T_DataComboFile[[#This Row],[2020/21 Baseline_Source]]*T_DataComboFile[[#This Row],[G&S reporting level indicator]]","v":0},{"$f":"T_DataComboFile[[#This Row],[2021/22 Baseline_Source]]*T_DataComboFile[[#This Row],[G&S reporting level indicator]]","v":0},{"$f":"T_DataComboFile[[#This Row],[2022/23 Baseline_Source]]*T_DataComboFile[[#This Row],[G&S reporting level indicator]]","v":0},{"$f":"T_DataComboFile[[#This Row],[2023/24 Baseline_Source]]*T_DataComboFile[[#This Row],[G&S reporting level indicator]]","v":0},null,null,null,null,null,null,{"$f":"T_DataComboFile[[#This Row],[2021/22 Baseline]]+T_DataComboFile[[#This Row],[2021/22 Reduction]]+T_DataComboFile[[#This Row],[2021/22 Increase]]","v":0},{"$f":"T_DataComboFile[[#This Row],[2022/23 Baseline]]+T_DataComboFile[[#This Row],[2022/23 Reduction]]+T_DataComboFile[[#This Row],[2022/23 Increase]]","v":0},{"$f":"T_DataComboFile[[#This Row],[2023/24 Baseline]]+T_DataComboFile[[#This Row],[2023/24 Reduction]]+T_DataComboFile[[#This Row],[2023/24 Increase]]","v":0}]
[null,null,"2021_22","ENE2020",36,4,2,null,71112,36,4,2,null,"071112","36|04|02",1,1,2,27,27,"01|01|02|27|27","National","Small Business Development","Enterprise Development and Entrepreneurship","SMMEs Programme Design and Support",null,"Current","Current payments","Goods and services","Inventory: Medical supplies","Inventory: Medical supplies",null,null,null,0,0,0,0,0,0,0,0,0,0,0,0,0,0,null,{"$f":"IF(T_DataComboFile[[#This Row],[G&S reporting level indicator]]=1,$AX$16,\"Not applicable\")","v":"Not applicable"},{"$f":"IF(AND($AX$16=\"Level 3\",T_DataComboFile[[#This Row],[Econ3]] = \"Goods and services\"),IF(T_DataComboFile[[#This Row],[Econ4]] = T_DataComboFile[[#This Row],[Econ3]],1,0),IF(AND($AX$16=\"Level 4\",T_DataComboFile[[#This Row],[Econ4]] = \"Goods and services\"),0,1))","v":0},{"$f":"T_DataComboFile[[#This Row],[2016/17_Source]]*T_DataComboFile[[#This Row],[G&S reporting level indicator]]","v":0},{"$f":"T_DataComboFile[[#This Row],[2017/18_Source]]*T_DataComboFile[[#This Row],[G&S reporting level indicator]]","v":0},{"$f":"T_DataComboFile[[#This Row],[2018/19_Source]]*T_DataComboFile[[#This Row],[G&S reporting level indicator]]","v":0},{"$f":"T_DataComboFile[[#This Row],[2019/20 Main appropriation_Source]]*T_DataComboFile[[#This Row],[G&S reporting level indicator]]","v":0},{"$f":"T_DataComboFile[[#This Row],[2019/20 Adjusted appropriation_Source]]*T_DataComboFile[[#This Row],[G&S reporting level indicator]]","v":0},{"$f":"T_DataComboFile[[#This Row],[2019/20 Revised estimate_Source]]*T_DataComboFile[[#This Row],[G&S reporting level indicator]]","v":0},{"$f":"T_DataComboFile[[#This Row],[2019/20 Preliminary outcome_Source]]*T_DataComboFile[[#This Row],[G&S reporting level indicator]]","v":0},{"$f":"T_DataComboFile[[#This Row],[2020/21 Original_Source]]*T_DataComboFile[[#This Row],[G&S reporting level indicator]]","v":0},{"$f":"T_DataComboFile[[#This Row],[2020/21 SAB_Source]]*T_DataComboFile[[#This Row],[G&S reporting level indicator]]","v":0},{"$f":"T_DataComboFile[[#This Row],[2020/21 Baseline_Source]]*T_DataComboFile[[#This Row],[G&S reporting level indicator]]","v":0},{"$f":"T_DataComboFile[[#This Row],[2021/22 Baseline_Source]]*T_DataComboFile[[#This Row],[G&S reporting level indicator]]","v":0},{"$f":"T_DataComboFile[[#This Row],[2022/23 Baseline_Source]]*T_DataComboFile[[#This Row],[G&S reporting level indicator]]","v":0},{"$f":"T_DataComboFile[[#This Row],[2023/24 Baseline_Source]]*T_DataComboFile[[#This Row],[G&S reporting level indicator]]","v":0},null,null,null,null,null,null,{"$f":"T_DataComboFile[[#This Row],[2021/22 Baseline]]+T_DataComboFile[[#This Row],[2021/22 Reduction]]+T_DataComboFile[[#This Row],[2021/22 Increase]]","v":0},{"$f":"T_DataComboFile[[#This Row],[2022/23 Baseline]]+T_DataComboFile[[#This Row],[2022/23 Reduction]]+T_DataComboFile[[#This Row],[2022/23 Increase]]","v":0},{"$f":"T_DataComboFile[[#This Row],[2023/24 Baseline]]+T_DataComboFile[[#This Row],[2023/24 Reduction]]+T_DataComboFile[[#This Row],[2023/24 Increase]]","v":0}]
[null,null,"2021_22","ENE2020",36,4,2,null,71113,36,4,2,null,"071113","36|04|02",1,1,2,28,28,"01|01|02|28|28","National","Small Business Development","Enterprise Development and Entrepreneurship","SMMEs Programme Design and Support",null,"Current","Current payments","Goods and services","Inventory: Medicine","Inventory: Medicine",null,null,null,0,0,0,0,0,0,0,0,0,0,0,0,0,0,null,{"$f":"IF(T_DataComboFile[[#This Row],[G&S reporting level indicator]]=1,$AX$16,\"Not applicable\")","v":"Not applicable"},{"$f":"IF(AND($AX$16=\"Level 3\",T_DataComboFile[[#This Row],[Econ3]] = \"Goods and services\"),IF(T_DataComboFile[[#This Row],[Econ4]] = T_DataComboFile[[#This Row],[Econ3]],1,0),IF(AND($AX$16=\"Level 4\",T_DataComboFile[[#This Row],[Econ4]] = \"Goods and services\"),0,1))","v":0},{"$f":"T_DataComboFile[[#This Row],[2016/17_Source]]*T_DataComboFile[[#This Row],[G&S reporting level indicator]]","v":0},{"$f":"T_DataComboFile[[#This Row],[2017/18_Source]]*T_DataComboFile[[#This Row],[G&S reporting level indicator]]","v":0},{"$f":"T_DataComboFile[[#This Row],[2018/19_Source]]*T_DataComboFile[[#This Row],[G&S reporting level indicator]]","v":0},{"$f":"T_DataComboFile[[#This Row],[2019/20 Main appropriation_Source]]*T_DataComboFile[[#This Row],[G&S reporting level indicator]]","v":0},{"$f":"T_DataComboFile[[#This Row],[2019/20 Adjusted appropriation_Source]]*T_DataComboFile[[#This Row],[G&S reporting level indicator]]","v":0},{"$f":"T_DataComboFile[[#This Row],[2019/20 Revised estimate_Source]]*T_DataComboFile[[#This Row],[G&S reporting level indicator]]","v":0},{"$f":"T_DataComboFile[[#This Row],[2019/20 Preliminary outcome_Source]]*T_DataComboFile[[#This Row],[G&S reporting level indicator]]","v":0},{"$f":"T_DataComboFile[[#This Row],[2020/21 Original_Source]]*T_DataComboFile[[#This Row],[G&S reporting level indicator]]","v":0},{"$f":"T_DataComboFile[[#This Row],[2020/21 SAB_Source]]*T_DataComboFile[[#This Row],[G&S reporting level indicator]]","v":0},{"$f":"T_DataComboFile[[#This Row],[2020/21 Baseline_Source]]*T_DataComboFile[[#This Row],[G&S reporting level indicator]]","v":0},{"$f":"T_DataComboFile[[#This Row],[2021/22 Baseline_Source]]*T_DataComboFile[[#This Row],[G&S reporting level indicator]]","v":0},{"$f":"T_DataComboFile[[#This Row],[2022/23 Baseline_Source]]*T_DataComboFile[[#This Row],[G&S reporting level indicator]]","v":0},{"$f":"T_DataComboFile[[#This Row],[2023/24 Baseline_Source]]*T_DataComboFile[[#This Row],[G&S reporting level indicator]]","v":0},null,null,null,null,null,null,{"$f":"T_DataComboFile[[#This Row],[2021/22 Baseline]]+T_DataComboFile[[#This Row],[2021/22 Reduction]]+T_DataComboFile[[#This Row],[2021/22 Increase]]","v":0},{"$f":"T_DataComboFile[[#This Row],[2022/23 Baseline]]+T_DataComboFile[[#This Row],[2022/23 Reduction]]+T_DataComboFile[[#This Row],[2022/23 Increase]]","v":0},{"$f":"T_DataComboFile[[#This Row],[2023/24 Baseline]]+T_DataComboFile[[#This Row],[2023/24 Reduction]]+T_DataComboFile[[#This Row],[2023/24 Increase]]","v":0}]
[null,null,"2021_22","ENE2020",36,4,2,null,71114,36,4,2,null,"071114","36|04|02",1,1,2,29,29,"01|01|02|29|29","National","Small Business Development","Enterprise Development and Entrepreneurship","SMMEs Programme Design and Support",null,"Current","Current payments","Goods and services","Medsas inventory interface","Medsas inventory interface",null,null,null,0,0,0,0,0,0,0,0,0,0,0,0,0,0,null,{"$f":"IF(T_DataComboFile[[#This Row],[G&S reporting level indicator]]=1,$AX$16,\"Not applicable\")","v":"Not applicable"},{"$f":"IF(AND($AX$16=\"Level 3\",T_DataComboFile[[#This Row],[Econ3]] = \"Goods and services\"),IF(T_DataComboFile[[#This Row],[Econ4]] = T_DataComboFile[[#This Row],[Econ3]],1,0),IF(AND($AX$16=\"Level 4\",T_DataComboFile[[#This Row],[Econ4]] = \"Goods and services\"),0,1))","v":0},{"$f":"T_DataComboFile[[#This Row],[2016/17_Source]]*T_DataComboFile[[#This Row],[G&S reporting level indicator]]","v":0},{"$f":"T_DataComboFile[[#This Row],[2017/18_Source]]*T_DataComboFile[[#This Row],[G&S reporting level indicator]]","v":0},{"$f":"T_DataComboFile[[#This Row],[2018/19_Source]]*T_DataComboFile[[#This Row],[G&S reporting level indicator]]","v":0},{"$f":"T_DataComboFile[[#This Row],[2019/20 Main appropriation_Source]]*T_DataComboFile[[#This Row],[G&S reporting level indicator]]","v":0},{"$f":"T_DataComboFile[[#This Row],[2019/20 Adjusted appropriation_Source]]*T_DataComboFile[[#This Row],[G&S reporting level indicator]]","v":0},{"$f":"T_DataComboFile[[#This Row],[2019/20 Revised estimate_Source]]*T_DataComboFile[[#This Row],[G&S reporting level indicator]]","v":0},{"$f":"T_DataComboFile[[#This Row],[2019/20 Preliminary outcome_Source]]*T_DataComboFile[[#This Row],[G&S reporting level indicator]]","v":0},{"$f":"T_DataComboFile[[#This Row],[2020/21 Original_Source]]*T_DataComboFile[[#This Row],[G&S reporting level indicator]]","v":0},{"$f":"T_DataComboFile[[#This Row],[2020/21 SAB_Source]]*T_DataComboFile[[#This Row],[G&S reporting level indicator]]","v":0},{"$f":"T_DataComboFile[[#This Row],[2020/21 Baseline_Source]]*T_DataComboFile[[#This Row],[G&S reporting level indicator]]","v":0},{"$f":"T_DataComboFile[[#This Row],[2021/22 Baseline_Source]]*T_DataComboFile[[#This Row],[G&S reporting level indicator]]","v":0},{"$f":"T_DataComboFile[[#This Row],[2022/23 Baseline_Source]]*T_DataComboFile[[#This Row],[G&S reporting level indicator]]","v":0},{"$f":"T_DataComboFile[[#This Row],[2023/24 Baseline_Source]]*T_DataComboFile[[#This Row],[G&S reporting level indicator]]","v":0},null,null,null,null,null,null,{"$f":"T_DataComboFile[[#This Row],[2021/22 Baseline]]+T_DataComboFile[[#This Row],[2021/22 Reduction]]+T_DataComboFile[[#This Row],[2021/22 Increase]]","v":0},{"$f":"T_DataComboFile[[#This Row],[2022/23 Baseline]]+T_DataComboFile[[#This Row],[2022/23 Reduction]]+T_DataComboFile[[#This Row],[2022/23 Increase]]","v":0},{"$f":"T_DataComboFile[[#This Row],[2023/24 Baseline]]+T_DataComboFile[[#This Row],[2023/24 Reduction]]+T_DataComboFile[[#This Row],[2023/24 Increase]]","v":0}]
[null,null,"2021_22","ENE2020",36,4,2,null,71115,36,4,2,null,"071115","36|04|02",1,1,2,30,30,"01|01|02|30|30","National","Small Business Development","Enterprise Development and Entrepreneurship","SMMEs Programme Design and Support",null,"Current","Current payments","Goods and services","Inventory: Other supplies","Inventory: Other supplies",null,null,null,0,0,0,0,0,0,0,0,0,0,0,0,0,0,null,{"$f":"IF(T_DataComboFile[[#This Row],[G&S reporting level indicator]]=1,$AX$16,\"Not applicable\")","v":"Not applicable"},{"$f":"IF(AND($AX$16=\"Level 3\",T_DataComboFile[[#This Row],[Econ3]] = \"Goods and services\"),IF(T_DataComboFile[[#This Row],[Econ4]] = T_DataComboFile[[#This Row],[Econ3]],1,0),IF(AND($AX$16=\"Level 4\",T_DataComboFile[[#This Row],[Econ4]] = \"Goods and services\"),0,1))","v":0},{"$f":"T_DataComboFile[[#This Row],[2016/17_Source]]*T_DataComboFile[[#This Row],[G&S reporting level indicator]]","v":0},{"$f":"T_DataComboFile[[#This Row],[2017/18_Source]]*T_DataComboFile[[#This Row],[G&S reporting level indicator]]","v":0},{"$f":"T_DataComboFile[[#This Row],[2018/19_Source]]*T_DataComboFile[[#This Row],[G&S reporting level indicator]]","v":0},{"$f":"T_DataComboFile[[#This Row],[2019/20 Main appropriation_Source]]*T_DataComboFile[[#This Row],[G&S reporting level indicator]]","v":0},{"$f":"T_DataComboFile[[#This Row],[2019/20 Adjusted appropriation_Source]]*T_DataComboFile[[#This Row],[G&S reporting level indicator]]","v":0},{"$f":"T_DataComboFile[[#This Row],[2019/20 Revised estimate_Source]]*T_DataComboFile[[#This Row],[G&S reporting level indicator]]","v":0},{"$f":"T_DataComboFile[[#This Row],[2019/20 Preliminary outcome_Source]]*T_DataComboFile[[#This Row],[G&S reporting level indicator]]","v":0},{"$f":"T_DataComboFile[[#This Row],[2020/21 Original_Source]]*T_DataComboFile[[#This Row],[G&S reporting level indicator]]","v":0},{"$f":"T_DataComboFile[[#This Row],[2020/21 SAB_Source]]*T_DataComboFile[[#This Row],[G&S reporting level indicator]]","v":0},{"$f":"T_DataComboFile[[#This Row],[2020/21 Baseline_Source]]*T_DataComboFile[[#This Row],[G&S reporting level indicator]]","v":0},{"$f":"T_DataComboFile[[#This Row],[2021/22 Baseline_Source]]*T_DataComboFile[[#This Row],[G&S reporting level indicator]]","v":0},{"$f":"T_DataComboFile[[#This Row],[2022/23 Baseline_Source]]*T_DataComboFile[[#This Row],[G&S reporting level indicator]]","v":0},{"$f":"T_DataComboFile[[#This Row],[2023/24 Baseline_Source]]*T_DataComboFile[[#This Row],[G&S reporting level indicator]]","v":0},null,null,null,null,null,null,{"$f":"T_DataComboFile[[#This Row],[2021/22 Baseline]]+T_DataComboFile[[#This Row],[2021/22 Reduction]]+T_DataComboFile[[#This Row],[2021/22 Increase]]","v":0},{"$f":"T_DataComboFile[[#This Row],[2022/23 Baseline]]+T_DataComboFile[[#This Row],[2022/23 Reduction]]+T_DataComboFile[[#This Row],[2022/23 Increase]]","v":0},{"$f":"T_DataComboFile[[#This Row],[2023/24 Baseline]]+T_DataComboFile[[#This Row],[2023/24 Reduction]]+T_DataComboFile[[#This Row],[2023/24 Increase]]","v":0}]
["NAT|Non-transfer item","36|Consumable supplies","2021_22","ENE2020",36,4,2,17423,71116,36,4,2,17423,"071116","36|04|02",1,1,2,31,31,"01|01|02|31|31","National","Small Business Development","Enterprise Development and Entrepreneurship","SMMEs Programme Design and Support","Non-transfer item","Current","Current payments","Goods and services","Consumable supplies","Consumable supplies","Economic development","Industrialisation and exports","NAT",1,1,16,24,26,26,26,0,0,0,0,0,0,1,null,{"$f":"IF(T_DataComboFile[[#This Row],[G&S reporting level indicator]]=1,$AX$16,\"Not applicable\")","v":"Not applicable"},{"$f":"IF(AND($AX$16=\"Level 3\",T_DataComboFile[[#This Row],[Econ3]] = \"Goods and services\"),IF(T_DataComboFile[[#This Row],[Econ4]] = T_DataComboFile[[#This Row],[Econ3]],1,0),IF(AND($AX$16=\"Level 4\",T_DataComboFile[[#This Row],[Econ4]] = \"Goods and services\"),0,1))","v":0},{"$f":"T_DataComboFile[[#This Row],[2016/17_Source]]*T_DataComboFile[[#This Row],[G&S reporting level indicator]]","v":0},{"$f":"T_DataComboFile[[#This Row],[2017/18_Source]]*T_DataComboFile[[#This Row],[G&S reporting level indicator]]","v":0},{"$f":"T_DataComboFile[[#This Row],[2018/19_Source]]*T_DataComboFile[[#This Row],[G&S reporting level indicator]]","v":0},{"$f":"T_DataComboFile[[#This Row],[2019/20 Main appropriation_Source]]*T_DataComboFile[[#This Row],[G&S reporting level indicator]]","v":0},{"$f":"T_DataComboFile[[#This Row],[2019/20 Adjusted appropriation_Source]]*T_DataComboFile[[#This Row],[G&S reporting level indicator]]","v":0},{"$f":"T_DataComboFile[[#This Row],[2019/20 Revised estimate_Source]]*T_DataComboFile[[#This Row],[G&S reporting level indicator]]","v":0},{"$f":"T_DataComboFile[[#This Row],[2019/20 Preliminary outcome_Source]]*T_DataComboFile[[#This Row],[G&S reporting level indicator]]","v":0},{"$f":"T_DataComboFile[[#This Row],[2020/21 Original_Source]]*T_DataComboFile[[#This Row],[G&S reporting level indicator]]","v":0},{"$f":"T_DataComboFile[[#This Row],[2020/21 SAB_Source]]*T_DataComboFile[[#This Row],[G&S reporting level indicator]]","v":0},{"$f":"T_DataComboFile[[#This Row],[2020/21 Baseline_Source]]*T_DataComboFile[[#This Row],[G&S reporting level indicator]]","v":0},{"$f":"T_DataComboFile[[#This Row],[2021/22 Baseline_Source]]*T_DataComboFile[[#This Row],[G&S reporting level indicator]]","v":0},{"$f":"T_DataComboFile[[#This Row],[2022/23 Baseline_Source]]*T_DataComboFile[[#This Row],[G&S reporting level indicator]]","v":0},{"$f":"T_DataComboFile[[#This Row],[2023/24 Baseline_Source]]*T_DataComboFile[[#This Row],[G&S reporting level indicator]]","v":0},null,null,null,null,null,null,{"$f":"T_DataComboFile[[#This Row],[2021/22 Baseline]]+T_DataComboFile[[#This Row],[2021/22 Reduction]]+T_DataComboFile[[#This Row],[2021/22 Increase]]","v":0},{"$f":"T_DataComboFile[[#This Row],[2022/23 Baseline]]+T_DataComboFile[[#This Row],[2022/23 Reduction]]+T_DataComboFile[[#This Row],[2022/23 Increase]]","v":0},{"$f":"T_DataComboFile[[#This Row],[2023/24 Baseline]]+T_DataComboFile[[#This Row],[2023/24 Reduction]]+T_DataComboFile[[#This Row],[2023/24 Increase]]","v":0}]
["NAT|Non-transfer item","36|Consumables: Stationery, printing and office supplies","2021_22","ENE2020",36,4,2,17424,71117,36,4,2,17424,"071117","36|04|02",1,1,2,32,32,"01|01|02|32|32","National","Small Business Development","Enterprise Development and Entrepreneurship","SMMEs Programme Design and Support","Non-transfer item","Current","Current payments","Goods and services","Consumables: Stationery, printing and office supplies","Consumables: Stationery, printing and office supplies","Economic development","Industrialisation and exports","NAT",194,98,30,51,51,51,51,19,19,19,21,23,24,1,null,{"$f":"IF(T_DataComboFile[[#This Row],[G&S reporting level indicator]]=1,$AX$16,\"Not applicable\")","v":"Not applicable"},{"$f":"IF(AND($AX$16=\"Level 3\",T_DataComboFile[[#This Row],[Econ3]] = \"Goods and services\"),IF(T_DataComboFile[[#This Row],[Econ4]] = T_DataComboFile[[#This Row],[Econ3]],1,0),IF(AND($AX$16=\"Level 4\",T_DataComboFile[[#This Row],[Econ4]] = \"Goods and services\"),0,1))","v":0},{"$f":"T_DataComboFile[[#This Row],[2016/17_Source]]*T_DataComboFile[[#This Row],[G&S reporting level indicator]]","v":0},{"$f":"T_DataComboFile[[#This Row],[2017/18_Source]]*T_DataComboFile[[#This Row],[G&S reporting level indicator]]","v":0},{"$f":"T_DataComboFile[[#This Row],[2018/19_Source]]*T_DataComboFile[[#This Row],[G&S reporting level indicator]]","v":0},{"$f":"T_DataComboFile[[#This Row],[2019/20 Main appropriation_Source]]*T_DataComboFile[[#This Row],[G&S reporting level indicator]]","v":0},{"$f":"T_DataComboFile[[#This Row],[2019/20 Adjusted appropriation_Source]]*T_DataComboFile[[#This Row],[G&S reporting level indicator]]","v":0},{"$f":"T_DataComboFile[[#This Row],[2019/20 Revised estimate_Source]]*T_DataComboFile[[#This Row],[G&S reporting level indicator]]","v":0},{"$f":"T_DataComboFile[[#This Row],[2019/20 Preliminary outcome_Source]]*T_DataComboFile[[#This Row],[G&S reporting level indicator]]","v":0},{"$f":"T_DataComboFile[[#This Row],[2020/21 Original_Source]]*T_DataComboFile[[#This Row],[G&S reporting level indicator]]","v":0},{"$f":"T_DataComboFile[[#This Row],[2020/21 SAB_Source]]*T_DataComboFile[[#This Row],[G&S reporting level indicator]]","v":0},{"$f":"T_DataComboFile[[#This Row],[2020/21 Baseline_Source]]*T_DataComboFile[[#This Row],[G&S reporting level indicator]]","v":0},{"$f":"T_DataComboFile[[#This Row],[2021/22 Baseline_Source]]*T_DataComboFile[[#This Row],[G&S reporting level indicator]]","v":0},{"$f":"T_DataComboFile[[#This Row],[2022/23 Baseline_Source]]*T_DataComboFile[[#This Row],[G&S reporting level indicator]]","v":0},{"$f":"T_DataComboFile[[#This Row],[2023/24 Baseline_Source]]*T_DataComboFile[[#This Row],[G&S reporting level indicator]]","v":0},null,null,null,null,null,null,{"$f":"T_DataComboFile[[#This Row],[2021/22 Baseline]]+T_DataComboFile[[#This Row],[2021/22 Reduction]]+T_DataComboFile[[#This Row],[2021/22 Increase]]","v":0},{"$f":"T_DataComboFile[[#This Row],[2022/23 Baseline]]+T_DataComboFile[[#This Row],[2022/23 Reduction]]+T_DataComboFile[[#This Row],[2022/23 Increase]]","v":0},{"$f":"T_DataComboFile[[#This Row],[2023/24 Baseline]]+T_DataComboFile[[#This Row],[2023/24 Reduction]]+T_DataComboFile[[#This Row],[2023/24 Increase]]","v":0}]
["NAT|Non-transfer item","36|Operating leases","2021_22","ENE2020",36,4,2,17425,71118,36,4,2,17425,"071118","36|04|02",1,1,2,33,33,"01|01|02|33|33","National","Small Business Development","Enterprise Development and Entrepreneurship","SMMEs Programme Design and Support","Non-transfer item","Current","Current payments","Goods and services","Operating leases","Operating leases","Economic development","Industrialisation and exports","NAT",35,0,2,0,0,0,0,0,0,0,0,0,0,1,null,{"$f":"IF(T_DataComboFile[[#This Row],[G&S reporting level indicator]]=1,$AX$16,\"Not applicable\")","v":"Not applicable"},{"$f":"IF(AND($AX$16=\"Level 3\",T_DataComboFile[[#This Row],[Econ3]] = \"Goods and services\"),IF(T_DataComboFile[[#This Row],[Econ4]] = T_DataComboFile[[#This Row],[Econ3]],1,0),IF(AND($AX$16=\"Level 4\",T_DataComboFile[[#This Row],[Econ4]] = \"Goods and services\"),0,1))","v":0},{"$f":"T_DataComboFile[[#This Row],[2016/17_Source]]*T_DataComboFile[[#This Row],[G&S reporting level indicator]]","v":0},{"$f":"T_DataComboFile[[#This Row],[2017/18_Source]]*T_DataComboFile[[#This Row],[G&S reporting level indicator]]","v":0},{"$f":"T_DataComboFile[[#This Row],[2018/19_Source]]*T_DataComboFile[[#This Row],[G&S reporting level indicator]]","v":0},{"$f":"T_DataComboFile[[#This Row],[2019/20 Main appropriation_Source]]*T_DataComboFile[[#This Row],[G&S reporting level indicator]]","v":0},{"$f":"T_DataComboFile[[#This Row],[2019/20 Adjusted appropriation_Source]]*T_DataComboFile[[#This Row],[G&S reporting level indicator]]","v":0},{"$f":"T_DataComboFile[[#This Row],[2019/20 Revised estimate_Source]]*T_DataComboFile[[#This Row],[G&S reporting level indicator]]","v":0},{"$f":"T_DataComboFile[[#This Row],[2019/20 Preliminary outcome_Source]]*T_DataComboFile[[#This Row],[G&S reporting level indicator]]","v":0},{"$f":"T_DataComboFile[[#This Row],[2020/21 Original_Source]]*T_DataComboFile[[#This Row],[G&S reporting level indicator]]","v":0},{"$f":"T_DataComboFile[[#This Row],[2020/21 SAB_Source]]*T_DataComboFile[[#This Row],[G&S reporting level indicator]]","v":0},{"$f":"T_DataComboFile[[#This Row],[2020/21 Baseline_Source]]*T_DataComboFile[[#This Row],[G&S reporting level indicator]]","v":0},{"$f":"T_DataComboFile[[#This Row],[2021/22 Baseline_Source]]*T_DataComboFile[[#This Row],[G&S reporting level indicator]]","v":0},{"$f":"T_DataComboFile[[#This Row],[2022/23 Baseline_Source]]*T_DataComboFile[[#This Row],[G&S reporting level indicator]]","v":0},{"$f":"T_DataComboFile[[#This Row],[2023/24 Baseline_Source]]*T_DataComboFile[[#This Row],[G&S reporting level indicator]]","v":0},null,null,null,null,null,null,{"$f":"T_DataComboFile[[#This Row],[2021/22 Baseline]]+T_DataComboFile[[#This Row],[2021/22 Reduction]]+T_DataComboFile[[#This Row],[2021/22 Increase]]","v":0},{"$f":"T_DataComboFile[[#This Row],[2022/23 Baseline]]+T_DataComboFile[[#This Row],[2022/23 Reduction]]+T_DataComboFile[[#This Row],[2022/23 Increase]]","v":0},{"$f":"T_DataComboFile[[#This Row],[2023/24 Baseline]]+T_DataComboFile[[#This Row],[2023/24 Reduction]]+T_DataComboFile[[#This Row],[2023/24 Increase]]","v":0}]
["NAT|Non-transfer item","36|Rental and hiring","2021_22","ENE2020",36,4,2,17426,71119,36,4,2,17426,"071119","36|04|02",1,1,2,34,34,"01|01|02|34|34","National","Small Business Development","Enterprise Development and Entrepreneurship","SMMEs Programme Design and Support","Non-transfer item","Current","Current payments","Goods and services","Rental and hiring","Rental and hiring","Economic development","Industrialisation and exports","NAT",0,0,88,0,0,0,0,0,0,0,0,0,0,1,null,{"$f":"IF(T_DataComboFile[[#This Row],[G&S reporting level indicator]]=1,$AX$16,\"Not applicable\")","v":"Not applicable"},{"$f":"IF(AND($AX$16=\"Level 3\",T_DataComboFile[[#This Row],[Econ3]] = \"Goods and services\"),IF(T_DataComboFile[[#This Row],[Econ4]] = T_DataComboFile[[#This Row],[Econ3]],1,0),IF(AND($AX$16=\"Level 4\",T_DataComboFile[[#This Row],[Econ4]] = \"Goods and services\"),0,1))","v":0},{"$f":"T_DataComboFile[[#This Row],[2016/17_Source]]*T_DataComboFile[[#This Row],[G&S reporting level indicator]]","v":0},{"$f":"T_DataComboFile[[#This Row],[2017/18_Source]]*T_DataComboFile[[#This Row],[G&S reporting level indicator]]","v":0},{"$f":"T_DataComboFile[[#This Row],[2018/19_Source]]*T_DataComboFile[[#This Row],[G&S reporting level indicator]]","v":0},{"$f":"T_DataComboFile[[#This Row],[2019/20 Main appropriation_Source]]*T_DataComboFile[[#This Row],[G&S reporting level indicator]]","v":0},{"$f":"T_DataComboFile[[#This Row],[2019/20 Adjusted appropriation_Source]]*T_DataComboFile[[#This Row],[G&S reporting level indicator]]","v":0},{"$f":"T_DataComboFile[[#This Row],[2019/20 Revised estimate_Source]]*T_DataComboFile[[#This Row],[G&S reporting level indicator]]","v":0},{"$f":"T_DataComboFile[[#This Row],[2019/20 Preliminary outcome_Source]]*T_DataComboFile[[#This Row],[G&S reporting level indicator]]","v":0},{"$f":"T_DataComboFile[[#This Row],[2020/21 Original_Source]]*T_DataComboFile[[#This Row],[G&S reporting level indicator]]","v":0},{"$f":"T_DataComboFile[[#This Row],[2020/21 SAB_Source]]*T_DataComboFile[[#This Row],[G&S reporting level indicator]]","v":0},{"$f":"T_DataComboFile[[#This Row],[2020/21 Baseline_Source]]*T_DataComboFile[[#This Row],[G&S reporting level indicator]]","v":0},{"$f":"T_DataComboFile[[#This Row],[2021/22 Baseline_Source]]*T_DataComboFile[[#This Row],[G&S reporting level indicator]]","v":0},{"$f":"T_DataComboFile[[#This Row],[2022/23 Baseline_Source]]*T_DataComboFile[[#This Row],[G&S reporting level indicator]]","v":0},{"$f":"T_DataComboFile[[#This Row],[2023/24 Baseline_Source]]*T_DataComboFile[[#This Row],[G&S reporting level indicator]]","v":0},null,null,null,null,null,null,{"$f":"T_DataComboFile[[#This Row],[2021/22 Baseline]]+T_DataComboFile[[#This Row],[2021/22 Reduction]]+T_DataComboFile[[#This Row],[2021/22 Increase]]","v":0},{"$f":"T_DataComboFile[[#This Row],[2022/23 Baseline]]+T_DataComboFile[[#This Row],[2022/23 Reduction]]+T_DataComboFile[[#This Row],[2022/23 Increase]]","v":0},{"$f":"T_DataComboFile[[#This Row],[2023/24 Baseline]]+T_DataComboFile[[#This Row],[2023/24 Reduction]]+T_DataComboFile[[#This Row],[2023/24 Increase]]","v":0}]
[null,null,"2021_22","ENE2020",36,4,2,null,71120,36,4,2,null,"071120","36|04|02",1,1,2,35,35,"01|01|02|35|35","National","Small Business Development","Enterprise Development and Entrepreneurship","SMMEs Programme Design and Support",null,"Current","Current payments","Goods and services","Property payments","Property payments",null,null,null,0,0,0,0,0,0,0,0,0,0,0,0,0,0,null,{"$f":"IF(T_DataComboFile[[#This Row],[G&S reporting level indicator]]=1,$AX$16,\"Not applicable\")","v":"Not applicable"},{"$f":"IF(AND($AX$16=\"Level 3\",T_DataComboFile[[#This Row],[Econ3]] = \"Goods and services\"),IF(T_DataComboFile[[#This Row],[Econ4]] = T_DataComboFile[[#This Row],[Econ3]],1,0),IF(AND($AX$16=\"Level 4\",T_DataComboFile[[#This Row],[Econ4]] = \"Goods and services\"),0,1))","v":0},{"$f":"T_DataComboFile[[#This Row],[2016/17_Source]]*T_DataComboFile[[#This Row],[G&S reporting level indicator]]","v":0},{"$f":"T_DataComboFile[[#This Row],[2017/18_Source]]*T_DataComboFile[[#This Row],[G&S reporting level indicator]]","v":0},{"$f":"T_DataComboFile[[#This Row],[2018/19_Source]]*T_DataComboFile[[#This Row],[G&S reporting level indicator]]","v":0},{"$f":"T_DataComboFile[[#This Row],[2019/20 Main appropriation_Source]]*T_DataComboFile[[#This Row],[G&S reporting level indicator]]","v":0},{"$f":"T_DataComboFile[[#This Row],[2019/20 Adjusted appropriation_Source]]*T_DataComboFile[[#This Row],[G&S reporting level indicator]]","v":0},{"$f":"T_DataComboFile[[#This Row],[2019/20 Revised estimate_Source]]*T_DataComboFile[[#This Row],[G&S reporting level indicator]]","v":0},{"$f":"T_DataComboFile[[#This Row],[2019/20 Preliminary outcome_Source]]*T_DataComboFile[[#This Row],[G&S reporting level indicator]]","v":0},{"$f":"T_DataComboFile[[#This Row],[2020/21 Original_Source]]*T_DataComboFile[[#This Row],[G&S reporting level indicator]]","v":0},{"$f":"T_DataComboFile[[#This Row],[2020/21 SAB_Source]]*T_DataComboFile[[#This Row],[G&S reporting level indicator]]","v":0},{"$f":"T_DataComboFile[[#This Row],[2020/21 Baseline_Source]]*T_DataComboFile[[#This Row],[G&S reporting level indicator]]","v":0},{"$f":"T_DataComboFile[[#This Row],[2021/22 Baseline_Source]]*T_DataComboFile[[#This Row],[G&S reporting level indicator]]","v":0},{"$f":"T_DataComboFile[[#This Row],[2022/23 Baseline_Source]]*T_DataComboFile[[#This Row],[G&S reporting level indicator]]","v":0},{"$f":"T_DataComboFile[[#This Row],[2023/24 Baseline_Source]]*T_DataComboFile[[#This Row],[G&S reporting level indicator]]","v":0},null,null,null,null,null,null,{"$f":"T_DataComboFile[[#This Row],[2021/22 Baseline]]+T_DataComboFile[[#This Row],[2021/22 Reduction]]+T_DataComboFile[[#This Row],[2021/22 Increase]]","v":0},{"$f":"T_DataComboFile[[#This Row],[2022/23 Baseline]]+T_DataComboFile[[#This Row],[2022/23 Reduction]]+T_DataComboFile[[#This Row],[2022/23 Increase]]","v":0},{"$f":"T_DataComboFile[[#This Row],[2023/24 Baseline]]+T_DataComboFile[[#This Row],[2023/24 Reduction]]+T_DataComboFile[[#This Row],[2023/24 Increase]]","v":0}]
[null,null,"2021_22","ENE2020",36,4,2,null,71121,36,4,2,null,"071121","36|04|02",1,1,2,36,36,"01|01|02|36|36","National","Small Business Development","Enterprise Development and Entrepreneurship","SMMEs Programme Design and Support",null,"Current","Current payments","Goods and services","Transport provided: Departmental activity","Transport provided: Departmental activity",null,null,null,0,0,0,0,0,0,0,0,0,0,0,0,0,0,null,{"$f":"IF(T_DataComboFile[[#This Row],[G&S reporting level indicator]]=1,$AX$16,\"Not applicable\")","v":"Not applicable"},{"$f":"IF(AND($AX$16=\"Level 3\",T_DataComboFile[[#This Row],[Econ3]] = \"Goods and services\"),IF(T_DataComboFile[[#This Row],[Econ4]] = T_DataComboFile[[#This Row],[Econ3]],1,0),IF(AND($AX$16=\"Level 4\",T_DataComboFile[[#This Row],[Econ4]] = \"Goods and services\"),0,1))","v":0},{"$f":"T_DataComboFile[[#This Row],[2016/17_Source]]*T_DataComboFile[[#This Row],[G&S reporting level indicator]]","v":0},{"$f":"T_DataComboFile[[#This Row],[2017/18_Source]]*T_DataComboFile[[#This Row],[G&S reporting level indicator]]","v":0},{"$f":"T_DataComboFile[[#This Row],[2018/19_Source]]*T_DataComboFile[[#This Row],[G&S reporting level indicator]]","v":0},{"$f":"T_DataComboFile[[#This Row],[2019/20 Main appropriation_Source]]*T_DataComboFile[[#This Row],[G&S reporting level indicator]]","v":0},{"$f":"T_DataComboFile[[#This Row],[2019/20 Adjusted appropriation_Source]]*T_DataComboFile[[#This Row],[G&S reporting level indicator]]","v":0},{"$f":"T_DataComboFile[[#This Row],[2019/20 Revised estimate_Source]]*T_DataComboFile[[#This Row],[G&S reporting level indicator]]","v":0},{"$f":"T_DataComboFile[[#This Row],[2019/20 Preliminary outcome_Source]]*T_DataComboFile[[#This Row],[G&S reporting level indicator]]","v":0},{"$f":"T_DataComboFile[[#This Row],[2020/21 Original_Source]]*T_DataComboFile[[#This Row],[G&S reporting level indicator]]","v":0},{"$f":"T_DataComboFile[[#This Row],[2020/21 SAB_Source]]*T_DataComboFile[[#This Row],[G&S reporting level indicator]]","v":0},{"$f":"T_DataComboFile[[#This Row],[2020/21 Baseline_Source]]*T_DataComboFile[[#This Row],[G&S reporting level indicator]]","v":0},{"$f":"T_DataComboFile[[#This Row],[2021/22 Baseline_Source]]*T_DataComboFile[[#This Row],[G&S reporting level indicator]]","v":0},{"$f":"T_DataComboFile[[#This Row],[2022/23 Baseline_Source]]*T_DataComboFile[[#This Row],[G&S reporting level indicator]]","v":0},{"$f":"T_DataComboFile[[#This Row],[2023/24 Baseline_Source]]*T_DataComboFile[[#This Row],[G&S reporting level indicator]]","v":0},null,null,null,null,null,null,{"$f":"T_DataComboFile[[#This Row],[2021/22 Baseline]]+T_DataComboFile[[#This Row],[2021/22 Reduction]]+T_DataComboFile[[#This Row],[2021/22 Increase]]","v":0},{"$f":"T_DataComboFile[[#This Row],[2022/23 Baseline]]+T_DataComboFile[[#This Row],[2022/23 Reduction]]+T_DataComboFile[[#This Row],[2022/23 Increase]]","v":0},{"$f":"T_DataComboFile[[#This Row],[2023/24 Baseline]]+T_DataComboFile[[#This Row],[2023/24 Reduction]]+T_DataComboFile[[#This Row],[2023/24 Increase]]","v":0}]
["NAT|Non-transfer item","36|Travel and subsistence","2021_22","ENE2020",36,4,2,17427,71122,36,4,2,17427,"071122","36|04|02",1,1,2,37,37,"01|01|02|37|37","National","Small Business Development","Enterprise Development and Entrepreneurship","SMMEs Programme Design and Support","Non-transfer item","Current","Current payments","Goods and services","Travel and subsistence","Travel and subsistence","Economic development","Industrialisation and exports","NAT",1343,1122,2176,1846,1846,1846,1846,2123,623,2123,2166,2255,2354,1,null,{"$f":"IF(T_DataComboFile[[#This Row],[G&S reporting level indicator]]=1,$AX$16,\"Not applicable\")","v":"Not applicable"},{"$f":"IF(AND($AX$16=\"Level 3\",T_DataComboFile[[#This Row],[Econ3]] = \"Goods and services\"),IF(T_DataComboFile[[#This Row],[Econ4]] = T_DataComboFile[[#This Row],[Econ3]],1,0),IF(AND($AX$16=\"Level 4\",T_DataComboFile[[#This Row],[Econ4]] = \"Goods and services\"),0,1))","v":0},{"$f":"T_DataComboFile[[#This Row],[2016/17_Source]]*T_DataComboFile[[#This Row],[G&S reporting level indicator]]","v":0},{"$f":"T_DataComboFile[[#This Row],[2017/18_Source]]*T_DataComboFile[[#This Row],[G&S reporting level indicator]]","v":0},{"$f":"T_DataComboFile[[#This Row],[2018/19_Source]]*T_DataComboFile[[#This Row],[G&S reporting level indicator]]","v":0},{"$f":"T_DataComboFile[[#This Row],[2019/20 Main appropriation_Source]]*T_DataComboFile[[#This Row],[G&S reporting level indicator]]","v":0},{"$f":"T_DataComboFile[[#This Row],[2019/20 Adjusted appropriation_Source]]*T_DataComboFile[[#This Row],[G&S reporting level indicator]]","v":0},{"$f":"T_DataComboFile[[#This Row],[2019/20 Revised estimate_Source]]*T_DataComboFile[[#This Row],[G&S reporting level indicator]]","v":0},{"$f":"T_DataComboFile[[#This Row],[2019/20 Preliminary outcome_Source]]*T_DataComboFile[[#This Row],[G&S reporting level indicator]]","v":0},{"$f":"T_DataComboFile[[#This Row],[2020/21 Original_Source]]*T_DataComboFile[[#This Row],[G&S reporting level indicator]]","v":0},{"$f":"T_DataComboFile[[#This Row],[2020/21 SAB_Source]]*T_DataComboFile[[#This Row],[G&S reporting level indicator]]","v":0},{"$f":"T_DataComboFile[[#This Row],[2020/21 Baseline_Source]]*T_DataComboFile[[#This Row],[G&S reporting level indicator]]","v":0},{"$f":"T_DataComboFile[[#This Row],[2021/22 Baseline_Source]]*T_DataComboFile[[#This Row],[G&S reporting level indicator]]","v":0},{"$f":"T_DataComboFile[[#This Row],[2022/23 Baseline_Source]]*T_DataComboFile[[#This Row],[G&S reporting level indicator]]","v":0},{"$f":"T_DataComboFile[[#This Row],[2023/24 Baseline_Source]]*T_DataComboFile[[#This Row],[G&S reporting level indicator]]","v":0},null,null,null,null,null,null,{"$f":"T_DataComboFile[[#This Row],[2021/22 Baseline]]+T_DataComboFile[[#This Row],[2021/22 Reduction]]+T_DataComboFile[[#This Row],[2021/22 Increase]]","v":0},{"$f":"T_DataComboFile[[#This Row],[2022/23 Baseline]]+T_DataComboFile[[#This Row],[2022/23 Reduction]]+T_DataComboFile[[#This Row],[2022/23 Increase]]","v":0},{"$f":"T_DataComboFile[[#This Row],[2023/24 Baseline]]+T_DataComboFile[[#This Row],[2023/24 Reduction]]+T_DataComboFile[[#This Row],[2023/24 Increase]]","v":0}]
[null,null,"2021_22","ENE2020",36,4,2,null,71123,36,4,2,null,"071123","36|04|02",1,1,2,38,38,"01|01|02|38|38","National","Small Business Development","Enterprise Development and Entrepreneurship","SMMEs Programme Design and Support",null,"Current","Current payments","Goods and services","Training and development","Training and development",null,null,null,0,0,0,0,0,0,0,0,0,0,0,0,0,0,null,{"$f":"IF(T_DataComboFile[[#This Row],[G&S reporting level indicator]]=1,$AX$16,\"Not applicable\")","v":"Not applicable"},{"$f":"IF(AND($AX$16=\"Level 3\",T_DataComboFile[[#This Row],[Econ3]] = \"Goods and services\"),IF(T_DataComboFile[[#This Row],[Econ4]] = T_DataComboFile[[#This Row],[Econ3]],1,0),IF(AND($AX$16=\"Level 4\",T_DataComboFile[[#This Row],[Econ4]] = \"Goods and services\"),0,1))","v":0},{"$f":"T_DataComboFile[[#This Row],[2016/17_Source]]*T_DataComboFile[[#This Row],[G&S reporting level indicator]]","v":0},{"$f":"T_DataComboFile[[#This Row],[2017/18_Source]]*T_DataComboFile[[#This Row],[G&S reporting level indicator]]","v":0},{"$f":"T_DataComboFile[[#This Row],[2018/19_Source]]*T_DataComboFile[[#This Row],[G&S reporting level indicator]]","v":0},{"$f":"T_DataComboFile[[#This Row],[2019/20 Main appropriation_Source]]*T_DataComboFile[[#This Row],[G&S reporting level indicator]]","v":0},{"$f":"T_DataComboFile[[#This Row],[2019/20 Adjusted appropriation_Source]]*T_DataComboFile[[#This Row],[G&S reporting level indicator]]","v":0},{"$f":"T_DataComboFile[[#This Row],[2019/20 Revised estimate_Source]]*T_DataComboFile[[#This Row],[G&S reporting level indicator]]","v":0},{"$f":"T_DataComboFile[[#This Row],[2019/20 Preliminary outcome_Source]]*T_DataComboFile[[#This Row],[G&S reporting level indicator]]","v":0},{"$f":"T_DataComboFile[[#This Row],[2020/21 Original_Source]]*T_DataComboFile[[#This Row],[G&S reporting level indicator]]","v":0},{"$f":"T_DataComboFile[[#This Row],[2020/21 SAB_Source]]*T_DataComboFile[[#This Row],[G&S reporting level indicator]]","v":0},{"$f":"T_DataComboFile[[#This Row],[2020/21 Baseline_Source]]*T_DataComboFile[[#This Row],[G&S reporting level indicator]]","v":0},{"$f":"T_DataComboFile[[#This Row],[2021/22 Baseline_Source]]*T_DataComboFile[[#This Row],[G&S reporting level indicator]]","v":0},{"$f":"T_DataComboFile[[#This Row],[2022/23 Baseline_Source]]*T_DataComboFile[[#This Row],[G&S reporting level indicator]]","v":0},{"$f":"T_DataComboFile[[#This Row],[2023/24 Baseline_Source]]*T_DataComboFile[[#This Row],[G&S reporting level indicator]]","v":0},null,null,null,null,null,null,{"$f":"T_DataComboFile[[#This Row],[2021/22 Baseline]]+T_DataComboFile[[#This Row],[2021/22 Reduction]]+T_DataComboFile[[#This Row],[2021/22 Increase]]","v":0},{"$f":"T_DataComboFile[[#This Row],[2022/23 Baseline]]+T_DataComboFile[[#This Row],[2022/23 Reduction]]+T_DataComboFile[[#This Row],[2022/23 Increase]]","v":0},{"$f":"T_DataComboFile[[#This Row],[2023/24 Baseline]]+T_DataComboFile[[#This Row],[2023/24 Reduction]]+T_DataComboFile[[#This Row],[2023/24 Increase]]","v":0}]
["NAT|Non-transfer item","36|Operating payments","2021_22","ENE2020",36,4,2,17428,71124,36,4,2,17428,"071124","36|04|02",1,1,2,39,39,"01|01|02|39|39","National","Small Business Development","Enterprise Development and Entrepreneurship","SMMEs Programme Design and Support","Non-transfer item","Current","Current payments","Goods and services","Operating payments","Operating payments","Economic development","Industrialisation and exports","NAT",0,1,0,13,13,13,13,0,0,0,0,0,0,1,null,{"$f":"IF(T_DataComboFile[[#This Row],[G&S reporting level indicator]]=1,$AX$16,\"Not applicable\")","v":"Not applicable"},{"$f":"IF(AND($AX$16=\"Level 3\",T_DataComboFile[[#This Row],[Econ3]] = \"Goods and services\"),IF(T_DataComboFile[[#This Row],[Econ4]] = T_DataComboFile[[#This Row],[Econ3]],1,0),IF(AND($AX$16=\"Level 4\",T_DataComboFile[[#This Row],[Econ4]] = \"Goods and services\"),0,1))","v":0},{"$f":"T_DataComboFile[[#This Row],[2016/17_Source]]*T_DataComboFile[[#This Row],[G&S reporting level indicator]]","v":0},{"$f":"T_DataComboFile[[#This Row],[2017/18_Source]]*T_DataComboFile[[#This Row],[G&S reporting level indicator]]","v":0},{"$f":"T_DataComboFile[[#This Row],[2018/19_Source]]*T_DataComboFile[[#This Row],[G&S reporting level indicator]]","v":0},{"$f":"T_DataComboFile[[#This Row],[2019/20 Main appropriation_Source]]*T_DataComboFile[[#This Row],[G&S reporting level indicator]]","v":0},{"$f":"T_DataComboFile[[#This Row],[2019/20 Adjusted appropriation_Source]]*T_DataComboFile[[#This Row],[G&S reporting level indicator]]","v":0},{"$f":"T_DataComboFile[[#This Row],[2019/20 Revised estimate_Source]]*T_DataComboFile[[#This Row],[G&S reporting level indicator]]","v":0},{"$f":"T_DataComboFile[[#This Row],[2019/20 Preliminary outcome_Source]]*T_DataComboFile[[#This Row],[G&S reporting level indicator]]","v":0},{"$f":"T_DataComboFile[[#This Row],[2020/21 Original_Source]]*T_DataComboFile[[#This Row],[G&S reporting level indicator]]","v":0},{"$f":"T_DataComboFile[[#This Row],[2020/21 SAB_Source]]*T_DataComboFile[[#This Row],[G&S reporting level indicator]]","v":0},{"$f":"T_DataComboFile[[#This Row],[2020/21 Baseline_Source]]*T_DataComboFile[[#This Row],[G&S reporting level indicator]]","v":0},{"$f":"T_DataComboFile[[#This Row],[2021/22 Baseline_Source]]*T_DataComboFile[[#This Row],[G&S reporting level indicator]]","v":0},{"$f":"T_DataComboFile[[#This Row],[2022/23 Baseline_Source]]*T_DataComboFile[[#This Row],[G&S reporting level indicator]]","v":0},{"$f":"T_DataComboFile[[#This Row],[2023/24 Baseline_Source]]*T_DataComboFile[[#This Row],[G&S reporting level indicator]]","v":0},null,null,null,null,null,null,{"$f":"T_DataComboFile[[#This Row],[2021/22 Baseline]]+T_DataComboFile[[#This Row],[2021/22 Reduction]]+T_DataComboFile[[#This Row],[2021/22 Increase]]","v":0},{"$f":"T_DataComboFile[[#This Row],[2022/23 Baseline]]+T_DataComboFile[[#This Row],[2022/23 Reduction]]+T_DataComboFile[[#This Row],[2022/23 Increase]]","v":0},{"$f":"T_DataComboFile[[#This Row],[2023/24 Baseline]]+T_DataComboFile[[#This Row],[2023/24 Reduction]]+T_DataComboFile[[#This Row],[2023/24 Increase]]","v":0}]
["NAT|Non-transfer item","36|Venues and facilities","2021_22","ENE2020",36,4,2,17429,71125,36,4,2,17429,"071125","36|04|02",1,1,2,40,40,"01|01|02|40|40","National","Small Business Development","Enterprise Development and Entrepreneurship","SMMEs Programme Design and Support","Non-transfer item","Current","Current payments","Goods and services","Venues and facilities","Venues and facilities","Economic development","Industrialisation and exports","NAT",0,43,69,0,0,0,0,0,0,0,0,0,0,1,null,{"$f":"IF(T_DataComboFile[[#This Row],[G&S reporting level indicator]]=1,$AX$16,\"Not applicable\")","v":"Not applicable"},{"$f":"IF(AND($AX$16=\"Level 3\",T_DataComboFile[[#This Row],[Econ3]] = \"Goods and services\"),IF(T_DataComboFile[[#This Row],[Econ4]] = T_DataComboFile[[#This Row],[Econ3]],1,0),IF(AND($AX$16=\"Level 4\",T_DataComboFile[[#This Row],[Econ4]] = \"Goods and services\"),0,1))","v":0},{"$f":"T_DataComboFile[[#This Row],[2016/17_Source]]*T_DataComboFile[[#This Row],[G&S reporting level indicator]]","v":0},{"$f":"T_DataComboFile[[#This Row],[2017/18_Source]]*T_DataComboFile[[#This Row],[G&S reporting level indicator]]","v":0},{"$f":"T_DataComboFile[[#This Row],[2018/19_Source]]*T_DataComboFile[[#This Row],[G&S reporting level indicator]]","v":0},{"$f":"T_DataComboFile[[#This Row],[2019/20 Main appropriation_Source]]*T_DataComboFile[[#This Row],[G&S reporting level indicator]]","v":0},{"$f":"T_DataComboFile[[#This Row],[2019/20 Adjusted appropriation_Source]]*T_DataComboFile[[#This Row],[G&S reporting level indicator]]","v":0},{"$f":"T_DataComboFile[[#This Row],[2019/20 Revised estimate_Source]]*T_DataComboFile[[#This Row],[G&S reporting level indicator]]","v":0},{"$f":"T_DataComboFile[[#This Row],[2019/20 Preliminary outcome_Source]]*T_DataComboFile[[#This Row],[G&S reporting level indicator]]","v":0},{"$f":"T_DataComboFile[[#This Row],[2020/21 Original_Source]]*T_DataComboFile[[#This Row],[G&S reporting level indicator]]","v":0},{"$f":"T_DataComboFile[[#This Row],[2020/21 SAB_Source]]*T_DataComboFile[[#This Row],[G&S reporting level indicator]]","v":0},{"$f":"T_DataComboFile[[#This Row],[2020/21 Baseline_Source]]*T_DataComboFile[[#This Row],[G&S reporting level indicator]]","v":0},{"$f":"T_DataComboFile[[#This Row],[2021/22 Baseline_Source]]*T_DataComboFile[[#This Row],[G&S reporting level indicator]]","v":0},{"$f":"T_DataComboFile[[#This Row],[2022/23 Baseline_Source]]*T_DataComboFile[[#This Row],[G&S reporting level indicator]]","v":0},{"$f":"T_DataComboFile[[#This Row],[2023/24 Baseline_Source]]*T_DataComboFile[[#This Row],[G&S reporting level indicator]]","v":0},null,null,null,null,null,null,{"$f":"T_DataComboFile[[#This Row],[2021/22 Baseline]]+T_DataComboFile[[#This Row],[2021/22 Reduction]]+T_DataComboFile[[#This Row],[2021/22 Increase]]","v":0},{"$f":"T_DataComboFile[[#This Row],[2022/23 Baseline]]+T_DataComboFile[[#This Row],[2022/23 Reduction]]+T_DataComboFile[[#This Row],[2022/23 Increase]]","v":0},{"$f":"T_DataComboFile[[#This Row],[2023/24 Baseline]]+T_DataComboFile[[#This Row],[2023/24 Reduction]]+T_DataComboFile[[#This Row],[2023/24 Increase]]","v":0}]
[null,null,"2021_22","ENE2020",36,4,2,null,71126,36,4,2,null,"071126","36|04|02",1,1,3,41,41,"01|01|03|41|41","National","Small Business Development","Enterprise Development and Entrepreneurship","SMMEs Programme Design and Support",null,"Current","Current payments","Interest and rent on land","Interest (Incl. interest on unitary payments (PPP))","Interest (Incl. interest on unitary payments (PPP))",null,null,null,0,0,0,0,0,0,0,0,0,0,0,0,0,0,null,{"$f":"IF(T_DataComboFile[[#This Row],[G&S reporting level indicator]]=1,$AX$16,\"Not applicable\")","v":"Level 3"},{"$f":"IF(AND($AX$16=\"Level 3\",T_DataComboFile[[#This Row],[Econ3]] = \"Goods and services\"),IF(T_DataComboFile[[#This Row],[Econ4]] = T_DataComboFile[[#This Row],[Econ3]],1,0),IF(AND($AX$16=\"Level 4\",T_DataComboFile[[#This Row],[Econ4]] = \"Goods and services\"),0,1))","v":1},{"$f":"T_DataComboFile[[#This Row],[2016/17_Source]]*T_DataComboFile[[#This Row],[G&S reporting level indicator]]","v":0},{"$f":"T_DataComboFile[[#This Row],[2017/18_Source]]*T_DataComboFile[[#This Row],[G&S reporting level indicator]]","v":0},{"$f":"T_DataComboFile[[#This Row],[2018/19_Source]]*T_DataComboFile[[#This Row],[G&S reporting level indicator]]","v":0},{"$f":"T_DataComboFile[[#This Row],[2019/20 Main appropriation_Source]]*T_DataComboFile[[#This Row],[G&S reporting level indicator]]","v":0},{"$f":"T_DataComboFile[[#This Row],[2019/20 Adjusted appropriation_Source]]*T_DataComboFile[[#This Row],[G&S reporting level indicator]]","v":0},{"$f":"T_DataComboFile[[#This Row],[2019/20 Revised estimate_Source]]*T_DataComboFile[[#This Row],[G&S reporting level indicator]]","v":0},{"$f":"T_DataComboFile[[#This Row],[2019/20 Preliminary outcome_Source]]*T_DataComboFile[[#This Row],[G&S reporting level indicator]]","v":0},{"$f":"T_DataComboFile[[#This Row],[2020/21 Original_Source]]*T_DataComboFile[[#This Row],[G&S reporting level indicator]]","v":0},{"$f":"T_DataComboFile[[#This Row],[2020/21 SAB_Source]]*T_DataComboFile[[#This Row],[G&S reporting level indicator]]","v":0},{"$f":"T_DataComboFile[[#This Row],[2020/21 Baseline_Source]]*T_DataComboFile[[#This Row],[G&S reporting level indicator]]","v":0},{"$f":"T_DataComboFile[[#This Row],[2021/22 Baseline_Source]]*T_DataComboFile[[#This Row],[G&S reporting level indicator]]","v":0},{"$f":"T_DataComboFile[[#This Row],[2022/23 Baseline_Source]]*T_DataComboFile[[#This Row],[G&S reporting level indicator]]","v":0},{"$f":"T_DataComboFile[[#This Row],[2023/24 Baseline_Source]]*T_DataComboFile[[#This Row],[G&S reporting level indicator]]","v":0},null,null,null,null,null,null,{"$f":"T_DataComboFile[[#This Row],[2021/22 Baseline]]+T_DataComboFile[[#This Row],[2021/22 Reduction]]+T_DataComboFile[[#This Row],[2021/22 Increase]]","v":0},{"$f":"T_DataComboFile[[#This Row],[2022/23 Baseline]]+T_DataComboFile[[#This Row],[2022/23 Reduction]]+T_DataComboFile[[#This Row],[2022/23 Increase]]","v":0},{"$f":"T_DataComboFile[[#This Row],[2023/24 Baseline]]+T_DataComboFile[[#This Row],[2023/24 Reduction]]+T_DataComboFile[[#This Row],[2023/24 Increase]]","v":0}]
[null,null,"2021_22","ENE2020",36,4,2,null,71127,36,4,2,null,"071127","36|04|02",1,1,3,42,42,"01|01|03|42|42","National","Small Business Development","Enterprise Development and Entrepreneurship","SMMEs Programme Design and Support",null,"Current","Current payments","Interest and rent on land","Rent on land","Rent on land",null,null,null,0,0,0,0,0,0,0,0,0,0,0,0,0,0,null,{"$f":"IF(T_DataComboFile[[#This Row],[G&S reporting level indicator]]=1,$AX$16,\"Not applicable\")","v":"Level 3"},{"$f":"IF(AND($AX$16=\"Level 3\",T_DataComboFile[[#This Row],[Econ3]] = \"Goods and services\"),IF(T_DataComboFile[[#This Row],[Econ4]] = T_DataComboFile[[#This Row],[Econ3]],1,0),IF(AND($AX$16=\"Level 4\",T_DataComboFile[[#This Row],[Econ4]] = \"Goods and services\"),0,1))","v":1},{"$f":"T_DataComboFile[[#This Row],[2016/17_Source]]*T_DataComboFile[[#This Row],[G&S reporting level indicator]]","v":0},{"$f":"T_DataComboFile[[#This Row],[2017/18_Source]]*T_DataComboFile[[#This Row],[G&S reporting level indicator]]","v":0},{"$f":"T_DataComboFile[[#This Row],[2018/19_Source]]*T_DataComboFile[[#This Row],[G&S reporting level indicator]]","v":0},{"$f":"T_DataComboFile[[#This Row],[2019/20 Main appropriation_Source]]*T_DataComboFile[[#This Row],[G&S reporting level indicator]]","v":0},{"$f":"T_DataComboFile[[#This Row],[2019/20 Adjusted appropriation_Source]]*T_DataComboFile[[#This Row],[G&S reporting level indicator]]","v":0},{"$f":"T_DataComboFile[[#This Row],[2019/20 Revised estimate_Source]]*T_DataComboFile[[#This Row],[G&S reporting level indicator]]","v":0},{"$f":"T_DataComboFile[[#This Row],[2019/20 Preliminary outcome_Source]]*T_DataComboFile[[#This Row],[G&S reporting level indicator]]","v":0},{"$f":"T_DataComboFile[[#This Row],[2020/21 Original_Source]]*T_DataComboFile[[#This Row],[G&S reporting level indicator]]","v":0},{"$f":"T_DataComboFile[[#This Row],[2020/21 SAB_Source]]*T_DataComboFile[[#This Row],[G&S reporting level indicator]]","v":0},{"$f":"T_DataComboFile[[#This Row],[2020/21 Baseline_Source]]*T_DataComboFile[[#This Row],[G&S reporting level indicator]]","v":0},{"$f":"T_DataComboFile[[#This Row],[2021/22 Baseline_Source]]*T_DataComboFile[[#This Row],[G&S reporting level indicator]]","v":0},{"$f":"T_DataComboFile[[#This Row],[2022/23 Baseline_Source]]*T_DataComboFile[[#This Row],[G&S reporting level indicator]]","v":0},{"$f":"T_DataComboFile[[#This Row],[2023/24 Baseline_Source]]*T_DataComboFile[[#This Row],[G&S reporting level indicator]]","v":0},null,null,null,null,null,null,{"$f":"T_DataComboFile[[#This Row],[2021/22 Baseline]]+T_DataComboFile[[#This Row],[2021/22 Reduction]]+T_DataComboFile[[#This Row],[2021/22 Increase]]","v":0},{"$f":"T_DataComboFile[[#This Row],[2022/23 Baseline]]+T_DataComboFile[[#This Row],[2022/23 Reduction]]+T_DataComboFile[[#This Row],[2022/23 Increase]]","v":0},{"$f":"T_DataComboFile[[#This Row],[2023/24 Baseline]]+T_DataComboFile[[#This Row],[2023/24 Reduction]]+T_DataComboFile[[#This Row],[2023/24 Increase]]","v":0}]
[null,null,"2021_22","ENE2020",36,4,2,null,71128,36,4,2,null,"071128","36|04|02",1,2,4,43,43,"01|02|04|43|43","National","Small Business Development","Enterprise Development and Entrepreneurship","SMMEs Programme Design and Support",null,"Current","Transfers and subsidies","Provinces and municipalities","Provinces","Provincial Revenue Funds",null,null,null,0,0,0,0,0,0,0,0,0,0,0,0,0,0,null,{"$f":"IF(T_DataComboFile[[#This Row],[G&S reporting level indicator]]=1,$AX$16,\"Not applicable\")","v":"Level 3"},{"$f":"IF(AND($AX$16=\"Level 3\",T_DataComboFile[[#This Row],[Econ3]] = \"Goods and services\"),IF(T_DataComboFile[[#This Row],[Econ4]] = T_DataComboFile[[#This Row],[Econ3]],1,0),IF(AND($AX$16=\"Level 4\",T_DataComboFile[[#This Row],[Econ4]] = \"Goods and services\"),0,1))","v":1},{"$f":"T_DataComboFile[[#This Row],[2016/17_Source]]*T_DataComboFile[[#This Row],[G&S reporting level indicator]]","v":0},{"$f":"T_DataComboFile[[#This Row],[2017/18_Source]]*T_DataComboFile[[#This Row],[G&S reporting level indicator]]","v":0},{"$f":"T_DataComboFile[[#This Row],[2018/19_Source]]*T_DataComboFile[[#This Row],[G&S reporting level indicator]]","v":0},{"$f":"T_DataComboFile[[#This Row],[2019/20 Main appropriation_Source]]*T_DataComboFile[[#This Row],[G&S reporting level indicator]]","v":0},{"$f":"T_DataComboFile[[#This Row],[2019/20 Adjusted appropriation_Source]]*T_DataComboFile[[#This Row],[G&S reporting level indicator]]","v":0},{"$f":"T_DataComboFile[[#This Row],[2019/20 Revised estimate_Source]]*T_DataComboFile[[#This Row],[G&S reporting level indicator]]","v":0},{"$f":"T_DataComboFile[[#This Row],[2019/20 Preliminary outcome_Source]]*T_DataComboFile[[#This Row],[G&S reporting level indicator]]","v":0},{"$f":"T_DataComboFile[[#This Row],[2020/21 Original_Source]]*T_DataComboFile[[#This Row],[G&S reporting level indicator]]","v":0},{"$f":"T_DataComboFile[[#This Row],[2020/21 SAB_Source]]*T_DataComboFile[[#This Row],[G&S reporting level indicator]]","v":0},{"$f":"T_DataComboFile[[#This Row],[2020/21 Baseline_Source]]*T_DataComboFile[[#This Row],[G&S reporting level indicator]]","v":0},{"$f":"T_DataComboFile[[#This Row],[2021/22 Baseline_Source]]*T_DataComboFile[[#This Row],[G&S reporting level indicator]]","v":0},{"$f":"T_DataComboFile[[#This Row],[2022/23 Baseline_Source]]*T_DataComboFile[[#This Row],[G&S reporting level indicator]]","v":0},{"$f":"T_DataComboFile[[#This Row],[2023/24 Baseline_Source]]*T_DataComboFile[[#This Row],[G&S reporting level indicator]]","v":0},null,null,null,null,null,null,{"$f":"T_DataComboFile[[#This Row],[2021/22 Baseline]]+T_DataComboFile[[#This Row],[2021/22 Reduction]]+T_DataComboFile[[#This Row],[2021/22 Increase]]","v":0},{"$f":"T_DataComboFile[[#This Row],[2022/23 Baseline]]+T_DataComboFile[[#This Row],[2022/23 Reduction]]+T_DataComboFile[[#This Row],[2022/23 Increase]]","v":0},{"$f":"T_DataComboFile[[#This Row],[2023/24 Baseline]]+T_DataComboFile[[#This Row],[2023/24 Reduction]]+T_DataComboFile[[#This Row],[2023/24 Increase]]","v":0}]
[null,null,"2021_22","ENE2020",36,4,2,null,71129,36,4,2,null,"071129","36|04|02",1,2,4,43,44,"01|02|04|43|44","National","Small Business Development","Enterprise Development and Entrepreneurship","SMMEs Programme Design and Support",null,"Current","Transfers and subsidies","Provinces and municipalities","Provinces","Provincial agencies and funds",null,null,null,0,0,0,0,0,0,0,0,0,0,0,0,0,0,null,{"$f":"IF(T_DataComboFile[[#This Row],[G&S reporting level indicator]]=1,$AX$16,\"Not applicable\")","v":"Level 3"},{"$f":"IF(AND($AX$16=\"Level 3\",T_DataComboFile[[#This Row],[Econ3]] = \"Goods and services\"),IF(T_DataComboFile[[#This Row],[Econ4]] = T_DataComboFile[[#This Row],[Econ3]],1,0),IF(AND($AX$16=\"Level 4\",T_DataComboFile[[#This Row],[Econ4]] = \"Goods and services\"),0,1))","v":1},{"$f":"T_DataComboFile[[#This Row],[2016/17_Source]]*T_DataComboFile[[#This Row],[G&S reporting level indicator]]","v":0},{"$f":"T_DataComboFile[[#This Row],[2017/18_Source]]*T_DataComboFile[[#This Row],[G&S reporting level indicator]]","v":0},{"$f":"T_DataComboFile[[#This Row],[2018/19_Source]]*T_DataComboFile[[#This Row],[G&S reporting level indicator]]","v":0},{"$f":"T_DataComboFile[[#This Row],[2019/20 Main appropriation_Source]]*T_DataComboFile[[#This Row],[G&S reporting level indicator]]","v":0},{"$f":"T_DataComboFile[[#This Row],[2019/20 Adjusted appropriation_Source]]*T_DataComboFile[[#This Row],[G&S reporting level indicator]]","v":0},{"$f":"T_DataComboFile[[#This Row],[2019/20 Revised estimate_Source]]*T_DataComboFile[[#This Row],[G&S reporting level indicator]]","v":0},{"$f":"T_DataComboFile[[#This Row],[2019/20 Preliminary outcome_Source]]*T_DataComboFile[[#This Row],[G&S reporting level indicator]]","v":0},{"$f":"T_DataComboFile[[#This Row],[2020/21 Original_Source]]*T_DataComboFile[[#This Row],[G&S reporting level indicator]]","v":0},{"$f":"T_DataComboFile[[#This Row],[2020/21 SAB_Source]]*T_DataComboFile[[#This Row],[G&S reporting level indicator]]","v":0},{"$f":"T_DataComboFile[[#This Row],[2020/21 Baseline_Source]]*T_DataComboFile[[#This Row],[G&S reporting level indicator]]","v":0},{"$f":"T_DataComboFile[[#This Row],[2021/22 Baseline_Source]]*T_DataComboFile[[#This Row],[G&S reporting level indicator]]","v":0},{"$f":"T_DataComboFile[[#This Row],[2022/23 Baseline_Source]]*T_DataComboFile[[#This Row],[G&S reporting level indicator]]","v":0},{"$f":"T_DataComboFile[[#This Row],[2023/24 Baseline_Source]]*T_DataComboFile[[#This Row],[G&S reporting level indicator]]","v":0},null,null,null,null,null,null,{"$f":"T_DataComboFile[[#This Row],[2021/22 Baseline]]+T_DataComboFile[[#This Row],[2021/22 Reduction]]+T_DataComboFile[[#This Row],[2021/22 Increase]]","v":0},{"$f":"T_DataComboFile[[#This Row],[2022/23 Baseline]]+T_DataComboFile[[#This Row],[2022/23 Reduction]]+T_DataComboFile[[#This Row],[2022/23 Increase]]","v":0},{"$f":"T_DataComboFile[[#This Row],[2023/24 Baseline]]+T_DataComboFile[[#This Row],[2023/24 Reduction]]+T_DataComboFile[[#This Row],[2023/24 Increase]]","v":0}]
[null,null,"2021_22","ENE2020",36,4,2,null,71130,36,4,2,null,"071130","36|04|02",1,2,4,44,45,"01|02|04|44|45","National","Small Business Development","Enterprise Development and Entrepreneurship","SMMEs Programme Design and Support",null,"Current","Transfers and subsidies","Provinces and municipalities","Municipalities","Municipal bank accounts",null,null,null,0,0,0,0,0,0,0,0,0,0,0,0,0,0,null,{"$f":"IF(T_DataComboFile[[#This Row],[G&S reporting level indicator]]=1,$AX$16,\"Not applicable\")","v":"Level 3"},{"$f":"IF(AND($AX$16=\"Level 3\",T_DataComboFile[[#This Row],[Econ3]] = \"Goods and services\"),IF(T_DataComboFile[[#This Row],[Econ4]] = T_DataComboFile[[#This Row],[Econ3]],1,0),IF(AND($AX$16=\"Level 4\",T_DataComboFile[[#This Row],[Econ4]] = \"Goods and services\"),0,1))","v":1},{"$f":"T_DataComboFile[[#This Row],[2016/17_Source]]*T_DataComboFile[[#This Row],[G&S reporting level indicator]]","v":0},{"$f":"T_DataComboFile[[#This Row],[2017/18_Source]]*T_DataComboFile[[#This Row],[G&S reporting level indicator]]","v":0},{"$f":"T_DataComboFile[[#This Row],[2018/19_Source]]*T_DataComboFile[[#This Row],[G&S reporting level indicator]]","v":0},{"$f":"T_DataComboFile[[#This Row],[2019/20 Main appropriation_Source]]*T_DataComboFile[[#This Row],[G&S reporting level indicator]]","v":0},{"$f":"T_DataComboFile[[#This Row],[2019/20 Adjusted appropriation_Source]]*T_DataComboFile[[#This Row],[G&S reporting level indicator]]","v":0},{"$f":"T_DataComboFile[[#This Row],[2019/20 Revised estimate_Source]]*T_DataComboFile[[#This Row],[G&S reporting level indicator]]","v":0},{"$f":"T_DataComboFile[[#This Row],[2019/20 Preliminary outcome_Source]]*T_DataComboFile[[#This Row],[G&S reporting level indicator]]","v":0},{"$f":"T_DataComboFile[[#This Row],[2020/21 Original_Source]]*T_DataComboFile[[#This Row],[G&S reporting level indicator]]","v":0},{"$f":"T_DataComboFile[[#This Row],[2020/21 SAB_Source]]*T_DataComboFile[[#This Row],[G&S reporting level indicator]]","v":0},{"$f":"T_DataComboFile[[#This Row],[2020/21 Baseline_Source]]*T_DataComboFile[[#This Row],[G&S reporting level indicator]]","v":0},{"$f":"T_DataComboFile[[#This Row],[2021/22 Baseline_Source]]*T_DataComboFile[[#This Row],[G&S reporting level indicator]]","v":0},{"$f":"T_DataComboFile[[#This Row],[2022/23 Baseline_Source]]*T_DataComboFile[[#This Row],[G&S reporting level indicator]]","v":0},{"$f":"T_DataComboFile[[#This Row],[2023/24 Baseline_Source]]*T_DataComboFile[[#This Row],[G&S reporting level indicator]]","v":0},null,null,null,null,null,null,{"$f":"T_DataComboFile[[#This Row],[2021/22 Baseline]]+T_DataComboFile[[#This Row],[2021/22 Reduction]]+T_DataComboFile[[#This Row],[2021/22 Increase]]","v":0},{"$f":"T_DataComboFile[[#This Row],[2022/23 Baseline]]+T_DataComboFile[[#This Row],[2022/23 Reduction]]+T_DataComboFile[[#This Row],[2022/23 Increase]]","v":0},{"$f":"T_DataComboFile[[#This Row],[2023/24 Baseline]]+T_DataComboFile[[#This Row],[2023/24 Reduction]]+T_DataComboFile[[#This Row],[2023/24 Increase]]","v":0}]
[null,null,"2021_22","ENE2020",36,4,2,null,71131,36,4,2,null,"071131","36|04|02",1,2,4,44,46,"01|02|04|44|46","National","Small Business Development","Enterprise Development and Entrepreneurship","SMMEs Programme Design and Support",null,"Current","Transfers and subsidies","Provinces and municipalities","Municipalities","Municipal agencies and funds",null,null,null,0,0,0,0,0,0,0,0,0,0,0,0,0,0,null,{"$f":"IF(T_DataComboFile[[#This Row],[G&S reporting level indicator]]=1,$AX$16,\"Not applicable\")","v":"Level 3"},{"$f":"IF(AND($AX$16=\"Level 3\",T_DataComboFile[[#This Row],[Econ3]] = \"Goods and services\"),IF(T_DataComboFile[[#This Row],[Econ4]] = T_DataComboFile[[#This Row],[Econ3]],1,0),IF(AND($AX$16=\"Level 4\",T_DataComboFile[[#This Row],[Econ4]] = \"Goods and services\"),0,1))","v":1},{"$f":"T_DataComboFile[[#This Row],[2016/17_Source]]*T_DataComboFile[[#This Row],[G&S reporting level indicator]]","v":0},{"$f":"T_DataComboFile[[#This Row],[2017/18_Source]]*T_DataComboFile[[#This Row],[G&S reporting level indicator]]","v":0},{"$f":"T_DataComboFile[[#This Row],[2018/19_Source]]*T_DataComboFile[[#This Row],[G&S reporting level indicator]]","v":0},{"$f":"T_DataComboFile[[#This Row],[2019/20 Main appropriation_Source]]*T_DataComboFile[[#This Row],[G&S reporting level indicator]]","v":0},{"$f":"T_DataComboFile[[#This Row],[2019/20 Adjusted appropriation_Source]]*T_DataComboFile[[#This Row],[G&S reporting level indicator]]","v":0},{"$f":"T_DataComboFile[[#This Row],[2019/20 Revised estimate_Source]]*T_DataComboFile[[#This Row],[G&S reporting level indicator]]","v":0},{"$f":"T_DataComboFile[[#This Row],[2019/20 Preliminary outcome_Source]]*T_DataComboFile[[#This Row],[G&S reporting level indicator]]","v":0},{"$f":"T_DataComboFile[[#This Row],[2020/21 Original_Source]]*T_DataComboFile[[#This Row],[G&S reporting level indicator]]","v":0},{"$f":"T_DataComboFile[[#This Row],[2020/21 SAB_Source]]*T_DataComboFile[[#This Row],[G&S reporting level indicator]]","v":0},{"$f":"T_DataComboFile[[#This Row],[2020/21 Baseline_Source]]*T_DataComboFile[[#This Row],[G&S reporting level indicator]]","v":0},{"$f":"T_DataComboFile[[#This Row],[2021/22 Baseline_Source]]*T_DataComboFile[[#This Row],[G&S reporting level indicator]]","v":0},{"$f":"T_DataComboFile[[#This Row],[2022/23 Baseline_Source]]*T_DataComboFile[[#This Row],[G&S reporting level indicator]]","v":0},{"$f":"T_DataComboFile[[#This Row],[2023/24 Baseline_Source]]*T_DataComboFile[[#This Row],[G&S reporting level indicator]]","v":0},null,null,null,null,null,null,{"$f":"T_DataComboFile[[#This Row],[2021/22 Baseline]]+T_DataComboFile[[#This Row],[2021/22 Reduction]]+T_DataComboFile[[#This Row],[2021/22 Increase]]","v":0},{"$f":"T_DataComboFile[[#This Row],[2022/23 Baseline]]+T_DataComboFile[[#This Row],[2022/23 Reduction]]+T_DataComboFile[[#This Row],[2022/23 Increase]]","v":0},{"$f":"T_DataComboFile[[#This Row],[2023/24 Baseline]]+T_DataComboFile[[#This Row],[2023/24 Reduction]]+T_DataComboFile[[#This Row],[2023/24 Increase]]","v":0}]
[null,null,"2021_22","ENE2020",36,4,2,null,71132,36,4,2,null,"071132","36|04|02",1,2,5,45,47,"01|02|05|45|47","National","Small Business Development","Enterprise Development and Entrepreneurship","SMMEs Programme Design and Support",null,"Current","Transfers and subsidies","Departmental agencies and accounts","Social security funds","Social security funds",null,null,null,0,0,0,0,0,0,0,0,0,0,0,0,0,0,null,{"$f":"IF(T_DataComboFile[[#This Row],[G&S reporting level indicator]]=1,$AX$16,\"Not applicable\")","v":"Level 3"},{"$f":"IF(AND($AX$16=\"Level 3\",T_DataComboFile[[#This Row],[Econ3]] = \"Goods and services\"),IF(T_DataComboFile[[#This Row],[Econ4]] = T_DataComboFile[[#This Row],[Econ3]],1,0),IF(AND($AX$16=\"Level 4\",T_DataComboFile[[#This Row],[Econ4]] = \"Goods and services\"),0,1))","v":1},{"$f":"T_DataComboFile[[#This Row],[2016/17_Source]]*T_DataComboFile[[#This Row],[G&S reporting level indicator]]","v":0},{"$f":"T_DataComboFile[[#This Row],[2017/18_Source]]*T_DataComboFile[[#This Row],[G&S reporting level indicator]]","v":0},{"$f":"T_DataComboFile[[#This Row],[2018/19_Source]]*T_DataComboFile[[#This Row],[G&S reporting level indicator]]","v":0},{"$f":"T_DataComboFile[[#This Row],[2019/20 Main appropriation_Source]]*T_DataComboFile[[#This Row],[G&S reporting level indicator]]","v":0},{"$f":"T_DataComboFile[[#This Row],[2019/20 Adjusted appropriation_Source]]*T_DataComboFile[[#This Row],[G&S reporting level indicator]]","v":0},{"$f":"T_DataComboFile[[#This Row],[2019/20 Revised estimate_Source]]*T_DataComboFile[[#This Row],[G&S reporting level indicator]]","v":0},{"$f":"T_DataComboFile[[#This Row],[2019/20 Preliminary outcome_Source]]*T_DataComboFile[[#This Row],[G&S reporting level indicator]]","v":0},{"$f":"T_DataComboFile[[#This Row],[2020/21 Original_Source]]*T_DataComboFile[[#This Row],[G&S reporting level indicator]]","v":0},{"$f":"T_DataComboFile[[#This Row],[2020/21 SAB_Source]]*T_DataComboFile[[#This Row],[G&S reporting level indicator]]","v":0},{"$f":"T_DataComboFile[[#This Row],[2020/21 Baseline_Source]]*T_DataComboFile[[#This Row],[G&S reporting level indicator]]","v":0},{"$f":"T_DataComboFile[[#This Row],[2021/22 Baseline_Source]]*T_DataComboFile[[#This Row],[G&S reporting level indicator]]","v":0},{"$f":"T_DataComboFile[[#This Row],[2022/23 Baseline_Source]]*T_DataComboFile[[#This Row],[G&S reporting level indicator]]","v":0},{"$f":"T_DataComboFile[[#This Row],[2023/24 Baseline_Source]]*T_DataComboFile[[#This Row],[G&S reporting level indicator]]","v":0},null,null,null,null,null,null,{"$f":"T_DataComboFile[[#This Row],[2021/22 Baseline]]+T_DataComboFile[[#This Row],[2021/22 Reduction]]+T_DataComboFile[[#This Row],[2021/22 Increase]]","v":0},{"$f":"T_DataComboFile[[#This Row],[2022/23 Baseline]]+T_DataComboFile[[#This Row],[2022/23 Reduction]]+T_DataComboFile[[#This Row],[2022/23 Increase]]","v":0},{"$f":"T_DataComboFile[[#This Row],[2023/24 Baseline]]+T_DataComboFile[[#This Row],[2023/24 Reduction]]+T_DataComboFile[[#This Row],[2023/24 Increase]]","v":0}]
[null,null,"2021_22","ENE2020",36,4,2,null,71133,36,4,2,null,"071133","36|04|02",1,2,5,46,48,"01|02|05|46|48","National","Small Business Development","Enterprise Development and Entrepreneurship","SMMEs Programme Design and Support",null,"Current","Transfers and subsidies","Departmental agencies and accounts","Departmental agencies (non-business entities)","Departmental agencies (non-business entities)",null,null,null,0,0,0,0,0,0,0,0,0,0,0,0,0,0,null,{"$f":"IF(T_DataComboFile[[#This Row],[G&S reporting level indicator]]=1,$AX$16,\"Not applicable\")","v":"Level 3"},{"$f":"IF(AND($AX$16=\"Level 3\",T_DataComboFile[[#This Row],[Econ3]] = \"Goods and services\"),IF(T_DataComboFile[[#This Row],[Econ4]] = T_DataComboFile[[#This Row],[Econ3]],1,0),IF(AND($AX$16=\"Level 4\",T_DataComboFile[[#This Row],[Econ4]] = \"Goods and services\"),0,1))","v":1},{"$f":"T_DataComboFile[[#This Row],[2016/17_Source]]*T_DataComboFile[[#This Row],[G&S reporting level indicator]]","v":0},{"$f":"T_DataComboFile[[#This Row],[2017/18_Source]]*T_DataComboFile[[#This Row],[G&S reporting level indicator]]","v":0},{"$f":"T_DataComboFile[[#This Row],[2018/19_Source]]*T_DataComboFile[[#This Row],[G&S reporting level indicator]]","v":0},{"$f":"T_DataComboFile[[#This Row],[2019/20 Main appropriation_Source]]*T_DataComboFile[[#This Row],[G&S reporting level indicator]]","v":0},{"$f":"T_DataComboFile[[#This Row],[2019/20 Adjusted appropriation_Source]]*T_DataComboFile[[#This Row],[G&S reporting level indicator]]","v":0},{"$f":"T_DataComboFile[[#This Row],[2019/20 Revised estimate_Source]]*T_DataComboFile[[#This Row],[G&S reporting level indicator]]","v":0},{"$f":"T_DataComboFile[[#This Row],[2019/20 Preliminary outcome_Source]]*T_DataComboFile[[#This Row],[G&S reporting level indicator]]","v":0},{"$f":"T_DataComboFile[[#This Row],[2020/21 Original_Source]]*T_DataComboFile[[#This Row],[G&S reporting level indicator]]","v":0},{"$f":"T_DataComboFile[[#This Row],[2020/21 SAB_Source]]*T_DataComboFile[[#This Row],[G&S reporting level indicator]]","v":0},{"$f":"T_DataComboFile[[#This Row],[2020/21 Baseline_Source]]*T_DataComboFile[[#This Row],[G&S reporting level indicator]]","v":0},{"$f":"T_DataComboFile[[#This Row],[2021/22 Baseline_Source]]*T_DataComboFile[[#This Row],[G&S reporting level indicator]]","v":0},{"$f":"T_DataComboFile[[#This Row],[2022/23 Baseline_Source]]*T_DataComboFile[[#This Row],[G&S reporting level indicator]]","v":0},{"$f":"T_DataComboFile[[#This Row],[2023/24 Baseline_Source]]*T_DataComboFile[[#This Row],[G&S reporting level indicator]]","v":0},null,null,null,null,null,null,{"$f":"T_DataComboFile[[#This Row],[2021/22 Baseline]]+T_DataComboFile[[#This Row],[2021/22 Reduction]]+T_DataComboFile[[#This Row],[2021/22 Increase]]","v":0},{"$f":"T_DataComboFile[[#This Row],[2022/23 Baseline]]+T_DataComboFile[[#This Row],[2022/23 Reduction]]+T_DataComboFile[[#This Row],[2022/23 Increase]]","v":0},{"$f":"T_DataComboFile[[#This Row],[2023/24 Baseline]]+T_DataComboFile[[#This Row],[2023/24 Reduction]]+T_DataComboFile[[#This Row],[2023/24 Increase]]","v":0}]
[null,null,"2021_22","ENE2020",36,4,2,null,71134,36,4,2,null,"071134","36|04|02",1,2,6,47,49,"01|02|06|47|49","National","Small Business Development","Enterprise Development and Entrepreneurship","SMMEs Programme Design and Support",null,"Current","Transfers and subsidies","Higher education institutions","Higher education institutions","Higher education institutions",null,null,null,0,0,0,0,0,0,0,0,0,0,0,0,0,0,null,{"$f":"IF(T_DataComboFile[[#This Row],[G&S reporting level indicator]]=1,$AX$16,\"Not applicable\")","v":"Level 3"},{"$f":"IF(AND($AX$16=\"Level 3\",T_DataComboFile[[#This Row],[Econ3]] = \"Goods and services\"),IF(T_DataComboFile[[#This Row],[Econ4]] = T_DataComboFile[[#This Row],[Econ3]],1,0),IF(AND($AX$16=\"Level 4\",T_DataComboFile[[#This Row],[Econ4]] = \"Goods and services\"),0,1))","v":1},{"$f":"T_DataComboFile[[#This Row],[2016/17_Source]]*T_DataComboFile[[#This Row],[G&S reporting level indicator]]","v":0},{"$f":"T_DataComboFile[[#This Row],[2017/18_Source]]*T_DataComboFile[[#This Row],[G&S reporting level indicator]]","v":0},{"$f":"T_DataComboFile[[#This Row],[2018/19_Source]]*T_DataComboFile[[#This Row],[G&S reporting level indicator]]","v":0},{"$f":"T_DataComboFile[[#This Row],[2019/20 Main appropriation_Source]]*T_DataComboFile[[#This Row],[G&S reporting level indicator]]","v":0},{"$f":"T_DataComboFile[[#This Row],[2019/20 Adjusted appropriation_Source]]*T_DataComboFile[[#This Row],[G&S reporting level indicator]]","v":0},{"$f":"T_DataComboFile[[#This Row],[2019/20 Revised estimate_Source]]*T_DataComboFile[[#This Row],[G&S reporting level indicator]]","v":0},{"$f":"T_DataComboFile[[#This Row],[2019/20 Preliminary outcome_Source]]*T_DataComboFile[[#This Row],[G&S reporting level indicator]]","v":0},{"$f":"T_DataComboFile[[#This Row],[2020/21 Original_Source]]*T_DataComboFile[[#This Row],[G&S reporting level indicator]]","v":0},{"$f":"T_DataComboFile[[#This Row],[2020/21 SAB_Source]]*T_DataComboFile[[#This Row],[G&S reporting level indicator]]","v":0},{"$f":"T_DataComboFile[[#This Row],[2020/21 Baseline_Source]]*T_DataComboFile[[#This Row],[G&S reporting level indicator]]","v":0},{"$f":"T_DataComboFile[[#This Row],[2021/22 Baseline_Source]]*T_DataComboFile[[#This Row],[G&S reporting level indicator]]","v":0},{"$f":"T_DataComboFile[[#This Row],[2022/23 Baseline_Source]]*T_DataComboFile[[#This Row],[G&S reporting level indicator]]","v":0},{"$f":"T_DataComboFile[[#This Row],[2023/24 Baseline_Source]]*T_DataComboFile[[#This Row],[G&S reporting level indicator]]","v":0},null,null,null,null,null,null,{"$f":"T_DataComboFile[[#This Row],[2021/22 Baseline]]+T_DataComboFile[[#This Row],[2021/22 Reduction]]+T_DataComboFile[[#This Row],[2021/22 Increase]]","v":0},{"$f":"T_DataComboFile[[#This Row],[2022/23 Baseline]]+T_DataComboFile[[#This Row],[2022/23 Reduction]]+T_DataComboFile[[#This Row],[2022/23 Increase]]","v":0},{"$f":"T_DataComboFile[[#This Row],[2023/24 Baseline]]+T_DataComboFile[[#This Row],[2023/24 Reduction]]+T_DataComboFile[[#This Row],[2023/24 Increase]]","v":0}]
[null,null,"2021_22","ENE2020",36,4,2,null,71135,36,4,2,null,"071135","36|04|02",1,2,7,48,50,"01|02|07|48|50","National","Small Business Development","Enterprise Development and Entrepreneurship","SMMEs Programme Design and Support",null,"Current","Transfers and subsidies","Foreign governments and international organisations","Foreign governments and international organisations","Foreign governments and international organisations",null,null,null,0,0,0,0,0,0,0,0,0,0,0,0,0,0,null,{"$f":"IF(T_DataComboFile[[#This Row],[G&S reporting level indicator]]=1,$AX$16,\"Not applicable\")","v":"Level 3"},{"$f":"IF(AND($AX$16=\"Level 3\",T_DataComboFile[[#This Row],[Econ3]] = \"Goods and services\"),IF(T_DataComboFile[[#This Row],[Econ4]] = T_DataComboFile[[#This Row],[Econ3]],1,0),IF(AND($AX$16=\"Level 4\",T_DataComboFile[[#This Row],[Econ4]] = \"Goods and services\"),0,1))","v":1},{"$f":"T_DataComboFile[[#This Row],[2016/17_Source]]*T_DataComboFile[[#This Row],[G&S reporting level indicator]]","v":0},{"$f":"T_DataComboFile[[#This Row],[2017/18_Source]]*T_DataComboFile[[#This Row],[G&S reporting level indicator]]","v":0},{"$f":"T_DataComboFile[[#This Row],[2018/19_Source]]*T_DataComboFile[[#This Row],[G&S reporting level indicator]]","v":0},{"$f":"T_DataComboFile[[#This Row],[2019/20 Main appropriation_Source]]*T_DataComboFile[[#This Row],[G&S reporting level indicator]]","v":0},{"$f":"T_DataComboFile[[#This Row],[2019/20 Adjusted appropriation_Source]]*T_DataComboFile[[#This Row],[G&S reporting level indicator]]","v":0},{"$f":"T_DataComboFile[[#This Row],[2019/20 Revised estimate_Source]]*T_DataComboFile[[#This Row],[G&S reporting level indicator]]","v":0},{"$f":"T_DataComboFile[[#This Row],[2019/20 Preliminary outcome_Source]]*T_DataComboFile[[#This Row],[G&S reporting level indicator]]","v":0},{"$f":"T_DataComboFile[[#This Row],[2020/21 Original_Source]]*T_DataComboFile[[#This Row],[G&S reporting level indicator]]","v":0},{"$f":"T_DataComboFile[[#This Row],[2020/21 SAB_Source]]*T_DataComboFile[[#This Row],[G&S reporting level indicator]]","v":0},{"$f":"T_DataComboFile[[#This Row],[2020/21 Baseline_Source]]*T_DataComboFile[[#This Row],[G&S reporting level indicator]]","v":0},{"$f":"T_DataComboFile[[#This Row],[2021/22 Baseline_Source]]*T_DataComboFile[[#This Row],[G&S reporting level indicator]]","v":0},{"$f":"T_DataComboFile[[#This Row],[2022/23 Baseline_Source]]*T_DataComboFile[[#This Row],[G&S reporting level indicator]]","v":0},{"$f":"T_DataComboFile[[#This Row],[2023/24 Baseline_Source]]*T_DataComboFile[[#This Row],[G&S reporting level indicator]]","v":0},null,null,null,null,null,null,{"$f":"T_DataComboFile[[#This Row],[2021/22 Baseline]]+T_DataComboFile[[#This Row],[2021/22 Reduction]]+T_DataComboFile[[#This Row],[2021/22 Increase]]","v":0},{"$f":"T_DataComboFile[[#This Row],[2022/23 Baseline]]+T_DataComboFile[[#This Row],[2022/23 Reduction]]+T_DataComboFile[[#This Row],[2022/23 Increase]]","v":0},{"$f":"T_DataComboFile[[#This Row],[2023/24 Baseline]]+T_DataComboFile[[#This Row],[2023/24 Reduction]]+T_DataComboFile[[#This Row],[2023/24 Increase]]","v":0}]
[null,null,"2021_22","ENE2020",36,4,2,null,71136,36,4,2,null,"071136","36|04|02",1,2,8,49,51,"01|02|08|49|51","National","Small Business Development","Enterprise Development and Entrepreneurship","SMMEs Programme Design and Support",null,"Current","Transfers and subsidies","Public corporations and private enterprises","Public corporations","Subsidies on products and production (pc)",null,null,null,0,0,0,0,0,0,0,0,0,0,0,0,0,0,null,{"$f":"IF(T_DataComboFile[[#This Row],[G&S reporting level indicator]]=1,$AX$16,\"Not applicable\")","v":"Level 3"},{"$f":"IF(AND($AX$16=\"Level 3\",T_DataComboFile[[#This Row],[Econ3]] = \"Goods and services\"),IF(T_DataComboFile[[#This Row],[Econ4]] = T_DataComboFile[[#This Row],[Econ3]],1,0),IF(AND($AX$16=\"Level 4\",T_DataComboFile[[#This Row],[Econ4]] = \"Goods and services\"),0,1))","v":1},{"$f":"T_DataComboFile[[#This Row],[2016/17_Source]]*T_DataComboFile[[#This Row],[G&S reporting level indicator]]","v":0},{"$f":"T_DataComboFile[[#This Row],[2017/18_Source]]*T_DataComboFile[[#This Row],[G&S reporting level indicator]]","v":0},{"$f":"T_DataComboFile[[#This Row],[2018/19_Source]]*T_DataComboFile[[#This Row],[G&S reporting level indicator]]","v":0},{"$f":"T_DataComboFile[[#This Row],[2019/20 Main appropriation_Source]]*T_DataComboFile[[#This Row],[G&S reporting level indicator]]","v":0},{"$f":"T_DataComboFile[[#This Row],[2019/20 Adjusted appropriation_Source]]*T_DataComboFile[[#This Row],[G&S reporting level indicator]]","v":0},{"$f":"T_DataComboFile[[#This Row],[2019/20 Revised estimate_Source]]*T_DataComboFile[[#This Row],[G&S reporting level indicator]]","v":0},{"$f":"T_DataComboFile[[#This Row],[2019/20 Preliminary outcome_Source]]*T_DataComboFile[[#This Row],[G&S reporting level indicator]]","v":0},{"$f":"T_DataComboFile[[#This Row],[2020/21 Original_Source]]*T_DataComboFile[[#This Row],[G&S reporting level indicator]]","v":0},{"$f":"T_DataComboFile[[#This Row],[2020/21 SAB_Source]]*T_DataComboFile[[#This Row],[G&S reporting level indicator]]","v":0},{"$f":"T_DataComboFile[[#This Row],[2020/21 Baseline_Source]]*T_DataComboFile[[#This Row],[G&S reporting level indicator]]","v":0},{"$f":"T_DataComboFile[[#This Row],[2021/22 Baseline_Source]]*T_DataComboFile[[#This Row],[G&S reporting level indicator]]","v":0},{"$f":"T_DataComboFile[[#This Row],[2022/23 Baseline_Source]]*T_DataComboFile[[#This Row],[G&S reporting level indicator]]","v":0},{"$f":"T_DataComboFile[[#This Row],[2023/24 Baseline_Source]]*T_DataComboFile[[#This Row],[G&S reporting level indicator]]","v":0},null,null,null,null,null,null,{"$f":"T_DataComboFile[[#This Row],[2021/22 Baseline]]+T_DataComboFile[[#This Row],[2021/22 Reduction]]+T_DataComboFile[[#This Row],[2021/22 Increase]]","v":0},{"$f":"T_DataComboFile[[#This Row],[2022/23 Baseline]]+T_DataComboFile[[#This Row],[2022/23 Reduction]]+T_DataComboFile[[#This Row],[2022/23 Increase]]","v":0},{"$f":"T_DataComboFile[[#This Row],[2023/24 Baseline]]+T_DataComboFile[[#This Row],[2023/24 Reduction]]+T_DataComboFile[[#This Row],[2023/24 Increase]]","v":0}]
["NAT|Small Enterprise Finance Agency: Small business and innovation fund","36|Other transfers to public corporations","2021_22","ENE2020",36,4,2,17430,71137,36,4,2,17430,"071137","36|04|02",1,2,8,49,52,"01|02|08|49|52","National","Small Business Development","Enterprise Development and Entrepreneurship","SMMEs Programme Design and Support","Small Enterprise Finance Agency: Small business and innovation fund","Current","Transfers and subsidies","Public corporations and private enterprises","Public corporations","Other transfers to public corporations","Economic development","Industrialisation and exports","NAT",0,0,0,1000000,0,0,0,0,0,0,0,0,0,1,null,{"$f":"IF(T_DataComboFile[[#This Row],[G&S reporting level indicator]]=1,$AX$16,\"Not applicable\")","v":"Level 3"},{"$f":"IF(AND($AX$16=\"Level 3\",T_DataComboFile[[#This Row],[Econ3]] = \"Goods and services\"),IF(T_DataComboFile[[#This Row],[Econ4]] = T_DataComboFile[[#This Row],[Econ3]],1,0),IF(AND($AX$16=\"Level 4\",T_DataComboFile[[#This Row],[Econ4]] = \"Goods and services\"),0,1))","v":1},{"$f":"T_DataComboFile[[#This Row],[2016/17_Source]]*T_DataComboFile[[#This Row],[G&S reporting level indicator]]","v":0},{"$f":"T_DataComboFile[[#This Row],[2017/18_Source]]*T_DataComboFile[[#This Row],[G&S reporting level indicator]]","v":0},{"$f":"T_DataComboFile[[#This Row],[2018/19_Source]]*T_DataComboFile[[#This Row],[G&S reporting level indicator]]","v":0},{"$f":"T_DataComboFile[[#This Row],[2019/20 Main appropriation_Source]]*T_DataComboFile[[#This Row],[G&S reporting level indicator]]","v":1000000},{"$f":"T_DataComboFile[[#This Row],[2019/20 Adjusted appropriation_Source]]*T_DataComboFile[[#This Row],[G&S reporting level indicator]]","v":0},{"$f":"T_DataComboFile[[#This Row],[2019/20 Revised estimate_Source]]*T_DataComboFile[[#This Row],[G&S reporting level indicator]]","v":0},{"$f":"T_DataComboFile[[#This Row],[2019/20 Preliminary outcome_Source]]*T_DataComboFile[[#This Row],[G&S reporting level indicator]]","v":0},{"$f":"T_DataComboFile[[#This Row],[2020/21 Original_Source]]*T_DataComboFile[[#This Row],[G&S reporting level indicator]]","v":0},{"$f":"T_DataComboFile[[#This Row],[2020/21 SAB_Source]]*T_DataComboFile[[#This Row],[G&S reporting level indicator]]","v":0},{"$f":"T_DataComboFile[[#This Row],[2020/21 Baseline_Source]]*T_DataComboFile[[#This Row],[G&S reporting level indicator]]","v":0},{"$f":"T_DataComboFile[[#This Row],[2021/22 Baseline_Source]]*T_DataComboFile[[#This Row],[G&S reporting level indicator]]","v":0},{"$f":"T_DataComboFile[[#This Row],[2022/23 Baseline_Source]]*T_DataComboFile[[#This Row],[G&S reporting level indicator]]","v":0},{"$f":"T_DataComboFile[[#This Row],[2023/24 Baseline_Source]]*T_DataComboFile[[#This Row],[G&S reporting level indicator]]","v":0},null,null,null,null,null,null,{"$f":"T_DataComboFile[[#This Row],[2021/22 Baseline]]+T_DataComboFile[[#This Row],[2021/22 Reduction]]+T_DataComboFile[[#This Row],[2021/22 Increase]]","v":0},{"$f":"T_DataComboFile[[#This Row],[2022/23 Baseline]]+T_DataComboFile[[#This Row],[2022/23 Reduction]]+T_DataComboFile[[#This Row],[2022/23 Increase]]","v":0},{"$f":"T_DataComboFile[[#This Row],[2023/24 Baseline]]+T_DataComboFile[[#This Row],[2023/24 Reduction]]+T_DataComboFile[[#This Row],[2023/24 Increase]]","v":0}]
[null,null,"2021_22","ENE2020",36,4,2,null,71138,36,4,2,null,"071138","36|04|02",1,2,8,50,53,"01|02|08|50|53","National","Small Business Development","Enterprise Development and Entrepreneurship","SMMEs Programme Design and Support",null,"Current","Transfers and subsidies","Public corporations and private enterprises","Private enterprises","Subsidies on products and production (pe)",null,null,null,0,0,0,0,0,0,0,0,0,0,0,0,0,0,null,{"$f":"IF(T_DataComboFile[[#This Row],[G&S reporting level indicator]]=1,$AX$16,\"Not applicable\")","v":"Level 3"},{"$f":"IF(AND($AX$16=\"Level 3\",T_DataComboFile[[#This Row],[Econ3]] = \"Goods and services\"),IF(T_DataComboFile[[#This Row],[Econ4]] = T_DataComboFile[[#This Row],[Econ3]],1,0),IF(AND($AX$16=\"Level 4\",T_DataComboFile[[#This Row],[Econ4]] = \"Goods and services\"),0,1))","v":1},{"$f":"T_DataComboFile[[#This Row],[2016/17_Source]]*T_DataComboFile[[#This Row],[G&S reporting level indicator]]","v":0},{"$f":"T_DataComboFile[[#This Row],[2017/18_Source]]*T_DataComboFile[[#This Row],[G&S reporting level indicator]]","v":0},{"$f":"T_DataComboFile[[#This Row],[2018/19_Source]]*T_DataComboFile[[#This Row],[G&S reporting level indicator]]","v":0},{"$f":"T_DataComboFile[[#This Row],[2019/20 Main appropriation_Source]]*T_DataComboFile[[#This Row],[G&S reporting level indicator]]","v":0},{"$f":"T_DataComboFile[[#This Row],[2019/20 Adjusted appropriation_Source]]*T_DataComboFile[[#This Row],[G&S reporting level indicator]]","v":0},{"$f":"T_DataComboFile[[#This Row],[2019/20 Revised estimate_Source]]*T_DataComboFile[[#This Row],[G&S reporting level indicator]]","v":0},{"$f":"T_DataComboFile[[#This Row],[2019/20 Preliminary outcome_Source]]*T_DataComboFile[[#This Row],[G&S reporting level indicator]]","v":0},{"$f":"T_DataComboFile[[#This Row],[2020/21 Original_Source]]*T_DataComboFile[[#This Row],[G&S reporting level indicator]]","v":0},{"$f":"T_DataComboFile[[#This Row],[2020/21 SAB_Source]]*T_DataComboFile[[#This Row],[G&S reporting level indicator]]","v":0},{"$f":"T_DataComboFile[[#This Row],[2020/21 Baseline_Source]]*T_DataComboFile[[#This Row],[G&S reporting level indicator]]","v":0},{"$f":"T_DataComboFile[[#This Row],[2021/22 Baseline_Source]]*T_DataComboFile[[#This Row],[G&S reporting level indicator]]","v":0},{"$f":"T_DataComboFile[[#This Row],[2022/23 Baseline_Source]]*T_DataComboFile[[#This Row],[G&S reporting level indicator]]","v":0},{"$f":"T_DataComboFile[[#This Row],[2023/24 Baseline_Source]]*T_DataComboFile[[#This Row],[G&S reporting level indicator]]","v":0},null,null,null,null,null,null,{"$f":"T_DataComboFile[[#This Row],[2021/22 Baseline]]+T_DataComboFile[[#This Row],[2021/22 Reduction]]+T_DataComboFile[[#This Row],[2021/22 Increase]]","v":0},{"$f":"T_DataComboFile[[#This Row],[2022/23 Baseline]]+T_DataComboFile[[#This Row],[2022/23 Reduction]]+T_DataComboFile[[#This Row],[2022/23 Increase]]","v":0},{"$f":"T_DataComboFile[[#This Row],[2023/24 Baseline]]+T_DataComboFile[[#This Row],[2023/24 Reduction]]+T_DataComboFile[[#This Row],[2023/24 Increase]]","v":0}]
["NAT|Various institutions: National informal business upliftment scheme","36|Other transfers to private enterprises","2021_22","ENE2020",36,4,2,17431,71139,36,4,2,17431,"071139","36|04|02",1,2,8,50,54,"01|02|08|50|54","National","Small Business Development","Enterprise Development and Entrepreneurship","SMMEs Programme Design and Support","Various institutions: National informal business upliftment scheme","Current","Transfers and subsidies","Public corporations and private enterprises","Private enterprises","Other transfers to private enterprises","Economic development","Industrialisation and exports","NAT",0,0,0,73914,58914,58914,58914,79810,9810,79810,84200,87330,91179,1,null,{"$f":"IF(T_DataComboFile[[#This Row],[G&S reporting level indicator]]=1,$AX$16,\"Not applicable\")","v":"Level 3"},{"$f":"IF(AND($AX$16=\"Level 3\",T_DataComboFile[[#This Row],[Econ3]] = \"Goods and services\"),IF(T_DataComboFile[[#This Row],[Econ4]] = T_DataComboFile[[#This Row],[Econ3]],1,0),IF(AND($AX$16=\"Level 4\",T_DataComboFile[[#This Row],[Econ4]] = \"Goods and services\"),0,1))","v":1},{"$f":"T_DataComboFile[[#This Row],[2016/17_Source]]*T_DataComboFile[[#This Row],[G&S reporting level indicator]]","v":0},{"$f":"T_DataComboFile[[#This Row],[2017/18_Source]]*T_DataComboFile[[#This Row],[G&S reporting level indicator]]","v":0},{"$f":"T_DataComboFile[[#This Row],[2018/19_Source]]*T_DataComboFile[[#This Row],[G&S reporting level indicator]]","v":0},{"$f":"T_DataComboFile[[#This Row],[2019/20 Main appropriation_Source]]*T_DataComboFile[[#This Row],[G&S reporting level indicator]]","v":73914},{"$f":"T_DataComboFile[[#This Row],[2019/20 Adjusted appropriation_Source]]*T_DataComboFile[[#This Row],[G&S reporting level indicator]]","v":58914},{"$f":"T_DataComboFile[[#This Row],[2019/20 Revised estimate_Source]]*T_DataComboFile[[#This Row],[G&S reporting level indicator]]","v":58914},{"$f":"T_DataComboFile[[#This Row],[2019/20 Preliminary outcome_Source]]*T_DataComboFile[[#This Row],[G&S reporting level indicator]]","v":58914},{"$f":"T_DataComboFile[[#This Row],[2020/21 Original_Source]]*T_DataComboFile[[#This Row],[G&S reporting level indicator]]","v":79810},{"$f":"T_DataComboFile[[#This Row],[2020/21 SAB_Source]]*T_DataComboFile[[#This Row],[G&S reporting level indicator]]","v":9810},{"$f":"T_DataComboFile[[#This Row],[2020/21 Baseline_Source]]*T_DataComboFile[[#This Row],[G&S reporting level indicator]]","v":79810},{"$f":"T_DataComboFile[[#This Row],[2021/22 Baseline_Source]]*T_DataComboFile[[#This Row],[G&S reporting level indicator]]","v":84200},{"$f":"T_DataComboFile[[#This Row],[2022/23 Baseline_Source]]*T_DataComboFile[[#This Row],[G&S reporting level indicator]]","v":87330},{"$f":"T_DataComboFile[[#This Row],[2023/24 Baseline_Source]]*T_DataComboFile[[#This Row],[G&S reporting level indicator]]","v":91179},null,null,null,null,null,null,{"$f":"T_DataComboFile[[#This Row],[2021/22 Baseline]]+T_DataComboFile[[#This Row],[2021/22 Reduction]]+T_DataComboFile[[#This Row],[2021/22 Increase]]","v":84200},{"$f":"T_DataComboFile[[#This Row],[2022/23 Baseline]]+T_DataComboFile[[#This Row],[2022/23 Reduction]]+T_DataComboFile[[#This Row],[2022/23 Increase]]","v":87330},{"$f":"T_DataComboFile[[#This Row],[2023/24 Baseline]]+T_DataComboFile[[#This Row],[2023/24 Reduction]]+T_DataComboFile[[#This Row],[2023/24 Increase]]","v":91179}]
["NAT|Various institutions: Black business supplier development programme","36|Other transfers to private enterprises","2021_22","ENE2020",36,4,2,17432,71140,36,4,2,17432,"071140","36|04|02",1,2,8,50,54,"01|02|08|50|54","National","Small Business Development","Enterprise Development and Entrepreneurship","SMMEs Programme Design and Support","Various institutions: Black business supplier development programme","Current","Transfers and subsidies","Public corporations and private enterprises","Private enterprises","Other transfers to private enterprises","Economic development","Industrialisation and exports","NAT",268009,256743,257739,286126,286126,286126,286126,283751,13751,283751,299357,310486,324170,1,null,{"$f":"IF(T_DataComboFile[[#This Row],[G&S reporting level indicator]]=1,$AX$16,\"Not applicable\")","v":"Level 3"},{"$f":"IF(AND($AX$16=\"Level 3\",T_DataComboFile[[#This Row],[Econ3]] = \"Goods and services\"),IF(T_DataComboFile[[#This Row],[Econ4]] = T_DataComboFile[[#This Row],[Econ3]],1,0),IF(AND($AX$16=\"Level 4\",T_DataComboFile[[#This Row],[Econ4]] = \"Goods and services\"),0,1))","v":1},{"$f":"T_DataComboFile[[#This Row],[2016/17_Source]]*T_DataComboFile[[#This Row],[G&S reporting level indicator]]","v":268009},{"$f":"T_DataComboFile[[#This Row],[2017/18_Source]]*T_DataComboFile[[#This Row],[G&S reporting level indicator]]","v":256743},{"$f":"T_DataComboFile[[#This Row],[2018/19_Source]]*T_DataComboFile[[#This Row],[G&S reporting level indicator]]","v":257739},{"$f":"T_DataComboFile[[#This Row],[2019/20 Main appropriation_Source]]*T_DataComboFile[[#This Row],[G&S reporting level indicator]]","v":286126},{"$f":"T_DataComboFile[[#This Row],[2019/20 Adjusted appropriation_Source]]*T_DataComboFile[[#This Row],[G&S reporting level indicator]]","v":286126},{"$f":"T_DataComboFile[[#This Row],[2019/20 Revised estimate_Source]]*T_DataComboFile[[#This Row],[G&S reporting level indicator]]","v":286126},{"$f":"T_DataComboFile[[#This Row],[2019/20 Preliminary outcome_Source]]*T_DataComboFile[[#This Row],[G&S reporting level indicator]]","v":286126},{"$f":"T_DataComboFile[[#This Row],[2020/21 Original_Source]]*T_DataComboFile[[#This Row],[G&S reporting level indicator]]","v":283751},{"$f":"T_DataComboFile[[#This Row],[2020/21 SAB_Source]]*T_DataComboFile[[#This Row],[G&S reporting level indicator]]","v":13751},{"$f":"T_DataComboFile[[#This Row],[2020/21 Baseline_Source]]*T_DataComboFile[[#This Row],[G&S reporting level indicator]]","v":283751},{"$f":"T_DataComboFile[[#This Row],[2021/22 Baseline_Source]]*T_DataComboFile[[#This Row],[G&S reporting level indicator]]","v":299357},{"$f":"T_DataComboFile[[#This Row],[2022/23 Baseline_Source]]*T_DataComboFile[[#This Row],[G&S reporting level indicator]]","v":310486},{"$f":"T_DataComboFile[[#This Row],[2023/24 Baseline_Source]]*T_DataComboFile[[#This Row],[G&S reporting level indicator]]","v":324170},null,null,null,null,null,null,{"$f":"T_DataComboFile[[#This Row],[2021/22 Baseline]]+T_DataComboFile[[#This Row],[2021/22 Reduction]]+T_DataComboFile[[#This Row],[2021/22 Increase]]","v":299357},{"$f":"T_DataComboFile[[#This Row],[2022/23 Baseline]]+T_DataComboFile[[#This Row],[2022/23 Reduction]]+T_DataComboFile[[#This Row],[2022/23 Increase]]","v":310486},{"$f":"T_DataComboFile[[#This Row],[2023/24 Baseline]]+T_DataComboFile[[#This Row],[2023/24 Reduction]]+T_DataComboFile[[#This Row],[2023/24 Increase]]","v":324170}]
[null,null,"2021_22","ENE2020",36,4,2,null,71141,36,4,2,null,"071141","36|04|02",1,2,9,51,55,"01|02|09|51|55","National","Small Business Development","Enterprise Development and Entrepreneurship","SMMEs Programme Design and Support",null,"Current","Transfers and subsidies","Non-profit institutions","Non-profit institutions","Non-profit institutions",null,null,null,0,0,0,0,0,0,0,0,0,0,0,0,0,0,null,{"$f":"IF(T_DataComboFile[[#This Row],[G&S reporting level indicator]]=1,$AX$16,\"Not applicable\")","v":"Level 3"},{"$f":"IF(AND($AX$16=\"Level 3\",T_DataComboFile[[#This Row],[Econ3]] = \"Goods and services\"),IF(T_DataComboFile[[#This Row],[Econ4]] = T_DataComboFile[[#This Row],[Econ3]],1,0),IF(AND($AX$16=\"Level 4\",T_DataComboFile[[#This Row],[Econ4]] = \"Goods and services\"),0,1))","v":1},{"$f":"T_DataComboFile[[#This Row],[2016/17_Source]]*T_DataComboFile[[#This Row],[G&S reporting level indicator]]","v":0},{"$f":"T_DataComboFile[[#This Row],[2017/18_Source]]*T_DataComboFile[[#This Row],[G&S reporting level indicator]]","v":0},{"$f":"T_DataComboFile[[#This Row],[2018/19_Source]]*T_DataComboFile[[#This Row],[G&S reporting level indicator]]","v":0},{"$f":"T_DataComboFile[[#This Row],[2019/20 Main appropriation_Source]]*T_DataComboFile[[#This Row],[G&S reporting level indicator]]","v":0},{"$f":"T_DataComboFile[[#This Row],[2019/20 Adjusted appropriation_Source]]*T_DataComboFile[[#This Row],[G&S reporting level indicator]]","v":0},{"$f":"T_DataComboFile[[#This Row],[2019/20 Revised estimate_Source]]*T_DataComboFile[[#This Row],[G&S reporting level indicator]]","v":0},{"$f":"T_DataComboFile[[#This Row],[2019/20 Preliminary outcome_Source]]*T_DataComboFile[[#This Row],[G&S reporting level indicator]]","v":0},{"$f":"T_DataComboFile[[#This Row],[2020/21 Original_Source]]*T_DataComboFile[[#This Row],[G&S reporting level indicator]]","v":0},{"$f":"T_DataComboFile[[#This Row],[2020/21 SAB_Source]]*T_DataComboFile[[#This Row],[G&S reporting level indicator]]","v":0},{"$f":"T_DataComboFile[[#This Row],[2020/21 Baseline_Source]]*T_DataComboFile[[#This Row],[G&S reporting level indicator]]","v":0},{"$f":"T_DataComboFile[[#This Row],[2021/22 Baseline_Source]]*T_DataComboFile[[#This Row],[G&S reporting level indicator]]","v":0},{"$f":"T_DataComboFile[[#This Row],[2022/23 Baseline_Source]]*T_DataComboFile[[#This Row],[G&S reporting level indicator]]","v":0},{"$f":"T_DataComboFile[[#This Row],[2023/24 Baseline_Source]]*T_DataComboFile[[#This Row],[G&S reporting level indicator]]","v":0},null,null,null,null,null,null,{"$f":"T_DataComboFile[[#This Row],[2021/22 Baseline]]+T_DataComboFile[[#This Row],[2021/22 Reduction]]+T_DataComboFile[[#This Row],[2021/22 Increase]]","v":0},{"$f":"T_DataComboFile[[#This Row],[2022/23 Baseline]]+T_DataComboFile[[#This Row],[2022/23 Reduction]]+T_DataComboFile[[#This Row],[2022/23 Increase]]","v":0},{"$f":"T_DataComboFile[[#This Row],[2023/24 Baseline]]+T_DataComboFile[[#This Row],[2023/24 Reduction]]+T_DataComboFile[[#This Row],[2023/24 Increase]]","v":0}]
["NAT|Employee social benefits","36|Social benefits","2021_22","ENE2020",36,4,2,17433,71142,36,4,2,17433,"071142","36|04|02",1,2,10,52,56,"01|02|10|52|56","National","Small Business Development","Enterprise Development and Entrepreneurship","SMMEs Programme Design and Support","Employee social benefits","Current","Transfers and subsidies","Households","Social benefits","Social benefits","Economic development","Industrialisation and exports","NAT",0,21,137,0,14,14,14,0,0,0,0,0,0,1,null,{"$f":"IF(T_DataComboFile[[#This Row],[G&S reporting level indicator]]=1,$AX$16,\"Not applicable\")","v":"Level 3"},{"$f":"IF(AND($AX$16=\"Level 3\",T_DataComboFile[[#This Row],[Econ3]] = \"Goods and services\"),IF(T_DataComboFile[[#This Row],[Econ4]] = T_DataComboFile[[#This Row],[Econ3]],1,0),IF(AND($AX$16=\"Level 4\",T_DataComboFile[[#This Row],[Econ4]] = \"Goods and services\"),0,1))","v":1},{"$f":"T_DataComboFile[[#This Row],[2016/17_Source]]*T_DataComboFile[[#This Row],[G&S reporting level indicator]]","v":0},{"$f":"T_DataComboFile[[#This Row],[2017/18_Source]]*T_DataComboFile[[#This Row],[G&S reporting level indicator]]","v":21},{"$f":"T_DataComboFile[[#This Row],[2018/19_Source]]*T_DataComboFile[[#This Row],[G&S reporting level indicator]]","v":137},{"$f":"T_DataComboFile[[#This Row],[2019/20 Main appropriation_Source]]*T_DataComboFile[[#This Row],[G&S reporting level indicator]]","v":0},{"$f":"T_DataComboFile[[#This Row],[2019/20 Adjusted appropriation_Source]]*T_DataComboFile[[#This Row],[G&S reporting level indicator]]","v":14},{"$f":"T_DataComboFile[[#This Row],[2019/20 Revised estimate_Source]]*T_DataComboFile[[#This Row],[G&S reporting level indicator]]","v":14},{"$f":"T_DataComboFile[[#This Row],[2019/20 Preliminary outcome_Source]]*T_DataComboFile[[#This Row],[G&S reporting level indicator]]","v":14},{"$f":"T_DataComboFile[[#This Row],[2020/21 Original_Source]]*T_DataComboFile[[#This Row],[G&S reporting level indicator]]","v":0},{"$f":"T_DataComboFile[[#This Row],[2020/21 SAB_Source]]*T_DataComboFile[[#This Row],[G&S reporting level indicator]]","v":0},{"$f":"T_DataComboFile[[#This Row],[2020/21 Baseline_Source]]*T_DataComboFile[[#This Row],[G&S reporting level indicator]]","v":0},{"$f":"T_DataComboFile[[#This Row],[2021/22 Baseline_Source]]*T_DataComboFile[[#This Row],[G&S reporting level indicator]]","v":0},{"$f":"T_DataComboFile[[#This Row],[2022/23 Baseline_Source]]*T_DataComboFile[[#This Row],[G&S reporting level indicator]]","v":0},{"$f":"T_DataComboFile[[#This Row],[2023/24 Baseline_Source]]*T_DataComboFile[[#This Row],[G&S reporting level indicator]]","v":0},null,null,null,null,null,null,{"$f":"T_DataComboFile[[#This Row],[2021/22 Baseline]]+T_DataComboFile[[#This Row],[2021/22 Reduction]]+T_DataComboFile[[#This Row],[2021/22 Increase]]","v":0},{"$f":"T_DataComboFile[[#This Row],[2022/23 Baseline]]+T_DataComboFile[[#This Row],[2022/23 Reduction]]+T_DataComboFile[[#This Row],[2022/23 Increase]]","v":0},{"$f":"T_DataComboFile[[#This Row],[2023/24 Baseline]]+T_DataComboFile[[#This Row],[2023/24 Reduction]]+T_DataComboFile[[#This Row],[2023/24 Increase]]","v":0}]
[null,null,"2021_22","ENE2020",36,4,2,null,71143,36,4,2,null,"071143","36|04|02",1,2,10,53,57,"01|02|10|53|57","National","Small Business Development","Enterprise Development and Entrepreneurship","SMMEs Programme Design and Support",null,"Current","Transfers and subsidies","Households","Other transfers to households","Other transfers to households",null,null,null,0,0,0,0,0,0,0,0,0,0,0,0,0,0,null,{"$f":"IF(T_DataComboFile[[#This Row],[G&S reporting level indicator]]=1,$AX$16,\"Not applicable\")","v":"Level 3"},{"$f":"IF(AND($AX$16=\"Level 3\",T_DataComboFile[[#This Row],[Econ3]] = \"Goods and services\"),IF(T_DataComboFile[[#This Row],[Econ4]] = T_DataComboFile[[#This Row],[Econ3]],1,0),IF(AND($AX$16=\"Level 4\",T_DataComboFile[[#This Row],[Econ4]] = \"Goods and services\"),0,1))","v":1},{"$f":"T_DataComboFile[[#This Row],[2016/17_Source]]*T_DataComboFile[[#This Row],[G&S reporting level indicator]]","v":0},{"$f":"T_DataComboFile[[#This Row],[2017/18_Source]]*T_DataComboFile[[#This Row],[G&S reporting level indicator]]","v":0},{"$f":"T_DataComboFile[[#This Row],[2018/19_Source]]*T_DataComboFile[[#This Row],[G&S reporting level indicator]]","v":0},{"$f":"T_DataComboFile[[#This Row],[2019/20 Main appropriation_Source]]*T_DataComboFile[[#This Row],[G&S reporting level indicator]]","v":0},{"$f":"T_DataComboFile[[#This Row],[2019/20 Adjusted appropriation_Source]]*T_DataComboFile[[#This Row],[G&S reporting level indicator]]","v":0},{"$f":"T_DataComboFile[[#This Row],[2019/20 Revised estimate_Source]]*T_DataComboFile[[#This Row],[G&S reporting level indicator]]","v":0},{"$f":"T_DataComboFile[[#This Row],[2019/20 Preliminary outcome_Source]]*T_DataComboFile[[#This Row],[G&S reporting level indicator]]","v":0},{"$f":"T_DataComboFile[[#This Row],[2020/21 Original_Source]]*T_DataComboFile[[#This Row],[G&S reporting level indicator]]","v":0},{"$f":"T_DataComboFile[[#This Row],[2020/21 SAB_Source]]*T_DataComboFile[[#This Row],[G&S reporting level indicator]]","v":0},{"$f":"T_DataComboFile[[#This Row],[2020/21 Baseline_Source]]*T_DataComboFile[[#This Row],[G&S reporting level indicator]]","v":0},{"$f":"T_DataComboFile[[#This Row],[2021/22 Baseline_Source]]*T_DataComboFile[[#This Row],[G&S reporting level indicator]]","v":0},{"$f":"T_DataComboFile[[#This Row],[2022/23 Baseline_Source]]*T_DataComboFile[[#This Row],[G&S reporting level indicator]]","v":0},{"$f":"T_DataComboFile[[#This Row],[2023/24 Baseline_Source]]*T_DataComboFile[[#This Row],[G&S reporting level indicator]]","v":0},null,null,null,null,null,null,{"$f":"T_DataComboFile[[#This Row],[2021/22 Baseline]]+T_DataComboFile[[#This Row],[2021/22 Reduction]]+T_DataComboFile[[#This Row],[2021/22 Increase]]","v":0},{"$f":"T_DataComboFile[[#This Row],[2022/23 Baseline]]+T_DataComboFile[[#This Row],[2022/23 Reduction]]+T_DataComboFile[[#This Row],[2022/23 Increase]]","v":0},{"$f":"T_DataComboFile[[#This Row],[2023/24 Baseline]]+T_DataComboFile[[#This Row],[2023/24 Reduction]]+T_DataComboFile[[#This Row],[2023/24 Increase]]","v":0}]
[null,null,"2021_22","ENE2020",36,4,2,null,71144,36,4,2,null,"071144","36|04|02",2,2,4,43,43,"02|02|04|43|43","National","Small Business Development","Enterprise Development and Entrepreneurship","SMMEs Programme Design and Support",null,"Capital","Transfers and subsidies","Provinces and municipalities","Provinces","Provincial Revenue Funds",null,null,null,0,0,0,0,0,0,0,0,0,0,0,0,0,0,null,{"$f":"IF(T_DataComboFile[[#This Row],[G&S reporting level indicator]]=1,$AX$16,\"Not applicable\")","v":"Level 3"},{"$f":"IF(AND($AX$16=\"Level 3\",T_DataComboFile[[#This Row],[Econ3]] = \"Goods and services\"),IF(T_DataComboFile[[#This Row],[Econ4]] = T_DataComboFile[[#This Row],[Econ3]],1,0),IF(AND($AX$16=\"Level 4\",T_DataComboFile[[#This Row],[Econ4]] = \"Goods and services\"),0,1))","v":1},{"$f":"T_DataComboFile[[#This Row],[2016/17_Source]]*T_DataComboFile[[#This Row],[G&S reporting level indicator]]","v":0},{"$f":"T_DataComboFile[[#This Row],[2017/18_Source]]*T_DataComboFile[[#This Row],[G&S reporting level indicator]]","v":0},{"$f":"T_DataComboFile[[#This Row],[2018/19_Source]]*T_DataComboFile[[#This Row],[G&S reporting level indicator]]","v":0},{"$f":"T_DataComboFile[[#This Row],[2019/20 Main appropriation_Source]]*T_DataComboFile[[#This Row],[G&S reporting level indicator]]","v":0},{"$f":"T_DataComboFile[[#This Row],[2019/20 Adjusted appropriation_Source]]*T_DataComboFile[[#This Row],[G&S reporting level indicator]]","v":0},{"$f":"T_DataComboFile[[#This Row],[2019/20 Revised estimate_Source]]*T_DataComboFile[[#This Row],[G&S reporting level indicator]]","v":0},{"$f":"T_DataComboFile[[#This Row],[2019/20 Preliminary outcome_Source]]*T_DataComboFile[[#This Row],[G&S reporting level indicator]]","v":0},{"$f":"T_DataComboFile[[#This Row],[2020/21 Original_Source]]*T_DataComboFile[[#This Row],[G&S reporting level indicator]]","v":0},{"$f":"T_DataComboFile[[#This Row],[2020/21 SAB_Source]]*T_DataComboFile[[#This Row],[G&S reporting level indicator]]","v":0},{"$f":"T_DataComboFile[[#This Row],[2020/21 Baseline_Source]]*T_DataComboFile[[#This Row],[G&S reporting level indicator]]","v":0},{"$f":"T_DataComboFile[[#This Row],[2021/22 Baseline_Source]]*T_DataComboFile[[#This Row],[G&S reporting level indicator]]","v":0},{"$f":"T_DataComboFile[[#This Row],[2022/23 Baseline_Source]]*T_DataComboFile[[#This Row],[G&S reporting level indicator]]","v":0},{"$f":"T_DataComboFile[[#This Row],[2023/24 Baseline_Source]]*T_DataComboFile[[#This Row],[G&S reporting level indicator]]","v":0},null,null,null,null,null,null,{"$f":"T_DataComboFile[[#This Row],[2021/22 Baseline]]+T_DataComboFile[[#This Row],[2021/22 Reduction]]+T_DataComboFile[[#This Row],[2021/22 Increase]]","v":0},{"$f":"T_DataComboFile[[#This Row],[2022/23 Baseline]]+T_DataComboFile[[#This Row],[2022/23 Reduction]]+T_DataComboFile[[#This Row],[2022/23 Increase]]","v":0},{"$f":"T_DataComboFile[[#This Row],[2023/24 Baseline]]+T_DataComboFile[[#This Row],[2023/24 Reduction]]+T_DataComboFile[[#This Row],[2023/24 Increase]]","v":0}]
[null,null,"2021_22","ENE2020",36,4,2,null,71145,36,4,2,null,"071145","36|04|02",2,2,4,44,45,"02|02|04|44|45","National","Small Business Development","Enterprise Development and Entrepreneurship","SMMEs Programme Design and Support",null,"Capital","Transfers and subsidies","Provinces and municipalities","Municipalities","Municipal bank accounts",null,null,null,0,0,0,0,0,0,0,0,0,0,0,0,0,0,null,{"$f":"IF(T_DataComboFile[[#This Row],[G&S reporting level indicator]]=1,$AX$16,\"Not applicable\")","v":"Level 3"},{"$f":"IF(AND($AX$16=\"Level 3\",T_DataComboFile[[#This Row],[Econ3]] = \"Goods and services\"),IF(T_DataComboFile[[#This Row],[Econ4]] = T_DataComboFile[[#This Row],[Econ3]],1,0),IF(AND($AX$16=\"Level 4\",T_DataComboFile[[#This Row],[Econ4]] = \"Goods and services\"),0,1))","v":1},{"$f":"T_DataComboFile[[#This Row],[2016/17_Source]]*T_DataComboFile[[#This Row],[G&S reporting level indicator]]","v":0},{"$f":"T_DataComboFile[[#This Row],[2017/18_Source]]*T_DataComboFile[[#This Row],[G&S reporting level indicator]]","v":0},{"$f":"T_DataComboFile[[#This Row],[2018/19_Source]]*T_DataComboFile[[#This Row],[G&S reporting level indicator]]","v":0},{"$f":"T_DataComboFile[[#This Row],[2019/20 Main appropriation_Source]]*T_DataComboFile[[#This Row],[G&S reporting level indicator]]","v":0},{"$f":"T_DataComboFile[[#This Row],[2019/20 Adjusted appropriation_Source]]*T_DataComboFile[[#This Row],[G&S reporting level indicator]]","v":0},{"$f":"T_DataComboFile[[#This Row],[2019/20 Revised estimate_Source]]*T_DataComboFile[[#This Row],[G&S reporting level indicator]]","v":0},{"$f":"T_DataComboFile[[#This Row],[2019/20 Preliminary outcome_Source]]*T_DataComboFile[[#This Row],[G&S reporting level indicator]]","v":0},{"$f":"T_DataComboFile[[#This Row],[2020/21 Original_Source]]*T_DataComboFile[[#This Row],[G&S reporting level indicator]]","v":0},{"$f":"T_DataComboFile[[#This Row],[2020/21 SAB_Source]]*T_DataComboFile[[#This Row],[G&S reporting level indicator]]","v":0},{"$f":"T_DataComboFile[[#This Row],[2020/21 Baseline_Source]]*T_DataComboFile[[#This Row],[G&S reporting level indicator]]","v":0},{"$f":"T_DataComboFile[[#This Row],[2021/22 Baseline_Source]]*T_DataComboFile[[#This Row],[G&S reporting level indicator]]","v":0},{"$f":"T_DataComboFile[[#This Row],[2022/23 Baseline_Source]]*T_DataComboFile[[#This Row],[G&S reporting level indicator]]","v":0},{"$f":"T_DataComboFile[[#This Row],[2023/24 Baseline_Source]]*T_DataComboFile[[#This Row],[G&S reporting level indicator]]","v":0},null,null,null,null,null,null,{"$f":"T_DataComboFile[[#This Row],[2021/22 Baseline]]+T_DataComboFile[[#This Row],[2021/22 Reduction]]+T_DataComboFile[[#This Row],[2021/22 Increase]]","v":0},{"$f":"T_DataComboFile[[#This Row],[2022/23 Baseline]]+T_DataComboFile[[#This Row],[2022/23 Reduction]]+T_DataComboFile[[#This Row],[2022/23 Increase]]","v":0},{"$f":"T_DataComboFile[[#This Row],[2023/24 Baseline]]+T_DataComboFile[[#This Row],[2023/24 Reduction]]+T_DataComboFile[[#This Row],[2023/24 Increase]]","v":0}]
[null,null,"2021_22","ENE2020",36,4,2,null,71146,36,4,2,null,"071146","36|04|02",2,2,5,46,48,"02|02|05|46|48","National","Small Business Development","Enterprise Development and Entrepreneurship","SMMEs Programme Design and Support",null,"Capital","Transfers and subsidies","Departmental agencies and accounts","Departmental agencies (non-business entities)","Departmental agencies (non-business entities)",null,null,null,0,0,0,0,0,0,0,0,0,0,0,0,0,0,null,{"$f":"IF(T_DataComboFile[[#This Row],[G&S reporting level indicator]]=1,$AX$16,\"Not applicable\")","v":"Level 3"},{"$f":"IF(AND($AX$16=\"Level 3\",T_DataComboFile[[#This Row],[Econ3]] = \"Goods and services\"),IF(T_DataComboFile[[#This Row],[Econ4]] = T_DataComboFile[[#This Row],[Econ3]],1,0),IF(AND($AX$16=\"Level 4\",T_DataComboFile[[#This Row],[Econ4]] = \"Goods and services\"),0,1))","v":1},{"$f":"T_DataComboFile[[#This Row],[2016/17_Source]]*T_DataComboFile[[#This Row],[G&S reporting level indicator]]","v":0},{"$f":"T_DataComboFile[[#This Row],[2017/18_Source]]*T_DataComboFile[[#This Row],[G&S reporting level indicator]]","v":0},{"$f":"T_DataComboFile[[#This Row],[2018/19_Source]]*T_DataComboFile[[#This Row],[G&S reporting level indicator]]","v":0},{"$f":"T_DataComboFile[[#This Row],[2019/20 Main appropriation_Source]]*T_DataComboFile[[#This Row],[G&S reporting level indicator]]","v":0},{"$f":"T_DataComboFile[[#This Row],[2019/20 Adjusted appropriation_Source]]*T_DataComboFile[[#This Row],[G&S reporting level indicator]]","v":0},{"$f":"T_DataComboFile[[#This Row],[2019/20 Revised estimate_Source]]*T_DataComboFile[[#This Row],[G&S reporting level indicator]]","v":0},{"$f":"T_DataComboFile[[#This Row],[2019/20 Preliminary outcome_Source]]*T_DataComboFile[[#This Row],[G&S reporting level indicator]]","v":0},{"$f":"T_DataComboFile[[#This Row],[2020/21 Original_Source]]*T_DataComboFile[[#This Row],[G&S reporting level indicator]]","v":0},{"$f":"T_DataComboFile[[#This Row],[2020/21 SAB_Source]]*T_DataComboFile[[#This Row],[G&S reporting level indicator]]","v":0},{"$f":"T_DataComboFile[[#This Row],[2020/21 Baseline_Source]]*T_DataComboFile[[#This Row],[G&S reporting level indicator]]","v":0},{"$f":"T_DataComboFile[[#This Row],[2021/22 Baseline_Source]]*T_DataComboFile[[#This Row],[G&S reporting level indicator]]","v":0},{"$f":"T_DataComboFile[[#This Row],[2022/23 Baseline_Source]]*T_DataComboFile[[#This Row],[G&S reporting level indicator]]","v":0},{"$f":"T_DataComboFile[[#This Row],[2023/24 Baseline_Source]]*T_DataComboFile[[#This Row],[G&S reporting level indicator]]","v":0},null,null,null,null,null,null,{"$f":"T_DataComboFile[[#This Row],[2021/22 Baseline]]+T_DataComboFile[[#This Row],[2021/22 Reduction]]+T_DataComboFile[[#This Row],[2021/22 Increase]]","v":0},{"$f":"T_DataComboFile[[#This Row],[2022/23 Baseline]]+T_DataComboFile[[#This Row],[2022/23 Reduction]]+T_DataComboFile[[#This Row],[2022/23 Increase]]","v":0},{"$f":"T_DataComboFile[[#This Row],[2023/24 Baseline]]+T_DataComboFile[[#This Row],[2023/24 Reduction]]+T_DataComboFile[[#This Row],[2023/24 Increase]]","v":0}]
[null,null,"2021_22","ENE2020",36,4,2,null,71147,36,4,2,null,"071147","36|04|02",2,2,6,47,49,"02|02|06|47|49","National","Small Business Development","Enterprise Development and Entrepreneurship","SMMEs Programme Design and Support",null,"Capital","Transfers and subsidies","Higher education institutions","Higher education institutions","Higher education institutions",null,null,null,0,0,0,0,0,0,0,0,0,0,0,0,0,0,null,{"$f":"IF(T_DataComboFile[[#This Row],[G&S reporting level indicator]]=1,$AX$16,\"Not applicable\")","v":"Level 3"},{"$f":"IF(AND($AX$16=\"Level 3\",T_DataComboFile[[#This Row],[Econ3]] = \"Goods and services\"),IF(T_DataComboFile[[#This Row],[Econ4]] = T_DataComboFile[[#This Row],[Econ3]],1,0),IF(AND($AX$16=\"Level 4\",T_DataComboFile[[#This Row],[Econ4]] = \"Goods and services\"),0,1))","v":1},{"$f":"T_DataComboFile[[#This Row],[2016/17_Source]]*T_DataComboFile[[#This Row],[G&S reporting level indicator]]","v":0},{"$f":"T_DataComboFile[[#This Row],[2017/18_Source]]*T_DataComboFile[[#This Row],[G&S reporting level indicator]]","v":0},{"$f":"T_DataComboFile[[#This Row],[2018/19_Source]]*T_DataComboFile[[#This Row],[G&S reporting level indicator]]","v":0},{"$f":"T_DataComboFile[[#This Row],[2019/20 Main appropriation_Source]]*T_DataComboFile[[#This Row],[G&S reporting level indicator]]","v":0},{"$f":"T_DataComboFile[[#This Row],[2019/20 Adjusted appropriation_Source]]*T_DataComboFile[[#This Row],[G&S reporting level indicator]]","v":0},{"$f":"T_DataComboFile[[#This Row],[2019/20 Revised estimate_Source]]*T_DataComboFile[[#This Row],[G&S reporting level indicator]]","v":0},{"$f":"T_DataComboFile[[#This Row],[2019/20 Preliminary outcome_Source]]*T_DataComboFile[[#This Row],[G&S reporting level indicator]]","v":0},{"$f":"T_DataComboFile[[#This Row],[2020/21 Original_Source]]*T_DataComboFile[[#This Row],[G&S reporting level indicator]]","v":0},{"$f":"T_DataComboFile[[#This Row],[2020/21 SAB_Source]]*T_DataComboFile[[#This Row],[G&S reporting level indicator]]","v":0},{"$f":"T_DataComboFile[[#This Row],[2020/21 Baseline_Source]]*T_DataComboFile[[#This Row],[G&S reporting level indicator]]","v":0},{"$f":"T_DataComboFile[[#This Row],[2021/22 Baseline_Source]]*T_DataComboFile[[#This Row],[G&S reporting level indicator]]","v":0},{"$f":"T_DataComboFile[[#This Row],[2022/23 Baseline_Source]]*T_DataComboFile[[#This Row],[G&S reporting level indicator]]","v":0},{"$f":"T_DataComboFile[[#This Row],[2023/24 Baseline_Source]]*T_DataComboFile[[#This Row],[G&S reporting level indicator]]","v":0},null,null,null,null,null,null,{"$f":"T_DataComboFile[[#This Row],[2021/22 Baseline]]+T_DataComboFile[[#This Row],[2021/22 Reduction]]+T_DataComboFile[[#This Row],[2021/22 Increase]]","v":0},{"$f":"T_DataComboFile[[#This Row],[2022/23 Baseline]]+T_DataComboFile[[#This Row],[2022/23 Reduction]]+T_DataComboFile[[#This Row],[2022/23 Increase]]","v":0},{"$f":"T_DataComboFile[[#This Row],[2023/24 Baseline]]+T_DataComboFile[[#This Row],[2023/24 Reduction]]+T_DataComboFile[[#This Row],[2023/24 Increase]]","v":0}]
[null,null,"2021_22","ENE2020",36,4,2,null,71148,36,4,2,null,"071148","36|04|02",2,2,7,48,50,"02|02|07|48|50","National","Small Business Development","Enterprise Development and Entrepreneurship","SMMEs Programme Design and Support",null,"Capital","Transfers and subsidies","Foreign governments and international organisations","Foreign governments and international organisations","Foreign governments and international organisations",null,null,null,0,0,0,0,0,0,0,0,0,0,0,0,0,0,null,{"$f":"IF(T_DataComboFile[[#This Row],[G&S reporting level indicator]]=1,$AX$16,\"Not applicable\")","v":"Level 3"},{"$f":"IF(AND($AX$16=\"Level 3\",T_DataComboFile[[#This Row],[Econ3]] = \"Goods and services\"),IF(T_DataComboFile[[#This Row],[Econ4]] = T_DataComboFile[[#This Row],[Econ3]],1,0),IF(AND($AX$16=\"Level 4\",T_DataComboFile[[#This Row],[Econ4]] = \"Goods and services\"),0,1))","v":1},{"$f":"T_DataComboFile[[#This Row],[2016/17_Source]]*T_DataComboFile[[#This Row],[G&S reporting level indicator]]","v":0},{"$f":"T_DataComboFile[[#This Row],[2017/18_Source]]*T_DataComboFile[[#This Row],[G&S reporting level indicator]]","v":0},{"$f":"T_DataComboFile[[#This Row],[2018/19_Source]]*T_DataComboFile[[#This Row],[G&S reporting level indicator]]","v":0},{"$f":"T_DataComboFile[[#This Row],[2019/20 Main appropriation_Source]]*T_DataComboFile[[#This Row],[G&S reporting level indicator]]","v":0},{"$f":"T_DataComboFile[[#This Row],[2019/20 Adjusted appropriation_Source]]*T_DataComboFile[[#This Row],[G&S reporting level indicator]]","v":0},{"$f":"T_DataComboFile[[#This Row],[2019/20 Revised estimate_Source]]*T_DataComboFile[[#This Row],[G&S reporting level indicator]]","v":0},{"$f":"T_DataComboFile[[#This Row],[2019/20 Preliminary outcome_Source]]*T_DataComboFile[[#This Row],[G&S reporting level indicator]]","v":0},{"$f":"T_DataComboFile[[#This Row],[2020/21 Original_Source]]*T_DataComboFile[[#This Row],[G&S reporting level indicator]]","v":0},{"$f":"T_DataComboFile[[#This Row],[2020/21 SAB_Source]]*T_DataComboFile[[#This Row],[G&S reporting level indicator]]","v":0},{"$f":"T_DataComboFile[[#This Row],[2020/21 Baseline_Source]]*T_DataComboFile[[#This Row],[G&S reporting level indicator]]","v":0},{"$f":"T_DataComboFile[[#This Row],[2021/22 Baseline_Source]]*T_DataComboFile[[#This Row],[G&S reporting level indicator]]","v":0},{"$f":"T_DataComboFile[[#This Row],[2022/23 Baseline_Source]]*T_DataComboFile[[#This Row],[G&S reporting level indicator]]","v":0},{"$f":"T_DataComboFile[[#This Row],[2023/24 Baseline_Source]]*T_DataComboFile[[#This Row],[G&S reporting level indicator]]","v":0},null,null,null,null,null,null,{"$f":"T_DataComboFile[[#This Row],[2021/22 Baseline]]+T_DataComboFile[[#This Row],[2021/22 Reduction]]+T_DataComboFile[[#This Row],[2021/22 Increase]]","v":0},{"$f":"T_DataComboFile[[#This Row],[2022/23 Baseline]]+T_DataComboFile[[#This Row],[2022/23 Reduction]]+T_DataComboFile[[#This Row],[2022/23 Increase]]","v":0},{"$f":"T_DataComboFile[[#This Row],[2023/24 Baseline]]+T_DataComboFile[[#This Row],[2023/24 Reduction]]+T_DataComboFile[[#This Row],[2023/24 Increase]]","v":0}]
[null,null,"2021_22","ENE2020",36,4,2,null,71149,36,4,2,null,"071149","36|04|02",2,2,8,49,51,"02|02|08|49|51","National","Small Business Development","Enterprise Development and Entrepreneurship","SMMEs Programme Design and Support",null,"Capital","Transfers and subsidies","Public corporations and private enterprises","Public corporations","Subsidies on products and production (pc)",null,null,null,0,0,0,0,0,0,0,0,0,0,0,0,0,0,null,{"$f":"IF(T_DataComboFile[[#This Row],[G&S reporting level indicator]]=1,$AX$16,\"Not applicable\")","v":"Level 3"},{"$f":"IF(AND($AX$16=\"Level 3\",T_DataComboFile[[#This Row],[Econ3]] = \"Goods and services\"),IF(T_DataComboFile[[#This Row],[Econ4]] = T_DataComboFile[[#This Row],[Econ3]],1,0),IF(AND($AX$16=\"Level 4\",T_DataComboFile[[#This Row],[Econ4]] = \"Goods and services\"),0,1))","v":1},{"$f":"T_DataComboFile[[#This Row],[2016/17_Source]]*T_DataComboFile[[#This Row],[G&S reporting level indicator]]","v":0},{"$f":"T_DataComboFile[[#This Row],[2017/18_Source]]*T_DataComboFile[[#This Row],[G&S reporting level indicator]]","v":0},{"$f":"T_DataComboFile[[#This Row],[2018/19_Source]]*T_DataComboFile[[#This Row],[G&S reporting level indicator]]","v":0},{"$f":"T_DataComboFile[[#This Row],[2019/20 Main appropriation_Source]]*T_DataComboFile[[#This Row],[G&S reporting level indicator]]","v":0},{"$f":"T_DataComboFile[[#This Row],[2019/20 Adjusted appropriation_Source]]*T_DataComboFile[[#This Row],[G&S reporting level indicator]]","v":0},{"$f":"T_DataComboFile[[#This Row],[2019/20 Revised estimate_Source]]*T_DataComboFile[[#This Row],[G&S reporting level indicator]]","v":0},{"$f":"T_DataComboFile[[#This Row],[2019/20 Preliminary outcome_Source]]*T_DataComboFile[[#This Row],[G&S reporting level indicator]]","v":0},{"$f":"T_DataComboFile[[#This Row],[2020/21 Original_Source]]*T_DataComboFile[[#This Row],[G&S reporting level indicator]]","v":0},{"$f":"T_DataComboFile[[#This Row],[2020/21 SAB_Source]]*T_DataComboFile[[#This Row],[G&S reporting level indicator]]","v":0},{"$f":"T_DataComboFile[[#This Row],[2020/21 Baseline_Source]]*T_DataComboFile[[#This Row],[G&S reporting level indicator]]","v":0},{"$f":"T_DataComboFile[[#This Row],[2021/22 Baseline_Source]]*T_DataComboFile[[#This Row],[G&S reporting level indicator]]","v":0},{"$f":"T_DataComboFile[[#This Row],[2022/23 Baseline_Source]]*T_DataComboFile[[#This Row],[G&S reporting level indicator]]","v":0},{"$f":"T_DataComboFile[[#This Row],[2023/24 Baseline_Source]]*T_DataComboFile[[#This Row],[G&S reporting level indicator]]","v":0},null,null,null,null,null,null,{"$f":"T_DataComboFile[[#This Row],[2021/22 Baseline]]+T_DataComboFile[[#This Row],[2021/22 Reduction]]+T_DataComboFile[[#This Row],[2021/22 Increase]]","v":0},{"$f":"T_DataComboFile[[#This Row],[2022/23 Baseline]]+T_DataComboFile[[#This Row],[2022/23 Reduction]]+T_DataComboFile[[#This Row],[2022/23 Increase]]","v":0},{"$f":"T_DataComboFile[[#This Row],[2023/24 Baseline]]+T_DataComboFile[[#This Row],[2023/24 Reduction]]+T_DataComboFile[[#This Row],[2023/24 Increase]]","v":0}]
[null,null,"2021_22","ENE2020",36,4,2,null,71150,36,4,2,null,"071150","36|04|02",2,2,8,49,52,"02|02|08|49|52","National","Small Business Development","Enterprise Development and Entrepreneurship","SMMEs Programme Design and Support",null,"Capital","Transfers and subsidies","Public corporations and private enterprises","Public corporations","Other transfers to public corporations",null,null,null,0,0,0,0,0,0,0,0,0,0,0,0,0,0,null,{"$f":"IF(T_DataComboFile[[#This Row],[G&S reporting level indicator]]=1,$AX$16,\"Not applicable\")","v":"Level 3"},{"$f":"IF(AND($AX$16=\"Level 3\",T_DataComboFile[[#This Row],[Econ3]] = \"Goods and services\"),IF(T_DataComboFile[[#This Row],[Econ4]] = T_DataComboFile[[#This Row],[Econ3]],1,0),IF(AND($AX$16=\"Level 4\",T_DataComboFile[[#This Row],[Econ4]] = \"Goods and services\"),0,1))","v":1},{"$f":"T_DataComboFile[[#This Row],[2016/17_Source]]*T_DataComboFile[[#This Row],[G&S reporting level indicator]]","v":0},{"$f":"T_DataComboFile[[#This Row],[2017/18_Source]]*T_DataComboFile[[#This Row],[G&S reporting level indicator]]","v":0},{"$f":"T_DataComboFile[[#This Row],[2018/19_Source]]*T_DataComboFile[[#This Row],[G&S reporting level indicator]]","v":0},{"$f":"T_DataComboFile[[#This Row],[2019/20 Main appropriation_Source]]*T_DataComboFile[[#This Row],[G&S reporting level indicator]]","v":0},{"$f":"T_DataComboFile[[#This Row],[2019/20 Adjusted appropriation_Source]]*T_DataComboFile[[#This Row],[G&S reporting level indicator]]","v":0},{"$f":"T_DataComboFile[[#This Row],[2019/20 Revised estimate_Source]]*T_DataComboFile[[#This Row],[G&S reporting level indicator]]","v":0},{"$f":"T_DataComboFile[[#This Row],[2019/20 Preliminary outcome_Source]]*T_DataComboFile[[#This Row],[G&S reporting level indicator]]","v":0},{"$f":"T_DataComboFile[[#This Row],[2020/21 Original_Source]]*T_DataComboFile[[#This Row],[G&S reporting level indicator]]","v":0},{"$f":"T_DataComboFile[[#This Row],[2020/21 SAB_Source]]*T_DataComboFile[[#This Row],[G&S reporting level indicator]]","v":0},{"$f":"T_DataComboFile[[#This Row],[2020/21 Baseline_Source]]*T_DataComboFile[[#This Row],[G&S reporting level indicator]]","v":0},{"$f":"T_DataComboFile[[#This Row],[2021/22 Baseline_Source]]*T_DataComboFile[[#This Row],[G&S reporting level indicator]]","v":0},{"$f":"T_DataComboFile[[#This Row],[2022/23 Baseline_Source]]*T_DataComboFile[[#This Row],[G&S reporting level indicator]]","v":0},{"$f":"T_DataComboFile[[#This Row],[2023/24 Baseline_Source]]*T_DataComboFile[[#This Row],[G&S reporting level indicator]]","v":0},null,null,null,null,null,null,{"$f":"T_DataComboFile[[#This Row],[2021/22 Baseline]]+T_DataComboFile[[#This Row],[2021/22 Reduction]]+T_DataComboFile[[#This Row],[2021/22 Increase]]","v":0},{"$f":"T_DataComboFile[[#This Row],[2022/23 Baseline]]+T_DataComboFile[[#This Row],[2022/23 Reduction]]+T_DataComboFile[[#This Row],[2022/23 Increase]]","v":0},{"$f":"T_DataComboFile[[#This Row],[2023/24 Baseline]]+T_DataComboFile[[#This Row],[2023/24 Reduction]]+T_DataComboFile[[#This Row],[2023/24 Increase]]","v":0}]
[null,null,"2021_22","ENE2020",36,4,2,null,71151,36,4,2,null,"071151","36|04|02",2,2,8,50,54,"02|02|08|50|54","National","Small Business Development","Enterprise Development and Entrepreneurship","SMMEs Programme Design and Support",null,"Capital","Transfers and subsidies","Public corporations and private enterprises","Private enterprises","Other transfers to private enterprises",null,null,null,0,0,0,0,0,0,0,0,0,0,0,0,0,0,null,{"$f":"IF(T_DataComboFile[[#This Row],[G&S reporting level indicator]]=1,$AX$16,\"Not applicable\")","v":"Level 3"},{"$f":"IF(AND($AX$16=\"Level 3\",T_DataComboFile[[#This Row],[Econ3]] = \"Goods and services\"),IF(T_DataComboFile[[#This Row],[Econ4]] = T_DataComboFile[[#This Row],[Econ3]],1,0),IF(AND($AX$16=\"Level 4\",T_DataComboFile[[#This Row],[Econ4]] = \"Goods and services\"),0,1))","v":1},{"$f":"T_DataComboFile[[#This Row],[2016/17_Source]]*T_DataComboFile[[#This Row],[G&S reporting level indicator]]","v":0},{"$f":"T_DataComboFile[[#This Row],[2017/18_Source]]*T_DataComboFile[[#This Row],[G&S reporting level indicator]]","v":0},{"$f":"T_DataComboFile[[#This Row],[2018/19_Source]]*T_DataComboFile[[#This Row],[G&S reporting level indicator]]","v":0},{"$f":"T_DataComboFile[[#This Row],[2019/20 Main appropriation_Source]]*T_DataComboFile[[#This Row],[G&S reporting level indicator]]","v":0},{"$f":"T_DataComboFile[[#This Row],[2019/20 Adjusted appropriation_Source]]*T_DataComboFile[[#This Row],[G&S reporting level indicator]]","v":0},{"$f":"T_DataComboFile[[#This Row],[2019/20 Revised estimate_Source]]*T_DataComboFile[[#This Row],[G&S reporting level indicator]]","v":0},{"$f":"T_DataComboFile[[#This Row],[2019/20 Preliminary outcome_Source]]*T_DataComboFile[[#This Row],[G&S reporting level indicator]]","v":0},{"$f":"T_DataComboFile[[#This Row],[2020/21 Original_Source]]*T_DataComboFile[[#This Row],[G&S reporting level indicator]]","v":0},{"$f":"T_DataComboFile[[#This Row],[2020/21 SAB_Source]]*T_DataComboFile[[#This Row],[G&S reporting level indicator]]","v":0},{"$f":"T_DataComboFile[[#This Row],[2020/21 Baseline_Source]]*T_DataComboFile[[#This Row],[G&S reporting level indicator]]","v":0},{"$f":"T_DataComboFile[[#This Row],[2021/22 Baseline_Source]]*T_DataComboFile[[#This Row],[G&S reporting level indicator]]","v":0},{"$f":"T_DataComboFile[[#This Row],[2022/23 Baseline_Source]]*T_DataComboFile[[#This Row],[G&S reporting level indicator]]","v":0},{"$f":"T_DataComboFile[[#This Row],[2023/24 Baseline_Source]]*T_DataComboFile[[#This Row],[G&S reporting level indicator]]","v":0},null,null,null,null,null,null,{"$f":"T_DataComboFile[[#This Row],[2021/22 Baseline]]+T_DataComboFile[[#This Row],[2021/22 Reduction]]+T_DataComboFile[[#This Row],[2021/22 Increase]]","v":0},{"$f":"T_DataComboFile[[#This Row],[2022/23 Baseline]]+T_DataComboFile[[#This Row],[2022/23 Reduction]]+T_DataComboFile[[#This Row],[2022/23 Increase]]","v":0},{"$f":"T_DataComboFile[[#This Row],[2023/24 Baseline]]+T_DataComboFile[[#This Row],[2023/24 Reduction]]+T_DataComboFile[[#This Row],[2023/24 Increase]]","v":0}]
[null,null,"2021_22","ENE2020",36,4,2,null,71152,36,4,2,null,"071152","36|04|02",2,2,9,51,55,"02|02|09|51|55","National","Small Business Development","Enterprise Development and Entrepreneurship","SMMEs Programme Design and Support",null,"Capital","Transfers and subsidies","Non-profit institutions","Non-profit institutions","Non-profit institutions",null,null,null,0,0,0,0,0,0,0,0,0,0,0,0,0,0,null,{"$f":"IF(T_DataComboFile[[#This Row],[G&S reporting level indicator]]=1,$AX$16,\"Not applicable\")","v":"Level 3"},{"$f":"IF(AND($AX$16=\"Level 3\",T_DataComboFile[[#This Row],[Econ3]] = \"Goods and services\"),IF(T_DataComboFile[[#This Row],[Econ4]] = T_DataComboFile[[#This Row],[Econ3]],1,0),IF(AND($AX$16=\"Level 4\",T_DataComboFile[[#This Row],[Econ4]] = \"Goods and services\"),0,1))","v":1},{"$f":"T_DataComboFile[[#This Row],[2016/17_Source]]*T_DataComboFile[[#This Row],[G&S reporting level indicator]]","v":0},{"$f":"T_DataComboFile[[#This Row],[2017/18_Source]]*T_DataComboFile[[#This Row],[G&S reporting level indicator]]","v":0},{"$f":"T_DataComboFile[[#This Row],[2018/19_Source]]*T_DataComboFile[[#This Row],[G&S reporting level indicator]]","v":0},{"$f":"T_DataComboFile[[#This Row],[2019/20 Main appropriation_Source]]*T_DataComboFile[[#This Row],[G&S reporting level indicator]]","v":0},{"$f":"T_DataComboFile[[#This Row],[2019/20 Adjusted appropriation_Source]]*T_DataComboFile[[#This Row],[G&S reporting level indicator]]","v":0},{"$f":"T_DataComboFile[[#This Row],[2019/20 Revised estimate_Source]]*T_DataComboFile[[#This Row],[G&S reporting level indicator]]","v":0},{"$f":"T_DataComboFile[[#This Row],[2019/20 Preliminary outcome_Source]]*T_DataComboFile[[#This Row],[G&S reporting level indicator]]","v":0},{"$f":"T_DataComboFile[[#This Row],[2020/21 Original_Source]]*T_DataComboFile[[#This Row],[G&S reporting level indicator]]","v":0},{"$f":"T_DataComboFile[[#This Row],[2020/21 SAB_Source]]*T_DataComboFile[[#This Row],[G&S reporting level indicator]]","v":0},{"$f":"T_DataComboFile[[#This Row],[2020/21 Baseline_Source]]*T_DataComboFile[[#This Row],[G&S reporting level indicator]]","v":0},{"$f":"T_DataComboFile[[#This Row],[2021/22 Baseline_Source]]*T_DataComboFile[[#This Row],[G&S reporting level indicator]]","v":0},{"$f":"T_DataComboFile[[#This Row],[2022/23 Baseline_Source]]*T_DataComboFile[[#This Row],[G&S reporting level indicator]]","v":0},{"$f":"T_DataComboFile[[#This Row],[2023/24 Baseline_Source]]*T_DataComboFile[[#This Row],[G&S reporting level indicator]]","v":0},null,null,null,null,null,null,{"$f":"T_DataComboFile[[#This Row],[2021/22 Baseline]]+T_DataComboFile[[#This Row],[2021/22 Reduction]]+T_DataComboFile[[#This Row],[2021/22 Increase]]","v":0},{"$f":"T_DataComboFile[[#This Row],[2022/23 Baseline]]+T_DataComboFile[[#This Row],[2022/23 Reduction]]+T_DataComboFile[[#This Row],[2022/23 Increase]]","v":0},{"$f":"T_DataComboFile[[#This Row],[2023/24 Baseline]]+T_DataComboFile[[#This Row],[2023/24 Reduction]]+T_DataComboFile[[#This Row],[2023/24 Increase]]","v":0}]
[null,null,"2021_22","ENE2020",36,4,2,null,71153,36,4,2,null,"071153","36|04|02",2,2,10,53,57,"02|02|10|53|57","National","Small Business Development","Enterprise Development and Entrepreneurship","SMMEs Programme Design and Support",null,"Capital","Transfers and subsidies","Households","Other transfers to households","Other transfers to households",null,null,null,0,0,0,0,0,0,0,0,0,0,0,0,0,0,null,{"$f":"IF(T_DataComboFile[[#This Row],[G&S reporting level indicator]]=1,$AX$16,\"Not applicable\")","v":"Level 3"},{"$f":"IF(AND($AX$16=\"Level 3\",T_DataComboFile[[#This Row],[Econ3]] = \"Goods and services\"),IF(T_DataComboFile[[#This Row],[Econ4]] = T_DataComboFile[[#This Row],[Econ3]],1,0),IF(AND($AX$16=\"Level 4\",T_DataComboFile[[#This Row],[Econ4]] = \"Goods and services\"),0,1))","v":1},{"$f":"T_DataComboFile[[#This Row],[2016/17_Source]]*T_DataComboFile[[#This Row],[G&S reporting level indicator]]","v":0},{"$f":"T_DataComboFile[[#This Row],[2017/18_Source]]*T_DataComboFile[[#This Row],[G&S reporting level indicator]]","v":0},{"$f":"T_DataComboFile[[#This Row],[2018/19_Source]]*T_DataComboFile[[#This Row],[G&S reporting level indicator]]","v":0},{"$f":"T_DataComboFile[[#This Row],[2019/20 Main appropriation_Source]]*T_DataComboFile[[#This Row],[G&S reporting level indicator]]","v":0},{"$f":"T_DataComboFile[[#This Row],[2019/20 Adjusted appropriation_Source]]*T_DataComboFile[[#This Row],[G&S reporting level indicator]]","v":0},{"$f":"T_DataComboFile[[#This Row],[2019/20 Revised estimate_Source]]*T_DataComboFile[[#This Row],[G&S reporting level indicator]]","v":0},{"$f":"T_DataComboFile[[#This Row],[2019/20 Preliminary outcome_Source]]*T_DataComboFile[[#This Row],[G&S reporting level indicator]]","v":0},{"$f":"T_DataComboFile[[#This Row],[2020/21 Original_Source]]*T_DataComboFile[[#This Row],[G&S reporting level indicator]]","v":0},{"$f":"T_DataComboFile[[#This Row],[2020/21 SAB_Source]]*T_DataComboFile[[#This Row],[G&S reporting level indicator]]","v":0},{"$f":"T_DataComboFile[[#This Row],[2020/21 Baseline_Source]]*T_DataComboFile[[#This Row],[G&S reporting level indicator]]","v":0},{"$f":"T_DataComboFile[[#This Row],[2021/22 Baseline_Source]]*T_DataComboFile[[#This Row],[G&S reporting level indicator]]","v":0},{"$f":"T_DataComboFile[[#This Row],[2022/23 Baseline_Source]]*T_DataComboFile[[#This Row],[G&S reporting level indicator]]","v":0},{"$f":"T_DataComboFile[[#This Row],[2023/24 Baseline_Source]]*T_DataComboFile[[#This Row],[G&S reporting level indicator]]","v":0},null,null,null,null,null,null,{"$f":"T_DataComboFile[[#This Row],[2021/22 Baseline]]+T_DataComboFile[[#This Row],[2021/22 Reduction]]+T_DataComboFile[[#This Row],[2021/22 Increase]]","v":0},{"$f":"T_DataComboFile[[#This Row],[2022/23 Baseline]]+T_DataComboFile[[#This Row],[2022/23 Reduction]]+T_DataComboFile[[#This Row],[2022/23 Increase]]","v":0},{"$f":"T_DataComboFile[[#This Row],[2023/24 Baseline]]+T_DataComboFile[[#This Row],[2023/24 Reduction]]+T_DataComboFile[[#This Row],[2023/24 Increase]]","v":0}]
[null,null,"2021_22","ENE2020",36,4,2,null,71154,36,4,2,null,"071154","36|04|02",2,3,11,54,58,"02|03|11|54|58","National","Small Business Development","Enterprise Development and Entrepreneurship","SMMEs Programme Design and Support",null,"Capital","Payments for capital assets","Buildings and other fixed structures","Buildings","Buildings",null,null,null,0,0,0,0,0,0,0,0,0,0,0,0,0,0,null,{"$f":"IF(T_DataComboFile[[#This Row],[G&S reporting level indicator]]=1,$AX$16,\"Not applicable\")","v":"Level 3"},{"$f":"IF(AND($AX$16=\"Level 3\",T_DataComboFile[[#This Row],[Econ3]] = \"Goods and services\"),IF(T_DataComboFile[[#This Row],[Econ4]] = T_DataComboFile[[#This Row],[Econ3]],1,0),IF(AND($AX$16=\"Level 4\",T_DataComboFile[[#This Row],[Econ4]] = \"Goods and services\"),0,1))","v":1},{"$f":"T_DataComboFile[[#This Row],[2016/17_Source]]*T_DataComboFile[[#This Row],[G&S reporting level indicator]]","v":0},{"$f":"T_DataComboFile[[#This Row],[2017/18_Source]]*T_DataComboFile[[#This Row],[G&S reporting level indicator]]","v":0},{"$f":"T_DataComboFile[[#This Row],[2018/19_Source]]*T_DataComboFile[[#This Row],[G&S reporting level indicator]]","v":0},{"$f":"T_DataComboFile[[#This Row],[2019/20 Main appropriation_Source]]*T_DataComboFile[[#This Row],[G&S reporting level indicator]]","v":0},{"$f":"T_DataComboFile[[#This Row],[2019/20 Adjusted appropriation_Source]]*T_DataComboFile[[#This Row],[G&S reporting level indicator]]","v":0},{"$f":"T_DataComboFile[[#This Row],[2019/20 Revised estimate_Source]]*T_DataComboFile[[#This Row],[G&S reporting level indicator]]","v":0},{"$f":"T_DataComboFile[[#This Row],[2019/20 Preliminary outcome_Source]]*T_DataComboFile[[#This Row],[G&S reporting level indicator]]","v":0},{"$f":"T_DataComboFile[[#This Row],[2020/21 Original_Source]]*T_DataComboFile[[#This Row],[G&S reporting level indicator]]","v":0},{"$f":"T_DataComboFile[[#This Row],[2020/21 SAB_Source]]*T_DataComboFile[[#This Row],[G&S reporting level indicator]]","v":0},{"$f":"T_DataComboFile[[#This Row],[2020/21 Baseline_Source]]*T_DataComboFile[[#This Row],[G&S reporting level indicator]]","v":0},{"$f":"T_DataComboFile[[#This Row],[2021/22 Baseline_Source]]*T_DataComboFile[[#This Row],[G&S reporting level indicator]]","v":0},{"$f":"T_DataComboFile[[#This Row],[2022/23 Baseline_Source]]*T_DataComboFile[[#This Row],[G&S reporting level indicator]]","v":0},{"$f":"T_DataComboFile[[#This Row],[2023/24 Baseline_Source]]*T_DataComboFile[[#This Row],[G&S reporting level indicator]]","v":0},null,null,null,null,null,null,{"$f":"T_DataComboFile[[#This Row],[2021/22 Baseline]]+T_DataComboFile[[#This Row],[2021/22 Reduction]]+T_DataComboFile[[#This Row],[2021/22 Increase]]","v":0},{"$f":"T_DataComboFile[[#This Row],[2022/23 Baseline]]+T_DataComboFile[[#This Row],[2022/23 Reduction]]+T_DataComboFile[[#This Row],[2022/23 Increase]]","v":0},{"$f":"T_DataComboFile[[#This Row],[2023/24 Baseline]]+T_DataComboFile[[#This Row],[2023/24 Reduction]]+T_DataComboFile[[#This Row],[2023/24 Increase]]","v":0}]
[null,null,"2021_22","ENE2020",36,4,2,null,71155,36,4,2,null,"071155","36|04|02",2,3,11,55,59,"02|03|11|55|59","National","Small Business Development","Enterprise Development and Entrepreneurship","SMMEs Programme Design and Support",null,"Capital","Payments for capital assets","Buildings and other fixed structures","Other fixed structures","Other fixed structures",null,null,null,0,0,0,0,0,0,0,0,0,0,0,0,0,0,null,{"$f":"IF(T_DataComboFile[[#This Row],[G&S reporting level indicator]]=1,$AX$16,\"Not applicable\")","v":"Level 3"},{"$f":"IF(AND($AX$16=\"Level 3\",T_DataComboFile[[#This Row],[Econ3]] = \"Goods and services\"),IF(T_DataComboFile[[#This Row],[Econ4]] = T_DataComboFile[[#This Row],[Econ3]],1,0),IF(AND($AX$16=\"Level 4\",T_DataComboFile[[#This Row],[Econ4]] = \"Goods and services\"),0,1))","v":1},{"$f":"T_DataComboFile[[#This Row],[2016/17_Source]]*T_DataComboFile[[#This Row],[G&S reporting level indicator]]","v":0},{"$f":"T_DataComboFile[[#This Row],[2017/18_Source]]*T_DataComboFile[[#This Row],[G&S reporting level indicator]]","v":0},{"$f":"T_DataComboFile[[#This Row],[2018/19_Source]]*T_DataComboFile[[#This Row],[G&S reporting level indicator]]","v":0},{"$f":"T_DataComboFile[[#This Row],[2019/20 Main appropriation_Source]]*T_DataComboFile[[#This Row],[G&S reporting level indicator]]","v":0},{"$f":"T_DataComboFile[[#This Row],[2019/20 Adjusted appropriation_Source]]*T_DataComboFile[[#This Row],[G&S reporting level indicator]]","v":0},{"$f":"T_DataComboFile[[#This Row],[2019/20 Revised estimate_Source]]*T_DataComboFile[[#This Row],[G&S reporting level indicator]]","v":0},{"$f":"T_DataComboFile[[#This Row],[2019/20 Preliminary outcome_Source]]*T_DataComboFile[[#This Row],[G&S reporting level indicator]]","v":0},{"$f":"T_DataComboFile[[#This Row],[2020/21 Original_Source]]*T_DataComboFile[[#This Row],[G&S reporting level indicator]]","v":0},{"$f":"T_DataComboFile[[#This Row],[2020/21 SAB_Source]]*T_DataComboFile[[#This Row],[G&S reporting level indicator]]","v":0},{"$f":"T_DataComboFile[[#This Row],[2020/21 Baseline_Source]]*T_DataComboFile[[#This Row],[G&S reporting level indicator]]","v":0},{"$f":"T_DataComboFile[[#This Row],[2021/22 Baseline_Source]]*T_DataComboFile[[#This Row],[G&S reporting level indicator]]","v":0},{"$f":"T_DataComboFile[[#This Row],[2022/23 Baseline_Source]]*T_DataComboFile[[#This Row],[G&S reporting level indicator]]","v":0},{"$f":"T_DataComboFile[[#This Row],[2023/24 Baseline_Source]]*T_DataComboFile[[#This Row],[G&S reporting level indicator]]","v":0},null,null,null,null,null,null,{"$f":"T_DataComboFile[[#This Row],[2021/22 Baseline]]+T_DataComboFile[[#This Row],[2021/22 Reduction]]+T_DataComboFile[[#This Row],[2021/22 Increase]]","v":0},{"$f":"T_DataComboFile[[#This Row],[2022/23 Baseline]]+T_DataComboFile[[#This Row],[2022/23 Reduction]]+T_DataComboFile[[#This Row],[2022/23 Increase]]","v":0},{"$f":"T_DataComboFile[[#This Row],[2023/24 Baseline]]+T_DataComboFile[[#This Row],[2023/24 Reduction]]+T_DataComboFile[[#This Row],[2023/24 Increase]]","v":0}]
[null,null,"2021_22","ENE2020",36,4,2,null,71156,36,4,2,null,"071156","36|04|02",2,3,12,56,60,"02|03|12|56|60","National","Small Business Development","Enterprise Development and Entrepreneurship","SMMEs Programme Design and Support",null,"Capital","Payments for capital assets","Machinery and equipment","Transport equipment","Transport equipment",null,null,null,0,0,0,0,0,0,0,0,0,0,0,0,0,0,null,{"$f":"IF(T_DataComboFile[[#This Row],[G&S reporting level indicator]]=1,$AX$16,\"Not applicable\")","v":"Level 3"},{"$f":"IF(AND($AX$16=\"Level 3\",T_DataComboFile[[#This Row],[Econ3]] = \"Goods and services\"),IF(T_DataComboFile[[#This Row],[Econ4]] = T_DataComboFile[[#This Row],[Econ3]],1,0),IF(AND($AX$16=\"Level 4\",T_DataComboFile[[#This Row],[Econ4]] = \"Goods and services\"),0,1))","v":1},{"$f":"T_DataComboFile[[#This Row],[2016/17_Source]]*T_DataComboFile[[#This Row],[G&S reporting level indicator]]","v":0},{"$f":"T_DataComboFile[[#This Row],[2017/18_Source]]*T_DataComboFile[[#This Row],[G&S reporting level indicator]]","v":0},{"$f":"T_DataComboFile[[#This Row],[2018/19_Source]]*T_DataComboFile[[#This Row],[G&S reporting level indicator]]","v":0},{"$f":"T_DataComboFile[[#This Row],[2019/20 Main appropriation_Source]]*T_DataComboFile[[#This Row],[G&S reporting level indicator]]","v":0},{"$f":"T_DataComboFile[[#This Row],[2019/20 Adjusted appropriation_Source]]*T_DataComboFile[[#This Row],[G&S reporting level indicator]]","v":0},{"$f":"T_DataComboFile[[#This Row],[2019/20 Revised estimate_Source]]*T_DataComboFile[[#This Row],[G&S reporting level indicator]]","v":0},{"$f":"T_DataComboFile[[#This Row],[2019/20 Preliminary outcome_Source]]*T_DataComboFile[[#This Row],[G&S reporting level indicator]]","v":0},{"$f":"T_DataComboFile[[#This Row],[2020/21 Original_Source]]*T_DataComboFile[[#This Row],[G&S reporting level indicator]]","v":0},{"$f":"T_DataComboFile[[#This Row],[2020/21 SAB_Source]]*T_DataComboFile[[#This Row],[G&S reporting level indicator]]","v":0},{"$f":"T_DataComboFile[[#This Row],[2020/21 Baseline_Source]]*T_DataComboFile[[#This Row],[G&S reporting level indicator]]","v":0},{"$f":"T_DataComboFile[[#This Row],[2021/22 Baseline_Source]]*T_DataComboFile[[#This Row],[G&S reporting level indicator]]","v":0},{"$f":"T_DataComboFile[[#This Row],[2022/23 Baseline_Source]]*T_DataComboFile[[#This Row],[G&S reporting level indicator]]","v":0},{"$f":"T_DataComboFile[[#This Row],[2023/24 Baseline_Source]]*T_DataComboFile[[#This Row],[G&S reporting level indicator]]","v":0},null,null,null,null,null,null,{"$f":"T_DataComboFile[[#This Row],[2021/22 Baseline]]+T_DataComboFile[[#This Row],[2021/22 Reduction]]+T_DataComboFile[[#This Row],[2021/22 Increase]]","v":0},{"$f":"T_DataComboFile[[#This Row],[2022/23 Baseline]]+T_DataComboFile[[#This Row],[2022/23 Reduction]]+T_DataComboFile[[#This Row],[2022/23 Increase]]","v":0},{"$f":"T_DataComboFile[[#This Row],[2023/24 Baseline]]+T_DataComboFile[[#This Row],[2023/24 Reduction]]+T_DataComboFile[[#This Row],[2023/24 Increase]]","v":0}]
["NAT|Non-transfer item","36|Other machinery and equipment","2021_22","ENE2020",36,4,2,17434,71157,36,4,2,17434,"071157","36|04|02",2,3,12,57,61,"02|03|12|57|61","National","Small Business Development","Enterprise Development and Entrepreneurship","SMMEs Programme Design and Support","Non-transfer item","Capital","Payments for capital assets","Machinery and equipment","Other machinery and equipment","Other machinery and equipment","Economic development","Industrialisation and exports","NAT",0,69,268,156,156,156,156,238,238,238,246,255,266,1,null,{"$f":"IF(T_DataComboFile[[#This Row],[G&S reporting level indicator]]=1,$AX$16,\"Not applicable\")","v":"Level 3"},{"$f":"IF(AND($AX$16=\"Level 3\",T_DataComboFile[[#This Row],[Econ3]] = \"Goods and services\"),IF(T_DataComboFile[[#This Row],[Econ4]] = T_DataComboFile[[#This Row],[Econ3]],1,0),IF(AND($AX$16=\"Level 4\",T_DataComboFile[[#This Row],[Econ4]] = \"Goods and services\"),0,1))","v":1},{"$f":"T_DataComboFile[[#This Row],[2016/17_Source]]*T_DataComboFile[[#This Row],[G&S reporting level indicator]]","v":0},{"$f":"T_DataComboFile[[#This Row],[2017/18_Source]]*T_DataComboFile[[#This Row],[G&S reporting level indicator]]","v":69},{"$f":"T_DataComboFile[[#This Row],[2018/19_Source]]*T_DataComboFile[[#This Row],[G&S reporting level indicator]]","v":268},{"$f":"T_DataComboFile[[#This Row],[2019/20 Main appropriation_Source]]*T_DataComboFile[[#This Row],[G&S reporting level indicator]]","v":156},{"$f":"T_DataComboFile[[#This Row],[2019/20 Adjusted appropriation_Source]]*T_DataComboFile[[#This Row],[G&S reporting level indicator]]","v":156},{"$f":"T_DataComboFile[[#This Row],[2019/20 Revised estimate_Source]]*T_DataComboFile[[#This Row],[G&S reporting level indicator]]","v":156},{"$f":"T_DataComboFile[[#This Row],[2019/20 Preliminary outcome_Source]]*T_DataComboFile[[#This Row],[G&S reporting level indicator]]","v":156},{"$f":"T_DataComboFile[[#This Row],[2020/21 Original_Source]]*T_DataComboFile[[#This Row],[G&S reporting level indicator]]","v":238},{"$f":"T_DataComboFile[[#This Row],[2020/21 SAB_Source]]*T_DataComboFile[[#This Row],[G&S reporting level indicator]]","v":238},{"$f":"T_DataComboFile[[#This Row],[2020/21 Baseline_Source]]*T_DataComboFile[[#This Row],[G&S reporting level indicator]]","v":238},{"$f":"T_DataComboFile[[#This Row],[2021/22 Baseline_Source]]*T_DataComboFile[[#This Row],[G&S reporting level indicator]]","v":246},{"$f":"T_DataComboFile[[#This Row],[2022/23 Baseline_Source]]*T_DataComboFile[[#This Row],[G&S reporting level indicator]]","v":255},{"$f":"T_DataComboFile[[#This Row],[2023/24 Baseline_Source]]*T_DataComboFile[[#This Row],[G&S reporting level indicator]]","v":266},null,null,null,null,null,null,{"$f":"T_DataComboFile[[#This Row],[2021/22 Baseline]]+T_DataComboFile[[#This Row],[2021/22 Reduction]]+T_DataComboFile[[#This Row],[2021/22 Increase]]","v":246},{"$f":"T_DataComboFile[[#This Row],[2022/23 Baseline]]+T_DataComboFile[[#This Row],[2022/23 Reduction]]+T_DataComboFile[[#This Row],[2022/23 Increase]]","v":255},{"$f":"T_DataComboFile[[#This Row],[2023/24 Baseline]]+T_DataComboFile[[#This Row],[2023/24 Reduction]]+T_DataComboFile[[#This Row],[2023/24 Increase]]","v":266}]
[null,null,"2021_22","ENE2020",36,4,2,null,71158,36,4,2,null,"071158","36|04|02",2,3,13,58,62,"02|03|13|58|62","National","Small Business Development","Enterprise Development and Entrepreneurship","SMMEs Programme Design and Support",null,"Capital","Payments for capital assets","Heritage assets","Heritage assets","Heritage assets",null,null,null,0,0,0,0,0,0,0,0,0,0,0,0,0,0,null,{"$f":"IF(T_DataComboFile[[#This Row],[G&S reporting level indicator]]=1,$AX$16,\"Not applicable\")","v":"Level 3"},{"$f":"IF(AND($AX$16=\"Level 3\",T_DataComboFile[[#This Row],[Econ3]] = \"Goods and services\"),IF(T_DataComboFile[[#This Row],[Econ4]] = T_DataComboFile[[#This Row],[Econ3]],1,0),IF(AND($AX$16=\"Level 4\",T_DataComboFile[[#This Row],[Econ4]] = \"Goods and services\"),0,1))","v":1},{"$f":"T_DataComboFile[[#This Row],[2016/17_Source]]*T_DataComboFile[[#This Row],[G&S reporting level indicator]]","v":0},{"$f":"T_DataComboFile[[#This Row],[2017/18_Source]]*T_DataComboFile[[#This Row],[G&S reporting level indicator]]","v":0},{"$f":"T_DataComboFile[[#This Row],[2018/19_Source]]*T_DataComboFile[[#This Row],[G&S reporting level indicator]]","v":0},{"$f":"T_DataComboFile[[#This Row],[2019/20 Main appropriation_Source]]*T_DataComboFile[[#This Row],[G&S reporting level indicator]]","v":0},{"$f":"T_DataComboFile[[#This Row],[2019/20 Adjusted appropriation_Source]]*T_DataComboFile[[#This Row],[G&S reporting level indicator]]","v":0},{"$f":"T_DataComboFile[[#This Row],[2019/20 Revised estimate_Source]]*T_DataComboFile[[#This Row],[G&S reporting level indicator]]","v":0},{"$f":"T_DataComboFile[[#This Row],[2019/20 Preliminary outcome_Source]]*T_DataComboFile[[#This Row],[G&S reporting level indicator]]","v":0},{"$f":"T_DataComboFile[[#This Row],[2020/21 Original_Source]]*T_DataComboFile[[#This Row],[G&S reporting level indicator]]","v":0},{"$f":"T_DataComboFile[[#This Row],[2020/21 SAB_Source]]*T_DataComboFile[[#This Row],[G&S reporting level indicator]]","v":0},{"$f":"T_DataComboFile[[#This Row],[2020/21 Baseline_Source]]*T_DataComboFile[[#This Row],[G&S reporting level indicator]]","v":0},{"$f":"T_DataComboFile[[#This Row],[2021/22 Baseline_Source]]*T_DataComboFile[[#This Row],[G&S reporting level indicator]]","v":0},{"$f":"T_DataComboFile[[#This Row],[2022/23 Baseline_Source]]*T_DataComboFile[[#This Row],[G&S reporting level indicator]]","v":0},{"$f":"T_DataComboFile[[#This Row],[2023/24 Baseline_Source]]*T_DataComboFile[[#This Row],[G&S reporting level indicator]]","v":0},null,null,null,null,null,null,{"$f":"T_DataComboFile[[#This Row],[2021/22 Baseline]]+T_DataComboFile[[#This Row],[2021/22 Reduction]]+T_DataComboFile[[#This Row],[2021/22 Increase]]","v":0},{"$f":"T_DataComboFile[[#This Row],[2022/23 Baseline]]+T_DataComboFile[[#This Row],[2022/23 Reduction]]+T_DataComboFile[[#This Row],[2022/23 Increase]]","v":0},{"$f":"T_DataComboFile[[#This Row],[2023/24 Baseline]]+T_DataComboFile[[#This Row],[2023/24 Reduction]]+T_DataComboFile[[#This Row],[2023/24 Increase]]","v":0}]
[null,null,"2021_22","ENE2020",36,4,2,null,71159,36,4,2,null,"071159","36|04|02",2,3,14,59,63,"02|03|14|59|63","National","Small Business Development","Enterprise Development and Entrepreneurship","SMMEs Programme Design and Support",null,"Capital","Payments for capital assets","Specialised military assets","Specialised military assets","Specialised military assets",null,null,null,0,0,0,0,0,0,0,0,0,0,0,0,0,0,null,{"$f":"IF(T_DataComboFile[[#This Row],[G&S reporting level indicator]]=1,$AX$16,\"Not applicable\")","v":"Level 3"},{"$f":"IF(AND($AX$16=\"Level 3\",T_DataComboFile[[#This Row],[Econ3]] = \"Goods and services\"),IF(T_DataComboFile[[#This Row],[Econ4]] = T_DataComboFile[[#This Row],[Econ3]],1,0),IF(AND($AX$16=\"Level 4\",T_DataComboFile[[#This Row],[Econ4]] = \"Goods and services\"),0,1))","v":1},{"$f":"T_DataComboFile[[#This Row],[2016/17_Source]]*T_DataComboFile[[#This Row],[G&S reporting level indicator]]","v":0},{"$f":"T_DataComboFile[[#This Row],[2017/18_Source]]*T_DataComboFile[[#This Row],[G&S reporting level indicator]]","v":0},{"$f":"T_DataComboFile[[#This Row],[2018/19_Source]]*T_DataComboFile[[#This Row],[G&S reporting level indicator]]","v":0},{"$f":"T_DataComboFile[[#This Row],[2019/20 Main appropriation_Source]]*T_DataComboFile[[#This Row],[G&S reporting level indicator]]","v":0},{"$f":"T_DataComboFile[[#This Row],[2019/20 Adjusted appropriation_Source]]*T_DataComboFile[[#This Row],[G&S reporting level indicator]]","v":0},{"$f":"T_DataComboFile[[#This Row],[2019/20 Revised estimate_Source]]*T_DataComboFile[[#This Row],[G&S reporting level indicator]]","v":0},{"$f":"T_DataComboFile[[#This Row],[2019/20 Preliminary outcome_Source]]*T_DataComboFile[[#This Row],[G&S reporting level indicator]]","v":0},{"$f":"T_DataComboFile[[#This Row],[2020/21 Original_Source]]*T_DataComboFile[[#This Row],[G&S reporting level indicator]]","v":0},{"$f":"T_DataComboFile[[#This Row],[2020/21 SAB_Source]]*T_DataComboFile[[#This Row],[G&S reporting level indicator]]","v":0},{"$f":"T_DataComboFile[[#This Row],[2020/21 Baseline_Source]]*T_DataComboFile[[#This Row],[G&S reporting level indicator]]","v":0},{"$f":"T_DataComboFile[[#This Row],[2021/22 Baseline_Source]]*T_DataComboFile[[#This Row],[G&S reporting level indicator]]","v":0},{"$f":"T_DataComboFile[[#This Row],[2022/23 Baseline_Source]]*T_DataComboFile[[#This Row],[G&S reporting level indicator]]","v":0},{"$f":"T_DataComboFile[[#This Row],[2023/24 Baseline_Source]]*T_DataComboFile[[#This Row],[G&S reporting level indicator]]","v":0},null,null,null,null,null,null,{"$f":"T_DataComboFile[[#This Row],[2021/22 Baseline]]+T_DataComboFile[[#This Row],[2021/22 Reduction]]+T_DataComboFile[[#This Row],[2021/22 Increase]]","v":0},{"$f":"T_DataComboFile[[#This Row],[2022/23 Baseline]]+T_DataComboFile[[#This Row],[2022/23 Reduction]]+T_DataComboFile[[#This Row],[2022/23 Increase]]","v":0},{"$f":"T_DataComboFile[[#This Row],[2023/24 Baseline]]+T_DataComboFile[[#This Row],[2023/24 Reduction]]+T_DataComboFile[[#This Row],[2023/24 Increase]]","v":0}]
[null,null,"2021_22","ENE2020",36,4,2,null,71160,36,4,2,null,"071160","36|04|02",2,3,15,60,64,"02|03|15|60|64","National","Small Business Development","Enterprise Development and Entrepreneurship","SMMEs Programme Design and Support",null,"Capital","Payments for capital assets","Biological assets","Biological assets","Biological assets",null,null,null,0,0,0,0,0,0,0,0,0,0,0,0,0,0,null,{"$f":"IF(T_DataComboFile[[#This Row],[G&S reporting level indicator]]=1,$AX$16,\"Not applicable\")","v":"Level 3"},{"$f":"IF(AND($AX$16=\"Level 3\",T_DataComboFile[[#This Row],[Econ3]] = \"Goods and services\"),IF(T_DataComboFile[[#This Row],[Econ4]] = T_DataComboFile[[#This Row],[Econ3]],1,0),IF(AND($AX$16=\"Level 4\",T_DataComboFile[[#This Row],[Econ4]] = \"Goods and services\"),0,1))","v":1},{"$f":"T_DataComboFile[[#This Row],[2016/17_Source]]*T_DataComboFile[[#This Row],[G&S reporting level indicator]]","v":0},{"$f":"T_DataComboFile[[#This Row],[2017/18_Source]]*T_DataComboFile[[#This Row],[G&S reporting level indicator]]","v":0},{"$f":"T_DataComboFile[[#This Row],[2018/19_Source]]*T_DataComboFile[[#This Row],[G&S reporting level indicator]]","v":0},{"$f":"T_DataComboFile[[#This Row],[2019/20 Main appropriation_Source]]*T_DataComboFile[[#This Row],[G&S reporting level indicator]]","v":0},{"$f":"T_DataComboFile[[#This Row],[2019/20 Adjusted appropriation_Source]]*T_DataComboFile[[#This Row],[G&S reporting level indicator]]","v":0},{"$f":"T_DataComboFile[[#This Row],[2019/20 Revised estimate_Source]]*T_DataComboFile[[#This Row],[G&S reporting level indicator]]","v":0},{"$f":"T_DataComboFile[[#This Row],[2019/20 Preliminary outcome_Source]]*T_DataComboFile[[#This Row],[G&S reporting level indicator]]","v":0},{"$f":"T_DataComboFile[[#This Row],[2020/21 Original_Source]]*T_DataComboFile[[#This Row],[G&S reporting level indicator]]","v":0},{"$f":"T_DataComboFile[[#This Row],[2020/21 SAB_Source]]*T_DataComboFile[[#This Row],[G&S reporting level indicator]]","v":0},{"$f":"T_DataComboFile[[#This Row],[2020/21 Baseline_Source]]*T_DataComboFile[[#This Row],[G&S reporting level indicator]]","v":0},{"$f":"T_DataComboFile[[#This Row],[2021/22 Baseline_Source]]*T_DataComboFile[[#This Row],[G&S reporting level indicator]]","v":0},{"$f":"T_DataComboFile[[#This Row],[2022/23 Baseline_Source]]*T_DataComboFile[[#This Row],[G&S reporting level indicator]]","v":0},{"$f":"T_DataComboFile[[#This Row],[2023/24 Baseline_Source]]*T_DataComboFile[[#This Row],[G&S reporting level indicator]]","v":0},null,null,null,null,null,null,{"$f":"T_DataComboFile[[#This Row],[2021/22 Baseline]]+T_DataComboFile[[#This Row],[2021/22 Reduction]]+T_DataComboFile[[#This Row],[2021/22 Increase]]","v":0},{"$f":"T_DataComboFile[[#This Row],[2022/23 Baseline]]+T_DataComboFile[[#This Row],[2022/23 Reduction]]+T_DataComboFile[[#This Row],[2022/23 Increase]]","v":0},{"$f":"T_DataComboFile[[#This Row],[2023/24 Baseline]]+T_DataComboFile[[#This Row],[2023/24 Reduction]]+T_DataComboFile[[#This Row],[2023/24 Increase]]","v":0}]
[null,null,"2021_22","ENE2020",36,4,2,null,71161,36,4,2,null,"071161","36|04|02",2,3,16,61,65,"02|03|16|61|65","National","Small Business Development","Enterprise Development and Entrepreneurship","SMMEs Programme Design and Support",null,"Capital","Payments for capital assets","Land and sub-soil assets","Land and sub-soil assets","Land and sub-soil assets",null,null,null,0,0,0,0,0,0,0,0,0,0,0,0,0,0,null,{"$f":"IF(T_DataComboFile[[#This Row],[G&S reporting level indicator]]=1,$AX$16,\"Not applicable\")","v":"Level 3"},{"$f":"IF(AND($AX$16=\"Level 3\",T_DataComboFile[[#This Row],[Econ3]] = \"Goods and services\"),IF(T_DataComboFile[[#This Row],[Econ4]] = T_DataComboFile[[#This Row],[Econ3]],1,0),IF(AND($AX$16=\"Level 4\",T_DataComboFile[[#This Row],[Econ4]] = \"Goods and services\"),0,1))","v":1},{"$f":"T_DataComboFile[[#This Row],[2016/17_Source]]*T_DataComboFile[[#This Row],[G&S reporting level indicator]]","v":0},{"$f":"T_DataComboFile[[#This Row],[2017/18_Source]]*T_DataComboFile[[#This Row],[G&S reporting level indicator]]","v":0},{"$f":"T_DataComboFile[[#This Row],[2018/19_Source]]*T_DataComboFile[[#This Row],[G&S reporting level indicator]]","v":0},{"$f":"T_DataComboFile[[#This Row],[2019/20 Main appropriation_Source]]*T_DataComboFile[[#This Row],[G&S reporting level indicator]]","v":0},{"$f":"T_DataComboFile[[#This Row],[2019/20 Adjusted appropriation_Source]]*T_DataComboFile[[#This Row],[G&S reporting level indicator]]","v":0},{"$f":"T_DataComboFile[[#This Row],[2019/20 Revised estimate_Source]]*T_DataComboFile[[#This Row],[G&S reporting level indicator]]","v":0},{"$f":"T_DataComboFile[[#This Row],[2019/20 Preliminary outcome_Source]]*T_DataComboFile[[#This Row],[G&S reporting level indicator]]","v":0},{"$f":"T_DataComboFile[[#This Row],[2020/21 Original_Source]]*T_DataComboFile[[#This Row],[G&S reporting level indicator]]","v":0},{"$f":"T_DataComboFile[[#This Row],[2020/21 SAB_Source]]*T_DataComboFile[[#This Row],[G&S reporting level indicator]]","v":0},{"$f":"T_DataComboFile[[#This Row],[2020/21 Baseline_Source]]*T_DataComboFile[[#This Row],[G&S reporting level indicator]]","v":0},{"$f":"T_DataComboFile[[#This Row],[2021/22 Baseline_Source]]*T_DataComboFile[[#This Row],[G&S reporting level indicator]]","v":0},{"$f":"T_DataComboFile[[#This Row],[2022/23 Baseline_Source]]*T_DataComboFile[[#This Row],[G&S reporting level indicator]]","v":0},{"$f":"T_DataComboFile[[#This Row],[2023/24 Baseline_Source]]*T_DataComboFile[[#This Row],[G&S reporting level indicator]]","v":0},null,null,null,null,null,null,{"$f":"T_DataComboFile[[#This Row],[2021/22 Baseline]]+T_DataComboFile[[#This Row],[2021/22 Reduction]]+T_DataComboFile[[#This Row],[2021/22 Increase]]","v":0},{"$f":"T_DataComboFile[[#This Row],[2022/23 Baseline]]+T_DataComboFile[[#This Row],[2022/23 Reduction]]+T_DataComboFile[[#This Row],[2022/23 Increase]]","v":0},{"$f":"T_DataComboFile[[#This Row],[2023/24 Baseline]]+T_DataComboFile[[#This Row],[2023/24 Reduction]]+T_DataComboFile[[#This Row],[2023/24 Increase]]","v":0}]
[null,null,"2021_22","ENE2020",36,4,2,null,71162,36,4,2,null,"071162","36|04|02",2,3,17,62,66,"02|03|17|62|66","National","Small Business Development","Enterprise Development and Entrepreneurship","SMMEs Programme Design and Support",null,"Capital","Payments for capital assets","Software and other intangible assets","Software and other intangible assets","Software and other intangible assets",null,null,null,0,0,0,0,0,0,0,0,0,0,0,0,0,0,null,{"$f":"IF(T_DataComboFile[[#This Row],[G&S reporting level indicator]]=1,$AX$16,\"Not applicable\")","v":"Level 3"},{"$f":"IF(AND($AX$16=\"Level 3\",T_DataComboFile[[#This Row],[Econ3]] = \"Goods and services\"),IF(T_DataComboFile[[#This Row],[Econ4]] = T_DataComboFile[[#This Row],[Econ3]],1,0),IF(AND($AX$16=\"Level 4\",T_DataComboFile[[#This Row],[Econ4]] = \"Goods and services\"),0,1))","v":1},{"$f":"T_DataComboFile[[#This Row],[2016/17_Source]]*T_DataComboFile[[#This Row],[G&S reporting level indicator]]","v":0},{"$f":"T_DataComboFile[[#This Row],[2017/18_Source]]*T_DataComboFile[[#This Row],[G&S reporting level indicator]]","v":0},{"$f":"T_DataComboFile[[#This Row],[2018/19_Source]]*T_DataComboFile[[#This Row],[G&S reporting level indicator]]","v":0},{"$f":"T_DataComboFile[[#This Row],[2019/20 Main appropriation_Source]]*T_DataComboFile[[#This Row],[G&S reporting level indicator]]","v":0},{"$f":"T_DataComboFile[[#This Row],[2019/20 Adjusted appropriation_Source]]*T_DataComboFile[[#This Row],[G&S reporting level indicator]]","v":0},{"$f":"T_DataComboFile[[#This Row],[2019/20 Revised estimate_Source]]*T_DataComboFile[[#This Row],[G&S reporting level indicator]]","v":0},{"$f":"T_DataComboFile[[#This Row],[2019/20 Preliminary outcome_Source]]*T_DataComboFile[[#This Row],[G&S reporting level indicator]]","v":0},{"$f":"T_DataComboFile[[#This Row],[2020/21 Original_Source]]*T_DataComboFile[[#This Row],[G&S reporting level indicator]]","v":0},{"$f":"T_DataComboFile[[#This Row],[2020/21 SAB_Source]]*T_DataComboFile[[#This Row],[G&S reporting level indicator]]","v":0},{"$f":"T_DataComboFile[[#This Row],[2020/21 Baseline_Source]]*T_DataComboFile[[#This Row],[G&S reporting level indicator]]","v":0},{"$f":"T_DataComboFile[[#This Row],[2021/22 Baseline_Source]]*T_DataComboFile[[#This Row],[G&S reporting level indicator]]","v":0},{"$f":"T_DataComboFile[[#This Row],[2022/23 Baseline_Source]]*T_DataComboFile[[#This Row],[G&S reporting level indicator]]","v":0},{"$f":"T_DataComboFile[[#This Row],[2023/24 Baseline_Source]]*T_DataComboFile[[#This Row],[G&S reporting level indicator]]","v":0},null,null,null,null,null,null,{"$f":"T_DataComboFile[[#This Row],[2021/22 Baseline]]+T_DataComboFile[[#This Row],[2021/22 Reduction]]+T_DataComboFile[[#This Row],[2021/22 Increase]]","v":0},{"$f":"T_DataComboFile[[#This Row],[2022/23 Baseline]]+T_DataComboFile[[#This Row],[2022/23 Reduction]]+T_DataComboFile[[#This Row],[2022/23 Increase]]","v":0},{"$f":"T_DataComboFile[[#This Row],[2023/24 Baseline]]+T_DataComboFile[[#This Row],[2023/24 Reduction]]+T_DataComboFile[[#This Row],[2023/24 Increase]]","v":0}]
[null,null,"2021_22","ENE2020",36,4,2,null,71163,36,4,2,null,"071163","36|04|02",3,4,18,63,67,"03|04|18|63|67","National","Small Business Development","Enterprise Development and Entrepreneurship","SMMEs Programme Design and Support",null,"Payments for financial assets","Payments for financial assets","Payments for financial assets","Payments for financial assets","Payments for financial assets",null,null,null,0,0,0,0,0,0,0,0,0,0,0,0,0,0,null,{"$f":"IF(T_DataComboFile[[#This Row],[G&S reporting level indicator]]=1,$AX$16,\"Not applicable\")","v":"Level 3"},{"$f":"IF(AND($AX$16=\"Level 3\",T_DataComboFile[[#This Row],[Econ3]] = \"Goods and services\"),IF(T_DataComboFile[[#This Row],[Econ4]] = T_DataComboFile[[#This Row],[Econ3]],1,0),IF(AND($AX$16=\"Level 4\",T_DataComboFile[[#This Row],[Econ4]] = \"Goods and services\"),0,1))","v":1},{"$f":"T_DataComboFile[[#This Row],[2016/17_Source]]*T_DataComboFile[[#This Row],[G&S reporting level indicator]]","v":0},{"$f":"T_DataComboFile[[#This Row],[2017/18_Source]]*T_DataComboFile[[#This Row],[G&S reporting level indicator]]","v":0},{"$f":"T_DataComboFile[[#This Row],[2018/19_Source]]*T_DataComboFile[[#This Row],[G&S reporting level indicator]]","v":0},{"$f":"T_DataComboFile[[#This Row],[2019/20 Main appropriation_Source]]*T_DataComboFile[[#This Row],[G&S reporting level indicator]]","v":0},{"$f":"T_DataComboFile[[#This Row],[2019/20 Adjusted appropriation_Source]]*T_DataComboFile[[#This Row],[G&S reporting level indicator]]","v":0},{"$f":"T_DataComboFile[[#This Row],[2019/20 Revised estimate_Source]]*T_DataComboFile[[#This Row],[G&S reporting level indicator]]","v":0},{"$f":"T_DataComboFile[[#This Row],[2019/20 Preliminary outcome_Source]]*T_DataComboFile[[#This Row],[G&S reporting level indicator]]","v":0},{"$f":"T_DataComboFile[[#This Row],[2020/21 Original_Source]]*T_DataComboFile[[#This Row],[G&S reporting level indicator]]","v":0},{"$f":"T_DataComboFile[[#This Row],[2020/21 SAB_Source]]*T_DataComboFile[[#This Row],[G&S reporting level indicator]]","v":0},{"$f":"T_DataComboFile[[#This Row],[2020/21 Baseline_Source]]*T_DataComboFile[[#This Row],[G&S reporting level indicator]]","v":0},{"$f":"T_DataComboFile[[#This Row],[2021/22 Baseline_Source]]*T_DataComboFile[[#This Row],[G&S reporting level indicator]]","v":0},{"$f":"T_DataComboFile[[#This Row],[2022/23 Baseline_Source]]*T_DataComboFile[[#This Row],[G&S reporting level indicator]]","v":0},{"$f":"T_DataComboFile[[#This Row],[2023/24 Baseline_Source]]*T_DataComboFile[[#This Row],[G&S reporting level indicator]]","v":0},null,null,null,null,null,null,{"$f":"T_DataComboFile[[#This Row],[2021/22 Baseline]]+T_DataComboFile[[#This Row],[2021/22 Reduction]]+T_DataComboFile[[#This Row],[2021/22 Increase]]","v":0},{"$f":"T_DataComboFile[[#This Row],[2022/23 Baseline]]+T_DataComboFile[[#This Row],[2022/23 Reduction]]+T_DataComboFile[[#This Row],[2022/23 Increase]]","v":0},{"$f":"T_DataComboFile[[#This Row],[2023/24 Baseline]]+T_DataComboFile[[#This Row],[2023/24 Reduction]]+T_DataComboFile[[#This Row],[2023/24 Increase]]","v":0}]
["NAT|Non-transfer item","36|Salaries and wages","2021_22","ENE2020",36,4,3,17435,71164,36,4,3,17435,"071164","36|04|03",1,1,1,1,1,"01|01|01|01|01","National","Small Business Development","Enterprise Development and Entrepreneurship","SMME Competitiveness","Non-transfer item","Current","Current payments","Compensation of employees","Salaries and wages","Salaries and wages","Economic development","Industrialisation and exports","NAT",7755,9008,0,0,0,0,0,0,0,0,0,0,0,1,null,{"$f":"IF(T_DataComboFile[[#This Row],[G&S reporting level indicator]]=1,$AX$16,\"Not applicable\")","v":"Level 3"},{"$f":"IF(AND($AX$16=\"Level 3\",T_DataComboFile[[#This Row],[Econ3]] = \"Goods and services\"),IF(T_DataComboFile[[#This Row],[Econ4]] = T_DataComboFile[[#This Row],[Econ3]],1,0),IF(AND($AX$16=\"Level 4\",T_DataComboFile[[#This Row],[Econ4]] = \"Goods and services\"),0,1))","v":1},{"$f":"T_DataComboFile[[#This Row],[2016/17_Source]]*T_DataComboFile[[#This Row],[G&S reporting level indicator]]","v":7755},{"$f":"T_DataComboFile[[#This Row],[2017/18_Source]]*T_DataComboFile[[#This Row],[G&S reporting level indicator]]","v":9008},{"$f":"T_DataComboFile[[#This Row],[2018/19_Source]]*T_DataComboFile[[#This Row],[G&S reporting level indicator]]","v":0},{"$f":"T_DataComboFile[[#This Row],[2019/20 Main appropriation_Source]]*T_DataComboFile[[#This Row],[G&S reporting level indicator]]","v":0},{"$f":"T_DataComboFile[[#This Row],[2019/20 Adjusted appropriation_Source]]*T_DataComboFile[[#This Row],[G&S reporting level indicator]]","v":0},{"$f":"T_DataComboFile[[#This Row],[2019/20 Revised estimate_Source]]*T_DataComboFile[[#This Row],[G&S reporting level indicator]]","v":0},{"$f":"T_DataComboFile[[#This Row],[2019/20 Preliminary outcome_Source]]*T_DataComboFile[[#This Row],[G&S reporting level indicator]]","v":0},{"$f":"T_DataComboFile[[#This Row],[2020/21 Original_Source]]*T_DataComboFile[[#This Row],[G&S reporting level indicator]]","v":0},{"$f":"T_DataComboFile[[#This Row],[2020/21 SAB_Source]]*T_DataComboFile[[#This Row],[G&S reporting level indicator]]","v":0},{"$f":"T_DataComboFile[[#This Row],[2020/21 Baseline_Source]]*T_DataComboFile[[#This Row],[G&S reporting level indicator]]","v":0},{"$f":"T_DataComboFile[[#This Row],[2021/22 Baseline_Source]]*T_DataComboFile[[#This Row],[G&S reporting level indicator]]","v":0},{"$f":"T_DataComboFile[[#This Row],[2022/23 Baseline_Source]]*T_DataComboFile[[#This Row],[G&S reporting level indicator]]","v":0},{"$f":"T_DataComboFile[[#This Row],[2023/24 Baseline_Source]]*T_DataComboFile[[#This Row],[G&S reporting level indicator]]","v":0},null,null,null,null,null,null,{"$f":"T_DataComboFile[[#This Row],[2021/22 Baseline]]+T_DataComboFile[[#This Row],[2021/22 Reduction]]+T_DataComboFile[[#This Row],[2021/22 Increase]]","v":0},{"$f":"T_DataComboFile[[#This Row],[2022/23 Baseline]]+T_DataComboFile[[#This Row],[2022/23 Reduction]]+T_DataComboFile[[#This Row],[2022/23 Increase]]","v":0},{"$f":"T_DataComboFile[[#This Row],[2023/24 Baseline]]+T_DataComboFile[[#This Row],[2023/24 Reduction]]+T_DataComboFile[[#This Row],[2023/24 Increase]]","v":0}]
["NAT|Non-transfer item","36|Social contributions","2021_22","ENE2020",36,4,3,17436,71165,36,4,3,17436,"071165","36|04|03",1,1,1,2,2,"01|01|01|02|02","National","Small Business Development","Enterprise Development and Entrepreneurship","SMME Competitiveness","Non-transfer item","Current","Current payments","Compensation of employees","Social contributions","Social contributions","Economic development","Industrialisation and exports","NAT",1025,923,0,0,0,0,0,0,0,0,0,0,0,1,null,{"$f":"IF(T_DataComboFile[[#This Row],[G&S reporting level indicator]]=1,$AX$16,\"Not applicable\")","v":"Level 3"},{"$f":"IF(AND($AX$16=\"Level 3\",T_DataComboFile[[#This Row],[Econ3]] = \"Goods and services\"),IF(T_DataComboFile[[#This Row],[Econ4]] = T_DataComboFile[[#This Row],[Econ3]],1,0),IF(AND($AX$16=\"Level 4\",T_DataComboFile[[#This Row],[Econ4]] = \"Goods and services\"),0,1))","v":1},{"$f":"T_DataComboFile[[#This Row],[2016/17_Source]]*T_DataComboFile[[#This Row],[G&S reporting level indicator]]","v":1025},{"$f":"T_DataComboFile[[#This Row],[2017/18_Source]]*T_DataComboFile[[#This Row],[G&S reporting level indicator]]","v":923},{"$f":"T_DataComboFile[[#This Row],[2018/19_Source]]*T_DataComboFile[[#This Row],[G&S reporting level indicator]]","v":0},{"$f":"T_DataComboFile[[#This Row],[2019/20 Main appropriation_Source]]*T_DataComboFile[[#This Row],[G&S reporting level indicator]]","v":0},{"$f":"T_DataComboFile[[#This Row],[2019/20 Adjusted appropriation_Source]]*T_DataComboFile[[#This Row],[G&S reporting level indicator]]","v":0},{"$f":"T_DataComboFile[[#This Row],[2019/20 Revised estimate_Source]]*T_DataComboFile[[#This Row],[G&S reporting level indicator]]","v":0},{"$f":"T_DataComboFile[[#This Row],[2019/20 Preliminary outcome_Source]]*T_DataComboFile[[#This Row],[G&S reporting level indicator]]","v":0},{"$f":"T_DataComboFile[[#This Row],[2020/21 Original_Source]]*T_DataComboFile[[#This Row],[G&S reporting level indicator]]","v":0},{"$f":"T_DataComboFile[[#This Row],[2020/21 SAB_Source]]*T_DataComboFile[[#This Row],[G&S reporting level indicator]]","v":0},{"$f":"T_DataComboFile[[#This Row],[2020/21 Baseline_Source]]*T_DataComboFile[[#This Row],[G&S reporting level indicator]]","v":0},{"$f":"T_DataComboFile[[#This Row],[2021/22 Baseline_Source]]*T_DataComboFile[[#This Row],[G&S reporting level indicator]]","v":0},{"$f":"T_DataComboFile[[#This Row],[2022/23 Baseline_Source]]*T_DataComboFile[[#This Row],[G&S reporting level indicator]]","v":0},{"$f":"T_DataComboFile[[#This Row],[2023/24 Baseline_Source]]*T_DataComboFile[[#This Row],[G&S reporting level indicator]]","v":0},null,null,null,null,null,null,{"$f":"T_DataComboFile[[#This Row],[2021/22 Baseline]]+T_DataComboFile[[#This Row],[2021/22 Reduction]]+T_DataComboFile[[#This Row],[2021/22 Increase]]","v":0},{"$f":"T_DataComboFile[[#This Row],[2022/23 Baseline]]+T_DataComboFile[[#This Row],[2022/23 Reduction]]+T_DataComboFile[[#This Row],[2022/23 Increase]]","v":0},{"$f":"T_DataComboFile[[#This Row],[2023/24 Baseline]]+T_DataComboFile[[#This Row],[2023/24 Reduction]]+T_DataComboFile[[#This Row],[2023/24 Increase]]","v":0}]
[null,null,"2021_22","ENE2020",36,4,3,null,71166,36,4,3,null,"071166","36|04|03",1,1,2,2,2,"01|01|02|02|02","National","Small Business Development","Enterprise Development and Entrepreneurship","SMME Competitiveness","Non-transfer item","Current","Current payments","Goods and services","Goods and services","Goods and services","Economic development","Industrialisation and exports","NAT",3149,3754,0,0,0,0,0,0,0,0,0,0,0,1,null,{"$f":"IF(T_DataComboFile[[#This Row],[G&S reporting level indicator]]=1,$AX$16,\"Not applicable\")","v":"Level 3"},{"$f":"IF(AND($AX$16=\"Level 3\",T_DataComboFile[[#This Row],[Econ3]] = \"Goods and services\"),IF(T_DataComboFile[[#This Row],[Econ4]] = T_DataComboFile[[#This Row],[Econ3]],1,0),IF(AND($AX$16=\"Level 4\",T_DataComboFile[[#This Row],[Econ4]] = \"Goods and services\"),0,1))","v":1},{"$f":"T_DataComboFile[[#This Row],[2016/17_Source]]*T_DataComboFile[[#This Row],[G&S reporting level indicator]]","v":3149},{"$f":"T_DataComboFile[[#This Row],[2017/18_Source]]*T_DataComboFile[[#This Row],[G&S reporting level indicator]]","v":3754},{"$f":"T_DataComboFile[[#This Row],[2018/19_Source]]*T_DataComboFile[[#This Row],[G&S reporting level indicator]]","v":0},{"$f":"T_DataComboFile[[#This Row],[2019/20 Main appropriation_Source]]*T_DataComboFile[[#This Row],[G&S reporting level indicator]]","v":0},{"$f":"T_DataComboFile[[#This Row],[2019/20 Adjusted appropriation_Source]]*T_DataComboFile[[#This Row],[G&S reporting level indicator]]","v":0},{"$f":"T_DataComboFile[[#This Row],[2019/20 Revised estimate_Source]]*T_DataComboFile[[#This Row],[G&S reporting level indicator]]","v":0},{"$f":"T_DataComboFile[[#This Row],[2019/20 Preliminary outcome_Source]]*T_DataComboFile[[#This Row],[G&S reporting level indicator]]","v":0},{"$f":"T_DataComboFile[[#This Row],[2020/21 Original_Source]]*T_DataComboFile[[#This Row],[G&S reporting level indicator]]","v":0},{"$f":"T_DataComboFile[[#This Row],[2020/21 SAB_Source]]*T_DataComboFile[[#This Row],[G&S reporting level indicator]]","v":0},{"$f":"T_DataComboFile[[#This Row],[2020/21 Baseline_Source]]*T_DataComboFile[[#This Row],[G&S reporting level indicator]]","v":0},{"$f":"T_DataComboFile[[#This Row],[2021/22 Baseline_Source]]*T_DataComboFile[[#This Row],[G&S reporting level indicator]]","v":0},{"$f":"T_DataComboFile[[#This Row],[2022/23 Baseline_Source]]*T_DataComboFile[[#This Row],[G&S reporting level indicator]]","v":0},{"$f":"T_DataComboFile[[#This Row],[2023/24 Baseline_Source]]*T_DataComboFile[[#This Row],[G&S reporting level indicator]]","v":0},null,null,null,null,null,null,{"$f":"T_DataComboFile[[#This Row],[2021/22 Baseline]]+T_DataComboFile[[#This Row],[2021/22 Reduction]]+T_DataComboFile[[#This Row],[2021/22 Increase]]","v":0},{"$f":"T_DataComboFile[[#This Row],[2022/23 Baseline]]+T_DataComboFile[[#This Row],[2022/23 Reduction]]+T_DataComboFile[[#This Row],[2022/23 Increase]]","v":0},{"$f":"T_DataComboFile[[#This Row],[2023/24 Baseline]]+T_DataComboFile[[#This Row],[2023/24 Reduction]]+T_DataComboFile[[#This Row],[2023/24 Increase]]","v":0}]
["NAT|Non-transfer item","36|Administrative fees","2021_22","ENE2020",36,4,3,17437,71167,36,4,3,17437,"071167","36|04|03",1,1,2,3,3,"01|01|02|03|03","National","Small Business Development","Enterprise Development and Entrepreneurship","SMME Competitiveness","Non-transfer item","Current","Current payments","Goods and services","Administrative fees","Administrative fees","Economic development","Industrialisation and exports","NAT",125,187,0,0,0,0,0,0,0,0,0,0,0,1,null,{"$f":"IF(T_DataComboFile[[#This Row],[G&S reporting level indicator]]=1,$AX$16,\"Not applicable\")","v":"Not applicable"},{"$f":"IF(AND($AX$16=\"Level 3\",T_DataComboFile[[#This Row],[Econ3]] = \"Goods and services\"),IF(T_DataComboFile[[#This Row],[Econ4]] = T_DataComboFile[[#This Row],[Econ3]],1,0),IF(AND($AX$16=\"Level 4\",T_DataComboFile[[#This Row],[Econ4]] = \"Goods and services\"),0,1))","v":0},{"$f":"T_DataComboFile[[#This Row],[2016/17_Source]]*T_DataComboFile[[#This Row],[G&S reporting level indicator]]","v":0},{"$f":"T_DataComboFile[[#This Row],[2017/18_Source]]*T_DataComboFile[[#This Row],[G&S reporting level indicator]]","v":0},{"$f":"T_DataComboFile[[#This Row],[2018/19_Source]]*T_DataComboFile[[#This Row],[G&S reporting level indicator]]","v":0},{"$f":"T_DataComboFile[[#This Row],[2019/20 Main appropriation_Source]]*T_DataComboFile[[#This Row],[G&S reporting level indicator]]","v":0},{"$f":"T_DataComboFile[[#This Row],[2019/20 Adjusted appropriation_Source]]*T_DataComboFile[[#This Row],[G&S reporting level indicator]]","v":0},{"$f":"T_DataComboFile[[#This Row],[2019/20 Revised estimate_Source]]*T_DataComboFile[[#This Row],[G&S reporting level indicator]]","v":0},{"$f":"T_DataComboFile[[#This Row],[2019/20 Preliminary outcome_Source]]*T_DataComboFile[[#This Row],[G&S reporting level indicator]]","v":0},{"$f":"T_DataComboFile[[#This Row],[2020/21 Original_Source]]*T_DataComboFile[[#This Row],[G&S reporting level indicator]]","v":0},{"$f":"T_DataComboFile[[#This Row],[2020/21 SAB_Source]]*T_DataComboFile[[#This Row],[G&S reporting level indicator]]","v":0},{"$f":"T_DataComboFile[[#This Row],[2020/21 Baseline_Source]]*T_DataComboFile[[#This Row],[G&S reporting level indicator]]","v":0},{"$f":"T_DataComboFile[[#This Row],[2021/22 Baseline_Source]]*T_DataComboFile[[#This Row],[G&S reporting level indicator]]","v":0},{"$f":"T_DataComboFile[[#This Row],[2022/23 Baseline_Source]]*T_DataComboFile[[#This Row],[G&S reporting level indicator]]","v":0},{"$f":"T_DataComboFile[[#This Row],[2023/24 Baseline_Source]]*T_DataComboFile[[#This Row],[G&S reporting level indicator]]","v":0},null,null,null,null,null,null,{"$f":"T_DataComboFile[[#This Row],[2021/22 Baseline]]+T_DataComboFile[[#This Row],[2021/22 Reduction]]+T_DataComboFile[[#This Row],[2021/22 Increase]]","v":0},{"$f":"T_DataComboFile[[#This Row],[2022/23 Baseline]]+T_DataComboFile[[#This Row],[2022/23 Reduction]]+T_DataComboFile[[#This Row],[2022/23 Increase]]","v":0},{"$f":"T_DataComboFile[[#This Row],[2023/24 Baseline]]+T_DataComboFile[[#This Row],[2023/24 Reduction]]+T_DataComboFile[[#This Row],[2023/24 Increase]]","v":0}]
[null,null,"2021_22","ENE2020",36,4,3,null,71168,36,4,3,null,"071168","36|04|03",1,1,2,4,4,"01|01|02|04|04","National","Small Business Development","Enterprise Development and Entrepreneurship","SMME Competitiveness",null,"Current","Current payments","Goods and services","Advertising","Advertising",null,null,null,0,0,0,0,0,0,0,0,0,0,0,0,0,0,null,{"$f":"IF(T_DataComboFile[[#This Row],[G&S reporting level indicator]]=1,$AX$16,\"Not applicable\")","v":"Not applicable"},{"$f":"IF(AND($AX$16=\"Level 3\",T_DataComboFile[[#This Row],[Econ3]] = \"Goods and services\"),IF(T_DataComboFile[[#This Row],[Econ4]] = T_DataComboFile[[#This Row],[Econ3]],1,0),IF(AND($AX$16=\"Level 4\",T_DataComboFile[[#This Row],[Econ4]] = \"Goods and services\"),0,1))","v":0},{"$f":"T_DataComboFile[[#This Row],[2016/17_Source]]*T_DataComboFile[[#This Row],[G&S reporting level indicator]]","v":0},{"$f":"T_DataComboFile[[#This Row],[2017/18_Source]]*T_DataComboFile[[#This Row],[G&S reporting level indicator]]","v":0},{"$f":"T_DataComboFile[[#This Row],[2018/19_Source]]*T_DataComboFile[[#This Row],[G&S reporting level indicator]]","v":0},{"$f":"T_DataComboFile[[#This Row],[2019/20 Main appropriation_Source]]*T_DataComboFile[[#This Row],[G&S reporting level indicator]]","v":0},{"$f":"T_DataComboFile[[#This Row],[2019/20 Adjusted appropriation_Source]]*T_DataComboFile[[#This Row],[G&S reporting level indicator]]","v":0},{"$f":"T_DataComboFile[[#This Row],[2019/20 Revised estimate_Source]]*T_DataComboFile[[#This Row],[G&S reporting level indicator]]","v":0},{"$f":"T_DataComboFile[[#This Row],[2019/20 Preliminary outcome_Source]]*T_DataComboFile[[#This Row],[G&S reporting level indicator]]","v":0},{"$f":"T_DataComboFile[[#This Row],[2020/21 Original_Source]]*T_DataComboFile[[#This Row],[G&S reporting level indicator]]","v":0},{"$f":"T_DataComboFile[[#This Row],[2020/21 SAB_Source]]*T_DataComboFile[[#This Row],[G&S reporting level indicator]]","v":0},{"$f":"T_DataComboFile[[#This Row],[2020/21 Baseline_Source]]*T_DataComboFile[[#This Row],[G&S reporting level indicator]]","v":0},{"$f":"T_DataComboFile[[#This Row],[2021/22 Baseline_Source]]*T_DataComboFile[[#This Row],[G&S reporting level indicator]]","v":0},{"$f":"T_DataComboFile[[#This Row],[2022/23 Baseline_Source]]*T_DataComboFile[[#This Row],[G&S reporting level indicator]]","v":0},{"$f":"T_DataComboFile[[#This Row],[2023/24 Baseline_Source]]*T_DataComboFile[[#This Row],[G&S reporting level indicator]]","v":0},null,null,null,null,null,null,{"$f":"T_DataComboFile[[#This Row],[2021/22 Baseline]]+T_DataComboFile[[#This Row],[2021/22 Reduction]]+T_DataComboFile[[#This Row],[2021/22 Increase]]","v":0},{"$f":"T_DataComboFile[[#This Row],[2022/23 Baseline]]+T_DataComboFile[[#This Row],[2022/23 Reduction]]+T_DataComboFile[[#This Row],[2022/23 Increase]]","v":0},{"$f":"T_DataComboFile[[#This Row],[2023/24 Baseline]]+T_DataComboFile[[#This Row],[2023/24 Reduction]]+T_DataComboFile[[#This Row],[2023/24 Increase]]","v":0}]
["NAT|Non-transfer item","36|Minor assets","2021_22","ENE2020",36,4,3,17438,71169,36,4,3,17438,"071169","36|04|03",1,1,2,5,5,"01|01|02|05|05","National","Small Business Development","Enterprise Development and Entrepreneurship","SMME Competitiveness","Non-transfer item","Current","Current payments","Goods and services","Minor assets","Minor assets","Economic development","Industrialisation and exports","NAT",0,7,0,0,0,0,0,0,0,0,0,0,0,1,null,{"$f":"IF(T_DataComboFile[[#This Row],[G&S reporting level indicator]]=1,$AX$16,\"Not applicable\")","v":"Not applicable"},{"$f":"IF(AND($AX$16=\"Level 3\",T_DataComboFile[[#This Row],[Econ3]] = \"Goods and services\"),IF(T_DataComboFile[[#This Row],[Econ4]] = T_DataComboFile[[#This Row],[Econ3]],1,0),IF(AND($AX$16=\"Level 4\",T_DataComboFile[[#This Row],[Econ4]] = \"Goods and services\"),0,1))","v":0},{"$f":"T_DataComboFile[[#This Row],[2016/17_Source]]*T_DataComboFile[[#This Row],[G&S reporting level indicator]]","v":0},{"$f":"T_DataComboFile[[#This Row],[2017/18_Source]]*T_DataComboFile[[#This Row],[G&S reporting level indicator]]","v":0},{"$f":"T_DataComboFile[[#This Row],[2018/19_Source]]*T_DataComboFile[[#This Row],[G&S reporting level indicator]]","v":0},{"$f":"T_DataComboFile[[#This Row],[2019/20 Main appropriation_Source]]*T_DataComboFile[[#This Row],[G&S reporting level indicator]]","v":0},{"$f":"T_DataComboFile[[#This Row],[2019/20 Adjusted appropriation_Source]]*T_DataComboFile[[#This Row],[G&S reporting level indicator]]","v":0},{"$f":"T_DataComboFile[[#This Row],[2019/20 Revised estimate_Source]]*T_DataComboFile[[#This Row],[G&S reporting level indicator]]","v":0},{"$f":"T_DataComboFile[[#This Row],[2019/20 Preliminary outcome_Source]]*T_DataComboFile[[#This Row],[G&S reporting level indicator]]","v":0},{"$f":"T_DataComboFile[[#This Row],[2020/21 Original_Source]]*T_DataComboFile[[#This Row],[G&S reporting level indicator]]","v":0},{"$f":"T_DataComboFile[[#This Row],[2020/21 SAB_Source]]*T_DataComboFile[[#This Row],[G&S reporting level indicator]]","v":0},{"$f":"T_DataComboFile[[#This Row],[2020/21 Baseline_Source]]*T_DataComboFile[[#This Row],[G&S reporting level indicator]]","v":0},{"$f":"T_DataComboFile[[#This Row],[2021/22 Baseline_Source]]*T_DataComboFile[[#This Row],[G&S reporting level indicator]]","v":0},{"$f":"T_DataComboFile[[#This Row],[2022/23 Baseline_Source]]*T_DataComboFile[[#This Row],[G&S reporting level indicator]]","v":0},{"$f":"T_DataComboFile[[#This Row],[2023/24 Baseline_Source]]*T_DataComboFile[[#This Row],[G&S reporting level indicator]]","v":0},null,null,null,null,null,null,{"$f":"T_DataComboFile[[#This Row],[2021/22 Baseline]]+T_DataComboFile[[#This Row],[2021/22 Reduction]]+T_DataComboFile[[#This Row],[2021/22 Increase]]","v":0},{"$f":"T_DataComboFile[[#This Row],[2022/23 Baseline]]+T_DataComboFile[[#This Row],[2022/23 Reduction]]+T_DataComboFile[[#This Row],[2022/23 Increase]]","v":0},{"$f":"T_DataComboFile[[#This Row],[2023/24 Baseline]]+T_DataComboFile[[#This Row],[2023/24 Reduction]]+T_DataComboFile[[#This Row],[2023/24 Increase]]","v":0}]
[null,null,"2021_22","ENE2020",36,4,3,null,71170,36,4,3,null,"071170","36|04|03",1,1,2,6,6,"01|01|02|06|06","National","Small Business Development","Enterprise Development and Entrepreneurship","SMME Competitiveness",null,"Current","Current payments","Goods and services","Audit costs: External","Audit costs: External",null,null,null,0,0,0,0,0,0,0,0,0,0,0,0,0,0,null,{"$f":"IF(T_DataComboFile[[#This Row],[G&S reporting level indicator]]=1,$AX$16,\"Not applicable\")","v":"Not applicable"},{"$f":"IF(AND($AX$16=\"Level 3\",T_DataComboFile[[#This Row],[Econ3]] = \"Goods and services\"),IF(T_DataComboFile[[#This Row],[Econ4]] = T_DataComboFile[[#This Row],[Econ3]],1,0),IF(AND($AX$16=\"Level 4\",T_DataComboFile[[#This Row],[Econ4]] = \"Goods and services\"),0,1))","v":0},{"$f":"T_DataComboFile[[#This Row],[2016/17_Source]]*T_DataComboFile[[#This Row],[G&S reporting level indicator]]","v":0},{"$f":"T_DataComboFile[[#This Row],[2017/18_Source]]*T_DataComboFile[[#This Row],[G&S reporting level indicator]]","v":0},{"$f":"T_DataComboFile[[#This Row],[2018/19_Source]]*T_DataComboFile[[#This Row],[G&S reporting level indicator]]","v":0},{"$f":"T_DataComboFile[[#This Row],[2019/20 Main appropriation_Source]]*T_DataComboFile[[#This Row],[G&S reporting level indicator]]","v":0},{"$f":"T_DataComboFile[[#This Row],[2019/20 Adjusted appropriation_Source]]*T_DataComboFile[[#This Row],[G&S reporting level indicator]]","v":0},{"$f":"T_DataComboFile[[#This Row],[2019/20 Revised estimate_Source]]*T_DataComboFile[[#This Row],[G&S reporting level indicator]]","v":0},{"$f":"T_DataComboFile[[#This Row],[2019/20 Preliminary outcome_Source]]*T_DataComboFile[[#This Row],[G&S reporting level indicator]]","v":0},{"$f":"T_DataComboFile[[#This Row],[2020/21 Original_Source]]*T_DataComboFile[[#This Row],[G&S reporting level indicator]]","v":0},{"$f":"T_DataComboFile[[#This Row],[2020/21 SAB_Source]]*T_DataComboFile[[#This Row],[G&S reporting level indicator]]","v":0},{"$f":"T_DataComboFile[[#This Row],[2020/21 Baseline_Source]]*T_DataComboFile[[#This Row],[G&S reporting level indicator]]","v":0},{"$f":"T_DataComboFile[[#This Row],[2021/22 Baseline_Source]]*T_DataComboFile[[#This Row],[G&S reporting level indicator]]","v":0},{"$f":"T_DataComboFile[[#This Row],[2022/23 Baseline_Source]]*T_DataComboFile[[#This Row],[G&S reporting level indicator]]","v":0},{"$f":"T_DataComboFile[[#This Row],[2023/24 Baseline_Source]]*T_DataComboFile[[#This Row],[G&S reporting level indicator]]","v":0},null,null,null,null,null,null,{"$f":"T_DataComboFile[[#This Row],[2021/22 Baseline]]+T_DataComboFile[[#This Row],[2021/22 Reduction]]+T_DataComboFile[[#This Row],[2021/22 Increase]]","v":0},{"$f":"T_DataComboFile[[#This Row],[2022/23 Baseline]]+T_DataComboFile[[#This Row],[2022/23 Reduction]]+T_DataComboFile[[#This Row],[2022/23 Increase]]","v":0},{"$f":"T_DataComboFile[[#This Row],[2023/24 Baseline]]+T_DataComboFile[[#This Row],[2023/24 Reduction]]+T_DataComboFile[[#This Row],[2023/24 Increase]]","v":0}]
[null,null,"2021_22","ENE2020",36,4,3,null,71171,36,4,3,null,"071171","36|04|03",1,1,2,7,7,"01|01|02|07|07","National","Small Business Development","Enterprise Development and Entrepreneurship","SMME Competitiveness",null,"Current","Current payments","Goods and services","Bursaries: Employees","Bursaries: Employees",null,null,null,0,0,0,0,0,0,0,0,0,0,0,0,0,0,null,{"$f":"IF(T_DataComboFile[[#This Row],[G&S reporting level indicator]]=1,$AX$16,\"Not applicable\")","v":"Not applicable"},{"$f":"IF(AND($AX$16=\"Level 3\",T_DataComboFile[[#This Row],[Econ3]] = \"Goods and services\"),IF(T_DataComboFile[[#This Row],[Econ4]] = T_DataComboFile[[#This Row],[Econ3]],1,0),IF(AND($AX$16=\"Level 4\",T_DataComboFile[[#This Row],[Econ4]] = \"Goods and services\"),0,1))","v":0},{"$f":"T_DataComboFile[[#This Row],[2016/17_Source]]*T_DataComboFile[[#This Row],[G&S reporting level indicator]]","v":0},{"$f":"T_DataComboFile[[#This Row],[2017/18_Source]]*T_DataComboFile[[#This Row],[G&S reporting level indicator]]","v":0},{"$f":"T_DataComboFile[[#This Row],[2018/19_Source]]*T_DataComboFile[[#This Row],[G&S reporting level indicator]]","v":0},{"$f":"T_DataComboFile[[#This Row],[2019/20 Main appropriation_Source]]*T_DataComboFile[[#This Row],[G&S reporting level indicator]]","v":0},{"$f":"T_DataComboFile[[#This Row],[2019/20 Adjusted appropriation_Source]]*T_DataComboFile[[#This Row],[G&S reporting level indicator]]","v":0},{"$f":"T_DataComboFile[[#This Row],[2019/20 Revised estimate_Source]]*T_DataComboFile[[#This Row],[G&S reporting level indicator]]","v":0},{"$f":"T_DataComboFile[[#This Row],[2019/20 Preliminary outcome_Source]]*T_DataComboFile[[#This Row],[G&S reporting level indicator]]","v":0},{"$f":"T_DataComboFile[[#This Row],[2020/21 Original_Source]]*T_DataComboFile[[#This Row],[G&S reporting level indicator]]","v":0},{"$f":"T_DataComboFile[[#This Row],[2020/21 SAB_Source]]*T_DataComboFile[[#This Row],[G&S reporting level indicator]]","v":0},{"$f":"T_DataComboFile[[#This Row],[2020/21 Baseline_Source]]*T_DataComboFile[[#This Row],[G&S reporting level indicator]]","v":0},{"$f":"T_DataComboFile[[#This Row],[2021/22 Baseline_Source]]*T_DataComboFile[[#This Row],[G&S reporting level indicator]]","v":0},{"$f":"T_DataComboFile[[#This Row],[2022/23 Baseline_Source]]*T_DataComboFile[[#This Row],[G&S reporting level indicator]]","v":0},{"$f":"T_DataComboFile[[#This Row],[2023/24 Baseline_Source]]*T_DataComboFile[[#This Row],[G&S reporting level indicator]]","v":0},null,null,null,null,null,null,{"$f":"T_DataComboFile[[#This Row],[2021/22 Baseline]]+T_DataComboFile[[#This Row],[2021/22 Reduction]]+T_DataComboFile[[#This Row],[2021/22 Increase]]","v":0},{"$f":"T_DataComboFile[[#This Row],[2022/23 Baseline]]+T_DataComboFile[[#This Row],[2022/23 Reduction]]+T_DataComboFile[[#This Row],[2022/23 Increase]]","v":0},{"$f":"T_DataComboFile[[#This Row],[2023/24 Baseline]]+T_DataComboFile[[#This Row],[2023/24 Reduction]]+T_DataComboFile[[#This Row],[2023/24 Increase]]","v":0}]
["NAT|Non-transfer item","36|Catering: Departmental activities","2021_22","ENE2020",36,4,3,17439,71172,36,4,3,17439,"071172","36|04|03",1,1,2,8,8,"01|01|02|08|08","National","Small Business Development","Enterprise Development and Entrepreneurship","SMME Competitiveness","Non-transfer item","Current","Current payments","Goods and services","Catering: Departmental activities","Catering: Departmental activities","Economic development","Industrialisation and exports","NAT",988,557,0,0,0,0,0,0,0,0,0,0,0,1,null,{"$f":"IF(T_DataComboFile[[#This Row],[G&S reporting level indicator]]=1,$AX$16,\"Not applicable\")","v":"Not applicable"},{"$f":"IF(AND($AX$16=\"Level 3\",T_DataComboFile[[#This Row],[Econ3]] = \"Goods and services\"),IF(T_DataComboFile[[#This Row],[Econ4]] = T_DataComboFile[[#This Row],[Econ3]],1,0),IF(AND($AX$16=\"Level 4\",T_DataComboFile[[#This Row],[Econ4]] = \"Goods and services\"),0,1))","v":0},{"$f":"T_DataComboFile[[#This Row],[2016/17_Source]]*T_DataComboFile[[#This Row],[G&S reporting level indicator]]","v":0},{"$f":"T_DataComboFile[[#This Row],[2017/18_Source]]*T_DataComboFile[[#This Row],[G&S reporting level indicator]]","v":0},{"$f":"T_DataComboFile[[#This Row],[2018/19_Source]]*T_DataComboFile[[#This Row],[G&S reporting level indicator]]","v":0},{"$f":"T_DataComboFile[[#This Row],[2019/20 Main appropriation_Source]]*T_DataComboFile[[#This Row],[G&S reporting level indicator]]","v":0},{"$f":"T_DataComboFile[[#This Row],[2019/20 Adjusted appropriation_Source]]*T_DataComboFile[[#This Row],[G&S reporting level indicator]]","v":0},{"$f":"T_DataComboFile[[#This Row],[2019/20 Revised estimate_Source]]*T_DataComboFile[[#This Row],[G&S reporting level indicator]]","v":0},{"$f":"T_DataComboFile[[#This Row],[2019/20 Preliminary outcome_Source]]*T_DataComboFile[[#This Row],[G&S reporting level indicator]]","v":0},{"$f":"T_DataComboFile[[#This Row],[2020/21 Original_Source]]*T_DataComboFile[[#This Row],[G&S reporting level indicator]]","v":0},{"$f":"T_DataComboFile[[#This Row],[2020/21 SAB_Source]]*T_DataComboFile[[#This Row],[G&S reporting level indicator]]","v":0},{"$f":"T_DataComboFile[[#This Row],[2020/21 Baseline_Source]]*T_DataComboFile[[#This Row],[G&S reporting level indicator]]","v":0},{"$f":"T_DataComboFile[[#This Row],[2021/22 Baseline_Source]]*T_DataComboFile[[#This Row],[G&S reporting level indicator]]","v":0},{"$f":"T_DataComboFile[[#This Row],[2022/23 Baseline_Source]]*T_DataComboFile[[#This Row],[G&S reporting level indicator]]","v":0},{"$f":"T_DataComboFile[[#This Row],[2023/24 Baseline_Source]]*T_DataComboFile[[#This Row],[G&S reporting level indicator]]","v":0},null,null,null,null,null,null,{"$f":"T_DataComboFile[[#This Row],[2021/22 Baseline]]+T_DataComboFile[[#This Row],[2021/22 Reduction]]+T_DataComboFile[[#This Row],[2021/22 Increase]]","v":0},{"$f":"T_DataComboFile[[#This Row],[2022/23 Baseline]]+T_DataComboFile[[#This Row],[2022/23 Reduction]]+T_DataComboFile[[#This Row],[2022/23 Increase]]","v":0},{"$f":"T_DataComboFile[[#This Row],[2023/24 Baseline]]+T_DataComboFile[[#This Row],[2023/24 Reduction]]+T_DataComboFile[[#This Row],[2023/24 Increase]]","v":0}]
["NAT|Non-transfer item","36|Communication (G&S)","2021_22","ENE2020",36,4,3,17440,71173,36,4,3,17440,"071173","36|04|03",1,1,2,9,9,"01|01|02|09|09","National","Small Business Development","Enterprise Development and Entrepreneurship","SMME Competitiveness","Non-transfer item","Current","Current payments","Goods and services","Communication (G&S)","Communication (G&S)","Economic development","Industrialisation and exports","NAT",71,38,0,0,0,0,0,0,0,0,0,0,0,1,null,{"$f":"IF(T_DataComboFile[[#This Row],[G&S reporting level indicator]]=1,$AX$16,\"Not applicable\")","v":"Not applicable"},{"$f":"IF(AND($AX$16=\"Level 3\",T_DataComboFile[[#This Row],[Econ3]] = \"Goods and services\"),IF(T_DataComboFile[[#This Row],[Econ4]] = T_DataComboFile[[#This Row],[Econ3]],1,0),IF(AND($AX$16=\"Level 4\",T_DataComboFile[[#This Row],[Econ4]] = \"Goods and services\"),0,1))","v":0},{"$f":"T_DataComboFile[[#This Row],[2016/17_Source]]*T_DataComboFile[[#This Row],[G&S reporting level indicator]]","v":0},{"$f":"T_DataComboFile[[#This Row],[2017/18_Source]]*T_DataComboFile[[#This Row],[G&S reporting level indicator]]","v":0},{"$f":"T_DataComboFile[[#This Row],[2018/19_Source]]*T_DataComboFile[[#This Row],[G&S reporting level indicator]]","v":0},{"$f":"T_DataComboFile[[#This Row],[2019/20 Main appropriation_Source]]*T_DataComboFile[[#This Row],[G&S reporting level indicator]]","v":0},{"$f":"T_DataComboFile[[#This Row],[2019/20 Adjusted appropriation_Source]]*T_DataComboFile[[#This Row],[G&S reporting level indicator]]","v":0},{"$f":"T_DataComboFile[[#This Row],[2019/20 Revised estimate_Source]]*T_DataComboFile[[#This Row],[G&S reporting level indicator]]","v":0},{"$f":"T_DataComboFile[[#This Row],[2019/20 Preliminary outcome_Source]]*T_DataComboFile[[#This Row],[G&S reporting level indicator]]","v":0},{"$f":"T_DataComboFile[[#This Row],[2020/21 Original_Source]]*T_DataComboFile[[#This Row],[G&S reporting level indicator]]","v":0},{"$f":"T_DataComboFile[[#This Row],[2020/21 SAB_Source]]*T_DataComboFile[[#This Row],[G&S reporting level indicator]]","v":0},{"$f":"T_DataComboFile[[#This Row],[2020/21 Baseline_Source]]*T_DataComboFile[[#This Row],[G&S reporting level indicator]]","v":0},{"$f":"T_DataComboFile[[#This Row],[2021/22 Baseline_Source]]*T_DataComboFile[[#This Row],[G&S reporting level indicator]]","v":0},{"$f":"T_DataComboFile[[#This Row],[2022/23 Baseline_Source]]*T_DataComboFile[[#This Row],[G&S reporting level indicator]]","v":0},{"$f":"T_DataComboFile[[#This Row],[2023/24 Baseline_Source]]*T_DataComboFile[[#This Row],[G&S reporting level indicator]]","v":0},null,null,null,null,null,null,{"$f":"T_DataComboFile[[#This Row],[2021/22 Baseline]]+T_DataComboFile[[#This Row],[2021/22 Reduction]]+T_DataComboFile[[#This Row],[2021/22 Increase]]","v":0},{"$f":"T_DataComboFile[[#This Row],[2022/23 Baseline]]+T_DataComboFile[[#This Row],[2022/23 Reduction]]+T_DataComboFile[[#This Row],[2022/23 Increase]]","v":0},{"$f":"T_DataComboFile[[#This Row],[2023/24 Baseline]]+T_DataComboFile[[#This Row],[2023/24 Reduction]]+T_DataComboFile[[#This Row],[2023/24 Increase]]","v":0}]
[null,null,"2021_22","ENE2020",36,4,3,null,71174,36,4,3,null,"071174","36|04|03",1,1,2,10,10,"01|01|02|10|10","National","Small Business Development","Enterprise Development and Entrepreneurship","SMME Competitiveness",null,"Current","Current payments","Goods and services","Computer services","Computer services",null,null,null,0,0,0,0,0,0,0,0,0,0,0,0,0,0,null,{"$f":"IF(T_DataComboFile[[#This Row],[G&S reporting level indicator]]=1,$AX$16,\"Not applicable\")","v":"Not applicable"},{"$f":"IF(AND($AX$16=\"Level 3\",T_DataComboFile[[#This Row],[Econ3]] = \"Goods and services\"),IF(T_DataComboFile[[#This Row],[Econ4]] = T_DataComboFile[[#This Row],[Econ3]],1,0),IF(AND($AX$16=\"Level 4\",T_DataComboFile[[#This Row],[Econ4]] = \"Goods and services\"),0,1))","v":0},{"$f":"T_DataComboFile[[#This Row],[2016/17_Source]]*T_DataComboFile[[#This Row],[G&S reporting level indicator]]","v":0},{"$f":"T_DataComboFile[[#This Row],[2017/18_Source]]*T_DataComboFile[[#This Row],[G&S reporting level indicator]]","v":0},{"$f":"T_DataComboFile[[#This Row],[2018/19_Source]]*T_DataComboFile[[#This Row],[G&S reporting level indicator]]","v":0},{"$f":"T_DataComboFile[[#This Row],[2019/20 Main appropriation_Source]]*T_DataComboFile[[#This Row],[G&S reporting level indicator]]","v":0},{"$f":"T_DataComboFile[[#This Row],[2019/20 Adjusted appropriation_Source]]*T_DataComboFile[[#This Row],[G&S reporting level indicator]]","v":0},{"$f":"T_DataComboFile[[#This Row],[2019/20 Revised estimate_Source]]*T_DataComboFile[[#This Row],[G&S reporting level indicator]]","v":0},{"$f":"T_DataComboFile[[#This Row],[2019/20 Preliminary outcome_Source]]*T_DataComboFile[[#This Row],[G&S reporting level indicator]]","v":0},{"$f":"T_DataComboFile[[#This Row],[2020/21 Original_Source]]*T_DataComboFile[[#This Row],[G&S reporting level indicator]]","v":0},{"$f":"T_DataComboFile[[#This Row],[2020/21 SAB_Source]]*T_DataComboFile[[#This Row],[G&S reporting level indicator]]","v":0},{"$f":"T_DataComboFile[[#This Row],[2020/21 Baseline_Source]]*T_DataComboFile[[#This Row],[G&S reporting level indicator]]","v":0},{"$f":"T_DataComboFile[[#This Row],[2021/22 Baseline_Source]]*T_DataComboFile[[#This Row],[G&S reporting level indicator]]","v":0},{"$f":"T_DataComboFile[[#This Row],[2022/23 Baseline_Source]]*T_DataComboFile[[#This Row],[G&S reporting level indicator]]","v":0},{"$f":"T_DataComboFile[[#This Row],[2023/24 Baseline_Source]]*T_DataComboFile[[#This Row],[G&S reporting level indicator]]","v":0},null,null,null,null,null,null,{"$f":"T_DataComboFile[[#This Row],[2021/22 Baseline]]+T_DataComboFile[[#This Row],[2021/22 Reduction]]+T_DataComboFile[[#This Row],[2021/22 Increase]]","v":0},{"$f":"T_DataComboFile[[#This Row],[2022/23 Baseline]]+T_DataComboFile[[#This Row],[2022/23 Reduction]]+T_DataComboFile[[#This Row],[2022/23 Increase]]","v":0},{"$f":"T_DataComboFile[[#This Row],[2023/24 Baseline]]+T_DataComboFile[[#This Row],[2023/24 Reduction]]+T_DataComboFile[[#This Row],[2023/24 Increase]]","v":0}]
[null,null,"2021_22","ENE2020",36,4,3,null,71175,36,4,3,null,"071175","36|04|03",1,1,2,11,11,"01|01|02|11|11","National","Small Business Development","Enterprise Development and Entrepreneurship","SMME Competitiveness",null,"Current","Current payments","Goods and services","Consultants: Business and advisory services","Consultants: Business and advisory services",null,null,null,0,0,0,0,0,0,0,0,0,0,0,0,0,0,null,{"$f":"IF(T_DataComboFile[[#This Row],[G&S reporting level indicator]]=1,$AX$16,\"Not applicable\")","v":"Not applicable"},{"$f":"IF(AND($AX$16=\"Level 3\",T_DataComboFile[[#This Row],[Econ3]] = \"Goods and services\"),IF(T_DataComboFile[[#This Row],[Econ4]] = T_DataComboFile[[#This Row],[Econ3]],1,0),IF(AND($AX$16=\"Level 4\",T_DataComboFile[[#This Row],[Econ4]] = \"Goods and services\"),0,1))","v":0},{"$f":"T_DataComboFile[[#This Row],[2016/17_Source]]*T_DataComboFile[[#This Row],[G&S reporting level indicator]]","v":0},{"$f":"T_DataComboFile[[#This Row],[2017/18_Source]]*T_DataComboFile[[#This Row],[G&S reporting level indicator]]","v":0},{"$f":"T_DataComboFile[[#This Row],[2018/19_Source]]*T_DataComboFile[[#This Row],[G&S reporting level indicator]]","v":0},{"$f":"T_DataComboFile[[#This Row],[2019/20 Main appropriation_Source]]*T_DataComboFile[[#This Row],[G&S reporting level indicator]]","v":0},{"$f":"T_DataComboFile[[#This Row],[2019/20 Adjusted appropriation_Source]]*T_DataComboFile[[#This Row],[G&S reporting level indicator]]","v":0},{"$f":"T_DataComboFile[[#This Row],[2019/20 Revised estimate_Source]]*T_DataComboFile[[#This Row],[G&S reporting level indicator]]","v":0},{"$f":"T_DataComboFile[[#This Row],[2019/20 Preliminary outcome_Source]]*T_DataComboFile[[#This Row],[G&S reporting level indicator]]","v":0},{"$f":"T_DataComboFile[[#This Row],[2020/21 Original_Source]]*T_DataComboFile[[#This Row],[G&S reporting level indicator]]","v":0},{"$f":"T_DataComboFile[[#This Row],[2020/21 SAB_Source]]*T_DataComboFile[[#This Row],[G&S reporting level indicator]]","v":0},{"$f":"T_DataComboFile[[#This Row],[2020/21 Baseline_Source]]*T_DataComboFile[[#This Row],[G&S reporting level indicator]]","v":0},{"$f":"T_DataComboFile[[#This Row],[2021/22 Baseline_Source]]*T_DataComboFile[[#This Row],[G&S reporting level indicator]]","v":0},{"$f":"T_DataComboFile[[#This Row],[2022/23 Baseline_Source]]*T_DataComboFile[[#This Row],[G&S reporting level indicator]]","v":0},{"$f":"T_DataComboFile[[#This Row],[2023/24 Baseline_Source]]*T_DataComboFile[[#This Row],[G&S reporting level indicator]]","v":0},null,null,null,null,null,null,{"$f":"T_DataComboFile[[#This Row],[2021/22 Baseline]]+T_DataComboFile[[#This Row],[2021/22 Reduction]]+T_DataComboFile[[#This Row],[2021/22 Increase]]","v":0},{"$f":"T_DataComboFile[[#This Row],[2022/23 Baseline]]+T_DataComboFile[[#This Row],[2022/23 Reduction]]+T_DataComboFile[[#This Row],[2022/23 Increase]]","v":0},{"$f":"T_DataComboFile[[#This Row],[2023/24 Baseline]]+T_DataComboFile[[#This Row],[2023/24 Reduction]]+T_DataComboFile[[#This Row],[2023/24 Increase]]","v":0}]
[null,null,"2021_22","ENE2020",36,4,3,null,71176,36,4,3,null,"071176","36|04|03",1,1,2,12,12,"01|01|02|12|12","National","Small Business Development","Enterprise Development and Entrepreneurship","SMME Competitiveness",null,"Current","Current payments","Goods and services","Infrastructure and planning services","Infrastructure and planning services",null,null,null,0,0,0,0,0,0,0,0,0,0,0,0,0,0,null,{"$f":"IF(T_DataComboFile[[#This Row],[G&S reporting level indicator]]=1,$AX$16,\"Not applicable\")","v":"Not applicable"},{"$f":"IF(AND($AX$16=\"Level 3\",T_DataComboFile[[#This Row],[Econ3]] = \"Goods and services\"),IF(T_DataComboFile[[#This Row],[Econ4]] = T_DataComboFile[[#This Row],[Econ3]],1,0),IF(AND($AX$16=\"Level 4\",T_DataComboFile[[#This Row],[Econ4]] = \"Goods and services\"),0,1))","v":0},{"$f":"T_DataComboFile[[#This Row],[2016/17_Source]]*T_DataComboFile[[#This Row],[G&S reporting level indicator]]","v":0},{"$f":"T_DataComboFile[[#This Row],[2017/18_Source]]*T_DataComboFile[[#This Row],[G&S reporting level indicator]]","v":0},{"$f":"T_DataComboFile[[#This Row],[2018/19_Source]]*T_DataComboFile[[#This Row],[G&S reporting level indicator]]","v":0},{"$f":"T_DataComboFile[[#This Row],[2019/20 Main appropriation_Source]]*T_DataComboFile[[#This Row],[G&S reporting level indicator]]","v":0},{"$f":"T_DataComboFile[[#This Row],[2019/20 Adjusted appropriation_Source]]*T_DataComboFile[[#This Row],[G&S reporting level indicator]]","v":0},{"$f":"T_DataComboFile[[#This Row],[2019/20 Revised estimate_Source]]*T_DataComboFile[[#This Row],[G&S reporting level indicator]]","v":0},{"$f":"T_DataComboFile[[#This Row],[2019/20 Preliminary outcome_Source]]*T_DataComboFile[[#This Row],[G&S reporting level indicator]]","v":0},{"$f":"T_DataComboFile[[#This Row],[2020/21 Original_Source]]*T_DataComboFile[[#This Row],[G&S reporting level indicator]]","v":0},{"$f":"T_DataComboFile[[#This Row],[2020/21 SAB_Source]]*T_DataComboFile[[#This Row],[G&S reporting level indicator]]","v":0},{"$f":"T_DataComboFile[[#This Row],[2020/21 Baseline_Source]]*T_DataComboFile[[#This Row],[G&S reporting level indicator]]","v":0},{"$f":"T_DataComboFile[[#This Row],[2021/22 Baseline_Source]]*T_DataComboFile[[#This Row],[G&S reporting level indicator]]","v":0},{"$f":"T_DataComboFile[[#This Row],[2022/23 Baseline_Source]]*T_DataComboFile[[#This Row],[G&S reporting level indicator]]","v":0},{"$f":"T_DataComboFile[[#This Row],[2023/24 Baseline_Source]]*T_DataComboFile[[#This Row],[G&S reporting level indicator]]","v":0},null,null,null,null,null,null,{"$f":"T_DataComboFile[[#This Row],[2021/22 Baseline]]+T_DataComboFile[[#This Row],[2021/22 Reduction]]+T_DataComboFile[[#This Row],[2021/22 Increase]]","v":0},{"$f":"T_DataComboFile[[#This Row],[2022/23 Baseline]]+T_DataComboFile[[#This Row],[2022/23 Reduction]]+T_DataComboFile[[#This Row],[2022/23 Increase]]","v":0},{"$f":"T_DataComboFile[[#This Row],[2023/24 Baseline]]+T_DataComboFile[[#This Row],[2023/24 Reduction]]+T_DataComboFile[[#This Row],[2023/24 Increase]]","v":0}]
[null,null,"2021_22","ENE2020",36,4,3,null,71177,36,4,3,null,"071177","36|04|03",1,1,2,13,13,"01|01|02|13|13","National","Small Business Development","Enterprise Development and Entrepreneurship","SMME Competitiveness",null,"Current","Current payments","Goods and services","Laboratory services","Laboratory services",null,null,null,0,0,0,0,0,0,0,0,0,0,0,0,0,0,null,{"$f":"IF(T_DataComboFile[[#This Row],[G&S reporting level indicator]]=1,$AX$16,\"Not applicable\")","v":"Not applicable"},{"$f":"IF(AND($AX$16=\"Level 3\",T_DataComboFile[[#This Row],[Econ3]] = \"Goods and services\"),IF(T_DataComboFile[[#This Row],[Econ4]] = T_DataComboFile[[#This Row],[Econ3]],1,0),IF(AND($AX$16=\"Level 4\",T_DataComboFile[[#This Row],[Econ4]] = \"Goods and services\"),0,1))","v":0},{"$f":"T_DataComboFile[[#This Row],[2016/17_Source]]*T_DataComboFile[[#This Row],[G&S reporting level indicator]]","v":0},{"$f":"T_DataComboFile[[#This Row],[2017/18_Source]]*T_DataComboFile[[#This Row],[G&S reporting level indicator]]","v":0},{"$f":"T_DataComboFile[[#This Row],[2018/19_Source]]*T_DataComboFile[[#This Row],[G&S reporting level indicator]]","v":0},{"$f":"T_DataComboFile[[#This Row],[2019/20 Main appropriation_Source]]*T_DataComboFile[[#This Row],[G&S reporting level indicator]]","v":0},{"$f":"T_DataComboFile[[#This Row],[2019/20 Adjusted appropriation_Source]]*T_DataComboFile[[#This Row],[G&S reporting level indicator]]","v":0},{"$f":"T_DataComboFile[[#This Row],[2019/20 Revised estimate_Source]]*T_DataComboFile[[#This Row],[G&S reporting level indicator]]","v":0},{"$f":"T_DataComboFile[[#This Row],[2019/20 Preliminary outcome_Source]]*T_DataComboFile[[#This Row],[G&S reporting level indicator]]","v":0},{"$f":"T_DataComboFile[[#This Row],[2020/21 Original_Source]]*T_DataComboFile[[#This Row],[G&S reporting level indicator]]","v":0},{"$f":"T_DataComboFile[[#This Row],[2020/21 SAB_Source]]*T_DataComboFile[[#This Row],[G&S reporting level indicator]]","v":0},{"$f":"T_DataComboFile[[#This Row],[2020/21 Baseline_Source]]*T_DataComboFile[[#This Row],[G&S reporting level indicator]]","v":0},{"$f":"T_DataComboFile[[#This Row],[2021/22 Baseline_Source]]*T_DataComboFile[[#This Row],[G&S reporting level indicator]]","v":0},{"$f":"T_DataComboFile[[#This Row],[2022/23 Baseline_Source]]*T_DataComboFile[[#This Row],[G&S reporting level indicator]]","v":0},{"$f":"T_DataComboFile[[#This Row],[2023/24 Baseline_Source]]*T_DataComboFile[[#This Row],[G&S reporting level indicator]]","v":0},null,null,null,null,null,null,{"$f":"T_DataComboFile[[#This Row],[2021/22 Baseline]]+T_DataComboFile[[#This Row],[2021/22 Reduction]]+T_DataComboFile[[#This Row],[2021/22 Increase]]","v":0},{"$f":"T_DataComboFile[[#This Row],[2022/23 Baseline]]+T_DataComboFile[[#This Row],[2022/23 Reduction]]+T_DataComboFile[[#This Row],[2022/23 Increase]]","v":0},{"$f":"T_DataComboFile[[#This Row],[2023/24 Baseline]]+T_DataComboFile[[#This Row],[2023/24 Reduction]]+T_DataComboFile[[#This Row],[2023/24 Increase]]","v":0}]
[null,null,"2021_22","ENE2020",36,4,3,null,71178,36,4,3,null,"071178","36|04|03",1,1,2,14,14,"01|01|02|14|14","National","Small Business Development","Enterprise Development and Entrepreneurship","SMME Competitiveness",null,"Current","Current payments","Goods and services","Legal services (G&S)","Legal services (G&S)",null,null,null,0,0,0,0,0,0,0,0,0,0,0,0,0,0,null,{"$f":"IF(T_DataComboFile[[#This Row],[G&S reporting level indicator]]=1,$AX$16,\"Not applicable\")","v":"Not applicable"},{"$f":"IF(AND($AX$16=\"Level 3\",T_DataComboFile[[#This Row],[Econ3]] = \"Goods and services\"),IF(T_DataComboFile[[#This Row],[Econ4]] = T_DataComboFile[[#This Row],[Econ3]],1,0),IF(AND($AX$16=\"Level 4\",T_DataComboFile[[#This Row],[Econ4]] = \"Goods and services\"),0,1))","v":0},{"$f":"T_DataComboFile[[#This Row],[2016/17_Source]]*T_DataComboFile[[#This Row],[G&S reporting level indicator]]","v":0},{"$f":"T_DataComboFile[[#This Row],[2017/18_Source]]*T_DataComboFile[[#This Row],[G&S reporting level indicator]]","v":0},{"$f":"T_DataComboFile[[#This Row],[2018/19_Source]]*T_DataComboFile[[#This Row],[G&S reporting level indicator]]","v":0},{"$f":"T_DataComboFile[[#This Row],[2019/20 Main appropriation_Source]]*T_DataComboFile[[#This Row],[G&S reporting level indicator]]","v":0},{"$f":"T_DataComboFile[[#This Row],[2019/20 Adjusted appropriation_Source]]*T_DataComboFile[[#This Row],[G&S reporting level indicator]]","v":0},{"$f":"T_DataComboFile[[#This Row],[2019/20 Revised estimate_Source]]*T_DataComboFile[[#This Row],[G&S reporting level indicator]]","v":0},{"$f":"T_DataComboFile[[#This Row],[2019/20 Preliminary outcome_Source]]*T_DataComboFile[[#This Row],[G&S reporting level indicator]]","v":0},{"$f":"T_DataComboFile[[#This Row],[2020/21 Original_Source]]*T_DataComboFile[[#This Row],[G&S reporting level indicator]]","v":0},{"$f":"T_DataComboFile[[#This Row],[2020/21 SAB_Source]]*T_DataComboFile[[#This Row],[G&S reporting level indicator]]","v":0},{"$f":"T_DataComboFile[[#This Row],[2020/21 Baseline_Source]]*T_DataComboFile[[#This Row],[G&S reporting level indicator]]","v":0},{"$f":"T_DataComboFile[[#This Row],[2021/22 Baseline_Source]]*T_DataComboFile[[#This Row],[G&S reporting level indicator]]","v":0},{"$f":"T_DataComboFile[[#This Row],[2022/23 Baseline_Source]]*T_DataComboFile[[#This Row],[G&S reporting level indicator]]","v":0},{"$f":"T_DataComboFile[[#This Row],[2023/24 Baseline_Source]]*T_DataComboFile[[#This Row],[G&S reporting level indicator]]","v":0},null,null,null,null,null,null,{"$f":"T_DataComboFile[[#This Row],[2021/22 Baseline]]+T_DataComboFile[[#This Row],[2021/22 Reduction]]+T_DataComboFile[[#This Row],[2021/22 Increase]]","v":0},{"$f":"T_DataComboFile[[#This Row],[2022/23 Baseline]]+T_DataComboFile[[#This Row],[2022/23 Reduction]]+T_DataComboFile[[#This Row],[2022/23 Increase]]","v":0},{"$f":"T_DataComboFile[[#This Row],[2023/24 Baseline]]+T_DataComboFile[[#This Row],[2023/24 Reduction]]+T_DataComboFile[[#This Row],[2023/24 Increase]]","v":0}]
[null,null,"2021_22","ENE2020",36,4,3,null,71179,36,4,3,null,"071179","36|04|03",1,1,2,15,15,"01|01|02|15|15","National","Small Business Development","Enterprise Development and Entrepreneurship","SMME Competitiveness",null,"Current","Current payments","Goods and services","Science and technological services","Science and technological services",null,null,null,0,0,0,0,0,0,0,0,0,0,0,0,0,0,null,{"$f":"IF(T_DataComboFile[[#This Row],[G&S reporting level indicator]]=1,$AX$16,\"Not applicable\")","v":"Not applicable"},{"$f":"IF(AND($AX$16=\"Level 3\",T_DataComboFile[[#This Row],[Econ3]] = \"Goods and services\"),IF(T_DataComboFile[[#This Row],[Econ4]] = T_DataComboFile[[#This Row],[Econ3]],1,0),IF(AND($AX$16=\"Level 4\",T_DataComboFile[[#This Row],[Econ4]] = \"Goods and services\"),0,1))","v":0},{"$f":"T_DataComboFile[[#This Row],[2016/17_Source]]*T_DataComboFile[[#This Row],[G&S reporting level indicator]]","v":0},{"$f":"T_DataComboFile[[#This Row],[2017/18_Source]]*T_DataComboFile[[#This Row],[G&S reporting level indicator]]","v":0},{"$f":"T_DataComboFile[[#This Row],[2018/19_Source]]*T_DataComboFile[[#This Row],[G&S reporting level indicator]]","v":0},{"$f":"T_DataComboFile[[#This Row],[2019/20 Main appropriation_Source]]*T_DataComboFile[[#This Row],[G&S reporting level indicator]]","v":0},{"$f":"T_DataComboFile[[#This Row],[2019/20 Adjusted appropriation_Source]]*T_DataComboFile[[#This Row],[G&S reporting level indicator]]","v":0},{"$f":"T_DataComboFile[[#This Row],[2019/20 Revised estimate_Source]]*T_DataComboFile[[#This Row],[G&S reporting level indicator]]","v":0},{"$f":"T_DataComboFile[[#This Row],[2019/20 Preliminary outcome_Source]]*T_DataComboFile[[#This Row],[G&S reporting level indicator]]","v":0},{"$f":"T_DataComboFile[[#This Row],[2020/21 Original_Source]]*T_DataComboFile[[#This Row],[G&S reporting level indicator]]","v":0},{"$f":"T_DataComboFile[[#This Row],[2020/21 SAB_Source]]*T_DataComboFile[[#This Row],[G&S reporting level indicator]]","v":0},{"$f":"T_DataComboFile[[#This Row],[2020/21 Baseline_Source]]*T_DataComboFile[[#This Row],[G&S reporting level indicator]]","v":0},{"$f":"T_DataComboFile[[#This Row],[2021/22 Baseline_Source]]*T_DataComboFile[[#This Row],[G&S reporting level indicator]]","v":0},{"$f":"T_DataComboFile[[#This Row],[2022/23 Baseline_Source]]*T_DataComboFile[[#This Row],[G&S reporting level indicator]]","v":0},{"$f":"T_DataComboFile[[#This Row],[2023/24 Baseline_Source]]*T_DataComboFile[[#This Row],[G&S reporting level indicator]]","v":0},null,null,null,null,null,null,{"$f":"T_DataComboFile[[#This Row],[2021/22 Baseline]]+T_DataComboFile[[#This Row],[2021/22 Reduction]]+T_DataComboFile[[#This Row],[2021/22 Increase]]","v":0},{"$f":"T_DataComboFile[[#This Row],[2022/23 Baseline]]+T_DataComboFile[[#This Row],[2022/23 Reduction]]+T_DataComboFile[[#This Row],[2022/23 Increase]]","v":0},{"$f":"T_DataComboFile[[#This Row],[2023/24 Baseline]]+T_DataComboFile[[#This Row],[2023/24 Reduction]]+T_DataComboFile[[#This Row],[2023/24 Increase]]","v":0}]
[null,null,"2021_22","ENE2020",36,4,3,null,71180,36,4,3,null,"071180","36|04|03",1,1,2,16,16,"01|01|02|16|16","National","Small Business Development","Enterprise Development and Entrepreneurship","SMME Competitiveness",null,"Current","Current payments","Goods and services","Contractors","Contractors",null,null,null,0,0,0,0,0,0,0,0,0,0,0,0,0,0,null,{"$f":"IF(T_DataComboFile[[#This Row],[G&S reporting level indicator]]=1,$AX$16,\"Not applicable\")","v":"Not applicable"},{"$f":"IF(AND($AX$16=\"Level 3\",T_DataComboFile[[#This Row],[Econ3]] = \"Goods and services\"),IF(T_DataComboFile[[#This Row],[Econ4]] = T_DataComboFile[[#This Row],[Econ3]],1,0),IF(AND($AX$16=\"Level 4\",T_DataComboFile[[#This Row],[Econ4]] = \"Goods and services\"),0,1))","v":0},{"$f":"T_DataComboFile[[#This Row],[2016/17_Source]]*T_DataComboFile[[#This Row],[G&S reporting level indicator]]","v":0},{"$f":"T_DataComboFile[[#This Row],[2017/18_Source]]*T_DataComboFile[[#This Row],[G&S reporting level indicator]]","v":0},{"$f":"T_DataComboFile[[#This Row],[2018/19_Source]]*T_DataComboFile[[#This Row],[G&S reporting level indicator]]","v":0},{"$f":"T_DataComboFile[[#This Row],[2019/20 Main appropriation_Source]]*T_DataComboFile[[#This Row],[G&S reporting level indicator]]","v":0},{"$f":"T_DataComboFile[[#This Row],[2019/20 Adjusted appropriation_Source]]*T_DataComboFile[[#This Row],[G&S reporting level indicator]]","v":0},{"$f":"T_DataComboFile[[#This Row],[2019/20 Revised estimate_Source]]*T_DataComboFile[[#This Row],[G&S reporting level indicator]]","v":0},{"$f":"T_DataComboFile[[#This Row],[2019/20 Preliminary outcome_Source]]*T_DataComboFile[[#This Row],[G&S reporting level indicator]]","v":0},{"$f":"T_DataComboFile[[#This Row],[2020/21 Original_Source]]*T_DataComboFile[[#This Row],[G&S reporting level indicator]]","v":0},{"$f":"T_DataComboFile[[#This Row],[2020/21 SAB_Source]]*T_DataComboFile[[#This Row],[G&S reporting level indicator]]","v":0},{"$f":"T_DataComboFile[[#This Row],[2020/21 Baseline_Source]]*T_DataComboFile[[#This Row],[G&S reporting level indicator]]","v":0},{"$f":"T_DataComboFile[[#This Row],[2021/22 Baseline_Source]]*T_DataComboFile[[#This Row],[G&S reporting level indicator]]","v":0},{"$f":"T_DataComboFile[[#This Row],[2022/23 Baseline_Source]]*T_DataComboFile[[#This Row],[G&S reporting level indicator]]","v":0},{"$f":"T_DataComboFile[[#This Row],[2023/24 Baseline_Source]]*T_DataComboFile[[#This Row],[G&S reporting level indicator]]","v":0},null,null,null,null,null,null,{"$f":"T_DataComboFile[[#This Row],[2021/22 Baseline]]+T_DataComboFile[[#This Row],[2021/22 Reduction]]+T_DataComboFile[[#This Row],[2021/22 Increase]]","v":0},{"$f":"T_DataComboFile[[#This Row],[2022/23 Baseline]]+T_DataComboFile[[#This Row],[2022/23 Reduction]]+T_DataComboFile[[#This Row],[2022/23 Increase]]","v":0},{"$f":"T_DataComboFile[[#This Row],[2023/24 Baseline]]+T_DataComboFile[[#This Row],[2023/24 Reduction]]+T_DataComboFile[[#This Row],[2023/24 Increase]]","v":0}]
[null,null,"2021_22","ENE2020",36,4,3,null,71181,36,4,3,null,"071181","36|04|03",1,1,2,17,17,"01|01|02|17|17","National","Small Business Development","Enterprise Development and Entrepreneurship","SMME Competitiveness",null,"Current","Current payments","Goods and services","Agency and support/outsourced services","Agency and support/outsourced services",null,null,null,0,0,0,0,0,0,0,0,0,0,0,0,0,0,null,{"$f":"IF(T_DataComboFile[[#This Row],[G&S reporting level indicator]]=1,$AX$16,\"Not applicable\")","v":"Not applicable"},{"$f":"IF(AND($AX$16=\"Level 3\",T_DataComboFile[[#This Row],[Econ3]] = \"Goods and services\"),IF(T_DataComboFile[[#This Row],[Econ4]] = T_DataComboFile[[#This Row],[Econ3]],1,0),IF(AND($AX$16=\"Level 4\",T_DataComboFile[[#This Row],[Econ4]] = \"Goods and services\"),0,1))","v":0},{"$f":"T_DataComboFile[[#This Row],[2016/17_Source]]*T_DataComboFile[[#This Row],[G&S reporting level indicator]]","v":0},{"$f":"T_DataComboFile[[#This Row],[2017/18_Source]]*T_DataComboFile[[#This Row],[G&S reporting level indicator]]","v":0},{"$f":"T_DataComboFile[[#This Row],[2018/19_Source]]*T_DataComboFile[[#This Row],[G&S reporting level indicator]]","v":0},{"$f":"T_DataComboFile[[#This Row],[2019/20 Main appropriation_Source]]*T_DataComboFile[[#This Row],[G&S reporting level indicator]]","v":0},{"$f":"T_DataComboFile[[#This Row],[2019/20 Adjusted appropriation_Source]]*T_DataComboFile[[#This Row],[G&S reporting level indicator]]","v":0},{"$f":"T_DataComboFile[[#This Row],[2019/20 Revised estimate_Source]]*T_DataComboFile[[#This Row],[G&S reporting level indicator]]","v":0},{"$f":"T_DataComboFile[[#This Row],[2019/20 Preliminary outcome_Source]]*T_DataComboFile[[#This Row],[G&S reporting level indicator]]","v":0},{"$f":"T_DataComboFile[[#This Row],[2020/21 Original_Source]]*T_DataComboFile[[#This Row],[G&S reporting level indicator]]","v":0},{"$f":"T_DataComboFile[[#This Row],[2020/21 SAB_Source]]*T_DataComboFile[[#This Row],[G&S reporting level indicator]]","v":0},{"$f":"T_DataComboFile[[#This Row],[2020/21 Baseline_Source]]*T_DataComboFile[[#This Row],[G&S reporting level indicator]]","v":0},{"$f":"T_DataComboFile[[#This Row],[2021/22 Baseline_Source]]*T_DataComboFile[[#This Row],[G&S reporting level indicator]]","v":0},{"$f":"T_DataComboFile[[#This Row],[2022/23 Baseline_Source]]*T_DataComboFile[[#This Row],[G&S reporting level indicator]]","v":0},{"$f":"T_DataComboFile[[#This Row],[2023/24 Baseline_Source]]*T_DataComboFile[[#This Row],[G&S reporting level indicator]]","v":0},null,null,null,null,null,null,{"$f":"T_DataComboFile[[#This Row],[2021/22 Baseline]]+T_DataComboFile[[#This Row],[2021/22 Reduction]]+T_DataComboFile[[#This Row],[2021/22 Increase]]","v":0},{"$f":"T_DataComboFile[[#This Row],[2022/23 Baseline]]+T_DataComboFile[[#This Row],[2022/23 Reduction]]+T_DataComboFile[[#This Row],[2022/23 Increase]]","v":0},{"$f":"T_DataComboFile[[#This Row],[2023/24 Baseline]]+T_DataComboFile[[#This Row],[2023/24 Reduction]]+T_DataComboFile[[#This Row],[2023/24 Increase]]","v":0}]
[null,null,"2021_22","ENE2020",36,4,3,null,71182,36,4,3,null,"071182","36|04|03",1,1,2,18,18,"01|01|02|18|18","National","Small Business Development","Enterprise Development and Entrepreneurship","SMME Competitiveness",null,"Current","Current payments","Goods and services","Entertainment","Entertainment",null,null,null,0,0,0,0,0,0,0,0,0,0,0,0,0,0,null,{"$f":"IF(T_DataComboFile[[#This Row],[G&S reporting level indicator]]=1,$AX$16,\"Not applicable\")","v":"Not applicable"},{"$f":"IF(AND($AX$16=\"Level 3\",T_DataComboFile[[#This Row],[Econ3]] = \"Goods and services\"),IF(T_DataComboFile[[#This Row],[Econ4]] = T_DataComboFile[[#This Row],[Econ3]],1,0),IF(AND($AX$16=\"Level 4\",T_DataComboFile[[#This Row],[Econ4]] = \"Goods and services\"),0,1))","v":0},{"$f":"T_DataComboFile[[#This Row],[2016/17_Source]]*T_DataComboFile[[#This Row],[G&S reporting level indicator]]","v":0},{"$f":"T_DataComboFile[[#This Row],[2017/18_Source]]*T_DataComboFile[[#This Row],[G&S reporting level indicator]]","v":0},{"$f":"T_DataComboFile[[#This Row],[2018/19_Source]]*T_DataComboFile[[#This Row],[G&S reporting level indicator]]","v":0},{"$f":"T_DataComboFile[[#This Row],[2019/20 Main appropriation_Source]]*T_DataComboFile[[#This Row],[G&S reporting level indicator]]","v":0},{"$f":"T_DataComboFile[[#This Row],[2019/20 Adjusted appropriation_Source]]*T_DataComboFile[[#This Row],[G&S reporting level indicator]]","v":0},{"$f":"T_DataComboFile[[#This Row],[2019/20 Revised estimate_Source]]*T_DataComboFile[[#This Row],[G&S reporting level indicator]]","v":0},{"$f":"T_DataComboFile[[#This Row],[2019/20 Preliminary outcome_Source]]*T_DataComboFile[[#This Row],[G&S reporting level indicator]]","v":0},{"$f":"T_DataComboFile[[#This Row],[2020/21 Original_Source]]*T_DataComboFile[[#This Row],[G&S reporting level indicator]]","v":0},{"$f":"T_DataComboFile[[#This Row],[2020/21 SAB_Source]]*T_DataComboFile[[#This Row],[G&S reporting level indicator]]","v":0},{"$f":"T_DataComboFile[[#This Row],[2020/21 Baseline_Source]]*T_DataComboFile[[#This Row],[G&S reporting level indicator]]","v":0},{"$f":"T_DataComboFile[[#This Row],[2021/22 Baseline_Source]]*T_DataComboFile[[#This Row],[G&S reporting level indicator]]","v":0},{"$f":"T_DataComboFile[[#This Row],[2022/23 Baseline_Source]]*T_DataComboFile[[#This Row],[G&S reporting level indicator]]","v":0},{"$f":"T_DataComboFile[[#This Row],[2023/24 Baseline_Source]]*T_DataComboFile[[#This Row],[G&S reporting level indicator]]","v":0},null,null,null,null,null,null,{"$f":"T_DataComboFile[[#This Row],[2021/22 Baseline]]+T_DataComboFile[[#This Row],[2021/22 Reduction]]+T_DataComboFile[[#This Row],[2021/22 Increase]]","v":0},{"$f":"T_DataComboFile[[#This Row],[2022/23 Baseline]]+T_DataComboFile[[#This Row],[2022/23 Reduction]]+T_DataComboFile[[#This Row],[2022/23 Increase]]","v":0},{"$f":"T_DataComboFile[[#This Row],[2023/24 Baseline]]+T_DataComboFile[[#This Row],[2023/24 Reduction]]+T_DataComboFile[[#This Row],[2023/24 Increase]]","v":0}]
["NAT|Non-transfer item","36|Fleet services (including government motor transport)","2021_22","ENE2020",36,4,3,17441,71183,36,4,3,17441,"071183","36|04|03",1,1,2,19,19,"01|01|02|19|19","National","Small Business Development","Enterprise Development and Entrepreneurship","SMME Competitiveness","Non-transfer item","Current","Current payments","Goods and services","Fleet services (including government motor transport)","Fleet services (including government motor transport)","Economic development","Industrialisation and exports","NAT",8,13,0,0,0,0,0,0,0,0,0,0,0,1,null,{"$f":"IF(T_DataComboFile[[#This Row],[G&S reporting level indicator]]=1,$AX$16,\"Not applicable\")","v":"Not applicable"},{"$f":"IF(AND($AX$16=\"Level 3\",T_DataComboFile[[#This Row],[Econ3]] = \"Goods and services\"),IF(T_DataComboFile[[#This Row],[Econ4]] = T_DataComboFile[[#This Row],[Econ3]],1,0),IF(AND($AX$16=\"Level 4\",T_DataComboFile[[#This Row],[Econ4]] = \"Goods and services\"),0,1))","v":0},{"$f":"T_DataComboFile[[#This Row],[2016/17_Source]]*T_DataComboFile[[#This Row],[G&S reporting level indicator]]","v":0},{"$f":"T_DataComboFile[[#This Row],[2017/18_Source]]*T_DataComboFile[[#This Row],[G&S reporting level indicator]]","v":0},{"$f":"T_DataComboFile[[#This Row],[2018/19_Source]]*T_DataComboFile[[#This Row],[G&S reporting level indicator]]","v":0},{"$f":"T_DataComboFile[[#This Row],[2019/20 Main appropriation_Source]]*T_DataComboFile[[#This Row],[G&S reporting level indicator]]","v":0},{"$f":"T_DataComboFile[[#This Row],[2019/20 Adjusted appropriation_Source]]*T_DataComboFile[[#This Row],[G&S reporting level indicator]]","v":0},{"$f":"T_DataComboFile[[#This Row],[2019/20 Revised estimate_Source]]*T_DataComboFile[[#This Row],[G&S reporting level indicator]]","v":0},{"$f":"T_DataComboFile[[#This Row],[2019/20 Preliminary outcome_Source]]*T_DataComboFile[[#This Row],[G&S reporting level indicator]]","v":0},{"$f":"T_DataComboFile[[#This Row],[2020/21 Original_Source]]*T_DataComboFile[[#This Row],[G&S reporting level indicator]]","v":0},{"$f":"T_DataComboFile[[#This Row],[2020/21 SAB_Source]]*T_DataComboFile[[#This Row],[G&S reporting level indicator]]","v":0},{"$f":"T_DataComboFile[[#This Row],[2020/21 Baseline_Source]]*T_DataComboFile[[#This Row],[G&S reporting level indicator]]","v":0},{"$f":"T_DataComboFile[[#This Row],[2021/22 Baseline_Source]]*T_DataComboFile[[#This Row],[G&S reporting level indicator]]","v":0},{"$f":"T_DataComboFile[[#This Row],[2022/23 Baseline_Source]]*T_DataComboFile[[#This Row],[G&S reporting level indicator]]","v":0},{"$f":"T_DataComboFile[[#This Row],[2023/24 Baseline_Source]]*T_DataComboFile[[#This Row],[G&S reporting level indicator]]","v":0},null,null,null,null,null,null,{"$f":"T_DataComboFile[[#This Row],[2021/22 Baseline]]+T_DataComboFile[[#This Row],[2021/22 Reduction]]+T_DataComboFile[[#This Row],[2021/22 Increase]]","v":0},{"$f":"T_DataComboFile[[#This Row],[2022/23 Baseline]]+T_DataComboFile[[#This Row],[2022/23 Reduction]]+T_DataComboFile[[#This Row],[2022/23 Increase]]","v":0},{"$f":"T_DataComboFile[[#This Row],[2023/24 Baseline]]+T_DataComboFile[[#This Row],[2023/24 Reduction]]+T_DataComboFile[[#This Row],[2023/24 Increase]]","v":0}]
[null,null,"2021_22","ENE2020",36,4,3,null,71184,36,4,3,null,"071184","36|04|03",1,1,2,20,20,"01|01|02|20|20","National","Small Business Development","Enterprise Development and Entrepreneurship","SMME Competitiveness",null,"Current","Current payments","Goods and services","Housing","Housing",null,null,null,0,0,0,0,0,0,0,0,0,0,0,0,0,0,null,{"$f":"IF(T_DataComboFile[[#This Row],[G&S reporting level indicator]]=1,$AX$16,\"Not applicable\")","v":"Not applicable"},{"$f":"IF(AND($AX$16=\"Level 3\",T_DataComboFile[[#This Row],[Econ3]] = \"Goods and services\"),IF(T_DataComboFile[[#This Row],[Econ4]] = T_DataComboFile[[#This Row],[Econ3]],1,0),IF(AND($AX$16=\"Level 4\",T_DataComboFile[[#This Row],[Econ4]] = \"Goods and services\"),0,1))","v":0},{"$f":"T_DataComboFile[[#This Row],[2016/17_Source]]*T_DataComboFile[[#This Row],[G&S reporting level indicator]]","v":0},{"$f":"T_DataComboFile[[#This Row],[2017/18_Source]]*T_DataComboFile[[#This Row],[G&S reporting level indicator]]","v":0},{"$f":"T_DataComboFile[[#This Row],[2018/19_Source]]*T_DataComboFile[[#This Row],[G&S reporting level indicator]]","v":0},{"$f":"T_DataComboFile[[#This Row],[2019/20 Main appropriation_Source]]*T_DataComboFile[[#This Row],[G&S reporting level indicator]]","v":0},{"$f":"T_DataComboFile[[#This Row],[2019/20 Adjusted appropriation_Source]]*T_DataComboFile[[#This Row],[G&S reporting level indicator]]","v":0},{"$f":"T_DataComboFile[[#This Row],[2019/20 Revised estimate_Source]]*T_DataComboFile[[#This Row],[G&S reporting level indicator]]","v":0},{"$f":"T_DataComboFile[[#This Row],[2019/20 Preliminary outcome_Source]]*T_DataComboFile[[#This Row],[G&S reporting level indicator]]","v":0},{"$f":"T_DataComboFile[[#This Row],[2020/21 Original_Source]]*T_DataComboFile[[#This Row],[G&S reporting level indicator]]","v":0},{"$f":"T_DataComboFile[[#This Row],[2020/21 SAB_Source]]*T_DataComboFile[[#This Row],[G&S reporting level indicator]]","v":0},{"$f":"T_DataComboFile[[#This Row],[2020/21 Baseline_Source]]*T_DataComboFile[[#This Row],[G&S reporting level indicator]]","v":0},{"$f":"T_DataComboFile[[#This Row],[2021/22 Baseline_Source]]*T_DataComboFile[[#This Row],[G&S reporting level indicator]]","v":0},{"$f":"T_DataComboFile[[#This Row],[2022/23 Baseline_Source]]*T_DataComboFile[[#This Row],[G&S reporting level indicator]]","v":0},{"$f":"T_DataComboFile[[#This Row],[2023/24 Baseline_Source]]*T_DataComboFile[[#This Row],[G&S reporting level indicator]]","v":0},null,null,null,null,null,null,{"$f":"T_DataComboFile[[#This Row],[2021/22 Baseline]]+T_DataComboFile[[#This Row],[2021/22 Reduction]]+T_DataComboFile[[#This Row],[2021/22 Increase]]","v":0},{"$f":"T_DataComboFile[[#This Row],[2022/23 Baseline]]+T_DataComboFile[[#This Row],[2022/23 Reduction]]+T_DataComboFile[[#This Row],[2022/23 Increase]]","v":0},{"$f":"T_DataComboFile[[#This Row],[2023/24 Baseline]]+T_DataComboFile[[#This Row],[2023/24 Reduction]]+T_DataComboFile[[#This Row],[2023/24 Increase]]","v":0}]
[null,null,"2021_22","ENE2020",36,4,3,null,71185,36,4,3,null,"071185","36|04|03",1,1,2,21,21,"01|01|02|21|21","National","Small Business Development","Enterprise Development and Entrepreneurship","SMME Competitiveness",null,"Current","Current payments","Goods and services","Inventory: Clothing material and accessories","Inventory: Clothing material and accessories",null,null,null,0,0,0,0,0,0,0,0,0,0,0,0,0,0,null,{"$f":"IF(T_DataComboFile[[#This Row],[G&S reporting level indicator]]=1,$AX$16,\"Not applicable\")","v":"Not applicable"},{"$f":"IF(AND($AX$16=\"Level 3\",T_DataComboFile[[#This Row],[Econ3]] = \"Goods and services\"),IF(T_DataComboFile[[#This Row],[Econ4]] = T_DataComboFile[[#This Row],[Econ3]],1,0),IF(AND($AX$16=\"Level 4\",T_DataComboFile[[#This Row],[Econ4]] = \"Goods and services\"),0,1))","v":0},{"$f":"T_DataComboFile[[#This Row],[2016/17_Source]]*T_DataComboFile[[#This Row],[G&S reporting level indicator]]","v":0},{"$f":"T_DataComboFile[[#This Row],[2017/18_Source]]*T_DataComboFile[[#This Row],[G&S reporting level indicator]]","v":0},{"$f":"T_DataComboFile[[#This Row],[2018/19_Source]]*T_DataComboFile[[#This Row],[G&S reporting level indicator]]","v":0},{"$f":"T_DataComboFile[[#This Row],[2019/20 Main appropriation_Source]]*T_DataComboFile[[#This Row],[G&S reporting level indicator]]","v":0},{"$f":"T_DataComboFile[[#This Row],[2019/20 Adjusted appropriation_Source]]*T_DataComboFile[[#This Row],[G&S reporting level indicator]]","v":0},{"$f":"T_DataComboFile[[#This Row],[2019/20 Revised estimate_Source]]*T_DataComboFile[[#This Row],[G&S reporting level indicator]]","v":0},{"$f":"T_DataComboFile[[#This Row],[2019/20 Preliminary outcome_Source]]*T_DataComboFile[[#This Row],[G&S reporting level indicator]]","v":0},{"$f":"T_DataComboFile[[#This Row],[2020/21 Original_Source]]*T_DataComboFile[[#This Row],[G&S reporting level indicator]]","v":0},{"$f":"T_DataComboFile[[#This Row],[2020/21 SAB_Source]]*T_DataComboFile[[#This Row],[G&S reporting level indicator]]","v":0},{"$f":"T_DataComboFile[[#This Row],[2020/21 Baseline_Source]]*T_DataComboFile[[#This Row],[G&S reporting level indicator]]","v":0},{"$f":"T_DataComboFile[[#This Row],[2021/22 Baseline_Source]]*T_DataComboFile[[#This Row],[G&S reporting level indicator]]","v":0},{"$f":"T_DataComboFile[[#This Row],[2022/23 Baseline_Source]]*T_DataComboFile[[#This Row],[G&S reporting level indicator]]","v":0},{"$f":"T_DataComboFile[[#This Row],[2023/24 Baseline_Source]]*T_DataComboFile[[#This Row],[G&S reporting level indicator]]","v":0},null,null,null,null,null,null,{"$f":"T_DataComboFile[[#This Row],[2021/22 Baseline]]+T_DataComboFile[[#This Row],[2021/22 Reduction]]+T_DataComboFile[[#This Row],[2021/22 Increase]]","v":0},{"$f":"T_DataComboFile[[#This Row],[2022/23 Baseline]]+T_DataComboFile[[#This Row],[2022/23 Reduction]]+T_DataComboFile[[#This Row],[2022/23 Increase]]","v":0},{"$f":"T_DataComboFile[[#This Row],[2023/24 Baseline]]+T_DataComboFile[[#This Row],[2023/24 Reduction]]+T_DataComboFile[[#This Row],[2023/24 Increase]]","v":0}]
[null,null,"2021_22","ENE2020",36,4,3,null,71186,36,4,3,null,"071186","36|04|03",1,1,2,22,22,"01|01|02|22|22","National","Small Business Development","Enterprise Development and Entrepreneurship","SMME Competitiveness",null,"Current","Current payments","Goods and services","Inventory: Farming supplies","Inventory: Farming supplies",null,null,null,0,0,0,0,0,0,0,0,0,0,0,0,0,0,null,{"$f":"IF(T_DataComboFile[[#This Row],[G&S reporting level indicator]]=1,$AX$16,\"Not applicable\")","v":"Not applicable"},{"$f":"IF(AND($AX$16=\"Level 3\",T_DataComboFile[[#This Row],[Econ3]] = \"Goods and services\"),IF(T_DataComboFile[[#This Row],[Econ4]] = T_DataComboFile[[#This Row],[Econ3]],1,0),IF(AND($AX$16=\"Level 4\",T_DataComboFile[[#This Row],[Econ4]] = \"Goods and services\"),0,1))","v":0},{"$f":"T_DataComboFile[[#This Row],[2016/17_Source]]*T_DataComboFile[[#This Row],[G&S reporting level indicator]]","v":0},{"$f":"T_DataComboFile[[#This Row],[2017/18_Source]]*T_DataComboFile[[#This Row],[G&S reporting level indicator]]","v":0},{"$f":"T_DataComboFile[[#This Row],[2018/19_Source]]*T_DataComboFile[[#This Row],[G&S reporting level indicator]]","v":0},{"$f":"T_DataComboFile[[#This Row],[2019/20 Main appropriation_Source]]*T_DataComboFile[[#This Row],[G&S reporting level indicator]]","v":0},{"$f":"T_DataComboFile[[#This Row],[2019/20 Adjusted appropriation_Source]]*T_DataComboFile[[#This Row],[G&S reporting level indicator]]","v":0},{"$f":"T_DataComboFile[[#This Row],[2019/20 Revised estimate_Source]]*T_DataComboFile[[#This Row],[G&S reporting level indicator]]","v":0},{"$f":"T_DataComboFile[[#This Row],[2019/20 Preliminary outcome_Source]]*T_DataComboFile[[#This Row],[G&S reporting level indicator]]","v":0},{"$f":"T_DataComboFile[[#This Row],[2020/21 Original_Source]]*T_DataComboFile[[#This Row],[G&S reporting level indicator]]","v":0},{"$f":"T_DataComboFile[[#This Row],[2020/21 SAB_Source]]*T_DataComboFile[[#This Row],[G&S reporting level indicator]]","v":0},{"$f":"T_DataComboFile[[#This Row],[2020/21 Baseline_Source]]*T_DataComboFile[[#This Row],[G&S reporting level indicator]]","v":0},{"$f":"T_DataComboFile[[#This Row],[2021/22 Baseline_Source]]*T_DataComboFile[[#This Row],[G&S reporting level indicator]]","v":0},{"$f":"T_DataComboFile[[#This Row],[2022/23 Baseline_Source]]*T_DataComboFile[[#This Row],[G&S reporting level indicator]]","v":0},{"$f":"T_DataComboFile[[#This Row],[2023/24 Baseline_Source]]*T_DataComboFile[[#This Row],[G&S reporting level indicator]]","v":0},null,null,null,null,null,null,{"$f":"T_DataComboFile[[#This Row],[2021/22 Baseline]]+T_DataComboFile[[#This Row],[2021/22 Reduction]]+T_DataComboFile[[#This Row],[2021/22 Increase]]","v":0},{"$f":"T_DataComboFile[[#This Row],[2022/23 Baseline]]+T_DataComboFile[[#This Row],[2022/23 Reduction]]+T_DataComboFile[[#This Row],[2022/23 Increase]]","v":0},{"$f":"T_DataComboFile[[#This Row],[2023/24 Baseline]]+T_DataComboFile[[#This Row],[2023/24 Reduction]]+T_DataComboFile[[#This Row],[2023/24 Increase]]","v":0}]
[null,null,"2021_22","ENE2020",36,4,3,null,71187,36,4,3,null,"071187","36|04|03",1,1,2,23,23,"01|01|02|23|23","National","Small Business Development","Enterprise Development and Entrepreneurship","SMME Competitiveness",null,"Current","Current payments","Goods and services","Inventory: Food and food supplies","Inventory: Food and food supplies",null,null,null,0,0,0,0,0,0,0,0,0,0,0,0,0,0,null,{"$f":"IF(T_DataComboFile[[#This Row],[G&S reporting level indicator]]=1,$AX$16,\"Not applicable\")","v":"Not applicable"},{"$f":"IF(AND($AX$16=\"Level 3\",T_DataComboFile[[#This Row],[Econ3]] = \"Goods and services\"),IF(T_DataComboFile[[#This Row],[Econ4]] = T_DataComboFile[[#This Row],[Econ3]],1,0),IF(AND($AX$16=\"Level 4\",T_DataComboFile[[#This Row],[Econ4]] = \"Goods and services\"),0,1))","v":0},{"$f":"T_DataComboFile[[#This Row],[2016/17_Source]]*T_DataComboFile[[#This Row],[G&S reporting level indicator]]","v":0},{"$f":"T_DataComboFile[[#This Row],[2017/18_Source]]*T_DataComboFile[[#This Row],[G&S reporting level indicator]]","v":0},{"$f":"T_DataComboFile[[#This Row],[2018/19_Source]]*T_DataComboFile[[#This Row],[G&S reporting level indicator]]","v":0},{"$f":"T_DataComboFile[[#This Row],[2019/20 Main appropriation_Source]]*T_DataComboFile[[#This Row],[G&S reporting level indicator]]","v":0},{"$f":"T_DataComboFile[[#This Row],[2019/20 Adjusted appropriation_Source]]*T_DataComboFile[[#This Row],[G&S reporting level indicator]]","v":0},{"$f":"T_DataComboFile[[#This Row],[2019/20 Revised estimate_Source]]*T_DataComboFile[[#This Row],[G&S reporting level indicator]]","v":0},{"$f":"T_DataComboFile[[#This Row],[2019/20 Preliminary outcome_Source]]*T_DataComboFile[[#This Row],[G&S reporting level indicator]]","v":0},{"$f":"T_DataComboFile[[#This Row],[2020/21 Original_Source]]*T_DataComboFile[[#This Row],[G&S reporting level indicator]]","v":0},{"$f":"T_DataComboFile[[#This Row],[2020/21 SAB_Source]]*T_DataComboFile[[#This Row],[G&S reporting level indicator]]","v":0},{"$f":"T_DataComboFile[[#This Row],[2020/21 Baseline_Source]]*T_DataComboFile[[#This Row],[G&S reporting level indicator]]","v":0},{"$f":"T_DataComboFile[[#This Row],[2021/22 Baseline_Source]]*T_DataComboFile[[#This Row],[G&S reporting level indicator]]","v":0},{"$f":"T_DataComboFile[[#This Row],[2022/23 Baseline_Source]]*T_DataComboFile[[#This Row],[G&S reporting level indicator]]","v":0},{"$f":"T_DataComboFile[[#This Row],[2023/24 Baseline_Source]]*T_DataComboFile[[#This Row],[G&S reporting level indicator]]","v":0},null,null,null,null,null,null,{"$f":"T_DataComboFile[[#This Row],[2021/22 Baseline]]+T_DataComboFile[[#This Row],[2021/22 Reduction]]+T_DataComboFile[[#This Row],[2021/22 Increase]]","v":0},{"$f":"T_DataComboFile[[#This Row],[2022/23 Baseline]]+T_DataComboFile[[#This Row],[2022/23 Reduction]]+T_DataComboFile[[#This Row],[2022/23 Increase]]","v":0},{"$f":"T_DataComboFile[[#This Row],[2023/24 Baseline]]+T_DataComboFile[[#This Row],[2023/24 Reduction]]+T_DataComboFile[[#This Row],[2023/24 Increase]]","v":0}]
[null,null,"2021_22","ENE2020",36,4,3,null,71188,36,4,3,null,"071188","36|04|03",1,1,2,24,24,"01|01|02|24|24","National","Small Business Development","Enterprise Development and Entrepreneurship","SMME Competitiveness",null,"Current","Current payments","Goods and services","Inventory: Fuel, oil and gas","Inventory: Fuel, oil and gas",null,null,null,0,0,0,0,0,0,0,0,0,0,0,0,0,0,null,{"$f":"IF(T_DataComboFile[[#This Row],[G&S reporting level indicator]]=1,$AX$16,\"Not applicable\")","v":"Not applicable"},{"$f":"IF(AND($AX$16=\"Level 3\",T_DataComboFile[[#This Row],[Econ3]] = \"Goods and services\"),IF(T_DataComboFile[[#This Row],[Econ4]] = T_DataComboFile[[#This Row],[Econ3]],1,0),IF(AND($AX$16=\"Level 4\",T_DataComboFile[[#This Row],[Econ4]] = \"Goods and services\"),0,1))","v":0},{"$f":"T_DataComboFile[[#This Row],[2016/17_Source]]*T_DataComboFile[[#This Row],[G&S reporting level indicator]]","v":0},{"$f":"T_DataComboFile[[#This Row],[2017/18_Source]]*T_DataComboFile[[#This Row],[G&S reporting level indicator]]","v":0},{"$f":"T_DataComboFile[[#This Row],[2018/19_Source]]*T_DataComboFile[[#This Row],[G&S reporting level indicator]]","v":0},{"$f":"T_DataComboFile[[#This Row],[2019/20 Main appropriation_Source]]*T_DataComboFile[[#This Row],[G&S reporting level indicator]]","v":0},{"$f":"T_DataComboFile[[#This Row],[2019/20 Adjusted appropriation_Source]]*T_DataComboFile[[#This Row],[G&S reporting level indicator]]","v":0},{"$f":"T_DataComboFile[[#This Row],[2019/20 Revised estimate_Source]]*T_DataComboFile[[#This Row],[G&S reporting level indicator]]","v":0},{"$f":"T_DataComboFile[[#This Row],[2019/20 Preliminary outcome_Source]]*T_DataComboFile[[#This Row],[G&S reporting level indicator]]","v":0},{"$f":"T_DataComboFile[[#This Row],[2020/21 Original_Source]]*T_DataComboFile[[#This Row],[G&S reporting level indicator]]","v":0},{"$f":"T_DataComboFile[[#This Row],[2020/21 SAB_Source]]*T_DataComboFile[[#This Row],[G&S reporting level indicator]]","v":0},{"$f":"T_DataComboFile[[#This Row],[2020/21 Baseline_Source]]*T_DataComboFile[[#This Row],[G&S reporting level indicator]]","v":0},{"$f":"T_DataComboFile[[#This Row],[2021/22 Baseline_Source]]*T_DataComboFile[[#This Row],[G&S reporting level indicator]]","v":0},{"$f":"T_DataComboFile[[#This Row],[2022/23 Baseline_Source]]*T_DataComboFile[[#This Row],[G&S reporting level indicator]]","v":0},{"$f":"T_DataComboFile[[#This Row],[2023/24 Baseline_Source]]*T_DataComboFile[[#This Row],[G&S reporting level indicator]]","v":0},null,null,null,null,null,null,{"$f":"T_DataComboFile[[#This Row],[2021/22 Baseline]]+T_DataComboFile[[#This Row],[2021/22 Reduction]]+T_DataComboFile[[#This Row],[2021/22 Increase]]","v":0},{"$f":"T_DataComboFile[[#This Row],[2022/23 Baseline]]+T_DataComboFile[[#This Row],[2022/23 Reduction]]+T_DataComboFile[[#This Row],[2022/23 Increase]]","v":0},{"$f":"T_DataComboFile[[#This Row],[2023/24 Baseline]]+T_DataComboFile[[#This Row],[2023/24 Reduction]]+T_DataComboFile[[#This Row],[2023/24 Increase]]","v":0}]
[null,null,"2021_22","ENE2020",36,4,3,null,71189,36,4,3,null,"071189","36|04|03",1,1,2,25,25,"01|01|02|25|25","National","Small Business Development","Enterprise Development and Entrepreneurship","SMME Competitiveness",null,"Current","Current payments","Goods and services","Inventory: Learner and teacher support material","Inventory: Learner and teacher support material",null,null,null,0,0,0,0,0,0,0,0,0,0,0,0,0,0,null,{"$f":"IF(T_DataComboFile[[#This Row],[G&S reporting level indicator]]=1,$AX$16,\"Not applicable\")","v":"Not applicable"},{"$f":"IF(AND($AX$16=\"Level 3\",T_DataComboFile[[#This Row],[Econ3]] = \"Goods and services\"),IF(T_DataComboFile[[#This Row],[Econ4]] = T_DataComboFile[[#This Row],[Econ3]],1,0),IF(AND($AX$16=\"Level 4\",T_DataComboFile[[#This Row],[Econ4]] = \"Goods and services\"),0,1))","v":0},{"$f":"T_DataComboFile[[#This Row],[2016/17_Source]]*T_DataComboFile[[#This Row],[G&S reporting level indicator]]","v":0},{"$f":"T_DataComboFile[[#This Row],[2017/18_Source]]*T_DataComboFile[[#This Row],[G&S reporting level indicator]]","v":0},{"$f":"T_DataComboFile[[#This Row],[2018/19_Source]]*T_DataComboFile[[#This Row],[G&S reporting level indicator]]","v":0},{"$f":"T_DataComboFile[[#This Row],[2019/20 Main appropriation_Source]]*T_DataComboFile[[#This Row],[G&S reporting level indicator]]","v":0},{"$f":"T_DataComboFile[[#This Row],[2019/20 Adjusted appropriation_Source]]*T_DataComboFile[[#This Row],[G&S reporting level indicator]]","v":0},{"$f":"T_DataComboFile[[#This Row],[2019/20 Revised estimate_Source]]*T_DataComboFile[[#This Row],[G&S reporting level indicator]]","v":0},{"$f":"T_DataComboFile[[#This Row],[2019/20 Preliminary outcome_Source]]*T_DataComboFile[[#This Row],[G&S reporting level indicator]]","v":0},{"$f":"T_DataComboFile[[#This Row],[2020/21 Original_Source]]*T_DataComboFile[[#This Row],[G&S reporting level indicator]]","v":0},{"$f":"T_DataComboFile[[#This Row],[2020/21 SAB_Source]]*T_DataComboFile[[#This Row],[G&S reporting level indicator]]","v":0},{"$f":"T_DataComboFile[[#This Row],[2020/21 Baseline_Source]]*T_DataComboFile[[#This Row],[G&S reporting level indicator]]","v":0},{"$f":"T_DataComboFile[[#This Row],[2021/22 Baseline_Source]]*T_DataComboFile[[#This Row],[G&S reporting level indicator]]","v":0},{"$f":"T_DataComboFile[[#This Row],[2022/23 Baseline_Source]]*T_DataComboFile[[#This Row],[G&S reporting level indicator]]","v":0},{"$f":"T_DataComboFile[[#This Row],[2023/24 Baseline_Source]]*T_DataComboFile[[#This Row],[G&S reporting level indicator]]","v":0},null,null,null,null,null,null,{"$f":"T_DataComboFile[[#This Row],[2021/22 Baseline]]+T_DataComboFile[[#This Row],[2021/22 Reduction]]+T_DataComboFile[[#This Row],[2021/22 Increase]]","v":0},{"$f":"T_DataComboFile[[#This Row],[2022/23 Baseline]]+T_DataComboFile[[#This Row],[2022/23 Reduction]]+T_DataComboFile[[#This Row],[2022/23 Increase]]","v":0},{"$f":"T_DataComboFile[[#This Row],[2023/24 Baseline]]+T_DataComboFile[[#This Row],[2023/24 Reduction]]+T_DataComboFile[[#This Row],[2023/24 Increase]]","v":0}]
[null,null,"2021_22","ENE2020",36,4,3,null,71190,36,4,3,null,"071190","36|04|03",1,1,2,26,26,"01|01|02|26|26","National","Small Business Development","Enterprise Development and Entrepreneurship","SMME Competitiveness",null,"Current","Current payments","Goods and services","Inventory: Materials and supplies","Inventory: Materials and supplies",null,null,null,0,0,0,0,0,0,0,0,0,0,0,0,0,0,null,{"$f":"IF(T_DataComboFile[[#This Row],[G&S reporting level indicator]]=1,$AX$16,\"Not applicable\")","v":"Not applicable"},{"$f":"IF(AND($AX$16=\"Level 3\",T_DataComboFile[[#This Row],[Econ3]] = \"Goods and services\"),IF(T_DataComboFile[[#This Row],[Econ4]] = T_DataComboFile[[#This Row],[Econ3]],1,0),IF(AND($AX$16=\"Level 4\",T_DataComboFile[[#This Row],[Econ4]] = \"Goods and services\"),0,1))","v":0},{"$f":"T_DataComboFile[[#This Row],[2016/17_Source]]*T_DataComboFile[[#This Row],[G&S reporting level indicator]]","v":0},{"$f":"T_DataComboFile[[#This Row],[2017/18_Source]]*T_DataComboFile[[#This Row],[G&S reporting level indicator]]","v":0},{"$f":"T_DataComboFile[[#This Row],[2018/19_Source]]*T_DataComboFile[[#This Row],[G&S reporting level indicator]]","v":0},{"$f":"T_DataComboFile[[#This Row],[2019/20 Main appropriation_Source]]*T_DataComboFile[[#This Row],[G&S reporting level indicator]]","v":0},{"$f":"T_DataComboFile[[#This Row],[2019/20 Adjusted appropriation_Source]]*T_DataComboFile[[#This Row],[G&S reporting level indicator]]","v":0},{"$f":"T_DataComboFile[[#This Row],[2019/20 Revised estimate_Source]]*T_DataComboFile[[#This Row],[G&S reporting level indicator]]","v":0},{"$f":"T_DataComboFile[[#This Row],[2019/20 Preliminary outcome_Source]]*T_DataComboFile[[#This Row],[G&S reporting level indicator]]","v":0},{"$f":"T_DataComboFile[[#This Row],[2020/21 Original_Source]]*T_DataComboFile[[#This Row],[G&S reporting level indicator]]","v":0},{"$f":"T_DataComboFile[[#This Row],[2020/21 SAB_Source]]*T_DataComboFile[[#This Row],[G&S reporting level indicator]]","v":0},{"$f":"T_DataComboFile[[#This Row],[2020/21 Baseline_Source]]*T_DataComboFile[[#This Row],[G&S reporting level indicator]]","v":0},{"$f":"T_DataComboFile[[#This Row],[2021/22 Baseline_Source]]*T_DataComboFile[[#This Row],[G&S reporting level indicator]]","v":0},{"$f":"T_DataComboFile[[#This Row],[2022/23 Baseline_Source]]*T_DataComboFile[[#This Row],[G&S reporting level indicator]]","v":0},{"$f":"T_DataComboFile[[#This Row],[2023/24 Baseline_Source]]*T_DataComboFile[[#This Row],[G&S reporting level indicator]]","v":0},null,null,null,null,null,null,{"$f":"T_DataComboFile[[#This Row],[2021/22 Baseline]]+T_DataComboFile[[#This Row],[2021/22 Reduction]]+T_DataComboFile[[#This Row],[2021/22 Increase]]","v":0},{"$f":"T_DataComboFile[[#This Row],[2022/23 Baseline]]+T_DataComboFile[[#This Row],[2022/23 Reduction]]+T_DataComboFile[[#This Row],[2022/23 Increase]]","v":0},{"$f":"T_DataComboFile[[#This Row],[2023/24 Baseline]]+T_DataComboFile[[#This Row],[2023/24 Reduction]]+T_DataComboFile[[#This Row],[2023/24 Increase]]","v":0}]
[null,null,"2021_22","ENE2020",36,4,3,null,71191,36,4,3,null,"071191","36|04|03",1,1,2,27,27,"01|01|02|27|27","National","Small Business Development","Enterprise Development and Entrepreneurship","SMME Competitiveness",null,"Current","Current payments","Goods and services","Inventory: Medical supplies","Inventory: Medical supplies",null,null,null,0,0,0,0,0,0,0,0,0,0,0,0,0,0,null,{"$f":"IF(T_DataComboFile[[#This Row],[G&S reporting level indicator]]=1,$AX$16,\"Not applicable\")","v":"Not applicable"},{"$f":"IF(AND($AX$16=\"Level 3\",T_DataComboFile[[#This Row],[Econ3]] = \"Goods and services\"),IF(T_DataComboFile[[#This Row],[Econ4]] = T_DataComboFile[[#This Row],[Econ3]],1,0),IF(AND($AX$16=\"Level 4\",T_DataComboFile[[#This Row],[Econ4]] = \"Goods and services\"),0,1))","v":0},{"$f":"T_DataComboFile[[#This Row],[2016/17_Source]]*T_DataComboFile[[#This Row],[G&S reporting level indicator]]","v":0},{"$f":"T_DataComboFile[[#This Row],[2017/18_Source]]*T_DataComboFile[[#This Row],[G&S reporting level indicator]]","v":0},{"$f":"T_DataComboFile[[#This Row],[2018/19_Source]]*T_DataComboFile[[#This Row],[G&S reporting level indicator]]","v":0},{"$f":"T_DataComboFile[[#This Row],[2019/20 Main appropriation_Source]]*T_DataComboFile[[#This Row],[G&S reporting level indicator]]","v":0},{"$f":"T_DataComboFile[[#This Row],[2019/20 Adjusted appropriation_Source]]*T_DataComboFile[[#This Row],[G&S reporting level indicator]]","v":0},{"$f":"T_DataComboFile[[#This Row],[2019/20 Revised estimate_Source]]*T_DataComboFile[[#This Row],[G&S reporting level indicator]]","v":0},{"$f":"T_DataComboFile[[#This Row],[2019/20 Preliminary outcome_Source]]*T_DataComboFile[[#This Row],[G&S reporting level indicator]]","v":0},{"$f":"T_DataComboFile[[#This Row],[2020/21 Original_Source]]*T_DataComboFile[[#This Row],[G&S reporting level indicator]]","v":0},{"$f":"T_DataComboFile[[#This Row],[2020/21 SAB_Source]]*T_DataComboFile[[#This Row],[G&S reporting level indicator]]","v":0},{"$f":"T_DataComboFile[[#This Row],[2020/21 Baseline_Source]]*T_DataComboFile[[#This Row],[G&S reporting level indicator]]","v":0},{"$f":"T_DataComboFile[[#This Row],[2021/22 Baseline_Source]]*T_DataComboFile[[#This Row],[G&S reporting level indicator]]","v":0},{"$f":"T_DataComboFile[[#This Row],[2022/23 Baseline_Source]]*T_DataComboFile[[#This Row],[G&S reporting level indicator]]","v":0},{"$f":"T_DataComboFile[[#This Row],[2023/24 Baseline_Source]]*T_DataComboFile[[#This Row],[G&S reporting level indicator]]","v":0},null,null,null,null,null,null,{"$f":"T_DataComboFile[[#This Row],[2021/22 Baseline]]+T_DataComboFile[[#This Row],[2021/22 Reduction]]+T_DataComboFile[[#This Row],[2021/22 Increase]]","v":0},{"$f":"T_DataComboFile[[#This Row],[2022/23 Baseline]]+T_DataComboFile[[#This Row],[2022/23 Reduction]]+T_DataComboFile[[#This Row],[2022/23 Increase]]","v":0},{"$f":"T_DataComboFile[[#This Row],[2023/24 Baseline]]+T_DataComboFile[[#This Row],[2023/24 Reduction]]+T_DataComboFile[[#This Row],[2023/24 Increase]]","v":0}]
[null,null,"2021_22","ENE2020",36,4,3,null,71192,36,4,3,null,"071192","36|04|03",1,1,2,28,28,"01|01|02|28|28","National","Small Business Development","Enterprise Development and Entrepreneurship","SMME Competitiveness",null,"Current","Current payments","Goods and services","Inventory: Medicine","Inventory: Medicine",null,null,null,0,0,0,0,0,0,0,0,0,0,0,0,0,0,null,{"$f":"IF(T_DataComboFile[[#This Row],[G&S reporting level indicator]]=1,$AX$16,\"Not applicable\")","v":"Not applicable"},{"$f":"IF(AND($AX$16=\"Level 3\",T_DataComboFile[[#This Row],[Econ3]] = \"Goods and services\"),IF(T_DataComboFile[[#This Row],[Econ4]] = T_DataComboFile[[#This Row],[Econ3]],1,0),IF(AND($AX$16=\"Level 4\",T_DataComboFile[[#This Row],[Econ4]] = \"Goods and services\"),0,1))","v":0},{"$f":"T_DataComboFile[[#This Row],[2016/17_Source]]*T_DataComboFile[[#This Row],[G&S reporting level indicator]]","v":0},{"$f":"T_DataComboFile[[#This Row],[2017/18_Source]]*T_DataComboFile[[#This Row],[G&S reporting level indicator]]","v":0},{"$f":"T_DataComboFile[[#This Row],[2018/19_Source]]*T_DataComboFile[[#This Row],[G&S reporting level indicator]]","v":0},{"$f":"T_DataComboFile[[#This Row],[2019/20 Main appropriation_Source]]*T_DataComboFile[[#This Row],[G&S reporting level indicator]]","v":0},{"$f":"T_DataComboFile[[#This Row],[2019/20 Adjusted appropriation_Source]]*T_DataComboFile[[#This Row],[G&S reporting level indicator]]","v":0},{"$f":"T_DataComboFile[[#This Row],[2019/20 Revised estimate_Source]]*T_DataComboFile[[#This Row],[G&S reporting level indicator]]","v":0},{"$f":"T_DataComboFile[[#This Row],[2019/20 Preliminary outcome_Source]]*T_DataComboFile[[#This Row],[G&S reporting level indicator]]","v":0},{"$f":"T_DataComboFile[[#This Row],[2020/21 Original_Source]]*T_DataComboFile[[#This Row],[G&S reporting level indicator]]","v":0},{"$f":"T_DataComboFile[[#This Row],[2020/21 SAB_Source]]*T_DataComboFile[[#This Row],[G&S reporting level indicator]]","v":0},{"$f":"T_DataComboFile[[#This Row],[2020/21 Baseline_Source]]*T_DataComboFile[[#This Row],[G&S reporting level indicator]]","v":0},{"$f":"T_DataComboFile[[#This Row],[2021/22 Baseline_Source]]*T_DataComboFile[[#This Row],[G&S reporting level indicator]]","v":0},{"$f":"T_DataComboFile[[#This Row],[2022/23 Baseline_Source]]*T_DataComboFile[[#This Row],[G&S reporting level indicator]]","v":0},{"$f":"T_DataComboFile[[#This Row],[2023/24 Baseline_Source]]*T_DataComboFile[[#This Row],[G&S reporting level indicator]]","v":0},null,null,null,null,null,null,{"$f":"T_DataComboFile[[#This Row],[2021/22 Baseline]]+T_DataComboFile[[#This Row],[2021/22 Reduction]]+T_DataComboFile[[#This Row],[2021/22 Increase]]","v":0},{"$f":"T_DataComboFile[[#This Row],[2022/23 Baseline]]+T_DataComboFile[[#This Row],[2022/23 Reduction]]+T_DataComboFile[[#This Row],[2022/23 Increase]]","v":0},{"$f":"T_DataComboFile[[#This Row],[2023/24 Baseline]]+T_DataComboFile[[#This Row],[2023/24 Reduction]]+T_DataComboFile[[#This Row],[2023/24 Increase]]","v":0}]
[null,null,"2021_22","ENE2020",36,4,3,null,71193,36,4,3,null,"071193","36|04|03",1,1,2,29,29,"01|01|02|29|29","National","Small Business Development","Enterprise Development and Entrepreneurship","SMME Competitiveness",null,"Current","Current payments","Goods and services","Medsas inventory interface","Medsas inventory interface",null,null,null,0,0,0,0,0,0,0,0,0,0,0,0,0,0,null,{"$f":"IF(T_DataComboFile[[#This Row],[G&S reporting level indicator]]=1,$AX$16,\"Not applicable\")","v":"Not applicable"},{"$f":"IF(AND($AX$16=\"Level 3\",T_DataComboFile[[#This Row],[Econ3]] = \"Goods and services\"),IF(T_DataComboFile[[#This Row],[Econ4]] = T_DataComboFile[[#This Row],[Econ3]],1,0),IF(AND($AX$16=\"Level 4\",T_DataComboFile[[#This Row],[Econ4]] = \"Goods and services\"),0,1))","v":0},{"$f":"T_DataComboFile[[#This Row],[2016/17_Source]]*T_DataComboFile[[#This Row],[G&S reporting level indicator]]","v":0},{"$f":"T_DataComboFile[[#This Row],[2017/18_Source]]*T_DataComboFile[[#This Row],[G&S reporting level indicator]]","v":0},{"$f":"T_DataComboFile[[#This Row],[2018/19_Source]]*T_DataComboFile[[#This Row],[G&S reporting level indicator]]","v":0},{"$f":"T_DataComboFile[[#This Row],[2019/20 Main appropriation_Source]]*T_DataComboFile[[#This Row],[G&S reporting level indicator]]","v":0},{"$f":"T_DataComboFile[[#This Row],[2019/20 Adjusted appropriation_Source]]*T_DataComboFile[[#This Row],[G&S reporting level indicator]]","v":0},{"$f":"T_DataComboFile[[#This Row],[2019/20 Revised estimate_Source]]*T_DataComboFile[[#This Row],[G&S reporting level indicator]]","v":0},{"$f":"T_DataComboFile[[#This Row],[2019/20 Preliminary outcome_Source]]*T_DataComboFile[[#This Row],[G&S reporting level indicator]]","v":0},{"$f":"T_DataComboFile[[#This Row],[2020/21 Original_Source]]*T_DataComboFile[[#This Row],[G&S reporting level indicator]]","v":0},{"$f":"T_DataComboFile[[#This Row],[2020/21 SAB_Source]]*T_DataComboFile[[#This Row],[G&S reporting level indicator]]","v":0},{"$f":"T_DataComboFile[[#This Row],[2020/21 Baseline_Source]]*T_DataComboFile[[#This Row],[G&S reporting level indicator]]","v":0},{"$f":"T_DataComboFile[[#This Row],[2021/22 Baseline_Source]]*T_DataComboFile[[#This Row],[G&S reporting level indicator]]","v":0},{"$f":"T_DataComboFile[[#This Row],[2022/23 Baseline_Source]]*T_DataComboFile[[#This Row],[G&S reporting level indicator]]","v":0},{"$f":"T_DataComboFile[[#This Row],[2023/24 Baseline_Source]]*T_DataComboFile[[#This Row],[G&S reporting level indicator]]","v":0},null,null,null,null,null,null,{"$f":"T_DataComboFile[[#This Row],[2021/22 Baseline]]+T_DataComboFile[[#This Row],[2021/22 Reduction]]+T_DataComboFile[[#This Row],[2021/22 Increase]]","v":0},{"$f":"T_DataComboFile[[#This Row],[2022/23 Baseline]]+T_DataComboFile[[#This Row],[2022/23 Reduction]]+T_DataComboFile[[#This Row],[2022/23 Increase]]","v":0},{"$f":"T_DataComboFile[[#This Row],[2023/24 Baseline]]+T_DataComboFile[[#This Row],[2023/24 Reduction]]+T_DataComboFile[[#This Row],[2023/24 Increase]]","v":0}]
[null,null,"2021_22","ENE2020",36,4,3,null,71194,36,4,3,null,"071194","36|04|03",1,1,2,30,30,"01|01|02|30|30","National","Small Business Development","Enterprise Development and Entrepreneurship","SMME Competitiveness",null,"Current","Current payments","Goods and services","Inventory: Other supplies","Inventory: Other supplies",null,null,null,0,0,0,0,0,0,0,0,0,0,0,0,0,0,null,{"$f":"IF(T_DataComboFile[[#This Row],[G&S reporting level indicator]]=1,$AX$16,\"Not applicable\")","v":"Not applicable"},{"$f":"IF(AND($AX$16=\"Level 3\",T_DataComboFile[[#This Row],[Econ3]] = \"Goods and services\"),IF(T_DataComboFile[[#This Row],[Econ4]] = T_DataComboFile[[#This Row],[Econ3]],1,0),IF(AND($AX$16=\"Level 4\",T_DataComboFile[[#This Row],[Econ4]] = \"Goods and services\"),0,1))","v":0},{"$f":"T_DataComboFile[[#This Row],[2016/17_Source]]*T_DataComboFile[[#This Row],[G&S reporting level indicator]]","v":0},{"$f":"T_DataComboFile[[#This Row],[2017/18_Source]]*T_DataComboFile[[#This Row],[G&S reporting level indicator]]","v":0},{"$f":"T_DataComboFile[[#This Row],[2018/19_Source]]*T_DataComboFile[[#This Row],[G&S reporting level indicator]]","v":0},{"$f":"T_DataComboFile[[#This Row],[2019/20 Main appropriation_Source]]*T_DataComboFile[[#This Row],[G&S reporting level indicator]]","v":0},{"$f":"T_DataComboFile[[#This Row],[2019/20 Adjusted appropriation_Source]]*T_DataComboFile[[#This Row],[G&S reporting level indicator]]","v":0},{"$f":"T_DataComboFile[[#This Row],[2019/20 Revised estimate_Source]]*T_DataComboFile[[#This Row],[G&S reporting level indicator]]","v":0},{"$f":"T_DataComboFile[[#This Row],[2019/20 Preliminary outcome_Source]]*T_DataComboFile[[#This Row],[G&S reporting level indicator]]","v":0},{"$f":"T_DataComboFile[[#This Row],[2020/21 Original_Source]]*T_DataComboFile[[#This Row],[G&S reporting level indicator]]","v":0},{"$f":"T_DataComboFile[[#This Row],[2020/21 SAB_Source]]*T_DataComboFile[[#This Row],[G&S reporting level indicator]]","v":0},{"$f":"T_DataComboFile[[#This Row],[2020/21 Baseline_Source]]*T_DataComboFile[[#This Row],[G&S reporting level indicator]]","v":0},{"$f":"T_DataComboFile[[#This Row],[2021/22 Baseline_Source]]*T_DataComboFile[[#This Row],[G&S reporting level indicator]]","v":0},{"$f":"T_DataComboFile[[#This Row],[2022/23 Baseline_Source]]*T_DataComboFile[[#This Row],[G&S reporting level indicator]]","v":0},{"$f":"T_DataComboFile[[#This Row],[2023/24 Baseline_Source]]*T_DataComboFile[[#This Row],[G&S reporting level indicator]]","v":0},null,null,null,null,null,null,{"$f":"T_DataComboFile[[#This Row],[2021/22 Baseline]]+T_DataComboFile[[#This Row],[2021/22 Reduction]]+T_DataComboFile[[#This Row],[2021/22 Increase]]","v":0},{"$f":"T_DataComboFile[[#This Row],[2022/23 Baseline]]+T_DataComboFile[[#This Row],[2022/23 Reduction]]+T_DataComboFile[[#This Row],[2022/23 Increase]]","v":0},{"$f":"T_DataComboFile[[#This Row],[2023/24 Baseline]]+T_DataComboFile[[#This Row],[2023/24 Reduction]]+T_DataComboFile[[#This Row],[2023/24 Increase]]","v":0}]
[null,null,"2021_22","ENE2020",36,4,3,null,71195,36,4,3,null,"071195","36|04|03",1,1,2,31,31,"01|01|02|31|31","National","Small Business Development","Enterprise Development and Entrepreneurship","SMME Competitiveness",null,"Current","Current payments","Goods and services","Consumable supplies","Consumable supplies",null,null,null,0,0,0,0,0,0,0,0,0,0,0,0,0,0,null,{"$f":"IF(T_DataComboFile[[#This Row],[G&S reporting level indicator]]=1,$AX$16,\"Not applicable\")","v":"Not applicable"},{"$f":"IF(AND($AX$16=\"Level 3\",T_DataComboFile[[#This Row],[Econ3]] = \"Goods and services\"),IF(T_DataComboFile[[#This Row],[Econ4]] = T_DataComboFile[[#This Row],[Econ3]],1,0),IF(AND($AX$16=\"Level 4\",T_DataComboFile[[#This Row],[Econ4]] = \"Goods and services\"),0,1))","v":0},{"$f":"T_DataComboFile[[#This Row],[2016/17_Source]]*T_DataComboFile[[#This Row],[G&S reporting level indicator]]","v":0},{"$f":"T_DataComboFile[[#This Row],[2017/18_Source]]*T_DataComboFile[[#This Row],[G&S reporting level indicator]]","v":0},{"$f":"T_DataComboFile[[#This Row],[2018/19_Source]]*T_DataComboFile[[#This Row],[G&S reporting level indicator]]","v":0},{"$f":"T_DataComboFile[[#This Row],[2019/20 Main appropriation_Source]]*T_DataComboFile[[#This Row],[G&S reporting level indicator]]","v":0},{"$f":"T_DataComboFile[[#This Row],[2019/20 Adjusted appropriation_Source]]*T_DataComboFile[[#This Row],[G&S reporting level indicator]]","v":0},{"$f":"T_DataComboFile[[#This Row],[2019/20 Revised estimate_Source]]*T_DataComboFile[[#This Row],[G&S reporting level indicator]]","v":0},{"$f":"T_DataComboFile[[#This Row],[2019/20 Preliminary outcome_Source]]*T_DataComboFile[[#This Row],[G&S reporting level indicator]]","v":0},{"$f":"T_DataComboFile[[#This Row],[2020/21 Original_Source]]*T_DataComboFile[[#This Row],[G&S reporting level indicator]]","v":0},{"$f":"T_DataComboFile[[#This Row],[2020/21 SAB_Source]]*T_DataComboFile[[#This Row],[G&S reporting level indicator]]","v":0},{"$f":"T_DataComboFile[[#This Row],[2020/21 Baseline_Source]]*T_DataComboFile[[#This Row],[G&S reporting level indicator]]","v":0},{"$f":"T_DataComboFile[[#This Row],[2021/22 Baseline_Source]]*T_DataComboFile[[#This Row],[G&S reporting level indicator]]","v":0},{"$f":"T_DataComboFile[[#This Row],[2022/23 Baseline_Source]]*T_DataComboFile[[#This Row],[G&S reporting level indicator]]","v":0},{"$f":"T_DataComboFile[[#This Row],[2023/24 Baseline_Source]]*T_DataComboFile[[#This Row],[G&S reporting level indicator]]","v":0},null,null,null,null,null,null,{"$f":"T_DataComboFile[[#This Row],[2021/22 Baseline]]+T_DataComboFile[[#This Row],[2021/22 Reduction]]+T_DataComboFile[[#This Row],[2021/22 Increase]]","v":0},{"$f":"T_DataComboFile[[#This Row],[2022/23 Baseline]]+T_DataComboFile[[#This Row],[2022/23 Reduction]]+T_DataComboFile[[#This Row],[2022/23 Increase]]","v":0},{"$f":"T_DataComboFile[[#This Row],[2023/24 Baseline]]+T_DataComboFile[[#This Row],[2023/24 Reduction]]+T_DataComboFile[[#This Row],[2023/24 Increase]]","v":0}]
["NAT|Non-transfer item","36|Consumables: Stationery, printing and office supplies","2021_22","ENE2020",36,4,3,17442,71196,36,4,3,17442,"071196","36|04|03",1,1,2,32,32,"01|01|02|32|32","National","Small Business Development","Enterprise Development and Entrepreneurship","SMME Competitiveness","Non-transfer item","Current","Current payments","Goods and services","Consumables: Stationery, printing and office supplies","Consumables: Stationery, printing and office supplies","Economic development","Industrialisation and exports","NAT",22,20,0,0,0,0,0,0,0,0,0,0,0,1,null,{"$f":"IF(T_DataComboFile[[#This Row],[G&S reporting level indicator]]=1,$AX$16,\"Not applicable\")","v":"Not applicable"},{"$f":"IF(AND($AX$16=\"Level 3\",T_DataComboFile[[#This Row],[Econ3]] = \"Goods and services\"),IF(T_DataComboFile[[#This Row],[Econ4]] = T_DataComboFile[[#This Row],[Econ3]],1,0),IF(AND($AX$16=\"Level 4\",T_DataComboFile[[#This Row],[Econ4]] = \"Goods and services\"),0,1))","v":0},{"$f":"T_DataComboFile[[#This Row],[2016/17_Source]]*T_DataComboFile[[#This Row],[G&S reporting level indicator]]","v":0},{"$f":"T_DataComboFile[[#This Row],[2017/18_Source]]*T_DataComboFile[[#This Row],[G&S reporting level indicator]]","v":0},{"$f":"T_DataComboFile[[#This Row],[2018/19_Source]]*T_DataComboFile[[#This Row],[G&S reporting level indicator]]","v":0},{"$f":"T_DataComboFile[[#This Row],[2019/20 Main appropriation_Source]]*T_DataComboFile[[#This Row],[G&S reporting level indicator]]","v":0},{"$f":"T_DataComboFile[[#This Row],[2019/20 Adjusted appropriation_Source]]*T_DataComboFile[[#This Row],[G&S reporting level indicator]]","v":0},{"$f":"T_DataComboFile[[#This Row],[2019/20 Revised estimate_Source]]*T_DataComboFile[[#This Row],[G&S reporting level indicator]]","v":0},{"$f":"T_DataComboFile[[#This Row],[2019/20 Preliminary outcome_Source]]*T_DataComboFile[[#This Row],[G&S reporting level indicator]]","v":0},{"$f":"T_DataComboFile[[#This Row],[2020/21 Original_Source]]*T_DataComboFile[[#This Row],[G&S reporting level indicator]]","v":0},{"$f":"T_DataComboFile[[#This Row],[2020/21 SAB_Source]]*T_DataComboFile[[#This Row],[G&S reporting level indicator]]","v":0},{"$f":"T_DataComboFile[[#This Row],[2020/21 Baseline_Source]]*T_DataComboFile[[#This Row],[G&S reporting level indicator]]","v":0},{"$f":"T_DataComboFile[[#This Row],[2021/22 Baseline_Source]]*T_DataComboFile[[#This Row],[G&S reporting level indicator]]","v":0},{"$f":"T_DataComboFile[[#This Row],[2022/23 Baseline_Source]]*T_DataComboFile[[#This Row],[G&S reporting level indicator]]","v":0},{"$f":"T_DataComboFile[[#This Row],[2023/24 Baseline_Source]]*T_DataComboFile[[#This Row],[G&S reporting level indicator]]","v":0},null,null,null,null,null,null,{"$f":"T_DataComboFile[[#This Row],[2021/22 Baseline]]+T_DataComboFile[[#This Row],[2021/22 Reduction]]+T_DataComboFile[[#This Row],[2021/22 Increase]]","v":0},{"$f":"T_DataComboFile[[#This Row],[2022/23 Baseline]]+T_DataComboFile[[#This Row],[2022/23 Reduction]]+T_DataComboFile[[#This Row],[2022/23 Increase]]","v":0},{"$f":"T_DataComboFile[[#This Row],[2023/24 Baseline]]+T_DataComboFile[[#This Row],[2023/24 Reduction]]+T_DataComboFile[[#This Row],[2023/24 Increase]]","v":0}]
["NAT|Non-transfer item","36|Operating leases","2021_22","ENE2020",36,4,3,17443,71197,36,4,3,17443,"071197","36|04|03",1,1,2,33,33,"01|01|02|33|33","National","Small Business Development","Enterprise Development and Entrepreneurship","SMME Competitiveness","Non-transfer item","Current","Current payments","Goods and services","Operating leases","Operating leases","Economic development","Industrialisation and exports","NAT",4,0,0,0,0,0,0,0,0,0,0,0,0,1,null,{"$f":"IF(T_DataComboFile[[#This Row],[G&S reporting level indicator]]=1,$AX$16,\"Not applicable\")","v":"Not applicable"},{"$f":"IF(AND($AX$16=\"Level 3\",T_DataComboFile[[#This Row],[Econ3]] = \"Goods and services\"),IF(T_DataComboFile[[#This Row],[Econ4]] = T_DataComboFile[[#This Row],[Econ3]],1,0),IF(AND($AX$16=\"Level 4\",T_DataComboFile[[#This Row],[Econ4]] = \"Goods and services\"),0,1))","v":0},{"$f":"T_DataComboFile[[#This Row],[2016/17_Source]]*T_DataComboFile[[#This Row],[G&S reporting level indicator]]","v":0},{"$f":"T_DataComboFile[[#This Row],[2017/18_Source]]*T_DataComboFile[[#This Row],[G&S reporting level indicator]]","v":0},{"$f":"T_DataComboFile[[#This Row],[2018/19_Source]]*T_DataComboFile[[#This Row],[G&S reporting level indicator]]","v":0},{"$f":"T_DataComboFile[[#This Row],[2019/20 Main appropriation_Source]]*T_DataComboFile[[#This Row],[G&S reporting level indicator]]","v":0},{"$f":"T_DataComboFile[[#This Row],[2019/20 Adjusted appropriation_Source]]*T_DataComboFile[[#This Row],[G&S reporting level indicator]]","v":0},{"$f":"T_DataComboFile[[#This Row],[2019/20 Revised estimate_Source]]*T_DataComboFile[[#This Row],[G&S reporting level indicator]]","v":0},{"$f":"T_DataComboFile[[#This Row],[2019/20 Preliminary outcome_Source]]*T_DataComboFile[[#This Row],[G&S reporting level indicator]]","v":0},{"$f":"T_DataComboFile[[#This Row],[2020/21 Original_Source]]*T_DataComboFile[[#This Row],[G&S reporting level indicator]]","v":0},{"$f":"T_DataComboFile[[#This Row],[2020/21 SAB_Source]]*T_DataComboFile[[#This Row],[G&S reporting level indicator]]","v":0},{"$f":"T_DataComboFile[[#This Row],[2020/21 Baseline_Source]]*T_DataComboFile[[#This Row],[G&S reporting level indicator]]","v":0},{"$f":"T_DataComboFile[[#This Row],[2021/22 Baseline_Source]]*T_DataComboFile[[#This Row],[G&S reporting level indicator]]","v":0},{"$f":"T_DataComboFile[[#This Row],[2022/23 Baseline_Source]]*T_DataComboFile[[#This Row],[G&S reporting level indicator]]","v":0},{"$f":"T_DataComboFile[[#This Row],[2023/24 Baseline_Source]]*T_DataComboFile[[#This Row],[G&S reporting level indicator]]","v":0},null,null,null,null,null,null,{"$f":"T_DataComboFile[[#This Row],[2021/22 Baseline]]+T_DataComboFile[[#This Row],[2021/22 Reduction]]+T_DataComboFile[[#This Row],[2021/22 Increase]]","v":0},{"$f":"T_DataComboFile[[#This Row],[2022/23 Baseline]]+T_DataComboFile[[#This Row],[2022/23 Reduction]]+T_DataComboFile[[#This Row],[2022/23 Increase]]","v":0},{"$f":"T_DataComboFile[[#This Row],[2023/24 Baseline]]+T_DataComboFile[[#This Row],[2023/24 Reduction]]+T_DataComboFile[[#This Row],[2023/24 Increase]]","v":0}]
[null,null,"2021_22","ENE2020",36,4,3,null,71198,36,4,3,null,"071198","36|04|03",1,1,2,34,34,"01|01|02|34|34","National","Small Business Development","Enterprise Development and Entrepreneurship","SMME Competitiveness",null,"Current","Current payments","Goods and services","Rental and hiring","Rental and hiring",null,null,null,0,0,0,0,0,0,0,0,0,0,0,0,0,0,null,{"$f":"IF(T_DataComboFile[[#This Row],[G&S reporting level indicator]]=1,$AX$16,\"Not applicable\")","v":"Not applicable"},{"$f":"IF(AND($AX$16=\"Level 3\",T_DataComboFile[[#This Row],[Econ3]] = \"Goods and services\"),IF(T_DataComboFile[[#This Row],[Econ4]] = T_DataComboFile[[#This Row],[Econ3]],1,0),IF(AND($AX$16=\"Level 4\",T_DataComboFile[[#This Row],[Econ4]] = \"Goods and services\"),0,1))","v":0},{"$f":"T_DataComboFile[[#This Row],[2016/17_Source]]*T_DataComboFile[[#This Row],[G&S reporting level indicator]]","v":0},{"$f":"T_DataComboFile[[#This Row],[2017/18_Source]]*T_DataComboFile[[#This Row],[G&S reporting level indicator]]","v":0},{"$f":"T_DataComboFile[[#This Row],[2018/19_Source]]*T_DataComboFile[[#This Row],[G&S reporting level indicator]]","v":0},{"$f":"T_DataComboFile[[#This Row],[2019/20 Main appropriation_Source]]*T_DataComboFile[[#This Row],[G&S reporting level indicator]]","v":0},{"$f":"T_DataComboFile[[#This Row],[2019/20 Adjusted appropriation_Source]]*T_DataComboFile[[#This Row],[G&S reporting level indicator]]","v":0},{"$f":"T_DataComboFile[[#This Row],[2019/20 Revised estimate_Source]]*T_DataComboFile[[#This Row],[G&S reporting level indicator]]","v":0},{"$f":"T_DataComboFile[[#This Row],[2019/20 Preliminary outcome_Source]]*T_DataComboFile[[#This Row],[G&S reporting level indicator]]","v":0},{"$f":"T_DataComboFile[[#This Row],[2020/21 Original_Source]]*T_DataComboFile[[#This Row],[G&S reporting level indicator]]","v":0},{"$f":"T_DataComboFile[[#This Row],[2020/21 SAB_Source]]*T_DataComboFile[[#This Row],[G&S reporting level indicator]]","v":0},{"$f":"T_DataComboFile[[#This Row],[2020/21 Baseline_Source]]*T_DataComboFile[[#This Row],[G&S reporting level indicator]]","v":0},{"$f":"T_DataComboFile[[#This Row],[2021/22 Baseline_Source]]*T_DataComboFile[[#This Row],[G&S reporting level indicator]]","v":0},{"$f":"T_DataComboFile[[#This Row],[2022/23 Baseline_Source]]*T_DataComboFile[[#This Row],[G&S reporting level indicator]]","v":0},{"$f":"T_DataComboFile[[#This Row],[2023/24 Baseline_Source]]*T_DataComboFile[[#This Row],[G&S reporting level indicator]]","v":0},null,null,null,null,null,null,{"$f":"T_DataComboFile[[#This Row],[2021/22 Baseline]]+T_DataComboFile[[#This Row],[2021/22 Reduction]]+T_DataComboFile[[#This Row],[2021/22 Increase]]","v":0},{"$f":"T_DataComboFile[[#This Row],[2022/23 Baseline]]+T_DataComboFile[[#This Row],[2022/23 Reduction]]+T_DataComboFile[[#This Row],[2022/23 Increase]]","v":0},{"$f":"T_DataComboFile[[#This Row],[2023/24 Baseline]]+T_DataComboFile[[#This Row],[2023/24 Reduction]]+T_DataComboFile[[#This Row],[2023/24 Increase]]","v":0}]
[null,null,"2021_22","ENE2020",36,4,3,null,71199,36,4,3,null,"071199","36|04|03",1,1,2,35,35,"01|01|02|35|35","National","Small Business Development","Enterprise Development and Entrepreneurship","SMME Competitiveness",null,"Current","Current payments","Goods and services","Property payments","Property payments",null,null,null,0,0,0,0,0,0,0,0,0,0,0,0,0,0,null,{"$f":"IF(T_DataComboFile[[#This Row],[G&S reporting level indicator]]=1,$AX$16,\"Not applicable\")","v":"Not applicable"},{"$f":"IF(AND($AX$16=\"Level 3\",T_DataComboFile[[#This Row],[Econ3]] = \"Goods and services\"),IF(T_DataComboFile[[#This Row],[Econ4]] = T_DataComboFile[[#This Row],[Econ3]],1,0),IF(AND($AX$16=\"Level 4\",T_DataComboFile[[#This Row],[Econ4]] = \"Goods and services\"),0,1))","v":0},{"$f":"T_DataComboFile[[#This Row],[2016/17_Source]]*T_DataComboFile[[#This Row],[G&S reporting level indicator]]","v":0},{"$f":"T_DataComboFile[[#This Row],[2017/18_Source]]*T_DataComboFile[[#This Row],[G&S reporting level indicator]]","v":0},{"$f":"T_DataComboFile[[#This Row],[2018/19_Source]]*T_DataComboFile[[#This Row],[G&S reporting level indicator]]","v":0},{"$f":"T_DataComboFile[[#This Row],[2019/20 Main appropriation_Source]]*T_DataComboFile[[#This Row],[G&S reporting level indicator]]","v":0},{"$f":"T_DataComboFile[[#This Row],[2019/20 Adjusted appropriation_Source]]*T_DataComboFile[[#This Row],[G&S reporting level indicator]]","v":0},{"$f":"T_DataComboFile[[#This Row],[2019/20 Revised estimate_Source]]*T_DataComboFile[[#This Row],[G&S reporting level indicator]]","v":0},{"$f":"T_DataComboFile[[#This Row],[2019/20 Preliminary outcome_Source]]*T_DataComboFile[[#This Row],[G&S reporting level indicator]]","v":0},{"$f":"T_DataComboFile[[#This Row],[2020/21 Original_Source]]*T_DataComboFile[[#This Row],[G&S reporting level indicator]]","v":0},{"$f":"T_DataComboFile[[#This Row],[2020/21 SAB_Source]]*T_DataComboFile[[#This Row],[G&S reporting level indicator]]","v":0},{"$f":"T_DataComboFile[[#This Row],[2020/21 Baseline_Source]]*T_DataComboFile[[#This Row],[G&S reporting level indicator]]","v":0},{"$f":"T_DataComboFile[[#This Row],[2021/22 Baseline_Source]]*T_DataComboFile[[#This Row],[G&S reporting level indicator]]","v":0},{"$f":"T_DataComboFile[[#This Row],[2022/23 Baseline_Source]]*T_DataComboFile[[#This Row],[G&S reporting level indicator]]","v":0},{"$f":"T_DataComboFile[[#This Row],[2023/24 Baseline_Source]]*T_DataComboFile[[#This Row],[G&S reporting level indicator]]","v":0},null,null,null,null,null,null,{"$f":"T_DataComboFile[[#This Row],[2021/22 Baseline]]+T_DataComboFile[[#This Row],[2021/22 Reduction]]+T_DataComboFile[[#This Row],[2021/22 Increase]]","v":0},{"$f":"T_DataComboFile[[#This Row],[2022/23 Baseline]]+T_DataComboFile[[#This Row],[2022/23 Reduction]]+T_DataComboFile[[#This Row],[2022/23 Increase]]","v":0},{"$f":"T_DataComboFile[[#This Row],[2023/24 Baseline]]+T_DataComboFile[[#This Row],[2023/24 Reduction]]+T_DataComboFile[[#This Row],[2023/24 Increase]]","v":0}]
[null,null,"2021_22","ENE2020",36,4,3,null,71200,36,4,3,null,"071200","36|04|03",1,1,2,36,36,"01|01|02|36|36","National","Small Business Development","Enterprise Development and Entrepreneurship","SMME Competitiveness",null,"Current","Current payments","Goods and services","Transport provided: Departmental activity","Transport provided: Departmental activity",null,null,null,0,0,0,0,0,0,0,0,0,0,0,0,0,0,null,{"$f":"IF(T_DataComboFile[[#This Row],[G&S reporting level indicator]]=1,$AX$16,\"Not applicable\")","v":"Not applicable"},{"$f":"IF(AND($AX$16=\"Level 3\",T_DataComboFile[[#This Row],[Econ3]] = \"Goods and services\"),IF(T_DataComboFile[[#This Row],[Econ4]] = T_DataComboFile[[#This Row],[Econ3]],1,0),IF(AND($AX$16=\"Level 4\",T_DataComboFile[[#This Row],[Econ4]] = \"Goods and services\"),0,1))","v":0},{"$f":"T_DataComboFile[[#This Row],[2016/17_Source]]*T_DataComboFile[[#This Row],[G&S reporting level indicator]]","v":0},{"$f":"T_DataComboFile[[#This Row],[2017/18_Source]]*T_DataComboFile[[#This Row],[G&S reporting level indicator]]","v":0},{"$f":"T_DataComboFile[[#This Row],[2018/19_Source]]*T_DataComboFile[[#This Row],[G&S reporting level indicator]]","v":0},{"$f":"T_DataComboFile[[#This Row],[2019/20 Main appropriation_Source]]*T_DataComboFile[[#This Row],[G&S reporting level indicator]]","v":0},{"$f":"T_DataComboFile[[#This Row],[2019/20 Adjusted appropriation_Source]]*T_DataComboFile[[#This Row],[G&S reporting level indicator]]","v":0},{"$f":"T_DataComboFile[[#This Row],[2019/20 Revised estimate_Source]]*T_DataComboFile[[#This Row],[G&S reporting level indicator]]","v":0},{"$f":"T_DataComboFile[[#This Row],[2019/20 Preliminary outcome_Source]]*T_DataComboFile[[#This Row],[G&S reporting level indicator]]","v":0},{"$f":"T_DataComboFile[[#This Row],[2020/21 Original_Source]]*T_DataComboFile[[#This Row],[G&S reporting level indicator]]","v":0},{"$f":"T_DataComboFile[[#This Row],[2020/21 SAB_Source]]*T_DataComboFile[[#This Row],[G&S reporting level indicator]]","v":0},{"$f":"T_DataComboFile[[#This Row],[2020/21 Baseline_Source]]*T_DataComboFile[[#This Row],[G&S reporting level indicator]]","v":0},{"$f":"T_DataComboFile[[#This Row],[2021/22 Baseline_Source]]*T_DataComboFile[[#This Row],[G&S reporting level indicator]]","v":0},{"$f":"T_DataComboFile[[#This Row],[2022/23 Baseline_Source]]*T_DataComboFile[[#This Row],[G&S reporting level indicator]]","v":0},{"$f":"T_DataComboFile[[#This Row],[2023/24 Baseline_Source]]*T_DataComboFile[[#This Row],[G&S reporting level indicator]]","v":0},null,null,null,null,null,null,{"$f":"T_DataComboFile[[#This Row],[2021/22 Baseline]]+T_DataComboFile[[#This Row],[2021/22 Reduction]]+T_DataComboFile[[#This Row],[2021/22 Increase]]","v":0},{"$f":"T_DataComboFile[[#This Row],[2022/23 Baseline]]+T_DataComboFile[[#This Row],[2022/23 Reduction]]+T_DataComboFile[[#This Row],[2022/23 Increase]]","v":0},{"$f":"T_DataComboFile[[#This Row],[2023/24 Baseline]]+T_DataComboFile[[#This Row],[2023/24 Reduction]]+T_DataComboFile[[#This Row],[2023/24 Increase]]","v":0}]
["NAT|Non-transfer item","36|Travel and subsistence","2021_22","ENE2020",36,4,3,17444,71201,36,4,3,17444,"071201","36|04|03",1,1,2,37,37,"01|01|02|37|37","National","Small Business Development","Enterprise Development and Entrepreneurship","SMME Competitiveness","Non-transfer item","Current","Current payments","Goods and services","Travel and subsistence","Travel and subsistence","Economic development","Industrialisation and exports","NAT",1925,2236,0,0,0,0,0,0,0,0,0,0,0,1,null,{"$f":"IF(T_DataComboFile[[#This Row],[G&S reporting level indicator]]=1,$AX$16,\"Not applicable\")","v":"Not applicable"},{"$f":"IF(AND($AX$16=\"Level 3\",T_DataComboFile[[#This Row],[Econ3]] = \"Goods and services\"),IF(T_DataComboFile[[#This Row],[Econ4]] = T_DataComboFile[[#This Row],[Econ3]],1,0),IF(AND($AX$16=\"Level 4\",T_DataComboFile[[#This Row],[Econ4]] = \"Goods and services\"),0,1))","v":0},{"$f":"T_DataComboFile[[#This Row],[2016/17_Source]]*T_DataComboFile[[#This Row],[G&S reporting level indicator]]","v":0},{"$f":"T_DataComboFile[[#This Row],[2017/18_Source]]*T_DataComboFile[[#This Row],[G&S reporting level indicator]]","v":0},{"$f":"T_DataComboFile[[#This Row],[2018/19_Source]]*T_DataComboFile[[#This Row],[G&S reporting level indicator]]","v":0},{"$f":"T_DataComboFile[[#This Row],[2019/20 Main appropriation_Source]]*T_DataComboFile[[#This Row],[G&S reporting level indicator]]","v":0},{"$f":"T_DataComboFile[[#This Row],[2019/20 Adjusted appropriation_Source]]*T_DataComboFile[[#This Row],[G&S reporting level indicator]]","v":0},{"$f":"T_DataComboFile[[#This Row],[2019/20 Revised estimate_Source]]*T_DataComboFile[[#This Row],[G&S reporting level indicator]]","v":0},{"$f":"T_DataComboFile[[#This Row],[2019/20 Preliminary outcome_Source]]*T_DataComboFile[[#This Row],[G&S reporting level indicator]]","v":0},{"$f":"T_DataComboFile[[#This Row],[2020/21 Original_Source]]*T_DataComboFile[[#This Row],[G&S reporting level indicator]]","v":0},{"$f":"T_DataComboFile[[#This Row],[2020/21 SAB_Source]]*T_DataComboFile[[#This Row],[G&S reporting level indicator]]","v":0},{"$f":"T_DataComboFile[[#This Row],[2020/21 Baseline_Source]]*T_DataComboFile[[#This Row],[G&S reporting level indicator]]","v":0},{"$f":"T_DataComboFile[[#This Row],[2021/22 Baseline_Source]]*T_DataComboFile[[#This Row],[G&S reporting level indicator]]","v":0},{"$f":"T_DataComboFile[[#This Row],[2022/23 Baseline_Source]]*T_DataComboFile[[#This Row],[G&S reporting level indicator]]","v":0},{"$f":"T_DataComboFile[[#This Row],[2023/24 Baseline_Source]]*T_DataComboFile[[#This Row],[G&S reporting level indicator]]","v":0},null,null,null,null,null,null,{"$f":"T_DataComboFile[[#This Row],[2021/22 Baseline]]+T_DataComboFile[[#This Row],[2021/22 Reduction]]+T_DataComboFile[[#This Row],[2021/22 Increase]]","v":0},{"$f":"T_DataComboFile[[#This Row],[2022/23 Baseline]]+T_DataComboFile[[#This Row],[2022/23 Reduction]]+T_DataComboFile[[#This Row],[2022/23 Increase]]","v":0},{"$f":"T_DataComboFile[[#This Row],[2023/24 Baseline]]+T_DataComboFile[[#This Row],[2023/24 Reduction]]+T_DataComboFile[[#This Row],[2023/24 Increase]]","v":0}]
["NAT|Non-transfer item","36|Training and development","2021_22","ENE2020",36,4,3,17445,71202,36,4,3,17445,"071202","36|04|03",1,1,2,38,38,"01|01|02|38|38","National","Small Business Development","Enterprise Development and Entrepreneurship","SMME Competitiveness","Non-transfer item","Current","Current payments","Goods and services","Training and development","Training and development","Economic development","Industrialisation and exports","NAT",0,586,0,0,0,0,0,0,0,0,0,0,0,1,null,{"$f":"IF(T_DataComboFile[[#This Row],[G&S reporting level indicator]]=1,$AX$16,\"Not applicable\")","v":"Not applicable"},{"$f":"IF(AND($AX$16=\"Level 3\",T_DataComboFile[[#This Row],[Econ3]] = \"Goods and services\"),IF(T_DataComboFile[[#This Row],[Econ4]] = T_DataComboFile[[#This Row],[Econ3]],1,0),IF(AND($AX$16=\"Level 4\",T_DataComboFile[[#This Row],[Econ4]] = \"Goods and services\"),0,1))","v":0},{"$f":"T_DataComboFile[[#This Row],[2016/17_Source]]*T_DataComboFile[[#This Row],[G&S reporting level indicator]]","v":0},{"$f":"T_DataComboFile[[#This Row],[2017/18_Source]]*T_DataComboFile[[#This Row],[G&S reporting level indicator]]","v":0},{"$f":"T_DataComboFile[[#This Row],[2018/19_Source]]*T_DataComboFile[[#This Row],[G&S reporting level indicator]]","v":0},{"$f":"T_DataComboFile[[#This Row],[2019/20 Main appropriation_Source]]*T_DataComboFile[[#This Row],[G&S reporting level indicator]]","v":0},{"$f":"T_DataComboFile[[#This Row],[2019/20 Adjusted appropriation_Source]]*T_DataComboFile[[#This Row],[G&S reporting level indicator]]","v":0},{"$f":"T_DataComboFile[[#This Row],[2019/20 Revised estimate_Source]]*T_DataComboFile[[#This Row],[G&S reporting level indicator]]","v":0},{"$f":"T_DataComboFile[[#This Row],[2019/20 Preliminary outcome_Source]]*T_DataComboFile[[#This Row],[G&S reporting level indicator]]","v":0},{"$f":"T_DataComboFile[[#This Row],[2020/21 Original_Source]]*T_DataComboFile[[#This Row],[G&S reporting level indicator]]","v":0},{"$f":"T_DataComboFile[[#This Row],[2020/21 SAB_Source]]*T_DataComboFile[[#This Row],[G&S reporting level indicator]]","v":0},{"$f":"T_DataComboFile[[#This Row],[2020/21 Baseline_Source]]*T_DataComboFile[[#This Row],[G&S reporting level indicator]]","v":0},{"$f":"T_DataComboFile[[#This Row],[2021/22 Baseline_Source]]*T_DataComboFile[[#This Row],[G&S reporting level indicator]]","v":0},{"$f":"T_DataComboFile[[#This Row],[2022/23 Baseline_Source]]*T_DataComboFile[[#This Row],[G&S reporting level indicator]]","v":0},{"$f":"T_DataComboFile[[#This Row],[2023/24 Baseline_Source]]*T_DataComboFile[[#This Row],[G&S reporting level indicator]]","v":0},null,null,null,null,null,null,{"$f":"T_DataComboFile[[#This Row],[2021/22 Baseline]]+T_DataComboFile[[#This Row],[2021/22 Reduction]]+T_DataComboFile[[#This Row],[2021/22 Increase]]","v":0},{"$f":"T_DataComboFile[[#This Row],[2022/23 Baseline]]+T_DataComboFile[[#This Row],[2022/23 Reduction]]+T_DataComboFile[[#This Row],[2022/23 Increase]]","v":0},{"$f":"T_DataComboFile[[#This Row],[2023/24 Baseline]]+T_DataComboFile[[#This Row],[2023/24 Reduction]]+T_DataComboFile[[#This Row],[2023/24 Increase]]","v":0}]
["NAT|Non-transfer item","36|Operating payments","2021_22","ENE2020",36,4,3,17446,71203,36,4,3,17446,"071203","36|04|03",1,1,2,39,39,"01|01|02|39|39","National","Small Business Development","Enterprise Development and Entrepreneurship","SMME Competitiveness","Non-transfer item","Current","Current payments","Goods and services","Operating payments","Operating payments","Economic development","Industrialisation and exports","NAT",6,27,0,0,0,0,0,0,0,0,0,0,0,1,null,{"$f":"IF(T_DataComboFile[[#This Row],[G&S reporting level indicator]]=1,$AX$16,\"Not applicable\")","v":"Not applicable"},{"$f":"IF(AND($AX$16=\"Level 3\",T_DataComboFile[[#This Row],[Econ3]] = \"Goods and services\"),IF(T_DataComboFile[[#This Row],[Econ4]] = T_DataComboFile[[#This Row],[Econ3]],1,0),IF(AND($AX$16=\"Level 4\",T_DataComboFile[[#This Row],[Econ4]] = \"Goods and services\"),0,1))","v":0},{"$f":"T_DataComboFile[[#This Row],[2016/17_Source]]*T_DataComboFile[[#This Row],[G&S reporting level indicator]]","v":0},{"$f":"T_DataComboFile[[#This Row],[2017/18_Source]]*T_DataComboFile[[#This Row],[G&S reporting level indicator]]","v":0},{"$f":"T_DataComboFile[[#This Row],[2018/19_Source]]*T_DataComboFile[[#This Row],[G&S reporting level indicator]]","v":0},{"$f":"T_DataComboFile[[#This Row],[2019/20 Main appropriation_Source]]*T_DataComboFile[[#This Row],[G&S reporting level indicator]]","v":0},{"$f":"T_DataComboFile[[#This Row],[2019/20 Adjusted appropriation_Source]]*T_DataComboFile[[#This Row],[G&S reporting level indicator]]","v":0},{"$f":"T_DataComboFile[[#This Row],[2019/20 Revised estimate_Source]]*T_DataComboFile[[#This Row],[G&S reporting level indicator]]","v":0},{"$f":"T_DataComboFile[[#This Row],[2019/20 Preliminary outcome_Source]]*T_DataComboFile[[#This Row],[G&S reporting level indicator]]","v":0},{"$f":"T_DataComboFile[[#This Row],[2020/21 Original_Source]]*T_DataComboFile[[#This Row],[G&S reporting level indicator]]","v":0},{"$f":"T_DataComboFile[[#This Row],[2020/21 SAB_Source]]*T_DataComboFile[[#This Row],[G&S reporting level indicator]]","v":0},{"$f":"T_DataComboFile[[#This Row],[2020/21 Baseline_Source]]*T_DataComboFile[[#This Row],[G&S reporting level indicator]]","v":0},{"$f":"T_DataComboFile[[#This Row],[2021/22 Baseline_Source]]*T_DataComboFile[[#This Row],[G&S reporting level indicator]]","v":0},{"$f":"T_DataComboFile[[#This Row],[2022/23 Baseline_Source]]*T_DataComboFile[[#This Row],[G&S reporting level indicator]]","v":0},{"$f":"T_DataComboFile[[#This Row],[2023/24 Baseline_Source]]*T_DataComboFile[[#This Row],[G&S reporting level indicator]]","v":0},null,null,null,null,null,null,{"$f":"T_DataComboFile[[#This Row],[2021/22 Baseline]]+T_DataComboFile[[#This Row],[2021/22 Reduction]]+T_DataComboFile[[#This Row],[2021/22 Increase]]","v":0},{"$f":"T_DataComboFile[[#This Row],[2022/23 Baseline]]+T_DataComboFile[[#This Row],[2022/23 Reduction]]+T_DataComboFile[[#This Row],[2022/23 Increase]]","v":0},{"$f":"T_DataComboFile[[#This Row],[2023/24 Baseline]]+T_DataComboFile[[#This Row],[2023/24 Reduction]]+T_DataComboFile[[#This Row],[2023/24 Increase]]","v":0}]
["NAT|Non-transfer item","36|Venues and facilities","2021_22","ENE2020",36,4,3,17447,71204,36,4,3,17447,"071204","36|04|03",1,1,2,40,40,"01|01|02|40|40","National","Small Business Development","Enterprise Development and Entrepreneurship","SMME Competitiveness","Non-transfer item","Current","Current payments","Goods and services","Venues and facilities","Venues and facilities","Economic development","Industrialisation and exports","NAT",0,83,0,0,0,0,0,0,0,0,0,0,0,1,null,{"$f":"IF(T_DataComboFile[[#This Row],[G&S reporting level indicator]]=1,$AX$16,\"Not applicable\")","v":"Not applicable"},{"$f":"IF(AND($AX$16=\"Level 3\",T_DataComboFile[[#This Row],[Econ3]] = \"Goods and services\"),IF(T_DataComboFile[[#This Row],[Econ4]] = T_DataComboFile[[#This Row],[Econ3]],1,0),IF(AND($AX$16=\"Level 4\",T_DataComboFile[[#This Row],[Econ4]] = \"Goods and services\"),0,1))","v":0},{"$f":"T_DataComboFile[[#This Row],[2016/17_Source]]*T_DataComboFile[[#This Row],[G&S reporting level indicator]]","v":0},{"$f":"T_DataComboFile[[#This Row],[2017/18_Source]]*T_DataComboFile[[#This Row],[G&S reporting level indicator]]","v":0},{"$f":"T_DataComboFile[[#This Row],[2018/19_Source]]*T_DataComboFile[[#This Row],[G&S reporting level indicator]]","v":0},{"$f":"T_DataComboFile[[#This Row],[2019/20 Main appropriation_Source]]*T_DataComboFile[[#This Row],[G&S reporting level indicator]]","v":0},{"$f":"T_DataComboFile[[#This Row],[2019/20 Adjusted appropriation_Source]]*T_DataComboFile[[#This Row],[G&S reporting level indicator]]","v":0},{"$f":"T_DataComboFile[[#This Row],[2019/20 Revised estimate_Source]]*T_DataComboFile[[#This Row],[G&S reporting level indicator]]","v":0},{"$f":"T_DataComboFile[[#This Row],[2019/20 Preliminary outcome_Source]]*T_DataComboFile[[#This Row],[G&S reporting level indicator]]","v":0},{"$f":"T_DataComboFile[[#This Row],[2020/21 Original_Source]]*T_DataComboFile[[#This Row],[G&S reporting level indicator]]","v":0},{"$f":"T_DataComboFile[[#This Row],[2020/21 SAB_Source]]*T_DataComboFile[[#This Row],[G&S reporting level indicator]]","v":0},{"$f":"T_DataComboFile[[#This Row],[2020/21 Baseline_Source]]*T_DataComboFile[[#This Row],[G&S reporting level indicator]]","v":0},{"$f":"T_DataComboFile[[#This Row],[2021/22 Baseline_Source]]*T_DataComboFile[[#This Row],[G&S reporting level indicator]]","v":0},{"$f":"T_DataComboFile[[#This Row],[2022/23 Baseline_Source]]*T_DataComboFile[[#This Row],[G&S reporting level indicator]]","v":0},{"$f":"T_DataComboFile[[#This Row],[2023/24 Baseline_Source]]*T_DataComboFile[[#This Row],[G&S reporting level indicator]]","v":0},null,null,null,null,null,null,{"$f":"T_DataComboFile[[#This Row],[2021/22 Baseline]]+T_DataComboFile[[#This Row],[2021/22 Reduction]]+T_DataComboFile[[#This Row],[2021/22 Increase]]","v":0},{"$f":"T_DataComboFile[[#This Row],[2022/23 Baseline]]+T_DataComboFile[[#This Row],[2022/23 Reduction]]+T_DataComboFile[[#This Row],[2022/23 Increase]]","v":0},{"$f":"T_DataComboFile[[#This Row],[2023/24 Baseline]]+T_DataComboFile[[#This Row],[2023/24 Reduction]]+T_DataComboFile[[#This Row],[2023/24 Increase]]","v":0}]
[null,null,"2021_22","ENE2020",36,4,3,null,71205,36,4,3,null,"071205","36|04|03",1,1,3,41,41,"01|01|03|41|41","National","Small Business Development","Enterprise Development and Entrepreneurship","SMME Competitiveness",null,"Current","Current payments","Interest and rent on land","Interest (Incl. interest on unitary payments (PPP))","Interest (Incl. interest on unitary payments (PPP))",null,null,null,0,0,0,0,0,0,0,0,0,0,0,0,0,0,null,{"$f":"IF(T_DataComboFile[[#This Row],[G&S reporting level indicator]]=1,$AX$16,\"Not applicable\")","v":"Level 3"},{"$f":"IF(AND($AX$16=\"Level 3\",T_DataComboFile[[#This Row],[Econ3]] = \"Goods and services\"),IF(T_DataComboFile[[#This Row],[Econ4]] = T_DataComboFile[[#This Row],[Econ3]],1,0),IF(AND($AX$16=\"Level 4\",T_DataComboFile[[#This Row],[Econ4]] = \"Goods and services\"),0,1))","v":1},{"$f":"T_DataComboFile[[#This Row],[2016/17_Source]]*T_DataComboFile[[#This Row],[G&S reporting level indicator]]","v":0},{"$f":"T_DataComboFile[[#This Row],[2017/18_Source]]*T_DataComboFile[[#This Row],[G&S reporting level indicator]]","v":0},{"$f":"T_DataComboFile[[#This Row],[2018/19_Source]]*T_DataComboFile[[#This Row],[G&S reporting level indicator]]","v":0},{"$f":"T_DataComboFile[[#This Row],[2019/20 Main appropriation_Source]]*T_DataComboFile[[#This Row],[G&S reporting level indicator]]","v":0},{"$f":"T_DataComboFile[[#This Row],[2019/20 Adjusted appropriation_Source]]*T_DataComboFile[[#This Row],[G&S reporting level indicator]]","v":0},{"$f":"T_DataComboFile[[#This Row],[2019/20 Revised estimate_Source]]*T_DataComboFile[[#This Row],[G&S reporting level indicator]]","v":0},{"$f":"T_DataComboFile[[#This Row],[2019/20 Preliminary outcome_Source]]*T_DataComboFile[[#This Row],[G&S reporting level indicator]]","v":0},{"$f":"T_DataComboFile[[#This Row],[2020/21 Original_Source]]*T_DataComboFile[[#This Row],[G&S reporting level indicator]]","v":0},{"$f":"T_DataComboFile[[#This Row],[2020/21 SAB_Source]]*T_DataComboFile[[#This Row],[G&S reporting level indicator]]","v":0},{"$f":"T_DataComboFile[[#This Row],[2020/21 Baseline_Source]]*T_DataComboFile[[#This Row],[G&S reporting level indicator]]","v":0},{"$f":"T_DataComboFile[[#This Row],[2021/22 Baseline_Source]]*T_DataComboFile[[#This Row],[G&S reporting level indicator]]","v":0},{"$f":"T_DataComboFile[[#This Row],[2022/23 Baseline_Source]]*T_DataComboFile[[#This Row],[G&S reporting level indicator]]","v":0},{"$f":"T_DataComboFile[[#This Row],[2023/24 Baseline_Source]]*T_DataComboFile[[#This Row],[G&S reporting level indicator]]","v":0},null,null,null,null,null,null,{"$f":"T_DataComboFile[[#This Row],[2021/22 Baseline]]+T_DataComboFile[[#This Row],[2021/22 Reduction]]+T_DataComboFile[[#This Row],[2021/22 Increase]]","v":0},{"$f":"T_DataComboFile[[#This Row],[2022/23 Baseline]]+T_DataComboFile[[#This Row],[2022/23 Reduction]]+T_DataComboFile[[#This Row],[2022/23 Increase]]","v":0},{"$f":"T_DataComboFile[[#This Row],[2023/24 Baseline]]+T_DataComboFile[[#This Row],[2023/24 Reduction]]+T_DataComboFile[[#This Row],[2023/24 Increase]]","v":0}]
[null,null,"2021_22","ENE2020",36,4,3,null,71206,36,4,3,null,"071206","36|04|03",1,1,3,42,42,"01|01|03|42|42","National","Small Business Development","Enterprise Development and Entrepreneurship","SMME Competitiveness",null,"Current","Current payments","Interest and rent on land","Rent on land","Rent on land",null,null,null,0,0,0,0,0,0,0,0,0,0,0,0,0,0,null,{"$f":"IF(T_DataComboFile[[#This Row],[G&S reporting level indicator]]=1,$AX$16,\"Not applicable\")","v":"Level 3"},{"$f":"IF(AND($AX$16=\"Level 3\",T_DataComboFile[[#This Row],[Econ3]] = \"Goods and services\"),IF(T_DataComboFile[[#This Row],[Econ4]] = T_DataComboFile[[#This Row],[Econ3]],1,0),IF(AND($AX$16=\"Level 4\",T_DataComboFile[[#This Row],[Econ4]] = \"Goods and services\"),0,1))","v":1},{"$f":"T_DataComboFile[[#This Row],[2016/17_Source]]*T_DataComboFile[[#This Row],[G&S reporting level indicator]]","v":0},{"$f":"T_DataComboFile[[#This Row],[2017/18_Source]]*T_DataComboFile[[#This Row],[G&S reporting level indicator]]","v":0},{"$f":"T_DataComboFile[[#This Row],[2018/19_Source]]*T_DataComboFile[[#This Row],[G&S reporting level indicator]]","v":0},{"$f":"T_DataComboFile[[#This Row],[2019/20 Main appropriation_Source]]*T_DataComboFile[[#This Row],[G&S reporting level indicator]]","v":0},{"$f":"T_DataComboFile[[#This Row],[2019/20 Adjusted appropriation_Source]]*T_DataComboFile[[#This Row],[G&S reporting level indicator]]","v":0},{"$f":"T_DataComboFile[[#This Row],[2019/20 Revised estimate_Source]]*T_DataComboFile[[#This Row],[G&S reporting level indicator]]","v":0},{"$f":"T_DataComboFile[[#This Row],[2019/20 Preliminary outcome_Source]]*T_DataComboFile[[#This Row],[G&S reporting level indicator]]","v":0},{"$f":"T_DataComboFile[[#This Row],[2020/21 Original_Source]]*T_DataComboFile[[#This Row],[G&S reporting level indicator]]","v":0},{"$f":"T_DataComboFile[[#This Row],[2020/21 SAB_Source]]*T_DataComboFile[[#This Row],[G&S reporting level indicator]]","v":0},{"$f":"T_DataComboFile[[#This Row],[2020/21 Baseline_Source]]*T_DataComboFile[[#This Row],[G&S reporting level indicator]]","v":0},{"$f":"T_DataComboFile[[#This Row],[2021/22 Baseline_Source]]*T_DataComboFile[[#This Row],[G&S reporting level indicator]]","v":0},{"$f":"T_DataComboFile[[#This Row],[2022/23 Baseline_Source]]*T_DataComboFile[[#This Row],[G&S reporting level indicator]]","v":0},{"$f":"T_DataComboFile[[#This Row],[2023/24 Baseline_Source]]*T_DataComboFile[[#This Row],[G&S reporting level indicator]]","v":0},null,null,null,null,null,null,{"$f":"T_DataComboFile[[#This Row],[2021/22 Baseline]]+T_DataComboFile[[#This Row],[2021/22 Reduction]]+T_DataComboFile[[#This Row],[2021/22 Increase]]","v":0},{"$f":"T_DataComboFile[[#This Row],[2022/23 Baseline]]+T_DataComboFile[[#This Row],[2022/23 Reduction]]+T_DataComboFile[[#This Row],[2022/23 Increase]]","v":0},{"$f":"T_DataComboFile[[#This Row],[2023/24 Baseline]]+T_DataComboFile[[#This Row],[2023/24 Reduction]]+T_DataComboFile[[#This Row],[2023/24 Increase]]","v":0}]
[null,null,"2021_22","ENE2020",36,4,3,null,71207,36,4,3,null,"071207","36|04|03",1,2,4,43,43,"01|02|04|43|43","National","Small Business Development","Enterprise Development and Entrepreneurship","SMME Competitiveness",null,"Current","Transfers and subsidies","Provinces and municipalities","Provinces","Provincial Revenue Funds",null,null,null,0,0,0,0,0,0,0,0,0,0,0,0,0,0,null,{"$f":"IF(T_DataComboFile[[#This Row],[G&S reporting level indicator]]=1,$AX$16,\"Not applicable\")","v":"Level 3"},{"$f":"IF(AND($AX$16=\"Level 3\",T_DataComboFile[[#This Row],[Econ3]] = \"Goods and services\"),IF(T_DataComboFile[[#This Row],[Econ4]] = T_DataComboFile[[#This Row],[Econ3]],1,0),IF(AND($AX$16=\"Level 4\",T_DataComboFile[[#This Row],[Econ4]] = \"Goods and services\"),0,1))","v":1},{"$f":"T_DataComboFile[[#This Row],[2016/17_Source]]*T_DataComboFile[[#This Row],[G&S reporting level indicator]]","v":0},{"$f":"T_DataComboFile[[#This Row],[2017/18_Source]]*T_DataComboFile[[#This Row],[G&S reporting level indicator]]","v":0},{"$f":"T_DataComboFile[[#This Row],[2018/19_Source]]*T_DataComboFile[[#This Row],[G&S reporting level indicator]]","v":0},{"$f":"T_DataComboFile[[#This Row],[2019/20 Main appropriation_Source]]*T_DataComboFile[[#This Row],[G&S reporting level indicator]]","v":0},{"$f":"T_DataComboFile[[#This Row],[2019/20 Adjusted appropriation_Source]]*T_DataComboFile[[#This Row],[G&S reporting level indicator]]","v":0},{"$f":"T_DataComboFile[[#This Row],[2019/20 Revised estimate_Source]]*T_DataComboFile[[#This Row],[G&S reporting level indicator]]","v":0},{"$f":"T_DataComboFile[[#This Row],[2019/20 Preliminary outcome_Source]]*T_DataComboFile[[#This Row],[G&S reporting level indicator]]","v":0},{"$f":"T_DataComboFile[[#This Row],[2020/21 Original_Source]]*T_DataComboFile[[#This Row],[G&S reporting level indicator]]","v":0},{"$f":"T_DataComboFile[[#This Row],[2020/21 SAB_Source]]*T_DataComboFile[[#This Row],[G&S reporting level indicator]]","v":0},{"$f":"T_DataComboFile[[#This Row],[2020/21 Baseline_Source]]*T_DataComboFile[[#This Row],[G&S reporting level indicator]]","v":0},{"$f":"T_DataComboFile[[#This Row],[2021/22 Baseline_Source]]*T_DataComboFile[[#This Row],[G&S reporting level indicator]]","v":0},{"$f":"T_DataComboFile[[#This Row],[2022/23 Baseline_Source]]*T_DataComboFile[[#This Row],[G&S reporting level indicator]]","v":0},{"$f":"T_DataComboFile[[#This Row],[2023/24 Baseline_Source]]*T_DataComboFile[[#This Row],[G&S reporting level indicator]]","v":0},null,null,null,null,null,null,{"$f":"T_DataComboFile[[#This Row],[2021/22 Baseline]]+T_DataComboFile[[#This Row],[2021/22 Reduction]]+T_DataComboFile[[#This Row],[2021/22 Increase]]","v":0},{"$f":"T_DataComboFile[[#This Row],[2022/23 Baseline]]+T_DataComboFile[[#This Row],[2022/23 Reduction]]+T_DataComboFile[[#This Row],[2022/23 Increase]]","v":0},{"$f":"T_DataComboFile[[#This Row],[2023/24 Baseline]]+T_DataComboFile[[#This Row],[2023/24 Reduction]]+T_DataComboFile[[#This Row],[2023/24 Increase]]","v":0}]
[null,null,"2021_22","ENE2020",36,4,3,null,71208,36,4,3,null,"071208","36|04|03",1,2,4,43,44,"01|02|04|43|44","National","Small Business Development","Enterprise Development and Entrepreneurship","SMME Competitiveness",null,"Current","Transfers and subsidies","Provinces and municipalities","Provinces","Provincial agencies and funds",null,null,null,0,0,0,0,0,0,0,0,0,0,0,0,0,0,null,{"$f":"IF(T_DataComboFile[[#This Row],[G&S reporting level indicator]]=1,$AX$16,\"Not applicable\")","v":"Level 3"},{"$f":"IF(AND($AX$16=\"Level 3\",T_DataComboFile[[#This Row],[Econ3]] = \"Goods and services\"),IF(T_DataComboFile[[#This Row],[Econ4]] = T_DataComboFile[[#This Row],[Econ3]],1,0),IF(AND($AX$16=\"Level 4\",T_DataComboFile[[#This Row],[Econ4]] = \"Goods and services\"),0,1))","v":1},{"$f":"T_DataComboFile[[#This Row],[2016/17_Source]]*T_DataComboFile[[#This Row],[G&S reporting level indicator]]","v":0},{"$f":"T_DataComboFile[[#This Row],[2017/18_Source]]*T_DataComboFile[[#This Row],[G&S reporting level indicator]]","v":0},{"$f":"T_DataComboFile[[#This Row],[2018/19_Source]]*T_DataComboFile[[#This Row],[G&S reporting level indicator]]","v":0},{"$f":"T_DataComboFile[[#This Row],[2019/20 Main appropriation_Source]]*T_DataComboFile[[#This Row],[G&S reporting level indicator]]","v":0},{"$f":"T_DataComboFile[[#This Row],[2019/20 Adjusted appropriation_Source]]*T_DataComboFile[[#This Row],[G&S reporting level indicator]]","v":0},{"$f":"T_DataComboFile[[#This Row],[2019/20 Revised estimate_Source]]*T_DataComboFile[[#This Row],[G&S reporting level indicator]]","v":0},{"$f":"T_DataComboFile[[#This Row],[2019/20 Preliminary outcome_Source]]*T_DataComboFile[[#This Row],[G&S reporting level indicator]]","v":0},{"$f":"T_DataComboFile[[#This Row],[2020/21 Original_Source]]*T_DataComboFile[[#This Row],[G&S reporting level indicator]]","v":0},{"$f":"T_DataComboFile[[#This Row],[2020/21 SAB_Source]]*T_DataComboFile[[#This Row],[G&S reporting level indicator]]","v":0},{"$f":"T_DataComboFile[[#This Row],[2020/21 Baseline_Source]]*T_DataComboFile[[#This Row],[G&S reporting level indicator]]","v":0},{"$f":"T_DataComboFile[[#This Row],[2021/22 Baseline_Source]]*T_DataComboFile[[#This Row],[G&S reporting level indicator]]","v":0},{"$f":"T_DataComboFile[[#This Row],[2022/23 Baseline_Source]]*T_DataComboFile[[#This Row],[G&S reporting level indicator]]","v":0},{"$f":"T_DataComboFile[[#This Row],[2023/24 Baseline_Source]]*T_DataComboFile[[#This Row],[G&S reporting level indicator]]","v":0},null,null,null,null,null,null,{"$f":"T_DataComboFile[[#This Row],[2021/22 Baseline]]+T_DataComboFile[[#This Row],[2021/22 Reduction]]+T_DataComboFile[[#This Row],[2021/22 Increase]]","v":0},{"$f":"T_DataComboFile[[#This Row],[2022/23 Baseline]]+T_DataComboFile[[#This Row],[2022/23 Reduction]]+T_DataComboFile[[#This Row],[2022/23 Increase]]","v":0},{"$f":"T_DataComboFile[[#This Row],[2023/24 Baseline]]+T_DataComboFile[[#This Row],[2023/24 Reduction]]+T_DataComboFile[[#This Row],[2023/24 Increase]]","v":0}]
[null,null,"2021_22","ENE2020",36,4,3,null,71209,36,4,3,null,"071209","36|04|03",1,2,4,44,45,"01|02|04|44|45","National","Small Business Development","Enterprise Development and Entrepreneurship","SMME Competitiveness",null,"Current","Transfers and subsidies","Provinces and municipalities","Municipalities","Municipal bank accounts",null,null,null,0,0,0,0,0,0,0,0,0,0,0,0,0,0,null,{"$f":"IF(T_DataComboFile[[#This Row],[G&S reporting level indicator]]=1,$AX$16,\"Not applicable\")","v":"Level 3"},{"$f":"IF(AND($AX$16=\"Level 3\",T_DataComboFile[[#This Row],[Econ3]] = \"Goods and services\"),IF(T_DataComboFile[[#This Row],[Econ4]] = T_DataComboFile[[#This Row],[Econ3]],1,0),IF(AND($AX$16=\"Level 4\",T_DataComboFile[[#This Row],[Econ4]] = \"Goods and services\"),0,1))","v":1},{"$f":"T_DataComboFile[[#This Row],[2016/17_Source]]*T_DataComboFile[[#This Row],[G&S reporting level indicator]]","v":0},{"$f":"T_DataComboFile[[#This Row],[2017/18_Source]]*T_DataComboFile[[#This Row],[G&S reporting level indicator]]","v":0},{"$f":"T_DataComboFile[[#This Row],[2018/19_Source]]*T_DataComboFile[[#This Row],[G&S reporting level indicator]]","v":0},{"$f":"T_DataComboFile[[#This Row],[2019/20 Main appropriation_Source]]*T_DataComboFile[[#This Row],[G&S reporting level indicator]]","v":0},{"$f":"T_DataComboFile[[#This Row],[2019/20 Adjusted appropriation_Source]]*T_DataComboFile[[#This Row],[G&S reporting level indicator]]","v":0},{"$f":"T_DataComboFile[[#This Row],[2019/20 Revised estimate_Source]]*T_DataComboFile[[#This Row],[G&S reporting level indicator]]","v":0},{"$f":"T_DataComboFile[[#This Row],[2019/20 Preliminary outcome_Source]]*T_DataComboFile[[#This Row],[G&S reporting level indicator]]","v":0},{"$f":"T_DataComboFile[[#This Row],[2020/21 Original_Source]]*T_DataComboFile[[#This Row],[G&S reporting level indicator]]","v":0},{"$f":"T_DataComboFile[[#This Row],[2020/21 SAB_Source]]*T_DataComboFile[[#This Row],[G&S reporting level indicator]]","v":0},{"$f":"T_DataComboFile[[#This Row],[2020/21 Baseline_Source]]*T_DataComboFile[[#This Row],[G&S reporting level indicator]]","v":0},{"$f":"T_DataComboFile[[#This Row],[2021/22 Baseline_Source]]*T_DataComboFile[[#This Row],[G&S reporting level indicator]]","v":0},{"$f":"T_DataComboFile[[#This Row],[2022/23 Baseline_Source]]*T_DataComboFile[[#This Row],[G&S reporting level indicator]]","v":0},{"$f":"T_DataComboFile[[#This Row],[2023/24 Baseline_Source]]*T_DataComboFile[[#This Row],[G&S reporting level indicator]]","v":0},null,null,null,null,null,null,{"$f":"T_DataComboFile[[#This Row],[2021/22 Baseline]]+T_DataComboFile[[#This Row],[2021/22 Reduction]]+T_DataComboFile[[#This Row],[2021/22 Increase]]","v":0},{"$f":"T_DataComboFile[[#This Row],[2022/23 Baseline]]+T_DataComboFile[[#This Row],[2022/23 Reduction]]+T_DataComboFile[[#This Row],[2022/23 Increase]]","v":0},{"$f":"T_DataComboFile[[#This Row],[2023/24 Baseline]]+T_DataComboFile[[#This Row],[2023/24 Reduction]]+T_DataComboFile[[#This Row],[2023/24 Increase]]","v":0}]
[null,null,"2021_22","ENE2020",36,4,3,null,71210,36,4,3,null,"071210","36|04|03",1,2,4,44,46,"01|02|04|44|46","National","Small Business Development","Enterprise Development and Entrepreneurship","SMME Competitiveness",null,"Current","Transfers and subsidies","Provinces and municipalities","Municipalities","Municipal agencies and funds",null,null,null,0,0,0,0,0,0,0,0,0,0,0,0,0,0,null,{"$f":"IF(T_DataComboFile[[#This Row],[G&S reporting level indicator]]=1,$AX$16,\"Not applicable\")","v":"Level 3"},{"$f":"IF(AND($AX$16=\"Level 3\",T_DataComboFile[[#This Row],[Econ3]] = \"Goods and services\"),IF(T_DataComboFile[[#This Row],[Econ4]] = T_DataComboFile[[#This Row],[Econ3]],1,0),IF(AND($AX$16=\"Level 4\",T_DataComboFile[[#This Row],[Econ4]] = \"Goods and services\"),0,1))","v":1},{"$f":"T_DataComboFile[[#This Row],[2016/17_Source]]*T_DataComboFile[[#This Row],[G&S reporting level indicator]]","v":0},{"$f":"T_DataComboFile[[#This Row],[2017/18_Source]]*T_DataComboFile[[#This Row],[G&S reporting level indicator]]","v":0},{"$f":"T_DataComboFile[[#This Row],[2018/19_Source]]*T_DataComboFile[[#This Row],[G&S reporting level indicator]]","v":0},{"$f":"T_DataComboFile[[#This Row],[2019/20 Main appropriation_Source]]*T_DataComboFile[[#This Row],[G&S reporting level indicator]]","v":0},{"$f":"T_DataComboFile[[#This Row],[2019/20 Adjusted appropriation_Source]]*T_DataComboFile[[#This Row],[G&S reporting level indicator]]","v":0},{"$f":"T_DataComboFile[[#This Row],[2019/20 Revised estimate_Source]]*T_DataComboFile[[#This Row],[G&S reporting level indicator]]","v":0},{"$f":"T_DataComboFile[[#This Row],[2019/20 Preliminary outcome_Source]]*T_DataComboFile[[#This Row],[G&S reporting level indicator]]","v":0},{"$f":"T_DataComboFile[[#This Row],[2020/21 Original_Source]]*T_DataComboFile[[#This Row],[G&S reporting level indicator]]","v":0},{"$f":"T_DataComboFile[[#This Row],[2020/21 SAB_Source]]*T_DataComboFile[[#This Row],[G&S reporting level indicator]]","v":0},{"$f":"T_DataComboFile[[#This Row],[2020/21 Baseline_Source]]*T_DataComboFile[[#This Row],[G&S reporting level indicator]]","v":0},{"$f":"T_DataComboFile[[#This Row],[2021/22 Baseline_Source]]*T_DataComboFile[[#This Row],[G&S reporting level indicator]]","v":0},{"$f":"T_DataComboFile[[#This Row],[2022/23 Baseline_Source]]*T_DataComboFile[[#This Row],[G&S reporting level indicator]]","v":0},{"$f":"T_DataComboFile[[#This Row],[2023/24 Baseline_Source]]*T_DataComboFile[[#This Row],[G&S reporting level indicator]]","v":0},null,null,null,null,null,null,{"$f":"T_DataComboFile[[#This Row],[2021/22 Baseline]]+T_DataComboFile[[#This Row],[2021/22 Reduction]]+T_DataComboFile[[#This Row],[2021/22 Increase]]","v":0},{"$f":"T_DataComboFile[[#This Row],[2022/23 Baseline]]+T_DataComboFile[[#This Row],[2022/23 Reduction]]+T_DataComboFile[[#This Row],[2022/23 Increase]]","v":0},{"$f":"T_DataComboFile[[#This Row],[2023/24 Baseline]]+T_DataComboFile[[#This Row],[2023/24 Reduction]]+T_DataComboFile[[#This Row],[2023/24 Increase]]","v":0}]
[null,null,"2021_22","ENE2020",36,4,3,null,71211,36,4,3,null,"071211","36|04|03",1,2,5,45,47,"01|02|05|45|47","National","Small Business Development","Enterprise Development and Entrepreneurship","SMME Competitiveness",null,"Current","Transfers and subsidies","Departmental agencies and accounts","Social security funds","Social security funds",null,null,null,0,0,0,0,0,0,0,0,0,0,0,0,0,0,null,{"$f":"IF(T_DataComboFile[[#This Row],[G&S reporting level indicator]]=1,$AX$16,\"Not applicable\")","v":"Level 3"},{"$f":"IF(AND($AX$16=\"Level 3\",T_DataComboFile[[#This Row],[Econ3]] = \"Goods and services\"),IF(T_DataComboFile[[#This Row],[Econ4]] = T_DataComboFile[[#This Row],[Econ3]],1,0),IF(AND($AX$16=\"Level 4\",T_DataComboFile[[#This Row],[Econ4]] = \"Goods and services\"),0,1))","v":1},{"$f":"T_DataComboFile[[#This Row],[2016/17_Source]]*T_DataComboFile[[#This Row],[G&S reporting level indicator]]","v":0},{"$f":"T_DataComboFile[[#This Row],[2017/18_Source]]*T_DataComboFile[[#This Row],[G&S reporting level indicator]]","v":0},{"$f":"T_DataComboFile[[#This Row],[2018/19_Source]]*T_DataComboFile[[#This Row],[G&S reporting level indicator]]","v":0},{"$f":"T_DataComboFile[[#This Row],[2019/20 Main appropriation_Source]]*T_DataComboFile[[#This Row],[G&S reporting level indicator]]","v":0},{"$f":"T_DataComboFile[[#This Row],[2019/20 Adjusted appropriation_Source]]*T_DataComboFile[[#This Row],[G&S reporting level indicator]]","v":0},{"$f":"T_DataComboFile[[#This Row],[2019/20 Revised estimate_Source]]*T_DataComboFile[[#This Row],[G&S reporting level indicator]]","v":0},{"$f":"T_DataComboFile[[#This Row],[2019/20 Preliminary outcome_Source]]*T_DataComboFile[[#This Row],[G&S reporting level indicator]]","v":0},{"$f":"T_DataComboFile[[#This Row],[2020/21 Original_Source]]*T_DataComboFile[[#This Row],[G&S reporting level indicator]]","v":0},{"$f":"T_DataComboFile[[#This Row],[2020/21 SAB_Source]]*T_DataComboFile[[#This Row],[G&S reporting level indicator]]","v":0},{"$f":"T_DataComboFile[[#This Row],[2020/21 Baseline_Source]]*T_DataComboFile[[#This Row],[G&S reporting level indicator]]","v":0},{"$f":"T_DataComboFile[[#This Row],[2021/22 Baseline_Source]]*T_DataComboFile[[#This Row],[G&S reporting level indicator]]","v":0},{"$f":"T_DataComboFile[[#This Row],[2022/23 Baseline_Source]]*T_DataComboFile[[#This Row],[G&S reporting level indicator]]","v":0},{"$f":"T_DataComboFile[[#This Row],[2023/24 Baseline_Source]]*T_DataComboFile[[#This Row],[G&S reporting level indicator]]","v":0},null,null,null,null,null,null,{"$f":"T_DataComboFile[[#This Row],[2021/22 Baseline]]+T_DataComboFile[[#This Row],[2021/22 Reduction]]+T_DataComboFile[[#This Row],[2021/22 Increase]]","v":0},{"$f":"T_DataComboFile[[#This Row],[2022/23 Baseline]]+T_DataComboFile[[#This Row],[2022/23 Reduction]]+T_DataComboFile[[#This Row],[2022/23 Increase]]","v":0},{"$f":"T_DataComboFile[[#This Row],[2023/24 Baseline]]+T_DataComboFile[[#This Row],[2023/24 Reduction]]+T_DataComboFile[[#This Row],[2023/24 Increase]]","v":0}]
[null,null,"2021_22","ENE2020",36,4,3,null,71212,36,4,3,null,"071212","36|04|03",1,2,5,46,48,"01|02|05|46|48","National","Small Business Development","Enterprise Development and Entrepreneurship","SMME Competitiveness",null,"Current","Transfers and subsidies","Departmental agencies and accounts","Departmental agencies (non-business entities)","Departmental agencies (non-business entities)",null,null,null,0,0,0,0,0,0,0,0,0,0,0,0,0,0,null,{"$f":"IF(T_DataComboFile[[#This Row],[G&S reporting level indicator]]=1,$AX$16,\"Not applicable\")","v":"Level 3"},{"$f":"IF(AND($AX$16=\"Level 3\",T_DataComboFile[[#This Row],[Econ3]] = \"Goods and services\"),IF(T_DataComboFile[[#This Row],[Econ4]] = T_DataComboFile[[#This Row],[Econ3]],1,0),IF(AND($AX$16=\"Level 4\",T_DataComboFile[[#This Row],[Econ4]] = \"Goods and services\"),0,1))","v":1},{"$f":"T_DataComboFile[[#This Row],[2016/17_Source]]*T_DataComboFile[[#This Row],[G&S reporting level indicator]]","v":0},{"$f":"T_DataComboFile[[#This Row],[2017/18_Source]]*T_DataComboFile[[#This Row],[G&S reporting level indicator]]","v":0},{"$f":"T_DataComboFile[[#This Row],[2018/19_Source]]*T_DataComboFile[[#This Row],[G&S reporting level indicator]]","v":0},{"$f":"T_DataComboFile[[#This Row],[2019/20 Main appropriation_Source]]*T_DataComboFile[[#This Row],[G&S reporting level indicator]]","v":0},{"$f":"T_DataComboFile[[#This Row],[2019/20 Adjusted appropriation_Source]]*T_DataComboFile[[#This Row],[G&S reporting level indicator]]","v":0},{"$f":"T_DataComboFile[[#This Row],[2019/20 Revised estimate_Source]]*T_DataComboFile[[#This Row],[G&S reporting level indicator]]","v":0},{"$f":"T_DataComboFile[[#This Row],[2019/20 Preliminary outcome_Source]]*T_DataComboFile[[#This Row],[G&S reporting level indicator]]","v":0},{"$f":"T_DataComboFile[[#This Row],[2020/21 Original_Source]]*T_DataComboFile[[#This Row],[G&S reporting level indicator]]","v":0},{"$f":"T_DataComboFile[[#This Row],[2020/21 SAB_Source]]*T_DataComboFile[[#This Row],[G&S reporting level indicator]]","v":0},{"$f":"T_DataComboFile[[#This Row],[2020/21 Baseline_Source]]*T_DataComboFile[[#This Row],[G&S reporting level indicator]]","v":0},{"$f":"T_DataComboFile[[#This Row],[2021/22 Baseline_Source]]*T_DataComboFile[[#This Row],[G&S reporting level indicator]]","v":0},{"$f":"T_DataComboFile[[#This Row],[2022/23 Baseline_Source]]*T_DataComboFile[[#This Row],[G&S reporting level indicator]]","v":0},{"$f":"T_DataComboFile[[#This Row],[2023/24 Baseline_Source]]*T_DataComboFile[[#This Row],[G&S reporting level indicator]]","v":0},null,null,null,null,null,null,{"$f":"T_DataComboFile[[#This Row],[2021/22 Baseline]]+T_DataComboFile[[#This Row],[2021/22 Reduction]]+T_DataComboFile[[#This Row],[2021/22 Increase]]","v":0},{"$f":"T_DataComboFile[[#This Row],[2022/23 Baseline]]+T_DataComboFile[[#This Row],[2022/23 Reduction]]+T_DataComboFile[[#This Row],[2022/23 Increase]]","v":0},{"$f":"T_DataComboFile[[#This Row],[2023/24 Baseline]]+T_DataComboFile[[#This Row],[2023/24 Reduction]]+T_DataComboFile[[#This Row],[2023/24 Increase]]","v":0}]
[null,null,"2021_22","ENE2020",36,4,3,null,71213,36,4,3,null,"071213","36|04|03",1,2,6,47,49,"01|02|06|47|49","National","Small Business Development","Enterprise Development and Entrepreneurship","SMME Competitiveness",null,"Current","Transfers and subsidies","Higher education institutions","Higher education institutions","Higher education institutions",null,null,null,0,0,0,0,0,0,0,0,0,0,0,0,0,0,null,{"$f":"IF(T_DataComboFile[[#This Row],[G&S reporting level indicator]]=1,$AX$16,\"Not applicable\")","v":"Level 3"},{"$f":"IF(AND($AX$16=\"Level 3\",T_DataComboFile[[#This Row],[Econ3]] = \"Goods and services\"),IF(T_DataComboFile[[#This Row],[Econ4]] = T_DataComboFile[[#This Row],[Econ3]],1,0),IF(AND($AX$16=\"Level 4\",T_DataComboFile[[#This Row],[Econ4]] = \"Goods and services\"),0,1))","v":1},{"$f":"T_DataComboFile[[#This Row],[2016/17_Source]]*T_DataComboFile[[#This Row],[G&S reporting level indicator]]","v":0},{"$f":"T_DataComboFile[[#This Row],[2017/18_Source]]*T_DataComboFile[[#This Row],[G&S reporting level indicator]]","v":0},{"$f":"T_DataComboFile[[#This Row],[2018/19_Source]]*T_DataComboFile[[#This Row],[G&S reporting level indicator]]","v":0},{"$f":"T_DataComboFile[[#This Row],[2019/20 Main appropriation_Source]]*T_DataComboFile[[#This Row],[G&S reporting level indicator]]","v":0},{"$f":"T_DataComboFile[[#This Row],[2019/20 Adjusted appropriation_Source]]*T_DataComboFile[[#This Row],[G&S reporting level indicator]]","v":0},{"$f":"T_DataComboFile[[#This Row],[2019/20 Revised estimate_Source]]*T_DataComboFile[[#This Row],[G&S reporting level indicator]]","v":0},{"$f":"T_DataComboFile[[#This Row],[2019/20 Preliminary outcome_Source]]*T_DataComboFile[[#This Row],[G&S reporting level indicator]]","v":0},{"$f":"T_DataComboFile[[#This Row],[2020/21 Original_Source]]*T_DataComboFile[[#This Row],[G&S reporting level indicator]]","v":0},{"$f":"T_DataComboFile[[#This Row],[2020/21 SAB_Source]]*T_DataComboFile[[#This Row],[G&S reporting level indicator]]","v":0},{"$f":"T_DataComboFile[[#This Row],[2020/21 Baseline_Source]]*T_DataComboFile[[#This Row],[G&S reporting level indicator]]","v":0},{"$f":"T_DataComboFile[[#This Row],[2021/22 Baseline_Source]]*T_DataComboFile[[#This Row],[G&S reporting level indicator]]","v":0},{"$f":"T_DataComboFile[[#This Row],[2022/23 Baseline_Source]]*T_DataComboFile[[#This Row],[G&S reporting level indicator]]","v":0},{"$f":"T_DataComboFile[[#This Row],[2023/24 Baseline_Source]]*T_DataComboFile[[#This Row],[G&S reporting level indicator]]","v":0},null,null,null,null,null,null,{"$f":"T_DataComboFile[[#This Row],[2021/22 Baseline]]+T_DataComboFile[[#This Row],[2021/22 Reduction]]+T_DataComboFile[[#This Row],[2021/22 Increase]]","v":0},{"$f":"T_DataComboFile[[#This Row],[2022/23 Baseline]]+T_DataComboFile[[#This Row],[2022/23 Reduction]]+T_DataComboFile[[#This Row],[2022/23 Increase]]","v":0},{"$f":"T_DataComboFile[[#This Row],[2023/24 Baseline]]+T_DataComboFile[[#This Row],[2023/24 Reduction]]+T_DataComboFile[[#This Row],[2023/24 Increase]]","v":0}]
[null,null,"2021_22","ENE2020",36,4,3,null,71214,36,4,3,null,"071214","36|04|03",1,2,7,48,50,"01|02|07|48|50","National","Small Business Development","Enterprise Development and Entrepreneurship","SMME Competitiveness",null,"Current","Transfers and subsidies","Foreign governments and international organisations","Foreign governments and international organisations","Foreign governments and international organisations",null,null,null,0,0,0,0,0,0,0,0,0,0,0,0,0,0,null,{"$f":"IF(T_DataComboFile[[#This Row],[G&S reporting level indicator]]=1,$AX$16,\"Not applicable\")","v":"Level 3"},{"$f":"IF(AND($AX$16=\"Level 3\",T_DataComboFile[[#This Row],[Econ3]] = \"Goods and services\"),IF(T_DataComboFile[[#This Row],[Econ4]] = T_DataComboFile[[#This Row],[Econ3]],1,0),IF(AND($AX$16=\"Level 4\",T_DataComboFile[[#This Row],[Econ4]] = \"Goods and services\"),0,1))","v":1},{"$f":"T_DataComboFile[[#This Row],[2016/17_Source]]*T_DataComboFile[[#This Row],[G&S reporting level indicator]]","v":0},{"$f":"T_DataComboFile[[#This Row],[2017/18_Source]]*T_DataComboFile[[#This Row],[G&S reporting level indicator]]","v":0},{"$f":"T_DataComboFile[[#This Row],[2018/19_Source]]*T_DataComboFile[[#This Row],[G&S reporting level indicator]]","v":0},{"$f":"T_DataComboFile[[#This Row],[2019/20 Main appropriation_Source]]*T_DataComboFile[[#This Row],[G&S reporting level indicator]]","v":0},{"$f":"T_DataComboFile[[#This Row],[2019/20 Adjusted appropriation_Source]]*T_DataComboFile[[#This Row],[G&S reporting level indicator]]","v":0},{"$f":"T_DataComboFile[[#This Row],[2019/20 Revised estimate_Source]]*T_DataComboFile[[#This Row],[G&S reporting level indicator]]","v":0},{"$f":"T_DataComboFile[[#This Row],[2019/20 Preliminary outcome_Source]]*T_DataComboFile[[#This Row],[G&S reporting level indicator]]","v":0},{"$f":"T_DataComboFile[[#This Row],[2020/21 Original_Source]]*T_DataComboFile[[#This Row],[G&S reporting level indicator]]","v":0},{"$f":"T_DataComboFile[[#This Row],[2020/21 SAB_Source]]*T_DataComboFile[[#This Row],[G&S reporting level indicator]]","v":0},{"$f":"T_DataComboFile[[#This Row],[2020/21 Baseline_Source]]*T_DataComboFile[[#This Row],[G&S reporting level indicator]]","v":0},{"$f":"T_DataComboFile[[#This Row],[2021/22 Baseline_Source]]*T_DataComboFile[[#This Row],[G&S reporting level indicator]]","v":0},{"$f":"T_DataComboFile[[#This Row],[2022/23 Baseline_Source]]*T_DataComboFile[[#This Row],[G&S reporting level indicator]]","v":0},{"$f":"T_DataComboFile[[#This Row],[2023/24 Baseline_Source]]*T_DataComboFile[[#This Row],[G&S reporting level indicator]]","v":0},null,null,null,null,null,null,{"$f":"T_DataComboFile[[#This Row],[2021/22 Baseline]]+T_DataComboFile[[#This Row],[2021/22 Reduction]]+T_DataComboFile[[#This Row],[2021/22 Increase]]","v":0},{"$f":"T_DataComboFile[[#This Row],[2022/23 Baseline]]+T_DataComboFile[[#This Row],[2022/23 Reduction]]+T_DataComboFile[[#This Row],[2022/23 Increase]]","v":0},{"$f":"T_DataComboFile[[#This Row],[2023/24 Baseline]]+T_DataComboFile[[#This Row],[2023/24 Reduction]]+T_DataComboFile[[#This Row],[2023/24 Increase]]","v":0}]
[null,null,"2021_22","ENE2020",36,4,3,null,71215,36,4,3,null,"071215","36|04|03",1,2,8,49,51,"01|02|08|49|51","National","Small Business Development","Enterprise Development and Entrepreneurship","SMME Competitiveness",null,"Current","Transfers and subsidies","Public corporations and private enterprises","Public corporations","Subsidies on products and production (pc)",null,null,null,0,0,0,0,0,0,0,0,0,0,0,0,0,0,null,{"$f":"IF(T_DataComboFile[[#This Row],[G&S reporting level indicator]]=1,$AX$16,\"Not applicable\")","v":"Level 3"},{"$f":"IF(AND($AX$16=\"Level 3\",T_DataComboFile[[#This Row],[Econ3]] = \"Goods and services\"),IF(T_DataComboFile[[#This Row],[Econ4]] = T_DataComboFile[[#This Row],[Econ3]],1,0),IF(AND($AX$16=\"Level 4\",T_DataComboFile[[#This Row],[Econ4]] = \"Goods and services\"),0,1))","v":1},{"$f":"T_DataComboFile[[#This Row],[2016/17_Source]]*T_DataComboFile[[#This Row],[G&S reporting level indicator]]","v":0},{"$f":"T_DataComboFile[[#This Row],[2017/18_Source]]*T_DataComboFile[[#This Row],[G&S reporting level indicator]]","v":0},{"$f":"T_DataComboFile[[#This Row],[2018/19_Source]]*T_DataComboFile[[#This Row],[G&S reporting level indicator]]","v":0},{"$f":"T_DataComboFile[[#This Row],[2019/20 Main appropriation_Source]]*T_DataComboFile[[#This Row],[G&S reporting level indicator]]","v":0},{"$f":"T_DataComboFile[[#This Row],[2019/20 Adjusted appropriation_Source]]*T_DataComboFile[[#This Row],[G&S reporting level indicator]]","v":0},{"$f":"T_DataComboFile[[#This Row],[2019/20 Revised estimate_Source]]*T_DataComboFile[[#This Row],[G&S reporting level indicator]]","v":0},{"$f":"T_DataComboFile[[#This Row],[2019/20 Preliminary outcome_Source]]*T_DataComboFile[[#This Row],[G&S reporting level indicator]]","v":0},{"$f":"T_DataComboFile[[#This Row],[2020/21 Original_Source]]*T_DataComboFile[[#This Row],[G&S reporting level indicator]]","v":0},{"$f":"T_DataComboFile[[#This Row],[2020/21 SAB_Source]]*T_DataComboFile[[#This Row],[G&S reporting level indicator]]","v":0},{"$f":"T_DataComboFile[[#This Row],[2020/21 Baseline_Source]]*T_DataComboFile[[#This Row],[G&S reporting level indicator]]","v":0},{"$f":"T_DataComboFile[[#This Row],[2021/22 Baseline_Source]]*T_DataComboFile[[#This Row],[G&S reporting level indicator]]","v":0},{"$f":"T_DataComboFile[[#This Row],[2022/23 Baseline_Source]]*T_DataComboFile[[#This Row],[G&S reporting level indicator]]","v":0},{"$f":"T_DataComboFile[[#This Row],[2023/24 Baseline_Source]]*T_DataComboFile[[#This Row],[G&S reporting level indicator]]","v":0},null,null,null,null,null,null,{"$f":"T_DataComboFile[[#This Row],[2021/22 Baseline]]+T_DataComboFile[[#This Row],[2021/22 Reduction]]+T_DataComboFile[[#This Row],[2021/22 Increase]]","v":0},{"$f":"T_DataComboFile[[#This Row],[2022/23 Baseline]]+T_DataComboFile[[#This Row],[2022/23 Reduction]]+T_DataComboFile[[#This Row],[2022/23 Increase]]","v":0},{"$f":"T_DataComboFile[[#This Row],[2023/24 Baseline]]+T_DataComboFile[[#This Row],[2023/24 Reduction]]+T_DataComboFile[[#This Row],[2023/24 Increase]]","v":0}]
[null,null,"2021_22","ENE2020",36,4,3,null,71216,36,4,3,null,"071216","36|04|03",1,2,8,49,52,"01|02|08|49|52","National","Small Business Development","Enterprise Development and Entrepreneurship","SMME Competitiveness",null,"Current","Transfers and subsidies","Public corporations and private enterprises","Public corporations","Other transfers to public corporations",null,null,null,0,0,0,0,0,0,0,0,0,0,0,0,0,0,null,{"$f":"IF(T_DataComboFile[[#This Row],[G&S reporting level indicator]]=1,$AX$16,\"Not applicable\")","v":"Level 3"},{"$f":"IF(AND($AX$16=\"Level 3\",T_DataComboFile[[#This Row],[Econ3]] = \"Goods and services\"),IF(T_DataComboFile[[#This Row],[Econ4]] = T_DataComboFile[[#This Row],[Econ3]],1,0),IF(AND($AX$16=\"Level 4\",T_DataComboFile[[#This Row],[Econ4]] = \"Goods and services\"),0,1))","v":1},{"$f":"T_DataComboFile[[#This Row],[2016/17_Source]]*T_DataComboFile[[#This Row],[G&S reporting level indicator]]","v":0},{"$f":"T_DataComboFile[[#This Row],[2017/18_Source]]*T_DataComboFile[[#This Row],[G&S reporting level indicator]]","v":0},{"$f":"T_DataComboFile[[#This Row],[2018/19_Source]]*T_DataComboFile[[#This Row],[G&S reporting level indicator]]","v":0},{"$f":"T_DataComboFile[[#This Row],[2019/20 Main appropriation_Source]]*T_DataComboFile[[#This Row],[G&S reporting level indicator]]","v":0},{"$f":"T_DataComboFile[[#This Row],[2019/20 Adjusted appropriation_Source]]*T_DataComboFile[[#This Row],[G&S reporting level indicator]]","v":0},{"$f":"T_DataComboFile[[#This Row],[2019/20 Revised estimate_Source]]*T_DataComboFile[[#This Row],[G&S reporting level indicator]]","v":0},{"$f":"T_DataComboFile[[#This Row],[2019/20 Preliminary outcome_Source]]*T_DataComboFile[[#This Row],[G&S reporting level indicator]]","v":0},{"$f":"T_DataComboFile[[#This Row],[2020/21 Original_Source]]*T_DataComboFile[[#This Row],[G&S reporting level indicator]]","v":0},{"$f":"T_DataComboFile[[#This Row],[2020/21 SAB_Source]]*T_DataComboFile[[#This Row],[G&S reporting level indicator]]","v":0},{"$f":"T_DataComboFile[[#This Row],[2020/21 Baseline_Source]]*T_DataComboFile[[#This Row],[G&S reporting level indicator]]","v":0},{"$f":"T_DataComboFile[[#This Row],[2021/22 Baseline_Source]]*T_DataComboFile[[#This Row],[G&S reporting level indicator]]","v":0},{"$f":"T_DataComboFile[[#This Row],[2022/23 Baseline_Source]]*T_DataComboFile[[#This Row],[G&S reporting level indicator]]","v":0},{"$f":"T_DataComboFile[[#This Row],[2023/24 Baseline_Source]]*T_DataComboFile[[#This Row],[G&S reporting level indicator]]","v":0},null,null,null,null,null,null,{"$f":"T_DataComboFile[[#This Row],[2021/22 Baseline]]+T_DataComboFile[[#This Row],[2021/22 Reduction]]+T_DataComboFile[[#This Row],[2021/22 Increase]]","v":0},{"$f":"T_DataComboFile[[#This Row],[2022/23 Baseline]]+T_DataComboFile[[#This Row],[2022/23 Reduction]]+T_DataComboFile[[#This Row],[2022/23 Increase]]","v":0},{"$f":"T_DataComboFile[[#This Row],[2023/24 Baseline]]+T_DataComboFile[[#This Row],[2023/24 Reduction]]+T_DataComboFile[[#This Row],[2023/24 Increase]]","v":0}]
[null,null,"2021_22","ENE2020",36,4,3,null,71217,36,4,3,null,"071217","36|04|03",1,2,8,50,53,"01|02|08|50|53","National","Small Business Development","Enterprise Development and Entrepreneurship","SMME Competitiveness",null,"Current","Transfers and subsidies","Public corporations and private enterprises","Private enterprises","Subsidies on products and production (pe)",null,null,null,0,0,0,0,0,0,0,0,0,0,0,0,0,0,null,{"$f":"IF(T_DataComboFile[[#This Row],[G&S reporting level indicator]]=1,$AX$16,\"Not applicable\")","v":"Level 3"},{"$f":"IF(AND($AX$16=\"Level 3\",T_DataComboFile[[#This Row],[Econ3]] = \"Goods and services\"),IF(T_DataComboFile[[#This Row],[Econ4]] = T_DataComboFile[[#This Row],[Econ3]],1,0),IF(AND($AX$16=\"Level 4\",T_DataComboFile[[#This Row],[Econ4]] = \"Goods and services\"),0,1))","v":1},{"$f":"T_DataComboFile[[#This Row],[2016/17_Source]]*T_DataComboFile[[#This Row],[G&S reporting level indicator]]","v":0},{"$f":"T_DataComboFile[[#This Row],[2017/18_Source]]*T_DataComboFile[[#This Row],[G&S reporting level indicator]]","v":0},{"$f":"T_DataComboFile[[#This Row],[2018/19_Source]]*T_DataComboFile[[#This Row],[G&S reporting level indicator]]","v":0},{"$f":"T_DataComboFile[[#This Row],[2019/20 Main appropriation_Source]]*T_DataComboFile[[#This Row],[G&S reporting level indicator]]","v":0},{"$f":"T_DataComboFile[[#This Row],[2019/20 Adjusted appropriation_Source]]*T_DataComboFile[[#This Row],[G&S reporting level indicator]]","v":0},{"$f":"T_DataComboFile[[#This Row],[2019/20 Revised estimate_Source]]*T_DataComboFile[[#This Row],[G&S reporting level indicator]]","v":0},{"$f":"T_DataComboFile[[#This Row],[2019/20 Preliminary outcome_Source]]*T_DataComboFile[[#This Row],[G&S reporting level indicator]]","v":0},{"$f":"T_DataComboFile[[#This Row],[2020/21 Original_Source]]*T_DataComboFile[[#This Row],[G&S reporting level indicator]]","v":0},{"$f":"T_DataComboFile[[#This Row],[2020/21 SAB_Source]]*T_DataComboFile[[#This Row],[G&S reporting level indicator]]","v":0},{"$f":"T_DataComboFile[[#This Row],[2020/21 Baseline_Source]]*T_DataComboFile[[#This Row],[G&S reporting level indicator]]","v":0},{"$f":"T_DataComboFile[[#This Row],[2021/22 Baseline_Source]]*T_DataComboFile[[#This Row],[G&S reporting level indicator]]","v":0},{"$f":"T_DataComboFile[[#This Row],[2022/23 Baseline_Source]]*T_DataComboFile[[#This Row],[G&S reporting level indicator]]","v":0},{"$f":"T_DataComboFile[[#This Row],[2023/24 Baseline_Source]]*T_DataComboFile[[#This Row],[G&S reporting level indicator]]","v":0},null,null,null,null,null,null,{"$f":"T_DataComboFile[[#This Row],[2021/22 Baseline]]+T_DataComboFile[[#This Row],[2021/22 Reduction]]+T_DataComboFile[[#This Row],[2021/22 Increase]]","v":0},{"$f":"T_DataComboFile[[#This Row],[2022/23 Baseline]]+T_DataComboFile[[#This Row],[2022/23 Reduction]]+T_DataComboFile[[#This Row],[2022/23 Increase]]","v":0},{"$f":"T_DataComboFile[[#This Row],[2023/24 Baseline]]+T_DataComboFile[[#This Row],[2023/24 Reduction]]+T_DataComboFile[[#This Row],[2023/24 Increase]]","v":0}]
["NAT|Various institutions: National informal business upliftment scheme","36|Other transfers to private enterprises","2021_22","ENE2020",36,4,3,17448,71218,36,4,3,17448,"071218","36|04|03",1,2,8,50,54,"01|02|08|50|54","National","Small Business Development","Enterprise Development and Entrepreneurship","SMME Competitiveness","Various institutions: National informal business upliftment scheme","Current","Transfers and subsidies","Public corporations and private enterprises","Private enterprises","Other transfers to private enterprises","Economic development","Industrialisation and exports","NAT",0,26422,56742,0,0,0,0,0,0,0,0,0,0,1,null,{"$f":"IF(T_DataComboFile[[#This Row],[G&S reporting level indicator]]=1,$AX$16,\"Not applicable\")","v":"Level 3"},{"$f":"IF(AND($AX$16=\"Level 3\",T_DataComboFile[[#This Row],[Econ3]] = \"Goods and services\"),IF(T_DataComboFile[[#This Row],[Econ4]] = T_DataComboFile[[#This Row],[Econ3]],1,0),IF(AND($AX$16=\"Level 4\",T_DataComboFile[[#This Row],[Econ4]] = \"Goods and services\"),0,1))","v":1},{"$f":"T_DataComboFile[[#This Row],[2016/17_Source]]*T_DataComboFile[[#This Row],[G&S reporting level indicator]]","v":0},{"$f":"T_DataComboFile[[#This Row],[2017/18_Source]]*T_DataComboFile[[#This Row],[G&S reporting level indicator]]","v":26422},{"$f":"T_DataComboFile[[#This Row],[2018/19_Source]]*T_DataComboFile[[#This Row],[G&S reporting level indicator]]","v":56742},{"$f":"T_DataComboFile[[#This Row],[2019/20 Main appropriation_Source]]*T_DataComboFile[[#This Row],[G&S reporting level indicator]]","v":0},{"$f":"T_DataComboFile[[#This Row],[2019/20 Adjusted appropriation_Source]]*T_DataComboFile[[#This Row],[G&S reporting level indicator]]","v":0},{"$f":"T_DataComboFile[[#This Row],[2019/20 Revised estimate_Source]]*T_DataComboFile[[#This Row],[G&S reporting level indicator]]","v":0},{"$f":"T_DataComboFile[[#This Row],[2019/20 Preliminary outcome_Source]]*T_DataComboFile[[#This Row],[G&S reporting level indicator]]","v":0},{"$f":"T_DataComboFile[[#This Row],[2020/21 Original_Source]]*T_DataComboFile[[#This Row],[G&S reporting level indicator]]","v":0},{"$f":"T_DataComboFile[[#This Row],[2020/21 SAB_Source]]*T_DataComboFile[[#This Row],[G&S reporting level indicator]]","v":0},{"$f":"T_DataComboFile[[#This Row],[2020/21 Baseline_Source]]*T_DataComboFile[[#This Row],[G&S reporting level indicator]]","v":0},{"$f":"T_DataComboFile[[#This Row],[2021/22 Baseline_Source]]*T_DataComboFile[[#This Row],[G&S reporting level indicator]]","v":0},{"$f":"T_DataComboFile[[#This Row],[2022/23 Baseline_Source]]*T_DataComboFile[[#This Row],[G&S reporting level indicator]]","v":0},{"$f":"T_DataComboFile[[#This Row],[2023/24 Baseline_Source]]*T_DataComboFile[[#This Row],[G&S reporting level indicator]]","v":0},null,null,null,null,null,null,{"$f":"T_DataComboFile[[#This Row],[2021/22 Baseline]]+T_DataComboFile[[#This Row],[2021/22 Reduction]]+T_DataComboFile[[#This Row],[2021/22 Increase]]","v":0},{"$f":"T_DataComboFile[[#This Row],[2022/23 Baseline]]+T_DataComboFile[[#This Row],[2022/23 Reduction]]+T_DataComboFile[[#This Row],[2022/23 Increase]]","v":0},{"$f":"T_DataComboFile[[#This Row],[2023/24 Baseline]]+T_DataComboFile[[#This Row],[2023/24 Reduction]]+T_DataComboFile[[#This Row],[2023/24 Increase]]","v":0}]
[null,null,"2021_22","ENE2020",36,4,3,null,71219,36,4,3,null,"071219","36|04|03",1,2,9,51,55,"01|02|09|51|55","National","Small Business Development","Enterprise Development and Entrepreneurship","SMME Competitiveness",null,"Current","Transfers and subsidies","Non-profit institutions","Non-profit institutions","Non-profit institutions",null,null,null,0,0,0,0,0,0,0,0,0,0,0,0,0,0,null,{"$f":"IF(T_DataComboFile[[#This Row],[G&S reporting level indicator]]=1,$AX$16,\"Not applicable\")","v":"Level 3"},{"$f":"IF(AND($AX$16=\"Level 3\",T_DataComboFile[[#This Row],[Econ3]] = \"Goods and services\"),IF(T_DataComboFile[[#This Row],[Econ4]] = T_DataComboFile[[#This Row],[Econ3]],1,0),IF(AND($AX$16=\"Level 4\",T_DataComboFile[[#This Row],[Econ4]] = \"Goods and services\"),0,1))","v":1},{"$f":"T_DataComboFile[[#This Row],[2016/17_Source]]*T_DataComboFile[[#This Row],[G&S reporting level indicator]]","v":0},{"$f":"T_DataComboFile[[#This Row],[2017/18_Source]]*T_DataComboFile[[#This Row],[G&S reporting level indicator]]","v":0},{"$f":"T_DataComboFile[[#This Row],[2018/19_Source]]*T_DataComboFile[[#This Row],[G&S reporting level indicator]]","v":0},{"$f":"T_DataComboFile[[#This Row],[2019/20 Main appropriation_Source]]*T_DataComboFile[[#This Row],[G&S reporting level indicator]]","v":0},{"$f":"T_DataComboFile[[#This Row],[2019/20 Adjusted appropriation_Source]]*T_DataComboFile[[#This Row],[G&S reporting level indicator]]","v":0},{"$f":"T_DataComboFile[[#This Row],[2019/20 Revised estimate_Source]]*T_DataComboFile[[#This Row],[G&S reporting level indicator]]","v":0},{"$f":"T_DataComboFile[[#This Row],[2019/20 Preliminary outcome_Source]]*T_DataComboFile[[#This Row],[G&S reporting level indicator]]","v":0},{"$f":"T_DataComboFile[[#This Row],[2020/21 Original_Source]]*T_DataComboFile[[#This Row],[G&S reporting level indicator]]","v":0},{"$f":"T_DataComboFile[[#This Row],[2020/21 SAB_Source]]*T_DataComboFile[[#This Row],[G&S reporting level indicator]]","v":0},{"$f":"T_DataComboFile[[#This Row],[2020/21 Baseline_Source]]*T_DataComboFile[[#This Row],[G&S reporting level indicator]]","v":0},{"$f":"T_DataComboFile[[#This Row],[2021/22 Baseline_Source]]*T_DataComboFile[[#This Row],[G&S reporting level indicator]]","v":0},{"$f":"T_DataComboFile[[#This Row],[2022/23 Baseline_Source]]*T_DataComboFile[[#This Row],[G&S reporting level indicator]]","v":0},{"$f":"T_DataComboFile[[#This Row],[2023/24 Baseline_Source]]*T_DataComboFile[[#This Row],[G&S reporting level indicator]]","v":0},null,null,null,null,null,null,{"$f":"T_DataComboFile[[#This Row],[2021/22 Baseline]]+T_DataComboFile[[#This Row],[2021/22 Reduction]]+T_DataComboFile[[#This Row],[2021/22 Increase]]","v":0},{"$f":"T_DataComboFile[[#This Row],[2022/23 Baseline]]+T_DataComboFile[[#This Row],[2022/23 Reduction]]+T_DataComboFile[[#This Row],[2022/23 Increase]]","v":0},{"$f":"T_DataComboFile[[#This Row],[2023/24 Baseline]]+T_DataComboFile[[#This Row],[2023/24 Reduction]]+T_DataComboFile[[#This Row],[2023/24 Increase]]","v":0}]
[null,null,"2021_22","ENE2020",36,4,3,null,71220,36,4,3,null,"071220","36|04|03",1,2,10,52,56,"01|02|10|52|56","National","Small Business Development","Enterprise Development and Entrepreneurship","SMME Competitiveness",null,"Current","Transfers and subsidies","Households","Social benefits","Social benefits",null,null,null,0,0,0,0,0,0,0,0,0,0,0,0,0,0,null,{"$f":"IF(T_DataComboFile[[#This Row],[G&S reporting level indicator]]=1,$AX$16,\"Not applicable\")","v":"Level 3"},{"$f":"IF(AND($AX$16=\"Level 3\",T_DataComboFile[[#This Row],[Econ3]] = \"Goods and services\"),IF(T_DataComboFile[[#This Row],[Econ4]] = T_DataComboFile[[#This Row],[Econ3]],1,0),IF(AND($AX$16=\"Level 4\",T_DataComboFile[[#This Row],[Econ4]] = \"Goods and services\"),0,1))","v":1},{"$f":"T_DataComboFile[[#This Row],[2016/17_Source]]*T_DataComboFile[[#This Row],[G&S reporting level indicator]]","v":0},{"$f":"T_DataComboFile[[#This Row],[2017/18_Source]]*T_DataComboFile[[#This Row],[G&S reporting level indicator]]","v":0},{"$f":"T_DataComboFile[[#This Row],[2018/19_Source]]*T_DataComboFile[[#This Row],[G&S reporting level indicator]]","v":0},{"$f":"T_DataComboFile[[#This Row],[2019/20 Main appropriation_Source]]*T_DataComboFile[[#This Row],[G&S reporting level indicator]]","v":0},{"$f":"T_DataComboFile[[#This Row],[2019/20 Adjusted appropriation_Source]]*T_DataComboFile[[#This Row],[G&S reporting level indicator]]","v":0},{"$f":"T_DataComboFile[[#This Row],[2019/20 Revised estimate_Source]]*T_DataComboFile[[#This Row],[G&S reporting level indicator]]","v":0},{"$f":"T_DataComboFile[[#This Row],[2019/20 Preliminary outcome_Source]]*T_DataComboFile[[#This Row],[G&S reporting level indicator]]","v":0},{"$f":"T_DataComboFile[[#This Row],[2020/21 Original_Source]]*T_DataComboFile[[#This Row],[G&S reporting level indicator]]","v":0},{"$f":"T_DataComboFile[[#This Row],[2020/21 SAB_Source]]*T_DataComboFile[[#This Row],[G&S reporting level indicator]]","v":0},{"$f":"T_DataComboFile[[#This Row],[2020/21 Baseline_Source]]*T_DataComboFile[[#This Row],[G&S reporting level indicator]]","v":0},{"$f":"T_DataComboFile[[#This Row],[2021/22 Baseline_Source]]*T_DataComboFile[[#This Row],[G&S reporting level indicator]]","v":0},{"$f":"T_DataComboFile[[#This Row],[2022/23 Baseline_Source]]*T_DataComboFile[[#This Row],[G&S reporting level indicator]]","v":0},{"$f":"T_DataComboFile[[#This Row],[2023/24 Baseline_Source]]*T_DataComboFile[[#This Row],[G&S reporting level indicator]]","v":0},null,null,null,null,null,null,{"$f":"T_DataComboFile[[#This Row],[2021/22 Baseline]]+T_DataComboFile[[#This Row],[2021/22 Reduction]]+T_DataComboFile[[#This Row],[2021/22 Increase]]","v":0},{"$f":"T_DataComboFile[[#This Row],[2022/23 Baseline]]+T_DataComboFile[[#This Row],[2022/23 Reduction]]+T_DataComboFile[[#This Row],[2022/23 Increase]]","v":0},{"$f":"T_DataComboFile[[#This Row],[2023/24 Baseline]]+T_DataComboFile[[#This Row],[2023/24 Reduction]]+T_DataComboFile[[#This Row],[2023/24 Increase]]","v":0}]
[null,null,"2021_22","ENE2020",36,4,3,null,71221,36,4,3,null,"071221","36|04|03",1,2,10,53,57,"01|02|10|53|57","National","Small Business Development","Enterprise Development and Entrepreneurship","SMME Competitiveness",null,"Current","Transfers and subsidies","Households","Other transfers to households","Other transfers to households",null,null,null,0,0,0,0,0,0,0,0,0,0,0,0,0,0,null,{"$f":"IF(T_DataComboFile[[#This Row],[G&S reporting level indicator]]=1,$AX$16,\"Not applicable\")","v":"Level 3"},{"$f":"IF(AND($AX$16=\"Level 3\",T_DataComboFile[[#This Row],[Econ3]] = \"Goods and services\"),IF(T_DataComboFile[[#This Row],[Econ4]] = T_DataComboFile[[#This Row],[Econ3]],1,0),IF(AND($AX$16=\"Level 4\",T_DataComboFile[[#This Row],[Econ4]] = \"Goods and services\"),0,1))","v":1},{"$f":"T_DataComboFile[[#This Row],[2016/17_Source]]*T_DataComboFile[[#This Row],[G&S reporting level indicator]]","v":0},{"$f":"T_DataComboFile[[#This Row],[2017/18_Source]]*T_DataComboFile[[#This Row],[G&S reporting level indicator]]","v":0},{"$f":"T_DataComboFile[[#This Row],[2018/19_Source]]*T_DataComboFile[[#This Row],[G&S reporting level indicator]]","v":0},{"$f":"T_DataComboFile[[#This Row],[2019/20 Main appropriation_Source]]*T_DataComboFile[[#This Row],[G&S reporting level indicator]]","v":0},{"$f":"T_DataComboFile[[#This Row],[2019/20 Adjusted appropriation_Source]]*T_DataComboFile[[#This Row],[G&S reporting level indicator]]","v":0},{"$f":"T_DataComboFile[[#This Row],[2019/20 Revised estimate_Source]]*T_DataComboFile[[#This Row],[G&S reporting level indicator]]","v":0},{"$f":"T_DataComboFile[[#This Row],[2019/20 Preliminary outcome_Source]]*T_DataComboFile[[#This Row],[G&S reporting level indicator]]","v":0},{"$f":"T_DataComboFile[[#This Row],[2020/21 Original_Source]]*T_DataComboFile[[#This Row],[G&S reporting level indicator]]","v":0},{"$f":"T_DataComboFile[[#This Row],[2020/21 SAB_Source]]*T_DataComboFile[[#This Row],[G&S reporting level indicator]]","v":0},{"$f":"T_DataComboFile[[#This Row],[2020/21 Baseline_Source]]*T_DataComboFile[[#This Row],[G&S reporting level indicator]]","v":0},{"$f":"T_DataComboFile[[#This Row],[2021/22 Baseline_Source]]*T_DataComboFile[[#This Row],[G&S reporting level indicator]]","v":0},{"$f":"T_DataComboFile[[#This Row],[2022/23 Baseline_Source]]*T_DataComboFile[[#This Row],[G&S reporting level indicator]]","v":0},{"$f":"T_DataComboFile[[#This Row],[2023/24 Baseline_Source]]*T_DataComboFile[[#This Row],[G&S reporting level indicator]]","v":0},null,null,null,null,null,null,{"$f":"T_DataComboFile[[#This Row],[2021/22 Baseline]]+T_DataComboFile[[#This Row],[2021/22 Reduction]]+T_DataComboFile[[#This Row],[2021/22 Increase]]","v":0},{"$f":"T_DataComboFile[[#This Row],[2022/23 Baseline]]+T_DataComboFile[[#This Row],[2022/23 Reduction]]+T_DataComboFile[[#This Row],[2022/23 Increase]]","v":0},{"$f":"T_DataComboFile[[#This Row],[2023/24 Baseline]]+T_DataComboFile[[#This Row],[2023/24 Reduction]]+T_DataComboFile[[#This Row],[2023/24 Increase]]","v":0}]
[null,null,"2021_22","ENE2020",36,4,3,null,71222,36,4,3,null,"071222","36|04|03",2,2,4,43,43,"02|02|04|43|43","National","Small Business Development","Enterprise Development and Entrepreneurship","SMME Competitiveness",null,"Capital","Transfers and subsidies","Provinces and municipalities","Provinces","Provincial Revenue Funds",null,null,null,0,0,0,0,0,0,0,0,0,0,0,0,0,0,null,{"$f":"IF(T_DataComboFile[[#This Row],[G&S reporting level indicator]]=1,$AX$16,\"Not applicable\")","v":"Level 3"},{"$f":"IF(AND($AX$16=\"Level 3\",T_DataComboFile[[#This Row],[Econ3]] = \"Goods and services\"),IF(T_DataComboFile[[#This Row],[Econ4]] = T_DataComboFile[[#This Row],[Econ3]],1,0),IF(AND($AX$16=\"Level 4\",T_DataComboFile[[#This Row],[Econ4]] = \"Goods and services\"),0,1))","v":1},{"$f":"T_DataComboFile[[#This Row],[2016/17_Source]]*T_DataComboFile[[#This Row],[G&S reporting level indicator]]","v":0},{"$f":"T_DataComboFile[[#This Row],[2017/18_Source]]*T_DataComboFile[[#This Row],[G&S reporting level indicator]]","v":0},{"$f":"T_DataComboFile[[#This Row],[2018/19_Source]]*T_DataComboFile[[#This Row],[G&S reporting level indicator]]","v":0},{"$f":"T_DataComboFile[[#This Row],[2019/20 Main appropriation_Source]]*T_DataComboFile[[#This Row],[G&S reporting level indicator]]","v":0},{"$f":"T_DataComboFile[[#This Row],[2019/20 Adjusted appropriation_Source]]*T_DataComboFile[[#This Row],[G&S reporting level indicator]]","v":0},{"$f":"T_DataComboFile[[#This Row],[2019/20 Revised estimate_Source]]*T_DataComboFile[[#This Row],[G&S reporting level indicator]]","v":0},{"$f":"T_DataComboFile[[#This Row],[2019/20 Preliminary outcome_Source]]*T_DataComboFile[[#This Row],[G&S reporting level indicator]]","v":0},{"$f":"T_DataComboFile[[#This Row],[2020/21 Original_Source]]*T_DataComboFile[[#This Row],[G&S reporting level indicator]]","v":0},{"$f":"T_DataComboFile[[#This Row],[2020/21 SAB_Source]]*T_DataComboFile[[#This Row],[G&S reporting level indicator]]","v":0},{"$f":"T_DataComboFile[[#This Row],[2020/21 Baseline_Source]]*T_DataComboFile[[#This Row],[G&S reporting level indicator]]","v":0},{"$f":"T_DataComboFile[[#This Row],[2021/22 Baseline_Source]]*T_DataComboFile[[#This Row],[G&S reporting level indicator]]","v":0},{"$f":"T_DataComboFile[[#This Row],[2022/23 Baseline_Source]]*T_DataComboFile[[#This Row],[G&S reporting level indicator]]","v":0},{"$f":"T_DataComboFile[[#This Row],[2023/24 Baseline_Source]]*T_DataComboFile[[#This Row],[G&S reporting level indicator]]","v":0},null,null,null,null,null,null,{"$f":"T_DataComboFile[[#This Row],[2021/22 Baseline]]+T_DataComboFile[[#This Row],[2021/22 Reduction]]+T_DataComboFile[[#This Row],[2021/22 Increase]]","v":0},{"$f":"T_DataComboFile[[#This Row],[2022/23 Baseline]]+T_DataComboFile[[#This Row],[2022/23 Reduction]]+T_DataComboFile[[#This Row],[2022/23 Increase]]","v":0},{"$f":"T_DataComboFile[[#This Row],[2023/24 Baseline]]+T_DataComboFile[[#This Row],[2023/24 Reduction]]+T_DataComboFile[[#This Row],[2023/24 Increase]]","v":0}]
[null,null,"2021_22","ENE2020",36,4,3,null,71223,36,4,3,null,"071223","36|04|03",2,2,4,44,45,"02|02|04|44|45","National","Small Business Development","Enterprise Development and Entrepreneurship","SMME Competitiveness",null,"Capital","Transfers and subsidies","Provinces and municipalities","Municipalities","Municipal bank accounts",null,null,null,0,0,0,0,0,0,0,0,0,0,0,0,0,0,null,{"$f":"IF(T_DataComboFile[[#This Row],[G&S reporting level indicator]]=1,$AX$16,\"Not applicable\")","v":"Level 3"},{"$f":"IF(AND($AX$16=\"Level 3\",T_DataComboFile[[#This Row],[Econ3]] = \"Goods and services\"),IF(T_DataComboFile[[#This Row],[Econ4]] = T_DataComboFile[[#This Row],[Econ3]],1,0),IF(AND($AX$16=\"Level 4\",T_DataComboFile[[#This Row],[Econ4]] = \"Goods and services\"),0,1))","v":1},{"$f":"T_DataComboFile[[#This Row],[2016/17_Source]]*T_DataComboFile[[#This Row],[G&S reporting level indicator]]","v":0},{"$f":"T_DataComboFile[[#This Row],[2017/18_Source]]*T_DataComboFile[[#This Row],[G&S reporting level indicator]]","v":0},{"$f":"T_DataComboFile[[#This Row],[2018/19_Source]]*T_DataComboFile[[#This Row],[G&S reporting level indicator]]","v":0},{"$f":"T_DataComboFile[[#This Row],[2019/20 Main appropriation_Source]]*T_DataComboFile[[#This Row],[G&S reporting level indicator]]","v":0},{"$f":"T_DataComboFile[[#This Row],[2019/20 Adjusted appropriation_Source]]*T_DataComboFile[[#This Row],[G&S reporting level indicator]]","v":0},{"$f":"T_DataComboFile[[#This Row],[2019/20 Revised estimate_Source]]*T_DataComboFile[[#This Row],[G&S reporting level indicator]]","v":0},{"$f":"T_DataComboFile[[#This Row],[2019/20 Preliminary outcome_Source]]*T_DataComboFile[[#This Row],[G&S reporting level indicator]]","v":0},{"$f":"T_DataComboFile[[#This Row],[2020/21 Original_Source]]*T_DataComboFile[[#This Row],[G&S reporting level indicator]]","v":0},{"$f":"T_DataComboFile[[#This Row],[2020/21 SAB_Source]]*T_DataComboFile[[#This Row],[G&S reporting level indicator]]","v":0},{"$f":"T_DataComboFile[[#This Row],[2020/21 Baseline_Source]]*T_DataComboFile[[#This Row],[G&S reporting level indicator]]","v":0},{"$f":"T_DataComboFile[[#This Row],[2021/22 Baseline_Source]]*T_DataComboFile[[#This Row],[G&S reporting level indicator]]","v":0},{"$f":"T_DataComboFile[[#This Row],[2022/23 Baseline_Source]]*T_DataComboFile[[#This Row],[G&S reporting level indicator]]","v":0},{"$f":"T_DataComboFile[[#This Row],[2023/24 Baseline_Source]]*T_DataComboFile[[#This Row],[G&S reporting level indicator]]","v":0},null,null,null,null,null,null,{"$f":"T_DataComboFile[[#This Row],[2021/22 Baseline]]+T_DataComboFile[[#This Row],[2021/22 Reduction]]+T_DataComboFile[[#This Row],[2021/22 Increase]]","v":0},{"$f":"T_DataComboFile[[#This Row],[2022/23 Baseline]]+T_DataComboFile[[#This Row],[2022/23 Reduction]]+T_DataComboFile[[#This Row],[2022/23 Increase]]","v":0},{"$f":"T_DataComboFile[[#This Row],[2023/24 Baseline]]+T_DataComboFile[[#This Row],[2023/24 Reduction]]+T_DataComboFile[[#This Row],[2023/24 Increase]]","v":0}]
[null,null,"2021_22","ENE2020",36,4,3,null,71224,36,4,3,null,"071224","36|04|03",2,2,5,46,48,"02|02|05|46|48","National","Small Business Development","Enterprise Development and Entrepreneurship","SMME Competitiveness",null,"Capital","Transfers and subsidies","Departmental agencies and accounts","Departmental agencies (non-business entities)","Departmental agencies (non-business entities)",null,null,null,0,0,0,0,0,0,0,0,0,0,0,0,0,0,null,{"$f":"IF(T_DataComboFile[[#This Row],[G&S reporting level indicator]]=1,$AX$16,\"Not applicable\")","v":"Level 3"},{"$f":"IF(AND($AX$16=\"Level 3\",T_DataComboFile[[#This Row],[Econ3]] = \"Goods and services\"),IF(T_DataComboFile[[#This Row],[Econ4]] = T_DataComboFile[[#This Row],[Econ3]],1,0),IF(AND($AX$16=\"Level 4\",T_DataComboFile[[#This Row],[Econ4]] = \"Goods and services\"),0,1))","v":1},{"$f":"T_DataComboFile[[#This Row],[2016/17_Source]]*T_DataComboFile[[#This Row],[G&S reporting level indicator]]","v":0},{"$f":"T_DataComboFile[[#This Row],[2017/18_Source]]*T_DataComboFile[[#This Row],[G&S reporting level indicator]]","v":0},{"$f":"T_DataComboFile[[#This Row],[2018/19_Source]]*T_DataComboFile[[#This Row],[G&S reporting level indicator]]","v":0},{"$f":"T_DataComboFile[[#This Row],[2019/20 Main appropriation_Source]]*T_DataComboFile[[#This Row],[G&S reporting level indicator]]","v":0},{"$f":"T_DataComboFile[[#This Row],[2019/20 Adjusted appropriation_Source]]*T_DataComboFile[[#This Row],[G&S reporting level indicator]]","v":0},{"$f":"T_DataComboFile[[#This Row],[2019/20 Revised estimate_Source]]*T_DataComboFile[[#This Row],[G&S reporting level indicator]]","v":0},{"$f":"T_DataComboFile[[#This Row],[2019/20 Preliminary outcome_Source]]*T_DataComboFile[[#This Row],[G&S reporting level indicator]]","v":0},{"$f":"T_DataComboFile[[#This Row],[2020/21 Original_Source]]*T_DataComboFile[[#This Row],[G&S reporting level indicator]]","v":0},{"$f":"T_DataComboFile[[#This Row],[2020/21 SAB_Source]]*T_DataComboFile[[#This Row],[G&S reporting level indicator]]","v":0},{"$f":"T_DataComboFile[[#This Row],[2020/21 Baseline_Source]]*T_DataComboFile[[#This Row],[G&S reporting level indicator]]","v":0},{"$f":"T_DataComboFile[[#This Row],[2021/22 Baseline_Source]]*T_DataComboFile[[#This Row],[G&S reporting level indicator]]","v":0},{"$f":"T_DataComboFile[[#This Row],[2022/23 Baseline_Source]]*T_DataComboFile[[#This Row],[G&S reporting level indicator]]","v":0},{"$f":"T_DataComboFile[[#This Row],[2023/24 Baseline_Source]]*T_DataComboFile[[#This Row],[G&S reporting level indicator]]","v":0},null,null,null,null,null,null,{"$f":"T_DataComboFile[[#This Row],[2021/22 Baseline]]+T_DataComboFile[[#This Row],[2021/22 Reduction]]+T_DataComboFile[[#This Row],[2021/22 Increase]]","v":0},{"$f":"T_DataComboFile[[#This Row],[2022/23 Baseline]]+T_DataComboFile[[#This Row],[2022/23 Reduction]]+T_DataComboFile[[#This Row],[2022/23 Increase]]","v":0},{"$f":"T_DataComboFile[[#This Row],[2023/24 Baseline]]+T_DataComboFile[[#This Row],[2023/24 Reduction]]+T_DataComboFile[[#This Row],[2023/24 Increase]]","v":0}]
[null,null,"2021_22","ENE2020",36,4,3,null,71225,36,4,3,null,"071225","36|04|03",2,2,6,47,49,"02|02|06|47|49","National","Small Business Development","Enterprise Development and Entrepreneurship","SMME Competitiveness",null,"Capital","Transfers and subsidies","Higher education institutions","Higher education institutions","Higher education institutions",null,null,null,0,0,0,0,0,0,0,0,0,0,0,0,0,0,null,{"$f":"IF(T_DataComboFile[[#This Row],[G&S reporting level indicator]]=1,$AX$16,\"Not applicable\")","v":"Level 3"},{"$f":"IF(AND($AX$16=\"Level 3\",T_DataComboFile[[#This Row],[Econ3]] = \"Goods and services\"),IF(T_DataComboFile[[#This Row],[Econ4]] = T_DataComboFile[[#This Row],[Econ3]],1,0),IF(AND($AX$16=\"Level 4\",T_DataComboFile[[#This Row],[Econ4]] = \"Goods and services\"),0,1))","v":1},{"$f":"T_DataComboFile[[#This Row],[2016/17_Source]]*T_DataComboFile[[#This Row],[G&S reporting level indicator]]","v":0},{"$f":"T_DataComboFile[[#This Row],[2017/18_Source]]*T_DataComboFile[[#This Row],[G&S reporting level indicator]]","v":0},{"$f":"T_DataComboFile[[#This Row],[2018/19_Source]]*T_DataComboFile[[#This Row],[G&S reporting level indicator]]","v":0},{"$f":"T_DataComboFile[[#This Row],[2019/20 Main appropriation_Source]]*T_DataComboFile[[#This Row],[G&S reporting level indicator]]","v":0},{"$f":"T_DataComboFile[[#This Row],[2019/20 Adjusted appropriation_Source]]*T_DataComboFile[[#This Row],[G&S reporting level indicator]]","v":0},{"$f":"T_DataComboFile[[#This Row],[2019/20 Revised estimate_Source]]*T_DataComboFile[[#This Row],[G&S reporting level indicator]]","v":0},{"$f":"T_DataComboFile[[#This Row],[2019/20 Preliminary outcome_Source]]*T_DataComboFile[[#This Row],[G&S reporting level indicator]]","v":0},{"$f":"T_DataComboFile[[#This Row],[2020/21 Original_Source]]*T_DataComboFile[[#This Row],[G&S reporting level indicator]]","v":0},{"$f":"T_DataComboFile[[#This Row],[2020/21 SAB_Source]]*T_DataComboFile[[#This Row],[G&S reporting level indicator]]","v":0},{"$f":"T_DataComboFile[[#This Row],[2020/21 Baseline_Source]]*T_DataComboFile[[#This Row],[G&S reporting level indicator]]","v":0},{"$f":"T_DataComboFile[[#This Row],[2021/22 Baseline_Source]]*T_DataComboFile[[#This Row],[G&S reporting level indicator]]","v":0},{"$f":"T_DataComboFile[[#This Row],[2022/23 Baseline_Source]]*T_DataComboFile[[#This Row],[G&S reporting level indicator]]","v":0},{"$f":"T_DataComboFile[[#This Row],[2023/24 Baseline_Source]]*T_DataComboFile[[#This Row],[G&S reporting level indicator]]","v":0},null,null,null,null,null,null,{"$f":"T_DataComboFile[[#This Row],[2021/22 Baseline]]+T_DataComboFile[[#This Row],[2021/22 Reduction]]+T_DataComboFile[[#This Row],[2021/22 Increase]]","v":0},{"$f":"T_DataComboFile[[#This Row],[2022/23 Baseline]]+T_DataComboFile[[#This Row],[2022/23 Reduction]]+T_DataComboFile[[#This Row],[2022/23 Increase]]","v":0},{"$f":"T_DataComboFile[[#This Row],[2023/24 Baseline]]+T_DataComboFile[[#This Row],[2023/24 Reduction]]+T_DataComboFile[[#This Row],[2023/24 Increase]]","v":0}]
[null,null,"2021_22","ENE2020",36,4,3,null,71226,36,4,3,null,"071226","36|04|03",2,2,7,48,50,"02|02|07|48|50","National","Small Business Development","Enterprise Development and Entrepreneurship","SMME Competitiveness",null,"Capital","Transfers and subsidies","Foreign governments and international organisations","Foreign governments and international organisations","Foreign governments and international organisations",null,null,null,0,0,0,0,0,0,0,0,0,0,0,0,0,0,null,{"$f":"IF(T_DataComboFile[[#This Row],[G&S reporting level indicator]]=1,$AX$16,\"Not applicable\")","v":"Level 3"},{"$f":"IF(AND($AX$16=\"Level 3\",T_DataComboFile[[#This Row],[Econ3]] = \"Goods and services\"),IF(T_DataComboFile[[#This Row],[Econ4]] = T_DataComboFile[[#This Row],[Econ3]],1,0),IF(AND($AX$16=\"Level 4\",T_DataComboFile[[#This Row],[Econ4]] = \"Goods and services\"),0,1))","v":1},{"$f":"T_DataComboFile[[#This Row],[2016/17_Source]]*T_DataComboFile[[#This Row],[G&S reporting level indicator]]","v":0},{"$f":"T_DataComboFile[[#This Row],[2017/18_Source]]*T_DataComboFile[[#This Row],[G&S reporting level indicator]]","v":0},{"$f":"T_DataComboFile[[#This Row],[2018/19_Source]]*T_DataComboFile[[#This Row],[G&S reporting level indicator]]","v":0},{"$f":"T_DataComboFile[[#This Row],[2019/20 Main appropriation_Source]]*T_DataComboFile[[#This Row],[G&S reporting level indicator]]","v":0},{"$f":"T_DataComboFile[[#This Row],[2019/20 Adjusted appropriation_Source]]*T_DataComboFile[[#This Row],[G&S reporting level indicator]]","v":0},{"$f":"T_DataComboFile[[#This Row],[2019/20 Revised estimate_Source]]*T_DataComboFile[[#This Row],[G&S reporting level indicator]]","v":0},{"$f":"T_DataComboFile[[#This Row],[2019/20 Preliminary outcome_Source]]*T_DataComboFile[[#This Row],[G&S reporting level indicator]]","v":0},{"$f":"T_DataComboFile[[#This Row],[2020/21 Original_Source]]*T_DataComboFile[[#This Row],[G&S reporting level indicator]]","v":0},{"$f":"T_DataComboFile[[#This Row],[2020/21 SAB_Source]]*T_DataComboFile[[#This Row],[G&S reporting level indicator]]","v":0},{"$f":"T_DataComboFile[[#This Row],[2020/21 Baseline_Source]]*T_DataComboFile[[#This Row],[G&S reporting level indicator]]","v":0},{"$f":"T_DataComboFile[[#This Row],[2021/22 Baseline_Source]]*T_DataComboFile[[#This Row],[G&S reporting level indicator]]","v":0},{"$f":"T_DataComboFile[[#This Row],[2022/23 Baseline_Source]]*T_DataComboFile[[#This Row],[G&S reporting level indicator]]","v":0},{"$f":"T_DataComboFile[[#This Row],[2023/24 Baseline_Source]]*T_DataComboFile[[#This Row],[G&S reporting level indicator]]","v":0},null,null,null,null,null,null,{"$f":"T_DataComboFile[[#This Row],[2021/22 Baseline]]+T_DataComboFile[[#This Row],[2021/22 Reduction]]+T_DataComboFile[[#This Row],[2021/22 Increase]]","v":0},{"$f":"T_DataComboFile[[#This Row],[2022/23 Baseline]]+T_DataComboFile[[#This Row],[2022/23 Reduction]]+T_DataComboFile[[#This Row],[2022/23 Increase]]","v":0},{"$f":"T_DataComboFile[[#This Row],[2023/24 Baseline]]+T_DataComboFile[[#This Row],[2023/24 Reduction]]+T_DataComboFile[[#This Row],[2023/24 Increase]]","v":0}]
[null,null,"2021_22","ENE2020",36,4,3,null,71227,36,4,3,null,"071227","36|04|03",2,2,8,49,51,"02|02|08|49|51","National","Small Business Development","Enterprise Development and Entrepreneurship","SMME Competitiveness",null,"Capital","Transfers and subsidies","Public corporations and private enterprises","Public corporations","Subsidies on products and production (pc)",null,null,null,0,0,0,0,0,0,0,0,0,0,0,0,0,0,null,{"$f":"IF(T_DataComboFile[[#This Row],[G&S reporting level indicator]]=1,$AX$16,\"Not applicable\")","v":"Level 3"},{"$f":"IF(AND($AX$16=\"Level 3\",T_DataComboFile[[#This Row],[Econ3]] = \"Goods and services\"),IF(T_DataComboFile[[#This Row],[Econ4]] = T_DataComboFile[[#This Row],[Econ3]],1,0),IF(AND($AX$16=\"Level 4\",T_DataComboFile[[#This Row],[Econ4]] = \"Goods and services\"),0,1))","v":1},{"$f":"T_DataComboFile[[#This Row],[2016/17_Source]]*T_DataComboFile[[#This Row],[G&S reporting level indicator]]","v":0},{"$f":"T_DataComboFile[[#This Row],[2017/18_Source]]*T_DataComboFile[[#This Row],[G&S reporting level indicator]]","v":0},{"$f":"T_DataComboFile[[#This Row],[2018/19_Source]]*T_DataComboFile[[#This Row],[G&S reporting level indicator]]","v":0},{"$f":"T_DataComboFile[[#This Row],[2019/20 Main appropriation_Source]]*T_DataComboFile[[#This Row],[G&S reporting level indicator]]","v":0},{"$f":"T_DataComboFile[[#This Row],[2019/20 Adjusted appropriation_Source]]*T_DataComboFile[[#This Row],[G&S reporting level indicator]]","v":0},{"$f":"T_DataComboFile[[#This Row],[2019/20 Revised estimate_Source]]*T_DataComboFile[[#This Row],[G&S reporting level indicator]]","v":0},{"$f":"T_DataComboFile[[#This Row],[2019/20 Preliminary outcome_Source]]*T_DataComboFile[[#This Row],[G&S reporting level indicator]]","v":0},{"$f":"T_DataComboFile[[#This Row],[2020/21 Original_Source]]*T_DataComboFile[[#This Row],[G&S reporting level indicator]]","v":0},{"$f":"T_DataComboFile[[#This Row],[2020/21 SAB_Source]]*T_DataComboFile[[#This Row],[G&S reporting level indicator]]","v":0},{"$f":"T_DataComboFile[[#This Row],[2020/21 Baseline_Source]]*T_DataComboFile[[#This Row],[G&S reporting level indicator]]","v":0},{"$f":"T_DataComboFile[[#This Row],[2021/22 Baseline_Source]]*T_DataComboFile[[#This Row],[G&S reporting level indicator]]","v":0},{"$f":"T_DataComboFile[[#This Row],[2022/23 Baseline_Source]]*T_DataComboFile[[#This Row],[G&S reporting level indicator]]","v":0},{"$f":"T_DataComboFile[[#This Row],[2023/24 Baseline_Source]]*T_DataComboFile[[#This Row],[G&S reporting level indicator]]","v":0},null,null,null,null,null,null,{"$f":"T_DataComboFile[[#This Row],[2021/22 Baseline]]+T_DataComboFile[[#This Row],[2021/22 Reduction]]+T_DataComboFile[[#This Row],[2021/22 Increase]]","v":0},{"$f":"T_DataComboFile[[#This Row],[2022/23 Baseline]]+T_DataComboFile[[#This Row],[2022/23 Reduction]]+T_DataComboFile[[#This Row],[2022/23 Increase]]","v":0},{"$f":"T_DataComboFile[[#This Row],[2023/24 Baseline]]+T_DataComboFile[[#This Row],[2023/24 Reduction]]+T_DataComboFile[[#This Row],[2023/24 Increase]]","v":0}]
[null,null,"2021_22","ENE2020",36,4,3,null,71228,36,4,3,null,"071228","36|04|03",2,2,8,49,52,"02|02|08|49|52","National","Small Business Development","Enterprise Development and Entrepreneurship","SMME Competitiveness",null,"Capital","Transfers and subsidies","Public corporations and private enterprises","Public corporations","Other transfers to public corporations",null,null,null,0,0,0,0,0,0,0,0,0,0,0,0,0,0,null,{"$f":"IF(T_DataComboFile[[#This Row],[G&S reporting level indicator]]=1,$AX$16,\"Not applicable\")","v":"Level 3"},{"$f":"IF(AND($AX$16=\"Level 3\",T_DataComboFile[[#This Row],[Econ3]] = \"Goods and services\"),IF(T_DataComboFile[[#This Row],[Econ4]] = T_DataComboFile[[#This Row],[Econ3]],1,0),IF(AND($AX$16=\"Level 4\",T_DataComboFile[[#This Row],[Econ4]] = \"Goods and services\"),0,1))","v":1},{"$f":"T_DataComboFile[[#This Row],[2016/17_Source]]*T_DataComboFile[[#This Row],[G&S reporting level indicator]]","v":0},{"$f":"T_DataComboFile[[#This Row],[2017/18_Source]]*T_DataComboFile[[#This Row],[G&S reporting level indicator]]","v":0},{"$f":"T_DataComboFile[[#This Row],[2018/19_Source]]*T_DataComboFile[[#This Row],[G&S reporting level indicator]]","v":0},{"$f":"T_DataComboFile[[#This Row],[2019/20 Main appropriation_Source]]*T_DataComboFile[[#This Row],[G&S reporting level indicator]]","v":0},{"$f":"T_DataComboFile[[#This Row],[2019/20 Adjusted appropriation_Source]]*T_DataComboFile[[#This Row],[G&S reporting level indicator]]","v":0},{"$f":"T_DataComboFile[[#This Row],[2019/20 Revised estimate_Source]]*T_DataComboFile[[#This Row],[G&S reporting level indicator]]","v":0},{"$f":"T_DataComboFile[[#This Row],[2019/20 Preliminary outcome_Source]]*T_DataComboFile[[#This Row],[G&S reporting level indicator]]","v":0},{"$f":"T_DataComboFile[[#This Row],[2020/21 Original_Source]]*T_DataComboFile[[#This Row],[G&S reporting level indicator]]","v":0},{"$f":"T_DataComboFile[[#This Row],[2020/21 SAB_Source]]*T_DataComboFile[[#This Row],[G&S reporting level indicator]]","v":0},{"$f":"T_DataComboFile[[#This Row],[2020/21 Baseline_Source]]*T_DataComboFile[[#This Row],[G&S reporting level indicator]]","v":0},{"$f":"T_DataComboFile[[#This Row],[2021/22 Baseline_Source]]*T_DataComboFile[[#This Row],[G&S reporting level indicator]]","v":0},{"$f":"T_DataComboFile[[#This Row],[2022/23 Baseline_Source]]*T_DataComboFile[[#This Row],[G&S reporting level indicator]]","v":0},{"$f":"T_DataComboFile[[#This Row],[2023/24 Baseline_Source]]*T_DataComboFile[[#This Row],[G&S reporting level indicator]]","v":0},null,null,null,null,null,null,{"$f":"T_DataComboFile[[#This Row],[2021/22 Baseline]]+T_DataComboFile[[#This Row],[2021/22 Reduction]]+T_DataComboFile[[#This Row],[2021/22 Increase]]","v":0},{"$f":"T_DataComboFile[[#This Row],[2022/23 Baseline]]+T_DataComboFile[[#This Row],[2022/23 Reduction]]+T_DataComboFile[[#This Row],[2022/23 Increase]]","v":0},{"$f":"T_DataComboFile[[#This Row],[2023/24 Baseline]]+T_DataComboFile[[#This Row],[2023/24 Reduction]]+T_DataComboFile[[#This Row],[2023/24 Increase]]","v":0}]
[null,null,"2021_22","ENE2020",36,4,3,null,71229,36,4,3,null,"071229","36|04|03",2,2,8,50,54,"02|02|08|50|54","National","Small Business Development","Enterprise Development and Entrepreneurship","SMME Competitiveness",null,"Capital","Transfers and subsidies","Public corporations and private enterprises","Private enterprises","Other transfers to private enterprises",null,null,null,0,0,0,0,0,0,0,0,0,0,0,0,0,0,null,{"$f":"IF(T_DataComboFile[[#This Row],[G&S reporting level indicator]]=1,$AX$16,\"Not applicable\")","v":"Level 3"},{"$f":"IF(AND($AX$16=\"Level 3\",T_DataComboFile[[#This Row],[Econ3]] = \"Goods and services\"),IF(T_DataComboFile[[#This Row],[Econ4]] = T_DataComboFile[[#This Row],[Econ3]],1,0),IF(AND($AX$16=\"Level 4\",T_DataComboFile[[#This Row],[Econ4]] = \"Goods and services\"),0,1))","v":1},{"$f":"T_DataComboFile[[#This Row],[2016/17_Source]]*T_DataComboFile[[#This Row],[G&S reporting level indicator]]","v":0},{"$f":"T_DataComboFile[[#This Row],[2017/18_Source]]*T_DataComboFile[[#This Row],[G&S reporting level indicator]]","v":0},{"$f":"T_DataComboFile[[#This Row],[2018/19_Source]]*T_DataComboFile[[#This Row],[G&S reporting level indicator]]","v":0},{"$f":"T_DataComboFile[[#This Row],[2019/20 Main appropriation_Source]]*T_DataComboFile[[#This Row],[G&S reporting level indicator]]","v":0},{"$f":"T_DataComboFile[[#This Row],[2019/20 Adjusted appropriation_Source]]*T_DataComboFile[[#This Row],[G&S reporting level indicator]]","v":0},{"$f":"T_DataComboFile[[#This Row],[2019/20 Revised estimate_Source]]*T_DataComboFile[[#This Row],[G&S reporting level indicator]]","v":0},{"$f":"T_DataComboFile[[#This Row],[2019/20 Preliminary outcome_Source]]*T_DataComboFile[[#This Row],[G&S reporting level indicator]]","v":0},{"$f":"T_DataComboFile[[#This Row],[2020/21 Original_Source]]*T_DataComboFile[[#This Row],[G&S reporting level indicator]]","v":0},{"$f":"T_DataComboFile[[#This Row],[2020/21 SAB_Source]]*T_DataComboFile[[#This Row],[G&S reporting level indicator]]","v":0},{"$f":"T_DataComboFile[[#This Row],[2020/21 Baseline_Source]]*T_DataComboFile[[#This Row],[G&S reporting level indicator]]","v":0},{"$f":"T_DataComboFile[[#This Row],[2021/22 Baseline_Source]]*T_DataComboFile[[#This Row],[G&S reporting level indicator]]","v":0},{"$f":"T_DataComboFile[[#This Row],[2022/23 Baseline_Source]]*T_DataComboFile[[#This Row],[G&S reporting level indicator]]","v":0},{"$f":"T_DataComboFile[[#This Row],[2023/24 Baseline_Source]]*T_DataComboFile[[#This Row],[G&S reporting level indicator]]","v":0},null,null,null,null,null,null,{"$f":"T_DataComboFile[[#This Row],[2021/22 Baseline]]+T_DataComboFile[[#This Row],[2021/22 Reduction]]+T_DataComboFile[[#This Row],[2021/22 Increase]]","v":0},{"$f":"T_DataComboFile[[#This Row],[2022/23 Baseline]]+T_DataComboFile[[#This Row],[2022/23 Reduction]]+T_DataComboFile[[#This Row],[2022/23 Increase]]","v":0},{"$f":"T_DataComboFile[[#This Row],[2023/24 Baseline]]+T_DataComboFile[[#This Row],[2023/24 Reduction]]+T_DataComboFile[[#This Row],[2023/24 Increase]]","v":0}]
[null,null,"2021_22","ENE2020",36,4,3,null,71230,36,4,3,null,"071230","36|04|03",2,2,9,51,55,"02|02|09|51|55","National","Small Business Development","Enterprise Development and Entrepreneurship","SMME Competitiveness",null,"Capital","Transfers and subsidies","Non-profit institutions","Non-profit institutions","Non-profit institutions",null,null,null,0,0,0,0,0,0,0,0,0,0,0,0,0,0,null,{"$f":"IF(T_DataComboFile[[#This Row],[G&S reporting level indicator]]=1,$AX$16,\"Not applicable\")","v":"Level 3"},{"$f":"IF(AND($AX$16=\"Level 3\",T_DataComboFile[[#This Row],[Econ3]] = \"Goods and services\"),IF(T_DataComboFile[[#This Row],[Econ4]] = T_DataComboFile[[#This Row],[Econ3]],1,0),IF(AND($AX$16=\"Level 4\",T_DataComboFile[[#This Row],[Econ4]] = \"Goods and services\"),0,1))","v":1},{"$f":"T_DataComboFile[[#This Row],[2016/17_Source]]*T_DataComboFile[[#This Row],[G&S reporting level indicator]]","v":0},{"$f":"T_DataComboFile[[#This Row],[2017/18_Source]]*T_DataComboFile[[#This Row],[G&S reporting level indicator]]","v":0},{"$f":"T_DataComboFile[[#This Row],[2018/19_Source]]*T_DataComboFile[[#This Row],[G&S reporting level indicator]]","v":0},{"$f":"T_DataComboFile[[#This Row],[2019/20 Main appropriation_Source]]*T_DataComboFile[[#This Row],[G&S reporting level indicator]]","v":0},{"$f":"T_DataComboFile[[#This Row],[2019/20 Adjusted appropriation_Source]]*T_DataComboFile[[#This Row],[G&S reporting level indicator]]","v":0},{"$f":"T_DataComboFile[[#This Row],[2019/20 Revised estimate_Source]]*T_DataComboFile[[#This Row],[G&S reporting level indicator]]","v":0},{"$f":"T_DataComboFile[[#This Row],[2019/20 Preliminary outcome_Source]]*T_DataComboFile[[#This Row],[G&S reporting level indicator]]","v":0},{"$f":"T_DataComboFile[[#This Row],[2020/21 Original_Source]]*T_DataComboFile[[#This Row],[G&S reporting level indicator]]","v":0},{"$f":"T_DataComboFile[[#This Row],[2020/21 SAB_Source]]*T_DataComboFile[[#This Row],[G&S reporting level indicator]]","v":0},{"$f":"T_DataComboFile[[#This Row],[2020/21 Baseline_Source]]*T_DataComboFile[[#This Row],[G&S reporting level indicator]]","v":0},{"$f":"T_DataComboFile[[#This Row],[2021/22 Baseline_Source]]*T_DataComboFile[[#This Row],[G&S reporting level indicator]]","v":0},{"$f":"T_DataComboFile[[#This Row],[2022/23 Baseline_Source]]*T_DataComboFile[[#This Row],[G&S reporting level indicator]]","v":0},{"$f":"T_DataComboFile[[#This Row],[2023/24 Baseline_Source]]*T_DataComboFile[[#This Row],[G&S reporting level indicator]]","v":0},null,null,null,null,null,null,{"$f":"T_DataComboFile[[#This Row],[2021/22 Baseline]]+T_DataComboFile[[#This Row],[2021/22 Reduction]]+T_DataComboFile[[#This Row],[2021/22 Increase]]","v":0},{"$f":"T_DataComboFile[[#This Row],[2022/23 Baseline]]+T_DataComboFile[[#This Row],[2022/23 Reduction]]+T_DataComboFile[[#This Row],[2022/23 Increase]]","v":0},{"$f":"T_DataComboFile[[#This Row],[2023/24 Baseline]]+T_DataComboFile[[#This Row],[2023/24 Reduction]]+T_DataComboFile[[#This Row],[2023/24 Increase]]","v":0}]
[null,null,"2021_22","ENE2020",36,4,3,null,71231,36,4,3,null,"071231","36|04|03",2,2,10,53,57,"02|02|10|53|57","National","Small Business Development","Enterprise Development and Entrepreneurship","SMME Competitiveness",null,"Capital","Transfers and subsidies","Households","Other transfers to households","Other transfers to households",null,null,null,0,0,0,0,0,0,0,0,0,0,0,0,0,0,null,{"$f":"IF(T_DataComboFile[[#This Row],[G&S reporting level indicator]]=1,$AX$16,\"Not applicable\")","v":"Level 3"},{"$f":"IF(AND($AX$16=\"Level 3\",T_DataComboFile[[#This Row],[Econ3]] = \"Goods and services\"),IF(T_DataComboFile[[#This Row],[Econ4]] = T_DataComboFile[[#This Row],[Econ3]],1,0),IF(AND($AX$16=\"Level 4\",T_DataComboFile[[#This Row],[Econ4]] = \"Goods and services\"),0,1))","v":1},{"$f":"T_DataComboFile[[#This Row],[2016/17_Source]]*T_DataComboFile[[#This Row],[G&S reporting level indicator]]","v":0},{"$f":"T_DataComboFile[[#This Row],[2017/18_Source]]*T_DataComboFile[[#This Row],[G&S reporting level indicator]]","v":0},{"$f":"T_DataComboFile[[#This Row],[2018/19_Source]]*T_DataComboFile[[#This Row],[G&S reporting level indicator]]","v":0},{"$f":"T_DataComboFile[[#This Row],[2019/20 Main appropriation_Source]]*T_DataComboFile[[#This Row],[G&S reporting level indicator]]","v":0},{"$f":"T_DataComboFile[[#This Row],[2019/20 Adjusted appropriation_Source]]*T_DataComboFile[[#This Row],[G&S reporting level indicator]]","v":0},{"$f":"T_DataComboFile[[#This Row],[2019/20 Revised estimate_Source]]*T_DataComboFile[[#This Row],[G&S reporting level indicator]]","v":0},{"$f":"T_DataComboFile[[#This Row],[2019/20 Preliminary outcome_Source]]*T_DataComboFile[[#This Row],[G&S reporting level indicator]]","v":0},{"$f":"T_DataComboFile[[#This Row],[2020/21 Original_Source]]*T_DataComboFile[[#This Row],[G&S reporting level indicator]]","v":0},{"$f":"T_DataComboFile[[#This Row],[2020/21 SAB_Source]]*T_DataComboFile[[#This Row],[G&S reporting level indicator]]","v":0},{"$f":"T_DataComboFile[[#This Row],[2020/21 Baseline_Source]]*T_DataComboFile[[#This Row],[G&S reporting level indicator]]","v":0},{"$f":"T_DataComboFile[[#This Row],[2021/22 Baseline_Source]]*T_DataComboFile[[#This Row],[G&S reporting level indicator]]","v":0},{"$f":"T_DataComboFile[[#This Row],[2022/23 Baseline_Source]]*T_DataComboFile[[#This Row],[G&S reporting level indicator]]","v":0},{"$f":"T_DataComboFile[[#This Row],[2023/24 Baseline_Source]]*T_DataComboFile[[#This Row],[G&S reporting level indicator]]","v":0},null,null,null,null,null,null,{"$f":"T_DataComboFile[[#This Row],[2021/22 Baseline]]+T_DataComboFile[[#This Row],[2021/22 Reduction]]+T_DataComboFile[[#This Row],[2021/22 Increase]]","v":0},{"$f":"T_DataComboFile[[#This Row],[2022/23 Baseline]]+T_DataComboFile[[#This Row],[2022/23 Reduction]]+T_DataComboFile[[#This Row],[2022/23 Increase]]","v":0},{"$f":"T_DataComboFile[[#This Row],[2023/24 Baseline]]+T_DataComboFile[[#This Row],[2023/24 Reduction]]+T_DataComboFile[[#This Row],[2023/24 Increase]]","v":0}]
[null,null,"2021_22","ENE2020",36,4,3,null,71232,36,4,3,null,"071232","36|04|03",2,3,11,54,58,"02|03|11|54|58","National","Small Business Development","Enterprise Development and Entrepreneurship","SMME Competitiveness",null,"Capital","Payments for capital assets","Buildings and other fixed structures","Buildings","Buildings",null,null,null,0,0,0,0,0,0,0,0,0,0,0,0,0,0,null,{"$f":"IF(T_DataComboFile[[#This Row],[G&S reporting level indicator]]=1,$AX$16,\"Not applicable\")","v":"Level 3"},{"$f":"IF(AND($AX$16=\"Level 3\",T_DataComboFile[[#This Row],[Econ3]] = \"Goods and services\"),IF(T_DataComboFile[[#This Row],[Econ4]] = T_DataComboFile[[#This Row],[Econ3]],1,0),IF(AND($AX$16=\"Level 4\",T_DataComboFile[[#This Row],[Econ4]] = \"Goods and services\"),0,1))","v":1},{"$f":"T_DataComboFile[[#This Row],[2016/17_Source]]*T_DataComboFile[[#This Row],[G&S reporting level indicator]]","v":0},{"$f":"T_DataComboFile[[#This Row],[2017/18_Source]]*T_DataComboFile[[#This Row],[G&S reporting level indicator]]","v":0},{"$f":"T_DataComboFile[[#This Row],[2018/19_Source]]*T_DataComboFile[[#This Row],[G&S reporting level indicator]]","v":0},{"$f":"T_DataComboFile[[#This Row],[2019/20 Main appropriation_Source]]*T_DataComboFile[[#This Row],[G&S reporting level indicator]]","v":0},{"$f":"T_DataComboFile[[#This Row],[2019/20 Adjusted appropriation_Source]]*T_DataComboFile[[#This Row],[G&S reporting level indicator]]","v":0},{"$f":"T_DataComboFile[[#This Row],[2019/20 Revised estimate_Source]]*T_DataComboFile[[#This Row],[G&S reporting level indicator]]","v":0},{"$f":"T_DataComboFile[[#This Row],[2019/20 Preliminary outcome_Source]]*T_DataComboFile[[#This Row],[G&S reporting level indicator]]","v":0},{"$f":"T_DataComboFile[[#This Row],[2020/21 Original_Source]]*T_DataComboFile[[#This Row],[G&S reporting level indicator]]","v":0},{"$f":"T_DataComboFile[[#This Row],[2020/21 SAB_Source]]*T_DataComboFile[[#This Row],[G&S reporting level indicator]]","v":0},{"$f":"T_DataComboFile[[#This Row],[2020/21 Baseline_Source]]*T_DataComboFile[[#This Row],[G&S reporting level indicator]]","v":0},{"$f":"T_DataComboFile[[#This Row],[2021/22 Baseline_Source]]*T_DataComboFile[[#This Row],[G&S reporting level indicator]]","v":0},{"$f":"T_DataComboFile[[#This Row],[2022/23 Baseline_Source]]*T_DataComboFile[[#This Row],[G&S reporting level indicator]]","v":0},{"$f":"T_DataComboFile[[#This Row],[2023/24 Baseline_Source]]*T_DataComboFile[[#This Row],[G&S reporting level indicator]]","v":0},null,null,null,null,null,null,{"$f":"T_DataComboFile[[#This Row],[2021/22 Baseline]]+T_DataComboFile[[#This Row],[2021/22 Reduction]]+T_DataComboFile[[#This Row],[2021/22 Increase]]","v":0},{"$f":"T_DataComboFile[[#This Row],[2022/23 Baseline]]+T_DataComboFile[[#This Row],[2022/23 Reduction]]+T_DataComboFile[[#This Row],[2022/23 Increase]]","v":0},{"$f":"T_DataComboFile[[#This Row],[2023/24 Baseline]]+T_DataComboFile[[#This Row],[2023/24 Reduction]]+T_DataComboFile[[#This Row],[2023/24 Increase]]","v":0}]
[null,null,"2021_22","ENE2020",36,4,3,null,71233,36,4,3,null,"071233","36|04|03",2,3,11,55,59,"02|03|11|55|59","National","Small Business Development","Enterprise Development and Entrepreneurship","SMME Competitiveness",null,"Capital","Payments for capital assets","Buildings and other fixed structures","Other fixed structures","Other fixed structures",null,null,null,0,0,0,0,0,0,0,0,0,0,0,0,0,0,null,{"$f":"IF(T_DataComboFile[[#This Row],[G&S reporting level indicator]]=1,$AX$16,\"Not applicable\")","v":"Level 3"},{"$f":"IF(AND($AX$16=\"Level 3\",T_DataComboFile[[#This Row],[Econ3]] = \"Goods and services\"),IF(T_DataComboFile[[#This Row],[Econ4]] = T_DataComboFile[[#This Row],[Econ3]],1,0),IF(AND($AX$16=\"Level 4\",T_DataComboFile[[#This Row],[Econ4]] = \"Goods and services\"),0,1))","v":1},{"$f":"T_DataComboFile[[#This Row],[2016/17_Source]]*T_DataComboFile[[#This Row],[G&S reporting level indicator]]","v":0},{"$f":"T_DataComboFile[[#This Row],[2017/18_Source]]*T_DataComboFile[[#This Row],[G&S reporting level indicator]]","v":0},{"$f":"T_DataComboFile[[#This Row],[2018/19_Source]]*T_DataComboFile[[#This Row],[G&S reporting level indicator]]","v":0},{"$f":"T_DataComboFile[[#This Row],[2019/20 Main appropriation_Source]]*T_DataComboFile[[#This Row],[G&S reporting level indicator]]","v":0},{"$f":"T_DataComboFile[[#This Row],[2019/20 Adjusted appropriation_Source]]*T_DataComboFile[[#This Row],[G&S reporting level indicator]]","v":0},{"$f":"T_DataComboFile[[#This Row],[2019/20 Revised estimate_Source]]*T_DataComboFile[[#This Row],[G&S reporting level indicator]]","v":0},{"$f":"T_DataComboFile[[#This Row],[2019/20 Preliminary outcome_Source]]*T_DataComboFile[[#This Row],[G&S reporting level indicator]]","v":0},{"$f":"T_DataComboFile[[#This Row],[2020/21 Original_Source]]*T_DataComboFile[[#This Row],[G&S reporting level indicator]]","v":0},{"$f":"T_DataComboFile[[#This Row],[2020/21 SAB_Source]]*T_DataComboFile[[#This Row],[G&S reporting level indicator]]","v":0},{"$f":"T_DataComboFile[[#This Row],[2020/21 Baseline_Source]]*T_DataComboFile[[#This Row],[G&S reporting level indicator]]","v":0},{"$f":"T_DataComboFile[[#This Row],[2021/22 Baseline_Source]]*T_DataComboFile[[#This Row],[G&S reporting level indicator]]","v":0},{"$f":"T_DataComboFile[[#This Row],[2022/23 Baseline_Source]]*T_DataComboFile[[#This Row],[G&S reporting level indicator]]","v":0},{"$f":"T_DataComboFile[[#This Row],[2023/24 Baseline_Source]]*T_DataComboFile[[#This Row],[G&S reporting level indicator]]","v":0},null,null,null,null,null,null,{"$f":"T_DataComboFile[[#This Row],[2021/22 Baseline]]+T_DataComboFile[[#This Row],[2021/22 Reduction]]+T_DataComboFile[[#This Row],[2021/22 Increase]]","v":0},{"$f":"T_DataComboFile[[#This Row],[2022/23 Baseline]]+T_DataComboFile[[#This Row],[2022/23 Reduction]]+T_DataComboFile[[#This Row],[2022/23 Increase]]","v":0},{"$f":"T_DataComboFile[[#This Row],[2023/24 Baseline]]+T_DataComboFile[[#This Row],[2023/24 Reduction]]+T_DataComboFile[[#This Row],[2023/24 Increase]]","v":0}]
[null,null,"2021_22","ENE2020",36,4,3,null,71234,36,4,3,null,"071234","36|04|03",2,3,12,56,60,"02|03|12|56|60","National","Small Business Development","Enterprise Development and Entrepreneurship","SMME Competitiveness",null,"Capital","Payments for capital assets","Machinery and equipment","Transport equipment","Transport equipment",null,null,null,0,0,0,0,0,0,0,0,0,0,0,0,0,0,null,{"$f":"IF(T_DataComboFile[[#This Row],[G&S reporting level indicator]]=1,$AX$16,\"Not applicable\")","v":"Level 3"},{"$f":"IF(AND($AX$16=\"Level 3\",T_DataComboFile[[#This Row],[Econ3]] = \"Goods and services\"),IF(T_DataComboFile[[#This Row],[Econ4]] = T_DataComboFile[[#This Row],[Econ3]],1,0),IF(AND($AX$16=\"Level 4\",T_DataComboFile[[#This Row],[Econ4]] = \"Goods and services\"),0,1))","v":1},{"$f":"T_DataComboFile[[#This Row],[2016/17_Source]]*T_DataComboFile[[#This Row],[G&S reporting level indicator]]","v":0},{"$f":"T_DataComboFile[[#This Row],[2017/18_Source]]*T_DataComboFile[[#This Row],[G&S reporting level indicator]]","v":0},{"$f":"T_DataComboFile[[#This Row],[2018/19_Source]]*T_DataComboFile[[#This Row],[G&S reporting level indicator]]","v":0},{"$f":"T_DataComboFile[[#This Row],[2019/20 Main appropriation_Source]]*T_DataComboFile[[#This Row],[G&S reporting level indicator]]","v":0},{"$f":"T_DataComboFile[[#This Row],[2019/20 Adjusted appropriation_Source]]*T_DataComboFile[[#This Row],[G&S reporting level indicator]]","v":0},{"$f":"T_DataComboFile[[#This Row],[2019/20 Revised estimate_Source]]*T_DataComboFile[[#This Row],[G&S reporting level indicator]]","v":0},{"$f":"T_DataComboFile[[#This Row],[2019/20 Preliminary outcome_Source]]*T_DataComboFile[[#This Row],[G&S reporting level indicator]]","v":0},{"$f":"T_DataComboFile[[#This Row],[2020/21 Original_Source]]*T_DataComboFile[[#This Row],[G&S reporting level indicator]]","v":0},{"$f":"T_DataComboFile[[#This Row],[2020/21 SAB_Source]]*T_DataComboFile[[#This Row],[G&S reporting level indicator]]","v":0},{"$f":"T_DataComboFile[[#This Row],[2020/21 Baseline_Source]]*T_DataComboFile[[#This Row],[G&S reporting level indicator]]","v":0},{"$f":"T_DataComboFile[[#This Row],[2021/22 Baseline_Source]]*T_DataComboFile[[#This Row],[G&S reporting level indicator]]","v":0},{"$f":"T_DataComboFile[[#This Row],[2022/23 Baseline_Source]]*T_DataComboFile[[#This Row],[G&S reporting level indicator]]","v":0},{"$f":"T_DataComboFile[[#This Row],[2023/24 Baseline_Source]]*T_DataComboFile[[#This Row],[G&S reporting level indicator]]","v":0},null,null,null,null,null,null,{"$f":"T_DataComboFile[[#This Row],[2021/22 Baseline]]+T_DataComboFile[[#This Row],[2021/22 Reduction]]+T_DataComboFile[[#This Row],[2021/22 Increase]]","v":0},{"$f":"T_DataComboFile[[#This Row],[2022/23 Baseline]]+T_DataComboFile[[#This Row],[2022/23 Reduction]]+T_DataComboFile[[#This Row],[2022/23 Increase]]","v":0},{"$f":"T_DataComboFile[[#This Row],[2023/24 Baseline]]+T_DataComboFile[[#This Row],[2023/24 Reduction]]+T_DataComboFile[[#This Row],[2023/24 Increase]]","v":0}]
["NAT|Non-transfer item","36|Other machinery and equipment","2021_22","ENE2020",36,4,3,17449,71235,36,4,3,17449,"071235","36|04|03",2,3,12,57,61,"02|03|12|57|61","National","Small Business Development","Enterprise Development and Entrepreneurship","SMME Competitiveness","Non-transfer item","Capital","Payments for capital assets","Machinery and equipment","Other machinery and equipment","Other machinery and equipment","Economic development","Industrialisation and exports","NAT",62,68,0,0,0,0,0,0,0,0,0,0,0,1,null,{"$f":"IF(T_DataComboFile[[#This Row],[G&S reporting level indicator]]=1,$AX$16,\"Not applicable\")","v":"Level 3"},{"$f":"IF(AND($AX$16=\"Level 3\",T_DataComboFile[[#This Row],[Econ3]] = \"Goods and services\"),IF(T_DataComboFile[[#This Row],[Econ4]] = T_DataComboFile[[#This Row],[Econ3]],1,0),IF(AND($AX$16=\"Level 4\",T_DataComboFile[[#This Row],[Econ4]] = \"Goods and services\"),0,1))","v":1},{"$f":"T_DataComboFile[[#This Row],[2016/17_Source]]*T_DataComboFile[[#This Row],[G&S reporting level indicator]]","v":62},{"$f":"T_DataComboFile[[#This Row],[2017/18_Source]]*T_DataComboFile[[#This Row],[G&S reporting level indicator]]","v":68},{"$f":"T_DataComboFile[[#This Row],[2018/19_Source]]*T_DataComboFile[[#This Row],[G&S reporting level indicator]]","v":0},{"$f":"T_DataComboFile[[#This Row],[2019/20 Main appropriation_Source]]*T_DataComboFile[[#This Row],[G&S reporting level indicator]]","v":0},{"$f":"T_DataComboFile[[#This Row],[2019/20 Adjusted appropriation_Source]]*T_DataComboFile[[#This Row],[G&S reporting level indicator]]","v":0},{"$f":"T_DataComboFile[[#This Row],[2019/20 Revised estimate_Source]]*T_DataComboFile[[#This Row],[G&S reporting level indicator]]","v":0},{"$f":"T_DataComboFile[[#This Row],[2019/20 Preliminary outcome_Source]]*T_DataComboFile[[#This Row],[G&S reporting level indicator]]","v":0},{"$f":"T_DataComboFile[[#This Row],[2020/21 Original_Source]]*T_DataComboFile[[#This Row],[G&S reporting level indicator]]","v":0},{"$f":"T_DataComboFile[[#This Row],[2020/21 SAB_Source]]*T_DataComboFile[[#This Row],[G&S reporting level indicator]]","v":0},{"$f":"T_DataComboFile[[#This Row],[2020/21 Baseline_Source]]*T_DataComboFile[[#This Row],[G&S reporting level indicator]]","v":0},{"$f":"T_DataComboFile[[#This Row],[2021/22 Baseline_Source]]*T_DataComboFile[[#This Row],[G&S reporting level indicator]]","v":0},{"$f":"T_DataComboFile[[#This Row],[2022/23 Baseline_Source]]*T_DataComboFile[[#This Row],[G&S reporting level indicator]]","v":0},{"$f":"T_DataComboFile[[#This Row],[2023/24 Baseline_Source]]*T_DataComboFile[[#This Row],[G&S reporting level indicator]]","v":0},null,null,null,null,null,null,{"$f":"T_DataComboFile[[#This Row],[2021/22 Baseline]]+T_DataComboFile[[#This Row],[2021/22 Reduction]]+T_DataComboFile[[#This Row],[2021/22 Increase]]","v":0},{"$f":"T_DataComboFile[[#This Row],[2022/23 Baseline]]+T_DataComboFile[[#This Row],[2022/23 Reduction]]+T_DataComboFile[[#This Row],[2022/23 Increase]]","v":0},{"$f":"T_DataComboFile[[#This Row],[2023/24 Baseline]]+T_DataComboFile[[#This Row],[2023/24 Reduction]]+T_DataComboFile[[#This Row],[2023/24 Increase]]","v":0}]
[null,null,"2021_22","ENE2020",36,4,3,null,71236,36,4,3,null,"071236","36|04|03",2,3,13,58,62,"02|03|13|58|62","National","Small Business Development","Enterprise Development and Entrepreneurship","SMME Competitiveness",null,"Capital","Payments for capital assets","Heritage assets","Heritage assets","Heritage assets",null,null,null,0,0,0,0,0,0,0,0,0,0,0,0,0,0,null,{"$f":"IF(T_DataComboFile[[#This Row],[G&S reporting level indicator]]=1,$AX$16,\"Not applicable\")","v":"Level 3"},{"$f":"IF(AND($AX$16=\"Level 3\",T_DataComboFile[[#This Row],[Econ3]] = \"Goods and services\"),IF(T_DataComboFile[[#This Row],[Econ4]] = T_DataComboFile[[#This Row],[Econ3]],1,0),IF(AND($AX$16=\"Level 4\",T_DataComboFile[[#This Row],[Econ4]] = \"Goods and services\"),0,1))","v":1},{"$f":"T_DataComboFile[[#This Row],[2016/17_Source]]*T_DataComboFile[[#This Row],[G&S reporting level indicator]]","v":0},{"$f":"T_DataComboFile[[#This Row],[2017/18_Source]]*T_DataComboFile[[#This Row],[G&S reporting level indicator]]","v":0},{"$f":"T_DataComboFile[[#This Row],[2018/19_Source]]*T_DataComboFile[[#This Row],[G&S reporting level indicator]]","v":0},{"$f":"T_DataComboFile[[#This Row],[2019/20 Main appropriation_Source]]*T_DataComboFile[[#This Row],[G&S reporting level indicator]]","v":0},{"$f":"T_DataComboFile[[#This Row],[2019/20 Adjusted appropriation_Source]]*T_DataComboFile[[#This Row],[G&S reporting level indicator]]","v":0},{"$f":"T_DataComboFile[[#This Row],[2019/20 Revised estimate_Source]]*T_DataComboFile[[#This Row],[G&S reporting level indicator]]","v":0},{"$f":"T_DataComboFile[[#This Row],[2019/20 Preliminary outcome_Source]]*T_DataComboFile[[#This Row],[G&S reporting level indicator]]","v":0},{"$f":"T_DataComboFile[[#This Row],[2020/21 Original_Source]]*T_DataComboFile[[#This Row],[G&S reporting level indicator]]","v":0},{"$f":"T_DataComboFile[[#This Row],[2020/21 SAB_Source]]*T_DataComboFile[[#This Row],[G&S reporting level indicator]]","v":0},{"$f":"T_DataComboFile[[#This Row],[2020/21 Baseline_Source]]*T_DataComboFile[[#This Row],[G&S reporting level indicator]]","v":0},{"$f":"T_DataComboFile[[#This Row],[2021/22 Baseline_Source]]*T_DataComboFile[[#This Row],[G&S reporting level indicator]]","v":0},{"$f":"T_DataComboFile[[#This Row],[2022/23 Baseline_Source]]*T_DataComboFile[[#This Row],[G&S reporting level indicator]]","v":0},{"$f":"T_DataComboFile[[#This Row],[2023/24 Baseline_Source]]*T_DataComboFile[[#This Row],[G&S reporting level indicator]]","v":0},null,null,null,null,null,null,{"$f":"T_DataComboFile[[#This Row],[2021/22 Baseline]]+T_DataComboFile[[#This Row],[2021/22 Reduction]]+T_DataComboFile[[#This Row],[2021/22 Increase]]","v":0},{"$f":"T_DataComboFile[[#This Row],[2022/23 Baseline]]+T_DataComboFile[[#This Row],[2022/23 Reduction]]+T_DataComboFile[[#This Row],[2022/23 Increase]]","v":0},{"$f":"T_DataComboFile[[#This Row],[2023/24 Baseline]]+T_DataComboFile[[#This Row],[2023/24 Reduction]]+T_DataComboFile[[#This Row],[2023/24 Increase]]","v":0}]
[null,null,"2021_22","ENE2020",36,4,3,null,71237,36,4,3,null,"071237","36|04|03",2,3,14,59,63,"02|03|14|59|63","National","Small Business Development","Enterprise Development and Entrepreneurship","SMME Competitiveness",null,"Capital","Payments for capital assets","Specialised military assets","Specialised military assets","Specialised military assets",null,null,null,0,0,0,0,0,0,0,0,0,0,0,0,0,0,null,{"$f":"IF(T_DataComboFile[[#This Row],[G&S reporting level indicator]]=1,$AX$16,\"Not applicable\")","v":"Level 3"},{"$f":"IF(AND($AX$16=\"Level 3\",T_DataComboFile[[#This Row],[Econ3]] = \"Goods and services\"),IF(T_DataComboFile[[#This Row],[Econ4]] = T_DataComboFile[[#This Row],[Econ3]],1,0),IF(AND($AX$16=\"Level 4\",T_DataComboFile[[#This Row],[Econ4]] = \"Goods and services\"),0,1))","v":1},{"$f":"T_DataComboFile[[#This Row],[2016/17_Source]]*T_DataComboFile[[#This Row],[G&S reporting level indicator]]","v":0},{"$f":"T_DataComboFile[[#This Row],[2017/18_Source]]*T_DataComboFile[[#This Row],[G&S reporting level indicator]]","v":0},{"$f":"T_DataComboFile[[#This Row],[2018/19_Source]]*T_DataComboFile[[#This Row],[G&S reporting level indicator]]","v":0},{"$f":"T_DataComboFile[[#This Row],[2019/20 Main appropriation_Source]]*T_DataComboFile[[#This Row],[G&S reporting level indicator]]","v":0},{"$f":"T_DataComboFile[[#This Row],[2019/20 Adjusted appropriation_Source]]*T_DataComboFile[[#This Row],[G&S reporting level indicator]]","v":0},{"$f":"T_DataComboFile[[#This Row],[2019/20 Revised estimate_Source]]*T_DataComboFile[[#This Row],[G&S reporting level indicator]]","v":0},{"$f":"T_DataComboFile[[#This Row],[2019/20 Preliminary outcome_Source]]*T_DataComboFile[[#This Row],[G&S reporting level indicator]]","v":0},{"$f":"T_DataComboFile[[#This Row],[2020/21 Original_Source]]*T_DataComboFile[[#This Row],[G&S reporting level indicator]]","v":0},{"$f":"T_DataComboFile[[#This Row],[2020/21 SAB_Source]]*T_DataComboFile[[#This Row],[G&S reporting level indicator]]","v":0},{"$f":"T_DataComboFile[[#This Row],[2020/21 Baseline_Source]]*T_DataComboFile[[#This Row],[G&S reporting level indicator]]","v":0},{"$f":"T_DataComboFile[[#This Row],[2021/22 Baseline_Source]]*T_DataComboFile[[#This Row],[G&S reporting level indicator]]","v":0},{"$f":"T_DataComboFile[[#This Row],[2022/23 Baseline_Source]]*T_DataComboFile[[#This Row],[G&S reporting level indicator]]","v":0},{"$f":"T_DataComboFile[[#This Row],[2023/24 Baseline_Source]]*T_DataComboFile[[#This Row],[G&S reporting level indicator]]","v":0},null,null,null,null,null,null,{"$f":"T_DataComboFile[[#This Row],[2021/22 Baseline]]+T_DataComboFile[[#This Row],[2021/22 Reduction]]+T_DataComboFile[[#This Row],[2021/22 Increase]]","v":0},{"$f":"T_DataComboFile[[#This Row],[2022/23 Baseline]]+T_DataComboFile[[#This Row],[2022/23 Reduction]]+T_DataComboFile[[#This Row],[2022/23 Increase]]","v":0},{"$f":"T_DataComboFile[[#This Row],[2023/24 Baseline]]+T_DataComboFile[[#This Row],[2023/24 Reduction]]+T_DataComboFile[[#This Row],[2023/24 Increase]]","v":0}]
[null,null,"2021_22","ENE2020",36,4,3,null,71238,36,4,3,null,"071238","36|04|03",2,3,15,60,64,"02|03|15|60|64","National","Small Business Development","Enterprise Development and Entrepreneurship","SMME Competitiveness",null,"Capital","Payments for capital assets","Biological assets","Biological assets","Biological assets",null,null,null,0,0,0,0,0,0,0,0,0,0,0,0,0,0,null,{"$f":"IF(T_DataComboFile[[#This Row],[G&S reporting level indicator]]=1,$AX$16,\"Not applicable\")","v":"Level 3"},{"$f":"IF(AND($AX$16=\"Level 3\",T_DataComboFile[[#This Row],[Econ3]] = \"Goods and services\"),IF(T_DataComboFile[[#This Row],[Econ4]] = T_DataComboFile[[#This Row],[Econ3]],1,0),IF(AND($AX$16=\"Level 4\",T_DataComboFile[[#This Row],[Econ4]] = \"Goods and services\"),0,1))","v":1},{"$f":"T_DataComboFile[[#This Row],[2016/17_Source]]*T_DataComboFile[[#This Row],[G&S reporting level indicator]]","v":0},{"$f":"T_DataComboFile[[#This Row],[2017/18_Source]]*T_DataComboFile[[#This Row],[G&S reporting level indicator]]","v":0},{"$f":"T_DataComboFile[[#This Row],[2018/19_Source]]*T_DataComboFile[[#This Row],[G&S reporting level indicator]]","v":0},{"$f":"T_DataComboFile[[#This Row],[2019/20 Main appropriation_Source]]*T_DataComboFile[[#This Row],[G&S reporting level indicator]]","v":0},{"$f":"T_DataComboFile[[#This Row],[2019/20 Adjusted appropriation_Source]]*T_DataComboFile[[#This Row],[G&S reporting level indicator]]","v":0},{"$f":"T_DataComboFile[[#This Row],[2019/20 Revised estimate_Source]]*T_DataComboFile[[#This Row],[G&S reporting level indicator]]","v":0},{"$f":"T_DataComboFile[[#This Row],[2019/20 Preliminary outcome_Source]]*T_DataComboFile[[#This Row],[G&S reporting level indicator]]","v":0},{"$f":"T_DataComboFile[[#This Row],[2020/21 Original_Source]]*T_DataComboFile[[#This Row],[G&S reporting level indicator]]","v":0},{"$f":"T_DataComboFile[[#This Row],[2020/21 SAB_Source]]*T_DataComboFile[[#This Row],[G&S reporting level indicator]]","v":0},{"$f":"T_DataComboFile[[#This Row],[2020/21 Baseline_Source]]*T_DataComboFile[[#This Row],[G&S reporting level indicator]]","v":0},{"$f":"T_DataComboFile[[#This Row],[2021/22 Baseline_Source]]*T_DataComboFile[[#This Row],[G&S reporting level indicator]]","v":0},{"$f":"T_DataComboFile[[#This Row],[2022/23 Baseline_Source]]*T_DataComboFile[[#This Row],[G&S reporting level indicator]]","v":0},{"$f":"T_DataComboFile[[#This Row],[2023/24 Baseline_Source]]*T_DataComboFile[[#This Row],[G&S reporting level indicator]]","v":0},null,null,null,null,null,null,{"$f":"T_DataComboFile[[#This Row],[2021/22 Baseline]]+T_DataComboFile[[#This Row],[2021/22 Reduction]]+T_DataComboFile[[#This Row],[2021/22 Increase]]","v":0},{"$f":"T_DataComboFile[[#This Row],[2022/23 Baseline]]+T_DataComboFile[[#This Row],[2022/23 Reduction]]+T_DataComboFile[[#This Row],[2022/23 Increase]]","v":0},{"$f":"T_DataComboFile[[#This Row],[2023/24 Baseline]]+T_DataComboFile[[#This Row],[2023/24 Reduction]]+T_DataComboFile[[#This Row],[2023/24 Increase]]","v":0}]
[null,null,"2021_22","ENE2020",36,4,3,null,71239,36,4,3,null,"071239","36|04|03",2,3,16,61,65,"02|03|16|61|65","National","Small Business Development","Enterprise Development and Entrepreneurship","SMME Competitiveness",null,"Capital","Payments for capital assets","Land and sub-soil assets","Land and sub-soil assets","Land and sub-soil assets",null,null,null,0,0,0,0,0,0,0,0,0,0,0,0,0,0,null,{"$f":"IF(T_DataComboFile[[#This Row],[G&S reporting level indicator]]=1,$AX$16,\"Not applicable\")","v":"Level 3"},{"$f":"IF(AND($AX$16=\"Level 3\",T_DataComboFile[[#This Row],[Econ3]] = \"Goods and services\"),IF(T_DataComboFile[[#This Row],[Econ4]] = T_DataComboFile[[#This Row],[Econ3]],1,0),IF(AND($AX$16=\"Level 4\",T_DataComboFile[[#This Row],[Econ4]] = \"Goods and services\"),0,1))","v":1},{"$f":"T_DataComboFile[[#This Row],[2016/17_Source]]*T_DataComboFile[[#This Row],[G&S reporting level indicator]]","v":0},{"$f":"T_DataComboFile[[#This Row],[2017/18_Source]]*T_DataComboFile[[#This Row],[G&S reporting level indicator]]","v":0},{"$f":"T_DataComboFile[[#This Row],[2018/19_Source]]*T_DataComboFile[[#This Row],[G&S reporting level indicator]]","v":0},{"$f":"T_DataComboFile[[#This Row],[2019/20 Main appropriation_Source]]*T_DataComboFile[[#This Row],[G&S reporting level indicator]]","v":0},{"$f":"T_DataComboFile[[#This Row],[2019/20 Adjusted appropriation_Source]]*T_DataComboFile[[#This Row],[G&S reporting level indicator]]","v":0},{"$f":"T_DataComboFile[[#This Row],[2019/20 Revised estimate_Source]]*T_DataComboFile[[#This Row],[G&S reporting level indicator]]","v":0},{"$f":"T_DataComboFile[[#This Row],[2019/20 Preliminary outcome_Source]]*T_DataComboFile[[#This Row],[G&S reporting level indicator]]","v":0},{"$f":"T_DataComboFile[[#This Row],[2020/21 Original_Source]]*T_DataComboFile[[#This Row],[G&S reporting level indicator]]","v":0},{"$f":"T_DataComboFile[[#This Row],[2020/21 SAB_Source]]*T_DataComboFile[[#This Row],[G&S reporting level indicator]]","v":0},{"$f":"T_DataComboFile[[#This Row],[2020/21 Baseline_Source]]*T_DataComboFile[[#This Row],[G&S reporting level indicator]]","v":0},{"$f":"T_DataComboFile[[#This Row],[2021/22 Baseline_Source]]*T_DataComboFile[[#This Row],[G&S reporting level indicator]]","v":0},{"$f":"T_DataComboFile[[#This Row],[2022/23 Baseline_Source]]*T_DataComboFile[[#This Row],[G&S reporting level indicator]]","v":0},{"$f":"T_DataComboFile[[#This Row],[2023/24 Baseline_Source]]*T_DataComboFile[[#This Row],[G&S reporting level indicator]]","v":0},null,null,null,null,null,null,{"$f":"T_DataComboFile[[#This Row],[2021/22 Baseline]]+T_DataComboFile[[#This Row],[2021/22 Reduction]]+T_DataComboFile[[#This Row],[2021/22 Increase]]","v":0},{"$f":"T_DataComboFile[[#This Row],[2022/23 Baseline]]+T_DataComboFile[[#This Row],[2022/23 Reduction]]+T_DataComboFile[[#This Row],[2022/23 Increase]]","v":0},{"$f":"T_DataComboFile[[#This Row],[2023/24 Baseline]]+T_DataComboFile[[#This Row],[2023/24 Reduction]]+T_DataComboFile[[#This Row],[2023/24 Increase]]","v":0}]
[null,null,"2021_22","ENE2020",36,4,3,null,71240,36,4,3,null,"071240","36|04|03",2,3,17,62,66,"02|03|17|62|66","National","Small Business Development","Enterprise Development and Entrepreneurship","SMME Competitiveness",null,"Capital","Payments for capital assets","Software and other intangible assets","Software and other intangible assets","Software and other intangible assets",null,null,null,0,0,0,0,0,0,0,0,0,0,0,0,0,0,null,{"$f":"IF(T_DataComboFile[[#This Row],[G&S reporting level indicator]]=1,$AX$16,\"Not applicable\")","v":"Level 3"},{"$f":"IF(AND($AX$16=\"Level 3\",T_DataComboFile[[#This Row],[Econ3]] = \"Goods and services\"),IF(T_DataComboFile[[#This Row],[Econ4]] = T_DataComboFile[[#This Row],[Econ3]],1,0),IF(AND($AX$16=\"Level 4\",T_DataComboFile[[#This Row],[Econ4]] = \"Goods and services\"),0,1))","v":1},{"$f":"T_DataComboFile[[#This Row],[2016/17_Source]]*T_DataComboFile[[#This Row],[G&S reporting level indicator]]","v":0},{"$f":"T_DataComboFile[[#This Row],[2017/18_Source]]*T_DataComboFile[[#This Row],[G&S reporting level indicator]]","v":0},{"$f":"T_DataComboFile[[#This Row],[2018/19_Source]]*T_DataComboFile[[#This Row],[G&S reporting level indicator]]","v":0},{"$f":"T_DataComboFile[[#This Row],[2019/20 Main appropriation_Source]]*T_DataComboFile[[#This Row],[G&S reporting level indicator]]","v":0},{"$f":"T_DataComboFile[[#This Row],[2019/20 Adjusted appropriation_Source]]*T_DataComboFile[[#This Row],[G&S reporting level indicator]]","v":0},{"$f":"T_DataComboFile[[#This Row],[2019/20 Revised estimate_Source]]*T_DataComboFile[[#This Row],[G&S reporting level indicator]]","v":0},{"$f":"T_DataComboFile[[#This Row],[2019/20 Preliminary outcome_Source]]*T_DataComboFile[[#This Row],[G&S reporting level indicator]]","v":0},{"$f":"T_DataComboFile[[#This Row],[2020/21 Original_Source]]*T_DataComboFile[[#This Row],[G&S reporting level indicator]]","v":0},{"$f":"T_DataComboFile[[#This Row],[2020/21 SAB_Source]]*T_DataComboFile[[#This Row],[G&S reporting level indicator]]","v":0},{"$f":"T_DataComboFile[[#This Row],[2020/21 Baseline_Source]]*T_DataComboFile[[#This Row],[G&S reporting level indicator]]","v":0},{"$f":"T_DataComboFile[[#This Row],[2021/22 Baseline_Source]]*T_DataComboFile[[#This Row],[G&S reporting level indicator]]","v":0},{"$f":"T_DataComboFile[[#This Row],[2022/23 Baseline_Source]]*T_DataComboFile[[#This Row],[G&S reporting level indicator]]","v":0},{"$f":"T_DataComboFile[[#This Row],[2023/24 Baseline_Source]]*T_DataComboFile[[#This Row],[G&S reporting level indicator]]","v":0},null,null,null,null,null,null,{"$f":"T_DataComboFile[[#This Row],[2021/22 Baseline]]+T_DataComboFile[[#This Row],[2021/22 Reduction]]+T_DataComboFile[[#This Row],[2021/22 Increase]]","v":0},{"$f":"T_DataComboFile[[#This Row],[2022/23 Baseline]]+T_DataComboFile[[#This Row],[2022/23 Reduction]]+T_DataComboFile[[#This Row],[2022/23 Increase]]","v":0},{"$f":"T_DataComboFile[[#This Row],[2023/24 Baseline]]+T_DataComboFile[[#This Row],[2023/24 Reduction]]+T_DataComboFile[[#This Row],[2023/24 Increase]]","v":0}]
[null,null,"2021_22","ENE2020",36,4,3,null,71241,36,4,3,null,"071241","36|04|03",3,4,18,63,67,"03|04|18|63|67","National","Small Business Development","Enterprise Development and Entrepreneurship","SMME Competitiveness",null,"Payments for financial assets","Payments for financial assets","Payments for financial assets","Payments for financial assets","Payments for financial assets",null,null,null,0,0,0,0,0,0,0,0,0,0,0,0,0,0,null,{"$f":"IF(T_DataComboFile[[#This Row],[G&S reporting level indicator]]=1,$AX$16,\"Not applicable\")","v":"Level 3"},{"$f":"IF(AND($AX$16=\"Level 3\",T_DataComboFile[[#This Row],[Econ3]] = \"Goods and services\"),IF(T_DataComboFile[[#This Row],[Econ4]] = T_DataComboFile[[#This Row],[Econ3]],1,0),IF(AND($AX$16=\"Level 4\",T_DataComboFile[[#This Row],[Econ4]] = \"Goods and services\"),0,1))","v":1},{"$f":"T_DataComboFile[[#This Row],[2016/17_Source]]*T_DataComboFile[[#This Row],[G&S reporting level indicator]]","v":0},{"$f":"T_DataComboFile[[#This Row],[2017/18_Source]]*T_DataComboFile[[#This Row],[G&S reporting level indicator]]","v":0},{"$f":"T_DataComboFile[[#This Row],[2018/19_Source]]*T_DataComboFile[[#This Row],[G&S reporting level indicator]]","v":0},{"$f":"T_DataComboFile[[#This Row],[2019/20 Main appropriation_Source]]*T_DataComboFile[[#This Row],[G&S reporting level indicator]]","v":0},{"$f":"T_DataComboFile[[#This Row],[2019/20 Adjusted appropriation_Source]]*T_DataComboFile[[#This Row],[G&S reporting level indicator]]","v":0},{"$f":"T_DataComboFile[[#This Row],[2019/20 Revised estimate_Source]]*T_DataComboFile[[#This Row],[G&S reporting level indicator]]","v":0},{"$f":"T_DataComboFile[[#This Row],[2019/20 Preliminary outcome_Source]]*T_DataComboFile[[#This Row],[G&S reporting level indicator]]","v":0},{"$f":"T_DataComboFile[[#This Row],[2020/21 Original_Source]]*T_DataComboFile[[#This Row],[G&S reporting level indicator]]","v":0},{"$f":"T_DataComboFile[[#This Row],[2020/21 SAB_Source]]*T_DataComboFile[[#This Row],[G&S reporting level indicator]]","v":0},{"$f":"T_DataComboFile[[#This Row],[2020/21 Baseline_Source]]*T_DataComboFile[[#This Row],[G&S reporting level indicator]]","v":0},{"$f":"T_DataComboFile[[#This Row],[2021/22 Baseline_Source]]*T_DataComboFile[[#This Row],[G&S reporting level indicator]]","v":0},{"$f":"T_DataComboFile[[#This Row],[2022/23 Baseline_Source]]*T_DataComboFile[[#This Row],[G&S reporting level indicator]]","v":0},{"$f":"T_DataComboFile[[#This Row],[2023/24 Baseline_Source]]*T_DataComboFile[[#This Row],[G&S reporting level indicator]]","v":0},null,null,null,null,null,null,{"$f":"T_DataComboFile[[#This Row],[2021/22 Baseline]]+T_DataComboFile[[#This Row],[2021/22 Reduction]]+T_DataComboFile[[#This Row],[2021/22 Increase]]","v":0},{"$f":"T_DataComboFile[[#This Row],[2022/23 Baseline]]+T_DataComboFile[[#This Row],[2022/23 Reduction]]+T_DataComboFile[[#This Row],[2022/23 Increase]]","v":0},{"$f":"T_DataComboFile[[#This Row],[2023/24 Baseline]]+T_DataComboFile[[#This Row],[2023/24 Reduction]]+T_DataComboFile[[#This Row],[2023/24 Increase]]","v":0}]
["NAT|Non-transfer item","36|Salaries and wages","2021_22","ENE2020",36,4,4,17450,71242,36,4,4,17450,"071242","36|04|04",1,1,1,1,1,"01|01|01|01|01","National","Small Business Development","Enterprise Development and Entrepreneurship","Entrepreneurship","Non-transfer item","Current","Current payments","Compensation of employees","Salaries and wages","Salaries and wages","Economic development","Industrialisation and exports","NAT",0,0,1171,3766,3766,3766,3766,2766,2766,2609,2679,2773,2895,1,null,{"$f":"IF(T_DataComboFile[[#This Row],[G&S reporting level indicator]]=1,$AX$16,\"Not applicable\")","v":"Level 3"},{"$f":"IF(AND($AX$16=\"Level 3\",T_DataComboFile[[#This Row],[Econ3]] = \"Goods and services\"),IF(T_DataComboFile[[#This Row],[Econ4]] = T_DataComboFile[[#This Row],[Econ3]],1,0),IF(AND($AX$16=\"Level 4\",T_DataComboFile[[#This Row],[Econ4]] = \"Goods and services\"),0,1))","v":1},{"$f":"T_DataComboFile[[#This Row],[2016/17_Source]]*T_DataComboFile[[#This Row],[G&S reporting level indicator]]","v":0},{"$f":"T_DataComboFile[[#This Row],[2017/18_Source]]*T_DataComboFile[[#This Row],[G&S reporting level indicator]]","v":0},{"$f":"T_DataComboFile[[#This Row],[2018/19_Source]]*T_DataComboFile[[#This Row],[G&S reporting level indicator]]","v":1171},{"$f":"T_DataComboFile[[#This Row],[2019/20 Main appropriation_Source]]*T_DataComboFile[[#This Row],[G&S reporting level indicator]]","v":3766},{"$f":"T_DataComboFile[[#This Row],[2019/20 Adjusted appropriation_Source]]*T_DataComboFile[[#This Row],[G&S reporting level indicator]]","v":3766},{"$f":"T_DataComboFile[[#This Row],[2019/20 Revised estimate_Source]]*T_DataComboFile[[#This Row],[G&S reporting level indicator]]","v":3766},{"$f":"T_DataComboFile[[#This Row],[2019/20 Preliminary outcome_Source]]*T_DataComboFile[[#This Row],[G&S reporting level indicator]]","v":3766},{"$f":"T_DataComboFile[[#This Row],[2020/21 Original_Source]]*T_DataComboFile[[#This Row],[G&S reporting level indicator]]","v":2766},{"$f":"T_DataComboFile[[#This Row],[2020/21 SAB_Source]]*T_DataComboFile[[#This Row],[G&S reporting level indicator]]","v":2766},{"$f":"T_DataComboFile[[#This Row],[2020/21 Baseline_Source]]*T_DataComboFile[[#This Row],[G&S reporting level indicator]]","v":2609},{"$f":"T_DataComboFile[[#This Row],[2021/22 Baseline_Source]]*T_DataComboFile[[#This Row],[G&S reporting level indicator]]","v":2679},{"$f":"T_DataComboFile[[#This Row],[2022/23 Baseline_Source]]*T_DataComboFile[[#This Row],[G&S reporting level indicator]]","v":2773},{"$f":"T_DataComboFile[[#This Row],[2023/24 Baseline_Source]]*T_DataComboFile[[#This Row],[G&S reporting level indicator]]","v":2895},null,null,null,null,null,null,{"$f":"T_DataComboFile[[#This Row],[2021/22 Baseline]]+T_DataComboFile[[#This Row],[2021/22 Reduction]]+T_DataComboFile[[#This Row],[2021/22 Increase]]","v":2679},{"$f":"T_DataComboFile[[#This Row],[2022/23 Baseline]]+T_DataComboFile[[#This Row],[2022/23 Reduction]]+T_DataComboFile[[#This Row],[2022/23 Increase]]","v":2773},{"$f":"T_DataComboFile[[#This Row],[2023/24 Baseline]]+T_DataComboFile[[#This Row],[2023/24 Reduction]]+T_DataComboFile[[#This Row],[2023/24 Increase]]","v":2895}]
["NAT|Non-transfer item","36|Social contributions","2021_22","ENE2020",36,4,4,17451,71243,36,4,4,17451,"071243","36|04|04",1,1,1,2,2,"01|01|01|02|02","National","Small Business Development","Enterprise Development and Entrepreneurship","Entrepreneurship","Non-transfer item","Current","Current payments","Compensation of employees","Social contributions","Social contributions","Economic development","Industrialisation and exports","NAT",0,0,290,218,218,218,218,298,298,281,289,299,312,1,null,{"$f":"IF(T_DataComboFile[[#This Row],[G&S reporting level indicator]]=1,$AX$16,\"Not applicable\")","v":"Level 3"},{"$f":"IF(AND($AX$16=\"Level 3\",T_DataComboFile[[#This Row],[Econ3]] = \"Goods and services\"),IF(T_DataComboFile[[#This Row],[Econ4]] = T_DataComboFile[[#This Row],[Econ3]],1,0),IF(AND($AX$16=\"Level 4\",T_DataComboFile[[#This Row],[Econ4]] = \"Goods and services\"),0,1))","v":1},{"$f":"T_DataComboFile[[#This Row],[2016/17_Source]]*T_DataComboFile[[#This Row],[G&S reporting level indicator]]","v":0},{"$f":"T_DataComboFile[[#This Row],[2017/18_Source]]*T_DataComboFile[[#This Row],[G&S reporting level indicator]]","v":0},{"$f":"T_DataComboFile[[#This Row],[2018/19_Source]]*T_DataComboFile[[#This Row],[G&S reporting level indicator]]","v":290},{"$f":"T_DataComboFile[[#This Row],[2019/20 Main appropriation_Source]]*T_DataComboFile[[#This Row],[G&S reporting level indicator]]","v":218},{"$f":"T_DataComboFile[[#This Row],[2019/20 Adjusted appropriation_Source]]*T_DataComboFile[[#This Row],[G&S reporting level indicator]]","v":218},{"$f":"T_DataComboFile[[#This Row],[2019/20 Revised estimate_Source]]*T_DataComboFile[[#This Row],[G&S reporting level indicator]]","v":218},{"$f":"T_DataComboFile[[#This Row],[2019/20 Preliminary outcome_Source]]*T_DataComboFile[[#This Row],[G&S reporting level indicator]]","v":218},{"$f":"T_DataComboFile[[#This Row],[2020/21 Original_Source]]*T_DataComboFile[[#This Row],[G&S reporting level indicator]]","v":298},{"$f":"T_DataComboFile[[#This Row],[2020/21 SAB_Source]]*T_DataComboFile[[#This Row],[G&S reporting level indicator]]","v":298},{"$f":"T_DataComboFile[[#This Row],[2020/21 Baseline_Source]]*T_DataComboFile[[#This Row],[G&S reporting level indicator]]","v":281},{"$f":"T_DataComboFile[[#This Row],[2021/22 Baseline_Source]]*T_DataComboFile[[#This Row],[G&S reporting level indicator]]","v":289},{"$f":"T_DataComboFile[[#This Row],[2022/23 Baseline_Source]]*T_DataComboFile[[#This Row],[G&S reporting level indicator]]","v":299},{"$f":"T_DataComboFile[[#This Row],[2023/24 Baseline_Source]]*T_DataComboFile[[#This Row],[G&S reporting level indicator]]","v":312},null,null,null,null,null,null,{"$f":"T_DataComboFile[[#This Row],[2021/22 Baseline]]+T_DataComboFile[[#This Row],[2021/22 Reduction]]+T_DataComboFile[[#This Row],[2021/22 Increase]]","v":289},{"$f":"T_DataComboFile[[#This Row],[2022/23 Baseline]]+T_DataComboFile[[#This Row],[2022/23 Reduction]]+T_DataComboFile[[#This Row],[2022/23 Increase]]","v":299},{"$f":"T_DataComboFile[[#This Row],[2023/24 Baseline]]+T_DataComboFile[[#This Row],[2023/24 Reduction]]+T_DataComboFile[[#This Row],[2023/24 Increase]]","v":312}]
[null,null,"2021_22","ENE2020",36,4,4,null,71244,36,4,4,null,"071244","36|04|04",1,1,2,2,2,"01|01|02|02|02","National","Small Business Development","Enterprise Development and Entrepreneurship","Entrepreneurship","Non-transfer item","Current","Current payments","Goods and services","Goods and services","Goods and services","Economic development","Industrialisation and exports","NAT",0,0,1096,3041,3041,3041,3041,3647,147,3647,3883,3440,3592,1,null,{"$f":"IF(T_DataComboFile[[#This Row],[G&S reporting level indicator]]=1,$AX$16,\"Not applicable\")","v":"Level 3"},{"$f":"IF(AND($AX$16=\"Level 3\",T_DataComboFile[[#This Row],[Econ3]] = \"Goods and services\"),IF(T_DataComboFile[[#This Row],[Econ4]] = T_DataComboFile[[#This Row],[Econ3]],1,0),IF(AND($AX$16=\"Level 4\",T_DataComboFile[[#This Row],[Econ4]] = \"Goods and services\"),0,1))","v":1},{"$f":"T_DataComboFile[[#This Row],[2016/17_Source]]*T_DataComboFile[[#This Row],[G&S reporting level indicator]]","v":0},{"$f":"T_DataComboFile[[#This Row],[2017/18_Source]]*T_DataComboFile[[#This Row],[G&S reporting level indicator]]","v":0},{"$f":"T_DataComboFile[[#This Row],[2018/19_Source]]*T_DataComboFile[[#This Row],[G&S reporting level indicator]]","v":1096},{"$f":"T_DataComboFile[[#This Row],[2019/20 Main appropriation_Source]]*T_DataComboFile[[#This Row],[G&S reporting level indicator]]","v":3041},{"$f":"T_DataComboFile[[#This Row],[2019/20 Adjusted appropriation_Source]]*T_DataComboFile[[#This Row],[G&S reporting level indicator]]","v":3041},{"$f":"T_DataComboFile[[#This Row],[2019/20 Revised estimate_Source]]*T_DataComboFile[[#This Row],[G&S reporting level indicator]]","v":3041},{"$f":"T_DataComboFile[[#This Row],[2019/20 Preliminary outcome_Source]]*T_DataComboFile[[#This Row],[G&S reporting level indicator]]","v":3041},{"$f":"T_DataComboFile[[#This Row],[2020/21 Original_Source]]*T_DataComboFile[[#This Row],[G&S reporting level indicator]]","v":3647},{"$f":"T_DataComboFile[[#This Row],[2020/21 SAB_Source]]*T_DataComboFile[[#This Row],[G&S reporting level indicator]]","v":147},{"$f":"T_DataComboFile[[#This Row],[2020/21 Baseline_Source]]*T_DataComboFile[[#This Row],[G&S reporting level indicator]]","v":3647},{"$f":"T_DataComboFile[[#This Row],[2021/22 Baseline_Source]]*T_DataComboFile[[#This Row],[G&S reporting level indicator]]","v":3883},{"$f":"T_DataComboFile[[#This Row],[2022/23 Baseline_Source]]*T_DataComboFile[[#This Row],[G&S reporting level indicator]]","v":3440},{"$f":"T_DataComboFile[[#This Row],[2023/24 Baseline_Source]]*T_DataComboFile[[#This Row],[G&S reporting level indicator]]","v":3592},null,null,null,null,null,null,{"$f":"T_DataComboFile[[#This Row],[2021/22 Baseline]]+T_DataComboFile[[#This Row],[2021/22 Reduction]]+T_DataComboFile[[#This Row],[2021/22 Increase]]","v":3883},{"$f":"T_DataComboFile[[#This Row],[2022/23 Baseline]]+T_DataComboFile[[#This Row],[2022/23 Reduction]]+T_DataComboFile[[#This Row],[2022/23 Increase]]","v":3440},{"$f":"T_DataComboFile[[#This Row],[2023/24 Baseline]]+T_DataComboFile[[#This Row],[2023/24 Reduction]]+T_DataComboFile[[#This Row],[2023/24 Increase]]","v":3592}]
["NAT|Non-transfer item","36|Administrative fees","2021_22","ENE2020",36,4,4,17452,71245,36,4,4,17452,"071245","36|04|04",1,1,2,3,3,"01|01|02|03|03","National","Small Business Development","Enterprise Development and Entrepreneurship","Entrepreneurship","Non-transfer item","Current","Current payments","Goods and services","Administrative fees","Administrative fees","Economic development","Industrialisation and exports","NAT",0,0,4,75,75,75,75,10,10,10,12,14,15,1,null,{"$f":"IF(T_DataComboFile[[#This Row],[G&S reporting level indicator]]=1,$AX$16,\"Not applicable\")","v":"Not applicable"},{"$f":"IF(AND($AX$16=\"Level 3\",T_DataComboFile[[#This Row],[Econ3]] = \"Goods and services\"),IF(T_DataComboFile[[#This Row],[Econ4]] = T_DataComboFile[[#This Row],[Econ3]],1,0),IF(AND($AX$16=\"Level 4\",T_DataComboFile[[#This Row],[Econ4]] = \"Goods and services\"),0,1))","v":0},{"$f":"T_DataComboFile[[#This Row],[2016/17_Source]]*T_DataComboFile[[#This Row],[G&S reporting level indicator]]","v":0},{"$f":"T_DataComboFile[[#This Row],[2017/18_Source]]*T_DataComboFile[[#This Row],[G&S reporting level indicator]]","v":0},{"$f":"T_DataComboFile[[#This Row],[2018/19_Source]]*T_DataComboFile[[#This Row],[G&S reporting level indicator]]","v":0},{"$f":"T_DataComboFile[[#This Row],[2019/20 Main appropriation_Source]]*T_DataComboFile[[#This Row],[G&S reporting level indicator]]","v":0},{"$f":"T_DataComboFile[[#This Row],[2019/20 Adjusted appropriation_Source]]*T_DataComboFile[[#This Row],[G&S reporting level indicator]]","v":0},{"$f":"T_DataComboFile[[#This Row],[2019/20 Revised estimate_Source]]*T_DataComboFile[[#This Row],[G&S reporting level indicator]]","v":0},{"$f":"T_DataComboFile[[#This Row],[2019/20 Preliminary outcome_Source]]*T_DataComboFile[[#This Row],[G&S reporting level indicator]]","v":0},{"$f":"T_DataComboFile[[#This Row],[2020/21 Original_Source]]*T_DataComboFile[[#This Row],[G&S reporting level indicator]]","v":0},{"$f":"T_DataComboFile[[#This Row],[2020/21 SAB_Source]]*T_DataComboFile[[#This Row],[G&S reporting level indicator]]","v":0},{"$f":"T_DataComboFile[[#This Row],[2020/21 Baseline_Source]]*T_DataComboFile[[#This Row],[G&S reporting level indicator]]","v":0},{"$f":"T_DataComboFile[[#This Row],[2021/22 Baseline_Source]]*T_DataComboFile[[#This Row],[G&S reporting level indicator]]","v":0},{"$f":"T_DataComboFile[[#This Row],[2022/23 Baseline_Source]]*T_DataComboFile[[#This Row],[G&S reporting level indicator]]","v":0},{"$f":"T_DataComboFile[[#This Row],[2023/24 Baseline_Source]]*T_DataComboFile[[#This Row],[G&S reporting level indicator]]","v":0},null,null,null,null,null,null,{"$f":"T_DataComboFile[[#This Row],[2021/22 Baseline]]+T_DataComboFile[[#This Row],[2021/22 Reduction]]+T_DataComboFile[[#This Row],[2021/22 Increase]]","v":0},{"$f":"T_DataComboFile[[#This Row],[2022/23 Baseline]]+T_DataComboFile[[#This Row],[2022/23 Reduction]]+T_DataComboFile[[#This Row],[2022/23 Increase]]","v":0},{"$f":"T_DataComboFile[[#This Row],[2023/24 Baseline]]+T_DataComboFile[[#This Row],[2023/24 Reduction]]+T_DataComboFile[[#This Row],[2023/24 Increase]]","v":0}]
[null,null,"2021_22","ENE2020",36,4,4,null,71246,36,4,4,null,"071246","36|04|04",1,1,2,4,4,"01|01|02|04|04","National","Small Business Development","Enterprise Development and Entrepreneurship","Entrepreneurship",null,"Current","Current payments","Goods and services","Advertising","Advertising",null,null,null,0,0,0,0,0,0,0,0,0,0,0,0,0,0,null,{"$f":"IF(T_DataComboFile[[#This Row],[G&S reporting level indicator]]=1,$AX$16,\"Not applicable\")","v":"Not applicable"},{"$f":"IF(AND($AX$16=\"Level 3\",T_DataComboFile[[#This Row],[Econ3]] = \"Goods and services\"),IF(T_DataComboFile[[#This Row],[Econ4]] = T_DataComboFile[[#This Row],[Econ3]],1,0),IF(AND($AX$16=\"Level 4\",T_DataComboFile[[#This Row],[Econ4]] = \"Goods and services\"),0,1))","v":0},{"$f":"T_DataComboFile[[#This Row],[2016/17_Source]]*T_DataComboFile[[#This Row],[G&S reporting level indicator]]","v":0},{"$f":"T_DataComboFile[[#This Row],[2017/18_Source]]*T_DataComboFile[[#This Row],[G&S reporting level indicator]]","v":0},{"$f":"T_DataComboFile[[#This Row],[2018/19_Source]]*T_DataComboFile[[#This Row],[G&S reporting level indicator]]","v":0},{"$f":"T_DataComboFile[[#This Row],[2019/20 Main appropriation_Source]]*T_DataComboFile[[#This Row],[G&S reporting level indicator]]","v":0},{"$f":"T_DataComboFile[[#This Row],[2019/20 Adjusted appropriation_Source]]*T_DataComboFile[[#This Row],[G&S reporting level indicator]]","v":0},{"$f":"T_DataComboFile[[#This Row],[2019/20 Revised estimate_Source]]*T_DataComboFile[[#This Row],[G&S reporting level indicator]]","v":0},{"$f":"T_DataComboFile[[#This Row],[2019/20 Preliminary outcome_Source]]*T_DataComboFile[[#This Row],[G&S reporting level indicator]]","v":0},{"$f":"T_DataComboFile[[#This Row],[2020/21 Original_Source]]*T_DataComboFile[[#This Row],[G&S reporting level indicator]]","v":0},{"$f":"T_DataComboFile[[#This Row],[2020/21 SAB_Source]]*T_DataComboFile[[#This Row],[G&S reporting level indicator]]","v":0},{"$f":"T_DataComboFile[[#This Row],[2020/21 Baseline_Source]]*T_DataComboFile[[#This Row],[G&S reporting level indicator]]","v":0},{"$f":"T_DataComboFile[[#This Row],[2021/22 Baseline_Source]]*T_DataComboFile[[#This Row],[G&S reporting level indicator]]","v":0},{"$f":"T_DataComboFile[[#This Row],[2022/23 Baseline_Source]]*T_DataComboFile[[#This Row],[G&S reporting level indicator]]","v":0},{"$f":"T_DataComboFile[[#This Row],[2023/24 Baseline_Source]]*T_DataComboFile[[#This Row],[G&S reporting level indicator]]","v":0},null,null,null,null,null,null,{"$f":"T_DataComboFile[[#This Row],[2021/22 Baseline]]+T_DataComboFile[[#This Row],[2021/22 Reduction]]+T_DataComboFile[[#This Row],[2021/22 Increase]]","v":0},{"$f":"T_DataComboFile[[#This Row],[2022/23 Baseline]]+T_DataComboFile[[#This Row],[2022/23 Reduction]]+T_DataComboFile[[#This Row],[2022/23 Increase]]","v":0},{"$f":"T_DataComboFile[[#This Row],[2023/24 Baseline]]+T_DataComboFile[[#This Row],[2023/24 Reduction]]+T_DataComboFile[[#This Row],[2023/24 Increase]]","v":0}]
[null,null,"2021_22","ENE2020",36,4,4,null,71247,36,4,4,null,"071247","36|04|04",1,1,2,5,5,"01|01|02|05|05","National","Small Business Development","Enterprise Development and Entrepreneurship","Entrepreneurship",null,"Current","Current payments","Goods and services","Minor assets","Minor assets",null,null,null,0,0,0,0,0,0,0,0,0,0,0,0,0,0,null,{"$f":"IF(T_DataComboFile[[#This Row],[G&S reporting level indicator]]=1,$AX$16,\"Not applicable\")","v":"Not applicable"},{"$f":"IF(AND($AX$16=\"Level 3\",T_DataComboFile[[#This Row],[Econ3]] = \"Goods and services\"),IF(T_DataComboFile[[#This Row],[Econ4]] = T_DataComboFile[[#This Row],[Econ3]],1,0),IF(AND($AX$16=\"Level 4\",T_DataComboFile[[#This Row],[Econ4]] = \"Goods and services\"),0,1))","v":0},{"$f":"T_DataComboFile[[#This Row],[2016/17_Source]]*T_DataComboFile[[#This Row],[G&S reporting level indicator]]","v":0},{"$f":"T_DataComboFile[[#This Row],[2017/18_Source]]*T_DataComboFile[[#This Row],[G&S reporting level indicator]]","v":0},{"$f":"T_DataComboFile[[#This Row],[2018/19_Source]]*T_DataComboFile[[#This Row],[G&S reporting level indicator]]","v":0},{"$f":"T_DataComboFile[[#This Row],[2019/20 Main appropriation_Source]]*T_DataComboFile[[#This Row],[G&S reporting level indicator]]","v":0},{"$f":"T_DataComboFile[[#This Row],[2019/20 Adjusted appropriation_Source]]*T_DataComboFile[[#This Row],[G&S reporting level indicator]]","v":0},{"$f":"T_DataComboFile[[#This Row],[2019/20 Revised estimate_Source]]*T_DataComboFile[[#This Row],[G&S reporting level indicator]]","v":0},{"$f":"T_DataComboFile[[#This Row],[2019/20 Preliminary outcome_Source]]*T_DataComboFile[[#This Row],[G&S reporting level indicator]]","v":0},{"$f":"T_DataComboFile[[#This Row],[2020/21 Original_Source]]*T_DataComboFile[[#This Row],[G&S reporting level indicator]]","v":0},{"$f":"T_DataComboFile[[#This Row],[2020/21 SAB_Source]]*T_DataComboFile[[#This Row],[G&S reporting level indicator]]","v":0},{"$f":"T_DataComboFile[[#This Row],[2020/21 Baseline_Source]]*T_DataComboFile[[#This Row],[G&S reporting level indicator]]","v":0},{"$f":"T_DataComboFile[[#This Row],[2021/22 Baseline_Source]]*T_DataComboFile[[#This Row],[G&S reporting level indicator]]","v":0},{"$f":"T_DataComboFile[[#This Row],[2022/23 Baseline_Source]]*T_DataComboFile[[#This Row],[G&S reporting level indicator]]","v":0},{"$f":"T_DataComboFile[[#This Row],[2023/24 Baseline_Source]]*T_DataComboFile[[#This Row],[G&S reporting level indicator]]","v":0},null,null,null,null,null,null,{"$f":"T_DataComboFile[[#This Row],[2021/22 Baseline]]+T_DataComboFile[[#This Row],[2021/22 Reduction]]+T_DataComboFile[[#This Row],[2021/22 Increase]]","v":0},{"$f":"T_DataComboFile[[#This Row],[2022/23 Baseline]]+T_DataComboFile[[#This Row],[2022/23 Reduction]]+T_DataComboFile[[#This Row],[2022/23 Increase]]","v":0},{"$f":"T_DataComboFile[[#This Row],[2023/24 Baseline]]+T_DataComboFile[[#This Row],[2023/24 Reduction]]+T_DataComboFile[[#This Row],[2023/24 Increase]]","v":0}]
[null,null,"2021_22","ENE2020",36,4,4,null,71248,36,4,4,null,"071248","36|04|04",1,1,2,6,6,"01|01|02|06|06","National","Small Business Development","Enterprise Development and Entrepreneurship","Entrepreneurship",null,"Current","Current payments","Goods and services","Audit costs: External","Audit costs: External",null,null,null,0,0,0,0,0,0,0,0,0,0,0,0,0,0,null,{"$f":"IF(T_DataComboFile[[#This Row],[G&S reporting level indicator]]=1,$AX$16,\"Not applicable\")","v":"Not applicable"},{"$f":"IF(AND($AX$16=\"Level 3\",T_DataComboFile[[#This Row],[Econ3]] = \"Goods and services\"),IF(T_DataComboFile[[#This Row],[Econ4]] = T_DataComboFile[[#This Row],[Econ3]],1,0),IF(AND($AX$16=\"Level 4\",T_DataComboFile[[#This Row],[Econ4]] = \"Goods and services\"),0,1))","v":0},{"$f":"T_DataComboFile[[#This Row],[2016/17_Source]]*T_DataComboFile[[#This Row],[G&S reporting level indicator]]","v":0},{"$f":"T_DataComboFile[[#This Row],[2017/18_Source]]*T_DataComboFile[[#This Row],[G&S reporting level indicator]]","v":0},{"$f":"T_DataComboFile[[#This Row],[2018/19_Source]]*T_DataComboFile[[#This Row],[G&S reporting level indicator]]","v":0},{"$f":"T_DataComboFile[[#This Row],[2019/20 Main appropriation_Source]]*T_DataComboFile[[#This Row],[G&S reporting level indicator]]","v":0},{"$f":"T_DataComboFile[[#This Row],[2019/20 Adjusted appropriation_Source]]*T_DataComboFile[[#This Row],[G&S reporting level indicator]]","v":0},{"$f":"T_DataComboFile[[#This Row],[2019/20 Revised estimate_Source]]*T_DataComboFile[[#This Row],[G&S reporting level indicator]]","v":0},{"$f":"T_DataComboFile[[#This Row],[2019/20 Preliminary outcome_Source]]*T_DataComboFile[[#This Row],[G&S reporting level indicator]]","v":0},{"$f":"T_DataComboFile[[#This Row],[2020/21 Original_Source]]*T_DataComboFile[[#This Row],[G&S reporting level indicator]]","v":0},{"$f":"T_DataComboFile[[#This Row],[2020/21 SAB_Source]]*T_DataComboFile[[#This Row],[G&S reporting level indicator]]","v":0},{"$f":"T_DataComboFile[[#This Row],[2020/21 Baseline_Source]]*T_DataComboFile[[#This Row],[G&S reporting level indicator]]","v":0},{"$f":"T_DataComboFile[[#This Row],[2021/22 Baseline_Source]]*T_DataComboFile[[#This Row],[G&S reporting level indicator]]","v":0},{"$f":"T_DataComboFile[[#This Row],[2022/23 Baseline_Source]]*T_DataComboFile[[#This Row],[G&S reporting level indicator]]","v":0},{"$f":"T_DataComboFile[[#This Row],[2023/24 Baseline_Source]]*T_DataComboFile[[#This Row],[G&S reporting level indicator]]","v":0},null,null,null,null,null,null,{"$f":"T_DataComboFile[[#This Row],[2021/22 Baseline]]+T_DataComboFile[[#This Row],[2021/22 Reduction]]+T_DataComboFile[[#This Row],[2021/22 Increase]]","v":0},{"$f":"T_DataComboFile[[#This Row],[2022/23 Baseline]]+T_DataComboFile[[#This Row],[2022/23 Reduction]]+T_DataComboFile[[#This Row],[2022/23 Increase]]","v":0},{"$f":"T_DataComboFile[[#This Row],[2023/24 Baseline]]+T_DataComboFile[[#This Row],[2023/24 Reduction]]+T_DataComboFile[[#This Row],[2023/24 Increase]]","v":0}]
[null,null,"2021_22","ENE2020",36,4,4,null,71249,36,4,4,null,"071249","36|04|04",1,1,2,7,7,"01|01|02|07|07","National","Small Business Development","Enterprise Development and Entrepreneurship","Entrepreneurship",null,"Current","Current payments","Goods and services","Bursaries: Employees","Bursaries: Employees",null,null,null,0,0,0,0,0,0,0,0,0,0,0,0,0,0,null,{"$f":"IF(T_DataComboFile[[#This Row],[G&S reporting level indicator]]=1,$AX$16,\"Not applicable\")","v":"Not applicable"},{"$f":"IF(AND($AX$16=\"Level 3\",T_DataComboFile[[#This Row],[Econ3]] = \"Goods and services\"),IF(T_DataComboFile[[#This Row],[Econ4]] = T_DataComboFile[[#This Row],[Econ3]],1,0),IF(AND($AX$16=\"Level 4\",T_DataComboFile[[#This Row],[Econ4]] = \"Goods and services\"),0,1))","v":0},{"$f":"T_DataComboFile[[#This Row],[2016/17_Source]]*T_DataComboFile[[#This Row],[G&S reporting level indicator]]","v":0},{"$f":"T_DataComboFile[[#This Row],[2017/18_Source]]*T_DataComboFile[[#This Row],[G&S reporting level indicator]]","v":0},{"$f":"T_DataComboFile[[#This Row],[2018/19_Source]]*T_DataComboFile[[#This Row],[G&S reporting level indicator]]","v":0},{"$f":"T_DataComboFile[[#This Row],[2019/20 Main appropriation_Source]]*T_DataComboFile[[#This Row],[G&S reporting level indicator]]","v":0},{"$f":"T_DataComboFile[[#This Row],[2019/20 Adjusted appropriation_Source]]*T_DataComboFile[[#This Row],[G&S reporting level indicator]]","v":0},{"$f":"T_DataComboFile[[#This Row],[2019/20 Revised estimate_Source]]*T_DataComboFile[[#This Row],[G&S reporting level indicator]]","v":0},{"$f":"T_DataComboFile[[#This Row],[2019/20 Preliminary outcome_Source]]*T_DataComboFile[[#This Row],[G&S reporting level indicator]]","v":0},{"$f":"T_DataComboFile[[#This Row],[2020/21 Original_Source]]*T_DataComboFile[[#This Row],[G&S reporting level indicator]]","v":0},{"$f":"T_DataComboFile[[#This Row],[2020/21 SAB_Source]]*T_DataComboFile[[#This Row],[G&S reporting level indicator]]","v":0},{"$f":"T_DataComboFile[[#This Row],[2020/21 Baseline_Source]]*T_DataComboFile[[#This Row],[G&S reporting level indicator]]","v":0},{"$f":"T_DataComboFile[[#This Row],[2021/22 Baseline_Source]]*T_DataComboFile[[#This Row],[G&S reporting level indicator]]","v":0},{"$f":"T_DataComboFile[[#This Row],[2022/23 Baseline_Source]]*T_DataComboFile[[#This Row],[G&S reporting level indicator]]","v":0},{"$f":"T_DataComboFile[[#This Row],[2023/24 Baseline_Source]]*T_DataComboFile[[#This Row],[G&S reporting level indicator]]","v":0},null,null,null,null,null,null,{"$f":"T_DataComboFile[[#This Row],[2021/22 Baseline]]+T_DataComboFile[[#This Row],[2021/22 Reduction]]+T_DataComboFile[[#This Row],[2021/22 Increase]]","v":0},{"$f":"T_DataComboFile[[#This Row],[2022/23 Baseline]]+T_DataComboFile[[#This Row],[2022/23 Reduction]]+T_DataComboFile[[#This Row],[2022/23 Increase]]","v":0},{"$f":"T_DataComboFile[[#This Row],[2023/24 Baseline]]+T_DataComboFile[[#This Row],[2023/24 Reduction]]+T_DataComboFile[[#This Row],[2023/24 Increase]]","v":0}]
["NAT|Non-transfer item","36|Catering: Departmental activities","2021_22","ENE2020",36,4,4,17453,71250,36,4,4,17453,"071250","36|04|04",1,1,2,8,8,"01|01|02|08|08","National","Small Business Development","Enterprise Development and Entrepreneurship","Entrepreneurship","Non-transfer item","Current","Current payments","Goods and services","Catering: Departmental activities","Catering: Departmental activities","Economic development","Industrialisation and exports","NAT",0,0,0,56,56,56,56,10,10,10,12,14,15,1,null,{"$f":"IF(T_DataComboFile[[#This Row],[G&S reporting level indicator]]=1,$AX$16,\"Not applicable\")","v":"Not applicable"},{"$f":"IF(AND($AX$16=\"Level 3\",T_DataComboFile[[#This Row],[Econ3]] = \"Goods and services\"),IF(T_DataComboFile[[#This Row],[Econ4]] = T_DataComboFile[[#This Row],[Econ3]],1,0),IF(AND($AX$16=\"Level 4\",T_DataComboFile[[#This Row],[Econ4]] = \"Goods and services\"),0,1))","v":0},{"$f":"T_DataComboFile[[#This Row],[2016/17_Source]]*T_DataComboFile[[#This Row],[G&S reporting level indicator]]","v":0},{"$f":"T_DataComboFile[[#This Row],[2017/18_Source]]*T_DataComboFile[[#This Row],[G&S reporting level indicator]]","v":0},{"$f":"T_DataComboFile[[#This Row],[2018/19_Source]]*T_DataComboFile[[#This Row],[G&S reporting level indicator]]","v":0},{"$f":"T_DataComboFile[[#This Row],[2019/20 Main appropriation_Source]]*T_DataComboFile[[#This Row],[G&S reporting level indicator]]","v":0},{"$f":"T_DataComboFile[[#This Row],[2019/20 Adjusted appropriation_Source]]*T_DataComboFile[[#This Row],[G&S reporting level indicator]]","v":0},{"$f":"T_DataComboFile[[#This Row],[2019/20 Revised estimate_Source]]*T_DataComboFile[[#This Row],[G&S reporting level indicator]]","v":0},{"$f":"T_DataComboFile[[#This Row],[2019/20 Preliminary outcome_Source]]*T_DataComboFile[[#This Row],[G&S reporting level indicator]]","v":0},{"$f":"T_DataComboFile[[#This Row],[2020/21 Original_Source]]*T_DataComboFile[[#This Row],[G&S reporting level indicator]]","v":0},{"$f":"T_DataComboFile[[#This Row],[2020/21 SAB_Source]]*T_DataComboFile[[#This Row],[G&S reporting level indicator]]","v":0},{"$f":"T_DataComboFile[[#This Row],[2020/21 Baseline_Source]]*T_DataComboFile[[#This Row],[G&S reporting level indicator]]","v":0},{"$f":"T_DataComboFile[[#This Row],[2021/22 Baseline_Source]]*T_DataComboFile[[#This Row],[G&S reporting level indicator]]","v":0},{"$f":"T_DataComboFile[[#This Row],[2022/23 Baseline_Source]]*T_DataComboFile[[#This Row],[G&S reporting level indicator]]","v":0},{"$f":"T_DataComboFile[[#This Row],[2023/24 Baseline_Source]]*T_DataComboFile[[#This Row],[G&S reporting level indicator]]","v":0},null,null,null,null,null,null,{"$f":"T_DataComboFile[[#This Row],[2021/22 Baseline]]+T_DataComboFile[[#This Row],[2021/22 Reduction]]+T_DataComboFile[[#This Row],[2021/22 Increase]]","v":0},{"$f":"T_DataComboFile[[#This Row],[2022/23 Baseline]]+T_DataComboFile[[#This Row],[2022/23 Reduction]]+T_DataComboFile[[#This Row],[2022/23 Increase]]","v":0},{"$f":"T_DataComboFile[[#This Row],[2023/24 Baseline]]+T_DataComboFile[[#This Row],[2023/24 Reduction]]+T_DataComboFile[[#This Row],[2023/24 Increase]]","v":0}]
["NAT|Non-transfer item","36|Communication (G&S)","2021_22","ENE2020",36,4,4,17454,71251,36,4,4,17454,"071251","36|04|04",1,1,2,9,9,"01|01|02|09|09","National","Small Business Development","Enterprise Development and Entrepreneurship","Entrepreneurship","Non-transfer item","Current","Current payments","Goods and services","Communication (G&S)","Communication (G&S)","Economic development","Industrialisation and exports","NAT",0,0,1,10,10,10,10,2,2,2,4,6,6,1,null,{"$f":"IF(T_DataComboFile[[#This Row],[G&S reporting level indicator]]=1,$AX$16,\"Not applicable\")","v":"Not applicable"},{"$f":"IF(AND($AX$16=\"Level 3\",T_DataComboFile[[#This Row],[Econ3]] = \"Goods and services\"),IF(T_DataComboFile[[#This Row],[Econ4]] = T_DataComboFile[[#This Row],[Econ3]],1,0),IF(AND($AX$16=\"Level 4\",T_DataComboFile[[#This Row],[Econ4]] = \"Goods and services\"),0,1))","v":0},{"$f":"T_DataComboFile[[#This Row],[2016/17_Source]]*T_DataComboFile[[#This Row],[G&S reporting level indicator]]","v":0},{"$f":"T_DataComboFile[[#This Row],[2017/18_Source]]*T_DataComboFile[[#This Row],[G&S reporting level indicator]]","v":0},{"$f":"T_DataComboFile[[#This Row],[2018/19_Source]]*T_DataComboFile[[#This Row],[G&S reporting level indicator]]","v":0},{"$f":"T_DataComboFile[[#This Row],[2019/20 Main appropriation_Source]]*T_DataComboFile[[#This Row],[G&S reporting level indicator]]","v":0},{"$f":"T_DataComboFile[[#This Row],[2019/20 Adjusted appropriation_Source]]*T_DataComboFile[[#This Row],[G&S reporting level indicator]]","v":0},{"$f":"T_DataComboFile[[#This Row],[2019/20 Revised estimate_Source]]*T_DataComboFile[[#This Row],[G&S reporting level indicator]]","v":0},{"$f":"T_DataComboFile[[#This Row],[2019/20 Preliminary outcome_Source]]*T_DataComboFile[[#This Row],[G&S reporting level indicator]]","v":0},{"$f":"T_DataComboFile[[#This Row],[2020/21 Original_Source]]*T_DataComboFile[[#This Row],[G&S reporting level indicator]]","v":0},{"$f":"T_DataComboFile[[#This Row],[2020/21 SAB_Source]]*T_DataComboFile[[#This Row],[G&S reporting level indicator]]","v":0},{"$f":"T_DataComboFile[[#This Row],[2020/21 Baseline_Source]]*T_DataComboFile[[#This Row],[G&S reporting level indicator]]","v":0},{"$f":"T_DataComboFile[[#This Row],[2021/22 Baseline_Source]]*T_DataComboFile[[#This Row],[G&S reporting level indicator]]","v":0},{"$f":"T_DataComboFile[[#This Row],[2022/23 Baseline_Source]]*T_DataComboFile[[#This Row],[G&S reporting level indicator]]","v":0},{"$f":"T_DataComboFile[[#This Row],[2023/24 Baseline_Source]]*T_DataComboFile[[#This Row],[G&S reporting level indicator]]","v":0},null,null,null,null,null,null,{"$f":"T_DataComboFile[[#This Row],[2021/22 Baseline]]+T_DataComboFile[[#This Row],[2021/22 Reduction]]+T_DataComboFile[[#This Row],[2021/22 Increase]]","v":0},{"$f":"T_DataComboFile[[#This Row],[2022/23 Baseline]]+T_DataComboFile[[#This Row],[2022/23 Reduction]]+T_DataComboFile[[#This Row],[2022/23 Increase]]","v":0},{"$f":"T_DataComboFile[[#This Row],[2023/24 Baseline]]+T_DataComboFile[[#This Row],[2023/24 Reduction]]+T_DataComboFile[[#This Row],[2023/24 Increase]]","v":0}]
[null,null,"2021_22","ENE2020",36,4,4,null,71252,36,4,4,null,"071252","36|04|04",1,1,2,10,10,"01|01|02|10|10","National","Small Business Development","Enterprise Development and Entrepreneurship","Entrepreneurship",null,"Current","Current payments","Goods and services","Computer services","Computer services",null,null,null,0,0,0,0,0,0,0,0,0,0,0,0,0,0,null,{"$f":"IF(T_DataComboFile[[#This Row],[G&S reporting level indicator]]=1,$AX$16,\"Not applicable\")","v":"Not applicable"},{"$f":"IF(AND($AX$16=\"Level 3\",T_DataComboFile[[#This Row],[Econ3]] = \"Goods and services\"),IF(T_DataComboFile[[#This Row],[Econ4]] = T_DataComboFile[[#This Row],[Econ3]],1,0),IF(AND($AX$16=\"Level 4\",T_DataComboFile[[#This Row],[Econ4]] = \"Goods and services\"),0,1))","v":0},{"$f":"T_DataComboFile[[#This Row],[2016/17_Source]]*T_DataComboFile[[#This Row],[G&S reporting level indicator]]","v":0},{"$f":"T_DataComboFile[[#This Row],[2017/18_Source]]*T_DataComboFile[[#This Row],[G&S reporting level indicator]]","v":0},{"$f":"T_DataComboFile[[#This Row],[2018/19_Source]]*T_DataComboFile[[#This Row],[G&S reporting level indicator]]","v":0},{"$f":"T_DataComboFile[[#This Row],[2019/20 Main appropriation_Source]]*T_DataComboFile[[#This Row],[G&S reporting level indicator]]","v":0},{"$f":"T_DataComboFile[[#This Row],[2019/20 Adjusted appropriation_Source]]*T_DataComboFile[[#This Row],[G&S reporting level indicator]]","v":0},{"$f":"T_DataComboFile[[#This Row],[2019/20 Revised estimate_Source]]*T_DataComboFile[[#This Row],[G&S reporting level indicator]]","v":0},{"$f":"T_DataComboFile[[#This Row],[2019/20 Preliminary outcome_Source]]*T_DataComboFile[[#This Row],[G&S reporting level indicator]]","v":0},{"$f":"T_DataComboFile[[#This Row],[2020/21 Original_Source]]*T_DataComboFile[[#This Row],[G&S reporting level indicator]]","v":0},{"$f":"T_DataComboFile[[#This Row],[2020/21 SAB_Source]]*T_DataComboFile[[#This Row],[G&S reporting level indicator]]","v":0},{"$f":"T_DataComboFile[[#This Row],[2020/21 Baseline_Source]]*T_DataComboFile[[#This Row],[G&S reporting level indicator]]","v":0},{"$f":"T_DataComboFile[[#This Row],[2021/22 Baseline_Source]]*T_DataComboFile[[#This Row],[G&S reporting level indicator]]","v":0},{"$f":"T_DataComboFile[[#This Row],[2022/23 Baseline_Source]]*T_DataComboFile[[#This Row],[G&S reporting level indicator]]","v":0},{"$f":"T_DataComboFile[[#This Row],[2023/24 Baseline_Source]]*T_DataComboFile[[#This Row],[G&S reporting level indicator]]","v":0},null,null,null,null,null,null,{"$f":"T_DataComboFile[[#This Row],[2021/22 Baseline]]+T_DataComboFile[[#This Row],[2021/22 Reduction]]+T_DataComboFile[[#This Row],[2021/22 Increase]]","v":0},{"$f":"T_DataComboFile[[#This Row],[2022/23 Baseline]]+T_DataComboFile[[#This Row],[2022/23 Reduction]]+T_DataComboFile[[#This Row],[2022/23 Increase]]","v":0},{"$f":"T_DataComboFile[[#This Row],[2023/24 Baseline]]+T_DataComboFile[[#This Row],[2023/24 Reduction]]+T_DataComboFile[[#This Row],[2023/24 Increase]]","v":0}]
["NAT|Non-transfer item","36|Consultants: Business and advisory services","2021_22","ENE2020",36,4,4,17455,71253,36,4,4,17455,"071253","36|04|04",1,1,2,11,11,"01|01|02|11|11","National","Small Business Development","Enterprise Development and Entrepreneurship","Entrepreneurship","Non-transfer item","Current","Current payments","Goods and services","Consultants: Business and advisory services","Consultants: Business and advisory services","Economic development","Industrialisation and exports","NAT",0,0,1037,0,0,0,0,0,0,0,0,0,0,1,null,{"$f":"IF(T_DataComboFile[[#This Row],[G&S reporting level indicator]]=1,$AX$16,\"Not applicable\")","v":"Not applicable"},{"$f":"IF(AND($AX$16=\"Level 3\",T_DataComboFile[[#This Row],[Econ3]] = \"Goods and services\"),IF(T_DataComboFile[[#This Row],[Econ4]] = T_DataComboFile[[#This Row],[Econ3]],1,0),IF(AND($AX$16=\"Level 4\",T_DataComboFile[[#This Row],[Econ4]] = \"Goods and services\"),0,1))","v":0},{"$f":"T_DataComboFile[[#This Row],[2016/17_Source]]*T_DataComboFile[[#This Row],[G&S reporting level indicator]]","v":0},{"$f":"T_DataComboFile[[#This Row],[2017/18_Source]]*T_DataComboFile[[#This Row],[G&S reporting level indicator]]","v":0},{"$f":"T_DataComboFile[[#This Row],[2018/19_Source]]*T_DataComboFile[[#This Row],[G&S reporting level indicator]]","v":0},{"$f":"T_DataComboFile[[#This Row],[2019/20 Main appropriation_Source]]*T_DataComboFile[[#This Row],[G&S reporting level indicator]]","v":0},{"$f":"T_DataComboFile[[#This Row],[2019/20 Adjusted appropriation_Source]]*T_DataComboFile[[#This Row],[G&S reporting level indicator]]","v":0},{"$f":"T_DataComboFile[[#This Row],[2019/20 Revised estimate_Source]]*T_DataComboFile[[#This Row],[G&S reporting level indicator]]","v":0},{"$f":"T_DataComboFile[[#This Row],[2019/20 Preliminary outcome_Source]]*T_DataComboFile[[#This Row],[G&S reporting level indicator]]","v":0},{"$f":"T_DataComboFile[[#This Row],[2020/21 Original_Source]]*T_DataComboFile[[#This Row],[G&S reporting level indicator]]","v":0},{"$f":"T_DataComboFile[[#This Row],[2020/21 SAB_Source]]*T_DataComboFile[[#This Row],[G&S reporting level indicator]]","v":0},{"$f":"T_DataComboFile[[#This Row],[2020/21 Baseline_Source]]*T_DataComboFile[[#This Row],[G&S reporting level indicator]]","v":0},{"$f":"T_DataComboFile[[#This Row],[2021/22 Baseline_Source]]*T_DataComboFile[[#This Row],[G&S reporting level indicator]]","v":0},{"$f":"T_DataComboFile[[#This Row],[2022/23 Baseline_Source]]*T_DataComboFile[[#This Row],[G&S reporting level indicator]]","v":0},{"$f":"T_DataComboFile[[#This Row],[2023/24 Baseline_Source]]*T_DataComboFile[[#This Row],[G&S reporting level indicator]]","v":0},null,null,null,null,null,null,{"$f":"T_DataComboFile[[#This Row],[2021/22 Baseline]]+T_DataComboFile[[#This Row],[2021/22 Reduction]]+T_DataComboFile[[#This Row],[2021/22 Increase]]","v":0},{"$f":"T_DataComboFile[[#This Row],[2022/23 Baseline]]+T_DataComboFile[[#This Row],[2022/23 Reduction]]+T_DataComboFile[[#This Row],[2022/23 Increase]]","v":0},{"$f":"T_DataComboFile[[#This Row],[2023/24 Baseline]]+T_DataComboFile[[#This Row],[2023/24 Reduction]]+T_DataComboFile[[#This Row],[2023/24 Increase]]","v":0}]
[null,null,"2021_22","ENE2020",36,4,4,null,71254,36,4,4,null,"071254","36|04|04",1,1,2,12,12,"01|01|02|12|12","National","Small Business Development","Enterprise Development and Entrepreneurship","Entrepreneurship",null,"Current","Current payments","Goods and services","Infrastructure and planning services","Infrastructure and planning services",null,null,null,0,0,0,0,0,0,0,0,0,0,0,0,0,0,null,{"$f":"IF(T_DataComboFile[[#This Row],[G&S reporting level indicator]]=1,$AX$16,\"Not applicable\")","v":"Not applicable"},{"$f":"IF(AND($AX$16=\"Level 3\",T_DataComboFile[[#This Row],[Econ3]] = \"Goods and services\"),IF(T_DataComboFile[[#This Row],[Econ4]] = T_DataComboFile[[#This Row],[Econ3]],1,0),IF(AND($AX$16=\"Level 4\",T_DataComboFile[[#This Row],[Econ4]] = \"Goods and services\"),0,1))","v":0},{"$f":"T_DataComboFile[[#This Row],[2016/17_Source]]*T_DataComboFile[[#This Row],[G&S reporting level indicator]]","v":0},{"$f":"T_DataComboFile[[#This Row],[2017/18_Source]]*T_DataComboFile[[#This Row],[G&S reporting level indicator]]","v":0},{"$f":"T_DataComboFile[[#This Row],[2018/19_Source]]*T_DataComboFile[[#This Row],[G&S reporting level indicator]]","v":0},{"$f":"T_DataComboFile[[#This Row],[2019/20 Main appropriation_Source]]*T_DataComboFile[[#This Row],[G&S reporting level indicator]]","v":0},{"$f":"T_DataComboFile[[#This Row],[2019/20 Adjusted appropriation_Source]]*T_DataComboFile[[#This Row],[G&S reporting level indicator]]","v":0},{"$f":"T_DataComboFile[[#This Row],[2019/20 Revised estimate_Source]]*T_DataComboFile[[#This Row],[G&S reporting level indicator]]","v":0},{"$f":"T_DataComboFile[[#This Row],[2019/20 Preliminary outcome_Source]]*T_DataComboFile[[#This Row],[G&S reporting level indicator]]","v":0},{"$f":"T_DataComboFile[[#This Row],[2020/21 Original_Source]]*T_DataComboFile[[#This Row],[G&S reporting level indicator]]","v":0},{"$f":"T_DataComboFile[[#This Row],[2020/21 SAB_Source]]*T_DataComboFile[[#This Row],[G&S reporting level indicator]]","v":0},{"$f":"T_DataComboFile[[#This Row],[2020/21 Baseline_Source]]*T_DataComboFile[[#This Row],[G&S reporting level indicator]]","v":0},{"$f":"T_DataComboFile[[#This Row],[2021/22 Baseline_Source]]*T_DataComboFile[[#This Row],[G&S reporting level indicator]]","v":0},{"$f":"T_DataComboFile[[#This Row],[2022/23 Baseline_Source]]*T_DataComboFile[[#This Row],[G&S reporting level indicator]]","v":0},{"$f":"T_DataComboFile[[#This Row],[2023/24 Baseline_Source]]*T_DataComboFile[[#This Row],[G&S reporting level indicator]]","v":0},null,null,null,null,null,null,{"$f":"T_DataComboFile[[#This Row],[2021/22 Baseline]]+T_DataComboFile[[#This Row],[2021/22 Reduction]]+T_DataComboFile[[#This Row],[2021/22 Increase]]","v":0},{"$f":"T_DataComboFile[[#This Row],[2022/23 Baseline]]+T_DataComboFile[[#This Row],[2022/23 Reduction]]+T_DataComboFile[[#This Row],[2022/23 Increase]]","v":0},{"$f":"T_DataComboFile[[#This Row],[2023/24 Baseline]]+T_DataComboFile[[#This Row],[2023/24 Reduction]]+T_DataComboFile[[#This Row],[2023/24 Increase]]","v":0}]
[null,null,"2021_22","ENE2020",36,4,4,null,71255,36,4,4,null,"071255","36|04|04",1,1,2,13,13,"01|01|02|13|13","National","Small Business Development","Enterprise Development and Entrepreneurship","Entrepreneurship",null,"Current","Current payments","Goods and services","Laboratory services","Laboratory services",null,null,null,0,0,0,0,0,0,0,0,0,0,0,0,0,0,null,{"$f":"IF(T_DataComboFile[[#This Row],[G&S reporting level indicator]]=1,$AX$16,\"Not applicable\")","v":"Not applicable"},{"$f":"IF(AND($AX$16=\"Level 3\",T_DataComboFile[[#This Row],[Econ3]] = \"Goods and services\"),IF(T_DataComboFile[[#This Row],[Econ4]] = T_DataComboFile[[#This Row],[Econ3]],1,0),IF(AND($AX$16=\"Level 4\",T_DataComboFile[[#This Row],[Econ4]] = \"Goods and services\"),0,1))","v":0},{"$f":"T_DataComboFile[[#This Row],[2016/17_Source]]*T_DataComboFile[[#This Row],[G&S reporting level indicator]]","v":0},{"$f":"T_DataComboFile[[#This Row],[2017/18_Source]]*T_DataComboFile[[#This Row],[G&S reporting level indicator]]","v":0},{"$f":"T_DataComboFile[[#This Row],[2018/19_Source]]*T_DataComboFile[[#This Row],[G&S reporting level indicator]]","v":0},{"$f":"T_DataComboFile[[#This Row],[2019/20 Main appropriation_Source]]*T_DataComboFile[[#This Row],[G&S reporting level indicator]]","v":0},{"$f":"T_DataComboFile[[#This Row],[2019/20 Adjusted appropriation_Source]]*T_DataComboFile[[#This Row],[G&S reporting level indicator]]","v":0},{"$f":"T_DataComboFile[[#This Row],[2019/20 Revised estimate_Source]]*T_DataComboFile[[#This Row],[G&S reporting level indicator]]","v":0},{"$f":"T_DataComboFile[[#This Row],[2019/20 Preliminary outcome_Source]]*T_DataComboFile[[#This Row],[G&S reporting level indicator]]","v":0},{"$f":"T_DataComboFile[[#This Row],[2020/21 Original_Source]]*T_DataComboFile[[#This Row],[G&S reporting level indicator]]","v":0},{"$f":"T_DataComboFile[[#This Row],[2020/21 SAB_Source]]*T_DataComboFile[[#This Row],[G&S reporting level indicator]]","v":0},{"$f":"T_DataComboFile[[#This Row],[2020/21 Baseline_Source]]*T_DataComboFile[[#This Row],[G&S reporting level indicator]]","v":0},{"$f":"T_DataComboFile[[#This Row],[2021/22 Baseline_Source]]*T_DataComboFile[[#This Row],[G&S reporting level indicator]]","v":0},{"$f":"T_DataComboFile[[#This Row],[2022/23 Baseline_Source]]*T_DataComboFile[[#This Row],[G&S reporting level indicator]]","v":0},{"$f":"T_DataComboFile[[#This Row],[2023/24 Baseline_Source]]*T_DataComboFile[[#This Row],[G&S reporting level indicator]]","v":0},null,null,null,null,null,null,{"$f":"T_DataComboFile[[#This Row],[2021/22 Baseline]]+T_DataComboFile[[#This Row],[2021/22 Reduction]]+T_DataComboFile[[#This Row],[2021/22 Increase]]","v":0},{"$f":"T_DataComboFile[[#This Row],[2022/23 Baseline]]+T_DataComboFile[[#This Row],[2022/23 Reduction]]+T_DataComboFile[[#This Row],[2022/23 Increase]]","v":0},{"$f":"T_DataComboFile[[#This Row],[2023/24 Baseline]]+T_DataComboFile[[#This Row],[2023/24 Reduction]]+T_DataComboFile[[#This Row],[2023/24 Increase]]","v":0}]
[null,null,"2021_22","ENE2020",36,4,4,null,71256,36,4,4,null,"071256","36|04|04",1,1,2,14,14,"01|01|02|14|14","National","Small Business Development","Enterprise Development and Entrepreneurship","Entrepreneurship",null,"Current","Current payments","Goods and services","Legal services (G&S)","Legal services (G&S)",null,null,null,0,0,0,0,0,0,0,0,0,0,0,0,0,0,null,{"$f":"IF(T_DataComboFile[[#This Row],[G&S reporting level indicator]]=1,$AX$16,\"Not applicable\")","v":"Not applicable"},{"$f":"IF(AND($AX$16=\"Level 3\",T_DataComboFile[[#This Row],[Econ3]] = \"Goods and services\"),IF(T_DataComboFile[[#This Row],[Econ4]] = T_DataComboFile[[#This Row],[Econ3]],1,0),IF(AND($AX$16=\"Level 4\",T_DataComboFile[[#This Row],[Econ4]] = \"Goods and services\"),0,1))","v":0},{"$f":"T_DataComboFile[[#This Row],[2016/17_Source]]*T_DataComboFile[[#This Row],[G&S reporting level indicator]]","v":0},{"$f":"T_DataComboFile[[#This Row],[2017/18_Source]]*T_DataComboFile[[#This Row],[G&S reporting level indicator]]","v":0},{"$f":"T_DataComboFile[[#This Row],[2018/19_Source]]*T_DataComboFile[[#This Row],[G&S reporting level indicator]]","v":0},{"$f":"T_DataComboFile[[#This Row],[2019/20 Main appropriation_Source]]*T_DataComboFile[[#This Row],[G&S reporting level indicator]]","v":0},{"$f":"T_DataComboFile[[#This Row],[2019/20 Adjusted appropriation_Source]]*T_DataComboFile[[#This Row],[G&S reporting level indicator]]","v":0},{"$f":"T_DataComboFile[[#This Row],[2019/20 Revised estimate_Source]]*T_DataComboFile[[#This Row],[G&S reporting level indicator]]","v":0},{"$f":"T_DataComboFile[[#This Row],[2019/20 Preliminary outcome_Source]]*T_DataComboFile[[#This Row],[G&S reporting level indicator]]","v":0},{"$f":"T_DataComboFile[[#This Row],[2020/21 Original_Source]]*T_DataComboFile[[#This Row],[G&S reporting level indicator]]","v":0},{"$f":"T_DataComboFile[[#This Row],[2020/21 SAB_Source]]*T_DataComboFile[[#This Row],[G&S reporting level indicator]]","v":0},{"$f":"T_DataComboFile[[#This Row],[2020/21 Baseline_Source]]*T_DataComboFile[[#This Row],[G&S reporting level indicator]]","v":0},{"$f":"T_DataComboFile[[#This Row],[2021/22 Baseline_Source]]*T_DataComboFile[[#This Row],[G&S reporting level indicator]]","v":0},{"$f":"T_DataComboFile[[#This Row],[2022/23 Baseline_Source]]*T_DataComboFile[[#This Row],[G&S reporting level indicator]]","v":0},{"$f":"T_DataComboFile[[#This Row],[2023/24 Baseline_Source]]*T_DataComboFile[[#This Row],[G&S reporting level indicator]]","v":0},null,null,null,null,null,null,{"$f":"T_DataComboFile[[#This Row],[2021/22 Baseline]]+T_DataComboFile[[#This Row],[2021/22 Reduction]]+T_DataComboFile[[#This Row],[2021/22 Increase]]","v":0},{"$f":"T_DataComboFile[[#This Row],[2022/23 Baseline]]+T_DataComboFile[[#This Row],[2022/23 Reduction]]+T_DataComboFile[[#This Row],[2022/23 Increase]]","v":0},{"$f":"T_DataComboFile[[#This Row],[2023/24 Baseline]]+T_DataComboFile[[#This Row],[2023/24 Reduction]]+T_DataComboFile[[#This Row],[2023/24 Increase]]","v":0}]
[null,null,"2021_22","ENE2020",36,4,4,null,71257,36,4,4,null,"071257","36|04|04",1,1,2,15,15,"01|01|02|15|15","National","Small Business Development","Enterprise Development and Entrepreneurship","Entrepreneurship",null,"Current","Current payments","Goods and services","Science and technological services","Science and technological services",null,null,null,0,0,0,0,0,0,0,0,0,0,0,0,0,0,null,{"$f":"IF(T_DataComboFile[[#This Row],[G&S reporting level indicator]]=1,$AX$16,\"Not applicable\")","v":"Not applicable"},{"$f":"IF(AND($AX$16=\"Level 3\",T_DataComboFile[[#This Row],[Econ3]] = \"Goods and services\"),IF(T_DataComboFile[[#This Row],[Econ4]] = T_DataComboFile[[#This Row],[Econ3]],1,0),IF(AND($AX$16=\"Level 4\",T_DataComboFile[[#This Row],[Econ4]] = \"Goods and services\"),0,1))","v":0},{"$f":"T_DataComboFile[[#This Row],[2016/17_Source]]*T_DataComboFile[[#This Row],[G&S reporting level indicator]]","v":0},{"$f":"T_DataComboFile[[#This Row],[2017/18_Source]]*T_DataComboFile[[#This Row],[G&S reporting level indicator]]","v":0},{"$f":"T_DataComboFile[[#This Row],[2018/19_Source]]*T_DataComboFile[[#This Row],[G&S reporting level indicator]]","v":0},{"$f":"T_DataComboFile[[#This Row],[2019/20 Main appropriation_Source]]*T_DataComboFile[[#This Row],[G&S reporting level indicator]]","v":0},{"$f":"T_DataComboFile[[#This Row],[2019/20 Adjusted appropriation_Source]]*T_DataComboFile[[#This Row],[G&S reporting level indicator]]","v":0},{"$f":"T_DataComboFile[[#This Row],[2019/20 Revised estimate_Source]]*T_DataComboFile[[#This Row],[G&S reporting level indicator]]","v":0},{"$f":"T_DataComboFile[[#This Row],[2019/20 Preliminary outcome_Source]]*T_DataComboFile[[#This Row],[G&S reporting level indicator]]","v":0},{"$f":"T_DataComboFile[[#This Row],[2020/21 Original_Source]]*T_DataComboFile[[#This Row],[G&S reporting level indicator]]","v":0},{"$f":"T_DataComboFile[[#This Row],[2020/21 SAB_Source]]*T_DataComboFile[[#This Row],[G&S reporting level indicator]]","v":0},{"$f":"T_DataComboFile[[#This Row],[2020/21 Baseline_Source]]*T_DataComboFile[[#This Row],[G&S reporting level indicator]]","v":0},{"$f":"T_DataComboFile[[#This Row],[2021/22 Baseline_Source]]*T_DataComboFile[[#This Row],[G&S reporting level indicator]]","v":0},{"$f":"T_DataComboFile[[#This Row],[2022/23 Baseline_Source]]*T_DataComboFile[[#This Row],[G&S reporting level indicator]]","v":0},{"$f":"T_DataComboFile[[#This Row],[2023/24 Baseline_Source]]*T_DataComboFile[[#This Row],[G&S reporting level indicator]]","v":0},null,null,null,null,null,null,{"$f":"T_DataComboFile[[#This Row],[2021/22 Baseline]]+T_DataComboFile[[#This Row],[2021/22 Reduction]]+T_DataComboFile[[#This Row],[2021/22 Increase]]","v":0},{"$f":"T_DataComboFile[[#This Row],[2022/23 Baseline]]+T_DataComboFile[[#This Row],[2022/23 Reduction]]+T_DataComboFile[[#This Row],[2022/23 Increase]]","v":0},{"$f":"T_DataComboFile[[#This Row],[2023/24 Baseline]]+T_DataComboFile[[#This Row],[2023/24 Reduction]]+T_DataComboFile[[#This Row],[2023/24 Increase]]","v":0}]
["NAT|Non-transfer item","36|Contractors","2021_22","ENE2020",36,4,4,17456,71258,36,4,4,17456,"071258","36|04|04",1,1,2,16,16,"01|01|02|16|16","National","Small Business Development","Enterprise Development and Entrepreneurship","Entrepreneurship","Non-transfer item","Current","Current payments","Goods and services","Contractors","Contractors","Economic development","Industrialisation and exports","NAT",0,0,0,500,500,500,500,0,0,0,0,0,0,1,null,{"$f":"IF(T_DataComboFile[[#This Row],[G&S reporting level indicator]]=1,$AX$16,\"Not applicable\")","v":"Not applicable"},{"$f":"IF(AND($AX$16=\"Level 3\",T_DataComboFile[[#This Row],[Econ3]] = \"Goods and services\"),IF(T_DataComboFile[[#This Row],[Econ4]] = T_DataComboFile[[#This Row],[Econ3]],1,0),IF(AND($AX$16=\"Level 4\",T_DataComboFile[[#This Row],[Econ4]] = \"Goods and services\"),0,1))","v":0},{"$f":"T_DataComboFile[[#This Row],[2016/17_Source]]*T_DataComboFile[[#This Row],[G&S reporting level indicator]]","v":0},{"$f":"T_DataComboFile[[#This Row],[2017/18_Source]]*T_DataComboFile[[#This Row],[G&S reporting level indicator]]","v":0},{"$f":"T_DataComboFile[[#This Row],[2018/19_Source]]*T_DataComboFile[[#This Row],[G&S reporting level indicator]]","v":0},{"$f":"T_DataComboFile[[#This Row],[2019/20 Main appropriation_Source]]*T_DataComboFile[[#This Row],[G&S reporting level indicator]]","v":0},{"$f":"T_DataComboFile[[#This Row],[2019/20 Adjusted appropriation_Source]]*T_DataComboFile[[#This Row],[G&S reporting level indicator]]","v":0},{"$f":"T_DataComboFile[[#This Row],[2019/20 Revised estimate_Source]]*T_DataComboFile[[#This Row],[G&S reporting level indicator]]","v":0},{"$f":"T_DataComboFile[[#This Row],[2019/20 Preliminary outcome_Source]]*T_DataComboFile[[#This Row],[G&S reporting level indicator]]","v":0},{"$f":"T_DataComboFile[[#This Row],[2020/21 Original_Source]]*T_DataComboFile[[#This Row],[G&S reporting level indicator]]","v":0},{"$f":"T_DataComboFile[[#This Row],[2020/21 SAB_Source]]*T_DataComboFile[[#This Row],[G&S reporting level indicator]]","v":0},{"$f":"T_DataComboFile[[#This Row],[2020/21 Baseline_Source]]*T_DataComboFile[[#This Row],[G&S reporting level indicator]]","v":0},{"$f":"T_DataComboFile[[#This Row],[2021/22 Baseline_Source]]*T_DataComboFile[[#This Row],[G&S reporting level indicator]]","v":0},{"$f":"T_DataComboFile[[#This Row],[2022/23 Baseline_Source]]*T_DataComboFile[[#This Row],[G&S reporting level indicator]]","v":0},{"$f":"T_DataComboFile[[#This Row],[2023/24 Baseline_Source]]*T_DataComboFile[[#This Row],[G&S reporting level indicator]]","v":0},null,null,null,null,null,null,{"$f":"T_DataComboFile[[#This Row],[2021/22 Baseline]]+T_DataComboFile[[#This Row],[2021/22 Reduction]]+T_DataComboFile[[#This Row],[2021/22 Increase]]","v":0},{"$f":"T_DataComboFile[[#This Row],[2022/23 Baseline]]+T_DataComboFile[[#This Row],[2022/23 Reduction]]+T_DataComboFile[[#This Row],[2022/23 Increase]]","v":0},{"$f":"T_DataComboFile[[#This Row],[2023/24 Baseline]]+T_DataComboFile[[#This Row],[2023/24 Reduction]]+T_DataComboFile[[#This Row],[2023/24 Increase]]","v":0}]
[null,null,"2021_22","ENE2020",36,4,4,null,71259,36,4,4,null,"071259","36|04|04",1,1,2,17,17,"01|01|02|17|17","National","Small Business Development","Enterprise Development and Entrepreneurship","Entrepreneurship",null,"Current","Current payments","Goods and services","Agency and support/outsourced services","Agency and support/outsourced services",null,null,null,0,0,0,0,0,0,0,0,0,0,0,0,0,0,null,{"$f":"IF(T_DataComboFile[[#This Row],[G&S reporting level indicator]]=1,$AX$16,\"Not applicable\")","v":"Not applicable"},{"$f":"IF(AND($AX$16=\"Level 3\",T_DataComboFile[[#This Row],[Econ3]] = \"Goods and services\"),IF(T_DataComboFile[[#This Row],[Econ4]] = T_DataComboFile[[#This Row],[Econ3]],1,0),IF(AND($AX$16=\"Level 4\",T_DataComboFile[[#This Row],[Econ4]] = \"Goods and services\"),0,1))","v":0},{"$f":"T_DataComboFile[[#This Row],[2016/17_Source]]*T_DataComboFile[[#This Row],[G&S reporting level indicator]]","v":0},{"$f":"T_DataComboFile[[#This Row],[2017/18_Source]]*T_DataComboFile[[#This Row],[G&S reporting level indicator]]","v":0},{"$f":"T_DataComboFile[[#This Row],[2018/19_Source]]*T_DataComboFile[[#This Row],[G&S reporting level indicator]]","v":0},{"$f":"T_DataComboFile[[#This Row],[2019/20 Main appropriation_Source]]*T_DataComboFile[[#This Row],[G&S reporting level indicator]]","v":0},{"$f":"T_DataComboFile[[#This Row],[2019/20 Adjusted appropriation_Source]]*T_DataComboFile[[#This Row],[G&S reporting level indicator]]","v":0},{"$f":"T_DataComboFile[[#This Row],[2019/20 Revised estimate_Source]]*T_DataComboFile[[#This Row],[G&S reporting level indicator]]","v":0},{"$f":"T_DataComboFile[[#This Row],[2019/20 Preliminary outcome_Source]]*T_DataComboFile[[#This Row],[G&S reporting level indicator]]","v":0},{"$f":"T_DataComboFile[[#This Row],[2020/21 Original_Source]]*T_DataComboFile[[#This Row],[G&S reporting level indicator]]","v":0},{"$f":"T_DataComboFile[[#This Row],[2020/21 SAB_Source]]*T_DataComboFile[[#This Row],[G&S reporting level indicator]]","v":0},{"$f":"T_DataComboFile[[#This Row],[2020/21 Baseline_Source]]*T_DataComboFile[[#This Row],[G&S reporting level indicator]]","v":0},{"$f":"T_DataComboFile[[#This Row],[2021/22 Baseline_Source]]*T_DataComboFile[[#This Row],[G&S reporting level indicator]]","v":0},{"$f":"T_DataComboFile[[#This Row],[2022/23 Baseline_Source]]*T_DataComboFile[[#This Row],[G&S reporting level indicator]]","v":0},{"$f":"T_DataComboFile[[#This Row],[2023/24 Baseline_Source]]*T_DataComboFile[[#This Row],[G&S reporting level indicator]]","v":0},null,null,null,null,null,null,{"$f":"T_DataComboFile[[#This Row],[2021/22 Baseline]]+T_DataComboFile[[#This Row],[2021/22 Reduction]]+T_DataComboFile[[#This Row],[2021/22 Increase]]","v":0},{"$f":"T_DataComboFile[[#This Row],[2022/23 Baseline]]+T_DataComboFile[[#This Row],[2022/23 Reduction]]+T_DataComboFile[[#This Row],[2022/23 Increase]]","v":0},{"$f":"T_DataComboFile[[#This Row],[2023/24 Baseline]]+T_DataComboFile[[#This Row],[2023/24 Reduction]]+T_DataComboFile[[#This Row],[2023/24 Increase]]","v":0}]
[null,null,"2021_22","ENE2020",36,4,4,null,71260,36,4,4,null,"071260","36|04|04",1,1,2,18,18,"01|01|02|18|18","National","Small Business Development","Enterprise Development and Entrepreneurship","Entrepreneurship",null,"Current","Current payments","Goods and services","Entertainment","Entertainment",null,null,null,0,0,0,0,0,0,0,0,0,0,0,0,0,0,null,{"$f":"IF(T_DataComboFile[[#This Row],[G&S reporting level indicator]]=1,$AX$16,\"Not applicable\")","v":"Not applicable"},{"$f":"IF(AND($AX$16=\"Level 3\",T_DataComboFile[[#This Row],[Econ3]] = \"Goods and services\"),IF(T_DataComboFile[[#This Row],[Econ4]] = T_DataComboFile[[#This Row],[Econ3]],1,0),IF(AND($AX$16=\"Level 4\",T_DataComboFile[[#This Row],[Econ4]] = \"Goods and services\"),0,1))","v":0},{"$f":"T_DataComboFile[[#This Row],[2016/17_Source]]*T_DataComboFile[[#This Row],[G&S reporting level indicator]]","v":0},{"$f":"T_DataComboFile[[#This Row],[2017/18_Source]]*T_DataComboFile[[#This Row],[G&S reporting level indicator]]","v":0},{"$f":"T_DataComboFile[[#This Row],[2018/19_Source]]*T_DataComboFile[[#This Row],[G&S reporting level indicator]]","v":0},{"$f":"T_DataComboFile[[#This Row],[2019/20 Main appropriation_Source]]*T_DataComboFile[[#This Row],[G&S reporting level indicator]]","v":0},{"$f":"T_DataComboFile[[#This Row],[2019/20 Adjusted appropriation_Source]]*T_DataComboFile[[#This Row],[G&S reporting level indicator]]","v":0},{"$f":"T_DataComboFile[[#This Row],[2019/20 Revised estimate_Source]]*T_DataComboFile[[#This Row],[G&S reporting level indicator]]","v":0},{"$f":"T_DataComboFile[[#This Row],[2019/20 Preliminary outcome_Source]]*T_DataComboFile[[#This Row],[G&S reporting level indicator]]","v":0},{"$f":"T_DataComboFile[[#This Row],[2020/21 Original_Source]]*T_DataComboFile[[#This Row],[G&S reporting level indicator]]","v":0},{"$f":"T_DataComboFile[[#This Row],[2020/21 SAB_Source]]*T_DataComboFile[[#This Row],[G&S reporting level indicator]]","v":0},{"$f":"T_DataComboFile[[#This Row],[2020/21 Baseline_Source]]*T_DataComboFile[[#This Row],[G&S reporting level indicator]]","v":0},{"$f":"T_DataComboFile[[#This Row],[2021/22 Baseline_Source]]*T_DataComboFile[[#This Row],[G&S reporting level indicator]]","v":0},{"$f":"T_DataComboFile[[#This Row],[2022/23 Baseline_Source]]*T_DataComboFile[[#This Row],[G&S reporting level indicator]]","v":0},{"$f":"T_DataComboFile[[#This Row],[2023/24 Baseline_Source]]*T_DataComboFile[[#This Row],[G&S reporting level indicator]]","v":0},null,null,null,null,null,null,{"$f":"T_DataComboFile[[#This Row],[2021/22 Baseline]]+T_DataComboFile[[#This Row],[2021/22 Reduction]]+T_DataComboFile[[#This Row],[2021/22 Increase]]","v":0},{"$f":"T_DataComboFile[[#This Row],[2022/23 Baseline]]+T_DataComboFile[[#This Row],[2022/23 Reduction]]+T_DataComboFile[[#This Row],[2022/23 Increase]]","v":0},{"$f":"T_DataComboFile[[#This Row],[2023/24 Baseline]]+T_DataComboFile[[#This Row],[2023/24 Reduction]]+T_DataComboFile[[#This Row],[2023/24 Increase]]","v":0}]
[null,null,"2021_22","ENE2020",36,4,4,null,71261,36,4,4,null,"071261","36|04|04",1,1,2,19,19,"01|01|02|19|19","National","Small Business Development","Enterprise Development and Entrepreneurship","Entrepreneurship",null,"Current","Current payments","Goods and services","Fleet services (including government motor transport)","Fleet services (including government motor transport)",null,null,null,0,0,0,0,0,0,0,0,0,0,0,0,0,0,null,{"$f":"IF(T_DataComboFile[[#This Row],[G&S reporting level indicator]]=1,$AX$16,\"Not applicable\")","v":"Not applicable"},{"$f":"IF(AND($AX$16=\"Level 3\",T_DataComboFile[[#This Row],[Econ3]] = \"Goods and services\"),IF(T_DataComboFile[[#This Row],[Econ4]] = T_DataComboFile[[#This Row],[Econ3]],1,0),IF(AND($AX$16=\"Level 4\",T_DataComboFile[[#This Row],[Econ4]] = \"Goods and services\"),0,1))","v":0},{"$f":"T_DataComboFile[[#This Row],[2016/17_Source]]*T_DataComboFile[[#This Row],[G&S reporting level indicator]]","v":0},{"$f":"T_DataComboFile[[#This Row],[2017/18_Source]]*T_DataComboFile[[#This Row],[G&S reporting level indicator]]","v":0},{"$f":"T_DataComboFile[[#This Row],[2018/19_Source]]*T_DataComboFile[[#This Row],[G&S reporting level indicator]]","v":0},{"$f":"T_DataComboFile[[#This Row],[2019/20 Main appropriation_Source]]*T_DataComboFile[[#This Row],[G&S reporting level indicator]]","v":0},{"$f":"T_DataComboFile[[#This Row],[2019/20 Adjusted appropriation_Source]]*T_DataComboFile[[#This Row],[G&S reporting level indicator]]","v":0},{"$f":"T_DataComboFile[[#This Row],[2019/20 Revised estimate_Source]]*T_DataComboFile[[#This Row],[G&S reporting level indicator]]","v":0},{"$f":"T_DataComboFile[[#This Row],[2019/20 Preliminary outcome_Source]]*T_DataComboFile[[#This Row],[G&S reporting level indicator]]","v":0},{"$f":"T_DataComboFile[[#This Row],[2020/21 Original_Source]]*T_DataComboFile[[#This Row],[G&S reporting level indicator]]","v":0},{"$f":"T_DataComboFile[[#This Row],[2020/21 SAB_Source]]*T_DataComboFile[[#This Row],[G&S reporting level indicator]]","v":0},{"$f":"T_DataComboFile[[#This Row],[2020/21 Baseline_Source]]*T_DataComboFile[[#This Row],[G&S reporting level indicator]]","v":0},{"$f":"T_DataComboFile[[#This Row],[2021/22 Baseline_Source]]*T_DataComboFile[[#This Row],[G&S reporting level indicator]]","v":0},{"$f":"T_DataComboFile[[#This Row],[2022/23 Baseline_Source]]*T_DataComboFile[[#This Row],[G&S reporting level indicator]]","v":0},{"$f":"T_DataComboFile[[#This Row],[2023/24 Baseline_Source]]*T_DataComboFile[[#This Row],[G&S reporting level indicator]]","v":0},null,null,null,null,null,null,{"$f":"T_DataComboFile[[#This Row],[2021/22 Baseline]]+T_DataComboFile[[#This Row],[2021/22 Reduction]]+T_DataComboFile[[#This Row],[2021/22 Increase]]","v":0},{"$f":"T_DataComboFile[[#This Row],[2022/23 Baseline]]+T_DataComboFile[[#This Row],[2022/23 Reduction]]+T_DataComboFile[[#This Row],[2022/23 Increase]]","v":0},{"$f":"T_DataComboFile[[#This Row],[2023/24 Baseline]]+T_DataComboFile[[#This Row],[2023/24 Reduction]]+T_DataComboFile[[#This Row],[2023/24 Increase]]","v":0}]
[null,null,"2021_22","ENE2020",36,4,4,null,71262,36,4,4,null,"071262","36|04|04",1,1,2,20,20,"01|01|02|20|20","National","Small Business Development","Enterprise Development and Entrepreneurship","Entrepreneurship",null,"Current","Current payments","Goods and services","Housing","Housing",null,null,null,0,0,0,0,0,0,0,0,0,0,0,0,0,0,null,{"$f":"IF(T_DataComboFile[[#This Row],[G&S reporting level indicator]]=1,$AX$16,\"Not applicable\")","v":"Not applicable"},{"$f":"IF(AND($AX$16=\"Level 3\",T_DataComboFile[[#This Row],[Econ3]] = \"Goods and services\"),IF(T_DataComboFile[[#This Row],[Econ4]] = T_DataComboFile[[#This Row],[Econ3]],1,0),IF(AND($AX$16=\"Level 4\",T_DataComboFile[[#This Row],[Econ4]] = \"Goods and services\"),0,1))","v":0},{"$f":"T_DataComboFile[[#This Row],[2016/17_Source]]*T_DataComboFile[[#This Row],[G&S reporting level indicator]]","v":0},{"$f":"T_DataComboFile[[#This Row],[2017/18_Source]]*T_DataComboFile[[#This Row],[G&S reporting level indicator]]","v":0},{"$f":"T_DataComboFile[[#This Row],[2018/19_Source]]*T_DataComboFile[[#This Row],[G&S reporting level indicator]]","v":0},{"$f":"T_DataComboFile[[#This Row],[2019/20 Main appropriation_Source]]*T_DataComboFile[[#This Row],[G&S reporting level indicator]]","v":0},{"$f":"T_DataComboFile[[#This Row],[2019/20 Adjusted appropriation_Source]]*T_DataComboFile[[#This Row],[G&S reporting level indicator]]","v":0},{"$f":"T_DataComboFile[[#This Row],[2019/20 Revised estimate_Source]]*T_DataComboFile[[#This Row],[G&S reporting level indicator]]","v":0},{"$f":"T_DataComboFile[[#This Row],[2019/20 Preliminary outcome_Source]]*T_DataComboFile[[#This Row],[G&S reporting level indicator]]","v":0},{"$f":"T_DataComboFile[[#This Row],[2020/21 Original_Source]]*T_DataComboFile[[#This Row],[G&S reporting level indicator]]","v":0},{"$f":"T_DataComboFile[[#This Row],[2020/21 SAB_Source]]*T_DataComboFile[[#This Row],[G&S reporting level indicator]]","v":0},{"$f":"T_DataComboFile[[#This Row],[2020/21 Baseline_Source]]*T_DataComboFile[[#This Row],[G&S reporting level indicator]]","v":0},{"$f":"T_DataComboFile[[#This Row],[2021/22 Baseline_Source]]*T_DataComboFile[[#This Row],[G&S reporting level indicator]]","v":0},{"$f":"T_DataComboFile[[#This Row],[2022/23 Baseline_Source]]*T_DataComboFile[[#This Row],[G&S reporting level indicator]]","v":0},{"$f":"T_DataComboFile[[#This Row],[2023/24 Baseline_Source]]*T_DataComboFile[[#This Row],[G&S reporting level indicator]]","v":0},null,null,null,null,null,null,{"$f":"T_DataComboFile[[#This Row],[2021/22 Baseline]]+T_DataComboFile[[#This Row],[2021/22 Reduction]]+T_DataComboFile[[#This Row],[2021/22 Increase]]","v":0},{"$f":"T_DataComboFile[[#This Row],[2022/23 Baseline]]+T_DataComboFile[[#This Row],[2022/23 Reduction]]+T_DataComboFile[[#This Row],[2022/23 Increase]]","v":0},{"$f":"T_DataComboFile[[#This Row],[2023/24 Baseline]]+T_DataComboFile[[#This Row],[2023/24 Reduction]]+T_DataComboFile[[#This Row],[2023/24 Increase]]","v":0}]
[null,null,"2021_22","ENE2020",36,4,4,null,71263,36,4,4,null,"071263","36|04|04",1,1,2,21,21,"01|01|02|21|21","National","Small Business Development","Enterprise Development and Entrepreneurship","Entrepreneurship",null,"Current","Current payments","Goods and services","Inventory: Clothing material and accessories","Inventory: Clothing material and accessories",null,null,null,0,0,0,0,0,0,0,0,0,0,0,0,0,0,null,{"$f":"IF(T_DataComboFile[[#This Row],[G&S reporting level indicator]]=1,$AX$16,\"Not applicable\")","v":"Not applicable"},{"$f":"IF(AND($AX$16=\"Level 3\",T_DataComboFile[[#This Row],[Econ3]] = \"Goods and services\"),IF(T_DataComboFile[[#This Row],[Econ4]] = T_DataComboFile[[#This Row],[Econ3]],1,0),IF(AND($AX$16=\"Level 4\",T_DataComboFile[[#This Row],[Econ4]] = \"Goods and services\"),0,1))","v":0},{"$f":"T_DataComboFile[[#This Row],[2016/17_Source]]*T_DataComboFile[[#This Row],[G&S reporting level indicator]]","v":0},{"$f":"T_DataComboFile[[#This Row],[2017/18_Source]]*T_DataComboFile[[#This Row],[G&S reporting level indicator]]","v":0},{"$f":"T_DataComboFile[[#This Row],[2018/19_Source]]*T_DataComboFile[[#This Row],[G&S reporting level indicator]]","v":0},{"$f":"T_DataComboFile[[#This Row],[2019/20 Main appropriation_Source]]*T_DataComboFile[[#This Row],[G&S reporting level indicator]]","v":0},{"$f":"T_DataComboFile[[#This Row],[2019/20 Adjusted appropriation_Source]]*T_DataComboFile[[#This Row],[G&S reporting level indicator]]","v":0},{"$f":"T_DataComboFile[[#This Row],[2019/20 Revised estimate_Source]]*T_DataComboFile[[#This Row],[G&S reporting level indicator]]","v":0},{"$f":"T_DataComboFile[[#This Row],[2019/20 Preliminary outcome_Source]]*T_DataComboFile[[#This Row],[G&S reporting level indicator]]","v":0},{"$f":"T_DataComboFile[[#This Row],[2020/21 Original_Source]]*T_DataComboFile[[#This Row],[G&S reporting level indicator]]","v":0},{"$f":"T_DataComboFile[[#This Row],[2020/21 SAB_Source]]*T_DataComboFile[[#This Row],[G&S reporting level indicator]]","v":0},{"$f":"T_DataComboFile[[#This Row],[2020/21 Baseline_Source]]*T_DataComboFile[[#This Row],[G&S reporting level indicator]]","v":0},{"$f":"T_DataComboFile[[#This Row],[2021/22 Baseline_Source]]*T_DataComboFile[[#This Row],[G&S reporting level indicator]]","v":0},{"$f":"T_DataComboFile[[#This Row],[2022/23 Baseline_Source]]*T_DataComboFile[[#This Row],[G&S reporting level indicator]]","v":0},{"$f":"T_DataComboFile[[#This Row],[2023/24 Baseline_Source]]*T_DataComboFile[[#This Row],[G&S reporting level indicator]]","v":0},null,null,null,null,null,null,{"$f":"T_DataComboFile[[#This Row],[2021/22 Baseline]]+T_DataComboFile[[#This Row],[2021/22 Reduction]]+T_DataComboFile[[#This Row],[2021/22 Increase]]","v":0},{"$f":"T_DataComboFile[[#This Row],[2022/23 Baseline]]+T_DataComboFile[[#This Row],[2022/23 Reduction]]+T_DataComboFile[[#This Row],[2022/23 Increase]]","v":0},{"$f":"T_DataComboFile[[#This Row],[2023/24 Baseline]]+T_DataComboFile[[#This Row],[2023/24 Reduction]]+T_DataComboFile[[#This Row],[2023/24 Increase]]","v":0}]
[null,null,"2021_22","ENE2020",36,4,4,null,71264,36,4,4,null,"071264","36|04|04",1,1,2,22,22,"01|01|02|22|22","National","Small Business Development","Enterprise Development and Entrepreneurship","Entrepreneurship",null,"Current","Current payments","Goods and services","Inventory: Farming supplies","Inventory: Farming supplies",null,null,null,0,0,0,0,0,0,0,0,0,0,0,0,0,0,null,{"$f":"IF(T_DataComboFile[[#This Row],[G&S reporting level indicator]]=1,$AX$16,\"Not applicable\")","v":"Not applicable"},{"$f":"IF(AND($AX$16=\"Level 3\",T_DataComboFile[[#This Row],[Econ3]] = \"Goods and services\"),IF(T_DataComboFile[[#This Row],[Econ4]] = T_DataComboFile[[#This Row],[Econ3]],1,0),IF(AND($AX$16=\"Level 4\",T_DataComboFile[[#This Row],[Econ4]] = \"Goods and services\"),0,1))","v":0},{"$f":"T_DataComboFile[[#This Row],[2016/17_Source]]*T_DataComboFile[[#This Row],[G&S reporting level indicator]]","v":0},{"$f":"T_DataComboFile[[#This Row],[2017/18_Source]]*T_DataComboFile[[#This Row],[G&S reporting level indicator]]","v":0},{"$f":"T_DataComboFile[[#This Row],[2018/19_Source]]*T_DataComboFile[[#This Row],[G&S reporting level indicator]]","v":0},{"$f":"T_DataComboFile[[#This Row],[2019/20 Main appropriation_Source]]*T_DataComboFile[[#This Row],[G&S reporting level indicator]]","v":0},{"$f":"T_DataComboFile[[#This Row],[2019/20 Adjusted appropriation_Source]]*T_DataComboFile[[#This Row],[G&S reporting level indicator]]","v":0},{"$f":"T_DataComboFile[[#This Row],[2019/20 Revised estimate_Source]]*T_DataComboFile[[#This Row],[G&S reporting level indicator]]","v":0},{"$f":"T_DataComboFile[[#This Row],[2019/20 Preliminary outcome_Source]]*T_DataComboFile[[#This Row],[G&S reporting level indicator]]","v":0},{"$f":"T_DataComboFile[[#This Row],[2020/21 Original_Source]]*T_DataComboFile[[#This Row],[G&S reporting level indicator]]","v":0},{"$f":"T_DataComboFile[[#This Row],[2020/21 SAB_Source]]*T_DataComboFile[[#This Row],[G&S reporting level indicator]]","v":0},{"$f":"T_DataComboFile[[#This Row],[2020/21 Baseline_Source]]*T_DataComboFile[[#This Row],[G&S reporting level indicator]]","v":0},{"$f":"T_DataComboFile[[#This Row],[2021/22 Baseline_Source]]*T_DataComboFile[[#This Row],[G&S reporting level indicator]]","v":0},{"$f":"T_DataComboFile[[#This Row],[2022/23 Baseline_Source]]*T_DataComboFile[[#This Row],[G&S reporting level indicator]]","v":0},{"$f":"T_DataComboFile[[#This Row],[2023/24 Baseline_Source]]*T_DataComboFile[[#This Row],[G&S reporting level indicator]]","v":0},null,null,null,null,null,null,{"$f":"T_DataComboFile[[#This Row],[2021/22 Baseline]]+T_DataComboFile[[#This Row],[2021/22 Reduction]]+T_DataComboFile[[#This Row],[2021/22 Increase]]","v":0},{"$f":"T_DataComboFile[[#This Row],[2022/23 Baseline]]+T_DataComboFile[[#This Row],[2022/23 Reduction]]+T_DataComboFile[[#This Row],[2022/23 Increase]]","v":0},{"$f":"T_DataComboFile[[#This Row],[2023/24 Baseline]]+T_DataComboFile[[#This Row],[2023/24 Reduction]]+T_DataComboFile[[#This Row],[2023/24 Increase]]","v":0}]
[null,null,"2021_22","ENE2020",36,4,4,null,71265,36,4,4,null,"071265","36|04|04",1,1,2,23,23,"01|01|02|23|23","National","Small Business Development","Enterprise Development and Entrepreneurship","Entrepreneurship",null,"Current","Current payments","Goods and services","Inventory: Food and food supplies","Inventory: Food and food supplies",null,null,null,0,0,0,0,0,0,0,0,0,0,0,0,0,0,null,{"$f":"IF(T_DataComboFile[[#This Row],[G&S reporting level indicator]]=1,$AX$16,\"Not applicable\")","v":"Not applicable"},{"$f":"IF(AND($AX$16=\"Level 3\",T_DataComboFile[[#This Row],[Econ3]] = \"Goods and services\"),IF(T_DataComboFile[[#This Row],[Econ4]] = T_DataComboFile[[#This Row],[Econ3]],1,0),IF(AND($AX$16=\"Level 4\",T_DataComboFile[[#This Row],[Econ4]] = \"Goods and services\"),0,1))","v":0},{"$f":"T_DataComboFile[[#This Row],[2016/17_Source]]*T_DataComboFile[[#This Row],[G&S reporting level indicator]]","v":0},{"$f":"T_DataComboFile[[#This Row],[2017/18_Source]]*T_DataComboFile[[#This Row],[G&S reporting level indicator]]","v":0},{"$f":"T_DataComboFile[[#This Row],[2018/19_Source]]*T_DataComboFile[[#This Row],[G&S reporting level indicator]]","v":0},{"$f":"T_DataComboFile[[#This Row],[2019/20 Main appropriation_Source]]*T_DataComboFile[[#This Row],[G&S reporting level indicator]]","v":0},{"$f":"T_DataComboFile[[#This Row],[2019/20 Adjusted appropriation_Source]]*T_DataComboFile[[#This Row],[G&S reporting level indicator]]","v":0},{"$f":"T_DataComboFile[[#This Row],[2019/20 Revised estimate_Source]]*T_DataComboFile[[#This Row],[G&S reporting level indicator]]","v":0},{"$f":"T_DataComboFile[[#This Row],[2019/20 Preliminary outcome_Source]]*T_DataComboFile[[#This Row],[G&S reporting level indicator]]","v":0},{"$f":"T_DataComboFile[[#This Row],[2020/21 Original_Source]]*T_DataComboFile[[#This Row],[G&S reporting level indicator]]","v":0},{"$f":"T_DataComboFile[[#This Row],[2020/21 SAB_Source]]*T_DataComboFile[[#This Row],[G&S reporting level indicator]]","v":0},{"$f":"T_DataComboFile[[#This Row],[2020/21 Baseline_Source]]*T_DataComboFile[[#This Row],[G&S reporting level indicator]]","v":0},{"$f":"T_DataComboFile[[#This Row],[2021/22 Baseline_Source]]*T_DataComboFile[[#This Row],[G&S reporting level indicator]]","v":0},{"$f":"T_DataComboFile[[#This Row],[2022/23 Baseline_Source]]*T_DataComboFile[[#This Row],[G&S reporting level indicator]]","v":0},{"$f":"T_DataComboFile[[#This Row],[2023/24 Baseline_Source]]*T_DataComboFile[[#This Row],[G&S reporting level indicator]]","v":0},null,null,null,null,null,null,{"$f":"T_DataComboFile[[#This Row],[2021/22 Baseline]]+T_DataComboFile[[#This Row],[2021/22 Reduction]]+T_DataComboFile[[#This Row],[2021/22 Increase]]","v":0},{"$f":"T_DataComboFile[[#This Row],[2022/23 Baseline]]+T_DataComboFile[[#This Row],[2022/23 Reduction]]+T_DataComboFile[[#This Row],[2022/23 Increase]]","v":0},{"$f":"T_DataComboFile[[#This Row],[2023/24 Baseline]]+T_DataComboFile[[#This Row],[2023/24 Reduction]]+T_DataComboFile[[#This Row],[2023/24 Increase]]","v":0}]
[null,null,"2021_22","ENE2020",36,4,4,null,71266,36,4,4,null,"071266","36|04|04",1,1,2,24,24,"01|01|02|24|24","National","Small Business Development","Enterprise Development and Entrepreneurship","Entrepreneurship",null,"Current","Current payments","Goods and services","Inventory: Fuel, oil and gas","Inventory: Fuel, oil and gas",null,null,null,0,0,0,0,0,0,0,0,0,0,0,0,0,0,null,{"$f":"IF(T_DataComboFile[[#This Row],[G&S reporting level indicator]]=1,$AX$16,\"Not applicable\")","v":"Not applicable"},{"$f":"IF(AND($AX$16=\"Level 3\",T_DataComboFile[[#This Row],[Econ3]] = \"Goods and services\"),IF(T_DataComboFile[[#This Row],[Econ4]] = T_DataComboFile[[#This Row],[Econ3]],1,0),IF(AND($AX$16=\"Level 4\",T_DataComboFile[[#This Row],[Econ4]] = \"Goods and services\"),0,1))","v":0},{"$f":"T_DataComboFile[[#This Row],[2016/17_Source]]*T_DataComboFile[[#This Row],[G&S reporting level indicator]]","v":0},{"$f":"T_DataComboFile[[#This Row],[2017/18_Source]]*T_DataComboFile[[#This Row],[G&S reporting level indicator]]","v":0},{"$f":"T_DataComboFile[[#This Row],[2018/19_Source]]*T_DataComboFile[[#This Row],[G&S reporting level indicator]]","v":0},{"$f":"T_DataComboFile[[#This Row],[2019/20 Main appropriation_Source]]*T_DataComboFile[[#This Row],[G&S reporting level indicator]]","v":0},{"$f":"T_DataComboFile[[#This Row],[2019/20 Adjusted appropriation_Source]]*T_DataComboFile[[#This Row],[G&S reporting level indicator]]","v":0},{"$f":"T_DataComboFile[[#This Row],[2019/20 Revised estimate_Source]]*T_DataComboFile[[#This Row],[G&S reporting level indicator]]","v":0},{"$f":"T_DataComboFile[[#This Row],[2019/20 Preliminary outcome_Source]]*T_DataComboFile[[#This Row],[G&S reporting level indicator]]","v":0},{"$f":"T_DataComboFile[[#This Row],[2020/21 Original_Source]]*T_DataComboFile[[#This Row],[G&S reporting level indicator]]","v":0},{"$f":"T_DataComboFile[[#This Row],[2020/21 SAB_Source]]*T_DataComboFile[[#This Row],[G&S reporting level indicator]]","v":0},{"$f":"T_DataComboFile[[#This Row],[2020/21 Baseline_Source]]*T_DataComboFile[[#This Row],[G&S reporting level indicator]]","v":0},{"$f":"T_DataComboFile[[#This Row],[2021/22 Baseline_Source]]*T_DataComboFile[[#This Row],[G&S reporting level indicator]]","v":0},{"$f":"T_DataComboFile[[#This Row],[2022/23 Baseline_Source]]*T_DataComboFile[[#This Row],[G&S reporting level indicator]]","v":0},{"$f":"T_DataComboFile[[#This Row],[2023/24 Baseline_Source]]*T_DataComboFile[[#This Row],[G&S reporting level indicator]]","v":0},null,null,null,null,null,null,{"$f":"T_DataComboFile[[#This Row],[2021/22 Baseline]]+T_DataComboFile[[#This Row],[2021/22 Reduction]]+T_DataComboFile[[#This Row],[2021/22 Increase]]","v":0},{"$f":"T_DataComboFile[[#This Row],[2022/23 Baseline]]+T_DataComboFile[[#This Row],[2022/23 Reduction]]+T_DataComboFile[[#This Row],[2022/23 Increase]]","v":0},{"$f":"T_DataComboFile[[#This Row],[2023/24 Baseline]]+T_DataComboFile[[#This Row],[2023/24 Reduction]]+T_DataComboFile[[#This Row],[2023/24 Increase]]","v":0}]
[null,null,"2021_22","ENE2020",36,4,4,null,71267,36,4,4,null,"071267","36|04|04",1,1,2,25,25,"01|01|02|25|25","National","Small Business Development","Enterprise Development and Entrepreneurship","Entrepreneurship",null,"Current","Current payments","Goods and services","Inventory: Learner and teacher support material","Inventory: Learner and teacher support material",null,null,null,0,0,0,0,0,0,0,0,0,0,0,0,0,0,null,{"$f":"IF(T_DataComboFile[[#This Row],[G&S reporting level indicator]]=1,$AX$16,\"Not applicable\")","v":"Not applicable"},{"$f":"IF(AND($AX$16=\"Level 3\",T_DataComboFile[[#This Row],[Econ3]] = \"Goods and services\"),IF(T_DataComboFile[[#This Row],[Econ4]] = T_DataComboFile[[#This Row],[Econ3]],1,0),IF(AND($AX$16=\"Level 4\",T_DataComboFile[[#This Row],[Econ4]] = \"Goods and services\"),0,1))","v":0},{"$f":"T_DataComboFile[[#This Row],[2016/17_Source]]*T_DataComboFile[[#This Row],[G&S reporting level indicator]]","v":0},{"$f":"T_DataComboFile[[#This Row],[2017/18_Source]]*T_DataComboFile[[#This Row],[G&S reporting level indicator]]","v":0},{"$f":"T_DataComboFile[[#This Row],[2018/19_Source]]*T_DataComboFile[[#This Row],[G&S reporting level indicator]]","v":0},{"$f":"T_DataComboFile[[#This Row],[2019/20 Main appropriation_Source]]*T_DataComboFile[[#This Row],[G&S reporting level indicator]]","v":0},{"$f":"T_DataComboFile[[#This Row],[2019/20 Adjusted appropriation_Source]]*T_DataComboFile[[#This Row],[G&S reporting level indicator]]","v":0},{"$f":"T_DataComboFile[[#This Row],[2019/20 Revised estimate_Source]]*T_DataComboFile[[#This Row],[G&S reporting level indicator]]","v":0},{"$f":"T_DataComboFile[[#This Row],[2019/20 Preliminary outcome_Source]]*T_DataComboFile[[#This Row],[G&S reporting level indicator]]","v":0},{"$f":"T_DataComboFile[[#This Row],[2020/21 Original_Source]]*T_DataComboFile[[#This Row],[G&S reporting level indicator]]","v":0},{"$f":"T_DataComboFile[[#This Row],[2020/21 SAB_Source]]*T_DataComboFile[[#This Row],[G&S reporting level indicator]]","v":0},{"$f":"T_DataComboFile[[#This Row],[2020/21 Baseline_Source]]*T_DataComboFile[[#This Row],[G&S reporting level indicator]]","v":0},{"$f":"T_DataComboFile[[#This Row],[2021/22 Baseline_Source]]*T_DataComboFile[[#This Row],[G&S reporting level indicator]]","v":0},{"$f":"T_DataComboFile[[#This Row],[2022/23 Baseline_Source]]*T_DataComboFile[[#This Row],[G&S reporting level indicator]]","v":0},{"$f":"T_DataComboFile[[#This Row],[2023/24 Baseline_Source]]*T_DataComboFile[[#This Row],[G&S reporting level indicator]]","v":0},null,null,null,null,null,null,{"$f":"T_DataComboFile[[#This Row],[2021/22 Baseline]]+T_DataComboFile[[#This Row],[2021/22 Reduction]]+T_DataComboFile[[#This Row],[2021/22 Increase]]","v":0},{"$f":"T_DataComboFile[[#This Row],[2022/23 Baseline]]+T_DataComboFile[[#This Row],[2022/23 Reduction]]+T_DataComboFile[[#This Row],[2022/23 Increase]]","v":0},{"$f":"T_DataComboFile[[#This Row],[2023/24 Baseline]]+T_DataComboFile[[#This Row],[2023/24 Reduction]]+T_DataComboFile[[#This Row],[2023/24 Increase]]","v":0}]
[null,null,"2021_22","ENE2020",36,4,4,null,71268,36,4,4,null,"071268","36|04|04",1,1,2,26,26,"01|01|02|26|26","National","Small Business Development","Enterprise Development and Entrepreneurship","Entrepreneurship",null,"Current","Current payments","Goods and services","Inventory: Materials and supplies","Inventory: Materials and supplies",null,null,null,0,0,0,0,0,0,0,0,0,0,0,0,0,0,null,{"$f":"IF(T_DataComboFile[[#This Row],[G&S reporting level indicator]]=1,$AX$16,\"Not applicable\")","v":"Not applicable"},{"$f":"IF(AND($AX$16=\"Level 3\",T_DataComboFile[[#This Row],[Econ3]] = \"Goods and services\"),IF(T_DataComboFile[[#This Row],[Econ4]] = T_DataComboFile[[#This Row],[Econ3]],1,0),IF(AND($AX$16=\"Level 4\",T_DataComboFile[[#This Row],[Econ4]] = \"Goods and services\"),0,1))","v":0},{"$f":"T_DataComboFile[[#This Row],[2016/17_Source]]*T_DataComboFile[[#This Row],[G&S reporting level indicator]]","v":0},{"$f":"T_DataComboFile[[#This Row],[2017/18_Source]]*T_DataComboFile[[#This Row],[G&S reporting level indicator]]","v":0},{"$f":"T_DataComboFile[[#This Row],[2018/19_Source]]*T_DataComboFile[[#This Row],[G&S reporting level indicator]]","v":0},{"$f":"T_DataComboFile[[#This Row],[2019/20 Main appropriation_Source]]*T_DataComboFile[[#This Row],[G&S reporting level indicator]]","v":0},{"$f":"T_DataComboFile[[#This Row],[2019/20 Adjusted appropriation_Source]]*T_DataComboFile[[#This Row],[G&S reporting level indicator]]","v":0},{"$f":"T_DataComboFile[[#This Row],[2019/20 Revised estimate_Source]]*T_DataComboFile[[#This Row],[G&S reporting level indicator]]","v":0},{"$f":"T_DataComboFile[[#This Row],[2019/20 Preliminary outcome_Source]]*T_DataComboFile[[#This Row],[G&S reporting level indicator]]","v":0},{"$f":"T_DataComboFile[[#This Row],[2020/21 Original_Source]]*T_DataComboFile[[#This Row],[G&S reporting level indicator]]","v":0},{"$f":"T_DataComboFile[[#This Row],[2020/21 SAB_Source]]*T_DataComboFile[[#This Row],[G&S reporting level indicator]]","v":0},{"$f":"T_DataComboFile[[#This Row],[2020/21 Baseline_Source]]*T_DataComboFile[[#This Row],[G&S reporting level indicator]]","v":0},{"$f":"T_DataComboFile[[#This Row],[2021/22 Baseline_Source]]*T_DataComboFile[[#This Row],[G&S reporting level indicator]]","v":0},{"$f":"T_DataComboFile[[#This Row],[2022/23 Baseline_Source]]*T_DataComboFile[[#This Row],[G&S reporting level indicator]]","v":0},{"$f":"T_DataComboFile[[#This Row],[2023/24 Baseline_Source]]*T_DataComboFile[[#This Row],[G&S reporting level indicator]]","v":0},null,null,null,null,null,null,{"$f":"T_DataComboFile[[#This Row],[2021/22 Baseline]]+T_DataComboFile[[#This Row],[2021/22 Reduction]]+T_DataComboFile[[#This Row],[2021/22 Increase]]","v":0},{"$f":"T_DataComboFile[[#This Row],[2022/23 Baseline]]+T_DataComboFile[[#This Row],[2022/23 Reduction]]+T_DataComboFile[[#This Row],[2022/23 Increase]]","v":0},{"$f":"T_DataComboFile[[#This Row],[2023/24 Baseline]]+T_DataComboFile[[#This Row],[2023/24 Reduction]]+T_DataComboFile[[#This Row],[2023/24 Increase]]","v":0}]
[null,null,"2021_22","ENE2020",36,4,4,null,71269,36,4,4,null,"071269","36|04|04",1,1,2,27,27,"01|01|02|27|27","National","Small Business Development","Enterprise Development and Entrepreneurship","Entrepreneurship",null,"Current","Current payments","Goods and services","Inventory: Medical supplies","Inventory: Medical supplies",null,null,null,0,0,0,0,0,0,0,0,0,0,0,0,0,0,null,{"$f":"IF(T_DataComboFile[[#This Row],[G&S reporting level indicator]]=1,$AX$16,\"Not applicable\")","v":"Not applicable"},{"$f":"IF(AND($AX$16=\"Level 3\",T_DataComboFile[[#This Row],[Econ3]] = \"Goods and services\"),IF(T_DataComboFile[[#This Row],[Econ4]] = T_DataComboFile[[#This Row],[Econ3]],1,0),IF(AND($AX$16=\"Level 4\",T_DataComboFile[[#This Row],[Econ4]] = \"Goods and services\"),0,1))","v":0},{"$f":"T_DataComboFile[[#This Row],[2016/17_Source]]*T_DataComboFile[[#This Row],[G&S reporting level indicator]]","v":0},{"$f":"T_DataComboFile[[#This Row],[2017/18_Source]]*T_DataComboFile[[#This Row],[G&S reporting level indicator]]","v":0},{"$f":"T_DataComboFile[[#This Row],[2018/19_Source]]*T_DataComboFile[[#This Row],[G&S reporting level indicator]]","v":0},{"$f":"T_DataComboFile[[#This Row],[2019/20 Main appropriation_Source]]*T_DataComboFile[[#This Row],[G&S reporting level indicator]]","v":0},{"$f":"T_DataComboFile[[#This Row],[2019/20 Adjusted appropriation_Source]]*T_DataComboFile[[#This Row],[G&S reporting level indicator]]","v":0},{"$f":"T_DataComboFile[[#This Row],[2019/20 Revised estimate_Source]]*T_DataComboFile[[#This Row],[G&S reporting level indicator]]","v":0},{"$f":"T_DataComboFile[[#This Row],[2019/20 Preliminary outcome_Source]]*T_DataComboFile[[#This Row],[G&S reporting level indicator]]","v":0},{"$f":"T_DataComboFile[[#This Row],[2020/21 Original_Source]]*T_DataComboFile[[#This Row],[G&S reporting level indicator]]","v":0},{"$f":"T_DataComboFile[[#This Row],[2020/21 SAB_Source]]*T_DataComboFile[[#This Row],[G&S reporting level indicator]]","v":0},{"$f":"T_DataComboFile[[#This Row],[2020/21 Baseline_Source]]*T_DataComboFile[[#This Row],[G&S reporting level indicator]]","v":0},{"$f":"T_DataComboFile[[#This Row],[2021/22 Baseline_Source]]*T_DataComboFile[[#This Row],[G&S reporting level indicator]]","v":0},{"$f":"T_DataComboFile[[#This Row],[2022/23 Baseline_Source]]*T_DataComboFile[[#This Row],[G&S reporting level indicator]]","v":0},{"$f":"T_DataComboFile[[#This Row],[2023/24 Baseline_Source]]*T_DataComboFile[[#This Row],[G&S reporting level indicator]]","v":0},null,null,null,null,null,null,{"$f":"T_DataComboFile[[#This Row],[2021/22 Baseline]]+T_DataComboFile[[#This Row],[2021/22 Reduction]]+T_DataComboFile[[#This Row],[2021/22 Increase]]","v":0},{"$f":"T_DataComboFile[[#This Row],[2022/23 Baseline]]+T_DataComboFile[[#This Row],[2022/23 Reduction]]+T_DataComboFile[[#This Row],[2022/23 Increase]]","v":0},{"$f":"T_DataComboFile[[#This Row],[2023/24 Baseline]]+T_DataComboFile[[#This Row],[2023/24 Reduction]]+T_DataComboFile[[#This Row],[2023/24 Increase]]","v":0}]
[null,null,"2021_22","ENE2020",36,4,4,null,71270,36,4,4,null,"071270","36|04|04",1,1,2,28,28,"01|01|02|28|28","National","Small Business Development","Enterprise Development and Entrepreneurship","Entrepreneurship",null,"Current","Current payments","Goods and services","Inventory: Medicine","Inventory: Medicine",null,null,null,0,0,0,0,0,0,0,0,0,0,0,0,0,0,null,{"$f":"IF(T_DataComboFile[[#This Row],[G&S reporting level indicator]]=1,$AX$16,\"Not applicable\")","v":"Not applicable"},{"$f":"IF(AND($AX$16=\"Level 3\",T_DataComboFile[[#This Row],[Econ3]] = \"Goods and services\"),IF(T_DataComboFile[[#This Row],[Econ4]] = T_DataComboFile[[#This Row],[Econ3]],1,0),IF(AND($AX$16=\"Level 4\",T_DataComboFile[[#This Row],[Econ4]] = \"Goods and services\"),0,1))","v":0},{"$f":"T_DataComboFile[[#This Row],[2016/17_Source]]*T_DataComboFile[[#This Row],[G&S reporting level indicator]]","v":0},{"$f":"T_DataComboFile[[#This Row],[2017/18_Source]]*T_DataComboFile[[#This Row],[G&S reporting level indicator]]","v":0},{"$f":"T_DataComboFile[[#This Row],[2018/19_Source]]*T_DataComboFile[[#This Row],[G&S reporting level indicator]]","v":0},{"$f":"T_DataComboFile[[#This Row],[2019/20 Main appropriation_Source]]*T_DataComboFile[[#This Row],[G&S reporting level indicator]]","v":0},{"$f":"T_DataComboFile[[#This Row],[2019/20 Adjusted appropriation_Source]]*T_DataComboFile[[#This Row],[G&S reporting level indicator]]","v":0},{"$f":"T_DataComboFile[[#This Row],[2019/20 Revised estimate_Source]]*T_DataComboFile[[#This Row],[G&S reporting level indicator]]","v":0},{"$f":"T_DataComboFile[[#This Row],[2019/20 Preliminary outcome_Source]]*T_DataComboFile[[#This Row],[G&S reporting level indicator]]","v":0},{"$f":"T_DataComboFile[[#This Row],[2020/21 Original_Source]]*T_DataComboFile[[#This Row],[G&S reporting level indicator]]","v":0},{"$f":"T_DataComboFile[[#This Row],[2020/21 SAB_Source]]*T_DataComboFile[[#This Row],[G&S reporting level indicator]]","v":0},{"$f":"T_DataComboFile[[#This Row],[2020/21 Baseline_Source]]*T_DataComboFile[[#This Row],[G&S reporting level indicator]]","v":0},{"$f":"T_DataComboFile[[#This Row],[2021/22 Baseline_Source]]*T_DataComboFile[[#This Row],[G&S reporting level indicator]]","v":0},{"$f":"T_DataComboFile[[#This Row],[2022/23 Baseline_Source]]*T_DataComboFile[[#This Row],[G&S reporting level indicator]]","v":0},{"$f":"T_DataComboFile[[#This Row],[2023/24 Baseline_Source]]*T_DataComboFile[[#This Row],[G&S reporting level indicator]]","v":0},null,null,null,null,null,null,{"$f":"T_DataComboFile[[#This Row],[2021/22 Baseline]]+T_DataComboFile[[#This Row],[2021/22 Reduction]]+T_DataComboFile[[#This Row],[2021/22 Increase]]","v":0},{"$f":"T_DataComboFile[[#This Row],[2022/23 Baseline]]+T_DataComboFile[[#This Row],[2022/23 Reduction]]+T_DataComboFile[[#This Row],[2022/23 Increase]]","v":0},{"$f":"T_DataComboFile[[#This Row],[2023/24 Baseline]]+T_DataComboFile[[#This Row],[2023/24 Reduction]]+T_DataComboFile[[#This Row],[2023/24 Increase]]","v":0}]
[null,null,"2021_22","ENE2020",36,4,4,null,71271,36,4,4,null,"071271","36|04|04",1,1,2,29,29,"01|01|02|29|29","National","Small Business Development","Enterprise Development and Entrepreneurship","Entrepreneurship",null,"Current","Current payments","Goods and services","Medsas inventory interface","Medsas inventory interface",null,null,null,0,0,0,0,0,0,0,0,0,0,0,0,0,0,null,{"$f":"IF(T_DataComboFile[[#This Row],[G&S reporting level indicator]]=1,$AX$16,\"Not applicable\")","v":"Not applicable"},{"$f":"IF(AND($AX$16=\"Level 3\",T_DataComboFile[[#This Row],[Econ3]] = \"Goods and services\"),IF(T_DataComboFile[[#This Row],[Econ4]] = T_DataComboFile[[#This Row],[Econ3]],1,0),IF(AND($AX$16=\"Level 4\",T_DataComboFile[[#This Row],[Econ4]] = \"Goods and services\"),0,1))","v":0},{"$f":"T_DataComboFile[[#This Row],[2016/17_Source]]*T_DataComboFile[[#This Row],[G&S reporting level indicator]]","v":0},{"$f":"T_DataComboFile[[#This Row],[2017/18_Source]]*T_DataComboFile[[#This Row],[G&S reporting level indicator]]","v":0},{"$f":"T_DataComboFile[[#This Row],[2018/19_Source]]*T_DataComboFile[[#This Row],[G&S reporting level indicator]]","v":0},{"$f":"T_DataComboFile[[#This Row],[2019/20 Main appropriation_Source]]*T_DataComboFile[[#This Row],[G&S reporting level indicator]]","v":0},{"$f":"T_DataComboFile[[#This Row],[2019/20 Adjusted appropriation_Source]]*T_DataComboFile[[#This Row],[G&S reporting level indicator]]","v":0},{"$f":"T_DataComboFile[[#This Row],[2019/20 Revised estimate_Source]]*T_DataComboFile[[#This Row],[G&S reporting level indicator]]","v":0},{"$f":"T_DataComboFile[[#This Row],[2019/20 Preliminary outcome_Source]]*T_DataComboFile[[#This Row],[G&S reporting level indicator]]","v":0},{"$f":"T_DataComboFile[[#This Row],[2020/21 Original_Source]]*T_DataComboFile[[#This Row],[G&S reporting level indicator]]","v":0},{"$f":"T_DataComboFile[[#This Row],[2020/21 SAB_Source]]*T_DataComboFile[[#This Row],[G&S reporting level indicator]]","v":0},{"$f":"T_DataComboFile[[#This Row],[2020/21 Baseline_Source]]*T_DataComboFile[[#This Row],[G&S reporting level indicator]]","v":0},{"$f":"T_DataComboFile[[#This Row],[2021/22 Baseline_Source]]*T_DataComboFile[[#This Row],[G&S reporting level indicator]]","v":0},{"$f":"T_DataComboFile[[#This Row],[2022/23 Baseline_Source]]*T_DataComboFile[[#This Row],[G&S reporting level indicator]]","v":0},{"$f":"T_DataComboFile[[#This Row],[2023/24 Baseline_Source]]*T_DataComboFile[[#This Row],[G&S reporting level indicator]]","v":0},null,null,null,null,null,null,{"$f":"T_DataComboFile[[#This Row],[2021/22 Baseline]]+T_DataComboFile[[#This Row],[2021/22 Reduction]]+T_DataComboFile[[#This Row],[2021/22 Increase]]","v":0},{"$f":"T_DataComboFile[[#This Row],[2022/23 Baseline]]+T_DataComboFile[[#This Row],[2022/23 Reduction]]+T_DataComboFile[[#This Row],[2022/23 Increase]]","v":0},{"$f":"T_DataComboFile[[#This Row],[2023/24 Baseline]]+T_DataComboFile[[#This Row],[2023/24 Reduction]]+T_DataComboFile[[#This Row],[2023/24 Increase]]","v":0}]
[null,null,"2021_22","ENE2020",36,4,4,null,71272,36,4,4,null,"071272","36|04|04",1,1,2,30,30,"01|01|02|30|30","National","Small Business Development","Enterprise Development and Entrepreneurship","Entrepreneurship",null,"Current","Current payments","Goods and services","Inventory: Other supplies","Inventory: Other supplies",null,null,null,0,0,0,0,0,0,0,0,0,0,0,0,0,0,null,{"$f":"IF(T_DataComboFile[[#This Row],[G&S reporting level indicator]]=1,$AX$16,\"Not applicable\")","v":"Not applicable"},{"$f":"IF(AND($AX$16=\"Level 3\",T_DataComboFile[[#This Row],[Econ3]] = \"Goods and services\"),IF(T_DataComboFile[[#This Row],[Econ4]] = T_DataComboFile[[#This Row],[Econ3]],1,0),IF(AND($AX$16=\"Level 4\",T_DataComboFile[[#This Row],[Econ4]] = \"Goods and services\"),0,1))","v":0},{"$f":"T_DataComboFile[[#This Row],[2016/17_Source]]*T_DataComboFile[[#This Row],[G&S reporting level indicator]]","v":0},{"$f":"T_DataComboFile[[#This Row],[2017/18_Source]]*T_DataComboFile[[#This Row],[G&S reporting level indicator]]","v":0},{"$f":"T_DataComboFile[[#This Row],[2018/19_Source]]*T_DataComboFile[[#This Row],[G&S reporting level indicator]]","v":0},{"$f":"T_DataComboFile[[#This Row],[2019/20 Main appropriation_Source]]*T_DataComboFile[[#This Row],[G&S reporting level indicator]]","v":0},{"$f":"T_DataComboFile[[#This Row],[2019/20 Adjusted appropriation_Source]]*T_DataComboFile[[#This Row],[G&S reporting level indicator]]","v":0},{"$f":"T_DataComboFile[[#This Row],[2019/20 Revised estimate_Source]]*T_DataComboFile[[#This Row],[G&S reporting level indicator]]","v":0},{"$f":"T_DataComboFile[[#This Row],[2019/20 Preliminary outcome_Source]]*T_DataComboFile[[#This Row],[G&S reporting level indicator]]","v":0},{"$f":"T_DataComboFile[[#This Row],[2020/21 Original_Source]]*T_DataComboFile[[#This Row],[G&S reporting level indicator]]","v":0},{"$f":"T_DataComboFile[[#This Row],[2020/21 SAB_Source]]*T_DataComboFile[[#This Row],[G&S reporting level indicator]]","v":0},{"$f":"T_DataComboFile[[#This Row],[2020/21 Baseline_Source]]*T_DataComboFile[[#This Row],[G&S reporting level indicator]]","v":0},{"$f":"T_DataComboFile[[#This Row],[2021/22 Baseline_Source]]*T_DataComboFile[[#This Row],[G&S reporting level indicator]]","v":0},{"$f":"T_DataComboFile[[#This Row],[2022/23 Baseline_Source]]*T_DataComboFile[[#This Row],[G&S reporting level indicator]]","v":0},{"$f":"T_DataComboFile[[#This Row],[2023/24 Baseline_Source]]*T_DataComboFile[[#This Row],[G&S reporting level indicator]]","v":0},null,null,null,null,null,null,{"$f":"T_DataComboFile[[#This Row],[2021/22 Baseline]]+T_DataComboFile[[#This Row],[2021/22 Reduction]]+T_DataComboFile[[#This Row],[2021/22 Increase]]","v":0},{"$f":"T_DataComboFile[[#This Row],[2022/23 Baseline]]+T_DataComboFile[[#This Row],[2022/23 Reduction]]+T_DataComboFile[[#This Row],[2022/23 Increase]]","v":0},{"$f":"T_DataComboFile[[#This Row],[2023/24 Baseline]]+T_DataComboFile[[#This Row],[2023/24 Reduction]]+T_DataComboFile[[#This Row],[2023/24 Increase]]","v":0}]
[null,null,"2021_22","ENE2020",36,4,4,null,71273,36,4,4,null,"071273","36|04|04",1,1,2,31,31,"01|01|02|31|31","National","Small Business Development","Enterprise Development and Entrepreneurship","Entrepreneurship",null,"Current","Current payments","Goods and services","Consumable supplies","Consumable supplies",null,null,null,0,0,0,0,0,0,0,0,0,0,0,0,0,0,null,{"$f":"IF(T_DataComboFile[[#This Row],[G&S reporting level indicator]]=1,$AX$16,\"Not applicable\")","v":"Not applicable"},{"$f":"IF(AND($AX$16=\"Level 3\",T_DataComboFile[[#This Row],[Econ3]] = \"Goods and services\"),IF(T_DataComboFile[[#This Row],[Econ4]] = T_DataComboFile[[#This Row],[Econ3]],1,0),IF(AND($AX$16=\"Level 4\",T_DataComboFile[[#This Row],[Econ4]] = \"Goods and services\"),0,1))","v":0},{"$f":"T_DataComboFile[[#This Row],[2016/17_Source]]*T_DataComboFile[[#This Row],[G&S reporting level indicator]]","v":0},{"$f":"T_DataComboFile[[#This Row],[2017/18_Source]]*T_DataComboFile[[#This Row],[G&S reporting level indicator]]","v":0},{"$f":"T_DataComboFile[[#This Row],[2018/19_Source]]*T_DataComboFile[[#This Row],[G&S reporting level indicator]]","v":0},{"$f":"T_DataComboFile[[#This Row],[2019/20 Main appropriation_Source]]*T_DataComboFile[[#This Row],[G&S reporting level indicator]]","v":0},{"$f":"T_DataComboFile[[#This Row],[2019/20 Adjusted appropriation_Source]]*T_DataComboFile[[#This Row],[G&S reporting level indicator]]","v":0},{"$f":"T_DataComboFile[[#This Row],[2019/20 Revised estimate_Source]]*T_DataComboFile[[#This Row],[G&S reporting level indicator]]","v":0},{"$f":"T_DataComboFile[[#This Row],[2019/20 Preliminary outcome_Source]]*T_DataComboFile[[#This Row],[G&S reporting level indicator]]","v":0},{"$f":"T_DataComboFile[[#This Row],[2020/21 Original_Source]]*T_DataComboFile[[#This Row],[G&S reporting level indicator]]","v":0},{"$f":"T_DataComboFile[[#This Row],[2020/21 SAB_Source]]*T_DataComboFile[[#This Row],[G&S reporting level indicator]]","v":0},{"$f":"T_DataComboFile[[#This Row],[2020/21 Baseline_Source]]*T_DataComboFile[[#This Row],[G&S reporting level indicator]]","v":0},{"$f":"T_DataComboFile[[#This Row],[2021/22 Baseline_Source]]*T_DataComboFile[[#This Row],[G&S reporting level indicator]]","v":0},{"$f":"T_DataComboFile[[#This Row],[2022/23 Baseline_Source]]*T_DataComboFile[[#This Row],[G&S reporting level indicator]]","v":0},{"$f":"T_DataComboFile[[#This Row],[2023/24 Baseline_Source]]*T_DataComboFile[[#This Row],[G&S reporting level indicator]]","v":0},null,null,null,null,null,null,{"$f":"T_DataComboFile[[#This Row],[2021/22 Baseline]]+T_DataComboFile[[#This Row],[2021/22 Reduction]]+T_DataComboFile[[#This Row],[2021/22 Increase]]","v":0},{"$f":"T_DataComboFile[[#This Row],[2022/23 Baseline]]+T_DataComboFile[[#This Row],[2022/23 Reduction]]+T_DataComboFile[[#This Row],[2022/23 Increase]]","v":0},{"$f":"T_DataComboFile[[#This Row],[2023/24 Baseline]]+T_DataComboFile[[#This Row],[2023/24 Reduction]]+T_DataComboFile[[#This Row],[2023/24 Increase]]","v":0}]
["NAT|Non-transfer item","36|Consumables: Stationery, printing and office supplies","2021_22","ENE2020",36,4,4,17457,71274,36,4,4,17457,"071274","36|04|04",1,1,2,32,32,"01|01|02|32|32","National","Small Business Development","Enterprise Development and Entrepreneurship","Entrepreneurship","Non-transfer item","Current","Current payments","Goods and services","Consumables: Stationery, printing and office supplies","Consumables: Stationery, printing and office supplies","Economic development","Industrialisation and exports","NAT",0,0,0,16,16,16,16,5,5,5,5,5,5,1,null,{"$f":"IF(T_DataComboFile[[#This Row],[G&S reporting level indicator]]=1,$AX$16,\"Not applicable\")","v":"Not applicable"},{"$f":"IF(AND($AX$16=\"Level 3\",T_DataComboFile[[#This Row],[Econ3]] = \"Goods and services\"),IF(T_DataComboFile[[#This Row],[Econ4]] = T_DataComboFile[[#This Row],[Econ3]],1,0),IF(AND($AX$16=\"Level 4\",T_DataComboFile[[#This Row],[Econ4]] = \"Goods and services\"),0,1))","v":0},{"$f":"T_DataComboFile[[#This Row],[2016/17_Source]]*T_DataComboFile[[#This Row],[G&S reporting level indicator]]","v":0},{"$f":"T_DataComboFile[[#This Row],[2017/18_Source]]*T_DataComboFile[[#This Row],[G&S reporting level indicator]]","v":0},{"$f":"T_DataComboFile[[#This Row],[2018/19_Source]]*T_DataComboFile[[#This Row],[G&S reporting level indicator]]","v":0},{"$f":"T_DataComboFile[[#This Row],[2019/20 Main appropriation_Source]]*T_DataComboFile[[#This Row],[G&S reporting level indicator]]","v":0},{"$f":"T_DataComboFile[[#This Row],[2019/20 Adjusted appropriation_Source]]*T_DataComboFile[[#This Row],[G&S reporting level indicator]]","v":0},{"$f":"T_DataComboFile[[#This Row],[2019/20 Revised estimate_Source]]*T_DataComboFile[[#This Row],[G&S reporting level indicator]]","v":0},{"$f":"T_DataComboFile[[#This Row],[2019/20 Preliminary outcome_Source]]*T_DataComboFile[[#This Row],[G&S reporting level indicator]]","v":0},{"$f":"T_DataComboFile[[#This Row],[2020/21 Original_Source]]*T_DataComboFile[[#This Row],[G&S reporting level indicator]]","v":0},{"$f":"T_DataComboFile[[#This Row],[2020/21 SAB_Source]]*T_DataComboFile[[#This Row],[G&S reporting level indicator]]","v":0},{"$f":"T_DataComboFile[[#This Row],[2020/21 Baseline_Source]]*T_DataComboFile[[#This Row],[G&S reporting level indicator]]","v":0},{"$f":"T_DataComboFile[[#This Row],[2021/22 Baseline_Source]]*T_DataComboFile[[#This Row],[G&S reporting level indicator]]","v":0},{"$f":"T_DataComboFile[[#This Row],[2022/23 Baseline_Source]]*T_DataComboFile[[#This Row],[G&S reporting level indicator]]","v":0},{"$f":"T_DataComboFile[[#This Row],[2023/24 Baseline_Source]]*T_DataComboFile[[#This Row],[G&S reporting level indicator]]","v":0},null,null,null,null,null,null,{"$f":"T_DataComboFile[[#This Row],[2021/22 Baseline]]+T_DataComboFile[[#This Row],[2021/22 Reduction]]+T_DataComboFile[[#This Row],[2021/22 Increase]]","v":0},{"$f":"T_DataComboFile[[#This Row],[2022/23 Baseline]]+T_DataComboFile[[#This Row],[2022/23 Reduction]]+T_DataComboFile[[#This Row],[2022/23 Increase]]","v":0},{"$f":"T_DataComboFile[[#This Row],[2023/24 Baseline]]+T_DataComboFile[[#This Row],[2023/24 Reduction]]+T_DataComboFile[[#This Row],[2023/24 Increase]]","v":0}]
[null,null,"2021_22","ENE2020",36,4,4,null,71275,36,4,4,null,"071275","36|04|04",1,1,2,33,33,"01|01|02|33|33","National","Small Business Development","Enterprise Development and Entrepreneurship","Entrepreneurship",null,"Current","Current payments","Goods and services","Operating leases","Operating leases",null,null,null,0,0,0,0,0,0,0,0,0,0,0,0,0,0,null,{"$f":"IF(T_DataComboFile[[#This Row],[G&S reporting level indicator]]=1,$AX$16,\"Not applicable\")","v":"Not applicable"},{"$f":"IF(AND($AX$16=\"Level 3\",T_DataComboFile[[#This Row],[Econ3]] = \"Goods and services\"),IF(T_DataComboFile[[#This Row],[Econ4]] = T_DataComboFile[[#This Row],[Econ3]],1,0),IF(AND($AX$16=\"Level 4\",T_DataComboFile[[#This Row],[Econ4]] = \"Goods and services\"),0,1))","v":0},{"$f":"T_DataComboFile[[#This Row],[2016/17_Source]]*T_DataComboFile[[#This Row],[G&S reporting level indicator]]","v":0},{"$f":"T_DataComboFile[[#This Row],[2017/18_Source]]*T_DataComboFile[[#This Row],[G&S reporting level indicator]]","v":0},{"$f":"T_DataComboFile[[#This Row],[2018/19_Source]]*T_DataComboFile[[#This Row],[G&S reporting level indicator]]","v":0},{"$f":"T_DataComboFile[[#This Row],[2019/20 Main appropriation_Source]]*T_DataComboFile[[#This Row],[G&S reporting level indicator]]","v":0},{"$f":"T_DataComboFile[[#This Row],[2019/20 Adjusted appropriation_Source]]*T_DataComboFile[[#This Row],[G&S reporting level indicator]]","v":0},{"$f":"T_DataComboFile[[#This Row],[2019/20 Revised estimate_Source]]*T_DataComboFile[[#This Row],[G&S reporting level indicator]]","v":0},{"$f":"T_DataComboFile[[#This Row],[2019/20 Preliminary outcome_Source]]*T_DataComboFile[[#This Row],[G&S reporting level indicator]]","v":0},{"$f":"T_DataComboFile[[#This Row],[2020/21 Original_Source]]*T_DataComboFile[[#This Row],[G&S reporting level indicator]]","v":0},{"$f":"T_DataComboFile[[#This Row],[2020/21 SAB_Source]]*T_DataComboFile[[#This Row],[G&S reporting level indicator]]","v":0},{"$f":"T_DataComboFile[[#This Row],[2020/21 Baseline_Source]]*T_DataComboFile[[#This Row],[G&S reporting level indicator]]","v":0},{"$f":"T_DataComboFile[[#This Row],[2021/22 Baseline_Source]]*T_DataComboFile[[#This Row],[G&S reporting level indicator]]","v":0},{"$f":"T_DataComboFile[[#This Row],[2022/23 Baseline_Source]]*T_DataComboFile[[#This Row],[G&S reporting level indicator]]","v":0},{"$f":"T_DataComboFile[[#This Row],[2023/24 Baseline_Source]]*T_DataComboFile[[#This Row],[G&S reporting level indicator]]","v":0},null,null,null,null,null,null,{"$f":"T_DataComboFile[[#This Row],[2021/22 Baseline]]+T_DataComboFile[[#This Row],[2021/22 Reduction]]+T_DataComboFile[[#This Row],[2021/22 Increase]]","v":0},{"$f":"T_DataComboFile[[#This Row],[2022/23 Baseline]]+T_DataComboFile[[#This Row],[2022/23 Reduction]]+T_DataComboFile[[#This Row],[2022/23 Increase]]","v":0},{"$f":"T_DataComboFile[[#This Row],[2023/24 Baseline]]+T_DataComboFile[[#This Row],[2023/24 Reduction]]+T_DataComboFile[[#This Row],[2023/24 Increase]]","v":0}]
[null,null,"2021_22","ENE2020",36,4,4,null,71276,36,4,4,null,"071276","36|04|04",1,1,2,34,34,"01|01|02|34|34","National","Small Business Development","Enterprise Development and Entrepreneurship","Entrepreneurship",null,"Current","Current payments","Goods and services","Rental and hiring","Rental and hiring",null,null,null,0,0,0,0,0,0,0,0,0,0,0,0,0,0,null,{"$f":"IF(T_DataComboFile[[#This Row],[G&S reporting level indicator]]=1,$AX$16,\"Not applicable\")","v":"Not applicable"},{"$f":"IF(AND($AX$16=\"Level 3\",T_DataComboFile[[#This Row],[Econ3]] = \"Goods and services\"),IF(T_DataComboFile[[#This Row],[Econ4]] = T_DataComboFile[[#This Row],[Econ3]],1,0),IF(AND($AX$16=\"Level 4\",T_DataComboFile[[#This Row],[Econ4]] = \"Goods and services\"),0,1))","v":0},{"$f":"T_DataComboFile[[#This Row],[2016/17_Source]]*T_DataComboFile[[#This Row],[G&S reporting level indicator]]","v":0},{"$f":"T_DataComboFile[[#This Row],[2017/18_Source]]*T_DataComboFile[[#This Row],[G&S reporting level indicator]]","v":0},{"$f":"T_DataComboFile[[#This Row],[2018/19_Source]]*T_DataComboFile[[#This Row],[G&S reporting level indicator]]","v":0},{"$f":"T_DataComboFile[[#This Row],[2019/20 Main appropriation_Source]]*T_DataComboFile[[#This Row],[G&S reporting level indicator]]","v":0},{"$f":"T_DataComboFile[[#This Row],[2019/20 Adjusted appropriation_Source]]*T_DataComboFile[[#This Row],[G&S reporting level indicator]]","v":0},{"$f":"T_DataComboFile[[#This Row],[2019/20 Revised estimate_Source]]*T_DataComboFile[[#This Row],[G&S reporting level indicator]]","v":0},{"$f":"T_DataComboFile[[#This Row],[2019/20 Preliminary outcome_Source]]*T_DataComboFile[[#This Row],[G&S reporting level indicator]]","v":0},{"$f":"T_DataComboFile[[#This Row],[2020/21 Original_Source]]*T_DataComboFile[[#This Row],[G&S reporting level indicator]]","v":0},{"$f":"T_DataComboFile[[#This Row],[2020/21 SAB_Source]]*T_DataComboFile[[#This Row],[G&S reporting level indicator]]","v":0},{"$f":"T_DataComboFile[[#This Row],[2020/21 Baseline_Source]]*T_DataComboFile[[#This Row],[G&S reporting level indicator]]","v":0},{"$f":"T_DataComboFile[[#This Row],[2021/22 Baseline_Source]]*T_DataComboFile[[#This Row],[G&S reporting level indicator]]","v":0},{"$f":"T_DataComboFile[[#This Row],[2022/23 Baseline_Source]]*T_DataComboFile[[#This Row],[G&S reporting level indicator]]","v":0},{"$f":"T_DataComboFile[[#This Row],[2023/24 Baseline_Source]]*T_DataComboFile[[#This Row],[G&S reporting level indicator]]","v":0},null,null,null,null,null,null,{"$f":"T_DataComboFile[[#This Row],[2021/22 Baseline]]+T_DataComboFile[[#This Row],[2021/22 Reduction]]+T_DataComboFile[[#This Row],[2021/22 Increase]]","v":0},{"$f":"T_DataComboFile[[#This Row],[2022/23 Baseline]]+T_DataComboFile[[#This Row],[2022/23 Reduction]]+T_DataComboFile[[#This Row],[2022/23 Increase]]","v":0},{"$f":"T_DataComboFile[[#This Row],[2023/24 Baseline]]+T_DataComboFile[[#This Row],[2023/24 Reduction]]+T_DataComboFile[[#This Row],[2023/24 Increase]]","v":0}]
[null,null,"2021_22","ENE2020",36,4,4,null,71277,36,4,4,null,"071277","36|04|04",1,1,2,35,35,"01|01|02|35|35","National","Small Business Development","Enterprise Development and Entrepreneurship","Entrepreneurship",null,"Current","Current payments","Goods and services","Property payments","Property payments",null,null,null,0,0,0,0,0,0,0,0,0,0,0,0,0,0,null,{"$f":"IF(T_DataComboFile[[#This Row],[G&S reporting level indicator]]=1,$AX$16,\"Not applicable\")","v":"Not applicable"},{"$f":"IF(AND($AX$16=\"Level 3\",T_DataComboFile[[#This Row],[Econ3]] = \"Goods and services\"),IF(T_DataComboFile[[#This Row],[Econ4]] = T_DataComboFile[[#This Row],[Econ3]],1,0),IF(AND($AX$16=\"Level 4\",T_DataComboFile[[#This Row],[Econ4]] = \"Goods and services\"),0,1))","v":0},{"$f":"T_DataComboFile[[#This Row],[2016/17_Source]]*T_DataComboFile[[#This Row],[G&S reporting level indicator]]","v":0},{"$f":"T_DataComboFile[[#This Row],[2017/18_Source]]*T_DataComboFile[[#This Row],[G&S reporting level indicator]]","v":0},{"$f":"T_DataComboFile[[#This Row],[2018/19_Source]]*T_DataComboFile[[#This Row],[G&S reporting level indicator]]","v":0},{"$f":"T_DataComboFile[[#This Row],[2019/20 Main appropriation_Source]]*T_DataComboFile[[#This Row],[G&S reporting level indicator]]","v":0},{"$f":"T_DataComboFile[[#This Row],[2019/20 Adjusted appropriation_Source]]*T_DataComboFile[[#This Row],[G&S reporting level indicator]]","v":0},{"$f":"T_DataComboFile[[#This Row],[2019/20 Revised estimate_Source]]*T_DataComboFile[[#This Row],[G&S reporting level indicator]]","v":0},{"$f":"T_DataComboFile[[#This Row],[2019/20 Preliminary outcome_Source]]*T_DataComboFile[[#This Row],[G&S reporting level indicator]]","v":0},{"$f":"T_DataComboFile[[#This Row],[2020/21 Original_Source]]*T_DataComboFile[[#This Row],[G&S reporting level indicator]]","v":0},{"$f":"T_DataComboFile[[#This Row],[2020/21 SAB_Source]]*T_DataComboFile[[#This Row],[G&S reporting level indicator]]","v":0},{"$f":"T_DataComboFile[[#This Row],[2020/21 Baseline_Source]]*T_DataComboFile[[#This Row],[G&S reporting level indicator]]","v":0},{"$f":"T_DataComboFile[[#This Row],[2021/22 Baseline_Source]]*T_DataComboFile[[#This Row],[G&S reporting level indicator]]","v":0},{"$f":"T_DataComboFile[[#This Row],[2022/23 Baseline_Source]]*T_DataComboFile[[#This Row],[G&S reporting level indicator]]","v":0},{"$f":"T_DataComboFile[[#This Row],[2023/24 Baseline_Source]]*T_DataComboFile[[#This Row],[G&S reporting level indicator]]","v":0},null,null,null,null,null,null,{"$f":"T_DataComboFile[[#This Row],[2021/22 Baseline]]+T_DataComboFile[[#This Row],[2021/22 Reduction]]+T_DataComboFile[[#This Row],[2021/22 Increase]]","v":0},{"$f":"T_DataComboFile[[#This Row],[2022/23 Baseline]]+T_DataComboFile[[#This Row],[2022/23 Reduction]]+T_DataComboFile[[#This Row],[2022/23 Increase]]","v":0},{"$f":"T_DataComboFile[[#This Row],[2023/24 Baseline]]+T_DataComboFile[[#This Row],[2023/24 Reduction]]+T_DataComboFile[[#This Row],[2023/24 Increase]]","v":0}]
[null,null,"2021_22","ENE2020",36,4,4,null,71278,36,4,4,null,"071278","36|04|04",1,1,2,36,36,"01|01|02|36|36","National","Small Business Development","Enterprise Development and Entrepreneurship","Entrepreneurship",null,"Current","Current payments","Goods and services","Transport provided: Departmental activity","Transport provided: Departmental activity",null,null,null,0,0,0,0,0,0,0,0,0,0,0,0,0,0,null,{"$f":"IF(T_DataComboFile[[#This Row],[G&S reporting level indicator]]=1,$AX$16,\"Not applicable\")","v":"Not applicable"},{"$f":"IF(AND($AX$16=\"Level 3\",T_DataComboFile[[#This Row],[Econ3]] = \"Goods and services\"),IF(T_DataComboFile[[#This Row],[Econ4]] = T_DataComboFile[[#This Row],[Econ3]],1,0),IF(AND($AX$16=\"Level 4\",T_DataComboFile[[#This Row],[Econ4]] = \"Goods and services\"),0,1))","v":0},{"$f":"T_DataComboFile[[#This Row],[2016/17_Source]]*T_DataComboFile[[#This Row],[G&S reporting level indicator]]","v":0},{"$f":"T_DataComboFile[[#This Row],[2017/18_Source]]*T_DataComboFile[[#This Row],[G&S reporting level indicator]]","v":0},{"$f":"T_DataComboFile[[#This Row],[2018/19_Source]]*T_DataComboFile[[#This Row],[G&S reporting level indicator]]","v":0},{"$f":"T_DataComboFile[[#This Row],[2019/20 Main appropriation_Source]]*T_DataComboFile[[#This Row],[G&S reporting level indicator]]","v":0},{"$f":"T_DataComboFile[[#This Row],[2019/20 Adjusted appropriation_Source]]*T_DataComboFile[[#This Row],[G&S reporting level indicator]]","v":0},{"$f":"T_DataComboFile[[#This Row],[2019/20 Revised estimate_Source]]*T_DataComboFile[[#This Row],[G&S reporting level indicator]]","v":0},{"$f":"T_DataComboFile[[#This Row],[2019/20 Preliminary outcome_Source]]*T_DataComboFile[[#This Row],[G&S reporting level indicator]]","v":0},{"$f":"T_DataComboFile[[#This Row],[2020/21 Original_Source]]*T_DataComboFile[[#This Row],[G&S reporting level indicator]]","v":0},{"$f":"T_DataComboFile[[#This Row],[2020/21 SAB_Source]]*T_DataComboFile[[#This Row],[G&S reporting level indicator]]","v":0},{"$f":"T_DataComboFile[[#This Row],[2020/21 Baseline_Source]]*T_DataComboFile[[#This Row],[G&S reporting level indicator]]","v":0},{"$f":"T_DataComboFile[[#This Row],[2021/22 Baseline_Source]]*T_DataComboFile[[#This Row],[G&S reporting level indicator]]","v":0},{"$f":"T_DataComboFile[[#This Row],[2022/23 Baseline_Source]]*T_DataComboFile[[#This Row],[G&S reporting level indicator]]","v":0},{"$f":"T_DataComboFile[[#This Row],[2023/24 Baseline_Source]]*T_DataComboFile[[#This Row],[G&S reporting level indicator]]","v":0},null,null,null,null,null,null,{"$f":"T_DataComboFile[[#This Row],[2021/22 Baseline]]+T_DataComboFile[[#This Row],[2021/22 Reduction]]+T_DataComboFile[[#This Row],[2021/22 Increase]]","v":0},{"$f":"T_DataComboFile[[#This Row],[2022/23 Baseline]]+T_DataComboFile[[#This Row],[2022/23 Reduction]]+T_DataComboFile[[#This Row],[2022/23 Increase]]","v":0},{"$f":"T_DataComboFile[[#This Row],[2023/24 Baseline]]+T_DataComboFile[[#This Row],[2023/24 Reduction]]+T_DataComboFile[[#This Row],[2023/24 Increase]]","v":0}]
["NAT|Non-transfer item","36|Travel and subsistence","2021_22","ENE2020",36,4,4,17458,71279,36,4,4,17458,"071279","36|04|04",1,1,2,37,37,"01|01|02|37|37","National","Small Business Development","Enterprise Development and Entrepreneurship","Entrepreneurship","Non-transfer item","Current","Current payments","Goods and services","Travel and subsistence","Travel and subsistence","Economic development","Industrialisation and exports","NAT",0,0,54,384,384,384,384,120,120,120,140,160,167,1,null,{"$f":"IF(T_DataComboFile[[#This Row],[G&S reporting level indicator]]=1,$AX$16,\"Not applicable\")","v":"Not applicable"},{"$f":"IF(AND($AX$16=\"Level 3\",T_DataComboFile[[#This Row],[Econ3]] = \"Goods and services\"),IF(T_DataComboFile[[#This Row],[Econ4]] = T_DataComboFile[[#This Row],[Econ3]],1,0),IF(AND($AX$16=\"Level 4\",T_DataComboFile[[#This Row],[Econ4]] = \"Goods and services\"),0,1))","v":0},{"$f":"T_DataComboFile[[#This Row],[2016/17_Source]]*T_DataComboFile[[#This Row],[G&S reporting level indicator]]","v":0},{"$f":"T_DataComboFile[[#This Row],[2017/18_Source]]*T_DataComboFile[[#This Row],[G&S reporting level indicator]]","v":0},{"$f":"T_DataComboFile[[#This Row],[2018/19_Source]]*T_DataComboFile[[#This Row],[G&S reporting level indicator]]","v":0},{"$f":"T_DataComboFile[[#This Row],[2019/20 Main appropriation_Source]]*T_DataComboFile[[#This Row],[G&S reporting level indicator]]","v":0},{"$f":"T_DataComboFile[[#This Row],[2019/20 Adjusted appropriation_Source]]*T_DataComboFile[[#This Row],[G&S reporting level indicator]]","v":0},{"$f":"T_DataComboFile[[#This Row],[2019/20 Revised estimate_Source]]*T_DataComboFile[[#This Row],[G&S reporting level indicator]]","v":0},{"$f":"T_DataComboFile[[#This Row],[2019/20 Preliminary outcome_Source]]*T_DataComboFile[[#This Row],[G&S reporting level indicator]]","v":0},{"$f":"T_DataComboFile[[#This Row],[2020/21 Original_Source]]*T_DataComboFile[[#This Row],[G&S reporting level indicator]]","v":0},{"$f":"T_DataComboFile[[#This Row],[2020/21 SAB_Source]]*T_DataComboFile[[#This Row],[G&S reporting level indicator]]","v":0},{"$f":"T_DataComboFile[[#This Row],[2020/21 Baseline_Source]]*T_DataComboFile[[#This Row],[G&S reporting level indicator]]","v":0},{"$f":"T_DataComboFile[[#This Row],[2021/22 Baseline_Source]]*T_DataComboFile[[#This Row],[G&S reporting level indicator]]","v":0},{"$f":"T_DataComboFile[[#This Row],[2022/23 Baseline_Source]]*T_DataComboFile[[#This Row],[G&S reporting level indicator]]","v":0},{"$f":"T_DataComboFile[[#This Row],[2023/24 Baseline_Source]]*T_DataComboFile[[#This Row],[G&S reporting level indicator]]","v":0},null,null,null,null,null,null,{"$f":"T_DataComboFile[[#This Row],[2021/22 Baseline]]+T_DataComboFile[[#This Row],[2021/22 Reduction]]+T_DataComboFile[[#This Row],[2021/22 Increase]]","v":0},{"$f":"T_DataComboFile[[#This Row],[2022/23 Baseline]]+T_DataComboFile[[#This Row],[2022/23 Reduction]]+T_DataComboFile[[#This Row],[2022/23 Increase]]","v":0},{"$f":"T_DataComboFile[[#This Row],[2023/24 Baseline]]+T_DataComboFile[[#This Row],[2023/24 Reduction]]+T_DataComboFile[[#This Row],[2023/24 Increase]]","v":0}]
[null,null,"2021_22","ENE2020",36,4,4,null,71280,36,4,4,null,"071280","36|04|04",1,1,2,38,38,"01|01|02|38|38","National","Small Business Development","Enterprise Development and Entrepreneurship","Entrepreneurship",null,"Current","Current payments","Goods and services","Training and development","Training and development",null,null,null,0,0,0,0,0,0,0,0,0,0,0,0,0,0,null,{"$f":"IF(T_DataComboFile[[#This Row],[G&S reporting level indicator]]=1,$AX$16,\"Not applicable\")","v":"Not applicable"},{"$f":"IF(AND($AX$16=\"Level 3\",T_DataComboFile[[#This Row],[Econ3]] = \"Goods and services\"),IF(T_DataComboFile[[#This Row],[Econ4]] = T_DataComboFile[[#This Row],[Econ3]],1,0),IF(AND($AX$16=\"Level 4\",T_DataComboFile[[#This Row],[Econ4]] = \"Goods and services\"),0,1))","v":0},{"$f":"T_DataComboFile[[#This Row],[2016/17_Source]]*T_DataComboFile[[#This Row],[G&S reporting level indicator]]","v":0},{"$f":"T_DataComboFile[[#This Row],[2017/18_Source]]*T_DataComboFile[[#This Row],[G&S reporting level indicator]]","v":0},{"$f":"T_DataComboFile[[#This Row],[2018/19_Source]]*T_DataComboFile[[#This Row],[G&S reporting level indicator]]","v":0},{"$f":"T_DataComboFile[[#This Row],[2019/20 Main appropriation_Source]]*T_DataComboFile[[#This Row],[G&S reporting level indicator]]","v":0},{"$f":"T_DataComboFile[[#This Row],[2019/20 Adjusted appropriation_Source]]*T_DataComboFile[[#This Row],[G&S reporting level indicator]]","v":0},{"$f":"T_DataComboFile[[#This Row],[2019/20 Revised estimate_Source]]*T_DataComboFile[[#This Row],[G&S reporting level indicator]]","v":0},{"$f":"T_DataComboFile[[#This Row],[2019/20 Preliminary outcome_Source]]*T_DataComboFile[[#This Row],[G&S reporting level indicator]]","v":0},{"$f":"T_DataComboFile[[#This Row],[2020/21 Original_Source]]*T_DataComboFile[[#This Row],[G&S reporting level indicator]]","v":0},{"$f":"T_DataComboFile[[#This Row],[2020/21 SAB_Source]]*T_DataComboFile[[#This Row],[G&S reporting level indicator]]","v":0},{"$f":"T_DataComboFile[[#This Row],[2020/21 Baseline_Source]]*T_DataComboFile[[#This Row],[G&S reporting level indicator]]","v":0},{"$f":"T_DataComboFile[[#This Row],[2021/22 Baseline_Source]]*T_DataComboFile[[#This Row],[G&S reporting level indicator]]","v":0},{"$f":"T_DataComboFile[[#This Row],[2022/23 Baseline_Source]]*T_DataComboFile[[#This Row],[G&S reporting level indicator]]","v":0},{"$f":"T_DataComboFile[[#This Row],[2023/24 Baseline_Source]]*T_DataComboFile[[#This Row],[G&S reporting level indicator]]","v":0},null,null,null,null,null,null,{"$f":"T_DataComboFile[[#This Row],[2021/22 Baseline]]+T_DataComboFile[[#This Row],[2021/22 Reduction]]+T_DataComboFile[[#This Row],[2021/22 Increase]]","v":0},{"$f":"T_DataComboFile[[#This Row],[2022/23 Baseline]]+T_DataComboFile[[#This Row],[2022/23 Reduction]]+T_DataComboFile[[#This Row],[2022/23 Increase]]","v":0},{"$f":"T_DataComboFile[[#This Row],[2023/24 Baseline]]+T_DataComboFile[[#This Row],[2023/24 Reduction]]+T_DataComboFile[[#This Row],[2023/24 Increase]]","v":0}]
[null,null,"2021_22","ENE2020",36,4,4,null,71281,36,4,4,null,"071281","36|04|04",1,1,2,39,39,"01|01|02|39|39","National","Small Business Development","Enterprise Development and Entrepreneurship","Entrepreneurship",null,"Current","Current payments","Goods and services","Operating payments","Operating payments",null,null,null,0,0,0,0,0,0,0,0,0,0,0,0,0,0,null,{"$f":"IF(T_DataComboFile[[#This Row],[G&S reporting level indicator]]=1,$AX$16,\"Not applicable\")","v":"Not applicable"},{"$f":"IF(AND($AX$16=\"Level 3\",T_DataComboFile[[#This Row],[Econ3]] = \"Goods and services\"),IF(T_DataComboFile[[#This Row],[Econ4]] = T_DataComboFile[[#This Row],[Econ3]],1,0),IF(AND($AX$16=\"Level 4\",T_DataComboFile[[#This Row],[Econ4]] = \"Goods and services\"),0,1))","v":0},{"$f":"T_DataComboFile[[#This Row],[2016/17_Source]]*T_DataComboFile[[#This Row],[G&S reporting level indicator]]","v":0},{"$f":"T_DataComboFile[[#This Row],[2017/18_Source]]*T_DataComboFile[[#This Row],[G&S reporting level indicator]]","v":0},{"$f":"T_DataComboFile[[#This Row],[2018/19_Source]]*T_DataComboFile[[#This Row],[G&S reporting level indicator]]","v":0},{"$f":"T_DataComboFile[[#This Row],[2019/20 Main appropriation_Source]]*T_DataComboFile[[#This Row],[G&S reporting level indicator]]","v":0},{"$f":"T_DataComboFile[[#This Row],[2019/20 Adjusted appropriation_Source]]*T_DataComboFile[[#This Row],[G&S reporting level indicator]]","v":0},{"$f":"T_DataComboFile[[#This Row],[2019/20 Revised estimate_Source]]*T_DataComboFile[[#This Row],[G&S reporting level indicator]]","v":0},{"$f":"T_DataComboFile[[#This Row],[2019/20 Preliminary outcome_Source]]*T_DataComboFile[[#This Row],[G&S reporting level indicator]]","v":0},{"$f":"T_DataComboFile[[#This Row],[2020/21 Original_Source]]*T_DataComboFile[[#This Row],[G&S reporting level indicator]]","v":0},{"$f":"T_DataComboFile[[#This Row],[2020/21 SAB_Source]]*T_DataComboFile[[#This Row],[G&S reporting level indicator]]","v":0},{"$f":"T_DataComboFile[[#This Row],[2020/21 Baseline_Source]]*T_DataComboFile[[#This Row],[G&S reporting level indicator]]","v":0},{"$f":"T_DataComboFile[[#This Row],[2021/22 Baseline_Source]]*T_DataComboFile[[#This Row],[G&S reporting level indicator]]","v":0},{"$f":"T_DataComboFile[[#This Row],[2022/23 Baseline_Source]]*T_DataComboFile[[#This Row],[G&S reporting level indicator]]","v":0},{"$f":"T_DataComboFile[[#This Row],[2023/24 Baseline_Source]]*T_DataComboFile[[#This Row],[G&S reporting level indicator]]","v":0},null,null,null,null,null,null,{"$f":"T_DataComboFile[[#This Row],[2021/22 Baseline]]+T_DataComboFile[[#This Row],[2021/22 Reduction]]+T_DataComboFile[[#This Row],[2021/22 Increase]]","v":0},{"$f":"T_DataComboFile[[#This Row],[2022/23 Baseline]]+T_DataComboFile[[#This Row],[2022/23 Reduction]]+T_DataComboFile[[#This Row],[2022/23 Increase]]","v":0},{"$f":"T_DataComboFile[[#This Row],[2023/24 Baseline]]+T_DataComboFile[[#This Row],[2023/24 Reduction]]+T_DataComboFile[[#This Row],[2023/24 Increase]]","v":0}]
["NAT|Non-transfer item","36|Venues and facilities","2021_22","ENE2020",36,4,4,17459,71282,36,4,4,17459,"071282","36|04|04",1,1,2,40,40,"01|01|02|40|40","National","Small Business Development","Enterprise Development and Entrepreneurship","Entrepreneurship","Non-transfer item","Current","Current payments","Goods and services","Venues and facilities","Venues and facilities","Economic development","Industrialisation and exports","NAT",0,0,0,2000,2000,2000,2000,3500,0,3500,3710,3241,3384,1,null,{"$f":"IF(T_DataComboFile[[#This Row],[G&S reporting level indicator]]=1,$AX$16,\"Not applicable\")","v":"Not applicable"},{"$f":"IF(AND($AX$16=\"Level 3\",T_DataComboFile[[#This Row],[Econ3]] = \"Goods and services\"),IF(T_DataComboFile[[#This Row],[Econ4]] = T_DataComboFile[[#This Row],[Econ3]],1,0),IF(AND($AX$16=\"Level 4\",T_DataComboFile[[#This Row],[Econ4]] = \"Goods and services\"),0,1))","v":0},{"$f":"T_DataComboFile[[#This Row],[2016/17_Source]]*T_DataComboFile[[#This Row],[G&S reporting level indicator]]","v":0},{"$f":"T_DataComboFile[[#This Row],[2017/18_Source]]*T_DataComboFile[[#This Row],[G&S reporting level indicator]]","v":0},{"$f":"T_DataComboFile[[#This Row],[2018/19_Source]]*T_DataComboFile[[#This Row],[G&S reporting level indicator]]","v":0},{"$f":"T_DataComboFile[[#This Row],[2019/20 Main appropriation_Source]]*T_DataComboFile[[#This Row],[G&S reporting level indicator]]","v":0},{"$f":"T_DataComboFile[[#This Row],[2019/20 Adjusted appropriation_Source]]*T_DataComboFile[[#This Row],[G&S reporting level indicator]]","v":0},{"$f":"T_DataComboFile[[#This Row],[2019/20 Revised estimate_Source]]*T_DataComboFile[[#This Row],[G&S reporting level indicator]]","v":0},{"$f":"T_DataComboFile[[#This Row],[2019/20 Preliminary outcome_Source]]*T_DataComboFile[[#This Row],[G&S reporting level indicator]]","v":0},{"$f":"T_DataComboFile[[#This Row],[2020/21 Original_Source]]*T_DataComboFile[[#This Row],[G&S reporting level indicator]]","v":0},{"$f":"T_DataComboFile[[#This Row],[2020/21 SAB_Source]]*T_DataComboFile[[#This Row],[G&S reporting level indicator]]","v":0},{"$f":"T_DataComboFile[[#This Row],[2020/21 Baseline_Source]]*T_DataComboFile[[#This Row],[G&S reporting level indicator]]","v":0},{"$f":"T_DataComboFile[[#This Row],[2021/22 Baseline_Source]]*T_DataComboFile[[#This Row],[G&S reporting level indicator]]","v":0},{"$f":"T_DataComboFile[[#This Row],[2022/23 Baseline_Source]]*T_DataComboFile[[#This Row],[G&S reporting level indicator]]","v":0},{"$f":"T_DataComboFile[[#This Row],[2023/24 Baseline_Source]]*T_DataComboFile[[#This Row],[G&S reporting level indicator]]","v":0},null,null,null,null,null,null,{"$f":"T_DataComboFile[[#This Row],[2021/22 Baseline]]+T_DataComboFile[[#This Row],[2021/22 Reduction]]+T_DataComboFile[[#This Row],[2021/22 Increase]]","v":0},{"$f":"T_DataComboFile[[#This Row],[2022/23 Baseline]]+T_DataComboFile[[#This Row],[2022/23 Reduction]]+T_DataComboFile[[#This Row],[2022/23 Increase]]","v":0},{"$f":"T_DataComboFile[[#This Row],[2023/24 Baseline]]+T_DataComboFile[[#This Row],[2023/24 Reduction]]+T_DataComboFile[[#This Row],[2023/24 Increase]]","v":0}]
[null,null,"2021_22","ENE2020",36,4,4,null,71283,36,4,4,null,"071283","36|04|04",1,1,3,41,41,"01|01|03|41|41","National","Small Business Development","Enterprise Development and Entrepreneurship","Entrepreneurship",null,"Current","Current payments","Interest and rent on land","Interest (Incl. interest on unitary payments (PPP))","Interest (Incl. interest on unitary payments (PPP))",null,null,null,0,0,0,0,0,0,0,0,0,0,0,0,0,0,null,{"$f":"IF(T_DataComboFile[[#This Row],[G&S reporting level indicator]]=1,$AX$16,\"Not applicable\")","v":"Level 3"},{"$f":"IF(AND($AX$16=\"Level 3\",T_DataComboFile[[#This Row],[Econ3]] = \"Goods and services\"),IF(T_DataComboFile[[#This Row],[Econ4]] = T_DataComboFile[[#This Row],[Econ3]],1,0),IF(AND($AX$16=\"Level 4\",T_DataComboFile[[#This Row],[Econ4]] = \"Goods and services\"),0,1))","v":1},{"$f":"T_DataComboFile[[#This Row],[2016/17_Source]]*T_DataComboFile[[#This Row],[G&S reporting level indicator]]","v":0},{"$f":"T_DataComboFile[[#This Row],[2017/18_Source]]*T_DataComboFile[[#This Row],[G&S reporting level indicator]]","v":0},{"$f":"T_DataComboFile[[#This Row],[2018/19_Source]]*T_DataComboFile[[#This Row],[G&S reporting level indicator]]","v":0},{"$f":"T_DataComboFile[[#This Row],[2019/20 Main appropriation_Source]]*T_DataComboFile[[#This Row],[G&S reporting level indicator]]","v":0},{"$f":"T_DataComboFile[[#This Row],[2019/20 Adjusted appropriation_Source]]*T_DataComboFile[[#This Row],[G&S reporting level indicator]]","v":0},{"$f":"T_DataComboFile[[#This Row],[2019/20 Revised estimate_Source]]*T_DataComboFile[[#This Row],[G&S reporting level indicator]]","v":0},{"$f":"T_DataComboFile[[#This Row],[2019/20 Preliminary outcome_Source]]*T_DataComboFile[[#This Row],[G&S reporting level indicator]]","v":0},{"$f":"T_DataComboFile[[#This Row],[2020/21 Original_Source]]*T_DataComboFile[[#This Row],[G&S reporting level indicator]]","v":0},{"$f":"T_DataComboFile[[#This Row],[2020/21 SAB_Source]]*T_DataComboFile[[#This Row],[G&S reporting level indicator]]","v":0},{"$f":"T_DataComboFile[[#This Row],[2020/21 Baseline_Source]]*T_DataComboFile[[#This Row],[G&S reporting level indicator]]","v":0},{"$f":"T_DataComboFile[[#This Row],[2021/22 Baseline_Source]]*T_DataComboFile[[#This Row],[G&S reporting level indicator]]","v":0},{"$f":"T_DataComboFile[[#This Row],[2022/23 Baseline_Source]]*T_DataComboFile[[#This Row],[G&S reporting level indicator]]","v":0},{"$f":"T_DataComboFile[[#This Row],[2023/24 Baseline_Source]]*T_DataComboFile[[#This Row],[G&S reporting level indicator]]","v":0},null,null,null,null,null,null,{"$f":"T_DataComboFile[[#This Row],[2021/22 Baseline]]+T_DataComboFile[[#This Row],[2021/22 Reduction]]+T_DataComboFile[[#This Row],[2021/22 Increase]]","v":0},{"$f":"T_DataComboFile[[#This Row],[2022/23 Baseline]]+T_DataComboFile[[#This Row],[2022/23 Reduction]]+T_DataComboFile[[#This Row],[2022/23 Increase]]","v":0},{"$f":"T_DataComboFile[[#This Row],[2023/24 Baseline]]+T_DataComboFile[[#This Row],[2023/24 Reduction]]+T_DataComboFile[[#This Row],[2023/24 Increase]]","v":0}]
[null,null,"2021_22","ENE2020",36,4,4,null,71284,36,4,4,null,"071284","36|04|04",1,1,3,42,42,"01|01|03|42|42","National","Small Business Development","Enterprise Development and Entrepreneurship","Entrepreneurship",null,"Current","Current payments","Interest and rent on land","Rent on land","Rent on land",null,null,null,0,0,0,0,0,0,0,0,0,0,0,0,0,0,null,{"$f":"IF(T_DataComboFile[[#This Row],[G&S reporting level indicator]]=1,$AX$16,\"Not applicable\")","v":"Level 3"},{"$f":"IF(AND($AX$16=\"Level 3\",T_DataComboFile[[#This Row],[Econ3]] = \"Goods and services\"),IF(T_DataComboFile[[#This Row],[Econ4]] = T_DataComboFile[[#This Row],[Econ3]],1,0),IF(AND($AX$16=\"Level 4\",T_DataComboFile[[#This Row],[Econ4]] = \"Goods and services\"),0,1))","v":1},{"$f":"T_DataComboFile[[#This Row],[2016/17_Source]]*T_DataComboFile[[#This Row],[G&S reporting level indicator]]","v":0},{"$f":"T_DataComboFile[[#This Row],[2017/18_Source]]*T_DataComboFile[[#This Row],[G&S reporting level indicator]]","v":0},{"$f":"T_DataComboFile[[#This Row],[2018/19_Source]]*T_DataComboFile[[#This Row],[G&S reporting level indicator]]","v":0},{"$f":"T_DataComboFile[[#This Row],[2019/20 Main appropriation_Source]]*T_DataComboFile[[#This Row],[G&S reporting level indicator]]","v":0},{"$f":"T_DataComboFile[[#This Row],[2019/20 Adjusted appropriation_Source]]*T_DataComboFile[[#This Row],[G&S reporting level indicator]]","v":0},{"$f":"T_DataComboFile[[#This Row],[2019/20 Revised estimate_Source]]*T_DataComboFile[[#This Row],[G&S reporting level indicator]]","v":0},{"$f":"T_DataComboFile[[#This Row],[2019/20 Preliminary outcome_Source]]*T_DataComboFile[[#This Row],[G&S reporting level indicator]]","v":0},{"$f":"T_DataComboFile[[#This Row],[2020/21 Original_Source]]*T_DataComboFile[[#This Row],[G&S reporting level indicator]]","v":0},{"$f":"T_DataComboFile[[#This Row],[2020/21 SAB_Source]]*T_DataComboFile[[#This Row],[G&S reporting level indicator]]","v":0},{"$f":"T_DataComboFile[[#This Row],[2020/21 Baseline_Source]]*T_DataComboFile[[#This Row],[G&S reporting level indicator]]","v":0},{"$f":"T_DataComboFile[[#This Row],[2021/22 Baseline_Source]]*T_DataComboFile[[#This Row],[G&S reporting level indicator]]","v":0},{"$f":"T_DataComboFile[[#This Row],[2022/23 Baseline_Source]]*T_DataComboFile[[#This Row],[G&S reporting level indicator]]","v":0},{"$f":"T_DataComboFile[[#This Row],[2023/24 Baseline_Source]]*T_DataComboFile[[#This Row],[G&S reporting level indicator]]","v":0},null,null,null,null,null,null,{"$f":"T_DataComboFile[[#This Row],[2021/22 Baseline]]+T_DataComboFile[[#This Row],[2021/22 Reduction]]+T_DataComboFile[[#This Row],[2021/22 Increase]]","v":0},{"$f":"T_DataComboFile[[#This Row],[2022/23 Baseline]]+T_DataComboFile[[#This Row],[2022/23 Reduction]]+T_DataComboFile[[#This Row],[2022/23 Increase]]","v":0},{"$f":"T_DataComboFile[[#This Row],[2023/24 Baseline]]+T_DataComboFile[[#This Row],[2023/24 Reduction]]+T_DataComboFile[[#This Row],[2023/24 Increase]]","v":0}]
[null,null,"2021_22","ENE2020",36,4,4,null,71285,36,4,4,null,"071285","36|04|04",1,2,4,43,43,"01|02|04|43|43","National","Small Business Development","Enterprise Development and Entrepreneurship","Entrepreneurship",null,"Current","Transfers and subsidies","Provinces and municipalities","Provinces","Provincial Revenue Funds",null,null,null,0,0,0,0,0,0,0,0,0,0,0,0,0,0,null,{"$f":"IF(T_DataComboFile[[#This Row],[G&S reporting level indicator]]=1,$AX$16,\"Not applicable\")","v":"Level 3"},{"$f":"IF(AND($AX$16=\"Level 3\",T_DataComboFile[[#This Row],[Econ3]] = \"Goods and services\"),IF(T_DataComboFile[[#This Row],[Econ4]] = T_DataComboFile[[#This Row],[Econ3]],1,0),IF(AND($AX$16=\"Level 4\",T_DataComboFile[[#This Row],[Econ4]] = \"Goods and services\"),0,1))","v":1},{"$f":"T_DataComboFile[[#This Row],[2016/17_Source]]*T_DataComboFile[[#This Row],[G&S reporting level indicator]]","v":0},{"$f":"T_DataComboFile[[#This Row],[2017/18_Source]]*T_DataComboFile[[#This Row],[G&S reporting level indicator]]","v":0},{"$f":"T_DataComboFile[[#This Row],[2018/19_Source]]*T_DataComboFile[[#This Row],[G&S reporting level indicator]]","v":0},{"$f":"T_DataComboFile[[#This Row],[2019/20 Main appropriation_Source]]*T_DataComboFile[[#This Row],[G&S reporting level indicator]]","v":0},{"$f":"T_DataComboFile[[#This Row],[2019/20 Adjusted appropriation_Source]]*T_DataComboFile[[#This Row],[G&S reporting level indicator]]","v":0},{"$f":"T_DataComboFile[[#This Row],[2019/20 Revised estimate_Source]]*T_DataComboFile[[#This Row],[G&S reporting level indicator]]","v":0},{"$f":"T_DataComboFile[[#This Row],[2019/20 Preliminary outcome_Source]]*T_DataComboFile[[#This Row],[G&S reporting level indicator]]","v":0},{"$f":"T_DataComboFile[[#This Row],[2020/21 Original_Source]]*T_DataComboFile[[#This Row],[G&S reporting level indicator]]","v":0},{"$f":"T_DataComboFile[[#This Row],[2020/21 SAB_Source]]*T_DataComboFile[[#This Row],[G&S reporting level indicator]]","v":0},{"$f":"T_DataComboFile[[#This Row],[2020/21 Baseline_Source]]*T_DataComboFile[[#This Row],[G&S reporting level indicator]]","v":0},{"$f":"T_DataComboFile[[#This Row],[2021/22 Baseline_Source]]*T_DataComboFile[[#This Row],[G&S reporting level indicator]]","v":0},{"$f":"T_DataComboFile[[#This Row],[2022/23 Baseline_Source]]*T_DataComboFile[[#This Row],[G&S reporting level indicator]]","v":0},{"$f":"T_DataComboFile[[#This Row],[2023/24 Baseline_Source]]*T_DataComboFile[[#This Row],[G&S reporting level indicator]]","v":0},null,null,null,null,null,null,{"$f":"T_DataComboFile[[#This Row],[2021/22 Baseline]]+T_DataComboFile[[#This Row],[2021/22 Reduction]]+T_DataComboFile[[#This Row],[2021/22 Increase]]","v":0},{"$f":"T_DataComboFile[[#This Row],[2022/23 Baseline]]+T_DataComboFile[[#This Row],[2022/23 Reduction]]+T_DataComboFile[[#This Row],[2022/23 Increase]]","v":0},{"$f":"T_DataComboFile[[#This Row],[2023/24 Baseline]]+T_DataComboFile[[#This Row],[2023/24 Reduction]]+T_DataComboFile[[#This Row],[2023/24 Increase]]","v":0}]
[null,null,"2021_22","ENE2020",36,4,4,null,71286,36,4,4,null,"071286","36|04|04",1,2,4,43,44,"01|02|04|43|44","National","Small Business Development","Enterprise Development and Entrepreneurship","Entrepreneurship",null,"Current","Transfers and subsidies","Provinces and municipalities","Provinces","Provincial agencies and funds",null,null,null,0,0,0,0,0,0,0,0,0,0,0,0,0,0,null,{"$f":"IF(T_DataComboFile[[#This Row],[G&S reporting level indicator]]=1,$AX$16,\"Not applicable\")","v":"Level 3"},{"$f":"IF(AND($AX$16=\"Level 3\",T_DataComboFile[[#This Row],[Econ3]] = \"Goods and services\"),IF(T_DataComboFile[[#This Row],[Econ4]] = T_DataComboFile[[#This Row],[Econ3]],1,0),IF(AND($AX$16=\"Level 4\",T_DataComboFile[[#This Row],[Econ4]] = \"Goods and services\"),0,1))","v":1},{"$f":"T_DataComboFile[[#This Row],[2016/17_Source]]*T_DataComboFile[[#This Row],[G&S reporting level indicator]]","v":0},{"$f":"T_DataComboFile[[#This Row],[2017/18_Source]]*T_DataComboFile[[#This Row],[G&S reporting level indicator]]","v":0},{"$f":"T_DataComboFile[[#This Row],[2018/19_Source]]*T_DataComboFile[[#This Row],[G&S reporting level indicator]]","v":0},{"$f":"T_DataComboFile[[#This Row],[2019/20 Main appropriation_Source]]*T_DataComboFile[[#This Row],[G&S reporting level indicator]]","v":0},{"$f":"T_DataComboFile[[#This Row],[2019/20 Adjusted appropriation_Source]]*T_DataComboFile[[#This Row],[G&S reporting level indicator]]","v":0},{"$f":"T_DataComboFile[[#This Row],[2019/20 Revised estimate_Source]]*T_DataComboFile[[#This Row],[G&S reporting level indicator]]","v":0},{"$f":"T_DataComboFile[[#This Row],[2019/20 Preliminary outcome_Source]]*T_DataComboFile[[#This Row],[G&S reporting level indicator]]","v":0},{"$f":"T_DataComboFile[[#This Row],[2020/21 Original_Source]]*T_DataComboFile[[#This Row],[G&S reporting level indicator]]","v":0},{"$f":"T_DataComboFile[[#This Row],[2020/21 SAB_Source]]*T_DataComboFile[[#This Row],[G&S reporting level indicator]]","v":0},{"$f":"T_DataComboFile[[#This Row],[2020/21 Baseline_Source]]*T_DataComboFile[[#This Row],[G&S reporting level indicator]]","v":0},{"$f":"T_DataComboFile[[#This Row],[2021/22 Baseline_Source]]*T_DataComboFile[[#This Row],[G&S reporting level indicator]]","v":0},{"$f":"T_DataComboFile[[#This Row],[2022/23 Baseline_Source]]*T_DataComboFile[[#This Row],[G&S reporting level indicator]]","v":0},{"$f":"T_DataComboFile[[#This Row],[2023/24 Baseline_Source]]*T_DataComboFile[[#This Row],[G&S reporting level indicator]]","v":0},null,null,null,null,null,null,{"$f":"T_DataComboFile[[#This Row],[2021/22 Baseline]]+T_DataComboFile[[#This Row],[2021/22 Reduction]]+T_DataComboFile[[#This Row],[2021/22 Increase]]","v":0},{"$f":"T_DataComboFile[[#This Row],[2022/23 Baseline]]+T_DataComboFile[[#This Row],[2022/23 Reduction]]+T_DataComboFile[[#This Row],[2022/23 Increase]]","v":0},{"$f":"T_DataComboFile[[#This Row],[2023/24 Baseline]]+T_DataComboFile[[#This Row],[2023/24 Reduction]]+T_DataComboFile[[#This Row],[2023/24 Increase]]","v":0}]
[null,null,"2021_22","ENE2020",36,4,4,null,71287,36,4,4,null,"071287","36|04|04",1,2,4,44,45,"01|02|04|44|45","National","Small Business Development","Enterprise Development and Entrepreneurship","Entrepreneurship",null,"Current","Transfers and subsidies","Provinces and municipalities","Municipalities","Municipal bank accounts",null,null,null,0,0,0,0,0,0,0,0,0,0,0,0,0,0,null,{"$f":"IF(T_DataComboFile[[#This Row],[G&S reporting level indicator]]=1,$AX$16,\"Not applicable\")","v":"Level 3"},{"$f":"IF(AND($AX$16=\"Level 3\",T_DataComboFile[[#This Row],[Econ3]] = \"Goods and services\"),IF(T_DataComboFile[[#This Row],[Econ4]] = T_DataComboFile[[#This Row],[Econ3]],1,0),IF(AND($AX$16=\"Level 4\",T_DataComboFile[[#This Row],[Econ4]] = \"Goods and services\"),0,1))","v":1},{"$f":"T_DataComboFile[[#This Row],[2016/17_Source]]*T_DataComboFile[[#This Row],[G&S reporting level indicator]]","v":0},{"$f":"T_DataComboFile[[#This Row],[2017/18_Source]]*T_DataComboFile[[#This Row],[G&S reporting level indicator]]","v":0},{"$f":"T_DataComboFile[[#This Row],[2018/19_Source]]*T_DataComboFile[[#This Row],[G&S reporting level indicator]]","v":0},{"$f":"T_DataComboFile[[#This Row],[2019/20 Main appropriation_Source]]*T_DataComboFile[[#This Row],[G&S reporting level indicator]]","v":0},{"$f":"T_DataComboFile[[#This Row],[2019/20 Adjusted appropriation_Source]]*T_DataComboFile[[#This Row],[G&S reporting level indicator]]","v":0},{"$f":"T_DataComboFile[[#This Row],[2019/20 Revised estimate_Source]]*T_DataComboFile[[#This Row],[G&S reporting level indicator]]","v":0},{"$f":"T_DataComboFile[[#This Row],[2019/20 Preliminary outcome_Source]]*T_DataComboFile[[#This Row],[G&S reporting level indicator]]","v":0},{"$f":"T_DataComboFile[[#This Row],[2020/21 Original_Source]]*T_DataComboFile[[#This Row],[G&S reporting level indicator]]","v":0},{"$f":"T_DataComboFile[[#This Row],[2020/21 SAB_Source]]*T_DataComboFile[[#This Row],[G&S reporting level indicator]]","v":0},{"$f":"T_DataComboFile[[#This Row],[2020/21 Baseline_Source]]*T_DataComboFile[[#This Row],[G&S reporting level indicator]]","v":0},{"$f":"T_DataComboFile[[#This Row],[2021/22 Baseline_Source]]*T_DataComboFile[[#This Row],[G&S reporting level indicator]]","v":0},{"$f":"T_DataComboFile[[#This Row],[2022/23 Baseline_Source]]*T_DataComboFile[[#This Row],[G&S reporting level indicator]]","v":0},{"$f":"T_DataComboFile[[#This Row],[2023/24 Baseline_Source]]*T_DataComboFile[[#This Row],[G&S reporting level indicator]]","v":0},null,null,null,null,null,null,{"$f":"T_DataComboFile[[#This Row],[2021/22 Baseline]]+T_DataComboFile[[#This Row],[2021/22 Reduction]]+T_DataComboFile[[#This Row],[2021/22 Increase]]","v":0},{"$f":"T_DataComboFile[[#This Row],[2022/23 Baseline]]+T_DataComboFile[[#This Row],[2022/23 Reduction]]+T_DataComboFile[[#This Row],[2022/23 Increase]]","v":0},{"$f":"T_DataComboFile[[#This Row],[2023/24 Baseline]]+T_DataComboFile[[#This Row],[2023/24 Reduction]]+T_DataComboFile[[#This Row],[2023/24 Increase]]","v":0}]
[null,null,"2021_22","ENE2020",36,4,4,null,71288,36,4,4,null,"071288","36|04|04",1,2,4,44,46,"01|02|04|44|46","National","Small Business Development","Enterprise Development and Entrepreneurship","Entrepreneurship",null,"Current","Transfers and subsidies","Provinces and municipalities","Municipalities","Municipal agencies and funds",null,null,null,0,0,0,0,0,0,0,0,0,0,0,0,0,0,null,{"$f":"IF(T_DataComboFile[[#This Row],[G&S reporting level indicator]]=1,$AX$16,\"Not applicable\")","v":"Level 3"},{"$f":"IF(AND($AX$16=\"Level 3\",T_DataComboFile[[#This Row],[Econ3]] = \"Goods and services\"),IF(T_DataComboFile[[#This Row],[Econ4]] = T_DataComboFile[[#This Row],[Econ3]],1,0),IF(AND($AX$16=\"Level 4\",T_DataComboFile[[#This Row],[Econ4]] = \"Goods and services\"),0,1))","v":1},{"$f":"T_DataComboFile[[#This Row],[2016/17_Source]]*T_DataComboFile[[#This Row],[G&S reporting level indicator]]","v":0},{"$f":"T_DataComboFile[[#This Row],[2017/18_Source]]*T_DataComboFile[[#This Row],[G&S reporting level indicator]]","v":0},{"$f":"T_DataComboFile[[#This Row],[2018/19_Source]]*T_DataComboFile[[#This Row],[G&S reporting level indicator]]","v":0},{"$f":"T_DataComboFile[[#This Row],[2019/20 Main appropriation_Source]]*T_DataComboFile[[#This Row],[G&S reporting level indicator]]","v":0},{"$f":"T_DataComboFile[[#This Row],[2019/20 Adjusted appropriation_Source]]*T_DataComboFile[[#This Row],[G&S reporting level indicator]]","v":0},{"$f":"T_DataComboFile[[#This Row],[2019/20 Revised estimate_Source]]*T_DataComboFile[[#This Row],[G&S reporting level indicator]]","v":0},{"$f":"T_DataComboFile[[#This Row],[2019/20 Preliminary outcome_Source]]*T_DataComboFile[[#This Row],[G&S reporting level indicator]]","v":0},{"$f":"T_DataComboFile[[#This Row],[2020/21 Original_Source]]*T_DataComboFile[[#This Row],[G&S reporting level indicator]]","v":0},{"$f":"T_DataComboFile[[#This Row],[2020/21 SAB_Source]]*T_DataComboFile[[#This Row],[G&S reporting level indicator]]","v":0},{"$f":"T_DataComboFile[[#This Row],[2020/21 Baseline_Source]]*T_DataComboFile[[#This Row],[G&S reporting level indicator]]","v":0},{"$f":"T_DataComboFile[[#This Row],[2021/22 Baseline_Source]]*T_DataComboFile[[#This Row],[G&S reporting level indicator]]","v":0},{"$f":"T_DataComboFile[[#This Row],[2022/23 Baseline_Source]]*T_DataComboFile[[#This Row],[G&S reporting level indicator]]","v":0},{"$f":"T_DataComboFile[[#This Row],[2023/24 Baseline_Source]]*T_DataComboFile[[#This Row],[G&S reporting level indicator]]","v":0},null,null,null,null,null,null,{"$f":"T_DataComboFile[[#This Row],[2021/22 Baseline]]+T_DataComboFile[[#This Row],[2021/22 Reduction]]+T_DataComboFile[[#This Row],[2021/22 Increase]]","v":0},{"$f":"T_DataComboFile[[#This Row],[2022/23 Baseline]]+T_DataComboFile[[#This Row],[2022/23 Reduction]]+T_DataComboFile[[#This Row],[2022/23 Increase]]","v":0},{"$f":"T_DataComboFile[[#This Row],[2023/24 Baseline]]+T_DataComboFile[[#This Row],[2023/24 Reduction]]+T_DataComboFile[[#This Row],[2023/24 Increase]]","v":0}]
[null,null,"2021_22","ENE2020",36,4,4,null,71289,36,4,4,null,"071289","36|04|04",1,2,5,45,47,"01|02|05|45|47","National","Small Business Development","Enterprise Development and Entrepreneurship","Entrepreneurship",null,"Current","Transfers and subsidies","Departmental agencies and accounts","Social security funds","Social security funds",null,null,null,0,0,0,0,0,0,0,0,0,0,0,0,0,0,null,{"$f":"IF(T_DataComboFile[[#This Row],[G&S reporting level indicator]]=1,$AX$16,\"Not applicable\")","v":"Level 3"},{"$f":"IF(AND($AX$16=\"Level 3\",T_DataComboFile[[#This Row],[Econ3]] = \"Goods and services\"),IF(T_DataComboFile[[#This Row],[Econ4]] = T_DataComboFile[[#This Row],[Econ3]],1,0),IF(AND($AX$16=\"Level 4\",T_DataComboFile[[#This Row],[Econ4]] = \"Goods and services\"),0,1))","v":1},{"$f":"T_DataComboFile[[#This Row],[2016/17_Source]]*T_DataComboFile[[#This Row],[G&S reporting level indicator]]","v":0},{"$f":"T_DataComboFile[[#This Row],[2017/18_Source]]*T_DataComboFile[[#This Row],[G&S reporting level indicator]]","v":0},{"$f":"T_DataComboFile[[#This Row],[2018/19_Source]]*T_DataComboFile[[#This Row],[G&S reporting level indicator]]","v":0},{"$f":"T_DataComboFile[[#This Row],[2019/20 Main appropriation_Source]]*T_DataComboFile[[#This Row],[G&S reporting level indicator]]","v":0},{"$f":"T_DataComboFile[[#This Row],[2019/20 Adjusted appropriation_Source]]*T_DataComboFile[[#This Row],[G&S reporting level indicator]]","v":0},{"$f":"T_DataComboFile[[#This Row],[2019/20 Revised estimate_Source]]*T_DataComboFile[[#This Row],[G&S reporting level indicator]]","v":0},{"$f":"T_DataComboFile[[#This Row],[2019/20 Preliminary outcome_Source]]*T_DataComboFile[[#This Row],[G&S reporting level indicator]]","v":0},{"$f":"T_DataComboFile[[#This Row],[2020/21 Original_Source]]*T_DataComboFile[[#This Row],[G&S reporting level indicator]]","v":0},{"$f":"T_DataComboFile[[#This Row],[2020/21 SAB_Source]]*T_DataComboFile[[#This Row],[G&S reporting level indicator]]","v":0},{"$f":"T_DataComboFile[[#This Row],[2020/21 Baseline_Source]]*T_DataComboFile[[#This Row],[G&S reporting level indicator]]","v":0},{"$f":"T_DataComboFile[[#This Row],[2021/22 Baseline_Source]]*T_DataComboFile[[#This Row],[G&S reporting level indicator]]","v":0},{"$f":"T_DataComboFile[[#This Row],[2022/23 Baseline_Source]]*T_DataComboFile[[#This Row],[G&S reporting level indicator]]","v":0},{"$f":"T_DataComboFile[[#This Row],[2023/24 Baseline_Source]]*T_DataComboFile[[#This Row],[G&S reporting level indicator]]","v":0},null,null,null,null,null,null,{"$f":"T_DataComboFile[[#This Row],[2021/22 Baseline]]+T_DataComboFile[[#This Row],[2021/22 Reduction]]+T_DataComboFile[[#This Row],[2021/22 Increase]]","v":0},{"$f":"T_DataComboFile[[#This Row],[2022/23 Baseline]]+T_DataComboFile[[#This Row],[2022/23 Reduction]]+T_DataComboFile[[#This Row],[2022/23 Increase]]","v":0},{"$f":"T_DataComboFile[[#This Row],[2023/24 Baseline]]+T_DataComboFile[[#This Row],[2023/24 Reduction]]+T_DataComboFile[[#This Row],[2023/24 Increase]]","v":0}]
[null,null,"2021_22","ENE2020",36,4,4,null,71290,36,4,4,null,"071290","36|04|04",1,2,5,46,48,"01|02|05|46|48","National","Small Business Development","Enterprise Development and Entrepreneurship","Entrepreneurship",null,"Current","Transfers and subsidies","Departmental agencies and accounts","Departmental agencies (non-business entities)","Departmental agencies (non-business entities)",null,null,null,0,0,0,0,0,0,0,0,0,0,0,0,0,0,null,{"$f":"IF(T_DataComboFile[[#This Row],[G&S reporting level indicator]]=1,$AX$16,\"Not applicable\")","v":"Level 3"},{"$f":"IF(AND($AX$16=\"Level 3\",T_DataComboFile[[#This Row],[Econ3]] = \"Goods and services\"),IF(T_DataComboFile[[#This Row],[Econ4]] = T_DataComboFile[[#This Row],[Econ3]],1,0),IF(AND($AX$16=\"Level 4\",T_DataComboFile[[#This Row],[Econ4]] = \"Goods and services\"),0,1))","v":1},{"$f":"T_DataComboFile[[#This Row],[2016/17_Source]]*T_DataComboFile[[#This Row],[G&S reporting level indicator]]","v":0},{"$f":"T_DataComboFile[[#This Row],[2017/18_Source]]*T_DataComboFile[[#This Row],[G&S reporting level indicator]]","v":0},{"$f":"T_DataComboFile[[#This Row],[2018/19_Source]]*T_DataComboFile[[#This Row],[G&S reporting level indicator]]","v":0},{"$f":"T_DataComboFile[[#This Row],[2019/20 Main appropriation_Source]]*T_DataComboFile[[#This Row],[G&S reporting level indicator]]","v":0},{"$f":"T_DataComboFile[[#This Row],[2019/20 Adjusted appropriation_Source]]*T_DataComboFile[[#This Row],[G&S reporting level indicator]]","v":0},{"$f":"T_DataComboFile[[#This Row],[2019/20 Revised estimate_Source]]*T_DataComboFile[[#This Row],[G&S reporting level indicator]]","v":0},{"$f":"T_DataComboFile[[#This Row],[2019/20 Preliminary outcome_Source]]*T_DataComboFile[[#This Row],[G&S reporting level indicator]]","v":0},{"$f":"T_DataComboFile[[#This Row],[2020/21 Original_Source]]*T_DataComboFile[[#This Row],[G&S reporting level indicator]]","v":0},{"$f":"T_DataComboFile[[#This Row],[2020/21 SAB_Source]]*T_DataComboFile[[#This Row],[G&S reporting level indicator]]","v":0},{"$f":"T_DataComboFile[[#This Row],[2020/21 Baseline_Source]]*T_DataComboFile[[#This Row],[G&S reporting level indicator]]","v":0},{"$f":"T_DataComboFile[[#This Row],[2021/22 Baseline_Source]]*T_DataComboFile[[#This Row],[G&S reporting level indicator]]","v":0},{"$f":"T_DataComboFile[[#This Row],[2022/23 Baseline_Source]]*T_DataComboFile[[#This Row],[G&S reporting level indicator]]","v":0},{"$f":"T_DataComboFile[[#This Row],[2023/24 Baseline_Source]]*T_DataComboFile[[#This Row],[G&S reporting level indicator]]","v":0},null,null,null,null,null,null,{"$f":"T_DataComboFile[[#This Row],[2021/22 Baseline]]+T_DataComboFile[[#This Row],[2021/22 Reduction]]+T_DataComboFile[[#This Row],[2021/22 Increase]]","v":0},{"$f":"T_DataComboFile[[#This Row],[2022/23 Baseline]]+T_DataComboFile[[#This Row],[2022/23 Reduction]]+T_DataComboFile[[#This Row],[2022/23 Increase]]","v":0},{"$f":"T_DataComboFile[[#This Row],[2023/24 Baseline]]+T_DataComboFile[[#This Row],[2023/24 Reduction]]+T_DataComboFile[[#This Row],[2023/24 Increase]]","v":0}]
[null,null,"2021_22","ENE2020",36,4,4,null,71291,36,4,4,null,"071291","36|04|04",1,2,6,47,49,"01|02|06|47|49","National","Small Business Development","Enterprise Development and Entrepreneurship","Entrepreneurship",null,"Current","Transfers and subsidies","Higher education institutions","Higher education institutions","Higher education institutions",null,null,null,0,0,0,0,0,0,0,0,0,0,0,0,0,0,null,{"$f":"IF(T_DataComboFile[[#This Row],[G&S reporting level indicator]]=1,$AX$16,\"Not applicable\")","v":"Level 3"},{"$f":"IF(AND($AX$16=\"Level 3\",T_DataComboFile[[#This Row],[Econ3]] = \"Goods and services\"),IF(T_DataComboFile[[#This Row],[Econ4]] = T_DataComboFile[[#This Row],[Econ3]],1,0),IF(AND($AX$16=\"Level 4\",T_DataComboFile[[#This Row],[Econ4]] = \"Goods and services\"),0,1))","v":1},{"$f":"T_DataComboFile[[#This Row],[2016/17_Source]]*T_DataComboFile[[#This Row],[G&S reporting level indicator]]","v":0},{"$f":"T_DataComboFile[[#This Row],[2017/18_Source]]*T_DataComboFile[[#This Row],[G&S reporting level indicator]]","v":0},{"$f":"T_DataComboFile[[#This Row],[2018/19_Source]]*T_DataComboFile[[#This Row],[G&S reporting level indicator]]","v":0},{"$f":"T_DataComboFile[[#This Row],[2019/20 Main appropriation_Source]]*T_DataComboFile[[#This Row],[G&S reporting level indicator]]","v":0},{"$f":"T_DataComboFile[[#This Row],[2019/20 Adjusted appropriation_Source]]*T_DataComboFile[[#This Row],[G&S reporting level indicator]]","v":0},{"$f":"T_DataComboFile[[#This Row],[2019/20 Revised estimate_Source]]*T_DataComboFile[[#This Row],[G&S reporting level indicator]]","v":0},{"$f":"T_DataComboFile[[#This Row],[2019/20 Preliminary outcome_Source]]*T_DataComboFile[[#This Row],[G&S reporting level indicator]]","v":0},{"$f":"T_DataComboFile[[#This Row],[2020/21 Original_Source]]*T_DataComboFile[[#This Row],[G&S reporting level indicator]]","v":0},{"$f":"T_DataComboFile[[#This Row],[2020/21 SAB_Source]]*T_DataComboFile[[#This Row],[G&S reporting level indicator]]","v":0},{"$f":"T_DataComboFile[[#This Row],[2020/21 Baseline_Source]]*T_DataComboFile[[#This Row],[G&S reporting level indicator]]","v":0},{"$f":"T_DataComboFile[[#This Row],[2021/22 Baseline_Source]]*T_DataComboFile[[#This Row],[G&S reporting level indicator]]","v":0},{"$f":"T_DataComboFile[[#This Row],[2022/23 Baseline_Source]]*T_DataComboFile[[#This Row],[G&S reporting level indicator]]","v":0},{"$f":"T_DataComboFile[[#This Row],[2023/24 Baseline_Source]]*T_DataComboFile[[#This Row],[G&S reporting level indicator]]","v":0},null,null,null,null,null,null,{"$f":"T_DataComboFile[[#This Row],[2021/22 Baseline]]+T_DataComboFile[[#This Row],[2021/22 Reduction]]+T_DataComboFile[[#This Row],[2021/22 Increase]]","v":0},{"$f":"T_DataComboFile[[#This Row],[2022/23 Baseline]]+T_DataComboFile[[#This Row],[2022/23 Reduction]]+T_DataComboFile[[#This Row],[2022/23 Increase]]","v":0},{"$f":"T_DataComboFile[[#This Row],[2023/24 Baseline]]+T_DataComboFile[[#This Row],[2023/24 Reduction]]+T_DataComboFile[[#This Row],[2023/24 Increase]]","v":0}]
[null,null,"2021_22","ENE2020",36,4,4,null,71292,36,4,4,null,"071292","36|04|04",1,2,7,48,50,"01|02|07|48|50","National","Small Business Development","Enterprise Development and Entrepreneurship","Entrepreneurship",null,"Current","Transfers and subsidies","Foreign governments and international organisations","Foreign governments and international organisations","Foreign governments and international organisations",null,null,null,0,0,0,0,0,0,0,0,0,0,0,0,0,0,null,{"$f":"IF(T_DataComboFile[[#This Row],[G&S reporting level indicator]]=1,$AX$16,\"Not applicable\")","v":"Level 3"},{"$f":"IF(AND($AX$16=\"Level 3\",T_DataComboFile[[#This Row],[Econ3]] = \"Goods and services\"),IF(T_DataComboFile[[#This Row],[Econ4]] = T_DataComboFile[[#This Row],[Econ3]],1,0),IF(AND($AX$16=\"Level 4\",T_DataComboFile[[#This Row],[Econ4]] = \"Goods and services\"),0,1))","v":1},{"$f":"T_DataComboFile[[#This Row],[2016/17_Source]]*T_DataComboFile[[#This Row],[G&S reporting level indicator]]","v":0},{"$f":"T_DataComboFile[[#This Row],[2017/18_Source]]*T_DataComboFile[[#This Row],[G&S reporting level indicator]]","v":0},{"$f":"T_DataComboFile[[#This Row],[2018/19_Source]]*T_DataComboFile[[#This Row],[G&S reporting level indicator]]","v":0},{"$f":"T_DataComboFile[[#This Row],[2019/20 Main appropriation_Source]]*T_DataComboFile[[#This Row],[G&S reporting level indicator]]","v":0},{"$f":"T_DataComboFile[[#This Row],[2019/20 Adjusted appropriation_Source]]*T_DataComboFile[[#This Row],[G&S reporting level indicator]]","v":0},{"$f":"T_DataComboFile[[#This Row],[2019/20 Revised estimate_Source]]*T_DataComboFile[[#This Row],[G&S reporting level indicator]]","v":0},{"$f":"T_DataComboFile[[#This Row],[2019/20 Preliminary outcome_Source]]*T_DataComboFile[[#This Row],[G&S reporting level indicator]]","v":0},{"$f":"T_DataComboFile[[#This Row],[2020/21 Original_Source]]*T_DataComboFile[[#This Row],[G&S reporting level indicator]]","v":0},{"$f":"T_DataComboFile[[#This Row],[2020/21 SAB_Source]]*T_DataComboFile[[#This Row],[G&S reporting level indicator]]","v":0},{"$f":"T_DataComboFile[[#This Row],[2020/21 Baseline_Source]]*T_DataComboFile[[#This Row],[G&S reporting level indicator]]","v":0},{"$f":"T_DataComboFile[[#This Row],[2021/22 Baseline_Source]]*T_DataComboFile[[#This Row],[G&S reporting level indicator]]","v":0},{"$f":"T_DataComboFile[[#This Row],[2022/23 Baseline_Source]]*T_DataComboFile[[#This Row],[G&S reporting level indicator]]","v":0},{"$f":"T_DataComboFile[[#This Row],[2023/24 Baseline_Source]]*T_DataComboFile[[#This Row],[G&S reporting level indicator]]","v":0},null,null,null,null,null,null,{"$f":"T_DataComboFile[[#This Row],[2021/22 Baseline]]+T_DataComboFile[[#This Row],[2021/22 Reduction]]+T_DataComboFile[[#This Row],[2021/22 Increase]]","v":0},{"$f":"T_DataComboFile[[#This Row],[2022/23 Baseline]]+T_DataComboFile[[#This Row],[2022/23 Reduction]]+T_DataComboFile[[#This Row],[2022/23 Increase]]","v":0},{"$f":"T_DataComboFile[[#This Row],[2023/24 Baseline]]+T_DataComboFile[[#This Row],[2023/24 Reduction]]+T_DataComboFile[[#This Row],[2023/24 Increase]]","v":0}]
[null,null,"2021_22","ENE2020",36,4,4,null,71293,36,4,4,null,"071293","36|04|04",1,2,8,49,51,"01|02|08|49|51","National","Small Business Development","Enterprise Development and Entrepreneurship","Entrepreneurship",null,"Current","Transfers and subsidies","Public corporations and private enterprises","Public corporations","Subsidies on products and production (pc)",null,null,null,0,0,0,0,0,0,0,0,0,0,0,0,0,0,null,{"$f":"IF(T_DataComboFile[[#This Row],[G&S reporting level indicator]]=1,$AX$16,\"Not applicable\")","v":"Level 3"},{"$f":"IF(AND($AX$16=\"Level 3\",T_DataComboFile[[#This Row],[Econ3]] = \"Goods and services\"),IF(T_DataComboFile[[#This Row],[Econ4]] = T_DataComboFile[[#This Row],[Econ3]],1,0),IF(AND($AX$16=\"Level 4\",T_DataComboFile[[#This Row],[Econ4]] = \"Goods and services\"),0,1))","v":1},{"$f":"T_DataComboFile[[#This Row],[2016/17_Source]]*T_DataComboFile[[#This Row],[G&S reporting level indicator]]","v":0},{"$f":"T_DataComboFile[[#This Row],[2017/18_Source]]*T_DataComboFile[[#This Row],[G&S reporting level indicator]]","v":0},{"$f":"T_DataComboFile[[#This Row],[2018/19_Source]]*T_DataComboFile[[#This Row],[G&S reporting level indicator]]","v":0},{"$f":"T_DataComboFile[[#This Row],[2019/20 Main appropriation_Source]]*T_DataComboFile[[#This Row],[G&S reporting level indicator]]","v":0},{"$f":"T_DataComboFile[[#This Row],[2019/20 Adjusted appropriation_Source]]*T_DataComboFile[[#This Row],[G&S reporting level indicator]]","v":0},{"$f":"T_DataComboFile[[#This Row],[2019/20 Revised estimate_Source]]*T_DataComboFile[[#This Row],[G&S reporting level indicator]]","v":0},{"$f":"T_DataComboFile[[#This Row],[2019/20 Preliminary outcome_Source]]*T_DataComboFile[[#This Row],[G&S reporting level indicator]]","v":0},{"$f":"T_DataComboFile[[#This Row],[2020/21 Original_Source]]*T_DataComboFile[[#This Row],[G&S reporting level indicator]]","v":0},{"$f":"T_DataComboFile[[#This Row],[2020/21 SAB_Source]]*T_DataComboFile[[#This Row],[G&S reporting level indicator]]","v":0},{"$f":"T_DataComboFile[[#This Row],[2020/21 Baseline_Source]]*T_DataComboFile[[#This Row],[G&S reporting level indicator]]","v":0},{"$f":"T_DataComboFile[[#This Row],[2021/22 Baseline_Source]]*T_DataComboFile[[#This Row],[G&S reporting level indicator]]","v":0},{"$f":"T_DataComboFile[[#This Row],[2022/23 Baseline_Source]]*T_DataComboFile[[#This Row],[G&S reporting level indicator]]","v":0},{"$f":"T_DataComboFile[[#This Row],[2023/24 Baseline_Source]]*T_DataComboFile[[#This Row],[G&S reporting level indicator]]","v":0},null,null,null,null,null,null,{"$f":"T_DataComboFile[[#This Row],[2021/22 Baseline]]+T_DataComboFile[[#This Row],[2021/22 Reduction]]+T_DataComboFile[[#This Row],[2021/22 Increase]]","v":0},{"$f":"T_DataComboFile[[#This Row],[2022/23 Baseline]]+T_DataComboFile[[#This Row],[2022/23 Reduction]]+T_DataComboFile[[#This Row],[2022/23 Increase]]","v":0},{"$f":"T_DataComboFile[[#This Row],[2023/24 Baseline]]+T_DataComboFile[[#This Row],[2023/24 Reduction]]+T_DataComboFile[[#This Row],[2023/24 Increase]]","v":0}]
[null,null,"2021_22","ENE2020",36,4,4,null,71294,36,4,4,null,"071294","36|04|04",1,2,8,49,52,"01|02|08|49|52","National","Small Business Development","Enterprise Development and Entrepreneurship","Entrepreneurship",null,"Current","Transfers and subsidies","Public corporations and private enterprises","Public corporations","Other transfers to public corporations",null,null,null,0,0,0,0,0,0,0,0,0,0,0,0,0,0,null,{"$f":"IF(T_DataComboFile[[#This Row],[G&S reporting level indicator]]=1,$AX$16,\"Not applicable\")","v":"Level 3"},{"$f":"IF(AND($AX$16=\"Level 3\",T_DataComboFile[[#This Row],[Econ3]] = \"Goods and services\"),IF(T_DataComboFile[[#This Row],[Econ4]] = T_DataComboFile[[#This Row],[Econ3]],1,0),IF(AND($AX$16=\"Level 4\",T_DataComboFile[[#This Row],[Econ4]] = \"Goods and services\"),0,1))","v":1},{"$f":"T_DataComboFile[[#This Row],[2016/17_Source]]*T_DataComboFile[[#This Row],[G&S reporting level indicator]]","v":0},{"$f":"T_DataComboFile[[#This Row],[2017/18_Source]]*T_DataComboFile[[#This Row],[G&S reporting level indicator]]","v":0},{"$f":"T_DataComboFile[[#This Row],[2018/19_Source]]*T_DataComboFile[[#This Row],[G&S reporting level indicator]]","v":0},{"$f":"T_DataComboFile[[#This Row],[2019/20 Main appropriation_Source]]*T_DataComboFile[[#This Row],[G&S reporting level indicator]]","v":0},{"$f":"T_DataComboFile[[#This Row],[2019/20 Adjusted appropriation_Source]]*T_DataComboFile[[#This Row],[G&S reporting level indicator]]","v":0},{"$f":"T_DataComboFile[[#This Row],[2019/20 Revised estimate_Source]]*T_DataComboFile[[#This Row],[G&S reporting level indicator]]","v":0},{"$f":"T_DataComboFile[[#This Row],[2019/20 Preliminary outcome_Source]]*T_DataComboFile[[#This Row],[G&S reporting level indicator]]","v":0},{"$f":"T_DataComboFile[[#This Row],[2020/21 Original_Source]]*T_DataComboFile[[#This Row],[G&S reporting level indicator]]","v":0},{"$f":"T_DataComboFile[[#This Row],[2020/21 SAB_Source]]*T_DataComboFile[[#This Row],[G&S reporting level indicator]]","v":0},{"$f":"T_DataComboFile[[#This Row],[2020/21 Baseline_Source]]*T_DataComboFile[[#This Row],[G&S reporting level indicator]]","v":0},{"$f":"T_DataComboFile[[#This Row],[2021/22 Baseline_Source]]*T_DataComboFile[[#This Row],[G&S reporting level indicator]]","v":0},{"$f":"T_DataComboFile[[#This Row],[2022/23 Baseline_Source]]*T_DataComboFile[[#This Row],[G&S reporting level indicator]]","v":0},{"$f":"T_DataComboFile[[#This Row],[2023/24 Baseline_Source]]*T_DataComboFile[[#This Row],[G&S reporting level indicator]]","v":0},null,null,null,null,null,null,{"$f":"T_DataComboFile[[#This Row],[2021/22 Baseline]]+T_DataComboFile[[#This Row],[2021/22 Reduction]]+T_DataComboFile[[#This Row],[2021/22 Increase]]","v":0},{"$f":"T_DataComboFile[[#This Row],[2022/23 Baseline]]+T_DataComboFile[[#This Row],[2022/23 Reduction]]+T_DataComboFile[[#This Row],[2022/23 Increase]]","v":0},{"$f":"T_DataComboFile[[#This Row],[2023/24 Baseline]]+T_DataComboFile[[#This Row],[2023/24 Reduction]]+T_DataComboFile[[#This Row],[2023/24 Increase]]","v":0}]
[null,null,"2021_22","ENE2020",36,4,4,null,71295,36,4,4,null,"071295","36|04|04",1,2,8,50,53,"01|02|08|50|53","National","Small Business Development","Enterprise Development and Entrepreneurship","Entrepreneurship",null,"Current","Transfers and subsidies","Public corporations and private enterprises","Private enterprises","Subsidies on products and production (pe)",null,null,null,0,0,0,0,0,0,0,0,0,0,0,0,0,0,null,{"$f":"IF(T_DataComboFile[[#This Row],[G&S reporting level indicator]]=1,$AX$16,\"Not applicable\")","v":"Level 3"},{"$f":"IF(AND($AX$16=\"Level 3\",T_DataComboFile[[#This Row],[Econ3]] = \"Goods and services\"),IF(T_DataComboFile[[#This Row],[Econ4]] = T_DataComboFile[[#This Row],[Econ3]],1,0),IF(AND($AX$16=\"Level 4\",T_DataComboFile[[#This Row],[Econ4]] = \"Goods and services\"),0,1))","v":1},{"$f":"T_DataComboFile[[#This Row],[2016/17_Source]]*T_DataComboFile[[#This Row],[G&S reporting level indicator]]","v":0},{"$f":"T_DataComboFile[[#This Row],[2017/18_Source]]*T_DataComboFile[[#This Row],[G&S reporting level indicator]]","v":0},{"$f":"T_DataComboFile[[#This Row],[2018/19_Source]]*T_DataComboFile[[#This Row],[G&S reporting level indicator]]","v":0},{"$f":"T_DataComboFile[[#This Row],[2019/20 Main appropriation_Source]]*T_DataComboFile[[#This Row],[G&S reporting level indicator]]","v":0},{"$f":"T_DataComboFile[[#This Row],[2019/20 Adjusted appropriation_Source]]*T_DataComboFile[[#This Row],[G&S reporting level indicator]]","v":0},{"$f":"T_DataComboFile[[#This Row],[2019/20 Revised estimate_Source]]*T_DataComboFile[[#This Row],[G&S reporting level indicator]]","v":0},{"$f":"T_DataComboFile[[#This Row],[2019/20 Preliminary outcome_Source]]*T_DataComboFile[[#This Row],[G&S reporting level indicator]]","v":0},{"$f":"T_DataComboFile[[#This Row],[2020/21 Original_Source]]*T_DataComboFile[[#This Row],[G&S reporting level indicator]]","v":0},{"$f":"T_DataComboFile[[#This Row],[2020/21 SAB_Source]]*T_DataComboFile[[#This Row],[G&S reporting level indicator]]","v":0},{"$f":"T_DataComboFile[[#This Row],[2020/21 Baseline_Source]]*T_DataComboFile[[#This Row],[G&S reporting level indicator]]","v":0},{"$f":"T_DataComboFile[[#This Row],[2021/22 Baseline_Source]]*T_DataComboFile[[#This Row],[G&S reporting level indicator]]","v":0},{"$f":"T_DataComboFile[[#This Row],[2022/23 Baseline_Source]]*T_DataComboFile[[#This Row],[G&S reporting level indicator]]","v":0},{"$f":"T_DataComboFile[[#This Row],[2023/24 Baseline_Source]]*T_DataComboFile[[#This Row],[G&S reporting level indicator]]","v":0},null,null,null,null,null,null,{"$f":"T_DataComboFile[[#This Row],[2021/22 Baseline]]+T_DataComboFile[[#This Row],[2021/22 Reduction]]+T_DataComboFile[[#This Row],[2021/22 Increase]]","v":0},{"$f":"T_DataComboFile[[#This Row],[2022/23 Baseline]]+T_DataComboFile[[#This Row],[2022/23 Reduction]]+T_DataComboFile[[#This Row],[2022/23 Increase]]","v":0},{"$f":"T_DataComboFile[[#This Row],[2023/24 Baseline]]+T_DataComboFile[[#This Row],[2023/24 Reduction]]+T_DataComboFile[[#This Row],[2023/24 Increase]]","v":0}]
["NAT|Various institutions: Enterprise incubation programme","36|Other transfers to private enterprises","2021_22","ENE2020",36,4,4,17460,71296,36,4,4,17460,"071296","36|04|04",1,2,8,50,54,"01|02|08|50|54","National","Small Business Development","Enterprise Development and Entrepreneurship","Entrepreneurship","Various institutions: Enterprise incubation programme","Current","Transfers and subsidies","Public corporations and private enterprises","Private enterprises","Other transfers to private enterprises","Economic development","Industrialisation and exports","NAT",20400,70600,0,0,0,0,0,0,0,0,0,0,0,1,null,{"$f":"IF(T_DataComboFile[[#This Row],[G&S reporting level indicator]]=1,$AX$16,\"Not applicable\")","v":"Level 3"},{"$f":"IF(AND($AX$16=\"Level 3\",T_DataComboFile[[#This Row],[Econ3]] = \"Goods and services\"),IF(T_DataComboFile[[#This Row],[Econ4]] = T_DataComboFile[[#This Row],[Econ3]],1,0),IF(AND($AX$16=\"Level 4\",T_DataComboFile[[#This Row],[Econ4]] = \"Goods and services\"),0,1))","v":1},{"$f":"T_DataComboFile[[#This Row],[2016/17_Source]]*T_DataComboFile[[#This Row],[G&S reporting level indicator]]","v":20400},{"$f":"T_DataComboFile[[#This Row],[2017/18_Source]]*T_DataComboFile[[#This Row],[G&S reporting level indicator]]","v":70600},{"$f":"T_DataComboFile[[#This Row],[2018/19_Source]]*T_DataComboFile[[#This Row],[G&S reporting level indicator]]","v":0},{"$f":"T_DataComboFile[[#This Row],[2019/20 Main appropriation_Source]]*T_DataComboFile[[#This Row],[G&S reporting level indicator]]","v":0},{"$f":"T_DataComboFile[[#This Row],[2019/20 Adjusted appropriation_Source]]*T_DataComboFile[[#This Row],[G&S reporting level indicator]]","v":0},{"$f":"T_DataComboFile[[#This Row],[2019/20 Revised estimate_Source]]*T_DataComboFile[[#This Row],[G&S reporting level indicator]]","v":0},{"$f":"T_DataComboFile[[#This Row],[2019/20 Preliminary outcome_Source]]*T_DataComboFile[[#This Row],[G&S reporting level indicator]]","v":0},{"$f":"T_DataComboFile[[#This Row],[2020/21 Original_Source]]*T_DataComboFile[[#This Row],[G&S reporting level indicator]]","v":0},{"$f":"T_DataComboFile[[#This Row],[2020/21 SAB_Source]]*T_DataComboFile[[#This Row],[G&S reporting level indicator]]","v":0},{"$f":"T_DataComboFile[[#This Row],[2020/21 Baseline_Source]]*T_DataComboFile[[#This Row],[G&S reporting level indicator]]","v":0},{"$f":"T_DataComboFile[[#This Row],[2021/22 Baseline_Source]]*T_DataComboFile[[#This Row],[G&S reporting level indicator]]","v":0},{"$f":"T_DataComboFile[[#This Row],[2022/23 Baseline_Source]]*T_DataComboFile[[#This Row],[G&S reporting level indicator]]","v":0},{"$f":"T_DataComboFile[[#This Row],[2023/24 Baseline_Source]]*T_DataComboFile[[#This Row],[G&S reporting level indicator]]","v":0},null,null,null,null,null,null,{"$f":"T_DataComboFile[[#This Row],[2021/22 Baseline]]+T_DataComboFile[[#This Row],[2021/22 Reduction]]+T_DataComboFile[[#This Row],[2021/22 Increase]]","v":0},{"$f":"T_DataComboFile[[#This Row],[2022/23 Baseline]]+T_DataComboFile[[#This Row],[2022/23 Reduction]]+T_DataComboFile[[#This Row],[2022/23 Increase]]","v":0},{"$f":"T_DataComboFile[[#This Row],[2023/24 Baseline]]+T_DataComboFile[[#This Row],[2023/24 Reduction]]+T_DataComboFile[[#This Row],[2023/24 Increase]]","v":0}]
[null,null,"2021_22","ENE2020",36,4,4,null,71297,36,4,4,null,"071297","36|04|04",1,2,9,51,55,"01|02|09|51|55","National","Small Business Development","Enterprise Development and Entrepreneurship","Entrepreneurship",null,"Current","Transfers and subsidies","Non-profit institutions","Non-profit institutions","Non-profit institutions",null,null,null,0,0,0,0,0,0,0,0,0,0,0,0,0,0,null,{"$f":"IF(T_DataComboFile[[#This Row],[G&S reporting level indicator]]=1,$AX$16,\"Not applicable\")","v":"Level 3"},{"$f":"IF(AND($AX$16=\"Level 3\",T_DataComboFile[[#This Row],[Econ3]] = \"Goods and services\"),IF(T_DataComboFile[[#This Row],[Econ4]] = T_DataComboFile[[#This Row],[Econ3]],1,0),IF(AND($AX$16=\"Level 4\",T_DataComboFile[[#This Row],[Econ4]] = \"Goods and services\"),0,1))","v":1},{"$f":"T_DataComboFile[[#This Row],[2016/17_Source]]*T_DataComboFile[[#This Row],[G&S reporting level indicator]]","v":0},{"$f":"T_DataComboFile[[#This Row],[2017/18_Source]]*T_DataComboFile[[#This Row],[G&S reporting level indicator]]","v":0},{"$f":"T_DataComboFile[[#This Row],[2018/19_Source]]*T_DataComboFile[[#This Row],[G&S reporting level indicator]]","v":0},{"$f":"T_DataComboFile[[#This Row],[2019/20 Main appropriation_Source]]*T_DataComboFile[[#This Row],[G&S reporting level indicator]]","v":0},{"$f":"T_DataComboFile[[#This Row],[2019/20 Adjusted appropriation_Source]]*T_DataComboFile[[#This Row],[G&S reporting level indicator]]","v":0},{"$f":"T_DataComboFile[[#This Row],[2019/20 Revised estimate_Source]]*T_DataComboFile[[#This Row],[G&S reporting level indicator]]","v":0},{"$f":"T_DataComboFile[[#This Row],[2019/20 Preliminary outcome_Source]]*T_DataComboFile[[#This Row],[G&S reporting level indicator]]","v":0},{"$f":"T_DataComboFile[[#This Row],[2020/21 Original_Source]]*T_DataComboFile[[#This Row],[G&S reporting level indicator]]","v":0},{"$f":"T_DataComboFile[[#This Row],[2020/21 SAB_Source]]*T_DataComboFile[[#This Row],[G&S reporting level indicator]]","v":0},{"$f":"T_DataComboFile[[#This Row],[2020/21 Baseline_Source]]*T_DataComboFile[[#This Row],[G&S reporting level indicator]]","v":0},{"$f":"T_DataComboFile[[#This Row],[2021/22 Baseline_Source]]*T_DataComboFile[[#This Row],[G&S reporting level indicator]]","v":0},{"$f":"T_DataComboFile[[#This Row],[2022/23 Baseline_Source]]*T_DataComboFile[[#This Row],[G&S reporting level indicator]]","v":0},{"$f":"T_DataComboFile[[#This Row],[2023/24 Baseline_Source]]*T_DataComboFile[[#This Row],[G&S reporting level indicator]]","v":0},null,null,null,null,null,null,{"$f":"T_DataComboFile[[#This Row],[2021/22 Baseline]]+T_DataComboFile[[#This Row],[2021/22 Reduction]]+T_DataComboFile[[#This Row],[2021/22 Increase]]","v":0},{"$f":"T_DataComboFile[[#This Row],[2022/23 Baseline]]+T_DataComboFile[[#This Row],[2022/23 Reduction]]+T_DataComboFile[[#This Row],[2022/23 Increase]]","v":0},{"$f":"T_DataComboFile[[#This Row],[2023/24 Baseline]]+T_DataComboFile[[#This Row],[2023/24 Reduction]]+T_DataComboFile[[#This Row],[2023/24 Increase]]","v":0}]
[null,null,"2021_22","ENE2020",36,4,4,null,71298,36,4,4,null,"071298","36|04|04",1,2,10,52,56,"01|02|10|52|56","National","Small Business Development","Enterprise Development and Entrepreneurship","Entrepreneurship",null,"Current","Transfers and subsidies","Households","Social benefits","Social benefits",null,null,null,0,0,0,0,0,0,0,0,0,0,0,0,0,0,null,{"$f":"IF(T_DataComboFile[[#This Row],[G&S reporting level indicator]]=1,$AX$16,\"Not applicable\")","v":"Level 3"},{"$f":"IF(AND($AX$16=\"Level 3\",T_DataComboFile[[#This Row],[Econ3]] = \"Goods and services\"),IF(T_DataComboFile[[#This Row],[Econ4]] = T_DataComboFile[[#This Row],[Econ3]],1,0),IF(AND($AX$16=\"Level 4\",T_DataComboFile[[#This Row],[Econ4]] = \"Goods and services\"),0,1))","v":1},{"$f":"T_DataComboFile[[#This Row],[2016/17_Source]]*T_DataComboFile[[#This Row],[G&S reporting level indicator]]","v":0},{"$f":"T_DataComboFile[[#This Row],[2017/18_Source]]*T_DataComboFile[[#This Row],[G&S reporting level indicator]]","v":0},{"$f":"T_DataComboFile[[#This Row],[2018/19_Source]]*T_DataComboFile[[#This Row],[G&S reporting level indicator]]","v":0},{"$f":"T_DataComboFile[[#This Row],[2019/20 Main appropriation_Source]]*T_DataComboFile[[#This Row],[G&S reporting level indicator]]","v":0},{"$f":"T_DataComboFile[[#This Row],[2019/20 Adjusted appropriation_Source]]*T_DataComboFile[[#This Row],[G&S reporting level indicator]]","v":0},{"$f":"T_DataComboFile[[#This Row],[2019/20 Revised estimate_Source]]*T_DataComboFile[[#This Row],[G&S reporting level indicator]]","v":0},{"$f":"T_DataComboFile[[#This Row],[2019/20 Preliminary outcome_Source]]*T_DataComboFile[[#This Row],[G&S reporting level indicator]]","v":0},{"$f":"T_DataComboFile[[#This Row],[2020/21 Original_Source]]*T_DataComboFile[[#This Row],[G&S reporting level indicator]]","v":0},{"$f":"T_DataComboFile[[#This Row],[2020/21 SAB_Source]]*T_DataComboFile[[#This Row],[G&S reporting level indicator]]","v":0},{"$f":"T_DataComboFile[[#This Row],[2020/21 Baseline_Source]]*T_DataComboFile[[#This Row],[G&S reporting level indicator]]","v":0},{"$f":"T_DataComboFile[[#This Row],[2021/22 Baseline_Source]]*T_DataComboFile[[#This Row],[G&S reporting level indicator]]","v":0},{"$f":"T_DataComboFile[[#This Row],[2022/23 Baseline_Source]]*T_DataComboFile[[#This Row],[G&S reporting level indicator]]","v":0},{"$f":"T_DataComboFile[[#This Row],[2023/24 Baseline_Source]]*T_DataComboFile[[#This Row],[G&S reporting level indicator]]","v":0},null,null,null,null,null,null,{"$f":"T_DataComboFile[[#This Row],[2021/22 Baseline]]+T_DataComboFile[[#This Row],[2021/22 Reduction]]+T_DataComboFile[[#This Row],[2021/22 Increase]]","v":0},{"$f":"T_DataComboFile[[#This Row],[2022/23 Baseline]]+T_DataComboFile[[#This Row],[2022/23 Reduction]]+T_DataComboFile[[#This Row],[2022/23 Increase]]","v":0},{"$f":"T_DataComboFile[[#This Row],[2023/24 Baseline]]+T_DataComboFile[[#This Row],[2023/24 Reduction]]+T_DataComboFile[[#This Row],[2023/24 Increase]]","v":0}]
[null,null,"2021_22","ENE2020",36,4,4,null,71299,36,4,4,null,"071299","36|04|04",1,2,10,53,57,"01|02|10|53|57","National","Small Business Development","Enterprise Development and Entrepreneurship","Entrepreneurship",null,"Current","Transfers and subsidies","Households","Other transfers to households","Other transfers to households",null,null,null,0,0,0,0,0,0,0,0,0,0,0,0,0,0,null,{"$f":"IF(T_DataComboFile[[#This Row],[G&S reporting level indicator]]=1,$AX$16,\"Not applicable\")","v":"Level 3"},{"$f":"IF(AND($AX$16=\"Level 3\",T_DataComboFile[[#This Row],[Econ3]] = \"Goods and services\"),IF(T_DataComboFile[[#This Row],[Econ4]] = T_DataComboFile[[#This Row],[Econ3]],1,0),IF(AND($AX$16=\"Level 4\",T_DataComboFile[[#This Row],[Econ4]] = \"Goods and services\"),0,1))","v":1},{"$f":"T_DataComboFile[[#This Row],[2016/17_Source]]*T_DataComboFile[[#This Row],[G&S reporting level indicator]]","v":0},{"$f":"T_DataComboFile[[#This Row],[2017/18_Source]]*T_DataComboFile[[#This Row],[G&S reporting level indicator]]","v":0},{"$f":"T_DataComboFile[[#This Row],[2018/19_Source]]*T_DataComboFile[[#This Row],[G&S reporting level indicator]]","v":0},{"$f":"T_DataComboFile[[#This Row],[2019/20 Main appropriation_Source]]*T_DataComboFile[[#This Row],[G&S reporting level indicator]]","v":0},{"$f":"T_DataComboFile[[#This Row],[2019/20 Adjusted appropriation_Source]]*T_DataComboFile[[#This Row],[G&S reporting level indicator]]","v":0},{"$f":"T_DataComboFile[[#This Row],[2019/20 Revised estimate_Source]]*T_DataComboFile[[#This Row],[G&S reporting level indicator]]","v":0},{"$f":"T_DataComboFile[[#This Row],[2019/20 Preliminary outcome_Source]]*T_DataComboFile[[#This Row],[G&S reporting level indicator]]","v":0},{"$f":"T_DataComboFile[[#This Row],[2020/21 Original_Source]]*T_DataComboFile[[#This Row],[G&S reporting level indicator]]","v":0},{"$f":"T_DataComboFile[[#This Row],[2020/21 SAB_Source]]*T_DataComboFile[[#This Row],[G&S reporting level indicator]]","v":0},{"$f":"T_DataComboFile[[#This Row],[2020/21 Baseline_Source]]*T_DataComboFile[[#This Row],[G&S reporting level indicator]]","v":0},{"$f":"T_DataComboFile[[#This Row],[2021/22 Baseline_Source]]*T_DataComboFile[[#This Row],[G&S reporting level indicator]]","v":0},{"$f":"T_DataComboFile[[#This Row],[2022/23 Baseline_Source]]*T_DataComboFile[[#This Row],[G&S reporting level indicator]]","v":0},{"$f":"T_DataComboFile[[#This Row],[2023/24 Baseline_Source]]*T_DataComboFile[[#This Row],[G&S reporting level indicator]]","v":0},null,null,null,null,null,null,{"$f":"T_DataComboFile[[#This Row],[2021/22 Baseline]]+T_DataComboFile[[#This Row],[2021/22 Reduction]]+T_DataComboFile[[#This Row],[2021/22 Increase]]","v":0},{"$f":"T_DataComboFile[[#This Row],[2022/23 Baseline]]+T_DataComboFile[[#This Row],[2022/23 Reduction]]+T_DataComboFile[[#This Row],[2022/23 Increase]]","v":0},{"$f":"T_DataComboFile[[#This Row],[2023/24 Baseline]]+T_DataComboFile[[#This Row],[2023/24 Reduction]]+T_DataComboFile[[#This Row],[2023/24 Increase]]","v":0}]
[null,null,"2021_22","ENE2020",36,4,4,null,71300,36,4,4,null,"071300","36|04|04",2,2,4,43,43,"02|02|04|43|43","National","Small Business Development","Enterprise Development and Entrepreneurship","Entrepreneurship",null,"Capital","Transfers and subsidies","Provinces and municipalities","Provinces","Provincial Revenue Funds",null,null,null,0,0,0,0,0,0,0,0,0,0,0,0,0,0,null,{"$f":"IF(T_DataComboFile[[#This Row],[G&S reporting level indicator]]=1,$AX$16,\"Not applicable\")","v":"Level 3"},{"$f":"IF(AND($AX$16=\"Level 3\",T_DataComboFile[[#This Row],[Econ3]] = \"Goods and services\"),IF(T_DataComboFile[[#This Row],[Econ4]] = T_DataComboFile[[#This Row],[Econ3]],1,0),IF(AND($AX$16=\"Level 4\",T_DataComboFile[[#This Row],[Econ4]] = \"Goods and services\"),0,1))","v":1},{"$f":"T_DataComboFile[[#This Row],[2016/17_Source]]*T_DataComboFile[[#This Row],[G&S reporting level indicator]]","v":0},{"$f":"T_DataComboFile[[#This Row],[2017/18_Source]]*T_DataComboFile[[#This Row],[G&S reporting level indicator]]","v":0},{"$f":"T_DataComboFile[[#This Row],[2018/19_Source]]*T_DataComboFile[[#This Row],[G&S reporting level indicator]]","v":0},{"$f":"T_DataComboFile[[#This Row],[2019/20 Main appropriation_Source]]*T_DataComboFile[[#This Row],[G&S reporting level indicator]]","v":0},{"$f":"T_DataComboFile[[#This Row],[2019/20 Adjusted appropriation_Source]]*T_DataComboFile[[#This Row],[G&S reporting level indicator]]","v":0},{"$f":"T_DataComboFile[[#This Row],[2019/20 Revised estimate_Source]]*T_DataComboFile[[#This Row],[G&S reporting level indicator]]","v":0},{"$f":"T_DataComboFile[[#This Row],[2019/20 Preliminary outcome_Source]]*T_DataComboFile[[#This Row],[G&S reporting level indicator]]","v":0},{"$f":"T_DataComboFile[[#This Row],[2020/21 Original_Source]]*T_DataComboFile[[#This Row],[G&S reporting level indicator]]","v":0},{"$f":"T_DataComboFile[[#This Row],[2020/21 SAB_Source]]*T_DataComboFile[[#This Row],[G&S reporting level indicator]]","v":0},{"$f":"T_DataComboFile[[#This Row],[2020/21 Baseline_Source]]*T_DataComboFile[[#This Row],[G&S reporting level indicator]]","v":0},{"$f":"T_DataComboFile[[#This Row],[2021/22 Baseline_Source]]*T_DataComboFile[[#This Row],[G&S reporting level indicator]]","v":0},{"$f":"T_DataComboFile[[#This Row],[2022/23 Baseline_Source]]*T_DataComboFile[[#This Row],[G&S reporting level indicator]]","v":0},{"$f":"T_DataComboFile[[#This Row],[2023/24 Baseline_Source]]*T_DataComboFile[[#This Row],[G&S reporting level indicator]]","v":0},null,null,null,null,null,null,{"$f":"T_DataComboFile[[#This Row],[2021/22 Baseline]]+T_DataComboFile[[#This Row],[2021/22 Reduction]]+T_DataComboFile[[#This Row],[2021/22 Increase]]","v":0},{"$f":"T_DataComboFile[[#This Row],[2022/23 Baseline]]+T_DataComboFile[[#This Row],[2022/23 Reduction]]+T_DataComboFile[[#This Row],[2022/23 Increase]]","v":0},{"$f":"T_DataComboFile[[#This Row],[2023/24 Baseline]]+T_DataComboFile[[#This Row],[2023/24 Reduction]]+T_DataComboFile[[#This Row],[2023/24 Increase]]","v":0}]
[null,null,"2021_22","ENE2020",36,4,4,null,71301,36,4,4,null,"071301","36|04|04",2,2,4,44,45,"02|02|04|44|45","National","Small Business Development","Enterprise Development and Entrepreneurship","Entrepreneurship",null,"Capital","Transfers and subsidies","Provinces and municipalities","Municipalities","Municipal bank accounts",null,null,null,0,0,0,0,0,0,0,0,0,0,0,0,0,0,null,{"$f":"IF(T_DataComboFile[[#This Row],[G&S reporting level indicator]]=1,$AX$16,\"Not applicable\")","v":"Level 3"},{"$f":"IF(AND($AX$16=\"Level 3\",T_DataComboFile[[#This Row],[Econ3]] = \"Goods and services\"),IF(T_DataComboFile[[#This Row],[Econ4]] = T_DataComboFile[[#This Row],[Econ3]],1,0),IF(AND($AX$16=\"Level 4\",T_DataComboFile[[#This Row],[Econ4]] = \"Goods and services\"),0,1))","v":1},{"$f":"T_DataComboFile[[#This Row],[2016/17_Source]]*T_DataComboFile[[#This Row],[G&S reporting level indicator]]","v":0},{"$f":"T_DataComboFile[[#This Row],[2017/18_Source]]*T_DataComboFile[[#This Row],[G&S reporting level indicator]]","v":0},{"$f":"T_DataComboFile[[#This Row],[2018/19_Source]]*T_DataComboFile[[#This Row],[G&S reporting level indicator]]","v":0},{"$f":"T_DataComboFile[[#This Row],[2019/20 Main appropriation_Source]]*T_DataComboFile[[#This Row],[G&S reporting level indicator]]","v":0},{"$f":"T_DataComboFile[[#This Row],[2019/20 Adjusted appropriation_Source]]*T_DataComboFile[[#This Row],[G&S reporting level indicator]]","v":0},{"$f":"T_DataComboFile[[#This Row],[2019/20 Revised estimate_Source]]*T_DataComboFile[[#This Row],[G&S reporting level indicator]]","v":0},{"$f":"T_DataComboFile[[#This Row],[2019/20 Preliminary outcome_Source]]*T_DataComboFile[[#This Row],[G&S reporting level indicator]]","v":0},{"$f":"T_DataComboFile[[#This Row],[2020/21 Original_Source]]*T_DataComboFile[[#This Row],[G&S reporting level indicator]]","v":0},{"$f":"T_DataComboFile[[#This Row],[2020/21 SAB_Source]]*T_DataComboFile[[#This Row],[G&S reporting level indicator]]","v":0},{"$f":"T_DataComboFile[[#This Row],[2020/21 Baseline_Source]]*T_DataComboFile[[#This Row],[G&S reporting level indicator]]","v":0},{"$f":"T_DataComboFile[[#This Row],[2021/22 Baseline_Source]]*T_DataComboFile[[#This Row],[G&S reporting level indicator]]","v":0},{"$f":"T_DataComboFile[[#This Row],[2022/23 Baseline_Source]]*T_DataComboFile[[#This Row],[G&S reporting level indicator]]","v":0},{"$f":"T_DataComboFile[[#This Row],[2023/24 Baseline_Source]]*T_DataComboFile[[#This Row],[G&S reporting level indicator]]","v":0},null,null,null,null,null,null,{"$f":"T_DataComboFile[[#This Row],[2021/22 Baseline]]+T_DataComboFile[[#This Row],[2021/22 Reduction]]+T_DataComboFile[[#This Row],[2021/22 Increase]]","v":0},{"$f":"T_DataComboFile[[#This Row],[2022/23 Baseline]]+T_DataComboFile[[#This Row],[2022/23 Reduction]]+T_DataComboFile[[#This Row],[2022/23 Increase]]","v":0},{"$f":"T_DataComboFile[[#This Row],[2023/24 Baseline]]+T_DataComboFile[[#This Row],[2023/24 Reduction]]+T_DataComboFile[[#This Row],[2023/24 Increase]]","v":0}]
[null,null,"2021_22","ENE2020",36,4,4,null,71302,36,4,4,null,"071302","36|04|04",2,2,5,46,48,"02|02|05|46|48","National","Small Business Development","Enterprise Development and Entrepreneurship","Entrepreneurship",null,"Capital","Transfers and subsidies","Departmental agencies and accounts","Departmental agencies (non-business entities)","Departmental agencies (non-business entities)",null,null,null,0,0,0,0,0,0,0,0,0,0,0,0,0,0,null,{"$f":"IF(T_DataComboFile[[#This Row],[G&S reporting level indicator]]=1,$AX$16,\"Not applicable\")","v":"Level 3"},{"$f":"IF(AND($AX$16=\"Level 3\",T_DataComboFile[[#This Row],[Econ3]] = \"Goods and services\"),IF(T_DataComboFile[[#This Row],[Econ4]] = T_DataComboFile[[#This Row],[Econ3]],1,0),IF(AND($AX$16=\"Level 4\",T_DataComboFile[[#This Row],[Econ4]] = \"Goods and services\"),0,1))","v":1},{"$f":"T_DataComboFile[[#This Row],[2016/17_Source]]*T_DataComboFile[[#This Row],[G&S reporting level indicator]]","v":0},{"$f":"T_DataComboFile[[#This Row],[2017/18_Source]]*T_DataComboFile[[#This Row],[G&S reporting level indicator]]","v":0},{"$f":"T_DataComboFile[[#This Row],[2018/19_Source]]*T_DataComboFile[[#This Row],[G&S reporting level indicator]]","v":0},{"$f":"T_DataComboFile[[#This Row],[2019/20 Main appropriation_Source]]*T_DataComboFile[[#This Row],[G&S reporting level indicator]]","v":0},{"$f":"T_DataComboFile[[#This Row],[2019/20 Adjusted appropriation_Source]]*T_DataComboFile[[#This Row],[G&S reporting level indicator]]","v":0},{"$f":"T_DataComboFile[[#This Row],[2019/20 Revised estimate_Source]]*T_DataComboFile[[#This Row],[G&S reporting level indicator]]","v":0},{"$f":"T_DataComboFile[[#This Row],[2019/20 Preliminary outcome_Source]]*T_DataComboFile[[#This Row],[G&S reporting level indicator]]","v":0},{"$f":"T_DataComboFile[[#This Row],[2020/21 Original_Source]]*T_DataComboFile[[#This Row],[G&S reporting level indicator]]","v":0},{"$f":"T_DataComboFile[[#This Row],[2020/21 SAB_Source]]*T_DataComboFile[[#This Row],[G&S reporting level indicator]]","v":0},{"$f":"T_DataComboFile[[#This Row],[2020/21 Baseline_Source]]*T_DataComboFile[[#This Row],[G&S reporting level indicator]]","v":0},{"$f":"T_DataComboFile[[#This Row],[2021/22 Baseline_Source]]*T_DataComboFile[[#This Row],[G&S reporting level indicator]]","v":0},{"$f":"T_DataComboFile[[#This Row],[2022/23 Baseline_Source]]*T_DataComboFile[[#This Row],[G&S reporting level indicator]]","v":0},{"$f":"T_DataComboFile[[#This Row],[2023/24 Baseline_Source]]*T_DataComboFile[[#This Row],[G&S reporting level indicator]]","v":0},null,null,null,null,null,null,{"$f":"T_DataComboFile[[#This Row],[2021/22 Baseline]]+T_DataComboFile[[#This Row],[2021/22 Reduction]]+T_DataComboFile[[#This Row],[2021/22 Increase]]","v":0},{"$f":"T_DataComboFile[[#This Row],[2022/23 Baseline]]+T_DataComboFile[[#This Row],[2022/23 Reduction]]+T_DataComboFile[[#This Row],[2022/23 Increase]]","v":0},{"$f":"T_DataComboFile[[#This Row],[2023/24 Baseline]]+T_DataComboFile[[#This Row],[2023/24 Reduction]]+T_DataComboFile[[#This Row],[2023/24 Increase]]","v":0}]
[null,null,"2021_22","ENE2020",36,4,4,null,71303,36,4,4,null,"071303","36|04|04",2,2,6,47,49,"02|02|06|47|49","National","Small Business Development","Enterprise Development and Entrepreneurship","Entrepreneurship",null,"Capital","Transfers and subsidies","Higher education institutions","Higher education institutions","Higher education institutions",null,null,null,0,0,0,0,0,0,0,0,0,0,0,0,0,0,null,{"$f":"IF(T_DataComboFile[[#This Row],[G&S reporting level indicator]]=1,$AX$16,\"Not applicable\")","v":"Level 3"},{"$f":"IF(AND($AX$16=\"Level 3\",T_DataComboFile[[#This Row],[Econ3]] = \"Goods and services\"),IF(T_DataComboFile[[#This Row],[Econ4]] = T_DataComboFile[[#This Row],[Econ3]],1,0),IF(AND($AX$16=\"Level 4\",T_DataComboFile[[#This Row],[Econ4]] = \"Goods and services\"),0,1))","v":1},{"$f":"T_DataComboFile[[#This Row],[2016/17_Source]]*T_DataComboFile[[#This Row],[G&S reporting level indicator]]","v":0},{"$f":"T_DataComboFile[[#This Row],[2017/18_Source]]*T_DataComboFile[[#This Row],[G&S reporting level indicator]]","v":0},{"$f":"T_DataComboFile[[#This Row],[2018/19_Source]]*T_DataComboFile[[#This Row],[G&S reporting level indicator]]","v":0},{"$f":"T_DataComboFile[[#This Row],[2019/20 Main appropriation_Source]]*T_DataComboFile[[#This Row],[G&S reporting level indicator]]","v":0},{"$f":"T_DataComboFile[[#This Row],[2019/20 Adjusted appropriation_Source]]*T_DataComboFile[[#This Row],[G&S reporting level indicator]]","v":0},{"$f":"T_DataComboFile[[#This Row],[2019/20 Revised estimate_Source]]*T_DataComboFile[[#This Row],[G&S reporting level indicator]]","v":0},{"$f":"T_DataComboFile[[#This Row],[2019/20 Preliminary outcome_Source]]*T_DataComboFile[[#This Row],[G&S reporting level indicator]]","v":0},{"$f":"T_DataComboFile[[#This Row],[2020/21 Original_Source]]*T_DataComboFile[[#This Row],[G&S reporting level indicator]]","v":0},{"$f":"T_DataComboFile[[#This Row],[2020/21 SAB_Source]]*T_DataComboFile[[#This Row],[G&S reporting level indicator]]","v":0},{"$f":"T_DataComboFile[[#This Row],[2020/21 Baseline_Source]]*T_DataComboFile[[#This Row],[G&S reporting level indicator]]","v":0},{"$f":"T_DataComboFile[[#This Row],[2021/22 Baseline_Source]]*T_DataComboFile[[#This Row],[G&S reporting level indicator]]","v":0},{"$f":"T_DataComboFile[[#This Row],[2022/23 Baseline_Source]]*T_DataComboFile[[#This Row],[G&S reporting level indicator]]","v":0},{"$f":"T_DataComboFile[[#This Row],[2023/24 Baseline_Source]]*T_DataComboFile[[#This Row],[G&S reporting level indicator]]","v":0},null,null,null,null,null,null,{"$f":"T_DataComboFile[[#This Row],[2021/22 Baseline]]+T_DataComboFile[[#This Row],[2021/22 Reduction]]+T_DataComboFile[[#This Row],[2021/22 Increase]]","v":0},{"$f":"T_DataComboFile[[#This Row],[2022/23 Baseline]]+T_DataComboFile[[#This Row],[2022/23 Reduction]]+T_DataComboFile[[#This Row],[2022/23 Increase]]","v":0},{"$f":"T_DataComboFile[[#This Row],[2023/24 Baseline]]+T_DataComboFile[[#This Row],[2023/24 Reduction]]+T_DataComboFile[[#This Row],[2023/24 Increase]]","v":0}]
[null,null,"2021_22","ENE2020",36,4,4,null,71304,36,4,4,null,"071304","36|04|04",2,2,7,48,50,"02|02|07|48|50","National","Small Business Development","Enterprise Development and Entrepreneurship","Entrepreneurship",null,"Capital","Transfers and subsidies","Foreign governments and international organisations","Foreign governments and international organisations","Foreign governments and international organisations",null,null,null,0,0,0,0,0,0,0,0,0,0,0,0,0,0,null,{"$f":"IF(T_DataComboFile[[#This Row],[G&S reporting level indicator]]=1,$AX$16,\"Not applicable\")","v":"Level 3"},{"$f":"IF(AND($AX$16=\"Level 3\",T_DataComboFile[[#This Row],[Econ3]] = \"Goods and services\"),IF(T_DataComboFile[[#This Row],[Econ4]] = T_DataComboFile[[#This Row],[Econ3]],1,0),IF(AND($AX$16=\"Level 4\",T_DataComboFile[[#This Row],[Econ4]] = \"Goods and services\"),0,1))","v":1},{"$f":"T_DataComboFile[[#This Row],[2016/17_Source]]*T_DataComboFile[[#This Row],[G&S reporting level indicator]]","v":0},{"$f":"T_DataComboFile[[#This Row],[2017/18_Source]]*T_DataComboFile[[#This Row],[G&S reporting level indicator]]","v":0},{"$f":"T_DataComboFile[[#This Row],[2018/19_Source]]*T_DataComboFile[[#This Row],[G&S reporting level indicator]]","v":0},{"$f":"T_DataComboFile[[#This Row],[2019/20 Main appropriation_Source]]*T_DataComboFile[[#This Row],[G&S reporting level indicator]]","v":0},{"$f":"T_DataComboFile[[#This Row],[2019/20 Adjusted appropriation_Source]]*T_DataComboFile[[#This Row],[G&S reporting level indicator]]","v":0},{"$f":"T_DataComboFile[[#This Row],[2019/20 Revised estimate_Source]]*T_DataComboFile[[#This Row],[G&S reporting level indicator]]","v":0},{"$f":"T_DataComboFile[[#This Row],[2019/20 Preliminary outcome_Source]]*T_DataComboFile[[#This Row],[G&S reporting level indicator]]","v":0},{"$f":"T_DataComboFile[[#This Row],[2020/21 Original_Source]]*T_DataComboFile[[#This Row],[G&S reporting level indicator]]","v":0},{"$f":"T_DataComboFile[[#This Row],[2020/21 SAB_Source]]*T_DataComboFile[[#This Row],[G&S reporting level indicator]]","v":0},{"$f":"T_DataComboFile[[#This Row],[2020/21 Baseline_Source]]*T_DataComboFile[[#This Row],[G&S reporting level indicator]]","v":0},{"$f":"T_DataComboFile[[#This Row],[2021/22 Baseline_Source]]*T_DataComboFile[[#This Row],[G&S reporting level indicator]]","v":0},{"$f":"T_DataComboFile[[#This Row],[2022/23 Baseline_Source]]*T_DataComboFile[[#This Row],[G&S reporting level indicator]]","v":0},{"$f":"T_DataComboFile[[#This Row],[2023/24 Baseline_Source]]*T_DataComboFile[[#This Row],[G&S reporting level indicator]]","v":0},null,null,null,null,null,null,{"$f":"T_DataComboFile[[#This Row],[2021/22 Baseline]]+T_DataComboFile[[#This Row],[2021/22 Reduction]]+T_DataComboFile[[#This Row],[2021/22 Increase]]","v":0},{"$f":"T_DataComboFile[[#This Row],[2022/23 Baseline]]+T_DataComboFile[[#This Row],[2022/23 Reduction]]+T_DataComboFile[[#This Row],[2022/23 Increase]]","v":0},{"$f":"T_DataComboFile[[#This Row],[2023/24 Baseline]]+T_DataComboFile[[#This Row],[2023/24 Reduction]]+T_DataComboFile[[#This Row],[2023/24 Increase]]","v":0}]
[null,null,"2021_22","ENE2020",36,4,4,null,71305,36,4,4,null,"071305","36|04|04",2,2,8,49,51,"02|02|08|49|51","National","Small Business Development","Enterprise Development and Entrepreneurship","Entrepreneurship",null,"Capital","Transfers and subsidies","Public corporations and private enterprises","Public corporations","Subsidies on products and production (pc)",null,null,null,0,0,0,0,0,0,0,0,0,0,0,0,0,0,null,{"$f":"IF(T_DataComboFile[[#This Row],[G&S reporting level indicator]]=1,$AX$16,\"Not applicable\")","v":"Level 3"},{"$f":"IF(AND($AX$16=\"Level 3\",T_DataComboFile[[#This Row],[Econ3]] = \"Goods and services\"),IF(T_DataComboFile[[#This Row],[Econ4]] = T_DataComboFile[[#This Row],[Econ3]],1,0),IF(AND($AX$16=\"Level 4\",T_DataComboFile[[#This Row],[Econ4]] = \"Goods and services\"),0,1))","v":1},{"$f":"T_DataComboFile[[#This Row],[2016/17_Source]]*T_DataComboFile[[#This Row],[G&S reporting level indicator]]","v":0},{"$f":"T_DataComboFile[[#This Row],[2017/18_Source]]*T_DataComboFile[[#This Row],[G&S reporting level indicator]]","v":0},{"$f":"T_DataComboFile[[#This Row],[2018/19_Source]]*T_DataComboFile[[#This Row],[G&S reporting level indicator]]","v":0},{"$f":"T_DataComboFile[[#This Row],[2019/20 Main appropriation_Source]]*T_DataComboFile[[#This Row],[G&S reporting level indicator]]","v":0},{"$f":"T_DataComboFile[[#This Row],[2019/20 Adjusted appropriation_Source]]*T_DataComboFile[[#This Row],[G&S reporting level indicator]]","v":0},{"$f":"T_DataComboFile[[#This Row],[2019/20 Revised estimate_Source]]*T_DataComboFile[[#This Row],[G&S reporting level indicator]]","v":0},{"$f":"T_DataComboFile[[#This Row],[2019/20 Preliminary outcome_Source]]*T_DataComboFile[[#This Row],[G&S reporting level indicator]]","v":0},{"$f":"T_DataComboFile[[#This Row],[2020/21 Original_Source]]*T_DataComboFile[[#This Row],[G&S reporting level indicator]]","v":0},{"$f":"T_DataComboFile[[#This Row],[2020/21 SAB_Source]]*T_DataComboFile[[#This Row],[G&S reporting level indicator]]","v":0},{"$f":"T_DataComboFile[[#This Row],[2020/21 Baseline_Source]]*T_DataComboFile[[#This Row],[G&S reporting level indicator]]","v":0},{"$f":"T_DataComboFile[[#This Row],[2021/22 Baseline_Source]]*T_DataComboFile[[#This Row],[G&S reporting level indicator]]","v":0},{"$f":"T_DataComboFile[[#This Row],[2022/23 Baseline_Source]]*T_DataComboFile[[#This Row],[G&S reporting level indicator]]","v":0},{"$f":"T_DataComboFile[[#This Row],[2023/24 Baseline_Source]]*T_DataComboFile[[#This Row],[G&S reporting level indicator]]","v":0},null,null,null,null,null,null,{"$f":"T_DataComboFile[[#This Row],[2021/22 Baseline]]+T_DataComboFile[[#This Row],[2021/22 Reduction]]+T_DataComboFile[[#This Row],[2021/22 Increase]]","v":0},{"$f":"T_DataComboFile[[#This Row],[2022/23 Baseline]]+T_DataComboFile[[#This Row],[2022/23 Reduction]]+T_DataComboFile[[#This Row],[2022/23 Increase]]","v":0},{"$f":"T_DataComboFile[[#This Row],[2023/24 Baseline]]+T_DataComboFile[[#This Row],[2023/24 Reduction]]+T_DataComboFile[[#This Row],[2023/24 Increase]]","v":0}]
[null,null,"2021_22","ENE2020",36,4,4,null,71306,36,4,4,null,"071306","36|04|04",2,2,8,49,52,"02|02|08|49|52","National","Small Business Development","Enterprise Development and Entrepreneurship","Entrepreneurship",null,"Capital","Transfers and subsidies","Public corporations and private enterprises","Public corporations","Other transfers to public corporations",null,null,null,0,0,0,0,0,0,0,0,0,0,0,0,0,0,null,{"$f":"IF(T_DataComboFile[[#This Row],[G&S reporting level indicator]]=1,$AX$16,\"Not applicable\")","v":"Level 3"},{"$f":"IF(AND($AX$16=\"Level 3\",T_DataComboFile[[#This Row],[Econ3]] = \"Goods and services\"),IF(T_DataComboFile[[#This Row],[Econ4]] = T_DataComboFile[[#This Row],[Econ3]],1,0),IF(AND($AX$16=\"Level 4\",T_DataComboFile[[#This Row],[Econ4]] = \"Goods and services\"),0,1))","v":1},{"$f":"T_DataComboFile[[#This Row],[2016/17_Source]]*T_DataComboFile[[#This Row],[G&S reporting level indicator]]","v":0},{"$f":"T_DataComboFile[[#This Row],[2017/18_Source]]*T_DataComboFile[[#This Row],[G&S reporting level indicator]]","v":0},{"$f":"T_DataComboFile[[#This Row],[2018/19_Source]]*T_DataComboFile[[#This Row],[G&S reporting level indicator]]","v":0},{"$f":"T_DataComboFile[[#This Row],[2019/20 Main appropriation_Source]]*T_DataComboFile[[#This Row],[G&S reporting level indicator]]","v":0},{"$f":"T_DataComboFile[[#This Row],[2019/20 Adjusted appropriation_Source]]*T_DataComboFile[[#This Row],[G&S reporting level indicator]]","v":0},{"$f":"T_DataComboFile[[#This Row],[2019/20 Revised estimate_Source]]*T_DataComboFile[[#This Row],[G&S reporting level indicator]]","v":0},{"$f":"T_DataComboFile[[#This Row],[2019/20 Preliminary outcome_Source]]*T_DataComboFile[[#This Row],[G&S reporting level indicator]]","v":0},{"$f":"T_DataComboFile[[#This Row],[2020/21 Original_Source]]*T_DataComboFile[[#This Row],[G&S reporting level indicator]]","v":0},{"$f":"T_DataComboFile[[#This Row],[2020/21 SAB_Source]]*T_DataComboFile[[#This Row],[G&S reporting level indicator]]","v":0},{"$f":"T_DataComboFile[[#This Row],[2020/21 Baseline_Source]]*T_DataComboFile[[#This Row],[G&S reporting level indicator]]","v":0},{"$f":"T_DataComboFile[[#This Row],[2021/22 Baseline_Source]]*T_DataComboFile[[#This Row],[G&S reporting level indicator]]","v":0},{"$f":"T_DataComboFile[[#This Row],[2022/23 Baseline_Source]]*T_DataComboFile[[#This Row],[G&S reporting level indicator]]","v":0},{"$f":"T_DataComboFile[[#This Row],[2023/24 Baseline_Source]]*T_DataComboFile[[#This Row],[G&S reporting level indicator]]","v":0},null,null,null,null,null,null,{"$f":"T_DataComboFile[[#This Row],[2021/22 Baseline]]+T_DataComboFile[[#This Row],[2021/22 Reduction]]+T_DataComboFile[[#This Row],[2021/22 Increase]]","v":0},{"$f":"T_DataComboFile[[#This Row],[2022/23 Baseline]]+T_DataComboFile[[#This Row],[2022/23 Reduction]]+T_DataComboFile[[#This Row],[2022/23 Increase]]","v":0},{"$f":"T_DataComboFile[[#This Row],[2023/24 Baseline]]+T_DataComboFile[[#This Row],[2023/24 Reduction]]+T_DataComboFile[[#This Row],[2023/24 Increase]]","v":0}]
[null,null,"2021_22","ENE2020",36,4,4,null,71307,36,4,4,null,"071307","36|04|04",2,2,8,50,54,"02|02|08|50|54","National","Small Business Development","Enterprise Development and Entrepreneurship","Entrepreneurship",null,"Capital","Transfers and subsidies","Public corporations and private enterprises","Private enterprises","Other transfers to private enterprises",null,null,null,0,0,0,0,0,0,0,0,0,0,0,0,0,0,null,{"$f":"IF(T_DataComboFile[[#This Row],[G&S reporting level indicator]]=1,$AX$16,\"Not applicable\")","v":"Level 3"},{"$f":"IF(AND($AX$16=\"Level 3\",T_DataComboFile[[#This Row],[Econ3]] = \"Goods and services\"),IF(T_DataComboFile[[#This Row],[Econ4]] = T_DataComboFile[[#This Row],[Econ3]],1,0),IF(AND($AX$16=\"Level 4\",T_DataComboFile[[#This Row],[Econ4]] = \"Goods and services\"),0,1))","v":1},{"$f":"T_DataComboFile[[#This Row],[2016/17_Source]]*T_DataComboFile[[#This Row],[G&S reporting level indicator]]","v":0},{"$f":"T_DataComboFile[[#This Row],[2017/18_Source]]*T_DataComboFile[[#This Row],[G&S reporting level indicator]]","v":0},{"$f":"T_DataComboFile[[#This Row],[2018/19_Source]]*T_DataComboFile[[#This Row],[G&S reporting level indicator]]","v":0},{"$f":"T_DataComboFile[[#This Row],[2019/20 Main appropriation_Source]]*T_DataComboFile[[#This Row],[G&S reporting level indicator]]","v":0},{"$f":"T_DataComboFile[[#This Row],[2019/20 Adjusted appropriation_Source]]*T_DataComboFile[[#This Row],[G&S reporting level indicator]]","v":0},{"$f":"T_DataComboFile[[#This Row],[2019/20 Revised estimate_Source]]*T_DataComboFile[[#This Row],[G&S reporting level indicator]]","v":0},{"$f":"T_DataComboFile[[#This Row],[2019/20 Preliminary outcome_Source]]*T_DataComboFile[[#This Row],[G&S reporting level indicator]]","v":0},{"$f":"T_DataComboFile[[#This Row],[2020/21 Original_Source]]*T_DataComboFile[[#This Row],[G&S reporting level indicator]]","v":0},{"$f":"T_DataComboFile[[#This Row],[2020/21 SAB_Source]]*T_DataComboFile[[#This Row],[G&S reporting level indicator]]","v":0},{"$f":"T_DataComboFile[[#This Row],[2020/21 Baseline_Source]]*T_DataComboFile[[#This Row],[G&S reporting level indicator]]","v":0},{"$f":"T_DataComboFile[[#This Row],[2021/22 Baseline_Source]]*T_DataComboFile[[#This Row],[G&S reporting level indicator]]","v":0},{"$f":"T_DataComboFile[[#This Row],[2022/23 Baseline_Source]]*T_DataComboFile[[#This Row],[G&S reporting level indicator]]","v":0},{"$f":"T_DataComboFile[[#This Row],[2023/24 Baseline_Source]]*T_DataComboFile[[#This Row],[G&S reporting level indicator]]","v":0},null,null,null,null,null,null,{"$f":"T_DataComboFile[[#This Row],[2021/22 Baseline]]+T_DataComboFile[[#This Row],[2021/22 Reduction]]+T_DataComboFile[[#This Row],[2021/22 Increase]]","v":0},{"$f":"T_DataComboFile[[#This Row],[2022/23 Baseline]]+T_DataComboFile[[#This Row],[2022/23 Reduction]]+T_DataComboFile[[#This Row],[2022/23 Increase]]","v":0},{"$f":"T_DataComboFile[[#This Row],[2023/24 Baseline]]+T_DataComboFile[[#This Row],[2023/24 Reduction]]+T_DataComboFile[[#This Row],[2023/24 Increase]]","v":0}]
[null,null,"2021_22","ENE2020",36,4,4,null,71308,36,4,4,null,"071308","36|04|04",2,2,9,51,55,"02|02|09|51|55","National","Small Business Development","Enterprise Development and Entrepreneurship","Entrepreneurship",null,"Capital","Transfers and subsidies","Non-profit institutions","Non-profit institutions","Non-profit institutions",null,null,null,0,0,0,0,0,0,0,0,0,0,0,0,0,0,null,{"$f":"IF(T_DataComboFile[[#This Row],[G&S reporting level indicator]]=1,$AX$16,\"Not applicable\")","v":"Level 3"},{"$f":"IF(AND($AX$16=\"Level 3\",T_DataComboFile[[#This Row],[Econ3]] = \"Goods and services\"),IF(T_DataComboFile[[#This Row],[Econ4]] = T_DataComboFile[[#This Row],[Econ3]],1,0),IF(AND($AX$16=\"Level 4\",T_DataComboFile[[#This Row],[Econ4]] = \"Goods and services\"),0,1))","v":1},{"$f":"T_DataComboFile[[#This Row],[2016/17_Source]]*T_DataComboFile[[#This Row],[G&S reporting level indicator]]","v":0},{"$f":"T_DataComboFile[[#This Row],[2017/18_Source]]*T_DataComboFile[[#This Row],[G&S reporting level indicator]]","v":0},{"$f":"T_DataComboFile[[#This Row],[2018/19_Source]]*T_DataComboFile[[#This Row],[G&S reporting level indicator]]","v":0},{"$f":"T_DataComboFile[[#This Row],[2019/20 Main appropriation_Source]]*T_DataComboFile[[#This Row],[G&S reporting level indicator]]","v":0},{"$f":"T_DataComboFile[[#This Row],[2019/20 Adjusted appropriation_Source]]*T_DataComboFile[[#This Row],[G&S reporting level indicator]]","v":0},{"$f":"T_DataComboFile[[#This Row],[2019/20 Revised estimate_Source]]*T_DataComboFile[[#This Row],[G&S reporting level indicator]]","v":0},{"$f":"T_DataComboFile[[#This Row],[2019/20 Preliminary outcome_Source]]*T_DataComboFile[[#This Row],[G&S reporting level indicator]]","v":0},{"$f":"T_DataComboFile[[#This Row],[2020/21 Original_Source]]*T_DataComboFile[[#This Row],[G&S reporting level indicator]]","v":0},{"$f":"T_DataComboFile[[#This Row],[2020/21 SAB_Source]]*T_DataComboFile[[#This Row],[G&S reporting level indicator]]","v":0},{"$f":"T_DataComboFile[[#This Row],[2020/21 Baseline_Source]]*T_DataComboFile[[#This Row],[G&S reporting level indicator]]","v":0},{"$f":"T_DataComboFile[[#This Row],[2021/22 Baseline_Source]]*T_DataComboFile[[#This Row],[G&S reporting level indicator]]","v":0},{"$f":"T_DataComboFile[[#This Row],[2022/23 Baseline_Source]]*T_DataComboFile[[#This Row],[G&S reporting level indicator]]","v":0},{"$f":"T_DataComboFile[[#This Row],[2023/24 Baseline_Source]]*T_DataComboFile[[#This Row],[G&S reporting level indicator]]","v":0},null,null,null,null,null,null,{"$f":"T_DataComboFile[[#This Row],[2021/22 Baseline]]+T_DataComboFile[[#This Row],[2021/22 Reduction]]+T_DataComboFile[[#This Row],[2021/22 Increase]]","v":0},{"$f":"T_DataComboFile[[#This Row],[2022/23 Baseline]]+T_DataComboFile[[#This Row],[2022/23 Reduction]]+T_DataComboFile[[#This Row],[2022/23 Increase]]","v":0},{"$f":"T_DataComboFile[[#This Row],[2023/24 Baseline]]+T_DataComboFile[[#This Row],[2023/24 Reduction]]+T_DataComboFile[[#This Row],[2023/24 Increase]]","v":0}]
[null,null,"2021_22","ENE2020",36,4,4,null,71309,36,4,4,null,"071309","36|04|04",2,2,10,53,57,"02|02|10|53|57","National","Small Business Development","Enterprise Development and Entrepreneurship","Entrepreneurship",null,"Capital","Transfers and subsidies","Households","Other transfers to households","Other transfers to households",null,null,null,0,0,0,0,0,0,0,0,0,0,0,0,0,0,null,{"$f":"IF(T_DataComboFile[[#This Row],[G&S reporting level indicator]]=1,$AX$16,\"Not applicable\")","v":"Level 3"},{"$f":"IF(AND($AX$16=\"Level 3\",T_DataComboFile[[#This Row],[Econ3]] = \"Goods and services\"),IF(T_DataComboFile[[#This Row],[Econ4]] = T_DataComboFile[[#This Row],[Econ3]],1,0),IF(AND($AX$16=\"Level 4\",T_DataComboFile[[#This Row],[Econ4]] = \"Goods and services\"),0,1))","v":1},{"$f":"T_DataComboFile[[#This Row],[2016/17_Source]]*T_DataComboFile[[#This Row],[G&S reporting level indicator]]","v":0},{"$f":"T_DataComboFile[[#This Row],[2017/18_Source]]*T_DataComboFile[[#This Row],[G&S reporting level indicator]]","v":0},{"$f":"T_DataComboFile[[#This Row],[2018/19_Source]]*T_DataComboFile[[#This Row],[G&S reporting level indicator]]","v":0},{"$f":"T_DataComboFile[[#This Row],[2019/20 Main appropriation_Source]]*T_DataComboFile[[#This Row],[G&S reporting level indicator]]","v":0},{"$f":"T_DataComboFile[[#This Row],[2019/20 Adjusted appropriation_Source]]*T_DataComboFile[[#This Row],[G&S reporting level indicator]]","v":0},{"$f":"T_DataComboFile[[#This Row],[2019/20 Revised estimate_Source]]*T_DataComboFile[[#This Row],[G&S reporting level indicator]]","v":0},{"$f":"T_DataComboFile[[#This Row],[2019/20 Preliminary outcome_Source]]*T_DataComboFile[[#This Row],[G&S reporting level indicator]]","v":0},{"$f":"T_DataComboFile[[#This Row],[2020/21 Original_Source]]*T_DataComboFile[[#This Row],[G&S reporting level indicator]]","v":0},{"$f":"T_DataComboFile[[#This Row],[2020/21 SAB_Source]]*T_DataComboFile[[#This Row],[G&S reporting level indicator]]","v":0},{"$f":"T_DataComboFile[[#This Row],[2020/21 Baseline_Source]]*T_DataComboFile[[#This Row],[G&S reporting level indicator]]","v":0},{"$f":"T_DataComboFile[[#This Row],[2021/22 Baseline_Source]]*T_DataComboFile[[#This Row],[G&S reporting level indicator]]","v":0},{"$f":"T_DataComboFile[[#This Row],[2022/23 Baseline_Source]]*T_DataComboFile[[#This Row],[G&S reporting level indicator]]","v":0},{"$f":"T_DataComboFile[[#This Row],[2023/24 Baseline_Source]]*T_DataComboFile[[#This Row],[G&S reporting level indicator]]","v":0},null,null,null,null,null,null,{"$f":"T_DataComboFile[[#This Row],[2021/22 Baseline]]+T_DataComboFile[[#This Row],[2021/22 Reduction]]+T_DataComboFile[[#This Row],[2021/22 Increase]]","v":0},{"$f":"T_DataComboFile[[#This Row],[2022/23 Baseline]]+T_DataComboFile[[#This Row],[2022/23 Reduction]]+T_DataComboFile[[#This Row],[2022/23 Increase]]","v":0},{"$f":"T_DataComboFile[[#This Row],[2023/24 Baseline]]+T_DataComboFile[[#This Row],[2023/24 Reduction]]+T_DataComboFile[[#This Row],[2023/24 Increase]]","v":0}]
[null,null,"2021_22","ENE2020",36,4,4,null,71310,36,4,4,null,"071310","36|04|04",2,3,11,54,58,"02|03|11|54|58","National","Small Business Development","Enterprise Development and Entrepreneurship","Entrepreneurship",null,"Capital","Payments for capital assets","Buildings and other fixed structures","Buildings","Buildings",null,null,null,0,0,0,0,0,0,0,0,0,0,0,0,0,0,null,{"$f":"IF(T_DataComboFile[[#This Row],[G&S reporting level indicator]]=1,$AX$16,\"Not applicable\")","v":"Level 3"},{"$f":"IF(AND($AX$16=\"Level 3\",T_DataComboFile[[#This Row],[Econ3]] = \"Goods and services\"),IF(T_DataComboFile[[#This Row],[Econ4]] = T_DataComboFile[[#This Row],[Econ3]],1,0),IF(AND($AX$16=\"Level 4\",T_DataComboFile[[#This Row],[Econ4]] = \"Goods and services\"),0,1))","v":1},{"$f":"T_DataComboFile[[#This Row],[2016/17_Source]]*T_DataComboFile[[#This Row],[G&S reporting level indicator]]","v":0},{"$f":"T_DataComboFile[[#This Row],[2017/18_Source]]*T_DataComboFile[[#This Row],[G&S reporting level indicator]]","v":0},{"$f":"T_DataComboFile[[#This Row],[2018/19_Source]]*T_DataComboFile[[#This Row],[G&S reporting level indicator]]","v":0},{"$f":"T_DataComboFile[[#This Row],[2019/20 Main appropriation_Source]]*T_DataComboFile[[#This Row],[G&S reporting level indicator]]","v":0},{"$f":"T_DataComboFile[[#This Row],[2019/20 Adjusted appropriation_Source]]*T_DataComboFile[[#This Row],[G&S reporting level indicator]]","v":0},{"$f":"T_DataComboFile[[#This Row],[2019/20 Revised estimate_Source]]*T_DataComboFile[[#This Row],[G&S reporting level indicator]]","v":0},{"$f":"T_DataComboFile[[#This Row],[2019/20 Preliminary outcome_Source]]*T_DataComboFile[[#This Row],[G&S reporting level indicator]]","v":0},{"$f":"T_DataComboFile[[#This Row],[2020/21 Original_Source]]*T_DataComboFile[[#This Row],[G&S reporting level indicator]]","v":0},{"$f":"T_DataComboFile[[#This Row],[2020/21 SAB_Source]]*T_DataComboFile[[#This Row],[G&S reporting level indicator]]","v":0},{"$f":"T_DataComboFile[[#This Row],[2020/21 Baseline_Source]]*T_DataComboFile[[#This Row],[G&S reporting level indicator]]","v":0},{"$f":"T_DataComboFile[[#This Row],[2021/22 Baseline_Source]]*T_DataComboFile[[#This Row],[G&S reporting level indicator]]","v":0},{"$f":"T_DataComboFile[[#This Row],[2022/23 Baseline_Source]]*T_DataComboFile[[#This Row],[G&S reporting level indicator]]","v":0},{"$f":"T_DataComboFile[[#This Row],[2023/24 Baseline_Source]]*T_DataComboFile[[#This Row],[G&S reporting level indicator]]","v":0},null,null,null,null,null,null,{"$f":"T_DataComboFile[[#This Row],[2021/22 Baseline]]+T_DataComboFile[[#This Row],[2021/22 Reduction]]+T_DataComboFile[[#This Row],[2021/22 Increase]]","v":0},{"$f":"T_DataComboFile[[#This Row],[2022/23 Baseline]]+T_DataComboFile[[#This Row],[2022/23 Reduction]]+T_DataComboFile[[#This Row],[2022/23 Increase]]","v":0},{"$f":"T_DataComboFile[[#This Row],[2023/24 Baseline]]+T_DataComboFile[[#This Row],[2023/24 Reduction]]+T_DataComboFile[[#This Row],[2023/24 Increase]]","v":0}]
[null,null,"2021_22","ENE2020",36,4,4,null,71311,36,4,4,null,"071311","36|04|04",2,3,11,55,59,"02|03|11|55|59","National","Small Business Development","Enterprise Development and Entrepreneurship","Entrepreneurship",null,"Capital","Payments for capital assets","Buildings and other fixed structures","Other fixed structures","Other fixed structures",null,null,null,0,0,0,0,0,0,0,0,0,0,0,0,0,0,null,{"$f":"IF(T_DataComboFile[[#This Row],[G&S reporting level indicator]]=1,$AX$16,\"Not applicable\")","v":"Level 3"},{"$f":"IF(AND($AX$16=\"Level 3\",T_DataComboFile[[#This Row],[Econ3]] = \"Goods and services\"),IF(T_DataComboFile[[#This Row],[Econ4]] = T_DataComboFile[[#This Row],[Econ3]],1,0),IF(AND($AX$16=\"Level 4\",T_DataComboFile[[#This Row],[Econ4]] = \"Goods and services\"),0,1))","v":1},{"$f":"T_DataComboFile[[#This Row],[2016/17_Source]]*T_DataComboFile[[#This Row],[G&S reporting level indicator]]","v":0},{"$f":"T_DataComboFile[[#This Row],[2017/18_Source]]*T_DataComboFile[[#This Row],[G&S reporting level indicator]]","v":0},{"$f":"T_DataComboFile[[#This Row],[2018/19_Source]]*T_DataComboFile[[#This Row],[G&S reporting level indicator]]","v":0},{"$f":"T_DataComboFile[[#This Row],[2019/20 Main appropriation_Source]]*T_DataComboFile[[#This Row],[G&S reporting level indicator]]","v":0},{"$f":"T_DataComboFile[[#This Row],[2019/20 Adjusted appropriation_Source]]*T_DataComboFile[[#This Row],[G&S reporting level indicator]]","v":0},{"$f":"T_DataComboFile[[#This Row],[2019/20 Revised estimate_Source]]*T_DataComboFile[[#This Row],[G&S reporting level indicator]]","v":0},{"$f":"T_DataComboFile[[#This Row],[2019/20 Preliminary outcome_Source]]*T_DataComboFile[[#This Row],[G&S reporting level indicator]]","v":0},{"$f":"T_DataComboFile[[#This Row],[2020/21 Original_Source]]*T_DataComboFile[[#This Row],[G&S reporting level indicator]]","v":0},{"$f":"T_DataComboFile[[#This Row],[2020/21 SAB_Source]]*T_DataComboFile[[#This Row],[G&S reporting level indicator]]","v":0},{"$f":"T_DataComboFile[[#This Row],[2020/21 Baseline_Source]]*T_DataComboFile[[#This Row],[G&S reporting level indicator]]","v":0},{"$f":"T_DataComboFile[[#This Row],[2021/22 Baseline_Source]]*T_DataComboFile[[#This Row],[G&S reporting level indicator]]","v":0},{"$f":"T_DataComboFile[[#This Row],[2022/23 Baseline_Source]]*T_DataComboFile[[#This Row],[G&S reporting level indicator]]","v":0},{"$f":"T_DataComboFile[[#This Row],[2023/24 Baseline_Source]]*T_DataComboFile[[#This Row],[G&S reporting level indicator]]","v":0},null,null,null,null,null,null,{"$f":"T_DataComboFile[[#This Row],[2021/22 Baseline]]+T_DataComboFile[[#This Row],[2021/22 Reduction]]+T_DataComboFile[[#This Row],[2021/22 Increase]]","v":0},{"$f":"T_DataComboFile[[#This Row],[2022/23 Baseline]]+T_DataComboFile[[#This Row],[2022/23 Reduction]]+T_DataComboFile[[#This Row],[2022/23 Increase]]","v":0},{"$f":"T_DataComboFile[[#This Row],[2023/24 Baseline]]+T_DataComboFile[[#This Row],[2023/24 Reduction]]+T_DataComboFile[[#This Row],[2023/24 Increase]]","v":0}]
[null,null,"2021_22","ENE2020",36,4,4,null,71312,36,4,4,null,"071312","36|04|04",2,3,12,56,60,"02|03|12|56|60","National","Small Business Development","Enterprise Development and Entrepreneurship","Entrepreneurship",null,"Capital","Payments for capital assets","Machinery and equipment","Transport equipment","Transport equipment",null,null,null,0,0,0,0,0,0,0,0,0,0,0,0,0,0,null,{"$f":"IF(T_DataComboFile[[#This Row],[G&S reporting level indicator]]=1,$AX$16,\"Not applicable\")","v":"Level 3"},{"$f":"IF(AND($AX$16=\"Level 3\",T_DataComboFile[[#This Row],[Econ3]] = \"Goods and services\"),IF(T_DataComboFile[[#This Row],[Econ4]] = T_DataComboFile[[#This Row],[Econ3]],1,0),IF(AND($AX$16=\"Level 4\",T_DataComboFile[[#This Row],[Econ4]] = \"Goods and services\"),0,1))","v":1},{"$f":"T_DataComboFile[[#This Row],[2016/17_Source]]*T_DataComboFile[[#This Row],[G&S reporting level indicator]]","v":0},{"$f":"T_DataComboFile[[#This Row],[2017/18_Source]]*T_DataComboFile[[#This Row],[G&S reporting level indicator]]","v":0},{"$f":"T_DataComboFile[[#This Row],[2018/19_Source]]*T_DataComboFile[[#This Row],[G&S reporting level indicator]]","v":0},{"$f":"T_DataComboFile[[#This Row],[2019/20 Main appropriation_Source]]*T_DataComboFile[[#This Row],[G&S reporting level indicator]]","v":0},{"$f":"T_DataComboFile[[#This Row],[2019/20 Adjusted appropriation_Source]]*T_DataComboFile[[#This Row],[G&S reporting level indicator]]","v":0},{"$f":"T_DataComboFile[[#This Row],[2019/20 Revised estimate_Source]]*T_DataComboFile[[#This Row],[G&S reporting level indicator]]","v":0},{"$f":"T_DataComboFile[[#This Row],[2019/20 Preliminary outcome_Source]]*T_DataComboFile[[#This Row],[G&S reporting level indicator]]","v":0},{"$f":"T_DataComboFile[[#This Row],[2020/21 Original_Source]]*T_DataComboFile[[#This Row],[G&S reporting level indicator]]","v":0},{"$f":"T_DataComboFile[[#This Row],[2020/21 SAB_Source]]*T_DataComboFile[[#This Row],[G&S reporting level indicator]]","v":0},{"$f":"T_DataComboFile[[#This Row],[2020/21 Baseline_Source]]*T_DataComboFile[[#This Row],[G&S reporting level indicator]]","v":0},{"$f":"T_DataComboFile[[#This Row],[2021/22 Baseline_Source]]*T_DataComboFile[[#This Row],[G&S reporting level indicator]]","v":0},{"$f":"T_DataComboFile[[#This Row],[2022/23 Baseline_Source]]*T_DataComboFile[[#This Row],[G&S reporting level indicator]]","v":0},{"$f":"T_DataComboFile[[#This Row],[2023/24 Baseline_Source]]*T_DataComboFile[[#This Row],[G&S reporting level indicator]]","v":0},null,null,null,null,null,null,{"$f":"T_DataComboFile[[#This Row],[2021/22 Baseline]]+T_DataComboFile[[#This Row],[2021/22 Reduction]]+T_DataComboFile[[#This Row],[2021/22 Increase]]","v":0},{"$f":"T_DataComboFile[[#This Row],[2022/23 Baseline]]+T_DataComboFile[[#This Row],[2022/23 Reduction]]+T_DataComboFile[[#This Row],[2022/23 Increase]]","v":0},{"$f":"T_DataComboFile[[#This Row],[2023/24 Baseline]]+T_DataComboFile[[#This Row],[2023/24 Reduction]]+T_DataComboFile[[#This Row],[2023/24 Increase]]","v":0}]
["NAT|Non-transfer item","36|Other machinery and equipment","2021_22","ENE2020",36,4,4,17461,71313,36,4,4,17461,"071313","36|04|04",2,3,12,57,61,"02|03|12|57|61","National","Small Business Development","Enterprise Development and Entrepreneurship","Entrepreneurship","Non-transfer item","Capital","Payments for capital assets","Machinery and equipment","Other machinery and equipment","Other machinery and equipment","Economic development","Industrialisation and exports","NAT",0,0,13,11,11,11,11,16,16,16,18,20,21,1,null,{"$f":"IF(T_DataComboFile[[#This Row],[G&S reporting level indicator]]=1,$AX$16,\"Not applicable\")","v":"Level 3"},{"$f":"IF(AND($AX$16=\"Level 3\",T_DataComboFile[[#This Row],[Econ3]] = \"Goods and services\"),IF(T_DataComboFile[[#This Row],[Econ4]] = T_DataComboFile[[#This Row],[Econ3]],1,0),IF(AND($AX$16=\"Level 4\",T_DataComboFile[[#This Row],[Econ4]] = \"Goods and services\"),0,1))","v":1},{"$f":"T_DataComboFile[[#This Row],[2016/17_Source]]*T_DataComboFile[[#This Row],[G&S reporting level indicator]]","v":0},{"$f":"T_DataComboFile[[#This Row],[2017/18_Source]]*T_DataComboFile[[#This Row],[G&S reporting level indicator]]","v":0},{"$f":"T_DataComboFile[[#This Row],[2018/19_Source]]*T_DataComboFile[[#This Row],[G&S reporting level indicator]]","v":13},{"$f":"T_DataComboFile[[#This Row],[2019/20 Main appropriation_Source]]*T_DataComboFile[[#This Row],[G&S reporting level indicator]]","v":11},{"$f":"T_DataComboFile[[#This Row],[2019/20 Adjusted appropriation_Source]]*T_DataComboFile[[#This Row],[G&S reporting level indicator]]","v":11},{"$f":"T_DataComboFile[[#This Row],[2019/20 Revised estimate_Source]]*T_DataComboFile[[#This Row],[G&S reporting level indicator]]","v":11},{"$f":"T_DataComboFile[[#This Row],[2019/20 Preliminary outcome_Source]]*T_DataComboFile[[#This Row],[G&S reporting level indicator]]","v":11},{"$f":"T_DataComboFile[[#This Row],[2020/21 Original_Source]]*T_DataComboFile[[#This Row],[G&S reporting level indicator]]","v":16},{"$f":"T_DataComboFile[[#This Row],[2020/21 SAB_Source]]*T_DataComboFile[[#This Row],[G&S reporting level indicator]]","v":16},{"$f":"T_DataComboFile[[#This Row],[2020/21 Baseline_Source]]*T_DataComboFile[[#This Row],[G&S reporting level indicator]]","v":16},{"$f":"T_DataComboFile[[#This Row],[2021/22 Baseline_Source]]*T_DataComboFile[[#This Row],[G&S reporting level indicator]]","v":18},{"$f":"T_DataComboFile[[#This Row],[2022/23 Baseline_Source]]*T_DataComboFile[[#This Row],[G&S reporting level indicator]]","v":20},{"$f":"T_DataComboFile[[#This Row],[2023/24 Baseline_Source]]*T_DataComboFile[[#This Row],[G&S reporting level indicator]]","v":21},null,null,null,null,null,null,{"$f":"T_DataComboFile[[#This Row],[2021/22 Baseline]]+T_DataComboFile[[#This Row],[2021/22 Reduction]]+T_DataComboFile[[#This Row],[2021/22 Increase]]","v":18},{"$f":"T_DataComboFile[[#This Row],[2022/23 Baseline]]+T_DataComboFile[[#This Row],[2022/23 Reduction]]+T_DataComboFile[[#This Row],[2022/23 Increase]]","v":20},{"$f":"T_DataComboFile[[#This Row],[2023/24 Baseline]]+T_DataComboFile[[#This Row],[2023/24 Reduction]]+T_DataComboFile[[#This Row],[2023/24 Increase]]","v":21}]
[null,null,"2021_22","ENE2020",36,4,4,null,71314,36,4,4,null,"071314","36|04|04",2,3,13,58,62,"02|03|13|58|62","National","Small Business Development","Enterprise Development and Entrepreneurship","Entrepreneurship",null,"Capital","Payments for capital assets","Heritage assets","Heritage assets","Heritage assets",null,null,null,0,0,0,0,0,0,0,0,0,0,0,0,0,0,null,{"$f":"IF(T_DataComboFile[[#This Row],[G&S reporting level indicator]]=1,$AX$16,\"Not applicable\")","v":"Level 3"},{"$f":"IF(AND($AX$16=\"Level 3\",T_DataComboFile[[#This Row],[Econ3]] = \"Goods and services\"),IF(T_DataComboFile[[#This Row],[Econ4]] = T_DataComboFile[[#This Row],[Econ3]],1,0),IF(AND($AX$16=\"Level 4\",T_DataComboFile[[#This Row],[Econ4]] = \"Goods and services\"),0,1))","v":1},{"$f":"T_DataComboFile[[#This Row],[2016/17_Source]]*T_DataComboFile[[#This Row],[G&S reporting level indicator]]","v":0},{"$f":"T_DataComboFile[[#This Row],[2017/18_Source]]*T_DataComboFile[[#This Row],[G&S reporting level indicator]]","v":0},{"$f":"T_DataComboFile[[#This Row],[2018/19_Source]]*T_DataComboFile[[#This Row],[G&S reporting level indicator]]","v":0},{"$f":"T_DataComboFile[[#This Row],[2019/20 Main appropriation_Source]]*T_DataComboFile[[#This Row],[G&S reporting level indicator]]","v":0},{"$f":"T_DataComboFile[[#This Row],[2019/20 Adjusted appropriation_Source]]*T_DataComboFile[[#This Row],[G&S reporting level indicator]]","v":0},{"$f":"T_DataComboFile[[#This Row],[2019/20 Revised estimate_Source]]*T_DataComboFile[[#This Row],[G&S reporting level indicator]]","v":0},{"$f":"T_DataComboFile[[#This Row],[2019/20 Preliminary outcome_Source]]*T_DataComboFile[[#This Row],[G&S reporting level indicator]]","v":0},{"$f":"T_DataComboFile[[#This Row],[2020/21 Original_Source]]*T_DataComboFile[[#This Row],[G&S reporting level indicator]]","v":0},{"$f":"T_DataComboFile[[#This Row],[2020/21 SAB_Source]]*T_DataComboFile[[#This Row],[G&S reporting level indicator]]","v":0},{"$f":"T_DataComboFile[[#This Row],[2020/21 Baseline_Source]]*T_DataComboFile[[#This Row],[G&S reporting level indicator]]","v":0},{"$f":"T_DataComboFile[[#This Row],[2021/22 Baseline_Source]]*T_DataComboFile[[#This Row],[G&S reporting level indicator]]","v":0},{"$f":"T_DataComboFile[[#This Row],[2022/23 Baseline_Source]]*T_DataComboFile[[#This Row],[G&S reporting level indicator]]","v":0},{"$f":"T_DataComboFile[[#This Row],[2023/24 Baseline_Source]]*T_DataComboFile[[#This Row],[G&S reporting level indicator]]","v":0},null,null,null,null,null,null,{"$f":"T_DataComboFile[[#This Row],[2021/22 Baseline]]+T_DataComboFile[[#This Row],[2021/22 Reduction]]+T_DataComboFile[[#This Row],[2021/22 Increase]]","v":0},{"$f":"T_DataComboFile[[#This Row],[2022/23 Baseline]]+T_DataComboFile[[#This Row],[2022/23 Reduction]]+T_DataComboFile[[#This Row],[2022/23 Increase]]","v":0},{"$f":"T_DataComboFile[[#This Row],[2023/24 Baseline]]+T_DataComboFile[[#This Row],[2023/24 Reduction]]+T_DataComboFile[[#This Row],[2023/24 Increase]]","v":0}]
[null,null,"2021_22","ENE2020",36,4,4,null,71315,36,4,4,null,"071315","36|04|04",2,3,14,59,63,"02|03|14|59|63","National","Small Business Development","Enterprise Development and Entrepreneurship","Entrepreneurship",null,"Capital","Payments for capital assets","Specialised military assets","Specialised military assets","Specialised military assets",null,null,null,0,0,0,0,0,0,0,0,0,0,0,0,0,0,null,{"$f":"IF(T_DataComboFile[[#This Row],[G&S reporting level indicator]]=1,$AX$16,\"Not applicable\")","v":"Level 3"},{"$f":"IF(AND($AX$16=\"Level 3\",T_DataComboFile[[#This Row],[Econ3]] = \"Goods and services\"),IF(T_DataComboFile[[#This Row],[Econ4]] = T_DataComboFile[[#This Row],[Econ3]],1,0),IF(AND($AX$16=\"Level 4\",T_DataComboFile[[#This Row],[Econ4]] = \"Goods and services\"),0,1))","v":1},{"$f":"T_DataComboFile[[#This Row],[2016/17_Source]]*T_DataComboFile[[#This Row],[G&S reporting level indicator]]","v":0},{"$f":"T_DataComboFile[[#This Row],[2017/18_Source]]*T_DataComboFile[[#This Row],[G&S reporting level indicator]]","v":0},{"$f":"T_DataComboFile[[#This Row],[2018/19_Source]]*T_DataComboFile[[#This Row],[G&S reporting level indicator]]","v":0},{"$f":"T_DataComboFile[[#This Row],[2019/20 Main appropriation_Source]]*T_DataComboFile[[#This Row],[G&S reporting level indicator]]","v":0},{"$f":"T_DataComboFile[[#This Row],[2019/20 Adjusted appropriation_Source]]*T_DataComboFile[[#This Row],[G&S reporting level indicator]]","v":0},{"$f":"T_DataComboFile[[#This Row],[2019/20 Revised estimate_Source]]*T_DataComboFile[[#This Row],[G&S reporting level indicator]]","v":0},{"$f":"T_DataComboFile[[#This Row],[2019/20 Preliminary outcome_Source]]*T_DataComboFile[[#This Row],[G&S reporting level indicator]]","v":0},{"$f":"T_DataComboFile[[#This Row],[2020/21 Original_Source]]*T_DataComboFile[[#This Row],[G&S reporting level indicator]]","v":0},{"$f":"T_DataComboFile[[#This Row],[2020/21 SAB_Source]]*T_DataComboFile[[#This Row],[G&S reporting level indicator]]","v":0},{"$f":"T_DataComboFile[[#This Row],[2020/21 Baseline_Source]]*T_DataComboFile[[#This Row],[G&S reporting level indicator]]","v":0},{"$f":"T_DataComboFile[[#This Row],[2021/22 Baseline_Source]]*T_DataComboFile[[#This Row],[G&S reporting level indicator]]","v":0},{"$f":"T_DataComboFile[[#This Row],[2022/23 Baseline_Source]]*T_DataComboFile[[#This Row],[G&S reporting level indicator]]","v":0},{"$f":"T_DataComboFile[[#This Row],[2023/24 Baseline_Source]]*T_DataComboFile[[#This Row],[G&S reporting level indicator]]","v":0},null,null,null,null,null,null,{"$f":"T_DataComboFile[[#This Row],[2021/22 Baseline]]+T_DataComboFile[[#This Row],[2021/22 Reduction]]+T_DataComboFile[[#This Row],[2021/22 Increase]]","v":0},{"$f":"T_DataComboFile[[#This Row],[2022/23 Baseline]]+T_DataComboFile[[#This Row],[2022/23 Reduction]]+T_DataComboFile[[#This Row],[2022/23 Increase]]","v":0},{"$f":"T_DataComboFile[[#This Row],[2023/24 Baseline]]+T_DataComboFile[[#This Row],[2023/24 Reduction]]+T_DataComboFile[[#This Row],[2023/24 Increase]]","v":0}]
[null,null,"2021_22","ENE2020",36,4,4,null,71316,36,4,4,null,"071316","36|04|04",2,3,15,60,64,"02|03|15|60|64","National","Small Business Development","Enterprise Development and Entrepreneurship","Entrepreneurship",null,"Capital","Payments for capital assets","Biological assets","Biological assets","Biological assets",null,null,null,0,0,0,0,0,0,0,0,0,0,0,0,0,0,null,{"$f":"IF(T_DataComboFile[[#This Row],[G&S reporting level indicator]]=1,$AX$16,\"Not applicable\")","v":"Level 3"},{"$f":"IF(AND($AX$16=\"Level 3\",T_DataComboFile[[#This Row],[Econ3]] = \"Goods and services\"),IF(T_DataComboFile[[#This Row],[Econ4]] = T_DataComboFile[[#This Row],[Econ3]],1,0),IF(AND($AX$16=\"Level 4\",T_DataComboFile[[#This Row],[Econ4]] = \"Goods and services\"),0,1))","v":1},{"$f":"T_DataComboFile[[#This Row],[2016/17_Source]]*T_DataComboFile[[#This Row],[G&S reporting level indicator]]","v":0},{"$f":"T_DataComboFile[[#This Row],[2017/18_Source]]*T_DataComboFile[[#This Row],[G&S reporting level indicator]]","v":0},{"$f":"T_DataComboFile[[#This Row],[2018/19_Source]]*T_DataComboFile[[#This Row],[G&S reporting level indicator]]","v":0},{"$f":"T_DataComboFile[[#This Row],[2019/20 Main appropriation_Source]]*T_DataComboFile[[#This Row],[G&S reporting level indicator]]","v":0},{"$f":"T_DataComboFile[[#This Row],[2019/20 Adjusted appropriation_Source]]*T_DataComboFile[[#This Row],[G&S reporting level indicator]]","v":0},{"$f":"T_DataComboFile[[#This Row],[2019/20 Revised estimate_Source]]*T_DataComboFile[[#This Row],[G&S reporting level indicator]]","v":0},{"$f":"T_DataComboFile[[#This Row],[2019/20 Preliminary outcome_Source]]*T_DataComboFile[[#This Row],[G&S reporting level indicator]]","v":0},{"$f":"T_DataComboFile[[#This Row],[2020/21 Original_Source]]*T_DataComboFile[[#This Row],[G&S reporting level indicator]]","v":0},{"$f":"T_DataComboFile[[#This Row],[2020/21 SAB_Source]]*T_DataComboFile[[#This Row],[G&S reporting level indicator]]","v":0},{"$f":"T_DataComboFile[[#This Row],[2020/21 Baseline_Source]]*T_DataComboFile[[#This Row],[G&S reporting level indicator]]","v":0},{"$f":"T_DataComboFile[[#This Row],[2021/22 Baseline_Source]]*T_DataComboFile[[#This Row],[G&S reporting level indicator]]","v":0},{"$f":"T_DataComboFile[[#This Row],[2022/23 Baseline_Source]]*T_DataComboFile[[#This Row],[G&S reporting level indicator]]","v":0},{"$f":"T_DataComboFile[[#This Row],[2023/24 Baseline_Source]]*T_DataComboFile[[#This Row],[G&S reporting level indicator]]","v":0},null,null,null,null,null,null,{"$f":"T_DataComboFile[[#This Row],[2021/22 Baseline]]+T_DataComboFile[[#This Row],[2021/22 Reduction]]+T_DataComboFile[[#This Row],[2021/22 Increase]]","v":0},{"$f":"T_DataComboFile[[#This Row],[2022/23 Baseline]]+T_DataComboFile[[#This Row],[2022/23 Reduction]]+T_DataComboFile[[#This Row],[2022/23 Increase]]","v":0},{"$f":"T_DataComboFile[[#This Row],[2023/24 Baseline]]+T_DataComboFile[[#This Row],[2023/24 Reduction]]+T_DataComboFile[[#This Row],[2023/24 Increase]]","v":0}]
[null,null,"2021_22","ENE2020",36,4,4,null,71317,36,4,4,null,"071317","36|04|04",2,3,16,61,65,"02|03|16|61|65","National","Small Business Development","Enterprise Development and Entrepreneurship","Entrepreneurship",null,"Capital","Payments for capital assets","Land and sub-soil assets","Land and sub-soil assets","Land and sub-soil assets",null,null,null,0,0,0,0,0,0,0,0,0,0,0,0,0,0,null,{"$f":"IF(T_DataComboFile[[#This Row],[G&S reporting level indicator]]=1,$AX$16,\"Not applicable\")","v":"Level 3"},{"$f":"IF(AND($AX$16=\"Level 3\",T_DataComboFile[[#This Row],[Econ3]] = \"Goods and services\"),IF(T_DataComboFile[[#This Row],[Econ4]] = T_DataComboFile[[#This Row],[Econ3]],1,0),IF(AND($AX$16=\"Level 4\",T_DataComboFile[[#This Row],[Econ4]] = \"Goods and services\"),0,1))","v":1},{"$f":"T_DataComboFile[[#This Row],[2016/17_Source]]*T_DataComboFile[[#This Row],[G&S reporting level indicator]]","v":0},{"$f":"T_DataComboFile[[#This Row],[2017/18_Source]]*T_DataComboFile[[#This Row],[G&S reporting level indicator]]","v":0},{"$f":"T_DataComboFile[[#This Row],[2018/19_Source]]*T_DataComboFile[[#This Row],[G&S reporting level indicator]]","v":0},{"$f":"T_DataComboFile[[#This Row],[2019/20 Main appropriation_Source]]*T_DataComboFile[[#This Row],[G&S reporting level indicator]]","v":0},{"$f":"T_DataComboFile[[#This Row],[2019/20 Adjusted appropriation_Source]]*T_DataComboFile[[#This Row],[G&S reporting level indicator]]","v":0},{"$f":"T_DataComboFile[[#This Row],[2019/20 Revised estimate_Source]]*T_DataComboFile[[#This Row],[G&S reporting level indicator]]","v":0},{"$f":"T_DataComboFile[[#This Row],[2019/20 Preliminary outcome_Source]]*T_DataComboFile[[#This Row],[G&S reporting level indicator]]","v":0},{"$f":"T_DataComboFile[[#This Row],[2020/21 Original_Source]]*T_DataComboFile[[#This Row],[G&S reporting level indicator]]","v":0},{"$f":"T_DataComboFile[[#This Row],[2020/21 SAB_Source]]*T_DataComboFile[[#This Row],[G&S reporting level indicator]]","v":0},{"$f":"T_DataComboFile[[#This Row],[2020/21 Baseline_Source]]*T_DataComboFile[[#This Row],[G&S reporting level indicator]]","v":0},{"$f":"T_DataComboFile[[#This Row],[2021/22 Baseline_Source]]*T_DataComboFile[[#This Row],[G&S reporting level indicator]]","v":0},{"$f":"T_DataComboFile[[#This Row],[2022/23 Baseline_Source]]*T_DataComboFile[[#This Row],[G&S reporting level indicator]]","v":0},{"$f":"T_DataComboFile[[#This Row],[2023/24 Baseline_Source]]*T_DataComboFile[[#This Row],[G&S reporting level indicator]]","v":0},null,null,null,null,null,null,{"$f":"T_DataComboFile[[#This Row],[2021/22 Baseline]]+T_DataComboFile[[#This Row],[2021/22 Reduction]]+T_DataComboFile[[#This Row],[2021/22 Increase]]","v":0},{"$f":"T_DataComboFile[[#This Row],[2022/23 Baseline]]+T_DataComboFile[[#This Row],[2022/23 Reduction]]+T_DataComboFile[[#This Row],[2022/23 Increase]]","v":0},{"$f":"T_DataComboFile[[#This Row],[2023/24 Baseline]]+T_DataComboFile[[#This Row],[2023/24 Reduction]]+T_DataComboFile[[#This Row],[2023/24 Increase]]","v":0}]
[null,null,"2021_22","ENE2020",36,4,4,null,71318,36,4,4,null,"071318","36|04|04",2,3,17,62,66,"02|03|17|62|66","National","Small Business Development","Enterprise Development and Entrepreneurship","Entrepreneurship",null,"Capital","Payments for capital assets","Software and other intangible assets","Software and other intangible assets","Software and other intangible assets",null,null,null,0,0,0,0,0,0,0,0,0,0,0,0,0,0,null,{"$f":"IF(T_DataComboFile[[#This Row],[G&S reporting level indicator]]=1,$AX$16,\"Not applicable\")","v":"Level 3"},{"$f":"IF(AND($AX$16=\"Level 3\",T_DataComboFile[[#This Row],[Econ3]] = \"Goods and services\"),IF(T_DataComboFile[[#This Row],[Econ4]] = T_DataComboFile[[#This Row],[Econ3]],1,0),IF(AND($AX$16=\"Level 4\",T_DataComboFile[[#This Row],[Econ4]] = \"Goods and services\"),0,1))","v":1},{"$f":"T_DataComboFile[[#This Row],[2016/17_Source]]*T_DataComboFile[[#This Row],[G&S reporting level indicator]]","v":0},{"$f":"T_DataComboFile[[#This Row],[2017/18_Source]]*T_DataComboFile[[#This Row],[G&S reporting level indicator]]","v":0},{"$f":"T_DataComboFile[[#This Row],[2018/19_Source]]*T_DataComboFile[[#This Row],[G&S reporting level indicator]]","v":0},{"$f":"T_DataComboFile[[#This Row],[2019/20 Main appropriation_Source]]*T_DataComboFile[[#This Row],[G&S reporting level indicator]]","v":0},{"$f":"T_DataComboFile[[#This Row],[2019/20 Adjusted appropriation_Source]]*T_DataComboFile[[#This Row],[G&S reporting level indicator]]","v":0},{"$f":"T_DataComboFile[[#This Row],[2019/20 Revised estimate_Source]]*T_DataComboFile[[#This Row],[G&S reporting level indicator]]","v":0},{"$f":"T_DataComboFile[[#This Row],[2019/20 Preliminary outcome_Source]]*T_DataComboFile[[#This Row],[G&S reporting level indicator]]","v":0},{"$f":"T_DataComboFile[[#This Row],[2020/21 Original_Source]]*T_DataComboFile[[#This Row],[G&S reporting level indicator]]","v":0},{"$f":"T_DataComboFile[[#This Row],[2020/21 SAB_Source]]*T_DataComboFile[[#This Row],[G&S reporting level indicator]]","v":0},{"$f":"T_DataComboFile[[#This Row],[2020/21 Baseline_Source]]*T_DataComboFile[[#This Row],[G&S reporting level indicator]]","v":0},{"$f":"T_DataComboFile[[#This Row],[2021/22 Baseline_Source]]*T_DataComboFile[[#This Row],[G&S reporting level indicator]]","v":0},{"$f":"T_DataComboFile[[#This Row],[2022/23 Baseline_Source]]*T_DataComboFile[[#This Row],[G&S reporting level indicator]]","v":0},{"$f":"T_DataComboFile[[#This Row],[2023/24 Baseline_Source]]*T_DataComboFile[[#This Row],[G&S reporting level indicator]]","v":0},null,null,null,null,null,null,{"$f":"T_DataComboFile[[#This Row],[2021/22 Baseline]]+T_DataComboFile[[#This Row],[2021/22 Reduction]]+T_DataComboFile[[#This Row],[2021/22 Increase]]","v":0},{"$f":"T_DataComboFile[[#This Row],[2022/23 Baseline]]+T_DataComboFile[[#This Row],[2022/23 Reduction]]+T_DataComboFile[[#This Row],[2022/23 Increase]]","v":0},{"$f":"T_DataComboFile[[#This Row],[2023/24 Baseline]]+T_DataComboFile[[#This Row],[2023/24 Reduction]]+T_DataComboFile[[#This Row],[2023/24 Increase]]","v":0}]
[null,null,"2021_22","ENE2020",36,4,4,null,71319,36,4,4,null,"071319","36|04|04",3,4,18,63,67,"03|04|18|63|67","National","Small Business Development","Enterprise Development and Entrepreneurship","Entrepreneurship",null,"Payments for financial assets","Payments for financial assets","Payments for financial assets","Payments for financial assets","Payments for financial assets",null,null,null,0,0,0,0,0,0,0,0,0,0,0,0,0,0,null,{"$f":"IF(T_DataComboFile[[#This Row],[G&S reporting level indicator]]=1,$AX$16,\"Not applicable\")","v":"Level 3"},{"$f":"IF(AND($AX$16=\"Level 3\",T_DataComboFile[[#This Row],[Econ3]] = \"Goods and services\"),IF(T_DataComboFile[[#This Row],[Econ4]] = T_DataComboFile[[#This Row],[Econ3]],1,0),IF(AND($AX$16=\"Level 4\",T_DataComboFile[[#This Row],[Econ4]] = \"Goods and services\"),0,1))","v":1},{"$f":"T_DataComboFile[[#This Row],[2016/17_Source]]*T_DataComboFile[[#This Row],[G&S reporting level indicator]]","v":0},{"$f":"T_DataComboFile[[#This Row],[2017/18_Source]]*T_DataComboFile[[#This Row],[G&S reporting level indicator]]","v":0},{"$f":"T_DataComboFile[[#This Row],[2018/19_Source]]*T_DataComboFile[[#This Row],[G&S reporting level indicator]]","v":0},{"$f":"T_DataComboFile[[#This Row],[2019/20 Main appropriation_Source]]*T_DataComboFile[[#This Row],[G&S reporting level indicator]]","v":0},{"$f":"T_DataComboFile[[#This Row],[2019/20 Adjusted appropriation_Source]]*T_DataComboFile[[#This Row],[G&S reporting level indicator]]","v":0},{"$f":"T_DataComboFile[[#This Row],[2019/20 Revised estimate_Source]]*T_DataComboFile[[#This Row],[G&S reporting level indicator]]","v":0},{"$f":"T_DataComboFile[[#This Row],[2019/20 Preliminary outcome_Source]]*T_DataComboFile[[#This Row],[G&S reporting level indicator]]","v":0},{"$f":"T_DataComboFile[[#This Row],[2020/21 Original_Source]]*T_DataComboFile[[#This Row],[G&S reporting level indicator]]","v":0},{"$f":"T_DataComboFile[[#This Row],[2020/21 SAB_Source]]*T_DataComboFile[[#This Row],[G&S reporting level indicator]]","v":0},{"$f":"T_DataComboFile[[#This Row],[2020/21 Baseline_Source]]*T_DataComboFile[[#This Row],[G&S reporting level indicator]]","v":0},{"$f":"T_DataComboFile[[#This Row],[2021/22 Baseline_Source]]*T_DataComboFile[[#This Row],[G&S reporting level indicator]]","v":0},{"$f":"T_DataComboFile[[#This Row],[2022/23 Baseline_Source]]*T_DataComboFile[[#This Row],[G&S reporting level indicator]]","v":0},{"$f":"T_DataComboFile[[#This Row],[2023/24 Baseline_Source]]*T_DataComboFile[[#This Row],[G&S reporting level indicator]]","v":0},null,null,null,null,null,null,{"$f":"T_DataComboFile[[#This Row],[2021/22 Baseline]]+T_DataComboFile[[#This Row],[2021/22 Reduction]]+T_DataComboFile[[#This Row],[2021/22 Increase]]","v":0},{"$f":"T_DataComboFile[[#This Row],[2022/23 Baseline]]+T_DataComboFile[[#This Row],[2022/23 Reduction]]+T_DataComboFile[[#This Row],[2022/23 Increase]]","v":0},{"$f":"T_DataComboFile[[#This Row],[2023/24 Baseline]]+T_DataComboFile[[#This Row],[2023/24 Reduction]]+T_DataComboFile[[#This Row],[2023/24 Increase]]","v":0}]

{"sheet":"Summary","index":9,"n_rows":80,"n_cols":23,"rows_kept":80,"cut":false,"hidden":false,"merged":[]}
[]
[null,null,null,null,null,null,"Department:"]
[null,null,null,null,null,null,{"$f":"Welcome!$B$7&\" \"& MyDeptName","v":"VOTE 36:  Small Business Development"}]
[null,null,null,null,null,null,null,null,null,null,null,null,"Growth"]
[null,null,null,null,null,null,"Quick view","2020/21","2021/22","2022/23","2023/24","Trend","2021/22","2022/23","2023/24","Ave Ann",null,"2020/21","2021/22","2022/23","2023/24"]
[null,null,null,null,null,null,"Compensation of employees",{"$f":"SUMPRODUCT(($G$32:$G$65=$G6)*($K$32:$K$65))","v":153120},{"$f":"SUMPRODUCT(($G$32:$G$65=$G6)*($O$32:$O$65))","v":159472},{"$f":"SUMPRODUCT(($G$32:$G$65=$G6)*($S$32:$S$65))","v":164005},{"$f":"SUMPRODUCT(($G$32:$G$65=$G6)*($W$32:$W$65))","v":171236},null,{"$f":"IFERROR(I6/H6-1,0)","v":4.148380355276915E-2},2.842505267382367E-2,4.4090119203682887E-2,{"$f":"IFERROR(((K6/H6)^(1/3)-1),0)","v":3.7976970509286945E-2}]
[null,null,null,null,null,null,"Goods and services",{"$f":"SUMPRODUCT(($G$32:$G$65=$G7)*($K$32:$K$65))","v":89095},{"$f":"SUMPRODUCT(($G$32:$G$65=$G7)*($O$32:$O$65))","v":94055},{"$f":"SUMPRODUCT(($G$32:$G$65=$G7)*($S$32:$S$65))","v":97613},{"$f":"SUMPRODUCT(($G$32:$G$65=$G7)*($W$32:$W$65))","v":101914},null,5.5670913070318129E-2,3.7828929881452256E-2,4.4061754069642411E-2,4.5827775385547609E-2]
[null,null,null,null,null,null,"Transfers and subsidies",{"$f":"SUMPRODUCT(($G$32:$G$65=$G8)*($K$32:$K$65))","v":2084596},{"$f":"SUMPRODUCT(($G$32:$G$65=$G8)*($O$32:$O$65))","v":2325806},{"$f":"SUMPRODUCT(($G$32:$G$65=$G8)*($S$32:$S$65))","v":2351606},{"$f":"SUMPRODUCT(($G$32:$G$65=$G8)*($W$32:$W$65))","v":2455250},null,0.11571067007707958,1.1092928644951483E-2,4.4073709626527569E-2,5.6066516618733298E-2]
[null,null,null,null,null,null,"Payments for capital assets",{"$f":"SUMPRODUCT(($G$32:$G$65=$G9)*($K$32:$K$65))","v":4275},{"$f":"SUMPRODUCT(($G$32:$G$65=$G9)*($O$32:$O$65))","v":4476},{"$f":"SUMPRODUCT(($G$32:$G$65=$G9)*($S$32:$S$65))","v":4736},{"$f":"SUMPRODUCT(($G$32:$G$65=$G9)*($W$32:$W$65))","v":4945},null,4.701754385964918E-2,5.8087578194816691E-2,4.4130067567567544E-2,4.9727864833773339E-2]
[null,null,null,null,null,null,"Total",{"$f":"SUMPRODUCT(($G$32:$G$65=$G10)*($K$32:$K$65))","v":2331086},{"$f":"SUMPRODUCT(($G$32:$G$65=$G10)*($O$32:$O$65))","v":2583809},{"$f":"SUMPRODUCT(($G$32:$G$65=$G10)*($S$32:$S$65))","v":2617960},{"$f":"SUMPRODUCT(($G$32:$G$65=$G10)*($W$32:$W$65))","v":2733345},null,0.10841427557799244,1.3217308245307535E-2,4.4074393802808309E-2,5.449708876349435E-2]
[null,null,null,null,null,null,"Composition of spending (% of Total)"]
[null,null,null,null,null,null,"Compensation of employees",{"$f":"H6/H$10","v":6.568612226232752E-2},6.1719732379599268E-2,6.264610612843588E-2,6.2647049677226993E-2,null,null,null,null,null,null,{"$f":"IF(H12>0.0595,H12,\"\")","v":6.568612226232752E-2},6.1719732379599268E-2,6.264610612843588E-2,6.2647049677226993E-2]
[null,null,null,null,null,null,"Goods and services",3.8220383117568375E-2,3.6401684489836515E-2,3.7285902000030562E-2,3.7285450610881538E-2,null,null,null,null,null,null,"","","",""]
[null,null,null,null,null,null,"Transfers and subsidies",0.89425958544644002,0.90014625694081873,0.89825894971657316,0.89825836109236123,null,null,null,null,null,null,0.89425958544644002,0.90014625694081873,0.89825894971657316,0.89825836109236123]
[null,null,null,null,null,null,"Payments for capital assets",1.8339091736641205E-3,1.7323261897454493E-3,1.8090421549603508E-3,1.8091386195302824E-3,null,null,null,null,null,null,"","","",""]
[]
[null,null,null,null,null,null,"Division of Revenue","2020/21","2021/22","2022/23","2023/24","Trend","2021/22","2022/23","2023/24","Ave Ann"]
[null,"NAT",null,null,null,null,"National",{"$f":"SUMPRODUCT(((T_DataComboFile[DOR]=$B18))*T_DataComboFile[2020/21 Revised])","v":2331086},{"$f":"SUMPRODUCT(((T_DataComboFile[DOR]=$B18))*T_DataComboFile[2021/22 Revised baseline])","v":2583809},{"$f":"SUMPRODUCT(((T_DataComboFile[DOR]=$B18))*T_DataComboFile[2022/23 Revised baseline])","v":2617960},{"$f":"SUMPRODUCT(((T_DataComboFile[DOR]=$B18))*T_DataComboFile[2023/24 Revised baseline])","v":2733345},null,{"$f":"IFERROR(I18/H18-1,0)","v":0.10841427557799244},{"$f":"IFERROR(J18/I18-1,0)","v":1.3217308245307535E-2},{"$f":"IFERROR(K18/J18-1,0)","v":4.4074393802808309E-2},{"$f":"IFERROR(((K18/H18)^(1/3)-1),0)","v":5.449708876349435E-2}]
[null,null,null,null,null,null,"Provincial",{"$f":"SUM(H20:H21)","v":0},0,0,0,null,0,0,0,0]
[null,"PES",null,null,null,null,"Provincial equitable share",{"$f":"SUMPRODUCT(((T_DataComboFile[DOR]=$B20))*T_DataComboFile[2020/21 Revised])","v":0},{"$f":"SUMPRODUCT(((T_DataComboFile[DOR]=$B20))*T_DataComboFile[2021/22 Revised baseline])","v":0},{"$f":"SUMPRODUCT(((T_DataComboFile[DOR]=$B20))*T_DataComboFile[2022/23 Revised baseline])","v":0},{"$f":"SUMPRODUCT(((T_DataComboFile[DOR]=$B20))*T_DataComboFile[2023/24 Revised baseline])","v":0},null,{"$f":"IFERROR(I20/H20-1,0)","v":0},0,0,{"$f":"IFERROR(((K20/H20)^(1/3)-1),0)","v":0}]
[null,"PCG",null,null,null,null,"Provincial conditional grants",{"$f":"SUMPRODUCT(((T_DataComboFile[DOR]=$B21))*T_DataComboFile[2020/21 Revised])","v":0},{"$f":"SUMPRODUCT(((T_DataComboFile[DOR]=$B21))*T_DataComboFile[2021/22 Revised baseline])","v":0},{"$f":"SUMPRODUCT(((T_DataComboFile[DOR]=$B21))*T_DataComboFile[2022/23 Revised baseline])","v":0},{"$f":"SUMPRODUCT(((T_DataComboFile[DOR]=$B21))*T_DataComboFile[2023/24 Revised baseline])","v":0},null,0,0,0,0]
[null,null,null,null,null,null,"Local government",{"$f":"SUM(H23:H25)","v":0},0,0,0,null,{"$f":"IFERROR(I22/H22-1,0)","v":0},{"$f":"IFERROR(J22/I22-1,0)","v":0},{"$f":"IFERROR(K22/J22-1,0)","v":0},{"$f":"IFERROR(((K22/H22)^(1/3)-1),0)","v":0}]
[null,"LES",null,null,null,null,"Local equitable share",{"$f":"SUMPRODUCT(((T_DataComboFile[DOR]=$B23))*T_DataComboFile[2020/21 Revised])","v":0},{"$f":"SUMPRODUCT(((T_DataComboFile[DOR]=$B23))*T_DataComboFile[2021/22 Revised baseline])","v":0},{"$f":"SUMPRODUCT(((T_DataComboFile[DOR]=$B23))*T_DataComboFile[2022/23 Revised baseline])","v":0},{"$f":"SUMPRODUCT(((T_DataComboFile[DOR]=$B23))*T_DataComboFile[2023/24 Revised baseline])","v":0},null,{"$f":"IFERROR(I23/H23-1,0)","v":0},0,0,{"$f":"IFERROR(((K23/H23)^(1/3)-1),0)","v":0}]
[null,"LCG",null,null,null,null,"Local conditional grants",{"$f":"SUMPRODUCT(((T_DataComboFile[DOR]=$B24))*T_DataComboFile[2020/21 Revised])","v":0},{"$f":"SUMPRODUCT(((T_DataComboFile[DOR]=$B24))*T_DataComboFile[2021/22 Revised baseline])","v":0},{"$f":"SUMPRODUCT(((T_DataComboFile[DOR]=$B24))*T_DataComboFile[2022/23 Revised baseline])","v":0},{"$f":"SUMPRODUCT(((T_DataComboFile[DOR]=$B24))*T_DataComboFile[2023/24 Revised baseline])","v":0},null,0,0,0,0]
[null,"GFL",null,null,null,null,"General fuel levy ",{"$f":"SUMPRODUCT(((T_DataComboFile[DOR]=$B25))*T_DataComboFile[2020/21 Revised])","v":0},{"$f":"SUMPRODUCT(((T_DataComboFile[DOR]=$B25))*T_DataComboFile[2021/22 Revised baseline])","v":0},{"$f":"SUMPRODUCT(((T_DataComboFile[DOR]=$B25))*T_DataComboFile[2022/23 Revised baseline])","v":0},{"$f":"SUMPRODUCT(((T_DataComboFile[DOR]=$B25))*T_DataComboFile[2023/24 Revised baseline])","v":0},null,0,0,0,0]
[]
[]
[null,null,null,null,null,null,{"$f":"G3","v":"VOTE 36:  Small Business Development"}]
[null,null,null,null,null,null,null,"2017/18","2018/19","2019/20","2020/21","2021/22",null,null,null,"2022/23",null,null,null,"2023/24"]
[null,null,null,null,null,null,"Rand thousand","Audited outcome","Audited outcome","Pre-audited outcome","Budget","Baseline","Decrease","Increase","Revised baseline","Baseline","Decrease","Increase","Revised baseline","Baseline","Decrease","Increase","Revised baseline"]
[null,null,null,null,null,null,"Economic classification"]
[null,null,null,null,null,null,"Current payments",{"$f":"SUM(H33:H35)","v":207107},206588,237356,242215,253527,0,0,253527,261618,0,0,261618,273150,0,0,273150]
[null,null,null,null,null,null,"Compensation of employees",{"$f":"SUMPRODUCT(((T_DataComboFile[G&S reporting level indicator]=1)*(T_DataComboFile[Econ3]=$G33))*T_DataComboFile[2017/18])","v":129006},{"$f":"SUMPRODUCT(((T_DataComboFile[G&S reporting level indicator]=1)*(T_DataComboFile[Econ3]=$G33))*T_DataComboFile[2018/19])","v":133037},{"$f":"SUMPRODUCT(((T_DataComboFile[G&S reporting level indicator]=1)*(T_DataComboFile[Econ3]=$G33))*T_DataComboFile[2019/20 Revised estimate])","v":151517},{"$f":"SUMPRODUCT(((T_DataComboFile[G&S reporting level indicator]=1)*(T_DataComboFile[Econ3]=$G33))*T_DataComboFile[2020/21 Revised])","v":153120},{"$f":"SUMPRODUCT(((T_DataComboFile[G&S reporting level indicator]=1)*(T_DataComboFile[Econ3]=$G33))*T_DataComboFile[2021/22 Baseline])","v":159472},{"$f":"SUMPRODUCT(((T_DataComboFile[G&S reporting level indicator]=1)*(T_DataComboFile[Econ3]=$G33))*T_DataComboFile[2021/22 Reduction])","v":0},{"$f":"SUMPRODUCT(((T_DataComboFile[G&S reporting level indicator]=1)*(T_DataComboFile[Econ3]=$G33))*T_DataComboFile[2021/22 Increase])","v":0},{"$f":"L33+M33+N33","v":159472},{"$f":"SUMPRODUCT(((T_DataComboFile[G&S reporting level indicator]=1)*(T_DataComboFile[Econ3]=$G33))*T_DataComboFile[2022/23 Baseline])","v":164005},{"$f":"SUMPRODUCT(((T_DataComboFile[G&S reporting level indicator]=1)*(T_DataComboFile[Econ3]=$G33))*T_DataComboFile[2022/23 Reduction])","v":0},{"$f":"SUMPRODUCT(((T_DataComboFile[G&S reporting level indicator]=1)*(T_DataComboFile[Econ3]=$G33))*T_DataComboFile[2022/23 Increase])","v":0},{"$f":"P33+Q33+R33","v":164005},{"$f":"SUMPRODUCT(((T_DataComboFile[G&S reporting level indicator]=1)*(T_DataComboFile[Econ3]=$G33))*T_DataComboFile[2023/24 Baseline])","v":171236},{"$f":"SUMPRODUCT(((T_DataComboFile[G&S reporting level indicator]=1)*(T_DataComboFile[Econ3]=$G33))*T_DataComboFile[2023/24 Reduction])","v":0},{"$f":"SUMPRODUCT(((T_DataComboFile[G&S reporting level indicator]=1)*(T_DataComboFile[Econ3]=$G33))*T_DataComboFile[2023/24 Increase])","v":0},{"$f":"T33+U33+V33","v":171236}]
[null,null,null,null,null,null,"Goods and services",{"$f":"SUMPRODUCT(((T_DataComboFile[G&S reporting level indicator]=1)*(T_DataComboFile[Econ3]=$G34))*T_DataComboFile[2017/18])","v":78101},{"$f":"SUMPRODUCT(((T_DataComboFile[G&S reporting level indicator]=1)*(T_DataComboFile[Econ3]=$G34))*T_DataComboFile[2018/19])","v":73551},{"$f":"SUMPRODUCT(((T_DataComboFile[G&S reporting level indicator]=1)*(T_DataComboFile[Econ3]=$G34))*T_DataComboFile[2019/20 Revised estimate])","v":85839},{"$f":"SUMPRODUCT(((T_DataComboFile[G&S reporting level indicator]=1)*(T_DataComboFile[Econ3]=$G34))*T_DataComboFile[2020/21 Revised])","v":89095},{"$f":"SUMPRODUCT(((T_DataComboFile[G&S reporting level indicator]=1)*(T_DataComboFile[Econ3]=$G34))*T_DataComboFile[2021/22 Baseline])","v":94055},{"$f":"SUMPRODUCT(((T_DataComboFile[G&S reporting level indicator]=1)*(T_DataComboFile[Econ3]=$G34))*T_DataComboFile[2021/22 Reduction])","v":0},{"$f":"SUMPRODUCT(((T_DataComboFile[G&S reporting level indicator]=1)*(T_DataComboFile[Econ3]=$G34))*T_DataComboFile[2021/22 Increase])","v":0},94055,{"$f":"SUMPRODUCT(((T_DataComboFile[G&S reporting level indicator]=1)*(T_DataComboFile[Econ3]=$G34))*T_DataComboFile[2022/23 Baseline])","v":97613},{"$f":"SUMPRODUCT(((T_DataComboFile[G&S reporting level indicator]=1)*(T_DataComboFile[Econ3]=$G34))*T_DataComboFile[2022/23 Reduction])","v":0},{"$f":"SUMPRODUCT(((T_DataComboFile[G&S reporting level indicator]=1)*(T_DataComboFile[Econ3]=$G34))*T_DataComboFile[2022/23 Increase])","v":0},97613,{"$f":"SUMPRODUCT(((T_DataComboFile[G&S reporting level indicator]=1)*(T_DataComboFile[Econ3]=$G34))*T_DataComboFile[2023/24 Baseline])","v":101914},{"$f":"SUMPRODUCT(((T_DataComboFile[G&S reporting level indicator]=1)*(T_DataComboFile[Econ3]=$G34))*T_DataComboFile[2023/24 Reduction])","v":0},{"$f":"SUMPRODUCT(((T_DataComboFile[G&S reporting level indicator]=1)*(T_DataComboFile[Econ3]=$G34))*T_DataComboFile[2023/24 Increase])","v":0},101914]
[null,null,null,null,null,null,"Interest and rent on land",{"$f":"SUMPRODUCT(((T_DataComboFile[G&S reporting level indicator]=1)*(T_DataComboFile[Econ3]=$G35))*T_DataComboFile[2017/18])","v":0},{"$f":"SUMPRODUCT(((T_DataComboFile[G&S reporting level indicator]=1)*(T_DataComboFile[Econ3]=$G35))*T_DataComboFile[2018/19])","v":0},{"$f":"SUMPRODUCT(((T_DataComboFile[G&S reporting level indicator]=1)*(T_DataComboFile[Econ3]=$G35))*T_DataComboFile[2019/20 Revised estimate])","v":0},{"$f":"SUMPRODUCT(((T_DataComboFile[G&S reporting level indicator]=1)*(T_DataComboFile[Econ3]=$G35))*T_DataComboFile[2020/21 Revised])","v":0},{"$f":"SUMPRODUCT(((T_DataComboFile[G&S reporting level indicator]=1)*(T_DataComboFile[Econ3]=$G35))*T_DataComboFile[2021/22 Baseline])","v":0},{"$f":"SUMPRODUCT(((T_DataComboFile[G&S reporting level indicator]=1)*(T_DataComboFile[Econ3]=$G35))*T_DataComboFile[2021/22 Reduction])","v":0},{"$f":"SUMPRODUCT(((T_DataComboFile[G&S reporting level indicator]=1)*(T_DataComboFile[Econ3]=$G35))*T_DataComboFile[2021/22 Increase])","v":0},0,{"$f":"SUMPRODUCT(((T_DataComboFile[G&S reporting level indicator]=1)*(T_DataComboFile[Econ3]=$G35))*T_DataComboFile[2022/23 Baseline])","v":0},{"$f":"SUMPRODUCT(((T_DataComboFile[G&S reporting level indicator]=1)*(T_DataComboFile[Econ3]=$G35))*T_DataComboFile[2022/23 Reduction])","v":0},{"$f":"SUMPRODUCT(((T_DataComboFile[G&S reporting level indicator]=1)*(T_DataComboFile[Econ3]=$G35))*T_DataComboFile[2022/23 Increase])","v":0},0,{"$f":"SUMPRODUCT(((T_DataComboFile[G&S reporting level indicator]=1)*(T_DataComboFile[Econ3]=$G35))*T_DataComboFile[2023/24 Baseline])","v":0},{"$f":"SUMPRODUCT(((T_DataComboFile[G&S reporting level indicator]=1)*(T_DataComboFile[Econ3]=$G35))*T_DataComboFile[2023/24 Reduction])","v":0},{"$f":"SUMPRODUCT(((T_DataComboFile[G&S reporting level indicator]=1)*(T_DataComboFile[Econ3]=$G35))*T_DataComboFile[2023/24 Increase])","v":0},0]
[null,null,null,null,null,null,"Transfers and subsidies",{"$f":"SUM(H37,H40,H43:H45,H48:H49)","v":1245919},1206446,2026638,2084596,2325806,0,0,2325806,2351606,0,0,2351606,2455250,0,0,2455250]
[null,null,null,null,null,null,"Provinces and municipalities",{"$f":"SUM(H38:H39)","v":0},0,0,0,0,0,0,0,0,0,0,0,0,0,0,0]
[null,null,null,null,null,null,"Provinces",{"$f":"SUMPRODUCT(((T_DataComboFile[G&S reporting level indicator]=1)*(T_DataComboFile[Econ4]=$G38))*T_DataComboFile[2017/18])","v":0},{"$f":"SUMPRODUCT(((T_DataComboFile[G&S reporting level indicator]=1)*(T_DataComboFile[Econ4]=$G38))*T_DataComboFile[2018/19])","v":0},{"$f":"SUMPRODUCT(((T_DataComboFile[G&S reporting level indicator]=1)*(T_DataComboFile[Econ4]=$G38))*T_DataComboFile[2019/20 Revised estimate])","v":0},{"$f":"SUMPRODUCT(((T_DataComboFile[G&S reporting level indicator]=1)*(T_DataComboFile[Econ4]=$G38))*T_DataComboFile[2020/21 Revised])","v":0},{"$f":"SUMPRODUCT(((T_DataComboFile[G&S reporting level indicator]=1)*(T_DataComboFile[Econ4]=$G38))*T_DataComboFile[2021/22 Baseline])","v":0},{"$f":"SUMPRODUCT(((T_DataComboFile[G&S reporting level indicator]=1)*(T_DataComboFile[Econ4]=$G38))*T_DataComboFile[2021/22 Reduction])","v":0},{"$f":"SUMPRODUCT(((T_DataComboFile[G&S reporting level indicator]=1)*(T_DataComboFile[Econ4]=$G38))*T_DataComboFile[2021/22 Increase])","v":0},{"$f":"L38+M38+N38","v":0},{"$f":"SUMPRODUCT(((T_DataComboFile[G&S reporting level indicator]=1)*(T_DataComboFile[Econ4]=$G38))*T_DataComboFile[2022/23 Baseline])","v":0},{"$f":"SUMPRODUCT(((T_DataComboFile[G&S reporting level indicator]=1)*(T_DataComboFile[Econ4]=$G38))*T_DataComboFile[2022/23 Reduction])","v":0},{"$f":"SUMPRODUCT(((T_DataComboFile[G&S reporting level indicator]=1)*(T_DataComboFile[Econ4]=$G38))*T_DataComboFile[2022/23 Increase])","v":0},{"$f":"P38+Q38+R38","v":0},{"$f":"SUMPRODUCT(((T_DataComboFile[G&S reporting level indicator]=1)*(T_DataComboFile[Econ4]=$G38))*T_DataComboFile[2023/24 Baseline])","v":0},{"$f":"SUMPRODUCT(((T_DataComboFile[G&S reporting level indicator]=1)*(T_DataComboFile[Econ4]=$G38))*T_DataComboFile[2023/24 Reduction])","v":0},{"$f":"SUMPRODUCT(((T_DataComboFile[G&S reporting level indicator]=1)*(T_DataComboFile[Econ4]=$G38))*T_DataComboFile[2023/24 Increase])","v":0},{"$f":"T38+U38+V38","v":0}]
[null,null,null,null,null,null,"Municipalities",{"$f":"SUMPRODUCT(((T_DataComboFile[G&S reporting level indicator]=1)*(T_DataComboFile[Econ4]=$G39))*T_DataComboFile[2017/18])","v":0},{"$f":"SUMPRODUCT(((T_DataComboFile[G&S reporting level indicator]=1)*(T_DataComboFile[Econ4]=$G39))*T_DataComboFile[2018/19])","v":0},{"$f":"SUMPRODUCT(((T_DataComboFile[G&S reporting level indicator]=1)*(T_DataComboFile[Econ4]=$G39))*T_DataComboFile[2019/20 Revised estimate])","v":0},{"$f":"SUMPRODUCT(((T_DataComboFile[G&S reporting level indicator]=1)*(T_DataComboFile[Econ4]=$G39))*T_DataComboFile[2020/21 Revised])","v":0},{"$f":"SUMPRODUCT(((T_DataComboFile[G&S reporting level indicator]=1)*(T_DataComboFile[Econ4]=$G39))*T_DataComboFile[2021/22 Baseline])","v":0},{"$f":"SUMPRODUCT(((T_DataComboFile[G&S reporting level indicator]=1)*(T_DataComboFile[Econ4]=$G39))*T_DataComboFile[2021/22 Reduction])","v":0},{"$f":"SUMPRODUCT(((T_DataComboFile[G&S reporting level indicator]=1)*(T_DataComboFile[Econ4]=$G39))*T_DataComboFile[2021/22 Increase])","v":0},0,{"$f":"SUMPRODUCT(((T_DataComboFile[G&S reporting level indicator]=1)*(T_DataComboFile[Econ4]=$G39))*T_DataComboFile[2022/23 Baseline])","v":0},{"$f":"SUMPRODUCT(((T_DataComboFile[G&S reporting level indicator]=1)*(T_DataComboFile[Econ4]=$G39))*T_DataComboFile[2022/23 Reduction])","v":0},{"$f":"SUMPRODUCT(((T_DataComboFile[G&S reporting level indicator]=1)*(T_DataComboFile[Econ4]=$G39))*T_DataComboFile[2022/23 Increase])","v":0},0,{"$f":"SUMPRODUCT(((T_DataComboFile[G&S reporting level indicator]=1)*(T_DataComboFile[Econ4]=$G39))*T_DataComboFile[2023/24 Baseline])","v":0},{"$f":"SUMPRODUCT(((T_DataComboFile[G&S reporting level indicator]=1)*(T_DataComboFile[Econ4]=$G39))*T_DataComboFile[2023/24 Reduction])","v":0},{"$f":"SUMPRODUCT(((T_DataComboFile[G&S reporting level indicator]=1)*(T_DataComboFile[Econ4]=$G39))*T_DataComboFile[2023/24 Increase])","v":0},0]
[null,null,null,null,null,null,"Departmental agencies and accounts",{"$f":"SUM(H41:H42)","v":811301},840089,882763,822640,838443,0,0,838443,846126,0,0,846126,883418,0,0,883418]
[null,null,null,null,null,null,"Social security funds",{"$f":"SUMPRODUCT(((T_DataComboFile[G&S reporting level indicator]=1)*(T_DataComboFile[Econ4]=$G41))*T_DataComboFile[2017/18])","v":0},{"$f":"SUMPRODUCT(((T_DataComboFile[G&S reporting level indicator]=1)*(T_DataComboFile[Econ4]=$G41))*T_DataComboFile[2018/19])","v":0},{"$f":"SUMPRODUCT(((T_DataComboFile[G&S reporting level indicator]=1)*(T_DataComboFile[Econ4]=$G41))*T_DataComboFile[2019/20 Revised estimate])","v":0},{"$f":"SUMPRODUCT(((T_DataComboFile[G&S reporting level indicator]=1)*(T_DataComboFile[Econ4]=$G41))*T_DataComboFile[2020/21 Revised])","v":0},{"$f":"SUMPRODUCT(((T_DataComboFile[G&S reporting level indicator]=1)*(T_DataComboFile[Econ4]=$G41))*T_DataComboFile[2021/22 Baseline])","v":0},{"$f":"SUMPRODUCT(((T_DataComboFile[G&S reporting level indicator]=1)*(T_DataComboFile[Econ4]=$G41))*T_DataComboFile[2021/22 Reduction])","v":0},{"$f":"SUMPRODUCT(((T_DataComboFile[G&S reporting level indicator]=1)*(T_DataComboFile[Econ4]=$G41))*T_DataComboFile[2021/22 Increase])","v":0},{"$f":"L41+M41+N41","v":0},{"$f":"SUMPRODUCT(((T_DataComboFile[G&S reporting level indicator]=1)*(T_DataComboFile[Econ4]=$G41))*T_DataComboFile[2022/23 Baseline])","v":0},{"$f":"SUMPRODUCT(((T_DataComboFile[G&S reporting level indicator]=1)*(T_DataComboFile[Econ4]=$G41))*T_DataComboFile[2022/23 Reduction])","v":0},{"$f":"SUMPRODUCT(((T_DataComboFile[G&S reporting level indicator]=1)*(T_DataComboFile[Econ4]=$G41))*T_DataComboFile[2022/23 Increase])","v":0},{"$f":"P41+Q41+R41","v":0},{"$f":"SUMPRODUCT(((T_DataComboFile[G&S reporting level indicator]=1)*(T_DataComboFile[Econ4]=$G41))*T_DataComboFile[2023/24 Baseline])","v":0},{"$f":"SUMPRODUCT(((T_DataComboFile[G&S reporting level indicator]=1)*(T_DataComboFile[Econ4]=$G41))*T_DataComboFile[2023/24 Reduction])","v":0},{"$f":"SUMPRODUCT(((T_DataComboFile[G&S reporting level indicator]=1)*(T_DataComboFile[Econ4]=$G41))*T_DataComboFile[2023/24 Increase])","v":0},{"$f":"T41+U41+V41","v":0}]
[null,null,null,null,null,null,"Departmental agencies (non-business entities)",{"$f":"SUMPRODUCT(((T_DataComboFile[G&S reporting level indicator]=1)*(T_DataComboFile[Econ4]=$G42))*T_DataComboFile[2017/18])","v":811301},{"$f":"SUMPRODUCT(((T_DataComboFile[G&S reporting level indicator]=1)*(T_DataComboFile[Econ4]=$G42))*T_DataComboFile[2018/19])","v":840089},{"$f":"SUMPRODUCT(((T_DataComboFile[G&S reporting level indicator]=1)*(T_DataComboFile[Econ4]=$G42))*T_DataComboFile[2019/20 Revised estimate])","v":882763},{"$f":"SUMPRODUCT(((T_DataComboFile[G&S reporting level indicator]=1)*(T_DataComboFile[Econ4]=$G42))*T_DataComboFile[2020/21 Revised])","v":822640},{"$f":"SUMPRODUCT(((T_DataComboFile[G&S reporting level indicator]=1)*(T_DataComboFile[Econ4]=$G42))*T_DataComboFile[2021/22 Baseline])","v":838443},{"$f":"SUMPRODUCT(((T_DataComboFile[G&S reporting level indicator]=1)*(T_DataComboFile[Econ4]=$G42))*T_DataComboFile[2021/22 Reduction])","v":0},{"$f":"SUMPRODUCT(((T_DataComboFile[G&S reporting level indicator]=1)*(T_DataComboFile[Econ4]=$G42))*T_DataComboFile[2021/22 Increase])","v":0},838443,{"$f":"SUMPRODUCT(((T_DataComboFile[G&S reporting level indicator]=1)*(T_DataComboFile[Econ4]=$G42))*T_DataComboFile[2022/23 Baseline])","v":846126},{"$f":"SUMPRODUCT(((T_DataComboFile[G&S reporting level indicator]=1)*(T_DataComboFile[Econ4]=$G42))*T_DataComboFile[2022/23 Reduction])","v":0},{"$f":"SUMPRODUCT(((T_DataComboFile[G&S reporting level indicator]=1)*(T_DataComboFile[Econ4]=$G42))*T_DataComboFile[2022/23 Increase])","v":0},846126,{"$f":"SUMPRODUCT(((T_DataComboFile[G&S reporting level indicator]=1)*(T_DataComboFile[Econ4]=$G42))*T_DataComboFile[2023/24 Baseline])","v":883418},{"$f":"SUMPRODUCT(((T_DataComboFile[G&S reporting level indicator]=1)*(T_DataComboFile[Econ4]=$G42))*T_DataComboFile[2023/24 Reduction])","v":0},{"$f":"SUMPRODUCT(((T_DataComboFile[G&S reporting level indicator]=1)*(T_DataComboFile[Econ4]=$G42))*T_DataComboFile[2023/24 Increase])","v":0},883418]
[null,null,null,null,null,null,"Higher education institutions",{"$f":"SUMPRODUCT(((T_DataComboFile[G&S reporting level indicator]=1)*(T_DataComboFile[Econ3]=$G43))*T_DataComboFile[2017/18])","v":0},{"$f":"SUMPRODUCT(((T_DataComboFile[G&S reporting level indicator]=1)*(T_DataComboFile[Econ3]=$G43))*T_DataComboFile[2018/19])","v":0},{"$f":"SUMPRODUCT(((T_DataComboFile[G&S reporting level indicator]=1)*(T_DataComboFile[Econ3]=$G43))*T_DataComboFile[2019/20 Revised estimate])","v":0},{"$f":"SUMPRODUCT(((T_DataComboFile[G&S reporting level indicator]=1)*(T_DataComboFile[Econ3]=$G43))*T_DataComboFile[2020/21 Revised])","v":0},{"$f":"SUMPRODUCT(((T_DataComboFile[G&S reporting level indicator]=1)*(T_DataComboFile[Econ3]=$G43))*T_DataComboFile[2021/22 Baseline])","v":0},{"$f":"SUMPRODUCT(((T_DataComboFile[G&S reporting level indicator]=1)*(T_DataComboFile[Econ3]=$G43))*T_DataComboFile[2021/22 Reduction])","v":0},{"$f":"SUMPRODUCT(((T_DataComboFile[G&S reporting level indicator]=1)*(T_DataComboFile[Econ3]=$G43))*T_DataComboFile[2021/22 Increase])","v":0},0,{"$f":"SUMPRODUCT(((T_DataComboFile[G&S reporting level indicator]=1)*(T_DataComboFile[Econ3]=$G43))*T_DataComboFile[2022/23 Baseline])","v":0},{"$f":"SUMPRODUCT(((T_DataComboFile[G&S reporting level indicator]=1)*(T_DataComboFile[Econ3]=$G43))*T_DataComboFile[2022/23 Reduction])","v":0},{"$f":"SUMPRODUCT(((T_DataComboFile[G&S reporting level indicator]=1)*(T_DataComboFile[Econ3]=$G43))*T_DataComboFile[2022/23 Increase])","v":0},0,{"$f":"SUMPRODUCT(((T_DataComboFile[G&S reporting level indicator]=1)*(T_DataComboFile[Econ3]=$G43))*T_DataComboFile[2023/24 Baseline])","v":0},{"$f":"SUMPRODUCT(((T_DataComboFile[G&S reporting level indicator]=1)*(T_DataComboFile[Econ3]=$G43))*T_DataComboFile[2023/24 Reduction])","v":0},{"$f":"SUMPRODUCT(((T_DataComboFile[G&S reporting level indicator]=1)*(T_DataComboFile[Econ3]=$G43))*T_DataComboFile[2023/24 Increase])","v":0},0]
[null,null,null,null,null,null,"Foreign governments and international organisations",{"$f":"SUMPRODUCT(((T_DataComboFile[G&S reporting level indicator]=1)*(T_DataComboFile[Econ3]=$G44))*T_DataComboFile[2017/18])","v":0},{"$f":"SUMPRODUCT(((T_DataComboFile[G&S reporting level indicator]=1)*(T_DataComboFile[Econ3]=$G44))*T_DataComboFile[2018/19])","v":0},{"$f":"SUMPRODUCT(((T_DataComboFile[G&S reporting level indicator]=1)*(T_DataComboFile[Econ3]=$G44))*T_DataComboFile[2019/20 Revised estimate])","v":0},{"$f":"SUMPRODUCT(((T_DataComboFile[G&S reporting level indicator]=1)*(T_DataComboFile[Econ3]=$G44))*T_DataComboFile[2020/21 Revised])","v":0},{"$f":"SUMPRODUCT(((T_DataComboFile[G&S reporting level indicator]=1)*(T_DataComboFile[Econ3]=$G44))*T_DataComboFile[2021/22 Baseline])","v":0},{"$f":"SUMPRODUCT(((T_DataComboFile[G&S reporting level indicator]=1)*(T_DataComboFile[Econ3]=$G44))*T_DataComboFile[2021/22 Reduction])","v":0},{"$f":"SUMPRODUCT(((T_DataComboFile[G&S reporting level indicator]=1)*(T_DataComboFile[Econ3]=$G44))*T_DataComboFile[2021/22 Increase])","v":0},0,{"$f":"SUMPRODUCT(((T_DataComboFile[G&S reporting level indicator]=1)*(T_DataComboFile[Econ3]=$G44))*T_DataComboFile[2022/23 Baseline])","v":0},{"$f":"SUMPRODUCT(((T_DataComboFile[G&S reporting level indicator]=1)*(T_DataComboFile[Econ3]=$G44))*T_DataComboFile[2022/23 Reduction])","v":0},{"$f":"SUMPRODUCT(((T_DataComboFile[G&S reporting level indicator]=1)*(T_DataComboFile[Econ3]=$G44))*T_DataComboFile[2022/23 Increase])","v":0},0,{"$f":"SUMPRODUCT(((T_DataComboFile[G&S reporting level indicator]=1)*(T_DataComboFile[Econ3]=$G44))*T_DataComboFile[2023/24 Baseline])","v":0},{"$f":"SUMPRODUCT(((T_DataComboFile[G&S reporting level indicator]=1)*(T_DataComboFile[Econ3]=$G44))*T_DataComboFile[2023/24 Reduction])","v":0},{"$f":"SUMPRODUCT(((T_DataComboFile[G&S reporting level indicator]=1)*(T_DataComboFile[Econ3]=$G44))*T_DataComboFile[2023/24 Increase])","v":0},0]
[null,null,null,null,null,null,"Public corporations and private enterprises",{"$f":"SUM(H46:H47)","v":434460},365703,1143584,1261956,1487363,0,0,1487363,1505480,0,0,1505480,1571832,0,0,1571832]
[null,null,null,null,null,null,"Public corporations",{"$f":"SUMPRODUCT(((T_DataComboFile[G&S reporting level indicator]=1)*(T_DataComboFile[Econ4]=$G46))*T_DataComboFile[2017/18])","v":0},{"$f":"SUMPRODUCT(((T_DataComboFile[G&S reporting level indicator]=1)*(T_DataComboFile[Econ4]=$G46))*T_DataComboFile[2018/19])","v":0},{"$f":"SUMPRODUCT(((T_DataComboFile[G&S reporting level indicator]=1)*(T_DataComboFile[Econ4]=$G46))*T_DataComboFile[2019/20 Revised estimate])","v":700000},{"$f":"SUMPRODUCT(((T_DataComboFile[G&S reporting level indicator]=1)*(T_DataComboFile[Econ4]=$G46))*T_DataComboFile[2020/21 Revised])","v":800000},{"$f":"SUMPRODUCT(((T_DataComboFile[G&S reporting level indicator]=1)*(T_DataComboFile[Econ4]=$G46))*T_DataComboFile[2021/22 Baseline])","v":1000000},{"$f":"SUMPRODUCT(((T_DataComboFile[G&S reporting level indicator]=1)*(T_DataComboFile[Econ4]=$G46))*T_DataComboFile[2021/22 Reduction])","v":0},{"$f":"SUMPRODUCT(((T_DataComboFile[G&S reporting level indicator]=1)*(T_DataComboFile[Econ4]=$G46))*T_DataComboFile[2021/22 Increase])","v":0},{"$f":"L46+M46+N46","v":1000000},{"$f":"SUMPRODUCT(((T_DataComboFile[G&S reporting level indicator]=1)*(T_DataComboFile[Econ4]=$G46))*T_DataComboFile[2022/23 Baseline])","v":1000000},{"$f":"SUMPRODUCT(((T_DataComboFile[G&S reporting level indicator]=1)*(T_DataComboFile[Econ4]=$G46))*T_DataComboFile[2022/23 Reduction])","v":0},{"$f":"SUMPRODUCT(((T_DataComboFile[G&S reporting level indicator]=1)*(T_DataComboFile[Econ4]=$G46))*T_DataComboFile[2022/23 Increase])","v":0},{"$f":"P46+Q46+R46","v":1000000},{"$f":"SUMPRODUCT(((T_DataComboFile[G&S reporting level indicator]=1)*(T_DataComboFile[Econ4]=$G46))*T_DataComboFile[2023/24 Baseline])","v":1044074},{"$f":"SUMPRODUCT(((T_DataComboFile[G&S reporting level indicator]=1)*(T_DataComboFile[Econ4]=$G46))*T_DataComboFile[2023/24 Reduction])","v":0},{"$f":"SUMPRODUCT(((T_DataComboFile[G&S reporting level indicator]=1)*(T_DataComboFile[Econ4]=$G46))*T_DataComboFile[2023/24 Increase])","v":0},{"$f":"T46+U46+V46","v":1044074}]
[null,null,null,null,null,null,"Private enterprises",{"$f":"SUMPRODUCT(((T_DataComboFile[G&S reporting level indicator]=1)*(T_DataComboFile[Econ4]=$G47))*T_DataComboFile[2017/18])","v":434460},{"$f":"SUMPRODUCT(((T_DataComboFile[G&S reporting level indicator]=1)*(T_DataComboFile[Econ4]=$G47))*T_DataComboFile[2018/19])","v":365703},{"$f":"SUMPRODUCT(((T_DataComboFile[G&S reporting level indicator]=1)*(T_DataComboFile[Econ4]=$G47))*T_DataComboFile[2019/20 Revised estimate])","v":443584},{"$f":"SUMPRODUCT(((T_DataComboFile[G&S reporting level indicator]=1)*(T_DataComboFile[Econ4]=$G47))*T_DataComboFile[2020/21 Revised])","v":461956},{"$f":"SUMPRODUCT(((T_DataComboFile[G&S reporting level indicator]=1)*(T_DataComboFile[Econ4]=$G47))*T_DataComboFile[2021/22 Baseline])","v":487363},{"$f":"SUMPRODUCT(((T_DataComboFile[G&S reporting level indicator]=1)*(T_DataComboFile[Econ4]=$G47))*T_DataComboFile[2021/22 Reduction])","v":0},{"$f":"SUMPRODUCT(((T_DataComboFile[G&S reporting level indicator]=1)*(T_DataComboFile[Econ4]=$G47))*T_DataComboFile[2021/22 Increase])","v":0},487363,{"$f":"SUMPRODUCT(((T_DataComboFile[G&S reporting level indicator]=1)*(T_DataComboFile[Econ4]=$G47))*T_DataComboFile[2022/23 Baseline])","v":505480},{"$f":"SUMPRODUCT(((T_DataComboFile[G&S reporting level indicator]=1)*(T_DataComboFile[Econ4]=$G47))*T_DataComboFile[2022/23 Reduction])","v":0},{"$f":"SUMPRODUCT(((T_DataComboFile[G&S reporting level indicator]=1)*(T_DataComboFile[Econ4]=$G47))*T_DataComboFile[2022/23 Increase])","v":0},505480,{"$f":"SUMPRODUCT(((T_DataComboFile[G&S reporting level indicator]=1)*(T_DataComboFile[Econ4]=$G47))*T_DataComboFile[2023/24 Baseline])","v":527758},{"$f":"SUMPRODUCT(((T_DataComboFile[G&S reporting level indicator]=1)*(T_DataComboFile[Econ4]=$G47))*T_DataComboFile[2023/24 Reduction])","v":0},{"$f":"SUMPRODUCT(((T_DataComboFile[G&S reporting level indicator]=1)*(T_DataComboFile[Econ4]=$G47))*T_DataComboFile[2023/24 Increase])","v":0},527758]
[null,null,null,null,null,null,"Non-profit institutions",{"$f":"SUMPRODUCT(((T_DataComboFile[G&S reporting level indicator]=1)*(T_DataComboFile[Econ3]=$G48))*T_DataComboFile[2017/18])","v":0},{"$f":"SUMPRODUCT(((T_DataComboFile[G&S reporting level indicator]=1)*(T_DataComboFile[Econ3]=$G48))*T_DataComboFile[2018/19])","v":0},{"$f":"SUMPRODUCT(((T_DataComboFile[G&S reporting level indicator]=1)*(T_DataComboFile[Econ3]=$G48))*T_DataComboFile[2019/20 Revised estimate])","v":0},{"$f":"SUMPRODUCT(((T_DataComboFile[G&S reporting level indicator]=1)*(T_DataComboFile[Econ3]=$G48))*T_DataComboFile[2020/21 Revised])","v":0},{"$f":"SUMPRODUCT(((T_DataComboFile[G&S reporting level indicator]=1)*(T_DataComboFile[Econ3]=$G48))*T_DataComboFile[2021/22 Baseline])","v":0},{"$f":"SUMPRODUCT(((T_DataComboFile[G&S reporting level indicator]=1)*(T_DataComboFile[Econ3]=$G48))*T_DataComboFile[2021/22 Reduction])","v":0},{"$f":"SUMPRODUCT(((T_DataComboFile[G&S reporting level indicator]=1)*(T_DataComboFile[Econ3]=$G48))*T_DataComboFile[2021/22 Increase])","v":0},0,{"$f":"SUMPRODUCT(((T_DataComboFile[G&S reporting level indicator]=1)*(T_DataComboFile[Econ3]=$G48))*T_DataComboFile[2022/23 Baseline])","v":0},{"$f":"SUMPRODUCT(((T_DataComboFile[G&S reporting level indicator]=1)*(T_DataComboFile[Econ3]=$G48))*T_DataComboFile[2022/23 Reduction])","v":0},{"$f":"SUMPRODUCT(((T_DataComboFile[G&S reporting level indicator]=1)*(T_DataComboFile[Econ3]=$G48))*T_DataComboFile[2022/23 Increase])","v":0},0,{"$f":"SUMPRODUCT(((T_DataComboFile[G&S reporting level indicator]=1)*(T_DataComboFile[Econ3]=$G48))*T_DataComboFile[2023/24 Baseline])","v":0},{"$f":"SUMPRODUCT(((T_DataComboFile[G&S reporting level indicator]=1)*(T_DataComboFile[Econ3]=$G48))*T_DataComboFile[2023/24 Reduction])","v":0},{"$f":"SUMPRODUCT(((T_DataComboFile[G&S reporting level indicator]=1)*(T_DataComboFile[Econ3]=$G48))*T_DataComboFile[2023/24 Increase])","v":0},0]
[null,null,null,null,null,null,"Households",{"$f":"SUM(H50:H51)","v":158},654,291,0,0,0,0,0,0,0,0,0,0,0,0,0]
[null,null,null,null,null,null,"Social benefits",{"$f":"SUMPRODUCT(((T_DataComboFile[G&S reporting level indicator]=1)*(T_DataComboFile[Econ4]=$G50))*T_DataComboFile[2017/18])","v":158},{"$f":"SUMPRODUCT(((T_DataComboFile[G&S reporting level indicator]=1)*(T_DataComboFile[Econ4]=$G50))*T_DataComboFile[2018/19])","v":454},{"$f":"SUMPRODUCT(((T_DataComboFile[G&S reporting level indicator]=1)*(T_DataComboFile[Econ4]=$G50))*T_DataComboFile[2019/20 Revised estimate])","v":291},{"$f":"SUMPRODUCT(((T_DataComboFile[G&S reporting level indicator]=1)*(T_DataComboFile[Econ4]=$G50))*T_DataComboFile[2020/21 Revised])","v":0},{"$f":"SUMPRODUCT(((T_DataComboFile[G&S reporting level indicator]=1)*(T_DataComboFile[Econ4]=$G50))*T_DataComboFile[2021/22 Baseline])","v":0},{"$f":"SUMPRODUCT(((T_DataComboFile[G&S reporting level indicator]=1)*(T_DataComboFile[Econ4]=$G50))*T_DataComboFile[2021/22 Reduction])","v":0},{"$f":"SUMPRODUCT(((T_DataComboFile[G&S reporting level indicator]=1)*(T_DataComboFile[Econ4]=$G50))*T_DataComboFile[2021/22 Increase])","v":0},{"$f":"L50+M50+N50","v":0},{"$f":"SUMPRODUCT(((T_DataComboFile[G&S reporting level indicator]=1)*(T_DataComboFile[Econ4]=$G50))*T_DataComboFile[2022/23 Baseline])","v":0},{"$f":"SUMPRODUCT(((T_DataComboFile[G&S reporting level indicator]=1)*(T_DataComboFile[Econ4]=$G50))*T_DataComboFile[2022/23 Reduction])","v":0},{"$f":"SUMPRODUCT(((T_DataComboFile[G&S reporting level indicator]=1)*(T_DataComboFile[Econ4]=$G50))*T_DataComboFile[2022/23 Increase])","v":0},{"$f":"P50+Q50+R50","v":0},{"$f":"SUMPRODUCT(((T_DataComboFile[G&S reporting level indicator]=1)*(T_DataComboFile[Econ4]=$G50))*T_DataComboFile[2023/24 Baseline])","v":0},{"$f":"SUMPRODUCT(((T_DataComboFile[G&S reporting level indicator]=1)*(T_DataComboFile[Econ4]=$G50))*T_DataComboFile[2023/24 Reduction])","v":0},{"$f":"SUMPRODUCT(((T_DataComboFile[G&S reporting level indicator]=1)*(T_DataComboFile[Econ4]=$G50))*T_DataComboFile[2023/24 Increase])","v":0},{"$f":"T50+U50+V50","v":0}]
[null,null,null,null,null,null,"Other transfers to households",{"$f":"SUMPRODUCT(((T_DataComboFile[G&S reporting level indicator]=1)*(T_DataComboFile[Econ4]=$G51))*T_DataComboFile[2017/18])","v":0},{"$f":"SUMPRODUCT(((T_DataComboFile[G&S reporting level indicator]=1)*(T_DataComboFile[Econ4]=$G51))*T_DataComboFile[2018/19])","v":200},{"$f":"SUMPRODUCT(((T_DataComboFile[G&S reporting level indicator]=1)*(T_DataComboFile[Econ4]=$G51))*T_DataComboFile[2019/20 Revised estimate])","v":0},{"$f":"SUMPRODUCT(((T_DataComboFile[G&S reporting level indicator]=1)*(T_DataComboFile[Econ4]=$G51))*T_DataComboFile[2020/21 Revised])","v":0},{"$f":"SUMPRODUCT(((T_DataComboFile[G&S reporting level indicator]=1)*(T_DataComboFile[Econ4]=$G51))*T_DataComboFile[2021/22 Baseline])","v":0},{"$f":"SUMPRODUCT(((T_DataComboFile[G&S reporting level indicator]=1)*(T_DataComboFile[Econ4]=$G51))*T_DataComboFile[2021/22 Reduction])","v":0},{"$f":"SUMPRODUCT(((T_DataComboFile[G&S reporting level indicator]=1)*(T_DataComboFile[Econ4]=$G51))*T_DataComboFile[2021/22 Increase])","v":0},0,{"$f":"SUMPRODUCT(((T_DataComboFile[G&S reporting level indicator]=1)*(T_DataComboFile[Econ4]=$G51))*T_DataComboFile[2022/23 Baseline])","v":0},{"$f":"SUMPRODUCT(((T_DataComboFile[G&S reporting level indicator]=1)*(T_DataComboFile[Econ4]=$G51))*T_DataComboFile[2022/23 Reduction])","v":0},{"$f":"SUMPRODUCT(((T_DataComboFile[G&S reporting level indicator]=1)*(T_DataComboFile[Econ4]=$G51))*T_DataComboFile[2022/23 Increase])","v":0},0,{"$f":"SUMPRODUCT(((T_DataComboFile[G&S reporting level indicator]=1)*(T_DataComboFile[Econ4]=$G51))*T_DataComboFile[2023/24 Baseline])","v":0},{"$f":"SUMPRODUCT(((T_DataComboFile[G&S reporting level indicator]=1)*(T_DataComboFile[Econ4]=$G51))*T_DataComboFile[2023/24 Reduction])","v":0},{"$f":"SUMPRODUCT(((T_DataComboFile[G&S reporting level indicator]=1)*(T_DataComboFile[Econ4]=$G51))*T_DataComboFile[2023/24 Increase])","v":0},0]
[null,null,null,null,null,null,"Payments for capital assets",{"$f":"SUM(H53,H56,H59:H63)","v":6458},6484,4558,4275,4476,0,0,4476,4736,0,0,4736,4945,0,0,4945]
[null,null,null,null,null,null,"Buildings and other fixed structures",{"$f":"SUM(H54:H55)","v":0},0,0,0,0,0,0,0,0,0,0,0,0,0,0,0]
[null,null,null,null,null,null,"Buildings",{"$f":"SUMPRODUCT(((T_DataComboFile[G&S reporting level indicator]=1)*(T_DataComboFile[Econ4]=$G54))*T_DataComboFile[2017/18])","v":0},{"$f":"SUMPRODUCT(((T_DataComboFile[G&S reporting level indicator]=1)*(T_DataComboFile[Econ4]=$G54))*T_DataComboFile[2018/19])","v":0},{"$f":"SUMPRODUCT(((T_DataComboFile[G&S reporting level indicator]=1)*(T_DataComboFile[Econ4]=$G54))*T_DataComboFile[2019/20 Revised estimate])","v":0},{"$f":"SUMPRODUCT(((T_DataComboFile[G&S reporting level indicator]=1)*(T_DataComboFile[Econ4]=$G54))*T_DataComboFile[2020/21 Revised])","v":0},{"$f":"SUMPRODUCT(((T_DataComboFile[G&S reporting level indicator]=1)*(T_DataComboFile[Econ4]=$G54))*T_DataComboFile[2021/22 Baseline])","v":0},{"$f":"SUMPRODUCT(((T_DataComboFile[G&S reporting level indicator]=1)*(T_DataComboFile[Econ4]=$G54))*T_DataComboFile[2021/22 Reduction])","v":0},{"$f":"SUMPRODUCT(((T_DataComboFile[G&S reporting level indicator]=1)*(T_DataComboFile[Econ4]=$G54))*T_DataComboFile[2021/22 Increase])","v":0},{"$f":"L54+M54+N54","v":0},{"$f":"SUMPRODUCT(((T_DataComboFile[G&S reporting level indicator]=1)*(T_DataComboFile[Econ4]=$G54))*T_DataComboFile[2022/23 Baseline])","v":0},{"$f":"SUMPRODUCT(((T_DataComboFile[G&S reporting level indicator]=1)*(T_DataComboFile[Econ4]=$G54))*T_DataComboFile[2022/23 Reduction])","v":0},{"$f":"SUMPRODUCT(((T_DataComboFile[G&S reporting level indicator]=1)*(T_DataComboFile[Econ4]=$G54))*T_DataComboFile[2022/23 Increase])","v":0},{"$f":"P54+Q54+R54","v":0},{"$f":"SUMPRODUCT(((T_DataComboFile[G&S reporting level indicator]=1)*(T_DataComboFile[Econ4]=$G54))*T_DataComboFile[2023/24 Baseline])","v":0},{"$f":"SUMPRODUCT(((T_DataComboFile[G&S reporting level indicator]=1)*(T_DataComboFile[Econ4]=$G54))*T_DataComboFile[2023/24 Reduction])","v":0},{"$f":"SUMPRODUCT(((T_DataComboFile[G&S reporting level indicator]=1)*(T_DataComboFile[Econ4]=$G54))*T_DataComboFile[2023/24 Increase])","v":0},{"$f":"T54+U54+V54","v":0}]
[null,null,null,null,null,null,"Other fixed structures",{"$f":"SUMPRODUCT(((T_DataComboFile[G&S reporting level indicator]=1)*(T_DataComboFile[Econ4]=$G55))*T_DataComboFile[2017/18])","v":0},{"$f":"SUMPRODUCT(((T_DataComboFile[G&S reporting level indicator]=1)*(T_DataComboFile[Econ4]=$G55))*T_DataComboFile[2018/19])","v":0},{"$f":"SUMPRODUCT(((T_DataComboFile[G&S reporting level indicator]=1)*(T_DataComboFile[Econ4]=$G55))*T_DataComboFile[2019/20 Revised estimate])","v":0},{"$f":"SUMPRODUCT(((T_DataComboFile[G&S reporting level indicator]=1)*(T_DataComboFile[Econ4]=$G55))*T_DataComboFile[2020/21 Revised])","v":0},{"$f":"SUMPRODUCT(((T_DataComboFile[G&S reporting level indicator]=1)*(T_DataComboFile[Econ4]=$G55))*T_DataComboFile[2021/22 Baseline])","v":0},{"$f":"SUMPRODUCT(((T_DataComboFile[G&S reporting level indicator]=1)*(T_DataComboFile[Econ4]=$G55))*T_DataComboFile[2021/22 Reduction])","v":0},{"$f":"SUMPRODUCT(((T_DataComboFile[G&S reporting level indicator]=1)*(T_DataComboFile[Econ4]=$G55))*T_DataComboFile[2021/22 Increase])","v":0},0,{"$f":"SUMPRODUCT(((T_DataComboFile[G&S reporting level indicator]=1)*(T_DataComboFile[Econ4]=$G55))*T_DataComboFile[2022/23 Baseline])","v":0},{"$f":"SUMPRODUCT(((T_DataComboFile[G&S reporting level indicator]=1)*(T_DataComboFile[Econ4]=$G55))*T_DataComboFile[2022/23 Reduction])","v":0},{"$f":"SUMPRODUCT(((T_DataComboFile[G&S reporting level indicator]=1)*(T_DataComboFile[Econ4]=$G55))*T_DataComboFile[2022/23 Increase])","v":0},0,{"$f":"SUMPRODUCT(((T_DataComboFile[G&S reporting level indicator]=1)*(T_DataComboFile[Econ4]=$G55))*T_DataComboFile[2023/24 Baseline])","v":0},{"$f":"SUMPRODUCT(((T_DataComboFile[G&S reporting level indicator]=1)*(T_DataComboFile[Econ4]=$G55))*T_DataComboFile[2023/24 Reduction])","v":0},{"$f":"SUMPRODUCT(((T_DataComboFile[G&S reporting level indicator]=1)*(T_DataComboFile[Econ4]=$G55))*T_DataComboFile[2023/24 Increase])","v":0},0]
[null,null,null,null,null,null,"Machinery and equipment",{"$f":"SUM(H57:H58)","v":4960},5030,4558,4275,4476,0,0,4476,4736,0,0,4736,4945,0,0,4945]
[null,null,null,null,null,null,"Transport equipment",{"$f":"SUMPRODUCT(((T_DataComboFile[G&S reporting level indicator]=1)*(T_DataComboFile[Econ4]=$G57))*T_DataComboFile[2017/18])","v":1819},{"$f":"SUMPRODUCT(((T_DataComboFile[G&S reporting level indicator]=1)*(T_DataComboFile[Econ4]=$G57))*T_DataComboFile[2018/19])","v":0},{"$f":"SUMPRODUCT(((T_DataComboFile[G&S reporting level indicator]=1)*(T_DataComboFile[Econ4]=$G57))*T_DataComboFile[2019/20 Revised estimate])","v":800},{"$f":"SUMPRODUCT(((T_DataComboFile[G&S reporting level indicator]=1)*(T_DataComboFile[Econ4]=$G57))*T_DataComboFile[2020/21 Revised])","v":0},{"$f":"SUMPRODUCT(((T_DataComboFile[G&S reporting level indicator]=1)*(T_DataComboFile[Econ4]=$G57))*T_DataComboFile[2021/22 Baseline])","v":0},{"$f":"SUMPRODUCT(((T_DataComboFile[G&S reporting level indicator]=1)*(T_DataComboFile[Econ4]=$G57))*T_DataComboFile[2021/22 Reduction])","v":0},{"$f":"SUMPRODUCT(((T_DataComboFile[G&S reporting level indicator]=1)*(T_DataComboFile[Econ4]=$G57))*T_DataComboFile[2021/22 Increase])","v":0},{"$f":"L57+M57+N57","v":0},{"$f":"SUMPRODUCT(((T_DataComboFile[G&S reporting level indicator]=1)*(T_DataComboFile[Econ4]=$G57))*T_DataComboFile[2022/23 Baseline])","v":0},{"$f":"SUMPRODUCT(((T_DataComboFile[G&S reporting level indicator]=1)*(T_DataComboFile[Econ4]=$G57))*T_DataComboFile[2022/23 Reduction])","v":0},{"$f":"SUMPRODUCT(((T_DataComboFile[G&S reporting level indicator]=1)*(T_DataComboFile[Econ4]=$G57))*T_DataComboFile[2022/23 Increase])","v":0},{"$f":"P57+Q57+R57","v":0},{"$f":"SUMPRODUCT(((T_DataComboFile[G&S reporting level indicator]=1)*(T_DataComboFile[Econ4]=$G57))*T_DataComboFile[2023/24 Baseline])","v":0},{"$f":"SUMPRODUCT(((T_DataComboFile[G&S reporting level indicator]=1)*(T_DataComboFile[Econ4]=$G57))*T_DataComboFile[2023/24 Reduction])","v":0},{"$f":"SUMPRODUCT(((T_DataComboFile[G&S reporting level indicator]=1)*(T_DataComboFile[Econ4]=$G57))*T_DataComboFile[2023/24 Increase])","v":0},{"$f":"T57+U57+V57","v":0}]
[null,null,null,null,null,null,"Other machinery and equipment",{"$f":"SUMPRODUCT(((T_DataComboFile[G&S reporting level indicator]=1)*(T_DataComboFile[Econ4]=$G58))*T_DataComboFile[2017/18])","v":3141},{"$f":"SUMPRODUCT(((T_DataComboFile[G&S reporting level indicator]=1)*(T_DataComboFile[Econ4]=$G58))*T_DataComboFile[2018/19])","v":5030},{"$f":"SUMPRODUCT(((T_DataComboFile[G&S reporting level indicator]=1)*(T_DataComboFile[Econ4]=$G58))*T_DataComboFile[2019/20 Revised estimate])","v":3758},{"$f":"SUMPRODUCT(((T_DataComboFile[G&S reporting level indicator]=1)*(T_DataComboFile[Econ4]=$G58))*T_DataComboFile[2020/21 Revised])","v":4275},{"$f":"SUMPRODUCT(((T_DataComboFile[G&S reporting level indicator]=1)*(T_DataComboFile[Econ4]=$G58))*T_DataComboFile[2021/22 Baseline])","v":4476},{"$f":"SUMPRODUCT(((T_DataComboFile[G&S reporting level indicator]=1)*(T_DataComboFile[Econ4]=$G58))*T_DataComboFile[2021/22 Reduction])","v":0},{"$f":"SUMPRODUCT(((T_DataComboFile[G&S reporting level indicator]=1)*(T_DataComboFile[Econ4]=$G58))*T_DataComboFile[2021/22 Increase])","v":0},4476,{"$f":"SUMPRODUCT(((T_DataComboFile[G&S reporting level indicator]=1)*(T_DataComboFile[Econ4]=$G58))*T_DataComboFile[2022/23 Baseline])","v":4736},{"$f":"SUMPRODUCT(((T_DataComboFile[G&S reporting level indicator]=1)*(T_DataComboFile[Econ4]=$G58))*T_DataComboFile[2022/23 Reduction])","v":0},{"$f":"SUMPRODUCT(((T_DataComboFile[G&S reporting level indicator]=1)*(T_DataComboFile[Econ4]=$G58))*T_DataComboFile[2022/23 Increase])","v":0},4736,{"$f":"SUMPRODUCT(((T_DataComboFile[G&S reporting level indicator]=1)*(T_DataComboFile[Econ4]=$G58))*T_DataComboFile[2023/24 Baseline])","v":4945},{"$f":"SUMPRODUCT(((T_DataComboFile[G&S reporting level indicator]=1)*(T_DataComboFile[Econ4]=$G58))*T_DataComboFile[2023/24 Reduction])","v":0},{"$f":"SUMPRODUCT(((T_DataComboFile[G&S reporting level indicator]=1)*(T_DataComboFile[Econ4]=$G58))*T_DataComboFile[2023/24 Increase])","v":0},4945]
[null,null,null,null,null,null,"Heritage assets",{"$f":"SUMPRODUCT(((T_DataComboFile[G&S reporting level indicator]=1)*(T_DataComboFile[Econ3]=$G59))*T_DataComboFile[2017/18])","v":0},{"$f":"SUMPRODUCT(((T_DataComboFile[G&S reporting level indicator]=1)*(T_DataComboFile[Econ3]=$G59))*T_DataComboFile[2018/19])","v":0},{"$f":"SUMPRODUCT(((T_DataComboFile[G&S reporting level indicator]=1)*(T_DataComboFile[Econ3]=$G59))*T_DataComboFile[2019/20 Revised estimate])","v":0},{"$f":"SUMPRODUCT(((T_DataComboFile[G&S reporting level indicator]=1)*(T_DataComboFile[Econ3]=$G59))*T_DataComboFile[2020/21 Revised])","v":0},{"$f":"SUMPRODUCT(((T_DataComboFile[G&S reporting level indicator]=1)*(T_DataComboFile[Econ3]=$G59))*T_DataComboFile[2021/22 Baseline])","v":0},{"$f":"SUMPRODUCT(((T_DataComboFile[G&S reporting level indicator]=1)*(T_DataComboFile[Econ3]=$G59))*T_DataComboFile[2021/22 Reduction])","v":0},{"$f":"SUMPRODUCT(((T_DataComboFile[G&S reporting level indicator]=1)*(T_DataComboFile[Econ3]=$G59))*T_DataComboFile[2021/22 Increase])","v":0},0,{"$f":"SUMPRODUCT(((T_DataComboFile[G&S reporting level indicator]=1)*(T_DataComboFile[Econ3]=$G59))*T_DataComboFile[2022/23 Baseline])","v":0},{"$f":"SUMPRODUCT(((T_DataComboFile[G&S reporting level indicator]=1)*(T_DataComboFile[Econ3]=$G59))*T_DataComboFile[2022/23 Reduction])","v":0},{"$f":"SUMPRODUCT(((T_DataComboFile[G&S reporting level indicator]=1)*(T_DataComboFile[Econ3]=$G59))*T_DataComboFile[2022/23 Increase])","v":0},0,{"$f":"SUMPRODUCT(((T_DataComboFile[G&S reporting level indicator]=1)*(T_DataComboFile[Econ3]=$G59))*T_DataComboFile[2023/24 Baseline])","v":0},{"$f":"SUMPRODUCT(((T_DataComboFile[G&S reporting level indicator]=1)*(T_DataComboFile[Econ3]=$G59))*T_DataComboFile[2023/24 Reduction])","v":0},{"$f":"SUMPRODUCT(((T_DataComboFile[G&S reporting level indicator]=1)*(T_DataComboFile[Econ3]=$G59))*T_DataComboFile[2023/24 Increase])","v":0},0]
[null,null,null,null,null,null,"Specialised military assets",{"$f":"SUMPRODUCT(((T_DataComboFile[G&S reporting level indicator]=1)*(T_DataComboFile[Econ3]=$G60))*T_DataComboFile[2017/18])","v":0},{"$f":"SUMPRODUCT(((T_DataComboFile[G&S reporting level indicator]=1)*(T_DataComboFile[Econ3]=$G60))*T_DataComboFile[2018/19])","v":0},{"$f":"SUMPRODUCT(((T_DataComboFile[G&S reporting level indicator]=1)*(T_DataComboFile[Econ3]=$G60))*T_DataComboFile[2019/20 Revised estimate])","v":0},{"$f":"SUMPRODUCT(((T_DataComboFile[G&S reporting level indicator]=1)*(T_DataComboFile[Econ3]=$G60))*T_DataComboFile[2020/21 Revised])","v":0},{"$f":"SUMPRODUCT(((T_DataComboFile[G&S reporting level indicator]=1)*(T_DataComboFile[Econ3]=$G60))*T_DataComboFile[2021/22 Baseline])","v":0},{"$f":"SUMPRODUCT(((T_DataComboFile[G&S reporting level indicator]=1)*(T_DataComboFile[Econ3]=$G60))*T_DataComboFile[2021/22 Reduction])","v":0},{"$f":"SUMPRODUCT(((T_DataComboFile[G&S reporting level indicator]=1)*(T_DataComboFile[Econ3]=$G60))*T_DataComboFile[2021/22 Increase])","v":0},0,{"$f":"SUMPRODUCT(((T_DataComboFile[G&S reporting level indicator]=1)*(T_DataComboFile[Econ3]=$G60))*T_DataComboFile[2022/23 Baseline])","v":0},{"$f":"SUMPRODUCT(((T_DataComboFile[G&S reporting level indicator]=1)*(T_DataComboFile[Econ3]=$G60))*T_DataComboFile[2022/23 Reduction])","v":0},{"$f":"SUMPRODUCT(((T_DataComboFile[G&S reporting level indicator]=1)*(T_DataComboFile[Econ3]=$G60))*T_DataComboFile[2022/23 Increase])","v":0},0,{"$f":"SUMPRODUCT(((T_DataComboFile[G&S reporting level indicator]=1)*(T_DataComboFile[Econ3]=$G60))*T_DataComboFile[2023/24 Baseline])","v":0},{"$f":"SUMPRODUCT(((T_DataComboFile[G&S reporting level indicator]=1)*(T_DataComboFile[Econ3]=$G60))*T_DataComboFile[2023/24 Reduction])","v":0},{"$f":"SUMPRODUCT(((T_DataComboFile[G&S reporting level indicator]=1)*(T_DataComboFile[Econ3]=$G60))*T_DataComboFile[2023/24 Increase])","v":0},0]
[null,null,null,null,null,null,"Biological assets",{"$f":"SUMPRODUCT(((T_DataComboFile[G&S reporting level indicator]=1)*(T_DataComboFile[Econ3]=$G61))*T_DataComboFile[2017/18])","v":0},{"$f":"SUMPRODUCT(((T_DataComboFile[G&S reporting level indicator]=1)*(T_DataComboFile[Econ3]=$G61))*T_DataComboFile[2018/19])","v":0},{"$f":"SUMPRODUCT(((T_DataComboFile[G&S reporting level indicator]=1)*(T_DataComboFile[Econ3]=$G61))*T_DataComboFile[2019/20 Revised estimate])","v":0},{"$f":"SUMPRODUCT(((T_DataComboFile[G&S reporting level indicator]=1)*(T_DataComboFile[Econ3]=$G61))*T_DataComboFile[2020/21 Revised])","v":0},{"$f":"SUMPRODUCT(((T_DataComboFile[G&S reporting level indicator]=1)*(T_DataComboFile[Econ3]=$G61))*T_DataComboFile[2021/22 Baseline])","v":0},{"$f":"SUMPRODUCT(((T_DataComboFile[G&S reporting level indicator]=1)*(T_DataComboFile[Econ3]=$G61))*T_DataComboFile[2021/22 Reduction])","v":0},{"$f":"SUMPRODUCT(((T_DataComboFile[G&S reporting level indicator]=1)*(T_DataComboFile[Econ3]=$G61))*T_DataComboFile[2021/22 Increase])","v":0},0,{"$f":"SUMPRODUCT(((T_DataComboFile[G&S reporting level indicator]=1)*(T_DataComboFile[Econ3]=$G61))*T_DataComboFile[2022/23 Baseline])","v":0},{"$f":"SUMPRODUCT(((T_DataComboFile[G&S reporting level indicator]=1)*(T_DataComboFile[Econ3]=$G61))*T_DataComboFile[2022/23 Reduction])","v":0},{"$f":"SUMPRODUCT(((T_DataComboFile[G&S reporting level indicator]=1)*(T_DataComboFile[Econ3]=$G61))*T_DataComboFile[2022/23 Increase])","v":0},0,{"$f":"SUMPRODUCT(((T_DataComboFile[G&S reporting level indicator]=1)*(T_DataComboFile[Econ3]=$G61))*T_DataComboFile[2023/24 Baseline])","v":0},{"$f":"SUMPRODUCT(((T_DataComboFile[G&S reporting level indicator]=1)*(T_DataComboFile[Econ3]=$G61))*T_DataComboFile[2023/24 Reduction])","v":0},{"$f":"SUMPRODUCT(((T_DataComboFile[G&S reporting level indicator]=1)*(T_DataComboFile[Econ3]=$G61))*T_DataComboFile[2023/24 Increase])","v":0},0]
[null,null,null,null,null,null,"Land and sub-soil assets",{"$f":"SUMPRODUCT(((T_DataComboFile[G&S reporting level indicator]=1)*(T_DataComboFile[Econ3]=$G62))*T_DataComboFile[2017/18])","v":0},{"$f":"SUMPRODUCT(((T_DataComboFile[G&S reporting level indicator]=1)*(T_DataComboFile[Econ3]=$G62))*T_DataComboFile[2018/19])","v":0},{"$f":"SUMPRODUCT(((T_DataComboFile[G&S reporting level indicator]=1)*(T_DataComboFile[Econ3]=$G62))*T_DataComboFile[2019/20 Revised estimate])","v":0},{"$f":"SUMPRODUCT(((T_DataComboFile[G&S reporting level indicator]=1)*(T_DataComboFile[Econ3]=$G62))*T_DataComboFile[2020/21 Revised])","v":0},{"$f":"SUMPRODUCT(((T_DataComboFile[G&S reporting level indicator]=1)*(T_DataComboFile[Econ3]=$G62))*T_DataComboFile[2021/22 Baseline])","v":0},{"$f":"SUMPRODUCT(((T_DataComboFile[G&S reporting level indicator]=1)*(T_DataComboFile[Econ3]=$G62))*T_DataComboFile[2021/22 Reduction])","v":0},{"$f":"SUMPRODUCT(((T_DataComboFile[G&S reporting level indicator]=1)*(T_DataComboFile[Econ3]=$G62))*T_DataComboFile[2021/22 Increase])","v":0},0,{"$f":"SUMPRODUCT(((T_DataComboFile[G&S reporting level indicator]=1)*(T_DataComboFile[Econ3]=$G62))*T_DataComboFile[2022/23 Baseline])","v":0},{"$f":"SUMPRODUCT(((T_DataComboFile[G&S reporting level indicator]=1)*(T_DataComboFile[Econ3]=$G62))*T_DataComboFile[2022/23 Reduction])","v":0},{"$f":"SUMPRODUCT(((T_DataComboFile[G&S reporting level indicator]=1)*(T_DataComboFile[Econ3]=$G62))*T_DataComboFile[2022/23 Increase])","v":0},0,{"$f":"SUMPRODUCT(((T_DataComboFile[G&S reporting level indicator]=1)*(T_DataComboFile[Econ3]=$G62))*T_DataComboFile[2023/24 Baseline])","v":0},{"$f":"SUMPRODUCT(((T_DataComboFile[G&S reporting level indicator]=1)*(T_DataComboFile[Econ3]=$G62))*T_DataComboFile[2023/24 Reduction])","v":0},{"$f":"SUMPRODUCT(((T_DataComboFile[G&S reporting level indicator]=1)*(T_DataComboFile[Econ3]=$G62))*T_DataComboFile[2023/24 Increase])","v":0},0]
[null,null,null,null,null,null,"Software and other intangible assets",{"$f":"SUMPRODUCT(((T_DataComboFile[G&S reporting level indicator]=1)*(T_DataComboFile[Econ3]=$G63))*T_DataComboFile[2017/18])","v":1498},{"$f":"SUMPRODUCT(((T_DataComboFile[G&S reporting level indicator]=1)*(T_DataComboFile[Econ3]=$G63))*T_DataComboFile[2018/19])","v":1454},{"$f":"SUMPRODUCT(((T_DataComboFile[G&S reporting level indicator]=1)*(T_DataComboFile[Econ3]=$G63))*T_DataComboFile[2019/20 Revised estimate])","v":0},{"$f":"SUMPRODUCT(((T_DataComboFile[G&S reporting level indicator]=1)*(T_DataComboFile[Econ3]=$G63))*T_DataComboFile[2020/21 Revised])","v":0},{"$f":"SUMPRODUCT(((T_DataComboFile[G&S reporting level indicator]=1)*(T_DataComboFile[Econ3]=$G63))*T_DataComboFile[2021/22 Baseline])","v":0},{"$f":"SUMPRODUCT(((T_DataComboFile[G&S reporting level indicator]=1)*(T_DataComboFile[Econ3]=$G63))*T_DataComboFile[2021/22 Reduction])","v":0},{"$f":"SUMPRODUCT(((T_DataComboFile[G&S reporting level indicator]=1)*(T_DataComboFile[Econ3]=$G63))*T_DataComboFile[2021/22 Increase])","v":0},0,{"$f":"SUMPRODUCT(((T_DataComboFile[G&S reporting level indicator]=1)*(T_DataComboFile[Econ3]=$G63))*T_DataComboFile[2022/23 Baseline])","v":0},{"$f":"SUMPRODUCT(((T_DataComboFile[G&S reporting level indicator]=1)*(T_DataComboFile[Econ3]=$G63))*T_DataComboFile[2022/23 Reduction])","v":0},{"$f":"SUMPRODUCT(((T_DataComboFile[G&S reporting level indicator]=1)*(T_DataComboFile[Econ3]=$G63))*T_DataComboFile[2022/23 Increase])","v":0},0,{"$f":"SUMPRODUCT(((T_DataComboFile[G&S reporting level indicator]=1)*(T_DataComboFile[Econ3]=$G63))*T_DataComboFile[2023/24 Baseline])","v":0},{"$f":"SUMPRODUCT(((T_DataComboFile[G&S reporting level indicator]=1)*(T_DataComboFile[Econ3]=$G63))*T_DataComboFile[2023/24 Reduction])","v":0},{"$f":"SUMPRODUCT(((T_DataComboFile[G&S reporting level indicator]=1)*(T_DataComboFile[Econ3]=$G63))*T_DataComboFile[2023/24 Increase])","v":0},0]
[null,null,null,null,null,null,"Payments for financial assets",{"$f":"SUMPRODUCT(((T_DataComboFile[G&S reporting level indicator]=1)*(T_DataComboFile[Econ3]=$G64))*T_DataComboFile[2017/18])","v":0},{"$f":"SUMPRODUCT(((T_DataComboFile[G&S reporting level indicator]=1)*(T_DataComboFile[Econ3]=$G64))*T_DataComboFile[2018/19])","v":0},{"$f":"SUMPRODUCT(((T_DataComboFile[G&S reporting level indicator]=1)*(T_DataComboFile[Econ3]=$G64))*T_DataComboFile[2019/20 Revised estimate])","v":0},{"$f":"SUMPRODUCT(((T_DataComboFile[G&S reporting level indicator]=1)*(T_DataComboFile[Econ3]=$G64))*T_DataComboFile[2020/21 Revised])","v":0},{"$f":"SUMPRODUCT(((T_DataComboFile[G&S reporting level indicator]=1)*(T_DataComboFile[Econ3]=$G64))*T_DataComboFile[2021/22 Baseline])","v":0},{"$f":"SUMPRODUCT(((T_DataComboFile[G&S reporting level indicator]=1)*(T_DataComboFile[Econ3]=$G64))*T_DataComboFile[2021/22 Reduction])","v":0},{"$f":"SUMPRODUCT(((T_DataComboFile[G&S reporting level indicator]=1)*(T_DataComboFile[Econ3]=$G64))*T_DataComboFile[2021/22 Increase])","v":0},0,{"$f":"SUMPRODUCT(((T_DataComboFile[G&S reporting level indicator]=1)*(T_DataComboFile[Econ3]=$G64))*T_DataComboFile[2022/23 Baseline])","v":0},{"$f":"SUMPRODUCT(((T_DataComboFile[G&S reporting level indicator]=1)*(T_DataComboFile[Econ3]=$G64))*T_DataComboFile[2022/23 Reduction])","v":0},{"$f":"SUMPRODUCT(((T_DataComboFile[G&S reporting level indicator]=1)*(T_DataComboFile[Econ3]=$G64))*T_DataComboFile[2022/23 Increase])","v":0},0,{"$f":"SUMPRODUCT(((T_DataComboFile[G&S reporting level indicator]=1)*(T_DataComboFile[Econ3]=$G64))*T_DataComboFile[2023/24 Baseline])","v":0},{"$f":"SUMPRODUCT(((T_DataComboFile[G&S reporting level indicator]=1)*(T_DataComboFile[Econ3]=$G64))*T_DataComboFile[2023/24 Reduction])","v":0},{"$f":"SUMPRODUCT(((T_DataComboFile[G&S reporting level indicator]=1)*(T_DataComboFile[Econ3]=$G64))*T_DataComboFile[2023/24 Increase])","v":0},0]
[null,null,null,null,null,null,"Total",{"$f":"SUM(H32,H36,H52,H64)","v":1459484},1419518,2268552,2331086,2583809,0,0,2583809,2617960,0,0,2617960,2733345,0,0,2733345]
[]
[]
[]
[]
[]
[]
[null,null,null,null,null,null,"I, ……………………………………………………..………………………………………., certify that the information in this template is complete, true and accurate, and has been compiled in line with the requirements in the 2021 MTEF Technical Guidelines."]
[]
[]
[]
[]
[null,null,null,null,null,null,"……………….………………………….."]
[null,null,null,null,null,null,{"$f":"\"Chief Financial Officer\"","v":"Chief Financial Officer"}]
[]
[null,null,null,null,null,null,"…………......./……........….../……...….....…..."]

{"sheet":"IP1","index":10,"n_rows":219,"n_cols":23,"rows_kept":219,"cut":false,"hidden":false,"merged":[[212,16,212,20],[213,16,213,20],[214,16,214,20],[215,16,215,20],[207,16,207,20],[208,16,208,20],[209,16,209,20],[210,16,210,20],[211,16,211,20],[197,16,197,20],[185,16,185,20],[186,16,186,20],[187,16,187,20],[188,16,188,20],[205,16,205,20],[206,16,206,20],[202,16,202,20],[203,16,203,20],[204,16,204,20],[199,16,199,20],[200,16,200,20],[201,16,201,20],[198,16,198,20],[183,16,183,20],[184,16,184,20],[175,16,175,20],[176,16,176,20],[177,16,177,20],[178,16,178,20],[179,16,179,20],[180,16,180,20],[196,16,196,20],[194,16,194,20],[195,16,195,20],[189,16,189,20],[190,16,190,20],[191,16,191,20],[192,16,192,20],[193,16,193,20],[73,6,87,17],[170,16,170,20],[171,16,171,20],[172,16,172,20],[173,16,173,20],[143,16,162,20],[174,16,174,20],[181,16,181,20],[182,16,182,20],[103,16,103,20],[95,16,95,20],[117,16,117,20],[118,16,118,20],[104,16,104,20],[105,16,105,20],[106,16,106,20],[107,16,107,20],[108,16,108,20],[99,16,99,20],[100,16,100,20],[101,16,101,20],[102,16,102,20],[70,6,70,17],[141,16,141,20],[142,16,142,20],[129,16,129,20],[130,16,130,20],[131,16,131,20],[132,16,132,20],[133,16,133,20],[124,16,124,20],[125,16,125,20],[126,16,126,20],[127,16,127,20],[128,16,128,20],[119,16,119,20],[120,16,120,20],[121,16,121,20],[96,16,96,20],[97,16,97,20],[98,16,98,20],[122,16,122,20],[123,16,123,20],[109,16,109,20],[110,16,110,20],[94,16,94,20],[109,21,109,23],[110,21,110,23],[94,21,94,23],[95,21,95,23],[96,21,96,23],[97,21,97,23],[98,21,98,23],[99,21,99,23],[100,21,100,23],[101,21,101,23],[102,21,102,23],[103,21,103,23],[104,21,104,23],[105,21,105,23],[106,21,106,23],[107,21,107,23],[108,21,108,23]]}
[]
[null,null,null,null,null,null,"Implementation programme:"]
[null,{"$f":"IF(G3=\"\",0,1)","v":0},null,null,null,1,null,"… select from dropdown list"]
[null,null,null,null,null,null,null,null,null,null,null,null,"Growth"]
[null,null,null,null,null,null,"Quick view","2020/21","2021/22","2022/23","2023/24","Trend","2021/22","2022/23","2023/24","Ave Ann",null,"2020/21","2021/22","2022/23","2023/24"]
[null,null,null,null,null,null,"Compensation of employees",{"$f":"SUMPRODUCT(($G$32:$G$65=$G6)*($K$32:$K$65))","v":0},{"$f":"SUMPRODUCT(($G$32:$G$65=$G6)*($O$32:$O$65))","v":0},{"$f":"SUMPRODUCT(($G$32:$G$65=$G6)*($S$32:$S$65))","v":0},{"$f":"SUMPRODUCT(($G$32:$G$65=$G6)*($W$32:$W$65))","v":0},null,{"$f":"IFERROR(I6/H6-1,0)","v":0},0,0,{"$f":"IFERROR(((K6/H6)^(1/3)-1),0)","v":0}]
[null,null,null,null,null,null,"Goods and services",{"$f":"SUMPRODUCT(($G$32:$G$65=$G7)*($K$32:$K$65))","v":0},{"$f":"SUMPRODUCT(($G$32:$G$65=$G7)*($O$32:$O$65))","v":0},{"$f":"SUMPRODUCT(($G$32:$G$65=$G7)*($S$32:$S$65))","v":0},{"$f":"SUMPRODUCT(($G$32:$G$65=$G7)*($W$32:$W$65))","v":0},null,0,0,0,0]
[null,null,null,null,null,null,"Transfers and subsidies",{"$f":"SUMPRODUCT(($G$32:$G$65=$G8)*($K$32:$K$65))","v":0},{"$f":"SUMPRODUCT(($G$32:$G$65=$G8)*($O$32:$O$65))","v":0},{"$f":"SUMPRODUCT(($G$32:$G$65=$G8)*($S$32:$S$65))","v":0},{"$f":"SUMPRODUCT(($G$32:$G$65=$G8)*($W$32:$W$65))","v":0},null,0,0,0,0]
[null,null,null,null,null,null,"Payments for capital assets",{"$f":"SUMPRODUCT(($G$32:$G$65=$G9)*($K$32:$K$65))","v":0},{"$f":"SUMPRODUCT(($G$32:$G$65=$G9)*($O$32:$O$65))","v":0},{"$f":"SUMPRODUCT(($G$32:$G$65=$G9)*($S$32:$S$65))","v":0},{"$f":"SUMPRODUCT(($G$32:$G$65=$G9)*($W$32:$W$65))","v":0},null,0,0,0,0]
[null,null,null,null,null,null,"Total",{"$f":"SUMPRODUCT(($G$32:$G$65=$G10)*($K$32:$K$65))","v":0},{"$f":"SUMPRODUCT(($G$32:$G$65=$G10)*($O$32:$O$65))","v":0},{"$f":"SUMPRODUCT(($G$32:$G$65=$G10)*($S$32:$S$65))","v":0},{"$f":"SUMPRODUCT(($G$32:$G$65=$G10)*($W$32:$W$65))","v":0},null,0,0,0,0]
[null,null,null,null,null,null,"Composition of spending (% of Total)"]
[null,null,null,null,null,null,"Compensation of employees",{"$f":"IFERROR(H6/H$10,\"\")","v":""},"","","",null,null,null,null,null,null,{"$f":"IF(H12>0.0595,H12,\"\")","v":""},"","",""]
[null,null,null,null,null,null,"Goods and services","","","","",null,null,null,null,null,null,"","","",""]
[null,null,null,null,null,null,"Transfers and subsidies","","","","",null,null,null,null,null,null,"","","",""]
[null,null,null,null,null,null,"Payments for capital assets","","","","",null,null,null,null,null,null,"","","",""]
[]
[null,null,null,null,null,null,"Division of Revenue","2020/21","2021/22","2022/23","2023/24","Trend","2021/22","2022/23","2023/24","Ave Ann"]
[{"$f":"$G$3","v":0},"NAT",null,null,null,null,"National",{"$f":"SUMPRODUCT(((T_DataComboFile[Implementation programme]=$G$3)*(T_DataComboFile[DOR]=$B18))*T_DataComboFile[2020/21 Revised])","v":2331086},{"$f":"SUMPRODUCT(((T_DataComboFile[Implementation programme]=$G$3)*(T_DataComboFile[DOR]=$B18))*T_DataComboFile[2021/22 Revised baseline])","v":2583809},{"$f":"SUMPRODUCT(((T_DataComboFile[Implementation programme]=$G$3)*(T_DataComboFile[DOR]=$B18))*T_DataComboFile[2022/23 Revised baseline])","v":2617960},{"$f":"SUMPRODUCT(((T_DataComboFile[Implementation programme]=$G$3)*(T_DataComboFile[DOR]=$B18))*T_DataComboFile[2023/24 Revised baseline])","v":2733345},null,{"$f":"IFERROR(I18/H18-1,0)","v":0.10841427557799244},{"$f":"IFERROR(J18/I18-1,0)","v":1.3217308245307535E-2},{"$f":"IFERROR(K18/J18-1,0)","v":4.4074393802808309E-2},{"$f":"IFERROR(((K18/H18)^(1/3)-1),0)","v":5.449708876349435E-2}]
[0,null,null,null,null,null,"Provincial",{"$f":"SUM(H20:H21)","v":0},0,0,0,null,0,0,0,0]
[0,"PES",null,null,null,null,"Provincial equitable share",{"$f":"SUMPRODUCT(((T_DataComboFile[Implementation programme]=$G$3)*(T_DataComboFile[DOR]=$B20))*T_DataComboFile[2020/21 Revised])","v":0},{"$f":"SUMPRODUCT(((T_DataComboFile[Implementation programme]=$G$3)*(T_DataComboFile[DOR]=$B20))*T_DataComboFile[2021/22 Revised baseline])","v":0},{"$f":"SUMPRODUCT(((T_DataComboFile[Implementation programme]=$G$3)*(T_DataComboFile[DOR]=$B20))*T_DataComboFile[2022/23 Revised baseline])","v":0},{"$f":"SUMPRODUCT(((T_DataComboFile[Implementation programme]=$G$3)*(T_DataComboFile[DOR]=$B20))*T_DataComboFile[2023/24 Revised baseline])","v":0},null,{"$f":"IFERROR(I20/H20-1,0)","v":0},{"$f":"IFERROR(J20/I20-1,0)","v":0},{"$f":"IFERROR(K20/J20-1,0)","v":0},{"$f":"IFERROR(((K20/H20)^(1/3)-1),0)","v":0}]
[0,"PCG",null,null,null,null,"Provincial conditional grants",{"$f":"SUMPRODUCT(((T_DataComboFile[Implementation programme]=$G$3)*(T_DataComboFile[DOR]=$B21))*T_DataComboFile[2020/21 Revised])","v":0},{"$f":"SUMPRODUCT(((T_DataComboFile[Implementation programme]=$G$3)*(T_DataComboFile[DOR]=$B21))*T_DataComboFile[2021/22 Revised baseline])","v":0},{"$f":"SUMPRODUCT(((T_DataComboFile[Implementation programme]=$G$3)*(T_DataComboFile[DOR]=$B21))*T_DataComboFile[2022/23 Revised baseline])","v":0},{"$f":"SUMPRODUCT(((T_DataComboFile[Implementation programme]=$G$3)*(T_DataComboFile[DOR]=$B21))*T_DataComboFile[2023/24 Revised baseline])","v":0},null,0,0,0,0]
[0,null,null,null,null,null,"Local government",{"$f":"SUM(H23:H25)","v":0},0,0,0,null,{"$f":"IFERROR(I22/H22-1,0)","v":0},{"$f":"IFERROR(J22/I22-1,0)","v":0},{"$f":"IFERROR(K22/J22-1,0)","v":0},{"$f":"IFERROR(((K22/H22)^(1/3)-1),0)","v":0}]
[0,"LES",null,null,null,null,"Local equitable share",{"$f":"SUMPRODUCT(((T_DataComboFile[Implementation programme]=$G$3)*(T_DataComboFile[DOR]=$B23))*T_DataComboFile[2020/21 Revised])","v":0},{"$f":"SUMPRODUCT(((T_DataComboFile[Implementation programme]=$G$3)*(T_DataComboFile[DOR]=$B23))*T_DataComboFile[2021/22 Revised baseline])","v":0},{"$f":"SUMPRODUCT(((T_DataComboFile[Implementation programme]=$G$3)*(T_DataComboFile[DOR]=$B23))*T_DataComboFile[2022/23 Revised baseline])","v":0},{"$f":"SUMPRODUCT(((T_DataComboFile[Implementation programme]=$G$3)*(T_DataComboFile[DOR]=$B23))*T_DataComboFile[2023/24 Revised baseline])","v":0},null,0,0,0,0]
[0,"LCG",null,null,null,null,"Local conditional grants",{"$f":"SUMPRODUCT(((T_DataComboFile[Implementation programme]=$G$3)*(T_DataComboFile[DOR]=$B24))*T_DataComboFile[2020/21 Revised])","v":0},{"$f":"SUMPRODUCT(((T_DataComboFile[Implementation programme]=$G$3)*(T_DataComboFile[DOR]=$B24))*T_DataComboFile[2021/22 Revised baseline])","v":0},{"$f":"SUMPRODUCT(((T_DataComboFile[Implementation programme]=$G$3)*(T_DataComboFile[DOR]=$B24))*T_DataComboFile[2022/23 Revised baseline])","v":0},{"$f":"SUMPRODUCT(((T_DataComboFile[Implementation programme]=$G$3)*(T_DataComboFile[DOR]=$B24))*T_DataComboFile[2023/24 Revised baseline])","v":0},null,0,0,0,0]
[0,"GFL",null,null,null,null,"General fuel levy ",{"$f":"SUMPRODUCT(((T_DataComboFile[Implementation programme]=$G$3)*(T_DataComboFile[DOR]=$B25))*T_DataComboFile[2020/21 Revised])","v":0},{"$f":"SUMPRODUCT(((T_DataComboFile[Implementation programme]=$G$3)*(T_DataComboFile[DOR]=$B25))*T_DataComboFile[2021/22 Revised baseline])","v":0},{"$f":"SUMPRODUCT(((T_DataComboFile[Implementation programme]=$G$3)*(T_DataComboFile[DOR]=$B25))*T_DataComboFile[2022/23 Revised baseline])","v":0},{"$f":"SUMPRODUCT(((T_DataComboFile[Implementation programme]=$G$3)*(T_DataComboFile[DOR]=$B25))*T_DataComboFile[2023/24 Revised baseline])","v":0},null,{"$f":"IFERROR(I25/H25-1,0)","v":0},{"$f":"IFERROR(J25/I25-1,0)","v":0},{"$f":"IFERROR(K25/J25-1,0)","v":0},{"$f":"IFERROR(((K25/H25)^(1/3)-1),0)","v":0}]
[]
[]
[null,null,null,null,null,null,{"$f":"G3","v":0}]
[{"$f":"$G$3","v":0},0,null,null,null,null,null,"2017/18","2018/19","2019/20","2020/21","2021/22",null,null,null,"2022/23",null,null,null,"2023/24"]
[{"$f":"$G$3","v":0},0,null,null,null,null,"Rand thousand","Audited outcome","Audited outcome","Pre-audited outcome","Budget","Baseline","Decrease","Increase","Revised baseline","Baseline","Decrease","Increase","Revised baseline","Baseline","Decrease","Increase","Revised baseline"]
[0,0,null,null,null,null,"Economic classification"]
[0,0,null,null,null,null,"Current payments",{"$f":"SUM(H33:H35)","v":0},0,0,0,0,0,0,0,0,0,0,0,0,0,0,0]
[0,0,null,null,null,null,"Compensation of employees",{"$f":"SUMPRODUCT(((T_DataComboFile[Implementation programme]=$G$3)*(T_DataComboFile[Econ3]=$G33))*T_DataComboFile[2017/18]*$B$3)","v":0},{"$f":"SUMPRODUCT(((T_DataComboFile[Implementation programme]=$G$3)*(T_DataComboFile[Econ3]=$G33))*T_DataComboFile[2018/19]*$B$3)","v":0},{"$f":"SUMPRODUCT(((T_DataComboFile[Implementation programme]=$G$3)*(T_DataComboFile[Econ3]=$G33))*T_DataComboFile[2019/20 Revised estimate]*$B$3)","v":0},{"$f":"SUMPRODUCT(((T_DataComboFile[Implementation programme]=$G$3)*(T_DataComboFile[Econ3]=$G33))*T_DataComboFile[2020/21 Revised]*$B$3)","v":0},{"$f":"SUMPRODUCT(((T_DataComboFile[Implementation programme]=$G$3)*(T_DataComboFile[Econ3]=$G33))*T_DataComboFile[2021/22 Baseline]*$B$3)","v":0},{"$f":"SUMPRODUCT(((T_DataComboFile[Implementation programme]=$G$3)*(T_DataComboFile[Econ3]=$G33))*T_DataComboFile[2021/22 Reduction]*$B$3)","v":0},{"$f":"SUMPRODUCT(((T_DataComboFile[Implementation programme]=$G$3)*(T_DataComboFile[Econ3]=$G33))*T_DataComboFile[2021/22 Increase]*$B$3)","v":0},{"$f":"L33+M33+N33","v":0},{"$f":"SUMPRODUCT(((T_DataComboFile[Implementation programme]=$G$3)*(T_DataComboFile[Econ3]=$G33))*T_DataComboFile[2022/23 Baseline]*$B$3)","v":0},{"$f":"SUMPRODUCT(((T_DataComboFile[Implementation programme]=$G$3)*(T_DataComboFile[Econ3]=$G33))*T_DataComboFile[2022/23 Reduction]*$B$3)","v":0},{"$f":"SUMPRODUCT(((T_DataComboFile[Implementation programme]=$G$3)*(T_DataComboFile[Econ3]=$G33))*T_DataComboFile[2022/23 Increase]*$B$3)","v":0},{"$f":"P33+Q33+R33","v":0},{"$f":"SUMPRODUCT(((T_DataComboFile[Implementation programme]=$G$3)*(T_DataComboFile[Econ3]=$G33))*T_DataComboFile[2023/24 Baseline]*$B$3)","v":0},{"$f":"SUMPRODUCT(((T_DataComboFile[Implementation programme]=$G$3)*(T_DataComboFile[Econ3]=$G33))*T_DataComboFile[2023/24 Reduction]*$B$3)","v":0},{"$f":"SUMPRODUCT(((T_DataComboFile[Implementation programme]=$G$3)*(T_DataComboFile[Econ3]=$G33))*T_DataComboFile[2023/24 Increase]*$B$3)","v":0},{"$f":"T33+U33+V33","v":0}]
[0,0,null,null,null,null,"Goods and services",{"$f":"SUMPRODUCT(((T_DataComboFile[Implementation programme]=$G$3)*(T_DataComboFile[Econ3]=$G34))*T_DataComboFile[2017/18]*$B$3)","v":0},{"$f":"SUMPRODUCT(((T_DataComboFile[Implementation programme]=$G$3)*(T_DataComboFile[Econ3]=$G34))*T_DataComboFile[2018/19]*$B$3)","v":0},{"$f":"SUMPRODUCT(((T_DataComboFile[Implementation programme]=$G$3)*(T_DataComboFile[Econ3]=$G34))*T_DataComboFile[2019/20 Revised estimate]*$B$3)","v":0},{"$f":"SUMPRODUCT(((T_DataComboFile[Implementation programme]=$G$3)*(T_DataComboFile[Econ3]=$G34))*T_DataComboFile[2020/21 Revised]*$B$3)","v":0},{"$f":"SUMPRODUCT(((T_DataComboFile[Implementation programme]=$G$3)*(T_DataComboFile[Econ3]=$G34))*T_DataComboFile[2021/22 Baseline]*$B$3)","v":0},{"$f":"SUMPRODUCT(((T_DataComboFile[Implementation programme]=$G$3)*(T_DataComboFile[Econ3]=$G34))*T_DataComboFile[2021/22 Reduction]*$B$3)","v":0},{"$f":"SUMPRODUCT(((T_DataComboFile[Implementation programme]=$G$3)*(T_DataComboFile[Econ3]=$G34))*T_DataComboFile[2021/22 Increase]*$B$3)","v":0},{"$f":"L34+M34+N34","v":0},{"$f":"SUMPRODUCT(((T_DataComboFile[Implementation programme]=$G$3)*(T_DataComboFile[Econ3]=$G34))*T_DataComboFile[2022/23 Baseline]*$B$3)","v":0},{"$f":"SUMPRODUCT(((T_DataComboFile[Implementation programme]=$G$3)*(T_DataComboFile[Econ3]=$G34))*T_DataComboFile[2022/23 Reduction]*$B$3)","v":0},{"$f":"SUMPRODUCT(((T_DataComboFile[Implementation programme]=$G$3)*(T_DataComboFile[Econ3]=$G34))*T_DataComboFile[2022/23 Increase]*$B$3)","v":0},{"$f":"P34+Q34+R34","v":0},{"$f":"SUMPRODUCT(((T_DataComboFile[Implementation programme]=$G$3)*(T_DataComboFile[Econ3]=$G34))*T_DataComboFile[2023/24 Baseline]*$B$3)","v":0},{"$f":"SUMPRODUCT(((T_DataComboFile[Implementation programme]=$G$3)*(T_DataComboFile[Econ3]=$G34))*T_DataComboFile[2023/24 Reduction]*$B$3)","v":0},{"$f":"SUMPRODUCT(((T_DataComboFile[Implementation programme]=$G$3)*(T_DataComboFile[Econ3]=$G34))*T_DataComboFile[2023/24 Increase]*$B$3)","v":0},{"$f":"T34+U34+V34","v":0}]
[0,0,null,null,null,null,"Interest and rent on land",{"$f":"SUMPRODUCT(((T_DataComboFile[Implementation programme]=$G$3)*(T_DataComboFile[Econ3]=$G35))*T_DataComboFile[2017/18]*$B$3)","v":0},{"$f":"SUMPRODUCT(((T_DataComboFile[Implementation programme]=$G$3)*(T_DataComboFile[Econ3]=$G35))*T_DataComboFile[2018/19]*$B$3)","v":0},{"$f":"SUMPRODUCT(((T_DataComboFile[Implementation programme]=$G$3)*(T_DataComboFile[Econ3]=$G35))*T_DataComboFile[2019/20 Revised estimate]*$B$3)","v":0},{"$f":"SUMPRODUCT(((T_DataComboFile[Implementation programme]=$G$3)*(T_DataComboFile[Econ3]=$G35))*T_DataComboFile[2020/21 Revised]*$B$3)","v":0},{"$f":"SUMPRODUCT(((T_DataComboFile[Implementation programme]=$G$3)*(T_DataComboFile[Econ3]=$G35))*T_DataComboFile[2021/22 Baseline]*$B$3)","v":0},{"$f":"SUMPRODUCT(((T_DataComboFile[Implementation programme]=$G$3)*(T_DataComboFile[Econ3]=$G35))*T_DataComboFile[2021/22 Reduction]*$B$3)","v":0},{"$f":"SUMPRODUCT(((T_DataComboFile[Implementation programme]=$G$3)*(T_DataComboFile[Econ3]=$G35))*T_DataComboFile[2021/22 Increase]*$B$3)","v":0},0,{"$f":"SUMPRODUCT(((T_DataComboFile[Implementation programme]=$G$3)*(T_DataComboFile[Econ3]=$G35))*T_DataComboFile[2022/23 Baseline]*$B$3)","v":0},{"$f":"SUMPRODUCT(((T_DataComboFile[Implementation programme]=$G$3)*(T_DataComboFile[Econ3]=$G35))*T_DataComboFile[2022/23 Reduction]*$B$3)","v":0},{"$f":"SUMPRODUCT(((T_DataComboFile[Implementation programme]=$G$3)*(T_DataComboFile[Econ3]=$G35))*T_DataComboFile[2022/23 Increase]*$B$3)","v":0},0,{"$f":"SUMPRODUCT(((T_DataComboFile[Implementation programme]=$G$3)*(T_DataComboFile[Econ3]=$G35))*T_DataComboFile[2023/24 Baseline]*$B$3)","v":0},{"$f":"SUMPRODUCT(((T_DataComboFile[Implementation programme]=$G$3)*(T_DataComboFile[Econ3]=$G35))*T_DataComboFile[2023/24 Reduction]*$B$3)","v":0},{"$f":"SUMPRODUCT(((T_DataComboFile[Implementation programme]=$G$3)*(T_DataComboFile[Econ3]=$G35))*T_DataComboFile[2023/24 Increase]*$B$3)","v":0},0]
[0,0,null,null,null,null,"Transfers and subsidies",{"$f":"SUM(H37,H40,H43:H45,H48:H49)","v":0},0,0,0,0,0,0,0,0,0,0,0,0,0,0,0]
[0,0,null,null,null,null,"Provinces and municipalities",{"$f":"SUM(H38:H39)","v":0},0,0,0,0,0,0,0,0,0,0,0,0,0,0,0]
[0,0,null,null,null,null,"Provinces",{"$f":"SUMPRODUCT(((T_DataComboFile[Implementation programme]=$G$3)*(T_DataComboFile[Econ4]=$G38))*T_DataComboFile[2017/18]*$B$3)","v":0},{"$f":"SUMPRODUCT(((T_DataComboFile[Implementation programme]=$G$3)*(T_DataComboFile[Econ4]=$G38))*T_DataComboFile[2018/19]*$B$3)","v":0},{"$f":"SUMPRODUCT(((T_DataComboFile[Implementation programme]=$G$3)*(T_DataComboFile[Econ4]=$G38))*T_DataComboFile[2019/20 Revised estimate]*$B$3)","v":0},{"$f":"SUMPRODUCT(((T_DataComboFile[Implementation programme]=$G$3)*(T_DataComboFile[Econ4]=$G38))*T_DataComboFile[2020/21 Revised]*$B$3)","v":0},{"$f":"SUMPRODUCT(((T_DataComboFile[Implementation programme]=$G$3)*(T_DataComboFile[Econ4]=$G38))*T_DataComboFile[2021/22 Baseline]*$B$3)","v":0},{"$f":"SUMPRODUCT(((T_DataComboFile[Implementation programme]=$G$3)*(T_DataComboFile[Econ4]=$G38))*T_DataComboFile[2021/22 Reduction]*$B$3)","v":0},{"$f":"SUMPRODUCT(((T_DataComboFile[Implementation programme]=$G$3)*(T_DataComboFile[Econ4]=$G38))*T_DataComboFile[2021/22 Increase]*$B$3)","v":0},{"$f":"L38+M38+N38","v":0},{"$f":"SUMPRODUCT(((T_DataComboFile[Implementation programme]=$G$3)*(T_DataComboFile[Econ4]=$G38))*T_DataComboFile[2022/23 Baseline]*$B$3)","v":0},{"$f":"SUMPRODUCT(((T_DataComboFile[Implementation programme]=$G$3)*(T_DataComboFile[Econ4]=$G38))*T_DataComboFile[2022/23 Reduction]*$B$3)","v":0},{"$f":"SUMPRODUCT(((T_DataComboFile[Implementation programme]=$G$3)*(T_DataComboFile[Econ4]=$G38))*T_DataComboFile[2022/23 Increase]*$B$3)","v":0},{"$f":"P38+Q38+R38","v":0},{"$f":"SUMPRODUCT(((T_DataComboFile[Implementation programme]=$G$3)*(T_DataComboFile[Econ4]=$G38))*T_DataComboFile[2023/24 Baseline]*$B$3)","v":0},{"$f":"SUMPRODUCT(((T_DataComboFile[Implementation programme]=$G$3)*(T_DataComboFile[Econ4]=$G38))*T_DataComboFile[2023/24 Reduction]*$B$3)","v":0},{"$f":"SUMPRODUCT(((T_DataComboFile[Implementation programme]=$G$3)*(T_DataComboFile[Econ4]=$G38))*T_DataComboFile[2023/24 Increase]*$B$3)","v":0},{"$f":"T38+U38+V38","v":0}]
[0,0,null,null,null,null,"Municipalities",{"$f":"SUMPRODUCT(((T_DataComboFile[Implementation programme]=$G$3)*(T_DataComboFile[Econ4]=$G39))*T_DataComboFile[2017/18]*$B$3)","v":0},{"$f":"SUMPRODUCT(((T_DataComboFile[Implementation programme]=$G$3)*(T_DataComboFile[Econ4]=$G39))*T_DataComboFile[2018/19]*$B$3)","v":0},{"$f":"SUMPRODUCT(((T_DataComboFile[Implementation programme]=$G$3)*(T_DataComboFile[Econ4]=$G39))*T_DataComboFile[2019/20 Revised estimate]*$B$3)","v":0},{"$f":"SUMPRODUCT(((T_DataComboFile[Implementation programme]=$G$3)*(T_DataComboFile[Econ4]=$G39))*T_DataComboFile[2020/21 Revised]*$B$3)","v":0},{"$f":"SUMPRODUCT(((T_DataComboFile[Implementation programme]=$G$3)*(T_DataComboFile[Econ4]=$G39))*T_DataComboFile[2021/22 Baseline]*$B$3)","v":0},{"$f":"SUMPRODUCT(((T_DataComboFile[Implementation programme]=$G$3)*(T_DataComboFile[Econ4]=$G39))*T_DataComboFile[2021/22 Reduction]*$B$3)","v":0},{"$f":"SUMPRODUCT(((T_DataComboFile[Implementation programme]=$G$3)*(T_DataComboFile[Econ4]=$G39))*T_DataComboFile[2021/22 Increase]*$B$3)","v":0},0,{"$f":"SUMPRODUCT(((T_DataComboFile[Implementation programme]=$G$3)*(T_DataComboFile[Econ4]=$G39))*T_DataComboFile[2022/23 Baseline]*$B$3)","v":0},{"$f":"SUMPRODUCT(((T_DataComboFile[Implementation programme]=$G$3)*(T_DataComboFile[Econ4]=$G39))*T_DataComboFile[2022/23 Reduction]*$B$3)","v":0},{"$f":"SUMPRODUCT(((T_DataComboFile[Implementation programme]=$G$3)*(T_DataComboFile[Econ4]=$G39))*T_DataComboFile[2022/23 Increase]*$B$3)","v":0},0,{"$f":"SUMPRODUCT(((T_DataComboFile[Implementation programme]=$G$3)*(T_DataComboFile[Econ4]=$G39))*T_DataComboFile[2023/24 Baseline]*$B$3)","v":0},{"$f":"SUMPRODUCT(((T_DataComboFile[Implementation programme]=$G$3)*(T_DataComboFile[Econ4]=$G39))*T_DataComboFile[2023/24 Reduction]*$B$3)","v":0},{"$f":"SUMPRODUCT(((T_DataComboFile[Implementation programme]=$G$3)*(T_DataComboFile[Econ4]=$G39))*T_DataComboFile[2023/24 Increase]*$B$3)","v":0},0]
[0,0,null,null,null,null,"Departmental agencies and accounts",{"$f":"SUM(H41:H42)","v":0},0,0,0,0,0,0,0,0,0,0,0,0,0,0,0]
[0,0,null,null,null,null,"Social security funds",{"$f":"SUMPRODUCT(((T_DataComboFile[Implementation programme]=$G$3)*(T_DataComboFile[Econ4]=$G41))*T_DataComboFile[2017/18]*$B$3)","v":0},{"$f":"SUMPRODUCT(((T_DataComboFile[Implementation programme]=$G$3)*(T_DataComboFile[Econ4]=$G41))*T_DataComboFile[2018/19]*$B$3)","v":0},{"$f":"SUMPRODUCT(((T_DataComboFile[Implementation programme]=$G$3)*(T_DataComboFile[Econ4]=$G41))*T_DataComboFile[2019/20 Revised estimate]*$B$3)","v":0},{"$f":"SUMPRODUCT(((T_DataComboFile[Implementation programme]=$G$3)*(T_DataComboFile[Econ4]=$G41))*T_DataComboFile[2020/21 Revised]*$B$3)","v":0},{"$f":"SUMPRODUCT(((T_DataComboFile[Implementation programme]=$G$3)*(T_DataComboFile[Econ4]=$G41))*T_DataComboFile[2021/22 Baseline]*$B$3)","v":0},{"$f":"SUMPRODUCT(((T_DataComboFile[Implementation programme]=$G$3)*(T_DataComboFile[Econ4]=$G41))*T_DataComboFile[2021/22 Reduction]*$B$3)","v":0},{"$f":"SUMPRODUCT(((T_DataComboFile[Implementation programme]=$G$3)*(T_DataComboFile[Econ4]=$G41))*T_DataComboFile[2021/22 Increase]*$B$3)","v":0},{"$f":"L41+M41+N41","v":0},{"$f":"SUMPRODUCT(((T_DataComboFile[Implementation programme]=$G$3)*(T_DataComboFile[Econ4]=$G41))*T_DataComboFile[2022/23 Baseline]*$B$3)","v":0},{"$f":"SUMPRODUCT(((T_DataComboFile[Implementation programme]=$G$3)*(T_DataComboFile[Econ4]=$G41))*T_DataComboFile[2022/23 Reduction]*$B$3)","v":0},{"$f":"SUMPRODUCT(((T_DataComboFile[Implementation programme]=$G$3)*(T_DataComboFile[Econ4]=$G41))*T_DataComboFile[2022/23 Increase]*$B$3)","v":0},{"$f":"P41+Q41+R41","v":0},{"$f":"SUMPRODUCT(((T_DataComboFile[Implementation programme]=$G$3)*(T_DataComboFile[Econ4]=$G41))*T_DataComboFile[2023/24 Baseline]*$B$3)","v":0},{"$f":"SUMPRODUCT(((T_DataComboFile[Implementation programme]=$G$3)*(T_DataComboFile[Econ4]=$G41))*T_DataComboFile[2023/24 Reduction]*$B$3)","v":0},{"$f":"SUMPRODUCT(((T_DataComboFile[Implementation programme]=$G$3)*(T_DataComboFile[Econ4]=$G41))*T_DataComboFile[2023/24 Increase]*$B$3)","v":0},{"$f":"T41+U41+V41","v":0}]
[0,0,null,null,null,null,"Departmental agencies (non-business entities)",{"$f":"SUMPRODUCT(((T_DataComboFile[Implementation programme]=$G$3)*(T_DataComboFile[Econ4]=$G42))*T_DataComboFile[2017/18]*$B$3)","v":0},{"$f":"SUMPRODUCT(((T_DataComboFile[Implementation programme]=$G$3)*(T_DataComboFile[Econ4]=$G42))*T_DataComboFile[2018/19]*$B$3)","v":0},{"$f":"SUMPRODUCT(((T_DataComboFile[Implementation programme]=$G$3)*(T_DataComboFile[Econ4]=$G42))*T_DataComboFile[2019/20 Revised estimate]*$B$3)","v":0},{"$f":"SUMPRODUCT(((T_DataComboFile[Implementation programme]=$G$3)*(T_DataComboFile[Econ4]=$G42))*T_DataComboFile[2020/21 Revised]*$B$3)","v":0},{"$f":"SUMPRODUCT(((T_DataComboFile[Implementation programme]=$G$3)*(T_DataComboFile[Econ4]=$G42))*T_DataComboFile[2021/22 Baseline]*$B$3)","v":0},{"$f":"SUMPRODUCT(((T_DataComboFile[Implementation programme]=$G$3)*(T_DataComboFile[Econ4]=$G42))*T_DataComboFile[2021/22 Reduction]*$B$3)","v":0},{"$f":"SUMPRODUCT(((T_DataComboFile[Implementation programme]=$G$3)*(T_DataComboFile[Econ4]=$G42))*T_DataComboFile[2021/22 Increase]*$B$3)","v":0},0,{"$f":"SUMPRODUCT(((T_DataComboFile[Implementation programme]=$G$3)*(T_DataComboFile[Econ4]=$G42))*T_DataComboFile[2022/23 Baseline]*$B$3)","v":0},{"$f":"SUMPRODUCT(((T_DataComboFile[Implementation programme]=$G$3)*(T_DataComboFile[Econ4]=$G42))*T_DataComboFile[2022/23 Reduction]*$B$3)","v":0},{"$f":"SUMPRODUCT(((T_DataComboFile[Implementation programme]=$G$3)*(T_DataComboFile[Econ4]=$G42))*T_DataComboFile[2022/23 Increase]*$B$3)","v":0},0,{"$f":"SUMPRODUCT(((T_DataComboFile[Implementation programme]=$G$3)*(T_DataComboFile[Econ4]=$G42))*T_DataComboFile[2023/24 Baseline]*$B$3)","v":0},{"$f":"SUMPRODUCT(((T_DataComboFile[Implementation programme]=$G$3)*(T_DataComboFile[Econ4]=$G42))*T_DataComboFile[2023/24 Reduction]*$B$3)","v":0},{"$f":"SUMPRODUCT(((T_DataComboFile[Implementation programme]=$G$3)*(T_DataComboFile[Econ4]=$G42))*T_DataComboFile[2023/24 Increase]*$B$3)","v":0},0]
[0,0,null,null,null,null,"Higher education institutions",{"$f":"SUMPRODUCT(((T_DataComboFile[Implementation programme]=$G$3)*(T_DataComboFile[Econ3]=$G43))*T_DataComboFile[2017/18]*$B$3)","v":0},{"$f":"SUMPRODUCT(((T_DataComboFile[Implementation programme]=$G$3)*(T_DataComboFile[Econ3]=$G43))*T_DataComboFile[2018/19]*$B$3)","v":0},{"$f":"SUMPRODUCT(((T_DataComboFile[Implementation programme]=$G$3)*(T_DataComboFile[Econ3]=$G43))*T_DataComboFile[2019/20 Revised estimate]*$B$3)","v":0},{"$f":"SUMPRODUCT(((T_DataComboFile[Implementation programme]=$G$3)*(T_DataComboFile[Econ3]=$G43))*T_DataComboFile[2020/21 Revised]*$B$3)","v":0},{"$f":"SUMPRODUCT(((T_DataComboFile[Implementation programme]=$G$3)*(T_DataComboFile[Econ3]=$G43))*T_DataComboFile[2021/22 Baseline]*$B$3)","v":0},{"$f":"SUMPRODUCT(((T_DataComboFile[Implementation programme]=$G$3)*(T_DataComboFile[Econ3]=$G43))*T_DataComboFile[2021/22 Reduction]*$B$3)","v":0},{"$f":"SUMPRODUCT(((T_DataComboFile[Implementation programme]=$G$3)*(T_DataComboFile[Econ3]=$G43))*T_DataComboFile[2021/22 Increase]*$B$3)","v":0},{"$f":"L43+M43+N43","v":0},{"$f":"SUMPRODUCT(((T_DataComboFile[Implementation programme]=$G$3)*(T_DataComboFile[Econ3]=$G43))*T_DataComboFile[2022/23 Baseline]*$B$3)","v":0},{"$f":"SUMPRODUCT(((T_DataComboFile[Implementation programme]=$G$3)*(T_DataComboFile[Econ3]=$G43))*T_DataComboFile[2022/23 Reduction]*$B$3)","v":0},{"$f":"SUMPRODUCT(((T_DataComboFile[Implementation programme]=$G$3)*(T_DataComboFile[Econ3]=$G43))*T_DataComboFile[2022/23 Increase]*$B$3)","v":0},{"$f":"P43+Q43+R43","v":0},{"$f":"SUMPRODUCT(((T_DataComboFile[Implementation programme]=$G$3)*(T_DataComboFile[Econ3]=$G43))*T_DataComboFile[2023/24 Baseline]*$B$3)","v":0},{"$f":"SUMPRODUCT(((T_DataComboFile[Implementation programme]=$G$3)*(T_DataComboFile[Econ3]=$G43))*T_DataComboFile[2023/24 Reduction]*$B$3)","v":0},{"$f":"SUMPRODUCT(((T_DataComboFile[Implementation programme]=$G$3)*(T_DataComboFile[Econ3]=$G43))*T_DataComboFile[2023/24 Increase]*$B$3)","v":0},{"$f":"T43+U43+V43","v":0}]
[0,0,null,null,null,null,"Foreign governments and international organisations",{"$f":"SUMPRODUCT(((T_DataComboFile[Implementation programme]=$G$3)*(T_DataComboFile[Econ3]=$G44))*T_DataComboFile[2017/18]*$B$3)","v":0},{"$f":"SUMPRODUCT(((T_DataComboFile[Implementation programme]=$G$3)*(T_DataComboFile[Econ3]=$G44))*T_DataComboFile[2018/19]*$B$3)","v":0},{"$f":"SUMPRODUCT(((T_DataComboFile[Implementation programme]=$G$3)*(T_DataComboFile[Econ3]=$G44))*T_DataComboFile[2019/20 Revised estimate]*$B$3)","v":0},{"$f":"SUMPRODUCT(((T_DataComboFile[Implementation programme]=$G$3)*(T_DataComboFile[Econ3]=$G44))*T_DataComboFile[2020/21 Revised]*$B$3)","v":0},{"$f":"SUMPRODUCT(((T_DataComboFile[Implementation programme]=$G$3)*(T_DataComboFile[Econ3]=$G44))*T_DataComboFile[2021/22 Baseline]*$B$3)","v":0},{"$f":"SUMPRODUCT(((T_DataComboFile[Implementation programme]=$G$3)*(T_DataComboFile[Econ3]=$G44))*T_DataComboFile[2021/22 Reduction]*$B$3)","v":0},{"$f":"SUMPRODUCT(((T_DataComboFile[Implementation programme]=$G$3)*(T_DataComboFile[Econ3]=$G44))*T_DataComboFile[2021/22 Increase]*$B$3)","v":0},0,{"$f":"SUMPRODUCT(((T_DataComboFile[Implementation programme]=$G$3)*(T_DataComboFile[Econ3]=$G44))*T_DataComboFile[2022/23 Baseline]*$B$3)","v":0},{"$f":"SUMPRODUCT(((T_DataComboFile[Implementation programme]=$G$3)*(T_DataComboFile[Econ3]=$G44))*T_DataComboFile[2022/23 Reduction]*$B$3)","v":0},{"$f":"SUMPRODUCT(((T_DataComboFile[Implementation programme]=$G$3)*(T_DataComboFile[Econ3]=$G44))*T_DataComboFile[2022/23 Increase]*$B$3)","v":0},0,{"$f":"SUMPRODUCT(((T_DataComboFile[Implementation programme]=$G$3)*(T_DataComboFile[Econ3]=$G44))*T_DataComboFile[2023/24 Baseline]*$B$3)","v":0},{"$f":"SUMPRODUCT(((T_DataComboFile[Implementation programme]=$G$3)*(T_DataComboFile[Econ3]=$G44))*T_DataComboFile[2023/24 Reduction]*$B$3)","v":0},{"$f":"SUMPRODUCT(((T_DataComboFile[Implementation programme]=$G$3)*(T_DataComboFile[Econ3]=$G44))*T_DataComboFile[2023/24 Increase]*$B$3)","v":0},0]
[0,0,null,null,null,null,"Public corporations and private enterprises",{"$f":"SUM(H46:H47)","v":0},0,0,0,0,0,0,0,0,0,0,0,0,0,0,0]
[0,0,null,null,null,null,"Public corporations",{"$f":"SUMPRODUCT(((T_DataComboFile[Implementation programme]=$G$3)*(T_DataComboFile[Econ4]=$G46))*T_DataComboFile[2017/18]*$B$3)","v":0},{"$f":"SUMPRODUCT(((T_DataComboFile[Implementation programme]=$G$3)*(T_DataComboFile[Econ4]=$G46))*T_DataComboFile[2018/19]*$B$3)","v":0},{"$f":"SUMPRODUCT(((T_DataComboFile[Implementation programme]=$G$3)*(T_DataComboFile[Econ4]=$G46))*T_DataComboFile[2019/20 Revised estimate]*$B$3)","v":0},{"$f":"SUMPRODUCT(((T_DataComboFile[Implementation programme]=$G$3)*(T_DataComboFile[Econ4]=$G46))*T_DataComboFile[2020/21 Revised]*$B$3)","v":0},{"$f":"SUMPRODUCT(((T_DataComboFile[Implementation programme]=$G$3)*(T_DataComboFile[Econ4]=$G46))*T_DataComboFile[2021/22 Baseline]*$B$3)","v":0},{"$f":"SUMPRODUCT(((T_DataComboFile[Implementation programme]=$G$3)*(T_DataComboFile[Econ4]=$G46))*T_DataComboFile[2021/22 Reduction]*$B$3)","v":0},{"$f":"SUMPRODUCT(((T_DataComboFile[Implementation programme]=$G$3)*(T_DataComboFile[Econ4]=$G46))*T_DataComboFile[2021/22 Increase]*$B$3)","v":0},{"$f":"L46+M46+N46","v":0},{"$f":"SUMPRODUCT(((T_DataComboFile[Implementation programme]=$G$3)*(T_DataComboFile[Econ4]=$G46))*T_DataComboFile[2022/23 Baseline]*$B$3)","v":0},{"$f":"SUMPRODUCT(((T_DataComboFile[Implementation programme]=$G$3)*(T_DataComboFile[Econ4]=$G46))*T_DataComboFile[2022/23 Reduction]*$B$3)","v":0},{"$f":"SUMPRODUCT(((T_DataComboFile[Implementation programme]=$G$3)*(T_DataComboFile[Econ4]=$G46))*T_DataComboFile[2022/23 Increase]*$B$3)","v":0},{"$f":"P46+Q46+R46","v":0},{"$f":"SUMPRODUCT(((T_DataComboFile[Implementation programme]=$G$3)*(T_DataComboFile[Econ4]=$G46))*T_DataComboFile[2023/24 Baseline]*$B$3)","v":0},{"$f":"SUMPRODUCT(((T_DataComboFile[Implementation programme]=$G$3)*(T_DataComboFile[Econ4]=$G46))*T_DataComboFile[2023/24 Reduction]*$B$3)","v":0},{"$f":"SUMPRODUCT(((T_DataComboFile[Implementation programme]=$G$3)*(T_DataComboFile[Econ4]=$G46))*T_DataComboFile[2023/24 Increase]*$B$3)","v":0},{"$f":"T46+U46+V46","v":0}]
[0,0,null,null,null,null,"Private enterprises",{"$f":"SUMPRODUCT(((T_DataComboFile[Implementation programme]=$G$3)*(T_DataComboFile[Econ4]=$G47))*T_DataComboFile[2017/18]*$B$3)","v":0},{"$f":"SUMPRODUCT(((T_DataComboFile[Implementation programme]=$G$3)*(T_DataComboFile[Econ4]=$G47))*T_DataComboFile[2018/19]*$B$3)","v":0},{"$f":"SUMPRODUCT(((T_DataComboFile[Implementation programme]=$G$3)*(T_DataComboFile[Econ4]=$G47))*T_DataComboFile[2019/20 Revised estimate]*$B$3)","v":0},{"$f":"SUMPRODUCT(((T_DataComboFile[Implementation programme]=$G$3)*(T_DataComboFile[Econ4]=$G47))*T_DataComboFile[2020/21 Revised]*$B$3)","v":0},{"$f":"SUMPRODUCT(((T_DataComboFile[Implementation programme]=$G$3)*(T_DataComboFile[Econ4]=$G47))*T_DataComboFile[2021/22 Baseline]*$B$3)","v":0},{"$f":"SUMPRODUCT(((T_DataComboFile[Implementation programme]=$G$3)*(T_DataComboFile[Econ4]=$G47))*T_DataComboFile[2021/22 Reduction]*$B$3)","v":0},{"$f":"SUMPRODUCT(((T_DataComboFile[Implementation programme]=$G$3)*(T_DataComboFile[Econ4]=$G47))*T_DataComboFile[2021/22 Increase]*$B$3)","v":0},0,{"$f":"SUMPRODUCT(((T_DataComboFile[Implementation programme]=$G$3)*(T_DataComboFile[Econ4]=$G47))*T_DataComboFile[2022/23 Baseline]*$B$3)","v":0},{"$f":"SUMPRODUCT(((T_DataComboFile[Implementation programme]=$G$3)*(T_DataComboFile[Econ4]=$G47))*T_DataComboFile[2022/23 Reduction]*$B$3)","v":0},{"$f":"SUMPRODUCT(((T_DataComboFile[Implementation programme]=$G$3)*(T_DataComboFile[Econ4]=$G47))*T_DataComboFile[2022/23 Increase]*$B$3)","v":0},0,{"$f":"SUMPRODUCT(((T_DataComboFile[Implementation programme]=$G$3)*(T_DataComboFile[Econ4]=$G47))*T_DataComboFile[2023/24 Baseline]*$B$3)","v":0},{"$f":"SUMPRODUCT(((T_DataComboFile[Implementation programme]=$G$3)*(T_DataComboFile[Econ4]=$G47))*T_DataComboFile[2023/24 Reduction]*$B$3)","v":0},{"$f":"SUMPRODUCT(((T_DataComboFile[Implementation programme]=$G$3)*(T_DataComboFile[Econ4]=$G47))*T_DataComboFile[2023/24 Increase]*$B$3)","v":0},0]
[0,0,null,null,null,null,"Non-profit institutions",{"$f":"SUMPRODUCT(((T_DataComboFile[Implementation programme]=$G$3)*(T_DataComboFile[Econ3]=$G48))*T_DataComboFile[2017/18]*$B$3)","v":0},{"$f":"SUMPRODUCT(((T_DataComboFile[Implementation programme]=$G$3)*(T_DataComboFile[Econ3]=$G48))*T_DataComboFile[2018/19]*$B$3)","v":0},{"$f":"SUMPRODUCT(((T_DataComboFile[Implementation programme]=$G$3)*(T_DataComboFile[Econ3]=$G48))*T_DataComboFile[2019/20 Revised estimate]*$B$3)","v":0},{"$f":"SUMPRODUCT(((T_DataComboFile[Implementation programme]=$G$3)*(T_DataComboFile[Econ3]=$G48))*T_DataComboFile[2020/21 Revised]*$B$3)","v":0},{"$f":"SUMPRODUCT(((T_DataComboFile[Implementation programme]=$G$3)*(T_DataComboFile[Econ3]=$G48))*T_DataComboFile[2021/22 Baseline]*$B$3)","v":0},{"$f":"SUMPRODUCT(((T_DataComboFile[Implementation programme]=$G$3)*(T_DataComboFile[Econ3]=$G48))*T_DataComboFile[2021/22 Reduction]*$B$3)","v":0},{"$f":"SUMPRODUCT(((T_DataComboFile[Implementation programme]=$G$3)*(T_DataComboFile[Econ3]=$G48))*T_DataComboFile[2021/22 Increase]*$B$3)","v":0},{"$f":"L48+M48+N48","v":0},{"$f":"SUMPRODUCT(((T_DataComboFile[Implementation programme]=$G$3)*(T_DataComboFile[Econ3]=$G48))*T_DataComboFile[2022/23 Baseline]*$B$3)","v":0},{"$f":"SUMPRODUCT(((T_DataComboFile[Implementation programme]=$G$3)*(T_DataComboFile[Econ3]=$G48))*T_DataComboFile[2022/23 Reduction]*$B$3)","v":0},{"$f":"SUMPRODUCT(((T_DataComboFile[Implementation programme]=$G$3)*(T_DataComboFile[Econ3]=$G48))*T_DataComboFile[2022/23 Increase]*$B$3)","v":0},{"$f":"P48+Q48+R48","v":0},{"$f":"SUMPRODUCT(((T_DataComboFile[Implementation programme]=$G$3)*(T_DataComboFile[Econ3]=$G48))*T_DataComboFile[2023/24 Baseline]*$B$3)","v":0},{"$f":"SUMPRODUCT(((T_DataComboFile[Implementation programme]=$G$3)*(T_DataComboFile[Econ3]=$G48))*T_DataComboFile[2023/24 Reduction]*$B$3)","v":0},{"$f":"SUMPRODUCT(((T_DataComboFile[Implementation programme]=$G$3)*(T_DataComboFile[Econ3]=$G48))*T_DataComboFile[2023/24 Increase]*$B$3)","v":0},{"$f":"T48+U48+V48","v":0}]
[0,0,null,null,null,null,"Households",{"$f":"SUM(H50:H51)","v":0},0,0,0,0,0,0,0,0,0,0,0,0,0,0,0]
[0,0,null,null,null,null,"Social benefits",{"$f":"SUMPRODUCT(((T_DataComboFile[Implementation programme]=$G$3)*(T_DataComboFile[Econ4]=$G50))*T_DataComboFile[2017/18]*$B$3)","v":0},{"$f":"SUMPRODUCT(((T_DataComboFile[Implementation programme]=$G$3)*(T_DataComboFile[Econ4]=$G50))*T_DataComboFile[2018/19]*$B$3)","v":0},{"$f":"SUMPRODUCT(((T_DataComboFile[Implementation programme]=$G$3)*(T_DataComboFile[Econ4]=$G50))*T_DataComboFile[2019/20 Revised estimate]*$B$3)","v":0},{"$f":"SUMPRODUCT(((T_DataComboFile[Implementation programme]=$G$3)*(T_DataComboFile[Econ4]=$G50))*T_DataComboFile[2020/21 Revised]*$B$3)","v":0},{"$f":"SUMPRODUCT(((T_DataComboFile[Implementation programme]=$G$3)*(T_DataComboFile[Econ4]=$G50))*T_DataComboFile[2021/22 Baseline]*$B$3)","v":0},{"$f":"SUMPRODUCT(((T_DataComboFile[Implementation programme]=$G$3)*(T_DataComboFile[Econ4]=$G50))*T_DataComboFile[2021/22 Reduction]*$B$3)","v":0},{"$f":"SUMPRODUCT(((T_DataComboFile[Implementation programme]=$G$3)*(T_DataComboFile[Econ4]=$G50))*T_DataComboFile[2021/22 Increase]*$B$3)","v":0},{"$f":"L50+M50+N50","v":0},{"$f":"SUMPRODUCT(((T_DataComboFile[Implementation programme]=$G$3)*(T_DataComboFile[Econ4]=$G50))*T_DataComboFile[2022/23 Baseline]*$B$3)","v":0},{"$f":"SUMPRODUCT(((T_DataComboFile[Implementation programme]=$G$3)*(T_DataComboFile[Econ4]=$G50))*T_DataComboFile[2022/23 Reduction]*$B$3)","v":0},{"$f":"SUMPRODUCT(((T_DataComboFile[Implementation programme]=$G$3)*(T_DataComboFile[Econ4]=$G50))*T_DataComboFile[2022/23 Increase]*$B$3)","v":0},{"$f":"P50+Q50+R50","v":0},{"$f":"SUMPRODUCT(((T_DataComboFile[Implementation programme]=$G$3)*(T_DataComboFile[Econ4]=$G50))*T_DataComboFile[2023/24 Baseline]*$B$3)","v":0},{"$f":"SUMPRODUCT(((T_DataComboFile[Implementation programme]=$G$3)*(T_DataComboFile[Econ4]=$G50))*T_DataComboFile[2023/24 Reduction]*$B$3)","v":0},{"$f":"SUMPRODUCT(((T_DataComboFile[Implementation programme]=$G$3)*(T_DataComboFile[Econ4]=$G50))*T_DataComboFile[2023/24 Increase]*$B$3)","v":0},{"$f":"T50+U50+V50","v":0}]
[0,0,null,null,null,null,"Other transfers to households",{"$f":"SUMPRODUCT(((T_DataComboFile[Implementation programme]=$G$3)*(T_DataComboFile[Econ4]=$G51))*T_DataComboFile[2017/18]*$B$3)","v":0},{"$f":"SUMPRODUCT(((T_DataComboFile[Implementation programme]=$G$3)*(T_DataComboFile[Econ4]=$G51))*T_DataComboFile[2018/19]*$B$3)","v":0},{"$f":"SUMPRODUCT(((T_DataComboFile[Implementation programme]=$G$3)*(T_DataComboFile[Econ4]=$G51))*T_DataComboFile[2019/20 Revised estimate]*$B$3)","v":0},{"$f":"SUMPRODUCT(((T_DataComboFile[Implementation programme]=$G$3)*(T_DataComboFile[Econ4]=$G51))*T_DataComboFile[2020/21 Revised]*$B$3)","v":0},{"$f":"SUMPRODUCT(((T_DataComboFile[Implementation programme]=$G$3)*(T_DataComboFile[Econ4]=$G51))*T_DataComboFile[2021/22 Baseline]*$B$3)","v":0},{"$f":"SUMPRODUCT(((T_DataComboFile[Implementation programme]=$G$3)*(T_DataComboFile[Econ4]=$G51))*T_DataComboFile[2021/22 Reduction]*$B$3)","v":0},{"$f":"SUMPRODUCT(((T_DataComboFile[Implementation programme]=$G$3)*(T_DataComboFile[Econ4]=$G51))*T_DataComboFile[2021/22 Increase]*$B$3)","v":0},0,{"$f":"SUMPRODUCT(((T_DataComboFile[Implementation programme]=$G$3)*(T_DataComboFile[Econ4]=$G51))*T_DataComboFile[2022/23 Baseline]*$B$3)","v":0},{"$f":"SUMPRODUCT(((T_DataComboFile[Implementation programme]=$G$3)*(T_DataComboFile[Econ4]=$G51))*T_DataComboFile[2022/23 Reduction]*$B$3)","v":0},{"$f":"SUMPRODUCT(((T_DataComboFile[Implementation programme]=$G$3)*(T_DataComboFile[Econ4]=$G51))*T_DataComboFile[2022/23 Increase]*$B$3)","v":0},0,{"$f":"SUMPRODUCT(((T_DataComboFile[Implementation programme]=$G$3)*(T_DataComboFile[Econ4]=$G51))*T_DataComboFile[2023/24 Baseline]*$B$3)","v":0},{"$f":"SUMPRODUCT(((T_DataComboFile[Implementation programme]=$G$3)*(T_DataComboFile[Econ4]=$G51))*T_DataComboFile[2023/24 Reduction]*$B$3)","v":0},{"$f":"SUMPRODUCT(((T_DataComboFile[Implementation programme]=$G$3)*(T_DataComboFile[Econ4]=$G51))*T_DataComboFile[2023/24 Increase]*$B$3)","v":0},0]
[0,0,null,null,null,null,"Payments for capital assets",{"$f":"SUM(H53,H56,H59:H63)","v":0},0,0,0,0,0,0,0,0,0,0,0,0,0,0,0]
[0,0,null,null,null,null,"Buildings and other fixed structures",{"$f":"SUM(H54:H55)","v":0},0,0,0,0,0,0,0,0,0,0,0,0,0,0,0]
[0,0,null,null,null,null,"Buildings",{"$f":"SUMPRODUCT(((T_DataComboFile[Implementation programme]=$G$3)*(T_DataComboFile[Econ4]=$G54))*T_DataComboFile[2017/18]*$B$3)","v":0},{"$f":"SUMPRODUCT(((T_DataComboFile[Implementation programme]=$G$3)*(T_DataComboFile[Econ4]=$G54))*T_DataComboFile[2018/19]*$B$3)","v":0},{"$f":"SUMPRODUCT(((T_DataComboFile[Implementation programme]=$G$3)*(T_DataComboFile[Econ4]=$G54))*T_DataComboFile[2019/20 Revised estimate]*$B$3)","v":0},{"$f":"SUMPRODUCT(((T_DataComboFile[Implementation programme]=$G$3)*(T_DataComboFile[Econ4]=$G54))*T_DataComboFile[2020/21 Revised]*$B$3)","v":0},{"$f":"SUMPRODUCT(((T_DataComboFile[Implementation programme]=$G$3)*(T_DataComboFile[Econ4]=$G54))*T_DataComboFile[2021/22 Baseline]*$B$3)","v":0},{"$f":"SUMPRODUCT(((T_DataComboFile[Implementation programme]=$G$3)*(T_DataComboFile[Econ4]=$G54))*T_DataComboFile[2021/22 Reduction]*$B$3)","v":0},{"$f":"SUMPRODUCT(((T_DataComboFile[Implementation programme]=$G$3)*(T_DataComboFile[Econ4]=$G54))*T_DataComboFile[2021/22 Increase]*$B$3)","v":0},{"$f":"L54+M54+N54","v":0},{"$f":"SUMPRODUCT(((T_DataComboFile[Implementation programme]=$G$3)*(T_DataComboFile[Econ4]=$G54))*T_DataComboFile[2022/23 Baseline]*$B$3)","v":0},{"$f":"SUMPRODUCT(((T_DataComboFile[Implementation programme]=$G$3)*(T_DataComboFile[Econ4]=$G54))*T_DataComboFile[2022/23 Reduction]*$B$3)","v":0},{"$f":"SUMPRODUCT(((T_DataComboFile[Implementation programme]=$G$3)*(T_DataComboFile[Econ4]=$G54))*T_DataComboFile[2022/23 Increase]*$B$3)","v":0},{"$f":"P54+Q54+R54","v":0},{"$f":"SUMPRODUCT(((T_DataComboFile[Implementation programme]=$G$3)*(T_DataComboFile[Econ4]=$G54))*T_DataComboFile[2023/24 Baseline]*$B$3)","v":0},{"$f":"SUMPRODUCT(((T_DataComboFile[Implementation programme]=$G$3)*(T_DataComboFile[Econ4]=$G54))*T_DataComboFile[2023/24 Reduction]*$B$3)","v":0},{"$f":"SUMPRODUCT(((T_DataComboFile[Implementation programme]=$G$3)*(T_DataComboFile[Econ4]=$G54))*T_DataComboFile[2023/24 Increase]*$B$3)","v":0},{"$f":"T54+U54+V54","v":0}]
[0,0,null,null,null,null,"Other fixed structures",{"$f":"SUMPRODUCT(((T_DataComboFile[Implementation programme]=$G$3)*(T_DataComboFile[Econ4]=$G55))*T_DataComboFile[2017/18]*$B$3)","v":0},{"$f":"SUMPRODUCT(((T_DataComboFile[Implementation programme]=$G$3)*(T_DataComboFile[Econ4]=$G55))*T_DataComboFile[2018/19]*$B$3)","v":0},{"$f":"SUMPRODUCT(((T_DataComboFile[Implementation programme]=$G$3)*(T_DataComboFile[Econ4]=$G55))*T_DataComboFile[2019/20 Revised estimate]*$B$3)","v":0},{"$f":"SUMPRODUCT(((T_DataComboFile[Implementation programme]=$G$3)*(T_DataComboFile[Econ4]=$G55))*T_DataComboFile[2020/21 Revised]*$B$3)","v":0},{"$f":"SUMPRODUCT(((T_DataComboFile[Implementation programme]=$G$3)*(T_DataComboFile[Econ4]=$G55))*T_DataComboFile[2021/22 Baseline]*$B$3)","v":0},{"$f":"SUMPRODUCT(((T_DataComboFile[Implementation programme]=$G$3)*(T_DataComboFile[Econ4]=$G55))*T_DataComboFile[2021/22 Reduction]*$B$3)","v":0},{"$f":"SUMPRODUCT(((T_DataComboFile[Implementation programme]=$G$3)*(T_DataComboFile[Econ4]=$G55))*T_DataComboFile[2021/22 Increase]*$B$3)","v":0},0,{"$f":"SUMPRODUCT(((T_DataComboFile[Implementation programme]=$G$3)*(T_DataComboFile[Econ4]=$G55))*T_DataComboFile[2022/23 Baseline]*$B$3)","v":0},{"$f":"SUMPRODUCT(((T_DataComboFile[Implementation programme]=$G$3)*(T_DataComboFile[Econ4]=$G55))*T_DataComboFile[2022/23 Reduction]*$B$3)","v":0},{"$f":"SUMPRODUCT(((T_DataComboFile[Implementation programme]=$G$3)*(T_DataComboFile[Econ4]=$G55))*T_DataComboFile[2022/23 Increase]*$B$3)","v":0},0,{"$f":"SUMPRODUCT(((T_DataComboFile[Implementation programme]=$G$3)*(T_DataComboFile[Econ4]=$G55))*T_DataComboFile[2023/24 Baseline]*$B$3)","v":0},{"$f":"SUMPRODUCT(((T_DataComboFile[Implementation programme]=$G$3)*(T_DataComboFile[Econ4]=$G55))*T_DataComboFile[2023/24 Reduction]*$B$3)","v":0},{"$f":"SUMPRODUCT(((T_DataComboFile[Implementation programme]=$G$3)*(T_DataComboFile[Econ4]=$G55))*T_DataComboFile[2023/24 Increase]*$B$3)","v":0},0]
[0,0,null,null,null,null,"Machinery and equipment",{"$f":"SUM(H57:H58)","v":0},0,0,0,0,0,0,0,0,0,0,0,0,0,0,0]
[0,0,null,null,null,null,"Transport equipment",{"$f":"SUMPRODUCT(((T_DataComboFile[Implementation programme]=$G$3)*(T_DataComboFile[Econ4]=$G57))*T_DataComboFile[2017/18]*$B$3)","v":0},{"$f":"SUMPRODUCT(((T_DataComboFile[Implementation programme]=$G$3)*(T_DataComboFile[Econ4]=$G57))*T_DataComboFile[2018/19]*$B$3)","v":0},{"$f":"SUMPRODUCT(((T_DataComboFile[Implementation programme]=$G$3)*(T_DataComboFile[Econ4]=$G57))*T_DataComboFile[2019/20 Revised estimate]*$B$3)","v":0},{"$f":"SUMPRODUCT(((T_DataComboFile[Implementation programme]=$G$3)*(T_DataComboFile[Econ4]=$G57))*T_DataComboFile[2020/21 Revised]*$B$3)","v":0},{"$f":"SUMPRODUCT(((T_DataComboFile[Implementation programme]=$G$3)*(T_DataComboFile[Econ4]=$G57))*T_DataComboFile[2021/22 Baseline]*$B$3)","v":0},{"$f":"SUMPRODUCT(((T_DataComboFile[Implementation programme]=$G$3)*(T_DataComboFile[Econ4]=$G57))*T_DataComboFile[2021/22 Reduction]*$B$3)","v":0},{"$f":"SUMPRODUCT(((T_DataComboFile[Implementation programme]=$G$3)*(T_DataComboFile[Econ4]=$G57))*T_DataComboFile[2021/22 Increase]*$B$3)","v":0},{"$f":"L57+M57+N57","v":0},{"$f":"SUMPRODUCT(((T_DataComboFile[Implementation programme]=$G$3)*(T_DataComboFile[Econ4]=$G57))*T_DataComboFile[2022/23 Baseline]*$B$3)","v":0},{"$f":"SUMPRODUCT(((T_DataComboFile[Implementation programme]=$G$3)*(T_DataComboFile[Econ4]=$G57))*T_DataComboFile[2022/23 Reduction]*$B$3)","v":0},{"$f":"SUMPRODUCT(((T_DataComboFile[Implementation programme]=$G$3)*(T_DataComboFile[Econ4]=$G57))*T_DataComboFile[2022/23 Increase]*$B$3)","v":0},{"$f":"P57+Q57+R57","v":0},{"$f":"SUMPRODUCT(((T_DataComboFile[Implementation programme]=$G$3)*(T_DataComboFile[Econ4]=$G57))*T_DataComboFile[2023/24 Baseline]*$B$3)","v":0},{"$f":"SUMPRODUCT(((T_DataComboFile[Implementation programme]=$G$3)*(T_DataComboFile[Econ4]=$G57))*T_DataComboFile[2023/24 Reduction]*$B$3)","v":0},{"$f":"SUMPRODUCT(((T_DataComboFile[Implementation programme]=$G$3)*(T_DataComboFile[Econ4]=$G57))*T_DataComboFile[2023/24 Increase]*$B$3)","v":0},{"$f":"T57+U57+V57","v":0}]
[0,0,null,null,null,null,"Other machinery and equipment",{"$f":"SUMPRODUCT(((T_DataComboFile[Implementation programme]=$G$3)*(T_DataComboFile[Econ4]=$G58))*T_DataComboFile[2017/18]*$B$3)","v":0},{"$f":"SUMPRODUCT(((T_DataComboFile[Implementation programme]=$G$3)*(T_DataComboFile[Econ4]=$G58))*T_DataComboFile[2018/19]*$B$3)","v":0},{"$f":"SUMPRODUCT(((T_DataComboFile[Implementation programme]=$G$3)*(T_DataComboFile[Econ4]=$G58))*T_DataComboFile[2019/20 Revised estimate]*$B$3)","v":0},{"$f":"SUMPRODUCT(((T_DataComboFile[Implementation programme]=$G$3)*(T_DataComboFile[Econ4]=$G58))*T_DataComboFile[2020/21 Revised]*$B$3)","v":0},{"$f":"SUMPRODUCT(((T_DataComboFile[Implementation programme]=$G$3)*(T_DataComboFile[Econ4]=$G58))*T_DataComboFile[2021/22 Baseline]*$B$3)","v":0},{"$f":"SUMPRODUCT(((T_DataComboFile[Implementation programme]=$G$3)*(T_DataComboFile[Econ4]=$G58))*T_DataComboFile[2021/22 Reduction]*$B$3)","v":0},{"$f":"SUMPRODUCT(((T_DataComboFile[Implementation programme]=$G$3)*(T_DataComboFile[Econ4]=$G58))*T_DataComboFile[2021/22 Increase]*$B$3)","v":0},0,{"$f":"SUMPRODUCT(((T_DataComboFile[Implementation programme]=$G$3)*(T_DataComboFile[Econ4]=$G58))*T_DataComboFile[2022/23 Baseline]*$B$3)","v":0},{"$f":"SUMPRODUCT(((T_DataComboFile[Implementation programme]=$G$3)*(T_DataComboFile[Econ4]=$G58))*T_DataComboFile[2022/23 Reduction]*$B$3)","v":0},{"$f":"SUMPRODUCT(((T_DataComboFile[Implementation programme]=$G$3)*(T_DataComboFile[Econ4]=$G58))*T_DataComboFile[2022/23 Increase]*$B$3)","v":0},0,{"$f":"SUMPRODUCT(((T_DataComboFile[Implementation programme]=$G$3)*(T_DataComboFile[Econ4]=$G58))*T_DataComboFile[2023/24 Baseline]*$B$3)","v":0},{"$f":"SUMPRODUCT(((T_DataComboFile[Implementation programme]=$G$3)*(T_DataComboFile[Econ4]=$G58))*T_DataComboFile[2023/24 Reduction]*$B$3)","v":0},{"$f":"SUMPRODUCT(((T_DataComboFile[Implementation programme]=$G$3)*(T_DataComboFile[Econ4]=$G58))*T_DataComboFile[2023/24 Increase]*$B$3)","v":0},0]
[0,0,null,null,null,null,"Heritage assets",{"$f":"SUMPRODUCT(((T_DataComboFile[Implementation programme]=$G$3)*(T_DataComboFile[Econ3]=$G59))*T_DataComboFile[2017/18]*$B$3)","v":0},{"$f":"SUMPRODUCT(((T_DataComboFile[Implementation programme]=$G$3)*(T_DataComboFile[Econ3]=$G59))*T_DataComboFile[2018/19]*$B$3)","v":0},{"$f":"SUMPRODUCT(((T_DataComboFile[Implementation programme]=$G$3)*(T_DataComboFile[Econ3]=$G59))*T_DataComboFile[2019/20 Revised estimate]*$B$3)","v":0},{"$f":"SUMPRODUCT(((T_DataComboFile[Implementation programme]=$G$3)*(T_DataComboFile[Econ3]=$G59))*T_DataComboFile[2020/21 Revised]*$B$3)","v":0},{"$f":"SUMPRODUCT(((T_DataComboFile[Implementation programme]=$G$3)*(T_DataComboFile[Econ3]=$G59))*T_DataComboFile[2021/22 Baseline]*$B$3)","v":0},{"$f":"SUMPRODUCT(((T_DataComboFile[Implementation programme]=$G$3)*(T_DataComboFile[Econ3]=$G59))*T_DataComboFile[2021/22 Reduction]*$B$3)","v":0},{"$f":"SUMPRODUCT(((T_DataComboFile[Implementation programme]=$G$3)*(T_DataComboFile[Econ3]=$G59))*T_DataComboFile[2021/22 Increase]*$B$3)","v":0},{"$f":"L59+M59+N59","v":0},{"$f":"SUMPRODUCT(((T_DataComboFile[Implementation programme]=$G$3)*(T_DataComboFile[Econ3]=$G59))*T_DataComboFile[2022/23 Baseline]*$B$3)","v":0},{"$f":"SUMPRODUCT(((T_DataComboFile[Implementation programme]=$G$3)*(T_DataComboFile[Econ3]=$G59))*T_DataComboFile[2022/23 Reduction]*$B$3)","v":0},{"$f":"SUMPRODUCT(((T_DataComboFile[Implementation programme]=$G$3)*(T_DataComboFile[Econ3]=$G59))*T_DataComboFile[2022/23 Increase]*$B$3)","v":0},{"$f":"P59+Q59+R59","v":0},{"$f":"SUMPRODUCT(((T_DataComboFile[Implementation programme]=$G$3)*(T_DataComboFile[Econ3]=$G59))*T_DataComboFile[2023/24 Baseline]*$B$3)","v":0},{"$f":"SUMPRODUCT(((T_DataComboFile[Implementation programme]=$G$3)*(T_DataComboFile[Econ3]=$G59))*T_DataComboFile[2023/24 Reduction]*$B$3)","v":0},{"$f":"SUMPRODUCT(((T_DataComboFile[Implementation programme]=$G$3)*(T_DataComboFile[Econ3]=$G59))*T_DataComboFile[2023/24 Increase]*$B$3)","v":0},{"$f":"T59+U59+V59","v":0}]
[0,0,null,null,null,null,"Specialised military assets",{"$f":"SUMPRODUCT(((T_DataComboFile[Implementation programme]=$G$3)*(T_DataComboFile[Econ3]=$G60))*T_DataComboFile[2017/18]*$B$3)","v":0},{"$f":"SUMPRODUCT(((T_DataComboFile[Implementation programme]=$G$3)*(T_DataComboFile[Econ3]=$G60))*T_DataComboFile[2018/19]*$B$3)","v":0},{"$f":"SUMPRODUCT(((T_DataComboFile[Implementation programme]=$G$3)*(T_DataComboFile[Econ3]=$G60))*T_DataComboFile[2019/20 Revised estimate]*$B$3)","v":0},{"$f":"SUMPRODUCT(((T_DataComboFile[Implementation programme]=$G$3)*(T_DataComboFile[Econ3]=$G60))*T_DataComboFile[2020/21 Revised]*$B$3)","v":0},{"$f":"SUMPRODUCT(((T_DataComboFile[Implementation programme]=$G$3)*(T_DataComboFile[Econ3]=$G60))*T_DataComboFile[2021/22 Baseline]*$B$3)","v":0},{"$f":"SUMPRODUCT(((T_DataComboFile[Implementation programme]=$G$3)*(T_DataComboFile[Econ3]=$G60))*T_DataComboFile[2021/22 Reduction]*$B$3)","v":0},{"$f":"SUMPRODUCT(((T_DataComboFile[Implementation programme]=$G$3)*(T_DataComboFile[Econ3]=$G60))*T_DataComboFile[2021/22 Increase]*$B$3)","v":0},0,{"$f":"SUMPRODUCT(((T_DataComboFile[Implementation programme]=$G$3)*(T_DataComboFile[Econ3]=$G60))*T_DataComboFile[2022/23 Baseline]*$B$3)","v":0},{"$f":"SUMPRODUCT(((T_DataComboFile[Implementation programme]=$G$3)*(T_DataComboFile[Econ3]=$G60))*T_DataComboFile[2022/23 Reduction]*$B$3)","v":0},{"$f":"SUMPRODUCT(((T_DataComboFile[Implementation programme]=$G$3)*(T_DataComboFile[Econ3]=$G60))*T_DataComboFile[2022/23 Increase]*$B$3)","v":0},0,{"$f":"SUMPRODUCT(((T_DataComboFile[Implementation programme]=$G$3)*(T_DataComboFile[Econ3]=$G60))*T_DataComboFile[2023/24 Baseline]*$B$3)","v":0},{"$f":"SUMPRODUCT(((T_DataComboFile[Implementation programme]=$G$3)*(T_DataComboFile[Econ3]=$G60))*T_DataComboFile[2023/24 Reduction]*$B$3)","v":0},{"$f":"SUMPRODUCT(((T_DataComboFile[Implementation programme]=$G$3)*(T_DataComboFile[Econ3]=$G60))*T_DataComboFile[2023/24 Increase]*$B$3)","v":0},0]
[0,0,null,null,null,null,"Biological assets",{"$f":"SUMPRODUCT(((T_DataComboFile[Implementation programme]=$G$3)*(T_DataComboFile[Econ3]=$G61))*T_DataComboFile[2017/18]*$B$3)","v":0},{"$f":"SUMPRODUCT(((T_DataComboFile[Implementation programme]=$G$3)*(T_DataComboFile[Econ3]=$G61))*T_DataComboFile[2018/19]*$B$3)","v":0},{"$f":"SUMPRODUCT(((T_DataComboFile[Implementation programme]=$G$3)*(T_DataComboFile[Econ3]=$G61))*T_DataComboFile[2019/20 Revised estimate]*$B$3)","v":0},{"$f":"SUMPRODUCT(((T_DataComboFile[Implementation programme]=$G$3)*(T_DataComboFile[Econ3]=$G61))*T_DataComboFile[2020/21 Revised]*$B$3)","v":0},{"$f":"SUMPRODUCT(((T_DataComboFile[Implementation programme]=$G$3)*(T_DataComboFile[Econ3]=$G61))*T_DataComboFile[2021/22 Baseline]*$B$3)","v":0},{"$f":"SUMPRODUCT(((T_DataComboFile[Implementation programme]=$G$3)*(T_DataComboFile[Econ3]=$G61))*T_DataComboFile[2021/22 Reduction]*$B$3)","v":0},{"$f":"SUMPRODUCT(((T_DataComboFile[Implementation programme]=$G$3)*(T_DataComboFile[Econ3]=$G61))*T_DataComboFile[2021/22 Increase]*$B$3)","v":0},0,{"$f":"SUMPRODUCT(((T_DataComboFile[Implementation programme]=$G$3)*(T_DataComboFile[Econ3]=$G61))*T_DataComboFile[2022/23 Baseline]*$B$3)","v":0},{"$f":"SUMPRODUCT(((T_DataComboFile[Implementation programme]=$G$3)*(T_DataComboFile[Econ3]=$G61))*T_DataComboFile[2022/23 Reduction]*$B$3)","v":0},{"$f":"SUMPRODUCT(((T_DataComboFile[Implementation programme]=$G$3)*(T_DataComboFile[Econ3]=$G61))*T_DataComboFile[2022/23 Increase]*$B$3)","v":0},0,{"$f":"SUMPRODUCT(((T_DataComboFile[Implementation programme]=$G$3)*(T_DataComboFile[Econ3]=$G61))*T_DataComboFile[2023/24 Baseline]*$B$3)","v":0},{"$f":"SUMPRODUCT(((T_DataComboFile[Implementation programme]=$G$3)*(T_DataComboFile[Econ3]=$G61))*T_DataComboFile[2023/24 Reduction]*$B$3)","v":0},{"$f":"SUMPRODUCT(((T_DataComboFile[Implementation programme]=$G$3)*(T_DataComboFile[Econ3]=$G61))*T_DataComboFile[2023/24 Increase]*$B$3)","v":0},0]
[0,0,null,null,null,null,"Land and sub-soil assets",{"$f":"SUMPRODUCT(((T_DataComboFile[Implementation programme]=$G$3)*(T_DataComboFile[Econ3]=$G62))*T_DataComboFile[2017/18]*$B$3)","v":0},{"$f":"SUMPRODUCT(((T_DataComboFile[Implementation programme]=$G$3)*(T_DataComboFile[Econ3]=$G62))*T_DataComboFile[2018/19]*$B$3)","v":0},{"$f":"SUMPRODUCT(((T_DataComboFile[Implementation programme]=$G$3)*(T_DataComboFile[Econ3]=$G62))*T_DataComboFile[2019/20 Revised estimate]*$B$3)","v":0},{"$f":"SUMPRODUCT(((T_DataComboFile[Implementation programme]=$G$3)*(T_DataComboFile[Econ3]=$G62))*T_DataComboFile[2020/21 Revised]*$B$3)","v":0},{"$f":"SUMPRODUCT(((T_DataComboFile[Implementation programme]=$G$3)*(T_DataComboFile[Econ3]=$G62))*T_DataComboFile[2021/22 Baseline]*$B$3)","v":0},{"$f":"SUMPRODUCT(((T_DataComboFile[Implementation programme]=$G$3)*(T_DataComboFile[Econ3]=$G62))*T_DataComboFile[2021/22 Reduction]*$B$3)","v":0},{"$f":"SUMPRODUCT(((T_DataComboFile[Implementation programme]=$G$3)*(T_DataComboFile[Econ3]=$G62))*T_DataComboFile[2021/22 Increase]*$B$3)","v":0},0,{"$f":"SUMPRODUCT(((T_DataComboFile[Implementation programme]=$G$3)*(T_DataComboFile[Econ3]=$G62))*T_DataComboFile[2022/23 Baseline]*$B$3)","v":0},{"$f":"SUMPRODUCT(((T_DataComboFile[Implementation programme]=$G$3)*(T_DataComboFile[Econ3]=$G62))*T_DataComboFile[2022/23 Reduction]*$B$3)","v":0},{"$f":"SUMPRODUCT(((T_DataComboFile[Implementation programme]=$G$3)*(T_DataComboFile[Econ3]=$G62))*T_DataComboFile[2022/23 Increase]*$B$3)","v":0},0,{"$f":"SUMPRODUCT(((T_DataComboFile[Implementation programme]=$G$3)*(T_DataComboFile[Econ3]=$G62))*T_DataComboFile[2023/24 Baseline]*$B$3)","v":0},{"$f":"SUMPRODUCT(((T_DataComboFile[Implementation programme]=$G$3)*(T_DataComboFile[Econ3]=$G62))*T_DataComboFile[2023/24 Reduction]*$B$3)","v":0},{"$f":"SUMPRODUCT(((T_DataComboFile[Implementation programme]=$G$3)*(T_DataComboFile[Econ3]=$G62))*T_DataComboFile[2023/24 Increase]*$B$3)","v":0},0]
[0,0,null,null,null,null,"Software and other intangible assets",{"$f":"SUMPRODUCT(((T_DataComboFile[Implementation programme]=$G$3)*(T_DataComboFile[Econ3]=$G63))*T_DataComboFile[2017/18]*$B$3)","v":0},{"$f":"SUMPRODUCT(((T_DataComboFile[Implementation programme]=$G$3)*(T_DataComboFile[Econ3]=$G63))*T_DataComboFile[2018/19]*$B$3)","v":0},{"$f":"SUMPRODUCT(((T_DataComboFile[Implementation programme]=$G$3)*(T_DataComboFile[Econ3]=$G63))*T_DataComboFile[2019/20 Revised estimate]*$B$3)","v":0},{"$f":"SUMPRODUCT(((T_DataComboFile[Implementation programme]=$G$3)*(T_DataComboFile[Econ3]=$G63))*T_DataComboFile[2020/21 Revised]*$B$3)","v":0},{"$f":"SUMPRODUCT(((T_DataComboFile[Implementation programme]=$G$3)*(T_DataComboFile[Econ3]=$G63))*T_DataComboFile[2021/22 Baseline]*$B$3)","v":0},{"$f":"SUMPRODUCT(((T_DataComboFile[Implementation programme]=$G$3)*(T_DataComboFile[Econ3]=$G63))*T_DataComboFile[2021/22 Reduction]*$B$3)","v":0},{"$f":"SUMPRODUCT(((T_DataComboFile[Implementation programme]=$G$3)*(T_DataComboFile[Econ3]=$G63))*T_DataComboFile[2021/22 Increase]*$B$3)","v":0},0,{"$f":"SUMPRODUCT(((T_DataComboFile[Implementation programme]=$G$3)*(T_DataComboFile[Econ3]=$G63))*T_DataComboFile[2022/23 Baseline]*$B$3)","v":0},{"$f":"SUMPRODUCT(((T_DataComboFile[Implementation programme]=$G$3)*(T_DataComboFile[Econ3]=$G63))*T_DataComboFile[2022/23 Reduction]*$B$3)","v":0},{"$f":"SUMPRODUCT(((T_DataComboFile[Implementation programme]=$G$3)*(T_DataComboFile[Econ3]=$G63))*T_DataComboFile[2022/23 Increase]*$B$3)","v":0},0,{"$f":"SUMPRODUCT(((T_DataComboFile[Implementation programme]=$G$3)*(T_DataComboFile[Econ3]=$G63))*T_DataComboFile[2023/24 Baseline]*$B$3)","v":0},{"$f":"SUMPRODUCT(((T_DataComboFile[Implementation programme]=$G$3)*(T_DataComboFile[Econ3]=$G63))*T_DataComboFile[2023/24 Reduction]*$B$3)","v":0},{"$f":"SUMPRODUCT(((T_DataComboFile[Implementation programme]=$G$3)*(T_DataComboFile[Econ3]=$G63))*T_DataComboFile[2023/24 Increase]*$B$3)","v":0},0]
[0,0,null,null,null,null,"Payments for financial assets",{"$f":"SUMPRODUCT(((T_DataComboFile[Implementation programme]=$G$3)*(T_DataComboFile[Econ3]=$G64))*T_DataComboFile[2017/18]*$B$3)","v":0},{"$f":"SUMPRODUCT(((T_DataComboFile[Implementation programme]=$G$3)*(T_DataComboFile[Econ3]=$G64))*T_DataComboFile[2018/19]*$B$3)","v":0},{"$f":"SUMPRODUCT(((T_DataComboFile[Implementation programme]=$G$3)*(T_DataComboFile[Econ3]=$G64))*T_DataComboFile[2019/20 Revised estimate]*$B$3)","v":0},{"$f":"SUMPRODUCT(((T_DataComboFile[Implementation programme]=$G$3)*(T_DataComboFile[Econ3]=$G64))*T_DataComboFile[2020/21 Revised]*$B$3)","v":0},{"$f":"SUMPRODUCT(((T_DataComboFile[Implementation programme]=$G$3)*(T_DataComboFile[Econ3]=$G64))*T_DataComboFile[2021/22 Baseline]*$B$3)","v":0},{"$f":"SUMPRODUCT(((T_DataComboFile[Implementation programme]=$G$3)*(T_DataComboFile[Econ3]=$G64))*T_DataComboFile[2021/22 Reduction]*$B$3)","v":0},{"$f":"SUMPRODUCT(((T_DataComboFile[Implementation programme]=$G$3)*(T_DataComboFile[Econ3]=$G64))*T_DataComboFile[2021/22 Increase]*$B$3)","v":0},0,{"$f":"SUMPRODUCT(((T_DataComboFile[Implementation programme]=$G$3)*(T_DataComboFile[Econ3]=$G64))*T_DataComboFile[2022/23 Baseline]*$B$3)","v":0},{"$f":"SUMPRODUCT(((T_DataComboFile[Implementation programme]=$G$3)*(T_DataComboFile[Econ3]=$G64))*T_DataComboFile[2022/23 Reduction]*$B$3)","v":0},{"$f":"SUMPRODUCT(((T_DataComboFile[Implementation programme]=$G$3)*(T_DataComboFile[Econ3]=$G64))*T_DataComboFile[2022/23 Increase]*$B$3)","v":0},0,{"$f":"SUMPRODUCT(((T_DataComboFile[Implementation programme]=$G$3)*(T_DataComboFile[Econ3]=$G64))*T_DataComboFile[2023/24 Baseline]*$B$3)","v":0},{"$f":"SUMPRODUCT(((T_DataComboFile[Implementation programme]=$G$3)*(T_DataComboFile[Econ3]=$G64))*T_DataComboFile[2023/24 Reduction]*$B$3)","v":0},{"$f":"SUMPRODUCT(((T_DataComboFile[Implementation programme]=$G$3)*(T_DataComboFile[Econ3]=$G64))*T_DataComboFile[2023/24 Increase]*$B$3)","v":0},0]
[0,0,null,null,null,null,"Total",{"$f":"SUM(H32,H36,H52,H64)","v":0},0,0,0,0,0,0,0,0,0,0,0,0,0,0,0]
[]
[]
[]
[]
[]
[null,null,null,null,null,null,{"$f":"\"IMPACT OF ADJUSTMENTS: \" &UPPER($G$3)","v":"IMPACT OF ADJUSTMENTS: "}]
[]
[null,null,null,null,null,1,"Summary of impact on service delivery due to adjustments"]
[{"$f":"$G$3","v":0},1]
[0,1]
[0,1]
[0,1]
[0,1]
[0,1]
[0,1]
[0,1]
[0,1]
[0,1]
[0,1]
[0,1]
[0,1]
[0,1]
[0,1]
[]
[]
[]
[]
[]
[null,null,null,null,null,2,"Impact of adjustments on performance indicators"]
[{"$f":"$G$3","v":0},2,null,null,null,null,null,"2021/22",null,null,"2022/23",null,null,"2023/24",null,null," Comment",null,null,null,null,"Related MTSF Priority"]
[0,2,null,null,null,null,"Performance indicator","Original target","Revised target","Change","Original target","Revised target","Change","Original target","Revised target","Change"]
[0,2]
[0,2]
[0,2]
[0,2]
[0,2]
[0,2]
[0,2]
[0,2]
[0,2]
[0,2]
[0,2]
[0,2]
[0,2]
[0,2]
[0,2]
[]
[]
[]
[]
[]
[null,null,null,null,null,3,"Impact of adjustments on infrastructure projects"]
[{"$f":"$G$3","v":0},3,null,null,null,null,null,"2021/22",null,null,"2022/23",null,null,"2023/24",null,null," Comment"]
[0,3,null,null,null,null,"Project name","Original amount","Revised amount","Change","Original amount","Revised amount","Change","Original amount","Revised amount","Change"]
[0,3,null,null,null,null,null,null,null,{"$f":"I120-H120","v":0},null,null,{"$f":"L120-K120","v":0},null,null,{"$f":"O120-N120","v":0}]
[0,3,null,null,null,null,null,null,null,0,null,null,0,null,null,0]
[0,3,null,null,null,null,null,null,null,0,null,null,0,null,null,0]
[0,3,null,null,null,null,null,null,null,0,null,null,0,null,null,0]
[0,3,null,null,null,null,null,null,null,0,null,null,0,null,null,0]
[0,3,null,null,null,null,null,null,null,0,null,null,0,null,null,0]
[0,3,null,null,null,null,null,null,null,0,null,null,0,null,null,0]
[0,3,null,null,null,null,null,null,null,0,null,null,0,null,null,0]
[0,3,null,null,null,null,null,null,null,0,null,null,0,null,null,0]
[0,3,null,null,null,null,null,null,null,0,null,null,0,null,null,0]
[0,3,null,null,null,null,null,null,null,0,null,null,0,null,null,0]
[0,3,null,null,null,null,null,null,null,0,null,null,0,null,null,0]
[0,3,null,null,null,null,null,null,null,0,null,null,0,null,null,0]
[0,3,null,null,null,null,null,null,null,0,null,null,0,null,null,0]
[0,3,null,null,null,null,null,null,null,0,null,null,0,null,null,0]
[0,3,null,null,null,null,"Total",{"$f":"SUM(H120:H134)","v":0},0,0,0,0,0,0,0,0]
[]
[]
[]
[]
[]
[null,null,null,null,null,4,"Impact of adjustments on personnel headcount numbers"]
[{"$f":"$G$3","v":0},4,null,null,null,null,null,"2021/22",null,null,"2022/23",null,null,"2023/24",null,null," Comment"]
[0,4,null,null,null,null,"Salary level","Original number","Revised number","Change","Original number","Revised number","Change","Original number","Revised number","Change"]
[0,4,null,null,null,null,1,null,null,{"$f":"I144-H144","v":0},null,null,{"$f":"L144-K144","v":0},null,null,{"$f":"O144-N144","v":0}]
[0,4,null,null,null,null,2,null,null,0,null,null,0,null,null,0]
[0,4,null,null,null,null,3,null,null,0,null,null,0,null,null,0]
[0,4,null,null,null,null,4,null,null,0,null,null,0,null,null,0]
[0,4,null,null,null,null,5,null,null,0,null,null,0,null,null,0]
[0,4,null,null,null,null,6,null,null,0,null,null,0,null,null,0]
[0,4,null,null,null,null,7,null,null,0,null,null,0,null,null,0]
[0,4,null,null,null,null,8,null,null,0,null,null,0,null,null,0]
[0,4,null,null,null,null,9,null,null,0,null,null,0,null,null,0]
[0,4,null,null,null,null,10,null,null,0,null,null,0,null,null,0]
[0,4,null,null,null,null,11,null,null,0,null,null,0,null,null,0]
[0,4,null,null,null,null,12,null,null,0,null,null,0,null,null,0]
[0,4,null,null,null,null,13,null,null,0,null,null,0,null,null,0]
[0,4,null,null,null,null,14,null,null,0,null,null,0,null,null,0]
[0,4,null,null,null,null,15,null,null,0,null,null,0,null,null,0]
[0,4,null,null,null,null,16,null,null,0,null,null,0,null,null,0]
[0,4,null,null,null,null,"Other",null,null,0,null,null,0,null,null,0]
[0,4,null,null,null,null,"Other",null,null,0,null,null,0,null,null,0]
[0,4,null,null,null,null,"Other",null,null,0,null,null,0,null,null,0]
[0,4,null,null,null,null,"Other",null,null,0,null,null,0,null,null,0]
[0,4,null,null,null,null,"Total",{"$f":"SUM(H144:H163)","v":0},0,0,0,0,0,0,0,0]
[]
[]
[]
[]
[]
[null,null,null,null,null,5,"Impact of adjustments by economic classification"]
[{"$f":"$G$3","v":0},5,null,null,null,null,null,"2021/22",null,null,"2022/23",null,null,"2023/24",null,null," Comment"]
[0,5,null,null,null,null,"Salary level","Original number","Revised number","Change","Original number","Revised number","Change","Original number","Revised number","Change"]
[0,5,null,null,null,null,"Current payments",{"$f":"SUM(H174,H175,H182)","v":0},{"$f":"SUM(I174,I175,I182)","v":0},{"$f":"I173-H173","v":0},{"$f":"SUM(K174,K175,K182)","v":0},{"$f":"SUM(L174,L175,L182)","v":0},{"$f":"L173-K173","v":0},{"$f":"SUM(N174,N175,N182)","v":0},{"$f":"SUM(O174,O175,O182)","v":0},{"$f":"O173-N173","v":0}]
[0,5,null,null,null,null,"Compensation of employees",{"$f":"SUMPRODUCT(((T_DataComboFile[Implementation programme]=$G$3)*(T_DataComboFile[Econ3]=$G174))*T_DataComboFile[2021/22 Baseline]*$B$3)","v":0},{"$f":"SUMPRODUCT(((T_DataComboFile[Implementation programme]=$G$3)*(T_DataComboFile[Econ3]=$G174))*T_DataComboFile[2021/22 Revised baseline]*$B$3)","v":0},0,{"$f":"SUMPRODUCT(((T_DataComboFile[Implementation programme]=$G$3)*(T_DataComboFile[Econ3]=$G174))*T_DataComboFile[2022/23 Baseline]*$B$3)","v":0},{"$f":"SUMPRODUCT(((T_DataComboFile[Implementation programme]=$G$3)*(T_DataComboFile[Econ3]=$G174))*T_DataComboFile[2022/23 Revised baseline]*$B$3)","v":0},0,{"$f":"SUMPRODUCT(((T_DataComboFile[Implementation programme]=$G$3)*(T_DataComboFile[Econ3]=$G174))*T_DataComboFile[2023/24 Baseline]*$B$3)","v":0},{"$f":"SUMPRODUCT(((T_DataComboFile[Implementation programme]=$G$3)*(T_DataComboFile[Econ3]=$G174))*T_DataComboFile[2023/24 Revised baseline]*$B$3)","v":0},0]
[0,5,null,null,null,null,"Goods and services",{"$f":"SUMPRODUCT(((T_DataComboFile[Implementation programme]=$G$3)*(T_DataComboFile[Econ3]=$G175))*T_DataComboFile[2021/22 Baseline]*$B$3)","v":0},{"$f":"SUMPRODUCT(((T_DataComboFile[Implementation programme]=$G$3)*(T_DataComboFile[Econ3]=$G175))*T_DataComboFile[2021/22 Revised baseline]*$B$3)","v":0},0,{"$f":"SUMPRODUCT(((T_DataComboFile[Implementation programme]=$G$3)*(T_DataComboFile[Econ3]=$G175))*T_DataComboFile[2022/23 Baseline]*$B$3)","v":0},{"$f":"SUMPRODUCT(((T_DataComboFile[Implementation programme]=$G$3)*(T_DataComboFile[Econ3]=$G175))*T_DataComboFile[2022/23 Revised baseline]*$B$3)","v":0},0,{"$f":"SUMPRODUCT(((T_DataComboFile[Implementation programme]=$G$3)*(T_DataComboFile[Econ3]=$G175))*T_DataComboFile[2023/24 Baseline]*$B$3)","v":0},{"$f":"SUMPRODUCT(((T_DataComboFile[Implementation programme]=$G$3)*(T_DataComboFile[Econ3]=$G175))*T_DataComboFile[2023/24 Revised baseline]*$B$3)","v":0},0]
[0,50,null,null,null,null,"of which:"]
[0,51,null,null,null,null,null,null,null,0,null,null,0,null,null,0]
[0,51,null,null,null,null,null,null,null,0,null,null,0,null,null,0]
[0,51,null,null,null,null,null,null,null,0,null,null,0,null,null,0]
[0,51,null,null,null,null,null,null,null,0,null,null,0,null,null,0]
[0,51,null,null,null,null,null,null,null,0,null,null,0,null,null,0]
[0,5,null,null,null,null,"Interest and rent on land",{"$f":"SUMPRODUCT(((T_DataComboFile[Implementation programme]=$G$3)*(T_DataComboFile[Econ3]=$G182))*T_DataComboFile[2021/22 Baseline]*$B$3)","v":0},{"$f":"SUMPRODUCT(((T_DataComboFile[Implementation programme]=$G$3)*(T_DataComboFile[Econ3]=$G182))*T_DataComboFile[2021/22 Revised baseline]*$B$3)","v":0},0,{"$f":"SUMPRODUCT(((T_DataComboFile[Implementation programme]=$G$3)*(T_DataComboFile[Econ3]=$G182))*T_DataComboFile[2022/23 Baseline]*$B$3)","v":0},{"$f":"SUMPRODUCT(((T_DataComboFile[Implementation programme]=$G$3)*(T_DataComboFile[Econ3]=$G182))*T_DataComboFile[2022/23 Revised baseline]*$B$3)","v":0},0,{"$f":"SUMPRODUCT(((T_DataComboFile[Implementation programme]=$G$3)*(T_DataComboFile[Econ3]=$G182))*T_DataComboFile[2023/24 Baseline]*$B$3)","v":0},{"$f":"SUMPRODUCT(((T_DataComboFile[Implementation programme]=$G$3)*(T_DataComboFile[Econ3]=$G182))*T_DataComboFile[2023/24 Revised baseline]*$B$3)","v":0},0]
[0,5,null,null,null,null,"Transfers and subsidies",{"$f":"SUM(H184,H185,H197,H198,H199,H206,H207)","v":0},{"$f":"SUM(I184,I185,I197,I198,I199,I206,I207)","v":0},0,{"$f":"SUM(K184,K185,K197,K198,K199,K206,K207)","v":0},0,0,{"$f":"SUM(N184,N185,N197,N198,N199,N206,N207)","v":0},0,0]
[0,5,null,null,null,null,"Provinces and municipalities",{"$f":"SUMPRODUCT(((T_DataComboFile[Implementation programme]=$G$3)*(T_DataComboFile[Econ3]=$G184))*T_DataComboFile[2021/22 Baseline]*$B$3)","v":0},{"$f":"SUMPRODUCT(((T_DataComboFile[Implementation programme]=$G$3)*(T_DataComboFile[Econ3]=$G184))*T_DataComboFile[2021/22 Revised baseline]*$B$3)","v":0},0,{"$f":"SUMPRODUCT(((T_DataComboFile[Implementation programme]=$G$3)*(T_DataComboFile[Econ3]=$G184))*T_DataComboFile[2022/23 Baseline]*$B$3)","v":0},{"$f":"SUMPRODUCT(((T_DataComboFile[Implementation programme]=$G$3)*(T_DataComboFile[Econ3]=$G184))*T_DataComboFile[2022/23 Revised baseline]*$B$3)","v":0},0,{"$f":"SUMPRODUCT(((T_DataComboFile[Implementation programme]=$G$3)*(T_DataComboFile[Econ3]=$G184))*T_DataComboFile[2023/24 Baseline]*$B$3)","v":0},{"$f":"SUMPRODUCT(((T_DataComboFile[Implementation programme]=$G$3)*(T_DataComboFile[Econ3]=$G184))*T_DataComboFile[2023/24 Revised baseline]*$B$3)","v":0},0]
[0,5,null,null,null,null,"Departmental agencies and accounts",{"$f":"SUMPRODUCT(((T_DataComboFile[Implementation programme]=$G$3)*(T_DataComboFile[Econ3]=$G185))*T_DataComboFile[2021/22 Baseline]*$B$3)","v":0},{"$f":"SUMPRODUCT(((T_DataComboFile[Implementation programme]=$G$3)*(T_DataComboFile[Econ3]=$G185))*T_DataComboFile[2021/22 Revised baseline]*$B$3)","v":0},0,{"$f":"SUMPRODUCT(((T_DataComboFile[Implementation programme]=$G$3)*(T_DataComboFile[Econ3]=$G185))*T_DataComboFile[2022/23 Baseline]*$B$3)","v":0},{"$f":"SUMPRODUCT(((T_DataComboFile[Implementation programme]=$G$3)*(T_DataComboFile[Econ3]=$G185))*T_DataComboFile[2022/23 Revised baseline]*$B$3)","v":0},0,{"$f":"SUMPRODUCT(((T_DataComboFile[Implementation programme]=$G$3)*(T_DataComboFile[Econ3]=$G185))*T_DataComboFile[2023/24 Baseline]*$B$3)","v":0},{"$f":"SUMPRODUCT(((T_DataComboFile[Implementation programme]=$G$3)*(T_DataComboFile[Econ3]=$G185))*T_DataComboFile[2023/24 Revised baseline]*$B$3)","v":0},0]
[0,50,null,null,null,null,"of which:"]
[0,52,null,null,null,null,null,null,null,{"$f":"I187-H187","v":0},null,null,{"$f":"L187-K187","v":0},null,null,{"$f":"O187-N187","v":0}]
[0,52,null,null,null,null,null,null,null,{"$f":"I188-H188","v":0},null,null,{"$f":"L188-K188","v":0},null,null,{"$f":"O188-N188","v":0}]
[0,52,null,null,null,null,null,null,null,0,null,null,0,null,null,0]
[0,52,null,null,null,null,null,null,null,0,null,null,0,null,null,0]
[0,52,null,null,null,null,null,null,null,0,null,null,0,null,null,0]
[0,52,null,null,null,null,null,null,null,0,null,null,0,null,null,0]
[0,52,null,null,null,null,null,null,null,0,null,null,0,null,null,0]
[0,52,null,null,null,null,null,null,null,0,null,null,0,null,null,0]
[0,52,null,null,null,null,null,null,null,0,null,null,0,null,null,0]
[0,52,null,null,null,null,null,null,null,0,null,null,0,null,null,0]
[0,5,null,null,null,null,"Higher education institutions",{"$f":"SUMPRODUCT(((T_DataComboFile[Implementation programme]=$G$3)*(T_DataComboFile[Econ3]=$G197))*T_DataComboFile[2021/22 Baseline]*$B$3)","v":0},{"$f":"SUMPRODUCT(((T_DataComboFile[Implementation programme]=$G$3)*(T_DataComboFile[Econ3]=$G197))*T_DataComboFile[2021/22 Revised baseline]*$B$3)","v":0},0,{"$f":"SUMPRODUCT(((T_DataComboFile[Implementation programme]=$G$3)*(T_DataComboFile[Econ3]=$G197))*T_DataComboFile[2022/23 Baseline]*$B$3)","v":0},{"$f":"SUMPRODUCT(((T_DataComboFile[Implementation programme]=$G$3)*(T_DataComboFile[Econ3]=$G197))*T_DataComboFile[2022/23 Revised baseline]*$B$3)","v":0},0,{"$f":"SUMPRODUCT(((T_DataComboFile[Implementation programme]=$G$3)*(T_DataComboFile[Econ3]=$G197))*T_DataComboFile[2023/24 Baseline]*$B$3)","v":0},{"$f":"SUMPRODUCT(((T_DataComboFile[Implementation programme]=$G$3)*(T_DataComboFile[Econ3]=$G197))*T_DataComboFile[2023/24 Revised baseline]*$B$3)","v":0},0]
[0,5,null,null,null,null,"Foreign governments and international organisations",{"$f":"SUMPRODUCT(((T_DataComboFile[Implementation programme]=$G$3)*(T_DataComboFile[Econ3]=$G198))*T_DataComboFile[2021/22 Baseline]*$B$3)","v":0},{"$f":"SUMPRODUCT(((T_DataComboFile[Implementation programme]=$G$3)*(T_DataComboFile[Econ3]=$G198))*T_DataComboFile[2021/22 Revised baseline]*$B$3)","v":0},0,{"$f":"SUMPRODUCT(((T_DataComboFile[Implementation programme]=$G$3)*(T_DataComboFile[Econ3]=$G198))*T_DataComboFile[2022/23 Baseline]*$B$3)","v":0},{"$f":"SUMPRODUCT(((T_DataComboFile[Implementation programme]=$G$3)*(T_DataComboFile[Econ3]=$G198))*T_DataComboFile[2022/23 Revised baseline]*$B$3)","v":0},0,{"$f":"SUMPRODUCT(((T_DataComboFile[Implementation programme]=$G$3)*(T_DataComboFile[Econ3]=$G198))*T_DataComboFile[2023/24 Baseline]*$B$3)","v":0},{"$f":"SUMPRODUCT(((T_DataComboFile[Implementation programme]=$G$3)*(T_DataComboFile[Econ3]=$G198))*T_DataComboFile[2023/24 Revised baseline]*$B$3)","v":0},0]
[0,5,null,null,null,null,"Public corporations and private enterprises",{"$f":"SUMPRODUCT(((T_DataComboFile[Implementation programme]=$G$3)*(T_DataComboFile[Econ3]=$G199))*T_DataComboFile[2021/22 Baseline]*$B$3)","v":0},{"$f":"SUMPRODUCT(((T_DataComboFile[Implementation programme]=$G$3)*(T_DataComboFile[Econ3]=$G199))*T_DataComboFile[2021/22 Revised baseline]*$B$3)","v":0},0,{"$f":"SUMPRODUCT(((T_DataComboFile[Implementation programme]=$G$3)*(T_DataComboFile[Econ3]=$G199))*T_DataComboFile[2022/23 Baseline]*$B$3)","v":0},{"$f":"SUMPRODUCT(((T_DataComboFile[Implementation programme]=$G$3)*(T_DataComboFile[Econ3]=$G199))*T_DataComboFile[2022/23 Revised baseline]*$B$3)","v":0},0,{"$f":"SUMPRODUCT(((T_DataComboFile[Implementation programme]=$G$3)*(T_DataComboFile[Econ3]=$G199))*T_DataComboFile[2023/24 Baseline]*$B$3)","v":0},{"$f":"SUMPRODUCT(((T_DataComboFile[Implementation programme]=$G$3)*(T_DataComboFile[Econ3]=$G199))*T_DataComboFile[2023/24 Revised baseline]*$B$3)","v":0},0]
[0,50,null,null,null,null,"of which:"]
[0,53,null,null,null,null,null,null,null,{"$f":"I201-H201","v":0},null,null,{"$f":"L201-K201","v":0},null,null,{"$f":"O201-N201","v":0}]
[0,53,null,null,null,null,null,null,null,{"$f":"I202-H202","v":0},null,null,{"$f":"L202-K202","v":0},null,null,{"$f":"O202-N202","v":0}]
[0,53,null,null,null,null,null,null,null,0,null,null,0,null,null,0]
[0,53,null,null,null,null,null,null,null,0,null,null,0,null,null,0]
[0,53,null,null,null,null,null,null,null,0,null,null,0,null,null,0]
[0,5,null,null,null,null,"Non-profit institutions",{"$f":"SUMPRODUCT(((T_DataComboFile[Implementation programme]=$G$3)*(T_DataComboFile[Econ3]=$G206))*T_DataComboFile[2021/22 Baseline]*$B$3)","v":0},{"$f":"SUMPRODUCT(((T_DataComboFile[Implementation programme]=$G$3)*(T_DataComboFile[Econ3]=$G206))*T_DataComboFile[2021/22 Revised baseline]*$B$3)","v":0},0,{"$f":"SUMPRODUCT(((T_DataComboFile[Implementation programme]=$G$3)*(T_DataComboFile[Econ3]=$G206))*T_DataComboFile[2022/23 Baseline]*$B$3)","v":0},{"$f":"SUMPRODUCT(((T_DataComboFile[Implementation programme]=$G$3)*(T_DataComboFile[Econ3]=$G206))*T_DataComboFile[2022/23 Revised baseline]*$B$3)","v":0},0,{"$f":"SUMPRODUCT(((T_DataComboFile[Implementation programme]=$G$3)*(T_DataComboFile[Econ3]=$G206))*T_DataComboFile[2023/24 Baseline]*$B$3)","v":0},{"$f":"SUMPRODUCT(((T_DataComboFile[Implementation programme]=$G$3)*(T_DataComboFile[Econ3]=$G206))*T_DataComboFile[2023/24 Revised baseline]*$B$3)","v":0},0]
[0,5,null,null,null,null,"Households",{"$f":"SUMPRODUCT(((T_DataComboFile[Implementation programme]=$G$3)*(T_DataComboFile[Econ3]=$G207))*T_DataComboFile[2021/22 Baseline]*$B$3)","v":0},{"$f":"SUMPRODUCT(((T_DataComboFile[Implementation programme]=$G$3)*(T_DataComboFile[Econ3]=$G207))*T_DataComboFile[2021/22 Revised baseline]*$B$3)","v":0},0,{"$f":"SUMPRODUCT(((T_DataComboFile[Implementation programme]=$G$3)*(T_DataComboFile[Econ3]=$G207))*T_DataComboFile[2022/23 Baseline]*$B$3)","v":0},{"$f":"SUMPRODUCT(((T_DataComboFile[Implementation programme]=$G$3)*(T_DataComboFile[Econ3]=$G207))*T_DataComboFile[2022/23 Revised baseline]*$B$3)","v":0},0,{"$f":"SUMPRODUCT(((T_DataComboFile[Implementation programme]=$G$3)*(T_DataComboFile[Econ3]=$G207))*T_DataComboFile[2023/24 Baseline]*$B$3)","v":0},{"$f":"SUMPRODUCT(((T_DataComboFile[Implementation programme]=$G$3)*(T_DataComboFile[Econ3]=$G207))*T_DataComboFile[2023/24 Revised baseline]*$B$3)","v":0},0]
[0,5,null,null,null,null,"Payments for capital assets",{"$f":"SUM(H209:H215)","v":0},0,0,0,0,0,0,{"$f":"SUM(O209:O215)","v":0},0]
[0,5,null,null,null,null,"Buildings and other fixed structures",{"$f":"SUMPRODUCT(((T_DataComboFile[Implementation programme]=$G$3)*(T_DataComboFile[Econ3]=$G209))*T_DataComboFile[2021/22 Baseline]*$B$3)","v":0},{"$f":"SUMPRODUCT(((T_DataComboFile[Implementation programme]=$G$3)*(T_DataComboFile[Econ3]=$G209))*T_DataComboFile[2021/22 Revised baseline]*$B$3)","v":0},0,{"$f":"SUMPRODUCT(((T_DataComboFile[Implementation programme]=$G$3)*(T_DataComboFile[Econ3]=$G209))*T_DataComboFile[2022/23 Baseline]*$B$3)","v":0},{"$f":"SUMPRODUCT(((T_DataComboFile[Implementation programme]=$G$3)*(T_DataComboFile[Econ3]=$G209))*T_DataComboFile[2022/23 Revised baseline]*$B$3)","v":0},0,{"$f":"SUMPRODUCT(((T_DataComboFile[Implementation programme]=$G$3)*(T_DataComboFile[Econ3]=$G209))*T_DataComboFile[2023/24 Baseline]*$B$3)","v":0},{"$f":"SUMPRODUCT(((T_DataComboFile[Implementation programme]=$G$3)*(T_DataComboFile[Econ3]=$G209))*T_DataComboFile[2023/24 Revised baseline]*$B$3)","v":0},0]
[0,5,null,null,null,null,"Machinery and equipment",{"$f":"SUMPRODUCT(((T_DataComboFile[Implementation programme]=$G$3)*(T_DataComboFile[Econ3]=$G210))*T_DataComboFile[2021/22 Baseline]*$B$3)","v":0},{"$f":"SUMPRODUCT(((T_DataComboFile[Implementation programme]=$G$3)*(T_DataComboFile[Econ3]=$G210))*T_DataComboFile[2021/22 Revised baseline]*$B$3)","v":0},0,{"$f":"SUMPRODUCT(((T_DataComboFile[Implementation programme]=$G$3)*(T_DataComboFile[Econ3]=$G210))*T_DataComboFile[2022/23 Baseline]*$B$3)","v":0},{"$f":"SUMPRODUCT(((T_DataComboFile[Implementation programme]=$G$3)*(T_DataComboFile[Econ3]=$G210))*T_DataComboFile[2022/23 Revised baseline]*$B$3)","v":0},0,{"$f":"SUMPRODUCT(((T_DataComboFile[Implementation programme]=$G$3)*(T_DataComboFile[Econ3]=$G210))*T_DataComboFile[2023/24 Baseline]*$B$3)","v":0},{"$f":"SUMPRODUCT(((T_DataComboFile[Implementation programme]=$G$3)*(T_DataComboFile[Econ3]=$G210))*T_DataComboFile[2023/24 Revised baseline]*$B$3)","v":0},0]
[0,5,null,null,null,null,"Heritage assets",{"$f":"SUMPRODUCT(((T_DataComboFile[Implementation programme]=$G$3)*(T_DataComboFile[Econ3]=$G211))*T_DataComboFile[2021/22 Baseline]*$B$3)","v":0},{"$f":"SUMPRODUCT(((T_DataComboFile[Implementation programme]=$G$3)*(T_DataComboFile[Econ3]=$G211))*T_DataComboFile[2021/22 Revised baseline]*$B$3)","v":0},0,{"$f":"SUMPRODUCT(((T_DataComboFile[Implementation programme]=$G$3)*(T_DataComboFile[Econ3]=$G211))*T_DataComboFile[2022/23 Baseline]*$B$3)","v":0},{"$f":"SUMPRODUCT(((T_DataComboFile[Implementation programme]=$G$3)*(T_DataComboFile[Econ3]=$G211))*T_DataComboFile[2022/23 Revised baseline]*$B$3)","v":0},0,{"$f":"SUMPRODUCT(((T_DataComboFile[Implementation programme]=$G$3)*(T_DataComboFile[Econ3]=$G211))*T_DataComboFile[2023/24 Baseline]*$B$3)","v":0},{"$f":"SUMPRODUCT(((T_DataComboFile[Implementation programme]=$G$3)*(T_DataComboFile[Econ3]=$G211))*T_DataComboFile[2023/24 Revised baseline]*$B$3)","v":0},0]
[0,5,null,null,null,null,"Specialised military assets",{"$f":"SUMPRODUCT(((T_DataComboFile[Implementation programme]=$G$3)*(T_DataComboFile[Econ3]=$G212))*T_DataComboFile[2021/22 Baseline]*$B$3)","v":0},{"$f":"SUMPRODUCT(((T_DataComboFile[Implementation programme]=$G$3)*(T_DataComboFile[Econ3]=$G212))*T_DataComboFile[2021/22 Revised baseline]*$B$3)","v":0},0,{"$f":"SUMPRODUCT(((T_DataComboFile[Implementation programme]=$G$3)*(T_DataComboFile[Econ3]=$G212))*T_DataComboFile[2022/23 Baseline]*$B$3)","v":0},{"$f":"SUMPRODUCT(((T_DataComboFile[Implementation programme]=$G$3)*(T_DataComboFile[Econ3]=$G212))*T_DataComboFile[2022/23 Revised baseline]*$B$3)","v":0},0,{"$f":"SUMPRODUCT(((T_DataComboFile[Implementation programme]=$G$3)*(T_DataComboFile[Econ3]=$G212))*T_DataComboFile[2023/24 Baseline]*$B$3)","v":0},{"$f":"SUMPRODUCT(((T_DataComboFile[Implementation programme]=$G$3)*(T_DataComboFile[Econ3]=$G212))*T_DataComboFile[2023/24 Revised baseline]*$B$3)","v":0},0]
[0,5,null,null,null,null,"Biological assets",{"$f":"SUMPRODUCT(((T_DataComboFile[Implementation programme]=$G$3)*(T_DataComboFile[Econ3]=$G213))*T_DataComboFile[2021/22 Baseline]*$B$3)","v":0},{"$f":"SUMPRODUCT(((T_DataComboFile[Implementation programme]=$G$3)*(T_DataComboFile[Econ3]=$G213))*T_DataComboFile[2021/22 Revised baseline]*$B$3)","v":0},0,{"$f":"SUMPRODUCT(((T_DataComboFile[Implementation programme]=$G$3)*(T_DataComboFile[Econ3]=$G213))*T_DataComboFile[2022/23 Baseline]*$B$3)","v":0},{"$f":"SUMPRODUCT(((T_DataComboFile[Implementation programme]=$G$3)*(T_DataComboFile[Econ3]=$G213))*T_DataComboFile[2022/23 Revised baseline]*$B$3)","v":0},0,{"$f":"SUMPRODUCT(((T_DataComboFile[Implementation programme]=$G$3)*(T_DataComboFile[Econ3]=$G213))*T_DataComboFile[2023/24 Baseline]*$B$3)","v":0},{"$f":"SUMPRODUCT(((T_DataComboFile[Implementation programme]=$G$3)*(T_DataComboFile[Econ3]=$G213))*T_DataComboFile[2023/24 Revised baseline]*$B$3)","v":0},0]
[0,5,null,null,null,null,"Land and sub-soil assets",{"$f":"SUMPRODUCT(((T_DataComboFile[Implementation programme]=$G$3)*(T_DataComboFile[Econ3]=$G214))*T_DataComboFile[2021/22 Baseline]*$B$3)","v":0},{"$f":"SUMPRODUCT(((T_DataComboFile[Implementation programme]=$G$3)*(T_DataComboFile[Econ3]=$G214))*T_DataComboFile[2021/22 Revised baseline]*$B$3)","v":0},0,{"$f":"SUMPRODUCT(((T_DataComboFile[Implementation programme]=$G$3)*(T_DataComboFile[Econ3]=$G214))*T_DataComboFile[2022/23 Baseline]*$B$3)","v":0},{"$f":"SUMPRODUCT(((T_DataComboFile[Implementation programme]=$G$3)*(T_DataComboFile[Econ3]=$G214))*T_DataComboFile[2022/23 Revised baseline]*$B$3)","v":0},0,{"$f":"SUMPRODUCT(((T_DataComboFile[Implementation programme]=$G$3)*(T_DataComboFile[Econ3]=$G214))*T_DataComboFile[2023/24 Baseline]*$B$3)","v":0},{"$f":"SUMPRODUCT(((T_DataComboFile[Implementation programme]=$G$3)*(T_DataComboFile[Econ3]=$G214))*T_DataComboFile[2023/24 Revised baseline]*$B$3)","v":0},0]
[0,5,null,null,null,null,"Software and other intangible assets",{"$f":"SUMPRODUCT(((T_DataComboFile[Implementation programme]=$G$3)*(T_DataComboFile[Econ3]=$G215))*T_DataComboFile[2021/22 Baseline]*$B$3)","v":0},{"$f":"SUMPRODUCT(((T_DataComboFile[Implementation programme]=$G$3)*(T_DataComboFile[Econ3]=$G215))*T_DataComboFile[2021/22 Revised baseline]*$B$3)","v":0},0,{"$f":"SUMPRODUCT(((T_DataComboFile[Implementation programme]=$G$3)*(T_DataComboFile[Econ3]=$G215))*T_DataComboFile[2022/23 Baseline]*$B$3)","v":0},{"$f":"SUMPRODUCT(((T_DataComboFile[Implementation programme]=$G$3)*(T_DataComboFile[Econ3]=$G215))*T_DataComboFile[2022/23 Revised baseline]*$B$3)","v":0},0,{"$f":"SUMPRODUCT(((T_DataComboFile[Implementation programme]=$G$3)*(T_DataComboFile[Econ3]=$G215))*T_DataComboFile[2023/24 Baseline]*$B$3)","v":0},{"$f":"SUMPRODUCT(((T_DataComboFile[Implementation programme]=$G$3)*(T_DataComboFile[Econ3]=$G215))*T_DataComboFile[2023/24 Revised baseline]*$B$3)","v":0},0]
[0,5,null,null,null,null,"Payments for financial assets",{"$f":"SUMPRODUCT(((T_DataComboFile[Implementation programme]=$G$3)*(T_DataComboFile[Econ3]=$G216))*T_DataComboFile[2021/22 Baseline]*$B$3)","v":0},{"$f":"SUMPRODUCT(((T_DataComboFile[Implementation programme]=$G$3)*(T_DataComboFile[Econ3]=$G216))*T_DataComboFile[2021/22 Revised baseline]*$B$3)","v":0},0,{"$f":"SUMPRODUCT(((T_DataComboFile[Implementation programme]=$G$3)*(T_DataComboFile[Econ3]=$G216))*T_DataComboFile[2022/23 Baseline]*$B$3)","v":0},{"$f":"SUMPRODUCT(((T_DataComboFile[Implementation programme]=$G$3)*(T_DataComboFile[Econ3]=$G216))*T_DataComboFile[2022/23 Revised baseline]*$B$3)","v":0},0,{"$f":"SUMPRODUCT(((T_DataComboFile[Implementation programme]=$G$3)*(T_DataComboFile[Econ3]=$G216))*T_DataComboFile[2023/24 Baseline]*$B$3)","v":0},{"$f":"SUMPRODUCT(((T_DataComboFile[Implementation programme]=$G$3)*(T_DataComboFile[Econ3]=$G216))*T_DataComboFile[2023/24 Revised baseline]*$B$3)","v":0},0]
[0,5,null,null,null,null,"Total",{"$f":"SUM(H173,H183,H208,H216)","v":0},0,0,0,0,0,0,{"$f":"SUM(O173,O183,O208,O216)","v":0},0]
[]
[null,null,null,null,null,null,null,{"$f":"L65-H217","v":0},{"$f":"O65-I217","v":0},null,{"$f":"P65-K217","v":0},{"$f":"S65-L217","v":0},null,{"$f":"T65-N217","v":0},{"$f":"W65-O217","v":0}]

{"sheet":"IP2","index":11,"n_rows":219,"n_cols":23,"rows_kept":219,"cut":false,"hidden":false,"merged":[[215,16,215,20],[209,16,209,20],[210,16,210,20],[211,16,211,20],[212,16,212,20],[213,16,213,20],[214,16,214,20],[208,16,208,20],[174,16,174,20],[181,16,181,20],[182,16,182,20],[183,16,183,20],[184,16,184,20],[196,16,196,20],[197,16,197,20],[198,16,198,20],[205,16,205,20],[206,16,206,20],[207,16,207,20],[175,16,175,20],[176,16,176,20],[177,16,177,20],[178,16,178,20],[187,16,187,20],[173,16,173,20],[129,16,129,20],[130,16,130,20],[131,16,131,20],[132,16,132,20],[133,16,133,20],[141,16,141,20],[142,16,142,20],[143,16,162,20],[170,16,170,20],[171,16,171,20],[172,16,172,20],[108,16,108,20],[108,21,108,23],[109,16,109,20],[109,21,109,23],[110,16,110,20],[110,21,110,23],[128,16,128,20],[117,16,117,20],[118,16,118,20],[119,16,119,20],[120,16,120,20],[121,16,121,20],[122,16,122,20],[123,16,123,20],[124,16,124,20],[125,16,125,20],[126,16,126,20],[127,16,127,20],[103,16,103,20],[103,21,103,23],[104,16,104,20],[104,21,104,23],[105,16,105,20],[105,21,105,23],[106,16,106,20],[106,21,106,23],[107,16,107,20],[107,21,107,23],[98,16,98,20],[98,21,98,23],[99,16,99,20],[99,21,99,23],[100,16,100,20],[100,21,100,23],[101,16,101,20],[101,21,101,23],[102,16,102,20],[102,21,102,23],[70,6,70,17],[73,6,87,17],[94,16,94,20],[94,21,94,23],[95,16,95,20],[95,21,95,23],[96,16,96,20],[96,21,96,23],[97,16,97,20],[97,21,97,23],[188,16,188,20],[189,16,189,20],[190,16,190,20],[191,16,191,20],[179,16,179,20],[180,16,180,20],[185,16,185,20],[186,16,186,20],[200,16,200,20],[201,16,201,20],[202,16,202,20],[203,16,203,20],[204,16,204,20],[192,16,192,20],[193,16,193,20],[194,16,194,20],[195,16,195,20],[199,16,199,20]]}
[]
[null,null,null,null,null,null,"Implementation programme:"]
[null,{"$f":"IF(G3=\"\",0,1)","v":0},null,null,null,2,null,"… select from dropdown list"]
[null,null,null,null,null,null,null,null,null,null,null,null,"Growth"]
[null,null,null,null,null,null,"Quick view","2020/21","2021/22","2022/23","2023/24","Trend","2021/22","2022/23","2023/24","Ave Ann",null,"2020/21","2021/22","2022/23","2023/24"]
[null,null,null,null,null,null,"Compensation of employees",{"$f":"SUMPRODUCT(($G$32:$G$65=$G6)*($K$32:$K$65))","v":0},{"$f":"SUMPRODUCT(($G$32:$G$65=$G6)*($O$32:$O$65))","v":0},{"$f":"SUMPRODUCT(($G$32:$G$65=$G6)*($S$32:$S$65))","v":0},{"$f":"SUMPRODUCT(($G$32:$G$65=$G6)*($W$32:$W$65))","v":0},null,{"$f":"IFERROR(I6/H6-1,0)","v":0},0,0,{"$f":"IFERROR(((K6/H6)^(1/3)-1),0)","v":0}]
[null,null,null,null,null,null,"Goods and services",{"$f":"SUMPRODUCT(($G$32:$G$65=$G7)*($K$32:$K$65))","v":0},{"$f":"SUMPRODUCT(($G$32:$G$65=$G7)*($O$32:$O$65))","v":0},{"$f":"SUMPRODUCT(($G$32:$G$65=$G7)*($S$32:$S$65))","v":0},{"$f":"SUMPRODUCT(($G$32:$G$65=$G7)*($W$32:$W$65))","v":0},null,0,0,0,0]
[null,null,null,null,null,null,"Transfers and subsidies",{"$f":"SUMPRODUCT(($G$32:$G$65=$G8)*($K$32:$K$65))","v":0},{"$f":"SUMPRODUCT(($G$32:$G$65=$G8)*($O$32:$O$65))","v":0},{"$f":"SUMPRODUCT(($G$32:$G$65=$G8)*($S$32:$S$65))","v":0},{"$f":"SUMPRODUCT(($G$32:$G$65=$G8)*($W$32:$W$65))","v":0},null,0,0,0,0]
[null,null,null,null,null,null,"Payments for capital assets",{"$f":"SUMPRODUCT(($G$32:$G$65=$G9)*($K$32:$K$65))","v":0},{"$f":"SUMPRODUCT(($G$32:$G$65=$G9)*($O$32:$O$65))","v":0},{"$f":"SUMPRODUCT(($G$32:$G$65=$G9)*($S$32:$S$65))","v":0},{"$f":"SUMPRODUCT(($G$32:$G$65=$G9)*($W$32:$W$65))","v":0},null,0,0,0,0]
[null,null,null,null,null,null,"Total",{"$f":"SUMPRODUCT(($G$32:$G$65=$G10)*($K$32:$K$65))","v":0},{"$f":"SUMPRODUCT(($G$32:$G$65=$G10)*($O$32:$O$65))","v":0},{"$f":"SUMPRODUCT(($G$32:$G$65=$G10)*($S$32:$S$65))","v":0},{"$f":"SUMPRODUCT(($G$32:$G$65=$G10)*($W$32:$W$65))","v":0},null,0,0,0,0]
[null,null,null,null,null,null,"Composition of spending (% of Total)"]
[null,null,null,null,null,null,"Compensation of employees",{"$f":"IFERROR(H6/H$10,\"\")","v":""},"","","",null,null,null,null,null,null,{"$f":"IF(H12>0.0595,H12,\"\")","v":""},"","",""]
[null,null,null,null,null,null,"Goods and services","","","","",null,null,null,null,null,null,"","","",""]
[null,null,null,null,null,null,"Transfers and subsidies","","","","",null,null,null,null,null,null,"","","",""]
[null,null,null,null,null,null,"Payments for capital assets","","","","",null,null,null,null,null,null,"","","",""]
[]
[null,null,null,null,null,null,"Division of Revenue","2020/21","2021/22","2022/23","2023/24","Trend","2021/22","2022/23","2023/24","Ave Ann"]
[{"$f":"$G$3","v":0},"NAT",null,null,null,null,"National",{"$f":"SUMPRODUCT(((T_DataComboFile[Implementation programme]=$G$3)*(T_DataComboFile[DOR]=$B18))*T_DataComboFile[2020/21 Revised])","v":2331086},{"$f":"SUMPRODUCT(((T_DataComboFile[Implementation programme]=$G$3)*(T_DataComboFile[DOR]=$B18))*T_DataComboFile[2021/22 Revised baseline])","v":2583809},{"$f":"SUMPRODUCT(((T_DataComboFile[Implementation programme]=$G$3)*(T_DataComboFile[DOR]=$B18))*T_DataComboFile[2022/23 Revised baseline])","v":2617960},{"$f":"SUMPRODUCT(((T_DataComboFile[Implementation programme]=$G$3)*(T_DataComboFile[DOR]=$B18))*T_DataComboFile[2023/24 Revised baseline])","v":2733345},null,{"$f":"IFERROR(I18/H18-1,0)","v":0.10841427557799244},{"$f":"IFERROR(J18/I18-1,0)","v":1.3217308245307535E-2},{"$f":"IFERROR(K18/J18-1,0)","v":4.4074393802808309E-2},{"$f":"IFERROR(((K18/H18)^(1/3)-1),0)","v":5.449708876349435E-2}]
[0,null,null,null,null,null,"Provincial",{"$f":"SUM(H20:H21)","v":0},0,0,0,null,0,0,0,0]
[0,"PES",null,null,null,null,"Provincial equitable share",{"$f":"SUMPRODUCT(((T_DataComboFile[Implementation programme]=$G$3)*(T_DataComboFile[DOR]=$B20))*T_DataComboFile[2020/21 Revised])","v":0},{"$f":"SUMPRODUCT(((T_DataComboFile[Implementation programme]=$G$3)*(T_DataComboFile[DOR]=$B20))*T_DataComboFile[2021/22 Revised baseline])","v":0},{"$f":"SUMPRODUCT(((T_DataComboFile[Implementation programme]=$G$3)*(T_DataComboFile[DOR]=$B20))*T_DataComboFile[2022/23 Revised baseline])","v":0},{"$f":"SUMPRODUCT(((T_DataComboFile[Implementation programme]=$G$3)*(T_DataComboFile[DOR]=$B20))*T_DataComboFile[2023/24 Revised baseline])","v":0},null,{"$f":"IFERROR(I20/H20-1,0)","v":0},0,0,{"$f":"IFERROR(((K20/H20)^(1/3)-1),0)","v":0}]
[0,"PCG",null,null,null,null,"Provincial conditional grants",{"$f":"SUMPRODUCT(((T_DataComboFile[Implementation programme]=$G$3)*(T_DataComboFile[DOR]=$B21))*T_DataComboFile[2020/21 Revised])","v":0},{"$f":"SUMPRODUCT(((T_DataComboFile[Implementation programme]=$G$3)*(T_DataComboFile[DOR]=$B21))*T_DataComboFile[2021/22 Revised baseline])","v":0},{"$f":"SUMPRODUCT(((T_DataComboFile[Implementation programme]=$G$3)*(T_DataComboFile[DOR]=$B21))*T_DataComboFile[2022/23 Revised baseline])","v":0},{"$f":"SUMPRODUCT(((T_DataComboFile[Implementation programme]=$G$3)*(T_DataComboFile[DOR]=$B21))*T_DataComboFile[2023/24 Revised baseline])","v":0},null,0,0,0,0]
[0,null,null,null,null,null,"Local government",{"$f":"SUM(H23:H25)","v":0},0,0,0,null,{"$f":"IFERROR(I22/H22-1,0)","v":0},{"$f":"IFERROR(J22/I22-1,0)","v":0},{"$f":"IFERROR(K22/J22-1,0)","v":0},{"$f":"IFERROR(((K22/H22)^(1/3)-1),0)","v":0}]
[0,"LES",null,null,null,null,"Local equitable share",{"$f":"SUMPRODUCT(((T_DataComboFile[Implementation programme]=$G$3)*(T_DataComboFile[DOR]=$B23))*T_DataComboFile[2020/21 Revised])","v":0},{"$f":"SUMPRODUCT(((T_DataComboFile[Implementation programme]=$G$3)*(T_DataComboFile[DOR]=$B23))*T_DataComboFile[2021/22 Revised baseline])","v":0},{"$f":"SUMPRODUCT(((T_DataComboFile[Implementation programme]=$G$3)*(T_DataComboFile[DOR]=$B23))*T_DataComboFile[2022/23 Revised baseline])","v":0},{"$f":"SUMPRODUCT(((T_DataComboFile[Implementation programme]=$G$3)*(T_DataComboFile[DOR]=$B23))*T_DataComboFile[2023/24 Revised baseline])","v":0},null,{"$f":"IFERROR(I23/H23-1,0)","v":0},0,0,{"$f":"IFERROR(((K23/H23)^(1/3)-1),0)","v":0}]
[0,"LCG",null,null,null,null,"Local conditional grants",{"$f":"SUMPRODUCT(((T_DataComboFile[Implementation programme]=$G$3)*(T_DataComboFile[DOR]=$B24))*T_DataComboFile[2020/21 Revised])","v":0},{"$f":"SUMPRODUCT(((T_DataComboFile[Implementation programme]=$G$3)*(T_DataComboFile[DOR]=$B24))*T_DataComboFile[2021/22 Revised baseline])","v":0},{"$f":"SUMPRODUCT(((T_DataComboFile[Implementation programme]=$G$3)*(T_DataComboFile[DOR]=$B24))*T_DataComboFile[2022/23 Revised baseline])","v":0},{"$f":"SUMPRODUCT(((T_DataComboFile[Implementation programme]=$G$3)*(T_DataComboFile[DOR]=$B24))*T_DataComboFile[2023/24 Revised baseline])","v":0},null,0,0,0,0]
[0,"GFL",null,null,null,null,"General fuel levy ",{"$f":"SUMPRODUCT(((T_DataComboFile[Implementation programme]=$G$3)*(T_DataComboFile[DOR]=$B25))*T_DataComboFile[2020/21 Revised])","v":0},{"$f":"SUMPRODUCT(((T_DataComboFile[Implementation programme]=$G$3)*(T_DataComboFile[DOR]=$B25))*T_DataComboFile[2021/22 Revised baseline])","v":0},{"$f":"SUMPRODUCT(((T_DataComboFile[Implementation programme]=$G$3)*(T_DataComboFile[DOR]=$B25))*T_DataComboFile[2022/23 Revised baseline])","v":0},{"$f":"SUMPRODUCT(((T_DataComboFile[Implementation programme]=$G$3)*(T_DataComboFile[DOR]=$B25))*T_DataComboFile[2023/24 Revised baseline])","v":0},null,0,0,0,0]
[]
[]
[null,null,null,null,null,null,{"$f":"G3","v":0}]
[{"$f":"$G$3","v":0},0,null,null,null,null,null,"2017/18","2018/19","2019/20","2020/21","2021/22",null,null,null,"2022/23",null,null,null,"2023/24"]
[{"$f":"$G$3","v":0},0,null,null,null,null,"Rand thousand","Audited outcome","Audited outcome","Pre-audited outcome","Budget","Baseline","Decrease","Increase","Revised baseline","Baseline","Decrease","Increase","Revised baseline","Baseline","Decrease","Increase","Revised baseline"]
[0,0,null,null,null,null,"Economic classification"]
[0,0,null,null,null,null,"Current payments",{"$f":"SUM(H33:H35)","v":0},0,0,0,0,0,0,0,0,0,0,0,0,0,0,0]
[0,0,null,null,null,null,"Compensation of employees",{"$f":"SUMPRODUCT(((T_DataComboFile[Implementation programme]=$G$3)*(T_DataComboFile[Econ3]=$G33))*T_DataComboFile[2017/18]*$B$3)","v":0},{"$f":"SUMPRODUCT(((T_DataComboFile[Implementation programme]=$G$3)*(T_DataComboFile[Econ3]=$G33))*T_DataComboFile[2018/19]*$B$3)","v":0},{"$f":"SUMPRODUCT(((T_DataComboFile[Implementation programme]=$G$3)*(T_DataComboFile[Econ3]=$G33))*T_DataComboFile[2019/20 Revised estimate]*$B$3)","v":0},{"$f":"SUMPRODUCT(((T_DataComboFile[Implementation programme]=$G$3)*(T_DataComboFile[Econ3]=$G33))*T_DataComboFile[2020/21 Revised]*$B$3)","v":0},{"$f":"SUMPRODUCT(((T_DataComboFile[Implementation programme]=$G$3)*(T_DataComboFile[Econ3]=$G33))*T_DataComboFile[2021/22 Baseline]*$B$3)","v":0},{"$f":"SUMPRODUCT(((T_DataComboFile[Implementation programme]=$G$3)*(T_DataComboFile[Econ3]=$G33))*T_DataComboFile[2021/22 Reduction]*$B$3)","v":0},{"$f":"SUMPRODUCT(((T_DataComboFile[Implementation programme]=$G$3)*(T_DataComboFile[Econ3]=$G33))*T_DataComboFile[2021/22 Increase]*$B$3)","v":0},{"$f":"L33+M33+N33","v":0},{"$f":"SUMPRODUCT(((T_DataComboFile[Implementation programme]=$G$3)*(T_DataComboFile[Econ3]=$G33))*T_DataComboFile[2022/23 Baseline]*$B$3)","v":0},{"$f":"SUMPRODUCT(((T_DataComboFile[Implementation programme]=$G$3)*(T_DataComboFile[Econ3]=$G33))*T_DataComboFile[2022/23 Reduction]*$B$3)","v":0},{"$f":"SUMPRODUCT(((T_DataComboFile[Implementation programme]=$G$3)*(T_DataComboFile[Econ3]=$G33))*T_DataComboFile[2022/23 Increase]*$B$3)","v":0},{"$f":"P33+Q33+R33","v":0},{"$f":"SUMPRODUCT(((T_DataComboFile[Implementation programme]=$G$3)*(T_DataComboFile[Econ3]=$G33))*T_DataComboFile[2023/24 Baseline]*$B$3)","v":0},{"$f":"SUMPRODUCT(((T_DataComboFile[Implementation programme]=$G$3)*(T_DataComboFile[Econ3]=$G33))*T_DataComboFile[2023/24 Reduction]*$B$3)","v":0},{"$f":"SUMPRODUCT(((T_DataComboFile[Implementation programme]=$G$3)*(T_DataComboFile[Econ3]=$G33))*T_DataComboFile[2023/24 Increase]*$B$3)","v":0},{"$f":"T33+U33+V33","v":0}]
[0,0,null,null,null,null,"Goods and services",{"$f":"SUMPRODUCT(((T_DataComboFile[Implementation programme]=$G$3)*(T_DataComboFile[Econ3]=$G34))*T_DataComboFile[2017/18]*$B$3)","v":0},{"$f":"SUMPRODUCT(((T_DataComboFile[Implementation programme]=$G$3)*(T_DataComboFile[Econ3]=$G34))*T_DataComboFile[2018/19]*$B$3)","v":0},{"$f":"SUMPRODUCT(((T_DataComboFile[Implementation programme]=$G$3)*(T_DataComboFile[Econ3]=$G34))*T_DataComboFile[2019/20 Revised estimate]*$B$3)","v":0},{"$f":"SUMPRODUCT(((T_DataComboFile[Implementation programme]=$G$3)*(T_DataComboFile[Econ3]=$G34))*T_DataComboFile[2020/21 Revised]*$B$3)","v":0},{"$f":"SUMPRODUCT(((T_DataComboFile[Implementation programme]=$G$3)*(T_DataComboFile[Econ3]=$G34))*T_DataComboFile[2021/22 Baseline]*$B$3)","v":0},{"$f":"SUMPRODUCT(((T_DataComboFile[Implementation programme]=$G$3)*(T_DataComboFile[Econ3]=$G34))*T_DataComboFile[2021/22 Reduction]*$B$3)","v":0},{"$f":"SUMPRODUCT(((T_DataComboFile[Implementation programme]=$G$3)*(T_DataComboFile[Econ3]=$G34))*T_DataComboFile[2021/22 Increase]*$B$3)","v":0},0,{"$f":"SUMPRODUCT(((T_DataComboFile[Implementation programme]=$G$3)*(T_DataComboFile[Econ3]=$G34))*T_DataComboFile[2022/23 Baseline]*$B$3)","v":0},{"$f":"SUMPRODUCT(((T_DataComboFile[Implementation programme]=$G$3)*(T_DataComboFile[Econ3]=$G34))*T_DataComboFile[2022/23 Reduction]*$B$3)","v":0},{"$f":"SUMPRODUCT(((T_DataComboFile[Implementation programme]=$G$3)*(T_DataComboFile[Econ3]=$G34))*T_DataComboFile[2022/23 Increase]*$B$3)","v":0},0,{"$f":"SUMPRODUCT(((T_DataComboFile[Implementation programme]=$G$3)*(T_DataComboFile[Econ3]=$G34))*T_DataComboFile[2023/24 Baseline]*$B$3)","v":0},{"$f":"SUMPRODUCT(((T_DataComboFile[Implementation programme]=$G$3)*(T_DataComboFile[Econ3]=$G34))*T_DataComboFile[2023/24 Reduction]*$B$3)","v":0},{"$f":"SUMPRODUCT(((T_DataComboFile[Implementation programme]=$G$3)*(T_DataComboFile[Econ3]=$G34))*T_DataComboFile[2023/24 Increase]*$B$3)","v":0},0]
[0,0,null,null,null,null,"Interest and rent on land",{"$f":"SUMPRODUCT(((T_DataComboFile[Implementation programme]=$G$3)*(T_DataComboFile[Econ3]=$G35))*T_DataComboFile[2017/18]*$B$3)","v":0},{"$f":"SUMPRODUCT(((T_DataComboFile[Implementation programme]=$G$3)*(T_DataComboFile[Econ3]=$G35))*T_DataComboFile[2018/19]*$B$3)","v":0},{"$f":"SUMPRODUCT(((T_DataComboFile[Implementation programme]=$G$3)*(T_DataComboFile[Econ3]=$G35))*T_DataComboFile[2019/20 Revised estimate]*$B$3)","v":0},{"$f":"SUMPRODUCT(((T_DataComboFile[Implementation programme]=$G$3)*(T_DataComboFile[Econ3]=$G35))*T_DataComboFile[2020/21 Revised]*$B$3)","v":0},{"$f":"SUMPRODUCT(((T_DataComboFile[Implementation programme]=$G$3)*(T_DataComboFile[Econ3]=$G35))*T_DataComboFile[2021/22 Baseline]*$B$3)","v":0},{"$f":"SUMPRODUCT(((T_DataComboFile[Implementation programme]=$G$3)*(T_DataComboFile[Econ3]=$G35))*T_DataComboFile[2021/22 Reduction]*$B$3)","v":0},{"$f":"SUMPRODUCT(((T_DataComboFile[Implementation programme]=$G$3)*(T_DataComboFile[Econ3]=$G35))*T_DataComboFile[2021/22 Increase]*$B$3)","v":0},0,{"$f":"SUMPRODUCT(((T_DataComboFile[Implementation programme]=$G$3)*(T_DataComboFile[Econ3]=$G35))*T_DataComboFile[2022/23 Baseline]*$B$3)","v":0},{"$f":"SUMPRODUCT(((T_DataComboFile[Implementation programme]=$G$3)*(T_DataComboFile[Econ3]=$G35))*T_DataComboFile[2022/23 Reduction]*$B$3)","v":0},{"$f":"SUMPRODUCT(((T_DataComboFile[Implementation programme]=$G$3)*(T_DataComboFile[Econ3]=$G35))*T_DataComboFile[2022/23 Increase]*$B$3)","v":0},0,{"$f":"SUMPRODUCT(((T_DataComboFile[Implementation programme]=$G$3)*(T_DataComboFile[Econ3]=$G35))*T_DataComboFile[2023/24 Baseline]*$B$3)","v":0},{"$f":"SUMPRODUCT(((T_DataComboFile[Implementation programme]=$G$3)*(T_DataComboFile[Econ3]=$G35))*T_DataComboFile[2023/24 Reduction]*$B$3)","v":0},{"$f":"SUMPRODUCT(((T_DataComboFile[Implementation programme]=$G$3)*(T_DataComboFile[Econ3]=$G35))*T_DataComboFile[2023/24 Increase]*$B$3)","v":0},0]
[0,0,null,null,null,null,"Transfers and subsidies",{"$f":"SUM(H37,H40,H43:H45,H48:H49)","v":0},0,0,0,0,0,0,0,0,0,0,0,0,0,0,0]
[0,0,null,null,null,null,"Provinces and municipalities",{"$f":"SUM(H38:H39)","v":0},0,0,0,0,0,0,0,0,0,0,0,0,0,0,0]
[0,0,null,null,null,null,"Provinces",{"$f":"SUMPRODUCT(((T_DataComboFile[Implementation programme]=$G$3)*(T_DataComboFile[Econ4]=$G38))*T_DataComboFile[2017/18]*$B$3)","v":0},{"$f":"SUMPRODUCT(((T_DataComboFile[Implementation programme]=$G$3)*(T_DataComboFile[Econ4]=$G38))*T_DataComboFile[2018/19]*$B$3)","v":0},{"$f":"SUMPRODUCT(((T_DataComboFile[Implementation programme]=$G$3)*(T_DataComboFile[Econ4]=$G38))*T_DataComboFile[2019/20 Revised estimate]*$B$3)","v":0},{"$f":"SUMPRODUCT(((T_DataComboFile[Implementation programme]=$G$3)*(T_DataComboFile[Econ4]=$G38))*T_DataComboFile[2020/21 Revised]*$B$3)","v":0},{"$f":"SUMPRODUCT(((T_DataComboFile[Implementation programme]=$G$3)*(T_DataComboFile[Econ4]=$G38))*T_DataComboFile[2021/22 Baseline]*$B$3)","v":0},{"$f":"SUMPRODUCT(((T_DataComboFile[Implementation programme]=$G$3)*(T_DataComboFile[Econ4]=$G38))*T_DataComboFile[2021/22 Reduction]*$B$3)","v":0},{"$f":"SUMPRODUCT(((T_DataComboFile[Implementation programme]=$G$3)*(T_DataComboFile[Econ4]=$G38))*T_DataComboFile[2021/22 Increase]*$B$3)","v":0},{"$f":"L38+M38+N38","v":0},{"$f":"SUMPRODUCT(((T_DataComboFile[Implementation programme]=$G$3)*(T_DataComboFile[Econ4]=$G38))*T_DataComboFile[2022/23 Baseline]*$B$3)","v":0},{"$f":"SUMPRODUCT(((T_DataComboFile[Implementation programme]=$G$3)*(T_DataComboFile[Econ4]=$G38))*T_DataComboFile[2022/23 Reduction]*$B$3)","v":0},{"$f":"SUMPRODUCT(((T_DataComboFile[Implementation programme]=$G$3)*(T_DataComboFile[Econ4]=$G38))*T_DataComboFile[2022/23 Increase]*$B$3)","v":0},{"$f":"P38+Q38+R38","v":0},{"$f":"SUMPRODUCT(((T_DataComboFile[Implementation programme]=$G$3)*(T_DataComboFile[Econ4]=$G38))*T_DataComboFile[2023/24 Baseline]*$B$3)","v":0},{"$f":"SUMPRODUCT(((T_DataComboFile[Implementation programme]=$G$3)*(T_DataComboFile[Econ4]=$G38))*T_DataComboFile[2023/24 Reduction]*$B$3)","v":0},{"$f":"SUMPRODUCT(((T_DataComboFile[Implementation programme]=$G$3)*(T_DataComboFile[Econ4]=$G38))*T_DataComboFile[2023/24 Increase]*$B$3)","v":0},{"$f":"T38+U38+V38","v":0}]
[0,0,null,null,null,null,"Municipalities",{"$f":"SUMPRODUCT(((T_DataComboFile[Implementation programme]=$G$3)*(T_DataComboFile[Econ4]=$G39))*T_DataComboFile[2017/18]*$B$3)","v":0},{"$f":"SUMPRODUCT(((T_DataComboFile[Implementation programme]=$G$3)*(T_DataComboFile[Econ4]=$G39))*T_DataComboFile[2018/19]*$B$3)","v":0},{"$f":"SUMPRODUCT(((T_DataComboFile[Implementation programme]=$G$3)*(T_DataComboFile[Econ4]=$G39))*T_DataComboFile[2019/20 Revised estimate]*$B$3)","v":0},{"$f":"SUMPRODUCT(((T_DataComboFile[Implementation programme]=$G$3)*(T_DataComboFile[Econ4]=$G39))*T_DataComboFile[2020/21 Revised]*$B$3)","v":0},{"$f":"SUMPRODUCT(((T_DataComboFile[Implementation programme]=$G$3)*(T_DataComboFile[Econ4]=$G39))*T_DataComboFile[2021/22 Baseline]*$B$3)","v":0},{"$f":"SUMPRODUCT(((T_DataComboFile[Implementation programme]=$G$3)*(T_DataComboFile[Econ4]=$G39))*T_DataComboFile[2021/22 Reduction]*$B$3)","v":0},{"$f":"SUMPRODUCT(((T_DataComboFile[Implementation programme]=$G$3)*(T_DataComboFile[Econ4]=$G39))*T_DataComboFile[2021/22 Increase]*$B$3)","v":0},0,{"$f":"SUMPRODUCT(((T_DataComboFile[Implementation programme]=$G$3)*(T_DataComboFile[Econ4]=$G39))*T_DataComboFile[2022/23 Baseline]*$B$3)","v":0},{"$f":"SUMPRODUCT(((T_DataComboFile[Implementation programme]=$G$3)*(T_DataComboFile[Econ4]=$G39))*T_DataComboFile[2022/23 Reduction]*$B$3)","v":0},{"$f":"SUMPRODUCT(((T_DataComboFile[Implementation programme]=$G$3)*(T_DataComboFile[Econ4]=$G39))*T_DataComboFile[2022/23 Increase]*$B$3)","v":0},0,{"$f":"SUMPRODUCT(((T_DataComboFile[Implementation programme]=$G$3)*(T_DataComboFile[Econ4]=$G39))*T_DataComboFile[2023/24 Baseline]*$B$3)","v":0},{"$f":"SUMPRODUCT(((T_DataComboFile[Implementation programme]=$G$3)*(T_DataComboFile[Econ4]=$G39))*T_DataComboFile[2023/24 Reduction]*$B$3)","v":0},{"$f":"SUMPRODUCT(((T_DataComboFile[Implementation programme]=$G$3)*(T_DataComboFile[Econ4]=$G39))*T_DataComboFile[2023/24 Increase]*$B$3)","v":0},0]
[0,0,null,null,null,null,"Departmental agencies and accounts",{"$f":"SUM(H41:H42)","v":0},0,0,0,0,0,0,0,0,0,0,0,0,0,0,0]
[0,0,null,null,null,null,"Social security funds",{"$f":"SUMPRODUCT(((T_DataComboFile[Implementation programme]=$G$3)*(T_DataComboFile[Econ4]=$G41))*T_DataComboFile[2017/18]*$B$3)","v":0},{"$f":"SUMPRODUCT(((T_DataComboFile[Implementation programme]=$G$3)*(T_DataComboFile[Econ4]=$G41))*T_DataComboFile[2018/19]*$B$3)","v":0},{"$f":"SUMPRODUCT(((T_DataComboFile[Implementation programme]=$G$3)*(T_DataComboFile[Econ4]=$G41))*T_DataComboFile[2019/20 Revised estimate]*$B$3)","v":0},{"$f":"SUMPRODUCT(((T_DataComboFile[Implementation programme]=$G$3)*(T_DataComboFile[Econ4]=$G41))*T_DataComboFile[2020/21 Revised]*$B$3)","v":0},{"$f":"SUMPRODUCT(((T_DataComboFile[Implementation programme]=$G$3)*(T_DataComboFile[Econ4]=$G41))*T_DataComboFile[2021/22 Baseline]*$B$3)","v":0},{"$f":"SUMPRODUCT(((T_DataComboFile[Implementation programme]=$G$3)*(T_DataComboFile[Econ4]=$G41))*T_DataComboFile[2021/22 Reduction]*$B$3)","v":0},{"$f":"SUMPRODUCT(((T_DataComboFile[Implementation programme]=$G$3)*(T_DataComboFile[Econ4]=$G41))*T_DataComboFile[2021/22 Increase]*$B$3)","v":0},{"$f":"L41+M41+N41","v":0},{"$f":"SUMPRODUCT(((T_DataComboFile[Implementation programme]=$G$3)*(T_DataComboFile[Econ4]=$G41))*T_DataComboFile[2022/23 Baseline]*$B$3)","v":0},{"$f":"SUMPRODUCT(((T_DataComboFile[Implementation programme]=$G$3)*(T_DataComboFile[Econ4]=$G41))*T_DataComboFile[2022/23 Reduction]*$B$3)","v":0},{"$f":"SUMPRODUCT(((T_DataComboFile[Implementation programme]=$G$3)*(T_DataComboFile[Econ4]=$G41))*T_DataComboFile[2022/23 Increase]*$B$3)","v":0},{"$f":"P41+Q41+R41","v":0},{"$f":"SUMPRODUCT(((T_DataComboFile[Implementation programme]=$G$3)*(T_DataComboFile[Econ4]=$G41))*T_DataComboFile[2023/24 Baseline]*$B$3)","v":0},{"$f":"SUMPRODUCT(((T_DataComboFile[Implementation programme]=$G$3)*(T_DataComboFile[Econ4]=$G41))*T_DataComboFile[2023/24 Reduction]*$B$3)","v":0},{"$f":"SUMPRODUCT(((T_DataComboFile[Implementation programme]=$G$3)*(T_DataComboFile[Econ4]=$G41))*T_DataComboFile[2023/24 Increase]*$B$3)","v":0},{"$f":"T41+U41+V41","v":0}]
[0,0,null,null,null,null,"Departmental agencies (non-business entities)",{"$f":"SUMPRODUCT(((T_DataComboFile[Implementation programme]=$G$3)*(T_DataComboFile[Econ4]=$G42))*T_DataComboFile[2017/18]*$B$3)","v":0},{"$f":"SUMPRODUCT(((T_DataComboFile[Implementation programme]=$G$3)*(T_DataComboFile[Econ4]=$G42))*T_DataComboFile[2018/19]*$B$3)","v":0},{"$f":"SUMPRODUCT(((T_DataComboFile[Implementation programme]=$G$3)*(T_DataComboFile[Econ4]=$G42))*T_DataComboFile[2019/20 Revised estimate]*$B$3)","v":0},{"$f":"SUMPRODUCT(((T_DataComboFile[Implementation programme]=$G$3)*(T_DataComboFile[Econ4]=$G42))*T_DataComboFile[2020/21 Revised]*$B$3)","v":0},{"$f":"SUMPRODUCT(((T_DataComboFile[Implementation programme]=$G$3)*(T_DataComboFile[Econ4]=$G42))*T_DataComboFile[2021/22 Baseline]*$B$3)","v":0},{"$f":"SUMPRODUCT(((T_DataComboFile[Implementation programme]=$G$3)*(T_DataComboFile[Econ4]=$G42))*T_DataComboFile[2021/22 Reduction]*$B$3)","v":0},{"$f":"SUMPRODUCT(((T_DataComboFile[Implementation programme]=$G$3)*(T_DataComboFile[Econ4]=$G42))*T_DataComboFile[2021/22 Increase]*$B$3)","v":0},0,{"$f":"SUMPRODUCT(((T_DataComboFile[Implementation programme]=$G$3)*(T_DataComboFile[Econ4]=$G42))*T_DataComboFile[2022/23 Baseline]*$B$3)","v":0},{"$f":"SUMPRODUCT(((T_DataComboFile[Implementation programme]=$G$3)*(T_DataComboFile[Econ4]=$G42))*T_DataComboFile[2022/23 Reduction]*$B$3)","v":0},{"$f":"SUMPRODUCT(((T_DataComboFile[Implementation programme]=$G$3)*(T_DataComboFile[Econ4]=$G42))*T_DataComboFile[2022/23 Increase]*$B$3)","v":0},0,{"$f":"SUMPRODUCT(((T_DataComboFile[Implementation programme]=$G$3)*(T_DataComboFile[Econ4]=$G42))*T_DataComboFile[2023/24 Baseline]*$B$3)","v":0},{"$f":"SUMPRODUCT(((T_DataComboFile[Implementation programme]=$G$3)*(T_DataComboFile[Econ4]=$G42))*T_DataComboFile[2023/24 Reduction]*$B$3)","v":0},{"$f":"SUMPRODUCT(((T_DataComboFile[Implementation programme]=$G$3)*(T_DataComboFile[Econ4]=$G42))*T_DataComboFile[2023/24 Increase]*$B$3)","v":0},0]
[0,0,null,null,null,null,"Higher education institutions",{"$f":"SUMPRODUCT(((T_DataComboFile[Implementation programme]=$G$3)*(T_DataComboFile[Econ3]=$G43))*T_DataComboFile[2017/18]*$B$3)","v":0},{"$f":"SUMPRODUCT(((T_DataComboFile[Implementation programme]=$G$3)*(T_DataComboFile[Econ3]=$G43))*T_DataComboFile[2018/19]*$B$3)","v":0},{"$f":"SUMPRODUCT(((T_DataComboFile[Implementation programme]=$G$3)*(T_DataComboFile[Econ3]=$G43))*T_DataComboFile[2019/20 Revised estimate]*$B$3)","v":0},{"$f":"SUMPRODUCT(((T_DataComboFile[Implementation programme]=$G$3)*(T_DataComboFile[Econ3]=$G43))*T_DataComboFile[2020/21 Revised]*$B$3)","v":0},{"$f":"SUMPRODUCT(((T_DataComboFile[Implementation programme]=$G$3)*(T_DataComboFile[Econ3]=$G43))*T_DataComboFile[2021/22 Baseline]*$B$3)","v":0},{"$f":"SUMPRODUCT(((T_DataComboFile[Implementation programme]=$G$3)*(T_DataComboFile[Econ3]=$G43))*T_DataComboFile[2021/22 Reduction]*$B$3)","v":0},{"$f":"SUMPRODUCT(((T_DataComboFile[Implementation programme]=$G$3)*(T_DataComboFile[Econ3]=$G43))*T_DataComboFile[2021/22 Increase]*$B$3)","v":0},0,{"$f":"SUMPRODUCT(((T_DataComboFile[Implementation programme]=$G$3)*(T_DataComboFile[Econ3]=$G43))*T_DataComboFile[2022/23 Baseline]*$B$3)","v":0},{"$f":"SUMPRODUCT(((T_DataComboFile[Implementation programme]=$G$3)*(T_DataComboFile[Econ3]=$G43))*T_DataComboFile[2022/23 Reduction]*$B$3)","v":0},{"$f":"SUMPRODUCT(((T_DataComboFile[Implementation programme]=$G$3)*(T_DataComboFile[Econ3]=$G43))*T_DataComboFile[2022/23 Increase]*$B$3)","v":0},0,{"$f":"SUMPRODUCT(((T_DataComboFile[Implementation programme]=$G$3)*(T_DataComboFile[Econ3]=$G43))*T_DataComboFile[2023/24 Baseline]*$B$3)","v":0},{"$f":"SUMPRODUCT(((T_DataComboFile[Implementation programme]=$G$3)*(T_DataComboFile[Econ3]=$G43))*T_DataComboFile[2023/24 Reduction]*$B$3)","v":0},{"$f":"SUMPRODUCT(((T_DataComboFile[Implementation programme]=$G$3)*(T_DataComboFile[Econ3]=$G43))*T_DataComboFile[2023/24 Increase]*$B$3)","v":0},0]
[0,0,null,null,null,null,"Foreign governments and international organisations",{"$f":"SUMPRODUCT(((T_DataComboFile[Implementation programme]=$G$3)*(T_DataComboFile[Econ3]=$G44))*T_DataComboFile[2017/18]*$B$3)","v":0},{"$f":"SUMPRODUCT(((T_DataComboFile[Implementation programme]=$G$3)*(T_DataComboFile[Econ3]=$G44))*T_DataComboFile[2018/19]*$B$3)","v":0},{"$f":"SUMPRODUCT(((T_DataComboFile[Implementation programme]=$G$3)*(T_DataComboFile[Econ3]=$G44))*T_DataComboFile[2019/20 Revised estimate]*$B$3)","v":0},{"$f":"SUMPRODUCT(((T_DataComboFile[Implementation programme]=$G$3)*(T_DataComboFile[Econ3]=$G44))*T_DataComboFile[2020/21 Revised]*$B$3)","v":0},{"$f":"SUMPRODUCT(((T_DataComboFile[Implementation programme]=$G$3)*(T_DataComboFile[Econ3]=$G44))*T_DataComboFile[2021/22 Baseline]*$B$3)","v":0},{"$f":"SUMPRODUCT(((T_DataComboFile[Implementation programme]=$G$3)*(T_DataComboFile[Econ3]=$G44))*T_DataComboFile[2021/22 Reduction]*$B$3)","v":0},{"$f":"SUMPRODUCT(((T_DataComboFile[Implementation programme]=$G$3)*(T_DataComboFile[Econ3]=$G44))*T_DataComboFile[2021/22 Increase]*$B$3)","v":0},0,{"$f":"SUMPRODUCT(((T_DataComboFile[Implementation programme]=$G$3)*(T_DataComboFile[Econ3]=$G44))*T_DataComboFile[2022/23 Baseline]*$B$3)","v":0},{"$f":"SUMPRODUCT(((T_DataComboFile[Implementation programme]=$G$3)*(T_DataComboFile[Econ3]=$G44))*T_DataComboFile[2022/23 Reduction]*$B$3)","v":0},{"$f":"SUMPRODUCT(((T_DataComboFile[Implementation programme]=$G$3)*(T_DataComboFile[Econ3]=$G44))*T_DataComboFile[2022/23 Increase]*$B$3)","v":0},0,{"$f":"SUMPRODUCT(((T_DataComboFile[Implementation programme]=$G$3)*(T_DataComboFile[Econ3]=$G44))*T_DataComboFile[2023/24 Baseline]*$B$3)","v":0},{"$f":"SUMPRODUCT(((T_DataComboFile[Implementation programme]=$G$3)*(T_DataComboFile[Econ3]=$G44))*T_DataComboFile[2023/24 Reduction]*$B$3)","v":0},{"$f":"SUMPRODUCT(((T_DataComboFile[Implementation programme]=$G$3)*(T_DataComboFile[Econ3]=$G44))*T_DataComboFile[2023/24 Increase]*$B$3)","v":0},0]
[0,0,null,null,null,null,"Public corporations and private enterprises",{"$f":"SUM(H46:H47)","v":0},0,0,0,0,0,0,0,0,0,0,0,0,0,0,0]
[0,0,null,null,null,null,"Public corporations",{"$f":"SUMPRODUCT(((T_DataComboFile[Implementation programme]=$G$3)*(T_DataComboFile[Econ4]=$G46))*T_DataComboFile[2017/18]*$B$3)","v":0},{"$f":"SUMPRODUCT(((T_DataComboFile[Implementation programme]=$G$3)*(T_DataComboFile[Econ4]=$G46))*T_DataComboFile[2018/19]*$B$3)","v":0},{"$f":"SUMPRODUCT(((T_DataComboFile[Implementation programme]=$G$3)*(T_DataComboFile[Econ4]=$G46))*T_DataComboFile[2019/20 Revised estimate]*$B$3)","v":0},{"$f":"SUMPRODUCT(((T_DataComboFile[Implementation programme]=$G$3)*(T_DataComboFile[Econ4]=$G46))*T_DataComboFile[2020/21 Revised]*$B$3)","v":0},{"$f":"SUMPRODUCT(((T_DataComboFile[Implementation programme]=$G$3)*(T_DataComboFile[Econ4]=$G46))*T_DataComboFile[2021/22 Baseline]*$B$3)","v":0},{"$f":"SUMPRODUCT(((T_DataComboFile[Implementation programme]=$G$3)*(T_DataComboFile[Econ4]=$G46))*T_DataComboFile[2021/22 Reduction]*$B$3)","v":0},{"$f":"SUMPRODUCT(((T_DataComboFile[Implementation programme]=$G$3)*(T_DataComboFile[Econ4]=$G46))*T_DataComboFile[2021/22 Increase]*$B$3)","v":0},{"$f":"L46+M46+N46","v":0},{"$f":"SUMPRODUCT(((T_DataComboFile[Implementation programme]=$G$3)*(T_DataComboFile[Econ4]=$G46))*T_DataComboFile[2022/23 Baseline]*$B$3)","v":0},{"$f":"SUMPRODUCT(((T_DataComboFile[Implementation programme]=$G$3)*(T_DataComboFile[Econ4]=$G46))*T_DataComboFile[2022/23 Reduction]*$B$3)","v":0},{"$f":"SUMPRODUCT(((T_DataComboFile[Implementation programme]=$G$3)*(T_DataComboFile[Econ4]=$G46))*T_DataComboFile[2022/23 Increase]*$B$3)","v":0},{"$f":"P46+Q46+R46","v":0},{"$f":"SUMPRODUCT(((T_DataComboFile[Implementation programme]=$G$3)*(T_DataComboFile[Econ4]=$G46))*T_DataComboFile[2023/24 Baseline]*$B$3)","v":0},{"$f":"SUMPRODUCT(((T_DataComboFile[Implementation programme]=$G$3)*(T_DataComboFile[Econ4]=$G46))*T_DataComboFile[2023/24 Reduction]*$B$3)","v":0},{"$f":"SUMPRODUCT(((T_DataComboFile[Implementation programme]=$G$3)*(T_DataComboFile[Econ4]=$G46))*T_DataComboFile[2023/24 Increase]*$B$3)","v":0},{"$f":"T46+U46+V46","v":0}]
[0,0,null,null,null,null,"Private enterprises",{"$f":"SUMPRODUCT(((T_DataComboFile[Implementation programme]=$G$3)*(T_DataComboFile[Econ4]=$G47))*T_DataComboFile[2017/18]*$B$3)","v":0},{"$f":"SUMPRODUCT(((T_DataComboFile[Implementation programme]=$G$3)*(T_DataComboFile[Econ4]=$G47))*T_DataComboFile[2018/19]*$B$3)","v":0},{"$f":"SUMPRODUCT(((T_DataComboFile[Implementation programme]=$G$3)*(T_DataComboFile[Econ4]=$G47))*T_DataComboFile[2019/20 Revised estimate]*$B$3)","v":0},{"$f":"SUMPRODUCT(((T_DataComboFile[Implementation programme]=$G$3)*(T_DataComboFile[Econ4]=$G47))*T_DataComboFile[2020/21 Revised]*$B$3)","v":0},{"$f":"SUMPRODUCT(((T_DataComboFile[Implementation programme]=$G$3)*(T_DataComboFile[Econ4]=$G47))*T_DataComboFile[2021/22 Baseline]*$B$3)","v":0},{"$f":"SUMPRODUCT(((T_DataComboFile[Implementation programme]=$G$3)*(T_DataComboFile[Econ4]=$G47))*T_DataComboFile[2021/22 Reduction]*$B$3)","v":0},{"$f":"SUMPRODUCT(((T_DataComboFile[Implementation programme]=$G$3)*(T_DataComboFile[Econ4]=$G47))*T_DataComboFile[2021/22 Increase]*$B$3)","v":0},0,{"$f":"SUMPRODUCT(((T_DataComboFile[Implementation programme]=$G$3)*(T_DataComboFile[Econ4]=$G47))*T_DataComboFile[2022/23 Baseline]*$B$3)","v":0},{"$f":"SUMPRODUCT(((T_DataComboFile[Implementation programme]=$G$3)*(T_DataComboFile[Econ4]=$G47))*T_DataComboFile[2022/23 Reduction]*$B$3)","v":0},{"$f":"SUMPRODUCT(((T_DataComboFile[Implementation programme]=$G$3)*(T_DataComboFile[Econ4]=$G47))*T_DataComboFile[2022/23 Increase]*$B$3)","v":0},0,{"$f":"SUMPRODUCT(((T_DataComboFile[Implementation programme]=$G$3)*(T_DataComboFile[Econ4]=$G47))*T_DataComboFile[2023/24 Baseline]*$B$3)","v":0},{"$f":"SUMPRODUCT(((T_DataComboFile[Implementation programme]=$G$3)*(T_DataComboFile[Econ4]=$G47))*T_DataComboFile[2023/24 Reduction]*$B$3)","v":0},{"$f":"SUMPRODUCT(((T_DataComboFile[Implementation programme]=$G$3)*(T_DataComboFile[Econ4]=$G47))*T_DataComboFile[2023/24 Increase]*$B$3)","v":0},0]
[0,0,null,null,null,null,"Non-profit institutions",{"$f":"SUMPRODUCT(((T_DataComboFile[Implementation programme]=$G$3)*(T_DataComboFile[Econ3]=$G48))*T_DataComboFile[2017/18]*$B$3)","v":0},{"$f":"SUMPRODUCT(((T_DataComboFile[Implementation programme]=$G$3)*(T_DataComboFile[Econ3]=$G48))*T_DataComboFile[2018/19]*$B$3)","v":0},{"$f":"SUMPRODUCT(((T_DataComboFile[Implementation programme]=$G$3)*(T_DataComboFile[Econ3]=$G48))*T_DataComboFile[2019/20 Revised estimate]*$B$3)","v":0},{"$f":"SUMPRODUCT(((T_DataComboFile[Implementation programme]=$G$3)*(T_DataComboFile[Econ3]=$G48))*T_DataComboFile[2020/21 Revised]*$B$3)","v":0},{"$f":"SUMPRODUCT(((T_DataComboFile[Implementation programme]=$G$3)*(T_DataComboFile[Econ3]=$G48))*T_DataComboFile[2021/22 Baseline]*$B$3)","v":0},{"$f":"SUMPRODUCT(((T_DataComboFile[Implementation programme]=$G$3)*(T_DataComboFile[Econ3]=$G48))*T_DataComboFile[2021/22 Reduction]*$B$3)","v":0},{"$f":"SUMPRODUCT(((T_DataComboFile[Implementation programme]=$G$3)*(T_DataComboFile[Econ3]=$G48))*T_DataComboFile[2021/22 Increase]*$B$3)","v":0},0,{"$f":"SUMPRODUCT(((T_DataComboFile[Implementation programme]=$G$3)*(T_DataComboFile[Econ3]=$G48))*T_DataComboFile[2022/23 Baseline]*$B$3)","v":0},{"$f":"SUMPRODUCT(((T_DataComboFile[Implementation programme]=$G$3)*(T_DataComboFile[Econ3]=$G48))*T_DataComboFile[2022/23 Reduction]*$B$3)","v":0},{"$f":"SUMPRODUCT(((T_DataComboFile[Implementation programme]=$G$3)*(T_DataComboFile[Econ3]=$G48))*T_DataComboFile[2022/23 Increase]*$B$3)","v":0},0,{"$f":"SUMPRODUCT(((T_DataComboFile[Implementation programme]=$G$3)*(T_DataComboFile[Econ3]=$G48))*T_DataComboFile[2023/24 Baseline]*$B$3)","v":0},{"$f":"SUMPRODUCT(((T_DataComboFile[Implementation programme]=$G$3)*(T_DataComboFile[Econ3]=$G48))*T_DataComboFile[2023/24 Reduction]*$B$3)","v":0},{"$f":"SUMPRODUCT(((T_DataComboFile[Implementation programme]=$G$3)*(T_DataComboFile[Econ3]=$G48))*T_DataComboFile[2023/24 Increase]*$B$3)","v":0},0]
[0,0,null,null,null,null,"Households",{"$f":"SUM(H50:H51)","v":0},0,0,0,0,0,0,0,0,0,0,0,0,0,0,0]
[0,0,null,null,null,null,"Social benefits",{"$f":"SUMPRODUCT(((T_DataComboFile[Implementation programme]=$G$3)*(T_DataComboFile[Econ4]=$G50))*T_DataComboFile[2017/18]*$B$3)","v":0},{"$f":"SUMPRODUCT(((T_DataComboFile[Implementation programme]=$G$3)*(T_DataComboFile[Econ4]=$G50))*T_DataComboFile[2018/19]*$B$3)","v":0},{"$f":"SUMPRODUCT(((T_DataComboFile[Implementation programme]=$G$3)*(T_DataComboFile[Econ4]=$G50))*T_DataComboFile[2019/20 Revised estimate]*$B$3)","v":0},{"$f":"SUMPRODUCT(((T_DataComboFile[Implementation programme]=$G$3)*(T_DataComboFile[Econ4]=$G50))*T_DataComboFile[2020/21 Revised]*$B$3)","v":0},{"$f":"SUMPRODUCT(((T_DataComboFile[Implementation programme]=$G$3)*(T_DataComboFile[Econ4]=$G50))*T_DataComboFile[2021/22 Baseline]*$B$3)","v":0},{"$f":"SUMPRODUCT(((T_DataComboFile[Implementation programme]=$G$3)*(T_DataComboFile[Econ4]=$G50))*T_DataComboFile[2021/22 Reduction]*$B$3)","v":0},{"$f":"SUMPRODUCT(((T_DataComboFile[Implementation programme]=$G$3)*(T_DataComboFile[Econ4]=$G50))*T_DataComboFile[2021/22 Increase]*$B$3)","v":0},{"$f":"L50+M50+N50","v":0},{"$f":"SUMPRODUCT(((T_DataComboFile[Implementation programme]=$G$3)*(T_DataComboFile[Econ4]=$G50))*T_DataComboFile[2022/23 Baseline]*$B$3)","v":0},{"$f":"SUMPRODUCT(((T_DataComboFile[Implementation programme]=$G$3)*(T_DataComboFile[Econ4]=$G50))*T_DataComboFile[2022/23 Reduction]*$B$3)","v":0},{"$f":"SUMPRODUCT(((T_DataComboFile[Implementation programme]=$G$3)*(T_DataComboFile[Econ4]=$G50))*T_DataComboFile[2022/23 Increase]*$B$3)","v":0},{"$f":"P50+Q50+R50","v":0},{"$f":"SUMPRODUCT(((T_DataComboFile[Implementation programme]=$G$3)*(T_DataComboFile[Econ4]=$G50))*T_DataComboFile[2023/24 Baseline]*$B$3)","v":0},{"$f":"SUMPRODUCT(((T_DataComboFile[Implementation programme]=$G$3)*(T_DataComboFile[Econ4]=$G50))*T_DataComboFile[2023/24 Reduction]*$B$3)","v":0},{"$f":"SUMPRODUCT(((T_DataComboFile[Implementation programme]=$G$3)*(T_DataComboFile[Econ4]=$G50))*T_DataComboFile[2023/24 Increase]*$B$3)","v":0},{"$f":"T50+U50+V50","v":0}]
[0,0,null,null,null,null,"Other transfers to households",{"$f":"SUMPRODUCT(((T_DataComboFile[Implementation programme]=$G$3)*(T_DataComboFile[Econ4]=$G51))*T_DataComboFile[2017/18]*$B$3)","v":0},{"$f":"SUMPRODUCT(((T_DataComboFile[Implementation programme]=$G$3)*(T_DataComboFile[Econ4]=$G51))*T_DataComboFile[2018/19]*$B$3)","v":0},{"$f":"SUMPRODUCT(((T_DataComboFile[Implementation programme]=$G$3)*(T_DataComboFile[Econ4]=$G51))*T_DataComboFile[2019/20 Revised estimate]*$B$3)","v":0},{"$f":"SUMPRODUCT(((T_DataComboFile[Implementation programme]=$G$3)*(T_DataComboFile[Econ4]=$G51))*T_DataComboFile[2020/21 Revised]*$B$3)","v":0},{"$f":"SUMPRODUCT(((T_DataComboFile[Implementation programme]=$G$3)*(T_DataComboFile[Econ4]=$G51))*T_DataComboFile[2021/22 Baseline]*$B$3)","v":0},{"$f":"SUMPRODUCT(((T_DataComboFile[Implementation programme]=$G$3)*(T_DataComboFile[Econ4]=$G51))*T_DataComboFile[2021/22 Reduction]*$B$3)","v":0},{"$f":"SUMPRODUCT(((T_DataComboFile[Implementation programme]=$G$3)*(T_DataComboFile[Econ4]=$G51))*T_DataComboFile[2021/22 Increase]*$B$3)","v":0},0,{"$f":"SUMPRODUCT(((T_DataComboFile[Implementation programme]=$G$3)*(T_DataComboFile[Econ4]=$G51))*T_DataComboFile[2022/23 Baseline]*$B$3)","v":0},{"$f":"SUMPRODUCT(((T_DataComboFile[Implementation programme]=$G$3)*(T_DataComboFile[Econ4]=$G51))*T_DataComboFile[2022/23 Reduction]*$B$3)","v":0},{"$f":"SUMPRODUCT(((T_DataComboFile[Implementation programme]=$G$3)*(T_DataComboFile[Econ4]=$G51))*T_DataComboFile[2022/23 Increase]*$B$3)","v":0},0,{"$f":"SUMPRODUCT(((T_DataComboFile[Implementation programme]=$G$3)*(T_DataComboFile[Econ4]=$G51))*T_DataComboFile[2023/24 Baseline]*$B$3)","v":0},{"$f":"SUMPRODUCT(((T_DataComboFile[Implementation programme]=$G$3)*(T_DataComboFile[Econ4]=$G51))*T_DataComboFile[2023/24 Reduction]*$B$3)","v":0},{"$f":"SUMPRODUCT(((T_DataComboFile[Implementation programme]=$G$3)*(T_DataComboFile[Econ4]=$G51))*T_DataComboFile[2023/24 Increase]*$B$3)","v":0},0]
[0,0,null,null,null,null,"Payments for capital assets",{"$f":"SUM(H53,H56,H59:H63)","v":0},0,0,0,0,0,0,0,0,0,0,0,0,0,0,0]
[0,0,null,null,null,null,"Buildings and other fixed structures",{"$f":"SUM(H54:H55)","v":0},0,0,0,0,0,0,0,0,0,0,0,0,0,0,0]
[0,0,null,null,null,null,"Buildings",{"$f":"SUMPRODUCT(((T_DataComboFile[Implementation programme]=$G$3)*(T_DataComboFile[Econ4]=$G54))*T_DataComboFile[2017/18]*$B$3)","v":0},{"$f":"SUMPRODUCT(((T_DataComboFile[Implementation programme]=$G$3)*(T_DataComboFile[Econ4]=$G54))*T_DataComboFile[2018/19]*$B$3)","v":0},{"$f":"SUMPRODUCT(((T_DataComboFile[Implementation programme]=$G$3)*(T_DataComboFile[Econ4]=$G54))*T_DataComboFile[2019/20 Revised estimate]*$B$3)","v":0},{"$f":"SUMPRODUCT(((T_DataComboFile[Implementation programme]=$G$3)*(T_DataComboFile[Econ4]=$G54))*T_DataComboFile[2020/21 Revised]*$B$3)","v":0},{"$f":"SUMPRODUCT(((T_DataComboFile[Implementation programme]=$G$3)*(T_DataComboFile[Econ4]=$G54))*T_DataComboFile[2021/22 Baseline]*$B$3)","v":0},{"$f":"SUMPRODUCT(((T_DataComboFile[Implementation programme]=$G$3)*(T_DataComboFile[Econ4]=$G54))*T_DataComboFile[2021/22 Reduction]*$B$3)","v":0},{"$f":"SUMPRODUCT(((T_DataComboFile[Implementation programme]=$G$3)*(T_DataComboFile[Econ4]=$G54))*T_DataComboFile[2021/22 Increase]*$B$3)","v":0},{"$f":"L54+M54+N54","v":0},{"$f":"SUMPRODUCT(((T_DataComboFile[Implementation programme]=$G$3)*(T_DataComboFile[Econ4]=$G54))*T_DataComboFile[2022/23 Baseline]*$B$3)","v":0},{"$f":"SUMPRODUCT(((T_DataComboFile[Implementation programme]=$G$3)*(T_DataComboFile[Econ4]=$G54))*T_DataComboFile[2022/23 Reduction]*$B$3)","v":0},{"$f":"SUMPRODUCT(((T_DataComboFile[Implementation programme]=$G$3)*(T_DataComboFile[Econ4]=$G54))*T_DataComboFile[2022/23 Increase]*$B$3)","v":0},{"$f":"P54+Q54+R54","v":0},{"$f":"SUMPRODUCT(((T_DataComboFile[Implementation programme]=$G$3)*(T_DataComboFile[Econ4]=$G54))*T_DataComboFile[2023/24 Baseline]*$B$3)","v":0},{"$f":"SUMPRODUCT(((T_DataComboFile[Implementation programme]=$G$3)*(T_DataComboFile[Econ4]=$G54))*T_DataComboFile[2023/24 Reduction]*$B$3)","v":0},{"$f":"SUMPRODUCT(((T_DataComboFile[Implementation programme]=$G$3)*(T_DataComboFile[Econ4]=$G54))*T_DataComboFile[2023/24 Increase]*$B$3)","v":0},{"$f":"T54+U54+V54","v":0}]
[0,0,null,null,null,null,"Other fixed structures",{"$f":"SUMPRODUCT(((T_DataComboFile[Implementation programme]=$G$3)*(T_DataComboFile[Econ4]=$G55))*T_DataComboFile[2017/18]*$B$3)","v":0},{"$f":"SUMPRODUCT(((T_DataComboFile[Implementation programme]=$G$3)*(T_DataComboFile[Econ4]=$G55))*T_DataComboFile[2018/19]*$B$3)","v":0},{"$f":"SUMPRODUCT(((T_DataComboFile[Implementation programme]=$G$3)*(T_DataComboFile[Econ4]=$G55))*T_DataComboFile[2019/20 Revised estimate]*$B$3)","v":0},{"$f":"SUMPRODUCT(((T_DataComboFile[Implementation programme]=$G$3)*(T_DataComboFile[Econ4]=$G55))*T_DataComboFile[2020/21 Revised]*$B$3)","v":0},{"$f":"SUMPRODUCT(((T_DataComboFile[Implementation programme]=$G$3)*(T_DataComboFile[Econ4]=$G55))*T_DataComboFile[2021/22 Baseline]*$B$3)","v":0},{"$f":"SUMPRODUCT(((T_DataComboFile[Implementation programme]=$G$3)*(T_DataComboFile[Econ4]=$G55))*T_DataComboFile[2021/22 Reduction]*$B$3)","v":0},{"$f":"SUMPRODUCT(((T_DataComboFile[Implementation programme]=$G$3)*(T_DataComboFile[Econ4]=$G55))*T_DataComboFile[2021/22 Increase]*$B$3)","v":0},0,{"$f":"SUMPRODUCT(((T_DataComboFile[Implementation programme]=$G$3)*(T_DataComboFile[Econ4]=$G55))*T_DataComboFile[2022/23 Baseline]*$B$3)","v":0},{"$f":"SUMPRODUCT(((T_DataComboFile[Implementation programme]=$G$3)*(T_DataComboFile[Econ4]=$G55))*T_DataComboFile[2022/23 Reduction]*$B$3)","v":0},{"$f":"SUMPRODUCT(((T_DataComboFile[Implementation programme]=$G$3)*(T_DataComboFile[Econ4]=$G55))*T_DataComboFile[2022/23 Increase]*$B$3)","v":0},0,{"$f":"SUMPRODUCT(((T_DataComboFile[Implementation programme]=$G$3)*(T_DataComboFile[Econ4]=$G55))*T_DataComboFile[2023/24 Baseline]*$B$3)","v":0},{"$f":"SUMPRODUCT(((T_DataComboFile[Implementation programme]=$G$3)*(T_DataComboFile[Econ4]=$G55))*T_DataComboFile[2023/24 Reduction]*$B$3)","v":0},{"$f":"SUMPRODUCT(((T_DataComboFile[Implementation programme]=$G$3)*(T_DataComboFile[Econ4]=$G55))*T_DataComboFile[2023/24 Increase]*$B$3)","v":0},0]
[0,0,null,null,null,null,"Machinery and equipment",{"$f":"SUM(H57:H58)","v":0},0,0,0,0,0,0,0,0,0,0,0,0,0,0,0]
[0,0,null,null,null,null,"Transport equipment",{"$f":"SUMPRODUCT(((T_DataComboFile[Implementation programme]=$G$3)*(T_DataComboFile[Econ4]=$G57))*T_DataComboFile[2017/18]*$B$3)","v":0},{"$f":"SUMPRODUCT(((T_DataComboFile[Implementation programme]=$G$3)*(T_DataComboFile[Econ4]=$G57))*T_DataComboFile[2018/19]*$B$3)","v":0},{"$f":"SUMPRODUCT(((T_DataComboFile[Implementation programme]=$G$3)*(T_DataComboFile[Econ4]=$G57))*T_DataComboFile[2019/20 Revised estimate]*$B$3)","v":0},{"$f":"SUMPRODUCT(((T_DataComboFile[Implementation programme]=$G$3)*(T_DataComboFile[Econ4]=$G57))*T_DataComboFile[2020/21 Revised]*$B$3)","v":0},{"$f":"SUMPRODUCT(((T_DataComboFile[Implementation programme]=$G$3)*(T_DataComboFile[Econ4]=$G57))*T_DataComboFile[2021/22 Baseline]*$B$3)","v":0},{"$f":"SUMPRODUCT(((T_DataComboFile[Implementation programme]=$G$3)*(T_DataComboFile[Econ4]=$G57))*T_DataComboFile[2021/22 Reduction]*$B$3)","v":0},{"$f":"SUMPRODUCT(((T_DataComboFile[Implementation programme]=$G$3)*(T_DataComboFile[Econ4]=$G57))*T_DataComboFile[2021/22 Increase]*$B$3)","v":0},{"$f":"L57+M57+N57","v":0},{"$f":"SUMPRODUCT(((T_DataComboFile[Implementation programme]=$G$3)*(T_DataComboFile[Econ4]=$G57))*T_DataComboFile[2022/23 Baseline]*$B$3)","v":0},{"$f":"SUMPRODUCT(((T_DataComboFile[Implementation programme]=$G$3)*(T_DataComboFile[Econ4]=$G57))*T_DataComboFile[2022/23 Reduction]*$B$3)","v":0},{"$f":"SUMPRODUCT(((T_DataComboFile[Implementation programme]=$G$3)*(T_DataComboFile[Econ4]=$G57))*T_DataComboFile[2022/23 Increase]*$B$3)","v":0},{"$f":"P57+Q57+R57","v":0},{"$f":"SUMPRODUCT(((T_DataComboFile[Implementation programme]=$G$3)*(T_DataComboFile[Econ4]=$G57))*T_DataComboFile[2023/24 Baseline]*$B$3)","v":0},{"$f":"SUMPRODUCT(((T_DataComboFile[Implementation programme]=$G$3)*(T_DataComboFile[Econ4]=$G57))*T_DataComboFile[2023/24 Reduction]*$B$3)","v":0},{"$f":"SUMPRODUCT(((T_DataComboFile[Implementation programme]=$G$3)*(T_DataComboFile[Econ4]=$G57))*T_DataComboFile[2023/24 Increase]*$B$3)","v":0},{"$f":"T57+U57+V57","v":0}]
[0,0,null,null,null,null,"Other machinery and equipment",{"$f":"SUMPRODUCT(((T_DataComboFile[Implementation programme]=$G$3)*(T_DataComboFile[Econ4]=$G58))*T_DataComboFile[2017/18]*$B$3)","v":0},{"$f":"SUMPRODUCT(((T_DataComboFile[Implementation programme]=$G$3)*(T_DataComboFile[Econ4]=$G58))*T_DataComboFile[2018/19]*$B$3)","v":0},{"$f":"SUMPRODUCT(((T_DataComboFile[Implementation programme]=$G$3)*(T_DataComboFile[Econ4]=$G58))*T_DataComboFile[2019/20 Revised estimate]*$B$3)","v":0},{"$f":"SUMPRODUCT(((T_DataComboFile[Implementation programme]=$G$3)*(T_DataComboFile[Econ4]=$G58))*T_DataComboFile[2020/21 Revised]*$B$3)","v":0},{"$f":"SUMPRODUCT(((T_DataComboFile[Implementation programme]=$G$3)*(T_DataComboFile[Econ4]=$G58))*T_DataComboFile[2021/22 Baseline]*$B$3)","v":0},{"$f":"SUMPRODUCT(((T_DataComboFile[Implementation programme]=$G$3)*(T_DataComboFile[Econ4]=$G58))*T_DataComboFile[2021/22 Reduction]*$B$3)","v":0},{"$f":"SUMPRODUCT(((T_DataComboFile[Implementation programme]=$G$3)*(T_DataComboFile[Econ4]=$G58))*T_DataComboFile[2021/22 Increase]*$B$3)","v":0},0,{"$f":"SUMPRODUCT(((T_DataComboFile[Implementation programme]=$G$3)*(T_DataComboFile[Econ4]=$G58))*T_DataComboFile[2022/23 Baseline]*$B$3)","v":0},{"$f":"SUMPRODUCT(((T_DataComboFile[Implementation programme]=$G$3)*(T_DataComboFile[Econ4]=$G58))*T_DataComboFile[2022/23 Reduction]*$B$3)","v":0},{"$f":"SUMPRODUCT(((T_DataComboFile[Implementation programme]=$G$3)*(T_DataComboFile[Econ4]=$G58))*T_DataComboFile[2022/23 Increase]*$B$3)","v":0},0,{"$f":"SUMPRODUCT(((T_DataComboFile[Implementation programme]=$G$3)*(T_DataComboFile[Econ4]=$G58))*T_DataComboFile[2023/24 Baseline]*$B$3)","v":0},{"$f":"SUMPRODUCT(((T_DataComboFile[Implementation programme]=$G$3)*(T_DataComboFile[Econ4]=$G58))*T_DataComboFile[2023/24 Reduction]*$B$3)","v":0},{"$f":"SUMPRODUCT(((T_DataComboFile[Implementation programme]=$G$3)*(T_DataComboFile[Econ4]=$G58))*T_DataComboFile[2023/24 Increase]*$B$3)","v":0},0]
[0,0,null,null,null,null,"Heritage assets",{"$f":"SUMPRODUCT(((T_DataComboFile[Implementation programme]=$G$3)*(T_DataComboFile[Econ3]=$G59))*T_DataComboFile[2017/18]*$B$3)","v":0},{"$f":"SUMPRODUCT(((T_DataComboFile[Implementation programme]=$G$3)*(T_DataComboFile[Econ3]=$G59))*T_DataComboFile[2018/19]*$B$3)","v":0},{"$f":"SUMPRODUCT(((T_DataComboFile[Implementation programme]=$G$3)*(T_DataComboFile[Econ3]=$G59))*T_DataComboFile[2019/20 Revised estimate]*$B$3)","v":0},{"$f":"SUMPRODUCT(((T_DataComboFile[Implementation programme]=$G$3)*(T_DataComboFile[Econ3]=$G59))*T_DataComboFile[2020/21 Revised]*$B$3)","v":0},{"$f":"SUMPRODUCT(((T_DataComboFile[Implementation programme]=$G$3)*(T_DataComboFile[Econ3]=$G59))*T_DataComboFile[2021/22 Baseline]*$B$3)","v":0},{"$f":"SUMPRODUCT(((T_DataComboFile[Implementation programme]=$G$3)*(T_DataComboFile[Econ3]=$G59))*T_DataComboFile[2021/22 Reduction]*$B$3)","v":0},{"$f":"SUMPRODUCT(((T_DataComboFile[Implementation programme]=$G$3)*(T_DataComboFile[Econ3]=$G59))*T_DataComboFile[2021/22 Increase]*$B$3)","v":0},0,{"$f":"SUMPRODUCT(((T_DataComboFile[Implementation programme]=$G$3)*(T_DataComboFile[Econ3]=$G59))*T_DataComboFile[2022/23 Baseline]*$B$3)","v":0},{"$f":"SUMPRODUCT(((T_DataComboFile[Implementation programme]=$G$3)*(T_DataComboFile[Econ3]=$G59))*T_DataComboFile[2022/23 Reduction]*$B$3)","v":0},{"$f":"SUMPRODUCT(((T_DataComboFile[Implementation programme]=$G$3)*(T_DataComboFile[Econ3]=$G59))*T_DataComboFile[2022/23 Increase]*$B$3)","v":0},0,{"$f":"SUMPRODUCT(((T_DataComboFile[Implementation programme]=$G$3)*(T_DataComboFile[Econ3]=$G59))*T_DataComboFile[2023/24 Baseline]*$B$3)","v":0},{"$f":"SUMPRODUCT(((T_DataComboFile[Implementation programme]=$G$3)*(T_DataComboFile[Econ3]=$G59))*T_DataComboFile[2023/24 Reduction]*$B$3)","v":0},{"$f":"SUMPRODUCT(((T_DataComboFile[Implementation programme]=$G$3)*(T_DataComboFile[Econ3]=$G59))*T_DataComboFile[2023/24 Increase]*$B$3)","v":0},0]
[0,0,null,null,null,null,"Specialised military assets",{"$f":"SUMPRODUCT(((T_DataComboFile[Implementation programme]=$G$3)*(T_DataComboFile[Econ3]=$G60))*T_DataComboFile[2017/18]*$B$3)","v":0},{"$f":"SUMPRODUCT(((T_DataComboFile[Implementation programme]=$G$3)*(T_DataComboFile[Econ3]=$G60))*T_DataComboFile[2018/19]*$B$3)","v":0},{"$f":"SUMPRODUCT(((T_DataComboFile[Implementation programme]=$G$3)*(T_DataComboFile[Econ3]=$G60))*T_DataComboFile[2019/20 Revised estimate]*$B$3)","v":0},{"$f":"SUMPRODUCT(((T_DataComboFile[Implementation programme]=$G$3)*(T_DataComboFile[Econ3]=$G60))*T_DataComboFile[2020/21 Revised]*$B$3)","v":0},{"$f":"SUMPRODUCT(((T_DataComboFile[Implementation programme]=$G$3)*(T_DataComboFile[Econ3]=$G60))*T_DataComboFile[2021/22 Baseline]*$B$3)","v":0},{"$f":"SUMPRODUCT(((T_DataComboFile[Implementation programme]=$G$3)*(T_DataComboFile[Econ3]=$G60))*T_DataComboFile[2021/22 Reduction]*$B$3)","v":0},{"$f":"SUMPRODUCT(((T_DataComboFile[Implementation programme]=$G$3)*(T_DataComboFile[Econ3]=$G60))*T_DataComboFile[2021/22 Increase]*$B$3)","v":0},0,{"$f":"SUMPRODUCT(((T_DataComboFile[Implementation programme]=$G$3)*(T_DataComboFile[Econ3]=$G60))*T_DataComboFile[2022/23 Baseline]*$B$3)","v":0},{"$f":"SUMPRODUCT(((T_DataComboFile[Implementation programme]=$G$3)*(T_DataComboFile[Econ3]=$G60))*T_DataComboFile[2022/23 Reduction]*$B$3)","v":0},{"$f":"SUMPRODUCT(((T_DataComboFile[Implementation programme]=$G$3)*(T_DataComboFile[Econ3]=$G60))*T_DataComboFile[2022/23 Increase]*$B$3)","v":0},0,{"$f":"SUMPRODUCT(((T_DataComboFile[Implementation programme]=$G$3)*(T_DataComboFile[Econ3]=$G60))*T_DataComboFile[2023/24 Baseline]*$B$3)","v":0},{"$f":"SUMPRODUCT(((T_DataComboFile[Implementation programme]=$G$3)*(T_DataComboFile[Econ3]=$G60))*T_DataComboFile[2023/24 Reduction]*$B$3)","v":0},{"$f":"SUMPRODUCT(((T_DataComboFile[Implementation programme]=$G$3)*(T_DataComboFile[Econ3]=$G60))*T_DataComboFile[2023/24 Increase]*$B$3)","v":0},0]
[0,0,null,null,null,null,"Biological assets",{"$f":"SUMPRODUCT(((T_DataComboFile[Implementation programme]=$G$3)*(T_DataComboFile[Econ3]=$G61))*T_DataComboFile[2017/18]*$B$3)","v":0},{"$f":"SUMPRODUCT(((T_DataComboFile[Implementation programme]=$G$3)*(T_DataComboFile[Econ3]=$G61))*T_DataComboFile[2018/19]*$B$3)","v":0},{"$f":"SUMPRODUCT(((T_DataComboFile[Implementation programme]=$G$3)*(T_DataComboFile[Econ3]=$G61))*T_DataComboFile[2019/20 Revised estimate]*$B$3)","v":0},{"$f":"SUMPRODUCT(((T_DataComboFile[Implementation programme]=$G$3)*(T_DataComboFile[Econ3]=$G61))*T_DataComboFile[2020/21 Revised]*$B$3)","v":0},{"$f":"SUMPRODUCT(((T_DataComboFile[Implementation programme]=$G$3)*(T_DataComboFile[Econ3]=$G61))*T_DataComboFile[2021/22 Baseline]*$B$3)","v":0},{"$f":"SUMPRODUCT(((T_DataComboFile[Implementation programme]=$G$3)*(T_DataComboFile[Econ3]=$G61))*T_DataComboFile[2021/22 Reduction]*$B$3)","v":0},{"$f":"SUMPRODUCT(((T_DataComboFile[Implementation programme]=$G$3)*(T_DataComboFile[Econ3]=$G61))*T_DataComboFile[2021/22 Increase]*$B$3)","v":0},0,{"$f":"SUMPRODUCT(((T_DataComboFile[Implementation programme]=$G$3)*(T_DataComboFile[Econ3]=$G61))*T_DataComboFile[2022/23 Baseline]*$B$3)","v":0},{"$f":"SUMPRODUCT(((T_DataComboFile[Implementation programme]=$G$3)*(T_DataComboFile[Econ3]=$G61))*T_DataComboFile[2022/23 Reduction]*$B$3)","v":0},{"$f":"SUMPRODUCT(((T_DataComboFile[Implementation programme]=$G$3)*(T_DataComboFile[Econ3]=$G61))*T_DataComboFile[2022/23 Increase]*$B$3)","v":0},0,{"$f":"SUMPRODUCT(((T_DataComboFile[Implementation programme]=$G$3)*(T_DataComboFile[Econ3]=$G61))*T_DataComboFile[2023/24 Baseline]*$B$3)","v":0},{"$f":"SUMPRODUCT(((T_DataComboFile[Implementation programme]=$G$3)*(T_DataComboFile[Econ3]=$G61))*T_DataComboFile[2023/24 Reduction]*$B$3)","v":0},{"$f":"SUMPRODUCT(((T_DataComboFile[Implementation programme]=$G$3)*(T_DataComboFile[Econ3]=$G61))*T_DataComboFile[2023/24 Increase]*$B$3)","v":0},0]
[0,0,null,null,null,null,"Land and sub-soil assets",{"$f":"SUMPRODUCT(((T_DataComboFile[Implementation programme]=$G$3)*(T_DataComboFile[Econ3]=$G62))*T_DataComboFile[2017/18]*$B$3)","v":0},{"$f":"SUMPRODUCT(((T_DataComboFile[Implementation programme]=$G$3)*(T_DataComboFile[Econ3]=$G62))*T_DataComboFile[2018/19]*$B$3)","v":0},{"$f":"SUMPRODUCT(((T_DataComboFile[Implementation programme]=$G$3)*(T_DataComboFile[Econ3]=$G62))*T_DataComboFile[2019/20 Revised estimate]*$B$3)","v":0},{"$f":"SUMPRODUCT(((T_DataComboFile[Implementation programme]=$G$3)*(T_DataComboFile[Econ3]=$G62))*T_DataComboFile[2020/21 Revised]*$B$3)","v":0},{"$f":"SUMPRODUCT(((T_DataComboFile[Implementation programme]=$G$3)*(T_DataComboFile[Econ3]=$G62))*T_DataComboFile[2021/22 Baseline]*$B$3)","v":0},{"$f":"SUMPRODUCT(((T_DataComboFile[Implementation programme]=$G$3)*(T_DataComboFile[Econ3]=$G62))*T_DataComboFile[2021/22 Reduction]*$B$3)","v":0},{"$f":"SUMPRODUCT(((T_DataComboFile[Implementation programme]=$G$3)*(T_DataComboFile[Econ3]=$G62))*T_DataComboFile[2021/22 Increase]*$B$3)","v":0},0,{"$f":"SUMPRODUCT(((T_DataComboFile[Implementation programme]=$G$3)*(T_DataComboFile[Econ3]=$G62))*T_DataComboFile[2022/23 Baseline]*$B$3)","v":0},{"$f":"SUMPRODUCT(((T_DataComboFile[Implementation programme]=$G$3)*(T_DataComboFile[Econ3]=$G62))*T_DataComboFile[2022/23 Reduction]*$B$3)","v":0},{"$f":"SUMPRODUCT(((T_DataComboFile[Implementation programme]=$G$3)*(T_DataComboFile[Econ3]=$G62))*T_DataComboFile[2022/23 Increase]*$B$3)","v":0},0,{"$f":"SUMPRODUCT(((T_DataComboFile[Implementation programme]=$G$3)*(T_DataComboFile[Econ3]=$G62))*T_DataComboFile[2023/24 Baseline]*$B$3)","v":0},{"$f":"SUMPRODUCT(((T_DataComboFile[Implementation programme]=$G$3)*(T_DataComboFile[Econ3]=$G62))*T_DataComboFile[2023/24 Reduction]*$B$3)","v":0},{"$f":"SUMPRODUCT(((T_DataComboFile[Implementation programme]=$G$3)*(T_DataComboFile[Econ3]=$G62))*T_DataComboFile[2023/24 Increase]*$B$3)","v":0},0]
[0,0,null,null,null,null,"Software and other intangible assets",{"$f":"SUMPRODUCT(((T_DataComboFile[Implementation programme]=$G$3)*(T_DataComboFile[Econ3]=$G63))*T_DataComboFile[2017/18]*$B$3)","v":0},{"$f":"SUMPRODUCT(((T_DataComboFile[Implementation programme]=$G$3)*(T_DataComboFile[Econ3]=$G63))*T_DataComboFile[2018/19]*$B$3)","v":0},{"$f":"SUMPRODUCT(((T_DataComboFile[Implementation programme]=$G$3)*(T_DataComboFile[Econ3]=$G63))*T_DataComboFile[2019/20 Revised estimate]*$B$3)","v":0},{"$f":"SUMPRODUCT(((T_DataComboFile[Implementation programme]=$G$3)*(T_DataComboFile[Econ3]=$G63))*T_DataComboFile[2020/21 Revised]*$B$3)","v":0},{"$f":"SUMPRODUCT(((T_DataComboFile[Implementation programme]=$G$3)*(T_DataComboFile[Econ3]=$G63))*T_DataComboFile[2021/22 Baseline]*$B$3)","v":0},{"$f":"SUMPRODUCT(((T_DataComboFile[Implementation programme]=$G$3)*(T_DataComboFile[Econ3]=$G63))*T_DataComboFile[2021/22 Reduction]*$B$3)","v":0},{"$f":"SUMPRODUCT(((T_DataComboFile[Implementation programme]=$G$3)*(T_DataComboFile[Econ3]=$G63))*T_DataComboFile[2021/22 Increase]*$B$3)","v":0},0,{"$f":"SUMPRODUCT(((T_DataComboFile[Implementation programme]=$G$3)*(T_DataComboFile[Econ3]=$G63))*T_DataComboFile[2022/23 Baseline]*$B$3)","v":0},{"$f":"SUMPRODUCT(((T_DataComboFile[Implementation programme]=$G$3)*(T_DataComboFile[Econ3]=$G63))*T_DataComboFile[2022/23 Reduction]*$B$3)","v":0},{"$f":"SUMPRODUCT(((T_DataComboFile[Implementation programme]=$G$3)*(T_DataComboFile[Econ3]=$G63))*T_DataComboFile[2022/23 Increase]*$B$3)","v":0},0,{"$f":"SUMPRODUCT(((T_DataComboFile[Implementation programme]=$G$3)*(T_DataComboFile[Econ3]=$G63))*T_DataComboFile[2023/24 Baseline]*$B$3)","v":0},{"$f":"SUMPRODUCT(((T_DataComboFile[Implementation programme]=$G$3)*(T_DataComboFile[Econ3]=$G63))*T_DataComboFile[2023/24 Reduction]*$B$3)","v":0},{"$f":"SUMPRODUCT(((T_DataComboFile[Implementation programme]=$G$3)*(T_DataComboFile[Econ3]=$G63))*T_DataComboFile[2023/24 Increase]*$B$3)","v":0},0]
[0,0,null,null,null,null,"Payments for financial assets",{"$f":"SUMPRODUCT(((T_DataComboFile[Implementation programme]=$G$3)*(T_DataComboFile[Econ3]=$G64))*T_DataComboFile[2017/18]*$B$3)","v":0},{"$f":"SUMPRODUCT(((T_DataComboFile[Implementation programme]=$G$3)*(T_DataComboFile[Econ3]=$G64))*T_DataComboFile[2018/19]*$B$3)","v":0},{"$f":"SUMPRODUCT(((T_DataComboFile[Implementation programme]=$G$3)*(T_DataComboFile[Econ3]=$G64))*T_DataComboFile[2019/20 Revised estimate]*$B$3)","v":0},{"$f":"SUMPRODUCT(((T_DataComboFile[Implementation programme]=$G$3)*(T_DataComboFile[Econ3]=$G64))*T_DataComboFile[2020/21 Revised]*$B$3)","v":0},{"$f":"SUMPRODUCT(((T_DataComboFile[Implementation programme]=$G$3)*(T_DataComboFile[Econ3]=$G64))*T_DataComboFile[2021/22 Baseline]*$B$3)","v":0},{"$f":"SUMPRODUCT(((T_DataComboFile[Implementation programme]=$G$3)*(T_DataComboFile[Econ3]=$G64))*T_DataComboFile[2021/22 Reduction]*$B$3)","v":0},{"$f":"SUMPRODUCT(((T_DataComboFile[Implementation programme]=$G$3)*(T_DataComboFile[Econ3]=$G64))*T_DataComboFile[2021/22 Increase]*$B$3)","v":0},0,{"$f":"SUMPRODUCT(((T_DataComboFile[Implementation programme]=$G$3)*(T_DataComboFile[Econ3]=$G64))*T_DataComboFile[2022/23 Baseline]*$B$3)","v":0},{"$f":"SUMPRODUCT(((T_DataComboFile[Implementation programme]=$G$3)*(T_DataComboFile[Econ3]=$G64))*T_DataComboFile[2022/23 Reduction]*$B$3)","v":0},{"$f":"SUMPRODUCT(((T_DataComboFile[Implementation programme]=$G$3)*(T_DataComboFile[Econ3]=$G64))*T_DataComboFile[2022/23 Increase]*$B$3)","v":0},0,{"$f":"SUMPRODUCT(((T_DataComboFile[Implementation programme]=$G$3)*(T_DataComboFile[Econ3]=$G64))*T_DataComboFile[2023/24 Baseline]*$B$3)","v":0},{"$f":"SUMPRODUCT(((T_DataComboFile[Implementation programme]=$G$3)*(T_DataComboFile[Econ3]=$G64))*T_DataComboFile[2023/24 Reduction]*$B$3)","v":0},{"$f":"SUMPRODUCT(((T_DataComboFile[Implementation programme]=$G$3)*(T_DataComboFile[Econ3]=$G64))*T_DataComboFile[2023/24 Increase]*$B$3)","v":0},0]
[0,0,null,null,null,null,"Total",{"$f":"SUM(H32,H36,H52,H64)","v":0},0,0,0,0,0,0,0,0,0,0,0,0,0,0,0]
[]
[]
[]
[]
[]
[null,null,null,null,null,null,{"$f":"\"IMPACT OF ADJUSTMENTS: \" &UPPER($G$3)","v":"IMPACT OF ADJUSTMENTS: "}]
[]
[null,null,null,null,null,1,"Summary of impact on service delivery due to adjustments"]
[{"$f":"$G$3","v":0},1]
[0,1]
[0,1]
[0,1]
[0,1]
[0,1]
[0,1]
[0,1]
[0,1]
[0,1]
[0,1]
[0,1]
[0,1]
[0,1]
[0,1]
[]
[]
[]
[]
[]
[null,null,null,null,null,2,"Impact of adjustments on performance indicators"]
[{"$f":"$G$3","v":0},2,null,null,null,null,null,"2021/22",null,null,"2022/23",null,null,"2023/24",null,null," Comment",null,null,null,null,"Related MTSF Priority"]
[0,2,null,null,null,null,"Performance indicator","Original target","Revised target","Change","Original target","Revised target","Change","Original target","Revised target","Change"]
[0,2]
[0,2]
[0,2]
[0,2]
[0,2]
[0,2]
[0,2]
[0,2]
[0,2]
[0,2]
[0,2]
[0,2]
[0,2]
[0,2]
[0,2]
[]
[]
[]
[]
[]
[null,null,null,null,null,3,"Impact of adjustments on infrastructure projects"]
[{"$f":"$G$3","v":0},3,null,null,null,null,null,"2021/22",null,null,"2022/23",null,null,"2023/24",null,null," Comment"]
[0,3,null,null,null,null,"Project name","Original amount","Revised amount","Change","Original amount","Revised amount","Change","Original amount","Revised amount","Change"]
[0,3,null,null,null,null,null,null,null,{"$f":"I120-H120","v":0},null,null,{"$f":"L120-K120","v":0},null,null,{"$f":"O120-N120","v":0}]
[0,3,null,null,null,null,null,null,null,0,null,null,0,null,null,0]
[0,3,null,null,null,null,null,null,null,0,null,null,0,null,null,0]
[0,3,null,null,null,null,null,null,null,0,null,null,0,null,null,0]
[0,3,null,null,null,null,null,null,null,0,null,null,0,null,null,0]
[0,3,null,null,null,null,null,null,null,0,null,null,0,null,null,0]
[0,3,null,null,null,null,null,null,null,0,null,null,0,null,null,0]
[0,3,null,null,null,null,null,null,null,0,null,null,0,null,null,0]
[0,3,null,null,null,null,null,null,null,0,null,null,0,null,null,0]
[0,3,null,null,null,null,null,null,null,0,null,null,0,null,null,0]
[0,3,null,null,null,null,null,null,null,0,null,null,0,null,null,0]
[0,3,null,null,null,null,null,null,null,0,null,null,0,null,null,0]
[0,3,null,null,null,null,null,null,null,0,null,null,0,null,null,0]
[0,3,null,null,null,null,null,null,null,0,null,null,0,null,null,0]
[0,3,null,null,null,null,null,null,null,0,null,null,0,null,null,0]
[0,3,null,null,null,null,"Total",{"$f":"SUM(H120:H134)","v":0},0,0,0,0,0,0,0,0]
[]
[]
[]
[]
[]
[null,null,null,null,null,4,"Impact of adjustments on personnel headcount numbers"]
[{"$f":"$G$3","v":0},4,null,null,null,null,null,"2021/22",null,null,"2022/23",null,null,"2023/24",null,null," Comment"]
[0,4,null,null,null,null,"Salary level","Original number","Revised number","Change","Original number","Revised number","Change","Original number","Revised number","Change"]
[0,4,null,null,null,null,1,null,null,{"$f":"I144-H144","v":0},null,null,{"$f":"L144-K144","v":0},null,null,{"$f":"O144-N144","v":0}]
[0,4,null,null,null,null,2,null,null,0,null,null,0,null,null,0]
[0,4,null,null,null,null,3,null,null,0,null,null,0,null,null,0]
[0,4,null,null,null,null,4,null,null,0,null,null,0,null,null,0]
[0,4,null,null,null,null,5,null,null,0,null,null,0,null,null,0]
[0,4,null,null,null,null,6,null,null,0,null,null,0,null,null,0]
[0,4,null,null,null,null,7,null,null,0,null,null,0,null,null,0]
[0,4,null,null,null,null,8,null,null,0,null,null,0,null,null,0]
[0,4,null,null,null,null,9,null,null,0,null,null,0,null,null,0]
[0,4,null,null,null,null,10,null,null,0,null,null,0,null,null,0]
[0,4,null,null,null,null,11,null,null,0,null,null,0,null,null,0]
[0,4,null,null,null,null,12,null,null,0,null,null,0,null,null,0]
[0,4,null,null,null,null,13,null,null,0,null,null,0,null,null,0]
[0,4,null,null,null,null,14,null,null,0,null,null,0,null,null,0]
[0,4,null,null,null,null,15,null,null,0,null,null,0,null,null,0]
[0,4,null,null,null,null,16,null,null,0,null,null,0,null,null,0]
[0,4,null,null,null,null,"Other",null,null,0,null,null,0,null,null,0]
[0,4,null,null,null,null,"Other",null,null,0,null,null,0,null,null,0]
[0,4,null,null,null,null,"Other",null,null,0,null,null,0,null,null,0]
[0,4,null,null,null,null,"Other",null,null,0,null,null,0,null,null,0]
[0,4,null,null,null,null,"Total",{"$f":"SUM(H144:H163)","v":0},0,0,0,0,0,0,0,0]
[]
[]
[]
[]
[]
[null,null,null,null,null,5,"Impact of adjustments by economic classification"]
[{"$f":"$G$3","v":0},5,null,null,null,null,null,"2021/22",null,null,"2022/23",null,null,"2023/24",null,null," Comment"]
[0,5,null,null,null,null,"Salary level","Original number","Revised number","Change","Original number","Revised number","Change","Original number","Revised number","Change"]
[0,5,null,null,null,null,"Current payments",{"$f":"SUM(H174,H175,H182)","v":0},{"$f":"SUM(I174,I175,I182)","v":0},{"$f":"I173-H173","v":0},{"$f":"SUM(K174,K175,K182)","v":0},{"$f":"SUM(L174,L175,L182)","v":0},{"$f":"L173-K173","v":0},{"$f":"SUM(N174,N175,N182)","v":0},{"$f":"SUM(O174,O175,O182)","v":0},{"$f":"O173-N173","v":0}]
[0,5,null,null,null,null,"Compensation of employees",{"$f":"SUMPRODUCT(((T_DataComboFile[Implementation programme]=$G$3)*(T_DataComboFile[Econ3]=$G174))*T_DataComboFile[2021/22 Baseline]*$B$3)","v":0},{"$f":"SUMPRODUCT(((T_DataComboFile[Implementation programme]=$G$3)*(T_DataComboFile[Econ3]=$G174))*T_DataComboFile[2021/22 Revised baseline]*$B$3)","v":0},0,{"$f":"SUMPRODUCT(((T_DataComboFile[Implementation programme]=$G$3)*(T_DataComboFile[Econ3]=$G174))*T_DataComboFile[2022/23 Baseline]*$B$3)","v":0},{"$f":"SUMPRODUCT(((T_DataComboFile[Implementation programme]=$G$3)*(T_DataComboFile[Econ3]=$G174))*T_DataComboFile[2022/23 Revised baseline]*$B$3)","v":0},0,{"$f":"SUMPRODUCT(((T_DataComboFile[Implementation programme]=$G$3)*(T_DataComboFile[Econ3]=$G174))*T_DataComboFile[2023/24 Baseline]*$B$3)","v":0},{"$f":"SUMPRODUCT(((T_DataComboFile[Implementation programme]=$G$3)*(T_DataComboFile[Econ3]=$G174))*T_DataComboFile[2023/24 Revised baseline]*$B$3)","v":0},0]
[0,5,null,null,null,null,"Goods and services",{"$f":"SUMPRODUCT(((T_DataComboFile[Implementation programme]=$G$3)*(T_DataComboFile[Econ3]=$G175))*T_DataComboFile[2021/22 Baseline]*$B$3)","v":0},{"$f":"SUMPRODUCT(((T_DataComboFile[Implementation programme]=$G$3)*(T_DataComboFile[Econ3]=$G175))*T_DataComboFile[2021/22 Revised baseline]*$B$3)","v":0},0,{"$f":"SUMPRODUCT(((T_DataComboFile[Implementation programme]=$G$3)*(T_DataComboFile[Econ3]=$G175))*T_DataComboFile[2022/23 Baseline]*$B$3)","v":0},{"$f":"SUMPRODUCT(((T_DataComboFile[Implementation programme]=$G$3)*(T_DataComboFile[Econ3]=$G175))*T_DataComboFile[2022/23 Revised baseline]*$B$3)","v":0},0,{"$f":"SUMPRODUCT(((T_DataComboFile[Implementation programme]=$G$3)*(T_DataComboFile[Econ3]=$G175))*T_DataComboFile[2023/24 Baseline]*$B$3)","v":0},{"$f":"SUMPRODUCT(((T_DataComboFile[Implementation programme]=$G$3)*(T_DataComboFile[Econ3]=$G175))*T_DataComboFile[2023/24 Revised baseline]*$B$3)","v":0},0]
[0,50,null,null,null,null,"of which:"]
[0,51,null,null,null,null,null,null,null,{"$f":"I177-H177","v":0},null,null,{"$f":"L177-K177","v":0},null,null,0]
[0,51,null,null,null,null,null,null,null,0,null,null,0,null,null,0]
[0,51,null,null,null,null,null,null,null,0,null,null,0,null,null,0]
[0,51,null,null,null,null,null,null,null,0,null,null,0,null,null,0]
[0,51,null,null,null,null,null,null,null,0,null,null,0,null,null,0]
[0,5,null,null,null,null,"Interest and rent on land",{"$f":"SUMPRODUCT(((T_DataComboFile[Implementation programme]=$G$3)*(T_DataComboFile[Econ3]=$G182))*T_DataComboFile[2021/22 Baseline]*$B$3)","v":0},{"$f":"SUMPRODUCT(((T_DataComboFile[Implementation programme]=$G$3)*(T_DataComboFile[Econ3]=$G182))*T_DataComboFile[2021/22 Revised baseline]*$B$3)","v":0},0,{"$f":"SUMPRODUCT(((T_DataComboFile[Implementation programme]=$G$3)*(T_DataComboFile[Econ3]=$G182))*T_DataComboFile[2022/23 Baseline]*$B$3)","v":0},{"$f":"SUMPRODUCT(((T_DataComboFile[Implementation programme]=$G$3)*(T_DataComboFile[Econ3]=$G182))*T_DataComboFile[2022/23 Revised baseline]*$B$3)","v":0},0,{"$f":"SUMPRODUCT(((T_DataComboFile[Implementation programme]=$G$3)*(T_DataComboFile[Econ3]=$G182))*T_DataComboFile[2023/24 Baseline]*$B$3)","v":0},{"$f":"SUMPRODUCT(((T_DataComboFile[Implementation programme]=$G$3)*(T_DataComboFile[Econ3]=$G182))*T_DataComboFile[2023/24 Revised baseline]*$B$3)","v":0},0]
[0,5,null,null,null,null,"Transfers and subsidies",{"$f":"SUM(H184,H185,H197,H198,H199,H206,H207)","v":0},{"$f":"SUM(I184,I185,I197,I198,I199,I206,I207)","v":0},0,{"$f":"SUM(K184,K185,K197,K198,K199,K206,K207)","v":0},0,0,{"$f":"SUM(N184,N185,N197,N198,N199,N206,N207)","v":0},0,0]
[0,5,null,null,null,null,"Provinces and municipalities",{"$f":"SUMPRODUCT(((T_DataComboFile[Implementation programme]=$G$3)*(T_DataComboFile[Econ3]=$G184))*T_DataComboFile[2021/22 Baseline]*$B$3)","v":0},{"$f":"SUMPRODUCT(((T_DataComboFile[Implementation programme]=$G$3)*(T_DataComboFile[Econ3]=$G184))*T_DataComboFile[2021/22 Revised baseline]*$B$3)","v":0},0,{"$f":"SUMPRODUCT(((T_DataComboFile[Implementation programme]=$G$3)*(T_DataComboFile[Econ3]=$G184))*T_DataComboFile[2022/23 Baseline]*$B$3)","v":0},{"$f":"SUMPRODUCT(((T_DataComboFile[Implementation programme]=$G$3)*(T_DataComboFile[Econ3]=$G184))*T_DataComboFile[2022/23 Revised baseline]*$B$3)","v":0},0,{"$f":"SUMPRODUCT(((T_DataComboFile[Implementation programme]=$G$3)*(T_DataComboFile[Econ3]=$G184))*T_DataComboFile[2023/24 Baseline]*$B$3)","v":0},{"$f":"SUMPRODUCT(((T_DataComboFile[Implementation programme]=$G$3)*(T_DataComboFile[Econ3]=$G184))*T_DataComboFile[2023/24 Revised baseline]*$B$3)","v":0},0]
[0,5,null,null,null,null,"Departmental agencies and accounts",{"$f":"SUMPRODUCT(((T_DataComboFile[Implementation programme]=$G$3)*(T_DataComboFile[Econ3]=$G185))*T_DataComboFile[2021/22 Baseline]*$B$3)","v":0},{"$f":"SUMPRODUCT(((T_DataComboFile[Implementation programme]=$G$3)*(T_DataComboFile[Econ3]=$G185))*T_DataComboFile[2021/22 Revised baseline]*$B$3)","v":0},0,{"$f":"SUMPRODUCT(((T_DataComboFile[Implementation programme]=$G$3)*(T_DataComboFile[Econ3]=$G185))*T_DataComboFile[2022/23 Baseline]*$B$3)","v":0},{"$f":"SUMPRODUCT(((T_DataComboFile[Implementation programme]=$G$3)*(T_DataComboFile[Econ3]=$G185))*T_DataComboFile[2022/23 Revised baseline]*$B$3)","v":0},0,{"$f":"SUMPRODUCT(((T_DataComboFile[Implementation programme]=$G$3)*(T_DataComboFile[Econ3]=$G185))*T_DataComboFile[2023/24 Baseline]*$B$3)","v":0},{"$f":"SUMPRODUCT(((T_DataComboFile[Implementation programme]=$G$3)*(T_DataComboFile[Econ3]=$G185))*T_DataComboFile[2023/24 Revised baseline]*$B$3)","v":0},0]
[0,50,null,null,null,null,"of which:"]
[0,52,null,null,null,null,null,null,null,{"$f":"I187-H187","v":0},null,null,{"$f":"L187-K187","v":0},null,null,{"$f":"O187-N187","v":0}]
[0,52,null,null,null,null,null,null,null,0,null,null,0,null,null,0]
[0,52,null,null,null,null,null,null,null,0,null,null,0,null,null,0]
[0,52,null,null,null,null,null,null,null,0,null,null,0,null,null,0]
[0,52,null,null,null,null,null,null,null,0,null,null,0,null,null,0]
[0,52,null,null,null,null,null,null,null,0,null,null,0,null,null,0]
[0,52,null,null,null,null,null,null,null,0,null,null,0,null,null,0]
[0,52,null,null,null,null,null,null,null,0,null,null,0,null,null,0]
[0,52,null,null,null,null,null,null,null,0,null,null,0,null,null,0]
[0,52,null,null,null,null,null,null,null,0,null,null,0,null,null,0]
[0,5,null,null,null,null,"Higher education institutions",{"$f":"SUMPRODUCT(((T_DataComboFile[Implementation programme]=$G$3)*(T_DataComboFile[Econ3]=$G197))*T_DataComboFile[2021/22 Baseline]*$B$3)","v":0},{"$f":"SUMPRODUCT(((T_DataComboFile[Implementation programme]=$G$3)*(T_DataComboFile[Econ3]=$G197))*T_DataComboFile[2021/22 Revised baseline]*$B$3)","v":0},0,{"$f":"SUMPRODUCT(((T_DataComboFile[Implementation programme]=$G$3)*(T_DataComboFile[Econ3]=$G197))*T_DataComboFile[2022/23 Baseline]*$B$3)","v":0},{"$f":"SUMPRODUCT(((T_DataComboFile[Implementation programme]=$G$3)*(T_DataComboFile[Econ3]=$G197))*T_DataComboFile[2022/23 Revised baseline]*$B$3)","v":0},0,{"$f":"SUMPRODUCT(((T_DataComboFile[Implementation programme]=$G$3)*(T_DataComboFile[Econ3]=$G197))*T_DataComboFile[2023/24 Baseline]*$B$3)","v":0},{"$f":"SUMPRODUCT(((T_DataComboFile[Implementation programme]=$G$3)*(T_DataComboFile[Econ3]=$G197))*T_DataComboFile[2023/24 Revised baseline]*$B$3)","v":0},0]
[0,5,null,null,null,null,"Foreign governments and international organisations",{"$f":"SUMPRODUCT(((T_DataComboFile[Implementation programme]=$G$3)*(T_DataComboFile[Econ3]=$G198))*T_DataComboFile[2021/22 Baseline]*$B$3)","v":0},{"$f":"SUMPRODUCT(((T_DataComboFile[Implementation programme]=$G$3)*(T_DataComboFile[Econ3]=$G198))*T_DataComboFile[2021/22 Revised baseline]*$B$3)","v":0},0,{"$f":"SUMPRODUCT(((T_DataComboFile[Implementation programme]=$G$3)*(T_DataComboFile[Econ3]=$G198))*T_DataComboFile[2022/23 Baseline]*$B$3)","v":0},{"$f":"SUMPRODUCT(((T_DataComboFile[Implementation programme]=$G$3)*(T_DataComboFile[Econ3]=$G198))*T_DataComboFile[2022/23 Revised baseline]*$B$3)","v":0},0,{"$f":"SUMPRODUCT(((T_DataComboFile[Implementation programme]=$G$3)*(T_DataComboFile[Econ3]=$G198))*T_DataComboFile[2023/24 Baseline]*$B$3)","v":0},{"$f":"SUMPRODUCT(((T_DataComboFile[Implementation programme]=$G$3)*(T_DataComboFile[Econ3]=$G198))*T_DataComboFile[2023/24 Revised baseline]*$B$3)","v":0},0]
[0,5,null,null,null,null,"Public corporations and private enterprises",{"$f":"SUMPRODUCT(((T_DataComboFile[Implementation programme]=$G$3)*(T_DataComboFile[Econ3]=$G199))*T_DataComboFile[2021/22 Baseline]*$B$3)","v":0},{"$f":"SUMPRODUCT(((T_DataComboFile[Implementation programme]=$G$3)*(T_DataComboFile[Econ3]=$G199))*T_DataComboFile[2021/22 Revised baseline]*$B$3)","v":0},0,{"$f":"SUMPRODUCT(((T_DataComboFile[Implementation programme]=$G$3)*(T_DataComboFile[Econ3]=$G199))*T_DataComboFile[2022/23 Baseline]*$B$3)","v":0},{"$f":"SUMPRODUCT(((T_DataComboFile[Implementation programme]=$G$3)*(T_DataComboFile[Econ3]=$G199))*T_DataComboFile[2022/23 Revised baseline]*$B$3)","v":0},0,{"$f":"SUMPRODUCT(((T_DataComboFile[Implementation programme]=$G$3)*(T_DataComboFile[Econ3]=$G199))*T_DataComboFile[2023/24 Baseline]*$B$3)","v":0},{"$f":"SUMPRODUCT(((T_DataComboFile[Implementation programme]=$G$3)*(T_DataComboFile[Econ3]=$G199))*T_DataComboFile[2023/24 Revised baseline]*$B$3)","v":0},0]
[0,50,null,null,null,null,"of which:"]
[0,53,null,null,null,null,null,null,null,{"$f":"I201-H201","v":0},null,null,{"$f":"L201-K201","v":0},null,null,{"$f":"O201-N201","v":0}]
[0,53,null,null,null,null,null,null,null,0,null,null,0,null,null,0]
[0,53,null,null,null,null,null,null,null,0,null,null,0,null,null,0]
[0,53,null,null,null,null,null,null,null,0,null,null,0,null,null,0]
[0,53,null,null,null,null,null,null,null,0,null,null,0,null,null,0]
[0,5,null,null,null,null,"Non-profit institutions",{"$f":"SUMPRODUCT(((T_DataComboFile[Implementation programme]=$G$3)*(T_DataComboFile[Econ3]=$G206))*T_DataComboFile[2021/22 Baseline]*$B$3)","v":0},{"$f":"SUMPRODUCT(((T_DataComboFile[Implementation programme]=$G$3)*(T_DataComboFile[Econ3]=$G206))*T_DataComboFile[2021/22 Revised baseline]*$B$3)","v":0},0,{"$f":"SUMPRODUCT(((T_DataComboFile[Implementation programme]=$G$3)*(T_DataComboFile[Econ3]=$G206))*T_DataComboFile[2022/23 Baseline]*$B$3)","v":0},{"$f":"SUMPRODUCT(((T_DataComboFile[Implementation programme]=$G$3)*(T_DataComboFile[Econ3]=$G206))*T_DataComboFile[2022/23 Revised baseline]*$B$3)","v":0},0,{"$f":"SUMPRODUCT(((T_DataComboFile[Implementation programme]=$G$3)*(T_DataComboFile[Econ3]=$G206))*T_DataComboFile[2023/24 Baseline]*$B$3)","v":0},{"$f":"SUMPRODUCT(((T_DataComboFile[Implementation programme]=$G$3)*(T_DataComboFile[Econ3]=$G206))*T_DataComboFile[2023/24 Revised baseline]*$B$3)","v":0},0]
[0,5,null,null,null,null,"Households",{"$f":"SUMPRODUCT(((T_DataComboFile[Implementation programme]=$G$3)*(T_DataComboFile[Econ3]=$G207))*T_DataComboFile[2021/22 Baseline]*$B$3)","v":0},{"$f":"SUMPRODUCT(((T_DataComboFile[Implementation programme]=$G$3)*(T_DataComboFile[Econ3]=$G207))*T_DataComboFile[2021/22 Revised baseline]*$B$3)","v":0},0,{"$f":"SUMPRODUCT(((T_DataComboFile[Implementation programme]=$G$3)*(T_DataComboFile[Econ3]=$G207))*T_DataComboFile[2022/23 Baseline]*$B$3)","v":0},{"$f":"SUMPRODUCT(((T_DataComboFile[Implementation programme]=$G$3)*(T_DataComboFile[Econ3]=$G207))*T_DataComboFile[2022/23 Revised baseline]*$B$3)","v":0},0,{"$f":"SUMPRODUCT(((T_DataComboFile[Implementation programme]=$G$3)*(T_DataComboFile[Econ3]=$G207))*T_DataComboFile[2023/24 Baseline]*$B$3)","v":0},{"$f":"SUMPRODUCT(((T_DataComboFile[Implementation programme]=$G$3)*(T_DataComboFile[Econ3]=$G207))*T_DataComboFile[2023/24 Revised baseline]*$B$3)","v":0},0]
[0,5,null,null,null,null,"Payments for capital assets",{"$f":"SUM(H209:H215)","v":0},0,0,0,0,0,0,{"$f":"SUM(O209:O215)","v":0},0]
[0,5,null,null,null,null,"Buildings and other fixed structures",{"$f":"SUMPRODUCT(((T_DataComboFile[Implementation programme]=$G$3)*(T_DataComboFile[Econ3]=$G209))*T_DataComboFile[2021/22 Baseline]*$B$3)","v":0},{"$f":"SUMPRODUCT(((T_DataComboFile[Implementation programme]=$G$3)*(T_DataComboFile[Econ3]=$G209))*T_DataComboFile[2021/22 Revised baseline]*$B$3)","v":0},0,{"$f":"SUMPRODUCT(((T_DataComboFile[Implementation programme]=$G$3)*(T_DataComboFile[Econ3]=$G209))*T_DataComboFile[2022/23 Baseline]*$B$3)","v":0},{"$f":"SUMPRODUCT(((T_DataComboFile[Implementation programme]=$G$3)*(T_DataComboFile[Econ3]=$G209))*T_DataComboFile[2022/23 Revised baseline]*$B$3)","v":0},0,{"$f":"SUMPRODUCT(((T_DataComboFile[Implementation programme]=$G$3)*(T_DataComboFile[Econ3]=$G209))*T_DataComboFile[2023/24 Baseline]*$B$3)","v":0},{"$f":"SUMPRODUCT(((T_DataComboFile[Implementation programme]=$G$3)*(T_DataComboFile[Econ3]=$G209))*T_DataComboFile[2023/24 Revised baseline]*$B$3)","v":0},0]
[0,5,null,null,null,null,"Machinery and equipment",{"$f":"SUMPRODUCT(((T_DataComboFile[Implementation programme]=$G$3)*(T_DataComboFile[Econ3]=$G210))*T_DataComboFile[2021/22 Baseline]*$B$3)","v":0},{"$f":"SUMPRODUCT(((T_DataComboFile[Implementation programme]=$G$3)*(T_DataComboFile[Econ3]=$G210))*T_DataComboFile[2021/22 Revised baseline]*$B$3)","v":0},0,{"$f":"SUMPRODUCT(((T_DataComboFile[Implementation programme]=$G$3)*(T_DataComboFile[Econ3]=$G210))*T_DataComboFile[2022/23 Baseline]*$B$3)","v":0},{"$f":"SUMPRODUCT(((T_DataComboFile[Implementation programme]=$G$3)*(T_DataComboFile[Econ3]=$G210))*T_DataComboFile[2022/23 Revised baseline]*$B$3)","v":0},0,{"$f":"SUMPRODUCT(((T_DataComboFile[Implementation programme]=$G$3)*(T_DataComboFile[Econ3]=$G210))*T_DataComboFile[2023/24 Baseline]*$B$3)","v":0},{"$f":"SUMPRODUCT(((T_DataComboFile[Implementation programme]=$G$3)*(T_DataComboFile[Econ3]=$G210))*T_DataComboFile[2023/24 Revised baseline]*$B$3)","v":0},0]
[0,5,null,null,null,null,"Heritage assets",{"$f":"SUMPRODUCT(((T_DataComboFile[Implementation programme]=$G$3)*(T_DataComboFile[Econ3]=$G211))*T_DataComboFile[2021/22 Baseline]*$B$3)","v":0},{"$f":"SUMPRODUCT(((T_DataComboFile[Implementation programme]=$G$3)*(T_DataComboFile[Econ3]=$G211))*T_DataComboFile[2021/22 Revised baseline]*$B$3)","v":0},0,{"$f":"SUMPRODUCT(((T_DataComboFile[Implementation programme]=$G$3)*(T_DataComboFile[Econ3]=$G211))*T_DataComboFile[2022/23 Baseline]*$B$3)","v":0},{"$f":"SUMPRODUCT(((T_DataComboFile[Implementation programme]=$G$3)*(T_DataComboFile[Econ3]=$G211))*T_DataComboFile[2022/23 Revised baseline]*$B$3)","v":0},0,{"$f":"SUMPRODUCT(((T_DataComboFile[Implementation programme]=$G$3)*(T_DataComboFile[Econ3]=$G211))*T_DataComboFile[2023/24 Baseline]*$B$3)","v":0},{"$f":"SUMPRODUCT(((T_DataComboFile[Implementation programme]=$G$3)*(T_DataComboFile[Econ3]=$G211))*T_DataComboFile[2023/24 Revised baseline]*$B$3)","v":0},0]
[0,5,null,null,null,null,"Specialised military assets",{"$f":"SUMPRODUCT(((T_DataComboFile[Implementation programme]=$G$3)*(T_DataComboFile[Econ3]=$G212))*T_DataComboFile[2021/22 Baseline]*$B$3)","v":0},{"$f":"SUMPRODUCT(((T_DataComboFile[Implementation programme]=$G$3)*(T_DataComboFile[Econ3]=$G212))*T_DataComboFile[2021/22 Revised baseline]*$B$3)","v":0},0,{"$f":"SUMPRODUCT(((T_DataComboFile[Implementation programme]=$G$3)*(T_DataComboFile[Econ3]=$G212))*T_DataComboFile[2022/23 Baseline]*$B$3)","v":0},{"$f":"SUMPRODUCT(((T_DataComboFile[Implementation programme]=$G$3)*(T_DataComboFile[Econ3]=$G212))*T_DataComboFile[2022/23 Revised baseline]*$B$3)","v":0},0,{"$f":"SUMPRODUCT(((T_DataComboFile[Implementation programme]=$G$3)*(T_DataComboFile[Econ3]=$G212))*T_DataComboFile[2023/24 Baseline]*$B$3)","v":0},{"$f":"SUMPRODUCT(((T_DataComboFile[Implementation programme]=$G$3)*(T_DataComboFile[Econ3]=$G212))*T_DataComboFile[2023/24 Revised baseline]*$B$3)","v":0},0]
[0,5,null,null,null,null,"Biological assets",{"$f":"SUMPRODUCT(((T_DataComboFile[Implementation programme]=$G$3)*(T_DataComboFile[Econ3]=$G213))*T_DataComboFile[2021/22 Baseline]*$B$3)","v":0},{"$f":"SUMPRODUCT(((T_DataComboFile[Implementation programme]=$G$3)*(T_DataComboFile[Econ3]=$G213))*T_DataComboFile[2021/22 Revised baseline]*$B$3)","v":0},0,{"$f":"SUMPRODUCT(((T_DataComboFile[Implementation programme]=$G$3)*(T_DataComboFile[Econ3]=$G213))*T_DataComboFile[2022/23 Baseline]*$B$3)","v":0},{"$f":"SUMPRODUCT(((T_DataComboFile[Implementation programme]=$G$3)*(T_DataComboFile[Econ3]=$G213))*T_DataComboFile[2022/23 Revised baseline]*$B$3)","v":0},0,{"$f":"SUMPRODUCT(((T_DataComboFile[Implementation programme]=$G$3)*(T_DataComboFile[Econ3]=$G213))*T_DataComboFile[2023/24 Baseline]*$B$3)","v":0},{"$f":"SUMPRODUCT(((T_DataComboFile[Implementation programme]=$G$3)*(T_DataComboFile[Econ3]=$G213))*T_DataComboFile[2023/24 Revised baseline]*$B$3)","v":0},0]
[0,5,null,null,null,null,"Land and sub-soil assets",{"$f":"SUMPRODUCT(((T_DataComboFile[Implementation programme]=$G$3)*(T_DataComboFile[Econ3]=$G214))*T_DataComboFile[2021/22 Baseline]*$B$3)","v":0},{"$f":"SUMPRODUCT(((T_DataComboFile[Implementation programme]=$G$3)*(T_DataComboFile[Econ3]=$G214))*T_DataComboFile[2021/22 Revised baseline]*$B$3)","v":0},0,{"$f":"SUMPRODUCT(((T_DataComboFile[Implementation programme]=$G$3)*(T_DataComboFile[Econ3]=$G214))*T_DataComboFile[2022/23 Baseline]*$B$3)","v":0},{"$f":"SUMPRODUCT(((T_DataComboFile[Implementation programme]=$G$3)*(T_DataComboFile[Econ3]=$G214))*T_DataComboFile[2022/23 Revised baseline]*$B$3)","v":0},0,{"$f":"SUMPRODUCT(((T_DataComboFile[Implementation programme]=$G$3)*(T_DataComboFile[Econ3]=$G214))*T_DataComboFile[2023/24 Baseline]*$B$3)","v":0},{"$f":"SUMPRODUCT(((T_DataComboFile[Implementation programme]=$G$3)*(T_DataComboFile[Econ3]=$G214))*T_DataComboFile[2023/24 Revised baseline]*$B$3)","v":0},0]
[0,5,null,null,null,null,"Software and other intangible assets",{"$f":"SUMPRODUCT(((T_DataComboFile[Implementation programme]=$G$3)*(T_DataComboFile[Econ3]=$G215))*T_DataComboFile[2021/22 Baseline]*$B$3)","v":0},{"$f":"SUMPRODUCT(((T_DataComboFile[Implementation programme]=$G$3)*(T_DataComboFile[Econ3]=$G215))*T_DataComboFile[2021/22 Revised baseline]*$B$3)","v":0},0,{"$f":"SUMPRODUCT(((T_DataComboFile[Implementation programme]=$G$3)*(T_DataComboFile[Econ3]=$G215))*T_DataComboFile[2022/23 Baseline]*$B$3)","v":0},{"$f":"SUMPRODUCT(((T_DataComboFile[Implementation programme]=$G$3)*(T_DataComboFile[Econ3]=$G215))*T_DataComboFile[2022/23 Revised baseline]*$B$3)","v":0},0,{"$f":"SUMPRODUCT(((T_DataComboFile[Implementation programme]=$G$3)*(T_DataComboFile[Econ3]=$G215))*T_DataComboFile[2023/24 Baseline]*$B$3)","v":0},{"$f":"SUMPRODUCT(((T_DataComboFile[Implementation programme]=$G$3)*(T_DataComboFile[Econ3]=$G215))*T_DataComboFile[2023/24 Revised baseline]*$B$3)","v":0},0]
[0,5,null,null,null,null,"Payments for financial assets",{"$f":"SUMPRODUCT(((T_DataComboFile[Implementation programme]=$G$3)*(T_DataComboFile[Econ3]=$G216))*T_DataComboFile[2021/22 Baseline]*$B$3)","v":0},{"$f":"SUMPRODUCT(((T_DataComboFile[Implementation programme]=$G$3)*(T_DataComboFile[Econ3]=$G216))*T_DataComboFile[2021/22 Revised baseline]*$B$3)","v":0},0,{"$f":"SUMPRODUCT(((T_DataComboFile[Implementation programme]=$G$3)*(T_DataComboFile[Econ3]=$G216))*T_DataComboFile[2022/23 Baseline]*$B$3)","v":0},{"$f":"SUMPRODUCT(((T_DataComboFile[Implementation programme]=$G$3)*(T_DataComboFile[Econ3]=$G216))*T_DataComboFile[2022/23 Revised baseline]*$B$3)","v":0},0,{"$f":"SUMPRODUCT(((T_DataComboFile[Implementation programme]=$G$3)*(T_DataComboFile[Econ3]=$G216))*T_DataComboFile[2023/24 Baseline]*$B$3)","v":0},{"$f":"SUMPRODUCT(((T_DataComboFile[Implementation programme]=$G$3)*(T_DataComboFile[Econ3]=$G216))*T_DataComboFile[2023/24 Revised baseline]*$B$3)","v":0},0]
[0,5,null,null,null,null,"Total",{"$f":"SUM(H173,H183,H208,H216)","v":0},0,0,0,0,0,0,{"$f":"SUM(O173,O183,O208,O216)","v":0},0]
[]
[null,null,null,null,null,null,null,{"$f":"L65-H217","v":0},{"$f":"O65-I217","v":0},null,{"$f":"P65-K217","v":0},{"$f":"S65-L217","v":0},null,{"$f":"T65-N217","v":0},{"$f":"W65-O217","v":0}]

{"sheet":"IP3","index":12,"n_rows":219,"n_cols":23,"rows_kept":219,"cut":false,"hidden":false,"merged":[[215,16,215,20],[209,16,209,20],[210,16,210,20],[211,16,211,20],[212,16,212,20],[213,16,213,20],[214,16,214,20],[208,16,208,20],[174,16,174,20],[181,16,181,20],[182,16,182,20],[183,16,183,20],[184,16,184,20],[196,16,196,20],[197,16,197,20],[198,16,198,20],[205,16,205,20],[206,16,206,20],[207,16,207,20],[175,16,175,20],[176,16,176,20],[177,16,177,20],[178,16,178,20],[187,16,187,20],[173,16,173,20],[129,16,129,20],[130,16,130,20],[131,16,131,20],[132,16,132,20],[133,16,133,20],[141,16,141,20],[142,16,142,20],[143,16,162,20],[170,16,170,20],[171,16,171,20],[172,16,172,20],[108,16,108,20],[108,21,108,23],[109,16,109,20],[109,21,109,23],[110,16,110,20],[110,21,110,23],[128,16,128,20],[117,16,117,20],[118,16,118,20],[119,16,119,20],[120,16,120,20],[121,16,121,20],[122,16,122,20],[123,16,123,20],[124,16,124,20],[125,16,125,20],[126,16,126,20],[127,16,127,20],[103,16,103,20],[103,21,103,23],[104,16,104,20],[104,21,104,23],[105,16,105,20],[105,21,105,23],[106,16,106,20],[106,21,106,23],[107,16,107,20],[107,21,107,23],[98,16,98,20],[98,21,98,23],[99,16,99,20],[99,21,99,23],[100,16,100,20],[100,21,100,23],[101,16,101,20],[101,21,101,23],[102,16,102,20],[102,21,102,23],[70,6,70,17],[73,6,87,17],[94,16,94,20],[94,21,94,23],[95,16,95,20],[95,21,95,23],[96,16,96,20],[96,21,96,23],[97,16,97,20],[97,21,97,23],[188,16,188,20],[189,16,189,20],[190,16,190,20],[191,16,191,20],[179,16,179,20],[180,16,180,20],[185,16,185,20],[186,16,186,20],[200,16,200,20],[201,16,201,20],[202,16,202,20],[203,16,203,20],[204,16,204,20],[192,16,192,20],[193,16,193,20],[194,16,194,20],[195,16,195,20],[199,16,199,20]]}
[]
[null,null,null,null,null,null,"Implementation programme:"]
[null,{"$f":"IF(G3=\"\",0,1)","v":0},null,null,null,3,null,"… select from dropdown list"]
[null,null,null,null,null,null,null,null,null,null,null,null,"Growth"]
[null,null,null,null,null,null,"Quick view","2020/21","2021/22","2022/23","2023/24","Trend","2021/22","2022/23","2023/24","Ave Ann",null,"2020/21","2021/22","2022/23","2023/24"]
[null,null,null,null,null,null,"Compensation of employees",{"$f":"SUMPRODUCT(($G$32:$G$65=$G6)*($K$32:$K$65))","v":0},{"$f":"SUMPRODUCT(($G$32:$G$65=$G6)*($O$32:$O$65))","v":0},{"$f":"SUMPRODUCT(($G$32:$G$65=$G6)*($S$32:$S$65))","v":0},{"$f":"SUMPRODUCT(($G$32:$G$65=$G6)*($W$32:$W$65))","v":0},null,{"$f":"IFERROR(I6/H6-1,0)","v":0},0,0,{"$f":"IFERROR(((K6/H6)^(1/3)-1),0)","v":0}]
[null,null,null,null,null,null,"Goods and services",{"$f":"SUMPRODUCT(($G$32:$G$65=$G7)*($K$32:$K$65))","v":0},{"$f":"SUMPRODUCT(($G$32:$G$65=$G7)*($O$32:$O$65))","v":0},{"$f":"SUMPRODUCT(($G$32:$G$65=$G7)*($S$32:$S$65))","v":0},{"$f":"SUMPRODUCT(($G$32:$G$65=$G7)*($W$32:$W$65))","v":0},null,0,0,0,0]
[null,null,null,null,null,null,"Transfers and subsidies",{"$f":"SUMPRODUCT(($G$32:$G$65=$G8)*($K$32:$K$65))","v":0},{"$f":"SUMPRODUCT(($G$32:$G$65=$G8)*($O$32:$O$65))","v":0},{"$f":"SUMPRODUCT(($G$32:$G$65=$G8)*($S$32:$S$65))","v":0},{"$f":"SUMPRODUCT(($G$32:$G$65=$G8)*($W$32:$W$65))","v":0},null,0,0,0,0]
[null,null,null,null,null,null,"Payments for capital assets",{"$f":"SUMPRODUCT(($G$32:$G$65=$G9)*($K$32:$K$65))","v":0},{"$f":"SUMPRODUCT(($G$32:$G$65=$G9)*($O$32:$O$65))","v":0},{"$f":"SUMPRODUCT(($G$32:$G$65=$G9)*($S$32:$S$65))","v":0},{"$f":"SUMPRODUCT(($G$32:$G$65=$G9)*($W$32:$W$65))","v":0},null,0,0,0,0]
[null,null,null,null,null,null,"Total",{"$f":"SUMPRODUCT(($G$32:$G$65=$G10)*($K$32:$K$65))","v":0},{"$f":"SUMPRODUCT(($G$32:$G$65=$G10)*($O$32:$O$65))","v":0},{"$f":"SUMPRODUCT(($G$32:$G$65=$G10)*($S$32:$S$65))","v":0},{"$f":"SUMPRODUCT(($G$32:$G$65=$G10)*($W$32:$W$65))","v":0},null,0,0,0,0]
[null,null,null,null,null,null,"Composition of spending (% of Total)"]
[null,null,null,null,null,null,"Compensation of employees",{"$f":"IFERROR(H6/H$10,\"\")","v":""},"","","",null,null,null,null,null,null,{"$f":"IF(H12>0.0595,H12,\"\")","v":""},"","",""]
[null,null,null,null,null,null,"Goods and services","","","","",null,null,null,null,null,null,"","","",""]
[null,null,null,null,null,null,"Transfers and subsidies","","","","",null,null,null,null,null,null,"","","",""]
[null,null,null,null,null,null,"Payments for capital assets","","","","",null,null,null,null,null,null,"","","",""]
[]
[null,null,null,null,null,null,"Division of Revenue","2020/21","2021/22","2022/23","2023/24","Trend","2021/22","2022/23","2023/24","Ave Ann"]
[{"$f":"$G$3","v":0},"NAT",null,null,null,null,"National",{"$f":"SUMPRODUCT(((T_DataComboFile[Implementation programme]=$G$3)*(T_DataComboFile[DOR]=$B18))*T_DataComboFile[2020/21 Revised])","v":2331086},{"$f":"SUMPRODUCT(((T_DataComboFile[Implementation programme]=$G$3)*(T_DataComboFile[DOR]=$B18))*T_DataComboFile[2021/22 Revised baseline])","v":2583809},{"$f":"SUMPRODUCT(((T_DataComboFile[Implementation programme]=$G$3)*(T_DataComboFile[DOR]=$B18))*T_DataComboFile[2022/23 Revised baseline])","v":2617960},{"$f":"SUMPRODUCT(((T_DataComboFile[Implementation programme]=$G$3)*(T_DataComboFile[DOR]=$B18))*T_DataComboFile[2023/24 Revised baseline])","v":2733345},null,{"$f":"IFERROR(I18/H18-1,0)","v":0.10841427557799244},{"$f":"IFERROR(J18/I18-1,0)","v":1.3217308245307535E-2},{"$f":"IFERROR(K18/J18-1,0)","v":4.4074393802808309E-2},{"$f":"IFERROR(((K18/H18)^(1/3)-1),0)","v":5.449708876349435E-2}]
[0,null,null,null,null,null,"Provincial",{"$f":"SUM(H20:H21)","v":0},0,0,0,null,0,0,0,0]
[0,"PES",null,null,null,null,"Provincial equitable share",{"$f":"SUMPRODUCT(((T_DataComboFile[Implementation programme]=$G$3)*(T_DataComboFile[DOR]=$B20))*T_DataComboFile[2020/21 Revised])","v":0},{"$f":"SUMPRODUCT(((T_DataComboFile[Implementation programme]=$G$3)*(T_DataComboFile[DOR]=$B20))*T_DataComboFile[2021/22 Revised baseline])","v":0},{"$f":"SUMPRODUCT(((T_DataComboFile[Implementation programme]=$G$3)*(T_DataComboFile[DOR]=$B20))*T_DataComboFile[2022/23 Revised baseline])","v":0},{"$f":"SUMPRODUCT(((T_DataComboFile[Implementation programme]=$G$3)*(T_DataComboFile[DOR]=$B20))*T_DataComboFile[2023/24 Revised baseline])","v":0},null,{"$f":"IFERROR(I20/H20-1,0)","v":0},0,0,{"$f":"IFERROR(((K20/H20)^(1/3)-1),0)","v":0}]
[0,"PCG",null,null,null,null,"Provincial conditional grants",{"$f":"SUMPRODUCT(((T_DataComboFile[Implementation programme]=$G$3)*(T_DataComboFile[DOR]=$B21))*T_DataComboFile[2020/21 Revised])","v":0},{"$f":"SUMPRODUCT(((T_DataComboFile[Implementation programme]=$G$3)*(T_DataComboFile[DOR]=$B21))*T_DataComboFile[2021/22 Revised baseline])","v":0},{"$f":"SUMPRODUCT(((T_DataComboFile[Implementation programme]=$G$3)*(T_DataComboFile[DOR]=$B21))*T_DataComboFile[2022/23 Revised baseline])","v":0},{"$f":"SUMPRODUCT(((T_DataComboFile[Implementation programme]=$G$3)*(T_DataComboFile[DOR]=$B21))*T_DataComboFile[2023/24 Revised baseline])","v":0},null,0,0,0,0]
[0,null,null,null,null,null,"Local government",{"$f":"SUM(H23:H25)","v":0},0,0,0,null,{"$f":"IFERROR(I22/H22-1,0)","v":0},{"$f":"IFERROR(J22/I22-1,0)","v":0},{"$f":"IFERROR(K22/J22-1,0)","v":0},{"$f":"IFERROR(((K22/H22)^(1/3)-1),0)","v":0}]
[0,"LES",null,null,null,null,"Local equitable share",{"$f":"SUMPRODUCT(((T_DataComboFile[Implementation programme]=$G$3)*(T_DataComboFile[DOR]=$B23))*T_DataComboFile[2020/21 Revised])","v":0},{"$f":"SUMPRODUCT(((T_DataComboFile[Implementation programme]=$G$3)*(T_DataComboFile[DOR]=$B23))*T_DataComboFile[2021/22 Revised baseline])","v":0},{"$f":"SUMPRODUCT(((T_DataComboFile[Implementation programme]=$G$3)*(T_DataComboFile[DOR]=$B23))*T_DataComboFile[2022/23 Revised baseline])","v":0},{"$f":"SUMPRODUCT(((T_DataComboFile[Implementation programme]=$G$3)*(T_DataComboFile[DOR]=$B23))*T_DataComboFile[2023/24 Revised baseline])","v":0},null,{"$f":"IFERROR(I23/H23-1,0)","v":0},0,0,{"$f":"IFERROR(((K23/H23)^(1/3)-1),0)","v":0}]
[0,"LCG",null,null,null,null,"Local conditional grants",{"$f":"SUMPRODUCT(((T_DataComboFile[Implementation programme]=$G$3)*(T_DataComboFile[DOR]=$B24))*T_DataComboFile[2020/21 Revised])","v":0},{"$f":"SUMPRODUCT(((T_DataComboFile[Implementation programme]=$G$3)*(T_DataComboFile[DOR]=$B24))*T_DataComboFile[2021/22 Revised baseline])","v":0},{"$f":"SUMPRODUCT(((T_DataComboFile[Implementation programme]=$G$3)*(T_DataComboFile[DOR]=$B24))*T_DataComboFile[2022/23 Revised baseline])","v":0},{"$f":"SUMPRODUCT(((T_DataComboFile[Implementation programme]=$G$3)*(T_DataComboFile[DOR]=$B24))*T_DataComboFile[2023/24 Revised baseline])","v":0},null,0,0,0,0]
[0,"GFL",null,null,null,null,"General fuel levy ",{"$f":"SUMPRODUCT(((T_DataComboFile[Implementation programme]=$G$3)*(T_DataComboFile[DOR]=$B25))*T_DataComboFile[2020/21 Revised])","v":0},{"$f":"SUMPRODUCT(((T_DataComboFile[Implementation programme]=$G$3)*(T_DataComboFile[DOR]=$B25))*T_DataComboFile[2021/22 Revised baseline])","v":0},{"$f":"SUMPRODUCT(((T_DataComboFile[Implementation programme]=$G$3)*(T_DataComboFile[DOR]=$B25))*T_DataComboFile[2022/23 Revised baseline])","v":0},{"$f":"SUMPRODUCT(((T_DataComboFile[Implementation programme]=$G$3)*(T_DataComboFile[DOR]=$B25))*T_DataComboFile[2023/24 Revised baseline])","v":0},null,0,0,0,0]
[]
[]
[null,null,null,null,null,null,{"$f":"G3","v":0}]
[{"$f":"$G$3","v":0},0,null,null,null,null,null,"2017/18","2018/19","2019/20","2020/21","2021/22",null,null,null,"2022/23",null,null,null,"2023/24"]
[{"$f":"$G$3","v":0},0,null,null,null,null,"Rand thousand","Audited outcome","Audited outcome","Pre-audited outcome","Budget","Baseline","Decrease","Increase","Revised baseline","Baseline","Decrease","Increase","Revised baseline","Baseline","Decrease","Increase","Revised baseline"]
[0,0,null,null,null,null,"Economic classification"]
[0,0,null,null,null,null,"Current payments",{"$f":"SUM(H33:H35)","v":0},0,0,0,0,0,0,0,0,0,0,0,0,0,0,0]
[0,0,null,null,null,null,"Compensation of employees",{"$f":"SUMPRODUCT(((T_DataComboFile[Implementation programme]=$G$3)*(T_DataComboFile[Econ3]=$G33))*T_DataComboFile[2017/18]*$B$3)","v":0},{"$f":"SUMPRODUCT(((T_DataComboFile[Implementation programme]=$G$3)*(T_DataComboFile[Econ3]=$G33))*T_DataComboFile[2018/19]*$B$3)","v":0},{"$f":"SUMPRODUCT(((T_DataComboFile[Implementation programme]=$G$3)*(T_DataComboFile[Econ3]=$G33))*T_DataComboFile[2019/20 Revised estimate]*$B$3)","v":0},{"$f":"SUMPRODUCT(((T_DataComboFile[Implementation programme]=$G$3)*(T_DataComboFile[Econ3]=$G33))*T_DataComboFile[2020/21 Revised]*$B$3)","v":0},{"$f":"SUMPRODUCT(((T_DataComboFile[Implementation programme]=$G$3)*(T_DataComboFile[Econ3]=$G33))*T_DataComboFile[2021/22 Baseline]*$B$3)","v":0},{"$f":"SUMPRODUCT(((T_DataComboFile[Implementation programme]=$G$3)*(T_DataComboFile[Econ3]=$G33))*T_DataComboFile[2021/22 Reduction]*$B$3)","v":0},{"$f":"SUMPRODUCT(((T_DataComboFile[Implementation programme]=$G$3)*(T_DataComboFile[Econ3]=$G33))*T_DataComboFile[2021/22 Increase]*$B$3)","v":0},{"$f":"L33+M33+N33","v":0},{"$f":"SUMPRODUCT(((T_DataComboFile[Implementation programme]=$G$3)*(T_DataComboFile[Econ3]=$G33))*T_DataComboFile[2022/23 Baseline]*$B$3)","v":0},{"$f":"SUMPRODUCT(((T_DataComboFile[Implementation programme]=$G$3)*(T_DataComboFile[Econ3]=$G33))*T_DataComboFile[2022/23 Reduction]*$B$3)","v":0},{"$f":"SUMPRODUCT(((T_DataComboFile[Implementation programme]=$G$3)*(T_DataComboFile[Econ3]=$G33))*T_DataComboFile[2022/23 Increase]*$B$3)","v":0},{"$f":"P33+Q33+R33","v":0},{"$f":"SUMPRODUCT(((T_DataComboFile[Implementation programme]=$G$3)*(T_DataComboFile[Econ3]=$G33))*T_DataComboFile[2023/24 Baseline]*$B$3)","v":0},{"$f":"SUMPRODUCT(((T_DataComboFile[Implementation programme]=$G$3)*(T_DataComboFile[Econ3]=$G33))*T_DataComboFile[2023/24 Reduction]*$B$3)","v":0},{"$f":"SUMPRODUCT(((T_DataComboFile[Implementation programme]=$G$3)*(T_DataComboFile[Econ3]=$G33))*T_DataComboFile[2023/24 Increase]*$B$3)","v":0},{"$f":"T33+U33+V33","v":0}]
[0,0,null,null,null,null,"Goods and services",{"$f":"SUMPRODUCT(((T_DataComboFile[Implementation programme]=$G$3)*(T_DataComboFile[Econ3]=$G34))*T_DataComboFile[2017/18]*$B$3)","v":0},{"$f":"SUMPRODUCT(((T_DataComboFile[Implementation programme]=$G$3)*(T_DataComboFile[Econ3]=$G34))*T_DataComboFile[2018/19]*$B$3)","v":0},{"$f":"SUMPRODUCT(((T_DataComboFile[Implementation programme]=$G$3)*(T_DataComboFile[Econ3]=$G34))*T_DataComboFile[2019/20 Revised estimate]*$B$3)","v":0},{"$f":"SUMPRODUCT(((T_DataComboFile[Implementation programme]=$G$3)*(T_DataComboFile[Econ3]=$G34))*T_DataComboFile[2020/21 Revised]*$B$3)","v":0},{"$f":"SUMPRODUCT(((T_DataComboFile[Implementation programme]=$G$3)*(T_DataComboFile[Econ3]=$G34))*T_DataComboFile[2021/22 Baseline]*$B$3)","v":0},{"$f":"SUMPRODUCT(((T_DataComboFile[Implementation programme]=$G$3)*(T_DataComboFile[Econ3]=$G34))*T_DataComboFile[2021/22 Reduction]*$B$3)","v":0},{"$f":"SUMPRODUCT(((T_DataComboFile[Implementation programme]=$G$3)*(T_DataComboFile[Econ3]=$G34))*T_DataComboFile[2021/22 Increase]*$B$3)","v":0},0,{"$f":"SUMPRODUCT(((T_DataComboFile[Implementation programme]=$G$3)*(T_DataComboFile[Econ3]=$G34))*T_DataComboFile[2022/23 Baseline]*$B$3)","v":0},{"$f":"SUMPRODUCT(((T_DataComboFile[Implementation programme]=$G$3)*(T_DataComboFile[Econ3]=$G34))*T_DataComboFile[2022/23 Reduction]*$B$3)","v":0},{"$f":"SUMPRODUCT(((T_DataComboFile[Implementation programme]=$G$3)*(T_DataComboFile[Econ3]=$G34))*T_DataComboFile[2022/23 Increase]*$B$3)","v":0},0,{"$f":"SUMPRODUCT(((T_DataComboFile[Implementation programme]=$G$3)*(T_DataComboFile[Econ3]=$G34))*T_DataComboFile[2023/24 Baseline]*$B$3)","v":0},{"$f":"SUMPRODUCT(((T_DataComboFile[Implementation programme]=$G$3)*(T_DataComboFile[Econ3]=$G34))*T_DataComboFile[2023/24 Reduction]*$B$3)","v":0},{"$f":"SUMPRODUCT(((T_DataComboFile[Implementation programme]=$G$3)*(T_DataComboFile[Econ3]=$G34))*T_DataComboFile[2023/24 Increase]*$B$3)","v":0},0]
[0,0,null,null,null,null,"Interest and rent on land",{"$f":"SUMPRODUCT(((T_DataComboFile[Implementation programme]=$G$3)*(T_DataComboFile[Econ3]=$G35))*T_DataComboFile[2017/18]*$B$3)","v":0},{"$f":"SUMPRODUCT(((T_DataComboFile[Implementation programme]=$G$3)*(T_DataComboFile[Econ3]=$G35))*T_DataComboFile[2018/19]*$B$3)","v":0},{"$f":"SUMPRODUCT(((T_DataComboFile[Implementation programme]=$G$3)*(T_DataComboFile[Econ3]=$G35))*T_DataComboFile[2019/20 Revised estimate]*$B$3)","v":0},{"$f":"SUMPRODUCT(((T_DataComboFile[Implementation programme]=$G$3)*(T_DataComboFile[Econ3]=$G35))*T_DataComboFile[2020/21 Revised]*$B$3)","v":0},{"$f":"SUMPRODUCT(((T_DataComboFile[Implementation programme]=$G$3)*(T_DataComboFile[Econ3]=$G35))*T_DataComboFile[2021/22 Baseline]*$B$3)","v":0},{"$f":"SUMPRODUCT(((T_DataComboFile[Implementation programme]=$G$3)*(T_DataComboFile[Econ3]=$G35))*T_DataComboFile[2021/22 Reduction]*$B$3)","v":0},{"$f":"SUMPRODUCT(((T_DataComboFile[Implementation programme]=$G$3)*(T_DataComboFile[Econ3]=$G35))*T_DataComboFile[2021/22 Increase]*$B$3)","v":0},0,{"$f":"SUMPRODUCT(((T_DataComboFile[Implementation programme]=$G$3)*(T_DataComboFile[Econ3]=$G35))*T_DataComboFile[2022/23 Baseline]*$B$3)","v":0},{"$f":"SUMPRODUCT(((T_DataComboFile[Implementation programme]=$G$3)*(T_DataComboFile[Econ3]=$G35))*T_DataComboFile[2022/23 Reduction]*$B$3)","v":0},{"$f":"SUMPRODUCT(((T_DataComboFile[Implementation programme]=$G$3)*(T_DataComboFile[Econ3]=$G35))*T_DataComboFile[2022/23 Increase]*$B$3)","v":0},0,{"$f":"SUMPRODUCT(((T_DataComboFile[Implementation programme]=$G$3)*(T_DataComboFile[Econ3]=$G35))*T_DataComboFile[2023/24 Baseline]*$B$3)","v":0},{"$f":"SUMPRODUCT(((T_DataComboFile[Implementation programme]=$G$3)*(T_DataComboFile[Econ3]=$G35))*T_DataComboFile[2023/24 Reduction]*$B$3)","v":0},{"$f":"SUMPRODUCT(((T_DataComboFile[Implementation programme]=$G$3)*(T_DataComboFile[Econ3]=$G35))*T_DataComboFile[2023/24 Increase]*$B$3)","v":0},0]
[0,0,null,null,null,null,"Transfers and subsidies",{"$f":"SUM(H37,H40,H43:H45,H48:H49)","v":0},0,0,0,0,0,0,0,0,0,0,0,0,0,0,0]
[0,0,null,null,null,null,"Provinces and municipalities",{"$f":"SUM(H38:H39)","v":0},0,0,0,0,0,0,0,0,0,0,0,0,0,0,0]
[0,0,null,null,null,null,"Provinces",{"$f":"SUMPRODUCT(((T_DataComboFile[Implementation programme]=$G$3)*(T_DataComboFile[Econ4]=$G38))*T_DataComboFile[2017/18]*$B$3)","v":0},{"$f":"SUMPRODUCT(((T_DataComboFile[Implementation programme]=$G$3)*(T_DataComboFile[Econ4]=$G38))*T_DataComboFile[2018/19]*$B$3)","v":0},{"$f":"SUMPRODUCT(((T_DataComboFile[Implementation programme]=$G$3)*(T_DataComboFile[Econ4]=$G38))*T_DataComboFile[2019/20 Revised estimate]*$B$3)","v":0},{"$f":"SUMPRODUCT(((T_DataComboFile[Implementation programme]=$G$3)*(T_DataComboFile[Econ4]=$G38))*T_DataComboFile[2020/21 Revised]*$B$3)","v":0},{"$f":"SUMPRODUCT(((T_DataComboFile[Implementation programme]=$G$3)*(T_DataComboFile[Econ4]=$G38))*T_DataComboFile[2021/22 Baseline]*$B$3)","v":0},{"$f":"SUMPRODUCT(((T_DataComboFile[Implementation programme]=$G$3)*(T_DataComboFile[Econ4]=$G38))*T_DataComboFile[2021/22 Reduction]*$B$3)","v":0},{"$f":"SUMPRODUCT(((T_DataComboFile[Implementation programme]=$G$3)*(T_DataComboFile[Econ4]=$G38))*T_DataComboFile[2021/22 Increase]*$B$3)","v":0},{"$f":"L38+M38+N38","v":0},{"$f":"SUMPRODUCT(((T_DataComboFile[Implementation programme]=$G$3)*(T_DataComboFile[Econ4]=$G38))*T_DataComboFile[2022/23 Baseline]*$B$3)","v":0},{"$f":"SUMPRODUCT(((T_DataComboFile[Implementation programme]=$G$3)*(T_DataComboFile[Econ4]=$G38))*T_DataComboFile[2022/23 Reduction]*$B$3)","v":0},{"$f":"SUMPRODUCT(((T_DataComboFile[Implementation programme]=$G$3)*(T_DataComboFile[Econ4]=$G38))*T_DataComboFile[2022/23 Increase]*$B$3)","v":0},{"$f":"P38+Q38+R38","v":0},{"$f":"SUMPRODUCT(((T_DataComboFile[Implementation programme]=$G$3)*(T_DataComboFile[Econ4]=$G38))*T_DataComboFile[2023/24 Baseline]*$B$3)","v":0},{"$f":"SUMPRODUCT(((T_DataComboFile[Implementation programme]=$G$3)*(T_DataComboFile[Econ4]=$G38))*T_DataComboFile[2023/24 Reduction]*$B$3)","v":0},{"$f":"SUMPRODUCT(((T_DataComboFile[Implementation programme]=$G$3)*(T_DataComboFile[Econ4]=$G38))*T_DataComboFile[2023/24 Increase]*$B$3)","v":0},{"$f":"T38+U38+V38","v":0}]
[0,0,null,null,null,null,"Municipalities",{"$f":"SUMPRODUCT(((T_DataComboFile[Implementation programme]=$G$3)*(T_DataComboFile[Econ4]=$G39))*T_DataComboFile[2017/18]*$B$3)","v":0},{"$f":"SUMPRODUCT(((T_DataComboFile[Implementation programme]=$G$3)*(T_DataComboFile[Econ4]=$G39))*T_DataComboFile[2018/19]*$B$3)","v":0},{"$f":"SUMPRODUCT(((T_DataComboFile[Implementation programme]=$G$3)*(T_DataComboFile[Econ4]=$G39))*T_DataComboFile[2019/20 Revised estimate]*$B$3)","v":0},{"$f":"SUMPRODUCT(((T_DataComboFile[Implementation programme]=$G$3)*(T_DataComboFile[Econ4]=$G39))*T_DataComboFile[2020/21 Revised]*$B$3)","v":0},{"$f":"SUMPRODUCT(((T_DataComboFile[Implementation programme]=$G$3)*(T_DataComboFile[Econ4]=$G39))*T_DataComboFile[2021/22 Baseline]*$B$3)","v":0},{"$f":"SUMPRODUCT(((T_DataComboFile[Implementation programme]=$G$3)*(T_DataComboFile[Econ4]=$G39))*T_DataComboFile[2021/22 Reduction]*$B$3)","v":0},{"$f":"SUMPRODUCT(((T_DataComboFile[Implementation programme]=$G$3)*(T_DataComboFile[Econ4]=$G39))*T_DataComboFile[2021/22 Increase]*$B$3)","v":0},0,{"$f":"SUMPRODUCT(((T_DataComboFile[Implementation programme]=$G$3)*(T_DataComboFile[Econ4]=$G39))*T_DataComboFile[2022/23 Baseline]*$B$3)","v":0},{"$f":"SUMPRODUCT(((T_DataComboFile[Implementation programme]=$G$3)*(T_DataComboFile[Econ4]=$G39))*T_DataComboFile[2022/23 Reduction]*$B$3)","v":0},{"$f":"SUMPRODUCT(((T_DataComboFile[Implementation programme]=$G$3)*(T_DataComboFile[Econ4]=$G39))*T_DataComboFile[2022/23 Increase]*$B$3)","v":0},0,{"$f":"SUMPRODUCT(((T_DataComboFile[Implementation programme]=$G$3)*(T_DataComboFile[Econ4]=$G39))*T_DataComboFile[2023/24 Baseline]*$B$3)","v":0},{"$f":"SUMPRODUCT(((T_DataComboFile[Implementation programme]=$G$3)*(T_DataComboFile[Econ4]=$G39))*T_DataComboFile[2023/24 Reduction]*$B$3)","v":0},{"$f":"SUMPRODUCT(((T_DataComboFile[Implementation programme]=$G$3)*(T_DataComboFile[Econ4]=$G39))*T_DataComboFile[2023/24 Increase]*$B$3)","v":0},0]
[0,0,null,null,null,null,"Departmental agencies and accounts",{"$f":"SUM(H41:H42)","v":0},0,0,0,0,0,0,0,0,0,0,0,0,0,0,0]
[0,0,null,null,null,null,"Social security funds",{"$f":"SUMPRODUCT(((T_DataComboFile[Implementation programme]=$G$3)*(T_DataComboFile[Econ4]=$G41))*T_DataComboFile[2017/18]*$B$3)","v":0},{"$f":"SUMPRODUCT(((T_DataComboFile[Implementation programme]=$G$3)*(T_DataComboFile[Econ4]=$G41))*T_DataComboFile[2018/19]*$B$3)","v":0},{"$f":"SUMPRODUCT(((T_DataComboFile[Implementation programme]=$G$3)*(T_DataComboFile[Econ4]=$G41))*T_DataComboFile[2019/20 Revised estimate]*$B$3)","v":0},{"$f":"SUMPRODUCT(((T_DataComboFile[Implementation programme]=$G$3)*(T_DataComboFile[Econ4]=$G41))*T_DataComboFile[2020/21 Revised]*$B$3)","v":0},{"$f":"SUMPRODUCT(((T_DataComboFile[Implementation programme]=$G$3)*(T_DataComboFile[Econ4]=$G41))*T_DataComboFile[2021/22 Baseline]*$B$3)","v":0},{"$f":"SUMPRODUCT(((T_DataComboFile[Implementation programme]=$G$3)*(T_DataComboFile[Econ4]=$G41))*T_DataComboFile[2021/22 Reduction]*$B$3)","v":0},{"$f":"SUMPRODUCT(((T_DataComboFile[Implementation programme]=$G$3)*(T_DataComboFile[Econ4]=$G41))*T_DataComboFile[2021/22 Increase]*$B$3)","v":0},{"$f":"L41+M41+N41","v":0},{"$f":"SUMPRODUCT(((T_DataComboFile[Implementation programme]=$G$3)*(T_DataComboFile[Econ4]=$G41))*T_DataComboFile[2022/23 Baseline]*$B$3)","v":0},{"$f":"SUMPRODUCT(((T_DataComboFile[Implementation programme]=$G$3)*(T_DataComboFile[Econ4]=$G41))*T_DataComboFile[2022/23 Reduction]*$B$3)","v":0},{"$f":"SUMPRODUCT(((T_DataComboFile[Implementation programme]=$G$3)*(T_DataComboFile[Econ4]=$G41))*T_DataComboFile[2022/23 Increase]*$B$3)","v":0},{"$f":"P41+Q41+R41","v":0},{"$f":"SUMPRODUCT(((T_DataComboFile[Implementation programme]=$G$3)*(T_DataComboFile[Econ4]=$G41))*T_DataComboFile[2023/24 Baseline]*$B$3)","v":0},{"$f":"SUMPRODUCT(((T_DataComboFile[Implementation programme]=$G$3)*(T_DataComboFile[Econ4]=$G41))*T_DataComboFile[2023/24 Reduction]*$B$3)","v":0},{"$f":"SUMPRODUCT(((T_DataComboFile[Implementation programme]=$G$3)*(T_DataComboFile[Econ4]=$G41))*T_DataComboFile[2023/24 Increase]*$B$3)","v":0},{"$f":"T41+U41+V41","v":0}]
[0,0,null,null,null,null,"Departmental agencies (non-business entities)",{"$f":"SUMPRODUCT(((T_DataComboFile[Implementation programme]=$G$3)*(T_DataComboFile[Econ4]=$G42))*T_DataComboFile[2017/18]*$B$3)","v":0},{"$f":"SUMPRODUCT(((T_DataComboFile[Implementation programme]=$G$3)*(T_DataComboFile[Econ4]=$G42))*T_DataComboFile[2018/19]*$B$3)","v":0},{"$f":"SUMPRODUCT(((T_DataComboFile[Implementation programme]=$G$3)*(T_DataComboFile[Econ4]=$G42))*T_DataComboFile[2019/20 Revised estimate]*$B$3)","v":0},{"$f":"SUMPRODUCT(((T_DataComboFile[Implementation programme]=$G$3)*(T_DataComboFile[Econ4]=$G42))*T_DataComboFile[2020/21 Revised]*$B$3)","v":0},{"$f":"SUMPRODUCT(((T_DataComboFile[Implementation programme]=$G$3)*(T_DataComboFile[Econ4]=$G42))*T_DataComboFile[2021/22 Baseline]*$B$3)","v":0},{"$f":"SUMPRODUCT(((T_DataComboFile[Implementation programme]=$G$3)*(T_DataComboFile[Econ4]=$G42))*T_DataComboFile[2021/22 Reduction]*$B$3)","v":0},{"$f":"SUMPRODUCT(((T_DataComboFile[Implementation programme]=$G$3)*(T_DataComboFile[Econ4]=$G42))*T_DataComboFile[2021/22 Increase]*$B$3)","v":0},0,{"$f":"SUMPRODUCT(((T_DataComboFile[Implementation programme]=$G$3)*(T_DataComboFile[Econ4]=$G42))*T_DataComboFile[2022/23 Baseline]*$B$3)","v":0},{"$f":"SUMPRODUCT(((T_DataComboFile[Implementation programme]=$G$3)*(T_DataComboFile[Econ4]=$G42))*T_DataComboFile[2022/23 Reduction]*$B$3)","v":0},{"$f":"SUMPRODUCT(((T_DataComboFile[Implementation programme]=$G$3)*(T_DataComboFile[Econ4]=$G42))*T_DataComboFile[2022/23 Increase]*$B$3)","v":0},0,{"$f":"SUMPRODUCT(((T_DataComboFile[Implementation programme]=$G$3)*(T_DataComboFile[Econ4]=$G42))*T_DataComboFile[2023/24 Baseline]*$B$3)","v":0},{"$f":"SUMPRODUCT(((T_DataComboFile[Implementation programme]=$G$3)*(T_DataComboFile[Econ4]=$G42))*T_DataComboFile[2023/24 Reduction]*$B$3)","v":0},{"$f":"SUMPRODUCT(((T_DataComboFile[Implementation programme]=$G$3)*(T_DataComboFile[Econ4]=$G42))*T_DataComboFile[2023/24 Increase]*$B$3)","v":0},0]
[0,0,null,null,null,null,"Higher education institutions",{"$f":"SUMPRODUCT(((T_DataComboFile[Implementation programme]=$G$3)*(T_DataComboFile[Econ3]=$G43))*T_DataComboFile[2017/18]*$B$3)","v":0},{"$f":"SUMPRODUCT(((T_DataComboFile[Implementation programme]=$G$3)*(T_DataComboFile[Econ3]=$G43))*T_DataComboFile[2018/19]*$B$3)","v":0},{"$f":"SUMPRODUCT(((T_DataComboFile[Implementation programme]=$G$3)*(T_DataComboFile[Econ3]=$G43))*T_DataComboFile[2019/20 Revised estimate]*$B$3)","v":0},{"$f":"SUMPRODUCT(((T_DataComboFile[Implementation programme]=$G$3)*(T_DataComboFile[Econ3]=$G43))*T_DataComboFile[2020/21 Revised]*$B$3)","v":0},{"$f":"SUMPRODUCT(((T_DataComboFile[Implementation programme]=$G$3)*(T_DataComboFile[Econ3]=$G43))*T_DataComboFile[2021/22 Baseline]*$B$3)","v":0},{"$f":"SUMPRODUCT(((T_DataComboFile[Implementation programme]=$G$3)*(T_DataComboFile[Econ3]=$G43))*T_DataComboFile[2021/22 Reduction]*$B$3)","v":0},{"$f":"SUMPRODUCT(((T_DataComboFile[Implementation programme]=$G$3)*(T_DataComboFile[Econ3]=$G43))*T_DataComboFile[2021/22 Increase]*$B$3)","v":0},0,{"$f":"SUMPRODUCT(((T_DataComboFile[Implementation programme]=$G$3)*(T_DataComboFile[Econ3]=$G43))*T_DataComboFile[2022/23 Baseline]*$B$3)","v":0},{"$f":"SUMPRODUCT(((T_DataComboFile[Implementation programme]=$G$3)*(T_DataComboFile[Econ3]=$G43))*T_DataComboFile[2022/23 Reduction]*$B$3)","v":0},{"$f":"SUMPRODUCT(((T_DataComboFile[Implementation programme]=$G$3)*(T_DataComboFile[Econ3]=$G43))*T_DataComboFile[2022/23 Increase]*$B$3)","v":0},0,{"$f":"SUMPRODUCT(((T_DataComboFile[Implementation programme]=$G$3)*(T_DataComboFile[Econ3]=$G43))*T_DataComboFile[2023/24 Baseline]*$B$3)","v":0},{"$f":"SUMPRODUCT(((T_DataComboFile[Implementation programme]=$G$3)*(T_DataComboFile[Econ3]=$G43))*T_DataComboFile[2023/24 Reduction]*$B$3)","v":0},{"$f":"SUMPRODUCT(((T_DataComboFile[Implementation programme]=$G$3)*(T_DataComboFile[Econ3]=$G43))*T_DataComboFile[2023/24 Increase]*$B$3)","v":0},0]
[0,0,null,null,null,null,"Foreign governments and international organisations",{"$f":"SUMPRODUCT(((T_DataComboFile[Implementation programme]=$G$3)*(T_DataComboFile[Econ3]=$G44))*T_DataComboFile[2017/18]*$B$3)","v":0},{"$f":"SUMPRODUCT(((T_DataComboFile[Implementation programme]=$G$3)*(T_DataComboFile[Econ3]=$G44))*T_DataComboFile[2018/19]*$B$3)","v":0},{"$f":"SUMPRODUCT(((T_DataComboFile[Implementation programme]=$G$3)*(T_DataComboFile[Econ3]=$G44))*T_DataComboFile[2019/20 Revised estimate]*$B$3)","v":0},{"$f":"SUMPRODUCT(((T_DataComboFile[Implementation programme]=$G$3)*(T_DataComboFile[Econ3]=$G44))*T_DataComboFile[2020/21 Revised]*$B$3)","v":0},{"$f":"SUMPRODUCT(((T_DataComboFile[Implementation programme]=$G$3)*(T_DataComboFile[Econ3]=$G44))*T_DataComboFile[2021/22 Baseline]*$B$3)","v":0},{"$f":"SUMPRODUCT(((T_DataComboFile[Implementation programme]=$G$3)*(T_DataComboFile[Econ3]=$G44))*T_DataComboFile[2021/22 Reduction]*$B$3)","v":0},{"$f":"SUMPRODUCT(((T_DataComboFile[Implementation programme]=$G$3)*(T_DataComboFile[Econ3]=$G44))*T_DataComboFile[2021/22 Increase]*$B$3)","v":0},0,{"$f":"SUMPRODUCT(((T_DataComboFile[Implementation programme]=$G$3)*(T_DataComboFile[Econ3]=$G44))*T_DataComboFile[2022/23 Baseline]*$B$3)","v":0},{"$f":"SUMPRODUCT(((T_DataComboFile[Implementation programme]=$G$3)*(T_DataComboFile[Econ3]=$G44))*T_DataComboFile[2022/23 Reduction]*$B$3)","v":0},{"$f":"SUMPRODUCT(((T_DataComboFile[Implementation programme]=$G$3)*(T_DataComboFile[Econ3]=$G44))*T_DataComboFile[2022/23 Increase]*$B$3)","v":0},0,{"$f":"SUMPRODUCT(((T_DataComboFile[Implementation programme]=$G$3)*(T_DataComboFile[Econ3]=$G44))*T_DataComboFile[2023/24 Baseline]*$B$3)","v":0},{"$f":"SUMPRODUCT(((T_DataComboFile[Implementation programme]=$G$3)*(T_DataComboFile[Econ3]=$G44))*T_DataComboFile[2023/24 Reduction]*$B$3)","v":0},{"$f":"SUMPRODUCT(((T_DataComboFile[Implementation programme]=$G$3)*(T_DataComboFile[Econ3]=$G44))*T_DataComboFile[2023/24 Increase]*$B$3)","v":0},0]
[0,0,null,null,null,null,"Public corporations and private enterprises",{"$f":"SUM(H46:H47)","v":0},0,0,0,0,0,0,0,0,0,0,0,0,0,0,0]
[0,0,null,null,null,null,"Public corporations",{"$f":"SUMPRODUCT(((T_DataComboFile[Implementation programme]=$G$3)*(T_DataComboFile[Econ4]=$G46))*T_DataComboFile[2017/18]*$B$3)","v":0},{"$f":"SUMPRODUCT(((T_DataComboFile[Implementation programme]=$G$3)*(T_DataComboFile[Econ4]=$G46))*T_DataComboFile[2018/19]*$B$3)","v":0},{"$f":"SUMPRODUCT(((T_DataComboFile[Implementation programme]=$G$3)*(T_DataComboFile[Econ4]=$G46))*T_DataComboFile[2019/20 Revised estimate]*$B$3)","v":0},{"$f":"SUMPRODUCT(((T_DataComboFile[Implementation programme]=$G$3)*(T_DataComboFile[Econ4]=$G46))*T_DataComboFile[2020/21 Revised]*$B$3)","v":0},{"$f":"SUMPRODUCT(((T_DataComboFile[Implementation programme]=$G$3)*(T_DataComboFile[Econ4]=$G46))*T_DataComboFile[2021/22 Baseline]*$B$3)","v":0},{"$f":"SUMPRODUCT(((T_DataComboFile[Implementation programme]=$G$3)*(T_DataComboFile[Econ4]=$G46))*T_DataComboFile[2021/22 Reduction]*$B$3)","v":0},{"$f":"SUMPRODUCT(((T_DataComboFile[Implementation programme]=$G$3)*(T_DataComboFile[Econ4]=$G46))*T_DataComboFile[2021/22 Increase]*$B$3)","v":0},{"$f":"L46+M46+N46","v":0},{"$f":"SUMPRODUCT(((T_DataComboFile[Implementation programme]=$G$3)*(T_DataComboFile[Econ4]=$G46))*T_DataComboFile[2022/23 Baseline]*$B$3)","v":0},{"$f":"SUMPRODUCT(((T_DataComboFile[Implementation programme]=$G$3)*(T_DataComboFile[Econ4]=$G46))*T_DataComboFile[2022/23 Reduction]*$B$3)","v":0},{"$f":"SUMPRODUCT(((T_DataComboFile[Implementation programme]=$G$3)*(T_DataComboFile[Econ4]=$G46))*T_DataComboFile[2022/23 Increase]*$B$3)","v":0},{"$f":"P46+Q46+R46","v":0},{"$f":"SUMPRODUCT(((T_DataComboFile[Implementation programme]=$G$3)*(T_DataComboFile[Econ4]=$G46))*T_DataComboFile[2023/24 Baseline]*$B$3)","v":0},{"$f":"SUMPRODUCT(((T_DataComboFile[Implementation programme]=$G$3)*(T_DataComboFile[Econ4]=$G46))*T_DataComboFile[2023/24 Reduction]*$B$3)","v":0},{"$f":"SUMPRODUCT(((T_DataComboFile[Implementation programme]=$G$3)*(T_DataComboFile[Econ4]=$G46))*T_DataComboFile[2023/24 Increase]*$B$3)","v":0},{"$f":"T46+U46+V46","v":0}]
[0,0,null,null,null,null,"Private enterprises",{"$f":"SUMPRODUCT(((T_DataComboFile[Implementation programme]=$G$3)*(T_DataComboFile[Econ4]=$G47))*T_DataComboFile[2017/18]*$B$3)","v":0},{"$f":"SUMPRODUCT(((T_DataComboFile[Implementation programme]=$G$3)*(T_DataComboFile[Econ4]=$G47))*T_DataComboFile[2018/19]*$B$3)","v":0},{"$f":"SUMPRODUCT(((T_DataComboFile[Implementation programme]=$G$3)*(T_DataComboFile[Econ4]=$G47))*T_DataComboFile[2019/20 Revised estimate]*$B$3)","v":0},{"$f":"SUMPRODUCT(((T_DataComboFile[Implementation programme]=$G$3)*(T_DataComboFile[Econ4]=$G47))*T_DataComboFile[2020/21 Revised]*$B$3)","v":0},{"$f":"SUMPRODUCT(((T_DataComboFile[Implementation programme]=$G$3)*(T_DataComboFile[Econ4]=$G47))*T_DataComboFile[2021/22 Baseline]*$B$3)","v":0},{"$f":"SUMPRODUCT(((T_DataComboFile[Implementation programme]=$G$3)*(T_DataComboFile[Econ4]=$G47))*T_DataComboFile[2021/22 Reduction]*$B$3)","v":0},{"$f":"SUMPRODUCT(((T_DataComboFile[Implementation programme]=$G$3)*(T_DataComboFile[Econ4]=$G47))*T_DataComboFile[2021/22 Increase]*$B$3)","v":0},0,{"$f":"SUMPRODUCT(((T_DataComboFile[Implementation programme]=$G$3)*(T_DataComboFile[Econ4]=$G47))*T_DataComboFile[2022/23 Baseline]*$B$3)","v":0},{"$f":"SUMPRODUCT(((T_DataComboFile[Implementation programme]=$G$3)*(T_DataComboFile[Econ4]=$G47))*T_DataComboFile[2022/23 Reduction]*$B$3)","v":0},{"$f":"SUMPRODUCT(((T_DataComboFile[Implementation programme]=$G$3)*(T_DataComboFile[Econ4]=$G47))*T_DataComboFile[2022/23 Increase]*$B$3)","v":0},0,{"$f":"SUMPRODUCT(((T_DataComboFile[Implementation programme]=$G$3)*(T_DataComboFile[Econ4]=$G47))*T_DataComboFile[2023/24 Baseline]*$B$3)","v":0},{"$f":"SUMPRODUCT(((T_DataComboFile[Implementation programme]=$G$3)*(T_DataComboFile[Econ4]=$G47))*T_DataComboFile[2023/24 Reduction]*$B$3)","v":0},{"$f":"SUMPRODUCT(((T_DataComboFile[Implementation programme]=$G$3)*(T_DataComboFile[Econ4]=$G47))*T_DataComboFile[2023/24 Increase]*$B$3)","v":0},0]
[0,0,null,null,null,null,"Non-profit institutions",{"$f":"SUMPRODUCT(((T_DataComboFile[Implementation programme]=$G$3)*(T_DataComboFile[Econ3]=$G48))*T_DataComboFile[2017/18]*$B$3)","v":0},{"$f":"SUMPRODUCT(((T_DataComboFile[Implementation programme]=$G$3)*(T_DataComboFile[Econ3]=$G48))*T_DataComboFile[2018/19]*$B$3)","v":0},{"$f":"SUMPRODUCT(((T_DataComboFile[Implementation programme]=$G$3)*(T_DataComboFile[Econ3]=$G48))*T_DataComboFile[2019/20 Revised estimate]*$B$3)","v":0},{"$f":"SUMPRODUCT(((T_DataComboFile[Implementation programme]=$G$3)*(T_DataComboFile[Econ3]=$G48))*T_DataComboFile[2020/21 Revised]*$B$3)","v":0},{"$f":"SUMPRODUCT(((T_DataComboFile[Implementation programme]=$G$3)*(T_DataComboFile[Econ3]=$G48))*T_DataComboFile[2021/22 Baseline]*$B$3)","v":0},{"$f":"SUMPRODUCT(((T_DataComboFile[Implementation programme]=$G$3)*(T_DataComboFile[Econ3]=$G48))*T_DataComboFile[2021/22 Reduction]*$B$3)","v":0},{"$f":"SUMPRODUCT(((T_DataComboFile[Implementation programme]=$G$3)*(T_DataComboFile[Econ3]=$G48))*T_DataComboFile[2021/22 Increase]*$B$3)","v":0},0,{"$f":"SUMPRODUCT(((T_DataComboFile[Implementation programme]=$G$3)*(T_DataComboFile[Econ3]=$G48))*T_DataComboFile[2022/23 Baseline]*$B$3)","v":0},{"$f":"SUMPRODUCT(((T_DataComboFile[Implementation programme]=$G$3)*(T_DataComboFile[Econ3]=$G48))*T_DataComboFile[2022/23 Reduction]*$B$3)","v":0},{"$f":"SUMPRODUCT(((T_DataComboFile[Implementation programme]=$G$3)*(T_DataComboFile[Econ3]=$G48))*T_DataComboFile[2022/23 Increase]*$B$3)","v":0},0,{"$f":"SUMPRODUCT(((T_DataComboFile[Implementation programme]=$G$3)*(T_DataComboFile[Econ3]=$G48))*T_DataComboFile[2023/24 Baseline]*$B$3)","v":0},{"$f":"SUMPRODUCT(((T_DataComboFile[Implementation programme]=$G$3)*(T_DataComboFile[Econ3]=$G48))*T_DataComboFile[2023/24 Reduction]*$B$3)","v":0},{"$f":"SUMPRODUCT(((T_DataComboFile[Implementation programme]=$G$3)*(T_DataComboFile[Econ3]=$G48))*T_DataComboFile[2023/24 Increase]*$B$3)","v":0},0]
[0,0,null,null,null,null,"Households",{"$f":"SUM(H50:H51)","v":0},0,0,0,0,0,0,0,0,0,0,0,0,0,0,0]
[0,0,null,null,null,null,"Social benefits",{"$f":"SUMPRODUCT(((T_DataComboFile[Implementation programme]=$G$3)*(T_DataComboFile[Econ4]=$G50))*T_DataComboFile[2017/18]*$B$3)","v":0},{"$f":"SUMPRODUCT(((T_DataComboFile[Implementation programme]=$G$3)*(T_DataComboFile[Econ4]=$G50))*T_DataComboFile[2018/19]*$B$3)","v":0},{"$f":"SUMPRODUCT(((T_DataComboFile[Implementation programme]=$G$3)*(T_DataComboFile[Econ4]=$G50))*T_DataComboFile[2019/20 Revised estimate]*$B$3)","v":0},{"$f":"SUMPRODUCT(((T_DataComboFile[Implementation programme]=$G$3)*(T_DataComboFile[Econ4]=$G50))*T_DataComboFile[2020/21 Revised]*$B$3)","v":0},{"$f":"SUMPRODUCT(((T_DataComboFile[Implementation programme]=$G$3)*(T_DataComboFile[Econ4]=$G50))*T_DataComboFile[2021/22 Baseline]*$B$3)","v":0},{"$f":"SUMPRODUCT(((T_DataComboFile[Implementation programme]=$G$3)*(T_DataComboFile[Econ4]=$G50))*T_DataComboFile[2021/22 Reduction]*$B$3)","v":0},{"$f":"SUMPRODUCT(((T_DataComboFile[Implementation programme]=$G$3)*(T_DataComboFile[Econ4]=$G50))*T_DataComboFile[2021/22 Increase]*$B$3)","v":0},{"$f":"L50+M50+N50","v":0},{"$f":"SUMPRODUCT(((T_DataComboFile[Implementation programme]=$G$3)*(T_DataComboFile[Econ4]=$G50))*T_DataComboFile[2022/23 Baseline]*$B$3)","v":0},{"$f":"SUMPRODUCT(((T_DataComboFile[Implementation programme]=$G$3)*(T_DataComboFile[Econ4]=$G50))*T_DataComboFile[2022/23 Reduction]*$B$3)","v":0},{"$f":"SUMPRODUCT(((T_DataComboFile[Implementation programme]=$G$3)*(T_DataComboFile[Econ4]=$G50))*T_DataComboFile[2022/23 Increase]*$B$3)","v":0},{"$f":"P50+Q50+R50","v":0},{"$f":"SUMPRODUCT(((T_DataComboFile[Implementation programme]=$G$3)*(T_DataComboFile[Econ4]=$G50))*T_DataComboFile[2023/24 Baseline]*$B$3)","v":0},{"$f":"SUMPRODUCT(((T_DataComboFile[Implementation programme]=$G$3)*(T_DataComboFile[Econ4]=$G50))*T_DataComboFile[2023/24 Reduction]*$B$3)","v":0},{"$f":"SUMPRODUCT(((T_DataComboFile[Implementation programme]=$G$3)*(T_DataComboFile[Econ4]=$G50))*T_DataComboFile[2023/24 Increase]*$B$3)","v":0},{"$f":"T50+U50+V50","v":0}]
[0,0,null,null,null,null,"Other transfers to households",{"$f":"SUMPRODUCT(((T_DataComboFile[Implementation programme]=$G$3)*(T_DataComboFile[Econ4]=$G51))*T_DataComboFile[2017/18]*$B$3)","v":0},{"$f":"SUMPRODUCT(((T_DataComboFile[Implementation programme]=$G$3)*(T_DataComboFile[Econ4]=$G51))*T_DataComboFile[2018/19]*$B$3)","v":0},{"$f":"SUMPRODUCT(((T_DataComboFile[Implementation programme]=$G$3)*(T_DataComboFile[Econ4]=$G51))*T_DataComboFile[2019/20 Revised estimate]*$B$3)","v":0},{"$f":"SUMPRODUCT(((T_DataComboFile[Implementation programme]=$G$3)*(T_DataComboFile[Econ4]=$G51))*T_DataComboFile[2020/21 Revised]*$B$3)","v":0},{"$f":"SUMPRODUCT(((T_DataComboFile[Implementation programme]=$G$3)*(T_DataComboFile[Econ4]=$G51))*T_DataComboFile[2021/22 Baseline]*$B$3)","v":0},{"$f":"SUMPRODUCT(((T_DataComboFile[Implementation programme]=$G$3)*(T_DataComboFile[Econ4]=$G51))*T_DataComboFile[2021/22 Reduction]*$B$3)","v":0},{"$f":"SUMPRODUCT(((T_DataComboFile[Implementation programme]=$G$3)*(T_DataComboFile[Econ4]=$G51))*T_DataComboFile[2021/22 Increase]*$B$3)","v":0},0,{"$f":"SUMPRODUCT(((T_DataComboFile[Implementation programme]=$G$3)*(T_DataComboFile[Econ4]=$G51))*T_DataComboFile[2022/23 Baseline]*$B$3)","v":0},{"$f":"SUMPRODUCT(((T_DataComboFile[Implementation programme]=$G$3)*(T_DataComboFile[Econ4]=$G51))*T_DataComboFile[2022/23 Reduction]*$B$3)","v":0},{"$f":"SUMPRODUCT(((T_DataComboFile[Implementation programme]=$G$3)*(T_DataComboFile[Econ4]=$G51))*T_DataComboFile[2022/23 Increase]*$B$3)","v":0},0,{"$f":"SUMPRODUCT(((T_DataComboFile[Implementation programme]=$G$3)*(T_DataComboFile[Econ4]=$G51))*T_DataComboFile[2023/24 Baseline]*$B$3)","v":0},{"$f":"SUMPRODUCT(((T_DataComboFile[Implementation programme]=$G$3)*(T_DataComboFile[Econ4]=$G51))*T_DataComboFile[2023/24 Reduction]*$B$3)","v":0},{"$f":"SUMPRODUCT(((T_DataComboFile[Implementation programme]=$G$3)*(T_DataComboFile[Econ4]=$G51))*T_DataComboFile[2023/24 Increase]*$B$3)","v":0},0]
[0,0,null,null,null,null,"Payments for capital assets",{"$f":"SUM(H53,H56,H59:H63)","v":0},0,0,0,0,0,0,0,0,0,0,0,0,0,0,0]
[0,0,null,null,null,null,"Buildings and other fixed structures",{"$f":"SUM(H54:H55)","v":0},0,0,0,0,0,0,0,0,0,0,0,0,0,0,0]
[0,0,null,null,null,null,"Buildings",{"$f":"SUMPRODUCT(((T_DataComboFile[Implementation programme]=$G$3)*(T_DataComboFile[Econ4]=$G54))*T_DataComboFile[2017/18]*$B$3)","v":0},{"$f":"SUMPRODUCT(((T_DataComboFile[Implementation programme]=$G$3)*(T_DataComboFile[Econ4]=$G54))*T_DataComboFile[2018/19]*$B$3)","v":0},{"$f":"SUMPRODUCT(((T_DataComboFile[Implementation programme]=$G$3)*(T_DataComboFile[Econ4]=$G54))*T_DataComboFile[2019/20 Revised estimate]*$B$3)","v":0},{"$f":"SUMPRODUCT(((T_DataComboFile[Implementation programme]=$G$3)*(T_DataComboFile[Econ4]=$G54))*T_DataComboFile[2020/21 Revised]*$B$3)","v":0},{"$f":"SUMPRODUCT(((T_DataComboFile[Implementation programme]=$G$3)*(T_DataComboFile[Econ4]=$G54))*T_DataComboFile[2021/22 Baseline]*$B$3)","v":0},{"$f":"SUMPRODUCT(((T_DataComboFile[Implementation programme]=$G$3)*(T_DataComboFile[Econ4]=$G54))*T_DataComboFile[2021/22 Reduction]*$B$3)","v":0},{"$f":"SUMPRODUCT(((T_DataComboFile[Implementation programme]=$G$3)*(T_DataComboFile[Econ4]=$G54))*T_DataComboFile[2021/22 Increase]*$B$3)","v":0},{"$f":"L54+M54+N54","v":0},{"$f":"SUMPRODUCT(((T_DataComboFile[Implementation programme]=$G$3)*(T_DataComboFile[Econ4]=$G54))*T_DataComboFile[2022/23 Baseline]*$B$3)","v":0},{"$f":"SUMPRODUCT(((T_DataComboFile[Implementation programme]=$G$3)*(T_DataComboFile[Econ4]=$G54))*T_DataComboFile[2022/23 Reduction]*$B$3)","v":0},{"$f":"SUMPRODUCT(((T_DataComboFile[Implementation programme]=$G$3)*(T_DataComboFile[Econ4]=$G54))*T_DataComboFile[2022/23 Increase]*$B$3)","v":0},{"$f":"P54+Q54+R54","v":0},{"$f":"SUMPRODUCT(((T_DataComboFile[Implementation programme]=$G$3)*(T_DataComboFile[Econ4]=$G54))*T_DataComboFile[2023/24 Baseline]*$B$3)","v":0},{"$f":"SUMPRODUCT(((T_DataComboFile[Implementation programme]=$G$3)*(T_DataComboFile[Econ4]=$G54))*T_DataComboFile[2023/24 Reduction]*$B$3)","v":0},{"$f":"SUMPRODUCT(((T_DataComboFile[Implementation programme]=$G$3)*(T_DataComboFile[Econ4]=$G54))*T_DataComboFile[2023/24 Increase]*$B$3)","v":0},{"$f":"T54+U54+V54","v":0}]
[0,0,null,null,null,null,"Other fixed structures",{"$f":"SUMPRODUCT(((T_DataComboFile[Implementation programme]=$G$3)*(T_DataComboFile[Econ4]=$G55))*T_DataComboFile[2017/18]*$B$3)","v":0},{"$f":"SUMPRODUCT(((T_DataComboFile[Implementation programme]=$G$3)*(T_DataComboFile[Econ4]=$G55))*T_DataComboFile[2018/19]*$B$3)","v":0},{"$f":"SUMPRODUCT(((T_DataComboFile[Implementation programme]=$G$3)*(T_DataComboFile[Econ4]=$G55))*T_DataComboFile[2019/20 Revised estimate]*$B$3)","v":0},{"$f":"SUMPRODUCT(((T_DataComboFile[Implementation programme]=$G$3)*(T_DataComboFile[Econ4]=$G55))*T_DataComboFile[2020/21 Revised]*$B$3)","v":0},{"$f":"SUMPRODUCT(((T_DataComboFile[Implementation programme]=$G$3)*(T_DataComboFile[Econ4]=$G55))*T_DataComboFile[2021/22 Baseline]*$B$3)","v":0},{"$f":"SUMPRODUCT(((T_DataComboFile[Implementation programme]=$G$3)*(T_DataComboFile[Econ4]=$G55))*T_DataComboFile[2021/22 Reduction]*$B$3)","v":0},{"$f":"SUMPRODUCT(((T_DataComboFile[Implementation programme]=$G$3)*(T_DataComboFile[Econ4]=$G55))*T_DataComboFile[2021/22 Increase]*$B$3)","v":0},0,{"$f":"SUMPRODUCT(((T_DataComboFile[Implementation programme]=$G$3)*(T_DataComboFile[Econ4]=$G55))*T_DataComboFile[2022/23 Baseline]*$B$3)","v":0},{"$f":"SUMPRODUCT(((T_DataComboFile[Implementation programme]=$G$3)*(T_DataComboFile[Econ4]=$G55))*T_DataComboFile[2022/23 Reduction]*$B$3)","v":0},{"$f":"SUMPRODUCT(((T_DataComboFile[Implementation programme]=$G$3)*(T_DataComboFile[Econ4]=$G55))*T_DataComboFile[2022/23 Increase]*$B$3)","v":0},0,{"$f":"SUMPRODUCT(((T_DataComboFile[Implementation programme]=$G$3)*(T_DataComboFile[Econ4]=$G55))*T_DataComboFile[2023/24 Baseline]*$B$3)","v":0},{"$f":"SUMPRODUCT(((T_DataComboFile[Implementation programme]=$G$3)*(T_DataComboFile[Econ4]=$G55))*T_DataComboFile[2023/24 Reduction]*$B$3)","v":0},{"$f":"SUMPRODUCT(((T_DataComboFile[Implementation programme]=$G$3)*(T_DataComboFile[Econ4]=$G55))*T_DataComboFile[2023/24 Increase]*$B$3)","v":0},0]
[0,0,null,null,null,null,"Machinery and equipment",{"$f":"SUM(H57:H58)","v":0},0,0,0,0,0,0,0,0,0,0,0,0,0,0,0]
[0,0,null,null,null,null,"Transport equipment",{"$f":"SUMPRODUCT(((T_DataComboFile[Implementation programme]=$G$3)*(T_DataComboFile[Econ4]=$G57))*T_DataComboFile[2017/18]*$B$3)","v":0},{"$f":"SUMPRODUCT(((T_DataComboFile[Implementation programme]=$G$3)*(T_DataComboFile[Econ4]=$G57))*T_DataComboFile[2018/19]*$B$3)","v":0},{"$f":"SUMPRODUCT(((T_DataComboFile[Implementation programme]=$G$3)*(T_DataComboFile[Econ4]=$G57))*T_DataComboFile[2019/20 Revised estimate]*$B$3)","v":0},{"$f":"SUMPRODUCT(((T_DataComboFile[Implementation programme]=$G$3)*(T_DataComboFile[Econ4]=$G57))*T_DataComboFile[2020/21 Revised]*$B$3)","v":0},{"$f":"SUMPRODUCT(((T_DataComboFile[Implementation programme]=$G$3)*(T_DataComboFile[Econ4]=$G57))*T_DataComboFile[2021/22 Baseline]*$B$3)","v":0},{"$f":"SUMPRODUCT(((T_DataComboFile[Implementation programme]=$G$3)*(T_DataComboFile[Econ4]=$G57))*T_DataComboFile[2021/22 Reduction]*$B$3)","v":0},{"$f":"SUMPRODUCT(((T_DataComboFile[Implementation programme]=$G$3)*(T_DataComboFile[Econ4]=$G57))*T_DataComboFile[2021/22 Increase]*$B$3)","v":0},{"$f":"L57+M57+N57","v":0},{"$f":"SUMPRODUCT(((T_DataComboFile[Implementation programme]=$G$3)*(T_DataComboFile[Econ4]=$G57))*T_DataComboFile[2022/23 Baseline]*$B$3)","v":0},{"$f":"SUMPRODUCT(((T_DataComboFile[Implementation programme]=$G$3)*(T_DataComboFile[Econ4]=$G57))*T_DataComboFile[2022/23 Reduction]*$B$3)","v":0},{"$f":"SUMPRODUCT(((T_DataComboFile[Implementation programme]=$G$3)*(T_DataComboFile[Econ4]=$G57))*T_DataComboFile[2022/23 Increase]*$B$3)","v":0},{"$f":"P57+Q57+R57","v":0},{"$f":"SUMPRODUCT(((T_DataComboFile[Implementation programme]=$G$3)*(T_DataComboFile[Econ4]=$G57))*T_DataComboFile[2023/24 Baseline]*$B$3)","v":0},{"$f":"SUMPRODUCT(((T_DataComboFile[Implementation programme]=$G$3)*(T_DataComboFile[Econ4]=$G57))*T_DataComboFile[2023/24 Reduction]*$B$3)","v":0},{"$f":"SUMPRODUCT(((T_DataComboFile[Implementation programme]=$G$3)*(T_DataComboFile[Econ4]=$G57))*T_DataComboFile[2023/24 Increase]*$B$3)","v":0},{"$f":"T57+U57+V57","v":0}]
[0,0,null,null,null,null,"Other machinery and equipment",{"$f":"SUMPRODUCT(((T_DataComboFile[Implementation programme]=$G$3)*(T_DataComboFile[Econ4]=$G58))*T_DataComboFile[2017/18]*$B$3)","v":0},{"$f":"SUMPRODUCT(((T_DataComboFile[Implementation programme]=$G$3)*(T_DataComboFile[Econ4]=$G58))*T_DataComboFile[2018/19]*$B$3)","v":0},{"$f":"SUMPRODUCT(((T_DataComboFile[Implementation programme]=$G$3)*(T_DataComboFile[Econ4]=$G58))*T_DataComboFile[2019/20 Revised estimate]*$B$3)","v":0},{"$f":"SUMPRODUCT(((T_DataComboFile[Implementation programme]=$G$3)*(T_DataComboFile[Econ4]=$G58))*T_DataComboFile[2020/21 Revised]*$B$3)","v":0},{"$f":"SUMPRODUCT(((T_DataComboFile[Implementation programme]=$G$3)*(T_DataComboFile[Econ4]=$G58))*T_DataComboFile[2021/22 Baseline]*$B$3)","v":0},{"$f":"SUMPRODUCT(((T_DataComboFile[Implementation programme]=$G$3)*(T_DataComboFile[Econ4]=$G58))*T_DataComboFile[2021/22 Reduction]*$B$3)","v":0},{"$f":"SUMPRODUCT(((T_DataComboFile[Implementation programme]=$G$3)*(T_DataComboFile[Econ4]=$G58))*T_DataComboFile[2021/22 Increase]*$B$3)","v":0},0,{"$f":"SUMPRODUCT(((T_DataComboFile[Implementation programme]=$G$3)*(T_DataComboFile[Econ4]=$G58))*T_DataComboFile[2022/23 Baseline]*$B$3)","v":0},{"$f":"SUMPRODUCT(((T_DataComboFile[Implementation programme]=$G$3)*(T_DataComboFile[Econ4]=$G58))*T_DataComboFile[2022/23 Reduction]*$B$3)","v":0},{"$f":"SUMPRODUCT(((T_DataComboFile[Implementation programme]=$G$3)*(T_DataComboFile[Econ4]=$G58))*T_DataComboFile[2022/23 Increase]*$B$3)","v":0},0,{"$f":"SUMPRODUCT(((T_DataComboFile[Implementation programme]=$G$3)*(T_DataComboFile[Econ4]=$G58))*T_DataComboFile[2023/24 Baseline]*$B$3)","v":0},{"$f":"SUMPRODUCT(((T_DataComboFile[Implementation programme]=$G$3)*(T_DataComboFile[Econ4]=$G58))*T_DataComboFile[2023/24 Reduction]*$B$3)","v":0},{"$f":"SUMPRODUCT(((T_DataComboFile[Implementation programme]=$G$3)*(T_DataComboFile[Econ4]=$G58))*T_DataComboFile[2023/24 Increase]*$B$3)","v":0},0]
[0,0,null,null,null,null,"Heritage assets",{"$f":"SUMPRODUCT(((T_DataComboFile[Implementation programme]=$G$3)*(T_DataComboFile[Econ3]=$G59))*T_DataComboFile[2017/18]*$B$3)","v":0},{"$f":"SUMPRODUCT(((T_DataComboFile[Implementation programme]=$G$3)*(T_DataComboFile[Econ3]=$G59))*T_DataComboFile[2018/19]*$B$3)","v":0},{"$f":"SUMPRODUCT(((T_DataComboFile[Implementation programme]=$G$3)*(T_DataComboFile[Econ3]=$G59))*T_DataComboFile[2019/20 Revised estimate]*$B$3)","v":0},{"$f":"SUMPRODUCT(((T_DataComboFile[Implementation programme]=$G$3)*(T_DataComboFile[Econ3]=$G59))*T_DataComboFile[2020/21 Revised]*$B$3)","v":0},{"$f":"SUMPRODUCT(((T_DataComboFile[Implementation programme]=$G$3)*(T_DataComboFile[Econ3]=$G59))*T_DataComboFile[2021/22 Baseline]*$B$3)","v":0},{"$f":"SUMPRODUCT(((T_DataComboFile[Implementation programme]=$G$3)*(T_DataComboFile[Econ3]=$G59))*T_DataComboFile[2021/22 Reduction]*$B$3)","v":0},{"$f":"SUMPRODUCT(((T_DataComboFile[Implementation programme]=$G$3)*(T_DataComboFile[Econ3]=$G59))*T_DataComboFile[2021/22 Increase]*$B$3)","v":0},0,{"$f":"SUMPRODUCT(((T_DataComboFile[Implementation programme]=$G$3)*(T_DataComboFile[Econ3]=$G59))*T_DataComboFile[2022/23 Baseline]*$B$3)","v":0},{"$f":"SUMPRODUCT(((T_DataComboFile[Implementation programme]=$G$3)*(T_DataComboFile[Econ3]=$G59))*T_DataComboFile[2022/23 Reduction]*$B$3)","v":0},{"$f":"SUMPRODUCT(((T_DataComboFile[Implementation programme]=$G$3)*(T_DataComboFile[Econ3]=$G59))*T_DataComboFile[2022/23 Increase]*$B$3)","v":0},0,{"$f":"SUMPRODUCT(((T_DataComboFile[Implementation programme]=$G$3)*(T_DataComboFile[Econ3]=$G59))*T_DataComboFile[2023/24 Baseline]*$B$3)","v":0},{"$f":"SUMPRODUCT(((T_DataComboFile[Implementation programme]=$G$3)*(T_DataComboFile[Econ3]=$G59))*T_DataComboFile[2023/24 Reduction]*$B$3)","v":0},{"$f":"SUMPRODUCT(((T_DataComboFile[Implementation programme]=$G$3)*(T_DataComboFile[Econ3]=$G59))*T_DataComboFile[2023/24 Increase]*$B$3)","v":0},0]
[0,0,null,null,null,null,"Specialised military assets",{"$f":"SUMPRODUCT(((T_DataComboFile[Implementation programme]=$G$3)*(T_DataComboFile[Econ3]=$G60))*T_DataComboFile[2017/18]*$B$3)","v":0},{"$f":"SUMPRODUCT(((T_DataComboFile[Implementation programme]=$G$3)*(T_DataComboFile[Econ3]=$G60))*T_DataComboFile[2018/19]*$B$3)","v":0},{"$f":"SUMPRODUCT(((T_DataComboFile[Implementation programme]=$G$3)*(T_DataComboFile[Econ3]=$G60))*T_DataComboFile[2019/20 Revised estimate]*$B$3)","v":0},{"$f":"SUMPRODUCT(((T_DataComboFile[Implementation programme]=$G$3)*(T_DataComboFile[Econ3]=$G60))*T_DataComboFile[2020/21 Revised]*$B$3)","v":0},{"$f":"SUMPRODUCT(((T_DataComboFile[Implementation programme]=$G$3)*(T_DataComboFile[Econ3]=$G60))*T_DataComboFile[2021/22 Baseline]*$B$3)","v":0},{"$f":"SUMPRODUCT(((T_DataComboFile[Implementation programme]=$G$3)*(T_DataComboFile[Econ3]=$G60))*T_DataComboFile[2021/22 Reduction]*$B$3)","v":0},{"$f":"SUMPRODUCT(((T_DataComboFile[Implementation programme]=$G$3)*(T_DataComboFile[Econ3]=$G60))*T_DataComboFile[2021/22 Increase]*$B$3)","v":0},0,{"$f":"SUMPRODUCT(((T_DataComboFile[Implementation programme]=$G$3)*(T_DataComboFile[Econ3]=$G60))*T_DataComboFile[2022/23 Baseline]*$B$3)","v":0},{"$f":"SUMPRODUCT(((T_DataComboFile[Implementation programme]=$G$3)*(T_DataComboFile[Econ3]=$G60))*T_DataComboFile[2022/23 Reduction]*$B$3)","v":0},{"$f":"SUMPRODUCT(((T_DataComboFile[Implementation programme]=$G$3)*(T_DataComboFile[Econ3]=$G60))*T_DataComboFile[2022/23 Increase]*$B$3)","v":0},0,{"$f":"SUMPRODUCT(((T_DataComboFile[Implementation programme]=$G$3)*(T_DataComboFile[Econ3]=$G60))*T_DataComboFile[2023/24 Baseline]*$B$3)","v":0},{"$f":"SUMPRODUCT(((T_DataComboFile[Implementation programme]=$G$3)*(T_DataComboFile[Econ3]=$G60))*T_DataComboFile[2023/24 Reduction]*$B$3)","v":0},{"$f":"SUMPRODUCT(((T_DataComboFile[Implementation programme]=$G$3)*(T_DataComboFile[Econ3]=$G60))*T_DataComboFile[2023/24 Increase]*$B$3)","v":0},0]
[0,0,null,null,null,null,"Biological assets",{"$f":"SUMPRODUCT(((T_DataComboFile[Implementation programme]=$G$3)*(T_DataComboFile[Econ3]=$G61))*T_DataComboFile[2017/18]*$B$3)","v":0},{"$f":"SUMPRODUCT(((T_DataComboFile[Implementation programme]=$G$3)*(T_DataComboFile[Econ3]=$G61))*T_DataComboFile[2018/19]*$B$3)","v":0},{"$f":"SUMPRODUCT(((T_DataComboFile[Implementation programme]=$G$3)*(T_DataComboFile[Econ3]=$G61))*T_DataComboFile[2019/20 Revised estimate]*$B$3)","v":0},{"$f":"SUMPRODUCT(((T_DataComboFile[Implementation programme]=$G$3)*(T_DataComboFile[Econ3]=$G61))*T_DataComboFile[2020/21 Revised]*$B$3)","v":0},{"$f":"SUMPRODUCT(((T_DataComboFile[Implementation programme]=$G$3)*(T_DataComboFile[Econ3]=$G61))*T_DataComboFile[2021/22 Baseline]*$B$3)","v":0},{"$f":"SUMPRODUCT(((T_DataComboFile[Implementation programme]=$G$3)*(T_DataComboFile[Econ3]=$G61))*T_DataComboFile[2021/22 Reduction]*$B$3)","v":0},{"$f":"SUMPRODUCT(((T_DataComboFile[Implementation programme]=$G$3)*(T_DataComboFile[Econ3]=$G61))*T_DataComboFile[2021/22 Increase]*$B$3)","v":0},0,{"$f":"SUMPRODUCT(((T_DataComboFile[Implementation programme]=$G$3)*(T_DataComboFile[Econ3]=$G61))*T_DataComboFile[2022/23 Baseline]*$B$3)","v":0},{"$f":"SUMPRODUCT(((T_DataComboFile[Implementation programme]=$G$3)*(T_DataComboFile[Econ3]=$G61))*T_DataComboFile[2022/23 Reduction]*$B$3)","v":0},{"$f":"SUMPRODUCT(((T_DataComboFile[Implementation programme]=$G$3)*(T_DataComboFile[Econ3]=$G61))*T_DataComboFile[2022/23 Increase]*$B$3)","v":0},0,{"$f":"SUMPRODUCT(((T_DataComboFile[Implementation programme]=$G$3)*(T_DataComboFile[Econ3]=$G61))*T_DataComboFile[2023/24 Baseline]*$B$3)","v":0},{"$f":"SUMPRODUCT(((T_DataComboFile[Implementation programme]=$G$3)*(T_DataComboFile[Econ3]=$G61))*T_DataComboFile[2023/24 Reduction]*$B$3)","v":0},{"$f":"SUMPRODUCT(((T_DataComboFile[Implementation programme]=$G$3)*(T_DataComboFile[Econ3]=$G61))*T_DataComboFile[2023/24 Increase]*$B$3)","v":0},0]
[0,0,null,null,null,null,"Land and sub-soil assets",{"$f":"SUMPRODUCT(((T_DataComboFile[Implementation programme]=$G$3)*(T_DataComboFile[Econ3]=$G62))*T_DataComboFile[2017/18]*$B$3)","v":0},{"$f":"SUMPRODUCT(((T_DataComboFile[Implementation programme]=$G$3)*(T_DataComboFile[Econ3]=$G62))*T_DataComboFile[2018/19]*$B$3)","v":0},{"$f":"SUMPRODUCT(((T_DataComboFile[Implementation programme]=$G$3)*(T_DataComboFile[Econ3]=$G62))*T_DataComboFile[2019/20 Revised estimate]*$B$3)","v":0},{"$f":"SUMPRODUCT(((T_DataComboFile[Implementation programme]=$G$3)*(T_DataComboFile[Econ3]=$G62))*T_DataComboFile[2020/21 Revised]*$B$3)","v":0},{"$f":"SUMPRODUCT(((T_DataComboFile[Implementation programme]=$G$3)*(T_DataComboFile[Econ3]=$G62))*T_DataComboFile[2021/22 Baseline]*$B$3)","v":0},{"$f":"SUMPRODUCT(((T_DataComboFile[Implementation programme]=$G$3)*(T_DataComboFile[Econ3]=$G62))*T_DataComboFile[2021/22 Reduction]*$B$3)","v":0},{"$f":"SUMPRODUCT(((T_DataComboFile[Implementation programme]=$G$3)*(T_DataComboFile[Econ3]=$G62))*T_DataComboFile[2021/22 Increase]*$B$3)","v":0},0,{"$f":"SUMPRODUCT(((T_DataComboFile[Implementation programme]=$G$3)*(T_DataComboFile[Econ3]=$G62))*T_DataComboFile[2022/23 Baseline]*$B$3)","v":0},{"$f":"SUMPRODUCT(((T_DataComboFile[Implementation programme]=$G$3)*(T_DataComboFile[Econ3]=$G62))*T_DataComboFile[2022/23 Reduction]*$B$3)","v":0},{"$f":"SUMPRODUCT(((T_DataComboFile[Implementation programme]=$G$3)*(T_DataComboFile[Econ3]=$G62))*T_DataComboFile[2022/23 Increase]*$B$3)","v":0},0,{"$f":"SUMPRODUCT(((T_DataComboFile[Implementation programme]=$G$3)*(T_DataComboFile[Econ3]=$G62))*T_DataComboFile[2023/24 Baseline]*$B$3)","v":0},{"$f":"SUMPRODUCT(((T_DataComboFile[Implementation programme]=$G$3)*(T_DataComboFile[Econ3]=$G62))*T_DataComboFile[2023/24 Reduction]*$B$3)","v":0},{"$f":"SUMPRODUCT(((T_DataComboFile[Implementation programme]=$G$3)*(T_DataComboFile[Econ3]=$G62))*T_DataComboFile[2023/24 Increase]*$B$3)","v":0},0]
[0,0,null,null,null,null,"Software and other intangible assets",{"$f":"SUMPRODUCT(((T_DataComboFile[Implementation programme]=$G$3)*(T_DataComboFile[Econ3]=$G63))*T_DataComboFile[2017/18]*$B$3)","v":0},{"$f":"SUMPRODUCT(((T_DataComboFile[Implementation programme]=$G$3)*(T_DataComboFile[Econ3]=$G63))*T_DataComboFile[2018/19]*$B$3)","v":0},{"$f":"SUMPRODUCT(((T_DataComboFile[Implementation programme]=$G$3)*(T_DataComboFile[Econ3]=$G63))*T_DataComboFile[2019/20 Revised estimate]*$B$3)","v":0},{"$f":"SUMPRODUCT(((T_DataComboFile[Implementation programme]=$G$3)*(T_DataComboFile[Econ3]=$G63))*T_DataComboFile[2020/21 Revised]*$B$3)","v":0},{"$f":"SUMPRODUCT(((T_DataComboFile[Implementation programme]=$G$3)*(T_DataComboFile[Econ3]=$G63))*T_DataComboFile[2021/22 Baseline]*$B$3)","v":0},{"$f":"SUMPRODUCT(((T_DataComboFile[Implementation programme]=$G$3)*(T_DataComboFile[Econ3]=$G63))*T_DataComboFile[2021/22 Reduction]*$B$3)","v":0},{"$f":"SUMPRODUCT(((T_DataComboFile[Implementation programme]=$G$3)*(T_DataComboFile[Econ3]=$G63))*T_DataComboFile[2021/22 Increase]*$B$3)","v":0},0,{"$f":"SUMPRODUCT(((T_DataComboFile[Implementation programme]=$G$3)*(T_DataComboFile[Econ3]=$G63))*T_DataComboFile[2022/23 Baseline]*$B$3)","v":0},{"$f":"SUMPRODUCT(((T_DataComboFile[Implementation programme]=$G$3)*(T_DataComboFile[Econ3]=$G63))*T_DataComboFile[2022/23 Reduction]*$B$3)","v":0},{"$f":"SUMPRODUCT(((T_DataComboFile[Implementation programme]=$G$3)*(T_DataComboFile[Econ3]=$G63))*T_DataComboFile[2022/23 Increase]*$B$3)","v":0},0,{"$f":"SUMPRODUCT(((T_DataComboFile[Implementation programme]=$G$3)*(T_DataComboFile[Econ3]=$G63))*T_DataComboFile[2023/24 Baseline]*$B$3)","v":0},{"$f":"SUMPRODUCT(((T_DataComboFile[Implementation programme]=$G$3)*(T_DataComboFile[Econ3]=$G63))*T_DataComboFile[2023/24 Reduction]*$B$3)","v":0},{"$f":"SUMPRODUCT(((T_DataComboFile[Implementation programme]=$G$3)*(T_DataComboFile[Econ3]=$G63))*T_DataComboFile[2023/24 Increase]*$B$3)","v":0},0]
[0,0,null,null,null,null,"Payments for financial assets",{"$f":"SUMPRODUCT(((T_DataComboFile[Implementation programme]=$G$3)*(T_DataComboFile[Econ3]=$G64))*T_DataComboFile[2017/18]*$B$3)","v":0},{"$f":"SUMPRODUCT(((T_DataComboFile[Implementation programme]=$G$3)*(T_DataComboFile[Econ3]=$G64))*T_DataComboFile[2018/19]*$B$3)","v":0},{"$f":"SUMPRODUCT(((T_DataComboFile[Implementation programme]=$G$3)*(T_DataComboFile[Econ3]=$G64))*T_DataComboFile[2019/20 Revised estimate]*$B$3)","v":0},{"$f":"SUMPRODUCT(((T_DataComboFile[Implementation programme]=$G$3)*(T_DataComboFile[Econ3]=$G64))*T_DataComboFile[2020/21 Revised]*$B$3)","v":0},{"$f":"SUMPRODUCT(((T_DataComboFile[Implementation programme]=$G$3)*(T_DataComboFile[Econ3]=$G64))*T_DataComboFile[2021/22 Baseline]*$B$3)","v":0},{"$f":"SUMPRODUCT(((T_DataComboFile[Implementation programme]=$G$3)*(T_DataComboFile[Econ3]=$G64))*T_DataComboFile[2021/22 Reduction]*$B$3)","v":0},{"$f":"SUMPRODUCT(((T_DataComboFile[Implementation programme]=$G$3)*(T_DataComboFile[Econ3]=$G64))*T_DataComboFile[2021/22 Increase]*$B$3)","v":0},0,{"$f":"SUMPRODUCT(((T_DataComboFile[Implementation programme]=$G$3)*(T_DataComboFile[Econ3]=$G64))*T_DataComboFile[2022/23 Baseline]*$B$3)","v":0},{"$f":"SUMPRODUCT(((T_DataComboFile[Implementation programme]=$G$3)*(T_DataComboFile[Econ3]=$G64))*T_DataComboFile[2022/23 Reduction]*$B$3)","v":0},{"$f":"SUMPRODUCT(((T_DataComboFile[Implementation programme]=$G$3)*(T_DataComboFile[Econ3]=$G64))*T_DataComboFile[2022/23 Increase]*$B$3)","v":0},0,{"$f":"SUMPRODUCT(((T_DataComboFile[Implementation programme]=$G$3)*(T_DataComboFile[Econ3]=$G64))*T_DataComboFile[2023/24 Baseline]*$B$3)","v":0},{"$f":"SUMPRODUCT(((T_DataComboFile[Implementation programme]=$G$3)*(T_DataComboFile[Econ3]=$G64))*T_DataComboFile[2023/24 Reduction]*$B$3)","v":0},{"$f":"SUMPRODUCT(((T_DataComboFile[Implementation programme]=$G$3)*(T_DataComboFile[Econ3]=$G64))*T_DataComboFile[2023/24 Increase]*$B$3)","v":0},0]
[0,0,null,null,null,null,"Total",{"$f":"SUM(H32,H36,H52,H64)","v":0},0,0,0,0,0,0,0,0,0,0,0,0,0,0,0]
[]
[]
[]
[]
[]
[null,null,null,null,null,null,{"$f":"\"IMPACT OF ADJUSTMENTS: \" &UPPER($G$3)","v":"IMPACT OF ADJUSTMENTS: "}]
[]
[null,null,null,null,null,1,"Summary of impact on service delivery due to adjustments"]
[{"$f":"$G$3","v":0},1]
[0,1]
[0,1]
[0,1]
[0,1]
[0,1]
[0,1]
[0,1]
[0,1]
[0,1]
[0,1]
[0,1]
[0,1]
[0,1]
[0,1]
[]
[]
[]
[]
[]
[null,null,null,null,null,2,"Impact of adjustments on performance indicators"]
[{"$f":"$G$3","v":0},2,null,null,null,null,null,"2021/22",null,null,"2022/23",null,null,"2023/24",null,null," Comment",null,null,null,null,"Related MTSF Priority"]
[0,2,null,null,null,null,"Performance indicator","Original target","Revised target","Change","Original target","Revised target","Change","Original target","Revised target","Change"]
[0,2]
[0,2]
[0,2]
[0,2]
[0,2]
[0,2]
[0,2]
[0,2]
[0,2]
[0,2]
[0,2]
[0,2]
[0,2]
[0,2]
[0,2]
[]
[]
[]
[]
[]
[null,null,null,null,null,3,"Impact of adjustments on infrastructure projects"]
[{"$f":"$G$3","v":0},3,null,null,null,null,null,"2021/22",null,null,"2022/23",null,null,"2023/24",null,null," Comment"]
[0,3,null,null,null,null,"Project name","Original amount","Revised amount","Change","Original amount","Revised amount","Change","Original amount","Revised amount","Change"]
[0,3,null,null,null,null,null,null,null,{"$f":"I120-H120","v":0},null,null,{"$f":"L120-K120","v":0},null,null,{"$f":"O120-N120","v":0}]
[0,3,null,null,null,null,null,null,null,0,null,null,0,null,null,0]
[0,3,null,null,null,null,null,null,null,0,null,null,0,null,null,0]
[0,3,null,null,null,null,null,null,null,0,null,null,0,null,null,0]
[0,3,null,null,null,null,null,null,null,0,null,null,0,null,null,0]
[0,3,null,null,null,null,null,null,null,0,null,null,0,null,null,0]
[0,3,null,null,null,null,null,null,null,0,null,null,0,null,null,0]
[0,3,null,null,null,null,null,null,null,0,null,null,0,null,null,0]
[0,3,null,null,null,null,null,null,null,0,null,null,0,null,null,0]
[0,3,null,null,null,null,null,null,null,0,null,null,0,null,null,0]
[0,3,null,null,null,null,null,null,null,0,null,null,0,null,null,0]
[0,3,null,null,null,null,null,null,null,0,null,null,0,null,null,0]
[0,3,null,null,null,null,null,null,null,0,null,null,0,null,null,0]
[0,3,null,null,null,null,null,null,null,0,null,null,0,null,null,0]
[0,3,null,null,null,null,null,null,null,0,null,null,0,null,null,0]
[0,3,null,null,null,null,"Total",{"$f":"SUM(H120:H134)","v":0},0,0,0,0,0,0,0,0]
[]
[]
[]
[]
[]
[null,null,null,null,null,4,"Impact of adjustments on personnel headcount numbers"]
[{"$f":"$G$3","v":0},4,null,null,null,null,null,"2021/22",null,null,"2022/23",null,null,"2023/24",null,null," Comment"]
[0,4,null,null,null,null,"Salary level","Original number","Revised number","Change","Original number","Revised number","Change","Original number","Revised number","Change"]
[0,4,null,null,null,null,1,null,null,{"$f":"I144-H144","v":0},null,null,{"$f":"L144-K144","v":0},null,null,{"$f":"O144-N144","v":0}]
[0,4,null,null,null,null,2,null,null,0,null,null,0,null,null,0]
[0,4,null,null,null,null,3,null,null,0,null,null,0,null,null,0]
[0,4,null,null,null,null,4,null,null,0,null,null,0,null,null,0]
[0,4,null,null,null,null,5,null,null,0,null,null,0,null,null,0]
[0,4,null,null,null,null,6,null,null,0,null,null,0,null,null,0]
[0,4,null,null,null,null,7,null,null,0,null,null,0,null,null,0]
[0,4,null,null,null,null,8,null,null,0,null,null,0,null,null,0]
[0,4,null,null,null,null,9,null,null,0,null,null,0,null,null,0]
[0,4,null,null,null,null,10,null,null,0,null,null,0,null,null,0]
[0,4,null,null,null,null,11,null,null,0,null,null,0,null,null,0]
[0,4,null,null,null,null,12,null,null,0,null,null,0,null,null,0]
[0,4,null,null,null,null,13,null,null,0,null,null,0,null,null,0]
[0,4,null,null,null,null,14,null,null,0,null,null,0,null,null,0]
[0,4,null,null,null,null,15,null,null,0,null,null,0,null,null,0]
[0,4,null,null,null,null,16,null,null,0,null,null,0,null,null,0]
[0,4,null,null,null,null,"Other",null,null,0,null,null,0,null,null,0]
[0,4,null,null,null,null,"Other",null,null,0,null,null,0,null,null,0]
[0,4,null,null,null,null,"Other",null,null,0,null,null,0,null,null,0]
[0,4,null,null,null,null,"Other",null,null,0,null,null,0,null,null,0]
[0,4,null,null,null,null,"Total",{"$f":"SUM(H144:H163)","v":0},0,0,0,0,0,0,0,0]
[]
[]
[]
[]
[]
[null,null,null,null,null,5,"Impact of adjustments by economic classification"]
[{"$f":"$G$3","v":0},5,null,null,null,null,null,"2021/22",null,null,"2022/23",null,null,"2023/24",null,null," Comment"]
[0,5,null,null,null,null,"Salary level","Original number","Revised number","Change","Original number","Revised number","Change","Original number","Revised number","Change"]
[0,5,null,null,null,null,"Current payments",{"$f":"SUM(H174,H175,H182)","v":0},{"$f":"SUM(I174,I175,I182)","v":0},{"$f":"I173-H173","v":0},{"$f":"SUM(K174,K175,K182)","v":0},{"$f":"SUM(L174,L175,L182)","v":0},{"$f":"L173-K173","v":0},{"$f":"SUM(N174,N175,N182)","v":0},{"$f":"SUM(O174,O175,O182)","v":0},{"$f":"O173-N173","v":0}]
[0,5,null,null,null,null,"Compensation of employees",{"$f":"SUMPRODUCT(((T_DataComboFile[Implementation programme]=$G$3)*(T_DataComboFile[Econ3]=$G174))*T_DataComboFile[2021/22 Baseline]*$B$3)","v":0},{"$f":"SUMPRODUCT(((T_DataComboFile[Implementation programme]=$G$3)*(T_DataComboFile[Econ3]=$G174))*T_DataComboFile[2021/22 Revised baseline]*$B$3)","v":0},0,{"$f":"SUMPRODUCT(((T_DataComboFile[Implementation programme]=$G$3)*(T_DataComboFile[Econ3]=$G174))*T_DataComboFile[2022/23 Baseline]*$B$3)","v":0},{"$f":"SUMPRODUCT(((T_DataComboFile[Implementation programme]=$G$3)*(T_DataComboFile[Econ3]=$G174))*T_DataComboFile[2022/23 Revised baseline]*$B$3)","v":0},0,{"$f":"SUMPRODUCT(((T_DataComboFile[Implementation programme]=$G$3)*(T_DataComboFile[Econ3]=$G174))*T_DataComboFile[2023/24 Baseline]*$B$3)","v":0},{"$f":"SUMPRODUCT(((T_DataComboFile[Implementation programme]=$G$3)*(T_DataComboFile[Econ3]=$G174))*T_DataComboFile[2023/24 Revised baseline]*$B$3)","v":0},0]
[0,5,null,null,null,null,"Goods and services",{"$f":"SUMPRODUCT(((T_DataComboFile[Implementation programme]=$G$3)*(T_DataComboFile[Econ3]=$G175))*T_DataComboFile[2021/22 Baseline]*$B$3)","v":0},{"$f":"SUMPRODUCT(((T_DataComboFile[Implementation programme]=$G$3)*(T_DataComboFile[Econ3]=$G175))*T_DataComboFile[2021/22 Revised baseline]*$B$3)","v":0},0,{"$f":"SUMPRODUCT(((T_DataComboFile[Implementation programme]=$G$3)*(T_DataComboFile[Econ3]=$G175))*T_DataComboFile[2022/23 Baseline]*$B$3)","v":0},{"$f":"SUMPRODUCT(((T_DataComboFile[Implementation programme]=$G$3)*(T_DataComboFile[Econ3]=$G175))*T_DataComboFile[2022/23 Revised baseline]*$B$3)","v":0},0,{"$f":"SUMPRODUCT(((T_DataComboFile[Implementation programme]=$G$3)*(T_DataComboFile[Econ3]=$G175))*T_DataComboFile[2023/24 Baseline]*$B$3)","v":0},{"$f":"SUMPRODUCT(((T_DataComboFile[Implementation programme]=$G$3)*(T_DataComboFile[Econ3]=$G175))*T_DataComboFile[2023/24 Revised baseline]*$B$3)","v":0},0]
[0,50,null,null,null,null,"of which:"]
[0,51,null,null,null,null,null,null,null,{"$f":"I177-H177","v":0},null,null,{"$f":"L177-K177","v":0},null,null,0]
[0,51,null,null,null,null,null,null,null,0,null,null,0,null,null,0]
[0,51,null,null,null,null,null,null,null,0,null,null,0,null,null,0]
[0,51,null,null,null,null,null,null,null,0,null,null,0,null,null,0]
[0,51,null,null,null,null,null,null,null,0,null,null,0,null,null,0]
[0,5,null,null,null,null,"Interest and rent on land",{"$f":"SUMPRODUCT(((T_DataComboFile[Implementation programme]=$G$3)*(T_DataComboFile[Econ3]=$G182))*T_DataComboFile[2021/22 Baseline]*$B$3)","v":0},{"$f":"SUMPRODUCT(((T_DataComboFile[Implementation programme]=$G$3)*(T_DataComboFile[Econ3]=$G182))*T_DataComboFile[2021/22 Revised baseline]*$B$3)","v":0},0,{"$f":"SUMPRODUCT(((T_DataComboFile[Implementation programme]=$G$3)*(T_DataComboFile[Econ3]=$G182))*T_DataComboFile[2022/23 Baseline]*$B$3)","v":0},{"$f":"SUMPRODUCT(((T_DataComboFile[Implementation programme]=$G$3)*(T_DataComboFile[Econ3]=$G182))*T_DataComboFile[2022/23 Revised baseline]*$B$3)","v":0},0,{"$f":"SUMPRODUCT(((T_DataComboFile[Implementation programme]=$G$3)*(T_DataComboFile[Econ3]=$G182))*T_DataComboFile[2023/24 Baseline]*$B$3)","v":0},{"$f":"SUMPRODUCT(((T_DataComboFile[Implementation programme]=$G$3)*(T_DataComboFile[Econ3]=$G182))*T_DataComboFile[2023/24 Revised baseline]*$B$3)","v":0},0]
[0,5,null,null,null,null,"Transfers and subsidies",{"$f":"SUM(H184,H185,H197,H198,H199,H206,H207)","v":0},{"$f":"SUM(I184,I185,I197,I198,I199,I206,I207)","v":0},0,{"$f":"SUM(K184,K185,K197,K198,K199,K206,K207)","v":0},0,0,{"$f":"SUM(N184,N185,N197,N198,N199,N206,N207)","v":0},0,0]
[0,5,null,null,null,null,"Provinces and municipalities",{"$f":"SUMPRODUCT(((T_DataComboFile[Implementation programme]=$G$3)*(T_DataComboFile[Econ3]=$G184))*T_DataComboFile[2021/22 Baseline]*$B$3)","v":0},{"$f":"SUMPRODUCT(((T_DataComboFile[Implementation programme]=$G$3)*(T_DataComboFile[Econ3]=$G184))*T_DataComboFile[2021/22 Revised baseline]*$B$3)","v":0},0,{"$f":"SUMPRODUCT(((T_DataComboFile[Implementation programme]=$G$3)*(T_DataComboFile[Econ3]=$G184))*T_DataComboFile[2022/23 Baseline]*$B$3)","v":0},{"$f":"SUMPRODUCT(((T_DataComboFile[Implementation programme]=$G$3)*(T_DataComboFile[Econ3]=$G184))*T_DataComboFile[2022/23 Revised baseline]*$B$3)","v":0},0,{"$f":"SUMPRODUCT(((T_DataComboFile[Implementation programme]=$G$3)*(T_DataComboFile[Econ3]=$G184))*T_DataComboFile[2023/24 Baseline]*$B$3)","v":0},{"$f":"SUMPRODUCT(((T_DataComboFile[Implementation programme]=$G$3)*(T_DataComboFile[Econ3]=$G184))*T_DataComboFile[2023/24 Revised baseline]*$B$3)","v":0},0]
[0,5,null,null,null,null,"Departmental agencies and accounts",{"$f":"SUMPRODUCT(((T_DataComboFile[Implementation programme]=$G$3)*(T_DataComboFile[Econ3]=$G185))*T_DataComboFile[2021/22 Baseline]*$B$3)","v":0},{"$f":"SUMPRODUCT(((T_DataComboFile[Implementation programme]=$G$3)*(T_DataComboFile[Econ3]=$G185))*T_DataComboFile[2021/22 Revised baseline]*$B$3)","v":0},0,{"$f":"SUMPRODUCT(((T_DataComboFile[Implementation programme]=$G$3)*(T_DataComboFile[Econ3]=$G185))*T_DataComboFile[2022/23 Baseline]*$B$3)","v":0},{"$f":"SUMPRODUCT(((T_DataComboFile[Implementation programme]=$G$3)*(T_DataComboFile[Econ3]=$G185))*T_DataComboFile[2022/23 Revised baseline]*$B$3)","v":0},0,{"$f":"SUMPRODUCT(((T_DataComboFile[Implementation programme]=$G$3)*(T_DataComboFile[Econ3]=$G185))*T_DataComboFile[2023/24 Baseline]*$B$3)","v":0},{"$f":"SUMPRODUCT(((T_DataComboFile[Implementation programme]=$G$3)*(T_DataComboFile[Econ3]=$G185))*T_DataComboFile[2023/24 Revised baseline]*$B$3)","v":0},0]
[0,50,null,null,null,null,"of which:"]
[0,52,null,null,null,null,null,null,null,{"$f":"I187-H187","v":0},null,null,{"$f":"L187-K187","v":0},null,null,{"$f":"O187-N187","v":0}]
[0,52,null,null,null,null,null,null,null,0,null,null,0,null,null,0]
[0,52,null,null,null,null,null,null,null,0,null,null,0,null,null,0]
[0,52,null,null,null,null,null,null,null,0,null,null,0,null,null,0]
[0,52,null,null,null,null,null,null,null,0,null,null,0,null,null,0]
[0,52,null,null,null,null,null,null,null,0,null,null,0,null,null,0]
[0,52,null,null,null,null,null,null,null,0,null,null,0,null,null,0]
[0,52,null,null,null,null,null,null,null,0,null,null,0,null,null,0]
[0,52,null,null,null,null,null,null,null,0,null,null,0,null,null,0]
[0,52,null,null,null,null,null,null,null,0,null,null,0,null,null,0]
[0,5,null,null,null,null,"Higher education institutions",{"$f":"SUMPRODUCT(((T_DataComboFile[Implementation programme]=$G$3)*(T_DataComboFile[Econ3]=$G197))*T_DataComboFile[2021/22 Baseline]*$B$3)","v":0},{"$f":"SUMPRODUCT(((T_DataComboFile[Implementation programme]=$G$3)*(T_DataComboFile[Econ3]=$G197))*T_DataComboFile[2021/22 Revised baseline]*$B$3)","v":0},0,{"$f":"SUMPRODUCT(((T_DataComboFile[Implementation programme]=$G$3)*(T_DataComboFile[Econ3]=$G197))*T_DataComboFile[2022/23 Baseline]*$B$3)","v":0},{"$f":"SUMPRODUCT(((T_DataComboFile[Implementation programme]=$G$3)*(T_DataComboFile[Econ3]=$G197))*T_DataComboFile[2022/23 Revised baseline]*$B$3)","v":0},0,{"$f":"SUMPRODUCT(((T_DataComboFile[Implementation programme]=$G$3)*(T_DataComboFile[Econ3]=$G197))*T_DataComboFile[2023/24 Baseline]*$B$3)","v":0},{"$f":"SUMPRODUCT(((T_DataComboFile[Implementation programme]=$G$3)*(T_DataComboFile[Econ3]=$G197))*T_DataComboFile[2023/24 Revised baseline]*$B$3)","v":0},0]
[0,5,null,null,null,null,"Foreign governments and international organisations",{"$f":"SUMPRODUCT(((T_DataComboFile[Implementation programme]=$G$3)*(T_DataComboFile[Econ3]=$G198))*T_DataComboFile[2021/22 Baseline]*$B$3)","v":0},{"$f":"SUMPRODUCT(((T_DataComboFile[Implementation programme]=$G$3)*(T_DataComboFile[Econ3]=$G198))*T_DataComboFile[2021/22 Revised baseline]*$B$3)","v":0},0,{"$f":"SUMPRODUCT(((T_DataComboFile[Implementation programme]=$G$3)*(T_DataComboFile[Econ3]=$G198))*T_DataComboFile[2022/23 Baseline]*$B$3)","v":0},{"$f":"SUMPRODUCT(((T_DataComboFile[Implementation programme]=$G$3)*(T_DataComboFile[Econ3]=$G198))*T_DataComboFile[2022/23 Revised baseline]*$B$3)","v":0},0,{"$f":"SUMPRODUCT(((T_DataComboFile[Implementation programme]=$G$3)*(T_DataComboFile[Econ3]=$G198))*T_DataComboFile[2023/24 Baseline]*$B$3)","v":0},{"$f":"SUMPRODUCT(((T_DataComboFile[Implementation programme]=$G$3)*(T_DataComboFile[Econ3]=$G198))*T_DataComboFile[2023/24 Revised baseline]*$B$3)","v":0},0]
[0,5,null,null,null,null,"Public corporations and private enterprises",{"$f":"SUMPRODUCT(((T_DataComboFile[Implementation programme]=$G$3)*(T_DataComboFile[Econ3]=$G199))*T_DataComboFile[2021/22 Baseline]*$B$3)","v":0},{"$f":"SUMPRODUCT(((T_DataComboFile[Implementation programme]=$G$3)*(T_DataComboFile[Econ3]=$G199))*T_DataComboFile[2021/22 Revised baseline]*$B$3)","v":0},0,{"$f":"SUMPRODUCT(((T_DataComboFile[Implementation programme]=$G$3)*(T_DataComboFile[Econ3]=$G199))*T_DataComboFile[2022/23 Baseline]*$B$3)","v":0},{"$f":"SUMPRODUCT(((T_DataComboFile[Implementation programme]=$G$3)*(T_DataComboFile[Econ3]=$G199))*T_DataComboFile[2022/23 Revised baseline]*$B$3)","v":0},0,{"$f":"SUMPRODUCT(((T_DataComboFile[Implementation programme]=$G$3)*(T_DataComboFile[Econ3]=$G199))*T_DataComboFile[2023/24 Baseline]*$B$3)","v":0},{"$f":"SUMPRODUCT(((T_DataComboFile[Implementation programme]=$G$3)*(T_DataComboFile[Econ3]=$G199))*T_DataComboFile[2023/24 Revised baseline]*$B$3)","v":0},0]
[0,50,null,null,null,null,"of which:"]
[0,53,null,null,null,null,null,null,null,{"$f":"I201-H201","v":0},null,null,{"$f":"L201-K201","v":0},null,null,{"$f":"O201-N201","v":0}]
[0,53,null,null,null,null,null,null,null,0,null,null,0,null,null,0]
[0,53,null,null,null,null,null,null,null,0,null,null,0,null,null,0]
[0,53,null,null,null,null,null,null,null,0,null,null,0,null,null,0]
[0,53,null,null,null,null,null,null,null,0,null,null,0,null,null,0]
[0,5,null,null,null,null,"Non-profit institutions",{"$f":"SUMPRODUCT(((T_DataComboFile[Implementation programme]=$G$3)*(T_DataComboFile[Econ3]=$G206))*T_DataComboFile[2021/22 Baseline]*$B$3)","v":0},{"$f":"SUMPRODUCT(((T_DataComboFile[Implementation programme]=$G$3)*(T_DataComboFile[Econ3]=$G206))*T_DataComboFile[2021/22 Revised baseline]*$B$3)","v":0},0,{"$f":"SUMPRODUCT(((T_DataComboFile[Implementation programme]=$G$3)*(T_DataComboFile[Econ3]=$G206))*T_DataComboFile[2022/23 Baseline]*$B$3)","v":0},{"$f":"SUMPRODUCT(((T_DataComboFile[Implementation programme]=$G$3)*(T_DataComboFile[Econ3]=$G206))*T_DataComboFile[2022/23 Revised baseline]*$B$3)","v":0},0,{"$f":"SUMPRODUCT(((T_DataComboFile[Implementation programme]=$G$3)*(T_DataComboFile[Econ3]=$G206))*T_DataComboFile[2023/24 Baseline]*$B$3)","v":0},{"$f":"SUMPRODUCT(((T_DataComboFile[Implementation programme]=$G$3)*(T_DataComboFile[Econ3]=$G206))*T_DataComboFile[2023/24 Revised baseline]*$B$3)","v":0},0]
[0,5,null,null,null,null,"Households",{"$f":"SUMPRODUCT(((T_DataComboFile[Implementation programme]=$G$3)*(T_DataComboFile[Econ3]=$G207))*T_DataComboFile[2021/22 Baseline]*$B$3)","v":0},{"$f":"SUMPRODUCT(((T_DataComboFile[Implementation programme]=$G$3)*(T_DataComboFile[Econ3]=$G207))*T_DataComboFile[2021/22 Revised baseline]*$B$3)","v":0},0,{"$f":"SUMPRODUCT(((T_DataComboFile[Implementation programme]=$G$3)*(T_DataComboFile[Econ3]=$G207))*T_DataComboFile[2022/23 Baseline]*$B$3)","v":0},{"$f":"SUMPRODUCT(((T_DataComboFile[Implementation programme]=$G$3)*(T_DataComboFile[Econ3]=$G207))*T_DataComboFile[2022/23 Revised baseline]*$B$3)","v":0},0,{"$f":"SUMPRODUCT(((T_DataComboFile[Implementation programme]=$G$3)*(T_DataComboFile[Econ3]=$G207))*T_DataComboFile[2023/24 Baseline]*$B$3)","v":0},{"$f":"SUMPRODUCT(((T_DataComboFile[Implementation programme]=$G$3)*(T_DataComboFile[Econ3]=$G207))*T_DataComboFile[2023/24 Revised baseline]*$B$3)","v":0},0]
[0,5,null,null,null,null,"Payments for capital assets",{"$f":"SUM(H209:H215)","v":0},0,0,0,0,0,0,{"$f":"SUM(O209:O215)","v":0},0]
[0,5,null,null,null,null,"Buildings and other fixed structures",{"$f":"SUMPRODUCT(((T_DataComboFile[Implementation programme]=$G$3)*(T_DataComboFile[Econ3]=$G209))*T_DataComboFile[2021/22 Baseline]*$B$3)","v":0},{"$f":"SUMPRODUCT(((T_DataComboFile[Implementation programme]=$G$3)*(T_DataComboFile[Econ3]=$G209))*T_DataComboFile[2021/22 Revised baseline]*$B$3)","v":0},0,{"$f":"SUMPRODUCT(((T_DataComboFile[Implementation programme]=$G$3)*(T_DataComboFile[Econ3]=$G209))*T_DataComboFile[2022/23 Baseline]*$B$3)","v":0},{"$f":"SUMPRODUCT(((T_DataComboFile[Implementation programme]=$G$3)*(T_DataComboFile[Econ3]=$G209))*T_DataComboFile[2022/23 Revised baseline]*$B$3)","v":0},0,{"$f":"SUMPRODUCT(((T_DataComboFile[Implementation programme]=$G$3)*(T_DataComboFile[Econ3]=$G209))*T_DataComboFile[2023/24 Baseline]*$B$3)","v":0},{"$f":"SUMPRODUCT(((T_DataComboFile[Implementation programme]=$G$3)*(T_DataComboFile[Econ3]=$G209))*T_DataComboFile[2023/24 Revised baseline]*$B$3)","v":0},0]
[0,5,null,null,null,null,"Machinery and equipment",{"$f":"SUMPRODUCT(((T_DataComboFile[Implementation programme]=$G$3)*(T_DataComboFile[Econ3]=$G210))*T_DataComboFile[2021/22 Baseline]*$B$3)","v":0},{"$f":"SUMPRODUCT(((T_DataComboFile[Implementation programme]=$G$3)*(T_DataComboFile[Econ3]=$G210))*T_DataComboFile[2021/22 Revised baseline]*$B$3)","v":0},0,{"$f":"SUMPRODUCT(((T_DataComboFile[Implementation programme]=$G$3)*(T_DataComboFile[Econ3]=$G210))*T_DataComboFile[2022/23 Baseline]*$B$3)","v":0},{"$f":"SUMPRODUCT(((T_DataComboFile[Implementation programme]=$G$3)*(T_DataComboFile[Econ3]=$G210))*T_DataComboFile[2022/23 Revised baseline]*$B$3)","v":0},0,{"$f":"SUMPRODUCT(((T_DataComboFile[Implementation programme]=$G$3)*(T_DataComboFile[Econ3]=$G210))*T_DataComboFile[2023/24 Baseline]*$B$3)","v":0},{"$f":"SUMPRODUCT(((T_DataComboFile[Implementation programme]=$G$3)*(T_DataComboFile[Econ3]=$G210))*T_DataComboFile[2023/24 Revised baseline]*$B$3)","v":0},0]
[0,5,null,null,null,null,"Heritage assets",{"$f":"SUMPRODUCT(((T_DataComboFile[Implementation programme]=$G$3)*(T_DataComboFile[Econ3]=$G211))*T_DataComboFile[2021/22 Baseline]*$B$3)","v":0},{"$f":"SUMPRODUCT(((T_DataComboFile[Implementation programme]=$G$3)*(T_DataComboFile[Econ3]=$G211))*T_DataComboFile[2021/22 Revised baseline]*$B$3)","v":0},0,{"$f":"SUMPRODUCT(((T_DataComboFile[Implementation programme]=$G$3)*(T_DataComboFile[Econ3]=$G211))*T_DataComboFile[2022/23 Baseline]*$B$3)","v":0},{"$f":"SUMPRODUCT(((T_DataComboFile[Implementation programme]=$G$3)*(T_DataComboFile[Econ3]=$G211))*T_DataComboFile[2022/23 Revised baseline]*$B$3)","v":0},0,{"$f":"SUMPRODUCT(((T_DataComboFile[Implementation programme]=$G$3)*(T_DataComboFile[Econ3]=$G211))*T_DataComboFile[2023/24 Baseline]*$B$3)","v":0},{"$f":"SUMPRODUCT(((T_DataComboFile[Implementation programme]=$G$3)*(T_DataComboFile[Econ3]=$G211))*T_DataComboFile[2023/24 Revised baseline]*$B$3)","v":0},0]
[0,5,null,null,null,null,"Specialised military assets",{"$f":"SUMPRODUCT(((T_DataComboFile[Implementation programme]=$G$3)*(T_DataComboFile[Econ3]=$G212))*T_DataComboFile[2021/22 Baseline]*$B$3)","v":0},{"$f":"SUMPRODUCT(((T_DataComboFile[Implementation programme]=$G$3)*(T_DataComboFile[Econ3]=$G212))*T_DataComboFile[2021/22 Revised baseline]*$B$3)","v":0},0,{"$f":"SUMPRODUCT(((T_DataComboFile[Implementation programme]=$G$3)*(T_DataComboFile[Econ3]=$G212))*T_DataComboFile[2022/23 Baseline]*$B$3)","v":0},{"$f":"SUMPRODUCT(((T_DataComboFile[Implementation programme]=$G$3)*(T_DataComboFile[Econ3]=$G212))*T_DataComboFile[2022/23 Revised baseline]*$B$3)","v":0},0,{"$f":"SUMPRODUCT(((T_DataComboFile[Implementation programme]=$G$3)*(T_DataComboFile[Econ3]=$G212))*T_DataComboFile[2023/24 Baseline]*$B$3)","v":0},{"$f":"SUMPRODUCT(((T_DataComboFile[Implementation programme]=$G$3)*(T_DataComboFile[Econ3]=$G212))*T_DataComboFile[2023/24 Revised baseline]*$B$3)","v":0},0]
[0,5,null,null,null,null,"Biological assets",{"$f":"SUMPRODUCT(((T_DataComboFile[Implementation programme]=$G$3)*(T_DataComboFile[Econ3]=$G213))*T_DataComboFile[2021/22 Baseline]*$B$3)","v":0},{"$f":"SUMPRODUCT(((T_DataComboFile[Implementation programme]=$G$3)*(T_DataComboFile[Econ3]=$G213))*T_DataComboFile[2021/22 Revised baseline]*$B$3)","v":0},0,{"$f":"SUMPRODUCT(((T_DataComboFile[Implementation programme]=$G$3)*(T_DataComboFile[Econ3]=$G213))*T_DataComboFile[2022/23 Baseline]*$B$3)","v":0},{"$f":"SUMPRODUCT(((T_DataComboFile[Implementation programme]=$G$3)*(T_DataComboFile[Econ3]=$G213))*T_DataComboFile[2022/23 Revised baseline]*$B$3)","v":0},0,{"$f":"SUMPRODUCT(((T_DataComboFile[Implementation programme]=$G$3)*(T_DataComboFile[Econ3]=$G213))*T_DataComboFile[2023/24 Baseline]*$B$3)","v":0},{"$f":"SUMPRODUCT(((T_DataComboFile[Implementation programme]=$G$3)*(T_DataComboFile[Econ3]=$G213))*T_DataComboFile[2023/24 Revised baseline]*$B$3)","v":0},0]
[0,5,null,null,null,null,"Land and sub-soil assets",{"$f":"SUMPRODUCT(((T_DataComboFile[Implementation programme]=$G$3)*(T_DataComboFile[Econ3]=$G214))*T_DataComboFile[2021/22 Baseline]*$B$3)","v":0},{"$f":"SUMPRODUCT(((T_DataComboFile[Implementation programme]=$G$3)*(T_DataComboFile[Econ3]=$G214))*T_DataComboFile[2021/22 Revised baseline]*$B$3)","v":0},0,{"$f":"SUMPRODUCT(((T_DataComboFile[Implementation programme]=$G$3)*(T_DataComboFile[Econ3]=$G214))*T_DataComboFile[2022/23 Baseline]*$B$3)","v":0},{"$f":"SUMPRODUCT(((T_DataComboFile[Implementation programme]=$G$3)*(T_DataComboFile[Econ3]=$G214))*T_DataComboFile[2022/23 Revised baseline]*$B$3)","v":0},0,{"$f":"SUMPRODUCT(((T_DataComboFile[Implementation programme]=$G$3)*(T_DataComboFile[Econ3]=$G214))*T_DataComboFile[2023/24 Baseline]*$B$3)","v":0},{"$f":"SUMPRODUCT(((T_DataComboFile[Implementation programme]=$G$3)*(T_DataComboFile[Econ3]=$G214))*T_DataComboFile[2023/24 Revised baseline]*$B$3)","v":0},0]
[0,5,null,null,null,null,"Software and other intangible assets",{"$f":"SUMPRODUCT(((T_DataComboFile[Implementation programme]=$G$3)*(T_DataComboFile[Econ3]=$G215))*T_DataComboFile[2021/22 Baseline]*$B$3)","v":0},{"$f":"SUMPRODUCT(((T_DataComboFile[Implementation programme]=$G$3)*(T_DataComboFile[Econ3]=$G215))*T_DataComboFile[2021/22 Revised baseline]*$B$3)","v":0},0,{"$f":"SUMPRODUCT(((T_DataComboFile[Implementation programme]=$G$3)*(T_DataComboFile[Econ3]=$G215))*T_DataComboFile[2022/23 Baseline]*$B$3)","v":0},{"$f":"SUMPRODUCT(((T_DataComboFile[Implementation programme]=$G$3)*(T_DataComboFile[Econ3]=$G215))*T_DataComboFile[2022/23 Revised baseline]*$B$3)","v":0},0,{"$f":"SUMPRODUCT(((T_DataComboFile[Implementation programme]=$G$3)*(T_DataComboFile[Econ3]=$G215))*T_DataComboFile[2023/24 Baseline]*$B$3)","v":0},{"$f":"SUMPRODUCT(((T_DataComboFile[Implementation programme]=$G$3)*(T_DataComboFile[Econ3]=$G215))*T_DataComboFile[2023/24 Revised baseline]*$B$3)","v":0},0]
[0,5,null,null,null,null,"Payments for financial assets",{"$f":"SUMPRODUCT(((T_DataComboFile[Implementation programme]=$G$3)*(T_DataComboFile[Econ3]=$G216))*T_DataComboFile[2021/22 Baseline]*$B$3)","v":0},{"$f":"SUMPRODUCT(((T_DataComboFile[Implementation programme]=$G$3)*(T_DataComboFile[Econ3]=$G216))*T_DataComboFile[2021/22 Revised baseline]*$B$3)","v":0},0,{"$f":"SUMPRODUCT(((T_DataComboFile[Implementation programme]=$G$3)*(T_DataComboFile[Econ3]=$G216))*T_DataComboFile[2022/23 Baseline]*$B$3)","v":0},{"$f":"SUMPRODUCT(((T_DataComboFile[Implementation programme]=$G$3)*(T_DataComboFile[Econ3]=$G216))*T_DataComboFile[2022/23 Revised baseline]*$B$3)","v":0},0,{"$f":"SUMPRODUCT(((T_DataComboFile[Implementation programme]=$G$3)*(T_DataComboFile[Econ3]=$G216))*T_DataComboFile[2023/24 Baseline]*$B$3)","v":0},{"$f":"SUMPRODUCT(((T_DataComboFile[Implementation programme]=$G$3)*(T_DataComboFile[Econ3]=$G216))*T_DataComboFile[2023/24 Revised baseline]*$B$3)","v":0},0]
[0,5,null,null,null,null,"Total",{"$f":"SUM(H173,H183,H208,H216)","v":0},0,0,0,0,0,0,{"$f":"SUM(O173,O183,O208,O216)","v":0},0]
[]
[null,null,null,null,null,null,null,{"$f":"L65-H217","v":0},{"$f":"O65-I217","v":0},null,{"$f":"P65-K217","v":0},{"$f":"S65-L217","v":0},null,{"$f":"T65-N217","v":0},{"$f":"W65-O217","v":0}]

{"sheet":"IP4","index":13,"n_rows":219,"n_cols":23,"rows_kept":219,"cut":false,"hidden":false,"merged":[[96,16,96,20],[96,21,96,23],[97,16,97,20],[97,21,97,23],[98,16,98,20],[98,21,98,23],[70,6,70,17],[73,6,87,17],[94,16,94,20],[94,21,94,23],[95,16,95,20],[95,21,95,23],[102,16,102,20],[102,21,102,23],[103,16,103,20],[103,21,103,23],[104,16,104,20],[104,21,104,23],[99,16,99,20],[99,21,99,23],[100,16,100,20],[100,21,100,23],[101,16,101,20],[101,21,101,23],[108,16,108,20],[108,21,108,23],[109,16,109,20],[109,21,109,23],[110,16,110,20],[110,21,110,23],[105,16,105,20],[105,21,105,23],[106,16,106,20],[106,21,106,23],[107,16,107,20],[107,21,107,23],[128,16,128,20],[117,16,117,20],[118,16,118,20],[119,16,119,20],[120,16,120,20],[121,16,121,20],[122,16,122,20],[123,16,123,20],[124,16,124,20],[125,16,125,20],[126,16,126,20],[127,16,127,20],[173,16,173,20],[129,16,129,20],[130,16,130,20],[131,16,131,20],[132,16,132,20],[133,16,133,20],[141,16,141,20],[142,16,142,20],[143,16,162,20],[170,16,170,20],[171,16,171,20],[172,16,172,20],[215,16,215,20],[209,16,209,20],[210,16,210,20],[211,16,211,20],[212,16,212,20],[213,16,213,20],[214,16,214,20],[208,16,208,20],[174,16,174,20],[181,16,181,20],[182,16,182,20],[183,16,183,20],[184,16,184,20],[196,16,196,20],[197,16,197,20],[198,16,198,20],[205,16,205,20],[206,16,206,20],[207,16,207,20],[175,16,175,20],[176,16,176,20],[177,16,177,20],[178,16,178,20],[187,16,187,20],[188,16,188,20],[189,16,189,20],[190,16,190,20],[191,16,191,20],[179,16,179,20],[180,16,180,20],[185,16,185,20],[186,16,186,20],[200,16,200,20],[201,16,201,20],[202,16,202,20],[203,16,203,20],[204,16,204,20],[192,16,192,20],[193,16,193,20],[194,16,194,20],[195,16,195,20],[199,16,199,20]]}
[]
[null,null,null,null,null,null,"Implementation programme:"]
[null,{"$f":"IF(G3=\"\",0,1)","v":0},null,null,null,4,null,"… select from dropdown list"]
[null,null,null,null,null,null,null,null,null,null,null,null,"Growth"]
[null,null,null,null,null,null,"Quick view","2020/21","2021/22","2022/23","2023/24","Trend","2021/22","2022/23","2023/24","Ave Ann",null,"2020/21","2021/22","2022/23","2023/24"]
[null,null,null,null,null,null,"Compensation of employees",{"$f":"SUMPRODUCT(($G$32:$G$65=$G6)*($K$32:$K$65))","v":0},{"$f":"SUMPRODUCT(($G$32:$G$65=$G6)*($O$32:$O$65))","v":0},{"$f":"SUMPRODUCT(($G$32:$G$65=$G6)*($S$32:$S$65))","v":0},{"$f":"SUMPRODUCT(($G$32:$G$65=$G6)*($W$32:$W$65))","v":0},null,{"$f":"IFERROR(I6/H6-1,0)","v":0},0,0,{"$f":"IFERROR(((K6/H6)^(1/3)-1),0)","v":0}]
[null,null,null,null,null,null,"Goods and services",{"$f":"SUMPRODUCT(($G$32:$G$65=$G7)*($K$32:$K$65))","v":0},{"$f":"SUMPRODUCT(($G$32:$G$65=$G7)*($O$32:$O$65))","v":0},{"$f":"SUMPRODUCT(($G$32:$G$65=$G7)*($S$32:$S$65))","v":0},{"$f":"SUMPRODUCT(($G$32:$G$65=$G7)*($W$32:$W$65))","v":0},null,0,0,0,0]
[null,null,null,null,null,null,"Transfers and subsidies",{"$f":"SUMPRODUCT(($G$32:$G$65=$G8)*($K$32:$K$65))","v":0},{"$f":"SUMPRODUCT(($G$32:$G$65=$G8)*($O$32:$O$65))","v":0},{"$f":"SUMPRODUCT(($G$32:$G$65=$G8)*($S$32:$S$65))","v":0},{"$f":"SUMPRODUCT(($G$32:$G$65=$G8)*($W$32:$W$65))","v":0},null,0,0,0,0]
[null,null,null,null,null,null,"Payments for capital assets",{"$f":"SUMPRODUCT(($G$32:$G$65=$G9)*($K$32:$K$65))","v":0},{"$f":"SUMPRODUCT(($G$32:$G$65=$G9)*($O$32:$O$65))","v":0},{"$f":"SUMPRODUCT(($G$32:$G$65=$G9)*($S$32:$S$65))","v":0},{"$f":"SUMPRODUCT(($G$32:$G$65=$G9)*($W$32:$W$65))","v":0},null,0,0,0,0]
[null,null,null,null,null,null,"Total",{"$f":"SUMPRODUCT(($G$32:$G$65=$G10)*($K$32:$K$65))","v":0},{"$f":"SUMPRODUCT(($G$32:$G$65=$G10)*($O$32:$O$65))","v":0},{"$f":"SUMPRODUCT(($G$32:$G$65=$G10)*($S$32:$S$65))","v":0},{"$f":"SUMPRODUCT(($G$32:$G$65=$G10)*($W$32:$W$65))","v":0},null,0,0,0,0]
[null,null,null,null,null,null,"Composition of spending (% of Total)"]
[null,null,null,null,null,null,"Compensation of employees",{"$f":"IFERROR(H6/H$10,\"\")","v":""},"","","",null,null,null,null,null,null,{"$f":"IF(H12>0.0595,H12,\"\")","v":""},"","",""]
[null,null,null,null,null,null,"Goods and services","","","","",null,null,null,null,null,null,"","","",""]
[null,null,null,null,null,null,"Transfers and subsidies","","","","",null,null,null,null,null,null,"","","",""]
[null,null,null,null,null,null,"Payments for capital assets","","","","",null,null,null,null,null,null,"","","",""]
[]
[null,null,null,null,null,null,"Division of Revenue","2020/21","2021/22","2022/23","2023/24","Trend","2021/22","2022/23","2023/24","Ave Ann"]
[{"$f":"$G$3","v":0},"NAT",null,null,null,null,"National",{"$f":"SUMPRODUCT(((T_DataComboFile[Implementation programme]=$G$3)*(T_DataComboFile[DOR]=$B18))*T_DataComboFile[2020/21 Revised])","v":2331086},{"$f":"SUMPRODUCT(((T_DataComboFile[Implementation programme]=$G$3)*(T_DataComboFile[DOR]=$B18))*T_DataComboFile[2021/22 Revised baseline])","v":2583809},{"$f":"SUMPRODUCT(((T_DataComboFile[Implementation programme]=$G$3)*(T_DataComboFile[DOR]=$B18))*T_DataComboFile[2022/23 Revised baseline])","v":2617960},{"$f":"SUMPRODUCT(((T_DataComboFile[Implementation programme]=$G$3)*(T_DataComboFile[DOR]=$B18))*T_DataComboFile[2023/24 Revised baseline])","v":2733345},null,{"$f":"IFERROR(I18/H18-1,0)","v":0.10841427557799244},{"$f":"IFERROR(J18/I18-1,0)","v":1.3217308245307535E-2},{"$f":"IFERROR(K18/J18-1,0)","v":4.4074393802808309E-2},{"$f":"IFERROR(((K18/H18)^(1/3)-1),0)","v":5.449708876349435E-2}]
[0,null,null,null,null,null,"Provincial",{"$f":"SUM(H20:H21)","v":0},0,0,0,null,0,0,0,0]
[0,"PES",null,null,null,null,"Provincial equitable share",{"$f":"SUMPRODUCT(((T_DataComboFile[Implementation programme]=$G$3)*(T_DataComboFile[DOR]=$B20))*T_DataComboFile[2020/21 Revised])","v":0},{"$f":"SUMPRODUCT(((T_DataComboFile[Implementation programme]=$G$3)*(T_DataComboFile[DOR]=$B20))*T_DataComboFile[2021/22 Revised baseline])","v":0},{"$f":"SUMPRODUCT(((T_DataComboFile[Implementation programme]=$G$3)*(T_DataComboFile[DOR]=$B20))*T_DataComboFile[2022/23 Revised baseline])","v":0},{"$f":"SUMPRODUCT(((T_DataComboFile[Implementation programme]=$G$3)*(T_DataComboFile[DOR]=$B20))*T_DataComboFile[2023/24 Revised baseline])","v":0},null,{"$f":"IFERROR(I20/H20-1,0)","v":0},0,0,{"$f":"IFERROR(((K20/H20)^(1/3)-1),0)","v":0}]
[0,"PCG",null,null,null,null,"Provincial conditional grants",{"$f":"SUMPRODUCT(((T_DataComboFile[Implementation programme]=$G$3)*(T_DataComboFile[DOR]=$B21))*T_DataComboFile[2020/21 Revised])","v":0},{"$f":"SUMPRODUCT(((T_DataComboFile[Implementation programme]=$G$3)*(T_DataComboFile[DOR]=$B21))*T_DataComboFile[2021/22 Revised baseline])","v":0},{"$f":"SUMPRODUCT(((T_DataComboFile[Implementation programme]=$G$3)*(T_DataComboFile[DOR]=$B21))*T_DataComboFile[2022/23 Revised baseline])","v":0},{"$f":"SUMPRODUCT(((T_DataComboFile[Implementation programme]=$G$3)*(T_DataComboFile[DOR]=$B21))*T_DataComboFile[2023/24 Revised baseline])","v":0},null,0,0,0,0]
[0,null,null,null,null,null,"Local government",{"$f":"SUM(H23:H25)","v":0},0,0,0,null,{"$f":"IFERROR(I22/H22-1,0)","v":0},{"$f":"IFERROR(J22/I22-1,0)","v":0},{"$f":"IFERROR(K22/J22-1,0)","v":0},{"$f":"IFERROR(((K22/H22)^(1/3)-1),0)","v":0}]
[0,"LES",null,null,null,null,"Local equitable share",{"$f":"SUMPRODUCT(((T_DataComboFile[Implementation programme]=$G$3)*(T_DataComboFile[DOR]=$B23))*T_DataComboFile[2020/21 Revised])","v":0},{"$f":"SUMPRODUCT(((T_DataComboFile[Implementation programme]=$G$3)*(T_DataComboFile[DOR]=$B23))*T_DataComboFile[2021/22 Revised baseline])","v":0},{"$f":"SUMPRODUCT(((T_DataComboFile[Implementation programme]=$G$3)*(T_DataComboFile[DOR]=$B23))*T_DataComboFile[2022/23 Revised baseline])","v":0},{"$f":"SUMPRODUCT(((T_DataComboFile[Implementation programme]=$G$3)*(T_DataComboFile[DOR]=$B23))*T_DataComboFile[2023/24 Revised baseline])","v":0},null,{"$f":"IFERROR(I23/H23-1,0)","v":0},0,0,{"$f":"IFERROR(((K23/H23)^(1/3)-1),0)","v":0}]
[0,"LCG",null,null,null,null,"Local conditional grants",{"$f":"SUMPRODUCT(((T_DataComboFile[Implementation programme]=$G$3)*(T_DataComboFile[DOR]=$B24))*T_DataComboFile[2020/21 Revised])","v":0},{"$f":"SUMPRODUCT(((T_DataComboFile[Implementation programme]=$G$3)*(T_DataComboFile[DOR]=$B24))*T_DataComboFile[2021/22 Revised baseline])","v":0},{"$f":"SUMPRODUCT(((T_DataComboFile[Implementation programme]=$G$3)*(T_DataComboFile[DOR]=$B24))*T_DataComboFile[2022/23 Revised baseline])","v":0},{"$f":"SUMPRODUCT(((T_DataComboFile[Implementation programme]=$G$3)*(T_DataComboFile[DOR]=$B24))*T_DataComboFile[2023/24 Revised baseline])","v":0},null,0,0,0,0]
[0,"GFL",null,null,null,null,"General fuel levy ",{"$f":"SUMPRODUCT(((T_DataComboFile[Implementation programme]=$G$3)*(T_DataComboFile[DOR]=$B25))*T_DataComboFile[2020/21 Revised])","v":0},{"$f":"SUMPRODUCT(((T_DataComboFile[Implementation programme]=$G$3)*(T_DataComboFile[DOR]=$B25))*T_DataComboFile[2021/22 Revised baseline])","v":0},{"$f":"SUMPRODUCT(((T_DataComboFile[Implementation programme]=$G$3)*(T_DataComboFile[DOR]=$B25))*T_DataComboFile[2022/23 Revised baseline])","v":0},{"$f":"SUMPRODUCT(((T_DataComboFile[Implementation programme]=$G$3)*(T_DataComboFile[DOR]=$B25))*T_DataComboFile[2023/24 Revised baseline])","v":0},null,0,0,0,0]
[]
[]
[null,null,null,null,null,null,{"$f":"G3","v":0}]
[{"$f":"$G$3","v":0},0,null,null,null,null,null,"2017/18","2018/19","2019/20","2020/21","2021/22",null,null,null,"2022/23",null,null,null,"2023/24"]
[{"$f":"$G$3","v":0},0,null,null,null,null,"Rand thousand","Audited outcome","Audited outcome","Pre-audited outcome","Budget","Baseline","Decrease","Increase","Revised baseline","Baseline","Decrease","Increase","Revised baseline","Baseline","Decrease","Increase","Revised baseline"]
[0,0,null,null,null,null,"Economic classification"]
[0,0,null,null,null,null,"Current payments",{"$f":"SUM(H33:H35)","v":0},0,0,0,0,0,0,0,0,0,0,0,0,0,0,0]
[0,0,null,null,null,null,"Compensation of employees",{"$f":"SUMPRODUCT(((T_DataComboFile[Implementation programme]=$G$3)*(T_DataComboFile[Econ3]=$G33))*T_DataComboFile[2017/18]*$B$3)","v":0},{"$f":"SUMPRODUCT(((T_DataComboFile[Implementation programme]=$G$3)*(T_DataComboFile[Econ3]=$G33))*T_DataComboFile[2018/19]*$B$3)","v":0},{"$f":"SUMPRODUCT(((T_DataComboFile[Implementation programme]=$G$3)*(T_DataComboFile[Econ3]=$G33))*T_DataComboFile[2019/20 Revised estimate]*$B$3)","v":0},{"$f":"SUMPRODUCT(((T_DataComboFile[Implementation programme]=$G$3)*(T_DataComboFile[Econ3]=$G33))*T_DataComboFile[2020/21 Revised]*$B$3)","v":0},{"$f":"SUMPRODUCT(((T_DataComboFile[Implementation programme]=$G$3)*(T_DataComboFile[Econ3]=$G33))*T_DataComboFile[2021/22 Baseline]*$B$3)","v":0},{"$f":"SUMPRODUCT(((T_DataComboFile[Implementation programme]=$G$3)*(T_DataComboFile[Econ3]=$G33))*T_DataComboFile[2021/22 Reduction]*$B$3)","v":0},{"$f":"SUMPRODUCT(((T_DataComboFile[Implementation programme]=$G$3)*(T_DataComboFile[Econ3]=$G33))*T_DataComboFile[2021/22 Increase]*$B$3)","v":0},{"$f":"L33+M33+N33","v":0},{"$f":"SUMPRODUCT(((T_DataComboFile[Implementation programme]=$G$3)*(T_DataComboFile[Econ3]=$G33))*T_DataComboFile[2022/23 Baseline]*$B$3)","v":0},{"$f":"SUMPRODUCT(((T_DataComboFile[Implementation programme]=$G$3)*(T_DataComboFile[Econ3]=$G33))*T_DataComboFile[2022/23 Reduction]*$B$3)","v":0},{"$f":"SUMPRODUCT(((T_DataComboFile[Implementation programme]=$G$3)*(T_DataComboFile[Econ3]=$G33))*T_DataComboFile[2022/23 Increase]*$B$3)","v":0},{"$f":"P33+Q33+R33","v":0},{"$f":"SUMPRODUCT(((T_DataComboFile[Implementation programme]=$G$3)*(T_DataComboFile[Econ3]=$G33))*T_DataComboFile[2023/24 Baseline]*$B$3)","v":0},{"$f":"SUMPRODUCT(((T_DataComboFile[Implementation programme]=$G$3)*(T_DataComboFile[Econ3]=$G33))*T_DataComboFile[2023/24 Reduction]*$B$3)","v":0},{"$f":"SUMPRODUCT(((T_DataComboFile[Implementation programme]=$G$3)*(T_DataComboFile[Econ3]=$G33))*T_DataComboFile[2023/24 Increase]*$B$3)","v":0},{"$f":"T33+U33+V33","v":0}]
[0,0,null,null,null,null,"Goods and services",{"$f":"SUMPRODUCT(((T_DataComboFile[Implementation programme]=$G$3)*(T_DataComboFile[Econ3]=$G34))*T_DataComboFile[2017/18]*$B$3)","v":0},{"$f":"SUMPRODUCT(((T_DataComboFile[Implementation programme]=$G$3)*(T_DataComboFile[Econ3]=$G34))*T_DataComboFile[2018/19]*$B$3)","v":0},{"$f":"SUMPRODUCT(((T_DataComboFile[Implementation programme]=$G$3)*(T_DataComboFile[Econ3]=$G34))*T_DataComboFile[2019/20 Revised estimate]*$B$3)","v":0},{"$f":"SUMPRODUCT(((T_DataComboFile[Implementation programme]=$G$3)*(T_DataComboFile[Econ3]=$G34))*T_DataComboFile[2020/21 Revised]*$B$3)","v":0},{"$f":"SUMPRODUCT(((T_DataComboFile[Implementation programme]=$G$3)*(T_DataComboFile[Econ3]=$G34))*T_DataComboFile[2021/22 Baseline]*$B$3)","v":0},{"$f":"SUMPRODUCT(((T_DataComboFile[Implementation programme]=$G$3)*(T_DataComboFile[Econ3]=$G34))*T_DataComboFile[2021/22 Reduction]*$B$3)","v":0},{"$f":"SUMPRODUCT(((T_DataComboFile[Implementation programme]=$G$3)*(T_DataComboFile[Econ3]=$G34))*T_DataComboFile[2021/22 Increase]*$B$3)","v":0},0,{"$f":"SUMPRODUCT(((T_DataComboFile[Implementation programme]=$G$3)*(T_DataComboFile[Econ3]=$G34))*T_DataComboFile[2022/23 Baseline]*$B$3)","v":0},{"$f":"SUMPRODUCT(((T_DataComboFile[Implementation programme]=$G$3)*(T_DataComboFile[Econ3]=$G34))*T_DataComboFile[2022/23 Reduction]*$B$3)","v":0},{"$f":"SUMPRODUCT(((T_DataComboFile[Implementation programme]=$G$3)*(T_DataComboFile[Econ3]=$G34))*T_DataComboFile[2022/23 Increase]*$B$3)","v":0},0,{"$f":"SUMPRODUCT(((T_DataComboFile[Implementation programme]=$G$3)*(T_DataComboFile[Econ3]=$G34))*T_DataComboFile[2023/24 Baseline]*$B$3)","v":0},{"$f":"SUMPRODUCT(((T_DataComboFile[Implementation programme]=$G$3)*(T_DataComboFile[Econ3]=$G34))*T_DataComboFile[2023/24 Reduction]*$B$3)","v":0},{"$f":"SUMPRODUCT(((T_DataComboFile[Implementation programme]=$G$3)*(T_DataComboFile[Econ3]=$G34))*T_DataComboFile[2023/24 Increase]*$B$3)","v":0},0]
[0,0,null,null,null,null,"Interest and rent on land",{"$f":"SUMPRODUCT(((T_DataComboFile[Implementation programme]=$G$3)*(T_DataComboFile[Econ3]=$G35))*T_DataComboFile[2017/18]*$B$3)","v":0},{"$f":"SUMPRODUCT(((T_DataComboFile[Implementation programme]=$G$3)*(T_DataComboFile[Econ3]=$G35))*T_DataComboFile[2018/19]*$B$3)","v":0},{"$f":"SUMPRODUCT(((T_DataComboFile[Implementation programme]=$G$3)*(T_DataComboFile[Econ3]=$G35))*T_DataComboFile[2019/20 Revised estimate]*$B$3)","v":0},{"$f":"SUMPRODUCT(((T_DataComboFile[Implementation programme]=$G$3)*(T_DataComboFile[Econ3]=$G35))*T_DataComboFile[2020/21 Revised]*$B$3)","v":0},{"$f":"SUMPRODUCT(((T_DataComboFile[Implementation programme]=$G$3)*(T_DataComboFile[Econ3]=$G35))*T_DataComboFile[2021/22 Baseline]*$B$3)","v":0},{"$f":"SUMPRODUCT(((T_DataComboFile[Implementation programme]=$G$3)*(T_DataComboFile[Econ3]=$G35))*T_DataComboFile[2021/22 Reduction]*$B$3)","v":0},{"$f":"SUMPRODUCT(((T_DataComboFile[Implementation programme]=$G$3)*(T_DataComboFile[Econ3]=$G35))*T_DataComboFile[2021/22 Increase]*$B$3)","v":0},0,{"$f":"SUMPRODUCT(((T_DataComboFile[Implementation programme]=$G$3)*(T_DataComboFile[Econ3]=$G35))*T_DataComboFile[2022/23 Baseline]*$B$3)","v":0},{"$f":"SUMPRODUCT(((T_DataComboFile[Implementation programme]=$G$3)*(T_DataComboFile[Econ3]=$G35))*T_DataComboFile[2022/23 Reduction]*$B$3)","v":0},{"$f":"SUMPRODUCT(((T_DataComboFile[Implementation programme]=$G$3)*(T_DataComboFile[Econ3]=$G35))*T_DataComboFile[2022/23 Increase]*$B$3)","v":0},0,{"$f":"SUMPRODUCT(((T_DataComboFile[Implementation programme]=$G$3)*(T_DataComboFile[Econ3]=$G35))*T_DataComboFile[2023/24 Baseline]*$B$3)","v":0},{"$f":"SUMPRODUCT(((T_DataComboFile[Implementation programme]=$G$3)*(T_DataComboFile[Econ3]=$G35))*T_DataComboFile[2023/24 Reduction]*$B$3)","v":0},{"$f":"SUMPRODUCT(((T_DataComboFile[Implementation programme]=$G$3)*(T_DataComboFile[Econ3]=$G35))*T_DataComboFile[2023/24 Increase]*$B$3)","v":0},0]
[0,0,null,null,null,null,"Transfers and subsidies",{"$f":"SUM(H37,H40,H43:H45,H48:H49)","v":0},0,0,0,0,0,0,0,0,0,0,0,0,0,0,0]
[0,0,null,null,null,null,"Provinces and municipalities",{"$f":"SUM(H38:H39)","v":0},0,0,0,0,0,0,0,0,0,0,0,0,0,0,0]
[0,0,null,null,null,null,"Provinces",{"$f":"SUMPRODUCT(((T_DataComboFile[Implementation programme]=$G$3)*(T_DataComboFile[Econ4]=$G38))*T_DataComboFile[2017/18]*$B$3)","v":0},{"$f":"SUMPRODUCT(((T_DataComboFile[Implementation programme]=$G$3)*(T_DataComboFile[Econ4]=$G38))*T_DataComboFile[2018/19]*$B$3)","v":0},{"$f":"SUMPRODUCT(((T_DataComboFile[Implementation programme]=$G$3)*(T_DataComboFile[Econ4]=$G38))*T_DataComboFile[2019/20 Revised estimate]*$B$3)","v":0},{"$f":"SUMPRODUCT(((T_DataComboFile[Implementation programme]=$G$3)*(T_DataComboFile[Econ4]=$G38))*T_DataComboFile[2020/21 Revised]*$B$3)","v":0},{"$f":"SUMPRODUCT(((T_DataComboFile[Implementation programme]=$G$3)*(T_DataComboFile[Econ4]=$G38))*T_DataComboFile[2021/22 Baseline]*$B$3)","v":0},{"$f":"SUMPRODUCT(((T_DataComboFile[Implementation programme]=$G$3)*(T_DataComboFile[Econ4]=$G38))*T_DataComboFile[2021/22 Reduction]*$B$3)","v":0},{"$f":"SUMPRODUCT(((T_DataComboFile[Implementation programme]=$G$3)*(T_DataComboFile[Econ4]=$G38))*T_DataComboFile[2021/22 Increase]*$B$3)","v":0},{"$f":"L38+M38+N38","v":0},{"$f":"SUMPRODUCT(((T_DataComboFile[Implementation programme]=$G$3)*(T_DataComboFile[Econ4]=$G38))*T_DataComboFile[2022/23 Baseline]*$B$3)","v":0},{"$f":"SUMPRODUCT(((T_DataComboFile[Implementation programme]=$G$3)*(T_DataComboFile[Econ4]=$G38))*T_DataComboFile[2022/23 Reduction]*$B$3)","v":0},{"$f":"SUMPRODUCT(((T_DataComboFile[Implementation programme]=$G$3)*(T_DataComboFile[Econ4]=$G38))*T_DataComboFile[2022/23 Increase]*$B$3)","v":0},{"$f":"P38+Q38+R38","v":0},{"$f":"SUMPRODUCT(((T_DataComboFile[Implementation programme]=$G$3)*(T_DataComboFile[Econ4]=$G38))*T_DataComboFile[2023/24 Baseline]*$B$3)","v":0},{"$f":"SUMPRODUCT(((T_DataComboFile[Implementation programme]=$G$3)*(T_DataComboFile[Econ4]=$G38))*T_DataComboFile[2023/24 Reduction]*$B$3)","v":0},{"$f":"SUMPRODUCT(((T_DataComboFile[Implementation programme]=$G$3)*(T_DataComboFile[Econ4]=$G38))*T_DataComboFile[2023/24 Increase]*$B$3)","v":0},{"$f":"T38+U38+V38","v":0}]
[0,0,null,null,null,null,"Municipalities",{"$f":"SUMPRODUCT(((T_DataComboFile[Implementation programme]=$G$3)*(T_DataComboFile[Econ4]=$G39))*T_DataComboFile[2017/18]*$B$3)","v":0},{"$f":"SUMPRODUCT(((T_DataComboFile[Implementation programme]=$G$3)*(T_DataComboFile[Econ4]=$G39))*T_DataComboFile[2018/19]*$B$3)","v":0},{"$f":"SUMPRODUCT(((T_DataComboFile[Implementation programme]=$G$3)*(T_DataComboFile[Econ4]=$G39))*T_DataComboFile[2019/20 Revised estimate]*$B$3)","v":0},{"$f":"SUMPRODUCT(((T_DataComboFile[Implementation programme]=$G$3)*(T_DataComboFile[Econ4]=$G39))*T_DataComboFile[2020/21 Revised]*$B$3)","v":0},{"$f":"SUMPRODUCT(((T_DataComboFile[Implementation programme]=$G$3)*(T_DataComboFile[Econ4]=$G39))*T_DataComboFile[2021/22 Baseline]*$B$3)","v":0},{"$f":"SUMPRODUCT(((T_DataComboFile[Implementation programme]=$G$3)*(T_DataComboFile[Econ4]=$G39))*T_DataComboFile[2021/22 Reduction]*$B$3)","v":0},{"$f":"SUMPRODUCT(((T_DataComboFile[Implementation programme]=$G$3)*(T_DataComboFile[Econ4]=$G39))*T_DataComboFile[2021/22 Increase]*$B$3)","v":0},0,{"$f":"SUMPRODUCT(((T_DataComboFile[Implementation programme]=$G$3)*(T_DataComboFile[Econ4]=$G39))*T_DataComboFile[2022/23 Baseline]*$B$3)","v":0},{"$f":"SUMPRODUCT(((T_DataComboFile[Implementation programme]=$G$3)*(T_DataComboFile[Econ4]=$G39))*T_DataComboFile[2022/23 Reduction]*$B$3)","v":0},{"$f":"SUMPRODUCT(((T_DataComboFile[Implementation programme]=$G$3)*(T_DataComboFile[Econ4]=$G39))*T_DataComboFile[2022/23 Increase]*$B$3)","v":0},0,{"$f":"SUMPRODUCT(((T_DataComboFile[Implementation programme]=$G$3)*(T_DataComboFile[Econ4]=$G39))*T_DataComboFile[2023/24 Baseline]*$B$3)","v":0},{"$f":"SUMPRODUCT(((T_DataComboFile[Implementation programme]=$G$3)*(T_DataComboFile[Econ4]=$G39))*T_DataComboFile[2023/24 Reduction]*$B$3)","v":0},{"$f":"SUMPRODUCT(((T_DataComboFile[Implementation programme]=$G$3)*(T_DataComboFile[Econ4]=$G39))*T_DataComboFile[2023/24 Increase]*$B$3)","v":0},0]
[0,0,null,null,null,null,"Departmental agencies and accounts",{"$f":"SUM(H41:H42)","v":0},0,0,0,0,0,0,0,0,0,0,0,0,0,0,0]
[0,0,null,null,null,null,"Social security funds",{"$f":"SUMPRODUCT(((T_DataComboFile[Implementation programme]=$G$3)*(T_DataComboFile[Econ4]=$G41))*T_DataComboFile[2017/18]*$B$3)","v":0},{"$f":"SUMPRODUCT(((T_DataComboFile[Implementation programme]=$G$3)*(T_DataComboFile[Econ4]=$G41))*T_DataComboFile[2018/19]*$B$3)","v":0},{"$f":"SUMPRODUCT(((T_DataComboFile[Implementation programme]=$G$3)*(T_DataComboFile[Econ4]=$G41))*T_DataComboFile[2019/20 Revised estimate]*$B$3)","v":0},{"$f":"SUMPRODUCT(((T_DataComboFile[Implementation programme]=$G$3)*(T_DataComboFile[Econ4]=$G41))*T_DataComboFile[2020/21 Revised]*$B$3)","v":0},{"$f":"SUMPRODUCT(((T_DataComboFile[Implementation programme]=$G$3)*(T_DataComboFile[Econ4]=$G41))*T_DataComboFile[2021/22 Baseline]*$B$3)","v":0},{"$f":"SUMPRODUCT(((T_DataComboFile[Implementation programme]=$G$3)*(T_DataComboFile[Econ4]=$G41))*T_DataComboFile[2021/22 Reduction]*$B$3)","v":0},{"$f":"SUMPRODUCT(((T_DataComboFile[Implementation programme]=$G$3)*(T_DataComboFile[Econ4]=$G41))*T_DataComboFile[2021/22 Increase]*$B$3)","v":0},{"$f":"L41+M41+N41","v":0},{"$f":"SUMPRODUCT(((T_DataComboFile[Implementation programme]=$G$3)*(T_DataComboFile[Econ4]=$G41))*T_DataComboFile[2022/23 Baseline]*$B$3)","v":0},{"$f":"SUMPRODUCT(((T_DataComboFile[Implementation programme]=$G$3)*(T_DataComboFile[Econ4]=$G41))*T_DataComboFile[2022/23 Reduction]*$B$3)","v":0},{"$f":"SUMPRODUCT(((T_DataComboFile[Implementation programme]=$G$3)*(T_DataComboFile[Econ4]=$G41))*T_DataComboFile[2022/23 Increase]*$B$3)","v":0},{"$f":"P41+Q41+R41","v":0},{"$f":"SUMPRODUCT(((T_DataComboFile[Implementation programme]=$G$3)*(T_DataComboFile[Econ4]=$G41))*T_DataComboFile[2023/24 Baseline]*$B$3)","v":0},{"$f":"SUMPRODUCT(((T_DataComboFile[Implementation programme]=$G$3)*(T_DataComboFile[Econ4]=$G41))*T_DataComboFile[2023/24 Reduction]*$B$3)","v":0},{"$f":"SUMPRODUCT(((T_DataComboFile[Implementation programme]=$G$3)*(T_DataComboFile[Econ4]=$G41))*T_DataComboFile[2023/24 Increase]*$B$3)","v":0},{"$f":"T41+U41+V41","v":0}]
[0,0,null,null,null,null,"Departmental agencies (non-business entities)",{"$f":"SUMPRODUCT(((T_DataComboFile[Implementation programme]=$G$3)*(T_DataComboFile[Econ4]=$G42))*T_DataComboFile[2017/18]*$B$3)","v":0},{"$f":"SUMPRODUCT(((T_DataComboFile[Implementation programme]=$G$3)*(T_DataComboFile[Econ4]=$G42))*T_DataComboFile[2018/19]*$B$3)","v":0},{"$f":"SUMPRODUCT(((T_DataComboFile[Implementation programme]=$G$3)*(T_DataComboFile[Econ4]=$G42))*T_DataComboFile[2019/20 Revised estimate]*$B$3)","v":0},{"$f":"SUMPRODUCT(((T_DataComboFile[Implementation programme]=$G$3)*(T_DataComboFile[Econ4]=$G42))*T_DataComboFile[2020/21 Revised]*$B$3)","v":0},{"$f":"SUMPRODUCT(((T_DataComboFile[Implementation programme]=$G$3)*(T_DataComboFile[Econ4]=$G42))*T_DataComboFile[2021/22 Baseline]*$B$3)","v":0},{"$f":"SUMPRODUCT(((T_DataComboFile[Implementation programme]=$G$3)*(T_DataComboFile[Econ4]=$G42))*T_DataComboFile[2021/22 Reduction]*$B$3)","v":0},{"$f":"SUMPRODUCT(((T_DataComboFile[Implementation programme]=$G$3)*(T_DataComboFile[Econ4]=$G42))*T_DataComboFile[2021/22 Increase]*$B$3)","v":0},0,{"$f":"SUMPRODUCT(((T_DataComboFile[Implementation programme]=$G$3)*(T_DataComboFile[Econ4]=$G42))*T_DataComboFile[2022/23 Baseline]*$B$3)","v":0},{"$f":"SUMPRODUCT(((T_DataComboFile[Implementation programme]=$G$3)*(T_DataComboFile[Econ4]=$G42))*T_DataComboFile[2022/23 Reduction]*$B$3)","v":0},{"$f":"SUMPRODUCT(((T_DataComboFile[Implementation programme]=$G$3)*(T_DataComboFile[Econ4]=$G42))*T_DataComboFile[2022/23 Increase]*$B$3)","v":0},0,{"$f":"SUMPRODUCT(((T_DataComboFile[Implementation programme]=$G$3)*(T_DataComboFile[Econ4]=$G42))*T_DataComboFile[2023/24 Baseline]*$B$3)","v":0},{"$f":"SUMPRODUCT(((T_DataComboFile[Implementation programme]=$G$3)*(T_DataComboFile[Econ4]=$G42))*T_DataComboFile[2023/24 Reduction]*$B$3)","v":0},{"$f":"SUMPRODUCT(((T_DataComboFile[Implementation programme]=$G$3)*(T_DataComboFile[Econ4]=$G42))*T_DataComboFile[2023/24 Increase]*$B$3)","v":0},0]
[0,0,null,null,null,null,"Higher education institutions",{"$f":"SUMPRODUCT(((T_DataComboFile[Implementation programme]=$G$3)*(T_DataComboFile[Econ3]=$G43))*T_DataComboFile[2017/18]*$B$3)","v":0},{"$f":"SUMPRODUCT(((T_DataComboFile[Implementation programme]=$G$3)*(T_DataComboFile[Econ3]=$G43))*T_DataComboFile[2018/19]*$B$3)","v":0},{"$f":"SUMPRODUCT(((T_DataComboFile[Implementation programme]=$G$3)*(T_DataComboFile[Econ3]=$G43))*T_DataComboFile[2019/20 Revised estimate]*$B$3)","v":0},{"$f":"SUMPRODUCT(((T_DataComboFile[Implementation programme]=$G$3)*(T_DataComboFile[Econ3]=$G43))*T_DataComboFile[2020/21 Revised]*$B$3)","v":0},{"$f":"SUMPRODUCT(((T_DataComboFile[Implementation programme]=$G$3)*(T_DataComboFile[Econ3]=$G43))*T_DataComboFile[2021/22 Baseline]*$B$3)","v":0},{"$f":"SUMPRODUCT(((T_DataComboFile[Implementation programme]=$G$3)*(T_DataComboFile[Econ3]=$G43))*T_DataComboFile[2021/22 Reduction]*$B$3)","v":0},{"$f":"SUMPRODUCT(((T_DataComboFile[Implementation programme]=$G$3)*(T_DataComboFile[Econ3]=$G43))*T_DataComboFile[2021/22 Increase]*$B$3)","v":0},0,{"$f":"SUMPRODUCT(((T_DataComboFile[Implementation programme]=$G$3)*(T_DataComboFile[Econ3]=$G43))*T_DataComboFile[2022/23 Baseline]*$B$3)","v":0},{"$f":"SUMPRODUCT(((T_DataComboFile[Implementation programme]=$G$3)*(T_DataComboFile[Econ3]=$G43))*T_DataComboFile[2022/23 Reduction]*$B$3)","v":0},{"$f":"SUMPRODUCT(((T_DataComboFile[Implementation programme]=$G$3)*(T_DataComboFile[Econ3]=$G43))*T_DataComboFile[2022/23 Increase]*$B$3)","v":0},0,{"$f":"SUMPRODUCT(((T_DataComboFile[Implementation programme]=$G$3)*(T_DataComboFile[Econ3]=$G43))*T_DataComboFile[2023/24 Baseline]*$B$3)","v":0},{"$f":"SUMPRODUCT(((T_DataComboFile[Implementation programme]=$G$3)*(T_DataComboFile[Econ3]=$G43))*T_DataComboFile[2023/24 Reduction]*$B$3)","v":0},{"$f":"SUMPRODUCT(((T_DataComboFile[Implementation programme]=$G$3)*(T_DataComboFile[Econ3]=$G43))*T_DataComboFile[2023/24 Increase]*$B$3)","v":0},0]
[0,0,null,null,null,null,"Foreign governments and international organisations",{"$f":"SUMPRODUCT(((T_DataComboFile[Implementation programme]=$G$3)*(T_DataComboFile[Econ3]=$G44))*T_DataComboFile[2017/18]*$B$3)","v":0},{"$f":"SUMPRODUCT(((T_DataComboFile[Implementation programme]=$G$3)*(T_DataComboFile[Econ3]=$G44))*T_DataComboFile[2018/19]*$B$3)","v":0},{"$f":"SUMPRODUCT(((T_DataComboFile[Implementation programme]=$G$3)*(T_DataComboFile[Econ3]=$G44))*T_DataComboFile[2019/20 Revised estimate]*$B$3)","v":0},{"$f":"SUMPRODUCT(((T_DataComboFile[Implementation programme]=$G$3)*(T_DataComboFile[Econ3]=$G44))*T_DataComboFile[2020/21 Revised]*$B$3)","v":0},{"$f":"SUMPRODUCT(((T_DataComboFile[Implementation programme]=$G$3)*(T_DataComboFile[Econ3]=$G44))*T_DataComboFile[2021/22 Baseline]*$B$3)","v":0},{"$f":"SUMPRODUCT(((T_DataComboFile[Implementation programme]=$G$3)*(T_DataComboFile[Econ3]=$G44))*T_DataComboFile[2021/22 Reduction]*$B$3)","v":0},{"$f":"SUMPRODUCT(((T_DataComboFile[Implementation programme]=$G$3)*(T_DataComboFile[Econ3]=$G44))*T_DataComboFile[2021/22 Increase]*$B$3)","v":0},0,{"$f":"SUMPRODUCT(((T_DataComboFile[Implementation programme]=$G$3)*(T_DataComboFile[Econ3]=$G44))*T_DataComboFile[2022/23 Baseline]*$B$3)","v":0},{"$f":"SUMPRODUCT(((T_DataComboFile[Implementation programme]=$G$3)*(T_DataComboFile[Econ3]=$G44))*T_DataComboFile[2022/23 Reduction]*$B$3)","v":0},{"$f":"SUMPRODUCT(((T_DataComboFile[Implementation programme]=$G$3)*(T_DataComboFile[Econ3]=$G44))*T_DataComboFile[2022/23 Increase]*$B$3)","v":0},0,{"$f":"SUMPRODUCT(((T_DataComboFile[Implementation programme]=$G$3)*(T_DataComboFile[Econ3]=$G44))*T_DataComboFile[2023/24 Baseline]*$B$3)","v":0},{"$f":"SUMPRODUCT(((T_DataComboFile[Implementation programme]=$G$3)*(T_DataComboFile[Econ3]=$G44))*T_DataComboFile[2023/24 Reduction]*$B$3)","v":0},{"$f":"SUMPRODUCT(((T_DataComboFile[Implementation programme]=$G$3)*(T_DataComboFile[Econ3]=$G44))*T_DataComboFile[2023/24 Increase]*$B$3)","v":0},0]
[0,0,null,null,null,null,"Public corporations and private enterprises",{"$f":"SUM(H46:H47)","v":0},0,0,0,0,0,0,0,0,0,0,0,0,0,0,0]
[0,0,null,null,null,null,"Public corporations",{"$f":"SUMPRODUCT(((T_DataComboFile[Implementation programme]=$G$3)*(T_DataComboFile[Econ4]=$G46))*T_DataComboFile[2017/18]*$B$3)","v":0},{"$f":"SUMPRODUCT(((T_DataComboFile[Implementation programme]=$G$3)*(T_DataComboFile[Econ4]=$G46))*T_DataComboFile[2018/19]*$B$3)","v":0},{"$f":"SUMPRODUCT(((T_DataComboFile[Implementation programme]=$G$3)*(T_DataComboFile[Econ4]=$G46))*T_DataComboFile[2019/20 Revised estimate]*$B$3)","v":0},{"$f":"SUMPRODUCT(((T_DataComboFile[Implementation programme]=$G$3)*(T_DataComboFile[Econ4]=$G46))*T_DataComboFile[2020/21 Revised]*$B$3)","v":0},{"$f":"SUMPRODUCT(((T_DataComboFile[Implementation programme]=$G$3)*(T_DataComboFile[Econ4]=$G46))*T_DataComboFile[2021/22 Baseline]*$B$3)","v":0},{"$f":"SUMPRODUCT(((T_DataComboFile[Implementation programme]=$G$3)*(T_DataComboFile[Econ4]=$G46))*T_DataComboFile[2021/22 Reduction]*$B$3)","v":0},{"$f":"SUMPRODUCT(((T_DataComboFile[Implementation programme]=$G$3)*(T_DataComboFile[Econ4]=$G46))*T_DataComboFile[2021/22 Increase]*$B$3)","v":0},{"$f":"L46+M46+N46","v":0},{"$f":"SUMPRODUCT(((T_DataComboFile[Implementation programme]=$G$3)*(T_DataComboFile[Econ4]=$G46))*T_DataComboFile[2022/23 Baseline]*$B$3)","v":0},{"$f":"SUMPRODUCT(((T_DataComboFile[Implementation programme]=$G$3)*(T_DataComboFile[Econ4]=$G46))*T_DataComboFile[2022/23 Reduction]*$B$3)","v":0},{"$f":"SUMPRODUCT(((T_DataComboFile[Implementation programme]=$G$3)*(T_DataComboFile[Econ4]=$G46))*T_DataComboFile[2022/23 Increase]*$B$3)","v":0},{"$f":"P46+Q46+R46","v":0},{"$f":"SUMPRODUCT(((T_DataComboFile[Implementation programme]=$G$3)*(T_DataComboFile[Econ4]=$G46))*T_DataComboFile[2023/24 Baseline]*$B$3)","v":0},{"$f":"SUMPRODUCT(((T_DataComboFile[Implementation programme]=$G$3)*(T_DataComboFile[Econ4]=$G46))*T_DataComboFile[2023/24 Reduction]*$B$3)","v":0},{"$f":"SUMPRODUCT(((T_DataComboFile[Implementation programme]=$G$3)*(T_DataComboFile[Econ4]=$G46))*T_DataComboFile[2023/24 Increase]*$B$3)","v":0},{"$f":"T46+U46+V46","v":0}]
[0,0,null,null,null,null,"Private enterprises",{"$f":"SUMPRODUCT(((T_DataComboFile[Implementation programme]=$G$3)*(T_DataComboFile[Econ4]=$G47))*T_DataComboFile[2017/18]*$B$3)","v":0},{"$f":"SUMPRODUCT(((T_DataComboFile[Implementation programme]=$G$3)*(T_DataComboFile[Econ4]=$G47))*T_DataComboFile[2018/19]*$B$3)","v":0},{"$f":"SUMPRODUCT(((T_DataComboFile[Implementation programme]=$G$3)*(T_DataComboFile[Econ4]=$G47))*T_DataComboFile[2019/20 Revised estimate]*$B$3)","v":0},{"$f":"SUMPRODUCT(((T_DataComboFile[Implementation programme]=$G$3)*(T_DataComboFile[Econ4]=$G47))*T_DataComboFile[2020/21 Revised]*$B$3)","v":0},{"$f":"SUMPRODUCT(((T_DataComboFile[Implementation programme]=$G$3)*(T_DataComboFile[Econ4]=$G47))*T_DataComboFile[2021/22 Baseline]*$B$3)","v":0},{"$f":"SUMPRODUCT(((T_DataComboFile[Implementation programme]=$G$3)*(T_DataComboFile[Econ4]=$G47))*T_DataComboFile[2021/22 Reduction]*$B$3)","v":0},{"$f":"SUMPRODUCT(((T_DataComboFile[Implementation programme]=$G$3)*(T_DataComboFile[Econ4]=$G47))*T_DataComboFile[2021/22 Increase]*$B$3)","v":0},0,{"$f":"SUMPRODUCT(((T_DataComboFile[Implementation programme]=$G$3)*(T_DataComboFile[Econ4]=$G47))*T_DataComboFile[2022/23 Baseline]*$B$3)","v":0},{"$f":"SUMPRODUCT(((T_DataComboFile[Implementation programme]=$G$3)*(T_DataComboFile[Econ4]=$G47))*T_DataComboFile[2022/23 Reduction]*$B$3)","v":0},{"$f":"SUMPRODUCT(((T_DataComboFile[Implementation programme]=$G$3)*(T_DataComboFile[Econ4]=$G47))*T_DataComboFile[2022/23 Increase]*$B$3)","v":0},0,{"$f":"SUMPRODUCT(((T_DataComboFile[Implementation programme]=$G$3)*(T_DataComboFile[Econ4]=$G47))*T_DataComboFile[2023/24 Baseline]*$B$3)","v":0},{"$f":"SUMPRODUCT(((T_DataComboFile[Implementation programme]=$G$3)*(T_DataComboFile[Econ4]=$G47))*T_DataComboFile[2023/24 Reduction]*$B$3)","v":0},{"$f":"SUMPRODUCT(((T_DataComboFile[Implementation programme]=$G$3)*(T_DataComboFile[Econ4]=$G47))*T_DataComboFile[2023/24 Increase]*$B$3)","v":0},0]
[0,0,null,null,null,null,"Non-profit institutions",{"$f":"SUMPRODUCT(((T_DataComboFile[Implementation programme]=$G$3)*(T_DataComboFile[Econ3]=$G48))*T_DataComboFile[2017/18]*$B$3)","v":0},{"$f":"SUMPRODUCT(((T_DataComboFile[Implementation programme]=$G$3)*(T_DataComboFile[Econ3]=$G48))*T_DataComboFile[2018/19]*$B$3)","v":0},{"$f":"SUMPRODUCT(((T_DataComboFile[Implementation programme]=$G$3)*(T_DataComboFile[Econ3]=$G48))*T_DataComboFile[2019/20 Revised estimate]*$B$3)","v":0},{"$f":"SUMPRODUCT(((T_DataComboFile[Implementation programme]=$G$3)*(T_DataComboFile[Econ3]=$G48))*T_DataComboFile[2020/21 Revised]*$B$3)","v":0},{"$f":"SUMPRODUCT(((T_DataComboFile[Implementation programme]=$G$3)*(T_DataComboFile[Econ3]=$G48))*T_DataComboFile[2021/22 Baseline]*$B$3)","v":0},{"$f":"SUMPRODUCT(((T_DataComboFile[Implementation programme]=$G$3)*(T_DataComboFile[Econ3]=$G48))*T_DataComboFile[2021/22 Reduction]*$B$3)","v":0},{"$f":"SUMPRODUCT(((T_DataComboFile[Implementation programme]=$G$3)*(T_DataComboFile[Econ3]=$G48))*T_DataComboFile[2021/22 Increase]*$B$3)","v":0},0,{"$f":"SUMPRODUCT(((T_DataComboFile[Implementation programme]=$G$3)*(T_DataComboFile[Econ3]=$G48))*T_DataComboFile[2022/23 Baseline]*$B$3)","v":0},{"$f":"SUMPRODUCT(((T_DataComboFile[Implementation programme]=$G$3)*(T_DataComboFile[Econ3]=$G48))*T_DataComboFile[2022/23 Reduction]*$B$3)","v":0},{"$f":"SUMPRODUCT(((T_DataComboFile[Implementation programme]=$G$3)*(T_DataComboFile[Econ3]=$G48))*T_DataComboFile[2022/23 Increase]*$B$3)","v":0},0,{"$f":"SUMPRODUCT(((T_DataComboFile[Implementation programme]=$G$3)*(T_DataComboFile[Econ3]=$G48))*T_DataComboFile[2023/24 Baseline]*$B$3)","v":0},{"$f":"SUMPRODUCT(((T_DataComboFile[Implementation programme]=$G$3)*(T_DataComboFile[Econ3]=$G48))*T_DataComboFile[2023/24 Reduction]*$B$3)","v":0},{"$f":"SUMPRODUCT(((T_DataComboFile[Implementation programme]=$G$3)*(T_DataComboFile[Econ3]=$G48))*T_DataComboFile[2023/24 Increase]*$B$3)","v":0},0]
[0,0,null,null,null,null,"Households",{"$f":"SUM(H50:H51)","v":0},0,0,0,0,0,0,0,0,0,0,0,0,0,0,0]
[0,0,null,null,null,null,"Social benefits",{"$f":"SUMPRODUCT(((T_DataComboFile[Implementation programme]=$G$3)*(T_DataComboFile[Econ4]=$G50))*T_DataComboFile[2017/18]*$B$3)","v":0},{"$f":"SUMPRODUCT(((T_DataComboFile[Implementation programme]=$G$3)*(T_DataComboFile[Econ4]=$G50))*T_DataComboFile[2018/19]*$B$3)","v":0},{"$f":"SUMPRODUCT(((T_DataComboFile[Implementation programme]=$G$3)*(T_DataComboFile[Econ4]=$G50))*T_DataComboFile[2019/20 Revised estimate]*$B$3)","v":0},{"$f":"SUMPRODUCT(((T_DataComboFile[Implementation programme]=$G$3)*(T_DataComboFile[Econ4]=$G50))*T_DataComboFile[2020/21 Revised]*$B$3)","v":0},{"$f":"SUMPRODUCT(((T_DataComboFile[Implementation programme]=$G$3)*(T_DataComboFile[Econ4]=$G50))*T_DataComboFile[2021/22 Baseline]*$B$3)","v":0},{"$f":"SUMPRODUCT(((T_DataComboFile[Implementation programme]=$G$3)*(T_DataComboFile[Econ4]=$G50))*T_DataComboFile[2021/22 Reduction]*$B$3)","v":0},{"$f":"SUMPRODUCT(((T_DataComboFile[Implementation programme]=$G$3)*(T_DataComboFile[Econ4]=$G50))*T_DataComboFile[2021/22 Increase]*$B$3)","v":0},{"$f":"L50+M50+N50","v":0},{"$f":"SUMPRODUCT(((T_DataComboFile[Implementation programme]=$G$3)*(T_DataComboFile[Econ4]=$G50))*T_DataComboFile[2022/23 Baseline]*$B$3)","v":0},{"$f":"SUMPRODUCT(((T_DataComboFile[Implementation programme]=$G$3)*(T_DataComboFile[Econ4]=$G50))*T_DataComboFile[2022/23 Reduction]*$B$3)","v":0},{"$f":"SUMPRODUCT(((T_DataComboFile[Implementation programme]=$G$3)*(T_DataComboFile[Econ4]=$G50))*T_DataComboFile[2022/23 Increase]*$B$3)","v":0},{"$f":"P50+Q50+R50","v":0},{"$f":"SUMPRODUCT(((T_DataComboFile[Implementation programme]=$G$3)*(T_DataComboFile[Econ4]=$G50))*T_DataComboFile[2023/24 Baseline]*$B$3)","v":0},{"$f":"SUMPRODUCT(((T_DataComboFile[Implementation programme]=$G$3)*(T_DataComboFile[Econ4]=$G50))*T_DataComboFile[2023/24 Reduction]*$B$3)","v":0},{"$f":"SUMPRODUCT(((T_DataComboFile[Implementation programme]=$G$3)*(T_DataComboFile[Econ4]=$G50))*T_DataComboFile[2023/24 Increase]*$B$3)","v":0},{"$f":"T50+U50+V50","v":0}]
[0,0,null,null,null,null,"Other transfers to households",{"$f":"SUMPRODUCT(((T_DataComboFile[Implementation programme]=$G$3)*(T_DataComboFile[Econ4]=$G51))*T_DataComboFile[2017/18]*$B$3)","v":0},{"$f":"SUMPRODUCT(((T_DataComboFile[Implementation programme]=$G$3)*(T_DataComboFile[Econ4]=$G51))*T_DataComboFile[2018/19]*$B$3)","v":0},{"$f":"SUMPRODUCT(((T_DataComboFile[Implementation programme]=$G$3)*(T_DataComboFile[Econ4]=$G51))*T_DataComboFile[2019/20 Revised estimate]*$B$3)","v":0},{"$f":"SUMPRODUCT(((T_DataComboFile[Implementation programme]=$G$3)*(T_DataComboFile[Econ4]=$G51))*T_DataComboFile[2020/21 Revised]*$B$3)","v":0},{"$f":"SUMPRODUCT(((T_DataComboFile[Implementation programme]=$G$3)*(T_DataComboFile[Econ4]=$G51))*T_DataComboFile[2021/22 Baseline]*$B$3)","v":0},{"$f":"SUMPRODUCT(((T_DataComboFile[Implementation programme]=$G$3)*(T_DataComboFile[Econ4]=$G51))*T_DataComboFile[2021/22 Reduction]*$B$3)","v":0},{"$f":"SUMPRODUCT(((T_DataComboFile[Implementation programme]=$G$3)*(T_DataComboFile[Econ4]=$G51))*T_DataComboFile[2021/22 Increase]*$B$3)","v":0},0,{"$f":"SUMPRODUCT(((T_DataComboFile[Implementation programme]=$G$3)*(T_DataComboFile[Econ4]=$G51))*T_DataComboFile[2022/23 Baseline]*$B$3)","v":0},{"$f":"SUMPRODUCT(((T_DataComboFile[Implementation programme]=$G$3)*(T_DataComboFile[Econ4]=$G51))*T_DataComboFile[2022/23 Reduction]*$B$3)","v":0},{"$f":"SUMPRODUCT(((T_DataComboFile[Implementation programme]=$G$3)*(T_DataComboFile[Econ4]=$G51))*T_DataComboFile[2022/23 Increase]*$B$3)","v":0},0,{"$f":"SUMPRODUCT(((T_DataComboFile[Implementation programme]=$G$3)*(T_DataComboFile[Econ4]=$G51))*T_DataComboFile[2023/24 Baseline]*$B$3)","v":0},{"$f":"SUMPRODUCT(((T_DataComboFile[Implementation programme]=$G$3)*(T_DataComboFile[Econ4]=$G51))*T_DataComboFile[2023/24 Reduction]*$B$3)","v":0},{"$f":"SUMPRODUCT(((T_DataComboFile[Implementation programme]=$G$3)*(T_DataComboFile[Econ4]=$G51))*T_DataComboFile[2023/24 Increase]*$B$3)","v":0},0]
[0,0,null,null,null,null,"Payments for capital assets",{"$f":"SUM(H53,H56,H59:H63)","v":0},0,0,0,0,0,0,0,0,0,0,0,0,0,0,0]
[0,0,null,null,null,null,"Buildings and other fixed structures",{"$f":"SUM(H54:H55)","v":0},0,0,0,0,0,0,0,0,0,0,0,0,0,0,0]
[0,0,null,null,null,null,"Buildings",{"$f":"SUMPRODUCT(((T_DataComboFile[Implementation programme]=$G$3)*(T_DataComboFile[Econ4]=$G54))*T_DataComboFile[2017/18]*$B$3)","v":0},{"$f":"SUMPRODUCT(((T_DataComboFile[Implementation programme]=$G$3)*(T_DataComboFile[Econ4]=$G54))*T_DataComboFile[2018/19]*$B$3)","v":0},{"$f":"SUMPRODUCT(((T_DataComboFile[Implementation programme]=$G$3)*(T_DataComboFile[Econ4]=$G54))*T_DataComboFile[2019/20 Revised estimate]*$B$3)","v":0},{"$f":"SUMPRODUCT(((T_DataComboFile[Implementation programme]=$G$3)*(T_DataComboFile[Econ4]=$G54))*T_DataComboFile[2020/21 Revised]*$B$3)","v":0},{"$f":"SUMPRODUCT(((T_DataComboFile[Implementation programme]=$G$3)*(T_DataComboFile[Econ4]=$G54))*T_DataComboFile[2021/22 Baseline]*$B$3)","v":0},{"$f":"SUMPRODUCT(((T_DataComboFile[Implementation programme]=$G$3)*(T_DataComboFile[Econ4]=$G54))*T_DataComboFile[2021/22 Reduction]*$B$3)","v":0},{"$f":"SUMPRODUCT(((T_DataComboFile[Implementation programme]=$G$3)*(T_DataComboFile[Econ4]=$G54))*T_DataComboFile[2021/22 Increase]*$B$3)","v":0},{"$f":"L54+M54+N54","v":0},{"$f":"SUMPRODUCT(((T_DataComboFile[Implementation programme]=$G$3)*(T_DataComboFile[Econ4]=$G54))*T_DataComboFile[2022/23 Baseline]*$B$3)","v":0},{"$f":"SUMPRODUCT(((T_DataComboFile[Implementation programme]=$G$3)*(T_DataComboFile[Econ4]=$G54))*T_DataComboFile[2022/23 Reduction]*$B$3)","v":0},{"$f":"SUMPRODUCT(((T_DataComboFile[Implementation programme]=$G$3)*(T_DataComboFile[Econ4]=$G54))*T_DataComboFile[2022/23 Increase]*$B$3)","v":0},{"$f":"P54+Q54+R54","v":0},{"$f":"SUMPRODUCT(((T_DataComboFile[Implementation programme]=$G$3)*(T_DataComboFile[Econ4]=$G54))*T_DataComboFile[2023/24 Baseline]*$B$3)","v":0},{"$f":"SUMPRODUCT(((T_DataComboFile[Implementation programme]=$G$3)*(T_DataComboFile[Econ4]=$G54))*T_DataComboFile[2023/24 Reduction]*$B$3)","v":0},{"$f":"SUMPRODUCT(((T_DataComboFile[Implementation programme]=$G$3)*(T_DataComboFile[Econ4]=$G54))*T_DataComboFile[2023/24 Increase]*$B$3)","v":0},{"$f":"T54+U54+V54","v":0}]
[0,0,null,null,null,null,"Other fixed structures",{"$f":"SUMPRODUCT(((T_DataComboFile[Implementation programme]=$G$3)*(T_DataComboFile[Econ4]=$G55))*T_DataComboFile[2017/18]*$B$3)","v":0},{"$f":"SUMPRODUCT(((T_DataComboFile[Implementation programme]=$G$3)*(T_DataComboFile[Econ4]=$G55))*T_DataComboFile[2018/19]*$B$3)","v":0},{"$f":"SUMPRODUCT(((T_DataComboFile[Implementation programme]=$G$3)*(T_DataComboFile[Econ4]=$G55))*T_DataComboFile[2019/20 Revised estimate]*$B$3)","v":0},{"$f":"SUMPRODUCT(((T_DataComboFile[Implementation programme]=$G$3)*(T_DataComboFile[Econ4]=$G55))*T_DataComboFile[2020/21 Revised]*$B$3)","v":0},{"$f":"SUMPRODUCT(((T_DataComboFile[Implementation programme]=$G$3)*(T_DataComboFile[Econ4]=$G55))*T_DataComboFile[2021/22 Baseline]*$B$3)","v":0},{"$f":"SUMPRODUCT(((T_DataComboFile[Implementation programme]=$G$3)*(T_DataComboFile[Econ4]=$G55))*T_DataComboFile[2021/22 Reduction]*$B$3)","v":0},{"$f":"SUMPRODUCT(((T_DataComboFile[Implementation programme]=$G$3)*(T_DataComboFile[Econ4]=$G55))*T_DataComboFile[2021/22 Increase]*$B$3)","v":0},0,{"$f":"SUMPRODUCT(((T_DataComboFile[Implementation programme]=$G$3)*(T_DataComboFile[Econ4]=$G55))*T_DataComboFile[2022/23 Baseline]*$B$3)","v":0},{"$f":"SUMPRODUCT(((T_DataComboFile[Implementation programme]=$G$3)*(T_DataComboFile[Econ4]=$G55))*T_DataComboFile[2022/23 Reduction]*$B$3)","v":0},{"$f":"SUMPRODUCT(((T_DataComboFile[Implementation programme]=$G$3)*(T_DataComboFile[Econ4]=$G55))*T_DataComboFile[2022/23 Increase]*$B$3)","v":0},0,{"$f":"SUMPRODUCT(((T_DataComboFile[Implementation programme]=$G$3)*(T_DataComboFile[Econ4]=$G55))*T_DataComboFile[2023/24 Baseline]*$B$3)","v":0},{"$f":"SUMPRODUCT(((T_DataComboFile[Implementation programme]=$G$3)*(T_DataComboFile[Econ4]=$G55))*T_DataComboFile[2023/24 Reduction]*$B$3)","v":0},{"$f":"SUMPRODUCT(((T_DataComboFile[Implementation programme]=$G$3)*(T_DataComboFile[Econ4]=$G55))*T_DataComboFile[2023/24 Increase]*$B$3)","v":0},0]
[0,0,null,null,null,null,"Machinery and equipment",{"$f":"SUM(H57:H58)","v":0},0,0,0,0,0,0,0,0,0,0,0,0,0,0,0]
[0,0,null,null,null,null,"Transport equipment",{"$f":"SUMPRODUCT(((T_DataComboFile[Implementation programme]=$G$3)*(T_DataComboFile[Econ4]=$G57))*T_DataComboFile[2017/18]*$B$3)","v":0},{"$f":"SUMPRODUCT(((T_DataComboFile[Implementation programme]=$G$3)*(T_DataComboFile[Econ4]=$G57))*T_DataComboFile[2018/19]*$B$3)","v":0},{"$f":"SUMPRODUCT(((T_DataComboFile[Implementation programme]=$G$3)*(T_DataComboFile[Econ4]=$G57))*T_DataComboFile[2019/20 Revised estimate]*$B$3)","v":0},{"$f":"SUMPRODUCT(((T_DataComboFile[Implementation programme]=$G$3)*(T_DataComboFile[Econ4]=$G57))*T_DataComboFile[2020/21 Revised]*$B$3)","v":0},{"$f":"SUMPRODUCT(((T_DataComboFile[Implementation programme]=$G$3)*(T_DataComboFile[Econ4]=$G57))*T_DataComboFile[2021/22 Baseline]*$B$3)","v":0},{"$f":"SUMPRODUCT(((T_DataComboFile[Implementation programme]=$G$3)*(T_DataComboFile[Econ4]=$G57))*T_DataComboFile[2021/22 Reduction]*$B$3)","v":0},{"$f":"SUMPRODUCT(((T_DataComboFile[Implementation programme]=$G$3)*(T_DataComboFile[Econ4]=$G57))*T_DataComboFile[2021/22 Increase]*$B$3)","v":0},{"$f":"L57+M57+N57","v":0},{"$f":"SUMPRODUCT(((T_DataComboFile[Implementation programme]=$G$3)*(T_DataComboFile[Econ4]=$G57))*T_DataComboFile[2022/23 Baseline]*$B$3)","v":0},{"$f":"SUMPRODUCT(((T_DataComboFile[Implementation programme]=$G$3)*(T_DataComboFile[Econ4]=$G57))*T_DataComboFile[2022/23 Reduction]*$B$3)","v":0},{"$f":"SUMPRODUCT(((T_DataComboFile[Implementation programme]=$G$3)*(T_DataComboFile[Econ4]=$G57))*T_DataComboFile[2022/23 Increase]*$B$3)","v":0},{"$f":"P57+Q57+R57","v":0},{"$f":"SUMPRODUCT(((T_DataComboFile[Implementation programme]=$G$3)*(T_DataComboFile[Econ4]=$G57))*T_DataComboFile[2023/24 Baseline]*$B$3)","v":0},{"$f":"SUMPRODUCT(((T_DataComboFile[Implementation programme]=$G$3)*(T_DataComboFile[Econ4]=$G57))*T_DataComboFile[2023/24 Reduction]*$B$3)","v":0},{"$f":"SUMPRODUCT(((T_DataComboFile[Implementation programme]=$G$3)*(T_DataComboFile[Econ4]=$G57))*T_DataComboFile[2023/24 Increase]*$B$3)","v":0},{"$f":"T57+U57+V57","v":0}]
[0,0,null,null,null,null,"Other machinery and equipment",{"$f":"SUMPRODUCT(((T_DataComboFile[Implementation programme]=$G$3)*(T_DataComboFile[Econ4]=$G58))*T_DataComboFile[2017/18]*$B$3)","v":0},{"$f":"SUMPRODUCT(((T_DataComboFile[Implementation programme]=$G$3)*(T_DataComboFile[Econ4]=$G58))*T_DataComboFile[2018/19]*$B$3)","v":0},{"$f":"SUMPRODUCT(((T_DataComboFile[Implementation programme]=$G$3)*(T_DataComboFile[Econ4]=$G58))*T_DataComboFile[2019/20 Revised estimate]*$B$3)","v":0},{"$f":"SUMPRODUCT(((T_DataComboFile[Implementation programme]=$G$3)*(T_DataComboFile[Econ4]=$G58))*T_DataComboFile[2020/21 Revised]*$B$3)","v":0},{"$f":"SUMPRODUCT(((T_DataComboFile[Implementation programme]=$G$3)*(T_DataComboFile[Econ4]=$G58))*T_DataComboFile[2021/22 Baseline]*$B$3)","v":0},{"$f":"SUMPRODUCT(((T_DataComboFile[Implementation programme]=$G$3)*(T_DataComboFile[Econ4]=$G58))*T_DataComboFile[2021/22 Reduction]*$B$3)","v":0},{"$f":"SUMPRODUCT(((T_DataComboFile[Implementation programme]=$G$3)*(T_DataComboFile[Econ4]=$G58))*T_DataComboFile[2021/22 Increase]*$B$3)","v":0},0,{"$f":"SUMPRODUCT(((T_DataComboFile[Implementation programme]=$G$3)*(T_DataComboFile[Econ4]=$G58))*T_DataComboFile[2022/23 Baseline]*$B$3)","v":0},{"$f":"SUMPRODUCT(((T_DataComboFile[Implementation programme]=$G$3)*(T_DataComboFile[Econ4]=$G58))*T_DataComboFile[2022/23 Reduction]*$B$3)","v":0},{"$f":"SUMPRODUCT(((T_DataComboFile[Implementation programme]=$G$3)*(T_DataComboFile[Econ4]=$G58))*T_DataComboFile[2022/23 Increase]*$B$3)","v":0},0,{"$f":"SUMPRODUCT(((T_DataComboFile[Implementation programme]=$G$3)*(T_DataComboFile[Econ4]=$G58))*T_DataComboFile[2023/24 Baseline]*$B$3)","v":0},{"$f":"SUMPRODUCT(((T_DataComboFile[Implementation programme]=$G$3)*(T_DataComboFile[Econ4]=$G58))*T_DataComboFile[2023/24 Reduction]*$B$3)","v":0},{"$f":"SUMPRODUCT(((T_DataComboFile[Implementation programme]=$G$3)*(T_DataComboFile[Econ4]=$G58))*T_DataComboFile[2023/24 Increase]*$B$3)","v":0},0]
[0,0,null,null,null,null,"Heritage assets",{"$f":"SUMPRODUCT(((T_DataComboFile[Implementation programme]=$G$3)*(T_DataComboFile[Econ3]=$G59))*T_DataComboFile[2017/18]*$B$3)","v":0},{"$f":"SUMPRODUCT(((T_DataComboFile[Implementation programme]=$G$3)*(T_DataComboFile[Econ3]=$G59))*T_DataComboFile[2018/19]*$B$3)","v":0},{"$f":"SUMPRODUCT(((T_DataComboFile[Implementation programme]=$G$3)*(T_DataComboFile[Econ3]=$G59))*T_DataComboFile[2019/20 Revised estimate]*$B$3)","v":0},{"$f":"SUMPRODUCT(((T_DataComboFile[Implementation programme]=$G$3)*(T_DataComboFile[Econ3]=$G59))*T_DataComboFile[2020/21 Revised]*$B$3)","v":0},{"$f":"SUMPRODUCT(((T_DataComboFile[Implementation programme]=$G$3)*(T_DataComboFile[Econ3]=$G59))*T_DataComboFile[2021/22 Baseline]*$B$3)","v":0},{"$f":"SUMPRODUCT(((T_DataComboFile[Implementation programme]=$G$3)*(T_DataComboFile[Econ3]=$G59))*T_DataComboFile[2021/22 Reduction]*$B$3)","v":0},{"$f":"SUMPRODUCT(((T_DataComboFile[Implementation programme]=$G$3)*(T_DataComboFile[Econ3]=$G59))*T_DataComboFile[2021/22 Increase]*$B$3)","v":0},0,{"$f":"SUMPRODUCT(((T_DataComboFile[Implementation programme]=$G$3)*(T_DataComboFile[Econ3]=$G59))*T_DataComboFile[2022/23 Baseline]*$B$3)","v":0},{"$f":"SUMPRODUCT(((T_DataComboFile[Implementation programme]=$G$3)*(T_DataComboFile[Econ3]=$G59))*T_DataComboFile[2022/23 Reduction]*$B$3)","v":0},{"$f":"SUMPRODUCT(((T_DataComboFile[Implementation programme]=$G$3)*(T_DataComboFile[Econ3]=$G59))*T_DataComboFile[2022/23 Increase]*$B$3)","v":0},0,{"$f":"SUMPRODUCT(((T_DataComboFile[Implementation programme]=$G$3)*(T_DataComboFile[Econ3]=$G59))*T_DataComboFile[2023/24 Baseline]*$B$3)","v":0},{"$f":"SUMPRODUCT(((T_DataComboFile[Implementation programme]=$G$3)*(T_DataComboFile[Econ3]=$G59))*T_DataComboFile[2023/24 Reduction]*$B$3)","v":0},{"$f":"SUMPRODUCT(((T_DataComboFile[Implementation programme]=$G$3)*(T_DataComboFile[Econ3]=$G59))*T_DataComboFile[2023/24 Increase]*$B$3)","v":0},0]
[0,0,null,null,null,null,"Specialised military assets",{"$f":"SUMPRODUCT(((T_DataComboFile[Implementation programme]=$G$3)*(T_DataComboFile[Econ3]=$G60))*T_DataComboFile[2017/18]*$B$3)","v":0},{"$f":"SUMPRODUCT(((T_DataComboFile[Implementation programme]=$G$3)*(T_DataComboFile[Econ3]=$G60))*T_DataComboFile[2018/19]*$B$3)","v":0},{"$f":"SUMPRODUCT(((T_DataComboFile[Implementation programme]=$G$3)*(T_DataComboFile[Econ3]=$G60))*T_DataComboFile[2019/20 Revised estimate]*$B$3)","v":0},{"$f":"SUMPRODUCT(((T_DataComboFile[Implementation programme]=$G$3)*(T_DataComboFile[Econ3]=$G60))*T_DataComboFile[2020/21 Revised]*$B$3)","v":0},{"$f":"SUMPRODUCT(((T_DataComboFile[Implementation programme]=$G$3)*(T_DataComboFile[Econ3]=$G60))*T_DataComboFile[2021/22 Baseline]*$B$3)","v":0},{"$f":"SUMPRODUCT(((T_DataComboFile[Implementation programme]=$G$3)*(T_DataComboFile[Econ3]=$G60))*T_DataComboFile[2021/22 Reduction]*$B$3)","v":0},{"$f":"SUMPRODUCT(((T_DataComboFile[Implementation programme]=$G$3)*(T_DataComboFile[Econ3]=$G60))*T_DataComboFile[2021/22 Increase]*$B$3)","v":0},0,{"$f":"SUMPRODUCT(((T_DataComboFile[Implementation programme]=$G$3)*(T_DataComboFile[Econ3]=$G60))*T_DataComboFile[2022/23 Baseline]*$B$3)","v":0},{"$f":"SUMPRODUCT(((T_DataComboFile[Implementation programme]=$G$3)*(T_DataComboFile[Econ3]=$G60))*T_DataComboFile[2022/23 Reduction]*$B$3)","v":0},{"$f":"SUMPRODUCT(((T_DataComboFile[Implementation programme]=$G$3)*(T_DataComboFile[Econ3]=$G60))*T_DataComboFile[2022/23 Increase]*$B$3)","v":0},0,{"$f":"SUMPRODUCT(((T_DataComboFile[Implementation programme]=$G$3)*(T_DataComboFile[Econ3]=$G60))*T_DataComboFile[2023/24 Baseline]*$B$3)","v":0},{"$f":"SUMPRODUCT(((T_DataComboFile[Implementation programme]=$G$3)*(T_DataComboFile[Econ3]=$G60))*T_DataComboFile[2023/24 Reduction]*$B$3)","v":0},{"$f":"SUMPRODUCT(((T_DataComboFile[Implementation programme]=$G$3)*(T_DataComboFile[Econ3]=$G60))*T_DataComboFile[2023/24 Increase]*$B$3)","v":0},0]
[0,0,null,null,null,null,"Biological assets",{"$f":"SUMPRODUCT(((T_DataComboFile[Implementation programme]=$G$3)*(T_DataComboFile[Econ3]=$G61))*T_DataComboFile[2017/18]*$B$3)","v":0},{"$f":"SUMPRODUCT(((T_DataComboFile[Implementation programme]=$G$3)*(T_DataComboFile[Econ3]=$G61))*T_DataComboFile[2018/19]*$B$3)","v":0},{"$f":"SUMPRODUCT(((T_DataComboFile[Implementation programme]=$G$3)*(T_DataComboFile[Econ3]=$G61))*T_DataComboFile[2019/20 Revised estimate]*$B$3)","v":0},{"$f":"SUMPRODUCT(((T_DataComboFile[Implementation programme]=$G$3)*(T_DataComboFile[Econ3]=$G61))*T_DataComboFile[2020/21 Revised]*$B$3)","v":0},{"$f":"SUMPRODUCT(((T_DataComboFile[Implementation programme]=$G$3)*(T_DataComboFile[Econ3]=$G61))*T_DataComboFile[2021/22 Baseline]*$B$3)","v":0},{"$f":"SUMPRODUCT(((T_DataComboFile[Implementation programme]=$G$3)*(T_DataComboFile[Econ3]=$G61))*T_DataComboFile[2021/22 Reduction]*$B$3)","v":0},{"$f":"SUMPRODUCT(((T_DataComboFile[Implementation programme]=$G$3)*(T_DataComboFile[Econ3]=$G61))*T_DataComboFile[2021/22 Increase]*$B$3)","v":0},0,{"$f":"SUMPRODUCT(((T_DataComboFile[Implementation programme]=$G$3)*(T_DataComboFile[Econ3]=$G61))*T_DataComboFile[2022/23 Baseline]*$B$3)","v":0},{"$f":"SUMPRODUCT(((T_DataComboFile[Implementation programme]=$G$3)*(T_DataComboFile[Econ3]=$G61))*T_DataComboFile[2022/23 Reduction]*$B$3)","v":0},{"$f":"SUMPRODUCT(((T_DataComboFile[Implementation programme]=$G$3)*(T_DataComboFile[Econ3]=$G61))*T_DataComboFile[2022/23 Increase]*$B$3)","v":0},0,{"$f":"SUMPRODUCT(((T_DataComboFile[Implementation programme]=$G$3)*(T_DataComboFile[Econ3]=$G61))*T_DataComboFile[2023/24 Baseline]*$B$3)","v":0},{"$f":"SUMPRODUCT(((T_DataComboFile[Implementation programme]=$G$3)*(T_DataComboFile[Econ3]=$G61))*T_DataComboFile[2023/24 Reduction]*$B$3)","v":0},{"$f":"SUMPRODUCT(((T_DataComboFile[Implementation programme]=$G$3)*(T_DataComboFile[Econ3]=$G61))*T_DataComboFile[2023/24 Increase]*$B$3)","v":0},0]
[0,0,null,null,null,null,"Land and sub-soil assets",{"$f":"SUMPRODUCT(((T_DataComboFile[Implementation programme]=$G$3)*(T_DataComboFile[Econ3]=$G62))*T_DataComboFile[2017/18]*$B$3)","v":0},{"$f":"SUMPRODUCT(((T_DataComboFile[Implementation programme]=$G$3)*(T_DataComboFile[Econ3]=$G62))*T_DataComboFile[2018/19]*$B$3)","v":0},{"$f":"SUMPRODUCT(((T_DataComboFile[Implementation programme]=$G$3)*(T_DataComboFile[Econ3]=$G62))*T_DataComboFile[2019/20 Revised estimate]*$B$3)","v":0},{"$f":"SUMPRODUCT(((T_DataComboFile[Implementation programme]=$G$3)*(T_DataComboFile[Econ3]=$G62))*T_DataComboFile[2020/21 Revised]*$B$3)","v":0},{"$f":"SUMPRODUCT(((T_DataComboFile[Implementation programme]=$G$3)*(T_DataComboFile[Econ3]=$G62))*T_DataComboFile[2021/22 Baseline]*$B$3)","v":0},{"$f":"SUMPRODUCT(((T_DataComboFile[Implementation programme]=$G$3)*(T_DataComboFile[Econ3]=$G62))*T_DataComboFile[2021/22 Reduction]*$B$3)","v":0},{"$f":"SUMPRODUCT(((T_DataComboFile[Implementation programme]=$G$3)*(T_DataComboFile[Econ3]=$G62))*T_DataComboFile[2021/22 Increase]*$B$3)","v":0},0,{"$f":"SUMPRODUCT(((T_DataComboFile[Implementation programme]=$G$3)*(T_DataComboFile[Econ3]=$G62))*T_DataComboFile[2022/23 Baseline]*$B$3)","v":0},{"$f":"SUMPRODUCT(((T_DataComboFile[Implementation programme]=$G$3)*(T_DataComboFile[Econ3]=$G62))*T_DataComboFile[2022/23 Reduction]*$B$3)","v":0},{"$f":"SUMPRODUCT(((T_DataComboFile[Implementation programme]=$G$3)*(T_DataComboFile[Econ3]=$G62))*T_DataComboFile[2022/23 Increase]*$B$3)","v":0},0,{"$f":"SUMPRODUCT(((T_DataComboFile[Implementation programme]=$G$3)*(T_DataComboFile[Econ3]=$G62))*T_DataComboFile[2023/24 Baseline]*$B$3)","v":0},{"$f":"SUMPRODUCT(((T_DataComboFile[Implementation programme]=$G$3)*(T_DataComboFile[Econ3]=$G62))*T_DataComboFile[2023/24 Reduction]*$B$3)","v":0},{"$f":"SUMPRODUCT(((T_DataComboFile[Implementation programme]=$G$3)*(T_DataComboFile[Econ3]=$G62))*T_DataComboFile[2023/24 Increase]*$B$3)","v":0},0]
[0,0,null,null,null,null,"Software and other intangible assets",{"$f":"SUMPRODUCT(((T_DataComboFile[Implementation programme]=$G$3)*(T_DataComboFile[Econ3]=$G63))*T_DataComboFile[2017/18]*$B$3)","v":0},{"$f":"SUMPRODUCT(((T_DataComboFile[Implementation programme]=$G$3)*(T_DataComboFile[Econ3]=$G63))*T_DataComboFile[2018/19]*$B$3)","v":0},{"$f":"SUMPRODUCT(((T_DataComboFile[Implementation programme]=$G$3)*(T_DataComboFile[Econ3]=$G63))*T_DataComboFile[2019/20 Revised estimate]*$B$3)","v":0},{"$f":"SUMPRODUCT(((T_DataComboFile[Implementation programme]=$G$3)*(T_DataComboFile[Econ3]=$G63))*T_DataComboFile[2020/21 Revised]*$B$3)","v":0},{"$f":"SUMPRODUCT(((T_DataComboFile[Implementation programme]=$G$3)*(T_DataComboFile[Econ3]=$G63))*T_DataComboFile[2021/22 Baseline]*$B$3)","v":0},{"$f":"SUMPRODUCT(((T_DataComboFile[Implementation programme]=$G$3)*(T_DataComboFile[Econ3]=$G63))*T_DataComboFile[2021/22 Reduction]*$B$3)","v":0},{"$f":"SUMPRODUCT(((T_DataComboFile[Implementation programme]=$G$3)*(T_DataComboFile[Econ3]=$G63))*T_DataComboFile[2021/22 Increase]*$B$3)","v":0},0,{"$f":"SUMPRODUCT(((T_DataComboFile[Implementation programme]=$G$3)*(T_DataComboFile[Econ3]=$G63))*T_DataComboFile[2022/23 Baseline]*$B$3)","v":0},{"$f":"SUMPRODUCT(((T_DataComboFile[Implementation programme]=$G$3)*(T_DataComboFile[Econ3]=$G63))*T_DataComboFile[2022/23 Reduction]*$B$3)","v":0},{"$f":"SUMPRODUCT(((T_DataComboFile[Implementation programme]=$G$3)*(T_DataComboFile[Econ3]=$G63))*T_DataComboFile[2022/23 Increase]*$B$3)","v":0},0,{"$f":"SUMPRODUCT(((T_DataComboFile[Implementation programme]=$G$3)*(T_DataComboFile[Econ3]=$G63))*T_DataComboFile[2023/24 Baseline]*$B$3)","v":0},{"$f":"SUMPRODUCT(((T_DataComboFile[Implementation programme]=$G$3)*(T_DataComboFile[Econ3]=$G63))*T_DataComboFile[2023/24 Reduction]*$B$3)","v":0},{"$f":"SUMPRODUCT(((T_DataComboFile[Implementation programme]=$G$3)*(T_DataComboFile[Econ3]=$G63))*T_DataComboFile[2023/24 Increase]*$B$3)","v":0},0]
[0,0,null,null,null,null,"Payments for financial assets",{"$f":"SUMPRODUCT(((T_DataComboFile[Implementation programme]=$G$3)*(T_DataComboFile[Econ3]=$G64))*T_DataComboFile[2017/18]*$B$3)","v":0},{"$f":"SUMPRODUCT(((T_DataComboFile[Implementation programme]=$G$3)*(T_DataComboFile[Econ3]=$G64))*T_DataComboFile[2018/19]*$B$3)","v":0},{"$f":"SUMPRODUCT(((T_DataComboFile[Implementation programme]=$G$3)*(T_DataComboFile[Econ3]=$G64))*T_DataComboFile[2019/20 Revised estimate]*$B$3)","v":0},{"$f":"SUMPRODUCT(((T_DataComboFile[Implementation programme]=$G$3)*(T_DataComboFile[Econ3]=$G64))*T_DataComboFile[2020/21 Revised]*$B$3)","v":0},{"$f":"SUMPRODUCT(((T_DataComboFile[Implementation programme]=$G$3)*(T_DataComboFile[Econ3]=$G64))*T_DataComboFile[2021/22 Baseline]*$B$3)","v":0},{"$f":"SUMPRODUCT(((T_DataComboFile[Implementation programme]=$G$3)*(T_DataComboFile[Econ3]=$G64))*T_DataComboFile[2021/22 Reduction]*$B$3)","v":0},{"$f":"SUMPRODUCT(((T_DataComboFile[Implementation programme]=$G$3)*(T_DataComboFile[Econ3]=$G64))*T_DataComboFile[2021/22 Increase]*$B$3)","v":0},0,{"$f":"SUMPRODUCT(((T_DataComboFile[Implementation programme]=$G$3)*(T_DataComboFile[Econ3]=$G64))*T_DataComboFile[2022/23 Baseline]*$B$3)","v":0},{"$f":"SUMPRODUCT(((T_DataComboFile[Implementation programme]=$G$3)*(T_DataComboFile[Econ3]=$G64))*T_DataComboFile[2022/23 Reduction]*$B$3)","v":0},{"$f":"SUMPRODUCT(((T_DataComboFile[Implementation programme]=$G$3)*(T_DataComboFile[Econ3]=$G64))*T_DataComboFile[2022/23 Increase]*$B$3)","v":0},0,{"$f":"SUMPRODUCT(((T_DataComboFile[Implementation programme]=$G$3)*(T_DataComboFile[Econ3]=$G64))*T_DataComboFile[2023/24 Baseline]*$B$3)","v":0},{"$f":"SUMPRODUCT(((T_DataComboFile[Implementation programme]=$G$3)*(T_DataComboFile[Econ3]=$G64))*T_DataComboFile[2023/24 Reduction]*$B$3)","v":0},{"$f":"SUMPRODUCT(((T_DataComboFile[Implementation programme]=$G$3)*(T_DataComboFile[Econ3]=$G64))*T_DataComboFile[2023/24 Increase]*$B$3)","v":0},0]
[0,0,null,null,null,null,"Total",{"$f":"SUM(H32,H36,H52,H64)","v":0},0,0,0,0,0,0,0,0,0,0,0,0,0,0,0]
[]
[]
[]
[]
[]
[null,null,null,null,null,null,{"$f":"\"IMPACT OF ADJUSTMENTS: \" &UPPER($G$3)","v":"IMPACT OF ADJUSTMENTS: "}]
[]
[null,null,null,null,null,1,"Summary of impact on service delivery due to adjustments"]
[{"$f":"$G$3","v":0},1]
[0,1]
[0,1]
[0,1]
[0,1]
[0,1]
[0,1]
[0,1]
[0,1]
[0,1]
[0,1]
[0,1]
[0,1]
[0,1]
[0,1]
[]
[]
[]
[]
[]
[null,null,null,null,null,2,"Impact of adjustments on performance indicators"]
[{"$f":"$G$3","v":0},2,null,null,null,null,null,"2021/22",null,null,"2022/23",null,null,"2023/24",null,null," Comment",null,null,null,null,"Related MTSF Priority"]
[0,2,null,null,null,null,"Performance indicator","Original target","Revised target","Change","Original target","Revised target","Change","Original target","Revised target","Change"]
[0,2]
[0,2]
[0,2]
[0,2]
[0,2]
[0,2]
[0,2]
[0,2]
[0,2]
[0,2]
[0,2]
[0,2]
[0,2]
[0,2]
[0,2]
[]
[]
[]
[]
[]
[null,null,null,null,null,3,"Impact of adjustments on infrastructure projects"]
[{"$f":"$G$3","v":0},3,null,null,null,null,null,"2021/22",null,null,"2022/23",null,null,"2023/24",null,null," Comment"]
[0,3,null,null,null,null,"Project name","Original amount","Revised amount","Change","Original amount","Revised amount","Change","Original amount","Revised amount","Change"]
[0,3,null,null,null,null,null,null,null,{"$f":"I120-H120","v":0},null,null,{"$f":"L120-K120","v":0},null,null,{"$f":"O120-N120","v":0}]
[0,3,null,null,null,null,null,null,null,0,null,null,0,null,null,0]
[0,3,null,null,null,null,null,null,null,0,null,null,0,null,null,0]
[0,3,null,null,null,null,null,null,null,0,null,null,0,null,null,0]
[0,3,null,null,null,null,null,null,null,0,null,null,0,null,null,0]
[0,3,null,null,null,null,null,null,null,0,null,null,0,null,null,0]
[0,3,null,null,null,null,null,null,null,0,null,null,0,null,null,0]
[0,3,null,null,null,null,null,null,null,0,null,null,0,null,null,0]
[0,3,null,null,null,null,null,null,null,0,null,null,0,null,null,0]
[0,3,null,null,null,null,null,null,null,0,null,null,0,null,null,0]
[0,3,null,null,null,null,null,null,null,0,null,null,0,null,null,0]
[0,3,null,null,null,null,null,null,null,0,null,null,0,null,null,0]
[0,3,null,null,null,null,null,null,null,0,null,null,0,null,null,0]
[0,3,null,null,null,null,null,null,null,0,null,null,0,null,null,0]
[0,3,null,null,null,null,null,null,null,0,null,null,0,null,null,0]
[0,3,null,null,null,null,"Total",{"$f":"SUM(H120:H134)","v":0},0,0,0,0,0,0,0,0]
[]
[]
[]
[]
[]
[null,null,null,null,null,4,"Impact of adjustments on personnel headcount numbers"]
[{"$f":"$G$3","v":0},4,null,null,null,null,null,"2021/22",null,null,"2022/23",null,null,"2023/24",null,null," Comment"]
[0,4,null,null,null,null,"Salary level","Original number","Revised number","Change","Original number","Revised number","Change","Original number","Revised number","Change"]
[0,4,null,null,null,null,1,null,null,{"$f":"I144-H144","v":0},null,null,{"$f":"L144-K144","v":0},null,null,{"$f":"O144-N144","v":0}]
[0,4,null,null,null,null,2,null,null,0,null,null,0,null,null,0]
[0,4,null,null,null,null,3,null,null,0,null,null,0,null,null,0]
[0,4,null,null,null,null,4,null,null,0,null,null,0,null,null,0]
[0,4,null,null,null,null,5,null,null,0,null,null,0,null,null,0]
[0,4,null,null,null,null,6,null,null,0,null,null,0,null,null,0]
[0,4,null,null,null,null,7,null,null,0,null,null,0,null,null,0]
[0,4,null,null,null,null,8,null,null,0,null,null,0,null,null,0]
[0,4,null,null,null,null,9,null,null,0,null,null,0,null,null,0]
[0,4,null,null,null,null,10,null,null,0,null,null,0,null,null,0]
[0,4,null,null,null,null,11,null,null,0,null,null,0,null,null,0]
[0,4,null,null,null,null,12,null,null,0,null,null,0,null,null,0]
[0,4,null,null,null,null,13,null,null,0,null,null,0,null,null,0]
[0,4,null,null,null,null,14,null,null,0,null,null,0,null,null,0]
[0,4,null,null,null,null,15,null,null,0,null,null,0,null,null,0]
[0,4,null,null,null,null,16,null,null,0,null,null,0,null,null,0]
[0,4,null,null,null,null,"Other",null,null,0,null,null,0,null,null,0]
[0,4,null,null,null,null,"Other",null,null,0,null,null,0,null,null,0]
[0,4,null,null,null,null,"Other",null,null,0,null,null,0,null,null,0]
[0,4,null,null,null,null,"Other",null,null,0,null,null,0,null,null,0]
[0,4,null,null,null,null,"Total",{"$f":"SUM(H144:H163)","v":0},0,0,0,0,0,0,0,0]
[]
[]
[]
[]
[]
[null,null,null,null,null,5,"Impact of adjustments by economic classification"]
[{"$f":"$G$3","v":0},5,null,null,null,null,null,"2021/22",null,null,"2022/23",null,null,"2023/24",null,null," Comment"]
[0,5,null,null,null,null,"Salary level","Original number","Revised number","Change","Original number","Revised number","Change","Original number","Revised number","Change"]
[0,5,null,null,null,null,"Current payments",{"$f":"SUM(H174,H175,H182)","v":0},{"$f":"SUM(I174,I175,I182)","v":0},{"$f":"I173-H173","v":0},{"$f":"SUM(K174,K175,K182)","v":0},{"$f":"SUM(L174,L175,L182)","v":0},{"$f":"L173-K173","v":0},{"$f":"SUM(N174,N175,N182)","v":0},{"$f":"SUM(O174,O175,O182)","v":0},{"$f":"O173-N173","v":0}]
[0,5,null,null,null,null,"Compensation of employees",{"$f":"SUMPRODUCT(((T_DataComboFile[Implementation programme]=$G$3)*(T_DataComboFile[Econ3]=$G174))*T_DataComboFile[2021/22 Baseline]*$B$3)","v":0},{"$f":"SUMPRODUCT(((T_DataComboFile[Implementation programme]=$G$3)*(T_DataComboFile[Econ3]=$G174))*T_DataComboFile[2021/22 Revised baseline]*$B$3)","v":0},0,{"$f":"SUMPRODUCT(((T_DataComboFile[Implementation programme]=$G$3)*(T_DataComboFile[Econ3]=$G174))*T_DataComboFile[2022/23 Baseline]*$B$3)","v":0},{"$f":"SUMPRODUCT(((T_DataComboFile[Implementation programme]=$G$3)*(T_DataComboFile[Econ3]=$G174))*T_DataComboFile[2022/23 Revised baseline]*$B$3)","v":0},0,{"$f":"SUMPRODUCT(((T_DataComboFile[Implementation programme]=$G$3)*(T_DataComboFile[Econ3]=$G174))*T_DataComboFile[2023/24 Baseline]*$B$3)","v":0},{"$f":"SUMPRODUCT(((T_DataComboFile[Implementation programme]=$G$3)*(T_DataComboFile[Econ3]=$G174))*T_DataComboFile[2023/24 Revised baseline]*$B$3)","v":0},0]
[0,5,null,null,null,null,"Goods and services",{"$f":"SUMPRODUCT(((T_DataComboFile[Implementation programme]=$G$3)*(T_DataComboFile[Econ3]=$G175))*T_DataComboFile[2021/22 Baseline]*$B$3)","v":0},{"$f":"SUMPRODUCT(((T_DataComboFile[Implementation programme]=$G$3)*(T_DataComboFile[Econ3]=$G175))*T_DataComboFile[2021/22 Revised baseline]*$B$3)","v":0},0,{"$f":"SUMPRODUCT(((T_DataComboFile[Implementation programme]=$G$3)*(T_DataComboFile[Econ3]=$G175))*T_DataComboFile[2022/23 Baseline]*$B$3)","v":0},{"$f":"SUMPRODUCT(((T_DataComboFile[Implementation programme]=$G$3)*(T_DataComboFile[Econ3]=$G175))*T_DataComboFile[2022/23 Revised baseline]*$B$3)","v":0},0,{"$f":"SUMPRODUCT(((T_DataComboFile[Implementation programme]=$G$3)*(T_DataComboFile[Econ3]=$G175))*T_DataComboFile[2023/24 Baseline]*$B$3)","v":0},{"$f":"SUMPRODUCT(((T_DataComboFile[Implementation programme]=$G$3)*(T_DataComboFile[Econ3]=$G175))*T_DataComboFile[2023/24 Revised baseline]*$B$3)","v":0},0]
[0,50,null,null,null,null,"of which:"]
[0,51,null,null,null,null,null,null,null,{"$f":"I177-H177","v":0},null,null,{"$f":"L177-K177","v":0},null,null,0]
[0,51,null,null,null,null,null,null,null,0,null,null,0,null,null,0]
[0,51,null,null,null,null,null,null,null,0,null,null,0,null,null,0]
[0,51,null,null,null,null,null,null,null,0,null,null,0,null,null,0]
[0,51,null,null,null,null,null,null,null,0,null,null,0,null,null,0]
[0,5,null,null,null,null,"Interest and rent on land",{"$f":"SUMPRODUCT(((T_DataComboFile[Implementation programme]=$G$3)*(T_DataComboFile[Econ3]=$G182))*T_DataComboFile[2021/22 Baseline]*$B$3)","v":0},{"$f":"SUMPRODUCT(((T_DataComboFile[Implementation programme]=$G$3)*(T_DataComboFile[Econ3]=$G182))*T_DataComboFile[2021/22 Revised baseline]*$B$3)","v":0},0,{"$f":"SUMPRODUCT(((T_DataComboFile[Implementation programme]=$G$3)*(T_DataComboFile[Econ3]=$G182))*T_DataComboFile[2022/23 Baseline]*$B$3)","v":0},{"$f":"SUMPRODUCT(((T_DataComboFile[Implementation programme]=$G$3)*(T_DataComboFile[Econ3]=$G182))*T_DataComboFile[2022/23 Revised baseline]*$B$3)","v":0},0,{"$f":"SUMPRODUCT(((T_DataComboFile[Implementation programme]=$G$3)*(T_DataComboFile[Econ3]=$G182))*T_DataComboFile[2023/24 Baseline]*$B$3)","v":0},{"$f":"SUMPRODUCT(((T_DataComboFile[Implementation programme]=$G$3)*(T_DataComboFile[Econ3]=$G182))*T_DataComboFile[2023/24 Revised baseline]*$B$3)","v":0},0]
[0,5,null,null,null,null,"Transfers and subsidies",{"$f":"SUM(H184,H185,H197,H198,H199,H206,H207)","v":0},{"$f":"SUM(I184,I185,I197,I198,I199,I206,I207)","v":0},0,{"$f":"SUM(K184,K185,K197,K198,K199,K206,K207)","v":0},0,0,{"$f":"SUM(N184,N185,N197,N198,N199,N206,N207)","v":0},0,0]
[0,5,null,null,null,null,"Provinces and municipalities",{"$f":"SUMPRODUCT(((T_DataComboFile[Implementation programme]=$G$3)*(T_DataComboFile[Econ3]=$G184))*T_DataComboFile[2021/22 Baseline]*$B$3)","v":0},{"$f":"SUMPRODUCT(((T_DataComboFile[Implementation programme]=$G$3)*(T_DataComboFile[Econ3]=$G184))*T_DataComboFile[2021/22 Revised baseline]*$B$3)","v":0},0,{"$f":"SUMPRODUCT(((T_DataComboFile[Implementation programme]=$G$3)*(T_DataComboFile[Econ3]=$G184))*T_DataComboFile[2022/23 Baseline]*$B$3)","v":0},{"$f":"SUMPRODUCT(((T_DataComboFile[Implementation programme]=$G$3)*(T_DataComboFile[Econ3]=$G184))*T_DataComboFile[2022/23 Revised baseline]*$B$3)","v":0},0,{"$f":"SUMPRODUCT(((T_DataComboFile[Implementation programme]=$G$3)*(T_DataComboFile[Econ3]=$G184))*T_DataComboFile[2023/24 Baseline]*$B$3)","v":0},{"$f":"SUMPRODUCT(((T_DataComboFile[Implementation programme]=$G$3)*(T_DataComboFile[Econ3]=$G184))*T_DataComboFile[2023/24 Revised baseline]*$B$3)","v":0},0]
[0,5,null,null,null,null,"Departmental agencies and accounts",{"$f":"SUMPRODUCT(((T_DataComboFile[Implementation programme]=$G$3)*(T_DataComboFile[Econ3]=$G185))*T_DataComboFile[2021/22 Baseline]*$B$3)","v":0},{"$f":"SUMPRODUCT(((T_DataComboFile[Implementation programme]=$G$3)*(T_DataComboFile[Econ3]=$G185))*T_DataComboFile[2021/22 Revised baseline]*$B$3)","v":0},0,{"$f":"SUMPRODUCT(((T_DataComboFile[Implementation programme]=$G$3)*(T_DataComboFile[Econ3]=$G185))*T_DataComboFile[2022/23 Baseline]*$B$3)","v":0},{"$f":"SUMPRODUCT(((T_DataComboFile[Implementation programme]=$G$3)*(T_DataComboFile[Econ3]=$G185))*T_DataComboFile[2022/23 Revised baseline]*$B$3)","v":0},0,{"$f":"SUMPRODUCT(((T_DataComboFile[Implementation programme]=$G$3)*(T_DataComboFile[Econ3]=$G185))*T_DataComboFile[2023/24 Baseline]*$B$3)","v":0},{"$f":"SUMPRODUCT(((T_DataComboFile[Implementation programme]=$G$3)*(T_DataComboFile[Econ3]=$G185))*T_DataComboFile[2023/24 Revised baseline]*$B$3)","v":0},0]
[0,50,null,null,null,null,"of which:"]
[0,52,null,null,null,null,null,null,null,{"$f":"I187-H187","v":0},null,null,{"$f":"L187-K187","v":0},null,null,{"$f":"O187-N187","v":0}]
[0,52,null,null,null,null,null,null,null,0,null,null,0,null,null,0]
[0,52,null,null,null,null,null,null,null,0,null,null,0,null,null,0]
[0,52,null,null,null,null,null,null,null,0,null,null,0,null,null,0]
[0,52,null,null,null,null,null,null,null,0,null,null,0,null,null,0]
[0,52,null,null,null,null,null,null,null,0,null,null,0,null,null,0]
[0,52,null,null,null,null,null,null,null,0,null,null,0,null,null,0]
[0,52,null,null,null,null,null,null,null,0,null,null,0,null,null,0]
[0,52,null,null,null,null,null,null,null,0,null,null,0,null,null,0]
[0,52,null,null,null,null,null,null,null,0,null,null,0,null,null,0]
[0,5,null,null,null,null,"Higher education institutions",{"$f":"SUMPRODUCT(((T_DataComboFile[Implementation programme]=$G$3)*(T_DataComboFile[Econ3]=$G197))*T_DataComboFile[2021/22 Baseline]*$B$3)","v":0},{"$f":"SUMPRODUCT(((T_DataComboFile[Implementation programme]=$G$3)*(T_DataComboFile[Econ3]=$G197))*T_DataComboFile[2021/22 Revised baseline]*$B$3)","v":0},0,{"$f":"SUMPRODUCT(((T_DataComboFile[Implementation programme]=$G$3)*(T_DataComboFile[Econ3]=$G197))*T_DataComboFile[2022/23 Baseline]*$B$3)","v":0},{"$f":"SUMPRODUCT(((T_DataComboFile[Implementation programme]=$G$3)*(T_DataComboFile[Econ3]=$G197))*T_DataComboFile[2022/23 Revised baseline]*$B$3)","v":0},0,{"$f":"SUMPRODUCT(((T_DataComboFile[Implementation programme]=$G$3)*(T_DataComboFile[Econ3]=$G197))*T_DataComboFile[2023/24 Baseline]*$B$3)","v":0},{"$f":"SUMPRODUCT(((T_DataComboFile[Implementation programme]=$G$3)*(T_DataComboFile[Econ3]=$G197))*T_DataComboFile[2023/24 Revised baseline]*$B$3)","v":0},0]
[0,5,null,null,null,null,"Foreign governments and international organisations",{"$f":"SUMPRODUCT(((T_DataComboFile[Implementation programme]=$G$3)*(T_DataComboFile[Econ3]=$G198))*T_DataComboFile[2021/22 Baseline]*$B$3)","v":0},{"$f":"SUMPRODUCT(((T_DataComboFile[Implementation programme]=$G$3)*(T_DataComboFile[Econ3]=$G198))*T_DataComboFile[2021/22 Revised baseline]*$B$3)","v":0},0,{"$f":"SUMPRODUCT(((T_DataComboFile[Implementation programme]=$G$3)*(T_DataComboFile[Econ3]=$G198))*T_DataComboFile[2022/23 Baseline]*$B$3)","v":0},{"$f":"SUMPRODUCT(((T_DataComboFile[Implementation programme]=$G$3)*(T_DataComboFile[Econ3]=$G198))*T_DataComboFile[2022/23 Revised baseline]*$B$3)","v":0},0,{"$f":"SUMPRODUCT(((T_DataComboFile[Implementation programme]=$G$3)*(T_DataComboFile[Econ3]=$G198))*T_DataComboFile[2023/24 Baseline]*$B$3)","v":0},{"$f":"SUMPRODUCT(((T_DataComboFile[Implementation programme]=$G$3)*(T_DataComboFile[Econ3]=$G198))*T_DataComboFile[2023/24 Revised baseline]*$B$3)","v":0},0]
[0,5,null,null,null,null,"Public corporations and private enterprises",{"$f":"SUMPRODUCT(((T_DataComboFile[Implementation programme]=$G$3)*(T_DataComboFile[Econ3]=$G199))*T_DataComboFile[2021/22 Baseline]*$B$3)","v":0},{"$f":"SUMPRODUCT(((T_DataComboFile[Implementation programme]=$G$3)*(T_DataComboFile[Econ3]=$G199))*T_DataComboFile[2021/22 Revised baseline]*$B$3)","v":0},0,{"$f":"SUMPRODUCT(((T_DataComboFile[Implementation programme]=$G$3)*(T_DataComboFile[Econ3]=$G199))*T_DataComboFile[2022/23 Baseline]*$B$3)","v":0},{"$f":"SUMPRODUCT(((T_DataComboFile[Implementation programme]=$G$3)*(T_DataComboFile[Econ3]=$G199))*T_DataComboFile[2022/23 Revised baseline]*$B$3)","v":0},0,{"$f":"SUMPRODUCT(((T_DataComboFile[Implementation programme]=$G$3)*(T_DataComboFile[Econ3]=$G199))*T_DataComboFile[2023/24 Baseline]*$B$3)","v":0},{"$f":"SUMPRODUCT(((T_DataComboFile[Implementation programme]=$G$3)*(T_DataComboFile[Econ3]=$G199))*T_DataComboFile[2023/24 Revised baseline]*$B$3)","v":0},0]
[0,50,null,null,null,null,"of which:"]
[0,53,null,null,null,null,null,null,null,{"$f":"I201-H201","v":0},null,null,{"$f":"L201-K201","v":0},null,null,{"$f":"O201-N201","v":0}]
[0,53,null,null,null,null,null,null,null,0,null,null,0,null,null,0]
[0,53,null,null,null,null,null,null,null,0,null,null,0,null,null,0]
[0,53,null,null,null,null,null,null,null,0,null,null,0,null,null,0]
[0,53,null,null,null,null,null,null,null,0,null,null,0,null,null,0]
[0,5,null,null,null,null,"Non-profit institutions",{"$f":"SUMPRODUCT(((T_DataComboFile[Implementation programme]=$G$3)*(T_DataComboFile[Econ3]=$G206))*T_DataComboFile[2021/22 Baseline]*$B$3)","v":0},{"$f":"SUMPRODUCT(((T_DataComboFile[Implementation programme]=$G$3)*(T_DataComboFile[Econ3]=$G206))*T_DataComboFile[2021/22 Revised baseline]*$B$3)","v":0},0,{"$f":"SUMPRODUCT(((T_DataComboFile[Implementation programme]=$G$3)*(T_DataComboFile[Econ3]=$G206))*T_DataComboFile[2022/23 Baseline]*$B$3)","v":0},{"$f":"SUMPRODUCT(((T_DataComboFile[Implementation programme]=$G$3)*(T_DataComboFile[Econ3]=$G206))*T_DataComboFile[2022/23 Revised baseline]*$B$3)","v":0},0,{"$f":"SUMPRODUCT(((T_DataComboFile[Implementation programme]=$G$3)*(T_DataComboFile[Econ3]=$G206))*T_DataComboFile[2023/24 Baseline]*$B$3)","v":0},{"$f":"SUMPRODUCT(((T_DataComboFile[Implementation programme]=$G$3)*(T_DataComboFile[Econ3]=$G206))*T_DataComboFile[2023/24 Revised baseline]*$B$3)","v":0},0]
[0,5,null,null,null,null,"Households",{"$f":"SUMPRODUCT(((T_DataComboFile[Implementation programme]=$G$3)*(T_DataComboFile[Econ3]=$G207))*T_DataComboFile[2021/22 Baseline]*$B$3)","v":0},{"$f":"SUMPRODUCT(((T_DataComboFile[Implementation programme]=$G$3)*(T_DataComboFile[Econ3]=$G207))*T_DataComboFile[2021/22 Revised baseline]*$B$3)","v":0},0,{"$f":"SUMPRODUCT(((T_DataComboFile[Implementation programme]=$G$3)*(T_DataComboFile[Econ3]=$G207))*T_DataComboFile[2022/23 Baseline]*$B$3)","v":0},{"$f":"SUMPRODUCT(((T_DataComboFile[Implementation programme]=$G$3)*(T_DataComboFile[Econ3]=$G207))*T_DataComboFile[2022/23 Revised baseline]*$B$3)","v":0},0,{"$f":"SUMPRODUCT(((T_DataComboFile[Implementation programme]=$G$3)*(T_DataComboFile[Econ3]=$G207))*T_DataComboFile[2023/24 Baseline]*$B$3)","v":0},{"$f":"SUMPRODUCT(((T_DataComboFile[Implementation programme]=$G$3)*(T_DataComboFile[Econ3]=$G207))*T_DataComboFile[2023/24 Revised baseline]*$B$3)","v":0},0]
[0,5,null,null,null,null,"Payments for capital assets",{"$f":"SUM(H209:H215)","v":0},0,0,0,0,0,0,{"$f":"SUM(O209:O215)","v":0},0]
[0,5,null,null,null,null,"Buildings and other fixed structures",{"$f":"SUMPRODUCT(((T_DataComboFile[Implementation programme]=$G$3)*(T_DataComboFile[Econ3]=$G209))*T_DataComboFile[2021/22 Baseline]*$B$3)","v":0},{"$f":"SUMPRODUCT(((T_DataComboFile[Implementation programme]=$G$3)*(T_DataComboFile[Econ3]=$G209))*T_DataComboFile[2021/22 Revised baseline]*$B$3)","v":0},0,{"$f":"SUMPRODUCT(((T_DataComboFile[Implementation programme]=$G$3)*(T_DataComboFile[Econ3]=$G209))*T_DataComboFile[2022/23 Baseline]*$B$3)","v":0},{"$f":"SUMPRODUCT(((T_DataComboFile[Implementation programme]=$G$3)*(T_DataComboFile[Econ3]=$G209))*T_DataComboFile[2022/23 Revised baseline]*$B$3)","v":0},0,{"$f":"SUMPRODUCT(((T_DataComboFile[Implementation programme]=$G$3)*(T_DataComboFile[Econ3]=$G209))*T_DataComboFile[2023/24 Baseline]*$B$3)","v":0},{"$f":"SUMPRODUCT(((T_DataComboFile[Implementation programme]=$G$3)*(T_DataComboFile[Econ3]=$G209))*T_DataComboFile[2023/24 Revised baseline]*$B$3)","v":0},0]
[0,5,null,null,null,null,"Machinery and equipment",{"$f":"SUMPRODUCT(((T_DataComboFile[Implementation programme]=$G$3)*(T_DataComboFile[Econ3]=$G210))*T_DataComboFile[2021/22 Baseline]*$B$3)","v":0},{"$f":"SUMPRODUCT(((T_DataComboFile[Implementation programme]=$G$3)*(T_DataComboFile[Econ3]=$G210))*T_DataComboFile[2021/22 Revised baseline]*$B$3)","v":0},0,{"$f":"SUMPRODUCT(((T_DataComboFile[Implementation programme]=$G$3)*(T_DataComboFile[Econ3]=$G210))*T_DataComboFile[2022/23 Baseline]*$B$3)","v":0},{"$f":"SUMPRODUCT(((T_DataComboFile[Implementation programme]=$G$3)*(T_DataComboFile[Econ3]=$G210))*T_DataComboFile[2022/23 Revised baseline]*$B$3)","v":0},0,{"$f":"SUMPRODUCT(((T_DataComboFile[Implementation programme]=$G$3)*(T_DataComboFile[Econ3]=$G210))*T_DataComboFile[2023/24 Baseline]*$B$3)","v":0},{"$f":"SUMPRODUCT(((T_DataComboFile[Implementation programme]=$G$3)*(T_DataComboFile[Econ3]=$G210))*T_DataComboFile[2023/24 Revised baseline]*$B$3)","v":0},0]
[0,5,null,null,null,null,"Heritage assets",{"$f":"SUMPRODUCT(((T_DataComboFile[Implementation programme]=$G$3)*(T_DataComboFile[Econ3]=$G211))*T_DataComboFile[2021/22 Baseline]*$B$3)","v":0},{"$f":"SUMPRODUCT(((T_DataComboFile[Implementation programme]=$G$3)*(T_DataComboFile[Econ3]=$G211))*T_DataComboFile[2021/22 Revised baseline]*$B$3)","v":0},0,{"$f":"SUMPRODUCT(((T_DataComboFile[Implementation programme]=$G$3)*(T_DataComboFile[Econ3]=$G211))*T_DataComboFile[2022/23 Baseline]*$B$3)","v":0},{"$f":"SUMPRODUCT(((T_DataComboFile[Implementation programme]=$G$3)*(T_DataComboFile[Econ3]=$G211))*T_DataComboFile[2022/23 Revised baseline]*$B$3)","v":0},0,{"$f":"SUMPRODUCT(((T_DataComboFile[Implementation programme]=$G$3)*(T_DataComboFile[Econ3]=$G211))*T_DataComboFile[2023/24 Baseline]*$B$3)","v":0},{"$f":"SUMPRODUCT(((T_DataComboFile[Implementation programme]=$G$3)*(T_DataComboFile[Econ3]=$G211))*T_DataComboFile[2023/24 Revised baseline]*$B$3)","v":0},0]
[0,5,null,null,null,null,"Specialised military assets",{"$f":"SUMPRODUCT(((T_DataComboFile[Implementation programme]=$G$3)*(T_DataComboFile[Econ3]=$G212))*T_DataComboFile[2021/22 Baseline]*$B$3)","v":0},{"$f":"SUMPRODUCT(((T_DataComboFile[Implementation programme]=$G$3)*(T_DataComboFile[Econ3]=$G212))*T_DataComboFile[2021/22 Revised baseline]*$B$3)","v":0},0,{"$f":"SUMPRODUCT(((T_DataComboFile[Implementation programme]=$G$3)*(T_DataComboFile[Econ3]=$G212))*T_DataComboFile[2022/23 Baseline]*$B$3)","v":0},{"$f":"SUMPRODUCT(((T_DataComboFile[Implementation programme]=$G$3)*(T_DataComboFile[Econ3]=$G212))*T_DataComboFile[2022/23 Revised baseline]*$B$3)","v":0},0,{"$f":"SUMPRODUCT(((T_DataComboFile[Implementation programme]=$G$3)*(T_DataComboFile[Econ3]=$G212))*T_DataComboFile[2023/24 Baseline]*$B$3)","v":0},{"$f":"SUMPRODUCT(((T_DataComboFile[Implementation programme]=$G$3)*(T_DataComboFile[Econ3]=$G212))*T_DataComboFile[2023/24 Revised baseline]*$B$3)","v":0},0]
[0,5,null,null,null,null,"Biological assets",{"$f":"SUMPRODUCT(((T_DataComboFile[Implementation programme]=$G$3)*(T_DataComboFile[Econ3]=$G213))*T_DataComboFile[2021/22 Baseline]*$B$3)","v":0},{"$f":"SUMPRODUCT(((T_DataComboFile[Implementation programme]=$G$3)*(T_DataComboFile[Econ3]=$G213))*T_DataComboFile[2021/22 Revised baseline]*$B$3)","v":0},0,{"$f":"SUMPRODUCT(((T_DataComboFile[Implementation programme]=$G$3)*(T_DataComboFile[Econ3]=$G213))*T_DataComboFile[2022/23 Baseline]*$B$3)","v":0},{"$f":"SUMPRODUCT(((T_DataComboFile[Implementation programme]=$G$3)*(T_DataComboFile[Econ3]=$G213))*T_DataComboFile[2022/23 Revised baseline]*$B$3)","v":0},0,{"$f":"SUMPRODUCT(((T_DataComboFile[Implementation programme]=$G$3)*(T_DataComboFile[Econ3]=$G213))*T_DataComboFile[2023/24 Baseline]*$B$3)","v":0},{"$f":"SUMPRODUCT(((T_DataComboFile[Implementation programme]=$G$3)*(T_DataComboFile[Econ3]=$G213))*T_DataComboFile[2023/24 Revised baseline]*$B$3)","v":0},0]
[0,5,null,null,null,null,"Land and sub-soil assets",{"$f":"SUMPRODUCT(((T_DataComboFile[Implementation programme]=$G$3)*(T_DataComboFile[Econ3]=$G214))*T_DataComboFile[2021/22 Baseline]*$B$3)","v":0},{"$f":"SUMPRODUCT(((T_DataComboFile[Implementation programme]=$G$3)*(T_DataComboFile[Econ3]=$G214))*T_DataComboFile[2021/22 Revised baseline]*$B$3)","v":0},0,{"$f":"SUMPRODUCT(((T_DataComboFile[Implementation programme]=$G$3)*(T_DataComboFile[Econ3]=$G214))*T_DataComboFile[2022/23 Baseline]*$B$3)","v":0},{"$f":"SUMPRODUCT(((T_DataComboFile[Implementation programme]=$G$3)*(T_DataComboFile[Econ3]=$G214))*T_DataComboFile[2022/23 Revised baseline]*$B$3)","v":0},0,{"$f":"SUMPRODUCT(((T_DataComboFile[Implementation programme]=$G$3)*(T_DataComboFile[Econ3]=$G214))*T_DataComboFile[2023/24 Baseline]*$B$3)","v":0},{"$f":"SUMPRODUCT(((T_DataComboFile[Implementation programme]=$G$3)*(T_DataComboFile[Econ3]=$G214))*T_DataComboFile[2023/24 Revised baseline]*$B$3)","v":0},0]
[0,5,null,null,null,null,"Software and other intangible assets",{"$f":"SUMPRODUCT(((T_DataComboFile[Implementation programme]=$G$3)*(T_DataComboFile[Econ3]=$G215))*T_DataComboFile[2021/22 Baseline]*$B$3)","v":0},{"$f":"SUMPRODUCT(((T_DataComboFile[Implementation programme]=$G$3)*(T_DataComboFile[Econ3]=$G215))*T_DataComboFile[2021/22 Revised baseline]*$B$3)","v":0},0,{"$f":"SUMPRODUCT(((T_DataComboFile[Implementation programme]=$G$3)*(T_DataComboFile[Econ3]=$G215))*T_DataComboFile[2022/23 Baseline]*$B$3)","v":0},{"$f":"SUMPRODUCT(((T_DataComboFile[Implementation programme]=$G$3)*(T_DataComboFile[Econ3]=$G215))*T_DataComboFile[2022/23 Revised baseline]*$B$3)","v":0},0,{"$f":"SUMPRODUCT(((T_DataComboFile[Implementation programme]=$G$3)*(T_DataComboFile[Econ3]=$G215))*T_DataComboFile[2023/24 Baseline]*$B$3)","v":0},{"$f":"SUMPRODUCT(((T_DataComboFile[Implementation programme]=$G$3)*(T_DataComboFile[Econ3]=$G215))*T_DataComboFile[2023/24 Revised baseline]*$B$3)","v":0},0]
[0,5,null,null,null,null,"Payments for financial assets",{"$f":"SUMPRODUCT(((T_DataComboFile[Implementation programme]=$G$3)*(T_DataComboFile[Econ3]=$G216))*T_DataComboFile[2021/22 Baseline]*$B$3)","v":0},{"$f":"SUMPRODUCT(((T_DataComboFile[Implementation programme]=$G$3)*(T_DataComboFile[Econ3]=$G216))*T_DataComboFile[2021/22 Revised baseline]*$B$3)","v":0},0,{"$f":"SUMPRODUCT(((T_DataComboFile[Implementation programme]=$G$3)*(T_DataComboFile[Econ3]=$G216))*T_DataComboFile[2022/23 Baseline]*$B$3)","v":0},{"$f":"SUMPRODUCT(((T_DataComboFile[Implementation programme]=$G$3)*(T_DataComboFile[Econ3]=$G216))*T_DataComboFile[2022/23 Revised baseline]*$B$3)","v":0},0,{"$f":"SUMPRODUCT(((T_DataComboFile[Implementation programme]=$G$3)*(T_DataComboFile[Econ3]=$G216))*T_DataComboFile[2023/24 Baseline]*$B$3)","v":0},{"$f":"SUMPRODUCT(((T_DataComboFile[Implementation programme]=$G$3)*(T_DataComboFile[Econ3]=$G216))*T_DataComboFile[2023/24 Revised baseline]*$B$3)","v":0},0]
[0,5,null,null,null,null,"Total",{"$f":"SUM(H173,H183,H208,H216)","v":0},0,0,0,0,0,0,{"$f":"SUM(O173,O183,O208,O216)","v":0},0]
[]
[null,null,null,null,null,null,null,{"$f":"L65-H217","v":0},{"$f":"O65-I217","v":0},null,{"$f":"P65-K217","v":0},{"$f":"S65-L217","v":0},null,{"$f":"T65-N217","v":0},{"$f":"W65-O217","v":0}]

{"sheet":"IP5","index":14,"n_rows":219,"n_cols":23,"rows_kept":219,"cut":false,"hidden":false,"merged":[[96,16,96,20],[96,21,96,23],[97,16,97,20],[97,21,97,23],[98,16,98,20],[98,21,98,23],[70,6,70,17],[73,6,87,17],[94,16,94,20],[94,21,94,23],[95,16,95,20],[95,21,95,23],[102,16,102,20],[102,21,102,23],[103,16,103,20],[103,21,103,23],[104,16,104,20],[104,21,104,23],[99,16,99,20],[99,21,99,23],[100,16,100,20],[100,21,100,23],[101,16,101,20],[101,21,101,23],[108,16,108,20],[108,21,108,23],[109,16,109,20],[109,21,109,23],[110,16,110,20],[110,21,110,23],[105,16,105,20],[105,21,105,23],[106,16,106,20],[106,21,106,23],[107,16,107,20],[107,21,107,23],[128,16,128,20],[117,16,117,20],[118,16,118,20],[119,16,119,20],[120,16,120,20],[121,16,121,20],[122,16,122,20],[123,16,123,20],[124,16,124,20],[125,16,125,20],[126,16,126,20],[127,16,127,20],[173,16,173,20],[129,16,129,20],[130,16,130,20],[131,16,131,20],[132,16,132,20],[133,16,133,20],[141,16,141,20],[142,16,142,20],[143,16,162,20],[170,16,170,20],[171,16,171,20],[172,16,172,20],[215,16,215,20],[209,16,209,20],[210,16,210,20],[211,16,211,20],[212,16,212,20],[213,16,213,20],[214,16,214,20],[208,16,208,20],[174,16,174,20],[181,16,181,20],[182,16,182,20],[183,16,183,20],[184,16,184,20],[196,16,196,20],[197,16,197,20],[198,16,198,20],[205,16,205,20],[206,16,206,20],[207,16,207,20],[175,16,175,20],[176,16,176,20],[177,16,177,20],[178,16,178,20],[187,16,187,20],[188,16,188,20],[189,16,189,20],[190,16,190,20],[191,16,191,20],[179,16,179,20],[180,16,180,20],[185,16,185,20],[186,16,186,20],[200,16,200,20],[201,16,201,20],[202,16,202,20],[203,16,203,20],[204,16,204,20],[192,16,192,20],[193,16,193,20],[194,16,194,20],[195,16,195,20],[199,16,199,20]]}
[]
[null,null,null,null,null,null,"Implementation programme:"]
[null,{"$f":"IF(G3=\"\",0,1)","v":0},null,null,null,5,null,"… select from dropdown list"]
[null,null,null,null,null,null,null,null,null,null,null,null,"Growth"]
[null,null,null,null,null,null,"Quick view","2020/21","2021/22","2022/23","2023/24","Trend","2021/22","2022/23","2023/24","Ave Ann",null,"2020/21","2021/22","2022/23","2023/24"]
[null,null,null,null,null,null,"Compensation of employees",{"$f":"SUMPRODUCT(($G$32:$G$65=$G6)*($K$32:$K$65))","v":0},{"$f":"SUMPRODUCT(($G$32:$G$65=$G6)*($O$32:$O$65))","v":0},{"$f":"SUMPRODUCT(($G$32:$G$65=$G6)*($S$32:$S$65))","v":0},{"$f":"SUMPRODUCT(($G$32:$G$65=$G6)*($W$32:$W$65))","v":0},null,{"$f":"IFERROR(I6/H6-1,0)","v":0},0,0,{"$f":"IFERROR(((K6/H6)^(1/3)-1),0)","v":0}]
[null,null,null,null,null,null,"Goods and services",{"$f":"SUMPRODUCT(($G$32:$G$65=$G7)*($K$32:$K$65))","v":0},{"$f":"SUMPRODUCT(($G$32:$G$65=$G7)*($O$32:$O$65))","v":0},{"$f":"SUMPRODUCT(($G$32:$G$65=$G7)*($S$32:$S$65))","v":0},{"$f":"SUMPRODUCT(($G$32:$G$65=$G7)*($W$32:$W$65))","v":0},null,0,0,0,0]
[null,null,null,null,null,null,"Transfers and subsidies",{"$f":"SUMPRODUCT(($G$32:$G$65=$G8)*($K$32:$K$65))","v":0},{"$f":"SUMPRODUCT(($G$32:$G$65=$G8)*($O$32:$O$65))","v":0},{"$f":"SUMPRODUCT(($G$32:$G$65=$G8)*($S$32:$S$65))","v":0},{"$f":"SUMPRODUCT(($G$32:$G$65=$G8)*($W$32:$W$65))","v":0},null,0,0,0,0]
[null,null,null,null,null,null,"Payments for capital assets",{"$f":"SUMPRODUCT(($G$32:$G$65=$G9)*($K$32:$K$65))","v":0},{"$f":"SUMPRODUCT(($G$32:$G$65=$G9)*($O$32:$O$65))","v":0},{"$f":"SUMPRODUCT(($G$32:$G$65=$G9)*($S$32:$S$65))","v":0},{"$f":"SUMPRODUCT(($G$32:$G$65=$G9)*($W$32:$W$65))","v":0},null,0,0,0,0]
[null,null,null,null,null,null,"Total",{"$f":"SUMPRODUCT(($G$32:$G$65=$G10)*($K$32:$K$65))","v":0},{"$f":"SUMPRODUCT(($G$32:$G$65=$G10)*($O$32:$O$65))","v":0},{"$f":"SUMPRODUCT(($G$32:$G$65=$G10)*($S$32:$S$65))","v":0},{"$f":"SUMPRODUCT(($G$32:$G$65=$G10)*($W$32:$W$65))","v":0},null,0,0,0,0]
[null,null,null,null,null,null,"Composition of spending (% of Total)"]
[null,null,null,null,null,null,"Compensation of employees",{"$f":"IFERROR(H6/H$10,\"\")","v":""},"","","",null,null,null,null,null,null,{"$f":"IF(H12>0.0595,H12,\"\")","v":""},"","",""]
[null,null,null,null,null,null,"Goods and services","","","","",null,null,null,null,null,null,"","","",""]
[null,null,null,null,null,null,"Transfers and subsidies","","","","",null,null,null,null,null,null,"","","",""]
[null,null,null,null,null,null,"Payments for capital assets","","","","",null,null,null,null,null,null,"","","",""]
[]
[null,null,null,null,null,null,"Division of Revenue","2020/21","2021/22","2022/23","2023/24","Trend","2021/22","2022/23","2023/24","Ave Ann"]
[{"$f":"$G$3","v":0},"NAT",null,null,null,null,"National",{"$f":"SUMPRODUCT(((T_DataComboFile[Implementation programme]=$G$3)*(T_DataComboFile[DOR]=$B18))*T_DataComboFile[2020/21 Revised])","v":2331086},{"$f":"SUMPRODUCT(((T_DataComboFile[Implementation programme]=$G$3)*(T_DataComboFile[DOR]=$B18))*T_DataComboFile[2021/22 Revised baseline])","v":2583809},{"$f":"SUMPRODUCT(((T_DataComboFile[Implementation programme]=$G$3)*(T_DataComboFile[DOR]=$B18))*T_DataComboFile[2022/23 Revised baseline])","v":2617960},{"$f":"SUMPRODUCT(((T_DataComboFile[Implementation programme]=$G$3)*(T_DataComboFile[DOR]=$B18))*T_DataComboFile[2023/24 Revised baseline])","v":2733345},null,{"$f":"IFERROR(I18/H18-1,0)","v":0.10841427557799244},{"$f":"IFERROR(J18/I18-1,0)","v":1.3217308245307535E-2},{"$f":"IFERROR(K18/J18-1,0)","v":4.4074393802808309E-2},{"$f":"IFERROR(((K18/H18)^(1/3)-1),0)","v":5.449708876349435E-2}]
[0,null,null,null,null,null,"Provincial",{"$f":"SUM(H20:H21)","v":0},0,0,0,null,0,0,0,0]
[0,"PES",null,null,null,null,"Provincial equitable share",{"$f":"SUMPRODUCT(((T_DataComboFile[Implementation programme]=$G$3)*(T_DataComboFile[DOR]=$B20))*T_DataComboFile[2020/21 Revised])","v":0},{"$f":"SUMPRODUCT(((T_DataComboFile[Implementation programme]=$G$3)*(T_DataComboFile[DOR]=$B20))*T_DataComboFile[2021/22 Revised baseline])","v":0},{"$f":"SUMPRODUCT(((T_DataComboFile[Implementation programme]=$G$3)*(T_DataComboFile[DOR]=$B20))*T_DataComboFile[2022/23 Revised baseline])","v":0},{"$f":"SUMPRODUCT(((T_DataComboFile[Implementation programme]=$G$3)*(T_DataComboFile[DOR]=$B20))*T_DataComboFile[2023/24 Revised baseline])","v":0},null,{"$f":"IFERROR(I20/H20-1,0)","v":0},0,0,{"$f":"IFERROR(((K20/H20)^(1/3)-1),0)","v":0}]
[0,"PCG",null,null,null,null,"Provincial conditional grants",{"$f":"SUMPRODUCT(((T_DataComboFile[Implementation programme]=$G$3)*(T_DataComboFile[DOR]=$B21))*T_DataComboFile[2020/21 Revised])","v":0},{"$f":"SUMPRODUCT(((T_DataComboFile[Implementation programme]=$G$3)*(T_DataComboFile[DOR]=$B21))*T_DataComboFile[2021/22 Revised baseline])","v":0},{"$f":"SUMPRODUCT(((T_DataComboFile[Implementation programme]=$G$3)*(T_DataComboFile[DOR]=$B21))*T_DataComboFile[2022/23 Revised baseline])","v":0},{"$f":"SUMPRODUCT(((T_DataComboFile[Implementation programme]=$G$3)*(T_DataComboFile[DOR]=$B21))*T_DataComboFile[2023/24 Revised baseline])","v":0},null,0,0,0,0]
[0,null,null,null,null,null,"Local government",{"$f":"SUM(H23:H25)","v":0},0,0,0,null,{"$f":"IFERROR(I22/H22-1,0)","v":0},{"$f":"IFERROR(J22/I22-1,0)","v":0},{"$f":"IFERROR(K22/J22-1,0)","v":0},{"$f":"IFERROR(((K22/H22)^(1/3)-1),0)","v":0}]
[0,"LES",null,null,null,null,"Local equitable share",{"$f":"SUMPRODUCT(((T_DataComboFile[Implementation programme]=$G$3)*(T_DataComboFile[DOR]=$B23))*T_DataComboFile[2020/21 Revised])","v":0},{"$f":"SUMPRODUCT(((T_DataComboFile[Implementation programme]=$G$3)*(T_DataComboFile[DOR]=$B23))*T_DataComboFile[2021/22 Revised baseline])","v":0},{"$f":"SUMPRODUCT(((T_DataComboFile[Implementation programme]=$G$3)*(T_DataComboFile[DOR]=$B23))*T_DataComboFile[2022/23 Revised baseline])","v":0},{"$f":"SUMPRODUCT(((T_DataComboFile[Implementation programme]=$G$3)*(T_DataComboFile[DOR]=$B23))*T_DataComboFile[2023/24 Revised baseline])","v":0},null,{"$f":"IFERROR(I23/H23-1,0)","v":0},0,0,{"$f":"IFERROR(((K23/H23)^(1/3)-1),0)","v":0}]
[0,"LCG",null,null,null,null,"Local conditional grants",{"$f":"SUMPRODUCT(((T_DataComboFile[Implementation programme]=$G$3)*(T_DataComboFile[DOR]=$B24))*T_DataComboFile[2020/21 Revised])","v":0},{"$f":"SUMPRODUCT(((T_DataComboFile[Implementation programme]=$G$3)*(T_DataComboFile[DOR]=$B24))*T_DataComboFile[2021/22 Revised baseline])","v":0},{"$f":"SUMPRODUCT(((T_DataComboFile[Implementation programme]=$G$3)*(T_DataComboFile[DOR]=$B24))*T_DataComboFile[2022/23 Revised baseline])","v":0},{"$f":"SUMPRODUCT(((T_DataComboFile[Implementation programme]=$G$3)*(T_DataComboFile[DOR]=$B24))*T_DataComboFile[2023/24 Revised baseline])","v":0},null,0,0,0,0]
[0,"GFL",null,null,null,null,"General fuel levy ",{"$f":"SUMPRODUCT(((T_DataComboFile[Implementation programme]=$G$3)*(T_DataComboFile[DOR]=$B25))*T_DataComboFile[2020/21 Revised])","v":0},{"$f":"SUMPRODUCT(((T_DataComboFile[Implementation programme]=$G$3)*(T_DataComboFile[DOR]=$B25))*T_DataComboFile[2021/22 Revised baseline])","v":0},{"$f":"SUMPRODUCT(((T_DataComboFile[Implementation programme]=$G$3)*(T_DataComboFile[DOR]=$B25))*T_DataComboFile[2022/23 Revised baseline])","v":0},{"$f":"SUMPRODUCT(((T_DataComboFile[Implementation programme]=$G$3)*(T_DataComboFile[DOR]=$B25))*T_DataComboFile[2023/24 Revised baseline])","v":0},null,0,0,0,0]
[]
[]
[null,null,null,null,null,null,{"$f":"G3","v":0}]
[{"$f":"$G$3","v":0},0,null,null,null,null,null,"2017/18","2018/19","2019/20","2020/21","2021/22",null,null,null,"2022/23",null,null,null,"2023/24"]
[{"$f":"$G$3","v":0},0,null,null,null,null,"Rand thousand","Audited outcome","Audited outcome","Pre-audited outcome","Budget","Baseline","Decrease","Increase","Revised baseline","Baseline","Decrease","Increase","Revised baseline","Baseline","Decrease","Increase","Revised baseline"]
[0,0,null,null,null,null,"Economic classification"]
[0,0,null,null,null,null,"Current payments",{"$f":"SUM(H33:H35)","v":0},0,0,0,0,0,0,0,0,0,0,0,0,0,0,0]
[0,0,null,null,null,null,"Compensation of employees",{"$f":"SUMPRODUCT(((T_DataComboFile[Implementation programme]=$G$3)*(T_DataComboFile[Econ3]=$G33))*T_DataComboFile[2017/18]*$B$3)","v":0},{"$f":"SUMPRODUCT(((T_DataComboFile[Implementation programme]=$G$3)*(T_DataComboFile[Econ3]=$G33))*T_DataComboFile[2018/19]*$B$3)","v":0},{"$f":"SUMPRODUCT(((T_DataComboFile[Implementation programme]=$G$3)*(T_DataComboFile[Econ3]=$G33))*T_DataComboFile[2019/20 Revised estimate]*$B$3)","v":0},{"$f":"SUMPRODUCT(((T_DataComboFile[Implementation programme]=$G$3)*(T_DataComboFile[Econ3]=$G33))*T_DataComboFile[2020/21 Revised]*$B$3)","v":0},{"$f":"SUMPRODUCT(((T_DataComboFile[Implementation programme]=$G$3)*(T_DataComboFile[Econ3]=$G33))*T_DataComboFile[2021/22 Baseline]*$B$3)","v":0},{"$f":"SUMPRODUCT(((T_DataComboFile[Implementation programme]=$G$3)*(T_DataComboFile[Econ3]=$G33))*T_DataComboFile[2021/22 Reduction]*$B$3)","v":0},{"$f":"SUMPRODUCT(((T_DataComboFile[Implementation programme]=$G$3)*(T_DataComboFile[Econ3]=$G33))*T_DataComboFile[2021/22 Increase]*$B$3)","v":0},{"$f":"L33+M33+N33","v":0},{"$f":"SUMPRODUCT(((T_DataComboFile[Implementation programme]=$G$3)*(T_DataComboFile[Econ3]=$G33))*T_DataComboFile[2022/23 Baseline]*$B$3)","v":0},{"$f":"SUMPRODUCT(((T_DataComboFile[Implementation programme]=$G$3)*(T_DataComboFile[Econ3]=$G33))*T_DataComboFile[2022/23 Reduction]*$B$3)","v":0},{"$f":"SUMPRODUCT(((T_DataComboFile[Implementation programme]=$G$3)*(T_DataComboFile[Econ3]=$G33))*T_DataComboFile[2022/23 Increase]*$B$3)","v":0},{"$f":"P33+Q33+R33","v":0},{"$f":"SUMPRODUCT(((T_DataComboFile[Implementation programme]=$G$3)*(T_DataComboFile[Econ3]=$G33))*T_DataComboFile[2023/24 Baseline]*$B$3)","v":0},{"$f":"SUMPRODUCT(((T_DataComboFile[Implementation programme]=$G$3)*(T_DataComboFile[Econ3]=$G33))*T_DataComboFile[2023/24 Reduction]*$B$3)","v":0},{"$f":"SUMPRODUCT(((T_DataComboFile[Implementation programme]=$G$3)*(T_DataComboFile[Econ3]=$G33))*T_DataComboFile[2023/24 Increase]*$B$3)","v":0},{"$f":"T33+U33+V33","v":0}]
[0,0,null,null,null,null,"Goods and services",{"$f":"SUMPRODUCT(((T_DataComboFile[Implementation programme]=$G$3)*(T_DataComboFile[Econ3]=$G34))*T_DataComboFile[2017/18]*$B$3)","v":0},{"$f":"SUMPRODUCT(((T_DataComboFile[Implementation programme]=$G$3)*(T_DataComboFile[Econ3]=$G34))*T_DataComboFile[2018/19]*$B$3)","v":0},{"$f":"SUMPRODUCT(((T_DataComboFile[Implementation programme]=$G$3)*(T_DataComboFile[Econ3]=$G34))*T_DataComboFile[2019/20 Revised estimate]*$B$3)","v":0},{"$f":"SUMPRODUCT(((T_DataComboFile[Implementation programme]=$G$3)*(T_DataComboFile[Econ3]=$G34))*T_DataComboFile[2020/21 Revised]*$B$3)","v":0},{"$f":"SUMPRODUCT(((T_DataComboFile[Implementation programme]=$G$3)*(T_DataComboFile[Econ3]=$G34))*T_DataComboFile[2021/22 Baseline]*$B$3)","v":0},{"$f":"SUMPRODUCT(((T_DataComboFile[Implementation programme]=$G$3)*(T_DataComboFile[Econ3]=$G34))*T_DataComboFile[2021/22 Reduction]*$B$3)","v":0},{"$f":"SUMPRODUCT(((T_DataComboFile[Implementation programme]=$G$3)*(T_DataComboFile[Econ3]=$G34))*T_DataComboFile[2021/22 Increase]*$B$3)","v":0},0,{"$f":"SUMPRODUCT(((T_DataComboFile[Implementation programme]=$G$3)*(T_DataComboFile[Econ3]=$G34))*T_DataComboFile[2022/23 Baseline]*$B$3)","v":0},{"$f":"SUMPRODUCT(((T_DataComboFile[Implementation programme]=$G$3)*(T_DataComboFile[Econ3]=$G34))*T_DataComboFile[2022/23 Reduction]*$B$3)","v":0},{"$f":"SUMPRODUCT(((T_DataComboFile[Implementation programme]=$G$3)*(T_DataComboFile[Econ3]=$G34))*T_DataComboFile[2022/23 Increase]*$B$3)","v":0},0,{"$f":"SUMPRODUCT(((T_DataComboFile[Implementation programme]=$G$3)*(T_DataComboFile[Econ3]=$G34))*T_DataComboFile[2023/24 Baseline]*$B$3)","v":0},{"$f":"SUMPRODUCT(((T_DataComboFile[Implementation programme]=$G$3)*(T_DataComboFile[Econ3]=$G34))*T_DataComboFile[2023/24 Reduction]*$B$3)","v":0},{"$f":"SUMPRODUCT(((T_DataComboFile[Implementation programme]=$G$3)*(T_DataComboFile[Econ3]=$G34))*T_DataComboFile[2023/24 Increase]*$B$3)","v":0},0]
[0,0,null,null,null,null,"Interest and rent on land",{"$f":"SUMPRODUCT(((T_DataComboFile[Implementation programme]=$G$3)*(T_DataComboFile[Econ3]=$G35))*T_DataComboFile[2017/18]*$B$3)","v":0},{"$f":"SUMPRODUCT(((T_DataComboFile[Implementation programme]=$G$3)*(T_DataComboFile[Econ3]=$G35))*T_DataComboFile[2018/19]*$B$3)","v":0},{"$f":"SUMPRODUCT(((T_DataComboFile[Implementation programme]=$G$3)*(T_DataComboFile[Econ3]=$G35))*T_DataComboFile[2019/20 Revised estimate]*$B$3)","v":0},{"$f":"SUMPRODUCT(((T_DataComboFile[Implementation programme]=$G$3)*(T_DataComboFile[Econ3]=$G35))*T_DataComboFile[2020/21 Revised]*$B$3)","v":0},{"$f":"SUMPRODUCT(((T_DataComboFile[Implementation programme]=$G$3)*(T_DataComboFile[Econ3]=$G35))*T_DataComboFile[2021/22 Baseline]*$B$3)","v":0},{"$f":"SUMPRODUCT(((T_DataComboFile[Implementation programme]=$G$3)*(T_DataComboFile[Econ3]=$G35))*T_DataComboFile[2021/22 Reduction]*$B$3)","v":0},{"$f":"SUMPRODUCT(((T_DataComboFile[Implementation programme]=$G$3)*(T_DataComboFile[Econ3]=$G35))*T_DataComboFile[2021/22 Increase]*$B$3)","v":0},0,{"$f":"SUMPRODUCT(((T_DataComboFile[Implementation programme]=$G$3)*(T_DataComboFile[Econ3]=$G35))*T_DataComboFile[2022/23 Baseline]*$B$3)","v":0},{"$f":"SUMPRODUCT(((T_DataComboFile[Implementation programme]=$G$3)*(T_DataComboFile[Econ3]=$G35))*T_DataComboFile[2022/23 Reduction]*$B$3)","v":0},{"$f":"SUMPRODUCT(((T_DataComboFile[Implementation programme]=$G$3)*(T_DataComboFile[Econ3]=$G35))*T_DataComboFile[2022/23 Increase]*$B$3)","v":0},0,{"$f":"SUMPRODUCT(((T_DataComboFile[Implementation programme]=$G$3)*(T_DataComboFile[Econ3]=$G35))*T_DataComboFile[2023/24 Baseline]*$B$3)","v":0},{"$f":"SUMPRODUCT(((T_DataComboFile[Implementation programme]=$G$3)*(T_DataComboFile[Econ3]=$G35))*T_DataComboFile[2023/24 Reduction]*$B$3)","v":0},{"$f":"SUMPRODUCT(((T_DataComboFile[Implementation programme]=$G$3)*(T_DataComboFile[Econ3]=$G35))*T_DataComboFile[2023/24 Increase]*$B$3)","v":0},0]
[0,0,null,null,null,null,"Transfers and subsidies",{"$f":"SUM(H37,H40,H43:H45,H48:H49)","v":0},0,0,0,0,0,0,0,0,0,0,0,0,0,0,0]
[0,0,null,null,null,null,"Provinces and municipalities",{"$f":"SUM(H38:H39)","v":0},0,0,0,0,0,0,0,0,0,0,0,0,0,0,0]
[0,0,null,null,null,null,"Provinces",{"$f":"SUMPRODUCT(((T_DataComboFile[Implementation programme]=$G$3)*(T_DataComboFile[Econ4]=$G38))*T_DataComboFile[2017/18]*$B$3)","v":0},{"$f":"SUMPRODUCT(((T_DataComboFile[Implementation programme]=$G$3)*(T_DataComboFile[Econ4]=$G38))*T_DataComboFile[2018/19]*$B$3)","v":0},{"$f":"SUMPRODUCT(((T_DataComboFile[Implementation programme]=$G$3)*(T_DataComboFile[Econ4]=$G38))*T_DataComboFile[2019/20 Revised estimate]*$B$3)","v":0},{"$f":"SUMPRODUCT(((T_DataComboFile[Implementation programme]=$G$3)*(T_DataComboFile[Econ4]=$G38))*T_DataComboFile[2020/21 Revised]*$B$3)","v":0},{"$f":"SUMPRODUCT(((T_DataComboFile[Implementation programme]=$G$3)*(T_DataComboFile[Econ4]=$G38))*T_DataComboFile[2021/22 Baseline]*$B$3)","v":0},{"$f":"SUMPRODUCT(((T_DataComboFile[Implementation programme]=$G$3)*(T_DataComboFile[Econ4]=$G38))*T_DataComboFile[2021/22 Reduction]*$B$3)","v":0},{"$f":"SUMPRODUCT(((T_DataComboFile[Implementation programme]=$G$3)*(T_DataComboFile[Econ4]=$G38))*T_DataComboFile[2021/22 Increase]*$B$3)","v":0},{"$f":"L38+M38+N38","v":0},{"$f":"SUMPRODUCT(((T_DataComboFile[Implementation programme]=$G$3)*(T_DataComboFile[Econ4]=$G38))*T_DataComboFile[2022/23 Baseline]*$B$3)","v":0},{"$f":"SUMPRODUCT(((T_DataComboFile[Implementation programme]=$G$3)*(T_DataComboFile[Econ4]=$G38))*T_DataComboFile[2022/23 Reduction]*$B$3)","v":0},{"$f":"SUMPRODUCT(((T_DataComboFile[Implementation programme]=$G$3)*(T_DataComboFile[Econ4]=$G38))*T_DataComboFile[2022/23 Increase]*$B$3)","v":0},{"$f":"P38+Q38+R38","v":0},{"$f":"SUMPRODUCT(((T_DataComboFile[Implementation programme]=$G$3)*(T_DataComboFile[Econ4]=$G38))*T_DataComboFile[2023/24 Baseline]*$B$3)","v":0},{"$f":"SUMPRODUCT(((T_DataComboFile[Implementation programme]=$G$3)*(T_DataComboFile[Econ4]=$G38))*T_DataComboFile[2023/24 Reduction]*$B$3)","v":0},{"$f":"SUMPRODUCT(((T_DataComboFile[Implementation programme]=$G$3)*(T_DataComboFile[Econ4]=$G38))*T_DataComboFile[2023/24 Increase]*$B$3)","v":0},{"$f":"T38+U38+V38","v":0}]
[0,0,null,null,null,null,"Municipalities",{"$f":"SUMPRODUCT(((T_DataComboFile[Implementation programme]=$G$3)*(T_DataComboFile[Econ4]=$G39))*T_DataComboFile[2017/18]*$B$3)","v":0},{"$f":"SUMPRODUCT(((T_DataComboFile[Implementation programme]=$G$3)*(T_DataComboFile[Econ4]=$G39))*T_DataComboFile[2018/19]*$B$3)","v":0},{"$f":"SUMPRODUCT(((T_DataComboFile[Implementation programme]=$G$3)*(T_DataComboFile[Econ4]=$G39))*T_DataComboFile[2019/20 Revised estimate]*$B$3)","v":0},{"$f":"SUMPRODUCT(((T_DataComboFile[Implementation programme]=$G$3)*(T_DataComboFile[Econ4]=$G39))*T_DataComboFile[2020/21 Revised]*$B$3)","v":0},{"$f":"SUMPRODUCT(((T_DataComboFile[Implementation programme]=$G$3)*(T_DataComboFile[Econ4]=$G39))*T_DataComboFile[2021/22 Baseline]*$B$3)","v":0},{"$f":"SUMPRODUCT(((T_DataComboFile[Implementation programme]=$G$3)*(T_DataComboFile[Econ4]=$G39))*T_DataComboFile[2021/22 Reduction]*$B$3)","v":0},{"$f":"SUMPRODUCT(((T_DataComboFile[Implementation programme]=$G$3)*(T_DataComboFile[Econ4]=$G39))*T_DataComboFile[2021/22 Increase]*$B$3)","v":0},0,{"$f":"SUMPRODUCT(((T_DataComboFile[Implementation programme]=$G$3)*(T_DataComboFile[Econ4]=$G39))*T_DataComboFile[2022/23 Baseline]*$B$3)","v":0},{"$f":"SUMPRODUCT(((T_DataComboFile[Implementation programme]=$G$3)*(T_DataComboFile[Econ4]=$G39))*T_DataComboFile[2022/23 Reduction]*$B$3)","v":0},{"$f":"SUMPRODUCT(((T_DataComboFile[Implementation programme]=$G$3)*(T_DataComboFile[Econ4]=$G39))*T_DataComboFile[2022/23 Increase]*$B$3)","v":0},0,{"$f":"SUMPRODUCT(((T_DataComboFile[Implementation programme]=$G$3)*(T_DataComboFile[Econ4]=$G39))*T_DataComboFile[2023/24 Baseline]*$B$3)","v":0},{"$f":"SUMPRODUCT(((T_DataComboFile[Implementation programme]=$G$3)*(T_DataComboFile[Econ4]=$G39))*T_DataComboFile[2023/24 Reduction]*$B$3)","v":0},{"$f":"SUMPRODUCT(((T_DataComboFile[Implementation programme]=$G$3)*(T_DataComboFile[Econ4]=$G39))*T_DataComboFile[2023/24 Increase]*$B$3)","v":0},0]
[0,0,null,null,null,null,"Departmental agencies and accounts",{"$f":"SUM(H41:H42)","v":0},0,0,0,0,0,0,0,0,0,0,0,0,0,0,0]
[0,0,null,null,null,null,"Social security funds",{"$f":"SUMPRODUCT(((T_DataComboFile[Implementation programme]=$G$3)*(T_DataComboFile[Econ4]=$G41))*T_DataComboFile[2017/18]*$B$3)","v":0},{"$f":"SUMPRODUCT(((T_DataComboFile[Implementation programme]=$G$3)*(T_DataComboFile[Econ4]=$G41))*T_DataComboFile[2018/19]*$B$3)","v":0},{"$f":"SUMPRODUCT(((T_DataComboFile[Implementation programme]=$G$3)*(T_DataComboFile[Econ4]=$G41))*T_DataComboFile[2019/20 Revised estimate]*$B$3)","v":0},{"$f":"SUMPRODUCT(((T_DataComboFile[Implementation programme]=$G$3)*(T_DataComboFile[Econ4]=$G41))*T_DataComboFile[2020/21 Revised]*$B$3)","v":0},{"$f":"SUMPRODUCT(((T_DataComboFile[Implementation programme]=$G$3)*(T_DataComboFile[Econ4]=$G41))*T_DataComboFile[2021/22 Baseline]*$B$3)","v":0},{"$f":"SUMPRODUCT(((T_DataComboFile[Implementation programme]=$G$3)*(T_DataComboFile[Econ4]=$G41))*T_DataComboFile[2021/22 Reduction]*$B$3)","v":0},{"$f":"SUMPRODUCT(((T_DataComboFile[Implementation programme]=$G$3)*(T_DataComboFile[Econ4]=$G41))*T_DataComboFile[2021/22 Increase]*$B$3)","v":0},{"$f":"L41+M41+N41","v":0},{"$f":"SUMPRODUCT(((T_DataComboFile[Implementation programme]=$G$3)*(T_DataComboFile[Econ4]=$G41))*T_DataComboFile[2022/23 Baseline]*$B$3)","v":0},{"$f":"SUMPRODUCT(((T_DataComboFile[Implementation programme]=$G$3)*(T_DataComboFile[Econ4]=$G41))*T_DataComboFile[2022/23 Reduction]*$B$3)","v":0},{"$f":"SUMPRODUCT(((T_DataComboFile[Implementation programme]=$G$3)*(T_DataComboFile[Econ4]=$G41))*T_DataComboFile[2022/23 Increase]*$B$3)","v":0},{"$f":"P41+Q41+R41","v":0},{"$f":"SUMPRODUCT(((T_DataComboFile[Implementation programme]=$G$3)*(T_DataComboFile[Econ4]=$G41))*T_DataComboFile[2023/24 Baseline]*$B$3)","v":0},{"$f":"SUMPRODUCT(((T_DataComboFile[Implementation programme]=$G$3)*(T_DataComboFile[Econ4]=$G41))*T_DataComboFile[2023/24 Reduction]*$B$3)","v":0},{"$f":"SUMPRODUCT(((T_DataComboFile[Implementation programme]=$G$3)*(T_DataComboFile[Econ4]=$G41))*T_DataComboFile[2023/24 Increase]*$B$3)","v":0},{"$f":"T41+U41+V41","v":0}]
[0,0,null,null,null,null,"Departmental agencies (non-business entities)",{"$f":"SUMPRODUCT(((T_DataComboFile[Implementation programme]=$G$3)*(T_DataComboFile[Econ4]=$G42))*T_DataComboFile[2017/18]*$B$3)","v":0},{"$f":"SUMPRODUCT(((T_DataComboFile[Implementation programme]=$G$3)*(T_DataComboFile[Econ4]=$G42))*T_DataComboFile[2018/19]*$B$3)","v":0},{"$f":"SUMPRODUCT(((T_DataComboFile[Implementation programme]=$G$3)*(T_DataComboFile[Econ4]=$G42))*T_DataComboFile[2019/20 Revised estimate]*$B$3)","v":0},{"$f":"SUMPRODUCT(((T_DataComboFile[Implementation programme]=$G$3)*(T_DataComboFile[Econ4]=$G42))*T_DataComboFile[2020/21 Revised]*$B$3)","v":0},{"$f":"SUMPRODUCT(((T_DataComboFile[Implementation programme]=$G$3)*(T_DataComboFile[Econ4]=$G42))*T_DataComboFile[2021/22 Baseline]*$B$3)","v":0},{"$f":"SUMPRODUCT(((T_DataComboFile[Implementation programme]=$G$3)*(T_DataComboFile[Econ4]=$G42))*T_DataComboFile[2021/22 Reduction]*$B$3)","v":0},{"$f":"SUMPRODUCT(((T_DataComboFile[Implementation programme]=$G$3)*(T_DataComboFile[Econ4]=$G42))*T_DataComboFile[2021/22 Increase]*$B$3)","v":0},0,{"$f":"SUMPRODUCT(((T_DataComboFile[Implementation programme]=$G$3)*(T_DataComboFile[Econ4]=$G42))*T_DataComboFile[2022/23 Baseline]*$B$3)","v":0},{"$f":"SUMPRODUCT(((T_DataComboFile[Implementation programme]=$G$3)*(T_DataComboFile[Econ4]=$G42))*T_DataComboFile[2022/23 Reduction]*$B$3)","v":0},{"$f":"SUMPRODUCT(((T_DataComboFile[Implementation programme]=$G$3)*(T_DataComboFile[Econ4]=$G42))*T_DataComboFile[2022/23 Increase]*$B$3)","v":0},0,{"$f":"SUMPRODUCT(((T_DataComboFile[Implementation programme]=$G$3)*(T_DataComboFile[Econ4]=$G42))*T_DataComboFile[2023/24 Baseline]*$B$3)","v":0},{"$f":"SUMPRODUCT(((T_DataComboFile[Implementation programme]=$G$3)*(T_DataComboFile[Econ4]=$G42))*T_DataComboFile[2023/24 Reduction]*$B$3)","v":0},{"$f":"SUMPRODUCT(((T_DataComboFile[Implementation programme]=$G$3)*(T_DataComboFile[Econ4]=$G42))*T_DataComboFile[2023/24 Increase]*$B$3)","v":0},0]
[0,0,null,null,null,null,"Higher education institutions",{"$f":"SUMPRODUCT(((T_DataComboFile[Implementation programme]=$G$3)*(T_DataComboFile[Econ3]=$G43))*T_DataComboFile[2017/18]*$B$3)","v":0},{"$f":"SUMPRODUCT(((T_DataComboFile[Implementation programme]=$G$3)*(T_DataComboFile[Econ3]=$G43))*T_DataComboFile[2018/19]*$B$3)","v":0},{"$f":"SUMPRODUCT(((T_DataComboFile[Implementation programme]=$G$3)*(T_DataComboFile[Econ3]=$G43))*T_DataComboFile[2019/20 Revised estimate]*$B$3)","v":0},{"$f":"SUMPRODUCT(((T_DataComboFile[Implementation programme]=$G$3)*(T_DataComboFile[Econ3]=$G43))*T_DataComboFile[2020/21 Revised]*$B$3)","v":0},{"$f":"SUMPRODUCT(((T_DataComboFile[Implementation programme]=$G$3)*(T_DataComboFile[Econ3]=$G43))*T_DataComboFile[2021/22 Baseline]*$B$3)","v":0},{"$f":"SUMPRODUCT(((T_DataComboFile[Implementation programme]=$G$3)*(T_DataComboFile[Econ3]=$G43))*T_DataComboFile[2021/22 Reduction]*$B$3)","v":0},{"$f":"SUMPRODUCT(((T_DataComboFile[Implementation programme]=$G$3)*(T_DataComboFile[Econ3]=$G43))*T_DataComboFile[2021/22 Increase]*$B$3)","v":0},0,{"$f":"SUMPRODUCT(((T_DataComboFile[Implementation programme]=$G$3)*(T_DataComboFile[Econ3]=$G43))*T_DataComboFile[2022/23 Baseline]*$B$3)","v":0},{"$f":"SUMPRODUCT(((T_DataComboFile[Implementation programme]=$G$3)*(T_DataComboFile[Econ3]=$G43))*T_DataComboFile[2022/23 Reduction]*$B$3)","v":0},{"$f":"SUMPRODUCT(((T_DataComboFile[Implementation programme]=$G$3)*(T_DataComboFile[Econ3]=$G43))*T_DataComboFile[2022/23 Increase]*$B$3)","v":0},0,{"$f":"SUMPRODUCT(((T_DataComboFile[Implementation programme]=$G$3)*(T_DataComboFile[Econ3]=$G43))*T_DataComboFile[2023/24 Baseline]*$B$3)","v":0},{"$f":"SUMPRODUCT(((T_DataComboFile[Implementation programme]=$G$3)*(T_DataComboFile[Econ3]=$G43))*T_DataComboFile[2023/24 Reduction]*$B$3)","v":0},{"$f":"SUMPRODUCT(((T_DataComboFile[Implementation programme]=$G$3)*(T_DataComboFile[Econ3]=$G43))*T_DataComboFile[2023/24 Increase]*$B$3)","v":0},0]
[0,0,null,null,null,null,"Foreign governments and international organisations",{"$f":"SUMPRODUCT(((T_DataComboFile[Implementation programme]=$G$3)*(T_DataComboFile[Econ3]=$G44))*T_DataComboFile[2017/18]*$B$3)","v":0},{"$f":"SUMPRODUCT(((T_DataComboFile[Implementation programme]=$G$3)*(T_DataComboFile[Econ3]=$G44))*T_DataComboFile[2018/19]*$B$3)","v":0},{"$f":"SUMPRODUCT(((T_DataComboFile[Implementation programme]=$G$3)*(T_DataComboFile[Econ3]=$G44))*T_DataComboFile[2019/20 Revised estimate]*$B$3)","v":0},{"$f":"SUMPRODUCT(((T_DataComboFile[Implementation programme]=$G$3)*(T_DataComboFile[Econ3]=$G44))*T_DataComboFile[2020/21 Revised]*$B$3)","v":0},{"$f":"SUMPRODUCT(((T_DataComboFile[Implementation programme]=$G$3)*(T_DataComboFile[Econ3]=$G44))*T_DataComboFile[2021/22 Baseline]*$B$3)","v":0},{"$f":"SUMPRODUCT(((T_DataComboFile[Implementation programme]=$G$3)*(T_DataComboFile[Econ3]=$G44))*T_DataComboFile[2021/22 Reduction]*$B$3)","v":0},{"$f":"SUMPRODUCT(((T_DataComboFile[Implementation programme]=$G$3)*(T_DataComboFile[Econ3]=$G44))*T_DataComboFile[2021/22 Increase]*$B$3)","v":0},0,{"$f":"SUMPRODUCT(((T_DataComboFile[Implementation programme]=$G$3)*(T_DataComboFile[Econ3]=$G44))*T_DataComboFile[2022/23 Baseline]*$B$3)","v":0},{"$f":"SUMPRODUCT(((T_DataComboFile[Implementation programme]=$G$3)*(T_DataComboFile[Econ3]=$G44))*T_DataComboFile[2022/23 Reduction]*$B$3)","v":0},{"$f":"SUMPRODUCT(((T_DataComboFile[Implementation programme]=$G$3)*(T_DataComboFile[Econ3]=$G44))*T_DataComboFile[2022/23 Increase]*$B$3)","v":0},0,{"$f":"SUMPRODUCT(((T_DataComboFile[Implementation programme]=$G$3)*(T_DataComboFile[Econ3]=$G44))*T_DataComboFile[2023/24 Baseline]*$B$3)","v":0},{"$f":"SUMPRODUCT(((T_DataComboFile[Implementation programme]=$G$3)*(T_DataComboFile[Econ3]=$G44))*T_DataComboFile[2023/24 Reduction]*$B$3)","v":0},{"$f":"SUMPRODUCT(((T_DataComboFile[Implementation programme]=$G$3)*(T_DataComboFile[Econ3]=$G44))*T_DataComboFile[2023/24 Increase]*$B$3)","v":0},0]
[0,0,null,null,null,null,"Public corporations and private enterprises",{"$f":"SUM(H46:H47)","v":0},0,0,0,0,0,0,0,0,0,0,0,0,0,0,0]
[0,0,null,null,null,null,"Public corporations",{"$f":"SUMPRODUCT(((T_DataComboFile[Implementation programme]=$G$3)*(T_DataComboFile[Econ4]=$G46))*T_DataComboFile[2017/18]*$B$3)","v":0},{"$f":"SUMPRODUCT(((T_DataComboFile[Implementation programme]=$G$3)*(T_DataComboFile[Econ4]=$G46))*T_DataComboFile[2018/19]*$B$3)","v":0},{"$f":"SUMPRODUCT(((T_DataComboFile[Implementation programme]=$G$3)*(T_DataComboFile[Econ4]=$G46))*T_DataComboFile[2019/20 Revised estimate]*$B$3)","v":0},{"$f":"SUMPRODUCT(((T_DataComboFile[Implementation programme]=$G$3)*(T_DataComboFile[Econ4]=$G46))*T_DataComboFile[2020/21 Revised]*$B$3)","v":0},{"$f":"SUMPRODUCT(((T_DataComboFile[Implementation programme]=$G$3)*(T_DataComboFile[Econ4]=$G46))*T_DataComboFile[2021/22 Baseline]*$B$3)","v":0},{"$f":"SUMPRODUCT(((T_DataComboFile[Implementation programme]=$G$3)*(T_DataComboFile[Econ4]=$G46))*T_DataComboFile[2021/22 Reduction]*$B$3)","v":0},{"$f":"SUMPRODUCT(((T_DataComboFile[Implementation programme]=$G$3)*(T_DataComboFile[Econ4]=$G46))*T_DataComboFile[2021/22 Increase]*$B$3)","v":0},{"$f":"L46+M46+N46","v":0},{"$f":"SUMPRODUCT(((T_DataComboFile[Implementation programme]=$G$3)*(T_DataComboFile[Econ4]=$G46))*T_DataComboFile[2022/23 Baseline]*$B$3)","v":0},{"$f":"SUMPRODUCT(((T_DataComboFile[Implementation programme]=$G$3)*(T_DataComboFile[Econ4]=$G46))*T_DataComboFile[2022/23 Reduction]*$B$3)","v":0},{"$f":"SUMPRODUCT(((T_DataComboFile[Implementation programme]=$G$3)*(T_DataComboFile[Econ4]=$G46))*T_DataComboFile[2022/23 Increase]*$B$3)","v":0},{"$f":"P46+Q46+R46","v":0},{"$f":"SUMPRODUCT(((T_DataComboFile[Implementation programme]=$G$3)*(T_DataComboFile[Econ4]=$G46))*T_DataComboFile[2023/24 Baseline]*$B$3)","v":0},{"$f":"SUMPRODUCT(((T_DataComboFile[Implementation programme]=$G$3)*(T_DataComboFile[Econ4]=$G46))*T_DataComboFile[2023/24 Reduction]*$B$3)","v":0},{"$f":"SUMPRODUCT(((T_DataComboFile[Implementation programme]=$G$3)*(T_DataComboFile[Econ4]=$G46))*T_DataComboFile[2023/24 Increase]*$B$3)","v":0},{"$f":"T46+U46+V46","v":0}]
[0,0,null,null,null,null,"Private enterprises",{"$f":"SUMPRODUCT(((T_DataComboFile[Implementation programme]=$G$3)*(T_DataComboFile[Econ4]=$G47))*T_DataComboFile[2017/18]*$B$3)","v":0},{"$f":"SUMPRODUCT(((T_DataComboFile[Implementation programme]=$G$3)*(T_DataComboFile[Econ4]=$G47))*T_DataComboFile[2018/19]*$B$3)","v":0},{"$f":"SUMPRODUCT(((T_DataComboFile[Implementation programme]=$G$3)*(T_DataComboFile[Econ4]=$G47))*T_DataComboFile[2019/20 Revised estimate]*$B$3)","v":0},{"$f":"SUMPRODUCT(((T_DataComboFile[Implementation programme]=$G$3)*(T_DataComboFile[Econ4]=$G47))*T_DataComboFile[2020/21 Revised]*$B$3)","v":0},{"$f":"SUMPRODUCT(((T_DataComboFile[Implementation programme]=$G$3)*(T_DataComboFile[Econ4]=$G47))*T_DataComboFile[2021/22 Baseline]*$B$3)","v":0},{"$f":"SUMPRODUCT(((T_DataComboFile[Implementation programme]=$G$3)*(T_DataComboFile[Econ4]=$G47))*T_DataComboFile[2021/22 Reduction]*$B$3)","v":0},{"$f":"SUMPRODUCT(((T_DataComboFile[Implementation programme]=$G$3)*(T_DataComboFile[Econ4]=$G47))*T_DataComboFile[2021/22 Increase]*$B$3)","v":0},0,{"$f":"SUMPRODUCT(((T_DataComboFile[Implementation programme]=$G$3)*(T_DataComboFile[Econ4]=$G47))*T_DataComboFile[2022/23 Baseline]*$B$3)","v":0},{"$f":"SUMPRODUCT(((T_DataComboFile[Implementation programme]=$G$3)*(T_DataComboFile[Econ4]=$G47))*T_DataComboFile[2022/23 Reduction]*$B$3)","v":0},{"$f":"SUMPRODUCT(((T_DataComboFile[Implementation programme]=$G$3)*(T_DataComboFile[Econ4]=$G47))*T_DataComboFile[2022/23 Increase]*$B$3)","v":0},0,{"$f":"SUMPRODUCT(((T_DataComboFile[Implementation programme]=$G$3)*(T_DataComboFile[Econ4]=$G47))*T_DataComboFile[2023/24 Baseline]*$B$3)","v":0},{"$f":"SUMPRODUCT(((T_DataComboFile[Implementation programme]=$G$3)*(T_DataComboFile[Econ4]=$G47))*T_DataComboFile[2023/24 Reduction]*$B$3)","v":0},{"$f":"SUMPRODUCT(((T_DataComboFile[Implementation programme]=$G$3)*(T_DataComboFile[Econ4]=$G47))*T_DataComboFile[2023/24 Increase]*$B$3)","v":0},0]
[0,0,null,null,null,null,"Non-profit institutions",{"$f":"SUMPRODUCT(((T_DataComboFile[Implementation programme]=$G$3)*(T_DataComboFile[Econ3]=$G48))*T_DataComboFile[2017/18]*$B$3)","v":0},{"$f":"SUMPRODUCT(((T_DataComboFile[Implementation programme]=$G$3)*(T_DataComboFile[Econ3]=$G48))*T_DataComboFile[2018/19]*$B$3)","v":0},{"$f":"SUMPRODUCT(((T_DataComboFile[Implementation programme]=$G$3)*(T_DataComboFile[Econ3]=$G48))*T_DataComboFile[2019/20 Revised estimate]*$B$3)","v":0},{"$f":"SUMPRODUCT(((T_DataComboFile[Implementation programme]=$G$3)*(T_DataComboFile[Econ3]=$G48))*T_DataComboFile[2020/21 Revised]*$B$3)","v":0},{"$f":"SUMPRODUCT(((T_DataComboFile[Implementation programme]=$G$3)*(T_DataComboFile[Econ3]=$G48))*T_DataComboFile[2021/22 Baseline]*$B$3)","v":0},{"$f":"SUMPRODUCT(((T_DataComboFile[Implementation programme]=$G$3)*(T_DataComboFile[Econ3]=$G48))*T_DataComboFile[2021/22 Reduction]*$B$3)","v":0},{"$f":"SUMPRODUCT(((T_DataComboFile[Implementation programme]=$G$3)*(T_DataComboFile[Econ3]=$G48))*T_DataComboFile[2021/22 Increase]*$B$3)","v":0},0,{"$f":"SUMPRODUCT(((T_DataComboFile[Implementation programme]=$G$3)*(T_DataComboFile[Econ3]=$G48))*T_DataComboFile[2022/23 Baseline]*$B$3)","v":0},{"$f":"SUMPRODUCT(((T_DataComboFile[Implementation programme]=$G$3)*(T_DataComboFile[Econ3]=$G48))*T_DataComboFile[2022/23 Reduction]*$B$3)","v":0},{"$f":"SUMPRODUCT(((T_DataComboFile[Implementation programme]=$G$3)*(T_DataComboFile[Econ3]=$G48))*T_DataComboFile[2022/23 Increase]*$B$3)","v":0},0,{"$f":"SUMPRODUCT(((T_DataComboFile[Implementation programme]=$G$3)*(T_DataComboFile[Econ3]=$G48))*T_DataComboFile[2023/24 Baseline]*$B$3)","v":0},{"$f":"SUMPRODUCT(((T_DataComboFile[Implementation programme]=$G$3)*(T_DataComboFile[Econ3]=$G48))*T_DataComboFile[2023/24 Reduction]*$B$3)","v":0},{"$f":"SUMPRODUCT(((T_DataComboFile[Implementation programme]=$G$3)*(T_DataComboFile[Econ3]=$G48))*T_DataComboFile[2023/24 Increase]*$B$3)","v":0},0]
[0,0,null,null,null,null,"Households",{"$f":"SUM(H50:H51)","v":0},0,0,0,0,0,0,0,0,0,0,0,0,0,0,0]
[0,0,null,null,null,null,"Social benefits",{"$f":"SUMPRODUCT(((T_DataComboFile[Implementation programme]=$G$3)*(T_DataComboFile[Econ4]=$G50))*T_DataComboFile[2017/18]*$B$3)","v":0},{"$f":"SUMPRODUCT(((T_DataComboFile[Implementation programme]=$G$3)*(T_DataComboFile[Econ4]=$G50))*T_DataComboFile[2018/19]*$B$3)","v":0},{"$f":"SUMPRODUCT(((T_DataComboFile[Implementation programme]=$G$3)*(T_DataComboFile[Econ4]=$G50))*T_DataComboFile[2019/20 Revised estimate]*$B$3)","v":0},{"$f":"SUMPRODUCT(((T_DataComboFile[Implementation programme]=$G$3)*(T_DataComboFile[Econ4]=$G50))*T_DataComboFile[2020/21 Revised]*$B$3)","v":0},{"$f":"SUMPRODUCT(((T_DataComboFile[Implementation programme]=$G$3)*(T_DataComboFile[Econ4]=$G50))*T_DataComboFile[2021/22 Baseline]*$B$3)","v":0},{"$f":"SUMPRODUCT(((T_DataComboFile[Implementation programme]=$G$3)*(T_DataComboFile[Econ4]=$G50))*T_DataComboFile[2021/22 Reduction]*$B$3)","v":0},{"$f":"SUMPRODUCT(((T_DataComboFile[Implementation programme]=$G$3)*(T_DataComboFile[Econ4]=$G50))*T_DataComboFile[2021/22 Increase]*$B$3)","v":0},{"$f":"L50+M50+N50","v":0},{"$f":"SUMPRODUCT(((T_DataComboFile[Implementation programme]=$G$3)*(T_DataComboFile[Econ4]=$G50))*T_DataComboFile[2022/23 Baseline]*$B$3)","v":0},{"$f":"SUMPRODUCT(((T_DataComboFile[Implementation programme]=$G$3)*(T_DataComboFile[Econ4]=$G50))*T_DataComboFile[2022/23 Reduction]*$B$3)","v":0},{"$f":"SUMPRODUCT(((T_DataComboFile[Implementation programme]=$G$3)*(T_DataComboFile[Econ4]=$G50))*T_DataComboFile[2022/23 Increase]*$B$3)","v":0},{"$f":"P50+Q50+R50","v":0},{"$f":"SUMPRODUCT(((T_DataComboFile[Implementation programme]=$G$3)*(T_DataComboFile[Econ4]=$G50))*T_DataComboFile[2023/24 Baseline]*$B$3)","v":0},{"$f":"SUMPRODUCT(((T_DataComboFile[Implementation programme]=$G$3)*(T_DataComboFile[Econ4]=$G50))*T_DataComboFile[2023/24 Reduction]*$B$3)","v":0},{"$f":"SUMPRODUCT(((T_DataComboFile[Implementation programme]=$G$3)*(T_DataComboFile[Econ4]=$G50))*T_DataComboFile[2023/24 Increase]*$B$3)","v":0},{"$f":"T50+U50+V50","v":0}]
[0,0,null,null,null,null,"Other transfers to households",{"$f":"SUMPRODUCT(((T_DataComboFile[Implementation programme]=$G$3)*(T_DataComboFile[Econ4]=$G51))*T_DataComboFile[2017/18]*$B$3)","v":0},{"$f":"SUMPRODUCT(((T_DataComboFile[Implementation programme]=$G$3)*(T_DataComboFile[Econ4]=$G51))*T_DataComboFile[2018/19]*$B$3)","v":0},{"$f":"SUMPRODUCT(((T_DataComboFile[Implementation programme]=$G$3)*(T_DataComboFile[Econ4]=$G51))*T_DataComboFile[2019/20 Revised estimate]*$B$3)","v":0},{"$f":"SUMPRODUCT(((T_DataComboFile[Implementation programme]=$G$3)*(T_DataComboFile[Econ4]=$G51))*T_DataComboFile[2020/21 Revised]*$B$3)","v":0},{"$f":"SUMPRODUCT(((T_DataComboFile[Implementation programme]=$G$3)*(T_DataComboFile[Econ4]=$G51))*T_DataComboFile[2021/22 Baseline]*$B$3)","v":0},{"$f":"SUMPRODUCT(((T_DataComboFile[Implementation programme]=$G$3)*(T_DataComboFile[Econ4]=$G51))*T_DataComboFile[2021/22 Reduction]*$B$3)","v":0},{"$f":"SUMPRODUCT(((T_DataComboFile[Implementation programme]=$G$3)*(T_DataComboFile[Econ4]=$G51))*T_DataComboFile[2021/22 Increase]*$B$3)","v":0},0,{"$f":"SUMPRODUCT(((T_DataComboFile[Implementation programme]=$G$3)*(T_DataComboFile[Econ4]=$G51))*T_DataComboFile[2022/23 Baseline]*$B$3)","v":0},{"$f":"SUMPRODUCT(((T_DataComboFile[Implementation programme]=$G$3)*(T_DataComboFile[Econ4]=$G51))*T_DataComboFile[2022/23 Reduction]*$B$3)","v":0},{"$f":"SUMPRODUCT(((T_DataComboFile[Implementation programme]=$G$3)*(T_DataComboFile[Econ4]=$G51))*T_DataComboFile[2022/23 Increase]*$B$3)","v":0},0,{"$f":"SUMPRODUCT(((T_DataComboFile[Implementation programme]=$G$3)*(T_DataComboFile[Econ4]=$G51))*T_DataComboFile[2023/24 Baseline]*$B$3)","v":0},{"$f":"SUMPRODUCT(((T_DataComboFile[Implementation programme]=$G$3)*(T_DataComboFile[Econ4]=$G51))*T_DataComboFile[2023/24 Reduction]*$B$3)","v":0},{"$f":"SUMPRODUCT(((T_DataComboFile[Implementation programme]=$G$3)*(T_DataComboFile[Econ4]=$G51))*T_DataComboFile[2023/24 Increase]*$B$3)","v":0},0]
[0,0,null,null,null,null,"Payments for capital assets",{"$f":"SUM(H53,H56,H59:H63)","v":0},0,0,0,0,0,0,0,0,0,0,0,0,0,0,0]
[0,0,null,null,null,null,"Buildings and other fixed structures",{"$f":"SUM(H54:H55)","v":0},0,0,0,0,0,0,0,0,0,0,0,0,0,0,0]
[0,0,null,null,null,null,"Buildings",{"$f":"SUMPRODUCT(((T_DataComboFile[Implementation programme]=$G$3)*(T_DataComboFile[Econ4]=$G54))*T_DataComboFile[2017/18]*$B$3)","v":0},{"$f":"SUMPRODUCT(((T_DataComboFile[Implementation programme]=$G$3)*(T_DataComboFile[Econ4]=$G54))*T_DataComboFile[2018/19]*$B$3)","v":0},{"$f":"SUMPRODUCT(((T_DataComboFile[Implementation programme]=$G$3)*(T_DataComboFile[Econ4]=$G54))*T_DataComboFile[2019/20 Revised estimate]*$B$3)","v":0},{"$f":"SUMPRODUCT(((T_DataComboFile[Implementation programme]=$G$3)*(T_DataComboFile[Econ4]=$G54))*T_DataComboFile[2020/21 Revised]*$B$3)","v":0},{"$f":"SUMPRODUCT(((T_DataComboFile[Implementation programme]=$G$3)*(T_DataComboFile[Econ4]=$G54))*T_DataComboFile[2021/22 Baseline]*$B$3)","v":0},{"$f":"SUMPRODUCT(((T_DataComboFile[Implementation programme]=$G$3)*(T_DataComboFile[Econ4]=$G54))*T_DataComboFile[2021/22 Reduction]*$B$3)","v":0},{"$f":"SUMPRODUCT(((T_DataComboFile[Implementation programme]=$G$3)*(T_DataComboFile[Econ4]=$G54))*T_DataComboFile[2021/22 Increase]*$B$3)","v":0},{"$f":"L54+M54+N54","v":0},{"$f":"SUMPRODUCT(((T_DataComboFile[Implementation programme]=$G$3)*(T_DataComboFile[Econ4]=$G54))*T_DataComboFile[2022/23 Baseline]*$B$3)","v":0},{"$f":"SUMPRODUCT(((T_DataComboFile[Implementation programme]=$G$3)*(T_DataComboFile[Econ4]=$G54))*T_DataComboFile[2022/23 Reduction]*$B$3)","v":0},{"$f":"SUMPRODUCT(((T_DataComboFile[Implementation programme]=$G$3)*(T_DataComboFile[Econ4]=$G54))*T_DataComboFile[2022/23 Increase]*$B$3)","v":0},{"$f":"P54+Q54+R54","v":0},{"$f":"SUMPRODUCT(((T_DataComboFile[Implementation programme]=$G$3)*(T_DataComboFile[Econ4]=$G54))*T_DataComboFile[2023/24 Baseline]*$B$3)","v":0},{"$f":"SUMPRODUCT(((T_DataComboFile[Implementation programme]=$G$3)*(T_DataComboFile[Econ4]=$G54))*T_DataComboFile[2023/24 Reduction]*$B$3)","v":0},{"$f":"SUMPRODUCT(((T_DataComboFile[Implementation programme]=$G$3)*(T_DataComboFile[Econ4]=$G54))*T_DataComboFile[2023/24 Increase]*$B$3)","v":0},{"$f":"T54+U54+V54","v":0}]
[0,0,null,null,null,null,"Other fixed structures",{"$f":"SUMPRODUCT(((T_DataComboFile[Implementation programme]=$G$3)*(T_DataComboFile[Econ4]=$G55))*T_DataComboFile[2017/18]*$B$3)","v":0},{"$f":"SUMPRODUCT(((T_DataComboFile[Implementation programme]=$G$3)*(T_DataComboFile[Econ4]=$G55))*T_DataComboFile[2018/19]*$B$3)","v":0},{"$f":"SUMPRODUCT(((T_DataComboFile[Implementation programme]=$G$3)*(T_DataComboFile[Econ4]=$G55))*T_DataComboFile[2019/20 Revised estimate]*$B$3)","v":0},{"$f":"SUMPRODUCT(((T_DataComboFile[Implementation programme]=$G$3)*(T_DataComboFile[Econ4]=$G55))*T_DataComboFile[2020/21 Revised]*$B$3)","v":0},{"$f":"SUMPRODUCT(((T_DataComboFile[Implementation programme]=$G$3)*(T_DataComboFile[Econ4]=$G55))*T_DataComboFile[2021/22 Baseline]*$B$3)","v":0},{"$f":"SUMPRODUCT(((T_DataComboFile[Implementation programme]=$G$3)*(T_DataComboFile[Econ4]=$G55))*T_DataComboFile[2021/22 Reduction]*$B$3)","v":0},{"$f":"SUMPRODUCT(((T_DataComboFile[Implementation programme]=$G$3)*(T_DataComboFile[Econ4]=$G55))*T_DataComboFile[2021/22 Increase]*$B$3)","v":0},0,{"$f":"SUMPRODUCT(((T_DataComboFile[Implementation programme]=$G$3)*(T_DataComboFile[Econ4]=$G55))*T_DataComboFile[2022/23 Baseline]*$B$3)","v":0},{"$f":"SUMPRODUCT(((T_DataComboFile[Implementation programme]=$G$3)*(T_DataComboFile[Econ4]=$G55))*T_DataComboFile[2022/23 Reduction]*$B$3)","v":0},{"$f":"SUMPRODUCT(((T_DataComboFile[Implementation programme]=$G$3)*(T_DataComboFile[Econ4]=$G55))*T_DataComboFile[2022/23 Increase]*$B$3)","v":0},0,{"$f":"SUMPRODUCT(((T_DataComboFile[Implementation programme]=$G$3)*(T_DataComboFile[Econ4]=$G55))*T_DataComboFile[2023/24 Baseline]*$B$3)","v":0},{"$f":"SUMPRODUCT(((T_DataComboFile[Implementation programme]=$G$3)*(T_DataComboFile[Econ4]=$G55))*T_DataComboFile[2023/24 Reduction]*$B$3)","v":0},{"$f":"SUMPRODUCT(((T_DataComboFile[Implementation programme]=$G$3)*(T_DataComboFile[Econ4]=$G55))*T_DataComboFile[2023/24 Increase]*$B$3)","v":0},0]
[0,0,null,null,null,null,"Machinery and equipment",{"$f":"SUM(H57:H58)","v":0},0,0,0,0,0,0,0,0,0,0,0,0,0,0,0]
[0,0,null,null,null,null,"Transport equipment",{"$f":"SUMPRODUCT(((T_DataComboFile[Implementation programme]=$G$3)*(T_DataComboFile[Econ4]=$G57))*T_DataComboFile[2017/18]*$B$3)","v":0},{"$f":"SUMPRODUCT(((T_DataComboFile[Implementation programme]=$G$3)*(T_DataComboFile[Econ4]=$G57))*T_DataComboFile[2018/19]*$B$3)","v":0},{"$f":"SUMPRODUCT(((T_DataComboFile[Implementation programme]=$G$3)*(T_DataComboFile[Econ4]=$G57))*T_DataComboFile[2019/20 Revised estimate]*$B$3)","v":0},{"$f":"SUMPRODUCT(((T_DataComboFile[Implementation programme]=$G$3)*(T_DataComboFile[Econ4]=$G57))*T_DataComboFile[2020/21 Revised]*$B$3)","v":0},{"$f":"SUMPRODUCT(((T_DataComboFile[Implementation programme]=$G$3)*(T_DataComboFile[Econ4]=$G57))*T_DataComboFile[2021/22 Baseline]*$B$3)","v":0},{"$f":"SUMPRODUCT(((T_DataComboFile[Implementation programme]=$G$3)*(T_DataComboFile[Econ4]=$G57))*T_DataComboFile[2021/22 Reduction]*$B$3)","v":0},{"$f":"SUMPRODUCT(((T_DataComboFile[Implementation programme]=$G$3)*(T_DataComboFile[Econ4]=$G57))*T_DataComboFile[2021/22 Increase]*$B$3)","v":0},{"$f":"L57+M57+N57","v":0},{"$f":"SUMPRODUCT(((T_DataComboFile[Implementation programme]=$G$3)*(T_DataComboFile[Econ4]=$G57))*T_DataComboFile[2022/23 Baseline]*$B$3)","v":0},{"$f":"SUMPRODUCT(((T_DataComboFile[Implementation programme]=$G$3)*(T_DataComboFile[Econ4]=$G57))*T_DataComboFile[2022/23 Reduction]*$B$3)","v":0},{"$f":"SUMPRODUCT(((T_DataComboFile[Implementation programme]=$G$3)*(T_DataComboFile[Econ4]=$G57))*T_DataComboFile[2022/23 Increase]*$B$3)","v":0},{"$f":"P57+Q57+R57","v":0},{"$f":"SUMPRODUCT(((T_DataComboFile[Implementation programme]=$G$3)*(T_DataComboFile[Econ4]=$G57))*T_DataComboFile[2023/24 Baseline]*$B$3)","v":0},{"$f":"SUMPRODUCT(((T_DataComboFile[Implementation programme]=$G$3)*(T_DataComboFile[Econ4]=$G57))*T_DataComboFile[2023/24 Reduction]*$B$3)","v":0},{"$f":"SUMPRODUCT(((T_DataComboFile[Implementation programme]=$G$3)*(T_DataComboFile[Econ4]=$G57))*T_DataComboFile[2023/24 Increase]*$B$3)","v":0},{"$f":"T57+U57+V57","v":0}]
[0,0,null,null,null,null,"Other machinery and equipment",{"$f":"SUMPRODUCT(((T_DataComboFile[Implementation programme]=$G$3)*(T_DataComboFile[Econ4]=$G58))*T_DataComboFile[2017/18]*$B$3)","v":0},{"$f":"SUMPRODUCT(((T_DataComboFile[Implementation programme]=$G$3)*(T_DataComboFile[Econ4]=$G58))*T_DataComboFile[2018/19]*$B$3)","v":0},{"$f":"SUMPRODUCT(((T_DataComboFile[Implementation programme]=$G$3)*(T_DataComboFile[Econ4]=$G58))*T_DataComboFile[2019/20 Revised estimate]*$B$3)","v":0},{"$f":"SUMPRODUCT(((T_DataComboFile[Implementation programme]=$G$3)*(T_DataComboFile[Econ4]=$G58))*T_DataComboFile[2020/21 Revised]*$B$3)","v":0},{"$f":"SUMPRODUCT(((T_DataComboFile[Implementation programme]=$G$3)*(T_DataComboFile[Econ4]=$G58))*T_DataComboFile[2021/22 Baseline]*$B$3)","v":0},{"$f":"SUMPRODUCT(((T_DataComboFile[Implementation programme]=$G$3)*(T_DataComboFile[Econ4]=$G58))*T_DataComboFile[2021/22 Reduction]*$B$3)","v":0},{"$f":"SUMPRODUCT(((T_DataComboFile[Implementation programme]=$G$3)*(T_DataComboFile[Econ4]=$G58))*T_DataComboFile[2021/22 Increase]*$B$3)","v":0},0,{"$f":"SUMPRODUCT(((T_DataComboFile[Implementation programme]=$G$3)*(T_DataComboFile[Econ4]=$G58))*T_DataComboFile[2022/23 Baseline]*$B$3)","v":0},{"$f":"SUMPRODUCT(((T_DataComboFile[Implementation programme]=$G$3)*(T_DataComboFile[Econ4]=$G58))*T_DataComboFile[2022/23 Reduction]*$B$3)","v":0},{"$f":"SUMPRODUCT(((T_DataComboFile[Implementation programme]=$G$3)*(T_DataComboFile[Econ4]=$G58))*T_DataComboFile[2022/23 Increase]*$B$3)","v":0},0,{"$f":"SUMPRODUCT(((T_DataComboFile[Implementation programme]=$G$3)*(T_DataComboFile[Econ4]=$G58))*T_DataComboFile[2023/24 Baseline]*$B$3)","v":0},{"$f":"SUMPRODUCT(((T_DataComboFile[Implementation programme]=$G$3)*(T_DataComboFile[Econ4]=$G58))*T_DataComboFile[2023/24 Reduction]*$B$3)","v":0},{"$f":"SUMPRODUCT(((T_DataComboFile[Implementation programme]=$G$3)*(T_DataComboFile[Econ4]=$G58))*T_DataComboFile[2023/24 Increase]*$B$3)","v":0},0]
[0,0,null,null,null,null,"Heritage assets",{"$f":"SUMPRODUCT(((T_DataComboFile[Implementation programme]=$G$3)*(T_DataComboFile[Econ3]=$G59))*T_DataComboFile[2017/18]*$B$3)","v":0},{"$f":"SUMPRODUCT(((T_DataComboFile[Implementation programme]=$G$3)*(T_DataComboFile[Econ3]=$G59))*T_DataComboFile[2018/19]*$B$3)","v":0},{"$f":"SUMPRODUCT(((T_DataComboFile[Implementation programme]=$G$3)*(T_DataComboFile[Econ3]=$G59))*T_DataComboFile[2019/20 Revised estimate]*$B$3)","v":0},{"$f":"SUMPRODUCT(((T_DataComboFile[Implementation programme]=$G$3)*(T_DataComboFile[Econ3]=$G59))*T_DataComboFile[2020/21 Revised]*$B$3)","v":0},{"$f":"SUMPRODUCT(((T_DataComboFile[Implementation programme]=$G$3)*(T_DataComboFile[Econ3]=$G59))*T_DataComboFile[2021/22 Baseline]*$B$3)","v":0},{"$f":"SUMPRODUCT(((T_DataComboFile[Implementation programme]=$G$3)*(T_DataComboFile[Econ3]=$G59))*T_DataComboFile[2021/22 Reduction]*$B$3)","v":0},{"$f":"SUMPRODUCT(((T_DataComboFile[Implementation programme]=$G$3)*(T_DataComboFile[Econ3]=$G59))*T_DataComboFile[2021/22 Increase]*$B$3)","v":0},0,{"$f":"SUMPRODUCT(((T_DataComboFile[Implementation programme]=$G$3)*(T_DataComboFile[Econ3]=$G59))*T_DataComboFile[2022/23 Baseline]*$B$3)","v":0},{"$f":"SUMPRODUCT(((T_DataComboFile[Implementation programme]=$G$3)*(T_DataComboFile[Econ3]=$G59))*T_DataComboFile[2022/23 Reduction]*$B$3)","v":0},{"$f":"SUMPRODUCT(((T_DataComboFile[Implementation programme]=$G$3)*(T_DataComboFile[Econ3]=$G59))*T_DataComboFile[2022/23 Increase]*$B$3)","v":0},0,{"$f":"SUMPRODUCT(((T_DataComboFile[Implementation programme]=$G$3)*(T_DataComboFile[Econ3]=$G59))*T_DataComboFile[2023/24 Baseline]*$B$3)","v":0},{"$f":"SUMPRODUCT(((T_DataComboFile[Implementation programme]=$G$3)*(T_DataComboFile[Econ3]=$G59))*T_DataComboFile[2023/24 Reduction]*$B$3)","v":0},{"$f":"SUMPRODUCT(((T_DataComboFile[Implementation programme]=$G$3)*(T_DataComboFile[Econ3]=$G59))*T_DataComboFile[2023/24 Increase]*$B$3)","v":0},0]
[0,0,null,null,null,null,"Specialised military assets",{"$f":"SUMPRODUCT(((T_DataComboFile[Implementation programme]=$G$3)*(T_DataComboFile[Econ3]=$G60))*T_DataComboFile[2017/18]*$B$3)","v":0},{"$f":"SUMPRODUCT(((T_DataComboFile[Implementation programme]=$G$3)*(T_DataComboFile[Econ3]=$G60))*T_DataComboFile[2018/19]*$B$3)","v":0},{"$f":"SUMPRODUCT(((T_DataComboFile[Implementation programme]=$G$3)*(T_DataComboFile[Econ3]=$G60))*T_DataComboFile[2019/20 Revised estimate]*$B$3)","v":0},{"$f":"SUMPRODUCT(((T_DataComboFile[Implementation programme]=$G$3)*(T_DataComboFile[Econ3]=$G60))*T_DataComboFile[2020/21 Revised]*$B$3)","v":0},{"$f":"SUMPRODUCT(((T_DataComboFile[Implementation programme]=$G$3)*(T_DataComboFile[Econ3]=$G60))*T_DataComboFile[2021/22 Baseline]*$B$3)","v":0},{"$f":"SUMPRODUCT(((T_DataComboFile[Implementation programme]=$G$3)*(T_DataComboFile[Econ3]=$G60))*T_DataComboFile[2021/22 Reduction]*$B$3)","v":0},{"$f":"SUMPRODUCT(((T_DataComboFile[Implementation programme]=$G$3)*(T_DataComboFile[Econ3]=$G60))*T_DataComboFile[2021/22 Increase]*$B$3)","v":0},0,{"$f":"SUMPRODUCT(((T_DataComboFile[Implementation programme]=$G$3)*(T_DataComboFile[Econ3]=$G60))*T_DataComboFile[2022/23 Baseline]*$B$3)","v":0},{"$f":"SUMPRODUCT(((T_DataComboFile[Implementation programme]=$G$3)*(T_DataComboFile[Econ3]=$G60))*T_DataComboFile[2022/23 Reduction]*$B$3)","v":0},{"$f":"SUMPRODUCT(((T_DataComboFile[Implementation programme]=$G$3)*(T_DataComboFile[Econ3]=$G60))*T_DataComboFile[2022/23 Increase]*$B$3)","v":0},0,{"$f":"SUMPRODUCT(((T_DataComboFile[Implementation programme]=$G$3)*(T_DataComboFile[Econ3]=$G60))*T_DataComboFile[2023/24 Baseline]*$B$3)","v":0},{"$f":"SUMPRODUCT(((T_DataComboFile[Implementation programme]=$G$3)*(T_DataComboFile[Econ3]=$G60))*T_DataComboFile[2023/24 Reduction]*$B$3)","v":0},{"$f":"SUMPRODUCT(((T_DataComboFile[Implementation programme]=$G$3)*(T_DataComboFile[Econ3]=$G60))*T_DataComboFile[2023/24 Increase]*$B$3)","v":0},0]
[0,0,null,null,null,null,"Biological assets",{"$f":"SUMPRODUCT(((T_DataComboFile[Implementation programme]=$G$3)*(T_DataComboFile[Econ3]=$G61))*T_DataComboFile[2017/18]*$B$3)","v":0},{"$f":"SUMPRODUCT(((T_DataComboFile[Implementation programme]=$G$3)*(T_DataComboFile[Econ3]=$G61))*T_DataComboFile[2018/19]*$B$3)","v":0},{"$f":"SUMPRODUCT(((T_DataComboFile[Implementation programme]=$G$3)*(T_DataComboFile[Econ3]=$G61))*T_DataComboFile[2019/20 Revised estimate]*$B$3)","v":0},{"$f":"SUMPRODUCT(((T_DataComboFile[Implementation programme]=$G$3)*(T_DataComboFile[Econ3]=$G61))*T_DataComboFile[2020/21 Revised]*$B$3)","v":0},{"$f":"SUMPRODUCT(((T_DataComboFile[Implementation programme]=$G$3)*(T_DataComboFile[Econ3]=$G61))*T_DataComboFile[2021/22 Baseline]*$B$3)","v":0},{"$f":"SUMPRODUCT(((T_DataComboFile[Implementation programme]=$G$3)*(T_DataComboFile[Econ3]=$G61))*T_DataComboFile[2021/22 Reduction]*$B$3)","v":0},{"$f":"SUMPRODUCT(((T_DataComboFile[Implementation programme]=$G$3)*(T_DataComboFile[Econ3]=$G61))*T_DataComboFile[2021/22 Increase]*$B$3)","v":0},0,{"$f":"SUMPRODUCT(((T_DataComboFile[Implementation programme]=$G$3)*(T_DataComboFile[Econ3]=$G61))*T_DataComboFile[2022/23 Baseline]*$B$3)","v":0},{"$f":"SUMPRODUCT(((T_DataComboFile[Implementation programme]=$G$3)*(T_DataComboFile[Econ3]=$G61))*T_DataComboFile[2022/23 Reduction]*$B$3)","v":0},{"$f":"SUMPRODUCT(((T_DataComboFile[Implementation programme]=$G$3)*(T_DataComboFile[Econ3]=$G61))*T_DataComboFile[2022/23 Increase]*$B$3)","v":0},0,{"$f":"SUMPRODUCT(((T_DataComboFile[Implementation programme]=$G$3)*(T_DataComboFile[Econ3]=$G61))*T_DataComboFile[2023/24 Baseline]*$B$3)","v":0},{"$f":"SUMPRODUCT(((T_DataComboFile[Implementation programme]=$G$3)*(T_DataComboFile[Econ3]=$G61))*T_DataComboFile[2023/24 Reduction]*$B$3)","v":0},{"$f":"SUMPRODUCT(((T_DataComboFile[Implementation programme]=$G$3)*(T_DataComboFile[Econ3]=$G61))*T_DataComboFile[2023/24 Increase]*$B$3)","v":0},0]
[0,0,null,null,null,null,"Land and sub-soil assets",{"$f":"SUMPRODUCT(((T_DataComboFile[Implementation programme]=$G$3)*(T_DataComboFile[Econ3]=$G62))*T_DataComboFile[2017/18]*$B$3)","v":0},{"$f":"SUMPRODUCT(((T_DataComboFile[Implementation programme]=$G$3)*(T_DataComboFile[Econ3]=$G62))*T_DataComboFile[2018/19]*$B$3)","v":0},{"$f":"SUMPRODUCT(((T_DataComboFile[Implementation programme]=$G$3)*(T_DataComboFile[Econ3]=$G62))*T_DataComboFile[2019/20 Revised estimate]*$B$3)","v":0},{"$f":"SUMPRODUCT(((T_DataComboFile[Implementation programme]=$G$3)*(T_DataComboFile[Econ3]=$G62))*T_DataComboFile[2020/21 Revised]*$B$3)","v":0},{"$f":"SUMPRODUCT(((T_DataComboFile[Implementation programme]=$G$3)*(T_DataComboFile[Econ3]=$G62))*T_DataComboFile[2021/22 Baseline]*$B$3)","v":0},{"$f":"SUMPRODUCT(((T_DataComboFile[Implementation programme]=$G$3)*(T_DataComboFile[Econ3]=$G62))*T_DataComboFile[2021/22 Reduction]*$B$3)","v":0},{"$f":"SUMPRODUCT(((T_DataComboFile[Implementation programme]=$G$3)*(T_DataComboFile[Econ3]=$G62))*T_DataComboFile[2021/22 Increase]*$B$3)","v":0},0,{"$f":"SUMPRODUCT(((T_DataComboFile[Implementation programme]=$G$3)*(T_DataComboFile[Econ3]=$G62))*T_DataComboFile[2022/23 Baseline]*$B$3)","v":0},{"$f":"SUMPRODUCT(((T_DataComboFile[Implementation programme]=$G$3)*(T_DataComboFile[Econ3]=$G62))*T_DataComboFile[2022/23 Reduction]*$B$3)","v":0},{"$f":"SUMPRODUCT(((T_DataComboFile[Implementation programme]=$G$3)*(T_DataComboFile[Econ3]=$G62))*T_DataComboFile[2022/23 Increase]*$B$3)","v":0},0,{"$f":"SUMPRODUCT(((T_DataComboFile[Implementation programme]=$G$3)*(T_DataComboFile[Econ3]=$G62))*T_DataComboFile[2023/24 Baseline]*$B$3)","v":0},{"$f":"SUMPRODUCT(((T_DataComboFile[Implementation programme]=$G$3)*(T_DataComboFile[Econ3]=$G62))*T_DataComboFile[2023/24 Reduction]*$B$3)","v":0},{"$f":"SUMPRODUCT(((T_DataComboFile[Implementation programme]=$G$3)*(T_DataComboFile[Econ3]=$G62))*T_DataComboFile[2023/24 Increase]*$B$3)","v":0},0]
[0,0,null,null,null,null,"Software and other intangible assets",{"$f":"SUMPRODUCT(((T_DataComboFile[Implementation programme]=$G$3)*(T_DataComboFile[Econ3]=$G63))*T_DataComboFile[2017/18]*$B$3)","v":0},{"$f":"SUMPRODUCT(((T_DataComboFile[Implementation programme]=$G$3)*(T_DataComboFile[Econ3]=$G63))*T_DataComboFile[2018/19]*$B$3)","v":0},{"$f":"SUMPRODUCT(((T_DataComboFile[Implementation programme]=$G$3)*(T_DataComboFile[Econ3]=$G63))*T_DataComboFile[2019/20 Revised estimate]*$B$3)","v":0},{"$f":"SUMPRODUCT(((T_DataComboFile[Implementation programme]=$G$3)*(T_DataComboFile[Econ3]=$G63))*T_DataComboFile[2020/21 Revised]*$B$3)","v":0},{"$f":"SUMPRODUCT(((T_DataComboFile[Implementation programme]=$G$3)*(T_DataComboFile[Econ3]=$G63))*T_DataComboFile[2021/22 Baseline]*$B$3)","v":0},{"$f":"SUMPRODUCT(((T_DataComboFile[Implementation programme]=$G$3)*(T_DataComboFile[Econ3]=$G63))*T_DataComboFile[2021/22 Reduction]*$B$3)","v":0},{"$f":"SUMPRODUCT(((T_DataComboFile[Implementation programme]=$G$3)*(T_DataComboFile[Econ3]=$G63))*T_DataComboFile[2021/22 Increase]*$B$3)","v":0},0,{"$f":"SUMPRODUCT(((T_DataComboFile[Implementation programme]=$G$3)*(T_DataComboFile[Econ3]=$G63))*T_DataComboFile[2022/23 Baseline]*$B$3)","v":0},{"$f":"SUMPRODUCT(((T_DataComboFile[Implementation programme]=$G$3)*(T_DataComboFile[Econ3]=$G63))*T_DataComboFile[2022/23 Reduction]*$B$3)","v":0},{"$f":"SUMPRODUCT(((T_DataComboFile[Implementation programme]=$G$3)*(T_DataComboFile[Econ3]=$G63))*T_DataComboFile[2022/23 Increase]*$B$3)","v":0},0,{"$f":"SUMPRODUCT(((T_DataComboFile[Implementation programme]=$G$3)*(T_DataComboFile[Econ3]=$G63))*T_DataComboFile[2023/24 Baseline]*$B$3)","v":0},{"$f":"SUMPRODUCT(((T_DataComboFile[Implementation programme]=$G$3)*(T_DataComboFile[Econ3]=$G63))*T_DataComboFile[2023/24 Reduction]*$B$3)","v":0},{"$f":"SUMPRODUCT(((T_DataComboFile[Implementation programme]=$G$3)*(T_DataComboFile[Econ3]=$G63))*T_DataComboFile[2023/24 Increase]*$B$3)","v":0},0]
[0,0,null,null,null,null,"Payments for financial assets",{"$f":"SUMPRODUCT(((T_DataComboFile[Implementation programme]=$G$3)*(T_DataComboFile[Econ3]=$G64))*T_DataComboFile[2017/18]*$B$3)","v":0},{"$f":"SUMPRODUCT(((T_DataComboFile[Implementation programme]=$G$3)*(T_DataComboFile[Econ3]=$G64))*T_DataComboFile[2018/19]*$B$3)","v":0},{"$f":"SUMPRODUCT(((T_DataComboFile[Implementation programme]=$G$3)*(T_DataComboFile[Econ3]=$G64))*T_DataComboFile[2019/20 Revised estimate]*$B$3)","v":0},{"$f":"SUMPRODUCT(((T_DataComboFile[Implementation programme]=$G$3)*(T_DataComboFile[Econ3]=$G64))*T_DataComboFile[2020/21 Revised]*$B$3)","v":0},{"$f":"SUMPRODUCT(((T_DataComboFile[Implementation programme]=$G$3)*(T_DataComboFile[Econ3]=$G64))*T_DataComboFile[2021/22 Baseline]*$B$3)","v":0},{"$f":"SUMPRODUCT(((T_DataComboFile[Implementation programme]=$G$3)*(T_DataComboFile[Econ3]=$G64))*T_DataComboFile[2021/22 Reduction]*$B$3)","v":0},{"$f":"SUMPRODUCT(((T_DataComboFile[Implementation programme]=$G$3)*(T_DataComboFile[Econ3]=$G64))*T_DataComboFile[2021/22 Increase]*$B$3)","v":0},0,{"$f":"SUMPRODUCT(((T_DataComboFile[Implementation programme]=$G$3)*(T_DataComboFile[Econ3]=$G64))*T_DataComboFile[2022/23 Baseline]*$B$3)","v":0},{"$f":"SUMPRODUCT(((T_DataComboFile[Implementation programme]=$G$3)*(T_DataComboFile[Econ3]=$G64))*T_DataComboFile[2022/23 Reduction]*$B$3)","v":0},{"$f":"SUMPRODUCT(((T_DataComboFile[Implementation programme]=$G$3)*(T_DataComboFile[Econ3]=$G64))*T_DataComboFile[2022/23 Increase]*$B$3)","v":0},0,{"$f":"SUMPRODUCT(((T_DataComboFile[Implementation programme]=$G$3)*(T_DataComboFile[Econ3]=$G64))*T_DataComboFile[2023/24 Baseline]*$B$3)","v":0},{"$f":"SUMPRODUCT(((T_DataComboFile[Implementation programme]=$G$3)*(T_DataComboFile[Econ3]=$G64))*T_DataComboFile[2023/24 Reduction]*$B$3)","v":0},{"$f":"SUMPRODUCT(((T_DataComboFile[Implementation programme]=$G$3)*(T_DataComboFile[Econ3]=$G64))*T_DataComboFile[2023/24 Increase]*$B$3)","v":0},0]
[0,0,null,null,null,null,"Total",{"$f":"SUM(H32,H36,H52,H64)","v":0},0,0,0,0,0,0,0,0,0,0,0,0,0,0,0]
[]
[]
[]
[]
[]
[null,null,null,null,null,null,{"$f":"\"IMPACT OF ADJUSTMENTS: \" &UPPER($G$3)","v":"IMPACT OF ADJUSTMENTS: "}]
[]
[null,null,null,null,null,1,"Summary of impact on service delivery due to adjustments"]
[{"$f":"$G$3","v":0},1]
[0,1]
[0,1]
[0,1]
[0,1]
[0,1]
[0,1]
[0,1]
[0,1]
[0,1]
[0,1]
[0,1]
[0,1]
[0,1]
[0,1]
[]
[]
[]
[]
[]
[null,null,null,null,null,2,"Impact of adjustments on performance indicators"]
[{"$f":"$G$3","v":0},2,null,null,null,null,null,"2021/22",null,null,"2022/23",null,null,"2023/24",null,null," Comment",null,null,null,null,"Related MTSF Priority"]
[0,2,null,null,null,null,"Performance indicator","Original target","Revised target","Change","Original target","Revised target","Change","Original target","Revised target","Change"]
[0,2]
[0,2]
[0,2]
[0,2]
[0,2]
[0,2]
[0,2]
[0,2]
[0,2]
[0,2]
[0,2]
[0,2]
[0,2]
[0,2]
[0,2]
[]
[]
[]
[]
[]
[null,null,null,null,null,3,"Impact of adjustments on infrastructure projects"]
[{"$f":"$G$3","v":0},3,null,null,null,null,null,"2021/22",null,null,"2022/23",null,null,"2023/24",null,null," Comment"]
[0,3,null,null,null,null,"Project name","Original amount","Revised amount","Change","Original amount","Revised amount","Change","Original amount","Revised amount","Change"]
[0,3,null,null,null,null,null,null,null,{"$f":"I120-H120","v":0},null,null,{"$f":"L120-K120","v":0},null,null,{"$f":"O120-N120","v":0}]
[0,3,null,null,null,null,null,null,null,0,null,null,0,null,null,0]
[0,3,null,null,null,null,null,null,null,0,null,null,0,null,null,0]
[0,3,null,null,null,null,null,null,null,0,null,null,0,null,null,0]
[0,3,null,null,null,null,null,null,null,0,null,null,0,null,null,0]
[0,3,null,null,null,null,null,null,null,0,null,null,0,null,null,0]
[0,3,null,null,null,null,null,null,null,0,null,null,0,null,null,0]
[0,3,null,null,null,null,null,null,null,0,null,null,0,null,null,0]
[0,3,null,null,null,null,null,null,null,0,null,null,0,null,null,0]
[0,3,null,null,null,null,null,null,null,0,null,null,0,null,null,0]
[0,3,null,null,null,null,null,null,null,0,null,null,0,null,null,0]
[0,3,null,null,null,null,null,null,null,0,null,null,0,null,null,0]
[0,3,null,null,null,null,null,null,null,0,null,null,0,null,null,0]
[0,3,null,null,null,null,null,null,null,0,null,null,0,null,null,0]
[0,3,null,null,null,null,null,null,null,0,null,null,0,null,null,0]
[0,3,null,null,null,null,"Total",{"$f":"SUM(H120:H134)","v":0},0,0,0,0,0,0,0,0]
[]
[]
[]
[]
[]
[null,null,null,null,null,4,"Impact of adjustments on personnel headcount numbers"]
[{"$f":"$G$3","v":0},4,null,null,null,null,null,"2021/22",null,null,"2022/23",null,null,"2023/24",null,null," Comment"]
[0,4,null,null,null,null,"Salary level","Original number","Revised number","Change","Original number","Revised number","Change","Original number","Revised number","Change"]
[0,4,null,null,null,null,1,null,null,{"$f":"I144-H144","v":0},null,null,{"$f":"L144-K144","v":0},null,null,{"$f":"O144-N144","v":0}]
[0,4,null,null,null,null,2,null,null,0,null,null,0,null,null,0]
[0,4,null,null,null,null,3,null,null,0,null,null,0,null,null,0]
[0,4,null,null,null,null,4,null,null,0,null,null,0,null,null,0]
[0,4,null,null,null,null,5,null,null,0,null,null,0,null,null,0]
[0,4,null,null,null,null,6,null,null,0,null,null,0,null,null,0]
[0,4,null,null,null,null,7,null,null,0,null,null,0,null,null,0]
[0,4,null,null,null,null,8,null,null,0,null,null,0,null,null,0]
[0,4,null,null,null,null,9,null,null,0,null,null,0,null,null,0]
[0,4,null,null,null,null,10,null,null,0,null,null,0,null,null,0]
[0,4,null,null,null,null,11,null,null,0,null,null,0,null,null,0]
[0,4,null,null,null,null,12,null,null,0,null,null,0,null,null,0]
[0,4,null,null,null,null,13,null,null,0,null,null,0,null,null,0]
[0,4,null,null,null,null,14,null,null,0,null,null,0,null,null,0]
[0,4,null,null,null,null,15,null,null,0,null,null,0,null,null,0]
[0,4,null,null,null,null,16,null,null,0,null,null,0,null,null,0]
[0,4,null,null,null,null,"Other",null,null,0,null,null,0,null,null,0]
[0,4,null,null,null,null,"Other",null,null,0,null,null,0,null,null,0]
[0,4,null,null,null,null,"Other",null,null,0,null,null,0,null,null,0]
[0,4,null,null,null,null,"Other",null,null,0,null,null,0,null,null,0]
[0,4,null,null,null,null,"Total",{"$f":"SUM(H144:H163)","v":0},0,0,0,0,0,0,0,0]
[]
[]
[]
[]
[]
[null,null,null,null,null,5,"Impact of adjustments by economic classification"]
[{"$f":"$G$3","v":0},5,null,null,null,null,null,"2021/22",null,null,"2022/23",null,null,"2023/24",null,null," Comment"]
[0,5,null,null,null,null,"Salary level","Original number","Revised number","Change","Original number","Revised number","Change","Original number","Revised number","Change"]
[0,5,null,null,null,null,"Current payments",{"$f":"SUM(H174,H175,H182)","v":0},{"$f":"SUM(I174,I175,I182)","v":0},{"$f":"I173-H173","v":0},{"$f":"SUM(K174,K175,K182)","v":0},{"$f":"SUM(L174,L175,L182)","v":0},{"$f":"L173-K173","v":0},{"$f":"SUM(N174,N175,N182)","v":0},{"$f":"SUM(O174,O175,O182)","v":0},{"$f":"O173-N173","v":0}]
[0,5,null,null,null,null,"Compensation of employees",{"$f":"SUMPRODUCT(((T_DataComboFile[Implementation programme]=$G$3)*(T_DataComboFile[Econ3]=$G174))*T_DataComboFile[2021/22 Baseline]*$B$3)","v":0},{"$f":"SUMPRODUCT(((T_DataComboFile[Implementation programme]=$G$3)*(T_DataComboFile[Econ3]=$G174))*T_DataComboFile[2021/22 Revised baseline]*$B$3)","v":0},0,{"$f":"SUMPRODUCT(((T_DataComboFile[Implementation programme]=$G$3)*(T_DataComboFile[Econ3]=$G174))*T_DataComboFile[2022/23 Baseline]*$B$3)","v":0},{"$f":"SUMPRODUCT(((T_DataComboFile[Implementation programme]=$G$3)*(T_DataComboFile[Econ3]=$G174))*T_DataComboFile[2022/23 Revised baseline]*$B$3)","v":0},0,{"$f":"SUMPRODUCT(((T_DataComboFile[Implementation programme]=$G$3)*(T_DataComboFile[Econ3]=$G174))*T_DataComboFile[2023/24 Baseline]*$B$3)","v":0},{"$f":"SUMPRODUCT(((T_DataComboFile[Implementation programme]=$G$3)*(T_DataComboFile[Econ3]=$G174))*T_DataComboFile[2023/24 Revised baseline]*$B$3)","v":0},0]
[0,5,null,null,null,null,"Goods and services",{"$f":"SUMPRODUCT(((T_DataComboFile[Implementation programme]=$G$3)*(T_DataComboFile[Econ3]=$G175))*T_DataComboFile[2021/22 Baseline]*$B$3)","v":0},{"$f":"SUMPRODUCT(((T_DataComboFile[Implementation programme]=$G$3)*(T_DataComboFile[Econ3]=$G175))*T_DataComboFile[2021/22 Revised baseline]*$B$3)","v":0},0,{"$f":"SUMPRODUCT(((T_DataComboFile[Implementation programme]=$G$3)*(T_DataComboFile[Econ3]=$G175))*T_DataComboFile[2022/23 Baseline]*$B$3)","v":0},{"$f":"SUMPRODUCT(((T_DataComboFile[Implementation programme]=$G$3)*(T_DataComboFile[Econ3]=$G175))*T_DataComboFile[2022/23 Revised baseline]*$B$3)","v":0},0,{"$f":"SUMPRODUCT(((T_DataComboFile[Implementation programme]=$G$3)*(T_DataComboFile[Econ3]=$G175))*T_DataComboFile[2023/24 Baseline]*$B$3)","v":0},{"$f":"SUMPRODUCT(((T_DataComboFile[Implementation programme]=$G$3)*(T_DataComboFile[Econ3]=$G175))*T_DataComboFile[2023/24 Revised baseline]*$B$3)","v":0},0]
[0,50,null,null,null,null,"of which:"]
[0,51,null,null,null,null,null,null,null,{"$f":"I177-H177","v":0},null,null,{"$f":"L177-K177","v":0},null,null,0]
[0,51,null,null,null,null,null,null,null,0,null,null,0,null,null,0]
[0,51,null,null,null,null,null,null,null,0,null,null,0,null,null,0]
[0,51,null,null,null,null,null,null,null,0,null,null,0,null,null,0]
[0,51,null,null,null,null,null,null,null,0,null,null,0,null,null,0]
[0,5,null,null,null,null,"Interest and rent on land",{"$f":"SUMPRODUCT(((T_DataComboFile[Implementation programme]=$G$3)*(T_DataComboFile[Econ3]=$G182))*T_DataComboFile[2021/22 Baseline]*$B$3)","v":0},{"$f":"SUMPRODUCT(((T_DataComboFile[Implementation programme]=$G$3)*(T_DataComboFile[Econ3]=$G182))*T_DataComboFile[2021/22 Revised baseline]*$B$3)","v":0},0,{"$f":"SUMPRODUCT(((T_DataComboFile[Implementation programme]=$G$3)*(T_DataComboFile[Econ3]=$G182))*T_DataComboFile[2022/23 Baseline]*$B$3)","v":0},{"$f":"SUMPRODUCT(((T_DataComboFile[Implementation programme]=$G$3)*(T_DataComboFile[Econ3]=$G182))*T_DataComboFile[2022/23 Revised baseline]*$B$3)","v":0},0,{"$f":"SUMPRODUCT(((T_DataComboFile[Implementation programme]=$G$3)*(T_DataComboFile[Econ3]=$G182))*T_DataComboFile[2023/24 Baseline]*$B$3)","v":0},{"$f":"SUMPRODUCT(((T_DataComboFile[Implementation programme]=$G$3)*(T_DataComboFile[Econ3]=$G182))*T_DataComboFile[2023/24 Revised baseline]*$B$3)","v":0},0]
[0,5,null,null,null,null,"Transfers and subsidies",{"$f":"SUM(H184,H185,H197,H198,H199,H206,H207)","v":0},{"$f":"SUM(I184,I185,I197,I198,I199,I206,I207)","v":0},0,{"$f":"SUM(K184,K185,K197,K198,K199,K206,K207)","v":0},0,0,{"$f":"SUM(N184,N185,N197,N198,N199,N206,N207)","v":0},0,0]
[0,5,null,null,null,null,"Provinces and municipalities",{"$f":"SUMPRODUCT(((T_DataComboFile[Implementation programme]=$G$3)*(T_DataComboFile[Econ3]=$G184))*T_DataComboFile[2021/22 Baseline]*$B$3)","v":0},{"$f":"SUMPRODUCT(((T_DataComboFile[Implementation programme]=$G$3)*(T_DataComboFile[Econ3]=$G184))*T_DataComboFile[2021/22 Revised baseline]*$B$3)","v":0},0,{"$f":"SUMPRODUCT(((T_DataComboFile[Implementation programme]=$G$3)*(T_DataComboFile[Econ3]=$G184))*T_DataComboFile[2022/23 Baseline]*$B$3)","v":0},{"$f":"SUMPRODUCT(((T_DataComboFile[Implementation programme]=$G$3)*(T_DataComboFile[Econ3]=$G184))*T_DataComboFile[2022/23 Revised baseline]*$B$3)","v":0},0,{"$f":"SUMPRODUCT(((T_DataComboFile[Implementation programme]=$G$3)*(T_DataComboFile[Econ3]=$G184))*T_DataComboFile[2023/24 Baseline]*$B$3)","v":0},{"$f":"SUMPRODUCT(((T_DataComboFile[Implementation programme]=$G$3)*(T_DataComboFile[Econ3]=$G184))*T_DataComboFile[2023/24 Revised baseline]*$B$3)","v":0},0]
[0,5,null,null,null,null,"Departmental agencies and accounts",{"$f":"SUMPRODUCT(((T_DataComboFile[Implementation programme]=$G$3)*(T_DataComboFile[Econ3]=$G185))*T_DataComboFile[2021/22 Baseline]*$B$3)","v":0},{"$f":"SUMPRODUCT(((T_DataComboFile[Implementation programme]=$G$3)*(T_DataComboFile[Econ3]=$G185))*T_DataComboFile[2021/22 Revised baseline]*$B$3)","v":0},0,{"$f":"SUMPRODUCT(((T_DataComboFile[Implementation programme]=$G$3)*(T_DataComboFile[Econ3]=$G185))*T_DataComboFile[2022/23 Baseline]*$B$3)","v":0},{"$f":"SUMPRODUCT(((T_DataComboFile[Implementation programme]=$G$3)*(T_DataComboFile[Econ3]=$G185))*T_DataComboFile[2022/23 Revised baseline]*$B$3)","v":0},0,{"$f":"SUMPRODUCT(((T_DataComboFile[Implementation programme]=$G$3)*(T_DataComboFile[Econ3]=$G185))*T_DataComboFile[2023/24 Baseline]*$B$3)","v":0},{"$f":"SUMPRODUCT(((T_DataComboFile[Implementation programme]=$G$3)*(T_DataComboFile[Econ3]=$G185))*T_DataComboFile[2023/24 Revised baseline]*$B$3)","v":0},0]
[0,50,null,null,null,null,"of which:"]
[0,52,null,null,null,null,null,null,null,{"$f":"I187-H187","v":0},null,null,{"$f":"L187-K187","v":0},null,null,{"$f":"O187-N187","v":0}]
[0,52,null,null,null,null,null,null,null,0,null,null,0,null,null,0]
[0,52,null,null,null,null,null,null,null,0,null,null,0,null,null,0]
[0,52,null,null,null,null,null,null,null,0,null,null,0,null,null,0]
[0,52,null,null,null,null,null,null,null,0,null,null,0,null,null,0]
[0,52,null,null,null,null,null,null,null,0,null,null,0,null,null,0]
[0,52,null,null,null,null,null,null,null,0,null,null,0,null,null,0]
[0,52,null,null,null,null,null,null,null,0,null,null,0,null,null,0]
[0,52,null,null,null,null,null,null,null,0,null,null,0,null,null,0]
[0,52,null,null,null,null,null,null,null,0,null,null,0,null,null,0]
[0,5,null,null,null,null,"Higher education institutions",{"$f":"SUMPRODUCT(((T_DataComboFile[Implementation programme]=$G$3)*(T_DataComboFile[Econ3]=$G197))*T_DataComboFile[2021/22 Baseline]*$B$3)","v":0},{"$f":"SUMPRODUCT(((T_DataComboFile[Implementation programme]=$G$3)*(T_DataComboFile[Econ3]=$G197))*T_DataComboFile[2021/22 Revised baseline]*$B$3)","v":0},0,{"$f":"SUMPRODUCT(((T_DataComboFile[Implementation programme]=$G$3)*(T_DataComboFile[Econ3]=$G197))*T_DataComboFile[2022/23 Baseline]*$B$3)","v":0},{"$f":"SUMPRODUCT(((T_DataComboFile[Implementation programme]=$G$3)*(T_DataComboFile[Econ3]=$G197))*T_DataComboFile[2022/23 Revised baseline]*$B$3)","v":0},0,{"$f":"SUMPRODUCT(((T_DataComboFile[Implementation programme]=$G$3)*(T_DataComboFile[Econ3]=$G197))*T_DataComboFile[2023/24 Baseline]*$B$3)","v":0},{"$f":"SUMPRODUCT(((T_DataComboFile[Implementation programme]=$G$3)*(T_DataComboFile[Econ3]=$G197))*T_DataComboFile[2023/24 Revised baseline]*$B$3)","v":0},0]
[0,5,null,null,null,null,"Foreign governments and international organisations",{"$f":"SUMPRODUCT(((T_DataComboFile[Implementation programme]=$G$3)*(T_DataComboFile[Econ3]=$G198))*T_DataComboFile[2021/22 Baseline]*$B$3)","v":0},{"$f":"SUMPRODUCT(((T_DataComboFile[Implementation programme]=$G$3)*(T_DataComboFile[Econ3]=$G198))*T_DataComboFile[2021/22 Revised baseline]*$B$3)","v":0},0,{"$f":"SUMPRODUCT(((T_DataComboFile[Implementation programme]=$G$3)*(T_DataComboFile[Econ3]=$G198))*T_DataComboFile[2022/23 Baseline]*$B$3)","v":0},{"$f":"SUMPRODUCT(((T_DataComboFile[Implementation programme]=$G$3)*(T_DataComboFile[Econ3]=$G198))*T_DataComboFile[2022/23 Revised baseline]*$B$3)","v":0},0,{"$f":"SUMPRODUCT(((T_DataComboFile[Implementation programme]=$G$3)*(T_DataComboFile[Econ3]=$G198))*T_DataComboFile[2023/24 Baseline]*$B$3)","v":0},{"$f":"SUMPRODUCT(((T_DataComboFile[Implementation programme]=$G$3)*(T_DataComboFile[Econ3]=$G198))*T_DataComboFile[2023/24 Revised baseline]*$B$3)","v":0},0]
[0,5,null,null,null,null,"Public corporations and private enterprises",{"$f":"SUMPRODUCT(((T_DataComboFile[Implementation programme]=$G$3)*(T_DataComboFile[Econ3]=$G199))*T_DataComboFile[2021/22 Baseline]*$B$3)","v":0},{"$f":"SUMPRODUCT(((T_DataComboFile[Implementation programme]=$G$3)*(T_DataComboFile[Econ3]=$G199))*T_DataComboFile[2021/22 Revised baseline]*$B$3)","v":0},0,{"$f":"SUMPRODUCT(((T_DataComboFile[Implementation programme]=$G$3)*(T_DataComboFile[Econ3]=$G199))*T_DataComboFile[2022/23 Baseline]*$B$3)","v":0},{"$f":"SUMPRODUCT(((T_DataComboFile[Implementation programme]=$G$3)*(T_DataComboFile[Econ3]=$G199))*T_DataComboFile[2022/23 Revised baseline]*$B$3)","v":0},0,{"$f":"SUMPRODUCT(((T_DataComboFile[Implementation programme]=$G$3)*(T_DataComboFile[Econ3]=$G199))*T_DataComboFile[2023/24 Baseline]*$B$3)","v":0},{"$f":"SUMPRODUCT(((T_DataComboFile[Implementation programme]=$G$3)*(T_DataComboFile[Econ3]=$G199))*T_DataComboFile[2023/24 Revised baseline]*$B$3)","v":0},0]
[0,50,null,null,null,null,"of which:"]
[0,53,null,null,null,null,null,null,null,{"$f":"I201-H201","v":0},null,null,{"$f":"L201-K201","v":0},null,null,{"$f":"O201-N201","v":0}]
[0,53,null,null,null,null,null,null,null,0,null,null,0,null,null,0]
[0,53,null,null,null,null,null,null,null,0,null,null,0,null,null,0]
[0,53,null,null,null,null,null,null,null,0,null,null,0,null,null,0]
[0,53,null,null,null,null,null,null,null,0,null,null,0,null,null,0]
[0,5,null,null,null,null,"Non-profit institutions",{"$f":"SUMPRODUCT(((T_DataComboFile[Implementation programme]=$G$3)*(T_DataComboFile[Econ3]=$G206))*T_DataComboFile[2021/22 Baseline]*$B$3)","v":0},{"$f":"SUMPRODUCT(((T_DataComboFile[Implementation programme]=$G$3)*(T_DataComboFile[Econ3]=$G206))*T_DataComboFile[2021/22 Revised baseline]*$B$3)","v":0},0,{"$f":"SUMPRODUCT(((T_DataComboFile[Implementation programme]=$G$3)*(T_DataComboFile[Econ3]=$G206))*T_DataComboFile[2022/23 Baseline]*$B$3)","v":0},{"$f":"SUMPRODUCT(((T_DataComboFile[Implementation programme]=$G$3)*(T_DataComboFile[Econ3]=$G206))*T_DataComboFile[2022/23 Revised baseline]*$B$3)","v":0},0,{"$f":"SUMPRODUCT(((T_DataComboFile[Implementation programme]=$G$3)*(T_DataComboFile[Econ3]=$G206))*T_DataComboFile[2023/24 Baseline]*$B$3)","v":0},{"$f":"SUMPRODUCT(((T_DataComboFile[Implementation programme]=$G$3)*(T_DataComboFile[Econ3]=$G206))*T_DataComboFile[2023/24 Revised baseline]*$B$3)","v":0},0]
[0,5,null,null,null,null,"Households",{"$f":"SUMPRODUCT(((T_DataComboFile[Implementation programme]=$G$3)*(T_DataComboFile[Econ3]=$G207))*T_DataComboFile[2021/22 Baseline]*$B$3)","v":0},{"$f":"SUMPRODUCT(((T_DataComboFile[Implementation programme]=$G$3)*(T_DataComboFile[Econ3]=$G207))*T_DataComboFile[2021/22 Revised baseline]*$B$3)","v":0},0,{"$f":"SUMPRODUCT(((T_DataComboFile[Implementation programme]=$G$3)*(T_DataComboFile[Econ3]=$G207))*T_DataComboFile[2022/23 Baseline]*$B$3)","v":0},{"$f":"SUMPRODUCT(((T_DataComboFile[Implementation programme]=$G$3)*(T_DataComboFile[Econ3]=$G207))*T_DataComboFile[2022/23 Revised baseline]*$B$3)","v":0},0,{"$f":"SUMPRODUCT(((T_DataComboFile[Implementation programme]=$G$3)*(T_DataComboFile[Econ3]=$G207))*T_DataComboFile[2023/24 Baseline]*$B$3)","v":0},{"$f":"SUMPRODUCT(((T_DataComboFile[Implementation programme]=$G$3)*(T_DataComboFile[Econ3]=$G207))*T_DataComboFile[2023/24 Revised baseline]*$B$3)","v":0},0]
[0,5,null,null,null,null,"Payments for capital assets",{"$f":"SUM(H209:H215)","v":0},0,0,0,0,0,0,{"$f":"SUM(O209:O215)","v":0},0]
[0,5,null,null,null,null,"Buildings and other fixed structures",{"$f":"SUMPRODUCT(((T_DataComboFile[Implementation programme]=$G$3)*(T_DataComboFile[Econ3]=$G209))*T_DataComboFile[2021/22 Baseline]*$B$3)","v":0},{"$f":"SUMPRODUCT(((T_DataComboFile[Implementation programme]=$G$3)*(T_DataComboFile[Econ3]=$G209))*T_DataComboFile[2021/22 Revised baseline]*$B$3)","v":0},0,{"$f":"SUMPRODUCT(((T_DataComboFile[Implementation programme]=$G$3)*(T_DataComboFile[Econ3]=$G209))*T_DataComboFile[2022/23 Baseline]*$B$3)","v":0},{"$f":"SUMPRODUCT(((T_DataComboFile[Implementation programme]=$G$3)*(T_DataComboFile[Econ3]=$G209))*T_DataComboFile[2022/23 Revised baseline]*$B$3)","v":0},0,{"$f":"SUMPRODUCT(((T_DataComboFile[Implementation programme]=$G$3)*(T_DataComboFile[Econ3]=$G209))*T_DataComboFile[2023/24 Baseline]*$B$3)","v":0},{"$f":"SUMPRODUCT(((T_DataComboFile[Implementation programme]=$G$3)*(T_DataComboFile[Econ3]=$G209))*T_DataComboFile[2023/24 Revised baseline]*$B$3)","v":0},0]
[0,5,null,null,null,null,"Machinery and equipment",{"$f":"SUMPRODUCT(((T_DataComboFile[Implementation programme]=$G$3)*(T_DataComboFile[Econ3]=$G210))*T_DataComboFile[2021/22 Baseline]*$B$3)","v":0},{"$f":"SUMPRODUCT(((T_DataComboFile[Implementation programme]=$G$3)*(T_DataComboFile[Econ3]=$G210))*T_DataComboFile[2021/22 Revised baseline]*$B$3)","v":0},0,{"$f":"SUMPRODUCT(((T_DataComboFile[Implementation programme]=$G$3)*(T_DataComboFile[Econ3]=$G210))*T_DataComboFile[2022/23 Baseline]*$B$3)","v":0},{"$f":"SUMPRODUCT(((T_DataComboFile[Implementation programme]=$G$3)*(T_DataComboFile[Econ3]=$G210))*T_DataComboFile[2022/23 Revised baseline]*$B$3)","v":0},0,{"$f":"SUMPRODUCT(((T_DataComboFile[Implementation programme]=$G$3)*(T_DataComboFile[Econ3]=$G210))*T_DataComboFile[2023/24 Baseline]*$B$3)","v":0},{"$f":"SUMPRODUCT(((T_DataComboFile[Implementation programme]=$G$3)*(T_DataComboFile[Econ3]=$G210))*T_DataComboFile[2023/24 Revised baseline]*$B$3)","v":0},0]
[0,5,null,null,null,null,"Heritage assets",{"$f":"SUMPRODUCT(((T_DataComboFile[Implementation programme]=$G$3)*(T_DataComboFile[Econ3]=$G211))*T_DataComboFile[2021/22 Baseline]*$B$3)","v":0},{"$f":"SUMPRODUCT(((T_DataComboFile[Implementation programme]=$G$3)*(T_DataComboFile[Econ3]=$G211))*T_DataComboFile[2021/22 Revised baseline]*$B$3)","v":0},0,{"$f":"SUMPRODUCT(((T_DataComboFile[Implementation programme]=$G$3)*(T_DataComboFile[Econ3]=$G211))*T_DataComboFile[2022/23 Baseline]*$B$3)","v":0},{"$f":"SUMPRODUCT(((T_DataComboFile[Implementation programme]=$G$3)*(T_DataComboFile[Econ3]=$G211))*T_DataComboFile[2022/23 Revised baseline]*$B$3)","v":0},0,{"$f":"SUMPRODUCT(((T_DataComboFile[Implementation programme]=$G$3)*(T_DataComboFile[Econ3]=$G211))*T_DataComboFile[2023/24 Baseline]*$B$3)","v":0},{"$f":"SUMPRODUCT(((T_DataComboFile[Implementation programme]=$G$3)*(T_DataComboFile[Econ3]=$G211))*T_DataComboFile[2023/24 Revised baseline]*$B$3)","v":0},0]
[0,5,null,null,null,null,"Specialised military assets",{"$f":"SUMPRODUCT(((T_DataComboFile[Implementation programme]=$G$3)*(T_DataComboFile[Econ3]=$G212))*T_DataComboFile[2021/22 Baseline]*$B$3)","v":0},{"$f":"SUMPRODUCT(((T_DataComboFile[Implementation programme]=$G$3)*(T_DataComboFile[Econ3]=$G212))*T_DataComboFile[2021/22 Revised baseline]*$B$3)","v":0},0,{"$f":"SUMPRODUCT(((T_DataComboFile[Implementation programme]=$G$3)*(T_DataComboFile[Econ3]=$G212))*T_DataComboFile[2022/23 Baseline]*$B$3)","v":0},{"$f":"SUMPRODUCT(((T_DataComboFile[Implementation programme]=$G$3)*(T_DataComboFile[Econ3]=$G212))*T_DataComboFile[2022/23 Revised baseline]*$B$3)","v":0},0,{"$f":"SUMPRODUCT(((T_DataComboFile[Implementation programme]=$G$3)*(T_DataComboFile[Econ3]=$G212))*T_DataComboFile[2023/24 Baseline]*$B$3)","v":0},{"$f":"SUMPRODUCT(((T_DataComboFile[Implementation programme]=$G$3)*(T_DataComboFile[Econ3]=$G212))*T_DataComboFile[2023/24 Revised baseline]*$B$3)","v":0},0]
[0,5,null,null,null,null,"Biological assets",{"$f":"SUMPRODUCT(((T_DataComboFile[Implementation programme]=$G$3)*(T_DataComboFile[Econ3]=$G213))*T_DataComboFile[2021/22 Baseline]*$B$3)","v":0},{"$f":"SUMPRODUCT(((T_DataComboFile[Implementation programme]=$G$3)*(T_DataComboFile[Econ3]=$G213))*T_DataComboFile[2021/22 Revised baseline]*$B$3)","v":0},0,{"$f":"SUMPRODUCT(((T_DataComboFile[Implementation programme]=$G$3)*(T_DataComboFile[Econ3]=$G213))*T_DataComboFile[2022/23 Baseline]*$B$3)","v":0},{"$f":"SUMPRODUCT(((T_DataComboFile[Implementation programme]=$G$3)*(T_DataComboFile[Econ3]=$G213))*T_DataComboFile[2022/23 Revised baseline]*$B$3)","v":0},0,{"$f":"SUMPRODUCT(((T_DataComboFile[Implementation programme]=$G$3)*(T_DataComboFile[Econ3]=$G213))*T_DataComboFile[2023/24 Baseline]*$B$3)","v":0},{"$f":"SUMPRODUCT(((T_DataComboFile[Implementation programme]=$G$3)*(T_DataComboFile[Econ3]=$G213))*T_DataComboFile[2023/24 Revised baseline]*$B$3)","v":0},0]
[0,5,null,null,null,null,"Land and sub-soil assets",{"$f":"SUMPRODUCT(((T_DataComboFile[Implementation programme]=$G$3)*(T_DataComboFile[Econ3]=$G214))*T_DataComboFile[2021/22 Baseline]*$B$3)","v":0},{"$f":"SUMPRODUCT(((T_DataComboFile[Implementation programme]=$G$3)*(T_DataComboFile[Econ3]=$G214))*T_DataComboFile[2021/22 Revised baseline]*$B$3)","v":0},0,{"$f":"SUMPRODUCT(((T_DataComboFile[Implementation programme]=$G$3)*(T_DataComboFile[Econ3]=$G214))*T_DataComboFile[2022/23 Baseline]*$B$3)","v":0},{"$f":"SUMPRODUCT(((T_DataComboFile[Implementation programme]=$G$3)*(T_DataComboFile[Econ3]=$G214))*T_DataComboFile[2022/23 Revised baseline]*$B$3)","v":0},0,{"$f":"SUMPRODUCT(((T_DataComboFile[Implementation programme]=$G$3)*(T_DataComboFile[Econ3]=$G214))*T_DataComboFile[2023/24 Baseline]*$B$3)","v":0},{"$f":"SUMPRODUCT(((T_DataComboFile[Implementation programme]=$G$3)*(T_DataComboFile[Econ3]=$G214))*T_DataComboFile[2023/24 Revised baseline]*$B$3)","v":0},0]
[0,5,null,null,null,null,"Software and other intangible assets",{"$f":"SUMPRODUCT(((T_DataComboFile[Implementation programme]=$G$3)*(T_DataComboFile[Econ3]=$G215))*T_DataComboFile[2021/22 Baseline]*$B$3)","v":0},{"$f":"SUMPRODUCT(((T_DataComboFile[Implementation programme]=$G$3)*(T_DataComboFile[Econ3]=$G215))*T_DataComboFile[2021/22 Revised baseline]*$B$3)","v":0},0,{"$f":"SUMPRODUCT(((T_DataComboFile[Implementation programme]=$G$3)*(T_DataComboFile[Econ3]=$G215))*T_DataComboFile[2022/23 Baseline]*$B$3)","v":0},{"$f":"SUMPRODUCT(((T_DataComboFile[Implementation programme]=$G$3)*(T_DataComboFile[Econ3]=$G215))*T_DataComboFile[2022/23 Revised baseline]*$B$3)","v":0},0,{"$f":"SUMPRODUCT(((T_DataComboFile[Implementation programme]=$G$3)*(T_DataComboFile[Econ3]=$G215))*T_DataComboFile[2023/24 Baseline]*$B$3)","v":0},{"$f":"SUMPRODUCT(((T_DataComboFile[Implementation programme]=$G$3)*(T_DataComboFile[Econ3]=$G215))*T_DataComboFile[2023/24 Revised baseline]*$B$3)","v":0},0]
[0,5,null,null,null,null,"Payments for financial assets",{"$f":"SUMPRODUCT(((T_DataComboFile[Implementation programme]=$G$3)*(T_DataComboFile[Econ3]=$G216))*T_DataComboFile[2021/22 Baseline]*$B$3)","v":0},{"$f":"SUMPRODUCT(((T_DataComboFile[Implementation programme]=$G$3)*(T_DataComboFile[Econ3]=$G216))*T_DataComboFile[2021/22 Revised baseline]*$B$3)","v":0},0,{"$f":"SUMPRODUCT(((T_DataComboFile[Implementation programme]=$G$3)*(T_DataComboFile[Econ3]=$G216))*T_DataComboFile[2022/23 Baseline]*$B$3)","v":0},{"$f":"SUMPRODUCT(((T_DataComboFile[Implementation programme]=$G$3)*(T_DataComboFile[Econ3]=$G216))*T_DataComboFile[2022/23 Revised baseline]*$B$3)","v":0},0,{"$f":"SUMPRODUCT(((T_DataComboFile[Implementation programme]=$G$3)*(T_DataComboFile[Econ3]=$G216))*T_DataComboFile[2023/24 Baseline]*$B$3)","v":0},{"$f":"SUMPRODUCT(((T_DataComboFile[Implementation programme]=$G$3)*(T_DataComboFile[Econ3]=$G216))*T_DataComboFile[2023/24 Revised baseline]*$B$3)","v":0},0]
[0,5,null,null,null,null,"Total",{"$f":"SUM(H173,H183,H208,H216)","v":0},0,0,0,0,0,0,{"$f":"SUM(O173,O183,O208,O216)","v":0},0]
[]
[null,null,null,null,null,null,null,{"$f":"L65-H217","v":0},{"$f":"O65-I217","v":0},null,{"$f":"P65-K217","v":0},{"$f":"S65-L217","v":0},null,{"$f":"T65-N217","v":0},{"$f":"W65-O217","v":0}]

{"sheet":"IP6","index":15,"n_rows":219,"n_cols":23,"rows_kept":219,"cut":false,"hidden":false,"merged":[[70,6,70,17],[73,6,87,17],[94,16,94,20],[94,21,94,23],[95,16,95,20],[95,21,95,23],[99,16,99,20],[99,21,99,23],[100,16,100,20],[100,21,100,23],[101,16,101,20],[101,21,101,23],[96,16,96,20],[96,21,96,23],[97,16,97,20],[97,21,97,23],[98,16,98,20],[98,21,98,23],[105,16,105,20],[105,21,105,23],[106,16,106,20],[106,21,106,23],[107,16,107,20],[107,21,107,23],[102,16,102,20],[102,21,102,23],[103,16,103,20],[103,21,103,23],[104,16,104,20],[104,21,104,23],[117,16,117,20],[118,16,118,20],[119,16,119,20],[120,16,120,20],[121,16,121,20],[122,16,122,20],[108,16,108,20],[108,21,108,23],[109,16,109,20],[109,21,109,23],[110,16,110,20],[110,21,110,23],[129,16,129,20],[130,16,130,20],[131,16,131,20],[132,16,132,20],[133,16,133,20],[141,16,141,20],[123,16,123,20],[124,16,124,20],[125,16,125,20],[126,16,126,20],[127,16,127,20],[128,16,128,20],[174,16,174,20],[175,16,175,20],[176,16,176,20],[177,16,177,20],[178,16,178,20],[179,16,179,20],[142,16,142,20],[143,16,162,20],[170,16,170,20],[171,16,171,20],[172,16,172,20],[173,16,173,20],[186,16,186,20],[187,16,187,20],[188,16,188,20],[189,16,189,20],[190,16,190,20],[191,16,191,20],[180,16,180,20],[181,16,181,20],[182,16,182,20],[183,16,183,20],[184,16,184,20],[185,16,185,20],[198,16,198,20],[199,16,199,20],[200,16,200,20],[201,16,201,20],[202,16,202,20],[203,16,203,20],[192,16,192,20],[193,16,193,20],[194,16,194,20],[195,16,195,20],[196,16,196,20],[197,16,197,20],[210,16,210,20],[211,16,211,20],[212,16,212,20],[213,16,213,20],[214,16,214,20],[215,16,215,20],[204,16,204,20],[205,16,205,20],[206,16,206,20],[207,16,207,20],[208,16,208,20],[209,16,209,20]]}
[]
[null,null,null,null,null,null,"Implementation programme:"]
[null,{"$f":"IF(G3=\"\",0,1)","v":0},null,null,null,6,null,"… select from dropdown list"]
[null,null,null,null,null,null,null,null,null,null,null,null,"Growth"]
[null,null,null,null,null,null,"Quick view","2020/21","2021/22","2022/23","2023/24","Trend","2021/22","2022/23","2023/24","Ave Ann",null,"2020/21","2021/22","2022/23","2023/24"]
[null,null,null,null,null,null,"Compensation of employees",{"$f":"SUMPRODUCT(($G$32:$G$65=$G6)*($K$32:$K$65))","v":0},{"$f":"SUMPRODUCT(($G$32:$G$65=$G6)*($O$32:$O$65))","v":0},{"$f":"SUMPRODUCT(($G$32:$G$65=$G6)*($S$32:$S$65))","v":0},{"$f":"SUMPRODUCT(($G$32:$G$65=$G6)*($W$32:$W$65))","v":0},null,{"$f":"IFERROR(I6/H6-1,0)","v":0},0,0,{"$f":"IFERROR(((K6/H6)^(1/3)-1),0)","v":0}]
[null,null,null,null,null,null,"Goods and services",{"$f":"SUMPRODUCT(($G$32:$G$65=$G7)*($K$32:$K$65))","v":0},{"$f":"SUMPRODUCT(($G$32:$G$65=$G7)*($O$32:$O$65))","v":0},{"$f":"SUMPRODUCT(($G$32:$G$65=$G7)*($S$32:$S$65))","v":0},{"$f":"SUMPRODUCT(($G$32:$G$65=$G7)*($W$32:$W$65))","v":0},null,0,0,0,0]
[null,null,null,null,null,null,"Transfers and subsidies",{"$f":"SUMPRODUCT(($G$32:$G$65=$G8)*($K$32:$K$65))","v":0},{"$f":"SUMPRODUCT(($G$32:$G$65=$G8)*($O$32:$O$65))","v":0},{"$f":"SUMPRODUCT(($G$32:$G$65=$G8)*($S$32:$S$65))","v":0},{"$f":"SUMPRODUCT(($G$32:$G$65=$G8)*($W$32:$W$65))","v":0},null,0,0,0,0]
[null,null,null,null,null,null,"Payments for capital assets",{"$f":"SUMPRODUCT(($G$32:$G$65=$G9)*($K$32:$K$65))","v":0},{"$f":"SUMPRODUCT(($G$32:$G$65=$G9)*($O$32:$O$65))","v":0},{"$f":"SUMPRODUCT(($G$32:$G$65=$G9)*($S$32:$S$65))","v":0},{"$f":"SUMPRODUCT(($G$32:$G$65=$G9)*($W$32:$W$65))","v":0},null,0,0,0,0]
[null,null,null,null,null,null,"Total",{"$f":"SUMPRODUCT(($G$32:$G$65=$G10)*($K$32:$K$65))","v":0},{"$f":"SUMPRODUCT(($G$32:$G$65=$G10)*($O$32:$O$65))","v":0},{"$f":"SUMPRODUCT(($G$32:$G$65=$G10)*($S$32:$S$65))","v":0},{"$f":"SUMPRODUCT(($G$32:$G$65=$G10)*($W$32:$W$65))","v":0},null,0,0,0,0]
[null,null,null,null,null,null,"Composition of spending (% of Total)"]
[null,null,null,null,null,null,"Compensation of employees",{"$f":"IFERROR(H6/H$10,\"\")","v":""},"","","",null,null,null,null,null,null,{"$f":"IF(H12>0.0595,H12,\"\")","v":""},"","",""]
[null,null,null,null,null,null,"Goods and services","","","","",null,null,null,null,null,null,"","","",""]
[null,null,null,null,null,null,"Transfers and subsidies","","","","",null,null,null,null,null,null,"","","",""]
[null,null,null,null,null,null,"Payments for capital assets","","","","",null,null,null,null,null,null,"","","",""]
[]
[null,null,null,null,null,null,"Division of Revenue","2020/21","2021/22","2022/23","2023/24","Trend","2021/22","2022/23","2023/24","Ave Ann"]
[{"$f":"$G$3","v":0},"NAT",null,null,null,null,"National",{"$f":"SUMPRODUCT(((T_DataComboFile[Implementation programme]=$G$3)*(T_DataComboFile[DOR]=$B18))*T_DataComboFile[2020/21 Revised])","v":2331086},{"$f":"SUMPRODUCT(((T_DataComboFile[Implementation programme]=$G$3)*(T_DataComboFile[DOR]=$B18))*T_DataComboFile[2021/22 Revised baseline])","v":2583809},{"$f":"SUMPRODUCT(((T_DataComboFile[Implementation programme]=$G$3)*(T_DataComboFile[DOR]=$B18))*T_DataComboFile[2022/23 Revised baseline])","v":2617960},{"$f":"SUMPRODUCT(((T_DataComboFile[Implementation programme]=$G$3)*(T_DataComboFile[DOR]=$B18))*T_DataComboFile[2023/24 Revised baseline])","v":2733345},null,{"$f":"IFERROR(I18/H18-1,0)","v":0.10841427557799244},{"$f":"IFERROR(J18/I18-1,0)","v":1.3217308245307535E-2},{"$f":"IFERROR(K18/J18-1,0)","v":4.4074393802808309E-2},{"$f":"IFERROR(((K18/H18)^(1/3)-1),0)","v":5.449708876349435E-2}]
[0,null,null,null,null,null,"Provincial",{"$f":"SUM(H20:H21)","v":0},0,0,0,null,0,0,0,0]
[0,"PES",null,null,null,null,"Provincial equitable share",{"$f":"SUMPRODUCT(((T_DataComboFile[Implementation programme]=$G$3)*(T_DataComboFile[DOR]=$B20))*T_DataComboFile[2020/21 Revised])","v":0},{"$f":"SUMPRODUCT(((T_DataComboFile[Implementation programme]=$G$3)*(T_DataComboFile[DOR]=$B20))*T_DataComboFile[2021/22 Revised baseline])","v":0},{"$f":"SUMPRODUCT(((T_DataComboFile[Implementation programme]=$G$3)*(T_DataComboFile[DOR]=$B20))*T_DataComboFile[2022/23 Revised baseline])","v":0},{"$f":"SUMPRODUCT(((T_DataComboFile[Implementation programme]=$G$3)*(T_DataComboFile[DOR]=$B20))*T_DataComboFile[2023/24 Revised baseline])","v":0},null,{"$f":"IFERROR(I20/H20-1,0)","v":0},0,0,{"$f":"IFERROR(((K20/H20)^(1/3)-1),0)","v":0}]
[0,"PCG",null,null,null,null,"Provincial conditional grants",{"$f":"SUMPRODUCT(((T_DataComboFile[Implementation programme]=$G$3)*(T_DataComboFile[DOR]=$B21))*T_DataComboFile[2020/21 Revised])","v":0},{"$f":"SUMPRODUCT(((T_DataComboFile[Implementation programme]=$G$3)*(T_DataComboFile[DOR]=$B21))*T_DataComboFile[2021/22 Revised baseline])","v":0},{"$f":"SUMPRODUCT(((T_DataComboFile[Implementation programme]=$G$3)*(T_DataComboFile[DOR]=$B21))*T_DataComboFile[2022/23 Revised baseline])","v":0},{"$f":"SUMPRODUCT(((T_DataComboFile[Implementation programme]=$G$3)*(T_DataComboFile[DOR]=$B21))*T_DataComboFile[2023/24 Revised baseline])","v":0},null,0,0,0,0]
[0,null,null,null,null,null,"Local government",{"$f":"SUM(H23:H25)","v":0},0,0,0,null,{"$f":"IFERROR(I22/H22-1,0)","v":0},{"$f":"IFERROR(J22/I22-1,0)","v":0},{"$f":"IFERROR(K22/J22-1,0)","v":0},{"$f":"IFERROR(((K22/H22)^(1/3)-1),0)","v":0}]
[0,"LES",null,null,null,null,"Local equitable share",{"$f":"SUMPRODUCT(((T_DataComboFile[Implementation programme]=$G$3)*(T_DataComboFile[DOR]=$B23))*T_DataComboFile[2020/21 Revised])","v":0},{"$f":"SUMPRODUCT(((T_DataComboFile[Implementation programme]=$G$3)*(T_DataComboFile[DOR]=$B23))*T_DataComboFile[2021/22 Revised baseline])","v":0},{"$f":"SUMPRODUCT(((T_DataComboFile[Implementation programme]=$G$3)*(T_DataComboFile[DOR]=$B23))*T_DataComboFile[2022/23 Revised baseline])","v":0},{"$f":"SUMPRODUCT(((T_DataComboFile[Implementation programme]=$G$3)*(T_DataComboFile[DOR]=$B23))*T_DataComboFile[2023/24 Revised baseline])","v":0},null,{"$f":"IFERROR(I23/H23-1,0)","v":0},0,0,{"$f":"IFERROR(((K23/H23)^(1/3)-1),0)","v":0}]
[0,"LCG",null,null,null,null,"Local conditional grants",{"$f":"SUMPRODUCT(((T_DataComboFile[Implementation programme]=$G$3)*(T_DataComboFile[DOR]=$B24))*T_DataComboFile[2020/21 Revised])","v":0},{"$f":"SUMPRODUCT(((T_DataComboFile[Implementation programme]=$G$3)*(T_DataComboFile[DOR]=$B24))*T_DataComboFile[2021/22 Revised baseline])","v":0},{"$f":"SUMPRODUCT(((T_DataComboFile[Implementation programme]=$G$3)*(T_DataComboFile[DOR]=$B24))*T_DataComboFile[2022/23 Revised baseline])","v":0},{"$f":"SUMPRODUCT(((T_DataComboFile[Implementation programme]=$G$3)*(T_DataComboFile[DOR]=$B24))*T_DataComboFile[2023/24 Revised baseline])","v":0},null,0,0,0,0]
[0,"GFL",null,null,null,null,"General fuel levy ",{"$f":"SUMPRODUCT(((T_DataComboFile[Implementation programme]=$G$3)*(T_DataComboFile[DOR]=$B25))*T_DataComboFile[2020/21 Revised])","v":0},{"$f":"SUMPRODUCT(((T_DataComboFile[Implementation programme]=$G$3)*(T_DataComboFile[DOR]=$B25))*T_DataComboFile[2021/22 Revised baseline])","v":0},{"$f":"SUMPRODUCT(((T_DataComboFile[Implementation programme]=$G$3)*(T_DataComboFile[DOR]=$B25))*T_DataComboFile[2022/23 Revised baseline])","v":0},{"$f":"SUMPRODUCT(((T_DataComboFile[Implementation programme]=$G$3)*(T_DataComboFile[DOR]=$B25))*T_DataComboFile[2023/24 Revised baseline])","v":0},null,0,0,0,0]
[]
[]
[null,null,null,null,null,null,{"$f":"G3","v":0}]
[{"$f":"$G$3","v":0},0,null,null,null,null,null,"2017/18","2018/19","2019/20","2020/21","2021/22",null,null,null,"2022/23",null,null,null,"2023/24"]
[{"$f":"$G$3","v":0},0,null,null,null,null,"Rand thousand","Audited outcome","Audited outcome","Pre-audited outcome","Budget","Baseline","Decrease","Increase","Revised baseline","Baseline","Decrease","Increase","Revised baseline","Baseline","Decrease","Increase","Revised baseline"]
[0,0,null,null,null,null,"Economic classification"]
[0,0,null,null,null,null,"Current payments",{"$f":"SUM(H33:H35)","v":0},0,0,0,0,0,0,0,0,0,0,0,0,0,0,0]
[0,0,null,null,null,null,"Compensation of employees",{"$f":"SUMPRODUCT(((T_DataComboFile[Implementation programme]=$G$3)*(T_DataComboFile[Econ3]=$G33))*T_DataComboFile[2017/18]*$B$3)","v":0},{"$f":"SUMPRODUCT(((T_DataComboFile[Implementation programme]=$G$3)*(T_DataComboFile[Econ3]=$G33))*T_DataComboFile[2018/19]*$B$3)","v":0},{"$f":"SUMPRODUCT(((T_DataComboFile[Implementation programme]=$G$3)*(T_DataComboFile[Econ3]=$G33))*T_DataComboFile[2019/20 Revised estimate]*$B$3)","v":0},{"$f":"SUMPRODUCT(((T_DataComboFile[Implementation programme]=$G$3)*(T_DataComboFile[Econ3]=$G33))*T_DataComboFile[2020/21 Revised]*$B$3)","v":0},{"$f":"SUMPRODUCT(((T_DataComboFile[Implementation programme]=$G$3)*(T_DataComboFile[Econ3]=$G33))*T_DataComboFile[2021/22 Baseline]*$B$3)","v":0},{"$f":"SUMPRODUCT(((T_DataComboFile[Implementation programme]=$G$3)*(T_DataComboFile[Econ3]=$G33))*T_DataComboFile[2021/22 Reduction]*$B$3)","v":0},{"$f":"SUMPRODUCT(((T_DataComboFile[Implementation programme]=$G$3)*(T_DataComboFile[Econ3]=$G33))*T_DataComboFile[2021/22 Increase]*$B$3)","v":0},{"$f":"L33+M33+N33","v":0},{"$f":"SUMPRODUCT(((T_DataComboFile[Implementation programme]=$G$3)*(T_DataComboFile[Econ3]=$G33))*T_DataComboFile[2022/23 Baseline]*$B$3)","v":0},{"$f":"SUMPRODUCT(((T_DataComboFile[Implementation programme]=$G$3)*(T_DataComboFile[Econ3]=$G33))*T_DataComboFile[2022/23 Reduction]*$B$3)","v":0},{"$f":"SUMPRODUCT(((T_DataComboFile[Implementation programme]=$G$3)*(T_DataComboFile[Econ3]=$G33))*T_DataComboFile[2022/23 Increase]*$B$3)","v":0},{"$f":"P33+Q33+R33","v":0},{"$f":"SUMPRODUCT(((T_DataComboFile[Implementation programme]=$G$3)*(T_DataComboFile[Econ3]=$G33))*T_DataComboFile[2023/24 Baseline]*$B$3)","v":0},{"$f":"SUMPRODUCT(((T_DataComboFile[Implementation programme]=$G$3)*(T_DataComboFile[Econ3]=$G33))*T_DataComboFile[2023/24 Reduction]*$B$3)","v":0},{"$f":"SUMPRODUCT(((T_DataComboFile[Implementation programme]=$G$3)*(T_DataComboFile[Econ3]=$G33))*T_DataComboFile[2023/24 Increase]*$B$3)","v":0},{"$f":"T33+U33+V33","v":0}]
[0,0,null,null,null,null,"Goods and services",{"$f":"SUMPRODUCT(((T_DataComboFile[Implementation programme]=$G$3)*(T_DataComboFile[Econ3]=$G34))*T_DataComboFile[2017/18]*$B$3)","v":0},{"$f":"SUMPRODUCT(((T_DataComboFile[Implementation programme]=$G$3)*(T_DataComboFile[Econ3]=$G34))*T_DataComboFile[2018/19]*$B$3)","v":0},{"$f":"SUMPRODUCT(((T_DataComboFile[Implementation programme]=$G$3)*(T_DataComboFile[Econ3]=$G34))*T_DataComboFile[2019/20 Revised estimate]*$B$3)","v":0},{"$f":"SUMPRODUCT(((T_DataComboFile[Implementation programme]=$G$3)*(T_DataComboFile[Econ3]=$G34))*T_DataComboFile[2020/21 Revised]*$B$3)","v":0},{"$f":"SUMPRODUCT(((T_DataComboFile[Implementation programme]=$G$3)*(T_DataComboFile[Econ3]=$G34))*T_DataComboFile[2021/22 Baseline]*$B$3)","v":0},{"$f":"SUMPRODUCT(((T_DataComboFile[Implementation programme]=$G$3)*(T_DataComboFile[Econ3]=$G34))*T_DataComboFile[2021/22 Reduction]*$B$3)","v":0},{"$f":"SUMPRODUCT(((T_DataComboFile[Implementation programme]=$G$3)*(T_DataComboFile[Econ3]=$G34))*T_DataComboFile[2021/22 Increase]*$B$3)","v":0},0,{"$f":"SUMPRODUCT(((T_DataComboFile[Implementation programme]=$G$3)*(T_DataComboFile[Econ3]=$G34))*T_DataComboFile[2022/23 Baseline]*$B$3)","v":0},{"$f":"SUMPRODUCT(((T_DataComboFile[Implementation programme]=$G$3)*(T_DataComboFile[Econ3]=$G34))*T_DataComboFile[2022/23 Reduction]*$B$3)","v":0},{"$f":"SUMPRODUCT(((T_DataComboFile[Implementation programme]=$G$3)*(T_DataComboFile[Econ3]=$G34))*T_DataComboFile[2022/23 Increase]*$B$3)","v":0},0,{"$f":"SUMPRODUCT(((T_DataComboFile[Implementation programme]=$G$3)*(T_DataComboFile[Econ3]=$G34))*T_DataComboFile[2023/24 Baseline]*$B$3)","v":0},{"$f":"SUMPRODUCT(((T_DataComboFile[Implementation programme]=$G$3)*(T_DataComboFile[Econ3]=$G34))*T_DataComboFile[2023/24 Reduction]*$B$3)","v":0},{"$f":"SUMPRODUCT(((T_DataComboFile[Implementation programme]=$G$3)*(T_DataComboFile[Econ3]=$G34))*T_DataComboFile[2023/24 Increase]*$B$3)","v":0},0]
[0,0,null,null,null,null,"Interest and rent on land",{"$f":"SUMPRODUCT(((T_DataComboFile[Implementation programme]=$G$3)*(T_DataComboFile[Econ3]=$G35))*T_DataComboFile[2017/18]*$B$3)","v":0},{"$f":"SUMPRODUCT(((T_DataComboFile[Implementation programme]=$G$3)*(T_DataComboFile[Econ3]=$G35))*T_DataComboFile[2018/19]*$B$3)","v":0},{"$f":"SUMPRODUCT(((T_DataComboFile[Implementation programme]=$G$3)*(T_DataComboFile[Econ3]=$G35))*T_DataComboFile[2019/20 Revised estimate]*$B$3)","v":0},{"$f":"SUMPRODUCT(((T_DataComboFile[Implementation programme]=$G$3)*(T_DataComboFile[Econ3]=$G35))*T_DataComboFile[2020/21 Revised]*$B$3)","v":0},{"$f":"SUMPRODUCT(((T_DataComboFile[Implementation programme]=$G$3)*(T_DataComboFile[Econ3]=$G35))*T_DataComboFile[2021/22 Baseline]*$B$3)","v":0},{"$f":"SUMPRODUCT(((T_DataComboFile[Implementation programme]=$G$3)*(T_DataComboFile[Econ3]=$G35))*T_DataComboFile[2021/22 Reduction]*$B$3)","v":0},{"$f":"SUMPRODUCT(((T_DataComboFile[Implementation programme]=$G$3)*(T_DataComboFile[Econ3]=$G35))*T_DataComboFile[2021/22 Increase]*$B$3)","v":0},0,{"$f":"SUMPRODUCT(((T_DataComboFile[Implementation programme]=$G$3)*(T_DataComboFile[Econ3]=$G35))*T_DataComboFile[2022/23 Baseline]*$B$3)","v":0},{"$f":"SUMPRODUCT(((T_DataComboFile[Implementation programme]=$G$3)*(T_DataComboFile[Econ3]=$G35))*T_DataComboFile[2022/23 Reduction]*$B$3)","v":0},{"$f":"SUMPRODUCT(((T_DataComboFile[Implementation programme]=$G$3)*(T_DataComboFile[Econ3]=$G35))*T_DataComboFile[2022/23 Increase]*$B$3)","v":0},0,{"$f":"SUMPRODUCT(((T_DataComboFile[Implementation programme]=$G$3)*(T_DataComboFile[Econ3]=$G35))*T_DataComboFile[2023/24 Baseline]*$B$3)","v":0},{"$f":"SUMPRODUCT(((T_DataComboFile[Implementation programme]=$G$3)*(T_DataComboFile[Econ3]=$G35))*T_DataComboFile[2023/24 Reduction]*$B$3)","v":0},{"$f":"SUMPRODUCT(((T_DataComboFile[Implementation programme]=$G$3)*(T_DataComboFile[Econ3]=$G35))*T_DataComboFile[2023/24 Increase]*$B$3)","v":0},0]
[0,0,null,null,null,null,"Transfers and subsidies",{"$f":"SUM(H37,H40,H43:H45,H48:H49)","v":0},0,0,0,0,0,0,0,0,0,0,0,0,0,0,0]
[0,0,null,null,null,null,"Provinces and municipalities",{"$f":"SUM(H38:H39)","v":0},0,0,0,0,0,0,0,0,0,0,0,0,0,0,0]
[0,0,null,null,null,null,"Provinces",{"$f":"SUMPRODUCT(((T_DataComboFile[Implementation programme]=$G$3)*(T_DataComboFile[Econ4]=$G38))*T_DataComboFile[2017/18]*$B$3)","v":0},{"$f":"SUMPRODUCT(((T_DataComboFile[Implementation programme]=$G$3)*(T_DataComboFile[Econ4]=$G38))*T_DataComboFile[2018/19]*$B$3)","v":0},{"$f":"SUMPRODUCT(((T_DataComboFile[Implementation programme]=$G$3)*(T_DataComboFile[Econ4]=$G38))*T_DataComboFile[2019/20 Revised estimate]*$B$3)","v":0},{"$f":"SUMPRODUCT(((T_DataComboFile[Implementation programme]=$G$3)*(T_DataComboFile[Econ4]=$G38))*T_DataComboFile[2020/21 Revised]*$B$3)","v":0},{"$f":"SUMPRODUCT(((T_DataComboFile[Implementation programme]=$G$3)*(T_DataComboFile[Econ4]=$G38))*T_DataComboFile[2021/22 Baseline]*$B$3)","v":0},{"$f":"SUMPRODUCT(((T_DataComboFile[Implementation programme]=$G$3)*(T_DataComboFile[Econ4]=$G38))*T_DataComboFile[2021/22 Reduction]*$B$3)","v":0},{"$f":"SUMPRODUCT(((T_DataComboFile[Implementation programme]=$G$3)*(T_DataComboFile[Econ4]=$G38))*T_DataComboFile[2021/22 Increase]*$B$3)","v":0},{"$f":"L38+M38+N38","v":0},{"$f":"SUMPRODUCT(((T_DataComboFile[Implementation programme]=$G$3)*(T_DataComboFile[Econ4]=$G38))*T_DataComboFile[2022/23 Baseline]*$B$3)","v":0},{"$f":"SUMPRODUCT(((T_DataComboFile[Implementation programme]=$G$3)*(T_DataComboFile[Econ4]=$G38))*T_DataComboFile[2022/23 Reduction]*$B$3)","v":0},{"$f":"SUMPRODUCT(((T_DataComboFile[Implementation programme]=$G$3)*(T_DataComboFile[Econ4]=$G38))*T_DataComboFile[2022/23 Increase]*$B$3)","v":0},{"$f":"P38+Q38+R38","v":0},{"$f":"SUMPRODUCT(((T_DataComboFile[Implementation programme]=$G$3)*(T_DataComboFile[Econ4]=$G38))*T_DataComboFile[2023/24 Baseline]*$B$3)","v":0},{"$f":"SUMPRODUCT(((T_DataComboFile[Implementation programme]=$G$3)*(T_DataComboFile[Econ4]=$G38))*T_DataComboFile[2023/24 Reduction]*$B$3)","v":0},{"$f":"SUMPRODUCT(((T_DataComboFile[Implementation programme]=$G$3)*(T_DataComboFile[Econ4]=$G38))*T_DataComboFile[2023/24 Increase]*$B$3)","v":0},{"$f":"T38+U38+V38","v":0}]
[0,0,null,null,null,null,"Municipalities",{"$f":"SUMPRODUCT(((T_DataComboFile[Implementation programme]=$G$3)*(T_DataComboFile[Econ4]=$G39))*T_DataComboFile[2017/18]*$B$3)","v":0},{"$f":"SUMPRODUCT(((T_DataComboFile[Implementation programme]=$G$3)*(T_DataComboFile[Econ4]=$G39))*T_DataComboFile[2018/19]*$B$3)","v":0},{"$f":"SUMPRODUCT(((T_DataComboFile[Implementation programme]=$G$3)*(T_DataComboFile[Econ4]=$G39))*T_DataComboFile[2019/20 Revised estimate]*$B$3)","v":0},{"$f":"SUMPRODUCT(((T_DataComboFile[Implementation programme]=$G$3)*(T_DataComboFile[Econ4]=$G39))*T_DataComboFile[2020/21 Revised]*$B$3)","v":0},{"$f":"SUMPRODUCT(((T_DataComboFile[Implementation programme]=$G$3)*(T_DataComboFile[Econ4]=$G39))*T_DataComboFile[2021/22 Baseline]*$B$3)","v":0},{"$f":"SUMPRODUCT(((T_DataComboFile[Implementation programme]=$G$3)*(T_DataComboFile[Econ4]=$G39))*T_DataComboFile[2021/22 Reduction]*$B$3)","v":0},{"$f":"SUMPRODUCT(((T_DataComboFile[Implementation programme]=$G$3)*(T_DataComboFile[Econ4]=$G39))*T_DataComboFile[2021/22 Increase]*$B$3)","v":0},0,{"$f":"SUMPRODUCT(((T_DataComboFile[Implementation programme]=$G$3)*(T_DataComboFile[Econ4]=$G39))*T_DataComboFile[2022/23 Baseline]*$B$3)","v":0},{"$f":"SUMPRODUCT(((T_DataComboFile[Implementation programme]=$G$3)*(T_DataComboFile[Econ4]=$G39))*T_DataComboFile[2022/23 Reduction]*$B$3)","v":0},{"$f":"SUMPRODUCT(((T_DataComboFile[Implementation programme]=$G$3)*(T_DataComboFile[Econ4]=$G39))*T_DataComboFile[2022/23 Increase]*$B$3)","v":0},0,{"$f":"SUMPRODUCT(((T_DataComboFile[Implementation programme]=$G$3)*(T_DataComboFile[Econ4]=$G39))*T_DataComboFile[2023/24 Baseline]*$B$3)","v":0},{"$f":"SUMPRODUCT(((T_DataComboFile[Implementation programme]=$G$3)*(T_DataComboFile[Econ4]=$G39))*T_DataComboFile[2023/24 Reduction]*$B$3)","v":0},{"$f":"SUMPRODUCT(((T_DataComboFile[Implementation programme]=$G$3)*(T_DataComboFile[Econ4]=$G39))*T_DataComboFile[2023/24 Increase]*$B$3)","v":0},0]
[0,0,null,null,null,null,"Departmental agencies and accounts",{"$f":"SUM(H41:H42)","v":0},0,0,0,0,0,0,0,0,0,0,0,0,0,0,0]
[0,0,null,null,null,null,"Social security funds",{"$f":"SUMPRODUCT(((T_DataComboFile[Implementation programme]=$G$3)*(T_DataComboFile[Econ4]=$G41))*T_DataComboFile[2017/18]*$B$3)","v":0},{"$f":"SUMPRODUCT(((T_DataComboFile[Implementation programme]=$G$3)*(T_DataComboFile[Econ4]=$G41))*T_DataComboFile[2018/19]*$B$3)","v":0},{"$f":"SUMPRODUCT(((T_DataComboFile[Implementation programme]=$G$3)*(T_DataComboFile[Econ4]=$G41))*T_DataComboFile[2019/20 Revised estimate]*$B$3)","v":0},{"$f":"SUMPRODUCT(((T_DataComboFile[Implementation programme]=$G$3)*(T_DataComboFile[Econ4]=$G41))*T_DataComboFile[2020/21 Revised]*$B$3)","v":0},{"$f":"SUMPRODUCT(((T_DataComboFile[Implementation programme]=$G$3)*(T_DataComboFile[Econ4]=$G41))*T_DataComboFile[2021/22 Baseline]*$B$3)","v":0},{"$f":"SUMPRODUCT(((T_DataComboFile[Implementation programme]=$G$3)*(T_DataComboFile[Econ4]=$G41))*T_DataComboFile[2021/22 Reduction]*$B$3)","v":0},{"$f":"SUMPRODUCT(((T_DataComboFile[Implementation programme]=$G$3)*(T_DataComboFile[Econ4]=$G41))*T_DataComboFile[2021/22 Increase]*$B$3)","v":0},{"$f":"L41+M41+N41","v":0},{"$f":"SUMPRODUCT(((T_DataComboFile[Implementation programme]=$G$3)*(T_DataComboFile[Econ4]=$G41))*T_DataComboFile[2022/23 Baseline]*$B$3)","v":0},{"$f":"SUMPRODUCT(((T_DataComboFile[Implementation programme]=$G$3)*(T_DataComboFile[Econ4]=$G41))*T_DataComboFile[2022/23 Reduction]*$B$3)","v":0},{"$f":"SUMPRODUCT(((T_DataComboFile[Implementation programme]=$G$3)*(T_DataComboFile[Econ4]=$G41))*T_DataComboFile[2022/23 Increase]*$B$3)","v":0},{"$f":"P41+Q41+R41","v":0},{"$f":"SUMPRODUCT(((T_DataComboFile[Implementation programme]=$G$3)*(T_DataComboFile[Econ4]=$G41))*T_DataComboFile[2023/24 Baseline]*$B$3)","v":0},{"$f":"SUMPRODUCT(((T_DataComboFile[Implementation programme]=$G$3)*(T_DataComboFile[Econ4]=$G41))*T_DataComboFile[2023/24 Reduction]*$B$3)","v":0},{"$f":"SUMPRODUCT(((T_DataComboFile[Implementation programme]=$G$3)*(T_DataComboFile[Econ4]=$G41))*T_DataComboFile[2023/24 Increase]*$B$3)","v":0},{"$f":"T41+U41+V41","v":0}]
[0,0,null,null,null,null,"Departmental agencies (non-business entities)",{"$f":"SUMPRODUCT(((T_DataComboFile[Implementation programme]=$G$3)*(T_DataComboFile[Econ4]=$G42))*T_DataComboFile[2017/18]*$B$3)","v":0},{"$f":"SUMPRODUCT(((T_DataComboFile[Implementation programme]=$G$3)*(T_DataComboFile[Econ4]=$G42))*T_DataComboFile[2018/19]*$B$3)","v":0},{"$f":"SUMPRODUCT(((T_DataComboFile[Implementation programme]=$G$3)*(T_DataComboFile[Econ4]=$G42))*T_DataComboFile[2019/20 Revised estimate]*$B$3)","v":0},{"$f":"SUMPRODUCT(((T_DataComboFile[Implementation programme]=$G$3)*(T_DataComboFile[Econ4]=$G42))*T_DataComboFile[2020/21 Revised]*$B$3)","v":0},{"$f":"SUMPRODUCT(((T_DataComboFile[Implementation programme]=$G$3)*(T_DataComboFile[Econ4]=$G42))*T_DataComboFile[2021/22 Baseline]*$B$3)","v":0},{"$f":"SUMPRODUCT(((T_DataComboFile[Implementation programme]=$G$3)*(T_DataComboFile[Econ4]=$G42))*T_DataComboFile[2021/22 Reduction]*$B$3)","v":0},{"$f":"SUMPRODUCT(((T_DataComboFile[Implementation programme]=$G$3)*(T_DataComboFile[Econ4]=$G42))*T_DataComboFile[2021/22 Increase]*$B$3)","v":0},0,{"$f":"SUMPRODUCT(((T_DataComboFile[Implementation programme]=$G$3)*(T_DataComboFile[Econ4]=$G42))*T_DataComboFile[2022/23 Baseline]*$B$3)","v":0},{"$f":"SUMPRODUCT(((T_DataComboFile[Implementation programme]=$G$3)*(T_DataComboFile[Econ4]=$G42))*T_DataComboFile[2022/23 Reduction]*$B$3)","v":0},{"$f":"SUMPRODUCT(((T_DataComboFile[Implementation programme]=$G$3)*(T_DataComboFile[Econ4]=$G42))*T_DataComboFile[2022/23 Increase]*$B$3)","v":0},0,{"$f":"SUMPRODUCT(((T_DataComboFile[Implementation programme]=$G$3)*(T_DataComboFile[Econ4]=$G42))*T_DataComboFile[2023/24 Baseline]*$B$3)","v":0},{"$f":"SUMPRODUCT(((T_DataComboFile[Implementation programme]=$G$3)*(T_DataComboFile[Econ4]=$G42))*T_DataComboFile[2023/24 Reduction]*$B$3)","v":0},{"$f":"SUMPRODUCT(((T_DataComboFile[Implementation programme]=$G$3)*(T_DataComboFile[Econ4]=$G42))*T_DataComboFile[2023/24 Increase]*$B$3)","v":0},0]
[0,0,null,null,null,null,"Higher education institutions",{"$f":"SUMPRODUCT(((T_DataComboFile[Implementation programme]=$G$3)*(T_DataComboFile[Econ3]=$G43))*T_DataComboFile[2017/18]*$B$3)","v":0},{"$f":"SUMPRODUCT(((T_DataComboFile[Implementation programme]=$G$3)*(T_DataComboFile[Econ3]=$G43))*T_DataComboFile[2018/19]*$B$3)","v":0},{"$f":"SUMPRODUCT(((T_DataComboFile[Implementation programme]=$G$3)*(T_DataComboFile[Econ3]=$G43))*T_DataComboFile[2019/20 Revised estimate]*$B$3)","v":0},{"$f":"SUMPRODUCT(((T_DataComboFile[Implementation programme]=$G$3)*(T_DataComboFile[Econ3]=$G43))*T_DataComboFile[2020/21 Revised]*$B$3)","v":0},{"$f":"SUMPRODUCT(((T_DataComboFile[Implementation programme]=$G$3)*(T_DataComboFile[Econ3]=$G43))*T_DataComboFile[2021/22 Baseline]*$B$3)","v":0},{"$f":"SUMPRODUCT(((T_DataComboFile[Implementation programme]=$G$3)*(T_DataComboFile[Econ3]=$G43))*T_DataComboFile[2021/22 Reduction]*$B$3)","v":0},{"$f":"SUMPRODUCT(((T_DataComboFile[Implementation programme]=$G$3)*(T_DataComboFile[Econ3]=$G43))*T_DataComboFile[2021/22 Increase]*$B$3)","v":0},0,{"$f":"SUMPRODUCT(((T_DataComboFile[Implementation programme]=$G$3)*(T_DataComboFile[Econ3]=$G43))*T_DataComboFile[2022/23 Baseline]*$B$3)","v":0},{"$f":"SUMPRODUCT(((T_DataComboFile[Implementation programme]=$G$3)*(T_DataComboFile[Econ3]=$G43))*T_DataComboFile[2022/23 Reduction]*$B$3)","v":0},{"$f":"SUMPRODUCT(((T_DataComboFile[Implementation programme]=$G$3)*(T_DataComboFile[Econ3]=$G43))*T_DataComboFile[2022/23 Increase]*$B$3)","v":0},0,{"$f":"SUMPRODUCT(((T_DataComboFile[Implementation programme]=$G$3)*(T_DataComboFile[Econ3]=$G43))*T_DataComboFile[2023/24 Baseline]*$B$3)","v":0},{"$f":"SUMPRODUCT(((T_DataComboFile[Implementation programme]=$G$3)*(T_DataComboFile[Econ3]=$G43))*T_DataComboFile[2023/24 Reduction]*$B$3)","v":0},{"$f":"SUMPRODUCT(((T_DataComboFile[Implementation programme]=$G$3)*(T_DataComboFile[Econ3]=$G43))*T_DataComboFile[2023/24 Increase]*$B$3)","v":0},0]
[0,0,null,null,null,null,"Foreign governments and international organisations",{"$f":"SUMPRODUCT(((T_DataComboFile[Implementation programme]=$G$3)*(T_DataComboFile[Econ3]=$G44))*T_DataComboFile[2017/18]*$B$3)","v":0},{"$f":"SUMPRODUCT(((T_DataComboFile[Implementation programme]=$G$3)*(T_DataComboFile[Econ3]=$G44))*T_DataComboFile[2018/19]*$B$3)","v":0},{"$f":"SUMPRODUCT(((T_DataComboFile[Implementation programme]=$G$3)*(T_DataComboFile[Econ3]=$G44))*T_DataComboFile[2019/20 Revised estimate]*$B$3)","v":0},{"$f":"SUMPRODUCT(((T_DataComboFile[Implementation programme]=$G$3)*(T_DataComboFile[Econ3]=$G44))*T_DataComboFile[2020/21 Revised]*$B$3)","v":0},{"$f":"SUMPRODUCT(((T_DataComboFile[Implementation programme]=$G$3)*(T_DataComboFile[Econ3]=$G44))*T_DataComboFile[2021/22 Baseline]*$B$3)","v":0},{"$f":"SUMPRODUCT(((T_DataComboFile[Implementation programme]=$G$3)*(T_DataComboFile[Econ3]=$G44))*T_DataComboFile[2021/22 Reduction]*$B$3)","v":0},{"$f":"SUMPRODUCT(((T_DataComboFile[Implementation programme]=$G$3)*(T_DataComboFile[Econ3]=$G44))*T_DataComboFile[2021/22 Increase]*$B$3)","v":0},0,{"$f":"SUMPRODUCT(((T_DataComboFile[Implementation programme]=$G$3)*(T_DataComboFile[Econ3]=$G44))*T_DataComboFile[2022/23 Baseline]*$B$3)","v":0},{"$f":"SUMPRODUCT(((T_DataComboFile[Implementation programme]=$G$3)*(T_DataComboFile[Econ3]=$G44))*T_DataComboFile[2022/23 Reduction]*$B$3)","v":0},{"$f":"SUMPRODUCT(((T_DataComboFile[Implementation programme]=$G$3)*(T_DataComboFile[Econ3]=$G44))*T_DataComboFile[2022/23 Increase]*$B$3)","v":0},0,{"$f":"SUMPRODUCT(((T_DataComboFile[Implementation programme]=$G$3)*(T_DataComboFile[Econ3]=$G44))*T_DataComboFile[2023/24 Baseline]*$B$3)","v":0},{"$f":"SUMPRODUCT(((T_DataComboFile[Implementation programme]=$G$3)*(T_DataComboFile[Econ3]=$G44))*T_DataComboFile[2023/24 Reduction]*$B$3)","v":0},{"$f":"SUMPRODUCT(((T_DataComboFile[Implementation programme]=$G$3)*(T_DataComboFile[Econ3]=$G44))*T_DataComboFile[2023/24 Increase]*$B$3)","v":0},0]
[0,0,null,null,null,null,"Public corporations and private enterprises",{"$f":"SUM(H46:H47)","v":0},0,0,0,0,0,0,0,0,0,0,0,0,0,0,0]
[0,0,null,null,null,null,"Public corporations",{"$f":"SUMPRODUCT(((T_DataComboFile[Implementation programme]=$G$3)*(T_DataComboFile[Econ4]=$G46))*T_DataComboFile[2017/18]*$B$3)","v":0},{"$f":"SUMPRODUCT(((T_DataComboFile[Implementation programme]=$G$3)*(T_DataComboFile[Econ4]=$G46))*T_DataComboFile[2018/19]*$B$3)","v":0},{"$f":"SUMPRODUCT(((T_DataComboFile[Implementation programme]=$G$3)*(T_DataComboFile[Econ4]=$G46))*T_DataComboFile[2019/20 Revised estimate]*$B$3)","v":0},{"$f":"SUMPRODUCT(((T_DataComboFile[Implementation programme]=$G$3)*(T_DataComboFile[Econ4]=$G46))*T_DataComboFile[2020/21 Revised]*$B$3)","v":0},{"$f":"SUMPRODUCT(((T_DataComboFile[Implementation programme]=$G$3)*(T_DataComboFile[Econ4]=$G46))*T_DataComboFile[2021/22 Baseline]*$B$3)","v":0},{"$f":"SUMPRODUCT(((T_DataComboFile[Implementation programme]=$G$3)*(T_DataComboFile[Econ4]=$G46))*T_DataComboFile[2021/22 Reduction]*$B$3)","v":0},{"$f":"SUMPRODUCT(((T_DataComboFile[Implementation programme]=$G$3)*(T_DataComboFile[Econ4]=$G46))*T_DataComboFile[2021/22 Increase]*$B$3)","v":0},{"$f":"L46+M46+N46","v":0},{"$f":"SUMPRODUCT(((T_DataComboFile[Implementation programme]=$G$3)*(T_DataComboFile[Econ4]=$G46))*T_DataComboFile[2022/23 Baseline]*$B$3)","v":0},{"$f":"SUMPRODUCT(((T_DataComboFile[Implementation programme]=$G$3)*(T_DataComboFile[Econ4]=$G46))*T_DataComboFile[2022/23 Reduction]*$B$3)","v":0},{"$f":"SUMPRODUCT(((T_DataComboFile[Implementation programme]=$G$3)*(T_DataComboFile[Econ4]=$G46))*T_DataComboFile[2022/23 Increase]*$B$3)","v":0},{"$f":"P46+Q46+R46","v":0},{"$f":"SUMPRODUCT(((T_DataComboFile[Implementation programme]=$G$3)*(T_DataComboFile[Econ4]=$G46))*T_DataComboFile[2023/24 Baseline]*$B$3)","v":0},{"$f":"SUMPRODUCT(((T_DataComboFile[Implementation programme]=$G$3)*(T_DataComboFile[Econ4]=$G46))*T_DataComboFile[2023/24 Reduction]*$B$3)","v":0},{"$f":"SUMPRODUCT(((T_DataComboFile[Implementation programme]=$G$3)*(T_DataComboFile[Econ4]=$G46))*T_DataComboFile[2023/24 Increase]*$B$3)","v":0},{"$f":"T46+U46+V46","v":0}]
[0,0,null,null,null,null,"Private enterprises",{"$f":"SUMPRODUCT(((T_DataComboFile[Implementation programme]=$G$3)*(T_DataComboFile[Econ4]=$G47))*T_DataComboFile[2017/18]*$B$3)","v":0},{"$f":"SUMPRODUCT(((T_DataComboFile[Implementation programme]=$G$3)*(T_DataComboFile[Econ4]=$G47))*T_DataComboFile[2018/19]*$B$3)","v":0},{"$f":"SUMPRODUCT(((T_DataComboFile[Implementation programme]=$G$3)*(T_DataComboFile[Econ4]=$G47))*T_DataComboFile[2019/20 Revised estimate]*$B$3)","v":0},{"$f":"SUMPRODUCT(((T_DataComboFile[Implementation programme]=$G$3)*(T_DataComboFile[Econ4]=$G47))*T_DataComboFile[2020/21 Revised]*$B$3)","v":0},{"$f":"SUMPRODUCT(((T_DataComboFile[Implementation programme]=$G$3)*(T_DataComboFile[Econ4]=$G47))*T_DataComboFile[2021/22 Baseline]*$B$3)","v":0},{"$f":"SUMPRODUCT(((T_DataComboFile[Implementation programme]=$G$3)*(T_DataComboFile[Econ4]=$G47))*T_DataComboFile[2021/22 Reduction]*$B$3)","v":0},{"$f":"SUMPRODUCT(((T_DataComboFile[Implementation programme]=$G$3)*(T_DataComboFile[Econ4]=$G47))*T_DataComboFile[2021/22 Increase]*$B$3)","v":0},0,{"$f":"SUMPRODUCT(((T_DataComboFile[Implementation programme]=$G$3)*(T_DataComboFile[Econ4]=$G47))*T_DataComboFile[2022/23 Baseline]*$B$3)","v":0},{"$f":"SUMPRODUCT(((T_DataComboFile[Implementation programme]=$G$3)*(T_DataComboFile[Econ4]=$G47))*T_DataComboFile[2022/23 Reduction]*$B$3)","v":0},{"$f":"SUMPRODUCT(((T_DataComboFile[Implementation programme]=$G$3)*(T_DataComboFile[Econ4]=$G47))*T_DataComboFile[2022/23 Increase]*$B$3)","v":0},0,{"$f":"SUMPRODUCT(((T_DataComboFile[Implementation programme]=$G$3)*(T_DataComboFile[Econ4]=$G47))*T_DataComboFile[2023/24 Baseline]*$B$3)","v":0},{"$f":"SUMPRODUCT(((T_DataComboFile[Implementation programme]=$G$3)*(T_DataComboFile[Econ4]=$G47))*T_DataComboFile[2023/24 Reduction]*$B$3)","v":0},{"$f":"SUMPRODUCT(((T_DataComboFile[Implementation programme]=$G$3)*(T_DataComboFile[Econ4]=$G47))*T_DataComboFile[2023/24 Increase]*$B$3)","v":0},0]
[0,0,null,null,null,null,"Non-profit institutions",{"$f":"SUMPRODUCT(((T_DataComboFile[Implementation programme]=$G$3)*(T_DataComboFile[Econ3]=$G48))*T_DataComboFile[2017/18]*$B$3)","v":0},{"$f":"SUMPRODUCT(((T_DataComboFile[Implementation programme]=$G$3)*(T_DataComboFile[Econ3]=$G48))*T_DataComboFile[2018/19]*$B$3)","v":0},{"$f":"SUMPRODUCT(((T_DataComboFile[Implementation programme]=$G$3)*(T_DataComboFile[Econ3]=$G48))*T_DataComboFile[2019/20 Revised estimate]*$B$3)","v":0},{"$f":"SUMPRODUCT(((T_DataComboFile[Implementation programme]=$G$3)*(T_DataComboFile[Econ3]=$G48))*T_DataComboFile[2020/21 Revised]*$B$3)","v":0},{"$f":"SUMPRODUCT(((T_DataComboFile[Implementation programme]=$G$3)*(T_DataComboFile[Econ3]=$G48))*T_DataComboFile[2021/22 Baseline]*$B$3)","v":0},{"$f":"SUMPRODUCT(((T_DataComboFile[Implementation programme]=$G$3)*(T_DataComboFile[Econ3]=$G48))*T_DataComboFile[2021/22 Reduction]*$B$3)","v":0},{"$f":"SUMPRODUCT(((T_DataComboFile[Implementation programme]=$G$3)*(T_DataComboFile[Econ3]=$G48))*T_DataComboFile[2021/22 Increase]*$B$3)","v":0},0,{"$f":"SUMPRODUCT(((T_DataComboFile[Implementation programme]=$G$3)*(T_DataComboFile[Econ3]=$G48))*T_DataComboFile[2022/23 Baseline]*$B$3)","v":0},{"$f":"SUMPRODUCT(((T_DataComboFile[Implementation programme]=$G$3)*(T_DataComboFile[Econ3]=$G48))*T_DataComboFile[2022/23 Reduction]*$B$3)","v":0},{"$f":"SUMPRODUCT(((T_DataComboFile[Implementation programme]=$G$3)*(T_DataComboFile[Econ3]=$G48))*T_DataComboFile[2022/23 Increase]*$B$3)","v":0},0,{"$f":"SUMPRODUCT(((T_DataComboFile[Implementation programme]=$G$3)*(T_DataComboFile[Econ3]=$G48))*T_DataComboFile[2023/24 Baseline]*$B$3)","v":0},{"$f":"SUMPRODUCT(((T_DataComboFile[Implementation programme]=$G$3)*(T_DataComboFile[Econ3]=$G48))*T_DataComboFile[2023/24 Reduction]*$B$3)","v":0},{"$f":"SUMPRODUCT(((T_DataComboFile[Implementation programme]=$G$3)*(T_DataComboFile[Econ3]=$G48))*T_DataComboFile[2023/24 Increase]*$B$3)","v":0},0]
[0,0,null,null,null,null,"Households",{"$f":"SUM(H50:H51)","v":0},0,0,0,0,0,0,0,0,0,0,0,0,0,0,0]
[0,0,null,null,null,null,"Social benefits",{"$f":"SUMPRODUCT(((T_DataComboFile[Implementation programme]=$G$3)*(T_DataComboFile[Econ4]=$G50))*T_DataComboFile[2017/18]*$B$3)","v":0},{"$f":"SUMPRODUCT(((T_DataComboFile[Implementation programme]=$G$3)*(T_DataComboFile[Econ4]=$G50))*T_DataComboFile[2018/19]*$B$3)","v":0},{"$f":"SUMPRODUCT(((T_DataComboFile[Implementation programme]=$G$3)*(T_DataComboFile[Econ4]=$G50))*T_DataComboFile[2019/20 Revised estimate]*$B$3)","v":0},{"$f":"SUMPRODUCT(((T_DataComboFile[Implementation programme]=$G$3)*(T_DataComboFile[Econ4]=$G50))*T_DataComboFile[2020/21 Revised]*$B$3)","v":0},{"$f":"SUMPRODUCT(((T_DataComboFile[Implementation programme]=$G$3)*(T_DataComboFile[Econ4]=$G50))*T_DataComboFile[2021/22 Baseline]*$B$3)","v":0},{"$f":"SUMPRODUCT(((T_DataComboFile[Implementation programme]=$G$3)*(T_DataComboFile[Econ4]=$G50))*T_DataComboFile[2021/22 Reduction]*$B$3)","v":0},{"$f":"SUMPRODUCT(((T_DataComboFile[Implementation programme]=$G$3)*(T_DataComboFile[Econ4]=$G50))*T_DataComboFile[2021/22 Increase]*$B$3)","v":0},{"$f":"L50+M50+N50","v":0},{"$f":"SUMPRODUCT(((T_DataComboFile[Implementation programme]=$G$3)*(T_DataComboFile[Econ4]=$G50))*T_DataComboFile[2022/23 Baseline]*$B$3)","v":0},{"$f":"SUMPRODUCT(((T_DataComboFile[Implementation programme]=$G$3)*(T_DataComboFile[Econ4]=$G50))*T_DataComboFile[2022/23 Reduction]*$B$3)","v":0},{"$f":"SUMPRODUCT(((T_DataComboFile[Implementation programme]=$G$3)*(T_DataComboFile[Econ4]=$G50))*T_DataComboFile[2022/23 Increase]*$B$3)","v":0},{"$f":"P50+Q50+R50","v":0},{"$f":"SUMPRODUCT(((T_DataComboFile[Implementation programme]=$G$3)*(T_DataComboFile[Econ4]=$G50))*T_DataComboFile[2023/24 Baseline]*$B$3)","v":0},{"$f":"SUMPRODUCT(((T_DataComboFile[Implementation programme]=$G$3)*(T_DataComboFile[Econ4]=$G50))*T_DataComboFile[2023/24 Reduction]*$B$3)","v":0},{"$f":"SUMPRODUCT(((T_DataComboFile[Implementation programme]=$G$3)*(T_DataComboFile[Econ4]=$G50))*T_DataComboFile[2023/24 Increase]*$B$3)","v":0},{"$f":"T50+U50+V50","v":0}]
[0,0,null,null,null,null,"Other transfers to households",{"$f":"SUMPRODUCT(((T_DataComboFile[Implementation programme]=$G$3)*(T_DataComboFile[Econ4]=$G51))*T_DataComboFile[2017/18]*$B$3)","v":0},{"$f":"SUMPRODUCT(((T_DataComboFile[Implementation programme]=$G$3)*(T_DataComboFile[Econ4]=$G51))*T_DataComboFile[2018/19]*$B$3)","v":0},{"$f":"SUMPRODUCT(((T_DataComboFile[Implementation programme]=$G$3)*(T_DataComboFile[Econ4]=$G51))*T_DataComboFile[2019/20 Revised estimate]*$B$3)","v":0},{"$f":"SUMPRODUCT(((T_DataComboFile[Implementation programme]=$G$3)*(T_DataComboFile[Econ4]=$G51))*T_DataComboFile[2020/21 Revised]*$B$3)","v":0},{"$f":"SUMPRODUCT(((T_DataComboFile[Implementation programme]=$G$3)*(T_DataComboFile[Econ4]=$G51))*T_DataComboFile[2021/22 Baseline]*$B$3)","v":0},{"$f":"SUMPRODUCT(((T_DataComboFile[Implementation programme]=$G$3)*(T_DataComboFile[Econ4]=$G51))*T_DataComboFile[2021/22 Reduction]*$B$3)","v":0},{"$f":"SUMPRODUCT(((T_DataComboFile[Implementation programme]=$G$3)*(T_DataComboFile[Econ4]=$G51))*T_DataComboFile[2021/22 Increase]*$B$3)","v":0},0,{"$f":"SUMPRODUCT(((T_DataComboFile[Implementation programme]=$G$3)*(T_DataComboFile[Econ4]=$G51))*T_DataComboFile[2022/23 Baseline]*$B$3)","v":0},{"$f":"SUMPRODUCT(((T_DataComboFile[Implementation programme]=$G$3)*(T_DataComboFile[Econ4]=$G51))*T_DataComboFile[2022/23 Reduction]*$B$3)","v":0},{"$f":"SUMPRODUCT(((T_DataComboFile[Implementation programme]=$G$3)*(T_DataComboFile[Econ4]=$G51))*T_DataComboFile[2022/23 Increase]*$B$3)","v":0},0,{"$f":"SUMPRODUCT(((T_DataComboFile[Implementation programme]=$G$3)*(T_DataComboFile[Econ4]=$G51))*T_DataComboFile[2023/24 Baseline]*$B$3)","v":0},{"$f":"SUMPRODUCT(((T_DataComboFile[Implementation programme]=$G$3)*(T_DataComboFile[Econ4]=$G51))*T_DataComboFile[2023/24 Reduction]*$B$3)","v":0},{"$f":"SUMPRODUCT(((T_DataComboFile[Implementation programme]=$G$3)*(T_DataComboFile[Econ4]=$G51))*T_DataComboFile[2023/24 Increase]*$B$3)","v":0},0]
[0,0,null,null,null,null,"Payments for capital assets",{"$f":"SUM(H53,H56,H59:H63)","v":0},0,0,0,0,0,0,0,0,0,0,0,0,0,0,0]
[0,0,null,null,null,null,"Buildings and other fixed structures",{"$f":"SUM(H54:H55)","v":0},0,0,0,0,0,0,0,0,0,0,0,0,0,0,0]
[0,0,null,null,null,null,"Buildings",{"$f":"SUMPRODUCT(((T_DataComboFile[Implementation programme]=$G$3)*(T_DataComboFile[Econ4]=$G54))*T_DataComboFile[2017/18]*$B$3)","v":0},{"$f":"SUMPRODUCT(((T_DataComboFile[Implementation programme]=$G$3)*(T_DataComboFile[Econ4]=$G54))*T_DataComboFile[2018/19]*$B$3)","v":0},{"$f":"SUMPRODUCT(((T_DataComboFile[Implementation programme]=$G$3)*(T_DataComboFile[Econ4]=$G54))*T_DataComboFile[2019/20 Revised estimate]*$B$3)","v":0},{"$f":"SUMPRODUCT(((T_DataComboFile[Implementation programme]=$G$3)*(T_DataComboFile[Econ4]=$G54))*T_DataComboFile[2020/21 Revised]*$B$3)","v":0},{"$f":"SUMPRODUCT(((T_DataComboFile[Implementation programme]=$G$3)*(T_DataComboFile[Econ4]=$G54))*T_DataComboFile[2021/22 Baseline]*$B$3)","v":0},{"$f":"SUMPRODUCT(((T_DataComboFile[Implementation programme]=$G$3)*(T_DataComboFile[Econ4]=$G54))*T_DataComboFile[2021/22 Reduction]*$B$3)","v":0},{"$f":"SUMPRODUCT(((T_DataComboFile[Implementation programme]=$G$3)*(T_DataComboFile[Econ4]=$G54))*T_DataComboFile[2021/22 Increase]*$B$3)","v":0},{"$f":"L54+M54+N54","v":0},{"$f":"SUMPRODUCT(((T_DataComboFile[Implementation programme]=$G$3)*(T_DataComboFile[Econ4]=$G54))*T_DataComboFile[2022/23 Baseline]*$B$3)","v":0},{"$f":"SUMPRODUCT(((T_DataComboFile[Implementation programme]=$G$3)*(T_DataComboFile[Econ4]=$G54))*T_DataComboFile[2022/23 Reduction]*$B$3)","v":0},{"$f":"SUMPRODUCT(((T_DataComboFile[Implementation programme]=$G$3)*(T_DataComboFile[Econ4]=$G54))*T_DataComboFile[2022/23 Increase]*$B$3)","v":0},{"$f":"P54+Q54+R54","v":0},{"$f":"SUMPRODUCT(((T_DataComboFile[Implementation programme]=$G$3)*(T_DataComboFile[Econ4]=$G54))*T_DataComboFile[2023/24 Baseline]*$B$3)","v":0},{"$f":"SUMPRODUCT(((T_DataComboFile[Implementation programme]=$G$3)*(T_DataComboFile[Econ4]=$G54))*T_DataComboFile[2023/24 Reduction]*$B$3)","v":0},{"$f":"SUMPRODUCT(((T_DataComboFile[Implementation programme]=$G$3)*(T_DataComboFile[Econ4]=$G54))*T_DataComboFile[2023/24 Increase]*$B$3)","v":0},{"$f":"T54+U54+V54","v":0}]
[0,0,null,null,null,null,"Other fixed structures",{"$f":"SUMPRODUCT(((T_DataComboFile[Implementation programme]=$G$3)*(T_DataComboFile[Econ4]=$G55))*T_DataComboFile[2017/18]*$B$3)","v":0},{"$f":"SUMPRODUCT(((T_DataComboFile[Implementation programme]=$G$3)*(T_DataComboFile[Econ4]=$G55))*T_DataComboFile[2018/19]*$B$3)","v":0},{"$f":"SUMPRODUCT(((T_DataComboFile[Implementation programme]=$G$3)*(T_DataComboFile[Econ4]=$G55))*T_DataComboFile[2019/20 Revised estimate]*$B$3)","v":0},{"$f":"SUMPRODUCT(((T_DataComboFile[Implementation programme]=$G$3)*(T_DataComboFile[Econ4]=$G55))*T_DataComboFile[2020/21 Revised]*$B$3)","v":0},{"$f":"SUMPRODUCT(((T_DataComboFile[Implementation programme]=$G$3)*(T_DataComboFile[Econ4]=$G55))*T_DataComboFile[2021/22 Baseline]*$B$3)","v":0},{"$f":"SUMPRODUCT(((T_DataComboFile[Implementation programme]=$G$3)*(T_DataComboFile[Econ4]=$G55))*T_DataComboFile[2021/22 Reduction]*$B$3)","v":0},{"$f":"SUMPRODUCT(((T_DataComboFile[Implementation programme]=$G$3)*(T_DataComboFile[Econ4]=$G55))*T_DataComboFile[2021/22 Increase]*$B$3)","v":0},0,{"$f":"SUMPRODUCT(((T_DataComboFile[Implementation programme]=$G$3)*(T_DataComboFile[Econ4]=$G55))*T_DataComboFile[2022/23 Baseline]*$B$3)","v":0},{"$f":"SUMPRODUCT(((T_DataComboFile[Implementation programme]=$G$3)*(T_DataComboFile[Econ4]=$G55))*T_DataComboFile[2022/23 Reduction]*$B$3)","v":0},{"$f":"SUMPRODUCT(((T_DataComboFile[Implementation programme]=$G$3)*(T_DataComboFile[Econ4]=$G55))*T_DataComboFile[2022/23 Increase]*$B$3)","v":0},0,{"$f":"SUMPRODUCT(((T_DataComboFile[Implementation programme]=$G$3)*(T_DataComboFile[Econ4]=$G55))*T_DataComboFile[2023/24 Baseline]*$B$3)","v":0},{"$f":"SUMPRODUCT(((T_DataComboFile[Implementation programme]=$G$3)*(T_DataComboFile[Econ4]=$G55))*T_DataComboFile[2023/24 Reduction]*$B$3)","v":0},{"$f":"SUMPRODUCT(((T_DataComboFile[Implementation programme]=$G$3)*(T_DataComboFile[Econ4]=$G55))*T_DataComboFile[2023/24 Increase]*$B$3)","v":0},0]
[0,0,null,null,null,null,"Machinery and equipment",{"$f":"SUM(H57:H58)","v":0},0,0,0,0,0,0,0,0,0,0,0,0,0,0,0]
[0,0,null,null,null,null,"Transport equipment",{"$f":"SUMPRODUCT(((T_DataComboFile[Implementation programme]=$G$3)*(T_DataComboFile[Econ4]=$G57))*T_DataComboFile[2017/18]*$B$3)","v":0},{"$f":"SUMPRODUCT(((T_DataComboFile[Implementation programme]=$G$3)*(T_DataComboFile[Econ4]=$G57))*T_DataComboFile[2018/19]*$B$3)","v":0},{"$f":"SUMPRODUCT(((T_DataComboFile[Implementation programme]=$G$3)*(T_DataComboFile[Econ4]=$G57))*T_DataComboFile[2019/20 Revised estimate]*$B$3)","v":0},{"$f":"SUMPRODUCT(((T_DataComboFile[Implementation programme]=$G$3)*(T_DataComboFile[Econ4]=$G57))*T_DataComboFile[2020/21 Revised]*$B$3)","v":0},{"$f":"SUMPRODUCT(((T_DataComboFile[Implementation programme]=$G$3)*(T_DataComboFile[Econ4]=$G57))*T_DataComboFile[2021/22 Baseline]*$B$3)","v":0},{"$f":"SUMPRODUCT(((T_DataComboFile[Implementation programme]=$G$3)*(T_DataComboFile[Econ4]=$G57))*T_DataComboFile[2021/22 Reduction]*$B$3)","v":0},{"$f":"SUMPRODUCT(((T_DataComboFile[Implementation programme]=$G$3)*(T_DataComboFile[Econ4]=$G57))*T_DataComboFile[2021/22 Increase]*$B$3)","v":0},{"$f":"L57+M57+N57","v":0},{"$f":"SUMPRODUCT(((T_DataComboFile[Implementation programme]=$G$3)*(T_DataComboFile[Econ4]=$G57))*T_DataComboFile[2022/23 Baseline]*$B$3)","v":0},{"$f":"SUMPRODUCT(((T_DataComboFile[Implementation programme]=$G$3)*(T_DataComboFile[Econ4]=$G57))*T_DataComboFile[2022/23 Reduction]*$B$3)","v":0},{"$f":"SUMPRODUCT(((T_DataComboFile[Implementation programme]=$G$3)*(T_DataComboFile[Econ4]=$G57))*T_DataComboFile[2022/23 Increase]*$B$3)","v":0},{"$f":"P57+Q57+R57","v":0},{"$f":"SUMPRODUCT(((T_DataComboFile[Implementation programme]=$G$3)*(T_DataComboFile[Econ4]=$G57))*T_DataComboFile[2023/24 Baseline]*$B$3)","v":0},{"$f":"SUMPRODUCT(((T_DataComboFile[Implementation programme]=$G$3)*(T_DataComboFile[Econ4]=$G57))*T_DataComboFile[2023/24 Reduction]*$B$3)","v":0},{"$f":"SUMPRODUCT(((T_DataComboFile[Implementation programme]=$G$3)*(T_DataComboFile[Econ4]=$G57))*T_DataComboFile[2023/24 Increase]*$B$3)","v":0},{"$f":"T57+U57+V57","v":0}]
[0,0,null,null,null,null,"Other machinery and equipment",{"$f":"SUMPRODUCT(((T_DataComboFile[Implementation programme]=$G$3)*(T_DataComboFile[Econ4]=$G58))*T_DataComboFile[2017/18]*$B$3)","v":0},{"$f":"SUMPRODUCT(((T_DataComboFile[Implementation programme]=$G$3)*(T_DataComboFile[Econ4]=$G58))*T_DataComboFile[2018/19]*$B$3)","v":0},{"$f":"SUMPRODUCT(((T_DataComboFile[Implementation programme]=$G$3)*(T_DataComboFile[Econ4]=$G58))*T_DataComboFile[2019/20 Revised estimate]*$B$3)","v":0},{"$f":"SUMPRODUCT(((T_DataComboFile[Implementation programme]=$G$3)*(T_DataComboFile[Econ4]=$G58))*T_DataComboFile[2020/21 Revised]*$B$3)","v":0},{"$f":"SUMPRODUCT(((T_DataComboFile[Implementation programme]=$G$3)*(T_DataComboFile[Econ4]=$G58))*T_DataComboFile[2021/22 Baseline]*$B$3)","v":0},{"$f":"SUMPRODUCT(((T_DataComboFile[Implementation programme]=$G$3)*(T_DataComboFile[Econ4]=$G58))*T_DataComboFile[2021/22 Reduction]*$B$3)","v":0},{"$f":"SUMPRODUCT(((T_DataComboFile[Implementation programme]=$G$3)*(T_DataComboFile[Econ4]=$G58))*T_DataComboFile[2021/22 Increase]*$B$3)","v":0},0,{"$f":"SUMPRODUCT(((T_DataComboFile[Implementation programme]=$G$3)*(T_DataComboFile[Econ4]=$G58))*T_DataComboFile[2022/23 Baseline]*$B$3)","v":0},{"$f":"SUMPRODUCT(((T_DataComboFile[Implementation programme]=$G$3)*(T_DataComboFile[Econ4]=$G58))*T_DataComboFile[2022/23 Reduction]*$B$3)","v":0},{"$f":"SUMPRODUCT(((T_DataComboFile[Implementation programme]=$G$3)*(T_DataComboFile[Econ4]=$G58))*T_DataComboFile[2022/23 Increase]*$B$3)","v":0},0,{"$f":"SUMPRODUCT(((T_DataComboFile[Implementation programme]=$G$3)*(T_DataComboFile[Econ4]=$G58))*T_DataComboFile[2023/24 Baseline]*$B$3)","v":0},{"$f":"SUMPRODUCT(((T_DataComboFile[Implementation programme]=$G$3)*(T_DataComboFile[Econ4]=$G58))*T_DataComboFile[2023/24 Reduction]*$B$3)","v":0},{"$f":"SUMPRODUCT(((T_DataComboFile[Implementation programme]=$G$3)*(T_DataComboFile[Econ4]=$G58))*T_DataComboFile[2023/24 Increase]*$B$3)","v":0},0]
[0,0,null,null,null,null,"Heritage assets",{"$f":"SUMPRODUCT(((T_DataComboFile[Implementation programme]=$G$3)*(T_DataComboFile[Econ3]=$G59))*T_DataComboFile[2017/18]*$B$3)","v":0},{"$f":"SUMPRODUCT(((T_DataComboFile[Implementation programme]=$G$3)*(T_DataComboFile[Econ3]=$G59))*T_DataComboFile[2018/19]*$B$3)","v":0},{"$f":"SUMPRODUCT(((T_DataComboFile[Implementation programme]=$G$3)*(T_DataComboFile[Econ3]=$G59))*T_DataComboFile[2019/20 Revised estimate]*$B$3)","v":0},{"$f":"SUMPRODUCT(((T_DataComboFile[Implementation programme]=$G$3)*(T_DataComboFile[Econ3]=$G59))*T_DataComboFile[2020/21 Revised]*$B$3)","v":0},{"$f":"SUMPRODUCT(((T_DataComboFile[Implementation programme]=$G$3)*(T_DataComboFile[Econ3]=$G59))*T_DataComboFile[2021/22 Baseline]*$B$3)","v":0},{"$f":"SUMPRODUCT(((T_DataComboFile[Implementation programme]=$G$3)*(T_DataComboFile[Econ3]=$G59))*T_DataComboFile[2021/22 Reduction]*$B$3)","v":0},{"$f":"SUMPRODUCT(((T_DataComboFile[Implementation programme]=$G$3)*(T_DataComboFile[Econ3]=$G59))*T_DataComboFile[2021/22 Increase]*$B$3)","v":0},0,{"$f":"SUMPRODUCT(((T_DataComboFile[Implementation programme]=$G$3)*(T_DataComboFile[Econ3]=$G59))*T_DataComboFile[2022/23 Baseline]*$B$3)","v":0},{"$f":"SUMPRODUCT(((T_DataComboFile[Implementation programme]=$G$3)*(T_DataComboFile[Econ3]=$G59))*T_DataComboFile[2022/23 Reduction]*$B$3)","v":0},{"$f":"SUMPRODUCT(((T_DataComboFile[Implementation programme]=$G$3)*(T_DataComboFile[Econ3]=$G59))*T_DataComboFile[2022/23 Increase]*$B$3)","v":0},0,{"$f":"SUMPRODUCT(((T_DataComboFile[Implementation programme]=$G$3)*(T_DataComboFile[Econ3]=$G59))*T_DataComboFile[2023/24 Baseline]*$B$3)","v":0},{"$f":"SUMPRODUCT(((T_DataComboFile[Implementation programme]=$G$3)*(T_DataComboFile[Econ3]=$G59))*T_DataComboFile[2023/24 Reduction]*$B$3)","v":0},{"$f":"SUMPRODUCT(((T_DataComboFile[Implementation programme]=$G$3)*(T_DataComboFile[Econ3]=$G59))*T_DataComboFile[2023/24 Increase]*$B$3)","v":0},0]
[0,0,null,null,null,null,"Specialised military assets",{"$f":"SUMPRODUCT(((T_DataComboFile[Implementation programme]=$G$3)*(T_DataComboFile[Econ3]=$G60))*T_DataComboFile[2017/18]*$B$3)","v":0},{"$f":"SUMPRODUCT(((T_DataComboFile[Implementation programme]=$G$3)*(T_DataComboFile[Econ3]=$G60))*T_DataComboFile[2018/19]*$B$3)","v":0},{"$f":"SUMPRODUCT(((T_DataComboFile[Implementation programme]=$G$3)*(T_DataComboFile[Econ3]=$G60))*T_DataComboFile[2019/20 Revised estimate]*$B$3)","v":0},{"$f":"SUMPRODUCT(((T_DataComboFile[Implementation programme]=$G$3)*(T_DataComboFile[Econ3]=$G60))*T_DataComboFile[2020/21 Revised]*$B$3)","v":0},{"$f":"SUMPRODUCT(((T_DataComboFile[Implementation programme]=$G$3)*(T_DataComboFile[Econ3]=$G60))*T_DataComboFile[2021/22 Baseline]*$B$3)","v":0},{"$f":"SUMPRODUCT(((T_DataComboFile[Implementation programme]=$G$3)*(T_DataComboFile[Econ3]=$G60))*T_DataComboFile[2021/22 Reduction]*$B$3)","v":0},{"$f":"SUMPRODUCT(((T_DataComboFile[Implementation programme]=$G$3)*(T_DataComboFile[Econ3]=$G60))*T_DataComboFile[2021/22 Increase]*$B$3)","v":0},0,{"$f":"SUMPRODUCT(((T_DataComboFile[Implementation programme]=$G$3)*(T_DataComboFile[Econ3]=$G60))*T_DataComboFile[2022/23 Baseline]*$B$3)","v":0},{"$f":"SUMPRODUCT(((T_DataComboFile[Implementation programme]=$G$3)*(T_DataComboFile[Econ3]=$G60))*T_DataComboFile[2022/23 Reduction]*$B$3)","v":0},{"$f":"SUMPRODUCT(((T_DataComboFile[Implementation programme]=$G$3)*(T_DataComboFile[Econ3]=$G60))*T_DataComboFile[2022/23 Increase]*$B$3)","v":0},0,{"$f":"SUMPRODUCT(((T_DataComboFile[Implementation programme]=$G$3)*(T_DataComboFile[Econ3]=$G60))*T_DataComboFile[2023/24 Baseline]*$B$3)","v":0},{"$f":"SUMPRODUCT(((T_DataComboFile[Implementation programme]=$G$3)*(T_DataComboFile[Econ3]=$G60))*T_DataComboFile[2023/24 Reduction]*$B$3)","v":0},{"$f":"SUMPRODUCT(((T_DataComboFile[Implementation programme]=$G$3)*(T_DataComboFile[Econ3]=$G60))*T_DataComboFile[2023/24 Increase]*$B$3)","v":0},0]
[0,0,null,null,null,null,"Biological assets",{"$f":"SUMPRODUCT(((T_DataComboFile[Implementation programme]=$G$3)*(T_DataComboFile[Econ3]=$G61))*T_DataComboFile[2017/18]*$B$3)","v":0},{"$f":"SUMPRODUCT(((T_DataComboFile[Implementation programme]=$G$3)*(T_DataComboFile[Econ3]=$G61))*T_DataComboFile[2018/19]*$B$3)","v":0},{"$f":"SUMPRODUCT(((T_DataComboFile[Implementation programme]=$G$3)*(T_DataComboFile[Econ3]=$G61))*T_DataComboFile[2019/20 Revised estimate]*$B$3)","v":0},{"$f":"SUMPRODUCT(((T_DataComboFile[Implementation programme]=$G$3)*(T_DataComboFile[Econ3]=$G61))*T_DataComboFile[2020/21 Revised]*$B$3)","v":0},{"$f":"SUMPRODUCT(((T_DataComboFile[Implementation programme]=$G$3)*(T_DataComboFile[Econ3]=$G61))*T_DataComboFile[2021/22 Baseline]*$B$3)","v":0},{"$f":"SUMPRODUCT(((T_DataComboFile[Implementation programme]=$G$3)*(T_DataComboFile[Econ3]=$G61))*T_DataComboFile[2021/22 Reduction]*$B$3)","v":0},{"$f":"SUMPRODUCT(((T_DataComboFile[Implementation programme]=$G$3)*(T_DataComboFile[Econ3]=$G61))*T_DataComboFile[2021/22 Increase]*$B$3)","v":0},0,{"$f":"SUMPRODUCT(((T_DataComboFile[Implementation programme]=$G$3)*(T_DataComboFile[Econ3]=$G61))*T_DataComboFile[2022/23 Baseline]*$B$3)","v":0},{"$f":"SUMPRODUCT(((T_DataComboFile[Implementation programme]=$G$3)*(T_DataComboFile[Econ3]=$G61))*T_DataComboFile[2022/23 Reduction]*$B$3)","v":0},{"$f":"SUMPRODUCT(((T_DataComboFile[Implementation programme]=$G$3)*(T_DataComboFile[Econ3]=$G61))*T_DataComboFile[2022/23 Increase]*$B$3)","v":0},0,{"$f":"SUMPRODUCT(((T_DataComboFile[Implementation programme]=$G$3)*(T_DataComboFile[Econ3]=$G61))*T_DataComboFile[2023/24 Baseline]*$B$3)","v":0},{"$f":"SUMPRODUCT(((T_DataComboFile[Implementation programme]=$G$3)*(T_DataComboFile[Econ3]=$G61))*T_DataComboFile[2023/24 Reduction]*$B$3)","v":0},{"$f":"SUMPRODUCT(((T_DataComboFile[Implementation programme]=$G$3)*(T_DataComboFile[Econ3]=$G61))*T_DataComboFile[2023/24 Increase]*$B$3)","v":0},0]
[0,0,null,null,null,null,"Land and sub-soil assets",{"$f":"SUMPRODUCT(((T_DataComboFile[Implementation programme]=$G$3)*(T_DataComboFile[Econ3]=$G62))*T_DataComboFile[2017/18]*$B$3)","v":0},{"$f":"SUMPRODUCT(((T_DataComboFile[Implementation programme]=$G$3)*(T_DataComboFile[Econ3]=$G62))*T_DataComboFile[2018/19]*$B$3)","v":0},{"$f":"SUMPRODUCT(((T_DataComboFile[Implementation programme]=$G$3)*(T_DataComboFile[Econ3]=$G62))*T_DataComboFile[2019/20 Revised estimate]*$B$3)","v":0},{"$f":"SUMPRODUCT(((T_DataComboFile[Implementation programme]=$G$3)*(T_DataComboFile[Econ3]=$G62))*T_DataComboFile[2020/21 Revised]*$B$3)","v":0},{"$f":"SUMPRODUCT(((T_DataComboFile[Implementation programme]=$G$3)*(T_DataComboFile[Econ3]=$G62))*T_DataComboFile[2021/22 Baseline]*$B$3)","v":0},{"$f":"SUMPRODUCT(((T_DataComboFile[Implementation programme]=$G$3)*(T_DataComboFile[Econ3]=$G62))*T_DataComboFile[2021/22 Reduction]*$B$3)","v":0},{"$f":"SUMPRODUCT(((T_DataComboFile[Implementation programme]=$G$3)*(T_DataComboFile[Econ3]=$G62))*T_DataComboFile[2021/22 Increase]*$B$3)","v":0},0,{"$f":"SUMPRODUCT(((T_DataComboFile[Implementation programme]=$G$3)*(T_DataComboFile[Econ3]=$G62))*T_DataComboFile[2022/23 Baseline]*$B$3)","v":0},{"$f":"SUMPRODUCT(((T_DataComboFile[Implementation programme]=$G$3)*(T_DataComboFile[Econ3]=$G62))*T_DataComboFile[2022/23 Reduction]*$B$3)","v":0},{"$f":"SUMPRODUCT(((T_DataComboFile[Implementation programme]=$G$3)*(T_DataComboFile[Econ3]=$G62))*T_DataComboFile[2022/23 Increase]*$B$3)","v":0},0,{"$f":"SUMPRODUCT(((T_DataComboFile[Implementation programme]=$G$3)*(T_DataComboFile[Econ3]=$G62))*T_DataComboFile[2023/24 Baseline]*$B$3)","v":0},{"$f":"SUMPRODUCT(((T_DataComboFile[Implementation programme]=$G$3)*(T_DataComboFile[Econ3]=$G62))*T_DataComboFile[2023/24 Reduction]*$B$3)","v":0},{"$f":"SUMPRODUCT(((T_DataComboFile[Implementation programme]=$G$3)*(T_DataComboFile[Econ3]=$G62))*T_DataComboFile[2023/24 Increase]*$B$3)","v":0},0]
[0,0,null,null,null,null,"Software and other intangible assets",{"$f":"SUMPRODUCT(((T_DataComboFile[Implementation programme]=$G$3)*(T_DataComboFile[Econ3]=$G63))*T_DataComboFile[2017/18]*$B$3)","v":0},{"$f":"SUMPRODUCT(((T_DataComboFile[Implementation programme]=$G$3)*(T_DataComboFile[Econ3]=$G63))*T_DataComboFile[2018/19]*$B$3)","v":0},{"$f":"SUMPRODUCT(((T_DataComboFile[Implementation programme]=$G$3)*(T_DataComboFile[Econ3]=$G63))*T_DataComboFile[2019/20 Revised estimate]*$B$3)","v":0},{"$f":"SUMPRODUCT(((T_DataComboFile[Implementation programme]=$G$3)*(T_DataComboFile[Econ3]=$G63))*T_DataComboFile[2020/21 Revised]*$B$3)","v":0},{"$f":"SUMPRODUCT(((T_DataComboFile[Implementation programme]=$G$3)*(T_DataComboFile[Econ3]=$G63))*T_DataComboFile[2021/22 Baseline]*$B$3)","v":0},{"$f":"SUMPRODUCT(((T_DataComboFile[Implementation programme]=$G$3)*(T_DataComboFile[Econ3]=$G63))*T_DataComboFile[2021/22 Reduction]*$B$3)","v":0},{"$f":"SUMPRODUCT(((T_DataComboFile[Implementation programme]=$G$3)*(T_DataComboFile[Econ3]=$G63))*T_DataComboFile[2021/22 Increase]*$B$3)","v":0},0,{"$f":"SUMPRODUCT(((T_DataComboFile[Implementation programme]=$G$3)*(T_DataComboFile[Econ3]=$G63))*T_DataComboFile[2022/23 Baseline]*$B$3)","v":0},{"$f":"SUMPRODUCT(((T_DataComboFile[Implementation programme]=$G$3)*(T_DataComboFile[Econ3]=$G63))*T_DataComboFile[2022/23 Reduction]*$B$3)","v":0},{"$f":"SUMPRODUCT(((T_DataComboFile[Implementation programme]=$G$3)*(T_DataComboFile[Econ3]=$G63))*T_DataComboFile[2022/23 Increase]*$B$3)","v":0},0,{"$f":"SUMPRODUCT(((T_DataComboFile[Implementation programme]=$G$3)*(T_DataComboFile[Econ3]=$G63))*T_DataComboFile[2023/24 Baseline]*$B$3)","v":0},{"$f":"SUMPRODUCT(((T_DataComboFile[Implementation programme]=$G$3)*(T_DataComboFile[Econ3]=$G63))*T_DataComboFile[2023/24 Reduction]*$B$3)","v":0},{"$f":"SUMPRODUCT(((T_DataComboFile[Implementation programme]=$G$3)*(T_DataComboFile[Econ3]=$G63))*T_DataComboFile[2023/24 Increase]*$B$3)","v":0},0]
[0,0,null,null,null,null,"Payments for financial assets",{"$f":"SUMPRODUCT(((T_DataComboFile[Implementation programme]=$G$3)*(T_DataComboFile[Econ3]=$G64))*T_DataComboFile[2017/18]*$B$3)","v":0},{"$f":"SUMPRODUCT(((T_DataComboFile[Implementation programme]=$G$3)*(T_DataComboFile[Econ3]=$G64))*T_DataComboFile[2018/19]*$B$3)","v":0},{"$f":"SUMPRODUCT(((T_DataComboFile[Implementation programme]=$G$3)*(T_DataComboFile[Econ3]=$G64))*T_DataComboFile[2019/20 Revised estimate]*$B$3)","v":0},{"$f":"SUMPRODUCT(((T_DataComboFile[Implementation programme]=$G$3)*(T_DataComboFile[Econ3]=$G64))*T_DataComboFile[2020/21 Revised]*$B$3)","v":0},{"$f":"SUMPRODUCT(((T_DataComboFile[Implementation programme]=$G$3)*(T_DataComboFile[Econ3]=$G64))*T_DataComboFile[2021/22 Baseline]*$B$3)","v":0},{"$f":"SUMPRODUCT(((T_DataComboFile[Implementation programme]=$G$3)*(T_DataComboFile[Econ3]=$G64))*T_DataComboFile[2021/22 Reduction]*$B$3)","v":0},{"$f":"SUMPRODUCT(((T_DataComboFile[Implementation programme]=$G$3)*(T_DataComboFile[Econ3]=$G64))*T_DataComboFile[2021/22 Increase]*$B$3)","v":0},0,{"$f":"SUMPRODUCT(((T_DataComboFile[Implementation programme]=$G$3)*(T_DataComboFile[Econ3]=$G64))*T_DataComboFile[2022/23 Baseline]*$B$3)","v":0},{"$f":"SUMPRODUCT(((T_DataComboFile[Implementation programme]=$G$3)*(T_DataComboFile[Econ3]=$G64))*T_DataComboFile[2022/23 Reduction]*$B$3)","v":0},{"$f":"SUMPRODUCT(((T_DataComboFile[Implementation programme]=$G$3)*(T_DataComboFile[Econ3]=$G64))*T_DataComboFile[2022/23 Increase]*$B$3)","v":0},0,{"$f":"SUMPRODUCT(((T_DataComboFile[Implementation programme]=$G$3)*(T_DataComboFile[Econ3]=$G64))*T_DataComboFile[2023/24 Baseline]*$B$3)","v":0},{"$f":"SUMPRODUCT(((T_DataComboFile[Implementation programme]=$G$3)*(T_DataComboFile[Econ3]=$G64))*T_DataComboFile[2023/24 Reduction]*$B$3)","v":0},{"$f":"SUMPRODUCT(((T_DataComboFile[Implementation programme]=$G$3)*(T_DataComboFile[Econ3]=$G64))*T_DataComboFile[2023/24 Increase]*$B$3)","v":0},0]
[0,0,null,null,null,null,"Total",{"$f":"SUM(H32,H36,H52,H64)","v":0},0,0,0,0,0,0,0,0,0,0,0,0,0,0,0]
[]
[]
[]
[]
[]
[null,null,null,null,null,null,{"$f":"\"IMPACT OF ADJUSTMENTS: \" &UPPER($G$3)","v":"IMPACT OF ADJUSTMENTS: "}]
[]
[null,null,null,null,null,1,"Summary of impact on service delivery due to adjustments"]
[{"$f":"$G$3","v":0},1]
[0,1]
[0,1]
[0,1]
[0,1]
[0,1]
[0,1]
[0,1]
[0,1]
[0,1]
[0,1]
[0,1]
[0,1]
[0,1]
[0,1]
[]
[]
[]
[]
[]
[null,null,null,null,null,2,"Impact of adjustments on performance indicators"]
[{"$f":"$G$3","v":0},2,null,null,null,null,null,"2021/22",null,null,"2022/23",null,null,"2023/24",null,null," Comment",null,null,null,null,"Related MTSF Priority"]
[0,2,null,null,null,null,"Performance indicator","Original target","Revised target","Change","Original target","Revised target","Change","Original target","Revised target","Change"]
[0,2]
[0,2]
[0,2]
[0,2]
[0,2]
[0,2]
[0,2]
[0,2]
[0,2]
[0,2]
[0,2]
[0,2]
[0,2]
[0,2]
[0,2]
[]
[]
[]
[]
[]
[null,null,null,null,null,3,"Impact of adjustments on infrastructure projects"]
[{"$f":"$G$3","v":0},3,null,null,null,null,null,"2021/22",null,null,"2022/23",null,null,"2023/24",null,null," Comment"]
[0,3,null,null,null,null,"Project name","Original amount","Revised amount","Change","Original amount","Revised amount","Change","Original amount","Revised amount","Change"]
[0,3,null,null,null,null,null,null,null,{"$f":"I120-H120","v":0},null,null,{"$f":"L120-K120","v":0},null,null,{"$f":"O120-N120","v":0}]
[0,3,null,null,null,null,null,null,null,0,null,null,0,null,null,0]
[0,3,null,null,null,null,null,null,null,0,null,null,0,null,null,0]
[0,3,null,null,null,null,null,null,null,0,null,null,0,null,null,0]
[0,3,null,null,null,null,null,null,null,0,null,null,0,null,null,0]
[0,3,null,null,null,null,null,null,null,0,null,null,0,null,null,0]
[0,3,null,null,null,null,null,null,null,0,null,null,0,null,null,0]
[0,3,null,null,null,null,null,null,null,0,null,null,0,null,null,0]
[0,3,null,null,null,null,null,null,null,0,null,null,0,null,null,0]
[0,3,null,null,null,null,null,null,null,0,null,null,0,null,null,0]
[0,3,null,null,null,null,null,null,null,0,null,null,0,null,null,0]
[0,3,null,null,null,null,null,null,null,0,null,null,0,null,null,0]
[0,3,null,null,null,null,null,null,null,0,null,null,0,null,null,0]
[0,3,null,null,null,null,null,null,null,0,null,null,0,null,null,0]
[0,3,null,null,null,null,null,null,null,0,null,null,0,null,null,0]
[0,3,null,null,null,null,"Total",{"$f":"SUM(H120:H134)","v":0},0,0,0,0,0,0,0,0]
[]
[]
[]
[]
[]
[null,null,null,null,null,4,"Impact of adjustments on personnel headcount numbers"]
[{"$f":"$G$3","v":0},4,null,null,null,null,null,"2021/22",null,null,"2022/23",null,null,"2023/24",null,null," Comment"]
[0,4,null,null,null,null,"Salary level","Original number","Revised number","Change","Original number","Revised number","Change","Original number","Revised number","Change"]
[0,4,null,null,null,null,1,null,null,{"$f":"I144-H144","v":0},null,null,{"$f":"L144-K144","v":0},null,null,{"$f":"O144-N144","v":0}]
[0,4,null,null,null,null,2,null,null,0,null,null,0,null,null,0]
[0,4,null,null,null,null,3,null,null,0,null,null,0,null,null,0]
[0,4,null,null,null,null,4,null,null,0,null,null,0,null,null,0]
[0,4,null,null,null,null,5,null,null,0,null,null,0,null,null,0]
[0,4,null,null,null,null,6,null,null,0,null,null,0,null,null,0]
[0,4,null,null,null,null,7,null,null,0,null,null,0,null,null,0]
[0,4,null,null,null,null,8,null,null,0,null,null,0,null,null,0]
[0,4,null,null,null,null,9,null,null,0,null,null,0,null,null,0]
[0,4,null,null,null,null,10,null,null,0,null,null,0,null,null,0]
[0,4,null,null,null,null,11,null,null,0,null,null,0,null,null,0]
[0,4,null,null,null,null,12,null,null,0,null,null,0,null,null,0]
[0,4,null,null,null,null,13,null,null,0,null,null,0,null,null,0]
[0,4,null,null,null,null,14,null,null,0,null,null,0,null,null,0]
[0,4,null,null,null,null,15,null,null,0,null,null,0,null,null,0]
[0,4,null,null,null,null,16,null,null,0,null,null,0,null,null,0]
[0,4,null,null,null,null,"Other",null,null,0,null,null,0,null,null,0]
[0,4,null,null,null,null,"Other",null,null,0,null,null,0,null,null,0]
[0,4,null,null,null,null,"Other",null,null,0,null,null,0,null,null,0]
[0,4,null,null,null,null,"Other",null,null,0,null,null,0,null,null,0]
[0,4,null,null,null,null,"Total",{"$f":"SUM(H144:H163)","v":0},0,0,0,0,0,0,0,0]
[]
[]
[]
[]
[]
[null,null,null,null,null,5,"Impact of adjustments by economic classification"]
[{"$f":"$G$3","v":0},5,null,null,null,null,null,"2021/22",null,null,"2022/23",null,null,"2023/24",null,null," Comment"]
[0,5,null,null,null,null,"Salary level","Original number","Revised number","Change","Original number","Revised number","Change","Original number","Revised number","Change"]
[0,5,null,null,null,null,"Current payments",{"$f":"SUM(H174,H175,H182)","v":0},{"$f":"SUM(I174,I175,I182)","v":0},{"$f":"I173-H173","v":0},{"$f":"SUM(K174,K175,K182)","v":0},{"$f":"SUM(L174,L175,L182)","v":0},{"$f":"L173-K173","v":0},{"$f":"SUM(N174,N175,N182)","v":0},{"$f":"SUM(O174,O175,O182)","v":0},{"$f":"O173-N173","v":0}]
[0,5,null,null,null,null,"Compensation of employees",{"$f":"SUMPRODUCT(((T_DataComboFile[Implementation programme]=$G$3)*(T_DataComboFile[Econ3]=$G174))*T_DataComboFile[2021/22 Baseline]*$B$3)","v":0},{"$f":"SUMPRODUCT(((T_DataComboFile[Implementation programme]=$G$3)*(T_DataComboFile[Econ3]=$G174))*T_DataComboFile[2021/22 Revised baseline]*$B$3)","v":0},0,{"$f":"SUMPRODUCT(((T_DataComboFile[Implementation programme]=$G$3)*(T_DataComboFile[Econ3]=$G174))*T_DataComboFile[2022/23 Baseline]*$B$3)","v":0},{"$f":"SUMPRODUCT(((T_DataComboFile[Implementation programme]=$G$3)*(T_DataComboFile[Econ3]=$G174))*T_DataComboFile[2022/23 Revised baseline]*$B$3)","v":0},0,{"$f":"SUMPRODUCT(((T_DataComboFile[Implementation programme]=$G$3)*(T_DataComboFile[Econ3]=$G174))*T_DataComboFile[2023/24 Baseline]*$B$3)","v":0},{"$f":"SUMPRODUCT(((T_DataComboFile[Implementation programme]=$G$3)*(T_DataComboFile[Econ3]=$G174))*T_DataComboFile[2023/24 Revised baseline]*$B$3)","v":0},0]
[0,5,null,null,null,null,"Goods and services",{"$f":"SUMPRODUCT(((T_DataComboFile[Implementation programme]=$G$3)*(T_DataComboFile[Econ3]=$G175))*T_DataComboFile[2021/22 Baseline]*$B$3)","v":0},{"$f":"SUMPRODUCT(((T_DataComboFile[Implementation programme]=$G$3)*(T_DataComboFile[Econ3]=$G175))*T_DataComboFile[2021/22 Revised baseline]*$B$3)","v":0},0,{"$f":"SUMPRODUCT(((T_DataComboFile[Implementation programme]=$G$3)*(T_DataComboFile[Econ3]=$G175))*T_DataComboFile[2022/23 Baseline]*$B$3)","v":0},{"$f":"SUMPRODUCT(((T_DataComboFile[Implementation programme]=$G$3)*(T_DataComboFile[Econ3]=$G175))*T_DataComboFile[2022/23 Revised baseline]*$B$3)","v":0},0,{"$f":"SUMPRODUCT(((T_DataComboFile[Implementation programme]=$G$3)*(T_DataComboFile[Econ3]=$G175))*T_DataComboFile[2023/24 Baseline]*$B$3)","v":0},{"$f":"SUMPRODUCT(((T_DataComboFile[Implementation programme]=$G$3)*(T_DataComboFile[Econ3]=$G175))*T_DataComboFile[2023/24 Revised baseline]*$B$3)","v":0},0]
[0,50,null,null,null,null,"of which:"]
[0,51,null,null,null,null,null,null,null,{"$f":"I177-H177","v":0},null,null,{"$f":"L177-K177","v":0},null,null,0]
[0,51,null,null,null,null,null,null,null,0,null,null,0,null,null,0]
[0,51,null,null,null,null,null,null,null,0,null,null,0,null,null,0]
[0,51,null,null,null,null,null,null,null,0,null,null,0,null,null,0]
[0,51,null,null,null,null,null,null,null,0,null,null,0,null,null,0]
[0,5,null,null,null,null,"Interest and rent on land",{"$f":"SUMPRODUCT(((T_DataComboFile[Implementation programme]=$G$3)*(T_DataComboFile[Econ3]=$G182))*T_DataComboFile[2021/22 Baseline]*$B$3)","v":0},{"$f":"SUMPRODUCT(((T_DataComboFile[Implementation programme]=$G$3)*(T_DataComboFile[Econ3]=$G182))*T_DataComboFile[2021/22 Revised baseline]*$B$3)","v":0},0,{"$f":"SUMPRODUCT(((T_DataComboFile[Implementation programme]=$G$3)*(T_DataComboFile[Econ3]=$G182))*T_DataComboFile[2022/23 Baseline]*$B$3)","v":0},{"$f":"SUMPRODUCT(((T_DataComboFile[Implementation programme]=$G$3)*(T_DataComboFile[Econ3]=$G182))*T_DataComboFile[2022/23 Revised baseline]*$B$3)","v":0},0,{"$f":"SUMPRODUCT(((T_DataComboFile[Implementation programme]=$G$3)*(T_DataComboFile[Econ3]=$G182))*T_DataComboFile[2023/24 Baseline]*$B$3)","v":0},{"$f":"SUMPRODUCT(((T_DataComboFile[Implementation programme]=$G$3)*(T_DataComboFile[Econ3]=$G182))*T_DataComboFile[2023/24 Revised baseline]*$B$3)","v":0},0]
[0,5,null,null,null,null,"Transfers and subsidies",{"$f":"SUM(H184,H185,H197,H198,H199,H206,H207)","v":0},{"$f":"SUM(I184,I185,I197,I198,I199,I206,I207)","v":0},0,{"$f":"SUM(K184,K185,K197,K198,K199,K206,K207)","v":0},0,0,{"$f":"SUM(N184,N185,N197,N198,N199,N206,N207)","v":0},0,0]
[0,5,null,null,null,null,"Provinces and municipalities",{"$f":"SUMPRODUCT(((T_DataComboFile[Implementation programme]=$G$3)*(T_DataComboFile[Econ3]=$G184))*T_DataComboFile[2021/22 Baseline]*$B$3)","v":0},{"$f":"SUMPRODUCT(((T_DataComboFile[Implementation programme]=$G$3)*(T_DataComboFile[Econ3]=$G184))*T_DataComboFile[2021/22 Revised baseline]*$B$3)","v":0},0,{"$f":"SUMPRODUCT(((T_DataComboFile[Implementation programme]=$G$3)*(T_DataComboFile[Econ3]=$G184))*T_DataComboFile[2022/23 Baseline]*$B$3)","v":0},{"$f":"SUMPRODUCT(((T_DataComboFile[Implementation programme]=$G$3)*(T_DataComboFile[Econ3]=$G184))*T_DataComboFile[2022/23 Revised baseline]*$B$3)","v":0},0,{"$f":"SUMPRODUCT(((T_DataComboFile[Implementation programme]=$G$3)*(T_DataComboFile[Econ3]=$G184))*T_DataComboFile[2023/24 Baseline]*$B$3)","v":0},{"$f":"SUMPRODUCT(((T_DataComboFile[Implementation programme]=$G$3)*(T_DataComboFile[Econ3]=$G184))*T_DataComboFile[2023/24 Revised baseline]*$B$3)","v":0},0]
[0,5,null,null,null,null,"Departmental agencies and accounts",{"$f":"SUMPRODUCT(((T_DataComboFile[Implementation programme]=$G$3)*(T_DataComboFile[Econ3]=$G185))*T_DataComboFile[2021/22 Baseline]*$B$3)","v":0},{"$f":"SUMPRODUCT(((T_DataComboFile[Implementation programme]=$G$3)*(T_DataComboFile[Econ3]=$G185))*T_DataComboFile[2021/22 Revised baseline]*$B$3)","v":0},0,{"$f":"SUMPRODUCT(((T_DataComboFile[Implementation programme]=$G$3)*(T_DataComboFile[Econ3]=$G185))*T_DataComboFile[2022/23 Baseline]*$B$3)","v":0},{"$f":"SUMPRODUCT(((T_DataComboFile[Implementation programme]=$G$3)*(T_DataComboFile[Econ3]=$G185))*T_DataComboFile[2022/23 Revised baseline]*$B$3)","v":0},0,{"$f":"SUMPRODUCT(((T_DataComboFile[Implementation programme]=$G$3)*(T_DataComboFile[Econ3]=$G185))*T_DataComboFile[2023/24 Baseline]*$B$3)","v":0},{"$f":"SUMPRODUCT(((T_DataComboFile[Implementation programme]=$G$3)*(T_DataComboFile[Econ3]=$G185))*T_DataComboFile[2023/24 Revised baseline]*$B$3)","v":0},0]
[0,50,null,null,null,null,"of which:"]
[0,52,null,null,null,null,null,null,null,{"$f":"I187-H187","v":0},null,null,{"$f":"L187-K187","v":0},null,null,{"$f":"O187-N187","v":0}]
[0,52,null,null,null,null,null,null,null,0,null,null,0,null,null,0]
[0,52,null,null,null,null,null,null,null,0,null,null,0,null,null,0]
[0,52,null,null,null,null,null,null,null,0,null,null,0,null,null,0]
[0,52,null,null,null,null,null,null,null,0,null,null,0,null,null,0]
[0,52,null,null,null,null,null,null,null,0,null,null,0,null,null,0]
[0,52,null,null,null,null,null,null,null,0,null,null,0,null,null,0]
[0,52,null,null,null,null,null,null,null,0,null,null,0,null,null,0]
[0,52,null,null,null,null,null,null,null,0,null,null,0,null,null,0]
[0,52,null,null,null,null,null,null,null,0,null,null,0,null,null,0]
[0,5,null,null,null,null,"Higher education institutions",{"$f":"SUMPRODUCT(((T_DataComboFile[Implementation programme]=$G$3)*(T_DataComboFile[Econ3]=$G197))*T_DataComboFile[2021/22 Baseline]*$B$3)","v":0},{"$f":"SUMPRODUCT(((T_DataComboFile[Implementation programme]=$G$3)*(T_DataComboFile[Econ3]=$G197))*T_DataComboFile[2021/22 Revised baseline]*$B$3)","v":0},0,{"$f":"SUMPRODUCT(((T_DataComboFile[Implementation programme]=$G$3)*(T_DataComboFile[Econ3]=$G197))*T_DataComboFile[2022/23 Baseline]*$B$3)","v":0},{"$f":"SUMPRODUCT(((T_DataComboFile[Implementation programme]=$G$3)*(T_DataComboFile[Econ3]=$G197))*T_DataComboFile[2022/23 Revised baseline]*$B$3)","v":0},0,{"$f":"SUMPRODUCT(((T_DataComboFile[Implementation programme]=$G$3)*(T_DataComboFile[Econ3]=$G197))*T_DataComboFile[2023/24 Baseline]*$B$3)","v":0},{"$f":"SUMPRODUCT(((T_DataComboFile[Implementation programme]=$G$3)*(T_DataComboFile[Econ3]=$G197))*T_DataComboFile[2023/24 Revised baseline]*$B$3)","v":0},0]
[0,5,null,null,null,null,"Foreign governments and international organisations",{"$f":"SUMPRODUCT(((T_DataComboFile[Implementation programme]=$G$3)*(T_DataComboFile[Econ3]=$G198))*T_DataComboFile[2021/22 Baseline]*$B$3)","v":0},{"$f":"SUMPRODUCT(((T_DataComboFile[Implementation programme]=$G$3)*(T_DataComboFile[Econ3]=$G198))*T_DataComboFile[2021/22 Revised baseline]*$B$3)","v":0},0,{"$f":"SUMPRODUCT(((T_DataComboFile[Implementation programme]=$G$3)*(T_DataComboFile[Econ3]=$G198))*T_DataComboFile[2022/23 Baseline]*$B$3)","v":0},{"$f":"SUMPRODUCT(((T_DataComboFile[Implementation programme]=$G$3)*(T_DataComboFile[Econ3]=$G198))*T_DataComboFile[2022/23 Revised baseline]*$B$3)","v":0},0,{"$f":"SUMPRODUCT(((T_DataComboFile[Implementation programme]=$G$3)*(T_DataComboFile[Econ3]=$G198))*T_DataComboFile[2023/24 Baseline]*$B$3)","v":0},{"$f":"SUMPRODUCT(((T_DataComboFile[Implementation programme]=$G$3)*(T_DataComboFile[Econ3]=$G198))*T_DataComboFile[2023/24 Revised baseline]*$B$3)","v":0},0]
[0,5,null,null,null,null,"Public corporations and private enterprises",{"$f":"SUMPRODUCT(((T_DataComboFile[Implementation programme]=$G$3)*(T_DataComboFile[Econ3]=$G199))*T_DataComboFile[2021/22 Baseline]*$B$3)","v":0},{"$f":"SUMPRODUCT(((T_DataComboFile[Implementation programme]=$G$3)*(T_DataComboFile[Econ3]=$G199))*T_DataComboFile[2021/22 Revised baseline]*$B$3)","v":0},0,{"$f":"SUMPRODUCT(((T_DataComboFile[Implementation programme]=$G$3)*(T_DataComboFile[Econ3]=$G199))*T_DataComboFile[2022/23 Baseline]*$B$3)","v":0},{"$f":"SUMPRODUCT(((T_DataComboFile[Implementation programme]=$G$3)*(T_DataComboFile[Econ3]=$G199))*T_DataComboFile[2022/23 Revised baseline]*$B$3)","v":0},0,{"$f":"SUMPRODUCT(((T_DataComboFile[Implementation programme]=$G$3)*(T_DataComboFile[Econ3]=$G199))*T_DataComboFile[2023/24 Baseline]*$B$3)","v":0},{"$f":"SUMPRODUCT(((T_DataComboFile[Implementation programme]=$G$3)*(T_DataComboFile[Econ3]=$G199))*T_DataComboFile[2023/24 Revised baseline]*$B$3)","v":0},0]
[0,50,null,null,null,null,"of which:"]
[0,53,null,null,null,null,null,null,null,{"$f":"I201-H201","v":0},null,null,{"$f":"L201-K201","v":0},null,null,{"$f":"O201-N201","v":0}]
[0,53,null,null,null,null,null,null,null,0,null,null,0,null,null,0]
[0,53,null,null,null,null,null,null,null,0,null,null,0,null,null,0]
[0,53,null,null,null,null,null,null,null,0,null,null,0,null,null,0]
[0,53,null,null,null,null,null,null,null,0,null,null,0,null,null,0]
[0,5,null,null,null,null,"Non-profit institutions",{"$f":"SUMPRODUCT(((T_DataComboFile[Implementation programme]=$G$3)*(T_DataComboFile[Econ3]=$G206))*T_DataComboFile[2021/22 Baseline]*$B$3)","v":0},{"$f":"SUMPRODUCT(((T_DataComboFile[Implementation programme]=$G$3)*(T_DataComboFile[Econ3]=$G206))*T_DataComboFile[2021/22 Revised baseline]*$B$3)","v":0},0,{"$f":"SUMPRODUCT(((T_DataComboFile[Implementation programme]=$G$3)*(T_DataComboFile[Econ3]=$G206))*T_DataComboFile[2022/23 Baseline]*$B$3)","v":0},{"$f":"SUMPRODUCT(((T_DataComboFile[Implementation programme]=$G$3)*(T_DataComboFile[Econ3]=$G206))*T_DataComboFile[2022/23 Revised baseline]*$B$3)","v":0},0,{"$f":"SUMPRODUCT(((T_DataComboFile[Implementation programme]=$G$3)*(T_DataComboFile[Econ3]=$G206))*T_DataComboFile[2023/24 Baseline]*$B$3)","v":0},{"$f":"SUMPRODUCT(((T_DataComboFile[Implementation programme]=$G$3)*(T_DataComboFile[Econ3]=$G206))*T_DataComboFile[2023/24 Revised baseline]*$B$3)","v":0},0]
[0,5,null,null,null,null,"Households",{"$f":"SUMPRODUCT(((T_DataComboFile[Implementation programme]=$G$3)*(T_DataComboFile[Econ3]=$G207))*T_DataComboFile[2021/22 Baseline]*$B$3)","v":0},{"$f":"SUMPRODUCT(((T_DataComboFile[Implementation programme]=$G$3)*(T_DataComboFile[Econ3]=$G207))*T_DataComboFile[2021/22 Revised baseline]*$B$3)","v":0},0,{"$f":"SUMPRODUCT(((T_DataComboFile[Implementation programme]=$G$3)*(T_DataComboFile[Econ3]=$G207))*T_DataComboFile[2022/23 Baseline]*$B$3)","v":0},{"$f":"SUMPRODUCT(((T_DataComboFile[Implementation programme]=$G$3)*(T_DataComboFile[Econ3]=$G207))*T_DataComboFile[2022/23 Revised baseline]*$B$3)","v":0},0,{"$f":"SUMPRODUCT(((T_DataComboFile[Implementation programme]=$G$3)*(T_DataComboFile[Econ3]=$G207))*T_DataComboFile[2023/24 Baseline]*$B$3)","v":0},{"$f":"SUMPRODUCT(((T_DataComboFile[Implementation programme]=$G$3)*(T_DataComboFile[Econ3]=$G207))*T_DataComboFile[2023/24 Revised baseline]*$B$3)","v":0},0]
[0,5,null,null,null,null,"Payments for capital assets",{"$f":"SUM(H209:H215)","v":0},0,0,0,0,0,0,{"$f":"SUM(O209:O215)","v":0},0]
[0,5,null,null,null,null,"Buildings and other fixed structures",{"$f":"SUMPRODUCT(((T_DataComboFile[Implementation programme]=$G$3)*(T_DataComboFile[Econ3]=$G209))*T_DataComboFile[2021/22 Baseline]*$B$3)","v":0},{"$f":"SUMPRODUCT(((T_DataComboFile[Implementation programme]=$G$3)*(T_DataComboFile[Econ3]=$G209))*T_DataComboFile[2021/22 Revised baseline]*$B$3)","v":0},0,{"$f":"SUMPRODUCT(((T_DataComboFile[Implementation programme]=$G$3)*(T_DataComboFile[Econ3]=$G209))*T_DataComboFile[2022/23 Baseline]*$B$3)","v":0},{"$f":"SUMPRODUCT(((T_DataComboFile[Implementation programme]=$G$3)*(T_DataComboFile[Econ3]=$G209))*T_DataComboFile[2022/23 Revised baseline]*$B$3)","v":0},0,{"$f":"SUMPRODUCT(((T_DataComboFile[Implementation programme]=$G$3)*(T_DataComboFile[Econ3]=$G209))*T_DataComboFile[2023/24 Baseline]*$B$3)","v":0},{"$f":"SUMPRODUCT(((T_DataComboFile[Implementation programme]=$G$3)*(T_DataComboFile[Econ3]=$G209))*T_DataComboFile[2023/24 Revised baseline]*$B$3)","v":0},0]
[0,5,null,null,null,null,"Machinery and equipment",{"$f":"SUMPRODUCT(((T_DataComboFile[Implementation programme]=$G$3)*(T_DataComboFile[Econ3]=$G210))*T_DataComboFile[2021/22 Baseline]*$B$3)","v":0},{"$f":"SUMPRODUCT(((T_DataComboFile[Implementation programme]=$G$3)*(T_DataComboFile[Econ3]=$G210))*T_DataComboFile[2021/22 Revised baseline]*$B$3)","v":0},0,{"$f":"SUMPRODUCT(((T_DataComboFile[Implementation programme]=$G$3)*(T_DataComboFile[Econ3]=$G210))*T_DataComboFile[2022/23 Baseline]*$B$3)","v":0},{"$f":"SUMPRODUCT(((T_DataComboFile[Implementation programme]=$G$3)*(T_DataComboFile[Econ3]=$G210))*T_DataComboFile[2022/23 Revised baseline]*$B$3)","v":0},0,{"$f":"SUMPRODUCT(((T_DataComboFile[Implementation programme]=$G$3)*(T_DataComboFile[Econ3]=$G210))*T_DataComboFile[2023/24 Baseline]*$B$3)","v":0},{"$f":"SUMPRODUCT(((T_DataComboFile[Implementation programme]=$G$3)*(T_DataComboFile[Econ3]=$G210))*T_DataComboFile[2023/24 Revised baseline]*$B$3)","v":0},0]
[0,5,null,null,null,null,"Heritage assets",{"$f":"SUMPRODUCT(((T_DataComboFile[Implementation programme]=$G$3)*(T_DataComboFile[Econ3]=$G211))*T_DataComboFile[2021/22 Baseline]*$B$3)","v":0},{"$f":"SUMPRODUCT(((T_DataComboFile[Implementation programme]=$G$3)*(T_DataComboFile[Econ3]=$G211))*T_DataComboFile[2021/22 Revised baseline]*$B$3)","v":0},0,{"$f":"SUMPRODUCT(((T_DataComboFile[Implementation programme]=$G$3)*(T_DataComboFile[Econ3]=$G211))*T_DataComboFile[2022/23 Baseline]*$B$3)","v":0},{"$f":"SUMPRODUCT(((T_DataComboFile[Implementation programme]=$G$3)*(T_DataComboFile[Econ3]=$G211))*T_DataComboFile[2022/23 Revised baseline]*$B$3)","v":0},0,{"$f":"SUMPRODUCT(((T_DataComboFile[Implementation programme]=$G$3)*(T_DataComboFile[Econ3]=$G211))*T_DataComboFile[2023/24 Baseline]*$B$3)","v":0},{"$f":"SUMPRODUCT(((T_DataComboFile[Implementation programme]=$G$3)*(T_DataComboFile[Econ3]=$G211))*T_DataComboFile[2023/24 Revised baseline]*$B$3)","v":0},0]
[0,5,null,null,null,null,"Specialised military assets",{"$f":"SUMPRODUCT(((T_DataComboFile[Implementation programme]=$G$3)*(T_DataComboFile[Econ3]=$G212))*T_DataComboFile[2021/22 Baseline]*$B$3)","v":0},{"$f":"SUMPRODUCT(((T_DataComboFile[Implementation programme]=$G$3)*(T_DataComboFile[Econ3]=$G212))*T_DataComboFile[2021/22 Revised baseline]*$B$3)","v":0},0,{"$f":"SUMPRODUCT(((T_DataComboFile[Implementation programme]=$G$3)*(T_DataComboFile[Econ3]=$G212))*T_DataComboFile[2022/23 Baseline]*$B$3)","v":0},{"$f":"SUMPRODUCT(((T_DataComboFile[Implementation programme]=$G$3)*(T_DataComboFile[Econ3]=$G212))*T_DataComboFile[2022/23 Revised baseline]*$B$3)","v":0},0,{"$f":"SUMPRODUCT(((T_DataComboFile[Implementation programme]=$G$3)*(T_DataComboFile[Econ3]=$G212))*T_DataComboFile[2023/24 Baseline]*$B$3)","v":0},{"$f":"SUMPRODUCT(((T_DataComboFile[Implementation programme]=$G$3)*(T_DataComboFile[Econ3]=$G212))*T_DataComboFile[2023/24 Revised baseline]*$B$3)","v":0},0]
[0,5,null,null,null,null,"Biological assets",{"$f":"SUMPRODUCT(((T_DataComboFile[Implementation programme]=$G$3)*(T_DataComboFile[Econ3]=$G213))*T_DataComboFile[2021/22 Baseline]*$B$3)","v":0},{"$f":"SUMPRODUCT(((T_DataComboFile[Implementation programme]=$G$3)*(T_DataComboFile[Econ3]=$G213))*T_DataComboFile[2021/22 Revised baseline]*$B$3)","v":0},0,{"$f":"SUMPRODUCT(((T_DataComboFile[Implementation programme]=$G$3)*(T_DataComboFile[Econ3]=$G213))*T_DataComboFile[2022/23 Baseline]*$B$3)","v":0},{"$f":"SUMPRODUCT(((T_DataComboFile[Implementation programme]=$G$3)*(T_DataComboFile[Econ3]=$G213))*T_DataComboFile[2022/23 Revised baseline]*$B$3)","v":0},0,{"$f":"SUMPRODUCT(((T_DataComboFile[Implementation programme]=$G$3)*(T_DataComboFile[Econ3]=$G213))*T_DataComboFile[2023/24 Baseline]*$B$3)","v":0},{"$f":"SUMPRODUCT(((T_DataComboFile[Implementation programme]=$G$3)*(T_DataComboFile[Econ3]=$G213))*T_DataComboFile[2023/24 Revised baseline]*$B$3)","v":0},0]
[0,5,null,null,null,null,"Land and sub-soil assets",{"$f":"SUMPRODUCT(((T_DataComboFile[Implementation programme]=$G$3)*(T_DataComboFile[Econ3]=$G214))*T_DataComboFile[2021/22 Baseline]*$B$3)","v":0},{"$f":"SUMPRODUCT(((T_DataComboFile[Implementation programme]=$G$3)*(T_DataComboFile[Econ3]=$G214))*T_DataComboFile[2021/22 Revised baseline]*$B$3)","v":0},0,{"$f":"SUMPRODUCT(((T_DataComboFile[Implementation programme]=$G$3)*(T_DataComboFile[Econ3]=$G214))*T_DataComboFile[2022/23 Baseline]*$B$3)","v":0},{"$f":"SUMPRODUCT(((T_DataComboFile[Implementation programme]=$G$3)*(T_DataComboFile[Econ3]=$G214))*T_DataComboFile[2022/23 Revised baseline]*$B$3)","v":0},0,{"$f":"SUMPRODUCT(((T_DataComboFile[Implementation programme]=$G$3)*(T_DataComboFile[Econ3]=$G214))*T_DataComboFile[2023/24 Baseline]*$B$3)","v":0},{"$f":"SUMPRODUCT(((T_DataComboFile[Implementation programme]=$G$3)*(T_DataComboFile[Econ3]=$G214))*T_DataComboFile[2023/24 Revised baseline]*$B$3)","v":0},0]
[0,5,null,null,null,null,"Software and other intangible assets",{"$f":"SUMPRODUCT(((T_DataComboFile[Implementation programme]=$G$3)*(T_DataComboFile[Econ3]=$G215))*T_DataComboFile[2021/22 Baseline]*$B$3)","v":0},{"$f":"SUMPRODUCT(((T_DataComboFile[Implementation programme]=$G$3)*(T_DataComboFile[Econ3]=$G215))*T_DataComboFile[2021/22 Revised baseline]*$B$3)","v":0},0,{"$f":"SUMPRODUCT(((T_DataComboFile[Implementation programme]=$G$3)*(T_DataComboFile[Econ3]=$G215))*T_DataComboFile[2022/23 Baseline]*$B$3)","v":0},{"$f":"SUMPRODUCT(((T_DataComboFile[Implementation programme]=$G$3)*(T_DataComboFile[Econ3]=$G215))*T_DataComboFile[2022/23 Revised baseline]*$B$3)","v":0},0,{"$f":"SUMPRODUCT(((T_DataComboFile[Implementation programme]=$G$3)*(T_DataComboFile[Econ3]=$G215))*T_DataComboFile[2023/24 Baseline]*$B$3)","v":0},{"$f":"SUMPRODUCT(((T_DataComboFile[Implementation programme]=$G$3)*(T_DataComboFile[Econ3]=$G215))*T_DataComboFile[2023/24 Revised baseline]*$B$3)","v":0},0]
[0,5,null,null,null,null,"Payments for financial assets",{"$f":"SUMPRODUCT(((T_DataComboFile[Implementation programme]=$G$3)*(T_DataComboFile[Econ3]=$G216))*T_DataComboFile[2021/22 Baseline]*$B$3)","v":0},{"$f":"SUMPRODUCT(((T_DataComboFile[Implementation programme]=$G$3)*(T_DataComboFile[Econ3]=$G216))*T_DataComboFile[2021/22 Revised baseline]*$B$3)","v":0},0,{"$f":"SUMPRODUCT(((T_DataComboFile[Implementation programme]=$G$3)*(T_DataComboFile[Econ3]=$G216))*T_DataComboFile[2022/23 Baseline]*$B$3)","v":0},{"$f":"SUMPRODUCT(((T_DataComboFile[Implementation programme]=$G$3)*(T_DataComboFile[Econ3]=$G216))*T_DataComboFile[2022/23 Revised baseline]*$B$3)","v":0},0,{"$f":"SUMPRODUCT(((T_DataComboFile[Implementation programme]=$G$3)*(T_DataComboFile[Econ3]=$G216))*T_DataComboFile[2023/24 Baseline]*$B$3)","v":0},{"$f":"SUMPRODUCT(((T_DataComboFile[Implementation programme]=$G$3)*(T_DataComboFile[Econ3]=$G216))*T_DataComboFile[2023/24 Revised baseline]*$B$3)","v":0},0]
[0,5,null,null,null,null,"Total",{"$f":"SUM(H173,H183,H208,H216)","v":0},0,0,0,0,0,0,{"$f":"SUM(O173,O183,O208,O216)","v":0},0]
[]
[null,null,null,null,null,null,null,{"$f":"L65-H217","v":0},{"$f":"O65-I217","v":0},null,{"$f":"P65-K217","v":0},{"$f":"S65-L217","v":0},null,{"$f":"T65-N217","v":0},{"$f":"W65-O217","v":0}]

{"sheet":"IP7","index":16,"n_rows":219,"n_cols":23,"rows_kept":219,"cut":false,"hidden":false,"merged":[[70,6,70,17],[73,6,87,17],[94,16,94,20],[94,21,94,23],[95,16,95,20],[95,21,95,23],[99,16,99,20],[99,21,99,23],[100,16,100,20],[100,21,100,23],[101,16,101,20],[101,21,101,23],[96,16,96,20],[96,21,96,23],[97,16,97,20],[97,21,97,23],[98,16,98,20],[98,21,98,23],[105,16,105,20],[105,21,105,23],[106,16,106,20],[106,21,106,23],[107,16,107,20],[107,21,107,23],[102,16,102,20],[102,21,102,23],[103,16,103,20],[103,21,103,23],[104,16,104,20],[104,21,104,23],[117,16,117,20],[118,16,118,20],[119,16,119,20],[120,16,120,20],[121,16,121,20],[122,16,122,20],[108,16,108,20],[108,21,108,23],[109,16,109,20],[109,21,109,23],[110,16,110,20],[110,21,110,23],[129,16,129,20],[130,16,130,20],[131,16,131,20],[132,16,132,20],[133,16,133,20],[141,16,141,20],[123,16,123,20],[124,16,124,20],[125,16,125,20],[126,16,126,20],[127,16,127,20],[128,16,128,20],[174,16,174,20],[175,16,175,20],[176,16,176,20],[177,16,177,20],[178,16,178,20],[179,16,179,20],[142,16,142,20],[143,16,162,20],[170,16,170,20],[171,16,171,20],[172,16,172,20],[173,16,173,20],[186,16,186,20],[187,16,187,20],[188,16,188,20],[189,16,189,20],[190,16,190,20],[191,16,191,20],[180,16,180,20],[181,16,181,20],[182,16,182,20],[183,16,183,20],[184,16,184,20],[185,16,185,20],[198,16,198,20],[199,16,199,20],[200,16,200,20],[201,16,201,20],[202,16,202,20],[203,16,203,20],[192,16,192,20],[193,16,193,20],[194,16,194,20],[195,16,195,20],[196,16,196,20],[197,16,197,20],[210,16,210,20],[211,16,211,20],[212,16,212,20],[213,16,213,20],[214,16,214,20],[215,16,215,20],[204,16,204,20],[205,16,205,20],[206,16,206,20],[207,16,207,20],[208,16,208,20],[209,16,209,20]]}
[]
[null,null,null,null,null,null,"Implementation programme:"]
[null,{"$f":"IF(G3=\"\",0,1)","v":0},null,null,null,7,null,"… select from dropdown list"]
[null,null,null,null,null,null,null,null,null,null,null,null,"Growth"]
[null,null,null,null,null,null,"Quick view","2020/21","2021/22","2022/23","2023/24","Trend","2021/22","2022/23","2023/24","Ave Ann",null,"2020/21","2021/22","2022/23","2023/24"]
[null,null,null,null,null,null,"Compensation of employees",{"$f":"SUMPRODUCT(($G$32:$G$65=$G6)*($K$32:$K$65))","v":0},{"$f":"SUMPRODUCT(($G$32:$G$65=$G6)*($O$32:$O$65))","v":0},{"$f":"SUMPRODUCT(($G$32:$G$65=$G6)*($S$32:$S$65))","v":0},{"$f":"SUMPRODUCT(($G$32:$G$65=$G6)*($W$32:$W$65))","v":0},null,{"$f":"IFERROR(I6/H6-1,0)","v":0},0,0,{"$f":"IFERROR(((K6/H6)^(1/3)-1),0)","v":0}]
[null,null,null,null,null,null,"Goods and services",{"$f":"SUMPRODUCT(($G$32:$G$65=$G7)*($K$32:$K$65))","v":0},{"$f":"SUMPRODUCT(($G$32:$G$65=$G7)*($O$32:$O$65))","v":0},{"$f":"SUMPRODUCT(($G$32:$G$65=$G7)*($S$32:$S$65))","v":0},{"$f":"SUMPRODUCT(($G$32:$G$65=$G7)*($W$32:$W$65))","v":0},null,0,0,0,0]
[null,null,null,null,null,null,"Transfers and subsidies",{"$f":"SUMPRODUCT(($G$32:$G$65=$G8)*($K$32:$K$65))","v":0},{"$f":"SUMPRODUCT(($G$32:$G$65=$G8)*($O$32:$O$65))","v":0},{"$f":"SUMPRODUCT(($G$32:$G$65=$G8)*($S$32:$S$65))","v":0},{"$f":"SUMPRODUCT(($G$32:$G$65=$G8)*($W$32:$W$65))","v":0},null,0,0,0,0]
[null,null,null,null,null,null,"Payments for capital assets",{"$f":"SUMPRODUCT(($G$32:$G$65=$G9)*($K$32:$K$65))","v":0},{"$f":"SUMPRODUCT(($G$32:$G$65=$G9)*($O$32:$O$65))","v":0},{"$f":"SUMPRODUCT(($G$32:$G$65=$G9)*($S$32:$S$65))","v":0},{"$f":"SUMPRODUCT(($G$32:$G$65=$G9)*($W$32:$W$65))","v":0},null,0,0,0,0]
[null,null,null,null,null,null,"Total",{"$f":"SUMPRODUCT(($G$32:$G$65=$G10)*($K$32:$K$65))","v":0},{"$f":"SUMPRODUCT(($G$32:$G$65=$G10)*($O$32:$O$65))","v":0},{"$f":"SUMPRODUCT(($G$32:$G$65=$G10)*($S$32:$S$65))","v":0},{"$f":"SUMPRODUCT(($G$32:$G$65=$G10)*($W$32:$W$65))","v":0},null,0,0,0,0]
[null,null,null,null,null,null,"Composition of spending (% of Total)"]
[null,null,null,null,null,null,"Compensation of employees",{"$f":"IFERROR(H6/H$10,\"\")","v":""},"","","",null,null,null,null,null,null,{"$f":"IF(H12>0.0595,H12,\"\")","v":""},"","",""]
[null,null,null,null,null,null,"Goods and services","","","","",null,null,null,null,null,null,"","","",""]
[null,null,null,null,null,null,"Transfers and subsidies","","","","",null,null,null,null,null,null,"","","",""]
[null,null,null,null,null,null,"Payments for capital assets","","","","",null,null,null,null,null,null,"","","",""]
[]
[null,null,null,null,null,null,"Division of Revenue","2020/21","2021/22","2022/23","2023/24","Trend","2021/22","2022/23","2023/24","Ave Ann"]
[{"$f":"$G$3","v":0},"NAT",null,null,null,null,"National",{"$f":"SUMPRODUCT(((T_DataComboFile[Implementation programme]=$G$3)*(T_DataComboFile[DOR]=$B18))*T_DataComboFile[2020/21 Revised])","v":2331086},{"$f":"SUMPRODUCT(((T_DataComboFile[Implementation programme]=$G$3)*(T_DataComboFile[DOR]=$B18))*T_DataComboFile[2021/22 Revised baseline])","v":2583809},{"$f":"SUMPRODUCT(((T_DataComboFile[Implementation programme]=$G$3)*(T_DataComboFile[DOR]=$B18))*T_DataComboFile[2022/23 Revised baseline])","v":2617960},{"$f":"SUMPRODUCT(((T_DataComboFile[Implementation programme]=$G$3)*(T_DataComboFile[DOR]=$B18))*T_DataComboFile[2023/24 Revised baseline])","v":2733345},null,{"$f":"IFERROR(I18/H18-1,0)","v":0.10841427557799244},{"$f":"IFERROR(J18/I18-1,0)","v":1.3217308245307535E-2},{"$f":"IFERROR(K18/J18-1,0)","v":4.4074393802808309E-2},{"$f":"IFERROR(((K18/H18)^(1/3)-1),0)","v":5.449708876349435E-2}]
[0,null,null,null,null,null,"Provincial",{"$f":"SUM(H20:H21)","v":0},0,0,0,null,0,0,0,0]
[0,"PES",null,null,null,null,"Provincial equitable share",{"$f":"SUMPRODUCT(((T_DataComboFile[Implementation programme]=$G$3)*(T_DataComboFile[DOR]=$B20))*T_DataComboFile[2020/21 Revised])","v":0},{"$f":"SUMPRODUCT(((T_DataComboFile[Implementation programme]=$G$3)*(T_DataComboFile[DOR]=$B20))*T_DataComboFile[2021/22 Revised baseline])","v":0},{"$f":"SUMPRODUCT(((T_DataComboFile[Implementation programme]=$G$3)*(T_DataComboFile[DOR]=$B20))*T_DataComboFile[2022/23 Revised baseline])","v":0},{"$f":"SUMPRODUCT(((T_DataComboFile[Implementation programme]=$G$3)*(T_DataComboFile[DOR]=$B20))*T_DataComboFile[2023/24 Revised baseline])","v":0},null,{"$f":"IFERROR(I20/H20-1,0)","v":0},0,0,{"$f":"IFERROR(((K20/H20)^(1/3)-1),0)","v":0}]
[0,"PCG",null,null,null,null,"Provincial conditional grants",{"$f":"SUMPRODUCT(((T_DataComboFile[Implementation programme]=$G$3)*(T_DataComboFile[DOR]=$B21))*T_DataComboFile[2020/21 Revised])","v":0},{"$f":"SUMPRODUCT(((T_DataComboFile[Implementation programme]=$G$3)*(T_DataComboFile[DOR]=$B21))*T_DataComboFile[2021/22 Revised baseline])","v":0},{"$f":"SUMPRODUCT(((T_DataComboFile[Implementation programme]=$G$3)*(T_DataComboFile[DOR]=$B21))*T_DataComboFile[2022/23 Revised baseline])","v":0},{"$f":"SUMPRODUCT(((T_DataComboFile[Implementation programme]=$G$3)*(T_DataComboFile[DOR]=$B21))*T_DataComboFile[2023/24 Revised baseline])","v":0},null,0,0,0,0]
[0,null,null,null,null,null,"Local government",{"$f":"SUM(H23:H25)","v":0},0,0,0,null,{"$f":"IFERROR(I22/H22-1,0)","v":0},{"$f":"IFERROR(J22/I22-1,0)","v":0},{"$f":"IFERROR(K22/J22-1,0)","v":0},{"$f":"IFERROR(((K22/H22)^(1/3)-1),0)","v":0}]
[0,"LES",null,null,null,null,"Local equitable share",{"$f":"SUMPRODUCT(((T_DataComboFile[Implementation programme]=$G$3)*(T_DataComboFile[DOR]=$B23))*T_DataComboFile[2020/21 Revised])","v":0},{"$f":"SUMPRODUCT(((T_DataComboFile[Implementation programme]=$G$3)*(T_DataComboFile[DOR]=$B23))*T_DataComboFile[2021/22 Revised baseline])","v":0},{"$f":"SUMPRODUCT(((T_DataComboFile[Implementation programme]=$G$3)*(T_DataComboFile[DOR]=$B23))*T_DataComboFile[2022/23 Revised baseline])","v":0},{"$f":"SUMPRODUCT(((T_DataComboFile[Implementation programme]=$G$3)*(T_DataComboFile[DOR]=$B23))*T_DataComboFile[2023/24 Revised baseline])","v":0},null,{"$f":"IFERROR(I23/H23-1,0)","v":0},0,0,{"$f":"IFERROR(((K23/H23)^(1/3)-1),0)","v":0}]
[0,"LCG",null,null,null,null,"Local conditional grants",{"$f":"SUMPRODUCT(((T_DataComboFile[Implementation programme]=$G$3)*(T_DataComboFile[DOR]=$B24))*T_DataComboFile[2020/21 Revised])","v":0},{"$f":"SUMPRODUCT(((T_DataComboFile[Implementation programme]=$G$3)*(T_DataComboFile[DOR]=$B24))*T_DataComboFile[2021/22 Revised baseline])","v":0},{"$f":"SUMPRODUCT(((T_DataComboFile[Implementation programme]=$G$3)*(T_DataComboFile[DOR]=$B24))*T_DataComboFile[2022/23 Revised baseline])","v":0},{"$f":"SUMPRODUCT(((T_DataComboFile[Implementation programme]=$G$3)*(T_DataComboFile[DOR]=$B24))*T_DataComboFile[2023/24 Revised baseline])","v":0},null,0,0,0,0]
[0,"GFL",null,null,null,null,"General fuel levy ",{"$f":"SUMPRODUCT(((T_DataComboFile[Implementation programme]=$G$3)*(T_DataComboFile[DOR]=$B25))*T_DataComboFile[2020/21 Revised])","v":0},{"$f":"SUMPRODUCT(((T_DataComboFile[Implementation programme]=$G$3)*(T_DataComboFile[DOR]=$B25))*T_DataComboFile[2021/22 Revised baseline])","v":0},{"$f":"SUMPRODUCT(((T_DataComboFile[Implementation programme]=$G$3)*(T_DataComboFile[DOR]=$B25))*T_DataComboFile[2022/23 Revised baseline])","v":0},{"$f":"SUMPRODUCT(((T_DataComboFile[Implementation programme]=$G$3)*(T_DataComboFile[DOR]=$B25))*T_DataComboFile[2023/24 Revised baseline])","v":0},null,0,0,0,0]
[]
[]
[null,null,null,null,null,null,{"$f":"G3","v":0}]
[{"$f":"$G$3","v":0},0,null,null,null,null,null,"2017/18","2018/19","2019/20","2020/21","2021/22",null,null,null,"2022/23",null,null,null,"2023/24"]
[{"$f":"$G$3","v":0},0,null,null,null,null,"Rand thousand","Audited outcome","Audited outcome","Pre-audited outcome","Budget","Baseline","Decrease","Increase","Revised baseline","Baseline","Decrease","Increase","Revised baseline","Baseline","Decrease","Increase","Revised baseline"]
[0,0,null,null,null,null,"Economic classification"]
[0,0,null,null,null,null,"Current payments",{"$f":"SUM(H33:H35)","v":0},0,0,0,0,0,0,0,0,0,0,0,0,0,0,0]
[0,0,null,null,null,null,"Compensation of employees",{"$f":"SUMPRODUCT(((T_DataComboFile[Implementation programme]=$G$3)*(T_DataComboFile[Econ3]=$G33))*T_DataComboFile[2017/18]*$B$3)","v":0},{"$f":"SUMPRODUCT(((T_DataComboFile[Implementation programme]=$G$3)*(T_DataComboFile[Econ3]=$G33))*T_DataComboFile[2018/19]*$B$3)","v":0},{"$f":"SUMPRODUCT(((T_DataComboFile[Implementation programme]=$G$3)*(T_DataComboFile[Econ3]=$G33))*T_DataComboFile[2019/20 Revised estimate]*$B$3)","v":0},{"$f":"SUMPRODUCT(((T_DataComboFile[Implementation programme]=$G$3)*(T_DataComboFile[Econ3]=$G33))*T_DataComboFile[2020/21 Revised]*$B$3)","v":0},{"$f":"SUMPRODUCT(((T_DataComboFile[Implementation programme]=$G$3)*(T_DataComboFile[Econ3]=$G33))*T_DataComboFile[2021/22 Baseline]*$B$3)","v":0},{"$f":"SUMPRODUCT(((T_DataComboFile[Implementation programme]=$G$3)*(T_DataComboFile[Econ3]=$G33))*T_DataComboFile[2021/22 Reduction]*$B$3)","v":0},{"$f":"SUMPRODUCT(((T_DataComboFile[Implementation programme]=$G$3)*(T_DataComboFile[Econ3]=$G33))*T_DataComboFile[2021/22 Increase]*$B$3)","v":0},{"$f":"L33+M33+N33","v":0},{"$f":"SUMPRODUCT(((T_DataComboFile[Implementation programme]=$G$3)*(T_DataComboFile[Econ3]=$G33))*T_DataComboFile[2022/23 Baseline]*$B$3)","v":0},{"$f":"SUMPRODUCT(((T_DataComboFile[Implementation programme]=$G$3)*(T_DataComboFile[Econ3]=$G33))*T_DataComboFile[2022/23 Reduction]*$B$3)","v":0},{"$f":"SUMPRODUCT(((T_DataComboFile[Implementation programme]=$G$3)*(T_DataComboFile[Econ3]=$G33))*T_DataComboFile[2022/23 Increase]*$B$3)","v":0},{"$f":"P33+Q33+R33","v":0},{"$f":"SUMPRODUCT(((T_DataComboFile[Implementation programme]=$G$3)*(T_DataComboFile[Econ3]=$G33))*T_DataComboFile[2023/24 Baseline]*$B$3)","v":0},{"$f":"SUMPRODUCT(((T_DataComboFile[Implementation programme]=$G$3)*(T_DataComboFile[Econ3]=$G33))*T_DataComboFile[2023/24 Reduction]*$B$3)","v":0},{"$f":"SUMPRODUCT(((T_DataComboFile[Implementation programme]=$G$3)*(T_DataComboFile[Econ3]=$G33))*T_DataComboFile[2023/24 Increase]*$B$3)","v":0},{"$f":"T33+U33+V33","v":0}]
[0,0,null,null,null,null,"Goods and services",{"$f":"SUMPRODUCT(((T_DataComboFile[Implementation programme]=$G$3)*(T_DataComboFile[Econ3]=$G34))*T_DataComboFile[2017/18]*$B$3)","v":0},{"$f":"SUMPRODUCT(((T_DataComboFile[Implementation programme]=$G$3)*(T_DataComboFile[Econ3]=$G34))*T_DataComboFile[2018/19]*$B$3)","v":0},{"$f":"SUMPRODUCT(((T_DataComboFile[Implementation programme]=$G$3)*(T_DataComboFile[Econ3]=$G34))*T_DataComboFile[2019/20 Revised estimate]*$B$3)","v":0},{"$f":"SUMPRODUCT(((T_DataComboFile[Implementation programme]=$G$3)*(T_DataComboFile[Econ3]=$G34))*T_DataComboFile[2020/21 Revised]*$B$3)","v":0},{"$f":"SUMPRODUCT(((T_DataComboFile[Implementation programme]=$G$3)*(T_DataComboFile[Econ3]=$G34))*T_DataComboFile[2021/22 Baseline]*$B$3)","v":0},{"$f":"SUMPRODUCT(((T_DataComboFile[Implementation programme]=$G$3)*(T_DataComboFile[Econ3]=$G34))*T_DataComboFile[2021/22 Reduction]*$B$3)","v":0},{"$f":"SUMPRODUCT(((T_DataComboFile[Implementation programme]=$G$3)*(T_DataComboFile[Econ3]=$G34))*T_DataComboFile[2021/22 Increase]*$B$3)","v":0},0,{"$f":"SUMPRODUCT(((T_DataComboFile[Implementation programme]=$G$3)*(T_DataComboFile[Econ3]=$G34))*T_DataComboFile[2022/23 Baseline]*$B$3)","v":0},{"$f":"SUMPRODUCT(((T_DataComboFile[Implementation programme]=$G$3)*(T_DataComboFile[Econ3]=$G34))*T_DataComboFile[2022/23 Reduction]*$B$3)","v":0},{"$f":"SUMPRODUCT(((T_DataComboFile[Implementation programme]=$G$3)*(T_DataComboFile[Econ3]=$G34))*T_DataComboFile[2022/23 Increase]*$B$3)","v":0},0,{"$f":"SUMPRODUCT(((T_DataComboFile[Implementation programme]=$G$3)*(T_DataComboFile[Econ3]=$G34))*T_DataComboFile[2023/24 Baseline]*$B$3)","v":0},{"$f":"SUMPRODUCT(((T_DataComboFile[Implementation programme]=$G$3)*(T_DataComboFile[Econ3]=$G34))*T_DataComboFile[2023/24 Reduction]*$B$3)","v":0},{"$f":"SUMPRODUCT(((T_DataComboFile[Implementation programme]=$G$3)*(T_DataComboFile[Econ3]=$G34))*T_DataComboFile[2023/24 Increase]*$B$3)","v":0},0]
[0,0,null,null,null,null,"Interest and rent on land",{"$f":"SUMPRODUCT(((T_DataComboFile[Implementation programme]=$G$3)*(T_DataComboFile[Econ3]=$G35))*T_DataComboFile[2017/18]*$B$3)","v":0},{"$f":"SUMPRODUCT(((T_DataComboFile[Implementation programme]=$G$3)*(T_DataComboFile[Econ3]=$G35))*T_DataComboFile[2018/19]*$B$3)","v":0},{"$f":"SUMPRODUCT(((T_DataComboFile[Implementation programme]=$G$3)*(T_DataComboFile[Econ3]=$G35))*T_DataComboFile[2019/20 Revised estimate]*$B$3)","v":0},{"$f":"SUMPRODUCT(((T_DataComboFile[Implementation programme]=$G$3)*(T_DataComboFile[Econ3]=$G35))*T_DataComboFile[2020/21 Revised]*$B$3)","v":0},{"$f":"SUMPRODUCT(((T_DataComboFile[Implementation programme]=$G$3)*(T_DataComboFile[Econ3]=$G35))*T_DataComboFile[2021/22 Baseline]*$B$3)","v":0},{"$f":"SUMPRODUCT(((T_DataComboFile[Implementation programme]=$G$3)*(T_DataComboFile[Econ3]=$G35))*T_DataComboFile[2021/22 Reduction]*$B$3)","v":0},{"$f":"SUMPRODUCT(((T_DataComboFile[Implementation programme]=$G$3)*(T_DataComboFile[Econ3]=$G35))*T_DataComboFile[2021/22 Increase]*$B$3)","v":0},0,{"$f":"SUMPRODUCT(((T_DataComboFile[Implementation programme]=$G$3)*(T_DataComboFile[Econ3]=$G35))*T_DataComboFile[2022/23 Baseline]*$B$3)","v":0},{"$f":"SUMPRODUCT(((T_DataComboFile[Implementation programme]=$G$3)*(T_DataComboFile[Econ3]=$G35))*T_DataComboFile[2022/23 Reduction]*$B$3)","v":0},{"$f":"SUMPRODUCT(((T_DataComboFile[Implementation programme]=$G$3)*(T_DataComboFile[Econ3]=$G35))*T_DataComboFile[2022/23 Increase]*$B$3)","v":0},0,{"$f":"SUMPRODUCT(((T_DataComboFile[Implementation programme]=$G$3)*(T_DataComboFile[Econ3]=$G35))*T_DataComboFile[2023/24 Baseline]*$B$3)","v":0},{"$f":"SUMPRODUCT(((T_DataComboFile[Implementation programme]=$G$3)*(T_DataComboFile[Econ3]=$G35))*T_DataComboFile[2023/24 Reduction]*$B$3)","v":0},{"$f":"SUMPRODUCT(((T_DataComboFile[Implementation programme]=$G$3)*(T_DataComboFile[Econ3]=$G35))*T_DataComboFile[2023/24 Increase]*$B$3)","v":0},0]
[0,0,null,null,null,null,"Transfers and subsidies",{"$f":"SUM(H37,H40,H43:H45,H48:H49)","v":0},0,0,0,0,0,0,0,0,0,0,0,0,0,0,0]
[0,0,null,null,null,null,"Provinces and municipalities",{"$f":"SUM(H38:H39)","v":0},0,0,0,0,0,0,0,0,0,0,0,0,0,0,0]
[0,0,null,null,null,null,"Provinces",{"$f":"SUMPRODUCT(((T_DataComboFile[Implementation programme]=$G$3)*(T_DataComboFile[Econ4]=$G38))*T_DataComboFile[2017/18]*$B$3)","v":0},{"$f":"SUMPRODUCT(((T_DataComboFile[Implementation programme]=$G$3)*(T_DataComboFile[Econ4]=$G38))*T_DataComboFile[2018/19]*$B$3)","v":0},{"$f":"SUMPRODUCT(((T_DataComboFile[Implementation programme]=$G$3)*(T_DataComboFile[Econ4]=$G38))*T_DataComboFile[2019/20 Revised estimate]*$B$3)","v":0},{"$f":"SUMPRODUCT(((T_DataComboFile[Implementation programme]=$G$3)*(T_DataComboFile[Econ4]=$G38))*T_DataComboFile[2020/21 Revised]*$B$3)","v":0},{"$f":"SUMPRODUCT(((T_DataComboFile[Implementation programme]=$G$3)*(T_DataComboFile[Econ4]=$G38))*T_DataComboFile[2021/22 Baseline]*$B$3)","v":0},{"$f":"SUMPRODUCT(((T_DataComboFile[Implementation programme]=$G$3)*(T_DataComboFile[Econ4]=$G38))*T_DataComboFile[2021/22 Reduction]*$B$3)","v":0},{"$f":"SUMPRODUCT(((T_DataComboFile[Implementation programme]=$G$3)*(T_DataComboFile[Econ4]=$G38))*T_DataComboFile[2021/22 Increase]*$B$3)","v":0},{"$f":"L38+M38+N38","v":0},{"$f":"SUMPRODUCT(((T_DataComboFile[Implementation programme]=$G$3)*(T_DataComboFile[Econ4]=$G38))*T_DataComboFile[2022/23 Baseline]*$B$3)","v":0},{"$f":"SUMPRODUCT(((T_DataComboFile[Implementation programme]=$G$3)*(T_DataComboFile[Econ4]=$G38))*T_DataComboFile[2022/23 Reduction]*$B$3)","v":0},{"$f":"SUMPRODUCT(((T_DataComboFile[Implementation programme]=$G$3)*(T_DataComboFile[Econ4]=$G38))*T_DataComboFile[2022/23 Increase]*$B$3)","v":0},{"$f":"P38+Q38+R38","v":0},{"$f":"SUMPRODUCT(((T_DataComboFile[Implementation programme]=$G$3)*(T_DataComboFile[Econ4]=$G38))*T_DataComboFile[2023/24 Baseline]*$B$3)","v":0},{"$f":"SUMPRODUCT(((T_DataComboFile[Implementation programme]=$G$3)*(T_DataComboFile[Econ4]=$G38))*T_DataComboFile[2023/24 Reduction]*$B$3)","v":0},{"$f":"SUMPRODUCT(((T_DataComboFile[Implementation programme]=$G$3)*(T_DataComboFile[Econ4]=$G38))*T_DataComboFile[2023/24 Increase]*$B$3)","v":0},{"$f":"T38+U38+V38","v":0}]
[0,0,null,null,null,null,"Municipalities",{"$f":"SUMPRODUCT(((T_DataComboFile[Implementation programme]=$G$3)*(T_DataComboFile[Econ4]=$G39))*T_DataComboFile[2017/18]*$B$3)","v":0},{"$f":"SUMPRODUCT(((T_DataComboFile[Implementation programme]=$G$3)*(T_DataComboFile[Econ4]=$G39))*T_DataComboFile[2018/19]*$B$3)","v":0},{"$f":"SUMPRODUCT(((T_DataComboFile[Implementation programme]=$G$3)*(T_DataComboFile[Econ4]=$G39))*T_DataComboFile[2019/20 Revised estimate]*$B$3)","v":0},{"$f":"SUMPRODUCT(((T_DataComboFile[Implementation programme]=$G$3)*(T_DataComboFile[Econ4]=$G39))*T_DataComboFile[2020/21 Revised]*$B$3)","v":0},{"$f":"SUMPRODUCT(((T_DataComboFile[Implementation programme]=$G$3)*(T_DataComboFile[Econ4]=$G39))*T_DataComboFile[2021/22 Baseline]*$B$3)","v":0},{"$f":"SUMPRODUCT(((T_DataComboFile[Implementation programme]=$G$3)*(T_DataComboFile[Econ4]=$G39))*T_DataComboFile[2021/22 Reduction]*$B$3)","v":0},{"$f":"SUMPRODUCT(((T_DataComboFile[Implementation programme]=$G$3)*(T_DataComboFile[Econ4]=$G39))*T_DataComboFile[2021/22 Increase]*$B$3)","v":0},0,{"$f":"SUMPRODUCT(((T_DataComboFile[Implementation programme]=$G$3)*(T_DataComboFile[Econ4]=$G39))*T_DataComboFile[2022/23 Baseline]*$B$3)","v":0},{"$f":"SUMPRODUCT(((T_DataComboFile[Implementation programme]=$G$3)*(T_DataComboFile[Econ4]=$G39))*T_DataComboFile[2022/23 Reduction]*$B$3)","v":0},{"$f":"SUMPRODUCT(((T_DataComboFile[Implementation programme]=$G$3)*(T_DataComboFile[Econ4]=$G39))*T_DataComboFile[2022/23 Increase]*$B$3)","v":0},0,{"$f":"SUMPRODUCT(((T_DataComboFile[Implementation programme]=$G$3)*(T_DataComboFile[Econ4]=$G39))*T_DataComboFile[2023/24 Baseline]*$B$3)","v":0},{"$f":"SUMPRODUCT(((T_DataComboFile[Implementation programme]=$G$3)*(T_DataComboFile[Econ4]=$G39))*T_DataComboFile[2023/24 Reduction]*$B$3)","v":0},{"$f":"SUMPRODUCT(((T_DataComboFile[Implementation programme]=$G$3)*(T_DataComboFile[Econ4]=$G39))*T_DataComboFile[2023/24 Increase]*$B$3)","v":0},0]
[0,0,null,null,null,null,"Departmental agencies and accounts",{"$f":"SUM(H41:H42)","v":0},0,0,0,0,0,0,0,0,0,0,0,0,0,0,0]
[0,0,null,null,null,null,"Social security funds",{"$f":"SUMPRODUCT(((T_DataComboFile[Implementation programme]=$G$3)*(T_DataComboFile[Econ4]=$G41))*T_DataComboFile[2017/18]*$B$3)","v":0},{"$f":"SUMPRODUCT(((T_DataComboFile[Implementation programme]=$G$3)*(T_DataComboFile[Econ4]=$G41))*T_DataComboFile[2018/19]*$B$3)","v":0},{"$f":"SUMPRODUCT(((T_DataComboFile[Implementation programme]=$G$3)*(T_DataComboFile[Econ4]=$G41))*T_DataComboFile[2019/20 Revised estimate]*$B$3)","v":0},{"$f":"SUMPRODUCT(((T_DataComboFile[Implementation programme]=$G$3)*(T_DataComboFile[Econ4]=$G41))*T_DataComboFile[2020/21 Revised]*$B$3)","v":0},{"$f":"SUMPRODUCT(((T_DataComboFile[Implementation programme]=$G$3)*(T_DataComboFile[Econ4]=$G41))*T_DataComboFile[2021/22 Baseline]*$B$3)","v":0},{"$f":"SUMPRODUCT(((T_DataComboFile[Implementation programme]=$G$3)*(T_DataComboFile[Econ4]=$G41))*T_DataComboFile[2021/22 Reduction]*$B$3)","v":0},{"$f":"SUMPRODUCT(((T_DataComboFile[Implementation programme]=$G$3)*(T_DataComboFile[Econ4]=$G41))*T_DataComboFile[2021/22 Increase]*$B$3)","v":0},{"$f":"L41+M41+N41","v":0},{"$f":"SUMPRODUCT(((T_DataComboFile[Implementation programme]=$G$3)*(T_DataComboFile[Econ4]=$G41))*T_DataComboFile[2022/23 Baseline]*$B$3)","v":0},{"$f":"SUMPRODUCT(((T_DataComboFile[Implementation programme]=$G$3)*(T_DataComboFile[Econ4]=$G41))*T_DataComboFile[2022/23 Reduction]*$B$3)","v":0},{"$f":"SUMPRODUCT(((T_DataComboFile[Implementation programme]=$G$3)*(T_DataComboFile[Econ4]=$G41))*T_DataComboFile[2022/23 Increase]*$B$3)","v":0},{"$f":"P41+Q41+R41","v":0},{"$f":"SUMPRODUCT(((T_DataComboFile[Implementation programme]=$G$3)*(T_DataComboFile[Econ4]=$G41))*T_DataComboFile[2023/24 Baseline]*$B$3)","v":0},{"$f":"SUMPRODUCT(((T_DataComboFile[Implementation programme]=$G$3)*(T_DataComboFile[Econ4]=$G41))*T_DataComboFile[2023/24 Reduction]*$B$3)","v":0},{"$f":"SUMPRODUCT(((T_DataComboFile[Implementation programme]=$G$3)*(T_DataComboFile[Econ4]=$G41))*T_DataComboFile[2023/24 Increase]*$B$3)","v":0},{"$f":"T41+U41+V41","v":0}]
[0,0,null,null,null,null,"Departmental agencies (non-business entities)",{"$f":"SUMPRODUCT(((T_DataComboFile[Implementation programme]=$G$3)*(T_DataComboFile[Econ4]=$G42))*T_DataComboFile[2017/18]*$B$3)","v":0},{"$f":"SUMPRODUCT(((T_DataComboFile[Implementation programme]=$G$3)*(T_DataComboFile[Econ4]=$G42))*T_DataComboFile[2018/19]*$B$3)","v":0},{"$f":"SUMPRODUCT(((T_DataComboFile[Implementation programme]=$G$3)*(T_DataComboFile[Econ4]=$G42))*T_DataComboFile[2019/20 Revised estimate]*$B$3)","v":0},{"$f":"SUMPRODUCT(((T_DataComboFile[Implementation programme]=$G$3)*(T_DataComboFile[Econ4]=$G42))*T_DataComboFile[2020/21 Revised]*$B$3)","v":0},{"$f":"SUMPRODUCT(((T_DataComboFile[Implementation programme]=$G$3)*(T_DataComboFile[Econ4]=$G42))*T_DataComboFile[2021/22 Baseline]*$B$3)","v":0},{"$f":"SUMPRODUCT(((T_DataComboFile[Implementation programme]=$G$3)*(T_DataComboFile[Econ4]=$G42))*T_DataComboFile[2021/22 Reduction]*$B$3)","v":0},{"$f":"SUMPRODUCT(((T_DataComboFile[Implementation programme]=$G$3)*(T_DataComboFile[Econ4]=$G42))*T_DataComboFile[2021/22 Increase]*$B$3)","v":0},0,{"$f":"SUMPRODUCT(((T_DataComboFile[Implementation programme]=$G$3)*(T_DataComboFile[Econ4]=$G42))*T_DataComboFile[2022/23 Baseline]*$B$3)","v":0},{"$f":"SUMPRODUCT(((T_DataComboFile[Implementation programme]=$G$3)*(T_DataComboFile[Econ4]=$G42))*T_DataComboFile[2022/23 Reduction]*$B$3)","v":0},{"$f":"SUMPRODUCT(((T_DataComboFile[Implementation programme]=$G$3)*(T_DataComboFile[Econ4]=$G42))*T_DataComboFile[2022/23 Increase]*$B$3)","v":0},0,{"$f":"SUMPRODUCT(((T_DataComboFile[Implementation programme]=$G$3)*(T_DataComboFile[Econ4]=$G42))*T_DataComboFile[2023/24 Baseline]*$B$3)","v":0},{"$f":"SUMPRODUCT(((T_DataComboFile[Implementation programme]=$G$3)*(T_DataComboFile[Econ4]=$G42))*T_DataComboFile[2023/24 Reduction]*$B$3)","v":0},{"$f":"SUMPRODUCT(((T_DataComboFile[Implementation programme]=$G$3)*(T_DataComboFile[Econ4]=$G42))*T_DataComboFile[2023/24 Increase]*$B$3)","v":0},0]
[0,0,null,null,null,null,"Higher education institutions",{"$f":"SUMPRODUCT(((T_DataComboFile[Implementation programme]=$G$3)*(T_DataComboFile[Econ3]=$G43))*T_DataComboFile[2017/18]*$B$3)","v":0},{"$f":"SUMPRODUCT(((T_DataComboFile[Implementation programme]=$G$3)*(T_DataComboFile[Econ3]=$G43))*T_DataComboFile[2018/19]*$B$3)","v":0},{"$f":"SUMPRODUCT(((T_DataComboFile[Implementation programme]=$G$3)*(T_DataComboFile[Econ3]=$G43))*T_DataComboFile[2019/20 Revised estimate]*$B$3)","v":0},{"$f":"SUMPRODUCT(((T_DataComboFile[Implementation programme]=$G$3)*(T_DataComboFile[Econ3]=$G43))*T_DataComboFile[2020/21 Revised]*$B$3)","v":0},{"$f":"SUMPRODUCT(((T_DataComboFile[Implementation programme]=$G$3)*(T_DataComboFile[Econ3]=$G43))*T_DataComboFile[2021/22 Baseline]*$B$3)","v":0},{"$f":"SUMPRODUCT(((T_DataComboFile[Implementation programme]=$G$3)*(T_DataComboFile[Econ3]=$G43))*T_DataComboFile[2021/22 Reduction]*$B$3)","v":0},{"$f":"SUMPRODUCT(((T_DataComboFile[Implementation programme]=$G$3)*(T_DataComboFile[Econ3]=$G43))*T_DataComboFile[2021/22 Increase]*$B$3)","v":0},0,{"$f":"SUMPRODUCT(((T_DataComboFile[Implementation programme]=$G$3)*(T_DataComboFile[Econ3]=$G43))*T_DataComboFile[2022/23 Baseline]*$B$3)","v":0},{"$f":"SUMPRODUCT(((T_DataComboFile[Implementation programme]=$G$3)*(T_DataComboFile[Econ3]=$G43))*T_DataComboFile[2022/23 Reduction]*$B$3)","v":0},{"$f":"SUMPRODUCT(((T_DataComboFile[Implementation programme]=$G$3)*(T_DataComboFile[Econ3]=$G43))*T_DataComboFile[2022/23 Increase]*$B$3)","v":0},0,{"$f":"SUMPRODUCT(((T_DataComboFile[Implementation programme]=$G$3)*(T_DataComboFile[Econ3]=$G43))*T_DataComboFile[2023/24 Baseline]*$B$3)","v":0},{"$f":"SUMPRODUCT(((T_DataComboFile[Implementation programme]=$G$3)*(T_DataComboFile[Econ3]=$G43))*T_DataComboFile[2023/24 Reduction]*$B$3)","v":0},{"$f":"SUMPRODUCT(((T_DataComboFile[Implementation programme]=$G$3)*(T_DataComboFile[Econ3]=$G43))*T_DataComboFile[2023/24 Increase]*$B$3)","v":0},0]
[0,0,null,null,null,null,"Foreign governments and international organisations",{"$f":"SUMPRODUCT(((T_DataComboFile[Implementation programme]=$G$3)*(T_DataComboFile[Econ3]=$G44))*T_DataComboFile[2017/18]*$B$3)","v":0},{"$f":"SUMPRODUCT(((T_DataComboFile[Implementation programme]=$G$3)*(T_DataComboFile[Econ3]=$G44))*T_DataComboFile[2018/19]*$B$3)","v":0},{"$f":"SUMPRODUCT(((T_DataComboFile[Implementation programme]=$G$3)*(T_DataComboFile[Econ3]=$G44))*T_DataComboFile[2019/20 Revised estimate]*$B$3)","v":0},{"$f":"SUMPRODUCT(((T_DataComboFile[Implementation programme]=$G$3)*(T_DataComboFile[Econ3]=$G44))*T_DataComboFile[2020/21 Revised]*$B$3)","v":0},{"$f":"SUMPRODUCT(((T_DataComboFile[Implementation programme]=$G$3)*(T_DataComboFile[Econ3]=$G44))*T_DataComboFile[2021/22 Baseline]*$B$3)","v":0},{"$f":"SUMPRODUCT(((T_DataComboFile[Implementation programme]=$G$3)*(T_DataComboFile[Econ3]=$G44))*T_DataComboFile[2021/22 Reduction]*$B$3)","v":0},{"$f":"SUMPRODUCT(((T_DataComboFile[Implementation programme]=$G$3)*(T_DataComboFile[Econ3]=$G44))*T_DataComboFile[2021/22 Increase]*$B$3)","v":0},0,{"$f":"SUMPRODUCT(((T_DataComboFile[Implementation programme]=$G$3)*(T_DataComboFile[Econ3]=$G44))*T_DataComboFile[2022/23 Baseline]*$B$3)","v":0},{"$f":"SUMPRODUCT(((T_DataComboFile[Implementation programme]=$G$3)*(T_DataComboFile[Econ3]=$G44))*T_DataComboFile[2022/23 Reduction]*$B$3)","v":0},{"$f":"SUMPRODUCT(((T_DataComboFile[Implementation programme]=$G$3)*(T_DataComboFile[Econ3]=$G44))*T_DataComboFile[2022/23 Increase]*$B$3)","v":0},0,{"$f":"SUMPRODUCT(((T_DataComboFile[Implementation programme]=$G$3)*(T_DataComboFile[Econ3]=$G44))*T_DataComboFile[2023/24 Baseline]*$B$3)","v":0},{"$f":"SUMPRODUCT(((T_DataComboFile[Implementation programme]=$G$3)*(T_DataComboFile[Econ3]=$G44))*T_DataComboFile[2023/24 Reduction]*$B$3)","v":0},{"$f":"SUMPRODUCT(((T_DataComboFile[Implementation programme]=$G$3)*(T_DataComboFile[Econ3]=$G44))*T_DataComboFile[2023/24 Increase]*$B$3)","v":0},0]
[0,0,null,null,null,null,"Public corporations and private enterprises",{"$f":"SUM(H46:H47)","v":0},0,0,0,0,0,0,0,0,0,0,0,0,0,0,0]
[0,0,null,null,null,null,"Public corporations",{"$f":"SUMPRODUCT(((T_DataComboFile[Implementation programme]=$G$3)*(T_DataComboFile[Econ4]=$G46))*T_DataComboFile[2017/18]*$B$3)","v":0},{"$f":"SUMPRODUCT(((T_DataComboFile[Implementation programme]=$G$3)*(T_DataComboFile[Econ4]=$G46))*T_DataComboFile[2018/19]*$B$3)","v":0},{"$f":"SUMPRODUCT(((T_DataComboFile[Implementation programme]=$G$3)*(T_DataComboFile[Econ4]=$G46))*T_DataComboFile[2019/20 Revised estimate]*$B$3)","v":0},{"$f":"SUMPRODUCT(((T_DataComboFile[Implementation programme]=$G$3)*(T_DataComboFile[Econ4]=$G46))*T_DataComboFile[2020/21 Revised]*$B$3)","v":0},{"$f":"SUMPRODUCT(((T_DataComboFile[Implementation programme]=$G$3)*(T_DataComboFile[Econ4]=$G46))*T_DataComboFile[2021/22 Baseline]*$B$3)","v":0},{"$f":"SUMPRODUCT(((T_DataComboFile[Implementation programme]=$G$3)*(T_DataComboFile[Econ4]=$G46))*T_DataComboFile[2021/22 Reduction]*$B$3)","v":0},{"$f":"SUMPRODUCT(((T_DataComboFile[Implementation programme]=$G$3)*(T_DataComboFile[Econ4]=$G46))*T_DataComboFile[2021/22 Increase]*$B$3)","v":0},{"$f":"L46+M46+N46","v":0},{"$f":"SUMPRODUCT(((T_DataComboFile[Implementation programme]=$G$3)*(T_DataComboFile[Econ4]=$G46))*T_DataComboFile[2022/23 Baseline]*$B$3)","v":0},{"$f":"SUMPRODUCT(((T_DataComboFile[Implementation programme]=$G$3)*(T_DataComboFile[Econ4]=$G46))*T_DataComboFile[2022/23 Reduction]*$B$3)","v":0},{"$f":"SUMPRODUCT(((T_DataComboFile[Implementation programme]=$G$3)*(T_DataComboFile[Econ4]=$G46))*T_DataComboFile[2022/23 Increase]*$B$3)","v":0},{"$f":"P46+Q46+R46","v":0},{"$f":"SUMPRODUCT(((T_DataComboFile[Implementation programme]=$G$3)*(T_DataComboFile[Econ4]=$G46))*T_DataComboFile[2023/24 Baseline]*$B$3)","v":0},{"$f":"SUMPRODUCT(((T_DataComboFile[Implementation programme]=$G$3)*(T_DataComboFile[Econ4]=$G46))*T_DataComboFile[2023/24 Reduction]*$B$3)","v":0},{"$f":"SUMPRODUCT(((T_DataComboFile[Implementation programme]=$G$3)*(T_DataComboFile[Econ4]=$G46))*T_DataComboFile[2023/24 Increase]*$B$3)","v":0},{"$f":"T46+U46+V46","v":0}]
[0,0,null,null,null,null,"Private enterprises",{"$f":"SUMPRODUCT(((T_DataComboFile[Implementation programme]=$G$3)*(T_DataComboFile[Econ4]=$G47))*T_DataComboFile[2017/18]*$B$3)","v":0},{"$f":"SUMPRODUCT(((T_DataComboFile[Implementation programme]=$G$3)*(T_DataComboFile[Econ4]=$G47))*T_DataComboFile[2018/19]*$B$3)","v":0},{"$f":"SUMPRODUCT(((T_DataComboFile[Implementation programme]=$G$3)*(T_DataComboFile[Econ4]=$G47))*T_DataComboFile[2019/20 Revised estimate]*$B$3)","v":0},{"$f":"SUMPRODUCT(((T_DataComboFile[Implementation programme]=$G$3)*(T_DataComboFile[Econ4]=$G47))*T_DataComboFile[2020/21 Revised]*$B$3)","v":0},{"$f":"SUMPRODUCT(((T_DataComboFile[Implementation programme]=$G$3)*(T_DataComboFile[Econ4]=$G47))*T_DataComboFile[2021/22 Baseline]*$B$3)","v":0},{"$f":"SUMPRODUCT(((T_DataComboFile[Implementation programme]=$G$3)*(T_DataComboFile[Econ4]=$G47))*T_DataComboFile[2021/22 Reduction]*$B$3)","v":0},{"$f":"SUMPRODUCT(((T_DataComboFile[Implementation programme]=$G$3)*(T_DataComboFile[Econ4]=$G47))*T_DataComboFile[2021/22 Increase]*$B$3)","v":0},0,{"$f":"SUMPRODUCT(((T_DataComboFile[Implementation programme]=$G$3)*(T_DataComboFile[Econ4]=$G47))*T_DataComboFile[2022/23 Baseline]*$B$3)","v":0},{"$f":"SUMPRODUCT(((T_DataComboFile[Implementation programme]=$G$3)*(T_DataComboFile[Econ4]=$G47))*T_DataComboFile[2022/23 Reduction]*$B$3)","v":0},{"$f":"SUMPRODUCT(((T_DataComboFile[Implementation programme]=$G$3)*(T_DataComboFile[Econ4]=$G47))*T_DataComboFile[2022/23 Increase]*$B$3)","v":0},0,{"$f":"SUMPRODUCT(((T_DataComboFile[Implementation programme]=$G$3)*(T_DataComboFile[Econ4]=$G47))*T_DataComboFile[2023/24 Baseline]*$B$3)","v":0},{"$f":"SUMPRODUCT(((T_DataComboFile[Implementation programme]=$G$3)*(T_DataComboFile[Econ4]=$G47))*T_DataComboFile[2023/24 Reduction]*$B$3)","v":0},{"$f":"SUMPRODUCT(((T_DataComboFile[Implementation programme]=$G$3)*(T_DataComboFile[Econ4]=$G47))*T_DataComboFile[2023/24 Increase]*$B$3)","v":0},0]
[0,0,null,null,null,null,"Non-profit institutions",{"$f":"SUMPRODUCT(((T_DataComboFile[Implementation programme]=$G$3)*(T_DataComboFile[Econ3]=$G48))*T_DataComboFile[2017/18]*$B$3)","v":0},{"$f":"SUMPRODUCT(((T_DataComboFile[Implementation programme]=$G$3)*(T_DataComboFile[Econ3]=$G48))*T_DataComboFile[2018/19]*$B$3)","v":0},{"$f":"SUMPRODUCT(((T_DataComboFile[Implementation programme]=$G$3)*(T_DataComboFile[Econ3]=$G48))*T_DataComboFile[2019/20 Revised estimate]*$B$3)","v":0},{"$f":"SUMPRODUCT(((T_DataComboFile[Implementation programme]=$G$3)*(T_DataComboFile[Econ3]=$G48))*T_DataComboFile[2020/21 Revised]*$B$3)","v":0},{"$f":"SUMPRODUCT(((T_DataComboFile[Implementation programme]=$G$3)*(T_DataComboFile[Econ3]=$G48))*T_DataComboFile[2021/22 Baseline]*$B$3)","v":0},{"$f":"SUMPRODUCT(((T_DataComboFile[Implementation programme]=$G$3)*(T_DataComboFile[Econ3]=$G48))*T_DataComboFile[2021/22 Reduction]*$B$3)","v":0},{"$f":"SUMPRODUCT(((T_DataComboFile[Implementation programme]=$G$3)*(T_DataComboFile[Econ3]=$G48))*T_DataComboFile[2021/22 Increase]*$B$3)","v":0},0,{"$f":"SUMPRODUCT(((T_DataComboFile[Implementation programme]=$G$3)*(T_DataComboFile[Econ3]=$G48))*T_DataComboFile[2022/23 Baseline]*$B$3)","v":0},{"$f":"SUMPRODUCT(((T_DataComboFile[Implementation programme]=$G$3)*(T_DataComboFile[Econ3]=$G48))*T_DataComboFile[2022/23 Reduction]*$B$3)","v":0},{"$f":"SUMPRODUCT(((T_DataComboFile[Implementation programme]=$G$3)*(T_DataComboFile[Econ3]=$G48))*T_DataComboFile[2022/23 Increase]*$B$3)","v":0},0,{"$f":"SUMPRODUCT(((T_DataComboFile[Implementation programme]=$G$3)*(T_DataComboFile[Econ3]=$G48))*T_DataComboFile[2023/24 Baseline]*$B$3)","v":0},{"$f":"SUMPRODUCT(((T_DataComboFile[Implementation programme]=$G$3)*(T_DataComboFile[Econ3]=$G48))*T_DataComboFile[2023/24 Reduction]*$B$3)","v":0},{"$f":"SUMPRODUCT(((T_DataComboFile[Implementation programme]=$G$3)*(T_DataComboFile[Econ3]=$G48))*T_DataComboFile[2023/24 Increase]*$B$3)","v":0},0]
[0,0,null,null,null,null,"Households",{"$f":"SUM(H50:H51)","v":0},0,0,0,0,0,0,0,0,0,0,0,0,0,0,0]
[0,0,null,null,null,null,"Social benefits",{"$f":"SUMPRODUCT(((T_DataComboFile[Implementation programme]=$G$3)*(T_DataComboFile[Econ4]=$G50))*T_DataComboFile[2017/18]*$B$3)","v":0},{"$f":"SUMPRODUCT(((T_DataComboFile[Implementation programme]=$G$3)*(T_DataComboFile[Econ4]=$G50))*T_DataComboFile[2018/19]*$B$3)","v":0},{"$f":"SUMPRODUCT(((T_DataComboFile[Implementation programme]=$G$3)*(T_DataComboFile[Econ4]=$G50))*T_DataComboFile[2019/20 Revised estimate]*$B$3)","v":0},{"$f":"SUMPRODUCT(((T_DataComboFile[Implementation programme]=$G$3)*(T_DataComboFile[Econ4]=$G50))*T_DataComboFile[2020/21 Revised]*$B$3)","v":0},{"$f":"SUMPRODUCT(((T_DataComboFile[Implementation programme]=$G$3)*(T_DataComboFile[Econ4]=$G50))*T_DataComboFile[2021/22 Baseline]*$B$3)","v":0},{"$f":"SUMPRODUCT(((T_DataComboFile[Implementation programme]=$G$3)*(T_DataComboFile[Econ4]=$G50))*T_DataComboFile[2021/22 Reduction]*$B$3)","v":0},{"$f":"SUMPRODUCT(((T_DataComboFile[Implementation programme]=$G$3)*(T_DataComboFile[Econ4]=$G50))*T_DataComboFile[2021/22 Increase]*$B$3)","v":0},{"$f":"L50+M50+N50","v":0},{"$f":"SUMPRODUCT(((T_DataComboFile[Implementation programme]=$G$3)*(T_DataComboFile[Econ4]=$G50))*T_DataComboFile[2022/23 Baseline]*$B$3)","v":0},{"$f":"SUMPRODUCT(((T_DataComboFile[Implementation programme]=$G$3)*(T_DataComboFile[Econ4]=$G50))*T_DataComboFile[2022/23 Reduction]*$B$3)","v":0},{"$f":"SUMPRODUCT(((T_DataComboFile[Implementation programme]=$G$3)*(T_DataComboFile[Econ4]=$G50))*T_DataComboFile[2022/23 Increase]*$B$3)","v":0},{"$f":"P50+Q50+R50","v":0},{"$f":"SUMPRODUCT(((T_DataComboFile[Implementation programme]=$G$3)*(T_DataComboFile[Econ4]=$G50))*T_DataComboFile[2023/24 Baseline]*$B$3)","v":0},{"$f":"SUMPRODUCT(((T_DataComboFile[Implementation programme]=$G$3)*(T_DataComboFile[Econ4]=$G50))*T_DataComboFile[2023/24 Reduction]*$B$3)","v":0},{"$f":"SUMPRODUCT(((T_DataComboFile[Implementation programme]=$G$3)*(T_DataComboFile[Econ4]=$G50))*T_DataComboFile[2023/24 Increase]*$B$3)","v":0},{"$f":"T50+U50+V50","v":0}]
[0,0,null,null,null,null,"Other transfers to households",{"$f":"SUMPRODUCT(((T_DataComboFile[Implementation programme]=$G$3)*(T_DataComboFile[Econ4]=$G51))*T_DataComboFile[2017/18]*$B$3)","v":0},{"$f":"SUMPRODUCT(((T_DataComboFile[Implementation programme]=$G$3)*(T_DataComboFile[Econ4]=$G51))*T_DataComboFile[2018/19]*$B$3)","v":0},{"$f":"SUMPRODUCT(((T_DataComboFile[Implementation programme]=$G$3)*(T_DataComboFile[Econ4]=$G51))*T_DataComboFile[2019/20 Revised estimate]*$B$3)","v":0},{"$f":"SUMPRODUCT(((T_DataComboFile[Implementation programme]=$G$3)*(T_DataComboFile[Econ4]=$G51))*T_DataComboFile[2020/21 Revised]*$B$3)","v":0},{"$f":"SUMPRODUCT(((T_DataComboFile[Implementation programme]=$G$3)*(T_DataComboFile[Econ4]=$G51))*T_DataComboFile[2021/22 Baseline]*$B$3)","v":0},{"$f":"SUMPRODUCT(((T_DataComboFile[Implementation programme]=$G$3)*(T_DataComboFile[Econ4]=$G51))*T_DataComboFile[2021/22 Reduction]*$B$3)","v":0},{"$f":"SUMPRODUCT(((T_DataComboFile[Implementation programme]=$G$3)*(T_DataComboFile[Econ4]=$G51))*T_DataComboFile[2021/22 Increase]*$B$3)","v":0},0,{"$f":"SUMPRODUCT(((T_DataComboFile[Implementation programme]=$G$3)*(T_DataComboFile[Econ4]=$G51))*T_DataComboFile[2022/23 Baseline]*$B$3)","v":0},{"$f":"SUMPRODUCT(((T_DataComboFile[Implementation programme]=$G$3)*(T_DataComboFile[Econ4]=$G51))*T_DataComboFile[2022/23 Reduction]*$B$3)","v":0},{"$f":"SUMPRODUCT(((T_DataComboFile[Implementation programme]=$G$3)*(T_DataComboFile[Econ4]=$G51))*T_DataComboFile[2022/23 Increase]*$B$3)","v":0},0,{"$f":"SUMPRODUCT(((T_DataComboFile[Implementation programme]=$G$3)*(T_DataComboFile[Econ4]=$G51))*T_DataComboFile[2023/24 Baseline]*$B$3)","v":0},{"$f":"SUMPRODUCT(((T_DataComboFile[Implementation programme]=$G$3)*(T_DataComboFile[Econ4]=$G51))*T_DataComboFile[2023/24 Reduction]*$B$3)","v":0},{"$f":"SUMPRODUCT(((T_DataComboFile[Implementation programme]=$G$3)*(T_DataComboFile[Econ4]=$G51))*T_DataComboFile[2023/24 Increase]*$B$3)","v":0},0]
[0,0,null,null,null,null,"Payments for capital assets",{"$f":"SUM(H53,H56,H59:H63)","v":0},0,0,0,0,0,0,0,0,0,0,0,0,0,0,0]
[0,0,null,null,null,null,"Buildings and other fixed structures",{"$f":"SUM(H54:H55)","v":0},0,0,0,0,0,0,0,0,0,0,0,0,0,0,0]
[0,0,null,null,null,null,"Buildings",{"$f":"SUMPRODUCT(((T_DataComboFile[Implementation programme]=$G$3)*(T_DataComboFile[Econ4]=$G54))*T_DataComboFile[2017/18]*$B$3)","v":0},{"$f":"SUMPRODUCT(((T_DataComboFile[Implementation programme]=$G$3)*(T_DataComboFile[Econ4]=$G54))*T_DataComboFile[2018/19]*$B$3)","v":0},{"$f":"SUMPRODUCT(((T_DataComboFile[Implementation programme]=$G$3)*(T_DataComboFile[Econ4]=$G54))*T_DataComboFile[2019/20 Revised estimate]*$B$3)","v":0},{"$f":"SUMPRODUCT(((T_DataComboFile[Implementation programme]=$G$3)*(T_DataComboFile[Econ4]=$G54))*T_DataComboFile[2020/21 Revised]*$B$3)","v":0},{"$f":"SUMPRODUCT(((T_DataComboFile[Implementation programme]=$G$3)*(T_DataComboFile[Econ4]=$G54))*T_DataComboFile[2021/22 Baseline]*$B$3)","v":0},{"$f":"SUMPRODUCT(((T_DataComboFile[Implementation programme]=$G$3)*(T_DataComboFile[Econ4]=$G54))*T_DataComboFile[2021/22 Reduction]*$B$3)","v":0},{"$f":"SUMPRODUCT(((T_DataComboFile[Implementation programme]=$G$3)*(T_DataComboFile[Econ4]=$G54))*T_DataComboFile[2021/22 Increase]*$B$3)","v":0},{"$f":"L54+M54+N54","v":0},{"$f":"SUMPRODUCT(((T_DataComboFile[Implementation programme]=$G$3)*(T_DataComboFile[Econ4]=$G54))*T_DataComboFile[2022/23 Baseline]*$B$3)","v":0},{"$f":"SUMPRODUCT(((T_DataComboFile[Implementation programme]=$G$3)*(T_DataComboFile[Econ4]=$G54))*T_DataComboFile[2022/23 Reduction]*$B$3)","v":0},{"$f":"SUMPRODUCT(((T_DataComboFile[Implementation programme]=$G$3)*(T_DataComboFile[Econ4]=$G54))*T_DataComboFile[2022/23 Increase]*$B$3)","v":0},{"$f":"P54+Q54+R54","v":0},{"$f":"SUMPRODUCT(((T_DataComboFile[Implementation programme]=$G$3)*(T_DataComboFile[Econ4]=$G54))*T_DataComboFile[2023/24 Baseline]*$B$3)","v":0},{"$f":"SUMPRODUCT(((T_DataComboFile[Implementation programme]=$G$3)*(T_DataComboFile[Econ4]=$G54))*T_DataComboFile[2023/24 Reduction]*$B$3)","v":0},{"$f":"SUMPRODUCT(((T_DataComboFile[Implementation programme]=$G$3)*(T_DataComboFile[Econ4]=$G54))*T_DataComboFile[2023/24 Increase]*$B$3)","v":0},{"$f":"T54+U54+V54","v":0}]
[0,0,null,null,null,null,"Other fixed structures",{"$f":"SUMPRODUCT(((T_DataComboFile[Implementation programme]=$G$3)*(T_DataComboFile[Econ4]=$G55))*T_DataComboFile[2017/18]*$B$3)","v":0},{"$f":"SUMPRODUCT(((T_DataComboFile[Implementation programme]=$G$3)*(T_DataComboFile[Econ4]=$G55))*T_DataComboFile[2018/19]*$B$3)","v":0},{"$f":"SUMPRODUCT(((T_DataComboFile[Implementation programme]=$G$3)*(T_DataComboFile[Econ4]=$G55))*T_DataComboFile[2019/20 Revised estimate]*$B$3)","v":0},{"$f":"SUMPRODUCT(((T_DataComboFile[Implementation programme]=$G$3)*(T_DataComboFile[Econ4]=$G55))*T_DataComboFile[2020/21 Revised]*$B$3)","v":0},{"$f":"SUMPRODUCT(((T_DataComboFile[Implementation programme]=$G$3)*(T_DataComboFile[Econ4]=$G55))*T_DataComboFile[2021/22 Baseline]*$B$3)","v":0},{"$f":"SUMPRODUCT(((T_DataComboFile[Implementation programme]=$G$3)*(T_DataComboFile[Econ4]=$G55))*T_DataComboFile[2021/22 Reduction]*$B$3)","v":0},{"$f":"SUMPRODUCT(((T_DataComboFile[Implementation programme]=$G$3)*(T_DataComboFile[Econ4]=$G55))*T_DataComboFile[2021/22 Increase]*$B$3)","v":0},0,{"$f":"SUMPRODUCT(((T_DataComboFile[Implementation programme]=$G$3)*(T_DataComboFile[Econ4]=$G55))*T_DataComboFile[2022/23 Baseline]*$B$3)","v":0},{"$f":"SUMPRODUCT(((T_DataComboFile[Implementation programme]=$G$3)*(T_DataComboFile[Econ4]=$G55))*T_DataComboFile[2022/23 Reduction]*$B$3)","v":0},{"$f":"SUMPRODUCT(((T_DataComboFile[Implementation programme]=$G$3)*(T_DataComboFile[Econ4]=$G55))*T_DataComboFile[2022/23 Increase]*$B$3)","v":0},0,{"$f":"SUMPRODUCT(((T_DataComboFile[Implementation programme]=$G$3)*(T_DataComboFile[Econ4]=$G55))*T_DataComboFile[2023/24 Baseline]*$B$3)","v":0},{"$f":"SUMPRODUCT(((T_DataComboFile[Implementation programme]=$G$3)*(T_DataComboFile[Econ4]=$G55))*T_DataComboFile[2023/24 Reduction]*$B$3)","v":0},{"$f":"SUMPRODUCT(((T_DataComboFile[Implementation programme]=$G$3)*(T_DataComboFile[Econ4]=$G55))*T_DataComboFile[2023/24 Increase]*$B$3)","v":0},0]
[0,0,null,null,null,null,"Machinery and equipment",{"$f":"SUM(H57:H58)","v":0},0,0,0,0,0,0,0,0,0,0,0,0,0,0,0]
[0,0,null,null,null,null,"Transport equipment",{"$f":"SUMPRODUCT(((T_DataComboFile[Implementation programme]=$G$3)*(T_DataComboFile[Econ4]=$G57))*T_DataComboFile[2017/18]*$B$3)","v":0},{"$f":"SUMPRODUCT(((T_DataComboFile[Implementation programme]=$G$3)*(T_DataComboFile[Econ4]=$G57))*T_DataComboFile[2018/19]*$B$3)","v":0},{"$f":"SUMPRODUCT(((T_DataComboFile[Implementation programme]=$G$3)*(T_DataComboFile[Econ4]=$G57))*T_DataComboFile[2019/20 Revised estimate]*$B$3)","v":0},{"$f":"SUMPRODUCT(((T_DataComboFile[Implementation programme]=$G$3)*(T_DataComboFile[Econ4]=$G57))*T_DataComboFile[2020/21 Revised]*$B$3)","v":0},{"$f":"SUMPRODUCT(((T_DataComboFile[Implementation programme]=$G$3)*(T_DataComboFile[Econ4]=$G57))*T_DataComboFile[2021/22 Baseline]*$B$3)","v":0},{"$f":"SUMPRODUCT(((T_DataComboFile[Implementation programme]=$G$3)*(T_DataComboFile[Econ4]=$G57))*T_DataComboFile[2021/22 Reduction]*$B$3)","v":0},{"$f":"SUMPRODUCT(((T_DataComboFile[Implementation programme]=$G$3)*(T_DataComboFile[Econ4]=$G57))*T_DataComboFile[2021/22 Increase]*$B$3)","v":0},{"$f":"L57+M57+N57","v":0},{"$f":"SUMPRODUCT(((T_DataComboFile[Implementation programme]=$G$3)*(T_DataComboFile[Econ4]=$G57))*T_DataComboFile[2022/23 Baseline]*$B$3)","v":0},{"$f":"SUMPRODUCT(((T_DataComboFile[Implementation programme]=$G$3)*(T_DataComboFile[Econ4]=$G57))*T_DataComboFile[2022/23 Reduction]*$B$3)","v":0},{"$f":"SUMPRODUCT(((T_DataComboFile[Implementation programme]=$G$3)*(T_DataComboFile[Econ4]=$G57))*T_DataComboFile[2022/23 Increase]*$B$3)","v":0},{"$f":"P57+Q57+R57","v":0},{"$f":"SUMPRODUCT(((T_DataComboFile[Implementation programme]=$G$3)*(T_DataComboFile[Econ4]=$G57))*T_DataComboFile[2023/24 Baseline]*$B$3)","v":0},{"$f":"SUMPRODUCT(((T_DataComboFile[Implementation programme]=$G$3)*(T_DataComboFile[Econ4]=$G57))*T_DataComboFile[2023/24 Reduction]*$B$3)","v":0},{"$f":"SUMPRODUCT(((T_DataComboFile[Implementation programme]=$G$3)*(T_DataComboFile[Econ4]=$G57))*T_DataComboFile[2023/24 Increase]*$B$3)","v":0},{"$f":"T57+U57+V57","v":0}]
[0,0,null,null,null,null,"Other machinery and equipment",{"$f":"SUMPRODUCT(((T_DataComboFile[Implementation programme]=$G$3)*(T_DataComboFile[Econ4]=$G58))*T_DataComboFile[2017/18]*$B$3)","v":0},{"$f":"SUMPRODUCT(((T_DataComboFile[Implementation programme]=$G$3)*(T_DataComboFile[Econ4]=$G58))*T_DataComboFile[2018/19]*$B$3)","v":0},{"$f":"SUMPRODUCT(((T_DataComboFile[Implementation programme]=$G$3)*(T_DataComboFile[Econ4]=$G58))*T_DataComboFile[2019/20 Revised estimate]*$B$3)","v":0},{"$f":"SUMPRODUCT(((T_DataComboFile[Implementation programme]=$G$3)*(T_DataComboFile[Econ4]=$G58))*T_DataComboFile[2020/21 Revised]*$B$3)","v":0},{"$f":"SUMPRODUCT(((T_DataComboFile[Implementation programme]=$G$3)*(T_DataComboFile[Econ4]=$G58))*T_DataComboFile[2021/22 Baseline]*$B$3)","v":0},{"$f":"SUMPRODUCT(((T_DataComboFile[Implementation programme]=$G$3)*(T_DataComboFile[Econ4]=$G58))*T_DataComboFile[2021/22 Reduction]*$B$3)","v":0},{"$f":"SUMPRODUCT(((T_DataComboFile[Implementation programme]=$G$3)*(T_DataComboFile[Econ4]=$G58))*T_DataComboFile[2021/22 Increase]*$B$3)","v":0},0,{"$f":"SUMPRODUCT(((T_DataComboFile[Implementation programme]=$G$3)*(T_DataComboFile[Econ4]=$G58))*T_DataComboFile[2022/23 Baseline]*$B$3)","v":0},{"$f":"SUMPRODUCT(((T_DataComboFile[Implementation programme]=$G$3)*(T_DataComboFile[Econ4]=$G58))*T_DataComboFile[2022/23 Reduction]*$B$3)","v":0},{"$f":"SUMPRODUCT(((T_DataComboFile[Implementation programme]=$G$3)*(T_DataComboFile[Econ4]=$G58))*T_DataComboFile[2022/23 Increase]*$B$3)","v":0},0,{"$f":"SUMPRODUCT(((T_DataComboFile[Implementation programme]=$G$3)*(T_DataComboFile[Econ4]=$G58))*T_DataComboFile[2023/24 Baseline]*$B$3)","v":0},{"$f":"SUMPRODUCT(((T_DataComboFile[Implementation programme]=$G$3)*(T_DataComboFile[Econ4]=$G58))*T_DataComboFile[2023/24 Reduction]*$B$3)","v":0},{"$f":"SUMPRODUCT(((T_DataComboFile[Implementation programme]=$G$3)*(T_DataComboFile[Econ4]=$G58))*T_DataComboFile[2023/24 Increase]*$B$3)","v":0},0]
[0,0,null,null,null,null,"Heritage assets",{"$f":"SUMPRODUCT(((T_DataComboFile[Implementation programme]=$G$3)*(T_DataComboFile[Econ3]=$G59))*T_DataComboFile[2017/18]*$B$3)","v":0},{"$f":"SUMPRODUCT(((T_DataComboFile[Implementation programme]=$G$3)*(T_DataComboFile[Econ3]=$G59))*T_DataComboFile[2018/19]*$B$3)","v":0},{"$f":"SUMPRODUCT(((T_DataComboFile[Implementation programme]=$G$3)*(T_DataComboFile[Econ3]=$G59))*T_DataComboFile[2019/20 Revised estimate]*$B$3)","v":0},{"$f":"SUMPRODUCT(((T_DataComboFile[Implementation programme]=$G$3)*(T_DataComboFile[Econ3]=$G59))*T_DataComboFile[2020/21 Revised]*$B$3)","v":0},{"$f":"SUMPRODUCT(((T_DataComboFile[Implementation programme]=$G$3)*(T_DataComboFile[Econ3]=$G59))*T_DataComboFile[2021/22 Baseline]*$B$3)","v":0},{"$f":"SUMPRODUCT(((T_DataComboFile[Implementation programme]=$G$3)*(T_DataComboFile[Econ3]=$G59))*T_DataComboFile[2021/22 Reduction]*$B$3)","v":0},{"$f":"SUMPRODUCT(((T_DataComboFile[Implementation programme]=$G$3)*(T_DataComboFile[Econ3]=$G59))*T_DataComboFile[2021/22 Increase]*$B$3)","v":0},0,{"$f":"SUMPRODUCT(((T_DataComboFile[Implementation programme]=$G$3)*(T_DataComboFile[Econ3]=$G59))*T_DataComboFile[2022/23 Baseline]*$B$3)","v":0},{"$f":"SUMPRODUCT(((T_DataComboFile[Implementation programme]=$G$3)*(T_DataComboFile[Econ3]=$G59))*T_DataComboFile[2022/23 Reduction]*$B$3)","v":0},{"$f":"SUMPRODUCT(((T_DataComboFile[Implementation programme]=$G$3)*(T_DataComboFile[Econ3]=$G59))*T_DataComboFile[2022/23 Increase]*$B$3)","v":0},0,{"$f":"SUMPRODUCT(((T_DataComboFile[Implementation programme]=$G$3)*(T_DataComboFile[Econ3]=$G59))*T_DataComboFile[2023/24 Baseline]*$B$3)","v":0},{"$f":"SUMPRODUCT(((T_DataComboFile[Implementation programme]=$G$3)*(T_DataComboFile[Econ3]=$G59))*T_DataComboFile[2023/24 Reduction]*$B$3)","v":0},{"$f":"SUMPRODUCT(((T_DataComboFile[Implementation programme]=$G$3)*(T_DataComboFile[Econ3]=$G59))*T_DataComboFile[2023/24 Increase]*$B$3)","v":0},0]
[0,0,null,null,null,null,"Specialised military assets",{"$f":"SUMPRODUCT(((T_DataComboFile[Implementation programme]=$G$3)*(T_DataComboFile[Econ3]=$G60))*T_DataComboFile[2017/18]*$B$3)","v":0},{"$f":"SUMPRODUCT(((T_DataComboFile[Implementation programme]=$G$3)*(T_DataComboFile[Econ3]=$G60))*T_DataComboFile[2018/19]*$B$3)","v":0},{"$f":"SUMPRODUCT(((T_DataComboFile[Implementation programme]=$G$3)*(T_DataComboFile[Econ3]=$G60))*T_DataComboFile[2019/20 Revised estimate]*$B$3)","v":0},{"$f":"SUMPRODUCT(((T_DataComboFile[Implementation programme]=$G$3)*(T_DataComboFile[Econ3]=$G60))*T_DataComboFile[2020/21 Revised]*$B$3)","v":0},{"$f":"SUMPRODUCT(((T_DataComboFile[Implementation programme]=$G$3)*(T_DataComboFile[Econ3]=$G60))*T_DataComboFile[2021/22 Baseline]*$B$3)","v":0},{"$f":"SUMPRODUCT(((T_DataComboFile[Implementation programme]=$G$3)*(T_DataComboFile[Econ3]=$G60))*T_DataComboFile[2021/22 Reduction]*$B$3)","v":0},{"$f":"SUMPRODUCT(((T_DataComboFile[Implementation programme]=$G$3)*(T_DataComboFile[Econ3]=$G60))*T_DataComboFile[2021/22 Increase]*$B$3)","v":0},0,{"$f":"SUMPRODUCT(((T_DataComboFile[Implementation programme]=$G$3)*(T_DataComboFile[Econ3]=$G60))*T_DataComboFile[2022/23 Baseline]*$B$3)","v":0},{"$f":"SUMPRODUCT(((T_DataComboFile[Implementation programme]=$G$3)*(T_DataComboFile[Econ3]=$G60))*T_DataComboFile[2022/23 Reduction]*$B$3)","v":0},{"$f":"SUMPRODUCT(((T_DataComboFile[Implementation programme]=$G$3)*(T_DataComboFile[Econ3]=$G60))*T_DataComboFile[2022/23 Increase]*$B$3)","v":0},0,{"$f":"SUMPRODUCT(((T_DataComboFile[Implementation programme]=$G$3)*(T_DataComboFile[Econ3]=$G60))*T_DataComboFile[2023/24 Baseline]*$B$3)","v":0},{"$f":"SUMPRODUCT(((T_DataComboFile[Implementation programme]=$G$3)*(T_DataComboFile[Econ3]=$G60))*T_DataComboFile[2023/24 Reduction]*$B$3)","v":0},{"$f":"SUMPRODUCT(((T_DataComboFile[Implementation programme]=$G$3)*(T_DataComboFile[Econ3]=$G60))*T_DataComboFile[2023/24 Increase]*$B$3)","v":0},0]
[0,0,null,null,null,null,"Biological assets",{"$f":"SUMPRODUCT(((T_DataComboFile[Implementation programme]=$G$3)*(T_DataComboFile[Econ3]=$G61))*T_DataComboFile[2017/18]*$B$3)","v":0},{"$f":"SUMPRODUCT(((T_DataComboFile[Implementation programme]=$G$3)*(T_DataComboFile[Econ3]=$G61))*T_DataComboFile[2018/19]*$B$3)","v":0},{"$f":"SUMPRODUCT(((T_DataComboFile[Implementation programme]=$G$3)*(T_DataComboFile[Econ3]=$G61))*T_DataComboFile[2019/20 Revised estimate]*$B$3)","v":0},{"$f":"SUMPRODUCT(((T_DataComboFile[Implementation programme]=$G$3)*(T_DataComboFile[Econ3]=$G61))*T_DataComboFile[2020/21 Revised]*$B$3)","v":0},{"$f":"SUMPRODUCT(((T_DataComboFile[Implementation programme]=$G$3)*(T_DataComboFile[Econ3]=$G61))*T_DataComboFile[2021/22 Baseline]*$B$3)","v":0},{"$f":"SUMPRODUCT(((T_DataComboFile[Implementation programme]=$G$3)*(T_DataComboFile[Econ3]=$G61))*T_DataComboFile[2021/22 Reduction]*$B$3)","v":0},{"$f":"SUMPRODUCT(((T_DataComboFile[Implementation programme]=$G$3)*(T_DataComboFile[Econ3]=$G61))*T_DataComboFile[2021/22 Increase]*$B$3)","v":0},0,{"$f":"SUMPRODUCT(((T_DataComboFile[Implementation programme]=$G$3)*(T_DataComboFile[Econ3]=$G61))*T_DataComboFile[2022/23 Baseline]*$B$3)","v":0},{"$f":"SUMPRODUCT(((T_DataComboFile[Implementation programme]=$G$3)*(T_DataComboFile[Econ3]=$G61))*T_DataComboFile[2022/23 Reduction]*$B$3)","v":0},{"$f":"SUMPRODUCT(((T_DataComboFile[Implementation programme]=$G$3)*(T_DataComboFile[Econ3]=$G61))*T_DataComboFile[2022/23 Increase]*$B$3)","v":0},0,{"$f":"SUMPRODUCT(((T_DataComboFile[Implementation programme]=$G$3)*(T_DataComboFile[Econ3]=$G61))*T_DataComboFile[2023/24 Baseline]*$B$3)","v":0},{"$f":"SUMPRODUCT(((T_DataComboFile[Implementation programme]=$G$3)*(T_DataComboFile[Econ3]=$G61))*T_DataComboFile[2023/24 Reduction]*$B$3)","v":0},{"$f":"SUMPRODUCT(((T_DataComboFile[Implementation programme]=$G$3)*(T_DataComboFile[Econ3]=$G61))*T_DataComboFile[2023/24 Increase]*$B$3)","v":0},0]
[0,0,null,null,null,null,"Land and sub-soil assets",{"$f":"SUMPRODUCT(((T_DataComboFile[Implementation programme]=$G$3)*(T_DataComboFile[Econ3]=$G62))*T_DataComboFile[2017/18]*$B$3)","v":0},{"$f":"SUMPRODUCT(((T_DataComboFile[Implementation programme]=$G$3)*(T_DataComboFile[Econ3]=$G62))*T_DataComboFile[2018/19]*$B$3)","v":0},{"$f":"SUMPRODUCT(((T_DataComboFile[Implementation programme]=$G$3)*(T_DataComboFile[Econ3]=$G62))*T_DataComboFile[2019/20 Revised estimate]*$B$3)","v":0},{"$f":"SUMPRODUCT(((T_DataComboFile[Implementation programme]=$G$3)*(T_DataComboFile[Econ3]=$G62))*T_DataComboFile[2020/21 Revised]*$B$3)","v":0},{"$f":"SUMPRODUCT(((T_DataComboFile[Implementation programme]=$G$3)*(T_DataComboFile[Econ3]=$G62))*T_DataComboFile[2021/22 Baseline]*$B$3)","v":0},{"$f":"SUMPRODUCT(((T_DataComboFile[Implementation programme]=$G$3)*(T_DataComboFile[Econ3]=$G62))*T_DataComboFile[2021/22 Reduction]*$B$3)","v":0},{"$f":"SUMPRODUCT(((T_DataComboFile[Implementation programme]=$G$3)*(T_DataComboFile[Econ3]=$G62))*T_DataComboFile[2021/22 Increase]*$B$3)","v":0},0,{"$f":"SUMPRODUCT(((T_DataComboFile[Implementation programme]=$G$3)*(T_DataComboFile[Econ3]=$G62))*T_DataComboFile[2022/23 Baseline]*$B$3)","v":0},{"$f":"SUMPRODUCT(((T_DataComboFile[Implementation programme]=$G$3)*(T_DataComboFile[Econ3]=$G62))*T_DataComboFile[2022/23 Reduction]*$B$3)","v":0},{"$f":"SUMPRODUCT(((T_DataComboFile[Implementation programme]=$G$3)*(T_DataComboFile[Econ3]=$G62))*T_DataComboFile[2022/23 Increase]*$B$3)","v":0},0,{"$f":"SUMPRODUCT(((T_DataComboFile[Implementation programme]=$G$3)*(T_DataComboFile[Econ3]=$G62))*T_DataComboFile[2023/24 Baseline]*$B$3)","v":0},{"$f":"SUMPRODUCT(((T_DataComboFile[Implementation programme]=$G$3)*(T_DataComboFile[Econ3]=$G62))*T_DataComboFile[2023/24 Reduction]*$B$3)","v":0},{"$f":"SUMPRODUCT(((T_DataComboFile[Implementation programme]=$G$3)*(T_DataComboFile[Econ3]=$G62))*T_DataComboFile[2023/24 Increase]*$B$3)","v":0},0]
[0,0,null,null,null,null,"Software and other intangible assets",{"$f":"SUMPRODUCT(((T_DataComboFile[Implementation programme]=$G$3)*(T_DataComboFile[Econ3]=$G63))*T_DataComboFile[2017/18]*$B$3)","v":0},{"$f":"SUMPRODUCT(((T_DataComboFile[Implementation programme]=$G$3)*(T_DataComboFile[Econ3]=$G63))*T_DataComboFile[2018/19]*$B$3)","v":0},{"$f":"SUMPRODUCT(((T_DataComboFile[Implementation programme]=$G$3)*(T_DataComboFile[Econ3]=$G63))*T_DataComboFile[2019/20 Revised estimate]*$B$3)","v":0},{"$f":"SUMPRODUCT(((T_DataComboFile[Implementation programme]=$G$3)*(T_DataComboFile[Econ3]=$G63))*T_DataComboFile[2020/21 Revised]*$B$3)","v":0},{"$f":"SUMPRODUCT(((T_DataComboFile[Implementation programme]=$G$3)*(T_DataComboFile[Econ3]=$G63))*T_DataComboFile[2021/22 Baseline]*$B$3)","v":0},{"$f":"SUMPRODUCT(((T_DataComboFile[Implementation programme]=$G$3)*(T_DataComboFile[Econ3]=$G63))*T_DataComboFile[2021/22 Reduction]*$B$3)","v":0},{"$f":"SUMPRODUCT(((T_DataComboFile[Implementation programme]=$G$3)*(T_DataComboFile[Econ3]=$G63))*T_DataComboFile[2021/22 Increase]*$B$3)","v":0},0,{"$f":"SUMPRODUCT(((T_DataComboFile[Implementation programme]=$G$3)*(T_DataComboFile[Econ3]=$G63))*T_DataComboFile[2022/23 Baseline]*$B$3)","v":0},{"$f":"SUMPRODUCT(((T_DataComboFile[Implementation programme]=$G$3)*(T_DataComboFile[Econ3]=$G63))*T_DataComboFile[2022/23 Reduction]*$B$3)","v":0},{"$f":"SUMPRODUCT(((T_DataComboFile[Implementation programme]=$G$3)*(T_DataComboFile[Econ3]=$G63))*T_DataComboFile[2022/23 Increase]*$B$3)","v":0},0,{"$f":"SUMPRODUCT(((T_DataComboFile[Implementation programme]=$G$3)*(T_DataComboFile[Econ3]=$G63))*T_DataComboFile[2023/24 Baseline]*$B$3)","v":0},{"$f":"SUMPRODUCT(((T_DataComboFile[Implementation programme]=$G$3)*(T_DataComboFile[Econ3]=$G63))*T_DataComboFile[2023/24 Reduction]*$B$3)","v":0},{"$f":"SUMPRODUCT(((T_DataComboFile[Implementation programme]=$G$3)*(T_DataComboFile[Econ3]=$G63))*T_DataComboFile[2023/24 Increase]*$B$3)","v":0},0]
[0,0,null,null,null,null,"Payments for financial assets",{"$f":"SUMPRODUCT(((T_DataComboFile[Implementation programme]=$G$3)*(T_DataComboFile[Econ3]=$G64))*T_DataComboFile[2017/18]*$B$3)","v":0},{"$f":"SUMPRODUCT(((T_DataComboFile[Implementation programme]=$G$3)*(T_DataComboFile[Econ3]=$G64))*T_DataComboFile[2018/19]*$B$3)","v":0},{"$f":"SUMPRODUCT(((T_DataComboFile[Implementation programme]=$G$3)*(T_DataComboFile[Econ3]=$G64))*T_DataComboFile[2019/20 Revised estimate]*$B$3)","v":0},{"$f":"SUMPRODUCT(((T_DataComboFile[Implementation programme]=$G$3)*(T_DataComboFile[Econ3]=$G64))*T_DataComboFile[2020/21 Revised]*$B$3)","v":0},{"$f":"SUMPRODUCT(((T_DataComboFile[Implementation programme]=$G$3)*(T_DataComboFile[Econ3]=$G64))*T_DataComboFile[2021/22 Baseline]*$B$3)","v":0},{"$f":"SUMPRODUCT(((T_DataComboFile[Implementation programme]=$G$3)*(T_DataComboFile[Econ3]=$G64))*T_DataComboFile[2021/22 Reduction]*$B$3)","v":0},{"$f":"SUMPRODUCT(((T_DataComboFile[Implementation programme]=$G$3)*(T_DataComboFile[Econ3]=$G64))*T_DataComboFile[2021/22 Increase]*$B$3)","v":0},0,{"$f":"SUMPRODUCT(((T_DataComboFile[Implementation programme]=$G$3)*(T_DataComboFile[Econ3]=$G64))*T_DataComboFile[2022/23 Baseline]*$B$3)","v":0},{"$f":"SUMPRODUCT(((T_DataComboFile[Implementation programme]=$G$3)*(T_DataComboFile[Econ3]=$G64))*T_DataComboFile[2022/23 Reduction]*$B$3)","v":0},{"$f":"SUMPRODUCT(((T_DataComboFile[Implementation programme]=$G$3)*(T_DataComboFile[Econ3]=$G64))*T_DataComboFile[2022/23 Increase]*$B$3)","v":0},0,{"$f":"SUMPRODUCT(((T_DataComboFile[Implementation programme]=$G$3)*(T_DataComboFile[Econ3]=$G64))*T_DataComboFile[2023/24 Baseline]*$B$3)","v":0},{"$f":"SUMPRODUCT(((T_DataComboFile[Implementation programme]=$G$3)*(T_DataComboFile[Econ3]=$G64))*T_DataComboFile[2023/24 Reduction]*$B$3)","v":0},{"$f":"SUMPRODUCT(((T_DataComboFile[Implementation programme]=$G$3)*(T_DataComboFile[Econ3]=$G64))*T_DataComboFile[2023/24 Increase]*$B$3)","v":0},0]
[0,0,null,null,null,null,"Total",{"$f":"SUM(H32,H36,H52,H64)","v":0},0,0,0,0,0,0,0,0,0,0,0,0,0,0,0]
[]
[]
[]
[]
[]
[null,null,null,null,null,null,{"$f":"\"IMPACT OF ADJUSTMENTS: \" &UPPER($G$3)","v":"IMPACT OF ADJUSTMENTS: "}]
[]
[null,null,null,null,null,1,"Summary of impact on service delivery due to adjustments"]
[{"$f":"$G$3","v":0},1]
[0,1]
[0,1]
[0,1]
[0,1]
[0,1]
[0,1]
[0,1]
[0,1]
[0,1]
[0,1]
[0,1]
[0,1]
[0,1]
[0,1]
[]
[]
[]
[]
[]
[null,null,null,null,null,2,"Impact of adjustments on performance indicators"]
[{"$f":"$G$3","v":0},2,null,null,null,null,null,"2021/22",null,null,"2022/23",null,null,"2023/24",null,null," Comment",null,null,null,null,"Related MTSF Priority"]
[0,2,null,null,null,null,"Performance indicator","Original target","Revised target","Change","Original target","Revised target","Change","Original target","Revised target","Change"]
[0,2]
[0,2]
[0,2]
[0,2]
[0,2]
[0,2]
[0,2]
[0,2]
[0,2]
[0,2]
[0,2]
[0,2]
[0,2]
[0,2]
[0,2]
[]
[]
[]
[]
[]
[null,null,null,null,null,3,"Impact of adjustments on infrastructure projects"]
[{"$f":"$G$3","v":0},3,null,null,null,null,null,"2021/22",null,null,"2022/23",null,null,"2023/24",null,null," Comment"]
[0,3,null,null,null,null,"Project name","Original amount","Revised amount","Change","Original amount","Revised amount","Change","Original amount","Revised amount","Change"]
[0,3,null,null,null,null,null,null,null,{"$f":"I120-H120","v":0},null,null,{"$f":"L120-K120","v":0},null,null,{"$f":"O120-N120","v":0}]
[0,3,null,null,null,null,null,null,null,0,null,null,0,null,null,0]
[0,3,null,null,null,null,null,null,null,0,null,null,0,null,null,0]
[0,3,null,null,null,null,null,null,null,0,null,null,0,null,null,0]
[0,3,null,null,null,null,null,null,null,0,null,null,0,null,null,0]
[0,3,null,null,null,null,null,null,null,0,null,null,0,null,null,0]
[0,3,null,null,null,null,null,null,null,0,null,null,0,null,null,0]
[0,3,null,null,null,null,null,null,null,0,null,null,0,null,null,0]
[0,3,null,null,null,null,null,null,null,0,null,null,0,null,null,0]
[0,3,null,null,null,null,null,null,null,0,null,null,0,null,null,0]
[0,3,null,null,null,null,null,null,null,0,null,null,0,null,null,0]
[0,3,null,null,null,null,null,null,null,0,null,null,0,null,null,0]
[0,3,null,null,null,null,null,null,null,0,null,null,0,null,null,0]
[0,3,null,null,null,null,null,null,null,0,null,null,0,null,null,0]
[0,3,null,null,null,null,null,null,null,0,null,null,0,null,null,0]
[0,3,null,null,null,null,"Total",{"$f":"SUM(H120:H134)","v":0},0,0,0,0,0,0,0,0]
[]
[]
[]
[]
[]
[null,null,null,null,null,4,"Impact of adjustments on personnel headcount numbers"]
[{"$f":"$G$3","v":0},4,null,null,null,null,null,"2021/22",null,null,"2022/23",null,null,"2023/24",null,null," Comment"]
[0,4,null,null,null,null,"Salary level","Original number","Revised number","Change","Original number","Revised number","Change","Original number","Revised number","Change"]
[0,4,null,null,null,null,1,null,null,{"$f":"I144-H144","v":0},null,null,{"$f":"L144-K144","v":0},null,null,{"$f":"O144-N144","v":0}]
[0,4,null,null,null,null,2,null,null,0,null,null,0,null,null,0]
[0,4,null,null,null,null,3,null,null,0,null,null,0,null,null,0]
[0,4,null,null,null,null,4,null,null,0,null,null,0,null,null,0]
[0,4,null,null,null,null,5,null,null,0,null,null,0,null,null,0]
[0,4,null,null,null,null,6,null,null,0,null,null,0,null,null,0]
[0,4,null,null,null,null,7,null,null,0,null,null,0,null,null,0]
[0,4,null,null,null,null,8,null,null,0,null,null,0,null,null,0]
[0,4,null,null,null,null,9,null,null,0,null,null,0,null,null,0]
[0,4,null,null,null,null,10,null,null,0,null,null,0,null,null,0]
[0,4,null,null,null,null,11,null,null,0,null,null,0,null,null,0]
[0,4,null,null,null,null,12,null,null,0,null,null,0,null,null,0]
[0,4,null,null,null,null,13,null,null,0,null,null,0,null,null,0]
[0,4,null,null,null,null,14,null,null,0,null,null,0,null,null,0]
[0,4,null,null,null,null,15,null,null,0,null,null,0,null,null,0]
[0,4,null,null,null,null,16,null,null,0,null,null,0,null,null,0]
[0,4,null,null,null,null,"Other",null,null,0,null,null,0,null,null,0]
[0,4,null,null,null,null,"Other",null,null,0,null,null,0,null,null,0]
[0,4,null,null,null,null,"Other",null,null,0,null,null,0,null,null,0]
[0,4,null,null,null,null,"Other",null,null,0,null,null,0,null,null,0]
[0,4,null,null,null,null,"Total",{"$f":"SUM(H144:H163)","v":0},0,0,0,0,0,0,0,0]
[]
[]
[]
[]
[]
[null,null,null,null,null,5,"Impact of adjustments by economic classification"]
[{"$f":"$G$3","v":0},5,null,null,null,null,null,"2021/22",null,null,"2022/23",null,null,"2023/24",null,null," Comment"]
[0,5,null,null,null,null,"Salary level","Original number","Revised number","Change","Original number","Revised number","Change","Original number","Revised number","Change"]
[0,5,null,null,null,null,"Current payments",{"$f":"SUM(H174,H175,H182)","v":0},{"$f":"SUM(I174,I175,I182)","v":0},{"$f":"I173-H173","v":0},{"$f":"SUM(K174,K175,K182)","v":0},{"$f":"SUM(L174,L175,L182)","v":0},{"$f":"L173-K173","v":0},{"$f":"SUM(N174,N175,N182)","v":0},{"$f":"SUM(O174,O175,O182)","v":0},{"$f":"O173-N173","v":0}]
[0,5,null,null,null,null,"Compensation of employees",{"$f":"SUMPRODUCT(((T_DataComboFile[Implementation programme]=$G$3)*(T_DataComboFile[Econ3]=$G174))*T_DataComboFile[2021/22 Baseline]*$B$3)","v":0},{"$f":"SUMPRODUCT(((T_DataComboFile[Implementation programme]=$G$3)*(T_DataComboFile[Econ3]=$G174))*T_DataComboFile[2021/22 Revised baseline]*$B$3)","v":0},0,{"$f":"SUMPRODUCT(((T_DataComboFile[Implementation programme]=$G$3)*(T_DataComboFile[Econ3]=$G174))*T_DataComboFile[2022/23 Baseline]*$B$3)","v":0},{"$f":"SUMPRODUCT(((T_DataComboFile[Implementation programme]=$G$3)*(T_DataComboFile[Econ3]=$G174))*T_DataComboFile[2022/23 Revised baseline]*$B$3)","v":0},0,{"$f":"SUMPRODUCT(((T_DataComboFile[Implementation programme]=$G$3)*(T_DataComboFile[Econ3]=$G174))*T_DataComboFile[2023/24 Baseline]*$B$3)","v":0},{"$f":"SUMPRODUCT(((T_DataComboFile[Implementation programme]=$G$3)*(T_DataComboFile[Econ3]=$G174))*T_DataComboFile[2023/24 Revised baseline]*$B$3)","v":0},0]
[0,5,null,null,null,null,"Goods and services",{"$f":"SUMPRODUCT(((T_DataComboFile[Implementation programme]=$G$3)*(T_DataComboFile[Econ3]=$G175))*T_DataComboFile[2021/22 Baseline]*$B$3)","v":0},{"$f":"SUMPRODUCT(((T_DataComboFile[Implementation programme]=$G$3)*(T_DataComboFile[Econ3]=$G175))*T_DataComboFile[2021/22 Revised baseline]*$B$3)","v":0},0,{"$f":"SUMPRODUCT(((T_DataComboFile[Implementation programme]=$G$3)*(T_DataComboFile[Econ3]=$G175))*T_DataComboFile[2022/23 Baseline]*$B$3)","v":0},{"$f":"SUMPRODUCT(((T_DataComboFile[Implementation programme]=$G$3)*(T_DataComboFile[Econ3]=$G175))*T_DataComboFile[2022/23 Revised baseline]*$B$3)","v":0},0,{"$f":"SUMPRODUCT(((T_DataComboFile[Implementation programme]=$G$3)*(T_DataComboFile[Econ3]=$G175))*T_DataComboFile[2023/24 Baseline]*$B$3)","v":0},{"$f":"SUMPRODUCT(((T_DataComboFile[Implementation programme]=$G$3)*(T_DataComboFile[Econ3]=$G175))*T_DataComboFile[2023/24 Revised baseline]*$B$3)","v":0},0]
[0,50,null,null,null,null,"of which:"]
[0,51,null,null,null,null,null,null,null,{"$f":"I177-H177","v":0},null,null,{"$f":"L177-K177","v":0},null,null,0]
[0,51,null,null,null,null,null,null,null,0,null,null,0,null,null,0]
[0,51,null,null,null,null,null,null,null,0,null,null,0,null,null,0]
[0,51,null,null,null,null,null,null,null,0,null,null,0,null,null,0]
[0,51,null,null,null,null,null,null,null,0,null,null,0,null,null,0]
[0,5,null,null,null,null,"Interest and rent on land",{"$f":"SUMPRODUCT(((T_DataComboFile[Implementation programme]=$G$3)*(T_DataComboFile[Econ3]=$G182))*T_DataComboFile[2021/22 Baseline]*$B$3)","v":0},{"$f":"SUMPRODUCT(((T_DataComboFile[Implementation programme]=$G$3)*(T_DataComboFile[Econ3]=$G182))*T_DataComboFile[2021/22 Revised baseline]*$B$3)","v":0},0,{"$f":"SUMPRODUCT(((T_DataComboFile[Implementation programme]=$G$3)*(T_DataComboFile[Econ3]=$G182))*T_DataComboFile[2022/23 Baseline]*$B$3)","v":0},{"$f":"SUMPRODUCT(((T_DataComboFile[Implementation programme]=$G$3)*(T_DataComboFile[Econ3]=$G182))*T_DataComboFile[2022/23 Revised baseline]*$B$3)","v":0},0,{"$f":"SUMPRODUCT(((T_DataComboFile[Implementation programme]=$G$3)*(T_DataComboFile[Econ3]=$G182))*T_DataComboFile[2023/24 Baseline]*$B$3)","v":0},{"$f":"SUMPRODUCT(((T_DataComboFile[Implementation programme]=$G$3)*(T_DataComboFile[Econ3]=$G182))*T_DataComboFile[2023/24 Revised baseline]*$B$3)","v":0},0]
[0,5,null,null,null,null,"Transfers and subsidies",{"$f":"SUM(H184,H185,H197,H198,H199,H206,H207)","v":0},{"$f":"SUM(I184,I185,I197,I198,I199,I206,I207)","v":0},0,{"$f":"SUM(K184,K185,K197,K198,K199,K206,K207)","v":0},0,0,{"$f":"SUM(N184,N185,N197,N198,N199,N206,N207)","v":0},0,0]
[0,5,null,null,null,null,"Provinces and municipalities",{"$f":"SUMPRODUCT(((T_DataComboFile[Implementation programme]=$G$3)*(T_DataComboFile[Econ3]=$G184))*T_DataComboFile[2021/22 Baseline]*$B$3)","v":0},{"$f":"SUMPRODUCT(((T_DataComboFile[Implementation programme]=$G$3)*(T_DataComboFile[Econ3]=$G184))*T_DataComboFile[2021/22 Revised baseline]*$B$3)","v":0},0,{"$f":"SUMPRODUCT(((T_DataComboFile[Implementation programme]=$G$3)*(T_DataComboFile[Econ3]=$G184))*T_DataComboFile[2022/23 Baseline]*$B$3)","v":0},{"$f":"SUMPRODUCT(((T_DataComboFile[Implementation programme]=$G$3)*(T_DataComboFile[Econ3]=$G184))*T_DataComboFile[2022/23 Revised baseline]*$B$3)","v":0},0,{"$f":"SUMPRODUCT(((T_DataComboFile[Implementation programme]=$G$3)*(T_DataComboFile[Econ3]=$G184))*T_DataComboFile[2023/24 Baseline]*$B$3)","v":0},{"$f":"SUMPRODUCT(((T_DataComboFile[Implementation programme]=$G$3)*(T_DataComboFile[Econ3]=$G184))*T_DataComboFile[2023/24 Revised baseline]*$B$3)","v":0},0]
[0,5,null,null,null,null,"Departmental agencies and accounts",{"$f":"SUMPRODUCT(((T_DataComboFile[Implementation programme]=$G$3)*(T_DataComboFile[Econ3]=$G185))*T_DataComboFile[2021/22 Baseline]*$B$3)","v":0},{"$f":"SUMPRODUCT(((T_DataComboFile[Implementation programme]=$G$3)*(T_DataComboFile[Econ3]=$G185))*T_DataComboFile[2021/22 Revised baseline]*$B$3)","v":0},0,{"$f":"SUMPRODUCT(((T_DataComboFile[Implementation programme]=$G$3)*(T_DataComboFile[Econ3]=$G185))*T_DataComboFile[2022/23 Baseline]*$B$3)","v":0},{"$f":"SUMPRODUCT(((T_DataComboFile[Implementation programme]=$G$3)*(T_DataComboFile[Econ3]=$G185))*T_DataComboFile[2022/23 Revised baseline]*$B$3)","v":0},0,{"$f":"SUMPRODUCT(((T_DataComboFile[Implementation programme]=$G$3)*(T_DataComboFile[Econ3]=$G185))*T_DataComboFile[2023/24 Baseline]*$B$3)","v":0},{"$f":"SUMPRODUCT(((T_DataComboFile[Implementation programme]=$G$3)*(T_DataComboFile[Econ3]=$G185))*T_DataComboFile[2023/24 Revised baseline]*$B$3)","v":0},0]
[0,50,null,null,null,null,"of which:"]
[0,52,null,null,null,null,null,null,null,{"$f":"I187-H187","v":0},null,null,{"$f":"L187-K187","v":0},null,null,{"$f":"O187-N187","v":0}]
[0,52,null,null,null,null,null,null,null,0,null,null,0,null,null,0]
[0,52,null,null,null,null,null,null,null,0,null,null,0,null,null,0]
[0,52,null,null,null,null,null,null,null,0,null,null,0,null,null,0]
[0,52,null,null,null,null,null,null,null,0,null,null,0,null,null,0]
[0,52,null,null,null,null,null,null,null,0,null,null,0,null,null,0]
[0,52,null,null,null,null,null,null,null,0,null,null,0,null,null,0]
[0,52,null,null,null,null,null,null,null,0,null,null,0,null,null,0]
[0,52,null,null,null,null,null,null,null,0,null,null,0,null,null,0]
[0,52,null,null,null,null,null,null,null,0,null,null,0,null,null,0]
[0,5,null,null,null,null,"Higher education institutions",{"$f":"SUMPRODUCT(((T_DataComboFile[Implementation programme]=$G$3)*(T_DataComboFile[Econ3]=$G197))*T_DataComboFile[2021/22 Baseline]*$B$3)","v":0},{"$f":"SUMPRODUCT(((T_DataComboFile[Implementation programme]=$G$3)*(T_DataComboFile[Econ3]=$G197))*T_DataComboFile[2021/22 Revised baseline]*$B$3)","v":0},0,{"$f":"SUMPRODUCT(((T_DataComboFile[Implementation programme]=$G$3)*(T_DataComboFile[Econ3]=$G197))*T_DataComboFile[2022/23 Baseline]*$B$3)","v":0},{"$f":"SUMPRODUCT(((T_DataComboFile[Implementation programme]=$G$3)*(T_DataComboFile[Econ3]=$G197))*T_DataComboFile[2022/23 Revised baseline]*$B$3)","v":0},0,{"$f":"SUMPRODUCT(((T_DataComboFile[Implementation programme]=$G$3)*(T_DataComboFile[Econ3]=$G197))*T_DataComboFile[2023/24 Baseline]*$B$3)","v":0},{"$f":"SUMPRODUCT(((T_DataComboFile[Implementation programme]=$G$3)*(T_DataComboFile[Econ3]=$G197))*T_DataComboFile[2023/24 Revised baseline]*$B$3)","v":0},0]
[0,5,null,null,null,null,"Foreign governments and international organisations",{"$f":"SUMPRODUCT(((T_DataComboFile[Implementation programme]=$G$3)*(T_DataComboFile[Econ3]=$G198))*T_DataComboFile[2021/22 Baseline]*$B$3)","v":0},{"$f":"SUMPRODUCT(((T_DataComboFile[Implementation programme]=$G$3)*(T_DataComboFile[Econ3]=$G198))*T_DataComboFile[2021/22 Revised baseline]*$B$3)","v":0},0,{"$f":"SUMPRODUCT(((T_DataComboFile[Implementation programme]=$G$3)*(T_DataComboFile[Econ3]=$G198))*T_DataComboFile[2022/23 Baseline]*$B$3)","v":0},{"$f":"SUMPRODUCT(((T_DataComboFile[Implementation programme]=$G$3)*(T_DataComboFile[Econ3]=$G198))*T_DataComboFile[2022/23 Revised baseline]*$B$3)","v":0},0,{"$f":"SUMPRODUCT(((T_DataComboFile[Implementation programme]=$G$3)*(T_DataComboFile[Econ3]=$G198))*T_DataComboFile[2023/24 Baseline]*$B$3)","v":0},{"$f":"SUMPRODUCT(((T_DataComboFile[Implementation programme]=$G$3)*(T_DataComboFile[Econ3]=$G198))*T_DataComboFile[2023/24 Revised baseline]*$B$3)","v":0},0]
[0,5,null,null,null,null,"Public corporations and private enterprises",{"$f":"SUMPRODUCT(((T_DataComboFile[Implementation programme]=$G$3)*(T_DataComboFile[Econ3]=$G199))*T_DataComboFile[2021/22 Baseline]*$B$3)","v":0},{"$f":"SUMPRODUCT(((T_DataComboFile[Implementation programme]=$G$3)*(T_DataComboFile[Econ3]=$G199))*T_DataComboFile[2021/22 Revised baseline]*$B$3)","v":0},0,{"$f":"SUMPRODUCT(((T_DataComboFile[Implementation programme]=$G$3)*(T_DataComboFile[Econ3]=$G199))*T_DataComboFile[2022/23 Baseline]*$B$3)","v":0},{"$f":"SUMPRODUCT(((T_DataComboFile[Implementation programme]=$G$3)*(T_DataComboFile[Econ3]=$G199))*T_DataComboFile[2022/23 Revised baseline]*$B$3)","v":0},0,{"$f":"SUMPRODUCT(((T_DataComboFile[Implementation programme]=$G$3)*(T_DataComboFile[Econ3]=$G199))*T_DataComboFile[2023/24 Baseline]*$B$3)","v":0},{"$f":"SUMPRODUCT(((T_DataComboFile[Implementation programme]=$G$3)*(T_DataComboFile[Econ3]=$G199))*T_DataComboFile[2023/24 Revised baseline]*$B$3)","v":0},0]
[0,50,null,null,null,null,"of which:"]
[0,53,null,null,null,null,null,null,null,{"$f":"I201-H201","v":0},null,null,{"$f":"L201-K201","v":0},null,null,{"$f":"O201-N201","v":0}]
[0,53,null,null,null,null,null,null,null,0,null,null,0,null,null,0]
[0,53,null,null,null,null,null,null,null,0,null,null,0,null,null,0]
[0,53,null,null,null,null,null,null,null,0,null,null,0,null,null,0]
[0,53,null,null,null,null,null,null,null,0,null,null,0,null,null,0]
[0,5,null,null,null,null,"Non-profit institutions",{"$f":"SUMPRODUCT(((T_DataComboFile[Implementation programme]=$G$3)*(T_DataComboFile[Econ3]=$G206))*T_DataComboFile[2021/22 Baseline]*$B$3)","v":0},{"$f":"SUMPRODUCT(((T_DataComboFile[Implementation programme]=$G$3)*(T_DataComboFile[Econ3]=$G206))*T_DataComboFile[2021/22 Revised baseline]*$B$3)","v":0},0,{"$f":"SUMPRODUCT(((T_DataComboFile[Implementation programme]=$G$3)*(T_DataComboFile[Econ3]=$G206))*T_DataComboFile[2022/23 Baseline]*$B$3)","v":0},{"$f":"SUMPRODUCT(((T_DataComboFile[Implementation programme]=$G$3)*(T_DataComboFile[Econ3]=$G206))*T_DataComboFile[2022/23 Revised baseline]*$B$3)","v":0},0,{"$f":"SUMPRODUCT(((T_DataComboFile[Implementation programme]=$G$3)*(T_DataComboFile[Econ3]=$G206))*T_DataComboFile[2023/24 Baseline]*$B$3)","v":0},{"$f":"SUMPRODUCT(((T_DataComboFile[Implementation programme]=$G$3)*(T_DataComboFile[Econ3]=$G206))*T_DataComboFile[2023/24 Revised baseline]*$B$3)","v":0},0]
[0,5,null,null,null,null,"Households",{"$f":"SUMPRODUCT(((T_DataComboFile[Implementation programme]=$G$3)*(T_DataComboFile[Econ3]=$G207))*T_DataComboFile[2021/22 Baseline]*$B$3)","v":0},{"$f":"SUMPRODUCT(((T_DataComboFile[Implementation programme]=$G$3)*(T_DataComboFile[Econ3]=$G207))*T_DataComboFile[2021/22 Revised baseline]*$B$3)","v":0},0,{"$f":"SUMPRODUCT(((T_DataComboFile[Implementation programme]=$G$3)*(T_DataComboFile[Econ3]=$G207))*T_DataComboFile[2022/23 Baseline]*$B$3)","v":0},{"$f":"SUMPRODUCT(((T_DataComboFile[Implementation programme]=$G$3)*(T_DataComboFile[Econ3]=$G207))*T_DataComboFile[2022/23 Revised baseline]*$B$3)","v":0},0,{"$f":"SUMPRODUCT(((T_DataComboFile[Implementation programme]=$G$3)*(T_DataComboFile[Econ3]=$G207))*T_DataComboFile[2023/24 Baseline]*$B$3)","v":0},{"$f":"SUMPRODUCT(((T_DataComboFile[Implementation programme]=$G$3)*(T_DataComboFile[Econ3]=$G207))*T_DataComboFile[2023/24 Revised baseline]*$B$3)","v":0},0]
[0,5,null,null,null,null,"Payments for capital assets",{"$f":"SUM(H209:H215)","v":0},0,0,0,0,0,0,{"$f":"SUM(O209:O215)","v":0},0]
[0,5,null,null,null,null,"Buildings and other fixed structures",{"$f":"SUMPRODUCT(((T_DataComboFile[Implementation programme]=$G$3)*(T_DataComboFile[Econ3]=$G209))*T_DataComboFile[2021/22 Baseline]*$B$3)","v":0},{"$f":"SUMPRODUCT(((T_DataComboFile[Implementation programme]=$G$3)*(T_DataComboFile[Econ3]=$G209))*T_DataComboFile[2021/22 Revised baseline]*$B$3)","v":0},0,{"$f":"SUMPRODUCT(((T_DataComboFile[Implementation programme]=$G$3)*(T_DataComboFile[Econ3]=$G209))*T_DataComboFile[2022/23 Baseline]*$B$3)","v":0},{"$f":"SUMPRODUCT(((T_DataComboFile[Implementation programme]=$G$3)*(T_DataComboFile[Econ3]=$G209))*T_DataComboFile[2022/23 Revised baseline]*$B$3)","v":0},0,{"$f":"SUMPRODUCT(((T_DataComboFile[Implementation programme]=$G$3)*(T_DataComboFile[Econ3]=$G209))*T_DataComboFile[2023/24 Baseline]*$B$3)","v":0},{"$f":"SUMPRODUCT(((T_DataComboFile[Implementation programme]=$G$3)*(T_DataComboFile[Econ3]=$G209))*T_DataComboFile[2023/24 Revised baseline]*$B$3)","v":0},0]
[0,5,null,null,null,null,"Machinery and equipment",{"$f":"SUMPRODUCT(((T_DataComboFile[Implementation programme]=$G$3)*(T_DataComboFile[Econ3]=$G210))*T_DataComboFile[2021/22 Baseline]*$B$3)","v":0},{"$f":"SUMPRODUCT(((T_DataComboFile[Implementation programme]=$G$3)*(T_DataComboFile[Econ3]=$G210))*T_DataComboFile[2021/22 Revised baseline]*$B$3)","v":0},0,{"$f":"SUMPRODUCT(((T_DataComboFile[Implementation programme]=$G$3)*(T_DataComboFile[Econ3]=$G210))*T_DataComboFile[2022/23 Baseline]*$B$3)","v":0},{"$f":"SUMPRODUCT(((T_DataComboFile[Implementation programme]=$G$3)*(T_DataComboFile[Econ3]=$G210))*T_DataComboFile[2022/23 Revised baseline]*$B$3)","v":0},0,{"$f":"SUMPRODUCT(((T_DataComboFile[Implementation programme]=$G$3)*(T_DataComboFile[Econ3]=$G210))*T_DataComboFile[2023/24 Baseline]*$B$3)","v":0},{"$f":"SUMPRODUCT(((T_DataComboFile[Implementation programme]=$G$3)*(T_DataComboFile[Econ3]=$G210))*T_DataComboFile[2023/24 Revised baseline]*$B$3)","v":0},0]
[0,5,null,null,null,null,"Heritage assets",{"$f":"SUMPRODUCT(((T_DataComboFile[Implementation programme]=$G$3)*(T_DataComboFile[Econ3]=$G211))*T_DataComboFile[2021/22 Baseline]*$B$3)","v":0},{"$f":"SUMPRODUCT(((T_DataComboFile[Implementation programme]=$G$3)*(T_DataComboFile[Econ3]=$G211))*T_DataComboFile[2021/22 Revised baseline]*$B$3)","v":0},0,{"$f":"SUMPRODUCT(((T_DataComboFile[Implementation programme]=$G$3)*(T_DataComboFile[Econ3]=$G211))*T_DataComboFile[2022/23 Baseline]*$B$3)","v":0},{"$f":"SUMPRODUCT(((T_DataComboFile[Implementation programme]=$G$3)*(T_DataComboFile[Econ3]=$G211))*T_DataComboFile[2022/23 Revised baseline]*$B$3)","v":0},0,{"$f":"SUMPRODUCT(((T_DataComboFile[Implementation programme]=$G$3)*(T_DataComboFile[Econ3]=$G211))*T_DataComboFile[2023/24 Baseline]*$B$3)","v":0},{"$f":"SUMPRODUCT(((T_DataComboFile[Implementation programme]=$G$3)*(T_DataComboFile[Econ3]=$G211))*T_DataComboFile[2023/24 Revised baseline]*$B$3)","v":0},0]
[0,5,null,null,null,null,"Specialised military assets",{"$f":"SUMPRODUCT(((T_DataComboFile[Implementation programme]=$G$3)*(T_DataComboFile[Econ3]=$G212))*T_DataComboFile[2021/22 Baseline]*$B$3)","v":0},{"$f":"SUMPRODUCT(((T_DataComboFile[Implementation programme]=$G$3)*(T_DataComboFile[Econ3]=$G212))*T_DataComboFile[2021/22 Revised baseline]*$B$3)","v":0},0,{"$f":"SUMPRODUCT(((T_DataComboFile[Implementation programme]=$G$3)*(T_DataComboFile[Econ3]=$G212))*T_DataComboFile[2022/23 Baseline]*$B$3)","v":0},{"$f":"SUMPRODUCT(((T_DataComboFile[Implementation programme]=$G$3)*(T_DataComboFile[Econ3]=$G212))*T_DataComboFile[2022/23 Revised baseline]*$B$3)","v":0},0,{"$f":"SUMPRODUCT(((T_DataComboFile[Implementation programme]=$G$3)*(T_DataComboFile[Econ3]=$G212))*T_DataComboFile[2023/24 Baseline]*$B$3)","v":0},{"$f":"SUMPRODUCT(((T_DataComboFile[Implementation programme]=$G$3)*(T_DataComboFile[Econ3]=$G212))*T_DataComboFile[2023/24 Revised baseline]*$B$3)","v":0},0]
[0,5,null,null,null,null,"Biological assets",{"$f":"SUMPRODUCT(((T_DataComboFile[Implementation programme]=$G$3)*(T_DataComboFile[Econ3]=$G213))*T_DataComboFile[2021/22 Baseline]*$B$3)","v":0},{"$f":"SUMPRODUCT(((T_DataComboFile[Implementation programme]=$G$3)*(T_DataComboFile[Econ3]=$G213))*T_DataComboFile[2021/22 Revised baseline]*$B$3)","v":0},0,{"$f":"SUMPRODUCT(((T_DataComboFile[Implementation programme]=$G$3)*(T_DataComboFile[Econ3]=$G213))*T_DataComboFile[2022/23 Baseline]*$B$3)","v":0},{"$f":"SUMPRODUCT(((T_DataComboFile[Implementation programme]=$G$3)*(T_DataComboFile[Econ3]=$G213))*T_DataComboFile[2022/23 Revised baseline]*$B$3)","v":0},0,{"$f":"SUMPRODUCT(((T_DataComboFile[Implementation programme]=$G$3)*(T_DataComboFile[Econ3]=$G213))*T_DataComboFile[2023/24 Baseline]*$B$3)","v":0},{"$f":"SUMPRODUCT(((T_DataComboFile[Implementation programme]=$G$3)*(T_DataComboFile[Econ3]=$G213))*T_DataComboFile[2023/24 Revised baseline]*$B$3)","v":0},0]
[0,5,null,null,null,null,"Land and sub-soil assets",{"$f":"SUMPRODUCT(((T_DataComboFile[Implementation programme]=$G$3)*(T_DataComboFile[Econ3]=$G214))*T_DataComboFile[2021/22 Baseline]*$B$3)","v":0},{"$f":"SUMPRODUCT(((T_DataComboFile[Implementation programme]=$G$3)*(T_DataComboFile[Econ3]=$G214))*T_DataComboFile[2021/22 Revised baseline]*$B$3)","v":0},0,{"$f":"SUMPRODUCT(((T_DataComboFile[Implementation programme]=$G$3)*(T_DataComboFile[Econ3]=$G214))*T_DataComboFile[2022/23 Baseline]*$B$3)","v":0},{"$f":"SUMPRODUCT(((T_DataComboFile[Implementation programme]=$G$3)*(T_DataComboFile[Econ3]=$G214))*T_DataComboFile[2022/23 Revised baseline]*$B$3)","v":0},0,{"$f":"SUMPRODUCT(((T_DataComboFile[Implementation programme]=$G$3)*(T_DataComboFile[Econ3]=$G214))*T_DataComboFile[2023/24 Baseline]*$B$3)","v":0},{"$f":"SUMPRODUCT(((T_DataComboFile[Implementation programme]=$G$3)*(T_DataComboFile[Econ3]=$G214))*T_DataComboFile[2023/24 Revised baseline]*$B$3)","v":0},0]
[0,5,null,null,null,null,"Software and other intangible assets",{"$f":"SUMPRODUCT(((T_DataComboFile[Implementation programme]=$G$3)*(T_DataComboFile[Econ3]=$G215))*T_DataComboFile[2021/22 Baseline]*$B$3)","v":0},{"$f":"SUMPRODUCT(((T_DataComboFile[Implementation programme]=$G$3)*(T_DataComboFile[Econ3]=$G215))*T_DataComboFile[2021/22 Revised baseline]*$B$3)","v":0},0,{"$f":"SUMPRODUCT(((T_DataComboFile[Implementation programme]=$G$3)*(T_DataComboFile[Econ3]=$G215))*T_DataComboFile[2022/23 Baseline]*$B$3)","v":0},{"$f":"SUMPRODUCT(((T_DataComboFile[Implementation programme]=$G$3)*(T_DataComboFile[Econ3]=$G215))*T_DataComboFile[2022/23 Revised baseline]*$B$3)","v":0},0,{"$f":"SUMPRODUCT(((T_DataComboFile[Implementation programme]=$G$3)*(T_DataComboFile[Econ3]=$G215))*T_DataComboFile[2023/24 Baseline]*$B$3)","v":0},{"$f":"SUMPRODUCT(((T_DataComboFile[Implementation programme]=$G$3)*(T_DataComboFile[Econ3]=$G215))*T_DataComboFile[2023/24 Revised baseline]*$B$3)","v":0},0]
[0,5,null,null,null,null,"Payments for financial assets",{"$f":"SUMPRODUCT(((T_DataComboFile[Implementation programme]=$G$3)*(T_DataComboFile[Econ3]=$G216))*T_DataComboFile[2021/22 Baseline]*$B$3)","v":0},{"$f":"SUMPRODUCT(((T_DataComboFile[Implementation programme]=$G$3)*(T_DataComboFile[Econ3]=$G216))*T_DataComboFile[2021/22 Revised baseline]*$B$3)","v":0},0,{"$f":"SUMPRODUCT(((T_DataComboFile[Implementation programme]=$G$3)*(T_DataComboFile[Econ3]=$G216))*T_DataComboFile[2022/23 Baseline]*$B$3)","v":0},{"$f":"SUMPRODUCT(((T_DataComboFile[Implementation programme]=$G$3)*(T_DataComboFile[Econ3]=$G216))*T_DataComboFile[2022/23 Revised baseline]*$B$3)","v":0},0,{"$f":"SUMPRODUCT(((T_DataComboFile[Implementation programme]=$G$3)*(T_DataComboFile[Econ3]=$G216))*T_DataComboFile[2023/24 Baseline]*$B$3)","v":0},{"$f":"SUMPRODUCT(((T_DataComboFile[Implementation programme]=$G$3)*(T_DataComboFile[Econ3]=$G216))*T_DataComboFile[2023/24 Revised baseline]*$B$3)","v":0},0]
[0,5,null,null,null,null,"Total",{"$f":"SUM(H173,H183,H208,H216)","v":0},0,0,0,0,0,0,{"$f":"SUM(O173,O183,O208,O216)","v":0},0]
[]
[null,null,null,null,null,null,null,{"$f":"L65-H217","v":0},{"$f":"O65-I217","v":0},null,{"$f":"P65-K217","v":0},{"$f":"S65-L217","v":0},null,{"$f":"T65-N217","v":0},{"$f":"W65-O217","v":0}]

{"sheet":"IP8","index":17,"n_rows":219,"n_cols":23,"rows_kept":219,"cut":false,"hidden":false,"merged":[[70,6,70,17],[73,6,87,17],[94,16,94,20],[94,21,94,23],[95,16,95,20],[95,21,95,23],[99,16,99,20],[99,21,99,23],[100,16,100,20],[100,21,100,23],[101,16,101,20],[101,21,101,23],[96,16,96,20],[96,21,96,23],[97,16,97,20],[97,21,97,23],[98,16,98,20],[98,21,98,23],[105,16,105,20],[105,21,105,23],[106,16,106,20],[106,21,106,23],[107,16,107,20],[107,21,107,23],[102,16,102,20],[102,21,102,23],[103,16,103,20],[103,21,103,23],[104,16,104,20],[104,21,104,23],[117,16,117,20],[118,16,118,20],[119,16,119,20],[120,16,120,20],[121,16,121,20],[122,16,122,20],[108,16,108,20],[108,21,108,23],[109,16,109,20],[109,21,109,23],[110,16,110,20],[110,21,110,23],[129,16,129,20],[130,16,130,20],[131,16,131,20],[132,16,132,20],[133,16,133,20],[141,16,141,20],[123,16,123,20],[124,16,124,20],[125,16,125,20],[126,16,126,20],[127,16,127,20],[128,16,128,20],[174,16,174,20],[175,16,175,20],[176,16,176,20],[177,16,177,20],[178,16,178,20],[179,16,179,20],[142,16,142,20],[143,16,162,20],[170,16,170,20],[171,16,171,20],[172,16,172,20],[173,16,173,20],[186,16,186,20],[187,16,187,20],[188,16,188,20],[189,16,189,20],[190,16,190,20],[191,16,191,20],[180,16,180,20],[181,16,181,20],[182,16,182,20],[183,16,183,20],[184,16,184,20],[185,16,185,20],[198,16,198,20],[199,16,199,20],[200,16,200,20],[201,16,201,20],[202,16,202,20],[203,16,203,20],[192,16,192,20],[193,16,193,20],[194,16,194,20],[195,16,195,20],[196,16,196,20],[197,16,197,20],[210,16,210,20],[211,16,211,20],[212,16,212,20],[213,16,213,20],[214,16,214,20],[215,16,215,20],[204,16,204,20],[205,16,205,20],[206,16,206,20],[207,16,207,20],[208,16,208,20],[209,16,209,20]]}
[]
[null,null,null,null,null,null,"Implementation programme:"]
[null,{"$f":"IF(G3=\"\",0,1)","v":0},null,null,null,8,null,"… select from dropdown list"]
[null,null,null,null,null,null,null,null,null,null,null,null,"Growth"]
[null,null,null,null,null,null,"Quick view","2020/21","2021/22","2022/23","2023/24","Trend","2021/22","2022/23","2023/24","Ave Ann",null,"2020/21","2021/22","2022/23","2023/24"]
[null,null,null,null,null,null,"Compensation of employees",{"$f":"SUMPRODUCT(($G$32:$G$65=$G6)*($K$32:$K$65))","v":0},{"$f":"SUMPRODUCT(($G$32:$G$65=$G6)*($O$32:$O$65))","v":0},{"$f":"SUMPRODUCT(($G$32:$G$65=$G6)*($S$32:$S$65))","v":0},{"$f":"SUMPRODUCT(($G$32:$G$65=$G6)*($W$32:$W$65))","v":0},null,{"$f":"IFERROR(I6/H6-1,0)","v":0},0,0,{"$f":"IFERROR(((K6/H6)^(1/3)-1),0)","v":0}]
[null,null,null,null,null,null,"Goods and services",{"$f":"SUMPRODUCT(($G$32:$G$65=$G7)*($K$32:$K$65))","v":0},{"$f":"SUMPRODUCT(($G$32:$G$65=$G7)*($O$32:$O$65))","v":0},{"$f":"SUMPRODUCT(($G$32:$G$65=$G7)*($S$32:$S$65))","v":0},{"$f":"SUMPRODUCT(($G$32:$G$65=$G7)*($W$32:$W$65))","v":0},null,0,0,0,0]
[null,null,null,null,null,null,"Transfers and subsidies",{"$f":"SUMPRODUCT(($G$32:$G$65=$G8)*($K$32:$K$65))","v":0},{"$f":"SUMPRODUCT(($G$32:$G$65=$G8)*($O$32:$O$65))","v":0},{"$f":"SUMPRODUCT(($G$32:$G$65=$G8)*($S$32:$S$65))","v":0},{"$f":"SUMPRODUCT(($G$32:$G$65=$G8)*($W$32:$W$65))","v":0},null,0,0,0,0]
[null,null,null,null,null,null,"Payments for capital assets",{"$f":"SUMPRODUCT(($G$32:$G$65=$G9)*($K$32:$K$65))","v":0},{"$f":"SUMPRODUCT(($G$32:$G$65=$G9)*($O$32:$O$65))","v":0},{"$f":"SUMPRODUCT(($G$32:$G$65=$G9)*($S$32:$S$65))","v":0},{"$f":"SUMPRODUCT(($G$32:$G$65=$G9)*($W$32:$W$65))","v":0},null,0,0,0,0]
[null,null,null,null,null,null,"Total",{"$f":"SUMPRODUCT(($G$32:$G$65=$G10)*($K$32:$K$65))","v":0},{"$f":"SUMPRODUCT(($G$32:$G$65=$G10)*($O$32:$O$65))","v":0},{"$f":"SUMPRODUCT(($G$32:$G$65=$G10)*($S$32:$S$65))","v":0},{"$f":"SUMPRODUCT(($G$32:$G$65=$G10)*($W$32:$W$65))","v":0},null,0,0,0,0]
[null,null,null,null,null,null,"Composition of spending (% of Total)"]
[null,null,null,null,null,null,"Compensation of employees",{"$f":"IFERROR(H6/H$10,\"\")","v":""},"","","",null,null,null,null,null,null,{"$f":"IF(H12>0.0595,H12,\"\")","v":""},"","",""]
[null,null,null,null,null,null,"Goods and services","","","","",null,null,null,null,null,null,"","","",""]
[null,null,null,null,null,null,"Transfers and subsidies","","","","",null,null,null,null,null,null,"","","",""]
[null,null,null,null,null,null,"Payments for capital assets","","","","",null,null,null,null,null,null,"","","",""]
[]
[null,null,null,null,null,null,"Division of Revenue","2020/21","2021/22","2022/23","2023/24","Trend","2021/22","2022/23","2023/24","Ave Ann"]
[{"$f":"$G$3","v":0},"NAT",null,null,null,null,"National",{"$f":"SUMPRODUCT(((T_DataComboFile[Implementation programme]=$G$3)*(T_DataComboFile[DOR]=$B18))*T_DataComboFile[2020/21 Revised])","v":2331086},{"$f":"SUMPRODUCT(((T_DataComboFile[Implementation programme]=$G$3)*(T_DataComboFile[DOR]=$B18))*T_DataComboFile[2021/22 Revised baseline])","v":2583809},{"$f":"SUMPRODUCT(((T_DataComboFile[Implementation programme]=$G$3)*(T_DataComboFile[DOR]=$B18))*T_DataComboFile[2022/23 Revised baseline])","v":2617960},{"$f":"SUMPRODUCT(((T_DataComboFile[Implementation programme]=$G$3)*(T_DataComboFile[DOR]=$B18))*T_DataComboFile[2023/24 Revised baseline])","v":2733345},null,{"$f":"IFERROR(I18/H18-1,0)","v":0.10841427557799244},{"$f":"IFERROR(J18/I18-1,0)","v":1.3217308245307535E-2},{"$f":"IFERROR(K18/J18-1,0)","v":4.4074393802808309E-2},{"$f":"IFERROR(((K18/H18)^(1/3)-1),0)","v":5.449708876349435E-2}]
[0,null,null,null,null,null,"Provincial",{"$f":"SUM(H20:H21)","v":0},0,0,0,null,0,0,0,0]
[0,"PES",null,null,null,null,"Provincial equitable share",{"$f":"SUMPRODUCT(((T_DataComboFile[Implementation programme]=$G$3)*(T_DataComboFile[DOR]=$B20))*T_DataComboFile[2020/21 Revised])","v":0},{"$f":"SUMPRODUCT(((T_DataComboFile[Implementation programme]=$G$3)*(T_DataComboFile[DOR]=$B20))*T_DataComboFile[2021/22 Revised baseline])","v":0},{"$f":"SUMPRODUCT(((T_DataComboFile[Implementation programme]=$G$3)*(T_DataComboFile[DOR]=$B20))*T_DataComboFile[2022/23 Revised baseline])","v":0},{"$f":"SUMPRODUCT(((T_DataComboFile[Implementation programme]=$G$3)*(T_DataComboFile[DOR]=$B20))*T_DataComboFile[2023/24 Revised baseline])","v":0},null,{"$f":"IFERROR(I20/H20-1,0)","v":0},0,0,{"$f":"IFERROR(((K20/H20)^(1/3)-1),0)","v":0}]
[0,"PCG",null,null,null,null,"Provincial conditional grants",{"$f":"SUMPRODUCT(((T_DataComboFile[Implementation programme]=$G$3)*(T_DataComboFile[DOR]=$B21))*T_DataComboFile[2020/21 Revised])","v":0},{"$f":"SUMPRODUCT(((T_DataComboFile[Implementation programme]=$G$3)*(T_DataComboFile[DOR]=$B21))*T_DataComboFile[2021/22 Revised baseline])","v":0},{"$f":"SUMPRODUCT(((T_DataComboFile[Implementation programme]=$G$3)*(T_DataComboFile[DOR]=$B21))*T_DataComboFile[2022/23 Revised baseline])","v":0},{"$f":"SUMPRODUCT(((T_DataComboFile[Implementation programme]=$G$3)*(T_DataComboFile[DOR]=$B21))*T_DataComboFile[2023/24 Revised baseline])","v":0},null,0,0,0,0]
[0,null,null,null,null,null,"Local government",{"$f":"SUM(H23:H25)","v":0},0,0,0,null,{"$f":"IFERROR(I22/H22-1,0)","v":0},{"$f":"IFERROR(J22/I22-1,0)","v":0},{"$f":"IFERROR(K22/J22-1,0)","v":0},{"$f":"IFERROR(((K22/H22)^(1/3)-1),0)","v":0}]
[0,"LES",null,null,null,null,"Local equitable share",{"$f":"SUMPRODUCT(((T_DataComboFile[Implementation programme]=$G$3)*(T_DataComboFile[DOR]=$B23))*T_DataComboFile[2020/21 Revised])","v":0},{"$f":"SUMPRODUCT(((T_DataComboFile[Implementation programme]=$G$3)*(T_DataComboFile[DOR]=$B23))*T_DataComboFile[2021/22 Revised baseline])","v":0},{"$f":"SUMPRODUCT(((T_DataComboFile[Implementation programme]=$G$3)*(T_DataComboFile[DOR]=$B23))*T_DataComboFile[2022/23 Revised baseline])","v":0},{"$f":"SUMPRODUCT(((T_DataComboFile[Implementation programme]=$G$3)*(T_DataComboFile[DOR]=$B23))*T_DataComboFile[2023/24 Revised baseline])","v":0},null,{"$f":"IFERROR(I23/H23-1,0)","v":0},0,0,{"$f":"IFERROR(((K23/H23)^(1/3)-1),0)","v":0}]
[0,"LCG",null,null,null,null,"Local conditional grants",{"$f":"SUMPRODUCT(((T_DataComboFile[Implementation programme]=$G$3)*(T_DataComboFile[DOR]=$B24))*T_DataComboFile[2020/21 Revised])","v":0},{"$f":"SUMPRODUCT(((T_DataComboFile[Implementation programme]=$G$3)*(T_DataComboFile[DOR]=$B24))*T_DataComboFile[2021/22 Revised baseline])","v":0},{"$f":"SUMPRODUCT(((T_DataComboFile[Implementation programme]=$G$3)*(T_DataComboFile[DOR]=$B24))*T_DataComboFile[2022/23 Revised baseline])","v":0},{"$f":"SUMPRODUCT(((T_DataComboFile[Implementation programme]=$G$3)*(T_DataComboFile[DOR]=$B24))*T_DataComboFile[2023/24 Revised baseline])","v":0},null,0,0,0,0]
[0,"GFL",null,null,null,null,"General fuel levy ",{"$f":"SUMPRODUCT(((T_DataComboFile[Implementation programme]=$G$3)*(T_DataComboFile[DOR]=$B25))*T_DataComboFile[2020/21 Revised])","v":0},{"$f":"SUMPRODUCT(((T_DataComboFile[Implementation programme]=$G$3)*(T_DataComboFile[DOR]=$B25))*T_DataComboFile[2021/22 Revised baseline])","v":0},{"$f":"SUMPRODUCT(((T_DataComboFile[Implementation programme]=$G$3)*(T_DataComboFile[DOR]=$B25))*T_DataComboFile[2022/23 Revised baseline])","v":0},{"$f":"SUMPRODUCT(((T_DataComboFile[Implementation programme]=$G$3)*(T_DataComboFile[DOR]=$B25))*T_DataComboFile[2023/24 Revised baseline])","v":0},null,0,0,0,0]
[]
[]
[null,null,null,null,null,null,{"$f":"G3","v":0}]
[{"$f":"$G$3","v":0},0,null,null,null,null,null,"2017/18","2018/19","2019/20","2020/21","2021/22",null,null,null,"2022/23",null,null,null,"2023/24"]
[{"$f":"$G$3","v":0},0,null,null,null,null,"Rand thousand","Audited outcome","Audited outcome","Pre-audited outcome","Budget","Baseline","Decrease","Increase","Revised baseline","Baseline","Decrease","Increase","Revised baseline","Baseline","Decrease","Increase","Revised baseline"]
[0,0,null,null,null,null,"Economic classification"]
[0,0,null,null,null,null,"Current payments",{"$f":"SUM(H33:H35)","v":0},0,0,0,0,0,0,0,0,0,0,0,0,0,0,0]
[0,0,null,null,null,null,"Compensation of employees",{"$f":"SUMPRODUCT(((T_DataComboFile[Implementation programme]=$G$3)*(T_DataComboFile[Econ3]=$G33))*T_DataComboFile[2017/18]*$B$3)","v":0},{"$f":"SUMPRODUCT(((T_DataComboFile[Implementation programme]=$G$3)*(T_DataComboFile[Econ3]=$G33))*T_DataComboFile[2018/19]*$B$3)","v":0},{"$f":"SUMPRODUCT(((T_DataComboFile[Implementation programme]=$G$3)*(T_DataComboFile[Econ3]=$G33))*T_DataComboFile[2019/20 Revised estimate]*$B$3)","v":0},{"$f":"SUMPRODUCT(((T_DataComboFile[Implementation programme]=$G$3)*(T_DataComboFile[Econ3]=$G33))*T_DataComboFile[2020/21 Revised]*$B$3)","v":0},{"$f":"SUMPRODUCT(((T_DataComboFile[Implementation programme]=$G$3)*(T_DataComboFile[Econ3]=$G33))*T_DataComboFile[2021/22 Baseline]*$B$3)","v":0},{"$f":"SUMPRODUCT(((T_DataComboFile[Implementation programme]=$G$3)*(T_DataComboFile[Econ3]=$G33))*T_DataComboFile[2021/22 Reduction]*$B$3)","v":0},{"$f":"SUMPRODUCT(((T_DataComboFile[Implementation programme]=$G$3)*(T_DataComboFile[Econ3]=$G33))*T_DataComboFile[2021/22 Increase]*$B$3)","v":0},{"$f":"L33+M33+N33","v":0},{"$f":"SUMPRODUCT(((T_DataComboFile[Implementation programme]=$G$3)*(T_DataComboFile[Econ3]=$G33))*T_DataComboFile[2022/23 Baseline]*$B$3)","v":0},{"$f":"SUMPRODUCT(((T_DataComboFile[Implementation programme]=$G$3)*(T_DataComboFile[Econ3]=$G33))*T_DataComboFile[2022/23 Reduction]*$B$3)","v":0},{"$f":"SUMPRODUCT(((T_DataComboFile[Implementation programme]=$G$3)*(T_DataComboFile[Econ3]=$G33))*T_DataComboFile[2022/23 Increase]*$B$3)","v":0},{"$f":"P33+Q33+R33","v":0},{"$f":"SUMPRODUCT(((T_DataComboFile[Implementation programme]=$G$3)*(T_DataComboFile[Econ3]=$G33))*T_DataComboFile[2023/24 Baseline]*$B$3)","v":0},{"$f":"SUMPRODUCT(((T_DataComboFile[Implementation programme]=$G$3)*(T_DataComboFile[Econ3]=$G33))*T_DataComboFile[2023/24 Reduction]*$B$3)","v":0},{"$f":"SUMPRODUCT(((T_DataComboFile[Implementation programme]=$G$3)*(T_DataComboFile[Econ3]=$G33))*T_DataComboFile[2023/24 Increase]*$B$3)","v":0},{"$f":"T33+U33+V33","v":0}]
[0,0,null,null,null,null,"Goods and services",{"$f":"SUMPRODUCT(((T_DataComboFile[Implementation programme]=$G$3)*(T_DataComboFile[Econ3]=$G34))*T_DataComboFile[2017/18]*$B$3)","v":0},{"$f":"SUMPRODUCT(((T_DataComboFile[Implementation programme]=$G$3)*(T_DataComboFile[Econ3]=$G34))*T_DataComboFile[2018/19]*$B$3)","v":0},{"$f":"SUMPRODUCT(((T_DataComboFile[Implementation programme]=$G$3)*(T_DataComboFile[Econ3]=$G34))*T_DataComboFile[2019/20 Revised estimate]*$B$3)","v":0},{"$f":"SUMPRODUCT(((T_DataComboFile[Implementation programme]=$G$3)*(T_DataComboFile[Econ3]=$G34))*T_DataComboFile[2020/21 Revised]*$B$3)","v":0},{"$f":"SUMPRODUCT(((T_DataComboFile[Implementation programme]=$G$3)*(T_DataComboFile[Econ3]=$G34))*T_DataComboFile[2021/22 Baseline]*$B$3)","v":0},{"$f":"SUMPRODUCT(((T_DataComboFile[Implementation programme]=$G$3)*(T_DataComboFile[Econ3]=$G34))*T_DataComboFile[2021/22 Reduction]*$B$3)","v":0},{"$f":"SUMPRODUCT(((T_DataComboFile[Implementation programme]=$G$3)*(T_DataComboFile[Econ3]=$G34))*T_DataComboFile[2021/22 Increase]*$B$3)","v":0},0,{"$f":"SUMPRODUCT(((T_DataComboFile[Implementation programme]=$G$3)*(T_DataComboFile[Econ3]=$G34))*T_DataComboFile[2022/23 Baseline]*$B$3)","v":0},{"$f":"SUMPRODUCT(((T_DataComboFile[Implementation programme]=$G$3)*(T_DataComboFile[Econ3]=$G34))*T_DataComboFile[2022/23 Reduction]*$B$3)","v":0},{"$f":"SUMPRODUCT(((T_DataComboFile[Implementation programme]=$G$3)*(T_DataComboFile[Econ3]=$G34))*T_DataComboFile[2022/23 Increase]*$B$3)","v":0},0,{"$f":"SUMPRODUCT(((T_DataComboFile[Implementation programme]=$G$3)*(T_DataComboFile[Econ3]=$G34))*T_DataComboFile[2023/24 Baseline]*$B$3)","v":0},{"$f":"SUMPRODUCT(((T_DataComboFile[Implementation programme]=$G$3)*(T_DataComboFile[Econ3]=$G34))*T_DataComboFile[2023/24 Reduction]*$B$3)","v":0},{"$f":"SUMPRODUCT(((T_DataComboFile[Implementation programme]=$G$3)*(T_DataComboFile[Econ3]=$G34))*T_DataComboFile[2023/24 Increase]*$B$3)","v":0},0]
[0,0,null,null,null,null,"Interest and rent on land",{"$f":"SUMPRODUCT(((T_DataComboFile[Implementation programme]=$G$3)*(T_DataComboFile[Econ3]=$G35))*T_DataComboFile[2017/18]*$B$3)","v":0},{"$f":"SUMPRODUCT(((T_DataComboFile[Implementation programme]=$G$3)*(T_DataComboFile[Econ3]=$G35))*T_DataComboFile[2018/19]*$B$3)","v":0},{"$f":"SUMPRODUCT(((T_DataComboFile[Implementation programme]=$G$3)*(T_DataComboFile[Econ3]=$G35))*T_DataComboFile[2019/20 Revised estimate]*$B$3)","v":0},{"$f":"SUMPRODUCT(((T_DataComboFile[Implementation programme]=$G$3)*(T_DataComboFile[Econ3]=$G35))*T_DataComboFile[2020/21 Revised]*$B$3)","v":0},{"$f":"SUMPRODUCT(((T_DataComboFile[Implementation programme]=$G$3)*(T_DataComboFile[Econ3]=$G35))*T_DataComboFile[2021/22 Baseline]*$B$3)","v":0},{"$f":"SUMPRODUCT(((T_DataComboFile[Implementation programme]=$G$3)*(T_DataComboFile[Econ3]=$G35))*T_DataComboFile[2021/22 Reduction]*$B$3)","v":0},{"$f":"SUMPRODUCT(((T_DataComboFile[Implementation programme]=$G$3)*(T_DataComboFile[Econ3]=$G35))*T_DataComboFile[2021/22 Increase]*$B$3)","v":0},0,{"$f":"SUMPRODUCT(((T_DataComboFile[Implementation programme]=$G$3)*(T_DataComboFile[Econ3]=$G35))*T_DataComboFile[2022/23 Baseline]*$B$3)","v":0},{"$f":"SUMPRODUCT(((T_DataComboFile[Implementation programme]=$G$3)*(T_DataComboFile[Econ3]=$G35))*T_DataComboFile[2022/23 Reduction]*$B$3)","v":0},{"$f":"SUMPRODUCT(((T_DataComboFile[Implementation programme]=$G$3)*(T_DataComboFile[Econ3]=$G35))*T_DataComboFile[2022/23 Increase]*$B$3)","v":0},0,{"$f":"SUMPRODUCT(((T_DataComboFile[Implementation programme]=$G$3)*(T_DataComboFile[Econ3]=$G35))*T_DataComboFile[2023/24 Baseline]*$B$3)","v":0},{"$f":"SUMPRODUCT(((T_DataComboFile[Implementation programme]=$G$3)*(T_DataComboFile[Econ3]=$G35))*T_DataComboFile[2023/24 Reduction]*$B$3)","v":0},{"$f":"SUMPRODUCT(((T_DataComboFile[Implementation programme]=$G$3)*(T_DataComboFile[Econ3]=$G35))*T_DataComboFile[2023/24 Increase]*$B$3)","v":0},0]
[0,0,null,null,null,null,"Transfers and subsidies",{"$f":"SUM(H37,H40,H43:H45,H48:H49)","v":0},0,0,0,0,0,0,0,0,0,0,0,0,0,0,0]
[0,0,null,null,null,null,"Provinces and municipalities",{"$f":"SUM(H38:H39)","v":0},0,0,0,0,0,0,0,0,0,0,0,0,0,0,0]
[0,0,null,null,null,null,"Provinces",{"$f":"SUMPRODUCT(((T_DataComboFile[Implementation programme]=$G$3)*(T_DataComboFile[Econ4]=$G38))*T_DataComboFile[2017/18]*$B$3)","v":0},{"$f":"SUMPRODUCT(((T_DataComboFile[Implementation programme]=$G$3)*(T_DataComboFile[Econ4]=$G38))*T_DataComboFile[2018/19]*$B$3)","v":0},{"$f":"SUMPRODUCT(((T_DataComboFile[Implementation programme]=$G$3)*(T_DataComboFile[Econ4]=$G38))*T_DataComboFile[2019/20 Revised estimate]*$B$3)","v":0},{"$f":"SUMPRODUCT(((T_DataComboFile[Implementation programme]=$G$3)*(T_DataComboFile[Econ4]=$G38))*T_DataComboFile[2020/21 Revised]*$B$3)","v":0},{"$f":"SUMPRODUCT(((T_DataComboFile[Implementation programme]=$G$3)*(T_DataComboFile[Econ4]=$G38))*T_DataComboFile[2021/22 Baseline]*$B$3)","v":0},{"$f":"SUMPRODUCT(((T_DataComboFile[Implementation programme]=$G$3)*(T_DataComboFile[Econ4]=$G38))*T_DataComboFile[2021/22 Reduction]*$B$3)","v":0},{"$f":"SUMPRODUCT(((T_DataComboFile[Implementation programme]=$G$3)*(T_DataComboFile[Econ4]=$G38))*T_DataComboFile[2021/22 Increase]*$B$3)","v":0},{"$f":"L38+M38+N38","v":0},{"$f":"SUMPRODUCT(((T_DataComboFile[Implementation programme]=$G$3)*(T_DataComboFile[Econ4]=$G38))*T_DataComboFile[2022/23 Baseline]*$B$3)","v":0},{"$f":"SUMPRODUCT(((T_DataComboFile[Implementation programme]=$G$3)*(T_DataComboFile[Econ4]=$G38))*T_DataComboFile[2022/23 Reduction]*$B$3)","v":0},{"$f":"SUMPRODUCT(((T_DataComboFile[Implementation programme]=$G$3)*(T_DataComboFile[Econ4]=$G38))*T_DataComboFile[2022/23 Increase]*$B$3)","v":0},{"$f":"P38+Q38+R38","v":0},{"$f":"SUMPRODUCT(((T_DataComboFile[Implementation programme]=$G$3)*(T_DataComboFile[Econ4]=$G38))*T_DataComboFile[2023/24 Baseline]*$B$3)","v":0},{"$f":"SUMPRODUCT(((T_DataComboFile[Implementation programme]=$G$3)*(T_DataComboFile[Econ4]=$G38))*T_DataComboFile[2023/24 Reduction]*$B$3)","v":0},{"$f":"SUMPRODUCT(((T_DataComboFile[Implementation programme]=$G$3)*(T_DataComboFile[Econ4]=$G38))*T_DataComboFile[2023/24 Increase]*$B$3)","v":0},{"$f":"T38+U38+V38","v":0}]
[0,0,null,null,null,null,"Municipalities",{"$f":"SUMPRODUCT(((T_DataComboFile[Implementation programme]=$G$3)*(T_DataComboFile[Econ4]=$G39))*T_DataComboFile[2017/18]*$B$3)","v":0},{"$f":"SUMPRODUCT(((T_DataComboFile[Implementation programme]=$G$3)*(T_DataComboFile[Econ4]=$G39))*T_DataComboFile[2018/19]*$B$3)","v":0},{"$f":"SUMPRODUCT(((T_DataComboFile[Implementation programme]=$G$3)*(T_DataComboFile[Econ4]=$G39))*T_DataComboFile[2019/20 Revised estimate]*$B$3)","v":0},{"$f":"SUMPRODUCT(((T_DataComboFile[Implementation programme]=$G$3)*(T_DataComboFile[Econ4]=$G39))*T_DataComboFile[2020/21 Revised]*$B$3)","v":0},{"$f":"SUMPRODUCT(((T_DataComboFile[Implementation programme]=$G$3)*(T_DataComboFile[Econ4]=$G39))*T_DataComboFile[2021/22 Baseline]*$B$3)","v":0},{"$f":"SUMPRODUCT(((T_DataComboFile[Implementation programme]=$G$3)*(T_DataComboFile[Econ4]=$G39))*T_DataComboFile[2021/22 Reduction]*$B$3)","v":0},{"$f":"SUMPRODUCT(((T_DataComboFile[Implementation programme]=$G$3)*(T_DataComboFile[Econ4]=$G39))*T_DataComboFile[2021/22 Increase]*$B$3)","v":0},0,{"$f":"SUMPRODUCT(((T_DataComboFile[Implementation programme]=$G$3)*(T_DataComboFile[Econ4]=$G39))*T_DataComboFile[2022/23 Baseline]*$B$3)","v":0},{"$f":"SUMPRODUCT(((T_DataComboFile[Implementation programme]=$G$3)*(T_DataComboFile[Econ4]=$G39))*T_DataComboFile[2022/23 Reduction]*$B$3)","v":0},{"$f":"SUMPRODUCT(((T_DataComboFile[Implementation programme]=$G$3)*(T_DataComboFile[Econ4]=$G39))*T_DataComboFile[2022/23 Increase]*$B$3)","v":0},0,{"$f":"SUMPRODUCT(((T_DataComboFile[Implementation programme]=$G$3)*(T_DataComboFile[Econ4]=$G39))*T_DataComboFile[2023/24 Baseline]*$B$3)","v":0},{"$f":"SUMPRODUCT(((T_DataComboFile[Implementation programme]=$G$3)*(T_DataComboFile[Econ4]=$G39))*T_DataComboFile[2023/24 Reduction]*$B$3)","v":0},{"$f":"SUMPRODUCT(((T_DataComboFile[Implementation programme]=$G$3)*(T_DataComboFile[Econ4]=$G39))*T_DataComboFile[2023/24 Increase]*$B$3)","v":0},0]
[0,0,null,null,null,null,"Departmental agencies and accounts",{"$f":"SUM(H41:H42)","v":0},0,0,0,0,0,0,0,0,0,0,0,0,0,0,0]
[0,0,null,null,null,null,"Social security funds",{"$f":"SUMPRODUCT(((T_DataComboFile[Implementation programme]=$G$3)*(T_DataComboFile[Econ4]=$G41))*T_DataComboFile[2017/18]*$B$3)","v":0},{"$f":"SUMPRODUCT(((T_DataComboFile[Implementation programme]=$G$3)*(T_DataComboFile[Econ4]=$G41))*T_DataComboFile[2018/19]*$B$3)","v":0},{"$f":"SUMPRODUCT(((T_DataComboFile[Implementation programme]=$G$3)*(T_DataComboFile[Econ4]=$G41))*T_DataComboFile[2019/20 Revised estimate]*$B$3)","v":0},{"$f":"SUMPRODUCT(((T_DataComboFile[Implementation programme]=$G$3)*(T_DataComboFile[Econ4]=$G41))*T_DataComboFile[2020/21 Revised]*$B$3)","v":0},{"$f":"SUMPRODUCT(((T_DataComboFile[Implementation programme]=$G$3)*(T_DataComboFile[Econ4]=$G41))*T_DataComboFile[2021/22 Baseline]*$B$3)","v":0},{"$f":"SUMPRODUCT(((T_DataComboFile[Implementation programme]=$G$3)*(T_DataComboFile[Econ4]=$G41))*T_DataComboFile[2021/22 Reduction]*$B$3)","v":0},{"$f":"SUMPRODUCT(((T_DataComboFile[Implementation programme]=$G$3)*(T_DataComboFile[Econ4]=$G41))*T_DataComboFile[2021/22 Increase]*$B$3)","v":0},{"$f":"L41+M41+N41","v":0},{"$f":"SUMPRODUCT(((T_DataComboFile[Implementation programme]=$G$3)*(T_DataComboFile[Econ4]=$G41))*T_DataComboFile[2022/23 Baseline]*$B$3)","v":0},{"$f":"SUMPRODUCT(((T_DataComboFile[Implementation programme]=$G$3)*(T_DataComboFile[Econ4]=$G41))*T_DataComboFile[2022/23 Reduction]*$B$3)","v":0},{"$f":"SUMPRODUCT(((T_DataComboFile[Implementation programme]=$G$3)*(T_DataComboFile[Econ4]=$G41))*T_DataComboFile[2022/23 Increase]*$B$3)","v":0},{"$f":"P41+Q41+R41","v":0},{"$f":"SUMPRODUCT(((T_DataComboFile[Implementation programme]=$G$3)*(T_DataComboFile[Econ4]=$G41))*T_DataComboFile[2023/24 Baseline]*$B$3)","v":0},{"$f":"SUMPRODUCT(((T_DataComboFile[Implementation programme]=$G$3)*(T_DataComboFile[Econ4]=$G41))*T_DataComboFile[2023/24 Reduction]*$B$3)","v":0},{"$f":"SUMPRODUCT(((T_DataComboFile[Implementation programme]=$G$3)*(T_DataComboFile[Econ4]=$G41))*T_DataComboFile[2023/24 Increase]*$B$3)","v":0},{"$f":"T41+U41+V41","v":0}]
[0,0,null,null,null,null,"Departmental agencies (non-business entities)",{"$f":"SUMPRODUCT(((T_DataComboFile[Implementation programme]=$G$3)*(T_DataComboFile[Econ4]=$G42))*T_DataComboFile[2017/18]*$B$3)","v":0},{"$f":"SUMPRODUCT(((T_DataComboFile[Implementation programme]=$G$3)*(T_DataComboFile[Econ4]=$G42))*T_DataComboFile[2018/19]*$B$3)","v":0},{"$f":"SUMPRODUCT(((T_DataComboFile[Implementation programme]=$G$3)*(T_DataComboFile[Econ4]=$G42))*T_DataComboFile[2019/20 Revised estimate]*$B$3)","v":0},{"$f":"SUMPRODUCT(((T_DataComboFile[Implementation programme]=$G$3)*(T_DataComboFile[Econ4]=$G42))*T_DataComboFile[2020/21 Revised]*$B$3)","v":0},{"$f":"SUMPRODUCT(((T_DataComboFile[Implementation programme]=$G$3)*(T_DataComboFile[Econ4]=$G42))*T_DataComboFile[2021/22 Baseline]*$B$3)","v":0},{"$f":"SUMPRODUCT(((T_DataComboFile[Implementation programme]=$G$3)*(T_DataComboFile[Econ4]=$G42))*T_DataComboFile[2021/22 Reduction]*$B$3)","v":0},{"$f":"SUMPRODUCT(((T_DataComboFile[Implementation programme]=$G$3)*(T_DataComboFile[Econ4]=$G42))*T_DataComboFile[2021/22 Increase]*$B$3)","v":0},0,{"$f":"SUMPRODUCT(((T_DataComboFile[Implementation programme]=$G$3)*(T_DataComboFile[Econ4]=$G42))*T_DataComboFile[2022/23 Baseline]*$B$3)","v":0},{"$f":"SUMPRODUCT(((T_DataComboFile[Implementation programme]=$G$3)*(T_DataComboFile[Econ4]=$G42))*T_DataComboFile[2022/23 Reduction]*$B$3)","v":0},{"$f":"SUMPRODUCT(((T_DataComboFile[Implementation programme]=$G$3)*(T_DataComboFile[Econ4]=$G42))*T_DataComboFile[2022/23 Increase]*$B$3)","v":0},0,{"$f":"SUMPRODUCT(((T_DataComboFile[Implementation programme]=$G$3)*(T_DataComboFile[Econ4]=$G42))*T_DataComboFile[2023/24 Baseline]*$B$3)","v":0},{"$f":"SUMPRODUCT(((T_DataComboFile[Implementation programme]=$G$3)*(T_DataComboFile[Econ4]=$G42))*T_DataComboFile[2023/24 Reduction]*$B$3)","v":0},{"$f":"SUMPRODUCT(((T_DataComboFile[Implementation programme]=$G$3)*(T_DataComboFile[Econ4]=$G42))*T_DataComboFile[2023/24 Increase]*$B$3)","v":0},0]
[0,0,null,null,null,null,"Higher education institutions",{"$f":"SUMPRODUCT(((T_DataComboFile[Implementation programme]=$G$3)*(T_DataComboFile[Econ3]=$G43))*T_DataComboFile[2017/18]*$B$3)","v":0},{"$f":"SUMPRODUCT(((T_DataComboFile[Implementation programme]=$G$3)*(T_DataComboFile[Econ3]=$G43))*T_DataComboFile[2018/19]*$B$3)","v":0},{"$f":"SUMPRODUCT(((T_DataComboFile[Implementation programme]=$G$3)*(T_DataComboFile[Econ3]=$G43))*T_DataComboFile[2019/20 Revised estimate]*$B$3)","v":0},{"$f":"SUMPRODUCT(((T_DataComboFile[Implementation programme]=$G$3)*(T_DataComboFile[Econ3]=$G43))*T_DataComboFile[2020/21 Revised]*$B$3)","v":0},{"$f":"SUMPRODUCT(((T_DataComboFile[Implementation programme]=$G$3)*(T_DataComboFile[Econ3]=$G43))*T_DataComboFile[2021/22 Baseline]*$B$3)","v":0},{"$f":"SUMPRODUCT(((T_DataComboFile[Implementation programme]=$G$3)*(T_DataComboFile[Econ3]=$G43))*T_DataComboFile[2021/22 Reduction]*$B$3)","v":0},{"$f":"SUMPRODUCT(((T_DataComboFile[Implementation programme]=$G$3)*(T_DataComboFile[Econ3]=$G43))*T_DataComboFile[2021/22 Increase]*$B$3)","v":0},0,{"$f":"SUMPRODUCT(((T_DataComboFile[Implementation programme]=$G$3)*(T_DataComboFile[Econ3]=$G43))*T_DataComboFile[2022/23 Baseline]*$B$3)","v":0},{"$f":"SUMPRODUCT(((T_DataComboFile[Implementation programme]=$G$3)*(T_DataComboFile[Econ3]=$G43))*T_DataComboFile[2022/23 Reduction]*$B$3)","v":0},{"$f":"SUMPRODUCT(((T_DataComboFile[Implementation programme]=$G$3)*(T_DataComboFile[Econ3]=$G43))*T_DataComboFile[2022/23 Increase]*$B$3)","v":0},0,{"$f":"SUMPRODUCT(((T_DataComboFile[Implementation programme]=$G$3)*(T_DataComboFile[Econ3]=$G43))*T_DataComboFile[2023/24 Baseline]*$B$3)","v":0},{"$f":"SUMPRODUCT(((T_DataComboFile[Implementation programme]=$G$3)*(T_DataComboFile[Econ3]=$G43))*T_DataComboFile[2023/24 Reduction]*$B$3)","v":0},{"$f":"SUMPRODUCT(((T_DataComboFile[Implementation programme]=$G$3)*(T_DataComboFile[Econ3]=$G43))*T_DataComboFile[2023/24 Increase]*$B$3)","v":0},0]
[0,0,null,null,null,null,"Foreign governments and international organisations",{"$f":"SUMPRODUCT(((T_DataComboFile[Implementation programme]=$G$3)*(T_DataComboFile[Econ3]=$G44))*T_DataComboFile[2017/18]*$B$3)","v":0},{"$f":"SUMPRODUCT(((T_DataComboFile[Implementation programme]=$G$3)*(T_DataComboFile[Econ3]=$G44))*T_DataComboFile[2018/19]*$B$3)","v":0},{"$f":"SUMPRODUCT(((T_DataComboFile[Implementation programme]=$G$3)*(T_DataComboFile[Econ3]=$G44))*T_DataComboFile[2019/20 Revised estimate]*$B$3)","v":0},{"$f":"SUMPRODUCT(((T_DataComboFile[Implementation programme]=$G$3)*(T_DataComboFile[Econ3]=$G44))*T_DataComboFile[2020/21 Revised]*$B$3)","v":0},{"$f":"SUMPRODUCT(((T_DataComboFile[Implementation programme]=$G$3)*(T_DataComboFile[Econ3]=$G44))*T_DataComboFile[2021/22 Baseline]*$B$3)","v":0},{"$f":"SUMPRODUCT(((T_DataComboFile[Implementation programme]=$G$3)*(T_DataComboFile[Econ3]=$G44))*T_DataComboFile[2021/22 Reduction]*$B$3)","v":0},{"$f":"SUMPRODUCT(((T_DataComboFile[Implementation programme]=$G$3)*(T_DataComboFile[Econ3]=$G44))*T_DataComboFile[2021/22 Increase]*$B$3)","v":0},0,{"$f":"SUMPRODUCT(((T_DataComboFile[Implementation programme]=$G$3)*(T_DataComboFile[Econ3]=$G44))*T_DataComboFile[2022/23 Baseline]*$B$3)","v":0},{"$f":"SUMPRODUCT(((T_DataComboFile[Implementation programme]=$G$3)*(T_DataComboFile[Econ3]=$G44))*T_DataComboFile[2022/23 Reduction]*$B$3)","v":0},{"$f":"SUMPRODUCT(((T_DataComboFile[Implementation programme]=$G$3)*(T_DataComboFile[Econ3]=$G44))*T_DataComboFile[2022/23 Increase]*$B$3)","v":0},0,{"$f":"SUMPRODUCT(((T_DataComboFile[Implementation programme]=$G$3)*(T_DataComboFile[Econ3]=$G44))*T_DataComboFile[2023/24 Baseline]*$B$3)","v":0},{"$f":"SUMPRODUCT(((T_DataComboFile[Implementation programme]=$G$3)*(T_DataComboFile[Econ3]=$G44))*T_DataComboFile[2023/24 Reduction]*$B$3)","v":0},{"$f":"SUMPRODUCT(((T_DataComboFile[Implementation programme]=$G$3)*(T_DataComboFile[Econ3]=$G44))*T_DataComboFile[2023/24 Increase]*$B$3)","v":0},0]
[0,0,null,null,null,null,"Public corporations and private enterprises",{"$f":"SUM(H46:H47)","v":0},0,0,0,0,0,0,0,0,0,0,0,0,0,0,0]
[0,0,null,null,null,null,"Public corporations",{"$f":"SUMPRODUCT(((T_DataComboFile[Implementation programme]=$G$3)*(T_DataComboFile[Econ4]=$G46))*T_DataComboFile[2017/18]*$B$3)","v":0},{"$f":"SUMPRODUCT(((T_DataComboFile[Implementation programme]=$G$3)*(T_DataComboFile[Econ4]=$G46))*T_DataComboFile[2018/19]*$B$3)","v":0},{"$f":"SUMPRODUCT(((T_DataComboFile[Implementation programme]=$G$3)*(T_DataComboFile[Econ4]=$G46))*T_DataComboFile[2019/20 Revised estimate]*$B$3)","v":0},{"$f":"SUMPRODUCT(((T_DataComboFile[Implementation programme]=$G$3)*(T_DataComboFile[Econ4]=$G46))*T_DataComboFile[2020/21 Revised]*$B$3)","v":0},{"$f":"SUMPRODUCT(((T_DataComboFile[Implementation programme]=$G$3)*(T_DataComboFile[Econ4]=$G46))*T_DataComboFile[2021/22 Baseline]*$B$3)","v":0},{"$f":"SUMPRODUCT(((T_DataComboFile[Implementation programme]=$G$3)*(T_DataComboFile[Econ4]=$G46))*T_DataComboFile[2021/22 Reduction]*$B$3)","v":0},{"$f":"SUMPRODUCT(((T_DataComboFile[Implementation programme]=$G$3)*(T_DataComboFile[Econ4]=$G46))*T_DataComboFile[2021/22 Increase]*$B$3)","v":0},{"$f":"L46+M46+N46","v":0},{"$f":"SUMPRODUCT(((T_DataComboFile[Implementation programme]=$G$3)*(T_DataComboFile[Econ4]=$G46))*T_DataComboFile[2022/23 Baseline]*$B$3)","v":0},{"$f":"SUMPRODUCT(((T_DataComboFile[Implementation programme]=$G$3)*(T_DataComboFile[Econ4]=$G46))*T_DataComboFile[2022/23 Reduction]*$B$3)","v":0},{"$f":"SUMPRODUCT(((T_DataComboFile[Implementation programme]=$G$3)*(T_DataComboFile[Econ4]=$G46))*T_DataComboFile[2022/23 Increase]*$B$3)","v":0},{"$f":"P46+Q46+R46","v":0},{"$f":"SUMPRODUCT(((T_DataComboFile[Implementation programme]=$G$3)*(T_DataComboFile[Econ4]=$G46))*T_DataComboFile[2023/24 Baseline]*$B$3)","v":0},{"$f":"SUMPRODUCT(((T_DataComboFile[Implementation programme]=$G$3)*(T_DataComboFile[Econ4]=$G46))*T_DataComboFile[2023/24 Reduction]*$B$3)","v":0},{"$f":"SUMPRODUCT(((T_DataComboFile[Implementation programme]=$G$3)*(T_DataComboFile[Econ4]=$G46))*T_DataComboFile[2023/24 Increase]*$B$3)","v":0},{"$f":"T46+U46+V46","v":0}]
[0,0,null,null,null,null,"Private enterprises",{"$f":"SUMPRODUCT(((T_DataComboFile[Implementation programme]=$G$3)*(T_DataComboFile[Econ4]=$G47))*T_DataComboFile[2017/18]*$B$3)","v":0},{"$f":"SUMPRODUCT(((T_DataComboFile[Implementation programme]=$G$3)*(T_DataComboFile[Econ4]=$G47))*T_DataComboFile[2018/19]*$B$3)","v":0},{"$f":"SUMPRODUCT(((T_DataComboFile[Implementation programme]=$G$3)*(T_DataComboFile[Econ4]=$G47))*T_DataComboFile[2019/20 Revised estimate]*$B$3)","v":0},{"$f":"SUMPRODUCT(((T_DataComboFile[Implementation programme]=$G$3)*(T_DataComboFile[Econ4]=$G47))*T_DataComboFile[2020/21 Revised]*$B$3)","v":0},{"$f":"SUMPRODUCT(((T_DataComboFile[Implementation programme]=$G$3)*(T_DataComboFile[Econ4]=$G47))*T_DataComboFile[2021/22 Baseline]*$B$3)","v":0},{"$f":"SUMPRODUCT(((T_DataComboFile[Implementation programme]=$G$3)*(T_DataComboFile[Econ4]=$G47))*T_DataComboFile[2021/22 Reduction]*$B$3)","v":0},{"$f":"SUMPRODUCT(((T_DataComboFile[Implementation programme]=$G$3)*(T_DataComboFile[Econ4]=$G47))*T_DataComboFile[2021/22 Increase]*$B$3)","v":0},0,{"$f":"SUMPRODUCT(((T_DataComboFile[Implementation programme]=$G$3)*(T_DataComboFile[Econ4]=$G47))*T_DataComboFile[2022/23 Baseline]*$B$3)","v":0},{"$f":"SUMPRODUCT(((T_DataComboFile[Implementation programme]=$G$3)*(T_DataComboFile[Econ4]=$G47))*T_DataComboFile[2022/23 Reduction]*$B$3)","v":0},{"$f":"SUMPRODUCT(((T_DataComboFile[Implementation programme]=$G$3)*(T_DataComboFile[Econ4]=$G47))*T_DataComboFile[2022/23 Increase]*$B$3)","v":0},0,{"$f":"SUMPRODUCT(((T_DataComboFile[Implementation programme]=$G$3)*(T_DataComboFile[Econ4]=$G47))*T_DataComboFile[2023/24 Baseline]*$B$3)","v":0},{"$f":"SUMPRODUCT(((T_DataComboFile[Implementation programme]=$G$3)*(T_DataComboFile[Econ4]=$G47))*T_DataComboFile[2023/24 Reduction]*$B$3)","v":0},{"$f":"SUMPRODUCT(((T_DataComboFile[Implementation programme]=$G$3)*(T_DataComboFile[Econ4]=$G47))*T_DataComboFile[2023/24 Increase]*$B$3)","v":0},0]
[0,0,null,null,null,null,"Non-profit institutions",{"$f":"SUMPRODUCT(((T_DataComboFile[Implementation programme]=$G$3)*(T_DataComboFile[Econ3]=$G48))*T_DataComboFile[2017/18]*$B$3)","v":0},{"$f":"SUMPRODUCT(((T_DataComboFile[Implementation programme]=$G$3)*(T_DataComboFile[Econ3]=$G48))*T_DataComboFile[2018/19]*$B$3)","v":0},{"$f":"SUMPRODUCT(((T_DataComboFile[Implementation programme]=$G$3)*(T_DataComboFile[Econ3]=$G48))*T_DataComboFile[2019/20 Revised estimate]*$B$3)","v":0},{"$f":"SUMPRODUCT(((T_DataComboFile[Implementation programme]=$G$3)*(T_DataComboFile[Econ3]=$G48))*T_DataComboFile[2020/21 Revised]*$B$3)","v":0},{"$f":"SUMPRODUCT(((T_DataComboFile[Implementation programme]=$G$3)*(T_DataComboFile[Econ3]=$G48))*T_DataComboFile[2021/22 Baseline]*$B$3)","v":0},{"$f":"SUMPRODUCT(((T_DataComboFile[Implementation programme]=$G$3)*(T_DataComboFile[Econ3]=$G48))*T_DataComboFile[2021/22 Reduction]*$B$3)","v":0},{"$f":"SUMPRODUCT(((T_DataComboFile[Implementation programme]=$G$3)*(T_DataComboFile[Econ3]=$G48))*T_DataComboFile[2021/22 Increase]*$B$3)","v":0},0,{"$f":"SUMPRODUCT(((T_DataComboFile[Implementation programme]=$G$3)*(T_DataComboFile[Econ3]=$G48))*T_DataComboFile[2022/23 Baseline]*$B$3)","v":0},{"$f":"SUMPRODUCT(((T_DataComboFile[Implementation programme]=$G$3)*(T_DataComboFile[Econ3]=$G48))*T_DataComboFile[2022/23 Reduction]*$B$3)","v":0},{"$f":"SUMPRODUCT(((T_DataComboFile[Implementation programme]=$G$3)*(T_DataComboFile[Econ3]=$G48))*T_DataComboFile[2022/23 Increase]*$B$3)","v":0},0,{"$f":"SUMPRODUCT(((T_DataComboFile[Implementation programme]=$G$3)*(T_DataComboFile[Econ3]=$G48))*T_DataComboFile[2023/24 Baseline]*$B$3)","v":0},{"$f":"SUMPRODUCT(((T_DataComboFile[Implementation programme]=$G$3)*(T_DataComboFile[Econ3]=$G48))*T_DataComboFile[2023/24 Reduction]*$B$3)","v":0},{"$f":"SUMPRODUCT(((T_DataComboFile[Implementation programme]=$G$3)*(T_DataComboFile[Econ3]=$G48))*T_DataComboFile[2023/24 Increase]*$B$3)","v":0},0]
[0,0,null,null,null,null,"Households",{"$f":"SUM(H50:H51)","v":0},0,0,0,0,0,0,0,0,0,0,0,0,0,0,0]
[0,0,null,null,null,null,"Social benefits",{"$f":"SUMPRODUCT(((T_DataComboFile[Implementation programme]=$G$3)*(T_DataComboFile[Econ4]=$G50))*T_DataComboFile[2017/18]*$B$3)","v":0},{"$f":"SUMPRODUCT(((T_DataComboFile[Implementation programme]=$G$3)*(T_DataComboFile[Econ4]=$G50))*T_DataComboFile[2018/19]*$B$3)","v":0},{"$f":"SUMPRODUCT(((T_DataComboFile[Implementation programme]=$G$3)*(T_DataComboFile[Econ4]=$G50))*T_DataComboFile[2019/20 Revised estimate]*$B$3)","v":0},{"$f":"SUMPRODUCT(((T_DataComboFile[Implementation programme]=$G$3)*(T_DataComboFile[Econ4]=$G50))*T_DataComboFile[2020/21 Revised]*$B$3)","v":0},{"$f":"SUMPRODUCT(((T_DataComboFile[Implementation programme]=$G$3)*(T_DataComboFile[Econ4]=$G50))*T_DataComboFile[2021/22 Baseline]*$B$3)","v":0},{"$f":"SUMPRODUCT(((T_DataComboFile[Implementation programme]=$G$3)*(T_DataComboFile[Econ4]=$G50))*T_DataComboFile[2021/22 Reduction]*$B$3)","v":0},{"$f":"SUMPRODUCT(((T_DataComboFile[Implementation programme]=$G$3)*(T_DataComboFile[Econ4]=$G50))*T_DataComboFile[2021/22 Increase]*$B$3)","v":0},{"$f":"L50+M50+N50","v":0},{"$f":"SUMPRODUCT(((T_DataComboFile[Implementation programme]=$G$3)*(T_DataComboFile[Econ4]=$G50))*T_DataComboFile[2022/23 Baseline]*$B$3)","v":0},{"$f":"SUMPRODUCT(((T_DataComboFile[Implementation programme]=$G$3)*(T_DataComboFile[Econ4]=$G50))*T_DataComboFile[2022/23 Reduction]*$B$3)","v":0},{"$f":"SUMPRODUCT(((T_DataComboFile[Implementation programme]=$G$3)*(T_DataComboFile[Econ4]=$G50))*T_DataComboFile[2022/23 Increase]*$B$3)","v":0},{"$f":"P50+Q50+R50","v":0},{"$f":"SUMPRODUCT(((T_DataComboFile[Implementation programme]=$G$3)*(T_DataComboFile[Econ4]=$G50))*T_DataComboFile[2023/24 Baseline]*$B$3)","v":0},{"$f":"SUMPRODUCT(((T_DataComboFile[Implementation programme]=$G$3)*(T_DataComboFile[Econ4]=$G50))*T_DataComboFile[2023/24 Reduction]*$B$3)","v":0},{"$f":"SUMPRODUCT(((T_DataComboFile[Implementation programme]=$G$3)*(T_DataComboFile[Econ4]=$G50))*T_DataComboFile[2023/24 Increase]*$B$3)","v":0},{"$f":"T50+U50+V50","v":0}]
[0,0,null,null,null,null,"Other transfers to households",{"$f":"SUMPRODUCT(((T_DataComboFile[Implementation programme]=$G$3)*(T_DataComboFile[Econ4]=$G51))*T_DataComboFile[2017/18]*$B$3)","v":0},{"$f":"SUMPRODUCT(((T_DataComboFile[Implementation programme]=$G$3)*(T_DataComboFile[Econ4]=$G51))*T_DataComboFile[2018/19]*$B$3)","v":0},{"$f":"SUMPRODUCT(((T_DataComboFile[Implementation programme]=$G$3)*(T_DataComboFile[Econ4]=$G51))*T_DataComboFile[2019/20 Revised estimate]*$B$3)","v":0},{"$f":"SUMPRODUCT(((T_DataComboFile[Implementation programme]=$G$3)*(T_DataComboFile[Econ4]=$G51))*T_DataComboFile[2020/21 Revised]*$B$3)","v":0},{"$f":"SUMPRODUCT(((T_DataComboFile[Implementation programme]=$G$3)*(T_DataComboFile[Econ4]=$G51))*T_DataComboFile[2021/22 Baseline]*$B$3)","v":0},{"$f":"SUMPRODUCT(((T_DataComboFile[Implementation programme]=$G$3)*(T_DataComboFile[Econ4]=$G51))*T_DataComboFile[2021/22 Reduction]*$B$3)","v":0},{"$f":"SUMPRODUCT(((T_DataComboFile[Implementation programme]=$G$3)*(T_DataComboFile[Econ4]=$G51))*T_DataComboFile[2021/22 Increase]*$B$3)","v":0},0,{"$f":"SUMPRODUCT(((T_DataComboFile[Implementation programme]=$G$3)*(T_DataComboFile[Econ4]=$G51))*T_DataComboFile[2022/23 Baseline]*$B$3)","v":0},{"$f":"SUMPRODUCT(((T_DataComboFile[Implementation programme]=$G$3)*(T_DataComboFile[Econ4]=$G51))*T_DataComboFile[2022/23 Reduction]*$B$3)","v":0},{"$f":"SUMPRODUCT(((T_DataComboFile[Implementation programme]=$G$3)*(T_DataComboFile[Econ4]=$G51))*T_DataComboFile[2022/23 Increase]*$B$3)","v":0},0,{"$f":"SUMPRODUCT(((T_DataComboFile[Implementation programme]=$G$3)*(T_DataComboFile[Econ4]=$G51))*T_DataComboFile[2023/24 Baseline]*$B$3)","v":0},{"$f":"SUMPRODUCT(((T_DataComboFile[Implementation programme]=$G$3)*(T_DataComboFile[Econ4]=$G51))*T_DataComboFile[2023/24 Reduction]*$B$3)","v":0},{"$f":"SUMPRODUCT(((T_DataComboFile[Implementation programme]=$G$3)*(T_DataComboFile[Econ4]=$G51))*T_DataComboFile[2023/24 Increase]*$B$3)","v":0},0]
[0,0,null,null,null,null,"Payments for capital assets",{"$f":"SUM(H53,H56,H59:H63)","v":0},0,0,0,0,0,0,0,0,0,0,0,0,0,0,0]
[0,0,null,null,null,null,"Buildings and other fixed structures",{"$f":"SUM(H54:H55)","v":0},0,0,0,0,0,0,0,0,0,0,0,0,0,0,0]
[0,0,null,null,null,null,"Buildings",{"$f":"SUMPRODUCT(((T_DataComboFile[Implementation programme]=$G$3)*(T_DataComboFile[Econ4]=$G54))*T_DataComboFile[2017/18]*$B$3)","v":0},{"$f":"SUMPRODUCT(((T_DataComboFile[Implementation programme]=$G$3)*(T_DataComboFile[Econ4]=$G54))*T_DataComboFile[2018/19]*$B$3)","v":0},{"$f":"SUMPRODUCT(((T_DataComboFile[Implementation programme]=$G$3)*(T_DataComboFile[Econ4]=$G54))*T_DataComboFile[2019/20 Revised estimate]*$B$3)","v":0},{"$f":"SUMPRODUCT(((T_DataComboFile[Implementation programme]=$G$3)*(T_DataComboFile[Econ4]=$G54))*T_DataComboFile[2020/21 Revised]*$B$3)","v":0},{"$f":"SUMPRODUCT(((T_DataComboFile[Implementation programme]=$G$3)*(T_DataComboFile[Econ4]=$G54))*T_DataComboFile[2021/22 Baseline]*$B$3)","v":0},{"$f":"SUMPRODUCT(((T_DataComboFile[Implementation programme]=$G$3)*(T_DataComboFile[Econ4]=$G54))*T_DataComboFile[2021/22 Reduction]*$B$3)","v":0},{"$f":"SUMPRODUCT(((T_DataComboFile[Implementation programme]=$G$3)*(T_DataComboFile[Econ4]=$G54))*T_DataComboFile[2021/22 Increase]*$B$3)","v":0},{"$f":"L54+M54+N54","v":0},{"$f":"SUMPRODUCT(((T_DataComboFile[Implementation programme]=$G$3)*(T_DataComboFile[Econ4]=$G54))*T_DataComboFile[2022/23 Baseline]*$B$3)","v":0},{"$f":"SUMPRODUCT(((T_DataComboFile[Implementation programme]=$G$3)*(T_DataComboFile[Econ4]=$G54))*T_DataComboFile[2022/23 Reduction]*$B$3)","v":0},{"$f":"SUMPRODUCT(((T_DataComboFile[Implementation programme]=$G$3)*(T_DataComboFile[Econ4]=$G54))*T_DataComboFile[2022/23 Increase]*$B$3)","v":0},{"$f":"P54+Q54+R54","v":0},{"$f":"SUMPRODUCT(((T_DataComboFile[Implementation programme]=$G$3)*(T_DataComboFile[Econ4]=$G54))*T_DataComboFile[2023/24 Baseline]*$B$3)","v":0},{"$f":"SUMPRODUCT(((T_DataComboFile[Implementation programme]=$G$3)*(T_DataComboFile[Econ4]=$G54))*T_DataComboFile[2023/24 Reduction]*$B$3)","v":0},{"$f":"SUMPRODUCT(((T_DataComboFile[Implementation programme]=$G$3)*(T_DataComboFile[Econ4]=$G54))*T_DataComboFile[2023/24 Increase]*$B$3)","v":0},{"$f":"T54+U54+V54","v":0}]
[0,0,null,null,null,null,"Other fixed structures",{"$f":"SUMPRODUCT(((T_DataComboFile[Implementation programme]=$G$3)*(T_DataComboFile[Econ4]=$G55))*T_DataComboFile[2017/18]*$B$3)","v":0},{"$f":"SUMPRODUCT(((T_DataComboFile[Implementation programme]=$G$3)*(T_DataComboFile[Econ4]=$G55))*T_DataComboFile[2018/19]*$B$3)","v":0},{"$f":"SUMPRODUCT(((T_DataComboFile[Implementation programme]=$G$3)*(T_DataComboFile[Econ4]=$G55))*T_DataComboFile[2019/20 Revised estimate]*$B$3)","v":0},{"$f":"SUMPRODUCT(((T_DataComboFile[Implementation programme]=$G$3)*(T_DataComboFile[Econ4]=$G55))*T_DataComboFile[2020/21 Revised]*$B$3)","v":0},{"$f":"SUMPRODUCT(((T_DataComboFile[Implementation programme]=$G$3)*(T_DataComboFile[Econ4]=$G55))*T_DataComboFile[2021/22 Baseline]*$B$3)","v":0},{"$f":"SUMPRODUCT(((T_DataComboFile[Implementation programme]=$G$3)*(T_DataComboFile[Econ4]=$G55))*T_DataComboFile[2021/22 Reduction]*$B$3)","v":0},{"$f":"SUMPRODUCT(((T_DataComboFile[Implementation programme]=$G$3)*(T_DataComboFile[Econ4]=$G55))*T_DataComboFile[2021/22 Increase]*$B$3)","v":0},0,{"$f":"SUMPRODUCT(((T_DataComboFile[Implementation programme]=$G$3)*(T_DataComboFile[Econ4]=$G55))*T_DataComboFile[2022/23 Baseline]*$B$3)","v":0},{"$f":"SUMPRODUCT(((T_DataComboFile[Implementation programme]=$G$3)*(T_DataComboFile[Econ4]=$G55))*T_DataComboFile[2022/23 Reduction]*$B$3)","v":0},{"$f":"SUMPRODUCT(((T_DataComboFile[Implementation programme]=$G$3)*(T_DataComboFile[Econ4]=$G55))*T_DataComboFile[2022/23 Increase]*$B$3)","v":0},0,{"$f":"SUMPRODUCT(((T_DataComboFile[Implementation programme]=$G$3)*(T_DataComboFile[Econ4]=$G55))*T_DataComboFile[2023/24 Baseline]*$B$3)","v":0},{"$f":"SUMPRODUCT(((T_DataComboFile[Implementation programme]=$G$3)*(T_DataComboFile[Econ4]=$G55))*T_DataComboFile[2023/24 Reduction]*$B$3)","v":0},{"$f":"SUMPRODUCT(((T_DataComboFile[Implementation programme]=$G$3)*(T_DataComboFile[Econ4]=$G55))*T_DataComboFile[2023/24 Increase]*$B$3)","v":0},0]
[0,0,null,null,null,null,"Machinery and equipment",{"$f":"SUM(H57:H58)","v":0},0,0,0,0,0,0,0,0,0,0,0,0,0,0,0]
[0,0,null,null,null,null,"Transport equipment",{"$f":"SUMPRODUCT(((T_DataComboFile[Implementation programme]=$G$3)*(T_DataComboFile[Econ4]=$G57))*T_DataComboFile[2017/18]*$B$3)","v":0},{"$f":"SUMPRODUCT(((T_DataComboFile[Implementation programme]=$G$3)*(T_DataComboFile[Econ4]=$G57))*T_DataComboFile[2018/19]*$B$3)","v":0},{"$f":"SUMPRODUCT(((T_DataComboFile[Implementation programme]=$G$3)*(T_DataComboFile[Econ4]=$G57))*T_DataComboFile[2019/20 Revised estimate]*$B$3)","v":0},{"$f":"SUMPRODUCT(((T_DataComboFile[Implementation programme]=$G$3)*(T_DataComboFile[Econ4]=$G57))*T_DataComboFile[2020/21 Revised]*$B$3)","v":0},{"$f":"SUMPRODUCT(((T_DataComboFile[Implementation programme]=$G$3)*(T_DataComboFile[Econ4]=$G57))*T_DataComboFile[2021/22 Baseline]*$B$3)","v":0},{"$f":"SUMPRODUCT(((T_DataComboFile[Implementation programme]=$G$3)*(T_DataComboFile[Econ4]=$G57))*T_DataComboFile[2021/22 Reduction]*$B$3)","v":0},{"$f":"SUMPRODUCT(((T_DataComboFile[Implementation programme]=$G$3)*(T_DataComboFile[Econ4]=$G57))*T_DataComboFile[2021/22 Increase]*$B$3)","v":0},{"$f":"L57+M57+N57","v":0},{"$f":"SUMPRODUCT(((T_DataComboFile[Implementation programme]=$G$3)*(T_DataComboFile[Econ4]=$G57))*T_DataComboFile[2022/23 Baseline]*$B$3)","v":0},{"$f":"SUMPRODUCT(((T_DataComboFile[Implementation programme]=$G$3)*(T_DataComboFile[Econ4]=$G57))*T_DataComboFile[2022/23 Reduction]*$B$3)","v":0},{"$f":"SUMPRODUCT(((T_DataComboFile[Implementation programme]=$G$3)*(T_DataComboFile[Econ4]=$G57))*T_DataComboFile[2022/23 Increase]*$B$3)","v":0},{"$f":"P57+Q57+R57","v":0},{"$f":"SUMPRODUCT(((T_DataComboFile[Implementation programme]=$G$3)*(T_DataComboFile[Econ4]=$G57))*T_DataComboFile[2023/24 Baseline]*$B$3)","v":0},{"$f":"SUMPRODUCT(((T_DataComboFile[Implementation programme]=$G$3)*(T_DataComboFile[Econ4]=$G57))*T_DataComboFile[2023/24 Reduction]*$B$3)","v":0},{"$f":"SUMPRODUCT(((T_DataComboFile[Implementation programme]=$G$3)*(T_DataComboFile[Econ4]=$G57))*T_DataComboFile[2023/24 Increase]*$B$3)","v":0},{"$f":"T57+U57+V57","v":0}]
[0,0,null,null,null,null,"Other machinery and equipment",{"$f":"SUMPRODUCT(((T_DataComboFile[Implementation programme]=$G$3)*(T_DataComboFile[Econ4]=$G58))*T_DataComboFile[2017/18]*$B$3)","v":0},{"$f":"SUMPRODUCT(((T_DataComboFile[Implementation programme]=$G$3)*(T_DataComboFile[Econ4]=$G58))*T_DataComboFile[2018/19]*$B$3)","v":0},{"$f":"SUMPRODUCT(((T_DataComboFile[Implementation programme]=$G$3)*(T_DataComboFile[Econ4]=$G58))*T_DataComboFile[2019/20 Revised estimate]*$B$3)","v":0},{"$f":"SUMPRODUCT(((T_DataComboFile[Implementation programme]=$G$3)*(T_DataComboFile[Econ4]=$G58))*T_DataComboFile[2020/21 Revised]*$B$3)","v":0},{"$f":"SUMPRODUCT(((T_DataComboFile[Implementation programme]=$G$3)*(T_DataComboFile[Econ4]=$G58))*T_DataComboFile[2021/22 Baseline]*$B$3)","v":0},{"$f":"SUMPRODUCT(((T_DataComboFile[Implementation programme]=$G$3)*(T_DataComboFile[Econ4]=$G58))*T_DataComboFile[2021/22 Reduction]*$B$3)","v":0},{"$f":"SUMPRODUCT(((T_DataComboFile[Implementation programme]=$G$3)*(T_DataComboFile[Econ4]=$G58))*T_DataComboFile[2021/22 Increase]*$B$3)","v":0},0,{"$f":"SUMPRODUCT(((T_DataComboFile[Implementation programme]=$G$3)*(T_DataComboFile[Econ4]=$G58))*T_DataComboFile[2022/23 Baseline]*$B$3)","v":0},{"$f":"SUMPRODUCT(((T_DataComboFile[Implementation programme]=$G$3)*(T_DataComboFile[Econ4]=$G58))*T_DataComboFile[2022/23 Reduction]*$B$3)","v":0},{"$f":"SUMPRODUCT(((T_DataComboFile[Implementation programme]=$G$3)*(T_DataComboFile[Econ4]=$G58))*T_DataComboFile[2022/23 Increase]*$B$3)","v":0},0,{"$f":"SUMPRODUCT(((T_DataComboFile[Implementation programme]=$G$3)*(T_DataComboFile[Econ4]=$G58))*T_DataComboFile[2023/24 Baseline]*$B$3)","v":0},{"$f":"SUMPRODUCT(((T_DataComboFile[Implementation programme]=$G$3)*(T_DataComboFile[Econ4]=$G58))*T_DataComboFile[2023/24 Reduction]*$B$3)","v":0},{"$f":"SUMPRODUCT(((T_DataComboFile[Implementation programme]=$G$3)*(T_DataComboFile[Econ4]=$G58))*T_DataComboFile[2023/24 Increase]*$B$3)","v":0},0]
[0,0,null,null,null,null,"Heritage assets",{"$f":"SUMPRODUCT(((T_DataComboFile[Implementation programme]=$G$3)*(T_DataComboFile[Econ3]=$G59))*T_DataComboFile[2017/18]*$B$3)","v":0},{"$f":"SUMPRODUCT(((T_DataComboFile[Implementation programme]=$G$3)*(T_DataComboFile[Econ3]=$G59))*T_DataComboFile[2018/19]*$B$3)","v":0},{"$f":"SUMPRODUCT(((T_DataComboFile[Implementation programme]=$G$3)*(T_DataComboFile[Econ3]=$G59))*T_DataComboFile[2019/20 Revised estimate]*$B$3)","v":0},{"$f":"SUMPRODUCT(((T_DataComboFile[Implementation programme]=$G$3)*(T_DataComboFile[Econ3]=$G59))*T_DataComboFile[2020/21 Revised]*$B$3)","v":0},{"$f":"SUMPRODUCT(((T_DataComboFile[Implementation programme]=$G$3)*(T_DataComboFile[Econ3]=$G59))*T_DataComboFile[2021/22 Baseline]*$B$3)","v":0},{"$f":"SUMPRODUCT(((T_DataComboFile[Implementation programme]=$G$3)*(T_DataComboFile[Econ3]=$G59))*T_DataComboFile[2021/22 Reduction]*$B$3)","v":0},{"$f":"SUMPRODUCT(((T_DataComboFile[Implementation programme]=$G$3)*(T_DataComboFile[Econ3]=$G59))*T_DataComboFile[2021/22 Increase]*$B$3)","v":0},0,{"$f":"SUMPRODUCT(((T_DataComboFile[Implementation programme]=$G$3)*(T_DataComboFile[Econ3]=$G59))*T_DataComboFile[2022/23 Baseline]*$B$3)","v":0},{"$f":"SUMPRODUCT(((T_DataComboFile[Implementation programme]=$G$3)*(T_DataComboFile[Econ3]=$G59))*T_DataComboFile[2022/23 Reduction]*$B$3)","v":0},{"$f":"SUMPRODUCT(((T_DataComboFile[Implementation programme]=$G$3)*(T_DataComboFile[Econ3]=$G59))*T_DataComboFile[2022/23 Increase]*$B$3)","v":0},0,{"$f":"SUMPRODUCT(((T_DataComboFile[Implementation programme]=$G$3)*(T_DataComboFile[Econ3]=$G59))*T_DataComboFile[2023/24 Baseline]*$B$3)","v":0},{"$f":"SUMPRODUCT(((T_DataComboFile[Implementation programme]=$G$3)*(T_DataComboFile[Econ3]=$G59))*T_DataComboFile[2023/24 Reduction]*$B$3)","v":0},{"$f":"SUMPRODUCT(((T_DataComboFile[Implementation programme]=$G$3)*(T_DataComboFile[Econ3]=$G59))*T_DataComboFile[2023/24 Increase]*$B$3)","v":0},0]
[0,0,null,null,null,null,"Specialised military assets",{"$f":"SUMPRODUCT(((T_DataComboFile[Implementation programme]=$G$3)*(T_DataComboFile[Econ3]=$G60))*T_DataComboFile[2017/18]*$B$3)","v":0},{"$f":"SUMPRODUCT(((T_DataComboFile[Implementation programme]=$G$3)*(T_DataComboFile[Econ3]=$G60))*T_DataComboFile[2018/19]*$B$3)","v":0},{"$f":"SUMPRODUCT(((T_DataComboFile[Implementation programme]=$G$3)*(T_DataComboFile[Econ3]=$G60))*T_DataComboFile[2019/20 Revised estimate]*$B$3)","v":0},{"$f":"SUMPRODUCT(((T_DataComboFile[Implementation programme]=$G$3)*(T_DataComboFile[Econ3]=$G60))*T_DataComboFile[2020/21 Revised]*$B$3)","v":0},{"$f":"SUMPRODUCT(((T_DataComboFile[Implementation programme]=$G$3)*(T_DataComboFile[Econ3]=$G60))*T_DataComboFile[2021/22 Baseline]*$B$3)","v":0},{"$f":"SUMPRODUCT(((T_DataComboFile[Implementation programme]=$G$3)*(T_DataComboFile[Econ3]=$G60))*T_DataComboFile[2021/22 Reduction]*$B$3)","v":0},{"$f":"SUMPRODUCT(((T_DataComboFile[Implementation programme]=$G$3)*(T_DataComboFile[Econ3]=$G60))*T_DataComboFile[2021/22 Increase]*$B$3)","v":0},0,{"$f":"SUMPRODUCT(((T_DataComboFile[Implementation programme]=$G$3)*(T_DataComboFile[Econ3]=$G60))*T_DataComboFile[2022/23 Baseline]*$B$3)","v":0},{"$f":"SUMPRODUCT(((T_DataComboFile[Implementation programme]=$G$3)*(T_DataComboFile[Econ3]=$G60))*T_DataComboFile[2022/23 Reduction]*$B$3)","v":0},{"$f":"SUMPRODUCT(((T_DataComboFile[Implementation programme]=$G$3)*(T_DataComboFile[Econ3]=$G60))*T_DataComboFile[2022/23 Increase]*$B$3)","v":0},0,{"$f":"SUMPRODUCT(((T_DataComboFile[Implementation programme]=$G$3)*(T_DataComboFile[Econ3]=$G60))*T_DataComboFile[2023/24 Baseline]*$B$3)","v":0},{"$f":"SUMPRODUCT(((T_DataComboFile[Implementation programme]=$G$3)*(T_DataComboFile[Econ3]=$G60))*T_DataComboFile[2023/24 Reduction]*$B$3)","v":0},{"$f":"SUMPRODUCT(((T_DataComboFile[Implementation programme]=$G$3)*(T_DataComboFile[Econ3]=$G60))*T_DataComboFile[2023/24 Increase]*$B$3)","v":0},0]
[0,0,null,null,null,null,"Biological assets",{"$f":"SUMPRODUCT(((T_DataComboFile[Implementation programme]=$G$3)*(T_DataComboFile[Econ3]=$G61))*T_DataComboFile[2017/18]*$B$3)","v":0},{"$f":"SUMPRODUCT(((T_DataComboFile[Implementation programme]=$G$3)*(T_DataComboFile[Econ3]=$G61))*T_DataComboFile[2018/19]*$B$3)","v":0},{"$f":"SUMPRODUCT(((T_DataComboFile[Implementation programme]=$G$3)*(T_DataComboFile[Econ3]=$G61))*T_DataComboFile[2019/20 Revised estimate]*$B$3)","v":0},{"$f":"SUMPRODUCT(((T_DataComboFile[Implementation programme]=$G$3)*(T_DataComboFile[Econ3]=$G61))*T_DataComboFile[2020/21 Revised]*$B$3)","v":0},{"$f":"SUMPRODUCT(((T_DataComboFile[Implementation programme]=$G$3)*(T_DataComboFile[Econ3]=$G61))*T_DataComboFile[2021/22 Baseline]*$B$3)","v":0},{"$f":"SUMPRODUCT(((T_DataComboFile[Implementation programme]=$G$3)*(T_DataComboFile[Econ3]=$G61))*T_DataComboFile[2021/22 Reduction]*$B$3)","v":0},{"$f":"SUMPRODUCT(((T_DataComboFile[Implementation programme]=$G$3)*(T_DataComboFile[Econ3]=$G61))*T_DataComboFile[2021/22 Increase]*$B$3)","v":0},0,{"$f":"SUMPRODUCT(((T_DataComboFile[Implementation programme]=$G$3)*(T_DataComboFile[Econ3]=$G61))*T_DataComboFile[2022/23 Baseline]*$B$3)","v":0},{"$f":"SUMPRODUCT(((T_DataComboFile[Implementation programme]=$G$3)*(T_DataComboFile[Econ3]=$G61))*T_DataComboFile[2022/23 Reduction]*$B$3)","v":0},{"$f":"SUMPRODUCT(((T_DataComboFile[Implementation programme]=$G$3)*(T_DataComboFile[Econ3]=$G61))*T_DataComboFile[2022/23 Increase]*$B$3)","v":0},0,{"$f":"SUMPRODUCT(((T_DataComboFile[Implementation programme]=$G$3)*(T_DataComboFile[Econ3]=$G61))*T_DataComboFile[2023/24 Baseline]*$B$3)","v":0},{"$f":"SUMPRODUCT(((T_DataComboFile[Implementation programme]=$G$3)*(T_DataComboFile[Econ3]=$G61))*T_DataComboFile[2023/24 Reduction]*$B$3)","v":0},{"$f":"SUMPRODUCT(((T_DataComboFile[Implementation programme]=$G$3)*(T_DataComboFile[Econ3]=$G61))*T_DataComboFile[2023/24 Increase]*$B$3)","v":0},0]
[0,0,null,null,null,null,"Land and sub-soil assets",{"$f":"SUMPRODUCT(((T_DataComboFile[Implementation programme]=$G$3)*(T_DataComboFile[Econ3]=$G62))*T_DataComboFile[2017/18]*$B$3)","v":0},{"$f":"SUMPRODUCT(((T_DataComboFile[Implementation programme]=$G$3)*(T_DataComboFile[Econ3]=$G62))*T_DataComboFile[2018/19]*$B$3)","v":0},{"$f":"SUMPRODUCT(((T_DataComboFile[Implementation programme]=$G$3)*(T_DataComboFile[Econ3]=$G62))*T_DataComboFile[2019/20 Revised estimate]*$B$3)","v":0},{"$f":"SUMPRODUCT(((T_DataComboFile[Implementation programme]=$G$3)*(T_DataComboFile[Econ3]=$G62))*T_DataComboFile[2020/21 Revised]*$B$3)","v":0},{"$f":"SUMPRODUCT(((T_DataComboFile[Implementation programme]=$G$3)*(T_DataComboFile[Econ3]=$G62))*T_DataComboFile[2021/22 Baseline]*$B$3)","v":0},{"$f":"SUMPRODUCT(((T_DataComboFile[Implementation programme]=$G$3)*(T_DataComboFile[Econ3]=$G62))*T_DataComboFile[2021/22 Reduction]*$B$3)","v":0},{"$f":"SUMPRODUCT(((T_DataComboFile[Implementation programme]=$G$3)*(T_DataComboFile[Econ3]=$G62))*T_DataComboFile[2021/22 Increase]*$B$3)","v":0},0,{"$f":"SUMPRODUCT(((T_DataComboFile[Implementation programme]=$G$3)*(T_DataComboFile[Econ3]=$G62))*T_DataComboFile[2022/23 Baseline]*$B$3)","v":0},{"$f":"SUMPRODUCT(((T_DataComboFile[Implementation programme]=$G$3)*(T_DataComboFile[Econ3]=$G62))*T_DataComboFile[2022/23 Reduction]*$B$3)","v":0},{"$f":"SUMPRODUCT(((T_DataComboFile[Implementation programme]=$G$3)*(T_DataComboFile[Econ3]=$G62))*T_DataComboFile[2022/23 Increase]*$B$3)","v":0},0,{"$f":"SUMPRODUCT(((T_DataComboFile[Implementation programme]=$G$3)*(T_DataComboFile[Econ3]=$G62))*T_DataComboFile[2023/24 Baseline]*$B$3)","v":0},{"$f":"SUMPRODUCT(((T_DataComboFile[Implementation programme]=$G$3)*(T_DataComboFile[Econ3]=$G62))*T_DataComboFile[2023/24 Reduction]*$B$3)","v":0},{"$f":"SUMPRODUCT(((T_DataComboFile[Implementation programme]=$G$3)*(T_DataComboFile[Econ3]=$G62))*T_DataComboFile[2023/24 Increase]*$B$3)","v":0},0]
[0,0,null,null,null,null,"Software and other intangible assets",{"$f":"SUMPRODUCT(((T_DataComboFile[Implementation programme]=$G$3)*(T_DataComboFile[Econ3]=$G63))*T_DataComboFile[2017/18]*$B$3)","v":0},{"$f":"SUMPRODUCT(((T_DataComboFile[Implementation programme]=$G$3)*(T_DataComboFile[Econ3]=$G63))*T_DataComboFile[2018/19]*$B$3)","v":0},{"$f":"SUMPRODUCT(((T_DataComboFile[Implementation programme]=$G$3)*(T_DataComboFile[Econ3]=$G63))*T_DataComboFile[2019/20 Revised estimate]*$B$3)","v":0},{"$f":"SUMPRODUCT(((T_DataComboFile[Implementation programme]=$G$3)*(T_DataComboFile[Econ3]=$G63))*T_DataComboFile[2020/21 Revised]*$B$3)","v":0},{"$f":"SUMPRODUCT(((T_DataComboFile[Implementation programme]=$G$3)*(T_DataComboFile[Econ3]=$G63))*T_DataComboFile[2021/22 Baseline]*$B$3)","v":0},{"$f":"SUMPRODUCT(((T_DataComboFile[Implementation programme]=$G$3)*(T_DataComboFile[Econ3]=$G63))*T_DataComboFile[2021/22 Reduction]*$B$3)","v":0},{"$f":"SUMPRODUCT(((T_DataComboFile[Implementation programme]=$G$3)*(T_DataComboFile[Econ3]=$G63))*T_DataComboFile[2021/22 Increase]*$B$3)","v":0},0,{"$f":"SUMPRODUCT(((T_DataComboFile[Implementation programme]=$G$3)*(T_DataComboFile[Econ3]=$G63))*T_DataComboFile[2022/23 Baseline]*$B$3)","v":0},{"$f":"SUMPRODUCT(((T_DataComboFile[Implementation programme]=$G$3)*(T_DataComboFile[Econ3]=$G63))*T_DataComboFile[2022/23 Reduction]*$B$3)","v":0},{"$f":"SUMPRODUCT(((T_DataComboFile[Implementation programme]=$G$3)*(T_DataComboFile[Econ3]=$G63))*T_DataComboFile[2022/23 Increase]*$B$3)","v":0},0,{"$f":"SUMPRODUCT(((T_DataComboFile[Implementation programme]=$G$3)*(T_DataComboFile[Econ3]=$G63))*T_DataComboFile[2023/24 Baseline]*$B$3)","v":0},{"$f":"SUMPRODUCT(((T_DataComboFile[Implementation programme]=$G$3)*(T_DataComboFile[Econ3]=$G63))*T_DataComboFile[2023/24 Reduction]*$B$3)","v":0},{"$f":"SUMPRODUCT(((T_DataComboFile[Implementation programme]=$G$3)*(T_DataComboFile[Econ3]=$G63))*T_DataComboFile[2023/24 Increase]*$B$3)","v":0},0]
[0,0,null,null,null,null,"Payments for financial assets",{"$f":"SUMPRODUCT(((T_DataComboFile[Implementation programme]=$G$3)*(T_DataComboFile[Econ3]=$G64))*T_DataComboFile[2017/18]*$B$3)","v":0},{"$f":"SUMPRODUCT(((T_DataComboFile[Implementation programme]=$G$3)*(T_DataComboFile[Econ3]=$G64))*T_DataComboFile[2018/19]*$B$3)","v":0},{"$f":"SUMPRODUCT(((T_DataComboFile[Implementation programme]=$G$3)*(T_DataComboFile[Econ3]=$G64))*T_DataComboFile[2019/20 Revised estimate]*$B$3)","v":0},{"$f":"SUMPRODUCT(((T_DataComboFile[Implementation programme]=$G$3)*(T_DataComboFile[Econ3]=$G64))*T_DataComboFile[2020/21 Revised]*$B$3)","v":0},{"$f":"SUMPRODUCT(((T_DataComboFile[Implementation programme]=$G$3)*(T_DataComboFile[Econ3]=$G64))*T_DataComboFile[2021/22 Baseline]*$B$3)","v":0},{"$f":"SUMPRODUCT(((T_DataComboFile[Implementation programme]=$G$3)*(T_DataComboFile[Econ3]=$G64))*T_DataComboFile[2021/22 Reduction]*$B$3)","v":0},{"$f":"SUMPRODUCT(((T_DataComboFile[Implementation programme]=$G$3)*(T_DataComboFile[Econ3]=$G64))*T_DataComboFile[2021/22 Increase]*$B$3)","v":0},0,{"$f":"SUMPRODUCT(((T_DataComboFile[Implementation programme]=$G$3)*(T_DataComboFile[Econ3]=$G64))*T_DataComboFile[2022/23 Baseline]*$B$3)","v":0},{"$f":"SUMPRODUCT(((T_DataComboFile[Implementation programme]=$G$3)*(T_DataComboFile[Econ3]=$G64))*T_DataComboFile[2022/23 Reduction]*$B$3)","v":0},{"$f":"SUMPRODUCT(((T_DataComboFile[Implementation programme]=$G$3)*(T_DataComboFile[Econ3]=$G64))*T_DataComboFile[2022/23 Increase]*$B$3)","v":0},0,{"$f":"SUMPRODUCT(((T_DataComboFile[Implementation programme]=$G$3)*(T_DataComboFile[Econ3]=$G64))*T_DataComboFile[2023/24 Baseline]*$B$3)","v":0},{"$f":"SUMPRODUCT(((T_DataComboFile[Implementation programme]=$G$3)*(T_DataComboFile[Econ3]=$G64))*T_DataComboFile[2023/24 Reduction]*$B$3)","v":0},{"$f":"SUMPRODUCT(((T_DataComboFile[Implementation programme]=$G$3)*(T_DataComboFile[Econ3]=$G64))*T_DataComboFile[2023/24 Increase]*$B$3)","v":0},0]
[0,0,null,null,null,null,"Total",{"$f":"SUM(H32,H36,H52,H64)","v":0},0,0,0,0,0,0,0,0,0,0,0,0,0,0,0]
[]
[]
[]
[]
[]
[null,null,null,null,null,null,{"$f":"\"IMPACT OF ADJUSTMENTS: \" &UPPER($G$3)","v":"IMPACT OF ADJUSTMENTS: "}]
[]
[null,null,null,null,null,1,"Summary of impact on service delivery due to adjustments"]
[{"$f":"$G$3","v":0},1]
[0,1]
[0,1]
[0,1]
[0,1]
[0,1]
[0,1]
[0,1]
[0,1]
[0,1]
[0,1]
[0,1]
[0,1]
[0,1]
[0,1]
[]
[]
[]
[]
[]
[null,null,null,null,null,2,"Impact of adjustments on performance indicators"]
[{"$f":"$G$3","v":0},2,null,null,null,null,null,"2021/22",null,null,"2022/23",null,null,"2023/24",null,null," Comment",null,null,null,null,"Related MTSF Priority"]
[0,2,null,null,null,null,"Performance indicator","Original target","Revised target","Change","Original target","Revised target","Change","Original target","Revised target","Change"]
[0,2]
[0,2]
[0,2]
[0,2]
[0,2]
[0,2]
[0,2]
[0,2]
[0,2]
[0,2]
[0,2]
[0,2]
[0,2]
[0,2]
[0,2]
[]
[]
[]
[]
[]
[null,null,null,null,null,3,"Impact of adjustments on infrastructure projects"]
[{"$f":"$G$3","v":0},3,null,null,null,null,null,"2021/22",null,null,"2022/23",null,null,"2023/24",null,null," Comment"]
[0,3,null,null,null,null,"Project name","Original amount","Revised amount","Change","Original amount","Revised amount","Change","Original amount","Revised amount","Change"]
[0,3,null,null,null,null,null,null,null,{"$f":"I120-H120","v":0},null,null,{"$f":"L120-K120","v":0},null,null,{"$f":"O120-N120","v":0}]
[0,3,null,null,null,null,null,null,null,0,null,null,0,null,null,0]
[0,3,null,null,null,null,null,null,null,0,null,null,0,null,null,0]
[0,3,null,null,null,null,null,null,null,0,null,null,0,null,null,0]
[0,3,null,null,null,null,null,null,null,0,null,null,0,null,null,0]
[0,3,null,null,null,null,null,null,null,0,null,null,0,null,null,0]
[0,3,null,null,null,null,null,null,null,0,null,null,0,null,null,0]
[0,3,null,null,null,null,null,null,null,0,null,null,0,null,null,0]
[0,3,null,null,null,null,null,null,null,0,null,null,0,null,null,0]
[0,3,null,null,null,null,null,null,null,0,null,null,0,null,null,0]
[0,3,null,null,null,null,null,null,null,0,null,null,0,null,null,0]
[0,3,null,null,null,null,null,null,null,0,null,null,0,null,null,0]
[0,3,null,null,null,null,null,null,null,0,null,null,0,null,null,0]
[0,3,null,null,null,null,null,null,null,0,null,null,0,null,null,0]
[0,3,null,null,null,null,null,null,null,0,null,null,0,null,null,0]
[0,3,null,null,null,null,"Total",{"$f":"SUM(H120:H134)","v":0},0,0,0,0,0,0,0,0]
[]
[]
[]
[]
[]
[null,null,null,null,null,4,"Impact of adjustments on personnel headcount numbers"]
[{"$f":"$G$3","v":0},4,null,null,null,null,null,"2021/22",null,null,"2022/23",null,null,"2023/24",null,null," Comment"]
[0,4,null,null,null,null,"Salary level","Original number","Revised number","Change","Original number","Revised number","Change","Original number","Revised number","Change"]
[0,4,null,null,null,null,1,null,null,{"$f":"I144-H144","v":0},null,null,{"$f":"L144-K144","v":0},null,null,{"$f":"O144-N144","v":0}]
[0,4,null,null,null,null,2,null,null,0,null,null,0,null,null,0]
[0,4,null,null,null,null,3,null,null,0,null,null,0,null,null,0]
[0,4,null,null,null,null,4,null,null,0,null,null,0,null,null,0]
[0,4,null,null,null,null,5,null,null,0,null,null,0,null,null,0]
[0,4,null,null,null,null,6,null,null,0,null,null,0,null,null,0]
[0,4,null,null,null,null,7,null,null,0,null,null,0,null,null,0]
[0,4,null,null,null,null,8,null,null,0,null,null,0,null,null,0]
[0,4,null,null,null,null,9,null,null,0,null,null,0,null,null,0]
[0,4,null,null,null,null,10,null,null,0,null,null,0,null,null,0]
[0,4,null,null,null,null,11,null,null,0,null,null,0,null,null,0]
[0,4,null,null,null,null,12,null,null,0,null,null,0,null,null,0]
[0,4,null,null,null,null,13,null,null,0,null,null,0,null,null,0]
[0,4,null,null,null,null,14,null,null,0,null,null,0,null,null,0]
[0,4,null,null,null,null,15,null,null,0,null,null,0,null,null,0]
[0,4,null,null,null,null,16,null,null,0,null,null,0,null,null,0]
[0,4,null,null,null,null,"Other",null,null,0,null,null,0,null,null,0]
[0,4,null,null,null,null,"Other",null,null,0,null,null,0,null,null,0]
[0,4,null,null,null,null,"Other",null,null,0,null,null,0,null,null,0]
[0,4,null,null,null,null,"Other",null,null,0,null,null,0,null,null,0]
[0,4,null,null,null,null,"Total",{"$f":"SUM(H144:H163)","v":0},0,0,0,0,0,0,0,0]
[]
[]
[]
[]
[]
[null,null,null,null,null,5,"Impact of adjustments by economic classification"]
[{"$f":"$G$3","v":0},5,null,null,null,null,null,"2021/22",null,null,"2022/23",null,null,"2023/24",null,null," Comment"]
[0,5,null,null,null,null,"Salary level","Original number","Revised number","Change","Original number","Revised number","Change","Original number","Revised number","Change"]
[0,5,null,null,null,null,"Current payments",{"$f":"SUM(H174,H175,H182)","v":0},{"$f":"SUM(I174,I175,I182)","v":0},{"$f":"I173-H173","v":0},{"$f":"SUM(K174,K175,K182)","v":0},{"$f":"SUM(L174,L175,L182)","v":0},{"$f":"L173-K173","v":0},{"$f":"SUM(N174,N175,N182)","v":0},{"$f":"SUM(O174,O175,O182)","v":0},{"$f":"O173-N173","v":0}]
[0,5,null,null,null,null,"Compensation of employees",{"$f":"SUMPRODUCT(((T_DataComboFile[Implementation programme]=$G$3)*(T_DataComboFile[Econ3]=$G174))*T_DataComboFile[2021/22 Baseline]*$B$3)","v":0},{"$f":"SUMPRODUCT(((T_DataComboFile[Implementation programme]=$G$3)*(T_DataComboFile[Econ3]=$G174))*T_DataComboFile[2021/22 Revised baseline]*$B$3)","v":0},0,{"$f":"SUMPRODUCT(((T_DataComboFile[Implementation programme]=$G$3)*(T_DataComboFile[Econ3]=$G174))*T_DataComboFile[2022/23 Baseline]*$B$3)","v":0},{"$f":"SUMPRODUCT(((T_DataComboFile[Implementation programme]=$G$3)*(T_DataComboFile[Econ3]=$G174))*T_DataComboFile[2022/23 Revised baseline]*$B$3)","v":0},0,{"$f":"SUMPRODUCT(((T_DataComboFile[Implementation programme]=$G$3)*(T_DataComboFile[Econ3]=$G174))*T_DataComboFile[2023/24 Baseline]*$B$3)","v":0},{"$f":"SUMPRODUCT(((T_DataComboFile[Implementation programme]=$G$3)*(T_DataComboFile[Econ3]=$G174))*T_DataComboFile[2023/24 Revised baseline]*$B$3)","v":0},0]
[0,5,null,null,null,null,"Goods and services",{"$f":"SUMPRODUCT(((T_DataComboFile[Implementation programme]=$G$3)*(T_DataComboFile[Econ3]=$G175))*T_DataComboFile[2021/22 Baseline]*$B$3)","v":0},{"$f":"SUMPRODUCT(((T_DataComboFile[Implementation programme]=$G$3)*(T_DataComboFile[Econ3]=$G175))*T_DataComboFile[2021/22 Revised baseline]*$B$3)","v":0},0,{"$f":"SUMPRODUCT(((T_DataComboFile[Implementation programme]=$G$3)*(T_DataComboFile[Econ3]=$G175))*T_DataComboFile[2022/23 Baseline]*$B$3)","v":0},{"$f":"SUMPRODUCT(((T_DataComboFile[Implementation programme]=$G$3)*(T_DataComboFile[Econ3]=$G175))*T_DataComboFile[2022/23 Revised baseline]*$B$3)","v":0},0,{"$f":"SUMPRODUCT(((T_DataComboFile[Implementation programme]=$G$3)*(T_DataComboFile[Econ3]=$G175))*T_DataComboFile[2023/24 Baseline]*$B$3)","v":0},{"$f":"SUMPRODUCT(((T_DataComboFile[Implementation programme]=$G$3)*(T_DataComboFile[Econ3]=$G175))*T_DataComboFile[2023/24 Revised baseline]*$B$3)","v":0},0]
[0,50,null,null,null,null,"of which:"]
[0,51,null,null,null,null,null,null,null,{"$f":"I177-H177","v":0},null,null,{"$f":"L177-K177","v":0},null,null,0]
[0,51,null,null,null,null,null,null,null,0,null,null,0,null,null,0]
[0,51,null,null,null,null,null,null,null,0,null,null,0,null,null,0]
[0,51,null,null,null,null,null,null,null,0,null,null,0,null,null,0]
[0,51,null,null,null,null,null,null,null,0,null,null,0,null,null,0]
[0,5,null,null,null,null,"Interest and rent on land",{"$f":"SUMPRODUCT(((T_DataComboFile[Implementation programme]=$G$3)*(T_DataComboFile[Econ3]=$G182))*T_DataComboFile[2021/22 Baseline]*$B$3)","v":0},{"$f":"SUMPRODUCT(((T_DataComboFile[Implementation programme]=$G$3)*(T_DataComboFile[Econ3]=$G182))*T_DataComboFile[2021/22 Revised baseline]*$B$3)","v":0},0,{"$f":"SUMPRODUCT(((T_DataComboFile[Implementation programme]=$G$3)*(T_DataComboFile[Econ3]=$G182))*T_DataComboFile[2022/23 Baseline]*$B$3)","v":0},{"$f":"SUMPRODUCT(((T_DataComboFile[Implementation programme]=$G$3)*(T_DataComboFile[Econ3]=$G182))*T_DataComboFile[2022/23 Revised baseline]*$B$3)","v":0},0,{"$f":"SUMPRODUCT(((T_DataComboFile[Implementation programme]=$G$3)*(T_DataComboFile[Econ3]=$G182))*T_DataComboFile[2023/24 Baseline]*$B$3)","v":0},{"$f":"SUMPRODUCT(((T_DataComboFile[Implementation programme]=$G$3)*(T_DataComboFile[Econ3]=$G182))*T_DataComboFile[2023/24 Revised baseline]*$B$3)","v":0},0]
[0,5,null,null,null,null,"Transfers and subsidies",{"$f":"SUM(H184,H185,H197,H198,H199,H206,H207)","v":0},{"$f":"SUM(I184,I185,I197,I198,I199,I206,I207)","v":0},0,{"$f":"SUM(K184,K185,K197,K198,K199,K206,K207)","v":0},0,0,{"$f":"SUM(N184,N185,N197,N198,N199,N206,N207)","v":0},0,0]
[0,5,null,null,null,null,"Provinces and municipalities",{"$f":"SUMPRODUCT(((T_DataComboFile[Implementation programme]=$G$3)*(T_DataComboFile[Econ3]=$G184))*T_DataComboFile[2021/22 Baseline]*$B$3)","v":0},{"$f":"SUMPRODUCT(((T_DataComboFile[Implementation programme]=$G$3)*(T_DataComboFile[Econ3]=$G184))*T_DataComboFile[2021/22 Revised baseline]*$B$3)","v":0},0,{"$f":"SUMPRODUCT(((T_DataComboFile[Implementation programme]=$G$3)*(T_DataComboFile[Econ3]=$G184))*T_DataComboFile[2022/23 Baseline]*$B$3)","v":0},{"$f":"SUMPRODUCT(((T_DataComboFile[Implementation programme]=$G$3)*(T_DataComboFile[Econ3]=$G184))*T_DataComboFile[2022/23 Revised baseline]*$B$3)","v":0},0,{"$f":"SUMPRODUCT(((T_DataComboFile[Implementation programme]=$G$3)*(T_DataComboFile[Econ3]=$G184))*T_DataComboFile[2023/24 Baseline]*$B$3)","v":0},{"$f":"SUMPRODUCT(((T_DataComboFile[Implementation programme]=$G$3)*(T_DataComboFile[Econ3]=$G184))*T_DataComboFile[2023/24 Revised baseline]*$B$3)","v":0},0]
[0,5,null,null,null,null,"Departmental agencies and accounts",{"$f":"SUMPRODUCT(((T_DataComboFile[Implementation programme]=$G$3)*(T_DataComboFile[Econ3]=$G185))*T_DataComboFile[2021/22 Baseline]*$B$3)","v":0},{"$f":"SUMPRODUCT(((T_DataComboFile[Implementation programme]=$G$3)*(T_DataComboFile[Econ3]=$G185))*T_DataComboFile[2021/22 Revised baseline]*$B$3)","v":0},0,{"$f":"SUMPRODUCT(((T_DataComboFile[Implementation programme]=$G$3)*(T_DataComboFile[Econ3]=$G185))*T_DataComboFile[2022/23 Baseline]*$B$3)","v":0},{"$f":"SUMPRODUCT(((T_DataComboFile[Implementation programme]=$G$3)*(T_DataComboFile[Econ3]=$G185))*T_DataComboFile[2022/23 Revised baseline]*$B$3)","v":0},0,{"$f":"SUMPRODUCT(((T_DataComboFile[Implementation programme]=$G$3)*(T_DataComboFile[Econ3]=$G185))*T_DataComboFile[2023/24 Baseline]*$B$3)","v":0},{"$f":"SUMPRODUCT(((T_DataComboFile[Implementation programme]=$G$3)*(T_DataComboFile[Econ3]=$G185))*T_DataComboFile[2023/24 Revised baseline]*$B$3)","v":0},0]
[0,50,null,null,null,null,"of which:"]
[0,52,null,null,null,null,null,null,null,{"$f":"I187-H187","v":0},null,null,{"$f":"L187-K187","v":0},null,null,{"$f":"O187-N187","v":0}]
[0,52,null,null,null,null,null,null,null,0,null,null,0,null,null,0]
[0,52,null,null,null,null,null,null,null,0,null,null,0,null,null,0]
[0,52,null,null,null,null,null,null,null,0,null,null,0,null,null,0]
[0,52,null,null,null,null,null,null,null,0,null,null,0,null,null,0]
[0,52,null,null,null,null,null,null,null,0,null,null,0,null,null,0]
[0,52,null,null,null,null,null,null,null,0,null,null,0,null,null,0]
[0,52,null,null,null,null,null,null,null,0,null,null,0,null,null,0]
[0,52,null,null,null,null,null,null,null,0,null,null,0,null,null,0]
[0,52,null,null,null,null,null,null,null,0,null,null,0,null,null,0]
[0,5,null,null,null,null,"Higher education institutions",{"$f":"SUMPRODUCT(((T_DataComboFile[Implementation programme]=$G$3)*(T_DataComboFile[Econ3]=$G197))*T_DataComboFile[2021/22 Baseline]*$B$3)","v":0},{"$f":"SUMPRODUCT(((T_DataComboFile[Implementation programme]=$G$3)*(T_DataComboFile[Econ3]=$G197))*T_DataComboFile[2021/22 Revised baseline]*$B$3)","v":0},0,{"$f":"SUMPRODUCT(((T_DataComboFile[Implementation programme]=$G$3)*(T_DataComboFile[Econ3]=$G197))*T_DataComboFile[2022/23 Baseline]*$B$3)","v":0},{"$f":"SUMPRODUCT(((T_DataComboFile[Implementation programme]=$G$3)*(T_DataComboFile[Econ3]=$G197))*T_DataComboFile[2022/23 Revised baseline]*$B$3)","v":0},0,{"$f":"SUMPRODUCT(((T_DataComboFile[Implementation programme]=$G$3)*(T_DataComboFile[Econ3]=$G197))*T_DataComboFile[2023/24 Baseline]*$B$3)","v":0},{"$f":"SUMPRODUCT(((T_DataComboFile[Implementation programme]=$G$3)*(T_DataComboFile[Econ3]=$G197))*T_DataComboFile[2023/24 Revised baseline]*$B$3)","v":0},0]
[0,5,null,null,null,null,"Foreign governments and international organisations",{"$f":"SUMPRODUCT(((T_DataComboFile[Implementation programme]=$G$3)*(T_DataComboFile[Econ3]=$G198))*T_DataComboFile[2021/22 Baseline]*$B$3)","v":0},{"$f":"SUMPRODUCT(((T_DataComboFile[Implementation programme]=$G$3)*(T_DataComboFile[Econ3]=$G198))*T_DataComboFile[2021/22 Revised baseline]*$B$3)","v":0},0,{"$f":"SUMPRODUCT(((T_DataComboFile[Implementation programme]=$G$3)*(T_DataComboFile[Econ3]=$G198))*T_DataComboFile[2022/23 Baseline]*$B$3)","v":0},{"$f":"SUMPRODUCT(((T_DataComboFile[Implementation programme]=$G$3)*(T_DataComboFile[Econ3]=$G198))*T_DataComboFile[2022/23 Revised baseline]*$B$3)","v":0},0,{"$f":"SUMPRODUCT(((T_DataComboFile[Implementation programme]=$G$3)*(T_DataComboFile[Econ3]=$G198))*T_DataComboFile[2023/24 Baseline]*$B$3)","v":0},{"$f":"SUMPRODUCT(((T_DataComboFile[Implementation programme]=$G$3)*(T_DataComboFile[Econ3]=$G198))*T_DataComboFile[2023/24 Revised baseline]*$B$3)","v":0},0]
[0,5,null,null,null,null,"Public corporations and private enterprises",{"$f":"SUMPRODUCT(((T_DataComboFile[Implementation programme]=$G$3)*(T_DataComboFile[Econ3]=$G199))*T_DataComboFile[2021/22 Baseline]*$B$3)","v":0},{"$f":"SUMPRODUCT(((T_DataComboFile[Implementation programme]=$G$3)*(T_DataComboFile[Econ3]=$G199))*T_DataComboFile[2021/22 Revised baseline]*$B$3)","v":0},0,{"$f":"SUMPRODUCT(((T_DataComboFile[Implementation programme]=$G$3)*(T_DataComboFile[Econ3]=$G199))*T_DataComboFile[2022/23 Baseline]*$B$3)","v":0},{"$f":"SUMPRODUCT(((T_DataComboFile[Implementation programme]=$G$3)*(T_DataComboFile[Econ3]=$G199))*T_DataComboFile[2022/23 Revised baseline]*$B$3)","v":0},0,{"$f":"SUMPRODUCT(((T_DataComboFile[Implementation programme]=$G$3)*(T_DataComboFile[Econ3]=$G199))*T_DataComboFile[2023/24 Baseline]*$B$3)","v":0},{"$f":"SUMPRODUCT(((T_DataComboFile[Implementation programme]=$G$3)*(T_DataComboFile[Econ3]=$G199))*T_DataComboFile[2023/24 Revised baseline]*$B$3)","v":0},0]
[0,50,null,null,null,null,"of which:"]
[0,53,null,null,null,null,null,null,null,{"$f":"I201-H201","v":0},null,null,{"$f":"L201-K201","v":0},null,null,{"$f":"O201-N201","v":0}]
[0,53,null,null,null,null,null,null,null,0,null,null,0,null,null,0]
[0,53,null,null,null,null,null,null,null,0,null,null,0,null,null,0]
[0,53,null,null,null,null,null,null,null,0,null,null,0,null,null,0]
[0,53,null,null,null,null,null,null,null,0,null,null,0,null,null,0]
[0,5,null,null,null,null,"Non-profit institutions",{"$f":"SUMPRODUCT(((T_DataComboFile[Implementation programme]=$G$3)*(T_DataComboFile[Econ3]=$G206))*T_DataComboFile[2021/22 Baseline]*$B$3)","v":0},{"$f":"SUMPRODUCT(((T_DataComboFile[Implementation programme]=$G$3)*(T_DataComboFile[Econ3]=$G206))*T_DataComboFile[2021/22 Revised baseline]*$B$3)","v":0},0,{"$f":"SUMPRODUCT(((T_DataComboFile[Implementation programme]=$G$3)*(T_DataComboFile[Econ3]=$G206))*T_DataComboFile[2022/23 Baseline]*$B$3)","v":0},{"$f":"SUMPRODUCT(((T_DataComboFile[Implementation programme]=$G$3)*(T_DataComboFile[Econ3]=$G206))*T_DataComboFile[2022/23 Revised baseline]*$B$3)","v":0},0,{"$f":"SUMPRODUCT(((T_DataComboFile[Implementation programme]=$G$3)*(T_DataComboFile[Econ3]=$G206))*T_DataComboFile[2023/24 Baseline]*$B$3)","v":0},{"$f":"SUMPRODUCT(((T_DataComboFile[Implementation programme]=$G$3)*(T_DataComboFile[Econ3]=$G206))*T_DataComboFile[2023/24 Revised baseline]*$B$3)","v":0},0]
[0,5,null,null,null,null,"Households",{"$f":"SUMPRODUCT(((T_DataComboFile[Implementation programme]=$G$3)*(T_DataComboFile[Econ3]=$G207))*T_DataComboFile[2021/22 Baseline]*$B$3)","v":0},{"$f":"SUMPRODUCT(((T_DataComboFile[Implementation programme]=$G$3)*(T_DataComboFile[Econ3]=$G207))*T_DataComboFile[2021/22 Revised baseline]*$B$3)","v":0},0,{"$f":"SUMPRODUCT(((T_DataComboFile[Implementation programme]=$G$3)*(T_DataComboFile[Econ3]=$G207))*T_DataComboFile[2022/23 Baseline]*$B$3)","v":0},{"$f":"SUMPRODUCT(((T_DataComboFile[Implementation programme]=$G$3)*(T_DataComboFile[Econ3]=$G207))*T_DataComboFile[2022/23 Revised baseline]*$B$3)","v":0},0,{"$f":"SUMPRODUCT(((T_DataComboFile[Implementation programme]=$G$3)*(T_DataComboFile[Econ3]=$G207))*T_DataComboFile[2023/24 Baseline]*$B$3)","v":0},{"$f":"SUMPRODUCT(((T_DataComboFile[Implementation programme]=$G$3)*(T_DataComboFile[Econ3]=$G207))*T_DataComboFile[2023/24 Revised baseline]*$B$3)","v":0},0]
[0,5,null,null,null,null,"Payments for capital assets",{"$f":"SUM(H209:H215)","v":0},0,0,0,0,0,0,{"$f":"SUM(O209:O215)","v":0},0]
[0,5,null,null,null,null,"Buildings and other fixed structures",{"$f":"SUMPRODUCT(((T_DataComboFile[Implementation programme]=$G$3)*(T_DataComboFile[Econ3]=$G209))*T_DataComboFile[2021/22 Baseline]*$B$3)","v":0},{"$f":"SUMPRODUCT(((T_DataComboFile[Implementation programme]=$G$3)*(T_DataComboFile[Econ3]=$G209))*T_DataComboFile[2021/22 Revised baseline]*$B$3)","v":0},0,{"$f":"SUMPRODUCT(((T_DataComboFile[Implementation programme]=$G$3)*(T_DataComboFile[Econ3]=$G209))*T_DataComboFile[2022/23 Baseline]*$B$3)","v":0},{"$f":"SUMPRODUCT(((T_DataComboFile[Implementation programme]=$G$3)*(T_DataComboFile[Econ3]=$G209))*T_DataComboFile[2022/23 Revised baseline]*$B$3)","v":0},0,{"$f":"SUMPRODUCT(((T_DataComboFile[Implementation programme]=$G$3)*(T_DataComboFile[Econ3]=$G209))*T_DataComboFile[2023/24 Baseline]*$B$3)","v":0},{"$f":"SUMPRODUCT(((T_DataComboFile[Implementation programme]=$G$3)*(T_DataComboFile[Econ3]=$G209))*T_DataComboFile[2023/24 Revised baseline]*$B$3)","v":0},0]
[0,5,null,null,null,null,"Machinery and equipment",{"$f":"SUMPRODUCT(((T_DataComboFile[Implementation programme]=$G$3)*(T_DataComboFile[Econ3]=$G210))*T_DataComboFile[2021/22 Baseline]*$B$3)","v":0},{"$f":"SUMPRODUCT(((T_DataComboFile[Implementation programme]=$G$3)*(T_DataComboFile[Econ3]=$G210))*T_DataComboFile[2021/22 Revised baseline]*$B$3)","v":0},0,{"$f":"SUMPRODUCT(((T_DataComboFile[Implementation programme]=$G$3)*(T_DataComboFile[Econ3]=$G210))*T_DataComboFile[2022/23 Baseline]*$B$3)","v":0},{"$f":"SUMPRODUCT(((T_DataComboFile[Implementation programme]=$G$3)*(T_DataComboFile[Econ3]=$G210))*T_DataComboFile[2022/23 Revised baseline]*$B$3)","v":0},0,{"$f":"SUMPRODUCT(((T_DataComboFile[Implementation programme]=$G$3)*(T_DataComboFile[Econ3]=$G210))*T_DataComboFile[2023/24 Baseline]*$B$3)","v":0},{"$f":"SUMPRODUCT(((T_DataComboFile[Implementation programme]=$G$3)*(T_DataComboFile[Econ3]=$G210))*T_DataComboFile[2023/24 Revised baseline]*$B$3)","v":0},0]
[0,5,null,null,null,null,"Heritage assets",{"$f":"SUMPRODUCT(((T_DataComboFile[Implementation programme]=$G$3)*(T_DataComboFile[Econ3]=$G211))*T_DataComboFile[2021/22 Baseline]*$B$3)","v":0},{"$f":"SUMPRODUCT(((T_DataComboFile[Implementation programme]=$G$3)*(T_DataComboFile[Econ3]=$G211))*T_DataComboFile[2021/22 Revised baseline]*$B$3)","v":0},0,{"$f":"SUMPRODUCT(((T_DataComboFile[Implementation programme]=$G$3)*(T_DataComboFile[Econ3]=$G211))*T_DataComboFile[2022/23 Baseline]*$B$3)","v":0},{"$f":"SUMPRODUCT(((T_DataComboFile[Implementation programme]=$G$3)*(T_DataComboFile[Econ3]=$G211))*T_DataComboFile[2022/23 Revised baseline]*$B$3)","v":0},0,{"$f":"SUMPRODUCT(((T_DataComboFile[Implementation programme]=$G$3)*(T_DataComboFile[Econ3]=$G211))*T_DataComboFile[2023/24 Baseline]*$B$3)","v":0},{"$f":"SUMPRODUCT(((T_DataComboFile[Implementation programme]=$G$3)*(T_DataComboFile[Econ3]=$G211))*T_DataComboFile[2023/24 Revised baseline]*$B$3)","v":0},0]
[0,5,null,null,null,null,"Specialised military assets",{"$f":"SUMPRODUCT(((T_DataComboFile[Implementation programme]=$G$3)*(T_DataComboFile[Econ3]=$G212))*T_DataComboFile[2021/22 Baseline]*$B$3)","v":0},{"$f":"SUMPRODUCT(((T_DataComboFile[Implementation programme]=$G$3)*(T_DataComboFile[Econ3]=$G212))*T_DataComboFile[2021/22 Revised baseline]*$B$3)","v":0},0,{"$f":"SUMPRODUCT(((T_DataComboFile[Implementation programme]=$G$3)*(T_DataComboFile[Econ3]=$G212))*T_DataComboFile[2022/23 Baseline]*$B$3)","v":0},{"$f":"SUMPRODUCT(((T_DataComboFile[Implementation programme]=$G$3)*(T_DataComboFile[Econ3]=$G212))*T_DataComboFile[2022/23 Revised baseline]*$B$3)","v":0},0,{"$f":"SUMPRODUCT(((T_DataComboFile[Implementation programme]=$G$3)*(T_DataComboFile[Econ3]=$G212))*T_DataComboFile[2023/24 Baseline]*$B$3)","v":0},{"$f":"SUMPRODUCT(((T_DataComboFile[Implementation programme]=$G$3)*(T_DataComboFile[Econ3]=$G212))*T_DataComboFile[2023/24 Revised baseline]*$B$3)","v":0},0]
[0,5,null,null,null,null,"Biological assets",{"$f":"SUMPRODUCT(((T_DataComboFile[Implementation programme]=$G$3)*(T_DataComboFile[Econ3]=$G213))*T_DataComboFile[2021/22 Baseline]*$B$3)","v":0},{"$f":"SUMPRODUCT(((T_DataComboFile[Implementation programme]=$G$3)*(T_DataComboFile[Econ3]=$G213))*T_DataComboFile[2021/22 Revised baseline]*$B$3)","v":0},0,{"$f":"SUMPRODUCT(((T_DataComboFile[Implementation programme]=$G$3)*(T_DataComboFile[Econ3]=$G213))*T_DataComboFile[2022/23 Baseline]*$B$3)","v":0},{"$f":"SUMPRODUCT(((T_DataComboFile[Implementation programme]=$G$3)*(T_DataComboFile[Econ3]=$G213))*T_DataComboFile[2022/23 Revised baseline]*$B$3)","v":0},0,{"$f":"SUMPRODUCT(((T_DataComboFile[Implementation programme]=$G$3)*(T_DataComboFile[Econ3]=$G213))*T_DataComboFile[2023/24 Baseline]*$B$3)","v":0},{"$f":"SUMPRODUCT(((T_DataComboFile[Implementation programme]=$G$3)*(T_DataComboFile[Econ3]=$G213))*T_DataComboFile[2023/24 Revised baseline]*$B$3)","v":0},0]
[0,5,null,null,null,null,"Land and sub-soil assets",{"$f":"SUMPRODUCT(((T_DataComboFile[Implementation programme]=$G$3)*(T_DataComboFile[Econ3]=$G214))*T_DataComboFile[2021/22 Baseline]*$B$3)","v":0},{"$f":"SUMPRODUCT(((T_DataComboFile[Implementation programme]=$G$3)*(T_DataComboFile[Econ3]=$G214))*T_DataComboFile[2021/22 Revised baseline]*$B$3)","v":0},0,{"$f":"SUMPRODUCT(((T_DataComboFile[Implementation programme]=$G$3)*(T_DataComboFile[Econ3]=$G214))*T_DataComboFile[2022/23 Baseline]*$B$3)","v":0},{"$f":"SUMPRODUCT(((T_DataComboFile[Implementation programme]=$G$3)*(T_DataComboFile[Econ3]=$G214))*T_DataComboFile[2022/23 Revised baseline]*$B$3)","v":0},0,{"$f":"SUMPRODUCT(((T_DataComboFile[Implementation programme]=$G$3)*(T_DataComboFile[Econ3]=$G214))*T_DataComboFile[2023/24 Baseline]*$B$3)","v":0},{"$f":"SUMPRODUCT(((T_DataComboFile[Implementation programme]=$G$3)*(T_DataComboFile[Econ3]=$G214))*T_DataComboFile[2023/24 Revised baseline]*$B$3)","v":0},0]
[0,5,null,null,null,null,"Software and other intangible assets",{"$f":"SUMPRODUCT(((T_DataComboFile[Implementation programme]=$G$3)*(T_DataComboFile[Econ3]=$G215))*T_DataComboFile[2021/22 Baseline]*$B$3)","v":0},{"$f":"SUMPRODUCT(((T_DataComboFile[Implementation programme]=$G$3)*(T_DataComboFile[Econ3]=$G215))*T_DataComboFile[2021/22 Revised baseline]*$B$3)","v":0},0,{"$f":"SUMPRODUCT(((T_DataComboFile[Implementation programme]=$G$3)*(T_DataComboFile[Econ3]=$G215))*T_DataComboFile[2022/23 Baseline]*$B$3)","v":0},{"$f":"SUMPRODUCT(((T_DataComboFile[Implementation programme]=$G$3)*(T_DataComboFile[Econ3]=$G215))*T_DataComboFile[2022/23 Revised baseline]*$B$3)","v":0},0,{"$f":"SUMPRODUCT(((T_DataComboFile[Implementation programme]=$G$3)*(T_DataComboFile[Econ3]=$G215))*T_DataComboFile[2023/24 Baseline]*$B$3)","v":0},{"$f":"SUMPRODUCT(((T_DataComboFile[Implementation programme]=$G$3)*(T_DataComboFile[Econ3]=$G215))*T_DataComboFile[2023/24 Revised baseline]*$B$3)","v":0},0]
[0,5,null,null,null,null,"Payments for financial assets",{"$f":"SUMPRODUCT(((T_DataComboFile[Implementation programme]=$G$3)*(T_DataComboFile[Econ3]=$G216))*T_DataComboFile[2021/22 Baseline]*$B$3)","v":0},{"$f":"SUMPRODUCT(((T_DataComboFile[Implementation programme]=$G$3)*(T_DataComboFile[Econ3]=$G216))*T_DataComboFile[2021/22 Revised baseline]*$B$3)","v":0},0,{"$f":"SUMPRODUCT(((T_DataComboFile[Implementation programme]=$G$3)*(T_DataComboFile[Econ3]=$G216))*T_DataComboFile[2022/23 Baseline]*$B$3)","v":0},{"$f":"SUMPRODUCT(((T_DataComboFile[Implementation programme]=$G$3)*(T_DataComboFile[Econ3]=$G216))*T_DataComboFile[2022/23 Revised baseline]*$B$3)","v":0},0,{"$f":"SUMPRODUCT(((T_DataComboFile[Implementation programme]=$G$3)*(T_DataComboFile[Econ3]=$G216))*T_DataComboFile[2023/24 Baseline]*$B$3)","v":0},{"$f":"SUMPRODUCT(((T_DataComboFile[Implementation programme]=$G$3)*(T_DataComboFile[Econ3]=$G216))*T_DataComboFile[2023/24 Revised baseline]*$B$3)","v":0},0]
[0,5,null,null,null,null,"Total",{"$f":"SUM(H173,H183,H208,H216)","v":0},0,0,0,0,0,0,{"$f":"SUM(O173,O183,O208,O216)","v":0},0]
[]
[null,null,null,null,null,null,null,{"$f":"L65-H217","v":0},{"$f":"O65-I217","v":0},null,{"$f":"P65-K217","v":0},{"$f":"S65-L217","v":0},null,{"$f":"T65-N217","v":0},{"$f":"W65-O217","v":0}]

{"sheet":"IP9","index":18,"n_rows":219,"n_cols":23,"rows_kept":219,"cut":false,"hidden":false,"merged":[[70,6,70,17],[73,6,87,17],[94,16,94,20],[94,21,94,23],[95,16,95,20],[95,21,95,23],[99,16,99,20],[99,21,99,23],[100,16,100,20],[100,21,100,23],[101,16,101,20],[101,21,101,23],[96,16,96,20],[96,21,96,23],[97,16,97,20],[97,21,97,23],[98,16,98,20],[98,21,98,23],[105,16,105,20],[105,21,105,23],[106,16,106,20],[106,21,106,23],[107,16,107,20],[107,21,107,23],[102,16,102,20],[102,21,102,23],[103,16,103,20],[103,21,103,23],[104,16,104,20],[104,21,104,23],[117,16,117,20],[118,16,118,20],[119,16,119,20],[120,16,120,20],[121,16,121,20],[122,16,122,20],[108,16,108,20],[108,21,108,23],[109,16,109,20],[109,21,109,23],[110,16,110,20],[110,21,110,23],[129,16,129,20],[130,16,130,20],[131,16,131,20],[132,16,132,20],[133,16,133,20],[141,16,141,20],[123,16,123,20],[124,16,124,20],[125,16,125,20],[126,16,126,20],[127,16,127,20],[128,16,128,20],[174,16,174,20],[175,16,175,20],[176,16,176,20],[177,16,177,20],[178,16,178,20],[179,16,179,20],[142,16,142,20],[143,16,162,20],[170,16,170,20],[171,16,171,20],[172,16,172,20],[173,16,173,20],[186,16,186,20],[187,16,187,20],[188,16,188,20],[189,16,189,20],[190,16,190,20],[191,16,191,20],[180,16,180,20],[181,16,181,20],[182,16,182,20],[183,16,183,20],[184,16,184,20],[185,16,185,20],[198,16,198,20],[199,16,199,20],[200,16,200,20],[201,16,201,20],[202,16,202,20],[203,16,203,20],[192,16,192,20],[193,16,193,20],[194,16,194,20],[195,16,195,20],[196,16,196,20],[197,16,197,20],[210,16,210,20],[211,16,211,20],[212,16,212,20],[213,16,213,20],[214,16,214,20],[215,16,215,20],[204,16,204,20],[205,16,205,20],[206,16,206,20],[207,16,207,20],[208,16,208,20],[209,16,209,20]]}
[]
[null,null,null,null,null,null,"Implementation programme:"]
[null,{"$f":"IF(G3=\"\",0,1)","v":0},null,null,null,9,null,"… select from dropdown list"]
[null,null,null,null,null,null,null,null,null,null,null,null,"Growth"]
[null,null,null,null,null,null,"Quick view","2020/21","2021/22","2022/23","2023/24","Trend","2021/22","2022/23","2023/24","Ave Ann",null,"2020/21","2021/22","2022/23","2023/24"]
[null,null,null,null,null,null,"Compensation of employees",{"$f":"SUMPRODUCT(($G$32:$G$65=$G6)*($K$32:$K$65))","v":0},{"$f":"SUMPRODUCT(($G$32:$G$65=$G6)*($O$32:$O$65))","v":0},{"$f":"SUMPRODUCT(($G$32:$G$65=$G6)*($S$32:$S$65))","v":0},{"$f":"SUMPRODUCT(($G$32:$G$65=$G6)*($W$32:$W$65))","v":0},null,{"$f":"IFERROR(I6/H6-1,0)","v":0},0,0,{"$f":"IFERROR(((K6/H6)^(1/3)-1),0)","v":0}]
[null,null,null,null,null,null,"Goods and services",{"$f":"SUMPRODUCT(($G$32:$G$65=$G7)*($K$32:$K$65))","v":0},{"$f":"SUMPRODUCT(($G$32:$G$65=$G7)*($O$32:$O$65))","v":0},{"$f":"SUMPRODUCT(($G$32:$G$65=$G7)*($S$32:$S$65))","v":0},{"$f":"SUMPRODUCT(($G$32:$G$65=$G7)*($W$32:$W$65))","v":0},null,0,0,0,0]
[null,null,null,null,null,null,"Transfers and subsidies",{"$f":"SUMPRODUCT(($G$32:$G$65=$G8)*($K$32:$K$65))","v":0},{"$f":"SUMPRODUCT(($G$32:$G$65=$G8)*($O$32:$O$65))","v":0},{"$f":"SUMPRODUCT(($G$32:$G$65=$G8)*($S$32:$S$65))","v":0},{"$f":"SUMPRODUCT(($G$32:$G$65=$G8)*($W$32:$W$65))","v":0},null,0,0,0,0]
[null,null,null,null,null,null,"Payments for capital assets",{"$f":"SUMPRODUCT(($G$32:$G$65=$G9)*($K$32:$K$65))","v":0},{"$f":"SUMPRODUCT(($G$32:$G$65=$G9)*($O$32:$O$65))","v":0},{"$f":"SUMPRODUCT(($G$32:$G$65=$G9)*($S$32:$S$65))","v":0},{"$f":"SUMPRODUCT(($G$32:$G$65=$G9)*($W$32:$W$65))","v":0},null,0,0,0,0]
[null,null,null,null,null,null,"Total",{"$f":"SUMPRODUCT(($G$32:$G$65=$G10)*($K$32:$K$65))","v":0},{"$f":"SUMPRODUCT(($G$32:$G$65=$G10)*($O$32:$O$65))","v":0},{"$f":"SUMPRODUCT(($G$32:$G$65=$G10)*($S$32:$S$65))","v":0},{"$f":"SUMPRODUCT(($G$32:$G$65=$G10)*($W$32:$W$65))","v":0},null,0,0,0,0]
[null,null,null,null,null,null,"Composition of spending (% of Total)"]
[null,null,null,null,null,null,"Compensation of employees",{"$f":"IFERROR(H6/H$10,\"\")","v":""},"","","",null,null,null,null,null,null,{"$f":"IF(H12>0.0595,H12,\"\")","v":""},"","",""]
[null,null,null,null,null,null,"Goods and services","","","","",null,null,null,null,null,null,"","","",""]
[null,null,null,null,null,null,"Transfers and subsidies","","","","",null,null,null,null,null,null,"","","",""]
[null,null,null,null,null,null,"Payments for capital assets","","","","",null,null,null,null,null,null,"","","",""]
[]
[null,null,null,null,null,null,"Division of Revenue","2020/21","2021/22","2022/23","2023/24","Trend","2021/22","2022/23","2023/24","Ave Ann"]
[{"$f":"$G$3","v":0},"NAT",null,null,null,null,"National",{"$f":"SUMPRODUCT(((T_DataComboFile[Implementation programme]=$G$3)*(T_DataComboFile[DOR]=$B18))*T_DataComboFile[2020/21 Revised])","v":2331086},{"$f":"SUMPRODUCT(((T_DataComboFile[Implementation programme]=$G$3)*(T_DataComboFile[DOR]=$B18))*T_DataComboFile[2021/22 Revised baseline])","v":2583809},{"$f":"SUMPRODUCT(((T_DataComboFile[Implementation programme]=$G$3)*(T_DataComboFile[DOR]=$B18))*T_DataComboFile[2022/23 Revised baseline])","v":2617960},{"$f":"SUMPRODUCT(((T_DataComboFile[Implementation programme]=$G$3)*(T_DataComboFile[DOR]=$B18))*T_DataComboFile[2023/24 Revised baseline])","v":2733345},null,{"$f":"IFERROR(I18/H18-1,0)","v":0.10841427557799244},{"$f":"IFERROR(J18/I18-1,0)","v":1.3217308245307535E-2},{"$f":"IFERROR(K18/J18-1,0)","v":4.4074393802808309E-2},{"$f":"IFERROR(((K18/H18)^(1/3)-1),0)","v":5.449708876349435E-2}]
[0,null,null,null,null,null,"Provincial",{"$f":"SUM(H20:H21)","v":0},0,0,0,null,0,0,0,0]
[0,"PES",null,null,null,null,"Provincial equitable share",{"$f":"SUMPRODUCT(((T_DataComboFile[Implementation programme]=$G$3)*(T_DataComboFile[DOR]=$B20))*T_DataComboFile[2020/21 Revised])","v":0},{"$f":"SUMPRODUCT(((T_DataComboFile[Implementation programme]=$G$3)*(T_DataComboFile[DOR]=$B20))*T_DataComboFile[2021/22 Revised baseline])","v":0},{"$f":"SUMPRODUCT(((T_DataComboFile[Implementation programme]=$G$3)*(T_DataComboFile[DOR]=$B20))*T_DataComboFile[2022/23 Revised baseline])","v":0},{"$f":"SUMPRODUCT(((T_DataComboFile[Implementation programme]=$G$3)*(T_DataComboFile[DOR]=$B20))*T_DataComboFile[2023/24 Revised baseline])","v":0},null,{"$f":"IFERROR(I20/H20-1,0)","v":0},0,0,{"$f":"IFERROR(((K20/H20)^(1/3)-1),0)","v":0}]
[0,"PCG",null,null,null,null,"Provincial conditional grants",{"$f":"SUMPRODUCT(((T_DataComboFile[Implementation programme]=$G$3)*(T_DataComboFile[DOR]=$B21))*T_DataComboFile[2020/21 Revised])","v":0},{"$f":"SUMPRODUCT(((T_DataComboFile[Implementation programme]=$G$3)*(T_DataComboFile[DOR]=$B21))*T_DataComboFile[2021/22 Revised baseline])","v":0},{"$f":"SUMPRODUCT(((T_DataComboFile[Implementation programme]=$G$3)*(T_DataComboFile[DOR]=$B21))*T_DataComboFile[2022/23 Revised baseline])","v":0},{"$f":"SUMPRODUCT(((T_DataComboFile[Implementation programme]=$G$3)*(T_DataComboFile[DOR]=$B21))*T_DataComboFile[2023/24 Revised baseline])","v":0},null,0,0,0,0]
[0,null,null,null,null,null,"Local government",{"$f":"SUM(H23:H25)","v":0},0,0,0,null,{"$f":"IFERROR(I22/H22-1,0)","v":0},{"$f":"IFERROR(J22/I22-1,0)","v":0},{"$f":"IFERROR(K22/J22-1,0)","v":0},{"$f":"IFERROR(((K22/H22)^(1/3)-1),0)","v":0}]
[0,"LES",null,null,null,null,"Local equitable share",{"$f":"SUMPRODUCT(((T_DataComboFile[Implementation programme]=$G$3)*(T_DataComboFile[DOR]=$B23))*T_DataComboFile[2020/21 Revised])","v":0},{"$f":"SUMPRODUCT(((T_DataComboFile[Implementation programme]=$G$3)*(T_DataComboFile[DOR]=$B23))*T_DataComboFile[2021/22 Revised baseline])","v":0},{"$f":"SUMPRODUCT(((T_DataComboFile[Implementation programme]=$G$3)*(T_DataComboFile[DOR]=$B23))*T_DataComboFile[2022/23 Revised baseline])","v":0},{"$f":"SUMPRODUCT(((T_DataComboFile[Implementation programme]=$G$3)*(T_DataComboFile[DOR]=$B23))*T_DataComboFile[2023/24 Revised baseline])","v":0},null,{"$f":"IFERROR(I23/H23-1,0)","v":0},0,0,{"$f":"IFERROR(((K23/H23)^(1/3)-1),0)","v":0}]
[0,"LCG",null,null,null,null,"Local conditional grants",{"$f":"SUMPRODUCT(((T_DataComboFile[Implementation programme]=$G$3)*(T_DataComboFile[DOR]=$B24))*T_DataComboFile[2020/21 Revised])","v":0},{"$f":"SUMPRODUCT(((T_DataComboFile[Implementation programme]=$G$3)*(T_DataComboFile[DOR]=$B24))*T_DataComboFile[2021/22 Revised baseline])","v":0},{"$f":"SUMPRODUCT(((T_DataComboFile[Implementation programme]=$G$3)*(T_DataComboFile[DOR]=$B24))*T_DataComboFile[2022/23 Revised baseline])","v":0},{"$f":"SUMPRODUCT(((T_DataComboFile[Implementation programme]=$G$3)*(T_DataComboFile[DOR]=$B24))*T_DataComboFile[2023/24 Revised baseline])","v":0},null,0,0,0,0]
[0,"GFL",null,null,null,null,"General fuel levy ",{"$f":"SUMPRODUCT(((T_DataComboFile[Implementation programme]=$G$3)*(T_DataComboFile[DOR]=$B25))*T_DataComboFile[2020/21 Revised])","v":0},{"$f":"SUMPRODUCT(((T_DataComboFile[Implementation programme]=$G$3)*(T_DataComboFile[DOR]=$B25))*T_DataComboFile[2021/22 Revised baseline])","v":0},{"$f":"SUMPRODUCT(((T_DataComboFile[Implementation programme]=$G$3)*(T_DataComboFile[DOR]=$B25))*T_DataComboFile[2022/23 Revised baseline])","v":0},{"$f":"SUMPRODUCT(((T_DataComboFile[Implementation programme]=$G$3)*(T_DataComboFile[DOR]=$B25))*T_DataComboFile[2023/24 Revised baseline])","v":0},null,0,0,0,0]
[]
[]
[null,null,null,null,null,null,{"$f":"G3","v":0}]
[{"$f":"$G$3","v":0},0,null,null,null,null,null,"2017/18","2018/19","2019/20","2020/21","2021/22",null,null,null,"2022/23",null,null,null,"2023/24"]
[{"$f":"$G$3","v":0},0,null,null,null,null,"Rand thousand","Audited outcome","Audited outcome","Pre-audited outcome","Budget","Baseline","Decrease","Increase","Revised baseline","Baseline","Decrease","Increase","Revised baseline","Baseline","Decrease","Increase","Revised baseline"]
[0,0,null,null,null,null,"Economic classification"]
[0,0,null,null,null,null,"Current payments",{"$f":"SUM(H33:H35)","v":0},0,0,0,0,0,0,0,0,0,0,0,0,0,0,0]
[0,0,null,null,null,null,"Compensation of employees",{"$f":"SUMPRODUCT(((T_DataComboFile[Implementation programme]=$G$3)*(T_DataComboFile[Econ3]=$G33))*T_DataComboFile[2017/18]*$B$3)","v":0},{"$f":"SUMPRODUCT(((T_DataComboFile[Implementation programme]=$G$3)*(T_DataComboFile[Econ3]=$G33))*T_DataComboFile[2018/19]*$B$3)","v":0},{"$f":"SUMPRODUCT(((T_DataComboFile[Implementation programme]=$G$3)*(T_DataComboFile[Econ3]=$G33))*T_DataComboFile[2019/20 Revised estimate]*$B$3)","v":0},{"$f":"SUMPRODUCT(((T_DataComboFile[Implementation programme]=$G$3)*(T_DataComboFile[Econ3]=$G33))*T_DataComboFile[2020/21 Revised]*$B$3)","v":0},{"$f":"SUMPRODUCT(((T_DataComboFile[Implementation programme]=$G$3)*(T_DataComboFile[Econ3]=$G33))*T_DataComboFile[2021/22 Baseline]*$B$3)","v":0},{"$f":"SUMPRODUCT(((T_DataComboFile[Implementation programme]=$G$3)*(T_DataComboFile[Econ3]=$G33))*T_DataComboFile[2021/22 Reduction]*$B$3)","v":0},{"$f":"SUMPRODUCT(((T_DataComboFile[Implementation programme]=$G$3)*(T_DataComboFile[Econ3]=$G33))*T_DataComboFile[2021/22 Increase]*$B$3)","v":0},{"$f":"L33+M33+N33","v":0},{"$f":"SUMPRODUCT(((T_DataComboFile[Implementation programme]=$G$3)*(T_DataComboFile[Econ3]=$G33))*T_DataComboFile[2022/23 Baseline]*$B$3)","v":0},{"$f":"SUMPRODUCT(((T_DataComboFile[Implementation programme]=$G$3)*(T_DataComboFile[Econ3]=$G33))*T_DataComboFile[2022/23 Reduction]*$B$3)","v":0},{"$f":"SUMPRODUCT(((T_DataComboFile[Implementation programme]=$G$3)*(T_DataComboFile[Econ3]=$G33))*T_DataComboFile[2022/23 Increase]*$B$3)","v":0},{"$f":"P33+Q33+R33","v":0},{"$f":"SUMPRODUCT(((T_DataComboFile[Implementation programme]=$G$3)*(T_DataComboFile[Econ3]=$G33))*T_DataComboFile[2023/24 Baseline]*$B$3)","v":0},{"$f":"SUMPRODUCT(((T_DataComboFile[Implementation programme]=$G$3)*(T_DataComboFile[Econ3]=$G33))*T_DataComboFile[2023/24 Reduction]*$B$3)","v":0},{"$f":"SUMPRODUCT(((T_DataComboFile[Implementation programme]=$G$3)*(T_DataComboFile[Econ3]=$G33))*T_DataComboFile[2023/24 Increase]*$B$3)","v":0},{"$f":"T33+U33+V33","v":0}]
[0,0,null,null,null,null,"Goods and services",{"$f":"SUMPRODUCT(((T_DataComboFile[Implementation programme]=$G$3)*(T_DataComboFile[Econ3]=$G34))*T_DataComboFile[2017/18]*$B$3)","v":0},{"$f":"SUMPRODUCT(((T_DataComboFile[Implementation programme]=$G$3)*(T_DataComboFile[Econ3]=$G34))*T_DataComboFile[2018/19]*$B$3)","v":0},{"$f":"SUMPRODUCT(((T_DataComboFile[Implementation programme]=$G$3)*(T_DataComboFile[Econ3]=$G34))*T_DataComboFile[2019/20 Revised estimate]*$B$3)","v":0},{"$f":"SUMPRODUCT(((T_DataComboFile[Implementation programme]=$G$3)*(T_DataComboFile[Econ3]=$G34))*T_DataComboFile[2020/21 Revised]*$B$3)","v":0},{"$f":"SUMPRODUCT(((T_DataComboFile[Implementation programme]=$G$3)*(T_DataComboFile[Econ3]=$G34))*T_DataComboFile[2021/22 Baseline]*$B$3)","v":0},{"$f":"SUMPRODUCT(((T_DataComboFile[Implementation programme]=$G$3)*(T_DataComboFile[Econ3]=$G34))*T_DataComboFile[2021/22 Reduction]*$B$3)","v":0},{"$f":"SUMPRODUCT(((T_DataComboFile[Implementation programme]=$G$3)*(T_DataComboFile[Econ3]=$G34))*T_DataComboFile[2021/22 Increase]*$B$3)","v":0},0,{"$f":"SUMPRODUCT(((T_DataComboFile[Implementation programme]=$G$3)*(T_DataComboFile[Econ3]=$G34))*T_DataComboFile[2022/23 Baseline]*$B$3)","v":0},{"$f":"SUMPRODUCT(((T_DataComboFile[Implementation programme]=$G$3)*(T_DataComboFile[Econ3]=$G34))*T_DataComboFile[2022/23 Reduction]*$B$3)","v":0},{"$f":"SUMPRODUCT(((T_DataComboFile[Implementation programme]=$G$3)*(T_DataComboFile[Econ3]=$G34))*T_DataComboFile[2022/23 Increase]*$B$3)","v":0},0,{"$f":"SUMPRODUCT(((T_DataComboFile[Implementation programme]=$G$3)*(T_DataComboFile[Econ3]=$G34))*T_DataComboFile[2023/24 Baseline]*$B$3)","v":0},{"$f":"SUMPRODUCT(((T_DataComboFile[Implementation programme]=$G$3)*(T_DataComboFile[Econ3]=$G34))*T_DataComboFile[2023/24 Reduction]*$B$3)","v":0},{"$f":"SUMPRODUCT(((T_DataComboFile[Implementation programme]=$G$3)*(T_DataComboFile[Econ3]=$G34))*T_DataComboFile[2023/24 Increase]*$B$3)","v":0},0]
[0,0,null,null,null,null,"Interest and rent on land",{"$f":"SUMPRODUCT(((T_DataComboFile[Implementation programme]=$G$3)*(T_DataComboFile[Econ3]=$G35))*T_DataComboFile[2017/18]*$B$3)","v":0},{"$f":"SUMPRODUCT(((T_DataComboFile[Implementation programme]=$G$3)*(T_DataComboFile[Econ3]=$G35))*T_DataComboFile[2018/19]*$B$3)","v":0},{"$f":"SUMPRODUCT(((T_DataComboFile[Implementation programme]=$G$3)*(T_DataComboFile[Econ3]=$G35))*T_DataComboFile[2019/20 Revised estimate]*$B$3)","v":0},{"$f":"SUMPRODUCT(((T_DataComboFile[Implementation programme]=$G$3)*(T_DataComboFile[Econ3]=$G35))*T_DataComboFile[2020/21 Revised]*$B$3)","v":0},{"$f":"SUMPRODUCT(((T_DataComboFile[Implementation programme]=$G$3)*(T_DataComboFile[Econ3]=$G35))*T_DataComboFile[2021/22 Baseline]*$B$3)","v":0},{"$f":"SUMPRODUCT(((T_DataComboFile[Implementation programme]=$G$3)*(T_DataComboFile[Econ3]=$G35))*T_DataComboFile[2021/22 Reduction]*$B$3)","v":0},{"$f":"SUMPRODUCT(((T_DataComboFile[Implementation programme]=$G$3)*(T_DataComboFile[Econ3]=$G35))*T_DataComboFile[2021/22 Increase]*$B$3)","v":0},0,{"$f":"SUMPRODUCT(((T_DataComboFile[Implementation programme]=$G$3)*(T_DataComboFile[Econ3]=$G35))*T_DataComboFile[2022/23 Baseline]*$B$3)","v":0},{"$f":"SUMPRODUCT(((T_DataComboFile[Implementation programme]=$G$3)*(T_DataComboFile[Econ3]=$G35))*T_DataComboFile[2022/23 Reduction]*$B$3)","v":0},{"$f":"SUMPRODUCT(((T_DataComboFile[Implementation programme]=$G$3)*(T_DataComboFile[Econ3]=$G35))*T_DataComboFile[2022/23 Increase]*$B$3)","v":0},0,{"$f":"SUMPRODUCT(((T_DataComboFile[Implementation programme]=$G$3)*(T_DataComboFile[Econ3]=$G35))*T_DataComboFile[2023/24 Baseline]*$B$3)","v":0},{"$f":"SUMPRODUCT(((T_DataComboFile[Implementation programme]=$G$3)*(T_DataComboFile[Econ3]=$G35))*T_DataComboFile[2023/24 Reduction]*$B$3)","v":0},{"$f":"SUMPRODUCT(((T_DataComboFile[Implementation programme]=$G$3)*(T_DataComboFile[Econ3]=$G35))*T_DataComboFile[2023/24 Increase]*$B$3)","v":0},0]
[0,0,null,null,null,null,"Transfers and subsidies",{"$f":"SUM(H37,H40,H43:H45,H48:H49)","v":0},0,0,0,0,0,0,0,0,0,0,0,0,0,0,0]
[0,0,null,null,null,null,"Provinces and municipalities",{"$f":"SUM(H38:H39)","v":0},0,0,0,0,0,0,0,0,0,0,0,0,0,0,0]
[0,0,null,null,null,null,"Provinces",{"$f":"SUMPRODUCT(((T_DataComboFile[Implementation programme]=$G$3)*(T_DataComboFile[Econ4]=$G38))*T_DataComboFile[2017/18]*$B$3)","v":0},{"$f":"SUMPRODUCT(((T_DataComboFile[Implementation programme]=$G$3)*(T_DataComboFile[Econ4]=$G38))*T_DataComboFile[2018/19]*$B$3)","v":0},{"$f":"SUMPRODUCT(((T_DataComboFile[Implementation programme]=$G$3)*(T_DataComboFile[Econ4]=$G38))*T_DataComboFile[2019/20 Revised estimate]*$B$3)","v":0},{"$f":"SUMPRODUCT(((T_DataComboFile[Implementation programme]=$G$3)*(T_DataComboFile[Econ4]=$G38))*T_DataComboFile[2020/21 Revised]*$B$3)","v":0},{"$f":"SUMPRODUCT(((T_DataComboFile[Implementation programme]=$G$3)*(T_DataComboFile[Econ4]=$G38))*T_DataComboFile[2021/22 Baseline]*$B$3)","v":0},{"$f":"SUMPRODUCT(((T_DataComboFile[Implementation programme]=$G$3)*(T_DataComboFile[Econ4]=$G38))*T_DataComboFile[2021/22 Reduction]*$B$3)","v":0},{"$f":"SUMPRODUCT(((T_DataComboFile[Implementation programme]=$G$3)*(T_DataComboFile[Econ4]=$G38))*T_DataComboFile[2021/22 Increase]*$B$3)","v":0},{"$f":"L38+M38+N38","v":0},{"$f":"SUMPRODUCT(((T_DataComboFile[Implementation programme]=$G$3)*(T_DataComboFile[Econ4]=$G38))*T_DataComboFile[2022/23 Baseline]*$B$3)","v":0},{"$f":"SUMPRODUCT(((T_DataComboFile[Implementation programme]=$G$3)*(T_DataComboFile[Econ4]=$G38))*T_DataComboFile[2022/23 Reduction]*$B$3)","v":0},{"$f":"SUMPRODUCT(((T_DataComboFile[Implementation programme]=$G$3)*(T_DataComboFile[Econ4]=$G38))*T_DataComboFile[2022/23 Increase]*$B$3)","v":0},{"$f":"P38+Q38+R38","v":0},{"$f":"SUMPRODUCT(((T_DataComboFile[Implementation programme]=$G$3)*(T_DataComboFile[Econ4]=$G38))*T_DataComboFile[2023/24 Baseline]*$B$3)","v":0},{"$f":"SUMPRODUCT(((T_DataComboFile[Implementation programme]=$G$3)*(T_DataComboFile[Econ4]=$G38))*T_DataComboFile[2023/24 Reduction]*$B$3)","v":0},{"$f":"SUMPRODUCT(((T_DataComboFile[Implementation programme]=$G$3)*(T_DataComboFile[Econ4]=$G38))*T_DataComboFile[2023/24 Increase]*$B$3)","v":0},{"$f":"T38+U38+V38","v":0}]
[0,0,null,null,null,null,"Municipalities",{"$f":"SUMPRODUCT(((T_DataComboFile[Implementation programme]=$G$3)*(T_DataComboFile[Econ4]=$G39))*T_DataComboFile[2017/18]*$B$3)","v":0},{"$f":"SUMPRODUCT(((T_DataComboFile[Implementation programme]=$G$3)*(T_DataComboFile[Econ4]=$G39))*T_DataComboFile[2018/19]*$B$3)","v":0},{"$f":"SUMPRODUCT(((T_DataComboFile[Implementation programme]=$G$3)*(T_DataComboFile[Econ4]=$G39))*T_DataComboFile[2019/20 Revised estimate]*$B$3)","v":0},{"$f":"SUMPRODUCT(((T_DataComboFile[Implementation programme]=$G$3)*(T_DataComboFile[Econ4]=$G39))*T_DataComboFile[2020/21 Revised]*$B$3)","v":0},{"$f":"SUMPRODUCT(((T_DataComboFile[Implementation programme]=$G$3)*(T_DataComboFile[Econ4]=$G39))*T_DataComboFile[2021/22 Baseline]*$B$3)","v":0},{"$f":"SUMPRODUCT(((T_DataComboFile[Implementation programme]=$G$3)*(T_DataComboFile[Econ4]=$G39))*T_DataComboFile[2021/22 Reduction]*$B$3)","v":0},{"$f":"SUMPRODUCT(((T_DataComboFile[Implementation programme]=$G$3)*(T_DataComboFile[Econ4]=$G39))*T_DataComboFile[2021/22 Increase]*$B$3)","v":0},0,{"$f":"SUMPRODUCT(((T_DataComboFile[Implementation programme]=$G$3)*(T_DataComboFile[Econ4]=$G39))*T_DataComboFile[2022/23 Baseline]*$B$3)","v":0},{"$f":"SUMPRODUCT(((T_DataComboFile[Implementation programme]=$G$3)*(T_DataComboFile[Econ4]=$G39))*T_DataComboFile[2022/23 Reduction]*$B$3)","v":0},{"$f":"SUMPRODUCT(((T_DataComboFile[Implementation programme]=$G$3)*(T_DataComboFile[Econ4]=$G39))*T_DataComboFile[2022/23 Increase]*$B$3)","v":0},0,{"$f":"SUMPRODUCT(((T_DataComboFile[Implementation programme]=$G$3)*(T_DataComboFile[Econ4]=$G39))*T_DataComboFile[2023/24 Baseline]*$B$3)","v":0},{"$f":"SUMPRODUCT(((T_DataComboFile[Implementation programme]=$G$3)*(T_DataComboFile[Econ4]=$G39))*T_DataComboFile[2023/24 Reduction]*$B$3)","v":0},{"$f":"SUMPRODUCT(((T_DataComboFile[Implementation programme]=$G$3)*(T_DataComboFile[Econ4]=$G39))*T_DataComboFile[2023/24 Increase]*$B$3)","v":0},0]
[0,0,null,null,null,null,"Departmental agencies and accounts",{"$f":"SUM(H41:H42)","v":0},0,0,0,0,0,0,0,0,0,0,0,0,0,0,0]
[0,0,null,null,null,null,"Social security funds",{"$f":"SUMPRODUCT(((T_DataComboFile[Implementation programme]=$G$3)*(T_DataComboFile[Econ4]=$G41))*T_DataComboFile[2017/18]*$B$3)","v":0},{"$f":"SUMPRODUCT(((T_DataComboFile[Implementation programme]=$G$3)*(T_DataComboFile[Econ4]=$G41))*T_DataComboFile[2018/19]*$B$3)","v":0},{"$f":"SUMPRODUCT(((T_DataComboFile[Implementation programme]=$G$3)*(T_DataComboFile[Econ4]=$G41))*T_DataComboFile[2019/20 Revised estimate]*$B$3)","v":0},{"$f":"SUMPRODUCT(((T_DataComboFile[Implementation programme]=$G$3)*(T_DataComboFile[Econ4]=$G41))*T_DataComboFile[2020/21 Revised]*$B$3)","v":0},{"$f":"SUMPRODUCT(((T_DataComboFile[Implementation programme]=$G$3)*(T_DataComboFile[Econ4]=$G41))*T_DataComboFile[2021/22 Baseline]*$B$3)","v":0},{"$f":"SUMPRODUCT(((T_DataComboFile[Implementation programme]=$G$3)*(T_DataComboFile[Econ4]=$G41))*T_DataComboFile[2021/22 Reduction]*$B$3)","v":0},{"$f":"SUMPRODUCT(((T_DataComboFile[Implementation programme]=$G$3)*(T_DataComboFile[Econ4]=$G41))*T_DataComboFile[2021/22 Increase]*$B$3)","v":0},{"$f":"L41+M41+N41","v":0},{"$f":"SUMPRODUCT(((T_DataComboFile[Implementation programme]=$G$3)*(T_DataComboFile[Econ4]=$G41))*T_DataComboFile[2022/23 Baseline]*$B$3)","v":0},{"$f":"SUMPRODUCT(((T_DataComboFile[Implementation programme]=$G$3)*(T_DataComboFile[Econ4]=$G41))*T_DataComboFile[2022/23 Reduction]*$B$3)","v":0},{"$f":"SUMPRODUCT(((T_DataComboFile[Implementation programme]=$G$3)*(T_DataComboFile[Econ4]=$G41))*T_DataComboFile[2022/23 Increase]*$B$3)","v":0},{"$f":"P41+Q41+R41","v":0},{"$f":"SUMPRODUCT(((T_DataComboFile[Implementation programme]=$G$3)*(T_DataComboFile[Econ4]=$G41))*T_DataComboFile[2023/24 Baseline]*$B$3)","v":0},{"$f":"SUMPRODUCT(((T_DataComboFile[Implementation programme]=$G$3)*(T_DataComboFile[Econ4]=$G41))*T_DataComboFile[2023/24 Reduction]*$B$3)","v":0},{"$f":"SUMPRODUCT(((T_DataComboFile[Implementation programme]=$G$3)*(T_DataComboFile[Econ4]=$G41))*T_DataComboFile[2023/24 Increase]*$B$3)","v":0},{"$f":"T41+U41+V41","v":0}]
[0,0,null,null,null,null,"Departmental agencies (non-business entities)",{"$f":"SUMPRODUCT(((T_DataComboFile[Implementation programme]=$G$3)*(T_DataComboFile[Econ4]=$G42))*T_DataComboFile[2017/18]*$B$3)","v":0},{"$f":"SUMPRODUCT(((T_DataComboFile[Implementation programme]=$G$3)*(T_DataComboFile[Econ4]=$G42))*T_DataComboFile[2018/19]*$B$3)","v":0},{"$f":"SUMPRODUCT(((T_DataComboFile[Implementation programme]=$G$3)*(T_DataComboFile[Econ4]=$G42))*T_DataComboFile[2019/20 Revised estimate]*$B$3)","v":0},{"$f":"SUMPRODUCT(((T_DataComboFile[Implementation programme]=$G$3)*(T_DataComboFile[Econ4]=$G42))*T_DataComboFile[2020/21 Revised]*$B$3)","v":0},{"$f":"SUMPRODUCT(((T_DataComboFile[Implementation programme]=$G$3)*(T_DataComboFile[Econ4]=$G42))*T_DataComboFile[2021/22 Baseline]*$B$3)","v":0},{"$f":"SUMPRODUCT(((T_DataComboFile[Implementation programme]=$G$3)*(T_DataComboFile[Econ4]=$G42))*T_DataComboFile[2021/22 Reduction]*$B$3)","v":0},{"$f":"SUMPRODUCT(((T_DataComboFile[Implementation programme]=$G$3)*(T_DataComboFile[Econ4]=$G42))*T_DataComboFile[2021/22 Increase]*$B$3)","v":0},0,{"$f":"SUMPRODUCT(((T_DataComboFile[Implementation programme]=$G$3)*(T_DataComboFile[Econ4]=$G42))*T_DataComboFile[2022/23 Baseline]*$B$3)","v":0},{"$f":"SUMPRODUCT(((T_DataComboFile[Implementation programme]=$G$3)*(T_DataComboFile[Econ4]=$G42))*T_DataComboFile[2022/23 Reduction]*$B$3)","v":0},{"$f":"SUMPRODUCT(((T_DataComboFile[Implementation programme]=$G$3)*(T_DataComboFile[Econ4]=$G42))*T_DataComboFile[2022/23 Increase]*$B$3)","v":0},0,{"$f":"SUMPRODUCT(((T_DataComboFile[Implementation programme]=$G$3)*(T_DataComboFile[Econ4]=$G42))*T_DataComboFile[2023/24 Baseline]*$B$3)","v":0},{"$f":"SUMPRODUCT(((T_DataComboFile[Implementation programme]=$G$3)*(T_DataComboFile[Econ4]=$G42))*T_DataComboFile[2023/24 Reduction]*$B$3)","v":0},{"$f":"SUMPRODUCT(((T_DataComboFile[Implementation programme]=$G$3)*(T_DataComboFile[Econ4]=$G42))*T_DataComboFile[2023/24 Increase]*$B$3)","v":0},0]
[0,0,null,null,null,null,"Higher education institutions",{"$f":"SUMPRODUCT(((T_DataComboFile[Implementation programme]=$G$3)*(T_DataComboFile[Econ3]=$G43))*T_DataComboFile[2017/18]*$B$3)","v":0},{"$f":"SUMPRODUCT(((T_DataComboFile[Implementation programme]=$G$3)*(T_DataComboFile[Econ3]=$G43))*T_DataComboFile[2018/19]*$B$3)","v":0},{"$f":"SUMPRODUCT(((T_DataComboFile[Implementation programme]=$G$3)*(T_DataComboFile[Econ3]=$G43))*T_DataComboFile[2019/20 Revised estimate]*$B$3)","v":0},{"$f":"SUMPRODUCT(((T_DataComboFile[Implementation programme]=$G$3)*(T_DataComboFile[Econ3]=$G43))*T_DataComboFile[2020/21 Revised]*$B$3)","v":0},{"$f":"SUMPRODUCT(((T_DataComboFile[Implementation programme]=$G$3)*(T_DataComboFile[Econ3]=$G43))*T_DataComboFile[2021/22 Baseline]*$B$3)","v":0},{"$f":"SUMPRODUCT(((T_DataComboFile[Implementation programme]=$G$3)*(T_DataComboFile[Econ3]=$G43))*T_DataComboFile[2021/22 Reduction]*$B$3)","v":0},{"$f":"SUMPRODUCT(((T_DataComboFile[Implementation programme]=$G$3)*(T_DataComboFile[Econ3]=$G43))*T_DataComboFile[2021/22 Increase]*$B$3)","v":0},0,{"$f":"SUMPRODUCT(((T_DataComboFile[Implementation programme]=$G$3)*(T_DataComboFile[Econ3]=$G43))*T_DataComboFile[2022/23 Baseline]*$B$3)","v":0},{"$f":"SUMPRODUCT(((T_DataComboFile[Implementation programme]=$G$3)*(T_DataComboFile[Econ3]=$G43))*T_DataComboFile[2022/23 Reduction]*$B$3)","v":0},{"$f":"SUMPRODUCT(((T_DataComboFile[Implementation programme]=$G$3)*(T_DataComboFile[Econ3]=$G43))*T_DataComboFile[2022/23 Increase]*$B$3)","v":0},0,{"$f":"SUMPRODUCT(((T_DataComboFile[Implementation programme]=$G$3)*(T_DataComboFile[Econ3]=$G43))*T_DataComboFile[2023/24 Baseline]*$B$3)","v":0},{"$f":"SUMPRODUCT(((T_DataComboFile[Implementation programme]=$G$3)*(T_DataComboFile[Econ3]=$G43))*T_DataComboFile[2023/24 Reduction]*$B$3)","v":0},{"$f":"SUMPRODUCT(((T_DataComboFile[Implementation programme]=$G$3)*(T_DataComboFile[Econ3]=$G43))*T_DataComboFile[2023/24 Increase]*$B$3)","v":0},0]
[0,0,null,null,null,null,"Foreign governments and international organisations",{"$f":"SUMPRODUCT(((T_DataComboFile[Implementation programme]=$G$3)*(T_DataComboFile[Econ3]=$G44))*T_DataComboFile[2017/18]*$B$3)","v":0},{"$f":"SUMPRODUCT(((T_DataComboFile[Implementation programme]=$G$3)*(T_DataComboFile[Econ3]=$G44))*T_DataComboFile[2018/19]*$B$3)","v":0},{"$f":"SUMPRODUCT(((T_DataComboFile[Implementation programme]=$G$3)*(T_DataComboFile[Econ3]=$G44))*T_DataComboFile[2019/20 Revised estimate]*$B$3)","v":0},{"$f":"SUMPRODUCT(((T_DataComboFile[Implementation programme]=$G$3)*(T_DataComboFile[Econ3]=$G44))*T_DataComboFile[2020/21 Revised]*$B$3)","v":0},{"$f":"SUMPRODUCT(((T_DataComboFile[Implementation programme]=$G$3)*(T_DataComboFile[Econ3]=$G44))*T_DataComboFile[2021/22 Baseline]*$B$3)","v":0},{"$f":"SUMPRODUCT(((T_DataComboFile[Implementation programme]=$G$3)*(T_DataComboFile[Econ3]=$G44))*T_DataComboFile[2021/22 Reduction]*$B$3)","v":0},{"$f":"SUMPRODUCT(((T_DataComboFile[Implementation programme]=$G$3)*(T_DataComboFile[Econ3]=$G44))*T_DataComboFile[2021/22 Increase]*$B$3)","v":0},0,{"$f":"SUMPRODUCT(((T_DataComboFile[Implementation programme]=$G$3)*(T_DataComboFile[Econ3]=$G44))*T_DataComboFile[2022/23 Baseline]*$B$3)","v":0},{"$f":"SUMPRODUCT(((T_DataComboFile[Implementation programme]=$G$3)*(T_DataComboFile[Econ3]=$G44))*T_DataComboFile[2022/23 Reduction]*$B$3)","v":0},{"$f":"SUMPRODUCT(((T_DataComboFile[Implementation programme]=$G$3)*(T_DataComboFile[Econ3]=$G44))*T_DataComboFile[2022/23 Increase]*$B$3)","v":0},0,{"$f":"SUMPRODUCT(((T_DataComboFile[Implementation programme]=$G$3)*(T_DataComboFile[Econ3]=$G44))*T_DataComboFile[2023/24 Baseline]*$B$3)","v":0},{"$f":"SUMPRODUCT(((T_DataComboFile[Implementation programme]=$G$3)*(T_DataComboFile[Econ3]=$G44))*T_DataComboFile[2023/24 Reduction]*$B$3)","v":0},{"$f":"SUMPRODUCT(((T_DataComboFile[Implementation programme]=$G$3)*(T_DataComboFile[Econ3]=$G44))*T_DataComboFile[2023/24 Increase]*$B$3)","v":0},0]
[0,0,null,null,null,null,"Public corporations and private enterprises",{"$f":"SUM(H46:H47)","v":0},0,0,0,0,0,0,0,0,0,0,0,0,0,0,0]
[0,0,null,null,null,null,"Public corporations",{"$f":"SUMPRODUCT(((T_DataComboFile[Implementation programme]=$G$3)*(T_DataComboFile[Econ4]=$G46))*T_DataComboFile[2017/18]*$B$3)","v":0},{"$f":"SUMPRODUCT(((T_DataComboFile[Implementation programme]=$G$3)*(T_DataComboFile[Econ4]=$G46))*T_DataComboFile[2018/19]*$B$3)","v":0},{"$f":"SUMPRODUCT(((T_DataComboFile[Implementation programme]=$G$3)*(T_DataComboFile[Econ4]=$G46))*T_DataComboFile[2019/20 Revised estimate]*$B$3)","v":0},{"$f":"SUMPRODUCT(((T_DataComboFile[Implementation programme]=$G$3)*(T_DataComboFile[Econ4]=$G46))*T_DataComboFile[2020/21 Revised]*$B$3)","v":0},{"$f":"SUMPRODUCT(((T_DataComboFile[Implementation programme]=$G$3)*(T_DataComboFile[Econ4]=$G46))*T_DataComboFile[2021/22 Baseline]*$B$3)","v":0},{"$f":"SUMPRODUCT(((T_DataComboFile[Implementation programme]=$G$3)*(T_DataComboFile[Econ4]=$G46))*T_DataComboFile[2021/22 Reduction]*$B$3)","v":0},{"$f":"SUMPRODUCT(((T_DataComboFile[Implementation programme]=$G$3)*(T_DataComboFile[Econ4]=$G46))*T_DataComboFile[2021/22 Increase]*$B$3)","v":0},{"$f":"L46+M46+N46","v":0},{"$f":"SUMPRODUCT(((T_DataComboFile[Implementation programme]=$G$3)*(T_DataComboFile[Econ4]=$G46))*T_DataComboFile[2022/23 Baseline]*$B$3)","v":0},{"$f":"SUMPRODUCT(((T_DataComboFile[Implementation programme]=$G$3)*(T_DataComboFile[Econ4]=$G46))*T_DataComboFile[2022/23 Reduction]*$B$3)","v":0},{"$f":"SUMPRODUCT(((T_DataComboFile[Implementation programme]=$G$3)*(T_DataComboFile[Econ4]=$G46))*T_DataComboFile[2022/23 Increase]*$B$3)","v":0},{"$f":"P46+Q46+R46","v":0},{"$f":"SUMPRODUCT(((T_DataComboFile[Implementation programme]=$G$3)*(T_DataComboFile[Econ4]=$G46))*T_DataComboFile[2023/24 Baseline]*$B$3)","v":0},{"$f":"SUMPRODUCT(((T_DataComboFile[Implementation programme]=$G$3)*(T_DataComboFile[Econ4]=$G46))*T_DataComboFile[2023/24 Reduction]*$B$3)","v":0},{"$f":"SUMPRODUCT(((T_DataComboFile[Implementation programme]=$G$3)*(T_DataComboFile[Econ4]=$G46))*T_DataComboFile[2023/24 Increase]*$B$3)","v":0},{"$f":"T46+U46+V46","v":0}]
[0,0,null,null,null,null,"Private enterprises",{"$f":"SUMPRODUCT(((T_DataComboFile[Implementation programme]=$G$3)*(T_DataComboFile[Econ4]=$G47))*T_DataComboFile[2017/18]*$B$3)","v":0},{"$f":"SUMPRODUCT(((T_DataComboFile[Implementation programme]=$G$3)*(T_DataComboFile[Econ4]=$G47))*T_DataComboFile[2018/19]*$B$3)","v":0},{"$f":"SUMPRODUCT(((T_DataComboFile[Implementation programme]=$G$3)*(T_DataComboFile[Econ4]=$G47))*T_DataComboFile[2019/20 Revised estimate]*$B$3)","v":0},{"$f":"SUMPRODUCT(((T_DataComboFile[Implementation programme]=$G$3)*(T_DataComboFile[Econ4]=$G47))*T_DataComboFile[2020/21 Revised]*$B$3)","v":0},{"$f":"SUMPRODUCT(((T_DataComboFile[Implementation programme]=$G$3)*(T_DataComboFile[Econ4]=$G47))*T_DataComboFile[2021/22 Baseline]*$B$3)","v":0},{"$f":"SUMPRODUCT(((T_DataComboFile[Implementation programme]=$G$3)*(T_DataComboFile[Econ4]=$G47))*T_DataComboFile[2021/22 Reduction]*$B$3)","v":0},{"$f":"SUMPRODUCT(((T_DataComboFile[Implementation programme]=$G$3)*(T_DataComboFile[Econ4]=$G47))*T_DataComboFile[2021/22 Increase]*$B$3)","v":0},0,{"$f":"SUMPRODUCT(((T_DataComboFile[Implementation programme]=$G$3)*(T_DataComboFile[Econ4]=$G47))*T_DataComboFile[2022/23 Baseline]*$B$3)","v":0},{"$f":"SUMPRODUCT(((T_DataComboFile[Implementation programme]=$G$3)*(T_DataComboFile[Econ4]=$G47))*T_DataComboFile[2022/23 Reduction]*$B$3)","v":0},{"$f":"SUMPRODUCT(((T_DataComboFile[Implementation programme]=$G$3)*(T_DataComboFile[Econ4]=$G47))*T_DataComboFile[2022/23 Increase]*$B$3)","v":0},0,{"$f":"SUMPRODUCT(((T_DataComboFile[Implementation programme]=$G$3)*(T_DataComboFile[Econ4]=$G47))*T_DataComboFile[2023/24 Baseline]*$B$3)","v":0},{"$f":"SUMPRODUCT(((T_DataComboFile[Implementation programme]=$G$3)*(T_DataComboFile[Econ4]=$G47))*T_DataComboFile[2023/24 Reduction]*$B$3)","v":0},{"$f":"SUMPRODUCT(((T_DataComboFile[Implementation programme]=$G$3)*(T_DataComboFile[Econ4]=$G47))*T_DataComboFile[2023/24 Increase]*$B$3)","v":0},0]
[0,0,null,null,null,null,"Non-profit institutions",{"$f":"SUMPRODUCT(((T_DataComboFile[Implementation programme]=$G$3)*(T_DataComboFile[Econ3]=$G48))*T_DataComboFile[2017/18]*$B$3)","v":0},{"$f":"SUMPRODUCT(((T_DataComboFile[Implementation programme]=$G$3)*(T_DataComboFile[Econ3]=$G48))*T_DataComboFile[2018/19]*$B$3)","v":0},{"$f":"SUMPRODUCT(((T_DataComboFile[Implementation programme]=$G$3)*(T_DataComboFile[Econ3]=$G48))*T_DataComboFile[2019/20 Revised estimate]*$B$3)","v":0},{"$f":"SUMPRODUCT(((T_DataComboFile[Implementation programme]=$G$3)*(T_DataComboFile[Econ3]=$G48))*T_DataComboFile[2020/21 Revised]*$B$3)","v":0},{"$f":"SUMPRODUCT(((T_DataComboFile[Implementation programme]=$G$3)*(T_DataComboFile[Econ3]=$G48))*T_DataComboFile[2021/22 Baseline]*$B$3)","v":0},{"$f":"SUMPRODUCT(((T_DataComboFile[Implementation programme]=$G$3)*(T_DataComboFile[Econ3]=$G48))*T_DataComboFile[2021/22 Reduction]*$B$3)","v":0},{"$f":"SUMPRODUCT(((T_DataComboFile[Implementation programme]=$G$3)*(T_DataComboFile[Econ3]=$G48))*T_DataComboFile[2021/22 Increase]*$B$3)","v":0},0,{"$f":"SUMPRODUCT(((T_DataComboFile[Implementation programme]=$G$3)*(T_DataComboFile[Econ3]=$G48))*T_DataComboFile[2022/23 Baseline]*$B$3)","v":0},{"$f":"SUMPRODUCT(((T_DataComboFile[Implementation programme]=$G$3)*(T_DataComboFile[Econ3]=$G48))*T_DataComboFile[2022/23 Reduction]*$B$3)","v":0},{"$f":"SUMPRODUCT(((T_DataComboFile[Implementation programme]=$G$3)*(T_DataComboFile[Econ3]=$G48))*T_DataComboFile[2022/23 Increase]*$B$3)","v":0},0,{"$f":"SUMPRODUCT(((T_DataComboFile[Implementation programme]=$G$3)*(T_DataComboFile[Econ3]=$G48))*T_DataComboFile[2023/24 Baseline]*$B$3)","v":0},{"$f":"SUMPRODUCT(((T_DataComboFile[Implementation programme]=$G$3)*(T_DataComboFile[Econ3]=$G48))*T_DataComboFile[2023/24 Reduction]*$B$3)","v":0},{"$f":"SUMPRODUCT(((T_DataComboFile[Implementation programme]=$G$3)*(T_DataComboFile[Econ3]=$G48))*T_DataComboFile[2023/24 Increase]*$B$3)","v":0},0]
[0,0,null,null,null,null,"Households",{"$f":"SUM(H50:H51)","v":0},0,0,0,0,0,0,0,0,0,0,0,0,0,0,0]
[0,0,null,null,null,null,"Social benefits",{"$f":"SUMPRODUCT(((T_DataComboFile[Implementation programme]=$G$3)*(T_DataComboFile[Econ4]=$G50))*T_DataComboFile[2017/18]*$B$3)","v":0},{"$f":"SUMPRODUCT(((T_DataComboFile[Implementation programme]=$G$3)*(T_DataComboFile[Econ4]=$G50))*T_DataComboFile[2018/19]*$B$3)","v":0},{"$f":"SUMPRODUCT(((T_DataComboFile[Implementation programme]=$G$3)*(T_DataComboFile[Econ4]=$G50))*T_DataComboFile[2019/20 Revised estimate]*$B$3)","v":0},{"$f":"SUMPRODUCT(((T_DataComboFile[Implementation programme]=$G$3)*(T_DataComboFile[Econ4]=$G50))*T_DataComboFile[2020/21 Revised]*$B$3)","v":0},{"$f":"SUMPRODUCT(((T_DataComboFile[Implementation programme]=$G$3)*(T_DataComboFile[Econ4]=$G50))*T_DataComboFile[2021/22 Baseline]*$B$3)","v":0},{"$f":"SUMPRODUCT(((T_DataComboFile[Implementation programme]=$G$3)*(T_DataComboFile[Econ4]=$G50))*T_DataComboFile[2021/22 Reduction]*$B$3)","v":0},{"$f":"SUMPRODUCT(((T_DataComboFile[Implementation programme]=$G$3)*(T_DataComboFile[Econ4]=$G50))*T_DataComboFile[2021/22 Increase]*$B$3)","v":0},{"$f":"L50+M50+N50","v":0},{"$f":"SUMPRODUCT(((T_DataComboFile[Implementation programme]=$G$3)*(T_DataComboFile[Econ4]=$G50))*T_DataComboFile[2022/23 Baseline]*$B$3)","v":0},{"$f":"SUMPRODUCT(((T_DataComboFile[Implementation programme]=$G$3)*(T_DataComboFile[Econ4]=$G50))*T_DataComboFile[2022/23 Reduction]*$B$3)","v":0},{"$f":"SUMPRODUCT(((T_DataComboFile[Implementation programme]=$G$3)*(T_DataComboFile[Econ4]=$G50))*T_DataComboFile[2022/23 Increase]*$B$3)","v":0},{"$f":"P50+Q50+R50","v":0},{"$f":"SUMPRODUCT(((T_DataComboFile[Implementation programme]=$G$3)*(T_DataComboFile[Econ4]=$G50))*T_DataComboFile[2023/24 Baseline]*$B$3)","v":0},{"$f":"SUMPRODUCT(((T_DataComboFile[Implementation programme]=$G$3)*(T_DataComboFile[Econ4]=$G50))*T_DataComboFile[2023/24 Reduction]*$B$3)","v":0},{"$f":"SUMPRODUCT(((T_DataComboFile[Implementation programme]=$G$3)*(T_DataComboFile[Econ4]=$G50))*T_DataComboFile[2023/24 Increase]*$B$3)","v":0},{"$f":"T50+U50+V50","v":0}]
[0,0,null,null,null,null,"Other transfers to households",{"$f":"SUMPRODUCT(((T_DataComboFile[Implementation programme]=$G$3)*(T_DataComboFile[Econ4]=$G51))*T_DataComboFile[2017/18]*$B$3)","v":0},{"$f":"SUMPRODUCT(((T_DataComboFile[Implementation programme]=$G$3)*(T_DataComboFile[Econ4]=$G51))*T_DataComboFile[2018/19]*$B$3)","v":0},{"$f":"SUMPRODUCT(((T_DataComboFile[Implementation programme]=$G$3)*(T_DataComboFile[Econ4]=$G51))*T_DataComboFile[2019/20 Revised estimate]*$B$3)","v":0},{"$f":"SUMPRODUCT(((T_DataComboFile[Implementation programme]=$G$3)*(T_DataComboFile[Econ4]=$G51))*T_DataComboFile[2020/21 Revised]*$B$3)","v":0},{"$f":"SUMPRODUCT(((T_DataComboFile[Implementation programme]=$G$3)*(T_DataComboFile[Econ4]=$G51))*T_DataComboFile[2021/22 Baseline]*$B$3)","v":0},{"$f":"SUMPRODUCT(((T_DataComboFile[Implementation programme]=$G$3)*(T_DataComboFile[Econ4]=$G51))*T_DataComboFile[2021/22 Reduction]*$B$3)","v":0},{"$f":"SUMPRODUCT(((T_DataComboFile[Implementation programme]=$G$3)*(T_DataComboFile[Econ4]=$G51))*T_DataComboFile[2021/22 Increase]*$B$3)","v":0},0,{"$f":"SUMPRODUCT(((T_DataComboFile[Implementation programme]=$G$3)*(T_DataComboFile[Econ4]=$G51))*T_DataComboFile[2022/23 Baseline]*$B$3)","v":0},{"$f":"SUMPRODUCT(((T_DataComboFile[Implementation programme]=$G$3)*(T_DataComboFile[Econ4]=$G51))*T_DataComboFile[2022/23 Reduction]*$B$3)","v":0},{"$f":"SUMPRODUCT(((T_DataComboFile[Implementation programme]=$G$3)*(T_DataComboFile[Econ4]=$G51))*T_DataComboFile[2022/23 Increase]*$B$3)","v":0},0,{"$f":"SUMPRODUCT(((T_DataComboFile[Implementation programme]=$G$3)*(T_DataComboFile[Econ4]=$G51))*T_DataComboFile[2023/24 Baseline]*$B$3)","v":0},{"$f":"SUMPRODUCT(((T_DataComboFile[Implementation programme]=$G$3)*(T_DataComboFile[Econ4]=$G51))*T_DataComboFile[2023/24 Reduction]*$B$3)","v":0},{"$f":"SUMPRODUCT(((T_DataComboFile[Implementation programme]=$G$3)*(T_DataComboFile[Econ4]=$G51))*T_DataComboFile[2023/24 Increase]*$B$3)","v":0},0]
[0,0,null,null,null,null,"Payments for capital assets",{"$f":"SUM(H53,H56,H59:H63)","v":0},0,0,0,0,0,0,0,0,0,0,0,0,0,0,0]
[0,0,null,null,null,null,"Buildings and other fixed structures",{"$f":"SUM(H54:H55)","v":0},0,0,0,0,0,0,0,0,0,0,0,0,0,0,0]
[0,0,null,null,null,null,"Buildings",{"$f":"SUMPRODUCT(((T_DataComboFile[Implementation programme]=$G$3)*(T_DataComboFile[Econ4]=$G54))*T_DataComboFile[2017/18]*$B$3)","v":0},{"$f":"SUMPRODUCT(((T_DataComboFile[Implementation programme]=$G$3)*(T_DataComboFile[Econ4]=$G54))*T_DataComboFile[2018/19]*$B$3)","v":0},{"$f":"SUMPRODUCT(((T_DataComboFile[Implementation programme]=$G$3)*(T_DataComboFile[Econ4]=$G54))*T_DataComboFile[2019/20 Revised estimate]*$B$3)","v":0},{"$f":"SUMPRODUCT(((T_DataComboFile[Implementation programme]=$G$3)*(T_DataComboFile[Econ4]=$G54))*T_DataComboFile[2020/21 Revised]*$B$3)","v":0},{"$f":"SUMPRODUCT(((T_DataComboFile[Implementation programme]=$G$3)*(T_DataComboFile[Econ4]=$G54))*T_DataComboFile[2021/22 Baseline]*$B$3)","v":0},{"$f":"SUMPRODUCT(((T_DataComboFile[Implementation programme]=$G$3)*(T_DataComboFile[Econ4]=$G54))*T_DataComboFile[2021/22 Reduction]*$B$3)","v":0},{"$f":"SUMPRODUCT(((T_DataComboFile[Implementation programme]=$G$3)*(T_DataComboFile[Econ4]=$G54))*T_DataComboFile[2021/22 Increase]*$B$3)","v":0},{"$f":"L54+M54+N54","v":0},{"$f":"SUMPRODUCT(((T_DataComboFile[Implementation programme]=$G$3)*(T_DataComboFile[Econ4]=$G54))*T_DataComboFile[2022/23 Baseline]*$B$3)","v":0},{"$f":"SUMPRODUCT(((T_DataComboFile[Implementation programme]=$G$3)*(T_DataComboFile[Econ4]=$G54))*T_DataComboFile[2022/23 Reduction]*$B$3)","v":0},{"$f":"SUMPRODUCT(((T_DataComboFile[Implementation programme]=$G$3)*(T_DataComboFile[Econ4]=$G54))*T_DataComboFile[2022/23 Increase]*$B$3)","v":0},{"$f":"P54+Q54+R54","v":0},{"$f":"SUMPRODUCT(((T_DataComboFile[Implementation programme]=$G$3)*(T_DataComboFile[Econ4]=$G54))*T_DataComboFile[2023/24 Baseline]*$B$3)","v":0},{"$f":"SUMPRODUCT(((T_DataComboFile[Implementation programme]=$G$3)*(T_DataComboFile[Econ4]=$G54))*T_DataComboFile[2023/24 Reduction]*$B$3)","v":0},{"$f":"SUMPRODUCT(((T_DataComboFile[Implementation programme]=$G$3)*(T_DataComboFile[Econ4]=$G54))*T_DataComboFile[2023/24 Increase]*$B$3)","v":0},{"$f":"T54+U54+V54","v":0}]
[0,0,null,null,null,null,"Other fixed structures",{"$f":"SUMPRODUCT(((T_DataComboFile[Implementation programme]=$G$3)*(T_DataComboFile[Econ4]=$G55))*T_DataComboFile[2017/18]*$B$3)","v":0},{"$f":"SUMPRODUCT(((T_DataComboFile[Implementation programme]=$G$3)*(T_DataComboFile[Econ4]=$G55))*T_DataComboFile[2018/19]*$B$3)","v":0},{"$f":"SUMPRODUCT(((T_DataComboFile[Implementation programme]=$G$3)*(T_DataComboFile[Econ4]=$G55))*T_DataComboFile[2019/20 Revised estimate]*$B$3)","v":0},{"$f":"SUMPRODUCT(((T_DataComboFile[Implementation programme]=$G$3)*(T_DataComboFile[Econ4]=$G55))*T_DataComboFile[2020/21 Revised]*$B$3)","v":0},{"$f":"SUMPRODUCT(((T_DataComboFile[Implementation programme]=$G$3)*(T_DataComboFile[Econ4]=$G55))*T_DataComboFile[2021/22 Baseline]*$B$3)","v":0},{"$f":"SUMPRODUCT(((T_DataComboFile[Implementation programme]=$G$3)*(T_DataComboFile[Econ4]=$G55))*T_DataComboFile[2021/22 Reduction]*$B$3)","v":0},{"$f":"SUMPRODUCT(((T_DataComboFile[Implementation programme]=$G$3)*(T_DataComboFile[Econ4]=$G55))*T_DataComboFile[2021/22 Increase]*$B$3)","v":0},0,{"$f":"SUMPRODUCT(((T_DataComboFile[Implementation programme]=$G$3)*(T_DataComboFile[Econ4]=$G55))*T_DataComboFile[2022/23 Baseline]*$B$3)","v":0},{"$f":"SUMPRODUCT(((T_DataComboFile[Implementation programme]=$G$3)*(T_DataComboFile[Econ4]=$G55))*T_DataComboFile[2022/23 Reduction]*$B$3)","v":0},{"$f":"SUMPRODUCT(((T_DataComboFile[Implementation programme]=$G$3)*(T_DataComboFile[Econ4]=$G55))*T_DataComboFile[2022/23 Increase]*$B$3)","v":0},0,{"$f":"SUMPRODUCT(((T_DataComboFile[Implementation programme]=$G$3)*(T_DataComboFile[Econ4]=$G55))*T_DataComboFile[2023/24 Baseline]*$B$3)","v":0},{"$f":"SUMPRODUCT(((T_DataComboFile[Implementation programme]=$G$3)*(T_DataComboFile[Econ4]=$G55))*T_DataComboFile[2023/24 Reduction]*$B$3)","v":0},{"$f":"SUMPRODUCT(((T_DataComboFile[Implementation programme]=$G$3)*(T_DataComboFile[Econ4]=$G55))*T_DataComboFile[2023/24 Increase]*$B$3)","v":0},0]
[0,0,null,null,null,null,"Machinery and equipment",{"$f":"SUM(H57:H58)","v":0},0,0,0,0,0,0,0,0,0,0,0,0,0,0,0]
[0,0,null,null,null,null,"Transport equipment",{"$f":"SUMPRODUCT(((T_DataComboFile[Implementation programme]=$G$3)*(T_DataComboFile[Econ4]=$G57))*T_DataComboFile[2017/18]*$B$3)","v":0},{"$f":"SUMPRODUCT(((T_DataComboFile[Implementation programme]=$G$3)*(T_DataComboFile[Econ4]=$G57))*T_DataComboFile[2018/19]*$B$3)","v":0},{"$f":"SUMPRODUCT(((T_DataComboFile[Implementation programme]=$G$3)*(T_DataComboFile[Econ4]=$G57))*T_DataComboFile[2019/20 Revised estimate]*$B$3)","v":0},{"$f":"SUMPRODUCT(((T_DataComboFile[Implementation programme]=$G$3)*(T_DataComboFile[Econ4]=$G57))*T_DataComboFile[2020/21 Revised]*$B$3)","v":0},{"$f":"SUMPRODUCT(((T_DataComboFile[Implementation programme]=$G$3)*(T_DataComboFile[Econ4]=$G57))*T_DataComboFile[2021/22 Baseline]*$B$3)","v":0},{"$f":"SUMPRODUCT(((T_DataComboFile[Implementation programme]=$G$3)*(T_DataComboFile[Econ4]=$G57))*T_DataComboFile[2021/22 Reduction]*$B$3)","v":0},{"$f":"SUMPRODUCT(((T_DataComboFile[Implementation programme]=$G$3)*(T_DataComboFile[Econ4]=$G57))*T_DataComboFile[2021/22 Increase]*$B$3)","v":0},{"$f":"L57+M57+N57","v":0},{"$f":"SUMPRODUCT(((T_DataComboFile[Implementation programme]=$G$3)*(T_DataComboFile[Econ4]=$G57))*T_DataComboFile[2022/23 Baseline]*$B$3)","v":0},{"$f":"SUMPRODUCT(((T_DataComboFile[Implementation programme]=$G$3)*(T_DataComboFile[Econ4]=$G57))*T_DataComboFile[2022/23 Reduction]*$B$3)","v":0},{"$f":"SUMPRODUCT(((T_DataComboFile[Implementation programme]=$G$3)*(T_DataComboFile[Econ4]=$G57))*T_DataComboFile[2022/23 Increase]*$B$3)","v":0},{"$f":"P57+Q57+R57","v":0},{"$f":"SUMPRODUCT(((T_DataComboFile[Implementation programme]=$G$3)*(T_DataComboFile[Econ4]=$G57))*T_DataComboFile[2023/24 Baseline]*$B$3)","v":0},{"$f":"SUMPRODUCT(((T_DataComboFile[Implementation programme]=$G$3)*(T_DataComboFile[Econ4]=$G57))*T_DataComboFile[2023/24 Reduction]*$B$3)","v":0},{"$f":"SUMPRODUCT(((T_DataComboFile[Implementation programme]=$G$3)*(T_DataComboFile[Econ4]=$G57))*T_DataComboFile[2023/24 Increase]*$B$3)","v":0},{"$f":"T57+U57+V57","v":0}]
[0,0,null,null,null,null,"Other machinery and equipment",{"$f":"SUMPRODUCT(((T_DataComboFile[Implementation programme]=$G$3)*(T_DataComboFile[Econ4]=$G58))*T_DataComboFile[2017/18]*$B$3)","v":0},{"$f":"SUMPRODUCT(((T_DataComboFile[Implementation programme]=$G$3)*(T_DataComboFile[Econ4]=$G58))*T_DataComboFile[2018/19]*$B$3)","v":0},{"$f":"SUMPRODUCT(((T_DataComboFile[Implementation programme]=$G$3)*(T_DataComboFile[Econ4]=$G58))*T_DataComboFile[2019/20 Revised estimate]*$B$3)","v":0},{"$f":"SUMPRODUCT(((T_DataComboFile[Implementation programme]=$G$3)*(T_DataComboFile[Econ4]=$G58))*T_DataComboFile[2020/21 Revised]*$B$3)","v":0},{"$f":"SUMPRODUCT(((T_DataComboFile[Implementation programme]=$G$3)*(T_DataComboFile[Econ4]=$G58))*T_DataComboFile[2021/22 Baseline]*$B$3)","v":0},{"$f":"SUMPRODUCT(((T_DataComboFile[Implementation programme]=$G$3)*(T_DataComboFile[Econ4]=$G58))*T_DataComboFile[2021/22 Reduction]*$B$3)","v":0},{"$f":"SUMPRODUCT(((T_DataComboFile[Implementation programme]=$G$3)*(T_DataComboFile[Econ4]=$G58))*T_DataComboFile[2021/22 Increase]*$B$3)","v":0},0,{"$f":"SUMPRODUCT(((T_DataComboFile[Implementation programme]=$G$3)*(T_DataComboFile[Econ4]=$G58))*T_DataComboFile[2022/23 Baseline]*$B$3)","v":0},{"$f":"SUMPRODUCT(((T_DataComboFile[Implementation programme]=$G$3)*(T_DataComboFile[Econ4]=$G58))*T_DataComboFile[2022/23 Reduction]*$B$3)","v":0},{"$f":"SUMPRODUCT(((T_DataComboFile[Implementation programme]=$G$3)*(T_DataComboFile[Econ4]=$G58))*T_DataComboFile[2022/23 Increase]*$B$3)","v":0},0,{"$f":"SUMPRODUCT(((T_DataComboFile[Implementation programme]=$G$3)*(T_DataComboFile[Econ4]=$G58))*T_DataComboFile[2023/24 Baseline]*$B$3)","v":0},{"$f":"SUMPRODUCT(((T_DataComboFile[Implementation programme]=$G$3)*(T_DataComboFile[Econ4]=$G58))*T_DataComboFile[2023/24 Reduction]*$B$3)","v":0},{"$f":"SUMPRODUCT(((T_DataComboFile[Implementation programme]=$G$3)*(T_DataComboFile[Econ4]=$G58))*T_DataComboFile[2023/24 Increase]*$B$3)","v":0},0]
[0,0,null,null,null,null,"Heritage assets",{"$f":"SUMPRODUCT(((T_DataComboFile[Implementation programme]=$G$3)*(T_DataComboFile[Econ3]=$G59))*T_DataComboFile[2017/18]*$B$3)","v":0},{"$f":"SUMPRODUCT(((T_DataComboFile[Implementation programme]=$G$3)*(T_DataComboFile[Econ3]=$G59))*T_DataComboFile[2018/19]*$B$3)","v":0},{"$f":"SUMPRODUCT(((T_DataComboFile[Implementation programme]=$G$3)*(T_DataComboFile[Econ3]=$G59))*T_DataComboFile[2019/20 Revised estimate]*$B$3)","v":0},{"$f":"SUMPRODUCT(((T_DataComboFile[Implementation programme]=$G$3)*(T_DataComboFile[Econ3]=$G59))*T_DataComboFile[2020/21 Revised]*$B$3)","v":0},{"$f":"SUMPRODUCT(((T_DataComboFile[Implementation programme]=$G$3)*(T_DataComboFile[Econ3]=$G59))*T_DataComboFile[2021/22 Baseline]*$B$3)","v":0},{"$f":"SUMPRODUCT(((T_DataComboFile[Implementation programme]=$G$3)*(T_DataComboFile[Econ3]=$G59))*T_DataComboFile[2021/22 Reduction]*$B$3)","v":0},{"$f":"SUMPRODUCT(((T_DataComboFile[Implementation programme]=$G$3)*(T_DataComboFile[Econ3]=$G59))*T_DataComboFile[2021/22 Increase]*$B$3)","v":0},0,{"$f":"SUMPRODUCT(((T_DataComboFile[Implementation programme]=$G$3)*(T_DataComboFile[Econ3]=$G59))*T_DataComboFile[2022/23 Baseline]*$B$3)","v":0},{"$f":"SUMPRODUCT(((T_DataComboFile[Implementation programme]=$G$3)*(T_DataComboFile[Econ3]=$G59))*T_DataComboFile[2022/23 Reduction]*$B$3)","v":0},{"$f":"SUMPRODUCT(((T_DataComboFile[Implementation programme]=$G$3)*(T_DataComboFile[Econ3]=$G59))*T_DataComboFile[2022/23 Increase]*$B$3)","v":0},0,{"$f":"SUMPRODUCT(((T_DataComboFile[Implementation programme]=$G$3)*(T_DataComboFile[Econ3]=$G59))*T_DataComboFile[2023/24 Baseline]*$B$3)","v":0},{"$f":"SUMPRODUCT(((T_DataComboFile[Implementation programme]=$G$3)*(T_DataComboFile[Econ3]=$G59))*T_DataComboFile[2023/24 Reduction]*$B$3)","v":0},{"$f":"SUMPRODUCT(((T_DataComboFile[Implementation programme]=$G$3)*(T_DataComboFile[Econ3]=$G59))*T_DataComboFile[2023/24 Increase]*$B$3)","v":0},0]
[0,0,null,null,null,null,"Specialised military assets",{"$f":"SUMPRODUCT(((T_DataComboFile[Implementation programme]=$G$3)*(T_DataComboFile[Econ3]=$G60))*T_DataComboFile[2017/18]*$B$3)","v":0},{"$f":"SUMPRODUCT(((T_DataComboFile[Implementation programme]=$G$3)*(T_DataComboFile[Econ3]=$G60))*T_DataComboFile[2018/19]*$B$3)","v":0},{"$f":"SUMPRODUCT(((T_DataComboFile[Implementation programme]=$G$3)*(T_DataComboFile[Econ3]=$G60))*T_DataComboFile[2019/20 Revised estimate]*$B$3)","v":0},{"$f":"SUMPRODUCT(((T_DataComboFile[Implementation programme]=$G$3)*(T_DataComboFile[Econ3]=$G60))*T_DataComboFile[2020/21 Revised]*$B$3)","v":0},{"$f":"SUMPRODUCT(((T_DataComboFile[Implementation programme]=$G$3)*(T_DataComboFile[Econ3]=$G60))*T_DataComboFile[2021/22 Baseline]*$B$3)","v":0},{"$f":"SUMPRODUCT(((T_DataComboFile[Implementation programme]=$G$3)*(T_DataComboFile[Econ3]=$G60))*T_DataComboFile[2021/22 Reduction]*$B$3)","v":0},{"$f":"SUMPRODUCT(((T_DataComboFile[Implementation programme]=$G$3)*(T_DataComboFile[Econ3]=$G60))*T_DataComboFile[2021/22 Increase]*$B$3)","v":0},0,{"$f":"SUMPRODUCT(((T_DataComboFile[Implementation programme]=$G$3)*(T_DataComboFile[Econ3]=$G60))*T_DataComboFile[2022/23 Baseline]*$B$3)","v":0},{"$f":"SUMPRODUCT(((T_DataComboFile[Implementation programme]=$G$3)*(T_DataComboFile[Econ3]=$G60))*T_DataComboFile[2022/23 Reduction]*$B$3)","v":0},{"$f":"SUMPRODUCT(((T_DataComboFile[Implementation programme]=$G$3)*(T_DataComboFile[Econ3]=$G60))*T_DataComboFile[2022/23 Increase]*$B$3)","v":0},0,{"$f":"SUMPRODUCT(((T_DataComboFile[Implementation programme]=$G$3)*(T_DataComboFile[Econ3]=$G60))*T_DataComboFile[2023/24 Baseline]*$B$3)","v":0},{"$f":"SUMPRODUCT(((T_DataComboFile[Implementation programme]=$G$3)*(T_DataComboFile[Econ3]=$G60))*T_DataComboFile[2023/24 Reduction]*$B$3)","v":0},{"$f":"SUMPRODUCT(((T_DataComboFile[Implementation programme]=$G$3)*(T_DataComboFile[Econ3]=$G60))*T_DataComboFile[2023/24 Increase]*$B$3)","v":0},0]
[0,0,null,null,null,null,"Biological assets",{"$f":"SUMPRODUCT(((T_DataComboFile[Implementation programme]=$G$3)*(T_DataComboFile[Econ3]=$G61))*T_DataComboFile[2017/18]*$B$3)","v":0},{"$f":"SUMPRODUCT(((T_DataComboFile[Implementation programme]=$G$3)*(T_DataComboFile[Econ3]=$G61))*T_DataComboFile[2018/19]*$B$3)","v":0},{"$f":"SUMPRODUCT(((T_DataComboFile[Implementation programme]=$G$3)*(T_DataComboFile[Econ3]=$G61))*T_DataComboFile[2019/20 Revised estimate]*$B$3)","v":0},{"$f":"SUMPRODUCT(((T_DataComboFile[Implementation programme]=$G$3)*(T_DataComboFile[Econ3]=$G61))*T_DataComboFile[2020/21 Revised]*$B$3)","v":0},{"$f":"SUMPRODUCT(((T_DataComboFile[Implementation programme]=$G$3)*(T_DataComboFile[Econ3]=$G61))*T_DataComboFile[2021/22 Baseline]*$B$3)","v":0},{"$f":"SUMPRODUCT(((T_DataComboFile[Implementation programme]=$G$3)*(T_DataComboFile[Econ3]=$G61))*T_DataComboFile[2021/22 Reduction]*$B$3)","v":0},{"$f":"SUMPRODUCT(((T_DataComboFile[Implementation programme]=$G$3)*(T_DataComboFile[Econ3]=$G61))*T_DataComboFile[2021/22 Increase]*$B$3)","v":0},0,{"$f":"SUMPRODUCT(((T_DataComboFile[Implementation programme]=$G$3)*(T_DataComboFile[Econ3]=$G61))*T_DataComboFile[2022/23 Baseline]*$B$3)","v":0},{"$f":"SUMPRODUCT(((T_DataComboFile[Implementation programme]=$G$3)*(T_DataComboFile[Econ3]=$G61))*T_DataComboFile[2022/23 Reduction]*$B$3)","v":0},{"$f":"SUMPRODUCT(((T_DataComboFile[Implementation programme]=$G$3)*(T_DataComboFile[Econ3]=$G61))*T_DataComboFile[2022/23 Increase]*$B$3)","v":0},0,{"$f":"SUMPRODUCT(((T_DataComboFile[Implementation programme]=$G$3)*(T_DataComboFile[Econ3]=$G61))*T_DataComboFile[2023/24 Baseline]*$B$3)","v":0},{"$f":"SUMPRODUCT(((T_DataComboFile[Implementation programme]=$G$3)*(T_DataComboFile[Econ3]=$G61))*T_DataComboFile[2023/24 Reduction]*$B$3)","v":0},{"$f":"SUMPRODUCT(((T_DataComboFile[Implementation programme]=$G$3)*(T_DataComboFile[Econ3]=$G61))*T_DataComboFile[2023/24 Increase]*$B$3)","v":0},0]
[0,0,null,null,null,null,"Land and sub-soil assets",{"$f":"SUMPRODUCT(((T_DataComboFile[Implementation programme]=$G$3)*(T_DataComboFile[Econ3]=$G62))*T_DataComboFile[2017/18]*$B$3)","v":0},{"$f":"SUMPRODUCT(((T_DataComboFile[Implementation programme]=$G$3)*(T_DataComboFile[Econ3]=$G62))*T_DataComboFile[2018/19]*$B$3)","v":0},{"$f":"SUMPRODUCT(((T_DataComboFile[Implementation programme]=$G$3)*(T_DataComboFile[Econ3]=$G62))*T_DataComboFile[2019/20 Revised estimate]*$B$3)","v":0},{"$f":"SUMPRODUCT(((T_DataComboFile[Implementation programme]=$G$3)*(T_DataComboFile[Econ3]=$G62))*T_DataComboFile[2020/21 Revised]*$B$3)","v":0},{"$f":"SUMPRODUCT(((T_DataComboFile[Implementation programme]=$G$3)*(T_DataComboFile[Econ3]=$G62))*T_DataComboFile[2021/22 Baseline]*$B$3)","v":0},{"$f":"SUMPRODUCT(((T_DataComboFile[Implementation programme]=$G$3)*(T_DataComboFile[Econ3]=$G62))*T_DataComboFile[2021/22 Reduction]*$B$3)","v":0},{"$f":"SUMPRODUCT(((T_DataComboFile[Implementation programme]=$G$3)*(T_DataComboFile[Econ3]=$G62))*T_DataComboFile[2021/22 Increase]*$B$3)","v":0},0,{"$f":"SUMPRODUCT(((T_DataComboFile[Implementation programme]=$G$3)*(T_DataComboFile[Econ3]=$G62))*T_DataComboFile[2022/23 Baseline]*$B$3)","v":0},{"$f":"SUMPRODUCT(((T_DataComboFile[Implementation programme]=$G$3)*(T_DataComboFile[Econ3]=$G62))*T_DataComboFile[2022/23 Reduction]*$B$3)","v":0},{"$f":"SUMPRODUCT(((T_DataComboFile[Implementation programme]=$G$3)*(T_DataComboFile[Econ3]=$G62))*T_DataComboFile[2022/23 Increase]*$B$3)","v":0},0,{"$f":"SUMPRODUCT(((T_DataComboFile[Implementation programme]=$G$3)*(T_DataComboFile[Econ3]=$G62))*T_DataComboFile[2023/24 Baseline]*$B$3)","v":0},{"$f":"SUMPRODUCT(((T_DataComboFile[Implementation programme]=$G$3)*(T_DataComboFile[Econ3]=$G62))*T_DataComboFile[2023/24 Reduction]*$B$3)","v":0},{"$f":"SUMPRODUCT(((T_DataComboFile[Implementation programme]=$G$3)*(T_DataComboFile[Econ3]=$G62))*T_DataComboFile[2023/24 Increase]*$B$3)","v":0},0]
[0,0,null,null,null,null,"Software and other intangible assets",{"$f":"SUMPRODUCT(((T_DataComboFile[Implementation programme]=$G$3)*(T_DataComboFile[Econ3]=$G63))*T_DataComboFile[2017/18]*$B$3)","v":0},{"$f":"SUMPRODUCT(((T_DataComboFile[Implementation programme]=$G$3)*(T_DataComboFile[Econ3]=$G63))*T_DataComboFile[2018/19]*$B$3)","v":0},{"$f":"SUMPRODUCT(((T_DataComboFile[Implementation programme]=$G$3)*(T_DataComboFile[Econ3]=$G63))*T_DataComboFile[2019/20 Revised estimate]*$B$3)","v":0},{"$f":"SUMPRODUCT(((T_DataComboFile[Implementation programme]=$G$3)*(T_DataComboFile[Econ3]=$G63))*T_DataComboFile[2020/21 Revised]*$B$3)","v":0},{"$f":"SUMPRODUCT(((T_DataComboFile[Implementation programme]=$G$3)*(T_DataComboFile[Econ3]=$G63))*T_DataComboFile[2021/22 Baseline]*$B$3)","v":0},{"$f":"SUMPRODUCT(((T_DataComboFile[Implementation programme]=$G$3)*(T_DataComboFile[Econ3]=$G63))*T_DataComboFile[2021/22 Reduction]*$B$3)","v":0},{"$f":"SUMPRODUCT(((T_DataComboFile[Implementation programme]=$G$3)*(T_DataComboFile[Econ3]=$G63))*T_DataComboFile[2021/22 Increase]*$B$3)","v":0},0,{"$f":"SUMPRODUCT(((T_DataComboFile[Implementation programme]=$G$3)*(T_DataComboFile[Econ3]=$G63))*T_DataComboFile[2022/23 Baseline]*$B$3)","v":0},{"$f":"SUMPRODUCT(((T_DataComboFile[Implementation programme]=$G$3)*(T_DataComboFile[Econ3]=$G63))*T_DataComboFile[2022/23 Reduction]*$B$3)","v":0},{"$f":"SUMPRODUCT(((T_DataComboFile[Implementation programme]=$G$3)*(T_DataComboFile[Econ3]=$G63))*T_DataComboFile[2022/23 Increase]*$B$3)","v":0},0,{"$f":"SUMPRODUCT(((T_DataComboFile[Implementation programme]=$G$3)*(T_DataComboFile[Econ3]=$G63))*T_DataComboFile[2023/24 Baseline]*$B$3)","v":0},{"$f":"SUMPRODUCT(((T_DataComboFile[Implementation programme]=$G$3)*(T_DataComboFile[Econ3]=$G63))*T_DataComboFile[2023/24 Reduction]*$B$3)","v":0},{"$f":"SUMPRODUCT(((T_DataComboFile[Implementation programme]=$G$3)*(T_DataComboFile[Econ3]=$G63))*T_DataComboFile[2023/24 Increase]*$B$3)","v":0},0]
[0,0,null,null,null,null,"Payments for financial assets",{"$f":"SUMPRODUCT(((T_DataComboFile[Implementation programme]=$G$3)*(T_DataComboFile[Econ3]=$G64))*T_DataComboFile[2017/18]*$B$3)","v":0},{"$f":"SUMPRODUCT(((T_DataComboFile[Implementation programme]=$G$3)*(T_DataComboFile[Econ3]=$G64))*T_DataComboFile[2018/19]*$B$3)","v":0},{"$f":"SUMPRODUCT(((T_DataComboFile[Implementation programme]=$G$3)*(T_DataComboFile[Econ3]=$G64))*T_DataComboFile[2019/20 Revised estimate]*$B$3)","v":0},{"$f":"SUMPRODUCT(((T_DataComboFile[Implementation programme]=$G$3)*(T_DataComboFile[Econ3]=$G64))*T_DataComboFile[2020/21 Revised]*$B$3)","v":0},{"$f":"SUMPRODUCT(((T_DataComboFile[Implementation programme]=$G$3)*(T_DataComboFile[Econ3]=$G64))*T_DataComboFile[2021/22 Baseline]*$B$3)","v":0},{"$f":"SUMPRODUCT(((T_DataComboFile[Implementation programme]=$G$3)*(T_DataComboFile[Econ3]=$G64))*T_DataComboFile[2021/22 Reduction]*$B$3)","v":0},{"$f":"SUMPRODUCT(((T_DataComboFile[Implementation programme]=$G$3)*(T_DataComboFile[Econ3]=$G64))*T_DataComboFile[2021/22 Increase]*$B$3)","v":0},0,{"$f":"SUMPRODUCT(((T_DataComboFile[Implementation programme]=$G$3)*(T_DataComboFile[Econ3]=$G64))*T_DataComboFile[2022/23 Baseline]*$B$3)","v":0},{"$f":"SUMPRODUCT(((T_DataComboFile[Implementation programme]=$G$3)*(T_DataComboFile[Econ3]=$G64))*T_DataComboFile[2022/23 Reduction]*$B$3)","v":0},{"$f":"SUMPRODUCT(((T_DataComboFile[Implementation programme]=$G$3)*(T_DataComboFile[Econ3]=$G64))*T_DataComboFile[2022/23 Increase]*$B$3)","v":0},0,{"$f":"SUMPRODUCT(((T_DataComboFile[Implementation programme]=$G$3)*(T_DataComboFile[Econ3]=$G64))*T_DataComboFile[2023/24 Baseline]*$B$3)","v":0},{"$f":"SUMPRODUCT(((T_DataComboFile[Implementation programme]=$G$3)*(T_DataComboFile[Econ3]=$G64))*T_DataComboFile[2023/24 Reduction]*$B$3)","v":0},{"$f":"SUMPRODUCT(((T_DataComboFile[Implementation programme]=$G$3)*(T_DataComboFile[Econ3]=$G64))*T_DataComboFile[2023/24 Increase]*$B$3)","v":0},0]
[0,0,null,null,null,null,"Total",{"$f":"SUM(H32,H36,H52,H64)","v":0},0,0,0,0,0,0,0,0,0,0,0,0,0,0,0]
[]
[]
[]
[]
[]
[null,null,null,null,null,null,{"$f":"\"IMPACT OF ADJUSTMENTS: \" &UPPER($G$3)","v":"IMPACT OF ADJUSTMENTS: "}]
[]
[null,null,null,null,null,1,"Summary of impact on service delivery due to adjustments"]
[{"$f":"$G$3","v":0},1]
[0,1]
[0,1]
[0,1]
[0,1]
[0,1]
[0,1]
[0,1]
[0,1]
[0,1]
[0,1]
[0,1]
[0,1]
[0,1]
[0,1]
[]
[]
[]
[]
[]
[null,null,null,null,null,2,"Impact of adjustments on performance indicators"]
[{"$f":"$G$3","v":0},2,null,null,null,null,null,"2021/22",null,null,"2022/23",null,null,"2023/24",null,null," Comment",null,null,null,null,"Related MTSF Priority"]
[0,2,null,null,null,null,"Performance indicator","Original target","Revised target","Change","Original target","Revised target","Change","Original target","Revised target","Change"]
[0,2]
[0,2]
[0,2]
[0,2]
[0,2]
[0,2]
[0,2]
[0,2]
[0,2]
[0,2]
[0,2]
[0,2]
[0,2]
[0,2]
[0,2]
[]
[]
[]
[]
[]
[null,null,null,null,null,3,"Impact of adjustments on infrastructure projects"]
[{"$f":"$G$3","v":0},3,null,null,null,null,null,"2021/22",null,null,"2022/23",null,null,"2023/24",null,null," Comment"]
[0,3,null,null,null,null,"Project name","Original amount","Revised amount","Change","Original amount","Revised amount","Change","Original amount","Revised amount","Change"]
[0,3,null,null,null,null,null,null,null,{"$f":"I120-H120","v":0},null,null,{"$f":"L120-K120","v":0},null,null,{"$f":"O120-N120","v":0}]
[0,3,null,null,null,null,null,null,null,0,null,null,0,null,null,0]
[0,3,null,null,null,null,null,null,null,0,null,null,0,null,null,0]
[0,3,null,null,null,null,null,null,null,0,null,null,0,null,null,0]
[0,3,null,null,null,null,null,null,null,0,null,null,0,null,null,0]
[0,3,null,null,null,null,null,null,null,0,null,null,0,null,null,0]
[0,3,null,null,null,null,null,null,null,0,null,null,0,null,null,0]
[0,3,null,null,null,null,null,null,null,0,null,null,0,null,null,0]
[0,3,null,null,null,null,null,null,null,0,null,null,0,null,null,0]
[0,3,null,null,null,null,null,null,null,0,null,null,0,null,null,0]
[0,3,null,null,null,null,null,null,null,0,null,null,0,null,null,0]
[0,3,null,null,null,null,null,null,null,0,null,null,0,null,null,0]
[0,3,null,null,null,null,null,null,null,0,null,null,0,null,null,0]
[0,3,null,null,null,null,null,null,null,0,null,null,0,null,null,0]
[0,3,null,null,null,null,null,null,null,0,null,null,0,null,null,0]
[0,3,null,null,null,null,"Total",{"$f":"SUM(H120:H134)","v":0},0,0,0,0,0,0,0,0]
[]
[]
[]
[]
[]
[null,null,null,null,null,4,"Impact of adjustments on personnel headcount numbers"]
[{"$f":"$G$3","v":0},4,null,null,null,null,null,"2021/22",null,null,"2022/23",null,null,"2023/24",null,null," Comment"]
[0,4,null,null,null,null,"Salary level","Original number","Revised number","Change","Original number","Revised number","Change","Original number","Revised number","Change"]
[0,4,null,null,null,null,1,null,null,{"$f":"I144-H144","v":0},null,null,{"$f":"L144-K144","v":0},null,null,{"$f":"O144-N144","v":0}]
[0,4,null,null,null,null,2,null,null,0,null,null,0,null,null,0]
[0,4,null,null,null,null,3,null,null,0,null,null,0,null,null,0]
[0,4,null,null,null,null,4,null,null,0,null,null,0,null,null,0]
[0,4,null,null,null,null,5,null,null,0,null,null,0,null,null,0]
[0,4,null,null,null,null,6,null,null,0,null,null,0,null,null,0]
[0,4,null,null,null,null,7,null,null,0,null,null,0,null,null,0]
[0,4,null,null,null,null,8,null,null,0,null,null,0,null,null,0]
[0,4,null,null,null,null,9,null,null,0,null,null,0,null,null,0]
[0,4,null,null,null,null,10,null,null,0,null,null,0,null,null,0]
[0,4,null,null,null,null,11,null,null,0,null,null,0,null,null,0]
[0,4,null,null,null,null,12,null,null,0,null,null,0,null,null,0]
[0,4,null,null,null,null,13,null,null,0,null,null,0,null,null,0]
[0,4,null,null,null,null,14,null,null,0,null,null,0,null,null,0]
[0,4,null,null,null,null,15,null,null,0,null,null,0,null,null,0]
[0,4,null,null,null,null,16,null,null,0,null,null,0,null,null,0]
[0,4,null,null,null,null,"Other",null,null,0,null,null,0,null,null,0]
[0,4,null,null,null,null,"Other",null,null,0,null,null,0,null,null,0]
[0,4,null,null,null,null,"Other",null,null,0,null,null,0,null,null,0]
[0,4,null,null,null,null,"Other",null,null,0,null,null,0,null,null,0]
[0,4,null,null,null,null,"Total",{"$f":"SUM(H144:H163)","v":0},0,0,0,0,0,0,0,0]
[]
[]
[]
[]
[]
[null,null,null,null,null,5,"Impact of adjustments by economic classification"]
[{"$f":"$G$3","v":0},5,null,null,null,null,null,"2021/22",null,null,"2022/23",null,null,"2023/24",null,null," Comment"]
[0,5,null,null,null,null,"Salary level","Original number","Revised number","Change","Original number","Revised number","Change","Original number","Revised number","Change"]
[0,5,null,null,null,null,"Current payments",{"$f":"SUM(H174,H175,H182)","v":0},{"$f":"SUM(I174,I175,I182)","v":0},{"$f":"I173-H173","v":0},{"$f":"SUM(K174,K175,K182)","v":0},{"$f":"SUM(L174,L175,L182)","v":0},{"$f":"L173-K173","v":0},{"$f":"SUM(N174,N175,N182)","v":0},{"$f":"SUM(O174,O175,O182)","v":0},{"$f":"O173-N173","v":0}]
[0,5,null,null,null,null,"Compensation of employees",{"$f":"SUMPRODUCT(((T_DataComboFile[Implementation programme]=$G$3)*(T_DataComboFile[Econ3]=$G174))*T_DataComboFile[2021/22 Baseline]*$B$3)","v":0},{"$f":"SUMPRODUCT(((T_DataComboFile[Implementation programme]=$G$3)*(T_DataComboFile[Econ3]=$G174))*T_DataComboFile[2021/22 Revised baseline]*$B$3)","v":0},0,{"$f":"SUMPRODUCT(((T_DataComboFile[Implementation programme]=$G$3)*(T_DataComboFile[Econ3]=$G174))*T_DataComboFile[2022/23 Baseline]*$B$3)","v":0},{"$f":"SUMPRODUCT(((T_DataComboFile[Implementation programme]=$G$3)*(T_DataComboFile[Econ3]=$G174))*T_DataComboFile[2022/23 Revised baseline]*$B$3)","v":0},0,{"$f":"SUMPRODUCT(((T_DataComboFile[Implementation programme]=$G$3)*(T_DataComboFile[Econ3]=$G174))*T_DataComboFile[2023/24 Baseline]*$B$3)","v":0},{"$f":"SUMPRODUCT(((T_DataComboFile[Implementation programme]=$G$3)*(T_DataComboFile[Econ3]=$G174))*T_DataComboFile[2023/24 Revised baseline]*$B$3)","v":0},0]
[0,5,null,null,null,null,"Goods and services",{"$f":"SUMPRODUCT(((T_DataComboFile[Implementation programme]=$G$3)*(T_DataComboFile[Econ3]=$G175))*T_DataComboFile[2021/22 Baseline]*$B$3)","v":0},{"$f":"SUMPRODUCT(((T_DataComboFile[Implementation programme]=$G$3)*(T_DataComboFile[Econ3]=$G175))*T_DataComboFile[2021/22 Revised baseline]*$B$3)","v":0},0,{"$f":"SUMPRODUCT(((T_DataComboFile[Implementation programme]=$G$3)*(T_DataComboFile[Econ3]=$G175))*T_DataComboFile[2022/23 Baseline]*$B$3)","v":0},{"$f":"SUMPRODUCT(((T_DataComboFile[Implementation programme]=$G$3)*(T_DataComboFile[Econ3]=$G175))*T_DataComboFile[2022/23 Revised baseline]*$B$3)","v":0},0,{"$f":"SUMPRODUCT(((T_DataComboFile[Implementation programme]=$G$3)*(T_DataComboFile[Econ3]=$G175))*T_DataComboFile[2023/24 Baseline]*$B$3)","v":0},{"$f":"SUMPRODUCT(((T_DataComboFile[Implementation programme]=$G$3)*(T_DataComboFile[Econ3]=$G175))*T_DataComboFile[2023/24 Revised baseline]*$B$3)","v":0},0]
[0,50,null,null,null,null,"of which:"]
[0,51,null,null,null,null,null,null,null,{"$f":"I177-H177","v":0},null,null,{"$f":"L177-K177","v":0},null,null,0]
[0,51,null,null,null,null,null,null,null,0,null,null,0,null,null,0]
[0,51,null,null,null,null,null,null,null,0,null,null,0,null,null,0]
[0,51,null,null,null,null,null,null,null,0,null,null,0,null,null,0]
[0,51,null,null,null,null,null,null,null,0,null,null,0,null,null,0]
[0,5,null,null,null,null,"Interest and rent on land",{"$f":"SUMPRODUCT(((T_DataComboFile[Implementation programme]=$G$3)*(T_DataComboFile[Econ3]=$G182))*T_DataComboFile[2021/22 Baseline]*$B$3)","v":0},{"$f":"SUMPRODUCT(((T_DataComboFile[Implementation programme]=$G$3)*(T_DataComboFile[Econ3]=$G182))*T_DataComboFile[2021/22 Revised baseline]*$B$3)","v":0},0,{"$f":"SUMPRODUCT(((T_DataComboFile[Implementation programme]=$G$3)*(T_DataComboFile[Econ3]=$G182))*T_DataComboFile[2022/23 Baseline]*$B$3)","v":0},{"$f":"SUMPRODUCT(((T_DataComboFile[Implementation programme]=$G$3)*(T_DataComboFile[Econ3]=$G182))*T_DataComboFile[2022/23 Revised baseline]*$B$3)","v":0},0,{"$f":"SUMPRODUCT(((T_DataComboFile[Implementation programme]=$G$3)*(T_DataComboFile[Econ3]=$G182))*T_DataComboFile[2023/24 Baseline]*$B$3)","v":0},{"$f":"SUMPRODUCT(((T_DataComboFile[Implementation programme]=$G$3)*(T_DataComboFile[Econ3]=$G182))*T_DataComboFile[2023/24 Revised baseline]*$B$3)","v":0},0]
[0,5,null,null,null,null,"Transfers and subsidies",{"$f":"SUM(H184,H185,H197,H198,H199,H206,H207)","v":0},{"$f":"SUM(I184,I185,I197,I198,I199,I206,I207)","v":0},0,{"$f":"SUM(K184,K185,K197,K198,K199,K206,K207)","v":0},0,0,{"$f":"SUM(N184,N185,N197,N198,N199,N206,N207)","v":0},0,0]
[0,5,null,null,null,null,"Provinces and municipalities",{"$f":"SUMPRODUCT(((T_DataComboFile[Implementation programme]=$G$3)*(T_DataComboFile[Econ3]=$G184))*T_DataComboFile[2021/22 Baseline]*$B$3)","v":0},{"$f":"SUMPRODUCT(((T_DataComboFile[Implementation programme]=$G$3)*(T_DataComboFile[Econ3]=$G184))*T_DataComboFile[2021/22 Revised baseline]*$B$3)","v":0},0,{"$f":"SUMPRODUCT(((T_DataComboFile[Implementation programme]=$G$3)*(T_DataComboFile[Econ3]=$G184))*T_DataComboFile[2022/23 Baseline]*$B$3)","v":0},{"$f":"SUMPRODUCT(((T_DataComboFile[Implementation programme]=$G$3)*(T_DataComboFile[Econ3]=$G184))*T_DataComboFile[2022/23 Revised baseline]*$B$3)","v":0},0,{"$f":"SUMPRODUCT(((T_DataComboFile[Implementation programme]=$G$3)*(T_DataComboFile[Econ3]=$G184))*T_DataComboFile[2023/24 Baseline]*$B$3)","v":0},{"$f":"SUMPRODUCT(((T_DataComboFile[Implementation programme]=$G$3)*(T_DataComboFile[Econ3]=$G184))*T_DataComboFile[2023/24 Revised baseline]*$B$3)","v":0},0]
[0,5,null,null,null,null,"Departmental agencies and accounts",{"$f":"SUMPRODUCT(((T_DataComboFile[Implementation programme]=$G$3)*(T_DataComboFile[Econ3]=$G185))*T_DataComboFile[2021/22 Baseline]*$B$3)","v":0},{"$f":"SUMPRODUCT(((T_DataComboFile[Implementation programme]=$G$3)*(T_DataComboFile[Econ3]=$G185))*T_DataComboFile[2021/22 Revised baseline]*$B$3)","v":0},0,{"$f":"SUMPRODUCT(((T_DataComboFile[Implementation programme]=$G$3)*(T_DataComboFile[Econ3]=$G185))*T_DataComboFile[2022/23 Baseline]*$B$3)","v":0},{"$f":"SUMPRODUCT(((T_DataComboFile[Implementation programme]=$G$3)*(T_DataComboFile[Econ3]=$G185))*T_DataComboFile[2022/23 Revised baseline]*$B$3)","v":0},0,{"$f":"SUMPRODUCT(((T_DataComboFile[Implementation programme]=$G$3)*(T_DataComboFile[Econ3]=$G185))*T_DataComboFile[2023/24 Baseline]*$B$3)","v":0},{"$f":"SUMPRODUCT(((T_DataComboFile[Implementation programme]=$G$3)*(T_DataComboFile[Econ3]=$G185))*T_DataComboFile[2023/24 Revised baseline]*$B$3)","v":0},0]
[0,50,null,null,null,null,"of which:"]
[0,52,null,null,null,null,null,null,null,{"$f":"I187-H187","v":0},null,null,{"$f":"L187-K187","v":0},null,null,{"$f":"O187-N187","v":0}]
[0,52,null,null,null,null,null,null,null,0,null,null,0,null,null,0]
[0,52,null,null,null,null,null,null,null,0,null,null,0,null,null,0]
[0,52,null,null,null,null,null,null,null,0,null,null,0,null,null,0]
[0,52,null,null,null,null,null,null,null,0,null,null,0,null,null,0]
[0,52,null,null,null,null,null,null,null,0,null,null,0,null,null,0]
[0,52,null,null,null,null,null,null,null,0,null,null,0,null,null,0]
[0,52,null,null,null,null,null,null,null,0,null,null,0,null,null,0]
[0,52,null,null,null,null,null,null,null,0,null,null,0,null,null,0]
[0,52,null,null,null,null,null,null,null,0,null,null,0,null,null,0]
[0,5,null,null,null,null,"Higher education institutions",{"$f":"SUMPRODUCT(((T_DataComboFile[Implementation programme]=$G$3)*(T_DataComboFile[Econ3]=$G197))*T_DataComboFile[2021/22 Baseline]*$B$3)","v":0},{"$f":"SUMPRODUCT(((T_DataComboFile[Implementation programme]=$G$3)*(T_DataComboFile[Econ3]=$G197))*T_DataComboFile[2021/22 Revised baseline]*$B$3)","v":0},0,{"$f":"SUMPRODUCT(((T_DataComboFile[Implementation programme]=$G$3)*(T_DataComboFile[Econ3]=$G197))*T_DataComboFile[2022/23 Baseline]*$B$3)","v":0},{"$f":"SUMPRODUCT(((T_DataComboFile[Implementation programme]=$G$3)*(T_DataComboFile[Econ3]=$G197))*T_DataComboFile[2022/23 Revised baseline]*$B$3)","v":0},0,{"$f":"SUMPRODUCT(((T_DataComboFile[Implementation programme]=$G$3)*(T_DataComboFile[Econ3]=$G197))*T_DataComboFile[2023/24 Baseline]*$B$3)","v":0},{"$f":"SUMPRODUCT(((T_DataComboFile[Implementation programme]=$G$3)*(T_DataComboFile[Econ3]=$G197))*T_DataComboFile[2023/24 Revised baseline]*$B$3)","v":0},0]
[0,5,null,null,null,null,"Foreign governments and international organisations",{"$f":"SUMPRODUCT(((T_DataComboFile[Implementation programme]=$G$3)*(T_DataComboFile[Econ3]=$G198))*T_DataComboFile[2021/22 Baseline]*$B$3)","v":0},{"$f":"SUMPRODUCT(((T_DataComboFile[Implementation programme]=$G$3)*(T_DataComboFile[Econ3]=$G198))*T_DataComboFile[2021/22 Revised baseline]*$B$3)","v":0},0,{"$f":"SUMPRODUCT(((T_DataComboFile[Implementation programme]=$G$3)*(T_DataComboFile[Econ3]=$G198))*T_DataComboFile[2022/23 Baseline]*$B$3)","v":0},{"$f":"SUMPRODUCT(((T_DataComboFile[Implementation programme]=$G$3)*(T_DataComboFile[Econ3]=$G198))*T_DataComboFile[2022/23 Revised baseline]*$B$3)","v":0},0,{"$f":"SUMPRODUCT(((T_DataComboFile[Implementation programme]=$G$3)*(T_DataComboFile[Econ3]=$G198))*T_DataComboFile[2023/24 Baseline]*$B$3)","v":0},{"$f":"SUMPRODUCT(((T_DataComboFile[Implementation programme]=$G$3)*(T_DataComboFile[Econ3]=$G198))*T_DataComboFile[2023/24 Revised baseline]*$B$3)","v":0},0]
[0,5,null,null,null,null,"Public corporations and private enterprises",{"$f":"SUMPRODUCT(((T_DataComboFile[Implementation programme]=$G$3)*(T_DataComboFile[Econ3]=$G199))*T_DataComboFile[2021/22 Baseline]*$B$3)","v":0},{"$f":"SUMPRODUCT(((T_DataComboFile[Implementation programme]=$G$3)*(T_DataComboFile[Econ3]=$G199))*T_DataComboFile[2021/22 Revised baseline]*$B$3)","v":0},0,{"$f":"SUMPRODUCT(((T_DataComboFile[Implementation programme]=$G$3)*(T_DataComboFile[Econ3]=$G199))*T_DataComboFile[2022/23 Baseline]*$B$3)","v":0},{"$f":"SUMPRODUCT(((T_DataComboFile[Implementation programme]=$G$3)*(T_DataComboFile[Econ3]=$G199))*T_DataComboFile[2022/23 Revised baseline]*$B$3)","v":0},0,{"$f":"SUMPRODUCT(((T_DataComboFile[Implementation programme]=$G$3)*(T_DataComboFile[Econ3]=$G199))*T_DataComboFile[2023/24 Baseline]*$B$3)","v":0},{"$f":"SUMPRODUCT(((T_DataComboFile[Implementation programme]=$G$3)*(T_DataComboFile[Econ3]=$G199))*T_DataComboFile[2023/24 Revised baseline]*$B$3)","v":0},0]
[0,50,null,null,null,null,"of which:"]
[0,53,null,null,null,null,null,null,null,{"$f":"I201-H201","v":0},null,null,{"$f":"L201-K201","v":0},null,null,{"$f":"O201-N201","v":0}]
[0,53,null,null,null,null,null,null,null,0,null,null,0,null,null,0]
[0,53,null,null,null,null,null,null,null,0,null,null,0,null,null,0]
[0,53,null,null,null,null,null,null,null,0,null,null,0,null,null,0]
[0,53,null,null,null,null,null,null,null,0,null,null,0,null,null,0]
[0,5,null,null,null,null,"Non-profit institutions",{"$f":"SUMPRODUCT(((T_DataComboFile[Implementation programme]=$G$3)*(T_DataComboFile[Econ3]=$G206))*T_DataComboFile[2021/22 Baseline]*$B$3)","v":0},{"$f":"SUMPRODUCT(((T_DataComboFile[Implementation programme]=$G$3)*(T_DataComboFile[Econ3]=$G206))*T_DataComboFile[2021/22 Revised baseline]*$B$3)","v":0},0,{"$f":"SUMPRODUCT(((T_DataComboFile[Implementation programme]=$G$3)*(T_DataComboFile[Econ3]=$G206))*T_DataComboFile[2022/23 Baseline]*$B$3)","v":0},{"$f":"SUMPRODUCT(((T_DataComboFile[Implementation programme]=$G$3)*(T_DataComboFile[Econ3]=$G206))*T_DataComboFile[2022/23 Revised baseline]*$B$3)","v":0},0,{"$f":"SUMPRODUCT(((T_DataComboFile[Implementation programme]=$G$3)*(T_DataComboFile[Econ3]=$G206))*T_DataComboFile[2023/24 Baseline]*$B$3)","v":0},{"$f":"SUMPRODUCT(((T_DataComboFile[Implementation programme]=$G$3)*(T_DataComboFile[Econ3]=$G206))*T_DataComboFile[2023/24 Revised baseline]*$B$3)","v":0},0]
[0,5,null,null,null,null,"Households",{"$f":"SUMPRODUCT(((T_DataComboFile[Implementation programme]=$G$3)*(T_DataComboFile[Econ3]=$G207))*T_DataComboFile[2021/22 Baseline]*$B$3)","v":0},{"$f":"SUMPRODUCT(((T_DataComboFile[Implementation programme]=$G$3)*(T_DataComboFile[Econ3]=$G207))*T_DataComboFile[2021/22 Revised baseline]*$B$3)","v":0},0,{"$f":"SUMPRODUCT(((T_DataComboFile[Implementation programme]=$G$3)*(T_DataComboFile[Econ3]=$G207))*T_DataComboFile[2022/23 Baseline]*$B$3)","v":0},{"$f":"SUMPRODUCT(((T_DataComboFile[Implementation programme]=$G$3)*(T_DataComboFile[Econ3]=$G207))*T_DataComboFile[2022/23 Revised baseline]*$B$3)","v":0},0,{"$f":"SUMPRODUCT(((T_DataComboFile[Implementation programme]=$G$3)*(T_DataComboFile[Econ3]=$G207))*T_DataComboFile[2023/24 Baseline]*$B$3)","v":0},{"$f":"SUMPRODUCT(((T_DataComboFile[Implementation programme]=$G$3)*(T_DataComboFile[Econ3]=$G207))*T_DataComboFile[2023/24 Revised baseline]*$B$3)","v":0},0]
[0,5,null,null,null,null,"Payments for capital assets",{"$f":"SUM(H209:H215)","v":0},0,0,0,0,0,0,{"$f":"SUM(O209:O215)","v":0},0]
[0,5,null,null,null,null,"Buildings and other fixed structures",{"$f":"SUMPRODUCT(((T_DataComboFile[Implementation programme]=$G$3)*(T_DataComboFile[Econ3]=$G209))*T_DataComboFile[2021/22 Baseline]*$B$3)","v":0},{"$f":"SUMPRODUCT(((T_DataComboFile[Implementation programme]=$G$3)*(T_DataComboFile[Econ3]=$G209))*T_DataComboFile[2021/22 Revised baseline]*$B$3)","v":0},0,{"$f":"SUMPRODUCT(((T_DataComboFile[Implementation programme]=$G$3)*(T_DataComboFile[Econ3]=$G209))*T_DataComboFile[2022/23 Baseline]*$B$3)","v":0},{"$f":"SUMPRODUCT(((T_DataComboFile[Implementation programme]=$G$3)*(T_DataComboFile[Econ3]=$G209))*T_DataComboFile[2022/23 Revised baseline]*$B$3)","v":0},0,{"$f":"SUMPRODUCT(((T_DataComboFile[Implementation programme]=$G$3)*(T_DataComboFile[Econ3]=$G209))*T_DataComboFile[2023/24 Baseline]*$B$3)","v":0},{"$f":"SUMPRODUCT(((T_DataComboFile[Implementation programme]=$G$3)*(T_DataComboFile[Econ3]=$G209))*T_DataComboFile[2023/24 Revised baseline]*$B$3)","v":0},0]
[0,5,null,null,null,null,"Machinery and equipment",{"$f":"SUMPRODUCT(((T_DataComboFile[Implementation programme]=$G$3)*(T_DataComboFile[Econ3]=$G210))*T_DataComboFile[2021/22 Baseline]*$B$3)","v":0},{"$f":"SUMPRODUCT(((T_DataComboFile[Implementation programme]=$G$3)*(T_DataComboFile[Econ3]=$G210))*T_DataComboFile[2021/22 Revised baseline]*$B$3)","v":0},0,{"$f":"SUMPRODUCT(((T_DataComboFile[Implementation programme]=$G$3)*(T_DataComboFile[Econ3]=$G210))*T_DataComboFile[2022/23 Baseline]*$B$3)","v":0},{"$f":"SUMPRODUCT(((T_DataComboFile[Implementation programme]=$G$3)*(T_DataComboFile[Econ3]=$G210))*T_DataComboFile[2022/23 Revised baseline]*$B$3)","v":0},0,{"$f":"SUMPRODUCT(((T_DataComboFile[Implementation programme]=$G$3)*(T_DataComboFile[Econ3]=$G210))*T_DataComboFile[2023/24 Baseline]*$B$3)","v":0},{"$f":"SUMPRODUCT(((T_DataComboFile[Implementation programme]=$G$3)*(T_DataComboFile[Econ3]=$G210))*T_DataComboFile[2023/24 Revised baseline]*$B$3)","v":0},0]
[0,5,null,null,null,null,"Heritage assets",{"$f":"SUMPRODUCT(((T_DataComboFile[Implementation programme]=$G$3)*(T_DataComboFile[Econ3]=$G211))*T_DataComboFile[2021/22 Baseline]*$B$3)","v":0},{"$f":"SUMPRODUCT(((T_DataComboFile[Implementation programme]=$G$3)*(T_DataComboFile[Econ3]=$G211))*T_DataComboFile[2021/22 Revised baseline]*$B$3)","v":0},0,{"$f":"SUMPRODUCT(((T_DataComboFile[Implementation programme]=$G$3)*(T_DataComboFile[Econ3]=$G211))*T_DataComboFile[2022/23 Baseline]*$B$3)","v":0},{"$f":"SUMPRODUCT(((T_DataComboFile[Implementation programme]=$G$3)*(T_DataComboFile[Econ3]=$G211))*T_DataComboFile[2022/23 Revised baseline]*$B$3)","v":0},0,{"$f":"SUMPRODUCT(((T_DataComboFile[Implementation programme]=$G$3)*(T_DataComboFile[Econ3]=$G211))*T_DataComboFile[2023/24 Baseline]*$B$3)","v":0},{"$f":"SUMPRODUCT(((T_DataComboFile[Implementation programme]=$G$3)*(T_DataComboFile[Econ3]=$G211))*T_DataComboFile[2023/24 Revised baseline]*$B$3)","v":0},0]
[0,5,null,null,null,null,"Specialised military assets",{"$f":"SUMPRODUCT(((T_DataComboFile[Implementation programme]=$G$3)*(T_DataComboFile[Econ3]=$G212))*T_DataComboFile[2021/22 Baseline]*$B$3)","v":0},{"$f":"SUMPRODUCT(((T_DataComboFile[Implementation programme]=$G$3)*(T_DataComboFile[Econ3]=$G212))*T_DataComboFile[2021/22 Revised baseline]*$B$3)","v":0},0,{"$f":"SUMPRODUCT(((T_DataComboFile[Implementation programme]=$G$3)*(T_DataComboFile[Econ3]=$G212))*T_DataComboFile[2022/23 Baseline]*$B$3)","v":0},{"$f":"SUMPRODUCT(((T_DataComboFile[Implementation programme]=$G$3)*(T_DataComboFile[Econ3]=$G212))*T_DataComboFile[2022/23 Revised baseline]*$B$3)","v":0},0,{"$f":"SUMPRODUCT(((T_DataComboFile[Implementation programme]=$G$3)*(T_DataComboFile[Econ3]=$G212))*T_DataComboFile[2023/24 Baseline]*$B$3)","v":0},{"$f":"SUMPRODUCT(((T_DataComboFile[Implementation programme]=$G$3)*(T_DataComboFile[Econ3]=$G212))*T_DataComboFile[2023/24 Revised baseline]*$B$3)","v":0},0]
[0,5,null,null,null,null,"Biological assets",{"$f":"SUMPRODUCT(((T_DataComboFile[Implementation programme]=$G$3)*(T_DataComboFile[Econ3]=$G213))*T_DataComboFile[2021/22 Baseline]*$B$3)","v":0},{"$f":"SUMPRODUCT(((T_DataComboFile[Implementation programme]=$G$3)*(T_DataComboFile[Econ3]=$G213))*T_DataComboFile[2021/22 Revised baseline]*$B$3)","v":0},0,{"$f":"SUMPRODUCT(((T_DataComboFile[Implementation programme]=$G$3)*(T_DataComboFile[Econ3]=$G213))*T_DataComboFile[2022/23 Baseline]*$B$3)","v":0},{"$f":"SUMPRODUCT(((T_DataComboFile[Implementation programme]=$G$3)*(T_DataComboFile[Econ3]=$G213))*T_DataComboFile[2022/23 Revised baseline]*$B$3)","v":0},0,{"$f":"SUMPRODUCT(((T_DataComboFile[Implementation programme]=$G$3)*(T_DataComboFile[Econ3]=$G213))*T_DataComboFile[2023/24 Baseline]*$B$3)","v":0},{"$f":"SUMPRODUCT(((T_DataComboFile[Implementation programme]=$G$3)*(T_DataComboFile[Econ3]=$G213))*T_DataComboFile[2023/24 Revised baseline]*$B$3)","v":0},0]
[0,5,null,null,null,null,"Land and sub-soil assets",{"$f":"SUMPRODUCT(((T_DataComboFile[Implementation programme]=$G$3)*(T_DataComboFile[Econ3]=$G214))*T_DataComboFile[2021/22 Baseline]*$B$3)","v":0},{"$f":"SUMPRODUCT(((T_DataComboFile[Implementation programme]=$G$3)*(T_DataComboFile[Econ3]=$G214))*T_DataComboFile[2021/22 Revised baseline]*$B$3)","v":0},0,{"$f":"SUMPRODUCT(((T_DataComboFile[Implementation programme]=$G$3)*(T_DataComboFile[Econ3]=$G214))*T_DataComboFile[2022/23 Baseline]*$B$3)","v":0},{"$f":"SUMPRODUCT(((T_DataComboFile[Implementation programme]=$G$3)*(T_DataComboFile[Econ3]=$G214))*T_DataComboFile[2022/23 Revised baseline]*$B$3)","v":0},0,{"$f":"SUMPRODUCT(((T_DataComboFile[Implementation programme]=$G$3)*(T_DataComboFile[Econ3]=$G214))*T_DataComboFile[2023/24 Baseline]*$B$3)","v":0},{"$f":"SUMPRODUCT(((T_DataComboFile[Implementation programme]=$G$3)*(T_DataComboFile[Econ3]=$G214))*T_DataComboFile[2023/24 Revised baseline]*$B$3)","v":0},0]
[0,5,null,null,null,null,"Software and other intangible assets",{"$f":"SUMPRODUCT(((T_DataComboFile[Implementation programme]=$G$3)*(T_DataComboFile[Econ3]=$G215))*T_DataComboFile[2021/22 Baseline]*$B$3)","v":0},{"$f":"SUMPRODUCT(((T_DataComboFile[Implementation programme]=$G$3)*(T_DataComboFile[Econ3]=$G215))*T_DataComboFile[2021/22 Revised baseline]*$B$3)","v":0},0,{"$f":"SUMPRODUCT(((T_DataComboFile[Implementation programme]=$G$3)*(T_DataComboFile[Econ3]=$G215))*T_DataComboFile[2022/23 Baseline]*$B$3)","v":0},{"$f":"SUMPRODUCT(((T_DataComboFile[Implementation programme]=$G$3)*(T_DataComboFile[Econ3]=$G215))*T_DataComboFile[2022/23 Revised baseline]*$B$3)","v":0},0,{"$f":"SUMPRODUCT(((T_DataComboFile[Implementation programme]=$G$3)*(T_DataComboFile[Econ3]=$G215))*T_DataComboFile[2023/24 Baseline]*$B$3)","v":0},{"$f":"SUMPRODUCT(((T_DataComboFile[Implementation programme]=$G$3)*(T_DataComboFile[Econ3]=$G215))*T_DataComboFile[2023/24 Revised baseline]*$B$3)","v":0},0]
[0,5,null,null,null,null,"Payments for financial assets",{"$f":"SUMPRODUCT(((T_DataComboFile[Implementation programme]=$G$3)*(T_DataComboFile[Econ3]=$G216))*T_DataComboFile[2021/22 Baseline]*$B$3)","v":0},{"$f":"SUMPRODUCT(((T_DataComboFile[Implementation programme]=$G$3)*(T_DataComboFile[Econ3]=$G216))*T_DataComboFile[2021/22 Revised baseline]*$B$3)","v":0},0,{"$f":"SUMPRODUCT(((T_DataComboFile[Implementation programme]=$G$3)*(T_DataComboFile[Econ3]=$G216))*T_DataComboFile[2022/23 Baseline]*$B$3)","v":0},{"$f":"SUMPRODUCT(((T_DataComboFile[Implementation programme]=$G$3)*(T_DataComboFile[Econ3]=$G216))*T_DataComboFile[2022/23 Revised baseline]*$B$3)","v":0},0,{"$f":"SUMPRODUCT(((T_DataComboFile[Implementation programme]=$G$3)*(T_DataComboFile[Econ3]=$G216))*T_DataComboFile[2023/24 Baseline]*$B$3)","v":0},{"$f":"SUMPRODUCT(((T_DataComboFile[Implementation programme]=$G$3)*(T_DataComboFile[Econ3]=$G216))*T_DataComboFile[2023/24 Revised baseline]*$B$3)","v":0},0]
[0,5,null,null,null,null,"Total",{"$f":"SUM(H173,H183,H208,H216)","v":0},0,0,0,0,0,0,{"$f":"SUM(O173,O183,O208,O216)","v":0},0]
[]
[null,null,null,null,null,null,null,{"$f":"L65-H217","v":0},{"$f":"O65-I217","v":0},null,{"$f":"P65-K217","v":0},{"$f":"S65-L217","v":0},null,{"$f":"T65-N217","v":0},{"$f":"W65-O217","v":0}]

{"sheet":"IP10","index":19,"n_rows":219,"n_cols":23,"rows_kept":219,"cut":false,"hidden":false,"merged":[[70,6,70,17],[73,6,87,17],[94,16,94,20],[94,21,94,23],[95,16,95,20],[95,21,95,23],[99,16,99,20],[99,21,99,23],[100,16,100,20],[100,21,100,23],[101,16,101,20],[101,21,101,23],[96,16,96,20],[96,21,96,23],[97,16,97,20],[97,21,97,23],[98,16,98,20],[98,21,98,23],[105,16,105,20],[105,21,105,23],[106,16,106,20],[106,21,106,23],[107,16,107,20],[107,21,107,23],[102,16,102,20],[102,21,102,23],[103,16,103,20],[103,21,103,23],[104,16,104,20],[104,21,104,23],[117,16,117,20],[118,16,118,20],[119,16,119,20],[120,16,120,20],[121,16,121,20],[122,16,122,20],[108,16,108,20],[108,21,108,23],[109,16,109,20],[109,21,109,23],[110,16,110,20],[110,21,110,23],[129,16,129,20],[130,16,130,20],[131,16,131,20],[132,16,132,20],[133,16,133,20],[141,16,141,20],[123,16,123,20],[124,16,124,20],[125,16,125,20],[126,16,126,20],[127,16,127,20],[128,16,128,20],[174,16,174,20],[175,16,175,20],[176,16,176,20],[177,16,177,20],[178,16,178,20],[179,16,179,20],[142,16,142,20],[143,16,162,20],[170,16,170,20],[171,16,171,20],[172,16,172,20],[173,16,173,20],[186,16,186,20],[187,16,187,20],[188,16,188,20],[189,16,189,20],[190,16,190,20],[191,16,191,20],[180,16,180,20],[181,16,181,20],[182,16,182,20],[183,16,183,20],[184,16,184,20],[185,16,185,20],[198,16,198,20],[199,16,199,20],[200,16,200,20],[201,16,201,20],[202,16,202,20],[203,16,203,20],[192,16,192,20],[193,16,193,20],[194,16,194,20],[195,16,195,20],[196,16,196,20],[197,16,197,20],[210,16,210,20],[211,16,211,20],[212,16,212,20],[213,16,213,20],[214,16,214,20],[215,16,215,20],[204,16,204,20],[205,16,205,20],[206,16,206,20],[207,16,207,20],[208,16,208,20],[209,16,209,20]]}
[]
[null,null,null,null,null,null,"Implementation programme:"]
[null,{"$f":"IF(G3=\"\",0,1)","v":0},null,null,null,10,null,"… select from dropdown list"]
[null,null,null,null,null,null,null,null,null,null,null,null,"Growth"]
[null,null,null,null,null,null,"Quick view","2020/21","2021/22","2022/23","2023/24","Trend","2021/22","2022/23","2023/24","Ave Ann",null,"2020/21","2021/22","2022/23","2023/24"]
[null,null,null,null,null,null,"Compensation of employees",{"$f":"SUMPRODUCT(($G$32:$G$65=$G6)*($K$32:$K$65))","v":0},{"$f":"SUMPRODUCT(($G$32:$G$65=$G6)*($O$32:$O$65))","v":0},{"$f":"SUMPRODUCT(($G$32:$G$65=$G6)*($S$32:$S$65))","v":0},{"$f":"SUMPRODUCT(($G$32:$G$65=$G6)*($W$32:$W$65))","v":0},null,{"$f":"IFERROR(I6/H6-1,0)","v":0},0,0,{"$f":"IFERROR(((K6/H6)^(1/3)-1),0)","v":0}]
[null,null,null,null,null,null,"Goods and services",{"$f":"SUMPRODUCT(($G$32:$G$65=$G7)*($K$32:$K$65))","v":0},{"$f":"SUMPRODUCT(($G$32:$G$65=$G7)*($O$32:$O$65))","v":0},{"$f":"SUMPRODUCT(($G$32:$G$65=$G7)*($S$32:$S$65))","v":0},{"$f":"SUMPRODUCT(($G$32:$G$65=$G7)*($W$32:$W$65))","v":0},null,0,0,0,0]
[null,null,null,null,null,null,"Transfers and subsidies",{"$f":"SUMPRODUCT(($G$32:$G$65=$G8)*($K$32:$K$65))","v":0},{"$f":"SUMPRODUCT(($G$32:$G$65=$G8)*($O$32:$O$65))","v":0},{"$f":"SUMPRODUCT(($G$32:$G$65=$G8)*($S$32:$S$65))","v":0},{"$f":"SUMPRODUCT(($G$32:$G$65=$G8)*($W$32:$W$65))","v":0},null,0,0,0,0]
[null,null,null,null,null,null,"Payments for capital assets",{"$f":"SUMPRODUCT(($G$32:$G$65=$G9)*($K$32:$K$65))","v":0},{"$f":"SUMPRODUCT(($G$32:$G$65=$G9)*($O$32:$O$65))","v":0},{"$f":"SUMPRODUCT(($G$32:$G$65=$G9)*($S$32:$S$65))","v":0},{"$f":"SUMPRODUCT(($G$32:$G$65=$G9)*($W$32:$W$65))","v":0},null,0,0,0,0]
[null,null,null,null,null,null,"Total",{"$f":"SUMPRODUCT(($G$32:$G$65=$G10)*($K$32:$K$65))","v":0},{"$f":"SUMPRODUCT(($G$32:$G$65=$G10)*($O$32:$O$65))","v":0},{"$f":"SUMPRODUCT(($G$32:$G$65=$G10)*($S$32:$S$65))","v":0},{"$f":"SUMPRODUCT(($G$32:$G$65=$G10)*($W$32:$W$65))","v":0},null,0,0,0,0]
[null,null,null,null,null,null,"Composition of spending (% of Total)"]
[null,null,null,null,null,null,"Compensation of employees",{"$f":"IFERROR(H6/H$10,\"\")","v":""},"","","",null,null,null,null,null,null,{"$f":"IF(H12>0.0595,H12,\"\")","v":""},"","",""]
[null,null,null,null,null,null,"Goods and services","","","","",null,null,null,null,null,null,"","","",""]
[null,null,null,null,null,null,"Transfers and subsidies","","","","",null,null,null,null,null,null,"","","",""]
[null,null,null,null,null,null,"Payments for capital assets","","","","",null,null,null,null,null,null,"","","",""]
[]
[null,null,null,null,null,null,"Division of Revenue","2020/21","2021/22","2022/23","2023/24","Trend","2021/22","2022/23","2023/24","Ave Ann"]
[{"$f":"$G$3","v":0},"NAT",null,null,null,null,"National",{"$f":"SUMPRODUCT(((T_DataComboFile[Implementation programme]=$G$3)*(T_DataComboFile[DOR]=$B18))*T_DataComboFile[2020/21 Revised])","v":2331086},{"$f":"SUMPRODUCT(((T_DataComboFile[Implementation programme]=$G$3)*(T_DataComboFile[DOR]=$B18))*T_DataComboFile[2021/22 Revised baseline])","v":2583809},{"$f":"SUMPRODUCT(((T_DataComboFile[Implementation programme]=$G$3)*(T_DataComboFile[DOR]=$B18))*T_DataComboFile[2022/23 Revised baseline])","v":2617960},{"$f":"SUMPRODUCT(((T_DataComboFile[Implementation programme]=$G$3)*(T_DataComboFile[DOR]=$B18))*T_DataComboFile[2023/24 Revised baseline])","v":2733345},null,{"$f":"IFERROR(I18/H18-1,0)","v":0.10841427557799244},{"$f":"IFERROR(J18/I18-1,0)","v":1.3217308245307535E-2},{"$f":"IFERROR(K18/J18-1,0)","v":4.4074393802808309E-2},{"$f":"IFERROR(((K18/H18)^(1/3)-1),0)","v":5.449708876349435E-2}]
[0,null,null,null,null,null,"Provincial",{"$f":"SUM(H20:H21)","v":0},0,0,0,null,0,0,0,0]
[0,"PES",null,null,null,null,"Provincial equitable share",{"$f":"SUMPRODUCT(((T_DataComboFile[Implementation programme]=$G$3)*(T_DataComboFile[DOR]=$B20))*T_DataComboFile[2020/21 Revised])","v":0},{"$f":"SUMPRODUCT(((T_DataComboFile[Implementation programme]=$G$3)*(T_DataComboFile[DOR]=$B20))*T_DataComboFile[2021/22 Revised baseline])","v":0},{"$f":"SUMPRODUCT(((T_DataComboFile[Implementation programme]=$G$3)*(T_DataComboFile[DOR]=$B20))*T_DataComboFile[2022/23 Revised baseline])","v":0},{"$f":"SUMPRODUCT(((T_DataComboFile[Implementation programme]=$G$3)*(T_DataComboFile[DOR]=$B20))*T_DataComboFile[2023/24 Revised baseline])","v":0},null,{"$f":"IFERROR(I20/H20-1,0)","v":0},0,0,{"$f":"IFERROR(((K20/H20)^(1/3)-1),0)","v":0}]
[0,"PCG",null,null,null,null,"Provincial conditional grants",{"$f":"SUMPRODUCT(((T_DataComboFile[Implementation programme]=$G$3)*(T_DataComboFile[DOR]=$B21))*T_DataComboFile[2020/21 Revised])","v":0},{"$f":"SUMPRODUCT(((T_DataComboFile[Implementation programme]=$G$3)*(T_DataComboFile[DOR]=$B21))*T_DataComboFile[2021/22 Revised baseline])","v":0},{"$f":"SUMPRODUCT(((T_DataComboFile[Implementation programme]=$G$3)*(T_DataComboFile[DOR]=$B21))*T_DataComboFile[2022/23 Revised baseline])","v":0},{"$f":"SUMPRODUCT(((T_DataComboFile[Implementation programme]=$G$3)*(T_DataComboFile[DOR]=$B21))*T_DataComboFile[2023/24 Revised baseline])","v":0},null,0,0,0,0]
[0,null,null,null,null,null,"Local government",{"$f":"SUM(H23:H25)","v":0},0,0,0,null,{"$f":"IFERROR(I22/H22-1,0)","v":0},{"$f":"IFERROR(J22/I22-1,0)","v":0},{"$f":"IFERROR(K22/J22-1,0)","v":0},{"$f":"IFERROR(((K22/H22)^(1/3)-1),0)","v":0}]
[0,"LES",null,null,null,null,"Local equitable share",{"$f":"SUMPRODUCT(((T_DataComboFile[Implementation programme]=$G$3)*(T_DataComboFile[DOR]=$B23))*T_DataComboFile[2020/21 Revised])","v":0},{"$f":"SUMPRODUCT(((T_DataComboFile[Implementation programme]=$G$3)*(T_DataComboFile[DOR]=$B23))*T_DataComboFile[2021/22 Revised baseline])","v":0},{"$f":"SUMPRODUCT(((T_DataComboFile[Implementation programme]=$G$3)*(T_DataComboFile[DOR]=$B23))*T_DataComboFile[2022/23 Revised baseline])","v":0},{"$f":"SUMPRODUCT(((T_DataComboFile[Implementation programme]=$G$3)*(T_DataComboFile[DOR]=$B23))*T_DataComboFile[2023/24 Revised baseline])","v":0},null,{"$f":"IFERROR(I23/H23-1,0)","v":0},0,0,{"$f":"IFERROR(((K23/H23)^(1/3)-1),0)","v":0}]
[0,"LCG",null,null,null,null,"Local conditional grants",{"$f":"SUMPRODUCT(((T_DataComboFile[Implementation programme]=$G$3)*(T_DataComboFile[DOR]=$B24))*T_DataComboFile[2020/21 Revised])","v":0},{"$f":"SUMPRODUCT(((T_DataComboFile[Implementation programme]=$G$3)*(T_DataComboFile[DOR]=$B24))*T_DataComboFile[2021/22 Revised baseline])","v":0},{"$f":"SUMPRODUCT(((T_DataComboFile[Implementation programme]=$G$3)*(T_DataComboFile[DOR]=$B24))*T_DataComboFile[2022/23 Revised baseline])","v":0},{"$f":"SUMPRODUCT(((T_DataComboFile[Implementation programme]=$G$3)*(T_DataComboFile[DOR]=$B24))*T_DataComboFile[2023/24 Revised baseline])","v":0},null,0,0,0,0]
[0,"GFL",null,null,null,null,"General fuel levy ",{"$f":"SUMPRODUCT(((T_DataComboFile[Implementation programme]=$G$3)*(T_DataComboFile[DOR]=$B25))*T_DataComboFile[2020/21 Revised])","v":0},{"$f":"SUMPRODUCT(((T_DataComboFile[Implementation programme]=$G$3)*(T_DataComboFile[DOR]=$B25))*T_DataComboFile[2021/22 Revised baseline])","v":0},{"$f":"SUMPRODUCT(((T_DataComboFile[Implementation programme]=$G$3)*(T_DataComboFile[DOR]=$B25))*T_DataComboFile[2022/23 Revised baseline])","v":0},{"$f":"SUMPRODUCT(((T_DataComboFile[Implementation programme]=$G$3)*(T_DataComboFile[DOR]=$B25))*T_DataComboFile[2023/24 Revised baseline])","v":0},null,0,0,0,0]
[]
[]
[null,null,null,null,null,null,{"$f":"G3","v":0}]
[{"$f":"$G$3","v":0},0,null,null,null,null,null,"2017/18","2018/19","2019/20","2020/21","2021/22",null,null,null,"2022/23",null,null,null,"2023/24"]
[{"$f":"$G$3","v":0},0,null,null,null,null,"Rand thousand","Audited outcome","Audited outcome","Pre-audited outcome","Budget","Baseline","Decrease","Increase","Revised baseline","Baseline","Decrease","Increase","Revised baseline","Baseline","Decrease","Increase","Revised baseline"]
[0,0,null,null,null,null,"Economic classification"]
[0,0,null,null,null,null,"Current payments",{"$f":"SUM(H33:H35)","v":0},0,0,0,0,0,0,0,0,0,0,0,0,0,0,0]
[0,0,null,null,null,null,"Compensation of employees",{"$f":"SUMPRODUCT(((T_DataComboFile[Implementation programme]=$G$3)*(T_DataComboFile[Econ3]=$G33))*T_DataComboFile[2017/18]*$B$3)","v":0},{"$f":"SUMPRODUCT(((T_DataComboFile[Implementation programme]=$G$3)*(T_DataComboFile[Econ3]=$G33))*T_DataComboFile[2018/19]*$B$3)","v":0},{"$f":"SUMPRODUCT(((T_DataComboFile[Implementation programme]=$G$3)*(T_DataComboFile[Econ3]=$G33))*T_DataComboFile[2019/20 Revised estimate]*$B$3)","v":0},{"$f":"SUMPRODUCT(((T_DataComboFile[Implementation programme]=$G$3)*(T_DataComboFile[Econ3]=$G33))*T_DataComboFile[2020/21 Revised]*$B$3)","v":0},{"$f":"SUMPRODUCT(((T_DataComboFile[Implementation programme]=$G$3)*(T_DataComboFile[Econ3]=$G33))*T_DataComboFile[2021/22 Baseline]*$B$3)","v":0},{"$f":"SUMPRODUCT(((T_DataComboFile[Implementation programme]=$G$3)*(T_DataComboFile[Econ3]=$G33))*T_DataComboFile[2021/22 Reduction]*$B$3)","v":0},{"$f":"SUMPRODUCT(((T_DataComboFile[Implementation programme]=$G$3)*(T_DataComboFile[Econ3]=$G33))*T_DataComboFile[2021/22 Increase]*$B$3)","v":0},{"$f":"L33+M33+N33","v":0},{"$f":"SUMPRODUCT(((T_DataComboFile[Implementation programme]=$G$3)*(T_DataComboFile[Econ3]=$G33))*T_DataComboFile[2022/23 Baseline]*$B$3)","v":0},{"$f":"SUMPRODUCT(((T_DataComboFile[Implementation programme]=$G$3)*(T_DataComboFile[Econ3]=$G33))*T_DataComboFile[2022/23 Reduction]*$B$3)","v":0},{"$f":"SUMPRODUCT(((T_DataComboFile[Implementation programme]=$G$3)*(T_DataComboFile[Econ3]=$G33))*T_DataComboFile[2022/23 Increase]*$B$3)","v":0},{"$f":"P33+Q33+R33","v":0},{"$f":"SUMPRODUCT(((T_DataComboFile[Implementation programme]=$G$3)*(T_DataComboFile[Econ3]=$G33))*T_DataComboFile[2023/24 Baseline]*$B$3)","v":0},{"$f":"SUMPRODUCT(((T_DataComboFile[Implementation programme]=$G$3)*(T_DataComboFile[Econ3]=$G33))*T_DataComboFile[2023/24 Reduction]*$B$3)","v":0},{"$f":"SUMPRODUCT(((T_DataComboFile[Implementation programme]=$G$3)*(T_DataComboFile[Econ3]=$G33))*T_DataComboFile[2023/24 Increase]*$B$3)","v":0},{"$f":"T33+U33+V33","v":0}]
[0,0,null,null,null,null,"Goods and services",{"$f":"SUMPRODUCT(((T_DataComboFile[Implementation programme]=$G$3)*(T_DataComboFile[Econ3]=$G34))*T_DataComboFile[2017/18]*$B$3)","v":0},{"$f":"SUMPRODUCT(((T_DataComboFile[Implementation programme]=$G$3)*(T_DataComboFile[Econ3]=$G34))*T_DataComboFile[2018/19]*$B$3)","v":0},{"$f":"SUMPRODUCT(((T_DataComboFile[Implementation programme]=$G$3)*(T_DataComboFile[Econ3]=$G34))*T_DataComboFile[2019/20 Revised estimate]*$B$3)","v":0},{"$f":"SUMPRODUCT(((T_DataComboFile[Implementation programme]=$G$3)*(T_DataComboFile[Econ3]=$G34))*T_DataComboFile[2020/21 Revised]*$B$3)","v":0},{"$f":"SUMPRODUCT(((T_DataComboFile[Implementation programme]=$G$3)*(T_DataComboFile[Econ3]=$G34))*T_DataComboFile[2021/22 Baseline]*$B$3)","v":0},{"$f":"SUMPRODUCT(((T_DataComboFile[Implementation programme]=$G$3)*(T_DataComboFile[Econ3]=$G34))*T_DataComboFile[2021/22 Reduction]*$B$3)","v":0},{"$f":"SUMPRODUCT(((T_DataComboFile[Implementation programme]=$G$3)*(T_DataComboFile[Econ3]=$G34))*T_DataComboFile[2021/22 Increase]*$B$3)","v":0},0,{"$f":"SUMPRODUCT(((T_DataComboFile[Implementation programme]=$G$3)*(T_DataComboFile[Econ3]=$G34))*T_DataComboFile[2022/23 Baseline]*$B$3)","v":0},{"$f":"SUMPRODUCT(((T_DataComboFile[Implementation programme]=$G$3)*(T_DataComboFile[Econ3]=$G34))*T_DataComboFile[2022/23 Reduction]*$B$3)","v":0},{"$f":"SUMPRODUCT(((T_DataComboFile[Implementation programme]=$G$3)*(T_DataComboFile[Econ3]=$G34))*T_DataComboFile[2022/23 Increase]*$B$3)","v":0},0,{"$f":"SUMPRODUCT(((T_DataComboFile[Implementation programme]=$G$3)*(T_DataComboFile[Econ3]=$G34))*T_DataComboFile[2023/24 Baseline]*$B$3)","v":0},{"$f":"SUMPRODUCT(((T_DataComboFile[Implementation programme]=$G$3)*(T_DataComboFile[Econ3]=$G34))*T_DataComboFile[2023/24 Reduction]*$B$3)","v":0},{"$f":"SUMPRODUCT(((T_DataComboFile[Implementation programme]=$G$3)*(T_DataComboFile[Econ3]=$G34))*T_DataComboFile[2023/24 Increase]*$B$3)","v":0},0]
[0,0,null,null,null,null,"Interest and rent on land",{"$f":"SUMPRODUCT(((T_DataComboFile[Implementation programme]=$G$3)*(T_DataComboFile[Econ3]=$G35))*T_DataComboFile[2017/18]*$B$3)","v":0},{"$f":"SUMPRODUCT(((T_DataComboFile[Implementation programme]=$G$3)*(T_DataComboFile[Econ3]=$G35))*T_DataComboFile[2018/19]*$B$3)","v":0},{"$f":"SUMPRODUCT(((T_DataComboFile[Implementation programme]=$G$3)*(T_DataComboFile[Econ3]=$G35))*T_DataComboFile[2019/20 Revised estimate]*$B$3)","v":0},{"$f":"SUMPRODUCT(((T_DataComboFile[Implementation programme]=$G$3)*(T_DataComboFile[Econ3]=$G35))*T_DataComboFile[2020/21 Revised]*$B$3)","v":0},{"$f":"SUMPRODUCT(((T_DataComboFile[Implementation programme]=$G$3)*(T_DataComboFile[Econ3]=$G35))*T_DataComboFile[2021/22 Baseline]*$B$3)","v":0},{"$f":"SUMPRODUCT(((T_DataComboFile[Implementation programme]=$G$3)*(T_DataComboFile[Econ3]=$G35))*T_DataComboFile[2021/22 Reduction]*$B$3)","v":0},{"$f":"SUMPRODUCT(((T_DataComboFile[Implementation programme]=$G$3)*(T_DataComboFile[Econ3]=$G35))*T_DataComboFile[2021/22 Increase]*$B$3)","v":0},0,{"$f":"SUMPRODUCT(((T_DataComboFile[Implementation programme]=$G$3)*(T_DataComboFile[Econ3]=$G35))*T_DataComboFile[2022/23 Baseline]*$B$3)","v":0},{"$f":"SUMPRODUCT(((T_DataComboFile[Implementation programme]=$G$3)*(T_DataComboFile[Econ3]=$G35))*T_DataComboFile[2022/23 Reduction]*$B$3)","v":0},{"$f":"SUMPRODUCT(((T_DataComboFile[Implementation programme]=$G$3)*(T_DataComboFile[Econ3]=$G35))*T_DataComboFile[2022/23 Increase]*$B$3)","v":0},0,{"$f":"SUMPRODUCT(((T_DataComboFile[Implementation programme]=$G$3)*(T_DataComboFile[Econ3]=$G35))*T_DataComboFile[2023/24 Baseline]*$B$3)","v":0},{"$f":"SUMPRODUCT(((T_DataComboFile[Implementation programme]=$G$3)*(T_DataComboFile[Econ3]=$G35))*T_DataComboFile[2023/24 Reduction]*$B$3)","v":0},{"$f":"SUMPRODUCT(((T_DataComboFile[Implementation programme]=$G$3)*(T_DataComboFile[Econ3]=$G35))*T_DataComboFile[2023/24 Increase]*$B$3)","v":0},0]
[0,0,null,null,null,null,"Transfers and subsidies",{"$f":"SUM(H37,H40,H43:H45,H48:H49)","v":0},0,0,0,0,0,0,0,0,0,0,0,0,0,0,0]
[0,0,null,null,null,null,"Provinces and municipalities",{"$f":"SUM(H38:H39)","v":0},0,0,0,0,0,0,0,0,0,0,0,0,0,0,0]
[0,0,null,null,null,null,"Provinces",{"$f":"SUMPRODUCT(((T_DataComboFile[Implementation programme]=$G$3)*(T_DataComboFile[Econ4]=$G38))*T_DataComboFile[2017/18]*$B$3)","v":0},{"$f":"SUMPRODUCT(((T_DataComboFile[Implementation programme]=$G$3)*(T_DataComboFile[Econ4]=$G38))*T_DataComboFile[2018/19]*$B$3)","v":0},{"$f":"SUMPRODUCT(((T_DataComboFile[Implementation programme]=$G$3)*(T_DataComboFile[Econ4]=$G38))*T_DataComboFile[2019/20 Revised estimate]*$B$3)","v":0},{"$f":"SUMPRODUCT(((T_DataComboFile[Implementation programme]=$G$3)*(T_DataComboFile[Econ4]=$G38))*T_DataComboFile[2020/21 Revised]*$B$3)","v":0},{"$f":"SUMPRODUCT(((T_DataComboFile[Implementation programme]=$G$3)*(T_DataComboFile[Econ4]=$G38))*T_DataComboFile[2021/22 Baseline]*$B$3)","v":0},{"$f":"SUMPRODUCT(((T_DataComboFile[Implementation programme]=$G$3)*(T_DataComboFile[Econ4]=$G38))*T_DataComboFile[2021/22 Reduction]*$B$3)","v":0},{"$f":"SUMPRODUCT(((T_DataComboFile[Implementation programme]=$G$3)*(T_DataComboFile[Econ4]=$G38))*T_DataComboFile[2021/22 Increase]*$B$3)","v":0},{"$f":"L38+M38+N38","v":0},{"$f":"SUMPRODUCT(((T_DataComboFile[Implementation programme]=$G$3)*(T_DataComboFile[Econ4]=$G38))*T_DataComboFile[2022/23 Baseline]*$B$3)","v":0},{"$f":"SUMPRODUCT(((T_DataComboFile[Implementation programme]=$G$3)*(T_DataComboFile[Econ4]=$G38))*T_DataComboFile[2022/23 Reduction]*$B$3)","v":0},{"$f":"SUMPRODUCT(((T_DataComboFile[Implementation programme]=$G$3)*(T_DataComboFile[Econ4]=$G38))*T_DataComboFile[2022/23 Increase]*$B$3)","v":0},{"$f":"P38+Q38+R38","v":0},{"$f":"SUMPRODUCT(((T_DataComboFile[Implementation programme]=$G$3)*(T_DataComboFile[Econ4]=$G38))*T_DataComboFile[2023/24 Baseline]*$B$3)","v":0},{"$f":"SUMPRODUCT(((T_DataComboFile[Implementation programme]=$G$3)*(T_DataComboFile[Econ4]=$G38))*T_DataComboFile[2023/24 Reduction]*$B$3)","v":0},{"$f":"SUMPRODUCT(((T_DataComboFile[Implementation programme]=$G$3)*(T_DataComboFile[Econ4]=$G38))*T_DataComboFile[2023/24 Increase]*$B$3)","v":0},{"$f":"T38+U38+V38","v":0}]
[0,0,null,null,null,null,"Municipalities",{"$f":"SUMPRODUCT(((T_DataComboFile[Implementation programme]=$G$3)*(T_DataComboFile[Econ4]=$G39))*T_DataComboFile[2017/18]*$B$3)","v":0},{"$f":"SUMPRODUCT(((T_DataComboFile[Implementation programme]=$G$3)*(T_DataComboFile[Econ4]=$G39))*T_DataComboFile[2018/19]*$B$3)","v":0},{"$f":"SUMPRODUCT(((T_DataComboFile[Implementation programme]=$G$3)*(T_DataComboFile[Econ4]=$G39))*T_DataComboFile[2019/20 Revised estimate]*$B$3)","v":0},{"$f":"SUMPRODUCT(((T_DataComboFile[Implementation programme]=$G$3)*(T_DataComboFile[Econ4]=$G39))*T_DataComboFile[2020/21 Revised]*$B$3)","v":0},{"$f":"SUMPRODUCT(((T_DataComboFile[Implementation programme]=$G$3)*(T_DataComboFile[Econ4]=$G39))*T_DataComboFile[2021/22 Baseline]*$B$3)","v":0},{"$f":"SUMPRODUCT(((T_DataComboFile[Implementation programme]=$G$3)*(T_DataComboFile[Econ4]=$G39))*T_DataComboFile[2021/22 Reduction]*$B$3)","v":0},{"$f":"SUMPRODUCT(((T_DataComboFile[Implementation programme]=$G$3)*(T_DataComboFile[Econ4]=$G39))*T_DataComboFile[2021/22 Increase]*$B$3)","v":0},0,{"$f":"SUMPRODUCT(((T_DataComboFile[Implementation programme]=$G$3)*(T_DataComboFile[Econ4]=$G39))*T_DataComboFile[2022/23 Baseline]*$B$3)","v":0},{"$f":"SUMPRODUCT(((T_DataComboFile[Implementation programme]=$G$3)*(T_DataComboFile[Econ4]=$G39))*T_DataComboFile[2022/23 Reduction]*$B$3)","v":0},{"$f":"SUMPRODUCT(((T_DataComboFile[Implementation programme]=$G$3)*(T_DataComboFile[Econ4]=$G39))*T_DataComboFile[2022/23 Increase]*$B$3)","v":0},0,{"$f":"SUMPRODUCT(((T_DataComboFile[Implementation programme]=$G$3)*(T_DataComboFile[Econ4]=$G39))*T_DataComboFile[2023/24 Baseline]*$B$3)","v":0},{"$f":"SUMPRODUCT(((T_DataComboFile[Implementation programme]=$G$3)*(T_DataComboFile[Econ4]=$G39))*T_DataComboFile[2023/24 Reduction]*$B$3)","v":0},{"$f":"SUMPRODUCT(((T_DataComboFile[Implementation programme]=$G$3)*(T_DataComboFile[Econ4]=$G39))*T_DataComboFile[2023/24 Increase]*$B$3)","v":0},0]
[0,0,null,null,null,null,"Departmental agencies and accounts",{"$f":"SUM(H41:H42)","v":0},0,0,0,0,0,0,0,0,0,0,0,0,0,0,0]
[0,0,null,null,null,null,"Social security funds",{"$f":"SUMPRODUCT(((T_DataComboFile[Implementation programme]=$G$3)*(T_DataComboFile[Econ4]=$G41))*T_DataComboFile[2017/18]*$B$3)","v":0},{"$f":"SUMPRODUCT(((T_DataComboFile[Implementation programme]=$G$3)*(T_DataComboFile[Econ4]=$G41))*T_DataComboFile[2018/19]*$B$3)","v":0},{"$f":"SUMPRODUCT(((T_DataComboFile[Implementation programme]=$G$3)*(T_DataComboFile[Econ4]=$G41))*T_DataComboFile[2019/20 Revised estimate]*$B$3)","v":0},{"$f":"SUMPRODUCT(((T_DataComboFile[Implementation programme]=$G$3)*(T_DataComboFile[Econ4]=$G41))*T_DataComboFile[2020/21 Revised]*$B$3)","v":0},{"$f":"SUMPRODUCT(((T_DataComboFile[Implementation programme]=$G$3)*(T_DataComboFile[Econ4]=$G41))*T_DataComboFile[2021/22 Baseline]*$B$3)","v":0},{"$f":"SUMPRODUCT(((T_DataComboFile[Implementation programme]=$G$3)*(T_DataComboFile[Econ4]=$G41))*T_DataComboFile[2021/22 Reduction]*$B$3)","v":0},{"$f":"SUMPRODUCT(((T_DataComboFile[Implementation programme]=$G$3)*(T_DataComboFile[Econ4]=$G41))*T_DataComboFile[2021/22 Increase]*$B$3)","v":0},{"$f":"L41+M41+N41","v":0},{"$f":"SUMPRODUCT(((T_DataComboFile[Implementation programme]=$G$3)*(T_DataComboFile[Econ4]=$G41))*T_DataComboFile[2022/23 Baseline]*$B$3)","v":0},{"$f":"SUMPRODUCT(((T_DataComboFile[Implementation programme]=$G$3)*(T_DataComboFile[Econ4]=$G41))*T_DataComboFile[2022/23 Reduction]*$B$3)","v":0},{"$f":"SUMPRODUCT(((T_DataComboFile[Implementation programme]=$G$3)*(T_DataComboFile[Econ4]=$G41))*T_DataComboFile[2022/23 Increase]*$B$3)","v":0},{"$f":"P41+Q41+R41","v":0},{"$f":"SUMPRODUCT(((T_DataComboFile[Implementation programme]=$G$3)*(T_DataComboFile[Econ4]=$G41))*T_DataComboFile[2023/24 Baseline]*$B$3)","v":0},{"$f":"SUMPRODUCT(((T_DataComboFile[Implementation programme]=$G$3)*(T_DataComboFile[Econ4]=$G41))*T_DataComboFile[2023/24 Reduction]*$B$3)","v":0},{"$f":"SUMPRODUCT(((T_DataComboFile[Implementation programme]=$G$3)*(T_DataComboFile[Econ4]=$G41))*T_DataComboFile[2023/24 Increase]*$B$3)","v":0},{"$f":"T41+U41+V41","v":0}]
[0,0,null,null,null,null,"Departmental agencies (non-business entities)",{"$f":"SUMPRODUCT(((T_DataComboFile[Implementation programme]=$G$3)*(T_DataComboFile[Econ4]=$G42))*T_DataComboFile[2017/18]*$B$3)","v":0},{"$f":"SUMPRODUCT(((T_DataComboFile[Implementation programme]=$G$3)*(T_DataComboFile[Econ4]=$G42))*T_DataComboFile[2018/19]*$B$3)","v":0},{"$f":"SUMPRODUCT(((T_DataComboFile[Implementation programme]=$G$3)*(T_DataComboFile[Econ4]=$G42))*T_DataComboFile[2019/20 Revised estimate]*$B$3)","v":0},{"$f":"SUMPRODUCT(((T_DataComboFile[Implementation programme]=$G$3)*(T_DataComboFile[Econ4]=$G42))*T_DataComboFile[2020/21 Revised]*$B$3)","v":0},{"$f":"SUMPRODUCT(((T_DataComboFile[Implementation programme]=$G$3)*(T_DataComboFile[Econ4]=$G42))*T_DataComboFile[2021/22 Baseline]*$B$3)","v":0},{"$f":"SUMPRODUCT(((T_DataComboFile[Implementation programme]=$G$3)*(T_DataComboFile[Econ4]=$G42))*T_DataComboFile[2021/22 Reduction]*$B$3)","v":0},{"$f":"SUMPRODUCT(((T_DataComboFile[Implementation programme]=$G$3)*(T_DataComboFile[Econ4]=$G42))*T_DataComboFile[2021/22 Increase]*$B$3)","v":0},0,{"$f":"SUMPRODUCT(((T_DataComboFile[Implementation programme]=$G$3)*(T_DataComboFile[Econ4]=$G42))*T_DataComboFile[2022/23 Baseline]*$B$3)","v":0},{"$f":"SUMPRODUCT(((T_DataComboFile[Implementation programme]=$G$3)*(T_DataComboFile[Econ4]=$G42))*T_DataComboFile[2022/23 Reduction]*$B$3)","v":0},{"$f":"SUMPRODUCT(((T_DataComboFile[Implementation programme]=$G$3)*(T_DataComboFile[Econ4]=$G42))*T_DataComboFile[2022/23 Increase]*$B$3)","v":0},0,{"$f":"SUMPRODUCT(((T_DataComboFile[Implementation programme]=$G$3)*(T_DataComboFile[Econ4]=$G42))*T_DataComboFile[2023/24 Baseline]*$B$3)","v":0},{"$f":"SUMPRODUCT(((T_DataComboFile[Implementation programme]=$G$3)*(T_DataComboFile[Econ4]=$G42))*T_DataComboFile[2023/24 Reduction]*$B$3)","v":0},{"$f":"SUMPRODUCT(((T_DataComboFile[Implementation programme]=$G$3)*(T_DataComboFile[Econ4]=$G42))*T_DataComboFile[2023/24 Increase]*$B$3)","v":0},0]
[0,0,null,null,null,null,"Higher education institutions",{"$f":"SUMPRODUCT(((T_DataComboFile[Implementation programme]=$G$3)*(T_DataComboFile[Econ3]=$G43))*T_DataComboFile[2017/18]*$B$3)","v":0},{"$f":"SUMPRODUCT(((T_DataComboFile[Implementation programme]=$G$3)*(T_DataComboFile[Econ3]=$G43))*T_DataComboFile[2018/19]*$B$3)","v":0},{"$f":"SUMPRODUCT(((T_DataComboFile[Implementation programme]=$G$3)*(T_DataComboFile[Econ3]=$G43))*T_DataComboFile[2019/20 Revised estimate]*$B$3)","v":0},{"$f":"SUMPRODUCT(((T_DataComboFile[Implementation programme]=$G$3)*(T_DataComboFile[Econ3]=$G43))*T_DataComboFile[2020/21 Revised]*$B$3)","v":0},{"$f":"SUMPRODUCT(((T_DataComboFile[Implementation programme]=$G$3)*(T_DataComboFile[Econ3]=$G43))*T_DataComboFile[2021/22 Baseline]*$B$3)","v":0},{"$f":"SUMPRODUCT(((T_DataComboFile[Implementation programme]=$G$3)*(T_DataComboFile[Econ3]=$G43))*T_DataComboFile[2021/22 Reduction]*$B$3)","v":0},{"$f":"SUMPRODUCT(((T_DataComboFile[Implementation programme]=$G$3)*(T_DataComboFile[Econ3]=$G43))*T_DataComboFile[2021/22 Increase]*$B$3)","v":0},0,{"$f":"SUMPRODUCT(((T_DataComboFile[Implementation programme]=$G$3)*(T_DataComboFile[Econ3]=$G43))*T_DataComboFile[2022/23 Baseline]*$B$3)","v":0},{"$f":"SUMPRODUCT(((T_DataComboFile[Implementation programme]=$G$3)*(T_DataComboFile[Econ3]=$G43))*T_DataComboFile[2022/23 Reduction]*$B$3)","v":0},{"$f":"SUMPRODUCT(((T_DataComboFile[Implementation programme]=$G$3)*(T_DataComboFile[Econ3]=$G43))*T_DataComboFile[2022/23 Increase]*$B$3)","v":0},0,{"$f":"SUMPRODUCT(((T_DataComboFile[Implementation programme]=$G$3)*(T_DataComboFile[Econ3]=$G43))*T_DataComboFile[2023/24 Baseline]*$B$3)","v":0},{"$f":"SUMPRODUCT(((T_DataComboFile[Implementation programme]=$G$3)*(T_DataComboFile[Econ3]=$G43))*T_DataComboFile[2023/24 Reduction]*$B$3)","v":0},{"$f":"SUMPRODUCT(((T_DataComboFile[Implementation programme]=$G$3)*(T_DataComboFile[Econ3]=$G43))*T_DataComboFile[2023/24 Increase]*$B$3)","v":0},0]
[0,0,null,null,null,null,"Foreign governments and international organisations",{"$f":"SUMPRODUCT(((T_DataComboFile[Implementation programme]=$G$3)*(T_DataComboFile[Econ3]=$G44))*T_DataComboFile[2017/18]*$B$3)","v":0},{"$f":"SUMPRODUCT(((T_DataComboFile[Implementation programme]=$G$3)*(T_DataComboFile[Econ3]=$G44))*T_DataComboFile[2018/19]*$B$3)","v":0},{"$f":"SUMPRODUCT(((T_DataComboFile[Implementation programme]=$G$3)*(T_DataComboFile[Econ3]=$G44))*T_DataComboFile[2019/20 Revised estimate]*$B$3)","v":0},{"$f":"SUMPRODUCT(((T_DataComboFile[Implementation programme]=$G$3)*(T_DataComboFile[Econ3]=$G44))*T_DataComboFile[2020/21 Revised]*$B$3)","v":0},{"$f":"SUMPRODUCT(((T_DataComboFile[Implementation programme]=$G$3)*(T_DataComboFile[Econ3]=$G44))*T_DataComboFile[2021/22 Baseline]*$B$3)","v":0},{"$f":"SUMPRODUCT(((T_DataComboFile[Implementation programme]=$G$3)*(T_DataComboFile[Econ3]=$G44))*T_DataComboFile[2021/22 Reduction]*$B$3)","v":0},{"$f":"SUMPRODUCT(((T_DataComboFile[Implementation programme]=$G$3)*(T_DataComboFile[Econ3]=$G44))*T_DataComboFile[2021/22 Increase]*$B$3)","v":0},0,{"$f":"SUMPRODUCT(((T_DataComboFile[Implementation programme]=$G$3)*(T_DataComboFile[Econ3]=$G44))*T_DataComboFile[2022/23 Baseline]*$B$3)","v":0},{"$f":"SUMPRODUCT(((T_DataComboFile[Implementation programme]=$G$3)*(T_DataComboFile[Econ3]=$G44))*T_DataComboFile[2022/23 Reduction]*$B$3)","v":0},{"$f":"SUMPRODUCT(((T_DataComboFile[Implementation programme]=$G$3)*(T_DataComboFile[Econ3]=$G44))*T_DataComboFile[2022/23 Increase]*$B$3)","v":0},0,{"$f":"SUMPRODUCT(((T_DataComboFile[Implementation programme]=$G$3)*(T_DataComboFile[Econ3]=$G44))*T_DataComboFile[2023/24 Baseline]*$B$3)","v":0},{"$f":"SUMPRODUCT(((T_DataComboFile[Implementation programme]=$G$3)*(T_DataComboFile[Econ3]=$G44))*T_DataComboFile[2023/24 Reduction]*$B$3)","v":0},{"$f":"SUMPRODUCT(((T_DataComboFile[Implementation programme]=$G$3)*(T_DataComboFile[Econ3]=$G44))*T_DataComboFile[2023/24 Increase]*$B$3)","v":0},0]
[0,0,null,null,null,null,"Public corporations and private enterprises",{"$f":"SUM(H46:H47)","v":0},0,0,0,0,0,0,0,0,0,0,0,0,0,0,0]
[0,0,null,null,null,null,"Public corporations",{"$f":"SUMPRODUCT(((T_DataComboFile[Implementation programme]=$G$3)*(T_DataComboFile[Econ4]=$G46))*T_DataComboFile[2017/18]*$B$3)","v":0},{"$f":"SUMPRODUCT(((T_DataComboFile[Implementation programme]=$G$3)*(T_DataComboFile[Econ4]=$G46))*T_DataComboFile[2018/19]*$B$3)","v":0},{"$f":"SUMPRODUCT(((T_DataComboFile[Implementation programme]=$G$3)*(T_DataComboFile[Econ4]=$G46))*T_DataComboFile[2019/20 Revised estimate]*$B$3)","v":0},{"$f":"SUMPRODUCT(((T_DataComboFile[Implementation programme]=$G$3)*(T_DataComboFile[Econ4]=$G46))*T_DataComboFile[2020/21 Revised]*$B$3)","v":0},{"$f":"SUMPRODUCT(((T_DataComboFile[Implementation programme]=$G$3)*(T_DataComboFile[Econ4]=$G46))*T_DataComboFile[2021/22 Baseline]*$B$3)","v":0},{"$f":"SUMPRODUCT(((T_DataComboFile[Implementation programme]=$G$3)*(T_DataComboFile[Econ4]=$G46))*T_DataComboFile[2021/22 Reduction]*$B$3)","v":0},{"$f":"SUMPRODUCT(((T_DataComboFile[Implementation programme]=$G$3)*(T_DataComboFile[Econ4]=$G46))*T_DataComboFile[2021/22 Increase]*$B$3)","v":0},{"$f":"L46+M46+N46","v":0},{"$f":"SUMPRODUCT(((T_DataComboFile[Implementation programme]=$G$3)*(T_DataComboFile[Econ4]=$G46))*T_DataComboFile[2022/23 Baseline]*$B$3)","v":0},{"$f":"SUMPRODUCT(((T_DataComboFile[Implementation programme]=$G$3)*(T_DataComboFile[Econ4]=$G46))*T_DataComboFile[2022/23 Reduction]*$B$3)","v":0},{"$f":"SUMPRODUCT(((T_DataComboFile[Implementation programme]=$G$3)*(T_DataComboFile[Econ4]=$G46))*T_DataComboFile[2022/23 Increase]*$B$3)","v":0},{"$f":"P46+Q46+R46","v":0},{"$f":"SUMPRODUCT(((T_DataComboFile[Implementation programme]=$G$3)*(T_DataComboFile[Econ4]=$G46))*T_DataComboFile[2023/24 Baseline]*$B$3)","v":0},{"$f":"SUMPRODUCT(((T_DataComboFile[Implementation programme]=$G$3)*(T_DataComboFile[Econ4]=$G46))*T_DataComboFile[2023/24 Reduction]*$B$3)","v":0},{"$f":"SUMPRODUCT(((T_DataComboFile[Implementation programme]=$G$3)*(T_DataComboFile[Econ4]=$G46))*T_DataComboFile[2023/24 Increase]*$B$3)","v":0},{"$f":"T46+U46+V46","v":0}]
[0,0,null,null,null,null,"Private enterprises",{"$f":"SUMPRODUCT(((T_DataComboFile[Implementation programme]=$G$3)*(T_DataComboFile[Econ4]=$G47))*T_DataComboFile[2017/18]*$B$3)","v":0},{"$f":"SUMPRODUCT(((T_DataComboFile[Implementation programme]=$G$3)*(T_DataComboFile[Econ4]=$G47))*T_DataComboFile[2018/19]*$B$3)","v":0},{"$f":"SUMPRODUCT(((T_DataComboFile[Implementation programme]=$G$3)*(T_DataComboFile[Econ4]=$G47))*T_DataComboFile[2019/20 Revised estimate]*$B$3)","v":0},{"$f":"SUMPRODUCT(((T_DataComboFile[Implementation programme]=$G$3)*(T_DataComboFile[Econ4]=$G47))*T_DataComboFile[2020/21 Revised]*$B$3)","v":0},{"$f":"SUMPRODUCT(((T_DataComboFile[Implementation programme]=$G$3)*(T_DataComboFile[Econ4]=$G47))*T_DataComboFile[2021/22 Baseline]*$B$3)","v":0},{"$f":"SUMPRODUCT(((T_DataComboFile[Implementation programme]=$G$3)*(T_DataComboFile[Econ4]=$G47))*T_DataComboFile[2021/22 Reduction]*$B$3)","v":0},{"$f":"SUMPRODUCT(((T_DataComboFile[Implementation programme]=$G$3)*(T_DataComboFile[Econ4]=$G47))*T_DataComboFile[2021/22 Increase]*$B$3)","v":0},0,{"$f":"SUMPRODUCT(((T_DataComboFile[Implementation programme]=$G$3)*(T_DataComboFile[Econ4]=$G47))*T_DataComboFile[2022/23 Baseline]*$B$3)","v":0},{"$f":"SUMPRODUCT(((T_DataComboFile[Implementation programme]=$G$3)*(T_DataComboFile[Econ4]=$G47))*T_DataComboFile[2022/23 Reduction]*$B$3)","v":0},{"$f":"SUMPRODUCT(((T_DataComboFile[Implementation programme]=$G$3)*(T_DataComboFile[Econ4]=$G47))*T_DataComboFile[2022/23 Increase]*$B$3)","v":0},0,{"$f":"SUMPRODUCT(((T_DataComboFile[Implementation programme]=$G$3)*(T_DataComboFile[Econ4]=$G47))*T_DataComboFile[2023/24 Baseline]*$B$3)","v":0},{"$f":"SUMPRODUCT(((T_DataComboFile[Implementation programme]=$G$3)*(T_DataComboFile[Econ4]=$G47))*T_DataComboFile[2023/24 Reduction]*$B$3)","v":0},{"$f":"SUMPRODUCT(((T_DataComboFile[Implementation programme]=$G$3)*(T_DataComboFile[Econ4]=$G47))*T_DataComboFile[2023/24 Increase]*$B$3)","v":0},0]
[0,0,null,null,null,null,"Non-profit institutions",{"$f":"SUMPRODUCT(((T_DataComboFile[Implementation programme]=$G$3)*(T_DataComboFile[Econ3]=$G48))*T_DataComboFile[2017/18]*$B$3)","v":0},{"$f":"SUMPRODUCT(((T_DataComboFile[Implementation programme]=$G$3)*(T_DataComboFile[Econ3]=$G48))*T_DataComboFile[2018/19]*$B$3)","v":0},{"$f":"SUMPRODUCT(((T_DataComboFile[Implementation programme]=$G$3)*(T_DataComboFile[Econ3]=$G48))*T_DataComboFile[2019/20 Revised estimate]*$B$3)","v":0},{"$f":"SUMPRODUCT(((T_DataComboFile[Implementation programme]=$G$3)*(T_DataComboFile[Econ3]=$G48))*T_DataComboFile[2020/21 Revised]*$B$3)","v":0},{"$f":"SUMPRODUCT(((T_DataComboFile[Implementation programme]=$G$3)*(T_DataComboFile[Econ3]=$G48))*T_DataComboFile[2021/22 Baseline]*$B$3)","v":0},{"$f":"SUMPRODUCT(((T_DataComboFile[Implementation programme]=$G$3)*(T_DataComboFile[Econ3]=$G48))*T_DataComboFile[2021/22 Reduction]*$B$3)","v":0},{"$f":"SUMPRODUCT(((T_DataComboFile[Implementation programme]=$G$3)*(T_DataComboFile[Econ3]=$G48))*T_DataComboFile[2021/22 Increase]*$B$3)","v":0},0,{"$f":"SUMPRODUCT(((T_DataComboFile[Implementation programme]=$G$3)*(T_DataComboFile[Econ3]=$G48))*T_DataComboFile[2022/23 Baseline]*$B$3)","v":0},{"$f":"SUMPRODUCT(((T_DataComboFile[Implementation programme]=$G$3)*(T_DataComboFile[Econ3]=$G48))*T_DataComboFile[2022/23 Reduction]*$B$3)","v":0},{"$f":"SUMPRODUCT(((T_DataComboFile[Implementation programme]=$G$3)*(T_DataComboFile[Econ3]=$G48))*T_DataComboFile[2022/23 Increase]*$B$3)","v":0},0,{"$f":"SUMPRODUCT(((T_DataComboFile[Implementation programme]=$G$3)*(T_DataComboFile[Econ3]=$G48))*T_DataComboFile[2023/24 Baseline]*$B$3)","v":0},{"$f":"SUMPRODUCT(((T_DataComboFile[Implementation programme]=$G$3)*(T_DataComboFile[Econ3]=$G48))*T_DataComboFile[2023/24 Reduction]*$B$3)","v":0},{"$f":"SUMPRODUCT(((T_DataComboFile[Implementation programme]=$G$3)*(T_DataComboFile[Econ3]=$G48))*T_DataComboFile[2023/24 Increase]*$B$3)","v":0},0]
[0,0,null,null,null,null,"Households",{"$f":"SUM(H50:H51)","v":0},0,0,0,0,0,0,0,0,0,0,0,0,0,0,0]
[0,0,null,null,null,null,"Social benefits",{"$f":"SUMPRODUCT(((T_DataComboFile[Implementation programme]=$G$3)*(T_DataComboFile[Econ4]=$G50))*T_DataComboFile[2017/18]*$B$3)","v":0},{"$f":"SUMPRODUCT(((T_DataComboFile[Implementation programme]=$G$3)*(T_DataComboFile[Econ4]=$G50))*T_DataComboFile[2018/19]*$B$3)","v":0},{"$f":"SUMPRODUCT(((T_DataComboFile[Implementation programme]=$G$3)*(T_DataComboFile[Econ4]=$G50))*T_DataComboFile[2019/20 Revised estimate]*$B$3)","v":0},{"$f":"SUMPRODUCT(((T_DataComboFile[Implementation programme]=$G$3)*(T_DataComboFile[Econ4]=$G50))*T_DataComboFile[2020/21 Revised]*$B$3)","v":0},{"$f":"SUMPRODUCT(((T_DataComboFile[Implementation programme]=$G$3)*(T_DataComboFile[Econ4]=$G50))*T_DataComboFile[2021/22 Baseline]*$B$3)","v":0},{"$f":"SUMPRODUCT(((T_DataComboFile[Implementation programme]=$G$3)*(T_DataComboFile[Econ4]=$G50))*T_DataComboFile[2021/22 Reduction]*$B$3)","v":0},{"$f":"SUMPRODUCT(((T_DataComboFile[Implementation programme]=$G$3)*(T_DataComboFile[Econ4]=$G50))*T_DataComboFile[2021/22 Increase]*$B$3)","v":0},{"$f":"L50+M50+N50","v":0},{"$f":"SUMPRODUCT(((T_DataComboFile[Implementation programme]=$G$3)*(T_DataComboFile[Econ4]=$G50))*T_DataComboFile[2022/23 Baseline]*$B$3)","v":0},{"$f":"SUMPRODUCT(((T_DataComboFile[Implementation programme]=$G$3)*(T_DataComboFile[Econ4]=$G50))*T_DataComboFile[2022/23 Reduction]*$B$3)","v":0},{"$f":"SUMPRODUCT(((T_DataComboFile[Implementation programme]=$G$3)*(T_DataComboFile[Econ4]=$G50))*T_DataComboFile[2022/23 Increase]*$B$3)","v":0},{"$f":"P50+Q50+R50","v":0},{"$f":"SUMPRODUCT(((T_DataComboFile[Implementation programme]=$G$3)*(T_DataComboFile[Econ4]=$G50))*T_DataComboFile[2023/24 Baseline]*$B$3)","v":0},{"$f":"SUMPRODUCT(((T_DataComboFile[Implementation programme]=$G$3)*(T_DataComboFile[Econ4]=$G50))*T_DataComboFile[2023/24 Reduction]*$B$3)","v":0},{"$f":"SUMPRODUCT(((T_DataComboFile[Implementation programme]=$G$3)*(T_DataComboFile[Econ4]=$G50))*T_DataComboFile[2023/24 Increase]*$B$3)","v":0},{"$f":"T50+U50+V50","v":0}]
[0,0,null,null,null,null,"Other transfers to households",{"$f":"SUMPRODUCT(((T_DataComboFile[Implementation programme]=$G$3)*(T_DataComboFile[Econ4]=$G51))*T_DataComboFile[2017/18]*$B$3)","v":0},{"$f":"SUMPRODUCT(((T_DataComboFile[Implementation programme]=$G$3)*(T_DataComboFile[Econ4]=$G51))*T_DataComboFile[2018/19]*$B$3)","v":0},{"$f":"SUMPRODUCT(((T_DataComboFile[Implementation programme]=$G$3)*(T_DataComboFile[Econ4]=$G51))*T_DataComboFile[2019/20 Revised estimate]*$B$3)","v":0},{"$f":"SUMPRODUCT(((T_DataComboFile[Implementation programme]=$G$3)*(T_DataComboFile[Econ4]=$G51))*T_DataComboFile[2020/21 Revised]*$B$3)","v":0},{"$f":"SUMPRODUCT(((T_DataComboFile[Implementation programme]=$G$3)*(T_DataComboFile[Econ4]=$G51))*T_DataComboFile[2021/22 Baseline]*$B$3)","v":0},{"$f":"SUMPRODUCT(((T_DataComboFile[Implementation programme]=$G$3)*(T_DataComboFile[Econ4]=$G51))*T_DataComboFile[2021/22 Reduction]*$B$3)","v":0},{"$f":"SUMPRODUCT(((T_DataComboFile[Implementation programme]=$G$3)*(T_DataComboFile[Econ4]=$G51))*T_DataComboFile[2021/22 Increase]*$B$3)","v":0},0,{"$f":"SUMPRODUCT(((T_DataComboFile[Implementation programme]=$G$3)*(T_DataComboFile[Econ4]=$G51))*T_DataComboFile[2022/23 Baseline]*$B$3)","v":0},{"$f":"SUMPRODUCT(((T_DataComboFile[Implementation programme]=$G$3)*(T_DataComboFile[Econ4]=$G51))*T_DataComboFile[2022/23 Reduction]*$B$3)","v":0},{"$f":"SUMPRODUCT(((T_DataComboFile[Implementation programme]=$G$3)*(T_DataComboFile[Econ4]=$G51))*T_DataComboFile[2022/23 Increase]*$B$3)","v":0},0,{"$f":"SUMPRODUCT(((T_DataComboFile[Implementation programme]=$G$3)*(T_DataComboFile[Econ4]=$G51))*T_DataComboFile[2023/24 Baseline]*$B$3)","v":0},{"$f":"SUMPRODUCT(((T_DataComboFile[Implementation programme]=$G$3)*(T_DataComboFile[Econ4]=$G51))*T_DataComboFile[2023/24 Reduction]*$B$3)","v":0},{"$f":"SUMPRODUCT(((T_DataComboFile[Implementation programme]=$G$3)*(T_DataComboFile[Econ4]=$G51))*T_DataComboFile[2023/24 Increase]*$B$3)","v":0},0]
[0,0,null,null,null,null,"Payments for capital assets",{"$f":"SUM(H53,H56,H59:H63)","v":0},0,0,0,0,0,0,0,0,0,0,0,0,0,0,0]
[0,0,null,null,null,null,"Buildings and other fixed structures",{"$f":"SUM(H54:H55)","v":0},0,0,0,0,0,0,0,0,0,0,0,0,0,0,0]
[0,0,null,null,null,null,"Buildings",{"$f":"SUMPRODUCT(((T_DataComboFile[Implementation programme]=$G$3)*(T_DataComboFile[Econ4]=$G54))*T_DataComboFile[2017/18]*$B$3)","v":0},{"$f":"SUMPRODUCT(((T_DataComboFile[Implementation programme]=$G$3)*(T_DataComboFile[Econ4]=$G54))*T_DataComboFile[2018/19]*$B$3)","v":0},{"$f":"SUMPRODUCT(((T_DataComboFile[Implementation programme]=$G$3)*(T_DataComboFile[Econ4]=$G54))*T_DataComboFile[2019/20 Revised estimate]*$B$3)","v":0},{"$f":"SUMPRODUCT(((T_DataComboFile[Implementation programme]=$G$3)*(T_DataComboFile[Econ4]=$G54))*T_DataComboFile[2020/21 Revised]*$B$3)","v":0},{"$f":"SUMPRODUCT(((T_DataComboFile[Implementation programme]=$G$3)*(T_DataComboFile[Econ4]=$G54))*T_DataComboFile[2021/22 Baseline]*$B$3)","v":0},{"$f":"SUMPRODUCT(((T_DataComboFile[Implementation programme]=$G$3)*(T_DataComboFile[Econ4]=$G54))*T_DataComboFile[2021/22 Reduction]*$B$3)","v":0},{"$f":"SUMPRODUCT(((T_DataComboFile[Implementation programme]=$G$3)*(T_DataComboFile[Econ4]=$G54))*T_DataComboFile[2021/22 Increase]*$B$3)","v":0},{"$f":"L54+M54+N54","v":0},{"$f":"SUMPRODUCT(((T_DataComboFile[Implementation programme]=$G$3)*(T_DataComboFile[Econ4]=$G54))*T_DataComboFile[2022/23 Baseline]*$B$3)","v":0},{"$f":"SUMPRODUCT(((T_DataComboFile[Implementation programme]=$G$3)*(T_DataComboFile[Econ4]=$G54))*T_DataComboFile[2022/23 Reduction]*$B$3)","v":0},{"$f":"SUMPRODUCT(((T_DataComboFile[Implementation programme]=$G$3)*(T_DataComboFile[Econ4]=$G54))*T_DataComboFile[2022/23 Increase]*$B$3)","v":0},{"$f":"P54+Q54+R54","v":0},{"$f":"SUMPRODUCT(((T_DataComboFile[Implementation programme]=$G$3)*(T_DataComboFile[Econ4]=$G54))*T_DataComboFile[2023/24 Baseline]*$B$3)","v":0},{"$f":"SUMPRODUCT(((T_DataComboFile[Implementation programme]=$G$3)*(T_DataComboFile[Econ4]=$G54))*T_DataComboFile[2023/24 Reduction]*$B$3)","v":0},{"$f":"SUMPRODUCT(((T_DataComboFile[Implementation programme]=$G$3)*(T_DataComboFile[Econ4]=$G54))*T_DataComboFile[2023/24 Increase]*$B$3)","v":0},{"$f":"T54+U54+V54","v":0}]
[0,0,null,null,null,null,"Other fixed structures",{"$f":"SUMPRODUCT(((T_DataComboFile[Implementation programme]=$G$3)*(T_DataComboFile[Econ4]=$G55))*T_DataComboFile[2017/18]*$B$3)","v":0},{"$f":"SUMPRODUCT(((T_DataComboFile[Implementation programme]=$G$3)*(T_DataComboFile[Econ4]=$G55))*T_DataComboFile[2018/19]*$B$3)","v":0},{"$f":"SUMPRODUCT(((T_DataComboFile[Implementation programme]=$G$3)*(T_DataComboFile[Econ4]=$G55))*T_DataComboFile[2019/20 Revised estimate]*$B$3)","v":0},{"$f":"SUMPRODUCT(((T_DataComboFile[Implementation programme]=$G$3)*(T_DataComboFile[Econ4]=$G55))*T_DataComboFile[2020/21 Revised]*$B$3)","v":0},{"$f":"SUMPRODUCT(((T_DataComboFile[Implementation programme]=$G$3)*(T_DataComboFile[Econ4]=$G55))*T_DataComboFile[2021/22 Baseline]*$B$3)","v":0},{"$f":"SUMPRODUCT(((T_DataComboFile[Implementation programme]=$G$3)*(T_DataComboFile[Econ4]=$G55))*T_DataComboFile[2021/22 Reduction]*$B$3)","v":0},{"$f":"SUMPRODUCT(((T_DataComboFile[Implementation programme]=$G$3)*(T_DataComboFile[Econ4]=$G55))*T_DataComboFile[2021/22 Increase]*$B$3)","v":0},0,{"$f":"SUMPRODUCT(((T_DataComboFile[Implementation programme]=$G$3)*(T_DataComboFile[Econ4]=$G55))*T_DataComboFile[2022/23 Baseline]*$B$3)","v":0},{"$f":"SUMPRODUCT(((T_DataComboFile[Implementation programme]=$G$3)*(T_DataComboFile[Econ4]=$G55))*T_DataComboFile[2022/23 Reduction]*$B$3)","v":0},{"$f":"SUMPRODUCT(((T_DataComboFile[Implementation programme]=$G$3)*(T_DataComboFile[Econ4]=$G55))*T_DataComboFile[2022/23 Increase]*$B$3)","v":0},0,{"$f":"SUMPRODUCT(((T_DataComboFile[Implementation programme]=$G$3)*(T_DataComboFile[Econ4]=$G55))*T_DataComboFile[2023/24 Baseline]*$B$3)","v":0},{"$f":"SUMPRODUCT(((T_DataComboFile[Implementation programme]=$G$3)*(T_DataComboFile[Econ4]=$G55))*T_DataComboFile[2023/24 Reduction]*$B$3)","v":0},{"$f":"SUMPRODUCT(((T_DataComboFile[Implementation programme]=$G$3)*(T_DataComboFile[Econ4]=$G55))*T_DataComboFile[2023/24 Increase]*$B$3)","v":0},0]
[0,0,null,null,null,null,"Machinery and equipment",{"$f":"SUM(H57:H58)","v":0},0,0,0,0,0,0,0,0,0,0,0,0,0,0,0]
[0,0,null,null,null,null,"Transport equipment",{"$f":"SUMPRODUCT(((T_DataComboFile[Implementation programme]=$G$3)*(T_DataComboFile[Econ4]=$G57))*T_DataComboFile[2017/18]*$B$3)","v":0},{"$f":"SUMPRODUCT(((T_DataComboFile[Implementation programme]=$G$3)*(T_DataComboFile[Econ4]=$G57))*T_DataComboFile[2018/19]*$B$3)","v":0},{"$f":"SUMPRODUCT(((T_DataComboFile[Implementation programme]=$G$3)*(T_DataComboFile[Econ4]=$G57))*T_DataComboFile[2019/20 Revised estimate]*$B$3)","v":0},{"$f":"SUMPRODUCT(((T_DataComboFile[Implementation programme]=$G$3)*(T_DataComboFile[Econ4]=$G57))*T_DataComboFile[2020/21 Revised]*$B$3)","v":0},{"$f":"SUMPRODUCT(((T_DataComboFile[Implementation programme]=$G$3)*(T_DataComboFile[Econ4]=$G57))*T_DataComboFile[2021/22 Baseline]*$B$3)","v":0},{"$f":"SUMPRODUCT(((T_DataComboFile[Implementation programme]=$G$3)*(T_DataComboFile[Econ4]=$G57))*T_DataComboFile[2021/22 Reduction]*$B$3)","v":0},{"$f":"SUMPRODUCT(((T_DataComboFile[Implementation programme]=$G$3)*(T_DataComboFile[Econ4]=$G57))*T_DataComboFile[2021/22 Increase]*$B$3)","v":0},{"$f":"L57+M57+N57","v":0},{"$f":"SUMPRODUCT(((T_DataComboFile[Implementation programme]=$G$3)*(T_DataComboFile[Econ4]=$G57))*T_DataComboFile[2022/23 Baseline]*$B$3)","v":0},{"$f":"SUMPRODUCT(((T_DataComboFile[Implementation programme]=$G$3)*(T_DataComboFile[Econ4]=$G57))*T_DataComboFile[2022/23 Reduction]*$B$3)","v":0},{"$f":"SUMPRODUCT(((T_DataComboFile[Implementation programme]=$G$3)*(T_DataComboFile[Econ4]=$G57))*T_DataComboFile[2022/23 Increase]*$B$3)","v":0},{"$f":"P57+Q57+R57","v":0},{"$f":"SUMPRODUCT(((T_DataComboFile[Implementation programme]=$G$3)*(T_DataComboFile[Econ4]=$G57))*T_DataComboFile[2023/24 Baseline]*$B$3)","v":0},{"$f":"SUMPRODUCT(((T_DataComboFile[Implementation programme]=$G$3)*(T_DataComboFile[Econ4]=$G57))*T_DataComboFile[2023/24 Reduction]*$B$3)","v":0},{"$f":"SUMPRODUCT(((T_DataComboFile[Implementation programme]=$G$3)*(T_DataComboFile[Econ4]=$G57))*T_DataComboFile[2023/24 Increase]*$B$3)","v":0},{"$f":"T57+U57+V57","v":0}]
[0,0,null,null,null,null,"Other machinery and equipment",{"$f":"SUMPRODUCT(((T_DataComboFile[Implementation programme]=$G$3)*(T_DataComboFile[Econ4]=$G58))*T_DataComboFile[2017/18]*$B$3)","v":0},{"$f":"SUMPRODUCT(((T_DataComboFile[Implementation programme]=$G$3)*(T_DataComboFile[Econ4]=$G58))*T_DataComboFile[2018/19]*$B$3)","v":0},{"$f":"SUMPRODUCT(((T_DataComboFile[Implementation programme]=$G$3)*(T_DataComboFile[Econ4]=$G58))*T_DataComboFile[2019/20 Revised estimate]*$B$3)","v":0},{"$f":"SUMPRODUCT(((T_DataComboFile[Implementation programme]=$G$3)*(T_DataComboFile[Econ4]=$G58))*T_DataComboFile[2020/21 Revised]*$B$3)","v":0},{"$f":"SUMPRODUCT(((T_DataComboFile[Implementation programme]=$G$3)*(T_DataComboFile[Econ4]=$G58))*T_DataComboFile[2021/22 Baseline]*$B$3)","v":0},{"$f":"SUMPRODUCT(((T_DataComboFile[Implementation programme]=$G$3)*(T_DataComboFile[Econ4]=$G58))*T_DataComboFile[2021/22 Reduction]*$B$3)","v":0},{"$f":"SUMPRODUCT(((T_DataComboFile[Implementation programme]=$G$3)*(T_DataComboFile[Econ4]=$G58))*T_DataComboFile[2021/22 Increase]*$B$3)","v":0},0,{"$f":"SUMPRODUCT(((T_DataComboFile[Implementation programme]=$G$3)*(T_DataComboFile[Econ4]=$G58))*T_DataComboFile[2022/23 Baseline]*$B$3)","v":0},{"$f":"SUMPRODUCT(((T_DataComboFile[Implementation programme]=$G$3)*(T_DataComboFile[Econ4]=$G58))*T_DataComboFile[2022/23 Reduction]*$B$3)","v":0},{"$f":"SUMPRODUCT(((T_DataComboFile[Implementation programme]=$G$3)*(T_DataComboFile[Econ4]=$G58))*T_DataComboFile[2022/23 Increase]*$B$3)","v":0},0,{"$f":"SUMPRODUCT(((T_DataComboFile[Implementation programme]=$G$3)*(T_DataComboFile[Econ4]=$G58))*T_DataComboFile[2023/24 Baseline]*$B$3)","v":0},{"$f":"SUMPRODUCT(((T_DataComboFile[Implementation programme]=$G$3)*(T_DataComboFile[Econ4]=$G58))*T_DataComboFile[2023/24 Reduction]*$B$3)","v":0},{"$f":"SUMPRODUCT(((T_DataComboFile[Implementation programme]=$G$3)*(T_DataComboFile[Econ4]=$G58))*T_DataComboFile[2023/24 Increase]*$B$3)","v":0},0]
[0,0,null,null,null,null,"Heritage assets",{"$f":"SUMPRODUCT(((T_DataComboFile[Implementation programme]=$G$3)*(T_DataComboFile[Econ3]=$G59))*T_DataComboFile[2017/18]*$B$3)","v":0},{"$f":"SUMPRODUCT(((T_DataComboFile[Implementation programme]=$G$3)*(T_DataComboFile[Econ3]=$G59))*T_DataComboFile[2018/19]*$B$3)","v":0},{"$f":"SUMPRODUCT(((T_DataComboFile[Implementation programme]=$G$3)*(T_DataComboFile[Econ3]=$G59))*T_DataComboFile[2019/20 Revised estimate]*$B$3)","v":0},{"$f":"SUMPRODUCT(((T_DataComboFile[Implementation programme]=$G$3)*(T_DataComboFile[Econ3]=$G59))*T_DataComboFile[2020/21 Revised]*$B$3)","v":0},{"$f":"SUMPRODUCT(((T_DataComboFile[Implementation programme]=$G$3)*(T_DataComboFile[Econ3]=$G59))*T_DataComboFile[2021/22 Baseline]*$B$3)","v":0},{"$f":"SUMPRODUCT(((T_DataComboFile[Implementation programme]=$G$3)*(T_DataComboFile[Econ3]=$G59))*T_DataComboFile[2021/22 Reduction]*$B$3)","v":0},{"$f":"SUMPRODUCT(((T_DataComboFile[Implementation programme]=$G$3)*(T_DataComboFile[Econ3]=$G59))*T_DataComboFile[2021/22 Increase]*$B$3)","v":0},0,{"$f":"SUMPRODUCT(((T_DataComboFile[Implementation programme]=$G$3)*(T_DataComboFile[Econ3]=$G59))*T_DataComboFile[2022/23 Baseline]*$B$3)","v":0},{"$f":"SUMPRODUCT(((T_DataComboFile[Implementation programme]=$G$3)*(T_DataComboFile[Econ3]=$G59))*T_DataComboFile[2022/23 Reduction]*$B$3)","v":0},{"$f":"SUMPRODUCT(((T_DataComboFile[Implementation programme]=$G$3)*(T_DataComboFile[Econ3]=$G59))*T_DataComboFile[2022/23 Increase]*$B$3)","v":0},0,{"$f":"SUMPRODUCT(((T_DataComboFile[Implementation programme]=$G$3)*(T_DataComboFile[Econ3]=$G59))*T_DataComboFile[2023/24 Baseline]*$B$3)","v":0},{"$f":"SUMPRODUCT(((T_DataComboFile[Implementation programme]=$G$3)*(T_DataComboFile[Econ3]=$G59))*T_DataComboFile[2023/24 Reduction]*$B$3)","v":0},{"$f":"SUMPRODUCT(((T_DataComboFile[Implementation programme]=$G$3)*(T_DataComboFile[Econ3]=$G59))*T_DataComboFile[2023/24 Increase]*$B$3)","v":0},0]
[0,0,null,null,null,null,"Specialised military assets",{"$f":"SUMPRODUCT(((T_DataComboFile[Implementation programme]=$G$3)*(T_DataComboFile[Econ3]=$G60))*T_DataComboFile[2017/18]*$B$3)","v":0},{"$f":"SUMPRODUCT(((T_DataComboFile[Implementation programme]=$G$3)*(T_DataComboFile[Econ3]=$G60))*T_DataComboFile[2018/19]*$B$3)","v":0},{"$f":"SUMPRODUCT(((T_DataComboFile[Implementation programme]=$G$3)*(T_DataComboFile[Econ3]=$G60))*T_DataComboFile[2019/20 Revised estimate]*$B$3)","v":0},{"$f":"SUMPRODUCT(((T_DataComboFile[Implementation programme]=$G$3)*(T_DataComboFile[Econ3]=$G60))*T_DataComboFile[2020/21 Revised]*$B$3)","v":0},{"$f":"SUMPRODUCT(((T_DataComboFile[Implementation programme]=$G$3)*(T_DataComboFile[Econ3]=$G60))*T_DataComboFile[2021/22 Baseline]*$B$3)","v":0},{"$f":"SUMPRODUCT(((T_DataComboFile[Implementation programme]=$G$3)*(T_DataComboFile[Econ3]=$G60))*T_DataComboFile[2021/22 Reduction]*$B$3)","v":0},{"$f":"SUMPRODUCT(((T_DataComboFile[Implementation programme]=$G$3)*(T_DataComboFile[Econ3]=$G60))*T_DataComboFile[2021/22 Increase]*$B$3)","v":0},0,{"$f":"SUMPRODUCT(((T_DataComboFile[Implementation programme]=$G$3)*(T_DataComboFile[Econ3]=$G60))*T_DataComboFile[2022/23 Baseline]*$B$3)","v":0},{"$f":"SUMPRODUCT(((T_DataComboFile[Implementation programme]=$G$3)*(T_DataComboFile[Econ3]=$G60))*T_DataComboFile[2022/23 Reduction]*$B$3)","v":0},{"$f":"SUMPRODUCT(((T_DataComboFile[Implementation programme]=$G$3)*(T_DataComboFile[Econ3]=$G60))*T_DataComboFile[2022/23 Increase]*$B$3)","v":0},0,{"$f":"SUMPRODUCT(((T_DataComboFile[Implementation programme]=$G$3)*(T_DataComboFile[Econ3]=$G60))*T_DataComboFile[2023/24 Baseline]*$B$3)","v":0},{"$f":"SUMPRODUCT(((T_DataComboFile[Implementation programme]=$G$3)*(T_DataComboFile[Econ3]=$G60))*T_DataComboFile[2023/24 Reduction]*$B$3)","v":0},{"$f":"SUMPRODUCT(((T_DataComboFile[Implementation programme]=$G$3)*(T_DataComboFile[Econ3]=$G60))*T_DataComboFile[2023/24 Increase]*$B$3)","v":0},0]
[0,0,null,null,null,null,"Biological assets",{"$f":"SUMPRODUCT(((T_DataComboFile[Implementation programme]=$G$3)*(T_DataComboFile[Econ3]=$G61))*T_DataComboFile[2017/18]*$B$3)","v":0},{"$f":"SUMPRODUCT(((T_DataComboFile[Implementation programme]=$G$3)*(T_DataComboFile[Econ3]=$G61))*T_DataComboFile[2018/19]*$B$3)","v":0},{"$f":"SUMPRODUCT(((T_DataComboFile[Implementation programme]=$G$3)*(T_DataComboFile[Econ3]=$G61))*T_DataComboFile[2019/20 Revised estimate]*$B$3)","v":0},{"$f":"SUMPRODUCT(((T_DataComboFile[Implementation programme]=$G$3)*(T_DataComboFile[Econ3]=$G61))*T_DataComboFile[2020/21 Revised]*$B$3)","v":0},{"$f":"SUMPRODUCT(((T_DataComboFile[Implementation programme]=$G$3)*(T_DataComboFile[Econ3]=$G61))*T_DataComboFile[2021/22 Baseline]*$B$3)","v":0},{"$f":"SUMPRODUCT(((T_DataComboFile[Implementation programme]=$G$3)*(T_DataComboFile[Econ3]=$G61))*T_DataComboFile[2021/22 Reduction]*$B$3)","v":0},{"$f":"SUMPRODUCT(((T_DataComboFile[Implementation programme]=$G$3)*(T_DataComboFile[Econ3]=$G61))*T_DataComboFile[2021/22 Increase]*$B$3)","v":0},0,{"$f":"SUMPRODUCT(((T_DataComboFile[Implementation programme]=$G$3)*(T_DataComboFile[Econ3]=$G61))*T_DataComboFile[2022/23 Baseline]*$B$3)","v":0},{"$f":"SUMPRODUCT(((T_DataComboFile[Implementation programme]=$G$3)*(T_DataComboFile[Econ3]=$G61))*T_DataComboFile[2022/23 Reduction]*$B$3)","v":0},{"$f":"SUMPRODUCT(((T_DataComboFile[Implementation programme]=$G$3)*(T_DataComboFile[Econ3]=$G61))*T_DataComboFile[2022/23 Increase]*$B$3)","v":0},0,{"$f":"SUMPRODUCT(((T_DataComboFile[Implementation programme]=$G$3)*(T_DataComboFile[Econ3]=$G61))*T_DataComboFile[2023/24 Baseline]*$B$3)","v":0},{"$f":"SUMPRODUCT(((T_DataComboFile[Implementation programme]=$G$3)*(T_DataComboFile[Econ3]=$G61))*T_DataComboFile[2023/24 Reduction]*$B$3)","v":0},{"$f":"SUMPRODUCT(((T_DataComboFile[Implementation programme]=$G$3)*(T_DataComboFile[Econ3]=$G61))*T_DataComboFile[2023/24 Increase]*$B$3)","v":0},0]
[0,0,null,null,null,null,"Land and sub-soil assets",{"$f":"SUMPRODUCT(((T_DataComboFile[Implementation programme]=$G$3)*(T_DataComboFile[Econ3]=$G62))*T_DataComboFile[2017/18]*$B$3)","v":0},{"$f":"SUMPRODUCT(((T_DataComboFile[Implementation programme]=$G$3)*(T_DataComboFile[Econ3]=$G62))*T_DataComboFile[2018/19]*$B$3)","v":0},{"$f":"SUMPRODUCT(((T_DataComboFile[Implementation programme]=$G$3)*(T_DataComboFile[Econ3]=$G62))*T_DataComboFile[2019/20 Revised estimate]*$B$3)","v":0},{"$f":"SUMPRODUCT(((T_DataComboFile[Implementation programme]=$G$3)*(T_DataComboFile[Econ3]=$G62))*T_DataComboFile[2020/21 Revised]*$B$3)","v":0},{"$f":"SUMPRODUCT(((T_DataComboFile[Implementation programme]=$G$3)*(T_DataComboFile[Econ3]=$G62))*T_DataComboFile[2021/22 Baseline]*$B$3)","v":0},{"$f":"SUMPRODUCT(((T_DataComboFile[Implementation programme]=$G$3)*(T_DataComboFile[Econ3]=$G62))*T_DataComboFile[2021/22 Reduction]*$B$3)","v":0},{"$f":"SUMPRODUCT(((T_DataComboFile[Implementation programme]=$G$3)*(T_DataComboFile[Econ3]=$G62))*T_DataComboFile[2021/22 Increase]*$B$3)","v":0},0,{"$f":"SUMPRODUCT(((T_DataComboFile[Implementation programme]=$G$3)*(T_DataComboFile[Econ3]=$G62))*T_DataComboFile[2022/23 Baseline]*$B$3)","v":0},{"$f":"SUMPRODUCT(((T_DataComboFile[Implementation programme]=$G$3)*(T_DataComboFile[Econ3]=$G62))*T_DataComboFile[2022/23 Reduction]*$B$3)","v":0},{"$f":"SUMPRODUCT(((T_DataComboFile[Implementation programme]=$G$3)*(T_DataComboFile[Econ3]=$G62))*T_DataComboFile[2022/23 Increase]*$B$3)","v":0},0,{"$f":"SUMPRODUCT(((T_DataComboFile[Implementation programme]=$G$3)*(T_DataComboFile[Econ3]=$G62))*T_DataComboFile[2023/24 Baseline]*$B$3)","v":0},{"$f":"SUMPRODUCT(((T_DataComboFile[Implementation programme]=$G$3)*(T_DataComboFile[Econ3]=$G62))*T_DataComboFile[2023/24 Reduction]*$B$3)","v":0},{"$f":"SUMPRODUCT(((T_DataComboFile[Implementation programme]=$G$3)*(T_DataComboFile[Econ3]=$G62))*T_DataComboFile[2023/24 Increase]*$B$3)","v":0},0]
[0,0,null,null,null,null,"Software and other intangible assets",{"$f":"SUMPRODUCT(((T_DataComboFile[Implementation programme]=$G$3)*(T_DataComboFile[Econ3]=$G63))*T_DataComboFile[2017/18]*$B$3)","v":0},{"$f":"SUMPRODUCT(((T_DataComboFile[Implementation programme]=$G$3)*(T_DataComboFile[Econ3]=$G63))*T_DataComboFile[2018/19]*$B$3)","v":0},{"$f":"SUMPRODUCT(((T_DataComboFile[Implementation programme]=$G$3)*(T_DataComboFile[Econ3]=$G63))*T_DataComboFile[2019/20 Revised estimate]*$B$3)","v":0},{"$f":"SUMPRODUCT(((T_DataComboFile[Implementation programme]=$G$3)*(T_DataComboFile[Econ3]=$G63))*T_DataComboFile[2020/21 Revised]*$B$3)","v":0},{"$f":"SUMPRODUCT(((T_DataComboFile[Implementation programme]=$G$3)*(T_DataComboFile[Econ3]=$G63))*T_DataComboFile[2021/22 Baseline]*$B$3)","v":0},{"$f":"SUMPRODUCT(((T_DataComboFile[Implementation programme]=$G$3)*(T_DataComboFile[Econ3]=$G63))*T_DataComboFile[2021/22 Reduction]*$B$3)","v":0},{"$f":"SUMPRODUCT(((T_DataComboFile[Implementation programme]=$G$3)*(T_DataComboFile[Econ3]=$G63))*T_DataComboFile[2021/22 Increase]*$B$3)","v":0},0,{"$f":"SUMPRODUCT(((T_DataComboFile[Implementation programme]=$G$3)*(T_DataComboFile[Econ3]=$G63))*T_DataComboFile[2022/23 Baseline]*$B$3)","v":0},{"$f":"SUMPRODUCT(((T_DataComboFile[Implementation programme]=$G$3)*(T_DataComboFile[Econ3]=$G63))*T_DataComboFile[2022/23 Reduction]*$B$3)","v":0},{"$f":"SUMPRODUCT(((T_DataComboFile[Implementation programme]=$G$3)*(T_DataComboFile[Econ3]=$G63))*T_DataComboFile[2022/23 Increase]*$B$3)","v":0},0,{"$f":"SUMPRODUCT(((T_DataComboFile[Implementation programme]=$G$3)*(T_DataComboFile[Econ3]=$G63))*T_DataComboFile[2023/24 Baseline]*$B$3)","v":0},{"$f":"SUMPRODUCT(((T_DataComboFile[Implementation programme]=$G$3)*(T_DataComboFile[Econ3]=$G63))*T_DataComboFile[2023/24 Reduction]*$B$3)","v":0},{"$f":"SUMPRODUCT(((T_DataComboFile[Implementation programme]=$G$3)*(T_DataComboFile[Econ3]=$G63))*T_DataComboFile[2023/24 Increase]*$B$3)","v":0},0]
[0,0,null,null,null,null,"Payments for financial assets",{"$f":"SUMPRODUCT(((T_DataComboFile[Implementation programme]=$G$3)*(T_DataComboFile[Econ3]=$G64))*T_DataComboFile[2017/18]*$B$3)","v":0},{"$f":"SUMPRODUCT(((T_DataComboFile[Implementation programme]=$G$3)*(T_DataComboFile[Econ3]=$G64))*T_DataComboFile[2018/19]*$B$3)","v":0},{"$f":"SUMPRODUCT(((T_DataComboFile[Implementation programme]=$G$3)*(T_DataComboFile[Econ3]=$G64))*T_DataComboFile[2019/20 Revised estimate]*$B$3)","v":0},{"$f":"SUMPRODUCT(((T_DataComboFile[Implementation programme]=$G$3)*(T_DataComboFile[Econ3]=$G64))*T_DataComboFile[2020/21 Revised]*$B$3)","v":0},{"$f":"SUMPRODUCT(((T_DataComboFile[Implementation programme]=$G$3)*(T_DataComboFile[Econ3]=$G64))*T_DataComboFile[2021/22 Baseline]*$B$3)","v":0},{"$f":"SUMPRODUCT(((T_DataComboFile[Implementation programme]=$G$3)*(T_DataComboFile[Econ3]=$G64))*T_DataComboFile[2021/22 Reduction]*$B$3)","v":0},{"$f":"SUMPRODUCT(((T_DataComboFile[Implementation programme]=$G$3)*(T_DataComboFile[Econ3]=$G64))*T_DataComboFile[2021/22 Increase]*$B$3)","v":0},0,{"$f":"SUMPRODUCT(((T_DataComboFile[Implementation programme]=$G$3)*(T_DataComboFile[Econ3]=$G64))*T_DataComboFile[2022/23 Baseline]*$B$3)","v":0},{"$f":"SUMPRODUCT(((T_DataComboFile[Implementation programme]=$G$3)*(T_DataComboFile[Econ3]=$G64))*T_DataComboFile[2022/23 Reduction]*$B$3)","v":0},{"$f":"SUMPRODUCT(((T_DataComboFile[Implementation programme]=$G$3)*(T_DataComboFile[Econ3]=$G64))*T_DataComboFile[2022/23 Increase]*$B$3)","v":0},0,{"$f":"SUMPRODUCT(((T_DataComboFile[Implementation programme]=$G$3)*(T_DataComboFile[Econ3]=$G64))*T_DataComboFile[2023/24 Baseline]*$B$3)","v":0},{"$f":"SUMPRODUCT(((T_DataComboFile[Implementation programme]=$G$3)*(T_DataComboFile[Econ3]=$G64))*T_DataComboFile[2023/24 Reduction]*$B$3)","v":0},{"$f":"SUMPRODUCT(((T_DataComboFile[Implementation programme]=$G$3)*(T_DataComboFile[Econ3]=$G64))*T_DataComboFile[2023/24 Increase]*$B$3)","v":0},0]
[0,0,null,null,null,null,"Total",{"$f":"SUM(H32,H36,H52,H64)","v":0},0,0,0,0,0,0,0,0,0,0,0,0,0,0,0]
[]
[]
[]
[]
[]
[null,null,null,null,null,null,{"$f":"\"IMPACT OF ADJUSTMENTS: \" &UPPER($G$3)","v":"IMPACT OF ADJUSTMENTS: "}]
[]
[null,null,null,null,null,1,"Summary of impact on service delivery due to adjustments"]
[{"$f":"$G$3","v":0},1]
[0,1]
[0,1]
[0,1]
[0,1]
[0,1]
[0,1]
[0,1]
[0,1]
[0,1]
[0,1]
[0,1]
[0,1]
[0,1]
[0,1]
[]
[]
[]
[]
[]
[null,null,null,null,null,2,"Impact of adjustments on performance indicators"]
[{"$f":"$G$3","v":0},2,null,null,null,null,null,"2021/22",null,null,"2022/23",null,null,"2023/24",null,null," Comment",null,null,null,null,"Related MTSF Priority"]
[0,2,null,null,null,null,"Performance indicator","Original target","Revised target","Change","Original target","Revised target","Change","Original target","Revised target","Change"]
[0,2]
[0,2]
[0,2]
[0,2]
[0,2]
[0,2]
[0,2]
[0,2]
[0,2]
[0,2]
[0,2]
[0,2]
[0,2]
[0,2]
[0,2]
[]
[]
[]
[]
[]
[null,null,null,null,null,3,"Impact of adjustments on infrastructure projects"]
[{"$f":"$G$3","v":0},3,null,null,null,null,null,"2021/22",null,null,"2022/23",null,null,"2023/24",null,null," Comment"]
[0,3,null,null,null,null,"Project name","Original amount","Revised amount","Change","Original amount","Revised amount","Change","Original amount","Revised amount","Change"]
[0,3,null,null,null,null,null,null,null,{"$f":"I120-H120","v":0},null,null,{"$f":"L120-K120","v":0},null,null,{"$f":"O120-N120","v":0}]
[0,3,null,null,null,null,null,null,null,0,null,null,0,null,null,0]
[0,3,null,null,null,null,null,null,null,0,null,null,0,null,null,0]
[0,3,null,null,null,null,null,null,null,0,null,null,0,null,null,0]
[0,3,null,null,null,null,null,null,null,0,null,null,0,null,null,0]
[0,3,null,null,null,null,null,null,null,0,null,null,0,null,null,0]
[0,3,null,null,null,null,null,null,null,0,null,null,0,null,null,0]
[0,3,null,null,null,null,null,null,null,0,null,null,0,null,null,0]
[0,3,null,null,null,null,null,null,null,0,null,null,0,null,null,0]
[0,3,null,null,null,null,null,null,null,0,null,null,0,null,null,0]
[0,3,null,null,null,null,null,null,null,0,null,null,0,null,null,0]
[0,3,null,null,null,null,null,null,null,0,null,null,0,null,null,0]
[0,3,null,null,null,null,null,null,null,0,null,null,0,null,null,0]
[0,3,null,null,null,null,null,null,null,0,null,null,0,null,null,0]
[0,3,null,null,null,null,null,null,null,0,null,null,0,null,null,0]
[0,3,null,null,null,null,"Total",{"$f":"SUM(H120:H134)","v":0},0,0,0,0,0,0,0,0]
[]
[]
[]
[]
[]
[null,null,null,null,null,4,"Impact of adjustments on personnel headcount numbers"]
[{"$f":"$G$3","v":0},4,null,null,null,null,null,"2021/22",null,null,"2022/23",null,null,"2023/24",null,null," Comment"]
[0,4,null,null,null,null,"Salary level","Original number","Revised number","Change","Original number","Revised number","Change","Original number","Revised number","Change"]
[0,4,null,null,null,null,1,null,null,{"$f":"I144-H144","v":0},null,null,{"$f":"L144-K144","v":0},null,null,{"$f":"O144-N144","v":0}]
[0,4,null,null,null,null,2,null,null,0,null,null,0,null,null,0]
[0,4,null,null,null,null,3,null,null,0,null,null,0,null,null,0]
[0,4,null,null,null,null,4,null,null,0,null,null,0,null,null,0]
[0,4,null,null,null,null,5,null,null,0,null,null,0,null,null,0]
[0,4,null,null,null,null,6,null,null,0,null,null,0,null,null,0]
[0,4,null,null,null,null,7,null,null,0,null,null,0,null,null,0]
[0,4,null,null,null,null,8,null,null,0,null,null,0,null,null,0]
[0,4,null,null,null,null,9,null,null,0,null,null,0,null,null,0]
[0,4,null,null,null,null,10,null,null,0,null,null,0,null,null,0]
[0,4,null,null,null,null,11,null,null,0,null,null,0,null,null,0]
[0,4,null,null,null,null,12,null,null,0,null,null,0,null,null,0]
[0,4,null,null,null,null,13,null,null,0,null,null,0,null,null,0]
[0,4,null,null,null,null,14,null,null,0,null,null,0,null,null,0]
[0,4,null,null,null,null,15,null,null,0,null,null,0,null,null,0]
[0,4,null,null,null,null,16,null,null,0,null,null,0,null,null,0]
[0,4,null,null,null,null,"Other",null,null,0,null,null,0,null,null,0]
[0,4,null,null,null,null,"Other",null,null,0,null,null,0,null,null,0]
[0,4,null,null,null,null,"Other",null,null,0,null,null,0,null,null,0]
[0,4,null,null,null,null,"Other",null,null,0,null,null,0,null,null,0]
[0,4,null,null,null,null,"Total",{"$f":"SUM(H144:H163)","v":0},0,0,0,0,0,0,0,0]
[]
[]
[]
[]
[]
[null,null,null,null,null,5,"Impact of adjustments by economic classification"]
[{"$f":"$G$3","v":0},5,null,null,null,null,null,"2021/22",null,null,"2022/23",null,null,"2023/24",null,null," Comment"]
[0,5,null,null,null,null,"Salary level","Original number","Revised number","Change","Original number","Revised number","Change","Original number","Revised number","Change"]
[0,5,null,null,null,null,"Current payments",{"$f":"SUM(H174,H175,H182)","v":0},{"$f":"SUM(I174,I175,I182)","v":0},{"$f":"I173-H173","v":0},{"$f":"SUM(K174,K175,K182)","v":0},{"$f":"SUM(L174,L175,L182)","v":0},{"$f":"L173-K173","v":0},{"$f":"SUM(N174,N175,N182)","v":0},{"$f":"SUM(O174,O175,O182)","v":0},{"$f":"O173-N173","v":0}]
[0,5,null,null,null,null,"Compensation of employees",{"$f":"SUMPRODUCT(((T_DataComboFile[Implementation programme]=$G$3)*(T_DataComboFile[Econ3]=$G174))*T_DataComboFile[2021/22 Baseline]*$B$3)","v":0},{"$f":"SUMPRODUCT(((T_DataComboFile[Implementation programme]=$G$3)*(T_DataComboFile[Econ3]=$G174))*T_DataComboFile[2021/22 Revised baseline]*$B$3)","v":0},0,{"$f":"SUMPRODUCT(((T_DataComboFile[Implementation programme]=$G$3)*(T_DataComboFile[Econ3]=$G174))*T_DataComboFile[2022/23 Baseline]*$B$3)","v":0},{"$f":"SUMPRODUCT(((T_DataComboFile[Implementation programme]=$G$3)*(T_DataComboFile[Econ3]=$G174))*T_DataComboFile[2022/23 Revised baseline]*$B$3)","v":0},0,{"$f":"SUMPRODUCT(((T_DataComboFile[Implementation programme]=$G$3)*(T_DataComboFile[Econ3]=$G174))*T_DataComboFile[2023/24 Baseline]*$B$3)","v":0},{"$f":"SUMPRODUCT(((T_DataComboFile[Implementation programme]=$G$3)*(T_DataComboFile[Econ3]=$G174))*T_DataComboFile[2023/24 Revised baseline]*$B$3)","v":0},0]
[0,5,null,null,null,null,"Goods and services",{"$f":"SUMPRODUCT(((T_DataComboFile[Implementation programme]=$G$3)*(T_DataComboFile[Econ3]=$G175))*T_DataComboFile[2021/22 Baseline]*$B$3)","v":0},{"$f":"SUMPRODUCT(((T_DataComboFile[Implementation programme]=$G$3)*(T_DataComboFile[Econ3]=$G175))*T_DataComboFile[2021/22 Revised baseline]*$B$3)","v":0},0,{"$f":"SUMPRODUCT(((T_DataComboFile[Implementation programme]=$G$3)*(T_DataComboFile[Econ3]=$G175))*T_DataComboFile[2022/23 Baseline]*$B$3)","v":0},{"$f":"SUMPRODUCT(((T_DataComboFile[Implementation programme]=$G$3)*(T_DataComboFile[Econ3]=$G175))*T_DataComboFile[2022/23 Revised baseline]*$B$3)","v":0},0,{"$f":"SUMPRODUCT(((T_DataComboFile[Implementation programme]=$G$3)*(T_DataComboFile[Econ3]=$G175))*T_DataComboFile[2023/24 Baseline]*$B$3)","v":0},{"$f":"SUMPRODUCT(((T_DataComboFile[Implementation programme]=$G$3)*(T_DataComboFile[Econ3]=$G175))*T_DataComboFile[2023/24 Revised baseline]*$B$3)","v":0},0]
[0,50,null,null,null,null,"of which:"]
[0,51,null,null,null,null,null,null,null,{"$f":"I177-H177","v":0},null,null,{"$f":"L177-K177","v":0},null,null,0]
[0,51,null,null,null,null,null,null,null,0,null,null,0,null,null,0]
[0,51,null,null,null,null,null,null,null,0,null,null,0,null,null,0]
[0,51,null,null,null,null,null,null,null,0,null,null,0,null,null,0]
[0,51,null,null,null,null,null,null,null,0,null,null,0,null,null,0]
[0,5,null,null,null,null,"Interest and rent on land",{"$f":"SUMPRODUCT(((T_DataComboFile[Implementation programme]=$G$3)*(T_DataComboFile[Econ3]=$G182))*T_DataComboFile[2021/22 Baseline]*$B$3)","v":0},{"$f":"SUMPRODUCT(((T_DataComboFile[Implementation programme]=$G$3)*(T_DataComboFile[Econ3]=$G182))*T_DataComboFile[2021/22 Revised baseline]*$B$3)","v":0},0,{"$f":"SUMPRODUCT(((T_DataComboFile[Implementation programme]=$G$3)*(T_DataComboFile[Econ3]=$G182))*T_DataComboFile[2022/23 Baseline]*$B$3)","v":0},{"$f":"SUMPRODUCT(((T_DataComboFile[Implementation programme]=$G$3)*(T_DataComboFile[Econ3]=$G182))*T_DataComboFile[2022/23 Revised baseline]*$B$3)","v":0},0,{"$f":"SUMPRODUCT(((T_DataComboFile[Implementation programme]=$G$3)*(T_DataComboFile[Econ3]=$G182))*T_DataComboFile[2023/24 Baseline]*$B$3)","v":0},{"$f":"SUMPRODUCT(((T_DataComboFile[Implementation programme]=$G$3)*(T_DataComboFile[Econ3]=$G182))*T_DataComboFile[2023/24 Revised baseline]*$B$3)","v":0},0]
[0,5,null,null,null,null,"Transfers and subsidies",{"$f":"SUM(H184,H185,H197,H198,H199,H206,H207)","v":0},{"$f":"SUM(I184,I185,I197,I198,I199,I206,I207)","v":0},0,{"$f":"SUM(K184,K185,K197,K198,K199,K206,K207)","v":0},0,0,{"$f":"SUM(N184,N185,N197,N198,N199,N206,N207)","v":0},0,0]
[0,5,null,null,null,null,"Provinces and municipalities",{"$f":"SUMPRODUCT(((T_DataComboFile[Implementation programme]=$G$3)*(T_DataComboFile[Econ3]=$G184))*T_DataComboFile[2021/22 Baseline]*$B$3)","v":0},{"$f":"SUMPRODUCT(((T_DataComboFile[Implementation programme]=$G$3)*(T_DataComboFile[Econ3]=$G184))*T_DataComboFile[2021/22 Revised baseline]*$B$3)","v":0},0,{"$f":"SUMPRODUCT(((T_DataComboFile[Implementation programme]=$G$3)*(T_DataComboFile[Econ3]=$G184))*T_DataComboFile[2022/23 Baseline]*$B$3)","v":0},{"$f":"SUMPRODUCT(((T_DataComboFile[Implementation programme]=$G$3)*(T_DataComboFile[Econ3]=$G184))*T_DataComboFile[2022/23 Revised baseline]*$B$3)","v":0},0,{"$f":"SUMPRODUCT(((T_DataComboFile[Implementation programme]=$G$3)*(T_DataComboFile[Econ3]=$G184))*T_DataComboFile[2023/24 Baseline]*$B$3)","v":0},{"$f":"SUMPRODUCT(((T_DataComboFile[Implementation programme]=$G$3)*(T_DataComboFile[Econ3]=$G184))*T_DataComboFile[2023/24 Revised baseline]*$B$3)","v":0},0]
[0,5,null,null,null,null,"Departmental agencies and accounts",{"$f":"SUMPRODUCT(((T_DataComboFile[Implementation programme]=$G$3)*(T_DataComboFile[Econ3]=$G185))*T_DataComboFile[2021/22 Baseline]*$B$3)","v":0},{"$f":"SUMPRODUCT(((T_DataComboFile[Implementation programme]=$G$3)*(T_DataComboFile[Econ3]=$G185))*T_DataComboFile[2021/22 Revised baseline]*$B$3)","v":0},0,{"$f":"SUMPRODUCT(((T_DataComboFile[Implementation programme]=$G$3)*(T_DataComboFile[Econ3]=$G185))*T_DataComboFile[2022/23 Baseline]*$B$3)","v":0},{"$f":"SUMPRODUCT(((T_DataComboFile[Implementation programme]=$G$3)*(T_DataComboFile[Econ3]=$G185))*T_DataComboFile[2022/23 Revised baseline]*$B$3)","v":0},0,{"$f":"SUMPRODUCT(((T_DataComboFile[Implementation programme]=$G$3)*(T_DataComboFile[Econ3]=$G185))*T_DataComboFile[2023/24 Baseline]*$B$3)","v":0},{"$f":"SUMPRODUCT(((T_DataComboFile[Implementation programme]=$G$3)*(T_DataComboFile[Econ3]=$G185))*T_DataComboFile[2023/24 Revised baseline]*$B$3)","v":0},0]
[0,50,null,null,null,null,"of which:"]
[0,52,null,null,null,null,null,null,null,{"$f":"I187-H187","v":0},null,null,{"$f":"L187-K187","v":0},null,null,{"$f":"O187-N187","v":0}]
[0,52,null,null,null,null,null,null,null,0,null,null,0,null,null,0]
[0,52,null,null,null,null,null,null,null,0,null,null,0,null,null,0]
[0,52,null,null,null,null,null,null,null,0,null,null,0,null,null,0]
[0,52,null,null,null,null,null,null,null,0,null,null,0,null,null,0]
[0,52,null,null,null,null,null,null,null,0,null,null,0,null,null,0]
[0,52,null,null,null,null,null,null,null,0,null,null,0,null,null,0]
[0,52,null,null,null,null,null,null,null,0,null,null,0,null,null,0]
[0,52,null,null,null,null,null,null,null,0,null,null,0,null,null,0]
[0,52,null,null,null,null,null,null,null,0,null,null,0,null,null,0]
[0,5,null,null,null,null,"Higher education institutions",{"$f":"SUMPRODUCT(((T_DataComboFile[Implementation programme]=$G$3)*(T_DataComboFile[Econ3]=$G197))*T_DataComboFile[2021/22 Baseline]*$B$3)","v":0},{"$f":"SUMPRODUCT(((T_DataComboFile[Implementation programme]=$G$3)*(T_DataComboFile[Econ3]=$G197))*T_DataComboFile[2021/22 Revised baseline]*$B$3)","v":0},0,{"$f":"SUMPRODUCT(((T_DataComboFile[Implementation programme]=$G$3)*(T_DataComboFile[Econ3]=$G197))*T_DataComboFile[2022/23 Baseline]*$B$3)","v":0},{"$f":"SUMPRODUCT(((T_DataComboFile[Implementation programme]=$G$3)*(T_DataComboFile[Econ3]=$G197))*T_DataComboFile[2022/23 Revised baseline]*$B$3)","v":0},0,{"$f":"SUMPRODUCT(((T_DataComboFile[Implementation programme]=$G$3)*(T_DataComboFile[Econ3]=$G197))*T_DataComboFile[2023/24 Baseline]*$B$3)","v":0},{"$f":"SUMPRODUCT(((T_DataComboFile[Implementation programme]=$G$3)*(T_DataComboFile[Econ3]=$G197))*T_DataComboFile[2023/24 Revised baseline]*$B$3)","v":0},0]
[0,5,null,null,null,null,"Foreign governments and international organisations",{"$f":"SUMPRODUCT(((T_DataComboFile[Implementation programme]=$G$3)*(T_DataComboFile[Econ3]=$G198))*T_DataComboFile[2021/22 Baseline]*$B$3)","v":0},{"$f":"SUMPRODUCT(((T_DataComboFile[Implementation programme]=$G$3)*(T_DataComboFile[Econ3]=$G198))*T_DataComboFile[2021/22 Revised baseline]*$B$3)","v":0},0,{"$f":"SUMPRODUCT(((T_DataComboFile[Implementation programme]=$G$3)*(T_DataComboFile[Econ3]=$G198))*T_DataComboFile[2022/23 Baseline]*$B$3)","v":0},{"$f":"SUMPRODUCT(((T_DataComboFile[Implementation programme]=$G$3)*(T_DataComboFile[Econ3]=$G198))*T_DataComboFile[2022/23 Revised baseline]*$B$3)","v":0},0,{"$f":"SUMPRODUCT(((T_DataComboFile[Implementation programme]=$G$3)*(T_DataComboFile[Econ3]=$G198))*T_DataComboFile[2023/24 Baseline]*$B$3)","v":0},{"$f":"SUMPRODUCT(((T_DataComboFile[Implementation programme]=$G$3)*(T_DataComboFile[Econ3]=$G198))*T_DataComboFile[2023/24 Revised baseline]*$B$3)","v":0},0]
[0,5,null,null,null,null,"Public corporations and private enterprises",{"$f":"SUMPRODUCT(((T_DataComboFile[Implementation programme]=$G$3)*(T_DataComboFile[Econ3]=$G199))*T_DataComboFile[2021/22 Baseline]*$B$3)","v":0},{"$f":"SUMPRODUCT(((T_DataComboFile[Implementation programme]=$G$3)*(T_DataComboFile[Econ3]=$G199))*T_DataComboFile[2021/22 Revised baseline]*$B$3)","v":0},0,{"$f":"SUMPRODUCT(((T_DataComboFile[Implementation programme]=$G$3)*(T_DataComboFile[Econ3]=$G199))*T_DataComboFile[2022/23 Baseline]*$B$3)","v":0},{"$f":"SUMPRODUCT(((T_DataComboFile[Implementation programme]=$G$3)*(T_DataComboFile[Econ3]=$G199))*T_DataComboFile[2022/23 Revised baseline]*$B$3)","v":0},0,{"$f":"SUMPRODUCT(((T_DataComboFile[Implementation programme]=$G$3)*(T_DataComboFile[Econ3]=$G199))*T_DataComboFile[2023/24 Baseline]*$B$3)","v":0},{"$f":"SUMPRODUCT(((T_DataComboFile[Implementation programme]=$G$3)*(T_DataComboFile[Econ3]=$G199))*T_DataComboFile[2023/24 Revised baseline]*$B$3)","v":0},0]
[0,50,null,null,null,null,"of which:"]
[0,53,null,null,null,null,null,null,null,{"$f":"I201-H201","v":0},null,null,{"$f":"L201-K201","v":0},null,null,{"$f":"O201-N201","v":0}]
[0,53,null,null,null,null,null,null,null,0,null,null,0,null,null,0]
[0,53,null,null,null,null,null,null,null,0,null,null,0,null,null,0]
[0,53,null,null,null,null,null,null,null,0,null,null,0,null,null,0]
[0,53,null,null,null,null,null,null,null,0,null,null,0,null,null,0]
[0,5,null,null,null,null,"Non-profit institutions",{"$f":"SUMPRODUCT(((T_DataComboFile[Implementation programme]=$G$3)*(T_DataComboFile[Econ3]=$G206))*T_DataComboFile[2021/22 Baseline]*$B$3)","v":0},{"$f":"SUMPRODUCT(((T_DataComboFile[Implementation programme]=$G$3)*(T_DataComboFile[Econ3]=$G206))*T_DataComboFile[2021/22 Revised baseline]*$B$3)","v":0},0,{"$f":"SUMPRODUCT(((T_DataComboFile[Implementation programme]=$G$3)*(T_DataComboFile[Econ3]=$G206))*T_DataComboFile[2022/23 Baseline]*$B$3)","v":0},{"$f":"SUMPRODUCT(((T_DataComboFile[Implementation programme]=$G$3)*(T_DataComboFile[Econ3]=$G206))*T_DataComboFile[2022/23 Revised baseline]*$B$3)","v":0},0,{"$f":"SUMPRODUCT(((T_DataComboFile[Implementation programme]=$G$3)*(T_DataComboFile[Econ3]=$G206))*T_DataComboFile[2023/24 Baseline]*$B$3)","v":0},{"$f":"SUMPRODUCT(((T_DataComboFile[Implementation programme]=$G$3)*(T_DataComboFile[Econ3]=$G206))*T_DataComboFile[2023/24 Revised baseline]*$B$3)","v":0},0]
[0,5,null,null,null,null,"Households",{"$f":"SUMPRODUCT(((T_DataComboFile[Implementation programme]=$G$3)*(T_DataComboFile[Econ3]=$G207))*T_DataComboFile[2021/22 Baseline]*$B$3)","v":0},{"$f":"SUMPRODUCT(((T_DataComboFile[Implementation programme]=$G$3)*(T_DataComboFile[Econ3]=$G207))*T_DataComboFile[2021/22 Revised baseline]*$B$3)","v":0},0,{"$f":"SUMPRODUCT(((T_DataComboFile[Implementation programme]=$G$3)*(T_DataComboFile[Econ3]=$G207))*T_DataComboFile[2022/23 Baseline]*$B$3)","v":0},{"$f":"SUMPRODUCT(((T_DataComboFile[Implementation programme]=$G$3)*(T_DataComboFile[Econ3]=$G207))*T_DataComboFile[2022/23 Revised baseline]*$B$3)","v":0},0,{"$f":"SUMPRODUCT(((T_DataComboFile[Implementation programme]=$G$3)*(T_DataComboFile[Econ3]=$G207))*T_DataComboFile[2023/24 Baseline]*$B$3)","v":0},{"$f":"SUMPRODUCT(((T_DataComboFile[Implementation programme]=$G$3)*(T_DataComboFile[Econ3]=$G207))*T_DataComboFile[2023/24 Revised baseline]*$B$3)","v":0},0]
[0,5,null,null,null,null,"Payments for capital assets",{"$f":"SUM(H209:H215)","v":0},0,0,0,0,0,0,{"$f":"SUM(O209:O215)","v":0},0]
[0,5,null,null,null,null,"Buildings and other fixed structures",{"$f":"SUMPRODUCT(((T_DataComboFile[Implementation programme]=$G$3)*(T_DataComboFile[Econ3]=$G209))*T_DataComboFile[2021/22 Baseline]*$B$3)","v":0},{"$f":"SUMPRODUCT(((T_DataComboFile[Implementation programme]=$G$3)*(T_DataComboFile[Econ3]=$G209))*T_DataComboFile[2021/22 Revised baseline]*$B$3)","v":0},0,{"$f":"SUMPRODUCT(((T_DataComboFile[Implementation programme]=$G$3)*(T_DataComboFile[Econ3]=$G209))*T_DataComboFile[2022/23 Baseline]*$B$3)","v":0},{"$f":"SUMPRODUCT(((T_DataComboFile[Implementation programme]=$G$3)*(T_DataComboFile[Econ3]=$G209))*T_DataComboFile[2022/23 Revised baseline]*$B$3)","v":0},0,{"$f":"SUMPRODUCT(((T_DataComboFile[Implementation programme]=$G$3)*(T_DataComboFile[Econ3]=$G209))*T_DataComboFile[2023/24 Baseline]*$B$3)","v":0},{"$f":"SUMPRODUCT(((T_DataComboFile[Implementation programme]=$G$3)*(T_DataComboFile[Econ3]=$G209))*T_DataComboFile[2023/24 Revised baseline]*$B$3)","v":0},0]
[0,5,null,null,null,null,"Machinery and equipment",{"$f":"SUMPRODUCT(((T_DataComboFile[Implementation programme]=$G$3)*(T_DataComboFile[Econ3]=$G210))*T_DataComboFile[2021/22 Baseline]*$B$3)","v":0},{"$f":"SUMPRODUCT(((T_DataComboFile[Implementation programme]=$G$3)*(T_DataComboFile[Econ3]=$G210))*T_DataComboFile[2021/22 Revised baseline]*$B$3)","v":0},0,{"$f":"SUMPRODUCT(((T_DataComboFile[Implementation programme]=$G$3)*(T_DataComboFile[Econ3]=$G210))*T_DataComboFile[2022/23 Baseline]*$B$3)","v":0},{"$f":"SUMPRODUCT(((T_DataComboFile[Implementation programme]=$G$3)*(T_DataComboFile[Econ3]=$G210))*T_DataComboFile[2022/23 Revised baseline]*$B$3)","v":0},0,{"$f":"SUMPRODUCT(((T_DataComboFile[Implementation programme]=$G$3)*(T_DataComboFile[Econ3]=$G210))*T_DataComboFile[2023/24 Baseline]*$B$3)","v":0},{"$f":"SUMPRODUCT(((T_DataComboFile[Implementation programme]=$G$3)*(T_DataComboFile[Econ3]=$G210))*T_DataComboFile[2023/24 Revised baseline]*$B$3)","v":0},0]
[0,5,null,null,null,null,"Heritage assets",{"$f":"SUMPRODUCT(((T_DataComboFile[Implementation programme]=$G$3)*(T_DataComboFile[Econ3]=$G211))*T_DataComboFile[2021/22 Baseline]*$B$3)","v":0},{"$f":"SUMPRODUCT(((T_DataComboFile[Implementation programme]=$G$3)*(T_DataComboFile[Econ3]=$G211))*T_DataComboFile[2021/22 Revised baseline]*$B$3)","v":0},0,{"$f":"SUMPRODUCT(((T_DataComboFile[Implementation programme]=$G$3)*(T_DataComboFile[Econ3]=$G211))*T_DataComboFile[2022/23 Baseline]*$B$3)","v":0},{"$f":"SUMPRODUCT(((T_DataComboFile[Implementation programme]=$G$3)*(T_DataComboFile[Econ3]=$G211))*T_DataComboFile[2022/23 Revised baseline]*$B$3)","v":0},0,{"$f":"SUMPRODUCT(((T_DataComboFile[Implementation programme]=$G$3)*(T_DataComboFile[Econ3]=$G211))*T_DataComboFile[2023/24 Baseline]*$B$3)","v":0},{"$f":"SUMPRODUCT(((T_DataComboFile[Implementation programme]=$G$3)*(T_DataComboFile[Econ3]=$G211))*T_DataComboFile[2023/24 Revised baseline]*$B$3)","v":0},0]
[0,5,null,null,null,null,"Specialised military assets",{"$f":"SUMPRODUCT(((T_DataComboFile[Implementation programme]=$G$3)*(T_DataComboFile[Econ3]=$G212))*T_DataComboFile[2021/22 Baseline]*$B$3)","v":0},{"$f":"SUMPRODUCT(((T_DataComboFile[Implementation programme]=$G$3)*(T_DataComboFile[Econ3]=$G212))*T_DataComboFile[2021/22 Revised baseline]*$B$3)","v":0},0,{"$f":"SUMPRODUCT(((T_DataComboFile[Implementation programme]=$G$3)*(T_DataComboFile[Econ3]=$G212))*T_DataComboFile[2022/23 Baseline]*$B$3)","v":0},{"$f":"SUMPRODUCT(((T_DataComboFile[Implementation programme]=$G$3)*(T_DataComboFile[Econ3]=$G212))*T_DataComboFile[2022/23 Revised baseline]*$B$3)","v":0},0,{"$f":"SUMPRODUCT(((T_DataComboFile[Implementation programme]=$G$3)*(T_DataComboFile[Econ3]=$G212))*T_DataComboFile[2023/24 Baseline]*$B$3)","v":0},{"$f":"SUMPRODUCT(((T_DataComboFile[Implementation programme]=$G$3)*(T_DataComboFile[Econ3]=$G212))*T_DataComboFile[2023/24 Revised baseline]*$B$3)","v":0},0]
[0,5,null,null,null,null,"Biological assets",{"$f":"SUMPRODUCT(((T_DataComboFile[Implementation programme]=$G$3)*(T_DataComboFile[Econ3]=$G213))*T_DataComboFile[2021/22 Baseline]*$B$3)","v":0},{"$f":"SUMPRODUCT(((T_DataComboFile[Implementation programme]=$G$3)*(T_DataComboFile[Econ3]=$G213))*T_DataComboFile[2021/22 Revised baseline]*$B$3)","v":0},0,{"$f":"SUMPRODUCT(((T_DataComboFile[Implementation programme]=$G$3)*(T_DataComboFile[Econ3]=$G213))*T_DataComboFile[2022/23 Baseline]*$B$3)","v":0},{"$f":"SUMPRODUCT(((T_DataComboFile[Implementation programme]=$G$3)*(T_DataComboFile[Econ3]=$G213))*T_DataComboFile[2022/23 Revised baseline]*$B$3)","v":0},0,{"$f":"SUMPRODUCT(((T_DataComboFile[Implementation programme]=$G$3)*(T_DataComboFile[Econ3]=$G213))*T_DataComboFile[2023/24 Baseline]*$B$3)","v":0},{"$f":"SUMPRODUCT(((T_DataComboFile[Implementation programme]=$G$3)*(T_DataComboFile[Econ3]=$G213))*T_DataComboFile[2023/24 Revised baseline]*$B$3)","v":0},0]
[0,5,null,null,null,null,"Land and sub-soil assets",{"$f":"SUMPRODUCT(((T_DataComboFile[Implementation programme]=$G$3)*(T_DataComboFile[Econ3]=$G214))*T_DataComboFile[2021/22 Baseline]*$B$3)","v":0},{"$f":"SUMPRODUCT(((T_DataComboFile[Implementation programme]=$G$3)*(T_DataComboFile[Econ3]=$G214))*T_DataComboFile[2021/22 Revised baseline]*$B$3)","v":0},0,{"$f":"SUMPRODUCT(((T_DataComboFile[Implementation programme]=$G$3)*(T_DataComboFile[Econ3]=$G214))*T_DataComboFile[2022/23 Baseline]*$B$3)","v":0},{"$f":"SUMPRODUCT(((T_DataComboFile[Implementation programme]=$G$3)*(T_DataComboFile[Econ3]=$G214))*T_DataComboFile[2022/23 Revised baseline]*$B$3)","v":0},0,{"$f":"SUMPRODUCT(((T_DataComboFile[Implementation programme]=$G$3)*(T_DataComboFile[Econ3]=$G214))*T_DataComboFile[2023/24 Baseline]*$B$3)","v":0},{"$f":"SUMPRODUCT(((T_DataComboFile[Implementation programme]=$G$3)*(T_DataComboFile[Econ3]=$G214))*T_DataComboFile[2023/24 Revised baseline]*$B$3)","v":0},0]
[0,5,null,null,null,null,"Software and other intangible assets",{"$f":"SUMPRODUCT(((T_DataComboFile[Implementation programme]=$G$3)*(T_DataComboFile[Econ3]=$G215))*T_DataComboFile[2021/22 Baseline]*$B$3)","v":0},{"$f":"SUMPRODUCT(((T_DataComboFile[Implementation programme]=$G$3)*(T_DataComboFile[Econ3]=$G215))*T_DataComboFile[2021/22 Revised baseline]*$B$3)","v":0},0,{"$f":"SUMPRODUCT(((T_DataComboFile[Implementation programme]=$G$3)*(T_DataComboFile[Econ3]=$G215))*T_DataComboFile[2022/23 Baseline]*$B$3)","v":0},{"$f":"SUMPRODUCT(((T_DataComboFile[Implementation programme]=$G$3)*(T_DataComboFile[Econ3]=$G215))*T_DataComboFile[2022/23 Revised baseline]*$B$3)","v":0},0,{"$f":"SUMPRODUCT(((T_DataComboFile[Implementation programme]=$G$3)*(T_DataComboFile[Econ3]=$G215))*T_DataComboFile[2023/24 Baseline]*$B$3)","v":0},{"$f":"SUMPRODUCT(((T_DataComboFile[Implementation programme]=$G$3)*(T_DataComboFile[Econ3]=$G215))*T_DataComboFile[2023/24 Revised baseline]*$B$3)","v":0},0]
[0,5,null,null,null,null,"Payments for financial assets",{"$f":"SUMPRODUCT(((T_DataComboFile[Implementation programme]=$G$3)*(T_DataComboFile[Econ3]=$G216))*T_DataComboFile[2021/22 Baseline]*$B$3)","v":0},{"$f":"SUMPRODUCT(((T_DataComboFile[Implementation programme]=$G$3)*(T_DataComboFile[Econ3]=$G216))*T_DataComboFile[2021/22 Revised baseline]*$B$3)","v":0},0,{"$f":"SUMPRODUCT(((T_DataComboFile[Implementation programme]=$G$3)*(T_DataComboFile[Econ3]=$G216))*T_DataComboFile[2022/23 Baseline]*$B$3)","v":0},{"$f":"SUMPRODUCT(((T_DataComboFile[Implementation programme]=$G$3)*(T_DataComboFile[Econ3]=$G216))*T_DataComboFile[2022/23 Revised baseline]*$B$3)","v":0},0,{"$f":"SUMPRODUCT(((T_DataComboFile[Implementation programme]=$G$3)*(T_DataComboFile[Econ3]=$G216))*T_DataComboFile[2023/24 Baseline]*$B$3)","v":0},{"$f":"SUMPRODUCT(((T_DataComboFile[Implementation programme]=$G$3)*(T_DataComboFile[Econ3]=$G216))*T_DataComboFile[2023/24 Revised baseline]*$B$3)","v":0},0]
[0,5,null,null,null,null,"Total",{"$f":"SUM(H173,H183,H208,H216)","v":0},0,0,0,0,0,0,{"$f":"SUM(O173,O183,O208,O216)","v":0},0]
[]
[null,null,null,null,null,null,null,{"$f":"L65-H217","v":0},{"$f":"O65-I217","v":0},null,{"$f":"P65-K217","v":0},{"$f":"S65-L217","v":0},null,{"$f":"T65-N217","v":0},{"$f":"W65-O217","v":0}]

{"sheet":"IP11","index":20,"n_rows":219,"n_cols":23,"rows_kept":219,"cut":false,"hidden":false,"merged":[[70,6,70,17],[73,6,87,17],[94,16,94,20],[94,21,94,23],[95,16,95,20],[95,21,95,23],[99,16,99,20],[99,21,99,23],[100,16,100,20],[100,21,100,23],[101,16,101,20],[101,21,101,23],[96,16,96,20],[96,21,96,23],[97,16,97,20],[97,21,97,23],[98,16,98,20],[98,21,98,23],[105,16,105,20],[105,21,105,23],[106,16,106,20],[106,21,106,23],[107,16,107,20],[107,21,107,23],[102,16,102,20],[102,21,102,23],[103,16,103,20],[103,21,103,23],[104,16,104,20],[104,21,104,23],[117,16,117,20],[118,16,118,20],[119,16,119,20],[120,16,120,20],[121,16,121,20],[122,16,122,20],[108,16,108,20],[108,21,108,23],[109,16,109,20],[109,21,109,23],[110,16,110,20],[110,21,110,23],[129,16,129,20],[130,16,130,20],[131,16,131,20],[132,16,132,20],[133,16,133,20],[141,16,141,20],[123,16,123,20],[124,16,124,20],[125,16,125,20],[126,16,126,20],[127,16,127,20],[128,16,128,20],[174,16,174,20],[175,16,175,20],[176,16,176,20],[177,16,177,20],[178,16,178,20],[179,16,179,20],[142,16,142,20],[143,16,162,20],[170,16,170,20],[171,16,171,20],[172,16,172,20],[173,16,173,20],[186,16,186,20],[187,16,187,20],[188,16,188,20],[189,16,189,20],[190,16,190,20],[191,16,191,20],[180,16,180,20],[181,16,181,20],[182,16,182,20],[183,16,183,20],[184,16,184,20],[185,16,185,20],[198,16,198,20],[199,16,199,20],[200,16,200,20],[201,16,201,20],[202,16,202,20],[203,16,203,20],[192,16,192,20],[193,16,193,20],[194,16,194,20],[195,16,195,20],[196,16,196,20],[197,16,197,20],[210,16,210,20],[211,16,211,20],[212,16,212,20],[213,16,213,20],[214,16,214,20],[215,16,215,20],[204,16,204,20],[205,16,205,20],[206,16,206,20],[207,16,207,20],[208,16,208,20],[209,16,209,20]]}
[]
[null,null,null,null,null,null,"Implementation programme:"]
[null,{"$f":"IF(G3=\"\",0,1)","v":0},null,null,null,11,null,"… select from dropdown list"]
[null,null,null,null,null,null,null,null,null,null,null,null,"Growth"]
[null,null,null,null,null,null,"Quick view","2020/21","2021/22","2022/23","2023/24","Trend","2021/22","2022/23","2023/24","Ave Ann",null,"2020/21","2021/22","2022/23","2023/24"]
[null,null,null,null,null,null,"Compensation of employees",{"$f":"SUMPRODUCT(($G$32:$G$65=$G6)*($K$32:$K$65))","v":0},{"$f":"SUMPRODUCT(($G$32:$G$65=$G6)*($O$32:$O$65))","v":0},{"$f":"SUMPRODUCT(($G$32:$G$65=$G6)*($S$32:$S$65))","v":0},{"$f":"SUMPRODUCT(($G$32:$G$65=$G6)*($W$32:$W$65))","v":0},null,{"$f":"IFERROR(I6/H6-1,0)","v":0},0,0,{"$f":"IFERROR(((K6/H6)^(1/3)-1),0)","v":0}]
[null,null,null,null,null,null,"Goods and services",{"$f":"SUMPRODUCT(($G$32:$G$65=$G7)*($K$32:$K$65))","v":0},{"$f":"SUMPRODUCT(($G$32:$G$65=$G7)*($O$32:$O$65))","v":0},{"$f":"SUMPRODUCT(($G$32:$G$65=$G7)*($S$32:$S$65))","v":0},{"$f":"SUMPRODUCT(($G$32:$G$65=$G7)*($W$32:$W$65))","v":0},null,0,0,0,0]
[null,null,null,null,null,null,"Transfers and subsidies",{"$f":"SUMPRODUCT(($G$32:$G$65=$G8)*($K$32:$K$65))","v":0},{"$f":"SUMPRODUCT(($G$32:$G$65=$G8)*($O$32:$O$65))","v":0},{"$f":"SUMPRODUCT(($G$32:$G$65=$G8)*($S$32:$S$65))","v":0},{"$f":"SUMPRODUCT(($G$32:$G$65=$G8)*($W$32:$W$65))","v":0},null,0,0,0,0]
[null,null,null,null,null,null,"Payments for capital assets",{"$f":"SUMPRODUCT(($G$32:$G$65=$G9)*($K$32:$K$65))","v":0},{"$f":"SUMPRODUCT(($G$32:$G$65=$G9)*($O$32:$O$65))","v":0},{"$f":"SUMPRODUCT(($G$32:$G$65=$G9)*($S$32:$S$65))","v":0},{"$f":"SUMPRODUCT(($G$32:$G$65=$G9)*($W$32:$W$65))","v":0},null,0,0,0,0]
[null,null,null,null,null,null,"Total",{"$f":"SUMPRODUCT(($G$32:$G$65=$G10)*($K$32:$K$65))","v":0},{"$f":"SUMPRODUCT(($G$32:$G$65=$G10)*($O$32:$O$65))","v":0},{"$f":"SUMPRODUCT(($G$32:$G$65=$G10)*($S$32:$S$65))","v":0},{"$f":"SUMPRODUCT(($G$32:$G$65=$G10)*($W$32:$W$65))","v":0},null,0,0,0,0]
[null,null,null,null,null,null,"Composition of spending (% of Total)"]
[null,null,null,null,null,null,"Compensation of employees",{"$f":"IFERROR(H6/H$10,\"\")","v":""},"","","",null,null,null,null,null,null,{"$f":"IF(H12>0.0595,H12,\"\")","v":""},"","",""]
[null,null,null,null,null,null,"Goods and services","","","","",null,null,null,null,null,null,"","","",""]
[null,null,null,null,null,null,"Transfers and subsidies","","","","",null,null,null,null,null,null,"","","",""]
[null,null,null,null,null,null,"Payments for capital assets","","","","",null,null,null,null,null,null,"","","",""]
[]
[null,null,null,null,null,null,"Division of Revenue","2020/21","2021/22","2022/23","2023/24","Trend","2021/22","2022/23","2023/24","Ave Ann"]
[{"$f":"$G$3","v":0},"NAT",null,null,null,null,"National",{"$f":"SUMPRODUCT(((T_DataComboFile[Implementation programme]=$G$3)*(T_DataComboFile[DOR]=$B18))*T_DataComboFile[2020/21 Revised])","v":2331086},{"$f":"SUMPRODUCT(((T_DataComboFile[Implementation programme]=$G$3)*(T_DataComboFile[DOR]=$B18))*T_DataComboFile[2021/22 Revised baseline])","v":2583809},{"$f":"SUMPRODUCT(((T_DataComboFile[Implementation programme]=$G$3)*(T_DataComboFile[DOR]=$B18))*T_DataComboFile[2022/23 Revised baseline])","v":2617960},{"$f":"SUMPRODUCT(((T_DataComboFile[Implementation programme]=$G$3)*(T_DataComboFile[DOR]=$B18))*T_DataComboFile[2023/24 Revised baseline])","v":2733345},null,{"$f":"IFERROR(I18/H18-1,0)","v":0.10841427557799244},{"$f":"IFERROR(J18/I18-1,0)","v":1.3217308245307535E-2},{"$f":"IFERROR(K18/J18-1,0)","v":4.4074393802808309E-2},{"$f":"IFERROR(((K18/H18)^(1/3)-1),0)","v":5.449708876349435E-2}]
[0,null,null,null,null,null,"Provincial",{"$f":"SUM(H20:H21)","v":0},0,0,0,null,0,0,0,0]
[0,"PES",null,null,null,null,"Provincial equitable share",{"$f":"SUMPRODUCT(((T_DataComboFile[Implementation programme]=$G$3)*(T_DataComboFile[DOR]=$B20))*T_DataComboFile[2020/21 Revised])","v":0},{"$f":"SUMPRODUCT(((T_DataComboFile[Implementation programme]=$G$3)*(T_DataComboFile[DOR]=$B20))*T_DataComboFile[2021/22 Revised baseline])","v":0},{"$f":"SUMPRODUCT(((T_DataComboFile[Implementation programme]=$G$3)*(T_DataComboFile[DOR]=$B20))*T_DataComboFile[2022/23 Revised baseline])","v":0},{"$f":"SUMPRODUCT(((T_DataComboFile[Implementation programme]=$G$3)*(T_DataComboFile[DOR]=$B20))*T_DataComboFile[2023/24 Revised baseline])","v":0},null,{"$f":"IFERROR(I20/H20-1,0)","v":0},0,0,{"$f":"IFERROR(((K20/H20)^(1/3)-1),0)","v":0}]
[0,"PCG",null,null,null,null,"Provincial conditional grants",{"$f":"SUMPRODUCT(((T_DataComboFile[Implementation programme]=$G$3)*(T_DataComboFile[DOR]=$B21))*T_DataComboFile[2020/21 Revised])","v":0},{"$f":"SUMPRODUCT(((T_DataComboFile[Implementation programme]=$G$3)*(T_DataComboFile[DOR]=$B21))*T_DataComboFile[2021/22 Revised baseline])","v":0},{"$f":"SUMPRODUCT(((T_DataComboFile[Implementation programme]=$G$3)*(T_DataComboFile[DOR]=$B21))*T_DataComboFile[2022/23 Revised baseline])","v":0},{"$f":"SUMPRODUCT(((T_DataComboFile[Implementation programme]=$G$3)*(T_DataComboFile[DOR]=$B21))*T_DataComboFile[2023/24 Revised baseline])","v":0},null,0,0,0,0]
[0,null,null,null,null,null,"Local government",{"$f":"SUM(H23:H25)","v":0},0,0,0,null,{"$f":"IFERROR(I22/H22-1,0)","v":0},{"$f":"IFERROR(J22/I22-1,0)","v":0},{"$f":"IFERROR(K22/J22-1,0)","v":0},{"$f":"IFERROR(((K22/H22)^(1/3)-1),0)","v":0}]
[0,"LES",null,null,null,null,"Local equitable share",{"$f":"SUMPRODUCT(((T_DataComboFile[Implementation programme]=$G$3)*(T_DataComboFile[DOR]=$B23))*T_DataComboFile[2020/21 Revised])","v":0},{"$f":"SUMPRODUCT(((T_DataComboFile[Implementation programme]=$G$3)*(T_DataComboFile[DOR]=$B23))*T_DataComboFile[2021/22 Revised baseline])","v":0},{"$f":"SUMPRODUCT(((T_DataComboFile[Implementation programme]=$G$3)*(T_DataComboFile[DOR]=$B23))*T_DataComboFile[2022/23 Revised baseline])","v":0},{"$f":"SUMPRODUCT(((T_DataComboFile[Implementation programme]=$G$3)*(T_DataComboFile[DOR]=$B23))*T_DataComboFile[2023/24 Revised baseline])","v":0},null,{"$f":"IFERROR(I23/H23-1,0)","v":0},0,0,{"$f":"IFERROR(((K23/H23)^(1/3)-1),0)","v":0}]
[0,"LCG",null,null,null,null,"Local conditional grants",{"$f":"SUMPRODUCT(((T_DataComboFile[Implementation programme]=$G$3)*(T_DataComboFile[DOR]=$B24))*T_DataComboFile[2020/21 Revised])","v":0},{"$f":"SUMPRODUCT(((T_DataComboFile[Implementation programme]=$G$3)*(T_DataComboFile[DOR]=$B24))*T_DataComboFile[2021/22 Revised baseline])","v":0},{"$f":"SUMPRODUCT(((T_DataComboFile[Implementation programme]=$G$3)*(T_DataComboFile[DOR]=$B24))*T_DataComboFile[2022/23 Revised baseline])","v":0},{"$f":"SUMPRODUCT(((T_DataComboFile[Implementation programme]=$G$3)*(T_DataComboFile[DOR]=$B24))*T_DataComboFile[2023/24 Revised baseline])","v":0},null,0,0,0,0]
[0,"GFL",null,null,null,null,"General fuel levy ",{"$f":"SUMPRODUCT(((T_DataComboFile[Implementation programme]=$G$3)*(T_DataComboFile[DOR]=$B25))*T_DataComboFile[2020/21 Revised])","v":0},{"$f":"SUMPRODUCT(((T_DataComboFile[Implementation programme]=$G$3)*(T_DataComboFile[DOR]=$B25))*T_DataComboFile[2021/22 Revised baseline])","v":0},{"$f":"SUMPRODUCT(((T_DataComboFile[Implementation programme]=$G$3)*(T_DataComboFile[DOR]=$B25))*T_DataComboFile[2022/23 Revised baseline])","v":0},{"$f":"SUMPRODUCT(((T_DataComboFile[Implementation programme]=$G$3)*(T_DataComboFile[DOR]=$B25))*T_DataComboFile[2023/24 Revised baseline])","v":0},null,0,0,0,0]
[]
[]
[null,null,null,null,null,null,{"$f":"G3","v":0}]
[{"$f":"$G$3","v":0},0,null,null,null,null,null,"2017/18","2018/19","2019/20","2020/21","2021/22",null,null,null,"2022/23",null,null,null,"2023/24"]
[{"$f":"$G$3","v":0},0,null,null,null,null,"Rand thousand","Audited outcome","Audited outcome","Pre-audited outcome","Budget","Baseline","Decrease","Increase","Revised baseline","Baseline","Decrease","Increase","Revised baseline","Baseline","Decrease","Increase","Revised baseline"]
[0,0,null,null,null,null,"Economic classification"]
[0,0,null,null,null,null,"Current payments",{"$f":"SUM(H33:H35)","v":0},0,0,0,0,0,0,0,0,0,0,0,0,0,0,0]
[0,0,null,null,null,null,"Compensation of employees",{"$f":"SUMPRODUCT(((T_DataComboFile[Implementation programme]=$G$3)*(T_DataComboFile[Econ3]=$G33))*T_DataComboFile[2017/18]*$B$3)","v":0},{"$f":"SUMPRODUCT(((T_DataComboFile[Implementation programme]=$G$3)*(T_DataComboFile[Econ3]=$G33))*T_DataComboFile[2018/19]*$B$3)","v":0},{"$f":"SUMPRODUCT(((T_DataComboFile[Implementation programme]=$G$3)*(T_DataComboFile[Econ3]=$G33))*T_DataComboFile[2019/20 Revised estimate]*$B$3)","v":0},{"$f":"SUMPRODUCT(((T_DataComboFile[Implementation programme]=$G$3)*(T_DataComboFile[Econ3]=$G33))*T_DataComboFile[2020/21 Revised]*$B$3)","v":0},{"$f":"SUMPRODUCT(((T_DataComboFile[Implementation programme]=$G$3)*(T_DataComboFile[Econ3]=$G33))*T_DataComboFile[2021/22 Baseline]*$B$3)","v":0},{"$f":"SUMPRODUCT(((T_DataComboFile[Implementation programme]=$G$3)*(T_DataComboFile[Econ3]=$G33))*T_DataComboFile[2021/22 Reduction]*$B$3)","v":0},{"$f":"SUMPRODUCT(((T_DataComboFile[Implementation programme]=$G$3)*(T_DataComboFile[Econ3]=$G33))*T_DataComboFile[2021/22 Increase]*$B$3)","v":0},{"$f":"L33+M33+N33","v":0},{"$f":"SUMPRODUCT(((T_DataComboFile[Implementation programme]=$G$3)*(T_DataComboFile[Econ3]=$G33))*T_DataComboFile[2022/23 Baseline]*$B$3)","v":0},{"$f":"SUMPRODUCT(((T_DataComboFile[Implementation programme]=$G$3)*(T_DataComboFile[Econ3]=$G33))*T_DataComboFile[2022/23 Reduction]*$B$3)","v":0},{"$f":"SUMPRODUCT(((T_DataComboFile[Implementation programme]=$G$3)*(T_DataComboFile[Econ3]=$G33))*T_DataComboFile[2022/23 Increase]*$B$3)","v":0},{"$f":"P33+Q33+R33","v":0},{"$f":"SUMPRODUCT(((T_DataComboFile[Implementation programme]=$G$3)*(T_DataComboFile[Econ3]=$G33))*T_DataComboFile[2023/24 Baseline]*$B$3)","v":0},{"$f":"SUMPRODUCT(((T_DataComboFile[Implementation programme]=$G$3)*(T_DataComboFile[Econ3]=$G33))*T_DataComboFile[2023/24 Reduction]*$B$3)","v":0},{"$f":"SUMPRODUCT(((T_DataComboFile[Implementation programme]=$G$3)*(T_DataComboFile[Econ3]=$G33))*T_DataComboFile[2023/24 Increase]*$B$3)","v":0},{"$f":"T33+U33+V33","v":0}]
[0,0,null,null,null,null,"Goods and services",{"$f":"SUMPRODUCT(((T_DataComboFile[Implementation programme]=$G$3)*(T_DataComboFile[Econ3]=$G34))*T_DataComboFile[2017/18]*$B$3)","v":0},{"$f":"SUMPRODUCT(((T_DataComboFile[Implementation programme]=$G$3)*(T_DataComboFile[Econ3]=$G34))*T_DataComboFile[2018/19]*$B$3)","v":0},{"$f":"SUMPRODUCT(((T_DataComboFile[Implementation programme]=$G$3)*(T_DataComboFile[Econ3]=$G34))*T_DataComboFile[2019/20 Revised estimate]*$B$3)","v":0},{"$f":"SUMPRODUCT(((T_DataComboFile[Implementation programme]=$G$3)*(T_DataComboFile[Econ3]=$G34))*T_DataComboFile[2020/21 Revised]*$B$3)","v":0},{"$f":"SUMPRODUCT(((T_DataComboFile[Implementation programme]=$G$3)*(T_DataComboFile[Econ3]=$G34))*T_DataComboFile[2021/22 Baseline]*$B$3)","v":0},{"$f":"SUMPRODUCT(((T_DataComboFile[Implementation programme]=$G$3)*(T_DataComboFile[Econ3]=$G34))*T_DataComboFile[2021/22 Reduction]*$B$3)","v":0},{"$f":"SUMPRODUCT(((T_DataComboFile[Implementation programme]=$G$3)*(T_DataComboFile[Econ3]=$G34))*T_DataComboFile[2021/22 Increase]*$B$3)","v":0},0,{"$f":"SUMPRODUCT(((T_DataComboFile[Implementation programme]=$G$3)*(T_DataComboFile[Econ3]=$G34))*T_DataComboFile[2022/23 Baseline]*$B$3)","v":0},{"$f":"SUMPRODUCT(((T_DataComboFile[Implementation programme]=$G$3)*(T_DataComboFile[Econ3]=$G34))*T_DataComboFile[2022/23 Reduction]*$B$3)","v":0},{"$f":"SUMPRODUCT(((T_DataComboFile[Implementation programme]=$G$3)*(T_DataComboFile[Econ3]=$G34))*T_DataComboFile[2022/23 Increase]*$B$3)","v":0},0,{"$f":"SUMPRODUCT(((T_DataComboFile[Implementation programme]=$G$3)*(T_DataComboFile[Econ3]=$G34))*T_DataComboFile[2023/24 Baseline]*$B$3)","v":0},{"$f":"SUMPRODUCT(((T_DataComboFile[Implementation programme]=$G$3)*(T_DataComboFile[Econ3]=$G34))*T_DataComboFile[2023/24 Reduction]*$B$3)","v":0},{"$f":"SUMPRODUCT(((T_DataComboFile[Implementation programme]=$G$3)*(T_DataComboFile[Econ3]=$G34))*T_DataComboFile[2023/24 Increase]*$B$3)","v":0},0]
[0,0,null,null,null,null,"Interest and rent on land",{"$f":"SUMPRODUCT(((T_DataComboFile[Implementation programme]=$G$3)*(T_DataComboFile[Econ3]=$G35))*T_DataComboFile[2017/18]*$B$3)","v":0},{"$f":"SUMPRODUCT(((T_DataComboFile[Implementation programme]=$G$3)*(T_DataComboFile[Econ3]=$G35))*T_DataComboFile[2018/19]*$B$3)","v":0},{"$f":"SUMPRODUCT(((T_DataComboFile[Implementation programme]=$G$3)*(T_DataComboFile[Econ3]=$G35))*T_DataComboFile[2019/20 Revised estimate]*$B$3)","v":0},{"$f":"SUMPRODUCT(((T_DataComboFile[Implementation programme]=$G$3)*(T_DataComboFile[Econ3]=$G35))*T_DataComboFile[2020/21 Revised]*$B$3)","v":0},{"$f":"SUMPRODUCT(((T_DataComboFile[Implementation programme]=$G$3)*(T_DataComboFile[Econ3]=$G35))*T_DataComboFile[2021/22 Baseline]*$B$3)","v":0},{"$f":"SUMPRODUCT(((T_DataComboFile[Implementation programme]=$G$3)*(T_DataComboFile[Econ3]=$G35))*T_DataComboFile[2021/22 Reduction]*$B$3)","v":0},{"$f":"SUMPRODUCT(((T_DataComboFile[Implementation programme]=$G$3)*(T_DataComboFile[Econ3]=$G35))*T_DataComboFile[2021/22 Increase]*$B$3)","v":0},0,{"$f":"SUMPRODUCT(((T_DataComboFile[Implementation programme]=$G$3)*(T_DataComboFile[Econ3]=$G35))*T_DataComboFile[2022/23 Baseline]*$B$3)","v":0},{"$f":"SUMPRODUCT(((T_DataComboFile[Implementation programme]=$G$3)*(T_DataComboFile[Econ3]=$G35))*T_DataComboFile[2022/23 Reduction]*$B$3)","v":0},{"$f":"SUMPRODUCT(((T_DataComboFile[Implementation programme]=$G$3)*(T_DataComboFile[Econ3]=$G35))*T_DataComboFile[2022/23 Increase]*$B$3)","v":0},0,{"$f":"SUMPRODUCT(((T_DataComboFile[Implementation programme]=$G$3)*(T_DataComboFile[Econ3]=$G35))*T_DataComboFile[2023/24 Baseline]*$B$3)","v":0},{"$f":"SUMPRODUCT(((T_DataComboFile[Implementation programme]=$G$3)*(T_DataComboFile[Econ3]=$G35))*T_DataComboFile[2023/24 Reduction]*$B$3)","v":0},{"$f":"SUMPRODUCT(((T_DataComboFile[Implementation programme]=$G$3)*(T_DataComboFile[Econ3]=$G35))*T_DataComboFile[2023/24 Increase]*$B$3)","v":0},0]
[0,0,null,null,null,null,"Transfers and subsidies",{"$f":"SUM(H37,H40,H43:H45,H48:H49)","v":0},0,0,0,0,0,0,0,0,0,0,0,0,0,0,0]
[0,0,null,null,null,null,"Provinces and municipalities",{"$f":"SUM(H38:H39)","v":0},0,0,0,0,0,0,0,0,0,0,0,0,0,0,0]
[0,0,null,null,null,null,"Provinces",{"$f":"SUMPRODUCT(((T_DataComboFile[Implementation programme]=$G$3)*(T_DataComboFile[Econ4]=$G38))*T_DataComboFile[2017/18]*$B$3)","v":0},{"$f":"SUMPRODUCT(((T_DataComboFile[Implementation programme]=$G$3)*(T_DataComboFile[Econ4]=$G38))*T_DataComboFile[2018/19]*$B$3)","v":0},{"$f":"SUMPRODUCT(((T_DataComboFile[Implementation programme]=$G$3)*(T_DataComboFile[Econ4]=$G38))*T_DataComboFile[2019/20 Revised estimate]*$B$3)","v":0},{"$f":"SUMPRODUCT(((T_DataComboFile[Implementation programme]=$G$3)*(T_DataComboFile[Econ4]=$G38))*T_DataComboFile[2020/21 Revised]*$B$3)","v":0},{"$f":"SUMPRODUCT(((T_DataComboFile[Implementation programme]=$G$3)*(T_DataComboFile[Econ4]=$G38))*T_DataComboFile[2021/22 Baseline]*$B$3)","v":0},{"$f":"SUMPRODUCT(((T_DataComboFile[Implementation programme]=$G$3)*(T_DataComboFile[Econ4]=$G38))*T_DataComboFile[2021/22 Reduction]*$B$3)","v":0},{"$f":"SUMPRODUCT(((T_DataComboFile[Implementation programme]=$G$3)*(T_DataComboFile[Econ4]=$G38))*T_DataComboFile[2021/22 Increase]*$B$3)","v":0},{"$f":"L38+M38+N38","v":0},{"$f":"SUMPRODUCT(((T_DataComboFile[Implementation programme]=$G$3)*(T_DataComboFile[Econ4]=$G38))*T_DataComboFile[2022/23 Baseline]*$B$3)","v":0},{"$f":"SUMPRODUCT(((T_DataComboFile[Implementation programme]=$G$3)*(T_DataComboFile[Econ4]=$G38))*T_DataComboFile[2022/23 Reduction]*$B$3)","v":0},{"$f":"SUMPRODUCT(((T_DataComboFile[Implementation programme]=$G$3)*(T_DataComboFile[Econ4]=$G38))*T_DataComboFile[2022/23 Increase]*$B$3)","v":0},{"$f":"P38+Q38+R38","v":0},{"$f":"SUMPRODUCT(((T_DataComboFile[Implementation programme]=$G$3)*(T_DataComboFile[Econ4]=$G38))*T_DataComboFile[2023/24 Baseline]*$B$3)","v":0},{"$f":"SUMPRODUCT(((T_DataComboFile[Implementation programme]=$G$3)*(T_DataComboFile[Econ4]=$G38))*T_DataComboFile[2023/24 Reduction]*$B$3)","v":0},{"$f":"SUMPRODUCT(((T_DataComboFile[Implementation programme]=$G$3)*(T_DataComboFile[Econ4]=$G38))*T_DataComboFile[2023/24 Increase]*$B$3)","v":0},{"$f":"T38+U38+V38","v":0}]
[0,0,null,null,null,null,"Municipalities",{"$f":"SUMPRODUCT(((T_DataComboFile[Implementation programme]=$G$3)*(T_DataComboFile[Econ4]=$G39))*T_DataComboFile[2017/18]*$B$3)","v":0},{"$f":"SUMPRODUCT(((T_DataComboFile[Implementation programme]=$G$3)*(T_DataComboFile[Econ4]=$G39))*T_DataComboFile[2018/19]*$B$3)","v":0},{"$f":"SUMPRODUCT(((T_DataComboFile[Implementation programme]=$G$3)*(T_DataComboFile[Econ4]=$G39))*T_DataComboFile[2019/20 Revised estimate]*$B$3)","v":0},{"$f":"SUMPRODUCT(((T_DataComboFile[Implementation programme]=$G$3)*(T_DataComboFile[Econ4]=$G39))*T_DataComboFile[2020/21 Revised]*$B$3)","v":0},{"$f":"SUMPRODUCT(((T_DataComboFile[Implementation programme]=$G$3)*(T_DataComboFile[Econ4]=$G39))*T_DataComboFile[2021/22 Baseline]*$B$3)","v":0},{"$f":"SUMPRODUCT(((T_DataComboFile[Implementation programme]=$G$3)*(T_DataComboFile[Econ4]=$G39))*T_DataComboFile[2021/22 Reduction]*$B$3)","v":0},{"$f":"SUMPRODUCT(((T_DataComboFile[Implementation programme]=$G$3)*(T_DataComboFile[Econ4]=$G39))*T_DataComboFile[2021/22 Increase]*$B$3)","v":0},0,{"$f":"SUMPRODUCT(((T_DataComboFile[Implementation programme]=$G$3)*(T_DataComboFile[Econ4]=$G39))*T_DataComboFile[2022/23 Baseline]*$B$3)","v":0},{"$f":"SUMPRODUCT(((T_DataComboFile[Implementation programme]=$G$3)*(T_DataComboFile[Econ4]=$G39))*T_DataComboFile[2022/23 Reduction]*$B$3)","v":0},{"$f":"SUMPRODUCT(((T_DataComboFile[Implementation programme]=$G$3)*(T_DataComboFile[Econ4]=$G39))*T_DataComboFile[2022/23 Increase]*$B$3)","v":0},0,{"$f":"SUMPRODUCT(((T_DataComboFile[Implementation programme]=$G$3)*(T_DataComboFile[Econ4]=$G39))*T_DataComboFile[2023/24 Baseline]*$B$3)","v":0},{"$f":"SUMPRODUCT(((T_DataComboFile[Implementation programme]=$G$3)*(T_DataComboFile[Econ4]=$G39))*T_DataComboFile[2023/24 Reduction]*$B$3)","v":0},{"$f":"SUMPRODUCT(((T_DataComboFile[Implementation programme]=$G$3)*(T_DataComboFile[Econ4]=$G39))*T_DataComboFile[2023/24 Increase]*$B$3)","v":0},0]
[0,0,null,null,null,null,"Departmental agencies and accounts",{"$f":"SUM(H41:H42)","v":0},0,0,0,0,0,0,0,0,0,0,0,0,0,0,0]
[0,0,null,null,null,null,"Social security funds",{"$f":"SUMPRODUCT(((T_DataComboFile[Implementation programme]=$G$3)*(T_DataComboFile[Econ4]=$G41))*T_DataComboFile[2017/18]*$B$3)","v":0},{"$f":"SUMPRODUCT(((T_DataComboFile[Implementation programme]=$G$3)*(T_DataComboFile[Econ4]=$G41))*T_DataComboFile[2018/19]*$B$3)","v":0},{"$f":"SUMPRODUCT(((T_DataComboFile[Implementation programme]=$G$3)*(T_DataComboFile[Econ4]=$G41))*T_DataComboFile[2019/20 Revised estimate]*$B$3)","v":0},{"$f":"SUMPRODUCT(((T_DataComboFile[Implementation programme]=$G$3)*(T_DataComboFile[Econ4]=$G41))*T_DataComboFile[2020/21 Revised]*$B$3)","v":0},{"$f":"SUMPRODUCT(((T_DataComboFile[Implementation programme]=$G$3)*(T_DataComboFile[Econ4]=$G41))*T_DataComboFile[2021/22 Baseline]*$B$3)","v":0},{"$f":"SUMPRODUCT(((T_DataComboFile[Implementation programme]=$G$3)*(T_DataComboFile[Econ4]=$G41))*T_DataComboFile[2021/22 Reduction]*$B$3)","v":0},{"$f":"SUMPRODUCT(((T_DataComboFile[Implementation programme]=$G$3)*(T_DataComboFile[Econ4]=$G41))*T_DataComboFile[2021/22 Increase]*$B$3)","v":0},{"$f":"L41+M41+N41","v":0},{"$f":"SUMPRODUCT(((T_DataComboFile[Implementation programme]=$G$3)*(T_DataComboFile[Econ4]=$G41))*T_DataComboFile[2022/23 Baseline]*$B$3)","v":0},{"$f":"SUMPRODUCT(((T_DataComboFile[Implementation programme]=$G$3)*(T_DataComboFile[Econ4]=$G41))*T_DataComboFile[2022/23 Reduction]*$B$3)","v":0},{"$f":"SUMPRODUCT(((T_DataComboFile[Implementation programme]=$G$3)*(T_DataComboFile[Econ4]=$G41))*T_DataComboFile[2022/23 Increase]*$B$3)","v":0},{"$f":"P41+Q41+R41","v":0},{"$f":"SUMPRODUCT(((T_DataComboFile[Implementation programme]=$G$3)*(T_DataComboFile[Econ4]=$G41))*T_DataComboFile[2023/24 Baseline]*$B$3)","v":0},{"$f":"SUMPRODUCT(((T_DataComboFile[Implementation programme]=$G$3)*(T_DataComboFile[Econ4]=$G41))*T_DataComboFile[2023/24 Reduction]*$B$3)","v":0},{"$f":"SUMPRODUCT(((T_DataComboFile[Implementation programme]=$G$3)*(T_DataComboFile[Econ4]=$G41))*T_DataComboFile[2023/24 Increase]*$B$3)","v":0},{"$f":"T41+U41+V41","v":0}]
[0,0,null,null,null,null,"Departmental agencies (non-business entities)",{"$f":"SUMPRODUCT(((T_DataComboFile[Implementation programme]=$G$3)*(T_DataComboFile[Econ4]=$G42))*T_DataComboFile[2017/18]*$B$3)","v":0},{"$f":"SUMPRODUCT(((T_DataComboFile[Implementation programme]=$G$3)*(T_DataComboFile[Econ4]=$G42))*T_DataComboFile[2018/19]*$B$3)","v":0},{"$f":"SUMPRODUCT(((T_DataComboFile[Implementation programme]=$G$3)*(T_DataComboFile[Econ4]=$G42))*T_DataComboFile[2019/20 Revised estimate]*$B$3)","v":0},{"$f":"SUMPRODUCT(((T_DataComboFile[Implementation programme]=$G$3)*(T_DataComboFile[Econ4]=$G42))*T_DataComboFile[2020/21 Revised]*$B$3)","v":0},{"$f":"SUMPRODUCT(((T_DataComboFile[Implementation programme]=$G$3)*(T_DataComboFile[Econ4]=$G42))*T_DataComboFile[2021/22 Baseline]*$B$3)","v":0},{"$f":"SUMPRODUCT(((T_DataComboFile[Implementation programme]=$G$3)*(T_DataComboFile[Econ4]=$G42))*T_DataComboFile[2021/22 Reduction]*$B$3)","v":0},{"$f":"SUMPRODUCT(((T_DataComboFile[Implementation programme]=$G$3)*(T_DataComboFile[Econ4]=$G42))*T_DataComboFile[2021/22 Increase]*$B$3)","v":0},0,{"$f":"SUMPRODUCT(((T_DataComboFile[Implementation programme]=$G$3)*(T_DataComboFile[Econ4]=$G42))*T_DataComboFile[2022/23 Baseline]*$B$3)","v":0},{"$f":"SUMPRODUCT(((T_DataComboFile[Implementation programme]=$G$3)*(T_DataComboFile[Econ4]=$G42))*T_DataComboFile[2022/23 Reduction]*$B$3)","v":0},{"$f":"SUMPRODUCT(((T_DataComboFile[Implementation programme]=$G$3)*(T_DataComboFile[Econ4]=$G42))*T_DataComboFile[2022/23 Increase]*$B$3)","v":0},0,{"$f":"SUMPRODUCT(((T_DataComboFile[Implementation programme]=$G$3)*(T_DataComboFile[Econ4]=$G42))*T_DataComboFile[2023/24 Baseline]*$B$3)","v":0},{"$f":"SUMPRODUCT(((T_DataComboFile[Implementation programme]=$G$3)*(T_DataComboFile[Econ4]=$G42))*T_DataComboFile[2023/24 Reduction]*$B$3)","v":0},{"$f":"SUMPRODUCT(((T_DataComboFile[Implementation programme]=$G$3)*(T_DataComboFile[Econ4]=$G42))*T_DataComboFile[2023/24 Increase]*$B$3)","v":0},0]
[0,0,null,null,null,null,"Higher education institutions",{"$f":"SUMPRODUCT(((T_DataComboFile[Implementation programme]=$G$3)*(T_DataComboFile[Econ3]=$G43))*T_DataComboFile[2017/18]*$B$3)","v":0},{"$f":"SUMPRODUCT(((T_DataComboFile[Implementation programme]=$G$3)*(T_DataComboFile[Econ3]=$G43))*T_DataComboFile[2018/19]*$B$3)","v":0},{"$f":"SUMPRODUCT(((T_DataComboFile[Implementation programme]=$G$3)*(T_DataComboFile[Econ3]=$G43))*T_DataComboFile[2019/20 Revised estimate]*$B$3)","v":0},{"$f":"SUMPRODUCT(((T_DataComboFile[Implementation programme]=$G$3)*(T_DataComboFile[Econ3]=$G43))*T_DataComboFile[2020/21 Revised]*$B$3)","v":0},{"$f":"SUMPRODUCT(((T_DataComboFile[Implementation programme]=$G$3)*(T_DataComboFile[Econ3]=$G43))*T_DataComboFile[2021/22 Baseline]*$B$3)","v":0},{"$f":"SUMPRODUCT(((T_DataComboFile[Implementation programme]=$G$3)*(T_DataComboFile[Econ3]=$G43))*T_DataComboFile[2021/22 Reduction]*$B$3)","v":0},{"$f":"SUMPRODUCT(((T_DataComboFile[Implementation programme]=$G$3)*(T_DataComboFile[Econ3]=$G43))*T_DataComboFile[2021/22 Increase]*$B$3)","v":0},0,{"$f":"SUMPRODUCT(((T_DataComboFile[Implementation programme]=$G$3)*(T_DataComboFile[Econ3]=$G43))*T_DataComboFile[2022/23 Baseline]*$B$3)","v":0},{"$f":"SUMPRODUCT(((T_DataComboFile[Implementation programme]=$G$3)*(T_DataComboFile[Econ3]=$G43))*T_DataComboFile[2022/23 Reduction]*$B$3)","v":0},{"$f":"SUMPRODUCT(((T_DataComboFile[Implementation programme]=$G$3)*(T_DataComboFile[Econ3]=$G43))*T_DataComboFile[2022/23 Increase]*$B$3)","v":0},0,{"$f":"SUMPRODUCT(((T_DataComboFile[Implementation programme]=$G$3)*(T_DataComboFile[Econ3]=$G43))*T_DataComboFile[2023/24 Baseline]*$B$3)","v":0},{"$f":"SUMPRODUCT(((T_DataComboFile[Implementation programme]=$G$3)*(T_DataComboFile[Econ3]=$G43))*T_DataComboFile[2023/24 Reduction]*$B$3)","v":0},{"$f":"SUMPRODUCT(((T_DataComboFile[Implementation programme]=$G$3)*(T_DataComboFile[Econ3]=$G43))*T_DataComboFile[2023/24 Increase]*$B$3)","v":0},0]
[0,0,null,null,null,null,"Foreign governments and international organisations",{"$f":"SUMPRODUCT(((T_DataComboFile[Implementation programme]=$G$3)*(T_DataComboFile[Econ3]=$G44))*T_DataComboFile[2017/18]*$B$3)","v":0},{"$f":"SUMPRODUCT(((T_DataComboFile[Implementation programme]=$G$3)*(T_DataComboFile[Econ3]=$G44))*T_DataComboFile[2018/19]*$B$3)","v":0},{"$f":"SUMPRODUCT(((T_DataComboFile[Implementation programme]=$G$3)*(T_DataComboFile[Econ3]=$G44))*T_DataComboFile[2019/20 Revised estimate]*$B$3)","v":0},{"$f":"SUMPRODUCT(((T_DataComboFile[Implementation programme]=$G$3)*(T_DataComboFile[Econ3]=$G44))*T_DataComboFile[2020/21 Revised]*$B$3)","v":0},{"$f":"SUMPRODUCT(((T_DataComboFile[Implementation programme]=$G$3)*(T_DataComboFile[Econ3]=$G44))*T_DataComboFile[2021/22 Baseline]*$B$3)","v":0},{"$f":"SUMPRODUCT(((T_DataComboFile[Implementation programme]=$G$3)*(T_DataComboFile[Econ3]=$G44))*T_DataComboFile[2021/22 Reduction]*$B$3)","v":0},{"$f":"SUMPRODUCT(((T_DataComboFile[Implementation programme]=$G$3)*(T_DataComboFile[Econ3]=$G44))*T_DataComboFile[2021/22 Increase]*$B$3)","v":0},0,{"$f":"SUMPRODUCT(((T_DataComboFile[Implementation programme]=$G$3)*(T_DataComboFile[Econ3]=$G44))*T_DataComboFile[2022/23 Baseline]*$B$3)","v":0},{"$f":"SUMPRODUCT(((T_DataComboFile[Implementation programme]=$G$3)*(T_DataComboFile[Econ3]=$G44))*T_DataComboFile[2022/23 Reduction]*$B$3)","v":0},{"$f":"SUMPRODUCT(((T_DataComboFile[Implementation programme]=$G$3)*(T_DataComboFile[Econ3]=$G44))*T_DataComboFile[2022/23 Increase]*$B$3)","v":0},0,{"$f":"SUMPRODUCT(((T_DataComboFile[Implementation programme]=$G$3)*(T_DataComboFile[Econ3]=$G44))*T_DataComboFile[2023/24 Baseline]*$B$3)","v":0},{"$f":"SUMPRODUCT(((T_DataComboFile[Implementation programme]=$G$3)*(T_DataComboFile[Econ3]=$G44))*T_DataComboFile[2023/24 Reduction]*$B$3)","v":0},{"$f":"SUMPRODUCT(((T_DataComboFile[Implementation programme]=$G$3)*(T_DataComboFile[Econ3]=$G44))*T_DataComboFile[2023/24 Increase]*$B$3)","v":0},0]
[0,0,null,null,null,null,"Public corporations and private enterprises",{"$f":"SUM(H46:H47)","v":0},0,0,0,0,0,0,0,0,0,0,0,0,0,0,0]
[0,0,null,null,null,null,"Public corporations",{"$f":"SUMPRODUCT(((T_DataComboFile[Implementation programme]=$G$3)*(T_DataComboFile[Econ4]=$G46))*T_DataComboFile[2017/18]*$B$3)","v":0},{"$f":"SUMPRODUCT(((T_DataComboFile[Implementation programme]=$G$3)*(T_DataComboFile[Econ4]=$G46))*T_DataComboFile[2018/19]*$B$3)","v":0},{"$f":"SUMPRODUCT(((T_DataComboFile[Implementation programme]=$G$3)*(T_DataComboFile[Econ4]=$G46))*T_DataComboFile[2019/20 Revised estimate]*$B$3)","v":0},{"$f":"SUMPRODUCT(((T_DataComboFile[Implementation programme]=$G$3)*(T_DataComboFile[Econ4]=$G46))*T_DataComboFile[2020/21 Revised]*$B$3)","v":0},{"$f":"SUMPRODUCT(((T_DataComboFile[Implementation programme]=$G$3)*(T_DataComboFile[Econ4]=$G46))*T_DataComboFile[2021/22 Baseline]*$B$3)","v":0},{"$f":"SUMPRODUCT(((T_DataComboFile[Implementation programme]=$G$3)*(T_DataComboFile[Econ4]=$G46))*T_DataComboFile[2021/22 Reduction]*$B$3)","v":0},{"$f":"SUMPRODUCT(((T_DataComboFile[Implementation programme]=$G$3)*(T_DataComboFile[Econ4]=$G46))*T_DataComboFile[2021/22 Increase]*$B$3)","v":0},{"$f":"L46+M46+N46","v":0},{"$f":"SUMPRODUCT(((T_DataComboFile[Implementation programme]=$G$3)*(T_DataComboFile[Econ4]=$G46))*T_DataComboFile[2022/23 Baseline]*$B$3)","v":0},{"$f":"SUMPRODUCT(((T_DataComboFile[Implementation programme]=$G$3)*(T_DataComboFile[Econ4]=$G46))*T_DataComboFile[2022/23 Reduction]*$B$3)","v":0},{"$f":"SUMPRODUCT(((T_DataComboFile[Implementation programme]=$G$3)*(T_DataComboFile[Econ4]=$G46))*T_DataComboFile[2022/23 Increase]*$B$3)","v":0},{"$f":"P46+Q46+R46","v":0},{"$f":"SUMPRODUCT(((T_DataComboFile[Implementation programme]=$G$3)*(T_DataComboFile[Econ4]=$G46))*T_DataComboFile[2023/24 Baseline]*$B$3)","v":0},{"$f":"SUMPRODUCT(((T_DataComboFile[Implementation programme]=$G$3)*(T_DataComboFile[Econ4]=$G46))*T_DataComboFile[2023/24 Reduction]*$B$3)","v":0},{"$f":"SUMPRODUCT(((T_DataComboFile[Implementation programme]=$G$3)*(T_DataComboFile[Econ4]=$G46))*T_DataComboFile[2023/24 Increase]*$B$3)","v":0},{"$f":"T46+U46+V46","v":0}]
[0,0,null,null,null,null,"Private enterprises",{"$f":"SUMPRODUCT(((T_DataComboFile[Implementation programme]=$G$3)*(T_DataComboFile[Econ4]=$G47))*T_DataComboFile[2017/18]*$B$3)","v":0},{"$f":"SUMPRODUCT(((T_DataComboFile[Implementation programme]=$G$3)*(T_DataComboFile[Econ4]=$G47))*T_DataComboFile[2018/19]*$B$3)","v":0},{"$f":"SUMPRODUCT(((T_DataComboFile[Implementation programme]=$G$3)*(T_DataComboFile[Econ4]=$G47))*T_DataComboFile[2019/20 Revised estimate]*$B$3)","v":0},{"$f":"SUMPRODUCT(((T_DataComboFile[Implementation programme]=$G$3)*(T_DataComboFile[Econ4]=$G47))*T_DataComboFile[2020/21 Revised]*$B$3)","v":0},{"$f":"SUMPRODUCT(((T_DataComboFile[Implementation programme]=$G$3)*(T_DataComboFile[Econ4]=$G47))*T_DataComboFile[2021/22 Baseline]*$B$3)","v":0},{"$f":"SUMPRODUCT(((T_DataComboFile[Implementation programme]=$G$3)*(T_DataComboFile[Econ4]=$G47))*T_DataComboFile[2021/22 Reduction]*$B$3)","v":0},{"$f":"SUMPRODUCT(((T_DataComboFile[Implementation programme]=$G$3)*(T_DataComboFile[Econ4]=$G47))*T_DataComboFile[2021/22 Increase]*$B$3)","v":0},0,{"$f":"SUMPRODUCT(((T_DataComboFile[Implementation programme]=$G$3)*(T_DataComboFile[Econ4]=$G47))*T_DataComboFile[2022/23 Baseline]*$B$3)","v":0},{"$f":"SUMPRODUCT(((T_DataComboFile[Implementation programme]=$G$3)*(T_DataComboFile[Econ4]=$G47))*T_DataComboFile[2022/23 Reduction]*$B$3)","v":0},{"$f":"SUMPRODUCT(((T_DataComboFile[Implementation programme]=$G$3)*(T_DataComboFile[Econ4]=$G47))*T_DataComboFile[2022/23 Increase]*$B$3)","v":0},0,{"$f":"SUMPRODUCT(((T_DataComboFile[Implementation programme]=$G$3)*(T_DataComboFile[Econ4]=$G47))*T_DataComboFile[2023/24 Baseline]*$B$3)","v":0},{"$f":"SUMPRODUCT(((T_DataComboFile[Implementation programme]=$G$3)*(T_DataComboFile[Econ4]=$G47))*T_DataComboFile[2023/24 Reduction]*$B$3)","v":0},{"$f":"SUMPRODUCT(((T_DataComboFile[Implementation programme]=$G$3)*(T_DataComboFile[Econ4]=$G47))*T_DataComboFile[2023/24 Increase]*$B$3)","v":0},0]
[0,0,null,null,null,null,"Non-profit institutions",{"$f":"SUMPRODUCT(((T_DataComboFile[Implementation programme]=$G$3)*(T_DataComboFile[Econ3]=$G48))*T_DataComboFile[2017/18]*$B$3)","v":0},{"$f":"SUMPRODUCT(((T_DataComboFile[Implementation programme]=$G$3)*(T_DataComboFile[Econ3]=$G48))*T_DataComboFile[2018/19]*$B$3)","v":0},{"$f":"SUMPRODUCT(((T_DataComboFile[Implementation programme]=$G$3)*(T_DataComboFile[Econ3]=$G48))*T_DataComboFile[2019/20 Revised estimate]*$B$3)","v":0},{"$f":"SUMPRODUCT(((T_DataComboFile[Implementation programme]=$G$3)*(T_DataComboFile[Econ3]=$G48))*T_DataComboFile[2020/21 Revised]*$B$3)","v":0},{"$f":"SUMPRODUCT(((T_DataComboFile[Implementation programme]=$G$3)*(T_DataComboFile[Econ3]=$G48))*T_DataComboFile[2021/22 Baseline]*$B$3)","v":0},{"$f":"SUMPRODUCT(((T_DataComboFile[Implementation programme]=$G$3)*(T_DataComboFile[Econ3]=$G48))*T_DataComboFile[2021/22 Reduction]*$B$3)","v":0},{"$f":"SUMPRODUCT(((T_DataComboFile[Implementation programme]=$G$3)*(T_DataComboFile[Econ3]=$G48))*T_DataComboFile[2021/22 Increase]*$B$3)","v":0},0,{"$f":"SUMPRODUCT(((T_DataComboFile[Implementation programme]=$G$3)*(T_DataComboFile[Econ3]=$G48))*T_DataComboFile[2022/23 Baseline]*$B$3)","v":0},{"$f":"SUMPRODUCT(((T_DataComboFile[Implementation programme]=$G$3)*(T_DataComboFile[Econ3]=$G48))*T_DataComboFile[2022/23 Reduction]*$B$3)","v":0},{"$f":"SUMPRODUCT(((T_DataComboFile[Implementation programme]=$G$3)*(T_DataComboFile[Econ3]=$G48))*T_DataComboFile[2022/23 Increase]*$B$3)","v":0},0,{"$f":"SUMPRODUCT(((T_DataComboFile[Implementation programme]=$G$3)*(T_DataComboFile[Econ3]=$G48))*T_DataComboFile[2023/24 Baseline]*$B$3)","v":0},{"$f":"SUMPRODUCT(((T_DataComboFile[Implementation programme]=$G$3)*(T_DataComboFile[Econ3]=$G48))*T_DataComboFile[2023/24 Reduction]*$B$3)","v":0},{"$f":"SUMPRODUCT(((T_DataComboFile[Implementation programme]=$G$3)*(T_DataComboFile[Econ3]=$G48))*T_DataComboFile[2023/24 Increase]*$B$3)","v":0},0]
[0,0,null,null,null,null,"Households",{"$f":"SUM(H50:H51)","v":0},0,0,0,0,0,0,0,0,0,0,0,0,0,0,0]
[0,0,null,null,null,null,"Social benefits",{"$f":"SUMPRODUCT(((T_DataComboFile[Implementation programme]=$G$3)*(T_DataComboFile[Econ4]=$G50))*T_DataComboFile[2017/18]*$B$3)","v":0},{"$f":"SUMPRODUCT(((T_DataComboFile[Implementation programme]=$G$3)*(T_DataComboFile[Econ4]=$G50))*T_DataComboFile[2018/19]*$B$3)","v":0},{"$f":"SUMPRODUCT(((T_DataComboFile[Implementation programme]=$G$3)*(T_DataComboFile[Econ4]=$G50))*T_DataComboFile[2019/20 Revised estimate]*$B$3)","v":0},{"$f":"SUMPRODUCT(((T_DataComboFile[Implementation programme]=$G$3)*(T_DataComboFile[Econ4]=$G50))*T_DataComboFile[2020/21 Revised]*$B$3)","v":0},{"$f":"SUMPRODUCT(((T_DataComboFile[Implementation programme]=$G$3)*(T_DataComboFile[Econ4]=$G50))*T_DataComboFile[2021/22 Baseline]*$B$3)","v":0},{"$f":"SUMPRODUCT(((T_DataComboFile[Implementation programme]=$G$3)*(T_DataComboFile[Econ4]=$G50))*T_DataComboFile[2021/22 Reduction]*$B$3)","v":0},{"$f":"SUMPRODUCT(((T_DataComboFile[Implementation programme]=$G$3)*(T_DataComboFile[Econ4]=$G50))*T_DataComboFile[2021/22 Increase]*$B$3)","v":0},{"$f":"L50+M50+N50","v":0},{"$f":"SUMPRODUCT(((T_DataComboFile[Implementation programme]=$G$3)*(T_DataComboFile[Econ4]=$G50))*T_DataComboFile[2022/23 Baseline]*$B$3)","v":0},{"$f":"SUMPRODUCT(((T_DataComboFile[Implementation programme]=$G$3)*(T_DataComboFile[Econ4]=$G50))*T_DataComboFile[2022/23 Reduction]*$B$3)","v":0},{"$f":"SUMPRODUCT(((T_DataComboFile[Implementation programme]=$G$3)*(T_DataComboFile[Econ4]=$G50))*T_DataComboFile[2022/23 Increase]*$B$3)","v":0},{"$f":"P50+Q50+R50","v":0},{"$f":"SUMPRODUCT(((T_DataComboFile[Implementation programme]=$G$3)*(T_DataComboFile[Econ4]=$G50))*T_DataComboFile[2023/24 Baseline]*$B$3)","v":0},{"$f":"SUMPRODUCT(((T_DataComboFile[Implementation programme]=$G$3)*(T_DataComboFile[Econ4]=$G50))*T_DataComboFile[2023/24 Reduction]*$B$3)","v":0},{"$f":"SUMPRODUCT(((T_DataComboFile[Implementation programme]=$G$3)*(T_DataComboFile[Econ4]=$G50))*T_DataComboFile[2023/24 Increase]*$B$3)","v":0},{"$f":"T50+U50+V50","v":0}]
[0,0,null,null,null,null,"Other transfers to households",{"$f":"SUMPRODUCT(((T_DataComboFile[Implementation programme]=$G$3)*(T_DataComboFile[Econ4]=$G51))*T_DataComboFile[2017/18]*$B$3)","v":0},{"$f":"SUMPRODUCT(((T_DataComboFile[Implementation programme]=$G$3)*(T_DataComboFile[Econ4]=$G51))*T_DataComboFile[2018/19]*$B$3)","v":0},{"$f":"SUMPRODUCT(((T_DataComboFile[Implementation programme]=$G$3)*(T_DataComboFile[Econ4]=$G51))*T_DataComboFile[2019/20 Revised estimate]*$B$3)","v":0},{"$f":"SUMPRODUCT(((T_DataComboFile[Implementation programme]=$G$3)*(T_DataComboFile[Econ4]=$G51))*T_DataComboFile[2020/21 Revised]*$B$3)","v":0},{"$f":"SUMPRODUCT(((T_DataComboFile[Implementation programme]=$G$3)*(T_DataComboFile[Econ4]=$G51))*T_DataComboFile[2021/22 Baseline]*$B$3)","v":0},{"$f":"SUMPRODUCT(((T_DataComboFile[Implementation programme]=$G$3)*(T_DataComboFile[Econ4]=$G51))*T_DataComboFile[2021/22 Reduction]*$B$3)","v":0},{"$f":"SUMPRODUCT(((T_DataComboFile[Implementation programme]=$G$3)*(T_DataComboFile[Econ4]=$G51))*T_DataComboFile[2021/22 Increase]*$B$3)","v":0},0,{"$f":"SUMPRODUCT(((T_DataComboFile[Implementation programme]=$G$3)*(T_DataComboFile[Econ4]=$G51))*T_DataComboFile[2022/23 Baseline]*$B$3)","v":0},{"$f":"SUMPRODUCT(((T_DataComboFile[Implementation programme]=$G$3)*(T_DataComboFile[Econ4]=$G51))*T_DataComboFile[2022/23 Reduction]*$B$3)","v":0},{"$f":"SUMPRODUCT(((T_DataComboFile[Implementation programme]=$G$3)*(T_DataComboFile[Econ4]=$G51))*T_DataComboFile[2022/23 Increase]*$B$3)","v":0},0,{"$f":"SUMPRODUCT(((T_DataComboFile[Implementation programme]=$G$3)*(T_DataComboFile[Econ4]=$G51))*T_DataComboFile[2023/24 Baseline]*$B$3)","v":0},{"$f":"SUMPRODUCT(((T_DataComboFile[Implementation programme]=$G$3)*(T_DataComboFile[Econ4]=$G51))*T_DataComboFile[2023/24 Reduction]*$B$3)","v":0},{"$f":"SUMPRODUCT(((T_DataComboFile[Implementation programme]=$G$3)*(T_DataComboFile[Econ4]=$G51))*T_DataComboFile[2023/24 Increase]*$B$3)","v":0},0]
[0,0,null,null,null,null,"Payments for capital assets",{"$f":"SUM(H53,H56,H59:H63)","v":0},0,0,0,0,0,0,0,0,0,0,0,0,0,0,0]
[0,0,null,null,null,null,"Buildings and other fixed structures",{"$f":"SUM(H54:H55)","v":0},0,0,0,0,0,0,0,0,0,0,0,0,0,0,0]
[0,0,null,null,null,null,"Buildings",{"$f":"SUMPRODUCT(((T_DataComboFile[Implementation programme]=$G$3)*(T_DataComboFile[Econ4]=$G54))*T_DataComboFile[2017/18]*$B$3)","v":0},{"$f":"SUMPRODUCT(((T_DataComboFile[Implementation programme]=$G$3)*(T_DataComboFile[Econ4]=$G54))*T_DataComboFile[2018/19]*$B$3)","v":0},{"$f":"SUMPRODUCT(((T_DataComboFile[Implementation programme]=$G$3)*(T_DataComboFile[Econ4]=$G54))*T_DataComboFile[2019/20 Revised estimate]*$B$3)","v":0},{"$f":"SUMPRODUCT(((T_DataComboFile[Implementation programme]=$G$3)*(T_DataComboFile[Econ4]=$G54))*T_DataComboFile[2020/21 Revised]*$B$3)","v":0},{"$f":"SUMPRODUCT(((T_DataComboFile[Implementation programme]=$G$3)*(T_DataComboFile[Econ4]=$G54))*T_DataComboFile[2021/22 Baseline]*$B$3)","v":0},{"$f":"SUMPRODUCT(((T_DataComboFile[Implementation programme]=$G$3)*(T_DataComboFile[Econ4]=$G54))*T_DataComboFile[2021/22 Reduction]*$B$3)","v":0},{"$f":"SUMPRODUCT(((T_DataComboFile[Implementation programme]=$G$3)*(T_DataComboFile[Econ4]=$G54))*T_DataComboFile[2021/22 Increase]*$B$3)","v":0},{"$f":"L54+M54+N54","v":0},{"$f":"SUMPRODUCT(((T_DataComboFile[Implementation programme]=$G$3)*(T_DataComboFile[Econ4]=$G54))*T_DataComboFile[2022/23 Baseline]*$B$3)","v":0},{"$f":"SUMPRODUCT(((T_DataComboFile[Implementation programme]=$G$3)*(T_DataComboFile[Econ4]=$G54))*T_DataComboFile[2022/23 Reduction]*$B$3)","v":0},{"$f":"SUMPRODUCT(((T_DataComboFile[Implementation programme]=$G$3)*(T_DataComboFile[Econ4]=$G54))*T_DataComboFile[2022/23 Increase]*$B$3)","v":0},{"$f":"P54+Q54+R54","v":0},{"$f":"SUMPRODUCT(((T_DataComboFile[Implementation programme]=$G$3)*(T_DataComboFile[Econ4]=$G54))*T_DataComboFile[2023/24 Baseline]*$B$3)","v":0},{"$f":"SUMPRODUCT(((T_DataComboFile[Implementation programme]=$G$3)*(T_DataComboFile[Econ4]=$G54))*T_DataComboFile[2023/24 Reduction]*$B$3)","v":0},{"$f":"SUMPRODUCT(((T_DataComboFile[Implementation programme]=$G$3)*(T_DataComboFile[Econ4]=$G54))*T_DataComboFile[2023/24 Increase]*$B$3)","v":0},{"$f":"T54+U54+V54","v":0}]
[0,0,null,null,null,null,"Other fixed structures",{"$f":"SUMPRODUCT(((T_DataComboFile[Implementation programme]=$G$3)*(T_DataComboFile[Econ4]=$G55))*T_DataComboFile[2017/18]*$B$3)","v":0},{"$f":"SUMPRODUCT(((T_DataComboFile[Implementation programme]=$G$3)*(T_DataComboFile[Econ4]=$G55))*T_DataComboFile[2018/19]*$B$3)","v":0},{"$f":"SUMPRODUCT(((T_DataComboFile[Implementation programme]=$G$3)*(T_DataComboFile[Econ4]=$G55))*T_DataComboFile[2019/20 Revised estimate]*$B$3)","v":0},{"$f":"SUMPRODUCT(((T_DataComboFile[Implementation programme]=$G$3)*(T_DataComboFile[Econ4]=$G55))*T_DataComboFile[2020/21 Revised]*$B$3)","v":0},{"$f":"SUMPRODUCT(((T_DataComboFile[Implementation programme]=$G$3)*(T_DataComboFile[Econ4]=$G55))*T_DataComboFile[2021/22 Baseline]*$B$3)","v":0},{"$f":"SUMPRODUCT(((T_DataComboFile[Implementation programme]=$G$3)*(T_DataComboFile[Econ4]=$G55))*T_DataComboFile[2021/22 Reduction]*$B$3)","v":0},{"$f":"SUMPRODUCT(((T_DataComboFile[Implementation programme]=$G$3)*(T_DataComboFile[Econ4]=$G55))*T_DataComboFile[2021/22 Increase]*$B$3)","v":0},0,{"$f":"SUMPRODUCT(((T_DataComboFile[Implementation programme]=$G$3)*(T_DataComboFile[Econ4]=$G55))*T_DataComboFile[2022/23 Baseline]*$B$3)","v":0},{"$f":"SUMPRODUCT(((T_DataComboFile[Implementation programme]=$G$3)*(T_DataComboFile[Econ4]=$G55))*T_DataComboFile[2022/23 Reduction]*$B$3)","v":0},{"$f":"SUMPRODUCT(((T_DataComboFile[Implementation programme]=$G$3)*(T_DataComboFile[Econ4]=$G55))*T_DataComboFile[2022/23 Increase]*$B$3)","v":0},0,{"$f":"SUMPRODUCT(((T_DataComboFile[Implementation programme]=$G$3)*(T_DataComboFile[Econ4]=$G55))*T_DataComboFile[2023/24 Baseline]*$B$3)","v":0},{"$f":"SUMPRODUCT(((T_DataComboFile[Implementation programme]=$G$3)*(T_DataComboFile[Econ4]=$G55))*T_DataComboFile[2023/24 Reduction]*$B$3)","v":0},{"$f":"SUMPRODUCT(((T_DataComboFile[Implementation programme]=$G$3)*(T_DataComboFile[Econ4]=$G55))*T_DataComboFile[2023/24 Increase]*$B$3)","v":0},0]
[0,0,null,null,null,null,"Machinery and equipment",{"$f":"SUM(H57:H58)","v":0},0,0,0,0,0,0,0,0,0,0,0,0,0,0,0]
[0,0,null,null,null,null,"Transport equipment",{"$f":"SUMPRODUCT(((T_DataComboFile[Implementation programme]=$G$3)*(T_DataComboFile[Econ4]=$G57))*T_DataComboFile[2017/18]*$B$3)","v":0},{"$f":"SUMPRODUCT(((T_DataComboFile[Implementation programme]=$G$3)*(T_DataComboFile[Econ4]=$G57))*T_DataComboFile[2018/19]*$B$3)","v":0},{"$f":"SUMPRODUCT(((T_DataComboFile[Implementation programme]=$G$3)*(T_DataComboFile[Econ4]=$G57))*T_DataComboFile[2019/20 Revised estimate]*$B$3)","v":0},{"$f":"SUMPRODUCT(((T_DataComboFile[Implementation programme]=$G$3)*(T_DataComboFile[Econ4]=$G57))*T_DataComboFile[2020/21 Revised]*$B$3)","v":0},{"$f":"SUMPRODUCT(((T_DataComboFile[Implementation programme]=$G$3)*(T_DataComboFile[Econ4]=$G57))*T_DataComboFile[2021/22 Baseline]*$B$3)","v":0},{"$f":"SUMPRODUCT(((T_DataComboFile[Implementation programme]=$G$3)*(T_DataComboFile[Econ4]=$G57))*T_DataComboFile[2021/22 Reduction]*$B$3)","v":0},{"$f":"SUMPRODUCT(((T_DataComboFile[Implementation programme]=$G$3)*(T_DataComboFile[Econ4]=$G57))*T_DataComboFile[2021/22 Increase]*$B$3)","v":0},{"$f":"L57+M57+N57","v":0},{"$f":"SUMPRODUCT(((T_DataComboFile[Implementation programme]=$G$3)*(T_DataComboFile[Econ4]=$G57))*T_DataComboFile[2022/23 Baseline]*$B$3)","v":0},{"$f":"SUMPRODUCT(((T_DataComboFile[Implementation programme]=$G$3)*(T_DataComboFile[Econ4]=$G57))*T_DataComboFile[2022/23 Reduction]*$B$3)","v":0},{"$f":"SUMPRODUCT(((T_DataComboFile[Implementation programme]=$G$3)*(T_DataComboFile[Econ4]=$G57))*T_DataComboFile[2022/23 Increase]*$B$3)","v":0},{"$f":"P57+Q57+R57","v":0},{"$f":"SUMPRODUCT(((T_DataComboFile[Implementation programme]=$G$3)*(T_DataComboFile[Econ4]=$G57))*T_DataComboFile[2023/24 Baseline]*$B$3)","v":0},{"$f":"SUMPRODUCT(((T_DataComboFile[Implementation programme]=$G$3)*(T_DataComboFile[Econ4]=$G57))*T_DataComboFile[2023/24 Reduction]*$B$3)","v":0},{"$f":"SUMPRODUCT(((T_DataComboFile[Implementation programme]=$G$3)*(T_DataComboFile[Econ4]=$G57))*T_DataComboFile[2023/24 Increase]*$B$3)","v":0},{"$f":"T57+U57+V57","v":0}]
[0,0,null,null,null,null,"Other machinery and equipment",{"$f":"SUMPRODUCT(((T_DataComboFile[Implementation programme]=$G$3)*(T_DataComboFile[Econ4]=$G58))*T_DataComboFile[2017/18]*$B$3)","v":0},{"$f":"SUMPRODUCT(((T_DataComboFile[Implementation programme]=$G$3)*(T_DataComboFile[Econ4]=$G58))*T_DataComboFile[2018/19]*$B$3)","v":0},{"$f":"SUMPRODUCT(((T_DataComboFile[Implementation programme]=$G$3)*(T_DataComboFile[Econ4]=$G58))*T_DataComboFile[2019/20 Revised estimate]*$B$3)","v":0},{"$f":"SUMPRODUCT(((T_DataComboFile[Implementation programme]=$G$3)*(T_DataComboFile[Econ4]=$G58))*T_DataComboFile[2020/21 Revised]*$B$3)","v":0},{"$f":"SUMPRODUCT(((T_DataComboFile[Implementation programme]=$G$3)*(T_DataComboFile[Econ4]=$G58))*T_DataComboFile[2021/22 Baseline]*$B$3)","v":0},{"$f":"SUMPRODUCT(((T_DataComboFile[Implementation programme]=$G$3)*(T_DataComboFile[Econ4]=$G58))*T_DataComboFile[2021/22 Reduction]*$B$3)","v":0},{"$f":"SUMPRODUCT(((T_DataComboFile[Implementation programme]=$G$3)*(T_DataComboFile[Econ4]=$G58))*T_DataComboFile[2021/22 Increase]*$B$3)","v":0},0,{"$f":"SUMPRODUCT(((T_DataComboFile[Implementation programme]=$G$3)*(T_DataComboFile[Econ4]=$G58))*T_DataComboFile[2022/23 Baseline]*$B$3)","v":0},{"$f":"SUMPRODUCT(((T_DataComboFile[Implementation programme]=$G$3)*(T_DataComboFile[Econ4]=$G58))*T_DataComboFile[2022/23 Reduction]*$B$3)","v":0},{"$f":"SUMPRODUCT(((T_DataComboFile[Implementation programme]=$G$3)*(T_DataComboFile[Econ4]=$G58))*T_DataComboFile[2022/23 Increase]*$B$3)","v":0},0,{"$f":"SUMPRODUCT(((T_DataComboFile[Implementation programme]=$G$3)*(T_DataComboFile[Econ4]=$G58))*T_DataComboFile[2023/24 Baseline]*$B$3)","v":0},{"$f":"SUMPRODUCT(((T_DataComboFile[Implementation programme]=$G$3)*(T_DataComboFile[Econ4]=$G58))*T_DataComboFile[2023/24 Reduction]*$B$3)","v":0},{"$f":"SUMPRODUCT(((T_DataComboFile[Implementation programme]=$G$3)*(T_DataComboFile[Econ4]=$G58))*T_DataComboFile[2023/24 Increase]*$B$3)","v":0},0]
[0,0,null,null,null,null,"Heritage assets",{"$f":"SUMPRODUCT(((T_DataComboFile[Implementation programme]=$G$3)*(T_DataComboFile[Econ3]=$G59))*T_DataComboFile[2017/18]*$B$3)","v":0},{"$f":"SUMPRODUCT(((T_DataComboFile[Implementation programme]=$G$3)*(T_DataComboFile[Econ3]=$G59))*T_DataComboFile[2018/19]*$B$3)","v":0},{"$f":"SUMPRODUCT(((T_DataComboFile[Implementation programme]=$G$3)*(T_DataComboFile[Econ3]=$G59))*T_DataComboFile[2019/20 Revised estimate]*$B$3)","v":0},{"$f":"SUMPRODUCT(((T_DataComboFile[Implementation programme]=$G$3)*(T_DataComboFile[Econ3]=$G59))*T_DataComboFile[2020/21 Revised]*$B$3)","v":0},{"$f":"SUMPRODUCT(((T_DataComboFile[Implementation programme]=$G$3)*(T_DataComboFile[Econ3]=$G59))*T_DataComboFile[2021/22 Baseline]*$B$3)","v":0},{"$f":"SUMPRODUCT(((T_DataComboFile[Implementation programme]=$G$3)*(T_DataComboFile[Econ3]=$G59))*T_DataComboFile[2021/22 Reduction]*$B$3)","v":0},{"$f":"SUMPRODUCT(((T_DataComboFile[Implementation programme]=$G$3)*(T_DataComboFile[Econ3]=$G59))*T_DataComboFile[2021/22 Increase]*$B$3)","v":0},0,{"$f":"SUMPRODUCT(((T_DataComboFile[Implementation programme]=$G$3)*(T_DataComboFile[Econ3]=$G59))*T_DataComboFile[2022/23 Baseline]*$B$3)","v":0},{"$f":"SUMPRODUCT(((T_DataComboFile[Implementation programme]=$G$3)*(T_DataComboFile[Econ3]=$G59))*T_DataComboFile[2022/23 Reduction]*$B$3)","v":0},{"$f":"SUMPRODUCT(((T_DataComboFile[Implementation programme]=$G$3)*(T_DataComboFile[Econ3]=$G59))*T_DataComboFile[2022/23 Increase]*$B$3)","v":0},0,{"$f":"SUMPRODUCT(((T_DataComboFile[Implementation programme]=$G$3)*(T_DataComboFile[Econ3]=$G59))*T_DataComboFile[2023/24 Baseline]*$B$3)","v":0},{"$f":"SUMPRODUCT(((T_DataComboFile[Implementation programme]=$G$3)*(T_DataComboFile[Econ3]=$G59))*T_DataComboFile[2023/24 Reduction]*$B$3)","v":0},{"$f":"SUMPRODUCT(((T_DataComboFile[Implementation programme]=$G$3)*(T_DataComboFile[Econ3]=$G59))*T_DataComboFile[2023/24 Increase]*$B$3)","v":0},0]
[0,0,null,null,null,null,"Specialised military assets",{"$f":"SUMPRODUCT(((T_DataComboFile[Implementation programme]=$G$3)*(T_DataComboFile[Econ3]=$G60))*T_DataComboFile[2017/18]*$B$3)","v":0},{"$f":"SUMPRODUCT(((T_DataComboFile[Implementation programme]=$G$3)*(T_DataComboFile[Econ3]=$G60))*T_DataComboFile[2018/19]*$B$3)","v":0},{"$f":"SUMPRODUCT(((T_DataComboFile[Implementation programme]=$G$3)*(T_DataComboFile[Econ3]=$G60))*T_DataComboFile[2019/20 Revised estimate]*$B$3)","v":0},{"$f":"SUMPRODUCT(((T_DataComboFile[Implementation programme]=$G$3)*(T_DataComboFile[Econ3]=$G60))*T_DataComboFile[2020/21 Revised]*$B$3)","v":0},{"$f":"SUMPRODUCT(((T_DataComboFile[Implementation programme]=$G$3)*(T_DataComboFile[Econ3]=$G60))*T_DataComboFile[2021/22 Baseline]*$B$3)","v":0},{"$f":"SUMPRODUCT(((T_DataComboFile[Implementation programme]=$G$3)*(T_DataComboFile[Econ3]=$G60))*T_DataComboFile[2021/22 Reduction]*$B$3)","v":0},{"$f":"SUMPRODUCT(((T_DataComboFile[Implementation programme]=$G$3)*(T_DataComboFile[Econ3]=$G60))*T_DataComboFile[2021/22 Increase]*$B$3)","v":0},0,{"$f":"SUMPRODUCT(((T_DataComboFile[Implementation programme]=$G$3)*(T_DataComboFile[Econ3]=$G60))*T_DataComboFile[2022/23 Baseline]*$B$3)","v":0},{"$f":"SUMPRODUCT(((T_DataComboFile[Implementation programme]=$G$3)*(T_DataComboFile[Econ3]=$G60))*T_DataComboFile[2022/23 Reduction]*$B$3)","v":0},{"$f":"SUMPRODUCT(((T_DataComboFile[Implementation programme]=$G$3)*(T_DataComboFile[Econ3]=$G60))*T_DataComboFile[2022/23 Increase]*$B$3)","v":0},0,{"$f":"SUMPRODUCT(((T_DataComboFile[Implementation programme]=$G$3)*(T_DataComboFile[Econ3]=$G60))*T_DataComboFile[2023/24 Baseline]*$B$3)","v":0},{"$f":"SUMPRODUCT(((T_DataComboFile[Implementation programme]=$G$3)*(T_DataComboFile[Econ3]=$G60))*T_DataComboFile[2023/24 Reduction]*$B$3)","v":0},{"$f":"SUMPRODUCT(((T_DataComboFile[Implementation programme]=$G$3)*(T_DataComboFile[Econ3]=$G60))*T_DataComboFile[2023/24 Increase]*$B$3)","v":0},0]
[0,0,null,null,null,null,"Biological assets",{"$f":"SUMPRODUCT(((T_DataComboFile[Implementation programme]=$G$3)*(T_DataComboFile[Econ3]=$G61))*T_DataComboFile[2017/18]*$B$3)","v":0},{"$f":"SUMPRODUCT(((T_DataComboFile[Implementation programme]=$G$3)*(T_DataComboFile[Econ3]=$G61))*T_DataComboFile[2018/19]*$B$3)","v":0},{"$f":"SUMPRODUCT(((T_DataComboFile[Implementation programme]=$G$3)*(T_DataComboFile[Econ3]=$G61))*T_DataComboFile[2019/20 Revised estimate]*$B$3)","v":0},{"$f":"SUMPRODUCT(((T_DataComboFile[Implementation programme]=$G$3)*(T_DataComboFile[Econ3]=$G61))*T_DataComboFile[2020/21 Revised]*$B$3)","v":0},{"$f":"SUMPRODUCT(((T_DataComboFile[Implementation programme]=$G$3)*(T_DataComboFile[Econ3]=$G61))*T_DataComboFile[2021/22 Baseline]*$B$3)","v":0},{"$f":"SUMPRODUCT(((T_DataComboFile[Implementation programme]=$G$3)*(T_DataComboFile[Econ3]=$G61))*T_DataComboFile[2021/22 Reduction]*$B$3)","v":0},{"$f":"SUMPRODUCT(((T_DataComboFile[Implementation programme]=$G$3)*(T_DataComboFile[Econ3]=$G61))*T_DataComboFile[2021/22 Increase]*$B$3)","v":0},0,{"$f":"SUMPRODUCT(((T_DataComboFile[Implementation programme]=$G$3)*(T_DataComboFile[Econ3]=$G61))*T_DataComboFile[2022/23 Baseline]*$B$3)","v":0},{"$f":"SUMPRODUCT(((T_DataComboFile[Implementation programme]=$G$3)*(T_DataComboFile[Econ3]=$G61))*T_DataComboFile[2022/23 Reduction]*$B$3)","v":0},{"$f":"SUMPRODUCT(((T_DataComboFile[Implementation programme]=$G$3)*(T_DataComboFile[Econ3]=$G61))*T_DataComboFile[2022/23 Increase]*$B$3)","v":0},0,{"$f":"SUMPRODUCT(((T_DataComboFile[Implementation programme]=$G$3)*(T_DataComboFile[Econ3]=$G61))*T_DataComboFile[2023/24 Baseline]*$B$3)","v":0},{"$f":"SUMPRODUCT(((T_DataComboFile[Implementation programme]=$G$3)*(T_DataComboFile[Econ3]=$G61))*T_DataComboFile[2023/24 Reduction]*$B$3)","v":0},{"$f":"SUMPRODUCT(((T_DataComboFile[Implementation programme]=$G$3)*(T_DataComboFile[Econ3]=$G61))*T_DataComboFile[2023/24 Increase]*$B$3)","v":0},0]
[0,0,null,null,null,null,"Land and sub-soil assets",{"$f":"SUMPRODUCT(((T_DataComboFile[Implementation programme]=$G$3)*(T_DataComboFile[Econ3]=$G62))*T_DataComboFile[2017/18]*$B$3)","v":0},{"$f":"SUMPRODUCT(((T_DataComboFile[Implementation programme]=$G$3)*(T_DataComboFile[Econ3]=$G62))*T_DataComboFile[2018/19]*$B$3)","v":0},{"$f":"SUMPRODUCT(((T_DataComboFile[Implementation programme]=$G$3)*(T_DataComboFile[Econ3]=$G62))*T_DataComboFile[2019/20 Revised estimate]*$B$3)","v":0},{"$f":"SUMPRODUCT(((T_DataComboFile[Implementation programme]=$G$3)*(T_DataComboFile[Econ3]=$G62))*T_DataComboFile[2020/21 Revised]*$B$3)","v":0},{"$f":"SUMPRODUCT(((T_DataComboFile[Implementation programme]=$G$3)*(T_DataComboFile[Econ3]=$G62))*T_DataComboFile[2021/22 Baseline]*$B$3)","v":0},{"$f":"SUMPRODUCT(((T_DataComboFile[Implementation programme]=$G$3)*(T_DataComboFile[Econ3]=$G62))*T_DataComboFile[2021/22 Reduction]*$B$3)","v":0},{"$f":"SUMPRODUCT(((T_DataComboFile[Implementation programme]=$G$3)*(T_DataComboFile[Econ3]=$G62))*T_DataComboFile[2021/22 Increase]*$B$3)","v":0},0,{"$f":"SUMPRODUCT(((T_DataComboFile[Implementation programme]=$G$3)*(T_DataComboFile[Econ3]=$G62))*T_DataComboFile[2022/23 Baseline]*$B$3)","v":0},{"$f":"SUMPRODUCT(((T_DataComboFile[Implementation programme]=$G$3)*(T_DataComboFile[Econ3]=$G62))*T_DataComboFile[2022/23 Reduction]*$B$3)","v":0},{"$f":"SUMPRODUCT(((T_DataComboFile[Implementation programme]=$G$3)*(T_DataComboFile[Econ3]=$G62))*T_DataComboFile[2022/23 Increase]*$B$3)","v":0},0,{"$f":"SUMPRODUCT(((T_DataComboFile[Implementation programme]=$G$3)*(T_DataComboFile[Econ3]=$G62))*T_DataComboFile[2023/24 Baseline]*$B$3)","v":0},{"$f":"SUMPRODUCT(((T_DataComboFile[Implementation programme]=$G$3)*(T_DataComboFile[Econ3]=$G62))*T_DataComboFile[2023/24 Reduction]*$B$3)","v":0},{"$f":"SUMPRODUCT(((T_DataComboFile[Implementation programme]=$G$3)*(T_DataComboFile[Econ3]=$G62))*T_DataComboFile[2023/24 Increase]*$B$3)","v":0},0]
[0,0,null,null,null,null,"Software and other intangible assets",{"$f":"SUMPRODUCT(((T_DataComboFile[Implementation programme]=$G$3)*(T_DataComboFile[Econ3]=$G63))*T_DataComboFile[2017/18]*$B$3)","v":0},{"$f":"SUMPRODUCT(((T_DataComboFile[Implementation programme]=$G$3)*(T_DataComboFile[Econ3]=$G63))*T_DataComboFile[2018/19]*$B$3)","v":0},{"$f":"SUMPRODUCT(((T_DataComboFile[Implementation programme]=$G$3)*(T_DataComboFile[Econ3]=$G63))*T_DataComboFile[2019/20 Revised estimate]*$B$3)","v":0},{"$f":"SUMPRODUCT(((T_DataComboFile[Implementation programme]=$G$3)*(T_DataComboFile[Econ3]=$G63))*T_DataComboFile[2020/21 Revised]*$B$3)","v":0},{"$f":"SUMPRODUCT(((T_DataComboFile[Implementation programme]=$G$3)*(T_DataComboFile[Econ3]=$G63))*T_DataComboFile[2021/22 Baseline]*$B$3)","v":0},{"$f":"SUMPRODUCT(((T_DataComboFile[Implementation programme]=$G$3)*(T_DataComboFile[Econ3]=$G63))*T_DataComboFile[2021/22 Reduction]*$B$3)","v":0},{"$f":"SUMPRODUCT(((T_DataComboFile[Implementation programme]=$G$3)*(T_DataComboFile[Econ3]=$G63))*T_DataComboFile[2021/22 Increase]*$B$3)","v":0},0,{"$f":"SUMPRODUCT(((T_DataComboFile[Implementation programme]=$G$3)*(T_DataComboFile[Econ3]=$G63))*T_DataComboFile[2022/23 Baseline]*$B$3)","v":0},{"$f":"SUMPRODUCT(((T_DataComboFile[Implementation programme]=$G$3)*(T_DataComboFile[Econ3]=$G63))*T_DataComboFile[2022/23 Reduction]*$B$3)","v":0},{"$f":"SUMPRODUCT(((T_DataComboFile[Implementation programme]=$G$3)*(T_DataComboFile[Econ3]=$G63))*T_DataComboFile[2022/23 Increase]*$B$3)","v":0},0,{"$f":"SUMPRODUCT(((T_DataComboFile[Implementation programme]=$G$3)*(T_DataComboFile[Econ3]=$G63))*T_DataComboFile[2023/24 Baseline]*$B$3)","v":0},{"$f":"SUMPRODUCT(((T_DataComboFile[Implementation programme]=$G$3)*(T_DataComboFile[Econ3]=$G63))*T_DataComboFile[2023/24 Reduction]*$B$3)","v":0},{"$f":"SUMPRODUCT(((T_DataComboFile[Implementation programme]=$G$3)*(T_DataComboFile[Econ3]=$G63))*T_DataComboFile[2023/24 Increase]*$B$3)","v":0},0]
[0,0,null,null,null,null,"Payments for financial assets",{"$f":"SUMPRODUCT(((T_DataComboFile[Implementation programme]=$G$3)*(T_DataComboFile[Econ3]=$G64))*T_DataComboFile[2017/18]*$B$3)","v":0},{"$f":"SUMPRODUCT(((T_DataComboFile[Implementation programme]=$G$3)*(T_DataComboFile[Econ3]=$G64))*T_DataComboFile[2018/19]*$B$3)","v":0},{"$f":"SUMPRODUCT(((T_DataComboFile[Implementation programme]=$G$3)*(T_DataComboFile[Econ3]=$G64))*T_DataComboFile[2019/20 Revised estimate]*$B$3)","v":0},{"$f":"SUMPRODUCT(((T_DataComboFile[Implementation programme]=$G$3)*(T_DataComboFile[Econ3]=$G64))*T_DataComboFile[2020/21 Revised]*$B$3)","v":0},{"$f":"SUMPRODUCT(((T_DataComboFile[Implementation programme]=$G$3)*(T_DataComboFile[Econ3]=$G64))*T_DataComboFile[2021/22 Baseline]*$B$3)","v":0},{"$f":"SUMPRODUCT(((T_DataComboFile[Implementation programme]=$G$3)*(T_DataComboFile[Econ3]=$G64))*T_DataComboFile[2021/22 Reduction]*$B$3)","v":0},{"$f":"SUMPRODUCT(((T_DataComboFile[Implementation programme]=$G$3)*(T_DataComboFile[Econ3]=$G64))*T_DataComboFile[2021/22 Increase]*$B$3)","v":0},0,{"$f":"SUMPRODUCT(((T_DataComboFile[Implementation programme]=$G$3)*(T_DataComboFile[Econ3]=$G64))*T_DataComboFile[2022/23 Baseline]*$B$3)","v":0},{"$f":"SUMPRODUCT(((T_DataComboFile[Implementation programme]=$G$3)*(T_DataComboFile[Econ3]=$G64))*T_DataComboFile[2022/23 Reduction]*$B$3)","v":0},{"$f":"SUMPRODUCT(((T_DataComboFile[Implementation programme]=$G$3)*(T_DataComboFile[Econ3]=$G64))*T_DataComboFile[2022/23 Increase]*$B$3)","v":0},0,{"$f":"SUMPRODUCT(((T_DataComboFile[Implementation programme]=$G$3)*(T_DataComboFile[Econ3]=$G64))*T_DataComboFile[2023/24 Baseline]*$B$3)","v":0},{"$f":"SUMPRODUCT(((T_DataComboFile[Implementation programme]=$G$3)*(T_DataComboFile[Econ3]=$G64))*T_DataComboFile[2023/24 Reduction]*$B$3)","v":0},{"$f":"SUMPRODUCT(((T_DataComboFile[Implementation programme]=$G$3)*(T_DataComboFile[Econ3]=$G64))*T_DataComboFile[2023/24 Increase]*$B$3)","v":0},0]
[0,0,null,null,null,null,"Total",{"$f":"SUM(H32,H36,H52,H64)","v":0},0,0,0,0,0,0,0,0,0,0,0,0,0,0,0]
[]
[]
[]
[]
[]
[null,null,null,null,null,null,{"$f":"\"IMPACT OF ADJUSTMENTS: \" &UPPER($G$3)","v":"IMPACT OF ADJUSTMENTS: "}]
[]
[null,null,null,null,null,1,"Summary of impact on service delivery due to adjustments"]
[{"$f":"$G$3","v":0},1]
[0,1]
[0,1]
[0,1]
[0,1]
[0,1]
[0,1]
[0,1]
[0,1]
[0,1]
[0,1]
[0,1]
[0,1]
[0,1]
[0,1]
[]
[]
[]
[]
[]
[null,null,null,null,null,2,"Impact of adjustments on performance indicators"]
[{"$f":"$G$3","v":0},2,null,null,null,null,null,"2021/22",null,null,"2022/23",null,null,"2023/24",null,null," Comment",null,null,null,null,"Related MTSF Priority"]
[0,2,null,null,null,null,"Performance indicator","Original target","Revised target","Change","Original target","Revised target","Change","Original target","Revised target","Change"]
[0,2]
[0,2]
[0,2]
[0,2]
[0,2]
[0,2]
[0,2]
[0,2]
[0,2]
[0,2]
[0,2]
[0,2]
[0,2]
[0,2]
[0,2]
[]
[]
[]
[]
[]
[null,null,null,null,null,3,"Impact of adjustments on infrastructure projects"]
[{"$f":"$G$3","v":0},3,null,null,null,null,null,"2021/22",null,null,"2022/23",null,null,"2023/24",null,null," Comment"]
[0,3,null,null,null,null,"Project name","Original amount","Revised amount","Change","Original amount","Revised amount","Change","Original amount","Revised amount","Change"]
[0,3,null,null,null,null,null,null,null,{"$f":"I120-H120","v":0},null,null,{"$f":"L120-K120","v":0},null,null,{"$f":"O120-N120","v":0}]
[0,3,null,null,null,null,null,null,null,0,null,null,0,null,null,0]
[0,3,null,null,null,null,null,null,null,0,null,null,0,null,null,0]
[0,3,null,null,null,null,null,null,null,0,null,null,0,null,null,0]
[0,3,null,null,null,null,null,null,null,0,null,null,0,null,null,0]
[0,3,null,null,null,null,null,null,null,0,null,null,0,null,null,0]
[0,3,null,null,null,null,null,null,null,0,null,null,0,null,null,0]
[0,3,null,null,null,null,null,null,null,0,null,null,0,null,null,0]
[0,3,null,null,null,null,null,null,null,0,null,null,0,null,null,0]
[0,3,null,null,null,null,null,null,null,0,null,null,0,null,null,0]
[0,3,null,null,null,null,null,null,null,0,null,null,0,null,null,0]
[0,3,null,null,null,null,null,null,null,0,null,null,0,null,null,0]
[0,3,null,null,null,null,null,null,null,0,null,null,0,null,null,0]
[0,3,null,null,null,null,null,null,null,0,null,null,0,null,null,0]
[0,3,null,null,null,null,null,null,null,0,null,null,0,null,null,0]
[0,3,null,null,null,null,"Total",{"$f":"SUM(H120:H134)","v":0},0,0,0,0,0,0,0,0]
[]
[]
[]
[]
[]
[null,null,null,null,null,4,"Impact of adjustments on personnel headcount numbers"]
[{"$f":"$G$3","v":0},4,null,null,null,null,null,"2021/22",null,null,"2022/23",null,null,"2023/24",null,null," Comment"]
[0,4,null,null,null,null,"Salary level","Original number","Revised number","Change","Original number","Revised number","Change","Original number","Revised number","Change"]
[0,4,null,null,null,null,1,null,null,{"$f":"I144-H144","v":0},null,null,{"$f":"L144-K144","v":0},null,null,{"$f":"O144-N144","v":0}]
[0,4,null,null,null,null,2,null,null,0,null,null,0,null,null,0]
[0,4,null,null,null,null,3,null,null,0,null,null,0,null,null,0]
[0,4,null,null,null,null,4,null,null,0,null,null,0,null,null,0]
[0,4,null,null,null,null,5,null,null,0,null,null,0,null,null,0]
[0,4,null,null,null,null,6,null,null,0,null,null,0,null,null,0]
[0,4,null,null,null,null,7,null,null,0,null,null,0,null,null,0]
[0,4,null,null,null,null,8,null,null,0,null,null,0,null,null,0]
[0,4,null,null,null,null,9,null,null,0,null,null,0,null,null,0]
[0,4,null,null,null,null,10,null,null,0,null,null,0,null,null,0]
[0,4,null,null,null,null,11,null,null,0,null,null,0,null,null,0]
[0,4,null,null,null,null,12,null,null,0,null,null,0,null,null,0]
[0,4,null,null,null,null,13,null,null,0,null,null,0,null,null,0]
[0,4,null,null,null,null,14,null,null,0,null,null,0,null,null,0]
[0,4,null,null,null,null,15,null,null,0,null,null,0,null,null,0]
[0,4,null,null,null,null,16,null,null,0,null,null,0,null,null,0]
[0,4,null,null,null,null,"Other",null,null,0,null,null,0,null,null,0]
[0,4,null,null,null,null,"Other",null,null,0,null,null,0,null,null,0]
[0,4,null,null,null,null,"Other",null,null,0,null,null,0,null,null,0]
[0,4,null,null,null,null,"Other",null,null,0,null,null,0,null,null,0]
[0,4,null,null,null,null,"Total",{"$f":"SUM(H144:H163)","v":0},0,0,0,0,0,0,0,0]
[]
[]
[]
[]
[]
[null,null,null,null,null,5,"Impact of adjustments by economic classification"]
[{"$f":"$G$3","v":0},5,null,null,null,null,null,"2021/22",null,null,"2022/23",null,null,"2023/24",null,null," Comment"]
[0,5,null,null,null,null,"Salary level","Original number","Revised number","Change","Original number","Revised number","Change","Original number","Revised number","Change"]
[0,5,null,null,null,null,"Current payments",{"$f":"SUM(H174,H175,H182)","v":0},{"$f":"SUM(I174,I175,I182)","v":0},{"$f":"I173-H173","v":0},{"$f":"SUM(K174,K175,K182)","v":0},{"$f":"SUM(L174,L175,L182)","v":0},{"$f":"L173-K173","v":0},{"$f":"SUM(N174,N175,N182)","v":0},{"$f":"SUM(O174,O175,O182)","v":0},{"$f":"O173-N173","v":0}]
[0,5,null,null,null,null,"Compensation of employees",{"$f":"SUMPRODUCT(((T_DataComboFile[Implementation programme]=$G$3)*(T_DataComboFile[Econ3]=$G174))*T_DataComboFile[2021/22 Baseline]*$B$3)","v":0},{"$f":"SUMPRODUCT(((T_DataComboFile[Implementation programme]=$G$3)*(T_DataComboFile[Econ3]=$G174))*T_DataComboFile[2021/22 Revised baseline]*$B$3)","v":0},0,{"$f":"SUMPRODUCT(((T_DataComboFile[Implementation programme]=$G$3)*(T_DataComboFile[Econ3]=$G174))*T_DataComboFile[2022/23 Baseline]*$B$3)","v":0},{"$f":"SUMPRODUCT(((T_DataComboFile[Implementation programme]=$G$3)*(T_DataComboFile[Econ3]=$G174))*T_DataComboFile[2022/23 Revised baseline]*$B$3)","v":0},0,{"$f":"SUMPRODUCT(((T_DataComboFile[Implementation programme]=$G$3)*(T_DataComboFile[Econ3]=$G174))*T_DataComboFile[2023/24 Baseline]*$B$3)","v":0},{"$f":"SUMPRODUCT(((T_DataComboFile[Implementation programme]=$G$3)*(T_DataComboFile[Econ3]=$G174))*T_DataComboFile[2023/24 Revised baseline]*$B$3)","v":0},0]
[0,5,null,null,null,null,"Goods and services",{"$f":"SUMPRODUCT(((T_DataComboFile[Implementation programme]=$G$3)*(T_DataComboFile[Econ3]=$G175))*T_DataComboFile[2021/22 Baseline]*$B$3)","v":0},{"$f":"SUMPRODUCT(((T_DataComboFile[Implementation programme]=$G$3)*(T_DataComboFile[Econ3]=$G175))*T_DataComboFile[2021/22 Revised baseline]*$B$3)","v":0},0,{"$f":"SUMPRODUCT(((T_DataComboFile[Implementation programme]=$G$3)*(T_DataComboFile[Econ3]=$G175))*T_DataComboFile[2022/23 Baseline]*$B$3)","v":0},{"$f":"SUMPRODUCT(((T_DataComboFile[Implementation programme]=$G$3)*(T_DataComboFile[Econ3]=$G175))*T_DataComboFile[2022/23 Revised baseline]*$B$3)","v":0},0,{"$f":"SUMPRODUCT(((T_DataComboFile[Implementation programme]=$G$3)*(T_DataComboFile[Econ3]=$G175))*T_DataComboFile[2023/24 Baseline]*$B$3)","v":0},{"$f":"SUMPRODUCT(((T_DataComboFile[Implementation programme]=$G$3)*(T_DataComboFile[Econ3]=$G175))*T_DataComboFile[2023/24 Revised baseline]*$B$3)","v":0},0]
[0,50,null,null,null,null,"of which:"]
[0,51,null,null,null,null,null,null,null,{"$f":"I177-H177","v":0},null,null,{"$f":"L177-K177","v":0},null,null,0]
[0,51,null,null,null,null,null,null,null,0,null,null,0,null,null,0]
[0,51,null,null,null,null,null,null,null,0,null,null,0,null,null,0]
[0,51,null,null,null,null,null,null,null,0,null,null,0,null,null,0]
[0,51,null,null,null,null,null,null,null,0,null,null,0,null,null,0]
[0,5,null,null,null,null,"Interest and rent on land",{"$f":"SUMPRODUCT(((T_DataComboFile[Implementation programme]=$G$3)*(T_DataComboFile[Econ3]=$G182))*T_DataComboFile[2021/22 Baseline]*$B$3)","v":0},{"$f":"SUMPRODUCT(((T_DataComboFile[Implementation programme]=$G$3)*(T_DataComboFile[Econ3]=$G182))*T_DataComboFile[2021/22 Revised baseline]*$B$3)","v":0},0,{"$f":"SUMPRODUCT(((T_DataComboFile[Implementation programme]=$G$3)*(T_DataComboFile[Econ3]=$G182))*T_DataComboFile[2022/23 Baseline]*$B$3)","v":0},{"$f":"SUMPRODUCT(((T_DataComboFile[Implementation programme]=$G$3)*(T_DataComboFile[Econ3]=$G182))*T_DataComboFile[2022/23 Revised baseline]*$B$3)","v":0},0,{"$f":"SUMPRODUCT(((T_DataComboFile[Implementation programme]=$G$3)*(T_DataComboFile[Econ3]=$G182))*T_DataComboFile[2023/24 Baseline]*$B$3)","v":0},{"$f":"SUMPRODUCT(((T_DataComboFile[Implementation programme]=$G$3)*(T_DataComboFile[Econ3]=$G182))*T_DataComboFile[2023/24 Revised baseline]*$B$3)","v":0},0]
[0,5,null,null,null,null,"Transfers and subsidies",{"$f":"SUM(H184,H185,H197,H198,H199,H206,H207)","v":0},{"$f":"SUM(I184,I185,I197,I198,I199,I206,I207)","v":0},0,{"$f":"SUM(K184,K185,K197,K198,K199,K206,K207)","v":0},0,0,{"$f":"SUM(N184,N185,N197,N198,N199,N206,N207)","v":0},0,0]
[0,5,null,null,null,null,"Provinces and municipalities",{"$f":"SUMPRODUCT(((T_DataComboFile[Implementation programme]=$G$3)*(T_DataComboFile[Econ3]=$G184))*T_DataComboFile[2021/22 Baseline]*$B$3)","v":0},{"$f":"SUMPRODUCT(((T_DataComboFile[Implementation programme]=$G$3)*(T_DataComboFile[Econ3]=$G184))*T_DataComboFile[2021/22 Revised baseline]*$B$3)","v":0},0,{"$f":"SUMPRODUCT(((T_DataComboFile[Implementation programme]=$G$3)*(T_DataComboFile[Econ3]=$G184))*T_DataComboFile[2022/23 Baseline]*$B$3)","v":0},{"$f":"SUMPRODUCT(((T_DataComboFile[Implementation programme]=$G$3)*(T_DataComboFile[Econ3]=$G184))*T_DataComboFile[2022/23 Revised baseline]*$B$3)","v":0},0,{"$f":"SUMPRODUCT(((T_DataComboFile[Implementation programme]=$G$3)*(T_DataComboFile[Econ3]=$G184))*T_DataComboFile[2023/24 Baseline]*$B$3)","v":0},{"$f":"SUMPRODUCT(((T_DataComboFile[Implementation programme]=$G$3)*(T_DataComboFile[Econ3]=$G184))*T_DataComboFile[2023/24 Revised baseline]*$B$3)","v":0},0]
[0,5,null,null,null,null,"Departmental agencies and accounts",{"$f":"SUMPRODUCT(((T_DataComboFile[Implementation programme]=$G$3)*(T_DataComboFile[Econ3]=$G185))*T_DataComboFile[2021/22 Baseline]*$B$3)","v":0},{"$f":"SUMPRODUCT(((T_DataComboFile[Implementation programme]=$G$3)*(T_DataComboFile[Econ3]=$G185))*T_DataComboFile[2021/22 Revised baseline]*$B$3)","v":0},0,{"$f":"SUMPRODUCT(((T_DataComboFile[Implementation programme]=$G$3)*(T_DataComboFile[Econ3]=$G185))*T_DataComboFile[2022/23 Baseline]*$B$3)","v":0},{"$f":"SUMPRODUCT(((T_DataComboFile[Implementation programme]=$G$3)*(T_DataComboFile[Econ3]=$G185))*T_DataComboFile[2022/23 Revised baseline]*$B$3)","v":0},0,{"$f":"SUMPRODUCT(((T_DataComboFile[Implementation programme]=$G$3)*(T_DataComboFile[Econ3]=$G185))*T_DataComboFile[2023/24 Baseline]*$B$3)","v":0},{"$f":"SUMPRODUCT(((T_DataComboFile[Implementation programme]=$G$3)*(T_DataComboFile[Econ3]=$G185))*T_DataComboFile[2023/24 Revised baseline]*$B$3)","v":0},0]
[0,50,null,null,null,null,"of which:"]
[0,52,null,null,null,null,null,null,null,{"$f":"I187-H187","v":0},null,null,{"$f":"L187-K187","v":0},null,null,{"$f":"O187-N187","v":0}]
[0,52,null,null,null,null,null,null,null,0,null,null,0,null,null,0]
[0,52,null,null,null,null,null,null,null,0,null,null,0,null,null,0]
[0,52,null,null,null,null,null,null,null,0,null,null,0,null,null,0]
[0,52,null,null,null,null,null,null,null,0,null,null,0,null,null,0]
[0,52,null,null,null,null,null,null,null,0,null,null,0,null,null,0]
[0,52,null,null,null,null,null,null,null,0,null,null,0,null,null,0]
[0,52,null,null,null,null,null,null,null,0,null,null,0,null,null,0]
[0,52,null,null,null,null,null,null,null,0,null,null,0,null,null,0]
[0,52,null,null,null,null,null,null,null,0,null,null,0,null,null,0]
[0,5,null,null,null,null,"Higher education institutions",{"$f":"SUMPRODUCT(((T_DataComboFile[Implementation programme]=$G$3)*(T_DataComboFile[Econ3]=$G197))*T_DataComboFile[2021/22 Baseline]*$B$3)","v":0},{"$f":"SUMPRODUCT(((T_DataComboFile[Implementation programme]=$G$3)*(T_DataComboFile[Econ3]=$G197))*T_DataComboFile[2021/22 Revised baseline]*$B$3)","v":0},0,{"$f":"SUMPRODUCT(((T_DataComboFile[Implementation programme]=$G$3)*(T_DataComboFile[Econ3]=$G197))*T_DataComboFile[2022/23 Baseline]*$B$3)","v":0},{"$f":"SUMPRODUCT(((T_DataComboFile[Implementation programme]=$G$3)*(T_DataComboFile[Econ3]=$G197))*T_DataComboFile[2022/23 Revised baseline]*$B$3)","v":0},0,{"$f":"SUMPRODUCT(((T_DataComboFile[Implementation programme]=$G$3)*(T_DataComboFile[Econ3]=$G197))*T_DataComboFile[2023/24 Baseline]*$B$3)","v":0},{"$f":"SUMPRODUCT(((T_DataComboFile[Implementation programme]=$G$3)*(T_DataComboFile[Econ3]=$G197))*T_DataComboFile[2023/24 Revised baseline]*$B$3)","v":0},0]
[0,5,null,null,null,null,"Foreign governments and international organisations",{"$f":"SUMPRODUCT(((T_DataComboFile[Implementation programme]=$G$3)*(T_DataComboFile[Econ3]=$G198))*T_DataComboFile[2021/22 Baseline]*$B$3)","v":0},{"$f":"SUMPRODUCT(((T_DataComboFile[Implementation programme]=$G$3)*(T_DataComboFile[Econ3]=$G198))*T_DataComboFile[2021/22 Revised baseline]*$B$3)","v":0},0,{"$f":"SUMPRODUCT(((T_DataComboFile[Implementation programme]=$G$3)*(T_DataComboFile[Econ3]=$G198))*T_DataComboFile[2022/23 Baseline]*$B$3)","v":0},{"$f":"SUMPRODUCT(((T_DataComboFile[Implementation programme]=$G$3)*(T_DataComboFile[Econ3]=$G198))*T_DataComboFile[2022/23 Revised baseline]*$B$3)","v":0},0,{"$f":"SUMPRODUCT(((T_DataComboFile[Implementation programme]=$G$3)*(T_DataComboFile[Econ3]=$G198))*T_DataComboFile[2023/24 Baseline]*$B$3)","v":0},{"$f":"SUMPRODUCT(((T_DataComboFile[Implementation programme]=$G$3)*(T_DataComboFile[Econ3]=$G198))*T_DataComboFile[2023/24 Revised baseline]*$B$3)","v":0},0]
[0,5,null,null,null,null,"Public corporations and private enterprises",{"$f":"SUMPRODUCT(((T_DataComboFile[Implementation programme]=$G$3)*(T_DataComboFile[Econ3]=$G199))*T_DataComboFile[2021/22 Baseline]*$B$3)","v":0},{"$f":"SUMPRODUCT(((T_DataComboFile[Implementation programme]=$G$3)*(T_DataComboFile[Econ3]=$G199))*T_DataComboFile[2021/22 Revised baseline]*$B$3)","v":0},0,{"$f":"SUMPRODUCT(((T_DataComboFile[Implementation programme]=$G$3)*(T_DataComboFile[Econ3]=$G199))*T_DataComboFile[2022/23 Baseline]*$B$3)","v":0},{"$f":"SUMPRODUCT(((T_DataComboFile[Implementation programme]=$G$3)*(T_DataComboFile[Econ3]=$G199))*T_DataComboFile[2022/23 Revised baseline]*$B$3)","v":0},0,{"$f":"SUMPRODUCT(((T_DataComboFile[Implementation programme]=$G$3)*(T_DataComboFile[Econ3]=$G199))*T_DataComboFile[2023/24 Baseline]*$B$3)","v":0},{"$f":"SUMPRODUCT(((T_DataComboFile[Implementation programme]=$G$3)*(T_DataComboFile[Econ3]=$G199))*T_DataComboFile[2023/24 Revised baseline]*$B$3)","v":0},0]
[0,50,null,null,null,null,"of which:"]
[0,53,null,null,null,null,null,null,null,{"$f":"I201-H201","v":0},null,null,{"$f":"L201-K201","v":0},null,null,{"$f":"O201-N201","v":0}]
[0,53,null,null,null,null,null,null,null,0,null,null,0,null,null,0]
[0,53,null,null,null,null,null,null,null,0,null,null,0,null,null,0]
[0,53,null,null,null,null,null,null,null,0,null,null,0,null,null,0]
[0,53,null,null,null,null,null,null,null,0,null,null,0,null,null,0]
[0,5,null,null,null,null,"Non-profit institutions",{"$f":"SUMPRODUCT(((T_DataComboFile[Implementation programme]=$G$3)*(T_DataComboFile[Econ3]=$G206))*T_DataComboFile[2021/22 Baseline]*$B$3)","v":0},{"$f":"SUMPRODUCT(((T_DataComboFile[Implementation programme]=$G$3)*(T_DataComboFile[Econ3]=$G206))*T_DataComboFile[2021/22 Revised baseline]*$B$3)","v":0},0,{"$f":"SUMPRODUCT(((T_DataComboFile[Implementation programme]=$G$3)*(T_DataComboFile[Econ3]=$G206))*T_DataComboFile[2022/23 Baseline]*$B$3)","v":0},{"$f":"SUMPRODUCT(((T_DataComboFile[Implementation programme]=$G$3)*(T_DataComboFile[Econ3]=$G206))*T_DataComboFile[2022/23 Revised baseline]*$B$3)","v":0},0,{"$f":"SUMPRODUCT(((T_DataComboFile[Implementation programme]=$G$3)*(T_DataComboFile[Econ3]=$G206))*T_DataComboFile[2023/24 Baseline]*$B$3)","v":0},{"$f":"SUMPRODUCT(((T_DataComboFile[Implementation programme]=$G$3)*(T_DataComboFile[Econ3]=$G206))*T_DataComboFile[2023/24 Revised baseline]*$B$3)","v":0},0]
[0,5,null,null,null,null,"Households",{"$f":"SUMPRODUCT(((T_DataComboFile[Implementation programme]=$G$3)*(T_DataComboFile[Econ3]=$G207))*T_DataComboFile[2021/22 Baseline]*$B$3)","v":0},{"$f":"SUMPRODUCT(((T_DataComboFile[Implementation programme]=$G$3)*(T_DataComboFile[Econ3]=$G207))*T_DataComboFile[2021/22 Revised baseline]*$B$3)","v":0},0,{"$f":"SUMPRODUCT(((T_DataComboFile[Implementation programme]=$G$3)*(T_DataComboFile[Econ3]=$G207))*T_DataComboFile[2022/23 Baseline]*$B$3)","v":0},{"$f":"SUMPRODUCT(((T_DataComboFile[Implementation programme]=$G$3)*(T_DataComboFile[Econ3]=$G207))*T_DataComboFile[2022/23 Revised baseline]*$B$3)","v":0},0,{"$f":"SUMPRODUCT(((T_DataComboFile[Implementation programme]=$G$3)*(T_DataComboFile[Econ3]=$G207))*T_DataComboFile[2023/24 Baseline]*$B$3)","v":0},{"$f":"SUMPRODUCT(((T_DataComboFile[Implementation programme]=$G$3)*(T_DataComboFile[Econ3]=$G207))*T_DataComboFile[2023/24 Revised baseline]*$B$3)","v":0},0]
[0,5,null,null,null,null,"Payments for capital assets",{"$f":"SUM(H209:H215)","v":0},0,0,0,0,0,0,{"$f":"SUM(O209:O215)","v":0},0]
[0,5,null,null,null,null,"Buildings and other fixed structures",{"$f":"SUMPRODUCT(((T_DataComboFile[Implementation programme]=$G$3)*(T_DataComboFile[Econ3]=$G209))*T_DataComboFile[2021/22 Baseline]*$B$3)","v":0},{"$f":"SUMPRODUCT(((T_DataComboFile[Implementation programme]=$G$3)*(T_DataComboFile[Econ3]=$G209))*T_DataComboFile[2021/22 Revised baseline]*$B$3)","v":0},0,{"$f":"SUMPRODUCT(((T_DataComboFile[Implementation programme]=$G$3)*(T_DataComboFile[Econ3]=$G209))*T_DataComboFile[2022/23 Baseline]*$B$3)","v":0},{"$f":"SUMPRODUCT(((T_DataComboFile[Implementation programme]=$G$3)*(T_DataComboFile[Econ3]=$G209))*T_DataComboFile[2022/23 Revised baseline]*$B$3)","v":0},0,{"$f":"SUMPRODUCT(((T_DataComboFile[Implementation programme]=$G$3)*(T_DataComboFile[Econ3]=$G209))*T_DataComboFile[2023/24 Baseline]*$B$3)","v":0},{"$f":"SUMPRODUCT(((T_DataComboFile[Implementation programme]=$G$3)*(T_DataComboFile[Econ3]=$G209))*T_DataComboFile[2023/24 Revised baseline]*$B$3)","v":0},0]
[0,5,null,null,null,null,"Machinery and equipment",{"$f":"SUMPRODUCT(((T_DataComboFile[Implementation programme]=$G$3)*(T_DataComboFile[Econ3]=$G210))*T_DataComboFile[2021/22 Baseline]*$B$3)","v":0},{"$f":"SUMPRODUCT(((T_DataComboFile[Implementation programme]=$G$3)*(T_DataComboFile[Econ3]=$G210))*T_DataComboFile[2021/22 Revised baseline]*$B$3)","v":0},0,{"$f":"SUMPRODUCT(((T_DataComboFile[Implementation programme]=$G$3)*(T_DataComboFile[Econ3]=$G210))*T_DataComboFile[2022/23 Baseline]*$B$3)","v":0},{"$f":"SUMPRODUCT(((T_DataComboFile[Implementation programme]=$G$3)*(T_DataComboFile[Econ3]=$G210))*T_DataComboFile[2022/23 Revised baseline]*$B$3)","v":0},0,{"$f":"SUMPRODUCT(((T_DataComboFile[Implementation programme]=$G$3)*(T_DataComboFile[Econ3]=$G210))*T_DataComboFile[2023/24 Baseline]*$B$3)","v":0},{"$f":"SUMPRODUCT(((T_DataComboFile[Implementation programme]=$G$3)*(T_DataComboFile[Econ3]=$G210))*T_DataComboFile[2023/24 Revised baseline]*$B$3)","v":0},0]
[0,5,null,null,null,null,"Heritage assets",{"$f":"SUMPRODUCT(((T_DataComboFile[Implementation programme]=$G$3)*(T_DataComboFile[Econ3]=$G211))*T_DataComboFile[2021/22 Baseline]*$B$3)","v":0},{"$f":"SUMPRODUCT(((T_DataComboFile[Implementation programme]=$G$3)*(T_DataComboFile[Econ3]=$G211))*T_DataComboFile[2021/22 Revised baseline]*$B$3)","v":0},0,{"$f":"SUMPRODUCT(((T_DataComboFile[Implementation programme]=$G$3)*(T_DataComboFile[Econ3]=$G211))*T_DataComboFile[2022/23 Baseline]*$B$3)","v":0},{"$f":"SUMPRODUCT(((T_DataComboFile[Implementation programme]=$G$3)*(T_DataComboFile[Econ3]=$G211))*T_DataComboFile[2022/23 Revised baseline]*$B$3)","v":0},0,{"$f":"SUMPRODUCT(((T_DataComboFile[Implementation programme]=$G$3)*(T_DataComboFile[Econ3]=$G211))*T_DataComboFile[2023/24 Baseline]*$B$3)","v":0},{"$f":"SUMPRODUCT(((T_DataComboFile[Implementation programme]=$G$3)*(T_DataComboFile[Econ3]=$G211))*T_DataComboFile[2023/24 Revised baseline]*$B$3)","v":0},0]
[0,5,null,null,null,null,"Specialised military assets",{"$f":"SUMPRODUCT(((T_DataComboFile[Implementation programme]=$G$3)*(T_DataComboFile[Econ3]=$G212))*T_DataComboFile[2021/22 Baseline]*$B$3)","v":0},{"$f":"SUMPRODUCT(((T_DataComboFile[Implementation programme]=$G$3)*(T_DataComboFile[Econ3]=$G212))*T_DataComboFile[2021/22 Revised baseline]*$B$3)","v":0},0,{"$f":"SUMPRODUCT(((T_DataComboFile[Implementation programme]=$G$3)*(T_DataComboFile[Econ3]=$G212))*T_DataComboFile[2022/23 Baseline]*$B$3)","v":0},{"$f":"SUMPRODUCT(((T_DataComboFile[Implementation programme]=$G$3)*(T_DataComboFile[Econ3]=$G212))*T_DataComboFile[2022/23 Revised baseline]*$B$3)","v":0},0,{"$f":"SUMPRODUCT(((T_DataComboFile[Implementation programme]=$G$3)*(T_DataComboFile[Econ3]=$G212))*T_DataComboFile[2023/24 Baseline]*$B$3)","v":0},{"$f":"SUMPRODUCT(((T_DataComboFile[Implementation programme]=$G$3)*(T_DataComboFile[Econ3]=$G212))*T_DataComboFile[2023/24 Revised baseline]*$B$3)","v":0},0]
[0,5,null,null,null,null,"Biological assets",{"$f":"SUMPRODUCT(((T_DataComboFile[Implementation programme]=$G$3)*(T_DataComboFile[Econ3]=$G213))*T_DataComboFile[2021/22 Baseline]*$B$3)","v":0},{"$f":"SUMPRODUCT(((T_DataComboFile[Implementation programme]=$G$3)*(T_DataComboFile[Econ3]=$G213))*T_DataComboFile[2021/22 Revised baseline]*$B$3)","v":0},0,{"$f":"SUMPRODUCT(((T_DataComboFile[Implementation programme]=$G$3)*(T_DataComboFile[Econ3]=$G213))*T_DataComboFile[2022/23 Baseline]*$B$3)","v":0},{"$f":"SUMPRODUCT(((T_DataComboFile[Implementation programme]=$G$3)*(T_DataComboFile[Econ3]=$G213))*T_DataComboFile[2022/23 Revised baseline]*$B$3)","v":0},0,{"$f":"SUMPRODUCT(((T_DataComboFile[Implementation programme]=$G$3)*(T_DataComboFile[Econ3]=$G213))*T_DataComboFile[2023/24 Baseline]*$B$3)","v":0},{"$f":"SUMPRODUCT(((T_DataComboFile[Implementation programme]=$G$3)*(T_DataComboFile[Econ3]=$G213))*T_DataComboFile[2023/24 Revised baseline]*$B$3)","v":0},0]
[0,5,null,null,null,null,"Land and sub-soil assets",{"$f":"SUMPRODUCT(((T_DataComboFile[Implementation programme]=$G$3)*(T_DataComboFile[Econ3]=$G214))*T_DataComboFile[2021/22 Baseline]*$B$3)","v":0},{"$f":"SUMPRODUCT(((T_DataComboFile[Implementation programme]=$G$3)*(T_DataComboFile[Econ3]=$G214))*T_DataComboFile[2021/22 Revised baseline]*$B$3)","v":0},0,{"$f":"SUMPRODUCT(((T_DataComboFile[Implementation programme]=$G$3)*(T_DataComboFile[Econ3]=$G214))*T_DataComboFile[2022/23 Baseline]*$B$3)","v":0},{"$f":"SUMPRODUCT(((T_DataComboFile[Implementation programme]=$G$3)*(T_DataComboFile[Econ3]=$G214))*T_DataComboFile[2022/23 Revised baseline]*$B$3)","v":0},0,{"$f":"SUMPRODUCT(((T_DataComboFile[Implementation programme]=$G$3)*(T_DataComboFile[Econ3]=$G214))*T_DataComboFile[2023/24 Baseline]*$B$3)","v":0},{"$f":"SUMPRODUCT(((T_DataComboFile[Implementation programme]=$G$3)*(T_DataComboFile[Econ3]=$G214))*T_DataComboFile[2023/24 Revised baseline]*$B$3)","v":0},0]
[0,5,null,null,null,null,"Software and other intangible assets",{"$f":"SUMPRODUCT(((T_DataComboFile[Implementation programme]=$G$3)*(T_DataComboFile[Econ3]=$G215))*T_DataComboFile[2021/22 Baseline]*$B$3)","v":0},{"$f":"SUMPRODUCT(((T_DataComboFile[Implementation programme]=$G$3)*(T_DataComboFile[Econ3]=$G215))*T_DataComboFile[2021/22 Revised baseline]*$B$3)","v":0},0,{"$f":"SUMPRODUCT(((T_DataComboFile[Implementation programme]=$G$3)*(T_DataComboFile[Econ3]=$G215))*T_DataComboFile[2022/23 Baseline]*$B$3)","v":0},{"$f":"SUMPRODUCT(((T_DataComboFile[Implementation programme]=$G$3)*(T_DataComboFile[Econ3]=$G215))*T_DataComboFile[2022/23 Revised baseline]*$B$3)","v":0},0,{"$f":"SUMPRODUCT(((T_DataComboFile[Implementation programme]=$G$3)*(T_DataComboFile[Econ3]=$G215))*T_DataComboFile[2023/24 Baseline]*$B$3)","v":0},{"$f":"SUMPRODUCT(((T_DataComboFile[Implementation programme]=$G$3)*(T_DataComboFile[Econ3]=$G215))*T_DataComboFile[2023/24 Revised baseline]*$B$3)","v":0},0]
[0,5,null,null,null,null,"Payments for financial assets",{"$f":"SUMPRODUCT(((T_DataComboFile[Implementation programme]=$G$3)*(T_DataComboFile[Econ3]=$G216))*T_DataComboFile[2021/22 Baseline]*$B$3)","v":0},{"$f":"SUMPRODUCT(((T_DataComboFile[Implementation programme]=$G$3)*(T_DataComboFile[Econ3]=$G216))*T_DataComboFile[2021/22 Revised baseline]*$B$3)","v":0},0,{"$f":"SUMPRODUCT(((T_DataComboFile[Implementation programme]=$G$3)*(T_DataComboFile[Econ3]=$G216))*T_DataComboFile[2022/23 Baseline]*$B$3)","v":0},{"$f":"SUMPRODUCT(((T_DataComboFile[Implementation programme]=$G$3)*(T_DataComboFile[Econ3]=$G216))*T_DataComboFile[2022/23 Revised baseline]*$B$3)","v":0},0,{"$f":"SUMPRODUCT(((T_DataComboFile[Implementation programme]=$G$3)*(T_DataComboFile[Econ3]=$G216))*T_DataComboFile[2023/24 Baseline]*$B$3)","v":0},{"$f":"SUMPRODUCT(((T_DataComboFile[Implementation programme]=$G$3)*(T_DataComboFile[Econ3]=$G216))*T_DataComboFile[2023/24 Revised baseline]*$B$3)","v":0},0]
[0,5,null,null,null,null,"Total",{"$f":"SUM(H173,H183,H208,H216)","v":0},0,0,0,0,0,0,{"$f":"SUM(O173,O183,O208,O216)","v":0},0]
[]
[null,null,null,null,null,null,null,{"$f":"L65-H217","v":0},{"$f":"O65-I217","v":0},null,{"$f":"P65-K217","v":0},{"$f":"S65-L217","v":0},null,{"$f":"T65-N217","v":0},{"$f":"W65-O217","v":0}]

{"sheet":"IP12","index":21,"n_rows":219,"n_cols":23,"rows_kept":219,"cut":false,"hidden":false,"merged":[[70,6,70,17],[73,6,87,17],[94,16,94,20],[94,21,94,23],[95,16,95,20],[95,21,95,23],[99,16,99,20],[99,21,99,23],[100,16,100,20],[100,21,100,23],[101,16,101,20],[101,21,101,23],[96,16,96,20],[96,21,96,23],[97,16,97,20],[97,21,97,23],[98,16,98,20],[98,21,98,23],[105,16,105,20],[105,21,105,23],[106,16,106,20],[106,21,106,23],[107,16,107,20],[107,21,107,23],[102,16,102,20],[102,21,102,23],[103,16,103,20],[103,21,103,23],[104,16,104,20],[104,21,104,23],[117,16,117,20],[118,16,118,20],[119,16,119,20],[120,16,120,20],[121,16,121,20],[122,16,122,20],[108,16,108,20],[108,21,108,23],[109,16,109,20],[109,21,109,23],[110,16,110,20],[110,21,110,23],[129,16,129,20],[130,16,130,20],[131,16,131,20],[132,16,132,20],[133,16,133,20],[141,16,141,20],[123,16,123,20],[124,16,124,20],[125,16,125,20],[126,16,126,20],[127,16,127,20],[128,16,128,20],[174,16,174,20],[175,16,175,20],[176,16,176,20],[177,16,177,20],[178,16,178,20],[179,16,179,20],[142,16,142,20],[143,16,162,20],[170,16,170,20],[171,16,171,20],[172,16,172,20],[173,16,173,20],[186,16,186,20],[187,16,187,20],[188,16,188,20],[189,16,189,20],[190,16,190,20],[191,16,191,20],[180,16,180,20],[181,16,181,20],[182,16,182,20],[183,16,183,20],[184,16,184,20],[185,16,185,20],[198,16,198,20],[199,16,199,20],[200,16,200,20],[201,16,201,20],[202,16,202,20],[203,16,203,20],[192,16,192,20],[193,16,193,20],[194,16,194,20],[195,16,195,20],[196,16,196,20],[197,16,197,20],[210,16,210,20],[211,16,211,20],[212,16,212,20],[213,16,213,20],[214,16,214,20],[215,16,215,20],[204,16,204,20],[205,16,205,20],[206,16,206,20],[207,16,207,20],[208,16,208,20],[209,16,209,20]]}
[]
[null,null,null,null,null,null,"Implementation programme:"]
[null,{"$f":"IF(G3=\"\",0,1)","v":0},null,null,null,12,null,"… select from dropdown list"]
[null,null,null,null,null,null,null,null,null,null,null,null,"Growth"]
[null,null,null,null,null,null,"Quick view","2020/21","2021/22","2022/23","2023/24","Trend","2021/22","2022/23","2023/24","Ave Ann",null,"2020/21","2021/22","2022/23","2023/24"]
[null,null,null,null,null,null,"Compensation of employees",{"$f":"SUMPRODUCT(($G$32:$G$65=$G6)*($K$32:$K$65))","v":0},{"$f":"SUMPRODUCT(($G$32:$G$65=$G6)*($O$32:$O$65))","v":0},{"$f":"SUMPRODUCT(($G$32:$G$65=$G6)*($S$32:$S$65))","v":0},{"$f":"SUMPRODUCT(($G$32:$G$65=$G6)*($W$32:$W$65))","v":0},null,{"$f":"IFERROR(I6/H6-1,0)","v":0},0,0,{"$f":"IFERROR(((K6/H6)^(1/3)-1),0)","v":0}]
[null,null,null,null,null,null,"Goods and services",{"$f":"SUMPRODUCT(($G$32:$G$65=$G7)*($K$32:$K$65))","v":0},{"$f":"SUMPRODUCT(($G$32:$G$65=$G7)*($O$32:$O$65))","v":0},{"$f":"SUMPRODUCT(($G$32:$G$65=$G7)*($S$32:$S$65))","v":0},{"$f":"SUMPRODUCT(($G$32:$G$65=$G7)*($W$32:$W$65))","v":0},null,0,0,0,0]
[null,null,null,null,null,null,"Transfers and subsidies",{"$f":"SUMPRODUCT(($G$32:$G$65=$G8)*($K$32:$K$65))","v":0},{"$f":"SUMPRODUCT(($G$32:$G$65=$G8)*($O$32:$O$65))","v":0},{"$f":"SUMPRODUCT(($G$32:$G$65=$G8)*($S$32:$S$65))","v":0},{"$f":"SUMPRODUCT(($G$32:$G$65=$G8)*($W$32:$W$65))","v":0},null,0,0,0,0]
[null,null,null,null,null,null,"Payments for capital assets",{"$f":"SUMPRODUCT(($G$32:$G$65=$G9)*($K$32:$K$65))","v":0},{"$f":"SUMPRODUCT(($G$32:$G$65=$G9)*($O$32:$O$65))","v":0},{"$f":"SUMPRODUCT(($G$32:$G$65=$G9)*($S$32:$S$65))","v":0},{"$f":"SUMPRODUCT(($G$32:$G$65=$G9)*($W$32:$W$65))","v":0},null,0,0,0,0]
[null,null,null,null,null,null,"Total",{"$f":"SUMPRODUCT(($G$32:$G$65=$G10)*($K$32:$K$65))","v":0},{"$f":"SUMPRODUCT(($G$32:$G$65=$G10)*($O$32:$O$65))","v":0},{"$f":"SUMPRODUCT(($G$32:$G$65=$G10)*($S$32:$S$65))","v":0},{"$f":"SUMPRODUCT(($G$32:$G$65=$G10)*($W$32:$W$65))","v":0},null,0,0,0,0]
[null,null,null,null,null,null,"Composition of spending (% of Total)"]
[null,null,null,null,null,null,"Compensation of employees",{"$f":"IFERROR(H6/H$10,\"\")","v":""},"","","",null,null,null,null,null,null,{"$f":"IF(H12>0.0595,H12,\"\")","v":""},"","",""]
[null,null,null,null,null,null,"Goods and services","","","","",null,null,null,null,null,null,"","","",""]
[null,null,null,null,null,null,"Transfers and subsidies","","","","",null,null,null,null,null,null,"","","",""]
[null,null,null,null,null,null,"Payments for capital assets","","","","",null,null,null,null,null,null,"","","",""]
[]
[null,null,null,null,null,null,"Division of Revenue","2020/21","2021/22","2022/23","2023/24","Trend","2021/22","2022/23","2023/24","Ave Ann"]
[{"$f":"$G$3","v":0},"NAT",null,null,null,null,"National",{"$f":"SUMPRODUCT(((T_DataComboFile[Implementation programme]=$G$3)*(T_DataComboFile[DOR]=$B18))*T_DataComboFile[2020/21 Revised])","v":2331086},{"$f":"SUMPRODUCT(((T_DataComboFile[Implementation programme]=$G$3)*(T_DataComboFile[DOR]=$B18))*T_DataComboFile[2021/22 Revised baseline])","v":2583809},{"$f":"SUMPRODUCT(((T_DataComboFile[Implementation programme]=$G$3)*(T_DataComboFile[DOR]=$B18))*T_DataComboFile[2022/23 Revised baseline])","v":2617960},{"$f":"SUMPRODUCT(((T_DataComboFile[Implementation programme]=$G$3)*(T_DataComboFile[DOR]=$B18))*T_DataComboFile[2023/24 Revised baseline])","v":2733345},null,{"$f":"IFERROR(I18/H18-1,0)","v":0.10841427557799244},{"$f":"IFERROR(J18/I18-1,0)","v":1.3217308245307535E-2},{"$f":"IFERROR(K18/J18-1,0)","v":4.4074393802808309E-2},{"$f":"IFERROR(((K18/H18)^(1/3)-1),0)","v":5.449708876349435E-2}]
[0,null,null,null,null,null,"Provincial",{"$f":"SUM(H20:H21)","v":0},0,0,0,null,0,0,0,0]
[0,"PES",null,null,null,null,"Provincial equitable share",{"$f":"SUMPRODUCT(((T_DataComboFile[Implementation programme]=$G$3)*(T_DataComboFile[DOR]=$B20))*T_DataComboFile[2020/21 Revised])","v":0},{"$f":"SUMPRODUCT(((T_DataComboFile[Implementation programme]=$G$3)*(T_DataComboFile[DOR]=$B20))*T_DataComboFile[2021/22 Revised baseline])","v":0},{"$f":"SUMPRODUCT(((T_DataComboFile[Implementation programme]=$G$3)*(T_DataComboFile[DOR]=$B20))*T_DataComboFile[2022/23 Revised baseline])","v":0},{"$f":"SUMPRODUCT(((T_DataComboFile[Implementation programme]=$G$3)*(T_DataComboFile[DOR]=$B20))*T_DataComboFile[2023/24 Revised baseline])","v":0},null,{"$f":"IFERROR(I20/H20-1,0)","v":0},0,0,{"$f":"IFERROR(((K20/H20)^(1/3)-1),0)","v":0}]
[0,"PCG",null,null,null,null,"Provincial conditional grants",{"$f":"SUMPRODUCT(((T_DataComboFile[Implementation programme]=$G$3)*(T_DataComboFile[DOR]=$B21))*T_DataComboFile[2020/21 Revised])","v":0},{"$f":"SUMPRODUCT(((T_DataComboFile[Implementation programme]=$G$3)*(T_DataComboFile[DOR]=$B21))*T_DataComboFile[2021/22 Revised baseline])","v":0},{"$f":"SUMPRODUCT(((T_DataComboFile[Implementation programme]=$G$3)*(T_DataComboFile[DOR]=$B21))*T_DataComboFile[2022/23 Revised baseline])","v":0},{"$f":"SUMPRODUCT(((T_DataComboFile[Implementation programme]=$G$3)*(T_DataComboFile[DOR]=$B21))*T_DataComboFile[2023/24 Revised baseline])","v":0},null,0,0,0,0]
[0,null,null,null,null,null,"Local government",{"$f":"SUM(H23:H25)","v":0},0,0,0,null,{"$f":"IFERROR(I22/H22-1,0)","v":0},{"$f":"IFERROR(J22/I22-1,0)","v":0},{"$f":"IFERROR(K22/J22-1,0)","v":0},{"$f":"IFERROR(((K22/H22)^(1/3)-1),0)","v":0}]
[0,"LES",null,null,null,null,"Local equitable share",{"$f":"SUMPRODUCT(((T_DataComboFile[Implementation programme]=$G$3)*(T_DataComboFile[DOR]=$B23))*T_DataComboFile[2020/21 Revised])","v":0},{"$f":"SUMPRODUCT(((T_DataComboFile[Implementation programme]=$G$3)*(T_DataComboFile[DOR]=$B23))*T_DataComboFile[2021/22 Revised baseline])","v":0},{"$f":"SUMPRODUCT(((T_DataComboFile[Implementation programme]=$G$3)*(T_DataComboFile[DOR]=$B23))*T_DataComboFile[2022/23 Revised baseline])","v":0},{"$f":"SUMPRODUCT(((T_DataComboFile[Implementation programme]=$G$3)*(T_DataComboFile[DOR]=$B23))*T_DataComboFile[2023/24 Revised baseline])","v":0},null,{"$f":"IFERROR(I23/H23-1,0)","v":0},0,0,{"$f":"IFERROR(((K23/H23)^(1/3)-1),0)","v":0}]
[0,"LCG",null,null,null,null,"Local conditional grants",{"$f":"SUMPRODUCT(((T_DataComboFile[Implementation programme]=$G$3)*(T_DataComboFile[DOR]=$B24))*T_DataComboFile[2020/21 Revised])","v":0},{"$f":"SUMPRODUCT(((T_DataComboFile[Implementation programme]=$G$3)*(T_DataComboFile[DOR]=$B24))*T_DataComboFile[2021/22 Revised baseline])","v":0},{"$f":"SUMPRODUCT(((T_DataComboFile[Implementation programme]=$G$3)*(T_DataComboFile[DOR]=$B24))*T_DataComboFile[2022/23 Revised baseline])","v":0},{"$f":"SUMPRODUCT(((T_DataComboFile[Implementation programme]=$G$3)*(T_DataComboFile[DOR]=$B24))*T_DataComboFile[2023/24 Revised baseline])","v":0},null,0,0,0,0]
[0,"GFL",null,null,null,null,"General fuel levy ",{"$f":"SUMPRODUCT(((T_DataComboFile[Implementation programme]=$G$3)*(T_DataComboFile[DOR]=$B25))*T_DataComboFile[2020/21 Revised])","v":0},{"$f":"SUMPRODUCT(((T_DataComboFile[Implementation programme]=$G$3)*(T_DataComboFile[DOR]=$B25))*T_DataComboFile[2021/22 Revised baseline])","v":0},{"$f":"SUMPRODUCT(((T_DataComboFile[Implementation programme]=$G$3)*(T_DataComboFile[DOR]=$B25))*T_DataComboFile[2022/23 Revised baseline])","v":0},{"$f":"SUMPRODUCT(((T_DataComboFile[Implementation programme]=$G$3)*(T_DataComboFile[DOR]=$B25))*T_DataComboFile[2023/24 Revised baseline])","v":0},null,0,0,0,0]
[]
[]
[null,null,null,null,null,null,{"$f":"G3","v":0}]
[{"$f":"$G$3","v":0},0,null,null,null,null,null,"2017/18","2018/19","2019/20","2020/21","2021/22",null,null,null,"2022/23",null,null,null,"2023/24"]
[{"$f":"$G$3","v":0},0,null,null,null,null,"Rand thousand","Audited outcome","Audited outcome","Pre-audited outcome","Budget","Baseline","Decrease","Increase","Revised baseline","Baseline","Decrease","Increase","Revised baseline","Baseline","Decrease","Increase","Revised baseline"]
[0,0,null,null,null,null,"Economic classification"]
[0,0,null,null,null,null,"Current payments",{"$f":"SUM(H33:H35)","v":0},0,0,0,0,0,0,0,0,0,0,0,0,0,0,0]
[0,0,null,null,null,null,"Compensation of employees",{"$f":"SUMPRODUCT(((T_DataComboFile[Implementation programme]=$G$3)*(T_DataComboFile[Econ3]=$G33))*T_DataComboFile[2017/18]*$B$3)","v":0},{"$f":"SUMPRODUCT(((T_DataComboFile[Implementation programme]=$G$3)*(T_DataComboFile[Econ3]=$G33))*T_DataComboFile[2018/19]*$B$3)","v":0},{"$f":"SUMPRODUCT(((T_DataComboFile[Implementation programme]=$G$3)*(T_DataComboFile[Econ3]=$G33))*T_DataComboFile[2019/20 Revised estimate]*$B$3)","v":0},{"$f":"SUMPRODUCT(((T_DataComboFile[Implementation programme]=$G$3)*(T_DataComboFile[Econ3]=$G33))*T_DataComboFile[2020/21 Revised]*$B$3)","v":0},{"$f":"SUMPRODUCT(((T_DataComboFile[Implementation programme]=$G$3)*(T_DataComboFile[Econ3]=$G33))*T_DataComboFile[2021/22 Baseline]*$B$3)","v":0},{"$f":"SUMPRODUCT(((T_DataComboFile[Implementation programme]=$G$3)*(T_DataComboFile[Econ3]=$G33))*T_DataComboFile[2021/22 Reduction]*$B$3)","v":0},{"$f":"SUMPRODUCT(((T_DataComboFile[Implementation programme]=$G$3)*(T_DataComboFile[Econ3]=$G33))*T_DataComboFile[2021/22 Increase]*$B$3)","v":0},{"$f":"L33+M33+N33","v":0},{"$f":"SUMPRODUCT(((T_DataComboFile[Implementation programme]=$G$3)*(T_DataComboFile[Econ3]=$G33))*T_DataComboFile[2022/23 Baseline]*$B$3)","v":0},{"$f":"SUMPRODUCT(((T_DataComboFile[Implementation programme]=$G$3)*(T_DataComboFile[Econ3]=$G33))*T_DataComboFile[2022/23 Reduction]*$B$3)","v":0},{"$f":"SUMPRODUCT(((T_DataComboFile[Implementation programme]=$G$3)*(T_DataComboFile[Econ3]=$G33))*T_DataComboFile[2022/23 Increase]*$B$3)","v":0},{"$f":"P33+Q33+R33","v":0},{"$f":"SUMPRODUCT(((T_DataComboFile[Implementation programme]=$G$3)*(T_DataComboFile[Econ3]=$G33))*T_DataComboFile[2023/24 Baseline]*$B$3)","v":0},{"$f":"SUMPRODUCT(((T_DataComboFile[Implementation programme]=$G$3)*(T_DataComboFile[Econ3]=$G33))*T_DataComboFile[2023/24 Reduction]*$B$3)","v":0},{"$f":"SUMPRODUCT(((T_DataComboFile[Implementation programme]=$G$3)*(T_DataComboFile[Econ3]=$G33))*T_DataComboFile[2023/24 Increase]*$B$3)","v":0},{"$f":"T33+U33+V33","v":0}]
[0,0,null,null,null,null,"Goods and services",{"$f":"SUMPRODUCT(((T_DataComboFile[Implementation programme]=$G$3)*(T_DataComboFile[Econ3]=$G34))*T_DataComboFile[2017/18]*$B$3)","v":0},{"$f":"SUMPRODUCT(((T_DataComboFile[Implementation programme]=$G$3)*(T_DataComboFile[Econ3]=$G34))*T_DataComboFile[2018/19]*$B$3)","v":0},{"$f":"SUMPRODUCT(((T_DataComboFile[Implementation programme]=$G$3)*(T_DataComboFile[Econ3]=$G34))*T_DataComboFile[2019/20 Revised estimate]*$B$3)","v":0},{"$f":"SUMPRODUCT(((T_DataComboFile[Implementation programme]=$G$3)*(T_DataComboFile[Econ3]=$G34))*T_DataComboFile[2020/21 Revised]*$B$3)","v":0},{"$f":"SUMPRODUCT(((T_DataComboFile[Implementation programme]=$G$3)*(T_DataComboFile[Econ3]=$G34))*T_DataComboFile[2021/22 Baseline]*$B$3)","v":0},{"$f":"SUMPRODUCT(((T_DataComboFile[Implementation programme]=$G$3)*(T_DataComboFile[Econ3]=$G34))*T_DataComboFile[2021/22 Reduction]*$B$3)","v":0},{"$f":"SUMPRODUCT(((T_DataComboFile[Implementation programme]=$G$3)*(T_DataComboFile[Econ3]=$G34))*T_DataComboFile[2021/22 Increase]*$B$3)","v":0},0,{"$f":"SUMPRODUCT(((T_DataComboFile[Implementation programme]=$G$3)*(T_DataComboFile[Econ3]=$G34))*T_DataComboFile[2022/23 Baseline]*$B$3)","v":0},{"$f":"SUMPRODUCT(((T_DataComboFile[Implementation programme]=$G$3)*(T_DataComboFile[Econ3]=$G34))*T_DataComboFile[2022/23 Reduction]*$B$3)","v":0},{"$f":"SUMPRODUCT(((T_DataComboFile[Implementation programme]=$G$3)*(T_DataComboFile[Econ3]=$G34))*T_DataComboFile[2022/23 Increase]*$B$3)","v":0},0,{"$f":"SUMPRODUCT(((T_DataComboFile[Implementation programme]=$G$3)*(T_DataComboFile[Econ3]=$G34))*T_DataComboFile[2023/24 Baseline]*$B$3)","v":0},{"$f":"SUMPRODUCT(((T_DataComboFile[Implementation programme]=$G$3)*(T_DataComboFile[Econ3]=$G34))*T_DataComboFile[2023/24 Reduction]*$B$3)","v":0},{"$f":"SUMPRODUCT(((T_DataComboFile[Implementation programme]=$G$3)*(T_DataComboFile[Econ3]=$G34))*T_DataComboFile[2023/24 Increase]*$B$3)","v":0},0]
[0,0,null,null,null,null,"Interest and rent on land",{"$f":"SUMPRODUCT(((T_DataComboFile[Implementation programme]=$G$3)*(T_DataComboFile[Econ3]=$G35))*T_DataComboFile[2017/18]*$B$3)","v":0},{"$f":"SUMPRODUCT(((T_DataComboFile[Implementation programme]=$G$3)*(T_DataComboFile[Econ3]=$G35))*T_DataComboFile[2018/19]*$B$3)","v":0},{"$f":"SUMPRODUCT(((T_DataComboFile[Implementation programme]=$G$3)*(T_DataComboFile[Econ3]=$G35))*T_DataComboFile[2019/20 Revised estimate]*$B$3)","v":0},{"$f":"SUMPRODUCT(((T_DataComboFile[Implementation programme]=$G$3)*(T_DataComboFile[Econ3]=$G35))*T_DataComboFile[2020/21 Revised]*$B$3)","v":0},{"$f":"SUMPRODUCT(((T_DataComboFile[Implementation programme]=$G$3)*(T_DataComboFile[Econ3]=$G35))*T_DataComboFile[2021/22 Baseline]*$B$3)","v":0},{"$f":"SUMPRODUCT(((T_DataComboFile[Implementation programme]=$G$3)*(T_DataComboFile[Econ3]=$G35))*T_DataComboFile[2021/22 Reduction]*$B$3)","v":0},{"$f":"SUMPRODUCT(((T_DataComboFile[Implementation programme]=$G$3)*(T_DataComboFile[Econ3]=$G35))*T_DataComboFile[2021/22 Increase]*$B$3)","v":0},0,{"$f":"SUMPRODUCT(((T_DataComboFile[Implementation programme]=$G$3)*(T_DataComboFile[Econ3]=$G35))*T_DataComboFile[2022/23 Baseline]*$B$3)","v":0},{"$f":"SUMPRODUCT(((T_DataComboFile[Implementation programme]=$G$3)*(T_DataComboFile[Econ3]=$G35))*T_DataComboFile[2022/23 Reduction]*$B$3)","v":0},{"$f":"SUMPRODUCT(((T_DataComboFile[Implementation programme]=$G$3)*(T_DataComboFile[Econ3]=$G35))*T_DataComboFile[2022/23 Increase]*$B$3)","v":0},0,{"$f":"SUMPRODUCT(((T_DataComboFile[Implementation programme]=$G$3)*(T_DataComboFile[Econ3]=$G35))*T_DataComboFile[2023/24 Baseline]*$B$3)","v":0},{"$f":"SUMPRODUCT(((T_DataComboFile[Implementation programme]=$G$3)*(T_DataComboFile[Econ3]=$G35))*T_DataComboFile[2023/24 Reduction]*$B$3)","v":0},{"$f":"SUMPRODUCT(((T_DataComboFile[Implementation programme]=$G$3)*(T_DataComboFile[Econ3]=$G35))*T_DataComboFile[2023/24 Increase]*$B$3)","v":0},0]
[0,0,null,null,null,null,"Transfers and subsidies",{"$f":"SUM(H37,H40,H43:H45,H48:H49)","v":0},0,0,0,0,0,0,0,0,0,0,0,0,0,0,0]
[0,0,null,null,null,null,"Provinces and municipalities",{"$f":"SUM(H38:H39)","v":0},0,0,0,0,0,0,0,0,0,0,0,0,0,0,0]
[0,0,null,null,null,null,"Provinces",{"$f":"SUMPRODUCT(((T_DataComboFile[Implementation programme]=$G$3)*(T_DataComboFile[Econ4]=$G38))*T_DataComboFile[2017/18]*$B$3)","v":0},{"$f":"SUMPRODUCT(((T_DataComboFile[Implementation programme]=$G$3)*(T_DataComboFile[Econ4]=$G38))*T_DataComboFile[2018/19]*$B$3)","v":0},{"$f":"SUMPRODUCT(((T_DataComboFile[Implementation programme]=$G$3)*(T_DataComboFile[Econ4]=$G38))*T_DataComboFile[2019/20 Revised estimate]*$B$3)","v":0},{"$f":"SUMPRODUCT(((T_DataComboFile[Implementation programme]=$G$3)*(T_DataComboFile[Econ4]=$G38))*T_DataComboFile[2020/21 Revised]*$B$3)","v":0},{"$f":"SUMPRODUCT(((T_DataComboFile[Implementation programme]=$G$3)*(T_DataComboFile[Econ4]=$G38))*T_DataComboFile[2021/22 Baseline]*$B$3)","v":0},{"$f":"SUMPRODUCT(((T_DataComboFile[Implementation programme]=$G$3)*(T_DataComboFile[Econ4]=$G38))*T_DataComboFile[2021/22 Reduction]*$B$3)","v":0},{"$f":"SUMPRODUCT(((T_DataComboFile[Implementation programme]=$G$3)*(T_DataComboFile[Econ4]=$G38))*T_DataComboFile[2021/22 Increase]*$B$3)","v":0},{"$f":"L38+M38+N38","v":0},{"$f":"SUMPRODUCT(((T_DataComboFile[Implementation programme]=$G$3)*(T_DataComboFile[Econ4]=$G38))*T_DataComboFile[2022/23 Baseline]*$B$3)","v":0},{"$f":"SUMPRODUCT(((T_DataComboFile[Implementation programme]=$G$3)*(T_DataComboFile[Econ4]=$G38))*T_DataComboFile[2022/23 Reduction]*$B$3)","v":0},{"$f":"SUMPRODUCT(((T_DataComboFile[Implementation programme]=$G$3)*(T_DataComboFile[Econ4]=$G38))*T_DataComboFile[2022/23 Increase]*$B$3)","v":0},{"$f":"P38+Q38+R38","v":0},{"$f":"SUMPRODUCT(((T_DataComboFile[Implementation programme]=$G$3)*(T_DataComboFile[Econ4]=$G38))*T_DataComboFile[2023/24 Baseline]*$B$3)","v":0},{"$f":"SUMPRODUCT(((T_DataComboFile[Implementation programme]=$G$3)*(T_DataComboFile[Econ4]=$G38))*T_DataComboFile[2023/24 Reduction]*$B$3)","v":0},{"$f":"SUMPRODUCT(((T_DataComboFile[Implementation programme]=$G$3)*(T_DataComboFile[Econ4]=$G38))*T_DataComboFile[2023/24 Increase]*$B$3)","v":0},{"$f":"T38+U38+V38","v":0}]
[0,0,null,null,null,null,"Municipalities",{"$f":"SUMPRODUCT(((T_DataComboFile[Implementation programme]=$G$3)*(T_DataComboFile[Econ4]=$G39))*T_DataComboFile[2017/18]*$B$3)","v":0},{"$f":"SUMPRODUCT(((T_DataComboFile[Implementation programme]=$G$3)*(T_DataComboFile[Econ4]=$G39))*T_DataComboFile[2018/19]*$B$3)","v":0},{"$f":"SUMPRODUCT(((T_DataComboFile[Implementation programme]=$G$3)*(T_DataComboFile[Econ4]=$G39))*T_DataComboFile[2019/20 Revised estimate]*$B$3)","v":0},{"$f":"SUMPRODUCT(((T_DataComboFile[Implementation programme]=$G$3)*(T_DataComboFile[Econ4]=$G39))*T_DataComboFile[2020/21 Revised]*$B$3)","v":0},{"$f":"SUMPRODUCT(((T_DataComboFile[Implementation programme]=$G$3)*(T_DataComboFile[Econ4]=$G39))*T_DataComboFile[2021/22 Baseline]*$B$3)","v":0},{"$f":"SUMPRODUCT(((T_DataComboFile[Implementation programme]=$G$3)*(T_DataComboFile[Econ4]=$G39))*T_DataComboFile[2021/22 Reduction]*$B$3)","v":0},{"$f":"SUMPRODUCT(((T_DataComboFile[Implementation programme]=$G$3)*(T_DataComboFile[Econ4]=$G39))*T_DataComboFile[2021/22 Increase]*$B$3)","v":0},0,{"$f":"SUMPRODUCT(((T_DataComboFile[Implementation programme]=$G$3)*(T_DataComboFile[Econ4]=$G39))*T_DataComboFile[2022/23 Baseline]*$B$3)","v":0},{"$f":"SUMPRODUCT(((T_DataComboFile[Implementation programme]=$G$3)*(T_DataComboFile[Econ4]=$G39))*T_DataComboFile[2022/23 Reduction]*$B$3)","v":0},{"$f":"SUMPRODUCT(((T_DataComboFile[Implementation programme]=$G$3)*(T_DataComboFile[Econ4]=$G39))*T_DataComboFile[2022/23 Increase]*$B$3)","v":0},0,{"$f":"SUMPRODUCT(((T_DataComboFile[Implementation programme]=$G$3)*(T_DataComboFile[Econ4]=$G39))*T_DataComboFile[2023/24 Baseline]*$B$3)","v":0},{"$f":"SUMPRODUCT(((T_DataComboFile[Implementation programme]=$G$3)*(T_DataComboFile[Econ4]=$G39))*T_DataComboFile[2023/24 Reduction]*$B$3)","v":0},{"$f":"SUMPRODUCT(((T_DataComboFile[Implementation programme]=$G$3)*(T_DataComboFile[Econ4]=$G39))*T_DataComboFile[2023/24 Increase]*$B$3)","v":0},0]
[0,0,null,null,null,null,"Departmental agencies and accounts",{"$f":"SUM(H41:H42)","v":0},0,0,0,0,0,0,0,0,0,0,0,0,0,0,0]
[0,0,null,null,null,null,"Social security funds",{"$f":"SUMPRODUCT(((T_DataComboFile[Implementation programme]=$G$3)*(T_DataComboFile[Econ4]=$G41))*T_DataComboFile[2017/18]*$B$3)","v":0},{"$f":"SUMPRODUCT(((T_DataComboFile[Implementation programme]=$G$3)*(T_DataComboFile[Econ4]=$G41))*T_DataComboFile[2018/19]*$B$3)","v":0},{"$f":"SUMPRODUCT(((T_DataComboFile[Implementation programme]=$G$3)*(T_DataComboFile[Econ4]=$G41))*T_DataComboFile[2019/20 Revised estimate]*$B$3)","v":0},{"$f":"SUMPRODUCT(((T_DataComboFile[Implementation programme]=$G$3)*(T_DataComboFile[Econ4]=$G41))*T_DataComboFile[2020/21 Revised]*$B$3)","v":0},{"$f":"SUMPRODUCT(((T_DataComboFile[Implementation programme]=$G$3)*(T_DataComboFile[Econ4]=$G41))*T_DataComboFile[2021/22 Baseline]*$B$3)","v":0},{"$f":"SUMPRODUCT(((T_DataComboFile[Implementation programme]=$G$3)*(T_DataComboFile[Econ4]=$G41))*T_DataComboFile[2021/22 Reduction]*$B$3)","v":0},{"$f":"SUMPRODUCT(((T_DataComboFile[Implementation programme]=$G$3)*(T_DataComboFile[Econ4]=$G41))*T_DataComboFile[2021/22 Increase]*$B$3)","v":0},{"$f":"L41+M41+N41","v":0},{"$f":"SUMPRODUCT(((T_DataComboFile[Implementation programme]=$G$3)*(T_DataComboFile[Econ4]=$G41))*T_DataComboFile[2022/23 Baseline]*$B$3)","v":0},{"$f":"SUMPRODUCT(((T_DataComboFile[Implementation programme]=$G$3)*(T_DataComboFile[Econ4]=$G41))*T_DataComboFile[2022/23 Reduction]*$B$3)","v":0},{"$f":"SUMPRODUCT(((T_DataComboFile[Implementation programme]=$G$3)*(T_DataComboFile[Econ4]=$G41))*T_DataComboFile[2022/23 Increase]*$B$3)","v":0},{"$f":"P41+Q41+R41","v":0},{"$f":"SUMPRODUCT(((T_DataComboFile[Implementation programme]=$G$3)*(T_DataComboFile[Econ4]=$G41))*T_DataComboFile[2023/24 Baseline]*$B$3)","v":0},{"$f":"SUMPRODUCT(((T_DataComboFile[Implementation programme]=$G$3)*(T_DataComboFile[Econ4]=$G41))*T_DataComboFile[2023/24 Reduction]*$B$3)","v":0},{"$f":"SUMPRODUCT(((T_DataComboFile[Implementation programme]=$G$3)*(T_DataComboFile[Econ4]=$G41))*T_DataComboFile[2023/24 Increase]*$B$3)","v":0},{"$f":"T41+U41+V41","v":0}]
[0,0,null,null,null,null,"Departmental agencies (non-business entities)",{"$f":"SUMPRODUCT(((T_DataComboFile[Implementation programme]=$G$3)*(T_DataComboFile[Econ4]=$G42))*T_DataComboFile[2017/18]*$B$3)","v":0},{"$f":"SUMPRODUCT(((T_DataComboFile[Implementation programme]=$G$3)*(T_DataComboFile[Econ4]=$G42))*T_DataComboFile[2018/19]*$B$3)","v":0},{"$f":"SUMPRODUCT(((T_DataComboFile[Implementation programme]=$G$3)*(T_DataComboFile[Econ4]=$G42))*T_DataComboFile[2019/20 Revised estimate]*$B$3)","v":0},{"$f":"SUMPRODUCT(((T_DataComboFile[Implementation programme]=$G$3)*(T_DataComboFile[Econ4]=$G42))*T_DataComboFile[2020/21 Revised]*$B$3)","v":0},{"$f":"SUMPRODUCT(((T_DataComboFile[Implementation programme]=$G$3)*(T_DataComboFile[Econ4]=$G42))*T_DataComboFile[2021/22 Baseline]*$B$3)","v":0},{"$f":"SUMPRODUCT(((T_DataComboFile[Implementation programme]=$G$3)*(T_DataComboFile[Econ4]=$G42))*T_DataComboFile[2021/22 Reduction]*$B$3)","v":0},{"$f":"SUMPRODUCT(((T_DataComboFile[Implementation programme]=$G$3)*(T_DataComboFile[Econ4]=$G42))*T_DataComboFile[2021/22 Increase]*$B$3)","v":0},0,{"$f":"SUMPRODUCT(((T_DataComboFile[Implementation programme]=$G$3)*(T_DataComboFile[Econ4]=$G42))*T_DataComboFile[2022/23 Baseline]*$B$3)","v":0},{"$f":"SUMPRODUCT(((T_DataComboFile[Implementation programme]=$G$3)*(T_DataComboFile[Econ4]=$G42))*T_DataComboFile[2022/23 Reduction]*$B$3)","v":0},{"$f":"SUMPRODUCT(((T_DataComboFile[Implementation programme]=$G$3)*(T_DataComboFile[Econ4]=$G42))*T_DataComboFile[2022/23 Increase]*$B$3)","v":0},0,{"$f":"SUMPRODUCT(((T_DataComboFile[Implementation programme]=$G$3)*(T_DataComboFile[Econ4]=$G42))*T_DataComboFile[2023/24 Baseline]*$B$3)","v":0},{"$f":"SUMPRODUCT(((T_DataComboFile[Implementation programme]=$G$3)*(T_DataComboFile[Econ4]=$G42))*T_DataComboFile[2023/24 Reduction]*$B$3)","v":0},{"$f":"SUMPRODUCT(((T_DataComboFile[Implementation programme]=$G$3)*(T_DataComboFile[Econ4]=$G42))*T_DataComboFile[2023/24 Increase]*$B$3)","v":0},0]
[0,0,null,null,null,null,"Higher education institutions",{"$f":"SUMPRODUCT(((T_DataComboFile[Implementation programme]=$G$3)*(T_DataComboFile[Econ3]=$G43))*T_DataComboFile[2017/18]*$B$3)","v":0},{"$f":"SUMPRODUCT(((T_DataComboFile[Implementation programme]=$G$3)*(T_DataComboFile[Econ3]=$G43))*T_DataComboFile[2018/19]*$B$3)","v":0},{"$f":"SUMPRODUCT(((T_DataComboFile[Implementation programme]=$G$3)*(T_DataComboFile[Econ3]=$G43))*T_DataComboFile[2019/20 Revised estimate]*$B$3)","v":0},{"$f":"SUMPRODUCT(((T_DataComboFile[Implementation programme]=$G$3)*(T_DataComboFile[Econ3]=$G43))*T_DataComboFile[2020/21 Revised]*$B$3)","v":0},{"$f":"SUMPRODUCT(((T_DataComboFile[Implementation programme]=$G$3)*(T_DataComboFile[Econ3]=$G43))*T_DataComboFile[2021/22 Baseline]*$B$3)","v":0},{"$f":"SUMPRODUCT(((T_DataComboFile[Implementation programme]=$G$3)*(T_DataComboFile[Econ3]=$G43))*T_DataComboFile[2021/22 Reduction]*$B$3)","v":0},{"$f":"SUMPRODUCT(((T_DataComboFile[Implementation programme]=$G$3)*(T_DataComboFile[Econ3]=$G43))*T_DataComboFile[2021/22 Increase]*$B$3)","v":0},0,{"$f":"SUMPRODUCT(((T_DataComboFile[Implementation programme]=$G$3)*(T_DataComboFile[Econ3]=$G43))*T_DataComboFile[2022/23 Baseline]*$B$3)","v":0},{"$f":"SUMPRODUCT(((T_DataComboFile[Implementation programme]=$G$3)*(T_DataComboFile[Econ3]=$G43))*T_DataComboFile[2022/23 Reduction]*$B$3)","v":0},{"$f":"SUMPRODUCT(((T_DataComboFile[Implementation programme]=$G$3)*(T_DataComboFile[Econ3]=$G43))*T_DataComboFile[2022/23 Increase]*$B$3)","v":0},0,{"$f":"SUMPRODUCT(((T_DataComboFile[Implementation programme]=$G$3)*(T_DataComboFile[Econ3]=$G43))*T_DataComboFile[2023/24 Baseline]*$B$3)","v":0},{"$f":"SUMPRODUCT(((T_DataComboFile[Implementation programme]=$G$3)*(T_DataComboFile[Econ3]=$G43))*T_DataComboFile[2023/24 Reduction]*$B$3)","v":0},{"$f":"SUMPRODUCT(((T_DataComboFile[Implementation programme]=$G$3)*(T_DataComboFile[Econ3]=$G43))*T_DataComboFile[2023/24 Increase]*$B$3)","v":0},0]
[0,0,null,null,null,null,"Foreign governments and international organisations",{"$f":"SUMPRODUCT(((T_DataComboFile[Implementation programme]=$G$3)*(T_DataComboFile[Econ3]=$G44))*T_DataComboFile[2017/18]*$B$3)","v":0},{"$f":"SUMPRODUCT(((T_DataComboFile[Implementation programme]=$G$3)*(T_DataComboFile[Econ3]=$G44))*T_DataComboFile[2018/19]*$B$3)","v":0},{"$f":"SUMPRODUCT(((T_DataComboFile[Implementation programme]=$G$3)*(T_DataComboFile[Econ3]=$G44))*T_DataComboFile[2019/20 Revised estimate]*$B$3)","v":0},{"$f":"SUMPRODUCT(((T_DataComboFile[Implementation programme]=$G$3)*(T_DataComboFile[Econ3]=$G44))*T_DataComboFile[2020/21 Revised]*$B$3)","v":0},{"$f":"SUMPRODUCT(((T_DataComboFile[Implementation programme]=$G$3)*(T_DataComboFile[Econ3]=$G44))*T_DataComboFile[2021/22 Baseline]*$B$3)","v":0},{"$f":"SUMPRODUCT(((T_DataComboFile[Implementation programme]=$G$3)*(T_DataComboFile[Econ3]=$G44))*T_DataComboFile[2021/22 Reduction]*$B$3)","v":0},{"$f":"SUMPRODUCT(((T_DataComboFile[Implementation programme]=$G$3)*(T_DataComboFile[Econ3]=$G44))*T_DataComboFile[2021/22 Increase]*$B$3)","v":0},0,{"$f":"SUMPRODUCT(((T_DataComboFile[Implementation programme]=$G$3)*(T_DataComboFile[Econ3]=$G44))*T_DataComboFile[2022/23 Baseline]*$B$3)","v":0},{"$f":"SUMPRODUCT(((T_DataComboFile[Implementation programme]=$G$3)*(T_DataComboFile[Econ3]=$G44))*T_DataComboFile[2022/23 Reduction]*$B$3)","v":0},{"$f":"SUMPRODUCT(((T_DataComboFile[Implementation programme]=$G$3)*(T_DataComboFile[Econ3]=$G44))*T_DataComboFile[2022/23 Increase]*$B$3)","v":0},0,{"$f":"SUMPRODUCT(((T_DataComboFile[Implementation programme]=$G$3)*(T_DataComboFile[Econ3]=$G44))*T_DataComboFile[2023/24 Baseline]*$B$3)","v":0},{"$f":"SUMPRODUCT(((T_DataComboFile[Implementation programme]=$G$3)*(T_DataComboFile[Econ3]=$G44))*T_DataComboFile[2023/24 Reduction]*$B$3)","v":0},{"$f":"SUMPRODUCT(((T_DataComboFile[Implementation programme]=$G$3)*(T_DataComboFile[Econ3]=$G44))*T_DataComboFile[2023/24 Increase]*$B$3)","v":0},0]
[0,0,null,null,null,null,"Public corporations and private enterprises",{"$f":"SUM(H46:H47)","v":0},0,0,0,0,0,0,0,0,0,0,0,0,0,0,0]
[0,0,null,null,null,null,"Public corporations",{"$f":"SUMPRODUCT(((T_DataComboFile[Implementation programme]=$G$3)*(T_DataComboFile[Econ4]=$G46))*T_DataComboFile[2017/18]*$B$3)","v":0},{"$f":"SUMPRODUCT(((T_DataComboFile[Implementation programme]=$G$3)*(T_DataComboFile[Econ4]=$G46))*T_DataComboFile[2018/19]*$B$3)","v":0},{"$f":"SUMPRODUCT(((T_DataComboFile[Implementation programme]=$G$3)*(T_DataComboFile[Econ4]=$G46))*T_DataComboFile[2019/20 Revised estimate]*$B$3)","v":0},{"$f":"SUMPRODUCT(((T_DataComboFile[Implementation programme]=$G$3)*(T_DataComboFile[Econ4]=$G46))*T_DataComboFile[2020/21 Revised]*$B$3)","v":0},{"$f":"SUMPRODUCT(((T_DataComboFile[Implementation programme]=$G$3)*(T_DataComboFile[Econ4]=$G46))*T_DataComboFile[2021/22 Baseline]*$B$3)","v":0},{"$f":"SUMPRODUCT(((T_DataComboFile[Implementation programme]=$G$3)*(T_DataComboFile[Econ4]=$G46))*T_DataComboFile[2021/22 Reduction]*$B$3)","v":0},{"$f":"SUMPRODUCT(((T_DataComboFile[Implementation programme]=$G$3)*(T_DataComboFile[Econ4]=$G46))*T_DataComboFile[2021/22 Increase]*$B$3)","v":0},{"$f":"L46+M46+N46","v":0},{"$f":"SUMPRODUCT(((T_DataComboFile[Implementation programme]=$G$3)*(T_DataComboFile[Econ4]=$G46))*T_DataComboFile[2022/23 Baseline]*$B$3)","v":0},{"$f":"SUMPRODUCT(((T_DataComboFile[Implementation programme]=$G$3)*(T_DataComboFile[Econ4]=$G46))*T_DataComboFile[2022/23 Reduction]*$B$3)","v":0},{"$f":"SUMPRODUCT(((T_DataComboFile[Implementation programme]=$G$3)*(T_DataComboFile[Econ4]=$G46))*T_DataComboFile[2022/23 Increase]*$B$3)","v":0},{"$f":"P46+Q46+R46","v":0},{"$f":"SUMPRODUCT(((T_DataComboFile[Implementation programme]=$G$3)*(T_DataComboFile[Econ4]=$G46))*T_DataComboFile[2023/24 Baseline]*$B$3)","v":0},{"$f":"SUMPRODUCT(((T_DataComboFile[Implementation programme]=$G$3)*(T_DataComboFile[Econ4]=$G46))*T_DataComboFile[2023/24 Reduction]*$B$3)","v":0},{"$f":"SUMPRODUCT(((T_DataComboFile[Implementation programme]=$G$3)*(T_DataComboFile[Econ4]=$G46))*T_DataComboFile[2023/24 Increase]*$B$3)","v":0},{"$f":"T46+U46+V46","v":0}]
[0,0,null,null,null,null,"Private enterprises",{"$f":"SUMPRODUCT(((T_DataComboFile[Implementation programme]=$G$3)*(T_DataComboFile[Econ4]=$G47))*T_DataComboFile[2017/18]*$B$3)","v":0},{"$f":"SUMPRODUCT(((T_DataComboFile[Implementation programme]=$G$3)*(T_DataComboFile[Econ4]=$G47))*T_DataComboFile[2018/19]*$B$3)","v":0},{"$f":"SUMPRODUCT(((T_DataComboFile[Implementation programme]=$G$3)*(T_DataComboFile[Econ4]=$G47))*T_DataComboFile[2019/20 Revised estimate]*$B$3)","v":0},{"$f":"SUMPRODUCT(((T_DataComboFile[Implementation programme]=$G$3)*(T_DataComboFile[Econ4]=$G47))*T_DataComboFile[2020/21 Revised]*$B$3)","v":0},{"$f":"SUMPRODUCT(((T_DataComboFile[Implementation programme]=$G$3)*(T_DataComboFile[Econ4]=$G47))*T_DataComboFile[2021/22 Baseline]*$B$3)","v":0},{"$f":"SUMPRODUCT(((T_DataComboFile[Implementation programme]=$G$3)*(T_DataComboFile[Econ4]=$G47))*T_DataComboFile[2021/22 Reduction]*$B$3)","v":0},{"$f":"SUMPRODUCT(((T_DataComboFile[Implementation programme]=$G$3)*(T_DataComboFile[Econ4]=$G47))*T_DataComboFile[2021/22 Increase]*$B$3)","v":0},0,{"$f":"SUMPRODUCT(((T_DataComboFile[Implementation programme]=$G$3)*(T_DataComboFile[Econ4]=$G47))*T_DataComboFile[2022/23 Baseline]*$B$3)","v":0},{"$f":"SUMPRODUCT(((T_DataComboFile[Implementation programme]=$G$3)*(T_DataComboFile[Econ4]=$G47))*T_DataComboFile[2022/23 Reduction]*$B$3)","v":0},{"$f":"SUMPRODUCT(((T_DataComboFile[Implementation programme]=$G$3)*(T_DataComboFile[Econ4]=$G47))*T_DataComboFile[2022/23 Increase]*$B$3)","v":0},0,{"$f":"SUMPRODUCT(((T_DataComboFile[Implementation programme]=$G$3)*(T_DataComboFile[Econ4]=$G47))*T_DataComboFile[2023/24 Baseline]*$B$3)","v":0},{"$f":"SUMPRODUCT(((T_DataComboFile[Implementation programme]=$G$3)*(T_DataComboFile[Econ4]=$G47))*T_DataComboFile[2023/24 Reduction]*$B$3)","v":0},{"$f":"SUMPRODUCT(((T_DataComboFile[Implementation programme]=$G$3)*(T_DataComboFile[Econ4]=$G47))*T_DataComboFile[2023/24 Increase]*$B$3)","v":0},0]
[0,0,null,null,null,null,"Non-profit institutions",{"$f":"SUMPRODUCT(((T_DataComboFile[Implementation programme]=$G$3)*(T_DataComboFile[Econ3]=$G48))*T_DataComboFile[2017/18]*$B$3)","v":0},{"$f":"SUMPRODUCT(((T_DataComboFile[Implementation programme]=$G$3)*(T_DataComboFile[Econ3]=$G48))*T_DataComboFile[2018/19]*$B$3)","v":0},{"$f":"SUMPRODUCT(((T_DataComboFile[Implementation programme]=$G$3)*(T_DataComboFile[Econ3]=$G48))*T_DataComboFile[2019/20 Revised estimate]*$B$3)","v":0},{"$f":"SUMPRODUCT(((T_DataComboFile[Implementation programme]=$G$3)*(T_DataComboFile[Econ3]=$G48))*T_DataComboFile[2020/21 Revised]*$B$3)","v":0},{"$f":"SUMPRODUCT(((T_DataComboFile[Implementation programme]=$G$3)*(T_DataComboFile[Econ3]=$G48))*T_DataComboFile[2021/22 Baseline]*$B$3)","v":0},{"$f":"SUMPRODUCT(((T_DataComboFile[Implementation programme]=$G$3)*(T_DataComboFile[Econ3]=$G48))*T_DataComboFile[2021/22 Reduction]*$B$3)","v":0},{"$f":"SUMPRODUCT(((T_DataComboFile[Implementation programme]=$G$3)*(T_DataComboFile[Econ3]=$G48))*T_DataComboFile[2021/22 Increase]*$B$3)","v":0},0,{"$f":"SUMPRODUCT(((T_DataComboFile[Implementation programme]=$G$3)*(T_DataComboFile[Econ3]=$G48))*T_DataComboFile[2022/23 Baseline]*$B$3)","v":0},{"$f":"SUMPRODUCT(((T_DataComboFile[Implementation programme]=$G$3)*(T_DataComboFile[Econ3]=$G48))*T_DataComboFile[2022/23 Reduction]*$B$3)","v":0},{"$f":"SUMPRODUCT(((T_DataComboFile[Implementation programme]=$G$3)*(T_DataComboFile[Econ3]=$G48))*T_DataComboFile[2022/23 Increase]*$B$3)","v":0},0,{"$f":"SUMPRODUCT(((T_DataComboFile[Implementation programme]=$G$3)*(T_DataComboFile[Econ3]=$G48))*T_DataComboFile[2023/24 Baseline]*$B$3)","v":0},{"$f":"SUMPRODUCT(((T_DataComboFile[Implementation programme]=$G$3)*(T_DataComboFile[Econ3]=$G48))*T_DataComboFile[2023/24 Reduction]*$B$3)","v":0},{"$f":"SUMPRODUCT(((T_DataComboFile[Implementation programme]=$G$3)*(T_DataComboFile[Econ3]=$G48))*T_DataComboFile[2023/24 Increase]*$B$3)","v":0},0]
[0,0,null,null,null,null,"Households",{"$f":"SUM(H50:H51)","v":0},0,0,0,0,0,0,0,0,0,0,0,0,0,0,0]
[0,0,null,null,null,null,"Social benefits",{"$f":"SUMPRODUCT(((T_DataComboFile[Implementation programme]=$G$3)*(T_DataComboFile[Econ4]=$G50))*T_DataComboFile[2017/18]*$B$3)","v":0},{"$f":"SUMPRODUCT(((T_DataComboFile[Implementation programme]=$G$3)*(T_DataComboFile[Econ4]=$G50))*T_DataComboFile[2018/19]*$B$3)","v":0},{"$f":"SUMPRODUCT(((T_DataComboFile[Implementation programme]=$G$3)*(T_DataComboFile[Econ4]=$G50))*T_DataComboFile[2019/20 Revised estimate]*$B$3)","v":0},{"$f":"SUMPRODUCT(((T_DataComboFile[Implementation programme]=$G$3)*(T_DataComboFile[Econ4]=$G50))*T_DataComboFile[2020/21 Revised]*$B$3)","v":0},{"$f":"SUMPRODUCT(((T_DataComboFile[Implementation programme]=$G$3)*(T_DataComboFile[Econ4]=$G50))*T_DataComboFile[2021/22 Baseline]*$B$3)","v":0},{"$f":"SUMPRODUCT(((T_DataComboFile[Implementation programme]=$G$3)*(T_DataComboFile[Econ4]=$G50))*T_DataComboFile[2021/22 Reduction]*$B$3)","v":0},{"$f":"SUMPRODUCT(((T_DataComboFile[Implementation programme]=$G$3)*(T_DataComboFile[Econ4]=$G50))*T_DataComboFile[2021/22 Increase]*$B$3)","v":0},{"$f":"L50+M50+N50","v":0},{"$f":"SUMPRODUCT(((T_DataComboFile[Implementation programme]=$G$3)*(T_DataComboFile[Econ4]=$G50))*T_DataComboFile[2022/23 Baseline]*$B$3)","v":0},{"$f":"SUMPRODUCT(((T_DataComboFile[Implementation programme]=$G$3)*(T_DataComboFile[Econ4]=$G50))*T_DataComboFile[2022/23 Reduction]*$B$3)","v":0},{"$f":"SUMPRODUCT(((T_DataComboFile[Implementation programme]=$G$3)*(T_DataComboFile[Econ4]=$G50))*T_DataComboFile[2022/23 Increase]*$B$3)","v":0},{"$f":"P50+Q50+R50","v":0},{"$f":"SUMPRODUCT(((T_DataComboFile[Implementation programme]=$G$3)*(T_DataComboFile[Econ4]=$G50))*T_DataComboFile[2023/24 Baseline]*$B$3)","v":0},{"$f":"SUMPRODUCT(((T_DataComboFile[Implementation programme]=$G$3)*(T_DataComboFile[Econ4]=$G50))*T_DataComboFile[2023/24 Reduction]*$B$3)","v":0},{"$f":"SUMPRODUCT(((T_DataComboFile[Implementation programme]=$G$3)*(T_DataComboFile[Econ4]=$G50))*T_DataComboFile[2023/24 Increase]*$B$3)","v":0},{"$f":"T50+U50+V50","v":0}]
[0,0,null,null,null,null,"Other transfers to households",{"$f":"SUMPRODUCT(((T_DataComboFile[Implementation programme]=$G$3)*(T_DataComboFile[Econ4]=$G51))*T_DataComboFile[2017/18]*$B$3)","v":0},{"$f":"SUMPRODUCT(((T_DataComboFile[Implementation programme]=$G$3)*(T_DataComboFile[Econ4]=$G51))*T_DataComboFile[2018/19]*$B$3)","v":0},{"$f":"SUMPRODUCT(((T_DataComboFile[Implementation programme]=$G$3)*(T_DataComboFile[Econ4]=$G51))*T_DataComboFile[2019/20 Revised estimate]*$B$3)","v":0},{"$f":"SUMPRODUCT(((T_DataComboFile[Implementation programme]=$G$3)*(T_DataComboFile[Econ4]=$G51))*T_DataComboFile[2020/21 Revised]*$B$3)","v":0},{"$f":"SUMPRODUCT(((T_DataComboFile[Implementation programme]=$G$3)*(T_DataComboFile[Econ4]=$G51))*T_DataComboFile[2021/22 Baseline]*$B$3)","v":0},{"$f":"SUMPRODUCT(((T_DataComboFile[Implementation programme]=$G$3)*(T_DataComboFile[Econ4]=$G51))*T_DataComboFile[2021/22 Reduction]*$B$3)","v":0},{"$f":"SUMPRODUCT(((T_DataComboFile[Implementation programme]=$G$3)*(T_DataComboFile[Econ4]=$G51))*T_DataComboFile[2021/22 Increase]*$B$3)","v":0},0,{"$f":"SUMPRODUCT(((T_DataComboFile[Implementation programme]=$G$3)*(T_DataComboFile[Econ4]=$G51))*T_DataComboFile[2022/23 Baseline]*$B$3)","v":0},{"$f":"SUMPRODUCT(((T_DataComboFile[Implementation programme]=$G$3)*(T_DataComboFile[Econ4]=$G51))*T_DataComboFile[2022/23 Reduction]*$B$3)","v":0},{"$f":"SUMPRODUCT(((T_DataComboFile[Implementation programme]=$G$3)*(T_DataComboFile[Econ4]=$G51))*T_DataComboFile[2022/23 Increase]*$B$3)","v":0},0,{"$f":"SUMPRODUCT(((T_DataComboFile[Implementation programme]=$G$3)*(T_DataComboFile[Econ4]=$G51))*T_DataComboFile[2023/24 Baseline]*$B$3)","v":0},{"$f":"SUMPRODUCT(((T_DataComboFile[Implementation programme]=$G$3)*(T_DataComboFile[Econ4]=$G51))*T_DataComboFile[2023/24 Reduction]*$B$3)","v":0},{"$f":"SUMPRODUCT(((T_DataComboFile[Implementation programme]=$G$3)*(T_DataComboFile[Econ4]=$G51))*T_DataComboFile[2023/24 Increase]*$B$3)","v":0},0]
[0,0,null,null,null,null,"Payments for capital assets",{"$f":"SUM(H53,H56,H59:H63)","v":0},0,0,0,0,0,0,0,0,0,0,0,0,0,0,0]
[0,0,null,null,null,null,"Buildings and other fixed structures",{"$f":"SUM(H54:H55)","v":0},0,0,0,0,0,0,0,0,0,0,0,0,0,0,0]
[0,0,null,null,null,null,"Buildings",{"$f":"SUMPRODUCT(((T_DataComboFile[Implementation programme]=$G$3)*(T_DataComboFile[Econ4]=$G54))*T_DataComboFile[2017/18]*$B$3)","v":0},{"$f":"SUMPRODUCT(((T_DataComboFile[Implementation programme]=$G$3)*(T_DataComboFile[Econ4]=$G54))*T_DataComboFile[2018/19]*$B$3)","v":0},{"$f":"SUMPRODUCT(((T_DataComboFile[Implementation programme]=$G$3)*(T_DataComboFile[Econ4]=$G54))*T_DataComboFile[2019/20 Revised estimate]*$B$3)","v":0},{"$f":"SUMPRODUCT(((T_DataComboFile[Implementation programme]=$G$3)*(T_DataComboFile[Econ4]=$G54))*T_DataComboFile[2020/21 Revised]*$B$3)","v":0},{"$f":"SUMPRODUCT(((T_DataComboFile[Implementation programme]=$G$3)*(T_DataComboFile[Econ4]=$G54))*T_DataComboFile[2021/22 Baseline]*$B$3)","v":0},{"$f":"SUMPRODUCT(((T_DataComboFile[Implementation programme]=$G$3)*(T_DataComboFile[Econ4]=$G54))*T_DataComboFile[2021/22 Reduction]*$B$3)","v":0},{"$f":"SUMPRODUCT(((T_DataComboFile[Implementation programme]=$G$3)*(T_DataComboFile[Econ4]=$G54))*T_DataComboFile[2021/22 Increase]*$B$3)","v":0},{"$f":"L54+M54+N54","v":0},{"$f":"SUMPRODUCT(((T_DataComboFile[Implementation programme]=$G$3)*(T_DataComboFile[Econ4]=$G54))*T_DataComboFile[2022/23 Baseline]*$B$3)","v":0},{"$f":"SUMPRODUCT(((T_DataComboFile[Implementation programme]=$G$3)*(T_DataComboFile[Econ4]=$G54))*T_DataComboFile[2022/23 Reduction]*$B$3)","v":0},{"$f":"SUMPRODUCT(((T_DataComboFile[Implementation programme]=$G$3)*(T_DataComboFile[Econ4]=$G54))*T_DataComboFile[2022/23 Increase]*$B$3)","v":0},{"$f":"P54+Q54+R54","v":0},{"$f":"SUMPRODUCT(((T_DataComboFile[Implementation programme]=$G$3)*(T_DataComboFile[Econ4]=$G54))*T_DataComboFile[2023/24 Baseline]*$B$3)","v":0},{"$f":"SUMPRODUCT(((T_DataComboFile[Implementation programme]=$G$3)*(T_DataComboFile[Econ4]=$G54))*T_DataComboFile[2023/24 Reduction]*$B$3)","v":0},{"$f":"SUMPRODUCT(((T_DataComboFile[Implementation programme]=$G$3)*(T_DataComboFile[Econ4]=$G54))*T_DataComboFile[2023/24 Increase]*$B$3)","v":0},{"$f":"T54+U54+V54","v":0}]
[0,0,null,null,null,null,"Other fixed structures",{"$f":"SUMPRODUCT(((T_DataComboFile[Implementation programme]=$G$3)*(T_DataComboFile[Econ4]=$G55))*T_DataComboFile[2017/18]*$B$3)","v":0},{"$f":"SUMPRODUCT(((T_DataComboFile[Implementation programme]=$G$3)*(T_DataComboFile[Econ4]=$G55))*T_DataComboFile[2018/19]*$B$3)","v":0},{"$f":"SUMPRODUCT(((T_DataComboFile[Implementation programme]=$G$3)*(T_DataComboFile[Econ4]=$G55))*T_DataComboFile[2019/20 Revised estimate]*$B$3)","v":0},{"$f":"SUMPRODUCT(((T_DataComboFile[Implementation programme]=$G$3)*(T_DataComboFile[Econ4]=$G55))*T_DataComboFile[2020/21 Revised]*$B$3)","v":0},{"$f":"SUMPRODUCT(((T_DataComboFile[Implementation programme]=$G$3)*(T_DataComboFile[Econ4]=$G55))*T_DataComboFile[2021/22 Baseline]*$B$3)","v":0},{"$f":"SUMPRODUCT(((T_DataComboFile[Implementation programme]=$G$3)*(T_DataComboFile[Econ4]=$G55))*T_DataComboFile[2021/22 Reduction]*$B$3)","v":0},{"$f":"SUMPRODUCT(((T_DataComboFile[Implementation programme]=$G$3)*(T_DataComboFile[Econ4]=$G55))*T_DataComboFile[2021/22 Increase]*$B$3)","v":0},0,{"$f":"SUMPRODUCT(((T_DataComboFile[Implementation programme]=$G$3)*(T_DataComboFile[Econ4]=$G55))*T_DataComboFile[2022/23 Baseline]*$B$3)","v":0},{"$f":"SUMPRODUCT(((T_DataComboFile[Implementation programme]=$G$3)*(T_DataComboFile[Econ4]=$G55))*T_DataComboFile[2022/23 Reduction]*$B$3)","v":0},{"$f":"SUMPRODUCT(((T_DataComboFile[Implementation programme]=$G$3)*(T_DataComboFile[Econ4]=$G55))*T_DataComboFile[2022/23 Increase]*$B$3)","v":0},0,{"$f":"SUMPRODUCT(((T_DataComboFile[Implementation programme]=$G$3)*(T_DataComboFile[Econ4]=$G55))*T_DataComboFile[2023/24 Baseline]*$B$3)","v":0},{"$f":"SUMPRODUCT(((T_DataComboFile[Implementation programme]=$G$3)*(T_DataComboFile[Econ4]=$G55))*T_DataComboFile[2023/24 Reduction]*$B$3)","v":0},{"$f":"SUMPRODUCT(((T_DataComboFile[Implementation programme]=$G$3)*(T_DataComboFile[Econ4]=$G55))*T_DataComboFile[2023/24 Increase]*$B$3)","v":0},0]
[0,0,null,null,null,null,"Machinery and equipment",{"$f":"SUM(H57:H58)","v":0},0,0,0,0,0,0,0,0,0,0,0,0,0,0,0]
[0,0,null,null,null,null,"Transport equipment",{"$f":"SUMPRODUCT(((T_DataComboFile[Implementation programme]=$G$3)*(T_DataComboFile[Econ4]=$G57))*T_DataComboFile[2017/18]*$B$3)","v":0},{"$f":"SUMPRODUCT(((T_DataComboFile[Implementation programme]=$G$3)*(T_DataComboFile[Econ4]=$G57))*T_DataComboFile[2018/19]*$B$3)","v":0},{"$f":"SUMPRODUCT(((T_DataComboFile[Implementation programme]=$G$3)*(T_DataComboFile[Econ4]=$G57))*T_DataComboFile[2019/20 Revised estimate]*$B$3)","v":0},{"$f":"SUMPRODUCT(((T_DataComboFile[Implementation programme]=$G$3)*(T_DataComboFile[Econ4]=$G57))*T_DataComboFile[2020/21 Revised]*$B$3)","v":0},{"$f":"SUMPRODUCT(((T_DataComboFile[Implementation programme]=$G$3)*(T_DataComboFile[Econ4]=$G57))*T_DataComboFile[2021/22 Baseline]*$B$3)","v":0},{"$f":"SUMPRODUCT(((T_DataComboFile[Implementation programme]=$G$3)*(T_DataComboFile[Econ4]=$G57))*T_DataComboFile[2021/22 Reduction]*$B$3)","v":0},{"$f":"SUMPRODUCT(((T_DataComboFile[Implementation programme]=$G$3)*(T_DataComboFile[Econ4]=$G57))*T_DataComboFile[2021/22 Increase]*$B$3)","v":0},{"$f":"L57+M57+N57","v":0},{"$f":"SUMPRODUCT(((T_DataComboFile[Implementation programme]=$G$3)*(T_DataComboFile[Econ4]=$G57))*T_DataComboFile[2022/23 Baseline]*$B$3)","v":0},{"$f":"SUMPRODUCT(((T_DataComboFile[Implementation programme]=$G$3)*(T_DataComboFile[Econ4]=$G57))*T_DataComboFile[2022/23 Reduction]*$B$3)","v":0},{"$f":"SUMPRODUCT(((T_DataComboFile[Implementation programme]=$G$3)*(T_DataComboFile[Econ4]=$G57))*T_DataComboFile[2022/23 Increase]*$B$3)","v":0},{"$f":"P57+Q57+R57","v":0},{"$f":"SUMPRODUCT(((T_DataComboFile[Implementation programme]=$G$3)*(T_DataComboFile[Econ4]=$G57))*T_DataComboFile[2023/24 Baseline]*$B$3)","v":0},{"$f":"SUMPRODUCT(((T_DataComboFile[Implementation programme]=$G$3)*(T_DataComboFile[Econ4]=$G57))*T_DataComboFile[2023/24 Reduction]*$B$3)","v":0},{"$f":"SUMPRODUCT(((T_DataComboFile[Implementation programme]=$G$3)*(T_DataComboFile[Econ4]=$G57))*T_DataComboFile[2023/24 Increase]*$B$3)","v":0},{"$f":"T57+U57+V57","v":0}]
[0,0,null,null,null,null,"Other machinery and equipment",{"$f":"SUMPRODUCT(((T_DataComboFile[Implementation programme]=$G$3)*(T_DataComboFile[Econ4]=$G58))*T_DataComboFile[2017/18]*$B$3)","v":0},{"$f":"SUMPRODUCT(((T_DataComboFile[Implementation programme]=$G$3)*(T_DataComboFile[Econ4]=$G58))*T_DataComboFile[2018/19]*$B$3)","v":0},{"$f":"SUMPRODUCT(((T_DataComboFile[Implementation programme]=$G$3)*(T_DataComboFile[Econ4]=$G58))*T_DataComboFile[2019/20 Revised estimate]*$B$3)","v":0},{"$f":"SUMPRODUCT(((T_DataComboFile[Implementation programme]=$G$3)*(T_DataComboFile[Econ4]=$G58))*T_DataComboFile[2020/21 Revised]*$B$3)","v":0},{"$f":"SUMPRODUCT(((T_DataComboFile[Implementation programme]=$G$3)*(T_DataComboFile[Econ4]=$G58))*T_DataComboFile[2021/22 Baseline]*$B$3)","v":0},{"$f":"SUMPRODUCT(((T_DataComboFile[Implementation programme]=$G$3)*(T_DataComboFile[Econ4]=$G58))*T_DataComboFile[2021/22 Reduction]*$B$3)","v":0},{"$f":"SUMPRODUCT(((T_DataComboFile[Implementation programme]=$G$3)*(T_DataComboFile[Econ4]=$G58))*T_DataComboFile[2021/22 Increase]*$B$3)","v":0},0,{"$f":"SUMPRODUCT(((T_DataComboFile[Implementation programme]=$G$3)*(T_DataComboFile[Econ4]=$G58))*T_DataComboFile[2022/23 Baseline]*$B$3)","v":0},{"$f":"SUMPRODUCT(((T_DataComboFile[Implementation programme]=$G$3)*(T_DataComboFile[Econ4]=$G58))*T_DataComboFile[2022/23 Reduction]*$B$3)","v":0},{"$f":"SUMPRODUCT(((T_DataComboFile[Implementation programme]=$G$3)*(T_DataComboFile[Econ4]=$G58))*T_DataComboFile[2022/23 Increase]*$B$3)","v":0},0,{"$f":"SUMPRODUCT(((T_DataComboFile[Implementation programme]=$G$3)*(T_DataComboFile[Econ4]=$G58))*T_DataComboFile[2023/24 Baseline]*$B$3)","v":0},{"$f":"SUMPRODUCT(((T_DataComboFile[Implementation programme]=$G$3)*(T_DataComboFile[Econ4]=$G58))*T_DataComboFile[2023/24 Reduction]*$B$3)","v":0},{"$f":"SUMPRODUCT(((T_DataComboFile[Implementation programme]=$G$3)*(T_DataComboFile[Econ4]=$G58))*T_DataComboFile[2023/24 Increase]*$B$3)","v":0},0]
[0,0,null,null,null,null,"Heritage assets",{"$f":"SUMPRODUCT(((T_DataComboFile[Implementation programme]=$G$3)*(T_DataComboFile[Econ3]=$G59))*T_DataComboFile[2017/18]*$B$3)","v":0},{"$f":"SUMPRODUCT(((T_DataComboFile[Implementation programme]=$G$3)*(T_DataComboFile[Econ3]=$G59))*T_DataComboFile[2018/19]*$B$3)","v":0},{"$f":"SUMPRODUCT(((T_DataComboFile[Implementation programme]=$G$3)*(T_DataComboFile[Econ3]=$G59))*T_DataComboFile[2019/20 Revised estimate]*$B$3)","v":0},{"$f":"SUMPRODUCT(((T_DataComboFile[Implementation programme]=$G$3)*(T_DataComboFile[Econ3]=$G59))*T_DataComboFile[2020/21 Revised]*$B$3)","v":0},{"$f":"SUMPRODUCT(((T_DataComboFile[Implementation programme]=$G$3)*(T_DataComboFile[Econ3]=$G59))*T_DataComboFile[2021/22 Baseline]*$B$3)","v":0},{"$f":"SUMPRODUCT(((T_DataComboFile[Implementation programme]=$G$3)*(T_DataComboFile[Econ3]=$G59))*T_DataComboFile[2021/22 Reduction]*$B$3)","v":0},{"$f":"SUMPRODUCT(((T_DataComboFile[Implementation programme]=$G$3)*(T_DataComboFile[Econ3]=$G59))*T_DataComboFile[2021/22 Increase]*$B$3)","v":0},0,{"$f":"SUMPRODUCT(((T_DataComboFile[Implementation programme]=$G$3)*(T_DataComboFile[Econ3]=$G59))*T_DataComboFile[2022/23 Baseline]*$B$3)","v":0},{"$f":"SUMPRODUCT(((T_DataComboFile[Implementation programme]=$G$3)*(T_DataComboFile[Econ3]=$G59))*T_DataComboFile[2022/23 Reduction]*$B$3)","v":0},{"$f":"SUMPRODUCT(((T_DataComboFile[Implementation programme]=$G$3)*(T_DataComboFile[Econ3]=$G59))*T_DataComboFile[2022/23 Increase]*$B$3)","v":0},0,{"$f":"SUMPRODUCT(((T_DataComboFile[Implementation programme]=$G$3)*(T_DataComboFile[Econ3]=$G59))*T_DataComboFile[2023/24 Baseline]*$B$3)","v":0},{"$f":"SUMPRODUCT(((T_DataComboFile[Implementation programme]=$G$3)*(T_DataComboFile[Econ3]=$G59))*T_DataComboFile[2023/24 Reduction]*$B$3)","v":0},{"$f":"SUMPRODUCT(((T_DataComboFile[Implementation programme]=$G$3)*(T_DataComboFile[Econ3]=$G59))*T_DataComboFile[2023/24 Increase]*$B$3)","v":0},0]
[0,0,null,null,null,null,"Specialised military assets",{"$f":"SUMPRODUCT(((T_DataComboFile[Implementation programme]=$G$3)*(T_DataComboFile[Econ3]=$G60))*T_DataComboFile[2017/18]*$B$3)","v":0},{"$f":"SUMPRODUCT(((T_DataComboFile[Implementation programme]=$G$3)*(T_DataComboFile[Econ3]=$G60))*T_DataComboFile[2018/19]*$B$3)","v":0},{"$f":"SUMPRODUCT(((T_DataComboFile[Implementation programme]=$G$3)*(T_DataComboFile[Econ3]=$G60))*T_DataComboFile[2019/20 Revised estimate]*$B$3)","v":0},{"$f":"SUMPRODUCT(((T_DataComboFile[Implementation programme]=$G$3)*(T_DataComboFile[Econ3]=$G60))*T_DataComboFile[2020/21 Revised]*$B$3)","v":0},{"$f":"SUMPRODUCT(((T_DataComboFile[Implementation programme]=$G$3)*(T_DataComboFile[Econ3]=$G60))*T_DataComboFile[2021/22 Baseline]*$B$3)","v":0},{"$f":"SUMPRODUCT(((T_DataComboFile[Implementation programme]=$G$3)*(T_DataComboFile[Econ3]=$G60))*T_DataComboFile[2021/22 Reduction]*$B$3)","v":0},{"$f":"SUMPRODUCT(((T_DataComboFile[Implementation programme]=$G$3)*(T_DataComboFile[Econ3]=$G60))*T_DataComboFile[2021/22 Increase]*$B$3)","v":0},0,{"$f":"SUMPRODUCT(((T_DataComboFile[Implementation programme]=$G$3)*(T_DataComboFile[Econ3]=$G60))*T_DataComboFile[2022/23 Baseline]*$B$3)","v":0},{"$f":"SUMPRODUCT(((T_DataComboFile[Implementation programme]=$G$3)*(T_DataComboFile[Econ3]=$G60))*T_DataComboFile[2022/23 Reduction]*$B$3)","v":0},{"$f":"SUMPRODUCT(((T_DataComboFile[Implementation programme]=$G$3)*(T_DataComboFile[Econ3]=$G60))*T_DataComboFile[2022/23 Increase]*$B$3)","v":0},0,{"$f":"SUMPRODUCT(((T_DataComboFile[Implementation programme]=$G$3)*(T_DataComboFile[Econ3]=$G60))*T_DataComboFile[2023/24 Baseline]*$B$3)","v":0},{"$f":"SUMPRODUCT(((T_DataComboFile[Implementation programme]=$G$3)*(T_DataComboFile[Econ3]=$G60))*T_DataComboFile[2023/24 Reduction]*$B$3)","v":0},{"$f":"SUMPRODUCT(((T_DataComboFile[Implementation programme]=$G$3)*(T_DataComboFile[Econ3]=$G60))*T_DataComboFile[2023/24 Increase]*$B$3)","v":0},0]
[0,0,null,null,null,null,"Biological assets",{"$f":"SUMPRODUCT(((T_DataComboFile[Implementation programme]=$G$3)*(T_DataComboFile[Econ3]=$G61))*T_DataComboFile[2017/18]*$B$3)","v":0},{"$f":"SUMPRODUCT(((T_DataComboFile[Implementation programme]=$G$3)*(T_DataComboFile[Econ3]=$G61))*T_DataComboFile[2018/19]*$B$3)","v":0},{"$f":"SUMPRODUCT(((T_DataComboFile[Implementation programme]=$G$3)*(T_DataComboFile[Econ3]=$G61))*T_DataComboFile[2019/20 Revised estimate]*$B$3)","v":0},{"$f":"SUMPRODUCT(((T_DataComboFile[Implementation programme]=$G$3)*(T_DataComboFile[Econ3]=$G61))*T_DataComboFile[2020/21 Revised]*$B$3)","v":0},{"$f":"SUMPRODUCT(((T_DataComboFile[Implementation programme]=$G$3)*(T_DataComboFile[Econ3]=$G61))*T_DataComboFile[2021/22 Baseline]*$B$3)","v":0},{"$f":"SUMPRODUCT(((T_DataComboFile[Implementation programme]=$G$3)*(T_DataComboFile[Econ3]=$G61))*T_DataComboFile[2021/22 Reduction]*$B$3)","v":0},{"$f":"SUMPRODUCT(((T_DataComboFile[Implementation programme]=$G$3)*(T_DataComboFile[Econ3]=$G61))*T_DataComboFile[2021/22 Increase]*$B$3)","v":0},0,{"$f":"SUMPRODUCT(((T_DataComboFile[Implementation programme]=$G$3)*(T_DataComboFile[Econ3]=$G61))*T_DataComboFile[2022/23 Baseline]*$B$3)","v":0},{"$f":"SUMPRODUCT(((T_DataComboFile[Implementation programme]=$G$3)*(T_DataComboFile[Econ3]=$G61))*T_DataComboFile[2022/23 Reduction]*$B$3)","v":0},{"$f":"SUMPRODUCT(((T_DataComboFile[Implementation programme]=$G$3)*(T_DataComboFile[Econ3]=$G61))*T_DataComboFile[2022/23 Increase]*$B$3)","v":0},0,{"$f":"SUMPRODUCT(((T_DataComboFile[Implementation programme]=$G$3)*(T_DataComboFile[Econ3]=$G61))*T_DataComboFile[2023/24 Baseline]*$B$3)","v":0},{"$f":"SUMPRODUCT(((T_DataComboFile[Implementation programme]=$G$3)*(T_DataComboFile[Econ3]=$G61))*T_DataComboFile[2023/24 Reduction]*$B$3)","v":0},{"$f":"SUMPRODUCT(((T_DataComboFile[Implementation programme]=$G$3)*(T_DataComboFile[Econ3]=$G61))*T_DataComboFile[2023/24 Increase]*$B$3)","v":0},0]
[0,0,null,null,null,null,"Land and sub-soil assets",{"$f":"SUMPRODUCT(((T_DataComboFile[Implementation programme]=$G$3)*(T_DataComboFile[Econ3]=$G62))*T_DataComboFile[2017/18]*$B$3)","v":0},{"$f":"SUMPRODUCT(((T_DataComboFile[Implementation programme]=$G$3)*(T_DataComboFile[Econ3]=$G62))*T_DataComboFile[2018/19]*$B$3)","v":0},{"$f":"SUMPRODUCT(((T_DataComboFile[Implementation programme]=$G$3)*(T_DataComboFile[Econ3]=$G62))*T_DataComboFile[2019/20 Revised estimate]*$B$3)","v":0},{"$f":"SUMPRODUCT(((T_DataComboFile[Implementation programme]=$G$3)*(T_DataComboFile[Econ3]=$G62))*T_DataComboFile[2020/21 Revised]*$B$3)","v":0},{"$f":"SUMPRODUCT(((T_DataComboFile[Implementation programme]=$G$3)*(T_DataComboFile[Econ3]=$G62))*T_DataComboFile[2021/22 Baseline]*$B$3)","v":0},{"$f":"SUMPRODUCT(((T_DataComboFile[Implementation programme]=$G$3)*(T_DataComboFile[Econ3]=$G62))*T_DataComboFile[2021/22 Reduction]*$B$3)","v":0},{"$f":"SUMPRODUCT(((T_DataComboFile[Implementation programme]=$G$3)*(T_DataComboFile[Econ3]=$G62))*T_DataComboFile[2021/22 Increase]*$B$3)","v":0},0,{"$f":"SUMPRODUCT(((T_DataComboFile[Implementation programme]=$G$3)*(T_DataComboFile[Econ3]=$G62))*T_DataComboFile[2022/23 Baseline]*$B$3)","v":0},{"$f":"SUMPRODUCT(((T_DataComboFile[Implementation programme]=$G$3)*(T_DataComboFile[Econ3]=$G62))*T_DataComboFile[2022/23 Reduction]*$B$3)","v":0},{"$f":"SUMPRODUCT(((T_DataComboFile[Implementation programme]=$G$3)*(T_DataComboFile[Econ3]=$G62))*T_DataComboFile[2022/23 Increase]*$B$3)","v":0},0,{"$f":"SUMPRODUCT(((T_DataComboFile[Implementation programme]=$G$3)*(T_DataComboFile[Econ3]=$G62))*T_DataComboFile[2023/24 Baseline]*$B$3)","v":0},{"$f":"SUMPRODUCT(((T_DataComboFile[Implementation programme]=$G$3)*(T_DataComboFile[Econ3]=$G62))*T_DataComboFile[2023/24 Reduction]*$B$3)","v":0},{"$f":"SUMPRODUCT(((T_DataComboFile[Implementation programme]=$G$3)*(T_DataComboFile[Econ3]=$G62))*T_DataComboFile[2023/24 Increase]*$B$3)","v":0},0]
[0,0,null,null,null,null,"Software and other intangible assets",{"$f":"SUMPRODUCT(((T_DataComboFile[Implementation programme]=$G$3)*(T_DataComboFile[Econ3]=$G63))*T_DataComboFile[2017/18]*$B$3)","v":0},{"$f":"SUMPRODUCT(((T_DataComboFile[Implementation programme]=$G$3)*(T_DataComboFile[Econ3]=$G63))*T_DataComboFile[2018/19]*$B$3)","v":0},{"$f":"SUMPRODUCT(((T_DataComboFile[Implementation programme]=$G$3)*(T_DataComboFile[Econ3]=$G63))*T_DataComboFile[2019/20 Revised estimate]*$B$3)","v":0},{"$f":"SUMPRODUCT(((T_DataComboFile[Implementation programme]=$G$3)*(T_DataComboFile[Econ3]=$G63))*T_DataComboFile[2020/21 Revised]*$B$3)","v":0},{"$f":"SUMPRODUCT(((T_DataComboFile[Implementation programme]=$G$3)*(T_DataComboFile[Econ3]=$G63))*T_DataComboFile[2021/22 Baseline]*$B$3)","v":0},{"$f":"SUMPRODUCT(((T_DataComboFile[Implementation programme]=$G$3)*(T_DataComboFile[Econ3]=$G63))*T_DataComboFile[2021/22 Reduction]*$B$3)","v":0},{"$f":"SUMPRODUCT(((T_DataComboFile[Implementation programme]=$G$3)*(T_DataComboFile[Econ3]=$G63))*T_DataComboFile[2021/22 Increase]*$B$3)","v":0},0,{"$f":"SUMPRODUCT(((T_DataComboFile[Implementation programme]=$G$3)*(T_DataComboFile[Econ3]=$G63))*T_DataComboFile[2022/23 Baseline]*$B$3)","v":0},{"$f":"SUMPRODUCT(((T_DataComboFile[Implementation programme]=$G$3)*(T_DataComboFile[Econ3]=$G63))*T_DataComboFile[2022/23 Reduction]*$B$3)","v":0},{"$f":"SUMPRODUCT(((T_DataComboFile[Implementation programme]=$G$3)*(T_DataComboFile[Econ3]=$G63))*T_DataComboFile[2022/23 Increase]*$B$3)","v":0},0,{"$f":"SUMPRODUCT(((T_DataComboFile[Implementation programme]=$G$3)*(T_DataComboFile[Econ3]=$G63))*T_DataComboFile[2023/24 Baseline]*$B$3)","v":0},{"$f":"SUMPRODUCT(((T_DataComboFile[Implementation programme]=$G$3)*(T_DataComboFile[Econ3]=$G63))*T_DataComboFile[2023/24 Reduction]*$B$3)","v":0},{"$f":"SUMPRODUCT(((T_DataComboFile[Implementation programme]=$G$3)*(T_DataComboFile[Econ3]=$G63))*T_DataComboFile[2023/24 Increase]*$B$3)","v":0},0]
[0,0,null,null,null,null,"Payments for financial assets",{"$f":"SUMPRODUCT(((T_DataComboFile[Implementation programme]=$G$3)*(T_DataComboFile[Econ3]=$G64))*T_DataComboFile[2017/18]*$B$3)","v":0},{"$f":"SUMPRODUCT(((T_DataComboFile[Implementation programme]=$G$3)*(T_DataComboFile[Econ3]=$G64))*T_DataComboFile[2018/19]*$B$3)","v":0},{"$f":"SUMPRODUCT(((T_DataComboFile[Implementation programme]=$G$3)*(T_DataComboFile[Econ3]=$G64))*T_DataComboFile[2019/20 Revised estimate]*$B$3)","v":0},{"$f":"SUMPRODUCT(((T_DataComboFile[Implementation programme]=$G$3)*(T_DataComboFile[Econ3]=$G64))*T_DataComboFile[2020/21 Revised]*$B$3)","v":0},{"$f":"SUMPRODUCT(((T_DataComboFile[Implementation programme]=$G$3)*(T_DataComboFile[Econ3]=$G64))*T_DataComboFile[2021/22 Baseline]*$B$3)","v":0},{"$f":"SUMPRODUCT(((T_DataComboFile[Implementation programme]=$G$3)*(T_DataComboFile[Econ3]=$G64))*T_DataComboFile[2021/22 Reduction]*$B$3)","v":0},{"$f":"SUMPRODUCT(((T_DataComboFile[Implementation programme]=$G$3)*(T_DataComboFile[Econ3]=$G64))*T_DataComboFile[2021/22 Increase]*$B$3)","v":0},0,{"$f":"SUMPRODUCT(((T_DataComboFile[Implementation programme]=$G$3)*(T_DataComboFile[Econ3]=$G64))*T_DataComboFile[2022/23 Baseline]*$B$3)","v":0},{"$f":"SUMPRODUCT(((T_DataComboFile[Implementation programme]=$G$3)*(T_DataComboFile[Econ3]=$G64))*T_DataComboFile[2022/23 Reduction]*$B$3)","v":0},{"$f":"SUMPRODUCT(((T_DataComboFile[Implementation programme]=$G$3)*(T_DataComboFile[Econ3]=$G64))*T_DataComboFile[2022/23 Increase]*$B$3)","v":0},0,{"$f":"SUMPRODUCT(((T_DataComboFile[Implementation programme]=$G$3)*(T_DataComboFile[Econ3]=$G64))*T_DataComboFile[2023/24 Baseline]*$B$3)","v":0},{"$f":"SUMPRODUCT(((T_DataComboFile[Implementation programme]=$G$3)*(T_DataComboFile[Econ3]=$G64))*T_DataComboFile[2023/24 Reduction]*$B$3)","v":0},{"$f":"SUMPRODUCT(((T_DataComboFile[Implementation programme]=$G$3)*(T_DataComboFile[Econ3]=$G64))*T_DataComboFile[2023/24 Increase]*$B$3)","v":0},0]
[0,0,null,null,null,null,"Total",{"$f":"SUM(H32,H36,H52,H64)","v":0},0,0,0,0,0,0,0,0,0,0,0,0,0,0,0]
[]
[]
[]
[]
[]
[null,null,null,null,null,null,{"$f":"\"IMPACT OF ADJUSTMENTS: \" &UPPER($G$3)","v":"IMPACT OF ADJUSTMENTS: "}]
[]
[null,null,null,null,null,1,"Summary of impact on service delivery due to adjustments"]
[{"$f":"$G$3","v":0},1]
[0,1]
[0,1]
[0,1]
[0,1]
[0,1]
[0,1]
[0,1]
[0,1]
[0,1]
[0,1]
[0,1]
[0,1]
[0,1]
[0,1]
[]
[]
[]
[]
[]
[null,null,null,null,null,2,"Impact of adjustments on performance indicators"]
[{"$f":"$G$3","v":0},2,null,null,null,null,null,"2021/22",null,null,"2022/23",null,null,"2023/24",null,null," Comment",null,null,null,null,"Related MTSF Priority"]
[0,2,null,null,null,null,"Performance indicator","Original target","Revised target","Change","Original target","Revised target","Change","Original target","Revised target","Change"]
[0,2]
[0,2]
[0,2]
[0,2]
[0,2]
[0,2]
[0,2]
[0,2]
[0,2]
[0,2]
[0,2]
[0,2]
[0,2]
[0,2]
[0,2]
[]
[]
[]
[]
[]
[null,null,null,null,null,3,"Impact of adjustments on infrastructure projects"]
[{"$f":"$G$3","v":0},3,null,null,null,null,null,"2021/22",null,null,"2022/23",null,null,"2023/24",null,null," Comment"]
[0,3,null,null,null,null,"Project name","Original amount","Revised amount","Change","Original amount","Revised amount","Change","Original amount","Revised amount","Change"]
[0,3,null,null,null,null,null,null,null,{"$f":"I120-H120","v":0},null,null,{"$f":"L120-K120","v":0},null,null,{"$f":"O120-N120","v":0}]
[0,3,null,null,null,null,null,null,null,0,null,null,0,null,null,0]
[0,3,null,null,null,null,null,null,null,0,null,null,0,null,null,0]
[0,3,null,null,null,null,null,null,null,0,null,null,0,null,null,0]
[0,3,null,null,null,null,null,null,null,0,null,null,0,null,null,0]
[0,3,null,null,null,null,null,null,null,0,null,null,0,null,null,0]
[0,3,null,null,null,null,null,null,null,0,null,null,0,null,null,0]
[0,3,null,null,null,null,null,null,null,0,null,null,0,null,null,0]
[0,3,null,null,null,null,null,null,null,0,null,null,0,null,null,0]
[0,3,null,null,null,null,null,null,null,0,null,null,0,null,null,0]
[0,3,null,null,null,null,null,null,null,0,null,null,0,null,null,0]
[0,3,null,null,null,null,null,null,null,0,null,null,0,null,null,0]
[0,3,null,null,null,null,null,null,null,0,null,null,0,null,null,0]
[0,3,null,null,null,null,null,null,null,0,null,null,0,null,null,0]
[0,3,null,null,null,null,null,null,null,0,null,null,0,null,null,0]
[0,3,null,null,null,null,"Total",{"$f":"SUM(H120:H134)","v":0},0,0,0,0,0,0,0,0]
[]
[]
[]
[]
[]
[null,null,null,null,null,4,"Impact of adjustments on personnel headcount numbers"]
[{"$f":"$G$3","v":0},4,null,null,null,null,null,"2021/22",null,null,"2022/23",null,null,"2023/24",null,null," Comment"]
[0,4,null,null,null,null,"Salary level","Original number","Revised number","Change","Original number","Revised number","Change","Original number","Revised number","Change"]
[0,4,null,null,null,null,1,null,null,{"$f":"I144-H144","v":0},null,null,{"$f":"L144-K144","v":0},null,null,{"$f":"O144-N144","v":0}]
[0,4,null,null,null,null,2,null,null,0,null,null,0,null,null,0]
[0,4,null,null,null,null,3,null,null,0,null,null,0,null,null,0]
[0,4,null,null,null,null,4,null,null,0,null,null,0,null,null,0]
[0,4,null,null,null,null,5,null,null,0,null,null,0,null,null,0]
[0,4,null,null,null,null,6,null,null,0,null,null,0,null,null,0]
[0,4,null,null,null,null,7,null,null,0,null,null,0,null,null,0]
[0,4,null,null,null,null,8,null,null,0,null,null,0,null,null,0]
[0,4,null,null,null,null,9,null,null,0,null,null,0,null,null,0]
[0,4,null,null,null,null,10,null,null,0,null,null,0,null,null,0]
[0,4,null,null,null,null,11,null,null,0,null,null,0,null,null,0]
[0,4,null,null,null,null,12,null,null,0,null,null,0,null,null,0]
[0,4,null,null,null,null,13,null,null,0,null,null,0,null,null,0]
[0,4,null,null,null,null,14,null,null,0,null,null,0,null,null,0]
[0,4,null,null,null,null,15,null,null,0,null,null,0,null,null,0]
[0,4,null,null,null,null,16,null,null,0,null,null,0,null,null,0]
[0,4,null,null,null,null,"Other",null,null,0,null,null,0,null,null,0]
[0,4,null,null,null,null,"Other",null,null,0,null,null,0,null,null,0]
[0,4,null,null,null,null,"Other",null,null,0,null,null,0,null,null,0]
[0,4,null,null,null,null,"Other",null,null,0,null,null,0,null,null,0]
[0,4,null,null,null,null,"Total",{"$f":"SUM(H144:H163)","v":0},0,0,0,0,0,0,0,0]
[]
[]
[]
[]
[]
[null,null,null,null,null,5,"Impact of adjustments by economic classification"]
[{"$f":"$G$3","v":0},5,null,null,null,null,null,"2021/22",null,null,"2022/23",null,null,"2023/24",null,null," Comment"]
[0,5,null,null,null,null,"Salary level","Original number","Revised number","Change","Original number","Revised number","Change","Original number","Revised number","Change"]
[0,5,null,null,null,null,"Current payments",{"$f":"SUM(H174,H175,H182)","v":0},{"$f":"SUM(I174,I175,I182)","v":0},{"$f":"I173-H173","v":0},{"$f":"SUM(K174,K175,K182)","v":0},{"$f":"SUM(L174,L175,L182)","v":0},{"$f":"L173-K173","v":0},{"$f":"SUM(N174,N175,N182)","v":0},{"$f":"SUM(O174,O175,O182)","v":0},{"$f":"O173-N173","v":0}]
[0,5,null,null,null,null,"Compensation of employees",{"$f":"SUMPRODUCT(((T_DataComboFile[Implementation programme]=$G$3)*(T_DataComboFile[Econ3]=$G174))*T_DataComboFile[2021/22 Baseline]*$B$3)","v":0},{"$f":"SUMPRODUCT(((T_DataComboFile[Implementation programme]=$G$3)*(T_DataComboFile[Econ3]=$G174))*T_DataComboFile[2021/22 Revised baseline]*$B$3)","v":0},0,{"$f":"SUMPRODUCT(((T_DataComboFile[Implementation programme]=$G$3)*(T_DataComboFile[Econ3]=$G174))*T_DataComboFile[2022/23 Baseline]*$B$3)","v":0},{"$f":"SUMPRODUCT(((T_DataComboFile[Implementation programme]=$G$3)*(T_DataComboFile[Econ3]=$G174))*T_DataComboFile[2022/23 Revised baseline]*$B$3)","v":0},0,{"$f":"SUMPRODUCT(((T_DataComboFile[Implementation programme]=$G$3)*(T_DataComboFile[Econ3]=$G174))*T_DataComboFile[2023/24 Baseline]*$B$3)","v":0},{"$f":"SUMPRODUCT(((T_DataComboFile[Implementation programme]=$G$3)*(T_DataComboFile[Econ3]=$G174))*T_DataComboFile[2023/24 Revised baseline]*$B$3)","v":0},0]
[0,5,null,null,null,null,"Goods and services",{"$f":"SUMPRODUCT(((T_DataComboFile[Implementation programme]=$G$3)*(T_DataComboFile[Econ3]=$G175))*T_DataComboFile[2021/22 Baseline]*$B$3)","v":0},{"$f":"SUMPRODUCT(((T_DataComboFile[Implementation programme]=$G$3)*(T_DataComboFile[Econ3]=$G175))*T_DataComboFile[2021/22 Revised baseline]*$B$3)","v":0},0,{"$f":"SUMPRODUCT(((T_DataComboFile[Implementation programme]=$G$3)*(T_DataComboFile[Econ3]=$G175))*T_DataComboFile[2022/23 Baseline]*$B$3)","v":0},{"$f":"SUMPRODUCT(((T_DataComboFile[Implementation programme]=$G$3)*(T_DataComboFile[Econ3]=$G175))*T_DataComboFile[2022/23 Revised baseline]*$B$3)","v":0},0,{"$f":"SUMPRODUCT(((T_DataComboFile[Implementation programme]=$G$3)*(T_DataComboFile[Econ3]=$G175))*T_DataComboFile[2023/24 Baseline]*$B$3)","v":0},{"$f":"SUMPRODUCT(((T_DataComboFile[Implementation programme]=$G$3)*(T_DataComboFile[Econ3]=$G175))*T_DataComboFile[2023/24 Revised baseline]*$B$3)","v":0},0]
[0,50,null,null,null,null,"of which:"]
[0,51,null,null,null,null,null,null,null,{"$f":"I177-H177","v":0},null,null,{"$f":"L177-K177","v":0},null,null,0]
[0,51,null,null,null,null,null,null,null,0,null,null,0,null,null,0]
[0,51,null,null,null,null,null,null,null,0,null,null,0,null,null,0]
[0,51,null,null,null,null,null,null,null,0,null,null,0,null,null,0]
[0,51,null,null,null,null,null,null,null,0,null,null,0,null,null,0]
[0,5,null,null,null,null,"Interest and rent on land",{"$f":"SUMPRODUCT(((T_DataComboFile[Implementation programme]=$G$3)*(T_DataComboFile[Econ3]=$G182))*T_DataComboFile[2021/22 Baseline]*$B$3)","v":0},{"$f":"SUMPRODUCT(((T_DataComboFile[Implementation programme]=$G$3)*(T_DataComboFile[Econ3]=$G182))*T_DataComboFile[2021/22 Revised baseline]*$B$3)","v":0},0,{"$f":"SUMPRODUCT(((T_DataComboFile[Implementation programme]=$G$3)*(T_DataComboFile[Econ3]=$G182))*T_DataComboFile[2022/23 Baseline]*$B$3)","v":0},{"$f":"SUMPRODUCT(((T_DataComboFile[Implementation programme]=$G$3)*(T_DataComboFile[Econ3]=$G182))*T_DataComboFile[2022/23 Revised baseline]*$B$3)","v":0},0,{"$f":"SUMPRODUCT(((T_DataComboFile[Implementation programme]=$G$3)*(T_DataComboFile[Econ3]=$G182))*T_DataComboFile[2023/24 Baseline]*$B$3)","v":0},{"$f":"SUMPRODUCT(((T_DataComboFile[Implementation programme]=$G$3)*(T_DataComboFile[Econ3]=$G182))*T_DataComboFile[2023/24 Revised baseline]*$B$3)","v":0},0]
[0,5,null,null,null,null,"Transfers and subsidies",{"$f":"SUM(H184,H185,H197,H198,H199,H206,H207)","v":0},{"$f":"SUM(I184,I185,I197,I198,I199,I206,I207)","v":0},0,{"$f":"SUM(K184,K185,K197,K198,K199,K206,K207)","v":0},0,0,{"$f":"SUM(N184,N185,N197,N198,N199,N206,N207)","v":0},0,0]
[0,5,null,null,null,null,"Provinces and municipalities",{"$f":"SUMPRODUCT(((T_DataComboFile[Implementation programme]=$G$3)*(T_DataComboFile[Econ3]=$G184))*T_DataComboFile[2021/22 Baseline]*$B$3)","v":0},{"$f":"SUMPRODUCT(((T_DataComboFile[Implementation programme]=$G$3)*(T_DataComboFile[Econ3]=$G184))*T_DataComboFile[2021/22 Revised baseline]*$B$3)","v":0},0,{"$f":"SUMPRODUCT(((T_DataComboFile[Implementation programme]=$G$3)*(T_DataComboFile[Econ3]=$G184))*T_DataComboFile[2022/23 Baseline]*$B$3)","v":0},{"$f":"SUMPRODUCT(((T_DataComboFile[Implementation programme]=$G$3)*(T_DataComboFile[Econ3]=$G184))*T_DataComboFile[2022/23 Revised baseline]*$B$3)","v":0},0,{"$f":"SUMPRODUCT(((T_DataComboFile[Implementation programme]=$G$3)*(T_DataComboFile[Econ3]=$G184))*T_DataComboFile[2023/24 Baseline]*$B$3)","v":0},{"$f":"SUMPRODUCT(((T_DataComboFile[Implementation programme]=$G$3)*(T_DataComboFile[Econ3]=$G184))*T_DataComboFile[2023/24 Revised baseline]*$B$3)","v":0},0]
[0,5,null,null,null,null,"Departmental agencies and accounts",{"$f":"SUMPRODUCT(((T_DataComboFile[Implementation programme]=$G$3)*(T_DataComboFile[Econ3]=$G185))*T_DataComboFile[2021/22 Baseline]*$B$3)","v":0},{"$f":"SUMPRODUCT(((T_DataComboFile[Implementation programme]=$G$3)*(T_DataComboFile[Econ3]=$G185))*T_DataComboFile[2021/22 Revised baseline]*$B$3)","v":0},0,{"$f":"SUMPRODUCT(((T_DataComboFile[Implementation programme]=$G$3)*(T_DataComboFile[Econ3]=$G185))*T_DataComboFile[2022/23 Baseline]*$B$3)","v":0},{"$f":"SUMPRODUCT(((T_DataComboFile[Implementation programme]=$G$3)*(T_DataComboFile[Econ3]=$G185))*T_DataComboFile[2022/23 Revised baseline]*$B$3)","v":0},0,{"$f":"SUMPRODUCT(((T_DataComboFile[Implementation programme]=$G$3)*(T_DataComboFile[Econ3]=$G185))*T_DataComboFile[2023/24 Baseline]*$B$3)","v":0},{"$f":"SUMPRODUCT(((T_DataComboFile[Implementation programme]=$G$3)*(T_DataComboFile[Econ3]=$G185))*T_DataComboFile[2023/24 Revised baseline]*$B$3)","v":0},0]
[0,50,null,null,null,null,"of which:"]
[0,52,null,null,null,null,null,null,null,{"$f":"I187-H187","v":0},null,null,{"$f":"L187-K187","v":0},null,null,{"$f":"O187-N187","v":0}]
[0,52,null,null,null,null,null,null,null,0,null,null,0,null,null,0]
[0,52,null,null,null,null,null,null,null,0,null,null,0,null,null,0]
[0,52,null,null,null,null,null,null,null,0,null,null,0,null,null,0]
[0,52,null,null,null,null,null,null,null,0,null,null,0,null,null,0]
[0,52,null,null,null,null,null,null,null,0,null,null,0,null,null,0]
[0,52,null,null,null,null,null,null,null,0,null,null,0,null,null,0]
[0,52,null,null,null,null,null,null,null,0,null,null,0,null,null,0]
[0,52,null,null,null,null,null,null,null,0,null,null,0,null,null,0]
[0,52,null,null,null,null,null,null,null,0,null,null,0,null,null,0]
[0,5,null,null,null,null,"Higher education institutions",{"$f":"SUMPRODUCT(((T_DataComboFile[Implementation programme]=$G$3)*(T_DataComboFile[Econ3]=$G197))*T_DataComboFile[2021/22 Baseline]*$B$3)","v":0},{"$f":"SUMPRODUCT(((T_DataComboFile[Implementation programme]=$G$3)*(T_DataComboFile[Econ3]=$G197))*T_DataComboFile[2021/22 Revised baseline]*$B$3)","v":0},0,{"$f":"SUMPRODUCT(((T_DataComboFile[Implementation programme]=$G$3)*(T_DataComboFile[Econ3]=$G197))*T_DataComboFile[2022/23 Baseline]*$B$3)","v":0},{"$f":"SUMPRODUCT(((T_DataComboFile[Implementation programme]=$G$3)*(T_DataComboFile[Econ3]=$G197))*T_DataComboFile[2022/23 Revised baseline]*$B$3)","v":0},0,{"$f":"SUMPRODUCT(((T_DataComboFile[Implementation programme]=$G$3)*(T_DataComboFile[Econ3]=$G197))*T_DataComboFile[2023/24 Baseline]*$B$3)","v":0},{"$f":"SUMPRODUCT(((T_DataComboFile[Implementation programme]=$G$3)*(T_DataComboFile[Econ3]=$G197))*T_DataComboFile[2023/24 Revised baseline]*$B$3)","v":0},0]
[0,5,null,null,null,null,"Foreign governments and international organisations",{"$f":"SUMPRODUCT(((T_DataComboFile[Implementation programme]=$G$3)*(T_DataComboFile[Econ3]=$G198))*T_DataComboFile[2021/22 Baseline]*$B$3)","v":0},{"$f":"SUMPRODUCT(((T_DataComboFile[Implementation programme]=$G$3)*(T_DataComboFile[Econ3]=$G198))*T_DataComboFile[2021/22 Revised baseline]*$B$3)","v":0},0,{"$f":"SUMPRODUCT(((T_DataComboFile[Implementation programme]=$G$3)*(T_DataComboFile[Econ3]=$G198))*T_DataComboFile[2022/23 Baseline]*$B$3)","v":0},{"$f":"SUMPRODUCT(((T_DataComboFile[Implementation programme]=$G$3)*(T_DataComboFile[Econ3]=$G198))*T_DataComboFile[2022/23 Revised baseline]*$B$3)","v":0},0,{"$f":"SUMPRODUCT(((T_DataComboFile[Implementation programme]=$G$3)*(T_DataComboFile[Econ3]=$G198))*T_DataComboFile[2023/24 Baseline]*$B$3)","v":0},{"$f":"SUMPRODUCT(((T_DataComboFile[Implementation programme]=$G$3)*(T_DataComboFile[Econ3]=$G198))*T_DataComboFile[2023/24 Revised baseline]*$B$3)","v":0},0]
[0,5,null,null,null,null,"Public corporations and private enterprises",{"$f":"SUMPRODUCT(((T_DataComboFile[Implementation programme]=$G$3)*(T_DataComboFile[Econ3]=$G199))*T_DataComboFile[2021/22 Baseline]*$B$3)","v":0},{"$f":"SUMPRODUCT(((T_DataComboFile[Implementation programme]=$G$3)*(T_DataComboFile[Econ3]=$G199))*T_DataComboFile[2021/22 Revised baseline]*$B$3)","v":0},0,{"$f":"SUMPRODUCT(((T_DataComboFile[Implementation programme]=$G$3)*(T_DataComboFile[Econ3]=$G199))*T_DataComboFile[2022/23 Baseline]*$B$3)","v":0},{"$f":"SUMPRODUCT(((T_DataComboFile[Implementation programme]=$G$3)*(T_DataComboFile[Econ3]=$G199))*T_DataComboFile[2022/23 Revised baseline]*$B$3)","v":0},0,{"$f":"SUMPRODUCT(((T_DataComboFile[Implementation programme]=$G$3)*(T_DataComboFile[Econ3]=$G199))*T_DataComboFile[2023/24 Baseline]*$B$3)","v":0},{"$f":"SUMPRODUCT(((T_DataComboFile[Implementation programme]=$G$3)*(T_DataComboFile[Econ3]=$G199))*T_DataComboFile[2023/24 Revised baseline]*$B$3)","v":0},0]
[0,50,null,null,null,null,"of which:"]
[0,53,null,null,null,null,null,null,null,{"$f":"I201-H201","v":0},null,null,{"$f":"L201-K201","v":0},null,null,{"$f":"O201-N201","v":0}]
[0,53,null,null,null,null,null,null,null,0,null,null,0,null,null,0]
[0,53,null,null,null,null,null,null,null,0,null,null,0,null,null,0]
[0,53,null,null,null,null,null,null,null,0,null,null,0,null,null,0]
[0,53,null,null,null,null,null,null,null,0,null,null,0,null,null,0]
[0,5,null,null,null,null,"Non-profit institutions",{"$f":"SUMPRODUCT(((T_DataComboFile[Implementation programme]=$G$3)*(T_DataComboFile[Econ3]=$G206))*T_DataComboFile[2021/22 Baseline]*$B$3)","v":0},{"$f":"SUMPRODUCT(((T_DataComboFile[Implementation programme]=$G$3)*(T_DataComboFile[Econ3]=$G206))*T_DataComboFile[2021/22 Revised baseline]*$B$3)","v":0},0,{"$f":"SUMPRODUCT(((T_DataComboFile[Implementation programme]=$G$3)*(T_DataComboFile[Econ3]=$G206))*T_DataComboFile[2022/23 Baseline]*$B$3)","v":0},{"$f":"SUMPRODUCT(((T_DataComboFile[Implementation programme]=$G$3)*(T_DataComboFile[Econ3]=$G206))*T_DataComboFile[2022/23 Revised baseline]*$B$3)","v":0},0,{"$f":"SUMPRODUCT(((T_DataComboFile[Implementation programme]=$G$3)*(T_DataComboFile[Econ3]=$G206))*T_DataComboFile[2023/24 Baseline]*$B$3)","v":0},{"$f":"SUMPRODUCT(((T_DataComboFile[Implementation programme]=$G$3)*(T_DataComboFile[Econ3]=$G206))*T_DataComboFile[2023/24 Revised baseline]*$B$3)","v":0},0]
[0,5,null,null,null,null,"Households",{"$f":"SUMPRODUCT(((T_DataComboFile[Implementation programme]=$G$3)*(T_DataComboFile[Econ3]=$G207))*T_DataComboFile[2021/22 Baseline]*$B$3)","v":0},{"$f":"SUMPRODUCT(((T_DataComboFile[Implementation programme]=$G$3)*(T_DataComboFile[Econ3]=$G207))*T_DataComboFile[2021/22 Revised baseline]*$B$3)","v":0},0,{"$f":"SUMPRODUCT(((T_DataComboFile[Implementation programme]=$G$3)*(T_DataComboFile[Econ3]=$G207))*T_DataComboFile[2022/23 Baseline]*$B$3)","v":0},{"$f":"SUMPRODUCT(((T_DataComboFile[Implementation programme]=$G$3)*(T_DataComboFile[Econ3]=$G207))*T_DataComboFile[2022/23 Revised baseline]*$B$3)","v":0},0,{"$f":"SUMPRODUCT(((T_DataComboFile[Implementation programme]=$G$3)*(T_DataComboFile[Econ3]=$G207))*T_DataComboFile[2023/24 Baseline]*$B$3)","v":0},{"$f":"SUMPRODUCT(((T_DataComboFile[Implementation programme]=$G$3)*(T_DataComboFile[Econ3]=$G207))*T_DataComboFile[2023/24 Revised baseline]*$B$3)","v":0},0]
[0,5,null,null,null,null,"Payments for capital assets",{"$f":"SUM(H209:H215)","v":0},0,0,0,0,0,0,{"$f":"SUM(O209:O215)","v":0},0]
[0,5,null,null,null,null,"Buildings and other fixed structures",{"$f":"SUMPRODUCT(((T_DataComboFile[Implementation programme]=$G$3)*(T_DataComboFile[Econ3]=$G209))*T_DataComboFile[2021/22 Baseline]*$B$3)","v":0},{"$f":"SUMPRODUCT(((T_DataComboFile[Implementation programme]=$G$3)*(T_DataComboFile[Econ3]=$G209))*T_DataComboFile[2021/22 Revised baseline]*$B$3)","v":0},0,{"$f":"SUMPRODUCT(((T_DataComboFile[Implementation programme]=$G$3)*(T_DataComboFile[Econ3]=$G209))*T_DataComboFile[2022/23 Baseline]*$B$3)","v":0},{"$f":"SUMPRODUCT(((T_DataComboFile[Implementation programme]=$G$3)*(T_DataComboFile[Econ3]=$G209))*T_DataComboFile[2022/23 Revised baseline]*$B$3)","v":0},0,{"$f":"SUMPRODUCT(((T_DataComboFile[Implementation programme]=$G$3)*(T_DataComboFile[Econ3]=$G209))*T_DataComboFile[2023/24 Baseline]*$B$3)","v":0},{"$f":"SUMPRODUCT(((T_DataComboFile[Implementation programme]=$G$3)*(T_DataComboFile[Econ3]=$G209))*T_DataComboFile[2023/24 Revised baseline]*$B$3)","v":0},0]
[0,5,null,null,null,null,"Machinery and equipment",{"$f":"SUMPRODUCT(((T_DataComboFile[Implementation programme]=$G$3)*(T_DataComboFile[Econ3]=$G210))*T_DataComboFile[2021/22 Baseline]*$B$3)","v":0},{"$f":"SUMPRODUCT(((T_DataComboFile[Implementation programme]=$G$3)*(T_DataComboFile[Econ3]=$G210))*T_DataComboFile[2021/22 Revised baseline]*$B$3)","v":0},0,{"$f":"SUMPRODUCT(((T_DataComboFile[Implementation programme]=$G$3)*(T_DataComboFile[Econ3]=$G210))*T_DataComboFile[2022/23 Baseline]*$B$3)","v":0},{"$f":"SUMPRODUCT(((T_DataComboFile[Implementation programme]=$G$3)*(T_DataComboFile[Econ3]=$G210))*T_DataComboFile[2022/23 Revised baseline]*$B$3)","v":0},0,{"$f":"SUMPRODUCT(((T_DataComboFile[Implementation programme]=$G$3)*(T_DataComboFile[Econ3]=$G210))*T_DataComboFile[2023/24 Baseline]*$B$3)","v":0},{"$f":"SUMPRODUCT(((T_DataComboFile[Implementation programme]=$G$3)*(T_DataComboFile[Econ3]=$G210))*T_DataComboFile[2023/24 Revised baseline]*$B$3)","v":0},0]
[0,5,null,null,null,null,"Heritage assets",{"$f":"SUMPRODUCT(((T_DataComboFile[Implementation programme]=$G$3)*(T_DataComboFile[Econ3]=$G211))*T_DataComboFile[2021/22 Baseline]*$B$3)","v":0},{"$f":"SUMPRODUCT(((T_DataComboFile[Implementation programme]=$G$3)*(T_DataComboFile[Econ3]=$G211))*T_DataComboFile[2021/22 Revised baseline]*$B$3)","v":0},0,{"$f":"SUMPRODUCT(((T_DataComboFile[Implementation programme]=$G$3)*(T_DataComboFile[Econ3]=$G211))*T_DataComboFile[2022/23 Baseline]*$B$3)","v":0},{"$f":"SUMPRODUCT(((T_DataComboFile[Implementation programme]=$G$3)*(T_DataComboFile[Econ3]=$G211))*T_DataComboFile[2022/23 Revised baseline]*$B$3)","v":0},0,{"$f":"SUMPRODUCT(((T_DataComboFile[Implementation programme]=$G$3)*(T_DataComboFile[Econ3]=$G211))*T_DataComboFile[2023/24 Baseline]*$B$3)","v":0},{"$f":"SUMPRODUCT(((T_DataComboFile[Implementation programme]=$G$3)*(T_DataComboFile[Econ3]=$G211))*T_DataComboFile[2023/24 Revised baseline]*$B$3)","v":0},0]
[0,5,null,null,null,null,"Specialised military assets",{"$f":"SUMPRODUCT(((T_DataComboFile[Implementation programme]=$G$3)*(T_DataComboFile[Econ3]=$G212))*T_DataComboFile[2021/22 Baseline]*$B$3)","v":0},{"$f":"SUMPRODUCT(((T_DataComboFile[Implementation programme]=$G$3)*(T_DataComboFile[Econ3]=$G212))*T_DataComboFile[2021/22 Revised baseline]*$B$3)","v":0},0,{"$f":"SUMPRODUCT(((T_DataComboFile[Implementation programme]=$G$3)*(T_DataComboFile[Econ3]=$G212))*T_DataComboFile[2022/23 Baseline]*$B$3)","v":0},{"$f":"SUMPRODUCT(((T_DataComboFile[Implementation programme]=$G$3)*(T_DataComboFile[Econ3]=$G212))*T_DataComboFile[2022/23 Revised baseline]*$B$3)","v":0},0,{"$f":"SUMPRODUCT(((T_DataComboFile[Implementation programme]=$G$3)*(T_DataComboFile[Econ3]=$G212))*T_DataComboFile[2023/24 Baseline]*$B$3)","v":0},{"$f":"SUMPRODUCT(((T_DataComboFile[Implementation programme]=$G$3)*(T_DataComboFile[Econ3]=$G212))*T_DataComboFile[2023/24 Revised baseline]*$B$3)","v":0},0]
[0,5,null,null,null,null,"Biological assets",{"$f":"SUMPRODUCT(((T_DataComboFile[Implementation programme]=$G$3)*(T_DataComboFile[Econ3]=$G213))*T_DataComboFile[2021/22 Baseline]*$B$3)","v":0},{"$f":"SUMPRODUCT(((T_DataComboFile[Implementation programme]=$G$3)*(T_DataComboFile[Econ3]=$G213))*T_DataComboFile[2021/22 Revised baseline]*$B$3)","v":0},0,{"$f":"SUMPRODUCT(((T_DataComboFile[Implementation programme]=$G$3)*(T_DataComboFile[Econ3]=$G213))*T_DataComboFile[2022/23 Baseline]*$B$3)","v":0},{"$f":"SUMPRODUCT(((T_DataComboFile[Implementation programme]=$G$3)*(T_DataComboFile[Econ3]=$G213))*T_DataComboFile[2022/23 Revised baseline]*$B$3)","v":0},0,{"$f":"SUMPRODUCT(((T_DataComboFile[Implementation programme]=$G$3)*(T_DataComboFile[Econ3]=$G213))*T_DataComboFile[2023/24 Baseline]*$B$3)","v":0},{"$f":"SUMPRODUCT(((T_DataComboFile[Implementation programme]=$G$3)*(T_DataComboFile[Econ3]=$G213))*T_DataComboFile[2023/24 Revised baseline]*$B$3)","v":0},0]
[0,5,null,null,null,null,"Land and sub-soil assets",{"$f":"SUMPRODUCT(((T_DataComboFile[Implementation programme]=$G$3)*(T_DataComboFile[Econ3]=$G214))*T_DataComboFile[2021/22 Baseline]*$B$3)","v":0},{"$f":"SUMPRODUCT(((T_DataComboFile[Implementation programme]=$G$3)*(T_DataComboFile[Econ3]=$G214))*T_DataComboFile[2021/22 Revised baseline]*$B$3)","v":0},0,{"$f":"SUMPRODUCT(((T_DataComboFile[Implementation programme]=$G$3)*(T_DataComboFile[Econ3]=$G214))*T_DataComboFile[2022/23 Baseline]*$B$3)","v":0},{"$f":"SUMPRODUCT(((T_DataComboFile[Implementation programme]=$G$3)*(T_DataComboFile[Econ3]=$G214))*T_DataComboFile[2022/23 Revised baseline]*$B$3)","v":0},0,{"$f":"SUMPRODUCT(((T_DataComboFile[Implementation programme]=$G$3)*(T_DataComboFile[Econ3]=$G214))*T_DataComboFile[2023/24 Baseline]*$B$3)","v":0},{"$f":"SUMPRODUCT(((T_DataComboFile[Implementation programme]=$G$3)*(T_DataComboFile[Econ3]=$G214))*T_DataComboFile[2023/24 Revised baseline]*$B$3)","v":0},0]
[0,5,null,null,null,null,"Software and other intangible assets",{"$f":"SUMPRODUCT(((T_DataComboFile[Implementation programme]=$G$3)*(T_DataComboFile[Econ3]=$G215))*T_DataComboFile[2021/22 Baseline]*$B$3)","v":0},{"$f":"SUMPRODUCT(((T_DataComboFile[Implementation programme]=$G$3)*(T_DataComboFile[Econ3]=$G215))*T_DataComboFile[2021/22 Revised baseline]*$B$3)","v":0},0,{"$f":"SUMPRODUCT(((T_DataComboFile[Implementation programme]=$G$3)*(T_DataComboFile[Econ3]=$G215))*T_DataComboFile[2022/23 Baseline]*$B$3)","v":0},{"$f":"SUMPRODUCT(((T_DataComboFile[Implementation programme]=$G$3)*(T_DataComboFile[Econ3]=$G215))*T_DataComboFile[2022/23 Revised baseline]*$B$3)","v":0},0,{"$f":"SUMPRODUCT(((T_DataComboFile[Implementation programme]=$G$3)*(T_DataComboFile[Econ3]=$G215))*T_DataComboFile[2023/24 Baseline]*$B$3)","v":0},{"$f":"SUMPRODUCT(((T_DataComboFile[Implementation programme]=$G$3)*(T_DataComboFile[Econ3]=$G215))*T_DataComboFile[2023/24 Revised baseline]*$B$3)","v":0},0]
[0,5,null,null,null,null,"Payments for financial assets",{"$f":"SUMPRODUCT(((T_DataComboFile[Implementation programme]=$G$3)*(T_DataComboFile[Econ3]=$G216))*T_DataComboFile[2021/22 Baseline]*$B$3)","v":0},{"$f":"SUMPRODUCT(((T_DataComboFile[Implementation programme]=$G$3)*(T_DataComboFile[Econ3]=$G216))*T_DataComboFile[2021/22 Revised baseline]*$B$3)","v":0},0,{"$f":"SUMPRODUCT(((T_DataComboFile[Implementation programme]=$G$3)*(T_DataComboFile[Econ3]=$G216))*T_DataComboFile[2022/23 Baseline]*$B$3)","v":0},{"$f":"SUMPRODUCT(((T_DataComboFile[Implementation programme]=$G$3)*(T_DataComboFile[Econ3]=$G216))*T_DataComboFile[2022/23 Revised baseline]*$B$3)","v":0},0,{"$f":"SUMPRODUCT(((T_DataComboFile[Implementation programme]=$G$3)*(T_DataComboFile[Econ3]=$G216))*T_DataComboFile[2023/24 Baseline]*$B$3)","v":0},{"$f":"SUMPRODUCT(((T_DataComboFile[Implementation programme]=$G$3)*(T_DataComboFile[Econ3]=$G216))*T_DataComboFile[2023/24 Revised baseline]*$B$3)","v":0},0]
[0,5,null,null,null,null,"Total",{"$f":"SUM(H173,H183,H208,H216)","v":0},0,0,0,0,0,0,{"$f":"SUM(O173,O183,O208,O216)","v":0},0]
[]
[null,null,null,null,null,null,null,{"$f":"L65-H217","v":0},{"$f":"O65-I217","v":0},null,{"$f":"P65-K217","v":0},{"$f":"S65-L217","v":0},null,{"$f":"T65-N217","v":0},{"$f":"W65-O217","v":0}]

{"sheet":"IP13","index":22,"n_rows":219,"n_cols":23,"rows_kept":219,"cut":false,"hidden":false,"merged":[[70,6,70,17],[73,6,87,17],[94,16,94,20],[94,21,94,23],[95,16,95,20],[95,21,95,23],[99,16,99,20],[99,21,99,23],[100,16,100,20],[100,21,100,23],[101,16,101,20],[101,21,101,23],[96,16,96,20],[96,21,96,23],[97,16,97,20],[97,21,97,23],[98,16,98,20],[98,21,98,23],[105,16,105,20],[105,21,105,23],[106,16,106,20],[106,21,106,23],[107,16,107,20],[107,21,107,23],[102,16,102,20],[102,21,102,23],[103,16,103,20],[103,21,103,23],[104,16,104,20],[104,21,104,23],[117,16,117,20],[118,16,118,20],[119,16,119,20],[120,16,120,20],[121,16,121,20],[122,16,122,20],[108,16,108,20],[108,21,108,23],[109,16,109,20],[109,21,109,23],[110,16,110,20],[110,21,110,23],[129,16,129,20],[130,16,130,20],[131,16,131,20],[132,16,132,20],[133,16,133,20],[141,16,141,20],[123,16,123,20],[124,16,124,20],[125,16,125,20],[126,16,126,20],[127,16,127,20],[128,16,128,20],[174,16,174,20],[175,16,175,20],[176,16,176,20],[177,16,177,20],[178,16,178,20],[179,16,179,20],[142,16,142,20],[143,16,162,20],[170,16,170,20],[171,16,171,20],[172,16,172,20],[173,16,173,20],[186,16,186,20],[187,16,187,20],[188,16,188,20],[189,16,189,20],[190,16,190,20],[191,16,191,20],[180,16,180,20],[181,16,181,20],[182,16,182,20],[183,16,183,20],[184,16,184,20],[185,16,185,20],[198,16,198,20],[199,16,199,20],[200,16,200,20],[201,16,201,20],[202,16,202,20],[203,16,203,20],[192,16,192,20],[193,16,193,20],[194,16,194,20],[195,16,195,20],[196,16,196,20],[197,16,197,20],[210,16,210,20],[211,16,211,20],[212,16,212,20],[213,16,213,20],[214,16,214,20],[215,16,215,20],[204,16,204,20],[205,16,205,20],[206,16,206,20],[207,16,207,20],[208,16,208,20],[209,16,209,20]]}
[]
[null,null,null,null,null,null,"Implementation programme:"]
[null,{"$f":"IF(G3=\"\",0,1)","v":0},null,null,null,13,null,"… select from dropdown list"]
[null,null,null,null,null,null,null,null,null,null,null,null,"Growth"]
[null,null,null,null,null,null,"Quick view","2020/21","2021/22","2022/23","2023/24","Trend","2021/22","2022/23","2023/24","Ave Ann",null,"2020/21","2021/22","2022/23","2023/24"]
[null,null,null,null,null,null,"Compensation of employees",{"$f":"SUMPRODUCT(($G$32:$G$65=$G6)*($K$32:$K$65))","v":0},{"$f":"SUMPRODUCT(($G$32:$G$65=$G6)*($O$32:$O$65))","v":0},{"$f":"SUMPRODUCT(($G$32:$G$65=$G6)*($S$32:$S$65))","v":0},{"$f":"SUMPRODUCT(($G$32:$G$65=$G6)*($W$32:$W$65))","v":0},null,{"$f":"IFERROR(I6/H6-1,0)","v":0},0,0,{"$f":"IFERROR(((K6/H6)^(1/3)-1),0)","v":0}]
[null,null,null,null,null,null,"Goods and services",{"$f":"SUMPRODUCT(($G$32:$G$65=$G7)*($K$32:$K$65))","v":0},{"$f":"SUMPRODUCT(($G$32:$G$65=$G7)*($O$32:$O$65))","v":0},{"$f":"SUMPRODUCT(($G$32:$G$65=$G7)*($S$32:$S$65))","v":0},{"$f":"SUMPRODUCT(($G$32:$G$65=$G7)*($W$32:$W$65))","v":0},null,0,0,0,0]
[null,null,null,null,null,null,"Transfers and subsidies",{"$f":"SUMPRODUCT(($G$32:$G$65=$G8)*($K$32:$K$65))","v":0},{"$f":"SUMPRODUCT(($G$32:$G$65=$G8)*($O$32:$O$65))","v":0},{"$f":"SUMPRODUCT(($G$32:$G$65=$G8)*($S$32:$S$65))","v":0},{"$f":"SUMPRODUCT(($G$32:$G$65=$G8)*($W$32:$W$65))","v":0},null,0,0,0,0]
[null,null,null,null,null,null,"Payments for capital assets",{"$f":"SUMPRODUCT(($G$32:$G$65=$G9)*($K$32:$K$65))","v":0},{"$f":"SUMPRODUCT(($G$32:$G$65=$G9)*($O$32:$O$65))","v":0},{"$f":"SUMPRODUCT(($G$32:$G$65=$G9)*($S$32:$S$65))","v":0},{"$f":"SUMPRODUCT(($G$32:$G$65=$G9)*($W$32:$W$65))","v":0},null,0,0,0,0]
[null,null,null,null,null,null,"Total",{"$f":"SUMPRODUCT(($G$32:$G$65=$G10)*($K$32:$K$65))","v":0},{"$f":"SUMPRODUCT(($G$32:$G$65=$G10)*($O$32:$O$65))","v":0},{"$f":"SUMPRODUCT(($G$32:$G$65=$G10)*($S$32:$S$65))","v":0},{"$f":"SUMPRODUCT(($G$32:$G$65=$G10)*($W$32:$W$65))","v":0},null,0,0,0,0]
[null,null,null,null,null,null,"Composition of spending (% of Total)"]
[null,null,null,null,null,null,"Compensation of employees",{"$f":"IFERROR(H6/H$10,\"\")","v":""},"","","",null,null,null,null,null,null,{"$f":"IF(H12>0.0595,H12,\"\")","v":""},"","",""]
[null,null,null,null,null,null,"Goods and services","","","","",null,null,null,null,null,null,"","","",""]
[null,null,null,null,null,null,"Transfers and subsidies","","","","",null,null,null,null,null,null,"","","",""]
[null,null,null,null,null,null,"Payments for capital assets","","","","",null,null,null,null,null,null,"","","",""]
[]
[null,null,null,null,null,null,"Division of Revenue","2020/21","2021/22","2022/23","2023/24","Trend","2021/22","2022/23","2023/24","Ave Ann"]
[{"$f":"$G$3","v":0},"NAT",null,null,null,null,"National",{"$f":"SUMPRODUCT(((T_DataComboFile[Implementation programme]=$G$3)*(T_DataComboFile[DOR]=$B18))*T_DataComboFile[2020/21 Revised])","v":2331086},{"$f":"SUMPRODUCT(((T_DataComboFile[Implementation programme]=$G$3)*(T_DataComboFile[DOR]=$B18))*T_DataComboFile[2021/22 Revised baseline])","v":2583809},{"$f":"SUMPRODUCT(((T_DataComboFile[Implementation programme]=$G$3)*(T_DataComboFile[DOR]=$B18))*T_DataComboFile[2022/23 Revised baseline])","v":2617960},{"$f":"SUMPRODUCT(((T_DataComboFile[Implementation programme]=$G$3)*(T_DataComboFile[DOR]=$B18))*T_DataComboFile[2023/24 Revised baseline])","v":2733345},null,{"$f":"IFERROR(I18/H18-1,0)","v":0.10841427557799244},{"$f":"IFERROR(J18/I18-1,0)","v":1.3217308245307535E-2},{"$f":"IFERROR(K18/J18-1,0)","v":4.4074393802808309E-2},{"$f":"IFERROR(((K18/H18)^(1/3)-1),0)","v":5.449708876349435E-2}]
[0,null,null,null,null,null,"Provincial",{"$f":"SUM(H20:H21)","v":0},0,0,0,null,0,0,0,0]
[0,"PES",null,null,null,null,"Provincial equitable share",{"$f":"SUMPRODUCT(((T_DataComboFile[Implementation programme]=$G$3)*(T_DataComboFile[DOR]=$B20))*T_DataComboFile[2020/21 Revised])","v":0},{"$f":"SUMPRODUCT(((T_DataComboFile[Implementation programme]=$G$3)*(T_DataComboFile[DOR]=$B20))*T_DataComboFile[2021/22 Revised baseline])","v":0},{"$f":"SUMPRODUCT(((T_DataComboFile[Implementation programme]=$G$3)*(T_DataComboFile[DOR]=$B20))*T_DataComboFile[2022/23 Revised baseline])","v":0},{"$f":"SUMPRODUCT(((T_DataComboFile[Implementation programme]=$G$3)*(T_DataComboFile[DOR]=$B20))*T_DataComboFile[2023/24 Revised baseline])","v":0},null,{"$f":"IFERROR(I20/H20-1,0)","v":0},0,0,{"$f":"IFERROR(((K20/H20)^(1/3)-1),0)","v":0}]
[0,"PCG",null,null,null,null,"Provincial conditional grants",{"$f":"SUMPRODUCT(((T_DataComboFile[Implementation programme]=$G$3)*(T_DataComboFile[DOR]=$B21))*T_DataComboFile[2020/21 Revised])","v":0},{"$f":"SUMPRODUCT(((T_DataComboFile[Implementation programme]=$G$3)*(T_DataComboFile[DOR]=$B21))*T_DataComboFile[2021/22 Revised baseline])","v":0},{"$f":"SUMPRODUCT(((T_DataComboFile[Implementation programme]=$G$3)*(T_DataComboFile[DOR]=$B21))*T_DataComboFile[2022/23 Revised baseline])","v":0},{"$f":"SUMPRODUCT(((T_DataComboFile[Implementation programme]=$G$3)*(T_DataComboFile[DOR]=$B21))*T_DataComboFile[2023/24 Revised baseline])","v":0},null,0,0,0,0]
[0,null,null,null,null,null,"Local government",{"$f":"SUM(H23:H25)","v":0},0,0,0,null,{"$f":"IFERROR(I22/H22-1,0)","v":0},{"$f":"IFERROR(J22/I22-1,0)","v":0},{"$f":"IFERROR(K22/J22-1,0)","v":0},{"$f":"IFERROR(((K22/H22)^(1/3)-1),0)","v":0}]
[0,"LES",null,null,null,null,"Local equitable share",{"$f":"SUMPRODUCT(((T_DataComboFile[Implementation programme]=$G$3)*(T_DataComboFile[DOR]=$B23))*T_DataComboFile[2020/21 Revised])","v":0},{"$f":"SUMPRODUCT(((T_DataComboFile[Implementation programme]=$G$3)*(T_DataComboFile[DOR]=$B23))*T_DataComboFile[2021/22 Revised baseline])","v":0},{"$f":"SUMPRODUCT(((T_DataComboFile[Implementation programme]=$G$3)*(T_DataComboFile[DOR]=$B23))*T_DataComboFile[2022/23 Revised baseline])","v":0},{"$f":"SUMPRODUCT(((T_DataComboFile[Implementation programme]=$G$3)*(T_DataComboFile[DOR]=$B23))*T_DataComboFile[2023/24 Revised baseline])","v":0},null,{"$f":"IFERROR(I23/H23-1,0)","v":0},0,0,{"$f":"IFERROR(((K23/H23)^(1/3)-1),0)","v":0}]
[0,"LCG",null,null,null,null,"Local conditional grants",{"$f":"SUMPRODUCT(((T_DataComboFile[Implementation programme]=$G$3)*(T_DataComboFile[DOR]=$B24))*T_DataComboFile[2020/21 Revised])","v":0},{"$f":"SUMPRODUCT(((T_DataComboFile[Implementation programme]=$G$3)*(T_DataComboFile[DOR]=$B24))*T_DataComboFile[2021/22 Revised baseline])","v":0},{"$f":"SUMPRODUCT(((T_DataComboFile[Implementation programme]=$G$3)*(T_DataComboFile[DOR]=$B24))*T_DataComboFile[2022/23 Revised baseline])","v":0},{"$f":"SUMPRODUCT(((T_DataComboFile[Implementation programme]=$G$3)*(T_DataComboFile[DOR]=$B24))*T_DataComboFile[2023/24 Revised baseline])","v":0},null,0,0,0,0]
[0,"GFL",null,null,null,null,"General fuel levy ",{"$f":"SUMPRODUCT(((T_DataComboFile[Implementation programme]=$G$3)*(T_DataComboFile[DOR]=$B25))*T_DataComboFile[2020/21 Revised])","v":0},{"$f":"SUMPRODUCT(((T_DataComboFile[Implementation programme]=$G$3)*(T_DataComboFile[DOR]=$B25))*T_DataComboFile[2021/22 Revised baseline])","v":0},{"$f":"SUMPRODUCT(((T_DataComboFile[Implementation programme]=$G$3)*(T_DataComboFile[DOR]=$B25))*T_DataComboFile[2022/23 Revised baseline])","v":0},{"$f":"SUMPRODUCT(((T_DataComboFile[Implementation programme]=$G$3)*(T_DataComboFile[DOR]=$B25))*T_DataComboFile[2023/24 Revised baseline])","v":0},null,0,0,0,0]
[]
[]
[null,null,null,null,null,null,{"$f":"G3","v":0}]
[{"$f":"$G$3","v":0},0,null,null,null,null,null,"2017/18","2018/19","2019/20","2020/21","2021/22",null,null,null,"2022/23",null,null,null,"2023/24"]
[{"$f":"$G$3","v":0},0,null,null,null,null,"Rand thousand","Audited outcome","Audited outcome","Pre-audited outcome","Budget","Baseline","Decrease","Increase","Revised baseline","Baseline","Decrease","Increase","Revised baseline","Baseline","Decrease","Increase","Revised baseline"]
[0,0,null,null,null,null,"Economic classification"]
[0,0,null,null,null,null,"Current payments",{"$f":"SUM(H33:H35)","v":0},0,0,0,0,0,0,0,0,0,0,0,0,0,0,0]
[0,0,null,null,null,null,"Compensation of employees",{"$f":"SUMPRODUCT(((T_DataComboFile[Implementation programme]=$G$3)*(T_DataComboFile[Econ3]=$G33))*T_DataComboFile[2017/18]*$B$3)","v":0},{"$f":"SUMPRODUCT(((T_DataComboFile[Implementation programme]=$G$3)*(T_DataComboFile[Econ3]=$G33))*T_DataComboFile[2018/19]*$B$3)","v":0},{"$f":"SUMPRODUCT(((T_DataComboFile[Implementation programme]=$G$3)*(T_DataComboFile[Econ3]=$G33))*T_DataComboFile[2019/20 Revised estimate]*$B$3)","v":0},{"$f":"SUMPRODUCT(((T_DataComboFile[Implementation programme]=$G$3)*(T_DataComboFile[Econ3]=$G33))*T_DataComboFile[2020/21 Revised]*$B$3)","v":0},{"$f":"SUMPRODUCT(((T_DataComboFile[Implementation programme]=$G$3)*(T_DataComboFile[Econ3]=$G33))*T_DataComboFile[2021/22 Baseline]*$B$3)","v":0},{"$f":"SUMPRODUCT(((T_DataComboFile[Implementation programme]=$G$3)*(T_DataComboFile[Econ3]=$G33))*T_DataComboFile[2021/22 Reduction]*$B$3)","v":0},{"$f":"SUMPRODUCT(((T_DataComboFile[Implementation programme]=$G$3)*(T_DataComboFile[Econ3]=$G33))*T_DataComboFile[2021/22 Increase]*$B$3)","v":0},{"$f":"L33+M33+N33","v":0},{"$f":"SUMPRODUCT(((T_DataComboFile[Implementation programme]=$G$3)*(T_DataComboFile[Econ3]=$G33))*T_DataComboFile[2022/23 Baseline]*$B$3)","v":0},{"$f":"SUMPRODUCT(((T_DataComboFile[Implementation programme]=$G$3)*(T_DataComboFile[Econ3]=$G33))*T_DataComboFile[2022/23 Reduction]*$B$3)","v":0},{"$f":"SUMPRODUCT(((T_DataComboFile[Implementation programme]=$G$3)*(T_DataComboFile[Econ3]=$G33))*T_DataComboFile[2022/23 Increase]*$B$3)","v":0},{"$f":"P33+Q33+R33","v":0},{"$f":"SUMPRODUCT(((T_DataComboFile[Implementation programme]=$G$3)*(T_DataComboFile[Econ3]=$G33))*T_DataComboFile[2023/24 Baseline]*$B$3)","v":0},{"$f":"SUMPRODUCT(((T_DataComboFile[Implementation programme]=$G$3)*(T_DataComboFile[Econ3]=$G33))*T_DataComboFile[2023/24 Reduction]*$B$3)","v":0},{"$f":"SUMPRODUCT(((T_DataComboFile[Implementation programme]=$G$3)*(T_DataComboFile[Econ3]=$G33))*T_DataComboFile[2023/24 Increase]*$B$3)","v":0},{"$f":"T33+U33+V33","v":0}]
[0,0,null,null,null,null,"Goods and services",{"$f":"SUMPRODUCT(((T_DataComboFile[Implementation programme]=$G$3)*(T_DataComboFile[Econ3]=$G34))*T_DataComboFile[2017/18]*$B$3)","v":0},{"$f":"SUMPRODUCT(((T_DataComboFile[Implementation programme]=$G$3)*(T_DataComboFile[Econ3]=$G34))*T_DataComboFile[2018/19]*$B$3)","v":0},{"$f":"SUMPRODUCT(((T_DataComboFile[Implementation programme]=$G$3)*(T_DataComboFile[Econ3]=$G34))*T_DataComboFile[2019/20 Revised estimate]*$B$3)","v":0},{"$f":"SUMPRODUCT(((T_DataComboFile[Implementation programme]=$G$3)*(T_DataComboFile[Econ3]=$G34))*T_DataComboFile[2020/21 Revised]*$B$3)","v":0},{"$f":"SUMPRODUCT(((T_DataComboFile[Implementation programme]=$G$3)*(T_DataComboFile[Econ3]=$G34))*T_DataComboFile[2021/22 Baseline]*$B$3)","v":0},{"$f":"SUMPRODUCT(((T_DataComboFile[Implementation programme]=$G$3)*(T_DataComboFile[Econ3]=$G34))*T_DataComboFile[2021/22 Reduction]*$B$3)","v":0},{"$f":"SUMPRODUCT(((T_DataComboFile[Implementation programme]=$G$3)*(T_DataComboFile[Econ3]=$G34))*T_DataComboFile[2021/22 Increase]*$B$3)","v":0},0,{"$f":"SUMPRODUCT(((T_DataComboFile[Implementation programme]=$G$3)*(T_DataComboFile[Econ3]=$G34))*T_DataComboFile[2022/23 Baseline]*$B$3)","v":0},{"$f":"SUMPRODUCT(((T_DataComboFile[Implementation programme]=$G$3)*(T_DataComboFile[Econ3]=$G34))*T_DataComboFile[2022/23 Reduction]*$B$3)","v":0},{"$f":"SUMPRODUCT(((T_DataComboFile[Implementation programme]=$G$3)*(T_DataComboFile[Econ3]=$G34))*T_DataComboFile[2022/23 Increase]*$B$3)","v":0},0,{"$f":"SUMPRODUCT(((T_DataComboFile[Implementation programme]=$G$3)*(T_DataComboFile[Econ3]=$G34))*T_DataComboFile[2023/24 Baseline]*$B$3)","v":0},{"$f":"SUMPRODUCT(((T_DataComboFile[Implementation programme]=$G$3)*(T_DataComboFile[Econ3]=$G34))*T_DataComboFile[2023/24 Reduction]*$B$3)","v":0},{"$f":"SUMPRODUCT(((T_DataComboFile[Implementation programme]=$G$3)*(T_DataComboFile[Econ3]=$G34))*T_DataComboFile[2023/24 Increase]*$B$3)","v":0},0]
[0,0,null,null,null,null,"Interest and rent on land",{"$f":"SUMPRODUCT(((T_DataComboFile[Implementation programme]=$G$3)*(T_DataComboFile[Econ3]=$G35))*T_DataComboFile[2017/18]*$B$3)","v":0},{"$f":"SUMPRODUCT(((T_DataComboFile[Implementation programme]=$G$3)*(T_DataComboFile[Econ3]=$G35))*T_DataComboFile[2018/19]*$B$3)","v":0},{"$f":"SUMPRODUCT(((T_DataComboFile[Implementation programme]=$G$3)*(T_DataComboFile[Econ3]=$G35))*T_DataComboFile[2019/20 Revised estimate]*$B$3)","v":0},{"$f":"SUMPRODUCT(((T_DataComboFile[Implementation programme]=$G$3)*(T_DataComboFile[Econ3]=$G35))*T_DataComboFile[2020/21 Revised]*$B$3)","v":0},{"$f":"SUMPRODUCT(((T_DataComboFile[Implementation programme]=$G$3)*(T_DataComboFile[Econ3]=$G35))*T_DataComboFile[2021/22 Baseline]*$B$3)","v":0},{"$f":"SUMPRODUCT(((T_DataComboFile[Implementation programme]=$G$3)*(T_DataComboFile[Econ3]=$G35))*T_DataComboFile[2021/22 Reduction]*$B$3)","v":0},{"$f":"SUMPRODUCT(((T_DataComboFile[Implementation programme]=$G$3)*(T_DataComboFile[Econ3]=$G35))*T_DataComboFile[2021/22 Increase]*$B$3)","v":0},0,{"$f":"SUMPRODUCT(((T_DataComboFile[Implementation programme]=$G$3)*(T_DataComboFile[Econ3]=$G35))*T_DataComboFile[2022/23 Baseline]*$B$3)","v":0},{"$f":"SUMPRODUCT(((T_DataComboFile[Implementation programme]=$G$3)*(T_DataComboFile[Econ3]=$G35))*T_DataComboFile[2022/23 Reduction]*$B$3)","v":0},{"$f":"SUMPRODUCT(((T_DataComboFile[Implementation programme]=$G$3)*(T_DataComboFile[Econ3]=$G35))*T_DataComboFile[2022/23 Increase]*$B$3)","v":0},0,{"$f":"SUMPRODUCT(((T_DataComboFile[Implementation programme]=$G$3)*(T_DataComboFile[Econ3]=$G35))*T_DataComboFile[2023/24 Baseline]*$B$3)","v":0},{"$f":"SUMPRODUCT(((T_DataComboFile[Implementation programme]=$G$3)*(T_DataComboFile[Econ3]=$G35))*T_DataComboFile[2023/24 Reduction]*$B$3)","v":0},{"$f":"SUMPRODUCT(((T_DataComboFile[Implementation programme]=$G$3)*(T_DataComboFile[Econ3]=$G35))*T_DataComboFile[2023/24 Increase]*$B$3)","v":0},0]
[0,0,null,null,null,null,"Transfers and subsidies",{"$f":"SUM(H37,H40,H43:H45,H48:H49)","v":0},0,0,0,0,0,0,0,0,0,0,0,0,0,0,0]
[0,0,null,null,null,null,"Provinces and municipalities",{"$f":"SUM(H38:H39)","v":0},0,0,0,0,0,0,0,0,0,0,0,0,0,0,0]
[0,0,null,null,null,null,"Provinces",{"$f":"SUMPRODUCT(((T_DataComboFile[Implementation programme]=$G$3)*(T_DataComboFile[Econ4]=$G38))*T_DataComboFile[2017/18]*$B$3)","v":0},{"$f":"SUMPRODUCT(((T_DataComboFile[Implementation programme]=$G$3)*(T_DataComboFile[Econ4]=$G38))*T_DataComboFile[2018/19]*$B$3)","v":0},{"$f":"SUMPRODUCT(((T_DataComboFile[Implementation programme]=$G$3)*(T_DataComboFile[Econ4]=$G38))*T_DataComboFile[2019/20 Revised estimate]*$B$3)","v":0},{"$f":"SUMPRODUCT(((T_DataComboFile[Implementation programme]=$G$3)*(T_DataComboFile[Econ4]=$G38))*T_DataComboFile[2020/21 Revised]*$B$3)","v":0},{"$f":"SUMPRODUCT(((T_DataComboFile[Implementation programme]=$G$3)*(T_DataComboFile[Econ4]=$G38))*T_DataComboFile[2021/22 Baseline]*$B$3)","v":0},{"$f":"SUMPRODUCT(((T_DataComboFile[Implementation programme]=$G$3)*(T_DataComboFile[Econ4]=$G38))*T_DataComboFile[2021/22 Reduction]*$B$3)","v":0},{"$f":"SUMPRODUCT(((T_DataComboFile[Implementation programme]=$G$3)*(T_DataComboFile[Econ4]=$G38))*T_DataComboFile[2021/22 Increase]*$B$3)","v":0},{"$f":"L38+M38+N38","v":0},{"$f":"SUMPRODUCT(((T_DataComboFile[Implementation programme]=$G$3)*(T_DataComboFile[Econ4]=$G38))*T_DataComboFile[2022/23 Baseline]*$B$3)","v":0},{"$f":"SUMPRODUCT(((T_DataComboFile[Implementation programme]=$G$3)*(T_DataComboFile[Econ4]=$G38))*T_DataComboFile[2022/23 Reduction]*$B$3)","v":0},{"$f":"SUMPRODUCT(((T_DataComboFile[Implementation programme]=$G$3)*(T_DataComboFile[Econ4]=$G38))*T_DataComboFile[2022/23 Increase]*$B$3)","v":0},{"$f":"P38+Q38+R38","v":0},{"$f":"SUMPRODUCT(((T_DataComboFile[Implementation programme]=$G$3)*(T_DataComboFile[Econ4]=$G38))*T_DataComboFile[2023/24 Baseline]*$B$3)","v":0},{"$f":"SUMPRODUCT(((T_DataComboFile[Implementation programme]=$G$3)*(T_DataComboFile[Econ4]=$G38))*T_DataComboFile[2023/24 Reduction]*$B$3)","v":0},{"$f":"SUMPRODUCT(((T_DataComboFile[Implementation programme]=$G$3)*(T_DataComboFile[Econ4]=$G38))*T_DataComboFile[2023/24 Increase]*$B$3)","v":0},{"$f":"T38+U38+V38","v":0}]
[0,0,null,null,null,null,"Municipalities",{"$f":"SUMPRODUCT(((T_DataComboFile[Implementation programme]=$G$3)*(T_DataComboFile[Econ4]=$G39))*T_DataComboFile[2017/18]*$B$3)","v":0},{"$f":"SUMPRODUCT(((T_DataComboFile[Implementation programme]=$G$3)*(T_DataComboFile[Econ4]=$G39))*T_DataComboFile[2018/19]*$B$3)","v":0},{"$f":"SUMPRODUCT(((T_DataComboFile[Implementation programme]=$G$3)*(T_DataComboFile[Econ4]=$G39))*T_DataComboFile[2019/20 Revised estimate]*$B$3)","v":0},{"$f":"SUMPRODUCT(((T_DataComboFile[Implementation programme]=$G$3)*(T_DataComboFile[Econ4]=$G39))*T_DataComboFile[2020/21 Revised]*$B$3)","v":0},{"$f":"SUMPRODUCT(((T_DataComboFile[Implementation programme]=$G$3)*(T_DataComboFile[Econ4]=$G39))*T_DataComboFile[2021/22 Baseline]*$B$3)","v":0},{"$f":"SUMPRODUCT(((T_DataComboFile[Implementation programme]=$G$3)*(T_DataComboFile[Econ4]=$G39))*T_DataComboFile[2021/22 Reduction]*$B$3)","v":0},{"$f":"SUMPRODUCT(((T_DataComboFile[Implementation programme]=$G$3)*(T_DataComboFile[Econ4]=$G39))*T_DataComboFile[2021/22 Increase]*$B$3)","v":0},0,{"$f":"SUMPRODUCT(((T_DataComboFile[Implementation programme]=$G$3)*(T_DataComboFile[Econ4]=$G39))*T_DataComboFile[2022/23 Baseline]*$B$3)","v":0},{"$f":"SUMPRODUCT(((T_DataComboFile[Implementation programme]=$G$3)*(T_DataComboFile[Econ4]=$G39))*T_DataComboFile[2022/23 Reduction]*$B$3)","v":0},{"$f":"SUMPRODUCT(((T_DataComboFile[Implementation programme]=$G$3)*(T_DataComboFile[Econ4]=$G39))*T_DataComboFile[2022/23 Increase]*$B$3)","v":0},0,{"$f":"SUMPRODUCT(((T_DataComboFile[Implementation programme]=$G$3)*(T_DataComboFile[Econ4]=$G39))*T_DataComboFile[2023/24 Baseline]*$B$3)","v":0},{"$f":"SUMPRODUCT(((T_DataComboFile[Implementation programme]=$G$3)*(T_DataComboFile[Econ4]=$G39))*T_DataComboFile[2023/24 Reduction]*$B$3)","v":0},{"$f":"SUMPRODUCT(((T_DataComboFile[Implementation programme]=$G$3)*(T_DataComboFile[Econ4]=$G39))*T_DataComboFile[2023/24 Increase]*$B$3)","v":0},0]
[0,0,null,null,null,null,"Departmental agencies and accounts",{"$f":"SUM(H41:H42)","v":0},0,0,0,0,0,0,0,0,0,0,0,0,0,0,0]
[0,0,null,null,null,null,"Social security funds",{"$f":"SUMPRODUCT(((T_DataComboFile[Implementation programme]=$G$3)*(T_DataComboFile[Econ4]=$G41))*T_DataComboFile[2017/18]*$B$3)","v":0},{"$f":"SUMPRODUCT(((T_DataComboFile[Implementation programme]=$G$3)*(T_DataComboFile[Econ4]=$G41))*T_DataComboFile[2018/19]*$B$3)","v":0},{"$f":"SUMPRODUCT(((T_DataComboFile[Implementation programme]=$G$3)*(T_DataComboFile[Econ4]=$G41))*T_DataComboFile[2019/20 Revised estimate]*$B$3)","v":0},{"$f":"SUMPRODUCT(((T_DataComboFile[Implementation programme]=$G$3)*(T_DataComboFile[Econ4]=$G41))*T_DataComboFile[2020/21 Revised]*$B$3)","v":0},{"$f":"SUMPRODUCT(((T_DataComboFile[Implementation programme]=$G$3)*(T_DataComboFile[Econ4]=$G41))*T_DataComboFile[2021/22 Baseline]*$B$3)","v":0},{"$f":"SUMPRODUCT(((T_DataComboFile[Implementation programme]=$G$3)*(T_DataComboFile[Econ4]=$G41))*T_DataComboFile[2021/22 Reduction]*$B$3)","v":0},{"$f":"SUMPRODUCT(((T_DataComboFile[Implementation programme]=$G$3)*(T_DataComboFile[Econ4]=$G41))*T_DataComboFile[2021/22 Increase]*$B$3)","v":0},{"$f":"L41+M41+N41","v":0},{"$f":"SUMPRODUCT(((T_DataComboFile[Implementation programme]=$G$3)*(T_DataComboFile[Econ4]=$G41))*T_DataComboFile[2022/23 Baseline]*$B$3)","v":0},{"$f":"SUMPRODUCT(((T_DataComboFile[Implementation programme]=$G$3)*(T_DataComboFile[Econ4]=$G41))*T_DataComboFile[2022/23 Reduction]*$B$3)","v":0},{"$f":"SUMPRODUCT(((T_DataComboFile[Implementation programme]=$G$3)*(T_DataComboFile[Econ4]=$G41))*T_DataComboFile[2022/23 Increase]*$B$3)","v":0},{"$f":"P41+Q41+R41","v":0},{"$f":"SUMPRODUCT(((T_DataComboFile[Implementation programme]=$G$3)*(T_DataComboFile[Econ4]=$G41))*T_DataComboFile[2023/24 Baseline]*$B$3)","v":0},{"$f":"SUMPRODUCT(((T_DataComboFile[Implementation programme]=$G$3)*(T_DataComboFile[Econ4]=$G41))*T_DataComboFile[2023/24 Reduction]*$B$3)","v":0},{"$f":"SUMPRODUCT(((T_DataComboFile[Implementation programme]=$G$3)*(T_DataComboFile[Econ4]=$G41))*T_DataComboFile[2023/24 Increase]*$B$3)","v":0},{"$f":"T41+U41+V41","v":0}]
[0,0,null,null,null,null,"Departmental agencies (non-business entities)",{"$f":"SUMPRODUCT(((T_DataComboFile[Implementation programme]=$G$3)*(T_DataComboFile[Econ4]=$G42))*T_DataComboFile[2017/18]*$B$3)","v":0},{"$f":"SUMPRODUCT(((T_DataComboFile[Implementation programme]=$G$3)*(T_DataComboFile[Econ4]=$G42))*T_DataComboFile[2018/19]*$B$3)","v":0},{"$f":"SUMPRODUCT(((T_DataComboFile[Implementation programme]=$G$3)*(T_DataComboFile[Econ4]=$G42))*T_DataComboFile[2019/20 Revised estimate]*$B$3)","v":0},{"$f":"SUMPRODUCT(((T_DataComboFile[Implementation programme]=$G$3)*(T_DataComboFile[Econ4]=$G42))*T_DataComboFile[2020/21 Revised]*$B$3)","v":0},{"$f":"SUMPRODUCT(((T_DataComboFile[Implementation programme]=$G$3)*(T_DataComboFile[Econ4]=$G42))*T_DataComboFile[2021/22 Baseline]*$B$3)","v":0},{"$f":"SUMPRODUCT(((T_DataComboFile[Implementation programme]=$G$3)*(T_DataComboFile[Econ4]=$G42))*T_DataComboFile[2021/22 Reduction]*$B$3)","v":0},{"$f":"SUMPRODUCT(((T_DataComboFile[Implementation programme]=$G$3)*(T_DataComboFile[Econ4]=$G42))*T_DataComboFile[2021/22 Increase]*$B$3)","v":0},0,{"$f":"SUMPRODUCT(((T_DataComboFile[Implementation programme]=$G$3)*(T_DataComboFile[Econ4]=$G42))*T_DataComboFile[2022/23 Baseline]*$B$3)","v":0},{"$f":"SUMPRODUCT(((T_DataComboFile[Implementation programme]=$G$3)*(T_DataComboFile[Econ4]=$G42))*T_DataComboFile[2022/23 Reduction]*$B$3)","v":0},{"$f":"SUMPRODUCT(((T_DataComboFile[Implementation programme]=$G$3)*(T_DataComboFile[Econ4]=$G42))*T_DataComboFile[2022/23 Increase]*$B$3)","v":0},0,{"$f":"SUMPRODUCT(((T_DataComboFile[Implementation programme]=$G$3)*(T_DataComboFile[Econ4]=$G42))*T_DataComboFile[2023/24 Baseline]*$B$3)","v":0},{"$f":"SUMPRODUCT(((T_DataComboFile[Implementation programme]=$G$3)*(T_DataComboFile[Econ4]=$G42))*T_DataComboFile[2023/24 Reduction]*$B$3)","v":0},{"$f":"SUMPRODUCT(((T_DataComboFile[Implementation programme]=$G$3)*(T_DataComboFile[Econ4]=$G42))*T_DataComboFile[2023/24 Increase]*$B$3)","v":0},0]
[0,0,null,null,null,null,"Higher education institutions",{"$f":"SUMPRODUCT(((T_DataComboFile[Implementation programme]=$G$3)*(T_DataComboFile[Econ3]=$G43))*T_DataComboFile[2017/18]*$B$3)","v":0},{"$f":"SUMPRODUCT(((T_DataComboFile[Implementation programme]=$G$3)*(T_DataComboFile[Econ3]=$G43))*T_DataComboFile[2018/19]*$B$3)","v":0},{"$f":"SUMPRODUCT(((T_DataComboFile[Implementation programme]=$G$3)*(T_DataComboFile[Econ3]=$G43))*T_DataComboFile[2019/20 Revised estimate]*$B$3)","v":0},{"$f":"SUMPRODUCT(((T_DataComboFile[Implementation programme]=$G$3)*(T_DataComboFile[Econ3]=$G43))*T_DataComboFile[2020/21 Revised]*$B$3)","v":0},{"$f":"SUMPRODUCT(((T_DataComboFile[Implementation programme]=$G$3)*(T_DataComboFile[Econ3]=$G43))*T_DataComboFile[2021/22 Baseline]*$B$3)","v":0},{"$f":"SUMPRODUCT(((T_DataComboFile[Implementation programme]=$G$3)*(T_DataComboFile[Econ3]=$G43))*T_DataComboFile[2021/22 Reduction]*$B$3)","v":0},{"$f":"SUMPRODUCT(((T_DataComboFile[Implementation programme]=$G$3)*(T_DataComboFile[Econ3]=$G43))*T_DataComboFile[2021/22 Increase]*$B$3)","v":0},0,{"$f":"SUMPRODUCT(((T_DataComboFile[Implementation programme]=$G$3)*(T_DataComboFile[Econ3]=$G43))*T_DataComboFile[2022/23 Baseline]*$B$3)","v":0},{"$f":"SUMPRODUCT(((T_DataComboFile[Implementation programme]=$G$3)*(T_DataComboFile[Econ3]=$G43))*T_DataComboFile[2022/23 Reduction]*$B$3)","v":0},{"$f":"SUMPRODUCT(((T_DataComboFile[Implementation programme]=$G$3)*(T_DataComboFile[Econ3]=$G43))*T_DataComboFile[2022/23 Increase]*$B$3)","v":0},0,{"$f":"SUMPRODUCT(((T_DataComboFile[Implementation programme]=$G$3)*(T_DataComboFile[Econ3]=$G43))*T_DataComboFile[2023/24 Baseline]*$B$3)","v":0},{"$f":"SUMPRODUCT(((T_DataComboFile[Implementation programme]=$G$3)*(T_DataComboFile[Econ3]=$G43))*T_DataComboFile[2023/24 Reduction]*$B$3)","v":0},{"$f":"SUMPRODUCT(((T_DataComboFile[Implementation programme]=$G$3)*(T_DataComboFile[Econ3]=$G43))*T_DataComboFile[2023/24 Increase]*$B$3)","v":0},0]
[0,0,null,null,null,null,"Foreign governments and international organisations",{"$f":"SUMPRODUCT(((T_DataComboFile[Implementation programme]=$G$3)*(T_DataComboFile[Econ3]=$G44))*T_DataComboFile[2017/18]*$B$3)","v":0},{"$f":"SUMPRODUCT(((T_DataComboFile[Implementation programme]=$G$3)*(T_DataComboFile[Econ3]=$G44))*T_DataComboFile[2018/19]*$B$3)","v":0},{"$f":"SUMPRODUCT(((T_DataComboFile[Implementation programme]=$G$3)*(T_DataComboFile[Econ3]=$G44))*T_DataComboFile[2019/20 Revised estimate]*$B$3)","v":0},{"$f":"SUMPRODUCT(((T_DataComboFile[Implementation programme]=$G$3)*(T_DataComboFile[Econ3]=$G44))*T_DataComboFile[2020/21 Revised]*$B$3)","v":0},{"$f":"SUMPRODUCT(((T_DataComboFile[Implementation programme]=$G$3)*(T_DataComboFile[Econ3]=$G44))*T_DataComboFile[2021/22 Baseline]*$B$3)","v":0},{"$f":"SUMPRODUCT(((T_DataComboFile[Implementation programme]=$G$3)*(T_DataComboFile[Econ3]=$G44))*T_DataComboFile[2021/22 Reduction]*$B$3)","v":0},{"$f":"SUMPRODUCT(((T_DataComboFile[Implementation programme]=$G$3)*(T_DataComboFile[Econ3]=$G44))*T_DataComboFile[2021/22 Increase]*$B$3)","v":0},0,{"$f":"SUMPRODUCT(((T_DataComboFile[Implementation programme]=$G$3)*(T_DataComboFile[Econ3]=$G44))*T_DataComboFile[2022/23 Baseline]*$B$3)","v":0},{"$f":"SUMPRODUCT(((T_DataComboFile[Implementation programme]=$G$3)*(T_DataComboFile[Econ3]=$G44))*T_DataComboFile[2022/23 Reduction]*$B$3)","v":0},{"$f":"SUMPRODUCT(((T_DataComboFile[Implementation programme]=$G$3)*(T_DataComboFile[Econ3]=$G44))*T_DataComboFile[2022/23 Increase]*$B$3)","v":0},0,{"$f":"SUMPRODUCT(((T_DataComboFile[Implementation programme]=$G$3)*(T_DataComboFile[Econ3]=$G44))*T_DataComboFile[2023/24 Baseline]*$B$3)","v":0},{"$f":"SUMPRODUCT(((T_DataComboFile[Implementation programme]=$G$3)*(T_DataComboFile[Econ3]=$G44))*T_DataComboFile[2023/24 Reduction]*$B$3)","v":0},{"$f":"SUMPRODUCT(((T_DataComboFile[Implementation programme]=$G$3)*(T_DataComboFile[Econ3]=$G44))*T_DataComboFile[2023/24 Increase]*$B$3)","v":0},0]
[0,0,null,null,null,null,"Public corporations and private enterprises",{"$f":"SUM(H46:H47)","v":0},0,0,0,0,0,0,0,0,0,0,0,0,0,0,0]
[0,0,null,null,null,null,"Public corporations",{"$f":"SUMPRODUCT(((T_DataComboFile[Implementation programme]=$G$3)*(T_DataComboFile[Econ4]=$G46))*T_DataComboFile[2017/18]*$B$3)","v":0},{"$f":"SUMPRODUCT(((T_DataComboFile[Implementation programme]=$G$3)*(T_DataComboFile[Econ4]=$G46))*T_DataComboFile[2018/19]*$B$3)","v":0},{"$f":"SUMPRODUCT(((T_DataComboFile[Implementation programme]=$G$3)*(T_DataComboFile[Econ4]=$G46))*T_DataComboFile[2019/20 Revised estimate]*$B$3)","v":0},{"$f":"SUMPRODUCT(((T_DataComboFile[Implementation programme]=$G$3)*(T_DataComboFile[Econ4]=$G46))*T_DataComboFile[2020/21 Revised]*$B$3)","v":0},{"$f":"SUMPRODUCT(((T_DataComboFile[Implementation programme]=$G$3)*(T_DataComboFile[Econ4]=$G46))*T_DataComboFile[2021/22 Baseline]*$B$3)","v":0},{"$f":"SUMPRODUCT(((T_DataComboFile[Implementation programme]=$G$3)*(T_DataComboFile[Econ4]=$G46))*T_DataComboFile[2021/22 Reduction]*$B$3)","v":0},{"$f":"SUMPRODUCT(((T_DataComboFile[Implementation programme]=$G$3)*(T_DataComboFile[Econ4]=$G46))*T_DataComboFile[2021/22 Increase]*$B$3)","v":0},{"$f":"L46+M46+N46","v":0},{"$f":"SUMPRODUCT(((T_DataComboFile[Implementation programme]=$G$3)*(T_DataComboFile[Econ4]=$G46))*T_DataComboFile[2022/23 Baseline]*$B$3)","v":0},{"$f":"SUMPRODUCT(((T_DataComboFile[Implementation programme]=$G$3)*(T_DataComboFile[Econ4]=$G46))*T_DataComboFile[2022/23 Reduction]*$B$3)","v":0},{"$f":"SUMPRODUCT(((T_DataComboFile[Implementation programme]=$G$3)*(T_DataComboFile[Econ4]=$G46))*T_DataComboFile[2022/23 Increase]*$B$3)","v":0},{"$f":"P46+Q46+R46","v":0},{"$f":"SUMPRODUCT(((T_DataComboFile[Implementation programme]=$G$3)*(T_DataComboFile[Econ4]=$G46))*T_DataComboFile[2023/24 Baseline]*$B$3)","v":0},{"$f":"SUMPRODUCT(((T_DataComboFile[Implementation programme]=$G$3)*(T_DataComboFile[Econ4]=$G46))*T_DataComboFile[2023/24 Reduction]*$B$3)","v":0},{"$f":"SUMPRODUCT(((T_DataComboFile[Implementation programme]=$G$3)*(T_DataComboFile[Econ4]=$G46))*T_DataComboFile[2023/24 Increase]*$B$3)","v":0},{"$f":"T46+U46+V46","v":0}]
[0,0,null,null,null,null,"Private enterprises",{"$f":"SUMPRODUCT(((T_DataComboFile[Implementation programme]=$G$3)*(T_DataComboFile[Econ4]=$G47))*T_DataComboFile[2017/18]*$B$3)","v":0},{"$f":"SUMPRODUCT(((T_DataComboFile[Implementation programme]=$G$3)*(T_DataComboFile[Econ4]=$G47))*T_DataComboFile[2018/19]*$B$3)","v":0},{"$f":"SUMPRODUCT(((T_DataComboFile[Implementation programme]=$G$3)*(T_DataComboFile[Econ4]=$G47))*T_DataComboFile[2019/20 Revised estimate]*$B$3)","v":0},{"$f":"SUMPRODUCT(((T_DataComboFile[Implementation programme]=$G$3)*(T_DataComboFile[Econ4]=$G47))*T_DataComboFile[2020/21 Revised]*$B$3)","v":0},{"$f":"SUMPRODUCT(((T_DataComboFile[Implementation programme]=$G$3)*(T_DataComboFile[Econ4]=$G47))*T_DataComboFile[2021/22 Baseline]*$B$3)","v":0},{"$f":"SUMPRODUCT(((T_DataComboFile[Implementation programme]=$G$3)*(T_DataComboFile[Econ4]=$G47))*T_DataComboFile[2021/22 Reduction]*$B$3)","v":0},{"$f":"SUMPRODUCT(((T_DataComboFile[Implementation programme]=$G$3)*(T_DataComboFile[Econ4]=$G47))*T_DataComboFile[2021/22 Increase]*$B$3)","v":0},0,{"$f":"SUMPRODUCT(((T_DataComboFile[Implementation programme]=$G$3)*(T_DataComboFile[Econ4]=$G47))*T_DataComboFile[2022/23 Baseline]*$B$3)","v":0},{"$f":"SUMPRODUCT(((T_DataComboFile[Implementation programme]=$G$3)*(T_DataComboFile[Econ4]=$G47))*T_DataComboFile[2022/23 Reduction]*$B$3)","v":0},{"$f":"SUMPRODUCT(((T_DataComboFile[Implementation programme]=$G$3)*(T_DataComboFile[Econ4]=$G47))*T_DataComboFile[2022/23 Increase]*$B$3)","v":0},0,{"$f":"SUMPRODUCT(((T_DataComboFile[Implementation programme]=$G$3)*(T_DataComboFile[Econ4]=$G47))*T_DataComboFile[2023/24 Baseline]*$B$3)","v":0},{"$f":"SUMPRODUCT(((T_DataComboFile[Implementation programme]=$G$3)*(T_DataComboFile[Econ4]=$G47))*T_DataComboFile[2023/24 Reduction]*$B$3)","v":0},{"$f":"SUMPRODUCT(((T_DataComboFile[Implementation programme]=$G$3)*(T_DataComboFile[Econ4]=$G47))*T_DataComboFile[2023/24 Increase]*$B$3)","v":0},0]
[0,0,null,null,null,null,"Non-profit institutions",{"$f":"SUMPRODUCT(((T_DataComboFile[Implementation programme]=$G$3)*(T_DataComboFile[Econ3]=$G48))*T_DataComboFile[2017/18]*$B$3)","v":0},{"$f":"SUMPRODUCT(((T_DataComboFile[Implementation programme]=$G$3)*(T_DataComboFile[Econ3]=$G48))*T_DataComboFile[2018/19]*$B$3)","v":0},{"$f":"SUMPRODUCT(((T_DataComboFile[Implementation programme]=$G$3)*(T_DataComboFile[Econ3]=$G48))*T_DataComboFile[2019/20 Revised estimate]*$B$3)","v":0},{"$f":"SUMPRODUCT(((T_DataComboFile[Implementation programme]=$G$3)*(T_DataComboFile[Econ3]=$G48))*T_DataComboFile[2020/21 Revised]*$B$3)","v":0},{"$f":"SUMPRODUCT(((T_DataComboFile[Implementation programme]=$G$3)*(T_DataComboFile[Econ3]=$G48))*T_DataComboFile[2021/22 Baseline]*$B$3)","v":0},{"$f":"SUMPRODUCT(((T_DataComboFile[Implementation programme]=$G$3)*(T_DataComboFile[Econ3]=$G48))*T_DataComboFile[2021/22 Reduction]*$B$3)","v":0},{"$f":"SUMPRODUCT(((T_DataComboFile[Implementation programme]=$G$3)*(T_DataComboFile[Econ3]=$G48))*T_DataComboFile[2021/22 Increase]*$B$3)","v":0},0,{"$f":"SUMPRODUCT(((T_DataComboFile[Implementation programme]=$G$3)*(T_DataComboFile[Econ3]=$G48))*T_DataComboFile[2022/23 Baseline]*$B$3)","v":0},{"$f":"SUMPRODUCT(((T_DataComboFile[Implementation programme]=$G$3)*(T_DataComboFile[Econ3]=$G48))*T_DataComboFile[2022/23 Reduction]*$B$3)","v":0},{"$f":"SUMPRODUCT(((T_DataComboFile[Implementation programme]=$G$3)*(T_DataComboFile[Econ3]=$G48))*T_DataComboFile[2022/23 Increase]*$B$3)","v":0},0,{"$f":"SUMPRODUCT(((T_DataComboFile[Implementation programme]=$G$3)*(T_DataComboFile[Econ3]=$G48))*T_DataComboFile[2023/24 Baseline]*$B$3)","v":0},{"$f":"SUMPRODUCT(((T_DataComboFile[Implementation programme]=$G$3)*(T_DataComboFile[Econ3]=$G48))*T_DataComboFile[2023/24 Reduction]*$B$3)","v":0},{"$f":"SUMPRODUCT(((T_DataComboFile[Implementation programme]=$G$3)*(T_DataComboFile[Econ3]=$G48))*T_DataComboFile[2023/24 Increase]*$B$3)","v":0},0]
[0,0,null,null,null,null,"Households",{"$f":"SUM(H50:H51)","v":0},0,0,0,0,0,0,0,0,0,0,0,0,0,0,0]
[0,0,null,null,null,null,"Social benefits",{"$f":"SUMPRODUCT(((T_DataComboFile[Implementation programme]=$G$3)*(T_DataComboFile[Econ4]=$G50))*T_DataComboFile[2017/18]*$B$3)","v":0},{"$f":"SUMPRODUCT(((T_DataComboFile[Implementation programme]=$G$3)*(T_DataComboFile[Econ4]=$G50))*T_DataComboFile[2018/19]*$B$3)","v":0},{"$f":"SUMPRODUCT(((T_DataComboFile[Implementation programme]=$G$3)*(T_DataComboFile[Econ4]=$G50))*T_DataComboFile[2019/20 Revised estimate]*$B$3)","v":0},{"$f":"SUMPRODUCT(((T_DataComboFile[Implementation programme]=$G$3)*(T_DataComboFile[Econ4]=$G50))*T_DataComboFile[2020/21 Revised]*$B$3)","v":0},{"$f":"SUMPRODUCT(((T_DataComboFile[Implementation programme]=$G$3)*(T_DataComboFile[Econ4]=$G50))*T_DataComboFile[2021/22 Baseline]*$B$3)","v":0},{"$f":"SUMPRODUCT(((T_DataComboFile[Implementation programme]=$G$3)*(T_DataComboFile[Econ4]=$G50))*T_DataComboFile[2021/22 Reduction]*$B$3)","v":0},{"$f":"SUMPRODUCT(((T_DataComboFile[Implementation programme]=$G$3)*(T_DataComboFile[Econ4]=$G50))*T_DataComboFile[2021/22 Increase]*$B$3)","v":0},{"$f":"L50+M50+N50","v":0},{"$f":"SUMPRODUCT(((T_DataComboFile[Implementation programme]=$G$3)*(T_DataComboFile[Econ4]=$G50))*T_DataComboFile[2022/23 Baseline]*$B$3)","v":0},{"$f":"SUMPRODUCT(((T_DataComboFile[Implementation programme]=$G$3)*(T_DataComboFile[Econ4]=$G50))*T_DataComboFile[2022/23 Reduction]*$B$3)","v":0},{"$f":"SUMPRODUCT(((T_DataComboFile[Implementation programme]=$G$3)*(T_DataComboFile[Econ4]=$G50))*T_DataComboFile[2022/23 Increase]*$B$3)","v":0},{"$f":"P50+Q50+R50","v":0},{"$f":"SUMPRODUCT(((T_DataComboFile[Implementation programme]=$G$3)*(T_DataComboFile[Econ4]=$G50))*T_DataComboFile[2023/24 Baseline]*$B$3)","v":0},{"$f":"SUMPRODUCT(((T_DataComboFile[Implementation programme]=$G$3)*(T_DataComboFile[Econ4]=$G50))*T_DataComboFile[2023/24 Reduction]*$B$3)","v":0},{"$f":"SUMPRODUCT(((T_DataComboFile[Implementation programme]=$G$3)*(T_DataComboFile[Econ4]=$G50))*T_DataComboFile[2023/24 Increase]*$B$3)","v":0},{"$f":"T50+U50+V50","v":0}]
[0,0,null,null,null,null,"Other transfers to households",{"$f":"SUMPRODUCT(((T_DataComboFile[Implementation programme]=$G$3)*(T_DataComboFile[Econ4]=$G51))*T_DataComboFile[2017/18]*$B$3)","v":0},{"$f":"SUMPRODUCT(((T_DataComboFile[Implementation programme]=$G$3)*(T_DataComboFile[Econ4]=$G51))*T_DataComboFile[2018/19]*$B$3)","v":0},{"$f":"SUMPRODUCT(((T_DataComboFile[Implementation programme]=$G$3)*(T_DataComboFile[Econ4]=$G51))*T_DataComboFile[2019/20 Revised estimate]*$B$3)","v":0},{"$f":"SUMPRODUCT(((T_DataComboFile[Implementation programme]=$G$3)*(T_DataComboFile[Econ4]=$G51))*T_DataComboFile[2020/21 Revised]*$B$3)","v":0},{"$f":"SUMPRODUCT(((T_DataComboFile[Implementation programme]=$G$3)*(T_DataComboFile[Econ4]=$G51))*T_DataComboFile[2021/22 Baseline]*$B$3)","v":0},{"$f":"SUMPRODUCT(((T_DataComboFile[Implementation programme]=$G$3)*(T_DataComboFile[Econ4]=$G51))*T_DataComboFile[2021/22 Reduction]*$B$3)","v":0},{"$f":"SUMPRODUCT(((T_DataComboFile[Implementation programme]=$G$3)*(T_DataComboFile[Econ4]=$G51))*T_DataComboFile[2021/22 Increase]*$B$3)","v":0},0,{"$f":"SUMPRODUCT(((T_DataComboFile[Implementation programme]=$G$3)*(T_DataComboFile[Econ4]=$G51))*T_DataComboFile[2022/23 Baseline]*$B$3)","v":0},{"$f":"SUMPRODUCT(((T_DataComboFile[Implementation programme]=$G$3)*(T_DataComboFile[Econ4]=$G51))*T_DataComboFile[2022/23 Reduction]*$B$3)","v":0},{"$f":"SUMPRODUCT(((T_DataComboFile[Implementation programme]=$G$3)*(T_DataComboFile[Econ4]=$G51))*T_DataComboFile[2022/23 Increase]*$B$3)","v":0},0,{"$f":"SUMPRODUCT(((T_DataComboFile[Implementation programme]=$G$3)*(T_DataComboFile[Econ4]=$G51))*T_DataComboFile[2023/24 Baseline]*$B$3)","v":0},{"$f":"SUMPRODUCT(((T_DataComboFile[Implementation programme]=$G$3)*(T_DataComboFile[Econ4]=$G51))*T_DataComboFile[2023/24 Reduction]*$B$3)","v":0},{"$f":"SUMPRODUCT(((T_DataComboFile[Implementation programme]=$G$3)*(T_DataComboFile[Econ4]=$G51))*T_DataComboFile[2023/24 Increase]*$B$3)","v":0},0]
[0,0,null,null,null,null,"Payments for capital assets",{"$f":"SUM(H53,H56,H59:H63)","v":0},0,0,0,0,0,0,0,0,0,0,0,0,0,0,0]
[0,0,null,null,null,null,"Buildings and other fixed structures",{"$f":"SUM(H54:H55)","v":0},0,0,0,0,0,0,0,0,0,0,0,0,0,0,0]
[0,0,null,null,null,null,"Buildings",{"$f":"SUMPRODUCT(((T_DataComboFile[Implementation programme]=$G$3)*(T_DataComboFile[Econ4]=$G54))*T_DataComboFile[2017/18]*$B$3)","v":0},{"$f":"SUMPRODUCT(((T_DataComboFile[Implementation programme]=$G$3)*(T_DataComboFile[Econ4]=$G54))*T_DataComboFile[2018/19]*$B$3)","v":0},{"$f":"SUMPRODUCT(((T_DataComboFile[Implementation programme]=$G$3)*(T_DataComboFile[Econ4]=$G54))*T_DataComboFile[2019/20 Revised estimate]*$B$3)","v":0},{"$f":"SUMPRODUCT(((T_DataComboFile[Implementation programme]=$G$3)*(T_DataComboFile[Econ4]=$G54))*T_DataComboFile[2020/21 Revised]*$B$3)","v":0},{"$f":"SUMPRODUCT(((T_DataComboFile[Implementation programme]=$G$3)*(T_DataComboFile[Econ4]=$G54))*T_DataComboFile[2021/22 Baseline]*$B$3)","v":0},{"$f":"SUMPRODUCT(((T_DataComboFile[Implementation programme]=$G$3)*(T_DataComboFile[Econ4]=$G54))*T_DataComboFile[2021/22 Reduction]*$B$3)","v":0},{"$f":"SUMPRODUCT(((T_DataComboFile[Implementation programme]=$G$3)*(T_DataComboFile[Econ4]=$G54))*T_DataComboFile[2021/22 Increase]*$B$3)","v":0},{"$f":"L54+M54+N54","v":0},{"$f":"SUMPRODUCT(((T_DataComboFile[Implementation programme]=$G$3)*(T_DataComboFile[Econ4]=$G54))*T_DataComboFile[2022/23 Baseline]*$B$3)","v":0},{"$f":"SUMPRODUCT(((T_DataComboFile[Implementation programme]=$G$3)*(T_DataComboFile[Econ4]=$G54))*T_DataComboFile[2022/23 Reduction]*$B$3)","v":0},{"$f":"SUMPRODUCT(((T_DataComboFile[Implementation programme]=$G$3)*(T_DataComboFile[Econ4]=$G54))*T_DataComboFile[2022/23 Increase]*$B$3)","v":0},{"$f":"P54+Q54+R54","v":0},{"$f":"SUMPRODUCT(((T_DataComboFile[Implementation programme]=$G$3)*(T_DataComboFile[Econ4]=$G54))*T_DataComboFile[2023/24 Baseline]*$B$3)","v":0},{"$f":"SUMPRODUCT(((T_DataComboFile[Implementation programme]=$G$3)*(T_DataComboFile[Econ4]=$G54))*T_DataComboFile[2023/24 Reduction]*$B$3)","v":0},{"$f":"SUMPRODUCT(((T_DataComboFile[Implementation programme]=$G$3)*(T_DataComboFile[Econ4]=$G54))*T_DataComboFile[2023/24 Increase]*$B$3)","v":0},{"$f":"T54+U54+V54","v":0}]
[0,0,null,null,null,null,"Other fixed structures",{"$f":"SUMPRODUCT(((T_DataComboFile[Implementation programme]=$G$3)*(T_DataComboFile[Econ4]=$G55))*T_DataComboFile[2017/18]*$B$3)","v":0},{"$f":"SUMPRODUCT(((T_DataComboFile[Implementation programme]=$G$3)*(T_DataComboFile[Econ4]=$G55))*T_DataComboFile[2018/19]*$B$3)","v":0},{"$f":"SUMPRODUCT(((T_DataComboFile[Implementation programme]=$G$3)*(T_DataComboFile[Econ4]=$G55))*T_DataComboFile[2019/20 Revised estimate]*$B$3)","v":0},{"$f":"SUMPRODUCT(((T_DataComboFile[Implementation programme]=$G$3)*(T_DataComboFile[Econ4]=$G55))*T_DataComboFile[2020/21 Revised]*$B$3)","v":0},{"$f":"SUMPRODUCT(((T_DataComboFile[Implementation programme]=$G$3)*(T_DataComboFile[Econ4]=$G55))*T_DataComboFile[2021/22 Baseline]*$B$3)","v":0},{"$f":"SUMPRODUCT(((T_DataComboFile[Implementation programme]=$G$3)*(T_DataComboFile[Econ4]=$G55))*T_DataComboFile[2021/22 Reduction]*$B$3)","v":0},{"$f":"SUMPRODUCT(((T_DataComboFile[Implementation programme]=$G$3)*(T_DataComboFile[Econ4]=$G55))*T_DataComboFile[2021/22 Increase]*$B$3)","v":0},0,{"$f":"SUMPRODUCT(((T_DataComboFile[Implementation programme]=$G$3)*(T_DataComboFile[Econ4]=$G55))*T_DataComboFile[2022/23 Baseline]*$B$3)","v":0},{"$f":"SUMPRODUCT(((T_DataComboFile[Implementation programme]=$G$3)*(T_DataComboFile[Econ4]=$G55))*T_DataComboFile[2022/23 Reduction]*$B$3)","v":0},{"$f":"SUMPRODUCT(((T_DataComboFile[Implementation programme]=$G$3)*(T_DataComboFile[Econ4]=$G55))*T_DataComboFile[2022/23 Increase]*$B$3)","v":0},0,{"$f":"SUMPRODUCT(((T_DataComboFile[Implementation programme]=$G$3)*(T_DataComboFile[Econ4]=$G55))*T_DataComboFile[2023/24 Baseline]*$B$3)","v":0},{"$f":"SUMPRODUCT(((T_DataComboFile[Implementation programme]=$G$3)*(T_DataComboFile[Econ4]=$G55))*T_DataComboFile[2023/24 Reduction]*$B$3)","v":0},{"$f":"SUMPRODUCT(((T_DataComboFile[Implementation programme]=$G$3)*(T_DataComboFile[Econ4]=$G55))*T_DataComboFile[2023/24 Increase]*$B$3)","v":0},0]
[0,0,null,null,null,null,"Machinery and equipment",{"$f":"SUM(H57:H58)","v":0},0,0,0,0,0,0,0,0,0,0,0,0,0,0,0]
[0,0,null,null,null,null,"Transport equipment",{"$f":"SUMPRODUCT(((T_DataComboFile[Implementation programme]=$G$3)*(T_DataComboFile[Econ4]=$G57))*T_DataComboFile[2017/18]*$B$3)","v":0},{"$f":"SUMPRODUCT(((T_DataComboFile[Implementation programme]=$G$3)*(T_DataComboFile[Econ4]=$G57))*T_DataComboFile[2018/19]*$B$3)","v":0},{"$f":"SUMPRODUCT(((T_DataComboFile[Implementation programme]=$G$3)*(T_DataComboFile[Econ4]=$G57))*T_DataComboFile[2019/20 Revised estimate]*$B$3)","v":0},{"$f":"SUMPRODUCT(((T_DataComboFile[Implementation programme]=$G$3)*(T_DataComboFile[Econ4]=$G57))*T_DataComboFile[2020/21 Revised]*$B$3)","v":0},{"$f":"SUMPRODUCT(((T_DataComboFile[Implementation programme]=$G$3)*(T_DataComboFile[Econ4]=$G57))*T_DataComboFile[2021/22 Baseline]*$B$3)","v":0},{"$f":"SUMPRODUCT(((T_DataComboFile[Implementation programme]=$G$3)*(T_DataComboFile[Econ4]=$G57))*T_DataComboFile[2021/22 Reduction]*$B$3)","v":0},{"$f":"SUMPRODUCT(((T_DataComboFile[Implementation programme]=$G$3)*(T_DataComboFile[Econ4]=$G57))*T_DataComboFile[2021/22 Increase]*$B$3)","v":0},{"$f":"L57+M57+N57","v":0},{"$f":"SUMPRODUCT(((T_DataComboFile[Implementation programme]=$G$3)*(T_DataComboFile[Econ4]=$G57))*T_DataComboFile[2022/23 Baseline]*$B$3)","v":0},{"$f":"SUMPRODUCT(((T_DataComboFile[Implementation programme]=$G$3)*(T_DataComboFile[Econ4]=$G57))*T_DataComboFile[2022/23 Reduction]*$B$3)","v":0},{"$f":"SUMPRODUCT(((T_DataComboFile[Implementation programme]=$G$3)*(T_DataComboFile[Econ4]=$G57))*T_DataComboFile[2022/23 Increase]*$B$3)","v":0},{"$f":"P57+Q57+R57","v":0},{"$f":"SUMPRODUCT(((T_DataComboFile[Implementation programme]=$G$3)*(T_DataComboFile[Econ4]=$G57))*T_DataComboFile[2023/24 Baseline]*$B$3)","v":0},{"$f":"SUMPRODUCT(((T_DataComboFile[Implementation programme]=$G$3)*(T_DataComboFile[Econ4]=$G57))*T_DataComboFile[2023/24 Reduction]*$B$3)","v":0},{"$f":"SUMPRODUCT(((T_DataComboFile[Implementation programme]=$G$3)*(T_DataComboFile[Econ4]=$G57))*T_DataComboFile[2023/24 Increase]*$B$3)","v":0},{"$f":"T57+U57+V57","v":0}]
[0,0,null,null,null,null,"Other machinery and equipment",{"$f":"SUMPRODUCT(((T_DataComboFile[Implementation programme]=$G$3)*(T_DataComboFile[Econ4]=$G58))*T_DataComboFile[2017/18]*$B$3)","v":0},{"$f":"SUMPRODUCT(((T_DataComboFile[Implementation programme]=$G$3)*(T_DataComboFile[Econ4]=$G58))*T_DataComboFile[2018/19]*$B$3)","v":0},{"$f":"SUMPRODUCT(((T_DataComboFile[Implementation programme]=$G$3)*(T_DataComboFile[Econ4]=$G58))*T_DataComboFile[2019/20 Revised estimate]*$B$3)","v":0},{"$f":"SUMPRODUCT(((T_DataComboFile[Implementation programme]=$G$3)*(T_DataComboFile[Econ4]=$G58))*T_DataComboFile[2020/21 Revised]*$B$3)","v":0},{"$f":"SUMPRODUCT(((T_DataComboFile[Implementation programme]=$G$3)*(T_DataComboFile[Econ4]=$G58))*T_DataComboFile[2021/22 Baseline]*$B$3)","v":0},{"$f":"SUMPRODUCT(((T_DataComboFile[Implementation programme]=$G$3)*(T_DataComboFile[Econ4]=$G58))*T_DataComboFile[2021/22 Reduction]*$B$3)","v":0},{"$f":"SUMPRODUCT(((T_DataComboFile[Implementation programme]=$G$3)*(T_DataComboFile[Econ4]=$G58))*T_DataComboFile[2021/22 Increase]*$B$3)","v":0},0,{"$f":"SUMPRODUCT(((T_DataComboFile[Implementation programme]=$G$3)*(T_DataComboFile[Econ4]=$G58))*T_DataComboFile[2022/23 Baseline]*$B$3)","v":0},{"$f":"SUMPRODUCT(((T_DataComboFile[Implementation programme]=$G$3)*(T_DataComboFile[Econ4]=$G58))*T_DataComboFile[2022/23 Reduction]*$B$3)","v":0},{"$f":"SUMPRODUCT(((T_DataComboFile[Implementation programme]=$G$3)*(T_DataComboFile[Econ4]=$G58))*T_DataComboFile[2022/23 Increase]*$B$3)","v":0},0,{"$f":"SUMPRODUCT(((T_DataComboFile[Implementation programme]=$G$3)*(T_DataComboFile[Econ4]=$G58))*T_DataComboFile[2023/24 Baseline]*$B$3)","v":0},{"$f":"SUMPRODUCT(((T_DataComboFile[Implementation programme]=$G$3)*(T_DataComboFile[Econ4]=$G58))*T_DataComboFile[2023/24 Reduction]*$B$3)","v":0},{"$f":"SUMPRODUCT(((T_DataComboFile[Implementation programme]=$G$3)*(T_DataComboFile[Econ4]=$G58))*T_DataComboFile[2023/24 Increase]*$B$3)","v":0},0]
[0,0,null,null,null,null,"Heritage assets",{"$f":"SUMPRODUCT(((T_DataComboFile[Implementation programme]=$G$3)*(T_DataComboFile[Econ3]=$G59))*T_DataComboFile[2017/18]*$B$3)","v":0},{"$f":"SUMPRODUCT(((T_DataComboFile[Implementation programme]=$G$3)*(T_DataComboFile[Econ3]=$G59))*T_DataComboFile[2018/19]*$B$3)","v":0},{"$f":"SUMPRODUCT(((T_DataComboFile[Implementation programme]=$G$3)*(T_DataComboFile[Econ3]=$G59))*T_DataComboFile[2019/20 Revised estimate]*$B$3)","v":0},{"$f":"SUMPRODUCT(((T_DataComboFile[Implementation programme]=$G$3)*(T_DataComboFile[Econ3]=$G59))*T_DataComboFile[2020/21 Revised]*$B$3)","v":0},{"$f":"SUMPRODUCT(((T_DataComboFile[Implementation programme]=$G$3)*(T_DataComboFile[Econ3]=$G59))*T_DataComboFile[2021/22 Baseline]*$B$3)","v":0},{"$f":"SUMPRODUCT(((T_DataComboFile[Implementation programme]=$G$3)*(T_DataComboFile[Econ3]=$G59))*T_DataComboFile[2021/22 Reduction]*$B$3)","v":0},{"$f":"SUMPRODUCT(((T_DataComboFile[Implementation programme]=$G$3)*(T_DataComboFile[Econ3]=$G59))*T_DataComboFile[2021/22 Increase]*$B$3)","v":0},0,{"$f":"SUMPRODUCT(((T_DataComboFile[Implementation programme]=$G$3)*(T_DataComboFile[Econ3]=$G59))*T_DataComboFile[2022/23 Baseline]*$B$3)","v":0},{"$f":"SUMPRODUCT(((T_DataComboFile[Implementation programme]=$G$3)*(T_DataComboFile[Econ3]=$G59))*T_DataComboFile[2022/23 Reduction]*$B$3)","v":0},{"$f":"SUMPRODUCT(((T_DataComboFile[Implementation programme]=$G$3)*(T_DataComboFile[Econ3]=$G59))*T_DataComboFile[2022/23 Increase]*$B$3)","v":0},0,{"$f":"SUMPRODUCT(((T_DataComboFile[Implementation programme]=$G$3)*(T_DataComboFile[Econ3]=$G59))*T_DataComboFile[2023/24 Baseline]*$B$3)","v":0},{"$f":"SUMPRODUCT(((T_DataComboFile[Implementation programme]=$G$3)*(T_DataComboFile[Econ3]=$G59))*T_DataComboFile[2023/24 Reduction]*$B$3)","v":0},{"$f":"SUMPRODUCT(((T_DataComboFile[Implementation programme]=$G$3)*(T_DataComboFile[Econ3]=$G59))*T_DataComboFile[2023/24 Increase]*$B$3)","v":0},0]
[0,0,null,null,null,null,"Specialised military assets",{"$f":"SUMPRODUCT(((T_DataComboFile[Implementation programme]=$G$3)*(T_DataComboFile[Econ3]=$G60))*T_DataComboFile[2017/18]*$B$3)","v":0},{"$f":"SUMPRODUCT(((T_DataComboFile[Implementation programme]=$G$3)*(T_DataComboFile[Econ3]=$G60))*T_DataComboFile[2018/19]*$B$3)","v":0},{"$f":"SUMPRODUCT(((T_DataComboFile[Implementation programme]=$G$3)*(T_DataComboFile[Econ3]=$G60))*T_DataComboFile[2019/20 Revised estimate]*$B$3)","v":0},{"$f":"SUMPRODUCT(((T_DataComboFile[Implementation programme]=$G$3)*(T_DataComboFile[Econ3]=$G60))*T_DataComboFile[2020/21 Revised]*$B$3)","v":0},{"$f":"SUMPRODUCT(((T_DataComboFile[Implementation programme]=$G$3)*(T_DataComboFile[Econ3]=$G60))*T_DataComboFile[2021/22 Baseline]*$B$3)","v":0},{"$f":"SUMPRODUCT(((T_DataComboFile[Implementation programme]=$G$3)*(T_DataComboFile[Econ3]=$G60))*T_DataComboFile[2021/22 Reduction]*$B$3)","v":0},{"$f":"SUMPRODUCT(((T_DataComboFile[Implementation programme]=$G$3)*(T_DataComboFile[Econ3]=$G60))*T_DataComboFile[2021/22 Increase]*$B$3)","v":0},0,{"$f":"SUMPRODUCT(((T_DataComboFile[Implementation programme]=$G$3)*(T_DataComboFile[Econ3]=$G60))*T_DataComboFile[2022/23 Baseline]*$B$3)","v":0},{"$f":"SUMPRODUCT(((T_DataComboFile[Implementation programme]=$G$3)*(T_DataComboFile[Econ3]=$G60))*T_DataComboFile[2022/23 Reduction]*$B$3)","v":0},{"$f":"SUMPRODUCT(((T_DataComboFile[Implementation programme]=$G$3)*(T_DataComboFile[Econ3]=$G60))*T_DataComboFile[2022/23 Increase]*$B$3)","v":0},0,{"$f":"SUMPRODUCT(((T_DataComboFile[Implementation programme]=$G$3)*(T_DataComboFile[Econ3]=$G60))*T_DataComboFile[2023/24 Baseline]*$B$3)","v":0},{"$f":"SUMPRODUCT(((T_DataComboFile[Implementation programme]=$G$3)*(T_DataComboFile[Econ3]=$G60))*T_DataComboFile[2023/24 Reduction]*$B$3)","v":0},{"$f":"SUMPRODUCT(((T_DataComboFile[Implementation programme]=$G$3)*(T_DataComboFile[Econ3]=$G60))*T_DataComboFile[2023/24 Increase]*$B$3)","v":0},0]
[0,0,null,null,null,null,"Biological assets",{"$f":"SUMPRODUCT(((T_DataComboFile[Implementation programme]=$G$3)*(T_DataComboFile[Econ3]=$G61))*T_DataComboFile[2017/18]*$B$3)","v":0},{"$f":"SUMPRODUCT(((T_DataComboFile[Implementation programme]=$G$3)*(T_DataComboFile[Econ3]=$G61))*T_DataComboFile[2018/19]*$B$3)","v":0},{"$f":"SUMPRODUCT(((T_DataComboFile[Implementation programme]=$G$3)*(T_DataComboFile[Econ3]=$G61))*T_DataComboFile[2019/20 Revised estimate]*$B$3)","v":0},{"$f":"SUMPRODUCT(((T_DataComboFile[Implementation programme]=$G$3)*(T_DataComboFile[Econ3]=$G61))*T_DataComboFile[2020/21 Revised]*$B$3)","v":0},{"$f":"SUMPRODUCT(((T_DataComboFile[Implementation programme]=$G$3)*(T_DataComboFile[Econ3]=$G61))*T_DataComboFile[2021/22 Baseline]*$B$3)","v":0},{"$f":"SUMPRODUCT(((T_DataComboFile[Implementation programme]=$G$3)*(T_DataComboFile[Econ3]=$G61))*T_DataComboFile[2021/22 Reduction]*$B$3)","v":0},{"$f":"SUMPRODUCT(((T_DataComboFile[Implementation programme]=$G$3)*(T_DataComboFile[Econ3]=$G61))*T_DataComboFile[2021/22 Increase]*$B$3)","v":0},0,{"$f":"SUMPRODUCT(((T_DataComboFile[Implementation programme]=$G$3)*(T_DataComboFile[Econ3]=$G61))*T_DataComboFile[2022/23 Baseline]*$B$3)","v":0},{"$f":"SUMPRODUCT(((T_DataComboFile[Implementation programme]=$G$3)*(T_DataComboFile[Econ3]=$G61))*T_DataComboFile[2022/23 Reduction]*$B$3)","v":0},{"$f":"SUMPRODUCT(((T_DataComboFile[Implementation programme]=$G$3)*(T_DataComboFile[Econ3]=$G61))*T_DataComboFile[2022/23 Increase]*$B$3)","v":0},0,{"$f":"SUMPRODUCT(((T_DataComboFile[Implementation programme]=$G$3)*(T_DataComboFile[Econ3]=$G61))*T_DataComboFile[2023/24 Baseline]*$B$3)","v":0},{"$f":"SUMPRODUCT(((T_DataComboFile[Implementation programme]=$G$3)*(T_DataComboFile[Econ3]=$G61))*T_DataComboFile[2023/24 Reduction]*$B$3)","v":0},{"$f":"SUMPRODUCT(((T_DataComboFile[Implementation programme]=$G$3)*(T_DataComboFile[Econ3]=$G61))*T_DataComboFile[2023/24 Increase]*$B$3)","v":0},0]
[0,0,null,null,null,null,"Land and sub-soil assets",{"$f":"SUMPRODUCT(((T_DataComboFile[Implementation programme]=$G$3)*(T_DataComboFile[Econ3]=$G62))*T_DataComboFile[2017/18]*$B$3)","v":0},{"$f":"SUMPRODUCT(((T_DataComboFile[Implementation programme]=$G$3)*(T_DataComboFile[Econ3]=$G62))*T_DataComboFile[2018/19]*$B$3)","v":0},{"$f":"SUMPRODUCT(((T_DataComboFile[Implementation programme]=$G$3)*(T_DataComboFile[Econ3]=$G62))*T_DataComboFile[2019/20 Revised estimate]*$B$3)","v":0},{"$f":"SUMPRODUCT(((T_DataComboFile[Implementation programme]=$G$3)*(T_DataComboFile[Econ3]=$G62))*T_DataComboFile[2020/21 Revised]*$B$3)","v":0},{"$f":"SUMPRODUCT(((T_DataComboFile[Implementation programme]=$G$3)*(T_DataComboFile[Econ3]=$G62))*T_DataComboFile[2021/22 Baseline]*$B$3)","v":0},{"$f":"SUMPRODUCT(((T_DataComboFile[Implementation programme]=$G$3)*(T_DataComboFile[Econ3]=$G62))*T_DataComboFile[2021/22 Reduction]*$B$3)","v":0},{"$f":"SUMPRODUCT(((T_DataComboFile[Implementation programme]=$G$3)*(T_DataComboFile[Econ3]=$G62))*T_DataComboFile[2021/22 Increase]*$B$3)","v":0},0,{"$f":"SUMPRODUCT(((T_DataComboFile[Implementation programme]=$G$3)*(T_DataComboFile[Econ3]=$G62))*T_DataComboFile[2022/23 Baseline]*$B$3)","v":0},{"$f":"SUMPRODUCT(((T_DataComboFile[Implementation programme]=$G$3)*(T_DataComboFile[Econ3]=$G62))*T_DataComboFile[2022/23 Reduction]*$B$3)","v":0},{"$f":"SUMPRODUCT(((T_DataComboFile[Implementation programme]=$G$3)*(T_DataComboFile[Econ3]=$G62))*T_DataComboFile[2022/23 Increase]*$B$3)","v":0},0,{"$f":"SUMPRODUCT(((T_DataComboFile[Implementation programme]=$G$3)*(T_DataComboFile[Econ3]=$G62))*T_DataComboFile[2023/24 Baseline]*$B$3)","v":0},{"$f":"SUMPRODUCT(((T_DataComboFile[Implementation programme]=$G$3)*(T_DataComboFile[Econ3]=$G62))*T_DataComboFile[2023/24 Reduction]*$B$3)","v":0},{"$f":"SUMPRODUCT(((T_DataComboFile[Implementation programme]=$G$3)*(T_DataComboFile[Econ3]=$G62))*T_DataComboFile[2023/24 Increase]*$B$3)","v":0},0]
[0,0,null,null,null,null,"Software and other intangible assets",{"$f":"SUMPRODUCT(((T_DataComboFile[Implementation programme]=$G$3)*(T_DataComboFile[Econ3]=$G63))*T_DataComboFile[2017/18]*$B$3)","v":0},{"$f":"SUMPRODUCT(((T_DataComboFile[Implementation programme]=$G$3)*(T_DataComboFile[Econ3]=$G63))*T_DataComboFile[2018/19]*$B$3)","v":0},{"$f":"SUMPRODUCT(((T_DataComboFile[Implementation programme]=$G$3)*(T_DataComboFile[Econ3]=$G63))*T_DataComboFile[2019/20 Revised estimate]*$B$3)","v":0},{"$f":"SUMPRODUCT(((T_DataComboFile[Implementation programme]=$G$3)*(T_DataComboFile[Econ3]=$G63))*T_DataComboFile[2020/21 Revised]*$B$3)","v":0},{"$f":"SUMPRODUCT(((T_DataComboFile[Implementation programme]=$G$3)*(T_DataComboFile[Econ3]=$G63))*T_DataComboFile[2021/22 Baseline]*$B$3)","v":0},{"$f":"SUMPRODUCT(((T_DataComboFile[Implementation programme]=$G$3)*(T_DataComboFile[Econ3]=$G63))*T_DataComboFile[2021/22 Reduction]*$B$3)","v":0},{"$f":"SUMPRODUCT(((T_DataComboFile[Implementation programme]=$G$3)*(T_DataComboFile[Econ3]=$G63))*T_DataComboFile[2021/22 Increase]*$B$3)","v":0},0,{"$f":"SUMPRODUCT(((T_DataComboFile[Implementation programme]=$G$3)*(T_DataComboFile[Econ3]=$G63))*T_DataComboFile[2022/23 Baseline]*$B$3)","v":0},{"$f":"SUMPRODUCT(((T_DataComboFile[Implementation programme]=$G$3)*(T_DataComboFile[Econ3]=$G63))*T_DataComboFile[2022/23 Reduction]*$B$3)","v":0},{"$f":"SUMPRODUCT(((T_DataComboFile[Implementation programme]=$G$3)*(T_DataComboFile[Econ3]=$G63))*T_DataComboFile[2022/23 Increase]*$B$3)","v":0},0,{"$f":"SUMPRODUCT(((T_DataComboFile[Implementation programme]=$G$3)*(T_DataComboFile[Econ3]=$G63))*T_DataComboFile[2023/24 Baseline]*$B$3)","v":0},{"$f":"SUMPRODUCT(((T_DataComboFile[Implementation programme]=$G$3)*(T_DataComboFile[Econ3]=$G63))*T_DataComboFile[2023/24 Reduction]*$B$3)","v":0},{"$f":"SUMPRODUCT(((T_DataComboFile[Implementation programme]=$G$3)*(T_DataComboFile[Econ3]=$G63))*T_DataComboFile[2023/24 Increase]*$B$3)","v":0},0]
[0,0,null,null,null,null,"Payments for financial assets",{"$f":"SUMPRODUCT(((T_DataComboFile[Implementation programme]=$G$3)*(T_DataComboFile[Econ3]=$G64))*T_DataComboFile[2017/18]*$B$3)","v":0},{"$f":"SUMPRODUCT(((T_DataComboFile[Implementation programme]=$G$3)*(T_DataComboFile[Econ3]=$G64))*T_DataComboFile[2018/19]*$B$3)","v":0},{"$f":"SUMPRODUCT(((T_DataComboFile[Implementation programme]=$G$3)*(T_DataComboFile[Econ3]=$G64))*T_DataComboFile[2019/20 Revised estimate]*$B$3)","v":0},{"$f":"SUMPRODUCT(((T_DataComboFile[Implementation programme]=$G$3)*(T_DataComboFile[Econ3]=$G64))*T_DataComboFile[2020/21 Revised]*$B$3)","v":0},{"$f":"SUMPRODUCT(((T_DataComboFile[Implementation programme]=$G$3)*(T_DataComboFile[Econ3]=$G64))*T_DataComboFile[2021/22 Baseline]*$B$3)","v":0},{"$f":"SUMPRODUCT(((T_DataComboFile[Implementation programme]=$G$3)*(T_DataComboFile[Econ3]=$G64))*T_DataComboFile[2021/22 Reduction]*$B$3)","v":0},{"$f":"SUMPRODUCT(((T_DataComboFile[Implementation programme]=$G$3)*(T_DataComboFile[Econ3]=$G64))*T_DataComboFile[2021/22 Increase]*$B$3)","v":0},0,{"$f":"SUMPRODUCT(((T_DataComboFile[Implementation programme]=$G$3)*(T_DataComboFile[Econ3]=$G64))*T_DataComboFile[2022/23 Baseline]*$B$3)","v":0},{"$f":"SUMPRODUCT(((T_DataComboFile[Implementation programme]=$G$3)*(T_DataComboFile[Econ3]=$G64))*T_DataComboFile[2022/23 Reduction]*$B$3)","v":0},{"$f":"SUMPRODUCT(((T_DataComboFile[Implementation programme]=$G$3)*(T_DataComboFile[Econ3]=$G64))*T_DataComboFile[2022/23 Increase]*$B$3)","v":0},0,{"$f":"SUMPRODUCT(((T_DataComboFile[Implementation programme]=$G$3)*(T_DataComboFile[Econ3]=$G64))*T_DataComboFile[2023/24 Baseline]*$B$3)","v":0},{"$f":"SUMPRODUCT(((T_DataComboFile[Implementation programme]=$G$3)*(T_DataComboFile[Econ3]=$G64))*T_DataComboFile[2023/24 Reduction]*$B$3)","v":0},{"$f":"SUMPRODUCT(((T_DataComboFile[Implementation programme]=$G$3)*(T_DataComboFile[Econ3]=$G64))*T_DataComboFile[2023/24 Increase]*$B$3)","v":0},0]
[0,0,null,null,null,null,"Total",{"$f":"SUM(H32,H36,H52,H64)","v":0},0,0,0,0,0,0,0,0,0,0,0,0,0,0,0]
[]
[]
[]
[]
[]
[null,null,null,null,null,null,{"$f":"\"IMPACT OF ADJUSTMENTS: \" &UPPER($G$3)","v":"IMPACT OF ADJUSTMENTS: "}]
[]
[null,null,null,null,null,1,"Summary of impact on service delivery due to adjustments"]
[{"$f":"$G$3","v":0},1]
[0,1]
[0,1]
[0,1]
[0,1]
[0,1]
[0,1]
[0,1]
[0,1]
[0,1]
[0,1]
[0,1]
[0,1]
[0,1]
[0,1]
[]
[]
[]
[]
[]
[null,null,null,null,null,2,"Impact of adjustments on performance indicators"]
[{"$f":"$G$3","v":0},2,null,null,null,null,null,"2021/22",null,null,"2022/23",null,null,"2023/24",null,null," Comment",null,null,null,null,"Related MTSF Priority"]
[0,2,null,null,null,null,"Performance indicator","Original target","Revised target","Change","Original target","Revised target","Change","Original target","Revised target","Change"]
[0,2]
[0,2]
[0,2]
[0,2]
[0,2]
[0,2]
[0,2]
[0,2]
[0,2]
[0,2]
[0,2]
[0,2]
[0,2]
[0,2]
[0,2]
[]
[]
[]
[]
[]
[null,null,null,null,null,3,"Impact of adjustments on infrastructure projects"]
[{"$f":"$G$3","v":0},3,null,null,null,null,null,"2021/22",null,null,"2022/23",null,null,"2023/24",null,null," Comment"]
[0,3,null,null,null,null,"Project name","Original amount","Revised amount","Change","Original amount","Revised amount","Change","Original amount","Revised amount","Change"]
[0,3,null,null,null,null,null,null,null,{"$f":"I120-H120","v":0},null,null,{"$f":"L120-K120","v":0},null,null,{"$f":"O120-N120","v":0}]
[0,3,null,null,null,null,null,null,null,0,null,null,0,null,null,0]
[0,3,null,null,null,null,null,null,null,0,null,null,0,null,null,0]
[0,3,null,null,null,null,null,null,null,0,null,null,0,null,null,0]
[0,3,null,null,null,null,null,null,null,0,null,null,0,null,null,0]
[0,3,null,null,null,null,null,null,null,0,null,null,0,null,null,0]
[0,3,null,null,null,null,null,null,null,0,null,null,0,null,null,0]
[0,3,null,null,null,null,null,null,null,0,null,null,0,null,null,0]
[0,3,null,null,null,null,null,null,null,0,null,null,0,null,null,0]
[0,3,null,null,null,null,null,null,null,0,null,null,0,null,null,0]
[0,3,null,null,null,null,null,null,null,0,null,null,0,null,null,0]
[0,3,null,null,null,null,null,null,null,0,null,null,0,null,null,0]
[0,3,null,null,null,null,null,null,null,0,null,null,0,null,null,0]
[0,3,null,null,null,null,null,null,null,0,null,null,0,null,null,0]
[0,3,null,null,null,null,null,null,null,0,null,null,0,null,null,0]
[0,3,null,null,null,null,"Total",{"$f":"SUM(H120:H134)","v":0},0,0,0,0,0,0,0,0]
[]
[]
[]
[]
[]
[null,null,null,null,null,4,"Impact of adjustments on personnel headcount numbers"]
[{"$f":"$G$3","v":0},4,null,null,null,null,null,"2021/22",null,null,"2022/23",null,null,"2023/24",null,null," Comment"]
[0,4,null,null,null,null,"Salary level","Original number","Revised number","Change","Original number","Revised number","Change","Original number","Revised number","Change"]
[0,4,null,null,null,null,1,null,null,{"$f":"I144-H144","v":0},null,null,{"$f":"L144-K144","v":0},null,null,{"$f":"O144-N144","v":0}]
[0,4,null,null,null,null,2,null,null,0,null,null,0,null,null,0]
[0,4,null,null,null,null,3,null,null,0,null,null,0,null,null,0]
[0,4,null,null,null,null,4,null,null,0,null,null,0,null,null,0]
[0,4,null,null,null,null,5,null,null,0,null,null,0,null,null,0]
[0,4,null,null,null,null,6,null,null,0,null,null,0,null,null,0]
[0,4,null,null,null,null,7,null,null,0,null,null,0,null,null,0]
[0,4,null,null,null,null,8,null,null,0,null,null,0,null,null,0]
[0,4,null,null,null,null,9,null,null,0,null,null,0,null,null,0]
[0,4,null,null,null,null,10,null,null,0,null,null,0,null,null,0]
[0,4,null,null,null,null,11,null,null,0,null,null,0,null,null,0]
[0,4,null,null,null,null,12,null,null,0,null,null,0,null,null,0]
[0,4,null,null,null,null,13,null,null,0,null,null,0,null,null,0]
[0,4,null,null,null,null,14,null,null,0,null,null,0,null,null,0]
[0,4,null,null,null,null,15,null,null,0,null,null,0,null,null,0]
[0,4,null,null,null,null,16,null,null,0,null,null,0,null,null,0]
[0,4,null,null,null,null,"Other",null,null,0,null,null,0,null,null,0]
[0,4,null,null,null,null,"Other",null,null,0,null,null,0,null,null,0]
[0,4,null,null,null,null,"Other",null,null,0,null,null,0,null,null,0]
[0,4,null,null,null,null,"Other",null,null,0,null,null,0,null,null,0]
[0,4,null,null,null,null,"Total",{"$f":"SUM(H144:H163)","v":0},0,0,0,0,0,0,0,0]
[]
[]
[]
[]
[]
[null,null,null,null,null,5,"Impact of adjustments by economic classification"]
[{"$f":"$G$3","v":0},5,null,null,null,null,null,"2021/22",null,null,"2022/23",null,null,"2023/24",null,null," Comment"]
[0,5,null,null,null,null,"Salary level","Original number","Revised number","Change","Original number","Revised number","Change","Original number","Revised number","Change"]
[0,5,null,null,null,null,"Current payments",{"$f":"SUM(H174,H175,H182)","v":0},{"$f":"SUM(I174,I175,I182)","v":0},{"$f":"I173-H173","v":0},{"$f":"SUM(K174,K175,K182)","v":0},{"$f":"SUM(L174,L175,L182)","v":0},{"$f":"L173-K173","v":0},{"$f":"SUM(N174,N175,N182)","v":0},{"$f":"SUM(O174,O175,O182)","v":0},{"$f":"O173-N173","v":0}]
[0,5,null,null,null,null,"Compensation of employees",{"$f":"SUMPRODUCT(((T_DataComboFile[Implementation programme]=$G$3)*(T_DataComboFile[Econ3]=$G174))*T_DataComboFile[2021/22 Baseline]*$B$3)","v":0},{"$f":"SUMPRODUCT(((T_DataComboFile[Implementation programme]=$G$3)*(T_DataComboFile[Econ3]=$G174))*T_DataComboFile[2021/22 Revised baseline]*$B$3)","v":0},0,{"$f":"SUMPRODUCT(((T_DataComboFile[Implementation programme]=$G$3)*(T_DataComboFile[Econ3]=$G174))*T_DataComboFile[2022/23 Baseline]*$B$3)","v":0},{"$f":"SUMPRODUCT(((T_DataComboFile[Implementation programme]=$G$3)*(T_DataComboFile[Econ3]=$G174))*T_DataComboFile[2022/23 Revised baseline]*$B$3)","v":0},0,{"$f":"SUMPRODUCT(((T_DataComboFile[Implementation programme]=$G$3)*(T_DataComboFile[Econ3]=$G174))*T_DataComboFile[2023/24 Baseline]*$B$3)","v":0},{"$f":"SUMPRODUCT(((T_DataComboFile[Implementation programme]=$G$3)*(T_DataComboFile[Econ3]=$G174))*T_DataComboFile[2023/24 Revised baseline]*$B$3)","v":0},0]
[0,5,null,null,null,null,"Goods and services",{"$f":"SUMPRODUCT(((T_DataComboFile[Implementation programme]=$G$3)*(T_DataComboFile[Econ3]=$G175))*T_DataComboFile[2021/22 Baseline]*$B$3)","v":0},{"$f":"SUMPRODUCT(((T_DataComboFile[Implementation programme]=$G$3)*(T_DataComboFile[Econ3]=$G175))*T_DataComboFile[2021/22 Revised baseline]*$B$3)","v":0},0,{"$f":"SUMPRODUCT(((T_DataComboFile[Implementation programme]=$G$3)*(T_DataComboFile[Econ3]=$G175))*T_DataComboFile[2022/23 Baseline]*$B$3)","v":0},{"$f":"SUMPRODUCT(((T_DataComboFile[Implementation programme]=$G$3)*(T_DataComboFile[Econ3]=$G175))*T_DataComboFile[2022/23 Revised baseline]*$B$3)","v":0},0,{"$f":"SUMPRODUCT(((T_DataComboFile[Implementation programme]=$G$3)*(T_DataComboFile[Econ3]=$G175))*T_DataComboFile[2023/24 Baseline]*$B$3)","v":0},{"$f":"SUMPRODUCT(((T_DataComboFile[Implementation programme]=$G$3)*(T_DataComboFile[Econ3]=$G175))*T_DataComboFile[2023/24 Revised baseline]*$B$3)","v":0},0]
[0,50,null,null,null,null,"of which:"]
[0,51,null,null,null,null,null,null,null,{"$f":"I177-H177","v":0},null,null,{"$f":"L177-K177","v":0},null,null,0]
[0,51,null,null,null,null,null,null,null,0,null,null,0,null,null,0]
[0,51,null,null,null,null,null,null,null,0,null,null,0,null,null,0]
[0,51,null,null,null,null,null,null,null,0,null,null,0,null,null,0]
[0,51,null,null,null,null,null,null,null,0,null,null,0,null,null,0]
[0,5,null,null,null,null,"Interest and rent on land",{"$f":"SUMPRODUCT(((T_DataComboFile[Implementation programme]=$G$3)*(T_DataComboFile[Econ3]=$G182))*T_DataComboFile[2021/22 Baseline]*$B$3)","v":0},{"$f":"SUMPRODUCT(((T_DataComboFile[Implementation programme]=$G$3)*(T_DataComboFile[Econ3]=$G182))*T_DataComboFile[2021/22 Revised baseline]*$B$3)","v":0},0,{"$f":"SUMPRODUCT(((T_DataComboFile[Implementation programme]=$G$3)*(T_DataComboFile[Econ3]=$G182))*T_DataComboFile[2022/23 Baseline]*$B$3)","v":0},{"$f":"SUMPRODUCT(((T_DataComboFile[Implementation programme]=$G$3)*(T_DataComboFile[Econ3]=$G182))*T_DataComboFile[2022/23 Revised baseline]*$B$3)","v":0},0,{"$f":"SUMPRODUCT(((T_DataComboFile[Implementation programme]=$G$3)*(T_DataComboFile[Econ3]=$G182))*T_DataComboFile[2023/24 Baseline]*$B$3)","v":0},{"$f":"SUMPRODUCT(((T_DataComboFile[Implementation programme]=$G$3)*(T_DataComboFile[Econ3]=$G182))*T_DataComboFile[2023/24 Revised baseline]*$B$3)","v":0},0]
[0,5,null,null,null,null,"Transfers and subsidies",{"$f":"SUM(H184,H185,H197,H198,H199,H206,H207)","v":0},{"$f":"SUM(I184,I185,I197,I198,I199,I206,I207)","v":0},0,{"$f":"SUM(K184,K185,K197,K198,K199,K206,K207)","v":0},0,0,{"$f":"SUM(N184,N185,N197,N198,N199,N206,N207)","v":0},0,0]
[0,5,null,null,null,null,"Provinces and municipalities",{"$f":"SUMPRODUCT(((T_DataComboFile[Implementation programme]=$G$3)*(T_DataComboFile[Econ3]=$G184))*T_DataComboFile[2021/22 Baseline]*$B$3)","v":0},{"$f":"SUMPRODUCT(((T_DataComboFile[Implementation programme]=$G$3)*(T_DataComboFile[Econ3]=$G184))*T_DataComboFile[2021/22 Revised baseline]*$B$3)","v":0},0,{"$f":"SUMPRODUCT(((T_DataComboFile[Implementation programme]=$G$3)*(T_DataComboFile[Econ3]=$G184))*T_DataComboFile[2022/23 Baseline]*$B$3)","v":0},{"$f":"SUMPRODUCT(((T_DataComboFile[Implementation programme]=$G$3)*(T_DataComboFile[Econ3]=$G184))*T_DataComboFile[2022/23 Revised baseline]*$B$3)","v":0},0,{"$f":"SUMPRODUCT(((T_DataComboFile[Implementation programme]=$G$3)*(T_DataComboFile[Econ3]=$G184))*T_DataComboFile[2023/24 Baseline]*$B$3)","v":0},{"$f":"SUMPRODUCT(((T_DataComboFile[Implementation programme]=$G$3)*(T_DataComboFile[Econ3]=$G184))*T_DataComboFile[2023/24 Revised baseline]*$B$3)","v":0},0]
[0,5,null,null,null,null,"Departmental agencies and accounts",{"$f":"SUMPRODUCT(((T_DataComboFile[Implementation programme]=$G$3)*(T_DataComboFile[Econ3]=$G185))*T_DataComboFile[2021/22 Baseline]*$B$3)","v":0},{"$f":"SUMPRODUCT(((T_DataComboFile[Implementation programme]=$G$3)*(T_DataComboFile[Econ3]=$G185))*T_DataComboFile[2021/22 Revised baseline]*$B$3)","v":0},0,{"$f":"SUMPRODUCT(((T_DataComboFile[Implementation programme]=$G$3)*(T_DataComboFile[Econ3]=$G185))*T_DataComboFile[2022/23 Baseline]*$B$3)","v":0},{"$f":"SUMPRODUCT(((T_DataComboFile[Implementation programme]=$G$3)*(T_DataComboFile[Econ3]=$G185))*T_DataComboFile[2022/23 Revised baseline]*$B$3)","v":0},0,{"$f":"SUMPRODUCT(((T_DataComboFile[Implementation programme]=$G$3)*(T_DataComboFile[Econ3]=$G185))*T_DataComboFile[2023/24 Baseline]*$B$3)","v":0},{"$f":"SUMPRODUCT(((T_DataComboFile[Implementation programme]=$G$3)*(T_DataComboFile[Econ3]=$G185))*T_DataComboFile[2023/24 Revised baseline]*$B$3)","v":0},0]
[0,50,null,null,null,null,"of which:"]
[0,52,null,null,null,null,null,null,null,{"$f":"I187-H187","v":0},null,null,{"$f":"L187-K187","v":0},null,null,{"$f":"O187-N187","v":0}]
[0,52,null,null,null,null,null,null,null,0,null,null,0,null,null,0]
[0,52,null,null,null,null,null,null,null,0,null,null,0,null,null,0]
[0,52,null,null,null,null,null,null,null,0,null,null,0,null,null,0]
[0,52,null,null,null,null,null,null,null,0,null,null,0,null,null,0]
[0,52,null,null,null,null,null,null,null,0,null,null,0,null,null,0]
[0,52,null,null,null,null,null,null,null,0,null,null,0,null,null,0]
[0,52,null,null,null,null,null,null,null,0,null,null,0,null,null,0]
[0,52,null,null,null,null,null,null,null,0,null,null,0,null,null,0]
[0,52,null,null,null,null,null,null,null,0,null,null,0,null,null,0]
[0,5,null,null,null,null,"Higher education institutions",{"$f":"SUMPRODUCT(((T_DataComboFile[Implementation programme]=$G$3)*(T_DataComboFile[Econ3]=$G197))*T_DataComboFile[2021/22 Baseline]*$B$3)","v":0},{"$f":"SUMPRODUCT(((T_DataComboFile[Implementation programme]=$G$3)*(T_DataComboFile[Econ3]=$G197))*T_DataComboFile[2021/22 Revised baseline]*$B$3)","v":0},0,{"$f":"SUMPRODUCT(((T_DataComboFile[Implementation programme]=$G$3)*(T_DataComboFile[Econ3]=$G197))*T_DataComboFile[2022/23 Baseline]*$B$3)","v":0},{"$f":"SUMPRODUCT(((T_DataComboFile[Implementation programme]=$G$3)*(T_DataComboFile[Econ3]=$G197))*T_DataComboFile[2022/23 Revised baseline]*$B$3)","v":0},0,{"$f":"SUMPRODUCT(((T_DataComboFile[Implementation programme]=$G$3)*(T_DataComboFile[Econ3]=$G197))*T_DataComboFile[2023/24 Baseline]*$B$3)","v":0},{"$f":"SUMPRODUCT(((T_DataComboFile[Implementation programme]=$G$3)*(T_DataComboFile[Econ3]=$G197))*T_DataComboFile[2023/24 Revised baseline]*$B$3)","v":0},0]
[0,5,null,null,null,null,"Foreign governments and international organisations",{"$f":"SUMPRODUCT(((T_DataComboFile[Implementation programme]=$G$3)*(T_DataComboFile[Econ3]=$G198))*T_DataComboFile[2021/22 Baseline]*$B$3)","v":0},{"$f":"SUMPRODUCT(((T_DataComboFile[Implementation programme]=$G$3)*(T_DataComboFile[Econ3]=$G198))*T_DataComboFile[2021/22 Revised baseline]*$B$3)","v":0},0,{"$f":"SUMPRODUCT(((T_DataComboFile[Implementation programme]=$G$3)*(T_DataComboFile[Econ3]=$G198))*T_DataComboFile[2022/23 Baseline]*$B$3)","v":0},{"$f":"SUMPRODUCT(((T_DataComboFile[Implementation programme]=$G$3)*(T_DataComboFile[Econ3]=$G198))*T_DataComboFile[2022/23 Revised baseline]*$B$3)","v":0},0,{"$f":"SUMPRODUCT(((T_DataComboFile[Implementation programme]=$G$3)*(T_DataComboFile[Econ3]=$G198))*T_DataComboFile[2023/24 Baseline]*$B$3)","v":0},{"$f":"SUMPRODUCT(((T_DataComboFile[Implementation programme]=$G$3)*(T_DataComboFile[Econ3]=$G198))*T_DataComboFile[2023/24 Revised baseline]*$B$3)","v":0},0]
[0,5,null,null,null,null,"Public corporations and private enterprises",{"$f":"SUMPRODUCT(((T_DataComboFile[Implementation programme]=$G$3)*(T_DataComboFile[Econ3]=$G199))*T_DataComboFile[2021/22 Baseline]*$B$3)","v":0},{"$f":"SUMPRODUCT(((T_DataComboFile[Implementation programme]=$G$3)*(T_DataComboFile[Econ3]=$G199))*T_DataComboFile[2021/22 Revised baseline]*$B$3)","v":0},0,{"$f":"SUMPRODUCT(((T_DataComboFile[Implementation programme]=$G$3)*(T_DataComboFile[Econ3]=$G199))*T_DataComboFile[2022/23 Baseline]*$B$3)","v":0},{"$f":"SUMPRODUCT(((T_DataComboFile[Implementation programme]=$G$3)*(T_DataComboFile[Econ3]=$G199))*T_DataComboFile[2022/23 Revised baseline]*$B$3)","v":0},0,{"$f":"SUMPRODUCT(((T_DataComboFile[Implementation programme]=$G$3)*(T_DataComboFile[Econ3]=$G199))*T_DataComboFile[2023/24 Baseline]*$B$3)","v":0},{"$f":"SUMPRODUCT(((T_DataComboFile[Implementation programme]=$G$3)*(T_DataComboFile[Econ3]=$G199))*T_DataComboFile[2023/24 Revised baseline]*$B$3)","v":0},0]
[0,50,null,null,null,null,"of which:"]
[0,53,null,null,null,null,null,null,null,{"$f":"I201-H201","v":0},null,null,{"$f":"L201-K201","v":0},null,null,{"$f":"O201-N201","v":0}]
[0,53,null,null,null,null,null,null,null,0,null,null,0,null,null,0]
[0,53,null,null,null,null,null,null,null,0,null,null,0,null,null,0]
[0,53,null,null,null,null,null,null,null,0,null,null,0,null,null,0]
[0,53,null,null,null,null,null,null,null,0,null,null,0,null,null,0]
[0,5,null,null,null,null,"Non-profit institutions",{"$f":"SUMPRODUCT(((T_DataComboFile[Implementation programme]=$G$3)*(T_DataComboFile[Econ3]=$G206))*T_DataComboFile[2021/22 Baseline]*$B$3)","v":0},{"$f":"SUMPRODUCT(((T_DataComboFile[Implementation programme]=$G$3)*(T_DataComboFile[Econ3]=$G206))*T_DataComboFile[2021/22 Revised baseline]*$B$3)","v":0},0,{"$f":"SUMPRODUCT(((T_DataComboFile[Implementation programme]=$G$3)*(T_DataComboFile[Econ3]=$G206))*T_DataComboFile[2022/23 Baseline]*$B$3)","v":0},{"$f":"SUMPRODUCT(((T_DataComboFile[Implementation programme]=$G$3)*(T_DataComboFile[Econ3]=$G206))*T_DataComboFile[2022/23 Revised baseline]*$B$3)","v":0},0,{"$f":"SUMPRODUCT(((T_DataComboFile[Implementation programme]=$G$3)*(T_DataComboFile[Econ3]=$G206))*T_DataComboFile[2023/24 Baseline]*$B$3)","v":0},{"$f":"SUMPRODUCT(((T_DataComboFile[Implementation programme]=$G$3)*(T_DataComboFile[Econ3]=$G206))*T_DataComboFile[2023/24 Revised baseline]*$B$3)","v":0},0]
[0,5,null,null,null,null,"Households",{"$f":"SUMPRODUCT(((T_DataComboFile[Implementation programme]=$G$3)*(T_DataComboFile[Econ3]=$G207))*T_DataComboFile[2021/22 Baseline]*$B$3)","v":0},{"$f":"SUMPRODUCT(((T_DataComboFile[Implementation programme]=$G$3)*(T_DataComboFile[Econ3]=$G207))*T_DataComboFile[2021/22 Revised baseline]*$B$3)","v":0},0,{"$f":"SUMPRODUCT(((T_DataComboFile[Implementation programme]=$G$3)*(T_DataComboFile[Econ3]=$G207))*T_DataComboFile[2022/23 Baseline]*$B$3)","v":0},{"$f":"SUMPRODUCT(((T_DataComboFile[Implementation programme]=$G$3)*(T_DataComboFile[Econ3]=$G207))*T_DataComboFile[2022/23 Revised baseline]*$B$3)","v":0},0,{"$f":"SUMPRODUCT(((T_DataComboFile[Implementation programme]=$G$3)*(T_DataComboFile[Econ3]=$G207))*T_DataComboFile[2023/24 Baseline]*$B$3)","v":0},{"$f":"SUMPRODUCT(((T_DataComboFile[Implementation programme]=$G$3)*(T_DataComboFile[Econ3]=$G207))*T_DataComboFile[2023/24 Revised baseline]*$B$3)","v":0},0]
[0,5,null,null,null,null,"Payments for capital assets",{"$f":"SUM(H209:H215)","v":0},0,0,0,0,0,0,{"$f":"SUM(O209:O215)","v":0},0]
[0,5,null,null,null,null,"Buildings and other fixed structures",{"$f":"SUMPRODUCT(((T_DataComboFile[Implementation programme]=$G$3)*(T_DataComboFile[Econ3]=$G209))*T_DataComboFile[2021/22 Baseline]*$B$3)","v":0},{"$f":"SUMPRODUCT(((T_DataComboFile[Implementation programme]=$G$3)*(T_DataComboFile[Econ3]=$G209))*T_DataComboFile[2021/22 Revised baseline]*$B$3)","v":0},0,{"$f":"SUMPRODUCT(((T_DataComboFile[Implementation programme]=$G$3)*(T_DataComboFile[Econ3]=$G209))*T_DataComboFile[2022/23 Baseline]*$B$3)","v":0},{"$f":"SUMPRODUCT(((T_DataComboFile[Implementation programme]=$G$3)*(T_DataComboFile[Econ3]=$G209))*T_DataComboFile[2022/23 Revised baseline]*$B$3)","v":0},0,{"$f":"SUMPRODUCT(((T_DataComboFile[Implementation programme]=$G$3)*(T_DataComboFile[Econ3]=$G209))*T_DataComboFile[2023/24 Baseline]*$B$3)","v":0},{"$f":"SUMPRODUCT(((T_DataComboFile[Implementation programme]=$G$3)*(T_DataComboFile[Econ3]=$G209))*T_DataComboFile[2023/24 Revised baseline]*$B$3)","v":0},0]
[0,5,null,null,null,null,"Machinery and equipment",{"$f":"SUMPRODUCT(((T_DataComboFile[Implementation programme]=$G$3)*(T_DataComboFile[Econ3]=$G210))*T_DataComboFile[2021/22 Baseline]*$B$3)","v":0},{"$f":"SUMPRODUCT(((T_DataComboFile[Implementation programme]=$G$3)*(T_DataComboFile[Econ3]=$G210))*T_DataComboFile[2021/22 Revised baseline]*$B$3)","v":0},0,{"$f":"SUMPRODUCT(((T_DataComboFile[Implementation programme]=$G$3)*(T_DataComboFile[Econ3]=$G210))*T_DataComboFile[2022/23 Baseline]*$B$3)","v":0},{"$f":"SUMPRODUCT(((T_DataComboFile[Implementation programme]=$G$3)*(T_DataComboFile[Econ3]=$G210))*T_DataComboFile[2022/23 Revised baseline]*$B$3)","v":0},0,{"$f":"SUMPRODUCT(((T_DataComboFile[Implementation programme]=$G$3)*(T_DataComboFile[Econ3]=$G210))*T_DataComboFile[2023/24 Baseline]*$B$3)","v":0},{"$f":"SUMPRODUCT(((T_DataComboFile[Implementation programme]=$G$3)*(T_DataComboFile[Econ3]=$G210))*T_DataComboFile[2023/24 Revised baseline]*$B$3)","v":0},0]
[0,5,null,null,null,null,"Heritage assets",{"$f":"SUMPRODUCT(((T_DataComboFile[Implementation programme]=$G$3)*(T_DataComboFile[Econ3]=$G211))*T_DataComboFile[2021/22 Baseline]*$B$3)","v":0},{"$f":"SUMPRODUCT(((T_DataComboFile[Implementation programme]=$G$3)*(T_DataComboFile[Econ3]=$G211))*T_DataComboFile[2021/22 Revised baseline]*$B$3)","v":0},0,{"$f":"SUMPRODUCT(((T_DataComboFile[Implementation programme]=$G$3)*(T_DataComboFile[Econ3]=$G211))*T_DataComboFile[2022/23 Baseline]*$B$3)","v":0},{"$f":"SUMPRODUCT(((T_DataComboFile[Implementation programme]=$G$3)*(T_DataComboFile[Econ3]=$G211))*T_DataComboFile[2022/23 Revised baseline]*$B$3)","v":0},0,{"$f":"SUMPRODUCT(((T_DataComboFile[Implementation programme]=$G$3)*(T_DataComboFile[Econ3]=$G211))*T_DataComboFile[2023/24 Baseline]*$B$3)","v":0},{"$f":"SUMPRODUCT(((T_DataComboFile[Implementation programme]=$G$3)*(T_DataComboFile[Econ3]=$G211))*T_DataComboFile[2023/24 Revised baseline]*$B$3)","v":0},0]
[0,5,null,null,null,null,"Specialised military assets",{"$f":"SUMPRODUCT(((T_DataComboFile[Implementation programme]=$G$3)*(T_DataComboFile[Econ3]=$G212))*T_DataComboFile[2021/22 Baseline]*$B$3)","v":0},{"$f":"SUMPRODUCT(((T_DataComboFile[Implementation programme]=$G$3)*(T_DataComboFile[Econ3]=$G212))*T_DataComboFile[2021/22 Revised baseline]*$B$3)","v":0},0,{"$f":"SUMPRODUCT(((T_DataComboFile[Implementation programme]=$G$3)*(T_DataComboFile[Econ3]=$G212))*T_DataComboFile[2022/23 Baseline]*$B$3)","v":0},{"$f":"SUMPRODUCT(((T_DataComboFile[Implementation programme]=$G$3)*(T_DataComboFile[Econ3]=$G212))*T_DataComboFile[2022/23 Revised baseline]*$B$3)","v":0},0,{"$f":"SUMPRODUCT(((T_DataComboFile[Implementation programme]=$G$3)*(T_DataComboFile[Econ3]=$G212))*T_DataComboFile[2023/24 Baseline]*$B$3)","v":0},{"$f":"SUMPRODUCT(((T_DataComboFile[Implementation programme]=$G$3)*(T_DataComboFile[Econ3]=$G212))*T_DataComboFile[2023/24 Revised baseline]*$B$3)","v":0},0]
[0,5,null,null,null,null,"Biological assets",{"$f":"SUMPRODUCT(((T_DataComboFile[Implementation programme]=$G$3)*(T_DataComboFile[Econ3]=$G213))*T_DataComboFile[2021/22 Baseline]*$B$3)","v":0},{"$f":"SUMPRODUCT(((T_DataComboFile[Implementation programme]=$G$3)*(T_DataComboFile[Econ3]=$G213))*T_DataComboFile[2021/22 Revised baseline]*$B$3)","v":0},0,{"$f":"SUMPRODUCT(((T_DataComboFile[Implementation programme]=$G$3)*(T_DataComboFile[Econ3]=$G213))*T_DataComboFile[2022/23 Baseline]*$B$3)","v":0},{"$f":"SUMPRODUCT(((T_DataComboFile[Implementation programme]=$G$3)*(T_DataComboFile[Econ3]=$G213))*T_DataComboFile[2022/23 Revised baseline]*$B$3)","v":0},0,{"$f":"SUMPRODUCT(((T_DataComboFile[Implementation programme]=$G$3)*(T_DataComboFile[Econ3]=$G213))*T_DataComboFile[2023/24 Baseline]*$B$3)","v":0},{"$f":"SUMPRODUCT(((T_DataComboFile[Implementation programme]=$G$3)*(T_DataComboFile[Econ3]=$G213))*T_DataComboFile[2023/24 Revised baseline]*$B$3)","v":0},0]
[0,5,null,null,null,null,"Land and sub-soil assets",{"$f":"SUMPRODUCT(((T_DataComboFile[Implementation programme]=$G$3)*(T_DataComboFile[Econ3]=$G214))*T_DataComboFile[2021/22 Baseline]*$B$3)","v":0},{"$f":"SUMPRODUCT(((T_DataComboFile[Implementation programme]=$G$3)*(T_DataComboFile[Econ3]=$G214))*T_DataComboFile[2021/22 Revised baseline]*$B$3)","v":0},0,{"$f":"SUMPRODUCT(((T_DataComboFile[Implementation programme]=$G$3)*(T_DataComboFile[Econ3]=$G214))*T_DataComboFile[2022/23 Baseline]*$B$3)","v":0},{"$f":"SUMPRODUCT(((T_DataComboFile[Implementation programme]=$G$3)*(T_DataComboFile[Econ3]=$G214))*T_DataComboFile[2022/23 Revised baseline]*$B$3)","v":0},0,{"$f":"SUMPRODUCT(((T_DataComboFile[Implementation programme]=$G$3)*(T_DataComboFile[Econ3]=$G214))*T_DataComboFile[2023/24 Baseline]*$B$3)","v":0},{"$f":"SUMPRODUCT(((T_DataComboFile[Implementation programme]=$G$3)*(T_DataComboFile[Econ3]=$G214))*T_DataComboFile[2023/24 Revised baseline]*$B$3)","v":0},0]
[0,5,null,null,null,null,"Software and other intangible assets",{"$f":"SUMPRODUCT(((T_DataComboFile[Implementation programme]=$G$3)*(T_DataComboFile[Econ3]=$G215))*T_DataComboFile[2021/22 Baseline]*$B$3)","v":0},{"$f":"SUMPRODUCT(((T_DataComboFile[Implementation programme]=$G$3)*(T_DataComboFile[Econ3]=$G215))*T_DataComboFile[2021/22 Revised baseline]*$B$3)","v":0},0,{"$f":"SUMPRODUCT(((T_DataComboFile[Implementation programme]=$G$3)*(T_DataComboFile[Econ3]=$G215))*T_DataComboFile[2022/23 Baseline]*$B$3)","v":0},{"$f":"SUMPRODUCT(((T_DataComboFile[Implementation programme]=$G$3)*(T_DataComboFile[Econ3]=$G215))*T_DataComboFile[2022/23 Revised baseline]*$B$3)","v":0},0,{"$f":"SUMPRODUCT(((T_DataComboFile[Implementation programme]=$G$3)*(T_DataComboFile[Econ3]=$G215))*T_DataComboFile[2023/24 Baseline]*$B$3)","v":0},{"$f":"SUMPRODUCT(((T_DataComboFile[Implementation programme]=$G$3)*(T_DataComboFile[Econ3]=$G215))*T_DataComboFile[2023/24 Revised baseline]*$B$3)","v":0},0]
[0,5,null,null,null,null,"Payments for financial assets",{"$f":"SUMPRODUCT(((T_DataComboFile[Implementation programme]=$G$3)*(T_DataComboFile[Econ3]=$G216))*T_DataComboFile[2021/22 Baseline]*$B$3)","v":0},{"$f":"SUMPRODUCT(((T_DataComboFile[Implementation programme]=$G$3)*(T_DataComboFile[Econ3]=$G216))*T_DataComboFile[2021/22 Revised baseline]*$B$3)","v":0},0,{"$f":"SUMPRODUCT(((T_DataComboFile[Implementation programme]=$G$3)*(T_DataComboFile[Econ3]=$G216))*T_DataComboFile[2022/23 Baseline]*$B$3)","v":0},{"$f":"SUMPRODUCT(((T_DataComboFile[Implementation programme]=$G$3)*(T_DataComboFile[Econ3]=$G216))*T_DataComboFile[2022/23 Revised baseline]*$B$3)","v":0},0,{"$f":"SUMPRODUCT(((T_DataComboFile[Implementation programme]=$G$3)*(T_DataComboFile[Econ3]=$G216))*T_DataComboFile[2023/24 Baseline]*$B$3)","v":0},{"$f":"SUMPRODUCT(((T_DataComboFile[Implementation programme]=$G$3)*(T_DataComboFile[Econ3]=$G216))*T_DataComboFile[2023/24 Revised baseline]*$B$3)","v":0},0]
[0,5,null,null,null,null,"Total",{"$f":"SUM(H173,H183,H208,H216)","v":0},0,0,0,0,0,0,{"$f":"SUM(O173,O183,O208,O216)","v":0},0]
[]
[null,null,null,null,null,null,null,{"$f":"L65-H217","v":0},{"$f":"O65-I217","v":0},null,{"$f":"P65-K217","v":0},{"$f":"S65-L217","v":0},null,{"$f":"T65-N217","v":0},{"$f":"W65-O217","v":0}]

{"sheet":"IP14","index":23,"n_rows":219,"n_cols":23,"rows_kept":219,"cut":false,"hidden":false,"merged":[[70,6,70,17],[73,6,87,17],[94,16,94,20],[94,21,94,23],[95,16,95,20],[95,21,95,23],[99,16,99,20],[99,21,99,23],[100,16,100,20],[100,21,100,23],[101,16,101,20],[101,21,101,23],[96,16,96,20],[96,21,96,23],[97,16,97,20],[97,21,97,23],[98,16,98,20],[98,21,98,23],[105,16,105,20],[105,21,105,23],[106,16,106,20],[106,21,106,23],[107,16,107,20],[107,21,107,23],[102,16,102,20],[102,21,102,23],[103,16,103,20],[103,21,103,23],[104,16,104,20],[104,21,104,23],[117,16,117,20],[118,16,118,20],[119,16,119,20],[120,16,120,20],[121,16,121,20],[122,16,122,20],[108,16,108,20],[108,21,108,23],[109,16,109,20],[109,21,109,23],[110,16,110,20],[110,21,110,23],[129,16,129,20],[130,16,130,20],[131,16,131,20],[132,16,132,20],[133,16,133,20],[141,16,141,20],[123,16,123,20],[124,16,124,20],[125,16,125,20],[126,16,126,20],[127,16,127,20],[128,16,128,20],[174,16,174,20],[175,16,175,20],[176,16,176,20],[177,16,177,20],[178,16,178,20],[179,16,179,20],[142,16,142,20],[143,16,162,20],[170,16,170,20],[171,16,171,20],[172,16,172,20],[173,16,173,20],[186,16,186,20],[187,16,187,20],[188,16,188,20],[189,16,189,20],[190,16,190,20],[191,16,191,20],[180,16,180,20],[181,16,181,20],[182,16,182,20],[183,16,183,20],[184,16,184,20],[185,16,185,20],[198,16,198,20],[199,16,199,20],[200,16,200,20],[201,16,201,20],[202,16,202,20],[203,16,203,20],[192,16,192,20],[193,16,193,20],[194,16,194,20],[195,16,195,20],[196,16,196,20],[197,16,197,20],[210,16,210,20],[211,16,211,20],[212,16,212,20],[213,16,213,20],[214,16,214,20],[215,16,215,20],[204,16,204,20],[205,16,205,20],[206,16,206,20],[207,16,207,20],[208,16,208,20],[209,16,209,20]]}
[]
[null,null,null,null,null,null,"Implementation programme:"]
[null,{"$f":"IF(G3=\"\",0,1)","v":0},null,null,null,14,null,"… select from dropdown list"]
[null,null,null,null,null,null,null,null,null,null,null,null,"Growth"]
[null,null,null,null,null,null,"Quick view","2020/21","2021/22","2022/23","2023/24","Trend","2021/22","2022/23","2023/24","Ave Ann",null,"2020/21","2021/22","2022/23","2023/24"]
[null,null,null,null,null,null,"Compensation of employees",{"$f":"SUMPRODUCT(($G$32:$G$65=$G6)*($K$32:$K$65))","v":0},{"$f":"SUMPRODUCT(($G$32:$G$65=$G6)*($O$32:$O$65))","v":0},{"$f":"SUMPRODUCT(($G$32:$G$65=$G6)*($S$32:$S$65))","v":0},{"$f":"SUMPRODUCT(($G$32:$G$65=$G6)*($W$32:$W$65))","v":0},null,{"$f":"IFERROR(I6/H6-1,0)","v":0},0,0,{"$f":"IFERROR(((K6/H6)^(1/3)-1),0)","v":0}]
[null,null,null,null,null,null,"Goods and services",{"$f":"SUMPRODUCT(($G$32:$G$65=$G7)*($K$32:$K$65))","v":0},{"$f":"SUMPRODUCT(($G$32:$G$65=$G7)*($O$32:$O$65))","v":0},{"$f":"SUMPRODUCT(($G$32:$G$65=$G7)*($S$32:$S$65))","v":0},{"$f":"SUMPRODUCT(($G$32:$G$65=$G7)*($W$32:$W$65))","v":0},null,0,0,0,0]
[null,null,null,null,null,null,"Transfers and subsidies",{"$f":"SUMPRODUCT(($G$32:$G$65=$G8)*($K$32:$K$65))","v":0},{"$f":"SUMPRODUCT(($G$32:$G$65=$G8)*($O$32:$O$65))","v":0},{"$f":"SUMPRODUCT(($G$32:$G$65=$G8)*($S$32:$S$65))","v":0},{"$f":"SUMPRODUCT(($G$32:$G$65=$G8)*($W$32:$W$65))","v":0},null,0,0,0,0]
[null,null,null,null,null,null,"Payments for capital assets",{"$f":"SUMPRODUCT(($G$32:$G$65=$G9)*($K$32:$K$65))","v":0},{"$f":"SUMPRODUCT(($G$32:$G$65=$G9)*($O$32:$O$65))","v":0},{"$f":"SUMPRODUCT(($G$32:$G$65=$G9)*($S$32:$S$65))","v":0},{"$f":"SUMPRODUCT(($G$32:$G$65=$G9)*($W$32:$W$65))","v":0},null,0,0,0,0]
[null,null,null,null,null,null,"Total",{"$f":"SUMPRODUCT(($G$32:$G$65=$G10)*($K$32:$K$65))","v":0},{"$f":"SUMPRODUCT(($G$32:$G$65=$G10)*($O$32:$O$65))","v":0},{"$f":"SUMPRODUCT(($G$32:$G$65=$G10)*($S$32:$S$65))","v":0},{"$f":"SUMPRODUCT(($G$32:$G$65=$G10)*($W$32:$W$65))","v":0},null,0,0,0,0]
[null,null,null,null,null,null,"Composition of spending (% of Total)"]
[null,null,null,null,null,null,"Compensation of employees",{"$f":"IFERROR(H6/H$10,\"\")","v":""},"","","",null,null,null,null,null,null,{"$f":"IF(H12>0.0595,H12,\"\")","v":""},"","",""]
[null,null,null,null,null,null,"Goods and services","","","","",null,null,null,null,null,null,"","","",""]
[null,null,null,null,null,null,"Transfers and subsidies","","","","",null,null,null,null,null,null,"","","",""]
[null,null,null,null,null,null,"Payments for capital assets","","","","",null,null,null,null,null,null,"","","",""]
[]
[null,null,null,null,null,null,"Division of Revenue","2020/21","2021/22","2022/23","2023/24","Trend","2021/22","2022/23","2023/24","Ave Ann"]
[{"$f":"$G$3","v":0},"NAT",null,null,null,null,"National",{"$f":"SUMPRODUCT(((T_DataComboFile[Implementation programme]=$G$3)*(T_DataComboFile[DOR]=$B18))*T_DataComboFile[2020/21 Revised])","v":2331086},{"$f":"SUMPRODUCT(((T_DataComboFile[Implementation programme]=$G$3)*(T_DataComboFile[DOR]=$B18))*T_DataComboFile[2021/22 Revised baseline])","v":2583809},{"$f":"SUMPRODUCT(((T_DataComboFile[Implementation programme]=$G$3)*(T_DataComboFile[DOR]=$B18))*T_DataComboFile[2022/23 Revised baseline])","v":2617960},{"$f":"SUMPRODUCT(((T_DataComboFile[Implementation programme]=$G$3)*(T_DataComboFile[DOR]=$B18))*T_DataComboFile[2023/24 Revised baseline])","v":2733345},null,{"$f":"IFERROR(I18/H18-1,0)","v":0.10841427557799244},{"$f":"IFERROR(J18/I18-1,0)","v":1.3217308245307535E-2},{"$f":"IFERROR(K18/J18-1,0)","v":4.4074393802808309E-2},{"$f":"IFERROR(((K18/H18)^(1/3)-1),0)","v":5.449708876349435E-2}]
[0,null,null,null,null,null,"Provincial",{"$f":"SUM(H20:H21)","v":0},0,0,0,null,0,0,0,0]
[0,"PES",null,null,null,null,"Provincial equitable share",{"$f":"SUMPRODUCT(((T_DataComboFile[Implementation programme]=$G$3)*(T_DataComboFile[DOR]=$B20))*T_DataComboFile[2020/21 Revised])","v":0},{"$f":"SUMPRODUCT(((T_DataComboFile[Implementation programme]=$G$3)*(T_DataComboFile[DOR]=$B20))*T_DataComboFile[2021/22 Revised baseline])","v":0},{"$f":"SUMPRODUCT(((T_DataComboFile[Implementation programme]=$G$3)*(T_DataComboFile[DOR]=$B20))*T_DataComboFile[2022/23 Revised baseline])","v":0},{"$f":"SUMPRODUCT(((T_DataComboFile[Implementation programme]=$G$3)*(T_DataComboFile[DOR]=$B20))*T_DataComboFile[2023/24 Revised baseline])","v":0},null,{"$f":"IFERROR(I20/H20-1,0)","v":0},0,0,{"$f":"IFERROR(((K20/H20)^(1/3)-1),0)","v":0}]
[0,"PCG",null,null,null,null,"Provincial conditional grants",{"$f":"SUMPRODUCT(((T_DataComboFile[Implementation programme]=$G$3)*(T_DataComboFile[DOR]=$B21))*T_DataComboFile[2020/21 Revised])","v":0},{"$f":"SUMPRODUCT(((T_DataComboFile[Implementation programme]=$G$3)*(T_DataComboFile[DOR]=$B21))*T_DataComboFile[2021/22 Revised baseline])","v":0},{"$f":"SUMPRODUCT(((T_DataComboFile[Implementation programme]=$G$3)*(T_DataComboFile[DOR]=$B21))*T_DataComboFile[2022/23 Revised baseline])","v":0},{"$f":"SUMPRODUCT(((T_DataComboFile[Implementation programme]=$G$3)*(T_DataComboFile[DOR]=$B21))*T_DataComboFile[2023/24 Revised baseline])","v":0},null,0,0,0,0]
[0,null,null,null,null,null,"Local government",{"$f":"SUM(H23:H25)","v":0},0,0,0,null,{"$f":"IFERROR(I22/H22-1,0)","v":0},{"$f":"IFERROR(J22/I22-1,0)","v":0},{"$f":"IFERROR(K22/J22-1,0)","v":0},{"$f":"IFERROR(((K22/H22)^(1/3)-1),0)","v":0}]
[0,"LES",null,null,null,null,"Local equitable share",{"$f":"SUMPRODUCT(((T_DataComboFile[Implementation programme]=$G$3)*(T_DataComboFile[DOR]=$B23))*T_DataComboFile[2020/21 Revised])","v":0},{"$f":"SUMPRODUCT(((T_DataComboFile[Implementation programme]=$G$3)*(T_DataComboFile[DOR]=$B23))*T_DataComboFile[2021/22 Revised baseline])","v":0},{"$f":"SUMPRODUCT(((T_DataComboFile[Implementation programme]=$G$3)*(T_DataComboFile[DOR]=$B23))*T_DataComboFile[2022/23 Revised baseline])","v":0},{"$f":"SUMPRODUCT(((T_DataComboFile[Implementation programme]=$G$3)*(T_DataComboFile[DOR]=$B23))*T_DataComboFile[2023/24 Revised baseline])","v":0},null,{"$f":"IFERROR(I23/H23-1,0)","v":0},0,0,{"$f":"IFERROR(((K23/H23)^(1/3)-1),0)","v":0}]
[0,"LCG",null,null,null,null,"Local conditional grants",{"$f":"SUMPRODUCT(((T_DataComboFile[Implementation programme]=$G$3)*(T_DataComboFile[DOR]=$B24))*T_DataComboFile[2020/21 Revised])","v":0},{"$f":"SUMPRODUCT(((T_DataComboFile[Implementation programme]=$G$3)*(T_DataComboFile[DOR]=$B24))*T_DataComboFile[2021/22 Revised baseline])","v":0},{"$f":"SUMPRODUCT(((T_DataComboFile[Implementation programme]=$G$3)*(T_DataComboFile[DOR]=$B24))*T_DataComboFile[2022/23 Revised baseline])","v":0},{"$f":"SUMPRODUCT(((T_DataComboFile[Implementation programme]=$G$3)*(T_DataComboFile[DOR]=$B24))*T_DataComboFile[2023/24 Revised baseline])","v":0},null,0,0,0,0]
[0,"GFL",null,null,null,null,"General fuel levy ",{"$f":"SUMPRODUCT(((T_DataComboFile[Implementation programme]=$G$3)*(T_DataComboFile[DOR]=$B25))*T_DataComboFile[2020/21 Revised])","v":0},{"$f":"SUMPRODUCT(((T_DataComboFile[Implementation programme]=$G$3)*(T_DataComboFile[DOR]=$B25))*T_DataComboFile[2021/22 Revised baseline])","v":0},{"$f":"SUMPRODUCT(((T_DataComboFile[Implementation programme]=$G$3)*(T_DataComboFile[DOR]=$B25))*T_DataComboFile[2022/23 Revised baseline])","v":0},{"$f":"SUMPRODUCT(((T_DataComboFile[Implementation programme]=$G$3)*(T_DataComboFile[DOR]=$B25))*T_DataComboFile[2023/24 Revised baseline])","v":0},null,0,0,0,0]
[]
[]
[null,null,null,null,null,null,{"$f":"G3","v":0}]
[{"$f":"$G$3","v":0},0,null,null,null,null,null,"2017/18","2018/19","2019/20","2020/21","2021/22",null,null,null,"2022/23",null,null,null,"2023/24"]
[{"$f":"$G$3","v":0},0,null,null,null,null,"Rand thousand","Audited outcome","Audited outcome","Pre-audited outcome","Budget","Baseline","Decrease","Increase","Revised baseline","Baseline","Decrease","Increase","Revised baseline","Baseline","Decrease","Increase","Revised baseline"]
[0,0,null,null,null,null,"Economic classification"]
[0,0,null,null,null,null,"Current payments",{"$f":"SUM(H33:H35)","v":0},0,0,0,0,0,0,0,0,0,0,0,0,0,0,0]
[0,0,null,null,null,null,"Compensation of employees",{"$f":"SUMPRODUCT(((T_DataComboFile[Implementation programme]=$G$3)*(T_DataComboFile[Econ3]=$G33))*T_DataComboFile[2017/18]*$B$3)","v":0},{"$f":"SUMPRODUCT(((T_DataComboFile[Implementation programme]=$G$3)*(T_DataComboFile[Econ3]=$G33))*T_DataComboFile[2018/19]*$B$3)","v":0},{"$f":"SUMPRODUCT(((T_DataComboFile[Implementation programme]=$G$3)*(T_DataComboFile[Econ3]=$G33))*T_DataComboFile[2019/20 Revised estimate]*$B$3)","v":0},{"$f":"SUMPRODUCT(((T_DataComboFile[Implementation programme]=$G$3)*(T_DataComboFile[Econ3]=$G33))*T_DataComboFile[2020/21 Revised]*$B$3)","v":0},{"$f":"SUMPRODUCT(((T_DataComboFile[Implementation programme]=$G$3)*(T_DataComboFile[Econ3]=$G33))*T_DataComboFile[2021/22 Baseline]*$B$3)","v":0},{"$f":"SUMPRODUCT(((T_DataComboFile[Implementation programme]=$G$3)*(T_DataComboFile[Econ3]=$G33))*T_DataComboFile[2021/22 Reduction]*$B$3)","v":0},{"$f":"SUMPRODUCT(((T_DataComboFile[Implementation programme]=$G$3)*(T_DataComboFile[Econ3]=$G33))*T_DataComboFile[2021/22 Increase]*$B$3)","v":0},{"$f":"L33+M33+N33","v":0},{"$f":"SUMPRODUCT(((T_DataComboFile[Implementation programme]=$G$3)*(T_DataComboFile[Econ3]=$G33))*T_DataComboFile[2022/23 Baseline]*$B$3)","v":0},{"$f":"SUMPRODUCT(((T_DataComboFile[Implementation programme]=$G$3)*(T_DataComboFile[Econ3]=$G33))*T_DataComboFile[2022/23 Reduction]*$B$3)","v":0},{"$f":"SUMPRODUCT(((T_DataComboFile[Implementation programme]=$G$3)*(T_DataComboFile[Econ3]=$G33))*T_DataComboFile[2022/23 Increase]*$B$3)","v":0},{"$f":"P33+Q33+R33","v":0},{"$f":"SUMPRODUCT(((T_DataComboFile[Implementation programme]=$G$3)*(T_DataComboFile[Econ3]=$G33))*T_DataComboFile[2023/24 Baseline]*$B$3)","v":0},{"$f":"SUMPRODUCT(((T_DataComboFile[Implementation programme]=$G$3)*(T_DataComboFile[Econ3]=$G33))*T_DataComboFile[2023/24 Reduction]*$B$3)","v":0},{"$f":"SUMPRODUCT(((T_DataComboFile[Implementation programme]=$G$3)*(T_DataComboFile[Econ3]=$G33))*T_DataComboFile[2023/24 Increase]*$B$3)","v":0},{"$f":"T33+U33+V33","v":0}]
[0,0,null,null,null,null,"Goods and services",{"$f":"SUMPRODUCT(((T_DataComboFile[Implementation programme]=$G$3)*(T_DataComboFile[Econ3]=$G34))*T_DataComboFile[2017/18]*$B$3)","v":0},{"$f":"SUMPRODUCT(((T_DataComboFile[Implementation programme]=$G$3)*(T_DataComboFile[Econ3]=$G34))*T_DataComboFile[2018/19]*$B$3)","v":0},{"$f":"SUMPRODUCT(((T_DataComboFile[Implementation programme]=$G$3)*(T_DataComboFile[Econ3]=$G34))*T_DataComboFile[2019/20 Revised estimate]*$B$3)","v":0},{"$f":"SUMPRODUCT(((T_DataComboFile[Implementation programme]=$G$3)*(T_DataComboFile[Econ3]=$G34))*T_DataComboFile[2020/21 Revised]*$B$3)","v":0},{"$f":"SUMPRODUCT(((T_DataComboFile[Implementation programme]=$G$3)*(T_DataComboFile[Econ3]=$G34))*T_DataComboFile[2021/22 Baseline]*$B$3)","v":0},{"$f":"SUMPRODUCT(((T_DataComboFile[Implementation programme]=$G$3)*(T_DataComboFile[Econ3]=$G34))*T_DataComboFile[2021/22 Reduction]*$B$3)","v":0},{"$f":"SUMPRODUCT(((T_DataComboFile[Implementation programme]=$G$3)*(T_DataComboFile[Econ3]=$G34))*T_DataComboFile[2021/22 Increase]*$B$3)","v":0},0,{"$f":"SUMPRODUCT(((T_DataComboFile[Implementation programme]=$G$3)*(T_DataComboFile[Econ3]=$G34))*T_DataComboFile[2022/23 Baseline]*$B$3)","v":0},{"$f":"SUMPRODUCT(((T_DataComboFile[Implementation programme]=$G$3)*(T_DataComboFile[Econ3]=$G34))*T_DataComboFile[2022/23 Reduction]*$B$3)","v":0},{"$f":"SUMPRODUCT(((T_DataComboFile[Implementation programme]=$G$3)*(T_DataComboFile[Econ3]=$G34))*T_DataComboFile[2022/23 Increase]*$B$3)","v":0},0,{"$f":"SUMPRODUCT(((T_DataComboFile[Implementation programme]=$G$3)*(T_DataComboFile[Econ3]=$G34))*T_DataComboFile[2023/24 Baseline]*$B$3)","v":0},{"$f":"SUMPRODUCT(((T_DataComboFile[Implementation programme]=$G$3)*(T_DataComboFile[Econ3]=$G34))*T_DataComboFile[2023/24 Reduction]*$B$3)","v":0},{"$f":"SUMPRODUCT(((T_DataComboFile[Implementation programme]=$G$3)*(T_DataComboFile[Econ3]=$G34))*T_DataComboFile[2023/24 Increase]*$B$3)","v":0},0]
[0,0,null,null,null,null,"Interest and rent on land",{"$f":"SUMPRODUCT(((T_DataComboFile[Implementation programme]=$G$3)*(T_DataComboFile[Econ3]=$G35))*T_DataComboFile[2017/18]*$B$3)","v":0},{"$f":"SUMPRODUCT(((T_DataComboFile[Implementation programme]=$G$3)*(T_DataComboFile[Econ3]=$G35))*T_DataComboFile[2018/19]*$B$3)","v":0},{"$f":"SUMPRODUCT(((T_DataComboFile[Implementation programme]=$G$3)*(T_DataComboFile[Econ3]=$G35))*T_DataComboFile[2019/20 Revised estimate]*$B$3)","v":0},{"$f":"SUMPRODUCT(((T_DataComboFile[Implementation programme]=$G$3)*(T_DataComboFile[Econ3]=$G35))*T_DataComboFile[2020/21 Revised]*$B$3)","v":0},{"$f":"SUMPRODUCT(((T_DataComboFile[Implementation programme]=$G$3)*(T_DataComboFile[Econ3]=$G35))*T_DataComboFile[2021/22 Baseline]*$B$3)","v":0},{"$f":"SUMPRODUCT(((T_DataComboFile[Implementation programme]=$G$3)*(T_DataComboFile[Econ3]=$G35))*T_DataComboFile[2021/22 Reduction]*$B$3)","v":0},{"$f":"SUMPRODUCT(((T_DataComboFile[Implementation programme]=$G$3)*(T_DataComboFile[Econ3]=$G35))*T_DataComboFile[2021/22 Increase]*$B$3)","v":0},0,{"$f":"SUMPRODUCT(((T_DataComboFile[Implementation programme]=$G$3)*(T_DataComboFile[Econ3]=$G35))*T_DataComboFile[2022/23 Baseline]*$B$3)","v":0},{"$f":"SUMPRODUCT(((T_DataComboFile[Implementation programme]=$G$3)*(T_DataComboFile[Econ3]=$G35))*T_DataComboFile[2022/23 Reduction]*$B$3)","v":0},{"$f":"SUMPRODUCT(((T_DataComboFile[Implementation programme]=$G$3)*(T_DataComboFile[Econ3]=$G35))*T_DataComboFile[2022/23 Increase]*$B$3)","v":0},0,{"$f":"SUMPRODUCT(((T_DataComboFile[Implementation programme]=$G$3)*(T_DataComboFile[Econ3]=$G35))*T_DataComboFile[2023/24 Baseline]*$B$3)","v":0},{"$f":"SUMPRODUCT(((T_DataComboFile[Implementation programme]=$G$3)*(T_DataComboFile[Econ3]=$G35))*T_DataComboFile[2023/24 Reduction]*$B$3)","v":0},{"$f":"SUMPRODUCT(((T_DataComboFile[Implementation programme]=$G$3)*(T_DataComboFile[Econ3]=$G35))*T_DataComboFile[2023/24 Increase]*$B$3)","v":0},0]
[0,0,null,null,null,null,"Transfers and subsidies",{"$f":"SUM(H37,H40,H43:H45,H48:H49)","v":0},0,0,0,0,0,0,0,0,0,0,0,0,0,0,0]
[0,0,null,null,null,null,"Provinces and municipalities",{"$f":"SUM(H38:H39)","v":0},0,0,0,0,0,0,0,0,0,0,0,0,0,0,0]
[0,0,null,null,null,null,"Provinces",{"$f":"SUMPRODUCT(((T_DataComboFile[Implementation programme]=$G$3)*(T_DataComboFile[Econ4]=$G38))*T_DataComboFile[2017/18]*$B$3)","v":0},{"$f":"SUMPRODUCT(((T_DataComboFile[Implementation programme]=$G$3)*(T_DataComboFile[Econ4]=$G38))*T_DataComboFile[2018/19]*$B$3)","v":0},{"$f":"SUMPRODUCT(((T_DataComboFile[Implementation programme]=$G$3)*(T_DataComboFile[Econ4]=$G38))*T_DataComboFile[2019/20 Revised estimate]*$B$3)","v":0},{"$f":"SUMPRODUCT(((T_DataComboFile[Implementation programme]=$G$3)*(T_DataComboFile[Econ4]=$G38))*T_DataComboFile[2020/21 Revised]*$B$3)","v":0},{"$f":"SUMPRODUCT(((T_DataComboFile[Implementation programme]=$G$3)*(T_DataComboFile[Econ4]=$G38))*T_DataComboFile[2021/22 Baseline]*$B$3)","v":0},{"$f":"SUMPRODUCT(((T_DataComboFile[Implementation programme]=$G$3)*(T_DataComboFile[Econ4]=$G38))*T_DataComboFile[2021/22 Reduction]*$B$3)","v":0},{"$f":"SUMPRODUCT(((T_DataComboFile[Implementation programme]=$G$3)*(T_DataComboFile[Econ4]=$G38))*T_DataComboFile[2021/22 Increase]*$B$3)","v":0},{"$f":"L38+M38+N38","v":0},{"$f":"SUMPRODUCT(((T_DataComboFile[Implementation programme]=$G$3)*(T_DataComboFile[Econ4]=$G38))*T_DataComboFile[2022/23 Baseline]*$B$3)","v":0},{"$f":"SUMPRODUCT(((T_DataComboFile[Implementation programme]=$G$3)*(T_DataComboFile[Econ4]=$G38))*T_DataComboFile[2022/23 Reduction]*$B$3)","v":0},{"$f":"SUMPRODUCT(((T_DataComboFile[Implementation programme]=$G$3)*(T_DataComboFile[Econ4]=$G38))*T_DataComboFile[2022/23 Increase]*$B$3)","v":0},{"$f":"P38+Q38+R38","v":0},{"$f":"SUMPRODUCT(((T_DataComboFile[Implementation programme]=$G$3)*(T_DataComboFile[Econ4]=$G38))*T_DataComboFile[2023/24 Baseline]*$B$3)","v":0},{"$f":"SUMPRODUCT(((T_DataComboFile[Implementation programme]=$G$3)*(T_DataComboFile[Econ4]=$G38))*T_DataComboFile[2023/24 Reduction]*$B$3)","v":0},{"$f":"SUMPRODUCT(((T_DataComboFile[Implementation programme]=$G$3)*(T_DataComboFile[Econ4]=$G38))*T_DataComboFile[2023/24 Increase]*$B$3)","v":0},{"$f":"T38+U38+V38","v":0}]
[0,0,null,null,null,null,"Municipalities",{"$f":"SUMPRODUCT(((T_DataComboFile[Implementation programme]=$G$3)*(T_DataComboFile[Econ4]=$G39))*T_DataComboFile[2017/18]*$B$3)","v":0},{"$f":"SUMPRODUCT(((T_DataComboFile[Implementation programme]=$G$3)*(T_DataComboFile[Econ4]=$G39))*T_DataComboFile[2018/19]*$B$3)","v":0},{"$f":"SUMPRODUCT(((T_DataComboFile[Implementation programme]=$G$3)*(T_DataComboFile[Econ4]=$G39))*T_DataComboFile[2019/20 Revised estimate]*$B$3)","v":0},{"$f":"SUMPRODUCT(((T_DataComboFile[Implementation programme]=$G$3)*(T_DataComboFile[Econ4]=$G39))*T_DataComboFile[2020/21 Revised]*$B$3)","v":0},{"$f":"SUMPRODUCT(((T_DataComboFile[Implementation programme]=$G$3)*(T_DataComboFile[Econ4]=$G39))*T_DataComboFile[2021/22 Baseline]*$B$3)","v":0},{"$f":"SUMPRODUCT(((T_DataComboFile[Implementation programme]=$G$3)*(T_DataComboFile[Econ4]=$G39))*T_DataComboFile[2021/22 Reduction]*$B$3)","v":0},{"$f":"SUMPRODUCT(((T_DataComboFile[Implementation programme]=$G$3)*(T_DataComboFile[Econ4]=$G39))*T_DataComboFile[2021/22 Increase]*$B$3)","v":0},0,{"$f":"SUMPRODUCT(((T_DataComboFile[Implementation programme]=$G$3)*(T_DataComboFile[Econ4]=$G39))*T_DataComboFile[2022/23 Baseline]*$B$3)","v":0},{"$f":"SUMPRODUCT(((T_DataComboFile[Implementation programme]=$G$3)*(T_DataComboFile[Econ4]=$G39))*T_DataComboFile[2022/23 Reduction]*$B$3)","v":0},{"$f":"SUMPRODUCT(((T_DataComboFile[Implementation programme]=$G$3)*(T_DataComboFile[Econ4]=$G39))*T_DataComboFile[2022/23 Increase]*$B$3)","v":0},0,{"$f":"SUMPRODUCT(((T_DataComboFile[Implementation programme]=$G$3)*(T_DataComboFile[Econ4]=$G39))*T_DataComboFile[2023/24 Baseline]*$B$3)","v":0},{"$f":"SUMPRODUCT(((T_DataComboFile[Implementation programme]=$G$3)*(T_DataComboFile[Econ4]=$G39))*T_DataComboFile[2023/24 Reduction]*$B$3)","v":0},{"$f":"SUMPRODUCT(((T_DataComboFile[Implementation programme]=$G$3)*(T_DataComboFile[Econ4]=$G39))*T_DataComboFile[2023/24 Increase]*$B$3)","v":0},0]
[0,0,null,null,null,null,"Departmental agencies and accounts",{"$f":"SUM(H41:H42)","v":0},0,0,0,0,0,0,0,0,0,0,0,0,0,0,0]
[0,0,null,null,null,null,"Social security funds",{"$f":"SUMPRODUCT(((T_DataComboFile[Implementation programme]=$G$3)*(T_DataComboFile[Econ4]=$G41))*T_DataComboFile[2017/18]*$B$3)","v":0},{"$f":"SUMPRODUCT(((T_DataComboFile[Implementation programme]=$G$3)*(T_DataComboFile[Econ4]=$G41))*T_DataComboFile[2018/19]*$B$3)","v":0},{"$f":"SUMPRODUCT(((T_DataComboFile[Implementation programme]=$G$3)*(T_DataComboFile[Econ4]=$G41))*T_DataComboFile[2019/20 Revised estimate]*$B$3)","v":0},{"$f":"SUMPRODUCT(((T_DataComboFile[Implementation programme]=$G$3)*(T_DataComboFile[Econ4]=$G41))*T_DataComboFile[2020/21 Revised]*$B$3)","v":0},{"$f":"SUMPRODUCT(((T_DataComboFile[Implementation programme]=$G$3)*(T_DataComboFile[Econ4]=$G41))*T_DataComboFile[2021/22 Baseline]*$B$3)","v":0},{"$f":"SUMPRODUCT(((T_DataComboFile[Implementation programme]=$G$3)*(T_DataComboFile[Econ4]=$G41))*T_DataComboFile[2021/22 Reduction]*$B$3)","v":0},{"$f":"SUMPRODUCT(((T_DataComboFile[Implementation programme]=$G$3)*(T_DataComboFile[Econ4]=$G41))*T_DataComboFile[2021/22 Increase]*$B$3)","v":0},{"$f":"L41+M41+N41","v":0},{"$f":"SUMPRODUCT(((T_DataComboFile[Implementation programme]=$G$3)*(T_DataComboFile[Econ4]=$G41))*T_DataComboFile[2022/23 Baseline]*$B$3)","v":0},{"$f":"SUMPRODUCT(((T_DataComboFile[Implementation programme]=$G$3)*(T_DataComboFile[Econ4]=$G41))*T_DataComboFile[2022/23 Reduction]*$B$3)","v":0},{"$f":"SUMPRODUCT(((T_DataComboFile[Implementation programme]=$G$3)*(T_DataComboFile[Econ4]=$G41))*T_DataComboFile[2022/23 Increase]*$B$3)","v":0},{"$f":"P41+Q41+R41","v":0},{"$f":"SUMPRODUCT(((T_DataComboFile[Implementation programme]=$G$3)*(T_DataComboFile[Econ4]=$G41))*T_DataComboFile[2023/24 Baseline]*$B$3)","v":0},{"$f":"SUMPRODUCT(((T_DataComboFile[Implementation programme]=$G$3)*(T_DataComboFile[Econ4]=$G41))*T_DataComboFile[2023/24 Reduction]*$B$3)","v":0},{"$f":"SUMPRODUCT(((T_DataComboFile[Implementation programme]=$G$3)*(T_DataComboFile[Econ4]=$G41))*T_DataComboFile[2023/24 Increase]*$B$3)","v":0},{"$f":"T41+U41+V41","v":0}]
[0,0,null,null,null,null,"Departmental agencies (non-business entities)",{"$f":"SUMPRODUCT(((T_DataComboFile[Implementation programme]=$G$3)*(T_DataComboFile[Econ4]=$G42))*T_DataComboFile[2017/18]*$B$3)","v":0},{"$f":"SUMPRODUCT(((T_DataComboFile[Implementation programme]=$G$3)*(T_DataComboFile[Econ4]=$G42))*T_DataComboFile[2018/19]*$B$3)","v":0},{"$f":"SUMPRODUCT(((T_DataComboFile[Implementation programme]=$G$3)*(T_DataComboFile[Econ4]=$G42))*T_DataComboFile[2019/20 Revised estimate]*$B$3)","v":0},{"$f":"SUMPRODUCT(((T_DataComboFile[Implementation programme]=$G$3)*(T_DataComboFile[Econ4]=$G42))*T_DataComboFile[2020/21 Revised]*$B$3)","v":0},{"$f":"SUMPRODUCT(((T_DataComboFile[Implementation programme]=$G$3)*(T_DataComboFile[Econ4]=$G42))*T_DataComboFile[2021/22 Baseline]*$B$3)","v":0},{"$f":"SUMPRODUCT(((T_DataComboFile[Implementation programme]=$G$3)*(T_DataComboFile[Econ4]=$G42))*T_DataComboFile[2021/22 Reduction]*$B$3)","v":0},{"$f":"SUMPRODUCT(((T_DataComboFile[Implementation programme]=$G$3)*(T_DataComboFile[Econ4]=$G42))*T_DataComboFile[2021/22 Increase]*$B$3)","v":0},0,{"$f":"SUMPRODUCT(((T_DataComboFile[Implementation programme]=$G$3)*(T_DataComboFile[Econ4]=$G42))*T_DataComboFile[2022/23 Baseline]*$B$3)","v":0},{"$f":"SUMPRODUCT(((T_DataComboFile[Implementation programme]=$G$3)*(T_DataComboFile[Econ4]=$G42))*T_DataComboFile[2022/23 Reduction]*$B$3)","v":0},{"$f":"SUMPRODUCT(((T_DataComboFile[Implementation programme]=$G$3)*(T_DataComboFile[Econ4]=$G42))*T_DataComboFile[2022/23 Increase]*$B$3)","v":0},0,{"$f":"SUMPRODUCT(((T_DataComboFile[Implementation programme]=$G$3)*(T_DataComboFile[Econ4]=$G42))*T_DataComboFile[2023/24 Baseline]*$B$3)","v":0},{"$f":"SUMPRODUCT(((T_DataComboFile[Implementation programme]=$G$3)*(T_DataComboFile[Econ4]=$G42))*T_DataComboFile[2023/24 Reduction]*$B$3)","v":0},{"$f":"SUMPRODUCT(((T_DataComboFile[Implementation programme]=$G$3)*(T_DataComboFile[Econ4]=$G42))*T_DataComboFile[2023/24 Increase]*$B$3)","v":0},0]
[0,0,null,null,null,null,"Higher education institutions",{"$f":"SUMPRODUCT(((T_DataComboFile[Implementation programme]=$G$3)*(T_DataComboFile[Econ3]=$G43))*T_DataComboFile[2017/18]*$B$3)","v":0},{"$f":"SUMPRODUCT(((T_DataComboFile[Implementation programme]=$G$3)*(T_DataComboFile[Econ3]=$G43))*T_DataComboFile[2018/19]*$B$3)","v":0},{"$f":"SUMPRODUCT(((T_DataComboFile[Implementation programme]=$G$3)*(T_DataComboFile[Econ3]=$G43))*T_DataComboFile[2019/20 Revised estimate]*$B$3)","v":0},{"$f":"SUMPRODUCT(((T_DataComboFile[Implementation programme]=$G$3)*(T_DataComboFile[Econ3]=$G43))*T_DataComboFile[2020/21 Revised]*$B$3)","v":0},{"$f":"SUMPRODUCT(((T_DataComboFile[Implementation programme]=$G$3)*(T_DataComboFile[Econ3]=$G43))*T_DataComboFile[2021/22 Baseline]*$B$3)","v":0},{"$f":"SUMPRODUCT(((T_DataComboFile[Implementation programme]=$G$3)*(T_DataComboFile[Econ3]=$G43))*T_DataComboFile[2021/22 Reduction]*$B$3)","v":0},{"$f":"SUMPRODUCT(((T_DataComboFile[Implementation programme]=$G$3)*(T_DataComboFile[Econ3]=$G43))*T_DataComboFile[2021/22 Increase]*$B$3)","v":0},0,{"$f":"SUMPRODUCT(((T_DataComboFile[Implementation programme]=$G$3)*(T_DataComboFile[Econ3]=$G43))*T_DataComboFile[2022/23 Baseline]*$B$3)","v":0},{"$f":"SUMPRODUCT(((T_DataComboFile[Implementation programme]=$G$3)*(T_DataComboFile[Econ3]=$G43))*T_DataComboFile[2022/23 Reduction]*$B$3)","v":0},{"$f":"SUMPRODUCT(((T_DataComboFile[Implementation programme]=$G$3)*(T_DataComboFile[Econ3]=$G43))*T_DataComboFile[2022/23 Increase]*$B$3)","v":0},0,{"$f":"SUMPRODUCT(((T_DataComboFile[Implementation programme]=$G$3)*(T_DataComboFile[Econ3]=$G43))*T_DataComboFile[2023/24 Baseline]*$B$3)","v":0},{"$f":"SUMPRODUCT(((T_DataComboFile[Implementation programme]=$G$3)*(T_DataComboFile[Econ3]=$G43))*T_DataComboFile[2023/24 Reduction]*$B$3)","v":0},{"$f":"SUMPRODUCT(((T_DataComboFile[Implementation programme]=$G$3)*(T_DataComboFile[Econ3]=$G43))*T_DataComboFile[2023/24 Increase]*$B$3)","v":0},0]
[0,0,null,null,null,null,"Foreign governments and international organisations",{"$f":"SUMPRODUCT(((T_DataComboFile[Implementation programme]=$G$3)*(T_DataComboFile[Econ3]=$G44))*T_DataComboFile[2017/18]*$B$3)","v":0},{"$f":"SUMPRODUCT(((T_DataComboFile[Implementation programme]=$G$3)*(T_DataComboFile[Econ3]=$G44))*T_DataComboFile[2018/19]*$B$3)","v":0},{"$f":"SUMPRODUCT(((T_DataComboFile[Implementation programme]=$G$3)*(T_DataComboFile[Econ3]=$G44))*T_DataComboFile[2019/20 Revised estimate]*$B$3)","v":0},{"$f":"SUMPRODUCT(((T_DataComboFile[Implementation programme]=$G$3)*(T_DataComboFile[Econ3]=$G44))*T_DataComboFile[2020/21 Revised]*$B$3)","v":0},{"$f":"SUMPRODUCT(((T_DataComboFile[Implementation programme]=$G$3)*(T_DataComboFile[Econ3]=$G44))*T_DataComboFile[2021/22 Baseline]*$B$3)","v":0},{"$f":"SUMPRODUCT(((T_DataComboFile[Implementation programme]=$G$3)*(T_DataComboFile[Econ3]=$G44))*T_DataComboFile[2021/22 Reduction]*$B$3)","v":0},{"$f":"SUMPRODUCT(((T_DataComboFile[Implementation programme]=$G$3)*(T_DataComboFile[Econ3]=$G44))*T_DataComboFile[2021/22 Increase]*$B$3)","v":0},0,{"$f":"SUMPRODUCT(((T_DataComboFile[Implementation programme]=$G$3)*(T_DataComboFile[Econ3]=$G44))*T_DataComboFile[2022/23 Baseline]*$B$3)","v":0},{"$f":"SUMPRODUCT(((T_DataComboFile[Implementation programme]=$G$3)*(T_DataComboFile[Econ3]=$G44))*T_DataComboFile[2022/23 Reduction]*$B$3)","v":0},{"$f":"SUMPRODUCT(((T_DataComboFile[Implementation programme]=$G$3)*(T_DataComboFile[Econ3]=$G44))*T_DataComboFile[2022/23 Increase]*$B$3)","v":0},0,{"$f":"SUMPRODUCT(((T_DataComboFile[Implementation programme]=$G$3)*(T_DataComboFile[Econ3]=$G44))*T_DataComboFile[2023/24 Baseline]*$B$3)","v":0},{"$f":"SUMPRODUCT(((T_DataComboFile[Implementation programme]=$G$3)*(T_DataComboFile[Econ3]=$G44))*T_DataComboFile[2023/24 Reduction]*$B$3)","v":0},{"$f":"SUMPRODUCT(((T_DataComboFile[Implementation programme]=$G$3)*(T_DataComboFile[Econ3]=$G44))*T_DataComboFile[2023/24 Increase]*$B$3)","v":0},0]
[0,0,null,null,null,null,"Public corporations and private enterprises",{"$f":"SUM(H46:H47)","v":0},0,0,0,0,0,0,0,0,0,0,0,0,0,0,0]
[0,0,null,null,null,null,"Public corporations",{"$f":"SUMPRODUCT(((T_DataComboFile[Implementation programme]=$G$3)*(T_DataComboFile[Econ4]=$G46))*T_DataComboFile[2017/18]*$B$3)","v":0},{"$f":"SUMPRODUCT(((T_DataComboFile[Implementation programme]=$G$3)*(T_DataComboFile[Econ4]=$G46))*T_DataComboFile[2018/19]*$B$3)","v":0},{"$f":"SUMPRODUCT(((T_DataComboFile[Implementation programme]=$G$3)*(T_DataComboFile[Econ4]=$G46))*T_DataComboFile[2019/20 Revised estimate]*$B$3)","v":0},{"$f":"SUMPRODUCT(((T_DataComboFile[Implementation programme]=$G$3)*(T_DataComboFile[Econ4]=$G46))*T_DataComboFile[2020/21 Revised]*$B$3)","v":0},{"$f":"SUMPRODUCT(((T_DataComboFile[Implementation programme]=$G$3)*(T_DataComboFile[Econ4]=$G46))*T_DataComboFile[2021/22 Baseline]*$B$3)","v":0},{"$f":"SUMPRODUCT(((T_DataComboFile[Implementation programme]=$G$3)*(T_DataComboFile[Econ4]=$G46))*T_DataComboFile[2021/22 Reduction]*$B$3)","v":0},{"$f":"SUMPRODUCT(((T_DataComboFile[Implementation programme]=$G$3)*(T_DataComboFile[Econ4]=$G46))*T_DataComboFile[2021/22 Increase]*$B$3)","v":0},{"$f":"L46+M46+N46","v":0},{"$f":"SUMPRODUCT(((T_DataComboFile[Implementation programme]=$G$3)*(T_DataComboFile[Econ4]=$G46))*T_DataComboFile[2022/23 Baseline]*$B$3)","v":0},{"$f":"SUMPRODUCT(((T_DataComboFile[Implementation programme]=$G$3)*(T_DataComboFile[Econ4]=$G46))*T_DataComboFile[2022/23 Reduction]*$B$3)","v":0},{"$f":"SUMPRODUCT(((T_DataComboFile[Implementation programme]=$G$3)*(T_DataComboFile[Econ4]=$G46))*T_DataComboFile[2022/23 Increase]*$B$3)","v":0},{"$f":"P46+Q46+R46","v":0},{"$f":"SUMPRODUCT(((T_DataComboFile[Implementation programme]=$G$3)*(T_DataComboFile[Econ4]=$G46))*T_DataComboFile[2023/24 Baseline]*$B$3)","v":0},{"$f":"SUMPRODUCT(((T_DataComboFile[Implementation programme]=$G$3)*(T_DataComboFile[Econ4]=$G46))*T_DataComboFile[2023/24 Reduction]*$B$3)","v":0},{"$f":"SUMPRODUCT(((T_DataComboFile[Implementation programme]=$G$3)*(T_DataComboFile[Econ4]=$G46))*T_DataComboFile[2023/24 Increase]*$B$3)","v":0},{"$f":"T46+U46+V46","v":0}]
[0,0,null,null,null,null,"Private enterprises",{"$f":"SUMPRODUCT(((T_DataComboFile[Implementation programme]=$G$3)*(T_DataComboFile[Econ4]=$G47))*T_DataComboFile[2017/18]*$B$3)","v":0},{"$f":"SUMPRODUCT(((T_DataComboFile[Implementation programme]=$G$3)*(T_DataComboFile[Econ4]=$G47))*T_DataComboFile[2018/19]*$B$3)","v":0},{"$f":"SUMPRODUCT(((T_DataComboFile[Implementation programme]=$G$3)*(T_DataComboFile[Econ4]=$G47))*T_DataComboFile[2019/20 Revised estimate]*$B$3)","v":0},{"$f":"SUMPRODUCT(((T_DataComboFile[Implementation programme]=$G$3)*(T_DataComboFile[Econ4]=$G47))*T_DataComboFile[2020/21 Revised]*$B$3)","v":0},{"$f":"SUMPRODUCT(((T_DataComboFile[Implementation programme]=$G$3)*(T_DataComboFile[Econ4]=$G47))*T_DataComboFile[2021/22 Baseline]*$B$3)","v":0},{"$f":"SUMPRODUCT(((T_DataComboFile[Implementation programme]=$G$3)*(T_DataComboFile[Econ4]=$G47))*T_DataComboFile[2021/22 Reduction]*$B$3)","v":0},{"$f":"SUMPRODUCT(((T_DataComboFile[Implementation programme]=$G$3)*(T_DataComboFile[Econ4]=$G47))*T_DataComboFile[2021/22 Increase]*$B$3)","v":0},0,{"$f":"SUMPRODUCT(((T_DataComboFile[Implementation programme]=$G$3)*(T_DataComboFile[Econ4]=$G47))*T_DataComboFile[2022/23 Baseline]*$B$3)","v":0},{"$f":"SUMPRODUCT(((T_DataComboFile[Implementation programme]=$G$3)*(T_DataComboFile[Econ4]=$G47))*T_DataComboFile[2022/23 Reduction]*$B$3)","v":0},{"$f":"SUMPRODUCT(((T_DataComboFile[Implementation programme]=$G$3)*(T_DataComboFile[Econ4]=$G47))*T_DataComboFile[2022/23 Increase]*$B$3)","v":0},0,{"$f":"SUMPRODUCT(((T_DataComboFile[Implementation programme]=$G$3)*(T_DataComboFile[Econ4]=$G47))*T_DataComboFile[2023/24 Baseline]*$B$3)","v":0},{"$f":"SUMPRODUCT(((T_DataComboFile[Implementation programme]=$G$3)*(T_DataComboFile[Econ4]=$G47))*T_DataComboFile[2023/24 Reduction]*$B$3)","v":0},{"$f":"SUMPRODUCT(((T_DataComboFile[Implementation programme]=$G$3)*(T_DataComboFile[Econ4]=$G47))*T_DataComboFile[2023/24 Increase]*$B$3)","v":0},0]
[0,0,null,null,null,null,"Non-profit institutions",{"$f":"SUMPRODUCT(((T_DataComboFile[Implementation programme]=$G$3)*(T_DataComboFile[Econ3]=$G48))*T_DataComboFile[2017/18]*$B$3)","v":0},{"$f":"SUMPRODUCT(((T_DataComboFile[Implementation programme]=$G$3)*(T_DataComboFile[Econ3]=$G48))*T_DataComboFile[2018/19]*$B$3)","v":0},{"$f":"SUMPRODUCT(((T_DataComboFile[Implementation programme]=$G$3)*(T_DataComboFile[Econ3]=$G48))*T_DataComboFile[2019/20 Revised estimate]*$B$3)","v":0},{"$f":"SUMPRODUCT(((T_DataComboFile[Implementation programme]=$G$3)*(T_DataComboFile[Econ3]=$G48))*T_DataComboFile[2020/21 Revised]*$B$3)","v":0},{"$f":"SUMPRODUCT(((T_DataComboFile[Implementation programme]=$G$3)*(T_DataComboFile[Econ3]=$G48))*T_DataComboFile[2021/22 Baseline]*$B$3)","v":0},{"$f":"SUMPRODUCT(((T_DataComboFile[Implementation programme]=$G$3)*(T_DataComboFile[Econ3]=$G48))*T_DataComboFile[2021/22 Reduction]*$B$3)","v":0},{"$f":"SUMPRODUCT(((T_DataComboFile[Implementation programme]=$G$3)*(T_DataComboFile[Econ3]=$G48))*T_DataComboFile[2021/22 Increase]*$B$3)","v":0},0,{"$f":"SUMPRODUCT(((T_DataComboFile[Implementation programme]=$G$3)*(T_DataComboFile[Econ3]=$G48))*T_DataComboFile[2022/23 Baseline]*$B$3)","v":0},{"$f":"SUMPRODUCT(((T_DataComboFile[Implementation programme]=$G$3)*(T_DataComboFile[Econ3]=$G48))*T_DataComboFile[2022/23 Reduction]*$B$3)","v":0},{"$f":"SUMPRODUCT(((T_DataComboFile[Implementation programme]=$G$3)*(T_DataComboFile[Econ3]=$G48))*T_DataComboFile[2022/23 Increase]*$B$3)","v":0},0,{"$f":"SUMPRODUCT(((T_DataComboFile[Implementation programme]=$G$3)*(T_DataComboFile[Econ3]=$G48))*T_DataComboFile[2023/24 Baseline]*$B$3)","v":0},{"$f":"SUMPRODUCT(((T_DataComboFile[Implementation programme]=$G$3)*(T_DataComboFile[Econ3]=$G48))*T_DataComboFile[2023/24 Reduction]*$B$3)","v":0},{"$f":"SUMPRODUCT(((T_DataComboFile[Implementation programme]=$G$3)*(T_DataComboFile[Econ3]=$G48))*T_DataComboFile[2023/24 Increase]*$B$3)","v":0},0]
[0,0,null,null,null,null,"Households",{"$f":"SUM(H50:H51)","v":0},0,0,0,0,0,0,0,0,0,0,0,0,0,0,0]
[0,0,null,null,null,null,"Social benefits",{"$f":"SUMPRODUCT(((T_DataComboFile[Implementation programme]=$G$3)*(T_DataComboFile[Econ4]=$G50))*T_DataComboFile[2017/18]*$B$3)","v":0},{"$f":"SUMPRODUCT(((T_DataComboFile[Implementation programme]=$G$3)*(T_DataComboFile[Econ4]=$G50))*T_DataComboFile[2018/19]*$B$3)","v":0},{"$f":"SUMPRODUCT(((T_DataComboFile[Implementation programme]=$G$3)*(T_DataComboFile[Econ4]=$G50))*T_DataComboFile[2019/20 Revised estimate]*$B$3)","v":0},{"$f":"SUMPRODUCT(((T_DataComboFile[Implementation programme]=$G$3)*(T_DataComboFile[Econ4]=$G50))*T_DataComboFile[2020/21 Revised]*$B$3)","v":0},{"$f":"SUMPRODUCT(((T_DataComboFile[Implementation programme]=$G$3)*(T_DataComboFile[Econ4]=$G50))*T_DataComboFile[2021/22 Baseline]*$B$3)","v":0},{"$f":"SUMPRODUCT(((T_DataComboFile[Implementation programme]=$G$3)*(T_DataComboFile[Econ4]=$G50))*T_DataComboFile[2021/22 Reduction]*$B$3)","v":0},{"$f":"SUMPRODUCT(((T_DataComboFile[Implementation programme]=$G$3)*(T_DataComboFile[Econ4]=$G50))*T_DataComboFile[2021/22 Increase]*$B$3)","v":0},{"$f":"L50+M50+N50","v":0},{"$f":"SUMPRODUCT(((T_DataComboFile[Implementation programme]=$G$3)*(T_DataComboFile[Econ4]=$G50))*T_DataComboFile[2022/23 Baseline]*$B$3)","v":0},{"$f":"SUMPRODUCT(((T_DataComboFile[Implementation programme]=$G$3)*(T_DataComboFile[Econ4]=$G50))*T_DataComboFile[2022/23 Reduction]*$B$3)","v":0},{"$f":"SUMPRODUCT(((T_DataComboFile[Implementation programme]=$G$3)*(T_DataComboFile[Econ4]=$G50))*T_DataComboFile[2022/23 Increase]*$B$3)","v":0},{"$f":"P50+Q50+R50","v":0},{"$f":"SUMPRODUCT(((T_DataComboFile[Implementation programme]=$G$3)*(T_DataComboFile[Econ4]=$G50))*T_DataComboFile[2023/24 Baseline]*$B$3)","v":0},{"$f":"SUMPRODUCT(((T_DataComboFile[Implementation programme]=$G$3)*(T_DataComboFile[Econ4]=$G50))*T_DataComboFile[2023/24 Reduction]*$B$3)","v":0},{"$f":"SUMPRODUCT(((T_DataComboFile[Implementation programme]=$G$3)*(T_DataComboFile[Econ4]=$G50))*T_DataComboFile[2023/24 Increase]*$B$3)","v":0},{"$f":"T50+U50+V50","v":0}]
[0,0,null,null,null,null,"Other transfers to households",{"$f":"SUMPRODUCT(((T_DataComboFile[Implementation programme]=$G$3)*(T_DataComboFile[Econ4]=$G51))*T_DataComboFile[2017/18]*$B$3)","v":0},{"$f":"SUMPRODUCT(((T_DataComboFile[Implementation programme]=$G$3)*(T_DataComboFile[Econ4]=$G51))*T_DataComboFile[2018/19]*$B$3)","v":0},{"$f":"SUMPRODUCT(((T_DataComboFile[Implementation programme]=$G$3)*(T_DataComboFile[Econ4]=$G51))*T_DataComboFile[2019/20 Revised estimate]*$B$3)","v":0},{"$f":"SUMPRODUCT(((T_DataComboFile[Implementation programme]=$G$3)*(T_DataComboFile[Econ4]=$G51))*T_DataComboFile[2020/21 Revised]*$B$3)","v":0},{"$f":"SUMPRODUCT(((T_DataComboFile[Implementation programme]=$G$3)*(T_DataComboFile[Econ4]=$G51))*T_DataComboFile[2021/22 Baseline]*$B$3)","v":0},{"$f":"SUMPRODUCT(((T_DataComboFile[Implementation programme]=$G$3)*(T_DataComboFile[Econ4]=$G51))*T_DataComboFile[2021/22 Reduction]*$B$3)","v":0},{"$f":"SUMPRODUCT(((T_DataComboFile[Implementation programme]=$G$3)*(T_DataComboFile[Econ4]=$G51))*T_DataComboFile[2021/22 Increase]*$B$3)","v":0},0,{"$f":"SUMPRODUCT(((T_DataComboFile[Implementation programme]=$G$3)*(T_DataComboFile[Econ4]=$G51))*T_DataComboFile[2022/23 Baseline]*$B$3)","v":0},{"$f":"SUMPRODUCT(((T_DataComboFile[Implementation programme]=$G$3)*(T_DataComboFile[Econ4]=$G51))*T_DataComboFile[2022/23 Reduction]*$B$3)","v":0},{"$f":"SUMPRODUCT(((T_DataComboFile[Implementation programme]=$G$3)*(T_DataComboFile[Econ4]=$G51))*T_DataComboFile[2022/23 Increase]*$B$3)","v":0},0,{"$f":"SUMPRODUCT(((T_DataComboFile[Implementation programme]=$G$3)*(T_DataComboFile[Econ4]=$G51))*T_DataComboFile[2023/24 Baseline]*$B$3)","v":0},{"$f":"SUMPRODUCT(((T_DataComboFile[Implementation programme]=$G$3)*(T_DataComboFile[Econ4]=$G51))*T_DataComboFile[2023/24 Reduction]*$B$3)","v":0},{"$f":"SUMPRODUCT(((T_DataComboFile[Implementation programme]=$G$3)*(T_DataComboFile[Econ4]=$G51))*T_DataComboFile[2023/24 Increase]*$B$3)","v":0},0]
[0,0,null,null,null,null,"Payments for capital assets",{"$f":"SUM(H53,H56,H59:H63)","v":0},0,0,0,0,0,0,0,0,0,0,0,0,0,0,0]
[0,0,null,null,null,null,"Buildings and other fixed structures",{"$f":"SUM(H54:H55)","v":0},0,0,0,0,0,0,0,0,0,0,0,0,0,0,0]
[0,0,null,null,null,null,"Buildings",{"$f":"SUMPRODUCT(((T_DataComboFile[Implementation programme]=$G$3)*(T_DataComboFile[Econ4]=$G54))*T_DataComboFile[2017/18]*$B$3)","v":0},{"$f":"SUMPRODUCT(((T_DataComboFile[Implementation programme]=$G$3)*(T_DataComboFile[Econ4]=$G54))*T_DataComboFile[2018/19]*$B$3)","v":0},{"$f":"SUMPRODUCT(((T_DataComboFile[Implementation programme]=$G$3)*(T_DataComboFile[Econ4]=$G54))*T_DataComboFile[2019/20 Revised estimate]*$B$3)","v":0},{"$f":"SUMPRODUCT(((T_DataComboFile[Implementation programme]=$G$3)*(T_DataComboFile[Econ4]=$G54))*T_DataComboFile[2020/21 Revised]*$B$3)","v":0},{"$f":"SUMPRODUCT(((T_DataComboFile[Implementation programme]=$G$3)*(T_DataComboFile[Econ4]=$G54))*T_DataComboFile[2021/22 Baseline]*$B$3)","v":0},{"$f":"SUMPRODUCT(((T_DataComboFile[Implementation programme]=$G$3)*(T_DataComboFile[Econ4]=$G54))*T_DataComboFile[2021/22 Reduction]*$B$3)","v":0},{"$f":"SUMPRODUCT(((T_DataComboFile[Implementation programme]=$G$3)*(T_DataComboFile[Econ4]=$G54))*T_DataComboFile[2021/22 Increase]*$B$3)","v":0},{"$f":"L54+M54+N54","v":0},{"$f":"SUMPRODUCT(((T_DataComboFile[Implementation programme]=$G$3)*(T_DataComboFile[Econ4]=$G54))*T_DataComboFile[2022/23 Baseline]*$B$3)","v":0},{"$f":"SUMPRODUCT(((T_DataComboFile[Implementation programme]=$G$3)*(T_DataComboFile[Econ4]=$G54))*T_DataComboFile[2022/23 Reduction]*$B$3)","v":0},{"$f":"SUMPRODUCT(((T_DataComboFile[Implementation programme]=$G$3)*(T_DataComboFile[Econ4]=$G54))*T_DataComboFile[2022/23 Increase]*$B$3)","v":0},{"$f":"P54+Q54+R54","v":0},{"$f":"SUMPRODUCT(((T_DataComboFile[Implementation programme]=$G$3)*(T_DataComboFile[Econ4]=$G54))*T_DataComboFile[2023/24 Baseline]*$B$3)","v":0},{"$f":"SUMPRODUCT(((T_DataComboFile[Implementation programme]=$G$3)*(T_DataComboFile[Econ4]=$G54))*T_DataComboFile[2023/24 Reduction]*$B$3)","v":0},{"$f":"SUMPRODUCT(((T_DataComboFile[Implementation programme]=$G$3)*(T_DataComboFile[Econ4]=$G54))*T_DataComboFile[2023/24 Increase]*$B$3)","v":0},{"$f":"T54+U54+V54","v":0}]
[0,0,null,null,null,null,"Other fixed structures",{"$f":"SUMPRODUCT(((T_DataComboFile[Implementation programme]=$G$3)*(T_DataComboFile[Econ4]=$G55))*T_DataComboFile[2017/18]*$B$3)","v":0},{"$f":"SUMPRODUCT(((T_DataComboFile[Implementation programme]=$G$3)*(T_DataComboFile[Econ4]=$G55))*T_DataComboFile[2018/19]*$B$3)","v":0},{"$f":"SUMPRODUCT(((T_DataComboFile[Implementation programme]=$G$3)*(T_DataComboFile[Econ4]=$G55))*T_DataComboFile[2019/20 Revised estimate]*$B$3)","v":0},{"$f":"SUMPRODUCT(((T_DataComboFile[Implementation programme]=$G$3)*(T_DataComboFile[Econ4]=$G55))*T_DataComboFile[2020/21 Revised]*$B$3)","v":0},{"$f":"SUMPRODUCT(((T_DataComboFile[Implementation programme]=$G$3)*(T_DataComboFile[Econ4]=$G55))*T_DataComboFile[2021/22 Baseline]*$B$3)","v":0},{"$f":"SUMPRODUCT(((T_DataComboFile[Implementation programme]=$G$3)*(T_DataComboFile[Econ4]=$G55))*T_DataComboFile[2021/22 Reduction]*$B$3)","v":0},{"$f":"SUMPRODUCT(((T_DataComboFile[Implementation programme]=$G$3)*(T_DataComboFile[Econ4]=$G55))*T_DataComboFile[2021/22 Increase]*$B$3)","v":0},0,{"$f":"SUMPRODUCT(((T_DataComboFile[Implementation programme]=$G$3)*(T_DataComboFile[Econ4]=$G55))*T_DataComboFile[2022/23 Baseline]*$B$3)","v":0},{"$f":"SUMPRODUCT(((T_DataComboFile[Implementation programme]=$G$3)*(T_DataComboFile[Econ4]=$G55))*T_DataComboFile[2022/23 Reduction]*$B$3)","v":0},{"$f":"SUMPRODUCT(((T_DataComboFile[Implementation programme]=$G$3)*(T_DataComboFile[Econ4]=$G55))*T_DataComboFile[2022/23 Increase]*$B$3)","v":0},0,{"$f":"SUMPRODUCT(((T_DataComboFile[Implementation programme]=$G$3)*(T_DataComboFile[Econ4]=$G55))*T_DataComboFile[2023/24 Baseline]*$B$3)","v":0},{"$f":"SUMPRODUCT(((T_DataComboFile[Implementation programme]=$G$3)*(T_DataComboFile[Econ4]=$G55))*T_DataComboFile[2023/24 Reduction]*$B$3)","v":0},{"$f":"SUMPRODUCT(((T_DataComboFile[Implementation programme]=$G$3)*(T_DataComboFile[Econ4]=$G55))*T_DataComboFile[2023/24 Increase]*$B$3)","v":0},0]
[0,0,null,null,null,null,"Machinery and equipment",{"$f":"SUM(H57:H58)","v":0},0,0,0,0,0,0,0,0,0,0,0,0,0,0,0]
[0,0,null,null,null,null,"Transport equipment",{"$f":"SUMPRODUCT(((T_DataComboFile[Implementation programme]=$G$3)*(T_DataComboFile[Econ4]=$G57))*T_DataComboFile[2017/18]*$B$3)","v":0},{"$f":"SUMPRODUCT(((T_DataComboFile[Implementation programme]=$G$3)*(T_DataComboFile[Econ4]=$G57))*T_DataComboFile[2018/19]*$B$3)","v":0},{"$f":"SUMPRODUCT(((T_DataComboFile[Implementation programme]=$G$3)*(T_DataComboFile[Econ4]=$G57))*T_DataComboFile[2019/20 Revised estimate]*$B$3)","v":0},{"$f":"SUMPRODUCT(((T_DataComboFile[Implementation programme]=$G$3)*(T_DataComboFile[Econ4]=$G57))*T_DataComboFile[2020/21 Revised]*$B$3)","v":0},{"$f":"SUMPRODUCT(((T_DataComboFile[Implementation programme]=$G$3)*(T_DataComboFile[Econ4]=$G57))*T_DataComboFile[2021/22 Baseline]*$B$3)","v":0},{"$f":"SUMPRODUCT(((T_DataComboFile[Implementation programme]=$G$3)*(T_DataComboFile[Econ4]=$G57))*T_DataComboFile[2021/22 Reduction]*$B$3)","v":0},{"$f":"SUMPRODUCT(((T_DataComboFile[Implementation programme]=$G$3)*(T_DataComboFile[Econ4]=$G57))*T_DataComboFile[2021/22 Increase]*$B$3)","v":0},{"$f":"L57+M57+N57","v":0},{"$f":"SUMPRODUCT(((T_DataComboFile[Implementation programme]=$G$3)*(T_DataComboFile[Econ4]=$G57))*T_DataComboFile[2022/23 Baseline]*$B$3)","v":0},{"$f":"SUMPRODUCT(((T_DataComboFile[Implementation programme]=$G$3)*(T_DataComboFile[Econ4]=$G57))*T_DataComboFile[2022/23 Reduction]*$B$3)","v":0},{"$f":"SUMPRODUCT(((T_DataComboFile[Implementation programme]=$G$3)*(T_DataComboFile[Econ4]=$G57))*T_DataComboFile[2022/23 Increase]*$B$3)","v":0},{"$f":"P57+Q57+R57","v":0},{"$f":"SUMPRODUCT(((T_DataComboFile[Implementation programme]=$G$3)*(T_DataComboFile[Econ4]=$G57))*T_DataComboFile[2023/24 Baseline]*$B$3)","v":0},{"$f":"SUMPRODUCT(((T_DataComboFile[Implementation programme]=$G$3)*(T_DataComboFile[Econ4]=$G57))*T_DataComboFile[2023/24 Reduction]*$B$3)","v":0},{"$f":"SUMPRODUCT(((T_DataComboFile[Implementation programme]=$G$3)*(T_DataComboFile[Econ4]=$G57))*T_DataComboFile[2023/24 Increase]*$B$3)","v":0},{"$f":"T57+U57+V57","v":0}]
[0,0,null,null,null,null,"Other machinery and equipment",{"$f":"SUMPRODUCT(((T_DataComboFile[Implementation programme]=$G$3)*(T_DataComboFile[Econ4]=$G58))*T_DataComboFile[2017/18]*$B$3)","v":0},{"$f":"SUMPRODUCT(((T_DataComboFile[Implementation programme]=$G$3)*(T_DataComboFile[Econ4]=$G58))*T_DataComboFile[2018/19]*$B$3)","v":0},{"$f":"SUMPRODUCT(((T_DataComboFile[Implementation programme]=$G$3)*(T_DataComboFile[Econ4]=$G58))*T_DataComboFile[2019/20 Revised estimate]*$B$3)","v":0},{"$f":"SUMPRODUCT(((T_DataComboFile[Implementation programme]=$G$3)*(T_DataComboFile[Econ4]=$G58))*T_DataComboFile[2020/21 Revised]*$B$3)","v":0},{"$f":"SUMPRODUCT(((T_DataComboFile[Implementation programme]=$G$3)*(T_DataComboFile[Econ4]=$G58))*T_DataComboFile[2021/22 Baseline]*$B$3)","v":0},{"$f":"SUMPRODUCT(((T_DataComboFile[Implementation programme]=$G$3)*(T_DataComboFile[Econ4]=$G58))*T_DataComboFile[2021/22 Reduction]*$B$3)","v":0},{"$f":"SUMPRODUCT(((T_DataComboFile[Implementation programme]=$G$3)*(T_DataComboFile[Econ4]=$G58))*T_DataComboFile[2021/22 Increase]*$B$3)","v":0},0,{"$f":"SUMPRODUCT(((T_DataComboFile[Implementation programme]=$G$3)*(T_DataComboFile[Econ4]=$G58))*T_DataComboFile[2022/23 Baseline]*$B$3)","v":0},{"$f":"SUMPRODUCT(((T_DataComboFile[Implementation programme]=$G$3)*(T_DataComboFile[Econ4]=$G58))*T_DataComboFile[2022/23 Reduction]*$B$3)","v":0},{"$f":"SUMPRODUCT(((T_DataComboFile[Implementation programme]=$G$3)*(T_DataComboFile[Econ4]=$G58))*T_DataComboFile[2022/23 Increase]*$B$3)","v":0},0,{"$f":"SUMPRODUCT(((T_DataComboFile[Implementation programme]=$G$3)*(T_DataComboFile[Econ4]=$G58))*T_DataComboFile[2023/24 Baseline]*$B$3)","v":0},{"$f":"SUMPRODUCT(((T_DataComboFile[Implementation programme]=$G$3)*(T_DataComboFile[Econ4]=$G58))*T_DataComboFile[2023/24 Reduction]*$B$3)","v":0},{"$f":"SUMPRODUCT(((T_DataComboFile[Implementation programme]=$G$3)*(T_DataComboFile[Econ4]=$G58))*T_DataComboFile[2023/24 Increase]*$B$3)","v":0},0]
[0,0,null,null,null,null,"Heritage assets",{"$f":"SUMPRODUCT(((T_DataComboFile[Implementation programme]=$G$3)*(T_DataComboFile[Econ3]=$G59))*T_DataComboFile[2017/18]*$B$3)","v":0},{"$f":"SUMPRODUCT(((T_DataComboFile[Implementation programme]=$G$3)*(T_DataComboFile[Econ3]=$G59))*T_DataComboFile[2018/19]*$B$3)","v":0},{"$f":"SUMPRODUCT(((T_DataComboFile[Implementation programme]=$G$3)*(T_DataComboFile[Econ3]=$G59))*T_DataComboFile[2019/20 Revised estimate]*$B$3)","v":0},{"$f":"SUMPRODUCT(((T_DataComboFile[Implementation programme]=$G$3)*(T_DataComboFile[Econ3]=$G59))*T_DataComboFile[2020/21 Revised]*$B$3)","v":0},{"$f":"SUMPRODUCT(((T_DataComboFile[Implementation programme]=$G$3)*(T_DataComboFile[Econ3]=$G59))*T_DataComboFile[2021/22 Baseline]*$B$3)","v":0},{"$f":"SUMPRODUCT(((T_DataComboFile[Implementation programme]=$G$3)*(T_DataComboFile[Econ3]=$G59))*T_DataComboFile[2021/22 Reduction]*$B$3)","v":0},{"$f":"SUMPRODUCT(((T_DataComboFile[Implementation programme]=$G$3)*(T_DataComboFile[Econ3]=$G59))*T_DataComboFile[2021/22 Increase]*$B$3)","v":0},0,{"$f":"SUMPRODUCT(((T_DataComboFile[Implementation programme]=$G$3)*(T_DataComboFile[Econ3]=$G59))*T_DataComboFile[2022/23 Baseline]*$B$3)","v":0},{"$f":"SUMPRODUCT(((T_DataComboFile[Implementation programme]=$G$3)*(T_DataComboFile[Econ3]=$G59))*T_DataComboFile[2022/23 Reduction]*$B$3)","v":0},{"$f":"SUMPRODUCT(((T_DataComboFile[Implementation programme]=$G$3)*(T_DataComboFile[Econ3]=$G59))*T_DataComboFile[2022/23 Increase]*$B$3)","v":0},0,{"$f":"SUMPRODUCT(((T_DataComboFile[Implementation programme]=$G$3)*(T_DataComboFile[Econ3]=$G59))*T_DataComboFile[2023/24 Baseline]*$B$3)","v":0},{"$f":"SUMPRODUCT(((T_DataComboFile[Implementation programme]=$G$3)*(T_DataComboFile[Econ3]=$G59))*T_DataComboFile[2023/24 Reduction]*$B$3)","v":0},{"$f":"SUMPRODUCT(((T_DataComboFile[Implementation programme]=$G$3)*(T_DataComboFile[Econ3]=$G59))*T_DataComboFile[2023/24 Increase]*$B$3)","v":0},0]
[0,0,null,null,null,null,"Specialised military assets",{"$f":"SUMPRODUCT(((T_DataComboFile[Implementation programme]=$G$3)*(T_DataComboFile[Econ3]=$G60))*T_DataComboFile[2017/18]*$B$3)","v":0},{"$f":"SUMPRODUCT(((T_DataComboFile[Implementation programme]=$G$3)*(T_DataComboFile[Econ3]=$G60))*T_DataComboFile[2018/19]*$B$3)","v":0},{"$f":"SUMPRODUCT(((T_DataComboFile[Implementation programme]=$G$3)*(T_DataComboFile[Econ3]=$G60))*T_DataComboFile[2019/20 Revised estimate]*$B$3)","v":0},{"$f":"SUMPRODUCT(((T_DataComboFile[Implementation programme]=$G$3)*(T_DataComboFile[Econ3]=$G60))*T_DataComboFile[2020/21 Revised]*$B$3)","v":0},{"$f":"SUMPRODUCT(((T_DataComboFile[Implementation programme]=$G$3)*(T_DataComboFile[Econ3]=$G60))*T_DataComboFile[2021/22 Baseline]*$B$3)","v":0},{"$f":"SUMPRODUCT(((T_DataComboFile[Implementation programme]=$G$3)*(T_DataComboFile[Econ3]=$G60))*T_DataComboFile[2021/22 Reduction]*$B$3)","v":0},{"$f":"SUMPRODUCT(((T_DataComboFile[Implementation programme]=$G$3)*(T_DataComboFile[Econ3]=$G60))*T_DataComboFile[2021/22 Increase]*$B$3)","v":0},0,{"$f":"SUMPRODUCT(((T_DataComboFile[Implementation programme]=$G$3)*(T_DataComboFile[Econ3]=$G60))*T_DataComboFile[2022/23 Baseline]*$B$3)","v":0},{"$f":"SUMPRODUCT(((T_DataComboFile[Implementation programme]=$G$3)*(T_DataComboFile[Econ3]=$G60))*T_DataComboFile[2022/23 Reduction]*$B$3)","v":0},{"$f":"SUMPRODUCT(((T_DataComboFile[Implementation programme]=$G$3)*(T_DataComboFile[Econ3]=$G60))*T_DataComboFile[2022/23 Increase]*$B$3)","v":0},0,{"$f":"SUMPRODUCT(((T_DataComboFile[Implementation programme]=$G$3)*(T_DataComboFile[Econ3]=$G60))*T_DataComboFile[2023/24 Baseline]*$B$3)","v":0},{"$f":"SUMPRODUCT(((T_DataComboFile[Implementation programme]=$G$3)*(T_DataComboFile[Econ3]=$G60))*T_DataComboFile[2023/24 Reduction]*$B$3)","v":0},{"$f":"SUMPRODUCT(((T_DataComboFile[Implementation programme]=$G$3)*(T_DataComboFile[Econ3]=$G60))*T_DataComboFile[2023/24 Increase]*$B$3)","v":0},0]
[0,0,null,null,null,null,"Biological assets",{"$f":"SUMPRODUCT(((T_DataComboFile[Implementation programme]=$G$3)*(T_DataComboFile[Econ3]=$G61))*T_DataComboFile[2017/18]*$B$3)","v":0},{"$f":"SUMPRODUCT(((T_DataComboFile[Implementation programme]=$G$3)*(T_DataComboFile[Econ3]=$G61))*T_DataComboFile[2018/19]*$B$3)","v":0},{"$f":"SUMPRODUCT(((T_DataComboFile[Implementation programme]=$G$3)*(T_DataComboFile[Econ3]=$G61))*T_DataComboFile[2019/20 Revised estimate]*$B$3)","v":0},{"$f":"SUMPRODUCT(((T_DataComboFile[Implementation programme]=$G$3)*(T_DataComboFile[Econ3]=$G61))*T_DataComboFile[2020/21 Revised]*$B$3)","v":0},{"$f":"SUMPRODUCT(((T_DataComboFile[Implementation programme]=$G$3)*(T_DataComboFile[Econ3]=$G61))*T_DataComboFile[2021/22 Baseline]*$B$3)","v":0},{"$f":"SUMPRODUCT(((T_DataComboFile[Implementation programme]=$G$3)*(T_DataComboFile[Econ3]=$G61))*T_DataComboFile[2021/22 Reduction]*$B$3)","v":0},{"$f":"SUMPRODUCT(((T_DataComboFile[Implementation programme]=$G$3)*(T_DataComboFile[Econ3]=$G61))*T_DataComboFile[2021/22 Increase]*$B$3)","v":0},0,{"$f":"SUMPRODUCT(((T_DataComboFile[Implementation programme]=$G$3)*(T_DataComboFile[Econ3]=$G61))*T_DataComboFile[2022/23 Baseline]*$B$3)","v":0},{"$f":"SUMPRODUCT(((T_DataComboFile[Implementation programme]=$G$3)*(T_DataComboFile[Econ3]=$G61))*T_DataComboFile[2022/23 Reduction]*$B$3)","v":0},{"$f":"SUMPRODUCT(((T_DataComboFile[Implementation programme]=$G$3)*(T_DataComboFile[Econ3]=$G61))*T_DataComboFile[2022/23 Increase]*$B$3)","v":0},0,{"$f":"SUMPRODUCT(((T_DataComboFile[Implementation programme]=$G$3)*(T_DataComboFile[Econ3]=$G61))*T_DataComboFile[2023/24 Baseline]*$B$3)","v":0},{"$f":"SUMPRODUCT(((T_DataComboFile[Implementation programme]=$G$3)*(T_DataComboFile[Econ3]=$G61))*T_DataComboFile[2023/24 Reduction]*$B$3)","v":0},{"$f":"SUMPRODUCT(((T_DataComboFile[Implementation programme]=$G$3)*(T_DataComboFile[Econ3]=$G61))*T_DataComboFile[2023/24 Increase]*$B$3)","v":0},0]
[0,0,null,null,null,null,"Land and sub-soil assets",{"$f":"SUMPRODUCT(((T_DataComboFile[Implementation programme]=$G$3)*(T_DataComboFile[Econ3]=$G62))*T_DataComboFile[2017/18]*$B$3)","v":0},{"$f":"SUMPRODUCT(((T_DataComboFile[Implementation programme]=$G$3)*(T_DataComboFile[Econ3]=$G62))*T_DataComboFile[2018/19]*$B$3)","v":0},{"$f":"SUMPRODUCT(((T_DataComboFile[Implementation programme]=$G$3)*(T_DataComboFile[Econ3]=$G62))*T_DataComboFile[2019/20 Revised estimate]*$B$3)","v":0},{"$f":"SUMPRODUCT(((T_DataComboFile[Implementation programme]=$G$3)*(T_DataComboFile[Econ3]=$G62))*T_DataComboFile[2020/21 Revised]*$B$3)","v":0},{"$f":"SUMPRODUCT(((T_DataComboFile[Implementation programme]=$G$3)*(T_DataComboFile[Econ3]=$G62))*T_DataComboFile[2021/22 Baseline]*$B$3)","v":0},{"$f":"SUMPRODUCT(((T_DataComboFile[Implementation programme]=$G$3)*(T_DataComboFile[Econ3]=$G62))*T_DataComboFile[2021/22 Reduction]*$B$3)","v":0},{"$f":"SUMPRODUCT(((T_DataComboFile[Implementation programme]=$G$3)*(T_DataComboFile[Econ3]=$G62))*T_DataComboFile[2021/22 Increase]*$B$3)","v":0},0,{"$f":"SUMPRODUCT(((T_DataComboFile[Implementation programme]=$G$3)*(T_DataComboFile[Econ3]=$G62))*T_DataComboFile[2022/23 Baseline]*$B$3)","v":0},{"$f":"SUMPRODUCT(((T_DataComboFile[Implementation programme]=$G$3)*(T_DataComboFile[Econ3]=$G62))*T_DataComboFile[2022/23 Reduction]*$B$3)","v":0},{"$f":"SUMPRODUCT(((T_DataComboFile[Implementation programme]=$G$3)*(T_DataComboFile[Econ3]=$G62))*T_DataComboFile[2022/23 Increase]*$B$3)","v":0},0,{"$f":"SUMPRODUCT(((T_DataComboFile[Implementation programme]=$G$3)*(T_DataComboFile[Econ3]=$G62))*T_DataComboFile[2023/24 Baseline]*$B$3)","v":0},{"$f":"SUMPRODUCT(((T_DataComboFile[Implementation programme]=$G$3)*(T_DataComboFile[Econ3]=$G62))*T_DataComboFile[2023/24 Reduction]*$B$3)","v":0},{"$f":"SUMPRODUCT(((T_DataComboFile[Implementation programme]=$G$3)*(T_DataComboFile[Econ3]=$G62))*T_DataComboFile[2023/24 Increase]*$B$3)","v":0},0]
[0,0,null,null,null,null,"Software and other intangible assets",{"$f":"SUMPRODUCT(((T_DataComboFile[Implementation programme]=$G$3)*(T_DataComboFile[Econ3]=$G63))*T_DataComboFile[2017/18]*$B$3)","v":0},{"$f":"SUMPRODUCT(((T_DataComboFile[Implementation programme]=$G$3)*(T_DataComboFile[Econ3]=$G63))*T_DataComboFile[2018/19]*$B$3)","v":0},{"$f":"SUMPRODUCT(((T_DataComboFile[Implementation programme]=$G$3)*(T_DataComboFile[Econ3]=$G63))*T_DataComboFile[2019/20 Revised estimate]*$B$3)","v":0},{"$f":"SUMPRODUCT(((T_DataComboFile[Implementation programme]=$G$3)*(T_DataComboFile[Econ3]=$G63))*T_DataComboFile[2020/21 Revised]*$B$3)","v":0},{"$f":"SUMPRODUCT(((T_DataComboFile[Implementation programme]=$G$3)*(T_DataComboFile[Econ3]=$G63))*T_DataComboFile[2021/22 Baseline]*$B$3)","v":0},{"$f":"SUMPRODUCT(((T_DataComboFile[Implementation programme]=$G$3)*(T_DataComboFile[Econ3]=$G63))*T_DataComboFile[2021/22 Reduction]*$B$3)","v":0},{"$f":"SUMPRODUCT(((T_DataComboFile[Implementation programme]=$G$3)*(T_DataComboFile[Econ3]=$G63))*T_DataComboFile[2021/22 Increase]*$B$3)","v":0},0,{"$f":"SUMPRODUCT(((T_DataComboFile[Implementation programme]=$G$3)*(T_DataComboFile[Econ3]=$G63))*T_DataComboFile[2022/23 Baseline]*$B$3)","v":0},{"$f":"SUMPRODUCT(((T_DataComboFile[Implementation programme]=$G$3)*(T_DataComboFile[Econ3]=$G63))*T_DataComboFile[2022/23 Reduction]*$B$3)","v":0},{"$f":"SUMPRODUCT(((T_DataComboFile[Implementation programme]=$G$3)*(T_DataComboFile[Econ3]=$G63))*T_DataComboFile[2022/23 Increase]*$B$3)","v":0},0,{"$f":"SUMPRODUCT(((T_DataComboFile[Implementation programme]=$G$3)*(T_DataComboFile[Econ3]=$G63))*T_DataComboFile[2023/24 Baseline]*$B$3)","v":0},{"$f":"SUMPRODUCT(((T_DataComboFile[Implementation programme]=$G$3)*(T_DataComboFile[Econ3]=$G63))*T_DataComboFile[2023/24 Reduction]*$B$3)","v":0},{"$f":"SUMPRODUCT(((T_DataComboFile[Implementation programme]=$G$3)*(T_DataComboFile[Econ3]=$G63))*T_DataComboFile[2023/24 Increase]*$B$3)","v":0},0]
[0,0,null,null,null,null,"Payments for financial assets",{"$f":"SUMPRODUCT(((T_DataComboFile[Implementation programme]=$G$3)*(T_DataComboFile[Econ3]=$G64))*T_DataComboFile[2017/18]*$B$3)","v":0},{"$f":"SUMPRODUCT(((T_DataComboFile[Implementation programme]=$G$3)*(T_DataComboFile[Econ3]=$G64))*T_DataComboFile[2018/19]*$B$3)","v":0},{"$f":"SUMPRODUCT(((T_DataComboFile[Implementation programme]=$G$3)*(T_DataComboFile[Econ3]=$G64))*T_DataComboFile[2019/20 Revised estimate]*$B$3)","v":0},{"$f":"SUMPRODUCT(((T_DataComboFile[Implementation programme]=$G$3)*(T_DataComboFile[Econ3]=$G64))*T_DataComboFile[2020/21 Revised]*$B$3)","v":0},{"$f":"SUMPRODUCT(((T_DataComboFile[Implementation programme]=$G$3)*(T_DataComboFile[Econ3]=$G64))*T_DataComboFile[2021/22 Baseline]*$B$3)","v":0},{"$f":"SUMPRODUCT(((T_DataComboFile[Implementation programme]=$G$3)*(T_DataComboFile[Econ3]=$G64))*T_DataComboFile[2021/22 Reduction]*$B$3)","v":0},{"$f":"SUMPRODUCT(((T_DataComboFile[Implementation programme]=$G$3)*(T_DataComboFile[Econ3]=$G64))*T_DataComboFile[2021/22 Increase]*$B$3)","v":0},0,{"$f":"SUMPRODUCT(((T_DataComboFile[Implementation programme]=$G$3)*(T_DataComboFile[Econ3]=$G64))*T_DataComboFile[2022/23 Baseline]*$B$3)","v":0},{"$f":"SUMPRODUCT(((T_DataComboFile[Implementation programme]=$G$3)*(T_DataComboFile[Econ3]=$G64))*T_DataComboFile[2022/23 Reduction]*$B$3)","v":0},{"$f":"SUMPRODUCT(((T_DataComboFile[Implementation programme]=$G$3)*(T_DataComboFile[Econ3]=$G64))*T_DataComboFile[2022/23 Increase]*$B$3)","v":0},0,{"$f":"SUMPRODUCT(((T_DataComboFile[Implementation programme]=$G$3)*(T_DataComboFile[Econ3]=$G64))*T_DataComboFile[2023/24 Baseline]*$B$3)","v":0},{"$f":"SUMPRODUCT(((T_DataComboFile[Implementation programme]=$G$3)*(T_DataComboFile[Econ3]=$G64))*T_DataComboFile[2023/24 Reduction]*$B$3)","v":0},{"$f":"SUMPRODUCT(((T_DataComboFile[Implementation programme]=$G$3)*(T_DataComboFile[Econ3]=$G64))*T_DataComboFile[2023/24 Increase]*$B$3)","v":0},0]
[0,0,null,null,null,null,"Total",{"$f":"SUM(H32,H36,H52,H64)","v":0},0,0,0,0,0,0,0,0,0,0,0,0,0,0,0]
[]
[]
[]
[]
[]
[null,null,null,null,null,null,{"$f":"\"IMPACT OF ADJUSTMENTS: \" &UPPER($G$3)","v":"IMPACT OF ADJUSTMENTS: "}]
[]
[null,null,null,null,null,1,"Summary of impact on service delivery due to adjustments"]
[{"$f":"$G$3","v":0},1]
[0,1]
[0,1]
[0,1]
[0,1]
[0,1]
[0,1]
[0,1]
[0,1]
[0,1]
[0,1]
[0,1]
[0,1]
[0,1]
[0,1]
[]
[]
[]
[]
[]
[null,null,null,null,null,2,"Impact of adjustments on performance indicators"]
[{"$f":"$G$3","v":0},2,null,null,null,null,null,"2021/22",null,null,"2022/23",null,null,"2023/24",null,null," Comment",null,null,null,null,"Related MTSF Priority"]
[0,2,null,null,null,null,"Performance indicator","Original target","Revised target","Change","Original target","Revised target","Change","Original target","Revised target","Change"]
[0,2]
[0,2]
[0,2]
[0,2]
[0,2]
[0,2]
[0,2]
[0,2]
[0,2]
[0,2]
[0,2]
[0,2]
[0,2]
[0,2]
[0,2]
[]
[]
[]
[]
[]
[null,null,null,null,null,3,"Impact of adjustments on infrastructure projects"]
[{"$f":"$G$3","v":0},3,null,null,null,null,null,"2021/22",null,null,"2022/23",null,null,"2023/24",null,null," Comment"]
[0,3,null,null,null,null,"Project name","Original amount","Revised amount","Change","Original amount","Revised amount","Change","Original amount","Revised amount","Change"]
[0,3,null,null,null,null,null,null,null,{"$f":"I120-H120","v":0},null,null,{"$f":"L120-K120","v":0},null,null,{"$f":"O120-N120","v":0}]
[0,3,null,null,null,null,null,null,null,0,null,null,0,null,null,0]
[0,3,null,null,null,null,null,null,null,0,null,null,0,null,null,0]
[0,3,null,null,null,null,null,null,null,0,null,null,0,null,null,0]
[0,3,null,null,null,null,null,null,null,0,null,null,0,null,null,0]
[0,3,null,null,null,null,null,null,null,0,null,null,0,null,null,0]
[0,3,null,null,null,null,null,null,null,0,null,null,0,null,null,0]
[0,3,null,null,null,null,null,null,null,0,null,null,0,null,null,0]
[0,3,null,null,null,null,null,null,null,0,null,null,0,null,null,0]
[0,3,null,null,null,null,null,null,null,0,null,null,0,null,null,0]
[0,3,null,null,null,null,null,null,null,0,null,null,0,null,null,0]
[0,3,null,null,null,null,null,null,null,0,null,null,0,null,null,0]
[0,3,null,null,null,null,null,null,null,0,null,null,0,null,null,0]
[0,3,null,null,null,null,null,null,null,0,null,null,0,null,null,0]
[0,3,null,null,null,null,null,null,null,0,null,null,0,null,null,0]
[0,3,null,null,null,null,"Total",{"$f":"SUM(H120:H134)","v":0},0,0,0,0,0,0,0,0]
[]
[]
[]
[]
[]
[null,null,null,null,null,4,"Impact of adjustments on personnel headcount numbers"]
[{"$f":"$G$3","v":0},4,null,null,null,null,null,"2021/22",null,null,"2022/23",null,null,"2023/24",null,null," Comment"]
[0,4,null,null,null,null,"Salary level","Original number","Revised number","Change","Original number","Revised number","Change","Original number","Revised number","Change"]
[0,4,null,null,null,null,1,null,null,{"$f":"I144-H144","v":0},null,null,{"$f":"L144-K144","v":0},null,null,{"$f":"O144-N144","v":0}]
[0,4,null,null,null,null,2,null,null,0,null,null,0,null,null,0]
[0,4,null,null,null,null,3,null,null,0,null,null,0,null,null,0]
[0,4,null,null,null,null,4,null,null,0,null,null,0,null,null,0]
[0,4,null,null,null,null,5,null,null,0,null,null,0,null,null,0]
[0,4,null,null,null,null,6,null,null,0,null,null,0,null,null,0]
[0,4,null,null,null,null,7,null,null,0,null,null,0,null,null,0]
[0,4,null,null,null,null,8,null,null,0,null,null,0,null,null,0]
[0,4,null,null,null,null,9,null,null,0,null,null,0,null,null,0]
[0,4,null,null,null,null,10,null,null,0,null,null,0,null,null,0]
[0,4,null,null,null,null,11,null,null,0,null,null,0,null,null,0]
[0,4,null,null,null,null,12,null,null,0,null,null,0,null,null,0]
[0,4,null,null,null,null,13,null,null,0,null,null,0,null,null,0]
[0,4,null,null,null,null,14,null,null,0,null,null,0,null,null,0]
[0,4,null,null,null,null,15,null,null,0,null,null,0,null,null,0]
[0,4,null,null,null,null,16,null,null,0,null,null,0,null,null,0]
[0,4,null,null,null,null,"Other",null,null,0,null,null,0,null,null,0]
[0,4,null,null,null,null,"Other",null,null,0,null,null,0,null,null,0]
[0,4,null,null,null,null,"Other",null,null,0,null,null,0,null,null,0]
[0,4,null,null,null,null,"Other",null,null,0,null,null,0,null,null,0]
[0,4,null,null,null,null,"Total",{"$f":"SUM(H144:H163)","v":0},0,0,0,0,0,0,0,0]
[]
[]
[]
[]
[]
[null,null,null,null,null,5,"Impact of adjustments by economic classification"]
[{"$f":"$G$3","v":0},5,null,null,null,null,null,"2021/22",null,null,"2022/23",null,null,"2023/24",null,null," Comment"]
[0,5,null,null,null,null,"Salary level","Original number","Revised number","Change","Original number","Revised number","Change","Original number","Revised number","Change"]
[0,5,null,null,null,null,"Current payments",{"$f":"SUM(H174,H175,H182)","v":0},{"$f":"SUM(I174,I175,I182)","v":0},{"$f":"I173-H173","v":0},{"$f":"SUM(K174,K175,K182)","v":0},{"$f":"SUM(L174,L175,L182)","v":0},{"$f":"L173-K173","v":0},{"$f":"SUM(N174,N175,N182)","v":0},{"$f":"SUM(O174,O175,O182)","v":0},{"$f":"O173-N173","v":0}]
[0,5,null,null,null,null,"Compensation of employees",{"$f":"SUMPRODUCT(((T_DataComboFile[Implementation programme]=$G$3)*(T_DataComboFile[Econ3]=$G174))*T_DataComboFile[2021/22 Baseline]*$B$3)","v":0},{"$f":"SUMPRODUCT(((T_DataComboFile[Implementation programme]=$G$3)*(T_DataComboFile[Econ3]=$G174))*T_DataComboFile[2021/22 Revised baseline]*$B$3)","v":0},0,{"$f":"SUMPRODUCT(((T_DataComboFile[Implementation programme]=$G$3)*(T_DataComboFile[Econ3]=$G174))*T_DataComboFile[2022/23 Baseline]*$B$3)","v":0},{"$f":"SUMPRODUCT(((T_DataComboFile[Implementation programme]=$G$3)*(T_DataComboFile[Econ3]=$G174))*T_DataComboFile[2022/23 Revised baseline]*$B$3)","v":0},0,{"$f":"SUMPRODUCT(((T_DataComboFile[Implementation programme]=$G$3)*(T_DataComboFile[Econ3]=$G174))*T_DataComboFile[2023/24 Baseline]*$B$3)","v":0},{"$f":"SUMPRODUCT(((T_DataComboFile[Implementation programme]=$G$3)*(T_DataComboFile[Econ3]=$G174))*T_DataComboFile[2023/24 Revised baseline]*$B$3)","v":0},0]
[0,5,null,null,null,null,"Goods and services",{"$f":"SUMPRODUCT(((T_DataComboFile[Implementation programme]=$G$3)*(T_DataComboFile[Econ3]=$G175))*T_DataComboFile[2021/22 Baseline]*$B$3)","v":0},{"$f":"SUMPRODUCT(((T_DataComboFile[Implementation programme]=$G$3)*(T_DataComboFile[Econ3]=$G175))*T_DataComboFile[2021/22 Revised baseline]*$B$3)","v":0},0,{"$f":"SUMPRODUCT(((T_DataComboFile[Implementation programme]=$G$3)*(T_DataComboFile[Econ3]=$G175))*T_DataComboFile[2022/23 Baseline]*$B$3)","v":0},{"$f":"SUMPRODUCT(((T_DataComboFile[Implementation programme]=$G$3)*(T_DataComboFile[Econ3]=$G175))*T_DataComboFile[2022/23 Revised baseline]*$B$3)","v":0},0,{"$f":"SUMPRODUCT(((T_DataComboFile[Implementation programme]=$G$3)*(T_DataComboFile[Econ3]=$G175))*T_DataComboFile[2023/24 Baseline]*$B$3)","v":0},{"$f":"SUMPRODUCT(((T_DataComboFile[Implementation programme]=$G$3)*(T_DataComboFile[Econ3]=$G175))*T_DataComboFile[2023/24 Revised baseline]*$B$3)","v":0},0]
[0,50,null,null,null,null,"of which:"]
[0,51,null,null,null,null,null,null,null,{"$f":"I177-H177","v":0},null,null,{"$f":"L177-K177","v":0},null,null,0]
[0,51,null,null,null,null,null,null,null,0,null,null,0,null,null,0]
[0,51,null,null,null,null,null,null,null,0,null,null,0,null,null,0]
[0,51,null,null,null,null,null,null,null,0,null,null,0,null,null,0]
[0,51,null,null,null,null,null,null,null,0,null,null,0,null,null,0]
[0,5,null,null,null,null,"Interest and rent on land",{"$f":"SUMPRODUCT(((T_DataComboFile[Implementation programme]=$G$3)*(T_DataComboFile[Econ3]=$G182))*T_DataComboFile[2021/22 Baseline]*$B$3)","v":0},{"$f":"SUMPRODUCT(((T_DataComboFile[Implementation programme]=$G$3)*(T_DataComboFile[Econ3]=$G182))*T_DataComboFile[2021/22 Revised baseline]*$B$3)","v":0},0,{"$f":"SUMPRODUCT(((T_DataComboFile[Implementation programme]=$G$3)*(T_DataComboFile[Econ3]=$G182))*T_DataComboFile[2022/23 Baseline]*$B$3)","v":0},{"$f":"SUMPRODUCT(((T_DataComboFile[Implementation programme]=$G$3)*(T_DataComboFile[Econ3]=$G182))*T_DataComboFile[2022/23 Revised baseline]*$B$3)","v":0},0,{"$f":"SUMPRODUCT(((T_DataComboFile[Implementation programme]=$G$3)*(T_DataComboFile[Econ3]=$G182))*T_DataComboFile[2023/24 Baseline]*$B$3)","v":0},{"$f":"SUMPRODUCT(((T_DataComboFile[Implementation programme]=$G$3)*(T_DataComboFile[Econ3]=$G182))*T_DataComboFile[2023/24 Revised baseline]*$B$3)","v":0},0]
[0,5,null,null,null,null,"Transfers and subsidies",{"$f":"SUM(H184,H185,H197,H198,H199,H206,H207)","v":0},{"$f":"SUM(I184,I185,I197,I198,I199,I206,I207)","v":0},0,{"$f":"SUM(K184,K185,K197,K198,K199,K206,K207)","v":0},0,0,{"$f":"SUM(N184,N185,N197,N198,N199,N206,N207)","v":0},0,0]
[0,5,null,null,null,null,"Provinces and municipalities",{"$f":"SUMPRODUCT(((T_DataComboFile[Implementation programme]=$G$3)*(T_DataComboFile[Econ3]=$G184))*T_DataComboFile[2021/22 Baseline]*$B$3)","v":0},{"$f":"SUMPRODUCT(((T_DataComboFile[Implementation programme]=$G$3)*(T_DataComboFile[Econ3]=$G184))*T_DataComboFile[2021/22 Revised baseline]*$B$3)","v":0},0,{"$f":"SUMPRODUCT(((T_DataComboFile[Implementation programme]=$G$3)*(T_DataComboFile[Econ3]=$G184))*T_DataComboFile[2022/23 Baseline]*$B$3)","v":0},{"$f":"SUMPRODUCT(((T_DataComboFile[Implementation programme]=$G$3)*(T_DataComboFile[Econ3]=$G184))*T_DataComboFile[2022/23 Revised baseline]*$B$3)","v":0},0,{"$f":"SUMPRODUCT(((T_DataComboFile[Implementation programme]=$G$3)*(T_DataComboFile[Econ3]=$G184))*T_DataComboFile[2023/24 Baseline]*$B$3)","v":0},{"$f":"SUMPRODUCT(((T_DataComboFile[Implementation programme]=$G$3)*(T_DataComboFile[Econ3]=$G184))*T_DataComboFile[2023/24 Revised baseline]*$B$3)","v":0},0]
[0,5,null,null,null,null,"Departmental agencies and accounts",{"$f":"SUMPRODUCT(((T_DataComboFile[Implementation programme]=$G$3)*(T_DataComboFile[Econ3]=$G185))*T_DataComboFile[2021/22 Baseline]*$B$3)","v":0},{"$f":"SUMPRODUCT(((T_DataComboFile[Implementation programme]=$G$3)*(T_DataComboFile[Econ3]=$G185))*T_DataComboFile[2021/22 Revised baseline]*$B$3)","v":0},0,{"$f":"SUMPRODUCT(((T_DataComboFile[Implementation programme]=$G$3)*(T_DataComboFile[Econ3]=$G185))*T_DataComboFile[2022/23 Baseline]*$B$3)","v":0},{"$f":"SUMPRODUCT(((T_DataComboFile[Implementation programme]=$G$3)*(T_DataComboFile[Econ3]=$G185))*T_DataComboFile[2022/23 Revised baseline]*$B$3)","v":0},0,{"$f":"SUMPRODUCT(((T_DataComboFile[Implementation programme]=$G$3)*(T_DataComboFile[Econ3]=$G185))*T_DataComboFile[2023/24 Baseline]*$B$3)","v":0},{"$f":"SUMPRODUCT(((T_DataComboFile[Implementation programme]=$G$3)*(T_DataComboFile[Econ3]=$G185))*T_DataComboFile[2023/24 Revised baseline]*$B$3)","v":0},0]
[0,50,null,null,null,null,"of which:"]
[0,52,null,null,null,null,null,null,null,{"$f":"I187-H187","v":0},null,null,{"$f":"L187-K187","v":0},null,null,{"$f":"O187-N187","v":0}]
[0,52,null,null,null,null,null,null,null,0,null,null,0,null,null,0]
[0,52,null,null,null,null,null,null,null,0,null,null,0,null,null,0]
[0,52,null,null,null,null,null,null,null,0,null,null,0,null,null,0]
[0,52,null,null,null,null,null,null,null,0,null,null,0,null,null,0]
[0,52,null,null,null,null,null,null,null,0,null,null,0,null,null,0]
[0,52,null,null,null,null,null,null,null,0,null,null,0,null,null,0]
[0,52,null,null,null,null,null,null,null,0,null,null,0,null,null,0]
[0,52,null,null,null,null,null,null,null,0,null,null,0,null,null,0]
[0,52,null,null,null,null,null,null,null,0,null,null,0,null,null,0]
[0,5,null,null,null,null,"Higher education institutions",{"$f":"SUMPRODUCT(((T_DataComboFile[Implementation programme]=$G$3)*(T_DataComboFile[Econ3]=$G197))*T_DataComboFile[2021/22 Baseline]*$B$3)","v":0},{"$f":"SUMPRODUCT(((T_DataComboFile[Implementation programme]=$G$3)*(T_DataComboFile[Econ3]=$G197))*T_DataComboFile[2021/22 Revised baseline]*$B$3)","v":0},0,{"$f":"SUMPRODUCT(((T_DataComboFile[Implementation programme]=$G$3)*(T_DataComboFile[Econ3]=$G197))*T_DataComboFile[2022/23 Baseline]*$B$3)","v":0},{"$f":"SUMPRODUCT(((T_DataComboFile[Implementation programme]=$G$3)*(T_DataComboFile[Econ3]=$G197))*T_DataComboFile[2022/23 Revised baseline]*$B$3)","v":0},0,{"$f":"SUMPRODUCT(((T_DataComboFile[Implementation programme]=$G$3)*(T_DataComboFile[Econ3]=$G197))*T_DataComboFile[2023/24 Baseline]*$B$3)","v":0},{"$f":"SUMPRODUCT(((T_DataComboFile[Implementation programme]=$G$3)*(T_DataComboFile[Econ3]=$G197))*T_DataComboFile[2023/24 Revised baseline]*$B$3)","v":0},0]
[0,5,null,null,null,null,"Foreign governments and international organisations",{"$f":"SUMPRODUCT(((T_DataComboFile[Implementation programme]=$G$3)*(T_DataComboFile[Econ3]=$G198))*T_DataComboFile[2021/22 Baseline]*$B$3)","v":0},{"$f":"SUMPRODUCT(((T_DataComboFile[Implementation programme]=$G$3)*(T_DataComboFile[Econ3]=$G198))*T_DataComboFile[2021/22 Revised baseline]*$B$3)","v":0},0,{"$f":"SUMPRODUCT(((T_DataComboFile[Implementation programme]=$G$3)*(T_DataComboFile[Econ3]=$G198))*T_DataComboFile[2022/23 Baseline]*$B$3)","v":0},{"$f":"SUMPRODUCT(((T_DataComboFile[Implementation programme]=$G$3)*(T_DataComboFile[Econ3]=$G198))*T_DataComboFile[2022/23 Revised baseline]*$B$3)","v":0},0,{"$f":"SUMPRODUCT(((T_DataComboFile[Implementation programme]=$G$3)*(T_DataComboFile[Econ3]=$G198))*T_DataComboFile[2023/24 Baseline]*$B$3)","v":0},{"$f":"SUMPRODUCT(((T_DataComboFile[Implementation programme]=$G$3)*(T_DataComboFile[Econ3]=$G198))*T_DataComboFile[2023/24 Revised baseline]*$B$3)","v":0},0]
[0,5,null,null,null,null,"Public corporations and private enterprises",{"$f":"SUMPRODUCT(((T_DataComboFile[Implementation programme]=$G$3)*(T_DataComboFile[Econ3]=$G199))*T_DataComboFile[2021/22 Baseline]*$B$3)","v":0},{"$f":"SUMPRODUCT(((T_DataComboFile[Implementation programme]=$G$3)*(T_DataComboFile[Econ3]=$G199))*T_DataComboFile[2021/22 Revised baseline]*$B$3)","v":0},0,{"$f":"SUMPRODUCT(((T_DataComboFile[Implementation programme]=$G$3)*(T_DataComboFile[Econ3]=$G199))*T_DataComboFile[2022/23 Baseline]*$B$3)","v":0},{"$f":"SUMPRODUCT(((T_DataComboFile[Implementation programme]=$G$3)*(T_DataComboFile[Econ3]=$G199))*T_DataComboFile[2022/23 Revised baseline]*$B$3)","v":0},0,{"$f":"SUMPRODUCT(((T_DataComboFile[Implementation programme]=$G$3)*(T_DataComboFile[Econ3]=$G199))*T_DataComboFile[2023/24 Baseline]*$B$3)","v":0},{"$f":"SUMPRODUCT(((T_DataComboFile[Implementation programme]=$G$3)*(T_DataComboFile[Econ3]=$G199))*T_DataComboFile[2023/24 Revised baseline]*$B$3)","v":0},0]
[0,50,null,null,null,null,"of which:"]
[0,53,null,null,null,null,null,null,null,{"$f":"I201-H201","v":0},null,null,{"$f":"L201-K201","v":0},null,null,{"$f":"O201-N201","v":0}]
[0,53,null,null,null,null,null,null,null,0,null,null,0,null,null,0]
[0,53,null,null,null,null,null,null,null,0,null,null,0,null,null,0]
[0,53,null,null,null,null,null,null,null,0,null,null,0,null,null,0]
[0,53,null,null,null,null,null,null,null,0,null,null,0,null,null,0]
[0,5,null,null,null,null,"Non-profit institutions",{"$f":"SUMPRODUCT(((T_DataComboFile[Implementation programme]=$G$3)*(T_DataComboFile[Econ3]=$G206))*T_DataComboFile[2021/22 Baseline]*$B$3)","v":0},{"$f":"SUMPRODUCT(((T_DataComboFile[Implementation programme]=$G$3)*(T_DataComboFile[Econ3]=$G206))*T_DataComboFile[2021/22 Revised baseline]*$B$3)","v":0},0,{"$f":"SUMPRODUCT(((T_DataComboFile[Implementation programme]=$G$3)*(T_DataComboFile[Econ3]=$G206))*T_DataComboFile[2022/23 Baseline]*$B$3)","v":0},{"$f":"SUMPRODUCT(((T_DataComboFile[Implementation programme]=$G$3)*(T_DataComboFile[Econ3]=$G206))*T_DataComboFile[2022/23 Revised baseline]*$B$3)","v":0},0,{"$f":"SUMPRODUCT(((T_DataComboFile[Implementation programme]=$G$3)*(T_DataComboFile[Econ3]=$G206))*T_DataComboFile[2023/24 Baseline]*$B$3)","v":0},{"$f":"SUMPRODUCT(((T_DataComboFile[Implementation programme]=$G$3)*(T_DataComboFile[Econ3]=$G206))*T_DataComboFile[2023/24 Revised baseline]*$B$3)","v":0},0]
[0,5,null,null,null,null,"Households",{"$f":"SUMPRODUCT(((T_DataComboFile[Implementation programme]=$G$3)*(T_DataComboFile[Econ3]=$G207))*T_DataComboFile[2021/22 Baseline]*$B$3)","v":0},{"$f":"SUMPRODUCT(((T_DataComboFile[Implementation programme]=$G$3)*(T_DataComboFile[Econ3]=$G207))*T_DataComboFile[2021/22 Revised baseline]*$B$3)","v":0},0,{"$f":"SUMPRODUCT(((T_DataComboFile[Implementation programme]=$G$3)*(T_DataComboFile[Econ3]=$G207))*T_DataComboFile[2022/23 Baseline]*$B$3)","v":0},{"$f":"SUMPRODUCT(((T_DataComboFile[Implementation programme]=$G$3)*(T_DataComboFile[Econ3]=$G207))*T_DataComboFile[2022/23 Revised baseline]*$B$3)","v":0},0,{"$f":"SUMPRODUCT(((T_DataComboFile[Implementation programme]=$G$3)*(T_DataComboFile[Econ3]=$G207))*T_DataComboFile[2023/24 Baseline]*$B$3)","v":0},{"$f":"SUMPRODUCT(((T_DataComboFile[Implementation programme]=$G$3)*(T_DataComboFile[Econ3]=$G207))*T_DataComboFile[2023/24 Revised baseline]*$B$3)","v":0},0]
[0,5,null,null,null,null,"Payments for capital assets",{"$f":"SUM(H209:H215)","v":0},0,0,0,0,0,0,{"$f":"SUM(O209:O215)","v":0},0]
[0,5,null,null,null,null,"Buildings and other fixed structures",{"$f":"SUMPRODUCT(((T_DataComboFile[Implementation programme]=$G$3)*(T_DataComboFile[Econ3]=$G209))*T_DataComboFile[2021/22 Baseline]*$B$3)","v":0},{"$f":"SUMPRODUCT(((T_DataComboFile[Implementation programme]=$G$3)*(T_DataComboFile[Econ3]=$G209))*T_DataComboFile[2021/22 Revised baseline]*$B$3)","v":0},0,{"$f":"SUMPRODUCT(((T_DataComboFile[Implementation programme]=$G$3)*(T_DataComboFile[Econ3]=$G209))*T_DataComboFile[2022/23 Baseline]*$B$3)","v":0},{"$f":"SUMPRODUCT(((T_DataComboFile[Implementation programme]=$G$3)*(T_DataComboFile[Econ3]=$G209))*T_DataComboFile[2022/23 Revised baseline]*$B$3)","v":0},0,{"$f":"SUMPRODUCT(((T_DataComboFile[Implementation programme]=$G$3)*(T_DataComboFile[Econ3]=$G209))*T_DataComboFile[2023/24 Baseline]*$B$3)","v":0},{"$f":"SUMPRODUCT(((T_DataComboFile[Implementation programme]=$G$3)*(T_DataComboFile[Econ3]=$G209))*T_DataComboFile[2023/24 Revised baseline]*$B$3)","v":0},0]
[0,5,null,null,null,null,"Machinery and equipment",{"$f":"SUMPRODUCT(((T_DataComboFile[Implementation programme]=$G$3)*(T_DataComboFile[Econ3]=$G210))*T_DataComboFile[2021/22 Baseline]*$B$3)","v":0},{"$f":"SUMPRODUCT(((T_DataComboFile[Implementation programme]=$G$3)*(T_DataComboFile[Econ3]=$G210))*T_DataComboFile[2021/22 Revised baseline]*$B$3)","v":0},0,{"$f":"SUMPRODUCT(((T_DataComboFile[Implementation programme]=$G$3)*(T_DataComboFile[Econ3]=$G210))*T_DataComboFile[2022/23 Baseline]*$B$3)","v":0},{"$f":"SUMPRODUCT(((T_DataComboFile[Implementation programme]=$G$3)*(T_DataComboFile[Econ3]=$G210))*T_DataComboFile[2022/23 Revised baseline]*$B$3)","v":0},0,{"$f":"SUMPRODUCT(((T_DataComboFile[Implementation programme]=$G$3)*(T_DataComboFile[Econ3]=$G210))*T_DataComboFile[2023/24 Baseline]*$B$3)","v":0},{"$f":"SUMPRODUCT(((T_DataComboFile[Implementation programme]=$G$3)*(T_DataComboFile[Econ3]=$G210))*T_DataComboFile[2023/24 Revised baseline]*$B$3)","v":0},0]
[0,5,null,null,null,null,"Heritage assets",{"$f":"SUMPRODUCT(((T_DataComboFile[Implementation programme]=$G$3)*(T_DataComboFile[Econ3]=$G211))*T_DataComboFile[2021/22 Baseline]*$B$3)","v":0},{"$f":"SUMPRODUCT(((T_DataComboFile[Implementation programme]=$G$3)*(T_DataComboFile[Econ3]=$G211))*T_DataComboFile[2021/22 Revised baseline]*$B$3)","v":0},0,{"$f":"SUMPRODUCT(((T_DataComboFile[Implementation programme]=$G$3)*(T_DataComboFile[Econ3]=$G211))*T_DataComboFile[2022/23 Baseline]*$B$3)","v":0},{"$f":"SUMPRODUCT(((T_DataComboFile[Implementation programme]=$G$3)*(T_DataComboFile[Econ3]=$G211))*T_DataComboFile[2022/23 Revised baseline]*$B$3)","v":0},0,{"$f":"SUMPRODUCT(((T_DataComboFile[Implementation programme]=$G$3)*(T_DataComboFile[Econ3]=$G211))*T_DataComboFile[2023/24 Baseline]*$B$3)","v":0},{"$f":"SUMPRODUCT(((T_DataComboFile[Implementation programme]=$G$3)*(T_DataComboFile[Econ3]=$G211))*T_DataComboFile[2023/24 Revised baseline]*$B$3)","v":0},0]
[0,5,null,null,null,null,"Specialised military assets",{"$f":"SUMPRODUCT(((T_DataComboFile[Implementation programme]=$G$3)*(T_DataComboFile[Econ3]=$G212))*T_DataComboFile[2021/22 Baseline]*$B$3)","v":0},{"$f":"SUMPRODUCT(((T_DataComboFile[Implementation programme]=$G$3)*(T_DataComboFile[Econ3]=$G212))*T_DataComboFile[2021/22 Revised baseline]*$B$3)","v":0},0,{"$f":"SUMPRODUCT(((T_DataComboFile[Implementation programme]=$G$3)*(T_DataComboFile[Econ3]=$G212))*T_DataComboFile[2022/23 Baseline]*$B$3)","v":0},{"$f":"SUMPRODUCT(((T_DataComboFile[Implementation programme]=$G$3)*(T_DataComboFile[Econ3]=$G212))*T_DataComboFile[2022/23 Revised baseline]*$B$3)","v":0},0,{"$f":"SUMPRODUCT(((T_DataComboFile[Implementation programme]=$G$3)*(T_DataComboFile[Econ3]=$G212))*T_DataComboFile[2023/24 Baseline]*$B$3)","v":0},{"$f":"SUMPRODUCT(((T_DataComboFile[Implementation programme]=$G$3)*(T_DataComboFile[Econ3]=$G212))*T_DataComboFile[2023/24 Revised baseline]*$B$3)","v":0},0]
[0,5,null,null,null,null,"Biological assets",{"$f":"SUMPRODUCT(((T_DataComboFile[Implementation programme]=$G$3)*(T_DataComboFile[Econ3]=$G213))*T_DataComboFile[2021/22 Baseline]*$B$3)","v":0},{"$f":"SUMPRODUCT(((T_DataComboFile[Implementation programme]=$G$3)*(T_DataComboFile[Econ3]=$G213))*T_DataComboFile[2021/22 Revised baseline]*$B$3)","v":0},0,{"$f":"SUMPRODUCT(((T_DataComboFile[Implementation programme]=$G$3)*(T_DataComboFile[Econ3]=$G213))*T_DataComboFile[2022/23 Baseline]*$B$3)","v":0},{"$f":"SUMPRODUCT(((T_DataComboFile[Implementation programme]=$G$3)*(T_DataComboFile[Econ3]=$G213))*T_DataComboFile[2022/23 Revised baseline]*$B$3)","v":0},0,{"$f":"SUMPRODUCT(((T_DataComboFile[Implementation programme]=$G$3)*(T_DataComboFile[Econ3]=$G213))*T_DataComboFile[2023/24 Baseline]*$B$3)","v":0},{"$f":"SUMPRODUCT(((T_DataComboFile[Implementation programme]=$G$3)*(T_DataComboFile[Econ3]=$G213))*T_DataComboFile[2023/24 Revised baseline]*$B$3)","v":0},0]
[0,5,null,null,null,null,"Land and sub-soil assets",{"$f":"SUMPRODUCT(((T_DataComboFile[Implementation programme]=$G$3)*(T_DataComboFile[Econ3]=$G214))*T_DataComboFile[2021/22 Baseline]*$B$3)","v":0},{"$f":"SUMPRODUCT(((T_DataComboFile[Implementation programme]=$G$3)*(T_DataComboFile[Econ3]=$G214))*T_DataComboFile[2021/22 Revised baseline]*$B$3)","v":0},0,{"$f":"SUMPRODUCT(((T_DataComboFile[Implementation programme]=$G$3)*(T_DataComboFile[Econ3]=$G214))*T_DataComboFile[2022/23 Baseline]*$B$3)","v":0},{"$f":"SUMPRODUCT(((T_DataComboFile[Implementation programme]=$G$3)*(T_DataComboFile[Econ3]=$G214))*T_DataComboFile[2022/23 Revised baseline]*$B$3)","v":0},0,{"$f":"SUMPRODUCT(((T_DataComboFile[Implementation programme]=$G$3)*(T_DataComboFile[Econ3]=$G214))*T_DataComboFile[2023/24 Baseline]*$B$3)","v":0},{"$f":"SUMPRODUCT(((T_DataComboFile[Implementation programme]=$G$3)*(T_DataComboFile[Econ3]=$G214))*T_DataComboFile[2023/24 Revised baseline]*$B$3)","v":0},0]
[0,5,null,null,null,null,"Software and other intangible assets",{"$f":"SUMPRODUCT(((T_DataComboFile[Implementation programme]=$G$3)*(T_DataComboFile[Econ3]=$G215))*T_DataComboFile[2021/22 Baseline]*$B$3)","v":0},{"$f":"SUMPRODUCT(((T_DataComboFile[Implementation programme]=$G$3)*(T_DataComboFile[Econ3]=$G215))*T_DataComboFile[2021/22 Revised baseline]*$B$3)","v":0},0,{"$f":"SUMPRODUCT(((T_DataComboFile[Implementation programme]=$G$3)*(T_DataComboFile[Econ3]=$G215))*T_DataComboFile[2022/23 Baseline]*$B$3)","v":0},{"$f":"SUMPRODUCT(((T_DataComboFile[Implementation programme]=$G$3)*(T_DataComboFile[Econ3]=$G215))*T_DataComboFile[2022/23 Revised baseline]*$B$3)","v":0},0,{"$f":"SUMPRODUCT(((T_DataComboFile[Implementation programme]=$G$3)*(T_DataComboFile[Econ3]=$G215))*T_DataComboFile[2023/24 Baseline]*$B$3)","v":0},{"$f":"SUMPRODUCT(((T_DataComboFile[Implementation programme]=$G$3)*(T_DataComboFile[Econ3]=$G215))*T_DataComboFile[2023/24 Revised baseline]*$B$3)","v":0},0]
[0,5,null,null,null,null,"Payments for financial assets",{"$f":"SUMPRODUCT(((T_DataComboFile[Implementation programme]=$G$3)*(T_DataComboFile[Econ3]=$G216))*T_DataComboFile[2021/22 Baseline]*$B$3)","v":0},{"$f":"SUMPRODUCT(((T_DataComboFile[Implementation programme]=$G$3)*(T_DataComboFile[Econ3]=$G216))*T_DataComboFile[2021/22 Revised baseline]*$B$3)","v":0},0,{"$f":"SUMPRODUCT(((T_DataComboFile[Implementation programme]=$G$3)*(T_DataComboFile[Econ3]=$G216))*T_DataComboFile[2022/23 Baseline]*$B$3)","v":0},{"$f":"SUMPRODUCT(((T_DataComboFile[Implementation programme]=$G$3)*(T_DataComboFile[Econ3]=$G216))*T_DataComboFile[2022/23 Revised baseline]*$B$3)","v":0},0,{"$f":"SUMPRODUCT(((T_DataComboFile[Implementation programme]=$G$3)*(T_DataComboFile[Econ3]=$G216))*T_DataComboFile[2023/24 Baseline]*$B$3)","v":0},{"$f":"SUMPRODUCT(((T_DataComboFile[Implementation programme]=$G$3)*(T_DataComboFile[Econ3]=$G216))*T_DataComboFile[2023/24 Revised baseline]*$B$3)","v":0},0]
[0,5,null,null,null,null,"Total",{"$f":"SUM(H173,H183,H208,H216)","v":0},0,0,0,0,0,0,{"$f":"SUM(O173,O183,O208,O216)","v":0},0]
[]
[null,null,null,null,null,null,null,{"$f":"L65-H217","v":0},{"$f":"O65-I217","v":0},null,{"$f":"P65-K217","v":0},{"$f":"S65-L217","v":0},null,{"$f":"T65-N217","v":0},{"$f":"W65-O217","v":0}]

{"sheet":"IP15","index":24,"n_rows":219,"n_cols":23,"rows_kept":219,"cut":false,"hidden":false,"merged":[[70,6,70,17],[73,6,87,17],[94,16,94,20],[94,21,94,23],[95,16,95,20],[95,21,95,23],[99,16,99,20],[99,21,99,23],[100,16,100,20],[100,21,100,23],[101,16,101,20],[101,21,101,23],[96,16,96,20],[96,21,96,23],[97,16,97,20],[97,21,97,23],[98,16,98,20],[98,21,98,23],[105,16,105,20],[105,21,105,23],[106,16,106,20],[106,21,106,23],[107,16,107,20],[107,21,107,23],[102,16,102,20],[102,21,102,23],[103,16,103,20],[103,21,103,23],[104,16,104,20],[104,21,104,23],[117,16,117,20],[118,16,118,20],[119,16,119,20],[120,16,120,20],[121,16,121,20],[122,16,122,20],[108,16,108,20],[108,21,108,23],[109,16,109,20],[109,21,109,23],[110,16,110,20],[110,21,110,23],[129,16,129,20],[130,16,130,20],[131,16,131,20],[132,16,132,20],[133,16,133,20],[141,16,141,20],[123,16,123,20],[124,16,124,20],[125,16,125,20],[126,16,126,20],[127,16,127,20],[128,16,128,20],[174,16,174,20],[175,16,175,20],[176,16,176,20],[177,16,177,20],[178,16,178,20],[179,16,179,20],[142,16,142,20],[143,16,162,20],[170,16,170,20],[171,16,171,20],[172,16,172,20],[173,16,173,20],[186,16,186,20],[187,16,187,20],[188,16,188,20],[189,16,189,20],[190,16,190,20],[191,16,191,20],[180,16,180,20],[181,16,181,20],[182,16,182,20],[183,16,183,20],[184,16,184,20],[185,16,185,20],[198,16,198,20],[199,16,199,20],[200,16,200,20],[201,16,201,20],[202,16,202,20],[203,16,203,20],[192,16,192,20],[193,16,193,20],[194,16,194,20],[195,16,195,20],[196,16,196,20],[197,16,197,20],[210,16,210,20],[211,16,211,20],[212,16,212,20],[213,16,213,20],[214,16,214,20],[215,16,215,20],[204,16,204,20],[205,16,205,20],[206,16,206,20],[207,16,207,20],[208,16,208,20],[209,16,209,20]]}
[]
[null,null,null,null,null,null,"Implementation programme:"]
[null,{"$f":"IF(G3=\"\",0,1)","v":0},null,null,null,15,null,"… select from dropdown list"]
[null,null,null,null,null,null,null,null,null,null,null,null,"Growth"]
[null,null,null,null,null,null,"Quick view","2020/21","2021/22","2022/23","2023/24","Trend","2021/22","2022/23","2023/24","Ave Ann",null,"2020/21","2021/22","2022/23","2023/24"]
[null,null,null,null,null,null,"Compensation of employees",{"$f":"SUMPRODUCT(($G$32:$G$65=$G6)*($K$32:$K$65))","v":0},{"$f":"SUMPRODUCT(($G$32:$G$65=$G6)*($O$32:$O$65))","v":0},{"$f":"SUMPRODUCT(($G$32:$G$65=$G6)*($S$32:$S$65))","v":0},{"$f":"SUMPRODUCT(($G$32:$G$65=$G6)*($W$32:$W$65))","v":0},null,{"$f":"IFERROR(I6/H6-1,0)","v":0},0,0,{"$f":"IFERROR(((K6/H6)^(1/3)-1),0)","v":0}]
[null,null,null,null,null,null,"Goods and services",{"$f":"SUMPRODUCT(($G$32:$G$65=$G7)*($K$32:$K$65))","v":0},{"$f":"SUMPRODUCT(($G$32:$G$65=$G7)*($O$32:$O$65))","v":0},{"$f":"SUMPRODUCT(($G$32:$G$65=$G7)*($S$32:$S$65))","v":0},{"$f":"SUMPRODUCT(($G$32:$G$65=$G7)*($W$32:$W$65))","v":0},null,0,0,0,0]
[null,null,null,null,null,null,"Transfers and subsidies",{"$f":"SUMPRODUCT(($G$32:$G$65=$G8)*($K$32:$K$65))","v":0},{"$f":"SUMPRODUCT(($G$32:$G$65=$G8)*($O$32:$O$65))","v":0},{"$f":"SUMPRODUCT(($G$32:$G$65=$G8)*($S$32:$S$65))","v":0},{"$f":"SUMPRODUCT(($G$32:$G$65=$G8)*($W$32:$W$65))","v":0},null,0,0,0,0]
[null,null,null,null,null,null,"Payments for capital assets",{"$f":"SUMPRODUCT(($G$32:$G$65=$G9)*($K$32:$K$65))","v":0},{"$f":"SUMPRODUCT(($G$32:$G$65=$G9)*($O$32:$O$65))","v":0},{"$f":"SUMPRODUCT(($G$32:$G$65=$G9)*($S$32:$S$65))","v":0},{"$f":"SUMPRODUCT(($G$32:$G$65=$G9)*($W$32:$W$65))","v":0},null,0,0,0,0]
[null,null,null,null,null,null,"Total",{"$f":"SUMPRODUCT(($G$32:$G$65=$G10)*($K$32:$K$65))","v":0},{"$f":"SUMPRODUCT(($G$32:$G$65=$G10)*($O$32:$O$65))","v":0},{"$f":"SUMPRODUCT(($G$32:$G$65=$G10)*($S$32:$S$65))","v":0},{"$f":"SUMPRODUCT(($G$32:$G$65=$G10)*($W$32:$W$65))","v":0},null,0,0,0,0]
[null,null,null,null,null,null,"Composition of spending (% of Total)"]
[null,null,null,null,null,null,"Compensation of employees",{"$f":"IFERROR(H6/H$10,\"\")","v":""},"","","",null,null,null,null,null,null,{"$f":"IF(H12>0.0595,H12,\"\")","v":""},"","",""]
[null,null,null,null,null,null,"Goods and services","","","","",null,null,null,null,null,null,"","","",""]
[null,null,null,null,null,null,"Transfers and subsidies","","","","",null,null,null,null,null,null,"","","",""]
[null,null,null,null,null,null,"Payments for capital assets","","","","",null,null,null,null,null,null,"","","",""]
[]
[null,null,null,null,null,null,"Division of Revenue","2020/21","2021/22","2022/23","2023/24","Trend","2021/22","2022/23","2023/24","Ave Ann"]
[{"$f":"$G$3","v":0},"NAT",null,null,null,null,"National",{"$f":"SUMPRODUCT(((T_DataComboFile[Implementation programme]=$G$3)*(T_DataComboFile[DOR]=$B18))*T_DataComboFile[2020/21 Revised])","v":2331086},{"$f":"SUMPRODUCT(((T_DataComboFile[Implementation programme]=$G$3)*(T_DataComboFile[DOR]=$B18))*T_DataComboFile[2021/22 Revised baseline])","v":2583809},{"$f":"SUMPRODUCT(((T_DataComboFile[Implementation programme]=$G$3)*(T_DataComboFile[DOR]=$B18))*T_DataComboFile[2022/23 Revised baseline])","v":2617960},{"$f":"SUMPRODUCT(((T_DataComboFile[Implementation programme]=$G$3)*(T_DataComboFile[DOR]=$B18))*T_DataComboFile[2023/24 Revised baseline])","v":2733345},null,{"$f":"IFERROR(I18/H18-1,0)","v":0.10841427557799244},{"$f":"IFERROR(J18/I18-1,0)","v":1.3217308245307535E-2},{"$f":"IFERROR(K18/J18-1,0)","v":4.4074393802808309E-2},{"$f":"IFERROR(((K18/H18)^(1/3)-1),0)","v":5.449708876349435E-2}]
[0,null,null,null,null,null,"Provincial",{"$f":"SUM(H20:H21)","v":0},0,0,0,null,0,0,0,0]
[0,"PES",null,null,null,null,"Provincial equitable share",{"$f":"SUMPRODUCT(((T_DataComboFile[Implementation programme]=$G$3)*(T_DataComboFile[DOR]=$B20))*T_DataComboFile[2020/21 Revised])","v":0},{"$f":"SUMPRODUCT(((T_DataComboFile[Implementation programme]=$G$3)*(T_DataComboFile[DOR]=$B20))*T_DataComboFile[2021/22 Revised baseline])","v":0},{"$f":"SUMPRODUCT(((T_DataComboFile[Implementation programme]=$G$3)*(T_DataComboFile[DOR]=$B20))*T_DataComboFile[2022/23 Revised baseline])","v":0},{"$f":"SUMPRODUCT(((T_DataComboFile[Implementation programme]=$G$3)*(T_DataComboFile[DOR]=$B20))*T_DataComboFile[2023/24 Revised baseline])","v":0},null,{"$f":"IFERROR(I20/H20-1,0)","v":0},0,0,{"$f":"IFERROR(((K20/H20)^(1/3)-1),0)","v":0}]
[0,"PCG",null,null,null,null,"Provincial conditional grants",{"$f":"SUMPRODUCT(((T_DataComboFile[Implementation programme]=$G$3)*(T_DataComboFile[DOR]=$B21))*T_DataComboFile[2020/21 Revised])","v":0},{"$f":"SUMPRODUCT(((T_DataComboFile[Implementation programme]=$G$3)*(T_DataComboFile[DOR]=$B21))*T_DataComboFile[2021/22 Revised baseline])","v":0},{"$f":"SUMPRODUCT(((T_DataComboFile[Implementation programme]=$G$3)*(T_DataComboFile[DOR]=$B21))*T_DataComboFile[2022/23 Revised baseline])","v":0},{"$f":"SUMPRODUCT(((T_DataComboFile[Implementation programme]=$G$3)*(T_DataComboFile[DOR]=$B21))*T_DataComboFile[2023/24 Revised baseline])","v":0},null,0,0,0,0]
[0,null,null,null,null,null,"Local government",{"$f":"SUM(H23:H25)","v":0},0,0,0,null,{"$f":"IFERROR(I22/H22-1,0)","v":0},{"$f":"IFERROR(J22/I22-1,0)","v":0},{"$f":"IFERROR(K22/J22-1,0)","v":0},{"$f":"IFERROR(((K22/H22)^(1/3)-1),0)","v":0}]
[0,"LES",null,null,null,null,"Local equitable share",{"$f":"SUMPRODUCT(((T_DataComboFile[Implementation programme]=$G$3)*(T_DataComboFile[DOR]=$B23))*T_DataComboFile[2020/21 Revised])","v":0},{"$f":"SUMPRODUCT(((T_DataComboFile[Implementation programme]=$G$3)*(T_DataComboFile[DOR]=$B23))*T_DataComboFile[2021/22 Revised baseline])","v":0},{"$f":"SUMPRODUCT(((T_DataComboFile[Implementation programme]=$G$3)*(T_DataComboFile[DOR]=$B23))*T_DataComboFile[2022/23 Revised baseline])","v":0},{"$f":"SUMPRODUCT(((T_DataComboFile[Implementation programme]=$G$3)*(T_DataComboFile[DOR]=$B23))*T_DataComboFile[2023/24 Revised baseline])","v":0},null,{"$f":"IFERROR(I23/H23-1,0)","v":0},0,0,{"$f":"IFERROR(((K23/H23)^(1/3)-1),0)","v":0}]
[0,"LCG",null,null,null,null,"Local conditional grants",{"$f":"SUMPRODUCT(((T_DataComboFile[Implementation programme]=$G$3)*(T_DataComboFile[DOR]=$B24))*T_DataComboFile[2020/21 Revised])","v":0},{"$f":"SUMPRODUCT(((T_DataComboFile[Implementation programme]=$G$3)*(T_DataComboFile[DOR]=$B24))*T_DataComboFile[2021/22 Revised baseline])","v":0},{"$f":"SUMPRODUCT(((T_DataComboFile[Implementation programme]=$G$3)*(T_DataComboFile[DOR]=$B24))*T_DataComboFile[2022/23 Revised baseline])","v":0},{"$f":"SUMPRODUCT(((T_DataComboFile[Implementation programme]=$G$3)*(T_DataComboFile[DOR]=$B24))*T_DataComboFile[2023/24 Revised baseline])","v":0},null,0,0,0,0]
[0,"GFL",null,null,null,null,"General fuel levy ",{"$f":"SUMPRODUCT(((T_DataComboFile[Implementation programme]=$G$3)*(T_DataComboFile[DOR]=$B25))*T_DataComboFile[2020/21 Revised])","v":0},{"$f":"SUMPRODUCT(((T_DataComboFile[Implementation programme]=$G$3)*(T_DataComboFile[DOR]=$B25))*T_DataComboFile[2021/22 Revised baseline])","v":0},{"$f":"SUMPRODUCT(((T_DataComboFile[Implementation programme]=$G$3)*(T_DataComboFile[DOR]=$B25))*T_DataComboFile[2022/23 Revised baseline])","v":0},{"$f":"SUMPRODUCT(((T_DataComboFile[Implementation programme]=$G$3)*(T_DataComboFile[DOR]=$B25))*T_DataComboFile[2023/24 Revised baseline])","v":0},null,0,0,0,0]
[]
[]
[null,null,null,null,null,null,{"$f":"G3","v":0}]
[{"$f":"$G$3","v":0},0,null,null,null,null,null,"2017/18","2018/19","2019/20","2020/21","2021/22",null,null,null,"2022/23",null,null,null,"2023/24"]
[{"$f":"$G$3","v":0},0,null,null,null,null,"Rand thousand","Audited outcome","Audited outcome","Pre-audited outcome","Budget","Baseline","Decrease","Increase","Revised baseline","Baseline","Decrease","Increase","Revised baseline","Baseline","Decrease","Increase","Revised baseline"]
[0,0,null,null,null,null,"Economic classification"]
[0,0,null,null,null,null,"Current payments",{"$f":"SUM(H33:H35)","v":0},0,0,0,0,0,0,0,0,0,0,0,0,0,0,0]
[0,0,null,null,null,null,"Compensation of employees",{"$f":"SUMPRODUCT(((T_DataComboFile[Implementation programme]=$G$3)*(T_DataComboFile[Econ3]=$G33))*T_DataComboFile[2017/18]*$B$3)","v":0},{"$f":"SUMPRODUCT(((T_DataComboFile[Implementation programme]=$G$3)*(T_DataComboFile[Econ3]=$G33))*T_DataComboFile[2018/19]*$B$3)","v":0},{"$f":"SUMPRODUCT(((T_DataComboFile[Implementation programme]=$G$3)*(T_DataComboFile[Econ3]=$G33))*T_DataComboFile[2019/20 Revised estimate]*$B$3)","v":0},{"$f":"SUMPRODUCT(((T_DataComboFile[Implementation programme]=$G$3)*(T_DataComboFile[Econ3]=$G33))*T_DataComboFile[2020/21 Revised]*$B$3)","v":0},{"$f":"SUMPRODUCT(((T_DataComboFile[Implementation programme]=$G$3)*(T_DataComboFile[Econ3]=$G33))*T_DataComboFile[2021/22 Baseline]*$B$3)","v":0},{"$f":"SUMPRODUCT(((T_DataComboFile[Implementation programme]=$G$3)*(T_DataComboFile[Econ3]=$G33))*T_DataComboFile[2021/22 Reduction]*$B$3)","v":0},{"$f":"SUMPRODUCT(((T_DataComboFile[Implementation programme]=$G$3)*(T_DataComboFile[Econ3]=$G33))*T_DataComboFile[2021/22 Increase]*$B$3)","v":0},{"$f":"L33+M33+N33","v":0},{"$f":"SUMPRODUCT(((T_DataComboFile[Implementation programme]=$G$3)*(T_DataComboFile[Econ3]=$G33))*T_DataComboFile[2022/23 Baseline]*$B$3)","v":0},{"$f":"SUMPRODUCT(((T_DataComboFile[Implementation programme]=$G$3)*(T_DataComboFile[Econ3]=$G33))*T_DataComboFile[2022/23 Reduction]*$B$3)","v":0},{"$f":"SUMPRODUCT(((T_DataComboFile[Implementation programme]=$G$3)*(T_DataComboFile[Econ3]=$G33))*T_DataComboFile[2022/23 Increase]*$B$3)","v":0},{"$f":"P33+Q33+R33","v":0},{"$f":"SUMPRODUCT(((T_DataComboFile[Implementation programme]=$G$3)*(T_DataComboFile[Econ3]=$G33))*T_DataComboFile[2023/24 Baseline]*$B$3)","v":0},{"$f":"SUMPRODUCT(((T_DataComboFile[Implementation programme]=$G$3)*(T_DataComboFile[Econ3]=$G33))*T_DataComboFile[2023/24 Reduction]*$B$3)","v":0},{"$f":"SUMPRODUCT(((T_DataComboFile[Implementation programme]=$G$3)*(T_DataComboFile[Econ3]=$G33))*T_DataComboFile[2023/24 Increase]*$B$3)","v":0},{"$f":"T33+U33+V33","v":0}]
[0,0,null,null,null,null,"Goods and services",{"$f":"SUMPRODUCT(((T_DataComboFile[Implementation programme]=$G$3)*(T_DataComboFile[Econ3]=$G34))*T_DataComboFile[2017/18]*$B$3)","v":0},{"$f":"SUMPRODUCT(((T_DataComboFile[Implementation programme]=$G$3)*(T_DataComboFile[Econ3]=$G34))*T_DataComboFile[2018/19]*$B$3)","v":0},{"$f":"SUMPRODUCT(((T_DataComboFile[Implementation programme]=$G$3)*(T_DataComboFile[Econ3]=$G34))*T_DataComboFile[2019/20 Revised estimate]*$B$3)","v":0},{"$f":"SUMPRODUCT(((T_DataComboFile[Implementation programme]=$G$3)*(T_DataComboFile[Econ3]=$G34))*T_DataComboFile[2020/21 Revised]*$B$3)","v":0},{"$f":"SUMPRODUCT(((T_DataComboFile[Implementation programme]=$G$3)*(T_DataComboFile[Econ3]=$G34))*T_DataComboFile[2021/22 Baseline]*$B$3)","v":0},{"$f":"SUMPRODUCT(((T_DataComboFile[Implementation programme]=$G$3)*(T_DataComboFile[Econ3]=$G34))*T_DataComboFile[2021/22 Reduction]*$B$3)","v":0},{"$f":"SUMPRODUCT(((T_DataComboFile[Implementation programme]=$G$3)*(T_DataComboFile[Econ3]=$G34))*T_DataComboFile[2021/22 Increase]*$B$3)","v":0},0,{"$f":"SUMPRODUCT(((T_DataComboFile[Implementation programme]=$G$3)*(T_DataComboFile[Econ3]=$G34))*T_DataComboFile[2022/23 Baseline]*$B$3)","v":0},{"$f":"SUMPRODUCT(((T_DataComboFile[Implementation programme]=$G$3)*(T_DataComboFile[Econ3]=$G34))*T_DataComboFile[2022/23 Reduction]*$B$3)","v":0},{"$f":"SUMPRODUCT(((T_DataComboFile[Implementation programme]=$G$3)*(T_DataComboFile[Econ3]=$G34))*T_DataComboFile[2022/23 Increase]*$B$3)","v":0},0,{"$f":"SUMPRODUCT(((T_DataComboFile[Implementation programme]=$G$3)*(T_DataComboFile[Econ3]=$G34))*T_DataComboFile[2023/24 Baseline]*$B$3)","v":0},{"$f":"SUMPRODUCT(((T_DataComboFile[Implementation programme]=$G$3)*(T_DataComboFile[Econ3]=$G34))*T_DataComboFile[2023/24 Reduction]*$B$3)","v":0},{"$f":"SUMPRODUCT(((T_DataComboFile[Implementation programme]=$G$3)*(T_DataComboFile[Econ3]=$G34))*T_DataComboFile[2023/24 Increase]*$B$3)","v":0},0]
[0,0,null,null,null,null,"Interest and rent on land",{"$f":"SUMPRODUCT(((T_DataComboFile[Implementation programme]=$G$3)*(T_DataComboFile[Econ3]=$G35))*T_DataComboFile[2017/18]*$B$3)","v":0},{"$f":"SUMPRODUCT(((T_DataComboFile[Implementation programme]=$G$3)*(T_DataComboFile[Econ3]=$G35))*T_DataComboFile[2018/19]*$B$3)","v":0},{"$f":"SUMPRODUCT(((T_DataComboFile[Implementation programme]=$G$3)*(T_DataComboFile[Econ3]=$G35))*T_DataComboFile[2019/20 Revised estimate]*$B$3)","v":0},{"$f":"SUMPRODUCT(((T_DataComboFile[Implementation programme]=$G$3)*(T_DataComboFile[Econ3]=$G35))*T_DataComboFile[2020/21 Revised]*$B$3)","v":0},{"$f":"SUMPRODUCT(((T_DataComboFile[Implementation programme]=$G$3)*(T_DataComboFile[Econ3]=$G35))*T_DataComboFile[2021/22 Baseline]*$B$3)","v":0},{"$f":"SUMPRODUCT(((T_DataComboFile[Implementation programme]=$G$3)*(T_DataComboFile[Econ3]=$G35))*T_DataComboFile[2021/22 Reduction]*$B$3)","v":0},{"$f":"SUMPRODUCT(((T_DataComboFile[Implementation programme]=$G$3)*(T_DataComboFile[Econ3]=$G35))*T_DataComboFile[2021/22 Increase]*$B$3)","v":0},0,{"$f":"SUMPRODUCT(((T_DataComboFile[Implementation programme]=$G$3)*(T_DataComboFile[Econ3]=$G35))*T_DataComboFile[2022/23 Baseline]*$B$3)","v":0},{"$f":"SUMPRODUCT(((T_DataComboFile[Implementation programme]=$G$3)*(T_DataComboFile[Econ3]=$G35))*T_DataComboFile[2022/23 Reduction]*$B$3)","v":0},{"$f":"SUMPRODUCT(((T_DataComboFile[Implementation programme]=$G$3)*(T_DataComboFile[Econ3]=$G35))*T_DataComboFile[2022/23 Increase]*$B$3)","v":0},0,{"$f":"SUMPRODUCT(((T_DataComboFile[Implementation programme]=$G$3)*(T_DataComboFile[Econ3]=$G35))*T_DataComboFile[2023/24 Baseline]*$B$3)","v":0},{"$f":"SUMPRODUCT(((T_DataComboFile[Implementation programme]=$G$3)*(T_DataComboFile[Econ3]=$G35))*T_DataComboFile[2023/24 Reduction]*$B$3)","v":0},{"$f":"SUMPRODUCT(((T_DataComboFile[Implementation programme]=$G$3)*(T_DataComboFile[Econ3]=$G35))*T_DataComboFile[2023/24 Increase]*$B$3)","v":0},0]
[0,0,null,null,null,null,"Transfers and subsidies",{"$f":"SUM(H37,H40,H43:H45,H48:H49)","v":0},0,0,0,0,0,0,0,0,0,0,0,0,0,0,0]
[0,0,null,null,null,null,"Provinces and municipalities",{"$f":"SUM(H38:H39)","v":0},0,0,0,0,0,0,0,0,0,0,0,0,0,0,0]
[0,0,null,null,null,null,"Provinces",{"$f":"SUMPRODUCT(((T_DataComboFile[Implementation programme]=$G$3)*(T_DataComboFile[Econ4]=$G38))*T_DataComboFile[2017/18]*$B$3)","v":0},{"$f":"SUMPRODUCT(((T_DataComboFile[Implementation programme]=$G$3)*(T_DataComboFile[Econ4]=$G38))*T_DataComboFile[2018/19]*$B$3)","v":0},{"$f":"SUMPRODUCT(((T_DataComboFile[Implementation programme]=$G$3)*(T_DataComboFile[Econ4]=$G38))*T_DataComboFile[2019/20 Revised estimate]*$B$3)","v":0},{"$f":"SUMPRODUCT(((T_DataComboFile[Implementation programme]=$G$3)*(T_DataComboFile[Econ4]=$G38))*T_DataComboFile[2020/21 Revised]*$B$3)","v":0},{"$f":"SUMPRODUCT(((T_DataComboFile[Implementation programme]=$G$3)*(T_DataComboFile[Econ4]=$G38))*T_DataComboFile[2021/22 Baseline]*$B$3)","v":0},{"$f":"SUMPRODUCT(((T_DataComboFile[Implementation programme]=$G$3)*(T_DataComboFile[Econ4]=$G38))*T_DataComboFile[2021/22 Reduction]*$B$3)","v":0},{"$f":"SUMPRODUCT(((T_DataComboFile[Implementation programme]=$G$3)*(T_DataComboFile[Econ4]=$G38))*T_DataComboFile[2021/22 Increase]*$B$3)","v":0},{"$f":"L38+M38+N38","v":0},{"$f":"SUMPRODUCT(((T_DataComboFile[Implementation programme]=$G$3)*(T_DataComboFile[Econ4]=$G38))*T_DataComboFile[2022/23 Baseline]*$B$3)","v":0},{"$f":"SUMPRODUCT(((T_DataComboFile[Implementation programme]=$G$3)*(T_DataComboFile[Econ4]=$G38))*T_DataComboFile[2022/23 Reduction]*$B$3)","v":0},{"$f":"SUMPRODUCT(((T_DataComboFile[Implementation programme]=$G$3)*(T_DataComboFile[Econ4]=$G38))*T_DataComboFile[2022/23 Increase]*$B$3)","v":0},{"$f":"P38+Q38+R38","v":0},{"$f":"SUMPRODUCT(((T_DataComboFile[Implementation programme]=$G$3)*(T_DataComboFile[Econ4]=$G38))*T_DataComboFile[2023/24 Baseline]*$B$3)","v":0},{"$f":"SUMPRODUCT(((T_DataComboFile[Implementation programme]=$G$3)*(T_DataComboFile[Econ4]=$G38))*T_DataComboFile[2023/24 Reduction]*$B$3)","v":0},{"$f":"SUMPRODUCT(((T_DataComboFile[Implementation programme]=$G$3)*(T_DataComboFile[Econ4]=$G38))*T_DataComboFile[2023/24 Increase]*$B$3)","v":0},{"$f":"T38+U38+V38","v":0}]
[0,0,null,null,null,null,"Municipalities",{"$f":"SUMPRODUCT(((T_DataComboFile[Implementation programme]=$G$3)*(T_DataComboFile[Econ4]=$G39))*T_DataComboFile[2017/18]*$B$3)","v":0},{"$f":"SUMPRODUCT(((T_DataComboFile[Implementation programme]=$G$3)*(T_DataComboFile[Econ4]=$G39))*T_DataComboFile[2018/19]*$B$3)","v":0},{"$f":"SUMPRODUCT(((T_DataComboFile[Implementation programme]=$G$3)*(T_DataComboFile[Econ4]=$G39))*T_DataComboFile[2019/20 Revised estimate]*$B$3)","v":0},{"$f":"SUMPRODUCT(((T_DataComboFile[Implementation programme]=$G$3)*(T_DataComboFile[Econ4]=$G39))*T_DataComboFile[2020/21 Revised]*$B$3)","v":0},{"$f":"SUMPRODUCT(((T_DataComboFile[Implementation programme]=$G$3)*(T_DataComboFile[Econ4]=$G39))*T_DataComboFile[2021/22 Baseline]*$B$3)","v":0},{"$f":"SUMPRODUCT(((T_DataComboFile[Implementation programme]=$G$3)*(T_DataComboFile[Econ4]=$G39))*T_DataComboFile[2021/22 Reduction]*$B$3)","v":0},{"$f":"SUMPRODUCT(((T_DataComboFile[Implementation programme]=$G$3)*(T_DataComboFile[Econ4]=$G39))*T_DataComboFile[2021/22 Increase]*$B$3)","v":0},0,{"$f":"SUMPRODUCT(((T_DataComboFile[Implementation programme]=$G$3)*(T_DataComboFile[Econ4]=$G39))*T_DataComboFile[2022/23 Baseline]*$B$3)","v":0},{"$f":"SUMPRODUCT(((T_DataComboFile[Implementation programme]=$G$3)*(T_DataComboFile[Econ4]=$G39))*T_DataComboFile[2022/23 Reduction]*$B$3)","v":0},{"$f":"SUMPRODUCT(((T_DataComboFile[Implementation programme]=$G$3)*(T_DataComboFile[Econ4]=$G39))*T_DataComboFile[2022/23 Increase]*$B$3)","v":0},0,{"$f":"SUMPRODUCT(((T_DataComboFile[Implementation programme]=$G$3)*(T_DataComboFile[Econ4]=$G39))*T_DataComboFile[2023/24 Baseline]*$B$3)","v":0},{"$f":"SUMPRODUCT(((T_DataComboFile[Implementation programme]=$G$3)*(T_DataComboFile[Econ4]=$G39))*T_DataComboFile[2023/24 Reduction]*$B$3)","v":0},{"$f":"SUMPRODUCT(((T_DataComboFile[Implementation programme]=$G$3)*(T_DataComboFile[Econ4]=$G39))*T_DataComboFile[2023/24 Increase]*$B$3)","v":0},0]
[0,0,null,null,null,null,"Departmental agencies and accounts",{"$f":"SUM(H41:H42)","v":0},0,0,0,0,0,0,0,0,0,0,0,0,0,0,0]
[0,0,null,null,null,null,"Social security funds",{"$f":"SUMPRODUCT(((T_DataComboFile[Implementation programme]=$G$3)*(T_DataComboFile[Econ4]=$G41))*T_DataComboFile[2017/18]*$B$3)","v":0},{"$f":"SUMPRODUCT(((T_DataComboFile[Implementation programme]=$G$3)*(T_DataComboFile[Econ4]=$G41))*T_DataComboFile[2018/19]*$B$3)","v":0},{"$f":"SUMPRODUCT(((T_DataComboFile[Implementation programme]=$G$3)*(T_DataComboFile[Econ4]=$G41))*T_DataComboFile[2019/20 Revised estimate]*$B$3)","v":0},{"$f":"SUMPRODUCT(((T_DataComboFile[Implementation programme]=$G$3)*(T_DataComboFile[Econ4]=$G41))*T_DataComboFile[2020/21 Revised]*$B$3)","v":0},{"$f":"SUMPRODUCT(((T_DataComboFile[Implementation programme]=$G$3)*(T_DataComboFile[Econ4]=$G41))*T_DataComboFile[2021/22 Baseline]*$B$3)","v":0},{"$f":"SUMPRODUCT(((T_DataComboFile[Implementation programme]=$G$3)*(T_DataComboFile[Econ4]=$G41))*T_DataComboFile[2021/22 Reduction]*$B$3)","v":0},{"$f":"SUMPRODUCT(((T_DataComboFile[Implementation programme]=$G$3)*(T_DataComboFile[Econ4]=$G41))*T_DataComboFile[2021/22 Increase]*$B$3)","v":0},{"$f":"L41+M41+N41","v":0},{"$f":"SUMPRODUCT(((T_DataComboFile[Implementation programme]=$G$3)*(T_DataComboFile[Econ4]=$G41))*T_DataComboFile[2022/23 Baseline]*$B$3)","v":0},{"$f":"SUMPRODUCT(((T_DataComboFile[Implementation programme]=$G$3)*(T_DataComboFile[Econ4]=$G41))*T_DataComboFile[2022/23 Reduction]*$B$3)","v":0},{"$f":"SUMPRODUCT(((T_DataComboFile[Implementation programme]=$G$3)*(T_DataComboFile[Econ4]=$G41))*T_DataComboFile[2022/23 Increase]*$B$3)","v":0},{"$f":"P41+Q41+R41","v":0},{"$f":"SUMPRODUCT(((T_DataComboFile[Implementation programme]=$G$3)*(T_DataComboFile[Econ4]=$G41))*T_DataComboFile[2023/24 Baseline]*$B$3)","v":0},{"$f":"SUMPRODUCT(((T_DataComboFile[Implementation programme]=$G$3)*(T_DataComboFile[Econ4]=$G41))*T_DataComboFile[2023/24 Reduction]*$B$3)","v":0},{"$f":"SUMPRODUCT(((T_DataComboFile[Implementation programme]=$G$3)*(T_DataComboFile[Econ4]=$G41))*T_DataComboFile[2023/24 Increase]*$B$3)","v":0},{"$f":"T41+U41+V41","v":0}]
[0,0,null,null,null,null,"Departmental agencies (non-business entities)",{"$f":"SUMPRODUCT(((T_DataComboFile[Implementation programme]=$G$3)*(T_DataComboFile[Econ4]=$G42))*T_DataComboFile[2017/18]*$B$3)","v":0},{"$f":"SUMPRODUCT(((T_DataComboFile[Implementation programme]=$G$3)*(T_DataComboFile[Econ4]=$G42))*T_DataComboFile[2018/19]*$B$3)","v":0},{"$f":"SUMPRODUCT(((T_DataComboFile[Implementation programme]=$G$3)*(T_DataComboFile[Econ4]=$G42))*T_DataComboFile[2019/20 Revised estimate]*$B$3)","v":0},{"$f":"SUMPRODUCT(((T_DataComboFile[Implementation programme]=$G$3)*(T_DataComboFile[Econ4]=$G42))*T_DataComboFile[2020/21 Revised]*$B$3)","v":0},{"$f":"SUMPRODUCT(((T_DataComboFile[Implementation programme]=$G$3)*(T_DataComboFile[Econ4]=$G42))*T_DataComboFile[2021/22 Baseline]*$B$3)","v":0},{"$f":"SUMPRODUCT(((T_DataComboFile[Implementation programme]=$G$3)*(T_DataComboFile[Econ4]=$G42))*T_DataComboFile[2021/22 Reduction]*$B$3)","v":0},{"$f":"SUMPRODUCT(((T_DataComboFile[Implementation programme]=$G$3)*(T_DataComboFile[Econ4]=$G42))*T_DataComboFile[2021/22 Increase]*$B$3)","v":0},0,{"$f":"SUMPRODUCT(((T_DataComboFile[Implementation programme]=$G$3)*(T_DataComboFile[Econ4]=$G42))*T_DataComboFile[2022/23 Baseline]*$B$3)","v":0},{"$f":"SUMPRODUCT(((T_DataComboFile[Implementation programme]=$G$3)*(T_DataComboFile[Econ4]=$G42))*T_DataComboFile[2022/23 Reduction]*$B$3)","v":0},{"$f":"SUMPRODUCT(((T_DataComboFile[Implementation programme]=$G$3)*(T_DataComboFile[Econ4]=$G42))*T_DataComboFile[2022/23 Increase]*$B$3)","v":0},0,{"$f":"SUMPRODUCT(((T_DataComboFile[Implementation programme]=$G$3)*(T_DataComboFile[Econ4]=$G42))*T_DataComboFile[2023/24 Baseline]*$B$3)","v":0},{"$f":"SUMPRODUCT(((T_DataComboFile[Implementation programme]=$G$3)*(T_DataComboFile[Econ4]=$G42))*T_DataComboFile[2023/24 Reduction]*$B$3)","v":0},{"$f":"SUMPRODUCT(((T_DataComboFile[Implementation programme]=$G$3)*(T_DataComboFile[Econ4]=$G42))*T_DataComboFile[2023/24 Increase]*$B$3)","v":0},0]
[0,0,null,null,null,null,"Higher education institutions",{"$f":"SUMPRODUCT(((T_DataComboFile[Implementation programme]=$G$3)*(T_DataComboFile[Econ3]=$G43))*T_DataComboFile[2017/18]*$B$3)","v":0},{"$f":"SUMPRODUCT(((T_DataComboFile[Implementation programme]=$G$3)*(T_DataComboFile[Econ3]=$G43))*T_DataComboFile[2018/19]*$B$3)","v":0},{"$f":"SUMPRODUCT(((T_DataComboFile[Implementation programme]=$G$3)*(T_DataComboFile[Econ3]=$G43))*T_DataComboFile[2019/20 Revised estimate]*$B$3)","v":0},{"$f":"SUMPRODUCT(((T_DataComboFile[Implementation programme]=$G$3)*(T_DataComboFile[Econ3]=$G43))*T_DataComboFile[2020/21 Revised]*$B$3)","v":0},{"$f":"SUMPRODUCT(((T_DataComboFile[Implementation programme]=$G$3)*(T_DataComboFile[Econ3]=$G43))*T_DataComboFile[2021/22 Baseline]*$B$3)","v":0},{"$f":"SUMPRODUCT(((T_DataComboFile[Implementation programme]=$G$3)*(T_DataComboFile[Econ3]=$G43))*T_DataComboFile[2021/22 Reduction]*$B$3)","v":0},{"$f":"SUMPRODUCT(((T_DataComboFile[Implementation programme]=$G$3)*(T_DataComboFile[Econ3]=$G43))*T_DataComboFile[2021/22 Increase]*$B$3)","v":0},0,{"$f":"SUMPRODUCT(((T_DataComboFile[Implementation programme]=$G$3)*(T_DataComboFile[Econ3]=$G43))*T_DataComboFile[2022/23 Baseline]*$B$3)","v":0},{"$f":"SUMPRODUCT(((T_DataComboFile[Implementation programme]=$G$3)*(T_DataComboFile[Econ3]=$G43))*T_DataComboFile[2022/23 Reduction]*$B$3)","v":0},{"$f":"SUMPRODUCT(((T_DataComboFile[Implementation programme]=$G$3)*(T_DataComboFile[Econ3]=$G43))*T_DataComboFile[2022/23 Increase]*$B$3)","v":0},0,{"$f":"SUMPRODUCT(((T_DataComboFile[Implementation programme]=$G$3)*(T_DataComboFile[Econ3]=$G43))*T_DataComboFile[2023/24 Baseline]*$B$3)","v":0},{"$f":"SUMPRODUCT(((T_DataComboFile[Implementation programme]=$G$3)*(T_DataComboFile[Econ3]=$G43))*T_DataComboFile[2023/24 Reduction]*$B$3)","v":0},{"$f":"SUMPRODUCT(((T_DataComboFile[Implementation programme]=$G$3)*(T_DataComboFile[Econ3]=$G43))*T_DataComboFile[2023/24 Increase]*$B$3)","v":0},0]
[0,0,null,null,null,null,"Foreign governments and international organisations",{"$f":"SUMPRODUCT(((T_DataComboFile[Implementation programme]=$G$3)*(T_DataComboFile[Econ3]=$G44))*T_DataComboFile[2017/18]*$B$3)","v":0},{"$f":"SUMPRODUCT(((T_DataComboFile[Implementation programme]=$G$3)*(T_DataComboFile[Econ3]=$G44))*T_DataComboFile[2018/19]*$B$3)","v":0},{"$f":"SUMPRODUCT(((T_DataComboFile[Implementation programme]=$G$3)*(T_DataComboFile[Econ3]=$G44))*T_DataComboFile[2019/20 Revised estimate]*$B$3)","v":0},{"$f":"SUMPRODUCT(((T_DataComboFile[Implementation programme]=$G$3)*(T_DataComboFile[Econ3]=$G44))*T_DataComboFile[2020/21 Revised]*$B$3)","v":0},{"$f":"SUMPRODUCT(((T_DataComboFile[Implementation programme]=$G$3)*(T_DataComboFile[Econ3]=$G44))*T_DataComboFile[2021/22 Baseline]*$B$3)","v":0},{"$f":"SUMPRODUCT(((T_DataComboFile[Implementation programme]=$G$3)*(T_DataComboFile[Econ3]=$G44))*T_DataComboFile[2021/22 Reduction]*$B$3)","v":0},{"$f":"SUMPRODUCT(((T_DataComboFile[Implementation programme]=$G$3)*(T_DataComboFile[Econ3]=$G44))*T_DataComboFile[2021/22 Increase]*$B$3)","v":0},0,{"$f":"SUMPRODUCT(((T_DataComboFile[Implementation programme]=$G$3)*(T_DataComboFile[Econ3]=$G44))*T_DataComboFile[2022/23 Baseline]*$B$3)","v":0},{"$f":"SUMPRODUCT(((T_DataComboFile[Implementation programme]=$G$3)*(T_DataComboFile[Econ3]=$G44))*T_DataComboFile[2022/23 Reduction]*$B$3)","v":0},{"$f":"SUMPRODUCT(((T_DataComboFile[Implementation programme]=$G$3)*(T_DataComboFile[Econ3]=$G44))*T_DataComboFile[2022/23 Increase]*$B$3)","v":0},0,{"$f":"SUMPRODUCT(((T_DataComboFile[Implementation programme]=$G$3)*(T_DataComboFile[Econ3]=$G44))*T_DataComboFile[2023/24 Baseline]*$B$3)","v":0},{"$f":"SUMPRODUCT(((T_DataComboFile[Implementation programme]=$G$3)*(T_DataComboFile[Econ3]=$G44))*T_DataComboFile[2023/24 Reduction]*$B$3)","v":0},{"$f":"SUMPRODUCT(((T_DataComboFile[Implementation programme]=$G$3)*(T_DataComboFile[Econ3]=$G44))*T_DataComboFile[2023/24 Increase]*$B$3)","v":0},0]
[0,0,null,null,null,null,"Public corporations and private enterprises",{"$f":"SUM(H46:H47)","v":0},0,0,0,0,0,0,0,0,0,0,0,0,0,0,0]
[0,0,null,null,null,null,"Public corporations",{"$f":"SUMPRODUCT(((T_DataComboFile[Implementation programme]=$G$3)*(T_DataComboFile[Econ4]=$G46))*T_DataComboFile[2017/18]*$B$3)","v":0},{"$f":"SUMPRODUCT(((T_DataComboFile[Implementation programme]=$G$3)*(T_DataComboFile[Econ4]=$G46))*T_DataComboFile[2018/19]*$B$3)","v":0},{"$f":"SUMPRODUCT(((T_DataComboFile[Implementation programme]=$G$3)*(T_DataComboFile[Econ4]=$G46))*T_DataComboFile[2019/20 Revised estimate]*$B$3)","v":0},{"$f":"SUMPRODUCT(((T_DataComboFile[Implementation programme]=$G$3)*(T_DataComboFile[Econ4]=$G46))*T_DataComboFile[2020/21 Revised]*$B$3)","v":0},{"$f":"SUMPRODUCT(((T_DataComboFile[Implementation programme]=$G$3)*(T_DataComboFile[Econ4]=$G46))*T_DataComboFile[2021/22 Baseline]*$B$3)","v":0},{"$f":"SUMPRODUCT(((T_DataComboFile[Implementation programme]=$G$3)*(T_DataComboFile[Econ4]=$G46))*T_DataComboFile[2021/22 Reduction]*$B$3)","v":0},{"$f":"SUMPRODUCT(((T_DataComboFile[Implementation programme]=$G$3)*(T_DataComboFile[Econ4]=$G46))*T_DataComboFile[2021/22 Increase]*$B$3)","v":0},{"$f":"L46+M46+N46","v":0},{"$f":"SUMPRODUCT(((T_DataComboFile[Implementation programme]=$G$3)*(T_DataComboFile[Econ4]=$G46))*T_DataComboFile[2022/23 Baseline]*$B$3)","v":0},{"$f":"SUMPRODUCT(((T_DataComboFile[Implementation programme]=$G$3)*(T_DataComboFile[Econ4]=$G46))*T_DataComboFile[2022/23 Reduction]*$B$3)","v":0},{"$f":"SUMPRODUCT(((T_DataComboFile[Implementation programme]=$G$3)*(T_DataComboFile[Econ4]=$G46))*T_DataComboFile[2022/23 Increase]*$B$3)","v":0},{"$f":"P46+Q46+R46","v":0},{"$f":"SUMPRODUCT(((T_DataComboFile[Implementation programme]=$G$3)*(T_DataComboFile[Econ4]=$G46))*T_DataComboFile[2023/24 Baseline]*$B$3)","v":0},{"$f":"SUMPRODUCT(((T_DataComboFile[Implementation programme]=$G$3)*(T_DataComboFile[Econ4]=$G46))*T_DataComboFile[2023/24 Reduction]*$B$3)","v":0},{"$f":"SUMPRODUCT(((T_DataComboFile[Implementation programme]=$G$3)*(T_DataComboFile[Econ4]=$G46))*T_DataComboFile[2023/24 Increase]*$B$3)","v":0},{"$f":"T46+U46+V46","v":0}]
[0,0,null,null,null,null,"Private enterprises",{"$f":"SUMPRODUCT(((T_DataComboFile[Implementation programme]=$G$3)*(T_DataComboFile[Econ4]=$G47))*T_DataComboFile[2017/18]*$B$3)","v":0},{"$f":"SUMPRODUCT(((T_DataComboFile[Implementation programme]=$G$3)*(T_DataComboFile[Econ4]=$G47))*T_DataComboFile[2018/19]*$B$3)","v":0},{"$f":"SUMPRODUCT(((T_DataComboFile[Implementation programme]=$G$3)*(T_DataComboFile[Econ4]=$G47))*T_DataComboFile[2019/20 Revised estimate]*$B$3)","v":0},{"$f":"SUMPRODUCT(((T_DataComboFile[Implementation programme]=$G$3)*(T_DataComboFile[Econ4]=$G47))*T_DataComboFile[2020/21 Revised]*$B$3)","v":0},{"$f":"SUMPRODUCT(((T_DataComboFile[Implementation programme]=$G$3)*(T_DataComboFile[Econ4]=$G47))*T_DataComboFile[2021/22 Baseline]*$B$3)","v":0},{"$f":"SUMPRODUCT(((T_DataComboFile[Implementation programme]=$G$3)*(T_DataComboFile[Econ4]=$G47))*T_DataComboFile[2021/22 Reduction]*$B$3)","v":0},{"$f":"SUMPRODUCT(((T_DataComboFile[Implementation programme]=$G$3)*(T_DataComboFile[Econ4]=$G47))*T_DataComboFile[2021/22 Increase]*$B$3)","v":0},0,{"$f":"SUMPRODUCT(((T_DataComboFile[Implementation programme]=$G$3)*(T_DataComboFile[Econ4]=$G47))*T_DataComboFile[2022/23 Baseline]*$B$3)","v":0},{"$f":"SUMPRODUCT(((T_DataComboFile[Implementation programme]=$G$3)*(T_DataComboFile[Econ4]=$G47))*T_DataComboFile[2022/23 Reduction]*$B$3)","v":0},{"$f":"SUMPRODUCT(((T_DataComboFile[Implementation programme]=$G$3)*(T_DataComboFile[Econ4]=$G47))*T_DataComboFile[2022/23 Increase]*$B$3)","v":0},0,{"$f":"SUMPRODUCT(((T_DataComboFile[Implementation programme]=$G$3)*(T_DataComboFile[Econ4]=$G47))*T_DataComboFile[2023/24 Baseline]*$B$3)","v":0},{"$f":"SUMPRODUCT(((T_DataComboFile[Implementation programme]=$G$3)*(T_DataComboFile[Econ4]=$G47))*T_DataComboFile[2023/24 Reduction]*$B$3)","v":0},{"$f":"SUMPRODUCT(((T_DataComboFile[Implementation programme]=$G$3)*(T_DataComboFile[Econ4]=$G47))*T_DataComboFile[2023/24 Increase]*$B$3)","v":0},0]
[0,0,null,null,null,null,"Non-profit institutions",{"$f":"SUMPRODUCT(((T_DataComboFile[Implementation programme]=$G$3)*(T_DataComboFile[Econ3]=$G48))*T_DataComboFile[2017/18]*$B$3)","v":0},{"$f":"SUMPRODUCT(((T_DataComboFile[Implementation programme]=$G$3)*(T_DataComboFile[Econ3]=$G48))*T_DataComboFile[2018/19]*$B$3)","v":0},{"$f":"SUMPRODUCT(((T_DataComboFile[Implementation programme]=$G$3)*(T_DataComboFile[Econ3]=$G48))*T_DataComboFile[2019/20 Revised estimate]*$B$3)","v":0},{"$f":"SUMPRODUCT(((T_DataComboFile[Implementation programme]=$G$3)*(T_DataComboFile[Econ3]=$G48))*T_DataComboFile[2020/21 Revised]*$B$3)","v":0},{"$f":"SUMPRODUCT(((T_DataComboFile[Implementation programme]=$G$3)*(T_DataComboFile[Econ3]=$G48))*T_DataComboFile[2021/22 Baseline]*$B$3)","v":0},{"$f":"SUMPRODUCT(((T_DataComboFile[Implementation programme]=$G$3)*(T_DataComboFile[Econ3]=$G48))*T_DataComboFile[2021/22 Reduction]*$B$3)","v":0},{"$f":"SUMPRODUCT(((T_DataComboFile[Implementation programme]=$G$3)*(T_DataComboFile[Econ3]=$G48))*T_DataComboFile[2021/22 Increase]*$B$3)","v":0},0,{"$f":"SUMPRODUCT(((T_DataComboFile[Implementation programme]=$G$3)*(T_DataComboFile[Econ3]=$G48))*T_DataComboFile[2022/23 Baseline]*$B$3)","v":0},{"$f":"SUMPRODUCT(((T_DataComboFile[Implementation programme]=$G$3)*(T_DataComboFile[Econ3]=$G48))*T_DataComboFile[2022/23 Reduction]*$B$3)","v":0},{"$f":"SUMPRODUCT(((T_DataComboFile[Implementation programme]=$G$3)*(T_DataComboFile[Econ3]=$G48))*T_DataComboFile[2022/23 Increase]*$B$3)","v":0},0,{"$f":"SUMPRODUCT(((T_DataComboFile[Implementation programme]=$G$3)*(T_DataComboFile[Econ3]=$G48))*T_DataComboFile[2023/24 Baseline]*$B$3)","v":0},{"$f":"SUMPRODUCT(((T_DataComboFile[Implementation programme]=$G$3)*(T_DataComboFile[Econ3]=$G48))*T_DataComboFile[2023/24 Reduction]*$B$3)","v":0},{"$f":"SUMPRODUCT(((T_DataComboFile[Implementation programme]=$G$3)*(T_DataComboFile[Econ3]=$G48))*T_DataComboFile[2023/24 Increase]*$B$3)","v":0},0]
[0,0,null,null,null,null,"Households",{"$f":"SUM(H50:H51)","v":0},0,0,0,0,0,0,0,0,0,0,0,0,0,0,0]
[0,0,null,null,null,null,"Social benefits",{"$f":"SUMPRODUCT(((T_DataComboFile[Implementation programme]=$G$3)*(T_DataComboFile[Econ4]=$G50))*T_DataComboFile[2017/18]*$B$3)","v":0},{"$f":"SUMPRODUCT(((T_DataComboFile[Implementation programme]=$G$3)*(T_DataComboFile[Econ4]=$G50))*T_DataComboFile[2018/19]*$B$3)","v":0},{"$f":"SUMPRODUCT(((T_DataComboFile[Implementation programme]=$G$3)*(T_DataComboFile[Econ4]=$G50))*T_DataComboFile[2019/20 Revised estimate]*$B$3)","v":0},{"$f":"SUMPRODUCT(((T_DataComboFile[Implementation programme]=$G$3)*(T_DataComboFile[Econ4]=$G50))*T_DataComboFile[2020/21 Revised]*$B$3)","v":0},{"$f":"SUMPRODUCT(((T_DataComboFile[Implementation programme]=$G$3)*(T_DataComboFile[Econ4]=$G50))*T_DataComboFile[2021/22 Baseline]*$B$3)","v":0},{"$f":"SUMPRODUCT(((T_DataComboFile[Implementation programme]=$G$3)*(T_DataComboFile[Econ4]=$G50))*T_DataComboFile[2021/22 Reduction]*$B$3)","v":0},{"$f":"SUMPRODUCT(((T_DataComboFile[Implementation programme]=$G$3)*(T_DataComboFile[Econ4]=$G50))*T_DataComboFile[2021/22 Increase]*$B$3)","v":0},{"$f":"L50+M50+N50","v":0},{"$f":"SUMPRODUCT(((T_DataComboFile[Implementation programme]=$G$3)*(T_DataComboFile[Econ4]=$G50))*T_DataComboFile[2022/23 Baseline]*$B$3)","v":0},{"$f":"SUMPRODUCT(((T_DataComboFile[Implementation programme]=$G$3)*(T_DataComboFile[Econ4]=$G50))*T_DataComboFile[2022/23 Reduction]*$B$3)","v":0},{"$f":"SUMPRODUCT(((T_DataComboFile[Implementation programme]=$G$3)*(T_DataComboFile[Econ4]=$G50))*T_DataComboFile[2022/23 Increase]*$B$3)","v":0},{"$f":"P50+Q50+R50","v":0},{"$f":"SUMPRODUCT(((T_DataComboFile[Implementation programme]=$G$3)*(T_DataComboFile[Econ4]=$G50))*T_DataComboFile[2023/24 Baseline]*$B$3)","v":0},{"$f":"SUMPRODUCT(((T_DataComboFile[Implementation programme]=$G$3)*(T_DataComboFile[Econ4]=$G50))*T_DataComboFile[2023/24 Reduction]*$B$3)","v":0},{"$f":"SUMPRODUCT(((T_DataComboFile[Implementation programme]=$G$3)*(T_DataComboFile[Econ4]=$G50))*T_DataComboFile[2023/24 Increase]*$B$3)","v":0},{"$f":"T50+U50+V50","v":0}]
[0,0,null,null,null,null,"Other transfers to households",{"$f":"SUMPRODUCT(((T_DataComboFile[Implementation programme]=$G$3)*(T_DataComboFile[Econ4]=$G51))*T_DataComboFile[2017/18]*$B$3)","v":0},{"$f":"SUMPRODUCT(((T_DataComboFile[Implementation programme]=$G$3)*(T_DataComboFile[Econ4]=$G51))*T_DataComboFile[2018/19]*$B$3)","v":0},{"$f":"SUMPRODUCT(((T_DataComboFile[Implementation programme]=$G$3)*(T_DataComboFile[Econ4]=$G51))*T_DataComboFile[2019/20 Revised estimate]*$B$3)","v":0},{"$f":"SUMPRODUCT(((T_DataComboFile[Implementation programme]=$G$3)*(T_DataComboFile[Econ4]=$G51))*T_DataComboFile[2020/21 Revised]*$B$3)","v":0},{"$f":"SUMPRODUCT(((T_DataComboFile[Implementation programme]=$G$3)*(T_DataComboFile[Econ4]=$G51))*T_DataComboFile[2021/22 Baseline]*$B$3)","v":0},{"$f":"SUMPRODUCT(((T_DataComboFile[Implementation programme]=$G$3)*(T_DataComboFile[Econ4]=$G51))*T_DataComboFile[2021/22 Reduction]*$B$3)","v":0},{"$f":"SUMPRODUCT(((T_DataComboFile[Implementation programme]=$G$3)*(T_DataComboFile[Econ4]=$G51))*T_DataComboFile[2021/22 Increase]*$B$3)","v":0},0,{"$f":"SUMPRODUCT(((T_DataComboFile[Implementation programme]=$G$3)*(T_DataComboFile[Econ4]=$G51))*T_DataComboFile[2022/23 Baseline]*$B$3)","v":0},{"$f":"SUMPRODUCT(((T_DataComboFile[Implementation programme]=$G$3)*(T_DataComboFile[Econ4]=$G51))*T_DataComboFile[2022/23 Reduction]*$B$3)","v":0},{"$f":"SUMPRODUCT(((T_DataComboFile[Implementation programme]=$G$3)*(T_DataComboFile[Econ4]=$G51))*T_DataComboFile[2022/23 Increase]*$B$3)","v":0},0,{"$f":"SUMPRODUCT(((T_DataComboFile[Implementation programme]=$G$3)*(T_DataComboFile[Econ4]=$G51))*T_DataComboFile[2023/24 Baseline]*$B$3)","v":0},{"$f":"SUMPRODUCT(((T_DataComboFile[Implementation programme]=$G$3)*(T_DataComboFile[Econ4]=$G51))*T_DataComboFile[2023/24 Reduction]*$B$3)","v":0},{"$f":"SUMPRODUCT(((T_DataComboFile[Implementation programme]=$G$3)*(T_DataComboFile[Econ4]=$G51))*T_DataComboFile[2023/24 Increase]*$B$3)","v":0},0]
[0,0,null,null,null,null,"Payments for capital assets",{"$f":"SUM(H53,H56,H59:H63)","v":0},0,0,0,0,0,0,0,0,0,0,0,0,0,0,0]
[0,0,null,null,null,null,"Buildings and other fixed structures",{"$f":"SUM(H54:H55)","v":0},0,0,0,0,0,0,0,0,0,0,0,0,0,0,0]
[0,0,null,null,null,null,"Buildings",{"$f":"SUMPRODUCT(((T_DataComboFile[Implementation programme]=$G$3)*(T_DataComboFile[Econ4]=$G54))*T_DataComboFile[2017/18]*$B$3)","v":0},{"$f":"SUMPRODUCT(((T_DataComboFile[Implementation programme]=$G$3)*(T_DataComboFile[Econ4]=$G54))*T_DataComboFile[2018/19]*$B$3)","v":0},{"$f":"SUMPRODUCT(((T_DataComboFile[Implementation programme]=$G$3)*(T_DataComboFile[Econ4]=$G54))*T_DataComboFile[2019/20 Revised estimate]*$B$3)","v":0},{"$f":"SUMPRODUCT(((T_DataComboFile[Implementation programme]=$G$3)*(T_DataComboFile[Econ4]=$G54))*T_DataComboFile[2020/21 Revised]*$B$3)","v":0},{"$f":"SUMPRODUCT(((T_DataComboFile[Implementation programme]=$G$3)*(T_DataComboFile[Econ4]=$G54))*T_DataComboFile[2021/22 Baseline]*$B$3)","v":0},{"$f":"SUMPRODUCT(((T_DataComboFile[Implementation programme]=$G$3)*(T_DataComboFile[Econ4]=$G54))*T_DataComboFile[2021/22 Reduction]*$B$3)","v":0},{"$f":"SUMPRODUCT(((T_DataComboFile[Implementation programme]=$G$3)*(T_DataComboFile[Econ4]=$G54))*T_DataComboFile[2021/22 Increase]*$B$3)","v":0},{"$f":"L54+M54+N54","v":0},{"$f":"SUMPRODUCT(((T_DataComboFile[Implementation programme]=$G$3)*(T_DataComboFile[Econ4]=$G54))*T_DataComboFile[2022/23 Baseline]*$B$3)","v":0},{"$f":"SUMPRODUCT(((T_DataComboFile[Implementation programme]=$G$3)*(T_DataComboFile[Econ4]=$G54))*T_DataComboFile[2022/23 Reduction]*$B$3)","v":0},{"$f":"SUMPRODUCT(((T_DataComboFile[Implementation programme]=$G$3)*(T_DataComboFile[Econ4]=$G54))*T_DataComboFile[2022/23 Increase]*$B$3)","v":0},{"$f":"P54+Q54+R54","v":0},{"$f":"SUMPRODUCT(((T_DataComboFile[Implementation programme]=$G$3)*(T_DataComboFile[Econ4]=$G54))*T_DataComboFile[2023/24 Baseline]*$B$3)","v":0},{"$f":"SUMPRODUCT(((T_DataComboFile[Implementation programme]=$G$3)*(T_DataComboFile[Econ4]=$G54))*T_DataComboFile[2023/24 Reduction]*$B$3)","v":0},{"$f":"SUMPRODUCT(((T_DataComboFile[Implementation programme]=$G$3)*(T_DataComboFile[Econ4]=$G54))*T_DataComboFile[2023/24 Increase]*$B$3)","v":0},{"$f":"T54+U54+V54","v":0}]
[0,0,null,null,null,null,"Other fixed structures",{"$f":"SUMPRODUCT(((T_DataComboFile[Implementation programme]=$G$3)*(T_DataComboFile[Econ4]=$G55))*T_DataComboFile[2017/18]*$B$3)","v":0},{"$f":"SUMPRODUCT(((T_DataComboFile[Implementation programme]=$G$3)*(T_DataComboFile[Econ4]=$G55))*T_DataComboFile[2018/19]*$B$3)","v":0},{"$f":"SUMPRODUCT(((T_DataComboFile[Implementation programme]=$G$3)*(T_DataComboFile[Econ4]=$G55))*T_DataComboFile[2019/20 Revised estimate]*$B$3)","v":0},{"$f":"SUMPRODUCT(((T_DataComboFile[Implementation programme]=$G$3)*(T_DataComboFile[Econ4]=$G55))*T_DataComboFile[2020/21 Revised]*$B$3)","v":0},{"$f":"SUMPRODUCT(((T_DataComboFile[Implementation programme]=$G$3)*(T_DataComboFile[Econ4]=$G55))*T_DataComboFile[2021/22 Baseline]*$B$3)","v":0},{"$f":"SUMPRODUCT(((T_DataComboFile[Implementation programme]=$G$3)*(T_DataComboFile[Econ4]=$G55))*T_DataComboFile[2021/22 Reduction]*$B$3)","v":0},{"$f":"SUMPRODUCT(((T_DataComboFile[Implementation programme]=$G$3)*(T_DataComboFile[Econ4]=$G55))*T_DataComboFile[2021/22 Increase]*$B$3)","v":0},0,{"$f":"SUMPRODUCT(((T_DataComboFile[Implementation programme]=$G$3)*(T_DataComboFile[Econ4]=$G55))*T_DataComboFile[2022/23 Baseline]*$B$3)","v":0},{"$f":"SUMPRODUCT(((T_DataComboFile[Implementation programme]=$G$3)*(T_DataComboFile[Econ4]=$G55))*T_DataComboFile[2022/23 Reduction]*$B$3)","v":0},{"$f":"SUMPRODUCT(((T_DataComboFile[Implementation programme]=$G$3)*(T_DataComboFile[Econ4]=$G55))*T_DataComboFile[2022/23 Increase]*$B$3)","v":0},0,{"$f":"SUMPRODUCT(((T_DataComboFile[Implementation programme]=$G$3)*(T_DataComboFile[Econ4]=$G55))*T_DataComboFile[2023/24 Baseline]*$B$3)","v":0},{"$f":"SUMPRODUCT(((T_DataComboFile[Implementation programme]=$G$3)*(T_DataComboFile[Econ4]=$G55))*T_DataComboFile[2023/24 Reduction]*$B$3)","v":0},{"$f":"SUMPRODUCT(((T_DataComboFile[Implementation programme]=$G$3)*(T_DataComboFile[Econ4]=$G55))*T_DataComboFile[2023/24 Increase]*$B$3)","v":0},0]
[0,0,null,null,null,null,"Machinery and equipment",{"$f":"SUM(H57:H58)","v":0},0,0,0,0,0,0,0,0,0,0,0,0,0,0,0]
[0,0,null,null,null,null,"Transport equipment",{"$f":"SUMPRODUCT(((T_DataComboFile[Implementation programme]=$G$3)*(T_DataComboFile[Econ4]=$G57))*T_DataComboFile[2017/18]*$B$3)","v":0},{"$f":"SUMPRODUCT(((T_DataComboFile[Implementation programme]=$G$3)*(T_DataComboFile[Econ4]=$G57))*T_DataComboFile[2018/19]*$B$3)","v":0},{"$f":"SUMPRODUCT(((T_DataComboFile[Implementation programme]=$G$3)*(T_DataComboFile[Econ4]=$G57))*T_DataComboFile[2019/20 Revised estimate]*$B$3)","v":0},{"$f":"SUMPRODUCT(((T_DataComboFile[Implementation programme]=$G$3)*(T_DataComboFile[Econ4]=$G57))*T_DataComboFile[2020/21 Revised]*$B$3)","v":0},{"$f":"SUMPRODUCT(((T_DataComboFile[Implementation programme]=$G$3)*(T_DataComboFile[Econ4]=$G57))*T_DataComboFile[2021/22 Baseline]*$B$3)","v":0},{"$f":"SUMPRODUCT(((T_DataComboFile[Implementation programme]=$G$3)*(T_DataComboFile[Econ4]=$G57))*T_DataComboFile[2021/22 Reduction]*$B$3)","v":0},{"$f":"SUMPRODUCT(((T_DataComboFile[Implementation programme]=$G$3)*(T_DataComboFile[Econ4]=$G57))*T_DataComboFile[2021/22 Increase]*$B$3)","v":0},{"$f":"L57+M57+N57","v":0},{"$f":"SUMPRODUCT(((T_DataComboFile[Implementation programme]=$G$3)*(T_DataComboFile[Econ4]=$G57))*T_DataComboFile[2022/23 Baseline]*$B$3)","v":0},{"$f":"SUMPRODUCT(((T_DataComboFile[Implementation programme]=$G$3)*(T_DataComboFile[Econ4]=$G57))*T_DataComboFile[2022/23 Reduction]*$B$3)","v":0},{"$f":"SUMPRODUCT(((T_DataComboFile[Implementation programme]=$G$3)*(T_DataComboFile[Econ4]=$G57))*T_DataComboFile[2022/23 Increase]*$B$3)","v":0},{"$f":"P57+Q57+R57","v":0},{"$f":"SUMPRODUCT(((T_DataComboFile[Implementation programme]=$G$3)*(T_DataComboFile[Econ4]=$G57))*T_DataComboFile[2023/24 Baseline]*$B$3)","v":0},{"$f":"SUMPRODUCT(((T_DataComboFile[Implementation programme]=$G$3)*(T_DataComboFile[Econ4]=$G57))*T_DataComboFile[2023/24 Reduction]*$B$3)","v":0},{"$f":"SUMPRODUCT(((T_DataComboFile[Implementation programme]=$G$3)*(T_DataComboFile[Econ4]=$G57))*T_DataComboFile[2023/24 Increase]*$B$3)","v":0},{"$f":"T57+U57+V57","v":0}]
[0,0,null,null,null,null,"Other machinery and equipment",{"$f":"SUMPRODUCT(((T_DataComboFile[Implementation programme]=$G$3)*(T_DataComboFile[Econ4]=$G58))*T_DataComboFile[2017/18]*$B$3)","v":0},{"$f":"SUMPRODUCT(((T_DataComboFile[Implementation programme]=$G$3)*(T_DataComboFile[Econ4]=$G58))*T_DataComboFile[2018/19]*$B$3)","v":0},{"$f":"SUMPRODUCT(((T_DataComboFile[Implementation programme]=$G$3)*(T_DataComboFile[Econ4]=$G58))*T_DataComboFile[2019/20 Revised estimate]*$B$3)","v":0},{"$f":"SUMPRODUCT(((T_DataComboFile[Implementation programme]=$G$3)*(T_DataComboFile[Econ4]=$G58))*T_DataComboFile[2020/21 Revised]*$B$3)","v":0},{"$f":"SUMPRODUCT(((T_DataComboFile[Implementation programme]=$G$3)*(T_DataComboFile[Econ4]=$G58))*T_DataComboFile[2021/22 Baseline]*$B$3)","v":0},{"$f":"SUMPRODUCT(((T_DataComboFile[Implementation programme]=$G$3)*(T_DataComboFile[Econ4]=$G58))*T_DataComboFile[2021/22 Reduction]*$B$3)","v":0},{"$f":"SUMPRODUCT(((T_DataComboFile[Implementation programme]=$G$3)*(T_DataComboFile[Econ4]=$G58))*T_DataComboFile[2021/22 Increase]*$B$3)","v":0},0,{"$f":"SUMPRODUCT(((T_DataComboFile[Implementation programme]=$G$3)*(T_DataComboFile[Econ4]=$G58))*T_DataComboFile[2022/23 Baseline]*$B$3)","v":0},{"$f":"SUMPRODUCT(((T_DataComboFile[Implementation programme]=$G$3)*(T_DataComboFile[Econ4]=$G58))*T_DataComboFile[2022/23 Reduction]*$B$3)","v":0},{"$f":"SUMPRODUCT(((T_DataComboFile[Implementation programme]=$G$3)*(T_DataComboFile[Econ4]=$G58))*T_DataComboFile[2022/23 Increase]*$B$3)","v":0},0,{"$f":"SUMPRODUCT(((T_DataComboFile[Implementation programme]=$G$3)*(T_DataComboFile[Econ4]=$G58))*T_DataComboFile[2023/24 Baseline]*$B$3)","v":0},{"$f":"SUMPRODUCT(((T_DataComboFile[Implementation programme]=$G$3)*(T_DataComboFile[Econ4]=$G58))*T_DataComboFile[2023/24 Reduction]*$B$3)","v":0},{"$f":"SUMPRODUCT(((T_DataComboFile[Implementation programme]=$G$3)*(T_DataComboFile[Econ4]=$G58))*T_DataComboFile[2023/24 Increase]*$B$3)","v":0},0]
[0,0,null,null,null,null,"Heritage assets",{"$f":"SUMPRODUCT(((T_DataComboFile[Implementation programme]=$G$3)*(T_DataComboFile[Econ3]=$G59))*T_DataComboFile[2017/18]*$B$3)","v":0},{"$f":"SUMPRODUCT(((T_DataComboFile[Implementation programme]=$G$3)*(T_DataComboFile[Econ3]=$G59))*T_DataComboFile[2018/19]*$B$3)","v":0},{"$f":"SUMPRODUCT(((T_DataComboFile[Implementation programme]=$G$3)*(T_DataComboFile[Econ3]=$G59))*T_DataComboFile[2019/20 Revised estimate]*$B$3)","v":0},{"$f":"SUMPRODUCT(((T_DataComboFile[Implementation programme]=$G$3)*(T_DataComboFile[Econ3]=$G59))*T_DataComboFile[2020/21 Revised]*$B$3)","v":0},{"$f":"SUMPRODUCT(((T_DataComboFile[Implementation programme]=$G$3)*(T_DataComboFile[Econ3]=$G59))*T_DataComboFile[2021/22 Baseline]*$B$3)","v":0},{"$f":"SUMPRODUCT(((T_DataComboFile[Implementation programme]=$G$3)*(T_DataComboFile[Econ3]=$G59))*T_DataComboFile[2021/22 Reduction]*$B$3)","v":0},{"$f":"SUMPRODUCT(((T_DataComboFile[Implementation programme]=$G$3)*(T_DataComboFile[Econ3]=$G59))*T_DataComboFile[2021/22 Increase]*$B$3)","v":0},0,{"$f":"SUMPRODUCT(((T_DataComboFile[Implementation programme]=$G$3)*(T_DataComboFile[Econ3]=$G59))*T_DataComboFile[2022/23 Baseline]*$B$3)","v":0},{"$f":"SUMPRODUCT(((T_DataComboFile[Implementation programme]=$G$3)*(T_DataComboFile[Econ3]=$G59))*T_DataComboFile[2022/23 Reduction]*$B$3)","v":0},{"$f":"SUMPRODUCT(((T_DataComboFile[Implementation programme]=$G$3)*(T_DataComboFile[Econ3]=$G59))*T_DataComboFile[2022/23 Increase]*$B$3)","v":0},0,{"$f":"SUMPRODUCT(((T_DataComboFile[Implementation programme]=$G$3)*(T_DataComboFile[Econ3]=$G59))*T_DataComboFile[2023/24 Baseline]*$B$3)","v":0},{"$f":"SUMPRODUCT(((T_DataComboFile[Implementation programme]=$G$3)*(T_DataComboFile[Econ3]=$G59))*T_DataComboFile[2023/24 Reduction]*$B$3)","v":0},{"$f":"SUMPRODUCT(((T_DataComboFile[Implementation programme]=$G$3)*(T_DataComboFile[Econ3]=$G59))*T_DataComboFile[2023/24 Increase]*$B$3)","v":0},0]
[0,0,null,null,null,null,"Specialised military assets",{"$f":"SUMPRODUCT(((T_DataComboFile[Implementation programme]=$G$3)*(T_DataComboFile[Econ3]=$G60))*T_DataComboFile[2017/18]*$B$3)","v":0},{"$f":"SUMPRODUCT(((T_DataComboFile[Implementation programme]=$G$3)*(T_DataComboFile[Econ3]=$G60))*T_DataComboFile[2018/19]*$B$3)","v":0},{"$f":"SUMPRODUCT(((T_DataComboFile[Implementation programme]=$G$3)*(T_DataComboFile[Econ3]=$G60))*T_DataComboFile[2019/20 Revised estimate]*$B$3)","v":0},{"$f":"SUMPRODUCT(((T_DataComboFile[Implementation programme]=$G$3)*(T_DataComboFile[Econ3]=$G60))*T_DataComboFile[2020/21 Revised]*$B$3)","v":0},{"$f":"SUMPRODUCT(((T_DataComboFile[Implementation programme]=$G$3)*(T_DataComboFile[Econ3]=$G60))*T_DataComboFile[2021/22 Baseline]*$B$3)","v":0},{"$f":"SUMPRODUCT(((T_DataComboFile[Implementation programme]=$G$3)*(T_DataComboFile[Econ3]=$G60))*T_DataComboFile[2021/22 Reduction]*$B$3)","v":0},{"$f":"SUMPRODUCT(((T_DataComboFile[Implementation programme]=$G$3)*(T_DataComboFile[Econ3]=$G60))*T_DataComboFile[2021/22 Increase]*$B$3)","v":0},0,{"$f":"SUMPRODUCT(((T_DataComboFile[Implementation programme]=$G$3)*(T_DataComboFile[Econ3]=$G60))*T_DataComboFile[2022/23 Baseline]*$B$3)","v":0},{"$f":"SUMPRODUCT(((T_DataComboFile[Implementation programme]=$G$3)*(T_DataComboFile[Econ3]=$G60))*T_DataComboFile[2022/23 Reduction]*$B$3)","v":0},{"$f":"SUMPRODUCT(((T_DataComboFile[Implementation programme]=$G$3)*(T_DataComboFile[Econ3]=$G60))*T_DataComboFile[2022/23 Increase]*$B$3)","v":0},0,{"$f":"SUMPRODUCT(((T_DataComboFile[Implementation programme]=$G$3)*(T_DataComboFile[Econ3]=$G60))*T_DataComboFile[2023/24 Baseline]*$B$3)","v":0},{"$f":"SUMPRODUCT(((T_DataComboFile[Implementation programme]=$G$3)*(T_DataComboFile[Econ3]=$G60))*T_DataComboFile[2023/24 Reduction]*$B$3)","v":0},{"$f":"SUMPRODUCT(((T_DataComboFile[Implementation programme]=$G$3)*(T_DataComboFile[Econ3]=$G60))*T_DataComboFile[2023/24 Increase]*$B$3)","v":0},0]
[0,0,null,null,null,null,"Biological assets",{"$f":"SUMPRODUCT(((T_DataComboFile[Implementation programme]=$G$3)*(T_DataComboFile[Econ3]=$G61))*T_DataComboFile[2017/18]*$B$3)","v":0},{"$f":"SUMPRODUCT(((T_DataComboFile[Implementation programme]=$G$3)*(T_DataComboFile[Econ3]=$G61))*T_DataComboFile[2018/19]*$B$3)","v":0},{"$f":"SUMPRODUCT(((T_DataComboFile[Implementation programme]=$G$3)*(T_DataComboFile[Econ3]=$G61))*T_DataComboFile[2019/20 Revised estimate]*$B$3)","v":0},{"$f":"SUMPRODUCT(((T_DataComboFile[Implementation programme]=$G$3)*(T_DataComboFile[Econ3]=$G61))*T_DataComboFile[2020/21 Revised]*$B$3)","v":0},{"$f":"SUMPRODUCT(((T_DataComboFile[Implementation programme]=$G$3)*(T_DataComboFile[Econ3]=$G61))*T_DataComboFile[2021/22 Baseline]*$B$3)","v":0},{"$f":"SUMPRODUCT(((T_DataComboFile[Implementation programme]=$G$3)*(T_DataComboFile[Econ3]=$G61))*T_DataComboFile[2021/22 Reduction]*$B$3)","v":0},{"$f":"SUMPRODUCT(((T_DataComboFile[Implementation programme]=$G$3)*(T_DataComboFile[Econ3]=$G61))*T_DataComboFile[2021/22 Increase]*$B$3)","v":0},0,{"$f":"SUMPRODUCT(((T_DataComboFile[Implementation programme]=$G$3)*(T_DataComboFile[Econ3]=$G61))*T_DataComboFile[2022/23 Baseline]*$B$3)","v":0},{"$f":"SUMPRODUCT(((T_DataComboFile[Implementation programme]=$G$3)*(T_DataComboFile[Econ3]=$G61))*T_DataComboFile[2022/23 Reduction]*$B$3)","v":0},{"$f":"SUMPRODUCT(((T_DataComboFile[Implementation programme]=$G$3)*(T_DataComboFile[Econ3]=$G61))*T_DataComboFile[2022/23 Increase]*$B$3)","v":0},0,{"$f":"SUMPRODUCT(((T_DataComboFile[Implementation programme]=$G$3)*(T_DataComboFile[Econ3]=$G61))*T_DataComboFile[2023/24 Baseline]*$B$3)","v":0},{"$f":"SUMPRODUCT(((T_DataComboFile[Implementation programme]=$G$3)*(T_DataComboFile[Econ3]=$G61))*T_DataComboFile[2023/24 Reduction]*$B$3)","v":0},{"$f":"SUMPRODUCT(((T_DataComboFile[Implementation programme]=$G$3)*(T_DataComboFile[Econ3]=$G61))*T_DataComboFile[2023/24 Increase]*$B$3)","v":0},0]
[0,0,null,null,null,null,"Land and sub-soil assets",{"$f":"SUMPRODUCT(((T_DataComboFile[Implementation programme]=$G$3)*(T_DataComboFile[Econ3]=$G62))*T_DataComboFile[2017/18]*$B$3)","v":0},{"$f":"SUMPRODUCT(((T_DataComboFile[Implementation programme]=$G$3)*(T_DataComboFile[Econ3]=$G62))*T_DataComboFile[2018/19]*$B$3)","v":0},{"$f":"SUMPRODUCT(((T_DataComboFile[Implementation programme]=$G$3)*(T_DataComboFile[Econ3]=$G62))*T_DataComboFile[2019/20 Revised estimate]*$B$3)","v":0},{"$f":"SUMPRODUCT(((T_DataComboFile[Implementation programme]=$G$3)*(T_DataComboFile[Econ3]=$G62))*T_DataComboFile[2020/21 Revised]*$B$3)","v":0},{"$f":"SUMPRODUCT(((T_DataComboFile[Implementation programme]=$G$3)*(T_DataComboFile[Econ3]=$G62))*T_DataComboFile[2021/22 Baseline]*$B$3)","v":0},{"$f":"SUMPRODUCT(((T_DataComboFile[Implementation programme]=$G$3)*(T_DataComboFile[Econ3]=$G62))*T_DataComboFile[2021/22 Reduction]*$B$3)","v":0},{"$f":"SUMPRODUCT(((T_DataComboFile[Implementation programme]=$G$3)*(T_DataComboFile[Econ3]=$G62))*T_DataComboFile[2021/22 Increase]*$B$3)","v":0},0,{"$f":"SUMPRODUCT(((T_DataComboFile[Implementation programme]=$G$3)*(T_DataComboFile[Econ3]=$G62))*T_DataComboFile[2022/23 Baseline]*$B$3)","v":0},{"$f":"SUMPRODUCT(((T_DataComboFile[Implementation programme]=$G$3)*(T_DataComboFile[Econ3]=$G62))*T_DataComboFile[2022/23 Reduction]*$B$3)","v":0},{"$f":"SUMPRODUCT(((T_DataComboFile[Implementation programme]=$G$3)*(T_DataComboFile[Econ3]=$G62))*T_DataComboFile[2022/23 Increase]*$B$3)","v":0},0,{"$f":"SUMPRODUCT(((T_DataComboFile[Implementation programme]=$G$3)*(T_DataComboFile[Econ3]=$G62))*T_DataComboFile[2023/24 Baseline]*$B$3)","v":0},{"$f":"SUMPRODUCT(((T_DataComboFile[Implementation programme]=$G$3)*(T_DataComboFile[Econ3]=$G62))*T_DataComboFile[2023/24 Reduction]*$B$3)","v":0},{"$f":"SUMPRODUCT(((T_DataComboFile[Implementation programme]=$G$3)*(T_DataComboFile[Econ3]=$G62))*T_DataComboFile[2023/24 Increase]*$B$3)","v":0},0]
[0,0,null,null,null,null,"Software and other intangible assets",{"$f":"SUMPRODUCT(((T_DataComboFile[Implementation programme]=$G$3)*(T_DataComboFile[Econ3]=$G63))*T_DataComboFile[2017/18]*$B$3)","v":0},{"$f":"SUMPRODUCT(((T_DataComboFile[Implementation programme]=$G$3)*(T_DataComboFile[Econ3]=$G63))*T_DataComboFile[2018/19]*$B$3)","v":0},{"$f":"SUMPRODUCT(((T_DataComboFile[Implementation programme]=$G$3)*(T_DataComboFile[Econ3]=$G63))*T_DataComboFile[2019/20 Revised estimate]*$B$3)","v":0},{"$f":"SUMPRODUCT(((T_DataComboFile[Implementation programme]=$G$3)*(T_DataComboFile[Econ3]=$G63))*T_DataComboFile[2020/21 Revised]*$B$3)","v":0},{"$f":"SUMPRODUCT(((T_DataComboFile[Implementation programme]=$G$3)*(T_DataComboFile[Econ3]=$G63))*T_DataComboFile[2021/22 Baseline]*$B$3)","v":0},{"$f":"SUMPRODUCT(((T_DataComboFile[Implementation programme]=$G$3)*(T_DataComboFile[Econ3]=$G63))*T_DataComboFile[2021/22 Reduction]*$B$3)","v":0},{"$f":"SUMPRODUCT(((T_DataComboFile[Implementation programme]=$G$3)*(T_DataComboFile[Econ3]=$G63))*T_DataComboFile[2021/22 Increase]*$B$3)","v":0},0,{"$f":"SUMPRODUCT(((T_DataComboFile[Implementation programme]=$G$3)*(T_DataComboFile[Econ3]=$G63))*T_DataComboFile[2022/23 Baseline]*$B$3)","v":0},{"$f":"SUMPRODUCT(((T_DataComboFile[Implementation programme]=$G$3)*(T_DataComboFile[Econ3]=$G63))*T_DataComboFile[2022/23 Reduction]*$B$3)","v":0},{"$f":"SUMPRODUCT(((T_DataComboFile[Implementation programme]=$G$3)*(T_DataComboFile[Econ3]=$G63))*T_DataComboFile[2022/23 Increase]*$B$3)","v":0},0,{"$f":"SUMPRODUCT(((T_DataComboFile[Implementation programme]=$G$3)*(T_DataComboFile[Econ3]=$G63))*T_DataComboFile[2023/24 Baseline]*$B$3)","v":0},{"$f":"SUMPRODUCT(((T_DataComboFile[Implementation programme]=$G$3)*(T_DataComboFile[Econ3]=$G63))*T_DataComboFile[2023/24 Reduction]*$B$3)","v":0},{"$f":"SUMPRODUCT(((T_DataComboFile[Implementation programme]=$G$3)*(T_DataComboFile[Econ3]=$G63))*T_DataComboFile[2023/24 Increase]*$B$3)","v":0},0]
[0,0,null,null,null,null,"Payments for financial assets",{"$f":"SUMPRODUCT(((T_DataComboFile[Implementation programme]=$G$3)*(T_DataComboFile[Econ3]=$G64))*T_DataComboFile[2017/18]*$B$3)","v":0},{"$f":"SUMPRODUCT(((T_DataComboFile[Implementation programme]=$G$3)*(T_DataComboFile[Econ3]=$G64))*T_DataComboFile[2018/19]*$B$3)","v":0},{"$f":"SUMPRODUCT(((T_DataComboFile[Implementation programme]=$G$3)*(T_DataComboFile[Econ3]=$G64))*T_DataComboFile[2019/20 Revised estimate]*$B$3)","v":0},{"$f":"SUMPRODUCT(((T_DataComboFile[Implementation programme]=$G$3)*(T_DataComboFile[Econ3]=$G64))*T_DataComboFile[2020/21 Revised]*$B$3)","v":0},{"$f":"SUMPRODUCT(((T_DataComboFile[Implementation programme]=$G$3)*(T_DataComboFile[Econ3]=$G64))*T_DataComboFile[2021/22 Baseline]*$B$3)","v":0},{"$f":"SUMPRODUCT(((T_DataComboFile[Implementation programme]=$G$3)*(T_DataComboFile[Econ3]=$G64))*T_DataComboFile[2021/22 Reduction]*$B$3)","v":0},{"$f":"SUMPRODUCT(((T_DataComboFile[Implementation programme]=$G$3)*(T_DataComboFile[Econ3]=$G64))*T_DataComboFile[2021/22 Increase]*$B$3)","v":0},0,{"$f":"SUMPRODUCT(((T_DataComboFile[Implementation programme]=$G$3)*(T_DataComboFile[Econ3]=$G64))*T_DataComboFile[2022/23 Baseline]*$B$3)","v":0},{"$f":"SUMPRODUCT(((T_DataComboFile[Implementation programme]=$G$3)*(T_DataComboFile[Econ3]=$G64))*T_DataComboFile[2022/23 Reduction]*$B$3)","v":0},{"$f":"SUMPRODUCT(((T_DataComboFile[Implementation programme]=$G$3)*(T_DataComboFile[Econ3]=$G64))*T_DataComboFile[2022/23 Increase]*$B$3)","v":0},0,{"$f":"SUMPRODUCT(((T_DataComboFile[Implementation programme]=$G$3)*(T_DataComboFile[Econ3]=$G64))*T_DataComboFile[2023/24 Baseline]*$B$3)","v":0},{"$f":"SUMPRODUCT(((T_DataComboFile[Implementation programme]=$G$3)*(T_DataComboFile[Econ3]=$G64))*T_DataComboFile[2023/24 Reduction]*$B$3)","v":0},{"$f":"SUMPRODUCT(((T_DataComboFile[Implementation programme]=$G$3)*(T_DataComboFile[Econ3]=$G64))*T_DataComboFile[2023/24 Increase]*$B$3)","v":0},0]
[0,0,null,null,null,null,"Total",{"$f":"SUM(H32,H36,H52,H64)","v":0},0,0,0,0,0,0,0,0,0,0,0,0,0,0,0]
[]
[]
[]
[]
[]
[null,null,null,null,null,null,{"$f":"\"IMPACT OF ADJUSTMENTS: \" &UPPER($G$3)","v":"IMPACT OF ADJUSTMENTS: "}]
[]
[null,null,null,null,null,1,"Summary of impact on service delivery due to adjustments"]
[{"$f":"$G$3","v":0},1]
[0,1]
[0,1]
[0,1]
[0,1]
[0,1]
[0,1]
[0,1]
[0,1]
[0,1]
[0,1]
[0,1]
[0,1]
[0,1]
[0,1]
[]
[]
[]
[]
[]
[null,null,null,null,null,2,"Impact of adjustments on performance indicators"]
[{"$f":"$G$3","v":0},2,null,null,null,null,null,"2021/22",null,null,"2022/23",null,null,"2023/24",null,null," Comment",null,null,null,null,"Related MTSF Priority"]
[0,2,null,null,null,null,"Performance indicator","Original target","Revised target","Change","Original target","Revised target","Change","Original target","Revised target","Change"]
[0,2]
[0,2]
[0,2]
[0,2]
[0,2]
[0,2]
[0,2]
[0,2]
[0,2]
[0,2]
[0,2]
[0,2]
[0,2]
[0,2]
[0,2]
[]
[]
[]
[]
[]
[null,null,null,null,null,3,"Impact of adjustments on infrastructure projects"]
[{"$f":"$G$3","v":0},3,null,null,null,null,null,"2021/22",null,null,"2022/23",null,null,"2023/24",null,null," Comment"]
[0,3,null,null,null,null,"Project name","Original amount","Revised amount","Change","Original amount","Revised amount","Change","Original amount","Revised amount","Change"]
[0,3,null,null,null,null,null,null,null,{"$f":"I120-H120","v":0},null,null,{"$f":"L120-K120","v":0},null,null,{"$f":"O120-N120","v":0}]
[0,3,null,null,null,null,null,null,null,0,null,null,0,null,null,0]
[0,3,null,null,null,null,null,null,null,0,null,null,0,null,null,0]
[0,3,null,null,null,null,null,null,null,0,null,null,0,null,null,0]
[0,3,null,null,null,null,null,null,null,0,null,null,0,null,null,0]
[0,3,null,null,null,null,null,null,null,0,null,null,0,null,null,0]
[0,3,null,null,null,null,null,null,null,0,null,null,0,null,null,0]
[0,3,null,null,null,null,null,null,null,0,null,null,0,null,null,0]
[0,3,null,null,null,null,null,null,null,0,null,null,0,null,null,0]
[0,3,null,null,null,null,null,null,null,0,null,null,0,null,null,0]
[0,3,null,null,null,null,null,null,null,0,null,null,0,null,null,0]
[0,3,null,null,null,null,null,null,null,0,null,null,0,null,null,0]
[0,3,null,null,null,null,null,null,null,0,null,null,0,null,null,0]
[0,3,null,null,null,null,null,null,null,0,null,null,0,null,null,0]
[0,3,null,null,null,null,null,null,null,0,null,null,0,null,null,0]
[0,3,null,null,null,null,"Total",{"$f":"SUM(H120:H134)","v":0},0,0,0,0,0,0,0,0]
[]
[]
[]
[]
[]
[null,null,null,null,null,4,"Impact of adjustments on personnel headcount numbers"]
[{"$f":"$G$3","v":0},4,null,null,null,null,null,"2021/22",null,null,"2022/23",null,null,"2023/24",null,null," Comment"]
[0,4,null,null,null,null,"Salary level","Original number","Revised number","Change","Original number","Revised number","Change","Original number","Revised number","Change"]
[0,4,null,null,null,null,1,null,null,{"$f":"I144-H144","v":0},null,null,{"$f":"L144-K144","v":0},null,null,{"$f":"O144-N144","v":0}]
[0,4,null,null,null,null,2,null,null,0,null,null,0,null,null,0]
[0,4,null,null,null,null,3,null,null,0,null,null,0,null,null,0]
[0,4,null,null,null,null,4,null,null,0,null,null,0,null,null,0]
[0,4,null,null,null,null,5,null,null,0,null,null,0,null,null,0]
[0,4,null,null,null,null,6,null,null,0,null,null,0,null,null,0]
[0,4,null,null,null,null,7,null,null,0,null,null,0,null,null,0]
[0,4,null,null,null,null,8,null,null,0,null,null,0,null,null,0]
[0,4,null,null,null,null,9,null,null,0,null,null,0,null,null,0]
[0,4,null,null,null,null,10,null,null,0,null,null,0,null,null,0]
[0,4,null,null,null,null,11,null,null,0,null,null,0,null,null,0]
[0,4,null,null,null,null,12,null,null,0,null,null,0,null,null,0]
[0,4,null,null,null,null,13,null,null,0,null,null,0,null,null,0]
[0,4,null,null,null,null,14,null,null,0,null,null,0,null,null,0]
[0,4,null,null,null,null,15,null,null,0,null,null,0,null,null,0]
[0,4,null,null,null,null,16,null,null,0,null,null,0,null,null,0]
[0,4,null,null,null,null,"Other",null,null,0,null,null,0,null,null,0]
[0,4,null,null,null,null,"Other",null,null,0,null,null,0,null,null,0]
[0,4,null,null,null,null,"Other",null,null,0,null,null,0,null,null,0]
[0,4,null,null,null,null,"Other",null,null,0,null,null,0,null,null,0]
[0,4,null,null,null,null,"Total",{"$f":"SUM(H144:H163)","v":0},0,0,0,0,0,0,0,0]
[]
[]
[]
[]
[]
[null,null,null,null,null,5,"Impact of adjustments by economic classification"]
[{"$f":"$G$3","v":0},5,null,null,null,null,null,"2021/22",null,null,"2022/23",null,null,"2023/24",null,null," Comment"]
[0,5,null,null,null,null,"Salary level","Original number","Revised number","Change","Original number","Revised number","Change","Original number","Revised number","Change"]
[0,5,null,null,null,null,"Current payments",{"$f":"SUM(H174,H175,H182)","v":0},{"$f":"SUM(I174,I175,I182)","v":0},{"$f":"I173-H173","v":0},{"$f":"SUM(K174,K175,K182)","v":0},{"$f":"SUM(L174,L175,L182)","v":0},{"$f":"L173-K173","v":0},{"$f":"SUM(N174,N175,N182)","v":0},{"$f":"SUM(O174,O175,O182)","v":0},{"$f":"O173-N173","v":0}]
[0,5,null,null,null,null,"Compensation of employees",{"$f":"SUMPRODUCT(((T_DataComboFile[Implementation programme]=$G$3)*(T_DataComboFile[Econ3]=$G174))*T_DataComboFile[2021/22 Baseline]*$B$3)","v":0},{"$f":"SUMPRODUCT(((T_DataComboFile[Implementation programme]=$G$3)*(T_DataComboFile[Econ3]=$G174))*T_DataComboFile[2021/22 Revised baseline]*$B$3)","v":0},0,{"$f":"SUMPRODUCT(((T_DataComboFile[Implementation programme]=$G$3)*(T_DataComboFile[Econ3]=$G174))*T_DataComboFile[2022/23 Baseline]*$B$3)","v":0},{"$f":"SUMPRODUCT(((T_DataComboFile[Implementation programme]=$G$3)*(T_DataComboFile[Econ3]=$G174))*T_DataComboFile[2022/23 Revised baseline]*$B$3)","v":0},0,{"$f":"SUMPRODUCT(((T_DataComboFile[Implementation programme]=$G$3)*(T_DataComboFile[Econ3]=$G174))*T_DataComboFile[2023/24 Baseline]*$B$3)","v":0},{"$f":"SUMPRODUCT(((T_DataComboFile[Implementation programme]=$G$3)*(T_DataComboFile[Econ3]=$G174))*T_DataComboFile[2023/24 Revised baseline]*$B$3)","v":0},0]
[0,5,null,null,null,null,"Goods and services",{"$f":"SUMPRODUCT(((T_DataComboFile[Implementation programme]=$G$3)*(T_DataComboFile[Econ3]=$G175))*T_DataComboFile[2021/22 Baseline]*$B$3)","v":0},{"$f":"SUMPRODUCT(((T_DataComboFile[Implementation programme]=$G$3)*(T_DataComboFile[Econ3]=$G175))*T_DataComboFile[2021/22 Revised baseline]*$B$3)","v":0},0,{"$f":"SUMPRODUCT(((T_DataComboFile[Implementation programme]=$G$3)*(T_DataComboFile[Econ3]=$G175))*T_DataComboFile[2022/23 Baseline]*$B$3)","v":0},{"$f":"SUMPRODUCT(((T_DataComboFile[Implementation programme]=$G$3)*(T_DataComboFile[Econ3]=$G175))*T_DataComboFile[2022/23 Revised baseline]*$B$3)","v":0},0,{"$f":"SUMPRODUCT(((T_DataComboFile[Implementation programme]=$G$3)*(T_DataComboFile[Econ3]=$G175))*T_DataComboFile[2023/24 Baseline]*$B$3)","v":0},{"$f":"SUMPRODUCT(((T_DataComboFile[Implementation programme]=$G$3)*(T_DataComboFile[Econ3]=$G175))*T_DataComboFile[2023/24 Revised baseline]*$B$3)","v":0},0]
[0,50,null,null,null,null,"of which:"]
[0,51,null,null,null,null,null,null,null,{"$f":"I177-H177","v":0},null,null,{"$f":"L177-K177","v":0},null,null,0]
[0,51,null,null,null,null,null,null,null,0,null,null,0,null,null,0]
[0,51,null,null,null,null,null,null,null,0,null,null,0,null,null,0]
[0,51,null,null,null,null,null,null,null,0,null,null,0,null,null,0]
[0,51,null,null,null,null,null,null,null,0,null,null,0,null,null,0]
[0,5,null,null,null,null,"Interest and rent on land",{"$f":"SUMPRODUCT(((T_DataComboFile[Implementation programme]=$G$3)*(T_DataComboFile[Econ3]=$G182))*T_DataComboFile[2021/22 Baseline]*$B$3)","v":0},{"$f":"SUMPRODUCT(((T_DataComboFile[Implementation programme]=$G$3)*(T_DataComboFile[Econ3]=$G182))*T_DataComboFile[2021/22 Revised baseline]*$B$3)","v":0},0,{"$f":"SUMPRODUCT(((T_DataComboFile[Implementation programme]=$G$3)*(T_DataComboFile[Econ3]=$G182))*T_DataComboFile[2022/23 Baseline]*$B$3)","v":0},{"$f":"SUMPRODUCT(((T_DataComboFile[Implementation programme]=$G$3)*(T_DataComboFile[Econ3]=$G182))*T_DataComboFile[2022/23 Revised baseline]*$B$3)","v":0},0,{"$f":"SUMPRODUCT(((T_DataComboFile[Implementation programme]=$G$3)*(T_DataComboFile[Econ3]=$G182))*T_DataComboFile[2023/24 Baseline]*$B$3)","v":0},{"$f":"SUMPRODUCT(((T_DataComboFile[Implementation programme]=$G$3)*(T_DataComboFile[Econ3]=$G182))*T_DataComboFile[2023/24 Revised baseline]*$B$3)","v":0},0]
[0,5,null,null,null,null,"Transfers and subsidies",{"$f":"SUM(H184,H185,H197,H198,H199,H206,H207)","v":0},{"$f":"SUM(I184,I185,I197,I198,I199,I206,I207)","v":0},0,{"$f":"SUM(K184,K185,K197,K198,K199,K206,K207)","v":0},0,0,{"$f":"SUM(N184,N185,N197,N198,N199,N206,N207)","v":0},0,0]
[0,5,null,null,null,null,"Provinces and municipalities",{"$f":"SUMPRODUCT(((T_DataComboFile[Implementation programme]=$G$3)*(T_DataComboFile[Econ3]=$G184))*T_DataComboFile[2021/22 Baseline]*$B$3)","v":0},{"$f":"SUMPRODUCT(((T_DataComboFile[Implementation programme]=$G$3)*(T_DataComboFile[Econ3]=$G184))*T_DataComboFile[2021/22 Revised baseline]*$B$3)","v":0},0,{"$f":"SUMPRODUCT(((T_DataComboFile[Implementation programme]=$G$3)*(T_DataComboFile[Econ3]=$G184))*T_DataComboFile[2022/23 Baseline]*$B$3)","v":0},{"$f":"SUMPRODUCT(((T_DataComboFile[Implementation programme]=$G$3)*(T_DataComboFile[Econ3]=$G184))*T_DataComboFile[2022/23 Revised baseline]*$B$3)","v":0},0,{"$f":"SUMPRODUCT(((T_DataComboFile[Implementation programme]=$G$3)*(T_DataComboFile[Econ3]=$G184))*T_DataComboFile[2023/24 Baseline]*$B$3)","v":0},{"$f":"SUMPRODUCT(((T_DataComboFile[Implementation programme]=$G$3)*(T_DataComboFile[Econ3]=$G184))*T_DataComboFile[2023/24 Revised baseline]*$B$3)","v":0},0]
[0,5,null,null,null,null,"Departmental agencies and accounts",{"$f":"SUMPRODUCT(((T_DataComboFile[Implementation programme]=$G$3)*(T_DataComboFile[Econ3]=$G185))*T_DataComboFile[2021/22 Baseline]*$B$3)","v":0},{"$f":"SUMPRODUCT(((T_DataComboFile[Implementation programme]=$G$3)*(T_DataComboFile[Econ3]=$G185))*T_DataComboFile[2021/22 Revised baseline]*$B$3)","v":0},0,{"$f":"SUMPRODUCT(((T_DataComboFile[Implementation programme]=$G$3)*(T_DataComboFile[Econ3]=$G185))*T_DataComboFile[2022/23 Baseline]*$B$3)","v":0},{"$f":"SUMPRODUCT(((T_DataComboFile[Implementation programme]=$G$3)*(T_DataComboFile[Econ3]=$G185))*T_DataComboFile[2022/23 Revised baseline]*$B$3)","v":0},0,{"$f":"SUMPRODUCT(((T_DataComboFile[Implementation programme]=$G$3)*(T_DataComboFile[Econ3]=$G185))*T_DataComboFile[2023/24 Baseline]*$B$3)","v":0},{"$f":"SUMPRODUCT(((T_DataComboFile[Implementation programme]=$G$3)*(T_DataComboFile[Econ3]=$G185))*T_DataComboFile[2023/24 Revised baseline]*$B$3)","v":0},0]
[0,50,null,null,null,null,"of which:"]
[0,52,null,null,null,null,null,null,null,{"$f":"I187-H187","v":0},null,null,{"$f":"L187-K187","v":0},null,null,{"$f":"O187-N187","v":0}]
[0,52,null,null,null,null,null,null,null,0,null,null,0,null,null,0]
[0,52,null,null,null,null,null,null,null,0,null,null,0,null,null,0]
[0,52,null,null,null,null,null,null,null,0,null,null,0,null,null,0]
[0,52,null,null,null,null,null,null,null,0,null,null,0,null,null,0]
[0,52,null,null,null,null,null,null,null,0,null,null,0,null,null,0]
[0,52,null,null,null,null,null,null,null,0,null,null,0,null,null,0]
[0,52,null,null,null,null,null,null,null,0,null,null,0,null,null,0]
[0,52,null,null,null,null,null,null,null,0,null,null,0,null,null,0]
[0,52,null,null,null,null,null,null,null,0,null,null,0,null,null,0]
[0,5,null,null,null,null,"Higher education institutions",{"$f":"SUMPRODUCT(((T_DataComboFile[Implementation programme]=$G$3)*(T_DataComboFile[Econ3]=$G197))*T_DataComboFile[2021/22 Baseline]*$B$3)","v":0},{"$f":"SUMPRODUCT(((T_DataComboFile[Implementation programme]=$G$3)*(T_DataComboFile[Econ3]=$G197))*T_DataComboFile[2021/22 Revised baseline]*$B$3)","v":0},0,{"$f":"SUMPRODUCT(((T_DataComboFile[Implementation programme]=$G$3)*(T_DataComboFile[Econ3]=$G197))*T_DataComboFile[2022/23 Baseline]*$B$3)","v":0},{"$f":"SUMPRODUCT(((T_DataComboFile[Implementation programme]=$G$3)*(T_DataComboFile[Econ3]=$G197))*T_DataComboFile[2022/23 Revised baseline]*$B$3)","v":0},0,{"$f":"SUMPRODUCT(((T_DataComboFile[Implementation programme]=$G$3)*(T_DataComboFile[Econ3]=$G197))*T_DataComboFile[2023/24 Baseline]*$B$3)","v":0},{"$f":"SUMPRODUCT(((T_DataComboFile[Implementation programme]=$G$3)*(T_DataComboFile[Econ3]=$G197))*T_DataComboFile[2023/24 Revised baseline]*$B$3)","v":0},0]
[0,5,null,null,null,null,"Foreign governments and international organisations",{"$f":"SUMPRODUCT(((T_DataComboFile[Implementation programme]=$G$3)*(T_DataComboFile[Econ3]=$G198))*T_DataComboFile[2021/22 Baseline]*$B$3)","v":0},{"$f":"SUMPRODUCT(((T_DataComboFile[Implementation programme]=$G$3)*(T_DataComboFile[Econ3]=$G198))*T_DataComboFile[2021/22 Revised baseline]*$B$3)","v":0},0,{"$f":"SUMPRODUCT(((T_DataComboFile[Implementation programme]=$G$3)*(T_DataComboFile[Econ3]=$G198))*T_DataComboFile[2022/23 Baseline]*$B$3)","v":0},{"$f":"SUMPRODUCT(((T_DataComboFile[Implementation programme]=$G$3)*(T_DataComboFile[Econ3]=$G198))*T_DataComboFile[2022/23 Revised baseline]*$B$3)","v":0},0,{"$f":"SUMPRODUCT(((T_DataComboFile[Implementation programme]=$G$3)*(T_DataComboFile[Econ3]=$G198))*T_DataComboFile[2023/24 Baseline]*$B$3)","v":0},{"$f":"SUMPRODUCT(((T_DataComboFile[Implementation programme]=$G$3)*(T_DataComboFile[Econ3]=$G198))*T_DataComboFile[2023/24 Revised baseline]*$B$3)","v":0},0]
[0,5,null,null,null,null,"Public corporations and private enterprises",{"$f":"SUMPRODUCT(((T_DataComboFile[Implementation programme]=$G$3)*(T_DataComboFile[Econ3]=$G199))*T_DataComboFile[2021/22 Baseline]*$B$3)","v":0},{"$f":"SUMPRODUCT(((T_DataComboFile[Implementation programme]=$G$3)*(T_DataComboFile[Econ3]=$G199))*T_DataComboFile[2021/22 Revised baseline]*$B$3)","v":0},0,{"$f":"SUMPRODUCT(((T_DataComboFile[Implementation programme]=$G$3)*(T_DataComboFile[Econ3]=$G199))*T_DataComboFile[2022/23 Baseline]*$B$3)","v":0},{"$f":"SUMPRODUCT(((T_DataComboFile[Implementation programme]=$G$3)*(T_DataComboFile[Econ3]=$G199))*T_DataComboFile[2022/23 Revised baseline]*$B$3)","v":0},0,{"$f":"SUMPRODUCT(((T_DataComboFile[Implementation programme]=$G$3)*(T_DataComboFile[Econ3]=$G199))*T_DataComboFile[2023/24 Baseline]*$B$3)","v":0},{"$f":"SUMPRODUCT(((T_DataComboFile[Implementation programme]=$G$3)*(T_DataComboFile[Econ3]=$G199))*T_DataComboFile[2023/24 Revised baseline]*$B$3)","v":0},0]
[0,50,null,null,null,null,"of which:"]
[0,53,null,null,null,null,null,null,null,{"$f":"I201-H201","v":0},null,null,{"$f":"L201-K201","v":0},null,null,{"$f":"O201-N201","v":0}]
[0,53,null,null,null,null,null,null,null,0,null,null,0,null,null,0]
[0,53,null,null,null,null,null,null,null,0,null,null,0,null,null,0]
[0,53,null,null,null,null,null,null,null,0,null,null,0,null,null,0]
[0,53,null,null,null,null,null,null,null,0,null,null,0,null,null,0]
[0,5,null,null,null,null,"Non-profit institutions",{"$f":"SUMPRODUCT(((T_DataComboFile[Implementation programme]=$G$3)*(T_DataComboFile[Econ3]=$G206))*T_DataComboFile[2021/22 Baseline]*$B$3)","v":0},{"$f":"SUMPRODUCT(((T_DataComboFile[Implementation programme]=$G$3)*(T_DataComboFile[Econ3]=$G206))*T_DataComboFile[2021/22 Revised baseline]*$B$3)","v":0},0,{"$f":"SUMPRODUCT(((T_DataComboFile[Implementation programme]=$G$3)*(T_DataComboFile[Econ3]=$G206))*T_DataComboFile[2022/23 Baseline]*$B$3)","v":0},{"$f":"SUMPRODUCT(((T_DataComboFile[Implementation programme]=$G$3)*(T_DataComboFile[Econ3]=$G206))*T_DataComboFile[2022/23 Revised baseline]*$B$3)","v":0},0,{"$f":"SUMPRODUCT(((T_DataComboFile[Implementation programme]=$G$3)*(T_DataComboFile[Econ3]=$G206))*T_DataComboFile[2023/24 Baseline]*$B$3)","v":0},{"$f":"SUMPRODUCT(((T_DataComboFile[Implementation programme]=$G$3)*(T_DataComboFile[Econ3]=$G206))*T_DataComboFile[2023/24 Revised baseline]*$B$3)","v":0},0]
[0,5,null,null,null,null,"Households",{"$f":"SUMPRODUCT(((T_DataComboFile[Implementation programme]=$G$3)*(T_DataComboFile[Econ3]=$G207))*T_DataComboFile[2021/22 Baseline]*$B$3)","v":0},{"$f":"SUMPRODUCT(((T_DataComboFile[Implementation programme]=$G$3)*(T_DataComboFile[Econ3]=$G207))*T_DataComboFile[2021/22 Revised baseline]*$B$3)","v":0},0,{"$f":"SUMPRODUCT(((T_DataComboFile[Implementation programme]=$G$3)*(T_DataComboFile[Econ3]=$G207))*T_DataComboFile[2022/23 Baseline]*$B$3)","v":0},{"$f":"SUMPRODUCT(((T_DataComboFile[Implementation programme]=$G$3)*(T_DataComboFile[Econ3]=$G207))*T_DataComboFile[2022/23 Revised baseline]*$B$3)","v":0},0,{"$f":"SUMPRODUCT(((T_DataComboFile[Implementation programme]=$G$3)*(T_DataComboFile[Econ3]=$G207))*T_DataComboFile[2023/24 Baseline]*$B$3)","v":0},{"$f":"SUMPRODUCT(((T_DataComboFile[Implementation programme]=$G$3)*(T_DataComboFile[Econ3]=$G207))*T_DataComboFile[2023/24 Revised baseline]*$B$3)","v":0},0]
[0,5,null,null,null,null,"Payments for capital assets",{"$f":"SUM(H209:H215)","v":0},0,0,0,0,0,0,{"$f":"SUM(O209:O215)","v":0},0]
[0,5,null,null,null,null,"Buildings and other fixed structures",{"$f":"SUMPRODUCT(((T_DataComboFile[Implementation programme]=$G$3)*(T_DataComboFile[Econ3]=$G209))*T_DataComboFile[2021/22 Baseline]*$B$3)","v":0},{"$f":"SUMPRODUCT(((T_DataComboFile[Implementation programme]=$G$3)*(T_DataComboFile[Econ3]=$G209))*T_DataComboFile[2021/22 Revised baseline]*$B$3)","v":0},0,{"$f":"SUMPRODUCT(((T_DataComboFile[Implementation programme]=$G$3)*(T_DataComboFile[Econ3]=$G209))*T_DataComboFile[2022/23 Baseline]*$B$3)","v":0},{"$f":"SUMPRODUCT(((T_DataComboFile[Implementation programme]=$G$3)*(T_DataComboFile[Econ3]=$G209))*T_DataComboFile[2022/23 Revised baseline]*$B$3)","v":0},0,{"$f":"SUMPRODUCT(((T_DataComboFile[Implementation programme]=$G$3)*(T_DataComboFile[Econ3]=$G209))*T_DataComboFile[2023/24 Baseline]*$B$3)","v":0},{"$f":"SUMPRODUCT(((T_DataComboFile[Implementation programme]=$G$3)*(T_DataComboFile[Econ3]=$G209))*T_DataComboFile[2023/24 Revised baseline]*$B$3)","v":0},0]
[0,5,null,null,null,null,"Machinery and equipment",{"$f":"SUMPRODUCT(((T_DataComboFile[Implementation programme]=$G$3)*(T_DataComboFile[Econ3]=$G210))*T_DataComboFile[2021/22 Baseline]*$B$3)","v":0},{"$f":"SUMPRODUCT(((T_DataComboFile[Implementation programme]=$G$3)*(T_DataComboFile[Econ3]=$G210))*T_DataComboFile[2021/22 Revised baseline]*$B$3)","v":0},0,{"$f":"SUMPRODUCT(((T_DataComboFile[Implementation programme]=$G$3)*(T_DataComboFile[Econ3]=$G210))*T_DataComboFile[2022/23 Baseline]*$B$3)","v":0},{"$f":"SUMPRODUCT(((T_DataComboFile[Implementation programme]=$G$3)*(T_DataComboFile[Econ3]=$G210))*T_DataComboFile[2022/23 Revised baseline]*$B$3)","v":0},0,{"$f":"SUMPRODUCT(((T_DataComboFile[Implementation programme]=$G$3)*(T_DataComboFile[Econ3]=$G210))*T_DataComboFile[2023/24 Baseline]*$B$3)","v":0},{"$f":"SUMPRODUCT(((T_DataComboFile[Implementation programme]=$G$3)*(T_DataComboFile[Econ3]=$G210))*T_DataComboFile[2023/24 Revised baseline]*$B$3)","v":0},0]
[0,5,null,null,null,null,"Heritage assets",{"$f":"SUMPRODUCT(((T_DataComboFile[Implementation programme]=$G$3)*(T_DataComboFile[Econ3]=$G211))*T_DataComboFile[2021/22 Baseline]*$B$3)","v":0},{"$f":"SUMPRODUCT(((T_DataComboFile[Implementation programme]=$G$3)*(T_DataComboFile[Econ3]=$G211))*T_DataComboFile[2021/22 Revised baseline]*$B$3)","v":0},0,{"$f":"SUMPRODUCT(((T_DataComboFile[Implementation programme]=$G$3)*(T_DataComboFile[Econ3]=$G211))*T_DataComboFile[2022/23 Baseline]*$B$3)","v":0},{"$f":"SUMPRODUCT(((T_DataComboFile[Implementation programme]=$G$3)*(T_DataComboFile[Econ3]=$G211))*T_DataComboFile[2022/23 Revised baseline]*$B$3)","v":0},0,{"$f":"SUMPRODUCT(((T_DataComboFile[Implementation programme]=$G$3)*(T_DataComboFile[Econ3]=$G211))*T_DataComboFile[2023/24 Baseline]*$B$3)","v":0},{"$f":"SUMPRODUCT(((T_DataComboFile[Implementation programme]=$G$3)*(T_DataComboFile[Econ3]=$G211))*T_DataComboFile[2023/24 Revised baseline]*$B$3)","v":0},0]
[0,5,null,null,null,null,"Specialised military assets",{"$f":"SUMPRODUCT(((T_DataComboFile[Implementation programme]=$G$3)*(T_DataComboFile[Econ3]=$G212))*T_DataComboFile[2021/22 Baseline]*$B$3)","v":0},{"$f":"SUMPRODUCT(((T_DataComboFile[Implementation programme]=$G$3)*(T_DataComboFile[Econ3]=$G212))*T_DataComboFile[2021/22 Revised baseline]*$B$3)","v":0},0,{"$f":"SUMPRODUCT(((T_DataComboFile[Implementation programme]=$G$3)*(T_DataComboFile[Econ3]=$G212))*T_DataComboFile[2022/23 Baseline]*$B$3)","v":0},{"$f":"SUMPRODUCT(((T_DataComboFile[Implementation programme]=$G$3)*(T_DataComboFile[Econ3]=$G212))*T_DataComboFile[2022/23 Revised baseline]*$B$3)","v":0},0,{"$f":"SUMPRODUCT(((T_DataComboFile[Implementation programme]=$G$3)*(T_DataComboFile[Econ3]=$G212))*T_DataComboFile[2023/24 Baseline]*$B$3)","v":0},{"$f":"SUMPRODUCT(((T_DataComboFile[Implementation programme]=$G$3)*(T_DataComboFile[Econ3]=$G212))*T_DataComboFile[2023/24 Revised baseline]*$B$3)","v":0},0]
[0,5,null,null,null,null,"Biological assets",{"$f":"SUMPRODUCT(((T_DataComboFile[Implementation programme]=$G$3)*(T_DataComboFile[Econ3]=$G213))*T_DataComboFile[2021/22 Baseline]*$B$3)","v":0},{"$f":"SUMPRODUCT(((T_DataComboFile[Implementation programme]=$G$3)*(T_DataComboFile[Econ3]=$G213))*T_DataComboFile[2021/22 Revised baseline]*$B$3)","v":0},0,{"$f":"SUMPRODUCT(((T_DataComboFile[Implementation programme]=$G$3)*(T_DataComboFile[Econ3]=$G213))*T_DataComboFile[2022/23 Baseline]*$B$3)","v":0},{"$f":"SUMPRODUCT(((T_DataComboFile[Implementation programme]=$G$3)*(T_DataComboFile[Econ3]=$G213))*T_DataComboFile[2022/23 Revised baseline]*$B$3)","v":0},0,{"$f":"SUMPRODUCT(((T_DataComboFile[Implementation programme]=$G$3)*(T_DataComboFile[Econ3]=$G213))*T_DataComboFile[2023/24 Baseline]*$B$3)","v":0},{"$f":"SUMPRODUCT(((T_DataComboFile[Implementation programme]=$G$3)*(T_DataComboFile[Econ3]=$G213))*T_DataComboFile[2023/24 Revised baseline]*$B$3)","v":0},0]
[0,5,null,null,null,null,"Land and sub-soil assets",{"$f":"SUMPRODUCT(((T_DataComboFile[Implementation programme]=$G$3)*(T_DataComboFile[Econ3]=$G214))*T_DataComboFile[2021/22 Baseline]*$B$3)","v":0},{"$f":"SUMPRODUCT(((T_DataComboFile[Implementation programme]=$G$3)*(T_DataComboFile[Econ3]=$G214))*T_DataComboFile[2021/22 Revised baseline]*$B$3)","v":0},0,{"$f":"SUMPRODUCT(((T_DataComboFile[Implementation programme]=$G$3)*(T_DataComboFile[Econ3]=$G214))*T_DataComboFile[2022/23 Baseline]*$B$3)","v":0},{"$f":"SUMPRODUCT(((T_DataComboFile[Implementation programme]=$G$3)*(T_DataComboFile[Econ3]=$G214))*T_DataComboFile[2022/23 Revised baseline]*$B$3)","v":0},0,{"$f":"SUMPRODUCT(((T_DataComboFile[Implementation programme]=$G$3)*(T_DataComboFile[Econ3]=$G214))*T_DataComboFile[2023/24 Baseline]*$B$3)","v":0},{"$f":"SUMPRODUCT(((T_DataComboFile[Implementation programme]=$G$3)*(T_DataComboFile[Econ3]=$G214))*T_DataComboFile[2023/24 Revised baseline]*$B$3)","v":0},0]
[0,5,null,null,null,null,"Software and other intangible assets",{"$f":"SUMPRODUCT(((T_DataComboFile[Implementation programme]=$G$3)*(T_DataComboFile[Econ3]=$G215))*T_DataComboFile[2021/22 Baseline]*$B$3)","v":0},{"$f":"SUMPRODUCT(((T_DataComboFile[Implementation programme]=$G$3)*(T_DataComboFile[Econ3]=$G215))*T_DataComboFile[2021/22 Revised baseline]*$B$3)","v":0},0,{"$f":"SUMPRODUCT(((T_DataComboFile[Implementation programme]=$G$3)*(T_DataComboFile[Econ3]=$G215))*T_DataComboFile[2022/23 Baseline]*$B$3)","v":0},{"$f":"SUMPRODUCT(((T_DataComboFile[Implementation programme]=$G$3)*(T_DataComboFile[Econ3]=$G215))*T_DataComboFile[2022/23 Revised baseline]*$B$3)","v":0},0,{"$f":"SUMPRODUCT(((T_DataComboFile[Implementation programme]=$G$3)*(T_DataComboFile[Econ3]=$G215))*T_DataComboFile[2023/24 Baseline]*$B$3)","v":0},{"$f":"SUMPRODUCT(((T_DataComboFile[Implementation programme]=$G$3)*(T_DataComboFile[Econ3]=$G215))*T_DataComboFile[2023/24 Revised baseline]*$B$3)","v":0},0]
[0,5,null,null,null,null,"Payments for financial assets",{"$f":"SUMPRODUCT(((T_DataComboFile[Implementation programme]=$G$3)*(T_DataComboFile[Econ3]=$G216))*T_DataComboFile[2021/22 Baseline]*$B$3)","v":0},{"$f":"SUMPRODUCT(((T_DataComboFile[Implementation programme]=$G$3)*(T_DataComboFile[Econ3]=$G216))*T_DataComboFile[2021/22 Revised baseline]*$B$3)","v":0},0,{"$f":"SUMPRODUCT(((T_DataComboFile[Implementation programme]=$G$3)*(T_DataComboFile[Econ3]=$G216))*T_DataComboFile[2022/23 Baseline]*$B$3)","v":0},{"$f":"SUMPRODUCT(((T_DataComboFile[Implementation programme]=$G$3)*(T_DataComboFile[Econ3]=$G216))*T_DataComboFile[2022/23 Revised baseline]*$B$3)","v":0},0,{"$f":"SUMPRODUCT(((T_DataComboFile[Implementation programme]=$G$3)*(T_DataComboFile[Econ3]=$G216))*T_DataComboFile[2023/24 Baseline]*$B$3)","v":0},{"$f":"SUMPRODUCT(((T_DataComboFile[Implementation programme]=$G$3)*(T_DataComboFile[Econ3]=$G216))*T_DataComboFile[2023/24 Revised baseline]*$B$3)","v":0},0]
[0,5,null,null,null,null,"Total",{"$f":"SUM(H173,H183,H208,H216)","v":0},0,0,0,0,0,0,{"$f":"SUM(O173,O183,O208,O216)","v":0},0]
[]
[null,null,null,null,null,null,null,{"$f":"L65-H217","v":0},{"$f":"O65-I217","v":0},null,{"$f":"P65-K217","v":0},{"$f":"S65-L217","v":0},null,{"$f":"T65-N217","v":0},{"$f":"W65-O217","v":0}]

{"sheet":"IP16","index":25,"n_rows":219,"n_cols":23,"rows_kept":219,"cut":false,"hidden":false,"merged":[[70,6,70,17],[73,6,87,17],[94,16,94,20],[94,21,94,23],[95,16,95,20],[95,21,95,23],[99,16,99,20],[99,21,99,23],[100,16,100,20],[100,21,100,23],[101,16,101,20],[101,21,101,23],[96,16,96,20],[96,21,96,23],[97,16,97,20],[97,21,97,23],[98,16,98,20],[98,21,98,23],[105,16,105,20],[105,21,105,23],[106,16,106,20],[106,21,106,23],[107,16,107,20],[107,21,107,23],[102,16,102,20],[102,21,102,23],[103,16,103,20],[103,21,103,23],[104,16,104,20],[104,21,104,23],[117,16,117,20],[118,16,118,20],[119,16,119,20],[120,16,120,20],[121,16,121,20],[122,16,122,20],[108,16,108,20],[108,21,108,23],[109,16,109,20],[109,21,109,23],[110,16,110,20],[110,21,110,23],[129,16,129,20],[130,16,130,20],[131,16,131,20],[132,16,132,20],[133,16,133,20],[141,16,141,20],[123,16,123,20],[124,16,124,20],[125,16,125,20],[126,16,126,20],[127,16,127,20],[128,16,128,20],[174,16,174,20],[175,16,175,20],[176,16,176,20],[177,16,177,20],[178,16,178,20],[179,16,179,20],[142,16,142,20],[143,16,162,20],[170,16,170,20],[171,16,171,20],[172,16,172,20],[173,16,173,20],[186,16,186,20],[187,16,187,20],[188,16,188,20],[189,16,189,20],[190,16,190,20],[191,16,191,20],[180,16,180,20],[181,16,181,20],[182,16,182,20],[183,16,183,20],[184,16,184,20],[185,16,185,20],[198,16,198,20],[199,16,199,20],[200,16,200,20],[201,16,201,20],[202,16,202,20],[203,16,203,20],[192,16,192,20],[193,16,193,20],[194,16,194,20],[195,16,195,20],[196,16,196,20],[197,16,197,20],[210,16,210,20],[211,16,211,20],[212,16,212,20],[213,16,213,20],[214,16,214,20],[215,16,215,20],[204,16,204,20],[205,16,205,20],[206,16,206,20],[207,16,207,20],[208,16,208,20],[209,16,209,20]]}
[]
[null,null,null,null,null,null,"Implementation programme:"]
[null,{"$f":"IF(G3=\"\",0,1)","v":0},null,null,null,16,null,"… select from dropdown list"]
[null,null,null,null,null,null,null,null,null,null,null,null,"Growth"]
[null,null,null,null,null,null,"Quick view","2020/21","2021/22","2022/23","2023/24","Trend","2021/22","2022/23","2023/24","Ave Ann",null,"2020/21","2021/22","2022/23","2023/24"]
[null,null,null,null,null,null,"Compensation of employees",{"$f":"SUMPRODUCT(($G$32:$G$65=$G6)*($K$32:$K$65))","v":0},{"$f":"SUMPRODUCT(($G$32:$G$65=$G6)*($O$32:$O$65))","v":0},{"$f":"SUMPRODUCT(($G$32:$G$65=$G6)*($S$32:$S$65))","v":0},{"$f":"SUMPRODUCT(($G$32:$G$65=$G6)*($W$32:$W$65))","v":0},null,{"$f":"IFERROR(I6/H6-1,0)","v":0},0,0,{"$f":"IFERROR(((K6/H6)^(1/3)-1),0)","v":0}]
[null,null,null,null,null,null,"Goods and services",{"$f":"SUMPRODUCT(($G$32:$G$65=$G7)*($K$32:$K$65))","v":0},{"$f":"SUMPRODUCT(($G$32:$G$65=$G7)*($O$32:$O$65))","v":0},{"$f":"SUMPRODUCT(($G$32:$G$65=$G7)*($S$32:$S$65))","v":0},{"$f":"SUMPRODUCT(($G$32:$G$65=$G7)*($W$32:$W$65))","v":0},null,0,0,0,0]
[null,null,null,null,null,null,"Transfers and subsidies",{"$f":"SUMPRODUCT(($G$32:$G$65=$G8)*($K$32:$K$65))","v":0},{"$f":"SUMPRODUCT(($G$32:$G$65=$G8)*($O$32:$O$65))","v":0},{"$f":"SUMPRODUCT(($G$32:$G$65=$G8)*($S$32:$S$65))","v":0},{"$f":"SUMPRODUCT(($G$32:$G$65=$G8)*($W$32:$W$65))","v":0},null,0,0,0,0]
[null,null,null,null,null,null,"Payments for capital assets",{"$f":"SUMPRODUCT(($G$32:$G$65=$G9)*($K$32:$K$65))","v":0},{"$f":"SUMPRODUCT(($G$32:$G$65=$G9)*($O$32:$O$65))","v":0},{"$f":"SUMPRODUCT(($G$32:$G$65=$G9)*($S$32:$S$65))","v":0},{"$f":"SUMPRODUCT(($G$32:$G$65=$G9)*($W$32:$W$65))","v":0},null,0,0,0,0]
[null,null,null,null,null,null,"Total",{"$f":"SUMPRODUCT(($G$32:$G$65=$G10)*($K$32:$K$65))","v":0},{"$f":"SUMPRODUCT(($G$32:$G$65=$G10)*($O$32:$O$65))","v":0},{"$f":"SUMPRODUCT(($G$32:$G$65=$G10)*($S$32:$S$65))","v":0},{"$f":"SUMPRODUCT(($G$32:$G$65=$G10)*($W$32:$W$65))","v":0},null,0,0,0,0]
[null,null,null,null,null,null,"Composition of spending (% of Total)"]
[null,null,null,null,null,null,"Compensation of employees",{"$f":"IFERROR(H6/H$10,\"\")","v":""},"","","",null,null,null,null,null,null,{"$f":"IF(H12>0.0595,H12,\"\")","v":""},"","",""]
[null,null,null,null,null,null,"Goods and services","","","","",null,null,null,null,null,null,"","","",""]
[null,null,null,null,null,null,"Transfers and subsidies","","","","",null,null,null,null,null,null,"","","",""]
[null,null,null,null,null,null,"Payments for capital assets","","","","",null,null,null,null,null,null,"","","",""]
[]
[null,null,null,null,null,null,"Division of Revenue","2020/21","2021/22","2022/23","2023/24","Trend","2021/22","2022/23","2023/24","Ave Ann"]
[{"$f":"$G$3","v":0},"NAT",null,null,null,null,"National",{"$f":"SUMPRODUCT(((T_DataComboFile[Implementation programme]=$G$3)*(T_DataComboFile[DOR]=$B18))*T_DataComboFile[2020/21 Revised])","v":2331086},{"$f":"SUMPRODUCT(((T_DataComboFile[Implementation programme]=$G$3)*(T_DataComboFile[DOR]=$B18))*T_DataComboFile[2021/22 Revised baseline])","v":2583809},{"$f":"SUMPRODUCT(((T_DataComboFile[Implementation programme]=$G$3)*(T_DataComboFile[DOR]=$B18))*T_DataComboFile[2022/23 Revised baseline])","v":2617960},{"$f":"SUMPRODUCT(((T_DataComboFile[Implementation programme]=$G$3)*(T_DataComboFile[DOR]=$B18))*T_DataComboFile[2023/24 Revised baseline])","v":2733345},null,{"$f":"IFERROR(I18/H18-1,0)","v":0.10841427557799244},{"$f":"IFERROR(J18/I18-1,0)","v":1.3217308245307535E-2},{"$f":"IFERROR(K18/J18-1,0)","v":4.4074393802808309E-2},{"$f":"IFERROR(((K18/H18)^(1/3)-1),0)","v":5.449708876349435E-2}]
[0,null,null,null,null,null,"Provincial",{"$f":"SUM(H20:H21)","v":0},0,0,0,null,0,0,0,0]
[0,"PES",null,null,null,null,"Provincial equitable share",{"$f":"SUMPRODUCT(((T_DataComboFile[Implementation programme]=$G$3)*(T_DataComboFile[DOR]=$B20))*T_DataComboFile[2020/21 Revised])","v":0},{"$f":"SUMPRODUCT(((T_DataComboFile[Implementation programme]=$G$3)*(T_DataComboFile[DOR]=$B20))*T_DataComboFile[2021/22 Revised baseline])","v":0},{"$f":"SUMPRODUCT(((T_DataComboFile[Implementation programme]=$G$3)*(T_DataComboFile[DOR]=$B20))*T_DataComboFile[2022/23 Revised baseline])","v":0},{"$f":"SUMPRODUCT(((T_DataComboFile[Implementation programme]=$G$3)*(T_DataComboFile[DOR]=$B20))*T_DataComboFile[2023/24 Revised baseline])","v":0},null,{"$f":"IFERROR(I20/H20-1,0)","v":0},0,0,{"$f":"IFERROR(((K20/H20)^(1/3)-1),0)","v":0}]
[0,"PCG",null,null,null,null,"Provincial conditional grants",{"$f":"SUMPRODUCT(((T_DataComboFile[Implementation programme]=$G$3)*(T_DataComboFile[DOR]=$B21))*T_DataComboFile[2020/21 Revised])","v":0},{"$f":"SUMPRODUCT(((T_DataComboFile[Implementation programme]=$G$3)*(T_DataComboFile[DOR]=$B21))*T_DataComboFile[2021/22 Revised baseline])","v":0},{"$f":"SUMPRODUCT(((T_DataComboFile[Implementation programme]=$G$3)*(T_DataComboFile[DOR]=$B21))*T_DataComboFile[2022/23 Revised baseline])","v":0},{"$f":"SUMPRODUCT(((T_DataComboFile[Implementation programme]=$G$3)*(T_DataComboFile[DOR]=$B21))*T_DataComboFile[2023/24 Revised baseline])","v":0},null,0,0,0,0]
[0,null,null,null,null,null,"Local government",{"$f":"SUM(H23:H25)","v":0},0,0,0,null,{"$f":"IFERROR(I22/H22-1,0)","v":0},{"$f":"IFERROR(J22/I22-1,0)","v":0},{"$f":"IFERROR(K22/J22-1,0)","v":0},{"$f":"IFERROR(((K22/H22)^(1/3)-1),0)","v":0}]
[0,"LES",null,null,null,null,"Local equitable share",{"$f":"SUMPRODUCT(((T_DataComboFile[Implementation programme]=$G$3)*(T_DataComboFile[DOR]=$B23))*T_DataComboFile[2020/21 Revised])","v":0},{"$f":"SUMPRODUCT(((T_DataComboFile[Implementation programme]=$G$3)*(T_DataComboFile[DOR]=$B23))*T_DataComboFile[2021/22 Revised baseline])","v":0},{"$f":"SUMPRODUCT(((T_DataComboFile[Implementation programme]=$G$3)*(T_DataComboFile[DOR]=$B23))*T_DataComboFile[2022/23 Revised baseline])","v":0},{"$f":"SUMPRODUCT(((T_DataComboFile[Implementation programme]=$G$3)*(T_DataComboFile[DOR]=$B23))*T_DataComboFile[2023/24 Revised baseline])","v":0},null,{"$f":"IFERROR(I23/H23-1,0)","v":0},0,0,{"$f":"IFERROR(((K23/H23)^(1/3)-1),0)","v":0}]
[0,"LCG",null,null,null,null,"Local conditional grants",{"$f":"SUMPRODUCT(((T_DataComboFile[Implementation programme]=$G$3)*(T_DataComboFile[DOR]=$B24))*T_DataComboFile[2020/21 Revised])","v":0},{"$f":"SUMPRODUCT(((T_DataComboFile[Implementation programme]=$G$3)*(T_DataComboFile[DOR]=$B24))*T_DataComboFile[2021/22 Revised baseline])","v":0},{"$f":"SUMPRODUCT(((T_DataComboFile[Implementation programme]=$G$3)*(T_DataComboFile[DOR]=$B24))*T_DataComboFile[2022/23 Revised baseline])","v":0},{"$f":"SUMPRODUCT(((T_DataComboFile[Implementation programme]=$G$3)*(T_DataComboFile[DOR]=$B24))*T_DataComboFile[2023/24 Revised baseline])","v":0},null,0,0,0,0]
[0,"GFL",null,null,null,null,"General fuel levy ",{"$f":"SUMPRODUCT(((T_DataComboFile[Implementation programme]=$G$3)*(T_DataComboFile[DOR]=$B25))*T_DataComboFile[2020/21 Revised])","v":0},{"$f":"SUMPRODUCT(((T_DataComboFile[Implementation programme]=$G$3)*(T_DataComboFile[DOR]=$B25))*T_DataComboFile[2021/22 Revised baseline])","v":0},{"$f":"SUMPRODUCT(((T_DataComboFile[Implementation programme]=$G$3)*(T_DataComboFile[DOR]=$B25))*T_DataComboFile[2022/23 Revised baseline])","v":0},{"$f":"SUMPRODUCT(((T_DataComboFile[Implementation programme]=$G$3)*(T_DataComboFile[DOR]=$B25))*T_DataComboFile[2023/24 Revised baseline])","v":0},null,0,0,0,0]
[]
[]
[null,null,null,null,null,null,{"$f":"G3","v":0}]
[{"$f":"$G$3","v":0},0,null,null,null,null,null,"2017/18","2018/19","2019/20","2020/21","2021/22",null,null,null,"2022/23",null,null,null,"2023/24"]
[{"$f":"$G$3","v":0},0,null,null,null,null,"Rand thousand","Audited outcome","Audited outcome","Pre-audited outcome","Budget","Baseline","Decrease","Increase","Revised baseline","Baseline","Decrease","Increase","Revised baseline","Baseline","Decrease","Increase","Revised baseline"]
[0,0,null,null,null,null,"Economic classification"]
[0,0,null,null,null,null,"Current payments",{"$f":"SUM(H33:H35)","v":0},0,0,0,0,0,0,0,0,0,0,0,0,0,0,0]
[0,0,null,null,null,null,"Compensation of employees",{"$f":"SUMPRODUCT(((T_DataComboFile[Implementation programme]=$G$3)*(T_DataComboFile[Econ3]=$G33))*T_DataComboFile[2017/18]*$B$3)","v":0},{"$f":"SUMPRODUCT(((T_DataComboFile[Implementation programme]=$G$3)*(T_DataComboFile[Econ3]=$G33))*T_DataComboFile[2018/19]*$B$3)","v":0},{"$f":"SUMPRODUCT(((T_DataComboFile[Implementation programme]=$G$3)*(T_DataComboFile[Econ3]=$G33))*T_DataComboFile[2019/20 Revised estimate]*$B$3)","v":0},{"$f":"SUMPRODUCT(((T_DataComboFile[Implementation programme]=$G$3)*(T_DataComboFile[Econ3]=$G33))*T_DataComboFile[2020/21 Revised]*$B$3)","v":0},{"$f":"SUMPRODUCT(((T_DataComboFile[Implementation programme]=$G$3)*(T_DataComboFile[Econ3]=$G33))*T_DataComboFile[2021/22 Baseline]*$B$3)","v":0},{"$f":"SUMPRODUCT(((T_DataComboFile[Implementation programme]=$G$3)*(T_DataComboFile[Econ3]=$G33))*T_DataComboFile[2021/22 Reduction]*$B$3)","v":0},{"$f":"SUMPRODUCT(((T_DataComboFile[Implementation programme]=$G$3)*(T_DataComboFile[Econ3]=$G33))*T_DataComboFile[2021/22 Increase]*$B$3)","v":0},{"$f":"L33+M33+N33","v":0},{"$f":"SUMPRODUCT(((T_DataComboFile[Implementation programme]=$G$3)*(T_DataComboFile[Econ3]=$G33))*T_DataComboFile[2022/23 Baseline]*$B$3)","v":0},{"$f":"SUMPRODUCT(((T_DataComboFile[Implementation programme]=$G$3)*(T_DataComboFile[Econ3]=$G33))*T_DataComboFile[2022/23 Reduction]*$B$3)","v":0},{"$f":"SUMPRODUCT(((T_DataComboFile[Implementation programme]=$G$3)*(T_DataComboFile[Econ3]=$G33))*T_DataComboFile[2022/23 Increase]*$B$3)","v":0},{"$f":"P33+Q33+R33","v":0},{"$f":"SUMPRODUCT(((T_DataComboFile[Implementation programme]=$G$3)*(T_DataComboFile[Econ3]=$G33))*T_DataComboFile[2023/24 Baseline]*$B$3)","v":0},{"$f":"SUMPRODUCT(((T_DataComboFile[Implementation programme]=$G$3)*(T_DataComboFile[Econ3]=$G33))*T_DataComboFile[2023/24 Reduction]*$B$3)","v":0},{"$f":"SUMPRODUCT(((T_DataComboFile[Implementation programme]=$G$3)*(T_DataComboFile[Econ3]=$G33))*T_DataComboFile[2023/24 Increase]*$B$3)","v":0},{"$f":"T33+U33+V33","v":0}]
[0,0,null,null,null,null,"Goods and services",{"$f":"SUMPRODUCT(((T_DataComboFile[Implementation programme]=$G$3)*(T_DataComboFile[Econ3]=$G34))*T_DataComboFile[2017/18]*$B$3)","v":0},{"$f":"SUMPRODUCT(((T_DataComboFile[Implementation programme]=$G$3)*(T_DataComboFile[Econ3]=$G34))*T_DataComboFile[2018/19]*$B$3)","v":0},{"$f":"SUMPRODUCT(((T_DataComboFile[Implementation programme]=$G$3)*(T_DataComboFile[Econ3]=$G34))*T_DataComboFile[2019/20 Revised estimate]*$B$3)","v":0},{"$f":"SUMPRODUCT(((T_DataComboFile[Implementation programme]=$G$3)*(T_DataComboFile[Econ3]=$G34))*T_DataComboFile[2020/21 Revised]*$B$3)","v":0},{"$f":"SUMPRODUCT(((T_DataComboFile[Implementation programme]=$G$3)*(T_DataComboFile[Econ3]=$G34))*T_DataComboFile[2021/22 Baseline]*$B$3)","v":0},{"$f":"SUMPRODUCT(((T_DataComboFile[Implementation programme]=$G$3)*(T_DataComboFile[Econ3]=$G34))*T_DataComboFile[2021/22 Reduction]*$B$3)","v":0},{"$f":"SUMPRODUCT(((T_DataComboFile[Implementation programme]=$G$3)*(T_DataComboFile[Econ3]=$G34))*T_DataComboFile[2021/22 Increase]*$B$3)","v":0},0,{"$f":"SUMPRODUCT(((T_DataComboFile[Implementation programme]=$G$3)*(T_DataComboFile[Econ3]=$G34))*T_DataComboFile[2022/23 Baseline]*$B$3)","v":0},{"$f":"SUMPRODUCT(((T_DataComboFile[Implementation programme]=$G$3)*(T_DataComboFile[Econ3]=$G34))*T_DataComboFile[2022/23 Reduction]*$B$3)","v":0},{"$f":"SUMPRODUCT(((T_DataComboFile[Implementation programme]=$G$3)*(T_DataComboFile[Econ3]=$G34))*T_DataComboFile[2022/23 Increase]*$B$3)","v":0},0,{"$f":"SUMPRODUCT(((T_DataComboFile[Implementation programme]=$G$3)*(T_DataComboFile[Econ3]=$G34))*T_DataComboFile[2023/24 Baseline]*$B$3)","v":0},{"$f":"SUMPRODUCT(((T_DataComboFile[Implementation programme]=$G$3)*(T_DataComboFile[Econ3]=$G34))*T_DataComboFile[2023/24 Reduction]*$B$3)","v":0},{"$f":"SUMPRODUCT(((T_DataComboFile[Implementation programme]=$G$3)*(T_DataComboFile[Econ3]=$G34))*T_DataComboFile[2023/24 Increase]*$B$3)","v":0},0]
[0,0,null,null,null,null,"Interest and rent on land",{"$f":"SUMPRODUCT(((T_DataComboFile[Implementation programme]=$G$3)*(T_DataComboFile[Econ3]=$G35))*T_DataComboFile[2017/18]*$B$3)","v":0},{"$f":"SUMPRODUCT(((T_DataComboFile[Implementation programme]=$G$3)*(T_DataComboFile[Econ3]=$G35))*T_DataComboFile[2018/19]*$B$3)","v":0},{"$f":"SUMPRODUCT(((T_DataComboFile[Implementation programme]=$G$3)*(T_DataComboFile[Econ3]=$G35))*T_DataComboFile[2019/20 Revised estimate]*$B$3)","v":0},{"$f":"SUMPRODUCT(((T_DataComboFile[Implementation programme]=$G$3)*(T_DataComboFile[Econ3]=$G35))*T_DataComboFile[2020/21 Revised]*$B$3)","v":0},{"$f":"SUMPRODUCT(((T_DataComboFile[Implementation programme]=$G$3)*(T_DataComboFile[Econ3]=$G35))*T_DataComboFile[2021/22 Baseline]*$B$3)","v":0},{"$f":"SUMPRODUCT(((T_DataComboFile[Implementation programme]=$G$3)*(T_DataComboFile[Econ3]=$G35))*T_DataComboFile[2021/22 Reduction]*$B$3)","v":0},{"$f":"SUMPRODUCT(((T_DataComboFile[Implementation programme]=$G$3)*(T_DataComboFile[Econ3]=$G35))*T_DataComboFile[2021/22 Increase]*$B$3)","v":0},0,{"$f":"SUMPRODUCT(((T_DataComboFile[Implementation programme]=$G$3)*(T_DataComboFile[Econ3]=$G35))*T_DataComboFile[2022/23 Baseline]*$B$3)","v":0},{"$f":"SUMPRODUCT(((T_DataComboFile[Implementation programme]=$G$3)*(T_DataComboFile[Econ3]=$G35))*T_DataComboFile[2022/23 Reduction]*$B$3)","v":0},{"$f":"SUMPRODUCT(((T_DataComboFile[Implementation programme]=$G$3)*(T_DataComboFile[Econ3]=$G35))*T_DataComboFile[2022/23 Increase]*$B$3)","v":0},0,{"$f":"SUMPRODUCT(((T_DataComboFile[Implementation programme]=$G$3)*(T_DataComboFile[Econ3]=$G35))*T_DataComboFile[2023/24 Baseline]*$B$3)","v":0},{"$f":"SUMPRODUCT(((T_DataComboFile[Implementation programme]=$G$3)*(T_DataComboFile[Econ3]=$G35))*T_DataComboFile[2023/24 Reduction]*$B$3)","v":0},{"$f":"SUMPRODUCT(((T_DataComboFile[Implementation programme]=$G$3)*(T_DataComboFile[Econ3]=$G35))*T_DataComboFile[2023/24 Increase]*$B$3)","v":0},0]
[0,0,null,null,null,null,"Transfers and subsidies",{"$f":"SUM(H37,H40,H43:H45,H48:H49)","v":0},0,0,0,0,0,0,0,0,0,0,0,0,0,0,0]
[0,0,null,null,null,null,"Provinces and municipalities",{"$f":"SUM(H38:H39)","v":0},0,0,0,0,0,0,0,0,0,0,0,0,0,0,0]
[0,0,null,null,null,null,"Provinces",{"$f":"SUMPRODUCT(((T_DataComboFile[Implementation programme]=$G$3)*(T_DataComboFile[Econ4]=$G38))*T_DataComboFile[2017/18]*$B$3)","v":0},{"$f":"SUMPRODUCT(((T_DataComboFile[Implementation programme]=$G$3)*(T_DataComboFile[Econ4]=$G38))*T_DataComboFile[2018/19]*$B$3)","v":0},{"$f":"SUMPRODUCT(((T_DataComboFile[Implementation programme]=$G$3)*(T_DataComboFile[Econ4]=$G38))*T_DataComboFile[2019/20 Revised estimate]*$B$3)","v":0},{"$f":"SUMPRODUCT(((T_DataComboFile[Implementation programme]=$G$3)*(T_DataComboFile[Econ4]=$G38))*T_DataComboFile[2020/21 Revised]*$B$3)","v":0},{"$f":"SUMPRODUCT(((T_DataComboFile[Implementation programme]=$G$3)*(T_DataComboFile[Econ4]=$G38))*T_DataComboFile[2021/22 Baseline]*$B$3)","v":0},{"$f":"SUMPRODUCT(((T_DataComboFile[Implementation programme]=$G$3)*(T_DataComboFile[Econ4]=$G38))*T_DataComboFile[2021/22 Reduction]*$B$3)","v":0},{"$f":"SUMPRODUCT(((T_DataComboFile[Implementation programme]=$G$3)*(T_DataComboFile[Econ4]=$G38))*T_DataComboFile[2021/22 Increase]*$B$3)","v":0},{"$f":"L38+M38+N38","v":0},{"$f":"SUMPRODUCT(((T_DataComboFile[Implementation programme]=$G$3)*(T_DataComboFile[Econ4]=$G38))*T_DataComboFile[2022/23 Baseline]*$B$3)","v":0},{"$f":"SUMPRODUCT(((T_DataComboFile[Implementation programme]=$G$3)*(T_DataComboFile[Econ4]=$G38))*T_DataComboFile[2022/23 Reduction]*$B$3)","v":0},{"$f":"SUMPRODUCT(((T_DataComboFile[Implementation programme]=$G$3)*(T_DataComboFile[Econ4]=$G38))*T_DataComboFile[2022/23 Increase]*$B$3)","v":0},{"$f":"P38+Q38+R38","v":0},{"$f":"SUMPRODUCT(((T_DataComboFile[Implementation programme]=$G$3)*(T_DataComboFile[Econ4]=$G38))*T_DataComboFile[2023/24 Baseline]*$B$3)","v":0},{"$f":"SUMPRODUCT(((T_DataComboFile[Implementation programme]=$G$3)*(T_DataComboFile[Econ4]=$G38))*T_DataComboFile[2023/24 Reduction]*$B$3)","v":0},{"$f":"SUMPRODUCT(((T_DataComboFile[Implementation programme]=$G$3)*(T_DataComboFile[Econ4]=$G38))*T_DataComboFile[2023/24 Increase]*$B$3)","v":0},{"$f":"T38+U38+V38","v":0}]
[0,0,null,null,null,null,"Municipalities",{"$f":"SUMPRODUCT(((T_DataComboFile[Implementation programme]=$G$3)*(T_DataComboFile[Econ4]=$G39))*T_DataComboFile[2017/18]*$B$3)","v":0},{"$f":"SUMPRODUCT(((T_DataComboFile[Implementation programme]=$G$3)*(T_DataComboFile[Econ4]=$G39))*T_DataComboFile[2018/19]*$B$3)","v":0},{"$f":"SUMPRODUCT(((T_DataComboFile[Implementation programme]=$G$3)*(T_DataComboFile[Econ4]=$G39))*T_DataComboFile[2019/20 Revised estimate]*$B$3)","v":0},{"$f":"SUMPRODUCT(((T_DataComboFile[Implementation programme]=$G$3)*(T_DataComboFile[Econ4]=$G39))*T_DataComboFile[2020/21 Revised]*$B$3)","v":0},{"$f":"SUMPRODUCT(((T_DataComboFile[Implementation programme]=$G$3)*(T_DataComboFile[Econ4]=$G39))*T_DataComboFile[2021/22 Baseline]*$B$3)","v":0},{"$f":"SUMPRODUCT(((T_DataComboFile[Implementation programme]=$G$3)*(T_DataComboFile[Econ4]=$G39))*T_DataComboFile[2021/22 Reduction]*$B$3)","v":0},{"$f":"SUMPRODUCT(((T_DataComboFile[Implementation programme]=$G$3)*(T_DataComboFile[Econ4]=$G39))*T_DataComboFile[2021/22 Increase]*$B$3)","v":0},0,{"$f":"SUMPRODUCT(((T_DataComboFile[Implementation programme]=$G$3)*(T_DataComboFile[Econ4]=$G39))*T_DataComboFile[2022/23 Baseline]*$B$3)","v":0},{"$f":"SUMPRODUCT(((T_DataComboFile[Implementation programme]=$G$3)*(T_DataComboFile[Econ4]=$G39))*T_DataComboFile[2022/23 Reduction]*$B$3)","v":0},{"$f":"SUMPRODUCT(((T_DataComboFile[Implementation programme]=$G$3)*(T_DataComboFile[Econ4]=$G39))*T_DataComboFile[2022/23 Increase]*$B$3)","v":0},0,{"$f":"SUMPRODUCT(((T_DataComboFile[Implementation programme]=$G$3)*(T_DataComboFile[Econ4]=$G39))*T_DataComboFile[2023/24 Baseline]*$B$3)","v":0},{"$f":"SUMPRODUCT(((T_DataComboFile[Implementation programme]=$G$3)*(T_DataComboFile[Econ4]=$G39))*T_DataComboFile[2023/24 Reduction]*$B$3)","v":0},{"$f":"SUMPRODUCT(((T_DataComboFile[Implementation programme]=$G$3)*(T_DataComboFile[Econ4]=$G39))*T_DataComboFile[2023/24 Increase]*$B$3)","v":0},0]
[0,0,null,null,null,null,"Departmental agencies and accounts",{"$f":"SUM(H41:H42)","v":0},0,0,0,0,0,0,0,0,0,0,0,0,0,0,0]
[0,0,null,null,null,null,"Social security funds",{"$f":"SUMPRODUCT(((T_DataComboFile[Implementation programme]=$G$3)*(T_DataComboFile[Econ4]=$G41))*T_DataComboFile[2017/18]*$B$3)","v":0},{"$f":"SUMPRODUCT(((T_DataComboFile[Implementation programme]=$G$3)*(T_DataComboFile[Econ4]=$G41))*T_DataComboFile[2018/19]*$B$3)","v":0},{"$f":"SUMPRODUCT(((T_DataComboFile[Implementation programme]=$G$3)*(T_DataComboFile[Econ4]=$G41))*T_DataComboFile[2019/20 Revised estimate]*$B$3)","v":0},{"$f":"SUMPRODUCT(((T_DataComboFile[Implementation programme]=$G$3)*(T_DataComboFile[Econ4]=$G41))*T_DataComboFile[2020/21 Revised]*$B$3)","v":0},{"$f":"SUMPRODUCT(((T_DataComboFile[Implementation programme]=$G$3)*(T_DataComboFile[Econ4]=$G41))*T_DataComboFile[2021/22 Baseline]*$B$3)","v":0},{"$f":"SUMPRODUCT(((T_DataComboFile[Implementation programme]=$G$3)*(T_DataComboFile[Econ4]=$G41))*T_DataComboFile[2021/22 Reduction]*$B$3)","v":0},{"$f":"SUMPRODUCT(((T_DataComboFile[Implementation programme]=$G$3)*(T_DataComboFile[Econ4]=$G41))*T_DataComboFile[2021/22 Increase]*$B$3)","v":0},{"$f":"L41+M41+N41","v":0},{"$f":"SUMPRODUCT(((T_DataComboFile[Implementation programme]=$G$3)*(T_DataComboFile[Econ4]=$G41))*T_DataComboFile[2022/23 Baseline]*$B$3)","v":0},{"$f":"SUMPRODUCT(((T_DataComboFile[Implementation programme]=$G$3)*(T_DataComboFile[Econ4]=$G41))*T_DataComboFile[2022/23 Reduction]*$B$3)","v":0},{"$f":"SUMPRODUCT(((T_DataComboFile[Implementation programme]=$G$3)*(T_DataComboFile[Econ4]=$G41))*T_DataComboFile[2022/23 Increase]*$B$3)","v":0},{"$f":"P41+Q41+R41","v":0},{"$f":"SUMPRODUCT(((T_DataComboFile[Implementation programme]=$G$3)*(T_DataComboFile[Econ4]=$G41))*T_DataComboFile[2023/24 Baseline]*$B$3)","v":0},{"$f":"SUMPRODUCT(((T_DataComboFile[Implementation programme]=$G$3)*(T_DataComboFile[Econ4]=$G41))*T_DataComboFile[2023/24 Reduction]*$B$3)","v":0},{"$f":"SUMPRODUCT(((T_DataComboFile[Implementation programme]=$G$3)*(T_DataComboFile[Econ4]=$G41))*T_DataComboFile[2023/24 Increase]*$B$3)","v":0},{"$f":"T41+U41+V41","v":0}]
[0,0,null,null,null,null,"Departmental agencies (non-business entities)",{"$f":"SUMPRODUCT(((T_DataComboFile[Implementation programme]=$G$3)*(T_DataComboFile[Econ4]=$G42))*T_DataComboFile[2017/18]*$B$3)","v":0},{"$f":"SUMPRODUCT(((T_DataComboFile[Implementation programme]=$G$3)*(T_DataComboFile[Econ4]=$G42))*T_DataComboFile[2018/19]*$B$3)","v":0},{"$f":"SUMPRODUCT(((T_DataComboFile[Implementation programme]=$G$3)*(T_DataComboFile[Econ4]=$G42))*T_DataComboFile[2019/20 Revised estimate]*$B$3)","v":0},{"$f":"SUMPRODUCT(((T_DataComboFile[Implementation programme]=$G$3)*(T_DataComboFile[Econ4]=$G42))*T_DataComboFile[2020/21 Revised]*$B$3)","v":0},{"$f":"SUMPRODUCT(((T_DataComboFile[Implementation programme]=$G$3)*(T_DataComboFile[Econ4]=$G42))*T_DataComboFile[2021/22 Baseline]*$B$3)","v":0},{"$f":"SUMPRODUCT(((T_DataComboFile[Implementation programme]=$G$3)*(T_DataComboFile[Econ4]=$G42))*T_DataComboFile[2021/22 Reduction]*$B$3)","v":0},{"$f":"SUMPRODUCT(((T_DataComboFile[Implementation programme]=$G$3)*(T_DataComboFile[Econ4]=$G42))*T_DataComboFile[2021/22 Increase]*$B$3)","v":0},0,{"$f":"SUMPRODUCT(((T_DataComboFile[Implementation programme]=$G$3)*(T_DataComboFile[Econ4]=$G42))*T_DataComboFile[2022/23 Baseline]*$B$3)","v":0},{"$f":"SUMPRODUCT(((T_DataComboFile[Implementation programme]=$G$3)*(T_DataComboFile[Econ4]=$G42))*T_DataComboFile[2022/23 Reduction]*$B$3)","v":0},{"$f":"SUMPRODUCT(((T_DataComboFile[Implementation programme]=$G$3)*(T_DataComboFile[Econ4]=$G42))*T_DataComboFile[2022/23 Increase]*$B$3)","v":0},0,{"$f":"SUMPRODUCT(((T_DataComboFile[Implementation programme]=$G$3)*(T_DataComboFile[Econ4]=$G42))*T_DataComboFile[2023/24 Baseline]*$B$3)","v":0},{"$f":"SUMPRODUCT(((T_DataComboFile[Implementation programme]=$G$3)*(T_DataComboFile[Econ4]=$G42))*T_DataComboFile[2023/24 Reduction]*$B$3)","v":0},{"$f":"SUMPRODUCT(((T_DataComboFile[Implementation programme]=$G$3)*(T_DataComboFile[Econ4]=$G42))*T_DataComboFile[2023/24 Increase]*$B$3)","v":0},0]
[0,0,null,null,null,null,"Higher education institutions",{"$f":"SUMPRODUCT(((T_DataComboFile[Implementation programme]=$G$3)*(T_DataComboFile[Econ3]=$G43))*T_DataComboFile[2017/18]*$B$3)","v":0},{"$f":"SUMPRODUCT(((T_DataComboFile[Implementation programme]=$G$3)*(T_DataComboFile[Econ3]=$G43))*T_DataComboFile[2018/19]*$B$3)","v":0},{"$f":"SUMPRODUCT(((T_DataComboFile[Implementation programme]=$G$3)*(T_DataComboFile[Econ3]=$G43))*T_DataComboFile[2019/20 Revised estimate]*$B$3)","v":0},{"$f":"SUMPRODUCT(((T_DataComboFile[Implementation programme]=$G$3)*(T_DataComboFile[Econ3]=$G43))*T_DataComboFile[2020/21 Revised]*$B$3)","v":0},{"$f":"SUMPRODUCT(((T_DataComboFile[Implementation programme]=$G$3)*(T_DataComboFile[Econ3]=$G43))*T_DataComboFile[2021/22 Baseline]*$B$3)","v":0},{"$f":"SUMPRODUCT(((T_DataComboFile[Implementation programme]=$G$3)*(T_DataComboFile[Econ3]=$G43))*T_DataComboFile[2021/22 Reduction]*$B$3)","v":0},{"$f":"SUMPRODUCT(((T_DataComboFile[Implementation programme]=$G$3)*(T_DataComboFile[Econ3]=$G43))*T_DataComboFile[2021/22 Increase]*$B$3)","v":0},0,{"$f":"SUMPRODUCT(((T_DataComboFile[Implementation programme]=$G$3)*(T_DataComboFile[Econ3]=$G43))*T_DataComboFile[2022/23 Baseline]*$B$3)","v":0},{"$f":"SUMPRODUCT(((T_DataComboFile[Implementation programme]=$G$3)*(T_DataComboFile[Econ3]=$G43))*T_DataComboFile[2022/23 Reduction]*$B$3)","v":0},{"$f":"SUMPRODUCT(((T_DataComboFile[Implementation programme]=$G$3)*(T_DataComboFile[Econ3]=$G43))*T_DataComboFile[2022/23 Increase]*$B$3)","v":0},0,{"$f":"SUMPRODUCT(((T_DataComboFile[Implementation programme]=$G$3)*(T_DataComboFile[Econ3]=$G43))*T_DataComboFile[2023/24 Baseline]*$B$3)","v":0},{"$f":"SUMPRODUCT(((T_DataComboFile[Implementation programme]=$G$3)*(T_DataComboFile[Econ3]=$G43))*T_DataComboFile[2023/24 Reduction]*$B$3)","v":0},{"$f":"SUMPRODUCT(((T_DataComboFile[Implementation programme]=$G$3)*(T_DataComboFile[Econ3]=$G43))*T_DataComboFile[2023/24 Increase]*$B$3)","v":0},0]
[0,0,null,null,null,null,"Foreign governments and international organisations",{"$f":"SUMPRODUCT(((T_DataComboFile[Implementation programme]=$G$3)*(T_DataComboFile[Econ3]=$G44))*T_DataComboFile[2017/18]*$B$3)","v":0},{"$f":"SUMPRODUCT(((T_DataComboFile[Implementation programme]=$G$3)*(T_DataComboFile[Econ3]=$G44))*T_DataComboFile[2018/19]*$B$3)","v":0},{"$f":"SUMPRODUCT(((T_DataComboFile[Implementation programme]=$G$3)*(T_DataComboFile[Econ3]=$G44))*T_DataComboFile[2019/20 Revised estimate]*$B$3)","v":0},{"$f":"SUMPRODUCT(((T_DataComboFile[Implementation programme]=$G$3)*(T_DataComboFile[Econ3]=$G44))*T_DataComboFile[2020/21 Revised]*$B$3)","v":0},{"$f":"SUMPRODUCT(((T_DataComboFile[Implementation programme]=$G$3)*(T_DataComboFile[Econ3]=$G44))*T_DataComboFile[2021/22 Baseline]*$B$3)","v":0},{"$f":"SUMPRODUCT(((T_DataComboFile[Implementation programme]=$G$3)*(T_DataComboFile[Econ3]=$G44))*T_DataComboFile[2021/22 Reduction]*$B$3)","v":0},{"$f":"SUMPRODUCT(((T_DataComboFile[Implementation programme]=$G$3)*(T_DataComboFile[Econ3]=$G44))*T_DataComboFile[2021/22 Increase]*$B$3)","v":0},0,{"$f":"SUMPRODUCT(((T_DataComboFile[Implementation programme]=$G$3)*(T_DataComboFile[Econ3]=$G44))*T_DataComboFile[2022/23 Baseline]*$B$3)","v":0},{"$f":"SUMPRODUCT(((T_DataComboFile[Implementation programme]=$G$3)*(T_DataComboFile[Econ3]=$G44))*T_DataComboFile[2022/23 Reduction]*$B$3)","v":0},{"$f":"SUMPRODUCT(((T_DataComboFile[Implementation programme]=$G$3)*(T_DataComboFile[Econ3]=$G44))*T_DataComboFile[2022/23 Increase]*$B$3)","v":0},0,{"$f":"SUMPRODUCT(((T_DataComboFile[Implementation programme]=$G$3)*(T_DataComboFile[Econ3]=$G44))*T_DataComboFile[2023/24 Baseline]*$B$3)","v":0},{"$f":"SUMPRODUCT(((T_DataComboFile[Implementation programme]=$G$3)*(T_DataComboFile[Econ3]=$G44))*T_DataComboFile[2023/24 Reduction]*$B$3)","v":0},{"$f":"SUMPRODUCT(((T_DataComboFile[Implementation programme]=$G$3)*(T_DataComboFile[Econ3]=$G44))*T_DataComboFile[2023/24 Increase]*$B$3)","v":0},0]
[0,0,null,null,null,null,"Public corporations and private enterprises",{"$f":"SUM(H46:H47)","v":0},0,0,0,0,0,0,0,0,0,0,0,0,0,0,0]
[0,0,null,null,null,null,"Public corporations",{"$f":"SUMPRODUCT(((T_DataComboFile[Implementation programme]=$G$3)*(T_DataComboFile[Econ4]=$G46))*T_DataComboFile[2017/18]*$B$3)","v":0},{"$f":"SUMPRODUCT(((T_DataComboFile[Implementation programme]=$G$3)*(T_DataComboFile[Econ4]=$G46))*T_DataComboFile[2018/19]*$B$3)","v":0},{"$f":"SUMPRODUCT(((T_DataComboFile[Implementation programme]=$G$3)*(T_DataComboFile[Econ4]=$G46))*T_DataComboFile[2019/20 Revised estimate]*$B$3)","v":0},{"$f":"SUMPRODUCT(((T_DataComboFile[Implementation programme]=$G$3)*(T_DataComboFile[Econ4]=$G46))*T_DataComboFile[2020/21 Revised]*$B$3)","v":0},{"$f":"SUMPRODUCT(((T_DataComboFile[Implementation programme]=$G$3)*(T_DataComboFile[Econ4]=$G46))*T_DataComboFile[2021/22 Baseline]*$B$3)","v":0},{"$f":"SUMPRODUCT(((T_DataComboFile[Implementation programme]=$G$3)*(T_DataComboFile[Econ4]=$G46))*T_DataComboFile[2021/22 Reduction]*$B$3)","v":0},{"$f":"SUMPRODUCT(((T_DataComboFile[Implementation programme]=$G$3)*(T_DataComboFile[Econ4]=$G46))*T_DataComboFile[2021/22 Increase]*$B$3)","v":0},{"$f":"L46+M46+N46","v":0},{"$f":"SUMPRODUCT(((T_DataComboFile[Implementation programme]=$G$3)*(T_DataComboFile[Econ4]=$G46))*T_DataComboFile[2022/23 Baseline]*$B$3)","v":0},{"$f":"SUMPRODUCT(((T_DataComboFile[Implementation programme]=$G$3)*(T_DataComboFile[Econ4]=$G46))*T_DataComboFile[2022/23 Reduction]*$B$3)","v":0},{"$f":"SUMPRODUCT(((T_DataComboFile[Implementation programme]=$G$3)*(T_DataComboFile[Econ4]=$G46))*T_DataComboFile[2022/23 Increase]*$B$3)","v":0},{"$f":"P46+Q46+R46","v":0},{"$f":"SUMPRODUCT(((T_DataComboFile[Implementation programme]=$G$3)*(T_DataComboFile[Econ4]=$G46))*T_DataComboFile[2023/24 Baseline]*$B$3)","v":0},{"$f":"SUMPRODUCT(((T_DataComboFile[Implementation programme]=$G$3)*(T_DataComboFile[Econ4]=$G46))*T_DataComboFile[2023/24 Reduction]*$B$3)","v":0},{"$f":"SUMPRODUCT(((T_DataComboFile[Implementation programme]=$G$3)*(T_DataComboFile[Econ4]=$G46))*T_DataComboFile[2023/24 Increase]*$B$3)","v":0},{"$f":"T46+U46+V46","v":0}]
[0,0,null,null,null,null,"Private enterprises",{"$f":"SUMPRODUCT(((T_DataComboFile[Implementation programme]=$G$3)*(T_DataComboFile[Econ4]=$G47))*T_DataComboFile[2017/18]*$B$3)","v":0},{"$f":"SUMPRODUCT(((T_DataComboFile[Implementation programme]=$G$3)*(T_DataComboFile[Econ4]=$G47))*T_DataComboFile[2018/19]*$B$3)","v":0},{"$f":"SUMPRODUCT(((T_DataComboFile[Implementation programme]=$G$3)*(T_DataComboFile[Econ4]=$G47))*T_DataComboFile[2019/20 Revised estimate]*$B$3)","v":0},{"$f":"SUMPRODUCT(((T_DataComboFile[Implementation programme]=$G$3)*(T_DataComboFile[Econ4]=$G47))*T_DataComboFile[2020/21 Revised]*$B$3)","v":0},{"$f":"SUMPRODUCT(((T_DataComboFile[Implementation programme]=$G$3)*(T_DataComboFile[Econ4]=$G47))*T_DataComboFile[2021/22 Baseline]*$B$3)","v":0},{"$f":"SUMPRODUCT(((T_DataComboFile[Implementation programme]=$G$3)*(T_DataComboFile[Econ4]=$G47))*T_DataComboFile[2021/22 Reduction]*$B$3)","v":0},{"$f":"SUMPRODUCT(((T_DataComboFile[Implementation programme]=$G$3)*(T_DataComboFile[Econ4]=$G47))*T_DataComboFile[2021/22 Increase]*$B$3)","v":0},0,{"$f":"SUMPRODUCT(((T_DataComboFile[Implementation programme]=$G$3)*(T_DataComboFile[Econ4]=$G47))*T_DataComboFile[2022/23 Baseline]*$B$3)","v":0},{"$f":"SUMPRODUCT(((T_DataComboFile[Implementation programme]=$G$3)*(T_DataComboFile[Econ4]=$G47))*T_DataComboFile[2022/23 Reduction]*$B$3)","v":0},{"$f":"SUMPRODUCT(((T_DataComboFile[Implementation programme]=$G$3)*(T_DataComboFile[Econ4]=$G47))*T_DataComboFile[2022/23 Increase]*$B$3)","v":0},0,{"$f":"SUMPRODUCT(((T_DataComboFile[Implementation programme]=$G$3)*(T_DataComboFile[Econ4]=$G47))*T_DataComboFile[2023/24 Baseline]*$B$3)","v":0},{"$f":"SUMPRODUCT(((T_DataComboFile[Implementation programme]=$G$3)*(T_DataComboFile[Econ4]=$G47))*T_DataComboFile[2023/24 Reduction]*$B$3)","v":0},{"$f":"SUMPRODUCT(((T_DataComboFile[Implementation programme]=$G$3)*(T_DataComboFile[Econ4]=$G47))*T_DataComboFile[2023/24 Increase]*$B$3)","v":0},0]
[0,0,null,null,null,null,"Non-profit institutions",{"$f":"SUMPRODUCT(((T_DataComboFile[Implementation programme]=$G$3)*(T_DataComboFile[Econ3]=$G48))*T_DataComboFile[2017/18]*$B$3)","v":0},{"$f":"SUMPRODUCT(((T_DataComboFile[Implementation programme]=$G$3)*(T_DataComboFile[Econ3]=$G48))*T_DataComboFile[2018/19]*$B$3)","v":0},{"$f":"SUMPRODUCT(((T_DataComboFile[Implementation programme]=$G$3)*(T_DataComboFile[Econ3]=$G48))*T_DataComboFile[2019/20 Revised estimate]*$B$3)","v":0},{"$f":"SUMPRODUCT(((T_DataComboFile[Implementation programme]=$G$3)*(T_DataComboFile[Econ3]=$G48))*T_DataComboFile[2020/21 Revised]*$B$3)","v":0},{"$f":"SUMPRODUCT(((T_DataComboFile[Implementation programme]=$G$3)*(T_DataComboFile[Econ3]=$G48))*T_DataComboFile[2021/22 Baseline]*$B$3)","v":0},{"$f":"SUMPRODUCT(((T_DataComboFile[Implementation programme]=$G$3)*(T_DataComboFile[Econ3]=$G48))*T_DataComboFile[2021/22 Reduction]*$B$3)","v":0},{"$f":"SUMPRODUCT(((T_DataComboFile[Implementation programme]=$G$3)*(T_DataComboFile[Econ3]=$G48))*T_DataComboFile[2021/22 Increase]*$B$3)","v":0},0,{"$f":"SUMPRODUCT(((T_DataComboFile[Implementation programme]=$G$3)*(T_DataComboFile[Econ3]=$G48))*T_DataComboFile[2022/23 Baseline]*$B$3)","v":0},{"$f":"SUMPRODUCT(((T_DataComboFile[Implementation programme]=$G$3)*(T_DataComboFile[Econ3]=$G48))*T_DataComboFile[2022/23 Reduction]*$B$3)","v":0},{"$f":"SUMPRODUCT(((T_DataComboFile[Implementation programme]=$G$3)*(T_DataComboFile[Econ3]=$G48))*T_DataComboFile[2022/23 Increase]*$B$3)","v":0},0,{"$f":"SUMPRODUCT(((T_DataComboFile[Implementation programme]=$G$3)*(T_DataComboFile[Econ3]=$G48))*T_DataComboFile[2023/24 Baseline]*$B$3)","v":0},{"$f":"SUMPRODUCT(((T_DataComboFile[Implementation programme]=$G$3)*(T_DataComboFile[Econ3]=$G48))*T_DataComboFile[2023/24 Reduction]*$B$3)","v":0},{"$f":"SUMPRODUCT(((T_DataComboFile[Implementation programme]=$G$3)*(T_DataComboFile[Econ3]=$G48))*T_DataComboFile[2023/24 Increase]*$B$3)","v":0},0]
[0,0,null,null,null,null,"Households",{"$f":"SUM(H50:H51)","v":0},0,0,0,0,0,0,0,0,0,0,0,0,0,0,0]
[0,0,null,null,null,null,"Social benefits",{"$f":"SUMPRODUCT(((T_DataComboFile[Implementation programme]=$G$3)*(T_DataComboFile[Econ4]=$G50))*T_DataComboFile[2017/18]*$B$3)","v":0},{"$f":"SUMPRODUCT(((T_DataComboFile[Implementation programme]=$G$3)*(T_DataComboFile[Econ4]=$G50))*T_DataComboFile[2018/19]*$B$3)","v":0},{"$f":"SUMPRODUCT(((T_DataComboFile[Implementation programme]=$G$3)*(T_DataComboFile[Econ4]=$G50))*T_DataComboFile[2019/20 Revised estimate]*$B$3)","v":0},{"$f":"SUMPRODUCT(((T_DataComboFile[Implementation programme]=$G$3)*(T_DataComboFile[Econ4]=$G50))*T_DataComboFile[2020/21 Revised]*$B$3)","v":0},{"$f":"SUMPRODUCT(((T_DataComboFile[Implementation programme]=$G$3)*(T_DataComboFile[Econ4]=$G50))*T_DataComboFile[2021/22 Baseline]*$B$3)","v":0},{"$f":"SUMPRODUCT(((T_DataComboFile[Implementation programme]=$G$3)*(T_DataComboFile[Econ4]=$G50))*T_DataComboFile[2021/22 Reduction]*$B$3)","v":0},{"$f":"SUMPRODUCT(((T_DataComboFile[Implementation programme]=$G$3)*(T_DataComboFile[Econ4]=$G50))*T_DataComboFile[2021/22 Increase]*$B$3)","v":0},{"$f":"L50+M50+N50","v":0},{"$f":"SUMPRODUCT(((T_DataComboFile[Implementation programme]=$G$3)*(T_DataComboFile[Econ4]=$G50))*T_DataComboFile[2022/23 Baseline]*$B$3)","v":0},{"$f":"SUMPRODUCT(((T_DataComboFile[Implementation programme]=$G$3)*(T_DataComboFile[Econ4]=$G50))*T_DataComboFile[2022/23 Reduction]*$B$3)","v":0},{"$f":"SUMPRODUCT(((T_DataComboFile[Implementation programme]=$G$3)*(T_DataComboFile[Econ4]=$G50))*T_DataComboFile[2022/23 Increase]*$B$3)","v":0},{"$f":"P50+Q50+R50","v":0},{"$f":"SUMPRODUCT(((T_DataComboFile[Implementation programme]=$G$3)*(T_DataComboFile[Econ4]=$G50))*T_DataComboFile[2023/24 Baseline]*$B$3)","v":0},{"$f":"SUMPRODUCT(((T_DataComboFile[Implementation programme]=$G$3)*(T_DataComboFile[Econ4]=$G50))*T_DataComboFile[2023/24 Reduction]*$B$3)","v":0},{"$f":"SUMPRODUCT(((T_DataComboFile[Implementation programme]=$G$3)*(T_DataComboFile[Econ4]=$G50))*T_DataComboFile[2023/24 Increase]*$B$3)","v":0},{"$f":"T50+U50+V50","v":0}]
[0,0,null,null,null,null,"Other transfers to households",{"$f":"SUMPRODUCT(((T_DataComboFile[Implementation programme]=$G$3)*(T_DataComboFile[Econ4]=$G51))*T_DataComboFile[2017/18]*$B$3)","v":0},{"$f":"SUMPRODUCT(((T_DataComboFile[Implementation programme]=$G$3)*(T_DataComboFile[Econ4]=$G51))*T_DataComboFile[2018/19]*$B$3)","v":0},{"$f":"SUMPRODUCT(((T_DataComboFile[Implementation programme]=$G$3)*(T_DataComboFile[Econ4]=$G51))*T_DataComboFile[2019/20 Revised estimate]*$B$3)","v":0},{"$f":"SUMPRODUCT(((T_DataComboFile[Implementation programme]=$G$3)*(T_DataComboFile[Econ4]=$G51))*T_DataComboFile[2020/21 Revised]*$B$3)","v":0},{"$f":"SUMPRODUCT(((T_DataComboFile[Implementation programme]=$G$3)*(T_DataComboFile[Econ4]=$G51))*T_DataComboFile[2021/22 Baseline]*$B$3)","v":0},{"$f":"SUMPRODUCT(((T_DataComboFile[Implementation programme]=$G$3)*(T_DataComboFile[Econ4]=$G51))*T_DataComboFile[2021/22 Reduction]*$B$3)","v":0},{"$f":"SUMPRODUCT(((T_DataComboFile[Implementation programme]=$G$3)*(T_DataComboFile[Econ4]=$G51))*T_DataComboFile[2021/22 Increase]*$B$3)","v":0},0,{"$f":"SUMPRODUCT(((T_DataComboFile[Implementation programme]=$G$3)*(T_DataComboFile[Econ4]=$G51))*T_DataComboFile[2022/23 Baseline]*$B$3)","v":0},{"$f":"SUMPRODUCT(((T_DataComboFile[Implementation programme]=$G$3)*(T_DataComboFile[Econ4]=$G51))*T_DataComboFile[2022/23 Reduction]*$B$3)","v":0},{"$f":"SUMPRODUCT(((T_DataComboFile[Implementation programme]=$G$3)*(T_DataComboFile[Econ4]=$G51))*T_DataComboFile[2022/23 Increase]*$B$3)","v":0},0,{"$f":"SUMPRODUCT(((T_DataComboFile[Implementation programme]=$G$3)*(T_DataComboFile[Econ4]=$G51))*T_DataComboFile[2023/24 Baseline]*$B$3)","v":0},{"$f":"SUMPRODUCT(((T_DataComboFile[Implementation programme]=$G$3)*(T_DataComboFile[Econ4]=$G51))*T_DataComboFile[2023/24 Reduction]*$B$3)","v":0},{"$f":"SUMPRODUCT(((T_DataComboFile[Implementation programme]=$G$3)*(T_DataComboFile[Econ4]=$G51))*T_DataComboFile[2023/24 Increase]*$B$3)","v":0},0]
[0,0,null,null,null,null,"Payments for capital assets",{"$f":"SUM(H53,H56,H59:H63)","v":0},0,0,0,0,0,0,0,0,0,0,0,0,0,0,0]
[0,0,null,null,null,null,"Buildings and other fixed structures",{"$f":"SUM(H54:H55)","v":0},0,0,0,0,0,0,0,0,0,0,0,0,0,0,0]
[0,0,null,null,null,null,"Buildings",{"$f":"SUMPRODUCT(((T_DataComboFile[Implementation programme]=$G$3)*(T_DataComboFile[Econ4]=$G54))*T_DataComboFile[2017/18]*$B$3)","v":0},{"$f":"SUMPRODUCT(((T_DataComboFile[Implementation programme]=$G$3)*(T_DataComboFile[Econ4]=$G54))*T_DataComboFile[2018/19]*$B$3)","v":0},{"$f":"SUMPRODUCT(((T_DataComboFile[Implementation programme]=$G$3)*(T_DataComboFile[Econ4]=$G54))*T_DataComboFile[2019/20 Revised estimate]*$B$3)","v":0},{"$f":"SUMPRODUCT(((T_DataComboFile[Implementation programme]=$G$3)*(T_DataComboFile[Econ4]=$G54))*T_DataComboFile[2020/21 Revised]*$B$3)","v":0},{"$f":"SUMPRODUCT(((T_DataComboFile[Implementation programme]=$G$3)*(T_DataComboFile[Econ4]=$G54))*T_DataComboFile[2021/22 Baseline]*$B$3)","v":0},{"$f":"SUMPRODUCT(((T_DataComboFile[Implementation programme]=$G$3)*(T_DataComboFile[Econ4]=$G54))*T_DataComboFile[2021/22 Reduction]*$B$3)","v":0},{"$f":"SUMPRODUCT(((T_DataComboFile[Implementation programme]=$G$3)*(T_DataComboFile[Econ4]=$G54))*T_DataComboFile[2021/22 Increase]*$B$3)","v":0},{"$f":"L54+M54+N54","v":0},{"$f":"SUMPRODUCT(((T_DataComboFile[Implementation programme]=$G$3)*(T_DataComboFile[Econ4]=$G54))*T_DataComboFile[2022/23 Baseline]*$B$3)","v":0},{"$f":"SUMPRODUCT(((T_DataComboFile[Implementation programme]=$G$3)*(T_DataComboFile[Econ4]=$G54))*T_DataComboFile[2022/23 Reduction]*$B$3)","v":0},{"$f":"SUMPRODUCT(((T_DataComboFile[Implementation programme]=$G$3)*(T_DataComboFile[Econ4]=$G54))*T_DataComboFile[2022/23 Increase]*$B$3)","v":0},{"$f":"P54+Q54+R54","v":0},{"$f":"SUMPRODUCT(((T_DataComboFile[Implementation programme]=$G$3)*(T_DataComboFile[Econ4]=$G54))*T_DataComboFile[2023/24 Baseline]*$B$3)","v":0},{"$f":"SUMPRODUCT(((T_DataComboFile[Implementation programme]=$G$3)*(T_DataComboFile[Econ4]=$G54))*T_DataComboFile[2023/24 Reduction]*$B$3)","v":0},{"$f":"SUMPRODUCT(((T_DataComboFile[Implementation programme]=$G$3)*(T_DataComboFile[Econ4]=$G54))*T_DataComboFile[2023/24 Increase]*$B$3)","v":0},{"$f":"T54+U54+V54","v":0}]
[0,0,null,null,null,null,"Other fixed structures",{"$f":"SUMPRODUCT(((T_DataComboFile[Implementation programme]=$G$3)*(T_DataComboFile[Econ4]=$G55))*T_DataComboFile[2017/18]*$B$3)","v":0},{"$f":"SUMPRODUCT(((T_DataComboFile[Implementation programme]=$G$3)*(T_DataComboFile[Econ4]=$G55))*T_DataComboFile[2018/19]*$B$3)","v":0},{"$f":"SUMPRODUCT(((T_DataComboFile[Implementation programme]=$G$3)*(T_DataComboFile[Econ4]=$G55))*T_DataComboFile[2019/20 Revised estimate]*$B$3)","v":0},{"$f":"SUMPRODUCT(((T_DataComboFile[Implementation programme]=$G$3)*(T_DataComboFile[Econ4]=$G55))*T_DataComboFile[2020/21 Revised]*$B$3)","v":0},{"$f":"SUMPRODUCT(((T_DataComboFile[Implementation programme]=$G$3)*(T_DataComboFile[Econ4]=$G55))*T_DataComboFile[2021/22 Baseline]*$B$3)","v":0},{"$f":"SUMPRODUCT(((T_DataComboFile[Implementation programme]=$G$3)*(T_DataComboFile[Econ4]=$G55))*T_DataComboFile[2021/22 Reduction]*$B$3)","v":0},{"$f":"SUMPRODUCT(((T_DataComboFile[Implementation programme]=$G$3)*(T_DataComboFile[Econ4]=$G55))*T_DataComboFile[2021/22 Increase]*$B$3)","v":0},0,{"$f":"SUMPRODUCT(((T_DataComboFile[Implementation programme]=$G$3)*(T_DataComboFile[Econ4]=$G55))*T_DataComboFile[2022/23 Baseline]*$B$3)","v":0},{"$f":"SUMPRODUCT(((T_DataComboFile[Implementation programme]=$G$3)*(T_DataComboFile[Econ4]=$G55))*T_DataComboFile[2022/23 Reduction]*$B$3)","v":0},{"$f":"SUMPRODUCT(((T_DataComboFile[Implementation programme]=$G$3)*(T_DataComboFile[Econ4]=$G55))*T_DataComboFile[2022/23 Increase]*$B$3)","v":0},0,{"$f":"SUMPRODUCT(((T_DataComboFile[Implementation programme]=$G$3)*(T_DataComboFile[Econ4]=$G55))*T_DataComboFile[2023/24 Baseline]*$B$3)","v":0},{"$f":"SUMPRODUCT(((T_DataComboFile[Implementation programme]=$G$3)*(T_DataComboFile[Econ4]=$G55))*T_DataComboFile[2023/24 Reduction]*$B$3)","v":0},{"$f":"SUMPRODUCT(((T_DataComboFile[Implementation programme]=$G$3)*(T_DataComboFile[Econ4]=$G55))*T_DataComboFile[2023/24 Increase]*$B$3)","v":0},0]
[0,0,null,null,null,null,"Machinery and equipment",{"$f":"SUM(H57:H58)","v":0},0,0,0,0,0,0,0,0,0,0,0,0,0,0,0]
[0,0,null,null,null,null,"Transport equipment",{"$f":"SUMPRODUCT(((T_DataComboFile[Implementation programme]=$G$3)*(T_DataComboFile[Econ4]=$G57))*T_DataComboFile[2017/18]*$B$3)","v":0},{"$f":"SUMPRODUCT(((T_DataComboFile[Implementation programme]=$G$3)*(T_DataComboFile[Econ4]=$G57))*T_DataComboFile[2018/19]*$B$3)","v":0},{"$f":"SUMPRODUCT(((T_DataComboFile[Implementation programme]=$G$3)*(T_DataComboFile[Econ4]=$G57))*T_DataComboFile[2019/20 Revised estimate]*$B$3)","v":0},{"$f":"SUMPRODUCT(((T_DataComboFile[Implementation programme]=$G$3)*(T_DataComboFile[Econ4]=$G57))*T_DataComboFile[2020/21 Revised]*$B$3)","v":0},{"$f":"SUMPRODUCT(((T_DataComboFile[Implementation programme]=$G$3)*(T_DataComboFile[Econ4]=$G57))*T_DataComboFile[2021/22 Baseline]*$B$3)","v":0},{"$f":"SUMPRODUCT(((T_DataComboFile[Implementation programme]=$G$3)*(T_DataComboFile[Econ4]=$G57))*T_DataComboFile[2021/22 Reduction]*$B$3)","v":0},{"$f":"SUMPRODUCT(((T_DataComboFile[Implementation programme]=$G$3)*(T_DataComboFile[Econ4]=$G57))*T_DataComboFile[2021/22 Increase]*$B$3)","v":0},{"$f":"L57+M57+N57","v":0},{"$f":"SUMPRODUCT(((T_DataComboFile[Implementation programme]=$G$3)*(T_DataComboFile[Econ4]=$G57))*T_DataComboFile[2022/23 Baseline]*$B$3)","v":0},{"$f":"SUMPRODUCT(((T_DataComboFile[Implementation programme]=$G$3)*(T_DataComboFile[Econ4]=$G57))*T_DataComboFile[2022/23 Reduction]*$B$3)","v":0},{"$f":"SUMPRODUCT(((T_DataComboFile[Implementation programme]=$G$3)*(T_DataComboFile[Econ4]=$G57))*T_DataComboFile[2022/23 Increase]*$B$3)","v":0},{"$f":"P57+Q57+R57","v":0},{"$f":"SUMPRODUCT(((T_DataComboFile[Implementation programme]=$G$3)*(T_DataComboFile[Econ4]=$G57))*T_DataComboFile[2023/24 Baseline]*$B$3)","v":0},{"$f":"SUMPRODUCT(((T_DataComboFile[Implementation programme]=$G$3)*(T_DataComboFile[Econ4]=$G57))*T_DataComboFile[2023/24 Reduction]*$B$3)","v":0},{"$f":"SUMPRODUCT(((T_DataComboFile[Implementation programme]=$G$3)*(T_DataComboFile[Econ4]=$G57))*T_DataComboFile[2023/24 Increase]*$B$3)","v":0},{"$f":"T57+U57+V57","v":0}]
[0,0,null,null,null,null,"Other machinery and equipment",{"$f":"SUMPRODUCT(((T_DataComboFile[Implementation programme]=$G$3)*(T_DataComboFile[Econ4]=$G58))*T_DataComboFile[2017/18]*$B$3)","v":0},{"$f":"SUMPRODUCT(((T_DataComboFile[Implementation programme]=$G$3)*(T_DataComboFile[Econ4]=$G58))*T_DataComboFile[2018/19]*$B$3)","v":0},{"$f":"SUMPRODUCT(((T_DataComboFile[Implementation programme]=$G$3)*(T_DataComboFile[Econ4]=$G58))*T_DataComboFile[2019/20 Revised estimate]*$B$3)","v":0},{"$f":"SUMPRODUCT(((T_DataComboFile[Implementation programme]=$G$3)*(T_DataComboFile[Econ4]=$G58))*T_DataComboFile[2020/21 Revised]*$B$3)","v":0},{"$f":"SUMPRODUCT(((T_DataComboFile[Implementation programme]=$G$3)*(T_DataComboFile[Econ4]=$G58))*T_DataComboFile[2021/22 Baseline]*$B$3)","v":0},{"$f":"SUMPRODUCT(((T_DataComboFile[Implementation programme]=$G$3)*(T_DataComboFile[Econ4]=$G58))*T_DataComboFile[2021/22 Reduction]*$B$3)","v":0},{"$f":"SUMPRODUCT(((T_DataComboFile[Implementation programme]=$G$3)*(T_DataComboFile[Econ4]=$G58))*T_DataComboFile[2021/22 Increase]*$B$3)","v":0},0,{"$f":"SUMPRODUCT(((T_DataComboFile[Implementation programme]=$G$3)*(T_DataComboFile[Econ4]=$G58))*T_DataComboFile[2022/23 Baseline]*$B$3)","v":0},{"$f":"SUMPRODUCT(((T_DataComboFile[Implementation programme]=$G$3)*(T_DataComboFile[Econ4]=$G58))*T_DataComboFile[2022/23 Reduction]*$B$3)","v":0},{"$f":"SUMPRODUCT(((T_DataComboFile[Implementation programme]=$G$3)*(T_DataComboFile[Econ4]=$G58))*T_DataComboFile[2022/23 Increase]*$B$3)","v":0},0,{"$f":"SUMPRODUCT(((T_DataComboFile[Implementation programme]=$G$3)*(T_DataComboFile[Econ4]=$G58))*T_DataComboFile[2023/24 Baseline]*$B$3)","v":0},{"$f":"SUMPRODUCT(((T_DataComboFile[Implementation programme]=$G$3)*(T_DataComboFile[Econ4]=$G58))*T_DataComboFile[2023/24 Reduction]*$B$3)","v":0},{"$f":"SUMPRODUCT(((T_DataComboFile[Implementation programme]=$G$3)*(T_DataComboFile[Econ4]=$G58))*T_DataComboFile[2023/24 Increase]*$B$3)","v":0},0]
[0,0,null,null,null,null,"Heritage assets",{"$f":"SUMPRODUCT(((T_DataComboFile[Implementation programme]=$G$3)*(T_DataComboFile[Econ3]=$G59))*T_DataComboFile[2017/18]*$B$3)","v":0},{"$f":"SUMPRODUCT(((T_DataComboFile[Implementation programme]=$G$3)*(T_DataComboFile[Econ3]=$G59))*T_DataComboFile[2018/19]*$B$3)","v":0},{"$f":"SUMPRODUCT(((T_DataComboFile[Implementation programme]=$G$3)*(T_DataComboFile[Econ3]=$G59))*T_DataComboFile[2019/20 Revised estimate]*$B$3)","v":0},{"$f":"SUMPRODUCT(((T_DataComboFile[Implementation programme]=$G$3)*(T_DataComboFile[Econ3]=$G59))*T_DataComboFile[2020/21 Revised]*$B$3)","v":0},{"$f":"SUMPRODUCT(((T_DataComboFile[Implementation programme]=$G$3)*(T_DataComboFile[Econ3]=$G59))*T_DataComboFile[2021/22 Baseline]*$B$3)","v":0},{"$f":"SUMPRODUCT(((T_DataComboFile[Implementation programme]=$G$3)*(T_DataComboFile[Econ3]=$G59))*T_DataComboFile[2021/22 Reduction]*$B$3)","v":0},{"$f":"SUMPRODUCT(((T_DataComboFile[Implementation programme]=$G$3)*(T_DataComboFile[Econ3]=$G59))*T_DataComboFile[2021/22 Increase]*$B$3)","v":0},0,{"$f":"SUMPRODUCT(((T_DataComboFile[Implementation programme]=$G$3)*(T_DataComboFile[Econ3]=$G59))*T_DataComboFile[2022/23 Baseline]*$B$3)","v":0},{"$f":"SUMPRODUCT(((T_DataComboFile[Implementation programme]=$G$3)*(T_DataComboFile[Econ3]=$G59))*T_DataComboFile[2022/23 Reduction]*$B$3)","v":0},{"$f":"SUMPRODUCT(((T_DataComboFile[Implementation programme]=$G$3)*(T_DataComboFile[Econ3]=$G59))*T_DataComboFile[2022/23 Increase]*$B$3)","v":0},0,{"$f":"SUMPRODUCT(((T_DataComboFile[Implementation programme]=$G$3)*(T_DataComboFile[Econ3]=$G59))*T_DataComboFile[2023/24 Baseline]*$B$3)","v":0},{"$f":"SUMPRODUCT(((T_DataComboFile[Implementation programme]=$G$3)*(T_DataComboFile[Econ3]=$G59))*T_DataComboFile[2023/24 Reduction]*$B$3)","v":0},{"$f":"SUMPRODUCT(((T_DataComboFile[Implementation programme]=$G$3)*(T_DataComboFile[Econ3]=$G59))*T_DataComboFile[2023/24 Increase]*$B$3)","v":0},0]
[0,0,null,null,null,null,"Specialised military assets",{"$f":"SUMPRODUCT(((T_DataComboFile[Implementation programme]=$G$3)*(T_DataComboFile[Econ3]=$G60))*T_DataComboFile[2017/18]*$B$3)","v":0},{"$f":"SUMPRODUCT(((T_DataComboFile[Implementation programme]=$G$3)*(T_DataComboFile[Econ3]=$G60))*T_DataComboFile[2018/19]*$B$3)","v":0},{"$f":"SUMPRODUCT(((T_DataComboFile[Implementation programme]=$G$3)*(T_DataComboFile[Econ3]=$G60))*T_DataComboFile[2019/20 Revised estimate]*$B$3)","v":0},{"$f":"SUMPRODUCT(((T_DataComboFile[Implementation programme]=$G$3)*(T_DataComboFile[Econ3]=$G60))*T_DataComboFile[2020/21 Revised]*$B$3)","v":0},{"$f":"SUMPRODUCT(((T_DataComboFile[Implementation programme]=$G$3)*(T_DataComboFile[Econ3]=$G60))*T_DataComboFile[2021/22 Baseline]*$B$3)","v":0},{"$f":"SUMPRODUCT(((T_DataComboFile[Implementation programme]=$G$3)*(T_DataComboFile[Econ3]=$G60))*T_DataComboFile[2021/22 Reduction]*$B$3)","v":0},{"$f":"SUMPRODUCT(((T_DataComboFile[Implementation programme]=$G$3)*(T_DataComboFile[Econ3]=$G60))*T_DataComboFile[2021/22 Increase]*$B$3)","v":0},0,{"$f":"SUMPRODUCT(((T_DataComboFile[Implementation programme]=$G$3)*(T_DataComboFile[Econ3]=$G60))*T_DataComboFile[2022/23 Baseline]*$B$3)","v":0},{"$f":"SUMPRODUCT(((T_DataComboFile[Implementation programme]=$G$3)*(T_DataComboFile[Econ3]=$G60))*T_DataComboFile[2022/23 Reduction]*$B$3)","v":0},{"$f":"SUMPRODUCT(((T_DataComboFile[Implementation programme]=$G$3)*(T_DataComboFile[Econ3]=$G60))*T_DataComboFile[2022/23 Increase]*$B$3)","v":0},0,{"$f":"SUMPRODUCT(((T_DataComboFile[Implementation programme]=$G$3)*(T_DataComboFile[Econ3]=$G60))*T_DataComboFile[2023/24 Baseline]*$B$3)","v":0},{"$f":"SUMPRODUCT(((T_DataComboFile[Implementation programme]=$G$3)*(T_DataComboFile[Econ3]=$G60))*T_DataComboFile[2023/24 Reduction]*$B$3)","v":0},{"$f":"SUMPRODUCT(((T_DataComboFile[Implementation programme]=$G$3)*(T_DataComboFile[Econ3]=$G60))*T_DataComboFile[2023/24 Increase]*$B$3)","v":0},0]
[0,0,null,null,null,null,"Biological assets",{"$f":"SUMPRODUCT(((T_DataComboFile[Implementation programme]=$G$3)*(T_DataComboFile[Econ3]=$G61))*T_DataComboFile[2017/18]*$B$3)","v":0},{"$f":"SUMPRODUCT(((T_DataComboFile[Implementation programme]=$G$3)*(T_DataComboFile[Econ3]=$G61))*T_DataComboFile[2018/19]*$B$3)","v":0},{"$f":"SUMPRODUCT(((T_DataComboFile[Implementation programme]=$G$3)*(T_DataComboFile[Econ3]=$G61))*T_DataComboFile[2019/20 Revised estimate]*$B$3)","v":0},{"$f":"SUMPRODUCT(((T_DataComboFile[Implementation programme]=$G$3)*(T_DataComboFile[Econ3]=$G61))*T_DataComboFile[2020/21 Revised]*$B$3)","v":0},{"$f":"SUMPRODUCT(((T_DataComboFile[Implementation programme]=$G$3)*(T_DataComboFile[Econ3]=$G61))*T_DataComboFile[2021/22 Baseline]*$B$3)","v":0},{"$f":"SUMPRODUCT(((T_DataComboFile[Implementation programme]=$G$3)*(T_DataComboFile[Econ3]=$G61))*T_DataComboFile[2021/22 Reduction]*$B$3)","v":0},{"$f":"SUMPRODUCT(((T_DataComboFile[Implementation programme]=$G$3)*(T_DataComboFile[Econ3]=$G61))*T_DataComboFile[2021/22 Increase]*$B$3)","v":0},0,{"$f":"SUMPRODUCT(((T_DataComboFile[Implementation programme]=$G$3)*(T_DataComboFile[Econ3]=$G61))*T_DataComboFile[2022/23 Baseline]*$B$3)","v":0},{"$f":"SUMPRODUCT(((T_DataComboFile[Implementation programme]=$G$3)*(T_DataComboFile[Econ3]=$G61))*T_DataComboFile[2022/23 Reduction]*$B$3)","v":0},{"$f":"SUMPRODUCT(((T_DataComboFile[Implementation programme]=$G$3)*(T_DataComboFile[Econ3]=$G61))*T_DataComboFile[2022/23 Increase]*$B$3)","v":0},0,{"$f":"SUMPRODUCT(((T_DataComboFile[Implementation programme]=$G$3)*(T_DataComboFile[Econ3]=$G61))*T_DataComboFile[2023/24 Baseline]*$B$3)","v":0},{"$f":"SUMPRODUCT(((T_DataComboFile[Implementation programme]=$G$3)*(T_DataComboFile[Econ3]=$G61))*T_DataComboFile[2023/24 Reduction]*$B$3)","v":0},{"$f":"SUMPRODUCT(((T_DataComboFile[Implementation programme]=$G$3)*(T_DataComboFile[Econ3]=$G61))*T_DataComboFile[2023/24 Increase]*$B$3)","v":0},0]
[0,0,null,null,null,null,"Land and sub-soil assets",{"$f":"SUMPRODUCT(((T_DataComboFile[Implementation programme]=$G$3)*(T_DataComboFile[Econ3]=$G62))*T_DataComboFile[2017/18]*$B$3)","v":0},{"$f":"SUMPRODUCT(((T_DataComboFile[Implementation programme]=$G$3)*(T_DataComboFile[Econ3]=$G62))*T_DataComboFile[2018/19]*$B$3)","v":0},{"$f":"SUMPRODUCT(((T_DataComboFile[Implementation programme]=$G$3)*(T_DataComboFile[Econ3]=$G62))*T_DataComboFile[2019/20 Revised estimate]*$B$3)","v":0},{"$f":"SUMPRODUCT(((T_DataComboFile[Implementation programme]=$G$3)*(T_DataComboFile[Econ3]=$G62))*T_DataComboFile[2020/21 Revised]*$B$3)","v":0},{"$f":"SUMPRODUCT(((T_DataComboFile[Implementation programme]=$G$3)*(T_DataComboFile[Econ3]=$G62))*T_DataComboFile[2021/22 Baseline]*$B$3)","v":0},{"$f":"SUMPRODUCT(((T_DataComboFile[Implementation programme]=$G$3)*(T_DataComboFile[Econ3]=$G62))*T_DataComboFile[2021/22 Reduction]*$B$3)","v":0},{"$f":"SUMPRODUCT(((T_DataComboFile[Implementation programme]=$G$3)*(T_DataComboFile[Econ3]=$G62))*T_DataComboFile[2021/22 Increase]*$B$3)","v":0},0,{"$f":"SUMPRODUCT(((T_DataComboFile[Implementation programme]=$G$3)*(T_DataComboFile[Econ3]=$G62))*T_DataComboFile[2022/23 Baseline]*$B$3)","v":0},{"$f":"SUMPRODUCT(((T_DataComboFile[Implementation programme]=$G$3)*(T_DataComboFile[Econ3]=$G62))*T_DataComboFile[2022/23 Reduction]*$B$3)","v":0},{"$f":"SUMPRODUCT(((T_DataComboFile[Implementation programme]=$G$3)*(T_DataComboFile[Econ3]=$G62))*T_DataComboFile[2022/23 Increase]*$B$3)","v":0},0,{"$f":"SUMPRODUCT(((T_DataComboFile[Implementation programme]=$G$3)*(T_DataComboFile[Econ3]=$G62))*T_DataComboFile[2023/24 Baseline]*$B$3)","v":0},{"$f":"SUMPRODUCT(((T_DataComboFile[Implementation programme]=$G$3)*(T_DataComboFile[Econ3]=$G62))*T_DataComboFile[2023/24 Reduction]*$B$3)","v":0},{"$f":"SUMPRODUCT(((T_DataComboFile[Implementation programme]=$G$3)*(T_DataComboFile[Econ3]=$G62))*T_DataComboFile[2023/24 Increase]*$B$3)","v":0},0]
[0,0,null,null,null,null,"Software and other intangible assets",{"$f":"SUMPRODUCT(((T_DataComboFile[Implementation programme]=$G$3)*(T_DataComboFile[Econ3]=$G63))*T_DataComboFile[2017/18]*$B$3)","v":0},{"$f":"SUMPRODUCT(((T_DataComboFile[Implementation programme]=$G$3)*(T_DataComboFile[Econ3]=$G63))*T_DataComboFile[2018/19]*$B$3)","v":0},{"$f":"SUMPRODUCT(((T_DataComboFile[Implementation programme]=$G$3)*(T_DataComboFile[Econ3]=$G63))*T_DataComboFile[2019/20 Revised estimate]*$B$3)","v":0},{"$f":"SUMPRODUCT(((T_DataComboFile[Implementation programme]=$G$3)*(T_DataComboFile[Econ3]=$G63))*T_DataComboFile[2020/21 Revised]*$B$3)","v":0},{"$f":"SUMPRODUCT(((T_DataComboFile[Implementation programme]=$G$3)*(T_DataComboFile[Econ3]=$G63))*T_DataComboFile[2021/22 Baseline]*$B$3)","v":0},{"$f":"SUMPRODUCT(((T_DataComboFile[Implementation programme]=$G$3)*(T_DataComboFile[Econ3]=$G63))*T_DataComboFile[2021/22 Reduction]*$B$3)","v":0},{"$f":"SUMPRODUCT(((T_DataComboFile[Implementation programme]=$G$3)*(T_DataComboFile[Econ3]=$G63))*T_DataComboFile[2021/22 Increase]*$B$3)","v":0},0,{"$f":"SUMPRODUCT(((T_DataComboFile[Implementation programme]=$G$3)*(T_DataComboFile[Econ3]=$G63))*T_DataComboFile[2022/23 Baseline]*$B$3)","v":0},{"$f":"SUMPRODUCT(((T_DataComboFile[Implementation programme]=$G$3)*(T_DataComboFile[Econ3]=$G63))*T_DataComboFile[2022/23 Reduction]*$B$3)","v":0},{"$f":"SUMPRODUCT(((T_DataComboFile[Implementation programme]=$G$3)*(T_DataComboFile[Econ3]=$G63))*T_DataComboFile[2022/23 Increase]*$B$3)","v":0},0,{"$f":"SUMPRODUCT(((T_DataComboFile[Implementation programme]=$G$3)*(T_DataComboFile[Econ3]=$G63))*T_DataComboFile[2023/24 Baseline]*$B$3)","v":0},{"$f":"SUMPRODUCT(((T_DataComboFile[Implementation programme]=$G$3)*(T_DataComboFile[Econ3]=$G63))*T_DataComboFile[2023/24 Reduction]*$B$3)","v":0},{"$f":"SUMPRODUCT(((T_DataComboFile[Implementation programme]=$G$3)*(T_DataComboFile[Econ3]=$G63))*T_DataComboFile[2023/24 Increase]*$B$3)","v":0},0]
[0,0,null,null,null,null,"Payments for financial assets",{"$f":"SUMPRODUCT(((T_DataComboFile[Implementation programme]=$G$3)*(T_DataComboFile[Econ3]=$G64))*T_DataComboFile[2017/18]*$B$3)","v":0},{"$f":"SUMPRODUCT(((T_DataComboFile[Implementation programme]=$G$3)*(T_DataComboFile[Econ3]=$G64))*T_DataComboFile[2018/19]*$B$3)","v":0},{"$f":"SUMPRODUCT(((T_DataComboFile[Implementation programme]=$G$3)*(T_DataComboFile[Econ3]=$G64))*T_DataComboFile[2019/20 Revised estimate]*$B$3)","v":0},{"$f":"SUMPRODUCT(((T_DataComboFile[Implementation programme]=$G$3)*(T_DataComboFile[Econ3]=$G64))*T_DataComboFile[2020/21 Revised]*$B$3)","v":0},{"$f":"SUMPRODUCT(((T_DataComboFile[Implementation programme]=$G$3)*(T_DataComboFile[Econ3]=$G64))*T_DataComboFile[2021/22 Baseline]*$B$3)","v":0},{"$f":"SUMPRODUCT(((T_DataComboFile[Implementation programme]=$G$3)*(T_DataComboFile[Econ3]=$G64))*T_DataComboFile[2021/22 Reduction]*$B$3)","v":0},{"$f":"SUMPRODUCT(((T_DataComboFile[Implementation programme]=$G$3)*(T_DataComboFile[Econ3]=$G64))*T_DataComboFile[2021/22 Increase]*$B$3)","v":0},0,{"$f":"SUMPRODUCT(((T_DataComboFile[Implementation programme]=$G$3)*(T_DataComboFile[Econ3]=$G64))*T_DataComboFile[2022/23 Baseline]*$B$3)","v":0},{"$f":"SUMPRODUCT(((T_DataComboFile[Implementation programme]=$G$3)*(T_DataComboFile[Econ3]=$G64))*T_DataComboFile[2022/23 Reduction]*$B$3)","v":0},{"$f":"SUMPRODUCT(((T_DataComboFile[Implementation programme]=$G$3)*(T_DataComboFile[Econ3]=$G64))*T_DataComboFile[2022/23 Increase]*$B$3)","v":0},0,{"$f":"SUMPRODUCT(((T_DataComboFile[Implementation programme]=$G$3)*(T_DataComboFile[Econ3]=$G64))*T_DataComboFile[2023/24 Baseline]*$B$3)","v":0},{"$f":"SUMPRODUCT(((T_DataComboFile[Implementation programme]=$G$3)*(T_DataComboFile[Econ3]=$G64))*T_DataComboFile[2023/24 Reduction]*$B$3)","v":0},{"$f":"SUMPRODUCT(((T_DataComboFile[Implementation programme]=$G$3)*(T_DataComboFile[Econ3]=$G64))*T_DataComboFile[2023/24 Increase]*$B$3)","v":0},0]
[0,0,null,null,null,null,"Total",{"$f":"SUM(H32,H36,H52,H64)","v":0},0,0,0,0,0,0,0,0,0,0,0,0,0,0,0]
[]
[]
[]
[]
[]
[null,null,null,null,null,null,{"$f":"\"IMPACT OF ADJUSTMENTS: \" &UPPER($G$3)","v":"IMPACT OF ADJUSTMENTS: "}]
[]
[null,null,null,null,null,1,"Summary of impact on service delivery due to adjustments"]
[{"$f":"$G$3","v":0},1]
[0,1]
[0,1]
[0,1]
[0,1]
[0,1]
[0,1]
[0,1]
[0,1]
[0,1]
[0,1]
[0,1]
[0,1]
[0,1]
[0,1]
[]
[]
[]
[]
[]
[null,null,null,null,null,2,"Impact of adjustments on performance indicators"]
[{"$f":"$G$3","v":0},2,null,null,null,null,null,"2021/22",null,null,"2022/23",null,null,"2023/24",null,null," Comment",null,null,null,null,"Related MTSF Priority"]
[0,2,null,null,null,null,"Performance indicator","Original target","Revised target","Change","Original target","Revised target","Change","Original target","Revised target","Change"]
[0,2]
[0,2]
[0,2]
[0,2]
[0,2]
[0,2]
[0,2]
[0,2]
[0,2]
[0,2]
[0,2]
[0,2]
[0,2]
[0,2]
[0,2]
[]
[]
[]
[]
[]
[null,null,null,null,null,3,"Impact of adjustments on infrastructure projects"]
[{"$f":"$G$3","v":0},3,null,null,null,null,null,"2021/22",null,null,"2022/23",null,null,"2023/24",null,null," Comment"]
[0,3,null,null,null,null,"Project name","Original amount","Revised amount","Change","Original amount","Revised amount","Change","Original amount","Revised amount","Change"]
[0,3,null,null,null,null,null,null,null,{"$f":"I120-H120","v":0},null,null,{"$f":"L120-K120","v":0},null,null,{"$f":"O120-N120","v":0}]
[0,3,null,null,null,null,null,null,null,0,null,null,0,null,null,0]
[0,3,null,null,null,null,null,null,null,0,null,null,0,null,null,0]
[0,3,null,null,null,null,null,null,null,0,null,null,0,null,null,0]
[0,3,null,null,null,null,null,null,null,0,null,null,0,null,null,0]
[0,3,null,null,null,null,null,null,null,0,null,null,0,null,null,0]
[0,3,null,null,null,null,null,null,null,0,null,null,0,null,null,0]
[0,3,null,null,null,null,null,null,null,0,null,null,0,null,null,0]
[0,3,null,null,null,null,null,null,null,0,null,null,0,null,null,0]
[0,3,null,null,null,null,null,null,null,0,null,null,0,null,null,0]
[0,3,null,null,null,null,null,null,null,0,null,null,0,null,null,0]
[0,3,null,null,null,null,null,null,null,0,null,null,0,null,null,0]
[0,3,null,null,null,null,null,null,null,0,null,null,0,null,null,0]
[0,3,null,null,null,null,null,null,null,0,null,null,0,null,null,0]
[0,3,null,null,null,null,null,null,null,0,null,null,0,null,null,0]
[0,3,null,null,null,null,"Total",{"$f":"SUM(H120:H134)","v":0},0,0,0,0,0,0,0,0]
[]
[]
[]
[]
[]
[null,null,null,null,null,4,"Impact of adjustments on personnel headcount numbers"]
[{"$f":"$G$3","v":0},4,null,null,null,null,null,"2021/22",null,null,"2022/23",null,null,"2023/24",null,null," Comment"]
[0,4,null,null,null,null,"Salary level","Original number","Revised number","Change","Original number","Revised number","Change","Original number","Revised number","Change"]
[0,4,null,null,null,null,1,null,null,{"$f":"I144-H144","v":0},null,null,{"$f":"L144-K144","v":0},null,null,{"$f":"O144-N144","v":0}]
[0,4,null,null,null,null,2,null,null,0,null,null,0,null,null,0]
[0,4,null,null,null,null,3,null,null,0,null,null,0,null,null,0]
[0,4,null,null,null,null,4,null,null,0,null,null,0,null,null,0]
[0,4,null,null,null,null,5,null,null,0,null,null,0,null,null,0]
[0,4,null,null,null,null,6,null,null,0,null,null,0,null,null,0]
[0,4,null,null,null,null,7,null,null,0,null,null,0,null,null,0]
[0,4,null,null,null,null,8,null,null,0,null,null,0,null,null,0]
[0,4,null,null,null,null,9,null,null,0,null,null,0,null,null,0]
[0,4,null,null,null,null,10,null,null,0,null,null,0,null,null,0]
[0,4,null,null,null,null,11,null,null,0,null,null,0,null,null,0]
[0,4,null,null,null,null,12,null,null,0,null,null,0,null,null,0]
[0,4,null,null,null,null,13,null,null,0,null,null,0,null,null,0]
[0,4,null,null,null,null,14,null,null,0,null,null,0,null,null,0]
[0,4,null,null,null,null,15,null,null,0,null,null,0,null,null,0]
[0,4,null,null,null,null,16,null,null,0,null,null,0,null,null,0]
[0,4,null,null,null,null,"Other",null,null,0,null,null,0,null,null,0]
[0,4,null,null,null,null,"Other",null,null,0,null,null,0,null,null,0]
[0,4,null,null,null,null,"Other",null,null,0,null,null,0,null,null,0]
[0,4,null,null,null,null,"Other",null,null,0,null,null,0,null,null,0]
[0,4,null,null,null,null,"Total",{"$f":"SUM(H144:H163)","v":0},0,0,0,0,0,0,0,0]
[]
[]
[]
[]
[]
[null,null,null,null,null,5,"Impact of adjustments by economic classification"]
[{"$f":"$G$3","v":0},5,null,null,null,null,null,"2021/22",null,null,"2022/23",null,null,"2023/24",null,null," Comment"]
[0,5,null,null,null,null,"Salary level","Original number","Revised number","Change","Original number","Revised number","Change","Original number","Revised number","Change"]
[0,5,null,null,null,null,"Current payments",{"$f":"SUM(H174,H175,H182)","v":0},{"$f":"SUM(I174,I175,I182)","v":0},{"$f":"I173-H173","v":0},{"$f":"SUM(K174,K175,K182)","v":0},{"$f":"SUM(L174,L175,L182)","v":0},{"$f":"L173-K173","v":0},{"$f":"SUM(N174,N175,N182)","v":0},{"$f":"SUM(O174,O175,O182)","v":0},{"$f":"O173-N173","v":0}]
[0,5,null,null,null,null,"Compensation of employees",{"$f":"SUMPRODUCT(((T_DataComboFile[Implementation programme]=$G$3)*(T_DataComboFile[Econ3]=$G174))*T_DataComboFile[2021/22 Baseline]*$B$3)","v":0},{"$f":"SUMPRODUCT(((T_DataComboFile[Implementation programme]=$G$3)*(T_DataComboFile[Econ3]=$G174))*T_DataComboFile[2021/22 Revised baseline]*$B$3)","v":0},0,{"$f":"SUMPRODUCT(((T_DataComboFile[Implementation programme]=$G$3)*(T_DataComboFile[Econ3]=$G174))*T_DataComboFile[2022/23 Baseline]*$B$3)","v":0},{"$f":"SUMPRODUCT(((T_DataComboFile[Implementation programme]=$G$3)*(T_DataComboFile[Econ3]=$G174))*T_DataComboFile[2022/23 Revised baseline]*$B$3)","v":0},0,{"$f":"SUMPRODUCT(((T_DataComboFile[Implementation programme]=$G$3)*(T_DataComboFile[Econ3]=$G174))*T_DataComboFile[2023/24 Baseline]*$B$3)","v":0},{"$f":"SUMPRODUCT(((T_DataComboFile[Implementation programme]=$G$3)*(T_DataComboFile[Econ3]=$G174))*T_DataComboFile[2023/24 Revised baseline]*$B$3)","v":0},0]
[0,5,null,null,null,null,"Goods and services",{"$f":"SUMPRODUCT(((T_DataComboFile[Implementation programme]=$G$3)*(T_DataComboFile[Econ3]=$G175))*T_DataComboFile[2021/22 Baseline]*$B$3)","v":0},{"$f":"SUMPRODUCT(((T_DataComboFile[Implementation programme]=$G$3)*(T_DataComboFile[Econ3]=$G175))*T_DataComboFile[2021/22 Revised baseline]*$B$3)","v":0},0,{"$f":"SUMPRODUCT(((T_DataComboFile[Implementation programme]=$G$3)*(T_DataComboFile[Econ3]=$G175))*T_DataComboFile[2022/23 Baseline]*$B$3)","v":0},{"$f":"SUMPRODUCT(((T_DataComboFile[Implementation programme]=$G$3)*(T_DataComboFile[Econ3]=$G175))*T_DataComboFile[2022/23 Revised baseline]*$B$3)","v":0},0,{"$f":"SUMPRODUCT(((T_DataComboFile[Implementation programme]=$G$3)*(T_DataComboFile[Econ3]=$G175))*T_DataComboFile[2023/24 Baseline]*$B$3)","v":0},{"$f":"SUMPRODUCT(((T_DataComboFile[Implementation programme]=$G$3)*(T_DataComboFile[Econ3]=$G175))*T_DataComboFile[2023/24 Revised baseline]*$B$3)","v":0},0]
[0,50,null,null,null,null,"of which:"]
[0,51,null,null,null,null,null,null,null,{"$f":"I177-H177","v":0},null,null,{"$f":"L177-K177","v":0},null,null,0]
[0,51,null,null,null,null,null,null,null,0,null,null,0,null,null,0]
[0,51,null,null,null,null,null,null,null,0,null,null,0,null,null,0]
[0,51,null,null,null,null,null,null,null,0,null,null,0,null,null,0]
[0,51,null,null,null,null,null,null,null,0,null,null,0,null,null,0]
[0,5,null,null,null,null,"Interest and rent on land",{"$f":"SUMPRODUCT(((T_DataComboFile[Implementation programme]=$G$3)*(T_DataComboFile[Econ3]=$G182))*T_DataComboFile[2021/22 Baseline]*$B$3)","v":0},{"$f":"SUMPRODUCT(((T_DataComboFile[Implementation programme]=$G$3)*(T_DataComboFile[Econ3]=$G182))*T_DataComboFile[2021/22 Revised baseline]*$B$3)","v":0},0,{"$f":"SUMPRODUCT(((T_DataComboFile[Implementation programme]=$G$3)*(T_DataComboFile[Econ3]=$G182))*T_DataComboFile[2022/23 Baseline]*$B$3)","v":0},{"$f":"SUMPRODUCT(((T_DataComboFile[Implementation programme]=$G$3)*(T_DataComboFile[Econ3]=$G182))*T_DataComboFile[2022/23 Revised baseline]*$B$3)","v":0},0,{"$f":"SUMPRODUCT(((T_DataComboFile[Implementation programme]=$G$3)*(T_DataComboFile[Econ3]=$G182))*T_DataComboFile[2023/24 Baseline]*$B$3)","v":0},{"$f":"SUMPRODUCT(((T_DataComboFile[Implementation programme]=$G$3)*(T_DataComboFile[Econ3]=$G182))*T_DataComboFile[2023/24 Revised baseline]*$B$3)","v":0},0]
[0,5,null,null,null,null,"Transfers and subsidies",{"$f":"SUM(H184,H185,H197,H198,H199,H206,H207)","v":0},{"$f":"SUM(I184,I185,I197,I198,I199,I206,I207)","v":0},0,{"$f":"SUM(K184,K185,K197,K198,K199,K206,K207)","v":0},0,0,{"$f":"SUM(N184,N185,N197,N198,N199,N206,N207)","v":0},0,0]
[0,5,null,null,null,null,"Provinces and municipalities",{"$f":"SUMPRODUCT(((T_DataComboFile[Implementation programme]=$G$3)*(T_DataComboFile[Econ3]=$G184))*T_DataComboFile[2021/22 Baseline]*$B$3)","v":0},{"$f":"SUMPRODUCT(((T_DataComboFile[Implementation programme]=$G$3)*(T_DataComboFile[Econ3]=$G184))*T_DataComboFile[2021/22 Revised baseline]*$B$3)","v":0},0,{"$f":"SUMPRODUCT(((T_DataComboFile[Implementation programme]=$G$3)*(T_DataComboFile[Econ3]=$G184))*T_DataComboFile[2022/23 Baseline]*$B$3)","v":0},{"$f":"SUMPRODUCT(((T_DataComboFile[Implementation programme]=$G$3)*(T_DataComboFile[Econ3]=$G184))*T_DataComboFile[2022/23 Revised baseline]*$B$3)","v":0},0,{"$f":"SUMPRODUCT(((T_DataComboFile[Implementation programme]=$G$3)*(T_DataComboFile[Econ3]=$G184))*T_DataComboFile[2023/24 Baseline]*$B$3)","v":0},{"$f":"SUMPRODUCT(((T_DataComboFile[Implementation programme]=$G$3)*(T_DataComboFile[Econ3]=$G184))*T_DataComboFile[2023/24 Revised baseline]*$B$3)","v":0},0]
[0,5,null,null,null,null,"Departmental agencies and accounts",{"$f":"SUMPRODUCT(((T_DataComboFile[Implementation programme]=$G$3)*(T_DataComboFile[Econ3]=$G185))*T_DataComboFile[2021/22 Baseline]*$B$3)","v":0},{"$f":"SUMPRODUCT(((T_DataComboFile[Implementation programme]=$G$3)*(T_DataComboFile[Econ3]=$G185))*T_DataComboFile[2021/22 Revised baseline]*$B$3)","v":0},0,{"$f":"SUMPRODUCT(((T_DataComboFile[Implementation programme]=$G$3)*(T_DataComboFile[Econ3]=$G185))*T_DataComboFile[2022/23 Baseline]*$B$3)","v":0},{"$f":"SUMPRODUCT(((T_DataComboFile[Implementation programme]=$G$3)*(T_DataComboFile[Econ3]=$G185))*T_DataComboFile[2022/23 Revised baseline]*$B$3)","v":0},0,{"$f":"SUMPRODUCT(((T_DataComboFile[Implementation programme]=$G$3)*(T_DataComboFile[Econ3]=$G185))*T_DataComboFile[2023/24 Baseline]*$B$3)","v":0},{"$f":"SUMPRODUCT(((T_DataComboFile[Implementation programme]=$G$3)*(T_DataComboFile[Econ3]=$G185))*T_DataComboFile[2023/24 Revised baseline]*$B$3)","v":0},0]
[0,50,null,null,null,null,"of which:"]
[0,52,null,null,null,null,null,null,null,{"$f":"I187-H187","v":0},null,null,{"$f":"L187-K187","v":0},null,null,{"$f":"O187-N187","v":0}]
[0,52,null,null,null,null,null,null,null,0,null,null,0,null,null,0]
[0,52,null,null,null,null,null,null,null,0,null,null,0,null,null,0]
[0,52,null,null,null,null,null,null,null,0,null,null,0,null,null,0]
[0,52,null,null,null,null,null,null,null,0,null,null,0,null,null,0]
[0,52,null,null,null,null,null,null,null,0,null,null,0,null,null,0]
[0,52,null,null,null,null,null,null,null,0,null,null,0,null,null,0]
[0,52,null,null,null,null,null,null,null,0,null,null,0,null,null,0]
[0,52,null,null,null,null,null,null,null,0,null,null,0,null,null,0]
[0,52,null,null,null,null,null,null,null,0,null,null,0,null,null,0]
[0,5,null,null,null,null,"Higher education institutions",{"$f":"SUMPRODUCT(((T_DataComboFile[Implementation programme]=$G$3)*(T_DataComboFile[Econ3]=$G197))*T_DataComboFile[2021/22 Baseline]*$B$3)","v":0},{"$f":"SUMPRODUCT(((T_DataComboFile[Implementation programme]=$G$3)*(T_DataComboFile[Econ3]=$G197))*T_DataComboFile[2021/22 Revised baseline]*$B$3)","v":0},0,{"$f":"SUMPRODUCT(((T_DataComboFile[Implementation programme]=$G$3)*(T_DataComboFile[Econ3]=$G197))*T_DataComboFile[2022/23 Baseline]*$B$3)","v":0},{"$f":"SUMPRODUCT(((T_DataComboFile[Implementation programme]=$G$3)*(T_DataComboFile[Econ3]=$G197))*T_DataComboFile[2022/23 Revised baseline]*$B$3)","v":0},0,{"$f":"SUMPRODUCT(((T_DataComboFile[Implementation programme]=$G$3)*(T_DataComboFile[Econ3]=$G197))*T_DataComboFile[2023/24 Baseline]*$B$3)","v":0},{"$f":"SUMPRODUCT(((T_DataComboFile[Implementation programme]=$G$3)*(T_DataComboFile[Econ3]=$G197))*T_DataComboFile[2023/24 Revised baseline]*$B$3)","v":0},0]
[0,5,null,null,null,null,"Foreign governments and international organisations",{"$f":"SUMPRODUCT(((T_DataComboFile[Implementation programme]=$G$3)*(T_DataComboFile[Econ3]=$G198))*T_DataComboFile[2021/22 Baseline]*$B$3)","v":0},{"$f":"SUMPRODUCT(((T_DataComboFile[Implementation programme]=$G$3)*(T_DataComboFile[Econ3]=$G198))*T_DataComboFile[2021/22 Revised baseline]*$B$3)","v":0},0,{"$f":"SUMPRODUCT(((T_DataComboFile[Implementation programme]=$G$3)*(T_DataComboFile[Econ3]=$G198))*T_DataComboFile[2022/23 Baseline]*$B$3)","v":0},{"$f":"SUMPRODUCT(((T_DataComboFile[Implementation programme]=$G$3)*(T_DataComboFile[Econ3]=$G198))*T_DataComboFile[2022/23 Revised baseline]*$B$3)","v":0},0,{"$f":"SUMPRODUCT(((T_DataComboFile[Implementation programme]=$G$3)*(T_DataComboFile[Econ3]=$G198))*T_DataComboFile[2023/24 Baseline]*$B$3)","v":0},{"$f":"SUMPRODUCT(((T_DataComboFile[Implementation programme]=$G$3)*(T_DataComboFile[Econ3]=$G198))*T_DataComboFile[2023/24 Revised baseline]*$B$3)","v":0},0]
[0,5,null,null,null,null,"Public corporations and private enterprises",{"$f":"SUMPRODUCT(((T_DataComboFile[Implementation programme]=$G$3)*(T_DataComboFile[Econ3]=$G199))*T_DataComboFile[2021/22 Baseline]*$B$3)","v":0},{"$f":"SUMPRODUCT(((T_DataComboFile[Implementation programme]=$G$3)*(T_DataComboFile[Econ3]=$G199))*T_DataComboFile[2021/22 Revised baseline]*$B$3)","v":0},0,{"$f":"SUMPRODUCT(((T_DataComboFile[Implementation programme]=$G$3)*(T_DataComboFile[Econ3]=$G199))*T_DataComboFile[2022/23 Baseline]*$B$3)","v":0},{"$f":"SUMPRODUCT(((T_DataComboFile[Implementation programme]=$G$3)*(T_DataComboFile[Econ3]=$G199))*T_DataComboFile[2022/23 Revised baseline]*$B$3)","v":0},0,{"$f":"SUMPRODUCT(((T_DataComboFile[Implementation programme]=$G$3)*(T_DataComboFile[Econ3]=$G199))*T_DataComboFile[2023/24 Baseline]*$B$3)","v":0},{"$f":"SUMPRODUCT(((T_DataComboFile[Implementation programme]=$G$3)*(T_DataComboFile[Econ3]=$G199))*T_DataComboFile[2023/24 Revised baseline]*$B$3)","v":0},0]
[0,50,null,null,null,null,"of which:"]
[0,53,null,null,null,null,null,null,null,{"$f":"I201-H201","v":0},null,null,{"$f":"L201-K201","v":0},null,null,{"$f":"O201-N201","v":0}]
[0,53,null,null,null,null,null,null,null,0,null,null,0,null,null,0]
[0,53,null,null,null,null,null,null,null,0,null,null,0,null,null,0]
[0,53,null,null,null,null,null,null,null,0,null,null,0,null,null,0]
[0,53,null,null,null,null,null,null,null,0,null,null,0,null,null,0]
[0,5,null,null,null,null,"Non-profit institutions",{"$f":"SUMPRODUCT(((T_DataComboFile[Implementation programme]=$G$3)*(T_DataComboFile[Econ3]=$G206))*T_DataComboFile[2021/22 Baseline]*$B$3)","v":0},{"$f":"SUMPRODUCT(((T_DataComboFile[Implementation programme]=$G$3)*(T_DataComboFile[Econ3]=$G206))*T_DataComboFile[2021/22 Revised baseline]*$B$3)","v":0},0,{"$f":"SUMPRODUCT(((T_DataComboFile[Implementation programme]=$G$3)*(T_DataComboFile[Econ3]=$G206))*T_DataComboFile[2022/23 Baseline]*$B$3)","v":0},{"$f":"SUMPRODUCT(((T_DataComboFile[Implementation programme]=$G$3)*(T_DataComboFile[Econ3]=$G206))*T_DataComboFile[2022/23 Revised baseline]*$B$3)","v":0},0,{"$f":"SUMPRODUCT(((T_DataComboFile[Implementation programme]=$G$3)*(T_DataComboFile[Econ3]=$G206))*T_DataComboFile[2023/24 Baseline]*$B$3)","v":0},{"$f":"SUMPRODUCT(((T_DataComboFile[Implementation programme]=$G$3)*(T_DataComboFile[Econ3]=$G206))*T_DataComboFile[2023/24 Revised baseline]*$B$3)","v":0},0]
[0,5,null,null,null,null,"Households",{"$f":"SUMPRODUCT(((T_DataComboFile[Implementation programme]=$G$3)*(T_DataComboFile[Econ3]=$G207))*T_DataComboFile[2021/22 Baseline]*$B$3)","v":0},{"$f":"SUMPRODUCT(((T_DataComboFile[Implementation programme]=$G$3)*(T_DataComboFile[Econ3]=$G207))*T_DataComboFile[2021/22 Revised baseline]*$B$3)","v":0},0,{"$f":"SUMPRODUCT(((T_DataComboFile[Implementation programme]=$G$3)*(T_DataComboFile[Econ3]=$G207))*T_DataComboFile[2022/23 Baseline]*$B$3)","v":0},{"$f":"SUMPRODUCT(((T_DataComboFile[Implementation programme]=$G$3)*(T_DataComboFile[Econ3]=$G207))*T_DataComboFile[2022/23 Revised baseline]*$B$3)","v":0},0,{"$f":"SUMPRODUCT(((T_DataComboFile[Implementation programme]=$G$3)*(T_DataComboFile[Econ3]=$G207))*T_DataComboFile[2023/24 Baseline]*$B$3)","v":0},{"$f":"SUMPRODUCT(((T_DataComboFile[Implementation programme]=$G$3)*(T_DataComboFile[Econ3]=$G207))*T_DataComboFile[2023/24 Revised baseline]*$B$3)","v":0},0]
[0,5,null,null,null,null,"Payments for capital assets",{"$f":"SUM(H209:H215)","v":0},0,0,0,0,0,0,{"$f":"SUM(O209:O215)","v":0},0]
[0,5,null,null,null,null,"Buildings and other fixed structures",{"$f":"SUMPRODUCT(((T_DataComboFile[Implementation programme]=$G$3)*(T_DataComboFile[Econ3]=$G209))*T_DataComboFile[2021/22 Baseline]*$B$3)","v":0},{"$f":"SUMPRODUCT(((T_DataComboFile[Implementation programme]=$G$3)*(T_DataComboFile[Econ3]=$G209))*T_DataComboFile[2021/22 Revised baseline]*$B$3)","v":0},0,{"$f":"SUMPRODUCT(((T_DataComboFile[Implementation programme]=$G$3)*(T_DataComboFile[Econ3]=$G209))*T_DataComboFile[2022/23 Baseline]*$B$3)","v":0},{"$f":"SUMPRODUCT(((T_DataComboFile[Implementation programme]=$G$3)*(T_DataComboFile[Econ3]=$G209))*T_DataComboFile[2022/23 Revised baseline]*$B$3)","v":0},0,{"$f":"SUMPRODUCT(((T_DataComboFile[Implementation programme]=$G$3)*(T_DataComboFile[Econ3]=$G209))*T_DataComboFile[2023/24 Baseline]*$B$3)","v":0},{"$f":"SUMPRODUCT(((T_DataComboFile[Implementation programme]=$G$3)*(T_DataComboFile[Econ3]=$G209))*T_DataComboFile[2023/24 Revised baseline]*$B$3)","v":0},0]
[0,5,null,null,null,null,"Machinery and equipment",{"$f":"SUMPRODUCT(((T_DataComboFile[Implementation programme]=$G$3)*(T_DataComboFile[Econ3]=$G210))*T_DataComboFile[2021/22 Baseline]*$B$3)","v":0},{"$f":"SUMPRODUCT(((T_DataComboFile[Implementation programme]=$G$3)*(T_DataComboFile[Econ3]=$G210))*T_DataComboFile[2021/22 Revised baseline]*$B$3)","v":0},0,{"$f":"SUMPRODUCT(((T_DataComboFile[Implementation programme]=$G$3)*(T_DataComboFile[Econ3]=$G210))*T_DataComboFile[2022/23 Baseline]*$B$3)","v":0},{"$f":"SUMPRODUCT(((T_DataComboFile[Implementation programme]=$G$3)*(T_DataComboFile[Econ3]=$G210))*T_DataComboFile[2022/23 Revised baseline]*$B$3)","v":0},0,{"$f":"SUMPRODUCT(((T_DataComboFile[Implementation programme]=$G$3)*(T_DataComboFile[Econ3]=$G210))*T_DataComboFile[2023/24 Baseline]*$B$3)","v":0},{"$f":"SUMPRODUCT(((T_DataComboFile[Implementation programme]=$G$3)*(T_DataComboFile[Econ3]=$G210))*T_DataComboFile[2023/24 Revised baseline]*$B$3)","v":0},0]
[0,5,null,null,null,null,"Heritage assets",{"$f":"SUMPRODUCT(((T_DataComboFile[Implementation programme]=$G$3)*(T_DataComboFile[Econ3]=$G211))*T_DataComboFile[2021/22 Baseline]*$B$3)","v":0},{"$f":"SUMPRODUCT(((T_DataComboFile[Implementation programme]=$G$3)*(T_DataComboFile[Econ3]=$G211))*T_DataComboFile[2021/22 Revised baseline]*$B$3)","v":0},0,{"$f":"SUMPRODUCT(((T_DataComboFile[Implementation programme]=$G$3)*(T_DataComboFile[Econ3]=$G211))*T_DataComboFile[2022/23 Baseline]*$B$3)","v":0},{"$f":"SUMPRODUCT(((T_DataComboFile[Implementation programme]=$G$3)*(T_DataComboFile[Econ3]=$G211))*T_DataComboFile[2022/23 Revised baseline]*$B$3)","v":0},0,{"$f":"SUMPRODUCT(((T_DataComboFile[Implementation programme]=$G$3)*(T_DataComboFile[Econ3]=$G211))*T_DataComboFile[2023/24 Baseline]*$B$3)","v":0},{"$f":"SUMPRODUCT(((T_DataComboFile[Implementation programme]=$G$3)*(T_DataComboFile[Econ3]=$G211))*T_DataComboFile[2023/24 Revised baseline]*$B$3)","v":0},0]
[0,5,null,null,null,null,"Specialised military assets",{"$f":"SUMPRODUCT(((T_DataComboFile[Implementation programme]=$G$3)*(T_DataComboFile[Econ3]=$G212))*T_DataComboFile[2021/22 Baseline]*$B$3)","v":0},{"$f":"SUMPRODUCT(((T_DataComboFile[Implementation programme]=$G$3)*(T_DataComboFile[Econ3]=$G212))*T_DataComboFile[2021/22 Revised baseline]*$B$3)","v":0},0,{"$f":"SUMPRODUCT(((T_DataComboFile[Implementation programme]=$G$3)*(T_DataComboFile[Econ3]=$G212))*T_DataComboFile[2022/23 Baseline]*$B$3)","v":0},{"$f":"SUMPRODUCT(((T_DataComboFile[Implementation programme]=$G$3)*(T_DataComboFile[Econ3]=$G212))*T_DataComboFile[2022/23 Revised baseline]*$B$3)","v":0},0,{"$f":"SUMPRODUCT(((T_DataComboFile[Implementation programme]=$G$3)*(T_DataComboFile[Econ3]=$G212))*T_DataComboFile[2023/24 Baseline]*$B$3)","v":0},{"$f":"SUMPRODUCT(((T_DataComboFile[Implementation programme]=$G$3)*(T_DataComboFile[Econ3]=$G212))*T_DataComboFile[2023/24 Revised baseline]*$B$3)","v":0},0]
[0,5,null,null,null,null,"Biological assets",{"$f":"SUMPRODUCT(((T_DataComboFile[Implementation programme]=$G$3)*(T_DataComboFile[Econ3]=$G213))*T_DataComboFile[2021/22 Baseline]*$B$3)","v":0},{"$f":"SUMPRODUCT(((T_DataComboFile[Implementation programme]=$G$3)*(T_DataComboFile[Econ3]=$G213))*T_DataComboFile[2021/22 Revised baseline]*$B$3)","v":0},0,{"$f":"SUMPRODUCT(((T_DataComboFile[Implementation programme]=$G$3)*(T_DataComboFile[Econ3]=$G213))*T_DataComboFile[2022/23 Baseline]*$B$3)","v":0},{"$f":"SUMPRODUCT(((T_DataComboFile[Implementation programme]=$G$3)*(T_DataComboFile[Econ3]=$G213))*T_DataComboFile[2022/23 Revised baseline]*$B$3)","v":0},0,{"$f":"SUMPRODUCT(((T_DataComboFile[Implementation programme]=$G$3)*(T_DataComboFile[Econ3]=$G213))*T_DataComboFile[2023/24 Baseline]*$B$3)","v":0},{"$f":"SUMPRODUCT(((T_DataComboFile[Implementation programme]=$G$3)*(T_DataComboFile[Econ3]=$G213))*T_DataComboFile[2023/24 Revised baseline]*$B$3)","v":0},0]
[0,5,null,null,null,null,"Land and sub-soil assets",{"$f":"SUMPRODUCT(((T_DataComboFile[Implementation programme]=$G$3)*(T_DataComboFile[Econ3]=$G214))*T_DataComboFile[2021/22 Baseline]*$B$3)","v":0},{"$f":"SUMPRODUCT(((T_DataComboFile[Implementation programme]=$G$3)*(T_DataComboFile[Econ3]=$G214))*T_DataComboFile[2021/22 Revised baseline]*$B$3)","v":0},0,{"$f":"SUMPRODUCT(((T_DataComboFile[Implementation programme]=$G$3)*(T_DataComboFile[Econ3]=$G214))*T_DataComboFile[2022/23 Baseline]*$B$3)","v":0},{"$f":"SUMPRODUCT(((T_DataComboFile[Implementation programme]=$G$3)*(T_DataComboFile[Econ3]=$G214))*T_DataComboFile[2022/23 Revised baseline]*$B$3)","v":0},0,{"$f":"SUMPRODUCT(((T_DataComboFile[Implementation programme]=$G$3)*(T_DataComboFile[Econ3]=$G214))*T_DataComboFile[2023/24 Baseline]*$B$3)","v":0},{"$f":"SUMPRODUCT(((T_DataComboFile[Implementation programme]=$G$3)*(T_DataComboFile[Econ3]=$G214))*T_DataComboFile[2023/24 Revised baseline]*$B$3)","v":0},0]
[0,5,null,null,null,null,"Software and other intangible assets",{"$f":"SUMPRODUCT(((T_DataComboFile[Implementation programme]=$G$3)*(T_DataComboFile[Econ3]=$G215))*T_DataComboFile[2021/22 Baseline]*$B$3)","v":0},{"$f":"SUMPRODUCT(((T_DataComboFile[Implementation programme]=$G$3)*(T_DataComboFile[Econ3]=$G215))*T_DataComboFile[2021/22 Revised baseline]*$B$3)","v":0},0,{"$f":"SUMPRODUCT(((T_DataComboFile[Implementation programme]=$G$3)*(T_DataComboFile[Econ3]=$G215))*T_DataComboFile[2022/23 Baseline]*$B$3)","v":0},{"$f":"SUMPRODUCT(((T_DataComboFile[Implementation programme]=$G$3)*(T_DataComboFile[Econ3]=$G215))*T_DataComboFile[2022/23 Revised baseline]*$B$3)","v":0},0,{"$f":"SUMPRODUCT(((T_DataComboFile[Implementation programme]=$G$3)*(T_DataComboFile[Econ3]=$G215))*T_DataComboFile[2023/24 Baseline]*$B$3)","v":0},{"$f":"SUMPRODUCT(((T_DataComboFile[Implementation programme]=$G$3)*(T_DataComboFile[Econ3]=$G215))*T_DataComboFile[2023/24 Revised baseline]*$B$3)","v":0},0]
[0,5,null,null,null,null,"Payments for financial assets",{"$f":"SUMPRODUCT(((T_DataComboFile[Implementation programme]=$G$3)*(T_DataComboFile[Econ3]=$G216))*T_DataComboFile[2021/22 Baseline]*$B$3)","v":0},{"$f":"SUMPRODUCT(((T_DataComboFile[Implementation programme]=$G$3)*(T_DataComboFile[Econ3]=$G216))*T_DataComboFile[2021/22 Revised baseline]*$B$3)","v":0},0,{"$f":"SUMPRODUCT(((T_DataComboFile[Implementation programme]=$G$3)*(T_DataComboFile[Econ3]=$G216))*T_DataComboFile[2022/23 Baseline]*$B$3)","v":0},{"$f":"SUMPRODUCT(((T_DataComboFile[Implementation programme]=$G$3)*(T_DataComboFile[Econ3]=$G216))*T_DataComboFile[2022/23 Revised baseline]*$B$3)","v":0},0,{"$f":"SUMPRODUCT(((T_DataComboFile[Implementation programme]=$G$3)*(T_DataComboFile[Econ3]=$G216))*T_DataComboFile[2023/24 Baseline]*$B$3)","v":0},{"$f":"SUMPRODUCT(((T_DataComboFile[Implementation programme]=$G$3)*(T_DataComboFile[Econ3]=$G216))*T_DataComboFile[2023/24 Revised baseline]*$B$3)","v":0},0]
[0,5,null,null,null,null,"Total",{"$f":"SUM(H173,H183,H208,H216)","v":0},0,0,0,0,0,0,{"$f":"SUM(O173,O183,O208,O216)","v":0},0]
[]
[null,null,null,null,null,null,null,{"$f":"L65-H217","v":0},{"$f":"O65-I217","v":0},null,{"$f":"P65-K217","v":0},{"$f":"S65-L217","v":0},null,{"$f":"T65-N217","v":0},{"$f":"W65-O217","v":0}]

{"sheet":"IP17","index":26,"n_rows":219,"n_cols":23,"rows_kept":219,"cut":false,"hidden":false,"merged":[[70,6,70,17],[73,6,87,17],[94,16,94,20],[94,21,94,23],[95,16,95,20],[95,21,95,23],[99,16,99,20],[99,21,99,23],[100,16,100,20],[100,21,100,23],[101,16,101,20],[101,21,101,23],[96,16,96,20],[96,21,96,23],[97,16,97,20],[97,21,97,23],[98,16,98,20],[98,21,98,23],[105,16,105,20],[105,21,105,23],[106,16,106,20],[106,21,106,23],[107,16,107,20],[107,21,107,23],[102,16,102,20],[102,21,102,23],[103,16,103,20],[103,21,103,23],[104,16,104,20],[104,21,104,23],[117,16,117,20],[118,16,118,20],[119,16,119,20],[120,16,120,20],[121,16,121,20],[122,16,122,20],[108,16,108,20],[108,21,108,23],[109,16,109,20],[109,21,109,23],[110,16,110,20],[110,21,110,23],[129,16,129,20],[130,16,130,20],[131,16,131,20],[132,16,132,20],[133,16,133,20],[141,16,141,20],[123,16,123,20],[124,16,124,20],[125,16,125,20],[126,16,126,20],[127,16,127,20],[128,16,128,20],[174,16,174,20],[175,16,175,20],[176,16,176,20],[177,16,177,20],[178,16,178,20],[179,16,179,20],[142,16,142,20],[143,16,162,20],[170,16,170,20],[171,16,171,20],[172,16,172,20],[173,16,173,20],[186,16,186,20],[187,16,187,20],[188,16,188,20],[189,16,189,20],[190,16,190,20],[191,16,191,20],[180,16,180,20],[181,16,181,20],[182,16,182,20],[183,16,183,20],[184,16,184,20],[185,16,185,20],[198,16,198,20],[199,16,199,20],[200,16,200,20],[201,16,201,20],[202,16,202,20],[203,16,203,20],[192,16,192,20],[193,16,193,20],[194,16,194,20],[195,16,195,20],[196,16,196,20],[197,16,197,20],[210,16,210,20],[211,16,211,20],[212,16,212,20],[213,16,213,20],[214,16,214,20],[215,16,215,20],[204,16,204,20],[205,16,205,20],[206,16,206,20],[207,16,207,20],[208,16,208,20],[209,16,209,20]]}
[]
[null,null,null,null,null,null,"Implementation programme:"]
[null,{"$f":"IF(G3=\"\",0,1)","v":0},null,null,null,17,null,"… select from dropdown list"]
[null,null,null,null,null,null,null,null,null,null,null,null,"Growth"]
[null,null,null,null,null,null,"Quick view","2020/21","2021/22","2022/23","2023/24","Trend","2021/22","2022/23","2023/24","Ave Ann",null,"2020/21","2021/22","2022/23","2023/24"]
[null,null,null,null,null,null,"Compensation of employees",{"$f":"SUMPRODUCT(($G$32:$G$65=$G6)*($K$32:$K$65))","v":0},{"$f":"SUMPRODUCT(($G$32:$G$65=$G6)*($O$32:$O$65))","v":0},{"$f":"SUMPRODUCT(($G$32:$G$65=$G6)*($S$32:$S$65))","v":0},{"$f":"SUMPRODUCT(($G$32:$G$65=$G6)*($W$32:$W$65))","v":0},null,{"$f":"IFERROR(I6/H6-1,0)","v":0},0,0,{"$f":"IFERROR(((K6/H6)^(1/3)-1),0)","v":0}]
[null,null,null,null,null,null,"Goods and services",{"$f":"SUMPRODUCT(($G$32:$G$65=$G7)*($K$32:$K$65))","v":0},{"$f":"SUMPRODUCT(($G$32:$G$65=$G7)*($O$32:$O$65))","v":0},{"$f":"SUMPRODUCT(($G$32:$G$65=$G7)*($S$32:$S$65))","v":0},{"$f":"SUMPRODUCT(($G$32:$G$65=$G7)*($W$32:$W$65))","v":0},null,0,0,0,0]
[null,null,null,null,null,null,"Transfers and subsidies",{"$f":"SUMPRODUCT(($G$32:$G$65=$G8)*($K$32:$K$65))","v":0},{"$f":"SUMPRODUCT(($G$32:$G$65=$G8)*($O$32:$O$65))","v":0},{"$f":"SUMPRODUCT(($G$32:$G$65=$G8)*($S$32:$S$65))","v":0},{"$f":"SUMPRODUCT(($G$32:$G$65=$G8)*($W$32:$W$65))","v":0},null,0,0,0,0]
[null,null,null,null,null,null,"Payments for capital assets",{"$f":"SUMPRODUCT(($G$32:$G$65=$G9)*($K$32:$K$65))","v":0},{"$f":"SUMPRODUCT(($G$32:$G$65=$G9)*($O$32:$O$65))","v":0},{"$f":"SUMPRODUCT(($G$32:$G$65=$G9)*($S$32:$S$65))","v":0},{"$f":"SUMPRODUCT(($G$32:$G$65=$G9)*($W$32:$W$65))","v":0},null,0,0,0,0]
[null,null,null,null,null,null,"Total",{"$f":"SUMPRODUCT(($G$32:$G$65=$G10)*($K$32:$K$65))","v":0},{"$f":"SUMPRODUCT(($G$32:$G$65=$G10)*($O$32:$O$65))","v":0},{"$f":"SUMPRODUCT(($G$32:$G$65=$G10)*($S$32:$S$65))","v":0},{"$f":"SUMPRODUCT(($G$32:$G$65=$G10)*($W$32:$W$65))","v":0},null,0,0,0,0]
[null,null,null,null,null,null,"Composition of spending (% of Total)"]
[null,null,null,null,null,null,"Compensation of employees",{"$f":"IFERROR(H6/H$10,\"\")","v":""},"","","",null,null,null,null,null,null,{"$f":"IF(H12>0.0595,H12,\"\")","v":""},"","",""]
[null,null,null,null,null,null,"Goods and services","","","","",null,null,null,null,null,null,"","","",""]
[null,null,null,null,null,null,"Transfers and subsidies","","","","",null,null,null,null,null,null,"","","",""]
[null,null,null,null,null,null,"Payments for capital assets","","","","",null,null,null,null,null,null,"","","",""]
[]
[null,null,null,null,null,null,"Division of Revenue","2020/21","2021/22","2022/23","2023/24","Trend","2021/22","2022/23","2023/24","Ave Ann"]
[{"$f":"$G$3","v":0},"NAT",null,null,null,null,"National",{"$f":"SUMPRODUCT(((T_DataComboFile[Implementation programme]=$G$3)*(T_DataComboFile[DOR]=$B18))*T_DataComboFile[2020/21 Revised])","v":2331086},{"$f":"SUMPRODUCT(((T_DataComboFile[Implementation programme]=$G$3)*(T_DataComboFile[DOR]=$B18))*T_DataComboFile[2021/22 Revised baseline])","v":2583809},{"$f":"SUMPRODUCT(((T_DataComboFile[Implementation programme]=$G$3)*(T_DataComboFile[DOR]=$B18))*T_DataComboFile[2022/23 Revised baseline])","v":2617960},{"$f":"SUMPRODUCT(((T_DataComboFile[Implementation programme]=$G$3)*(T_DataComboFile[DOR]=$B18))*T_DataComboFile[2023/24 Revised baseline])","v":2733345},null,{"$f":"IFERROR(I18/H18-1,0)","v":0.10841427557799244},{"$f":"IFERROR(J18/I18-1,0)","v":1.3217308245307535E-2},{"$f":"IFERROR(K18/J18-1,0)","v":4.4074393802808309E-2},{"$f":"IFERROR(((K18/H18)^(1/3)-1),0)","v":5.449708876349435E-2}]
[0,null,null,null,null,null,"Provincial",{"$f":"SUM(H20:H21)","v":0},0,0,0,null,0,0,0,0]
[0,"PES",null,null,null,null,"Provincial equitable share",{"$f":"SUMPRODUCT(((T_DataComboFile[Implementation programme]=$G$3)*(T_DataComboFile[DOR]=$B20))*T_DataComboFile[2020/21 Revised])","v":0},{"$f":"SUMPRODUCT(((T_DataComboFile[Implementation programme]=$G$3)*(T_DataComboFile[DOR]=$B20))*T_DataComboFile[2021/22 Revised baseline])","v":0},{"$f":"SUMPRODUCT(((T_DataComboFile[Implementation programme]=$G$3)*(T_DataComboFile[DOR]=$B20))*T_DataComboFile[2022/23 Revised baseline])","v":0},{"$f":"SUMPRODUCT(((T_DataComboFile[Implementation programme]=$G$3)*(T_DataComboFile[DOR]=$B20))*T_DataComboFile[2023/24 Revised baseline])","v":0},null,{"$f":"IFERROR(I20/H20-1,0)","v":0},0,0,{"$f":"IFERROR(((K20/H20)^(1/3)-1),0)","v":0}]
[0,"PCG",null,null,null,null,"Provincial conditional grants",{"$f":"SUMPRODUCT(((T_DataComboFile[Implementation programme]=$G$3)*(T_DataComboFile[DOR]=$B21))*T_DataComboFile[2020/21 Revised])","v":0},{"$f":"SUMPRODUCT(((T_DataComboFile[Implementation programme]=$G$3)*(T_DataComboFile[DOR]=$B21))*T_DataComboFile[2021/22 Revised baseline])","v":0},{"$f":"SUMPRODUCT(((T_DataComboFile[Implementation programme]=$G$3)*(T_DataComboFile[DOR]=$B21))*T_DataComboFile[2022/23 Revised baseline])","v":0},{"$f":"SUMPRODUCT(((T_DataComboFile[Implementation programme]=$G$3)*(T_DataComboFile[DOR]=$B21))*T_DataComboFile[2023/24 Revised baseline])","v":0},null,0,0,0,0]
[0,null,null,null,null,null,"Local government",{"$f":"SUM(H23:H25)","v":0},0,0,0,null,{"$f":"IFERROR(I22/H22-1,0)","v":0},{"$f":"IFERROR(J22/I22-1,0)","v":0},{"$f":"IFERROR(K22/J22-1,0)","v":0},{"$f":"IFERROR(((K22/H22)^(1/3)-1),0)","v":0}]
[0,"LES",null,null,null,null,"Local equitable share",{"$f":"SUMPRODUCT(((T_DataComboFile[Implementation programme]=$G$3)*(T_DataComboFile[DOR]=$B23))*T_DataComboFile[2020/21 Revised])","v":0},{"$f":"SUMPRODUCT(((T_DataComboFile[Implementation programme]=$G$3)*(T_DataComboFile[DOR]=$B23))*T_DataComboFile[2021/22 Revised baseline])","v":0},{"$f":"SUMPRODUCT(((T_DataComboFile[Implementation programme]=$G$3)*(T_DataComboFile[DOR]=$B23))*T_DataComboFile[2022/23 Revised baseline])","v":0},{"$f":"SUMPRODUCT(((T_DataComboFile[Implementation programme]=$G$3)*(T_DataComboFile[DOR]=$B23))*T_DataComboFile[2023/24 Revised baseline])","v":0},null,{"$f":"IFERROR(I23/H23-1,0)","v":0},0,0,{"$f":"IFERROR(((K23/H23)^(1/3)-1),0)","v":0}]
[0,"LCG",null,null,null,null,"Local conditional grants",{"$f":"SUMPRODUCT(((T_DataComboFile[Implementation programme]=$G$3)*(T_DataComboFile[DOR]=$B24))*T_DataComboFile[2020/21 Revised])","v":0},{"$f":"SUMPRODUCT(((T_DataComboFile[Implementation programme]=$G$3)*(T_DataComboFile[DOR]=$B24))*T_DataComboFile[2021/22 Revised baseline])","v":0},{"$f":"SUMPRODUCT(((T_DataComboFile[Implementation programme]=$G$3)*(T_DataComboFile[DOR]=$B24))*T_DataComboFile[2022/23 Revised baseline])","v":0},{"$f":"SUMPRODUCT(((T_DataComboFile[Implementation programme]=$G$3)*(T_DataComboFile[DOR]=$B24))*T_DataComboFile[2023/24 Revised baseline])","v":0},null,0,0,0,0]
[0,"GFL",null,null,null,null,"General fuel levy ",{"$f":"SUMPRODUCT(((T_DataComboFile[Implementation programme]=$G$3)*(T_DataComboFile[DOR]=$B25))*T_DataComboFile[2020/21 Revised])","v":0},{"$f":"SUMPRODUCT(((T_DataComboFile[Implementation programme]=$G$3)*(T_DataComboFile[DOR]=$B25))*T_DataComboFile[2021/22 Revised baseline])","v":0},{"$f":"SUMPRODUCT(((T_DataComboFile[Implementation programme]=$G$3)*(T_DataComboFile[DOR]=$B25))*T_DataComboFile[2022/23 Revised baseline])","v":0},{"$f":"SUMPRODUCT(((T_DataComboFile[Implementation programme]=$G$3)*(T_DataComboFile[DOR]=$B25))*T_DataComboFile[2023/24 Revised baseline])","v":0},null,0,0,0,0]
[]
[]
[null,null,null,null,null,null,{"$f":"G3","v":0}]
[{"$f":"$G$3","v":0},0,null,null,null,null,null,"2017/18","2018/19","2019/20","2020/21","2021/22",null,null,null,"2022/23",null,null,null,"2023/24"]
[{"$f":"$G$3","v":0},0,null,null,null,null,"Rand thousand","Audited outcome","Audited outcome","Pre-audited outcome","Budget","Baseline","Decrease","Increase","Revised baseline","Baseline","Decrease","Increase","Revised baseline","Baseline","Decrease","Increase","Revised baseline"]
[0,0,null,null,null,null,"Economic classification"]
[0,0,null,null,null,null,"Current payments",{"$f":"SUM(H33:H35)","v":0},0,0,0,0,0,0,0,0,0,0,0,0,0,0,0]
[0,0,null,null,null,null,"Compensation of employees",{"$f":"SUMPRODUCT(((T_DataComboFile[Implementation programme]=$G$3)*(T_DataComboFile[Econ3]=$G33))*T_DataComboFile[2017/18]*$B$3)","v":0},{"$f":"SUMPRODUCT(((T_DataComboFile[Implementation programme]=$G$3)*(T_DataComboFile[Econ3]=$G33))*T_DataComboFile[2018/19]*$B$3)","v":0},{"$f":"SUMPRODUCT(((T_DataComboFile[Implementation programme]=$G$3)*(T_DataComboFile[Econ3]=$G33))*T_DataComboFile[2019/20 Revised estimate]*$B$3)","v":0},{"$f":"SUMPRODUCT(((T_DataComboFile[Implementation programme]=$G$3)*(T_DataComboFile[Econ3]=$G33))*T_DataComboFile[2020/21 Revised]*$B$3)","v":0},{"$f":"SUMPRODUCT(((T_DataComboFile[Implementation programme]=$G$3)*(T_DataComboFile[Econ3]=$G33))*T_DataComboFile[2021/22 Baseline]*$B$3)","v":0},{"$f":"SUMPRODUCT(((T_DataComboFile[Implementation programme]=$G$3)*(T_DataComboFile[Econ3]=$G33))*T_DataComboFile[2021/22 Reduction]*$B$3)","v":0},{"$f":"SUMPRODUCT(((T_DataComboFile[Implementation programme]=$G$3)*(T_DataComboFile[Econ3]=$G33))*T_DataComboFile[2021/22 Increase]*$B$3)","v":0},{"$f":"L33+M33+N33","v":0},{"$f":"SUMPRODUCT(((T_DataComboFile[Implementation programme]=$G$3)*(T_DataComboFile[Econ3]=$G33))*T_DataComboFile[2022/23 Baseline]*$B$3)","v":0},{"$f":"SUMPRODUCT(((T_DataComboFile[Implementation programme]=$G$3)*(T_DataComboFile[Econ3]=$G33))*T_DataComboFile[2022/23 Reduction]*$B$3)","v":0},{"$f":"SUMPRODUCT(((T_DataComboFile[Implementation programme]=$G$3)*(T_DataComboFile[Econ3]=$G33))*T_DataComboFile[2022/23 Increase]*$B$3)","v":0},{"$f":"P33+Q33+R33","v":0},{"$f":"SUMPRODUCT(((T_DataComboFile[Implementation programme]=$G$3)*(T_DataComboFile[Econ3]=$G33))*T_DataComboFile[2023/24 Baseline]*$B$3)","v":0},{"$f":"SUMPRODUCT(((T_DataComboFile[Implementation programme]=$G$3)*(T_DataComboFile[Econ3]=$G33))*T_DataComboFile[2023/24 Reduction]*$B$3)","v":0},{"$f":"SUMPRODUCT(((T_DataComboFile[Implementation programme]=$G$3)*(T_DataComboFile[Econ3]=$G33))*T_DataComboFile[2023/24 Increase]*$B$3)","v":0},{"$f":"T33+U33+V33","v":0}]
[0,0,null,null,null,null,"Goods and services",{"$f":"SUMPRODUCT(((T_DataComboFile[Implementation programme]=$G$3)*(T_DataComboFile[Econ3]=$G34))*T_DataComboFile[2017/18]*$B$3)","v":0},{"$f":"SUMPRODUCT(((T_DataComboFile[Implementation programme]=$G$3)*(T_DataComboFile[Econ3]=$G34))*T_DataComboFile[2018/19]*$B$3)","v":0},{"$f":"SUMPRODUCT(((T_DataComboFile[Implementation programme]=$G$3)*(T_DataComboFile[Econ3]=$G34))*T_DataComboFile[2019/20 Revised estimate]*$B$3)","v":0},{"$f":"SUMPRODUCT(((T_DataComboFile[Implementation programme]=$G$3)*(T_DataComboFile[Econ3]=$G34))*T_DataComboFile[2020/21 Revised]*$B$3)","v":0},{"$f":"SUMPRODUCT(((T_DataComboFile[Implementation programme]=$G$3)*(T_DataComboFile[Econ3]=$G34))*T_DataComboFile[2021/22 Baseline]*$B$3)","v":0},{"$f":"SUMPRODUCT(((T_DataComboFile[Implementation programme]=$G$3)*(T_DataComboFile[Econ3]=$G34))*T_DataComboFile[2021/22 Reduction]*$B$3)","v":0},{"$f":"SUMPRODUCT(((T_DataComboFile[Implementation programme]=$G$3)*(T_DataComboFile[Econ3]=$G34))*T_DataComboFile[2021/22 Increase]*$B$3)","v":0},0,{"$f":"SUMPRODUCT(((T_DataComboFile[Implementation programme]=$G$3)*(T_DataComboFile[Econ3]=$G34))*T_DataComboFile[2022/23 Baseline]*$B$3)","v":0},{"$f":"SUMPRODUCT(((T_DataComboFile[Implementation programme]=$G$3)*(T_DataComboFile[Econ3]=$G34))*T_DataComboFile[2022/23 Reduction]*$B$3)","v":0},{"$f":"SUMPRODUCT(((T_DataComboFile[Implementation programme]=$G$3)*(T_DataComboFile[Econ3]=$G34))*T_DataComboFile[2022/23 Increase]*$B$3)","v":0},0,{"$f":"SUMPRODUCT(((T_DataComboFile[Implementation programme]=$G$3)*(T_DataComboFile[Econ3]=$G34))*T_DataComboFile[2023/24 Baseline]*$B$3)","v":0},{"$f":"SUMPRODUCT(((T_DataComboFile[Implementation programme]=$G$3)*(T_DataComboFile[Econ3]=$G34))*T_DataComboFile[2023/24 Reduction]*$B$3)","v":0},{"$f":"SUMPRODUCT(((T_DataComboFile[Implementation programme]=$G$3)*(T_DataComboFile[Econ3]=$G34))*T_DataComboFile[2023/24 Increase]*$B$3)","v":0},0]
[0,0,null,null,null,null,"Interest and rent on land",{"$f":"SUMPRODUCT(((T_DataComboFile[Implementation programme]=$G$3)*(T_DataComboFile[Econ3]=$G35))*T_DataComboFile[2017/18]*$B$3)","v":0},{"$f":"SUMPRODUCT(((T_DataComboFile[Implementation programme]=$G$3)*(T_DataComboFile[Econ3]=$G35))*T_DataComboFile[2018/19]*$B$3)","v":0},{"$f":"SUMPRODUCT(((T_DataComboFile[Implementation programme]=$G$3)*(T_DataComboFile[Econ3]=$G35))*T_DataComboFile[2019/20 Revised estimate]*$B$3)","v":0},{"$f":"SUMPRODUCT(((T_DataComboFile[Implementation programme]=$G$3)*(T_DataComboFile[Econ3]=$G35))*T_DataComboFile[2020/21 Revised]*$B$3)","v":0},{"$f":"SUMPRODUCT(((T_DataComboFile[Implementation programme]=$G$3)*(T_DataComboFile[Econ3]=$G35))*T_DataComboFile[2021/22 Baseline]*$B$3)","v":0},{"$f":"SUMPRODUCT(((T_DataComboFile[Implementation programme]=$G$3)*(T_DataComboFile[Econ3]=$G35))*T_DataComboFile[2021/22 Reduction]*$B$3)","v":0},{"$f":"SUMPRODUCT(((T_DataComboFile[Implementation programme]=$G$3)*(T_DataComboFile[Econ3]=$G35))*T_DataComboFile[2021/22 Increase]*$B$3)","v":0},0,{"$f":"SUMPRODUCT(((T_DataComboFile[Implementation programme]=$G$3)*(T_DataComboFile[Econ3]=$G35))*T_DataComboFile[2022/23 Baseline]*$B$3)","v":0},{"$f":"SUMPRODUCT(((T_DataComboFile[Implementation programme]=$G$3)*(T_DataComboFile[Econ3]=$G35))*T_DataComboFile[2022/23 Reduction]*$B$3)","v":0},{"$f":"SUMPRODUCT(((T_DataComboFile[Implementation programme]=$G$3)*(T_DataComboFile[Econ3]=$G35))*T_DataComboFile[2022/23 Increase]*$B$3)","v":0},0,{"$f":"SUMPRODUCT(((T_DataComboFile[Implementation programme]=$G$3)*(T_DataComboFile[Econ3]=$G35))*T_DataComboFile[2023/24 Baseline]*$B$3)","v":0},{"$f":"SUMPRODUCT(((T_DataComboFile[Implementation programme]=$G$3)*(T_DataComboFile[Econ3]=$G35))*T_DataComboFile[2023/24 Reduction]*$B$3)","v":0},{"$f":"SUMPRODUCT(((T_DataComboFile[Implementation programme]=$G$3)*(T_DataComboFile[Econ3]=$G35))*T_DataComboFile[2023/24 Increase]*$B$3)","v":0},0]
[0,0,null,null,null,null,"Transfers and subsidies",{"$f":"SUM(H37,H40,H43:H45,H48:H49)","v":0},0,0,0,0,0,0,0,0,0,0,0,0,0,0,0]
[0,0,null,null,null,null,"Provinces and municipalities",{"$f":"SUM(H38:H39)","v":0},0,0,0,0,0,0,0,0,0,0,0,0,0,0,0]
[0,0,null,null,null,null,"Provinces",{"$f":"SUMPRODUCT(((T_DataComboFile[Implementation programme]=$G$3)*(T_DataComboFile[Econ4]=$G38))*T_DataComboFile[2017/18]*$B$3)","v":0},{"$f":"SUMPRODUCT(((T_DataComboFile[Implementation programme]=$G$3)*(T_DataComboFile[Econ4]=$G38))*T_DataComboFile[2018/19]*$B$3)","v":0},{"$f":"SUMPRODUCT(((T_DataComboFile[Implementation programme]=$G$3)*(T_DataComboFile[Econ4]=$G38))*T_DataComboFile[2019/20 Revised estimate]*$B$3)","v":0},{"$f":"SUMPRODUCT(((T_DataComboFile[Implementation programme]=$G$3)*(T_DataComboFile[Econ4]=$G38))*T_DataComboFile[2020/21 Revised]*$B$3)","v":0},{"$f":"SUMPRODUCT(((T_DataComboFile[Implementation programme]=$G$3)*(T_DataComboFile[Econ4]=$G38))*T_DataComboFile[2021/22 Baseline]*$B$3)","v":0},{"$f":"SUMPRODUCT(((T_DataComboFile[Implementation programme]=$G$3)*(T_DataComboFile[Econ4]=$G38))*T_DataComboFile[2021/22 Reduction]*$B$3)","v":0},{"$f":"SUMPRODUCT(((T_DataComboFile[Implementation programme]=$G$3)*(T_DataComboFile[Econ4]=$G38))*T_DataComboFile[2021/22 Increase]*$B$3)","v":0},{"$f":"L38+M38+N38","v":0},{"$f":"SUMPRODUCT(((T_DataComboFile[Implementation programme]=$G$3)*(T_DataComboFile[Econ4]=$G38))*T_DataComboFile[2022/23 Baseline]*$B$3)","v":0},{"$f":"SUMPRODUCT(((T_DataComboFile[Implementation programme]=$G$3)*(T_DataComboFile[Econ4]=$G38))*T_DataComboFile[2022/23 Reduction]*$B$3)","v":0},{"$f":"SUMPRODUCT(((T_DataComboFile[Implementation programme]=$G$3)*(T_DataComboFile[Econ4]=$G38))*T_DataComboFile[2022/23 Increase]*$B$3)","v":0},{"$f":"P38+Q38+R38","v":0},{"$f":"SUMPRODUCT(((T_DataComboFile[Implementation programme]=$G$3)*(T_DataComboFile[Econ4]=$G38))*T_DataComboFile[2023/24 Baseline]*$B$3)","v":0},{"$f":"SUMPRODUCT(((T_DataComboFile[Implementation programme]=$G$3)*(T_DataComboFile[Econ4]=$G38))*T_DataComboFile[2023/24 Reduction]*$B$3)","v":0},{"$f":"SUMPRODUCT(((T_DataComboFile[Implementation programme]=$G$3)*(T_DataComboFile[Econ4]=$G38))*T_DataComboFile[2023/24 Increase]*$B$3)","v":0},{"$f":"T38+U38+V38","v":0}]
[0,0,null,null,null,null,"Municipalities",{"$f":"SUMPRODUCT(((T_DataComboFile[Implementation programme]=$G$3)*(T_DataComboFile[Econ4]=$G39))*T_DataComboFile[2017/18]*$B$3)","v":0},{"$f":"SUMPRODUCT(((T_DataComboFile[Implementation programme]=$G$3)*(T_DataComboFile[Econ4]=$G39))*T_DataComboFile[2018/19]*$B$3)","v":0},{"$f":"SUMPRODUCT(((T_DataComboFile[Implementation programme]=$G$3)*(T_DataComboFile[Econ4]=$G39))*T_DataComboFile[2019/20 Revised estimate]*$B$3)","v":0},{"$f":"SUMPRODUCT(((T_DataComboFile[Implementation programme]=$G$3)*(T_DataComboFile[Econ4]=$G39))*T_DataComboFile[2020/21 Revised]*$B$3)","v":0},{"$f":"SUMPRODUCT(((T_DataComboFile[Implementation programme]=$G$3)*(T_DataComboFile[Econ4]=$G39))*T_DataComboFile[2021/22 Baseline]*$B$3)","v":0},{"$f":"SUMPRODUCT(((T_DataComboFile[Implementation programme]=$G$3)*(T_DataComboFile[Econ4]=$G39))*T_DataComboFile[2021/22 Reduction]*$B$3)","v":0},{"$f":"SUMPRODUCT(((T_DataComboFile[Implementation programme]=$G$3)*(T_DataComboFile[Econ4]=$G39))*T_DataComboFile[2021/22 Increase]*$B$3)","v":0},0,{"$f":"SUMPRODUCT(((T_DataComboFile[Implementation programme]=$G$3)*(T_DataComboFile[Econ4]=$G39))*T_DataComboFile[2022/23 Baseline]*$B$3)","v":0},{"$f":"SUMPRODUCT(((T_DataComboFile[Implementation programme]=$G$3)*(T_DataComboFile[Econ4]=$G39))*T_DataComboFile[2022/23 Reduction]*$B$3)","v":0},{"$f":"SUMPRODUCT(((T_DataComboFile[Implementation programme]=$G$3)*(T_DataComboFile[Econ4]=$G39))*T_DataComboFile[2022/23 Increase]*$B$3)","v":0},0,{"$f":"SUMPRODUCT(((T_DataComboFile[Implementation programme]=$G$3)*(T_DataComboFile[Econ4]=$G39))*T_DataComboFile[2023/24 Baseline]*$B$3)","v":0},{"$f":"SUMPRODUCT(((T_DataComboFile[Implementation programme]=$G$3)*(T_DataComboFile[Econ4]=$G39))*T_DataComboFile[2023/24 Reduction]*$B$3)","v":0},{"$f":"SUMPRODUCT(((T_DataComboFile[Implementation programme]=$G$3)*(T_DataComboFile[Econ4]=$G39))*T_DataComboFile[2023/24 Increase]*$B$3)","v":0},0]
[0,0,null,null,null,null,"Departmental agencies and accounts",{"$f":"SUM(H41:H42)","v":0},0,0,0,0,0,0,0,0,0,0,0,0,0,0,0]
[0,0,null,null,null,null,"Social security funds",{"$f":"SUMPRODUCT(((T_DataComboFile[Implementation programme]=$G$3)*(T_DataComboFile[Econ4]=$G41))*T_DataComboFile[2017/18]*$B$3)","v":0},{"$f":"SUMPRODUCT(((T_DataComboFile[Implementation programme]=$G$3)*(T_DataComboFile[Econ4]=$G41))*T_DataComboFile[2018/19]*$B$3)","v":0},{"$f":"SUMPRODUCT(((T_DataComboFile[Implementation programme]=$G$3)*(T_DataComboFile[Econ4]=$G41))*T_DataComboFile[2019/20 Revised estimate]*$B$3)","v":0},{"$f":"SUMPRODUCT(((T_DataComboFile[Implementation programme]=$G$3)*(T_DataComboFile[Econ4]=$G41))*T_DataComboFile[2020/21 Revised]*$B$3)","v":0},{"$f":"SUMPRODUCT(((T_DataComboFile[Implementation programme]=$G$3)*(T_DataComboFile[Econ4]=$G41))*T_DataComboFile[2021/22 Baseline]*$B$3)","v":0},{"$f":"SUMPRODUCT(((T_DataComboFile[Implementation programme]=$G$3)*(T_DataComboFile[Econ4]=$G41))*T_DataComboFile[2021/22 Reduction]*$B$3)","v":0},{"$f":"SUMPRODUCT(((T_DataComboFile[Implementation programme]=$G$3)*(T_DataComboFile[Econ4]=$G41))*T_DataComboFile[2021/22 Increase]*$B$3)","v":0},{"$f":"L41+M41+N41","v":0},{"$f":"SUMPRODUCT(((T_DataComboFile[Implementation programme]=$G$3)*(T_DataComboFile[Econ4]=$G41))*T_DataComboFile[2022/23 Baseline]*$B$3)","v":0},{"$f":"SUMPRODUCT(((T_DataComboFile[Implementation programme]=$G$3)*(T_DataComboFile[Econ4]=$G41))*T_DataComboFile[2022/23 Reduction]*$B$3)","v":0},{"$f":"SUMPRODUCT(((T_DataComboFile[Implementation programme]=$G$3)*(T_DataComboFile[Econ4]=$G41))*T_DataComboFile[2022/23 Increase]*$B$3)","v":0},{"$f":"P41+Q41+R41","v":0},{"$f":"SUMPRODUCT(((T_DataComboFile[Implementation programme]=$G$3)*(T_DataComboFile[Econ4]=$G41))*T_DataComboFile[2023/24 Baseline]*$B$3)","v":0},{"$f":"SUMPRODUCT(((T_DataComboFile[Implementation programme]=$G$3)*(T_DataComboFile[Econ4]=$G41))*T_DataComboFile[2023/24 Reduction]*$B$3)","v":0},{"$f":"SUMPRODUCT(((T_DataComboFile[Implementation programme]=$G$3)*(T_DataComboFile[Econ4]=$G41))*T_DataComboFile[2023/24 Increase]*$B$3)","v":0},{"$f":"T41+U41+V41","v":0}]
[0,0,null,null,null,null,"Departmental agencies (non-business entities)",{"$f":"SUMPRODUCT(((T_DataComboFile[Implementation programme]=$G$3)*(T_DataComboFile[Econ4]=$G42))*T_DataComboFile[2017/18]*$B$3)","v":0},{"$f":"SUMPRODUCT(((T_DataComboFile[Implementation programme]=$G$3)*(T_DataComboFile[Econ4]=$G42))*T_DataComboFile[2018/19]*$B$3)","v":0},{"$f":"SUMPRODUCT(((T_DataComboFile[Implementation programme]=$G$3)*(T_DataComboFile[Econ4]=$G42))*T_DataComboFile[2019/20 Revised estimate]*$B$3)","v":0},{"$f":"SUMPRODUCT(((T_DataComboFile[Implementation programme]=$G$3)*(T_DataComboFile[Econ4]=$G42))*T_DataComboFile[2020/21 Revised]*$B$3)","v":0},{"$f":"SUMPRODUCT(((T_DataComboFile[Implementation programme]=$G$3)*(T_DataComboFile[Econ4]=$G42))*T_DataComboFile[2021/22 Baseline]*$B$3)","v":0},{"$f":"SUMPRODUCT(((T_DataComboFile[Implementation programme]=$G$3)*(T_DataComboFile[Econ4]=$G42))*T_DataComboFile[2021/22 Reduction]*$B$3)","v":0},{"$f":"SUMPRODUCT(((T_DataComboFile[Implementation programme]=$G$3)*(T_DataComboFile[Econ4]=$G42))*T_DataComboFile[2021/22 Increase]*$B$3)","v":0},0,{"$f":"SUMPRODUCT(((T_DataComboFile[Implementation programme]=$G$3)*(T_DataComboFile[Econ4]=$G42))*T_DataComboFile[2022/23 Baseline]*$B$3)","v":0},{"$f":"SUMPRODUCT(((T_DataComboFile[Implementation programme]=$G$3)*(T_DataComboFile[Econ4]=$G42))*T_DataComboFile[2022/23 Reduction]*$B$3)","v":0},{"$f":"SUMPRODUCT(((T_DataComboFile[Implementation programme]=$G$3)*(T_DataComboFile[Econ4]=$G42))*T_DataComboFile[2022/23 Increase]*$B$3)","v":0},0,{"$f":"SUMPRODUCT(((T_DataComboFile[Implementation programme]=$G$3)*(T_DataComboFile[Econ4]=$G42))*T_DataComboFile[2023/24 Baseline]*$B$3)","v":0},{"$f":"SUMPRODUCT(((T_DataComboFile[Implementation programme]=$G$3)*(T_DataComboFile[Econ4]=$G42))*T_DataComboFile[2023/24 Reduction]*$B$3)","v":0},{"$f":"SUMPRODUCT(((T_DataComboFile[Implementation programme]=$G$3)*(T_DataComboFile[Econ4]=$G42))*T_DataComboFile[2023/24 Increase]*$B$3)","v":0},0]
[0,0,null,null,null,null,"Higher education institutions",{"$f":"SUMPRODUCT(((T_DataComboFile[Implementation programme]=$G$3)*(T_DataComboFile[Econ3]=$G43))*T_DataComboFile[2017/18]*$B$3)","v":0},{"$f":"SUMPRODUCT(((T_DataComboFile[Implementation programme]=$G$3)*(T_DataComboFile[Econ3]=$G43))*T_DataComboFile[2018/19]*$B$3)","v":0},{"$f":"SUMPRODUCT(((T_DataComboFile[Implementation programme]=$G$3)*(T_DataComboFile[Econ3]=$G43))*T_DataComboFile[2019/20 Revised estimate]*$B$3)","v":0},{"$f":"SUMPRODUCT(((T_DataComboFile[Implementation programme]=$G$3)*(T_DataComboFile[Econ3]=$G43))*T_DataComboFile[2020/21 Revised]*$B$3)","v":0},{"$f":"SUMPRODUCT(((T_DataComboFile[Implementation programme]=$G$3)*(T_DataComboFile[Econ3]=$G43))*T_DataComboFile[2021/22 Baseline]*$B$3)","v":0},{"$f":"SUMPRODUCT(((T_DataComboFile[Implementation programme]=$G$3)*(T_DataComboFile[Econ3]=$G43))*T_DataComboFile[2021/22 Reduction]*$B$3)","v":0},{"$f":"SUMPRODUCT(((T_DataComboFile[Implementation programme]=$G$3)*(T_DataComboFile[Econ3]=$G43))*T_DataComboFile[2021/22 Increase]*$B$3)","v":0},0,{"$f":"SUMPRODUCT(((T_DataComboFile[Implementation programme]=$G$3)*(T_DataComboFile[Econ3]=$G43))*T_DataComboFile[2022/23 Baseline]*$B$3)","v":0},{"$f":"SUMPRODUCT(((T_DataComboFile[Implementation programme]=$G$3)*(T_DataComboFile[Econ3]=$G43))*T_DataComboFile[2022/23 Reduction]*$B$3)","v":0},{"$f":"SUMPRODUCT(((T_DataComboFile[Implementation programme]=$G$3)*(T_DataComboFile[Econ3]=$G43))*T_DataComboFile[2022/23 Increase]*$B$3)","v":0},0,{"$f":"SUMPRODUCT(((T_DataComboFile[Implementation programme]=$G$3)*(T_DataComboFile[Econ3]=$G43))*T_DataComboFile[2023/24 Baseline]*$B$3)","v":0},{"$f":"SUMPRODUCT(((T_DataComboFile[Implementation programme]=$G$3)*(T_DataComboFile[Econ3]=$G43))*T_DataComboFile[2023/24 Reduction]*$B$3)","v":0},{"$f":"SUMPRODUCT(((T_DataComboFile[Implementation programme]=$G$3)*(T_DataComboFile[Econ3]=$G43))*T_DataComboFile[2023/24 Increase]*$B$3)","v":0},0]
[0,0,null,null,null,null,"Foreign governments and international organisations",{"$f":"SUMPRODUCT(((T_DataComboFile[Implementation programme]=$G$3)*(T_DataComboFile[Econ3]=$G44))*T_DataComboFile[2017/18]*$B$3)","v":0},{"$f":"SUMPRODUCT(((T_DataComboFile[Implementation programme]=$G$3)*(T_DataComboFile[Econ3]=$G44))*T_DataComboFile[2018/19]*$B$3)","v":0},{"$f":"SUMPRODUCT(((T_DataComboFile[Implementation programme]=$G$3)*(T_DataComboFile[Econ3]=$G44))*T_DataComboFile[2019/20 Revised estimate]*$B$3)","v":0},{"$f":"SUMPRODUCT(((T_DataComboFile[Implementation programme]=$G$3)*(T_DataComboFile[Econ3]=$G44))*T_DataComboFile[2020/21 Revised]*$B$3)","v":0},{"$f":"SUMPRODUCT(((T_DataComboFile[Implementation programme]=$G$3)*(T_DataComboFile[Econ3]=$G44))*T_DataComboFile[2021/22 Baseline]*$B$3)","v":0},{"$f":"SUMPRODUCT(((T_DataComboFile[Implementation programme]=$G$3)*(T_DataComboFile[Econ3]=$G44))*T_DataComboFile[2021/22 Reduction]*$B$3)","v":0},{"$f":"SUMPRODUCT(((T_DataComboFile[Implementation programme]=$G$3)*(T_DataComboFile[Econ3]=$G44))*T_DataComboFile[2021/22 Increase]*$B$3)","v":0},0,{"$f":"SUMPRODUCT(((T_DataComboFile[Implementation programme]=$G$3)*(T_DataComboFile[Econ3]=$G44))*T_DataComboFile[2022/23 Baseline]*$B$3)","v":0},{"$f":"SUMPRODUCT(((T_DataComboFile[Implementation programme]=$G$3)*(T_DataComboFile[Econ3]=$G44))*T_DataComboFile[2022/23 Reduction]*$B$3)","v":0},{"$f":"SUMPRODUCT(((T_DataComboFile[Implementation programme]=$G$3)*(T_DataComboFile[Econ3]=$G44))*T_DataComboFile[2022/23 Increase]*$B$3)","v":0},0,{"$f":"SUMPRODUCT(((T_DataComboFile[Implementation programme]=$G$3)*(T_DataComboFile[Econ3]=$G44))*T_DataComboFile[2023/24 Baseline]*$B$3)","v":0},{"$f":"SUMPRODUCT(((T_DataComboFile[Implementation programme]=$G$3)*(T_DataComboFile[Econ3]=$G44))*T_DataComboFile[2023/24 Reduction]*$B$3)","v":0},{"$f":"SUMPRODUCT(((T_DataComboFile[Implementation programme]=$G$3)*(T_DataComboFile[Econ3]=$G44))*T_DataComboFile[2023/24 Increase]*$B$3)","v":0},0]
[0,0,null,null,null,null,"Public corporations and private enterprises",{"$f":"SUM(H46:H47)","v":0},0,0,0,0,0,0,0,0,0,0,0,0,0,0,0]
[0,0,null,null,null,null,"Public corporations",{"$f":"SUMPRODUCT(((T_DataComboFile[Implementation programme]=$G$3)*(T_DataComboFile[Econ4]=$G46))*T_DataComboFile[2017/18]*$B$3)","v":0},{"$f":"SUMPRODUCT(((T_DataComboFile[Implementation programme]=$G$3)*(T_DataComboFile[Econ4]=$G46))*T_DataComboFile[2018/19]*$B$3)","v":0},{"$f":"SUMPRODUCT(((T_DataComboFile[Implementation programme]=$G$3)*(T_DataComboFile[Econ4]=$G46))*T_DataComboFile[2019/20 Revised estimate]*$B$3)","v":0},{"$f":"SUMPRODUCT(((T_DataComboFile[Implementation programme]=$G$3)*(T_DataComboFile[Econ4]=$G46))*T_DataComboFile[2020/21 Revised]*$B$3)","v":0},{"$f":"SUMPRODUCT(((T_DataComboFile[Implementation programme]=$G$3)*(T_DataComboFile[Econ4]=$G46))*T_DataComboFile[2021/22 Baseline]*$B$3)","v":0},{"$f":"SUMPRODUCT(((T_DataComboFile[Implementation programme]=$G$3)*(T_DataComboFile[Econ4]=$G46))*T_DataComboFile[2021/22 Reduction]*$B$3)","v":0},{"$f":"SUMPRODUCT(((T_DataComboFile[Implementation programme]=$G$3)*(T_DataComboFile[Econ4]=$G46))*T_DataComboFile[2021/22 Increase]*$B$3)","v":0},{"$f":"L46+M46+N46","v":0},{"$f":"SUMPRODUCT(((T_DataComboFile[Implementation programme]=$G$3)*(T_DataComboFile[Econ4]=$G46))*T_DataComboFile[2022/23 Baseline]*$B$3)","v":0},{"$f":"SUMPRODUCT(((T_DataComboFile[Implementation programme]=$G$3)*(T_DataComboFile[Econ4]=$G46))*T_DataComboFile[2022/23 Reduction]*$B$3)","v":0},{"$f":"SUMPRODUCT(((T_DataComboFile[Implementation programme]=$G$3)*(T_DataComboFile[Econ4]=$G46))*T_DataComboFile[2022/23 Increase]*$B$3)","v":0},{"$f":"P46+Q46+R46","v":0},{"$f":"SUMPRODUCT(((T_DataComboFile[Implementation programme]=$G$3)*(T_DataComboFile[Econ4]=$G46))*T_DataComboFile[2023/24 Baseline]*$B$3)","v":0},{"$f":"SUMPRODUCT(((T_DataComboFile[Implementation programme]=$G$3)*(T_DataComboFile[Econ4]=$G46))*T_DataComboFile[2023/24 Reduction]*$B$3)","v":0},{"$f":"SUMPRODUCT(((T_DataComboFile[Implementation programme]=$G$3)*(T_DataComboFile[Econ4]=$G46))*T_DataComboFile[2023/24 Increase]*$B$3)","v":0},{"$f":"T46+U46+V46","v":0}]
[0,0,null,null,null,null,"Private enterprises",{"$f":"SUMPRODUCT(((T_DataComboFile[Implementation programme]=$G$3)*(T_DataComboFile[Econ4]=$G47))*T_DataComboFile[2017/18]*$B$3)","v":0},{"$f":"SUMPRODUCT(((T_DataComboFile[Implementation programme]=$G$3)*(T_DataComboFile[Econ4]=$G47))*T_DataComboFile[2018/19]*$B$3)","v":0},{"$f":"SUMPRODUCT(((T_DataComboFile[Implementation programme]=$G$3)*(T_DataComboFile[Econ4]=$G47))*T_DataComboFile[2019/20 Revised estimate]*$B$3)","v":0},{"$f":"SUMPRODUCT(((T_DataComboFile[Implementation programme]=$G$3)*(T_DataComboFile[Econ4]=$G47))*T_DataComboFile[2020/21 Revised]*$B$3)","v":0},{"$f":"SUMPRODUCT(((T_DataComboFile[Implementation programme]=$G$3)*(T_DataComboFile[Econ4]=$G47))*T_DataComboFile[2021/22 Baseline]*$B$3)","v":0},{"$f":"SUMPRODUCT(((T_DataComboFile[Implementation programme]=$G$3)*(T_DataComboFile[Econ4]=$G47))*T_DataComboFile[2021/22 Reduction]*$B$3)","v":0},{"$f":"SUMPRODUCT(((T_DataComboFile[Implementation programme]=$G$3)*(T_DataComboFile[Econ4]=$G47))*T_DataComboFile[2021/22 Increase]*$B$3)","v":0},0,{"$f":"SUMPRODUCT(((T_DataComboFile[Implementation programme]=$G$3)*(T_DataComboFile[Econ4]=$G47))*T_DataComboFile[2022/23 Baseline]*$B$3)","v":0},{"$f":"SUMPRODUCT(((T_DataComboFile[Implementation programme]=$G$3)*(T_DataComboFile[Econ4]=$G47))*T_DataComboFile[2022/23 Reduction]*$B$3)","v":0},{"$f":"SUMPRODUCT(((T_DataComboFile[Implementation programme]=$G$3)*(T_DataComboFile[Econ4]=$G47))*T_DataComboFile[2022/23 Increase]*$B$3)","v":0},0,{"$f":"SUMPRODUCT(((T_DataComboFile[Implementation programme]=$G$3)*(T_DataComboFile[Econ4]=$G47))*T_DataComboFile[2023/24 Baseline]*$B$3)","v":0},{"$f":"SUMPRODUCT(((T_DataComboFile[Implementation programme]=$G$3)*(T_DataComboFile[Econ4]=$G47))*T_DataComboFile[2023/24 Reduction]*$B$3)","v":0},{"$f":"SUMPRODUCT(((T_DataComboFile[Implementation programme]=$G$3)*(T_DataComboFile[Econ4]=$G47))*T_DataComboFile[2023/24 Increase]*$B$3)","v":0},0]
[0,0,null,null,null,null,"Non-profit institutions",{"$f":"SUMPRODUCT(((T_DataComboFile[Implementation programme]=$G$3)*(T_DataComboFile[Econ3]=$G48))*T_DataComboFile[2017/18]*$B$3)","v":0},{"$f":"SUMPRODUCT(((T_DataComboFile[Implementation programme]=$G$3)*(T_DataComboFile[Econ3]=$G48))*T_DataComboFile[2018/19]*$B$3)","v":0},{"$f":"SUMPRODUCT(((T_DataComboFile[Implementation programme]=$G$3)*(T_DataComboFile[Econ3]=$G48))*T_DataComboFile[2019/20 Revised estimate]*$B$3)","v":0},{"$f":"SUMPRODUCT(((T_DataComboFile[Implementation programme]=$G$3)*(T_DataComboFile[Econ3]=$G48))*T_DataComboFile[2020/21 Revised]*$B$3)","v":0},{"$f":"SUMPRODUCT(((T_DataComboFile[Implementation programme]=$G$3)*(T_DataComboFile[Econ3]=$G48))*T_DataComboFile[2021/22 Baseline]*$B$3)","v":0},{"$f":"SUMPRODUCT(((T_DataComboFile[Implementation programme]=$G$3)*(T_DataComboFile[Econ3]=$G48))*T_DataComboFile[2021/22 Reduction]*$B$3)","v":0},{"$f":"SUMPRODUCT(((T_DataComboFile[Implementation programme]=$G$3)*(T_DataComboFile[Econ3]=$G48))*T_DataComboFile[2021/22 Increase]*$B$3)","v":0},0,{"$f":"SUMPRODUCT(((T_DataComboFile[Implementation programme]=$G$3)*(T_DataComboFile[Econ3]=$G48))*T_DataComboFile[2022/23 Baseline]*$B$3)","v":0},{"$f":"SUMPRODUCT(((T_DataComboFile[Implementation programme]=$G$3)*(T_DataComboFile[Econ3]=$G48))*T_DataComboFile[2022/23 Reduction]*$B$3)","v":0},{"$f":"SUMPRODUCT(((T_DataComboFile[Implementation programme]=$G$3)*(T_DataComboFile[Econ3]=$G48))*T_DataComboFile[2022/23 Increase]*$B$3)","v":0},0,{"$f":"SUMPRODUCT(((T_DataComboFile[Implementation programme]=$G$3)*(T_DataComboFile[Econ3]=$G48))*T_DataComboFile[2023/24 Baseline]*$B$3)","v":0},{"$f":"SUMPRODUCT(((T_DataComboFile[Implementation programme]=$G$3)*(T_DataComboFile[Econ3]=$G48))*T_DataComboFile[2023/24 Reduction]*$B$3)","v":0},{"$f":"SUMPRODUCT(((T_DataComboFile[Implementation programme]=$G$3)*(T_DataComboFile[Econ3]=$G48))*T_DataComboFile[2023/24 Increase]*$B$3)","v":0},0]
[0,0,null,null,null,null,"Households",{"$f":"SUM(H50:H51)","v":0},0,0,0,0,0,0,0,0,0,0,0,0,0,0,0]
[0,0,null,null,null,null,"Social benefits",{"$f":"SUMPRODUCT(((T_DataComboFile[Implementation programme]=$G$3)*(T_DataComboFile[Econ4]=$G50))*T_DataComboFile[2017/18]*$B$3)","v":0},{"$f":"SUMPRODUCT(((T_DataComboFile[Implementation programme]=$G$3)*(T_DataComboFile[Econ4]=$G50))*T_DataComboFile[2018/19]*$B$3)","v":0},{"$f":"SUMPRODUCT(((T_DataComboFile[Implementation programme]=$G$3)*(T_DataComboFile[Econ4]=$G50))*T_DataComboFile[2019/20 Revised estimate]*$B$3)","v":0},{"$f":"SUMPRODUCT(((T_DataComboFile[Implementation programme]=$G$3)*(T_DataComboFile[Econ4]=$G50))*T_DataComboFile[2020/21 Revised]*$B$3)","v":0},{"$f":"SUMPRODUCT(((T_DataComboFile[Implementation programme]=$G$3)*(T_DataComboFile[Econ4]=$G50))*T_DataComboFile[2021/22 Baseline]*$B$3)","v":0},{"$f":"SUMPRODUCT(((T_DataComboFile[Implementation programme]=$G$3)*(T_DataComboFile[Econ4]=$G50))*T_DataComboFile[2021/22 Reduction]*$B$3)","v":0},{"$f":"SUMPRODUCT(((T_DataComboFile[Implementation programme]=$G$3)*(T_DataComboFile[Econ4]=$G50))*T_DataComboFile[2021/22 Increase]*$B$3)","v":0},{"$f":"L50+M50+N50","v":0},{"$f":"SUMPRODUCT(((T_DataComboFile[Implementation programme]=$G$3)*(T_DataComboFile[Econ4]=$G50))*T_DataComboFile[2022/23 Baseline]*$B$3)","v":0},{"$f":"SUMPRODUCT(((T_DataComboFile[Implementation programme]=$G$3)*(T_DataComboFile[Econ4]=$G50))*T_DataComboFile[2022/23 Reduction]*$B$3)","v":0},{"$f":"SUMPRODUCT(((T_DataComboFile[Implementation programme]=$G$3)*(T_DataComboFile[Econ4]=$G50))*T_DataComboFile[2022/23 Increase]*$B$3)","v":0},{"$f":"P50+Q50+R50","v":0},{"$f":"SUMPRODUCT(((T_DataComboFile[Implementation programme]=$G$3)*(T_DataComboFile[Econ4]=$G50))*T_DataComboFile[2023/24 Baseline]*$B$3)","v":0},{"$f":"SUMPRODUCT(((T_DataComboFile[Implementation programme]=$G$3)*(T_DataComboFile[Econ4]=$G50))*T_DataComboFile[2023/24 Reduction]*$B$3)","v":0},{"$f":"SUMPRODUCT(((T_DataComboFile[Implementation programme]=$G$3)*(T_DataComboFile[Econ4]=$G50))*T_DataComboFile[2023/24 Increase]*$B$3)","v":0},{"$f":"T50+U50+V50","v":0}]
[0,0,null,null,null,null,"Other transfers to households",{"$f":"SUMPRODUCT(((T_DataComboFile[Implementation programme]=$G$3)*(T_DataComboFile[Econ4]=$G51))*T_DataComboFile[2017/18]*$B$3)","v":0},{"$f":"SUMPRODUCT(((T_DataComboFile[Implementation programme]=$G$3)*(T_DataComboFile[Econ4]=$G51))*T_DataComboFile[2018/19]*$B$3)","v":0},{"$f":"SUMPRODUCT(((T_DataComboFile[Implementation programme]=$G$3)*(T_DataComboFile[Econ4]=$G51))*T_DataComboFile[2019/20 Revised estimate]*$B$3)","v":0},{"$f":"SUMPRODUCT(((T_DataComboFile[Implementation programme]=$G$3)*(T_DataComboFile[Econ4]=$G51))*T_DataComboFile[2020/21 Revised]*$B$3)","v":0},{"$f":"SUMPRODUCT(((T_DataComboFile[Implementation programme]=$G$3)*(T_DataComboFile[Econ4]=$G51))*T_DataComboFile[2021/22 Baseline]*$B$3)","v":0},{"$f":"SUMPRODUCT(((T_DataComboFile[Implementation programme]=$G$3)*(T_DataComboFile[Econ4]=$G51))*T_DataComboFile[2021/22 Reduction]*$B$3)","v":0},{"$f":"SUMPRODUCT(((T_DataComboFile[Implementation programme]=$G$3)*(T_DataComboFile[Econ4]=$G51))*T_DataComboFile[2021/22 Increase]*$B$3)","v":0},0,{"$f":"SUMPRODUCT(((T_DataComboFile[Implementation programme]=$G$3)*(T_DataComboFile[Econ4]=$G51))*T_DataComboFile[2022/23 Baseline]*$B$3)","v":0},{"$f":"SUMPRODUCT(((T_DataComboFile[Implementation programme]=$G$3)*(T_DataComboFile[Econ4]=$G51))*T_DataComboFile[2022/23 Reduction]*$B$3)","v":0},{"$f":"SUMPRODUCT(((T_DataComboFile[Implementation programme]=$G$3)*(T_DataComboFile[Econ4]=$G51))*T_DataComboFile[2022/23 Increase]*$B$3)","v":0},0,{"$f":"SUMPRODUCT(((T_DataComboFile[Implementation programme]=$G$3)*(T_DataComboFile[Econ4]=$G51))*T_DataComboFile[2023/24 Baseline]*$B$3)","v":0},{"$f":"SUMPRODUCT(((T_DataComboFile[Implementation programme]=$G$3)*(T_DataComboFile[Econ4]=$G51))*T_DataComboFile[2023/24 Reduction]*$B$3)","v":0},{"$f":"SUMPRODUCT(((T_DataComboFile[Implementation programme]=$G$3)*(T_DataComboFile[Econ4]=$G51))*T_DataComboFile[2023/24 Increase]*$B$3)","v":0},0]
[0,0,null,null,null,null,"Payments for capital assets",{"$f":"SUM(H53,H56,H59:H63)","v":0},0,0,0,0,0,0,0,0,0,0,0,0,0,0,0]
[0,0,null,null,null,null,"Buildings and other fixed structures",{"$f":"SUM(H54:H55)","v":0},0,0,0,0,0,0,0,0,0,0,0,0,0,0,0]
[0,0,null,null,null,null,"Buildings",{"$f":"SUMPRODUCT(((T_DataComboFile[Implementation programme]=$G$3)*(T_DataComboFile[Econ4]=$G54))*T_DataComboFile[2017/18]*$B$3)","v":0},{"$f":"SUMPRODUCT(((T_DataComboFile[Implementation programme]=$G$3)*(T_DataComboFile[Econ4]=$G54))*T_DataComboFile[2018/19]*$B$3)","v":0},{"$f":"SUMPRODUCT(((T_DataComboFile[Implementation programme]=$G$3)*(T_DataComboFile[Econ4]=$G54))*T_DataComboFile[2019/20 Revised estimate]*$B$3)","v":0},{"$f":"SUMPRODUCT(((T_DataComboFile[Implementation programme]=$G$3)*(T_DataComboFile[Econ4]=$G54))*T_DataComboFile[2020/21 Revised]*$B$3)","v":0},{"$f":"SUMPRODUCT(((T_DataComboFile[Implementation programme]=$G$3)*(T_DataComboFile[Econ4]=$G54))*T_DataComboFile[2021/22 Baseline]*$B$3)","v":0},{"$f":"SUMPRODUCT(((T_DataComboFile[Implementation programme]=$G$3)*(T_DataComboFile[Econ4]=$G54))*T_DataComboFile[2021/22 Reduction]*$B$3)","v":0},{"$f":"SUMPRODUCT(((T_DataComboFile[Implementation programme]=$G$3)*(T_DataComboFile[Econ4]=$G54))*T_DataComboFile[2021/22 Increase]*$B$3)","v":0},{"$f":"L54+M54+N54","v":0},{"$f":"SUMPRODUCT(((T_DataComboFile[Implementation programme]=$G$3)*(T_DataComboFile[Econ4]=$G54))*T_DataComboFile[2022/23 Baseline]*$B$3)","v":0},{"$f":"SUMPRODUCT(((T_DataComboFile[Implementation programme]=$G$3)*(T_DataComboFile[Econ4]=$G54))*T_DataComboFile[2022/23 Reduction]*$B$3)","v":0},{"$f":"SUMPRODUCT(((T_DataComboFile[Implementation programme]=$G$3)*(T_DataComboFile[Econ4]=$G54))*T_DataComboFile[2022/23 Increase]*$B$3)","v":0},{"$f":"P54+Q54+R54","v":0},{"$f":"SUMPRODUCT(((T_DataComboFile[Implementation programme]=$G$3)*(T_DataComboFile[Econ4]=$G54))*T_DataComboFile[2023/24 Baseline]*$B$3)","v":0},{"$f":"SUMPRODUCT(((T_DataComboFile[Implementation programme]=$G$3)*(T_DataComboFile[Econ4]=$G54))*T_DataComboFile[2023/24 Reduction]*$B$3)","v":0},{"$f":"SUMPRODUCT(((T_DataComboFile[Implementation programme]=$G$3)*(T_DataComboFile[Econ4]=$G54))*T_DataComboFile[2023/24 Increase]*$B$3)","v":0},{"$f":"T54+U54+V54","v":0}]
[0,0,null,null,null,null,"Other fixed structures",{"$f":"SUMPRODUCT(((T_DataComboFile[Implementation programme]=$G$3)*(T_DataComboFile[Econ4]=$G55))*T_DataComboFile[2017/18]*$B$3)","v":0},{"$f":"SUMPRODUCT(((T_DataComboFile[Implementation programme]=$G$3)*(T_DataComboFile[Econ4]=$G55))*T_DataComboFile[2018/19]*$B$3)","v":0},{"$f":"SUMPRODUCT(((T_DataComboFile[Implementation programme]=$G$3)*(T_DataComboFile[Econ4]=$G55))*T_DataComboFile[2019/20 Revised estimate]*$B$3)","v":0},{"$f":"SUMPRODUCT(((T_DataComboFile[Implementation programme]=$G$3)*(T_DataComboFile[Econ4]=$G55))*T_DataComboFile[2020/21 Revised]*$B$3)","v":0},{"$f":"SUMPRODUCT(((T_DataComboFile[Implementation programme]=$G$3)*(T_DataComboFile[Econ4]=$G55))*T_DataComboFile[2021/22 Baseline]*$B$3)","v":0},{"$f":"SUMPRODUCT(((T_DataComboFile[Implementation programme]=$G$3)*(T_DataComboFile[Econ4]=$G55))*T_DataComboFile[2021/22 Reduction]*$B$3)","v":0},{"$f":"SUMPRODUCT(((T_DataComboFile[Implementation programme]=$G$3)*(T_DataComboFile[Econ4]=$G55))*T_DataComboFile[2021/22 Increase]*$B$3)","v":0},0,{"$f":"SUMPRODUCT(((T_DataComboFile[Implementation programme]=$G$3)*(T_DataComboFile[Econ4]=$G55))*T_DataComboFile[2022/23 Baseline]*$B$3)","v":0},{"$f":"SUMPRODUCT(((T_DataComboFile[Implementation programme]=$G$3)*(T_DataComboFile[Econ4]=$G55))*T_DataComboFile[2022/23 Reduction]*$B$3)","v":0},{"$f":"SUMPRODUCT(((T_DataComboFile[Implementation programme]=$G$3)*(T_DataComboFile[Econ4]=$G55))*T_DataComboFile[2022/23 Increase]*$B$3)","v":0},0,{"$f":"SUMPRODUCT(((T_DataComboFile[Implementation programme]=$G$3)*(T_DataComboFile[Econ4]=$G55))*T_DataComboFile[2023/24 Baseline]*$B$3)","v":0},{"$f":"SUMPRODUCT(((T_DataComboFile[Implementation programme]=$G$3)*(T_DataComboFile[Econ4]=$G55))*T_DataComboFile[2023/24 Reduction]*$B$3)","v":0},{"$f":"SUMPRODUCT(((T_DataComboFile[Implementation programme]=$G$3)*(T_DataComboFile[Econ4]=$G55))*T_DataComboFile[2023/24 Increase]*$B$3)","v":0},0]
[0,0,null,null,null,null,"Machinery and equipment",{"$f":"SUM(H57:H58)","v":0},0,0,0,0,0,0,0,0,0,0,0,0,0,0,0]
[0,0,null,null,null,null,"Transport equipment",{"$f":"SUMPRODUCT(((T_DataComboFile[Implementation programme]=$G$3)*(T_DataComboFile[Econ4]=$G57))*T_DataComboFile[2017/18]*$B$3)","v":0},{"$f":"SUMPRODUCT(((T_DataComboFile[Implementation programme]=$G$3)*(T_DataComboFile[Econ4]=$G57))*T_DataComboFile[2018/19]*$B$3)","v":0},{"$f":"SUMPRODUCT(((T_DataComboFile[Implementation programme]=$G$3)*(T_DataComboFile[Econ4]=$G57))*T_DataComboFile[2019/20 Revised estimate]*$B$3)","v":0},{"$f":"SUMPRODUCT(((T_DataComboFile[Implementation programme]=$G$3)*(T_DataComboFile[Econ4]=$G57))*T_DataComboFile[2020/21 Revised]*$B$3)","v":0},{"$f":"SUMPRODUCT(((T_DataComboFile[Implementation programme]=$G$3)*(T_DataComboFile[Econ4]=$G57))*T_DataComboFile[2021/22 Baseline]*$B$3)","v":0},{"$f":"SUMPRODUCT(((T_DataComboFile[Implementation programme]=$G$3)*(T_DataComboFile[Econ4]=$G57))*T_DataComboFile[2021/22 Reduction]*$B$3)","v":0},{"$f":"SUMPRODUCT(((T_DataComboFile[Implementation programme]=$G$3)*(T_DataComboFile[Econ4]=$G57))*T_DataComboFile[2021/22 Increase]*$B$3)","v":0},{"$f":"L57+M57+N57","v":0},{"$f":"SUMPRODUCT(((T_DataComboFile[Implementation programme]=$G$3)*(T_DataComboFile[Econ4]=$G57))*T_DataComboFile[2022/23 Baseline]*$B$3)","v":0},{"$f":"SUMPRODUCT(((T_DataComboFile[Implementation programme]=$G$3)*(T_DataComboFile[Econ4]=$G57))*T_DataComboFile[2022/23 Reduction]*$B$3)","v":0},{"$f":"SUMPRODUCT(((T_DataComboFile[Implementation programme]=$G$3)*(T_DataComboFile[Econ4]=$G57))*T_DataComboFile[2022/23 Increase]*$B$3)","v":0},{"$f":"P57+Q57+R57","v":0},{"$f":"SUMPRODUCT(((T_DataComboFile[Implementation programme]=$G$3)*(T_DataComboFile[Econ4]=$G57))*T_DataComboFile[2023/24 Baseline]*$B$3)","v":0},{"$f":"SUMPRODUCT(((T_DataComboFile[Implementation programme]=$G$3)*(T_DataComboFile[Econ4]=$G57))*T_DataComboFile[2023/24 Reduction]*$B$3)","v":0},{"$f":"SUMPRODUCT(((T_DataComboFile[Implementation programme]=$G$3)*(T_DataComboFile[Econ4]=$G57))*T_DataComboFile[2023/24 Increase]*$B$3)","v":0},{"$f":"T57+U57+V57","v":0}]
[0,0,null,null,null,null,"Other machinery and equipment",{"$f":"SUMPRODUCT(((T_DataComboFile[Implementation programme]=$G$3)*(T_DataComboFile[Econ4]=$G58))*T_DataComboFile[2017/18]*$B$3)","v":0},{"$f":"SUMPRODUCT(((T_DataComboFile[Implementation programme]=$G$3)*(T_DataComboFile[Econ4]=$G58))*T_DataComboFile[2018/19]*$B$3)","v":0},{"$f":"SUMPRODUCT(((T_DataComboFile[Implementation programme]=$G$3)*(T_DataComboFile[Econ4]=$G58))*T_DataComboFile[2019/20 Revised estimate]*$B$3)","v":0},{"$f":"SUMPRODUCT(((T_DataComboFile[Implementation programme]=$G$3)*(T_DataComboFile[Econ4]=$G58))*T_DataComboFile[2020/21 Revised]*$B$3)","v":0},{"$f":"SUMPRODUCT(((T_DataComboFile[Implementation programme]=$G$3)*(T_DataComboFile[Econ4]=$G58))*T_DataComboFile[2021/22 Baseline]*$B$3)","v":0},{"$f":"SUMPRODUCT(((T_DataComboFile[Implementation programme]=$G$3)*(T_DataComboFile[Econ4]=$G58))*T_DataComboFile[2021/22 Reduction]*$B$3)","v":0},{"$f":"SUMPRODUCT(((T_DataComboFile[Implementation programme]=$G$3)*(T_DataComboFile[Econ4]=$G58))*T_DataComboFile[2021/22 Increase]*$B$3)","v":0},0,{"$f":"SUMPRODUCT(((T_DataComboFile[Implementation programme]=$G$3)*(T_DataComboFile[Econ4]=$G58))*T_DataComboFile[2022/23 Baseline]*$B$3)","v":0},{"$f":"SUMPRODUCT(((T_DataComboFile[Implementation programme]=$G$3)*(T_DataComboFile[Econ4]=$G58))*T_DataComboFile[2022/23 Reduction]*$B$3)","v":0},{"$f":"SUMPRODUCT(((T_DataComboFile[Implementation programme]=$G$3)*(T_DataComboFile[Econ4]=$G58))*T_DataComboFile[2022/23 Increase]*$B$3)","v":0},0,{"$f":"SUMPRODUCT(((T_DataComboFile[Implementation programme]=$G$3)*(T_DataComboFile[Econ4]=$G58))*T_DataComboFile[2023/24 Baseline]*$B$3)","v":0},{"$f":"SUMPRODUCT(((T_DataComboFile[Implementation programme]=$G$3)*(T_DataComboFile[Econ4]=$G58))*T_DataComboFile[2023/24 Reduction]*$B$3)","v":0},{"$f":"SUMPRODUCT(((T_DataComboFile[Implementation programme]=$G$3)*(T_DataComboFile[Econ4]=$G58))*T_DataComboFile[2023/24 Increase]*$B$3)","v":0},0]
[0,0,null,null,null,null,"Heritage assets",{"$f":"SUMPRODUCT(((T_DataComboFile[Implementation programme]=$G$3)*(T_DataComboFile[Econ3]=$G59))*T_DataComboFile[2017/18]*$B$3)","v":0},{"$f":"SUMPRODUCT(((T_DataComboFile[Implementation programme]=$G$3)*(T_DataComboFile[Econ3]=$G59))*T_DataComboFile[2018/19]*$B$3)","v":0},{"$f":"SUMPRODUCT(((T_DataComboFile[Implementation programme]=$G$3)*(T_DataComboFile[Econ3]=$G59))*T_DataComboFile[2019/20 Revised estimate]*$B$3)","v":0},{"$f":"SUMPRODUCT(((T_DataComboFile[Implementation programme]=$G$3)*(T_DataComboFile[Econ3]=$G59))*T_DataComboFile[2020/21 Revised]*$B$3)","v":0},{"$f":"SUMPRODUCT(((T_DataComboFile[Implementation programme]=$G$3)*(T_DataComboFile[Econ3]=$G59))*T_DataComboFile[2021/22 Baseline]*$B$3)","v":0},{"$f":"SUMPRODUCT(((T_DataComboFile[Implementation programme]=$G$3)*(T_DataComboFile[Econ3]=$G59))*T_DataComboFile[2021/22 Reduction]*$B$3)","v":0},{"$f":"SUMPRODUCT(((T_DataComboFile[Implementation programme]=$G$3)*(T_DataComboFile[Econ3]=$G59))*T_DataComboFile[2021/22 Increase]*$B$3)","v":0},0,{"$f":"SUMPRODUCT(((T_DataComboFile[Implementation programme]=$G$3)*(T_DataComboFile[Econ3]=$G59))*T_DataComboFile[2022/23 Baseline]*$B$3)","v":0},{"$f":"SUMPRODUCT(((T_DataComboFile[Implementation programme]=$G$3)*(T_DataComboFile[Econ3]=$G59))*T_DataComboFile[2022/23 Reduction]*$B$3)","v":0},{"$f":"SUMPRODUCT(((T_DataComboFile[Implementation programme]=$G$3)*(T_DataComboFile[Econ3]=$G59))*T_DataComboFile[2022/23 Increase]*$B$3)","v":0},0,{"$f":"SUMPRODUCT(((T_DataComboFile[Implementation programme]=$G$3)*(T_DataComboFile[Econ3]=$G59))*T_DataComboFile[2023/24 Baseline]*$B$3)","v":0},{"$f":"SUMPRODUCT(((T_DataComboFile[Implementation programme]=$G$3)*(T_DataComboFile[Econ3]=$G59))*T_DataComboFile[2023/24 Reduction]*$B$3)","v":0},{"$f":"SUMPRODUCT(((T_DataComboFile[Implementation programme]=$G$3)*(T_DataComboFile[Econ3]=$G59))*T_DataComboFile[2023/24 Increase]*$B$3)","v":0},0]
[0,0,null,null,null,null,"Specialised military assets",{"$f":"SUMPRODUCT(((T_DataComboFile[Implementation programme]=$G$3)*(T_DataComboFile[Econ3]=$G60))*T_DataComboFile[2017/18]*$B$3)","v":0},{"$f":"SUMPRODUCT(((T_DataComboFile[Implementation programme]=$G$3)*(T_DataComboFile[Econ3]=$G60))*T_DataComboFile[2018/19]*$B$3)","v":0},{"$f":"SUMPRODUCT(((T_DataComboFile[Implementation programme]=$G$3)*(T_DataComboFile[Econ3]=$G60))*T_DataComboFile[2019/20 Revised estimate]*$B$3)","v":0},{"$f":"SUMPRODUCT(((T_DataComboFile[Implementation programme]=$G$3)*(T_DataComboFile[Econ3]=$G60))*T_DataComboFile[2020/21 Revised]*$B$3)","v":0},{"$f":"SUMPRODUCT(((T_DataComboFile[Implementation programme]=$G$3)*(T_DataComboFile[Econ3]=$G60))*T_DataComboFile[2021/22 Baseline]*$B$3)","v":0},{"$f":"SUMPRODUCT(((T_DataComboFile[Implementation programme]=$G$3)*(T_DataComboFile[Econ3]=$G60))*T_DataComboFile[2021/22 Reduction]*$B$3)","v":0},{"$f":"SUMPRODUCT(((T_DataComboFile[Implementation programme]=$G$3)*(T_DataComboFile[Econ3]=$G60))*T_DataComboFile[2021/22 Increase]*$B$3)","v":0},0,{"$f":"SUMPRODUCT(((T_DataComboFile[Implementation programme]=$G$3)*(T_DataComboFile[Econ3]=$G60))*T_DataComboFile[2022/23 Baseline]*$B$3)","v":0},{"$f":"SUMPRODUCT(((T_DataComboFile[Implementation programme]=$G$3)*(T_DataComboFile[Econ3]=$G60))*T_DataComboFile[2022/23 Reduction]*$B$3)","v":0},{"$f":"SUMPRODUCT(((T_DataComboFile[Implementation programme]=$G$3)*(T_DataComboFile[Econ3]=$G60))*T_DataComboFile[2022/23 Increase]*$B$3)","v":0},0,{"$f":"SUMPRODUCT(((T_DataComboFile[Implementation programme]=$G$3)*(T_DataComboFile[Econ3]=$G60))*T_DataComboFile[2023/24 Baseline]*$B$3)","v":0},{"$f":"SUMPRODUCT(((T_DataComboFile[Implementation programme]=$G$3)*(T_DataComboFile[Econ3]=$G60))*T_DataComboFile[2023/24 Reduction]*$B$3)","v":0},{"$f":"SUMPRODUCT(((T_DataComboFile[Implementation programme]=$G$3)*(T_DataComboFile[Econ3]=$G60))*T_DataComboFile[2023/24 Increase]*$B$3)","v":0},0]
[0,0,null,null,null,null,"Biological assets",{"$f":"SUMPRODUCT(((T_DataComboFile[Implementation programme]=$G$3)*(T_DataComboFile[Econ3]=$G61))*T_DataComboFile[2017/18]*$B$3)","v":0},{"$f":"SUMPRODUCT(((T_DataComboFile[Implementation programme]=$G$3)*(T_DataComboFile[Econ3]=$G61))*T_DataComboFile[2018/19]*$B$3)","v":0},{"$f":"SUMPRODUCT(((T_DataComboFile[Implementation programme]=$G$3)*(T_DataComboFile[Econ3]=$G61))*T_DataComboFile[2019/20 Revised estimate]*$B$3)","v":0},{"$f":"SUMPRODUCT(((T_DataComboFile[Implementation programme]=$G$3)*(T_DataComboFile[Econ3]=$G61))*T_DataComboFile[2020/21 Revised]*$B$3)","v":0},{"$f":"SUMPRODUCT(((T_DataComboFile[Implementation programme]=$G$3)*(T_DataComboFile[Econ3]=$G61))*T_DataComboFile[2021/22 Baseline]*$B$3)","v":0},{"$f":"SUMPRODUCT(((T_DataComboFile[Implementation programme]=$G$3)*(T_DataComboFile[Econ3]=$G61))*T_DataComboFile[2021/22 Reduction]*$B$3)","v":0},{"$f":"SUMPRODUCT(((T_DataComboFile[Implementation programme]=$G$3)*(T_DataComboFile[Econ3]=$G61))*T_DataComboFile[2021/22 Increase]*$B$3)","v":0},0,{"$f":"SUMPRODUCT(((T_DataComboFile[Implementation programme]=$G$3)*(T_DataComboFile[Econ3]=$G61))*T_DataComboFile[2022/23 Baseline]*$B$3)","v":0},{"$f":"SUMPRODUCT(((T_DataComboFile[Implementation programme]=$G$3)*(T_DataComboFile[Econ3]=$G61))*T_DataComboFile[2022/23 Reduction]*$B$3)","v":0},{"$f":"SUMPRODUCT(((T_DataComboFile[Implementation programme]=$G$3)*(T_DataComboFile[Econ3]=$G61))*T_DataComboFile[2022/23 Increase]*$B$3)","v":0},0,{"$f":"SUMPRODUCT(((T_DataComboFile[Implementation programme]=$G$3)*(T_DataComboFile[Econ3]=$G61))*T_DataComboFile[2023/24 Baseline]*$B$3)","v":0},{"$f":"SUMPRODUCT(((T_DataComboFile[Implementation programme]=$G$3)*(T_DataComboFile[Econ3]=$G61))*T_DataComboFile[2023/24 Reduction]*$B$3)","v":0},{"$f":"SUMPRODUCT(((T_DataComboFile[Implementation programme]=$G$3)*(T_DataComboFile[Econ3]=$G61))*T_DataComboFile[2023/24 Increase]*$B$3)","v":0},0]
[0,0,null,null,null,null,"Land and sub-soil assets",{"$f":"SUMPRODUCT(((T_DataComboFile[Implementation programme]=$G$3)*(T_DataComboFile[Econ3]=$G62))*T_DataComboFile[2017/18]*$B$3)","v":0},{"$f":"SUMPRODUCT(((T_DataComboFile[Implementation programme]=$G$3)*(T_DataComboFile[Econ3]=$G62))*T_DataComboFile[2018/19]*$B$3)","v":0},{"$f":"SUMPRODUCT(((T_DataComboFile[Implementation programme]=$G$3)*(T_DataComboFile[Econ3]=$G62))*T_DataComboFile[2019/20 Revised estimate]*$B$3)","v":0},{"$f":"SUMPRODUCT(((T_DataComboFile[Implementation programme]=$G$3)*(T_DataComboFile[Econ3]=$G62))*T_DataComboFile[2020/21 Revised]*$B$3)","v":0},{"$f":"SUMPRODUCT(((T_DataComboFile[Implementation programme]=$G$3)*(T_DataComboFile[Econ3]=$G62))*T_DataComboFile[2021/22 Baseline]*$B$3)","v":0},{"$f":"SUMPRODUCT(((T_DataComboFile[Implementation programme]=$G$3)*(T_DataComboFile[Econ3]=$G62))*T_DataComboFile[2021/22 Reduction]*$B$3)","v":0},{"$f":"SUMPRODUCT(((T_DataComboFile[Implementation programme]=$G$3)*(T_DataComboFile[Econ3]=$G62))*T_DataComboFile[2021/22 Increase]*$B$3)","v":0},0,{"$f":"SUMPRODUCT(((T_DataComboFile[Implementation programme]=$G$3)*(T_DataComboFile[Econ3]=$G62))*T_DataComboFile[2022/23 Baseline]*$B$3)","v":0},{"$f":"SUMPRODUCT(((T_DataComboFile[Implementation programme]=$G$3)*(T_DataComboFile[Econ3]=$G62))*T_DataComboFile[2022/23 Reduction]*$B$3)","v":0},{"$f":"SUMPRODUCT(((T_DataComboFile[Implementation programme]=$G$3)*(T_DataComboFile[Econ3]=$G62))*T_DataComboFile[2022/23 Increase]*$B$3)","v":0},0,{"$f":"SUMPRODUCT(((T_DataComboFile[Implementation programme]=$G$3)*(T_DataComboFile[Econ3]=$G62))*T_DataComboFile[2023/24 Baseline]*$B$3)","v":0},{"$f":"SUMPRODUCT(((T_DataComboFile[Implementation programme]=$G$3)*(T_DataComboFile[Econ3]=$G62))*T_DataComboFile[2023/24 Reduction]*$B$3)","v":0},{"$f":"SUMPRODUCT(((T_DataComboFile[Implementation programme]=$G$3)*(T_DataComboFile[Econ3]=$G62))*T_DataComboFile[2023/24 Increase]*$B$3)","v":0},0]
[0,0,null,null,null,null,"Software and other intangible assets",{"$f":"SUMPRODUCT(((T_DataComboFile[Implementation programme]=$G$3)*(T_DataComboFile[Econ3]=$G63))*T_DataComboFile[2017/18]*$B$3)","v":0},{"$f":"SUMPRODUCT(((T_DataComboFile[Implementation programme]=$G$3)*(T_DataComboFile[Econ3]=$G63))*T_DataComboFile[2018/19]*$B$3)","v":0},{"$f":"SUMPRODUCT(((T_DataComboFile[Implementation programme]=$G$3)*(T_DataComboFile[Econ3]=$G63))*T_DataComboFile[2019/20 Revised estimate]*$B$3)","v":0},{"$f":"SUMPRODUCT(((T_DataComboFile[Implementation programme]=$G$3)*(T_DataComboFile[Econ3]=$G63))*T_DataComboFile[2020/21 Revised]*$B$3)","v":0},{"$f":"SUMPRODUCT(((T_DataComboFile[Implementation programme]=$G$3)*(T_DataComboFile[Econ3]=$G63))*T_DataComboFile[2021/22 Baseline]*$B$3)","v":0},{"$f":"SUMPRODUCT(((T_DataComboFile[Implementation programme]=$G$3)*(T_DataComboFile[Econ3]=$G63))*T_DataComboFile[2021/22 Reduction]*$B$3)","v":0},{"$f":"SUMPRODUCT(((T_DataComboFile[Implementation programme]=$G$3)*(T_DataComboFile[Econ3]=$G63))*T_DataComboFile[2021/22 Increase]*$B$3)","v":0},0,{"$f":"SUMPRODUCT(((T_DataComboFile[Implementation programme]=$G$3)*(T_DataComboFile[Econ3]=$G63))*T_DataComboFile[2022/23 Baseline]*$B$3)","v":0},{"$f":"SUMPRODUCT(((T_DataComboFile[Implementation programme]=$G$3)*(T_DataComboFile[Econ3]=$G63))*T_DataComboFile[2022/23 Reduction]*$B$3)","v":0},{"$f":"SUMPRODUCT(((T_DataComboFile[Implementation programme]=$G$3)*(T_DataComboFile[Econ3]=$G63))*T_DataComboFile[2022/23 Increase]*$B$3)","v":0},0,{"$f":"SUMPRODUCT(((T_DataComboFile[Implementation programme]=$G$3)*(T_DataComboFile[Econ3]=$G63))*T_DataComboFile[2023/24 Baseline]*$B$3)","v":0},{"$f":"SUMPRODUCT(((T_DataComboFile[Implementation programme]=$G$3)*(T_DataComboFile[Econ3]=$G63))*T_DataComboFile[2023/24 Reduction]*$B$3)","v":0},{"$f":"SUMPRODUCT(((T_DataComboFile[Implementation programme]=$G$3)*(T_DataComboFile[Econ3]=$G63))*T_DataComboFile[2023/24 Increase]*$B$3)","v":0},0]
[0,0,null,null,null,null,"Payments for financial assets",{"$f":"SUMPRODUCT(((T_DataComboFile[Implementation programme]=$G$3)*(T_DataComboFile[Econ3]=$G64))*T_DataComboFile[2017/18]*$B$3)","v":0},{"$f":"SUMPRODUCT(((T_DataComboFile[Implementation programme]=$G$3)*(T_DataComboFile[Econ3]=$G64))*T_DataComboFile[2018/19]*$B$3)","v":0},{"$f":"SUMPRODUCT(((T_DataComboFile[Implementation programme]=$G$3)*(T_DataComboFile[Econ3]=$G64))*T_DataComboFile[2019/20 Revised estimate]*$B$3)","v":0},{"$f":"SUMPRODUCT(((T_DataComboFile[Implementation programme]=$G$3)*(T_DataComboFile[Econ3]=$G64))*T_DataComboFile[2020/21 Revised]*$B$3)","v":0},{"$f":"SUMPRODUCT(((T_DataComboFile[Implementation programme]=$G$3)*(T_DataComboFile[Econ3]=$G64))*T_DataComboFile[2021/22 Baseline]*$B$3)","v":0},{"$f":"SUMPRODUCT(((T_DataComboFile[Implementation programme]=$G$3)*(T_DataComboFile[Econ3]=$G64))*T_DataComboFile[2021/22 Reduction]*$B$3)","v":0},{"$f":"SUMPRODUCT(((T_DataComboFile[Implementation programme]=$G$3)*(T_DataComboFile[Econ3]=$G64))*T_DataComboFile[2021/22 Increase]*$B$3)","v":0},0,{"$f":"SUMPRODUCT(((T_DataComboFile[Implementation programme]=$G$3)*(T_DataComboFile[Econ3]=$G64))*T_DataComboFile[2022/23 Baseline]*$B$3)","v":0},{"$f":"SUMPRODUCT(((T_DataComboFile[Implementation programme]=$G$3)*(T_DataComboFile[Econ3]=$G64))*T_DataComboFile[2022/23 Reduction]*$B$3)","v":0},{"$f":"SUMPRODUCT(((T_DataComboFile[Implementation programme]=$G$3)*(T_DataComboFile[Econ3]=$G64))*T_DataComboFile[2022/23 Increase]*$B$3)","v":0},0,{"$f":"SUMPRODUCT(((T_DataComboFile[Implementation programme]=$G$3)*(T_DataComboFile[Econ3]=$G64))*T_DataComboFile[2023/24 Baseline]*$B$3)","v":0},{"$f":"SUMPRODUCT(((T_DataComboFile[Implementation programme]=$G$3)*(T_DataComboFile[Econ3]=$G64))*T_DataComboFile[2023/24 Reduction]*$B$3)","v":0},{"$f":"SUMPRODUCT(((T_DataComboFile[Implementation programme]=$G$3)*(T_DataComboFile[Econ3]=$G64))*T_DataComboFile[2023/24 Increase]*$B$3)","v":0},0]
[0,0,null,null,null,null,"Total",{"$f":"SUM(H32,H36,H52,H64)","v":0},0,0,0,0,0,0,0,0,0,0,0,0,0,0,0]
[]
[]
[]
[]
[]
[null,null,null,null,null,null,{"$f":"\"IMPACT OF ADJUSTMENTS: \" &UPPER($G$3)","v":"IMPACT OF ADJUSTMENTS: "}]
[]
[null,null,null,null,null,1,"Summary of impact on service delivery due to adjustments"]
[{"$f":"$G$3","v":0},1]
[0,1]
[0,1]
[0,1]
[0,1]
[0,1]
[0,1]
[0,1]
[0,1]
[0,1]
[0,1]
[0,1]
[0,1]
[0,1]
[0,1]
[]
[]
[]
[]
[]
[null,null,null,null,null,2,"Impact of adjustments on performance indicators"]
[{"$f":"$G$3","v":0},2,null,null,null,null,null,"2021/22",null,null,"2022/23",null,null,"2023/24",null,null," Comment",null,null,null,null,"Related MTSF Priority"]
[0,2,null,null,null,null,"Performance indicator","Original target","Revised target","Change","Original target","Revised target","Change","Original target","Revised target","Change"]
[0,2]
[0,2]
[0,2]
[0,2]
[0,2]
[0,2]
[0,2]
[0,2]
[0,2]
[0,2]
[0,2]
[0,2]
[0,2]
[0,2]
[0,2]
[]
[]
[]
[]
[]
[null,null,null,null,null,3,"Impact of adjustments on infrastructure projects"]
[{"$f":"$G$3","v":0},3,null,null,null,null,null,"2021/22",null,null,"2022/23",null,null,"2023/24",null,null," Comment"]
[0,3,null,null,null,null,"Project name","Original amount","Revised amount","Change","Original amount","Revised amount","Change","Original amount","Revised amount","Change"]
[0,3,null,null,null,null,null,null,null,{"$f":"I120-H120","v":0},null,null,{"$f":"L120-K120","v":0},null,null,{"$f":"O120-N120","v":0}]
[0,3,null,null,null,null,null,null,null,0,null,null,0,null,null,0]
[0,3,null,null,null,null,null,null,null,0,null,null,0,null,null,0]
[0,3,null,null,null,null,null,null,null,0,null,null,0,null,null,0]
[0,3,null,null,null,null,null,null,null,0,null,null,0,null,null,0]
[0,3,null,null,null,null,null,null,null,0,null,null,0,null,null,0]
[0,3,null,null,null,null,null,null,null,0,null,null,0,null,null,0]
[0,3,null,null,null,null,null,null,null,0,null,null,0,null,null,0]
[0,3,null,null,null,null,null,null,null,0,null,null,0,null,null,0]
[0,3,null,null,null,null,null,null,null,0,null,null,0,null,null,0]
[0,3,null,null,null,null,null,null,null,0,null,null,0,null,null,0]
[0,3,null,null,null,null,null,null,null,0,null,null,0,null,null,0]
[0,3,null,null,null,null,null,null,null,0,null,null,0,null,null,0]
[0,3,null,null,null,null,null,null,null,0,null,null,0,null,null,0]
[0,3,null,null,null,null,null,null,null,0,null,null,0,null,null,0]
[0,3,null,null,null,null,"Total",{"$f":"SUM(H120:H134)","v":0},0,0,0,0,0,0,0,0]
[]
[]
[]
[]
[]
[null,null,null,null,null,4,"Impact of adjustments on personnel headcount numbers"]
[{"$f":"$G$3","v":0},4,null,null,null,null,null,"2021/22",null,null,"2022/23",null,null,"2023/24",null,null," Comment"]
[0,4,null,null,null,null,"Salary level","Original number","Revised number","Change","Original number","Revised number","Change","Original number","Revised number","Change"]
[0,4,null,null,null,null,1,null,null,{"$f":"I144-H144","v":0},null,null,{"$f":"L144-K144","v":0},null,null,{"$f":"O144-N144","v":0}]
[0,4,null,null,null,null,2,null,null,0,null,null,0,null,null,0]
[0,4,null,null,null,null,3,null,null,0,null,null,0,null,null,0]
[0,4,null,null,null,null,4,null,null,0,null,null,0,null,null,0]
[0,4,null,null,null,null,5,null,null,0,null,null,0,null,null,0]
[0,4,null,null,null,null,6,null,null,0,null,null,0,null,null,0]
[0,4,null,null,null,null,7,null,null,0,null,null,0,null,null,0]
[0,4,null,null,null,null,8,null,null,0,null,null,0,null,null,0]
[0,4,null,null,null,null,9,null,null,0,null,null,0,null,null,0]
[0,4,null,null,null,null,10,null,null,0,null,null,0,null,null,0]
[0,4,null,null,null,null,11,null,null,0,null,null,0,null,null,0]
[0,4,null,null,null,null,12,null,null,0,null,null,0,null,null,0]
[0,4,null,null,null,null,13,null,null,0,null,null,0,null,null,0]
[0,4,null,null,null,null,14,null,null,0,null,null,0,null,null,0]
[0,4,null,null,null,null,15,null,null,0,null,null,0,null,null,0]
[0,4,null,null,null,null,16,null,null,0,null,null,0,null,null,0]
[0,4,null,null,null,null,"Other",null,null,0,null,null,0,null,null,0]
[0,4,null,null,null,null,"Other",null,null,0,null,null,0,null,null,0]
[0,4,null,null,null,null,"Other",null,null,0,null,null,0,null,null,0]
[0,4,null,null,null,null,"Other",null,null,0,null,null,0,null,null,0]
[0,4,null,null,null,null,"Total",{"$f":"SUM(H144:H163)","v":0},0,0,0,0,0,0,0,0]
[]
[]
[]
[]
[]
[null,null,null,null,null,5,"Impact of adjustments by economic classification"]
[{"$f":"$G$3","v":0},5,null,null,null,null,null,"2021/22",null,null,"2022/23",null,null,"2023/24",null,null," Comment"]
[0,5,null,null,null,null,"Salary level","Original number","Revised number","Change","Original number","Revised number","Change","Original number","Revised number","Change"]
[0,5,null,null,null,null,"Current payments",{"$f":"SUM(H174,H175,H182)","v":0},{"$f":"SUM(I174,I175,I182)","v":0},{"$f":"I173-H173","v":0},{"$f":"SUM(K174,K175,K182)","v":0},{"$f":"SUM(L174,L175,L182)","v":0},{"$f":"L173-K173","v":0},{"$f":"SUM(N174,N175,N182)","v":0},{"$f":"SUM(O174,O175,O182)","v":0},{"$f":"O173-N173","v":0}]
[0,5,null,null,null,null,"Compensation of employees",{"$f":"SUMPRODUCT(((T_DataComboFile[Implementation programme]=$G$3)*(T_DataComboFile[Econ3]=$G174))*T_DataComboFile[2021/22 Baseline]*$B$3)","v":0},{"$f":"SUMPRODUCT(((T_DataComboFile[Implementation programme]=$G$3)*(T_DataComboFile[Econ3]=$G174))*T_DataComboFile[2021/22 Revised baseline]*$B$3)","v":0},0,{"$f":"SUMPRODUCT(((T_DataComboFile[Implementation programme]=$G$3)*(T_DataComboFile[Econ3]=$G174))*T_DataComboFile[2022/23 Baseline]*$B$3)","v":0},{"$f":"SUMPRODUCT(((T_DataComboFile[Implementation programme]=$G$3)*(T_DataComboFile[Econ3]=$G174))*T_DataComboFile[2022/23 Revised baseline]*$B$3)","v":0},0,{"$f":"SUMPRODUCT(((T_DataComboFile[Implementation programme]=$G$3)*(T_DataComboFile[Econ3]=$G174))*T_DataComboFile[2023/24 Baseline]*$B$3)","v":0},{"$f":"SUMPRODUCT(((T_DataComboFile[Implementation programme]=$G$3)*(T_DataComboFile[Econ3]=$G174))*T_DataComboFile[2023/24 Revised baseline]*$B$3)","v":0},0]
[0,5,null,null,null,null,"Goods and services",{"$f":"SUMPRODUCT(((T_DataComboFile[Implementation programme]=$G$3)*(T_DataComboFile[Econ3]=$G175))*T_DataComboFile[2021/22 Baseline]*$B$3)","v":0},{"$f":"SUMPRODUCT(((T_DataComboFile[Implementation programme]=$G$3)*(T_DataComboFile[Econ3]=$G175))*T_DataComboFile[2021/22 Revised baseline]*$B$3)","v":0},0,{"$f":"SUMPRODUCT(((T_DataComboFile[Implementation programme]=$G$3)*(T_DataComboFile[Econ3]=$G175))*T_DataComboFile[2022/23 Baseline]*$B$3)","v":0},{"$f":"SUMPRODUCT(((T_DataComboFile[Implementation programme]=$G$3)*(T_DataComboFile[Econ3]=$G175))*T_DataComboFile[2022/23 Revised baseline]*$B$3)","v":0},0,{"$f":"SUMPRODUCT(((T_DataComboFile[Implementation programme]=$G$3)*(T_DataComboFile[Econ3]=$G175))*T_DataComboFile[2023/24 Baseline]*$B$3)","v":0},{"$f":"SUMPRODUCT(((T_DataComboFile[Implementation programme]=$G$3)*(T_DataComboFile[Econ3]=$G175))*T_DataComboFile[2023/24 Revised baseline]*$B$3)","v":0},0]
[0,50,null,null,null,null,"of which:"]
[0,51,null,null,null,null,null,null,null,{"$f":"I177-H177","v":0},null,null,{"$f":"L177-K177","v":0},null,null,0]
[0,51,null,null,null,null,null,null,null,0,null,null,0,null,null,0]
[0,51,null,null,null,null,null,null,null,0,null,null,0,null,null,0]
[0,51,null,null,null,null,null,null,null,0,null,null,0,null,null,0]
[0,51,null,null,null,null,null,null,null,0,null,null,0,null,null,0]
[0,5,null,null,null,null,"Interest and rent on land",{"$f":"SUMPRODUCT(((T_DataComboFile[Implementation programme]=$G$3)*(T_DataComboFile[Econ3]=$G182))*T_DataComboFile[2021/22 Baseline]*$B$3)","v":0},{"$f":"SUMPRODUCT(((T_DataComboFile[Implementation programme]=$G$3)*(T_DataComboFile[Econ3]=$G182))*T_DataComboFile[2021/22 Revised baseline]*$B$3)","v":0},0,{"$f":"SUMPRODUCT(((T_DataComboFile[Implementation programme]=$G$3)*(T_DataComboFile[Econ3]=$G182))*T_DataComboFile[2022/23 Baseline]*$B$3)","v":0},{"$f":"SUMPRODUCT(((T_DataComboFile[Implementation programme]=$G$3)*(T_DataComboFile[Econ3]=$G182))*T_DataComboFile[2022/23 Revised baseline]*$B$3)","v":0},0,{"$f":"SUMPRODUCT(((T_DataComboFile[Implementation programme]=$G$3)*(T_DataComboFile[Econ3]=$G182))*T_DataComboFile[2023/24 Baseline]*$B$3)","v":0},{"$f":"SUMPRODUCT(((T_DataComboFile[Implementation programme]=$G$3)*(T_DataComboFile[Econ3]=$G182))*T_DataComboFile[2023/24 Revised baseline]*$B$3)","v":0},0]
[0,5,null,null,null,null,"Transfers and subsidies",{"$f":"SUM(H184,H185,H197,H198,H199,H206,H207)","v":0},{"$f":"SUM(I184,I185,I197,I198,I199,I206,I207)","v":0},0,{"$f":"SUM(K184,K185,K197,K198,K199,K206,K207)","v":0},0,0,{"$f":"SUM(N184,N185,N197,N198,N199,N206,N207)","v":0},0,0]
[0,5,null,null,null,null,"Provinces and municipalities",{"$f":"SUMPRODUCT(((T_DataComboFile[Implementation programme]=$G$3)*(T_DataComboFile[Econ3]=$G184))*T_DataComboFile[2021/22 Baseline]*$B$3)","v":0},{"$f":"SUMPRODUCT(((T_DataComboFile[Implementation programme]=$G$3)*(T_DataComboFile[Econ3]=$G184))*T_DataComboFile[2021/22 Revised baseline]*$B$3)","v":0},0,{"$f":"SUMPRODUCT(((T_DataComboFile[Implementation programme]=$G$3)*(T_DataComboFile[Econ3]=$G184))*T_DataComboFile[2022/23 Baseline]*$B$3)","v":0},{"$f":"SUMPRODUCT(((T_DataComboFile[Implementation programme]=$G$3)*(T_DataComboFile[Econ3]=$G184))*T_DataComboFile[2022/23 Revised baseline]*$B$3)","v":0},0,{"$f":"SUMPRODUCT(((T_DataComboFile[Implementation programme]=$G$3)*(T_DataComboFile[Econ3]=$G184))*T_DataComboFile[2023/24 Baseline]*$B$3)","v":0},{"$f":"SUMPRODUCT(((T_DataComboFile[Implementation programme]=$G$3)*(T_DataComboFile[Econ3]=$G184))*T_DataComboFile[2023/24 Revised baseline]*$B$3)","v":0},0]
[0,5,null,null,null,null,"Departmental agencies and accounts",{"$f":"SUMPRODUCT(((T_DataComboFile[Implementation programme]=$G$3)*(T_DataComboFile[Econ3]=$G185))*T_DataComboFile[2021/22 Baseline]*$B$3)","v":0},{"$f":"SUMPRODUCT(((T_DataComboFile[Implementation programme]=$G$3)*(T_DataComboFile[Econ3]=$G185))*T_DataComboFile[2021/22 Revised baseline]*$B$3)","v":0},0,{"$f":"SUMPRODUCT(((T_DataComboFile[Implementation programme]=$G$3)*(T_DataComboFile[Econ3]=$G185))*T_DataComboFile[2022/23 Baseline]*$B$3)","v":0},{"$f":"SUMPRODUCT(((T_DataComboFile[Implementation programme]=$G$3)*(T_DataComboFile[Econ3]=$G185))*T_DataComboFile[2022/23 Revised baseline]*$B$3)","v":0},0,{"$f":"SUMPRODUCT(((T_DataComboFile[Implementation programme]=$G$3)*(T_DataComboFile[Econ3]=$G185))*T_DataComboFile[2023/24 Baseline]*$B$3)","v":0},{"$f":"SUMPRODUCT(((T_DataComboFile[Implementation programme]=$G$3)*(T_DataComboFile[Econ3]=$G185))*T_DataComboFile[2023/24 Revised baseline]*$B$3)","v":0},0]
[0,50,null,null,null,null,"of which:"]
[0,52,null,null,null,null,null,null,null,{"$f":"I187-H187","v":0},null,null,{"$f":"L187-K187","v":0},null,null,{"$f":"O187-N187","v":0}]
[0,52,null,null,null,null,null,null,null,0,null,null,0,null,null,0]
[0,52,null,null,null,null,null,null,null,0,null,null,0,null,null,0]
[0,52,null,null,null,null,null,null,null,0,null,null,0,null,null,0]
[0,52,null,null,null,null,null,null,null,0,null,null,0,null,null,0]
[0,52,null,null,null,null,null,null,null,0,null,null,0,null,null,0]
[0,52,null,null,null,null,null,null,null,0,null,null,0,null,null,0]
[0,52,null,null,null,null,null,null,null,0,null,null,0,null,null,0]
[0,52,null,null,null,null,null,null,null,0,null,null,0,null,null,0]
[0,52,null,null,null,null,null,null,null,0,null,null,0,null,null,0]
[0,5,null,null,null,null,"Higher education institutions",{"$f":"SUMPRODUCT(((T_DataComboFile[Implementation programme]=$G$3)*(T_DataComboFile[Econ3]=$G197))*T_DataComboFile[2021/22 Baseline]*$B$3)","v":0},{"$f":"SUMPRODUCT(((T_DataComboFile[Implementation programme]=$G$3)*(T_DataComboFile[Econ3]=$G197))*T_DataComboFile[2021/22 Revised baseline]*$B$3)","v":0},0,{"$f":"SUMPRODUCT(((T_DataComboFile[Implementation programme]=$G$3)*(T_DataComboFile[Econ3]=$G197))*T_DataComboFile[2022/23 Baseline]*$B$3)","v":0},{"$f":"SUMPRODUCT(((T_DataComboFile[Implementation programme]=$G$3)*(T_DataComboFile[Econ3]=$G197))*T_DataComboFile[2022/23 Revised baseline]*$B$3)","v":0},0,{"$f":"SUMPRODUCT(((T_DataComboFile[Implementation programme]=$G$3)*(T_DataComboFile[Econ3]=$G197))*T_DataComboFile[2023/24 Baseline]*$B$3)","v":0},{"$f":"SUMPRODUCT(((T_DataComboFile[Implementation programme]=$G$3)*(T_DataComboFile[Econ3]=$G197))*T_DataComboFile[2023/24 Revised baseline]*$B$3)","v":0},0]
[0,5,null,null,null,null,"Foreign governments and international organisations",{"$f":"SUMPRODUCT(((T_DataComboFile[Implementation programme]=$G$3)*(T_DataComboFile[Econ3]=$G198))*T_DataComboFile[2021/22 Baseline]*$B$3)","v":0},{"$f":"SUMPRODUCT(((T_DataComboFile[Implementation programme]=$G$3)*(T_DataComboFile[Econ3]=$G198))*T_DataComboFile[2021/22 Revised baseline]*$B$3)","v":0},0,{"$f":"SUMPRODUCT(((T_DataComboFile[Implementation programme]=$G$3)*(T_DataComboFile[Econ3]=$G198))*T_DataComboFile[2022/23 Baseline]*$B$3)","v":0},{"$f":"SUMPRODUCT(((T_DataComboFile[Implementation programme]=$G$3)*(T_DataComboFile[Econ3]=$G198))*T_DataComboFile[2022/23 Revised baseline]*$B$3)","v":0},0,{"$f":"SUMPRODUCT(((T_DataComboFile[Implementation programme]=$G$3)*(T_DataComboFile[Econ3]=$G198))*T_DataComboFile[2023/24 Baseline]*$B$3)","v":0},{"$f":"SUMPRODUCT(((T_DataComboFile[Implementation programme]=$G$3)*(T_DataComboFile[Econ3]=$G198))*T_DataComboFile[2023/24 Revised baseline]*$B$3)","v":0},0]
[0,5,null,null,null,null,"Public corporations and private enterprises",{"$f":"SUMPRODUCT(((T_DataComboFile[Implementation programme]=$G$3)*(T_DataComboFile[Econ3]=$G199))*T_DataComboFile[2021/22 Baseline]*$B$3)","v":0},{"$f":"SUMPRODUCT(((T_DataComboFile[Implementation programme]=$G$3)*(T_DataComboFile[Econ3]=$G199))*T_DataComboFile[2021/22 Revised baseline]*$B$3)","v":0},0,{"$f":"SUMPRODUCT(((T_DataComboFile[Implementation programme]=$G$3)*(T_DataComboFile[Econ3]=$G199))*T_DataComboFile[2022/23 Baseline]*$B$3)","v":0},{"$f":"SUMPRODUCT(((T_DataComboFile[Implementation programme]=$G$3)*(T_DataComboFile[Econ3]=$G199))*T_DataComboFile[2022/23 Revised baseline]*$B$3)","v":0},0,{"$f":"SUMPRODUCT(((T_DataComboFile[Implementation programme]=$G$3)*(T_DataComboFile[Econ3]=$G199))*T_DataComboFile[2023/24 Baseline]*$B$3)","v":0},{"$f":"SUMPRODUCT(((T_DataComboFile[Implementation programme]=$G$3)*(T_DataComboFile[Econ3]=$G199))*T_DataComboFile[2023/24 Revised baseline]*$B$3)","v":0},0]
[0,50,null,null,null,null,"of which:"]
[0,53,null,null,null,null,null,null,null,{"$f":"I201-H201","v":0},null,null,{"$f":"L201-K201","v":0},null,null,{"$f":"O201-N201","v":0}]
[0,53,null,null,null,null,null,null,null,0,null,null,0,null,null,0]
[0,53,null,null,null,null,null,null,null,0,null,null,0,null,null,0]
[0,53,null,null,null,null,null,null,null,0,null,null,0,null,null,0]
[0,53,null,null,null,null,null,null,null,0,null,null,0,null,null,0]
[0,5,null,null,null,null,"Non-profit institutions",{"$f":"SUMPRODUCT(((T_DataComboFile[Implementation programme]=$G$3)*(T_DataComboFile[Econ3]=$G206))*T_DataComboFile[2021/22 Baseline]*$B$3)","v":0},{"$f":"SUMPRODUCT(((T_DataComboFile[Implementation programme]=$G$3)*(T_DataComboFile[Econ3]=$G206))*T_DataComboFile[2021/22 Revised baseline]*$B$3)","v":0},0,{"$f":"SUMPRODUCT(((T_DataComboFile[Implementation programme]=$G$3)*(T_DataComboFile[Econ3]=$G206))*T_DataComboFile[2022/23 Baseline]*$B$3)","v":0},{"$f":"SUMPRODUCT(((T_DataComboFile[Implementation programme]=$G$3)*(T_DataComboFile[Econ3]=$G206))*T_DataComboFile[2022/23 Revised baseline]*$B$3)","v":0},0,{"$f":"SUMPRODUCT(((T_DataComboFile[Implementation programme]=$G$3)*(T_DataComboFile[Econ3]=$G206))*T_DataComboFile[2023/24 Baseline]*$B$3)","v":0},{"$f":"SUMPRODUCT(((T_DataComboFile[Implementation programme]=$G$3)*(T_DataComboFile[Econ3]=$G206))*T_DataComboFile[2023/24 Revised baseline]*$B$3)","v":0},0]
[0,5,null,null,null,null,"Households",{"$f":"SUMPRODUCT(((T_DataComboFile[Implementation programme]=$G$3)*(T_DataComboFile[Econ3]=$G207))*T_DataComboFile[2021/22 Baseline]*$B$3)","v":0},{"$f":"SUMPRODUCT(((T_DataComboFile[Implementation programme]=$G$3)*(T_DataComboFile[Econ3]=$G207))*T_DataComboFile[2021/22 Revised baseline]*$B$3)","v":0},0,{"$f":"SUMPRODUCT(((T_DataComboFile[Implementation programme]=$G$3)*(T_DataComboFile[Econ3]=$G207))*T_DataComboFile[2022/23 Baseline]*$B$3)","v":0},{"$f":"SUMPRODUCT(((T_DataComboFile[Implementation programme]=$G$3)*(T_DataComboFile[Econ3]=$G207))*T_DataComboFile[2022/23 Revised baseline]*$B$3)","v":0},0,{"$f":"SUMPRODUCT(((T_DataComboFile[Implementation programme]=$G$3)*(T_DataComboFile[Econ3]=$G207))*T_DataComboFile[2023/24 Baseline]*$B$3)","v":0},{"$f":"SUMPRODUCT(((T_DataComboFile[Implementation programme]=$G$3)*(T_DataComboFile[Econ3]=$G207))*T_DataComboFile[2023/24 Revised baseline]*$B$3)","v":0},0]
[0,5,null,null,null,null,"Payments for capital assets",{"$f":"SUM(H209:H215)","v":0},0,0,0,0,0,0,{"$f":"SUM(O209:O215)","v":0},0]
[0,5,null,null,null,null,"Buildings and other fixed structures",{"$f":"SUMPRODUCT(((T_DataComboFile[Implementation programme]=$G$3)*(T_DataComboFile[Econ3]=$G209))*T_DataComboFile[2021/22 Baseline]*$B$3)","v":0},{"$f":"SUMPRODUCT(((T_DataComboFile[Implementation programme]=$G$3)*(T_DataComboFile[Econ3]=$G209))*T_DataComboFile[2021/22 Revised baseline]*$B$3)","v":0},0,{"$f":"SUMPRODUCT(((T_DataComboFile[Implementation programme]=$G$3)*(T_DataComboFile[Econ3]=$G209))*T_DataComboFile[2022/23 Baseline]*$B$3)","v":0},{"$f":"SUMPRODUCT(((T_DataComboFile[Implementation programme]=$G$3)*(T_DataComboFile[Econ3]=$G209))*T_DataComboFile[2022/23 Revised baseline]*$B$3)","v":0},0,{"$f":"SUMPRODUCT(((T_DataComboFile[Implementation programme]=$G$3)*(T_DataComboFile[Econ3]=$G209))*T_DataComboFile[2023/24 Baseline]*$B$3)","v":0},{"$f":"SUMPRODUCT(((T_DataComboFile[Implementation programme]=$G$3)*(T_DataComboFile[Econ3]=$G209))*T_DataComboFile[2023/24 Revised baseline]*$B$3)","v":0},0]
[0,5,null,null,null,null,"Machinery and equipment",{"$f":"SUMPRODUCT(((T_DataComboFile[Implementation programme]=$G$3)*(T_DataComboFile[Econ3]=$G210))*T_DataComboFile[2021/22 Baseline]*$B$3)","v":0},{"$f":"SUMPRODUCT(((T_DataComboFile[Implementation programme]=$G$3)*(T_DataComboFile[Econ3]=$G210))*T_DataComboFile[2021/22 Revised baseline]*$B$3)","v":0},0,{"$f":"SUMPRODUCT(((T_DataComboFile[Implementation programme]=$G$3)*(T_DataComboFile[Econ3]=$G210))*T_DataComboFile[2022/23 Baseline]*$B$3)","v":0},{"$f":"SUMPRODUCT(((T_DataComboFile[Implementation programme]=$G$3)*(T_DataComboFile[Econ3]=$G210))*T_DataComboFile[2022/23 Revised baseline]*$B$3)","v":0},0,{"$f":"SUMPRODUCT(((T_DataComboFile[Implementation programme]=$G$3)*(T_DataComboFile[Econ3]=$G210))*T_DataComboFile[2023/24 Baseline]*$B$3)","v":0},{"$f":"SUMPRODUCT(((T_DataComboFile[Implementation programme]=$G$3)*(T_DataComboFile[Econ3]=$G210))*T_DataComboFile[2023/24 Revised baseline]*$B$3)","v":0},0]
[0,5,null,null,null,null,"Heritage assets",{"$f":"SUMPRODUCT(((T_DataComboFile[Implementation programme]=$G$3)*(T_DataComboFile[Econ3]=$G211))*T_DataComboFile[2021/22 Baseline]*$B$3)","v":0},{"$f":"SUMPRODUCT(((T_DataComboFile[Implementation programme]=$G$3)*(T_DataComboFile[Econ3]=$G211))*T_DataComboFile[2021/22 Revised baseline]*$B$3)","v":0},0,{"$f":"SUMPRODUCT(((T_DataComboFile[Implementation programme]=$G$3)*(T_DataComboFile[Econ3]=$G211))*T_DataComboFile[2022/23 Baseline]*$B$3)","v":0},{"$f":"SUMPRODUCT(((T_DataComboFile[Implementation programme]=$G$3)*(T_DataComboFile[Econ3]=$G211))*T_DataComboFile[2022/23 Revised baseline]*$B$3)","v":0},0,{"$f":"SUMPRODUCT(((T_DataComboFile[Implementation programme]=$G$3)*(T_DataComboFile[Econ3]=$G211))*T_DataComboFile[2023/24 Baseline]*$B$3)","v":0},{"$f":"SUMPRODUCT(((T_DataComboFile[Implementation programme]=$G$3)*(T_DataComboFile[Econ3]=$G211))*T_DataComboFile[2023/24 Revised baseline]*$B$3)","v":0},0]
[0,5,null,null,null,null,"Specialised military assets",{"$f":"SUMPRODUCT(((T_DataComboFile[Implementation programme]=$G$3)*(T_DataComboFile[Econ3]=$G212))*T_DataComboFile[2021/22 Baseline]*$B$3)","v":0},{"$f":"SUMPRODUCT(((T_DataComboFile[Implementation programme]=$G$3)*(T_DataComboFile[Econ3]=$G212))*T_DataComboFile[2021/22 Revised baseline]*$B$3)","v":0},0,{"$f":"SUMPRODUCT(((T_DataComboFile[Implementation programme]=$G$3)*(T_DataComboFile[Econ3]=$G212))*T_DataComboFile[2022/23 Baseline]*$B$3)","v":0},{"$f":"SUMPRODUCT(((T_DataComboFile[Implementation programme]=$G$3)*(T_DataComboFile[Econ3]=$G212))*T_DataComboFile[2022/23 Revised baseline]*$B$3)","v":0},0,{"$f":"SUMPRODUCT(((T_DataComboFile[Implementation programme]=$G$3)*(T_DataComboFile[Econ3]=$G212))*T_DataComboFile[2023/24 Baseline]*$B$3)","v":0},{"$f":"SUMPRODUCT(((T_DataComboFile[Implementation programme]=$G$3)*(T_DataComboFile[Econ3]=$G212))*T_DataComboFile[2023/24 Revised baseline]*$B$3)","v":0},0]
[0,5,null,null,null,null,"Biological assets",{"$f":"SUMPRODUCT(((T_DataComboFile[Implementation programme]=$G$3)*(T_DataComboFile[Econ3]=$G213))*T_DataComboFile[2021/22 Baseline]*$B$3)","v":0},{"$f":"SUMPRODUCT(((T_DataComboFile[Implementation programme]=$G$3)*(T_DataComboFile[Econ3]=$G213))*T_DataComboFile[2021/22 Revised baseline]*$B$3)","v":0},0,{"$f":"SUMPRODUCT(((T_DataComboFile[Implementation programme]=$G$3)*(T_DataComboFile[Econ3]=$G213))*T_DataComboFile[2022/23 Baseline]*$B$3)","v":0},{"$f":"SUMPRODUCT(((T_DataComboFile[Implementation programme]=$G$3)*(T_DataComboFile[Econ3]=$G213))*T_DataComboFile[2022/23 Revised baseline]*$B$3)","v":0},0,{"$f":"SUMPRODUCT(((T_DataComboFile[Implementation programme]=$G$3)*(T_DataComboFile[Econ3]=$G213))*T_DataComboFile[2023/24 Baseline]*$B$3)","v":0},{"$f":"SUMPRODUCT(((T_DataComboFile[Implementation programme]=$G$3)*(T_DataComboFile[Econ3]=$G213))*T_DataComboFile[2023/24 Revised baseline]*$B$3)","v":0},0]
[0,5,null,null,null,null,"Land and sub-soil assets",{"$f":"SUMPRODUCT(((T_DataComboFile[Implementation programme]=$G$3)*(T_DataComboFile[Econ3]=$G214))*T_DataComboFile[2021/22 Baseline]*$B$3)","v":0},{"$f":"SUMPRODUCT(((T_DataComboFile[Implementation programme]=$G$3)*(T_DataComboFile[Econ3]=$G214))*T_DataComboFile[2021/22 Revised baseline]*$B$3)","v":0},0,{"$f":"SUMPRODUCT(((T_DataComboFile[Implementation programme]=$G$3)*(T_DataComboFile[Econ3]=$G214))*T_DataComboFile[2022/23 Baseline]*$B$3)","v":0},{"$f":"SUMPRODUCT(((T_DataComboFile[Implementation programme]=$G$3)*(T_DataComboFile[Econ3]=$G214))*T_DataComboFile[2022/23 Revised baseline]*$B$3)","v":0},0,{"$f":"SUMPRODUCT(((T_DataComboFile[Implementation programme]=$G$3)*(T_DataComboFile[Econ3]=$G214))*T_DataComboFile[2023/24 Baseline]*$B$3)","v":0},{"$f":"SUMPRODUCT(((T_DataComboFile[Implementation programme]=$G$3)*(T_DataComboFile[Econ3]=$G214))*T_DataComboFile[2023/24 Revised baseline]*$B$3)","v":0},0]
[0,5,null,null,null,null,"Software and other intangible assets",{"$f":"SUMPRODUCT(((T_DataComboFile[Implementation programme]=$G$3)*(T_DataComboFile[Econ3]=$G215))*T_DataComboFile[2021/22 Baseline]*$B$3)","v":0},{"$f":"SUMPRODUCT(((T_DataComboFile[Implementation programme]=$G$3)*(T_DataComboFile[Econ3]=$G215))*T_DataComboFile[2021/22 Revised baseline]*$B$3)","v":0},0,{"$f":"SUMPRODUCT(((T_DataComboFile[Implementation programme]=$G$3)*(T_DataComboFile[Econ3]=$G215))*T_DataComboFile[2022/23 Baseline]*$B$3)","v":0},{"$f":"SUMPRODUCT(((T_DataComboFile[Implementation programme]=$G$3)*(T_DataComboFile[Econ3]=$G215))*T_DataComboFile[2022/23 Revised baseline]*$B$3)","v":0},0,{"$f":"SUMPRODUCT(((T_DataComboFile[Implementation programme]=$G$3)*(T_DataComboFile[Econ3]=$G215))*T_DataComboFile[2023/24 Baseline]*$B$3)","v":0},{"$f":"SUMPRODUCT(((T_DataComboFile[Implementation programme]=$G$3)*(T_DataComboFile[Econ3]=$G215))*T_DataComboFile[2023/24 Revised baseline]*$B$3)","v":0},0]
[0,5,null,null,null,null,"Payments for financial assets",{"$f":"SUMPRODUCT(((T_DataComboFile[Implementation programme]=$G$3)*(T_DataComboFile[Econ3]=$G216))*T_DataComboFile[2021/22 Baseline]*$B$3)","v":0},{"$f":"SUMPRODUCT(((T_DataComboFile[Implementation programme]=$G$3)*(T_DataComboFile[Econ3]=$G216))*T_DataComboFile[2021/22 Revised baseline]*$B$3)","v":0},0,{"$f":"SUMPRODUCT(((T_DataComboFile[Implementation programme]=$G$3)*(T_DataComboFile[Econ3]=$G216))*T_DataComboFile[2022/23 Baseline]*$B$3)","v":0},{"$f":"SUMPRODUCT(((T_DataComboFile[Implementation programme]=$G$3)*(T_DataComboFile[Econ3]=$G216))*T_DataComboFile[2022/23 Revised baseline]*$B$3)","v":0},0,{"$f":"SUMPRODUCT(((T_DataComboFile[Implementation programme]=$G$3)*(T_DataComboFile[Econ3]=$G216))*T_DataComboFile[2023/24 Baseline]*$B$3)","v":0},{"$f":"SUMPRODUCT(((T_DataComboFile[Implementation programme]=$G$3)*(T_DataComboFile[Econ3]=$G216))*T_DataComboFile[2023/24 Revised baseline]*$B$3)","v":0},0]
[0,5,null,null,null,null,"Total",{"$f":"SUM(H173,H183,H208,H216)","v":0},0,0,0,0,0,0,{"$f":"SUM(O173,O183,O208,O216)","v":0},0]
[]
[null,null,null,null,null,null,null,{"$f":"L65-H217","v":0},{"$f":"O65-I217","v":0},null,{"$f":"P65-K217","v":0},{"$f":"S65-L217","v":0},null,{"$f":"T65-N217","v":0},{"$f":"W65-O217","v":0}]

{"sheet":"IP18","index":27,"n_rows":219,"n_cols":23,"rows_kept":219,"cut":false,"hidden":false,"merged":[[70,6,70,17],[73,6,87,17],[94,16,94,20],[94,21,94,23],[95,16,95,20],[95,21,95,23],[99,16,99,20],[99,21,99,23],[100,16,100,20],[100,21,100,23],[101,16,101,20],[101,21,101,23],[96,16,96,20],[96,21,96,23],[97,16,97,20],[97,21,97,23],[98,16,98,20],[98,21,98,23],[105,16,105,20],[105,21,105,23],[106,16,106,20],[106,21,106,23],[107,16,107,20],[107,21,107,23],[102,16,102,20],[102,21,102,23],[103,16,103,20],[103,21,103,23],[104,16,104,20],[104,21,104,23],[117,16,117,20],[118,16,118,20],[119,16,119,20],[120,16,120,20],[121,16,121,20],[122,16,122,20],[108,16,108,20],[108,21,108,23],[109,16,109,20],[109,21,109,23],[110,16,110,20],[110,21,110,23],[129,16,129,20],[130,16,130,20],[131,16,131,20],[132,16,132,20],[133,16,133,20],[141,16,141,20],[123,16,123,20],[124,16,124,20],[125,16,125,20],[126,16,126,20],[127,16,127,20],[128,16,128,20],[174,16,174,20],[175,16,175,20],[176,16,176,20],[177,16,177,20],[178,16,178,20],[179,16,179,20],[142,16,142,20],[143,16,162,20],[170,16,170,20],[171,16,171,20],[172,16,172,20],[173,16,173,20],[186,16,186,20],[187,16,187,20],[188,16,188,20],[189,16,189,20],[190,16,190,20],[191,16,191,20],[180,16,180,20],[181,16,181,20],[182,16,182,20],[183,16,183,20],[184,16,184,20],[185,16,185,20],[198,16,198,20],[199,16,199,20],[200,16,200,20],[201,16,201,20],[202,16,202,20],[203,16,203,20],[192,16,192,20],[193,16,193,20],[194,16,194,20],[195,16,195,20],[196,16,196,20],[197,16,197,20],[210,16,210,20],[211,16,211,20],[212,16,212,20],[213,16,213,20],[214,16,214,20],[215,16,215,20],[204,16,204,20],[205,16,205,20],[206,16,206,20],[207,16,207,20],[208,16,208,20],[209,16,209,20]]}
[]
[null,null,null,null,null,null,"Implementation programme:"]
[null,{"$f":"IF(G3=\"\",0,1)","v":0},null,null,null,18,null,"… select from dropdown list"]
[null,null,null,null,null,null,null,null,null,null,null,null,"Growth"]
[null,null,null,null,null,null,"Quick view","2020/21","2021/22","2022/23","2023/24","Trend","2021/22","2022/23","2023/24","Ave Ann",null,"2020/21","2021/22","2022/23","2023/24"]
[null,null,null,null,null,null,"Compensation of employees",{"$f":"SUMPRODUCT(($G$32:$G$65=$G6)*($K$32:$K$65))","v":0},{"$f":"SUMPRODUCT(($G$32:$G$65=$G6)*($O$32:$O$65))","v":0},{"$f":"SUMPRODUCT(($G$32:$G$65=$G6)*($S$32:$S$65))","v":0},{"$f":"SUMPRODUCT(($G$32:$G$65=$G6)*($W$32:$W$65))","v":0},null,{"$f":"IFERROR(I6/H6-1,0)","v":0},0,0,{"$f":"IFERROR(((K6/H6)^(1/3)-1),0)","v":0}]
[null,null,null,null,null,null,"Goods and services",{"$f":"SUMPRODUCT(($G$32:$G$65=$G7)*($K$32:$K$65))","v":0},{"$f":"SUMPRODUCT(($G$32:$G$65=$G7)*($O$32:$O$65))","v":0},{"$f":"SUMPRODUCT(($G$32:$G$65=$G7)*($S$32:$S$65))","v":0},{"$f":"SUMPRODUCT(($G$32:$G$65=$G7)*($W$32:$W$65))","v":0},null,0,0,0,0]
[null,null,null,null,null,null,"Transfers and subsidies",{"$f":"SUMPRODUCT(($G$32:$G$65=$G8)*($K$32:$K$65))","v":0},{"$f":"SUMPRODUCT(($G$32:$G$65=$G8)*($O$32:$O$65))","v":0},{"$f":"SUMPRODUCT(($G$32:$G$65=$G8)*($S$32:$S$65))","v":0},{"$f":"SUMPRODUCT(($G$32:$G$65=$G8)*($W$32:$W$65))","v":0},null,0,0,0,0]
[null,null,null,null,null,null,"Payments for capital assets",{"$f":"SUMPRODUCT(($G$32:$G$65=$G9)*($K$32:$K$65))","v":0},{"$f":"SUMPRODUCT(($G$32:$G$65=$G9)*($O$32:$O$65))","v":0},{"$f":"SUMPRODUCT(($G$32:$G$65=$G9)*($S$32:$S$65))","v":0},{"$f":"SUMPRODUCT(($G$32:$G$65=$G9)*($W$32:$W$65))","v":0},null,0,0,0,0]
[null,null,null,null,null,null,"Total",{"$f":"SUMPRODUCT(($G$32:$G$65=$G10)*($K$32:$K$65))","v":0},{"$f":"SUMPRODUCT(($G$32:$G$65=$G10)*($O$32:$O$65))","v":0},{"$f":"SUMPRODUCT(($G$32:$G$65=$G10)*($S$32:$S$65))","v":0},{"$f":"SUMPRODUCT(($G$32:$G$65=$G10)*($W$32:$W$65))","v":0},null,0,0,0,0]
[null,null,null,null,null,null,"Composition of spending (% of Total)"]
[null,null,null,null,null,null,"Compensation of employees",{"$f":"IFERROR(H6/H$10,\"\")","v":""},"","","",null,null,null,null,null,null,{"$f":"IF(H12>0.0595,H12,\"\")","v":""},"","",""]
[null,null,null,null,null,null,"Goods and services","","","","",null,null,null,null,null,null,"","","",""]
[null,null,null,null,null,null,"Transfers and subsidies","","","","",null,null,null,null,null,null,"","","",""]
[null,null,null,null,null,null,"Payments for capital assets","","","","",null,null,null,null,null,null,"","","",""]
[]
[null,null,null,null,null,null,"Division of Revenue","2020/21","2021/22","2022/23","2023/24","Trend","2021/22","2022/23","2023/24","Ave Ann"]
[{"$f":"$G$3","v":0},"NAT",null,null,null,null,"National",{"$f":"SUMPRODUCT(((T_DataComboFile[Implementation programme]=$G$3)*(T_DataComboFile[DOR]=$B18))*T_DataComboFile[2020/21 Revised])","v":2331086},{"$f":"SUMPRODUCT(((T_DataComboFile[Implementation programme]=$G$3)*(T_DataComboFile[DOR]=$B18))*T_DataComboFile[2021/22 Revised baseline])","v":2583809},{"$f":"SUMPRODUCT(((T_DataComboFile[Implementation programme]=$G$3)*(T_DataComboFile[DOR]=$B18))*T_DataComboFile[2022/23 Revised baseline])","v":2617960},{"$f":"SUMPRODUCT(((T_DataComboFile[Implementation programme]=$G$3)*(T_DataComboFile[DOR]=$B18))*T_DataComboFile[2023/24 Revised baseline])","v":2733345},null,{"$f":"IFERROR(I18/H18-1,0)","v":0.10841427557799244},{"$f":"IFERROR(J18/I18-1,0)","v":1.3217308245307535E-2},{"$f":"IFERROR(K18/J18-1,0)","v":4.4074393802808309E-2},{"$f":"IFERROR(((K18/H18)^(1/3)-1),0)","v":5.449708876349435E-2}]
[0,null,null,null,null,null,"Provincial",{"$f":"SUM(H20:H21)","v":0},0,0,0,null,0,0,0,0]
[0,"PES",null,null,null,null,"Provincial equitable share",{"$f":"SUMPRODUCT(((T_DataComboFile[Implementation programme]=$G$3)*(T_DataComboFile[DOR]=$B20))*T_DataComboFile[2020/21 Revised])","v":0},{"$f":"SUMPRODUCT(((T_DataComboFile[Implementation programme]=$G$3)*(T_DataComboFile[DOR]=$B20))*T_DataComboFile[2021/22 Revised baseline])","v":0},{"$f":"SUMPRODUCT(((T_DataComboFile[Implementation programme]=$G$3)*(T_DataComboFile[DOR]=$B20))*T_DataComboFile[2022/23 Revised baseline])","v":0},{"$f":"SUMPRODUCT(((T_DataComboFile[Implementation programme]=$G$3)*(T_DataComboFile[DOR]=$B20))*T_DataComboFile[2023/24 Revised baseline])","v":0},null,{"$f":"IFERROR(I20/H20-1,0)","v":0},0,0,{"$f":"IFERROR(((K20/H20)^(1/3)-1),0)","v":0}]
[0,"PCG",null,null,null,null,"Provincial conditional grants",{"$f":"SUMPRODUCT(((T_DataComboFile[Implementation programme]=$G$3)*(T_DataComboFile[DOR]=$B21))*T_DataComboFile[2020/21 Revised])","v":0},{"$f":"SUMPRODUCT(((T_DataComboFile[Implementation programme]=$G$3)*(T_DataComboFile[DOR]=$B21))*T_DataComboFile[2021/22 Revised baseline])","v":0},{"$f":"SUMPRODUCT(((T_DataComboFile[Implementation programme]=$G$3)*(T_DataComboFile[DOR]=$B21))*T_DataComboFile[2022/23 Revised baseline])","v":0},{"$f":"SUMPRODUCT(((T_DataComboFile[Implementation programme]=$G$3)*(T_DataComboFile[DOR]=$B21))*T_DataComboFile[2023/24 Revised baseline])","v":0},null,0,0,0,0]
[0,null,null,null,null,null,"Local government",{"$f":"SUM(H23:H25)","v":0},0,0,0,null,{"$f":"IFERROR(I22/H22-1,0)","v":0},{"$f":"IFERROR(J22/I22-1,0)","v":0},{"$f":"IFERROR(K22/J22-1,0)","v":0},{"$f":"IFERROR(((K22/H22)^(1/3)-1),0)","v":0}]
[0,"LES",null,null,null,null,"Local equitable share",{"$f":"SUMPRODUCT(((T_DataComboFile[Implementation programme]=$G$3)*(T_DataComboFile[DOR]=$B23))*T_DataComboFile[2020/21 Revised])","v":0},{"$f":"SUMPRODUCT(((T_DataComboFile[Implementation programme]=$G$3)*(T_DataComboFile[DOR]=$B23))*T_DataComboFile[2021/22 Revised baseline])","v":0},{"$f":"SUMPRODUCT(((T_DataComboFile[Implementation programme]=$G$3)*(T_DataComboFile[DOR]=$B23))*T_DataComboFile[2022/23 Revised baseline])","v":0},{"$f":"SUMPRODUCT(((T_DataComboFile[Implementation programme]=$G$3)*(T_DataComboFile[DOR]=$B23))*T_DataComboFile[2023/24 Revised baseline])","v":0},null,{"$f":"IFERROR(I23/H23-1,0)","v":0},0,0,{"$f":"IFERROR(((K23/H23)^(1/3)-1),0)","v":0}]
[0,"LCG",null,null,null,null,"Local conditional grants",{"$f":"SUMPRODUCT(((T_DataComboFile[Implementation programme]=$G$3)*(T_DataComboFile[DOR]=$B24))*T_DataComboFile[2020/21 Revised])","v":0},{"$f":"SUMPRODUCT(((T_DataComboFile[Implementation programme]=$G$3)*(T_DataComboFile[DOR]=$B24))*T_DataComboFile[2021/22 Revised baseline])","v":0},{"$f":"SUMPRODUCT(((T_DataComboFile[Implementation programme]=$G$3)*(T_DataComboFile[DOR]=$B24))*T_DataComboFile[2022/23 Revised baseline])","v":0},{"$f":"SUMPRODUCT(((T_DataComboFile[Implementation programme]=$G$3)*(T_DataComboFile[DOR]=$B24))*T_DataComboFile[2023/24 Revised baseline])","v":0},null,0,0,0,0]
[0,"GFL",null,null,null,null,"General fuel levy ",{"$f":"SUMPRODUCT(((T_DataComboFile[Implementation programme]=$G$3)*(T_DataComboFile[DOR]=$B25))*T_DataComboFile[2020/21 Revised])","v":0},{"$f":"SUMPRODUCT(((T_DataComboFile[Implementation programme]=$G$3)*(T_DataComboFile[DOR]=$B25))*T_DataComboFile[2021/22 Revised baseline])","v":0},{"$f":"SUMPRODUCT(((T_DataComboFile[Implementation programme]=$G$3)*(T_DataComboFile[DOR]=$B25))*T_DataComboFile[2022/23 Revised baseline])","v":0},{"$f":"SUMPRODUCT(((T_DataComboFile[Implementation programme]=$G$3)*(T_DataComboFile[DOR]=$B25))*T_DataComboFile[2023/24 Revised baseline])","v":0},null,0,0,0,0]
[]
[]
[null,null,null,null,null,null,{"$f":"G3","v":0}]
[{"$f":"$G$3","v":0},0,null,null,null,null,null,"2017/18","2018/19","2019/20","2020/21","2021/22",null,null,null,"2022/23",null,null,null,"2023/24"]
[{"$f":"$G$3","v":0},0,null,null,null,null,"Rand thousand","Audited outcome","Audited outcome","Pre-audited outcome","Budget","Baseline","Decrease","Increase","Revised baseline","Baseline","Decrease","Increase","Revised baseline","Baseline","Decrease","Increase","Revised baseline"]
[0,0,null,null,null,null,"Economic classification"]
[0,0,null,null,null,null,"Current payments",{"$f":"SUM(H33:H35)","v":0},0,0,0,0,0,0,0,0,0,0,0,0,0,0,0]
[0,0,null,null,null,null,"Compensation of employees",{"$f":"SUMPRODUCT(((T_DataComboFile[Implementation programme]=$G$3)*(T_DataComboFile[Econ3]=$G33))*T_DataComboFile[2017/18]*$B$3)","v":0},{"$f":"SUMPRODUCT(((T_DataComboFile[Implementation programme]=$G$3)*(T_DataComboFile[Econ3]=$G33))*T_DataComboFile[2018/19]*$B$3)","v":0},{"$f":"SUMPRODUCT(((T_DataComboFile[Implementation programme]=$G$3)*(T_DataComboFile[Econ3]=$G33))*T_DataComboFile[2019/20 Revised estimate]*$B$3)","v":0},{"$f":"SUMPRODUCT(((T_DataComboFile[Implementation programme]=$G$3)*(T_DataComboFile[Econ3]=$G33))*T_DataComboFile[2020/21 Revised]*$B$3)","v":0},{"$f":"SUMPRODUCT(((T_DataComboFile[Implementation programme]=$G$3)*(T_DataComboFile[Econ3]=$G33))*T_DataComboFile[2021/22 Baseline]*$B$3)","v":0},{"$f":"SUMPRODUCT(((T_DataComboFile[Implementation programme]=$G$3)*(T_DataComboFile[Econ3]=$G33))*T_DataComboFile[2021/22 Reduction]*$B$3)","v":0},{"$f":"SUMPRODUCT(((T_DataComboFile[Implementation programme]=$G$3)*(T_DataComboFile[Econ3]=$G33))*T_DataComboFile[2021/22 Increase]*$B$3)","v":0},{"$f":"L33+M33+N33","v":0},{"$f":"SUMPRODUCT(((T_DataComboFile[Implementation programme]=$G$3)*(T_DataComboFile[Econ3]=$G33))*T_DataComboFile[2022/23 Baseline]*$B$3)","v":0},{"$f":"SUMPRODUCT(((T_DataComboFile[Implementation programme]=$G$3)*(T_DataComboFile[Econ3]=$G33))*T_DataComboFile[2022/23 Reduction]*$B$3)","v":0},{"$f":"SUMPRODUCT(((T_DataComboFile[Implementation programme]=$G$3)*(T_DataComboFile[Econ3]=$G33))*T_DataComboFile[2022/23 Increase]*$B$3)","v":0},{"$f":"P33+Q33+R33","v":0},{"$f":"SUMPRODUCT(((T_DataComboFile[Implementation programme]=$G$3)*(T_DataComboFile[Econ3]=$G33))*T_DataComboFile[2023/24 Baseline]*$B$3)","v":0},{"$f":"SUMPRODUCT(((T_DataComboFile[Implementation programme]=$G$3)*(T_DataComboFile[Econ3]=$G33))*T_DataComboFile[2023/24 Reduction]*$B$3)","v":0},{"$f":"SUMPRODUCT(((T_DataComboFile[Implementation programme]=$G$3)*(T_DataComboFile[Econ3]=$G33))*T_DataComboFile[2023/24 Increase]*$B$3)","v":0},{"$f":"T33+U33+V33","v":0}]
[0,0,null,null,null,null,"Goods and services",{"$f":"SUMPRODUCT(((T_DataComboFile[Implementation programme]=$G$3)*(T_DataComboFile[Econ3]=$G34))*T_DataComboFile[2017/18]*$B$3)","v":0},{"$f":"SUMPRODUCT(((T_DataComboFile[Implementation programme]=$G$3)*(T_DataComboFile[Econ3]=$G34))*T_DataComboFile[2018/19]*$B$3)","v":0},{"$f":"SUMPRODUCT(((T_DataComboFile[Implementation programme]=$G$3)*(T_DataComboFile[Econ3]=$G34))*T_DataComboFile[2019/20 Revised estimate]*$B$3)","v":0},{"$f":"SUMPRODUCT(((T_DataComboFile[Implementation programme]=$G$3)*(T_DataComboFile[Econ3]=$G34))*T_DataComboFile[2020/21 Revised]*$B$3)","v":0},{"$f":"SUMPRODUCT(((T_DataComboFile[Implementation programme]=$G$3)*(T_DataComboFile[Econ3]=$G34))*T_DataComboFile[2021/22 Baseline]*$B$3)","v":0},{"$f":"SUMPRODUCT(((T_DataComboFile[Implementation programme]=$G$3)*(T_DataComboFile[Econ3]=$G34))*T_DataComboFile[2021/22 Reduction]*$B$3)","v":0},{"$f":"SUMPRODUCT(((T_DataComboFile[Implementation programme]=$G$3)*(T_DataComboFile[Econ3]=$G34))*T_DataComboFile[2021/22 Increase]*$B$3)","v":0},0,{"$f":"SUMPRODUCT(((T_DataComboFile[Implementation programme]=$G$3)*(T_DataComboFile[Econ3]=$G34))*T_DataComboFile[2022/23 Baseline]*$B$3)","v":0},{"$f":"SUMPRODUCT(((T_DataComboFile[Implementation programme]=$G$3)*(T_DataComboFile[Econ3]=$G34))*T_DataComboFile[2022/23 Reduction]*$B$3)","v":0},{"$f":"SUMPRODUCT(((T_DataComboFile[Implementation programme]=$G$3)*(T_DataComboFile[Econ3]=$G34))*T_DataComboFile[2022/23 Increase]*$B$3)","v":0},0,{"$f":"SUMPRODUCT(((T_DataComboFile[Implementation programme]=$G$3)*(T_DataComboFile[Econ3]=$G34))*T_DataComboFile[2023/24 Baseline]*$B$3)","v":0},{"$f":"SUMPRODUCT(((T_DataComboFile[Implementation programme]=$G$3)*(T_DataComboFile[Econ3]=$G34))*T_DataComboFile[2023/24 Reduction]*$B$3)","v":0},{"$f":"SUMPRODUCT(((T_DataComboFile[Implementation programme]=$G$3)*(T_DataComboFile[Econ3]=$G34))*T_DataComboFile[2023/24 Increase]*$B$3)","v":0},0]
[0,0,null,null,null,null,"Interest and rent on land",{"$f":"SUMPRODUCT(((T_DataComboFile[Implementation programme]=$G$3)*(T_DataComboFile[Econ3]=$G35))*T_DataComboFile[2017/18]*$B$3)","v":0},{"$f":"SUMPRODUCT(((T_DataComboFile[Implementation programme]=$G$3)*(T_DataComboFile[Econ3]=$G35))*T_DataComboFile[2018/19]*$B$3)","v":0},{"$f":"SUMPRODUCT(((T_DataComboFile[Implementation programme]=$G$3)*(T_DataComboFile[Econ3]=$G35))*T_DataComboFile[2019/20 Revised estimate]*$B$3)","v":0},{"$f":"SUMPRODUCT(((T_DataComboFile[Implementation programme]=$G$3)*(T_DataComboFile[Econ3]=$G35))*T_DataComboFile[2020/21 Revised]*$B$3)","v":0},{"$f":"SUMPRODUCT(((T_DataComboFile[Implementation programme]=$G$3)*(T_DataComboFile[Econ3]=$G35))*T_DataComboFile[2021/22 Baseline]*$B$3)","v":0},{"$f":"SUMPRODUCT(((T_DataComboFile[Implementation programme]=$G$3)*(T_DataComboFile[Econ3]=$G35))*T_DataComboFile[2021/22 Reduction]*$B$3)","v":0},{"$f":"SUMPRODUCT(((T_DataComboFile[Implementation programme]=$G$3)*(T_DataComboFile[Econ3]=$G35))*T_DataComboFile[2021/22 Increase]*$B$3)","v":0},0,{"$f":"SUMPRODUCT(((T_DataComboFile[Implementation programme]=$G$3)*(T_DataComboFile[Econ3]=$G35))*T_DataComboFile[2022/23 Baseline]*$B$3)","v":0},{"$f":"SUMPRODUCT(((T_DataComboFile[Implementation programme]=$G$3)*(T_DataComboFile[Econ3]=$G35))*T_DataComboFile[2022/23 Reduction]*$B$3)","v":0},{"$f":"SUMPRODUCT(((T_DataComboFile[Implementation programme]=$G$3)*(T_DataComboFile[Econ3]=$G35))*T_DataComboFile[2022/23 Increase]*$B$3)","v":0},0,{"$f":"SUMPRODUCT(((T_DataComboFile[Implementation programme]=$G$3)*(T_DataComboFile[Econ3]=$G35))*T_DataComboFile[2023/24 Baseline]*$B$3)","v":0},{"$f":"SUMPRODUCT(((T_DataComboFile[Implementation programme]=$G$3)*(T_DataComboFile[Econ3]=$G35))*T_DataComboFile[2023/24 Reduction]*$B$3)","v":0},{"$f":"SUMPRODUCT(((T_DataComboFile[Implementation programme]=$G$3)*(T_DataComboFile[Econ3]=$G35))*T_DataComboFile[2023/24 Increase]*$B$3)","v":0},0]
[0,0,null,null,null,null,"Transfers and subsidies",{"$f":"SUM(H37,H40,H43:H45,H48:H49)","v":0},0,0,0,0,0,0,0,0,0,0,0,0,0,0,0]
[0,0,null,null,null,null,"Provinces and municipalities",{"$f":"SUM(H38:H39)","v":0},0,0,0,0,0,0,0,0,0,0,0,0,0,0,0]
[0,0,null,null,null,null,"Provinces",{"$f":"SUMPRODUCT(((T_DataComboFile[Implementation programme]=$G$3)*(T_DataComboFile[Econ4]=$G38))*T_DataComboFile[2017/18]*$B$3)","v":0},{"$f":"SUMPRODUCT(((T_DataComboFile[Implementation programme]=$G$3)*(T_DataComboFile[Econ4]=$G38))*T_DataComboFile[2018/19]*$B$3)","v":0},{"$f":"SUMPRODUCT(((T_DataComboFile[Implementation programme]=$G$3)*(T_DataComboFile[Econ4]=$G38))*T_DataComboFile[2019/20 Revised estimate]*$B$3)","v":0},{"$f":"SUMPRODUCT(((T_DataComboFile[Implementation programme]=$G$3)*(T_DataComboFile[Econ4]=$G38))*T_DataComboFile[2020/21 Revised]*$B$3)","v":0},{"$f":"SUMPRODUCT(((T_DataComboFile[Implementation programme]=$G$3)*(T_DataComboFile[Econ4]=$G38))*T_DataComboFile[2021/22 Baseline]*$B$3)","v":0},{"$f":"SUMPRODUCT(((T_DataComboFile[Implementation programme]=$G$3)*(T_DataComboFile[Econ4]=$G38))*T_DataComboFile[2021/22 Reduction]*$B$3)","v":0},{"$f":"SUMPRODUCT(((T_DataComboFile[Implementation programme]=$G$3)*(T_DataComboFile[Econ4]=$G38))*T_DataComboFile[2021/22 Increase]*$B$3)","v":0},{"$f":"L38+M38+N38","v":0},{"$f":"SUMPRODUCT(((T_DataComboFile[Implementation programme]=$G$3)*(T_DataComboFile[Econ4]=$G38))*T_DataComboFile[2022/23 Baseline]*$B$3)","v":0},{"$f":"SUMPRODUCT(((T_DataComboFile[Implementation programme]=$G$3)*(T_DataComboFile[Econ4]=$G38))*T_DataComboFile[2022/23 Reduction]*$B$3)","v":0},{"$f":"SUMPRODUCT(((T_DataComboFile[Implementation programme]=$G$3)*(T_DataComboFile[Econ4]=$G38))*T_DataComboFile[2022/23 Increase]*$B$3)","v":0},{"$f":"P38+Q38+R38","v":0},{"$f":"SUMPRODUCT(((T_DataComboFile[Implementation programme]=$G$3)*(T_DataComboFile[Econ4]=$G38))*T_DataComboFile[2023/24 Baseline]*$B$3)","v":0},{"$f":"SUMPRODUCT(((T_DataComboFile[Implementation programme]=$G$3)*(T_DataComboFile[Econ4]=$G38))*T_DataComboFile[2023/24 Reduction]*$B$3)","v":0},{"$f":"SUMPRODUCT(((T_DataComboFile[Implementation programme]=$G$3)*(T_DataComboFile[Econ4]=$G38))*T_DataComboFile[2023/24 Increase]*$B$3)","v":0},{"$f":"T38+U38+V38","v":0}]
[0,0,null,null,null,null,"Municipalities",{"$f":"SUMPRODUCT(((T_DataComboFile[Implementation programme]=$G$3)*(T_DataComboFile[Econ4]=$G39))*T_DataComboFile[2017/18]*$B$3)","v":0},{"$f":"SUMPRODUCT(((T_DataComboFile[Implementation programme]=$G$3)*(T_DataComboFile[Econ4]=$G39))*T_DataComboFile[2018/19]*$B$3)","v":0},{"$f":"SUMPRODUCT(((T_DataComboFile[Implementation programme]=$G$3)*(T_DataComboFile[Econ4]=$G39))*T_DataComboFile[2019/20 Revised estimate]*$B$3)","v":0},{"$f":"SUMPRODUCT(((T_DataComboFile[Implementation programme]=$G$3)*(T_DataComboFile[Econ4]=$G39))*T_DataComboFile[2020/21 Revised]*$B$3)","v":0},{"$f":"SUMPRODUCT(((T_DataComboFile[Implementation programme]=$G$3)*(T_DataComboFile[Econ4]=$G39))*T_DataComboFile[2021/22 Baseline]*$B$3)","v":0},{"$f":"SUMPRODUCT(((T_DataComboFile[Implementation programme]=$G$3)*(T_DataComboFile[Econ4]=$G39))*T_DataComboFile[2021/22 Reduction]*$B$3)","v":0},{"$f":"SUMPRODUCT(((T_DataComboFile[Implementation programme]=$G$3)*(T_DataComboFile[Econ4]=$G39))*T_DataComboFile[2021/22 Increase]*$B$3)","v":0},0,{"$f":"SUMPRODUCT(((T_DataComboFile[Implementation programme]=$G$3)*(T_DataComboFile[Econ4]=$G39))*T_DataComboFile[2022/23 Baseline]*$B$3)","v":0},{"$f":"SUMPRODUCT(((T_DataComboFile[Implementation programme]=$G$3)*(T_DataComboFile[Econ4]=$G39))*T_DataComboFile[2022/23 Reduction]*$B$3)","v":0},{"$f":"SUMPRODUCT(((T_DataComboFile[Implementation programme]=$G$3)*(T_DataComboFile[Econ4]=$G39))*T_DataComboFile[2022/23 Increase]*$B$3)","v":0},0,{"$f":"SUMPRODUCT(((T_DataComboFile[Implementation programme]=$G$3)*(T_DataComboFile[Econ4]=$G39))*T_DataComboFile[2023/24 Baseline]*$B$3)","v":0},{"$f":"SUMPRODUCT(((T_DataComboFile[Implementation programme]=$G$3)*(T_DataComboFile[Econ4]=$G39))*T_DataComboFile[2023/24 Reduction]*$B$3)","v":0},{"$f":"SUMPRODUCT(((T_DataComboFile[Implementation programme]=$G$3)*(T_DataComboFile[Econ4]=$G39))*T_DataComboFile[2023/24 Increase]*$B$3)","v":0},0]
[0,0,null,null,null,null,"Departmental agencies and accounts",{"$f":"SUM(H41:H42)","v":0},0,0,0,0,0,0,0,0,0,0,0,0,0,0,0]
[0,0,null,null,null,null,"Social security funds",{"$f":"SUMPRODUCT(((T_DataComboFile[Implementation programme]=$G$3)*(T_DataComboFile[Econ4]=$G41))*T_DataComboFile[2017/18]*$B$3)","v":0},{"$f":"SUMPRODUCT(((T_DataComboFile[Implementation programme]=$G$3)*(T_DataComboFile[Econ4]=$G41))*T_DataComboFile[2018/19]*$B$3)","v":0},{"$f":"SUMPRODUCT(((T_DataComboFile[Implementation programme]=$G$3)*(T_DataComboFile[Econ4]=$G41))*T_DataComboFile[2019/20 Revised estimate]*$B$3)","v":0},{"$f":"SUMPRODUCT(((T_DataComboFile[Implementation programme]=$G$3)*(T_DataComboFile[Econ4]=$G41))*T_DataComboFile[2020/21 Revised]*$B$3)","v":0},{"$f":"SUMPRODUCT(((T_DataComboFile[Implementation programme]=$G$3)*(T_DataComboFile[Econ4]=$G41))*T_DataComboFile[2021/22 Baseline]*$B$3)","v":0},{"$f":"SUMPRODUCT(((T_DataComboFile[Implementation programme]=$G$3)*(T_DataComboFile[Econ4]=$G41))*T_DataComboFile[2021/22 Reduction]*$B$3)","v":0},{"$f":"SUMPRODUCT(((T_DataComboFile[Implementation programme]=$G$3)*(T_DataComboFile[Econ4]=$G41))*T_DataComboFile[2021/22 Increase]*$B$3)","v":0},{"$f":"L41+M41+N41","v":0},{"$f":"SUMPRODUCT(((T_DataComboFile[Implementation programme]=$G$3)*(T_DataComboFile[Econ4]=$G41))*T_DataComboFile[2022/23 Baseline]*$B$3)","v":0},{"$f":"SUMPRODUCT(((T_DataComboFile[Implementation programme]=$G$3)*(T_DataComboFile[Econ4]=$G41))*T_DataComboFile[2022/23 Reduction]*$B$3)","v":0},{"$f":"SUMPRODUCT(((T_DataComboFile[Implementation programme]=$G$3)*(T_DataComboFile[Econ4]=$G41))*T_DataComboFile[2022/23 Increase]*$B$3)","v":0},{"$f":"P41+Q41+R41","v":0},{"$f":"SUMPRODUCT(((T_DataComboFile[Implementation programme]=$G$3)*(T_DataComboFile[Econ4]=$G41))*T_DataComboFile[2023/24 Baseline]*$B$3)","v":0},{"$f":"SUMPRODUCT(((T_DataComboFile[Implementation programme]=$G$3)*(T_DataComboFile[Econ4]=$G41))*T_DataComboFile[2023/24 Reduction]*$B$3)","v":0},{"$f":"SUMPRODUCT(((T_DataComboFile[Implementation programme]=$G$3)*(T_DataComboFile[Econ4]=$G41))*T_DataComboFile[2023/24 Increase]*$B$3)","v":0},{"$f":"T41+U41+V41","v":0}]
[0,0,null,null,null,null,"Departmental agencies (non-business entities)",{"$f":"SUMPRODUCT(((T_DataComboFile[Implementation programme]=$G$3)*(T_DataComboFile[Econ4]=$G42))*T_DataComboFile[2017/18]*$B$3)","v":0},{"$f":"SUMPRODUCT(((T_DataComboFile[Implementation programme]=$G$3)*(T_DataComboFile[Econ4]=$G42))*T_DataComboFile[2018/19]*$B$3)","v":0},{"$f":"SUMPRODUCT(((T_DataComboFile[Implementation programme]=$G$3)*(T_DataComboFile[Econ4]=$G42))*T_DataComboFile[2019/20 Revised estimate]*$B$3)","v":0},{"$f":"SUMPRODUCT(((T_DataComboFile[Implementation programme]=$G$3)*(T_DataComboFile[Econ4]=$G42))*T_DataComboFile[2020/21 Revised]*$B$3)","v":0},{"$f":"SUMPRODUCT(((T_DataComboFile[Implementation programme]=$G$3)*(T_DataComboFile[Econ4]=$G42))*T_DataComboFile[2021/22 Baseline]*$B$3)","v":0},{"$f":"SUMPRODUCT(((T_DataComboFile[Implementation programme]=$G$3)*(T_DataComboFile[Econ4]=$G42))*T_DataComboFile[2021/22 Reduction]*$B$3)","v":0},{"$f":"SUMPRODUCT(((T_DataComboFile[Implementation programme]=$G$3)*(T_DataComboFile[Econ4]=$G42))*T_DataComboFile[2021/22 Increase]*$B$3)","v":0},0,{"$f":"SUMPRODUCT(((T_DataComboFile[Implementation programme]=$G$3)*(T_DataComboFile[Econ4]=$G42))*T_DataComboFile[2022/23 Baseline]*$B$3)","v":0},{"$f":"SUMPRODUCT(((T_DataComboFile[Implementation programme]=$G$3)*(T_DataComboFile[Econ4]=$G42))*T_DataComboFile[2022/23 Reduction]*$B$3)","v":0},{"$f":"SUMPRODUCT(((T_DataComboFile[Implementation programme]=$G$3)*(T_DataComboFile[Econ4]=$G42))*T_DataComboFile[2022/23 Increase]*$B$3)","v":0},0,{"$f":"SUMPRODUCT(((T_DataComboFile[Implementation programme]=$G$3)*(T_DataComboFile[Econ4]=$G42))*T_DataComboFile[2023/24 Baseline]*$B$3)","v":0},{"$f":"SUMPRODUCT(((T_DataComboFile[Implementation programme]=$G$3)*(T_DataComboFile[Econ4]=$G42))*T_DataComboFile[2023/24 Reduction]*$B$3)","v":0},{"$f":"SUMPRODUCT(((T_DataComboFile[Implementation programme]=$G$3)*(T_DataComboFile[Econ4]=$G42))*T_DataComboFile[2023/24 Increase]*$B$3)","v":0},0]
[0,0,null,null,null,null,"Higher education institutions",{"$f":"SUMPRODUCT(((T_DataComboFile[Implementation programme]=$G$3)*(T_DataComboFile[Econ3]=$G43))*T_DataComboFile[2017/18]*$B$3)","v":0},{"$f":"SUMPRODUCT(((T_DataComboFile[Implementation programme]=$G$3)*(T_DataComboFile[Econ3]=$G43))*T_DataComboFile[2018/19]*$B$3)","v":0},{"$f":"SUMPRODUCT(((T_DataComboFile[Implementation programme]=$G$3)*(T_DataComboFile[Econ3]=$G43))*T_DataComboFile[2019/20 Revised estimate]*$B$3)","v":0},{"$f":"SUMPRODUCT(((T_DataComboFile[Implementation programme]=$G$3)*(T_DataComboFile[Econ3]=$G43))*T_DataComboFile[2020/21 Revised]*$B$3)","v":0},{"$f":"SUMPRODUCT(((T_DataComboFile[Implementation programme]=$G$3)*(T_DataComboFile[Econ3]=$G43))*T_DataComboFile[2021/22 Baseline]*$B$3)","v":0},{"$f":"SUMPRODUCT(((T_DataComboFile[Implementation programme]=$G$3)*(T_DataComboFile[Econ3]=$G43))*T_DataComboFile[2021/22 Reduction]*$B$3)","v":0},{"$f":"SUMPRODUCT(((T_DataComboFile[Implementation programme]=$G$3)*(T_DataComboFile[Econ3]=$G43))*T_DataComboFile[2021/22 Increase]*$B$3)","v":0},0,{"$f":"SUMPRODUCT(((T_DataComboFile[Implementation programme]=$G$3)*(T_DataComboFile[Econ3]=$G43))*T_DataComboFile[2022/23 Baseline]*$B$3)","v":0},{"$f":"SUMPRODUCT(((T_DataComboFile[Implementation programme]=$G$3)*(T_DataComboFile[Econ3]=$G43))*T_DataComboFile[2022/23 Reduction]*$B$3)","v":0},{"$f":"SUMPRODUCT(((T_DataComboFile[Implementation programme]=$G$3)*(T_DataComboFile[Econ3]=$G43))*T_DataComboFile[2022/23 Increase]*$B$3)","v":0},0,{"$f":"SUMPRODUCT(((T_DataComboFile[Implementation programme]=$G$3)*(T_DataComboFile[Econ3]=$G43))*T_DataComboFile[2023/24 Baseline]*$B$3)","v":0},{"$f":"SUMPRODUCT(((T_DataComboFile[Implementation programme]=$G$3)*(T_DataComboFile[Econ3]=$G43))*T_DataComboFile[2023/24 Reduction]*$B$3)","v":0},{"$f":"SUMPRODUCT(((T_DataComboFile[Implementation programme]=$G$3)*(T_DataComboFile[Econ3]=$G43))*T_DataComboFile[2023/24 Increase]*$B$3)","v":0},0]
[0,0,null,null,null,null,"Foreign governments and international organisations",{"$f":"SUMPRODUCT(((T_DataComboFile[Implementation programme]=$G$3)*(T_DataComboFile[Econ3]=$G44))*T_DataComboFile[2017/18]*$B$3)","v":0},{"$f":"SUMPRODUCT(((T_DataComboFile[Implementation programme]=$G$3)*(T_DataComboFile[Econ3]=$G44))*T_DataComboFile[2018/19]*$B$3)","v":0},{"$f":"SUMPRODUCT(((T_DataComboFile[Implementation programme]=$G$3)*(T_DataComboFile[Econ3]=$G44))*T_DataComboFile[2019/20 Revised estimate]*$B$3)","v":0},{"$f":"SUMPRODUCT(((T_DataComboFile[Implementation programme]=$G$3)*(T_DataComboFile[Econ3]=$G44))*T_DataComboFile[2020/21 Revised]*$B$3)","v":0},{"$f":"SUMPRODUCT(((T_DataComboFile[Implementation programme]=$G$3)*(T_DataComboFile[Econ3]=$G44))*T_DataComboFile[2021/22 Baseline]*$B$3)","v":0},{"$f":"SUMPRODUCT(((T_DataComboFile[Implementation programme]=$G$3)*(T_DataComboFile[Econ3]=$G44))*T_DataComboFile[2021/22 Reduction]*$B$3)","v":0},{"$f":"SUMPRODUCT(((T_DataComboFile[Implementation programme]=$G$3)*(T_DataComboFile[Econ3]=$G44))*T_DataComboFile[2021/22 Increase]*$B$3)","v":0},0,{"$f":"SUMPRODUCT(((T_DataComboFile[Implementation programme]=$G$3)*(T_DataComboFile[Econ3]=$G44))*T_DataComboFile[2022/23 Baseline]*$B$3)","v":0},{"$f":"SUMPRODUCT(((T_DataComboFile[Implementation programme]=$G$3)*(T_DataComboFile[Econ3]=$G44))*T_DataComboFile[2022/23 Reduction]*$B$3)","v":0},{"$f":"SUMPRODUCT(((T_DataComboFile[Implementation programme]=$G$3)*(T_DataComboFile[Econ3]=$G44))*T_DataComboFile[2022/23 Increase]*$B$3)","v":0},0,{"$f":"SUMPRODUCT(((T_DataComboFile[Implementation programme]=$G$3)*(T_DataComboFile[Econ3]=$G44))*T_DataComboFile[2023/24 Baseline]*$B$3)","v":0},{"$f":"SUMPRODUCT(((T_DataComboFile[Implementation programme]=$G$3)*(T_DataComboFile[Econ3]=$G44))*T_DataComboFile[2023/24 Reduction]*$B$3)","v":0},{"$f":"SUMPRODUCT(((T_DataComboFile[Implementation programme]=$G$3)*(T_DataComboFile[Econ3]=$G44))*T_DataComboFile[2023/24 Increase]*$B$3)","v":0},0]
[0,0,null,null,null,null,"Public corporations and private enterprises",{"$f":"SUM(H46:H47)","v":0},0,0,0,0,0,0,0,0,0,0,0,0,0,0,0]
[0,0,null,null,null,null,"Public corporations",{"$f":"SUMPRODUCT(((T_DataComboFile[Implementation programme]=$G$3)*(T_DataComboFile[Econ4]=$G46))*T_DataComboFile[2017/18]*$B$3)","v":0},{"$f":"SUMPRODUCT(((T_DataComboFile[Implementation programme]=$G$3)*(T_DataComboFile[Econ4]=$G46))*T_DataComboFile[2018/19]*$B$3)","v":0},{"$f":"SUMPRODUCT(((T_DataComboFile[Implementation programme]=$G$3)*(T_DataComboFile[Econ4]=$G46))*T_DataComboFile[2019/20 Revised estimate]*$B$3)","v":0},{"$f":"SUMPRODUCT(((T_DataComboFile[Implementation programme]=$G$3)*(T_DataComboFile[Econ4]=$G46))*T_DataComboFile[2020/21 Revised]*$B$3)","v":0},{"$f":"SUMPRODUCT(((T_DataComboFile[Implementation programme]=$G$3)*(T_DataComboFile[Econ4]=$G46))*T_DataComboFile[2021/22 Baseline]*$B$3)","v":0},{"$f":"SUMPRODUCT(((T_DataComboFile[Implementation programme]=$G$3)*(T_DataComboFile[Econ4]=$G46))*T_DataComboFile[2021/22 Reduction]*$B$3)","v":0},{"$f":"SUMPRODUCT(((T_DataComboFile[Implementation programme]=$G$3)*(T_DataComboFile[Econ4]=$G46))*T_DataComboFile[2021/22 Increase]*$B$3)","v":0},{"$f":"L46+M46+N46","v":0},{"$f":"SUMPRODUCT(((T_DataComboFile[Implementation programme]=$G$3)*(T_DataComboFile[Econ4]=$G46))*T_DataComboFile[2022/23 Baseline]*$B$3)","v":0},{"$f":"SUMPRODUCT(((T_DataComboFile[Implementation programme]=$G$3)*(T_DataComboFile[Econ4]=$G46))*T_DataComboFile[2022/23 Reduction]*$B$3)","v":0},{"$f":"SUMPRODUCT(((T_DataComboFile[Implementation programme]=$G$3)*(T_DataComboFile[Econ4]=$G46))*T_DataComboFile[2022/23 Increase]*$B$3)","v":0},{"$f":"P46+Q46+R46","v":0},{"$f":"SUMPRODUCT(((T_DataComboFile[Implementation programme]=$G$3)*(T_DataComboFile[Econ4]=$G46))*T_DataComboFile[2023/24 Baseline]*$B$3)","v":0},{"$f":"SUMPRODUCT(((T_DataComboFile[Implementation programme]=$G$3)*(T_DataComboFile[Econ4]=$G46))*T_DataComboFile[2023/24 Reduction]*$B$3)","v":0},{"$f":"SUMPRODUCT(((T_DataComboFile[Implementation programme]=$G$3)*(T_DataComboFile[Econ4]=$G46))*T_DataComboFile[2023/24 Increase]*$B$3)","v":0},{"$f":"T46+U46+V46","v":0}]
[0,0,null,null,null,null,"Private enterprises",{"$f":"SUMPRODUCT(((T_DataComboFile[Implementation programme]=$G$3)*(T_DataComboFile[Econ4]=$G47))*T_DataComboFile[2017/18]*$B$3)","v":0},{"$f":"SUMPRODUCT(((T_DataComboFile[Implementation programme]=$G$3)*(T_DataComboFile[Econ4]=$G47))*T_DataComboFile[2018/19]*$B$3)","v":0},{"$f":"SUMPRODUCT(((T_DataComboFile[Implementation programme]=$G$3)*(T_DataComboFile[Econ4]=$G47))*T_DataComboFile[2019/20 Revised estimate]*$B$3)","v":0},{"$f":"SUMPRODUCT(((T_DataComboFile[Implementation programme]=$G$3)*(T_DataComboFile[Econ4]=$G47))*T_DataComboFile[2020/21 Revised]*$B$3)","v":0},{"$f":"SUMPRODUCT(((T_DataComboFile[Implementation programme]=$G$3)*(T_DataComboFile[Econ4]=$G47))*T_DataComboFile[2021/22 Baseline]*$B$3)","v":0},{"$f":"SUMPRODUCT(((T_DataComboFile[Implementation programme]=$G$3)*(T_DataComboFile[Econ4]=$G47))*T_DataComboFile[2021/22 Reduction]*$B$3)","v":0},{"$f":"SUMPRODUCT(((T_DataComboFile[Implementation programme]=$G$3)*(T_DataComboFile[Econ4]=$G47))*T_DataComboFile[2021/22 Increase]*$B$3)","v":0},0,{"$f":"SUMPRODUCT(((T_DataComboFile[Implementation programme]=$G$3)*(T_DataComboFile[Econ4]=$G47))*T_DataComboFile[2022/23 Baseline]*$B$3)","v":0},{"$f":"SUMPRODUCT(((T_DataComboFile[Implementation programme]=$G$3)*(T_DataComboFile[Econ4]=$G47))*T_DataComboFile[2022/23 Reduction]*$B$3)","v":0},{"$f":"SUMPRODUCT(((T_DataComboFile[Implementation programme]=$G$3)*(T_DataComboFile[Econ4]=$G47))*T_DataComboFile[2022/23 Increase]*$B$3)","v":0},0,{"$f":"SUMPRODUCT(((T_DataComboFile[Implementation programme]=$G$3)*(T_DataComboFile[Econ4]=$G47))*T_DataComboFile[2023/24 Baseline]*$B$3)","v":0},{"$f":"SUMPRODUCT(((T_DataComboFile[Implementation programme]=$G$3)*(T_DataComboFile[Econ4]=$G47))*T_DataComboFile[2023/24 Reduction]*$B$3)","v":0},{"$f":"SUMPRODUCT(((T_DataComboFile[Implementation programme]=$G$3)*(T_DataComboFile[Econ4]=$G47))*T_DataComboFile[2023/24 Increase]*$B$3)","v":0},0]
[0,0,null,null,null,null,"Non-profit institutions",{"$f":"SUMPRODUCT(((T_DataComboFile[Implementation programme]=$G$3)*(T_DataComboFile[Econ3]=$G48))*T_DataComboFile[2017/18]*$B$3)","v":0},{"$f":"SUMPRODUCT(((T_DataComboFile[Implementation programme]=$G$3)*(T_DataComboFile[Econ3]=$G48))*T_DataComboFile[2018/19]*$B$3)","v":0},{"$f":"SUMPRODUCT(((T_DataComboFile[Implementation programme]=$G$3)*(T_DataComboFile[Econ3]=$G48))*T_DataComboFile[2019/20 Revised estimate]*$B$3)","v":0},{"$f":"SUMPRODUCT(((T_DataComboFile[Implementation programme]=$G$3)*(T_DataComboFile[Econ3]=$G48))*T_DataComboFile[2020/21 Revised]*$B$3)","v":0},{"$f":"SUMPRODUCT(((T_DataComboFile[Implementation programme]=$G$3)*(T_DataComboFile[Econ3]=$G48))*T_DataComboFile[2021/22 Baseline]*$B$3)","v":0},{"$f":"SUMPRODUCT(((T_DataComboFile[Implementation programme]=$G$3)*(T_DataComboFile[Econ3]=$G48))*T_DataComboFile[2021/22 Reduction]*$B$3)","v":0},{"$f":"SUMPRODUCT(((T_DataComboFile[Implementation programme]=$G$3)*(T_DataComboFile[Econ3]=$G48))*T_DataComboFile[2021/22 Increase]*$B$3)","v":0},0,{"$f":"SUMPRODUCT(((T_DataComboFile[Implementation programme]=$G$3)*(T_DataComboFile[Econ3]=$G48))*T_DataComboFile[2022/23 Baseline]*$B$3)","v":0},{"$f":"SUMPRODUCT(((T_DataComboFile[Implementation programme]=$G$3)*(T_DataComboFile[Econ3]=$G48))*T_DataComboFile[2022/23 Reduction]*$B$3)","v":0},{"$f":"SUMPRODUCT(((T_DataComboFile[Implementation programme]=$G$3)*(T_DataComboFile[Econ3]=$G48))*T_DataComboFile[2022/23 Increase]*$B$3)","v":0},0,{"$f":"SUMPRODUCT(((T_DataComboFile[Implementation programme]=$G$3)*(T_DataComboFile[Econ3]=$G48))*T_DataComboFile[2023/24 Baseline]*$B$3)","v":0},{"$f":"SUMPRODUCT(((T_DataComboFile[Implementation programme]=$G$3)*(T_DataComboFile[Econ3]=$G48))*T_DataComboFile[2023/24 Reduction]*$B$3)","v":0},{"$f":"SUMPRODUCT(((T_DataComboFile[Implementation programme]=$G$3)*(T_DataComboFile[Econ3]=$G48))*T_DataComboFile[2023/24 Increase]*$B$3)","v":0},0]
[0,0,null,null,null,null,"Households",{"$f":"SUM(H50:H51)","v":0},0,0,0,0,0,0,0,0,0,0,0,0,0,0,0]
[0,0,null,null,null,null,"Social benefits",{"$f":"SUMPRODUCT(((T_DataComboFile[Implementation programme]=$G$3)*(T_DataComboFile[Econ4]=$G50))*T_DataComboFile[2017/18]*$B$3)","v":0},{"$f":"SUMPRODUCT(((T_DataComboFile[Implementation programme]=$G$3)*(T_DataComboFile[Econ4]=$G50))*T_DataComboFile[2018/19]*$B$3)","v":0},{"$f":"SUMPRODUCT(((T_DataComboFile[Implementation programme]=$G$3)*(T_DataComboFile[Econ4]=$G50))*T_DataComboFile[2019/20 Revised estimate]*$B$3)","v":0},{"$f":"SUMPRODUCT(((T_DataComboFile[Implementation programme]=$G$3)*(T_DataComboFile[Econ4]=$G50))*T_DataComboFile[2020/21 Revised]*$B$3)","v":0},{"$f":"SUMPRODUCT(((T_DataComboFile[Implementation programme]=$G$3)*(T_DataComboFile[Econ4]=$G50))*T_DataComboFile[2021/22 Baseline]*$B$3)","v":0},{"$f":"SUMPRODUCT(((T_DataComboFile[Implementation programme]=$G$3)*(T_DataComboFile[Econ4]=$G50))*T_DataComboFile[2021/22 Reduction]*$B$3)","v":0},{"$f":"SUMPRODUCT(((T_DataComboFile[Implementation programme]=$G$3)*(T_DataComboFile[Econ4]=$G50))*T_DataComboFile[2021/22 Increase]*$B$3)","v":0},{"$f":"L50+M50+N50","v":0},{"$f":"SUMPRODUCT(((T_DataComboFile[Implementation programme]=$G$3)*(T_DataComboFile[Econ4]=$G50))*T_DataComboFile[2022/23 Baseline]*$B$3)","v":0},{"$f":"SUMPRODUCT(((T_DataComboFile[Implementation programme]=$G$3)*(T_DataComboFile[Econ4]=$G50))*T_DataComboFile[2022/23 Reduction]*$B$3)","v":0},{"$f":"SUMPRODUCT(((T_DataComboFile[Implementation programme]=$G$3)*(T_DataComboFile[Econ4]=$G50))*T_DataComboFile[2022/23 Increase]*$B$3)","v":0},{"$f":"P50+Q50+R50","v":0},{"$f":"SUMPRODUCT(((T_DataComboFile[Implementation programme]=$G$3)*(T_DataComboFile[Econ4]=$G50))*T_DataComboFile[2023/24 Baseline]*$B$3)","v":0},{"$f":"SUMPRODUCT(((T_DataComboFile[Implementation programme]=$G$3)*(T_DataComboFile[Econ4]=$G50))*T_DataComboFile[2023/24 Reduction]*$B$3)","v":0},{"$f":"SUMPRODUCT(((T_DataComboFile[Implementation programme]=$G$3)*(T_DataComboFile[Econ4]=$G50))*T_DataComboFile[2023/24 Increase]*$B$3)","v":0},{"$f":"T50+U50+V50","v":0}]
[0,0,null,null,null,null,"Other transfers to households",{"$f":"SUMPRODUCT(((T_DataComboFile[Implementation programme]=$G$3)*(T_DataComboFile[Econ4]=$G51))*T_DataComboFile[2017/18]*$B$3)","v":0},{"$f":"SUMPRODUCT(((T_DataComboFile[Implementation programme]=$G$3)*(T_DataComboFile[Econ4]=$G51))*T_DataComboFile[2018/19]*$B$3)","v":0},{"$f":"SUMPRODUCT(((T_DataComboFile[Implementation programme]=$G$3)*(T_DataComboFile[Econ4]=$G51))*T_DataComboFile[2019/20 Revised estimate]*$B$3)","v":0},{"$f":"SUMPRODUCT(((T_DataComboFile[Implementation programme]=$G$3)*(T_DataComboFile[Econ4]=$G51))*T_DataComboFile[2020/21 Revised]*$B$3)","v":0},{"$f":"SUMPRODUCT(((T_DataComboFile[Implementation programme]=$G$3)*(T_DataComboFile[Econ4]=$G51))*T_DataComboFile[2021/22 Baseline]*$B$3)","v":0},{"$f":"SUMPRODUCT(((T_DataComboFile[Implementation programme]=$G$3)*(T_DataComboFile[Econ4]=$G51))*T_DataComboFile[2021/22 Reduction]*$B$3)","v":0},{"$f":"SUMPRODUCT(((T_DataComboFile[Implementation programme]=$G$3)*(T_DataComboFile[Econ4]=$G51))*T_DataComboFile[2021/22 Increase]*$B$3)","v":0},0,{"$f":"SUMPRODUCT(((T_DataComboFile[Implementation programme]=$G$3)*(T_DataComboFile[Econ4]=$G51))*T_DataComboFile[2022/23 Baseline]*$B$3)","v":0},{"$f":"SUMPRODUCT(((T_DataComboFile[Implementation programme]=$G$3)*(T_DataComboFile[Econ4]=$G51))*T_DataComboFile[2022/23 Reduction]*$B$3)","v":0},{"$f":"SUMPRODUCT(((T_DataComboFile[Implementation programme]=$G$3)*(T_DataComboFile[Econ4]=$G51))*T_DataComboFile[2022/23 Increase]*$B$3)","v":0},0,{"$f":"SUMPRODUCT(((T_DataComboFile[Implementation programme]=$G$3)*(T_DataComboFile[Econ4]=$G51))*T_DataComboFile[2023/24 Baseline]*$B$3)","v":0},{"$f":"SUMPRODUCT(((T_DataComboFile[Implementation programme]=$G$3)*(T_DataComboFile[Econ4]=$G51))*T_DataComboFile[2023/24 Reduction]*$B$3)","v":0},{"$f":"SUMPRODUCT(((T_DataComboFile[Implementation programme]=$G$3)*(T_DataComboFile[Econ4]=$G51))*T_DataComboFile[2023/24 Increase]*$B$3)","v":0},0]
[0,0,null,null,null,null,"Payments for capital assets",{"$f":"SUM(H53,H56,H59:H63)","v":0},0,0,0,0,0,0,0,0,0,0,0,0,0,0,0]
[0,0,null,null,null,null,"Buildings and other fixed structures",{"$f":"SUM(H54:H55)","v":0},0,0,0,0,0,0,0,0,0,0,0,0,0,0,0]
[0,0,null,null,null,null,"Buildings",{"$f":"SUMPRODUCT(((T_DataComboFile[Implementation programme]=$G$3)*(T_DataComboFile[Econ4]=$G54))*T_DataComboFile[2017/18]*$B$3)","v":0},{"$f":"SUMPRODUCT(((T_DataComboFile[Implementation programme]=$G$3)*(T_DataComboFile[Econ4]=$G54))*T_DataComboFile[2018/19]*$B$3)","v":0},{"$f":"SUMPRODUCT(((T_DataComboFile[Implementation programme]=$G$3)*(T_DataComboFile[Econ4]=$G54))*T_DataComboFile[2019/20 Revised estimate]*$B$3)","v":0},{"$f":"SUMPRODUCT(((T_DataComboFile[Implementation programme]=$G$3)*(T_DataComboFile[Econ4]=$G54))*T_DataComboFile[2020/21 Revised]*$B$3)","v":0},{"$f":"SUMPRODUCT(((T_DataComboFile[Implementation programme]=$G$3)*(T_DataComboFile[Econ4]=$G54))*T_DataComboFile[2021/22 Baseline]*$B$3)","v":0},{"$f":"SUMPRODUCT(((T_DataComboFile[Implementation programme]=$G$3)*(T_DataComboFile[Econ4]=$G54))*T_DataComboFile[2021/22 Reduction]*$B$3)","v":0},{"$f":"SUMPRODUCT(((T_DataComboFile[Implementation programme]=$G$3)*(T_DataComboFile[Econ4]=$G54))*T_DataComboFile[2021/22 Increase]*$B$3)","v":0},{"$f":"L54+M54+N54","v":0},{"$f":"SUMPRODUCT(((T_DataComboFile[Implementation programme]=$G$3)*(T_DataComboFile[Econ4]=$G54))*T_DataComboFile[2022/23 Baseline]*$B$3)","v":0},{"$f":"SUMPRODUCT(((T_DataComboFile[Implementation programme]=$G$3)*(T_DataComboFile[Econ4]=$G54))*T_DataComboFile[2022/23 Reduction]*$B$3)","v":0},{"$f":"SUMPRODUCT(((T_DataComboFile[Implementation programme]=$G$3)*(T_DataComboFile[Econ4]=$G54))*T_DataComboFile[2022/23 Increase]*$B$3)","v":0},{"$f":"P54+Q54+R54","v":0},{"$f":"SUMPRODUCT(((T_DataComboFile[Implementation programme]=$G$3)*(T_DataComboFile[Econ4]=$G54))*T_DataComboFile[2023/24 Baseline]*$B$3)","v":0},{"$f":"SUMPRODUCT(((T_DataComboFile[Implementation programme]=$G$3)*(T_DataComboFile[Econ4]=$G54))*T_DataComboFile[2023/24 Reduction]*$B$3)","v":0},{"$f":"SUMPRODUCT(((T_DataComboFile[Implementation programme]=$G$3)*(T_DataComboFile[Econ4]=$G54))*T_DataComboFile[2023/24 Increase]*$B$3)","v":0},{"$f":"T54+U54+V54","v":0}]
[0,0,null,null,null,null,"Other fixed structures",{"$f":"SUMPRODUCT(((T_DataComboFile[Implementation programme]=$G$3)*(T_DataComboFile[Econ4]=$G55))*T_DataComboFile[2017/18]*$B$3)","v":0},{"$f":"SUMPRODUCT(((T_DataComboFile[Implementation programme]=$G$3)*(T_DataComboFile[Econ4]=$G55))*T_DataComboFile[2018/19]*$B$3)","v":0},{"$f":"SUMPRODUCT(((T_DataComboFile[Implementation programme]=$G$3)*(T_DataComboFile[Econ4]=$G55))*T_DataComboFile[2019/20 Revised estimate]*$B$3)","v":0},{"$f":"SUMPRODUCT(((T_DataComboFile[Implementation programme]=$G$3)*(T_DataComboFile[Econ4]=$G55))*T_DataComboFile[2020/21 Revised]*$B$3)","v":0},{"$f":"SUMPRODUCT(((T_DataComboFile[Implementation programme]=$G$3)*(T_DataComboFile[Econ4]=$G55))*T_DataComboFile[2021/22 Baseline]*$B$3)","v":0},{"$f":"SUMPRODUCT(((T_DataComboFile[Implementation programme]=$G$3)*(T_DataComboFile[Econ4]=$G55))*T_DataComboFile[2021/22 Reduction]*$B$3)","v":0},{"$f":"SUMPRODUCT(((T_DataComboFile[Implementation programme]=$G$3)*(T_DataComboFile[Econ4]=$G55))*T_DataComboFile[2021/22 Increase]*$B$3)","v":0},0,{"$f":"SUMPRODUCT(((T_DataComboFile[Implementation programme]=$G$3)*(T_DataComboFile[Econ4]=$G55))*T_DataComboFile[2022/23 Baseline]*$B$3)","v":0},{"$f":"SUMPRODUCT(((T_DataComboFile[Implementation programme]=$G$3)*(T_DataComboFile[Econ4]=$G55))*T_DataComboFile[2022/23 Reduction]*$B$3)","v":0},{"$f":"SUMPRODUCT(((T_DataComboFile[Implementation programme]=$G$3)*(T_DataComboFile[Econ4]=$G55))*T_DataComboFile[2022/23 Increase]*$B$3)","v":0},0,{"$f":"SUMPRODUCT(((T_DataComboFile[Implementation programme]=$G$3)*(T_DataComboFile[Econ4]=$G55))*T_DataComboFile[2023/24 Baseline]*$B$3)","v":0},{"$f":"SUMPRODUCT(((T_DataComboFile[Implementation programme]=$G$3)*(T_DataComboFile[Econ4]=$G55))*T_DataComboFile[2023/24 Reduction]*$B$3)","v":0},{"$f":"SUMPRODUCT(((T_DataComboFile[Implementation programme]=$G$3)*(T_DataComboFile[Econ4]=$G55))*T_DataComboFile[2023/24 Increase]*$B$3)","v":0},0]
[0,0,null,null,null,null,"Machinery and equipment",{"$f":"SUM(H57:H58)","v":0},0,0,0,0,0,0,0,0,0,0,0,0,0,0,0]
[0,0,null,null,null,null,"Transport equipment",{"$f":"SUMPRODUCT(((T_DataComboFile[Implementation programme]=$G$3)*(T_DataComboFile[Econ4]=$G57))*T_DataComboFile[2017/18]*$B$3)","v":0},{"$f":"SUMPRODUCT(((T_DataComboFile[Implementation programme]=$G$3)*(T_DataComboFile[Econ4]=$G57))*T_DataComboFile[2018/19]*$B$3)","v":0},{"$f":"SUMPRODUCT(((T_DataComboFile[Implementation programme]=$G$3)*(T_DataComboFile[Econ4]=$G57))*T_DataComboFile[2019/20 Revised estimate]*$B$3)","v":0},{"$f":"SUMPRODUCT(((T_DataComboFile[Implementation programme]=$G$3)*(T_DataComboFile[Econ4]=$G57))*T_DataComboFile[2020/21 Revised]*$B$3)","v":0},{"$f":"SUMPRODUCT(((T_DataComboFile[Implementation programme]=$G$3)*(T_DataComboFile[Econ4]=$G57))*T_DataComboFile[2021/22 Baseline]*$B$3)","v":0},{"$f":"SUMPRODUCT(((T_DataComboFile[Implementation programme]=$G$3)*(T_DataComboFile[Econ4]=$G57))*T_DataComboFile[2021/22 Reduction]*$B$3)","v":0},{"$f":"SUMPRODUCT(((T_DataComboFile[Implementation programme]=$G$3)*(T_DataComboFile[Econ4]=$G57))*T_DataComboFile[2021/22 Increase]*$B$3)","v":0},{"$f":"L57+M57+N57","v":0},{"$f":"SUMPRODUCT(((T_DataComboFile[Implementation programme]=$G$3)*(T_DataComboFile[Econ4]=$G57))*T_DataComboFile[2022/23 Baseline]*$B$3)","v":0},{"$f":"SUMPRODUCT(((T_DataComboFile[Implementation programme]=$G$3)*(T_DataComboFile[Econ4]=$G57))*T_DataComboFile[2022/23 Reduction]*$B$3)","v":0},{"$f":"SUMPRODUCT(((T_DataComboFile[Implementation programme]=$G$3)*(T_DataComboFile[Econ4]=$G57))*T_DataComboFile[2022/23 Increase]*$B$3)","v":0},{"$f":"P57+Q57+R57","v":0},{"$f":"SUMPRODUCT(((T_DataComboFile[Implementation programme]=$G$3)*(T_DataComboFile[Econ4]=$G57))*T_DataComboFile[2023/24 Baseline]*$B$3)","v":0},{"$f":"SUMPRODUCT(((T_DataComboFile[Implementation programme]=$G$3)*(T_DataComboFile[Econ4]=$G57))*T_DataComboFile[2023/24 Reduction]*$B$3)","v":0},{"$f":"SUMPRODUCT(((T_DataComboFile[Implementation programme]=$G$3)*(T_DataComboFile[Econ4]=$G57))*T_DataComboFile[2023/24 Increase]*$B$3)","v":0},{"$f":"T57+U57+V57","v":0}]
[0,0,null,null,null,null,"Other machinery and equipment",{"$f":"SUMPRODUCT(((T_DataComboFile[Implementation programme]=$G$3)*(T_DataComboFile[Econ4]=$G58))*T_DataComboFile[2017/18]*$B$3)","v":0},{"$f":"SUMPRODUCT(((T_DataComboFile[Implementation programme]=$G$3)*(T_DataComboFile[Econ4]=$G58))*T_DataComboFile[2018/19]*$B$3)","v":0},{"$f":"SUMPRODUCT(((T_DataComboFile[Implementation programme]=$G$3)*(T_DataComboFile[Econ4]=$G58))*T_DataComboFile[2019/20 Revised estimate]*$B$3)","v":0},{"$f":"SUMPRODUCT(((T_DataComboFile[Implementation programme]=$G$3)*(T_DataComboFile[Econ4]=$G58))*T_DataComboFile[2020/21 Revised]*$B$3)","v":0},{"$f":"SUMPRODUCT(((T_DataComboFile[Implementation programme]=$G$3)*(T_DataComboFile[Econ4]=$G58))*T_DataComboFile[2021/22 Baseline]*$B$3)","v":0},{"$f":"SUMPRODUCT(((T_DataComboFile[Implementation programme]=$G$3)*(T_DataComboFile[Econ4]=$G58))*T_DataComboFile[2021/22 Reduction]*$B$3)","v":0},{"$f":"SUMPRODUCT(((T_DataComboFile[Implementation programme]=$G$3)*(T_DataComboFile[Econ4]=$G58))*T_DataComboFile[2021/22 Increase]*$B$3)","v":0},0,{"$f":"SUMPRODUCT(((T_DataComboFile[Implementation programme]=$G$3)*(T_DataComboFile[Econ4]=$G58))*T_DataComboFile[2022/23 Baseline]*$B$3)","v":0},{"$f":"SUMPRODUCT(((T_DataComboFile[Implementation programme]=$G$3)*(T_DataComboFile[Econ4]=$G58))*T_DataComboFile[2022/23 Reduction]*$B$3)","v":0},{"$f":"SUMPRODUCT(((T_DataComboFile[Implementation programme]=$G$3)*(T_DataComboFile[Econ4]=$G58))*T_DataComboFile[2022/23 Increase]*$B$3)","v":0},0,{"$f":"SUMPRODUCT(((T_DataComboFile[Implementation programme]=$G$3)*(T_DataComboFile[Econ4]=$G58))*T_DataComboFile[2023/24 Baseline]*$B$3)","v":0},{"$f":"SUMPRODUCT(((T_DataComboFile[Implementation programme]=$G$3)*(T_DataComboFile[Econ4]=$G58))*T_DataComboFile[2023/24 Reduction]*$B$3)","v":0},{"$f":"SUMPRODUCT(((T_DataComboFile[Implementation programme]=$G$3)*(T_DataComboFile[Econ4]=$G58))*T_DataComboFile[2023/24 Increase]*$B$3)","v":0},0]
[0,0,null,null,null,null,"Heritage assets",{"$f":"SUMPRODUCT(((T_DataComboFile[Implementation programme]=$G$3)*(T_DataComboFile[Econ3]=$G59))*T_DataComboFile[2017/18]*$B$3)","v":0},{"$f":"SUMPRODUCT(((T_DataComboFile[Implementation programme]=$G$3)*(T_DataComboFile[Econ3]=$G59))*T_DataComboFile[2018/19]*$B$3)","v":0},{"$f":"SUMPRODUCT(((T_DataComboFile[Implementation programme]=$G$3)*(T_DataComboFile[Econ3]=$G59))*T_DataComboFile[2019/20 Revised estimate]*$B$3)","v":0},{"$f":"SUMPRODUCT(((T_DataComboFile[Implementation programme]=$G$3)*(T_DataComboFile[Econ3]=$G59))*T_DataComboFile[2020/21 Revised]*$B$3)","v":0},{"$f":"SUMPRODUCT(((T_DataComboFile[Implementation programme]=$G$3)*(T_DataComboFile[Econ3]=$G59))*T_DataComboFile[2021/22 Baseline]*$B$3)","v":0},{"$f":"SUMPRODUCT(((T_DataComboFile[Implementation programme]=$G$3)*(T_DataComboFile[Econ3]=$G59))*T_DataComboFile[2021/22 Reduction]*$B$3)","v":0},{"$f":"SUMPRODUCT(((T_DataComboFile[Implementation programme]=$G$3)*(T_DataComboFile[Econ3]=$G59))*T_DataComboFile[2021/22 Increase]*$B$3)","v":0},0,{"$f":"SUMPRODUCT(((T_DataComboFile[Implementation programme]=$G$3)*(T_DataComboFile[Econ3]=$G59))*T_DataComboFile[2022/23 Baseline]*$B$3)","v":0},{"$f":"SUMPRODUCT(((T_DataComboFile[Implementation programme]=$G$3)*(T_DataComboFile[Econ3]=$G59))*T_DataComboFile[2022/23 Reduction]*$B$3)","v":0},{"$f":"SUMPRODUCT(((T_DataComboFile[Implementation programme]=$G$3)*(T_DataComboFile[Econ3]=$G59))*T_DataComboFile[2022/23 Increase]*$B$3)","v":0},0,{"$f":"SUMPRODUCT(((T_DataComboFile[Implementation programme]=$G$3)*(T_DataComboFile[Econ3]=$G59))*T_DataComboFile[2023/24 Baseline]*$B$3)","v":0},{"$f":"SUMPRODUCT(((T_DataComboFile[Implementation programme]=$G$3)*(T_DataComboFile[Econ3]=$G59))*T_DataComboFile[2023/24 Reduction]*$B$3)","v":0},{"$f":"SUMPRODUCT(((T_DataComboFile[Implementation programme]=$G$3)*(T_DataComboFile[Econ3]=$G59))*T_DataComboFile[2023/24 Increase]*$B$3)","v":0},0]
[0,0,null,null,null,null,"Specialised military assets",{"$f":"SUMPRODUCT(((T_DataComboFile[Implementation programme]=$G$3)*(T_DataComboFile[Econ3]=$G60))*T_DataComboFile[2017/18]*$B$3)","v":0},{"$f":"SUMPRODUCT(((T_DataComboFile[Implementation programme]=$G$3)*(T_DataComboFile[Econ3]=$G60))*T_DataComboFile[2018/19]*$B$3)","v":0},{"$f":"SUMPRODUCT(((T_DataComboFile[Implementation programme]=$G$3)*(T_DataComboFile[Econ3]=$G60))*T_DataComboFile[2019/20 Revised estimate]*$B$3)","v":0},{"$f":"SUMPRODUCT(((T_DataComboFile[Implementation programme]=$G$3)*(T_DataComboFile[Econ3]=$G60))*T_DataComboFile[2020/21 Revised]*$B$3)","v":0},{"$f":"SUMPRODUCT(((T_DataComboFile[Implementation programme]=$G$3)*(T_DataComboFile[Econ3]=$G60))*T_DataComboFile[2021/22 Baseline]*$B$3)","v":0},{"$f":"SUMPRODUCT(((T_DataComboFile[Implementation programme]=$G$3)*(T_DataComboFile[Econ3]=$G60))*T_DataComboFile[2021/22 Reduction]*$B$3)","v":0},{"$f":"SUMPRODUCT(((T_DataComboFile[Implementation programme]=$G$3)*(T_DataComboFile[Econ3]=$G60))*T_DataComboFile[2021/22 Increase]*$B$3)","v":0},0,{"$f":"SUMPRODUCT(((T_DataComboFile[Implementation programme]=$G$3)*(T_DataComboFile[Econ3]=$G60))*T_DataComboFile[2022/23 Baseline]*$B$3)","v":0},{"$f":"SUMPRODUCT(((T_DataComboFile[Implementation programme]=$G$3)*(T_DataComboFile[Econ3]=$G60))*T_DataComboFile[2022/23 Reduction]*$B$3)","v":0},{"$f":"SUMPRODUCT(((T_DataComboFile[Implementation programme]=$G$3)*(T_DataComboFile[Econ3]=$G60))*T_DataComboFile[2022/23 Increase]*$B$3)","v":0},0,{"$f":"SUMPRODUCT(((T_DataComboFile[Implementation programme]=$G$3)*(T_DataComboFile[Econ3]=$G60))*T_DataComboFile[2023/24 Baseline]*$B$3)","v":0},{"$f":"SUMPRODUCT(((T_DataComboFile[Implementation programme]=$G$3)*(T_DataComboFile[Econ3]=$G60))*T_DataComboFile[2023/24 Reduction]*$B$3)","v":0},{"$f":"SUMPRODUCT(((T_DataComboFile[Implementation programme]=$G$3)*(T_DataComboFile[Econ3]=$G60))*T_DataComboFile[2023/24 Increase]*$B$3)","v":0},0]
[0,0,null,null,null,null,"Biological assets",{"$f":"SUMPRODUCT(((T_DataComboFile[Implementation programme]=$G$3)*(T_DataComboFile[Econ3]=$G61))*T_DataComboFile[2017/18]*$B$3)","v":0},{"$f":"SUMPRODUCT(((T_DataComboFile[Implementation programme]=$G$3)*(T_DataComboFile[Econ3]=$G61))*T_DataComboFile[2018/19]*$B$3)","v":0},{"$f":"SUMPRODUCT(((T_DataComboFile[Implementation programme]=$G$3)*(T_DataComboFile[Econ3]=$G61))*T_DataComboFile[2019/20 Revised estimate]*$B$3)","v":0},{"$f":"SUMPRODUCT(((T_DataComboFile[Implementation programme]=$G$3)*(T_DataComboFile[Econ3]=$G61))*T_DataComboFile[2020/21 Revised]*$B$3)","v":0},{"$f":"SUMPRODUCT(((T_DataComboFile[Implementation programme]=$G$3)*(T_DataComboFile[Econ3]=$G61))*T_DataComboFile[2021/22 Baseline]*$B$3)","v":0},{"$f":"SUMPRODUCT(((T_DataComboFile[Implementation programme]=$G$3)*(T_DataComboFile[Econ3]=$G61))*T_DataComboFile[2021/22 Reduction]*$B$3)","v":0},{"$f":"SUMPRODUCT(((T_DataComboFile[Implementation programme]=$G$3)*(T_DataComboFile[Econ3]=$G61))*T_DataComboFile[2021/22 Increase]*$B$3)","v":0},0,{"$f":"SUMPRODUCT(((T_DataComboFile[Implementation programme]=$G$3)*(T_DataComboFile[Econ3]=$G61))*T_DataComboFile[2022/23 Baseline]*$B$3)","v":0},{"$f":"SUMPRODUCT(((T_DataComboFile[Implementation programme]=$G$3)*(T_DataComboFile[Econ3]=$G61))*T_DataComboFile[2022/23 Reduction]*$B$3)","v":0},{"$f":"SUMPRODUCT(((T_DataComboFile[Implementation programme]=$G$3)*(T_DataComboFile[Econ3]=$G61))*T_DataComboFile[2022/23 Increase]*$B$3)","v":0},0,{"$f":"SUMPRODUCT(((T_DataComboFile[Implementation programme]=$G$3)*(T_DataComboFile[Econ3]=$G61))*T_DataComboFile[2023/24 Baseline]*$B$3)","v":0},{"$f":"SUMPRODUCT(((T_DataComboFile[Implementation programme]=$G$3)*(T_DataComboFile[Econ3]=$G61))*T_DataComboFile[2023/24 Reduction]*$B$3)","v":0},{"$f":"SUMPRODUCT(((T_DataComboFile[Implementation programme]=$G$3)*(T_DataComboFile[Econ3]=$G61))*T_DataComboFile[2023/24 Increase]*$B$3)","v":0},0]
[0,0,null,null,null,null,"Land and sub-soil assets",{"$f":"SUMPRODUCT(((T_DataComboFile[Implementation programme]=$G$3)*(T_DataComboFile[Econ3]=$G62))*T_DataComboFile[2017/18]*$B$3)","v":0},{"$f":"SUMPRODUCT(((T_DataComboFile[Implementation programme]=$G$3)*(T_DataComboFile[Econ3]=$G62))*T_DataComboFile[2018/19]*$B$3)","v":0},{"$f":"SUMPRODUCT(((T_DataComboFile[Implementation programme]=$G$3)*(T_DataComboFile[Econ3]=$G62))*T_DataComboFile[2019/20 Revised estimate]*$B$3)","v":0},{"$f":"SUMPRODUCT(((T_DataComboFile[Implementation programme]=$G$3)*(T_DataComboFile[Econ3]=$G62))*T_DataComboFile[2020/21 Revised]*$B$3)","v":0},{"$f":"SUMPRODUCT(((T_DataComboFile[Implementation programme]=$G$3)*(T_DataComboFile[Econ3]=$G62))*T_DataComboFile[2021/22 Baseline]*$B$3)","v":0},{"$f":"SUMPRODUCT(((T_DataComboFile[Implementation programme]=$G$3)*(T_DataComboFile[Econ3]=$G62))*T_DataComboFile[2021/22 Reduction]*$B$3)","v":0},{"$f":"SUMPRODUCT(((T_DataComboFile[Implementation programme]=$G$3)*(T_DataComboFile[Econ3]=$G62))*T_DataComboFile[2021/22 Increase]*$B$3)","v":0},0,{"$f":"SUMPRODUCT(((T_DataComboFile[Implementation programme]=$G$3)*(T_DataComboFile[Econ3]=$G62))*T_DataComboFile[2022/23 Baseline]*$B$3)","v":0},{"$f":"SUMPRODUCT(((T_DataComboFile[Implementation programme]=$G$3)*(T_DataComboFile[Econ3]=$G62))*T_DataComboFile[2022/23 Reduction]*$B$3)","v":0},{"$f":"SUMPRODUCT(((T_DataComboFile[Implementation programme]=$G$3)*(T_DataComboFile[Econ3]=$G62))*T_DataComboFile[2022/23 Increase]*$B$3)","v":0},0,{"$f":"SUMPRODUCT(((T_DataComboFile[Implementation programme]=$G$3)*(T_DataComboFile[Econ3]=$G62))*T_DataComboFile[2023/24 Baseline]*$B$3)","v":0},{"$f":"SUMPRODUCT(((T_DataComboFile[Implementation programme]=$G$3)*(T_DataComboFile[Econ3]=$G62))*T_DataComboFile[2023/24 Reduction]*$B$3)","v":0},{"$f":"SUMPRODUCT(((T_DataComboFile[Implementation programme]=$G$3)*(T_DataComboFile[Econ3]=$G62))*T_DataComboFile[2023/24 Increase]*$B$3)","v":0},0]
[0,0,null,null,null,null,"Software and other intangible assets",{"$f":"SUMPRODUCT(((T_DataComboFile[Implementation programme]=$G$3)*(T_DataComboFile[Econ3]=$G63))*T_DataComboFile[2017/18]*$B$3)","v":0},{"$f":"SUMPRODUCT(((T_DataComboFile[Implementation programme]=$G$3)*(T_DataComboFile[Econ3]=$G63))*T_DataComboFile[2018/19]*$B$3)","v":0},{"$f":"SUMPRODUCT(((T_DataComboFile[Implementation programme]=$G$3)*(T_DataComboFile[Econ3]=$G63))*T_DataComboFile[2019/20 Revised estimate]*$B$3)","v":0},{"$f":"SUMPRODUCT(((T_DataComboFile[Implementation programme]=$G$3)*(T_DataComboFile[Econ3]=$G63))*T_DataComboFile[2020/21 Revised]*$B$3)","v":0},{"$f":"SUMPRODUCT(((T_DataComboFile[Implementation programme]=$G$3)*(T_DataComboFile[Econ3]=$G63))*T_DataComboFile[2021/22 Baseline]*$B$3)","v":0},{"$f":"SUMPRODUCT(((T_DataComboFile[Implementation programme]=$G$3)*(T_DataComboFile[Econ3]=$G63))*T_DataComboFile[2021/22 Reduction]*$B$3)","v":0},{"$f":"SUMPRODUCT(((T_DataComboFile[Implementation programme]=$G$3)*(T_DataComboFile[Econ3]=$G63))*T_DataComboFile[2021/22 Increase]*$B$3)","v":0},0,{"$f":"SUMPRODUCT(((T_DataComboFile[Implementation programme]=$G$3)*(T_DataComboFile[Econ3]=$G63))*T_DataComboFile[2022/23 Baseline]*$B$3)","v":0},{"$f":"SUMPRODUCT(((T_DataComboFile[Implementation programme]=$G$3)*(T_DataComboFile[Econ3]=$G63))*T_DataComboFile[2022/23 Reduction]*$B$3)","v":0},{"$f":"SUMPRODUCT(((T_DataComboFile[Implementation programme]=$G$3)*(T_DataComboFile[Econ3]=$G63))*T_DataComboFile[2022/23 Increase]*$B$3)","v":0},0,{"$f":"SUMPRODUCT(((T_DataComboFile[Implementation programme]=$G$3)*(T_DataComboFile[Econ3]=$G63))*T_DataComboFile[2023/24 Baseline]*$B$3)","v":0},{"$f":"SUMPRODUCT(((T_DataComboFile[Implementation programme]=$G$3)*(T_DataComboFile[Econ3]=$G63))*T_DataComboFile[2023/24 Reduction]*$B$3)","v":0},{"$f":"SUMPRODUCT(((T_DataComboFile[Implementation programme]=$G$3)*(T_DataComboFile[Econ3]=$G63))*T_DataComboFile[2023/24 Increase]*$B$3)","v":0},0]
[0,0,null,null,null,null,"Payments for financial assets",{"$f":"SUMPRODUCT(((T_DataComboFile[Implementation programme]=$G$3)*(T_DataComboFile[Econ3]=$G64))*T_DataComboFile[2017/18]*$B$3)","v":0},{"$f":"SUMPRODUCT(((T_DataComboFile[Implementation programme]=$G$3)*(T_DataComboFile[Econ3]=$G64))*T_DataComboFile[2018/19]*$B$3)","v":0},{"$f":"SUMPRODUCT(((T_DataComboFile[Implementation programme]=$G$3)*(T_DataComboFile[Econ3]=$G64))*T_DataComboFile[2019/20 Revised estimate]*$B$3)","v":0},{"$f":"SUMPRODUCT(((T_DataComboFile[Implementation programme]=$G$3)*(T_DataComboFile[Econ3]=$G64))*T_DataComboFile[2020/21 Revised]*$B$3)","v":0},{"$f":"SUMPRODUCT(((T_DataComboFile[Implementation programme]=$G$3)*(T_DataComboFile[Econ3]=$G64))*T_DataComboFile[2021/22 Baseline]*$B$3)","v":0},{"$f":"SUMPRODUCT(((T_DataComboFile[Implementation programme]=$G$3)*(T_DataComboFile[Econ3]=$G64))*T_DataComboFile[2021/22 Reduction]*$B$3)","v":0},{"$f":"SUMPRODUCT(((T_DataComboFile[Implementation programme]=$G$3)*(T_DataComboFile[Econ3]=$G64))*T_DataComboFile[2021/22 Increase]*$B$3)","v":0},0,{"$f":"SUMPRODUCT(((T_DataComboFile[Implementation programme]=$G$3)*(T_DataComboFile[Econ3]=$G64))*T_DataComboFile[2022/23 Baseline]*$B$3)","v":0},{"$f":"SUMPRODUCT(((T_DataComboFile[Implementation programme]=$G$3)*(T_DataComboFile[Econ3]=$G64))*T_DataComboFile[2022/23 Reduction]*$B$3)","v":0},{"$f":"SUMPRODUCT(((T_DataComboFile[Implementation programme]=$G$3)*(T_DataComboFile[Econ3]=$G64))*T_DataComboFile[2022/23 Increase]*$B$3)","v":0},0,{"$f":"SUMPRODUCT(((T_DataComboFile[Implementation programme]=$G$3)*(T_DataComboFile[Econ3]=$G64))*T_DataComboFile[2023/24 Baseline]*$B$3)","v":0},{"$f":"SUMPRODUCT(((T_DataComboFile[Implementation programme]=$G$3)*(T_DataComboFile[Econ3]=$G64))*T_DataComboFile[2023/24 Reduction]*$B$3)","v":0},{"$f":"SUMPRODUCT(((T_DataComboFile[Implementation programme]=$G$3)*(T_DataComboFile[Econ3]=$G64))*T_DataComboFile[2023/24 Increase]*$B$3)","v":0},0]
[0,0,null,null,null,null,"Total",{"$f":"SUM(H32,H36,H52,H64)","v":0},0,0,0,0,0,0,0,0,0,0,0,0,0,0,0]
[]
[]
[]
[]
[]
[null,null,null,null,null,null,{"$f":"\"IMPACT OF ADJUSTMENTS: \" &UPPER($G$3)","v":"IMPACT OF ADJUSTMENTS: "}]
[]
[null,null,null,null,null,1,"Summary of impact on service delivery due to adjustments"]
[{"$f":"$G$3","v":0},1]
[0,1]
[0,1]
[0,1]
[0,1]
[0,1]
[0,1]
[0,1]
[0,1]
[0,1]
[0,1]
[0,1]
[0,1]
[0,1]
[0,1]
[]
[]
[]
[]
[]
[null,null,null,null,null,2,"Impact of adjustments on performance indicators"]
[{"$f":"$G$3","v":0},2,null,null,null,null,null,"2021/22",null,null,"2022/23",null,null,"2023/24",null,null," Comment",null,null,null,null,"Related MTSF Priority"]
[0,2,null,null,null,null,"Performance indicator","Original target","Revised target","Change","Original target","Revised target","Change","Original target","Revised target","Change"]
[0,2]
[0,2]
[0,2]
[0,2]
[0,2]
[0,2]
[0,2]
[0,2]
[0,2]
[0,2]
[0,2]
[0,2]
[0,2]
[0,2]
[0,2]
[]
[]
[]
[]
[]
[null,null,null,null,null,3,"Impact of adjustments on infrastructure projects"]
[{"$f":"$G$3","v":0},3,null,null,null,null,null,"2021/22",null,null,"2022/23",null,null,"2023/24",null,null," Comment"]
[0,3,null,null,null,null,"Project name","Original amount","Revised amount","Change","Original amount","Revised amount","Change","Original amount","Revised amount","Change"]
[0,3,null,null,null,null,null,null,null,{"$f":"I120-H120","v":0},null,null,{"$f":"L120-K120","v":0},null,null,{"$f":"O120-N120","v":0}]
[0,3,null,null,null,null,null,null,null,0,null,null,0,null,null,0]
[0,3,null,null,null,null,null,null,null,0,null,null,0,null,null,0]
[0,3,null,null,null,null,null,null,null,0,null,null,0,null,null,0]
[0,3,null,null,null,null,null,null,null,0,null,null,0,null,null,0]
[0,3,null,null,null,null,null,null,null,0,null,null,0,null,null,0]
[0,3,null,null,null,null,null,null,null,0,null,null,0,null,null,0]
[0,3,null,null,null,null,null,null,null,0,null,null,0,null,null,0]
[0,3,null,null,null,null,null,null,null,0,null,null,0,null,null,0]
[0,3,null,null,null,null,null,null,null,0,null,null,0,null,null,0]
[0,3,null,null,null,null,null,null,null,0,null,null,0,null,null,0]
[0,3,null,null,null,null,null,null,null,0,null,null,0,null,null,0]
[0,3,null,null,null,null,null,null,null,0,null,null,0,null,null,0]
[0,3,null,null,null,null,null,null,null,0,null,null,0,null,null,0]
[0,3,null,null,null,null,null,null,null,0,null,null,0,null,null,0]
[0,3,null,null,null,null,"Total",{"$f":"SUM(H120:H134)","v":0},0,0,0,0,0,0,0,0]
[]
[]
[]
[]
[]
[null,null,null,null,null,4,"Impact of adjustments on personnel headcount numbers"]
[{"$f":"$G$3","v":0},4,null,null,null,null,null,"2021/22",null,null,"2022/23",null,null,"2023/24",null,null," Comment"]
[0,4,null,null,null,null,"Salary level","Original number","Revised number","Change","Original number","Revised number","Change","Original number","Revised number","Change"]
[0,4,null,null,null,null,1,null,null,{"$f":"I144-H144","v":0},null,null,{"$f":"L144-K144","v":0},null,null,{"$f":"O144-N144","v":0}]
[0,4,null,null,null,null,2,null,null,0,null,null,0,null,null,0]
[0,4,null,null,null,null,3,null,null,0,null,null,0,null,null,0]
[0,4,null,null,null,null,4,null,null,0,null,null,0,null,null,0]
[0,4,null,null,null,null,5,null,null,0,null,null,0,null,null,0]
[0,4,null,null,null,null,6,null,null,0,null,null,0,null,null,0]
[0,4,null,null,null,null,7,null,null,0,null,null,0,null,null,0]
[0,4,null,null,null,null,8,null,null,0,null,null,0,null,null,0]
[0,4,null,null,null,null,9,null,null,0,null,null,0,null,null,0]
[0,4,null,null,null,null,10,null,null,0,null,null,0,null,null,0]
[0,4,null,null,null,null,11,null,null,0,null,null,0,null,null,0]
[0,4,null,null,null,null,12,null,null,0,null,null,0,null,null,0]
[0,4,null,null,null,null,13,null,null,0,null,null,0,null,null,0]
[0,4,null,null,null,null,14,null,null,0,null,null,0,null,null,0]
[0,4,null,null,null,null,15,null,null,0,null,null,0,null,null,0]
[0,4,null,null,null,null,16,null,null,0,null,null,0,null,null,0]
[0,4,null,null,null,null,"Other",null,null,0,null,null,0,null,null,0]
[0,4,null,null,null,null,"Other",null,null,0,null,null,0,null,null,0]
[0,4,null,null,null,null,"Other",null,null,0,null,null,0,null,null,0]
[0,4,null,null,null,null,"Other",null,null,0,null,null,0,null,null,0]
[0,4,null,null,null,null,"Total",{"$f":"SUM(H144:H163)","v":0},0,0,0,0,0,0,0,0]
[]
[]
[]
[]
[]
[null,null,null,null,null,5,"Impact of adjustments by economic classification"]
[{"$f":"$G$3","v":0},5,null,null,null,null,null,"2021/22",null,null,"2022/23",null,null,"2023/24",null,null," Comment"]
[0,5,null,null,null,null,"Salary level","Original number","Revised number","Change","Original number","Revised number","Change","Original number","Revised number","Change"]
[0,5,null,null,null,null,"Current payments",{"$f":"SUM(H174,H175,H182)","v":0},{"$f":"SUM(I174,I175,I182)","v":0},{"$f":"I173-H173","v":0},{"$f":"SUM(K174,K175,K182)","v":0},{"$f":"SUM(L174,L175,L182)","v":0},{"$f":"L173-K173","v":0},{"$f":"SUM(N174,N175,N182)","v":0},{"$f":"SUM(O174,O175,O182)","v":0},{"$f":"O173-N173","v":0}]
[0,5,null,null,null,null,"Compensation of employees",{"$f":"SUMPRODUCT(((T_DataComboFile[Implementation programme]=$G$3)*(T_DataComboFile[Econ3]=$G174))*T_DataComboFile[2021/22 Baseline]*$B$3)","v":0},{"$f":"SUMPRODUCT(((T_DataComboFile[Implementation programme]=$G$3)*(T_DataComboFile[Econ3]=$G174))*T_DataComboFile[2021/22 Revised baseline]*$B$3)","v":0},0,{"$f":"SUMPRODUCT(((T_DataComboFile[Implementation programme]=$G$3)*(T_DataComboFile[Econ3]=$G174))*T_DataComboFile[2022/23 Baseline]*$B$3)","v":0},{"$f":"SUMPRODUCT(((T_DataComboFile[Implementation programme]=$G$3)*(T_DataComboFile[Econ3]=$G174))*T_DataComboFile[2022/23 Revised baseline]*$B$3)","v":0},0,{"$f":"SUMPRODUCT(((T_DataComboFile[Implementation programme]=$G$3)*(T_DataComboFile[Econ3]=$G174))*T_DataComboFile[2023/24 Baseline]*$B$3)","v":0},{"$f":"SUMPRODUCT(((T_DataComboFile[Implementation programme]=$G$3)*(T_DataComboFile[Econ3]=$G174))*T_DataComboFile[2023/24 Revised baseline]*$B$3)","v":0},0]
[0,5,null,null,null,null,"Goods and services",{"$f":"SUMPRODUCT(((T_DataComboFile[Implementation programme]=$G$3)*(T_DataComboFile[Econ3]=$G175))*T_DataComboFile[2021/22 Baseline]*$B$3)","v":0},{"$f":"SUMPRODUCT(((T_DataComboFile[Implementation programme]=$G$3)*(T_DataComboFile[Econ3]=$G175))*T_DataComboFile[2021/22 Revised baseline]*$B$3)","v":0},0,{"$f":"SUMPRODUCT(((T_DataComboFile[Implementation programme]=$G$3)*(T_DataComboFile[Econ3]=$G175))*T_DataComboFile[2022/23 Baseline]*$B$3)","v":0},{"$f":"SUMPRODUCT(((T_DataComboFile[Implementation programme]=$G$3)*(T_DataComboFile[Econ3]=$G175))*T_DataComboFile[2022/23 Revised baseline]*$B$3)","v":0},0,{"$f":"SUMPRODUCT(((T_DataComboFile[Implementation programme]=$G$3)*(T_DataComboFile[Econ3]=$G175))*T_DataComboFile[2023/24 Baseline]*$B$3)","v":0},{"$f":"SUMPRODUCT(((T_DataComboFile[Implementation programme]=$G$3)*(T_DataComboFile[Econ3]=$G175))*T_DataComboFile[2023/24 Revised baseline]*$B$3)","v":0},0]
[0,50,null,null,null,null,"of which:"]
[0,51,null,null,null,null,null,null,null,{"$f":"I177-H177","v":0},null,null,{"$f":"L177-K177","v":0},null,null,0]
[0,51,null,null,null,null,null,null,null,0,null,null,0,null,null,0]
[0,51,null,null,null,null,null,null,null,0,null,null,0,null,null,0]
[0,51,null,null,null,null,null,null,null,0,null,null,0,null,null,0]
[0,51,null,null,null,null,null,null,null,0,null,null,0,null,null,0]
[0,5,null,null,null,null,"Interest and rent on land",{"$f":"SUMPRODUCT(((T_DataComboFile[Implementation programme]=$G$3)*(T_DataComboFile[Econ3]=$G182))*T_DataComboFile[2021/22 Baseline]*$B$3)","v":0},{"$f":"SUMPRODUCT(((T_DataComboFile[Implementation programme]=$G$3)*(T_DataComboFile[Econ3]=$G182))*T_DataComboFile[2021/22 Revised baseline]*$B$3)","v":0},0,{"$f":"SUMPRODUCT(((T_DataComboFile[Implementation programme]=$G$3)*(T_DataComboFile[Econ3]=$G182))*T_DataComboFile[2022/23 Baseline]*$B$3)","v":0},{"$f":"SUMPRODUCT(((T_DataComboFile[Implementation programme]=$G$3)*(T_DataComboFile[Econ3]=$G182))*T_DataComboFile[2022/23 Revised baseline]*$B$3)","v":0},0,{"$f":"SUMPRODUCT(((T_DataComboFile[Implementation programme]=$G$3)*(T_DataComboFile[Econ3]=$G182))*T_DataComboFile[2023/24 Baseline]*$B$3)","v":0},{"$f":"SUMPRODUCT(((T_DataComboFile[Implementation programme]=$G$3)*(T_DataComboFile[Econ3]=$G182))*T_DataComboFile[2023/24 Revised baseline]*$B$3)","v":0},0]
[0,5,null,null,null,null,"Transfers and subsidies",{"$f":"SUM(H184,H185,H197,H198,H199,H206,H207)","v":0},{"$f":"SUM(I184,I185,I197,I198,I199,I206,I207)","v":0},0,{"$f":"SUM(K184,K185,K197,K198,K199,K206,K207)","v":0},0,0,{"$f":"SUM(N184,N185,N197,N198,N199,N206,N207)","v":0},0,0]
[0,5,null,null,null,null,"Provinces and municipalities",{"$f":"SUMPRODUCT(((T_DataComboFile[Implementation programme]=$G$3)*(T_DataComboFile[Econ3]=$G184))*T_DataComboFile[2021/22 Baseline]*$B$3)","v":0},{"$f":"SUMPRODUCT(((T_DataComboFile[Implementation programme]=$G$3)*(T_DataComboFile[Econ3]=$G184))*T_DataComboFile[2021/22 Revised baseline]*$B$3)","v":0},0,{"$f":"SUMPRODUCT(((T_DataComboFile[Implementation programme]=$G$3)*(T_DataComboFile[Econ3]=$G184))*T_DataComboFile[2022/23 Baseline]*$B$3)","v":0},{"$f":"SUMPRODUCT(((T_DataComboFile[Implementation programme]=$G$3)*(T_DataComboFile[Econ3]=$G184))*T_DataComboFile[2022/23 Revised baseline]*$B$3)","v":0},0,{"$f":"SUMPRODUCT(((T_DataComboFile[Implementation programme]=$G$3)*(T_DataComboFile[Econ3]=$G184))*T_DataComboFile[2023/24 Baseline]*$B$3)","v":0},{"$f":"SUMPRODUCT(((T_DataComboFile[Implementation programme]=$G$3)*(T_DataComboFile[Econ3]=$G184))*T_DataComboFile[2023/24 Revised baseline]*$B$3)","v":0},0]
[0,5,null,null,null,null,"Departmental agencies and accounts",{"$f":"SUMPRODUCT(((T_DataComboFile[Implementation programme]=$G$3)*(T_DataComboFile[Econ3]=$G185))*T_DataComboFile[2021/22 Baseline]*$B$3)","v":0},{"$f":"SUMPRODUCT(((T_DataComboFile[Implementation programme]=$G$3)*(T_DataComboFile[Econ3]=$G185))*T_DataComboFile[2021/22 Revised baseline]*$B$3)","v":0},0,{"$f":"SUMPRODUCT(((T_DataComboFile[Implementation programme]=$G$3)*(T_DataComboFile[Econ3]=$G185))*T_DataComboFile[2022/23 Baseline]*$B$3)","v":0},{"$f":"SUMPRODUCT(((T_DataComboFile[Implementation programme]=$G$3)*(T_DataComboFile[Econ3]=$G185))*T_DataComboFile[2022/23 Revised baseline]*$B$3)","v":0},0,{"$f":"SUMPRODUCT(((T_DataComboFile[Implementation programme]=$G$3)*(T_DataComboFile[Econ3]=$G185))*T_DataComboFile[2023/24 Baseline]*$B$3)","v":0},{"$f":"SUMPRODUCT(((T_DataComboFile[Implementation programme]=$G$3)*(T_DataComboFile[Econ3]=$G185))*T_DataComboFile[2023/24 Revised baseline]*$B$3)","v":0},0]
[0,50,null,null,null,null,"of which:"]
[0,52,null,null,null,null,null,null,null,{"$f":"I187-H187","v":0},null,null,{"$f":"L187-K187","v":0},null,null,{"$f":"O187-N187","v":0}]
[0,52,null,null,null,null,null,null,null,0,null,null,0,null,null,0]
[0,52,null,null,null,null,null,null,null,0,null,null,0,null,null,0]
[0,52,null,null,null,null,null,null,null,0,null,null,0,null,null,0]
[0,52,null,null,null,null,null,null,null,0,null,null,0,null,null,0]
[0,52,null,null,null,null,null,null,null,0,null,null,0,null,null,0]
[0,52,null,null,null,null,null,null,null,0,null,null,0,null,null,0]
[0,52,null,null,null,null,null,null,null,0,null,null,0,null,null,0]
[0,52,null,null,null,null,null,null,null,0,null,null,0,null,null,0]
[0,52,null,null,null,null,null,null,null,0,null,null,0,null,null,0]
[0,5,null,null,null,null,"Higher education institutions",{"$f":"SUMPRODUCT(((T_DataComboFile[Implementation programme]=$G$3)*(T_DataComboFile[Econ3]=$G197))*T_DataComboFile[2021/22 Baseline]*$B$3)","v":0},{"$f":"SUMPRODUCT(((T_DataComboFile[Implementation programme]=$G$3)*(T_DataComboFile[Econ3]=$G197))*T_DataComboFile[2021/22 Revised baseline]*$B$3)","v":0},0,{"$f":"SUMPRODUCT(((T_DataComboFile[Implementation programme]=$G$3)*(T_DataComboFile[Econ3]=$G197))*T_DataComboFile[2022/23 Baseline]*$B$3)","v":0},{"$f":"SUMPRODUCT(((T_DataComboFile[Implementation programme]=$G$3)*(T_DataComboFile[Econ3]=$G197))*T_DataComboFile[2022/23 Revised baseline]*$B$3)","v":0},0,{"$f":"SUMPRODUCT(((T_DataComboFile[Implementation programme]=$G$3)*(T_DataComboFile[Econ3]=$G197))*T_DataComboFile[2023/24 Baseline]*$B$3)","v":0},{"$f":"SUMPRODUCT(((T_DataComboFile[Implementation programme]=$G$3)*(T_DataComboFile[Econ3]=$G197))*T_DataComboFile[2023/24 Revised baseline]*$B$3)","v":0},0]
[0,5,null,null,null,null,"Foreign governments and international organisations",{"$f":"SUMPRODUCT(((T_DataComboFile[Implementation programme]=$G$3)*(T_DataComboFile[Econ3]=$G198))*T_DataComboFile[2021/22 Baseline]*$B$3)","v":0},{"$f":"SUMPRODUCT(((T_DataComboFile[Implementation programme]=$G$3)*(T_DataComboFile[Econ3]=$G198))*T_DataComboFile[2021/22 Revised baseline]*$B$3)","v":0},0,{"$f":"SUMPRODUCT(((T_DataComboFile[Implementation programme]=$G$3)*(T_DataComboFile[Econ3]=$G198))*T_DataComboFile[2022/23 Baseline]*$B$3)","v":0},{"$f":"SUMPRODUCT(((T_DataComboFile[Implementation programme]=$G$3)*(T_DataComboFile[Econ3]=$G198))*T_DataComboFile[2022/23 Revised baseline]*$B$3)","v":0},0,{"$f":"SUMPRODUCT(((T_DataComboFile[Implementation programme]=$G$3)*(T_DataComboFile[Econ3]=$G198))*T_DataComboFile[2023/24 Baseline]*$B$3)","v":0},{"$f":"SUMPRODUCT(((T_DataComboFile[Implementation programme]=$G$3)*(T_DataComboFile[Econ3]=$G198))*T_DataComboFile[2023/24 Revised baseline]*$B$3)","v":0},0]
[0,5,null,null,null,null,"Public corporations and private enterprises",{"$f":"SUMPRODUCT(((T_DataComboFile[Implementation programme]=$G$3)*(T_DataComboFile[Econ3]=$G199))*T_DataComboFile[2021/22 Baseline]*$B$3)","v":0},{"$f":"SUMPRODUCT(((T_DataComboFile[Implementation programme]=$G$3)*(T_DataComboFile[Econ3]=$G199))*T_DataComboFile[2021/22 Revised baseline]*$B$3)","v":0},0,{"$f":"SUMPRODUCT(((T_DataComboFile[Implementation programme]=$G$3)*(T_DataComboFile[Econ3]=$G199))*T_DataComboFile[2022/23 Baseline]*$B$3)","v":0},{"$f":"SUMPRODUCT(((T_DataComboFile[Implementation programme]=$G$3)*(T_DataComboFile[Econ3]=$G199))*T_DataComboFile[2022/23 Revised baseline]*$B$3)","v":0},0,{"$f":"SUMPRODUCT(((T_DataComboFile[Implementation programme]=$G$3)*(T_DataComboFile[Econ3]=$G199))*T_DataComboFile[2023/24 Baseline]*$B$3)","v":0},{"$f":"SUMPRODUCT(((T_DataComboFile[Implementation programme]=$G$3)*(T_DataComboFile[Econ3]=$G199))*T_DataComboFile[2023/24 Revised baseline]*$B$3)","v":0},0]
[0,50,null,null,null,null,"of which:"]
[0,53,null,null,null,null,null,null,null,{"$f":"I201-H201","v":0},null,null,{"$f":"L201-K201","v":0},null,null,{"$f":"O201-N201","v":0}]
[0,53,null,null,null,null,null,null,null,0,null,null,0,null,null,0]
[0,53,null,null,null,null,null,null,null,0,null,null,0,null,null,0]
[0,53,null,null,null,null,null,null,null,0,null,null,0,null,null,0]
[0,53,null,null,null,null,null,null,null,0,null,null,0,null,null,0]
[0,5,null,null,null,null,"Non-profit institutions",{"$f":"SUMPRODUCT(((T_DataComboFile[Implementation programme]=$G$3)*(T_DataComboFile[Econ3]=$G206))*T_DataComboFile[2021/22 Baseline]*$B$3)","v":0},{"$f":"SUMPRODUCT(((T_DataComboFile[Implementation programme]=$G$3)*(T_DataComboFile[Econ3]=$G206))*T_DataComboFile[2021/22 Revised baseline]*$B$3)","v":0},0,{"$f":"SUMPRODUCT(((T_DataComboFile[Implementation programme]=$G$3)*(T_DataComboFile[Econ3]=$G206))*T_DataComboFile[2022/23 Baseline]*$B$3)","v":0},{"$f":"SUMPRODUCT(((T_DataComboFile[Implementation programme]=$G$3)*(T_DataComboFile[Econ3]=$G206))*T_DataComboFile[2022/23 Revised baseline]*$B$3)","v":0},0,{"$f":"SUMPRODUCT(((T_DataComboFile[Implementation programme]=$G$3)*(T_DataComboFile[Econ3]=$G206))*T_DataComboFile[2023/24 Baseline]*$B$3)","v":0},{"$f":"SUMPRODUCT(((T_DataComboFile[Implementation programme]=$G$3)*(T_DataComboFile[Econ3]=$G206))*T_DataComboFile[2023/24 Revised baseline]*$B$3)","v":0},0]
[0,5,null,null,null,null,"Households",{"$f":"SUMPRODUCT(((T_DataComboFile[Implementation programme]=$G$3)*(T_DataComboFile[Econ3]=$G207))*T_DataComboFile[2021/22 Baseline]*$B$3)","v":0},{"$f":"SUMPRODUCT(((T_DataComboFile[Implementation programme]=$G$3)*(T_DataComboFile[Econ3]=$G207))*T_DataComboFile[2021/22 Revised baseline]*$B$3)","v":0},0,{"$f":"SUMPRODUCT(((T_DataComboFile[Implementation programme]=$G$3)*(T_DataComboFile[Econ3]=$G207))*T_DataComboFile[2022/23 Baseline]*$B$3)","v":0},{"$f":"SUMPRODUCT(((T_DataComboFile[Implementation programme]=$G$3)*(T_DataComboFile[Econ3]=$G207))*T_DataComboFile[2022/23 Revised baseline]*$B$3)","v":0},0,{"$f":"SUMPRODUCT(((T_DataComboFile[Implementation programme]=$G$3)*(T_DataComboFile[Econ3]=$G207))*T_DataComboFile[2023/24 Baseline]*$B$3)","v":0},{"$f":"SUMPRODUCT(((T_DataComboFile[Implementation programme]=$G$3)*(T_DataComboFile[Econ3]=$G207))*T_DataComboFile[2023/24 Revised baseline]*$B$3)","v":0},0]
[0,5,null,null,null,null,"Payments for capital assets",{"$f":"SUM(H209:H215)","v":0},0,0,0,0,0,0,{"$f":"SUM(O209:O215)","v":0},0]
[0,5,null,null,null,null,"Buildings and other fixed structures",{"$f":"SUMPRODUCT(((T_DataComboFile[Implementation programme]=$G$3)*(T_DataComboFile[Econ3]=$G209))*T_DataComboFile[2021/22 Baseline]*$B$3)","v":0},{"$f":"SUMPRODUCT(((T_DataComboFile[Implementation programme]=$G$3)*(T_DataComboFile[Econ3]=$G209))*T_DataComboFile[2021/22 Revised baseline]*$B$3)","v":0},0,{"$f":"SUMPRODUCT(((T_DataComboFile[Implementation programme]=$G$3)*(T_DataComboFile[Econ3]=$G209))*T_DataComboFile[2022/23 Baseline]*$B$3)","v":0},{"$f":"SUMPRODUCT(((T_DataComboFile[Implementation programme]=$G$3)*(T_DataComboFile[Econ3]=$G209))*T_DataComboFile[2022/23 Revised baseline]*$B$3)","v":0},0,{"$f":"SUMPRODUCT(((T_DataComboFile[Implementation programme]=$G$3)*(T_DataComboFile[Econ3]=$G209))*T_DataComboFile[2023/24 Baseline]*$B$3)","v":0},{"$f":"SUMPRODUCT(((T_DataComboFile[Implementation programme]=$G$3)*(T_DataComboFile[Econ3]=$G209))*T_DataComboFile[2023/24 Revised baseline]*$B$3)","v":0},0]
[0,5,null,null,null,null,"Machinery and equipment",{"$f":"SUMPRODUCT(((T_DataComboFile[Implementation programme]=$G$3)*(T_DataComboFile[Econ3]=$G210))*T_DataComboFile[2021/22 Baseline]*$B$3)","v":0},{"$f":"SUMPRODUCT(((T_DataComboFile[Implementation programme]=$G$3)*(T_DataComboFile[Econ3]=$G210))*T_DataComboFile[2021/22 Revised baseline]*$B$3)","v":0},0,{"$f":"SUMPRODUCT(((T_DataComboFile[Implementation programme]=$G$3)*(T_DataComboFile[Econ3]=$G210))*T_DataComboFile[2022/23 Baseline]*$B$3)","v":0},{"$f":"SUMPRODUCT(((T_DataComboFile[Implementation programme]=$G$3)*(T_DataComboFile[Econ3]=$G210))*T_DataComboFile[2022/23 Revised baseline]*$B$3)","v":0},0,{"$f":"SUMPRODUCT(((T_DataComboFile[Implementation programme]=$G$3)*(T_DataComboFile[Econ3]=$G210))*T_DataComboFile[2023/24 Baseline]*$B$3)","v":0},{"$f":"SUMPRODUCT(((T_DataComboFile[Implementation programme]=$G$3)*(T_DataComboFile[Econ3]=$G210))*T_DataComboFile[2023/24 Revised baseline]*$B$3)","v":0},0]
[0,5,null,null,null,null,"Heritage assets",{"$f":"SUMPRODUCT(((T_DataComboFile[Implementation programme]=$G$3)*(T_DataComboFile[Econ3]=$G211))*T_DataComboFile[2021/22 Baseline]*$B$3)","v":0},{"$f":"SUMPRODUCT(((T_DataComboFile[Implementation programme]=$G$3)*(T_DataComboFile[Econ3]=$G211))*T_DataComboFile[2021/22 Revised baseline]*$B$3)","v":0},0,{"$f":"SUMPRODUCT(((T_DataComboFile[Implementation programme]=$G$3)*(T_DataComboFile[Econ3]=$G211))*T_DataComboFile[2022/23 Baseline]*$B$3)","v":0},{"$f":"SUMPRODUCT(((T_DataComboFile[Implementation programme]=$G$3)*(T_DataComboFile[Econ3]=$G211))*T_DataComboFile[2022/23 Revised baseline]*$B$3)","v":0},0,{"$f":"SUMPRODUCT(((T_DataComboFile[Implementation programme]=$G$3)*(T_DataComboFile[Econ3]=$G211))*T_DataComboFile[2023/24 Baseline]*$B$3)","v":0},{"$f":"SUMPRODUCT(((T_DataComboFile[Implementation programme]=$G$3)*(T_DataComboFile[Econ3]=$G211))*T_DataComboFile[2023/24 Revised baseline]*$B$3)","v":0},0]
[0,5,null,null,null,null,"Specialised military assets",{"$f":"SUMPRODUCT(((T_DataComboFile[Implementation programme]=$G$3)*(T_DataComboFile[Econ3]=$G212))*T_DataComboFile[2021/22 Baseline]*$B$3)","v":0},{"$f":"SUMPRODUCT(((T_DataComboFile[Implementation programme]=$G$3)*(T_DataComboFile[Econ3]=$G212))*T_DataComboFile[2021/22 Revised baseline]*$B$3)","v":0},0,{"$f":"SUMPRODUCT(((T_DataComboFile[Implementation programme]=$G$3)*(T_DataComboFile[Econ3]=$G212))*T_DataComboFile[2022/23 Baseline]*$B$3)","v":0},{"$f":"SUMPRODUCT(((T_DataComboFile[Implementation programme]=$G$3)*(T_DataComboFile[Econ3]=$G212))*T_DataComboFile[2022/23 Revised baseline]*$B$3)","v":0},0,{"$f":"SUMPRODUCT(((T_DataComboFile[Implementation programme]=$G$3)*(T_DataComboFile[Econ3]=$G212))*T_DataComboFile[2023/24 Baseline]*$B$3)","v":0},{"$f":"SUMPRODUCT(((T_DataComboFile[Implementation programme]=$G$3)*(T_DataComboFile[Econ3]=$G212))*T_DataComboFile[2023/24 Revised baseline]*$B$3)","v":0},0]
[0,5,null,null,null,null,"Biological assets",{"$f":"SUMPRODUCT(((T_DataComboFile[Implementation programme]=$G$3)*(T_DataComboFile[Econ3]=$G213))*T_DataComboFile[2021/22 Baseline]*$B$3)","v":0},{"$f":"SUMPRODUCT(((T_DataComboFile[Implementation programme]=$G$3)*(T_DataComboFile[Econ3]=$G213))*T_DataComboFile[2021/22 Revised baseline]*$B$3)","v":0},0,{"$f":"SUMPRODUCT(((T_DataComboFile[Implementation programme]=$G$3)*(T_DataComboFile[Econ3]=$G213))*T_DataComboFile[2022/23 Baseline]*$B$3)","v":0},{"$f":"SUMPRODUCT(((T_DataComboFile[Implementation programme]=$G$3)*(T_DataComboFile[Econ3]=$G213))*T_DataComboFile[2022/23 Revised baseline]*$B$3)","v":0},0,{"$f":"SUMPRODUCT(((T_DataComboFile[Implementation programme]=$G$3)*(T_DataComboFile[Econ3]=$G213))*T_DataComboFile[2023/24 Baseline]*$B$3)","v":0},{"$f":"SUMPRODUCT(((T_DataComboFile[Implementation programme]=$G$3)*(T_DataComboFile[Econ3]=$G213))*T_DataComboFile[2023/24 Revised baseline]*$B$3)","v":0},0]
[0,5,null,null,null,null,"Land and sub-soil assets",{"$f":"SUMPRODUCT(((T_DataComboFile[Implementation programme]=$G$3)*(T_DataComboFile[Econ3]=$G214))*T_DataComboFile[2021/22 Baseline]*$B$3)","v":0},{"$f":"SUMPRODUCT(((T_DataComboFile[Implementation programme]=$G$3)*(T_DataComboFile[Econ3]=$G214))*T_DataComboFile[2021/22 Revised baseline]*$B$3)","v":0},0,{"$f":"SUMPRODUCT(((T_DataComboFile[Implementation programme]=$G$3)*(T_DataComboFile[Econ3]=$G214))*T_DataComboFile[2022/23 Baseline]*$B$3)","v":0},{"$f":"SUMPRODUCT(((T_DataComboFile[Implementation programme]=$G$3)*(T_DataComboFile[Econ3]=$G214))*T_DataComboFile[2022/23 Revised baseline]*$B$3)","v":0},0,{"$f":"SUMPRODUCT(((T_DataComboFile[Implementation programme]=$G$3)*(T_DataComboFile[Econ3]=$G214))*T_DataComboFile[2023/24 Baseline]*$B$3)","v":0},{"$f":"SUMPRODUCT(((T_DataComboFile[Implementation programme]=$G$3)*(T_DataComboFile[Econ3]=$G214))*T_DataComboFile[2023/24 Revised baseline]*$B$3)","v":0},0]
[0,5,null,null,null,null,"Software and other intangible assets",{"$f":"SUMPRODUCT(((T_DataComboFile[Implementation programme]=$G$3)*(T_DataComboFile[Econ3]=$G215))*T_DataComboFile[2021/22 Baseline]*$B$3)","v":0},{"$f":"SUMPRODUCT(((T_DataComboFile[Implementation programme]=$G$3)*(T_DataComboFile[Econ3]=$G215))*T_DataComboFile[2021/22 Revised baseline]*$B$3)","v":0},0,{"$f":"SUMPRODUCT(((T_DataComboFile[Implementation programme]=$G$3)*(T_DataComboFile[Econ3]=$G215))*T_DataComboFile[2022/23 Baseline]*$B$3)","v":0},{"$f":"SUMPRODUCT(((T_DataComboFile[Implementation programme]=$G$3)*(T_DataComboFile[Econ3]=$G215))*T_DataComboFile[2022/23 Revised baseline]*$B$3)","v":0},0,{"$f":"SUMPRODUCT(((T_DataComboFile[Implementation programme]=$G$3)*(T_DataComboFile[Econ3]=$G215))*T_DataComboFile[2023/24 Baseline]*$B$3)","v":0},{"$f":"SUMPRODUCT(((T_DataComboFile[Implementation programme]=$G$3)*(T_DataComboFile[Econ3]=$G215))*T_DataComboFile[2023/24 Revised baseline]*$B$3)","v":0},0]
[0,5,null,null,null,null,"Payments for financial assets",{"$f":"SUMPRODUCT(((T_DataComboFile[Implementation programme]=$G$3)*(T_DataComboFile[Econ3]=$G216))*T_DataComboFile[2021/22 Baseline]*$B$3)","v":0},{"$f":"SUMPRODUCT(((T_DataComboFile[Implementation programme]=$G$3)*(T_DataComboFile[Econ3]=$G216))*T_DataComboFile[2021/22 Revised baseline]*$B$3)","v":0},0,{"$f":"SUMPRODUCT(((T_DataComboFile[Implementation programme]=$G$3)*(T_DataComboFile[Econ3]=$G216))*T_DataComboFile[2022/23 Baseline]*$B$3)","v":0},{"$f":"SUMPRODUCT(((T_DataComboFile[Implementation programme]=$G$3)*(T_DataComboFile[Econ3]=$G216))*T_DataComboFile[2022/23 Revised baseline]*$B$3)","v":0},0,{"$f":"SUMPRODUCT(((T_DataComboFile[Implementation programme]=$G$3)*(T_DataComboFile[Econ3]=$G216))*T_DataComboFile[2023/24 Baseline]*$B$3)","v":0},{"$f":"SUMPRODUCT(((T_DataComboFile[Implementation programme]=$G$3)*(T_DataComboFile[Econ3]=$G216))*T_DataComboFile[2023/24 Revised baseline]*$B$3)","v":0},0]
[0,5,null,null,null,null,"Total",{"$f":"SUM(H173,H183,H208,H216)","v":0},0,0,0,0,0,0,{"$f":"SUM(O173,O183,O208,O216)","v":0},0]
[]
[null,null,null,null,null,null,null,{"$f":"L65-H217","v":0},{"$f":"O65-I217","v":0},null,{"$f":"P65-K217","v":0},{"$f":"S65-L217","v":0},null,{"$f":"T65-N217","v":0},{"$f":"W65-O217","v":0}]

{"sheet":"IP19","index":28,"n_rows":219,"n_cols":23,"rows_kept":219,"cut":false,"hidden":false,"merged":[[70,6,70,17],[73,6,87,17],[94,16,94,20],[94,21,94,23],[95,16,95,20],[95,21,95,23],[99,16,99,20],[99,21,99,23],[100,16,100,20],[100,21,100,23],[101,16,101,20],[101,21,101,23],[96,16,96,20],[96,21,96,23],[97,16,97,20],[97,21,97,23],[98,16,98,20],[98,21,98,23],[105,16,105,20],[105,21,105,23],[106,16,106,20],[106,21,106,23],[107,16,107,20],[107,21,107,23],[102,16,102,20],[102,21,102,23],[103,16,103,20],[103,21,103,23],[104,16,104,20],[104,21,104,23],[117,16,117,20],[118,16,118,20],[119,16,119,20],[120,16,120,20],[121,16,121,20],[122,16,122,20],[108,16,108,20],[108,21,108,23],[109,16,109,20],[109,21,109,23],[110,16,110,20],[110,21,110,23],[129,16,129,20],[130,16,130,20],[131,16,131,20],[132,16,132,20],[133,16,133,20],[141,16,141,20],[123,16,123,20],[124,16,124,20],[125,16,125,20],[126,16,126,20],[127,16,127,20],[128,16,128,20],[174,16,174,20],[175,16,175,20],[176,16,176,20],[177,16,177,20],[178,16,178,20],[179,16,179,20],[142,16,142,20],[143,16,162,20],[170,16,170,20],[171,16,171,20],[172,16,172,20],[173,16,173,20],[186,16,186,20],[187,16,187,20],[188,16,188,20],[189,16,189,20],[190,16,190,20],[191,16,191,20],[180,16,180,20],[181,16,181,20],[182,16,182,20],[183,16,183,20],[184,16,184,20],[185,16,185,20],[198,16,198,20],[199,16,199,20],[200,16,200,20],[201,16,201,20],[202,16,202,20],[203,16,203,20],[192,16,192,20],[193,16,193,20],[194,16,194,20],[195,16,195,20],[196,16,196,20],[197,16,197,20],[210,16,210,20],[211,16,211,20],[212,16,212,20],[213,16,213,20],[214,16,214,20],[215,16,215,20],[204,16,204,20],[205,16,205,20],[206,16,206,20],[207,16,207,20],[208,16,208,20],[209,16,209,20]]}
[]
[null,null,null,null,null,null,"Implementation programme:"]
[null,{"$f":"IF(G3=\"\",0,1)","v":0},null,null,null,19,null,"… select from dropdown list"]
[null,null,null,null,null,null,null,null,null,null,null,null,"Growth"]
[null,null,null,null,null,null,"Quick view","2020/21","2021/22","2022/23","2023/24","Trend","2021/22","2022/23","2023/24","Ave Ann",null,"2020/21","2021/22","2022/23","2023/24"]
[null,null,null,null,null,null,"Compensation of employees",{"$f":"SUMPRODUCT(($G$32:$G$65=$G6)*($K$32:$K$65))","v":0},{"$f":"SUMPRODUCT(($G$32:$G$65=$G6)*($O$32:$O$65))","v":0},{"$f":"SUMPRODUCT(($G$32:$G$65=$G6)*($S$32:$S$65))","v":0},{"$f":"SUMPRODUCT(($G$32:$G$65=$G6)*($W$32:$W$65))","v":0},null,{"$f":"IFERROR(I6/H6-1,0)","v":0},0,0,{"$f":"IFERROR(((K6/H6)^(1/3)-1),0)","v":0}]
[null,null,null,null,null,null,"Goods and services",{"$f":"SUMPRODUCT(($G$32:$G$65=$G7)*($K$32:$K$65))","v":0},{"$f":"SUMPRODUCT(($G$32:$G$65=$G7)*($O$32:$O$65))","v":0},{"$f":"SUMPRODUCT(($G$32:$G$65=$G7)*($S$32:$S$65))","v":0},{"$f":"SUMPRODUCT(($G$32:$G$65=$G7)*($W$32:$W$65))","v":0},null,0,0,0,0]
[null,null,null,null,null,null,"Transfers and subsidies",{"$f":"SUMPRODUCT(($G$32:$G$65=$G8)*($K$32:$K$65))","v":0},{"$f":"SUMPRODUCT(($G$32:$G$65=$G8)*($O$32:$O$65))","v":0},{"$f":"SUMPRODUCT(($G$32:$G$65=$G8)*($S$32:$S$65))","v":0},{"$f":"SUMPRODUCT(($G$32:$G$65=$G8)*($W$32:$W$65))","v":0},null,0,0,0,0]
[null,null,null,null,null,null,"Payments for capital assets",{"$f":"SUMPRODUCT(($G$32:$G$65=$G9)*($K$32:$K$65))","v":0},{"$f":"SUMPRODUCT(($G$32:$G$65=$G9)*($O$32:$O$65))","v":0},{"$f":"SUMPRODUCT(($G$32:$G$65=$G9)*($S$32:$S$65))","v":0},{"$f":"SUMPRODUCT(($G$32:$G$65=$G9)*($W$32:$W$65))","v":0},null,0,0,0,0]
[null,null,null,null,null,null,"Total",{"$f":"SUMPRODUCT(($G$32:$G$65=$G10)*($K$32:$K$65))","v":0},{"$f":"SUMPRODUCT(($G$32:$G$65=$G10)*($O$32:$O$65))","v":0},{"$f":"SUMPRODUCT(($G$32:$G$65=$G10)*($S$32:$S$65))","v":0},{"$f":"SUMPRODUCT(($G$32:$G$65=$G10)*($W$32:$W$65))","v":0},null,0,0,0,0]
[null,null,null,null,null,null,"Composition of spending (% of Total)"]
[null,null,null,null,null,null,"Compensation of employees",{"$f":"IFERROR(H6/H$10,\"\")","v":""},"","","",null,null,null,null,null,null,{"$f":"IF(H12>0.0595,H12,\"\")","v":""},"","",""]
[null,null,null,null,null,null,"Goods and services","","","","",null,null,null,null,null,null,"","","",""]
[null,null,null,null,null,null,"Transfers and subsidies","","","","",null,null,null,null,null,null,"","","",""]
[null,null,null,null,null,null,"Payments for capital assets","","","","",null,null,null,null,null,null,"","","",""]
[]
[null,null,null,null,null,null,"Division of Revenue","2020/21","2021/22","2022/23","2023/24","Trend","2021/22","2022/23","2023/24","Ave Ann"]
[{"$f":"$G$3","v":0},"NAT",null,null,null,null,"National",{"$f":"SUMPRODUCT(((T_DataComboFile[Implementation programme]=$G$3)*(T_DataComboFile[DOR]=$B18))*T_DataComboFile[2020/21 Revised])","v":2331086},{"$f":"SUMPRODUCT(((T_DataComboFile[Implementation programme]=$G$3)*(T_DataComboFile[DOR]=$B18))*T_DataComboFile[2021/22 Revised baseline])","v":2583809},{"$f":"SUMPRODUCT(((T_DataComboFile[Implementation programme]=$G$3)*(T_DataComboFile[DOR]=$B18))*T_DataComboFile[2022/23 Revised baseline])","v":2617960},{"$f":"SUMPRODUCT(((T_DataComboFile[Implementation programme]=$G$3)*(T_DataComboFile[DOR]=$B18))*T_DataComboFile[2023/24 Revised baseline])","v":2733345},null,{"$f":"IFERROR(I18/H18-1,0)","v":0.10841427557799244},{"$f":"IFERROR(J18/I18-1,0)","v":1.3217308245307535E-2},{"$f":"IFERROR(K18/J18-1,0)","v":4.4074393802808309E-2},{"$f":"IFERROR(((K18/H18)^(1/3)-1),0)","v":5.449708876349435E-2}]
[0,null,null,null,null,null,"Provincial",{"$f":"SUM(H20:H21)","v":0},0,0,0,null,0,0,0,0]
[0,"PES",null,null,null,null,"Provincial equitable share",{"$f":"SUMPRODUCT(((T_DataComboFile[Implementation programme]=$G$3)*(T_DataComboFile[DOR]=$B20))*T_DataComboFile[2020/21 Revised])","v":0},{"$f":"SUMPRODUCT(((T_DataComboFile[Implementation programme]=$G$3)*(T_DataComboFile[DOR]=$B20))*T_DataComboFile[2021/22 Revised baseline])","v":0},{"$f":"SUMPRODUCT(((T_DataComboFile[Implementation programme]=$G$3)*(T_DataComboFile[DOR]=$B20))*T_DataComboFile[2022/23 Revised baseline])","v":0},{"$f":"SUMPRODUCT(((T_DataComboFile[Implementation programme]=$G$3)*(T_DataComboFile[DOR]=$B20))*T_DataComboFile[2023/24 Revised baseline])","v":0},null,{"$f":"IFERROR(I20/H20-1,0)","v":0},0,0,{"$f":"IFERROR(((K20/H20)^(1/3)-1),0)","v":0}]
[0,"PCG",null,null,null,null,"Provincial conditional grants",{"$f":"SUMPRODUCT(((T_DataComboFile[Implementation programme]=$G$3)*(T_DataComboFile[DOR]=$B21))*T_DataComboFile[2020/21 Revised])","v":0},{"$f":"SUMPRODUCT(((T_DataComboFile[Implementation programme]=$G$3)*(T_DataComboFile[DOR]=$B21))*T_DataComboFile[2021/22 Revised baseline])","v":0},{"$f":"SUMPRODUCT(((T_DataComboFile[Implementation programme]=$G$3)*(T_DataComboFile[DOR]=$B21))*T_DataComboFile[2022/23 Revised baseline])","v":0},{"$f":"SUMPRODUCT(((T_DataComboFile[Implementation programme]=$G$3)*(T_DataComboFile[DOR]=$B21))*T_DataComboFile[2023/24 Revised baseline])","v":0},null,0,0,0,0]
[0,null,null,null,null,null,"Local government",{"$f":"SUM(H23:H25)","v":0},0,0,0,null,{"$f":"IFERROR(I22/H22-1,0)","v":0},{"$f":"IFERROR(J22/I22-1,0)","v":0},{"$f":"IFERROR(K22/J22-1,0)","v":0},{"$f":"IFERROR(((K22/H22)^(1/3)-1),0)","v":0}]
[0,"LES",null,null,null,null,"Local equitable share",{"$f":"SUMPRODUCT(((T_DataComboFile[Implementation programme]=$G$3)*(T_DataComboFile[DOR]=$B23))*T_DataComboFile[2020/21 Revised])","v":0},{"$f":"SUMPRODUCT(((T_DataComboFile[Implementation programme]=$G$3)*(T_DataComboFile[DOR]=$B23))*T_DataComboFile[2021/22 Revised baseline])","v":0},{"$f":"SUMPRODUCT(((T_DataComboFile[Implementation programme]=$G$3)*(T_DataComboFile[DOR]=$B23))*T_DataComboFile[2022/23 Revised baseline])","v":0},{"$f":"SUMPRODUCT(((T_DataComboFile[Implementation programme]=$G$3)*(T_DataComboFile[DOR]=$B23))*T_DataComboFile[2023/24 Revised baseline])","v":0},null,{"$f":"IFERROR(I23/H23-1,0)","v":0},0,0,{"$f":"IFERROR(((K23/H23)^(1/3)-1),0)","v":0}]
[0,"LCG",null,null,null,null,"Local conditional grants",{"$f":"SUMPRODUCT(((T_DataComboFile[Implementation programme]=$G$3)*(T_DataComboFile[DOR]=$B24))*T_DataComboFile[2020/21 Revised])","v":0},{"$f":"SUMPRODUCT(((T_DataComboFile[Implementation programme]=$G$3)*(T_DataComboFile[DOR]=$B24))*T_DataComboFile[2021/22 Revised baseline])","v":0},{"$f":"SUMPRODUCT(((T_DataComboFile[Implementation programme]=$G$3)*(T_DataComboFile[DOR]=$B24))*T_DataComboFile[2022/23 Revised baseline])","v":0},{"$f":"SUMPRODUCT(((T_DataComboFile[Implementation programme]=$G$3)*(T_DataComboFile[DOR]=$B24))*T_DataComboFile[2023/24 Revised baseline])","v":0},null,0,0,0,0]
[0,"GFL",null,null,null,null,"General fuel levy ",{"$f":"SUMPRODUCT(((T_DataComboFile[Implementation programme]=$G$3)*(T_DataComboFile[DOR]=$B25))*T_DataComboFile[2020/21 Revised])","v":0},{"$f":"SUMPRODUCT(((T_DataComboFile[Implementation programme]=$G$3)*(T_DataComboFile[DOR]=$B25))*T_DataComboFile[2021/22 Revised baseline])","v":0},{"$f":"SUMPRODUCT(((T_DataComboFile[Implementation programme]=$G$3)*(T_DataComboFile[DOR]=$B25))*T_DataComboFile[2022/23 Revised baseline])","v":0},{"$f":"SUMPRODUCT(((T_DataComboFile[Implementation programme]=$G$3)*(T_DataComboFile[DOR]=$B25))*T_DataComboFile[2023/24 Revised baseline])","v":0},null,0,0,0,0]
[]
[]
[null,null,null,null,null,null,{"$f":"G3","v":0}]
[{"$f":"$G$3","v":0},0,null,null,null,null,null,"2017/18","2018/19","2019/20","2020/21","2021/22",null,null,null,"2022/23",null,null,null,"2023/24"]
[{"$f":"$G$3","v":0},0,null,null,null,null,"Rand thousand","Audited outcome","Audited outcome","Pre-audited outcome","Budget","Baseline","Decrease","Increase","Revised baseline","Baseline","Decrease","Increase","Revised baseline","Baseline","Decrease","Increase","Revised baseline"]
[0,0,null,null,null,null,"Economic classification"]
[0,0,null,null,null,null,"Current payments",{"$f":"SUM(H33:H35)","v":0},0,0,0,0,0,0,0,0,0,0,0,0,0,0,0]
[0,0,null,null,null,null,"Compensation of employees",{"$f":"SUMPRODUCT(((T_DataComboFile[Implementation programme]=$G$3)*(T_DataComboFile[Econ3]=$G33))*T_DataComboFile[2017/18]*$B$3)","v":0},{"$f":"SUMPRODUCT(((T_DataComboFile[Implementation programme]=$G$3)*(T_DataComboFile[Econ3]=$G33))*T_DataComboFile[2018/19]*$B$3)","v":0},{"$f":"SUMPRODUCT(((T_DataComboFile[Implementation programme]=$G$3)*(T_DataComboFile[Econ3]=$G33))*T_DataComboFile[2019/20 Revised estimate]*$B$3)","v":0},{"$f":"SUMPRODUCT(((T_DataComboFile[Implementation programme]=$G$3)*(T_DataComboFile[Econ3]=$G33))*T_DataComboFile[2020/21 Revised]*$B$3)","v":0},{"$f":"SUMPRODUCT(((T_DataComboFile[Implementation programme]=$G$3)*(T_DataComboFile[Econ3]=$G33))*T_DataComboFile[2021/22 Baseline]*$B$3)","v":0},{"$f":"SUMPRODUCT(((T_DataComboFile[Implementation programme]=$G$3)*(T_DataComboFile[Econ3]=$G33))*T_DataComboFile[2021/22 Reduction]*$B$3)","v":0},{"$f":"SUMPRODUCT(((T_DataComboFile[Implementation programme]=$G$3)*(T_DataComboFile[Econ3]=$G33))*T_DataComboFile[2021/22 Increase]*$B$3)","v":0},{"$f":"L33+M33+N33","v":0},{"$f":"SUMPRODUCT(((T_DataComboFile[Implementation programme]=$G$3)*(T_DataComboFile[Econ3]=$G33))*T_DataComboFile[2022/23 Baseline]*$B$3)","v":0},{"$f":"SUMPRODUCT(((T_DataComboFile[Implementation programme]=$G$3)*(T_DataComboFile[Econ3]=$G33))*T_DataComboFile[2022/23 Reduction]*$B$3)","v":0},{"$f":"SUMPRODUCT(((T_DataComboFile[Implementation programme]=$G$3)*(T_DataComboFile[Econ3]=$G33))*T_DataComboFile[2022/23 Increase]*$B$3)","v":0},{"$f":"P33+Q33+R33","v":0},{"$f":"SUMPRODUCT(((T_DataComboFile[Implementation programme]=$G$3)*(T_DataComboFile[Econ3]=$G33))*T_DataComboFile[2023/24 Baseline]*$B$3)","v":0},{"$f":"SUMPRODUCT(((T_DataComboFile[Implementation programme]=$G$3)*(T_DataComboFile[Econ3]=$G33))*T_DataComboFile[2023/24 Reduction]*$B$3)","v":0},{"$f":"SUMPRODUCT(((T_DataComboFile[Implementation programme]=$G$3)*(T_DataComboFile[Econ3]=$G33))*T_DataComboFile[2023/24 Increase]*$B$3)","v":0},{"$f":"T33+U33+V33","v":0}]
[0,0,null,null,null,null,"Goods and services",{"$f":"SUMPRODUCT(((T_DataComboFile[Implementation programme]=$G$3)*(T_DataComboFile[Econ3]=$G34))*T_DataComboFile[2017/18]*$B$3)","v":0},{"$f":"SUMPRODUCT(((T_DataComboFile[Implementation programme]=$G$3)*(T_DataComboFile[Econ3]=$G34))*T_DataComboFile[2018/19]*$B$3)","v":0},{"$f":"SUMPRODUCT(((T_DataComboFile[Implementation programme]=$G$3)*(T_DataComboFile[Econ3]=$G34))*T_DataComboFile[2019/20 Revised estimate]*$B$3)","v":0},{"$f":"SUMPRODUCT(((T_DataComboFile[Implementation programme]=$G$3)*(T_DataComboFile[Econ3]=$G34))*T_DataComboFile[2020/21 Revised]*$B$3)","v":0},{"$f":"SUMPRODUCT(((T_DataComboFile[Implementation programme]=$G$3)*(T_DataComboFile[Econ3]=$G34))*T_DataComboFile[2021/22 Baseline]*$B$3)","v":0},{"$f":"SUMPRODUCT(((T_DataComboFile[Implementation programme]=$G$3)*(T_DataComboFile[Econ3]=$G34))*T_DataComboFile[2021/22 Reduction]*$B$3)","v":0},{"$f":"SUMPRODUCT(((T_DataComboFile[Implementation programme]=$G$3)*(T_DataComboFile[Econ3]=$G34))*T_DataComboFile[2021/22 Increase]*$B$3)","v":0},0,{"$f":"SUMPRODUCT(((T_DataComboFile[Implementation programme]=$G$3)*(T_DataComboFile[Econ3]=$G34))*T_DataComboFile[2022/23 Baseline]*$B$3)","v":0},{"$f":"SUMPRODUCT(((T_DataComboFile[Implementation programme]=$G$3)*(T_DataComboFile[Econ3]=$G34))*T_DataComboFile[2022/23 Reduction]*$B$3)","v":0},{"$f":"SUMPRODUCT(((T_DataComboFile[Implementation programme]=$G$3)*(T_DataComboFile[Econ3]=$G34))*T_DataComboFile[2022/23 Increase]*$B$3)","v":0},0,{"$f":"SUMPRODUCT(((T_DataComboFile[Implementation programme]=$G$3)*(T_DataComboFile[Econ3]=$G34))*T_DataComboFile[2023/24 Baseline]*$B$3)","v":0},{"$f":"SUMPRODUCT(((T_DataComboFile[Implementation programme]=$G$3)*(T_DataComboFile[Econ3]=$G34))*T_DataComboFile[2023/24 Reduction]*$B$3)","v":0},{"$f":"SUMPRODUCT(((T_DataComboFile[Implementation programme]=$G$3)*(T_DataComboFile[Econ3]=$G34))*T_DataComboFile[2023/24 Increase]*$B$3)","v":0},0]
[0,0,null,null,null,null,"Interest and rent on land",{"$f":"SUMPRODUCT(((T_DataComboFile[Implementation programme]=$G$3)*(T_DataComboFile[Econ3]=$G35))*T_DataComboFile[2017/18]*$B$3)","v":0},{"$f":"SUMPRODUCT(((T_DataComboFile[Implementation programme]=$G$3)*(T_DataComboFile[Econ3]=$G35))*T_DataComboFile[2018/19]*$B$3)","v":0},{"$f":"SUMPRODUCT(((T_DataComboFile[Implementation programme]=$G$3)*(T_DataComboFile[Econ3]=$G35))*T_DataComboFile[2019/20 Revised estimate]*$B$3)","v":0},{"$f":"SUMPRODUCT(((T_DataComboFile[Implementation programme]=$G$3)*(T_DataComboFile[Econ3]=$G35))*T_DataComboFile[2020/21 Revised]*$B$3)","v":0},{"$f":"SUMPRODUCT(((T_DataComboFile[Implementation programme]=$G$3)*(T_DataComboFile[Econ3]=$G35))*T_DataComboFile[2021/22 Baseline]*$B$3)","v":0},{"$f":"SUMPRODUCT(((T_DataComboFile[Implementation programme]=$G$3)*(T_DataComboFile[Econ3]=$G35))*T_DataComboFile[2021/22 Reduction]*$B$3)","v":0},{"$f":"SUMPRODUCT(((T_DataComboFile[Implementation programme]=$G$3)*(T_DataComboFile[Econ3]=$G35))*T_DataComboFile[2021/22 Increase]*$B$3)","v":0},0,{"$f":"SUMPRODUCT(((T_DataComboFile[Implementation programme]=$G$3)*(T_DataComboFile[Econ3]=$G35))*T_DataComboFile[2022/23 Baseline]*$B$3)","v":0},{"$f":"SUMPRODUCT(((T_DataComboFile[Implementation programme]=$G$3)*(T_DataComboFile[Econ3]=$G35))*T_DataComboFile[2022/23 Reduction]*$B$3)","v":0},{"$f":"SUMPRODUCT(((T_DataComboFile[Implementation programme]=$G$3)*(T_DataComboFile[Econ3]=$G35))*T_DataComboFile[2022/23 Increase]*$B$3)","v":0},0,{"$f":"SUMPRODUCT(((T_DataComboFile[Implementation programme]=$G$3)*(T_DataComboFile[Econ3]=$G35))*T_DataComboFile[2023/24 Baseline]*$B$3)","v":0},{"$f":"SUMPRODUCT(((T_DataComboFile[Implementation programme]=$G$3)*(T_DataComboFile[Econ3]=$G35))*T_DataComboFile[2023/24 Reduction]*$B$3)","v":0},{"$f":"SUMPRODUCT(((T_DataComboFile[Implementation programme]=$G$3)*(T_DataComboFile[Econ3]=$G35))*T_DataComboFile[2023/24 Increase]*$B$3)","v":0},0]
[0,0,null,null,null,null,"Transfers and subsidies",{"$f":"SUM(H37,H40,H43:H45,H48:H49)","v":0},0,0,0,0,0,0,0,0,0,0,0,0,0,0,0]
[0,0,null,null,null,null,"Provinces and municipalities",{"$f":"SUM(H38:H39)","v":0},0,0,0,0,0,0,0,0,0,0,0,0,0,0,0]
[0,0,null,null,null,null,"Provinces",{"$f":"SUMPRODUCT(((T_DataComboFile[Implementation programme]=$G$3)*(T_DataComboFile[Econ4]=$G38))*T_DataComboFile[2017/18]*$B$3)","v":0},{"$f":"SUMPRODUCT(((T_DataComboFile[Implementation programme]=$G$3)*(T_DataComboFile[Econ4]=$G38))*T_DataComboFile[2018/19]*$B$3)","v":0},{"$f":"SUMPRODUCT(((T_DataComboFile[Implementation programme]=$G$3)*(T_DataComboFile[Econ4]=$G38))*T_DataComboFile[2019/20 Revised estimate]*$B$3)","v":0},{"$f":"SUMPRODUCT(((T_DataComboFile[Implementation programme]=$G$3)*(T_DataComboFile[Econ4]=$G38))*T_DataComboFile[2020/21 Revised]*$B$3)","v":0},{"$f":"SUMPRODUCT(((T_DataComboFile[Implementation programme]=$G$3)*(T_DataComboFile[Econ4]=$G38))*T_DataComboFile[2021/22 Baseline]*$B$3)","v":0},{"$f":"SUMPRODUCT(((T_DataComboFile[Implementation programme]=$G$3)*(T_DataComboFile[Econ4]=$G38))*T_DataComboFile[2021/22 Reduction]*$B$3)","v":0},{"$f":"SUMPRODUCT(((T_DataComboFile[Implementation programme]=$G$3)*(T_DataComboFile[Econ4]=$G38))*T_DataComboFile[2021/22 Increase]*$B$3)","v":0},{"$f":"L38+M38+N38","v":0},{"$f":"SUMPRODUCT(((T_DataComboFile[Implementation programme]=$G$3)*(T_DataComboFile[Econ4]=$G38))*T_DataComboFile[2022/23 Baseline]*$B$3)","v":0},{"$f":"SUMPRODUCT(((T_DataComboFile[Implementation programme]=$G$3)*(T_DataComboFile[Econ4]=$G38))*T_DataComboFile[2022/23 Reduction]*$B$3)","v":0},{"$f":"SUMPRODUCT(((T_DataComboFile[Implementation programme]=$G$3)*(T_DataComboFile[Econ4]=$G38))*T_DataComboFile[2022/23 Increase]*$B$3)","v":0},{"$f":"P38+Q38+R38","v":0},{"$f":"SUMPRODUCT(((T_DataComboFile[Implementation programme]=$G$3)*(T_DataComboFile[Econ4]=$G38))*T_DataComboFile[2023/24 Baseline]*$B$3)","v":0},{"$f":"SUMPRODUCT(((T_DataComboFile[Implementation programme]=$G$3)*(T_DataComboFile[Econ4]=$G38))*T_DataComboFile[2023/24 Reduction]*$B$3)","v":0},{"$f":"SUMPRODUCT(((T_DataComboFile[Implementation programme]=$G$3)*(T_DataComboFile[Econ4]=$G38))*T_DataComboFile[2023/24 Increase]*$B$3)","v":0},{"$f":"T38+U38+V38","v":0}]
[0,0,null,null,null,null,"Municipalities",{"$f":"SUMPRODUCT(((T_DataComboFile[Implementation programme]=$G$3)*(T_DataComboFile[Econ4]=$G39))*T_DataComboFile[2017/18]*$B$3)","v":0},{"$f":"SUMPRODUCT(((T_DataComboFile[Implementation programme]=$G$3)*(T_DataComboFile[Econ4]=$G39))*T_DataComboFile[2018/19]*$B$3)","v":0},{"$f":"SUMPRODUCT(((T_DataComboFile[Implementation programme]=$G$3)*(T_DataComboFile[Econ4]=$G39))*T_DataComboFile[2019/20 Revised estimate]*$B$3)","v":0},{"$f":"SUMPRODUCT(((T_DataComboFile[Implementation programme]=$G$3)*(T_DataComboFile[Econ4]=$G39))*T_DataComboFile[2020/21 Revised]*$B$3)","v":0},{"$f":"SUMPRODUCT(((T_DataComboFile[Implementation programme]=$G$3)*(T_DataComboFile[Econ4]=$G39))*T_DataComboFile[2021/22 Baseline]*$B$3)","v":0},{"$f":"SUMPRODUCT(((T_DataComboFile[Implementation programme]=$G$3)*(T_DataComboFile[Econ4]=$G39))*T_DataComboFile[2021/22 Reduction]*$B$3)","v":0},{"$f":"SUMPRODUCT(((T_DataComboFile[Implementation programme]=$G$3)*(T_DataComboFile[Econ4]=$G39))*T_DataComboFile[2021/22 Increase]*$B$3)","v":0},0,{"$f":"SUMPRODUCT(((T_DataComboFile[Implementation programme]=$G$3)*(T_DataComboFile[Econ4]=$G39))*T_DataComboFile[2022/23 Baseline]*$B$3)","v":0},{"$f":"SUMPRODUCT(((T_DataComboFile[Implementation programme]=$G$3)*(T_DataComboFile[Econ4]=$G39))*T_DataComboFile[2022/23 Reduction]*$B$3)","v":0},{"$f":"SUMPRODUCT(((T_DataComboFile[Implementation programme]=$G$3)*(T_DataComboFile[Econ4]=$G39))*T_DataComboFile[2022/23 Increase]*$B$3)","v":0},0,{"$f":"SUMPRODUCT(((T_DataComboFile[Implementation programme]=$G$3)*(T_DataComboFile[Econ4]=$G39))*T_DataComboFile[2023/24 Baseline]*$B$3)","v":0},{"$f":"SUMPRODUCT(((T_DataComboFile[Implementation programme]=$G$3)*(T_DataComboFile[Econ4]=$G39))*T_DataComboFile[2023/24 Reduction]*$B$3)","v":0},{"$f":"SUMPRODUCT(((T_DataComboFile[Implementation programme]=$G$3)*(T_DataComboFile[Econ4]=$G39))*T_DataComboFile[2023/24 Increase]*$B$3)","v":0},0]
[0,0,null,null,null,null,"Departmental agencies and accounts",{"$f":"SUM(H41:H42)","v":0},0,0,0,0,0,0,0,0,0,0,0,0,0,0,0]
[0,0,null,null,null,null,"Social security funds",{"$f":"SUMPRODUCT(((T_DataComboFile[Implementation programme]=$G$3)*(T_DataComboFile[Econ4]=$G41))*T_DataComboFile[2017/18]*$B$3)","v":0},{"$f":"SUMPRODUCT(((T_DataComboFile[Implementation programme]=$G$3)*(T_DataComboFile[Econ4]=$G41))*T_DataComboFile[2018/19]*$B$3)","v":0},{"$f":"SUMPRODUCT(((T_DataComboFile[Implementation programme]=$G$3)*(T_DataComboFile[Econ4]=$G41))*T_DataComboFile[2019/20 Revised estimate]*$B$3)","v":0},{"$f":"SUMPRODUCT(((T_DataComboFile[Implementation programme]=$G$3)*(T_DataComboFile[Econ4]=$G41))*T_DataComboFile[2020/21 Revised]*$B$3)","v":0},{"$f":"SUMPRODUCT(((T_DataComboFile[Implementation programme]=$G$3)*(T_DataComboFile[Econ4]=$G41))*T_DataComboFile[2021/22 Baseline]*$B$3)","v":0},{"$f":"SUMPRODUCT(((T_DataComboFile[Implementation programme]=$G$3)*(T_DataComboFile[Econ4]=$G41))*T_DataComboFile[2021/22 Reduction]*$B$3)","v":0},{"$f":"SUMPRODUCT(((T_DataComboFile[Implementation programme]=$G$3)*(T_DataComboFile[Econ4]=$G41))*T_DataComboFile[2021/22 Increase]*$B$3)","v":0},{"$f":"L41+M41+N41","v":0},{"$f":"SUMPRODUCT(((T_DataComboFile[Implementation programme]=$G$3)*(T_DataComboFile[Econ4]=$G41))*T_DataComboFile[2022/23 Baseline]*$B$3)","v":0},{"$f":"SUMPRODUCT(((T_DataComboFile[Implementation programme]=$G$3)*(T_DataComboFile[Econ4]=$G41))*T_DataComboFile[2022/23 Reduction]*$B$3)","v":0},{"$f":"SUMPRODUCT(((T_DataComboFile[Implementation programme]=$G$3)*(T_DataComboFile[Econ4]=$G41))*T_DataComboFile[2022/23 Increase]*$B$3)","v":0},{"$f":"P41+Q41+R41","v":0},{"$f":"SUMPRODUCT(((T_DataComboFile[Implementation programme]=$G$3)*(T_DataComboFile[Econ4]=$G41))*T_DataComboFile[2023/24 Baseline]*$B$3)","v":0},{"$f":"SUMPRODUCT(((T_DataComboFile[Implementation programme]=$G$3)*(T_DataComboFile[Econ4]=$G41))*T_DataComboFile[2023/24 Reduction]*$B$3)","v":0},{"$f":"SUMPRODUCT(((T_DataComboFile[Implementation programme]=$G$3)*(T_DataComboFile[Econ4]=$G41))*T_DataComboFile[2023/24 Increase]*$B$3)","v":0},{"$f":"T41+U41+V41","v":0}]
[0,0,null,null,null,null,"Departmental agencies (non-business entities)",{"$f":"SUMPRODUCT(((T_DataComboFile[Implementation programme]=$G$3)*(T_DataComboFile[Econ4]=$G42))*T_DataComboFile[2017/18]*$B$3)","v":0},{"$f":"SUMPRODUCT(((T_DataComboFile[Implementation programme]=$G$3)*(T_DataComboFile[Econ4]=$G42))*T_DataComboFile[2018/19]*$B$3)","v":0},{"$f":"SUMPRODUCT(((T_DataComboFile[Implementation programme]=$G$3)*(T_DataComboFile[Econ4]=$G42))*T_DataComboFile[2019/20 Revised estimate]*$B$3)","v":0},{"$f":"SUMPRODUCT(((T_DataComboFile[Implementation programme]=$G$3)*(T_DataComboFile[Econ4]=$G42))*T_DataComboFile[2020/21 Revised]*$B$3)","v":0},{"$f":"SUMPRODUCT(((T_DataComboFile[Implementation programme]=$G$3)*(T_DataComboFile[Econ4]=$G42))*T_DataComboFile[2021/22 Baseline]*$B$3)","v":0},{"$f":"SUMPRODUCT(((T_DataComboFile[Implementation programme]=$G$3)*(T_DataComboFile[Econ4]=$G42))*T_DataComboFile[2021/22 Reduction]*$B$3)","v":0},{"$f":"SUMPRODUCT(((T_DataComboFile[Implementation programme]=$G$3)*(T_DataComboFile[Econ4]=$G42))*T_DataComboFile[2021/22 Increase]*$B$3)","v":0},0,{"$f":"SUMPRODUCT(((T_DataComboFile[Implementation programme]=$G$3)*(T_DataComboFile[Econ4]=$G42))*T_DataComboFile[2022/23 Baseline]*$B$3)","v":0},{"$f":"SUMPRODUCT(((T_DataComboFile[Implementation programme]=$G$3)*(T_DataComboFile[Econ4]=$G42))*T_DataComboFile[2022/23 Reduction]*$B$3)","v":0},{"$f":"SUMPRODUCT(((T_DataComboFile[Implementation programme]=$G$3)*(T_DataComboFile[Econ4]=$G42))*T_DataComboFile[2022/23 Increase]*$B$3)","v":0},0,{"$f":"SUMPRODUCT(((T_DataComboFile[Implementation programme]=$G$3)*(T_DataComboFile[Econ4]=$G42))*T_DataComboFile[2023/24 Baseline]*$B$3)","v":0},{"$f":"SUMPRODUCT(((T_DataComboFile[Implementation programme]=$G$3)*(T_DataComboFile[Econ4]=$G42))*T_DataComboFile[2023/24 Reduction]*$B$3)","v":0},{"$f":"SUMPRODUCT(((T_DataComboFile[Implementation programme]=$G$3)*(T_DataComboFile[Econ4]=$G42))*T_DataComboFile[2023/24 Increase]*$B$3)","v":0},0]
[0,0,null,null,null,null,"Higher education institutions",{"$f":"SUMPRODUCT(((T_DataComboFile[Implementation programme]=$G$3)*(T_DataComboFile[Econ3]=$G43))*T_DataComboFile[2017/18]*$B$3)","v":0},{"$f":"SUMPRODUCT(((T_DataComboFile[Implementation programme]=$G$3)*(T_DataComboFile[Econ3]=$G43))*T_DataComboFile[2018/19]*$B$3)","v":0},{"$f":"SUMPRODUCT(((T_DataComboFile[Implementation programme]=$G$3)*(T_DataComboFile[Econ3]=$G43))*T_DataComboFile[2019/20 Revised estimate]*$B$3)","v":0},{"$f":"SUMPRODUCT(((T_DataComboFile[Implementation programme]=$G$3)*(T_DataComboFile[Econ3]=$G43))*T_DataComboFile[2020/21 Revised]*$B$3)","v":0},{"$f":"SUMPRODUCT(((T_DataComboFile[Implementation programme]=$G$3)*(T_DataComboFile[Econ3]=$G43))*T_DataComboFile[2021/22 Baseline]*$B$3)","v":0},{"$f":"SUMPRODUCT(((T_DataComboFile[Implementation programme]=$G$3)*(T_DataComboFile[Econ3]=$G43))*T_DataComboFile[2021/22 Reduction]*$B$3)","v":0},{"$f":"SUMPRODUCT(((T_DataComboFile[Implementation programme]=$G$3)*(T_DataComboFile[Econ3]=$G43))*T_DataComboFile[2021/22 Increase]*$B$3)","v":0},0,{"$f":"SUMPRODUCT(((T_DataComboFile[Implementation programme]=$G$3)*(T_DataComboFile[Econ3]=$G43))*T_DataComboFile[2022/23 Baseline]*$B$3)","v":0},{"$f":"SUMPRODUCT(((T_DataComboFile[Implementation programme]=$G$3)*(T_DataComboFile[Econ3]=$G43))*T_DataComboFile[2022/23 Reduction]*$B$3)","v":0},{"$f":"SUMPRODUCT(((T_DataComboFile[Implementation programme]=$G$3)*(T_DataComboFile[Econ3]=$G43))*T_DataComboFile[2022/23 Increase]*$B$3)","v":0},0,{"$f":"SUMPRODUCT(((T_DataComboFile[Implementation programme]=$G$3)*(T_DataComboFile[Econ3]=$G43))*T_DataComboFile[2023/24 Baseline]*$B$3)","v":0},{"$f":"SUMPRODUCT(((T_DataComboFile[Implementation programme]=$G$3)*(T_DataComboFile[Econ3]=$G43))*T_DataComboFile[2023/24 Reduction]*$B$3)","v":0},{"$f":"SUMPRODUCT(((T_DataComboFile[Implementation programme]=$G$3)*(T_DataComboFile[Econ3]=$G43))*T_DataComboFile[2023/24 Increase]*$B$3)","v":0},0]
[0,0,null,null,null,null,"Foreign governments and international organisations",{"$f":"SUMPRODUCT(((T_DataComboFile[Implementation programme]=$G$3)*(T_DataComboFile[Econ3]=$G44))*T_DataComboFile[2017/18]*$B$3)","v":0},{"$f":"SUMPRODUCT(((T_DataComboFile[Implementation programme]=$G$3)*(T_DataComboFile[Econ3]=$G44))*T_DataComboFile[2018/19]*$B$3)","v":0},{"$f":"SUMPRODUCT(((T_DataComboFile[Implementation programme]=$G$3)*(T_DataComboFile[Econ3]=$G44))*T_DataComboFile[2019/20 Revised estimate]*$B$3)","v":0},{"$f":"SUMPRODUCT(((T_DataComboFile[Implementation programme]=$G$3)*(T_DataComboFile[Econ3]=$G44))*T_DataComboFile[2020/21 Revised]*$B$3)","v":0},{"$f":"SUMPRODUCT(((T_DataComboFile[Implementation programme]=$G$3)*(T_DataComboFile[Econ3]=$G44))*T_DataComboFile[2021/22 Baseline]*$B$3)","v":0},{"$f":"SUMPRODUCT(((T_DataComboFile[Implementation programme]=$G$3)*(T_DataComboFile[Econ3]=$G44))*T_DataComboFile[2021/22 Reduction]*$B$3)","v":0},{"$f":"SUMPRODUCT(((T_DataComboFile[Implementation programme]=$G$3)*(T_DataComboFile[Econ3]=$G44))*T_DataComboFile[2021/22 Increase]*$B$3)","v":0},0,{"$f":"SUMPRODUCT(((T_DataComboFile[Implementation programme]=$G$3)*(T_DataComboFile[Econ3]=$G44))*T_DataComboFile[2022/23 Baseline]*$B$3)","v":0},{"$f":"SUMPRODUCT(((T_DataComboFile[Implementation programme]=$G$3)*(T_DataComboFile[Econ3]=$G44))*T_DataComboFile[2022/23 Reduction]*$B$3)","v":0},{"$f":"SUMPRODUCT(((T_DataComboFile[Implementation programme]=$G$3)*(T_DataComboFile[Econ3]=$G44))*T_DataComboFile[2022/23 Increase]*$B$3)","v":0},0,{"$f":"SUMPRODUCT(((T_DataComboFile[Implementation programme]=$G$3)*(T_DataComboFile[Econ3]=$G44))*T_DataComboFile[2023/24 Baseline]*$B$3)","v":0},{"$f":"SUMPRODUCT(((T_DataComboFile[Implementation programme]=$G$3)*(T_DataComboFile[Econ3]=$G44))*T_DataComboFile[2023/24 Reduction]*$B$3)","v":0},{"$f":"SUMPRODUCT(((T_DataComboFile[Implementation programme]=$G$3)*(T_DataComboFile[Econ3]=$G44))*T_DataComboFile[2023/24 Increase]*$B$3)","v":0},0]
[0,0,null,null,null,null,"Public corporations and private enterprises",{"$f":"SUM(H46:H47)","v":0},0,0,0,0,0,0,0,0,0,0,0,0,0,0,0]
[0,0,null,null,null,null,"Public corporations",{"$f":"SUMPRODUCT(((T_DataComboFile[Implementation programme]=$G$3)*(T_DataComboFile[Econ4]=$G46))*T_DataComboFile[2017/18]*$B$3)","v":0},{"$f":"SUMPRODUCT(((T_DataComboFile[Implementation programme]=$G$3)*(T_DataComboFile[Econ4]=$G46))*T_DataComboFile[2018/19]*$B$3)","v":0},{"$f":"SUMPRODUCT(((T_DataComboFile[Implementation programme]=$G$3)*(T_DataComboFile[Econ4]=$G46))*T_DataComboFile[2019/20 Revised estimate]*$B$3)","v":0},{"$f":"SUMPRODUCT(((T_DataComboFile[Implementation programme]=$G$3)*(T_DataComboFile[Econ4]=$G46))*T_DataComboFile[2020/21 Revised]*$B$3)","v":0},{"$f":"SUMPRODUCT(((T_DataComboFile[Implementation programme]=$G$3)*(T_DataComboFile[Econ4]=$G46))*T_DataComboFile[2021/22 Baseline]*$B$3)","v":0},{"$f":"SUMPRODUCT(((T_DataComboFile[Implementation programme]=$G$3)*(T_DataComboFile[Econ4]=$G46))*T_DataComboFile[2021/22 Reduction]*$B$3)","v":0},{"$f":"SUMPRODUCT(((T_DataComboFile[Implementation programme]=$G$3)*(T_DataComboFile[Econ4]=$G46))*T_DataComboFile[2021/22 Increase]*$B$3)","v":0},{"$f":"L46+M46+N46","v":0},{"$f":"SUMPRODUCT(((T_DataComboFile[Implementation programme]=$G$3)*(T_DataComboFile[Econ4]=$G46))*T_DataComboFile[2022/23 Baseline]*$B$3)","v":0},{"$f":"SUMPRODUCT(((T_DataComboFile[Implementation programme]=$G$3)*(T_DataComboFile[Econ4]=$G46))*T_DataComboFile[2022/23 Reduction]*$B$3)","v":0},{"$f":"SUMPRODUCT(((T_DataComboFile[Implementation programme]=$G$3)*(T_DataComboFile[Econ4]=$G46))*T_DataComboFile[2022/23 Increase]*$B$3)","v":0},{"$f":"P46+Q46+R46","v":0},{"$f":"SUMPRODUCT(((T_DataComboFile[Implementation programme]=$G$3)*(T_DataComboFile[Econ4]=$G46))*T_DataComboFile[2023/24 Baseline]*$B$3)","v":0},{"$f":"SUMPRODUCT(((T_DataComboFile[Implementation programme]=$G$3)*(T_DataComboFile[Econ4]=$G46))*T_DataComboFile[2023/24 Reduction]*$B$3)","v":0},{"$f":"SUMPRODUCT(((T_DataComboFile[Implementation programme]=$G$3)*(T_DataComboFile[Econ4]=$G46))*T_DataComboFile[2023/24 Increase]*$B$3)","v":0},{"$f":"T46+U46+V46","v":0}]
[0,0,null,null,null,null,"Private enterprises",{"$f":"SUMPRODUCT(((T_DataComboFile[Implementation programme]=$G$3)*(T_DataComboFile[Econ4]=$G47))*T_DataComboFile[2017/18]*$B$3)","v":0},{"$f":"SUMPRODUCT(((T_DataComboFile[Implementation programme]=$G$3)*(T_DataComboFile[Econ4]=$G47))*T_DataComboFile[2018/19]*$B$3)","v":0},{"$f":"SUMPRODUCT(((T_DataComboFile[Implementation programme]=$G$3)*(T_DataComboFile[Econ4]=$G47))*T_DataComboFile[2019/20 Revised estimate]*$B$3)","v":0},{"$f":"SUMPRODUCT(((T_DataComboFile[Implementation programme]=$G$3)*(T_DataComboFile[Econ4]=$G47))*T_DataComboFile[2020/21 Revised]*$B$3)","v":0},{"$f":"SUMPRODUCT(((T_DataComboFile[Implementation programme]=$G$3)*(T_DataComboFile[Econ4]=$G47))*T_DataComboFile[2021/22 Baseline]*$B$3)","v":0},{"$f":"SUMPRODUCT(((T_DataComboFile[Implementation programme]=$G$3)*(T_DataComboFile[Econ4]=$G47))*T_DataComboFile[2021/22 Reduction]*$B$3)","v":0},{"$f":"SUMPRODUCT(((T_DataComboFile[Implementation programme]=$G$3)*(T_DataComboFile[Econ4]=$G47))*T_DataComboFile[2021/22 Increase]*$B$3)","v":0},0,{"$f":"SUMPRODUCT(((T_DataComboFile[Implementation programme]=$G$3)*(T_DataComboFile[Econ4]=$G47))*T_DataComboFile[2022/23 Baseline]*$B$3)","v":0},{"$f":"SUMPRODUCT(((T_DataComboFile[Implementation programme]=$G$3)*(T_DataComboFile[Econ4]=$G47))*T_DataComboFile[2022/23 Reduction]*$B$3)","v":0},{"$f":"SUMPRODUCT(((T_DataComboFile[Implementation programme]=$G$3)*(T_DataComboFile[Econ4]=$G47))*T_DataComboFile[2022/23 Increase]*$B$3)","v":0},0,{"$f":"SUMPRODUCT(((T_DataComboFile[Implementation programme]=$G$3)*(T_DataComboFile[Econ4]=$G47))*T_DataComboFile[2023/24 Baseline]*$B$3)","v":0},{"$f":"SUMPRODUCT(((T_DataComboFile[Implementation programme]=$G$3)*(T_DataComboFile[Econ4]=$G47))*T_DataComboFile[2023/24 Reduction]*$B$3)","v":0},{"$f":"SUMPRODUCT(((T_DataComboFile[Implementation programme]=$G$3)*(T_DataComboFile[Econ4]=$G47))*T_DataComboFile[2023/24 Increase]*$B$3)","v":0},0]
[0,0,null,null,null,null,"Non-profit institutions",{"$f":"SUMPRODUCT(((T_DataComboFile[Implementation programme]=$G$3)*(T_DataComboFile[Econ3]=$G48))*T_DataComboFile[2017/18]*$B$3)","v":0},{"$f":"SUMPRODUCT(((T_DataComboFile[Implementation programme]=$G$3)*(T_DataComboFile[Econ3]=$G48))*T_DataComboFile[2018/19]*$B$3)","v":0},{"$f":"SUMPRODUCT(((T_DataComboFile[Implementation programme]=$G$3)*(T_DataComboFile[Econ3]=$G48))*T_DataComboFile[2019/20 Revised estimate]*$B$3)","v":0},{"$f":"SUMPRODUCT(((T_DataComboFile[Implementation programme]=$G$3)*(T_DataComboFile[Econ3]=$G48))*T_DataComboFile[2020/21 Revised]*$B$3)","v":0},{"$f":"SUMPRODUCT(((T_DataComboFile[Implementation programme]=$G$3)*(T_DataComboFile[Econ3]=$G48))*T_DataComboFile[2021/22 Baseline]*$B$3)","v":0},{"$f":"SUMPRODUCT(((T_DataComboFile[Implementation programme]=$G$3)*(T_DataComboFile[Econ3]=$G48))*T_DataComboFile[2021/22 Reduction]*$B$3)","v":0},{"$f":"SUMPRODUCT(((T_DataComboFile[Implementation programme]=$G$3)*(T_DataComboFile[Econ3]=$G48))*T_DataComboFile[2021/22 Increase]*$B$3)","v":0},0,{"$f":"SUMPRODUCT(((T_DataComboFile[Implementation programme]=$G$3)*(T_DataComboFile[Econ3]=$G48))*T_DataComboFile[2022/23 Baseline]*$B$3)","v":0},{"$f":"SUMPRODUCT(((T_DataComboFile[Implementation programme]=$G$3)*(T_DataComboFile[Econ3]=$G48))*T_DataComboFile[2022/23 Reduction]*$B$3)","v":0},{"$f":"SUMPRODUCT(((T_DataComboFile[Implementation programme]=$G$3)*(T_DataComboFile[Econ3]=$G48))*T_DataComboFile[2022/23 Increase]*$B$3)","v":0},0,{"$f":"SUMPRODUCT(((T_DataComboFile[Implementation programme]=$G$3)*(T_DataComboFile[Econ3]=$G48))*T_DataComboFile[2023/24 Baseline]*$B$3)","v":0},{"$f":"SUMPRODUCT(((T_DataComboFile[Implementation programme]=$G$3)*(T_DataComboFile[Econ3]=$G48))*T_DataComboFile[2023/24 Reduction]*$B$3)","v":0},{"$f":"SUMPRODUCT(((T_DataComboFile[Implementation programme]=$G$3)*(T_DataComboFile[Econ3]=$G48))*T_DataComboFile[2023/24 Increase]*$B$3)","v":0},0]
[0,0,null,null,null,null,"Households",{"$f":"SUM(H50:H51)","v":0},0,0,0,0,0,0,0,0,0,0,0,0,0,0,0]
[0,0,null,null,null,null,"Social benefits",{"$f":"SUMPRODUCT(((T_DataComboFile[Implementation programme]=$G$3)*(T_DataComboFile[Econ4]=$G50))*T_DataComboFile[2017/18]*$B$3)","v":0},{"$f":"SUMPRODUCT(((T_DataComboFile[Implementation programme]=$G$3)*(T_DataComboFile[Econ4]=$G50))*T_DataComboFile[2018/19]*$B$3)","v":0},{"$f":"SUMPRODUCT(((T_DataComboFile[Implementation programme]=$G$3)*(T_DataComboFile[Econ4]=$G50))*T_DataComboFile[2019/20 Revised estimate]*$B$3)","v":0},{"$f":"SUMPRODUCT(((T_DataComboFile[Implementation programme]=$G$3)*(T_DataComboFile[Econ4]=$G50))*T_DataComboFile[2020/21 Revised]*$B$3)","v":0},{"$f":"SUMPRODUCT(((T_DataComboFile[Implementation programme]=$G$3)*(T_DataComboFile[Econ4]=$G50))*T_DataComboFile[2021/22 Baseline]*$B$3)","v":0},{"$f":"SUMPRODUCT(((T_DataComboFile[Implementation programme]=$G$3)*(T_DataComboFile[Econ4]=$G50))*T_DataComboFile[2021/22 Reduction]*$B$3)","v":0},{"$f":"SUMPRODUCT(((T_DataComboFile[Implementation programme]=$G$3)*(T_DataComboFile[Econ4]=$G50))*T_DataComboFile[2021/22 Increase]*$B$3)","v":0},{"$f":"L50+M50+N50","v":0},{"$f":"SUMPRODUCT(((T_DataComboFile[Implementation programme]=$G$3)*(T_DataComboFile[Econ4]=$G50))*T_DataComboFile[2022/23 Baseline]*$B$3)","v":0},{"$f":"SUMPRODUCT(((T_DataComboFile[Implementation programme]=$G$3)*(T_DataComboFile[Econ4]=$G50))*T_DataComboFile[2022/23 Reduction]*$B$3)","v":0},{"$f":"SUMPRODUCT(((T_DataComboFile[Implementation programme]=$G$3)*(T_DataComboFile[Econ4]=$G50))*T_DataComboFile[2022/23 Increase]*$B$3)","v":0},{"$f":"P50+Q50+R50","v":0},{"$f":"SUMPRODUCT(((T_DataComboFile[Implementation programme]=$G$3)*(T_DataComboFile[Econ4]=$G50))*T_DataComboFile[2023/24 Baseline]*$B$3)","v":0},{"$f":"SUMPRODUCT(((T_DataComboFile[Implementation programme]=$G$3)*(T_DataComboFile[Econ4]=$G50))*T_DataComboFile[2023/24 Reduction]*$B$3)","v":0},{"$f":"SUMPRODUCT(((T_DataComboFile[Implementation programme]=$G$3)*(T_DataComboFile[Econ4]=$G50))*T_DataComboFile[2023/24 Increase]*$B$3)","v":0},{"$f":"T50+U50+V50","v":0}]
[0,0,null,null,null,null,"Other transfers to households",{"$f":"SUMPRODUCT(((T_DataComboFile[Implementation programme]=$G$3)*(T_DataComboFile[Econ4]=$G51))*T_DataComboFile[2017/18]*$B$3)","v":0},{"$f":"SUMPRODUCT(((T_DataComboFile[Implementation programme]=$G$3)*(T_DataComboFile[Econ4]=$G51))*T_DataComboFile[2018/19]*$B$3)","v":0},{"$f":"SUMPRODUCT(((T_DataComboFile[Implementation programme]=$G$3)*(T_DataComboFile[Econ4]=$G51))*T_DataComboFile[2019/20 Revised estimate]*$B$3)","v":0},{"$f":"SUMPRODUCT(((T_DataComboFile[Implementation programme]=$G$3)*(T_DataComboFile[Econ4]=$G51))*T_DataComboFile[2020/21 Revised]*$B$3)","v":0},{"$f":"SUMPRODUCT(((T_DataComboFile[Implementation programme]=$G$3)*(T_DataComboFile[Econ4]=$G51))*T_DataComboFile[2021/22 Baseline]*$B$3)","v":0},{"$f":"SUMPRODUCT(((T_DataComboFile[Implementation programme]=$G$3)*(T_DataComboFile[Econ4]=$G51))*T_DataComboFile[2021/22 Reduction]*$B$3)","v":0},{"$f":"SUMPRODUCT(((T_DataComboFile[Implementation programme]=$G$3)*(T_DataComboFile[Econ4]=$G51))*T_DataComboFile[2021/22 Increase]*$B$3)","v":0},0,{"$f":"SUMPRODUCT(((T_DataComboFile[Implementation programme]=$G$3)*(T_DataComboFile[Econ4]=$G51))*T_DataComboFile[2022/23 Baseline]*$B$3)","v":0},{"$f":"SUMPRODUCT(((T_DataComboFile[Implementation programme]=$G$3)*(T_DataComboFile[Econ4]=$G51))*T_DataComboFile[2022/23 Reduction]*$B$3)","v":0},{"$f":"SUMPRODUCT(((T_DataComboFile[Implementation programme]=$G$3)*(T_DataComboFile[Econ4]=$G51))*T_DataComboFile[2022/23 Increase]*$B$3)","v":0},0,{"$f":"SUMPRODUCT(((T_DataComboFile[Implementation programme]=$G$3)*(T_DataComboFile[Econ4]=$G51))*T_DataComboFile[2023/24 Baseline]*$B$3)","v":0},{"$f":"SUMPRODUCT(((T_DataComboFile[Implementation programme]=$G$3)*(T_DataComboFile[Econ4]=$G51))*T_DataComboFile[2023/24 Reduction]*$B$3)","v":0},{"$f":"SUMPRODUCT(((T_DataComboFile[Implementation programme]=$G$3)*(T_DataComboFile[Econ4]=$G51))*T_DataComboFile[2023/24 Increase]*$B$3)","v":0},0]
[0,0,null,null,null,null,"Payments for capital assets",{"$f":"SUM(H53,H56,H59:H63)","v":0},0,0,0,0,0,0,0,0,0,0,0,0,0,0,0]
[0,0,null,null,null,null,"Buildings and other fixed structures",{"$f":"SUM(H54:H55)","v":0},0,0,0,0,0,0,0,0,0,0,0,0,0,0,0]
[0,0,null,null,null,null,"Buildings",{"$f":"SUMPRODUCT(((T_DataComboFile[Implementation programme]=$G$3)*(T_DataComboFile[Econ4]=$G54))*T_DataComboFile[2017/18]*$B$3)","v":0},{"$f":"SUMPRODUCT(((T_DataComboFile[Implementation programme]=$G$3)*(T_DataComboFile[Econ4]=$G54))*T_DataComboFile[2018/19]*$B$3)","v":0},{"$f":"SUMPRODUCT(((T_DataComboFile[Implementation programme]=$G$3)*(T_DataComboFile[Econ4]=$G54))*T_DataComboFile[2019/20 Revised estimate]*$B$3)","v":0},{"$f":"SUMPRODUCT(((T_DataComboFile[Implementation programme]=$G$3)*(T_DataComboFile[Econ4]=$G54))*T_DataComboFile[2020/21 Revised]*$B$3)","v":0},{"$f":"SUMPRODUCT(((T_DataComboFile[Implementation programme]=$G$3)*(T_DataComboFile[Econ4]=$G54))*T_DataComboFile[2021/22 Baseline]*$B$3)","v":0},{"$f":"SUMPRODUCT(((T_DataComboFile[Implementation programme]=$G$3)*(T_DataComboFile[Econ4]=$G54))*T_DataComboFile[2021/22 Reduction]*$B$3)","v":0},{"$f":"SUMPRODUCT(((T_DataComboFile[Implementation programme]=$G$3)*(T_DataComboFile[Econ4]=$G54))*T_DataComboFile[2021/22 Increase]*$B$3)","v":0},{"$f":"L54+M54+N54","v":0},{"$f":"SUMPRODUCT(((T_DataComboFile[Implementation programme]=$G$3)*(T_DataComboFile[Econ4]=$G54))*T_DataComboFile[2022/23 Baseline]*$B$3)","v":0},{"$f":"SUMPRODUCT(((T_DataComboFile[Implementation programme]=$G$3)*(T_DataComboFile[Econ4]=$G54))*T_DataComboFile[2022/23 Reduction]*$B$3)","v":0},{"$f":"SUMPRODUCT(((T_DataComboFile[Implementation programme]=$G$3)*(T_DataComboFile[Econ4]=$G54))*T_DataComboFile[2022/23 Increase]*$B$3)","v":0},{"$f":"P54+Q54+R54","v":0},{"$f":"SUMPRODUCT(((T_DataComboFile[Implementation programme]=$G$3)*(T_DataComboFile[Econ4]=$G54))*T_DataComboFile[2023/24 Baseline]*$B$3)","v":0},{"$f":"SUMPRODUCT(((T_DataComboFile[Implementation programme]=$G$3)*(T_DataComboFile[Econ4]=$G54))*T_DataComboFile[2023/24 Reduction]*$B$3)","v":0},{"$f":"SUMPRODUCT(((T_DataComboFile[Implementation programme]=$G$3)*(T_DataComboFile[Econ4]=$G54))*T_DataComboFile[2023/24 Increase]*$B$3)","v":0},{"$f":"T54+U54+V54","v":0}]
[0,0,null,null,null,null,"Other fixed structures",{"$f":"SUMPRODUCT(((T_DataComboFile[Implementation programme]=$G$3)*(T_DataComboFile[Econ4]=$G55))*T_DataComboFile[2017/18]*$B$3)","v":0},{"$f":"SUMPRODUCT(((T_DataComboFile[Implementation programme]=$G$3)*(T_DataComboFile[Econ4]=$G55))*T_DataComboFile[2018/19]*$B$3)","v":0},{"$f":"SUMPRODUCT(((T_DataComboFile[Implementation programme]=$G$3)*(T_DataComboFile[Econ4]=$G55))*T_DataComboFile[2019/20 Revised estimate]*$B$3)","v":0},{"$f":"SUMPRODUCT(((T_DataComboFile[Implementation programme]=$G$3)*(T_DataComboFile[Econ4]=$G55))*T_DataComboFile[2020/21 Revised]*$B$3)","v":0},{"$f":"SUMPRODUCT(((T_DataComboFile[Implementation programme]=$G$3)*(T_DataComboFile[Econ4]=$G55))*T_DataComboFile[2021/22 Baseline]*$B$3)","v":0},{"$f":"SUMPRODUCT(((T_DataComboFile[Implementation programme]=$G$3)*(T_DataComboFile[Econ4]=$G55))*T_DataComboFile[2021/22 Reduction]*$B$3)","v":0},{"$f":"SUMPRODUCT(((T_DataComboFile[Implementation programme]=$G$3)*(T_DataComboFile[Econ4]=$G55))*T_DataComboFile[2021/22 Increase]*$B$3)","v":0},0,{"$f":"SUMPRODUCT(((T_DataComboFile[Implementation programme]=$G$3)*(T_DataComboFile[Econ4]=$G55))*T_DataComboFile[2022/23 Baseline]*$B$3)","v":0},{"$f":"SUMPRODUCT(((T_DataComboFile[Implementation programme]=$G$3)*(T_DataComboFile[Econ4]=$G55))*T_DataComboFile[2022/23 Reduction]*$B$3)","v":0},{"$f":"SUMPRODUCT(((T_DataComboFile[Implementation programme]=$G$3)*(T_DataComboFile[Econ4]=$G55))*T_DataComboFile[2022/23 Increase]*$B$3)","v":0},0,{"$f":"SUMPRODUCT(((T_DataComboFile[Implementation programme]=$G$3)*(T_DataComboFile[Econ4]=$G55))*T_DataComboFile[2023/24 Baseline]*$B$3)","v":0},{"$f":"SUMPRODUCT(((T_DataComboFile[Implementation programme]=$G$3)*(T_DataComboFile[Econ4]=$G55))*T_DataComboFile[2023/24 Reduction]*$B$3)","v":0},{"$f":"SUMPRODUCT(((T_DataComboFile[Implementation programme]=$G$3)*(T_DataComboFile[Econ4]=$G55))*T_DataComboFile[2023/24 Increase]*$B$3)","v":0},0]
[0,0,null,null,null,null,"Machinery and equipment",{"$f":"SUM(H57:H58)","v":0},0,0,0,0,0,0,0,0,0,0,0,0,0,0,0]
[0,0,null,null,null,null,"Transport equipment",{"$f":"SUMPRODUCT(((T_DataComboFile[Implementation programme]=$G$3)*(T_DataComboFile[Econ4]=$G57))*T_DataComboFile[2017/18]*$B$3)","v":0},{"$f":"SUMPRODUCT(((T_DataComboFile[Implementation programme]=$G$3)*(T_DataComboFile[Econ4]=$G57))*T_DataComboFile[2018/19]*$B$3)","v":0},{"$f":"SUMPRODUCT(((T_DataComboFile[Implementation programme]=$G$3)*(T_DataComboFile[Econ4]=$G57))*T_DataComboFile[2019/20 Revised estimate]*$B$3)","v":0},{"$f":"SUMPRODUCT(((T_DataComboFile[Implementation programme]=$G$3)*(T_DataComboFile[Econ4]=$G57))*T_DataComboFile[2020/21 Revised]*$B$3)","v":0},{"$f":"SUMPRODUCT(((T_DataComboFile[Implementation programme]=$G$3)*(T_DataComboFile[Econ4]=$G57))*T_DataComboFile[2021/22 Baseline]*$B$3)","v":0},{"$f":"SUMPRODUCT(((T_DataComboFile[Implementation programme]=$G$3)*(T_DataComboFile[Econ4]=$G57))*T_DataComboFile[2021/22 Reduction]*$B$3)","v":0},{"$f":"SUMPRODUCT(((T_DataComboFile[Implementation programme]=$G$3)*(T_DataComboFile[Econ4]=$G57))*T_DataComboFile[2021/22 Increase]*$B$3)","v":0},{"$f":"L57+M57+N57","v":0},{"$f":"SUMPRODUCT(((T_DataComboFile[Implementation programme]=$G$3)*(T_DataComboFile[Econ4]=$G57))*T_DataComboFile[2022/23 Baseline]*$B$3)","v":0},{"$f":"SUMPRODUCT(((T_DataComboFile[Implementation programme]=$G$3)*(T_DataComboFile[Econ4]=$G57))*T_DataComboFile[2022/23 Reduction]*$B$3)","v":0},{"$f":"SUMPRODUCT(((T_DataComboFile[Implementation programme]=$G$3)*(T_DataComboFile[Econ4]=$G57))*T_DataComboFile[2022/23 Increase]*$B$3)","v":0},{"$f":"P57+Q57+R57","v":0},{"$f":"SUMPRODUCT(((T_DataComboFile[Implementation programme]=$G$3)*(T_DataComboFile[Econ4]=$G57))*T_DataComboFile[2023/24 Baseline]*$B$3)","v":0},{"$f":"SUMPRODUCT(((T_DataComboFile[Implementation programme]=$G$3)*(T_DataComboFile[Econ4]=$G57))*T_DataComboFile[2023/24 Reduction]*$B$3)","v":0},{"$f":"SUMPRODUCT(((T_DataComboFile[Implementation programme]=$G$3)*(T_DataComboFile[Econ4]=$G57))*T_DataComboFile[2023/24 Increase]*$B$3)","v":0},{"$f":"T57+U57+V57","v":0}]
[0,0,null,null,null,null,"Other machinery and equipment",{"$f":"SUMPRODUCT(((T_DataComboFile[Implementation programme]=$G$3)*(T_DataComboFile[Econ4]=$G58))*T_DataComboFile[2017/18]*$B$3)","v":0},{"$f":"SUMPRODUCT(((T_DataComboFile[Implementation programme]=$G$3)*(T_DataComboFile[Econ4]=$G58))*T_DataComboFile[2018/19]*$B$3)","v":0},{"$f":"SUMPRODUCT(((T_DataComboFile[Implementation programme]=$G$3)*(T_DataComboFile[Econ4]=$G58))*T_DataComboFile[2019/20 Revised estimate]*$B$3)","v":0},{"$f":"SUMPRODUCT(((T_DataComboFile[Implementation programme]=$G$3)*(T_DataComboFile[Econ4]=$G58))*T_DataComboFile[2020/21 Revised]*$B$3)","v":0},{"$f":"SUMPRODUCT(((T_DataComboFile[Implementation programme]=$G$3)*(T_DataComboFile[Econ4]=$G58))*T_DataComboFile[2021/22 Baseline]*$B$3)","v":0},{"$f":"SUMPRODUCT(((T_DataComboFile[Implementation programme]=$G$3)*(T_DataComboFile[Econ4]=$G58))*T_DataComboFile[2021/22 Reduction]*$B$3)","v":0},{"$f":"SUMPRODUCT(((T_DataComboFile[Implementation programme]=$G$3)*(T_DataComboFile[Econ4]=$G58))*T_DataComboFile[2021/22 Increase]*$B$3)","v":0},0,{"$f":"SUMPRODUCT(((T_DataComboFile[Implementation programme]=$G$3)*(T_DataComboFile[Econ4]=$G58))*T_DataComboFile[2022/23 Baseline]*$B$3)","v":0},{"$f":"SUMPRODUCT(((T_DataComboFile[Implementation programme]=$G$3)*(T_DataComboFile[Econ4]=$G58))*T_DataComboFile[2022/23 Reduction]*$B$3)","v":0},{"$f":"SUMPRODUCT(((T_DataComboFile[Implementation programme]=$G$3)*(T_DataComboFile[Econ4]=$G58))*T_DataComboFile[2022/23 Increase]*$B$3)","v":0},0,{"$f":"SUMPRODUCT(((T_DataComboFile[Implementation programme]=$G$3)*(T_DataComboFile[Econ4]=$G58))*T_DataComboFile[2023/24 Baseline]*$B$3)","v":0},{"$f":"SUMPRODUCT(((T_DataComboFile[Implementation programme]=$G$3)*(T_DataComboFile[Econ4]=$G58))*T_DataComboFile[2023/24 Reduction]*$B$3)","v":0},{"$f":"SUMPRODUCT(((T_DataComboFile[Implementation programme]=$G$3)*(T_DataComboFile[Econ4]=$G58))*T_DataComboFile[2023/24 Increase]*$B$3)","v":0},0]
[0,0,null,null,null,null,"Heritage assets",{"$f":"SUMPRODUCT(((T_DataComboFile[Implementation programme]=$G$3)*(T_DataComboFile[Econ3]=$G59))*T_DataComboFile[2017/18]*$B$3)","v":0},{"$f":"SUMPRODUCT(((T_DataComboFile[Implementation programme]=$G$3)*(T_DataComboFile[Econ3]=$G59))*T_DataComboFile[2018/19]*$B$3)","v":0},{"$f":"SUMPRODUCT(((T_DataComboFile[Implementation programme]=$G$3)*(T_DataComboFile[Econ3]=$G59))*T_DataComboFile[2019/20 Revised estimate]*$B$3)","v":0},{"$f":"SUMPRODUCT(((T_DataComboFile[Implementation programme]=$G$3)*(T_DataComboFile[Econ3]=$G59))*T_DataComboFile[2020/21 Revised]*$B$3)","v":0},{"$f":"SUMPRODUCT(((T_DataComboFile[Implementation programme]=$G$3)*(T_DataComboFile[Econ3]=$G59))*T_DataComboFile[2021/22 Baseline]*$B$3)","v":0},{"$f":"SUMPRODUCT(((T_DataComboFile[Implementation programme]=$G$3)*(T_DataComboFile[Econ3]=$G59))*T_DataComboFile[2021/22 Reduction]*$B$3)","v":0},{"$f":"SUMPRODUCT(((T_DataComboFile[Implementation programme]=$G$3)*(T_DataComboFile[Econ3]=$G59))*T_DataComboFile[2021/22 Increase]*$B$3)","v":0},0,{"$f":"SUMPRODUCT(((T_DataComboFile[Implementation programme]=$G$3)*(T_DataComboFile[Econ3]=$G59))*T_DataComboFile[2022/23 Baseline]*$B$3)","v":0},{"$f":"SUMPRODUCT(((T_DataComboFile[Implementation programme]=$G$3)*(T_DataComboFile[Econ3]=$G59))*T_DataComboFile[2022/23 Reduction]*$B$3)","v":0},{"$f":"SUMPRODUCT(((T_DataComboFile[Implementation programme]=$G$3)*(T_DataComboFile[Econ3]=$G59))*T_DataComboFile[2022/23 Increase]*$B$3)","v":0},0,{"$f":"SUMPRODUCT(((T_DataComboFile[Implementation programme]=$G$3)*(T_DataComboFile[Econ3]=$G59))*T_DataComboFile[2023/24 Baseline]*$B$3)","v":0},{"$f":"SUMPRODUCT(((T_DataComboFile[Implementation programme]=$G$3)*(T_DataComboFile[Econ3]=$G59))*T_DataComboFile[2023/24 Reduction]*$B$3)","v":0},{"$f":"SUMPRODUCT(((T_DataComboFile[Implementation programme]=$G$3)*(T_DataComboFile[Econ3]=$G59))*T_DataComboFile[2023/24 Increase]*$B$3)","v":0},0]
[0,0,null,null,null,null,"Specialised military assets",{"$f":"SUMPRODUCT(((T_DataComboFile[Implementation programme]=$G$3)*(T_DataComboFile[Econ3]=$G60))*T_DataComboFile[2017/18]*$B$3)","v":0},{"$f":"SUMPRODUCT(((T_DataComboFile[Implementation programme]=$G$3)*(T_DataComboFile[Econ3]=$G60))*T_DataComboFile[2018/19]*$B$3)","v":0},{"$f":"SUMPRODUCT(((T_DataComboFile[Implementation programme]=$G$3)*(T_DataComboFile[Econ3]=$G60))*T_DataComboFile[2019/20 Revised estimate]*$B$3)","v":0},{"$f":"SUMPRODUCT(((T_DataComboFile[Implementation programme]=$G$3)*(T_DataComboFile[Econ3]=$G60))*T_DataComboFile[2020/21 Revised]*$B$3)","v":0},{"$f":"SUMPRODUCT(((T_DataComboFile[Implementation programme]=$G$3)*(T_DataComboFile[Econ3]=$G60))*T_DataComboFile[2021/22 Baseline]*$B$3)","v":0},{"$f":"SUMPRODUCT(((T_DataComboFile[Implementation programme]=$G$3)*(T_DataComboFile[Econ3]=$G60))*T_DataComboFile[2021/22 Reduction]*$B$3)","v":0},{"$f":"SUMPRODUCT(((T_DataComboFile[Implementation programme]=$G$3)*(T_DataComboFile[Econ3]=$G60))*T_DataComboFile[2021/22 Increase]*$B$3)","v":0},0,{"$f":"SUMPRODUCT(((T_DataComboFile[Implementation programme]=$G$3)*(T_DataComboFile[Econ3]=$G60))*T_DataComboFile[2022/23 Baseline]*$B$3)","v":0},{"$f":"SUMPRODUCT(((T_DataComboFile[Implementation programme]=$G$3)*(T_DataComboFile[Econ3]=$G60))*T_DataComboFile[2022/23 Reduction]*$B$3)","v":0},{"$f":"SUMPRODUCT(((T_DataComboFile[Implementation programme]=$G$3)*(T_DataComboFile[Econ3]=$G60))*T_DataComboFile[2022/23 Increase]*$B$3)","v":0},0,{"$f":"SUMPRODUCT(((T_DataComboFile[Implementation programme]=$G$3)*(T_DataComboFile[Econ3]=$G60))*T_DataComboFile[2023/24 Baseline]*$B$3)","v":0},{"$f":"SUMPRODUCT(((T_DataComboFile[Implementation programme]=$G$3)*(T_DataComboFile[Econ3]=$G60))*T_DataComboFile[2023/24 Reduction]*$B$3)","v":0},{"$f":"SUMPRODUCT(((T_DataComboFile[Implementation programme]=$G$3)*(T_DataComboFile[Econ3]=$G60))*T_DataComboFile[2023/24 Increase]*$B$3)","v":0},0]
[0,0,null,null,null,null,"Biological assets",{"$f":"SUMPRODUCT(((T_DataComboFile[Implementation programme]=$G$3)*(T_DataComboFile[Econ3]=$G61))*T_DataComboFile[2017/18]*$B$3)","v":0},{"$f":"SUMPRODUCT(((T_DataComboFile[Implementation programme]=$G$3)*(T_DataComboFile[Econ3]=$G61))*T_DataComboFile[2018/19]*$B$3)","v":0},{"$f":"SUMPRODUCT(((T_DataComboFile[Implementation programme]=$G$3)*(T_DataComboFile[Econ3]=$G61))*T_DataComboFile[2019/20 Revised estimate]*$B$3)","v":0},{"$f":"SUMPRODUCT(((T_DataComboFile[Implementation programme]=$G$3)*(T_DataComboFile[Econ3]=$G61))*T_DataComboFile[2020/21 Revised]*$B$3)","v":0},{"$f":"SUMPRODUCT(((T_DataComboFile[Implementation programme]=$G$3)*(T_DataComboFile[Econ3]=$G61))*T_DataComboFile[2021/22 Baseline]*$B$3)","v":0},{"$f":"SUMPRODUCT(((T_DataComboFile[Implementation programme]=$G$3)*(T_DataComboFile[Econ3]=$G61))*T_DataComboFile[2021/22 Reduction]*$B$3)","v":0},{"$f":"SUMPRODUCT(((T_DataComboFile[Implementation programme]=$G$3)*(T_DataComboFile[Econ3]=$G61))*T_DataComboFile[2021/22 Increase]*$B$3)","v":0},0,{"$f":"SUMPRODUCT(((T_DataComboFile[Implementation programme]=$G$3)*(T_DataComboFile[Econ3]=$G61))*T_DataComboFile[2022/23 Baseline]*$B$3)","v":0},{"$f":"SUMPRODUCT(((T_DataComboFile[Implementation programme]=$G$3)*(T_DataComboFile[Econ3]=$G61))*T_DataComboFile[2022/23 Reduction]*$B$3)","v":0},{"$f":"SUMPRODUCT(((T_DataComboFile[Implementation programme]=$G$3)*(T_DataComboFile[Econ3]=$G61))*T_DataComboFile[2022/23 Increase]*$B$3)","v":0},0,{"$f":"SUMPRODUCT(((T_DataComboFile[Implementation programme]=$G$3)*(T_DataComboFile[Econ3]=$G61))*T_DataComboFile[2023/24 Baseline]*$B$3)","v":0},{"$f":"SUMPRODUCT(((T_DataComboFile[Implementation programme]=$G$3)*(T_DataComboFile[Econ3]=$G61))*T_DataComboFile[2023/24 Reduction]*$B$3)","v":0},{"$f":"SUMPRODUCT(((T_DataComboFile[Implementation programme]=$G$3)*(T_DataComboFile[Econ3]=$G61))*T_DataComboFile[2023/24 Increase]*$B$3)","v":0},0]
[0,0,null,null,null,null,"Land and sub-soil assets",{"$f":"SUMPRODUCT(((T_DataComboFile[Implementation programme]=$G$3)*(T_DataComboFile[Econ3]=$G62))*T_DataComboFile[2017/18]*$B$3)","v":0},{"$f":"SUMPRODUCT(((T_DataComboFile[Implementation programme]=$G$3)*(T_DataComboFile[Econ3]=$G62))*T_DataComboFile[2018/19]*$B$3)","v":0},{"$f":"SUMPRODUCT(((T_DataComboFile[Implementation programme]=$G$3)*(T_DataComboFile[Econ3]=$G62))*T_DataComboFile[2019/20 Revised estimate]*$B$3)","v":0},{"$f":"SUMPRODUCT(((T_DataComboFile[Implementation programme]=$G$3)*(T_DataComboFile[Econ3]=$G62))*T_DataComboFile[2020/21 Revised]*$B$3)","v":0},{"$f":"SUMPRODUCT(((T_DataComboFile[Implementation programme]=$G$3)*(T_DataComboFile[Econ3]=$G62))*T_DataComboFile[2021/22 Baseline]*$B$3)","v":0},{"$f":"SUMPRODUCT(((T_DataComboFile[Implementation programme]=$G$3)*(T_DataComboFile[Econ3]=$G62))*T_DataComboFile[2021/22 Reduction]*$B$3)","v":0},{"$f":"SUMPRODUCT(((T_DataComboFile[Implementation programme]=$G$3)*(T_DataComboFile[Econ3]=$G62))*T_DataComboFile[2021/22 Increase]*$B$3)","v":0},0,{"$f":"SUMPRODUCT(((T_DataComboFile[Implementation programme]=$G$3)*(T_DataComboFile[Econ3]=$G62))*T_DataComboFile[2022/23 Baseline]*$B$3)","v":0},{"$f":"SUMPRODUCT(((T_DataComboFile[Implementation programme]=$G$3)*(T_DataComboFile[Econ3]=$G62))*T_DataComboFile[2022/23 Reduction]*$B$3)","v":0},{"$f":"SUMPRODUCT(((T_DataComboFile[Implementation programme]=$G$3)*(T_DataComboFile[Econ3]=$G62))*T_DataComboFile[2022/23 Increase]*$B$3)","v":0},0,{"$f":"SUMPRODUCT(((T_DataComboFile[Implementation programme]=$G$3)*(T_DataComboFile[Econ3]=$G62))*T_DataComboFile[2023/24 Baseline]*$B$3)","v":0},{"$f":"SUMPRODUCT(((T_DataComboFile[Implementation programme]=$G$3)*(T_DataComboFile[Econ3]=$G62))*T_DataComboFile[2023/24 Reduction]*$B$3)","v":0},{"$f":"SUMPRODUCT(((T_DataComboFile[Implementation programme]=$G$3)*(T_DataComboFile[Econ3]=$G62))*T_DataComboFile[2023/24 Increase]*$B$3)","v":0},0]
[0,0,null,null,null,null,"Software and other intangible assets",{"$f":"SUMPRODUCT(((T_DataComboFile[Implementation programme]=$G$3)*(T_DataComboFile[Econ3]=$G63))*T_DataComboFile[2017/18]*$B$3)","v":0},{"$f":"SUMPRODUCT(((T_DataComboFile[Implementation programme]=$G$3)*(T_DataComboFile[Econ3]=$G63))*T_DataComboFile[2018/19]*$B$3)","v":0},{"$f":"SUMPRODUCT(((T_DataComboFile[Implementation programme]=$G$3)*(T_DataComboFile[Econ3]=$G63))*T_DataComboFile[2019/20 Revised estimate]*$B$3)","v":0},{"$f":"SUMPRODUCT(((T_DataComboFile[Implementation programme]=$G$3)*(T_DataComboFile[Econ3]=$G63))*T_DataComboFile[2020/21 Revised]*$B$3)","v":0},{"$f":"SUMPRODUCT(((T_DataComboFile[Implementation programme]=$G$3)*(T_DataComboFile[Econ3]=$G63))*T_DataComboFile[2021/22 Baseline]*$B$3)","v":0},{"$f":"SUMPRODUCT(((T_DataComboFile[Implementation programme]=$G$3)*(T_DataComboFile[Econ3]=$G63))*T_DataComboFile[2021/22 Reduction]*$B$3)","v":0},{"$f":"SUMPRODUCT(((T_DataComboFile[Implementation programme]=$G$3)*(T_DataComboFile[Econ3]=$G63))*T_DataComboFile[2021/22 Increase]*$B$3)","v":0},0,{"$f":"SUMPRODUCT(((T_DataComboFile[Implementation programme]=$G$3)*(T_DataComboFile[Econ3]=$G63))*T_DataComboFile[2022/23 Baseline]*$B$3)","v":0},{"$f":"SUMPRODUCT(((T_DataComboFile[Implementation programme]=$G$3)*(T_DataComboFile[Econ3]=$G63))*T_DataComboFile[2022/23 Reduction]*$B$3)","v":0},{"$f":"SUMPRODUCT(((T_DataComboFile[Implementation programme]=$G$3)*(T_DataComboFile[Econ3]=$G63))*T_DataComboFile[2022/23 Increase]*$B$3)","v":0},0,{"$f":"SUMPRODUCT(((T_DataComboFile[Implementation programme]=$G$3)*(T_DataComboFile[Econ3]=$G63))*T_DataComboFile[2023/24 Baseline]*$B$3)","v":0},{"$f":"SUMPRODUCT(((T_DataComboFile[Implementation programme]=$G$3)*(T_DataComboFile[Econ3]=$G63))*T_DataComboFile[2023/24 Reduction]*$B$3)","v":0},{"$f":"SUMPRODUCT(((T_DataComboFile[Implementation programme]=$G$3)*(T_DataComboFile[Econ3]=$G63))*T_DataComboFile[2023/24 Increase]*$B$3)","v":0},0]
[0,0,null,null,null,null,"Payments for financial assets",{"$f":"SUMPRODUCT(((T_DataComboFile[Implementation programme]=$G$3)*(T_DataComboFile[Econ3]=$G64))*T_DataComboFile[2017/18]*$B$3)","v":0},{"$f":"SUMPRODUCT(((T_DataComboFile[Implementation programme]=$G$3)*(T_DataComboFile[Econ3]=$G64))*T_DataComboFile[2018/19]*$B$3)","v":0},{"$f":"SUMPRODUCT(((T_DataComboFile[Implementation programme]=$G$3)*(T_DataComboFile[Econ3]=$G64))*T_DataComboFile[2019/20 Revised estimate]*$B$3)","v":0},{"$f":"SUMPRODUCT(((T_DataComboFile[Implementation programme]=$G$3)*(T_DataComboFile[Econ3]=$G64))*T_DataComboFile[2020/21 Revised]*$B$3)","v":0},{"$f":"SUMPRODUCT(((T_DataComboFile[Implementation programme]=$G$3)*(T_DataComboFile[Econ3]=$G64))*T_DataComboFile[2021/22 Baseline]*$B$3)","v":0},{"$f":"SUMPRODUCT(((T_DataComboFile[Implementation programme]=$G$3)*(T_DataComboFile[Econ3]=$G64))*T_DataComboFile[2021/22 Reduction]*$B$3)","v":0},{"$f":"SUMPRODUCT(((T_DataComboFile[Implementation programme]=$G$3)*(T_DataComboFile[Econ3]=$G64))*T_DataComboFile[2021/22 Increase]*$B$3)","v":0},0,{"$f":"SUMPRODUCT(((T_DataComboFile[Implementation programme]=$G$3)*(T_DataComboFile[Econ3]=$G64))*T_DataComboFile[2022/23 Baseline]*$B$3)","v":0},{"$f":"SUMPRODUCT(((T_DataComboFile[Implementation programme]=$G$3)*(T_DataComboFile[Econ3]=$G64))*T_DataComboFile[2022/23 Reduction]*$B$3)","v":0},{"$f":"SUMPRODUCT(((T_DataComboFile[Implementation programme]=$G$3)*(T_DataComboFile[Econ3]=$G64))*T_DataComboFile[2022/23 Increase]*$B$3)","v":0},0,{"$f":"SUMPRODUCT(((T_DataComboFile[Implementation programme]=$G$3)*(T_DataComboFile[Econ3]=$G64))*T_DataComboFile[2023/24 Baseline]*$B$3)","v":0},{"$f":"SUMPRODUCT(((T_DataComboFile[Implementation programme]=$G$3)*(T_DataComboFile[Econ3]=$G64))*T_DataComboFile[2023/24 Reduction]*$B$3)","v":0},{"$f":"SUMPRODUCT(((T_DataComboFile[Implementation programme]=$G$3)*(T_DataComboFile[Econ3]=$G64))*T_DataComboFile[2023/24 Increase]*$B$3)","v":0},0]
[0,0,null,null,null,null,"Total",{"$f":"SUM(H32,H36,H52,H64)","v":0},0,0,0,0,0,0,0,0,0,0,0,0,0,0,0]
[]
[]
[]
[]
[]
[null,null,null,null,null,null,{"$f":"\"IMPACT OF ADJUSTMENTS: \" &UPPER($G$3)","v":"IMPACT OF ADJUSTMENTS: "}]
[]
[null,null,null,null,null,1,"Summary of impact on service delivery due to adjustments"]
[{"$f":"$G$3","v":0},1]
[0,1]
[0,1]
[0,1]
[0,1]
[0,1]
[0,1]
[0,1]
[0,1]
[0,1]
[0,1]
[0,1]
[0,1]
[0,1]
[0,1]
[]
[]
[]
[]
[]
[null,null,null,null,null,2,"Impact of adjustments on performance indicators"]
[{"$f":"$G$3","v":0},2,null,null,null,null,null,"2021/22",null,null,"2022/23",null,null,"2023/24",null,null," Comment",null,null,null,null,"Related MTSF Priority"]
[0,2,null,null,null,null,"Performance indicator","Original target","Revised target","Change","Original target","Revised target","Change","Original target","Revised target","Change"]
[0,2]
[0,2]
[0,2]
[0,2]
[0,2]
[0,2]
[0,2]
[0,2]
[0,2]
[0,2]
[0,2]
[0,2]
[0,2]
[0,2]
[0,2]
[]
[]
[]
[]
[]
[null,null,null,null,null,3,"Impact of adjustments on infrastructure projects"]
[{"$f":"$G$3","v":0},3,null,null,null,null,null,"2021/22",null,null,"2022/23",null,null,"2023/24",null,null," Comment"]
[0,3,null,null,null,null,"Project name","Original amount","Revised amount","Change","Original amount","Revised amount","Change","Original amount","Revised amount","Change"]
[0,3,null,null,null,null,null,null,null,{"$f":"I120-H120","v":0},null,null,{"$f":"L120-K120","v":0},null,null,{"$f":"O120-N120","v":0}]
[0,3,null,null,null,null,null,null,null,0,null,null,0,null,null,0]
[0,3,null,null,null,null,null,null,null,0,null,null,0,null,null,0]
[0,3,null,null,null,null,null,null,null,0,null,null,0,null,null,0]
[0,3,null,null,null,null,null,null,null,0,null,null,0,null,null,0]
[0,3,null,null,null,null,null,null,null,0,null,null,0,null,null,0]
[0,3,null,null,null,null,null,null,null,0,null,null,0,null,null,0]
[0,3,null,null,null,null,null,null,null,0,null,null,0,null,null,0]
[0,3,null,null,null,null,null,null,null,0,null,null,0,null,null,0]
[0,3,null,null,null,null,null,null,null,0,null,null,0,null,null,0]
[0,3,null,null,null,null,null,null,null,0,null,null,0,null,null,0]
[0,3,null,null,null,null,null,null,null,0,null,null,0,null,null,0]
[0,3,null,null,null,null,null,null,null,0,null,null,0,null,null,0]
[0,3,null,null,null,null,null,null,null,0,null,null,0,null,null,0]
[0,3,null,null,null,null,null,null,null,0,null,null,0,null,null,0]
[0,3,null,null,null,null,"Total",{"$f":"SUM(H120:H134)","v":0},0,0,0,0,0,0,0,0]
[]
[]
[]
[]
[]
[null,null,null,null,null,4,"Impact of adjustments on personnel headcount numbers"]
[{"$f":"$G$3","v":0},4,null,null,null,null,null,"2021/22",null,null,"2022/23",null,null,"2023/24",null,null," Comment"]
[0,4,null,null,null,null,"Salary level","Original number","Revised number","Change","Original number","Revised number","Change","Original number","Revised number","Change"]
[0,4,null,null,null,null,1,null,null,{"$f":"I144-H144","v":0},null,null,{"$f":"L144-K144","v":0},null,null,{"$f":"O144-N144","v":0}]
[0,4,null,null,null,null,2,null,null,0,null,null,0,null,null,0]
[0,4,null,null,null,null,3,null,null,0,null,null,0,null,null,0]
[0,4,null,null,null,null,4,null,null,0,null,null,0,null,null,0]
[0,4,null,null,null,null,5,null,null,0,null,null,0,null,null,0]
[0,4,null,null,null,null,6,null,null,0,null,null,0,null,null,0]
[0,4,null,null,null,null,7,null,null,0,null,null,0,null,null,0]
[0,4,null,null,null,null,8,null,null,0,null,null,0,null,null,0]
[0,4,null,null,null,null,9,null,null,0,null,null,0,null,null,0]
[0,4,null,null,null,null,10,null,null,0,null,null,0,null,null,0]
[0,4,null,null,null,null,11,null,null,0,null,null,0,null,null,0]
[0,4,null,null,null,null,12,null,null,0,null,null,0,null,null,0]
[0,4,null,null,null,null,13,null,null,0,null,null,0,null,null,0]
[0,4,null,null,null,null,14,null,null,0,null,null,0,null,null,0]
[0,4,null,null,null,null,15,null,null,0,null,null,0,null,null,0]
[0,4,null,null,null,null,16,null,null,0,null,null,0,null,null,0]
[0,4,null,null,null,null,"Other",null,null,0,null,null,0,null,null,0]
[0,4,null,null,null,null,"Other",null,null,0,null,null,0,null,null,0]
[0,4,null,null,null,null,"Other",null,null,0,null,null,0,null,null,0]
[0,4,null,null,null,null,"Other",null,null,0,null,null,0,null,null,0]
[0,4,null,null,null,null,"Total",{"$f":"SUM(H144:H163)","v":0},0,0,0,0,0,0,0,0]
[]
[]
[]
[]
[]
[null,null,null,null,null,5,"Impact of adjustments by economic classification"]
[{"$f":"$G$3","v":0},5,null,null,null,null,null,"2021/22",null,null,"2022/23",null,null,"2023/24",null,null," Comment"]
[0,5,null,null,null,null,"Salary level","Original number","Revised number","Change","Original number","Revised number","Change","Original number","Revised number","Change"]
[0,5,null,null,null,null,"Current payments",{"$f":"SUM(H174,H175,H182)","v":0},{"$f":"SUM(I174,I175,I182)","v":0},{"$f":"I173-H173","v":0},{"$f":"SUM(K174,K175,K182)","v":0},{"$f":"SUM(L174,L175,L182)","v":0},{"$f":"L173-K173","v":0},{"$f":"SUM(N174,N175,N182)","v":0},{"$f":"SUM(O174,O175,O182)","v":0},{"$f":"O173-N173","v":0}]
[0,5,null,null,null,null,"Compensation of employees",{"$f":"SUMPRODUCT(((T_DataComboFile[Implementation programme]=$G$3)*(T_DataComboFile[Econ3]=$G174))*T_DataComboFile[2021/22 Baseline]*$B$3)","v":0},{"$f":"SUMPRODUCT(((T_DataComboFile[Implementation programme]=$G$3)*(T_DataComboFile[Econ3]=$G174))*T_DataComboFile[2021/22 Revised baseline]*$B$3)","v":0},0,{"$f":"SUMPRODUCT(((T_DataComboFile[Implementation programme]=$G$3)*(T_DataComboFile[Econ3]=$G174))*T_DataComboFile[2022/23 Baseline]*$B$3)","v":0},{"$f":"SUMPRODUCT(((T_DataComboFile[Implementation programme]=$G$3)*(T_DataComboFile[Econ3]=$G174))*T_DataComboFile[2022/23 Revised baseline]*$B$3)","v":0},0,{"$f":"SUMPRODUCT(((T_DataComboFile[Implementation programme]=$G$3)*(T_DataComboFile[Econ3]=$G174))*T_DataComboFile[2023/24 Baseline]*$B$3)","v":0},{"$f":"SUMPRODUCT(((T_DataComboFile[Implementation programme]=$G$3)*(T_DataComboFile[Econ3]=$G174))*T_DataComboFile[2023/24 Revised baseline]*$B$3)","v":0},0]
[0,5,null,null,null,null,"Goods and services",{"$f":"SUMPRODUCT(((T_DataComboFile[Implementation programme]=$G$3)*(T_DataComboFile[Econ3]=$G175))*T_DataComboFile[2021/22 Baseline]*$B$3)","v":0},{"$f":"SUMPRODUCT(((T_DataComboFile[Implementation programme]=$G$3)*(T_DataComboFile[Econ3]=$G175))*T_DataComboFile[2021/22 Revised baseline]*$B$3)","v":0},0,{"$f":"SUMPRODUCT(((T_DataComboFile[Implementation programme]=$G$3)*(T_DataComboFile[Econ3]=$G175))*T_DataComboFile[2022/23 Baseline]*$B$3)","v":0},{"$f":"SUMPRODUCT(((T_DataComboFile[Implementation programme]=$G$3)*(T_DataComboFile[Econ3]=$G175))*T_DataComboFile[2022/23 Revised baseline]*$B$3)","v":0},0,{"$f":"SUMPRODUCT(((T_DataComboFile[Implementation programme]=$G$3)*(T_DataComboFile[Econ3]=$G175))*T_DataComboFile[2023/24 Baseline]*$B$3)","v":0},{"$f":"SUMPRODUCT(((T_DataComboFile[Implementation programme]=$G$3)*(T_DataComboFile[Econ3]=$G175))*T_DataComboFile[2023/24 Revised baseline]*$B$3)","v":0},0]
[0,50,null,null,null,null,"of which:"]
[0,51,null,null,null,null,null,null,null,{"$f":"I177-H177","v":0},null,null,{"$f":"L177-K177","v":0},null,null,0]
[0,51,null,null,null,null,null,null,null,0,null,null,0,null,null,0]
[0,51,null,null,null,null,null,null,null,0,null,null,0,null,null,0]
[0,51,null,null,null,null,null,null,null,0,null,null,0,null,null,0]
[0,51,null,null,null,null,null,null,null,0,null,null,0,null,null,0]
[0,5,null,null,null,null,"Interest and rent on land",{"$f":"SUMPRODUCT(((T_DataComboFile[Implementation programme]=$G$3)*(T_DataComboFile[Econ3]=$G182))*T_DataComboFile[2021/22 Baseline]*$B$3)","v":0},{"$f":"SUMPRODUCT(((T_DataComboFile[Implementation programme]=$G$3)*(T_DataComboFile[Econ3]=$G182))*T_DataComboFile[2021/22 Revised baseline]*$B$3)","v":0},0,{"$f":"SUMPRODUCT(((T_DataComboFile[Implementation programme]=$G$3)*(T_DataComboFile[Econ3]=$G182))*T_DataComboFile[2022/23 Baseline]*$B$3)","v":0},{"$f":"SUMPRODUCT(((T_DataComboFile[Implementation programme]=$G$3)*(T_DataComboFile[Econ3]=$G182))*T_DataComboFile[2022/23 Revised baseline]*$B$3)","v":0},0,{"$f":"SUMPRODUCT(((T_DataComboFile[Implementation programme]=$G$3)*(T_DataComboFile[Econ3]=$G182))*T_DataComboFile[2023/24 Baseline]*$B$3)","v":0},{"$f":"SUMPRODUCT(((T_DataComboFile[Implementation programme]=$G$3)*(T_DataComboFile[Econ3]=$G182))*T_DataComboFile[2023/24 Revised baseline]*$B$3)","v":0},0]
[0,5,null,null,null,null,"Transfers and subsidies",{"$f":"SUM(H184,H185,H197,H198,H199,H206,H207)","v":0},{"$f":"SUM(I184,I185,I197,I198,I199,I206,I207)","v":0},0,{"$f":"SUM(K184,K185,K197,K198,K199,K206,K207)","v":0},0,0,{"$f":"SUM(N184,N185,N197,N198,N199,N206,N207)","v":0},0,0]
[0,5,null,null,null,null,"Provinces and municipalities",{"$f":"SUMPRODUCT(((T_DataComboFile[Implementation programme]=$G$3)*(T_DataComboFile[Econ3]=$G184))*T_DataComboFile[2021/22 Baseline]*$B$3)","v":0},{"$f":"SUMPRODUCT(((T_DataComboFile[Implementation programme]=$G$3)*(T_DataComboFile[Econ3]=$G184))*T_DataComboFile[2021/22 Revised baseline]*$B$3)","v":0},0,{"$f":"SUMPRODUCT(((T_DataComboFile[Implementation programme]=$G$3)*(T_DataComboFile[Econ3]=$G184))*T_DataComboFile[2022/23 Baseline]*$B$3)","v":0},{"$f":"SUMPRODUCT(((T_DataComboFile[Implementation programme]=$G$3)*(T_DataComboFile[Econ3]=$G184))*T_DataComboFile[2022/23 Revised baseline]*$B$3)","v":0},0,{"$f":"SUMPRODUCT(((T_DataComboFile[Implementation programme]=$G$3)*(T_DataComboFile[Econ3]=$G184))*T_DataComboFile[2023/24 Baseline]*$B$3)","v":0},{"$f":"SUMPRODUCT(((T_DataComboFile[Implementation programme]=$G$3)*(T_DataComboFile[Econ3]=$G184))*T_DataComboFile[2023/24 Revised baseline]*$B$3)","v":0},0]
[0,5,null,null,null,null,"Departmental agencies and accounts",{"$f":"SUMPRODUCT(((T_DataComboFile[Implementation programme]=$G$3)*(T_DataComboFile[Econ3]=$G185))*T_DataComboFile[2021/22 Baseline]*$B$3)","v":0},{"$f":"SUMPRODUCT(((T_DataComboFile[Implementation programme]=$G$3)*(T_DataComboFile[Econ3]=$G185))*T_DataComboFile[2021/22 Revised baseline]*$B$3)","v":0},0,{"$f":"SUMPRODUCT(((T_DataComboFile[Implementation programme]=$G$3)*(T_DataComboFile[Econ3]=$G185))*T_DataComboFile[2022/23 Baseline]*$B$3)","v":0},{"$f":"SUMPRODUCT(((T_DataComboFile[Implementation programme]=$G$3)*(T_DataComboFile[Econ3]=$G185))*T_DataComboFile[2022/23 Revised baseline]*$B$3)","v":0},0,{"$f":"SUMPRODUCT(((T_DataComboFile[Implementation programme]=$G$3)*(T_DataComboFile[Econ3]=$G185))*T_DataComboFile[2023/24 Baseline]*$B$3)","v":0},{"$f":"SUMPRODUCT(((T_DataComboFile[Implementation programme]=$G$3)*(T_DataComboFile[Econ3]=$G185))*T_DataComboFile[2023/24 Revised baseline]*$B$3)","v":0},0]
[0,50,null,null,null,null,"of which:"]
[0,52,null,null,null,null,null,null,null,{"$f":"I187-H187","v":0},null,null,{"$f":"L187-K187","v":0},null,null,{"$f":"O187-N187","v":0}]
[0,52,null,null,null,null,null,null,null,0,null,null,0,null,null,0]
[0,52,null,null,null,null,null,null,null,0,null,null,0,null,null,0]
[0,52,null,null,null,null,null,null,null,0,null,null,0,null,null,0]
[0,52,null,null,null,null,null,null,null,0,null,null,0,null,null,0]
[0,52,null,null,null,null,null,null,null,0,null,null,0,null,null,0]
[0,52,null,null,null,null,null,null,null,0,null,null,0,null,null,0]
[0,52,null,null,null,null,null,null,null,0,null,null,0,null,null,0]
[0,52,null,null,null,null,null,null,null,0,null,null,0,null,null,0]
[0,52,null,null,null,null,null,null,null,0,null,null,0,null,null,0]
[0,5,null,null,null,null,"Higher education institutions",{"$f":"SUMPRODUCT(((T_DataComboFile[Implementation programme]=$G$3)*(T_DataComboFile[Econ3]=$G197))*T_DataComboFile[2021/22 Baseline]*$B$3)","v":0},{"$f":"SUMPRODUCT(((T_DataComboFile[Implementation programme]=$G$3)*(T_DataComboFile[Econ3]=$G197))*T_DataComboFile[2021/22 Revised baseline]*$B$3)","v":0},0,{"$f":"SUMPRODUCT(((T_DataComboFile[Implementation programme]=$G$3)*(T_DataComboFile[Econ3]=$G197))*T_DataComboFile[2022/23 Baseline]*$B$3)","v":0},{"$f":"SUMPRODUCT(((T_DataComboFile[Implementation programme]=$G$3)*(T_DataComboFile[Econ3]=$G197))*T_DataComboFile[2022/23 Revised baseline]*$B$3)","v":0},0,{"$f":"SUMPRODUCT(((T_DataComboFile[Implementation programme]=$G$3)*(T_DataComboFile[Econ3]=$G197))*T_DataComboFile[2023/24 Baseline]*$B$3)","v":0},{"$f":"SUMPRODUCT(((T_DataComboFile[Implementation programme]=$G$3)*(T_DataComboFile[Econ3]=$G197))*T_DataComboFile[2023/24 Revised baseline]*$B$3)","v":0},0]
[0,5,null,null,null,null,"Foreign governments and international organisations",{"$f":"SUMPRODUCT(((T_DataComboFile[Implementation programme]=$G$3)*(T_DataComboFile[Econ3]=$G198))*T_DataComboFile[2021/22 Baseline]*$B$3)","v":0},{"$f":"SUMPRODUCT(((T_DataComboFile[Implementation programme]=$G$3)*(T_DataComboFile[Econ3]=$G198))*T_DataComboFile[2021/22 Revised baseline]*$B$3)","v":0},0,{"$f":"SUMPRODUCT(((T_DataComboFile[Implementation programme]=$G$3)*(T_DataComboFile[Econ3]=$G198))*T_DataComboFile[2022/23 Baseline]*$B$3)","v":0},{"$f":"SUMPRODUCT(((T_DataComboFile[Implementation programme]=$G$3)*(T_DataComboFile[Econ3]=$G198))*T_DataComboFile[2022/23 Revised baseline]*$B$3)","v":0},0,{"$f":"SUMPRODUCT(((T_DataComboFile[Implementation programme]=$G$3)*(T_DataComboFile[Econ3]=$G198))*T_DataComboFile[2023/24 Baseline]*$B$3)","v":0},{"$f":"SUMPRODUCT(((T_DataComboFile[Implementation programme]=$G$3)*(T_DataComboFile[Econ3]=$G198))*T_DataComboFile[2023/24 Revised baseline]*$B$3)","v":0},0]
[0,5,null,null,null,null,"Public corporations and private enterprises",{"$f":"SUMPRODUCT(((T_DataComboFile[Implementation programme]=$G$3)*(T_DataComboFile[Econ3]=$G199))*T_DataComboFile[2021/22 Baseline]*$B$3)","v":0},{"$f":"SUMPRODUCT(((T_DataComboFile[Implementation programme]=$G$3)*(T_DataComboFile[Econ3]=$G199))*T_DataComboFile[2021/22 Revised baseline]*$B$3)","v":0},0,{"$f":"SUMPRODUCT(((T_DataComboFile[Implementation programme]=$G$3)*(T_DataComboFile[Econ3]=$G199))*T_DataComboFile[2022/23 Baseline]*$B$3)","v":0},{"$f":"SUMPRODUCT(((T_DataComboFile[Implementation programme]=$G$3)*(T_DataComboFile[Econ3]=$G199))*T_DataComboFile[2022/23 Revised baseline]*$B$3)","v":0},0,{"$f":"SUMPRODUCT(((T_DataComboFile[Implementation programme]=$G$3)*(T_DataComboFile[Econ3]=$G199))*T_DataComboFile[2023/24 Baseline]*$B$3)","v":0},{"$f":"SUMPRODUCT(((T_DataComboFile[Implementation programme]=$G$3)*(T_DataComboFile[Econ3]=$G199))*T_DataComboFile[2023/24 Revised baseline]*$B$3)","v":0},0]
[0,50,null,null,null,null,"of which:"]
[0,53,null,null,null,null,null,null,null,{"$f":"I201-H201","v":0},null,null,{"$f":"L201-K201","v":0},null,null,{"$f":"O201-N201","v":0}]
[0,53,null,null,null,null,null,null,null,0,null,null,0,null,null,0]
[0,53,null,null,null,null,null,null,null,0,null,null,0,null,null,0]
[0,53,null,null,null,null,null,null,null,0,null,null,0,null,null,0]
[0,53,null,null,null,null,null,null,null,0,null,null,0,null,null,0]
[0,5,null,null,null,null,"Non-profit institutions",{"$f":"SUMPRODUCT(((T_DataComboFile[Implementation programme]=$G$3)*(T_DataComboFile[Econ3]=$G206))*T_DataComboFile[2021/22 Baseline]*$B$3)","v":0},{"$f":"SUMPRODUCT(((T_DataComboFile[Implementation programme]=$G$3)*(T_DataComboFile[Econ3]=$G206))*T_DataComboFile[2021/22 Revised baseline]*$B$3)","v":0},0,{"$f":"SUMPRODUCT(((T_DataComboFile[Implementation programme]=$G$3)*(T_DataComboFile[Econ3]=$G206))*T_DataComboFile[2022/23 Baseline]*$B$3)","v":0},{"$f":"SUMPRODUCT(((T_DataComboFile[Implementation programme]=$G$3)*(T_DataComboFile[Econ3]=$G206))*T_DataComboFile[2022/23 Revised baseline]*$B$3)","v":0},0,{"$f":"SUMPRODUCT(((T_DataComboFile[Implementation programme]=$G$3)*(T_DataComboFile[Econ3]=$G206))*T_DataComboFile[2023/24 Baseline]*$B$3)","v":0},{"$f":"SUMPRODUCT(((T_DataComboFile[Implementation programme]=$G$3)*(T_DataComboFile[Econ3]=$G206))*T_DataComboFile[2023/24 Revised baseline]*$B$3)","v":0},0]
[0,5,null,null,null,null,"Households",{"$f":"SUMPRODUCT(((T_DataComboFile[Implementation programme]=$G$3)*(T_DataComboFile[Econ3]=$G207))*T_DataComboFile[2021/22 Baseline]*$B$3)","v":0},{"$f":"SUMPRODUCT(((T_DataComboFile[Implementation programme]=$G$3)*(T_DataComboFile[Econ3]=$G207))*T_DataComboFile[2021/22 Revised baseline]*$B$3)","v":0},0,{"$f":"SUMPRODUCT(((T_DataComboFile[Implementation programme]=$G$3)*(T_DataComboFile[Econ3]=$G207))*T_DataComboFile[2022/23 Baseline]*$B$3)","v":0},{"$f":"SUMPRODUCT(((T_DataComboFile[Implementation programme]=$G$3)*(T_DataComboFile[Econ3]=$G207))*T_DataComboFile[2022/23 Revised baseline]*$B$3)","v":0},0,{"$f":"SUMPRODUCT(((T_DataComboFile[Implementation programme]=$G$3)*(T_DataComboFile[Econ3]=$G207))*T_DataComboFile[2023/24 Baseline]*$B$3)","v":0},{"$f":"SUMPRODUCT(((T_DataComboFile[Implementation programme]=$G$3)*(T_DataComboFile[Econ3]=$G207))*T_DataComboFile[2023/24 Revised baseline]*$B$3)","v":0},0]
[0,5,null,null,null,null,"Payments for capital assets",{"$f":"SUM(H209:H215)","v":0},0,0,0,0,0,0,{"$f":"SUM(O209:O215)","v":0},0]
[0,5,null,null,null,null,"Buildings and other fixed structures",{"$f":"SUMPRODUCT(((T_DataComboFile[Implementation programme]=$G$3)*(T_DataComboFile[Econ3]=$G209))*T_DataComboFile[2021/22 Baseline]*$B$3)","v":0},{"$f":"SUMPRODUCT(((T_DataComboFile[Implementation programme]=$G$3)*(T_DataComboFile[Econ3]=$G209))*T_DataComboFile[2021/22 Revised baseline]*$B$3)","v":0},0,{"$f":"SUMPRODUCT(((T_DataComboFile[Implementation programme]=$G$3)*(T_DataComboFile[Econ3]=$G209))*T_DataComboFile[2022/23 Baseline]*$B$3)","v":0},{"$f":"SUMPRODUCT(((T_DataComboFile[Implementation programme]=$G$3)*(T_DataComboFile[Econ3]=$G209))*T_DataComboFile[2022/23 Revised baseline]*$B$3)","v":0},0,{"$f":"SUMPRODUCT(((T_DataComboFile[Implementation programme]=$G$3)*(T_DataComboFile[Econ3]=$G209))*T_DataComboFile[2023/24 Baseline]*$B$3)","v":0},{"$f":"SUMPRODUCT(((T_DataComboFile[Implementation programme]=$G$3)*(T_DataComboFile[Econ3]=$G209))*T_DataComboFile[2023/24 Revised baseline]*$B$3)","v":0},0]
[0,5,null,null,null,null,"Machinery and equipment",{"$f":"SUMPRODUCT(((T_DataComboFile[Implementation programme]=$G$3)*(T_DataComboFile[Econ3]=$G210))*T_DataComboFile[2021/22 Baseline]*$B$3)","v":0},{"$f":"SUMPRODUCT(((T_DataComboFile[Implementation programme]=$G$3)*(T_DataComboFile[Econ3]=$G210))*T_DataComboFile[2021/22 Revised baseline]*$B$3)","v":0},0,{"$f":"SUMPRODUCT(((T_DataComboFile[Implementation programme]=$G$3)*(T_DataComboFile[Econ3]=$G210))*T_DataComboFile[2022/23 Baseline]*$B$3)","v":0},{"$f":"SUMPRODUCT(((T_DataComboFile[Implementation programme]=$G$3)*(T_DataComboFile[Econ3]=$G210))*T_DataComboFile[2022/23 Revised baseline]*$B$3)","v":0},0,{"$f":"SUMPRODUCT(((T_DataComboFile[Implementation programme]=$G$3)*(T_DataComboFile[Econ3]=$G210))*T_DataComboFile[2023/24 Baseline]*$B$3)","v":0},{"$f":"SUMPRODUCT(((T_DataComboFile[Implementation programme]=$G$3)*(T_DataComboFile[Econ3]=$G210))*T_DataComboFile[2023/24 Revised baseline]*$B$3)","v":0},0]
[0,5,null,null,null,null,"Heritage assets",{"$f":"SUMPRODUCT(((T_DataComboFile[Implementation programme]=$G$3)*(T_DataComboFile[Econ3]=$G211))*T_DataComboFile[2021/22 Baseline]*$B$3)","v":0},{"$f":"SUMPRODUCT(((T_DataComboFile[Implementation programme]=$G$3)*(T_DataComboFile[Econ3]=$G211))*T_DataComboFile[2021/22 Revised baseline]*$B$3)","v":0},0,{"$f":"SUMPRODUCT(((T_DataComboFile[Implementation programme]=$G$3)*(T_DataComboFile[Econ3]=$G211))*T_DataComboFile[2022/23 Baseline]*$B$3)","v":0},{"$f":"SUMPRODUCT(((T_DataComboFile[Implementation programme]=$G$3)*(T_DataComboFile[Econ3]=$G211))*T_DataComboFile[2022/23 Revised baseline]*$B$3)","v":0},0,{"$f":"SUMPRODUCT(((T_DataComboFile[Implementation programme]=$G$3)*(T_DataComboFile[Econ3]=$G211))*T_DataComboFile[2023/24 Baseline]*$B$3)","v":0},{"$f":"SUMPRODUCT(((T_DataComboFile[Implementation programme]=$G$3)*(T_DataComboFile[Econ3]=$G211))*T_DataComboFile[2023/24 Revised baseline]*$B$3)","v":0},0]
[0,5,null,null,null,null,"Specialised military assets",{"$f":"SUMPRODUCT(((T_DataComboFile[Implementation programme]=$G$3)*(T_DataComboFile[Econ3]=$G212))*T_DataComboFile[2021/22 Baseline]*$B$3)","v":0},{"$f":"SUMPRODUCT(((T_DataComboFile[Implementation programme]=$G$3)*(T_DataComboFile[Econ3]=$G212))*T_DataComboFile[2021/22 Revised baseline]*$B$3)","v":0},0,{"$f":"SUMPRODUCT(((T_DataComboFile[Implementation programme]=$G$3)*(T_DataComboFile[Econ3]=$G212))*T_DataComboFile[2022/23 Baseline]*$B$3)","v":0},{"$f":"SUMPRODUCT(((T_DataComboFile[Implementation programme]=$G$3)*(T_DataComboFile[Econ3]=$G212))*T_DataComboFile[2022/23 Revised baseline]*$B$3)","v":0},0,{"$f":"SUMPRODUCT(((T_DataComboFile[Implementation programme]=$G$3)*(T_DataComboFile[Econ3]=$G212))*T_DataComboFile[2023/24 Baseline]*$B$3)","v":0},{"$f":"SUMPRODUCT(((T_DataComboFile[Implementation programme]=$G$3)*(T_DataComboFile[Econ3]=$G212))*T_DataComboFile[2023/24 Revised baseline]*$B$3)","v":0},0]
[0,5,null,null,null,null,"Biological assets",{"$f":"SUMPRODUCT(((T_DataComboFile[Implementation programme]=$G$3)*(T_DataComboFile[Econ3]=$G213))*T_DataComboFile[2021/22 Baseline]*$B$3)","v":0},{"$f":"SUMPRODUCT(((T_DataComboFile[Implementation programme]=$G$3)*(T_DataComboFile[Econ3]=$G213))*T_DataComboFile[2021/22 Revised baseline]*$B$3)","v":0},0,{"$f":"SUMPRODUCT(((T_DataComboFile[Implementation programme]=$G$3)*(T_DataComboFile[Econ3]=$G213))*T_DataComboFile[2022/23 Baseline]*$B$3)","v":0},{"$f":"SUMPRODUCT(((T_DataComboFile[Implementation programme]=$G$3)*(T_DataComboFile[Econ3]=$G213))*T_DataComboFile[2022/23 Revised baseline]*$B$3)","v":0},0,{"$f":"SUMPRODUCT(((T_DataComboFile[Implementation programme]=$G$3)*(T_DataComboFile[Econ3]=$G213))*T_DataComboFile[2023/24 Baseline]*$B$3)","v":0},{"$f":"SUMPRODUCT(((T_DataComboFile[Implementation programme]=$G$3)*(T_DataComboFile[Econ3]=$G213))*T_DataComboFile[2023/24 Revised baseline]*$B$3)","v":0},0]
[0,5,null,null,null,null,"Land and sub-soil assets",{"$f":"SUMPRODUCT(((T_DataComboFile[Implementation programme]=$G$3)*(T_DataComboFile[Econ3]=$G214))*T_DataComboFile[2021/22 Baseline]*$B$3)","v":0},{"$f":"SUMPRODUCT(((T_DataComboFile[Implementation programme]=$G$3)*(T_DataComboFile[Econ3]=$G214))*T_DataComboFile[2021/22 Revised baseline]*$B$3)","v":0},0,{"$f":"SUMPRODUCT(((T_DataComboFile[Implementation programme]=$G$3)*(T_DataComboFile[Econ3]=$G214))*T_DataComboFile[2022/23 Baseline]*$B$3)","v":0},{"$f":"SUMPRODUCT(((T_DataComboFile[Implementation programme]=$G$3)*(T_DataComboFile[Econ3]=$G214))*T_DataComboFile[2022/23 Revised baseline]*$B$3)","v":0},0,{"$f":"SUMPRODUCT(((T_DataComboFile[Implementation programme]=$G$3)*(T_DataComboFile[Econ3]=$G214))*T_DataComboFile[2023/24 Baseline]*$B$3)","v":0},{"$f":"SUMPRODUCT(((T_DataComboFile[Implementation programme]=$G$3)*(T_DataComboFile[Econ3]=$G214))*T_DataComboFile[2023/24 Revised baseline]*$B$3)","v":0},0]
[0,5,null,null,null,null,"Software and other intangible assets",{"$f":"SUMPRODUCT(((T_DataComboFile[Implementation programme]=$G$3)*(T_DataComboFile[Econ3]=$G215))*T_DataComboFile[2021/22 Baseline]*$B$3)","v":0},{"$f":"SUMPRODUCT(((T_DataComboFile[Implementation programme]=$G$3)*(T_DataComboFile[Econ3]=$G215))*T_DataComboFile[2021/22 Revised baseline]*$B$3)","v":0},0,{"$f":"SUMPRODUCT(((T_DataComboFile[Implementation programme]=$G$3)*(T_DataComboFile[Econ3]=$G215))*T_DataComboFile[2022/23 Baseline]*$B$3)","v":0},{"$f":"SUMPRODUCT(((T_DataComboFile[Implementation programme]=$G$3)*(T_DataComboFile[Econ3]=$G215))*T_DataComboFile[2022/23 Revised baseline]*$B$3)","v":0},0,{"$f":"SUMPRODUCT(((T_DataComboFile[Implementation programme]=$G$3)*(T_DataComboFile[Econ3]=$G215))*T_DataComboFile[2023/24 Baseline]*$B$3)","v":0},{"$f":"SUMPRODUCT(((T_DataComboFile[Implementation programme]=$G$3)*(T_DataComboFile[Econ3]=$G215))*T_DataComboFile[2023/24 Revised baseline]*$B$3)","v":0},0]
[0,5,null,null,null,null,"Payments for financial assets",{"$f":"SUMPRODUCT(((T_DataComboFile[Implementation programme]=$G$3)*(T_DataComboFile[Econ3]=$G216))*T_DataComboFile[2021/22 Baseline]*$B$3)","v":0},{"$f":"SUMPRODUCT(((T_DataComboFile[Implementation programme]=$G$3)*(T_DataComboFile[Econ3]=$G216))*T_DataComboFile[2021/22 Revised baseline]*$B$3)","v":0},0,{"$f":"SUMPRODUCT(((T_DataComboFile[Implementation programme]=$G$3)*(T_DataComboFile[Econ3]=$G216))*T_DataComboFile[2022/23 Baseline]*$B$3)","v":0},{"$f":"SUMPRODUCT(((T_DataComboFile[Implementation programme]=$G$3)*(T_DataComboFile[Econ3]=$G216))*T_DataComboFile[2022/23 Revised baseline]*$B$3)","v":0},0,{"$f":"SUMPRODUCT(((T_DataComboFile[Implementation programme]=$G$3)*(T_DataComboFile[Econ3]=$G216))*T_DataComboFile[2023/24 Baseline]*$B$3)","v":0},{"$f":"SUMPRODUCT(((T_DataComboFile[Implementation programme]=$G$3)*(T_DataComboFile[Econ3]=$G216))*T_DataComboFile[2023/24 Revised baseline]*$B$3)","v":0},0]
[0,5,null,null,null,null,"Total",{"$f":"SUM(H173,H183,H208,H216)","v":0},0,0,0,0,0,0,{"$f":"SUM(O173,O183,O208,O216)","v":0},0]
[]
[null,null,null,null,null,null,null,{"$f":"L65-H217","v":0},{"$f":"O65-I217","v":0},null,{"$f":"P65-K217","v":0},{"$f":"S65-L217","v":0},null,{"$f":"T65-N217","v":0},{"$f":"W65-O217","v":0}]

{"sheet":"IP20","index":29,"n_rows":219,"n_cols":23,"rows_kept":219,"cut":false,"hidden":false,"merged":[[70,6,70,17],[73,6,87,17],[94,16,94,20],[94,21,94,23],[95,16,95,20],[95,21,95,23],[99,16,99,20],[99,21,99,23],[100,16,100,20],[100,21,100,23],[101,16,101,20],[101,21,101,23],[96,16,96,20],[96,21,96,23],[97,16,97,20],[97,21,97,23],[98,16,98,20],[98,21,98,23],[105,16,105,20],[105,21,105,23],[106,16,106,20],[106,21,106,23],[107,16,107,20],[107,21,107,23],[102,16,102,20],[102,21,102,23],[103,16,103,20],[103,21,103,23],[104,16,104,20],[104,21,104,23],[117,16,117,20],[118,16,118,20],[119,16,119,20],[120,16,120,20],[121,16,121,20],[122,16,122,20],[108,16,108,20],[108,21,108,23],[109,16,109,20],[109,21,109,23],[110,16,110,20],[110,21,110,23],[129,16,129,20],[130,16,130,20],[131,16,131,20],[132,16,132,20],[133,16,133,20],[141,16,141,20],[123,16,123,20],[124,16,124,20],[125,16,125,20],[126,16,126,20],[127,16,127,20],[128,16,128,20],[174,16,174,20],[175,16,175,20],[176,16,176,20],[177,16,177,20],[178,16,178,20],[179,16,179,20],[142,16,142,20],[143,16,162,20],[170,16,170,20],[171,16,171,20],[172,16,172,20],[173,16,173,20],[186,16,186,20],[187,16,187,20],[188,16,188,20],[189,16,189,20],[190,16,190,20],[191,16,191,20],[180,16,180,20],[181,16,181,20],[182,16,182,20],[183,16,183,20],[184,16,184,20],[185,16,185,20],[198,16,198,20],[199,16,199,20],[200,16,200,20],[201,16,201,20],[202,16,202,20],[203,16,203,20],[192,16,192,20],[193,16,193,20],[194,16,194,20],[195,16,195,20],[196,16,196,20],[197,16,197,20],[210,16,210,20],[211,16,211,20],[212,16,212,20],[213,16,213,20],[214,16,214,20],[215,16,215,20],[204,16,204,20],[205,16,205,20],[206,16,206,20],[207,16,207,20],[208,16,208,20],[209,16,209,20]]}
[]
[null,null,null,null,null,null,"Implementation programme:"]
[null,{"$f":"IF(G3=\"\",0,1)","v":0},null,null,null,20,null,"… select from dropdown list"]
[null,null,null,null,null,null,null,null,null,null,null,null,"Growth"]
[null,null,null,null,null,null,"Quick view","2020/21","2021/22","2022/23","2023/24","Trend","2021/22","2022/23","2023/24","Ave Ann",null,"2020/21","2021/22","2022/23","2023/24"]
[null,null,null,null,null,null,"Compensation of employees",{"$f":"SUMPRODUCT(($G$32:$G$65=$G6)*($K$32:$K$65))","v":0},{"$f":"SUMPRODUCT(($G$32:$G$65=$G6)*($O$32:$O$65))","v":0},{"$f":"SUMPRODUCT(($G$32:$G$65=$G6)*($S$32:$S$65))","v":0},{"$f":"SUMPRODUCT(($G$32:$G$65=$G6)*($W$32:$W$65))","v":0},null,{"$f":"IFERROR(I6/H6-1,0)","v":0},0,0,{"$f":"IFERROR(((K6/H6)^(1/3)-1),0)","v":0}]
[null,null,null,null,null,null,"Goods and services",{"$f":"SUMPRODUCT(($G$32:$G$65=$G7)*($K$32:$K$65))","v":0},{"$f":"SUMPRODUCT(($G$32:$G$65=$G7)*($O$32:$O$65))","v":0},{"$f":"SUMPRODUCT(($G$32:$G$65=$G7)*($S$32:$S$65))","v":0},{"$f":"SUMPRODUCT(($G$32:$G$65=$G7)*($W$32:$W$65))","v":0},null,0,0,0,0]
[null,null,null,null,null,null,"Transfers and subsidies",{"$f":"SUMPRODUCT(($G$32:$G$65=$G8)*($K$32:$K$65))","v":0},{"$f":"SUMPRODUCT(($G$32:$G$65=$G8)*($O$32:$O$65))","v":0},{"$f":"SUMPRODUCT(($G$32:$G$65=$G8)*($S$32:$S$65))","v":0},{"$f":"SUMPRODUCT(($G$32:$G$65=$G8)*($W$32:$W$65))","v":0},null,0,0,0,0]
[null,null,null,null,null,null,"Payments for capital assets",{"$f":"SUMPRODUCT(($G$32:$G$65=$G9)*($K$32:$K$65))","v":0},{"$f":"SUMPRODUCT(($G$32:$G$65=$G9)*($O$32:$O$65))","v":0},{"$f":"SUMPRODUCT(($G$32:$G$65=$G9)*($S$32:$S$65))","v":0},{"$f":"SUMPRODUCT(($G$32:$G$65=$G9)*($W$32:$W$65))","v":0},null,0,0,0,0]
[null,null,null,null,null,null,"Total",{"$f":"SUMPRODUCT(($G$32:$G$65=$G10)*($K$32:$K$65))","v":0},{"$f":"SUMPRODUCT(($G$32:$G$65=$G10)*($O$32:$O$65))","v":0},{"$f":"SUMPRODUCT(($G$32:$G$65=$G10)*($S$32:$S$65))","v":0},{"$f":"SUMPRODUCT(($G$32:$G$65=$G10)*($W$32:$W$65))","v":0},null,0,0,0,0]
[null,null,null,null,null,null,"Composition of spending (% of Total)"]
[null,null,null,null,null,null,"Compensation of employees",{"$f":"IFERROR(H6/H$10,\"\")","v":""},"","","",null,null,null,null,null,null,{"$f":"IF(H12>0.0595,H12,\"\")","v":""},"","",""]
[null,null,null,null,null,null,"Goods and services","","","","",null,null,null,null,null,null,"","","",""]
[null,null,null,null,null,null,"Transfers and subsidies","","","","",null,null,null,null,null,null,"","","",""]
[null,null,null,null,null,null,"Payments for capital assets","","","","",null,null,null,null,null,null,"","","",""]
[]
[null,null,null,null,null,null,"Division of Revenue","2020/21","2021/22","2022/23","2023/24","Trend","2021/22","2022/23","2023/24","Ave Ann"]
[{"$f":"$G$3","v":0},"NAT",null,null,null,null,"National",{"$f":"SUMPRODUCT(((T_DataComboFile[Implementation programme]=$G$3)*(T_DataComboFile[DOR]=$B18))*T_DataComboFile[2020/21 Revised])","v":2331086},{"$f":"SUMPRODUCT(((T_DataComboFile[Implementation programme]=$G$3)*(T_DataComboFile[DOR]=$B18))*T_DataComboFile[2021/22 Revised baseline])","v":2583809},{"$f":"SUMPRODUCT(((T_DataComboFile[Implementation programme]=$G$3)*(T_DataComboFile[DOR]=$B18))*T_DataComboFile[2022/23 Revised baseline])","v":2617960},{"$f":"SUMPRODUCT(((T_DataComboFile[Implementation programme]=$G$3)*(T_DataComboFile[DOR]=$B18))*T_DataComboFile[2023/24 Revised baseline])","v":2733345},null,{"$f":"IFERROR(I18/H18-1,0)","v":0.10841427557799244},{"$f":"IFERROR(J18/I18-1,0)","v":1.3217308245307535E-2},{"$f":"IFERROR(K18/J18-1,0)","v":4.4074393802808309E-2},{"$f":"IFERROR(((K18/H18)^(1/3)-1),0)","v":5.449708876349435E-2}]
[0,null,null,null,null,null,"Provincial",{"$f":"SUM(H20:H21)","v":0},0,0,0,null,0,0,0,0]
[0,"PES",null,null,null,null,"Provincial equitable share",{"$f":"SUMPRODUCT(((T_DataComboFile[Implementation programme]=$G$3)*(T_DataComboFile[DOR]=$B20))*T_DataComboFile[2020/21 Revised])","v":0},{"$f":"SUMPRODUCT(((T_DataComboFile[Implementation programme]=$G$3)*(T_DataComboFile[DOR]=$B20))*T_DataComboFile[2021/22 Revised baseline])","v":0},{"$f":"SUMPRODUCT(((T_DataComboFile[Implementation programme]=$G$3)*(T_DataComboFile[DOR]=$B20))*T_DataComboFile[2022/23 Revised baseline])","v":0},{"$f":"SUMPRODUCT(((T_DataComboFile[Implementation programme]=$G$3)*(T_DataComboFile[DOR]=$B20))*T_DataComboFile[2023/24 Revised baseline])","v":0},null,{"$f":"IFERROR(I20/H20-1,0)","v":0},0,0,{"$f":"IFERROR(((K20/H20)^(1/3)-1),0)","v":0}]
[0,"PCG",null,null,null,null,"Provincial conditional grants",{"$f":"SUMPRODUCT(((T_DataComboFile[Implementation programme]=$G$3)*(T_DataComboFile[DOR]=$B21))*T_DataComboFile[2020/21 Revised])","v":0},{"$f":"SUMPRODUCT(((T_DataComboFile[Implementation programme]=$G$3)*(T_DataComboFile[DOR]=$B21))*T_DataComboFile[2021/22 Revised baseline])","v":0},{"$f":"SUMPRODUCT(((T_DataComboFile[Implementation programme]=$G$3)*(T_DataComboFile[DOR]=$B21))*T_DataComboFile[2022/23 Revised baseline])","v":0},{"$f":"SUMPRODUCT(((T_DataComboFile[Implementation programme]=$G$3)*(T_DataComboFile[DOR]=$B21))*T_DataComboFile[2023/24 Revised baseline])","v":0},null,0,0,0,0]
[0,null,null,null,null,null,"Local government",{"$f":"SUM(H23:H25)","v":0},0,0,0,null,{"$f":"IFERROR(I22/H22-1,0)","v":0},{"$f":"IFERROR(J22/I22-1,0)","v":0},{"$f":"IFERROR(K22/J22-1,0)","v":0},{"$f":"IFERROR(((K22/H22)^(1/3)-1),0)","v":0}]
[0,"LES",null,null,null,null,"Local equitable share",{"$f":"SUMPRODUCT(((T_DataComboFile[Implementation programme]=$G$3)*(T_DataComboFile[DOR]=$B23))*T_DataComboFile[2020/21 Revised])","v":0},{"$f":"SUMPRODUCT(((T_DataComboFile[Implementation programme]=$G$3)*(T_DataComboFile[DOR]=$B23))*T_DataComboFile[2021/22 Revised baseline])","v":0},{"$f":"SUMPRODUCT(((T_DataComboFile[Implementation programme]=$G$3)*(T_DataComboFile[DOR]=$B23))*T_DataComboFile[2022/23 Revised baseline])","v":0},{"$f":"SUMPRODUCT(((T_DataComboFile[Implementation programme]=$G$3)*(T_DataComboFile[DOR]=$B23))*T_DataComboFile[2023/24 Revised baseline])","v":0},null,{"$f":"IFERROR(I23/H23-1,0)","v":0},0,0,{"$f":"IFERROR(((K23/H23)^(1/3)-1),0)","v":0}]
[0,"LCG",null,null,null,null,"Local conditional grants",{"$f":"SUMPRODUCT(((T_DataComboFile[Implementation programme]=$G$3)*(T_DataComboFile[DOR]=$B24))*T_DataComboFile[2020/21 Revised])","v":0},{"$f":"SUMPRODUCT(((T_DataComboFile[Implementation programme]=$G$3)*(T_DataComboFile[DOR]=$B24))*T_DataComboFile[2021/22 Revised baseline])","v":0},{"$f":"SUMPRODUCT(((T_DataComboFile[Implementation programme]=$G$3)*(T_DataComboFile[DOR]=$B24))*T_DataComboFile[2022/23 Revised baseline])","v":0},{"$f":"SUMPRODUCT(((T_DataComboFile[Implementation programme]=$G$3)*(T_DataComboFile[DOR]=$B24))*T_DataComboFile[2023/24 Revised baseline])","v":0},null,0,0,0,0]
[0,"GFL",null,null,null,null,"General fuel levy ",{"$f":"SUMPRODUCT(((T_DataComboFile[Implementation programme]=$G$3)*(T_DataComboFile[DOR]=$B25))*T_DataComboFile[2020/21 Revised])","v":0},{"$f":"SUMPRODUCT(((T_DataComboFile[Implementation programme]=$G$3)*(T_DataComboFile[DOR]=$B25))*T_DataComboFile[2021/22 Revised baseline])","v":0},{"$f":"SUMPRODUCT(((T_DataComboFile[Implementation programme]=$G$3)*(T_DataComboFile[DOR]=$B25))*T_DataComboFile[2022/23 Revised baseline])","v":0},{"$f":"SUMPRODUCT(((T_DataComboFile[Implementation programme]=$G$3)*(T_DataComboFile[DOR]=$B25))*T_DataComboFile[2023/24 Revised baseline])","v":0},null,0,0,0,0]
[]
[]
[null,null,null,null,null,null,{"$f":"G3","v":0}]
[{"$f":"$G$3","v":0},0,null,null,null,null,null,"2017/18","2018/19","2019/20","2020/21","2021/22",null,null,null,"2022/23",null,null,null,"2023/24"]
[{"$f":"$G$3","v":0},0,null,null,null,null,"Rand thousand","Audited outcome","Audited outcome","Pre-audited outcome","Budget","Baseline","Decrease","Increase","Revised baseline","Baseline","Decrease","Increase","Revised baseline","Baseline","Decrease","Increase","Revised baseline"]
[0,0,null,null,null,null,"Economic classification"]
[0,0,null,null,null,null,"Current payments",{"$f":"SUM(H33:H35)","v":0},0,0,0,0,0,0,0,0,0,0,0,0,0,0,0]
[0,0,null,null,null,null,"Compensation of employees",{"$f":"SUMPRODUCT(((T_DataComboFile[Implementation programme]=$G$3)*(T_DataComboFile[Econ3]=$G33))*T_DataComboFile[2017/18]*$B$3)","v":0},{"$f":"SUMPRODUCT(((T_DataComboFile[Implementation programme]=$G$3)*(T_DataComboFile[Econ3]=$G33))*T_DataComboFile[2018/19]*$B$3)","v":0},{"$f":"SUMPRODUCT(((T_DataComboFile[Implementation programme]=$G$3)*(T_DataComboFile[Econ3]=$G33))*T_DataComboFile[2019/20 Revised estimate]*$B$3)","v":0},{"$f":"SUMPRODUCT(((T_DataComboFile[Implementation programme]=$G$3)*(T_DataComboFile[Econ3]=$G33))*T_DataComboFile[2020/21 Revised]*$B$3)","v":0},{"$f":"SUMPRODUCT(((T_DataComboFile[Implementation programme]=$G$3)*(T_DataComboFile[Econ3]=$G33))*T_DataComboFile[2021/22 Baseline]*$B$3)","v":0},{"$f":"SUMPRODUCT(((T_DataComboFile[Implementation programme]=$G$3)*(T_DataComboFile[Econ3]=$G33))*T_DataComboFile[2021/22 Reduction]*$B$3)","v":0},{"$f":"SUMPRODUCT(((T_DataComboFile[Implementation programme]=$G$3)*(T_DataComboFile[Econ3]=$G33))*T_DataComboFile[2021/22 Increase]*$B$3)","v":0},{"$f":"L33+M33+N33","v":0},{"$f":"SUMPRODUCT(((T_DataComboFile[Implementation programme]=$G$3)*(T_DataComboFile[Econ3]=$G33))*T_DataComboFile[2022/23 Baseline]*$B$3)","v":0},{"$f":"SUMPRODUCT(((T_DataComboFile[Implementation programme]=$G$3)*(T_DataComboFile[Econ3]=$G33))*T_DataComboFile[2022/23 Reduction]*$B$3)","v":0},{"$f":"SUMPRODUCT(((T_DataComboFile[Implementation programme]=$G$3)*(T_DataComboFile[Econ3]=$G33))*T_DataComboFile[2022/23 Increase]*$B$3)","v":0},{"$f":"P33+Q33+R33","v":0},{"$f":"SUMPRODUCT(((T_DataComboFile[Implementation programme]=$G$3)*(T_DataComboFile[Econ3]=$G33))*T_DataComboFile[2023/24 Baseline]*$B$3)","v":0},{"$f":"SUMPRODUCT(((T_DataComboFile[Implementation programme]=$G$3)*(T_DataComboFile[Econ3]=$G33))*T_DataComboFile[2023/24 Reduction]*$B$3)","v":0},{"$f":"SUMPRODUCT(((T_DataComboFile[Implementation programme]=$G$3)*(T_DataComboFile[Econ3]=$G33))*T_DataComboFile[2023/24 Increase]*$B$3)","v":0},{"$f":"T33+U33+V33","v":0}]
[0,0,null,null,null,null,"Goods and services",{"$f":"SUMPRODUCT(((T_DataComboFile[Implementation programme]=$G$3)*(T_DataComboFile[Econ3]=$G34))*T_DataComboFile[2017/18]*$B$3)","v":0},{"$f":"SUMPRODUCT(((T_DataComboFile[Implementation programme]=$G$3)*(T_DataComboFile[Econ3]=$G34))*T_DataComboFile[2018/19]*$B$3)","v":0},{"$f":"SUMPRODUCT(((T_DataComboFile[Implementation programme]=$G$3)*(T_DataComboFile[Econ3]=$G34))*T_DataComboFile[2019/20 Revised estimate]*$B$3)","v":0},{"$f":"SUMPRODUCT(((T_DataComboFile[Implementation programme]=$G$3)*(T_DataComboFile[Econ3]=$G34))*T_DataComboFile[2020/21 Revised]*$B$3)","v":0},{"$f":"SUMPRODUCT(((T_DataComboFile[Implementation programme]=$G$3)*(T_DataComboFile[Econ3]=$G34))*T_DataComboFile[2021/22 Baseline]*$B$3)","v":0},{"$f":"SUMPRODUCT(((T_DataComboFile[Implementation programme]=$G$3)*(T_DataComboFile[Econ3]=$G34))*T_DataComboFile[2021/22 Reduction]*$B$3)","v":0},{"$f":"SUMPRODUCT(((T_DataComboFile[Implementation programme]=$G$3)*(T_DataComboFile[Econ3]=$G34))*T_DataComboFile[2021/22 Increase]*$B$3)","v":0},0,{"$f":"SUMPRODUCT(((T_DataComboFile[Implementation programme]=$G$3)*(T_DataComboFile[Econ3]=$G34))*T_DataComboFile[2022/23 Baseline]*$B$3)","v":0},{"$f":"SUMPRODUCT(((T_DataComboFile[Implementation programme]=$G$3)*(T_DataComboFile[Econ3]=$G34))*T_DataComboFile[2022/23 Reduction]*$B$3)","v":0},{"$f":"SUMPRODUCT(((T_DataComboFile[Implementation programme]=$G$3)*(T_DataComboFile[Econ3]=$G34))*T_DataComboFile[2022/23 Increase]*$B$3)","v":0},0,{"$f":"SUMPRODUCT(((T_DataComboFile[Implementation programme]=$G$3)*(T_DataComboFile[Econ3]=$G34))*T_DataComboFile[2023/24 Baseline]*$B$3)","v":0},{"$f":"SUMPRODUCT(((T_DataComboFile[Implementation programme]=$G$3)*(T_DataComboFile[Econ3]=$G34))*T_DataComboFile[2023/24 Reduction]*$B$3)","v":0},{"$f":"SUMPRODUCT(((T_DataComboFile[Implementation programme]=$G$3)*(T_DataComboFile[Econ3]=$G34))*T_DataComboFile[2023/24 Increase]*$B$3)","v":0},0]
[0,0,null,null,null,null,"Interest and rent on land",{"$f":"SUMPRODUCT(((T_DataComboFile[Implementation programme]=$G$3)*(T_DataComboFile[Econ3]=$G35))*T_DataComboFile[2017/18]*$B$3)","v":0},{"$f":"SUMPRODUCT(((T_DataComboFile[Implementation programme]=$G$3)*(T_DataComboFile[Econ3]=$G35))*T_DataComboFile[2018/19]*$B$3)","v":0},{"$f":"SUMPRODUCT(((T_DataComboFile[Implementation programme]=$G$3)*(T_DataComboFile[Econ3]=$G35))*T_DataComboFile[2019/20 Revised estimate]*$B$3)","v":0},{"$f":"SUMPRODUCT(((T_DataComboFile[Implementation programme]=$G$3)*(T_DataComboFile[Econ3]=$G35))*T_DataComboFile[2020/21 Revised]*$B$3)","v":0},{"$f":"SUMPRODUCT(((T_DataComboFile[Implementation programme]=$G$3)*(T_DataComboFile[Econ3]=$G35))*T_DataComboFile[2021/22 Baseline]*$B$3)","v":0},{"$f":"SUMPRODUCT(((T_DataComboFile[Implementation programme]=$G$3)*(T_DataComboFile[Econ3]=$G35))*T_DataComboFile[2021/22 Reduction]*$B$3)","v":0},{"$f":"SUMPRODUCT(((T_DataComboFile[Implementation programme]=$G$3)*(T_DataComboFile[Econ3]=$G35))*T_DataComboFile[2021/22 Increase]*$B$3)","v":0},0,{"$f":"SUMPRODUCT(((T_DataComboFile[Implementation programme]=$G$3)*(T_DataComboFile[Econ3]=$G35))*T_DataComboFile[2022/23 Baseline]*$B$3)","v":0},{"$f":"SUMPRODUCT(((T_DataComboFile[Implementation programme]=$G$3)*(T_DataComboFile[Econ3]=$G35))*T_DataComboFile[2022/23 Reduction]*$B$3)","v":0},{"$f":"SUMPRODUCT(((T_DataComboFile[Implementation programme]=$G$3)*(T_DataComboFile[Econ3]=$G35))*T_DataComboFile[2022/23 Increase]*$B$3)","v":0},0,{"$f":"SUMPRODUCT(((T_DataComboFile[Implementation programme]=$G$3)*(T_DataComboFile[Econ3]=$G35))*T_DataComboFile[2023/24 Baseline]*$B$3)","v":0},{"$f":"SUMPRODUCT(((T_DataComboFile[Implementation programme]=$G$3)*(T_DataComboFile[Econ3]=$G35))*T_DataComboFile[2023/24 Reduction]*$B$3)","v":0},{"$f":"SUMPRODUCT(((T_DataComboFile[Implementation programme]=$G$3)*(T_DataComboFile[Econ3]=$G35))*T_DataComboFile[2023/24 Increase]*$B$3)","v":0},0]
[0,0,null,null,null,null,"Transfers and subsidies",{"$f":"SUM(H37,H40,H43:H45,H48:H49)","v":0},0,0,0,0,0,0,0,0,0,0,0,0,0,0,0]
[0,0,null,null,null,null,"Provinces and municipalities",{"$f":"SUM(H38:H39)","v":0},0,0,0,0,0,0,0,0,0,0,0,0,0,0,0]
[0,0,null,null,null,null,"Provinces",{"$f":"SUMPRODUCT(((T_DataComboFile[Implementation programme]=$G$3)*(T_DataComboFile[Econ4]=$G38))*T_DataComboFile[2017/18]*$B$3)","v":0},{"$f":"SUMPRODUCT(((T_DataComboFile[Implementation programme]=$G$3)*(T_DataComboFile[Econ4]=$G38))*T_DataComboFile[2018/19]*$B$3)","v":0},{"$f":"SUMPRODUCT(((T_DataComboFile[Implementation programme]=$G$3)*(T_DataComboFile[Econ4]=$G38))*T_DataComboFile[2019/20 Revised estimate]*$B$3)","v":0},{"$f":"SUMPRODUCT(((T_DataComboFile[Implementation programme]=$G$3)*(T_DataComboFile[Econ4]=$G38))*T_DataComboFile[2020/21 Revised]*$B$3)","v":0},{"$f":"SUMPRODUCT(((T_DataComboFile[Implementation programme]=$G$3)*(T_DataComboFile[Econ4]=$G38))*T_DataComboFile[2021/22 Baseline]*$B$3)","v":0},{"$f":"SUMPRODUCT(((T_DataComboFile[Implementation programme]=$G$3)*(T_DataComboFile[Econ4]=$G38))*T_DataComboFile[2021/22 Reduction]*$B$3)","v":0},{"$f":"SUMPRODUCT(((T_DataComboFile[Implementation programme]=$G$3)*(T_DataComboFile[Econ4]=$G38))*T_DataComboFile[2021/22 Increase]*$B$3)","v":0},{"$f":"L38+M38+N38","v":0},{"$f":"SUMPRODUCT(((T_DataComboFile[Implementation programme]=$G$3)*(T_DataComboFile[Econ4]=$G38))*T_DataComboFile[2022/23 Baseline]*$B$3)","v":0},{"$f":"SUMPRODUCT(((T_DataComboFile[Implementation programme]=$G$3)*(T_DataComboFile[Econ4]=$G38))*T_DataComboFile[2022/23 Reduction]*$B$3)","v":0},{"$f":"SUMPRODUCT(((T_DataComboFile[Implementation programme]=$G$3)*(T_DataComboFile[Econ4]=$G38))*T_DataComboFile[2022/23 Increase]*$B$3)","v":0},{"$f":"P38+Q38+R38","v":0},{"$f":"SUMPRODUCT(((T_DataComboFile[Implementation programme]=$G$3)*(T_DataComboFile[Econ4]=$G38))*T_DataComboFile[2023/24 Baseline]*$B$3)","v":0},{"$f":"SUMPRODUCT(((T_DataComboFile[Implementation programme]=$G$3)*(T_DataComboFile[Econ4]=$G38))*T_DataComboFile[2023/24 Reduction]*$B$3)","v":0},{"$f":"SUMPRODUCT(((T_DataComboFile[Implementation programme]=$G$3)*(T_DataComboFile[Econ4]=$G38))*T_DataComboFile[2023/24 Increase]*$B$3)","v":0},{"$f":"T38+U38+V38","v":0}]
[0,0,null,null,null,null,"Municipalities",{"$f":"SUMPRODUCT(((T_DataComboFile[Implementation programme]=$G$3)*(T_DataComboFile[Econ4]=$G39))*T_DataComboFile[2017/18]*$B$3)","v":0},{"$f":"SUMPRODUCT(((T_DataComboFile[Implementation programme]=$G$3)*(T_DataComboFile[Econ4]=$G39))*T_DataComboFile[2018/19]*$B$3)","v":0},{"$f":"SUMPRODUCT(((T_DataComboFile[Implementation programme]=$G$3)*(T_DataComboFile[Econ4]=$G39))*T_DataComboFile[2019/20 Revised estimate]*$B$3)","v":0},{"$f":"SUMPRODUCT(((T_DataComboFile[Implementation programme]=$G$3)*(T_DataComboFile[Econ4]=$G39))*T_DataComboFile[2020/21 Revised]*$B$3)","v":0},{"$f":"SUMPRODUCT(((T_DataComboFile[Implementation programme]=$G$3)*(T_DataComboFile[Econ4]=$G39))*T_DataComboFile[2021/22 Baseline]*$B$3)","v":0},{"$f":"SUMPRODUCT(((T_DataComboFile[Implementation programme]=$G$3)*(T_DataComboFile[Econ4]=$G39))*T_DataComboFile[2021/22 Reduction]*$B$3)","v":0},{"$f":"SUMPRODUCT(((T_DataComboFile[Implementation programme]=$G$3)*(T_DataComboFile[Econ4]=$G39))*T_DataComboFile[2021/22 Increase]*$B$3)","v":0},0,{"$f":"SUMPRODUCT(((T_DataComboFile[Implementation programme]=$G$3)*(T_DataComboFile[Econ4]=$G39))*T_DataComboFile[2022/23 Baseline]*$B$3)","v":0},{"$f":"SUMPRODUCT(((T_DataComboFile[Implementation programme]=$G$3)*(T_DataComboFile[Econ4]=$G39))*T_DataComboFile[2022/23 Reduction]*$B$3)","v":0},{"$f":"SUMPRODUCT(((T_DataComboFile[Implementation programme]=$G$3)*(T_DataComboFile[Econ4]=$G39))*T_DataComboFile[2022/23 Increase]*$B$3)","v":0},0,{"$f":"SUMPRODUCT(((T_DataComboFile[Implementation programme]=$G$3)*(T_DataComboFile[Econ4]=$G39))*T_DataComboFile[2023/24 Baseline]*$B$3)","v":0},{"$f":"SUMPRODUCT(((T_DataComboFile[Implementation programme]=$G$3)*(T_DataComboFile[Econ4]=$G39))*T_DataComboFile[2023/24 Reduction]*$B$3)","v":0},{"$f":"SUMPRODUCT(((T_DataComboFile[Implementation programme]=$G$3)*(T_DataComboFile[Econ4]=$G39))*T_DataComboFile[2023/24 Increase]*$B$3)","v":0},0]
[0,0,null,null,null,null,"Departmental agencies and accounts",{"$f":"SUM(H41:H42)","v":0},0,0,0,0,0,0,0,0,0,0,0,0,0,0,0]
[0,0,null,null,null,null,"Social security funds",{"$f":"SUMPRODUCT(((T_DataComboFile[Implementation programme]=$G$3)*(T_DataComboFile[Econ4]=$G41))*T_DataComboFile[2017/18]*$B$3)","v":0},{"$f":"SUMPRODUCT(((T_DataComboFile[Implementation programme]=$G$3)*(T_DataComboFile[Econ4]=$G41))*T_DataComboFile[2018/19]*$B$3)","v":0},{"$f":"SUMPRODUCT(((T_DataComboFile[Implementation programme]=$G$3)*(T_DataComboFile[Econ4]=$G41))*T_DataComboFile[2019/20 Revised estimate]*$B$3)","v":0},{"$f":"SUMPRODUCT(((T_DataComboFile[Implementation programme]=$G$3)*(T_DataComboFile[Econ4]=$G41))*T_DataComboFile[2020/21 Revised]*$B$3)","v":0},{"$f":"SUMPRODUCT(((T_DataComboFile[Implementation programme]=$G$3)*(T_DataComboFile[Econ4]=$G41))*T_DataComboFile[2021/22 Baseline]*$B$3)","v":0},{"$f":"SUMPRODUCT(((T_DataComboFile[Implementation programme]=$G$3)*(T_DataComboFile[Econ4]=$G41))*T_DataComboFile[2021/22 Reduction]*$B$3)","v":0},{"$f":"SUMPRODUCT(((T_DataComboFile[Implementation programme]=$G$3)*(T_DataComboFile[Econ4]=$G41))*T_DataComboFile[2021/22 Increase]*$B$3)","v":0},{"$f":"L41+M41+N41","v":0},{"$f":"SUMPRODUCT(((T_DataComboFile[Implementation programme]=$G$3)*(T_DataComboFile[Econ4]=$G41))*T_DataComboFile[2022/23 Baseline]*$B$3)","v":0},{"$f":"SUMPRODUCT(((T_DataComboFile[Implementation programme]=$G$3)*(T_DataComboFile[Econ4]=$G41))*T_DataComboFile[2022/23 Reduction]*$B$3)","v":0},{"$f":"SUMPRODUCT(((T_DataComboFile[Implementation programme]=$G$3)*(T_DataComboFile[Econ4]=$G41))*T_DataComboFile[2022/23 Increase]*$B$3)","v":0},{"$f":"P41+Q41+R41","v":0},{"$f":"SUMPRODUCT(((T_DataComboFile[Implementation programme]=$G$3)*(T_DataComboFile[Econ4]=$G41))*T_DataComboFile[2023/24 Baseline]*$B$3)","v":0},{"$f":"SUMPRODUCT(((T_DataComboFile[Implementation programme]=$G$3)*(T_DataComboFile[Econ4]=$G41))*T_DataComboFile[2023/24 Reduction]*$B$3)","v":0},{"$f":"SUMPRODUCT(((T_DataComboFile[Implementation programme]=$G$3)*(T_DataComboFile[Econ4]=$G41))*T_DataComboFile[2023/24 Increase]*$B$3)","v":0},{"$f":"T41+U41+V41","v":0}]
[0,0,null,null,null,null,"Departmental agencies (non-business entities)",{"$f":"SUMPRODUCT(((T_DataComboFile[Implementation programme]=$G$3)*(T_DataComboFile[Econ4]=$G42))*T_DataComboFile[2017/18]*$B$3)","v":0},{"$f":"SUMPRODUCT(((T_DataComboFile[Implementation programme]=$G$3)*(T_DataComboFile[Econ4]=$G42))*T_DataComboFile[2018/19]*$B$3)","v":0},{"$f":"SUMPRODUCT(((T_DataComboFile[Implementation programme]=$G$3)*(T_DataComboFile[Econ4]=$G42))*T_DataComboFile[2019/20 Revised estimate]*$B$3)","v":0},{"$f":"SUMPRODUCT(((T_DataComboFile[Implementation programme]=$G$3)*(T_DataComboFile[Econ4]=$G42))*T_DataComboFile[2020/21 Revised]*$B$3)","v":0},{"$f":"SUMPRODUCT(((T_DataComboFile[Implementation programme]=$G$3)*(T_DataComboFile[Econ4]=$G42))*T_DataComboFile[2021/22 Baseline]*$B$3)","v":0},{"$f":"SUMPRODUCT(((T_DataComboFile[Implementation programme]=$G$3)*(T_DataComboFile[Econ4]=$G42))*T_DataComboFile[2021/22 Reduction]*$B$3)","v":0},{"$f":"SUMPRODUCT(((T_DataComboFile[Implementation programme]=$G$3)*(T_DataComboFile[Econ4]=$G42))*T_DataComboFile[2021/22 Increase]*$B$3)","v":0},0,{"$f":"SUMPRODUCT(((T_DataComboFile[Implementation programme]=$G$3)*(T_DataComboFile[Econ4]=$G42))*T_DataComboFile[2022/23 Baseline]*$B$3)","v":0},{"$f":"SUMPRODUCT(((T_DataComboFile[Implementation programme]=$G$3)*(T_DataComboFile[Econ4]=$G42))*T_DataComboFile[2022/23 Reduction]*$B$3)","v":0},{"$f":"SUMPRODUCT(((T_DataComboFile[Implementation programme]=$G$3)*(T_DataComboFile[Econ4]=$G42))*T_DataComboFile[2022/23 Increase]*$B$3)","v":0},0,{"$f":"SUMPRODUCT(((T_DataComboFile[Implementation programme]=$G$3)*(T_DataComboFile[Econ4]=$G42))*T_DataComboFile[2023/24 Baseline]*$B$3)","v":0},{"$f":"SUMPRODUCT(((T_DataComboFile[Implementation programme]=$G$3)*(T_DataComboFile[Econ4]=$G42))*T_DataComboFile[2023/24 Reduction]*$B$3)","v":0},{"$f":"SUMPRODUCT(((T_DataComboFile[Implementation programme]=$G$3)*(T_DataComboFile[Econ4]=$G42))*T_DataComboFile[2023/24 Increase]*$B$3)","v":0},0]
[0,0,null,null,null,null,"Higher education institutions",{"$f":"SUMPRODUCT(((T_DataComboFile[Implementation programme]=$G$3)*(T_DataComboFile[Econ3]=$G43))*T_DataComboFile[2017/18]*$B$3)","v":0},{"$f":"SUMPRODUCT(((T_DataComboFile[Implementation programme]=$G$3)*(T_DataComboFile[Econ3]=$G43))*T_DataComboFile[2018/19]*$B$3)","v":0},{"$f":"SUMPRODUCT(((T_DataComboFile[Implementation programme]=$G$3)*(T_DataComboFile[Econ3]=$G43))*T_DataComboFile[2019/20 Revised estimate]*$B$3)","v":0},{"$f":"SUMPRODUCT(((T_DataComboFile[Implementation programme]=$G$3)*(T_DataComboFile[Econ3]=$G43))*T_DataComboFile[2020/21 Revised]*$B$3)","v":0},{"$f":"SUMPRODUCT(((T_DataComboFile[Implementation programme]=$G$3)*(T_DataComboFile[Econ3]=$G43))*T_DataComboFile[2021/22 Baseline]*$B$3)","v":0},{"$f":"SUMPRODUCT(((T_DataComboFile[Implementation programme]=$G$3)*(T_DataComboFile[Econ3]=$G43))*T_DataComboFile[2021/22 Reduction]*$B$3)","v":0},{"$f":"SUMPRODUCT(((T_DataComboFile[Implementation programme]=$G$3)*(T_DataComboFile[Econ3]=$G43))*T_DataComboFile[2021/22 Increase]*$B$3)","v":0},0,{"$f":"SUMPRODUCT(((T_DataComboFile[Implementation programme]=$G$3)*(T_DataComboFile[Econ3]=$G43))*T_DataComboFile[2022/23 Baseline]*$B$3)","v":0},{"$f":"SUMPRODUCT(((T_DataComboFile[Implementation programme]=$G$3)*(T_DataComboFile[Econ3]=$G43))*T_DataComboFile[2022/23 Reduction]*$B$3)","v":0},{"$f":"SUMPRODUCT(((T_DataComboFile[Implementation programme]=$G$3)*(T_DataComboFile[Econ3]=$G43))*T_DataComboFile[2022/23 Increase]*$B$3)","v":0},0,{"$f":"SUMPRODUCT(((T_DataComboFile[Implementation programme]=$G$3)*(T_DataComboFile[Econ3]=$G43))*T_DataComboFile[2023/24 Baseline]*$B$3)","v":0},{"$f":"SUMPRODUCT(((T_DataComboFile[Implementation programme]=$G$3)*(T_DataComboFile[Econ3]=$G43))*T_DataComboFile[2023/24 Reduction]*$B$3)","v":0},{"$f":"SUMPRODUCT(((T_DataComboFile[Implementation programme]=$G$3)*(T_DataComboFile[Econ3]=$G43))*T_DataComboFile[2023/24 Increase]*$B$3)","v":0},0]
[0,0,null,null,null,null,"Foreign governments and international organisations",{"$f":"SUMPRODUCT(((T_DataComboFile[Implementation programme]=$G$3)*(T_DataComboFile[Econ3]=$G44))*T_DataComboFile[2017/18]*$B$3)","v":0},{"$f":"SUMPRODUCT(((T_DataComboFile[Implementation programme]=$G$3)*(T_DataComboFile[Econ3]=$G44))*T_DataComboFile[2018/19]*$B$3)","v":0},{"$f":"SUMPRODUCT(((T_DataComboFile[Implementation programme]=$G$3)*(T_DataComboFile[Econ3]=$G44))*T_DataComboFile[2019/20 Revised estimate]*$B$3)","v":0},{"$f":"SUMPRODUCT(((T_DataComboFile[Implementation programme]=$G$3)*(T_DataComboFile[Econ3]=$G44))*T_DataComboFile[2020/21 Revised]*$B$3)","v":0},{"$f":"SUMPRODUCT(((T_DataComboFile[Implementation programme]=$G$3)*(T_DataComboFile[Econ3]=$G44))*T_DataComboFile[2021/22 Baseline]*$B$3)","v":0},{"$f":"SUMPRODUCT(((T_DataComboFile[Implementation programme]=$G$3)*(T_DataComboFile[Econ3]=$G44))*T_DataComboFile[2021/22 Reduction]*$B$3)","v":0},{"$f":"SUMPRODUCT(((T_DataComboFile[Implementation programme]=$G$3)*(T_DataComboFile[Econ3]=$G44))*T_DataComboFile[2021/22 Increase]*$B$3)","v":0},0,{"$f":"SUMPRODUCT(((T_DataComboFile[Implementation programme]=$G$3)*(T_DataComboFile[Econ3]=$G44))*T_DataComboFile[2022/23 Baseline]*$B$3)","v":0},{"$f":"SUMPRODUCT(((T_DataComboFile[Implementation programme]=$G$3)*(T_DataComboFile[Econ3]=$G44))*T_DataComboFile[2022/23 Reduction]*$B$3)","v":0},{"$f":"SUMPRODUCT(((T_DataComboFile[Implementation programme]=$G$3)*(T_DataComboFile[Econ3]=$G44))*T_DataComboFile[2022/23 Increase]*$B$3)","v":0},0,{"$f":"SUMPRODUCT(((T_DataComboFile[Implementation programme]=$G$3)*(T_DataComboFile[Econ3]=$G44))*T_DataComboFile[2023/24 Baseline]*$B$3)","v":0},{"$f":"SUMPRODUCT(((T_DataComboFile[Implementation programme]=$G$3)*(T_DataComboFile[Econ3]=$G44))*T_DataComboFile[2023/24 Reduction]*$B$3)","v":0},{"$f":"SUMPRODUCT(((T_DataComboFile[Implementation programme]=$G$3)*(T_DataComboFile[Econ3]=$G44))*T_DataComboFile[2023/24 Increase]*$B$3)","v":0},0]
[0,0,null,null,null,null,"Public corporations and private enterprises",{"$f":"SUM(H46:H47)","v":0},0,0,0,0,0,0,0,0,0,0,0,0,0,0,0]
[0,0,null,null,null,null,"Public corporations",{"$f":"SUMPRODUCT(((T_DataComboFile[Implementation programme]=$G$3)*(T_DataComboFile[Econ4]=$G46))*T_DataComboFile[2017/18]*$B$3)","v":0},{"$f":"SUMPRODUCT(((T_DataComboFile[Implementation programme]=$G$3)*(T_DataComboFile[Econ4]=$G46))*T_DataComboFile[2018/19]*$B$3)","v":0},{"$f":"SUMPRODUCT(((T_DataComboFile[Implementation programme]=$G$3)*(T_DataComboFile[Econ4]=$G46))*T_DataComboFile[2019/20 Revised estimate]*$B$3)","v":0},{"$f":"SUMPRODUCT(((T_DataComboFile[Implementation programme]=$G$3)*(T_DataComboFile[Econ4]=$G46))*T_DataComboFile[2020/21 Revised]*$B$3)","v":0},{"$f":"SUMPRODUCT(((T_DataComboFile[Implementation programme]=$G$3)*(T_DataComboFile[Econ4]=$G46))*T_DataComboFile[2021/22 Baseline]*$B$3)","v":0},{"$f":"SUMPRODUCT(((T_DataComboFile[Implementation programme]=$G$3)*(T_DataComboFile[Econ4]=$G46))*T_DataComboFile[2021/22 Reduction]*$B$3)","v":0},{"$f":"SUMPRODUCT(((T_DataComboFile[Implementation programme]=$G$3)*(T_DataComboFile[Econ4]=$G46))*T_DataComboFile[2021/22 Increase]*$B$3)","v":0},{"$f":"L46+M46+N46","v":0},{"$f":"SUMPRODUCT(((T_DataComboFile[Implementation programme]=$G$3)*(T_DataComboFile[Econ4]=$G46))*T_DataComboFile[2022/23 Baseline]*$B$3)","v":0},{"$f":"SUMPRODUCT(((T_DataComboFile[Implementation programme]=$G$3)*(T_DataComboFile[Econ4]=$G46))*T_DataComboFile[2022/23 Reduction]*$B$3)","v":0},{"$f":"SUMPRODUCT(((T_DataComboFile[Implementation programme]=$G$3)*(T_DataComboFile[Econ4]=$G46))*T_DataComboFile[2022/23 Increase]*$B$3)","v":0},{"$f":"P46+Q46+R46","v":0},{"$f":"SUMPRODUCT(((T_DataComboFile[Implementation programme]=$G$3)*(T_DataComboFile[Econ4]=$G46))*T_DataComboFile[2023/24 Baseline]*$B$3)","v":0},{"$f":"SUMPRODUCT(((T_DataComboFile[Implementation programme]=$G$3)*(T_DataComboFile[Econ4]=$G46))*T_DataComboFile[2023/24 Reduction]*$B$3)","v":0},{"$f":"SUMPRODUCT(((T_DataComboFile[Implementation programme]=$G$3)*(T_DataComboFile[Econ4]=$G46))*T_DataComboFile[2023/24 Increase]*$B$3)","v":0},{"$f":"T46+U46+V46","v":0}]
[0,0,null,null,null,null,"Private enterprises",{"$f":"SUMPRODUCT(((T_DataComboFile[Implementation programme]=$G$3)*(T_DataComboFile[Econ4]=$G47))*T_DataComboFile[2017/18]*$B$3)","v":0},{"$f":"SUMPRODUCT(((T_DataComboFile[Implementation programme]=$G$3)*(T_DataComboFile[Econ4]=$G47))*T_DataComboFile[2018/19]*$B$3)","v":0},{"$f":"SUMPRODUCT(((T_DataComboFile[Implementation programme]=$G$3)*(T_DataComboFile[Econ4]=$G47))*T_DataComboFile[2019/20 Revised estimate]*$B$3)","v":0},{"$f":"SUMPRODUCT(((T_DataComboFile[Implementation programme]=$G$3)*(T_DataComboFile[Econ4]=$G47))*T_DataComboFile[2020/21 Revised]*$B$3)","v":0},{"$f":"SUMPRODUCT(((T_DataComboFile[Implementation programme]=$G$3)*(T_DataComboFile[Econ4]=$G47))*T_DataComboFile[2021/22 Baseline]*$B$3)","v":0},{"$f":"SUMPRODUCT(((T_DataComboFile[Implementation programme]=$G$3)*(T_DataComboFile[Econ4]=$G47))*T_DataComboFile[2021/22 Reduction]*$B$3)","v":0},{"$f":"SUMPRODUCT(((T_DataComboFile[Implementation programme]=$G$3)*(T_DataComboFile[Econ4]=$G47))*T_DataComboFile[2021/22 Increase]*$B$3)","v":0},0,{"$f":"SUMPRODUCT(((T_DataComboFile[Implementation programme]=$G$3)*(T_DataComboFile[Econ4]=$G47))*T_DataComboFile[2022/23 Baseline]*$B$3)","v":0},{"$f":"SUMPRODUCT(((T_DataComboFile[Implementation programme]=$G$3)*(T_DataComboFile[Econ4]=$G47))*T_DataComboFile[2022/23 Reduction]*$B$3)","v":0},{"$f":"SUMPRODUCT(((T_DataComboFile[Implementation programme]=$G$3)*(T_DataComboFile[Econ4]=$G47))*T_DataComboFile[2022/23 Increase]*$B$3)","v":0},0,{"$f":"SUMPRODUCT(((T_DataComboFile[Implementation programme]=$G$3)*(T_DataComboFile[Econ4]=$G47))*T_DataComboFile[2023/24 Baseline]*$B$3)","v":0},{"$f":"SUMPRODUCT(((T_DataComboFile[Implementation programme]=$G$3)*(T_DataComboFile[Econ4]=$G47))*T_DataComboFile[2023/24 Reduction]*$B$3)","v":0},{"$f":"SUMPRODUCT(((T_DataComboFile[Implementation programme]=$G$3)*(T_DataComboFile[Econ4]=$G47))*T_DataComboFile[2023/24 Increase]*$B$3)","v":0},0]
[0,0,null,null,null,null,"Non-profit institutions",{"$f":"SUMPRODUCT(((T_DataComboFile[Implementation programme]=$G$3)*(T_DataComboFile[Econ3]=$G48))*T_DataComboFile[2017/18]*$B$3)","v":0},{"$f":"SUMPRODUCT(((T_DataComboFile[Implementation programme]=$G$3)*(T_DataComboFile[Econ3]=$G48))*T_DataComboFile[2018/19]*$B$3)","v":0},{"$f":"SUMPRODUCT(((T_DataComboFile[Implementation programme]=$G$3)*(T_DataComboFile[Econ3]=$G48))*T_DataComboFile[2019/20 Revised estimate]*$B$3)","v":0},{"$f":"SUMPRODUCT(((T_DataComboFile[Implementation programme]=$G$3)*(T_DataComboFile[Econ3]=$G48))*T_DataComboFile[2020/21 Revised]*$B$3)","v":0},{"$f":"SUMPRODUCT(((T_DataComboFile[Implementation programme]=$G$3)*(T_DataComboFile[Econ3]=$G48))*T_DataComboFile[2021/22 Baseline]*$B$3)","v":0},{"$f":"SUMPRODUCT(((T_DataComboFile[Implementation programme]=$G$3)*(T_DataComboFile[Econ3]=$G48))*T_DataComboFile[2021/22 Reduction]*$B$3)","v":0},{"$f":"SUMPRODUCT(((T_DataComboFile[Implementation programme]=$G$3)*(T_DataComboFile[Econ3]=$G48))*T_DataComboFile[2021/22 Increase]*$B$3)","v":0},0,{"$f":"SUMPRODUCT(((T_DataComboFile[Implementation programme]=$G$3)*(T_DataComboFile[Econ3]=$G48))*T_DataComboFile[2022/23 Baseline]*$B$3)","v":0},{"$f":"SUMPRODUCT(((T_DataComboFile[Implementation programme]=$G$3)*(T_DataComboFile[Econ3]=$G48))*T_DataComboFile[2022/23 Reduction]*$B$3)","v":0},{"$f":"SUMPRODUCT(((T_DataComboFile[Implementation programme]=$G$3)*(T_DataComboFile[Econ3]=$G48))*T_DataComboFile[2022/23 Increase]*$B$3)","v":0},0,{"$f":"SUMPRODUCT(((T_DataComboFile[Implementation programme]=$G$3)*(T_DataComboFile[Econ3]=$G48))*T_DataComboFile[2023/24 Baseline]*$B$3)","v":0},{"$f":"SUMPRODUCT(((T_DataComboFile[Implementation programme]=$G$3)*(T_DataComboFile[Econ3]=$G48))*T_DataComboFile[2023/24 Reduction]*$B$3)","v":0},{"$f":"SUMPRODUCT(((T_DataComboFile[Implementation programme]=$G$3)*(T_DataComboFile[Econ3]=$G48))*T_DataComboFile[2023/24 Increase]*$B$3)","v":0},0]
[0,0,null,null,null,null,"Households",{"$f":"SUM(H50:H51)","v":0},0,0,0,0,0,0,0,0,0,0,0,0,0,0,0]
[0,0,null,null,null,null,"Social benefits",{"$f":"SUMPRODUCT(((T_DataComboFile[Implementation programme]=$G$3)*(T_DataComboFile[Econ4]=$G50))*T_DataComboFile[2017/18]*$B$3)","v":0},{"$f":"SUMPRODUCT(((T_DataComboFile[Implementation programme]=$G$3)*(T_DataComboFile[Econ4]=$G50))*T_DataComboFile[2018/19]*$B$3)","v":0},{"$f":"SUMPRODUCT(((T_DataComboFile[Implementation programme]=$G$3)*(T_DataComboFile[Econ4]=$G50))*T_DataComboFile[2019/20 Revised estimate]*$B$3)","v":0},{"$f":"SUMPRODUCT(((T_DataComboFile[Implementation programme]=$G$3)*(T_DataComboFile[Econ4]=$G50))*T_DataComboFile[2020/21 Revised]*$B$3)","v":0},{"$f":"SUMPRODUCT(((T_DataComboFile[Implementation programme]=$G$3)*(T_DataComboFile[Econ4]=$G50))*T_DataComboFile[2021/22 Baseline]*$B$3)","v":0},{"$f":"SUMPRODUCT(((T_DataComboFile[Implementation programme]=$G$3)*(T_DataComboFile[Econ4]=$G50))*T_DataComboFile[2021/22 Reduction]*$B$3)","v":0},{"$f":"SUMPRODUCT(((T_DataComboFile[Implementation programme]=$G$3)*(T_DataComboFile[Econ4]=$G50))*T_DataComboFile[2021/22 Increase]*$B$3)","v":0},{"$f":"L50+M50+N50","v":0},{"$f":"SUMPRODUCT(((T_DataComboFile[Implementation programme]=$G$3)*(T_DataComboFile[Econ4]=$G50))*T_DataComboFile[2022/23 Baseline]*$B$3)","v":0},{"$f":"SUMPRODUCT(((T_DataComboFile[Implementation programme]=$G$3)*(T_DataComboFile[Econ4]=$G50))*T_DataComboFile[2022/23 Reduction]*$B$3)","v":0},{"$f":"SUMPRODUCT(((T_DataComboFile[Implementation programme]=$G$3)*(T_DataComboFile[Econ4]=$G50))*T_DataComboFile[2022/23 Increase]*$B$3)","v":0},{"$f":"P50+Q50+R50","v":0},{"$f":"SUMPRODUCT(((T_DataComboFile[Implementation programme]=$G$3)*(T_DataComboFile[Econ4]=$G50))*T_DataComboFile[2023/24 Baseline]*$B$3)","v":0},{"$f":"SUMPRODUCT(((T_DataComboFile[Implementation programme]=$G$3)*(T_DataComboFile[Econ4]=$G50))*T_DataComboFile[2023/24 Reduction]*$B$3)","v":0},{"$f":"SUMPRODUCT(((T_DataComboFile[Implementation programme]=$G$3)*(T_DataComboFile[Econ4]=$G50))*T_DataComboFile[2023/24 Increase]*$B$3)","v":0},{"$f":"T50+U50+V50","v":0}]
[0,0,null,null,null,null,"Other transfers to households",{"$f":"SUMPRODUCT(((T_DataComboFile[Implementation programme]=$G$3)*(T_DataComboFile[Econ4]=$G51))*T_DataComboFile[2017/18]*$B$3)","v":0},{"$f":"SUMPRODUCT(((T_DataComboFile[Implementation programme]=$G$3)*(T_DataComboFile[Econ4]=$G51))*T_DataComboFile[2018/19]*$B$3)","v":0},{"$f":"SUMPRODUCT(((T_DataComboFile[Implementation programme]=$G$3)*(T_DataComboFile[Econ4]=$G51))*T_DataComboFile[2019/20 Revised estimate]*$B$3)","v":0},{"$f":"SUMPRODUCT(((T_DataComboFile[Implementation programme]=$G$3)*(T_DataComboFile[Econ4]=$G51))*T_DataComboFile[2020/21 Revised]*$B$3)","v":0},{"$f":"SUMPRODUCT(((T_DataComboFile[Implementation programme]=$G$3)*(T_DataComboFile[Econ4]=$G51))*T_DataComboFile[2021/22 Baseline]*$B$3)","v":0},{"$f":"SUMPRODUCT(((T_DataComboFile[Implementation programme]=$G$3)*(T_DataComboFile[Econ4]=$G51))*T_DataComboFile[2021/22 Reduction]*$B$3)","v":0},{"$f":"SUMPRODUCT(((T_DataComboFile[Implementation programme]=$G$3)*(T_DataComboFile[Econ4]=$G51))*T_DataComboFile[2021/22 Increase]*$B$3)","v":0},0,{"$f":"SUMPRODUCT(((T_DataComboFile[Implementation programme]=$G$3)*(T_DataComboFile[Econ4]=$G51))*T_DataComboFile[2022/23 Baseline]*$B$3)","v":0},{"$f":"SUMPRODUCT(((T_DataComboFile[Implementation programme]=$G$3)*(T_DataComboFile[Econ4]=$G51))*T_DataComboFile[2022/23 Reduction]*$B$3)","v":0},{"$f":"SUMPRODUCT(((T_DataComboFile[Implementation programme]=$G$3)*(T_DataComboFile[Econ4]=$G51))*T_DataComboFile[2022/23 Increase]*$B$3)","v":0},0,{"$f":"SUMPRODUCT(((T_DataComboFile[Implementation programme]=$G$3)*(T_DataComboFile[Econ4]=$G51))*T_DataComboFile[2023/24 Baseline]*$B$3)","v":0},{"$f":"SUMPRODUCT(((T_DataComboFile[Implementation programme]=$G$3)*(T_DataComboFile[Econ4]=$G51))*T_DataComboFile[2023/24 Reduction]*$B$3)","v":0},{"$f":"SUMPRODUCT(((T_DataComboFile[Implementation programme]=$G$3)*(T_DataComboFile[Econ4]=$G51))*T_DataComboFile[2023/24 Increase]*$B$3)","v":0},0]
[0,0,null,null,null,null,"Payments for capital assets",{"$f":"SUM(H53,H56,H59:H63)","v":0},0,0,0,0,0,0,0,0,0,0,0,0,0,0,0]
[0,0,null,null,null,null,"Buildings and other fixed structures",{"$f":"SUM(H54:H55)","v":0},0,0,0,0,0,0,0,0,0,0,0,0,0,0,0]
[0,0,null,null,null,null,"Buildings",{"$f":"SUMPRODUCT(((T_DataComboFile[Implementation programme]=$G$3)*(T_DataComboFile[Econ4]=$G54))*T_DataComboFile[2017/18]*$B$3)","v":0},{"$f":"SUMPRODUCT(((T_DataComboFile[Implementation programme]=$G$3)*(T_DataComboFile[Econ4]=$G54))*T_DataComboFile[2018/19]*$B$3)","v":0},{"$f":"SUMPRODUCT(((T_DataComboFile[Implementation programme]=$G$3)*(T_DataComboFile[Econ4]=$G54))*T_DataComboFile[2019/20 Revised estimate]*$B$3)","v":0},{"$f":"SUMPRODUCT(((T_DataComboFile[Implementation programme]=$G$3)*(T_DataComboFile[Econ4]=$G54))*T_DataComboFile[2020/21 Revised]*$B$3)","v":0},{"$f":"SUMPRODUCT(((T_DataComboFile[Implementation programme]=$G$3)*(T_DataComboFile[Econ4]=$G54))*T_DataComboFile[2021/22 Baseline]*$B$3)","v":0},{"$f":"SUMPRODUCT(((T_DataComboFile[Implementation programme]=$G$3)*(T_DataComboFile[Econ4]=$G54))*T_DataComboFile[2021/22 Reduction]*$B$3)","v":0},{"$f":"SUMPRODUCT(((T_DataComboFile[Implementation programme]=$G$3)*(T_DataComboFile[Econ4]=$G54))*T_DataComboFile[2021/22 Increase]*$B$3)","v":0},{"$f":"L54+M54+N54","v":0},{"$f":"SUMPRODUCT(((T_DataComboFile[Implementation programme]=$G$3)*(T_DataComboFile[Econ4]=$G54))*T_DataComboFile[2022/23 Baseline]*$B$3)","v":0},{"$f":"SUMPRODUCT(((T_DataComboFile[Implementation programme]=$G$3)*(T_DataComboFile[Econ4]=$G54))*T_DataComboFile[2022/23 Reduction]*$B$3)","v":0},{"$f":"SUMPRODUCT(((T_DataComboFile[Implementation programme]=$G$3)*(T_DataComboFile[Econ4]=$G54))*T_DataComboFile[2022/23 Increase]*$B$3)","v":0},{"$f":"P54+Q54+R54","v":0},{"$f":"SUMPRODUCT(((T_DataComboFile[Implementation programme]=$G$3)*(T_DataComboFile[Econ4]=$G54))*T_DataComboFile[2023/24 Baseline]*$B$3)","v":0},{"$f":"SUMPRODUCT(((T_DataComboFile[Implementation programme]=$G$3)*(T_DataComboFile[Econ4]=$G54))*T_DataComboFile[2023/24 Reduction]*$B$3)","v":0},{"$f":"SUMPRODUCT(((T_DataComboFile[Implementation programme]=$G$3)*(T_DataComboFile[Econ4]=$G54))*T_DataComboFile[2023/24 Increase]*$B$3)","v":0},{"$f":"T54+U54+V54","v":0}]
[0,0,null,null,null,null,"Other fixed structures",{"$f":"SUMPRODUCT(((T_DataComboFile[Implementation programme]=$G$3)*(T_DataComboFile[Econ4]=$G55))*T_DataComboFile[2017/18]*$B$3)","v":0},{"$f":"SUMPRODUCT(((T_DataComboFile[Implementation programme]=$G$3)*(T_DataComboFile[Econ4]=$G55))*T_DataComboFile[2018/19]*$B$3)","v":0},{"$f":"SUMPRODUCT(((T_DataComboFile[Implementation programme]=$G$3)*(T_DataComboFile[Econ4]=$G55))*T_DataComboFile[2019/20 Revised estimate]*$B$3)","v":0},{"$f":"SUMPRODUCT(((T_DataComboFile[Implementation programme]=$G$3)*(T_DataComboFile[Econ4]=$G55))*T_DataComboFile[2020/21 Revised]*$B$3)","v":0},{"$f":"SUMPRODUCT(((T_DataComboFile[Implementation programme]=$G$3)*(T_DataComboFile[Econ4]=$G55))*T_DataComboFile[2021/22 Baseline]*$B$3)","v":0},{"$f":"SUMPRODUCT(((T_DataComboFile[Implementation programme]=$G$3)*(T_DataComboFile[Econ4]=$G55))*T_DataComboFile[2021/22 Reduction]*$B$3)","v":0},{"$f":"SUMPRODUCT(((T_DataComboFile[Implementation programme]=$G$3)*(T_DataComboFile[Econ4]=$G55))*T_DataComboFile[2021/22 Increase]*$B$3)","v":0},0,{"$f":"SUMPRODUCT(((T_DataComboFile[Implementation programme]=$G$3)*(T_DataComboFile[Econ4]=$G55))*T_DataComboFile[2022/23 Baseline]*$B$3)","v":0},{"$f":"SUMPRODUCT(((T_DataComboFile[Implementation programme]=$G$3)*(T_DataComboFile[Econ4]=$G55))*T_DataComboFile[2022/23 Reduction]*$B$3)","v":0},{"$f":"SUMPRODUCT(((T_DataComboFile[Implementation programme]=$G$3)*(T_DataComboFile[Econ4]=$G55))*T_DataComboFile[2022/23 Increase]*$B$3)","v":0},0,{"$f":"SUMPRODUCT(((T_DataComboFile[Implementation programme]=$G$3)*(T_DataComboFile[Econ4]=$G55))*T_DataComboFile[2023/24 Baseline]*$B$3)","v":0},{"$f":"SUMPRODUCT(((T_DataComboFile[Implementation programme]=$G$3)*(T_DataComboFile[Econ4]=$G55))*T_DataComboFile[2023/24 Reduction]*$B$3)","v":0},{"$f":"SUMPRODUCT(((T_DataComboFile[Implementation programme]=$G$3)*(T_DataComboFile[Econ4]=$G55))*T_DataComboFile[2023/24 Increase]*$B$3)","v":0},0]
[0,0,null,null,null,null,"Machinery and equipment",{"$f":"SUM(H57:H58)","v":0},0,0,0,0,0,0,0,0,0,0,0,0,0,0,0]
[0,0,null,null,null,null,"Transport equipment",{"$f":"SUMPRODUCT(((T_DataComboFile[Implementation programme]=$G$3)*(T_DataComboFile[Econ4]=$G57))*T_DataComboFile[2017/18]*$B$3)","v":0},{"$f":"SUMPRODUCT(((T_DataComboFile[Implementation programme]=$G$3)*(T_DataComboFile[Econ4]=$G57))*T_DataComboFile[2018/19]*$B$3)","v":0},{"$f":"SUMPRODUCT(((T_DataComboFile[Implementation programme]=$G$3)*(T_DataComboFile[Econ4]=$G57))*T_DataComboFile[2019/20 Revised estimate]*$B$3)","v":0},{"$f":"SUMPRODUCT(((T_DataComboFile[Implementation programme]=$G$3)*(T_DataComboFile[Econ4]=$G57))*T_DataComboFile[2020/21 Revised]*$B$3)","v":0},{"$f":"SUMPRODUCT(((T_DataComboFile[Implementation programme]=$G$3)*(T_DataComboFile[Econ4]=$G57))*T_DataComboFile[2021/22 Baseline]*$B$3)","v":0},{"$f":"SUMPRODUCT(((T_DataComboFile[Implementation programme]=$G$3)*(T_DataComboFile[Econ4]=$G57))*T_DataComboFile[2021/22 Reduction]*$B$3)","v":0},{"$f":"SUMPRODUCT(((T_DataComboFile[Implementation programme]=$G$3)*(T_DataComboFile[Econ4]=$G57))*T_DataComboFile[2021/22 Increase]*$B$3)","v":0},{"$f":"L57+M57+N57","v":0},{"$f":"SUMPRODUCT(((T_DataComboFile[Implementation programme]=$G$3)*(T_DataComboFile[Econ4]=$G57))*T_DataComboFile[2022/23 Baseline]*$B$3)","v":0},{"$f":"SUMPRODUCT(((T_DataComboFile[Implementation programme]=$G$3)*(T_DataComboFile[Econ4]=$G57))*T_DataComboFile[2022/23 Reduction]*$B$3)","v":0},{"$f":"SUMPRODUCT(((T_DataComboFile[Implementation programme]=$G$3)*(T_DataComboFile[Econ4]=$G57))*T_DataComboFile[2022/23 Increase]*$B$3)","v":0},{"$f":"P57+Q57+R57","v":0},{"$f":"SUMPRODUCT(((T_DataComboFile[Implementation programme]=$G$3)*(T_DataComboFile[Econ4]=$G57))*T_DataComboFile[2023/24 Baseline]*$B$3)","v":0},{"$f":"SUMPRODUCT(((T_DataComboFile[Implementation programme]=$G$3)*(T_DataComboFile[Econ4]=$G57))*T_DataComboFile[2023/24 Reduction]*$B$3)","v":0},{"$f":"SUMPRODUCT(((T_DataComboFile[Implementation programme]=$G$3)*(T_DataComboFile[Econ4]=$G57))*T_DataComboFile[2023/24 Increase]*$B$3)","v":0},{"$f":"T57+U57+V57","v":0}]
[0,0,null,null,null,null,"Other machinery and equipment",{"$f":"SUMPRODUCT(((T_DataComboFile[Implementation programme]=$G$3)*(T_DataComboFile[Econ4]=$G58))*T_DataComboFile[2017/18]*$B$3)","v":0},{"$f":"SUMPRODUCT(((T_DataComboFile[Implementation programme]=$G$3)*(T_DataComboFile[Econ4]=$G58))*T_DataComboFile[2018/19]*$B$3)","v":0},{"$f":"SUMPRODUCT(((T_DataComboFile[Implementation programme]=$G$3)*(T_DataComboFile[Econ4]=$G58))*T_DataComboFile[2019/20 Revised estimate]*$B$3)","v":0},{"$f":"SUMPRODUCT(((T_DataComboFile[Implementation programme]=$G$3)*(T_DataComboFile[Econ4]=$G58))*T_DataComboFile[2020/21 Revised]*$B$3)","v":0},{"$f":"SUMPRODUCT(((T_DataComboFile[Implementation programme]=$G$3)*(T_DataComboFile[Econ4]=$G58))*T_DataComboFile[2021/22 Baseline]*$B$3)","v":0},{"$f":"SUMPRODUCT(((T_DataComboFile[Implementation programme]=$G$3)*(T_DataComboFile[Econ4]=$G58))*T_DataComboFile[2021/22 Reduction]*$B$3)","v":0},{"$f":"SUMPRODUCT(((T_DataComboFile[Implementation programme]=$G$3)*(T_DataComboFile[Econ4]=$G58))*T_DataComboFile[2021/22 Increase]*$B$3)","v":0},0,{"$f":"SUMPRODUCT(((T_DataComboFile[Implementation programme]=$G$3)*(T_DataComboFile[Econ4]=$G58))*T_DataComboFile[2022/23 Baseline]*$B$3)","v":0},{"$f":"SUMPRODUCT(((T_DataComboFile[Implementation programme]=$G$3)*(T_DataComboFile[Econ4]=$G58))*T_DataComboFile[2022/23 Reduction]*$B$3)","v":0},{"$f":"SUMPRODUCT(((T_DataComboFile[Implementation programme]=$G$3)*(T_DataComboFile[Econ4]=$G58))*T_DataComboFile[2022/23 Increase]*$B$3)","v":0},0,{"$f":"SUMPRODUCT(((T_DataComboFile[Implementation programme]=$G$3)*(T_DataComboFile[Econ4]=$G58))*T_DataComboFile[2023/24 Baseline]*$B$3)","v":0},{"$f":"SUMPRODUCT(((T_DataComboFile[Implementation programme]=$G$3)*(T_DataComboFile[Econ4]=$G58))*T_DataComboFile[2023/24 Reduction]*$B$3)","v":0},{"$f":"SUMPRODUCT(((T_DataComboFile[Implementation programme]=$G$3)*(T_DataComboFile[Econ4]=$G58))*T_DataComboFile[2023/24 Increase]*$B$3)","v":0},0]
[0,0,null,null,null,null,"Heritage assets",{"$f":"SUMPRODUCT(((T_DataComboFile[Implementation programme]=$G$3)*(T_DataComboFile[Econ3]=$G59))*T_DataComboFile[2017/18]*$B$3)","v":0},{"$f":"SUMPRODUCT(((T_DataComboFile[Implementation programme]=$G$3)*(T_DataComboFile[Econ3]=$G59))*T_DataComboFile[2018/19]*$B$3)","v":0},{"$f":"SUMPRODUCT(((T_DataComboFile[Implementation programme]=$G$3)*(T_DataComboFile[Econ3]=$G59))*T_DataComboFile[2019/20 Revised estimate]*$B$3)","v":0},{"$f":"SUMPRODUCT(((T_DataComboFile[Implementation programme]=$G$3)*(T_DataComboFile[Econ3]=$G59))*T_DataComboFile[2020/21 Revised]*$B$3)","v":0},{"$f":"SUMPRODUCT(((T_DataComboFile[Implementation programme]=$G$3)*(T_DataComboFile[Econ3]=$G59))*T_DataComboFile[2021/22 Baseline]*$B$3)","v":0},{"$f":"SUMPRODUCT(((T_DataComboFile[Implementation programme]=$G$3)*(T_DataComboFile[Econ3]=$G59))*T_DataComboFile[2021/22 Reduction]*$B$3)","v":0},{"$f":"SUMPRODUCT(((T_DataComboFile[Implementation programme]=$G$3)*(T_DataComboFile[Econ3]=$G59))*T_DataComboFile[2021/22 Increase]*$B$3)","v":0},0,{"$f":"SUMPRODUCT(((T_DataComboFile[Implementation programme]=$G$3)*(T_DataComboFile[Econ3]=$G59))*T_DataComboFile[2022/23 Baseline]*$B$3)","v":0},{"$f":"SUMPRODUCT(((T_DataComboFile[Implementation programme]=$G$3)*(T_DataComboFile[Econ3]=$G59))*T_DataComboFile[2022/23 Reduction]*$B$3)","v":0},{"$f":"SUMPRODUCT(((T_DataComboFile[Implementation programme]=$G$3)*(T_DataComboFile[Econ3]=$G59))*T_DataComboFile[2022/23 Increase]*$B$3)","v":0},0,{"$f":"SUMPRODUCT(((T_DataComboFile[Implementation programme]=$G$3)*(T_DataComboFile[Econ3]=$G59))*T_DataComboFile[2023/24 Baseline]*$B$3)","v":0},{"$f":"SUMPRODUCT(((T_DataComboFile[Implementation programme]=$G$3)*(T_DataComboFile[Econ3]=$G59))*T_DataComboFile[2023/24 Reduction]*$B$3)","v":0},{"$f":"SUMPRODUCT(((T_DataComboFile[Implementation programme]=$G$3)*(T_DataComboFile[Econ3]=$G59))*T_DataComboFile[2023/24 Increase]*$B$3)","v":0},0]
[0,0,null,null,null,null,"Specialised military assets",{"$f":"SUMPRODUCT(((T_DataComboFile[Implementation programme]=$G$3)*(T_DataComboFile[Econ3]=$G60))*T_DataComboFile[2017/18]*$B$3)","v":0},{"$f":"SUMPRODUCT(((T_DataComboFile[Implementation programme]=$G$3)*(T_DataComboFile[Econ3]=$G60))*T_DataComboFile[2018/19]*$B$3)","v":0},{"$f":"SUMPRODUCT(((T_DataComboFile[Implementation programme]=$G$3)*(T_DataComboFile[Econ3]=$G60))*T_DataComboFile[2019/20 Revised estimate]*$B$3)","v":0},{"$f":"SUMPRODUCT(((T_DataComboFile[Implementation programme]=$G$3)*(T_DataComboFile[Econ3]=$G60))*T_DataComboFile[2020/21 Revised]*$B$3)","v":0},{"$f":"SUMPRODUCT(((T_DataComboFile[Implementation programme]=$G$3)*(T_DataComboFile[Econ3]=$G60))*T_DataComboFile[2021/22 Baseline]*$B$3)","v":0},{"$f":"SUMPRODUCT(((T_DataComboFile[Implementation programme]=$G$3)*(T_DataComboFile[Econ3]=$G60))*T_DataComboFile[2021/22 Reduction]*$B$3)","v":0},{"$f":"SUMPRODUCT(((T_DataComboFile[Implementation programme]=$G$3)*(T_DataComboFile[Econ3]=$G60))*T_DataComboFile[2021/22 Increase]*$B$3)","v":0},0,{"$f":"SUMPRODUCT(((T_DataComboFile[Implementation programme]=$G$3)*(T_DataComboFile[Econ3]=$G60))*T_DataComboFile[2022/23 Baseline]*$B$3)","v":0},{"$f":"SUMPRODUCT(((T_DataComboFile[Implementation programme]=$G$3)*(T_DataComboFile[Econ3]=$G60))*T_DataComboFile[2022/23 Reduction]*$B$3)","v":0},{"$f":"SUMPRODUCT(((T_DataComboFile[Implementation programme]=$G$3)*(T_DataComboFile[Econ3]=$G60))*T_DataComboFile[2022/23 Increase]*$B$3)","v":0},0,{"$f":"SUMPRODUCT(((T_DataComboFile[Implementation programme]=$G$3)*(T_DataComboFile[Econ3]=$G60))*T_DataComboFile[2023/24 Baseline]*$B$3)","v":0},{"$f":"SUMPRODUCT(((T_DataComboFile[Implementation programme]=$G$3)*(T_DataComboFile[Econ3]=$G60))*T_DataComboFile[2023/24 Reduction]*$B$3)","v":0},{"$f":"SUMPRODUCT(((T_DataComboFile[Implementation programme]=$G$3)*(T_DataComboFile[Econ3]=$G60))*T_DataComboFile[2023/24 Increase]*$B$3)","v":0},0]
[0,0,null,null,null,null,"Biological assets",{"$f":"SUMPRODUCT(((T_DataComboFile[Implementation programme]=$G$3)*(T_DataComboFile[Econ3]=$G61))*T_DataComboFile[2017/18]*$B$3)","v":0},{"$f":"SUMPRODUCT(((T_DataComboFile[Implementation programme]=$G$3)*(T_DataComboFile[Econ3]=$G61))*T_DataComboFile[2018/19]*$B$3)","v":0},{"$f":"SUMPRODUCT(((T_DataComboFile[Implementation programme]=$G$3)*(T_DataComboFile[Econ3]=$G61))*T_DataComboFile[2019/20 Revised estimate]*$B$3)","v":0},{"$f":"SUMPRODUCT(((T_DataComboFile[Implementation programme]=$G$3)*(T_DataComboFile[Econ3]=$G61))*T_DataComboFile[2020/21 Revised]*$B$3)","v":0},{"$f":"SUMPRODUCT(((T_DataComboFile[Implementation programme]=$G$3)*(T_DataComboFile[Econ3]=$G61))*T_DataComboFile[2021/22 Baseline]*$B$3)","v":0},{"$f":"SUMPRODUCT(((T_DataComboFile[Implementation programme]=$G$3)*(T_DataComboFile[Econ3]=$G61))*T_DataComboFile[2021/22 Reduction]*$B$3)","v":0},{"$f":"SUMPRODUCT(((T_DataComboFile[Implementation programme]=$G$3)*(T_DataComboFile[Econ3]=$G61))*T_DataComboFile[2021/22 Increase]*$B$3)","v":0},0,{"$f":"SUMPRODUCT(((T_DataComboFile[Implementation programme]=$G$3)*(T_DataComboFile[Econ3]=$G61))*T_DataComboFile[2022/23 Baseline]*$B$3)","v":0},{"$f":"SUMPRODUCT(((T_DataComboFile[Implementation programme]=$G$3)*(T_DataComboFile[Econ3]=$G61))*T_DataComboFile[2022/23 Reduction]*$B$3)","v":0},{"$f":"SUMPRODUCT(((T_DataComboFile[Implementation programme]=$G$3)*(T_DataComboFile[Econ3]=$G61))*T_DataComboFile[2022/23 Increase]*$B$3)","v":0},0,{"$f":"SUMPRODUCT(((T_DataComboFile[Implementation programme]=$G$3)*(T_DataComboFile[Econ3]=$G61))*T_DataComboFile[2023/24 Baseline]*$B$3)","v":0},{"$f":"SUMPRODUCT(((T_DataComboFile[Implementation programme]=$G$3)*(T_DataComboFile[Econ3]=$G61))*T_DataComboFile[2023/24 Reduction]*$B$3)","v":0},{"$f":"SUMPRODUCT(((T_DataComboFile[Implementation programme]=$G$3)*(T_DataComboFile[Econ3]=$G61))*T_DataComboFile[2023/24 Increase]*$B$3)","v":0},0]
[0,0,null,null,null,null,"Land and sub-soil assets",{"$f":"SUMPRODUCT(((T_DataComboFile[Implementation programme]=$G$3)*(T_DataComboFile[Econ3]=$G62))*T_DataComboFile[2017/18]*$B$3)","v":0},{"$f":"SUMPRODUCT(((T_DataComboFile[Implementation programme]=$G$3)*(T_DataComboFile[Econ3]=$G62))*T_DataComboFile[2018/19]*$B$3)","v":0},{"$f":"SUMPRODUCT(((T_DataComboFile[Implementation programme]=$G$3)*(T_DataComboFile[Econ3]=$G62))*T_DataComboFile[2019/20 Revised estimate]*$B$3)","v":0},{"$f":"SUMPRODUCT(((T_DataComboFile[Implementation programme]=$G$3)*(T_DataComboFile[Econ3]=$G62))*T_DataComboFile[2020/21 Revised]*$B$3)","v":0},{"$f":"SUMPRODUCT(((T_DataComboFile[Implementation programme]=$G$3)*(T_DataComboFile[Econ3]=$G62))*T_DataComboFile[2021/22 Baseline]*$B$3)","v":0},{"$f":"SUMPRODUCT(((T_DataComboFile[Implementation programme]=$G$3)*(T_DataComboFile[Econ3]=$G62))*T_DataComboFile[2021/22 Reduction]*$B$3)","v":0},{"$f":"SUMPRODUCT(((T_DataComboFile[Implementation programme]=$G$3)*(T_DataComboFile[Econ3]=$G62))*T_DataComboFile[2021/22 Increase]*$B$3)","v":0},0,{"$f":"SUMPRODUCT(((T_DataComboFile[Implementation programme]=$G$3)*(T_DataComboFile[Econ3]=$G62))*T_DataComboFile[2022/23 Baseline]*$B$3)","v":0},{"$f":"SUMPRODUCT(((T_DataComboFile[Implementation programme]=$G$3)*(T_DataComboFile[Econ3]=$G62))*T_DataComboFile[2022/23 Reduction]*$B$3)","v":0},{"$f":"SUMPRODUCT(((T_DataComboFile[Implementation programme]=$G$3)*(T_DataComboFile[Econ3]=$G62))*T_DataComboFile[2022/23 Increase]*$B$3)","v":0},0,{"$f":"SUMPRODUCT(((T_DataComboFile[Implementation programme]=$G$3)*(T_DataComboFile[Econ3]=$G62))*T_DataComboFile[2023/24 Baseline]*$B$3)","v":0},{"$f":"SUMPRODUCT(((T_DataComboFile[Implementation programme]=$G$3)*(T_DataComboFile[Econ3]=$G62))*T_DataComboFile[2023/24 Reduction]*$B$3)","v":0},{"$f":"SUMPRODUCT(((T_DataComboFile[Implementation programme]=$G$3)*(T_DataComboFile[Econ3]=$G62))*T_DataComboFile[2023/24 Increase]*$B$3)","v":0},0]
[0,0,null,null,null,null,"Software and other intangible assets",{"$f":"SUMPRODUCT(((T_DataComboFile[Implementation programme]=$G$3)*(T_DataComboFile[Econ3]=$G63))*T_DataComboFile[2017/18]*$B$3)","v":0},{"$f":"SUMPRODUCT(((T_DataComboFile[Implementation programme]=$G$3)*(T_DataComboFile[Econ3]=$G63))*T_DataComboFile[2018/19]*$B$3)","v":0},{"$f":"SUMPRODUCT(((T_DataComboFile[Implementation programme]=$G$3)*(T_DataComboFile[Econ3]=$G63))*T_DataComboFile[2019/20 Revised estimate]*$B$3)","v":0},{"$f":"SUMPRODUCT(((T_DataComboFile[Implementation programme]=$G$3)*(T_DataComboFile[Econ3]=$G63))*T_DataComboFile[2020/21 Revised]*$B$3)","v":0},{"$f":"SUMPRODUCT(((T_DataComboFile[Implementation programme]=$G$3)*(T_DataComboFile[Econ3]=$G63))*T_DataComboFile[2021/22 Baseline]*$B$3)","v":0},{"$f":"SUMPRODUCT(((T_DataComboFile[Implementation programme]=$G$3)*(T_DataComboFile[Econ3]=$G63))*T_DataComboFile[2021/22 Reduction]*$B$3)","v":0},{"$f":"SUMPRODUCT(((T_DataComboFile[Implementation programme]=$G$3)*(T_DataComboFile[Econ3]=$G63))*T_DataComboFile[2021/22 Increase]*$B$3)","v":0},0,{"$f":"SUMPRODUCT(((T_DataComboFile[Implementation programme]=$G$3)*(T_DataComboFile[Econ3]=$G63))*T_DataComboFile[2022/23 Baseline]*$B$3)","v":0},{"$f":"SUMPRODUCT(((T_DataComboFile[Implementation programme]=$G$3)*(T_DataComboFile[Econ3]=$G63))*T_DataComboFile[2022/23 Reduction]*$B$3)","v":0},{"$f":"SUMPRODUCT(((T_DataComboFile[Implementation programme]=$G$3)*(T_DataComboFile[Econ3]=$G63))*T_DataComboFile[2022/23 Increase]*$B$3)","v":0},0,{"$f":"SUMPRODUCT(((T_DataComboFile[Implementation programme]=$G$3)*(T_DataComboFile[Econ3]=$G63))*T_DataComboFile[2023/24 Baseline]*$B$3)","v":0},{"$f":"SUMPRODUCT(((T_DataComboFile[Implementation programme]=$G$3)*(T_DataComboFile[Econ3]=$G63))*T_DataComboFile[2023/24 Reduction]*$B$3)","v":0},{"$f":"SUMPRODUCT(((T_DataComboFile[Implementation programme]=$G$3)*(T_DataComboFile[Econ3]=$G63))*T_DataComboFile[2023/24 Increase]*$B$3)","v":0},0]
[0,0,null,null,null,null,"Payments for financial assets",{"$f":"SUMPRODUCT(((T_DataComboFile[Implementation programme]=$G$3)*(T_DataComboFile[Econ3]=$G64))*T_DataComboFile[2017/18]*$B$3)","v":0},{"$f":"SUMPRODUCT(((T_DataComboFile[Implementation programme]=$G$3)*(T_DataComboFile[Econ3]=$G64))*T_DataComboFile[2018/19]*$B$3)","v":0},{"$f":"SUMPRODUCT(((T_DataComboFile[Implementation programme]=$G$3)*(T_DataComboFile[Econ3]=$G64))*T_DataComboFile[2019/20 Revised estimate]*$B$3)","v":0},{"$f":"SUMPRODUCT(((T_DataComboFile[Implementation programme]=$G$3)*(T_DataComboFile[Econ3]=$G64))*T_DataComboFile[2020/21 Revised]*$B$3)","v":0},{"$f":"SUMPRODUCT(((T_DataComboFile[Implementation programme]=$G$3)*(T_DataComboFile[Econ3]=$G64))*T_DataComboFile[2021/22 Baseline]*$B$3)","v":0},{"$f":"SUMPRODUCT(((T_DataComboFile[Implementation programme]=$G$3)*(T_DataComboFile[Econ3]=$G64))*T_DataComboFile[2021/22 Reduction]*$B$3)","v":0},{"$f":"SUMPRODUCT(((T_DataComboFile[Implementation programme]=$G$3)*(T_DataComboFile[Econ3]=$G64))*T_DataComboFile[2021/22 Increase]*$B$3)","v":0},0,{"$f":"SUMPRODUCT(((T_DataComboFile[Implementation programme]=$G$3)*(T_DataComboFile[Econ3]=$G64))*T_DataComboFile[2022/23 Baseline]*$B$3)","v":0},{"$f":"SUMPRODUCT(((T_DataComboFile[Implementation programme]=$G$3)*(T_DataComboFile[Econ3]=$G64))*T_DataComboFile[2022/23 Reduction]*$B$3)","v":0},{"$f":"SUMPRODUCT(((T_DataComboFile[Implementation programme]=$G$3)*(T_DataComboFile[Econ3]=$G64))*T_DataComboFile[2022/23 Increase]*$B$3)","v":0},0,{"$f":"SUMPRODUCT(((T_DataComboFile[Implementation programme]=$G$3)*(T_DataComboFile[Econ3]=$G64))*T_DataComboFile[2023/24 Baseline]*$B$3)","v":0},{"$f":"SUMPRODUCT(((T_DataComboFile[Implementation programme]=$G$3)*(T_DataComboFile[Econ3]=$G64))*T_DataComboFile[2023/24 Reduction]*$B$3)","v":0},{"$f":"SUMPRODUCT(((T_DataComboFile[Implementation programme]=$G$3)*(T_DataComboFile[Econ3]=$G64))*T_DataComboFile[2023/24 Increase]*$B$3)","v":0},0]
[0,0,null,null,null,null,"Total",{"$f":"SUM(H32,H36,H52,H64)","v":0},0,0,0,0,0,0,0,0,0,0,0,0,0,0,0]
[]
[]
[]
[]
[]
[null,null,null,null,null,null,{"$f":"\"IMPACT OF ADJUSTMENTS: \" &UPPER($G$3)","v":"IMPACT OF ADJUSTMENTS: "}]
[]
[null,null,null,null,null,1,"Summary of impact on service delivery due to adjustments"]
[{"$f":"$G$3","v":0},1]
[0,1]
[0,1]
[0,1]
[0,1]
[0,1]
[0,1]
[0,1]
[0,1]
[0,1]
[0,1]
[0,1]
[0,1]
[0,1]
[0,1]
[]
[]
[]
[]
[]
[null,null,null,null,null,2,"Impact of adjustments on performance indicators"]
[{"$f":"$G$3","v":0},2,null,null,null,null,null,"2021/22",null,null,"2022/23",null,null,"2023/24",null,null," Comment",null,null,null,null,"Related MTSF Priority"]
[0,2,null,null,null,null,"Performance indicator","Original target","Revised target","Change","Original target","Revised target","Change","Original target","Revised target","Change"]
[0,2]
[0,2]
[0,2]
[0,2]
[0,2]
[0,2]
[0,2]
[0,2]
[0,2]
[0,2]
[0,2]
[0,2]
[0,2]
[0,2]
[0,2]
[]
[]
[]
[]
[]
[null,null,null,null,null,3,"Impact of adjustments on infrastructure projects"]
[{"$f":"$G$3","v":0},3,null,null,null,null,null,"2021/22",null,null,"2022/23",null,null,"2023/24",null,null," Comment"]
[0,3,null,null,null,null,"Project name","Original amount","Revised amount","Change","Original amount","Revised amount","Change","Original amount","Revised amount","Change"]
[0,3,null,null,null,null,null,null,null,{"$f":"I120-H120","v":0},null,null,{"$f":"L120-K120","v":0},null,null,{"$f":"O120-N120","v":0}]
[0,3,null,null,null,null,null,null,null,0,null,null,0,null,null,0]
[0,3,null,null,null,null,null,null,null,0,null,null,0,null,null,0]
[0,3,null,null,null,null,null,null,null,0,null,null,0,null,null,0]
[0,3,null,null,null,null,null,null,null,0,null,null,0,null,null,0]
[0,3,null,null,null,null,null,null,null,0,null,null,0,null,null,0]
[0,3,null,null,null,null,null,null,null,0,null,null,0,null,null,0]
[0,3,null,null,null,null,null,null,null,0,null,null,0,null,null,0]
[0,3,null,null,null,null,null,null,null,0,null,null,0,null,null,0]
[0,3,null,null,null,null,null,null,null,0,null,null,0,null,null,0]
[0,3,null,null,null,null,null,null,null,0,null,null,0,null,null,0]
[0,3,null,null,null,null,null,null,null,0,null,null,0,null,null,0]
[0,3,null,null,null,null,null,null,null,0,null,null,0,null,null,0]
[0,3,null,null,null,null,null,null,null,0,null,null,0,null,null,0]
[0,3,null,null,null,null,null,null,null,0,null,null,0,null,null,0]
[0,3,null,null,null,null,"Total",{"$f":"SUM(H120:H134)","v":0},0,0,0,0,0,0,0,0]
[]
[]
[]
[]
[]
[null,null,null,null,null,4,"Impact of adjustments on personnel headcount numbers"]
[{"$f":"$G$3","v":0},4,null,null,null,null,null,"2021/22",null,null,"2022/23",null,null,"2023/24",null,null," Comment"]
[0,4,null,null,null,null,"Salary level","Original number","Revised number","Change","Original number","Revised number","Change","Original number","Revised number","Change"]
[0,4,null,null,null,null,1,null,null,{"$f":"I144-H144","v":0},null,null,{"$f":"L144-K144","v":0},null,null,{"$f":"O144-N144","v":0}]
[0,4,null,null,null,null,2,null,null,0,null,null,0,null,null,0]
[0,4,null,null,null,null,3,null,null,0,null,null,0,null,null,0]
[0,4,null,null,null,null,4,null,null,0,null,null,0,null,null,0]
[0,4,null,null,null,null,5,null,null,0,null,null,0,null,null,0]
[0,4,null,null,null,null,6,null,null,0,null,null,0,null,null,0]
[0,4,null,null,null,null,7,null,null,0,null,null,0,null,null,0]
[0,4,null,null,null,null,8,null,null,0,null,null,0,null,null,0]
[0,4,null,null,null,null,9,null,null,0,null,null,0,null,null,0]
[0,4,null,null,null,null,10,null,null,0,null,null,0,null,null,0]
[0,4,null,null,null,null,11,null,null,0,null,null,0,null,null,0]
[0,4,null,null,null,null,12,null,null,0,null,null,0,null,null,0]
[0,4,null,null,null,null,13,null,null,0,null,null,0,null,null,0]
[0,4,null,null,null,null,14,null,null,0,null,null,0,null,null,0]
[0,4,null,null,null,null,15,null,null,0,null,null,0,null,null,0]
[0,4,null,null,null,null,16,null,null,0,null,null,0,null,null,0]
[0,4,null,null,null,null,"Other",null,null,0,null,null,0,null,null,0]
[0,4,null,null,null,null,"Other",null,null,0,null,null,0,null,null,0]
[0,4,null,null,null,null,"Other",null,null,0,null,null,0,null,null,0]
[0,4,null,null,null,null,"Other",null,null,0,null,null,0,null,null,0]
[0,4,null,null,null,null,"Total",{"$f":"SUM(H144:H163)","v":0},0,0,0,0,0,0,0,0]
[]
[]
[]
[]
[]
[null,null,null,null,null,5,"Impact of adjustments by economic classification"]
[{"$f":"$G$3","v":0},5,null,null,null,null,null,"2021/22",null,null,"2022/23",null,null,"2023/24",null,null," Comment"]
[0,5,null,null,null,null,"Salary level","Original number","Revised number","Change","Original number","Revised number","Change","Original number","Revised number","Change"]
[0,5,null,null,null,null,"Current payments",{"$f":"SUM(H174,H175,H182)","v":0},{"$f":"SUM(I174,I175,I182)","v":0},{"$f":"I173-H173","v":0},{"$f":"SUM(K174,K175,K182)","v":0},{"$f":"SUM(L174,L175,L182)","v":0},{"$f":"L173-K173","v":0},{"$f":"SUM(N174,N175,N182)","v":0},{"$f":"SUM(O174,O175,O182)","v":0},{"$f":"O173-N173","v":0}]
[0,5,null,null,null,null,"Compensation of employees",{"$f":"SUMPRODUCT(((T_DataComboFile[Implementation programme]=$G$3)*(T_DataComboFile[Econ3]=$G174))*T_DataComboFile[2021/22 Baseline]*$B$3)","v":0},{"$f":"SUMPRODUCT(((T_DataComboFile[Implementation programme]=$G$3)*(T_DataComboFile[Econ3]=$G174))*T_DataComboFile[2021/22 Revised baseline]*$B$3)","v":0},0,{"$f":"SUMPRODUCT(((T_DataComboFile[Implementation programme]=$G$3)*(T_DataComboFile[Econ3]=$G174))*T_DataComboFile[2022/23 Baseline]*$B$3)","v":0},{"$f":"SUMPRODUCT(((T_DataComboFile[Implementation programme]=$G$3)*(T_DataComboFile[Econ3]=$G174))*T_DataComboFile[2022/23 Revised baseline]*$B$3)","v":0},0,{"$f":"SUMPRODUCT(((T_DataComboFile[Implementation programme]=$G$3)*(T_DataComboFile[Econ3]=$G174))*T_DataComboFile[2023/24 Baseline]*$B$3)","v":0},{"$f":"SUMPRODUCT(((T_DataComboFile[Implementation programme]=$G$3)*(T_DataComboFile[Econ3]=$G174))*T_DataComboFile[2023/24 Revised baseline]*$B$3)","v":0},0]
[0,5,null,null,null,null,"Goods and services",{"$f":"SUMPRODUCT(((T_DataComboFile[Implementation programme]=$G$3)*(T_DataComboFile[Econ3]=$G175))*T_DataComboFile[2021/22 Baseline]*$B$3)","v":0},{"$f":"SUMPRODUCT(((T_DataComboFile[Implementation programme]=$G$3)*(T_DataComboFile[Econ3]=$G175))*T_DataComboFile[2021/22 Revised baseline]*$B$3)","v":0},0,{"$f":"SUMPRODUCT(((T_DataComboFile[Implementation programme]=$G$3)*(T_DataComboFile[Econ3]=$G175))*T_DataComboFile[2022/23 Baseline]*$B$3)","v":0},{"$f":"SUMPRODUCT(((T_DataComboFile[Implementation programme]=$G$3)*(T_DataComboFile[Econ3]=$G175))*T_DataComboFile[2022/23 Revised baseline]*$B$3)","v":0},0,{"$f":"SUMPRODUCT(((T_DataComboFile[Implementation programme]=$G$3)*(T_DataComboFile[Econ3]=$G175))*T_DataComboFile[2023/24 Baseline]*$B$3)","v":0},{"$f":"SUMPRODUCT(((T_DataComboFile[Implementation programme]=$G$3)*(T_DataComboFile[Econ3]=$G175))*T_DataComboFile[2023/24 Revised baseline]*$B$3)","v":0},0]
[0,50,null,null,null,null,"of which:"]
[0,51,null,null,null,null,null,null,null,{"$f":"I177-H177","v":0},null,null,{"$f":"L177-K177","v":0},null,null,0]
[0,51,null,null,null,null,null,null,null,0,null,null,0,null,null,0]
[0,51,null,null,null,null,null,null,null,0,null,null,0,null,null,0]
[0,51,null,null,null,null,null,null,null,0,null,null,0,null,null,0]
[0,51,null,null,null,null,null,null,null,0,null,null,0,null,null,0]
[0,5,null,null,null,null,"Interest and rent on land",{"$f":"SUMPRODUCT(((T_DataComboFile[Implementation programme]=$G$3)*(T_DataComboFile[Econ3]=$G182))*T_DataComboFile[2021/22 Baseline]*$B$3)","v":0},{"$f":"SUMPRODUCT(((T_DataComboFile[Implementation programme]=$G$3)*(T_DataComboFile[Econ3]=$G182))*T_DataComboFile[2021/22 Revised baseline]*$B$3)","v":0},0,{"$f":"SUMPRODUCT(((T_DataComboFile[Implementation programme]=$G$3)*(T_DataComboFile[Econ3]=$G182))*T_DataComboFile[2022/23 Baseline]*$B$3)","v":0},{"$f":"SUMPRODUCT(((T_DataComboFile[Implementation programme]=$G$3)*(T_DataComboFile[Econ3]=$G182))*T_DataComboFile[2022/23 Revised baseline]*$B$3)","v":0},0,{"$f":"SUMPRODUCT(((T_DataComboFile[Implementation programme]=$G$3)*(T_DataComboFile[Econ3]=$G182))*T_DataComboFile[2023/24 Baseline]*$B$3)","v":0},{"$f":"SUMPRODUCT(((T_DataComboFile[Implementation programme]=$G$3)*(T_DataComboFile[Econ3]=$G182))*T_DataComboFile[2023/24 Revised baseline]*$B$3)","v":0},0]
[0,5,null,null,null,null,"Transfers and subsidies",{"$f":"SUM(H184,H185,H197,H198,H199,H206,H207)","v":0},{"$f":"SUM(I184,I185,I197,I198,I199,I206,I207)","v":0},0,{"$f":"SUM(K184,K185,K197,K198,K199,K206,K207)","v":0},0,0,{"$f":"SUM(N184,N185,N197,N198,N199,N206,N207)","v":0},0,0]
[0,5,null,null,null,null,"Provinces and municipalities",{"$f":"SUMPRODUCT(((T_DataComboFile[Implementation programme]=$G$3)*(T_DataComboFile[Econ3]=$G184))*T_DataComboFile[2021/22 Baseline]*$B$3)","v":0},{"$f":"SUMPRODUCT(((T_DataComboFile[Implementation programme]=$G$3)*(T_DataComboFile[Econ3]=$G184))*T_DataComboFile[2021/22 Revised baseline]*$B$3)","v":0},0,{"$f":"SUMPRODUCT(((T_DataComboFile[Implementation programme]=$G$3)*(T_DataComboFile[Econ3]=$G184))*T_DataComboFile[2022/23 Baseline]*$B$3)","v":0},{"$f":"SUMPRODUCT(((T_DataComboFile[Implementation programme]=$G$3)*(T_DataComboFile[Econ3]=$G184))*T_DataComboFile[2022/23 Revised baseline]*$B$3)","v":0},0,{"$f":"SUMPRODUCT(((T_DataComboFile[Implementation programme]=$G$3)*(T_DataComboFile[Econ3]=$G184))*T_DataComboFile[2023/24 Baseline]*$B$3)","v":0},{"$f":"SUMPRODUCT(((T_DataComboFile[Implementation programme]=$G$3)*(T_DataComboFile[Econ3]=$G184))*T_DataComboFile[2023/24 Revised baseline]*$B$3)","v":0},0]
[0,5,null,null,null,null,"Departmental agencies and accounts",{"$f":"SUMPRODUCT(((T_DataComboFile[Implementation programme]=$G$3)*(T_DataComboFile[Econ3]=$G185))*T_DataComboFile[2021/22 Baseline]*$B$3)","v":0},{"$f":"SUMPRODUCT(((T_DataComboFile[Implementation programme]=$G$3)*(T_DataComboFile[Econ3]=$G185))*T_DataComboFile[2021/22 Revised baseline]*$B$3)","v":0},0,{"$f":"SUMPRODUCT(((T_DataComboFile[Implementation programme]=$G$3)*(T_DataComboFile[Econ3]=$G185))*T_DataComboFile[2022/23 Baseline]*$B$3)","v":0},{"$f":"SUMPRODUCT(((T_DataComboFile[Implementation programme]=$G$3)*(T_DataComboFile[Econ3]=$G185))*T_DataComboFile[2022/23 Revised baseline]*$B$3)","v":0},0,{"$f":"SUMPRODUCT(((T_DataComboFile[Implementation programme]=$G$3)*(T_DataComboFile[Econ3]=$G185))*T_DataComboFile[2023/24 Baseline]*$B$3)","v":0},{"$f":"SUMPRODUCT(((T_DataComboFile[Implementation programme]=$G$3)*(T_DataComboFile[Econ3]=$G185))*T_DataComboFile[2023/24 Revised baseline]*$B$3)","v":0},0]
[0,50,null,null,null,null,"of which:"]
[0,52,null,null,null,null,null,null,null,{"$f":"I187-H187","v":0},null,null,{"$f":"L187-K187","v":0},null,null,{"$f":"O187-N187","v":0}]
[0,52,null,null,null,null,null,null,null,0,null,null,0,null,null,0]
[0,52,null,null,null,null,null,null,null,0,null,null,0,null,null,0]
[0,52,null,null,null,null,null,null,null,0,null,null,0,null,null,0]
[0,52,null,null,null,null,null,null,null,0,null,null,0,null,null,0]
[0,52,null,null,null,null,null,null,null,0,null,null,0,null,null,0]
[0,52,null,null,null,null,null,null,null,0,null,null,0,null,null,0]
[0,52,null,null,null,null,null,null,null,0,null,null,0,null,null,0]
[0,52,null,null,null,null,null,null,null,0,null,null,0,null,null,0]
[0,52,null,null,null,null,null,null,null,0,null,null,0,null,null,0]
[0,5,null,null,null,null,"Higher education institutions",{"$f":"SUMPRODUCT(((T_DataComboFile[Implementation programme]=$G$3)*(T_DataComboFile[Econ3]=$G197))*T_DataComboFile[2021/22 Baseline]*$B$3)","v":0},{"$f":"SUMPRODUCT(((T_DataComboFile[Implementation programme]=$G$3)*(T_DataComboFile[Econ3]=$G197))*T_DataComboFile[2021/22 Revised baseline]*$B$3)","v":0},0,{"$f":"SUMPRODUCT(((T_DataComboFile[Implementation programme]=$G$3)*(T_DataComboFile[Econ3]=$G197))*T_DataComboFile[2022/23 Baseline]*$B$3)","v":0},{"$f":"SUMPRODUCT(((T_DataComboFile[Implementation programme]=$G$3)*(T_DataComboFile[Econ3]=$G197))*T_DataComboFile[2022/23 Revised baseline]*$B$3)","v":0},0,{"$f":"SUMPRODUCT(((T_DataComboFile[Implementation programme]=$G$3)*(T_DataComboFile[Econ3]=$G197))*T_DataComboFile[2023/24 Baseline]*$B$3)","v":0},{"$f":"SUMPRODUCT(((T_DataComboFile[Implementation programme]=$G$3)*(T_DataComboFile[Econ3]=$G197))*T_DataComboFile[2023/24 Revised baseline]*$B$3)","v":0},0]
[0,5,null,null,null,null,"Foreign governments and international organisations",{"$f":"SUMPRODUCT(((T_DataComboFile[Implementation programme]=$G$3)*(T_DataComboFile[Econ3]=$G198))*T_DataComboFile[2021/22 Baseline]*$B$3)","v":0},{"$f":"SUMPRODUCT(((T_DataComboFile[Implementation programme]=$G$3)*(T_DataComboFile[Econ3]=$G198))*T_DataComboFile[2021/22 Revised baseline]*$B$3)","v":0},0,{"$f":"SUMPRODUCT(((T_DataComboFile[Implementation programme]=$G$3)*(T_DataComboFile[Econ3]=$G198))*T_DataComboFile[2022/23 Baseline]*$B$3)","v":0},{"$f":"SUMPRODUCT(((T_DataComboFile[Implementation programme]=$G$3)*(T_DataComboFile[Econ3]=$G198))*T_DataComboFile[2022/23 Revised baseline]*$B$3)","v":0},0,{"$f":"SUMPRODUCT(((T_DataComboFile[Implementation programme]=$G$3)*(T_DataComboFile[Econ3]=$G198))*T_DataComboFile[2023/24 Baseline]*$B$3)","v":0},{"$f":"SUMPRODUCT(((T_DataComboFile[Implementation programme]=$G$3)*(T_DataComboFile[Econ3]=$G198))*T_DataComboFile[2023/24 Revised baseline]*$B$3)","v":0},0]
[0,5,null,null,null,null,"Public corporations and private enterprises",{"$f":"SUMPRODUCT(((T_DataComboFile[Implementation programme]=$G$3)*(T_DataComboFile[Econ3]=$G199))*T_DataComboFile[2021/22 Baseline]*$B$3)","v":0},{"$f":"SUMPRODUCT(((T_DataComboFile[Implementation programme]=$G$3)*(T_DataComboFile[Econ3]=$G199))*T_DataComboFile[2021/22 Revised baseline]*$B$3)","v":0},0,{"$f":"SUMPRODUCT(((T_DataComboFile[Implementation programme]=$G$3)*(T_DataComboFile[Econ3]=$G199))*T_DataComboFile[2022/23 Baseline]*$B$3)","v":0},{"$f":"SUMPRODUCT(((T_DataComboFile[Implementation programme]=$G$3)*(T_DataComboFile[Econ3]=$G199))*T_DataComboFile[2022/23 Revised baseline]*$B$3)","v":0},0,{"$f":"SUMPRODUCT(((T_DataComboFile[Implementation programme]=$G$3)*(T_DataComboFile[Econ3]=$G199))*T_DataComboFile[2023/24 Baseline]*$B$3)","v":0},{"$f":"SUMPRODUCT(((T_DataComboFile[Implementation programme]=$G$3)*(T_DataComboFile[Econ3]=$G199))*T_DataComboFile[2023/24 Revised baseline]*$B$3)","v":0},0]
[0,50,null,null,null,null,"of which:"]
[0,53,null,null,null,null,null,null,null,{"$f":"I201-H201","v":0},null,null,{"$f":"L201-K201","v":0},null,null,{"$f":"O201-N201","v":0}]
[0,53,null,null,null,null,null,null,null,0,null,null,0,null,null,0]
[0,53,null,null,null,null,null,null,null,0,null,null,0,null,null,0]
[0,53,null,null,null,null,null,null,null,0,null,null,0,null,null,0]
[0,53,null,null,null,null,null,null,null,0,null,null,0,null,null,0]
[0,5,null,null,null,null,"Non-profit institutions",{"$f":"SUMPRODUCT(((T_DataComboFile[Implementation programme]=$G$3)*(T_DataComboFile[Econ3]=$G206))*T_DataComboFile[2021/22 Baseline]*$B$3)","v":0},{"$f":"SUMPRODUCT(((T_DataComboFile[Implementation programme]=$G$3)*(T_DataComboFile[Econ3]=$G206))*T_DataComboFile[2021/22 Revised baseline]*$B$3)","v":0},0,{"$f":"SUMPRODUCT(((T_DataComboFile[Implementation programme]=$G$3)*(T_DataComboFile[Econ3]=$G206))*T_DataComboFile[2022/23 Baseline]*$B$3)","v":0},{"$f":"SUMPRODUCT(((T_DataComboFile[Implementation programme]=$G$3)*(T_DataComboFile[Econ3]=$G206))*T_DataComboFile[2022/23 Revised baseline]*$B$3)","v":0},0,{"$f":"SUMPRODUCT(((T_DataComboFile[Implementation programme]=$G$3)*(T_DataComboFile[Econ3]=$G206))*T_DataComboFile[2023/24 Baseline]*$B$3)","v":0},{"$f":"SUMPRODUCT(((T_DataComboFile[Implementation programme]=$G$3)*(T_DataComboFile[Econ3]=$G206))*T_DataComboFile[2023/24 Revised baseline]*$B$3)","v":0},0]
[0,5,null,null,null,null,"Households",{"$f":"SUMPRODUCT(((T_DataComboFile[Implementation programme]=$G$3)*(T_DataComboFile[Econ3]=$G207))*T_DataComboFile[2021/22 Baseline]*$B$3)","v":0},{"$f":"SUMPRODUCT(((T_DataComboFile[Implementation programme]=$G$3)*(T_DataComboFile[Econ3]=$G207))*T_DataComboFile[2021/22 Revised baseline]*$B$3)","v":0},0,{"$f":"SUMPRODUCT(((T_DataComboFile[Implementation programme]=$G$3)*(T_DataComboFile[Econ3]=$G207))*T_DataComboFile[2022/23 Baseline]*$B$3)","v":0},{"$f":"SUMPRODUCT(((T_DataComboFile[Implementation programme]=$G$3)*(T_DataComboFile[Econ3]=$G207))*T_DataComboFile[2022/23 Revised baseline]*$B$3)","v":0},0,{"$f":"SUMPRODUCT(((T_DataComboFile[Implementation programme]=$G$3)*(T_DataComboFile[Econ3]=$G207))*T_DataComboFile[2023/24 Baseline]*$B$3)","v":0},{"$f":"SUMPRODUCT(((T_DataComboFile[Implementation programme]=$G$3)*(T_DataComboFile[Econ3]=$G207))*T_DataComboFile[2023/24 Revised baseline]*$B$3)","v":0},0]
[0,5,null,null,null,null,"Payments for capital assets",{"$f":"SUM(H209:H215)","v":0},0,0,0,0,0,0,{"$f":"SUM(O209:O215)","v":0},0]
[0,5,null,null,null,null,"Buildings and other fixed structures",{"$f":"SUMPRODUCT(((T_DataComboFile[Implementation programme]=$G$3)*(T_DataComboFile[Econ3]=$G209))*T_DataComboFile[2021/22 Baseline]*$B$3)","v":0},{"$f":"SUMPRODUCT(((T_DataComboFile[Implementation programme]=$G$3)*(T_DataComboFile[Econ3]=$G209))*T_DataComboFile[2021/22 Revised baseline]*$B$3)","v":0},0,{"$f":"SUMPRODUCT(((T_DataComboFile[Implementation programme]=$G$3)*(T_DataComboFile[Econ3]=$G209))*T_DataComboFile[2022/23 Baseline]*$B$3)","v":0},{"$f":"SUMPRODUCT(((T_DataComboFile[Implementation programme]=$G$3)*(T_DataComboFile[Econ3]=$G209))*T_DataComboFile[2022/23 Revised baseline]*$B$3)","v":0},0,{"$f":"SUMPRODUCT(((T_DataComboFile[Implementation programme]=$G$3)*(T_DataComboFile[Econ3]=$G209))*T_DataComboFile[2023/24 Baseline]*$B$3)","v":0},{"$f":"SUMPRODUCT(((T_DataComboFile[Implementation programme]=$G$3)*(T_DataComboFile[Econ3]=$G209))*T_DataComboFile[2023/24 Revised baseline]*$B$3)","v":0},0]
[0,5,null,null,null,null,"Machinery and equipment",{"$f":"SUMPRODUCT(((T_DataComboFile[Implementation programme]=$G$3)*(T_DataComboFile[Econ3]=$G210))*T_DataComboFile[2021/22 Baseline]*$B$3)","v":0},{"$f":"SUMPRODUCT(((T_DataComboFile[Implementation programme]=$G$3)*(T_DataComboFile[Econ3]=$G210))*T_DataComboFile[2021/22 Revised baseline]*$B$3)","v":0},0,{"$f":"SUMPRODUCT(((T_DataComboFile[Implementation programme]=$G$3)*(T_DataComboFile[Econ3]=$G210))*T_DataComboFile[2022/23 Baseline]*$B$3)","v":0},{"$f":"SUMPRODUCT(((T_DataComboFile[Implementation programme]=$G$3)*(T_DataComboFile[Econ3]=$G210))*T_DataComboFile[2022/23 Revised baseline]*$B$3)","v":0},0,{"$f":"SUMPRODUCT(((T_DataComboFile[Implementation programme]=$G$3)*(T_DataComboFile[Econ3]=$G210))*T_DataComboFile[2023/24 Baseline]*$B$3)","v":0},{"$f":"SUMPRODUCT(((T_DataComboFile[Implementation programme]=$G$3)*(T_DataComboFile[Econ3]=$G210))*T_DataComboFile[2023/24 Revised baseline]*$B$3)","v":0},0]
[0,5,null,null,null,null,"Heritage assets",{"$f":"SUMPRODUCT(((T_DataComboFile[Implementation programme]=$G$3)*(T_DataComboFile[Econ3]=$G211))*T_DataComboFile[2021/22 Baseline]*$B$3)","v":0},{"$f":"SUMPRODUCT(((T_DataComboFile[Implementation programme]=$G$3)*(T_DataComboFile[Econ3]=$G211))*T_DataComboFile[2021/22 Revised baseline]*$B$3)","v":0},0,{"$f":"SUMPRODUCT(((T_DataComboFile[Implementation programme]=$G$3)*(T_DataComboFile[Econ3]=$G211))*T_DataComboFile[2022/23 Baseline]*$B$3)","v":0},{"$f":"SUMPRODUCT(((T_DataComboFile[Implementation programme]=$G$3)*(T_DataComboFile[Econ3]=$G211))*T_DataComboFile[2022/23 Revised baseline]*$B$3)","v":0},0,{"$f":"SUMPRODUCT(((T_DataComboFile[Implementation programme]=$G$3)*(T_DataComboFile[Econ3]=$G211))*T_DataComboFile[2023/24 Baseline]*$B$3)","v":0},{"$f":"SUMPRODUCT(((T_DataComboFile[Implementation programme]=$G$3)*(T_DataComboFile[Econ3]=$G211))*T_DataComboFile[2023/24 Revised baseline]*$B$3)","v":0},0]
[0,5,null,null,null,null,"Specialised military assets",{"$f":"SUMPRODUCT(((T_DataComboFile[Implementation programme]=$G$3)*(T_DataComboFile[Econ3]=$G212))*T_DataComboFile[2021/22 Baseline]*$B$3)","v":0},{"$f":"SUMPRODUCT(((T_DataComboFile[Implementation programme]=$G$3)*(T_DataComboFile[Econ3]=$G212))*T_DataComboFile[2021/22 Revised baseline]*$B$3)","v":0},0,{"$f":"SUMPRODUCT(((T_DataComboFile[Implementation programme]=$G$3)*(T_DataComboFile[Econ3]=$G212))*T_DataComboFile[2022/23 Baseline]*$B$3)","v":0},{"$f":"SUMPRODUCT(((T_DataComboFile[Implementation programme]=$G$3)*(T_DataComboFile[Econ3]=$G212))*T_DataComboFile[2022/23 Revised baseline]*$B$3)","v":0},0,{"$f":"SUMPRODUCT(((T_DataComboFile[Implementation programme]=$G$3)*(T_DataComboFile[Econ3]=$G212))*T_DataComboFile[2023/24 Baseline]*$B$3)","v":0},{"$f":"SUMPRODUCT(((T_DataComboFile[Implementation programme]=$G$3)*(T_DataComboFile[Econ3]=$G212))*T_DataComboFile[2023/24 Revised baseline]*$B$3)","v":0},0]
[0,5,null,null,null,null,"Biological assets",{"$f":"SUMPRODUCT(((T_DataComboFile[Implementation programme]=$G$3)*(T_DataComboFile[Econ3]=$G213))*T_DataComboFile[2021/22 Baseline]*$B$3)","v":0},{"$f":"SUMPRODUCT(((T_DataComboFile[Implementation programme]=$G$3)*(T_DataComboFile[Econ3]=$G213))*T_DataComboFile[2021/22 Revised baseline]*$B$3)","v":0},0,{"$f":"SUMPRODUCT(((T_DataComboFile[Implementation programme]=$G$3)*(T_DataComboFile[Econ3]=$G213))*T_DataComboFile[2022/23 Baseline]*$B$3)","v":0},{"$f":"SUMPRODUCT(((T_DataComboFile[Implementation programme]=$G$3)*(T_DataComboFile[Econ3]=$G213))*T_DataComboFile[2022/23 Revised baseline]*$B$3)","v":0},0,{"$f":"SUMPRODUCT(((T_DataComboFile[Implementation programme]=$G$3)*(T_DataComboFile[Econ3]=$G213))*T_DataComboFile[2023/24 Baseline]*$B$3)","v":0},{"$f":"SUMPRODUCT(((T_DataComboFile[Implementation programme]=$G$3)*(T_DataComboFile[Econ3]=$G213))*T_DataComboFile[2023/24 Revised baseline]*$B$3)","v":0},0]
[0,5,null,null,null,null,"Land and sub-soil assets",{"$f":"SUMPRODUCT(((T_DataComboFile[Implementation programme]=$G$3)*(T_DataComboFile[Econ3]=$G214))*T_DataComboFile[2021/22 Baseline]*$B$3)","v":0},{"$f":"SUMPRODUCT(((T_DataComboFile[Implementation programme]=$G$3)*(T_DataComboFile[Econ3]=$G214))*T_DataComboFile[2021/22 Revised baseline]*$B$3)","v":0},0,{"$f":"SUMPRODUCT(((T_DataComboFile[Implementation programme]=$G$3)*(T_DataComboFile[Econ3]=$G214))*T_DataComboFile[2022/23 Baseline]*$B$3)","v":0},{"$f":"SUMPRODUCT(((T_DataComboFile[Implementation programme]=$G$3)*(T_DataComboFile[Econ3]=$G214))*T_DataComboFile[2022/23 Revised baseline]*$B$3)","v":0},0,{"$f":"SUMPRODUCT(((T_DataComboFile[Implementation programme]=$G$3)*(T_DataComboFile[Econ3]=$G214))*T_DataComboFile[2023/24 Baseline]*$B$3)","v":0},{"$f":"SUMPRODUCT(((T_DataComboFile[Implementation programme]=$G$3)*(T_DataComboFile[Econ3]=$G214))*T_DataComboFile[2023/24 Revised baseline]*$B$3)","v":0},0]
[0,5,null,null,null,null,"Software and other intangible assets",{"$f":"SUMPRODUCT(((T_DataComboFile[Implementation programme]=$G$3)*(T_DataComboFile[Econ3]=$G215))*T_DataComboFile[2021/22 Baseline]*$B$3)","v":0},{"$f":"SUMPRODUCT(((T_DataComboFile[Implementation programme]=$G$3)*(T_DataComboFile[Econ3]=$G215))*T_DataComboFile[2021/22 Revised baseline]*$B$3)","v":0},0,{"$f":"SUMPRODUCT(((T_DataComboFile[Implementation programme]=$G$3)*(T_DataComboFile[Econ3]=$G215))*T_DataComboFile[2022/23 Baseline]*$B$3)","v":0},{"$f":"SUMPRODUCT(((T_DataComboFile[Implementation programme]=$G$3)*(T_DataComboFile[Econ3]=$G215))*T_DataComboFile[2022/23 Revised baseline]*$B$3)","v":0},0,{"$f":"SUMPRODUCT(((T_DataComboFile[Implementation programme]=$G$3)*(T_DataComboFile[Econ3]=$G215))*T_DataComboFile[2023/24 Baseline]*$B$3)","v":0},{"$f":"SUMPRODUCT(((T_DataComboFile[Implementation programme]=$G$3)*(T_DataComboFile[Econ3]=$G215))*T_DataComboFile[2023/24 Revised baseline]*$B$3)","v":0},0]
[0,5,null,null,null,null,"Payments for financial assets",{"$f":"SUMPRODUCT(((T_DataComboFile[Implementation programme]=$G$3)*(T_DataComboFile[Econ3]=$G216))*T_DataComboFile[2021/22 Baseline]*$B$3)","v":0},{"$f":"SUMPRODUCT(((T_DataComboFile[Implementation programme]=$G$3)*(T_DataComboFile[Econ3]=$G216))*T_DataComboFile[2021/22 Revised baseline]*$B$3)","v":0},0,{"$f":"SUMPRODUCT(((T_DataComboFile[Implementation programme]=$G$3)*(T_DataComboFile[Econ3]=$G216))*T_DataComboFile[2022/23 Baseline]*$B$3)","v":0},{"$f":"SUMPRODUCT(((T_DataComboFile[Implementation programme]=$G$3)*(T_DataComboFile[Econ3]=$G216))*T_DataComboFile[2022/23 Revised baseline]*$B$3)","v":0},0,{"$f":"SUMPRODUCT(((T_DataComboFile[Implementation programme]=$G$3)*(T_DataComboFile[Econ3]=$G216))*T_DataComboFile[2023/24 Baseline]*$B$3)","v":0},{"$f":"SUMPRODUCT(((T_DataComboFile[Implementation programme]=$G$3)*(T_DataComboFile[Econ3]=$G216))*T_DataComboFile[2023/24 Revised baseline]*$B$3)","v":0},0]
[0,5,null,null,null,null,"Total",{"$f":"SUM(H173,H183,H208,H216)","v":0},0,0,0,0,0,0,{"$f":"SUM(O173,O183,O208,O216)","v":0},0]
[]
[null,null,null,null,null,null,null,{"$f":"L65-H217","v":0},{"$f":"O65-I217","v":0},null,{"$f":"P65-K217","v":0},{"$f":"S65-L217","v":0},null,{"$f":"T65-N217","v":0},{"$f":"W65-O217","v":0}]

{"sheet":"Metadata","index":30,"n_rows":26,"n_cols":4,"rows_kept":26,"cut":false,"hidden":true,"merged":[]}
[]
[null,"Metadata"]
[null,"ContextData","ProcessActivity","NAT_MTEC"]
[null,null,"Province","National"]
[null,null,"Department",{"$f":"MyDeptName","v":"Small Business Development"}]
[null,null,"Month"]
[null,null,"Fin Year","2021/22"]
[null,null,"VoteNo",{"$f":"MyVoteNo","v":36}]
[null,null,"Identifier"]
[null,null,"ProgSectionCount"]
[null,null,"SubprogSectionCount"]
[null,"SourceRef","name",{"$f":"Welcome!G11","v":0}]
[null,null,"email",{"$f":"Welcome!G12","v":0}]
[null,null,"telephone",{"$f":"Welcome!G13","v":0}]
[null,null,"mobile",{"$f":"Welcome!G14","v":0}]
[null,"Platform","file modified",{"$f":"NOW()","v":44064.678400925928}]
[null,null,"OS version",{"$f":"INFO(\"OSVERSION\")","v":"Windows (64-bit) NT :.00"}]
[null,null,"Excel version",{"$f":"INFO(\"RELEASE\")","v":"16.0"}]
[null,"SourceControl","SourceIdentifier",{"$f":"CONCATENATE(D3,\"_\",D9,\"_\",D16)","v":"NAT_MTEC__44064.6784009259"}]
[null,null,"Filename",{"$f":"MID(CELL(\"filename\",A1),FIND(\"[\",CELL(\"filename\",A1))+1,FIND(\"]\",CELL(\"filename\",A1))-FIND(\"[\",CELL(\"filename\",A1))-1)","v":"MTEC2021-Vote 36.xlsm"}]
[null,null,"FilePath",{"$f":"LEFT(CELL(\"filename\",A1),FIND(\"[\",CELL(\"filename\",A1),1)-1)","v":"P:\\1. Budget\\2021\\1. MTEC\\Master Workbook file\\Model\\Rollout\\"}]
[null,null,"template_versionDate",{"$f":"DATE(2015,6,26)","v":42181}]
[null,null,"LockDate1",{"$f":"DATE(2015,2,8)","v":42043}]
[null,null,"lockDate2",{"$f":"DATE(2015,2,8)","v":42043}]
[null,null,"LockStatus1",1]
[null,null,"LockStatus2",1]

{"sheet":"Sheet1","index":31,"n_rows":50,"n_cols":30,"rows_kept":50,"cut":false,"hidden":true,"merged":[]}
[]
[null,"Department:","Cooperative Governance"]
[]
[null,null,null,null,null,null,null,null,null,null,null,null,null,null,null,null,null,null,null,null,"Check Ceilings"]
[null,null,null,null,null,null,null,null,{"$f":"20-COUNTIF(J7:J26,\"\")","v":1},null,null,null,null,null,null,null,null,null,null,null,"2021/22","2022/23","2023/24","Check","Message",null,null,"ShtNames","Lock","Hide"]
[null,"UID_Org","Department","Programme","Subprogramme","Implementation programme","IP No",null,"IP No","Implementation programme",null,null,"ShtName",null,null,null,"Gov_Priority",null,null,"Dept",{"$f":"Data!BS9","v":-101573},{"$f":"Data!BT9","v":-167221},{"$f":"Data!BU9","v":-281942},{"$f":"IF(OR(U6<0,V6<0,W6<0),1,0)","v":1},{"$f":"IF(X6=1,\"Departmental baseline ceiling exceeded!\")","v":"Departmental baseline ceiling exceeded!"},null,null,"Welcome",1,0]
[null,"03|01|01","Cooperative Governance","Administration","Ministry",null,null,null,1,{"$f":"IFERROR(INDEX(T_DataComboFile[Implementation programme],MATCH(0,COUNTIF(Sheet1!$J$6:J6,T_DataComboFile[Implementation programme]),0)),\"\")","v":0},null,null,"IP1",null,{"$f":"IFERROR(INDEX((t_PolicyMap[Implementation programme]),MATCH(I7,t_PolicyMap[IP No],0)),\"\")","v":""},null,"Priority 1: Economic transformation and job creation",null,null,"CoE",{"$f":"Data!BS12","v":-8683},{"$f":"Data!BT12","v":-13570},{"$f":"Data!BU12","v":-23729},{"$f":"IF(OR(U7<0,V7<0,W7<0),1,0)","v":1},{"$f":"IF(X7=1,\"Compensation baseline ceiling exceeded!\")","v":"Compensation baseline ceiling exceeded!"},null,null,"Notes",1,0]
[null,"03|01|02","Cooperative Governance","Administration","Management",null,null,null,2,{"$f":"IFERROR(INDEX(T_DataComboFile[Implementation programme],MATCH(0,COUNTIF(Sheet1!$J$6:J7,T_DataComboFile[Implementation programme]),0)),\"\")","v":""},null,null,"IP2",null,{"$f":"IFERROR(INDEX((t_PolicyMap[Implementation programme]),MATCH(I8,t_PolicyMap[IP No],0)),\"\")","v":""},null,"Priority 2: Education, skills and health",null,null,null,null,null,null,{"$f":"SUM(X6:X7)","v":2},null,null,null,"Pivot % growth",0,0]
[null,"03|01|03","Cooperative Governance","Administration","Corporate Services",null,null,null,3,{"$f":"IFERROR(INDEX(T_DataComboFile[Implementation programme],MATCH(0,COUNTIF(Sheet1!$J$6:J8,T_DataComboFile[Implementation programme]),0)),\"\")","v":""},null,null,"IP3",null,{"$f":"IFERROR(INDEX((t_PolicyMap[Implementation programme]),MATCH(I9,t_PolicyMap[IP No],0)),\"\")","v":""},null,"Priority 3: Consolidating the social wage through reliable and quality basic services",null,null,null,null,null,null,null,null,null,null,"Pivot_T",0,0]
[null,"03|01|04","Cooperative Governance","Administration","Financial Services",null,null,null,4,{"$f":"IFERROR(INDEX(T_DataComboFile[Implementation programme],MATCH(0,COUNTIF(Sheet1!$J$6:J9,T_DataComboFile[Implementation programme]),0)),\"\")","v":""},null,null,null,null,{"$f":"IFERROR(INDEX((t_PolicyMap[Implementation programme]),MATCH(I10,t_PolicyMap[IP No],0)),\"\")","v":""},null,"Priority 4: Spatial integration, human settlements and local government",null,null,null,null,null,null,null,null,null,null,"Service delivery impact",0,0]
[null,"03|01|05","Cooperative Governance","Administration","Internal Audit and Risk Management",null,null,null,5,{"$f":"IFERROR(INDEX(T_DataComboFile[Implementation programme],MATCH(0,COUNTIF(Sheet1!$J$6:J10,T_DataComboFile[Implementation programme]),0)),\"\")","v":""},null,null,null,null,{"$f":"IFERROR(INDEX((t_PolicyMap[Implementation programme]),MATCH(I11,t_PolicyMap[IP No],0)),\"\")","v":""},null,"Priority 5: Social cohesion and safe communities",null,null,null,null,null,null,null,null,null,null,"Performance impact",0,0]
[null,"03|01|06","Cooperative Governance","Administration","Office Accommodation",null,null,null,6,{"$f":"IFERROR(INDEX(T_DataComboFile[Implementation programme],MATCH(0,COUNTIF(Sheet1!$J$6:J11,T_DataComboFile[Implementation programme]),0)),\"\")","v":""},null,null,null,null,{"$f":"IFERROR(INDEX((t_PolicyMap[Implementation programme]),MATCH(I12,t_PolicyMap[IP No],0)),\"\")","v":""},null,"Priority 6: A capable, ethical and developmental state",null,null,null,null,null,null,null,null,null,null,"Pivot Infra impact",0,0]
[null,"03|02|01","Cooperative Governance","Regional and Urban Development and Legislative Support","Management: Regional and Urban Development and Legislative Support",null,null,null,7,{"$f":"IFERROR(INDEX(T_DataComboFile[Implementation programme],MATCH(0,COUNTIF(Sheet1!$J$6:J12,T_DataComboFile[Implementation programme]),0)),\"\")","v":""},null,null,null,null,{"$f":"IFERROR(INDEX((t_PolicyMap[Implementation programme]),MATCH(I13,t_PolicyMap[IP No],0)),\"\")","v":""},null,"Priority 7: A better Africa and world",null,null,null,null,null,null,null,null,null,null,"Pivot Personnel impact",0,0]
[null,"03|02|02","Cooperative Governance","Regional and Urban Development and Legislative Support","Local Government Legislative Support and Institutional Establishment",null,null,null,8,{"$f":"IFERROR(INDEX(T_DataComboFile[Implementation programme],MATCH(0,COUNTIF(Sheet1!$J$6:J13,T_DataComboFile[Implementation programme]),0)),\"\")","v":""},null,null,null,null,{"$f":"IFERROR(INDEX((t_PolicyMap[Implementation programme]),MATCH(I14,t_PolicyMap[IP No],0)),\"\")","v":""},null,"Departmental mandate",null,null,null,null,null,null,null,null,null,null,"Data",1,0]
[null,"03|02|03","Cooperative Governance","Regional and Urban Development and Legislative Support","Urban Development Planning",null,null,null,9,{"$f":"IFERROR(INDEX(T_DataComboFile[Implementation programme],MATCH(0,COUNTIF(Sheet1!$J$6:J14,T_DataComboFile[Implementation programme]),0)),\"\")","v":""},null,null,null,null,{"$f":"IFERROR(INDEX((t_PolicyMap[Implementation programme]),MATCH(I15,t_PolicyMap[IP No],0)),\"\")","v":""},null,null,null,null,null,null,null,null,null,null,null,null,"Summary",1,0]
[null,"03|02|04","Cooperative Governance","Regional and Urban Development and Legislative Support","Spatial Planning Districts and Regions",null,null,null,10,{"$f":"IFERROR(INDEX(T_DataComboFile[Implementation programme],MATCH(0,COUNTIF(Sheet1!$J$6:J15,T_DataComboFile[Implementation programme]),0)),\"\")","v":""},null,null,null,null,{"$f":"IFERROR(INDEX((t_PolicyMap[Implementation programme]),MATCH(I16,t_PolicyMap[IP No],0)),\"\")","v":""},null,null,null,null,null,null,null,null,null,null,null,null,"IP1",1,0]
[null,"03|02|05","Cooperative Governance","Regional and Urban Development and Legislative Support","Intergovernmental Policy and Practice",null,null,null,11,{"$f":"IFERROR(INDEX(T_DataComboFile[Implementation programme],MATCH(0,COUNTIF(Sheet1!$J$6:J16,T_DataComboFile[Implementation programme]),0)),\"\")","v":""},null,null,null,null,{"$f":"IFERROR(INDEX((t_PolicyMap[Implementation programme]),MATCH(I17,t_PolicyMap[IP No],0)),\"\")","v":""},null,null,null,null,null,null,null,null,null,null,null,null,"IP2",1,0]
[null,"03|02|06","Cooperative Governance","Regional and Urban Development and Legislative Support","Municipal Demarcation Transition Grant",null,null,null,12,{"$f":"IFERROR(INDEX(T_DataComboFile[Implementation programme],MATCH(0,COUNTIF(Sheet1!$J$6:J17,T_DataComboFile[Implementation programme]),0)),\"\")","v":""},null,null,null,null,{"$f":"IFERROR(INDEX((t_PolicyMap[Implementation programme]),MATCH(I18,t_PolicyMap[IP No],0)),\"\")","v":""},null,null,null,null,null,null,null,null,null,null,null,null,"IP3",1,0]
[null,"03|02|07","Cooperative Governance","Regional and Urban Development and Legislative Support","Municipal Demarcation Board",null,null,null,13,{"$f":"IFERROR(INDEX(T_DataComboFile[Implementation programme],MATCH(0,COUNTIF(Sheet1!$J$6:J18,T_DataComboFile[Implementation programme]),0)),\"\")","v":""},null,null,null,null,{"$f":"IFERROR(INDEX((t_PolicyMap[Implementation programme]),MATCH(I19,t_PolicyMap[IP No],0)),\"\")","v":""},null,null,null,null,null,null,null,null,null,null,null,null,"IP4",1,0]
[null,"03|02|08","Cooperative Governance","Regional and Urban Development and Legislative Support","South African Cities Network",null,null,null,14,{"$f":"IFERROR(INDEX(T_DataComboFile[Implementation programme],MATCH(0,COUNTIF(Sheet1!$J$6:J19,T_DataComboFile[Implementation programme]),0)),\"\")","v":""},null,null,null,null,{"$f":"IFERROR(INDEX((t_PolicyMap[Implementation programme]),MATCH(I20,t_PolicyMap[IP No],0)),\"\")","v":""},null,null,null,null,null,null,null,null,null,null,null,null,"IP5",1,0]
[null,"03|02|09","Cooperative Governance","Regional and Urban Development and Legislative Support","Integrated Urban Development Grant",null,null,null,15,{"$f":"IFERROR(INDEX(T_DataComboFile[Implementation programme],MATCH(0,COUNTIF(Sheet1!$J$6:J20,T_DataComboFile[Implementation programme]),0)),\"\")","v":""},null,null,null,null,{"$f":"IFERROR(INDEX((t_PolicyMap[Implementation programme]),MATCH(I21,t_PolicyMap[IP No],0)),\"\")","v":""},null,null,null,null,null,null,null,null,null,null,null,null,"IP6",1,0]
[null,"03|03|01","Cooperative Governance","Institutional Development","Management: Institutional Development",null,null,null,16,{"$f":"IFERROR(INDEX(T_DataComboFile[Implementation programme],MATCH(0,COUNTIF(Sheet1!$J$6:J21,T_DataComboFile[Implementation programme]),0)),\"\")","v":""},null,null,null,null,{"$f":"IFERROR(INDEX((t_PolicyMap[Implementation programme]),MATCH(I22,t_PolicyMap[IP No],0)),\"\")","v":""},null,null,null,null,null,null,null,null,null,null,null,null,"IP7",1,0]
[null,"03|03|02","Cooperative Governance","Institutional Development","Municipal Human Resources Management Systems",null,null,null,17,{"$f":"IFERROR(INDEX(T_DataComboFile[Implementation programme],MATCH(0,COUNTIF(Sheet1!$J$6:J22,T_DataComboFile[Implementation programme]),0)),\"\")","v":""},null,null,null,null,{"$f":"IFERROR(INDEX((t_PolicyMap[Implementation programme]),MATCH(I23,t_PolicyMap[IP No],0)),\"\")","v":""},null,null,null,null,null,null,null,null,null,null,null,null,"IP8",1,0]
[null,"03|03|03","Cooperative Governance","Institutional Development","Municipal Finance",null,null,null,18,{"$f":"IFERROR(INDEX(T_DataComboFile[Implementation programme],MATCH(0,COUNTIF(Sheet1!$J$6:J23,T_DataComboFile[Implementation programme]),0)),\"\")","v":""},null,null,null,null,{"$f":"IFERROR(INDEX((t_PolicyMap[Implementation programme]),MATCH(I24,t_PolicyMap[IP No],0)),\"\")","v":""},null,null,null,null,null,null,null,null,null,null,null,null,"IP9",1,0]
[null,"03|03|04","Cooperative Governance","Institutional Development","Citizen Engagement",null,null,null,19,{"$f":"IFERROR(INDEX(T_DataComboFile[Implementation programme],MATCH(0,COUNTIF(Sheet1!$J$6:J24,T_DataComboFile[Implementation programme]),0)),\"\")","v":""},null,null,null,null,{"$f":"IFERROR(INDEX((t_PolicyMap[Implementation programme]),MATCH(I25,t_PolicyMap[IP No],0)),\"\")","v":""},null,null,null,null,null,null,null,null,null,null,null,null,"IP10",1,0]
[null,"03|03|05","Cooperative Governance","Institutional Development","Anti-Corruption and Good Governance",null,null,null,20,{"$f":"IFERROR(INDEX(T_DataComboFile[Implementation programme],MATCH(0,COUNTIF(Sheet1!$J$6:J25,T_DataComboFile[Implementation programme]),0)),\"\")","v":""},null,null,null,null,{"$f":"IFERROR(INDEX((t_PolicyMap[Implementation programme]),MATCH(I26,t_PolicyMap[IP No],0)),\"\")","v":""},null,null,null,null,null,null,null,null,null,null,null,null,"IP11",1,0]
[null,"03|03|06","Cooperative Governance","Institutional Development","Municipal Property Rates",null,null,null,null,null,null,null,null,null,null,null,null,null,null,null,null,null,null,null,null,null,null,"IP12",1,0]
[null,"03|03|07","Cooperative Governance","Institutional Development","Local Government Equitable Share ",null,null,null,null,null,null,null,null,null,null,null,null,null,null,null,null,null,null,null,null,null,null,"IP13",1,0]
[null,"03|03|08","Cooperative Governance","Institutional Development","South African Local Government Association",null,null,null,null,null,null,null,null,null,null,null,null,null,null,null,null,null,null,null,null,null,null,"IP14",1,0]
[null,"03|03|09","Cooperative Governance","Institutional Development","Municipal Systems Improvement Grant ",null,null,null,null,null,null,null,null,null,null,null,null,null,null,null,null,null,null,null,null,null,null,"IP15",1,0]
[null,"03|03|11","Cooperative Governance","Institutional Development","United Cities and Local Government of Africa",null,null,null,null,null,null,null,null,null,null,null,null,null,null,null,null,null,null,null,null,null,null,"IP16",1,0]
[null,"03|04|01","Cooperative Governance","National Disaster Management Centre","Management: Head of the National Disaster Management Centre",null,null,null,null,null,null,null,null,null,null,null,null,null,null,null,null,null,null,null,null,null,null,"IP17",1,0]
[null,"03|04|02","Cooperative Governance","National Disaster Management Centre","Disaster Risk Reduction, Capacity Building and Intervention",null,null,null,null,null,null,null,null,null,null,null,null,null,null,null,null,null,null,null,null,null,null,"IP18",1,0]
[null,"03|04|03","Cooperative Governance","National Disaster Management Centre","Legislation and Policy Management",null,null,null,null,null,null,null,null,null,null,null,null,null,null,null,null,null,null,null,null,null,null,"IP19",1,0]
[null,"03|04|04","Cooperative Governance","National Disaster Management Centre","Integrated Provincial Disaster Management Support, Monitoring and Evaluation Systems",null,null,null,null,null,null,null,null,null,null,null,null,null,null,null,null,null,null,null,null,null,null,"IP20",1,0]
[null,"03|04|05","Cooperative Governance","National Disaster Management Centre","Fire Services",null,null,null,null,null,null,null,null,null,null,null,null,null,null,null,null,null,null,null,null,null,null,"Metadata",1,1]
[null,"03|04|06","Cooperative Governance","National Disaster Management Centre","Information Technology, Intelligence and Information Management Systems",null,null,null,null,null,null,null,null,null,null,null,null,null,null,null,null,null,null,null,null,null,null,"Sheet1",0,1]
[null,"03|04|07","Cooperative Governance","National Disaster Management Centre","Disaster Relief Grant",null,null,null,null,null,null,null,null,null,null,null,null,null,null,null,null,null,null,null,null,null,null,"Tables",0,1]
[null,"03|04|08","Cooperative Governance","National Disaster Management Centre","Municipal Disaster Recovery Grant"]
[null,"03|04|09","Cooperative Governance","National Disaster Management Centre","Provincial Disaster Recovery Grant"]
[null,"03|05|01","Cooperative Governance","Local Government Support and Intervention Management","Management: Local Government Support and Interventions"]
[null,"03|05|02","Cooperative Governance","Local Government Support and Intervention Management","Municipal Performance Monitoring"]
[null,"03|05|03","Cooperative Governance","Local Government Support and Intervention Management","Local Government Improvement Programme"]
[null,"03|05|04","Cooperative Governance","Local Government Support and Intervention Management","Litigations and Interventions"]
[null,"03|05|05","Cooperative Governance","Local Government Support and Intervention Management","Municipal Infrastructure Administration"]
[null,"03|05|06","Cooperative Governance","Local Government Support and Intervention Management","Municipal Infrastructure Grant"]
[null,"03|05|07","Cooperative Governance","Local Government Support and Intervention Management","Municipal Infrastructure Support Agent"]
[null,"03|06|01","Cooperative Governance","Community Work Programme","Management: Community Work Programme"]
[null,"03|06|02","Cooperative Governance","Community Work Programme","Programme Coordination"]
[null,"03|06|03","Cooperative Governance","Community Work Programme","Partnerships, Norms, Standards and Innovation"]

{"sheet":"Tables","index":32,"n_rows":1081,"n_cols":27,"rows_kept":1081,"cut":false,"hidden":true,"merged":[]}
[null,null,null,null,null,null,null,null,null,null,null,null,null,null,null,null,null,"Headers: Performance",null,null,null,"Headers: Infrastructure",null,null,null,"Headers: Personnel"]
["Vote No. - N","Vote No.","Department",null,null,"Vote No. - N","Programme No. - N","Subprogramme No. - N","Vote No.","Programme No.","Subprogramme No.","UID_Org","Department","Programme","Subprogramme",null,null,"CurCol","NewCol",null,null,"CurCol","NewCol",null,null,"CurCol","NewCol"]
[1,"01","The Presidency",null,null,1,1,1,"01","01","01","01|01|01","The Presidency","Administration","Management",null,null,"Column1","IP no",null,null,"Column1","IP no",null,null,"Column1","IP no"]
[2,"02","Parliament",null,null,1,1,2,"01","01","02","01|01|02","The Presidency","Administration","Support Services to the President",null,null,"Column2","Impact area",null,null,"Column2","Impact area",null,null,"Column2","Impact area"]
[3,"03","Cooperative Governance",null,null,1,1,3,"01","01","03","01|01|03","The Presidency","Administration","Support Services to the Deputy President",null,null,"Column3","IP name",null,null,"Column3","IP name",null,null,"Column3","IP name"]
[4,"04","Government Communication and Information System",null,null,1,2,1,"01","02","01","01|02|01","The Presidency","Executive Support","Cabinet Services",null,null,"Column4","Performance indicator",null,null,"Column4","Project",null,null,"Column4","Salary level"]
[5,"05","Home Affairs",null,null,1,3,1,"01","03","01","01|03|01","The Presidency","Policy and Research Services","Economy, Trade and Investment ",null,null,"Column5","2021/22|Original target",null,null,"Column5","2021/22|Original amount",null,null,"Column5","2021/22|Original number"]
[6,"06","International Relations and Cooperation",null,null,1,3,7,"01","03","07","01|03|07","The Presidency","Policy and Research Services","Socio Economic Impact Assessment System ",null,null,"Column6","2021/22 Revised target",null,null,"Column6","2021/22 Revised amount",null,null,"Column6","2021/22 Revised number"]
[7,"07","National School of Government",null,null,1,16,1,"01","16","01","01|16|01","The Presidency","Direct charge against the National Revenue Fund","Salary of the president",null,null,"Column7","2021/22 Change",null,null,"Column7","2021/22 Change",null,null,"Column7","2021/22 Change"]
[8,"08","National Treasury",null,null,1,16,2,"01","16","02","01|16|02","The Presidency","Direct charge against the National Revenue Fund","Salary of the deputy president",null,null,"Column8","2022/23 Original target",null,null,"Column8","2022/23 Original amount",null,null,"Column8","2022/23 Original number"]
[9,"09","Planning, Monitoring and Evaluation",null,null,2,1,1,"02","01","01","02|01|01","Parliament","Strategic Leadership and Governance","Office of the Speaker",null,null,"Column9","2022/23 Revised target",null,null,"Column9","2022/23 Revised amount",null,null,"Column9","2022/23 Revised number"]
[10,"10","Public Enterprises",null,null,2,1,2,"02","01","02","02|01|02","Parliament","Strategic Leadership and Governance","Office of the Chairperson ",null,null,"Column10","2022/23 Change",null,null,"Column10","2022/23 Change",null,null,"Column10","2022/23 Change"]
[11,"11","Public Service and Administration",null,null,2,1,3,"02","01","03","02|01|03","Parliament","Strategic Leadership and Governance","Treasury Advise Office",null,null,"Column11","2023/24 Original target",null,null,"Column11","2023/24 Original amount",null,null,"Column11","2023/24 Original number"]
[12,"12","Public Service Commission",null,null,2,1,4,"02","01","04","02|01|04","Parliament","Strategic Leadership and Governance","Parliamentary Budget Office",null,null,"Column12","2023/24 Revised target",null,null,"Column12","2023/24 Revised amount",null,null,"Column12","2023/24 Revised number"]
[13,"13","Public Works and Infrastructure",null,null,2,1,5,"02","01","05","02|01|05","Parliament","Strategic Leadership and Governance","Office of Institutions Supporting Democracy",null,null,"Column13","2023/24 Change",null,null,"Column13","2023/24 Change",null,null,"Column13","2023/24 Change"]
[14,"14","Statistics South Africa",null,null,2,2,1,"02","02","01","02|02|01","Parliament","Administration","Secretary's Office",null,null,"Column14","Comment",null,null,"Column14","Comment",null,null,"Column14","Comment"]
[15,"15","Traditional Affairs",null,null,2,2,2,"02","02","02","02|02|02","Parliament","Administration","Finance Management Office",null,null,"Column15","Gov Priority"]
[16,"16","Basic Education",null,null,2,2,3,"02","02","03","02|02|03","Parliament","Administration","Internal Audit"]
[17,"17","Higher Education and Training",null,null,2,2,4,"02","02","04","02|02|04","Parliament","Administration","Strategic Management and Governance"]
[18,"18","Health",null,null,2,2,5,"02","02","05","02|02|05","Parliament","Administration","Legislative Sector Support "]
[19,"19","Social Development",null,null,2,2,6,"02","02","06","02|02|06","Parliament","Administration","Registrar of Member's Interest"]
[20,"20","Women, Youth and Persons with Disabilities",null,null,2,2,7,"02","02","07","02|02|07","Parliament","Administration","Projects"]
[21,"21","Civilian Secretariat for the Police Service",null,null,2,2,8,"02","02","08","02|02|08","Parliament","Administration","State of the Nation Address"]
[22,"22","Correctional Services",null,null,2,3,1,"02","03","01","02|03|01","Parliament","Core Business","Office of the Deputy Secretary "]
[23,"23","Defence",null,null,2,3,2,"02","03","02","02|03|02","Parliament","Core Business","National Assembly "]
[24,"24","Independent Police Investigative Directorate",null,null,2,3,3,"02","03","03","02|03|03","Parliament","Core Business","National Council of Provinces"]
[25,"25","Justice and Constitutional Development",null,null,2,3,4,"02","03","04","02|03|04","Parliament","Core Business","Core Business Support "]
[26,"26","Military Veterans",null,null,2,3,5,"02","03","05","02|03|05","Parliament","Core Business","Knowledge and Information Services"]
[27,"27","Office of the Chief Justice",null,null,2,3,6,"02","03","06","02|03|06","Parliament","Core Business","International Relations and Protocol"]
[28,"28","Police",null,null,2,3,7,"02","03","07","02|03|07","Parliament","Core Business","Youth Parliament "]
[29,"29","Agriculture, Land Reform and Rural Development",null,null,2,3,8,"02","03","08","02|03|08","Parliament","Core Business","Women's Parliament "]
[30,"30","Communications and Digital Technologies",null,null,2,4,1,"02","04","01","02|04|01","Parliament","Support Services","Office of the Deputy Secretary "]
[31,"31","Employment and Labour",null,null,2,4,2,"02","04","02","02|04|02","Parliament","Support Services","Parliamentary Communication Services"]
[32,"32","Environment, Forestry and Fisheries",null,null,2,4,3,"02","04","03","02|04|03","Parliament","Support Services","Human Resources Management"]
[33,"33","Human Settlements",null,null,2,4,4,"02","04","04","02|04|04","Parliament","Support Services","Information Communication and Technology"]
[34,"34","Mineral Resources and Energy",null,null,2,4,5,"02","04","05","02|04|05","Parliament","Support Services","Institutional Support Services"]
[35,"35","Science and Innovation",null,null,2,4,6,"02","04","06","02|04|06","Parliament","Support Services","Member's Support Services"]
[36,"36","Small Business Development",null,null,2,5,1,"02","05","01","02|05|01","Parliament","Associated Services","Members Support Services"]
[37,"37","Sports, Arts and Culture",null,null,2,5,2,"02","05","02","02|05|02","Parliament","Associated Services","Political Party Support "]
[38,"38","Tourism",null,null,2,5,3,"02","05","03","02|05|03","Parliament","Associated Services","Constituency Support "]
[39,"39","Trade, Industry and Competition",null,null,2,5,4,"02","05","04","02|05|04","Parliament","Associated Services","Party Leadership Support"]
[40,"40","Transport",null,null,2,5,5,"02","05","05","02|05|05","Parliament","Associated Services","National Assembly Members’ Facilities"]
[41,"41","Water and Sanitation",null,null,2,5,6,"02","05","06","02|05|06","Parliament","Associated Services","National Council of Provinces Members’ Facilities"]
[42,"42","Centre for Public Service Innovation",null,null,2,16,1,"02","16","01","02|16|01","Parliament","Direct charge against the National Revenue Fund","Members' Remuneration "]
[50,"50","Below the line items",null,null,3,1,1,"03","01","01","03|01|01","Cooperative Governance","Administration","Ministry"]
[null,null,null,null,null,3,1,2,"03","01","02","03|01|02","Cooperative Governance","Administration","Management"]
[null,null,null,null,null,3,1,3,"03","01","03","03|01|03","Cooperative Governance","Administration","Corporate Services"]
[null,null,null,null,null,3,1,4,"03","01","04","03|01|04","Cooperative Governance","Administration","Financial Services"]
[null,null,null,null,null,3,1,5,"03","01","05","03|01|05","Cooperative Governance","Administration","Internal Audit and Risk Management"]
[null,null,null,null,null,3,1,6,"03","01","06","03|01|06","Cooperative Governance","Administration","Office Accommodation"]
[null,null,null,null,null,3,2,1,"03","02","01","03|02|01","Cooperative Governance","Regional and Urban Development and Legislative Support","Management: Regional and Urban Development and Legislative Support"]
[null,null,null,null,null,3,2,2,"03","02","02","03|02|02","Cooperative Governance","Regional and Urban Development and Legislative Support","Local Government Legislative Support and Institutional Establishment"]
[null,null,null,null,null,3,2,3,"03","02","03","03|02|03","Cooperative Governance","Regional and Urban Development and Legislative Support","Urban Development Planning"]
[null,null,null,null,null,3,2,4,"03","02","04","03|02|04","Cooperative Governance","Regional and Urban Development and Legislative Support","Spatial Planning Districts and Regions"]
[null,null,null,null,null,3,2,5,"03","02","05","03|02|05","Cooperative Governance","Regional and Urban Development and Legislative Support","Intergovernmental Policy and Practice"]
[null,null,null,null,null,3,2,6,"03","02","06","03|02|06","Cooperative Governance","Regional and Urban Development and Legislative Support","Municipal Demarcation Transition Grant"]
[null,null,null,null,null,3,2,7,"03","02","07","03|02|07","Cooperative Governance","Regional and Urban Development and Legislative Support","Municipal Demarcation Board"]
[null,null,null,null,null,3,2,8,"03","02","08","03|02|08","Cooperative Governance","Regional and Urban Development and Legislative Support","South African Cities Network"]
[null,null,null,null,null,3,2,9,"03","02","09","03|02|09","Cooperative Governance","Regional and Urban Development and Legislative Support","Integrated Urban Development Grant"]
[null,null,null,null,null,3,3,1,"03","03","01","03|03|01","Cooperative Governance","Institutional Development","Management: Institutional Development"]
[null,null,null,null,null,3,3,2,"03","03","02","03|03|02","Cooperative Governance","Institutional Development","Municipal Human Resources Management Systems"]
[null,null,null,null,null,3,3,3,"03","03","03","03|03|03","Cooperative Governance","Institutional Development","Municipal Finance"]
[null,null,null,null,null,3,3,4,"03","03","04","03|03|04","Cooperative Governance","Institutional Development","Citizen Engagement"]
[null,null,null,null,null,3,3,5,"03","03","05","03|03|05","Cooperative Governance","Institutional Development","Anti-Corruption and Good Governance"]
[null,null,null,null,null,3,3,6,"03","03","06","03|03|06","Cooperative Governance","Institutional Development","Municipal Property Rates"]
[null,null,null,null,null,3,3,7,"03","03","07","03|03|07","Cooperative Governance","Institutional Development","Local Government Equitable Share "]
[null,null,null,null,null,3,3,8,"03","03","08","03|03|08","Cooperative Governance","Institutional Development","South African Local Government Association"]
[null,null,null,null,null,3,3,9,"03","03","09","03|03|09","Cooperative Governance","Institutional Development","Municipal Systems Improvement Grant "]
[null,null,null,null,null,3,3,11,"03","03","11","03|03|11","Cooperative Governance","Institutional Development","United Cities and Local Government of Africa"]
[null,null,null,null,null,3,4,1,"03","04","01","03|04|01","Cooperative Governance","National Disaster Management Centre","Management: Head of the National Disaster Management Centre"]
[null,null,null,null,null,3,4,2,"03","04","02","03|04|02","Cooperative Governance","National Disaster Management Centre","Disaster Risk Reduction, Capacity Building and Intervention"]
[null,null,null,null,null,3,4,3,"03","04","03","03|04|03","Cooperative Governance","National Disaster Management Centre","Legislation and Policy Management"]
[null,null,null,null,null,3,4,4,"03","04","04","03|04|04","Cooperative Governance","National Disaster Management Centre","Integrated Provincial Disaster Management Support, Monitoring and Evaluation Systems"]
[null,null,null,null,null,3,4,5,"03","04","05","03|04|05","Cooperative Governance","National Disaster Management Centre","Fire Services"]
[null,null,null,null,null,3,4,6,"03","04","06","03|04|06","Cooperative Governance","National Disaster Management Centre","Information Technology, Intelligence and Information Management Systems"]
[null,null,null,null,null,3,4,7,"03","04","07","03|04|07","Cooperative Governance","National Disaster Management Centre","Disaster Relief Grant"]
[null,null,null,null,null,3,4,8,"03","04","08","03|04|08","Cooperative Governance","National Disaster Management Centre","Municipal Disaster Recovery Grant"]
[null,null,null,null,null,3,4,9,"03","04","09","03|04|09","Cooperative Governance","National Disaster Management Centre","Provincial Disaster Recovery Grant"]
[null,null,null,null,null,3,5,1,"03","05","01","03|05|01","Cooperative Governance","Local Government Support and Intervention Management","Management: Local Government Support and Interventions"]
[null,null,null,null,null,3,5,2,"03","05","02","03|05|02","Cooperative Governance","Local Government Support and Intervention Management","Municipal Performance Monitoring"]
[null,null,null,null,null,3,5,3,"03","05","03","03|05|03","Cooperative Governance","Local Government Support and Intervention Management","Local Government Improvement Programme"]
[null,null,null,null,null,3,5,4,"03","05","04","03|05|04","Cooperative Governance","Local Government Support and Intervention Management","Litigations and Interventions"]
[null,null,null,null,null,3,5,5,"03","05","05","03|05|05","Cooperative Governance","Local Government Support and Intervention Management","Municipal Infrastructure Administration"]
[null,null,null,null,null,3,5,6,"03","05","06","03|05|06","Cooperative Governance","Local Government Support and Intervention Management","Municipal Infrastructure Grant"]
[null,null,null,null,null,3,5,7,"03","05","07","03|05|07","Cooperative Governance","Local Government Support and Intervention Management","Municipal Infrastructure Support Agent"]
[null,null,null,null,null,3,6,1,"03","06","01","03|06|01","Cooperative Governance","Community Work Programme","Management: Community Work Programme"]
[null,null,null,null,null,3,6,2,"03","06","02","03|06|02","Cooperative Governance","Community Work Programme","Programme Coordination"]
[null,null,null,null,null,3,6,3,"03","06","03","03|06|03","Cooperative Governance","Community Work Programme","Partnerships, Norms, Standards and Innovation"]
[null,null,null,null,null,4,1,1,"04","01","01","04|01|01","Government Communication and Information System","Administration","Departmental Management"]
[null,null,null,null,null,4,1,2,"04","01","02","04|01|02","Government Communication and Information System","Administration","Corporate Services"]
[null,null,null,null,null,4,1,3,"04","01","03","04|01|03","Government Communication and Information System","Administration","Financial Administration"]
[null,null,null,null,null,4,1,4,"04","01","04","04|01|04","Government Communication and Information System","Administration","Internal Audit"]
[null,null,null,null,null,4,1,6,"04","01","06","04|01|06","Government Communication and Information System","Administration","Office Accommodation"]
[null,null,null,null,null,4,2,1,"04","02","01","04|02|01","Government Communication and Information System","Content Processing and Dissemination","Programme Management for Content Processing and Dissemination"]
[null,null,null,null,null,4,2,2,"04","02","02","04|02|02","Government Communication and Information System","Content Processing and Dissemination","Policy and Research"]
[null,null,null,null,null,4,2,3,"04","02","03","04|02|03","Government Communication and Information System","Content Processing and Dissemination","Products and Platforms"]
[null,null,null,null,null,4,2,4,"04","02","04","04|02|04","Government Communication and Information System","Content Processing and Dissemination","Communication Service Agency"]
[null,null,null,null,null,4,2,5,"04","02","05","04|02|05","Government Communication and Information System","Content Processing and Dissemination","Entity Oversight"]
[null,null,null,null,null,4,2,6,"04","02","06","04|02|06","Government Communication and Information System","Content Processing and Dissemination","Media Policy"]
[null,null,null,null,null,4,3,1,"04","03","01","04|03|01","Government Communication and Information System","Intergovernmental Coordination and Stakeholder Management","Programme Management for Intergovernmental Coordination and Stakeholder Management"]
[null,null,null,null,null,4,3,2,"04","03","02","04|03|02","Government Communication and Information System","Intergovernmental Coordination and Stakeholder Management","Provincial and Local Liaison"]
[null,null,null,null,null,4,3,3,"04","03","03","04|03|03","Government Communication and Information System","Intergovernmental Coordination and Stakeholder Management","Media Engagement"]
[null,null,null,null,null,4,3,4,"04","03","04","04|03|04","Government Communication and Information System","Intergovernmental Coordination and Stakeholder Management","Cluster Supervision (Human Development, Social Protection, and Governance and Administration)"]
[null,null,null,null,null,4,3,5,"04","03","05","04|03|05","Government Communication and Information System","Intergovernmental Coordination and Stakeholder Management","Cluster Supervision (Economic and Infrastructure, Justice and International)"]
[null,null,null,null,null,5,1,1,"05","01","01","05|01|01","Home Affairs","Administration","Ministry"]
[null,null,null,null,null,5,1,2,"05","01","02","05|01|02","Home Affairs","Administration","Management Support Services"]
[null,null,null,null,null,5,1,3,"05","01","03","05|01|03","Home Affairs","Administration","Corporate Services"]
[null,null,null,null,null,5,1,4,"05","01","04","05|01|04","Home Affairs","Administration","Transversal Information Technology Management"]
[null,null,null,null,null,5,1,5,"05","01","05","05|01|05","Home Affairs","Administration","Office Accommodation"]
[null,null,null,null,null,5,2,1,"05","02","01","05|02|01","Home Affairs","Citizen Affairs","Citizen Affairs Management"]
[null,null,null,null,null,5,2,2,"05","02","02","05|02|02","Home Affairs","Citizen Affairs","Status Services"]
[null,null,null,null,null,5,2,3,"05","02","03","05|02|03","Home Affairs","Citizen Affairs","Identification Services"]
[null,null,null,null,null,5,2,5,"05","02","05","05|02|05","Home Affairs","Citizen Affairs","Service Delivery to Provinces"]
[null,null,null,null,null,5,2,8,"05","02","08","05|02|08","Home Affairs","Citizen Affairs","Electoral Commission"]
[null,null,null,null,null,5,2,9,"05","02","09","05|02|09","Home Affairs","Citizen Affairs","Represented Political Parties’ Fund"]
[null,null,null,null,null,5,3,1,"05","03","01","05|03|01","Home Affairs","Immigration Affairs","Immigration Affairs Management"]
[null,null,null,null,null,5,3,2,"05","03","02","05|03|02","Home Affairs","Immigration Affairs","Admission Services"]
[null,null,null,null,null,5,3,3,"05","03","03","05|03|03","Home Affairs","Immigration Affairs","Immigration Services"]
[null,null,null,null,null,5,3,4,"05","03","04","05|03|04","Home Affairs","Immigration Affairs","Asylum Seekers"]
[null,null,null,null,null,6,1,1,"06","01","01","06|01|01","International Relations and Cooperation","Administration","Ministry"]
[null,null,null,null,null,6,1,2,"06","01","02","06|01|02","International Relations and Cooperation","Administration","Departmental Management"]
[null,null,null,null,null,6,1,3,"06","01","03","06|01|03","International Relations and Cooperation","Administration","Audit Services"]
[null,null,null,null,null,6,1,4,"06","01","04","06|01|04","International Relations and Cooperation","Administration","Financial Management"]
[null,null,null,null,null,6,1,5,"06","01","05","06|01|05","International Relations and Cooperation","Administration","Corporate Services"]
[null,null,null,null,null,6,1,6,"06","01","06","06|01|06","International Relations and Cooperation","Administration","Diplomatic Training, Research and Development"]
[null,null,null,null,null,6,1,7,"06","01","07","06|01|07","International Relations and Cooperation","Administration","Foreign Fixed Assets Management"]
[null,null,null,null,null,6,1,8,"06","01","08","06|01|08","International Relations and Cooperation","Administration","Office Accommodation"]
[null,null,null,null,null,6,2,1,"06","02","01","06|02|01","International Relations and Cooperation","International Relations","Africa"]
[null,null,null,null,null,6,2,2,"06","02","02","06|02|02","International Relations and Cooperation","International Relations","Asia and Middle East"]
[null,null,null,null,null,6,2,3,"06","02","03","06|02|03","International Relations and Cooperation","International Relations","Americas and Caribbean"]
[null,null,null,null,null,6,2,4,"06","02","04","06|02|04","International Relations and Cooperation","International Relations","Europe"]
[null,null,null,null,null,6,3,1,"06","03","01","06|03|01","International Relations and Cooperation","International Cooperation","Global System of Governance"]
[null,null,null,null,null,6,3,2,"06","03","02","06|03|02","International Relations and Cooperation","International Cooperation","Continental Cooperation"]
[null,null,null,null,null,6,3,3,"06","03","03","06|03|03","International Relations and Cooperation","International Cooperation","South-South Cooperation"]
[null,null,null,null,null,6,3,4,"06","03","04","06|03|04","International Relations and Cooperation","International Cooperation","North-South Dialogue"]
[null,null,null,null,null,6,4,1,"06","04","01","06|04|01","International Relations and Cooperation","Public Diplomacy and Protocol Services","Public Diplomacy"]
[null,null,null,null,null,6,4,2,"06","04","02","06|04|02","International Relations and Cooperation","Public Diplomacy and Protocol Services","Protocol Services"]
[null,null,null,null,null,6,5,1,"06","05","01","06|05|01","International Relations and Cooperation","International Transfers","Departmental Agencies"]
[null,null,null,null,null,6,5,1,"06","05","01","06|05|01","International Relations and Cooperation","International Transfers","Departmental agencies"]
[null,null,null,null,null,6,5,2,"06","05","02","06|05|02","International Relations and Cooperation","International Transfers","Membership contribution"]
[null,null,null,null,null,7,1,1,"07","01","01","07|01|01","National School of Government","Administration","Management"]
[null,null,null,null,null,7,1,2,"07","01","02","07|01|02","National School of Government","Administration","Corporate Services"]
[null,null,null,null,null,7,1,3,"07","01","03","07|01|03","National School of Government","Administration","Property Management"]
[null,null,null,null,null,7,2,1,"07","02","01","07|02|01","National School of Government","Public Sector Organisational and Staff Development","National School of Government Training Trading Account"]
[null,null,null,null,null,8,1,1,"08","01","01","08|01|01","National Treasury","Administration","Ministry"]
[null,null,null,null,null,8,1,2,"08","01","02","08|01|02","National Treasury","Administration","Departmental Management"]
[null,null,null,null,null,8,1,3,"08","01","03","08|01|03","National Treasury","Administration","Corporate Services"]
[null,null,null,null,null,8,1,4,"08","01","04","08|01|04","National Treasury","Administration","Enterprise-Wide Risk Management"]
[null,null,null,null,null,8,1,5,"08","01","05","08|01|05","National Treasury","Administration","Financial Administration"]
[null,null,null,null,null,8,1,6,"08","01","06","08|01|06","National Treasury","Administration","Legal Services"]
[null,null,null,null,null,8,1,7,"08","01","07","08|01|07","National Treasury","Administration","Internal Audit"]
[null,null,null,null,null,8,1,8,"08","01","08","08|01|08","National Treasury","Administration","Communications"]
[null,null,null,null,null,8,1,9,"08","01","09","08|01|09","National Treasury","Administration","Office Accommodation"]
[null,null,null,null,null,8,2,1,"08","02","01","08|02|01","National Treasury","Economic Policy, Tax, Financial Regulation and Research","Programme Management for Economic Policy, Tax, Financial Regulation and Research"]
[null,null,null,null,null,8,2,2,"08","02","02","08|02|02","National Treasury","Economic Policy, Tax, Financial Regulation and Research","Research"]
[null,null,null,null,null,8,2,3,"08","02","03","08|02|03","National Treasury","Economic Policy, Tax, Financial Regulation and Research","Financial Sector Policy"]
[null,null,null,null,null,8,2,4,"08","02","04","08|02|04","National Treasury","Economic Policy, Tax, Financial Regulation and Research","Tax Policy"]
[null,null,null,null,null,8,2,5,"08","02","05","08|02|05","National Treasury","Economic Policy, Tax, Financial Regulation and Research","Economic Policy"]
[null,null,null,null,null,8,2,6,"08","02","06","08|02|06","National Treasury","Economic Policy, Tax, Financial Regulation and Research","Cooperative Banks Development Agency"]
[null,null,null,null,null,8,3,1,"08","03","01","08|03|01","National Treasury","Public Finance and Budget Management","Programme Management for Public Finance and Budget Management"]
[null,null,null,null,null,8,3,2,"08","03","02","08|03|02","National Treasury","Public Finance and Budget Management","Public Finance"]
[null,null,null,null,null,8,3,3,"08","03","03","08|03|03","National Treasury","Public Finance and Budget Management","Budget Office and Coordination"]
[null,null,null,null,null,8,3,4,"08","03","04","08|03|04","National Treasury","Public Finance and Budget Management","Intergovernmental Relations"]
[null,null,null,null,null,8,3,5,"08","03","05","08|03|05","National Treasury","Public Finance and Budget Management","Financial and Fiscal Commission"]
[null,null,null,null,null,8,3,6,"08","03","06","08|03|06","National Treasury","Public Finance and Budget Management","Facilitation of Conditional Grants"]
[null,null,null,null,null,8,3,7,"08","03","07","08|03|07","National Treasury","Public Finance and Budget Management","Catalytic Infrastructure and Development Support Programme "]
[null,null,null,null,null,8,3,8,"08","03","08","08|03|08","National Treasury","Public Finance and Budget Management","Government Technical Advisory Centre"]
[null,null,null,null,null,8,4,1,"08","04","01","08|04|01","National Treasury","Asset and Liability Management","Programme Management for Asset and Liability Management"]
[null,null,null,null,null,8,4,2,"08","04","02","08|04|02","National Treasury","Asset and Liability Management","State - Owned Entity Financial Management and Governance"]
[null,null,null,null,null,8,4,3,"08","04","03","08|04|03","National Treasury","Asset and Liability Management","Government Debt Management"]
[null,null,null,null,null,8,4,4,"08","04","04","08|04|04","National Treasury","Asset and Liability Management","Financial Operations"]
[null,null,null,null,null,8,4,5,"08","04","05","08|04|05","National Treasury","Asset and Liability Management","Strategy and Risk Management"]
[null,null,null,null,null,8,5,1,"08","05","01","08|05|01","National Treasury","Financial Accounting and Supply Chain Management Systems","Programme Management for Financial Accounting and Supply Chain Management Systems"]
[null,null,null,null,null,8,5,2,"08","05","02","08|05|02","National Treasury","Financial Accounting and Supply Chain Management Systems","Office of the Chief Procurement Officer"]
[null,null,null,null,null,8,5,3,"08","05","03","08|05|03","National Treasury","Financial Accounting and Supply Chain Management Systems","Financial Systems"]
[null,null,null,null,null,8,5,4,"08","05","04","08|05|04","National Treasury","Financial Accounting and Supply Chain Management Systems","Financial Reporting for National Accounts"]
[null,null,null,null,null,8,5,5,"08","05","05","08|05|05","National Treasury","Financial Accounting and Supply Chain Management Systems","Financial Management Policy and Compliance Improvement"]
[null,null,null,null,null,8,5,7,"08","05","07","08|05|07","National Treasury","Financial Accounting and Supply Chain Management Systems","Service Charges: Commercial Banks"]
[null,null,null,null,null,8,6,1,"08","06","01","08|06|01","National Treasury","International Financial Relations","Programme Management for International Financial Relations"]
[null,null,null,null,null,8,6,2,"08","06","02","08|06|02","National Treasury","International Financial Relations","International Economic Cooperation"]
[null,null,null,null,null,8,6,3,"08","06","03","08|06|03","National Treasury","International Financial Relations","African Integration and Support"]
[null,null,null,null,null,8,6,4,"08","06","04","08|06|04","National Treasury","International Financial Relations","International Development Funding Institutions"]
[null,null,null,null,null,8,6,5,"08","06","05","08|06|05","National Treasury","International Financial Relations","International Projects"]
[null,null,null,null,null,8,7,1,"08","07","01","08|07|01","National Treasury","Civil and Military Pensions, Contributions to Funds and Other Benefits","Government Pensions Administration Agency"]
[null,null,null,null,null,8,7,2,"08","07","02","08|07|02","National Treasury","Civil and Military Pensions, Contributions to Funds and Other Benefits","Civil Pensions and Contributions to Funds"]
[null,null,null,null,null,8,7,3,"08","07","03","08|07|03","National Treasury","Civil and Military Pensions, Contributions to Funds and Other Benefits","Military Pensions and Other Benefits"]
[null,null,null,null,null,8,8,1,"08","08","01","08|08|01","National Treasury","Revenue Administration","South African Revenue Service"]
[null,null,null,null,null,8,9,1,"08","09","01","08|09|01","National Treasury","Financial Intelligence and State Security","Financial Intelligence Centre"]
[null,null,null,null,null,8,9,2,"08","09","02","08|09|02","National Treasury","Financial Intelligence and State Security","Secret Services"]
[null,null,null,null,null,8,16,1,"08","16","01","08|16|01","National Treasury","Direct charge against the National Revenue Fund","Provincial Equitable Share"]
[null,null,null,null,null,8,16,2,"08","16","02","08|16|02","National Treasury","Direct charge against the National Revenue Fund","Debt-service costs"]
[null,null,null,null,null,8,16,3,"08","16","03","08|16|03","National Treasury","Direct charge against the National Revenue Fund","General Fuel Levy Sharing with Metropolitan Municipalities"]
[null,null,null,null,null,8,16,4,"08","16","04","08|16|04","National Treasury","Direct charge against the National Revenue Fund","National Revenue Fund payments"]
[null,null,null,null,null,8,16,5,"08","16","05","08|16|05","National Treasury","Direct charge against the National Revenue Fund","Auditor-General of South Africa: Creation of direct charge"]
[null,null,null,null,null,9,1,1,"09","01","01","09|01|01","Planning, Monitoring and Evaluation","Administration","Ministerial Support"]
[null,null,null,null,null,9,1,2,"09","01","02","09|01|02","Planning, Monitoring and Evaluation","Administration","Departmental Management"]
[null,null,null,null,null,9,1,3,"09","01","03","09|01|03","Planning, Monitoring and Evaluation","Administration","Corporate and Financial Services"]
[null,null,null,null,null,9,2,1,"09","02","01","09|02|01","Planning, Monitoring and Evaluation","National Planning Coordination","Management:National Planning Coordination"]
[null,null,null,null,null,9,2,2,"09","02","02","09|02|02","Planning, Monitoring and Evaluation","National Planning Coordination","Planning Coordination"]
[null,null,null,null,null,9,3,1,"09","03","01","09|03|01","Planning, Monitoring and Evaluation","Sector Monitoring Services","Management: Sector Monitoring Services"]
[null,null,null,null,null,9,3,2,"09","03","02","09|03|02","Planning, Monitoring and Evaluation","Sector Monitoring Services","Outcomes Monitoring and Support"]
[null,null,null,null,null,9,3,3,"09","03","03","09|03|03","Planning, Monitoring and Evaluation","Sector Monitoring Services","Intervention Support"]
[null,null,null,null,null,9,4,1,"09","04","01","09|04|01","Planning, Monitoring and Evaluation","Public Sector Monitoring and Capacity Development","Management: Public Sector Monitoring and Capacity Development"]
[null,null,null,null,null,9,4,2,"09","04","02","09|04|02","Planning, Monitoring and Evaluation","Public Sector Monitoring and Capacity Development","Public Service Monitoring and Capacity Development"]
[null,null,null,null,null,9,5,1,"09","05","01","09|05|01","Planning, Monitoring and Evaluation","Evidence and Knowledge Systems","Management: Evidence and Knowledge Systems"]
[null,null,null,null,null,9,5,2,"09","05","02","09|05|02","Planning, Monitoring and Evaluation","Evidence and Knowledge Systems","Evaluation, Research, Knowledge and Data Systems"]
[null,null,null,null,null,10,1,1,"10","01","01","10|01|01","Public Enterprises","Administration","Ministry"]
[null,null,null,null,null,10,1,2,"10","01","02","10|01|02","Public Enterprises","Administration","Management"]
[null,null,null,null,null,10,1,3,"10","01","03","10|01|03","Public Enterprises","Administration","Communications"]
[null,null,null,null,null,10,1,4,"10","01","04","10|01|04","Public Enterprises","Administration","Chief Financial Officer"]
[null,null,null,null,null,10,1,5,"10","01","05","10|01|05","Public Enterprises","Administration","Human Resources "]
[null,null,null,null,null,10,1,6,"10","01","06","10|01|06","Public Enterprises","Administration","Internal Audit"]
[null,null,null,null,null,10,1,7,"10","01","07","10|01|07","Public Enterprises","Administration","Corporate Services"]
[null,null,null,null,null,10,1,8,"10","01","08","10|01|08","Public Enterprises","Administration","Office Accommodation"]
[null,null,null,null,null,10,2,1,"10","02","01","10|02|01","Public Enterprises","State-owned Companies Governance Assurance and Performance","Management"]
[null,null,null,null,null,10,2,2,"10","02","02","10|02|02","Public Enterprises","State-owned Companies Governance Assurance and Performance","Legal"]
[null,null,null,null,null,10,2,3,"10","02","03","10|02|03","Public Enterprises","State-owned Companies Governance Assurance and Performance","Governance"]
[null,null,null,null,null,10,2,4,"10","02","04","10|02|04","Public Enterprises","State-owned Companies Governance Assurance and Performance","Financial Assessment and Investment support"]
[null,null,null,null,null,10,2,4,"10","02","04","10|02|04","Public Enterprises","State-owned Companies Governance Assurance and Performance","Financial Assessment and Investment Support"]
[null,null,null,null,null,10,3,1,"10","03","01","10|03|01","Public Enterprises","Business Enhancement, Transformation and Industrialisation","Energy Resources"]
[null,null,null,null,null,10,3,2,"10","03","02","10|03|02","Public Enterprises","Business Enhancement, Transformation and Industrialisation","Research and Economic Modelling"]
[null,null,null,null,null,10,3,3,"10","03","03","10|03|03","Public Enterprises","Business Enhancement, Transformation and Industrialisation","Transport and Defence"]
[null,null,null,null,null,10,3,4,"10","03","04","10|03|04","Public Enterprises","Business Enhancement, Transformation and Industrialisation","Business Enhancement Services"]
[null,null,null,null,null,11,1,1,"11","01","01","11|01|01","Public Service and Administration","Administration","Ministry"]
[null,null,null,null,null,11,1,2,"11","01","02","11|01|02","Public Service and Administration","Administration","Departmental Management"]
[null,null,null,null,null,11,1,3,"11","01","03","11|01|03","Public Service and Administration","Administration","Corporate services"]
[null,null,null,null,null,11,1,3,"11","01","03","11|01|03","Public Service and Administration","Administration","Corporate Services"]
[null,null,null,null,null,11,1,4,"11","01","04","11|01|04","Public Service and Administration","Administration","Finance Administration"]
[null,null,null,null,null,11,1,5,"11","01","05","11|01|05","Public Service and Administration","Administration","Internal Audit"]
[null,null,null,null,null,11,1,6,"11","01","06","11|01|06","Public Service and Administration","Administration","Legal Services"]
[null,null,null,null,null,11,1,7,"11","01","07","11|01|07","Public Service and Administration","Administration","International Relations"]
[null,null,null,null,null,11,1,8,"11","01","08","11|01|08","Public Service and Administration","Administration","Office Accommodation"]
[null,null,null,null,null,11,2,1,"11","02","01","11|02|01","Public Service and Administration","Policy Development, Research and Analysis","Management: Policy Development, Research and Analysis"]
[null,null,null,null,null,11,2,2,"11","02","02","11|02|02","Public Service and Administration","Policy Development, Research and Analysis","Policy Oversight, Development and Knowledge Management"]
[null,null,null,null,null,11,2,3,"11","02","03","11|02|03","Public Service and Administration","Policy Development, Research and Analysis","Public Administration Policy Analysis"]
[null,null,null,null,null,11,2,4,"11","02","04","11|02|04","Public Service and Administration","Policy Development, Research and Analysis","Integrated Public Sector Reform"]
[null,null,null,null,null,11,2,5,"11","02","05","11|02|05","Public Service and Administration","Policy Development, Research and Analysis","Public Service Performance, Monitoring and Evaluation"]
[null,null,null,null,null,11,2,6,"11","02","06","11|02|06","Public Service and Administration","Policy Development, Research and Analysis","Research and Analysis"]
[null,null,null,null,null,11,2,8,"11","02","08","11|02|08","Public Service and Administration","Policy Development, Research and Analysis","Public Service Access Norms and Mechanisms"]
[null,null,null,null,null,11,3,1,"11","03","01","11|03|01","Public Service and Administration","Public Service Employment and Conditions of Service","Management: Public Service Employment and Conditions of Service"]
[null,null,null,null,null,11,3,2,"11","03","02","11|03|02","Public Service and Administration","Public Service Employment and Conditions of Service","Labour Relations, Negotiations and Discipline Management"]
[null,null,null,null,null,11,3,3,"11","03","03","11|03|03","Public Service and Administration","Public Service Employment and Conditions of Service","Workplace Environment Management"]
[null,null,null,null,null,11,3,4,"11","03","04","11|03|04","Public Service and Administration","Public Service Employment and Conditions of Service","Human Resource Development"]
[null,null,null,null,null,11,3,5,"11","03","05","11|03|05","Public Service and Administration","Public Service Employment and Conditions of Service","Remuneration and Job Grading"]
[null,null,null,null,null,11,3,6,"11","03","06","11|03|06","Public Service and Administration","Public Service Employment and Conditions of Service","Employee Benefits"]
[null,null,null,null,null,11,3,7,"11","03","07","11|03|07","Public Service and Administration","Public Service Employment and Conditions of Service","Human Resource Planning, Employment Practices and Performance Management"]
[null,null,null,null,null,11,4,1,"11","04","01","11|04|01","Public Service and Administration","Government Chief Information Officer","Management: Government Chief Information Officer"]
[null,null,null,null,null,11,4,2,"11","04","02","11|04|02","Public Service and Administration","Government Chief Information Officer","Public Service ICT e-Enablement"]
[null,null,null,null,null,11,4,2,"11","04","02","11|04|02","Public Service and Administration","Government Chief Information Officer","Public Service ICT E-enablement"]
[null,null,null,null,null,11,4,3,"11","04","03","11|04|03","Public Service and Administration","Government Chief Information Officer","Public Service ICT Stakeholder Management"]
[null,null,null,null,null,11,4,4,"11","04","04","11|04|04","Public Service and Administration","Government Chief Information Officer","Public Service ICT Risk Management"]
[null,null,null,null,null,11,4,5,"11","04","05","11|04|05","Public Service and Administration","Government Chief Information Officer","Public Service ICT Service Management"]
[null,null,null,null,null,11,5,1,"11","05","01","11|05|01","Public Service and Administration","Service Delivery Support","Management: Service Delivery Support"]
[null,null,null,null,null,11,5,2,"11","05","02","11|05|02","Public Service and Administration","Service Delivery Support","Service Delivery Planning and Operations Management"]
[null,null,null,null,null,11,5,3,"11","05","03","11|05|03","Public Service and Administration","Service Delivery Support","Service Delivery Improvement Initiatives"]
[null,null,null,null,null,11,5,4,"11","05","04","11|05|04","Public Service and Administration","Service Delivery Support","Community Development and Citizen Relations"]
[null,null,null,null,null,11,5,5,"11","05","05","11|05|05","Public Service and Administration","Service Delivery Support","Public Participation and Social Dialogue"]
[null,null,null,null,null,11,5,6,"11","05","06","11|05|06","Public Service and Administration","Service Delivery Support","Batho Pele Support Initiatives"]
[null,null,null,null,null,11,5,7,"11","05","07","11|05|07","Public Service and Administration","Service Delivery Support","Centre for Public Service Innovation"]
[null,null,null,null,null,11,6,1,"11","06","01","11|06|01","Public Service and Administration","Governance of Public Administration","Management: Governance of Public Administration"]
[null,null,null,null,null,11,6,2,"11","06","02","11|06|02","Public Service and Administration","Governance of Public Administration","Ethics and Integrity Management"]
[null,null,null,null,null,11,6,3,"11","06","03","11|06|03","Public Service and Administration","Governance of Public Administration","Organisational Design and Macro Organisation of the Public Service"]
[null,null,null,null,null,11,6,4,"11","06","04","11|06|04","Public Service and Administration","Governance of Public Administration","Transformation Policies and Programmes"]
[null,null,null,null,null,11,6,5,"11","06","05","11|06|05","Public Service and Administration","Governance of Public Administration","Intergovernmental Relations and Government Interventions"]
[null,null,null,null,null,11,6,6,"11","06","06","11|06|06","Public Service and Administration","Governance of Public Administration","Leadership Management"]
[null,null,null,null,null,11,6,7,"11","06","07","11|06|07","Public Service and Administration","Governance of Public Administration","Human Resource Management Information Systems"]
[null,null,null,null,null,12,1,1,"12","01","01","12|01|01","Public Service Commission","Administration","Public Service Commission"]
[null,null,null,null,null,12,1,2,"12","01","02","12|01|02","Public Service Commission","Administration","Management"]
[null,null,null,null,null,12,1,3,"12","01","03","12|01|03","Public Service Commission","Administration","Corporate Services"]
[null,null,null,null,null,12,1,4,"12","01","04","12|01|04","Public Service Commission","Administration","Property Management"]
[null,null,null,null,null,12,1,5,"12","01","05","12|01|05","Public Service Commission","Administration","Chief financial officer"]
[null,null,null,null,null,12,2,1,"12","02","01","12|02|01","Public Service Commission","Leadership and Management Practices","Labour Relations Improvement"]
[null,null,null,null,null,12,2,2,"12","02","02","12|02|02","Public Service Commission","Leadership and Management Practices","Leadership and Human Resource Reviews"]
[null,null,null,null,null,12,2,3,"12","02","03","12|02|03","Public Service Commission","Leadership and Management Practices","Programme Management: Leadership and Management Practices"]
[null,null,null,null,null,12,3,1,"12","03","01","12|03|01","Public Service Commission","Monitoring and Evaluation","Governance Monitoring"]
[null,null,null,null,null,12,3,2,"12","03","02","12|03|02","Public Service Commission","Monitoring and Evaluation","Service Delivery and Compliance Evaluations"]
[null,null,null,null,null,12,3,3,"12","03","03","12|03|03","Public Service Commission","Monitoring and Evaluation","Programme Management: Monitoring and Evaluation"]
[null,null,null,null,null,12,4,1,"12","04","01","12|04|01","Public Service Commission","Integrity and Anti-Corruption","Public Administration Investigations"]
[null,null,null,null,null,12,4,2,"12","04","02","12|04|02","Public Service Commission","Integrity and Anti-Corruption","Professional Ethics"]
[null,null,null,null,null,12,4,3,"12","04","03","12|04|03","Public Service Commission","Integrity and Anti-Corruption","Programme Management: Integrity and Anti-Corruption"]
[null,null,null,null,null,13,1,1,"13","01","01","13|01|01","Public Works and Infrastructure","Administration","Ministry"]
[null,null,null,null,null,13,1,2,"13","01","02","13|01|02","Public Works and Infrastructure","Administration","Management"]
[null,null,null,null,null,13,1,3,"13","01","03","13|01|03","Public Works and Infrastructure","Administration","Corporate Services"]
[null,null,null,null,null,13,1,4,"13","01","04","13|01|04","Public Works and Infrastructure","Administration","Finance and Supply Chain Management"]
[null,null,null,null,null,13,1,5,"13","01","05","13|01|05","Public Works and Infrastructure","Administration","Office Accommodation"]
[null,null,null,null,null,13,2,1,"13","02","01","13|02|01","Public Works and Infrastructure","Intergovernmental Coordination","Monitoring, Evaluation and Reporting"]
[null,null,null,null,null,13,2,2,"13","02","02","13|02|02","Public Works and Infrastructure","Intergovernmental Coordination","Intergovernmental Relations and Coordination"]
[null,null,null,null,null,13,2,3,"13","02","03","13|02|03","Public Works and Infrastructure","Intergovernmental Coordination","Professional Services"]
[null,null,null,null,null,13,3,1,"13","03","01","13|03|01","Public Works and Infrastructure","Expanded Public Works Programme","Expanded Public Works Programme: Monitoring and Evaluation"]
[null,null,null,null,null,13,3,2,"13","03","02","13|03|02","Public Works and Infrastructure","Expanded Public Works Programme","Expanded Public Works Programme: Infrastructure"]
[null,null,null,null,null,13,3,3,"13","03","03","13|03|03","Public Works and Infrastructure","Expanded Public Works Programme","Expanded Public Works Programme: Operations"]
[null,null,null,null,null,13,3,4,"13","03","04","13|03|04","Public Works and Infrastructure","Expanded Public Works Programme","Expanded Public Works Programme: Partnership Support"]
[null,null,null,null,null,13,3,5,"13","03","05","13|03|05","Public Works and Infrastructure","Expanded Public Works Programme","Expanded Public Works Programme: Public Employment Coordinating Commission"]
[null,null,null,null,null,13,4,1,"13","04","01","13|04|01","Public Works and Infrastructure","Property and Construction Industry Policy and Research","Construction Policy Development Programme"]
[null,null,null,null,null,13,4,2,"13","04","02","13|04|02","Public Works and Infrastructure","Property and Construction Industry Policy and Research","Property Policy Development Programme"]
[null,null,null,null,null,13,4,4,"13","04","04","13|04|04","Public Works and Infrastructure","Property and Construction Industry Policy and Research","Construction Industry Development Board"]
[null,null,null,null,null,13,4,5,"13","04","05","13|04|05","Public Works and Infrastructure","Property and Construction Industry Policy and Research","Council for the Built Environment"]
[null,null,null,null,null,13,4,6,"13","04","06","13|04|06","Public Works and Infrastructure","Property and Construction Industry Policy and Research","Independent Development Trust"]
[null,null,null,null,null,13,4,7,"13","04","07","13|04|07","Public Works and Infrastructure","Property and Construction Industry Policy and Research","Construction Education and Training Authority"]
[null,null,null,null,null,13,4,8,"13","04","08","13|04|08","Public Works and Infrastructure","Property and Construction Industry Policy and Research","Property Management Trading Entity"]
[null,null,null,null,null,13,4,9,"13","04","09","13|04|09","Public Works and Infrastructure","Property and Construction Industry Policy and Research","Assistance to Organisations for the Preservation of National Memorials"]
[null,null,null,null,null,13,4,10,"13","04","10","13|04|10","Public Works and Infrastructure","Property and Construction Industry Policy and Research","Infrastructure Development Coordination"]
[null,null,null,null,null,13,5,1,"13","05","01","13|05|01","Public Works and Infrastructure","Prestige Policy","Prestige Accommodation and State Functions"]
[null,null,null,null,null,13,5,2,"13","05","02","13|05|02","Public Works and Infrastructure","Prestige Policy","Parliamentary Villages Management Board"]
[null,null,null,null,null,14,1,1,"14","01","01","14|01|01","Statistics South Africa","Administration","Departmental Management"]
[null,null,null,null,null,14,1,2,"14","01","02","14|01|02","Statistics South Africa","Administration","Corporate Services"]
[null,null,null,null,null,14,1,3,"14","01","03","14|01|03","Statistics South Africa","Administration","Financial Administration"]
[null,null,null,null,null,14,1,4,"14","01","04","14|01|04","Statistics South Africa","Administration","Internal Audit"]
[null,null,null,null,null,14,1,5,"14","01","05","14|01|05","Statistics South Africa","Administration","Office Accommodation"]
[null,null,null,null,null,14,2,1,"14","02","01","14|02|01","Statistics South Africa","Economic Statistics","Programme Management for Economic Statistics"]
[null,null,null,null,null,14,2,2,"14","02","02","14|02|02","Statistics South Africa","Economic Statistics","Business Cycle Indicators"]
[null,null,null,null,null,14,2,3,"14","02","03","14|02|03","Statistics South Africa","Economic Statistics","Structural Industry Statistics"]
[null,null,null,null,null,14,2,4,"14","02","04","14|02|04","Statistics South Africa","Economic Statistics","Price Statistics"]
[null,null,null,null,null,14,2,5,"14","02","05","14|02|05","Statistics South Africa","Economic Statistics","Private Sector Finance Statistics"]
[null,null,null,null,null,14,2,6,"14","02","06","14|02|06","Statistics South Africa","Economic Statistics","Government Finance Statistics"]
[null,null,null,null,null,14,2,7,"14","02","07","14|02|07","Statistics South Africa","Economic Statistics","National Accounts"]
[null,null,null,null,null,14,3,1,"14","03","01","14|03|01","Statistics South Africa","Population and Social Statistics","Programme Management for Population and Social Statistics"]
[null,null,null,null,null,14,3,2,"14","03","02","14|03|02","Statistics South Africa","Population and Social Statistics","Demographic and Population Statistics"]
[null,null,null,null,null,14,3,3,"14","03","03","14|03|03","Statistics South Africa","Population and Social Statistics","Health and Vital Statistics"]
[null,null,null,null,null,14,3,4,"14","03","04","14|03|04","Statistics South Africa","Population and Social Statistics","Social Statistics"]
[null,null,null,null,null,14,3,5,"14","03","05","14|03|05","Statistics South Africa","Population and Social Statistics","Labour Statistics"]
[null,null,null,null,null,14,3,6,"14","03","06","14|03|06","Statistics South Africa","Population and Social Statistics","Poverty and Inequality statistics"]
[null,null,null,null,null,14,3,6,"14","03","06","14|03|06","Statistics South Africa","Population and Social Statistics","Poverty and Inequality Statistics"]
[null,null,null,null,null,14,4,1,"14","04","01","14|04|01","Statistics South Africa","Methodology and Statistical Infrastructure","Programme Management for Methodology and Statistical Infrastructure"]
[null,null,null,null,null,14,4,2,"14","04","02","14|04|02","Statistics South Africa","Methodology and Statistical Infrastructure","Statistical Methods"]
[null,null,null,null,null,14,4,3,"14","04","03","14|04|03","Statistics South Africa","Methodology and Statistical Infrastructure","Statistical Standards"]
[null,null,null,null,null,14,4,4,"14","04","04","14|04|04","Statistics South Africa","Methodology and Statistical Infrastructure","Business Register"]
[null,null,null,null,null,14,4,5,"14","04","05","14|04|05","Statistics South Africa","Methodology and Statistical Infrastructure","Geography Frames and Services"]
[null,null,null,null,null,14,4,6,"14","04","06","14|04|06","Statistics South Africa","Methodology and Statistical Infrastructure","Survey Monitoring and Evaluation"]
[null,null,null,null,null,14,4,7,"14","04","07","14|04|07","Statistics South Africa","Methodology and Statistical Infrastructure","Innovation and Research"]
[null,null,null,null,null,14,5,1,"14","05","01","14|05|01","Statistics South Africa","Statistical Support and Informatics","Programme Management for Statistical Support and Informatics"]
[null,null,null,null,null,14,5,2,"14","05","02","14|05|02","Statistics South Africa","Statistical Support and Informatics","Communication and Marketing"]
[null,null,null,null,null,14,5,3,"14","05","03","14|05|03","Statistics South Africa","Statistical Support and Informatics","Business Modernisation"]
[null,null,null,null,null,14,5,4,"14","05","04","14|05|04","Statistics South Africa","Statistical Support and Informatics","Publication Services"]
[null,null,null,null,null,14,5,5,"14","05","05","14|05|05","Statistics South Africa","Statistical Support and Informatics","Information, Communication and Technology"]
[null,null,null,null,null,14,6,1,"14","06","01","14|06|01","Statistics South Africa","Statistical Operations and Provincial Coordination","Programme Management for Statistical Operations and Provincial Coordination"]
[null,null,null,null,null,14,6,2,"14","06","02","14|06|02","Statistics South Africa","Statistical Operations and Provincial Coordination","Provincial and District Offices"]
[null,null,null,null,null,14,6,3,"14","06","03","14|06|03","Statistics South Africa","Statistical Operations and Provincial Coordination","Data Operations"]
[null,null,null,null,null,14,6,4,"14","06","04","14|06|04","Statistics South Africa","Statistical Operations and Provincial Coordination","Household Survey and Censuses"]
[null,null,null,null,null,14,7,1,"14","07","01","14|07|01","Statistics South Africa","South African National Statistics System","Programme Management for South African National Statistics System"]
[null,null,null,null,null,14,7,2,"14","07","02","14|07|02","Statistics South Africa","South African National Statistics System","Economic Subsystem"]
[null,null,null,null,null,14,7,3,"14","07","03","14|07|03","Statistics South Africa","South African National Statistics System","Social Subsystem"]
[null,null,null,null,null,14,7,4,"14","07","04","14|07|04","Statistics South Africa","South African National Statistics System","Independent Quality Assessment"]
[null,null,null,null,null,14,7,5,"14","07","05","14|07|05","Statistics South Africa","South African National Statistics System","Statistical Reporting"]
[null,null,null,null,null,14,7,6,"14","07","06","14|07|06","Statistics South Africa","South African National Statistics System","Data and Information Management"]
[null,null,null,null,null,15,1,1,"15","01","01","15|01|01","Traditional Affairs","Administration","Ministry"]
[null,null,null,null,null,15,1,2,"15","01","02","15|01|02","Traditional Affairs","Administration","Management of Traditional Affairs"]
[null,null,null,null,null,15,1,3,"15","01","03","15|01|03","Traditional Affairs","Administration","Corporate Services"]
[null,null,null,null,null,15,1,4,"15","01","04","15|01|04","Traditional Affairs","Administration","Internal Audit"]
[null,null,null,null,null,15,2,1,"15","02","01","15|02|01","Traditional Affairs","Research, Policy and Legislation   ","Management"]
[null,null,null,null,null,15,2,2,"15","02","02","15|02|02","Traditional Affairs","Research, Policy and Legislation   ","Policy and Legislation"]
[null,null,null,null,null,15,2,3,"15","02","03","15|02|03","Traditional Affairs","Research, Policy and Legislation   ","Research and Information Management"]
[null,null,null,null,null,15,3,1,"15","03","01","15|03|01","Traditional Affairs","Institutional Support and Coordination","Management"]
[null,null,null,null,null,15,3,2,"15","03","02","15|03|02","Traditional Affairs","Institutional Support and Coordination","Institutional Development and Capacity Building"]
[null,null,null,null,null,15,3,3,"15","03","03","15|03|03","Traditional Affairs","Institutional Support and Coordination","Intergovernmental Relations and Partnerships"]
[null,null,null,null,null,15,3,4,"15","03","04","15|03|04","Traditional Affairs","Institutional Support and Coordination","National House of Traditional Leaders"]
[null,null,null,null,null,15,3,5,"15","03","05","15|03|05","Traditional Affairs","Institutional Support and Coordination","Commission for the Promotion and Protection of the Rights of Cultural, Religious and Linguistic Communities"]
[null,null,null,null,null,15,3,6,"15","03","06","15|03|06","Traditional Affairs","Institutional Support and Coordination","Disputes and Claims Resolution"]
[null,null,null,null,null,16,1,1,"16","01","01","16|01|01","Basic Education","Administration","Ministry"]
[null,null,null,null,null,16,1,2,"16","01","02","16|01|02","Basic Education","Administration","Department Management"]
[null,null,null,null,null,16,1,3,"16","01","03","16|01|03","Basic Education","Administration","Corporate Services"]
[null,null,null,null,null,16,1,4,"16","01","04","16|01|04","Basic Education","Administration","Office of the Chief Financial Officer"]
[null,null,null,null,null,16,1,5,"16","01","05","16|01|05","Basic Education","Administration","Internal Audit"]
[null,null,null,null,null,16,1,6,"16","01","06","16|01|06","Basic Education","Administration","Office Accommodation"]
[null,null,null,null,null,16,2,1,"16","02","01","16|02|01","Basic Education","Curriculum Policy, Support and Monitoring","Programme Management: Curriculum Policy, Support and Monitoring"]
[null,null,null,null,null,16,2,2,"16","02","02","16|02|02","Basic Education","Curriculum Policy, Support and Monitoring","Curriculum Implementation and Monitoring"]
[null,null,null,null,null,16,2,4,"16","02","04","16|02|04","Basic Education","Curriculum Policy, Support and Monitoring","Curriculum and Quality Enhancement Programmes"]
[null,null,null,null,null,16,3,1,"16","03","01","16|03|01","Basic Education","Teachers, Education Human Resources and Institutional Development","Programme Management: Teachers, Education Human Resources and Institutional Development"]
[null,null,null,null,null,16,3,2,"16","03","02","16|03|02","Basic Education","Teachers, Education Human Resources and Institutional Development","Education Human Resources Management"]
[null,null,null,null,null,16,3,3,"16","03","03","16|03|03","Basic Education","Teachers, Education Human Resources and Institutional Development","Education Human Resources Development"]
[null,null,null,null,null,16,3,4,"16","03","04","16|03|04","Basic Education","Teachers, Education Human Resources and Institutional Development","Curriculum and Professional Development Unit"]
[null,null,null,null,null,16,4,1,"16","04","01","16|04|01","Basic Education","Planning, Information and Assessment","Programme Management: Planning, Information and Assessment"]
[null,null,null,null,null,16,4,2,"16","04","02","16|04|02","Basic Education","Planning, Information and Assessment","Financial Planning, Information and Management Systems"]
[null,null,null,null,null,16,4,3,"16","04","03","16|04|03","Basic Education","Planning, Information and Assessment","School Infrastructure"]
[null,null,null,null,null,16,4,4,"16","04","04","16|04|04","Basic Education","Planning, Information and Assessment","National Assessments and Public Examinations"]
[null,null,null,null,null,16,4,5,"16","04","05","16|04|05","Basic Education","Planning, Information and Assessment","National Education Evaluation and Development Unit"]
[null,null,null,null,null,16,4,6,"16","04","06","16|04|06","Basic Education","Planning, Information and Assessment","Planning and Delivery Oversight Unit"]
[null,null,null,null,null,16,5,1,"16","05","01","16|05|01","Basic Education","Educational Enrichment Services","Programme Management: Educational Enrichment Services"]
[null,null,null,null,null,16,5,2,"16","05","02","16|05|02","Basic Education","Educational Enrichment Services","Partnerships in Education"]
[null,null,null,null,null,16,5,3,"16","05","03","16|05|03","Basic Education","Educational Enrichment Services","Care and Support in Schools"]
[null,null,null,null,null,17,1,1,"17","01","01","17|01|01","Higher Education and Training","Administration","Department Management"]
[null,null,null,null,null,17,1,2,"17","01","02","17|01|02","Higher Education and Training","Administration","Corporate Management Services"]
[null,null,null,null,null,17,1,3,"17","01","03","17|01|03","Higher Education and Training","Administration","Office of the Chief Financial Officer"]
[null,null,null,null,null,17,1,4,"17","01","04","17|01|04","Higher Education and Training","Administration","Internal Audit"]
[null,null,null,null,null,17,1,5,"17","01","05","17|01|05","Higher Education and Training","Administration","Office Accommodation"]
[null,null,null,null,null,17,2,1,"17","02","01","17|02|01","Higher Education and Training","Planning, Policy and Strategy","Programme Management: Planning, Policy and Strategy"]
[null,null,null,null,null,17,2,2,"17","02","02","17|02|02","Higher Education and Training","Planning, Policy and Strategy","Human Resource Development Council of South Africa "]
[null,null,null,null,null,17,2,3,"17","02","03","17|02|03","Higher Education and Training","Planning, Policy and Strategy","Policy, Planning, Monitoring and Evaluation"]
[null,null,null,null,null,17,2,4,"17","02","04","17|02|04","Higher Education and Training","Planning, Policy and Strategy","International Relations"]
[null,null,null,null,null,17,2,5,"17","02","05","17|02|05","Higher Education and Training","Planning, Policy and Strategy","Legal and Legislative Services"]
[null,null,null,null,null,17,2,6,"17","02","06","17|02|06","Higher Education and Training","Planning, Policy and Strategy","Social Inclusion and Quality"]
[null,null,null,null,null,17,3,1,"17","03","01","17|03|01","Higher Education and Training","University Education","Programme Management: University Education"]
[null,null,null,null,null,17,3,2,"17","03","02","17|03|02","Higher Education and Training","University Education","University Planning and Institutional Funding"]
[null,null,null,null,null,17,3,3,"17","03","03","17|03|03","Higher Education and Training","University Education","Institutional Governance and Management Support"]
[null,null,null,null,null,17,3,4,"17","03","04","17|03|04","Higher Education and Training","University Education","Higher Education Policy Development and Research"]
[null,null,null,null,null,17,3,5,"17","03","05","17|03|05","Higher Education and Training","University Education","Teaching, Learning and Research Development"]
[null,null,null,null,null,17,3,6,"17","03","06","17|03|06","Higher Education and Training","University Education","University Subsidies"]
[null,null,null,null,null,17,4,1,"17","04","01","17|04|01","Higher Education and Training","Technical and Vocational Education and Training","Programme Management: Technical and Vocational Education and Training"]
[null,null,null,null,null,17,4,2,"17","04","02","17|04|02","Higher Education and Training","Technical and Vocational Education and Training","Technical and Vocational Education and Training System Planning and Institutional Support"]
[null,null,null,null,null,17,4,3,"17","04","03","17|04|03","Higher Education and Training","Technical and Vocational Education and Training","Programmes and Qualifications"]
[null,null,null,null,null,17,4,4,"17","04","04","17|04|04","Higher Education and Training","Technical and Vocational Education and Training","National Examinations and Assessment"]
[null,null,null,null,null,17,4,5,"17","04","05","17|04|05","Higher Education and Training","Technical and Vocational Education and Training","Technical and Vocational Education and Training Financial Planning"]
[null,null,null,null,null,17,4,6,"17","04","06","17|04|06","Higher Education and Training","Technical and Vocational Education and Training","Regional Offices"]
[null,null,null,null,null,17,5,1,"17","05","01","17|05|01","Higher Education and Training","Skills Development","Programme Management: Skills Development"]
[null,null,null,null,null,17,5,2,"17","05","02","17|05|02","Higher Education and Training","Skills Development","Sector Education and Training Authority Coordination"]
[null,null,null,null,null,17,5,3,"17","05","03","17|05|03","Higher Education and Training","Skills Development","National Skills Authority Secretariat"]
[null,null,null,null,null,17,5,4,"17","05","04","17|05|04","Higher Education and Training","Skills Development","Quality Development and Promotion"]
[null,null,null,null,null,17,5,5,"17","05","05","17|05|05","Higher Education and Training","Skills Development","National Artisan Development"]
[null,null,null,null,null,17,6,1,"17","06","01","17|06|01","Higher Education and Training","Community Education and Training","Programme Management: Community Education and Training "]
[null,null,null,null,null,17,6,2,"17","06","02","17|06|02","Higher Education and Training","Community Education and Training","Community Education and Training System Planning, Institutional Development and Support"]
[null,null,null,null,null,17,6,3,"17","06","03","17|06|03","Higher Education and Training","Community Education and Training","Community Education and Training Colleges Financial Planning and Management"]
[null,null,null,null,null,17,6,4,"17","06","04","17|06|04","Higher Education and Training","Community Education and Training","Education, Training and Development Assessment"]
[null,null,null,null,null,17,16,1,"17","16","01","17|16|01","Higher Education and Training","Direct charge against the National Revenue Fund","Sector education and training authorities"]
[null,null,null,null,null,17,16,2,"17","16","02","17|16|02","Higher Education and Training","Direct charge against the National Revenue Fund","National Skills Fund"]
[null,null,null,null,null,18,1,1,"18","01","01","18|01|01","Health","Administration","Ministry"]
[null,null,null,null,null,18,1,2,"18","01","02","18|01|02","Health","Administration","Management"]
[null,null,null,null,null,18,1,3,"18","01","03","18|01|03","Health","Administration","Corporate Services"]
[null,null,null,null,null,18,1,4,"18","01","04","18|01|04","Health","Administration","Property Management"]
[null,null,null,null,null,18,1,5,"18","01","05","18|01|05","Health","Administration","Financial Management"]
[null,null,null,null,null,18,2,1,"18","02","01","18|02|01","Health","National Health Insurance","Programme Management"]
[null,null,null,null,null,18,2,2,"18","02","02","18|02|02","Health","National Health Insurance","Affordable Medicine"]
[null,null,null,null,null,18,2,3,"18","02","03","18|02|03","Health","National Health Insurance","Health Financing and National Health Insurance"]
[null,null,null,null,null,18,3,1,"18","03","01","18|03|01","Health","Communicable and Non-communicable Diseases","Programme Management"]
[null,null,null,null,null,18,3,2,"18","03","02","18|03|02","Health","Communicable and Non-communicable Diseases","HIV, AIDS and STIs"]
[null,null,null,null,null,18,3,3,"18","03","03","18|03|03","Health","Communicable and Non-communicable Diseases","Tuberculosis Management"]
[null,null,null,null,null,18,3,4,"18","03","04","18|03|04","Health","Communicable and Non-communicable Diseases","Women's Maternal and Reproductive Health"]
[null,null,null,null,null,18,3,5,"18","03","05","18|03|05","Health","Communicable and Non-communicable Diseases","Child, Youth and School Health"]
[null,null,null,null,null,18,3,6,"18","03","06","18|03|06","Health","Communicable and Non-communicable Diseases","Communicable Diseases"]
[null,null,null,null,null,18,3,7,"18","03","07","18|03|07","Health","Communicable and Non-communicable Diseases","Non-Communicable Diseases"]
[null,null,null,null,null,18,3,7,"18","03","07","18|03|07","Health","Communicable and Non-communicable Diseases","Non-communicable Diseases"]
[null,null,null,null,null,18,3,8,"18","03","08","18|03|08","Health","Communicable and Non-communicable Diseases","Health Promotion and Nutrition"]
[null,null,null,null,null,18,4,1,"18","04","01","18|04|01","Health","Primary Health Care","Programme Management"]
[null,null,null,null,null,18,4,2,"18","04","02","18|04|02","Health","Primary Health Care","District Health Services"]
[null,null,null,null,null,18,4,3,"18","04","03","18|04|03","Health","Primary Health Care","Environmental and Port Health Services"]
[null,null,null,null,null,18,4,4,"18","04","04","18|04|04","Health","Primary Health Care","Emergency Medical Services and Trauma"]
[null,null,null,null,null,18,5,1,"18","05","01","18|05|01","Health","Hospital Systems","Programme Management"]
[null,null,null,null,null,18,5,2,"18","05","02","18|05|02","Health","Hospital Systems","Health Facilities Infrastructure Management"]
[null,null,null,null,null,18,5,3,"18","05","03","18|05|03","Health","Hospital Systems","Hospital Systems"]
[null,null,null,null,null,18,6,1,"18","06","01","18|06|01","Health","Health System Governance and Human Resources","Programme Management"]
[null,null,null,null,null,18,6,2,"18","06","02","18|06|02","Health","Health System Governance and Human Resources","Policy and Planning"]
[null,null,null,null,null,18,6,3,"18","06","03","18|06|03","Health","Health System Governance and Human Resources","Public Entities Management and Laboratories"]
[null,null,null,null,null,18,6,4,"18","06","04","18|06|04","Health","Health System Governance and Human Resources","Nursing Services"]
[null,null,null,null,null,18,6,5,"18","06","05","18|06|05","Health","Health System Governance and Human Resources","Health Information, Monitoring and  Evaluation"]
[null,null,null,null,null,18,6,6,"18","06","06","18|06|06","Health","Health System Governance and Human Resources","Human Resources for Health"]
[null,null,null,null,null,19,1,1,"19","01","01","19|01|01","Social Development","Administration","Ministry"]
[null,null,null,null,null,19,1,2,"19","01","02","19|01|02","Social Development","Administration","Department Management"]
[null,null,null,null,null,19,1,3,"19","01","03","19|01|03","Social Development","Administration","Corporate Management"]
[null,null,null,null,null,19,1,4,"19","01","04","19|01|04","Social Development","Administration","Finance"]
[null,null,null,null,null,19,1,5,"19","01","05","19|01|05","Social Development","Administration","Internal Audit"]
[null,null,null,null,null,19,1,6,"19","01","06","19|01|06","Social Development","Administration","Office Accommodation"]
[null,null,null,null,null,19,2,1,"19","02","01","19|02|01","Social Development","Social Assistance","Old Age"]
[null,null,null,null,null,19,2,2,"19","02","02","19|02|02","Social Development","Social Assistance","War Veterans"]
[null,null,null,null,null,19,2,3,"19","02","03","19|02|03","Social Development","Social Assistance","Disability"]
[null,null,null,null,null,19,2,4,"19","02","04","19|02|04","Social Development","Social Assistance","Foster Care"]
[null,null,null,null,null,19,2,5,"19","02","05","19|02|05","Social Development","Social Assistance","Care Dependency"]
[null,null,null,null,null,19,2,6,"19","02","06","19|02|06","Social Development","Social Assistance","Child Support"]
[null,null,null,null,null,19,2,7,"19","02","07","19|02|07","Social Development","Social Assistance","Grant-in-aid"]
[null,null,null,null,null,19,2,8,"19","02","08","19|02|08","Social Development","Social Assistance","Social Relief of Distress"]
[null,null,null,null,null,19,3,1,"19","03","01","19|03|01","Social Development","Social Security Policy and Administration","Social Security Policy Development"]
[null,null,null,null,null,19,3,2,"19","03","02","19|03|02","Social Development","Social Security Policy and Administration","Appeals Adjudication"]
[null,null,null,null,null,19,3,3,"19","03","03","19|03|03","Social Development","Social Security Policy and Administration","Social Grants Administration"]
[null,null,null,null,null,19,3,4,"19","03","04","19|03|04","Social Development","Social Security Policy and Administration","Social Grants Fraud Investigations"]
[null,null,null,null,null,19,3,5,"19","03","05","19|03|05","Social Development","Social Security Policy and Administration","Programme Management"]
[null,null,null,null,null,19,4,1,"19","04","01","19|04|01","Social Development","Welfare Services Policy Development and Implementation Support","Service Standards"]
[null,null,null,null,null,19,4,2,"19","04","02","19|04|02","Social Development","Welfare Services Policy Development and Implementation Support","Substance Abuse"]
[null,null,null,null,null,19,4,3,"19","04","03","19|04|03","Social Development","Welfare Services Policy Development and Implementation Support","Older Persons"]
[null,null,null,null,null,19,4,4,"19","04","04","19|04|04","Social Development","Welfare Services Policy Development and Implementation Support","People with Disabilities"]
[null,null,null,null,null,19,4,5,"19","04","05","19|04|05","Social Development","Welfare Services Policy Development and Implementation Support","Children"]
[null,null,null,null,null,19,4,6,"19","04","06","19|04|06","Social Development","Welfare Services Policy Development and Implementation Support","Families"]
[null,null,null,null,null,19,4,7,"19","04","07","19|04|07","Social Development","Welfare Services Policy Development and Implementation Support","Social Crime Prevention and Victim Empowerment"]
[null,null,null,null,null,19,4,8,"19","04","08","19|04|08","Social Development","Welfare Services Policy Development and Implementation Support","Youth"]
[null,null,null,null,null,19,4,9,"19","04","09","19|04|09","Social Development","Welfare Services Policy Development and Implementation Support","HIV and AIDS"]
[null,null,null,null,null,19,4,10,"19","04","10","19|04|10","Social Development","Welfare Services Policy Development and Implementation Support","Social Worker Scholarships"]
[null,null,null,null,null,19,4,11,"19","04","11","19|04|11","Social Development","Welfare Services Policy Development and Implementation Support","Programme Management"]
[null,null,null,null,null,19,5,1,"19","05","01","19|05|01","Social Development","Social Policy and Integrated Service Delivery","Social Policy Research and Development"]
[null,null,null,null,null,19,5,2,"19","05","02","19|05|02","Social Development","Social Policy and Integrated Service Delivery","Special Projects and Innovation"]
[null,null,null,null,null,19,5,3,"19","05","03","19|05|03","Social Development","Social Policy and Integrated Service Delivery","Population Policy Promotion"]
[null,null,null,null,null,19,5,4,"19","05","04","19|05|04","Social Development","Social Policy and Integrated Service Delivery","Registration and Monitoring of Non-Profit Organisations"]
[null,null,null,null,null,19,5,5,"19","05","05","19|05|05","Social Development","Social Policy and Integrated Service Delivery","Substance Abuse Advisory Services and Oversight"]
[null,null,null,null,null,19,5,6,"19","05","06","19|05|06","Social Development","Social Policy and Integrated Service Delivery","Community Development"]
[null,null,null,null,null,19,5,7,"19","05","07","19|05|07","Social Development","Social Policy and Integrated Service Delivery","National Development Agency"]
[null,null,null,null,null,19,5,8,"19","05","08","19|05|08","Social Development","Social Policy and Integrated Service Delivery","Programme Management"]
[null,null,null,null,null,20,1,1,"20","01","01","20|01|01","Women, Youth and Persons with Disabilities","Administration","Ministry"]
[null,null,null,null,null,20,1,2,"20","01","02","20|01|02","Women, Youth and Persons with Disabilities","Administration","Departmental Management"]
[null,null,null,null,null,20,1,3,"20","01","03","20|01|03","Women, Youth and Persons with Disabilities","Administration","Corporate Services"]
[null,null,null,null,null,20,1,4,"20","01","04","20|01|04","Women, Youth and Persons with Disabilities","Administration","Financial Management"]
[null,null,null,null,null,20,1,5,"20","01","05","20|01|05","Women, Youth and Persons with Disabilities","Administration","Office Accommodation"]
[null,null,null,null,null,20,2,1,"20","02","01","20|02|01","Women, Youth and Persons with Disabilities","Social Transformation and Economic Empowerment","Management: Social Transformation and Economic Empowerment"]
[null,null,null,null,null,20,2,2,"20","02","02","20|02|02","Women, Youth and Persons with Disabilities","Social Transformation and Economic Empowerment","Social Empowerment and Transformation"]
[null,null,null,null,null,20,2,3,"20","02","03","20|02|03","Women, Youth and Persons with Disabilities","Social Transformation and Economic Empowerment","Governance Transformation, Justice and Security"]
[null,null,null,null,null,20,2,4,"20","02","04","20|02|04","Women, Youth and Persons with Disabilities","Social Transformation and Economic Empowerment","Economic Empowerment and Participation"]
[null,null,null,null,null,20,2,5,"20","02","05","20|02|05","Women, Youth and Persons with Disabilities","Social Transformation and Economic Empowerment","Commission for Gender Equality"]
[null,null,null,null,null,20,3,1,"20","03","01","20|03|01","Women, Youth and Persons with Disabilities","Policy, Stakeholder Coordination and Knowledge Management","Management: Policy Coordination and Knowledge Management"]
[null,null,null,null,null,20,3,2,"20","03","02","20|03|02","Women, Youth and Persons with Disabilities","Policy, Stakeholder Coordination and Knowledge Management","Research, Policy Analysis and Knowledge Management"]
[null,null,null,null,null,20,3,3,"20","03","03","20|03|03","Women, Youth and Persons with Disabilities","Policy, Stakeholder Coordination and Knowledge Management","International Relations"]
[null,null,null,null,null,20,3,4,"20","03","04","20|03|04","Women, Youth and Persons with Disabilities","Policy, Stakeholder Coordination and Knowledge Management","Stakeholder Coordination and Outreach"]
[null,null,null,null,null,20,3,5,"20","03","05","20|03|05","Women, Youth and Persons with Disabilities","Policy, Stakeholder Coordination and Knowledge Management","Monitoring and Evaluation"]
[null,null,null,null,null,20,4,1,"20","04","01","20|04|01","Women, Youth and Persons with Disabilities","Rights of Persons with Disabilities","Rights of Persons with Disabilities "]
[null,null,null,null,null,20,5,1,"20","05","01","20|05|01","Women, Youth and Persons with Disabilities","National Youth Development ","Management: National Youth Development"]
[null,null,null,null,null,20,5,2,"20","05","02","20|05|02","Women, Youth and Persons with Disabilities","National Youth Development ","Youth Development Programmes"]
[null,null,null,null,null,21,1,1,"21","01","01","21|01|01","Civilian Secretariat for the Police Service","Administration","Department Management"]
[null,null,null,null,null,21,1,2,"21","01","02","21|01|02","Civilian Secretariat for the Police Service","Administration","Corporate Services"]
[null,null,null,null,null,21,1,3,"21","01","03","21|01|03","Civilian Secretariat for the Police Service","Administration","Finance Administration"]
[null,null,null,null,null,21,1,4,"21","01","04","21|01|04","Civilian Secretariat for the Police Service","Administration","Office Accommodation"]
[null,null,null,null,null,21,1,5,"21","01","05","21|01|05","Civilian Secretariat for the Police Service","Administration","Internal Audit"]
[null,null,null,null,null,21,2,1,"21","02","01","21|02|01","Civilian Secretariat for the Police Service","Intersectoral Coordination and Strategic Partnerships","Intergovernmental, Civil Society and Public-Private Partnerships"]
[null,null,null,null,null,21,2,2,"21","02","02","21|02|02","Civilian Secretariat for the Police Service","Intersectoral Coordination and Strategic Partnerships","Community Outreach"]
[null,null,null,null,null,21,3,1,"21","03","01","21|03|01","Civilian Secretariat for the Police Service","Legislation and Policy Development","Policy Development and Research"]
[null,null,null,null,null,21,3,2,"21","03","02","21|03|02","Civilian Secretariat for the Police Service","Legislation and Policy Development","Legislation"]
[null,null,null,null,null,21,4,1,"21","04","01","21|04|01","Civilian Secretariat for the Police Service","Civilian Oversight, Monitoring and Evaluations","Police Performance, Conduct and Compliance"]
[null,null,null,null,null,21,4,2,"21","04","02","21|04|02","Civilian Secretariat for the Police Service","Civilian Oversight, Monitoring and Evaluations","Policy and Programme Evaluations"]
[null,null,null,null,null,21,4,3,"21","04","03","21|04|03","Civilian Secretariat for the Police Service","Civilian Oversight, Monitoring and Evaluations","Information Management"]
[null,null,null,null,null,21,4,4,"21","04","04","21|04|04","Civilian Secretariat for the Police Service","Civilian Oversight, Monitoring and Evaluations","Office of the Directorate for Priority Crime Investigation Judge"]
[null,null,null,null,null,21,4,5,"21","04","05","21|04|05","Civilian Secretariat for the Police Service","Civilian Oversight, Monitoring and Evaluations","National Forensic Oversight and Ethics Board"]
[null,null,null,null,null,22,1,1,"22","01","01","22|01|01","Correctional Services","Administration","Ministry"]
[null,null,null,null,null,22,1,2,"22","01","02","22|01|02","Correctional Services","Administration","Judicial Inspectorate for Correctional Services"]
[null,null,null,null,null,22,1,3,"22","01","03","22|01|03","Correctional Services","Administration","Management"]
[null,null,null,null,null,22,1,4,"22","01","04","22|01|04","Correctional Services","Administration","Human Resources"]
[null,null,null,null,null,22,1,5,"22","01","05","22|01|05","Correctional Services","Administration","Finance"]
[null,null,null,null,null,22,1,6,"22","01","06","22|01|06","Correctional Services","Administration","Assurance Services"]
[null,null,null,null,null,22,1,7,"22","01","07","22|01|07","Correctional Services","Administration","Information Technology"]
[null,null,null,null,null,22,1,8,"22","01","08","22|01|08","Correctional Services","Administration","Office Accommodation"]
[null,null,null,null,null,22,2,1,"22","02","01","22|02|01","Correctional Services","Incarceration","Security operations"]
[null,null,null,null,null,22,2,1,"22","02","01","22|02|01","Correctional Services","Incarceration","Security Operations"]
[null,null,null,null,null,22,2,2,"22","02","02","22|02|02","Correctional Services","Incarceration","Facilities"]
[null,null,null,null,null,22,2,3,"22","02","03","22|02|03","Correctional Services","Incarceration","Remand Detention"]
[null,null,null,null,null,22,2,4,"22","02","04","22|02|04","Correctional Services","Incarceration","Offender Management"]
[null,null,null,null,null,22,3,1,"22","03","01","22|03|01","Correctional Services","Rehabilitation","Correctional Programmes"]
[null,null,null,null,null,22,3,2,"22","03","02","22|03|02","Correctional Services","Rehabilitation","Offender Development"]
[null,null,null,null,null,22,3,3,"22","03","03","22|03|03","Correctional Services","Rehabilitation","Psychological, Social and Spiritual Services"]
[null,null,null,null,null,22,4,1,"22","04","01","22|04|01","Correctional Services","Care","Nutritional Services"]
[null,null,null,null,null,22,4,2,"22","04","02","22|04|02","Correctional Services","Care","Health and Hygiene Services"]
[null,null,null,null,null,22,5,1,"22","05","01","22|05|01","Correctional Services","Social Reintegration","Supervision"]
[null,null,null,null,null,22,5,2,"22","05","02","22|05|02","Correctional Services","Social Reintegration","Community Reintegration"]
[null,null,null,null,null,22,5,3,"22","05","03","22|05|03","Correctional Services","Social Reintegration","Office Accommodation: Community Corrections"]
[null,null,null,null,null,23,1,1,"23","01","01","23|01|01","Defence","Administration","Ministry"]
[null,null,null,null,null,23,1,2,"23","01","02","23|01|02","Defence","Administration","Departmental Direction"]
[null,null,null,null,null,23,1,3,"23","01","03","23|01|03","Defence","Administration","Policy and Planning"]
[null,null,null,null,null,23,1,4,"23","01","04","23|01|04","Defence","Administration","Financial Services"]
[null,null,null,null,null,23,1,5,"23","01","05","23|01|05","Defence","Administration","Human Resources Support Services"]
[null,null,null,null,null,23,1,6,"23","01","06","23|01|06","Defence","Administration","Legal Services"]
[null,null,null,null,null,23,1,7,"23","01","07","23|01|07","Defence","Administration","Inspection and Audit Services"]
[null,null,null,null,null,23,1,8,"23","01","08","23|01|08","Defence","Administration","Acquisition Services"]
[null,null,null,null,null,23,1,9,"23","01","09","23|01|09","Defence","Administration","Communication Services"]
[null,null,null,null,null,23,1,10,"23","01","10","23|01|10","Defence","Administration","South African National Defence Force Command and Control"]
[null,null,null,null,null,23,1,11,"23","01","11","23|01|11","Defence","Administration","Religious Services"]
[null,null,null,null,null,23,1,12,"23","01","12","23|01|12","Defence","Administration","Defence Reserve Direction"]
[null,null,null,null,null,23,1,13,"23","01","13","23|01|13","Defence","Administration","Defence Foreign Relations"]
[null,null,null,null,null,23,1,14,"23","01","14","23|01|14","Defence","Administration","Office Accommodation"]
[null,null,null,null,null,23,2,1,"23","02","01","23|02|01","Defence","Force Employment","Strategic Direction"]
[null,null,null,null,null,23,2,2,"23","02","02","23|02|02","Defence","Force Employment","Operational Direction"]
[null,null,null,null,null,23,2,3,"23","02","03","23|02|03","Defence","Force Employment","Special Operations"]
[null,null,null,null,null,23,2,4,"23","02","04","23|02|04","Defence","Force Employment","Regional Security"]
[null,null,null,null,null,23,2,5,"23","02","05","23|02|05","Defence","Force Employment","Support to the People"]
[null,null,null,null,null,23,3,1,"23","03","01","23|03|01","Defence","Landward Defence","Strategic Direction"]
[null,null,null,null,null,23,3,2,"23","03","02","23|03|02","Defence","Landward Defence","Infantry Capability"]
[null,null,null,null,null,23,3,3,"23","03","03","23|03|03","Defence","Landward Defence","Armour Capability"]
[null,null,null,null,null,23,3,4,"23","03","04","23|03|04","Defence","Landward Defence","Artillery Capability"]
[null,null,null,null,null,23,3,5,"23","03","05","23|03|05","Defence","Landward Defence","Air Defence Artillery Capability"]
[null,null,null,null,null,23,3,6,"23","03","06","23|03|06","Defence","Landward Defence","Engineering Capability"]
[null,null,null,null,null,23,3,7,"23","03","07","23|03|07","Defence","Landward Defence","Operational Intelligence"]
[null,null,null,null,null,23,3,8,"23","03","08","23|03|08","Defence","Landward Defence","Command and Control Capability"]
[null,null,null,null,null,23,3,9,"23","03","09","23|03|09","Defence","Landward Defence","Support Capability"]
[null,null,null,null,null,23,3,10,"23","03","10","23|03|10","Defence","Landward Defence","General Training Capability"]
[null,null,null,null,null,23,3,11,"23","03","11","23|03|11","Defence","Landward Defence","Signal Capability"]
[null,null,null,null,null,23,4,1,"23","04","01","23|04|01","Defence","Air Defence","Strategic Direction"]
[null,null,null,null,null,23,4,2,"23","04","02","23|04|02","Defence","Air Defence","Operational Direction"]
[null,null,null,null,null,23,4,3,"23","04","03","23|04|03","Defence","Air Defence","Helicopter Capability"]
[null,null,null,null,null,23,4,4,"23","04","04","23|04|04","Defence","Air Defence","Transport and Maritime Capability"]
[null,null,null,null,null,23,4,5,"23","04","05","23|04|05","Defence","Air Defence","Air Combat Capability"]
[null,null,null,null,null,23,4,6,"23","04","06","23|04|06","Defence","Air Defence","Operational Support and Intelligence Capability"]
[null,null,null,null,null,23,4,7,"23","04","07","23|04|07","Defence","Air Defence","Command and Control Capability"]
[null,null,null,null,null,23,4,8,"23","04","08","23|04|08","Defence","Air Defence","Base Support Capability"]
[null,null,null,null,null,23,4,9,"23","04","09","23|04|09","Defence","Air Defence","Command Post"]
[null,null,null,null,null,23,4,10,"23","04","10","23|04|10","Defence","Air Defence","Training Capability"]
[null,null,null,null,null,23,4,11,"23","04","11","23|04|11","Defence","Air Defence","Technical Support Services"]
[null,null,null,null,null,23,5,1,"23","05","01","23|05|01","Defence","Maritime Defence","Maritime Direction"]
[null,null,null,null,null,23,5,2,"23","05","02","23|05|02","Defence","Maritime Defence","Maritime Combat Capability"]
[null,null,null,null,null,23,5,3,"23","05","03","23|05|03","Defence","Maritime Defence","Maritime Logistic Support Capability"]
[null,null,null,null,null,23,5,4,"23","05","04","23|05|04","Defence","Maritime Defence","Maritime Human Resources and Training Capability"]
[null,null,null,null,null,23,5,5,"23","05","05","23|05|05","Defence","Maritime Defence","Base Support Capability"]
[null,null,null,null,null,23,6,1,"23","06","01","23|06|01","Defence","Military Health Support","Strategic Direction"]
[null,null,null,null,null,23,6,2,"23","06","02","23|06|02","Defence","Military Health Support","Mobile Military Health Support"]
[null,null,null,null,null,23,6,3,"23","06","03","23|06|03","Defence","Military Health Support","Area Military Health Service"]
[null,null,null,null,null,23,6,4,"23","06","04","23|06|04","Defence","Military Health Support","Specialist/Tertiary Health Service"]
[null,null,null,null,null,23,6,5,"23","06","05","23|06|05","Defence","Military Health Support","Military Health Product Support Capability"]
[null,null,null,null,null,23,6,6,"23","06","06","23|06|06","Defence","Military Health Support","Military Health Maintenance Capability"]
[null,null,null,null,null,23,6,7,"23","06","07","23|06|07","Defence","Military Health Support","Military Health Training Capability"]
[null,null,null,null,null,23,7,2,"23","07","02","23|07|02","Defence","Defence Intelligence","Operations"]
[null,null,null,null,null,23,7,3,"23","07","03","23|07|03","Defence","Defence Intelligence","Defence Intelligence Support Services"]
[null,null,null,null,null,23,8,1,"23","08","01","23|08|01","Defence","General Support","Joint Logistic Services"]
[null,null,null,null,null,23,8,2,"23","08","02","23|08|02","Defence","General Support","Command and Management Information Systems"]
[null,null,null,null,null,23,8,3,"23","08","03","23|08|03","Defence","General Support","Military Police"]
[null,null,null,null,null,23,8,4,"23","08","04","23|08|04","Defence","General Support","Technology Development"]
[null,null,null,null,null,23,8,5,"23","08","05","23|08|05","Defence","General Support","Departmental Support"]
[null,null,null,null,null,24,1,1,"24","01","01","24|01|01","Independent Police Investigative Directorate","Administration","Department Management"]
[null,null,null,null,null,24,1,2,"24","01","02","24|01|02","Independent Police Investigative Directorate","Administration","Corporate Services"]
[null,null,null,null,null,24,1,3,"24","01","03","24|01|03","Independent Police Investigative Directorate","Administration","Office Accommodation"]
[null,null,null,null,null,24,1,4,"24","01","04","24|01|04","Independent Police Investigative Directorate","Administration","Internal Audit"]
[null,null,null,null,null,24,1,5,"24","01","05","24|01|05","Independent Police Investigative Directorate","Administration","Finance Services"]
[null,null,null,null,null,24,2,1,"24","02","01","24|02|01","Independent Police Investigative Directorate","Investigation and Information Management","Investigation Management"]
[null,null,null,null,null,24,2,2,"24","02","02","24|02|02","Independent Police Investigative Directorate","Investigation and Information Management","Investigation Services"]
[null,null,null,null,null,24,2,3,"24","02","03","24|02|03","Independent Police Investigative Directorate","Investigation and Information Management","Information Management"]
[null,null,null,null,null,24,3,1,"24","03","01","24|03|01","Independent Police Investigative Directorate","Legal and Investigation Advisory Services","Legal Support and Administration"]
[null,null,null,null,null,24,3,2,"24","03","02","24|03|02","Independent Police Investigative Directorate","Legal and Investigation Advisory Services","Litigation Advisory Services"]
[null,null,null,null,null,24,3,3,"24","03","03","24|03|03","Independent Police Investigative Directorate","Legal and Investigation Advisory Services","Investigation Advisory Services"]
[null,null,null,null,null,24,4,1,"24","04","01","24|04|01","Independent Police Investigative Directorate","Compliance Monitoring and Stakeholder Management","Compliance Monitoring "]
[null,null,null,null,null,24,4,2,"24","04","02","24|04|02","Independent Police Investigative Directorate","Compliance Monitoring and Stakeholder Management","Stakeholder Management"]
[null,null,null,null,null,25,1,1,"25","01","01","25|01|01","Justice and Constitutional Development","Administration","Ministry"]
[null,null,null,null,null,25,1,2,"25","01","02","25|01|02","Justice and Constitutional Development","Administration","Management"]
[null,null,null,null,null,25,1,3,"25","01","03","25|01|03","Justice and Constitutional Development","Administration","Corporate Services"]
[null,null,null,null,null,25,1,4,"25","01","04","25|01|04","Justice and Constitutional Development","Administration","Financial Administration"]
[null,null,null,null,null,25,1,5,"25","01","05","25|01|05","Justice and Constitutional Development","Administration","Internal Audit"]
[null,null,null,null,null,25,1,6,"25","01","06","25|01|06","Justice and Constitutional Development","Administration","Office Accommodation"]
[null,null,null,null,null,25,2,1,"25","02","01","25|02|01","Justice and Constitutional Development","Court Services","Lower Courts"]
[null,null,null,null,null,25,2,2,"25","02","02","25|02|02","Justice and Constitutional Development","Court Services","Family Advocate"]
[null,null,null,null,null,25,2,3,"25","02","03","25|02|03","Justice and Constitutional Development","Court Services","Magistrate's Commission"]
[null,null,null,null,null,25,2,4,"25","02","04","25|02|04","Justice and Constitutional Development","Court Services","Facilities Management"]
[null,null,null,null,null,25,2,5,"25","02","05","25|02|05","Justice and Constitutional Development","Court Services","Administration of Lower Courts"]
[null,null,null,null,null,25,3,1,"25","03","01","25|03|01","Justice and Constitutional Development","State Legal Services","State Law Advisors"]
[null,null,null,null,null,25,3,2,"25","03","02","25|03|02","Justice and Constitutional Development","State Legal Services","Litigation and Legal Services"]
[null,null,null,null,null,25,3,3,"25","03","03","25|03|03","Justice and Constitutional Development","State Legal Services","Legislative Development and Law Reform"]
[null,null,null,null,null,25,3,4,"25","03","04","25|03|04","Justice and Constitutional Development","State Legal Services","Master of the High Court"]
[null,null,null,null,null,25,3,5,"25","03","05","25|03|05","Justice and Constitutional Development","State Legal Services","Constitutional Development"]
[null,null,null,null,null,25,4,1,"25","04","01","25|04|01","Justice and Constitutional Development","National Prosecuting Authority","National Prosecutions Service"]
[null,null,null,null,null,25,4,2,"25","04","02","25|04|02","Justice and Constitutional Development","National Prosecuting Authority","Asset Forfeiture Unit"]
[null,null,null,null,null,25,4,3,"25","04","03","25|04|03","Justice and Constitutional Development","National Prosecuting Authority","Office for Witness Protection"]
[null,null,null,null,null,25,4,4,"25","04","04","25|04|04","Justice and Constitutional Development","National Prosecuting Authority","Support Services"]
[null,null,null,null,null,25,5,1,"25","05","01","25|05|01","Justice and Constitutional Development","Auxiliary and Associated Services","Legal Aid South Africa"]
[null,null,null,null,null,25,5,2,"25","05","02","25|05|02","Justice and Constitutional Development","Auxiliary and Associated Services","Special Investigating Unit"]
[null,null,null,null,null,25,5,3,"25","05","03","25|05|03","Justice and Constitutional Development","Auxiliary and Associated Services","Public Protector of South Africa"]
[null,null,null,null,null,25,5,4,"25","05","04","25|05|04","Justice and Constitutional Development","Auxiliary and Associated Services","South African Human Rights Commission"]
[null,null,null,null,null,25,5,5,"25","05","05","25|05|05","Justice and Constitutional Development","Auxiliary and Associated Services","Justice Modernisation"]
[null,null,null,null,null,25,5,6,"25","05","06","25|05|06","Justice and Constitutional Development","Auxiliary and Associated Services","President's Fund"]
[null,null,null,null,null,25,16,1,"25","16","01","25|16|01","Justice and Constitutional Development","Direct charge against the National Revenue Fund","Magistrates' Salaries"]
[null,null,null,null,null,25,16,1,"25","16","01","25|16|01","Justice and Constitutional Development","Direct charge against the National Revenue Fund","Magistrates' salaries"]
[null,null,null,null,null,26,1,1,"26","01","01","26|01|01","Military Veterans","Administration","Management"]
[null,null,null,null,null,26,1,2,"26","01","02","26|01|02","Military Veterans","Administration","Corporate Services"]
[null,null,null,null,null,26,1,3,"26","01","03","26|01|03","Military Veterans","Administration","Financial Administration"]
[null,null,null,null,null,26,1,4,"26","01","04","26|01|04","Military Veterans","Administration","Internal Audit"]
[null,null,null,null,null,26,1,5,"26","01","05","26|01|05","Military Veterans","Administration","Strategic Planning, Policy Development and Monitoring and Evaluation"]
[null,null,null,null,null,26,1,6,"26","01","06","26|01|06","Military Veterans","Administration","Office Accommodation"]
[null,null,null,null,null,26,2,1,"26","02","01","26|02|01","Military Veterans","Socioeconomic Support","Database and Benefits Management"]
[null,null,null,null,null,26,2,2,"26","02","02","26|02|02","Military Veterans","Socioeconomic Support","Health Care and Wellbeing Support"]
[null,null,null,null,null,26,2,3,"26","02","03","26|02|03","Military Veterans","Socioeconomic Support","Socioeconomic Support Management"]
[null,null,null,null,null,26,3,1,"26","03","01","26|03|01","Military Veterans","Empowerment and Stakeholder Management","Provincial Offices and Stakeholder Relations"]
[null,null,null,null,null,26,3,2,"26","03","02","26|03|02","Military Veterans","Empowerment and Stakeholder Management","Empowerment and Skills Development"]
[null,null,null,null,null,26,3,3,"26","03","03","26|03|03","Military Veterans","Empowerment and Stakeholder Management","Heritage, Memorials, Burials and Honours"]
[null,null,null,null,null,27,1,1,"27","01","01","27|01|01","Office of the Chief Justice","Administration","Management"]
[null,null,null,null,null,27,1,2,"27","01","02","27|01|02","Office of the Chief Justice","Administration","Corporate Services"]
[null,null,null,null,null,27,1,3,"27","01","03","27|01|03","Office of the Chief Justice","Administration","Financial Administration"]
[null,null,null,null,null,27,1,4,"27","01","04","27|01|04","Office of the Chief Justice","Administration","Internal Audit"]
[null,null,null,null,null,27,1,5,"27","01","05","27|01|05","Office of the Chief Justice","Administration","Office Accommodation"]
[null,null,null,null,null,27,2,1,"27","02","01","27|02|01","Office of the Chief Justice","Superior Court Services","Administration of Superior Courts"]
[null,null,null,null,null,27,2,2,"27","02","02","27|02|02","Office of the Chief Justice","Superior Court Services","Constitutional Court"]
[null,null,null,null,null,27,2,3,"27","02","03","27|02|03","Office of the Chief Justice","Superior Court Services","Supreme Court of Appeal"]
[null,null,null,null,null,27,2,4,"27","02","04","27|02|04","Office of the Chief Justice","Superior Court Services","High Courts"]
[null,null,null,null,null,27,2,5,"27","02","05","27|02|05","Office of the Chief Justice","Superior Court Services","Specialised Courts"]
[null,null,null,null,null,27,3,1,"27","03","01","27|03|01","Office of the Chief Justice","Judicial Education and Support","South African Judicial Education Institute"]
[null,null,null,null,null,27,3,2,"27","03","02","27|03|02","Office of the Chief Justice","Judicial Education and Support","Judicial Policy, Research and Support"]
[null,null,null,null,null,27,3,3,"27","03","03","27|03|03","Office of the Chief Justice","Judicial Education and Support","Judicial Service Commission"]
[null,null,null,null,null,27,16,1,"27","16","01","27|16|01","Office of the Chief Justice","Direct charge against the National Revenue Fund","Judges' Salaries"]
[null,null,null,null,null,27,16,1,"27","16","01","27|16|01","Office of the Chief Justice","Direct charge against the National Revenue Fund","Judges' salaries"]
[null,null,null,null,null,28,1,1,"28","01","01","28|01|01","Police","Administration","Ministry"]
[null,null,null,null,null,28,1,2,"28","01","02","28|01|02","Police","Administration","Management"]
[null,null,null,null,null,28,1,3,"28","01","03","28|01|03","Police","Administration","Corporate Services"]
[null,null,null,null,null,28,2,1,"28","02","01","28|02|01","Police","Visible Policing","Crime Prevention"]
[null,null,null,null,null,28,2,2,"28","02","02","28|02|02","Police","Visible Policing","Border Security"]
[null,null,null,null,null,28,2,3,"28","02","03","28|02|03","Police","Visible Policing","Specialised Interventions"]
[null,null,null,null,null,28,2,4,"28","02","04","28|02|04","Police","Visible Policing","Facilities"]
[null,null,null,null,null,28,3,1,"28","03","01","28|03|01","Police","Detective Services","Crime Investigations"]
[null,null,null,null,null,28,3,2,"28","03","02","28|03|02","Police","Detective Services","Criminal Record Centre"]
[null,null,null,null,null,28,3,3,"28","03","03","28|03|03","Police","Detective Services","Forensic Science Laboratory"]
[null,null,null,null,null,28,3,4,"28","03","04","28|03|04","Police","Detective Services","Specialised Investigations"]
[null,null,null,null,null,28,4,1,"28","04","01","28|04|01","Police","Crime Intelligence","Crime Intelligence Operations"]
[null,null,null,null,null,28,4,2,"28","04","02","28|04|02","Police","Crime Intelligence","Intelligence and Information Management"]
[null,null,null,null,null,28,5,1,"28","05","01","28|05|01","Police","Protection and Security Services","VIP Protection Services"]
[null,null,null,null,null,28,5,2,"28","05","02","28|05|02","Police","Protection and Security Services","Static Protection"]
[null,null,null,null,null,28,5,3,"28","05","03","28|05|03","Police","Protection and Security Services","Government Security Regulator"]
[null,null,null,null,null,28,5,4,"28","05","04","28|05|04","Police","Protection and Security Services","Operational Support"]
[null,null,null,null,null,29,1,1,"29","01","01","29|01|01","Agriculture, Land Reform and Rural Development","Administration","Ministry"]
[null,null,null,null,null,29,1,2,"29","01","02","29|01|02","Agriculture, Land Reform and Rural Development","Administration","Department Management"]
[null,null,null,null,null,29,1,3,"29","01","03","29|01|03","Agriculture, Land Reform and Rural Development","Administration","Internal Audit"]
[null,null,null,null,null,29,1,4,"29","01","04","29|01|04","Agriculture, Land Reform and Rural Development","Administration","Financial Management"]
[null,null,null,null,null,29,1,5,"29","01","05","29|01|05","Agriculture, Land Reform and Rural Development","Administration","Corporate Services"]
[null,null,null,null,null,29,1,6,"29","01","06","29|01|06","Agriculture, Land Reform and Rural Development","Administration","Provincial Operations"]
[null,null,null,null,null,29,1,7,"29","01","07","29|01|07","Agriculture, Land Reform and Rural Development","Administration","Office Accommodation"]
[null,null,null,null,null,29,2,1,"29","02","01","29|02|01","Agriculture, Land Reform and Rural Development","Agricultural Production, Health, Food Safety, Natural Resources and Disaster Management","Inspection and Quarantine Services"]
[null,null,null,null,null,29,2,2,"29","02","02","29|02|02","Agriculture, Land Reform and Rural Development","Agricultural Production, Health, Food Safety, Natural Resources and Disaster Management","Plant Production and Health"]
[null,null,null,null,null,29,2,3,"29","02","03","29|02|03","Agriculture, Land Reform and Rural Development","Agricultural Production, Health, Food Safety, Natural Resources and Disaster Management","Animal Production and Health"]
[null,null,null,null,null,29,2,4,"29","02","04","29|02|04","Agriculture, Land Reform and Rural Development","Agricultural Production, Health, Food Safety, Natural Resources and Disaster Management","Natural Resources and Disaster Management"]
[null,null,null,null,null,29,2,5,"29","02","05","29|02|05","Agriculture, Land Reform and Rural Development","Agricultural Production, Health, Food Safety, Natural Resources and Disaster Management","Agricultural Research Council"]
[null,null,null,null,null,29,3,1,"29","03","01","29|03|01","Agriculture, Land Reform and Rural Development","Food Security, Land Reform and Restitution","Food Security"]
[null,null,null,null,null,29,3,2,"29","03","02","29|03|02","Agriculture, Land Reform and Rural Development","Food Security, Land Reform and Restitution","Land Tenure Reform"]
[null,null,null,null,null,29,3,3,"29","03","03","29|03|03","Agriculture, Land Reform and Rural Development","Food Security, Land Reform and Restitution","Land Acquisition and Redistribution"]
[null,null,null,null,null,29,3,4,"29","03","04","29|03|04","Agriculture, Land Reform and Rural Development","Food Security, Land Reform and Restitution","National Extension Services and Sector Capacity Development"]
[null,null,null,null,null,29,3,5,"29","03","05","29|03|05","Agriculture, Land Reform and Rural Development","Food Security, Land Reform and Restitution","Farmer Support and Development"]
[null,null,null,null,null,29,3,6,"29","03","06","29|03|06","Agriculture, Land Reform and Rural Development","Food Security, Land Reform and Restitution","Property Management and Advisory Support"]
[null,null,null,null,null,29,3,7,"29","03","07","29|03|07","Agriculture, Land Reform and Rural Development","Food Security, Land Reform and Restitution","Restitution"]
[null,null,null,null,null,29,4,1,"29","04","01","29|04|01","Agriculture, Land Reform and Rural Development","Rural Development","National Rural Youth Services Corps "]
[null,null,null,null,null,29,4,2,"29","04","02","29|04|02","Agriculture, Land Reform and Rural Development","Rural Development","Rural Social Infrastructure Coordination"]
[null,null,null,null,null,29,4,3,"29","04","03","29|04|03","Agriculture, Land Reform and Rural Development","Rural Development","Technology Research and Coordination"]
[null,null,null,null,null,29,5,1,"29","05","01","29|05|01","Agriculture, Land Reform and Rural Development","Economic Development, Trade and Marketing","International Relations and Trade"]
[null,null,null,null,null,29,5,2,"29","05","02","29|05|02","Agriculture, Land Reform and Rural Development","Economic Development, Trade and Marketing","Cooperatives Development"]
[null,null,null,null,null,29,5,3,"29","05","03","29|05|03","Agriculture, Land Reform and Rural Development","Economic Development, Trade and Marketing","Agro-Processing, Marketing and Rural Industrial Development"]
[null,null,null,null,null,29,5,3,"29","05","03","29|05|03","Agriculture, Land Reform and Rural Development","Economic Development, Trade and Marketing","Agro-processing, Marketing and Rural Industrial Development"]
[null,null,null,null,null,29,6,1,"29","06","01","29|06|01","Agriculture, Land Reform and Rural Development","Land Administration","National Geomatics Management Services"]
[null,null,null,null,null,29,6,2,"29","06","02","29|06|02","Agriculture, Land Reform and Rural Development","Land Administration","Spatial Planning and Land Use"]
[null,null,null,null,null,29,6,3,"29","06","03","29|06|03","Agriculture, Land Reform and Rural Development","Land Administration","Registration of Deeds Trading Account"]
[null,null,null,null,null,29,6,4,"29","06","04","29|06|04","Agriculture, Land Reform and Rural Development","Land Administration","South African Council of Planners"]
[null,null,null,null,null,29,6,5,"29","06","05","29|06|05","Agriculture, Land Reform and Rural Development","Land Administration","South African Geomatics Council"]
[null,null,null,null,null,30,1,1,"30","01","01","30|01|01","Communications and Digital Technologies","Administration","Ministry"]
[null,null,null,null,null,30,1,2,"30","01","02","30|01|02","Communications and Digital Technologies","Administration","Departmental Management"]
[null,null,null,null,null,30,1,3,"30","01","03","30|01|03","Communications and Digital Technologies","Administration","Internal Audit"]
[null,null,null,null,null,30,1,4,"30","01","04","30|01|04","Communications and Digital Technologies","Administration","Corporate Services"]
[null,null,null,null,null,30,1,5,"30","01","05","30|01|05","Communications and Digital Technologies","Administration","Financial Management"]
[null,null,null,null,null,30,1,6,"30","01","06","30|01|06","Communications and Digital Technologies","Administration","Office Accommodation"]
[null,null,null,null,null,30,2,1,"30","02","01","30|02|01","Communications and Digital Technologies","ICT International Relations and Affairs","Programme Management for International Relations and Affairs"]
[null,null,null,null,null,30,2,2,"30","02","02","30|02|02","Communications and Digital Technologies","ICT International Relations and Affairs","International Affairs"]
[null,null,null,null,null,30,2,3,"30","02","03","30|02|03","Communications and Digital Technologies","ICT International Relations and Affairs","ICT Trade/Partnership"]
[null,null,null,null,null,30,3,1,"30","03","01","30|03|01","Communications and Digital Technologies","ICT Policy Development and Research","Programme Management for ICT Policy Development and Research"]
[null,null,null,null,null,30,3,2,"30","03","02","30|03|02","Communications and Digital Technologies","ICT Policy Development and Research","ICT Policy Development"]
[null,null,null,null,null,30,3,3,"30","03","03","30|03|03","Communications and Digital Technologies","ICT Policy Development and Research","Economic and Market Analysis"]
[null,null,null,null,null,30,3,4,"30","03","04","30|03|04","Communications and Digital Technologies","ICT Policy Development and Research","Research"]
[null,null,null,null,null,30,3,5,"30","03","05","30|03|05","Communications and Digital Technologies","ICT Policy Development and Research","Small Medium and Micro Enterprise"]
[null,null,null,null,null,30,3,6,"30","03","06","30|03|06","Communications and Digital Technologies","ICT Policy Development and Research","Broadcasting Policy"]
[null,null,null,null,null,30,3,7,"30","03","07","30|03|07","Communications and Digital Technologies","ICT Policy Development and Research","Presidential Commission on 4IR"]
[null,null,null,null,null,30,4,1,"30","04","01","30|04|01","Communications and Digital Technologies","ICT Enterprise and Public Entity Oversight","Programme Management for ICT Enterprise and Public Entity Oversight"]
[null,null,null,null,null,30,4,2,"30","04","02","30|04|02","Communications and Digital Technologies","ICT Enterprise and Public Entity Oversight","Regulatory Institutions"]
[null,null,null,null,null,30,4,3,"30","04","03","30|04|03","Communications and Digital Technologies","ICT Enterprise and Public Entity Oversight","Universal Services and Access"]
[null,null,null,null,null,30,4,4,"30","04","04","30|04|04","Communications and Digital Technologies","ICT Enterprise and Public Entity Oversight","ICT Skills Development"]
[null,null,null,null,null,30,5,1,"30","05","01","30|05|01","Communications and Digital Technologies","ICT Infrastructure Development and Support","Programme Management for ICT Infrastructure Development and Support"]
[null,null,null,null,null,30,5,2,"30","05","02","30|05|02","Communications and Digital Technologies","ICT Infrastructure Development and Support","Broadband"]
[null,null,null,null,null,30,5,3,"30","05","03","30|05|03","Communications and Digital Technologies","ICT Infrastructure Development and Support","ICT Support"]
[null,null,null,null,null,30,5,4,"30","05","04","30|05|04","Communications and Digital Technologies","ICT Infrastructure Development and Support","Broadcasting Digital Migration"]
[null,null,null,null,null,30,6,1,"30","06","01","30|06|01","Communications and Digital Technologies","ICT Information Society and Capacity Development","Programme Management for ICT Information Society and Capacity Development"]
[null,null,null,null,null,30,6,2,"30","06","02","30|06|02","Communications and Digital Technologies","ICT Information Society and Capacity Development","Information Society Development"]
[null,null,null,null,null,30,6,3,"30","06","03","30|06|03","Communications and Digital Technologies","ICT Information Society and Capacity Development","Capacity Development "]
[null,null,null,null,null,31,1,1,"31","01","01","31|01|01","Employment and Labour","Administration","Ministry"]
[null,null,null,null,null,31,1,2,"31","01","02","31|01|02","Employment and Labour","Administration","Management"]
[null,null,null,null,null,31,1,3,"31","01","03","31|01|03","Employment and Labour","Administration","Corporate Services"]
[null,null,null,null,null,31,1,4,"31","01","04","31|01|04","Employment and Labour","Administration","Office of the Chief Financial Officer"]
[null,null,null,null,null,31,1,5,"31","01","05","31|01|05","Employment and Labour","Administration","Office Accommodation"]
[null,null,null,null,null,31,2,1,"31","02","01","31|02|01","Employment and Labour","Inspection and Enforcement Services","Management and Support Services: Inspection and Enforcement Services"]
[null,null,null,null,null,31,2,2,"31","02","02","31|02|02","Employment and Labour","Inspection and Enforcement Services","Occupational Health and Safety"]
[null,null,null,null,null,31,2,3,"31","02","03","31|02|03","Employment and Labour","Inspection and Enforcement Services","Registration: Inspection and Enforcement Services"]
[null,null,null,null,null,31,2,4,"31","02","04","31|02|04","Employment and Labour","Inspection and Enforcement Services","Compliance, Monitoring and Enforcement Services"]
[null,null,null,null,null,31,2,5,"31","02","05","31|02|05","Employment and Labour","Inspection and Enforcement Services","Training of Staff: Inspection and Enforcement Services"]
[null,null,null,null,null,31,2,6,"31","02","06","31|02|06","Employment and Labour","Inspection and Enforcement Services","Statutory and Advocacy Services"]
[null,null,null,null,null,31,3,1,"31","03","01","31|03|01","Employment and Labour","Public Employment Services","Management and Support Services: Public Employment Services"]
[null,null,null,null,null,31,3,2,"31","03","02","31|03|02","Employment and Labour","Public Employment Services","Employer Services"]
[null,null,null,null,null,31,3,3,"31","03","03","31|03|03","Employment and Labour","Public Employment Services","Work Seeker Services"]
[null,null,null,null,null,31,3,4,"31","03","04","31|03|04","Employment and Labour","Public Employment Services","Designated Groups Special Services"]
[null,null,null,null,null,31,3,5,"31","03","05","31|03|05","Employment and Labour","Public Employment Services","Supported Employment Enterprises"]
[null,null,null,null,null,31,3,6,"31","03","06","31|03|06","Employment and Labour","Public Employment Services","Productivity South Africa"]
[null,null,null,null,null,31,3,7,"31","03","07","31|03|07","Employment and Labour","Public Employment Services","Unemployment Insurance Fund"]
[null,null,null,null,null,31,3,8,"31","03","08","31|03|08","Employment and Labour","Public Employment Services","Compensation Fund"]
[null,null,null,null,null,31,3,9,"31","03","09","31|03|09","Employment and Labour","Public Employment Services","Training of Staff: Public Employment Services"]
[null,null,null,null,null,31,4,1,"31","04","01","31|04|01","Employment and Labour","Labour Policy and Industrial Relations","Management and Support Services: Labour Policy and Industrial Relations"]
[null,null,null,null,null,31,4,2,"31","04","02","31|04|02","Employment and Labour","Labour Policy and Industrial Relations","Strengthen Civil Society"]
[null,null,null,null,null,31,4,3,"31","04","03","31|04|03","Employment and Labour","Labour Policy and Industrial Relations","Collective Bargaining"]
[null,null,null,null,null,31,4,4,"31","04","04","31|04|04","Employment and Labour","Labour Policy and Industrial Relations","Employment Equity"]
[null,null,null,null,null,31,4,5,"31","04","05","31|04|05","Employment and Labour","Labour Policy and Industrial Relations","Employment Standards"]
[null,null,null,null,null,31,4,6,"31","04","06","31|04|06","Employment and Labour","Labour Policy and Industrial Relations","Commission for Conciliation, Mediation and Arbitration"]
[null,null,null,null,null,31,4,7,"31","04","07","31|04|07","Employment and Labour","Labour Policy and Industrial Relations","Research, Policy and Planning"]
[null,null,null,null,null,31,4,8,"31","04","08","31|04|08","Employment and Labour","Labour Policy and Industrial Relations","Labour Market Information and Statistics"]
[null,null,null,null,null,31,4,9,"31","04","09","31|04|09","Employment and Labour","Labour Policy and Industrial Relations","International Labour Matters"]
[null,null,null,null,null,31,4,10,"31","04","10","31|04|10","Employment and Labour","Labour Policy and Industrial Relations","National Economic Development and Labour Council"]
[null,null,null,null,null,32,1,1,"32","01","01","32|01|01","Environment, Forestry and Fisheries","Administration","Management"]
[null,null,null,null,null,32,1,2,"32","01","02","32|01|02","Environment, Forestry and Fisheries","Administration","Corporate Management Services"]
[null,null,null,null,null,32,1,4,"32","01","04","32|01|04","Environment, Forestry and Fisheries","Administration","Financial Management Services"]
[null,null,null,null,null,32,1,5,"32","01","05","32|01|05","Environment, Forestry and Fisheries","Administration","Office Accommodation"]
[null,null,null,null,null,32,2,1,"32","02","01","32|02|01","Environment, Forestry and Fisheries","Regulatory Compliance and Sector Monitoring","Regulatory Compliance and Sector Monitoring Management"]
[null,null,null,null,null,32,2,2,"32","02","02","32|02|02","Environment, Forestry and Fisheries","Regulatory Compliance and Sector Monitoring","Compliance"]
[null,null,null,null,null,32,2,3,"32","02","03","32|02|03","Environment, Forestry and Fisheries","Regulatory Compliance and Sector Monitoring","Integrated Environmental Authorisations"]
[null,null,null,null,null,32,2,4,"32","02","04","32|02|04","Environment, Forestry and Fisheries","Regulatory Compliance and Sector Monitoring","Enforcement"]
[null,null,null,null,null,32,2,5,"32","02","05","32|02|05","Environment, Forestry and Fisheries","Regulatory Compliance and Sector Monitoring","Litigation and Legal Support"]
[null,null,null,null,null,32,2,6,"32","02","06","32|02|06","Environment, Forestry and Fisheries","Regulatory Compliance and Sector Monitoring","Law Reform and Appeals"]
[null,null,null,null,null,32,3,1,"32","03","01","32|03|01","Environment, Forestry and Fisheries","Oceans and Coasts","Oceans and Coasts Management"]
[null,null,null,null,null,32,3,2,"32","03","02","32|03|02","Environment, Forestry and Fisheries","Oceans and Coasts","Integrated Coastal Management and Coastal Conservation"]
[null,null,null,null,null,32,3,3,"32","03","03","32|03|03","Environment, Forestry and Fisheries","Oceans and Coasts","Oceans and Coastal Research"]
[null,null,null,null,null,32,3,4,"32","03","04","32|03|04","Environment, Forestry and Fisheries","Oceans and Coasts","Oceans Economy and Project Management"]
[null,null,null,null,null,32,3,5,"32","03","05","32|03|05","Environment, Forestry and Fisheries","Oceans and Coasts","Specialist Monitoring Services"]
[null,null,null,null,null,32,4,1,"32","04","01","32|04|01","Environment, Forestry and Fisheries","Climate Change, Air Quality and Sustainable Development","Climate Change, Air Quality and Sustainable Development Management"]
[null,null,null,null,null,32,4,2,"32","04","02","32|04|02","Environment, Forestry and Fisheries","Climate Change, Air Quality and Sustainable Development","Climate Change Mitigation"]
[null,null,null,null,null,32,4,3,"32","04","03","32|04|03","Environment, Forestry and Fisheries","Climate Change, Air Quality and Sustainable Development","Climate Change Adaptation"]
[null,null,null,null,null,32,4,4,"32","04","04","32|04|04","Environment, Forestry and Fisheries","Climate Change, Air Quality and Sustainable Development","Air Quality Management"]
[null,null,null,null,null,32,4,5,"32","04","05","32|04|05","Environment, Forestry and Fisheries","Climate Change, Air Quality and Sustainable Development","South African Weather Service"]
[null,null,null,null,null,32,4,6,"32","04","06","32|04|06","Environment, Forestry and Fisheries","Climate Change, Air Quality and Sustainable Development","International Climate Change Relations and Reporting"]
[null,null,null,null,null,32,4,7,"32","04","07","32|04|07","Environment, Forestry and Fisheries","Climate Change, Air Quality and Sustainable Development","Climate Change Monitoring and Evaluation"]
[null,null,null,null,null,32,4,8,"32","04","08","32|04|08","Environment, Forestry and Fisheries","Climate Change, Air Quality and Sustainable Development","International Governance and Resource Mobilisation"]
[null,null,null,null,null,32,4,9,"32","04","09","32|04|09","Environment, Forestry and Fisheries","Climate Change, Air Quality and Sustainable Development","Knowledge and Information Management"]
[null,null,null,null,null,32,4,10,"32","04","10","32|04|10","Environment, Forestry and Fisheries","Climate Change, Air Quality and Sustainable Development","Environmental Sector Performance"]
[null,null,null,null,null,32,5,1,"32","05","01","32|05|01","Environment, Forestry and Fisheries","Biodiversity and Conservation","Biodiversity and Conservation Management"]
[null,null,null,null,null,32,5,2,"32","05","02","32|05|02","Environment, Forestry and Fisheries","Biodiversity and Conservation","Biodiversity Management and Permitting"]
[null,null,null,null,null,32,5,3,"32","05","03","32|05|03","Environment, Forestry and Fisheries","Biodiversity and Conservation","Protected Areas Systems Management"]
[null,null,null,null,null,32,5,4,"32","05","04","32|05|04","Environment, Forestry and Fisheries","Biodiversity and Conservation","iSimangaliso Wetland Park Authority"]
[null,null,null,null,null,32,5,5,"32","05","05","32|05|05","Environment, Forestry and Fisheries","Biodiversity and Conservation","South African National Parks"]
[null,null,null,null,null,32,5,6,"32","05","06","32|05|06","Environment, Forestry and Fisheries","Biodiversity and Conservation","South African National Biodiversity Institute"]
[null,null,null,null,null,32,5,7,"32","05","07","32|05|07","Environment, Forestry and Fisheries","Biodiversity and Conservation","Biodiversity Monitoring Specialist Services"]
[null,null,null,null,null,32,5,8,"32","05","08","32|05|08","Environment, Forestry and Fisheries","Biodiversity and Conservation","Biodiversity Economy and Sustainable Use"]
[null,null,null,null,null,32,6,1,"32","06","01","32|06|01","Environment, Forestry and Fisheries","Environmental Programmes","Environmental Protection and Infrastructure Programme"]
[null,null,null,null,null,32,6,2,"32","06","02","32|06|02","Environment, Forestry and Fisheries","Environmental Programmes","Natural Resource Management"]
[null,null,null,null,null,32,6,3,"32","06","03","32|06|03","Environment, Forestry and Fisheries","Environmental Programmes","Green Fund"]
[null,null,null,null,null,32,6,4,"32","06","04","32|06|04","Environment, Forestry and Fisheries","Environmental Programmes","Environmental Programmes Management"]
[null,null,null,null,null,32,6,5,"32","06","05","32|06|05","Environment, Forestry and Fisheries","Environmental Programmes","Information Management and Sector Coordination"]
[null,null,null,null,null,32,7,1,"32","07","01","32|07|01","Environment, Forestry and Fisheries","Chemicals and Waste Management","Chemicals and Waste Management"]
[null,null,null,null,null,32,7,2,"32","07","02","32|07|02","Environment, Forestry and Fisheries","Chemicals and Waste Management","Hazardous Waste Management and Licensing"]
[null,null,null,null,null,32,7,3,"32","07","03","32|07|03","Environment, Forestry and Fisheries","Chemicals and Waste Management","Integrated Waste Management and Strategic Support"]
[null,null,null,null,null,32,7,4,"32","07","04","32|07|04","Environment, Forestry and Fisheries","Chemicals and Waste Management","Chemicals and Waste Policy, Evaluation and Monitoring"]
[null,null,null,null,null,32,7,5,"32","07","05","32|07|05","Environment, Forestry and Fisheries","Chemicals and Waste Management","Chemicals Management"]
[null,null,null,null,null,32,7,6,"32","07","06","32|07|06","Environment, Forestry and Fisheries","Chemicals and Waste Management","Waste Bureau"]
[null,null,null,null,null,32,8,1,"32","08","01","32|08|01","Environment, Forestry and Fisheries","Forestry Management","Forestry Management"]
[null,null,null,null,null,32,8,2,"32","08","02","32|08|02","Environment, Forestry and Fisheries","Forestry Management","Forestry Operations"]
[null,null,null,null,null,32,8,3,"32","08","03","32|08|03","Environment, Forestry and Fisheries","Forestry Management","Forestry Development and Regulation"]
[null,null,null,null,null,32,9,1,"32","09","01","32|09|01","Environment, Forestry and Fisheries","Fisheries Management","Fisheries Management"]
[null,null,null,null,null,32,9,2,"32","09","02","32|09|02","Environment, Forestry and Fisheries","Fisheries Management","Aquaculture and Economic Development"]
[null,null,null,null,null,32,9,3,"32","09","03","32|09|03","Environment, Forestry and Fisheries","Fisheries Management","Monitoring, Control and Surveillance"]
[null,null,null,null,null,32,9,4,"32","09","04","32|09|04","Environment, Forestry and Fisheries","Fisheries Management","Marine Resources Management"]
[null,null,null,null,null,32,9,5,"32","09","05","32|09|05","Environment, Forestry and Fisheries","Fisheries Management","Fisheries Research and Development"]
[null,null,null,null,null,32,9,6,"32","09","06","32|09|06","Environment, Forestry and Fisheries","Fisheries Management","Marine Living Resources Fund"]
[null,null,null,null,null,33,1,1,"33","01","01","33|01|01","Human Settlements","Administration","Ministry"]
[null,null,null,null,null,33,1,2,"33","01","02","33|01|02","Human Settlements","Administration","Departmental Management"]
[null,null,null,null,null,33,1,3,"33","01","03","33|01|03","Human Settlements","Administration","Corporate Services"]
[null,null,null,null,null,33,1,4,"33","01","04","33|01|04","Human Settlements","Administration","Property Management"]
[null,null,null,null,null,33,1,5,"33","01","05","33|01|05","Human Settlements","Administration","Financial Management"]
[null,null,null,null,null,33,2,1,"33","02","01","33|02|01","Human Settlements","Integrated Human Settlements Planning and Development","Management for Integrated Human Settlements Planning and Development"]
[null,null,null,null,null,33,2,2,"33","02","02","33|02|02","Human Settlements","Integrated Human Settlements Planning and Development","Macro Sector Planning"]
[null,null,null,null,null,33,2,3,"33","02","03","33|02|03","Human Settlements","Integrated Human Settlements Planning and Development","Macro Policy and Research"]
[null,null,null,null,null,33,2,4,"33","02","04","33|02|04","Human Settlements","Integrated Human Settlements Planning and Development","Monitoring and Evaluation"]
[null,null,null,null,null,33,2,5,"33","02","05","33|02|05","Human Settlements","Integrated Human Settlements Planning and Development","Public Entity Oversight"]
[null,null,null,null,null,33,2,6,"33","02","06","33|02|06","Human Settlements","Integrated Human Settlements Planning and Development","Grant Management"]
[null,null,null,null,null,33,2,7,"33","02","07","33|02|07","Human Settlements","Integrated Human Settlements Planning and Development","Capacity Building and Sector Support"]
[null,null,null,null,null,33,3,1,"33","03","01","33|03|01","Human Settlements","Informal Settlements","Management for Informal Settlements"]
[null,null,null,null,null,33,3,4,"33","03","04","33|03|04","Human Settlements","Informal Settlements","Grant Management"]
[null,null,null,null,null,33,3,5,"33","03","05","33|03|05","Human Settlements","Informal Settlements","Capacity Building and Sector Support"]
[null,null,null,null,null,33,4,1,"33","04","01","33|04|01","Human Settlements","Rental and Social Housing","Management for Rental and Social Housing"]
[null,null,null,null,null,33,4,4,"33","04","04","33|04|04","Human Settlements","Rental and Social Housing","Public Entity Oversight"]
[null,null,null,null,null,33,4,5,"33","04","05","33|04|05","Human Settlements","Rental and Social Housing","Capacity Building and Sector Support"]
[null,null,null,null,null,33,5,1,"33","05","01","33|05|01","Human Settlements","Affordable Housing","Management for Affordable Housing"]
[null,null,null,null,null,33,5,4,"33","05","04","33|05|04","Human Settlements","Affordable Housing","Public Entity Oversight"]
[null,null,null,null,null,33,5,6,"33","05","06","33|05|06","Human Settlements","Affordable Housing","Capacity Building and Sector Support"]
[null,null,null,null,null,34,1,1,"34","01","01","34|01|01","Mineral Resources and Energy","Administration","Ministry"]
[null,null,null,null,null,34,1,2,"34","01","02","34|01|02","Mineral Resources and Energy","Administration","Departmental Management"]
[null,null,null,null,null,34,1,3,"34","01","03","34|01|03","Mineral Resources and Energy","Administration","Audit Services"]
[null,null,null,null,null,34,1,4,"34","01","04","34|01|04","Mineral Resources and Energy","Administration","Financial Administration"]
[null,null,null,null,null,34,1,5,"34","01","05","34|01|05","Mineral Resources and Energy","Administration","Corporate Services"]
[null,null,null,null,null,34,1,6,"34","01","06","34|01|06","Mineral Resources and Energy","Administration","Office Accommodation"]
[null,null,null,null,null,34,2,1,"34","02","01","34|02|01","Mineral Resources and Energy","Minerals and Petroleum Regulation","Minerals and Petroleum Management "]
[null,null,null,null,null,34,2,2,"34","02","02","34|02|02","Mineral Resources and Energy","Minerals and Petroleum Regulation","Mineral Regulation and Administration"]
[null,null,null,null,null,34,2,3,"34","02","03","34|02|03","Mineral Resources and Energy","Minerals and Petroleum Regulation","Environmental Enforcement and Compliance"]
[null,null,null,null,null,34,2,4,"34","02","04","34|02|04","Mineral Resources and Energy","Minerals and Petroleum Regulation","Petroleum Compliance Monitoring, Enforcement and Fuel Pricing"]
[null,null,null,null,null,34,2,5,"34","02","05","34|02|05","Mineral Resources and Energy","Minerals and Petroleum Regulation","Petroleum Licensing and Fuel Supply"]
[null,null,null,null,null,34,3,1,"34","03","01","34|03|01","Mineral Resources and Energy","Mining, Minerals and Energy Policy Development","Mining, Minerals and Energy Policy Development Management"]
[null,null,null,null,null,34,3,2,"34","03","02","34|03|02","Mineral Resources and Energy","Mining, Minerals and Energy Policy Development","Minerals and Petroleum Policy"]
[null,null,null,null,null,34,3,3,"34","03","03","34|03|03","Mineral Resources and Energy","Mining, Minerals and Energy Policy Development","Nuclear, Electricity and Gas Policy"]
[null,null,null,null,null,34,3,4,"34","03","04","34|03|04","Mineral Resources and Energy","Mining, Minerals and Energy Policy Development","Economic Analysis and Statistics"]
[null,null,null,null,null,34,3,5,"34","03","05","34|03|05","Mineral Resources and Energy","Mining, Minerals and Energy Policy Development","Economic Growth, Promotion and Global Relations"]
[null,null,null,null,null,34,3,6,"34","03","06","34|03|06","Mineral Resources and Energy","Mining, Minerals and Energy Policy Development","Minerals and Energy Planning"]
[null,null,null,null,null,34,4,1,"34","04","01","34|04|01","Mineral Resources and Energy","Mine Health and Safety Inspectorate","Mine Health and Safety Management"]
[null,null,null,null,null,34,4,2,"34","04","02","34|04|02","Mineral Resources and Energy","Mine Health and Safety Inspectorate","Mine Health and Safety Regions"]
[null,null,null,null,null,34,4,3,"34","04","03","34|04|03","Mineral Resources and Energy","Mine Health and Safety Inspectorate","Occupational Health"]
[null,null,null,null,null,34,5,1,"34","05","01","34|05|01","Mineral Resources and Energy","Mineral and Energy Resources Programmes and Projects","Programmes and Projects Management     "]
[null,null,null,null,null,34,5,2,"34","05","02","34|05|02","Mineral Resources and Energy","Mineral and Energy Resources Programmes and Projects","Integrated National Electrification Programme"]
[null,null,null,null,null,34,5,3,"34","05","03","34|05|03","Mineral Resources and Energy","Mineral and Energy Resources Programmes and Projects","Programmes and Projects Management Office"]
[null,null,null,null,null,34,5,4,"34","05","04","34|05|04","Mineral Resources and Energy","Mineral and Energy Resources Programmes and Projects","Regional Programmes and Projects Management Office"]
[null,null,null,null,null,34,5,5,"34","05","05","34|05|05","Mineral Resources and Energy","Mineral and Energy Resources Programmes and Projects","Electricity Infrastructure and Industry Transformation"]
[null,null,null,null,null,34,5,6,"34","05","06","34|05|06","Mineral Resources and Energy","Mineral and Energy Resources Programmes and Projects","Energy Efficiency Projects"]
[null,null,null,null,null,34,5,7,"34","05","07","34|05|07","Mineral Resources and Energy","Mineral and Energy Resources Programmes and Projects","Renewable Energy Projects"]
[null,null,null,null,null,34,5,8,"34","05","08","34|05|08","Mineral Resources and Energy","Mineral and Energy Resources Programmes and Projects","Environmental Management Projects"]
[null,null,null,null,null,34,6,1,"34","06","01","34|06|01","Mineral Resources and Energy","Nuclear Energy Regulation and Management","Nuclear Energy Management"]
[null,null,null,null,null,34,6,2,"34","06","02","34|06|02","Mineral Resources and Energy","Nuclear Energy Regulation and Management","Nuclear Safety and Technology"]
[null,null,null,null,null,34,6,3,"34","06","03","34|06|03","Mineral Resources and Energy","Nuclear Energy Regulation and Management","Nuclear Non-Proliferation and Radiation Security"]
[null,null,null,null,null,35,1,1,"35","01","01","35|01|01","Science and Innovation","Administration","Ministry"]
[null,null,null,null,null,35,1,2,"35","01","02","35|01|02","Science and Innovation","Administration","Institutional Planning and Support"]
[null,null,null,null,null,35,1,3,"35","01","03","35|01|03","Science and Innovation","Administration","Corporate Services"]
[null,null,null,null,null,35,1,4,"35","01","04","35|01|04","Science and Innovation","Administration","Office Accommodation"]
[null,null,null,null,null,35,2,1,"35","02","01","35|02|01","Science and Innovation","Technology Innovation","Space Science"]
[null,null,null,null,null,35,2,2,"35","02","02","35|02|02","Science and Innovation","Technology Innovation","Hydrogen and Energy"]
[null,null,null,null,null,35,2,3,"35","02","03","35|02|03","Science and Innovation","Technology Innovation","Bio-innovation"]
[null,null,null,null,null,35,2,4,"35","02","04","35|02|04","Science and Innovation","Technology Innovation","Innovation Priorities and Instruments"]
[null,null,null,null,null,35,2,5,"35","02","05","35|02|05","Science and Innovation","Technology Innovation","National Intellectual Property Management Office"]
[null,null,null,null,null,35,2,6,"35","02","06","35|02|06","Science and Innovation","Technology Innovation","Office of the Deputy Director-General: Technology Innovation"]
[null,null,null,null,null,35,3,1,"35","03","01","35|03|01","Science and Innovation","International Cooperation and Resources","Multilateral Cooperation and Africa"]
[null,null,null,null,null,35,3,2,"35","03","02","35|03|02","Science and Innovation","International Cooperation and Resources","International Resources"]
[null,null,null,null,null,35,3,3,"35","03","03","35|03|03","Science and Innovation","International Cooperation and Resources","Overseas Bilateral Cooperation"]
[null,null,null,null,null,35,3,4,"35","03","04","35|03|04","Science and Innovation","International Cooperation and Resources","Office of the Deputy Director-General: International Cooperation and Resources"]
[null,null,null,null,null,35,4,1,"35","04","01","35|04|01","Science and Innovation","Research, Development and Support","Human Capital and Science Promotions"]
[null,null,null,null,null,35,4,2,"35","04","02","35|04|02","Science and Innovation","Research, Development and Support","Science Missions"]
[null,null,null,null,null,35,4,3,"35","04","03","35|04|03","Science and Innovation","Research, Development and Support","Basic Science and Infrastructure"]
[null,null,null,null,null,35,4,4,"35","04","04","35|04|04","Science and Innovation","Research, Development and Support","Astronomy"]
[null,null,null,null,null,35,4,5,"35","04","05","35|04|05","Science and Innovation","Research, Development and Support","Office of the Deputy Director-General: Research, Development and Support"]
[null,null,null,null,null,35,5,1,"35","05","01","35|05|01","Science and Innovation","Socioeconomic Innovation Partnerships","Sector Innovation and Green Economy"]
[null,null,null,null,null,35,5,2,"35","05","02","35|05|02","Science and Innovation","Socioeconomic Innovation Partnerships","Innovation for Inclusive Development"]
[null,null,null,null,null,35,5,3,"35","05","03","35|05|03","Science and Innovation","Socioeconomic Innovation Partnerships","Science and Technology Investment"]
[null,null,null,null,null,35,5,4,"35","05","04","35|05|04","Science and Innovation","Socioeconomic Innovation Partnerships","Technology Localisation, Beneficiation and Advanced Manufacturing"]
[null,null,null,null,null,35,5,5,"35","05","05","35|05|05","Science and Innovation","Socioeconomic Innovation Partnerships","Office of the DDG: Socio-Economic Innovation Partnership"]
[null,null,null,null,null,36,1,1,"36","01","01","36|01|01","Small Business Development","Administration","Ministry"]
[null,null,null,null,null,36,1,2,"36","01","02","36|01|02","Small Business Development","Administration","Departmental Management"]
[null,null,null,null,null,36,1,3,"36","01","03","36|01|03","Small Business Development","Administration","Corporate Services"]
[null,null,null,null,null,36,1,4,"36","01","04","36|01|04","Small Business Development","Administration","Financial Management"]
[null,null,null,null,null,36,1,5,"36","01","05","36|01|05","Small Business Development","Administration","Communications"]
[null,null,null,null,null,36,2,1,"36","02","01","36|02|01","Small Business Development","Sector Policy and Research","Research"]
[null,null,null,null,null,36,2,2,"36","02","02","36|02|02","Small Business Development","Sector Policy and Research","Policy and Legislation"]
[null,null,null,null,null,36,2,3,"36","02","03","36|02|03","Small Business Development","Sector Policy and Research","International Relations"]
[null,null,null,null,null,36,2,4,"36","02","04","36|02|04","Small Business Development","Sector Policy and Research","Monitoring and Evaluation"]
[null,null,null,null,null,36,3,1,"36","03","01","36|03|01","Small Business Development","Integrated Cooperative Development","Cooperatives Development"]
[null,null,null,null,null,36,3,2,"36","03","02","36|03|02","Small Business Development","Integrated Cooperative Development","Cooperatives Programme Design and Support"]
[null,null,null,null,null,36,3,3,"36","03","03","36|03|03","Small Business Development","Integrated Cooperative Development","Supplier Development and Market Access Support"]
[null,null,null,null,null,36,4,1,"36","04","01","36|04|01","Small Business Development","Enterprise Development and Entrepreneurship","Enterprise and Supplier Development"]
[null,null,null,null,null,36,4,2,"36","04","02","36|04|02","Small Business Development","Enterprise Development and Entrepreneurship","SMMEs Programme Design and Support"]
[null,null,null,null,null,36,4,3,"36","04","03","36|04|03","Small Business Development","Enterprise Development and Entrepreneurship","SMME Competitiveness"]
[null,null,null,null,null,36,4,4,"36","04","04","36|04|04","Small Business Development","Enterprise Development and Entrepreneurship","Entrepreneurship"]
[null,null,null,null,null,37,1,1,"37","01","01","37|01|01","Sports, Arts and Culture","Administration","Ministry"]
[null,null,null,null,null,37,1,2,"37","01","02","37|01|02","Sports, Arts and Culture","Administration","Management"]
[null,null,null,null,null,37,1,3,"37","01","03","37|01|03","Sports, Arts and Culture","Administration","Strategic Management and Planning"]
[null,null,null,null,null,37,1,4,"37","01","04","37|01|04","Sports, Arts and Culture","Administration","Corporate Services"]
[null,null,null,null,null,37,1,5,"37","01","05","37|01|05","Sports, Arts and Culture","Administration","Office of the Chief Financial Officer"]
[null,null,null,null,null,37,1,6,"37","01","06","37|01|06","Sports, Arts and Culture","Administration","Office Accommodation"]
[null,null,null,null,null,37,2,1,"37","02","01","37|02|01","Sports, Arts and Culture","Recreation Development and Sport Promotion","Winning Nation"]
[null,null,null,null,null,37,2,2,"37","02","02","37|02|02","Sports, Arts and Culture","Recreation Development and Sport Promotion","Active Nation"]
[null,null,null,null,null,37,2,3,"37","02","03","37|02|03","Sports, Arts and Culture","Recreation Development and Sport Promotion","Sport Support"]
[null,null,null,null,null,37,2,4,"37","02","04","37|02|04","Sports, Arts and Culture","Recreation Development and Sport Promotion","Infrastructure Support"]
[null,null,null,null,null,37,3,1,"37","03","01","37|03|01","Sports, Arts and Culture","Arts and Culture Promotion and Development","National Language Services"]
[null,null,null,null,null,37,3,2,"37","03","02","37|03|02","Sports, Arts and Culture","Arts and Culture Promotion and Development","Pan South African Language Board"]
[null,null,null,null,null,37,3,3,"37","03","03","37|03|03","Sports, Arts and Culture","Arts and Culture Promotion and Development","Cultural and Creative Industries Development"]
[null,null,null,null,null,37,3,4,"37","03","04","37|03|04","Sports, Arts and Culture","Arts and Culture Promotion and Development","International Cooperation "]
[null,null,null,null,null,37,3,5,"37","03","05","37|03|05","Sports, Arts and Culture","Arts and Culture Promotion and Development","Social Cohesion and Nation Building"]
[null,null,null,null,null,37,3,6,"37","03","06","37|03|06","Sports, Arts and Culture","Arts and Culture Promotion and Development","Mzansi Golden Economy"]
[null,null,null,null,null,37,3,7,"37","03","07","37|03|07","Sports, Arts and Culture","Arts and Culture Promotion and Development","Performing Arts Institutions"]
[null,null,null,null,null,37,3,8,"37","03","08","37|03|08","Sports, Arts and Culture","Arts and Culture Promotion and Development","National Film and Video Foundation"]
[null,null,null,null,null,37,3,9,"37","03","09","37|03|09","Sports, Arts and Culture","Arts and Culture Promotion and Development","National Arts Council"]
[null,null,null,null,null,37,4,1,"37","04","01","37|04|01","Sports, Arts and Culture","Heritage Promotion and Preservation","Heritage Promotion "]
[null,null,null,null,null,37,4,2,"37","04","02","37|04|02","Sports, Arts and Culture","Heritage Promotion and Preservation","National Archive Services"]
[null,null,null,null,null,37,4,3,"37","04","03","37|04|03","Sports, Arts and Culture","Heritage Promotion and Preservation","Heritage Institutions"]
[null,null,null,null,null,37,4,4,"37","04","04","37|04|04","Sports, Arts and Culture","Heritage Promotion and Preservation","National Library Services"]
[null,null,null,null,null,37,4,5,"37","04","05","37|04|05","Sports, Arts and Culture","Heritage Promotion and Preservation","Public Library Services"]
[null,null,null,null,null,37,4,6,"37","04","06","37|04|06","Sports, Arts and Culture","Heritage Promotion and Preservation","South African Heritage Resource Agency"]
[null,null,null,null,null,37,4,7,"37","04","07","37|04|07","Sports, Arts and Culture","Heritage Promotion and Preservation","South African Geographical Names Council"]
[null,null,null,null,null,37,4,8,"37","04","08","37|04|08","Sports, Arts and Culture","Heritage Promotion and Preservation","National Heritage Council "]
[null,null,null,null,null,38,1,1,"38","01","01","38|01|01","Tourism","Administration","Ministry"]
[null,null,null,null,null,38,1,2,"38","01","02","38|01|02","Tourism","Administration","Management"]
[null,null,null,null,null,38,1,3,"38","01","03","38|01|03","Tourism","Administration","Corporate Management"]
[null,null,null,null,null,38,1,4,"38","01","04","38|01|04","Tourism","Administration","Financial Management"]
[null,null,null,null,null,38,1,5,"38","01","05","38|01|05","Tourism","Administration","Office Accommodation"]
[null,null,null,null,null,38,2,1,"38","02","01","38|02|01","Tourism","Tourism Research, Policy and International Relations","Tourism Research, Policy and International Relations Management"]
[null,null,null,null,null,38,2,2,"38","02","02","38|02|02","Tourism","Tourism Research, Policy and International Relations","Research and Knowledge Management"]
[null,null,null,null,null,38,2,3,"38","02","03","38|02|03","Tourism","Tourism Research, Policy and International Relations","Policy Planning and Strategy"]
[null,null,null,null,null,38,2,4,"38","02","04","38|02|04","Tourism","Tourism Research, Policy and International Relations","South African Tourism"]
[null,null,null,null,null,38,2,5,"38","02","05","38|02|05","Tourism","Tourism Research, Policy and International Relations","International Relations and Cooperation"]
[null,null,null,null,null,38,3,1,"38","03","01","38|03|01","Tourism","Destination Development","Destination Development Management"]
[null,null,null,null,null,38,3,2,"38","03","02","38|03|02","Tourism","Destination Development","Tourism Enhancement"]
[null,null,null,null,null,38,3,3,"38","03","03","38|03|03","Tourism","Destination Development","Destination Planning and Investment Coordination"]
[null,null,null,null,null,38,3,4,"38","03","04","38|03|04","Tourism","Destination Development","Working for Tourism"]
[null,null,null,null,null,38,4,1,"38","04","01","38|04|01","Tourism","Tourism Sector Support Services","Tourism Sector Support Services Management"]
[null,null,null,null,null,38,4,2,"38","04","02","38|04|02","Tourism","Tourism Sector Support Services","Tourism Human Resource Development"]
[null,null,null,null,null,38,4,3,"38","04","03","38|04|03","Tourism","Tourism Sector Support Services","Enterprise Development and Transformation"]
[null,null,null,null,null,38,4,4,"38","04","04","38|04|04","Tourism","Tourism Sector Support Services","Tourism Visitor Services"]
[null,null,null,null,null,38,4,5,"38","04","05","38|04|05","Tourism","Tourism Sector Support Services","Tourism Incentive Programme"]
[null,null,null,null,null,39,1,1,"39","01","01","39|01|01","Trade, Industry and Competition","Administration","Ministry"]
[null,null,null,null,null,39,1,2,"39","01","02","39|01|02","Trade, Industry and Competition","Administration","Office of the Director-General"]
[null,null,null,null,null,39,1,3,"39","01","03","39|01|03","Trade, Industry and Competition","Administration","Corporate Management Services"]
[null,null,null,null,null,39,1,4,"39","01","04","39|01|04","Trade, Industry and Competition","Administration","Office Accommodation"]
[null,null,null,null,null,39,1,5,"39","01","05","39|01|05","Trade, Industry and Competition","Administration","Financial Management Services"]
[null,null,null,null,null,39,1,6,"39","01","06","39|01|06","Trade, Industry and Competition","Administration","Marketing Communication and Media Relations"]
[null,null,null,null,null,39,2,1,"39","02","01","39|02|01","Trade, Industry and Competition","Trade Policy, Negotiations and Cooperation","International Trade Development"]
[null,null,null,null,null,39,2,2,"39","02","02","39|02|02","Trade, Industry and Competition","Trade Policy, Negotiations and Cooperation","African Multilateral Economic Development"]
[null,null,null,null,null,39,3,1,"39","03","01","39|03|01","Trade, Industry and Competition","Spatial Industrial Development and Economic Transformation","Enterprise Competitiveness"]
[null,null,null,null,null,39,3,2,"39","03","02","39|03|02","Trade, Industry and Competition","Spatial Industrial Development and Economic Transformation","Equity and Empowerment"]
[null,null,null,null,null,39,3,3,"39","03","03","39|03|03","Trade, Industry and Competition","Spatial Industrial Development and Economic Transformation","Regional Industrial Development"]
[null,null,null,null,null,39,4,1,"39","04","01","39|04|01","Trade, Industry and Competition","Industrial Competitiveness and Growth","Industrial Competitiveness"]
[null,null,null,null,null,39,4,2,"39","04","02","39|04|02","Trade, Industry and Competition","Industrial Competitiveness and Growth","Customised Sector Programmes"]
[null,null,null,null,null,39,5,1,"39","05","01","39|05|01","Trade, Industry and Competition","Consumer and Corporate Regulation","Policy and Legislative Development"]
[null,null,null,null,null,39,5,2,"39","05","02","39|05|02","Trade, Industry and Competition","Consumer and Corporate Regulation","Enforcement and Compliance"]
[null,null,null,null,null,39,5,3,"39","05","03","39|05|03","Trade, Industry and Competition","Consumer and Corporate Regulation","Regulatory Services"]
[null,null,null,null,null,39,6,1,"39","06","01","39|06|01","Trade, Industry and Competition","Industrial Financing","Broadening Participation and Industrial Incentives"]
[null,null,null,null,null,39,6,2,"39","06","02","39|06|02","Trade, Industry and Competition","Industrial Financing","Manufacturing Incentives"]
[null,null,null,null,null,39,6,3,"39","06","03","39|06|03","Trade, Industry and Competition","Industrial Financing","Services Investment Incentives"]
[null,null,null,null,null,39,6,4,"39","06","04","39|06|04","Trade, Industry and Competition","Industrial Financing","Infrastructure Investment Support"]
[null,null,null,null,null,39,6,5,"39","06","05","39|06|05","Trade, Industry and Competition","Industrial Financing","Product and Systems Development"]
[null,null,null,null,null,39,6,6,"39","06","06","39|06|06","Trade, Industry and Competition","Industrial Financing","Strategic Partnership and Customer Care"]
[null,null,null,null,null,39,7,1,"39","07","01","39|07|01","Trade, Industry and Competition","Export Development, Promotion and Outward Investments","Trade Invest Africa"]
[null,null,null,null,null,39,7,2,"39","07","02","39|07|02","Trade, Industry and Competition","Export Development, Promotion and Outward Investments","Export Promotion and Marketing"]
[null,null,null,null,null,39,7,3,"39","07","03","39|07|03","Trade, Industry and Competition","Export Development, Promotion and Outward Investments","Trade and Investment Foreign Services Management Unit"]
[null,null,null,null,null,39,7,4,"39","07","04","39|07|04","Trade, Industry and Competition","Export Development, Promotion and Outward Investments","Export Development and Support"]
[null,null,null,null,null,39,8,1,"39","08","01","39|08|01","Trade, Industry and Competition","Inward Investment Attraction, Facilitation and Aftercare","Investment Promotion"]
[null,null,null,null,null,39,8,2,"39","08","02","39|08|02","Trade, Industry and Competition","Inward Investment Attraction, Facilitation and Aftercare","Investment and Interdepartmental Clearing House"]
[null,null,null,null,null,39,8,3,"39","08","03","39|08|03","Trade, Industry and Competition","Inward Investment Attraction, Facilitation and Aftercare","Investor Support and Aftercare"]
[null,null,null,null,null,39,9,1,"39","09","01","39|09|01","Trade, Industry and Competition","Competition Policy and Economic Planning","Economic Planning"]
[null,null,null,null,null,39,9,2,"39","09","02","39|09|02","Trade, Industry and Competition","Competition Policy and Economic Planning","Spatial economic Development Action Plan"]
[null,null,null,null,null,39,9,2,"39","09","02","39|09|02","Trade, Industry and Competition","Competition Policy and Economic Planning","Spatial Economic Development Action Plan"]
[null,null,null,null,null,39,9,3,"39","09","03","39|09|03","Trade, Industry and Competition","Competition Policy and Economic Planning","Investment and Development"]
[null,null,null,null,null,39,9,4,"39","09","04","39|09|04","Trade, Industry and Competition","Competition Policy and Economic Planning","Provincial Economic Coordination"]
[null,null,null,null,null,39,9,5,"39","09","05","39|09|05","Trade, Industry and Competition","Competition Policy and Economic Planning","Competition Oversight"]
[null,null,null,null,null,39,9,6,"39","09","06","39|09|06","Trade, Industry and Competition","Competition Policy and Economic Planning","Economic Regulatory Bodies"]
[null,null,null,null,null,39,9,7,"39","09","07","39|09|07","Trade, Industry and Competition","Competition Policy and Economic Planning","Development Finance Institutions"]
[null,null,null,null,null,39,9,8,"39","09","08","39|09|08","Trade, Industry and Competition","Competition Policy and Economic Planning","Sector and Workplace Dialogue and Capacity Building"]
[null,null,null,null,null,39,9,9,"39","09","09","39|09|09","Trade, Industry and Competition","Competition Policy and Economic Planning","Market Inquiries, Mergers and Acquisitions, and Abuse of Dominance"]
[null,null,null,null,null,39,10,1,"39","10","01","39|10|01","Trade, Industry and Competition","Economic Research and Coordination","Economic Research and Policy Coordination"]
[null,null,null,null,null,39,10,2,"39","10","02","39|10|02","Trade, Industry and Competition","Economic Research and Coordination","Macroeconomic Policy"]
[null,null,null,null,null,39,10,3,"39","10","03","39|10|03","Trade, Industry and Competition","Economic Research and Coordination","Microeconomic Policy"]
[null,null,null,null,null,39,10,4,"39","10","04","39|10|04","Trade, Industry and Competition","Economic Research and Coordination","Growth Path and Creation of Decent Work"]
[null,null,null,null,null,39,10,5,"39","10","05","39|10|05","Trade, Industry and Competition","Economic Research and Coordination","Productivity, Entrepreneurship and Innovation"]
[null,null,null,null,null,40,1,1,"40","01","01","40|01|01","Transport","Administration","Ministry"]
[null,null,null,null,null,40,1,2,"40","01","02","40|01|02","Transport","Administration","Management"]
[null,null,null,null,null,40,1,3,"40","01","03","40|01|03","Transport","Administration","Corporate Services"]
[null,null,null,null,null,40,1,4,"40","01","04","40|01|04","Transport","Administration","Communications"]
[null,null,null,null,null,40,1,5,"40","01","05","40|01|05","Transport","Administration","Office Accommodation"]
[null,null,null,null,null,40,2,1,"40","02","01","40|02|01","Transport","Integrated Transport Planning","Macro Sector Planning"]
[null,null,null,null,null,40,2,2,"40","02","02","40|02|02","Transport","Integrated Transport Planning","Freight Logistics"]
[null,null,null,null,null,40,2,3,"40","02","03","40|02|03","Transport","Integrated Transport Planning","Modelling and Economic Analysis"]
[null,null,null,null,null,40,2,4,"40","02","04","40|02|04","Transport","Integrated Transport Planning","Regional Integration"]
[null,null,null,null,null,40,2,5,"40","02","05","40|02|05","Transport","Integrated Transport Planning","Research and Innovation"]
[null,null,null,null,null,40,2,6,"40","02","06","40|02|06","Transport","Integrated Transport Planning","Integrated Transport Planning Administration Support"]
[null,null,null,null,null,40,3,1,"40","03","01","40|03|01","Transport","Rail Transport","Rail Regulation"]
[null,null,null,null,null,40,3,2,"40","03","02","40|03|02","Transport","Rail Transport","Rail Infrastructure and Industry Development"]
[null,null,null,null,null,40,3,3,"40","03","03","40|03|03","Transport","Rail Transport","Rail Operations"]
[null,null,null,null,null,40,3,4,"40","03","04","40|03|04","Transport","Rail Transport","Rail Oversight"]
[null,null,null,null,null,40,3,5,"40","03","05","40|03|05","Transport","Rail Transport","Rail Administration Support"]
[null,null,null,null,null,40,4,1,"40","04","01","40|04|01","Transport","Road Transport","Road Regulation"]
[null,null,null,null,null,40,4,2,"40","04","02","40|04|02","Transport","Road Transport","Road Infrastructure and Industry Development"]
[null,null,null,null,null,40,4,3,"40","04","03","40|04|03","Transport","Road Transport","Road Oversight"]
[null,null,null,null,null,40,4,4,"40","04","04","40|04|04","Transport","Road Transport","Road Administration Support"]
[null,null,null,null,null,40,4,5,"40","04","05","40|04|05","Transport","Road Transport","Road Engineering Standards"]
[null,null,null,null,null,40,5,1,"40","05","01","40|05|01","Transport","Civil Aviation","Aviation Policy and Regulations"]
[null,null,null,null,null,40,5,2,"40","05","02","40|05|02","Transport","Civil Aviation","Aviation Economic Analysis and Industry Development"]
[null,null,null,null,null,40,5,3,"40","05","03","40|05|03","Transport","Civil Aviation","Aviation Safety, Security, Environment and Search and Rescue"]
[null,null,null,null,null,40,5,4,"40","05","04","40|05|04","Transport","Civil Aviation","Aviation Oversight"]
[null,null,null,null,null,40,5,5,"40","05","05","40|05|05","Transport","Civil Aviation","Aviation Administration Support"]
[null,null,null,null,null,40,6,1,"40","06","01","40|06|01","Transport","Maritime Transport","Maritime Policy Development"]
[null,null,null,null,null,40,6,2,"40","06","02","40|06|02","Transport","Maritime Transport","Maritime Infrastructure and Industry Development"]
[null,null,null,null,null,40,6,3,"40","06","03","40|06|03","Transport","Maritime Transport","Implementation, monitoring and evaluations"]
[null,null,null,null,null,40,6,3,"40","06","03","40|06|03","Transport","Maritime Transport","Implementation, Monitoring and Evaluations"]
[null,null,null,null,null,40,6,4,"40","06","04","40|06|04","Transport","Maritime Transport","Maritime Oversight"]
[null,null,null,null,null,40,6,5,"40","06","05","40|06|05","Transport","Maritime Transport","Maritime Administration Support"]
[null,null,null,null,null,40,7,1,"40","07","01","40|07|01","Transport","Public Transport","Public Transport Regulation"]
[null,null,null,null,null,40,7,2,"40","07","02","40|07|02","Transport","Public Transport","Rural and Scholar Transport"]
[null,null,null,null,null,40,7,3,"40","07","03","40|07|03","Transport","Public Transport","Public Transport Industry Development"]
[null,null,null,null,null,40,7,4,"40","07","04","40|07|04","Transport","Public Transport","Public transport oversight"]
[null,null,null,null,null,40,7,4,"40","07","04","40|07|04","Transport","Public Transport","Public Transport Oversight"]
[null,null,null,null,null,40,7,5,"40","07","05","40|07|05","Transport","Public Transport","Public Transport Administration Support"]
[null,null,null,null,null,40,7,6,"40","07","06","40|07|06","Transport","Public Transport","Public Transport Network Development"]
[null,null,null,null,null,40,16,1,"40","16","01","40|16|01","Transport","Direct charge against the National Revenue Fund","International Oil Pollution Compensation Fund"]
[null,null,null,null,null,41,1,1,"41","01","01","41|01|01","Water and Sanitation","Administration","Ministry"]
[null,null,null,null,null,41,1,2,"41","01","02","41|01|02","Water and Sanitation","Administration","Departmental Management"]
[null,null,null,null,null,41,1,3,"41","01","03","41|01|03","Water and Sanitation","Administration","Internal Audit"]
[null,null,null,null,null,41,1,4,"41","01","04","41|01|04","Water and Sanitation","Administration","Corporate Services"]
[null,null,null,null,null,41,1,5,"41","01","05","41|01|05","Water and Sanitation","Administration","Financial Management"]
[null,null,null,null,null,41,1,6,"41","01","06","41|01|06","Water and Sanitation","Administration","Office Accommodation"]
[null,null,null,null,null,41,1,7,"41","01","07","41|01|07","Water and Sanitation","Administration","Programme Management Unit"]
[null,null,null,null,null,41,1,8,"41","01","08","41|01|08","Water and Sanitation","Administration","International Water Support"]
[null,null,null,null,null,41,2,1,"41","02","01","41|02|01","Water and Sanitation","Water Planning and Information Management","Water Planning, Information Management and Support"]
[null,null,null,null,null,41,2,2,"41","02","02","41|02|02","Water and Sanitation","Water Planning and Information Management","Integrated Planning"]
[null,null,null,null,null,41,2,3,"41","02","03","41|02|03","Water and Sanitation","Water Planning and Information Management","Water Ecosystems"]
[null,null,null,null,null,41,2,4,"41","02","04","41|02|04","Water and Sanitation","Water Planning and Information Management","Water Information Management"]
[null,null,null,null,null,41,2,5,"41","02","05","41|02|05","Water and Sanitation","Water Planning and Information Management","Water Services and Local Water Management"]
[null,null,null,null,null,41,2,6,"41","02","06","41|02|06","Water and Sanitation","Water Planning and Information Management","Sanitation Planning and Management"]
[null,null,null,null,null,41,2,7,"41","02","07","41|02|07","Water and Sanitation","Water Planning and Information Management","Policy and Strategy"]
[null,null,null,null,null,41,3,1,"41","03","01","41|03|01","Water and Sanitation","Water Infrastructure Development","Strategic Infrastructure Development and Management"]
[null,null,null,null,null,41,3,2,"41","03","02","41|03|02","Water and Sanitation","Water Infrastructure Development","Operation of Water Resources"]
[null,null,null,null,null,41,3,3,"41","03","03","41|03|03","Water and Sanitation","Water Infrastructure Development","Regional Bulk Infrastructure Grant"]
[null,null,null,null,null,41,3,4,"41","03","04","41|03|04","Water and Sanitation","Water Infrastructure Development","Water Services Infrastructure Grant"]
[null,null,null,null,null,41,3,5,"41","03","05","41|03|05","Water and Sanitation","Water Infrastructure Development","Accelerated Community Infrastructure Programme "]
[null,null,null,null,null,41,4,1,"41","04","01","41|04|01","Water and Sanitation","Water Sector Regulation","Water Sector Regulation Management and Support"]
[null,null,null,null,null,41,4,2,"41","04","02","41|04|02","Water and Sanitation","Water Sector Regulation","Economic and Social Regulation"]
[null,null,null,null,null,41,4,3,"41","04","03","41|04|03","Water and Sanitation","Water Sector Regulation","Water Use Authorisation and Administration"]
[null,null,null,null,null,41,4,4,"41","04","04","41|04|04","Water and Sanitation","Water Sector Regulation","Water Supply Services and Sanitation Regulation"]
[null,null,null,null,null,41,4,5,"41","04","05","41|04|05","Water and Sanitation","Water Sector Regulation","Compliance Monitoring and Enforcement"]
[null,null,null,null,null,41,4,6,"41","04","06","41|04|06","Water and Sanitation","Water Sector Regulation","Institutional Oversight"]
[null,null,null,null,null,42,1,1,"42","01","01","42|01|01","Centre for Public Service Innovation","Administration","Strategic Management"]
[null,null,null,null,null,42,1,2,"42","01","02","42|01|02","Centre for Public Service Innovation","Administration","Corporate Resource Management"]
[null,null,null,null,null,42,1,3,"42","01","03","42|01|03","Centre for Public Service Innovation","Administration","Office of the Chief Financial Officer"]
[null,null,null,null,null,42,2,1,"42","02","01","42|02|01","Centre for Public Service Innovation","Public Sector Innovation","Research and Development"]
[null,null,null,null,null,42,2,2,"42","02","02","42|02|02","Centre for Public Service Innovation","Public Sector Innovation","Solution Support and Incubation"]
[null,null,null,null,null,42,2,3,"42","02","03","42|02|03","Centre for Public Service Innovation","Public Sector Innovation","Enabling Environment"]
[null,null,null,null,null,50,0,0,"50","00","00","50|00|00","Below the line items","Provisional allocation not assigned to votes","Provisional allocation not assigned to votes"]
[null,null,null,null,null,50,0,0,"50","00","00","50|00|00","Below the line items","Infrastructure fund not assigned to votes","Infrastructure fund not assigned to votes"]
[null,null,null,null,null,50,0,0,"50","00","00","50|00|00","Below the line items","Provisional allocation for Eskom restructuring","Provisional allocation for Eskom restructuring"]
[null,null,null,null,null,50,0,0,"50","00","00","50|00|00","Below the line items","Compensation of employees adjustment","Compensation of employees adjustment"]
[null,null,null,null,null,50,0,0,"50","00","00","50|00|00","Below the line items","Active scenario - fiscal measures","Active scenario - fiscal measures"]
[null,null,null,null,null,50,0,0,"50","00","00","50|00|00","Below the line items","Contingency reserve","Contingency reserve"]